{"text_format":"1","workbook":"xlsx","n_sheets":25,"sheets":["Instructions","Customer Information","Terms & Conditions","Payment Assignment","Project Information","Project Summary","PI_Print","HVAC","Refrigeration","Kitchen Equipment","Compressed Air","IT & Data Center","Additional Measures","Project Report","Equipment Efficiency Tables","F.A.Q.","CI Table","Equipment Lookups","Equipment Lookup Tables","Deemed Lookup Tables","Deemed by Facil Type","Smart Thermostat Lookups","EFLH Lookup Tables","Ref","Debug"],"not_rendered":{"charts":0,"images":31,"macros":1,"external_links":0,"defined_names":320,"comments":15,"pivot_tables":0},"unopened":[],"bounds":{"document_bytes":16777216,"sheet_cells":100000,"rows_first":2000,"rows_last":500,"rows_between":2000,"halvings":0,"cell_chars":16384,"cell_head_chars":4096},"cells_cut":5,"cells_raw":0,"read":"whole","date_system":"1900"}

{"sheet":"Instructions","index":0,"n_rows":106,"n_cols":10,"rows_kept":106,"cut":false,"hidden":false,"merged":[[0,0,0,12],[81,6,81,7],[49,6,49,7],[50,6,50,7],[5,2,5,7],[6,2,6,7],[7,2,7,7],[63,2,63,7],[71,2,71,5],[72,2,72,5],[1,9,2,11],[8,2,10,7],[13,2,13,7],[61,6,61,7],[62,6,62,7],[62,2,62,5],[41,2,41,5],[41,6,41,7],[45,2,45,5],[45,6,45,7],[39,2,39,7],[40,2,40,5],[6,9,6,11],[11,2,11,7],[14,2,32,7],[8,9,10,11],[40,6,40,7],[47,2,47,5],[42,2,42,5],[43,2,43,5],[44,2,44,5],[51,2,51,5],[42,6,42,7],[43,6,43,7],[97,2,97,7],[98,2,98,7],[64,2,64,5],[65,2,65,5],[65,6,66,7],[66,2,66,5],[74,2,74,5],[74,6,75,7],[75,2,75,5],[76,2,76,5],[76,6,76,7],[94,2,94,5],[94,6,94,7],[80,2,80,5],[86,2,86,5],[87,2,87,5],[88,2,88,5],[89,2,89,5],[67,2,67,5],[67,6,67,7],[93,2,93,5],[93,6,93,7],[92,2,92,5],[80,6,80,7],[102,2,102,7],[34,2,34,7],[35,2,35,5],[35,6,36,7],[36,2,36,5],[37,2,37,5],[37,6,37,7],[38,2,38,5],[38,6,38,7],[99,2,99,7],[100,2,100,7],[59,2,59,5],[59,6,60,7],[60,2,60,5],[61,2,61,5],[47,6,48,7],[48,2,48,5],[49,2,49,5],[50,2,50,5],[90,2,90,5],[90,6,91,7],[82,2,82,5],[82,6,82,7],[96,2,96,7],[92,6,92,7],[77,2,77,7],[78,2,78,5],[78,6,79,7],[79,2,79,5],[46,2,46,7],[83,2,83,5],[84,2,84,5],[83,6,83,7],[81,2,81,5],[73,2,73,5],[52,2,52,5],[52,6,52,7],[53,2,53,5],[54,2,54,5],[55,2,55,5],[56,2,56,5],[57,2,57,5],[58,2,58,5],[68,2,68,5],[69,2,69,5],[70,2,70,5],[91,2,91,5],[85,2,85,5]]}
["Note: If you are seeing a red \"Blocked Content\" message, please follow the instructions in the \"F.A.Q\" section to enable macros."]
[null,{"$f":"'Customer Information'!$BA$4 & \" - \" & 'Customer Information'!$BA$5","v":"FY26.1.2 - Version 20250828"},null,null,null,null,null,null,null,"HIDE"]
[]
[null,null,{"$f":"\"FY\"&MID(Ref!$B$1,3,2)&\" SRP Business Solutions Standard Mechanical & More\"","v":"FY26 SRP Business Solutions Standard Mechanical & More"},null,null,null,null,{"$f":"Project_Type","v":"Retrofit - Evaluation"}]
[]
[null,null,{"$f":"IF(ProjectStage=\"(Evaluation)\",\"Preliminary Application \",IF(ProjectStage=\"(Reservation)\",\"Rebate Reservation \",\"Final Application \"))&\"Instructions\"","v":"Preliminary Application Instructions"}]
[null,null,{"$f":"SUBSTITUTE($J$7,\"XX\",MID(Ref!$B$1,3,2))","v":"This application packet contains the forms, instructions, eligibility requirements, and rebate amounts for qualifying equipment under the FY26 SRP Business Solutions Standard Program. Please read the following sections carefully to ensure that you purchase and install qualifying equipment."},null,null,null,null,null,null,"This application packet contains the forms, instructions, eligibility requirements, and rebate amounts for qualifying equipment under the FYXX SRP Business Solutions Standard Program. Please read the following sections carefully to ensure that you purchase and install qualifying equipment."]
[null,null,{"$f":"IF(ProjectStage=\"(Evaluation)\",Ref!$B$5,IF(ProjectStage=\"(Reservation)\",Ref!$B$6,Ref!$B$7))","v":"This Evaluation application allows customers to preview any eligible measures within the program and request a preliminary assessment of the proposed equipment that will be installed by them or a representative as part of an energy efficiency initiative, retrofit, or new build."}]
[null,null,{"$f":"SUBSTITUTE(SUBSTITUTE(J9,\"XXXX\",1999+MID(Ref!$B$1,3,2)),\"YYYY\",2000+MID(Ref!$B$1,3,2))","v":"In order to be eligible for rebates through the SRP Business Solutions Standard Program all equipment must meet the following requirements:\n• Equipment must be purchased on or after May 1, 2025. Applications for post-purchase measures purchased during the eligible period between May 1, 2025 and April 30, 2026 must be received no later than October 31, 2026 to be eligible for rebates (subject to rebate availability). Rebate eligibility is determined based on the eligibility rules in place on the purchase date.\n• Equipment must be new and installed in a manner that meets or exceeds code requirements.\n• Replaced equipment must be disposed of in accordance with local, state, or federal codes and regulations and cannot be re-installed elsewhere."},null,null,null,null,null,null,"In order to be eligible for rebates through the SRP Business Solutions Standard Program all equipment must meet the following requirements:\n• Equipment must be purchased on or after May 1, XXXX. Applications for post-purchase measures purchased during the eligible period between May 1, XXXX and April 30, YYYY must be received no later than October 31, YYYY to be eligible for rebates (subject to rebate availability). Rebate eligibility is determined based on the eligibility rules in place on the purchase date.\n• Equipment must be new and installed in a manner that meets or exceeds code requirements.\n• Replaced equipment must be disposed of in accordance with local, state, or federal codes and regulations and cannot be re-installed elsewhere."]
[]
[]
[null,null,"Pre-qualification of eligible measures under the SRP Business Solutions Standard Program is not required except for Retrofit Lighting equipment, Retrofit Lighting Sensors, and Energy Management Systems."]
[]
[null,null,"Available Measures"]
[null,null,"- HVAC\n     - Unitary Air-Conditioning Equipment (Packaged, Split, VRF, PTAC, VTAC)\n     - Unitary Heat Pump Equipment (Packaged, Split, VRF, PTHP, VTHP)\n     - Evaporative Cooler             - Chiller\n     - Economizer                      - Carbon Dioxide Sensor        - Hotel Room Occ Control\n     - Other (VFD - HVAC, VFD - Pump, PMSM, ECM, EMS - DX, EMS - CHW, Smart Thermostat, \n       Carbon Monoxide Sensor, Advanced Rooftop Control)\n- Refrigeration\n     - Discus Compressor            - Refrigerated Compressor\n     - Other (Walk-In Auto-Closer, Gasket, Strip Curtain, Dock-Door Seal, Fast-Acting Door,\n        HE Freezer Door, Open Display Case Door Retrofit Kit, HE Open Case, PMSM, ECM, ASH Control,\n        Floating Head-Pressure Control, Refrigeration OccupancyControl, Evaporative Condenser, VFD - Evap/Cond,\n        Refrigerated Beverage Vending Machine, Refrigerated Suction Pipe Insulation, Ultra-Low Temp Freezer)\n- Kitchen Equipment\n     - All (Griddle, Elect. Steam Cooker, Dishwasher, Hot Food Holding Cabinet, Hot Food Holding Cabinet \n       Gaskets, Ice Maker, Elect. Convection Oven, Elect. Vat Fryer, Combination Oven, HE Pre-Rinse\n       Spray Valve, VFD - Kitchen Exhaust)\n- Compressed Air\n     - All (Additional Receiver Tank Capacity, Desiccant Dryer, Low Pressure-Drop Filter, Refrigerated\n       Cycling Dryer, VFD Compressor, Zero-Loss Condensate Drain)\n- IT & Data Center\n     - Computer Room Air Conditioner\n     - Other (Computer Power Management, ECM, Server Virtualization, HE Servers)\n- Additional Measures\n     - All (Ultraviolet Germicidal Irradiation, Heat Pump Water Heater, VFD Pool Pump, Window Film,\n       Cool Roof, Roof Insulation, Shade Screen)"]
[]
[]
[]
[]
[]
[]
[]
[]
[]
[]
[]
[]
[]
[]
[]
[]
[]
[]
[]
[null,null,"Before Beginning an Evaluation",null,null,null,null,null,null,"EVAL"]
[null,null,"Step 1: Complete all highlighted sections of the Customer Information tab, as applicable",null,null,null,{"$f":"'Customer Information'!$BL$4","v":"MI: Facility Information"}]
[null,null,"(Go to Customer Information)"]
[null,null,"Step 2: Submit any supporting documents related to mechanical measures. A list of acceptable documents is provided below:\n     - Mechanical, refrigeration, and/or kitchen drawings\n     - Submittals and technical specifications for potential measures"]
[null,null,"Step 3: Comply with any additional requests and await preliminary reviews to be conducted and completed"]
[null,null,"After Completing an Evaluation",null,null,null,null,null,null,"EVAL"]
[null,null,"Step 1: Review the preliminary application with your SRP representative"]
[null,null,"Step 2: Coordinate with your representative the estimated timeline for the installation of your project. For retrofit evaluations, be aware that you may be required to submit a Rebate Reservation Request (RRR) for pre-approval for certain measures."]
[null,null,"Step 3: Read and sign the Terms & Conditions and submit it with a current W-9 tax form"]
[null,null,"(Go to Terms & Conditions)"]
[null,null,"(Go to the IRS Website to Access and Download the W-9)"]
[null,null,"Step 4: Review this document for any missing information and submit a Rebate Reservation (optional to reserve funding) or Rebate Application once the project is completed. Please ensure that any supporting and required documentation is submitted alongside the Rebate Application and signed Terms and Conditions"]
[null,null,"Before Beginning a Rebate Reservation Request",null,null,null,null,null,null,"RRR"]
[null,null,"Step 1: Complete all highlighted sections on the Customer Information tab, as applicable",null,null,null,{"$f":"'Customer Information'!$BL$4","v":"MI: Facility Information"}]
[null,null,"(Go to Customer Information)"]
[null,null,"Step 2: Read and sign the Terms & Conditions and submit it with a current W-9 tax form"]
[null,null,"(Go to Terms & Conditions)"]
[null,null,"(Go to the IRS Website to Access and Download the W-9)"]
[null,null,"Step 3: Complete the measure information for the measure(s) being applied for in their respective section(s)",null,null,null,null,null,null,"NME (RRR)"]
[null,null,"(Go to HVAC)"]
[null,null,"(Go to Refrigeration)"]
[null,null,"(Go to Kitchen Equipment)"]
[null,null,"(Go to Compressed Air)"]
[null,null,"(Go to IT & Data Center)"]
[null,null,"(Go to Additional Measures)"]
[null,null,"Step 3: Complete the Project Information tab",null,null,null,{"$f":"'Project Information'!$AD$401","v":"No Measures Selected"}]
[null,null,"(Go to Project Information)"]
[null,null,"Step 4: Review this document for any missing information and, once completed, submit the Rebate Application to savewithsrpbiz@srpnet.com. Please ensure that any supporting and required documentation is submitted alongside the Rebate Application and signed Terms and Conditions."]
[null,null,"Step 5: Comply with any additional requests and await an SRP representative to review and approve your Reservation Request"]
[null,null,"After Purchase and Installation",null,null,null,null,null,null,"RRR"]
[null,null,"Step 1: Update the Project Type in the Customer Information tab from \"Reservation\" to \"Installed\""]
[null,null,"Step 2: Verify the Customer Information tab is correct and up-to-date",null,null,null,{"$f":"'Customer Information'!$BL$4","v":"MI: Facility Information"}]
[null,null,"(Go to Customer Information)"]
[null,null,"Step 3: Update the measure information if there has been a change in the scope of work",null,null,null,null,null,null,"NME (RRR)"]
[null,null,"(Go to HVAC)"]
[null,null,"(Go to Refrigeration)"]
[null,null,"(Go to Kitchen Equipment)"]
[null,null,"(Go to Compressed Air)"]
[null,null,"(Go to IT & Data Center)"]
[null,null,"(Go to Additional Measures)"]
[null,null,"Step 3: Update the Project Information tab if there has been a change in the scope of work",null,null,null,{"$f":"'Project Information'!$AD$401","v":"No Measures Selected"}]
[null,null,"(Go to Project Information)"]
[null,null,"Step 4: Review this document for any missing information and submit the Rebate Application once the project is completed. Please ensure that any supporting and required documentation is submitted alongside the final Rebate Application and payment forms"]
[null,null,"Completing a Final Rebate Application",null,null,null,null,null,null,"IN"]
[null,null,"Step 1: Complete all highlighted sections on the Customer Information tab, as applicable",null,null,null,{"$f":"'Customer Information'!$BL$4","v":"MI: Facility Information"}]
[null,null,"(Go to Customer Information)"]
[null,null,"Step 2: Read and sign the Terms & Conditions and submit it with a current W-9 tax form"]
[null,null,"(Go to Terms & Conditions)"]
[null,null,"(Go to the IRS Website to Access and Download the W-9)"]
[null,null,"Step 3: Complete the measure information for the measure(s) being applied for in their respective section(s)",null,null,null,null,null,null,"NME (IN)"]
[null,null,"(Go to HVAC)"]
[null,null,"(Go to Refrigeration)"]
[null,null,"(Go to Kitchen Equipment)"]
[null,null,"(Go to Compressed Air)"]
[null,null,"(Go to IT & Data Center)"]
[null,null,"(Go to Additional Measures)"]
[null,null,"Step 3: Complete the Project Information tab",null,null,null,{"$f":"'Project Information'!$AD$401","v":"No Measures Selected"}]
[null,null,"(Go to Project Information)"]
[null,null,"Step 4: Submit any supporting documents related to mechanical measures. A list of acceptable documents is provided below:\n     - Construction Drawings\n     - Submittals and technical specifications for potential measures"]
[null,null,"Step 5: Review this document for any missing information and submit the Rebate Application once the project is completed. Please ensure that any supporting and required documentation is submitted alongside the final Rebate Application, signed Terms & Conditions, and payment forms"]
[null,null,"Step 6: Comply with any additional requests"]
[]
[null,null,"Completed Application may be sent to:"]
[null,null,"SRP Business Solutions Standard Program"]
[null,null,"3100 W Ray Rd, Suite 230"]
[null,null,"Chandler, AZ 85226"]
[null,null,"Email: savewithsrpbiz@srpnet.com "]
[]
[null,null,"For More Information about the SRP Business Solutions Standard Program, measure eligibility, rebates, or other SRP programs please contact us:"]
[null,null,"Online at:","www.savewithsrpbiz.com"]
[null,null,"By phone:","(602) 236-3054 "]
[null,null,"Email:","savewithsrpbiz@srpnet.com"]

{"sheet":"Customer Information","index":1,"n_rows":39,"n_cols":66,"rows_kept":39,"cut":false,"hidden":false,"merged":[[36,58,36,60],[28,45,28,49],[29,45,29,49],[30,45,30,49],[31,45,31,49],[32,45,32,49],[33,45,33,49],[34,45,34,49],[35,45,35,49],[36,53,36,57],[28,54,28,57],[29,54,29,57],[30,54,30,57],[31,54,31,57],[32,54,32,57],[33,54,33,57],[34,54,34,57],[35,54,35,57],[28,50,28,53],[29,50,29,53],[30,50,30,53],[31,50,31,53],[18,33,18,60],[8,11,8,30],[9,3,9,10],[7,33,7,52],[32,50,32,53],[16,63,16,64],[17,63,17,64],[13,63,13,64],[3,52,3,61],[3,30,3,51],[4,52,4,61],[10,11,10,30],[3,63,3,65],[7,63,7,64],[8,63,8,64],[7,3,7,30],[15,3,15,30],[9,25,9,30],[9,11,9,24],[10,3,10,10],[19,63,19,64],[20,63,20,64],[8,3,8,10],[21,3,21,10],[0,63,0,65],[9,63,9,64],[10,63,10,64],[11,63,11,64],[15,63,15,64],[11,11,11,30],[13,11,13,30],[12,11,12,19],[12,24,12,30],[12,20,12,23],[1,29,2,61],[2,63,2,65],[15,46,16,53],[8,33,8,45],[9,33,9,45],[10,33,10,45],[11,33,11,45],[12,33,12,45],[13,33,13,45],[14,33,14,45],[15,33,16,45],[8,46,8,53],[9,46,9,53],[10,46,10,53],[21,11,21,30],[20,11,20,18],[20,19,20,30],[20,3,20,10],[11,3,11,10],[12,3,12,10],[13,3,13,10],[16,3,16,10],[16,11,16,30],[19,11,19,22],[19,23,19,30],[18,3,18,10],[18,11,18,19],[18,20,18,23],[18,24,18,30],[19,3,19,10],[17,3,17,10],[17,11,17,30],[27,11,27,19],[37,3,37,10],[37,11,37,19],[37,20,37,23],[37,24,37,30],[34,3,34,10],[34,11,34,22],[34,23,34,30],[31,3,31,30],[36,3,36,10],[36,11,36,30],[35,3,35,10],[32,19,32,30],[32,3,32,18],[35,11,35,30],[33,3,33,18],[33,19,33,30],[25,55,25,60],[25,43,25,54],[25,39,25,42],[25,33,25,38],[23,55,23,60],[23,49,23,54],[23,33,23,38],[23,39,23,48],[29,3,29,10],[29,11,29,18],[29,19,29,30],[23,3,23,30],[24,3,24,18],[24,19,24,30],[25,3,25,10],[25,11,25,30],[26,3,26,10],[27,20,27,23],[27,24,27,30],[28,3,28,10],[28,11,28,22],[28,23,28,30],[26,11,26,30],[27,3,27,10],[24,55,24,60],[19,54,19,60],[19,47,19,53],[19,40,19,46],[19,33,19,39],[22,33,22,60],[20,33,20,39],[20,40,20,46],[20,47,20,53],[20,54,20,60],[35,39,35,42],[34,39,34,42],[34,43,34,44],[29,34,29,43],[30,34,30,43],[31,34,31,43],[24,43,24,54],[24,33,24,38],[24,39,24,42],[11,46,11,53],[12,46,12,53],[13,46,13,53],[14,46,14,53],[38,3,39,30],[32,34,32,43],[35,43,35,44],[27,33,27,60],[28,58,28,60],[29,58,29,60],[30,58,30,60],[31,58,31,60],[32,58,32,60],[33,58,33,60],[34,58,34,60],[35,58,35,60],[33,50,33,53],[34,50,34,53],[35,50,35,53],[33,34,33,43],[35,37,35,38],[34,37,34,38],[34,33,34,36],[35,33,35,36]]}
[null,{"$f":"'Customer Information'!$BA$4 & \" - \" & 'Customer Information'!$BA$5","v":"FY26.1.2 - Version 20250828"},null,null,null,null,null,null,null,null,null,null,null,null,null,null,null,null,null,null,null,null,null,null,null,null,null,null,null,null,null,null,null,null,null,null,null,null,null,null,null,null,null,null,null,null,null,null,null,null,null,null,null,null,null,null,null,null,null,null,null,null,null,"HIDE"]
[null,null,null,null,null,null,null,null,null,null,null,null,null,null,null,null,null,null,null,null,null,null,null,null,null,null,null,null,null,{"$f":"Instructions!C4","v":"FY26 SRP Business Solutions Standard Mechanical & More"}]
[null,null,null,null,null,null,null,null,null,null,null,null,null,null,null,null,null,null,null,null,null,null,null,null,null,null,null,null,null,null,null,null,null,null,null,null,null,null,null,null,null,null,null,null,null,null,null,null,null,null,null,null,null,null,null,null,null,null,null,null,null,null,null,"Complete?"]
[null,null,null,null,null,null,null,null,null,null,null,null,null,null,null,null,null,null,null,null,null,null,null,null,null,null,null,null,null,null,{"$f":"IF($Z$10=\" \",\"\",IF($Z10=\"(Reservation)\",\"Reservation \",IF(Z$10=\"(Installed)\",\"Installation \",\"Evaluation \")&\"Application\"))","v":"Evaluation Application"},null,null,null,null,null,null,null,null,null,null,null,null,null,null,null,null,null,null,null,null,null,{"$f":"Ref!$B$1","v":"FY26.1.2"},null,null,null,null,null,null,null,null,null,null,{"$f":"IF(AND($BN$8:$BN$18),\"Complete\",\"MI: \" & INDIRECT(\"'Customer Information'!BL\" & MATCH(FALSE,$BN$8:$BN$18,0) + 7))","v":"MI: Facility Information"}]
[null,null,null,null,null,null,null,null,null,null,null,null,null,null,null,null,null,null,null,null,null,null,null,null,null,null,null,null,null,null,null,null,null,null,null,null,null,null,null,null,null,null,null,null,null,null,null,null,null,null,null,null,{"$f":"Ref!$B$2","v":"Version 20250828"}]
[]
[]
[null,null,null,"Project Information",null,null,null,null,null,null,null,null,null,null,null,null,null,null,null,null,null,null,null,null,null,null,null,null,null,null,null,null,null,"Processing Information",null,null,null,null,null,null,null,null,null,null,null,null,null,null,null,null,null,null,null,null,null,null,null,null,null,null,null,null,null,"Project Information",null,{"$f":"IF(COUNTA($L$9:$AE$14)>=9,TRUE,IF($Z$10=\"(Evaluation)\",TRUE,FALSE))","v":true}]
[null,null,null,"Project Name",null,null,null,null,null,null,null,null,null,null,null,null,null,null,null,null,null,null,null,null,null,null,null,null,null,null,null,null,null,"SRP Reference Number",null,null,null,null,null,null,null,null,null,null,null,null,null,null,null,null,null,null,null,null,null,null,null,null,null,null,null,null,null,"Participant Information",null,{"$f":"IF(COUNTA($L$17:$AE$22)>=10,TRUE,IF($Z$10=\"(Evaluation)\",TRUE,FALSE))","v":true}]
[null,null,null,"Project Type, Stage",null,null,null,null,null,null,null,"Retrofit",null,null,null,null,null,null,null,null,null,null,null,null,null,"(Evaluation)",null,null,null,null,null,null,null,"Project Creation Date",null,null,null,null,null,null,null,null,null,null,null,null,null,null,null,null,null,null,null,null,null,null,null,null,null,null,null,null,null,"Installer Information",null,{"$f":"IF(OR($T$25=\"Yes\",COUNTA($L$26:$AE$30)>=9),TRUE,IF($Z$10=\"(Evaluation)\",TRUE,FALSE))","v":true}]
[null,null,null,"Project Bus. Name",null,null,null,null,null,null,null,null,null,null,null,null,null,null,null,null,null,null,null,null,null,null,null,null,null,null,null,null,null,"Application Prepared by",null,null,null,null,null,null,null,null,null,null,null,null,null,null,null,null,null,null,null,null,null,null,null,null,null,null,null,null,null,"Payee Information",null,{"$f":"IF(AND(RebateAddressedTo<>\"\",OR(RebateAddressedTo<>\"Other: Please Specify\",COUNTA($L$35:$AE$38)>=7)),TRUE,IF(OR(ProjectStage=\"(Evaluation)\",ProjectStage=\"(Reservation)\"),TRUE,FALSE))","v":true}]
[null,null,null,"Installation Address",null,null,null,null,null,null,null,null,null,null,null,null,null,null,null,null,null,null,null,null,null,null,null,null,null,null,null,null,null,"Estimated Installation Date"]
[null,null,null,"City, State, Zip",null,null,null,null,null,null,null,null,null,null,null,null,null,null,null,null,"AZ",null,null,null,null,null,null,null,null,null,null,null,null,"Invoice Date"]
[null,null,null,"Account Number",null,null,null,null,null,null,null,null,null,null,null,null,null,null,null,null,null,null,null,null,null,null,null,null,null,null,null,null,null,"How did you hear about us?",null,null,null,null,null,null,null,null,null,null,null,null,null,null,null,null,null,null,null,null,null,null,null,null,null,null,null,null,null,"Processing Information",null,{"$f":"IF(ProjectStage=\"(Installed)\",COUNTA($AU$11:$BB$17)>=6,IF(ProjectStage=\"(Reservation)\",COUNTA($AU$11:$BB$17)>=5,TRUE))","v":true}]
[null,null,null,null,null,null,null,null,null,null,null,null,null,null,null,null,null,null,null,null,null,null,null,null,null,null,null,null,null,null,null,null,null,"Do you have a Sustainability Plan?"]
[null,null,null,"Participant Information",null,null,null,null,null,null,null,null,null,null,null,null,null,null,null,null,null,null,null,null,null,null,null,null,null,null,null,null,null,"Did this project help you with part of your Plan?",null,null,null,null,null,null,null,null,null,null,null,null,{"$f":"IF(SustPlan=\"No\",\"No\",\"\")","v":""},null,null,null,null,null,null,null,null,null,null,null,null,null,null,null,null,"Project Cost",null,{"$f":"IF(COUNTA($AH$21:$BB$21)>0,TRUE,IF(OR(ProjectStage=\"(Evaluation)\",ProjectStage=\"(Reservation)\"),TRUE,FALSE))","v":true}]
[null,null,null,"Business Name",null,null,null,null,null,null,null,null,null,null,null,null,null,null,null,null,null,null,null,null,null,null,null,null,null,null,null,null,null,null,null,null,null,null,null,null,null,null,null,null,null,null,null,null,null,null,null,null,null,null,null,null,null,null,null,null,null,null,null,"Facility Information",null,{"$f":"IF(COUNTA($AH$24:$BI$26)>=12,TRUE,FALSE)","v":false}]
[null,null,null,"Address",null,null,null,null,null,null,null,null,null,null,null,null,null,null,null,null,null,null,null,null,null,null,null,null,null,null,null,null,null,null,null,null,null,null,null,null,null,null,null,null,null,null,null,null,null,null,null,null,null,null,null,null,null,null,null,null,null,null,null,"Operating Schedule",null,{"$f":"IF(COUNTA($AH$29:$BI$37)>=36,TRUE,FALSE)","v":false}]
[null,null,null,"City, State, Zip",null,null,null,null,null,null,null,null,null,null,null,null,null,null,null,null,null,null,null,null,null,null,null,null,null,null,null,null,null,"Project Cost"]
[null,null,null,"Contact, Title",null,null,null,null,null,null,null,null,null,null,null,null,null,null,null,null,null,null,null,null,null,null,null,null,null,null,null,null,null,"Material",null,null,null,null,null,null,"Labor",null,null,null,null,null,null,"Other",null,null,null,null,null,null,"Total Project Cost",null,null,null,null,null,null,null,null,"Project Type",null,{"$f":"IF(ProjectType=\"\",\"Retrofit\",ProjectType)&\" - \"&IFERROR(MID(ProjectStage,2,LEN(ProjectStage)-2),\"Evaluation\")","v":"Retrofit - Evaluation"}]
[null,null,null,"Phone, Email",null,null,null,null,null,null,null,null,null,null,null,null,null,null,null,null,null,null,null,null,null,null,null,null,null,null,null,null,null,null,null,null,null,null,null,null,null,null,null,null,null,null,null,null,null,null,null,null,null,null,{"$f":"SUM($AH$21,$AO$21,$AV$21)","v":0},null,null,null,null,null,null,null,null,"ASHRAE Facility Type",null,{"$f":"IFERROR(IF(Facility_Selection=\"Office\",IF(Facility_SF>=75000,\"Office, Large\", \"Office, Small\"),VLOOKUP(Facility_Selection,BuildingTypeTable,2,FALSE)),\"Office, Large\")","v":"Office, Large"}]
[null,null,null,"Participant Is",null,null,null,null,null,null,null,""]
[null,null,null,null,null,null,null,null,null,null,null,null,null,null,null,null,null,null,null,null,null,null,null,null,null,null,null,null,null,null,null,null,null,"Facility Information"]
[null,null,null,"Installer/Trade Ally Information",null,null,null,null,null,null,null,null,null,null,null,null,null,null,null,null,null,null,null,null,null,null,null,null,null,null,null,null,null,"Facility Type",null,null,null,null,null,null,null,null,null,null,null,null,null,null,null,"Facility Sq. Ft.",null,null,null,null,null,null,null,null,null,null,null,null,null,"Defaults (Evaluation Only)"]
[null,null,null,"Self-Installed (No Trade Ally)?",null,null,null,null,null,null,null,null,null,null,null,null,null,null,null,null,null,null,null,null,null,null,null,null,null,null,null,null,null,"# of Floors",null,null,null,null,null,null,null,null,null,"Percent Conditioned",null,null,null,null,null,null,null,null,null,null,null,null,null,null,null,null,null,null,null,52,"Weeks/year"]
[null,null,null,"Business Name",null,null,null,null,null,null,null,null,null,null,null,null,null,null,null,null,null,null,null,null,null,null,null,null,null,null,null,null,null,"Year Built",null,null,null,null,null,null,null,null,null,"SRP Billing Rate",null,null,null,null,null,null,null,null,null,null,null,null,null,null,null,null,null,null,null,7,"Holidays"]
[null,null,null,"Address"]
[null,null,null,"City, State, Zip",null,null,null,null,null,null,null,null,null,null,null,null,null,null,null,null,null,null,null,null,null,null,null,null,null,null,null,null,null,"Operating Schedule",null,null,null,null,null,null,null,null,null,null,null,null,null,null,null,null,null,null,null,null,null,null,null,null,null,null,null,null,null,85,"Unocc Clg"]
[null,null,null,"Contact, Title",null,null,null,null,null,null,null,null,null,null,null,null,null,null,null,null,null,null,null,null,null,null,null,null,null,null,null,null,null,null,null,null,null,null,null,null,null,null,null,null,null,"Day of Week",null,null,null,null,"Start",null,null,null,"Stop",null,null,null,"Op Hrs",null,null,null,null,74,"Occ Clg",{"$f":"BL28-BL29","v":11}]
[null,null,null,"Phone, Email",null,null,null,null,null,null,null,null,null,null,null,null,null,null,null,"",null,null,null,null,null,null,null,null,null,null,null,null,null,null,"Weeks Per Year",null,null,null,null,null,null,null,null,null,null,"Monday",null,null,null,null,null,null,null,null,null,null,null,null,{"$f":"MAX(IF(BC30<AY30,(24-AY30)+BC30,BC30-AY30),0)","v":0},null,null,null,null,72,"Occ Htg"]
[null,null,null,null,null,null,null,null,null,null,null,null,null,null,null,null,null,null,null,null,null,null,null,null,null,null,null,null,null,null,null,null,null,null,null,null,null,null,null,null,null,null,null,null,null,"Tuesday",null,null,null,null,null,null,null,null,null,null,null,null,{"$f":"MAX(IF(BC31<AY31,(24-AY31)+BC31,BC31-AY31),0)","v":0},null,null,null,null,60,"Unocc Htg",{"$f":"BL30-BL31","v":12}]
[null,null,null,"Rebate Payee Information",null,null,null,null,null,null,null,null,null,null,null,null,null,null,null,null,null,null,null,null,null,null,null,null,null,null,null,null,null,null,"Number of Holidays",null,null,null,null,null,null,null,null,null,null,"Wednesday",null,null,null,null,null,null,null,null,null,null,null,null,0]
[null,null,null,"Rebate Should be Addressed To",null,null,null,null,null,null,null,null,null,null,null,null,null,null,null,null,null,null,null,null,null,null,null,null,null,null,null,null,null,null,null,null,null,null,null,null,null,null,null,null,null,"Thursday",null,null,null,null,null,null,null,null,null,null,null,null,0,null,null,null,null,{"$f":"ROUND(45/7*$BL$25/52*365-BL26*45/7,0)","v":2301},"Op hours/year"]
[null,null,null,"Rebate Check Memo (30 characters or less)",null,null,null,null,null,null,null,null,null,null,null,null,null,null,null,null,null,null,null,null,null,null,null,null,null,null,null,null,null,null,"Temperature Set Points",null,null,null,null,null,null,null,null,null,null,"Friday",null,null,null,null,null,null,null,null,null,null,null,null,0]
[null,null,null,"Attention, Phone",null,null,null,null,null,null,null,null,null,null,null,null,null,null,null,null,null,null,null,null,null,null,null,null,null,null,null,null,null,"Occ Clg",null,null,null,null,null,"Unocc Clg",null,null,null,null,null,"Saturday",null,null,null,null,null,null,null,null,null,null,null,null,0]
[null,null,null,"Business Name",null,null,null,null,null,null,null,null,null,null,null,null,null,null,null,null,null,null,null,null,null,null,null,null,null,null,null,null,null,"Occ Htg",null,null,null,null,null,"Unocc Htg",null,null,null,null,null,"Sunday",null,null,null,null,null,null,null,null,null,null,null,null,0]
[null,null,null,"Address",null,null,null,null,null,null,null,null,null,null,null,null,null,null,null,null,null,null,null,null,null,null,null,null,null,null,null,null,null,null,null,null,null,null,null,null,null,null,null,null,null,null,null,null,null,null,null,null,null,"Total",null,null,null,null,{"$f":"ROUND(SUM($BG$30:$BI$36)/7*$AI31/52*365-$AI$33*SUM($BG$30:$BI$34)/5,0)","v":0}]
[null,null,null,"City, State, Zip"]
[null,null,null," Payment of rebates is subject to Customer's continued compliance with the current fiscal year's Program Terms and Conditions signed by the customer. Customer may request a copy of its signed Terms and Conditions by submitting a request to the SRP Business Solutions Program Administrators (Resource Innovations)."]

{"sheet":"Terms & Conditions","index":2,"n_rows":220,"n_cols":20,"rows_kept":220,"cut":false,"hidden":false,"merged":[[0,1,0,18],[49,4,51,17],[52,4,53,17],[60,4,61,17],[58,5,59,17],[54,5,57,17],[1,19,1,22],[5,2,5,17],[6,2,6,17],[7,2,12,17],[36,3,37,17],[30,19,30,22],[31,3,35,17],[30,3,30,5],[30,6,30,17],[79,19,86,22],[87,3,93,17],[13,3,16,17],[17,3,24,17],[25,3,25,17],[26,3,26,17],[26,19,26,22],[27,3,29,17],[38,4,38,17],[39,5,42,17],[39,19,42,22],[43,5,43,17],[44,5,44,17],[45,5,48,17],[78,3,78,17],[62,3,65,17],[66,3,68,17],[69,4,72,17],[73,4,74,17],[75,4,76,17],[77,4,77,17],[79,3,86,17],[113,3,120,17],[121,3,129,17],[130,3,139,17],[189,2,189,17],[175,3,182,17],[183,3,187,17],[94,3,98,17],[99,3,107,17],[108,3,112,17],[156,3,162,17],[163,3,168,17],[169,3,171,17],[172,3,174,17],[140,3,145,17],[146,3,155,17],[191,2,191,17],[192,3,193,17],[194,3,194,17],[205,2,205,7],[205,9,205,14],[205,16,205,17],[200,12,200,17],[200,2,200,10],[201,2,201,10],[201,12,201,17],[208,2,209,17],[206,16,206,17],[218,4,218,15],[219,4,219,15],[206,2,206,7],[206,9,206,14],[215,4,215,15],[216,4,216,15],[217,4,217,15],[211,2,211,17],[212,2,213,17]]}
[null,"This document is also available to sign through DocuSign. Reach out to a program representative to start the process."]
[null,{"$f":"'Customer Information'!$BA$4 & \" - \" & 'Customer Information'!$BA$5","v":"FY26.1.2 - Version 20250828"},null,null,null,null,null,null,null,null,null,null,null,null,null,null,null,null,null,"HIDE"]
[]
[null,null,{"$f":"LEFT('Customer Information'!BA4,4) & \" SRP Business Solutions Standard and Custom Program\"","v":"FY26 SRP Business Solutions Standard and Custom Program"},null,null,null,null,null,null,null,null,null,null,null,null,null,null,"Terms and Conditions"]
[]
[null,null,"TERMS AND CONDITIONS"]
[]
[null,null,"Salt River Project (“SRP”) offers the SRP Business Solutions Standard Program (“Standard Program”) and SRP Business Solutions Custom Program (“Custom Program”) (each generally referred to as “Program”) to provide customers with rebates to facilitate the installation of qualifying energy efficient equipment. These Terms and Conditions set forth terms governing a customer’s participation in the Program selected by customer. By signing below, the customer named in the Customer Signature section (“Customer”) is agreeing to comply with and be bound by these Terms and Conditions for the Program selected by Customer."]
[]
[]
[]
[]
[]
[null,null,"1.","Program Administrator: SRP has contracted Resource Innovations, Inc. (“RI”) to act as the Program Administrator and authorizes RI to administer the SRP Business Solutions programs including, but not limited to, such activities: review, processing, and approval of customer applications; pre and post inspections of customer facilities and project information requests from customer; measurement and verification activities; and issuing rebate checks."]
[]
[]
[]
[null,null,"2.","Alliance Participants: As a convenience to customers, SRP provides a list of contractors, engineers, architects, distributors, manufacturers, and other organizations that may assist customers with SRP programs (“EEA Member”).  In addition, some EEA Members have been approved to assist customers under certain SRP programs (“Qualified Service Provider” or “QSP”) (EEA Members and QSPs collectively referred to as “Alliance Participants”). Customer acknowledges that Alliance Participants are independent contractors with respect to the SRP programs and are not authorized to make representations or incur obligations on behalf of SRP. Participation as an Alliance Participant does not constitute an endorsement by SRP, nor does it certify or guarantee the quality of work performed. SRP is not responsible if an Alliance Participant or other contractor, retailer, vendor or other party provides you with inaccurate information about the amount or conditions of an SRP program."]
[]
[]
[]
[]
[]
[]
[]
[null,null,"3.","Program Term: Funds are limited and applications to the Program are accepted on a first-come, first-served basis. "]
[null,null,null,{"$f":"SUBSTITUTE(SUBSTITUTE(SUBSTITUTE($T27,\"XX\",MID(Ref!$B$1,3,2),1),\"YYYY\",2000+MID(Ref!$B$1,3,2)-1,1),\"ZZZZ\",2000+MID(Ref!$B$1,3,2),1)","v":"The FY26 Program is effective from May 1, 2025 through April 30, 2026 (“Program Term”)."},null,null,null,null,null,null,null,null,null,null,null,null,null,null,null,"The FYXX Program is effective from May 1, YYYY through April 30, ZZZZ (“Program Term”)."]
[null,null,"4.","Customer Eligibility: To be eligible for the Program, Customer must be a current SRP non-residential retail electric customer and meet the customer eligibility requirements outlined in the SRP Business Solutions Standard Program Manual and SRP Business Solutions Custom Program Manual."]
[]
[]
[null,null,"5.","Program Manual:",null,null,{"$f":"SUBSTITUTE(SUBSTITUTE($T31,\"XX\",MID(Ref!$B$1,3,2),1),\"XX\",MID(Ref!$B$1,3,2),1)","v":"The FY26 SRP Business Solutions Standard Program Manual and FY26 SRP Business"},null,null,null,null,null,null,null,null,null,null,null,null,"The FYXX SRP Business Solutions Standard Program Manual and FYXX SRP Business"]
[null,null,null,"Solutions Custom Program Manual (each respectively, “Program Manual”) describe in detail the customer and equipment eligibility requirements, rebate information, and program participation process for customers participating in the Program. Customer must read and comply with the Program Manual for the Program applied to available at https://www.savewithsrpbiz.com/contractortools/rebateapplicationsanddocuments.aspx and incorporated herein by reference."]
[]
[]
[]
[]
[null,null,"6.","Program Participation Process: To be considered for participation in the Program and to qualify for rebates through the Program, Customer must complete the following:"]
[]
[null,null,null,"a.","Customer must"]
[null,null,null,null,"1.",{"$f":"SUBSTITUTE($T40,\"XX\",MID(Ref!$B$1,3,2),1)","v":"Submit a completed FY26 SRP Business Solutions Application (“Rebate Application”) for each installation address. All information provided by Customer in the Rebate Application, including, but not limited to, attachments, must be accurate and complete, and Customer shall notify SRP and RI immediately of any changes to the information."},null,null,null,null,null,null,null,null,null,null,null,null,null,"Submit a completed FYXX SRP Business Solutions Application (“Rebate Application”) for each installation address. All information provided by Customer in the Rebate Application, including, but not limited to, attachments, must be accurate and complete, and Customer shall notify SRP and RI immediately of any changes to the information."]
[]
[]
[]
[null,null,null,null,"2.","Sign and submit these Program Terms and Conditions,"]
[null,null,null,null,"3.","Provide all requested supplemental documentation,"]
[null,null,null,null,"4.","Provide a valid and signed W-9 form. Customers receiving the benefit of Business Solutions incentives, in an amount of $600 or more per calendar year, whether paid directly to the customer or assigned by the customer to a third party, will be issued a Form 1099 unless the customer is a corporation or otherwise exempt under the IRS regulations."]
[]
[]
[]
[null,null,null,"b.","For the Custom Program: Eligible customers approved by SRP to receive preliminary and technical assessments will be notified by SRP and must secure pre-authorizations for these assessments before engaging a Program approved QSP to perform the assessments to be reimbursed by the program."]
[]
[]
[null,null,null,"c.","For the Custom Program and the Standard Program (but only as to Lighting portion): To be considered for equipment rebates, Customer must"]
[]
[null,null,null,null,"1.","Obtain SRP’s pre-approval in writing prior to purchasing or installing energy efficiency equipment. Customers who purchase, install, or sign a purchase order agreeing to purchase or install equipment prior to receiving pre-approval in writing of their Rebate Application from SRP will not be eligible for rebates under the Program."]
[]
[]
[]
[null,null,null,null,"2.","Once Customer has received pre-approval in writing from SRP, Customer may purchase, install and commission qualifying equipment as specified in the Program Manual and/or as instructed by SRP."]
[]
[null,null,null,"d.","Failure to provide or complete any of the requested information or Program steps may result in denial of the application, even if work has commenced."]
[]
[null,null,"7.","Rebate Application: Customer understands that submission of an application, even if correct and complete, does not guarantee that Customer will receive a rebate. Failure to complete or provide any of the required information, including, but not limited to, signatures, forms, or other requested documentation, may result in the return of the Rebate Application."]
[]
[]
[]
[null,null,"8.","Program Rebates: The Program offers service and equipment rebates as outlined in the Program Manual. Payment of any rebate is subject to Customer’s satisfactory completion of all Program requirements and compliance with these Terms and Conditions."]
[]
[]
[null,null,null,"a.","Final approved equipment rebates may exceed the amount reserved in the Rebate Application approval letter only when funds remain in the program budget and no projects have been placed on a waitlist for Program participation.  In no instance will the rebate amount issued exceed the rebate amount reserved by more than 150% for the Custom Program and 120% for the Standard Program."]
[]
[]
[]
[null,null,null,"b.","Qualifying equipment as defined in the Program Manual receiving rebates under the Program may not receive purchase and installation rebates or credits under any other SRP programs."]
[]
[null,null,null,"c.","One rebate check will be issued per approved Rebate Application to the Customer specified on the application or the authorized third-party assignee specified by Customer, as applicable."]
[]
[null,null,null,"d.","For the Custom Program only: All service rebates will be paid directly to the QSPs."]
[null,null,"9.","Rebate Caps: Equipment rebates under the Custom Program are capped at 75% of the customer’s eligible project"]
[null,null,null,{"$f":"SUBSTITUTE($T80,\"XX\",MID(Ref!$B$1,3,2),1)","v":"incremental cost. Equipment rebates under the Standard Program are capped at 100% of the customer’s invoiced cost. SRP allows customers to participate in multiple programs subject to an annual rebate cap, which is the maximum rebate amount a customer is eligible to be paid for the Program Term. For FY26, the rebate cap is $300,000 per customer for all SRP Business Solutions programs in aggregate. A customer may be a holder of a single account, multiple accounts in aggregate or corporate accounts. For purposes of rebate caps, a customer who is the holder of multiple accounts or corporate accounts with a single SRP customer identification number will be considered a single customer. An organization of this type can participate in multiple SRP programs, but will be subject to any applicable customer rebate caps. SRP retains the right to make final determination of customer eligibility."},null,null,null,null,null,null,null,null,null,null,null,null,null,null,null,"incremental cost. Equipment rebates under the Standard Program are capped at 100% of the customer’s invoiced cost. SRP allows customers to participate in multiple programs subject to an annual rebate cap, which is the maximum rebate amount a customer is eligible to be paid for the Program Term. For FYXX, the rebate cap is $300,000 per customer for all SRP Business Solutions programs in aggregate. A customer may be a holder of a single account, multiple accounts in aggregate or corporate accounts. For purposes of rebate caps, a customer who is the holder of multiple accounts or corporate accounts with a single SRP customer identification number will be considered a single customer. An organization of this type can participate in multiple SRP programs, but will be subject to any applicable customer rebate caps. SRP retains the right to make final determination of customer eligibility."]
[]
[]
[]
[]
[]
[]
[]
[null,null,"10.","Right to Inspect: SRP reserves the right to inspect the installed equipment for compliance with the Program requirements. Inspection may include a telephone survey, site visit, and/or the installation of temporary monitoring equipment at any time up to two years after installation for quality control. Within 14 days of the request, Customer shall allow SRP and RI reasonable access to and egress from the installation site during normal business hours, and make available at least one person familiar with the facility and measures installed.  If selected for inspection, the rebate will be withheld pending outcome of the inspection. If the equipment is found to be in compliance with Program requirements, the rebate will be paid. If the equipment is not in compliance, Customer will be notified."]
[]
[]
[]
[]
[]
[]
[null,null,"11.","Hazardous Materials: SRP, RI, and their respective agents, employees, and contractors shall not have any responsibility for the discovery, presence, handling, removal, or disposal of or exposure of persons to hazardous materials of any kind in connection with Customer's facility, including without limitation, asbestos, asbestos products, PCBs, or other toxic substances. Customer shall dispose of replaced equipment in accordance with local, state, or federal codes and regulations and cannot reinstall the equipment in another location."]
[]
[]
[]
[]
[null,null,"12.","Energy Benefits: In exchange for any approved equipment and/or service rebates for energy efficiency measures, Customer hereby sells, transfers and conveys to SRP all Environmental Attributes and Environmental Attributes Reporting Rights, as such terms are defined below, associated with the energy savings attributable to the qualifying measure(s) or its operation. “Environmental Attributes” means those aspects, claims, characteristics and benefits of avoided energy use associated with the qualifying measure(s), as well as any and all fuel, emissions, air quality, or other environmental characteristics, including, but not limited to, white and green energy tags, renewable energy credits, energy efficiency credits, carbon credits, or certificates attributable to the energy savings or avoided use associated with the qualifying measure(s). \"Environmental Attributes Reporting Rights\" means all rights to report ownership of the Environmental Attributes to any person or entity under Section 1605(b) of the Energy Policy Act of 1992, any successor or replacement statutes, or otherwise."]
[]
[]
[]
[]
[]
[]
[]
[]
[null,null,"13.","Compliance with Law: Customer, at its own expense, is responsible for meeting all requirements and complying with all local and state laws and codes concerning the Program, including without limitation, the installation and maintenance of eligible equipment. Customer shall, at its own expense, obtain and maintain licenses and permits needed to install eligible equipment. Failure to obtain and maintain necessary licenses and permits constitutes a material breach of Customer’s obligations under these Terms and Conditions."]
[]
[]
[]
[]
[null,null,"14.","Project Installations: Customer acknowledges that while the Program may provide rebates supporting the installation of qualifying equipment and related measures, energy assessments and identification of energy efficiency opportunities available at the Customer’s facility, neither SRP nor RI will install or implement such equipment or measures and the installation of and implementation of any qualifying equipment or measures will be carried out by the contractor working with Customer. Responsibility for delivery and workmanship related to any equipment or services procured by the Customer exclusively rests with the contractor or retailer selected by Customer. SRP and RI assume no responsibility for oversight of contractor services or for any claims the Customer might have against the contractor, the manufacturer, or the retailer with regard to the energy efficiency services or measures implemented under the Program."]
[]
[]
[]
[]
[]
[]
[]
[null,null,"15.","No Warranties: Customer shall independently evaluate any advice or direction given by SRP or RI related to estimates of energy savings or the cost, selection or installation of energy efficiency measures. Customer is solely responsible for the selection of equipment or measures to be installed or implemented. SRP and RI make no representations and provide no warranty or guaranty with respect to the design, manufacture, construction, safety, potential energy or cost savings, performance or effectiveness of any equipment installed, measures implemented, and/or services rendered by any person or entity in connection with the Program. SRP AND RI DISCLAIM ALL WARRANTIES, EXPRESS OR IMPLIED, TO THE MAXIMUM EXTENT PERMITTED UNDER LAW, WHETHER STATUTORY OR OTHERWISE, INCLUDING WITHOUT LIMITATION ANY WARRANTIES OF MERCHANTABILITY OR FITNESS FOR A PARTICULAR PURPOSE, USE, ENERGY SAVINGS, APPLICATION AND NON-INFRINGEMENT."]
[]
[]
[]
[]
[]
[]
[]
[]
[null,null,"16.","Customer Information: By signing below, Customer hereby authorizes and acknowledges that SRP may disclose Customer’s information relating to a Rebate Application (including, but not limited to, the entirety of its contents), and any other information related to the Customer’s participation in the Program including, but not limited to, customer contact information, account information and billing data, energy usage, and tax identification numbers, to RI and Alliance Participants, as applicable, and any other third party utilized by SRP for the purposes of processing the Customer’s application; to confirm eligibility for participation in the Program; to verify or audit program records or system installation, operation and results; to issue payment on behalf of the Program; to monitor compliance with Program requirements and terms; or as required to comply with state and/or federal law, fraud prevention, regulation, and other legal action. In those cases, SRP, RI, Alliance Participant, and authorized third parties shall comply with all legal requirements of the jurisdiction of the individual whose data would be disclosed before making such disclosure."]
[]
[]
[]
[]
[]
[]
[]
[]
[]
[null,null,"17.","Fraud: Any person who knowingly files an application containing any materially false information or who purposely or misleadingly conceals information subjects such person to criminal and civil penalties. Any and all funds determined to have been acquired on the basis of inaccurate or fraudulent information must be returned to SRP.  Any customer found to be engaged in fraudulent activity or misrepresentation of any kind will be removed from the Program. This section shall not limit other remedies that may be available for the filing of a false or fraudulent application, including, but not limited to, referral to law enforcement authorities."]
[]
[]
[]
[]
[]
[null,null,"18.","Limitation of Liability: To the fullest extent allowed by law, SRP and RI’s total liability, regardless of the number of claims, is limited to the amount of the rebate payment approved in accordance with Program requirements, and SRP, RI, and their respective governing bodies’ members, officers, employees, contractors, and agents shall not be liable to the Customer or any other individual or entity for any other obligations. Notwithstanding anything in these Terms and Conditions to the contrary, SRP, RI, and their respective governing bodies’ members, officers, employees, contractors, and agents shall not be liable hereunder for any type of damages, whether indirect, special, incidental, consequential, exemplary, reliance or punitive (even if advised of the possibility of such damages), including, without limitation, loss of use or loss of profits, regardless of the form of action whether in contract, indemnity, warranty, strict liability or tort, including, without limitation, negligence of any kind. Customer waives any claims it might have against SRP, RI, and their respective governing bodies’ members, officers, employees, contractors, and agents."]
[]
[]
[]
[]
[]
[]
[]
[]
[]
[null,null,"19.","Indemnification: Customer shall defend, protect, indemnify and hold harmless SRP, RI, and their respective governing bodies’ members, officers, employees, contractors, and agents (collectively, the “Indemnified Parties”) against all claims, losses, expenses (including, but not limited to, attorneys’ fees and expenses), damages, demands, judgments, causes of action, suits, costs and liability of every kind and character whatsoever (\"Claims\") arising out of or incident to, or related in any way to, directly or indirectly, Customer’s participation in the  Program; provided however, that Customer shall not be required to indemnify and hold harmless any Indemnified Party against claims adjudicated to have been caused by an Indemnified Party’s gross negligence or willful misconduct."]
[]
[]
[]
[]
[]
[]
[null,null,"20.","Taxable Income: Customer acknowledges that receipt of any rebate pursuant to the Program may result in taxable income to the Customer, even if Customer does not directly receive a payment, and that Customer is solely responsible for payment and reporting with respect to Customer’s taxes. Customer should consult his or her own tax advisor with respect to the tax treatment of rebates provided pursuant to the Program. Nothing in these Terms and Conditions is intended to constitute tax advice and cannot be used for the purpose of avoiding penalties under the Internal Revenue Code."]
[]
[]
[]
[]
[]
[null,null,"21.","Attorneys' Fees: If arbitration or litigation is commenced by either party to enforce or interpret any of the provisions of these Terms and Conditions, the prevailing party shall be entitled to recover reasonable costs and attorneys' fees at the arbitration, at trial, on appeal, and on any petition for review."]
[]
[]
[null,null,"22.","Disputes/Governing Law: These Terms and Conditions shall be exclusively governed by and interpreted in accordance with the laws of the state of Arizona without regard to conflicts of law principles. Any litigation between the parties shall be prosecuted only in the state or federal courts of the state of Arizona."]
[]
[]
[null,null,"23.","Program Changes: SRP reserves the right to modify, update, and amend the terms and conditions of the Program, including, but not limited to, making adjustments to incentive amounts, qualifying measures, and changing or cancelling the Program by providing notice to Customer at the Customer’s primary contact’s email address provided in Customer’s Rebate Application. Material changes will only be effective if Customer communicates its assent directly or indirectly by the acceptance of a payment or other Program benefits or by failing to terminate these Terms and Conditions within ten (10) business days of its receipt of notice of the proposed amendment, update or modification. Pre-approved applications, for which the applicant has completed all Program requirements, will be processed to completion under the terms and conditions in effect at the time of the pre-approval by SRP. Sections 10-23 will survive the termination of these Terms and Conditions and remain in full force and effect."]
[]
[]
[]
[]
[]
[]
[]
[null,null,"24.","Entire Agreement: The terms and conditions set forth herein, including, but not limited to, any and all attachments and incorporated references, constitute a complete statement of the terms and conditions applicable to the Program and supersede all prior representations or understandings, whether written or oral, with regard to such subject matter. SRP and RI shall not be bound by or be liable for any statement, representation, promise, inducement or understanding of any kind that is not set forth herein."]
[]
[]
[]
[]
[]
[null,null,"CUSTOMER ACCEPTANCE AND SIGNATURE"]
[]
[null,null,"Under penalties of perjury, I hereby certify by my signature below that:"]
[null,null,"1.","As the representative of Customer, I have the authority to bind Customer to these Terms and Conditions and sign on Customer’s behalf;"]
[]
[null,null,"2.","I have read, understand, and agree to be bound by these Terms and Conditions."]
[]
[]
[]
[]
[]
[null,null,{"$f":"IF(Project_Name=\"\",\"\",Project_Name)","v":""},null,null,null,null,null,null,null,null,null,{"$f":"IF(Project_AcctNum=\"\",\"\",Project_AcctNum)","v":""}]
[null,null,"Customer: ",null,null,null,null,null,null,null,null,null,"Customer Bill Account Number"]
[]
[]
[]
[]
[null,null,"Printed Name & Title",null,null,null,null,null,null,"Customer Representative signature",null,null,null,null,null,null,"Date"]
[]
[null,null,"(Ink signature or digital signature required. Contact a program representative if you would like the form sent to you so you can sign it digitally.)"]
[]
[]
[null,null,"W-9 Tax Form Link:"]
[null,null,"This link redirects you to the webpage with the location of the W-9 form on the IRS website. The form has to be downloaded and filled as part of the application. Click here to access IRS website to download a copy of the W-9 form."]
[]
[]
[null,null,null,null,"SEND COMPLETED FORMS TO:"]
[null,null,null,null,"SRP Business Solutions Programs"]
[null,null,null,null,"3100 W Ray Road, Suite 230"]
[null,null,null,null,"Chandler, AZ 85226"]
[null,null,null,null,"Email: savewithsrpbiz@srpnet.com"]

{"sheet":"Payment Assignment","index":3,"n_rows":54,"n_cols":20,"rows_kept":54,"cut":false,"hidden":true,"merged":[[0,1,0,18],[42,2,43,17],[45,2,47,17],[35,12,35,17],[39,2,39,7],[39,9,39,14],[39,16,39,17],[40,2,40,7],[40,9,40,14],[40,16,40,17],[20,2,20,10],[20,11,20,17],[10,2,15,17],[16,2,16,17],[17,2,17,17],[18,2,18,10],[1,19,1,22],[10,19,15,22],[19,2,19,10],[19,11,19,13],[19,14,19,15],[19,16,19,17],[18,11,18,13],[18,14,18,15],[18,16,18,17],[5,2,5,17],[6,2,6,8],[6,9,7,14],[6,15,7,17],[7,2,7,8],[9,2,9,17],[53,4,53,15],[49,4,49,15],[50,4,50,15],[51,4,51,15],[52,4,52,15],[34,2,34,10],[34,12,34,17],[35,2,35,10],[21,2,21,10],[21,11,21,17],[23,2,23,17],[25,2,25,17],[26,3,27,17],[28,3,28,17]]}
[null,"This document is also available to sign through DocuSign. Reach out to a program representative to start the process."]
[null,{"$f":"'Customer Information'!$BA$4 & \" - \" & 'Customer Information'!$BA$5","v":"FY26.1.2 - Version 20250828"},null,null,null,null,null,null,null,null,null,null,null,null,null,null,null,null,null,"HIDE"]
[]
[null,null,{"$f":"LEFT('Customer Information'!BA4,4) & \" SRP Business Solutions\"","v":"FY26 SRP Business Solutions"},null,null,null,null,null,null,null,null,null,null,null,null,null,null,"Payment Assignment Form"]
[]
[null,null,"PROJECT INFORMATION  "]
[null,null,"Facility/Project Name & Number (if available): ",null,null,null,null,null,null,"Bill Account Number – nine digits:\n (If multiple meters at site only enter one)",null,null,null,null,null,{"$f":"IF(Project_AcctNum=\"\",\"\",Project_AcctNum)","v":""}]
[null,null,{"$f":"CONCATENATE(IF(ProjectID_DSMC=\"\",\"\",ProjectID_DSMC),\" \",IF(Project_SBSName=\"\",\"\",Project_SBSName))","v":" "}]
[]
[null,null,"PAYMENT ASSIGNMENT  (Complete only if incentive is to be assigned to someone other than participant)"]
[null,null,{"$f":"SUBSTITUTE(T11,\"XX\",MID(Version_ID,3,2),1)","v":"IN CONNECTION WITH THE FY26 SRP BUSINESS SOLUTIONS STANDARD AND CUSTOM PROGRAMS TERMS AND CONDITIONS (“TERMS AND CONDITIONS”) TO BE EXECUTED BY CUSTOMER CONTEMPORANEOUSLY HEREWITH, CUSTOMER AUTHORIZES SRP TO ISSUE THE REBATE PAYMENT TO THE THIRD PARTY NAMED BELOW AND CUSTOMER UNDERSTANDS THAT CUSTOMER WILL NOT BE RECEIVING THE REBATE PAYMENT CHECK FROM SRP. CUSTOMER ALSO UNDERSTANDS THAT ITS RELEASE OF PAYMENT TO THE THIRD PARTY DOES NOT EXEMPT CUSTOMER FROM THE REBATE REQUIREMENTS OUTLINED IN THE TERMS AND CONDITIONS AND MAY NOT AFFECT CUSTOMER’S TAX LIABILITY FOR REBATES PAID BY THE PROGRAM."},null,null,null,null,null,null,null,null,null,null,null,null,null,null,null,null,"IN CONNECTION WITH THE FYXX SRP BUSINESS SOLUTIONS STANDARD AND CUSTOM PROGRAMS TERMS AND CONDITIONS (“TERMS AND CONDITIONS”) TO BE EXECUTED BY CUSTOMER CONTEMPORANEOUSLY HEREWITH, CUSTOMER AUTHORIZES SRP TO ISSUE THE REBATE PAYMENT TO THE THIRD PARTY NAMED BELOW AND CUSTOMER UNDERSTANDS THAT CUSTOMER WILL NOT BE RECEIVING THE REBATE PAYMENT CHECK FROM SRP. CUSTOMER ALSO UNDERSTANDS THAT ITS RELEASE OF PAYMENT TO THE THIRD PARTY DOES NOT EXEMPT CUSTOMER FROM THE REBATE REQUIREMENTS OUTLINED IN THE TERMS AND CONDITIONS AND MAY NOT AFFECT CUSTOMER’S TAX LIABILITY FOR REBATES PAID BY THE PROGRAM."]
[]
[]
[]
[]
[]
[null,null,"Check should be made out to:"]
[null,null,{"$f":"IF(OR(RebateAddressedTo=\"\",RebateAddressedTo=\"Participant Address\", RebateAddressedTo=\"Installation Address\"),\"\",Payee_Name)","v":""}]
[null,null,"Mailing address:",null,null,null,null,null,null,null,null,"City:",null,null,"State:",null,"Zip:"]
[null,null,{"$f":"IF(OR(RebateAddressedTo=\"\",RebateAddressedTo=\"Participant Address\", RebateAddressedTo=\"Installation Address\"),\"\",Payee_Address1)","v":""},null,null,null,null,null,null,null,null,{"$f":"IF(OR(RebateAddressedTo=\"\",RebateAddressedTo=\"Participant Address\", RebateAddressedTo=\"Installation Address\"),\"\",Payee_Address2)","v":""},null,null,{"$f":"IF(OR(RebateAddressedTo=\"\",RebateAddressedTo=\"Participant Address\", RebateAddressedTo=\"Installation Address\"),\"\",Payee_Address3)","v":""},null,{"$f":"IF(OR(RebateAddressedTo=\"\",RebateAddressedTo=\"Participant Address\", RebateAddressedTo=\"Installation Address\"),\"\",Payee_Address4)","v":""}]
[null,null,"Contact name:",null,null,null,null,null,null,null,null,"Contact telephone:"]
[null,null,{"$f":"IF(OR(RebateAddressedTo=\"\",RebateAddressedTo=\"Participant Address\", RebateAddressedTo=\"Installation Address\"),\"\",Payee_Attn)","v":""},null,null,null,null,null,null,null,null,{"$f":"IF(OR(RebateAddressedTo=\"\",RebateAddressedTo=\"Participant Address\", RebateAddressedTo=\"Installation Address\"),\"\",Payee_Phone)","v":""}]
[]
[null,null,"CUSTOMER ACCEPTANCE AND SIGNATURE"]
[]
[null,null,"Under penalties of perjury, I hereby certify by my signature below that:"]
[null,null,"1.","As the representative of Customer, I have the authority to bind Customer to the terms provided for herein and sign on Customer’s behalf;"]
[]
[null,null,"2.","I have read, understand, and agree to be bound by the terms provided for herein."]
[]
[]
[]
[]
[]
[null,null,{"$f":"IF(Project_Name=\"\",\"\",Project_Name)","v":""},null,null,null,null,null,null,null,null,null,{"$f":"IF(Project_AcctNum=\"\",\"\",Project_AcctNum)","v":""}]
[null,null,"Customer: ",null,null,null,null,null,null,null,null,null,"Customer Bill Account Number"]
[]
[]
[]
[]
[null,null,"Printed Name & Title",null,null,null,null,null,null,"Customer Representative signature",null,null,null,null,null,null,"Date"]
[]
[null,null,"(Ink signature or digital signature required. Contact a program representative if you would like the form sent to you so you can sign it digitally.)"]
[]
[]
[null,null,"Tax Information: Customers receiving the benefit of Business Solutions incentives, in an amount of $600 or more per calendar year, whether paid directly to the customer or assigned by the customer to a third party, will be issued a Form 1099 unless the customer is a corporation or otherwise exempt under the IRS regulations."]
[]
[]
[]
[null,null,null,null,"SEND COMPLETED FORMS TO:"]
[null,null,null,null,"SRP Business Solutions Programs"]
[null,null,null,null,"3100 W Ray Road, Suite 230"]
[null,null,null,null,"Chandler, AZ 85226"]
[null,null,null,null,"Email: savewithsrpbiz@srpnet.com"]

{"sheet":"Project Information","index":4,"n_rows":401,"n_cols":30,"rows_kept":401,"cut":false,"hidden":false,"merged":[]}
[1,2,3,4,5,6,7,8,9,10,11,12,13,14,15,16,17,18,19,20,21,22,23,24,25,26,27,28,29,30]
["Line No.","Measure","List 1","List 2","List 3","Size","Input 1","Input 2","Input 3","Input 4","Input 5","Input 6","Quantity","Manufacturer","Model Number","Serial Number(s)","Notes","Hide: Formula Name","Hide: Rebate","Rebate","Hide: Incremental Cost","Hide: Baseline kWh","Hide: Proposed kWh","Annual kWh","Hide: Baseline kW","Hide: Proposed kW","Peak kW","Hide: Electrification kWh","Hide: Electrification GHG","Hide: Missing Information"]
[{"$f":"IF(Table_PI[[#This Row],[Hide: Formula Name]]<>\"\",MAX($A$2:A2)+1,\"\")","v":""},null,null,null,null,null,null,null,null,null,null,null,null,null,null,null,null,{"$f":"IFERROR(VLOOKUP(Table_PI[[#This Row],[Measure]],'Equipment Lookups'!$C$3:$D$23,2,FALSE),\"\")","v":""},0,{"$f":"IF(Table_PI[[#This Row],[Hide: Formula Name]]<>\"\",IFERROR(IF(AND(ISNUMBER(Table_PI[[#This Row],[Hide: Rebate]]),Table_PI[[#This Row],[Hide: Rebate]]>0), IF($S$401>=50, IF(AND(ProjectStage=\"(Installed)\",$S$401>'Customer Information'!$BC$21), 'Customer Information'!$BC$21*Table_PI[[#This Row],[Hide: Rebate]]/$S$401, IF($S$401<=300000, Table_PI[[#This Row],[Hide: Rebate]], ROUND(300000*Table_PI[[#This Row],[Hide: Rebate]]/'Project Information'!$S$401,2))), \"Does not meet $50 Minimum\"), \"No Rebate\"), \"No Rebate\"),0)","v":0},0,0,0,0,0,0,0,0,0,{"$f":"IF(Table_PI[[#This Row],[Hide: Formula Name]]<>\"\",IF(AND(Table_PI[[#This Row],[Hide: Formula Name]]<>\"\",OR(Table_PI[[#This Row],[Hide: Rebate]]>0,Table_PI[[#This Row],[Hide: Rebate]]=\"No Rebate\")),TRUE,\"MI: Line Item \" & $A3),\"\")","v":""}]
[{"$f":"IF(Table_PI[[#This Row],[Hide: Formula Name]]<>\"\",MAX($A$2:A3)+1,\"\")","v":""},null,null,null,null,null,null,null,null,null,null,null,null,null,null,null,null,{"$f":"IFERROR(VLOOKUP(Table_PI[[#This Row],[Measure]],'Equipment Lookups'!$C$3:$D$23,2,FALSE),\"\")","v":""},0,{"$f":"IF(Table_PI[[#This Row],[Hide: Formula Name]]<>\"\",IFERROR(IF(AND(ISNUMBER(Table_PI[[#This Row],[Hide: Rebate]]),Table_PI[[#This Row],[Hide: Rebate]]>0), IF($S$401>=50, IF(AND(ProjectStage=\"(Installed)\",$S$401>'Customer Information'!$BC$21), 'Customer Information'!$BC$21*Table_PI[[#This Row],[Hide: Rebate]]/$S$401, IF($S$401<=300000, Table_PI[[#This Row],[Hide: Rebate]], ROUND(300000*Table_PI[[#This Row],[Hide: Rebate]]/'Project Information'!$S$401,2))), \"Does not meet $50 Minimum\"), \"No Rebate\"), \"No Rebate\"),0)","v":0},0,0,0,0,0,0,0,0,0,{"$f":"IF(Table_PI[[#This Row],[Hide: Formula Name]]<>\"\",IF(AND(Table_PI[[#This Row],[Hide: Formula Name]]<>\"\",OR(Table_PI[[#This Row],[Hide: Rebate]]>0,Table_PI[[#This Row],[Hide: Rebate]]=\"No Rebate\")),TRUE,\"MI: Line Item \" & $A4),\"\")","v":""}]
[{"$f":"IF(Table_PI[[#This Row],[Hide: Formula Name]]<>\"\",MAX($A$2:A4)+1,\"\")","v":""},null,null,null,null,null,null,null,null,null,null,null,null,null,null,null,null,{"$f":"IFERROR(VLOOKUP(Table_PI[[#This Row],[Measure]],'Equipment Lookups'!$C$3:$D$23,2,FALSE),\"\")","v":""},0,{"$f":"IF(Table_PI[[#This Row],[Hide: Formula Name]]<>\"\",IFERROR(IF(AND(ISNUMBER(Table_PI[[#This Row],[Hide: Rebate]]),Table_PI[[#This Row],[Hide: Rebate]]>0), IF($S$401>=50, IF(AND(ProjectStage=\"(Installed)\",$S$401>'Customer Information'!$BC$21), 'Customer Information'!$BC$21*Table_PI[[#This Row],[Hide: Rebate]]/$S$401, IF($S$401<=300000, Table_PI[[#This Row],[Hide: Rebate]], ROUND(300000*Table_PI[[#This Row],[Hide: Rebate]]/'Project Information'!$S$401,2))), \"Does not meet $50 Minimum\"), \"No Rebate\"), \"No Rebate\"),0)","v":0},0,0,0,0,0,0,0,0,0,{"$f":"IF(Table_PI[[#This Row],[Hide: Formula Name]]<>\"\",IF(AND(Table_PI[[#This Row],[Hide: Formula Name]]<>\"\",OR(Table_PI[[#This Row],[Hide: Rebate]]>0,Table_PI[[#This Row],[Hide: Rebate]]=\"No Rebate\")),TRUE,\"MI: Line Item \" & $A5),\"\")","v":""}]
[{"$f":"IF(Table_PI[[#This Row],[Hide: Formula Name]]<>\"\",MAX($A$2:A5)+1,\"\")","v":""},null,null,null,null,null,null,null,null,null,null,null,null,null,null,null,null,{"$f":"IFERROR(VLOOKUP(Table_PI[[#This Row],[Measure]],'Equipment Lookups'!$C$3:$D$23,2,FALSE),\"\")","v":""},0,{"$f":"IF(Table_PI[[#This Row],[Hide: Formula Name]]<>\"\",IFERROR(IF(AND(ISNUMBER(Table_PI[[#This Row],[Hide: Rebate]]),Table_PI[[#This Row],[Hide: Rebate]]>0), IF($S$401>=50, IF(AND(ProjectStage=\"(Installed)\",$S$401>'Customer Information'!$BC$21), 'Customer Information'!$BC$21*Table_PI[[#This Row],[Hide: Rebate]]/$S$401, IF($S$401<=300000, Table_PI[[#This Row],[Hide: Rebate]], ROUND(300000*Table_PI[[#This Row],[Hide: Rebate]]/'Project Information'!$S$401,2))), \"Does not meet $50 Minimum\"), \"No Rebate\"), \"No Rebate\"),0)","v":0},0,0,0,0,0,0,0,0,0,{"$f":"IF(Table_PI[[#This Row],[Hide: Formula Name]]<>\"\",IF(AND(Table_PI[[#This Row],[Hide: Formula Name]]<>\"\",OR(Table_PI[[#This Row],[Hide: Rebate]]>0,Table_PI[[#This Row],[Hide: Rebate]]=\"No Rebate\")),TRUE,\"MI: Line Item \" & $A6),\"\")","v":""}]
[{"$f":"IF(Table_PI[[#This Row],[Hide: Formula Name]]<>\"\",MAX($A$2:A6)+1,\"\")","v":""},null,null,null,null,null,null,null,null,null,null,null,null,null,null,null,null,{"$f":"IFERROR(VLOOKUP(Table_PI[[#This Row],[Measure]],'Equipment Lookups'!$C$3:$D$23,2,FALSE),\"\")","v":""},0,{"$f":"IF(Table_PI[[#This Row],[Hide: Formula Name]]<>\"\",IFERROR(IF(AND(ISNUMBER(Table_PI[[#This Row],[Hide: Rebate]]),Table_PI[[#This Row],[Hide: Rebate]]>0), IF($S$401>=50, IF(AND(ProjectStage=\"(Installed)\",$S$401>'Customer Information'!$BC$21), 'Customer Information'!$BC$21*Table_PI[[#This Row],[Hide: Rebate]]/$S$401, IF($S$401<=300000, Table_PI[[#This Row],[Hide: Rebate]], ROUND(300000*Table_PI[[#This Row],[Hide: Rebate]]/'Project Information'!$S$401,2))), \"Does not meet $50 Minimum\"), \"No Rebate\"), \"No Rebate\"),0)","v":0},0,0,0,0,0,0,0,0,0,{"$f":"IF(Table_PI[[#This Row],[Hide: Formula Name]]<>\"\",IF(AND(Table_PI[[#This Row],[Hide: Formula Name]]<>\"\",OR(Table_PI[[#This Row],[Hide: Rebate]]>0,Table_PI[[#This Row],[Hide: Rebate]]=\"No Rebate\")),TRUE,\"MI: Line Item \" & $A7),\"\")","v":""}]
[{"$f":"IF(Table_PI[[#This Row],[Hide: Formula Name]]<>\"\",MAX($A$2:A7)+1,\"\")","v":""},null,null,null,null,null,null,null,null,null,null,null,null,null,null,null,null,{"$f":"IFERROR(VLOOKUP(Table_PI[[#This Row],[Measure]],'Equipment Lookups'!$C$3:$D$23,2,FALSE),\"\")","v":""},0,{"$f":"IF(Table_PI[[#This Row],[Hide: Formula Name]]<>\"\",IFERROR(IF(AND(ISNUMBER(Table_PI[[#This Row],[Hide: Rebate]]),Table_PI[[#This Row],[Hide: Rebate]]>0), IF($S$401>=50, IF(AND(ProjectStage=\"(Installed)\",$S$401>'Customer Information'!$BC$21), 'Customer Information'!$BC$21*Table_PI[[#This Row],[Hide: Rebate]]/$S$401, IF($S$401<=300000, Table_PI[[#This Row],[Hide: Rebate]], ROUND(300000*Table_PI[[#This Row],[Hide: Rebate]]/'Project Information'!$S$401,2))), \"Does not meet $50 Minimum\"), \"No Rebate\"), \"No Rebate\"),0)","v":0},0,0,0,0,0,0,0,0,0,{"$f":"IF(Table_PI[[#This Row],[Hide: Formula Name]]<>\"\",IF(AND(Table_PI[[#This Row],[Hide: Formula Name]]<>\"\",OR(Table_PI[[#This Row],[Hide: Rebate]]>0,Table_PI[[#This Row],[Hide: Rebate]]=\"No Rebate\")),TRUE,\"MI: Line Item \" & $A8),\"\")","v":""}]
[{"$f":"IF(Table_PI[[#This Row],[Hide: Formula Name]]<>\"\",MAX($A$2:A8)+1,\"\")","v":""},null,null,null,null,null,null,null,null,null,null,null,null,null,null,null,null,{"$f":"IFERROR(VLOOKUP(Table_PI[[#This Row],[Measure]],'Equipment Lookups'!$C$3:$D$23,2,FALSE),\"\")","v":""},0,{"$f":"IF(Table_PI[[#This Row],[Hide: Formula Name]]<>\"\",IFERROR(IF(AND(ISNUMBER(Table_PI[[#This Row],[Hide: Rebate]]),Table_PI[[#This Row],[Hide: Rebate]]>0), IF($S$401>=50, IF(AND(ProjectStage=\"(Installed)\",$S$401>'Customer Information'!$BC$21), 'Customer Information'!$BC$21*Table_PI[[#This Row],[Hide: Rebate]]/$S$401, IF($S$401<=300000, Table_PI[[#This Row],[Hide: Rebate]], ROUND(300000*Table_PI[[#This Row],[Hide: Rebate]]/'Project Information'!$S$401,2))), \"Does not meet $50 Minimum\"), \"No Rebate\"), \"No Rebate\"),0)","v":0},0,0,0,0,0,0,0,0,0,{"$f":"IF(Table_PI[[#This Row],[Hide: Formula Name]]<>\"\",IF(AND(Table_PI[[#This Row],[Hide: Formula Name]]<>\"\",OR(Table_PI[[#This Row],[Hide: Rebate]]>0,Table_PI[[#This Row],[Hide: Rebate]]=\"No Rebate\")),TRUE,\"MI: Line Item \" & $A9),\"\")","v":""}]
[{"$f":"IF(Table_PI[[#This Row],[Hide: Formula Name]]<>\"\",MAX($A$2:A9)+1,\"\")","v":""},null,null,null,null,null,null,null,null,null,null,null,null,null,null,null,null,{"$f":"IFERROR(VLOOKUP(Table_PI[[#This Row],[Measure]],'Equipment Lookups'!$C$3:$D$23,2,FALSE),\"\")","v":""},0,{"$f":"IF(Table_PI[[#This Row],[Hide: Formula Name]]<>\"\",IFERROR(IF(AND(ISNUMBER(Table_PI[[#This Row],[Hide: Rebate]]),Table_PI[[#This Row],[Hide: Rebate]]>0), IF($S$401>=50, IF(AND(ProjectStage=\"(Installed)\",$S$401>'Customer Information'!$BC$21), 'Customer Information'!$BC$21*Table_PI[[#This Row],[Hide: Rebate]]/$S$401, IF($S$401<=300000, Table_PI[[#This Row],[Hide: Rebate]], ROUND(300000*Table_PI[[#This Row],[Hide: Rebate]]/'Project Information'!$S$401,2))), \"Does not meet $50 Minimum\"), \"No Rebate\"), \"No Rebate\"),0)","v":0},0,0,0,0,0,0,0,0,0,{"$f":"IF(Table_PI[[#This Row],[Hide: Formula Name]]<>\"\",IF(AND(Table_PI[[#This Row],[Hide: Formula Name]]<>\"\",OR(Table_PI[[#This Row],[Hide: Rebate]]>0,Table_PI[[#This Row],[Hide: Rebate]]=\"No Rebate\")),TRUE,\"MI: Line Item \" & $A10),\"\")","v":""}]
[{"$f":"IF(Table_PI[[#This Row],[Hide: Formula Name]]<>\"\",MAX($A$2:A10)+1,\"\")","v":""},null,null,null,null,null,null,null,null,null,null,null,null,null,null,null,null,{"$f":"IFERROR(VLOOKUP(Table_PI[[#This Row],[Measure]],'Equipment Lookups'!$C$3:$D$23,2,FALSE),\"\")","v":""},0,{"$f":"IF(Table_PI[[#This Row],[Hide: Formula Name]]<>\"\",IFERROR(IF(AND(ISNUMBER(Table_PI[[#This Row],[Hide: Rebate]]),Table_PI[[#This Row],[Hide: Rebate]]>0), IF($S$401>=50, IF(AND(ProjectStage=\"(Installed)\",$S$401>'Customer Information'!$BC$21), 'Customer Information'!$BC$21*Table_PI[[#This Row],[Hide: Rebate]]/$S$401, IF($S$401<=300000, Table_PI[[#This Row],[Hide: Rebate]], ROUND(300000*Table_PI[[#This Row],[Hide: Rebate]]/'Project Information'!$S$401,2))), \"Does not meet $50 Minimum\"), \"No Rebate\"), \"No Rebate\"),0)","v":0},0,0,0,0,0,0,0,0,0,{"$f":"IF(Table_PI[[#This Row],[Hide: Formula Name]]<>\"\",IF(AND(Table_PI[[#This Row],[Hide: Formula Name]]<>\"\",OR(Table_PI[[#This Row],[Hide: Rebate]]>0,Table_PI[[#This Row],[Hide: Rebate]]=\"No Rebate\")),TRUE,\"MI: Line Item \" & $A11),\"\")","v":""}]
[{"$f":"IF(Table_PI[[#This Row],[Hide: Formula Name]]<>\"\",MAX($A$2:A11)+1,\"\")","v":""},null,null,null,null,null,null,null,null,null,null,null,null,null,null,null,null,{"$f":"IFERROR(VLOOKUP(Table_PI[[#This Row],[Measure]],'Equipment Lookups'!$C$3:$D$23,2,FALSE),\"\")","v":""},0,{"$f":"IF(Table_PI[[#This Row],[Hide: Formula Name]]<>\"\",IFERROR(IF(AND(ISNUMBER(Table_PI[[#This Row],[Hide: Rebate]]),Table_PI[[#This Row],[Hide: Rebate]]>0), IF($S$401>=50, IF(AND(ProjectStage=\"(Installed)\",$S$401>'Customer Information'!$BC$21), 'Customer Information'!$BC$21*Table_PI[[#This Row],[Hide: Rebate]]/$S$401, IF($S$401<=300000, Table_PI[[#This Row],[Hide: Rebate]], ROUND(300000*Table_PI[[#This Row],[Hide: Rebate]]/'Project Information'!$S$401,2))), \"Does not meet $50 Minimum\"), \"No Rebate\"), \"No Rebate\"),0)","v":0},0,0,0,0,0,0,0,0,0,{"$f":"IF(Table_PI[[#This Row],[Hide: Formula Name]]<>\"\",IF(AND(Table_PI[[#This Row],[Hide: Formula Name]]<>\"\",OR(Table_PI[[#This Row],[Hide: Rebate]]>0,Table_PI[[#This Row],[Hide: Rebate]]=\"No Rebate\")),TRUE,\"MI: Line Item \" & $A12),\"\")","v":""}]
[{"$f":"IF(Table_PI[[#This Row],[Hide: Formula Name]]<>\"\",MAX($A$2:A12)+1,\"\")","v":""},null,null,null,null,null,null,null,null,null,null,null,null,null,null,null,null,{"$f":"IFERROR(VLOOKUP(Table_PI[[#This Row],[Measure]],'Equipment Lookups'!$C$3:$D$23,2,FALSE),\"\")","v":""},0,{"$f":"IF(Table_PI[[#This Row],[Hide: Formula Name]]<>\"\",IFERROR(IF(AND(ISNUMBER(Table_PI[[#This Row],[Hide: Rebate]]),Table_PI[[#This Row],[Hide: Rebate]]>0), IF($S$401>=50, IF(AND(ProjectStage=\"(Installed)\",$S$401>'Customer Information'!$BC$21), 'Customer Information'!$BC$21*Table_PI[[#This Row],[Hide: Rebate]]/$S$401, IF($S$401<=300000, Table_PI[[#This Row],[Hide: Rebate]], ROUND(300000*Table_PI[[#This Row],[Hide: Rebate]]/'Project Information'!$S$401,2))), \"Does not meet $50 Minimum\"), \"No Rebate\"), \"No Rebate\"),0)","v":0},0,0,0,0,0,0,0,0,0,{"$f":"IF(Table_PI[[#This Row],[Hide: Formula Name]]<>\"\",IF(AND(Table_PI[[#This Row],[Hide: Formula Name]]<>\"\",OR(Table_PI[[#This Row],[Hide: Rebate]]>0,Table_PI[[#This Row],[Hide: Rebate]]=\"No Rebate\")),TRUE,\"MI: Line Item \" & $A13),\"\")","v":""}]
[{"$f":"IF(Table_PI[[#This Row],[Hide: Formula Name]]<>\"\",MAX($A$2:A13)+1,\"\")","v":""},null,null,null,null,null,null,null,null,null,null,null,null,null,null,null,null,{"$f":"IFERROR(VLOOKUP(Table_PI[[#This Row],[Measure]],'Equipment Lookups'!$C$3:$D$23,2,FALSE),\"\")","v":""},0,{"$f":"IF(Table_PI[[#This Row],[Hide: Formula Name]]<>\"\",IFERROR(IF(AND(ISNUMBER(Table_PI[[#This Row],[Hide: Rebate]]),Table_PI[[#This Row],[Hide: Rebate]]>0), IF($S$401>=50, IF(AND(ProjectStage=\"(Installed)\",$S$401>'Customer Information'!$BC$21), 'Customer Information'!$BC$21*Table_PI[[#This Row],[Hide: Rebate]]/$S$401, IF($S$401<=300000, Table_PI[[#This Row],[Hide: Rebate]], ROUND(300000*Table_PI[[#This Row],[Hide: Rebate]]/'Project Information'!$S$401,2))), \"Does not meet $50 Minimum\"), \"No Rebate\"), \"No Rebate\"),0)","v":0},0,0,0,0,0,0,0,0,0,{"$f":"IF(Table_PI[[#This Row],[Hide: Formula Name]]<>\"\",IF(AND(Table_PI[[#This Row],[Hide: Formula Name]]<>\"\",OR(Table_PI[[#This Row],[Hide: Rebate]]>0,Table_PI[[#This Row],[Hide: Rebate]]=\"No Rebate\")),TRUE,\"MI: Line Item \" & $A14),\"\")","v":""}]
[{"$f":"IF(Table_PI[[#This Row],[Hide: Formula Name]]<>\"\",MAX($A$2:A14)+1,\"\")","v":""},null,null,null,null,null,null,null,null,null,null,null,null,null,null,null,null,{"$f":"IFERROR(VLOOKUP(Table_PI[[#This Row],[Measure]],'Equipment Lookups'!$C$3:$D$23,2,FALSE),\"\")","v":""},0,{"$f":"IF(Table_PI[[#This Row],[Hide: Formula Name]]<>\"\",IFERROR(IF(AND(ISNUMBER(Table_PI[[#This Row],[Hide: Rebate]]),Table_PI[[#This Row],[Hide: Rebate]]>0), IF($S$401>=50, IF(AND(ProjectStage=\"(Installed)\",$S$401>'Customer Information'!$BC$21), 'Customer Information'!$BC$21*Table_PI[[#This Row],[Hide: Rebate]]/$S$401, IF($S$401<=300000, Table_PI[[#This Row],[Hide: Rebate]], ROUND(300000*Table_PI[[#This Row],[Hide: Rebate]]/'Project Information'!$S$401,2))), \"Does not meet $50 Minimum\"), \"No Rebate\"), \"No Rebate\"),0)","v":0},0,0,0,0,0,0,0,0,0,{"$f":"IF(Table_PI[[#This Row],[Hide: Formula Name]]<>\"\",IF(AND(Table_PI[[#This Row],[Hide: Formula Name]]<>\"\",OR(Table_PI[[#This Row],[Hide: Rebate]]>0,Table_PI[[#This Row],[Hide: Rebate]]=\"No Rebate\")),TRUE,\"MI: Line Item \" & $A15),\"\")","v":""}]
[{"$f":"IF(Table_PI[[#This Row],[Hide: Formula Name]]<>\"\",MAX($A$2:A15)+1,\"\")","v":""},null,null,null,null,null,null,null,null,null,null,null,null,null,null,null,null,{"$f":"IFERROR(VLOOKUP(Table_PI[[#This Row],[Measure]],'Equipment Lookups'!$C$3:$D$23,2,FALSE),\"\")","v":""},0,{"$f":"IF(Table_PI[[#This Row],[Hide: Formula Name]]<>\"\",IFERROR(IF(AND(ISNUMBER(Table_PI[[#This Row],[Hide: Rebate]]),Table_PI[[#This Row],[Hide: Rebate]]>0), IF($S$401>=50, IF(AND(ProjectStage=\"(Installed)\",$S$401>'Customer Information'!$BC$21), 'Customer Information'!$BC$21*Table_PI[[#This Row],[Hide: Rebate]]/$S$401, IF($S$401<=300000, Table_PI[[#This Row],[Hide: Rebate]], ROUND(300000*Table_PI[[#This Row],[Hide: Rebate]]/'Project Information'!$S$401,2))), \"Does not meet $50 Minimum\"), \"No Rebate\"), \"No Rebate\"),0)","v":0},0,0,0,0,0,0,0,0,0,{"$f":"IF(Table_PI[[#This Row],[Hide: Formula Name]]<>\"\",IF(AND(Table_PI[[#This Row],[Hide: Formula Name]]<>\"\",OR(Table_PI[[#This Row],[Hide: Rebate]]>0,Table_PI[[#This Row],[Hide: Rebate]]=\"No Rebate\")),TRUE,\"MI: Line Item \" & $A16),\"\")","v":""}]
[{"$f":"IF(Table_PI[[#This Row],[Hide: Formula Name]]<>\"\",MAX($A$2:A16)+1,\"\")","v":""},null,null,null,null,null,null,null,null,null,null,null,null,null,null,null,null,{"$f":"IFERROR(VLOOKUP(Table_PI[[#This Row],[Measure]],'Equipment Lookups'!$C$3:$D$23,2,FALSE),\"\")","v":""},0,{"$f":"IF(Table_PI[[#This Row],[Hide: Formula Name]]<>\"\",IFERROR(IF(AND(ISNUMBER(Table_PI[[#This Row],[Hide: Rebate]]),Table_PI[[#This Row],[Hide: Rebate]]>0), IF($S$401>=50, IF(AND(ProjectStage=\"(Installed)\",$S$401>'Customer Information'!$BC$21), 'Customer Information'!$BC$21*Table_PI[[#This Row],[Hide: Rebate]]/$S$401, IF($S$401<=300000, Table_PI[[#This Row],[Hide: Rebate]], ROUND(300000*Table_PI[[#This Row],[Hide: Rebate]]/'Project Information'!$S$401,2))), \"Does not meet $50 Minimum\"), \"No Rebate\"), \"No Rebate\"),0)","v":0},0,0,0,0,0,0,0,0,0,{"$f":"IF(Table_PI[[#This Row],[Hide: Formula Name]]<>\"\",IF(AND(Table_PI[[#This Row],[Hide: Formula Name]]<>\"\",OR(Table_PI[[#This Row],[Hide: Rebate]]>0,Table_PI[[#This Row],[Hide: Rebate]]=\"No Rebate\")),TRUE,\"MI: Line Item \" & $A17),\"\")","v":""}]
[{"$f":"IF(Table_PI[[#This Row],[Hide: Formula Name]]<>\"\",MAX($A$2:A17)+1,\"\")","v":""},null,null,null,null,null,null,null,null,null,null,null,null,null,null,null,null,{"$f":"IFERROR(VLOOKUP(Table_PI[[#This Row],[Measure]],'Equipment Lookups'!$C$3:$D$23,2,FALSE),\"\")","v":""},0,{"$f":"IF(Table_PI[[#This Row],[Hide: Formula Name]]<>\"\",IFERROR(IF(AND(ISNUMBER(Table_PI[[#This Row],[Hide: Rebate]]),Table_PI[[#This Row],[Hide: Rebate]]>0), IF($S$401>=50, IF(AND(ProjectStage=\"(Installed)\",$S$401>'Customer Information'!$BC$21), 'Customer Information'!$BC$21*Table_PI[[#This Row],[Hide: Rebate]]/$S$401, IF($S$401<=300000, Table_PI[[#This Row],[Hide: Rebate]], ROUND(300000*Table_PI[[#This Row],[Hide: Rebate]]/'Project Information'!$S$401,2))), \"Does not meet $50 Minimum\"), \"No Rebate\"), \"No Rebate\"),0)","v":0},0,0,0,0,0,0,0,0,0,{"$f":"IF(Table_PI[[#This Row],[Hide: Formula Name]]<>\"\",IF(AND(Table_PI[[#This Row],[Hide: Formula Name]]<>\"\",OR(Table_PI[[#This Row],[Hide: Rebate]]>0,Table_PI[[#This Row],[Hide: Rebate]]=\"No Rebate\")),TRUE,\"MI: Line Item \" & $A18),\"\")","v":""}]
[{"$f":"IF(Table_PI[[#This Row],[Hide: Formula Name]]<>\"\",MAX($A$2:A18)+1,\"\")","v":""},null,null,null,null,null,null,null,null,null,null,null,null,null,null,null,null,{"$f":"IFERROR(VLOOKUP(Table_PI[[#This Row],[Measure]],'Equipment Lookups'!$C$3:$D$23,2,FALSE),\"\")","v":""},0,{"$f":"IF(Table_PI[[#This Row],[Hide: Formula Name]]<>\"\",IFERROR(IF(AND(ISNUMBER(Table_PI[[#This Row],[Hide: Rebate]]),Table_PI[[#This Row],[Hide: Rebate]]>0), IF($S$401>=50, IF(AND(ProjectStage=\"(Installed)\",$S$401>'Customer Information'!$BC$21), 'Customer Information'!$BC$21*Table_PI[[#This Row],[Hide: Rebate]]/$S$401, IF($S$401<=300000, Table_PI[[#This Row],[Hide: Rebate]], ROUND(300000*Table_PI[[#This Row],[Hide: Rebate]]/'Project Information'!$S$401,2))), \"Does not meet $50 Minimum\"), \"No Rebate\"), \"No Rebate\"),0)","v":0},0,0,0,0,0,0,0,0,0,{"$f":"IF(Table_PI[[#This Row],[Hide: Formula Name]]<>\"\",IF(AND(Table_PI[[#This Row],[Hide: Formula Name]]<>\"\",OR(Table_PI[[#This Row],[Hide: Rebate]]>0,Table_PI[[#This Row],[Hide: Rebate]]=\"No Rebate\")),TRUE,\"MI: Line Item \" & $A19),\"\")","v":""}]
[{"$f":"IF(Table_PI[[#This Row],[Hide: Formula Name]]<>\"\",MAX($A$2:A19)+1,\"\")","v":""},null,null,null,null,null,null,null,null,null,null,null,null,null,null,null,null,{"$f":"IFERROR(VLOOKUP(Table_PI[[#This Row],[Measure]],'Equipment Lookups'!$C$3:$D$23,2,FALSE),\"\")","v":""},0,{"$f":"IF(Table_PI[[#This Row],[Hide: Formula Name]]<>\"\",IFERROR(IF(AND(ISNUMBER(Table_PI[[#This Row],[Hide: Rebate]]),Table_PI[[#This Row],[Hide: Rebate]]>0), IF($S$401>=50, IF(AND(ProjectStage=\"(Installed)\",$S$401>'Customer Information'!$BC$21), 'Customer Information'!$BC$21*Table_PI[[#This Row],[Hide: Rebate]]/$S$401, IF($S$401<=300000, Table_PI[[#This Row],[Hide: Rebate]], ROUND(300000*Table_PI[[#This Row],[Hide: Rebate]]/'Project Information'!$S$401,2))), \"Does not meet $50 Minimum\"), \"No Rebate\"), \"No Rebate\"),0)","v":0},0,0,0,0,0,0,0,0,0,{"$f":"IF(Table_PI[[#This Row],[Hide: Formula Name]]<>\"\",IF(AND(Table_PI[[#This Row],[Hide: Formula Name]]<>\"\",OR(Table_PI[[#This Row],[Hide: Rebate]]>0,Table_PI[[#This Row],[Hide: Rebate]]=\"No Rebate\")),TRUE,\"MI: Line Item \" & $A20),\"\")","v":""}]
[{"$f":"IF(Table_PI[[#This Row],[Hide: Formula Name]]<>\"\",MAX($A$2:A20)+1,\"\")","v":""},null,null,null,null,null,null,null,null,null,null,null,null,null,null,null,null,{"$f":"IFERROR(VLOOKUP(Table_PI[[#This Row],[Measure]],'Equipment Lookups'!$C$3:$D$23,2,FALSE),\"\")","v":""},0,{"$f":"IF(Table_PI[[#This Row],[Hide: Formula Name]]<>\"\",IFERROR(IF(AND(ISNUMBER(Table_PI[[#This Row],[Hide: Rebate]]),Table_PI[[#This Row],[Hide: Rebate]]>0), IF($S$401>=50, IF(AND(ProjectStage=\"(Installed)\",$S$401>'Customer Information'!$BC$21), 'Customer Information'!$BC$21*Table_PI[[#This Row],[Hide: Rebate]]/$S$401, IF($S$401<=300000, Table_PI[[#This Row],[Hide: Rebate]], ROUND(300000*Table_PI[[#This Row],[Hide: Rebate]]/'Project Information'!$S$401,2))), \"Does not meet $50 Minimum\"), \"No Rebate\"), \"No Rebate\"),0)","v":0},0,0,0,0,0,0,0,0,0,{"$f":"IF(Table_PI[[#This Row],[Hide: Formula Name]]<>\"\",IF(AND(Table_PI[[#This Row],[Hide: Formula Name]]<>\"\",OR(Table_PI[[#This Row],[Hide: Rebate]]>0,Table_PI[[#This Row],[Hide: Rebate]]=\"No Rebate\")),TRUE,\"MI: Line Item \" & $A21),\"\")","v":""}]
[{"$f":"IF(Table_PI[[#This Row],[Hide: Formula Name]]<>\"\",MAX($A$2:A21)+1,\"\")","v":""},null,null,null,null,null,null,null,null,null,null,null,null,null,null,null,null,{"$f":"IFERROR(VLOOKUP(Table_PI[[#This Row],[Measure]],'Equipment Lookups'!$C$3:$D$23,2,FALSE),\"\")","v":""},0,{"$f":"IF(Table_PI[[#This Row],[Hide: Formula Name]]<>\"\",IFERROR(IF(AND(ISNUMBER(Table_PI[[#This Row],[Hide: Rebate]]),Table_PI[[#This Row],[Hide: Rebate]]>0), IF($S$401>=50, IF(AND(ProjectStage=\"(Installed)\",$S$401>'Customer Information'!$BC$21), 'Customer Information'!$BC$21*Table_PI[[#This Row],[Hide: Rebate]]/$S$401, IF($S$401<=300000, Table_PI[[#This Row],[Hide: Rebate]], ROUND(300000*Table_PI[[#This Row],[Hide: Rebate]]/'Project Information'!$S$401,2))), \"Does not meet $50 Minimum\"), \"No Rebate\"), \"No Rebate\"),0)","v":0},0,0,0,0,0,0,0,0,0,{"$f":"IF(Table_PI[[#This Row],[Hide: Formula Name]]<>\"\",IF(AND(Table_PI[[#This Row],[Hide: Formula Name]]<>\"\",OR(Table_PI[[#This Row],[Hide: Rebate]]>0,Table_PI[[#This Row],[Hide: Rebate]]=\"No Rebate\")),TRUE,\"MI: Line Item \" & $A22),\"\")","v":""}]
[{"$f":"IF(Table_PI[[#This Row],[Hide: Formula Name]]<>\"\",MAX($A$2:A22)+1,\"\")","v":""},null,null,null,null,null,null,null,null,null,null,null,null,null,null,null,null,{"$f":"IFERROR(VLOOKUP(Table_PI[[#This Row],[Measure]],'Equipment Lookups'!$C$3:$D$23,2,FALSE),\"\")","v":""},0,{"$f":"IF(Table_PI[[#This Row],[Hide: Formula Name]]<>\"\",IFERROR(IF(AND(ISNUMBER(Table_PI[[#This Row],[Hide: Rebate]]),Table_PI[[#This Row],[Hide: Rebate]]>0), IF($S$401>=50, IF(AND(ProjectStage=\"(Installed)\",$S$401>'Customer Information'!$BC$21), 'Customer Information'!$BC$21*Table_PI[[#This Row],[Hide: Rebate]]/$S$401, IF($S$401<=300000, Table_PI[[#This Row],[Hide: Rebate]], ROUND(300000*Table_PI[[#This Row],[Hide: Rebate]]/'Project Information'!$S$401,2))), \"Does not meet $50 Minimum\"), \"No Rebate\"), \"No Rebate\"),0)","v":0},0,0,0,0,0,0,0,0,0,{"$f":"IF(Table_PI[[#This Row],[Hide: Formula Name]]<>\"\",IF(AND(Table_PI[[#This Row],[Hide: Formula Name]]<>\"\",OR(Table_PI[[#This Row],[Hide: Rebate]]>0,Table_PI[[#This Row],[Hide: Rebate]]=\"No Rebate\")),TRUE,\"MI: Line Item \" & $A23),\"\")","v":""}]
[{"$f":"IF(Table_PI[[#This Row],[Hide: Formula Name]]<>\"\",MAX($A$2:A23)+1,\"\")","v":""},null,null,null,null,null,null,null,null,null,null,null,null,null,null,null,null,{"$f":"IFERROR(VLOOKUP(Table_PI[[#This Row],[Measure]],'Equipment Lookups'!$C$3:$D$23,2,FALSE),\"\")","v":""},0,{"$f":"IF(Table_PI[[#This Row],[Hide: Formula Name]]<>\"\",IFERROR(IF(AND(ISNUMBER(Table_PI[[#This Row],[Hide: Rebate]]),Table_PI[[#This Row],[Hide: Rebate]]>0), IF($S$401>=50, IF(AND(ProjectStage=\"(Installed)\",$S$401>'Customer Information'!$BC$21), 'Customer Information'!$BC$21*Table_PI[[#This Row],[Hide: Rebate]]/$S$401, IF($S$401<=300000, Table_PI[[#This Row],[Hide: Rebate]], ROUND(300000*Table_PI[[#This Row],[Hide: Rebate]]/'Project Information'!$S$401,2))), \"Does not meet $50 Minimum\"), \"No Rebate\"), \"No Rebate\"),0)","v":0},0,0,0,0,0,0,0,0,0,{"$f":"IF(Table_PI[[#This Row],[Hide: Formula Name]]<>\"\",IF(AND(Table_PI[[#This Row],[Hide: Formula Name]]<>\"\",OR(Table_PI[[#This Row],[Hide: Rebate]]>0,Table_PI[[#This Row],[Hide: Rebate]]=\"No Rebate\")),TRUE,\"MI: Line Item \" & $A24),\"\")","v":""}]
[{"$f":"IF(Table_PI[[#This Row],[Hide: Formula Name]]<>\"\",MAX($A$2:A24)+1,\"\")","v":""},null,null,null,null,null,null,null,null,null,null,null,null,null,null,null,null,{"$f":"IFERROR(VLOOKUP(Table_PI[[#This Row],[Measure]],'Equipment Lookups'!$C$3:$D$23,2,FALSE),\"\")","v":""},0,{"$f":"IF(Table_PI[[#This Row],[Hide: Formula Name]]<>\"\",IFERROR(IF(AND(ISNUMBER(Table_PI[[#This Row],[Hide: Rebate]]),Table_PI[[#This Row],[Hide: Rebate]]>0), IF($S$401>=50, IF(AND(ProjectStage=\"(Installed)\",$S$401>'Customer Information'!$BC$21), 'Customer Information'!$BC$21*Table_PI[[#This Row],[Hide: Rebate]]/$S$401, IF($S$401<=300000, Table_PI[[#This Row],[Hide: Rebate]], ROUND(300000*Table_PI[[#This Row],[Hide: Rebate]]/'Project Information'!$S$401,2))), \"Does not meet $50 Minimum\"), \"No Rebate\"), \"No Rebate\"),0)","v":0},0,0,0,0,0,0,0,0,0,{"$f":"IF(Table_PI[[#This Row],[Hide: Formula Name]]<>\"\",IF(AND(Table_PI[[#This Row],[Hide: Formula Name]]<>\"\",OR(Table_PI[[#This Row],[Hide: Rebate]]>0,Table_PI[[#This Row],[Hide: Rebate]]=\"No Rebate\")),TRUE,\"MI: Line Item \" & $A25),\"\")","v":""}]
[{"$f":"IF(Table_PI[[#This Row],[Hide: Formula Name]]<>\"\",MAX($A$2:A25)+1,\"\")","v":""},null,null,null,null,null,null,null,null,null,null,null,null,null,null,null,null,{"$f":"IFERROR(VLOOKUP(Table_PI[[#This Row],[Measure]],'Equipment Lookups'!$C$3:$D$23,2,FALSE),\"\")","v":""},0,{"$f":"IF(Table_PI[[#This Row],[Hide: Formula Name]]<>\"\",IFERROR(IF(AND(ISNUMBER(Table_PI[[#This Row],[Hide: Rebate]]),Table_PI[[#This Row],[Hide: Rebate]]>0), IF($S$401>=50, IF(AND(ProjectStage=\"(Installed)\",$S$401>'Customer Information'!$BC$21), 'Customer Information'!$BC$21*Table_PI[[#This Row],[Hide: Rebate]]/$S$401, IF($S$401<=300000, Table_PI[[#This Row],[Hide: Rebate]], ROUND(300000*Table_PI[[#This Row],[Hide: Rebate]]/'Project Information'!$S$401,2))), \"Does not meet $50 Minimum\"), \"No Rebate\"), \"No Rebate\"),0)","v":0},0,0,0,0,0,0,0,0,0,{"$f":"IF(Table_PI[[#This Row],[Hide: Formula Name]]<>\"\",IF(AND(Table_PI[[#This Row],[Hide: Formula Name]]<>\"\",OR(Table_PI[[#This Row],[Hide: Rebate]]>0,Table_PI[[#This Row],[Hide: Rebate]]=\"No Rebate\")),TRUE,\"MI: Line Item \" & $A26),\"\")","v":""}]
[{"$f":"IF(Table_PI[[#This Row],[Hide: Formula Name]]<>\"\",MAX($A$2:A26)+1,\"\")","v":""},null,null,null,null,null,null,null,null,null,null,null,null,null,null,null,null,{"$f":"IFERROR(VLOOKUP(Table_PI[[#This Row],[Measure]],'Equipment Lookups'!$C$3:$D$23,2,FALSE),\"\")","v":""},0,{"$f":"IF(Table_PI[[#This Row],[Hide: Formula Name]]<>\"\",IFERROR(IF(AND(ISNUMBER(Table_PI[[#This Row],[Hide: Rebate]]),Table_PI[[#This Row],[Hide: Rebate]]>0), IF($S$401>=50, IF(AND(ProjectStage=\"(Installed)\",$S$401>'Customer Information'!$BC$21), 'Customer Information'!$BC$21*Table_PI[[#This Row],[Hide: Rebate]]/$S$401, IF($S$401<=300000, Table_PI[[#This Row],[Hide: Rebate]], ROUND(300000*Table_PI[[#This Row],[Hide: Rebate]]/'Project Information'!$S$401,2))), \"Does not meet $50 Minimum\"), \"No Rebate\"), \"No Rebate\"),0)","v":0},0,0,0,0,0,0,0,0,0,{"$f":"IF(Table_PI[[#This Row],[Hide: Formula Name]]<>\"\",IF(AND(Table_PI[[#This Row],[Hide: Formula Name]]<>\"\",OR(Table_PI[[#This Row],[Hide: Rebate]]>0,Table_PI[[#This Row],[Hide: Rebate]]=\"No Rebate\")),TRUE,\"MI: Line Item \" & $A27),\"\")","v":""}]
[{"$f":"IF(Table_PI[[#This Row],[Hide: Formula Name]]<>\"\",MAX($A$2:A27)+1,\"\")","v":""},null,null,null,null,null,null,null,null,null,null,null,null,null,null,null,null,{"$f":"IFERROR(VLOOKUP(Table_PI[[#This Row],[Measure]],'Equipment Lookups'!$C$3:$D$23,2,FALSE),\"\")","v":""},0,{"$f":"IF(Table_PI[[#This Row],[Hide: Formula Name]]<>\"\",IFERROR(IF(AND(ISNUMBER(Table_PI[[#This Row],[Hide: Rebate]]),Table_PI[[#This Row],[Hide: Rebate]]>0), IF($S$401>=50, IF(AND(ProjectStage=\"(Installed)\",$S$401>'Customer Information'!$BC$21), 'Customer Information'!$BC$21*Table_PI[[#This Row],[Hide: Rebate]]/$S$401, IF($S$401<=300000, Table_PI[[#This Row],[Hide: Rebate]], ROUND(300000*Table_PI[[#This Row],[Hide: Rebate]]/'Project Information'!$S$401,2))), \"Does not meet $50 Minimum\"), \"No Rebate\"), \"No Rebate\"),0)","v":0},0,0,0,0,0,0,0,0,0,{"$f":"IF(Table_PI[[#This Row],[Hide: Formula Name]]<>\"\",IF(AND(Table_PI[[#This Row],[Hide: Formula Name]]<>\"\",OR(Table_PI[[#This Row],[Hide: Rebate]]>0,Table_PI[[#This Row],[Hide: Rebate]]=\"No Rebate\")),TRUE,\"MI: Line Item \" & $A28),\"\")","v":""}]
[{"$f":"IF(Table_PI[[#This Row],[Hide: Formula Name]]<>\"\",MAX($A$2:A28)+1,\"\")","v":""},null,null,null,null,null,null,null,null,null,null,null,null,null,null,null,null,{"$f":"IFERROR(VLOOKUP(Table_PI[[#This Row],[Measure]],'Equipment Lookups'!$C$3:$D$23,2,FALSE),\"\")","v":""},0,{"$f":"IF(Table_PI[[#This Row],[Hide: Formula Name]]<>\"\",IFERROR(IF(AND(ISNUMBER(Table_PI[[#This Row],[Hide: Rebate]]),Table_PI[[#This Row],[Hide: Rebate]]>0), IF($S$401>=50, IF(AND(ProjectStage=\"(Installed)\",$S$401>'Customer Information'!$BC$21), 'Customer Information'!$BC$21*Table_PI[[#This Row],[Hide: Rebate]]/$S$401, IF($S$401<=300000, Table_PI[[#This Row],[Hide: Rebate]], ROUND(300000*Table_PI[[#This Row],[Hide: Rebate]]/'Project Information'!$S$401,2))), \"Does not meet $50 Minimum\"), \"No Rebate\"), \"No Rebate\"),0)","v":0},0,0,0,0,0,0,0,0,0,{"$f":"IF(Table_PI[[#This Row],[Hide: Formula Name]]<>\"\",IF(AND(Table_PI[[#This Row],[Hide: Formula Name]]<>\"\",OR(Table_PI[[#This Row],[Hide: Rebate]]>0,Table_PI[[#This Row],[Hide: Rebate]]=\"No Rebate\")),TRUE,\"MI: Line Item \" & $A29),\"\")","v":""}]
[{"$f":"IF(Table_PI[[#This Row],[Hide: Formula Name]]<>\"\",MAX($A$2:A29)+1,\"\")","v":""},null,null,null,null,null,null,null,null,null,null,null,null,null,null,null,null,{"$f":"IFERROR(VLOOKUP(Table_PI[[#This Row],[Measure]],'Equipment Lookups'!$C$3:$D$23,2,FALSE),\"\")","v":""},0,{"$f":"IF(Table_PI[[#This Row],[Hide: Formula Name]]<>\"\",IFERROR(IF(AND(ISNUMBER(Table_PI[[#This Row],[Hide: Rebate]]),Table_PI[[#This Row],[Hide: Rebate]]>0), IF($S$401>=50, IF(AND(ProjectStage=\"(Installed)\",$S$401>'Customer Information'!$BC$21), 'Customer Information'!$BC$21*Table_PI[[#This Row],[Hide: Rebate]]/$S$401, IF($S$401<=300000, Table_PI[[#This Row],[Hide: Rebate]], ROUND(300000*Table_PI[[#This Row],[Hide: Rebate]]/'Project Information'!$S$401,2))), \"Does not meet $50 Minimum\"), \"No Rebate\"), \"No Rebate\"),0)","v":0},0,0,0,0,0,0,0,0,0,{"$f":"IF(Table_PI[[#This Row],[Hide: Formula Name]]<>\"\",IF(AND(Table_PI[[#This Row],[Hide: Formula Name]]<>\"\",OR(Table_PI[[#This Row],[Hide: Rebate]]>0,Table_PI[[#This Row],[Hide: Rebate]]=\"No Rebate\")),TRUE,\"MI: Line Item \" & $A30),\"\")","v":""}]
[{"$f":"IF(Table_PI[[#This Row],[Hide: Formula Name]]<>\"\",MAX($A$2:A30)+1,\"\")","v":""},null,null,null,null,null,null,null,null,null,null,null,null,null,null,null,null,{"$f":"IFERROR(VLOOKUP(Table_PI[[#This Row],[Measure]],'Equipment Lookups'!$C$3:$D$23,2,FALSE),\"\")","v":""},0,{"$f":"IF(Table_PI[[#This Row],[Hide: Formula Name]]<>\"\",IFERROR(IF(AND(ISNUMBER(Table_PI[[#This Row],[Hide: Rebate]]),Table_PI[[#This Row],[Hide: Rebate]]>0), IF($S$401>=50, IF(AND(ProjectStage=\"(Installed)\",$S$401>'Customer Information'!$BC$21), 'Customer Information'!$BC$21*Table_PI[[#This Row],[Hide: Rebate]]/$S$401, IF($S$401<=300000, Table_PI[[#This Row],[Hide: Rebate]], ROUND(300000*Table_PI[[#This Row],[Hide: Rebate]]/'Project Information'!$S$401,2))), \"Does not meet $50 Minimum\"), \"No Rebate\"), \"No Rebate\"),0)","v":0},0,0,0,0,0,0,0,0,0,{"$f":"IF(Table_PI[[#This Row],[Hide: Formula Name]]<>\"\",IF(AND(Table_PI[[#This Row],[Hide: Formula Name]]<>\"\",OR(Table_PI[[#This Row],[Hide: Rebate]]>0,Table_PI[[#This Row],[Hide: Rebate]]=\"No Rebate\")),TRUE,\"MI: Line Item \" & $A31),\"\")","v":""}]
[{"$f":"IF(Table_PI[[#This Row],[Hide: Formula Name]]<>\"\",MAX($A$2:A31)+1,\"\")","v":""},null,null,null,null,null,null,null,null,null,null,null,null,null,null,null,null,{"$f":"IFERROR(VLOOKUP(Table_PI[[#This Row],[Measure]],'Equipment Lookups'!$C$3:$D$23,2,FALSE),\"\")","v":""},0,{"$f":"IF(Table_PI[[#This Row],[Hide: Formula Name]]<>\"\",IFERROR(IF(AND(ISNUMBER(Table_PI[[#This Row],[Hide: Rebate]]),Table_PI[[#This Row],[Hide: Rebate]]>0), IF($S$401>=50, IF(AND(ProjectStage=\"(Installed)\",$S$401>'Customer Information'!$BC$21), 'Customer Information'!$BC$21*Table_PI[[#This Row],[Hide: Rebate]]/$S$401, IF($S$401<=300000, Table_PI[[#This Row],[Hide: Rebate]], ROUND(300000*Table_PI[[#This Row],[Hide: Rebate]]/'Project Information'!$S$401,2))), \"Does not meet $50 Minimum\"), \"No Rebate\"), \"No Rebate\"),0)","v":0},0,0,0,0,0,0,0,0,0,{"$f":"IF(Table_PI[[#This Row],[Hide: Formula Name]]<>\"\",IF(AND(Table_PI[[#This Row],[Hide: Formula Name]]<>\"\",OR(Table_PI[[#This Row],[Hide: Rebate]]>0,Table_PI[[#This Row],[Hide: Rebate]]=\"No Rebate\")),TRUE,\"MI: Line Item \" & $A32),\"\")","v":""}]
[{"$f":"IF(Table_PI[[#This Row],[Hide: Formula Name]]<>\"\",MAX($A$2:A32)+1,\"\")","v":""},null,null,null,null,null,null,null,null,null,null,null,null,null,null,null,null,{"$f":"IFERROR(VLOOKUP(Table_PI[[#This Row],[Measure]],'Equipment Lookups'!$C$3:$D$23,2,FALSE),\"\")","v":""},0,{"$f":"IF(Table_PI[[#This Row],[Hide: Formula Name]]<>\"\",IFERROR(IF(AND(ISNUMBER(Table_PI[[#This Row],[Hide: Rebate]]),Table_PI[[#This Row],[Hide: Rebate]]>0), IF($S$401>=50, IF(AND(ProjectStage=\"(Installed)\",$S$401>'Customer Information'!$BC$21), 'Customer Information'!$BC$21*Table_PI[[#This Row],[Hide: Rebate]]/$S$401, IF($S$401<=300000, Table_PI[[#This Row],[Hide: Rebate]], ROUND(300000*Table_PI[[#This Row],[Hide: Rebate]]/'Project Information'!$S$401,2))), \"Does not meet $50 Minimum\"), \"No Rebate\"), \"No Rebate\"),0)","v":0},0,0,0,0,0,0,0,0,0,{"$f":"IF(Table_PI[[#This Row],[Hide: Formula Name]]<>\"\",IF(AND(Table_PI[[#This Row],[Hide: Formula Name]]<>\"\",OR(Table_PI[[#This Row],[Hide: Rebate]]>0,Table_PI[[#This Row],[Hide: Rebate]]=\"No Rebate\")),TRUE,\"MI: Line Item \" & $A33),\"\")","v":""}]
[{"$f":"IF(Table_PI[[#This Row],[Hide: Formula Name]]<>\"\",MAX($A$2:A33)+1,\"\")","v":""},null,null,null,null,null,null,null,null,null,null,null,null,null,null,null,null,{"$f":"IFERROR(VLOOKUP(Table_PI[[#This Row],[Measure]],'Equipment Lookups'!$C$3:$D$23,2,FALSE),\"\")","v":""},0,{"$f":"IF(Table_PI[[#This Row],[Hide: Formula Name]]<>\"\",IFERROR(IF(AND(ISNUMBER(Table_PI[[#This Row],[Hide: Rebate]]),Table_PI[[#This Row],[Hide: Rebate]]>0), IF($S$401>=50, IF(AND(ProjectStage=\"(Installed)\",$S$401>'Customer Information'!$BC$21), 'Customer Information'!$BC$21*Table_PI[[#This Row],[Hide: Rebate]]/$S$401, IF($S$401<=300000, Table_PI[[#This Row],[Hide: Rebate]], ROUND(300000*Table_PI[[#This Row],[Hide: Rebate]]/'Project Information'!$S$401,2))), \"Does not meet $50 Minimum\"), \"No Rebate\"), \"No Rebate\"),0)","v":0},0,0,0,0,0,0,0,0,0,{"$f":"IF(Table_PI[[#This Row],[Hide: Formula Name]]<>\"\",IF(AND(Table_PI[[#This Row],[Hide: Formula Name]]<>\"\",OR(Table_PI[[#This Row],[Hide: Rebate]]>0,Table_PI[[#This Row],[Hide: Rebate]]=\"No Rebate\")),TRUE,\"MI: Line Item \" & $A34),\"\")","v":""}]
[{"$f":"IF(Table_PI[[#This Row],[Hide: Formula Name]]<>\"\",MAX($A$2:A34)+1,\"\")","v":""},null,null,null,null,null,null,null,null,null,null,null,null,null,null,null,null,{"$f":"IFERROR(VLOOKUP(Table_PI[[#This Row],[Measure]],'Equipment Lookups'!$C$3:$D$23,2,FALSE),\"\")","v":""},0,{"$f":"IF(Table_PI[[#This Row],[Hide: Formula Name]]<>\"\",IFERROR(IF(AND(ISNUMBER(Table_PI[[#This Row],[Hide: Rebate]]),Table_PI[[#This Row],[Hide: Rebate]]>0), IF($S$401>=50, IF(AND(ProjectStage=\"(Installed)\",$S$401>'Customer Information'!$BC$21), 'Customer Information'!$BC$21*Table_PI[[#This Row],[Hide: Rebate]]/$S$401, IF($S$401<=300000, Table_PI[[#This Row],[Hide: Rebate]], ROUND(300000*Table_PI[[#This Row],[Hide: Rebate]]/'Project Information'!$S$401,2))), \"Does not meet $50 Minimum\"), \"No Rebate\"), \"No Rebate\"),0)","v":0},0,0,0,0,0,0,0,0,0,{"$f":"IF(Table_PI[[#This Row],[Hide: Formula Name]]<>\"\",IF(AND(Table_PI[[#This Row],[Hide: Formula Name]]<>\"\",OR(Table_PI[[#This Row],[Hide: Rebate]]>0,Table_PI[[#This Row],[Hide: Rebate]]=\"No Rebate\")),TRUE,\"MI: Line Item \" & $A35),\"\")","v":""}]
[{"$f":"IF(Table_PI[[#This Row],[Hide: Formula Name]]<>\"\",MAX($A$2:A35)+1,\"\")","v":""},null,null,null,null,null,null,null,null,null,null,null,null,null,null,null,null,{"$f":"IFERROR(VLOOKUP(Table_PI[[#This Row],[Measure]],'Equipment Lookups'!$C$3:$D$23,2,FALSE),\"\")","v":""},0,{"$f":"IF(Table_PI[[#This Row],[Hide: Formula Name]]<>\"\",IFERROR(IF(AND(ISNUMBER(Table_PI[[#This Row],[Hide: Rebate]]),Table_PI[[#This Row],[Hide: Rebate]]>0), IF($S$401>=50, IF(AND(ProjectStage=\"(Installed)\",$S$401>'Customer Information'!$BC$21), 'Customer Information'!$BC$21*Table_PI[[#This Row],[Hide: Rebate]]/$S$401, IF($S$401<=300000, Table_PI[[#This Row],[Hide: Rebate]], ROUND(300000*Table_PI[[#This Row],[Hide: Rebate]]/'Project Information'!$S$401,2))), \"Does not meet $50 Minimum\"), \"No Rebate\"), \"No Rebate\"),0)","v":0},0,0,0,0,0,0,0,0,0,{"$f":"IF(Table_PI[[#This Row],[Hide: Formula Name]]<>\"\",IF(AND(Table_PI[[#This Row],[Hide: Formula Name]]<>\"\",OR(Table_PI[[#This Row],[Hide: Rebate]]>0,Table_PI[[#This Row],[Hide: Rebate]]=\"No Rebate\")),TRUE,\"MI: Line Item \" & $A36),\"\")","v":""}]
[{"$f":"IF(Table_PI[[#This Row],[Hide: Formula Name]]<>\"\",MAX($A$2:A36)+1,\"\")","v":""},null,null,null,null,null,null,null,null,null,null,null,null,null,null,null,null,{"$f":"IFERROR(VLOOKUP(Table_PI[[#This Row],[Measure]],'Equipment Lookups'!$C$3:$D$23,2,FALSE),\"\")","v":""},0,{"$f":"IF(Table_PI[[#This Row],[Hide: Formula Name]]<>\"\",IFERROR(IF(AND(ISNUMBER(Table_PI[[#This Row],[Hide: Rebate]]),Table_PI[[#This Row],[Hide: Rebate]]>0), IF($S$401>=50, IF(AND(ProjectStage=\"(Installed)\",$S$401>'Customer Information'!$BC$21), 'Customer Information'!$BC$21*Table_PI[[#This Row],[Hide: Rebate]]/$S$401, IF($S$401<=300000, Table_PI[[#This Row],[Hide: Rebate]], ROUND(300000*Table_PI[[#This Row],[Hide: Rebate]]/'Project Information'!$S$401,2))), \"Does not meet $50 Minimum\"), \"No Rebate\"), \"No Rebate\"),0)","v":0},0,0,0,0,0,0,0,0,0,{"$f":"IF(Table_PI[[#This Row],[Hide: Formula Name]]<>\"\",IF(AND(Table_PI[[#This Row],[Hide: Formula Name]]<>\"\",OR(Table_PI[[#This Row],[Hide: Rebate]]>0,Table_PI[[#This Row],[Hide: Rebate]]=\"No Rebate\")),TRUE,\"MI: Line Item \" & $A37),\"\")","v":""}]
[{"$f":"IF(Table_PI[[#This Row],[Hide: Formula Name]]<>\"\",MAX($A$2:A37)+1,\"\")","v":""},null,null,null,null,null,null,null,null,null,null,null,null,null,null,null,null,{"$f":"IFERROR(VLOOKUP(Table_PI[[#This Row],[Measure]],'Equipment Lookups'!$C$3:$D$23,2,FALSE),\"\")","v":""},0,{"$f":"IF(Table_PI[[#This Row],[Hide: Formula Name]]<>\"\",IFERROR(IF(AND(ISNUMBER(Table_PI[[#This Row],[Hide: Rebate]]),Table_PI[[#This Row],[Hide: Rebate]]>0), IF($S$401>=50, IF(AND(ProjectStage=\"(Installed)\",$S$401>'Customer Information'!$BC$21), 'Customer Information'!$BC$21*Table_PI[[#This Row],[Hide: Rebate]]/$S$401, IF($S$401<=300000, Table_PI[[#This Row],[Hide: Rebate]], ROUND(300000*Table_PI[[#This Row],[Hide: Rebate]]/'Project Information'!$S$401,2))), \"Does not meet $50 Minimum\"), \"No Rebate\"), \"No Rebate\"),0)","v":0},0,0,0,0,0,0,0,0,0,{"$f":"IF(Table_PI[[#This Row],[Hide: Formula Name]]<>\"\",IF(AND(Table_PI[[#This Row],[Hide: Formula Name]]<>\"\",OR(Table_PI[[#This Row],[Hide: Rebate]]>0,Table_PI[[#This Row],[Hide: Rebate]]=\"No Rebate\")),TRUE,\"MI: Line Item \" & $A38),\"\")","v":""}]
[{"$f":"IF(Table_PI[[#This Row],[Hide: Formula Name]]<>\"\",MAX($A$2:A38)+1,\"\")","v":""},null,null,null,null,null,null,null,null,null,null,null,null,null,null,null,null,{"$f":"IFERROR(VLOOKUP(Table_PI[[#This Row],[Measure]],'Equipment Lookups'!$C$3:$D$23,2,FALSE),\"\")","v":""},0,{"$f":"IF(Table_PI[[#This Row],[Hide: Formula Name]]<>\"\",IFERROR(IF(AND(ISNUMBER(Table_PI[[#This Row],[Hide: Rebate]]),Table_PI[[#This Row],[Hide: Rebate]]>0), IF($S$401>=50, IF(AND(ProjectStage=\"(Installed)\",$S$401>'Customer Information'!$BC$21), 'Customer Information'!$BC$21*Table_PI[[#This Row],[Hide: Rebate]]/$S$401, IF($S$401<=300000, Table_PI[[#This Row],[Hide: Rebate]], ROUND(300000*Table_PI[[#This Row],[Hide: Rebate]]/'Project Information'!$S$401,2))), \"Does not meet $50 Minimum\"), \"No Rebate\"), \"No Rebate\"),0)","v":0},0,0,0,0,0,0,0,0,0,{"$f":"IF(Table_PI[[#This Row],[Hide: Formula Name]]<>\"\",IF(AND(Table_PI[[#This Row],[Hide: Formula Name]]<>\"\",OR(Table_PI[[#This Row],[Hide: Rebate]]>0,Table_PI[[#This Row],[Hide: Rebate]]=\"No Rebate\")),TRUE,\"MI: Line Item \" & $A39),\"\")","v":""}]
[{"$f":"IF(Table_PI[[#This Row],[Hide: Formula Name]]<>\"\",MAX($A$2:A39)+1,\"\")","v":""},null,null,null,null,null,null,null,null,null,null,null,null,null,null,null,null,{"$f":"IFERROR(VLOOKUP(Table_PI[[#This Row],[Measure]],'Equipment Lookups'!$C$3:$D$23,2,FALSE),\"\")","v":""},0,{"$f":"IF(Table_PI[[#This Row],[Hide: Formula Name]]<>\"\",IFERROR(IF(AND(ISNUMBER(Table_PI[[#This Row],[Hide: Rebate]]),Table_PI[[#This Row],[Hide: Rebate]]>0), IF($S$401>=50, IF(AND(ProjectStage=\"(Installed)\",$S$401>'Customer Information'!$BC$21), 'Customer Information'!$BC$21*Table_PI[[#This Row],[Hide: Rebate]]/$S$401, IF($S$401<=300000, Table_PI[[#This Row],[Hide: Rebate]], ROUND(300000*Table_PI[[#This Row],[Hide: Rebate]]/'Project Information'!$S$401,2))), \"Does not meet $50 Minimum\"), \"No Rebate\"), \"No Rebate\"),0)","v":0},0,0,0,0,0,0,0,0,0,{"$f":"IF(Table_PI[[#This Row],[Hide: Formula Name]]<>\"\",IF(AND(Table_PI[[#This Row],[Hide: Formula Name]]<>\"\",OR(Table_PI[[#This Row],[Hide: Rebate]]>0,Table_PI[[#This Row],[Hide: Rebate]]=\"No Rebate\")),TRUE,\"MI: Line Item \" & $A40),\"\")","v":""}]
[{"$f":"IF(Table_PI[[#This Row],[Hide: Formula Name]]<>\"\",MAX($A$2:A40)+1,\"\")","v":""},null,null,null,null,null,null,null,null,null,null,null,null,null,null,null,null,{"$f":"IFERROR(VLOOKUP(Table_PI[[#This Row],[Measure]],'Equipment Lookups'!$C$3:$D$23,2,FALSE),\"\")","v":""},0,{"$f":"IF(Table_PI[[#This Row],[Hide: Formula Name]]<>\"\",IFERROR(IF(AND(ISNUMBER(Table_PI[[#This Row],[Hide: Rebate]]),Table_PI[[#This Row],[Hide: Rebate]]>0), IF($S$401>=50, IF(AND(ProjectStage=\"(Installed)\",$S$401>'Customer Information'!$BC$21), 'Customer Information'!$BC$21*Table_PI[[#This Row],[Hide: Rebate]]/$S$401, IF($S$401<=300000, Table_PI[[#This Row],[Hide: Rebate]], ROUND(300000*Table_PI[[#This Row],[Hide: Rebate]]/'Project Information'!$S$401,2))), \"Does not meet $50 Minimum\"), \"No Rebate\"), \"No Rebate\"),0)","v":0},0,0,0,0,0,0,0,0,0,{"$f":"IF(Table_PI[[#This Row],[Hide: Formula Name]]<>\"\",IF(AND(Table_PI[[#This Row],[Hide: Formula Name]]<>\"\",OR(Table_PI[[#This Row],[Hide: Rebate]]>0,Table_PI[[#This Row],[Hide: Rebate]]=\"No Rebate\")),TRUE,\"MI: Line Item \" & $A41),\"\")","v":""}]
[{"$f":"IF(Table_PI[[#This Row],[Hide: Formula Name]]<>\"\",MAX($A$2:A41)+1,\"\")","v":""},null,null,null,null,null,null,null,null,null,null,null,null,null,null,null,null,{"$f":"IFERROR(VLOOKUP(Table_PI[[#This Row],[Measure]],'Equipment Lookups'!$C$3:$D$23,2,FALSE),\"\")","v":""},0,{"$f":"IF(Table_PI[[#This Row],[Hide: Formula Name]]<>\"\",IFERROR(IF(AND(ISNUMBER(Table_PI[[#This Row],[Hide: Rebate]]),Table_PI[[#This Row],[Hide: Rebate]]>0), IF($S$401>=50, IF(AND(ProjectStage=\"(Installed)\",$S$401>'Customer Information'!$BC$21), 'Customer Information'!$BC$21*Table_PI[[#This Row],[Hide: Rebate]]/$S$401, IF($S$401<=300000, Table_PI[[#This Row],[Hide: Rebate]], ROUND(300000*Table_PI[[#This Row],[Hide: Rebate]]/'Project Information'!$S$401,2))), \"Does not meet $50 Minimum\"), \"No Rebate\"), \"No Rebate\"),0)","v":0},0,0,0,0,0,0,0,0,0,{"$f":"IF(Table_PI[[#This Row],[Hide: Formula Name]]<>\"\",IF(AND(Table_PI[[#This Row],[Hide: Formula Name]]<>\"\",OR(Table_PI[[#This Row],[Hide: Rebate]]>0,Table_PI[[#This Row],[Hide: Rebate]]=\"No Rebate\")),TRUE,\"MI: Line Item \" & $A42),\"\")","v":""}]
[{"$f":"IF(Table_PI[[#This Row],[Hide: Formula Name]]<>\"\",MAX($A$2:A42)+1,\"\")","v":""},null,null,null,null,null,null,null,null,null,null,null,null,null,null,null,null,{"$f":"IFERROR(VLOOKUP(Table_PI[[#This Row],[Measure]],'Equipment Lookups'!$C$3:$D$23,2,FALSE),\"\")","v":""},0,{"$f":"IF(Table_PI[[#This Row],[Hide: Formula Name]]<>\"\",IFERROR(IF(AND(ISNUMBER(Table_PI[[#This Row],[Hide: Rebate]]),Table_PI[[#This Row],[Hide: Rebate]]>0), IF($S$401>=50, IF(AND(ProjectStage=\"(Installed)\",$S$401>'Customer Information'!$BC$21), 'Customer Information'!$BC$21*Table_PI[[#This Row],[Hide: Rebate]]/$S$401, IF($S$401<=300000, Table_PI[[#This Row],[Hide: Rebate]], ROUND(300000*Table_PI[[#This Row],[Hide: Rebate]]/'Project Information'!$S$401,2))), \"Does not meet $50 Minimum\"), \"No Rebate\"), \"No Rebate\"),0)","v":0},0,0,0,0,0,0,0,0,0,{"$f":"IF(Table_PI[[#This Row],[Hide: Formula Name]]<>\"\",IF(AND(Table_PI[[#This Row],[Hide: Formula Name]]<>\"\",OR(Table_PI[[#This Row],[Hide: Rebate]]>0,Table_PI[[#This Row],[Hide: Rebate]]=\"No Rebate\")),TRUE,\"MI: Line Item \" & $A43),\"\")","v":""}]
[{"$f":"IF(Table_PI[[#This Row],[Hide: Formula Name]]<>\"\",MAX($A$2:A43)+1,\"\")","v":""},null,null,null,null,null,null,null,null,null,null,null,null,null,null,null,null,{"$f":"IFERROR(VLOOKUP(Table_PI[[#This Row],[Measure]],'Equipment Lookups'!$C$3:$D$23,2,FALSE),\"\")","v":""},0,{"$f":"IF(Table_PI[[#This Row],[Hide: Formula Name]]<>\"\",IFERROR(IF(AND(ISNUMBER(Table_PI[[#This Row],[Hide: Rebate]]),Table_PI[[#This Row],[Hide: Rebate]]>0), IF($S$401>=50, IF(AND(ProjectStage=\"(Installed)\",$S$401>'Customer Information'!$BC$21), 'Customer Information'!$BC$21*Table_PI[[#This Row],[Hide: Rebate]]/$S$401, IF($S$401<=300000, Table_PI[[#This Row],[Hide: Rebate]], ROUND(300000*Table_PI[[#This Row],[Hide: Rebate]]/'Project Information'!$S$401,2))), \"Does not meet $50 Minimum\"), \"No Rebate\"), \"No Rebate\"),0)","v":0},0,0,0,0,0,0,0,0,0,{"$f":"IF(Table_PI[[#This Row],[Hide: Formula Name]]<>\"\",IF(AND(Table_PI[[#This Row],[Hide: Formula Name]]<>\"\",OR(Table_PI[[#This Row],[Hide: Rebate]]>0,Table_PI[[#This Row],[Hide: Rebate]]=\"No Rebate\")),TRUE,\"MI: Line Item \" & $A44),\"\")","v":""}]
[{"$f":"IF(Table_PI[[#This Row],[Hide: Formula Name]]<>\"\",MAX($A$2:A44)+1,\"\")","v":""},null,null,null,null,null,null,null,null,null,null,null,null,null,null,null,null,{"$f":"IFERROR(VLOOKUP(Table_PI[[#This Row],[Measure]],'Equipment Lookups'!$C$3:$D$23,2,FALSE),\"\")","v":""},0,{"$f":"IF(Table_PI[[#This Row],[Hide: Formula Name]]<>\"\",IFERROR(IF(AND(ISNUMBER(Table_PI[[#This Row],[Hide: Rebate]]),Table_PI[[#This Row],[Hide: Rebate]]>0), IF($S$401>=50, IF(AND(ProjectStage=\"(Installed)\",$S$401>'Customer Information'!$BC$21), 'Customer Information'!$BC$21*Table_PI[[#This Row],[Hide: Rebate]]/$S$401, IF($S$401<=300000, Table_PI[[#This Row],[Hide: Rebate]], ROUND(300000*Table_PI[[#This Row],[Hide: Rebate]]/'Project Information'!$S$401,2))), \"Does not meet $50 Minimum\"), \"No Rebate\"), \"No Rebate\"),0)","v":0},0,0,0,0,0,0,0,0,0,{"$f":"IF(Table_PI[[#This Row],[Hide: Formula Name]]<>\"\",IF(AND(Table_PI[[#This Row],[Hide: Formula Name]]<>\"\",OR(Table_PI[[#This Row],[Hide: Rebate]]>0,Table_PI[[#This Row],[Hide: Rebate]]=\"No Rebate\")),TRUE,\"MI: Line Item \" & $A45),\"\")","v":""}]
[{"$f":"IF(Table_PI[[#This Row],[Hide: Formula Name]]<>\"\",MAX($A$2:A45)+1,\"\")","v":""},null,null,null,null,null,null,null,null,null,null,null,null,null,null,null,null,{"$f":"IFERROR(VLOOKUP(Table_PI[[#This Row],[Measure]],'Equipment Lookups'!$C$3:$D$23,2,FALSE),\"\")","v":""},0,{"$f":"IF(Table_PI[[#This Row],[Hide: Formula Name]]<>\"\",IFERROR(IF(AND(ISNUMBER(Table_PI[[#This Row],[Hide: Rebate]]),Table_PI[[#This Row],[Hide: Rebate]]>0), IF($S$401>=50, IF(AND(ProjectStage=\"(Installed)\",$S$401>'Customer Information'!$BC$21), 'Customer Information'!$BC$21*Table_PI[[#This Row],[Hide: Rebate]]/$S$401, IF($S$401<=300000, Table_PI[[#This Row],[Hide: Rebate]], ROUND(300000*Table_PI[[#This Row],[Hide: Rebate]]/'Project Information'!$S$401,2))), \"Does not meet $50 Minimum\"), \"No Rebate\"), \"No Rebate\"),0)","v":0},0,0,0,0,0,0,0,0,0,{"$f":"IF(Table_PI[[#This Row],[Hide: Formula Name]]<>\"\",IF(AND(Table_PI[[#This Row],[Hide: Formula Name]]<>\"\",OR(Table_PI[[#This Row],[Hide: Rebate]]>0,Table_PI[[#This Row],[Hide: Rebate]]=\"No Rebate\")),TRUE,\"MI: Line Item \" & $A46),\"\")","v":""}]
[{"$f":"IF(Table_PI[[#This Row],[Hide: Formula Name]]<>\"\",MAX($A$2:A46)+1,\"\")","v":""},null,null,null,null,null,null,null,null,null,null,null,null,null,null,null,null,{"$f":"IFERROR(VLOOKUP(Table_PI[[#This Row],[Measure]],'Equipment Lookups'!$C$3:$D$23,2,FALSE),\"\")","v":""},0,{"$f":"IF(Table_PI[[#This Row],[Hide: Formula Name]]<>\"\",IFERROR(IF(AND(ISNUMBER(Table_PI[[#This Row],[Hide: Rebate]]),Table_PI[[#This Row],[Hide: Rebate]]>0), IF($S$401>=50, IF(AND(ProjectStage=\"(Installed)\",$S$401>'Customer Information'!$BC$21), 'Customer Information'!$BC$21*Table_PI[[#This Row],[Hide: Rebate]]/$S$401, IF($S$401<=300000, Table_PI[[#This Row],[Hide: Rebate]], ROUND(300000*Table_PI[[#This Row],[Hide: Rebate]]/'Project Information'!$S$401,2))), \"Does not meet $50 Minimum\"), \"No Rebate\"), \"No Rebate\"),0)","v":0},0,0,0,0,0,0,0,0,0,{"$f":"IF(Table_PI[[#This Row],[Hide: Formula Name]]<>\"\",IF(AND(Table_PI[[#This Row],[Hide: Formula Name]]<>\"\",OR(Table_PI[[#This Row],[Hide: Rebate]]>0,Table_PI[[#This Row],[Hide: Rebate]]=\"No Rebate\")),TRUE,\"MI: Line Item \" & $A47),\"\")","v":""}]
[{"$f":"IF(Table_PI[[#This Row],[Hide: Formula Name]]<>\"\",MAX($A$2:A47)+1,\"\")","v":""},null,null,null,null,null,null,null,null,null,null,null,null,null,null,null,null,{"$f":"IFERROR(VLOOKUP(Table_PI[[#This Row],[Measure]],'Equipment Lookups'!$C$3:$D$23,2,FALSE),\"\")","v":""},0,{"$f":"IF(Table_PI[[#This Row],[Hide: Formula Name]]<>\"\",IFERROR(IF(AND(ISNUMBER(Table_PI[[#This Row],[Hide: Rebate]]),Table_PI[[#This Row],[Hide: Rebate]]>0), IF($S$401>=50, IF(AND(ProjectStage=\"(Installed)\",$S$401>'Customer Information'!$BC$21), 'Customer Information'!$BC$21*Table_PI[[#This Row],[Hide: Rebate]]/$S$401, IF($S$401<=300000, Table_PI[[#This Row],[Hide: Rebate]], ROUND(300000*Table_PI[[#This Row],[Hide: Rebate]]/'Project Information'!$S$401,2))), \"Does not meet $50 Minimum\"), \"No Rebate\"), \"No Rebate\"),0)","v":0},0,0,0,0,0,0,0,0,0,{"$f":"IF(Table_PI[[#This Row],[Hide: Formula Name]]<>\"\",IF(AND(Table_PI[[#This Row],[Hide: Formula Name]]<>\"\",OR(Table_PI[[#This Row],[Hide: Rebate]]>0,Table_PI[[#This Row],[Hide: Rebate]]=\"No Rebate\")),TRUE,\"MI: Line Item \" & $A48),\"\")","v":""}]
[{"$f":"IF(Table_PI[[#This Row],[Hide: Formula Name]]<>\"\",MAX($A$2:A48)+1,\"\")","v":""},null,null,null,null,null,null,null,null,null,null,null,null,null,null,null,null,{"$f":"IFERROR(VLOOKUP(Table_PI[[#This Row],[Measure]],'Equipment Lookups'!$C$3:$D$23,2,FALSE),\"\")","v":""},0,{"$f":"IF(Table_PI[[#This Row],[Hide: Formula Name]]<>\"\",IFERROR(IF(AND(ISNUMBER(Table_PI[[#This Row],[Hide: Rebate]]),Table_PI[[#This Row],[Hide: Rebate]]>0), IF($S$401>=50, IF(AND(ProjectStage=\"(Installed)\",$S$401>'Customer Information'!$BC$21), 'Customer Information'!$BC$21*Table_PI[[#This Row],[Hide: Rebate]]/$S$401, IF($S$401<=300000, Table_PI[[#This Row],[Hide: Rebate]], ROUND(300000*Table_PI[[#This Row],[Hide: Rebate]]/'Project Information'!$S$401,2))), \"Does not meet $50 Minimum\"), \"No Rebate\"), \"No Rebate\"),0)","v":0},0,0,0,0,0,0,0,0,0,{"$f":"IF(Table_PI[[#This Row],[Hide: Formula Name]]<>\"\",IF(AND(Table_PI[[#This Row],[Hide: Formula Name]]<>\"\",OR(Table_PI[[#This Row],[Hide: Rebate]]>0,Table_PI[[#This Row],[Hide: Rebate]]=\"No Rebate\")),TRUE,\"MI: Line Item \" & $A49),\"\")","v":""}]
[{"$f":"IF(Table_PI[[#This Row],[Hide: Formula Name]]<>\"\",MAX($A$2:A49)+1,\"\")","v":""},null,null,null,null,null,null,null,null,null,null,null,null,null,null,null,null,{"$f":"IFERROR(VLOOKUP(Table_PI[[#This Row],[Measure]],'Equipment Lookups'!$C$3:$D$23,2,FALSE),\"\")","v":""},0,{"$f":"IF(Table_PI[[#This Row],[Hide: Formula Name]]<>\"\",IFERROR(IF(AND(ISNUMBER(Table_PI[[#This Row],[Hide: Rebate]]),Table_PI[[#This Row],[Hide: Rebate]]>0), IF($S$401>=50, IF(AND(ProjectStage=\"(Installed)\",$S$401>'Customer Information'!$BC$21), 'Customer Information'!$BC$21*Table_PI[[#This Row],[Hide: Rebate]]/$S$401, IF($S$401<=300000, Table_PI[[#This Row],[Hide: Rebate]], ROUND(300000*Table_PI[[#This Row],[Hide: Rebate]]/'Project Information'!$S$401,2))), \"Does not meet $50 Minimum\"), \"No Rebate\"), \"No Rebate\"),0)","v":0},0,0,0,0,0,0,0,0,0,{"$f":"IF(Table_PI[[#This Row],[Hide: Formula Name]]<>\"\",IF(AND(Table_PI[[#This Row],[Hide: Formula Name]]<>\"\",OR(Table_PI[[#This Row],[Hide: Rebate]]>0,Table_PI[[#This Row],[Hide: Rebate]]=\"No Rebate\")),TRUE,\"MI: Line Item \" & $A50),\"\")","v":""}]
[{"$f":"IF(Table_PI[[#This Row],[Hide: Formula Name]]<>\"\",MAX($A$2:A50)+1,\"\")","v":""},null,null,null,null,null,null,null,null,null,null,null,null,null,null,null,null,{"$f":"IFERROR(VLOOKUP(Table_PI[[#This Row],[Measure]],'Equipment Lookups'!$C$3:$D$23,2,FALSE),\"\")","v":""},0,{"$f":"IF(Table_PI[[#This Row],[Hide: Formula Name]]<>\"\",IFERROR(IF(AND(ISNUMBER(Table_PI[[#This Row],[Hide: Rebate]]),Table_PI[[#This Row],[Hide: Rebate]]>0), IF($S$401>=50, IF(AND(ProjectStage=\"(Installed)\",$S$401>'Customer Information'!$BC$21), 'Customer Information'!$BC$21*Table_PI[[#This Row],[Hide: Rebate]]/$S$401, IF($S$401<=300000, Table_PI[[#This Row],[Hide: Rebate]], ROUND(300000*Table_PI[[#This Row],[Hide: Rebate]]/'Project Information'!$S$401,2))), \"Does not meet $50 Minimum\"), \"No Rebate\"), \"No Rebate\"),0)","v":0},0,0,0,0,0,0,0,0,0,{"$f":"IF(Table_PI[[#This Row],[Hide: Formula Name]]<>\"\",IF(AND(Table_PI[[#This Row],[Hide: Formula Name]]<>\"\",OR(Table_PI[[#This Row],[Hide: Rebate]]>0,Table_PI[[#This Row],[Hide: Rebate]]=\"No Rebate\")),TRUE,\"MI: Line Item \" & $A51),\"\")","v":""}]
[{"$f":"IF(Table_PI[[#This Row],[Hide: Formula Name]]<>\"\",MAX($A$2:A51)+1,\"\")","v":""},null,null,null,null,null,null,null,null,null,null,null,null,null,null,null,null,{"$f":"IFERROR(VLOOKUP(Table_PI[[#This Row],[Measure]],'Equipment Lookups'!$C$3:$D$23,2,FALSE),\"\")","v":""},0,{"$f":"IF(Table_PI[[#This Row],[Hide: Formula Name]]<>\"\",IFERROR(IF(AND(ISNUMBER(Table_PI[[#This Row],[Hide: Rebate]]),Table_PI[[#This Row],[Hide: Rebate]]>0), IF($S$401>=50, IF(AND(ProjectStage=\"(Installed)\",$S$401>'Customer Information'!$BC$21), 'Customer Information'!$BC$21*Table_PI[[#This Row],[Hide: Rebate]]/$S$401, IF($S$401<=300000, Table_PI[[#This Row],[Hide: Rebate]], ROUND(300000*Table_PI[[#This Row],[Hide: Rebate]]/'Project Information'!$S$401,2))), \"Does not meet $50 Minimum\"), \"No Rebate\"), \"No Rebate\"),0)","v":0},0,0,0,0,0,0,0,0,0,{"$f":"IF(Table_PI[[#This Row],[Hide: Formula Name]]<>\"\",IF(AND(Table_PI[[#This Row],[Hide: Formula Name]]<>\"\",OR(Table_PI[[#This Row],[Hide: Rebate]]>0,Table_PI[[#This Row],[Hide: Rebate]]=\"No Rebate\")),TRUE,\"MI: Line Item \" & $A52),\"\")","v":""}]
[{"$f":"IF(Table_PI[[#This Row],[Hide: Formula Name]]<>\"\",MAX($A$2:A52)+1,\"\")","v":""},null,null,null,null,null,null,null,null,null,null,null,null,null,null,null,null,{"$f":"IFERROR(VLOOKUP(Table_PI[[#This Row],[Measure]],'Equipment Lookups'!$C$3:$D$23,2,FALSE),\"\")","v":""},0,{"$f":"IF(Table_PI[[#This Row],[Hide: Formula Name]]<>\"\",IFERROR(IF(AND(ISNUMBER(Table_PI[[#This Row],[Hide: Rebate]]),Table_PI[[#This Row],[Hide: Rebate]]>0), IF($S$401>=50, IF(AND(ProjectStage=\"(Installed)\",$S$401>'Customer Information'!$BC$21), 'Customer Information'!$BC$21*Table_PI[[#This Row],[Hide: Rebate]]/$S$401, IF($S$401<=300000, Table_PI[[#This Row],[Hide: Rebate]], ROUND(300000*Table_PI[[#This Row],[Hide: Rebate]]/'Project Information'!$S$401,2))), \"Does not meet $50 Minimum\"), \"No Rebate\"), \"No Rebate\"),0)","v":0},0,0,0,0,0,0,0,0,0,{"$f":"IF(Table_PI[[#This Row],[Hide: Formula Name]]<>\"\",IF(AND(Table_PI[[#This Row],[Hide: Formula Name]]<>\"\",OR(Table_PI[[#This Row],[Hide: Rebate]]>0,Table_PI[[#This Row],[Hide: Rebate]]=\"No Rebate\")),TRUE,\"MI: Line Item \" & $A53),\"\")","v":""}]
[{"$f":"IF(Table_PI[[#This Row],[Hide: Formula Name]]<>\"\",MAX($A$2:A53)+1,\"\")","v":""},null,null,null,null,null,null,null,null,null,null,null,null,null,null,null,null,{"$f":"IFERROR(VLOOKUP(Table_PI[[#This Row],[Measure]],'Equipment Lookups'!$C$3:$D$23,2,FALSE),\"\")","v":""},0,{"$f":"IF(Table_PI[[#This Row],[Hide: Formula Name]]<>\"\",IFERROR(IF(AND(ISNUMBER(Table_PI[[#This Row],[Hide: Rebate]]),Table_PI[[#This Row],[Hide: Rebate]]>0), IF($S$401>=50, IF(AND(ProjectStage=\"(Installed)\",$S$401>'Customer Information'!$BC$21), 'Customer Information'!$BC$21*Table_PI[[#This Row],[Hide: Rebate]]/$S$401, IF($S$401<=300000, Table_PI[[#This Row],[Hide: Rebate]], ROUND(300000*Table_PI[[#This Row],[Hide: Rebate]]/'Project Information'!$S$401,2))), \"Does not meet $50 Minimum\"), \"No Rebate\"), \"No Rebate\"),0)","v":0},0,0,0,0,0,0,0,0,0,{"$f":"IF(Table_PI[[#This Row],[Hide: Formula Name]]<>\"\",IF(AND(Table_PI[[#This Row],[Hide: Formula Name]]<>\"\",OR(Table_PI[[#This Row],[Hide: Rebate]]>0,Table_PI[[#This Row],[Hide: Rebate]]=\"No Rebate\")),TRUE,\"MI: Line Item \" & $A54),\"\")","v":""}]
[{"$f":"IF(Table_PI[[#This Row],[Hide: Formula Name]]<>\"\",MAX($A$2:A54)+1,\"\")","v":""},null,null,null,null,null,null,null,null,null,null,null,null,null,null,null,null,{"$f":"IFERROR(VLOOKUP(Table_PI[[#This Row],[Measure]],'Equipment Lookups'!$C$3:$D$23,2,FALSE),\"\")","v":""},0,{"$f":"IF(Table_PI[[#This Row],[Hide: Formula Name]]<>\"\",IFERROR(IF(AND(ISNUMBER(Table_PI[[#This Row],[Hide: Rebate]]),Table_PI[[#This Row],[Hide: Rebate]]>0), IF($S$401>=50, IF(AND(ProjectStage=\"(Installed)\",$S$401>'Customer Information'!$BC$21), 'Customer Information'!$BC$21*Table_PI[[#This Row],[Hide: Rebate]]/$S$401, IF($S$401<=300000, Table_PI[[#This Row],[Hide: Rebate]], ROUND(300000*Table_PI[[#This Row],[Hide: Rebate]]/'Project Information'!$S$401,2))), \"Does not meet $50 Minimum\"), \"No Rebate\"), \"No Rebate\"),0)","v":0},0,0,0,0,0,0,0,0,0,{"$f":"IF(Table_PI[[#This Row],[Hide: Formula Name]]<>\"\",IF(AND(Table_PI[[#This Row],[Hide: Formula Name]]<>\"\",OR(Table_PI[[#This Row],[Hide: Rebate]]>0,Table_PI[[#This Row],[Hide: Rebate]]=\"No Rebate\")),TRUE,\"MI: Line Item \" & $A55),\"\")","v":""}]
[{"$f":"IF(Table_PI[[#This Row],[Hide: Formula Name]]<>\"\",MAX($A$2:A55)+1,\"\")","v":""},null,null,null,null,null,null,null,null,null,null,null,null,null,null,null,null,{"$f":"IFERROR(VLOOKUP(Table_PI[[#This Row],[Measure]],'Equipment Lookups'!$C$3:$D$23,2,FALSE),\"\")","v":""},0,{"$f":"IF(Table_PI[[#This Row],[Hide: Formula Name]]<>\"\",IFERROR(IF(AND(ISNUMBER(Table_PI[[#This Row],[Hide: Rebate]]),Table_PI[[#This Row],[Hide: Rebate]]>0), IF($S$401>=50, IF(AND(ProjectStage=\"(Installed)\",$S$401>'Customer Information'!$BC$21), 'Customer Information'!$BC$21*Table_PI[[#This Row],[Hide: Rebate]]/$S$401, IF($S$401<=300000, Table_PI[[#This Row],[Hide: Rebate]], ROUND(300000*Table_PI[[#This Row],[Hide: Rebate]]/'Project Information'!$S$401,2))), \"Does not meet $50 Minimum\"), \"No Rebate\"), \"No Rebate\"),0)","v":0},0,0,0,0,0,0,0,0,0,{"$f":"IF(Table_PI[[#This Row],[Hide: Formula Name]]<>\"\",IF(AND(Table_PI[[#This Row],[Hide: Formula Name]]<>\"\",OR(Table_PI[[#This Row],[Hide: Rebate]]>0,Table_PI[[#This Row],[Hide: Rebate]]=\"No Rebate\")),TRUE,\"MI: Line Item \" & $A56),\"\")","v":""}]
[{"$f":"IF(Table_PI[[#This Row],[Hide: Formula Name]]<>\"\",MAX($A$2:A56)+1,\"\")","v":""},null,null,null,null,null,null,null,null,null,null,null,null,null,null,null,null,{"$f":"IFERROR(VLOOKUP(Table_PI[[#This Row],[Measure]],'Equipment Lookups'!$C$3:$D$23,2,FALSE),\"\")","v":""},0,{"$f":"IF(Table_PI[[#This Row],[Hide: Formula Name]]<>\"\",IFERROR(IF(AND(ISNUMBER(Table_PI[[#This Row],[Hide: Rebate]]),Table_PI[[#This Row],[Hide: Rebate]]>0), IF($S$401>=50, IF(AND(ProjectStage=\"(Installed)\",$S$401>'Customer Information'!$BC$21), 'Customer Information'!$BC$21*Table_PI[[#This Row],[Hide: Rebate]]/$S$401, IF($S$401<=300000, Table_PI[[#This Row],[Hide: Rebate]], ROUND(300000*Table_PI[[#This Row],[Hide: Rebate]]/'Project Information'!$S$401,2))), \"Does not meet $50 Minimum\"), \"No Rebate\"), \"No Rebate\"),0)","v":0},0,0,0,0,0,0,0,0,0,{"$f":"IF(Table_PI[[#This Row],[Hide: Formula Name]]<>\"\",IF(AND(Table_PI[[#This Row],[Hide: Formula Name]]<>\"\",OR(Table_PI[[#This Row],[Hide: Rebate]]>0,Table_PI[[#This Row],[Hide: Rebate]]=\"No Rebate\")),TRUE,\"MI: Line Item \" & $A57),\"\")","v":""}]
[{"$f":"IF(Table_PI[[#This Row],[Hide: Formula Name]]<>\"\",MAX($A$2:A57)+1,\"\")","v":""},null,null,null,null,null,null,null,null,null,null,null,null,null,null,null,null,{"$f":"IFERROR(VLOOKUP(Table_PI[[#This Row],[Measure]],'Equipment Lookups'!$C$3:$D$23,2,FALSE),\"\")","v":""},0,{"$f":"IF(Table_PI[[#This Row],[Hide: Formula Name]]<>\"\",IFERROR(IF(AND(ISNUMBER(Table_PI[[#This Row],[Hide: Rebate]]),Table_PI[[#This Row],[Hide: Rebate]]>0), IF($S$401>=50, IF(AND(ProjectStage=\"(Installed)\",$S$401>'Customer Information'!$BC$21), 'Customer Information'!$BC$21*Table_PI[[#This Row],[Hide: Rebate]]/$S$401, IF($S$401<=300000, Table_PI[[#This Row],[Hide: Rebate]], ROUND(300000*Table_PI[[#This Row],[Hide: Rebate]]/'Project Information'!$S$401,2))), \"Does not meet $50 Minimum\"), \"No Rebate\"), \"No Rebate\"),0)","v":0},0,0,0,0,0,0,0,0,0,{"$f":"IF(Table_PI[[#This Row],[Hide: Formula Name]]<>\"\",IF(AND(Table_PI[[#This Row],[Hide: Formula Name]]<>\"\",OR(Table_PI[[#This Row],[Hide: Rebate]]>0,Table_PI[[#This Row],[Hide: Rebate]]=\"No Rebate\")),TRUE,\"MI: Line Item \" & $A58),\"\")","v":""}]
[{"$f":"IF(Table_PI[[#This Row],[Hide: Formula Name]]<>\"\",MAX($A$2:A58)+1,\"\")","v":""},null,null,null,null,null,null,null,null,null,null,null,null,null,null,null,null,{"$f":"IFERROR(VLOOKUP(Table_PI[[#This Row],[Measure]],'Equipment Lookups'!$C$3:$D$23,2,FALSE),\"\")","v":""},0,{"$f":"IF(Table_PI[[#This Row],[Hide: Formula Name]]<>\"\",IFERROR(IF(AND(ISNUMBER(Table_PI[[#This Row],[Hide: Rebate]]),Table_PI[[#This Row],[Hide: Rebate]]>0), IF($S$401>=50, IF(AND(ProjectStage=\"(Installed)\",$S$401>'Customer Information'!$BC$21), 'Customer Information'!$BC$21*Table_PI[[#This Row],[Hide: Rebate]]/$S$401, IF($S$401<=300000, Table_PI[[#This Row],[Hide: Rebate]], ROUND(300000*Table_PI[[#This Row],[Hide: Rebate]]/'Project Information'!$S$401,2))), \"Does not meet $50 Minimum\"), \"No Rebate\"), \"No Rebate\"),0)","v":0},0,0,0,0,0,0,0,0,0,{"$f":"IF(Table_PI[[#This Row],[Hide: Formula Name]]<>\"\",IF(AND(Table_PI[[#This Row],[Hide: Formula Name]]<>\"\",OR(Table_PI[[#This Row],[Hide: Rebate]]>0,Table_PI[[#This Row],[Hide: Rebate]]=\"No Rebate\")),TRUE,\"MI: Line Item \" & $A59),\"\")","v":""}]
[{"$f":"IF(Table_PI[[#This Row],[Hide: Formula Name]]<>\"\",MAX($A$2:A59)+1,\"\")","v":""},null,null,null,null,null,null,null,null,null,null,null,null,null,null,null,null,{"$f":"IFERROR(VLOOKUP(Table_PI[[#This Row],[Measure]],'Equipment Lookups'!$C$3:$D$23,2,FALSE),\"\")","v":""},0,{"$f":"IF(Table_PI[[#This Row],[Hide: Formula Name]]<>\"\",IFERROR(IF(AND(ISNUMBER(Table_PI[[#This Row],[Hide: Rebate]]),Table_PI[[#This Row],[Hide: Rebate]]>0), IF($S$401>=50, IF(AND(ProjectStage=\"(Installed)\",$S$401>'Customer Information'!$BC$21), 'Customer Information'!$BC$21*Table_PI[[#This Row],[Hide: Rebate]]/$S$401, IF($S$401<=300000, Table_PI[[#This Row],[Hide: Rebate]], ROUND(300000*Table_PI[[#This Row],[Hide: Rebate]]/'Project Information'!$S$401,2))), \"Does not meet $50 Minimum\"), \"No Rebate\"), \"No Rebate\"),0)","v":0},0,0,0,0,0,0,0,0,0,{"$f":"IF(Table_PI[[#This Row],[Hide: Formula Name]]<>\"\",IF(AND(Table_PI[[#This Row],[Hide: Formula Name]]<>\"\",OR(Table_PI[[#This Row],[Hide: Rebate]]>0,Table_PI[[#This Row],[Hide: Rebate]]=\"No Rebate\")),TRUE,\"MI: Line Item \" & $A60),\"\")","v":""}]
[{"$f":"IF(Table_PI[[#This Row],[Hide: Formula Name]]<>\"\",MAX($A$2:A60)+1,\"\")","v":""},null,null,null,null,null,null,null,null,null,null,null,null,null,null,null,null,{"$f":"IFERROR(VLOOKUP(Table_PI[[#This Row],[Measure]],'Equipment Lookups'!$C$3:$D$23,2,FALSE),\"\")","v":""},0,{"$f":"IF(Table_PI[[#This Row],[Hide: Formula Name]]<>\"\",IFERROR(IF(AND(ISNUMBER(Table_PI[[#This Row],[Hide: Rebate]]),Table_PI[[#This Row],[Hide: Rebate]]>0), IF($S$401>=50, IF(AND(ProjectStage=\"(Installed)\",$S$401>'Customer Information'!$BC$21), 'Customer Information'!$BC$21*Table_PI[[#This Row],[Hide: Rebate]]/$S$401, IF($S$401<=300000, Table_PI[[#This Row],[Hide: Rebate]], ROUND(300000*Table_PI[[#This Row],[Hide: Rebate]]/'Project Information'!$S$401,2))), \"Does not meet $50 Minimum\"), \"No Rebate\"), \"No Rebate\"),0)","v":0},0,0,0,0,0,0,0,0,0,{"$f":"IF(Table_PI[[#This Row],[Hide: Formula Name]]<>\"\",IF(AND(Table_PI[[#This Row],[Hide: Formula Name]]<>\"\",OR(Table_PI[[#This Row],[Hide: Rebate]]>0,Table_PI[[#This Row],[Hide: Rebate]]=\"No Rebate\")),TRUE,\"MI: Line Item \" & $A61),\"\")","v":""}]
[{"$f":"IF(Table_PI[[#This Row],[Hide: Formula Name]]<>\"\",MAX($A$2:A61)+1,\"\")","v":""},null,null,null,null,null,null,null,null,null,null,null,null,null,null,null,null,{"$f":"IFERROR(VLOOKUP(Table_PI[[#This Row],[Measure]],'Equipment Lookups'!$C$3:$D$23,2,FALSE),\"\")","v":""},0,{"$f":"IF(Table_PI[[#This Row],[Hide: Formula Name]]<>\"\",IFERROR(IF(AND(ISNUMBER(Table_PI[[#This Row],[Hide: Rebate]]),Table_PI[[#This Row],[Hide: Rebate]]>0), IF($S$401>=50, IF(AND(ProjectStage=\"(Installed)\",$S$401>'Customer Information'!$BC$21), 'Customer Information'!$BC$21*Table_PI[[#This Row],[Hide: Rebate]]/$S$401, IF($S$401<=300000, Table_PI[[#This Row],[Hide: Rebate]], ROUND(300000*Table_PI[[#This Row],[Hide: Rebate]]/'Project Information'!$S$401,2))), \"Does not meet $50 Minimum\"), \"No Rebate\"), \"No Rebate\"),0)","v":0},0,0,0,0,0,0,0,0,0,{"$f":"IF(Table_PI[[#This Row],[Hide: Formula Name]]<>\"\",IF(AND(Table_PI[[#This Row],[Hide: Formula Name]]<>\"\",OR(Table_PI[[#This Row],[Hide: Rebate]]>0,Table_PI[[#This Row],[Hide: Rebate]]=\"No Rebate\")),TRUE,\"MI: Line Item \" & $A62),\"\")","v":""}]
[{"$f":"IF(Table_PI[[#This Row],[Hide: Formula Name]]<>\"\",MAX($A$2:A62)+1,\"\")","v":""},null,null,null,null,null,null,null,null,null,null,null,null,null,null,null,null,{"$f":"IFERROR(VLOOKUP(Table_PI[[#This Row],[Measure]],'Equipment Lookups'!$C$3:$D$23,2,FALSE),\"\")","v":""},0,{"$f":"IF(Table_PI[[#This Row],[Hide: Formula Name]]<>\"\",IFERROR(IF(AND(ISNUMBER(Table_PI[[#This Row],[Hide: Rebate]]),Table_PI[[#This Row],[Hide: Rebate]]>0), IF($S$401>=50, IF(AND(ProjectStage=\"(Installed)\",$S$401>'Customer Information'!$BC$21), 'Customer Information'!$BC$21*Table_PI[[#This Row],[Hide: Rebate]]/$S$401, IF($S$401<=300000, Table_PI[[#This Row],[Hide: Rebate]], ROUND(300000*Table_PI[[#This Row],[Hide: Rebate]]/'Project Information'!$S$401,2))), \"Does not meet $50 Minimum\"), \"No Rebate\"), \"No Rebate\"),0)","v":0},0,0,0,0,0,0,0,0,0,{"$f":"IF(Table_PI[[#This Row],[Hide: Formula Name]]<>\"\",IF(AND(Table_PI[[#This Row],[Hide: Formula Name]]<>\"\",OR(Table_PI[[#This Row],[Hide: Rebate]]>0,Table_PI[[#This Row],[Hide: Rebate]]=\"No Rebate\")),TRUE,\"MI: Line Item \" & $A63),\"\")","v":""}]
[{"$f":"IF(Table_PI[[#This Row],[Hide: Formula Name]]<>\"\",MAX($A$2:A63)+1,\"\")","v":""},null,null,null,null,null,null,null,null,null,null,null,null,null,null,null,null,{"$f":"IFERROR(VLOOKUP(Table_PI[[#This Row],[Measure]],'Equipment Lookups'!$C$3:$D$23,2,FALSE),\"\")","v":""},0,{"$f":"IF(Table_PI[[#This Row],[Hide: Formula Name]]<>\"\",IFERROR(IF(AND(ISNUMBER(Table_PI[[#This Row],[Hide: Rebate]]),Table_PI[[#This Row],[Hide: Rebate]]>0), IF($S$401>=50, IF(AND(ProjectStage=\"(Installed)\",$S$401>'Customer Information'!$BC$21), 'Customer Information'!$BC$21*Table_PI[[#This Row],[Hide: Rebate]]/$S$401, IF($S$401<=300000, Table_PI[[#This Row],[Hide: Rebate]], ROUND(300000*Table_PI[[#This Row],[Hide: Rebate]]/'Project Information'!$S$401,2))), \"Does not meet $50 Minimum\"), \"No Rebate\"), \"No Rebate\"),0)","v":0},0,0,0,0,0,0,0,0,0,{"$f":"IF(Table_PI[[#This Row],[Hide: Formula Name]]<>\"\",IF(AND(Table_PI[[#This Row],[Hide: Formula Name]]<>\"\",OR(Table_PI[[#This Row],[Hide: Rebate]]>0,Table_PI[[#This Row],[Hide: Rebate]]=\"No Rebate\")),TRUE,\"MI: Line Item \" & $A64),\"\")","v":""}]
[{"$f":"IF(Table_PI[[#This Row],[Hide: Formula Name]]<>\"\",MAX($A$2:A64)+1,\"\")","v":""},null,null,null,null,null,null,null,null,null,null,null,null,null,null,null,null,{"$f":"IFERROR(VLOOKUP(Table_PI[[#This Row],[Measure]],'Equipment Lookups'!$C$3:$D$23,2,FALSE),\"\")","v":""},0,{"$f":"IF(Table_PI[[#This Row],[Hide: Formula Name]]<>\"\",IFERROR(IF(AND(ISNUMBER(Table_PI[[#This Row],[Hide: Rebate]]),Table_PI[[#This Row],[Hide: Rebate]]>0), IF($S$401>=50, IF(AND(ProjectStage=\"(Installed)\",$S$401>'Customer Information'!$BC$21), 'Customer Information'!$BC$21*Table_PI[[#This Row],[Hide: Rebate]]/$S$401, IF($S$401<=300000, Table_PI[[#This Row],[Hide: Rebate]], ROUND(300000*Table_PI[[#This Row],[Hide: Rebate]]/'Project Information'!$S$401,2))), \"Does not meet $50 Minimum\"), \"No Rebate\"), \"No Rebate\"),0)","v":0},0,0,0,0,0,0,0,0,0,{"$f":"IF(Table_PI[[#This Row],[Hide: Formula Name]]<>\"\",IF(AND(Table_PI[[#This Row],[Hide: Formula Name]]<>\"\",OR(Table_PI[[#This Row],[Hide: Rebate]]>0,Table_PI[[#This Row],[Hide: Rebate]]=\"No Rebate\")),TRUE,\"MI: Line Item \" & $A65),\"\")","v":""}]
[{"$f":"IF(Table_PI[[#This Row],[Hide: Formula Name]]<>\"\",MAX($A$2:A65)+1,\"\")","v":""},null,null,null,null,null,null,null,null,null,null,null,null,null,null,null,null,{"$f":"IFERROR(VLOOKUP(Table_PI[[#This Row],[Measure]],'Equipment Lookups'!$C$3:$D$23,2,FALSE),\"\")","v":""},0,{"$f":"IF(Table_PI[[#This Row],[Hide: Formula Name]]<>\"\",IFERROR(IF(AND(ISNUMBER(Table_PI[[#This Row],[Hide: Rebate]]),Table_PI[[#This Row],[Hide: Rebate]]>0), IF($S$401>=50, IF(AND(ProjectStage=\"(Installed)\",$S$401>'Customer Information'!$BC$21), 'Customer Information'!$BC$21*Table_PI[[#This Row],[Hide: Rebate]]/$S$401, IF($S$401<=300000, Table_PI[[#This Row],[Hide: Rebate]], ROUND(300000*Table_PI[[#This Row],[Hide: Rebate]]/'Project Information'!$S$401,2))), \"Does not meet $50 Minimum\"), \"No Rebate\"), \"No Rebate\"),0)","v":0},0,0,0,0,0,0,0,0,0,{"$f":"IF(Table_PI[[#This Row],[Hide: Formula Name]]<>\"\",IF(AND(Table_PI[[#This Row],[Hide: Formula Name]]<>\"\",OR(Table_PI[[#This Row],[Hide: Rebate]]>0,Table_PI[[#This Row],[Hide: Rebate]]=\"No Rebate\")),TRUE,\"MI: Line Item \" & $A66),\"\")","v":""}]
[{"$f":"IF(Table_PI[[#This Row],[Hide: Formula Name]]<>\"\",MAX($A$2:A66)+1,\"\")","v":""},null,null,null,null,null,null,null,null,null,null,null,null,null,null,null,null,{"$f":"IFERROR(VLOOKUP(Table_PI[[#This Row],[Measure]],'Equipment Lookups'!$C$3:$D$23,2,FALSE),\"\")","v":""},0,{"$f":"IF(Table_PI[[#This Row],[Hide: Formula Name]]<>\"\",IFERROR(IF(AND(ISNUMBER(Table_PI[[#This Row],[Hide: Rebate]]),Table_PI[[#This Row],[Hide: Rebate]]>0), IF($S$401>=50, IF(AND(ProjectStage=\"(Installed)\",$S$401>'Customer Information'!$BC$21), 'Customer Information'!$BC$21*Table_PI[[#This Row],[Hide: Rebate]]/$S$401, IF($S$401<=300000, Table_PI[[#This Row],[Hide: Rebate]], ROUND(300000*Table_PI[[#This Row],[Hide: Rebate]]/'Project Information'!$S$401,2))), \"Does not meet $50 Minimum\"), \"No Rebate\"), \"No Rebate\"),0)","v":0},0,0,0,0,0,0,0,0,0,{"$f":"IF(Table_PI[[#This Row],[Hide: Formula Name]]<>\"\",IF(AND(Table_PI[[#This Row],[Hide: Formula Name]]<>\"\",OR(Table_PI[[#This Row],[Hide: Rebate]]>0,Table_PI[[#This Row],[Hide: Rebate]]=\"No Rebate\")),TRUE,\"MI: Line Item \" & $A67),\"\")","v":""}]
[{"$f":"IF(Table_PI[[#This Row],[Hide: Formula Name]]<>\"\",MAX($A$2:A67)+1,\"\")","v":""},null,null,null,null,null,null,null,null,null,null,null,null,null,null,null,null,{"$f":"IFERROR(VLOOKUP(Table_PI[[#This Row],[Measure]],'Equipment Lookups'!$C$3:$D$23,2,FALSE),\"\")","v":""},0,{"$f":"IF(Table_PI[[#This Row],[Hide: Formula Name]]<>\"\",IFERROR(IF(AND(ISNUMBER(Table_PI[[#This Row],[Hide: Rebate]]),Table_PI[[#This Row],[Hide: Rebate]]>0), IF($S$401>=50, IF(AND(ProjectStage=\"(Installed)\",$S$401>'Customer Information'!$BC$21), 'Customer Information'!$BC$21*Table_PI[[#This Row],[Hide: Rebate]]/$S$401, IF($S$401<=300000, Table_PI[[#This Row],[Hide: Rebate]], ROUND(300000*Table_PI[[#This Row],[Hide: Rebate]]/'Project Information'!$S$401,2))), \"Does not meet $50 Minimum\"), \"No Rebate\"), \"No Rebate\"),0)","v":0},0,0,0,0,0,0,0,0,0,{"$f":"IF(Table_PI[[#This Row],[Hide: Formula Name]]<>\"\",IF(AND(Table_PI[[#This Row],[Hide: Formula Name]]<>\"\",OR(Table_PI[[#This Row],[Hide: Rebate]]>0,Table_PI[[#This Row],[Hide: Rebate]]=\"No Rebate\")),TRUE,\"MI: Line Item \" & $A68),\"\")","v":""}]
[{"$f":"IF(Table_PI[[#This Row],[Hide: Formula Name]]<>\"\",MAX($A$2:A68)+1,\"\")","v":""},null,null,null,null,null,null,null,null,null,null,null,null,null,null,null,null,{"$f":"IFERROR(VLOOKUP(Table_PI[[#This Row],[Measure]],'Equipment Lookups'!$C$3:$D$23,2,FALSE),\"\")","v":""},0,{"$f":"IF(Table_PI[[#This Row],[Hide: Formula Name]]<>\"\",IFERROR(IF(AND(ISNUMBER(Table_PI[[#This Row],[Hide: Rebate]]),Table_PI[[#This Row],[Hide: Rebate]]>0), IF($S$401>=50, IF(AND(ProjectStage=\"(Installed)\",$S$401>'Customer Information'!$BC$21), 'Customer Information'!$BC$21*Table_PI[[#This Row],[Hide: Rebate]]/$S$401, IF($S$401<=300000, Table_PI[[#This Row],[Hide: Rebate]], ROUND(300000*Table_PI[[#This Row],[Hide: Rebate]]/'Project Information'!$S$401,2))), \"Does not meet $50 Minimum\"), \"No Rebate\"), \"No Rebate\"),0)","v":0},0,0,0,0,0,0,0,0,0,{"$f":"IF(Table_PI[[#This Row],[Hide: Formula Name]]<>\"\",IF(AND(Table_PI[[#This Row],[Hide: Formula Name]]<>\"\",OR(Table_PI[[#This Row],[Hide: Rebate]]>0,Table_PI[[#This Row],[Hide: Rebate]]=\"No Rebate\")),TRUE,\"MI: Line Item \" & $A69),\"\")","v":""}]
[{"$f":"IF(Table_PI[[#This Row],[Hide: Formula Name]]<>\"\",MAX($A$2:A69)+1,\"\")","v":""},null,null,null,null,null,null,null,null,null,null,null,null,null,null,null,null,{"$f":"IFERROR(VLOOKUP(Table_PI[[#This Row],[Measure]],'Equipment Lookups'!$C$3:$D$23,2,FALSE),\"\")","v":""},0,{"$f":"IF(Table_PI[[#This Row],[Hide: Formula Name]]<>\"\",IFERROR(IF(AND(ISNUMBER(Table_PI[[#This Row],[Hide: Rebate]]),Table_PI[[#This Row],[Hide: Rebate]]>0), IF($S$401>=50, IF(AND(ProjectStage=\"(Installed)\",$S$401>'Customer Information'!$BC$21), 'Customer Information'!$BC$21*Table_PI[[#This Row],[Hide: Rebate]]/$S$401, IF($S$401<=300000, Table_PI[[#This Row],[Hide: Rebate]], ROUND(300000*Table_PI[[#This Row],[Hide: Rebate]]/'Project Information'!$S$401,2))), \"Does not meet $50 Minimum\"), \"No Rebate\"), \"No Rebate\"),0)","v":0},0,0,0,0,0,0,0,0,0,{"$f":"IF(Table_PI[[#This Row],[Hide: Formula Name]]<>\"\",IF(AND(Table_PI[[#This Row],[Hide: Formula Name]]<>\"\",OR(Table_PI[[#This Row],[Hide: Rebate]]>0,Table_PI[[#This Row],[Hide: Rebate]]=\"No Rebate\")),TRUE,\"MI: Line Item \" & $A70),\"\")","v":""}]
[{"$f":"IF(Table_PI[[#This Row],[Hide: Formula Name]]<>\"\",MAX($A$2:A70)+1,\"\")","v":""},null,null,null,null,null,null,null,null,null,null,null,null,null,null,null,null,{"$f":"IFERROR(VLOOKUP(Table_PI[[#This Row],[Measure]],'Equipment Lookups'!$C$3:$D$23,2,FALSE),\"\")","v":""},0,{"$f":"IF(Table_PI[[#This Row],[Hide: Formula Name]]<>\"\",IFERROR(IF(AND(ISNUMBER(Table_PI[[#This Row],[Hide: Rebate]]),Table_PI[[#This Row],[Hide: Rebate]]>0), IF($S$401>=50, IF(AND(ProjectStage=\"(Installed)\",$S$401>'Customer Information'!$BC$21), 'Customer Information'!$BC$21*Table_PI[[#This Row],[Hide: Rebate]]/$S$401, IF($S$401<=300000, Table_PI[[#This Row],[Hide: Rebate]], ROUND(300000*Table_PI[[#This Row],[Hide: Rebate]]/'Project Information'!$S$401,2))), \"Does not meet $50 Minimum\"), \"No Rebate\"), \"No Rebate\"),0)","v":0},0,0,0,0,0,0,0,0,0,{"$f":"IF(Table_PI[[#This Row],[Hide: Formula Name]]<>\"\",IF(AND(Table_PI[[#This Row],[Hide: Formula Name]]<>\"\",OR(Table_PI[[#This Row],[Hide: Rebate]]>0,Table_PI[[#This Row],[Hide: Rebate]]=\"No Rebate\")),TRUE,\"MI: Line Item \" & $A71),\"\")","v":""}]
[{"$f":"IF(Table_PI[[#This Row],[Hide: Formula Name]]<>\"\",MAX($A$2:A71)+1,\"\")","v":""},null,null,null,null,null,null,null,null,null,null,null,null,null,null,null,null,{"$f":"IFERROR(VLOOKUP(Table_PI[[#This Row],[Measure]],'Equipment Lookups'!$C$3:$D$23,2,FALSE),\"\")","v":""},0,{"$f":"IF(Table_PI[[#This Row],[Hide: Formula Name]]<>\"\",IFERROR(IF(AND(ISNUMBER(Table_PI[[#This Row],[Hide: Rebate]]),Table_PI[[#This Row],[Hide: Rebate]]>0), IF($S$401>=50, IF(AND(ProjectStage=\"(Installed)\",$S$401>'Customer Information'!$BC$21), 'Customer Information'!$BC$21*Table_PI[[#This Row],[Hide: Rebate]]/$S$401, IF($S$401<=300000, Table_PI[[#This Row],[Hide: Rebate]], ROUND(300000*Table_PI[[#This Row],[Hide: Rebate]]/'Project Information'!$S$401,2))), \"Does not meet $50 Minimum\"), \"No Rebate\"), \"No Rebate\"),0)","v":0},0,0,0,0,0,0,0,0,0,{"$f":"IF(Table_PI[[#This Row],[Hide: Formula Name]]<>\"\",IF(AND(Table_PI[[#This Row],[Hide: Formula Name]]<>\"\",OR(Table_PI[[#This Row],[Hide: Rebate]]>0,Table_PI[[#This Row],[Hide: Rebate]]=\"No Rebate\")),TRUE,\"MI: Line Item \" & $A72),\"\")","v":""}]
[{"$f":"IF(Table_PI[[#This Row],[Hide: Formula Name]]<>\"\",MAX($A$2:A72)+1,\"\")","v":""},null,null,null,null,null,null,null,null,null,null,null,null,null,null,null,null,{"$f":"IFERROR(VLOOKUP(Table_PI[[#This Row],[Measure]],'Equipment Lookups'!$C$3:$D$23,2,FALSE),\"\")","v":""},0,{"$f":"IF(Table_PI[[#This Row],[Hide: Formula Name]]<>\"\",IFERROR(IF(AND(ISNUMBER(Table_PI[[#This Row],[Hide: Rebate]]),Table_PI[[#This Row],[Hide: Rebate]]>0), IF($S$401>=50, IF(AND(ProjectStage=\"(Installed)\",$S$401>'Customer Information'!$BC$21), 'Customer Information'!$BC$21*Table_PI[[#This Row],[Hide: Rebate]]/$S$401, IF($S$401<=300000, Table_PI[[#This Row],[Hide: Rebate]], ROUND(300000*Table_PI[[#This Row],[Hide: Rebate]]/'Project Information'!$S$401,2))), \"Does not meet $50 Minimum\"), \"No Rebate\"), \"No Rebate\"),0)","v":0},0,0,0,0,0,0,0,0,0,{"$f":"IF(Table_PI[[#This Row],[Hide: Formula Name]]<>\"\",IF(AND(Table_PI[[#This Row],[Hide: Formula Name]]<>\"\",OR(Table_PI[[#This Row],[Hide: Rebate]]>0,Table_PI[[#This Row],[Hide: Rebate]]=\"No Rebate\")),TRUE,\"MI: Line Item \" & $A73),\"\")","v":""}]
[{"$f":"IF(Table_PI[[#This Row],[Hide: Formula Name]]<>\"\",MAX($A$2:A73)+1,\"\")","v":""},null,null,null,null,null,null,null,null,null,null,null,null,null,null,null,null,{"$f":"IFERROR(VLOOKUP(Table_PI[[#This Row],[Measure]],'Equipment Lookups'!$C$3:$D$23,2,FALSE),\"\")","v":""},0,{"$f":"IF(Table_PI[[#This Row],[Hide: Formula Name]]<>\"\",IFERROR(IF(AND(ISNUMBER(Table_PI[[#This Row],[Hide: Rebate]]),Table_PI[[#This Row],[Hide: Rebate]]>0), IF($S$401>=50, IF(AND(ProjectStage=\"(Installed)\",$S$401>'Customer Information'!$BC$21), 'Customer Information'!$BC$21*Table_PI[[#This Row],[Hide: Rebate]]/$S$401, IF($S$401<=300000, Table_PI[[#This Row],[Hide: Rebate]], ROUND(300000*Table_PI[[#This Row],[Hide: Rebate]]/'Project Information'!$S$401,2))), \"Does not meet $50 Minimum\"), \"No Rebate\"), \"No Rebate\"),0)","v":0},0,0,0,0,0,0,0,0,0,{"$f":"IF(Table_PI[[#This Row],[Hide: Formula Name]]<>\"\",IF(AND(Table_PI[[#This Row],[Hide: Formula Name]]<>\"\",OR(Table_PI[[#This Row],[Hide: Rebate]]>0,Table_PI[[#This Row],[Hide: Rebate]]=\"No Rebate\")),TRUE,\"MI: Line Item \" & $A74),\"\")","v":""}]
[{"$f":"IF(Table_PI[[#This Row],[Hide: Formula Name]]<>\"\",MAX($A$2:A74)+1,\"\")","v":""},null,null,null,null,null,null,null,null,null,null,null,null,null,null,null,null,{"$f":"IFERROR(VLOOKUP(Table_PI[[#This Row],[Measure]],'Equipment Lookups'!$C$3:$D$23,2,FALSE),\"\")","v":""},0,{"$f":"IF(Table_PI[[#This Row],[Hide: Formula Name]]<>\"\",IFERROR(IF(AND(ISNUMBER(Table_PI[[#This Row],[Hide: Rebate]]),Table_PI[[#This Row],[Hide: Rebate]]>0), IF($S$401>=50, IF(AND(ProjectStage=\"(Installed)\",$S$401>'Customer Information'!$BC$21), 'Customer Information'!$BC$21*Table_PI[[#This Row],[Hide: Rebate]]/$S$401, IF($S$401<=300000, Table_PI[[#This Row],[Hide: Rebate]], ROUND(300000*Table_PI[[#This Row],[Hide: Rebate]]/'Project Information'!$S$401,2))), \"Does not meet $50 Minimum\"), \"No Rebate\"), \"No Rebate\"),0)","v":0},0,0,0,0,0,0,0,0,0,{"$f":"IF(Table_PI[[#This Row],[Hide: Formula Name]]<>\"\",IF(AND(Table_PI[[#This Row],[Hide: Formula Name]]<>\"\",OR(Table_PI[[#This Row],[Hide: Rebate]]>0,Table_PI[[#This Row],[Hide: Rebate]]=\"No Rebate\")),TRUE,\"MI: Line Item \" & $A75),\"\")","v":""}]
[{"$f":"IF(Table_PI[[#This Row],[Hide: Formula Name]]<>\"\",MAX($A$2:A75)+1,\"\")","v":""},null,null,null,null,null,null,null,null,null,null,null,null,null,null,null,null,{"$f":"IFERROR(VLOOKUP(Table_PI[[#This Row],[Measure]],'Equipment Lookups'!$C$3:$D$23,2,FALSE),\"\")","v":""},0,{"$f":"IF(Table_PI[[#This Row],[Hide: Formula Name]]<>\"\",IFERROR(IF(AND(ISNUMBER(Table_PI[[#This Row],[Hide: Rebate]]),Table_PI[[#This Row],[Hide: Rebate]]>0), IF($S$401>=50, IF(AND(ProjectStage=\"(Installed)\",$S$401>'Customer Information'!$BC$21), 'Customer Information'!$BC$21*Table_PI[[#This Row],[Hide: Rebate]]/$S$401, IF($S$401<=300000, Table_PI[[#This Row],[Hide: Rebate]], ROUND(300000*Table_PI[[#This Row],[Hide: Rebate]]/'Project Information'!$S$401,2))), \"Does not meet $50 Minimum\"), \"No Rebate\"), \"No Rebate\"),0)","v":0},0,0,0,0,0,0,0,0,0,{"$f":"IF(Table_PI[[#This Row],[Hide: Formula Name]]<>\"\",IF(AND(Table_PI[[#This Row],[Hide: Formula Name]]<>\"\",OR(Table_PI[[#This Row],[Hide: Rebate]]>0,Table_PI[[#This Row],[Hide: Rebate]]=\"No Rebate\")),TRUE,\"MI: Line Item \" & $A76),\"\")","v":""}]
[{"$f":"IF(Table_PI[[#This Row],[Hide: Formula Name]]<>\"\",MAX($A$2:A76)+1,\"\")","v":""},null,null,null,null,null,null,null,null,null,null,null,null,null,null,null,null,{"$f":"IFERROR(VLOOKUP(Table_PI[[#This Row],[Measure]],'Equipment Lookups'!$C$3:$D$23,2,FALSE),\"\")","v":""},0,{"$f":"IF(Table_PI[[#This Row],[Hide: Formula Name]]<>\"\",IFERROR(IF(AND(ISNUMBER(Table_PI[[#This Row],[Hide: Rebate]]),Table_PI[[#This Row],[Hide: Rebate]]>0), IF($S$401>=50, IF(AND(ProjectStage=\"(Installed)\",$S$401>'Customer Information'!$BC$21), 'Customer Information'!$BC$21*Table_PI[[#This Row],[Hide: Rebate]]/$S$401, IF($S$401<=300000, Table_PI[[#This Row],[Hide: Rebate]], ROUND(300000*Table_PI[[#This Row],[Hide: Rebate]]/'Project Information'!$S$401,2))), \"Does not meet $50 Minimum\"), \"No Rebate\"), \"No Rebate\"),0)","v":0},0,0,0,0,0,0,0,0,0,{"$f":"IF(Table_PI[[#This Row],[Hide: Formula Name]]<>\"\",IF(AND(Table_PI[[#This Row],[Hide: Formula Name]]<>\"\",OR(Table_PI[[#This Row],[Hide: Rebate]]>0,Table_PI[[#This Row],[Hide: Rebate]]=\"No Rebate\")),TRUE,\"MI: Line Item \" & $A77),\"\")","v":""}]
[{"$f":"IF(Table_PI[[#This Row],[Hide: Formula Name]]<>\"\",MAX($A$2:A77)+1,\"\")","v":""},null,null,null,null,null,null,null,null,null,null,null,null,null,null,null,null,{"$f":"IFERROR(VLOOKUP(Table_PI[[#This Row],[Measure]],'Equipment Lookups'!$C$3:$D$23,2,FALSE),\"\")","v":""},0,{"$f":"IF(Table_PI[[#This Row],[Hide: Formula Name]]<>\"\",IFERROR(IF(AND(ISNUMBER(Table_PI[[#This Row],[Hide: Rebate]]),Table_PI[[#This Row],[Hide: Rebate]]>0), IF($S$401>=50, IF(AND(ProjectStage=\"(Installed)\",$S$401>'Customer Information'!$BC$21), 'Customer Information'!$BC$21*Table_PI[[#This Row],[Hide: Rebate]]/$S$401, IF($S$401<=300000, Table_PI[[#This Row],[Hide: Rebate]], ROUND(300000*Table_PI[[#This Row],[Hide: Rebate]]/'Project Information'!$S$401,2))), \"Does not meet $50 Minimum\"), \"No Rebate\"), \"No Rebate\"),0)","v":0},0,0,0,0,0,0,0,0,0,{"$f":"IF(Table_PI[[#This Row],[Hide: Formula Name]]<>\"\",IF(AND(Table_PI[[#This Row],[Hide: Formula Name]]<>\"\",OR(Table_PI[[#This Row],[Hide: Rebate]]>0,Table_PI[[#This Row],[Hide: Rebate]]=\"No Rebate\")),TRUE,\"MI: Line Item \" & $A78),\"\")","v":""}]
[{"$f":"IF(Table_PI[[#This Row],[Hide: Formula Name]]<>\"\",MAX($A$2:A78)+1,\"\")","v":""},null,null,null,null,null,null,null,null,null,null,null,null,null,null,null,null,{"$f":"IFERROR(VLOOKUP(Table_PI[[#This Row],[Measure]],'Equipment Lookups'!$C$3:$D$23,2,FALSE),\"\")","v":""},0,{"$f":"IF(Table_PI[[#This Row],[Hide: Formula Name]]<>\"\",IFERROR(IF(AND(ISNUMBER(Table_PI[[#This Row],[Hide: Rebate]]),Table_PI[[#This Row],[Hide: Rebate]]>0), IF($S$401>=50, IF(AND(ProjectStage=\"(Installed)\",$S$401>'Customer Information'!$BC$21), 'Customer Information'!$BC$21*Table_PI[[#This Row],[Hide: Rebate]]/$S$401, IF($S$401<=300000, Table_PI[[#This Row],[Hide: Rebate]], ROUND(300000*Table_PI[[#This Row],[Hide: Rebate]]/'Project Information'!$S$401,2))), \"Does not meet $50 Minimum\"), \"No Rebate\"), \"No Rebate\"),0)","v":0},0,0,0,0,0,0,0,0,0,{"$f":"IF(Table_PI[[#This Row],[Hide: Formula Name]]<>\"\",IF(AND(Table_PI[[#This Row],[Hide: Formula Name]]<>\"\",OR(Table_PI[[#This Row],[Hide: Rebate]]>0,Table_PI[[#This Row],[Hide: Rebate]]=\"No Rebate\")),TRUE,\"MI: Line Item \" & $A79),\"\")","v":""}]
[{"$f":"IF(Table_PI[[#This Row],[Hide: Formula Name]]<>\"\",MAX($A$2:A79)+1,\"\")","v":""},null,null,null,null,null,null,null,null,null,null,null,null,null,null,null,null,{"$f":"IFERROR(VLOOKUP(Table_PI[[#This Row],[Measure]],'Equipment Lookups'!$C$3:$D$23,2,FALSE),\"\")","v":""},0,{"$f":"IF(Table_PI[[#This Row],[Hide: Formula Name]]<>\"\",IFERROR(IF(AND(ISNUMBER(Table_PI[[#This Row],[Hide: Rebate]]),Table_PI[[#This Row],[Hide: Rebate]]>0), IF($S$401>=50, IF(AND(ProjectStage=\"(Installed)\",$S$401>'Customer Information'!$BC$21), 'Customer Information'!$BC$21*Table_PI[[#This Row],[Hide: Rebate]]/$S$401, IF($S$401<=300000, Table_PI[[#This Row],[Hide: Rebate]], ROUND(300000*Table_PI[[#This Row],[Hide: Rebate]]/'Project Information'!$S$401,2))), \"Does not meet $50 Minimum\"), \"No Rebate\"), \"No Rebate\"),0)","v":0},0,0,0,0,0,0,0,0,0,{"$f":"IF(Table_PI[[#This Row],[Hide: Formula Name]]<>\"\",IF(AND(Table_PI[[#This Row],[Hide: Formula Name]]<>\"\",OR(Table_PI[[#This Row],[Hide: Rebate]]>0,Table_PI[[#This Row],[Hide: Rebate]]=\"No Rebate\")),TRUE,\"MI: Line Item \" & $A80),\"\")","v":""}]
[{"$f":"IF(Table_PI[[#This Row],[Hide: Formula Name]]<>\"\",MAX($A$2:A80)+1,\"\")","v":""},null,null,null,null,null,null,null,null,null,null,null,null,null,null,null,null,{"$f":"IFERROR(VLOOKUP(Table_PI[[#This Row],[Measure]],'Equipment Lookups'!$C$3:$D$23,2,FALSE),\"\")","v":""},0,{"$f":"IF(Table_PI[[#This Row],[Hide: Formula Name]]<>\"\",IFERROR(IF(AND(ISNUMBER(Table_PI[[#This Row],[Hide: Rebate]]),Table_PI[[#This Row],[Hide: Rebate]]>0), IF($S$401>=50, IF(AND(ProjectStage=\"(Installed)\",$S$401>'Customer Information'!$BC$21), 'Customer Information'!$BC$21*Table_PI[[#This Row],[Hide: Rebate]]/$S$401, IF($S$401<=300000, Table_PI[[#This Row],[Hide: Rebate]], ROUND(300000*Table_PI[[#This Row],[Hide: Rebate]]/'Project Information'!$S$401,2))), \"Does not meet $50 Minimum\"), \"No Rebate\"), \"No Rebate\"),0)","v":0},0,0,0,0,0,0,0,0,0,{"$f":"IF(Table_PI[[#This Row],[Hide: Formula Name]]<>\"\",IF(AND(Table_PI[[#This Row],[Hide: Formula Name]]<>\"\",OR(Table_PI[[#This Row],[Hide: Rebate]]>0,Table_PI[[#This Row],[Hide: Rebate]]=\"No Rebate\")),TRUE,\"MI: Line Item \" & $A81),\"\")","v":""}]
[{"$f":"IF(Table_PI[[#This Row],[Hide: Formula Name]]<>\"\",MAX($A$2:A81)+1,\"\")","v":""},null,null,null,null,null,null,null,null,null,null,null,null,null,null,null,null,{"$f":"IFERROR(VLOOKUP(Table_PI[[#This Row],[Measure]],'Equipment Lookups'!$C$3:$D$23,2,FALSE),\"\")","v":""},0,{"$f":"IF(Table_PI[[#This Row],[Hide: Formula Name]]<>\"\",IFERROR(IF(AND(ISNUMBER(Table_PI[[#This Row],[Hide: Rebate]]),Table_PI[[#This Row],[Hide: Rebate]]>0), IF($S$401>=50, IF(AND(ProjectStage=\"(Installed)\",$S$401>'Customer Information'!$BC$21), 'Customer Information'!$BC$21*Table_PI[[#This Row],[Hide: Rebate]]/$S$401, IF($S$401<=300000, Table_PI[[#This Row],[Hide: Rebate]], ROUND(300000*Table_PI[[#This Row],[Hide: Rebate]]/'Project Information'!$S$401,2))), \"Does not meet $50 Minimum\"), \"No Rebate\"), \"No Rebate\"),0)","v":0},0,0,0,0,0,0,0,0,0,{"$f":"IF(Table_PI[[#This Row],[Hide: Formula Name]]<>\"\",IF(AND(Table_PI[[#This Row],[Hide: Formula Name]]<>\"\",OR(Table_PI[[#This Row],[Hide: Rebate]]>0,Table_PI[[#This Row],[Hide: Rebate]]=\"No Rebate\")),TRUE,\"MI: Line Item \" & $A82),\"\")","v":""}]
[{"$f":"IF(Table_PI[[#This Row],[Hide: Formula Name]]<>\"\",MAX($A$2:A82)+1,\"\")","v":""},null,null,null,null,null,null,null,null,null,null,null,null,null,null,null,null,{"$f":"IFERROR(VLOOKUP(Table_PI[[#This Row],[Measure]],'Equipment Lookups'!$C$3:$D$23,2,FALSE),\"\")","v":""},0,{"$f":"IF(Table_PI[[#This Row],[Hide: Formula Name]]<>\"\",IFERROR(IF(AND(ISNUMBER(Table_PI[[#This Row],[Hide: Rebate]]),Table_PI[[#This Row],[Hide: Rebate]]>0), IF($S$401>=50, IF(AND(ProjectStage=\"(Installed)\",$S$401>'Customer Information'!$BC$21), 'Customer Information'!$BC$21*Table_PI[[#This Row],[Hide: Rebate]]/$S$401, IF($S$401<=300000, Table_PI[[#This Row],[Hide: Rebate]], ROUND(300000*Table_PI[[#This Row],[Hide: Rebate]]/'Project Information'!$S$401,2))), \"Does not meet $50 Minimum\"), \"No Rebate\"), \"No Rebate\"),0)","v":0},0,0,0,0,0,0,0,0,0,{"$f":"IF(Table_PI[[#This Row],[Hide: Formula Name]]<>\"\",IF(AND(Table_PI[[#This Row],[Hide: Formula Name]]<>\"\",OR(Table_PI[[#This Row],[Hide: Rebate]]>0,Table_PI[[#This Row],[Hide: Rebate]]=\"No Rebate\")),TRUE,\"MI: Line Item \" & $A83),\"\")","v":""}]
[{"$f":"IF(Table_PI[[#This Row],[Hide: Formula Name]]<>\"\",MAX($A$2:A83)+1,\"\")","v":""},null,null,null,null,null,null,null,null,null,null,null,null,null,null,null,null,{"$f":"IFERROR(VLOOKUP(Table_PI[[#This Row],[Measure]],'Equipment Lookups'!$C$3:$D$23,2,FALSE),\"\")","v":""},0,{"$f":"IF(Table_PI[[#This Row],[Hide: Formula Name]]<>\"\",IFERROR(IF(AND(ISNUMBER(Table_PI[[#This Row],[Hide: Rebate]]),Table_PI[[#This Row],[Hide: Rebate]]>0), IF($S$401>=50, IF(AND(ProjectStage=\"(Installed)\",$S$401>'Customer Information'!$BC$21), 'Customer Information'!$BC$21*Table_PI[[#This Row],[Hide: Rebate]]/$S$401, IF($S$401<=300000, Table_PI[[#This Row],[Hide: Rebate]], ROUND(300000*Table_PI[[#This Row],[Hide: Rebate]]/'Project Information'!$S$401,2))), \"Does not meet $50 Minimum\"), \"No Rebate\"), \"No Rebate\"),0)","v":0},0,0,0,0,0,0,0,0,0,{"$f":"IF(Table_PI[[#This Row],[Hide: Formula Name]]<>\"\",IF(AND(Table_PI[[#This Row],[Hide: Formula Name]]<>\"\",OR(Table_PI[[#This Row],[Hide: Rebate]]>0,Table_PI[[#This Row],[Hide: Rebate]]=\"No Rebate\")),TRUE,\"MI: Line Item \" & $A84),\"\")","v":""}]
[{"$f":"IF(Table_PI[[#This Row],[Hide: Formula Name]]<>\"\",MAX($A$2:A84)+1,\"\")","v":""},null,null,null,null,null,null,null,null,null,null,null,null,null,null,null,null,{"$f":"IFERROR(VLOOKUP(Table_PI[[#This Row],[Measure]],'Equipment Lookups'!$C$3:$D$23,2,FALSE),\"\")","v":""},0,{"$f":"IF(Table_PI[[#This Row],[Hide: Formula Name]]<>\"\",IFERROR(IF(AND(ISNUMBER(Table_PI[[#This Row],[Hide: Rebate]]),Table_PI[[#This Row],[Hide: Rebate]]>0), IF($S$401>=50, IF(AND(ProjectStage=\"(Installed)\",$S$401>'Customer Information'!$BC$21), 'Customer Information'!$BC$21*Table_PI[[#This Row],[Hide: Rebate]]/$S$401, IF($S$401<=300000, Table_PI[[#This Row],[Hide: Rebate]], ROUND(300000*Table_PI[[#This Row],[Hide: Rebate]]/'Project Information'!$S$401,2))), \"Does not meet $50 Minimum\"), \"No Rebate\"), \"No Rebate\"),0)","v":0},0,0,0,0,0,0,0,0,0,{"$f":"IF(Table_PI[[#This Row],[Hide: Formula Name]]<>\"\",IF(AND(Table_PI[[#This Row],[Hide: Formula Name]]<>\"\",OR(Table_PI[[#This Row],[Hide: Rebate]]>0,Table_PI[[#This Row],[Hide: Rebate]]=\"No Rebate\")),TRUE,\"MI: Line Item \" & $A85),\"\")","v":""}]
[{"$f":"IF(Table_PI[[#This Row],[Hide: Formula Name]]<>\"\",MAX($A$2:A85)+1,\"\")","v":""},null,null,null,null,null,null,null,null,null,null,null,null,null,null,null,null,{"$f":"IFERROR(VLOOKUP(Table_PI[[#This Row],[Measure]],'Equipment Lookups'!$C$3:$D$23,2,FALSE),\"\")","v":""},0,{"$f":"IF(Table_PI[[#This Row],[Hide: Formula Name]]<>\"\",IFERROR(IF(AND(ISNUMBER(Table_PI[[#This Row],[Hide: Rebate]]),Table_PI[[#This Row],[Hide: Rebate]]>0), IF($S$401>=50, IF(AND(ProjectStage=\"(Installed)\",$S$401>'Customer Information'!$BC$21), 'Customer Information'!$BC$21*Table_PI[[#This Row],[Hide: Rebate]]/$S$401, IF($S$401<=300000, Table_PI[[#This Row],[Hide: Rebate]], ROUND(300000*Table_PI[[#This Row],[Hide: Rebate]]/'Project Information'!$S$401,2))), \"Does not meet $50 Minimum\"), \"No Rebate\"), \"No Rebate\"),0)","v":0},0,0,0,0,0,0,0,0,0,{"$f":"IF(Table_PI[[#This Row],[Hide: Formula Name]]<>\"\",IF(AND(Table_PI[[#This Row],[Hide: Formula Name]]<>\"\",OR(Table_PI[[#This Row],[Hide: Rebate]]>0,Table_PI[[#This Row],[Hide: Rebate]]=\"No Rebate\")),TRUE,\"MI: Line Item \" & $A86),\"\")","v":""}]
[{"$f":"IF(Table_PI[[#This Row],[Hide: Formula Name]]<>\"\",MAX($A$2:A86)+1,\"\")","v":""},null,null,null,null,null,null,null,null,null,null,null,null,null,null,null,null,{"$f":"IFERROR(VLOOKUP(Table_PI[[#This Row],[Measure]],'Equipment Lookups'!$C$3:$D$23,2,FALSE),\"\")","v":""},0,{"$f":"IF(Table_PI[[#This Row],[Hide: Formula Name]]<>\"\",IFERROR(IF(AND(ISNUMBER(Table_PI[[#This Row],[Hide: Rebate]]),Table_PI[[#This Row],[Hide: Rebate]]>0), IF($S$401>=50, IF(AND(ProjectStage=\"(Installed)\",$S$401>'Customer Information'!$BC$21), 'Customer Information'!$BC$21*Table_PI[[#This Row],[Hide: Rebate]]/$S$401, IF($S$401<=300000, Table_PI[[#This Row],[Hide: Rebate]], ROUND(300000*Table_PI[[#This Row],[Hide: Rebate]]/'Project Information'!$S$401,2))), \"Does not meet $50 Minimum\"), \"No Rebate\"), \"No Rebate\"),0)","v":0},0,0,0,0,0,0,0,0,0,{"$f":"IF(Table_PI[[#This Row],[Hide: Formula Name]]<>\"\",IF(AND(Table_PI[[#This Row],[Hide: Formula Name]]<>\"\",OR(Table_PI[[#This Row],[Hide: Rebate]]>0,Table_PI[[#This Row],[Hide: Rebate]]=\"No Rebate\")),TRUE,\"MI: Line Item \" & $A87),\"\")","v":""}]
[{"$f":"IF(Table_PI[[#This Row],[Hide: Formula Name]]<>\"\",MAX($A$2:A87)+1,\"\")","v":""},null,null,null,null,null,null,null,null,null,null,null,null,null,null,null,null,{"$f":"IFERROR(VLOOKUP(Table_PI[[#This Row],[Measure]],'Equipment Lookups'!$C$3:$D$23,2,FALSE),\"\")","v":""},0,{"$f":"IF(Table_PI[[#This Row],[Hide: Formula Name]]<>\"\",IFERROR(IF(AND(ISNUMBER(Table_PI[[#This Row],[Hide: Rebate]]),Table_PI[[#This Row],[Hide: Rebate]]>0), IF($S$401>=50, IF(AND(ProjectStage=\"(Installed)\",$S$401>'Customer Information'!$BC$21), 'Customer Information'!$BC$21*Table_PI[[#This Row],[Hide: Rebate]]/$S$401, IF($S$401<=300000, Table_PI[[#This Row],[Hide: Rebate]], ROUND(300000*Table_PI[[#This Row],[Hide: Rebate]]/'Project Information'!$S$401,2))), \"Does not meet $50 Minimum\"), \"No Rebate\"), \"No Rebate\"),0)","v":0},0,0,0,0,0,0,0,0,0,{"$f":"IF(Table_PI[[#This Row],[Hide: Formula Name]]<>\"\",IF(AND(Table_PI[[#This Row],[Hide: Formula Name]]<>\"\",OR(Table_PI[[#This Row],[Hide: Rebate]]>0,Table_PI[[#This Row],[Hide: Rebate]]=\"No Rebate\")),TRUE,\"MI: Line Item \" & $A88),\"\")","v":""}]
[{"$f":"IF(Table_PI[[#This Row],[Hide: Formula Name]]<>\"\",MAX($A$2:A88)+1,\"\")","v":""},null,null,null,null,null,null,null,null,null,null,null,null,null,null,null,null,{"$f":"IFERROR(VLOOKUP(Table_PI[[#This Row],[Measure]],'Equipment Lookups'!$C$3:$D$23,2,FALSE),\"\")","v":""},0,{"$f":"IF(Table_PI[[#This Row],[Hide: Formula Name]]<>\"\",IFERROR(IF(AND(ISNUMBER(Table_PI[[#This Row],[Hide: Rebate]]),Table_PI[[#This Row],[Hide: Rebate]]>0), IF($S$401>=50, IF(AND(ProjectStage=\"(Installed)\",$S$401>'Customer Information'!$BC$21), 'Customer Information'!$BC$21*Table_PI[[#This Row],[Hide: Rebate]]/$S$401, IF($S$401<=300000, Table_PI[[#This Row],[Hide: Rebate]], ROUND(300000*Table_PI[[#This Row],[Hide: Rebate]]/'Project Information'!$S$401,2))), \"Does not meet $50 Minimum\"), \"No Rebate\"), \"No Rebate\"),0)","v":0},0,0,0,0,0,0,0,0,0,{"$f":"IF(Table_PI[[#This Row],[Hide: Formula Name]]<>\"\",IF(AND(Table_PI[[#This Row],[Hide: Formula Name]]<>\"\",OR(Table_PI[[#This Row],[Hide: Rebate]]>0,Table_PI[[#This Row],[Hide: Rebate]]=\"No Rebate\")),TRUE,\"MI: Line Item \" & $A89),\"\")","v":""}]
[{"$f":"IF(Table_PI[[#This Row],[Hide: Formula Name]]<>\"\",MAX($A$2:A89)+1,\"\")","v":""},null,null,null,null,null,null,null,null,null,null,null,null,null,null,null,null,{"$f":"IFERROR(VLOOKUP(Table_PI[[#This Row],[Measure]],'Equipment Lookups'!$C$3:$D$23,2,FALSE),\"\")","v":""},0,{"$f":"IF(Table_PI[[#This Row],[Hide: Formula Name]]<>\"\",IFERROR(IF(AND(ISNUMBER(Table_PI[[#This Row],[Hide: Rebate]]),Table_PI[[#This Row],[Hide: Rebate]]>0), IF($S$401>=50, IF(AND(ProjectStage=\"(Installed)\",$S$401>'Customer Information'!$BC$21), 'Customer Information'!$BC$21*Table_PI[[#This Row],[Hide: Rebate]]/$S$401, IF($S$401<=300000, Table_PI[[#This Row],[Hide: Rebate]], ROUND(300000*Table_PI[[#This Row],[Hide: Rebate]]/'Project Information'!$S$401,2))), \"Does not meet $50 Minimum\"), \"No Rebate\"), \"No Rebate\"),0)","v":0},0,0,0,0,0,0,0,0,0,{"$f":"IF(Table_PI[[#This Row],[Hide: Formula Name]]<>\"\",IF(AND(Table_PI[[#This Row],[Hide: Formula Name]]<>\"\",OR(Table_PI[[#This Row],[Hide: Rebate]]>0,Table_PI[[#This Row],[Hide: Rebate]]=\"No Rebate\")),TRUE,\"MI: Line Item \" & $A90),\"\")","v":""}]
[{"$f":"IF(Table_PI[[#This Row],[Hide: Formula Name]]<>\"\",MAX($A$2:A90)+1,\"\")","v":""},null,null,null,null,null,null,null,null,null,null,null,null,null,null,null,null,{"$f":"IFERROR(VLOOKUP(Table_PI[[#This Row],[Measure]],'Equipment Lookups'!$C$3:$D$23,2,FALSE),\"\")","v":""},0,{"$f":"IF(Table_PI[[#This Row],[Hide: Formula Name]]<>\"\",IFERROR(IF(AND(ISNUMBER(Table_PI[[#This Row],[Hide: Rebate]]),Table_PI[[#This Row],[Hide: Rebate]]>0), IF($S$401>=50, IF(AND(ProjectStage=\"(Installed)\",$S$401>'Customer Information'!$BC$21), 'Customer Information'!$BC$21*Table_PI[[#This Row],[Hide: Rebate]]/$S$401, IF($S$401<=300000, Table_PI[[#This Row],[Hide: Rebate]], ROUND(300000*Table_PI[[#This Row],[Hide: Rebate]]/'Project Information'!$S$401,2))), \"Does not meet $50 Minimum\"), \"No Rebate\"), \"No Rebate\"),0)","v":0},0,0,0,0,0,0,0,0,0,{"$f":"IF(Table_PI[[#This Row],[Hide: Formula Name]]<>\"\",IF(AND(Table_PI[[#This Row],[Hide: Formula Name]]<>\"\",OR(Table_PI[[#This Row],[Hide: Rebate]]>0,Table_PI[[#This Row],[Hide: Rebate]]=\"No Rebate\")),TRUE,\"MI: Line Item \" & $A91),\"\")","v":""}]
[{"$f":"IF(Table_PI[[#This Row],[Hide: Formula Name]]<>\"\",MAX($A$2:A91)+1,\"\")","v":""},null,null,null,null,null,null,null,null,null,null,null,null,null,null,null,null,{"$f":"IFERROR(VLOOKUP(Table_PI[[#This Row],[Measure]],'Equipment Lookups'!$C$3:$D$23,2,FALSE),\"\")","v":""},0,{"$f":"IF(Table_PI[[#This Row],[Hide: Formula Name]]<>\"\",IFERROR(IF(AND(ISNUMBER(Table_PI[[#This Row],[Hide: Rebate]]),Table_PI[[#This Row],[Hide: Rebate]]>0), IF($S$401>=50, IF(AND(ProjectStage=\"(Installed)\",$S$401>'Customer Information'!$BC$21), 'Customer Information'!$BC$21*Table_PI[[#This Row],[Hide: Rebate]]/$S$401, IF($S$401<=300000, Table_PI[[#This Row],[Hide: Rebate]], ROUND(300000*Table_PI[[#This Row],[Hide: Rebate]]/'Project Information'!$S$401,2))), \"Does not meet $50 Minimum\"), \"No Rebate\"), \"No Rebate\"),0)","v":0},0,0,0,0,0,0,0,0,0,{"$f":"IF(Table_PI[[#This Row],[Hide: Formula Name]]<>\"\",IF(AND(Table_PI[[#This Row],[Hide: Formula Name]]<>\"\",OR(Table_PI[[#This Row],[Hide: Rebate]]>0,Table_PI[[#This Row],[Hide: Rebate]]=\"No Rebate\")),TRUE,\"MI: Line Item \" & $A92),\"\")","v":""}]
[{"$f":"IF(Table_PI[[#This Row],[Hide: Formula Name]]<>\"\",MAX($A$2:A92)+1,\"\")","v":""},null,null,null,null,null,null,null,null,null,null,null,null,null,null,null,null,{"$f":"IFERROR(VLOOKUP(Table_PI[[#This Row],[Measure]],'Equipment Lookups'!$C$3:$D$23,2,FALSE),\"\")","v":""},0,{"$f":"IF(Table_PI[[#This Row],[Hide: Formula Name]]<>\"\",IFERROR(IF(AND(ISNUMBER(Table_PI[[#This Row],[Hide: Rebate]]),Table_PI[[#This Row],[Hide: Rebate]]>0), IF($S$401>=50, IF(AND(ProjectStage=\"(Installed)\",$S$401>'Customer Information'!$BC$21), 'Customer Information'!$BC$21*Table_PI[[#This Row],[Hide: Rebate]]/$S$401, IF($S$401<=300000, Table_PI[[#This Row],[Hide: Rebate]], ROUND(300000*Table_PI[[#This Row],[Hide: Rebate]]/'Project Information'!$S$401,2))), \"Does not meet $50 Minimum\"), \"No Rebate\"), \"No Rebate\"),0)","v":0},0,0,0,0,0,0,0,0,0,{"$f":"IF(Table_PI[[#This Row],[Hide: Formula Name]]<>\"\",IF(AND(Table_PI[[#This Row],[Hide: Formula Name]]<>\"\",OR(Table_PI[[#This Row],[Hide: Rebate]]>0,Table_PI[[#This Row],[Hide: Rebate]]=\"No Rebate\")),TRUE,\"MI: Line Item \" & $A93),\"\")","v":""}]
[{"$f":"IF(Table_PI[[#This Row],[Hide: Formula Name]]<>\"\",MAX($A$2:A93)+1,\"\")","v":""},null,null,null,null,null,null,null,null,null,null,null,null,null,null,null,null,{"$f":"IFERROR(VLOOKUP(Table_PI[[#This Row],[Measure]],'Equipment Lookups'!$C$3:$D$23,2,FALSE),\"\")","v":""},0,{"$f":"IF(Table_PI[[#This Row],[Hide: Formula Name]]<>\"\",IFERROR(IF(AND(ISNUMBER(Table_PI[[#This Row],[Hide: Rebate]]),Table_PI[[#This Row],[Hide: Rebate]]>0), IF($S$401>=50, IF(AND(ProjectStage=\"(Installed)\",$S$401>'Customer Information'!$BC$21), 'Customer Information'!$BC$21*Table_PI[[#This Row],[Hide: Rebate]]/$S$401, IF($S$401<=300000, Table_PI[[#This Row],[Hide: Rebate]], ROUND(300000*Table_PI[[#This Row],[Hide: Rebate]]/'Project Information'!$S$401,2))), \"Does not meet $50 Minimum\"), \"No Rebate\"), \"No Rebate\"),0)","v":0},0,0,0,0,0,0,0,0,0,{"$f":"IF(Table_PI[[#This Row],[Hide: Formula Name]]<>\"\",IF(AND(Table_PI[[#This Row],[Hide: Formula Name]]<>\"\",OR(Table_PI[[#This Row],[Hide: Rebate]]>0,Table_PI[[#This Row],[Hide: Rebate]]=\"No Rebate\")),TRUE,\"MI: Line Item \" & $A94),\"\")","v":""}]
[{"$f":"IF(Table_PI[[#This Row],[Hide: Formula Name]]<>\"\",MAX($A$2:A94)+1,\"\")","v":""},null,null,null,null,null,null,null,null,null,null,null,null,null,null,null,null,{"$f":"IFERROR(VLOOKUP(Table_PI[[#This Row],[Measure]],'Equipment Lookups'!$C$3:$D$23,2,FALSE),\"\")","v":""},0,{"$f":"IF(Table_PI[[#This Row],[Hide: Formula Name]]<>\"\",IFERROR(IF(AND(ISNUMBER(Table_PI[[#This Row],[Hide: Rebate]]),Table_PI[[#This Row],[Hide: Rebate]]>0), IF($S$401>=50, IF(AND(ProjectStage=\"(Installed)\",$S$401>'Customer Information'!$BC$21), 'Customer Information'!$BC$21*Table_PI[[#This Row],[Hide: Rebate]]/$S$401, IF($S$401<=300000, Table_PI[[#This Row],[Hide: Rebate]], ROUND(300000*Table_PI[[#This Row],[Hide: Rebate]]/'Project Information'!$S$401,2))), \"Does not meet $50 Minimum\"), \"No Rebate\"), \"No Rebate\"),0)","v":0},0,0,0,0,0,0,0,0,0,{"$f":"IF(Table_PI[[#This Row],[Hide: Formula Name]]<>\"\",IF(AND(Table_PI[[#This Row],[Hide: Formula Name]]<>\"\",OR(Table_PI[[#This Row],[Hide: Rebate]]>0,Table_PI[[#This Row],[Hide: Rebate]]=\"No Rebate\")),TRUE,\"MI: Line Item \" & $A95),\"\")","v":""}]
[{"$f":"IF(Table_PI[[#This Row],[Hide: Formula Name]]<>\"\",MAX($A$2:A95)+1,\"\")","v":""},null,null,null,null,null,null,null,null,null,null,null,null,null,null,null,null,{"$f":"IFERROR(VLOOKUP(Table_PI[[#This Row],[Measure]],'Equipment Lookups'!$C$3:$D$23,2,FALSE),\"\")","v":""},0,{"$f":"IF(Table_PI[[#This Row],[Hide: Formula Name]]<>\"\",IFERROR(IF(AND(ISNUMBER(Table_PI[[#This Row],[Hide: Rebate]]),Table_PI[[#This Row],[Hide: Rebate]]>0), IF($S$401>=50, IF(AND(ProjectStage=\"(Installed)\",$S$401>'Customer Information'!$BC$21), 'Customer Information'!$BC$21*Table_PI[[#This Row],[Hide: Rebate]]/$S$401, IF($S$401<=300000, Table_PI[[#This Row],[Hide: Rebate]], ROUND(300000*Table_PI[[#This Row],[Hide: Rebate]]/'Project Information'!$S$401,2))), \"Does not meet $50 Minimum\"), \"No Rebate\"), \"No Rebate\"),0)","v":0},0,0,0,0,0,0,0,0,0,{"$f":"IF(Table_PI[[#This Row],[Hide: Formula Name]]<>\"\",IF(AND(Table_PI[[#This Row],[Hide: Formula Name]]<>\"\",OR(Table_PI[[#This Row],[Hide: Rebate]]>0,Table_PI[[#This Row],[Hide: Rebate]]=\"No Rebate\")),TRUE,\"MI: Line Item \" & $A96),\"\")","v":""}]
[{"$f":"IF(Table_PI[[#This Row],[Hide: Formula Name]]<>\"\",MAX($A$2:A96)+1,\"\")","v":""},null,null,null,null,null,null,null,null,null,null,null,null,null,null,null,null,{"$f":"IFERROR(VLOOKUP(Table_PI[[#This Row],[Measure]],'Equipment Lookups'!$C$3:$D$23,2,FALSE),\"\")","v":""},0,{"$f":"IF(Table_PI[[#This Row],[Hide: Formula Name]]<>\"\",IFERROR(IF(AND(ISNUMBER(Table_PI[[#This Row],[Hide: Rebate]]),Table_PI[[#This Row],[Hide: Rebate]]>0), IF($S$401>=50, IF(AND(ProjectStage=\"(Installed)\",$S$401>'Customer Information'!$BC$21), 'Customer Information'!$BC$21*Table_PI[[#This Row],[Hide: Rebate]]/$S$401, IF($S$401<=300000, Table_PI[[#This Row],[Hide: Rebate]], ROUND(300000*Table_PI[[#This Row],[Hide: Rebate]]/'Project Information'!$S$401,2))), \"Does not meet $50 Minimum\"), \"No Rebate\"), \"No Rebate\"),0)","v":0},0,0,0,0,0,0,0,0,0,{"$f":"IF(Table_PI[[#This Row],[Hide: Formula Name]]<>\"\",IF(AND(Table_PI[[#This Row],[Hide: Formula Name]]<>\"\",OR(Table_PI[[#This Row],[Hide: Rebate]]>0,Table_PI[[#This Row],[Hide: Rebate]]=\"No Rebate\")),TRUE,\"MI: Line Item \" & $A97),\"\")","v":""}]
[{"$f":"IF(Table_PI[[#This Row],[Hide: Formula Name]]<>\"\",MAX($A$2:A97)+1,\"\")","v":""},null,null,null,null,null,null,null,null,null,null,null,null,null,null,null,null,{"$f":"IFERROR(VLOOKUP(Table_PI[[#This Row],[Measure]],'Equipment Lookups'!$C$3:$D$23,2,FALSE),\"\")","v":""},0,{"$f":"IF(Table_PI[[#This Row],[Hide: Formula Name]]<>\"\",IFERROR(IF(AND(ISNUMBER(Table_PI[[#This Row],[Hide: Rebate]]),Table_PI[[#This Row],[Hide: Rebate]]>0), IF($S$401>=50, IF(AND(ProjectStage=\"(Installed)\",$S$401>'Customer Information'!$BC$21), 'Customer Information'!$BC$21*Table_PI[[#This Row],[Hide: Rebate]]/$S$401, IF($S$401<=300000, Table_PI[[#This Row],[Hide: Rebate]], ROUND(300000*Table_PI[[#This Row],[Hide: Rebate]]/'Project Information'!$S$401,2))), \"Does not meet $50 Minimum\"), \"No Rebate\"), \"No Rebate\"),0)","v":0},0,0,0,0,0,0,0,0,0,{"$f":"IF(Table_PI[[#This Row],[Hide: Formula Name]]<>\"\",IF(AND(Table_PI[[#This Row],[Hide: Formula Name]]<>\"\",OR(Table_PI[[#This Row],[Hide: Rebate]]>0,Table_PI[[#This Row],[Hide: Rebate]]=\"No Rebate\")),TRUE,\"MI: Line Item \" & $A98),\"\")","v":""}]
[{"$f":"IF(Table_PI[[#This Row],[Hide: Formula Name]]<>\"\",MAX($A$2:A98)+1,\"\")","v":""},null,null,null,null,null,null,null,null,null,null,null,null,null,null,null,null,{"$f":"IFERROR(VLOOKUP(Table_PI[[#This Row],[Measure]],'Equipment Lookups'!$C$3:$D$23,2,FALSE),\"\")","v":""},0,{"$f":"IF(Table_PI[[#This Row],[Hide: Formula Name]]<>\"\",IFERROR(IF(AND(ISNUMBER(Table_PI[[#This Row],[Hide: Rebate]]),Table_PI[[#This Row],[Hide: Rebate]]>0), IF($S$401>=50, IF(AND(ProjectStage=\"(Installed)\",$S$401>'Customer Information'!$BC$21), 'Customer Information'!$BC$21*Table_PI[[#This Row],[Hide: Rebate]]/$S$401, IF($S$401<=300000, Table_PI[[#This Row],[Hide: Rebate]], ROUND(300000*Table_PI[[#This Row],[Hide: Rebate]]/'Project Information'!$S$401,2))), \"Does not meet $50 Minimum\"), \"No Rebate\"), \"No Rebate\"),0)","v":0},0,0,0,0,0,0,0,0,0,{"$f":"IF(Table_PI[[#This Row],[Hide: Formula Name]]<>\"\",IF(AND(Table_PI[[#This Row],[Hide: Formula Name]]<>\"\",OR(Table_PI[[#This Row],[Hide: Rebate]]>0,Table_PI[[#This Row],[Hide: Rebate]]=\"No Rebate\")),TRUE,\"MI: Line Item \" & $A99),\"\")","v":""}]
[{"$f":"IF(Table_PI[[#This Row],[Hide: Formula Name]]<>\"\",MAX($A$2:A99)+1,\"\")","v":""},null,null,null,null,null,null,null,null,null,null,null,null,null,null,null,null,{"$f":"IFERROR(VLOOKUP(Table_PI[[#This Row],[Measure]],'Equipment Lookups'!$C$3:$D$23,2,FALSE),\"\")","v":""},0,{"$f":"IF(Table_PI[[#This Row],[Hide: Formula Name]]<>\"\",IFERROR(IF(AND(ISNUMBER(Table_PI[[#This Row],[Hide: Rebate]]),Table_PI[[#This Row],[Hide: Rebate]]>0), IF($S$401>=50, IF(AND(ProjectStage=\"(Installed)\",$S$401>'Customer Information'!$BC$21), 'Customer Information'!$BC$21*Table_PI[[#This Row],[Hide: Rebate]]/$S$401, IF($S$401<=300000, Table_PI[[#This Row],[Hide: Rebate]], ROUND(300000*Table_PI[[#This Row],[Hide: Rebate]]/'Project Information'!$S$401,2))), \"Does not meet $50 Minimum\"), \"No Rebate\"), \"No Rebate\"),0)","v":0},0,0,0,0,0,0,0,0,0,{"$f":"IF(Table_PI[[#This Row],[Hide: Formula Name]]<>\"\",IF(AND(Table_PI[[#This Row],[Hide: Formula Name]]<>\"\",OR(Table_PI[[#This Row],[Hide: Rebate]]>0,Table_PI[[#This Row],[Hide: Rebate]]=\"No Rebate\")),TRUE,\"MI: Line Item \" & $A100),\"\")","v":""}]
[{"$f":"IF(Table_PI[[#This Row],[Hide: Formula Name]]<>\"\",MAX($A$2:A100)+1,\"\")","v":""},null,null,null,null,null,null,null,null,null,null,null,null,null,null,null,null,{"$f":"IFERROR(VLOOKUP(Table_PI[[#This Row],[Measure]],'Equipment Lookups'!$C$3:$D$23,2,FALSE),\"\")","v":""},0,{"$f":"IF(Table_PI[[#This Row],[Hide: Formula Name]]<>\"\",IFERROR(IF(AND(ISNUMBER(Table_PI[[#This Row],[Hide: Rebate]]),Table_PI[[#This Row],[Hide: Rebate]]>0), IF($S$401>=50, IF(AND(ProjectStage=\"(Installed)\",$S$401>'Customer Information'!$BC$21), 'Customer Information'!$BC$21*Table_PI[[#This Row],[Hide: Rebate]]/$S$401, IF($S$401<=300000, Table_PI[[#This Row],[Hide: Rebate]], ROUND(300000*Table_PI[[#This Row],[Hide: Rebate]]/'Project Information'!$S$401,2))), \"Does not meet $50 Minimum\"), \"No Rebate\"), \"No Rebate\"),0)","v":0},0,0,0,0,0,0,0,0,0,{"$f":"IF(Table_PI[[#This Row],[Hide: Formula Name]]<>\"\",IF(AND(Table_PI[[#This Row],[Hide: Formula Name]]<>\"\",OR(Table_PI[[#This Row],[Hide: Rebate]]>0,Table_PI[[#This Row],[Hide: Rebate]]=\"No Rebate\")),TRUE,\"MI: Line Item \" & $A101),\"\")","v":""}]
[{"$f":"IF(Table_PI[[#This Row],[Hide: Formula Name]]<>\"\",MAX($A$2:A101)+1,\"\")","v":""},null,null,null,null,null,null,null,null,null,null,null,null,null,null,null,null,{"$f":"IFERROR(VLOOKUP(Table_PI[[#This Row],[Measure]],'Equipment Lookups'!$C$3:$D$23,2,FALSE),\"\")","v":""},0,{"$f":"IF(Table_PI[[#This Row],[Hide: Formula Name]]<>\"\",IFERROR(IF(AND(ISNUMBER(Table_PI[[#This Row],[Hide: Rebate]]),Table_PI[[#This Row],[Hide: Rebate]]>0), IF($S$401>=50, IF(AND(ProjectStage=\"(Installed)\",$S$401>'Customer Information'!$BC$21), 'Customer Information'!$BC$21*Table_PI[[#This Row],[Hide: Rebate]]/$S$401, IF($S$401<=300000, Table_PI[[#This Row],[Hide: Rebate]], ROUND(300000*Table_PI[[#This Row],[Hide: Rebate]]/'Project Information'!$S$401,2))), \"Does not meet $50 Minimum\"), \"No Rebate\"), \"No Rebate\"),0)","v":0},0,0,0,0,0,0,0,0,0,{"$f":"IF(Table_PI[[#This Row],[Hide: Formula Name]]<>\"\",IF(AND(Table_PI[[#This Row],[Hide: Formula Name]]<>\"\",OR(Table_PI[[#This Row],[Hide: Rebate]]>0,Table_PI[[#This Row],[Hide: Rebate]]=\"No Rebate\")),TRUE,\"MI: Line Item \" & $A102),\"\")","v":""}]
[{"$f":"IF(Table_PI[[#This Row],[Hide: Formula Name]]<>\"\",MAX($A$2:A102)+1,\"\")","v":""},null,null,null,null,null,null,null,null,null,null,null,null,null,null,null,null,{"$f":"IFERROR(VLOOKUP(Table_PI[[#This Row],[Measure]],'Equipment Lookups'!$C$3:$D$23,2,FALSE),\"\")","v":""},0,{"$f":"IF(Table_PI[[#This Row],[Hide: Formula Name]]<>\"\",IFERROR(IF(AND(ISNUMBER(Table_PI[[#This Row],[Hide: Rebate]]),Table_PI[[#This Row],[Hide: Rebate]]>0), IF($S$401>=50, IF(AND(ProjectStage=\"(Installed)\",$S$401>'Customer Information'!$BC$21), 'Customer Information'!$BC$21*Table_PI[[#This Row],[Hide: Rebate]]/$S$401, IF($S$401<=300000, Table_PI[[#This Row],[Hide: Rebate]], ROUND(300000*Table_PI[[#This Row],[Hide: Rebate]]/'Project Information'!$S$401,2))), \"Does not meet $50 Minimum\"), \"No Rebate\"), \"No Rebate\"),0)","v":0},0,0,0,0,0,0,0,0,0,{"$f":"IF(Table_PI[[#This Row],[Hide: Formula Name]]<>\"\",IF(AND(Table_PI[[#This Row],[Hide: Formula Name]]<>\"\",OR(Table_PI[[#This Row],[Hide: Rebate]]>0,Table_PI[[#This Row],[Hide: Rebate]]=\"No Rebate\")),TRUE,\"MI: Line Item \" & $A103),\"\")","v":""}]
[{"$f":"IF(Table_PI[[#This Row],[Hide: Formula Name]]<>\"\",MAX($A$2:A103)+1,\"\")","v":""},null,null,null,null,null,null,null,null,null,null,null,null,null,null,null,null,{"$f":"IFERROR(VLOOKUP(Table_PI[[#This Row],[Measure]],'Equipment Lookups'!$C$3:$D$23,2,FALSE),\"\")","v":""},0,{"$f":"IF(Table_PI[[#This Row],[Hide: Formula Name]]<>\"\",IFERROR(IF(AND(ISNUMBER(Table_PI[[#This Row],[Hide: Rebate]]),Table_PI[[#This Row],[Hide: Rebate]]>0), IF($S$401>=50, IF(AND(ProjectStage=\"(Installed)\",$S$401>'Customer Information'!$BC$21), 'Customer Information'!$BC$21*Table_PI[[#This Row],[Hide: Rebate]]/$S$401, IF($S$401<=300000, Table_PI[[#This Row],[Hide: Rebate]], ROUND(300000*Table_PI[[#This Row],[Hide: Rebate]]/'Project Information'!$S$401,2))), \"Does not meet $50 Minimum\"), \"No Rebate\"), \"No Rebate\"),0)","v":0},0,0,0,0,0,0,0,0,0,{"$f":"IF(Table_PI[[#This Row],[Hide: Formula Name]]<>\"\",IF(AND(Table_PI[[#This Row],[Hide: Formula Name]]<>\"\",OR(Table_PI[[#This Row],[Hide: Rebate]]>0,Table_PI[[#This Row],[Hide: Rebate]]=\"No Rebate\")),TRUE,\"MI: Line Item \" & $A104),\"\")","v":""}]
[{"$f":"IF(Table_PI[[#This Row],[Hide: Formula Name]]<>\"\",MAX($A$2:A104)+1,\"\")","v":""},null,null,null,null,null,null,null,null,null,null,null,null,null,null,null,null,{"$f":"IFERROR(VLOOKUP(Table_PI[[#This Row],[Measure]],'Equipment Lookups'!$C$3:$D$23,2,FALSE),\"\")","v":""},0,{"$f":"IF(Table_PI[[#This Row],[Hide: Formula Name]]<>\"\",IFERROR(IF(AND(ISNUMBER(Table_PI[[#This Row],[Hide: Rebate]]),Table_PI[[#This Row],[Hide: Rebate]]>0), IF($S$401>=50, IF(AND(ProjectStage=\"(Installed)\",$S$401>'Customer Information'!$BC$21), 'Customer Information'!$BC$21*Table_PI[[#This Row],[Hide: Rebate]]/$S$401, IF($S$401<=300000, Table_PI[[#This Row],[Hide: Rebate]], ROUND(300000*Table_PI[[#This Row],[Hide: Rebate]]/'Project Information'!$S$401,2))), \"Does not meet $50 Minimum\"), \"No Rebate\"), \"No Rebate\"),0)","v":0},0,0,0,0,0,0,0,0,0,{"$f":"IF(Table_PI[[#This Row],[Hide: Formula Name]]<>\"\",IF(AND(Table_PI[[#This Row],[Hide: Formula Name]]<>\"\",OR(Table_PI[[#This Row],[Hide: Rebate]]>0,Table_PI[[#This Row],[Hide: Rebate]]=\"No Rebate\")),TRUE,\"MI: Line Item \" & $A105),\"\")","v":""}]
[{"$f":"IF(Table_PI[[#This Row],[Hide: Formula Name]]<>\"\",MAX($A$2:A105)+1,\"\")","v":""},null,null,null,null,null,null,null,null,null,null,null,null,null,null,null,null,{"$f":"IFERROR(VLOOKUP(Table_PI[[#This Row],[Measure]],'Equipment Lookups'!$C$3:$D$23,2,FALSE),\"\")","v":""},0,{"$f":"IF(Table_PI[[#This Row],[Hide: Formula Name]]<>\"\",IFERROR(IF(AND(ISNUMBER(Table_PI[[#This Row],[Hide: Rebate]]),Table_PI[[#This Row],[Hide: Rebate]]>0), IF($S$401>=50, IF(AND(ProjectStage=\"(Installed)\",$S$401>'Customer Information'!$BC$21), 'Customer Information'!$BC$21*Table_PI[[#This Row],[Hide: Rebate]]/$S$401, IF($S$401<=300000, Table_PI[[#This Row],[Hide: Rebate]], ROUND(300000*Table_PI[[#This Row],[Hide: Rebate]]/'Project Information'!$S$401,2))), \"Does not meet $50 Minimum\"), \"No Rebate\"), \"No Rebate\"),0)","v":0},0,0,0,0,0,0,0,0,0,{"$f":"IF(Table_PI[[#This Row],[Hide: Formula Name]]<>\"\",IF(AND(Table_PI[[#This Row],[Hide: Formula Name]]<>\"\",OR(Table_PI[[#This Row],[Hide: Rebate]]>0,Table_PI[[#This Row],[Hide: Rebate]]=\"No Rebate\")),TRUE,\"MI: Line Item \" & $A106),\"\")","v":""}]
[{"$f":"IF(Table_PI[[#This Row],[Hide: Formula Name]]<>\"\",MAX($A$2:A106)+1,\"\")","v":""},null,null,null,null,null,null,null,null,null,null,null,null,null,null,null,null,{"$f":"IFERROR(VLOOKUP(Table_PI[[#This Row],[Measure]],'Equipment Lookups'!$C$3:$D$23,2,FALSE),\"\")","v":""},0,{"$f":"IF(Table_PI[[#This Row],[Hide: Formula Name]]<>\"\",IFERROR(IF(AND(ISNUMBER(Table_PI[[#This Row],[Hide: Rebate]]),Table_PI[[#This Row],[Hide: Rebate]]>0), IF($S$401>=50, IF(AND(ProjectStage=\"(Installed)\",$S$401>'Customer Information'!$BC$21), 'Customer Information'!$BC$21*Table_PI[[#This Row],[Hide: Rebate]]/$S$401, IF($S$401<=300000, Table_PI[[#This Row],[Hide: Rebate]], ROUND(300000*Table_PI[[#This Row],[Hide: Rebate]]/'Project Information'!$S$401,2))), \"Does not meet $50 Minimum\"), \"No Rebate\"), \"No Rebate\"),0)","v":0},0,0,0,0,0,0,0,0,0,{"$f":"IF(Table_PI[[#This Row],[Hide: Formula Name]]<>\"\",IF(AND(Table_PI[[#This Row],[Hide: Formula Name]]<>\"\",OR(Table_PI[[#This Row],[Hide: Rebate]]>0,Table_PI[[#This Row],[Hide: Rebate]]=\"No Rebate\")),TRUE,\"MI: Line Item \" & $A107),\"\")","v":""}]
[{"$f":"IF(Table_PI[[#This Row],[Hide: Formula Name]]<>\"\",MAX($A$2:A107)+1,\"\")","v":""},null,null,null,null,null,null,null,null,null,null,null,null,null,null,null,null,{"$f":"IFERROR(VLOOKUP(Table_PI[[#This Row],[Measure]],'Equipment Lookups'!$C$3:$D$23,2,FALSE),\"\")","v":""},0,{"$f":"IF(Table_PI[[#This Row],[Hide: Formula Name]]<>\"\",IFERROR(IF(AND(ISNUMBER(Table_PI[[#This Row],[Hide: Rebate]]),Table_PI[[#This Row],[Hide: Rebate]]>0), IF($S$401>=50, IF(AND(ProjectStage=\"(Installed)\",$S$401>'Customer Information'!$BC$21), 'Customer Information'!$BC$21*Table_PI[[#This Row],[Hide: Rebate]]/$S$401, IF($S$401<=300000, Table_PI[[#This Row],[Hide: Rebate]], ROUND(300000*Table_PI[[#This Row],[Hide: Rebate]]/'Project Information'!$S$401,2))), \"Does not meet $50 Minimum\"), \"No Rebate\"), \"No Rebate\"),0)","v":0},0,0,0,0,0,0,0,0,0,{"$f":"IF(Table_PI[[#This Row],[Hide: Formula Name]]<>\"\",IF(AND(Table_PI[[#This Row],[Hide: Formula Name]]<>\"\",OR(Table_PI[[#This Row],[Hide: Rebate]]>0,Table_PI[[#This Row],[Hide: Rebate]]=\"No Rebate\")),TRUE,\"MI: Line Item \" & $A108),\"\")","v":""}]
[{"$f":"IF(Table_PI[[#This Row],[Hide: Formula Name]]<>\"\",MAX($A$2:A108)+1,\"\")","v":""},null,null,null,null,null,null,null,null,null,null,null,null,null,null,null,null,{"$f":"IFERROR(VLOOKUP(Table_PI[[#This Row],[Measure]],'Equipment Lookups'!$C$3:$D$23,2,FALSE),\"\")","v":""},0,{"$f":"IF(Table_PI[[#This Row],[Hide: Formula Name]]<>\"\",IFERROR(IF(AND(ISNUMBER(Table_PI[[#This Row],[Hide: Rebate]]),Table_PI[[#This Row],[Hide: Rebate]]>0), IF($S$401>=50, IF(AND(ProjectStage=\"(Installed)\",$S$401>'Customer Information'!$BC$21), 'Customer Information'!$BC$21*Table_PI[[#This Row],[Hide: Rebate]]/$S$401, IF($S$401<=300000, Table_PI[[#This Row],[Hide: Rebate]], ROUND(300000*Table_PI[[#This Row],[Hide: Rebate]]/'Project Information'!$S$401,2))), \"Does not meet $50 Minimum\"), \"No Rebate\"), \"No Rebate\"),0)","v":0},0,0,0,0,0,0,0,0,0,{"$f":"IF(Table_PI[[#This Row],[Hide: Formula Name]]<>\"\",IF(AND(Table_PI[[#This Row],[Hide: Formula Name]]<>\"\",OR(Table_PI[[#This Row],[Hide: Rebate]]>0,Table_PI[[#This Row],[Hide: Rebate]]=\"No Rebate\")),TRUE,\"MI: Line Item \" & $A109),\"\")","v":""}]
[{"$f":"IF(Table_PI[[#This Row],[Hide: Formula Name]]<>\"\",MAX($A$2:A109)+1,\"\")","v":""},null,null,null,null,null,null,null,null,null,null,null,null,null,null,null,null,{"$f":"IFERROR(VLOOKUP(Table_PI[[#This Row],[Measure]],'Equipment Lookups'!$C$3:$D$23,2,FALSE),\"\")","v":""},0,{"$f":"IF(Table_PI[[#This Row],[Hide: Formula Name]]<>\"\",IFERROR(IF(AND(ISNUMBER(Table_PI[[#This Row],[Hide: Rebate]]),Table_PI[[#This Row],[Hide: Rebate]]>0), IF($S$401>=50, IF(AND(ProjectStage=\"(Installed)\",$S$401>'Customer Information'!$BC$21), 'Customer Information'!$BC$21*Table_PI[[#This Row],[Hide: Rebate]]/$S$401, IF($S$401<=300000, Table_PI[[#This Row],[Hide: Rebate]], ROUND(300000*Table_PI[[#This Row],[Hide: Rebate]]/'Project Information'!$S$401,2))), \"Does not meet $50 Minimum\"), \"No Rebate\"), \"No Rebate\"),0)","v":0},0,0,0,0,0,0,0,0,0,{"$f":"IF(Table_PI[[#This Row],[Hide: Formula Name]]<>\"\",IF(AND(Table_PI[[#This Row],[Hide: Formula Name]]<>\"\",OR(Table_PI[[#This Row],[Hide: Rebate]]>0,Table_PI[[#This Row],[Hide: Rebate]]=\"No Rebate\")),TRUE,\"MI: Line Item \" & $A110),\"\")","v":""}]
[{"$f":"IF(Table_PI[[#This Row],[Hide: Formula Name]]<>\"\",MAX($A$2:A110)+1,\"\")","v":""},null,null,null,null,null,null,null,null,null,null,null,null,null,null,null,null,{"$f":"IFERROR(VLOOKUP(Table_PI[[#This Row],[Measure]],'Equipment Lookups'!$C$3:$D$23,2,FALSE),\"\")","v":""},0,{"$f":"IF(Table_PI[[#This Row],[Hide: Formula Name]]<>\"\",IFERROR(IF(AND(ISNUMBER(Table_PI[[#This Row],[Hide: Rebate]]),Table_PI[[#This Row],[Hide: Rebate]]>0), IF($S$401>=50, IF(AND(ProjectStage=\"(Installed)\",$S$401>'Customer Information'!$BC$21), 'Customer Information'!$BC$21*Table_PI[[#This Row],[Hide: Rebate]]/$S$401, IF($S$401<=300000, Table_PI[[#This Row],[Hide: Rebate]], ROUND(300000*Table_PI[[#This Row],[Hide: Rebate]]/'Project Information'!$S$401,2))), \"Does not meet $50 Minimum\"), \"No Rebate\"), \"No Rebate\"),0)","v":0},0,0,0,0,0,0,0,0,0,{"$f":"IF(Table_PI[[#This Row],[Hide: Formula Name]]<>\"\",IF(AND(Table_PI[[#This Row],[Hide: Formula Name]]<>\"\",OR(Table_PI[[#This Row],[Hide: Rebate]]>0,Table_PI[[#This Row],[Hide: Rebate]]=\"No Rebate\")),TRUE,\"MI: Line Item \" & $A111),\"\")","v":""}]
[{"$f":"IF(Table_PI[[#This Row],[Hide: Formula Name]]<>\"\",MAX($A$2:A111)+1,\"\")","v":""},null,null,null,null,null,null,null,null,null,null,null,null,null,null,null,null,{"$f":"IFERROR(VLOOKUP(Table_PI[[#This Row],[Measure]],'Equipment Lookups'!$C$3:$D$23,2,FALSE),\"\")","v":""},0,{"$f":"IF(Table_PI[[#This Row],[Hide: Formula Name]]<>\"\",IFERROR(IF(AND(ISNUMBER(Table_PI[[#This Row],[Hide: Rebate]]),Table_PI[[#This Row],[Hide: Rebate]]>0), IF($S$401>=50, IF(AND(ProjectStage=\"(Installed)\",$S$401>'Customer Information'!$BC$21), 'Customer Information'!$BC$21*Table_PI[[#This Row],[Hide: Rebate]]/$S$401, IF($S$401<=300000, Table_PI[[#This Row],[Hide: Rebate]], ROUND(300000*Table_PI[[#This Row],[Hide: Rebate]]/'Project Information'!$S$401,2))), \"Does not meet $50 Minimum\"), \"No Rebate\"), \"No Rebate\"),0)","v":0},0,0,0,0,0,0,0,0,0,{"$f":"IF(Table_PI[[#This Row],[Hide: Formula Name]]<>\"\",IF(AND(Table_PI[[#This Row],[Hide: Formula Name]]<>\"\",OR(Table_PI[[#This Row],[Hide: Rebate]]>0,Table_PI[[#This Row],[Hide: Rebate]]=\"No Rebate\")),TRUE,\"MI: Line Item \" & $A112),\"\")","v":""}]
[{"$f":"IF(Table_PI[[#This Row],[Hide: Formula Name]]<>\"\",MAX($A$2:A112)+1,\"\")","v":""},null,null,null,null,null,null,null,null,null,null,null,null,null,null,null,null,{"$f":"IFERROR(VLOOKUP(Table_PI[[#This Row],[Measure]],'Equipment Lookups'!$C$3:$D$23,2,FALSE),\"\")","v":""},0,{"$f":"IF(Table_PI[[#This Row],[Hide: Formula Name]]<>\"\",IFERROR(IF(AND(ISNUMBER(Table_PI[[#This Row],[Hide: Rebate]]),Table_PI[[#This Row],[Hide: Rebate]]>0), IF($S$401>=50, IF(AND(ProjectStage=\"(Installed)\",$S$401>'Customer Information'!$BC$21), 'Customer Information'!$BC$21*Table_PI[[#This Row],[Hide: Rebate]]/$S$401, IF($S$401<=300000, Table_PI[[#This Row],[Hide: Rebate]], ROUND(300000*Table_PI[[#This Row],[Hide: Rebate]]/'Project Information'!$S$401,2))), \"Does not meet $50 Minimum\"), \"No Rebate\"), \"No Rebate\"),0)","v":0},0,0,0,0,0,0,0,0,0,{"$f":"IF(Table_PI[[#This Row],[Hide: Formula Name]]<>\"\",IF(AND(Table_PI[[#This Row],[Hide: Formula Name]]<>\"\",OR(Table_PI[[#This Row],[Hide: Rebate]]>0,Table_PI[[#This Row],[Hide: Rebate]]=\"No Rebate\")),TRUE,\"MI: Line Item \" & $A113),\"\")","v":""}]
[{"$f":"IF(Table_PI[[#This Row],[Hide: Formula Name]]<>\"\",MAX($A$2:A113)+1,\"\")","v":""},null,null,null,null,null,null,null,null,null,null,null,null,null,null,null,null,{"$f":"IFERROR(VLOOKUP(Table_PI[[#This Row],[Measure]],'Equipment Lookups'!$C$3:$D$23,2,FALSE),\"\")","v":""},0,{"$f":"IF(Table_PI[[#This Row],[Hide: Formula Name]]<>\"\",IFERROR(IF(AND(ISNUMBER(Table_PI[[#This Row],[Hide: Rebate]]),Table_PI[[#This Row],[Hide: Rebate]]>0), IF($S$401>=50, IF(AND(ProjectStage=\"(Installed)\",$S$401>'Customer Information'!$BC$21), 'Customer Information'!$BC$21*Table_PI[[#This Row],[Hide: Rebate]]/$S$401, IF($S$401<=300000, Table_PI[[#This Row],[Hide: Rebate]], ROUND(300000*Table_PI[[#This Row],[Hide: Rebate]]/'Project Information'!$S$401,2))), \"Does not meet $50 Minimum\"), \"No Rebate\"), \"No Rebate\"),0)","v":0},0,0,0,0,0,0,0,0,0,{"$f":"IF(Table_PI[[#This Row],[Hide: Formula Name]]<>\"\",IF(AND(Table_PI[[#This Row],[Hide: Formula Name]]<>\"\",OR(Table_PI[[#This Row],[Hide: Rebate]]>0,Table_PI[[#This Row],[Hide: Rebate]]=\"No Rebate\")),TRUE,\"MI: Line Item \" & $A114),\"\")","v":""}]
[{"$f":"IF(Table_PI[[#This Row],[Hide: Formula Name]]<>\"\",MAX($A$2:A114)+1,\"\")","v":""},null,null,null,null,null,null,null,null,null,null,null,null,null,null,null,null,{"$f":"IFERROR(VLOOKUP(Table_PI[[#This Row],[Measure]],'Equipment Lookups'!$C$3:$D$23,2,FALSE),\"\")","v":""},0,{"$f":"IF(Table_PI[[#This Row],[Hide: Formula Name]]<>\"\",IFERROR(IF(AND(ISNUMBER(Table_PI[[#This Row],[Hide: Rebate]]),Table_PI[[#This Row],[Hide: Rebate]]>0), IF($S$401>=50, IF(AND(ProjectStage=\"(Installed)\",$S$401>'Customer Information'!$BC$21), 'Customer Information'!$BC$21*Table_PI[[#This Row],[Hide: Rebate]]/$S$401, IF($S$401<=300000, Table_PI[[#This Row],[Hide: Rebate]], ROUND(300000*Table_PI[[#This Row],[Hide: Rebate]]/'Project Information'!$S$401,2))), \"Does not meet $50 Minimum\"), \"No Rebate\"), \"No Rebate\"),0)","v":0},0,0,0,0,0,0,0,0,0,{"$f":"IF(Table_PI[[#This Row],[Hide: Formula Name]]<>\"\",IF(AND(Table_PI[[#This Row],[Hide: Formula Name]]<>\"\",OR(Table_PI[[#This Row],[Hide: Rebate]]>0,Table_PI[[#This Row],[Hide: Rebate]]=\"No Rebate\")),TRUE,\"MI: Line Item \" & $A115),\"\")","v":""}]
[{"$f":"IF(Table_PI[[#This Row],[Hide: Formula Name]]<>\"\",MAX($A$2:A115)+1,\"\")","v":""},null,null,null,null,null,null,null,null,null,null,null,null,null,null,null,null,{"$f":"IFERROR(VLOOKUP(Table_PI[[#This Row],[Measure]],'Equipment Lookups'!$C$3:$D$23,2,FALSE),\"\")","v":""},0,{"$f":"IF(Table_PI[[#This Row],[Hide: Formula Name]]<>\"\",IFERROR(IF(AND(ISNUMBER(Table_PI[[#This Row],[Hide: Rebate]]),Table_PI[[#This Row],[Hide: Rebate]]>0), IF($S$401>=50, IF(AND(ProjectStage=\"(Installed)\",$S$401>'Customer Information'!$BC$21), 'Customer Information'!$BC$21*Table_PI[[#This Row],[Hide: Rebate]]/$S$401, IF($S$401<=300000, Table_PI[[#This Row],[Hide: Rebate]], ROUND(300000*Table_PI[[#This Row],[Hide: Rebate]]/'Project Information'!$S$401,2))), \"Does not meet $50 Minimum\"), \"No Rebate\"), \"No Rebate\"),0)","v":0},0,0,0,0,0,0,0,0,0,{"$f":"IF(Table_PI[[#This Row],[Hide: Formula Name]]<>\"\",IF(AND(Table_PI[[#This Row],[Hide: Formula Name]]<>\"\",OR(Table_PI[[#This Row],[Hide: Rebate]]>0,Table_PI[[#This Row],[Hide: Rebate]]=\"No Rebate\")),TRUE,\"MI: Line Item \" & $A116),\"\")","v":""}]
[{"$f":"IF(Table_PI[[#This Row],[Hide: Formula Name]]<>\"\",MAX($A$2:A116)+1,\"\")","v":""},null,null,null,null,null,null,null,null,null,null,null,null,null,null,null,null,{"$f":"IFERROR(VLOOKUP(Table_PI[[#This Row],[Measure]],'Equipment Lookups'!$C$3:$D$23,2,FALSE),\"\")","v":""},0,{"$f":"IF(Table_PI[[#This Row],[Hide: Formula Name]]<>\"\",IFERROR(IF(AND(ISNUMBER(Table_PI[[#This Row],[Hide: Rebate]]),Table_PI[[#This Row],[Hide: Rebate]]>0), IF($S$401>=50, IF(AND(ProjectStage=\"(Installed)\",$S$401>'Customer Information'!$BC$21), 'Customer Information'!$BC$21*Table_PI[[#This Row],[Hide: Rebate]]/$S$401, IF($S$401<=300000, Table_PI[[#This Row],[Hide: Rebate]], ROUND(300000*Table_PI[[#This Row],[Hide: Rebate]]/'Project Information'!$S$401,2))), \"Does not meet $50 Minimum\"), \"No Rebate\"), \"No Rebate\"),0)","v":0},0,0,0,0,0,0,0,0,0,{"$f":"IF(Table_PI[[#This Row],[Hide: Formula Name]]<>\"\",IF(AND(Table_PI[[#This Row],[Hide: Formula Name]]<>\"\",OR(Table_PI[[#This Row],[Hide: Rebate]]>0,Table_PI[[#This Row],[Hide: Rebate]]=\"No Rebate\")),TRUE,\"MI: Line Item \" & $A117),\"\")","v":""}]
[{"$f":"IF(Table_PI[[#This Row],[Hide: Formula Name]]<>\"\",MAX($A$2:A117)+1,\"\")","v":""},null,null,null,null,null,null,null,null,null,null,null,null,null,null,null,null,{"$f":"IFERROR(VLOOKUP(Table_PI[[#This Row],[Measure]],'Equipment Lookups'!$C$3:$D$23,2,FALSE),\"\")","v":""},0,{"$f":"IF(Table_PI[[#This Row],[Hide: Formula Name]]<>\"\",IFERROR(IF(AND(ISNUMBER(Table_PI[[#This Row],[Hide: Rebate]]),Table_PI[[#This Row],[Hide: Rebate]]>0), IF($S$401>=50, IF(AND(ProjectStage=\"(Installed)\",$S$401>'Customer Information'!$BC$21), 'Customer Information'!$BC$21*Table_PI[[#This Row],[Hide: Rebate]]/$S$401, IF($S$401<=300000, Table_PI[[#This Row],[Hide: Rebate]], ROUND(300000*Table_PI[[#This Row],[Hide: Rebate]]/'Project Information'!$S$401,2))), \"Does not meet $50 Minimum\"), \"No Rebate\"), \"No Rebate\"),0)","v":0},0,0,0,0,0,0,0,0,0,{"$f":"IF(Table_PI[[#This Row],[Hide: Formula Name]]<>\"\",IF(AND(Table_PI[[#This Row],[Hide: Formula Name]]<>\"\",OR(Table_PI[[#This Row],[Hide: Rebate]]>0,Table_PI[[#This Row],[Hide: Rebate]]=\"No Rebate\")),TRUE,\"MI: Line Item \" & $A118),\"\")","v":""}]
[{"$f":"IF(Table_PI[[#This Row],[Hide: Formula Name]]<>\"\",MAX($A$2:A118)+1,\"\")","v":""},null,null,null,null,null,null,null,null,null,null,null,null,null,null,null,null,{"$f":"IFERROR(VLOOKUP(Table_PI[[#This Row],[Measure]],'Equipment Lookups'!$C$3:$D$23,2,FALSE),\"\")","v":""},0,{"$f":"IF(Table_PI[[#This Row],[Hide: Formula Name]]<>\"\",IFERROR(IF(AND(ISNUMBER(Table_PI[[#This Row],[Hide: Rebate]]),Table_PI[[#This Row],[Hide: Rebate]]>0), IF($S$401>=50, IF(AND(ProjectStage=\"(Installed)\",$S$401>'Customer Information'!$BC$21), 'Customer Information'!$BC$21*Table_PI[[#This Row],[Hide: Rebate]]/$S$401, IF($S$401<=300000, Table_PI[[#This Row],[Hide: Rebate]], ROUND(300000*Table_PI[[#This Row],[Hide: Rebate]]/'Project Information'!$S$401,2))), \"Does not meet $50 Minimum\"), \"No Rebate\"), \"No Rebate\"),0)","v":0},0,0,0,0,0,0,0,0,0,{"$f":"IF(Table_PI[[#This Row],[Hide: Formula Name]]<>\"\",IF(AND(Table_PI[[#This Row],[Hide: Formula Name]]<>\"\",OR(Table_PI[[#This Row],[Hide: Rebate]]>0,Table_PI[[#This Row],[Hide: Rebate]]=\"No Rebate\")),TRUE,\"MI: Line Item \" & $A119),\"\")","v":""}]
[{"$f":"IF(Table_PI[[#This Row],[Hide: Formula Name]]<>\"\",MAX($A$2:A119)+1,\"\")","v":""},null,null,null,null,null,null,null,null,null,null,null,null,null,null,null,null,{"$f":"IFERROR(VLOOKUP(Table_PI[[#This Row],[Measure]],'Equipment Lookups'!$C$3:$D$23,2,FALSE),\"\")","v":""},0,{"$f":"IF(Table_PI[[#This Row],[Hide: Formula Name]]<>\"\",IFERROR(IF(AND(ISNUMBER(Table_PI[[#This Row],[Hide: Rebate]]),Table_PI[[#This Row],[Hide: Rebate]]>0), IF($S$401>=50, IF(AND(ProjectStage=\"(Installed)\",$S$401>'Customer Information'!$BC$21), 'Customer Information'!$BC$21*Table_PI[[#This Row],[Hide: Rebate]]/$S$401, IF($S$401<=300000, Table_PI[[#This Row],[Hide: Rebate]], ROUND(300000*Table_PI[[#This Row],[Hide: Rebate]]/'Project Information'!$S$401,2))), \"Does not meet $50 Minimum\"), \"No Rebate\"), \"No Rebate\"),0)","v":0},0,0,0,0,0,0,0,0,0,{"$f":"IF(Table_PI[[#This Row],[Hide: Formula Name]]<>\"\",IF(AND(Table_PI[[#This Row],[Hide: Formula Name]]<>\"\",OR(Table_PI[[#This Row],[Hide: Rebate]]>0,Table_PI[[#This Row],[Hide: Rebate]]=\"No Rebate\")),TRUE,\"MI: Line Item \" & $A120),\"\")","v":""}]
[{"$f":"IF(Table_PI[[#This Row],[Hide: Formula Name]]<>\"\",MAX($A$2:A120)+1,\"\")","v":""},null,null,null,null,null,null,null,null,null,null,null,null,null,null,null,null,{"$f":"IFERROR(VLOOKUP(Table_PI[[#This Row],[Measure]],'Equipment Lookups'!$C$3:$D$23,2,FALSE),\"\")","v":""},0,{"$f":"IF(Table_PI[[#This Row],[Hide: Formula Name]]<>\"\",IFERROR(IF(AND(ISNUMBER(Table_PI[[#This Row],[Hide: Rebate]]),Table_PI[[#This Row],[Hide: Rebate]]>0), IF($S$401>=50, IF(AND(ProjectStage=\"(Installed)\",$S$401>'Customer Information'!$BC$21), 'Customer Information'!$BC$21*Table_PI[[#This Row],[Hide: Rebate]]/$S$401, IF($S$401<=300000, Table_PI[[#This Row],[Hide: Rebate]], ROUND(300000*Table_PI[[#This Row],[Hide: Rebate]]/'Project Information'!$S$401,2))), \"Does not meet $50 Minimum\"), \"No Rebate\"), \"No Rebate\"),0)","v":0},0,0,0,0,0,0,0,0,0,{"$f":"IF(Table_PI[[#This Row],[Hide: Formula Name]]<>\"\",IF(AND(Table_PI[[#This Row],[Hide: Formula Name]]<>\"\",OR(Table_PI[[#This Row],[Hide: Rebate]]>0,Table_PI[[#This Row],[Hide: Rebate]]=\"No Rebate\")),TRUE,\"MI: Line Item \" & $A121),\"\")","v":""}]
[{"$f":"IF(Table_PI[[#This Row],[Hide: Formula Name]]<>\"\",MAX($A$2:A121)+1,\"\")","v":""},null,null,null,null,null,null,null,null,null,null,null,null,null,null,null,null,{"$f":"IFERROR(VLOOKUP(Table_PI[[#This Row],[Measure]],'Equipment Lookups'!$C$3:$D$23,2,FALSE),\"\")","v":""},0,{"$f":"IF(Table_PI[[#This Row],[Hide: Formula Name]]<>\"\",IFERROR(IF(AND(ISNUMBER(Table_PI[[#This Row],[Hide: Rebate]]),Table_PI[[#This Row],[Hide: Rebate]]>0), IF($S$401>=50, IF(AND(ProjectStage=\"(Installed)\",$S$401>'Customer Information'!$BC$21), 'Customer Information'!$BC$21*Table_PI[[#This Row],[Hide: Rebate]]/$S$401, IF($S$401<=300000, Table_PI[[#This Row],[Hide: Rebate]], ROUND(300000*Table_PI[[#This Row],[Hide: Rebate]]/'Project Information'!$S$401,2))), \"Does not meet $50 Minimum\"), \"No Rebate\"), \"No Rebate\"),0)","v":0},0,0,0,0,0,0,0,0,0,{"$f":"IF(Table_PI[[#This Row],[Hide: Formula Name]]<>\"\",IF(AND(Table_PI[[#This Row],[Hide: Formula Name]]<>\"\",OR(Table_PI[[#This Row],[Hide: Rebate]]>0,Table_PI[[#This Row],[Hide: Rebate]]=\"No Rebate\")),TRUE,\"MI: Line Item \" & $A122),\"\")","v":""}]
[{"$f":"IF(Table_PI[[#This Row],[Hide: Formula Name]]<>\"\",MAX($A$2:A122)+1,\"\")","v":""},null,null,null,null,null,null,null,null,null,null,null,null,null,null,null,null,{"$f":"IFERROR(VLOOKUP(Table_PI[[#This Row],[Measure]],'Equipment Lookups'!$C$3:$D$23,2,FALSE),\"\")","v":""},0,{"$f":"IF(Table_PI[[#This Row],[Hide: Formula Name]]<>\"\",IFERROR(IF(AND(ISNUMBER(Table_PI[[#This Row],[Hide: Rebate]]),Table_PI[[#This Row],[Hide: Rebate]]>0), IF($S$401>=50, IF(AND(ProjectStage=\"(Installed)\",$S$401>'Customer Information'!$BC$21), 'Customer Information'!$BC$21*Table_PI[[#This Row],[Hide: Rebate]]/$S$401, IF($S$401<=300000, Table_PI[[#This Row],[Hide: Rebate]], ROUND(300000*Table_PI[[#This Row],[Hide: Rebate]]/'Project Information'!$S$401,2))), \"Does not meet $50 Minimum\"), \"No Rebate\"), \"No Rebate\"),0)","v":0},0,0,0,0,0,0,0,0,0,{"$f":"IF(Table_PI[[#This Row],[Hide: Formula Name]]<>\"\",IF(AND(Table_PI[[#This Row],[Hide: Formula Name]]<>\"\",OR(Table_PI[[#This Row],[Hide: Rebate]]>0,Table_PI[[#This Row],[Hide: Rebate]]=\"No Rebate\")),TRUE,\"MI: Line Item \" & $A123),\"\")","v":""}]
[{"$f":"IF(Table_PI[[#This Row],[Hide: Formula Name]]<>\"\",MAX($A$2:A123)+1,\"\")","v":""},null,null,null,null,null,null,null,null,null,null,null,null,null,null,null,null,{"$f":"IFERROR(VLOOKUP(Table_PI[[#This Row],[Measure]],'Equipment Lookups'!$C$3:$D$23,2,FALSE),\"\")","v":""},0,{"$f":"IF(Table_PI[[#This Row],[Hide: Formula Name]]<>\"\",IFERROR(IF(AND(ISNUMBER(Table_PI[[#This Row],[Hide: Rebate]]),Table_PI[[#This Row],[Hide: Rebate]]>0), IF($S$401>=50, IF(AND(ProjectStage=\"(Installed)\",$S$401>'Customer Information'!$BC$21), 'Customer Information'!$BC$21*Table_PI[[#This Row],[Hide: Rebate]]/$S$401, IF($S$401<=300000, Table_PI[[#This Row],[Hide: Rebate]], ROUND(300000*Table_PI[[#This Row],[Hide: Rebate]]/'Project Information'!$S$401,2))), \"Does not meet $50 Minimum\"), \"No Rebate\"), \"No Rebate\"),0)","v":0},0,0,0,0,0,0,0,0,0,{"$f":"IF(Table_PI[[#This Row],[Hide: Formula Name]]<>\"\",IF(AND(Table_PI[[#This Row],[Hide: Formula Name]]<>\"\",OR(Table_PI[[#This Row],[Hide: Rebate]]>0,Table_PI[[#This Row],[Hide: Rebate]]=\"No Rebate\")),TRUE,\"MI: Line Item \" & $A124),\"\")","v":""}]
[{"$f":"IF(Table_PI[[#This Row],[Hide: Formula Name]]<>\"\",MAX($A$2:A124)+1,\"\")","v":""},null,null,null,null,null,null,null,null,null,null,null,null,null,null,null,null,{"$f":"IFERROR(VLOOKUP(Table_PI[[#This Row],[Measure]],'Equipment Lookups'!$C$3:$D$23,2,FALSE),\"\")","v":""},0,{"$f":"IF(Table_PI[[#This Row],[Hide: Formula Name]]<>\"\",IFERROR(IF(AND(ISNUMBER(Table_PI[[#This Row],[Hide: Rebate]]),Table_PI[[#This Row],[Hide: Rebate]]>0), IF($S$401>=50, IF(AND(ProjectStage=\"(Installed)\",$S$401>'Customer Information'!$BC$21), 'Customer Information'!$BC$21*Table_PI[[#This Row],[Hide: Rebate]]/$S$401, IF($S$401<=300000, Table_PI[[#This Row],[Hide: Rebate]], ROUND(300000*Table_PI[[#This Row],[Hide: Rebate]]/'Project Information'!$S$401,2))), \"Does not meet $50 Minimum\"), \"No Rebate\"), \"No Rebate\"),0)","v":0},0,0,0,0,0,0,0,0,0,{"$f":"IF(Table_PI[[#This Row],[Hide: Formula Name]]<>\"\",IF(AND(Table_PI[[#This Row],[Hide: Formula Name]]<>\"\",OR(Table_PI[[#This Row],[Hide: Rebate]]>0,Table_PI[[#This Row],[Hide: Rebate]]=\"No Rebate\")),TRUE,\"MI: Line Item \" & $A125),\"\")","v":""}]
[{"$f":"IF(Table_PI[[#This Row],[Hide: Formula Name]]<>\"\",MAX($A$2:A125)+1,\"\")","v":""},null,null,null,null,null,null,null,null,null,null,null,null,null,null,null,null,{"$f":"IFERROR(VLOOKUP(Table_PI[[#This Row],[Measure]],'Equipment Lookups'!$C$3:$D$23,2,FALSE),\"\")","v":""},0,{"$f":"IF(Table_PI[[#This Row],[Hide: Formula Name]]<>\"\",IFERROR(IF(AND(ISNUMBER(Table_PI[[#This Row],[Hide: Rebate]]),Table_PI[[#This Row],[Hide: Rebate]]>0), IF($S$401>=50, IF(AND(ProjectStage=\"(Installed)\",$S$401>'Customer Information'!$BC$21), 'Customer Information'!$BC$21*Table_PI[[#This Row],[Hide: Rebate]]/$S$401, IF($S$401<=300000, Table_PI[[#This Row],[Hide: Rebate]], ROUND(300000*Table_PI[[#This Row],[Hide: Rebate]]/'Project Information'!$S$401,2))), \"Does not meet $50 Minimum\"), \"No Rebate\"), \"No Rebate\"),0)","v":0},0,0,0,0,0,0,0,0,0,{"$f":"IF(Table_PI[[#This Row],[Hide: Formula Name]]<>\"\",IF(AND(Table_PI[[#This Row],[Hide: Formula Name]]<>\"\",OR(Table_PI[[#This Row],[Hide: Rebate]]>0,Table_PI[[#This Row],[Hide: Rebate]]=\"No Rebate\")),TRUE,\"MI: Line Item \" & $A126),\"\")","v":""}]
[{"$f":"IF(Table_PI[[#This Row],[Hide: Formula Name]]<>\"\",MAX($A$2:A126)+1,\"\")","v":""},null,null,null,null,null,null,null,null,null,null,null,null,null,null,null,null,{"$f":"IFERROR(VLOOKUP(Table_PI[[#This Row],[Measure]],'Equipment Lookups'!$C$3:$D$23,2,FALSE),\"\")","v":""},0,{"$f":"IF(Table_PI[[#This Row],[Hide: Formula Name]]<>\"\",IFERROR(IF(AND(ISNUMBER(Table_PI[[#This Row],[Hide: Rebate]]),Table_PI[[#This Row],[Hide: Rebate]]>0), IF($S$401>=50, IF(AND(ProjectStage=\"(Installed)\",$S$401>'Customer Information'!$BC$21), 'Customer Information'!$BC$21*Table_PI[[#This Row],[Hide: Rebate]]/$S$401, IF($S$401<=300000, Table_PI[[#This Row],[Hide: Rebate]], ROUND(300000*Table_PI[[#This Row],[Hide: Rebate]]/'Project Information'!$S$401,2))), \"Does not meet $50 Minimum\"), \"No Rebate\"), \"No Rebate\"),0)","v":0},0,0,0,0,0,0,0,0,0,{"$f":"IF(Table_PI[[#This Row],[Hide: Formula Name]]<>\"\",IF(AND(Table_PI[[#This Row],[Hide: Formula Name]]<>\"\",OR(Table_PI[[#This Row],[Hide: Rebate]]>0,Table_PI[[#This Row],[Hide: Rebate]]=\"No Rebate\")),TRUE,\"MI: Line Item \" & $A127),\"\")","v":""}]
[{"$f":"IF(Table_PI[[#This Row],[Hide: Formula Name]]<>\"\",MAX($A$2:A127)+1,\"\")","v":""},null,null,null,null,null,null,null,null,null,null,null,null,null,null,null,null,{"$f":"IFERROR(VLOOKUP(Table_PI[[#This Row],[Measure]],'Equipment Lookups'!$C$3:$D$23,2,FALSE),\"\")","v":""},0,{"$f":"IF(Table_PI[[#This Row],[Hide: Formula Name]]<>\"\",IFERROR(IF(AND(ISNUMBER(Table_PI[[#This Row],[Hide: Rebate]]),Table_PI[[#This Row],[Hide: Rebate]]>0), IF($S$401>=50, IF(AND(ProjectStage=\"(Installed)\",$S$401>'Customer Information'!$BC$21), 'Customer Information'!$BC$21*Table_PI[[#This Row],[Hide: Rebate]]/$S$401, IF($S$401<=300000, Table_PI[[#This Row],[Hide: Rebate]], ROUND(300000*Table_PI[[#This Row],[Hide: Rebate]]/'Project Information'!$S$401,2))), \"Does not meet $50 Minimum\"), \"No Rebate\"), \"No Rebate\"),0)","v":0},0,0,0,0,0,0,0,0,0,{"$f":"IF(Table_PI[[#This Row],[Hide: Formula Name]]<>\"\",IF(AND(Table_PI[[#This Row],[Hide: Formula Name]]<>\"\",OR(Table_PI[[#This Row],[Hide: Rebate]]>0,Table_PI[[#This Row],[Hide: Rebate]]=\"No Rebate\")),TRUE,\"MI: Line Item \" & $A128),\"\")","v":""}]
[{"$f":"IF(Table_PI[[#This Row],[Hide: Formula Name]]<>\"\",MAX($A$2:A128)+1,\"\")","v":""},null,null,null,null,null,null,null,null,null,null,null,null,null,null,null,null,{"$f":"IFERROR(VLOOKUP(Table_PI[[#This Row],[Measure]],'Equipment Lookups'!$C$3:$D$23,2,FALSE),\"\")","v":""},0,{"$f":"IF(Table_PI[[#This Row],[Hide: Formula Name]]<>\"\",IFERROR(IF(AND(ISNUMBER(Table_PI[[#This Row],[Hide: Rebate]]),Table_PI[[#This Row],[Hide: Rebate]]>0), IF($S$401>=50, IF(AND(ProjectStage=\"(Installed)\",$S$401>'Customer Information'!$BC$21), 'Customer Information'!$BC$21*Table_PI[[#This Row],[Hide: Rebate]]/$S$401, IF($S$401<=300000, Table_PI[[#This Row],[Hide: Rebate]], ROUND(300000*Table_PI[[#This Row],[Hide: Rebate]]/'Project Information'!$S$401,2))), \"Does not meet $50 Minimum\"), \"No Rebate\"), \"No Rebate\"),0)","v":0},0,0,0,0,0,0,0,0,0,{"$f":"IF(Table_PI[[#This Row],[Hide: Formula Name]]<>\"\",IF(AND(Table_PI[[#This Row],[Hide: Formula Name]]<>\"\",OR(Table_PI[[#This Row],[Hide: Rebate]]>0,Table_PI[[#This Row],[Hide: Rebate]]=\"No Rebate\")),TRUE,\"MI: Line Item \" & $A129),\"\")","v":""}]
[{"$f":"IF(Table_PI[[#This Row],[Hide: Formula Name]]<>\"\",MAX($A$2:A129)+1,\"\")","v":""},null,null,null,null,null,null,null,null,null,null,null,null,null,null,null,null,{"$f":"IFERROR(VLOOKUP(Table_PI[[#This Row],[Measure]],'Equipment Lookups'!$C$3:$D$23,2,FALSE),\"\")","v":""},0,{"$f":"IF(Table_PI[[#This Row],[Hide: Formula Name]]<>\"\",IFERROR(IF(AND(ISNUMBER(Table_PI[[#This Row],[Hide: Rebate]]),Table_PI[[#This Row],[Hide: Rebate]]>0), IF($S$401>=50, IF(AND(ProjectStage=\"(Installed)\",$S$401>'Customer Information'!$BC$21), 'Customer Information'!$BC$21*Table_PI[[#This Row],[Hide: Rebate]]/$S$401, IF($S$401<=300000, Table_PI[[#This Row],[Hide: Rebate]], ROUND(300000*Table_PI[[#This Row],[Hide: Rebate]]/'Project Information'!$S$401,2))), \"Does not meet $50 Minimum\"), \"No Rebate\"), \"No Rebate\"),0)","v":0},0,0,0,0,0,0,0,0,0,{"$f":"IF(Table_PI[[#This Row],[Hide: Formula Name]]<>\"\",IF(AND(Table_PI[[#This Row],[Hide: Formula Name]]<>\"\",OR(Table_PI[[#This Row],[Hide: Rebate]]>0,Table_PI[[#This Row],[Hide: Rebate]]=\"No Rebate\")),TRUE,\"MI: Line Item \" & $A130),\"\")","v":""}]
[{"$f":"IF(Table_PI[[#This Row],[Hide: Formula Name]]<>\"\",MAX($A$2:A130)+1,\"\")","v":""},null,null,null,null,null,null,null,null,null,null,null,null,null,null,null,null,{"$f":"IFERROR(VLOOKUP(Table_PI[[#This Row],[Measure]],'Equipment Lookups'!$C$3:$D$23,2,FALSE),\"\")","v":""},0,{"$f":"IF(Table_PI[[#This Row],[Hide: Formula Name]]<>\"\",IFERROR(IF(AND(ISNUMBER(Table_PI[[#This Row],[Hide: Rebate]]),Table_PI[[#This Row],[Hide: Rebate]]>0), IF($S$401>=50, IF(AND(ProjectStage=\"(Installed)\",$S$401>'Customer Information'!$BC$21), 'Customer Information'!$BC$21*Table_PI[[#This Row],[Hide: Rebate]]/$S$401, IF($S$401<=300000, Table_PI[[#This Row],[Hide: Rebate]], ROUND(300000*Table_PI[[#This Row],[Hide: Rebate]]/'Project Information'!$S$401,2))), \"Does not meet $50 Minimum\"), \"No Rebate\"), \"No Rebate\"),0)","v":0},0,0,0,0,0,0,0,0,0,{"$f":"IF(Table_PI[[#This Row],[Hide: Formula Name]]<>\"\",IF(AND(Table_PI[[#This Row],[Hide: Formula Name]]<>\"\",OR(Table_PI[[#This Row],[Hide: Rebate]]>0,Table_PI[[#This Row],[Hide: Rebate]]=\"No Rebate\")),TRUE,\"MI: Line Item \" & $A131),\"\")","v":""}]
[{"$f":"IF(Table_PI[[#This Row],[Hide: Formula Name]]<>\"\",MAX($A$2:A131)+1,\"\")","v":""},null,null,null,null,null,null,null,null,null,null,null,null,null,null,null,null,{"$f":"IFERROR(VLOOKUP(Table_PI[[#This Row],[Measure]],'Equipment Lookups'!$C$3:$D$23,2,FALSE),\"\")","v":""},0,{"$f":"IF(Table_PI[[#This Row],[Hide: Formula Name]]<>\"\",IFERROR(IF(AND(ISNUMBER(Table_PI[[#This Row],[Hide: Rebate]]),Table_PI[[#This Row],[Hide: Rebate]]>0), IF($S$401>=50, IF(AND(ProjectStage=\"(Installed)\",$S$401>'Customer Information'!$BC$21), 'Customer Information'!$BC$21*Table_PI[[#This Row],[Hide: Rebate]]/$S$401, IF($S$401<=300000, Table_PI[[#This Row],[Hide: Rebate]], ROUND(300000*Table_PI[[#This Row],[Hide: Rebate]]/'Project Information'!$S$401,2))), \"Does not meet $50 Minimum\"), \"No Rebate\"), \"No Rebate\"),0)","v":0},0,0,0,0,0,0,0,0,0,{"$f":"IF(Table_PI[[#This Row],[Hide: Formula Name]]<>\"\",IF(AND(Table_PI[[#This Row],[Hide: Formula Name]]<>\"\",OR(Table_PI[[#This Row],[Hide: Rebate]]>0,Table_PI[[#This Row],[Hide: Rebate]]=\"No Rebate\")),TRUE,\"MI: Line Item \" & $A132),\"\")","v":""}]
[{"$f":"IF(Table_PI[[#This Row],[Hide: Formula Name]]<>\"\",MAX($A$2:A132)+1,\"\")","v":""},null,null,null,null,null,null,null,null,null,null,null,null,null,null,null,null,{"$f":"IFERROR(VLOOKUP(Table_PI[[#This Row],[Measure]],'Equipment Lookups'!$C$3:$D$23,2,FALSE),\"\")","v":""},0,{"$f":"IF(Table_PI[[#This Row],[Hide: Formula Name]]<>\"\",IFERROR(IF(AND(ISNUMBER(Table_PI[[#This Row],[Hide: Rebate]]),Table_PI[[#This Row],[Hide: Rebate]]>0), IF($S$401>=50, IF(AND(ProjectStage=\"(Installed)\",$S$401>'Customer Information'!$BC$21), 'Customer Information'!$BC$21*Table_PI[[#This Row],[Hide: Rebate]]/$S$401, IF($S$401<=300000, Table_PI[[#This Row],[Hide: Rebate]], ROUND(300000*Table_PI[[#This Row],[Hide: Rebate]]/'Project Information'!$S$401,2))), \"Does not meet $50 Minimum\"), \"No Rebate\"), \"No Rebate\"),0)","v":0},0,0,0,0,0,0,0,0,0,{"$f":"IF(Table_PI[[#This Row],[Hide: Formula Name]]<>\"\",IF(AND(Table_PI[[#This Row],[Hide: Formula Name]]<>\"\",OR(Table_PI[[#This Row],[Hide: Rebate]]>0,Table_PI[[#This Row],[Hide: Rebate]]=\"No Rebate\")),TRUE,\"MI: Line Item \" & $A133),\"\")","v":""}]
[{"$f":"IF(Table_PI[[#This Row],[Hide: Formula Name]]<>\"\",MAX($A$2:A133)+1,\"\")","v":""},null,null,null,null,null,null,null,null,null,null,null,null,null,null,null,null,{"$f":"IFERROR(VLOOKUP(Table_PI[[#This Row],[Measure]],'Equipment Lookups'!$C$3:$D$23,2,FALSE),\"\")","v":""},0,{"$f":"IF(Table_PI[[#This Row],[Hide: Formula Name]]<>\"\",IFERROR(IF(AND(ISNUMBER(Table_PI[[#This Row],[Hide: Rebate]]),Table_PI[[#This Row],[Hide: Rebate]]>0), IF($S$401>=50, IF(AND(ProjectStage=\"(Installed)\",$S$401>'Customer Information'!$BC$21), 'Customer Information'!$BC$21*Table_PI[[#This Row],[Hide: Rebate]]/$S$401, IF($S$401<=300000, Table_PI[[#This Row],[Hide: Rebate]], ROUND(300000*Table_PI[[#This Row],[Hide: Rebate]]/'Project Information'!$S$401,2))), \"Does not meet $50 Minimum\"), \"No Rebate\"), \"No Rebate\"),0)","v":0},0,0,0,0,0,0,0,0,0,{"$f":"IF(Table_PI[[#This Row],[Hide: Formula Name]]<>\"\",IF(AND(Table_PI[[#This Row],[Hide: Formula Name]]<>\"\",OR(Table_PI[[#This Row],[Hide: Rebate]]>0,Table_PI[[#This Row],[Hide: Rebate]]=\"No Rebate\")),TRUE,\"MI: Line Item \" & $A134),\"\")","v":""}]
[{"$f":"IF(Table_PI[[#This Row],[Hide: Formula Name]]<>\"\",MAX($A$2:A134)+1,\"\")","v":""},null,null,null,null,null,null,null,null,null,null,null,null,null,null,null,null,{"$f":"IFERROR(VLOOKUP(Table_PI[[#This Row],[Measure]],'Equipment Lookups'!$C$3:$D$23,2,FALSE),\"\")","v":""},0,{"$f":"IF(Table_PI[[#This Row],[Hide: Formula Name]]<>\"\",IFERROR(IF(AND(ISNUMBER(Table_PI[[#This Row],[Hide: Rebate]]),Table_PI[[#This Row],[Hide: Rebate]]>0), IF($S$401>=50, IF(AND(ProjectStage=\"(Installed)\",$S$401>'Customer Information'!$BC$21), 'Customer Information'!$BC$21*Table_PI[[#This Row],[Hide: Rebate]]/$S$401, IF($S$401<=300000, Table_PI[[#This Row],[Hide: Rebate]], ROUND(300000*Table_PI[[#This Row],[Hide: Rebate]]/'Project Information'!$S$401,2))), \"Does not meet $50 Minimum\"), \"No Rebate\"), \"No Rebate\"),0)","v":0},0,0,0,0,0,0,0,0,0,{"$f":"IF(Table_PI[[#This Row],[Hide: Formula Name]]<>\"\",IF(AND(Table_PI[[#This Row],[Hide: Formula Name]]<>\"\",OR(Table_PI[[#This Row],[Hide: Rebate]]>0,Table_PI[[#This Row],[Hide: Rebate]]=\"No Rebate\")),TRUE,\"MI: Line Item \" & $A135),\"\")","v":""}]
[{"$f":"IF(Table_PI[[#This Row],[Hide: Formula Name]]<>\"\",MAX($A$2:A135)+1,\"\")","v":""},null,null,null,null,null,null,null,null,null,null,null,null,null,null,null,null,{"$f":"IFERROR(VLOOKUP(Table_PI[[#This Row],[Measure]],'Equipment Lookups'!$C$3:$D$23,2,FALSE),\"\")","v":""},0,{"$f":"IF(Table_PI[[#This Row],[Hide: Formula Name]]<>\"\",IFERROR(IF(AND(ISNUMBER(Table_PI[[#This Row],[Hide: Rebate]]),Table_PI[[#This Row],[Hide: Rebate]]>0), IF($S$401>=50, IF(AND(ProjectStage=\"(Installed)\",$S$401>'Customer Information'!$BC$21), 'Customer Information'!$BC$21*Table_PI[[#This Row],[Hide: Rebate]]/$S$401, IF($S$401<=300000, Table_PI[[#This Row],[Hide: Rebate]], ROUND(300000*Table_PI[[#This Row],[Hide: Rebate]]/'Project Information'!$S$401,2))), \"Does not meet $50 Minimum\"), \"No Rebate\"), \"No Rebate\"),0)","v":0},0,0,0,0,0,0,0,0,0,{"$f":"IF(Table_PI[[#This Row],[Hide: Formula Name]]<>\"\",IF(AND(Table_PI[[#This Row],[Hide: Formula Name]]<>\"\",OR(Table_PI[[#This Row],[Hide: Rebate]]>0,Table_PI[[#This Row],[Hide: Rebate]]=\"No Rebate\")),TRUE,\"MI: Line Item \" & $A136),\"\")","v":""}]
[{"$f":"IF(Table_PI[[#This Row],[Hide: Formula Name]]<>\"\",MAX($A$2:A136)+1,\"\")","v":""},null,null,null,null,null,null,null,null,null,null,null,null,null,null,null,null,{"$f":"IFERROR(VLOOKUP(Table_PI[[#This Row],[Measure]],'Equipment Lookups'!$C$3:$D$23,2,FALSE),\"\")","v":""},0,{"$f":"IF(Table_PI[[#This Row],[Hide: Formula Name]]<>\"\",IFERROR(IF(AND(ISNUMBER(Table_PI[[#This Row],[Hide: Rebate]]),Table_PI[[#This Row],[Hide: Rebate]]>0), IF($S$401>=50, IF(AND(ProjectStage=\"(Installed)\",$S$401>'Customer Information'!$BC$21), 'Customer Information'!$BC$21*Table_PI[[#This Row],[Hide: Rebate]]/$S$401, IF($S$401<=300000, Table_PI[[#This Row],[Hide: Rebate]], ROUND(300000*Table_PI[[#This Row],[Hide: Rebate]]/'Project Information'!$S$401,2))), \"Does not meet $50 Minimum\"), \"No Rebate\"), \"No Rebate\"),0)","v":0},0,0,0,0,0,0,0,0,0,{"$f":"IF(Table_PI[[#This Row],[Hide: Formula Name]]<>\"\",IF(AND(Table_PI[[#This Row],[Hide: Formula Name]]<>\"\",OR(Table_PI[[#This Row],[Hide: Rebate]]>0,Table_PI[[#This Row],[Hide: Rebate]]=\"No Rebate\")),TRUE,\"MI: Line Item \" & $A137),\"\")","v":""}]
[{"$f":"IF(Table_PI[[#This Row],[Hide: Formula Name]]<>\"\",MAX($A$2:A137)+1,\"\")","v":""},null,null,null,null,null,null,null,null,null,null,null,null,null,null,null,null,{"$f":"IFERROR(VLOOKUP(Table_PI[[#This Row],[Measure]],'Equipment Lookups'!$C$3:$D$23,2,FALSE),\"\")","v":""},0,{"$f":"IF(Table_PI[[#This Row],[Hide: Formula Name]]<>\"\",IFERROR(IF(AND(ISNUMBER(Table_PI[[#This Row],[Hide: Rebate]]),Table_PI[[#This Row],[Hide: Rebate]]>0), IF($S$401>=50, IF(AND(ProjectStage=\"(Installed)\",$S$401>'Customer Information'!$BC$21), 'Customer Information'!$BC$21*Table_PI[[#This Row],[Hide: Rebate]]/$S$401, IF($S$401<=300000, Table_PI[[#This Row],[Hide: Rebate]], ROUND(300000*Table_PI[[#This Row],[Hide: Rebate]]/'Project Information'!$S$401,2))), \"Does not meet $50 Minimum\"), \"No Rebate\"), \"No Rebate\"),0)","v":0},0,0,0,0,0,0,0,0,0,{"$f":"IF(Table_PI[[#This Row],[Hide: Formula Name]]<>\"\",IF(AND(Table_PI[[#This Row],[Hide: Formula Name]]<>\"\",OR(Table_PI[[#This Row],[Hide: Rebate]]>0,Table_PI[[#This Row],[Hide: Rebate]]=\"No Rebate\")),TRUE,\"MI: Line Item \" & $A138),\"\")","v":""}]
[{"$f":"IF(Table_PI[[#This Row],[Hide: Formula Name]]<>\"\",MAX($A$2:A138)+1,\"\")","v":""},null,null,null,null,null,null,null,null,null,null,null,null,null,null,null,null,{"$f":"IFERROR(VLOOKUP(Table_PI[[#This Row],[Measure]],'Equipment Lookups'!$C$3:$D$23,2,FALSE),\"\")","v":""},0,{"$f":"IF(Table_PI[[#This Row],[Hide: Formula Name]]<>\"\",IFERROR(IF(AND(ISNUMBER(Table_PI[[#This Row],[Hide: Rebate]]),Table_PI[[#This Row],[Hide: Rebate]]>0), IF($S$401>=50, IF(AND(ProjectStage=\"(Installed)\",$S$401>'Customer Information'!$BC$21), 'Customer Information'!$BC$21*Table_PI[[#This Row],[Hide: Rebate]]/$S$401, IF($S$401<=300000, Table_PI[[#This Row],[Hide: Rebate]], ROUND(300000*Table_PI[[#This Row],[Hide: Rebate]]/'Project Information'!$S$401,2))), \"Does not meet $50 Minimum\"), \"No Rebate\"), \"No Rebate\"),0)","v":0},0,0,0,0,0,0,0,0,0,{"$f":"IF(Table_PI[[#This Row],[Hide: Formula Name]]<>\"\",IF(AND(Table_PI[[#This Row],[Hide: Formula Name]]<>\"\",OR(Table_PI[[#This Row],[Hide: Rebate]]>0,Table_PI[[#This Row],[Hide: Rebate]]=\"No Rebate\")),TRUE,\"MI: Line Item \" & $A139),\"\")","v":""}]
[{"$f":"IF(Table_PI[[#This Row],[Hide: Formula Name]]<>\"\",MAX($A$2:A139)+1,\"\")","v":""},null,null,null,null,null,null,null,null,null,null,null,null,null,null,null,null,{"$f":"IFERROR(VLOOKUP(Table_PI[[#This Row],[Measure]],'Equipment Lookups'!$C$3:$D$23,2,FALSE),\"\")","v":""},0,{"$f":"IF(Table_PI[[#This Row],[Hide: Formula Name]]<>\"\",IFERROR(IF(AND(ISNUMBER(Table_PI[[#This Row],[Hide: Rebate]]),Table_PI[[#This Row],[Hide: Rebate]]>0), IF($S$401>=50, IF(AND(ProjectStage=\"(Installed)\",$S$401>'Customer Information'!$BC$21), 'Customer Information'!$BC$21*Table_PI[[#This Row],[Hide: Rebate]]/$S$401, IF($S$401<=300000, Table_PI[[#This Row],[Hide: Rebate]], ROUND(300000*Table_PI[[#This Row],[Hide: Rebate]]/'Project Information'!$S$401,2))), \"Does not meet $50 Minimum\"), \"No Rebate\"), \"No Rebate\"),0)","v":0},0,0,0,0,0,0,0,0,0,{"$f":"IF(Table_PI[[#This Row],[Hide: Formula Name]]<>\"\",IF(AND(Table_PI[[#This Row],[Hide: Formula Name]]<>\"\",OR(Table_PI[[#This Row],[Hide: Rebate]]>0,Table_PI[[#This Row],[Hide: Rebate]]=\"No Rebate\")),TRUE,\"MI: Line Item \" & $A140),\"\")","v":""}]
[{"$f":"IF(Table_PI[[#This Row],[Hide: Formula Name]]<>\"\",MAX($A$2:A140)+1,\"\")","v":""},null,null,null,null,null,null,null,null,null,null,null,null,null,null,null,null,{"$f":"IFERROR(VLOOKUP(Table_PI[[#This Row],[Measure]],'Equipment Lookups'!$C$3:$D$23,2,FALSE),\"\")","v":""},0,{"$f":"IF(Table_PI[[#This Row],[Hide: Formula Name]]<>\"\",IFERROR(IF(AND(ISNUMBER(Table_PI[[#This Row],[Hide: Rebate]]),Table_PI[[#This Row],[Hide: Rebate]]>0), IF($S$401>=50, IF(AND(ProjectStage=\"(Installed)\",$S$401>'Customer Information'!$BC$21), 'Customer Information'!$BC$21*Table_PI[[#This Row],[Hide: Rebate]]/$S$401, IF($S$401<=300000, Table_PI[[#This Row],[Hide: Rebate]], ROUND(300000*Table_PI[[#This Row],[Hide: Rebate]]/'Project Information'!$S$401,2))), \"Does not meet $50 Minimum\"), \"No Rebate\"), \"No Rebate\"),0)","v":0},0,0,0,0,0,0,0,0,0,{"$f":"IF(Table_PI[[#This Row],[Hide: Formula Name]]<>\"\",IF(AND(Table_PI[[#This Row],[Hide: Formula Name]]<>\"\",OR(Table_PI[[#This Row],[Hide: Rebate]]>0,Table_PI[[#This Row],[Hide: Rebate]]=\"No Rebate\")),TRUE,\"MI: Line Item \" & $A141),\"\")","v":""}]
[{"$f":"IF(Table_PI[[#This Row],[Hide: Formula Name]]<>\"\",MAX($A$2:A141)+1,\"\")","v":""},null,null,null,null,null,null,null,null,null,null,null,null,null,null,null,null,{"$f":"IFERROR(VLOOKUP(Table_PI[[#This Row],[Measure]],'Equipment Lookups'!$C$3:$D$23,2,FALSE),\"\")","v":""},0,{"$f":"IF(Table_PI[[#This Row],[Hide: Formula Name]]<>\"\",IFERROR(IF(AND(ISNUMBER(Table_PI[[#This Row],[Hide: Rebate]]),Table_PI[[#This Row],[Hide: Rebate]]>0), IF($S$401>=50, IF(AND(ProjectStage=\"(Installed)\",$S$401>'Customer Information'!$BC$21), 'Customer Information'!$BC$21*Table_PI[[#This Row],[Hide: Rebate]]/$S$401, IF($S$401<=300000, Table_PI[[#This Row],[Hide: Rebate]], ROUND(300000*Table_PI[[#This Row],[Hide: Rebate]]/'Project Information'!$S$401,2))), \"Does not meet $50 Minimum\"), \"No Rebate\"), \"No Rebate\"),0)","v":0},0,0,0,0,0,0,0,0,0,{"$f":"IF(Table_PI[[#This Row],[Hide: Formula Name]]<>\"\",IF(AND(Table_PI[[#This Row],[Hide: Formula Name]]<>\"\",OR(Table_PI[[#This Row],[Hide: Rebate]]>0,Table_PI[[#This Row],[Hide: Rebate]]=\"No Rebate\")),TRUE,\"MI: Line Item \" & $A142),\"\")","v":""}]
[{"$f":"IF(Table_PI[[#This Row],[Hide: Formula Name]]<>\"\",MAX($A$2:A142)+1,\"\")","v":""},null,null,null,null,null,null,null,null,null,null,null,null,null,null,null,null,{"$f":"IFERROR(VLOOKUP(Table_PI[[#This Row],[Measure]],'Equipment Lookups'!$C$3:$D$23,2,FALSE),\"\")","v":""},0,{"$f":"IF(Table_PI[[#This Row],[Hide: Formula Name]]<>\"\",IFERROR(IF(AND(ISNUMBER(Table_PI[[#This Row],[Hide: Rebate]]),Table_PI[[#This Row],[Hide: Rebate]]>0), IF($S$401>=50, IF(AND(ProjectStage=\"(Installed)\",$S$401>'Customer Information'!$BC$21), 'Customer Information'!$BC$21*Table_PI[[#This Row],[Hide: Rebate]]/$S$401, IF($S$401<=300000, Table_PI[[#This Row],[Hide: Rebate]], ROUND(300000*Table_PI[[#This Row],[Hide: Rebate]]/'Project Information'!$S$401,2))), \"Does not meet $50 Minimum\"), \"No Rebate\"), \"No Rebate\"),0)","v":0},0,0,0,0,0,0,0,0,0,{"$f":"IF(Table_PI[[#This Row],[Hide: Formula Name]]<>\"\",IF(AND(Table_PI[[#This Row],[Hide: Formula Name]]<>\"\",OR(Table_PI[[#This Row],[Hide: Rebate]]>0,Table_PI[[#This Row],[Hide: Rebate]]=\"No Rebate\")),TRUE,\"MI: Line Item \" & $A143),\"\")","v":""}]
[{"$f":"IF(Table_PI[[#This Row],[Hide: Formula Name]]<>\"\",MAX($A$2:A143)+1,\"\")","v":""},null,null,null,null,null,null,null,null,null,null,null,null,null,null,null,null,{"$f":"IFERROR(VLOOKUP(Table_PI[[#This Row],[Measure]],'Equipment Lookups'!$C$3:$D$23,2,FALSE),\"\")","v":""},0,{"$f":"IF(Table_PI[[#This Row],[Hide: Formula Name]]<>\"\",IFERROR(IF(AND(ISNUMBER(Table_PI[[#This Row],[Hide: Rebate]]),Table_PI[[#This Row],[Hide: Rebate]]>0), IF($S$401>=50, IF(AND(ProjectStage=\"(Installed)\",$S$401>'Customer Information'!$BC$21), 'Customer Information'!$BC$21*Table_PI[[#This Row],[Hide: Rebate]]/$S$401, IF($S$401<=300000, Table_PI[[#This Row],[Hide: Rebate]], ROUND(300000*Table_PI[[#This Row],[Hide: Rebate]]/'Project Information'!$S$401,2))), \"Does not meet $50 Minimum\"), \"No Rebate\"), \"No Rebate\"),0)","v":0},0,0,0,0,0,0,0,0,0,{"$f":"IF(Table_PI[[#This Row],[Hide: Formula Name]]<>\"\",IF(AND(Table_PI[[#This Row],[Hide: Formula Name]]<>\"\",OR(Table_PI[[#This Row],[Hide: Rebate]]>0,Table_PI[[#This Row],[Hide: Rebate]]=\"No Rebate\")),TRUE,\"MI: Line Item \" & $A144),\"\")","v":""}]
[{"$f":"IF(Table_PI[[#This Row],[Hide: Formula Name]]<>\"\",MAX($A$2:A144)+1,\"\")","v":""},null,null,null,null,null,null,null,null,null,null,null,null,null,null,null,null,{"$f":"IFERROR(VLOOKUP(Table_PI[[#This Row],[Measure]],'Equipment Lookups'!$C$3:$D$23,2,FALSE),\"\")","v":""},0,{"$f":"IF(Table_PI[[#This Row],[Hide: Formula Name]]<>\"\",IFERROR(IF(AND(ISNUMBER(Table_PI[[#This Row],[Hide: Rebate]]),Table_PI[[#This Row],[Hide: Rebate]]>0), IF($S$401>=50, IF(AND(ProjectStage=\"(Installed)\",$S$401>'Customer Information'!$BC$21), 'Customer Information'!$BC$21*Table_PI[[#This Row],[Hide: Rebate]]/$S$401, IF($S$401<=300000, Table_PI[[#This Row],[Hide: Rebate]], ROUND(300000*Table_PI[[#This Row],[Hide: Rebate]]/'Project Information'!$S$401,2))), \"Does not meet $50 Minimum\"), \"No Rebate\"), \"No Rebate\"),0)","v":0},0,0,0,0,0,0,0,0,0,{"$f":"IF(Table_PI[[#This Row],[Hide: Formula Name]]<>\"\",IF(AND(Table_PI[[#This Row],[Hide: Formula Name]]<>\"\",OR(Table_PI[[#This Row],[Hide: Rebate]]>0,Table_PI[[#This Row],[Hide: Rebate]]=\"No Rebate\")),TRUE,\"MI: Line Item \" & $A145),\"\")","v":""}]
[{"$f":"IF(Table_PI[[#This Row],[Hide: Formula Name]]<>\"\",MAX($A$2:A145)+1,\"\")","v":""},null,null,null,null,null,null,null,null,null,null,null,null,null,null,null,null,{"$f":"IFERROR(VLOOKUP(Table_PI[[#This Row],[Measure]],'Equipment Lookups'!$C$3:$D$23,2,FALSE),\"\")","v":""},0,{"$f":"IF(Table_PI[[#This Row],[Hide: Formula Name]]<>\"\",IFERROR(IF(AND(ISNUMBER(Table_PI[[#This Row],[Hide: Rebate]]),Table_PI[[#This Row],[Hide: Rebate]]>0), IF($S$401>=50, IF(AND(ProjectStage=\"(Installed)\",$S$401>'Customer Information'!$BC$21), 'Customer Information'!$BC$21*Table_PI[[#This Row],[Hide: Rebate]]/$S$401, IF($S$401<=300000, Table_PI[[#This Row],[Hide: Rebate]], ROUND(300000*Table_PI[[#This Row],[Hide: Rebate]]/'Project Information'!$S$401,2))), \"Does not meet $50 Minimum\"), \"No Rebate\"), \"No Rebate\"),0)","v":0},0,0,0,0,0,0,0,0,0,{"$f":"IF(Table_PI[[#This Row],[Hide: Formula Name]]<>\"\",IF(AND(Table_PI[[#This Row],[Hide: Formula Name]]<>\"\",OR(Table_PI[[#This Row],[Hide: Rebate]]>0,Table_PI[[#This Row],[Hide: Rebate]]=\"No Rebate\")),TRUE,\"MI: Line Item \" & $A146),\"\")","v":""}]
[{"$f":"IF(Table_PI[[#This Row],[Hide: Formula Name]]<>\"\",MAX($A$2:A146)+1,\"\")","v":""},null,null,null,null,null,null,null,null,null,null,null,null,null,null,null,null,{"$f":"IFERROR(VLOOKUP(Table_PI[[#This Row],[Measure]],'Equipment Lookups'!$C$3:$D$23,2,FALSE),\"\")","v":""},0,{"$f":"IF(Table_PI[[#This Row],[Hide: Formula Name]]<>\"\",IFERROR(IF(AND(ISNUMBER(Table_PI[[#This Row],[Hide: Rebate]]),Table_PI[[#This Row],[Hide: Rebate]]>0), IF($S$401>=50, IF(AND(ProjectStage=\"(Installed)\",$S$401>'Customer Information'!$BC$21), 'Customer Information'!$BC$21*Table_PI[[#This Row],[Hide: Rebate]]/$S$401, IF($S$401<=300000, Table_PI[[#This Row],[Hide: Rebate]], ROUND(300000*Table_PI[[#This Row],[Hide: Rebate]]/'Project Information'!$S$401,2))), \"Does not meet $50 Minimum\"), \"No Rebate\"), \"No Rebate\"),0)","v":0},0,0,0,0,0,0,0,0,0,{"$f":"IF(Table_PI[[#This Row],[Hide: Formula Name]]<>\"\",IF(AND(Table_PI[[#This Row],[Hide: Formula Name]]<>\"\",OR(Table_PI[[#This Row],[Hide: Rebate]]>0,Table_PI[[#This Row],[Hide: Rebate]]=\"No Rebate\")),TRUE,\"MI: Line Item \" & $A147),\"\")","v":""}]
[{"$f":"IF(Table_PI[[#This Row],[Hide: Formula Name]]<>\"\",MAX($A$2:A147)+1,\"\")","v":""},null,null,null,null,null,null,null,null,null,null,null,null,null,null,null,null,{"$f":"IFERROR(VLOOKUP(Table_PI[[#This Row],[Measure]],'Equipment Lookups'!$C$3:$D$23,2,FALSE),\"\")","v":""},0,{"$f":"IF(Table_PI[[#This Row],[Hide: Formula Name]]<>\"\",IFERROR(IF(AND(ISNUMBER(Table_PI[[#This Row],[Hide: Rebate]]),Table_PI[[#This Row],[Hide: Rebate]]>0), IF($S$401>=50, IF(AND(ProjectStage=\"(Installed)\",$S$401>'Customer Information'!$BC$21), 'Customer Information'!$BC$21*Table_PI[[#This Row],[Hide: Rebate]]/$S$401, IF($S$401<=300000, Table_PI[[#This Row],[Hide: Rebate]], ROUND(300000*Table_PI[[#This Row],[Hide: Rebate]]/'Project Information'!$S$401,2))), \"Does not meet $50 Minimum\"), \"No Rebate\"), \"No Rebate\"),0)","v":0},0,0,0,0,0,0,0,0,0,{"$f":"IF(Table_PI[[#This Row],[Hide: Formula Name]]<>\"\",IF(AND(Table_PI[[#This Row],[Hide: Formula Name]]<>\"\",OR(Table_PI[[#This Row],[Hide: Rebate]]>0,Table_PI[[#This Row],[Hide: Rebate]]=\"No Rebate\")),TRUE,\"MI: Line Item \" & $A148),\"\")","v":""}]
[{"$f":"IF(Table_PI[[#This Row],[Hide: Formula Name]]<>\"\",MAX($A$2:A148)+1,\"\")","v":""},null,null,null,null,null,null,null,null,null,null,null,null,null,null,null,null,{"$f":"IFERROR(VLOOKUP(Table_PI[[#This Row],[Measure]],'Equipment Lookups'!$C$3:$D$23,2,FALSE),\"\")","v":""},0,{"$f":"IF(Table_PI[[#This Row],[Hide: Formula Name]]<>\"\",IFERROR(IF(AND(ISNUMBER(Table_PI[[#This Row],[Hide: Rebate]]),Table_PI[[#This Row],[Hide: Rebate]]>0), IF($S$401>=50, IF(AND(ProjectStage=\"(Installed)\",$S$401>'Customer Information'!$BC$21), 'Customer Information'!$BC$21*Table_PI[[#This Row],[Hide: Rebate]]/$S$401, IF($S$401<=300000, Table_PI[[#This Row],[Hide: Rebate]], ROUND(300000*Table_PI[[#This Row],[Hide: Rebate]]/'Project Information'!$S$401,2))), \"Does not meet $50 Minimum\"), \"No Rebate\"), \"No Rebate\"),0)","v":0},0,0,0,0,0,0,0,0,0,{"$f":"IF(Table_PI[[#This Row],[Hide: Formula Name]]<>\"\",IF(AND(Table_PI[[#This Row],[Hide: Formula Name]]<>\"\",OR(Table_PI[[#This Row],[Hide: Rebate]]>0,Table_PI[[#This Row],[Hide: Rebate]]=\"No Rebate\")),TRUE,\"MI: Line Item \" & $A149),\"\")","v":""}]
[{"$f":"IF(Table_PI[[#This Row],[Hide: Formula Name]]<>\"\",MAX($A$2:A149)+1,\"\")","v":""},null,null,null,null,null,null,null,null,null,null,null,null,null,null,null,null,{"$f":"IFERROR(VLOOKUP(Table_PI[[#This Row],[Measure]],'Equipment Lookups'!$C$3:$D$23,2,FALSE),\"\")","v":""},0,{"$f":"IF(Table_PI[[#This Row],[Hide: Formula Name]]<>\"\",IFERROR(IF(AND(ISNUMBER(Table_PI[[#This Row],[Hide: Rebate]]),Table_PI[[#This Row],[Hide: Rebate]]>0), IF($S$401>=50, IF(AND(ProjectStage=\"(Installed)\",$S$401>'Customer Information'!$BC$21), 'Customer Information'!$BC$21*Table_PI[[#This Row],[Hide: Rebate]]/$S$401, IF($S$401<=300000, Table_PI[[#This Row],[Hide: Rebate]], ROUND(300000*Table_PI[[#This Row],[Hide: Rebate]]/'Project Information'!$S$401,2))), \"Does not meet $50 Minimum\"), \"No Rebate\"), \"No Rebate\"),0)","v":0},0,0,0,0,0,0,0,0,0,{"$f":"IF(Table_PI[[#This Row],[Hide: Formula Name]]<>\"\",IF(AND(Table_PI[[#This Row],[Hide: Formula Name]]<>\"\",OR(Table_PI[[#This Row],[Hide: Rebate]]>0,Table_PI[[#This Row],[Hide: Rebate]]=\"No Rebate\")),TRUE,\"MI: Line Item \" & $A150),\"\")","v":""}]
[{"$f":"IF(Table_PI[[#This Row],[Hide: Formula Name]]<>\"\",MAX($A$2:A150)+1,\"\")","v":""},null,null,null,null,null,null,null,null,null,null,null,null,null,null,null,null,{"$f":"IFERROR(VLOOKUP(Table_PI[[#This Row],[Measure]],'Equipment Lookups'!$C$3:$D$23,2,FALSE),\"\")","v":""},0,{"$f":"IF(Table_PI[[#This Row],[Hide: Formula Name]]<>\"\",IFERROR(IF(AND(ISNUMBER(Table_PI[[#This Row],[Hide: Rebate]]),Table_PI[[#This Row],[Hide: Rebate]]>0), IF($S$401>=50, IF(AND(ProjectStage=\"(Installed)\",$S$401>'Customer Information'!$BC$21), 'Customer Information'!$BC$21*Table_PI[[#This Row],[Hide: Rebate]]/$S$401, IF($S$401<=300000, Table_PI[[#This Row],[Hide: Rebate]], ROUND(300000*Table_PI[[#This Row],[Hide: Rebate]]/'Project Information'!$S$401,2))), \"Does not meet $50 Minimum\"), \"No Rebate\"), \"No Rebate\"),0)","v":0},0,0,0,0,0,0,0,0,0,{"$f":"IF(Table_PI[[#This Row],[Hide: Formula Name]]<>\"\",IF(AND(Table_PI[[#This Row],[Hide: Formula Name]]<>\"\",OR(Table_PI[[#This Row],[Hide: Rebate]]>0,Table_PI[[#This Row],[Hide: Rebate]]=\"No Rebate\")),TRUE,\"MI: Line Item \" & $A151),\"\")","v":""}]
[{"$f":"IF(Table_PI[[#This Row],[Hide: Formula Name]]<>\"\",MAX($A$2:A151)+1,\"\")","v":""},null,null,null,null,null,null,null,null,null,null,null,null,null,null,null,null,{"$f":"IFERROR(VLOOKUP(Table_PI[[#This Row],[Measure]],'Equipment Lookups'!$C$3:$D$23,2,FALSE),\"\")","v":""},0,{"$f":"IF(Table_PI[[#This Row],[Hide: Formula Name]]<>\"\",IFERROR(IF(AND(ISNUMBER(Table_PI[[#This Row],[Hide: Rebate]]),Table_PI[[#This Row],[Hide: Rebate]]>0), IF($S$401>=50, IF(AND(ProjectStage=\"(Installed)\",$S$401>'Customer Information'!$BC$21), 'Customer Information'!$BC$21*Table_PI[[#This Row],[Hide: Rebate]]/$S$401, IF($S$401<=300000, Table_PI[[#This Row],[Hide: Rebate]], ROUND(300000*Table_PI[[#This Row],[Hide: Rebate]]/'Project Information'!$S$401,2))), \"Does not meet $50 Minimum\"), \"No Rebate\"), \"No Rebate\"),0)","v":0},0,0,0,0,0,0,0,0,0,{"$f":"IF(Table_PI[[#This Row],[Hide: Formula Name]]<>\"\",IF(AND(Table_PI[[#This Row],[Hide: Formula Name]]<>\"\",OR(Table_PI[[#This Row],[Hide: Rebate]]>0,Table_PI[[#This Row],[Hide: Rebate]]=\"No Rebate\")),TRUE,\"MI: Line Item \" & $A152),\"\")","v":""}]
[{"$f":"IF(Table_PI[[#This Row],[Hide: Formula Name]]<>\"\",MAX($A$2:A152)+1,\"\")","v":""},null,null,null,null,null,null,null,null,null,null,null,null,null,null,null,null,{"$f":"IFERROR(VLOOKUP(Table_PI[[#This Row],[Measure]],'Equipment Lookups'!$C$3:$D$23,2,FALSE),\"\")","v":""},0,{"$f":"IF(Table_PI[[#This Row],[Hide: Formula Name]]<>\"\",IFERROR(IF(AND(ISNUMBER(Table_PI[[#This Row],[Hide: Rebate]]),Table_PI[[#This Row],[Hide: Rebate]]>0), IF($S$401>=50, IF(AND(ProjectStage=\"(Installed)\",$S$401>'Customer Information'!$BC$21), 'Customer Information'!$BC$21*Table_PI[[#This Row],[Hide: Rebate]]/$S$401, IF($S$401<=300000, Table_PI[[#This Row],[Hide: Rebate]], ROUND(300000*Table_PI[[#This Row],[Hide: Rebate]]/'Project Information'!$S$401,2))), \"Does not meet $50 Minimum\"), \"No Rebate\"), \"No Rebate\"),0)","v":0},0,0,0,0,0,0,0,0,0,{"$f":"IF(Table_PI[[#This Row],[Hide: Formula Name]]<>\"\",IF(AND(Table_PI[[#This Row],[Hide: Formula Name]]<>\"\",OR(Table_PI[[#This Row],[Hide: Rebate]]>0,Table_PI[[#This Row],[Hide: Rebate]]=\"No Rebate\")),TRUE,\"MI: Line Item \" & $A153),\"\")","v":""}]
[{"$f":"IF(Table_PI[[#This Row],[Hide: Formula Name]]<>\"\",MAX($A$2:A153)+1,\"\")","v":""},null,null,null,null,null,null,null,null,null,null,null,null,null,null,null,null,{"$f":"IFERROR(VLOOKUP(Table_PI[[#This Row],[Measure]],'Equipment Lookups'!$C$3:$D$23,2,FALSE),\"\")","v":""},0,{"$f":"IF(Table_PI[[#This Row],[Hide: Formula Name]]<>\"\",IFERROR(IF(AND(ISNUMBER(Table_PI[[#This Row],[Hide: Rebate]]),Table_PI[[#This Row],[Hide: Rebate]]>0), IF($S$401>=50, IF(AND(ProjectStage=\"(Installed)\",$S$401>'Customer Information'!$BC$21), 'Customer Information'!$BC$21*Table_PI[[#This Row],[Hide: Rebate]]/$S$401, IF($S$401<=300000, Table_PI[[#This Row],[Hide: Rebate]], ROUND(300000*Table_PI[[#This Row],[Hide: Rebate]]/'Project Information'!$S$401,2))), \"Does not meet $50 Minimum\"), \"No Rebate\"), \"No Rebate\"),0)","v":0},0,0,0,0,0,0,0,0,0,{"$f":"IF(Table_PI[[#This Row],[Hide: Formula Name]]<>\"\",IF(AND(Table_PI[[#This Row],[Hide: Formula Name]]<>\"\",OR(Table_PI[[#This Row],[Hide: Rebate]]>0,Table_PI[[#This Row],[Hide: Rebate]]=\"No Rebate\")),TRUE,\"MI: Line Item \" & $A154),\"\")","v":""}]
[{"$f":"IF(Table_PI[[#This Row],[Hide: Formula Name]]<>\"\",MAX($A$2:A154)+1,\"\")","v":""},null,null,null,null,null,null,null,null,null,null,null,null,null,null,null,null,{"$f":"IFERROR(VLOOKUP(Table_PI[[#This Row],[Measure]],'Equipment Lookups'!$C$3:$D$23,2,FALSE),\"\")","v":""},0,{"$f":"IF(Table_PI[[#This Row],[Hide: Formula Name]]<>\"\",IFERROR(IF(AND(ISNUMBER(Table_PI[[#This Row],[Hide: Rebate]]),Table_PI[[#This Row],[Hide: Rebate]]>0), IF($S$401>=50, IF(AND(ProjectStage=\"(Installed)\",$S$401>'Customer Information'!$BC$21), 'Customer Information'!$BC$21*Table_PI[[#This Row],[Hide: Rebate]]/$S$401, IF($S$401<=300000, Table_PI[[#This Row],[Hide: Rebate]], ROUND(300000*Table_PI[[#This Row],[Hide: Rebate]]/'Project Information'!$S$401,2))), \"Does not meet $50 Minimum\"), \"No Rebate\"), \"No Rebate\"),0)","v":0},0,0,0,0,0,0,0,0,0,{"$f":"IF(Table_PI[[#This Row],[Hide: Formula Name]]<>\"\",IF(AND(Table_PI[[#This Row],[Hide: Formula Name]]<>\"\",OR(Table_PI[[#This Row],[Hide: Rebate]]>0,Table_PI[[#This Row],[Hide: Rebate]]=\"No Rebate\")),TRUE,\"MI: Line Item \" & $A155),\"\")","v":""}]
[{"$f":"IF(Table_PI[[#This Row],[Hide: Formula Name]]<>\"\",MAX($A$2:A155)+1,\"\")","v":""},null,null,null,null,null,null,null,null,null,null,null,null,null,null,null,null,{"$f":"IFERROR(VLOOKUP(Table_PI[[#This Row],[Measure]],'Equipment Lookups'!$C$3:$D$23,2,FALSE),\"\")","v":""},0,{"$f":"IF(Table_PI[[#This Row],[Hide: Formula Name]]<>\"\",IFERROR(IF(AND(ISNUMBER(Table_PI[[#This Row],[Hide: Rebate]]),Table_PI[[#This Row],[Hide: Rebate]]>0), IF($S$401>=50, IF(AND(ProjectStage=\"(Installed)\",$S$401>'Customer Information'!$BC$21), 'Customer Information'!$BC$21*Table_PI[[#This Row],[Hide: Rebate]]/$S$401, IF($S$401<=300000, Table_PI[[#This Row],[Hide: Rebate]], ROUND(300000*Table_PI[[#This Row],[Hide: Rebate]]/'Project Information'!$S$401,2))), \"Does not meet $50 Minimum\"), \"No Rebate\"), \"No Rebate\"),0)","v":0},0,0,0,0,0,0,0,0,0,{"$f":"IF(Table_PI[[#This Row],[Hide: Formula Name]]<>\"\",IF(AND(Table_PI[[#This Row],[Hide: Formula Name]]<>\"\",OR(Table_PI[[#This Row],[Hide: Rebate]]>0,Table_PI[[#This Row],[Hide: Rebate]]=\"No Rebate\")),TRUE,\"MI: Line Item \" & $A156),\"\")","v":""}]
[{"$f":"IF(Table_PI[[#This Row],[Hide: Formula Name]]<>\"\",MAX($A$2:A156)+1,\"\")","v":""},null,null,null,null,null,null,null,null,null,null,null,null,null,null,null,null,{"$f":"IFERROR(VLOOKUP(Table_PI[[#This Row],[Measure]],'Equipment Lookups'!$C$3:$D$23,2,FALSE),\"\")","v":""},0,{"$f":"IF(Table_PI[[#This Row],[Hide: Formula Name]]<>\"\",IFERROR(IF(AND(ISNUMBER(Table_PI[[#This Row],[Hide: Rebate]]),Table_PI[[#This Row],[Hide: Rebate]]>0), IF($S$401>=50, IF(AND(ProjectStage=\"(Installed)\",$S$401>'Customer Information'!$BC$21), 'Customer Information'!$BC$21*Table_PI[[#This Row],[Hide: Rebate]]/$S$401, IF($S$401<=300000, Table_PI[[#This Row],[Hide: Rebate]], ROUND(300000*Table_PI[[#This Row],[Hide: Rebate]]/'Project Information'!$S$401,2))), \"Does not meet $50 Minimum\"), \"No Rebate\"), \"No Rebate\"),0)","v":0},0,0,0,0,0,0,0,0,0,{"$f":"IF(Table_PI[[#This Row],[Hide: Formula Name]]<>\"\",IF(AND(Table_PI[[#This Row],[Hide: Formula Name]]<>\"\",OR(Table_PI[[#This Row],[Hide: Rebate]]>0,Table_PI[[#This Row],[Hide: Rebate]]=\"No Rebate\")),TRUE,\"MI: Line Item \" & $A157),\"\")","v":""}]
[{"$f":"IF(Table_PI[[#This Row],[Hide: Formula Name]]<>\"\",MAX($A$2:A157)+1,\"\")","v":""},null,null,null,null,null,null,null,null,null,null,null,null,null,null,null,null,{"$f":"IFERROR(VLOOKUP(Table_PI[[#This Row],[Measure]],'Equipment Lookups'!$C$3:$D$23,2,FALSE),\"\")","v":""},0,{"$f":"IF(Table_PI[[#This Row],[Hide: Formula Name]]<>\"\",IFERROR(IF(AND(ISNUMBER(Table_PI[[#This Row],[Hide: Rebate]]),Table_PI[[#This Row],[Hide: Rebate]]>0), IF($S$401>=50, IF(AND(ProjectStage=\"(Installed)\",$S$401>'Customer Information'!$BC$21), 'Customer Information'!$BC$21*Table_PI[[#This Row],[Hide: Rebate]]/$S$401, IF($S$401<=300000, Table_PI[[#This Row],[Hide: Rebate]], ROUND(300000*Table_PI[[#This Row],[Hide: Rebate]]/'Project Information'!$S$401,2))), \"Does not meet $50 Minimum\"), \"No Rebate\"), \"No Rebate\"),0)","v":0},0,0,0,0,0,0,0,0,0,{"$f":"IF(Table_PI[[#This Row],[Hide: Formula Name]]<>\"\",IF(AND(Table_PI[[#This Row],[Hide: Formula Name]]<>\"\",OR(Table_PI[[#This Row],[Hide: Rebate]]>0,Table_PI[[#This Row],[Hide: Rebate]]=\"No Rebate\")),TRUE,\"MI: Line Item \" & $A158),\"\")","v":""}]
[{"$f":"IF(Table_PI[[#This Row],[Hide: Formula Name]]<>\"\",MAX($A$2:A158)+1,\"\")","v":""},null,null,null,null,null,null,null,null,null,null,null,null,null,null,null,null,{"$f":"IFERROR(VLOOKUP(Table_PI[[#This Row],[Measure]],'Equipment Lookups'!$C$3:$D$23,2,FALSE),\"\")","v":""},0,{"$f":"IF(Table_PI[[#This Row],[Hide: Formula Name]]<>\"\",IFERROR(IF(AND(ISNUMBER(Table_PI[[#This Row],[Hide: Rebate]]),Table_PI[[#This Row],[Hide: Rebate]]>0), IF($S$401>=50, IF(AND(ProjectStage=\"(Installed)\",$S$401>'Customer Information'!$BC$21), 'Customer Information'!$BC$21*Table_PI[[#This Row],[Hide: Rebate]]/$S$401, IF($S$401<=300000, Table_PI[[#This Row],[Hide: Rebate]], ROUND(300000*Table_PI[[#This Row],[Hide: Rebate]]/'Project Information'!$S$401,2))), \"Does not meet $50 Minimum\"), \"No Rebate\"), \"No Rebate\"),0)","v":0},0,0,0,0,0,0,0,0,0,{"$f":"IF(Table_PI[[#This Row],[Hide: Formula Name]]<>\"\",IF(AND(Table_PI[[#This Row],[Hide: Formula Name]]<>\"\",OR(Table_PI[[#This Row],[Hide: Rebate]]>0,Table_PI[[#This Row],[Hide: Rebate]]=\"No Rebate\")),TRUE,\"MI: Line Item \" & $A159),\"\")","v":""}]
[{"$f":"IF(Table_PI[[#This Row],[Hide: Formula Name]]<>\"\",MAX($A$2:A159)+1,\"\")","v":""},null,null,null,null,null,null,null,null,null,null,null,null,null,null,null,null,{"$f":"IFERROR(VLOOKUP(Table_PI[[#This Row],[Measure]],'Equipment Lookups'!$C$3:$D$23,2,FALSE),\"\")","v":""},0,{"$f":"IF(Table_PI[[#This Row],[Hide: Formula Name]]<>\"\",IFERROR(IF(AND(ISNUMBER(Table_PI[[#This Row],[Hide: Rebate]]),Table_PI[[#This Row],[Hide: Rebate]]>0), IF($S$401>=50, IF(AND(ProjectStage=\"(Installed)\",$S$401>'Customer Information'!$BC$21), 'Customer Information'!$BC$21*Table_PI[[#This Row],[Hide: Rebate]]/$S$401, IF($S$401<=300000, Table_PI[[#This Row],[Hide: Rebate]], ROUND(300000*Table_PI[[#This Row],[Hide: Rebate]]/'Project Information'!$S$401,2))), \"Does not meet $50 Minimum\"), \"No Rebate\"), \"No Rebate\"),0)","v":0},0,0,0,0,0,0,0,0,0,{"$f":"IF(Table_PI[[#This Row],[Hide: Formula Name]]<>\"\",IF(AND(Table_PI[[#This Row],[Hide: Formula Name]]<>\"\",OR(Table_PI[[#This Row],[Hide: Rebate]]>0,Table_PI[[#This Row],[Hide: Rebate]]=\"No Rebate\")),TRUE,\"MI: Line Item \" & $A160),\"\")","v":""}]
[{"$f":"IF(Table_PI[[#This Row],[Hide: Formula Name]]<>\"\",MAX($A$2:A160)+1,\"\")","v":""},null,null,null,null,null,null,null,null,null,null,null,null,null,null,null,null,{"$f":"IFERROR(VLOOKUP(Table_PI[[#This Row],[Measure]],'Equipment Lookups'!$C$3:$D$23,2,FALSE),\"\")","v":""},0,{"$f":"IF(Table_PI[[#This Row],[Hide: Formula Name]]<>\"\",IFERROR(IF(AND(ISNUMBER(Table_PI[[#This Row],[Hide: Rebate]]),Table_PI[[#This Row],[Hide: Rebate]]>0), IF($S$401>=50, IF(AND(ProjectStage=\"(Installed)\",$S$401>'Customer Information'!$BC$21), 'Customer Information'!$BC$21*Table_PI[[#This Row],[Hide: Rebate]]/$S$401, IF($S$401<=300000, Table_PI[[#This Row],[Hide: Rebate]], ROUND(300000*Table_PI[[#This Row],[Hide: Rebate]]/'Project Information'!$S$401,2))), \"Does not meet $50 Minimum\"), \"No Rebate\"), \"No Rebate\"),0)","v":0},0,0,0,0,0,0,0,0,0,{"$f":"IF(Table_PI[[#This Row],[Hide: Formula Name]]<>\"\",IF(AND(Table_PI[[#This Row],[Hide: Formula Name]]<>\"\",OR(Table_PI[[#This Row],[Hide: Rebate]]>0,Table_PI[[#This Row],[Hide: Rebate]]=\"No Rebate\")),TRUE,\"MI: Line Item \" & $A161),\"\")","v":""}]
[{"$f":"IF(Table_PI[[#This Row],[Hide: Formula Name]]<>\"\",MAX($A$2:A161)+1,\"\")","v":""},null,null,null,null,null,null,null,null,null,null,null,null,null,null,null,null,{"$f":"IFERROR(VLOOKUP(Table_PI[[#This Row],[Measure]],'Equipment Lookups'!$C$3:$D$23,2,FALSE),\"\")","v":""},0,{"$f":"IF(Table_PI[[#This Row],[Hide: Formula Name]]<>\"\",IFERROR(IF(AND(ISNUMBER(Table_PI[[#This Row],[Hide: Rebate]]),Table_PI[[#This Row],[Hide: Rebate]]>0), IF($S$401>=50, IF(AND(ProjectStage=\"(Installed)\",$S$401>'Customer Information'!$BC$21), 'Customer Information'!$BC$21*Table_PI[[#This Row],[Hide: Rebate]]/$S$401, IF($S$401<=300000, Table_PI[[#This Row],[Hide: Rebate]], ROUND(300000*Table_PI[[#This Row],[Hide: Rebate]]/'Project Information'!$S$401,2))), \"Does not meet $50 Minimum\"), \"No Rebate\"), \"No Rebate\"),0)","v":0},0,0,0,0,0,0,0,0,0,{"$f":"IF(Table_PI[[#This Row],[Hide: Formula Name]]<>\"\",IF(AND(Table_PI[[#This Row],[Hide: Formula Name]]<>\"\",OR(Table_PI[[#This Row],[Hide: Rebate]]>0,Table_PI[[#This Row],[Hide: Rebate]]=\"No Rebate\")),TRUE,\"MI: Line Item \" & $A162),\"\")","v":""}]
[{"$f":"IF(Table_PI[[#This Row],[Hide: Formula Name]]<>\"\",MAX($A$2:A162)+1,\"\")","v":""},null,null,null,null,null,null,null,null,null,null,null,null,null,null,null,null,{"$f":"IFERROR(VLOOKUP(Table_PI[[#This Row],[Measure]],'Equipment Lookups'!$C$3:$D$23,2,FALSE),\"\")","v":""},0,{"$f":"IF(Table_PI[[#This Row],[Hide: Formula Name]]<>\"\",IFERROR(IF(AND(ISNUMBER(Table_PI[[#This Row],[Hide: Rebate]]),Table_PI[[#This Row],[Hide: Rebate]]>0), IF($S$401>=50, IF(AND(ProjectStage=\"(Installed)\",$S$401>'Customer Information'!$BC$21), 'Customer Information'!$BC$21*Table_PI[[#This Row],[Hide: Rebate]]/$S$401, IF($S$401<=300000, Table_PI[[#This Row],[Hide: Rebate]], ROUND(300000*Table_PI[[#This Row],[Hide: Rebate]]/'Project Information'!$S$401,2))), \"Does not meet $50 Minimum\"), \"No Rebate\"), \"No Rebate\"),0)","v":0},0,0,0,0,0,0,0,0,0,{"$f":"IF(Table_PI[[#This Row],[Hide: Formula Name]]<>\"\",IF(AND(Table_PI[[#This Row],[Hide: Formula Name]]<>\"\",OR(Table_PI[[#This Row],[Hide: Rebate]]>0,Table_PI[[#This Row],[Hide: Rebate]]=\"No Rebate\")),TRUE,\"MI: Line Item \" & $A163),\"\")","v":""}]
[{"$f":"IF(Table_PI[[#This Row],[Hide: Formula Name]]<>\"\",MAX($A$2:A163)+1,\"\")","v":""},null,null,null,null,null,null,null,null,null,null,null,null,null,null,null,null,{"$f":"IFERROR(VLOOKUP(Table_PI[[#This Row],[Measure]],'Equipment Lookups'!$C$3:$D$23,2,FALSE),\"\")","v":""},0,{"$f":"IF(Table_PI[[#This Row],[Hide: Formula Name]]<>\"\",IFERROR(IF(AND(ISNUMBER(Table_PI[[#This Row],[Hide: Rebate]]),Table_PI[[#This Row],[Hide: Rebate]]>0), IF($S$401>=50, IF(AND(ProjectStage=\"(Installed)\",$S$401>'Customer Information'!$BC$21), 'Customer Information'!$BC$21*Table_PI[[#This Row],[Hide: Rebate]]/$S$401, IF($S$401<=300000, Table_PI[[#This Row],[Hide: Rebate]], ROUND(300000*Table_PI[[#This Row],[Hide: Rebate]]/'Project Information'!$S$401,2))), \"Does not meet $50 Minimum\"), \"No Rebate\"), \"No Rebate\"),0)","v":0},0,0,0,0,0,0,0,0,0,{"$f":"IF(Table_PI[[#This Row],[Hide: Formula Name]]<>\"\",IF(AND(Table_PI[[#This Row],[Hide: Formula Name]]<>\"\",OR(Table_PI[[#This Row],[Hide: Rebate]]>0,Table_PI[[#This Row],[Hide: Rebate]]=\"No Rebate\")),TRUE,\"MI: Line Item \" & $A164),\"\")","v":""}]
[{"$f":"IF(Table_PI[[#This Row],[Hide: Formula Name]]<>\"\",MAX($A$2:A164)+1,\"\")","v":""},null,null,null,null,null,null,null,null,null,null,null,null,null,null,null,null,{"$f":"IFERROR(VLOOKUP(Table_PI[[#This Row],[Measure]],'Equipment Lookups'!$C$3:$D$23,2,FALSE),\"\")","v":""},0,{"$f":"IF(Table_PI[[#This Row],[Hide: Formula Name]]<>\"\",IFERROR(IF(AND(ISNUMBER(Table_PI[[#This Row],[Hide: Rebate]]),Table_PI[[#This Row],[Hide: Rebate]]>0), IF($S$401>=50, IF(AND(ProjectStage=\"(Installed)\",$S$401>'Customer Information'!$BC$21), 'Customer Information'!$BC$21*Table_PI[[#This Row],[Hide: Rebate]]/$S$401, IF($S$401<=300000, Table_PI[[#This Row],[Hide: Rebate]], ROUND(300000*Table_PI[[#This Row],[Hide: Rebate]]/'Project Information'!$S$401,2))), \"Does not meet $50 Minimum\"), \"No Rebate\"), \"No Rebate\"),0)","v":0},0,0,0,0,0,0,0,0,0,{"$f":"IF(Table_PI[[#This Row],[Hide: Formula Name]]<>\"\",IF(AND(Table_PI[[#This Row],[Hide: Formula Name]]<>\"\",OR(Table_PI[[#This Row],[Hide: Rebate]]>0,Table_PI[[#This Row],[Hide: Rebate]]=\"No Rebate\")),TRUE,\"MI: Line Item \" & $A165),\"\")","v":""}]
[{"$f":"IF(Table_PI[[#This Row],[Hide: Formula Name]]<>\"\",MAX($A$2:A165)+1,\"\")","v":""},null,null,null,null,null,null,null,null,null,null,null,null,null,null,null,null,{"$f":"IFERROR(VLOOKUP(Table_PI[[#This Row],[Measure]],'Equipment Lookups'!$C$3:$D$23,2,FALSE),\"\")","v":""},0,{"$f":"IF(Table_PI[[#This Row],[Hide: Formula Name]]<>\"\",IFERROR(IF(AND(ISNUMBER(Table_PI[[#This Row],[Hide: Rebate]]),Table_PI[[#This Row],[Hide: Rebate]]>0), IF($S$401>=50, IF(AND(ProjectStage=\"(Installed)\",$S$401>'Customer Information'!$BC$21), 'Customer Information'!$BC$21*Table_PI[[#This Row],[Hide: Rebate]]/$S$401, IF($S$401<=300000, Table_PI[[#This Row],[Hide: Rebate]], ROUND(300000*Table_PI[[#This Row],[Hide: Rebate]]/'Project Information'!$S$401,2))), \"Does not meet $50 Minimum\"), \"No Rebate\"), \"No Rebate\"),0)","v":0},0,0,0,0,0,0,0,0,0,{"$f":"IF(Table_PI[[#This Row],[Hide: Formula Name]]<>\"\",IF(AND(Table_PI[[#This Row],[Hide: Formula Name]]<>\"\",OR(Table_PI[[#This Row],[Hide: Rebate]]>0,Table_PI[[#This Row],[Hide: Rebate]]=\"No Rebate\")),TRUE,\"MI: Line Item \" & $A166),\"\")","v":""}]
[{"$f":"IF(Table_PI[[#This Row],[Hide: Formula Name]]<>\"\",MAX($A$2:A166)+1,\"\")","v":""},null,null,null,null,null,null,null,null,null,null,null,null,null,null,null,null,{"$f":"IFERROR(VLOOKUP(Table_PI[[#This Row],[Measure]],'Equipment Lookups'!$C$3:$D$23,2,FALSE),\"\")","v":""},0,{"$f":"IF(Table_PI[[#This Row],[Hide: Formula Name]]<>\"\",IFERROR(IF(AND(ISNUMBER(Table_PI[[#This Row],[Hide: Rebate]]),Table_PI[[#This Row],[Hide: Rebate]]>0), IF($S$401>=50, IF(AND(ProjectStage=\"(Installed)\",$S$401>'Customer Information'!$BC$21), 'Customer Information'!$BC$21*Table_PI[[#This Row],[Hide: Rebate]]/$S$401, IF($S$401<=300000, Table_PI[[#This Row],[Hide: Rebate]], ROUND(300000*Table_PI[[#This Row],[Hide: Rebate]]/'Project Information'!$S$401,2))), \"Does not meet $50 Minimum\"), \"No Rebate\"), \"No Rebate\"),0)","v":0},0,0,0,0,0,0,0,0,0,{"$f":"IF(Table_PI[[#This Row],[Hide: Formula Name]]<>\"\",IF(AND(Table_PI[[#This Row],[Hide: Formula Name]]<>\"\",OR(Table_PI[[#This Row],[Hide: Rebate]]>0,Table_PI[[#This Row],[Hide: Rebate]]=\"No Rebate\")),TRUE,\"MI: Line Item \" & $A167),\"\")","v":""}]
[{"$f":"IF(Table_PI[[#This Row],[Hide: Formula Name]]<>\"\",MAX($A$2:A167)+1,\"\")","v":""},null,null,null,null,null,null,null,null,null,null,null,null,null,null,null,null,{"$f":"IFERROR(VLOOKUP(Table_PI[[#This Row],[Measure]],'Equipment Lookups'!$C$3:$D$23,2,FALSE),\"\")","v":""},0,{"$f":"IF(Table_PI[[#This Row],[Hide: Formula Name]]<>\"\",IFERROR(IF(AND(ISNUMBER(Table_PI[[#This Row],[Hide: Rebate]]),Table_PI[[#This Row],[Hide: Rebate]]>0), IF($S$401>=50, IF(AND(ProjectStage=\"(Installed)\",$S$401>'Customer Information'!$BC$21), 'Customer Information'!$BC$21*Table_PI[[#This Row],[Hide: Rebate]]/$S$401, IF($S$401<=300000, Table_PI[[#This Row],[Hide: Rebate]], ROUND(300000*Table_PI[[#This Row],[Hide: Rebate]]/'Project Information'!$S$401,2))), \"Does not meet $50 Minimum\"), \"No Rebate\"), \"No Rebate\"),0)","v":0},0,0,0,0,0,0,0,0,0,{"$f":"IF(Table_PI[[#This Row],[Hide: Formula Name]]<>\"\",IF(AND(Table_PI[[#This Row],[Hide: Formula Name]]<>\"\",OR(Table_PI[[#This Row],[Hide: Rebate]]>0,Table_PI[[#This Row],[Hide: Rebate]]=\"No Rebate\")),TRUE,\"MI: Line Item \" & $A168),\"\")","v":""}]
[{"$f":"IF(Table_PI[[#This Row],[Hide: Formula Name]]<>\"\",MAX($A$2:A168)+1,\"\")","v":""},null,null,null,null,null,null,null,null,null,null,null,null,null,null,null,null,{"$f":"IFERROR(VLOOKUP(Table_PI[[#This Row],[Measure]],'Equipment Lookups'!$C$3:$D$23,2,FALSE),\"\")","v":""},0,{"$f":"IF(Table_PI[[#This Row],[Hide: Formula Name]]<>\"\",IFERROR(IF(AND(ISNUMBER(Table_PI[[#This Row],[Hide: Rebate]]),Table_PI[[#This Row],[Hide: Rebate]]>0), IF($S$401>=50, IF(AND(ProjectStage=\"(Installed)\",$S$401>'Customer Information'!$BC$21), 'Customer Information'!$BC$21*Table_PI[[#This Row],[Hide: Rebate]]/$S$401, IF($S$401<=300000, Table_PI[[#This Row],[Hide: Rebate]], ROUND(300000*Table_PI[[#This Row],[Hide: Rebate]]/'Project Information'!$S$401,2))), \"Does not meet $50 Minimum\"), \"No Rebate\"), \"No Rebate\"),0)","v":0},0,0,0,0,0,0,0,0,0,{"$f":"IF(Table_PI[[#This Row],[Hide: Formula Name]]<>\"\",IF(AND(Table_PI[[#This Row],[Hide: Formula Name]]<>\"\",OR(Table_PI[[#This Row],[Hide: Rebate]]>0,Table_PI[[#This Row],[Hide: Rebate]]=\"No Rebate\")),TRUE,\"MI: Line Item \" & $A169),\"\")","v":""}]
[{"$f":"IF(Table_PI[[#This Row],[Hide: Formula Name]]<>\"\",MAX($A$2:A169)+1,\"\")","v":""},null,null,null,null,null,null,null,null,null,null,null,null,null,null,null,null,{"$f":"IFERROR(VLOOKUP(Table_PI[[#This Row],[Measure]],'Equipment Lookups'!$C$3:$D$23,2,FALSE),\"\")","v":""},0,{"$f":"IF(Table_PI[[#This Row],[Hide: Formula Name]]<>\"\",IFERROR(IF(AND(ISNUMBER(Table_PI[[#This Row],[Hide: Rebate]]),Table_PI[[#This Row],[Hide: Rebate]]>0), IF($S$401>=50, IF(AND(ProjectStage=\"(Installed)\",$S$401>'Customer Information'!$BC$21), 'Customer Information'!$BC$21*Table_PI[[#This Row],[Hide: Rebate]]/$S$401, IF($S$401<=300000, Table_PI[[#This Row],[Hide: Rebate]], ROUND(300000*Table_PI[[#This Row],[Hide: Rebate]]/'Project Information'!$S$401,2))), \"Does not meet $50 Minimum\"), \"No Rebate\"), \"No Rebate\"),0)","v":0},0,0,0,0,0,0,0,0,0,{"$f":"IF(Table_PI[[#This Row],[Hide: Formula Name]]<>\"\",IF(AND(Table_PI[[#This Row],[Hide: Formula Name]]<>\"\",OR(Table_PI[[#This Row],[Hide: Rebate]]>0,Table_PI[[#This Row],[Hide: Rebate]]=\"No Rebate\")),TRUE,\"MI: Line Item \" & $A170),\"\")","v":""}]
[{"$f":"IF(Table_PI[[#This Row],[Hide: Formula Name]]<>\"\",MAX($A$2:A170)+1,\"\")","v":""},null,null,null,null,null,null,null,null,null,null,null,null,null,null,null,null,{"$f":"IFERROR(VLOOKUP(Table_PI[[#This Row],[Measure]],'Equipment Lookups'!$C$3:$D$23,2,FALSE),\"\")","v":""},0,{"$f":"IF(Table_PI[[#This Row],[Hide: Formula Name]]<>\"\",IFERROR(IF(AND(ISNUMBER(Table_PI[[#This Row],[Hide: Rebate]]),Table_PI[[#This Row],[Hide: Rebate]]>0), IF($S$401>=50, IF(AND(ProjectStage=\"(Installed)\",$S$401>'Customer Information'!$BC$21), 'Customer Information'!$BC$21*Table_PI[[#This Row],[Hide: Rebate]]/$S$401, IF($S$401<=300000, Table_PI[[#This Row],[Hide: Rebate]], ROUND(300000*Table_PI[[#This Row],[Hide: Rebate]]/'Project Information'!$S$401,2))), \"Does not meet $50 Minimum\"), \"No Rebate\"), \"No Rebate\"),0)","v":0},0,0,0,0,0,0,0,0,0,{"$f":"IF(Table_PI[[#This Row],[Hide: Formula Name]]<>\"\",IF(AND(Table_PI[[#This Row],[Hide: Formula Name]]<>\"\",OR(Table_PI[[#This Row],[Hide: Rebate]]>0,Table_PI[[#This Row],[Hide: Rebate]]=\"No Rebate\")),TRUE,\"MI: Line Item \" & $A171),\"\")","v":""}]
[{"$f":"IF(Table_PI[[#This Row],[Hide: Formula Name]]<>\"\",MAX($A$2:A171)+1,\"\")","v":""},null,null,null,null,null,null,null,null,null,null,null,null,null,null,null,null,{"$f":"IFERROR(VLOOKUP(Table_PI[[#This Row],[Measure]],'Equipment Lookups'!$C$3:$D$23,2,FALSE),\"\")","v":""},0,{"$f":"IF(Table_PI[[#This Row],[Hide: Formula Name]]<>\"\",IFERROR(IF(AND(ISNUMBER(Table_PI[[#This Row],[Hide: Rebate]]),Table_PI[[#This Row],[Hide: Rebate]]>0), IF($S$401>=50, IF(AND(ProjectStage=\"(Installed)\",$S$401>'Customer Information'!$BC$21), 'Customer Information'!$BC$21*Table_PI[[#This Row],[Hide: Rebate]]/$S$401, IF($S$401<=300000, Table_PI[[#This Row],[Hide: Rebate]], ROUND(300000*Table_PI[[#This Row],[Hide: Rebate]]/'Project Information'!$S$401,2))), \"Does not meet $50 Minimum\"), \"No Rebate\"), \"No Rebate\"),0)","v":0},0,0,0,0,0,0,0,0,0,{"$f":"IF(Table_PI[[#This Row],[Hide: Formula Name]]<>\"\",IF(AND(Table_PI[[#This Row],[Hide: Formula Name]]<>\"\",OR(Table_PI[[#This Row],[Hide: Rebate]]>0,Table_PI[[#This Row],[Hide: Rebate]]=\"No Rebate\")),TRUE,\"MI: Line Item \" & $A172),\"\")","v":""}]
[{"$f":"IF(Table_PI[[#This Row],[Hide: Formula Name]]<>\"\",MAX($A$2:A172)+1,\"\")","v":""},null,null,null,null,null,null,null,null,null,null,null,null,null,null,null,null,{"$f":"IFERROR(VLOOKUP(Table_PI[[#This Row],[Measure]],'Equipment Lookups'!$C$3:$D$23,2,FALSE),\"\")","v":""},0,{"$f":"IF(Table_PI[[#This Row],[Hide: Formula Name]]<>\"\",IFERROR(IF(AND(ISNUMBER(Table_PI[[#This Row],[Hide: Rebate]]),Table_PI[[#This Row],[Hide: Rebate]]>0), IF($S$401>=50, IF(AND(ProjectStage=\"(Installed)\",$S$401>'Customer Information'!$BC$21), 'Customer Information'!$BC$21*Table_PI[[#This Row],[Hide: Rebate]]/$S$401, IF($S$401<=300000, Table_PI[[#This Row],[Hide: Rebate]], ROUND(300000*Table_PI[[#This Row],[Hide: Rebate]]/'Project Information'!$S$401,2))), \"Does not meet $50 Minimum\"), \"No Rebate\"), \"No Rebate\"),0)","v":0},0,0,0,0,0,0,0,0,0,{"$f":"IF(Table_PI[[#This Row],[Hide: Formula Name]]<>\"\",IF(AND(Table_PI[[#This Row],[Hide: Formula Name]]<>\"\",OR(Table_PI[[#This Row],[Hide: Rebate]]>0,Table_PI[[#This Row],[Hide: Rebate]]=\"No Rebate\")),TRUE,\"MI: Line Item \" & $A173),\"\")","v":""}]
[{"$f":"IF(Table_PI[[#This Row],[Hide: Formula Name]]<>\"\",MAX($A$2:A173)+1,\"\")","v":""},null,null,null,null,null,null,null,null,null,null,null,null,null,null,null,null,{"$f":"IFERROR(VLOOKUP(Table_PI[[#This Row],[Measure]],'Equipment Lookups'!$C$3:$D$23,2,FALSE),\"\")","v":""},0,{"$f":"IF(Table_PI[[#This Row],[Hide: Formula Name]]<>\"\",IFERROR(IF(AND(ISNUMBER(Table_PI[[#This Row],[Hide: Rebate]]),Table_PI[[#This Row],[Hide: Rebate]]>0), IF($S$401>=50, IF(AND(ProjectStage=\"(Installed)\",$S$401>'Customer Information'!$BC$21), 'Customer Information'!$BC$21*Table_PI[[#This Row],[Hide: Rebate]]/$S$401, IF($S$401<=300000, Table_PI[[#This Row],[Hide: Rebate]], ROUND(300000*Table_PI[[#This Row],[Hide: Rebate]]/'Project Information'!$S$401,2))), \"Does not meet $50 Minimum\"), \"No Rebate\"), \"No Rebate\"),0)","v":0},0,0,0,0,0,0,0,0,0,{"$f":"IF(Table_PI[[#This Row],[Hide: Formula Name]]<>\"\",IF(AND(Table_PI[[#This Row],[Hide: Formula Name]]<>\"\",OR(Table_PI[[#This Row],[Hide: Rebate]]>0,Table_PI[[#This Row],[Hide: Rebate]]=\"No Rebate\")),TRUE,\"MI: Line Item \" & $A174),\"\")","v":""}]
[{"$f":"IF(Table_PI[[#This Row],[Hide: Formula Name]]<>\"\",MAX($A$2:A174)+1,\"\")","v":""},null,null,null,null,null,null,null,null,null,null,null,null,null,null,null,null,{"$f":"IFERROR(VLOOKUP(Table_PI[[#This Row],[Measure]],'Equipment Lookups'!$C$3:$D$23,2,FALSE),\"\")","v":""},0,{"$f":"IF(Table_PI[[#This Row],[Hide: Formula Name]]<>\"\",IFERROR(IF(AND(ISNUMBER(Table_PI[[#This Row],[Hide: Rebate]]),Table_PI[[#This Row],[Hide: Rebate]]>0), IF($S$401>=50, IF(AND(ProjectStage=\"(Installed)\",$S$401>'Customer Information'!$BC$21), 'Customer Information'!$BC$21*Table_PI[[#This Row],[Hide: Rebate]]/$S$401, IF($S$401<=300000, Table_PI[[#This Row],[Hide: Rebate]], ROUND(300000*Table_PI[[#This Row],[Hide: Rebate]]/'Project Information'!$S$401,2))), \"Does not meet $50 Minimum\"), \"No Rebate\"), \"No Rebate\"),0)","v":0},0,0,0,0,0,0,0,0,0,{"$f":"IF(Table_PI[[#This Row],[Hide: Formula Name]]<>\"\",IF(AND(Table_PI[[#This Row],[Hide: Formula Name]]<>\"\",OR(Table_PI[[#This Row],[Hide: Rebate]]>0,Table_PI[[#This Row],[Hide: Rebate]]=\"No Rebate\")),TRUE,\"MI: Line Item \" & $A175),\"\")","v":""}]
[{"$f":"IF(Table_PI[[#This Row],[Hide: Formula Name]]<>\"\",MAX($A$2:A175)+1,\"\")","v":""},null,null,null,null,null,null,null,null,null,null,null,null,null,null,null,null,{"$f":"IFERROR(VLOOKUP(Table_PI[[#This Row],[Measure]],'Equipment Lookups'!$C$3:$D$23,2,FALSE),\"\")","v":""},0,{"$f":"IF(Table_PI[[#This Row],[Hide: Formula Name]]<>\"\",IFERROR(IF(AND(ISNUMBER(Table_PI[[#This Row],[Hide: Rebate]]),Table_PI[[#This Row],[Hide: Rebate]]>0), IF($S$401>=50, IF(AND(ProjectStage=\"(Installed)\",$S$401>'Customer Information'!$BC$21), 'Customer Information'!$BC$21*Table_PI[[#This Row],[Hide: Rebate]]/$S$401, IF($S$401<=300000, Table_PI[[#This Row],[Hide: Rebate]], ROUND(300000*Table_PI[[#This Row],[Hide: Rebate]]/'Project Information'!$S$401,2))), \"Does not meet $50 Minimum\"), \"No Rebate\"), \"No Rebate\"),0)","v":0},0,0,0,0,0,0,0,0,0,{"$f":"IF(Table_PI[[#This Row],[Hide: Formula Name]]<>\"\",IF(AND(Table_PI[[#This Row],[Hide: Formula Name]]<>\"\",OR(Table_PI[[#This Row],[Hide: Rebate]]>0,Table_PI[[#This Row],[Hide: Rebate]]=\"No Rebate\")),TRUE,\"MI: Line Item \" & $A176),\"\")","v":""}]
[{"$f":"IF(Table_PI[[#This Row],[Hide: Formula Name]]<>\"\",MAX($A$2:A176)+1,\"\")","v":""},null,null,null,null,null,null,null,null,null,null,null,null,null,null,null,null,{"$f":"IFERROR(VLOOKUP(Table_PI[[#This Row],[Measure]],'Equipment Lookups'!$C$3:$D$23,2,FALSE),\"\")","v":""},0,{"$f":"IF(Table_PI[[#This Row],[Hide: Formula Name]]<>\"\",IFERROR(IF(AND(ISNUMBER(Table_PI[[#This Row],[Hide: Rebate]]),Table_PI[[#This Row],[Hide: Rebate]]>0), IF($S$401>=50, IF(AND(ProjectStage=\"(Installed)\",$S$401>'Customer Information'!$BC$21), 'Customer Information'!$BC$21*Table_PI[[#This Row],[Hide: Rebate]]/$S$401, IF($S$401<=300000, Table_PI[[#This Row],[Hide: Rebate]], ROUND(300000*Table_PI[[#This Row],[Hide: Rebate]]/'Project Information'!$S$401,2))), \"Does not meet $50 Minimum\"), \"No Rebate\"), \"No Rebate\"),0)","v":0},0,0,0,0,0,0,0,0,0,{"$f":"IF(Table_PI[[#This Row],[Hide: Formula Name]]<>\"\",IF(AND(Table_PI[[#This Row],[Hide: Formula Name]]<>\"\",OR(Table_PI[[#This Row],[Hide: Rebate]]>0,Table_PI[[#This Row],[Hide: Rebate]]=\"No Rebate\")),TRUE,\"MI: Line Item \" & $A177),\"\")","v":""}]
[{"$f":"IF(Table_PI[[#This Row],[Hide: Formula Name]]<>\"\",MAX($A$2:A177)+1,\"\")","v":""},null,null,null,null,null,null,null,null,null,null,null,null,null,null,null,null,{"$f":"IFERROR(VLOOKUP(Table_PI[[#This Row],[Measure]],'Equipment Lookups'!$C$3:$D$23,2,FALSE),\"\")","v":""},0,{"$f":"IF(Table_PI[[#This Row],[Hide: Formula Name]]<>\"\",IFERROR(IF(AND(ISNUMBER(Table_PI[[#This Row],[Hide: Rebate]]),Table_PI[[#This Row],[Hide: Rebate]]>0), IF($S$401>=50, IF(AND(ProjectStage=\"(Installed)\",$S$401>'Customer Information'!$BC$21), 'Customer Information'!$BC$21*Table_PI[[#This Row],[Hide: Rebate]]/$S$401, IF($S$401<=300000, Table_PI[[#This Row],[Hide: Rebate]], ROUND(300000*Table_PI[[#This Row],[Hide: Rebate]]/'Project Information'!$S$401,2))), \"Does not meet $50 Minimum\"), \"No Rebate\"), \"No Rebate\"),0)","v":0},0,0,0,0,0,0,0,0,0,{"$f":"IF(Table_PI[[#This Row],[Hide: Formula Name]]<>\"\",IF(AND(Table_PI[[#This Row],[Hide: Formula Name]]<>\"\",OR(Table_PI[[#This Row],[Hide: Rebate]]>0,Table_PI[[#This Row],[Hide: Rebate]]=\"No Rebate\")),TRUE,\"MI: Line Item \" & $A178),\"\")","v":""}]
[{"$f":"IF(Table_PI[[#This Row],[Hide: Formula Name]]<>\"\",MAX($A$2:A178)+1,\"\")","v":""},null,null,null,null,null,null,null,null,null,null,null,null,null,null,null,null,{"$f":"IFERROR(VLOOKUP(Table_PI[[#This Row],[Measure]],'Equipment Lookups'!$C$3:$D$23,2,FALSE),\"\")","v":""},0,{"$f":"IF(Table_PI[[#This Row],[Hide: Formula Name]]<>\"\",IFERROR(IF(AND(ISNUMBER(Table_PI[[#This Row],[Hide: Rebate]]),Table_PI[[#This Row],[Hide: Rebate]]>0), IF($S$401>=50, IF(AND(ProjectStage=\"(Installed)\",$S$401>'Customer Information'!$BC$21), 'Customer Information'!$BC$21*Table_PI[[#This Row],[Hide: Rebate]]/$S$401, IF($S$401<=300000, Table_PI[[#This Row],[Hide: Rebate]], ROUND(300000*Table_PI[[#This Row],[Hide: Rebate]]/'Project Information'!$S$401,2))), \"Does not meet $50 Minimum\"), \"No Rebate\"), \"No Rebate\"),0)","v":0},0,0,0,0,0,0,0,0,0,{"$f":"IF(Table_PI[[#This Row],[Hide: Formula Name]]<>\"\",IF(AND(Table_PI[[#This Row],[Hide: Formula Name]]<>\"\",OR(Table_PI[[#This Row],[Hide: Rebate]]>0,Table_PI[[#This Row],[Hide: Rebate]]=\"No Rebate\")),TRUE,\"MI: Line Item \" & $A179),\"\")","v":""}]
[{"$f":"IF(Table_PI[[#This Row],[Hide: Formula Name]]<>\"\",MAX($A$2:A179)+1,\"\")","v":""},null,null,null,null,null,null,null,null,null,null,null,null,null,null,null,null,{"$f":"IFERROR(VLOOKUP(Table_PI[[#This Row],[Measure]],'Equipment Lookups'!$C$3:$D$23,2,FALSE),\"\")","v":""},0,{"$f":"IF(Table_PI[[#This Row],[Hide: Formula Name]]<>\"\",IFERROR(IF(AND(ISNUMBER(Table_PI[[#This Row],[Hide: Rebate]]),Table_PI[[#This Row],[Hide: Rebate]]>0), IF($S$401>=50, IF(AND(ProjectStage=\"(Installed)\",$S$401>'Customer Information'!$BC$21), 'Customer Information'!$BC$21*Table_PI[[#This Row],[Hide: Rebate]]/$S$401, IF($S$401<=300000, Table_PI[[#This Row],[Hide: Rebate]], ROUND(300000*Table_PI[[#This Row],[Hide: Rebate]]/'Project Information'!$S$401,2))), \"Does not meet $50 Minimum\"), \"No Rebate\"), \"No Rebate\"),0)","v":0},0,0,0,0,0,0,0,0,0,{"$f":"IF(Table_PI[[#This Row],[Hide: Formula Name]]<>\"\",IF(AND(Table_PI[[#This Row],[Hide: Formula Name]]<>\"\",OR(Table_PI[[#This Row],[Hide: Rebate]]>0,Table_PI[[#This Row],[Hide: Rebate]]=\"No Rebate\")),TRUE,\"MI: Line Item \" & $A180),\"\")","v":""}]
[{"$f":"IF(Table_PI[[#This Row],[Hide: Formula Name]]<>\"\",MAX($A$2:A180)+1,\"\")","v":""},null,null,null,null,null,null,null,null,null,null,null,null,null,null,null,null,{"$f":"IFERROR(VLOOKUP(Table_PI[[#This Row],[Measure]],'Equipment Lookups'!$C$3:$D$23,2,FALSE),\"\")","v":""},0,{"$f":"IF(Table_PI[[#This Row],[Hide: Formula Name]]<>\"\",IFERROR(IF(AND(ISNUMBER(Table_PI[[#This Row],[Hide: Rebate]]),Table_PI[[#This Row],[Hide: Rebate]]>0), IF($S$401>=50, IF(AND(ProjectStage=\"(Installed)\",$S$401>'Customer Information'!$BC$21), 'Customer Information'!$BC$21*Table_PI[[#This Row],[Hide: Rebate]]/$S$401, IF($S$401<=300000, Table_PI[[#This Row],[Hide: Rebate]], ROUND(300000*Table_PI[[#This Row],[Hide: Rebate]]/'Project Information'!$S$401,2))), \"Does not meet $50 Minimum\"), \"No Rebate\"), \"No Rebate\"),0)","v":0},0,0,0,0,0,0,0,0,0,{"$f":"IF(Table_PI[[#This Row],[Hide: Formula Name]]<>\"\",IF(AND(Table_PI[[#This Row],[Hide: Formula Name]]<>\"\",OR(Table_PI[[#This Row],[Hide: Rebate]]>0,Table_PI[[#This Row],[Hide: Rebate]]=\"No Rebate\")),TRUE,\"MI: Line Item \" & $A181),\"\")","v":""}]
[{"$f":"IF(Table_PI[[#This Row],[Hide: Formula Name]]<>\"\",MAX($A$2:A181)+1,\"\")","v":""},null,null,null,null,null,null,null,null,null,null,null,null,null,null,null,null,{"$f":"IFERROR(VLOOKUP(Table_PI[[#This Row],[Measure]],'Equipment Lookups'!$C$3:$D$23,2,FALSE),\"\")","v":""},0,{"$f":"IF(Table_PI[[#This Row],[Hide: Formula Name]]<>\"\",IFERROR(IF(AND(ISNUMBER(Table_PI[[#This Row],[Hide: Rebate]]),Table_PI[[#This Row],[Hide: Rebate]]>0), IF($S$401>=50, IF(AND(ProjectStage=\"(Installed)\",$S$401>'Customer Information'!$BC$21), 'Customer Information'!$BC$21*Table_PI[[#This Row],[Hide: Rebate]]/$S$401, IF($S$401<=300000, Table_PI[[#This Row],[Hide: Rebate]], ROUND(300000*Table_PI[[#This Row],[Hide: Rebate]]/'Project Information'!$S$401,2))), \"Does not meet $50 Minimum\"), \"No Rebate\"), \"No Rebate\"),0)","v":0},0,0,0,0,0,0,0,0,0,{"$f":"IF(Table_PI[[#This Row],[Hide: Formula Name]]<>\"\",IF(AND(Table_PI[[#This Row],[Hide: Formula Name]]<>\"\",OR(Table_PI[[#This Row],[Hide: Rebate]]>0,Table_PI[[#This Row],[Hide: Rebate]]=\"No Rebate\")),TRUE,\"MI: Line Item \" & $A182),\"\")","v":""}]
[{"$f":"IF(Table_PI[[#This Row],[Hide: Formula Name]]<>\"\",MAX($A$2:A182)+1,\"\")","v":""},null,null,null,null,null,null,null,null,null,null,null,null,null,null,null,null,{"$f":"IFERROR(VLOOKUP(Table_PI[[#This Row],[Measure]],'Equipment Lookups'!$C$3:$D$23,2,FALSE),\"\")","v":""},0,{"$f":"IF(Table_PI[[#This Row],[Hide: Formula Name]]<>\"\",IFERROR(IF(AND(ISNUMBER(Table_PI[[#This Row],[Hide: Rebate]]),Table_PI[[#This Row],[Hide: Rebate]]>0), IF($S$401>=50, IF(AND(ProjectStage=\"(Installed)\",$S$401>'Customer Information'!$BC$21), 'Customer Information'!$BC$21*Table_PI[[#This Row],[Hide: Rebate]]/$S$401, IF($S$401<=300000, Table_PI[[#This Row],[Hide: Rebate]], ROUND(300000*Table_PI[[#This Row],[Hide: Rebate]]/'Project Information'!$S$401,2))), \"Does not meet $50 Minimum\"), \"No Rebate\"), \"No Rebate\"),0)","v":0},0,0,0,0,0,0,0,0,0,{"$f":"IF(Table_PI[[#This Row],[Hide: Formula Name]]<>\"\",IF(AND(Table_PI[[#This Row],[Hide: Formula Name]]<>\"\",OR(Table_PI[[#This Row],[Hide: Rebate]]>0,Table_PI[[#This Row],[Hide: Rebate]]=\"No Rebate\")),TRUE,\"MI: Line Item \" & $A183),\"\")","v":""}]
[{"$f":"IF(Table_PI[[#This Row],[Hide: Formula Name]]<>\"\",MAX($A$2:A183)+1,\"\")","v":""},null,null,null,null,null,null,null,null,null,null,null,null,null,null,null,null,{"$f":"IFERROR(VLOOKUP(Table_PI[[#This Row],[Measure]],'Equipment Lookups'!$C$3:$D$23,2,FALSE),\"\")","v":""},0,{"$f":"IF(Table_PI[[#This Row],[Hide: Formula Name]]<>\"\",IFERROR(IF(AND(ISNUMBER(Table_PI[[#This Row],[Hide: Rebate]]),Table_PI[[#This Row],[Hide: Rebate]]>0), IF($S$401>=50, IF(AND(ProjectStage=\"(Installed)\",$S$401>'Customer Information'!$BC$21), 'Customer Information'!$BC$21*Table_PI[[#This Row],[Hide: Rebate]]/$S$401, IF($S$401<=300000, Table_PI[[#This Row],[Hide: Rebate]], ROUND(300000*Table_PI[[#This Row],[Hide: Rebate]]/'Project Information'!$S$401,2))), \"Does not meet $50 Minimum\"), \"No Rebate\"), \"No Rebate\"),0)","v":0},0,0,0,0,0,0,0,0,0,{"$f":"IF(Table_PI[[#This Row],[Hide: Formula Name]]<>\"\",IF(AND(Table_PI[[#This Row],[Hide: Formula Name]]<>\"\",OR(Table_PI[[#This Row],[Hide: Rebate]]>0,Table_PI[[#This Row],[Hide: Rebate]]=\"No Rebate\")),TRUE,\"MI: Line Item \" & $A184),\"\")","v":""}]
[{"$f":"IF(Table_PI[[#This Row],[Hide: Formula Name]]<>\"\",MAX($A$2:A184)+1,\"\")","v":""},null,null,null,null,null,null,null,null,null,null,null,null,null,null,null,null,{"$f":"IFERROR(VLOOKUP(Table_PI[[#This Row],[Measure]],'Equipment Lookups'!$C$3:$D$23,2,FALSE),\"\")","v":""},0,{"$f":"IF(Table_PI[[#This Row],[Hide: Formula Name]]<>\"\",IFERROR(IF(AND(ISNUMBER(Table_PI[[#This Row],[Hide: Rebate]]),Table_PI[[#This Row],[Hide: Rebate]]>0), IF($S$401>=50, IF(AND(ProjectStage=\"(Installed)\",$S$401>'Customer Information'!$BC$21), 'Customer Information'!$BC$21*Table_PI[[#This Row],[Hide: Rebate]]/$S$401, IF($S$401<=300000, Table_PI[[#This Row],[Hide: Rebate]], ROUND(300000*Table_PI[[#This Row],[Hide: Rebate]]/'Project Information'!$S$401,2))), \"Does not meet $50 Minimum\"), \"No Rebate\"), \"No Rebate\"),0)","v":0},0,0,0,0,0,0,0,0,0,{"$f":"IF(Table_PI[[#This Row],[Hide: Formula Name]]<>\"\",IF(AND(Table_PI[[#This Row],[Hide: Formula Name]]<>\"\",OR(Table_PI[[#This Row],[Hide: Rebate]]>0,Table_PI[[#This Row],[Hide: Rebate]]=\"No Rebate\")),TRUE,\"MI: Line Item \" & $A185),\"\")","v":""}]
[{"$f":"IF(Table_PI[[#This Row],[Hide: Formula Name]]<>\"\",MAX($A$2:A185)+1,\"\")","v":""},null,null,null,null,null,null,null,null,null,null,null,null,null,null,null,null,{"$f":"IFERROR(VLOOKUP(Table_PI[[#This Row],[Measure]],'Equipment Lookups'!$C$3:$D$23,2,FALSE),\"\")","v":""},0,{"$f":"IF(Table_PI[[#This Row],[Hide: Formula Name]]<>\"\",IFERROR(IF(AND(ISNUMBER(Table_PI[[#This Row],[Hide: Rebate]]),Table_PI[[#This Row],[Hide: Rebate]]>0), IF($S$401>=50, IF(AND(ProjectStage=\"(Installed)\",$S$401>'Customer Information'!$BC$21), 'Customer Information'!$BC$21*Table_PI[[#This Row],[Hide: Rebate]]/$S$401, IF($S$401<=300000, Table_PI[[#This Row],[Hide: Rebate]], ROUND(300000*Table_PI[[#This Row],[Hide: Rebate]]/'Project Information'!$S$401,2))), \"Does not meet $50 Minimum\"), \"No Rebate\"), \"No Rebate\"),0)","v":0},0,0,0,0,0,0,0,0,0,{"$f":"IF(Table_PI[[#This Row],[Hide: Formula Name]]<>\"\",IF(AND(Table_PI[[#This Row],[Hide: Formula Name]]<>\"\",OR(Table_PI[[#This Row],[Hide: Rebate]]>0,Table_PI[[#This Row],[Hide: Rebate]]=\"No Rebate\")),TRUE,\"MI: Line Item \" & $A186),\"\")","v":""}]
[{"$f":"IF(Table_PI[[#This Row],[Hide: Formula Name]]<>\"\",MAX($A$2:A186)+1,\"\")","v":""},null,null,null,null,null,null,null,null,null,null,null,null,null,null,null,null,{"$f":"IFERROR(VLOOKUP(Table_PI[[#This Row],[Measure]],'Equipment Lookups'!$C$3:$D$23,2,FALSE),\"\")","v":""},0,{"$f":"IF(Table_PI[[#This Row],[Hide: Formula Name]]<>\"\",IFERROR(IF(AND(ISNUMBER(Table_PI[[#This Row],[Hide: Rebate]]),Table_PI[[#This Row],[Hide: Rebate]]>0), IF($S$401>=50, IF(AND(ProjectStage=\"(Installed)\",$S$401>'Customer Information'!$BC$21), 'Customer Information'!$BC$21*Table_PI[[#This Row],[Hide: Rebate]]/$S$401, IF($S$401<=300000, Table_PI[[#This Row],[Hide: Rebate]], ROUND(300000*Table_PI[[#This Row],[Hide: Rebate]]/'Project Information'!$S$401,2))), \"Does not meet $50 Minimum\"), \"No Rebate\"), \"No Rebate\"),0)","v":0},0,0,0,0,0,0,0,0,0,{"$f":"IF(Table_PI[[#This Row],[Hide: Formula Name]]<>\"\",IF(AND(Table_PI[[#This Row],[Hide: Formula Name]]<>\"\",OR(Table_PI[[#This Row],[Hide: Rebate]]>0,Table_PI[[#This Row],[Hide: Rebate]]=\"No Rebate\")),TRUE,\"MI: Line Item \" & $A187),\"\")","v":""}]
[{"$f":"IF(Table_PI[[#This Row],[Hide: Formula Name]]<>\"\",MAX($A$2:A187)+1,\"\")","v":""},null,null,null,null,null,null,null,null,null,null,null,null,null,null,null,null,{"$f":"IFERROR(VLOOKUP(Table_PI[[#This Row],[Measure]],'Equipment Lookups'!$C$3:$D$23,2,FALSE),\"\")","v":""},0,{"$f":"IF(Table_PI[[#This Row],[Hide: Formula Name]]<>\"\",IFERROR(IF(AND(ISNUMBER(Table_PI[[#This Row],[Hide: Rebate]]),Table_PI[[#This Row],[Hide: Rebate]]>0), IF($S$401>=50, IF(AND(ProjectStage=\"(Installed)\",$S$401>'Customer Information'!$BC$21), 'Customer Information'!$BC$21*Table_PI[[#This Row],[Hide: Rebate]]/$S$401, IF($S$401<=300000, Table_PI[[#This Row],[Hide: Rebate]], ROUND(300000*Table_PI[[#This Row],[Hide: Rebate]]/'Project Information'!$S$401,2))), \"Does not meet $50 Minimum\"), \"No Rebate\"), \"No Rebate\"),0)","v":0},0,0,0,0,0,0,0,0,0,{"$f":"IF(Table_PI[[#This Row],[Hide: Formula Name]]<>\"\",IF(AND(Table_PI[[#This Row],[Hide: Formula Name]]<>\"\",OR(Table_PI[[#This Row],[Hide: Rebate]]>0,Table_PI[[#This Row],[Hide: Rebate]]=\"No Rebate\")),TRUE,\"MI: Line Item \" & $A188),\"\")","v":""}]
[{"$f":"IF(Table_PI[[#This Row],[Hide: Formula Name]]<>\"\",MAX($A$2:A188)+1,\"\")","v":""},null,null,null,null,null,null,null,null,null,null,null,null,null,null,null,null,{"$f":"IFERROR(VLOOKUP(Table_PI[[#This Row],[Measure]],'Equipment Lookups'!$C$3:$D$23,2,FALSE),\"\")","v":""},0,{"$f":"IF(Table_PI[[#This Row],[Hide: Formula Name]]<>\"\",IFERROR(IF(AND(ISNUMBER(Table_PI[[#This Row],[Hide: Rebate]]),Table_PI[[#This Row],[Hide: Rebate]]>0), IF($S$401>=50, IF(AND(ProjectStage=\"(Installed)\",$S$401>'Customer Information'!$BC$21), 'Customer Information'!$BC$21*Table_PI[[#This Row],[Hide: Rebate]]/$S$401, IF($S$401<=300000, Table_PI[[#This Row],[Hide: Rebate]], ROUND(300000*Table_PI[[#This Row],[Hide: Rebate]]/'Project Information'!$S$401,2))), \"Does not meet $50 Minimum\"), \"No Rebate\"), \"No Rebate\"),0)","v":0},0,0,0,0,0,0,0,0,0,{"$f":"IF(Table_PI[[#This Row],[Hide: Formula Name]]<>\"\",IF(AND(Table_PI[[#This Row],[Hide: Formula Name]]<>\"\",OR(Table_PI[[#This Row],[Hide: Rebate]]>0,Table_PI[[#This Row],[Hide: Rebate]]=\"No Rebate\")),TRUE,\"MI: Line Item \" & $A189),\"\")","v":""}]
[{"$f":"IF(Table_PI[[#This Row],[Hide: Formula Name]]<>\"\",MAX($A$2:A189)+1,\"\")","v":""},null,null,null,null,null,null,null,null,null,null,null,null,null,null,null,null,{"$f":"IFERROR(VLOOKUP(Table_PI[[#This Row],[Measure]],'Equipment Lookups'!$C$3:$D$23,2,FALSE),\"\")","v":""},0,{"$f":"IF(Table_PI[[#This Row],[Hide: Formula Name]]<>\"\",IFERROR(IF(AND(ISNUMBER(Table_PI[[#This Row],[Hide: Rebate]]),Table_PI[[#This Row],[Hide: Rebate]]>0), IF($S$401>=50, IF(AND(ProjectStage=\"(Installed)\",$S$401>'Customer Information'!$BC$21), 'Customer Information'!$BC$21*Table_PI[[#This Row],[Hide: Rebate]]/$S$401, IF($S$401<=300000, Table_PI[[#This Row],[Hide: Rebate]], ROUND(300000*Table_PI[[#This Row],[Hide: Rebate]]/'Project Information'!$S$401,2))), \"Does not meet $50 Minimum\"), \"No Rebate\"), \"No Rebate\"),0)","v":0},0,0,0,0,0,0,0,0,0,{"$f":"IF(Table_PI[[#This Row],[Hide: Formula Name]]<>\"\",IF(AND(Table_PI[[#This Row],[Hide: Formula Name]]<>\"\",OR(Table_PI[[#This Row],[Hide: Rebate]]>0,Table_PI[[#This Row],[Hide: Rebate]]=\"No Rebate\")),TRUE,\"MI: Line Item \" & $A190),\"\")","v":""}]
[{"$f":"IF(Table_PI[[#This Row],[Hide: Formula Name]]<>\"\",MAX($A$2:A190)+1,\"\")","v":""},null,null,null,null,null,null,null,null,null,null,null,null,null,null,null,null,{"$f":"IFERROR(VLOOKUP(Table_PI[[#This Row],[Measure]],'Equipment Lookups'!$C$3:$D$23,2,FALSE),\"\")","v":""},0,{"$f":"IF(Table_PI[[#This Row],[Hide: Formula Name]]<>\"\",IFERROR(IF(AND(ISNUMBER(Table_PI[[#This Row],[Hide: Rebate]]),Table_PI[[#This Row],[Hide: Rebate]]>0), IF($S$401>=50, IF(AND(ProjectStage=\"(Installed)\",$S$401>'Customer Information'!$BC$21), 'Customer Information'!$BC$21*Table_PI[[#This Row],[Hide: Rebate]]/$S$401, IF($S$401<=300000, Table_PI[[#This Row],[Hide: Rebate]], ROUND(300000*Table_PI[[#This Row],[Hide: Rebate]]/'Project Information'!$S$401,2))), \"Does not meet $50 Minimum\"), \"No Rebate\"), \"No Rebate\"),0)","v":0},0,0,0,0,0,0,0,0,0,{"$f":"IF(Table_PI[[#This Row],[Hide: Formula Name]]<>\"\",IF(AND(Table_PI[[#This Row],[Hide: Formula Name]]<>\"\",OR(Table_PI[[#This Row],[Hide: Rebate]]>0,Table_PI[[#This Row],[Hide: Rebate]]=\"No Rebate\")),TRUE,\"MI: Line Item \" & $A191),\"\")","v":""}]
[{"$f":"IF(Table_PI[[#This Row],[Hide: Formula Name]]<>\"\",MAX($A$2:A191)+1,\"\")","v":""},null,null,null,null,null,null,null,null,null,null,null,null,null,null,null,null,{"$f":"IFERROR(VLOOKUP(Table_PI[[#This Row],[Measure]],'Equipment Lookups'!$C$3:$D$23,2,FALSE),\"\")","v":""},0,{"$f":"IF(Table_PI[[#This Row],[Hide: Formula Name]]<>\"\",IFERROR(IF(AND(ISNUMBER(Table_PI[[#This Row],[Hide: Rebate]]),Table_PI[[#This Row],[Hide: Rebate]]>0), IF($S$401>=50, IF(AND(ProjectStage=\"(Installed)\",$S$401>'Customer Information'!$BC$21), 'Customer Information'!$BC$21*Table_PI[[#This Row],[Hide: Rebate]]/$S$401, IF($S$401<=300000, Table_PI[[#This Row],[Hide: Rebate]], ROUND(300000*Table_PI[[#This Row],[Hide: Rebate]]/'Project Information'!$S$401,2))), \"Does not meet $50 Minimum\"), \"No Rebate\"), \"No Rebate\"),0)","v":0},0,0,0,0,0,0,0,0,0,{"$f":"IF(Table_PI[[#This Row],[Hide: Formula Name]]<>\"\",IF(AND(Table_PI[[#This Row],[Hide: Formula Name]]<>\"\",OR(Table_PI[[#This Row],[Hide: Rebate]]>0,Table_PI[[#This Row],[Hide: Rebate]]=\"No Rebate\")),TRUE,\"MI: Line Item \" & $A192),\"\")","v":""}]
[{"$f":"IF(Table_PI[[#This Row],[Hide: Formula Name]]<>\"\",MAX($A$2:A192)+1,\"\")","v":""},null,null,null,null,null,null,null,null,null,null,null,null,null,null,null,null,{"$f":"IFERROR(VLOOKUP(Table_PI[[#This Row],[Measure]],'Equipment Lookups'!$C$3:$D$23,2,FALSE),\"\")","v":""},0,{"$f":"IF(Table_PI[[#This Row],[Hide: Formula Name]]<>\"\",IFERROR(IF(AND(ISNUMBER(Table_PI[[#This Row],[Hide: Rebate]]),Table_PI[[#This Row],[Hide: Rebate]]>0), IF($S$401>=50, IF(AND(ProjectStage=\"(Installed)\",$S$401>'Customer Information'!$BC$21), 'Customer Information'!$BC$21*Table_PI[[#This Row],[Hide: Rebate]]/$S$401, IF($S$401<=300000, Table_PI[[#This Row],[Hide: Rebate]], ROUND(300000*Table_PI[[#This Row],[Hide: Rebate]]/'Project Information'!$S$401,2))), \"Does not meet $50 Minimum\"), \"No Rebate\"), \"No Rebate\"),0)","v":0},0,0,0,0,0,0,0,0,0,{"$f":"IF(Table_PI[[#This Row],[Hide: Formula Name]]<>\"\",IF(AND(Table_PI[[#This Row],[Hide: Formula Name]]<>\"\",OR(Table_PI[[#This Row],[Hide: Rebate]]>0,Table_PI[[#This Row],[Hide: Rebate]]=\"No Rebate\")),TRUE,\"MI: Line Item \" & $A193),\"\")","v":""}]
[{"$f":"IF(Table_PI[[#This Row],[Hide: Formula Name]]<>\"\",MAX($A$2:A193)+1,\"\")","v":""},null,null,null,null,null,null,null,null,null,null,null,null,null,null,null,null,{"$f":"IFERROR(VLOOKUP(Table_PI[[#This Row],[Measure]],'Equipment Lookups'!$C$3:$D$23,2,FALSE),\"\")","v":""},0,{"$f":"IF(Table_PI[[#This Row],[Hide: Formula Name]]<>\"\",IFERROR(IF(AND(ISNUMBER(Table_PI[[#This Row],[Hide: Rebate]]),Table_PI[[#This Row],[Hide: Rebate]]>0), IF($S$401>=50, IF(AND(ProjectStage=\"(Installed)\",$S$401>'Customer Information'!$BC$21), 'Customer Information'!$BC$21*Table_PI[[#This Row],[Hide: Rebate]]/$S$401, IF($S$401<=300000, Table_PI[[#This Row],[Hide: Rebate]], ROUND(300000*Table_PI[[#This Row],[Hide: Rebate]]/'Project Information'!$S$401,2))), \"Does not meet $50 Minimum\"), \"No Rebate\"), \"No Rebate\"),0)","v":0},0,0,0,0,0,0,0,0,0,{"$f":"IF(Table_PI[[#This Row],[Hide: Formula Name]]<>\"\",IF(AND(Table_PI[[#This Row],[Hide: Formula Name]]<>\"\",OR(Table_PI[[#This Row],[Hide: Rebate]]>0,Table_PI[[#This Row],[Hide: Rebate]]=\"No Rebate\")),TRUE,\"MI: Line Item \" & $A194),\"\")","v":""}]
[{"$f":"IF(Table_PI[[#This Row],[Hide: Formula Name]]<>\"\",MAX($A$2:A194)+1,\"\")","v":""},null,null,null,null,null,null,null,null,null,null,null,null,null,null,null,null,{"$f":"IFERROR(VLOOKUP(Table_PI[[#This Row],[Measure]],'Equipment Lookups'!$C$3:$D$23,2,FALSE),\"\")","v":""},0,{"$f":"IF(Table_PI[[#This Row],[Hide: Formula Name]]<>\"\",IFERROR(IF(AND(ISNUMBER(Table_PI[[#This Row],[Hide: Rebate]]),Table_PI[[#This Row],[Hide: Rebate]]>0), IF($S$401>=50, IF(AND(ProjectStage=\"(Installed)\",$S$401>'Customer Information'!$BC$21), 'Customer Information'!$BC$21*Table_PI[[#This Row],[Hide: Rebate]]/$S$401, IF($S$401<=300000, Table_PI[[#This Row],[Hide: Rebate]], ROUND(300000*Table_PI[[#This Row],[Hide: Rebate]]/'Project Information'!$S$401,2))), \"Does not meet $50 Minimum\"), \"No Rebate\"), \"No Rebate\"),0)","v":0},0,0,0,0,0,0,0,0,0,{"$f":"IF(Table_PI[[#This Row],[Hide: Formula Name]]<>\"\",IF(AND(Table_PI[[#This Row],[Hide: Formula Name]]<>\"\",OR(Table_PI[[#This Row],[Hide: Rebate]]>0,Table_PI[[#This Row],[Hide: Rebate]]=\"No Rebate\")),TRUE,\"MI: Line Item \" & $A195),\"\")","v":""}]
[{"$f":"IF(Table_PI[[#This Row],[Hide: Formula Name]]<>\"\",MAX($A$2:A195)+1,\"\")","v":""},null,null,null,null,null,null,null,null,null,null,null,null,null,null,null,null,{"$f":"IFERROR(VLOOKUP(Table_PI[[#This Row],[Measure]],'Equipment Lookups'!$C$3:$D$23,2,FALSE),\"\")","v":""},0,{"$f":"IF(Table_PI[[#This Row],[Hide: Formula Name]]<>\"\",IFERROR(IF(AND(ISNUMBER(Table_PI[[#This Row],[Hide: Rebate]]),Table_PI[[#This Row],[Hide: Rebate]]>0), IF($S$401>=50, IF(AND(ProjectStage=\"(Installed)\",$S$401>'Customer Information'!$BC$21), 'Customer Information'!$BC$21*Table_PI[[#This Row],[Hide: Rebate]]/$S$401, IF($S$401<=300000, Table_PI[[#This Row],[Hide: Rebate]], ROUND(300000*Table_PI[[#This Row],[Hide: Rebate]]/'Project Information'!$S$401,2))), \"Does not meet $50 Minimum\"), \"No Rebate\"), \"No Rebate\"),0)","v":0},0,0,0,0,0,0,0,0,0,{"$f":"IF(Table_PI[[#This Row],[Hide: Formula Name]]<>\"\",IF(AND(Table_PI[[#This Row],[Hide: Formula Name]]<>\"\",OR(Table_PI[[#This Row],[Hide: Rebate]]>0,Table_PI[[#This Row],[Hide: Rebate]]=\"No Rebate\")),TRUE,\"MI: Line Item \" & $A196),\"\")","v":""}]
[{"$f":"IF(Table_PI[[#This Row],[Hide: Formula Name]]<>\"\",MAX($A$2:A196)+1,\"\")","v":""},null,null,null,null,null,null,null,null,null,null,null,null,null,null,null,null,{"$f":"IFERROR(VLOOKUP(Table_PI[[#This Row],[Measure]],'Equipment Lookups'!$C$3:$D$23,2,FALSE),\"\")","v":""},0,{"$f":"IF(Table_PI[[#This Row],[Hide: Formula Name]]<>\"\",IFERROR(IF(AND(ISNUMBER(Table_PI[[#This Row],[Hide: Rebate]]),Table_PI[[#This Row],[Hide: Rebate]]>0), IF($S$401>=50, IF(AND(ProjectStage=\"(Installed)\",$S$401>'Customer Information'!$BC$21), 'Customer Information'!$BC$21*Table_PI[[#This Row],[Hide: Rebate]]/$S$401, IF($S$401<=300000, Table_PI[[#This Row],[Hide: Rebate]], ROUND(300000*Table_PI[[#This Row],[Hide: Rebate]]/'Project Information'!$S$401,2))), \"Does not meet $50 Minimum\"), \"No Rebate\"), \"No Rebate\"),0)","v":0},0,0,0,0,0,0,0,0,0,{"$f":"IF(Table_PI[[#This Row],[Hide: Formula Name]]<>\"\",IF(AND(Table_PI[[#This Row],[Hide: Formula Name]]<>\"\",OR(Table_PI[[#This Row],[Hide: Rebate]]>0,Table_PI[[#This Row],[Hide: Rebate]]=\"No Rebate\")),TRUE,\"MI: Line Item \" & $A197),\"\")","v":""}]
[{"$f":"IF(Table_PI[[#This Row],[Hide: Formula Name]]<>\"\",MAX($A$2:A197)+1,\"\")","v":""},null,null,null,null,null,null,null,null,null,null,null,null,null,null,null,null,{"$f":"IFERROR(VLOOKUP(Table_PI[[#This Row],[Measure]],'Equipment Lookups'!$C$3:$D$23,2,FALSE),\"\")","v":""},0,{"$f":"IF(Table_PI[[#This Row],[Hide: Formula Name]]<>\"\",IFERROR(IF(AND(ISNUMBER(Table_PI[[#This Row],[Hide: Rebate]]),Table_PI[[#This Row],[Hide: Rebate]]>0), IF($S$401>=50, IF(AND(ProjectStage=\"(Installed)\",$S$401>'Customer Information'!$BC$21), 'Customer Information'!$BC$21*Table_PI[[#This Row],[Hide: Rebate]]/$S$401, IF($S$401<=300000, Table_PI[[#This Row],[Hide: Rebate]], ROUND(300000*Table_PI[[#This Row],[Hide: Rebate]]/'Project Information'!$S$401,2))), \"Does not meet $50 Minimum\"), \"No Rebate\"), \"No Rebate\"),0)","v":0},0,0,0,0,0,0,0,0,0,{"$f":"IF(Table_PI[[#This Row],[Hide: Formula Name]]<>\"\",IF(AND(Table_PI[[#This Row],[Hide: Formula Name]]<>\"\",OR(Table_PI[[#This Row],[Hide: Rebate]]>0,Table_PI[[#This Row],[Hide: Rebate]]=\"No Rebate\")),TRUE,\"MI: Line Item \" & $A198),\"\")","v":""}]
[{"$f":"IF(Table_PI[[#This Row],[Hide: Formula Name]]<>\"\",MAX($A$2:A198)+1,\"\")","v":""},null,null,null,null,null,null,null,null,null,null,null,null,null,null,null,null,{"$f":"IFERROR(VLOOKUP(Table_PI[[#This Row],[Measure]],'Equipment Lookups'!$C$3:$D$23,2,FALSE),\"\")","v":""},0,{"$f":"IF(Table_PI[[#This Row],[Hide: Formula Name]]<>\"\",IFERROR(IF(AND(ISNUMBER(Table_PI[[#This Row],[Hide: Rebate]]),Table_PI[[#This Row],[Hide: Rebate]]>0), IF($S$401>=50, IF(AND(ProjectStage=\"(Installed)\",$S$401>'Customer Information'!$BC$21), 'Customer Information'!$BC$21*Table_PI[[#This Row],[Hide: Rebate]]/$S$401, IF($S$401<=300000, Table_PI[[#This Row],[Hide: Rebate]], ROUND(300000*Table_PI[[#This Row],[Hide: Rebate]]/'Project Information'!$S$401,2))), \"Does not meet $50 Minimum\"), \"No Rebate\"), \"No Rebate\"),0)","v":0},0,0,0,0,0,0,0,0,0,{"$f":"IF(Table_PI[[#This Row],[Hide: Formula Name]]<>\"\",IF(AND(Table_PI[[#This Row],[Hide: Formula Name]]<>\"\",OR(Table_PI[[#This Row],[Hide: Rebate]]>0,Table_PI[[#This Row],[Hide: Rebate]]=\"No Rebate\")),TRUE,\"MI: Line Item \" & $A199),\"\")","v":""}]
[{"$f":"IF(Table_PI[[#This Row],[Hide: Formula Name]]<>\"\",MAX($A$2:A199)+1,\"\")","v":""},null,null,null,null,null,null,null,null,null,null,null,null,null,null,null,null,{"$f":"IFERROR(VLOOKUP(Table_PI[[#This Row],[Measure]],'Equipment Lookups'!$C$3:$D$23,2,FALSE),\"\")","v":""},0,{"$f":"IF(Table_PI[[#This Row],[Hide: Formula Name]]<>\"\",IFERROR(IF(AND(ISNUMBER(Table_PI[[#This Row],[Hide: Rebate]]),Table_PI[[#This Row],[Hide: Rebate]]>0), IF($S$401>=50, IF(AND(ProjectStage=\"(Installed)\",$S$401>'Customer Information'!$BC$21), 'Customer Information'!$BC$21*Table_PI[[#This Row],[Hide: Rebate]]/$S$401, IF($S$401<=300000, Table_PI[[#This Row],[Hide: Rebate]], ROUND(300000*Table_PI[[#This Row],[Hide: Rebate]]/'Project Information'!$S$401,2))), \"Does not meet $50 Minimum\"), \"No Rebate\"), \"No Rebate\"),0)","v":0},0,0,0,0,0,0,0,0,0,{"$f":"IF(Table_PI[[#This Row],[Hide: Formula Name]]<>\"\",IF(AND(Table_PI[[#This Row],[Hide: Formula Name]]<>\"\",OR(Table_PI[[#This Row],[Hide: Rebate]]>0,Table_PI[[#This Row],[Hide: Rebate]]=\"No Rebate\")),TRUE,\"MI: Line Item \" & $A200),\"\")","v":""}]
[{"$f":"IF(Table_PI[[#This Row],[Hide: Formula Name]]<>\"\",MAX($A$2:A200)+1,\"\")","v":""},null,null,null,null,null,null,null,null,null,null,null,null,null,null,null,null,{"$f":"IFERROR(VLOOKUP(Table_PI[[#This Row],[Measure]],'Equipment Lookups'!$C$3:$D$23,2,FALSE),\"\")","v":""},0,{"$f":"IF(Table_PI[[#This Row],[Hide: Formula Name]]<>\"\",IFERROR(IF(AND(ISNUMBER(Table_PI[[#This Row],[Hide: Rebate]]),Table_PI[[#This Row],[Hide: Rebate]]>0), IF($S$401>=50, IF(AND(ProjectStage=\"(Installed)\",$S$401>'Customer Information'!$BC$21), 'Customer Information'!$BC$21*Table_PI[[#This Row],[Hide: Rebate]]/$S$401, IF($S$401<=300000, Table_PI[[#This Row],[Hide: Rebate]], ROUND(300000*Table_PI[[#This Row],[Hide: Rebate]]/'Project Information'!$S$401,2))), \"Does not meet $50 Minimum\"), \"No Rebate\"), \"No Rebate\"),0)","v":0},0,0,0,0,0,0,0,0,0,{"$f":"IF(Table_PI[[#This Row],[Hide: Formula Name]]<>\"\",IF(AND(Table_PI[[#This Row],[Hide: Formula Name]]<>\"\",OR(Table_PI[[#This Row],[Hide: Rebate]]>0,Table_PI[[#This Row],[Hide: Rebate]]=\"No Rebate\")),TRUE,\"MI: Line Item \" & $A201),\"\")","v":""}]
[{"$f":"IF(Table_PI[[#This Row],[Hide: Formula Name]]<>\"\",MAX($A$2:A201)+1,\"\")","v":""},null,null,null,null,null,null,null,null,null,null,null,null,null,null,null,null,{"$f":"IFERROR(VLOOKUP(Table_PI[[#This Row],[Measure]],'Equipment Lookups'!$C$3:$D$23,2,FALSE),\"\")","v":""},0,{"$f":"IF(Table_PI[[#This Row],[Hide: Formula Name]]<>\"\",IFERROR(IF(AND(ISNUMBER(Table_PI[[#This Row],[Hide: Rebate]]),Table_PI[[#This Row],[Hide: Rebate]]>0), IF($S$401>=50, IF(AND(ProjectStage=\"(Installed)\",$S$401>'Customer Information'!$BC$21), 'Customer Information'!$BC$21*Table_PI[[#This Row],[Hide: Rebate]]/$S$401, IF($S$401<=300000, Table_PI[[#This Row],[Hide: Rebate]], ROUND(300000*Table_PI[[#This Row],[Hide: Rebate]]/'Project Information'!$S$401,2))), \"Does not meet $50 Minimum\"), \"No Rebate\"), \"No Rebate\"),0)","v":0},0,0,0,0,0,0,0,0,0,{"$f":"IF(Table_PI[[#This Row],[Hide: Formula Name]]<>\"\",IF(AND(Table_PI[[#This Row],[Hide: Formula Name]]<>\"\",OR(Table_PI[[#This Row],[Hide: Rebate]]>0,Table_PI[[#This Row],[Hide: Rebate]]=\"No Rebate\")),TRUE,\"MI: Line Item \" & $A202),\"\")","v":""}]
[{"$f":"IF(Table_PI[[#This Row],[Hide: Formula Name]]<>\"\",MAX($A$2:A202)+1,\"\")","v":""},null,null,null,null,null,null,null,null,null,null,null,null,null,null,null,null,{"$f":"IFERROR(VLOOKUP(Table_PI[[#This Row],[Measure]],'Equipment Lookups'!$C$3:$D$23,2,FALSE),\"\")","v":""},0,{"$f":"IF(Table_PI[[#This Row],[Hide: Formula Name]]<>\"\",IFERROR(IF(AND(ISNUMBER(Table_PI[[#This Row],[Hide: Rebate]]),Table_PI[[#This Row],[Hide: Rebate]]>0), IF($S$401>=50, IF(AND(ProjectStage=\"(Installed)\",$S$401>'Customer Information'!$BC$21), 'Customer Information'!$BC$21*Table_PI[[#This Row],[Hide: Rebate]]/$S$401, IF($S$401<=300000, Table_PI[[#This Row],[Hide: Rebate]], ROUND(300000*Table_PI[[#This Row],[Hide: Rebate]]/'Project Information'!$S$401,2))), \"Does not meet $50 Minimum\"), \"No Rebate\"), \"No Rebate\"),0)","v":0},0,0,0,0,0,0,0,0,0,{"$f":"IF(Table_PI[[#This Row],[Hide: Formula Name]]<>\"\",IF(AND(Table_PI[[#This Row],[Hide: Formula Name]]<>\"\",OR(Table_PI[[#This Row],[Hide: Rebate]]>0,Table_PI[[#This Row],[Hide: Rebate]]=\"No Rebate\")),TRUE,\"MI: Line Item \" & $A203),\"\")","v":""}]
[{"$f":"IF(Table_PI[[#This Row],[Hide: Formula Name]]<>\"\",MAX($A$2:A203)+1,\"\")","v":""},null,null,null,null,null,null,null,null,null,null,null,null,null,null,null,null,{"$f":"IFERROR(VLOOKUP(Table_PI[[#This Row],[Measure]],'Equipment Lookups'!$C$3:$D$23,2,FALSE),\"\")","v":""},0,{"$f":"IF(Table_PI[[#This Row],[Hide: Formula Name]]<>\"\",IFERROR(IF(AND(ISNUMBER(Table_PI[[#This Row],[Hide: Rebate]]),Table_PI[[#This Row],[Hide: Rebate]]>0), IF($S$401>=50, IF(AND(ProjectStage=\"(Installed)\",$S$401>'Customer Information'!$BC$21), 'Customer Information'!$BC$21*Table_PI[[#This Row],[Hide: Rebate]]/$S$401, IF($S$401<=300000, Table_PI[[#This Row],[Hide: Rebate]], ROUND(300000*Table_PI[[#This Row],[Hide: Rebate]]/'Project Information'!$S$401,2))), \"Does not meet $50 Minimum\"), \"No Rebate\"), \"No Rebate\"),0)","v":0},0,0,0,0,0,0,0,0,0,{"$f":"IF(Table_PI[[#This Row],[Hide: Formula Name]]<>\"\",IF(AND(Table_PI[[#This Row],[Hide: Formula Name]]<>\"\",OR(Table_PI[[#This Row],[Hide: Rebate]]>0,Table_PI[[#This Row],[Hide: Rebate]]=\"No Rebate\")),TRUE,\"MI: Line Item \" & $A204),\"\")","v":""}]
[{"$f":"IF(Table_PI[[#This Row],[Hide: Formula Name]]<>\"\",MAX($A$2:A204)+1,\"\")","v":""},null,null,null,null,null,null,null,null,null,null,null,null,null,null,null,null,{"$f":"IFERROR(VLOOKUP(Table_PI[[#This Row],[Measure]],'Equipment Lookups'!$C$3:$D$23,2,FALSE),\"\")","v":""},0,{"$f":"IF(Table_PI[[#This Row],[Hide: Formula Name]]<>\"\",IFERROR(IF(AND(ISNUMBER(Table_PI[[#This Row],[Hide: Rebate]]),Table_PI[[#This Row],[Hide: Rebate]]>0), IF($S$401>=50, IF(AND(ProjectStage=\"(Installed)\",$S$401>'Customer Information'!$BC$21), 'Customer Information'!$BC$21*Table_PI[[#This Row],[Hide: Rebate]]/$S$401, IF($S$401<=300000, Table_PI[[#This Row],[Hide: Rebate]], ROUND(300000*Table_PI[[#This Row],[Hide: Rebate]]/'Project Information'!$S$401,2))), \"Does not meet $50 Minimum\"), \"No Rebate\"), \"No Rebate\"),0)","v":0},0,0,0,0,0,0,0,0,0,{"$f":"IF(Table_PI[[#This Row],[Hide: Formula Name]]<>\"\",IF(AND(Table_PI[[#This Row],[Hide: Formula Name]]<>\"\",OR(Table_PI[[#This Row],[Hide: Rebate]]>0,Table_PI[[#This Row],[Hide: Rebate]]=\"No Rebate\")),TRUE,\"MI: Line Item \" & $A205),\"\")","v":""}]
[{"$f":"IF(Table_PI[[#This Row],[Hide: Formula Name]]<>\"\",MAX($A$2:A205)+1,\"\")","v":""},null,null,null,null,null,null,null,null,null,null,null,null,null,null,null,null,{"$f":"IFERROR(VLOOKUP(Table_PI[[#This Row],[Measure]],'Equipment Lookups'!$C$3:$D$23,2,FALSE),\"\")","v":""},0,{"$f":"IF(Table_PI[[#This Row],[Hide: Formula Name]]<>\"\",IFERROR(IF(AND(ISNUMBER(Table_PI[[#This Row],[Hide: Rebate]]),Table_PI[[#This Row],[Hide: Rebate]]>0), IF($S$401>=50, IF(AND(ProjectStage=\"(Installed)\",$S$401>'Customer Information'!$BC$21), 'Customer Information'!$BC$21*Table_PI[[#This Row],[Hide: Rebate]]/$S$401, IF($S$401<=300000, Table_PI[[#This Row],[Hide: Rebate]], ROUND(300000*Table_PI[[#This Row],[Hide: Rebate]]/'Project Information'!$S$401,2))), \"Does not meet $50 Minimum\"), \"No Rebate\"), \"No Rebate\"),0)","v":0},0,0,0,0,0,0,0,0,0,{"$f":"IF(Table_PI[[#This Row],[Hide: Formula Name]]<>\"\",IF(AND(Table_PI[[#This Row],[Hide: Formula Name]]<>\"\",OR(Table_PI[[#This Row],[Hide: Rebate]]>0,Table_PI[[#This Row],[Hide: Rebate]]=\"No Rebate\")),TRUE,\"MI: Line Item \" & $A206),\"\")","v":""}]
[{"$f":"IF(Table_PI[[#This Row],[Hide: Formula Name]]<>\"\",MAX($A$2:A206)+1,\"\")","v":""},null,null,null,null,null,null,null,null,null,null,null,null,null,null,null,null,{"$f":"IFERROR(VLOOKUP(Table_PI[[#This Row],[Measure]],'Equipment Lookups'!$C$3:$D$23,2,FALSE),\"\")","v":""},0,{"$f":"IF(Table_PI[[#This Row],[Hide: Formula Name]]<>\"\",IFERROR(IF(AND(ISNUMBER(Table_PI[[#This Row],[Hide: Rebate]]),Table_PI[[#This Row],[Hide: Rebate]]>0), IF($S$401>=50, IF(AND(ProjectStage=\"(Installed)\",$S$401>'Customer Information'!$BC$21), 'Customer Information'!$BC$21*Table_PI[[#This Row],[Hide: Rebate]]/$S$401, IF($S$401<=300000, Table_PI[[#This Row],[Hide: Rebate]], ROUND(300000*Table_PI[[#This Row],[Hide: Rebate]]/'Project Information'!$S$401,2))), \"Does not meet $50 Minimum\"), \"No Rebate\"), \"No Rebate\"),0)","v":0},0,0,0,0,0,0,0,0,0,{"$f":"IF(Table_PI[[#This Row],[Hide: Formula Name]]<>\"\",IF(AND(Table_PI[[#This Row],[Hide: Formula Name]]<>\"\",OR(Table_PI[[#This Row],[Hide: Rebate]]>0,Table_PI[[#This Row],[Hide: Rebate]]=\"No Rebate\")),TRUE,\"MI: Line Item \" & $A207),\"\")","v":""}]
[{"$f":"IF(Table_PI[[#This Row],[Hide: Formula Name]]<>\"\",MAX($A$2:A207)+1,\"\")","v":""},null,null,null,null,null,null,null,null,null,null,null,null,null,null,null,null,{"$f":"IFERROR(VLOOKUP(Table_PI[[#This Row],[Measure]],'Equipment Lookups'!$C$3:$D$23,2,FALSE),\"\")","v":""},0,{"$f":"IF(Table_PI[[#This Row],[Hide: Formula Name]]<>\"\",IFERROR(IF(AND(ISNUMBER(Table_PI[[#This Row],[Hide: Rebate]]),Table_PI[[#This Row],[Hide: Rebate]]>0), IF($S$401>=50, IF(AND(ProjectStage=\"(Installed)\",$S$401>'Customer Information'!$BC$21), 'Customer Information'!$BC$21*Table_PI[[#This Row],[Hide: Rebate]]/$S$401, IF($S$401<=300000, Table_PI[[#This Row],[Hide: Rebate]], ROUND(300000*Table_PI[[#This Row],[Hide: Rebate]]/'Project Information'!$S$401,2))), \"Does not meet $50 Minimum\"), \"No Rebate\"), \"No Rebate\"),0)","v":0},0,0,0,0,0,0,0,0,0,{"$f":"IF(Table_PI[[#This Row],[Hide: Formula Name]]<>\"\",IF(AND(Table_PI[[#This Row],[Hide: Formula Name]]<>\"\",OR(Table_PI[[#This Row],[Hide: Rebate]]>0,Table_PI[[#This Row],[Hide: Rebate]]=\"No Rebate\")),TRUE,\"MI: Line Item \" & $A208),\"\")","v":""}]
[{"$f":"IF(Table_PI[[#This Row],[Hide: Formula Name]]<>\"\",MAX($A$2:A208)+1,\"\")","v":""},null,null,null,null,null,null,null,null,null,null,null,null,null,null,null,null,{"$f":"IFERROR(VLOOKUP(Table_PI[[#This Row],[Measure]],'Equipment Lookups'!$C$3:$D$23,2,FALSE),\"\")","v":""},0,{"$f":"IF(Table_PI[[#This Row],[Hide: Formula Name]]<>\"\",IFERROR(IF(AND(ISNUMBER(Table_PI[[#This Row],[Hide: Rebate]]),Table_PI[[#This Row],[Hide: Rebate]]>0), IF($S$401>=50, IF(AND(ProjectStage=\"(Installed)\",$S$401>'Customer Information'!$BC$21), 'Customer Information'!$BC$21*Table_PI[[#This Row],[Hide: Rebate]]/$S$401, IF($S$401<=300000, Table_PI[[#This Row],[Hide: Rebate]], ROUND(300000*Table_PI[[#This Row],[Hide: Rebate]]/'Project Information'!$S$401,2))), \"Does not meet $50 Minimum\"), \"No Rebate\"), \"No Rebate\"),0)","v":0},0,0,0,0,0,0,0,0,0,{"$f":"IF(Table_PI[[#This Row],[Hide: Formula Name]]<>\"\",IF(AND(Table_PI[[#This Row],[Hide: Formula Name]]<>\"\",OR(Table_PI[[#This Row],[Hide: Rebate]]>0,Table_PI[[#This Row],[Hide: Rebate]]=\"No Rebate\")),TRUE,\"MI: Line Item \" & $A209),\"\")","v":""}]
[{"$f":"IF(Table_PI[[#This Row],[Hide: Formula Name]]<>\"\",MAX($A$2:A209)+1,\"\")","v":""},null,null,null,null,null,null,null,null,null,null,null,null,null,null,null,null,{"$f":"IFERROR(VLOOKUP(Table_PI[[#This Row],[Measure]],'Equipment Lookups'!$C$3:$D$23,2,FALSE),\"\")","v":""},0,{"$f":"IF(Table_PI[[#This Row],[Hide: Formula Name]]<>\"\",IFERROR(IF(AND(ISNUMBER(Table_PI[[#This Row],[Hide: Rebate]]),Table_PI[[#This Row],[Hide: Rebate]]>0), IF($S$401>=50, IF(AND(ProjectStage=\"(Installed)\",$S$401>'Customer Information'!$BC$21), 'Customer Information'!$BC$21*Table_PI[[#This Row],[Hide: Rebate]]/$S$401, IF($S$401<=300000, Table_PI[[#This Row],[Hide: Rebate]], ROUND(300000*Table_PI[[#This Row],[Hide: Rebate]]/'Project Information'!$S$401,2))), \"Does not meet $50 Minimum\"), \"No Rebate\"), \"No Rebate\"),0)","v":0},0,0,0,0,0,0,0,0,0,{"$f":"IF(Table_PI[[#This Row],[Hide: Formula Name]]<>\"\",IF(AND(Table_PI[[#This Row],[Hide: Formula Name]]<>\"\",OR(Table_PI[[#This Row],[Hide: Rebate]]>0,Table_PI[[#This Row],[Hide: Rebate]]=\"No Rebate\")),TRUE,\"MI: Line Item \" & $A210),\"\")","v":""}]
[{"$f":"IF(Table_PI[[#This Row],[Hide: Formula Name]]<>\"\",MAX($A$2:A210)+1,\"\")","v":""},null,null,null,null,null,null,null,null,null,null,null,null,null,null,null,null,{"$f":"IFERROR(VLOOKUP(Table_PI[[#This Row],[Measure]],'Equipment Lookups'!$C$3:$D$23,2,FALSE),\"\")","v":""},0,{"$f":"IF(Table_PI[[#This Row],[Hide: Formula Name]]<>\"\",IFERROR(IF(AND(ISNUMBER(Table_PI[[#This Row],[Hide: Rebate]]),Table_PI[[#This Row],[Hide: Rebate]]>0), IF($S$401>=50, IF(AND(ProjectStage=\"(Installed)\",$S$401>'Customer Information'!$BC$21), 'Customer Information'!$BC$21*Table_PI[[#This Row],[Hide: Rebate]]/$S$401, IF($S$401<=300000, Table_PI[[#This Row],[Hide: Rebate]], ROUND(300000*Table_PI[[#This Row],[Hide: Rebate]]/'Project Information'!$S$401,2))), \"Does not meet $50 Minimum\"), \"No Rebate\"), \"No Rebate\"),0)","v":0},0,0,0,0,0,0,0,0,0,{"$f":"IF(Table_PI[[#This Row],[Hide: Formula Name]]<>\"\",IF(AND(Table_PI[[#This Row],[Hide: Formula Name]]<>\"\",OR(Table_PI[[#This Row],[Hide: Rebate]]>0,Table_PI[[#This Row],[Hide: Rebate]]=\"No Rebate\")),TRUE,\"MI: Line Item \" & $A211),\"\")","v":""}]
[{"$f":"IF(Table_PI[[#This Row],[Hide: Formula Name]]<>\"\",MAX($A$2:A211)+1,\"\")","v":""},null,null,null,null,null,null,null,null,null,null,null,null,null,null,null,null,{"$f":"IFERROR(VLOOKUP(Table_PI[[#This Row],[Measure]],'Equipment Lookups'!$C$3:$D$23,2,FALSE),\"\")","v":""},0,{"$f":"IF(Table_PI[[#This Row],[Hide: Formula Name]]<>\"\",IFERROR(IF(AND(ISNUMBER(Table_PI[[#This Row],[Hide: Rebate]]),Table_PI[[#This Row],[Hide: Rebate]]>0), IF($S$401>=50, IF(AND(ProjectStage=\"(Installed)\",$S$401>'Customer Information'!$BC$21), 'Customer Information'!$BC$21*Table_PI[[#This Row],[Hide: Rebate]]/$S$401, IF($S$401<=300000, Table_PI[[#This Row],[Hide: Rebate]], ROUND(300000*Table_PI[[#This Row],[Hide: Rebate]]/'Project Information'!$S$401,2))), \"Does not meet $50 Minimum\"), \"No Rebate\"), \"No Rebate\"),0)","v":0},0,0,0,0,0,0,0,0,0,{"$f":"IF(Table_PI[[#This Row],[Hide: Formula Name]]<>\"\",IF(AND(Table_PI[[#This Row],[Hide: Formula Name]]<>\"\",OR(Table_PI[[#This Row],[Hide: Rebate]]>0,Table_PI[[#This Row],[Hide: Rebate]]=\"No Rebate\")),TRUE,\"MI: Line Item \" & $A212),\"\")","v":""}]
[{"$f":"IF(Table_PI[[#This Row],[Hide: Formula Name]]<>\"\",MAX($A$2:A212)+1,\"\")","v":""},null,null,null,null,null,null,null,null,null,null,null,null,null,null,null,null,{"$f":"IFERROR(VLOOKUP(Table_PI[[#This Row],[Measure]],'Equipment Lookups'!$C$3:$D$23,2,FALSE),\"\")","v":""},0,{"$f":"IF(Table_PI[[#This Row],[Hide: Formula Name]]<>\"\",IFERROR(IF(AND(ISNUMBER(Table_PI[[#This Row],[Hide: Rebate]]),Table_PI[[#This Row],[Hide: Rebate]]>0), IF($S$401>=50, IF(AND(ProjectStage=\"(Installed)\",$S$401>'Customer Information'!$BC$21), 'Customer Information'!$BC$21*Table_PI[[#This Row],[Hide: Rebate]]/$S$401, IF($S$401<=300000, Table_PI[[#This Row],[Hide: Rebate]], ROUND(300000*Table_PI[[#This Row],[Hide: Rebate]]/'Project Information'!$S$401,2))), \"Does not meet $50 Minimum\"), \"No Rebate\"), \"No Rebate\"),0)","v":0},0,0,0,0,0,0,0,0,0,{"$f":"IF(Table_PI[[#This Row],[Hide: Formula Name]]<>\"\",IF(AND(Table_PI[[#This Row],[Hide: Formula Name]]<>\"\",OR(Table_PI[[#This Row],[Hide: Rebate]]>0,Table_PI[[#This Row],[Hide: Rebate]]=\"No Rebate\")),TRUE,\"MI: Line Item \" & $A213),\"\")","v":""}]
[{"$f":"IF(Table_PI[[#This Row],[Hide: Formula Name]]<>\"\",MAX($A$2:A213)+1,\"\")","v":""},null,null,null,null,null,null,null,null,null,null,null,null,null,null,null,null,{"$f":"IFERROR(VLOOKUP(Table_PI[[#This Row],[Measure]],'Equipment Lookups'!$C$3:$D$23,2,FALSE),\"\")","v":""},0,{"$f":"IF(Table_PI[[#This Row],[Hide: Formula Name]]<>\"\",IFERROR(IF(AND(ISNUMBER(Table_PI[[#This Row],[Hide: Rebate]]),Table_PI[[#This Row],[Hide: Rebate]]>0), IF($S$401>=50, IF(AND(ProjectStage=\"(Installed)\",$S$401>'Customer Information'!$BC$21), 'Customer Information'!$BC$21*Table_PI[[#This Row],[Hide: Rebate]]/$S$401, IF($S$401<=300000, Table_PI[[#This Row],[Hide: Rebate]], ROUND(300000*Table_PI[[#This Row],[Hide: Rebate]]/'Project Information'!$S$401,2))), \"Does not meet $50 Minimum\"), \"No Rebate\"), \"No Rebate\"),0)","v":0},0,0,0,0,0,0,0,0,0,{"$f":"IF(Table_PI[[#This Row],[Hide: Formula Name]]<>\"\",IF(AND(Table_PI[[#This Row],[Hide: Formula Name]]<>\"\",OR(Table_PI[[#This Row],[Hide: Rebate]]>0,Table_PI[[#This Row],[Hide: Rebate]]=\"No Rebate\")),TRUE,\"MI: Line Item \" & $A214),\"\")","v":""}]
[{"$f":"IF(Table_PI[[#This Row],[Hide: Formula Name]]<>\"\",MAX($A$2:A214)+1,\"\")","v":""},null,null,null,null,null,null,null,null,null,null,null,null,null,null,null,null,{"$f":"IFERROR(VLOOKUP(Table_PI[[#This Row],[Measure]],'Equipment Lookups'!$C$3:$D$23,2,FALSE),\"\")","v":""},0,{"$f":"IF(Table_PI[[#This Row],[Hide: Formula Name]]<>\"\",IFERROR(IF(AND(ISNUMBER(Table_PI[[#This Row],[Hide: Rebate]]),Table_PI[[#This Row],[Hide: Rebate]]>0), IF($S$401>=50, IF(AND(ProjectStage=\"(Installed)\",$S$401>'Customer Information'!$BC$21), 'Customer Information'!$BC$21*Table_PI[[#This Row],[Hide: Rebate]]/$S$401, IF($S$401<=300000, Table_PI[[#This Row],[Hide: Rebate]], ROUND(300000*Table_PI[[#This Row],[Hide: Rebate]]/'Project Information'!$S$401,2))), \"Does not meet $50 Minimum\"), \"No Rebate\"), \"No Rebate\"),0)","v":0},0,0,0,0,0,0,0,0,0,{"$f":"IF(Table_PI[[#This Row],[Hide: Formula Name]]<>\"\",IF(AND(Table_PI[[#This Row],[Hide: Formula Name]]<>\"\",OR(Table_PI[[#This Row],[Hide: Rebate]]>0,Table_PI[[#This Row],[Hide: Rebate]]=\"No Rebate\")),TRUE,\"MI: Line Item \" & $A215),\"\")","v":""}]
[{"$f":"IF(Table_PI[[#This Row],[Hide: Formula Name]]<>\"\",MAX($A$2:A215)+1,\"\")","v":""},null,null,null,null,null,null,null,null,null,null,null,null,null,null,null,null,{"$f":"IFERROR(VLOOKUP(Table_PI[[#This Row],[Measure]],'Equipment Lookups'!$C$3:$D$23,2,FALSE),\"\")","v":""},0,{"$f":"IF(Table_PI[[#This Row],[Hide: Formula Name]]<>\"\",IFERROR(IF(AND(ISNUMBER(Table_PI[[#This Row],[Hide: Rebate]]),Table_PI[[#This Row],[Hide: Rebate]]>0), IF($S$401>=50, IF(AND(ProjectStage=\"(Installed)\",$S$401>'Customer Information'!$BC$21), 'Customer Information'!$BC$21*Table_PI[[#This Row],[Hide: Rebate]]/$S$401, IF($S$401<=300000, Table_PI[[#This Row],[Hide: Rebate]], ROUND(300000*Table_PI[[#This Row],[Hide: Rebate]]/'Project Information'!$S$401,2))), \"Does not meet $50 Minimum\"), \"No Rebate\"), \"No Rebate\"),0)","v":0},0,0,0,0,0,0,0,0,0,{"$f":"IF(Table_PI[[#This Row],[Hide: Formula Name]]<>\"\",IF(AND(Table_PI[[#This Row],[Hide: Formula Name]]<>\"\",OR(Table_PI[[#This Row],[Hide: Rebate]]>0,Table_PI[[#This Row],[Hide: Rebate]]=\"No Rebate\")),TRUE,\"MI: Line Item \" & $A216),\"\")","v":""}]
[{"$f":"IF(Table_PI[[#This Row],[Hide: Formula Name]]<>\"\",MAX($A$2:A216)+1,\"\")","v":""},null,null,null,null,null,null,null,null,null,null,null,null,null,null,null,null,{"$f":"IFERROR(VLOOKUP(Table_PI[[#This Row],[Measure]],'Equipment Lookups'!$C$3:$D$23,2,FALSE),\"\")","v":""},0,{"$f":"IF(Table_PI[[#This Row],[Hide: Formula Name]]<>\"\",IFERROR(IF(AND(ISNUMBER(Table_PI[[#This Row],[Hide: Rebate]]),Table_PI[[#This Row],[Hide: Rebate]]>0), IF($S$401>=50, IF(AND(ProjectStage=\"(Installed)\",$S$401>'Customer Information'!$BC$21), 'Customer Information'!$BC$21*Table_PI[[#This Row],[Hide: Rebate]]/$S$401, IF($S$401<=300000, Table_PI[[#This Row],[Hide: Rebate]], ROUND(300000*Table_PI[[#This Row],[Hide: Rebate]]/'Project Information'!$S$401,2))), \"Does not meet $50 Minimum\"), \"No Rebate\"), \"No Rebate\"),0)","v":0},0,0,0,0,0,0,0,0,0,{"$f":"IF(Table_PI[[#This Row],[Hide: Formula Name]]<>\"\",IF(AND(Table_PI[[#This Row],[Hide: Formula Name]]<>\"\",OR(Table_PI[[#This Row],[Hide: Rebate]]>0,Table_PI[[#This Row],[Hide: Rebate]]=\"No Rebate\")),TRUE,\"MI: Line Item \" & $A217),\"\")","v":""}]
[{"$f":"IF(Table_PI[[#This Row],[Hide: Formula Name]]<>\"\",MAX($A$2:A217)+1,\"\")","v":""},null,null,null,null,null,null,null,null,null,null,null,null,null,null,null,null,{"$f":"IFERROR(VLOOKUP(Table_PI[[#This Row],[Measure]],'Equipment Lookups'!$C$3:$D$23,2,FALSE),\"\")","v":""},0,{"$f":"IF(Table_PI[[#This Row],[Hide: Formula Name]]<>\"\",IFERROR(IF(AND(ISNUMBER(Table_PI[[#This Row],[Hide: Rebate]]),Table_PI[[#This Row],[Hide: Rebate]]>0), IF($S$401>=50, IF(AND(ProjectStage=\"(Installed)\",$S$401>'Customer Information'!$BC$21), 'Customer Information'!$BC$21*Table_PI[[#This Row],[Hide: Rebate]]/$S$401, IF($S$401<=300000, Table_PI[[#This Row],[Hide: Rebate]], ROUND(300000*Table_PI[[#This Row],[Hide: Rebate]]/'Project Information'!$S$401,2))), \"Does not meet $50 Minimum\"), \"No Rebate\"), \"No Rebate\"),0)","v":0},0,0,0,0,0,0,0,0,0,{"$f":"IF(Table_PI[[#This Row],[Hide: Formula Name]]<>\"\",IF(AND(Table_PI[[#This Row],[Hide: Formula Name]]<>\"\",OR(Table_PI[[#This Row],[Hide: Rebate]]>0,Table_PI[[#This Row],[Hide: Rebate]]=\"No Rebate\")),TRUE,\"MI: Line Item \" & $A218),\"\")","v":""}]
[{"$f":"IF(Table_PI[[#This Row],[Hide: Formula Name]]<>\"\",MAX($A$2:A218)+1,\"\")","v":""},null,null,null,null,null,null,null,null,null,null,null,null,null,null,null,null,{"$f":"IFERROR(VLOOKUP(Table_PI[[#This Row],[Measure]],'Equipment Lookups'!$C$3:$D$23,2,FALSE),\"\")","v":""},0,{"$f":"IF(Table_PI[[#This Row],[Hide: Formula Name]]<>\"\",IFERROR(IF(AND(ISNUMBER(Table_PI[[#This Row],[Hide: Rebate]]),Table_PI[[#This Row],[Hide: Rebate]]>0), IF($S$401>=50, IF(AND(ProjectStage=\"(Installed)\",$S$401>'Customer Information'!$BC$21), 'Customer Information'!$BC$21*Table_PI[[#This Row],[Hide: Rebate]]/$S$401, IF($S$401<=300000, Table_PI[[#This Row],[Hide: Rebate]], ROUND(300000*Table_PI[[#This Row],[Hide: Rebate]]/'Project Information'!$S$401,2))), \"Does not meet $50 Minimum\"), \"No Rebate\"), \"No Rebate\"),0)","v":0},0,0,0,0,0,0,0,0,0,{"$f":"IF(Table_PI[[#This Row],[Hide: Formula Name]]<>\"\",IF(AND(Table_PI[[#This Row],[Hide: Formula Name]]<>\"\",OR(Table_PI[[#This Row],[Hide: Rebate]]>0,Table_PI[[#This Row],[Hide: Rebate]]=\"No Rebate\")),TRUE,\"MI: Line Item \" & $A219),\"\")","v":""}]
[{"$f":"IF(Table_PI[[#This Row],[Hide: Formula Name]]<>\"\",MAX($A$2:A219)+1,\"\")","v":""},null,null,null,null,null,null,null,null,null,null,null,null,null,null,null,null,{"$f":"IFERROR(VLOOKUP(Table_PI[[#This Row],[Measure]],'Equipment Lookups'!$C$3:$D$23,2,FALSE),\"\")","v":""},0,{"$f":"IF(Table_PI[[#This Row],[Hide: Formula Name]]<>\"\",IFERROR(IF(AND(ISNUMBER(Table_PI[[#This Row],[Hide: Rebate]]),Table_PI[[#This Row],[Hide: Rebate]]>0), IF($S$401>=50, IF(AND(ProjectStage=\"(Installed)\",$S$401>'Customer Information'!$BC$21), 'Customer Information'!$BC$21*Table_PI[[#This Row],[Hide: Rebate]]/$S$401, IF($S$401<=300000, Table_PI[[#This Row],[Hide: Rebate]], ROUND(300000*Table_PI[[#This Row],[Hide: Rebate]]/'Project Information'!$S$401,2))), \"Does not meet $50 Minimum\"), \"No Rebate\"), \"No Rebate\"),0)","v":0},0,0,0,0,0,0,0,0,0,{"$f":"IF(Table_PI[[#This Row],[Hide: Formula Name]]<>\"\",IF(AND(Table_PI[[#This Row],[Hide: Formula Name]]<>\"\",OR(Table_PI[[#This Row],[Hide: Rebate]]>0,Table_PI[[#This Row],[Hide: Rebate]]=\"No Rebate\")),TRUE,\"MI: Line Item \" & $A220),\"\")","v":""}]
[{"$f":"IF(Table_PI[[#This Row],[Hide: Formula Name]]<>\"\",MAX($A$2:A220)+1,\"\")","v":""},null,null,null,null,null,null,null,null,null,null,null,null,null,null,null,null,{"$f":"IFERROR(VLOOKUP(Table_PI[[#This Row],[Measure]],'Equipment Lookups'!$C$3:$D$23,2,FALSE),\"\")","v":""},0,{"$f":"IF(Table_PI[[#This Row],[Hide: Formula Name]]<>\"\",IFERROR(IF(AND(ISNUMBER(Table_PI[[#This Row],[Hide: Rebate]]),Table_PI[[#This Row],[Hide: Rebate]]>0), IF($S$401>=50, IF(AND(ProjectStage=\"(Installed)\",$S$401>'Customer Information'!$BC$21), 'Customer Information'!$BC$21*Table_PI[[#This Row],[Hide: Rebate]]/$S$401, IF($S$401<=300000, Table_PI[[#This Row],[Hide: Rebate]], ROUND(300000*Table_PI[[#This Row],[Hide: Rebate]]/'Project Information'!$S$401,2))), \"Does not meet $50 Minimum\"), \"No Rebate\"), \"No Rebate\"),0)","v":0},0,0,0,0,0,0,0,0,0,{"$f":"IF(Table_PI[[#This Row],[Hide: Formula Name]]<>\"\",IF(AND(Table_PI[[#This Row],[Hide: Formula Name]]<>\"\",OR(Table_PI[[#This Row],[Hide: Rebate]]>0,Table_PI[[#This Row],[Hide: Rebate]]=\"No Rebate\")),TRUE,\"MI: Line Item \" & $A221),\"\")","v":""}]
[{"$f":"IF(Table_PI[[#This Row],[Hide: Formula Name]]<>\"\",MAX($A$2:A221)+1,\"\")","v":""},null,null,null,null,null,null,null,null,null,null,null,null,null,null,null,null,{"$f":"IFERROR(VLOOKUP(Table_PI[[#This Row],[Measure]],'Equipment Lookups'!$C$3:$D$23,2,FALSE),\"\")","v":""},0,{"$f":"IF(Table_PI[[#This Row],[Hide: Formula Name]]<>\"\",IFERROR(IF(AND(ISNUMBER(Table_PI[[#This Row],[Hide: Rebate]]),Table_PI[[#This Row],[Hide: Rebate]]>0), IF($S$401>=50, IF(AND(ProjectStage=\"(Installed)\",$S$401>'Customer Information'!$BC$21), 'Customer Information'!$BC$21*Table_PI[[#This Row],[Hide: Rebate]]/$S$401, IF($S$401<=300000, Table_PI[[#This Row],[Hide: Rebate]], ROUND(300000*Table_PI[[#This Row],[Hide: Rebate]]/'Project Information'!$S$401,2))), \"Does not meet $50 Minimum\"), \"No Rebate\"), \"No Rebate\"),0)","v":0},0,0,0,0,0,0,0,0,0,{"$f":"IF(Table_PI[[#This Row],[Hide: Formula Name]]<>\"\",IF(AND(Table_PI[[#This Row],[Hide: Formula Name]]<>\"\",OR(Table_PI[[#This Row],[Hide: Rebate]]>0,Table_PI[[#This Row],[Hide: Rebate]]=\"No Rebate\")),TRUE,\"MI: Line Item \" & $A222),\"\")","v":""}]
[{"$f":"IF(Table_PI[[#This Row],[Hide: Formula Name]]<>\"\",MAX($A$2:A222)+1,\"\")","v":""},null,null,null,null,null,null,null,null,null,null,null,null,null,null,null,null,{"$f":"IFERROR(VLOOKUP(Table_PI[[#This Row],[Measure]],'Equipment Lookups'!$C$3:$D$23,2,FALSE),\"\")","v":""},0,{"$f":"IF(Table_PI[[#This Row],[Hide: Formula Name]]<>\"\",IFERROR(IF(AND(ISNUMBER(Table_PI[[#This Row],[Hide: Rebate]]),Table_PI[[#This Row],[Hide: Rebate]]>0), IF($S$401>=50, IF(AND(ProjectStage=\"(Installed)\",$S$401>'Customer Information'!$BC$21), 'Customer Information'!$BC$21*Table_PI[[#This Row],[Hide: Rebate]]/$S$401, IF($S$401<=300000, Table_PI[[#This Row],[Hide: Rebate]], ROUND(300000*Table_PI[[#This Row],[Hide: Rebate]]/'Project Information'!$S$401,2))), \"Does not meet $50 Minimum\"), \"No Rebate\"), \"No Rebate\"),0)","v":0},0,0,0,0,0,0,0,0,0,{"$f":"IF(Table_PI[[#This Row],[Hide: Formula Name]]<>\"\",IF(AND(Table_PI[[#This Row],[Hide: Formula Name]]<>\"\",OR(Table_PI[[#This Row],[Hide: Rebate]]>0,Table_PI[[#This Row],[Hide: Rebate]]=\"No Rebate\")),TRUE,\"MI: Line Item \" & $A223),\"\")","v":""}]
[{"$f":"IF(Table_PI[[#This Row],[Hide: Formula Name]]<>\"\",MAX($A$2:A223)+1,\"\")","v":""},null,null,null,null,null,null,null,null,null,null,null,null,null,null,null,null,{"$f":"IFERROR(VLOOKUP(Table_PI[[#This Row],[Measure]],'Equipment Lookups'!$C$3:$D$23,2,FALSE),\"\")","v":""},0,{"$f":"IF(Table_PI[[#This Row],[Hide: Formula Name]]<>\"\",IFERROR(IF(AND(ISNUMBER(Table_PI[[#This Row],[Hide: Rebate]]),Table_PI[[#This Row],[Hide: Rebate]]>0), IF($S$401>=50, IF(AND(ProjectStage=\"(Installed)\",$S$401>'Customer Information'!$BC$21), 'Customer Information'!$BC$21*Table_PI[[#This Row],[Hide: Rebate]]/$S$401, IF($S$401<=300000, Table_PI[[#This Row],[Hide: Rebate]], ROUND(300000*Table_PI[[#This Row],[Hide: Rebate]]/'Project Information'!$S$401,2))), \"Does not meet $50 Minimum\"), \"No Rebate\"), \"No Rebate\"),0)","v":0},0,0,0,0,0,0,0,0,0,{"$f":"IF(Table_PI[[#This Row],[Hide: Formula Name]]<>\"\",IF(AND(Table_PI[[#This Row],[Hide: Formula Name]]<>\"\",OR(Table_PI[[#This Row],[Hide: Rebate]]>0,Table_PI[[#This Row],[Hide: Rebate]]=\"No Rebate\")),TRUE,\"MI: Line Item \" & $A224),\"\")","v":""}]
[{"$f":"IF(Table_PI[[#This Row],[Hide: Formula Name]]<>\"\",MAX($A$2:A224)+1,\"\")","v":""},null,null,null,null,null,null,null,null,null,null,null,null,null,null,null,null,{"$f":"IFERROR(VLOOKUP(Table_PI[[#This Row],[Measure]],'Equipment Lookups'!$C$3:$D$23,2,FALSE),\"\")","v":""},0,{"$f":"IF(Table_PI[[#This Row],[Hide: Formula Name]]<>\"\",IFERROR(IF(AND(ISNUMBER(Table_PI[[#This Row],[Hide: Rebate]]),Table_PI[[#This Row],[Hide: Rebate]]>0), IF($S$401>=50, IF(AND(ProjectStage=\"(Installed)\",$S$401>'Customer Information'!$BC$21), 'Customer Information'!$BC$21*Table_PI[[#This Row],[Hide: Rebate]]/$S$401, IF($S$401<=300000, Table_PI[[#This Row],[Hide: Rebate]], ROUND(300000*Table_PI[[#This Row],[Hide: Rebate]]/'Project Information'!$S$401,2))), \"Does not meet $50 Minimum\"), \"No Rebate\"), \"No Rebate\"),0)","v":0},0,0,0,0,0,0,0,0,0,{"$f":"IF(Table_PI[[#This Row],[Hide: Formula Name]]<>\"\",IF(AND(Table_PI[[#This Row],[Hide: Formula Name]]<>\"\",OR(Table_PI[[#This Row],[Hide: Rebate]]>0,Table_PI[[#This Row],[Hide: Rebate]]=\"No Rebate\")),TRUE,\"MI: Line Item \" & $A225),\"\")","v":""}]
[{"$f":"IF(Table_PI[[#This Row],[Hide: Formula Name]]<>\"\",MAX($A$2:A225)+1,\"\")","v":""},null,null,null,null,null,null,null,null,null,null,null,null,null,null,null,null,{"$f":"IFERROR(VLOOKUP(Table_PI[[#This Row],[Measure]],'Equipment Lookups'!$C$3:$D$23,2,FALSE),\"\")","v":""},0,{"$f":"IF(Table_PI[[#This Row],[Hide: Formula Name]]<>\"\",IFERROR(IF(AND(ISNUMBER(Table_PI[[#This Row],[Hide: Rebate]]),Table_PI[[#This Row],[Hide: Rebate]]>0), IF($S$401>=50, IF(AND(ProjectStage=\"(Installed)\",$S$401>'Customer Information'!$BC$21), 'Customer Information'!$BC$21*Table_PI[[#This Row],[Hide: Rebate]]/$S$401, IF($S$401<=300000, Table_PI[[#This Row],[Hide: Rebate]], ROUND(300000*Table_PI[[#This Row],[Hide: Rebate]]/'Project Information'!$S$401,2))), \"Does not meet $50 Minimum\"), \"No Rebate\"), \"No Rebate\"),0)","v":0},0,0,0,0,0,0,0,0,0,{"$f":"IF(Table_PI[[#This Row],[Hide: Formula Name]]<>\"\",IF(AND(Table_PI[[#This Row],[Hide: Formula Name]]<>\"\",OR(Table_PI[[#This Row],[Hide: Rebate]]>0,Table_PI[[#This Row],[Hide: Rebate]]=\"No Rebate\")),TRUE,\"MI: Line Item \" & $A226),\"\")","v":""}]
[{"$f":"IF(Table_PI[[#This Row],[Hide: Formula Name]]<>\"\",MAX($A$2:A226)+1,\"\")","v":""},null,null,null,null,null,null,null,null,null,null,null,null,null,null,null,null,{"$f":"IFERROR(VLOOKUP(Table_PI[[#This Row],[Measure]],'Equipment Lookups'!$C$3:$D$23,2,FALSE),\"\")","v":""},0,{"$f":"IF(Table_PI[[#This Row],[Hide: Formula Name]]<>\"\",IFERROR(IF(AND(ISNUMBER(Table_PI[[#This Row],[Hide: Rebate]]),Table_PI[[#This Row],[Hide: Rebate]]>0), IF($S$401>=50, IF(AND(ProjectStage=\"(Installed)\",$S$401>'Customer Information'!$BC$21), 'Customer Information'!$BC$21*Table_PI[[#This Row],[Hide: Rebate]]/$S$401, IF($S$401<=300000, Table_PI[[#This Row],[Hide: Rebate]], ROUND(300000*Table_PI[[#This Row],[Hide: Rebate]]/'Project Information'!$S$401,2))), \"Does not meet $50 Minimum\"), \"No Rebate\"), \"No Rebate\"),0)","v":0},0,0,0,0,0,0,0,0,0,{"$f":"IF(Table_PI[[#This Row],[Hide: Formula Name]]<>\"\",IF(AND(Table_PI[[#This Row],[Hide: Formula Name]]<>\"\",OR(Table_PI[[#This Row],[Hide: Rebate]]>0,Table_PI[[#This Row],[Hide: Rebate]]=\"No Rebate\")),TRUE,\"MI: Line Item \" & $A227),\"\")","v":""}]
[{"$f":"IF(Table_PI[[#This Row],[Hide: Formula Name]]<>\"\",MAX($A$2:A227)+1,\"\")","v":""},null,null,null,null,null,null,null,null,null,null,null,null,null,null,null,null,{"$f":"IFERROR(VLOOKUP(Table_PI[[#This Row],[Measure]],'Equipment Lookups'!$C$3:$D$23,2,FALSE),\"\")","v":""},0,{"$f":"IF(Table_PI[[#This Row],[Hide: Formula Name]]<>\"\",IFERROR(IF(AND(ISNUMBER(Table_PI[[#This Row],[Hide: Rebate]]),Table_PI[[#This Row],[Hide: Rebate]]>0), IF($S$401>=50, IF(AND(ProjectStage=\"(Installed)\",$S$401>'Customer Information'!$BC$21), 'Customer Information'!$BC$21*Table_PI[[#This Row],[Hide: Rebate]]/$S$401, IF($S$401<=300000, Table_PI[[#This Row],[Hide: Rebate]], ROUND(300000*Table_PI[[#This Row],[Hide: Rebate]]/'Project Information'!$S$401,2))), \"Does not meet $50 Minimum\"), \"No Rebate\"), \"No Rebate\"),0)","v":0},0,0,0,0,0,0,0,0,0,{"$f":"IF(Table_PI[[#This Row],[Hide: Formula Name]]<>\"\",IF(AND(Table_PI[[#This Row],[Hide: Formula Name]]<>\"\",OR(Table_PI[[#This Row],[Hide: Rebate]]>0,Table_PI[[#This Row],[Hide: Rebate]]=\"No Rebate\")),TRUE,\"MI: Line Item \" & $A228),\"\")","v":""}]
[{"$f":"IF(Table_PI[[#This Row],[Hide: Formula Name]]<>\"\",MAX($A$2:A228)+1,\"\")","v":""},null,null,null,null,null,null,null,null,null,null,null,null,null,null,null,null,{"$f":"IFERROR(VLOOKUP(Table_PI[[#This Row],[Measure]],'Equipment Lookups'!$C$3:$D$23,2,FALSE),\"\")","v":""},0,{"$f":"IF(Table_PI[[#This Row],[Hide: Formula Name]]<>\"\",IFERROR(IF(AND(ISNUMBER(Table_PI[[#This Row],[Hide: Rebate]]),Table_PI[[#This Row],[Hide: Rebate]]>0), IF($S$401>=50, IF(AND(ProjectStage=\"(Installed)\",$S$401>'Customer Information'!$BC$21), 'Customer Information'!$BC$21*Table_PI[[#This Row],[Hide: Rebate]]/$S$401, IF($S$401<=300000, Table_PI[[#This Row],[Hide: Rebate]], ROUND(300000*Table_PI[[#This Row],[Hide: Rebate]]/'Project Information'!$S$401,2))), \"Does not meet $50 Minimum\"), \"No Rebate\"), \"No Rebate\"),0)","v":0},0,0,0,0,0,0,0,0,0,{"$f":"IF(Table_PI[[#This Row],[Hide: Formula Name]]<>\"\",IF(AND(Table_PI[[#This Row],[Hide: Formula Name]]<>\"\",OR(Table_PI[[#This Row],[Hide: Rebate]]>0,Table_PI[[#This Row],[Hide: Rebate]]=\"No Rebate\")),TRUE,\"MI: Line Item \" & $A229),\"\")","v":""}]
[{"$f":"IF(Table_PI[[#This Row],[Hide: Formula Name]]<>\"\",MAX($A$2:A229)+1,\"\")","v":""},null,null,null,null,null,null,null,null,null,null,null,null,null,null,null,null,{"$f":"IFERROR(VLOOKUP(Table_PI[[#This Row],[Measure]],'Equipment Lookups'!$C$3:$D$23,2,FALSE),\"\")","v":""},0,{"$f":"IF(Table_PI[[#This Row],[Hide: Formula Name]]<>\"\",IFERROR(IF(AND(ISNUMBER(Table_PI[[#This Row],[Hide: Rebate]]),Table_PI[[#This Row],[Hide: Rebate]]>0), IF($S$401>=50, IF(AND(ProjectStage=\"(Installed)\",$S$401>'Customer Information'!$BC$21), 'Customer Information'!$BC$21*Table_PI[[#This Row],[Hide: Rebate]]/$S$401, IF($S$401<=300000, Table_PI[[#This Row],[Hide: Rebate]], ROUND(300000*Table_PI[[#This Row],[Hide: Rebate]]/'Project Information'!$S$401,2))), \"Does not meet $50 Minimum\"), \"No Rebate\"), \"No Rebate\"),0)","v":0},0,0,0,0,0,0,0,0,0,{"$f":"IF(Table_PI[[#This Row],[Hide: Formula Name]]<>\"\",IF(AND(Table_PI[[#This Row],[Hide: Formula Name]]<>\"\",OR(Table_PI[[#This Row],[Hide: Rebate]]>0,Table_PI[[#This Row],[Hide: Rebate]]=\"No Rebate\")),TRUE,\"MI: Line Item \" & $A230),\"\")","v":""}]
[{"$f":"IF(Table_PI[[#This Row],[Hide: Formula Name]]<>\"\",MAX($A$2:A230)+1,\"\")","v":""},null,null,null,null,null,null,null,null,null,null,null,null,null,null,null,null,{"$f":"IFERROR(VLOOKUP(Table_PI[[#This Row],[Measure]],'Equipment Lookups'!$C$3:$D$23,2,FALSE),\"\")","v":""},0,{"$f":"IF(Table_PI[[#This Row],[Hide: Formula Name]]<>\"\",IFERROR(IF(AND(ISNUMBER(Table_PI[[#This Row],[Hide: Rebate]]),Table_PI[[#This Row],[Hide: Rebate]]>0), IF($S$401>=50, IF(AND(ProjectStage=\"(Installed)\",$S$401>'Customer Information'!$BC$21), 'Customer Information'!$BC$21*Table_PI[[#This Row],[Hide: Rebate]]/$S$401, IF($S$401<=300000, Table_PI[[#This Row],[Hide: Rebate]], ROUND(300000*Table_PI[[#This Row],[Hide: Rebate]]/'Project Information'!$S$401,2))), \"Does not meet $50 Minimum\"), \"No Rebate\"), \"No Rebate\"),0)","v":0},0,0,0,0,0,0,0,0,0,{"$f":"IF(Table_PI[[#This Row],[Hide: Formula Name]]<>\"\",IF(AND(Table_PI[[#This Row],[Hide: Formula Name]]<>\"\",OR(Table_PI[[#This Row],[Hide: Rebate]]>0,Table_PI[[#This Row],[Hide: Rebate]]=\"No Rebate\")),TRUE,\"MI: Line Item \" & $A231),\"\")","v":""}]
[{"$f":"IF(Table_PI[[#This Row],[Hide: Formula Name]]<>\"\",MAX($A$2:A231)+1,\"\")","v":""},null,null,null,null,null,null,null,null,null,null,null,null,null,null,null,null,{"$f":"IFERROR(VLOOKUP(Table_PI[[#This Row],[Measure]],'Equipment Lookups'!$C$3:$D$23,2,FALSE),\"\")","v":""},0,{"$f":"IF(Table_PI[[#This Row],[Hide: Formula Name]]<>\"\",IFERROR(IF(AND(ISNUMBER(Table_PI[[#This Row],[Hide: Rebate]]),Table_PI[[#This Row],[Hide: Rebate]]>0), IF($S$401>=50, IF(AND(ProjectStage=\"(Installed)\",$S$401>'Customer Information'!$BC$21), 'Customer Information'!$BC$21*Table_PI[[#This Row],[Hide: Rebate]]/$S$401, IF($S$401<=300000, Table_PI[[#This Row],[Hide: Rebate]], ROUND(300000*Table_PI[[#This Row],[Hide: Rebate]]/'Project Information'!$S$401,2))), \"Does not meet $50 Minimum\"), \"No Rebate\"), \"No Rebate\"),0)","v":0},0,0,0,0,0,0,0,0,0,{"$f":"IF(Table_PI[[#This Row],[Hide: Formula Name]]<>\"\",IF(AND(Table_PI[[#This Row],[Hide: Formula Name]]<>\"\",OR(Table_PI[[#This Row],[Hide: Rebate]]>0,Table_PI[[#This Row],[Hide: Rebate]]=\"No Rebate\")),TRUE,\"MI: Line Item \" & $A232),\"\")","v":""}]
[{"$f":"IF(Table_PI[[#This Row],[Hide: Formula Name]]<>\"\",MAX($A$2:A232)+1,\"\")","v":""},null,null,null,null,null,null,null,null,null,null,null,null,null,null,null,null,{"$f":"IFERROR(VLOOKUP(Table_PI[[#This Row],[Measure]],'Equipment Lookups'!$C$3:$D$23,2,FALSE),\"\")","v":""},0,{"$f":"IF(Table_PI[[#This Row],[Hide: Formula Name]]<>\"\",IFERROR(IF(AND(ISNUMBER(Table_PI[[#This Row],[Hide: Rebate]]),Table_PI[[#This Row],[Hide: Rebate]]>0), IF($S$401>=50, IF(AND(ProjectStage=\"(Installed)\",$S$401>'Customer Information'!$BC$21), 'Customer Information'!$BC$21*Table_PI[[#This Row],[Hide: Rebate]]/$S$401, IF($S$401<=300000, Table_PI[[#This Row],[Hide: Rebate]], ROUND(300000*Table_PI[[#This Row],[Hide: Rebate]]/'Project Information'!$S$401,2))), \"Does not meet $50 Minimum\"), \"No Rebate\"), \"No Rebate\"),0)","v":0},0,0,0,0,0,0,0,0,0,{"$f":"IF(Table_PI[[#This Row],[Hide: Formula Name]]<>\"\",IF(AND(Table_PI[[#This Row],[Hide: Formula Name]]<>\"\",OR(Table_PI[[#This Row],[Hide: Rebate]]>0,Table_PI[[#This Row],[Hide: Rebate]]=\"No Rebate\")),TRUE,\"MI: Line Item \" & $A233),\"\")","v":""}]
[{"$f":"IF(Table_PI[[#This Row],[Hide: Formula Name]]<>\"\",MAX($A$2:A233)+1,\"\")","v":""},null,null,null,null,null,null,null,null,null,null,null,null,null,null,null,null,{"$f":"IFERROR(VLOOKUP(Table_PI[[#This Row],[Measure]],'Equipment Lookups'!$C$3:$D$23,2,FALSE),\"\")","v":""},0,{"$f":"IF(Table_PI[[#This Row],[Hide: Formula Name]]<>\"\",IFERROR(IF(AND(ISNUMBER(Table_PI[[#This Row],[Hide: Rebate]]),Table_PI[[#This Row],[Hide: Rebate]]>0), IF($S$401>=50, IF(AND(ProjectStage=\"(Installed)\",$S$401>'Customer Information'!$BC$21), 'Customer Information'!$BC$21*Table_PI[[#This Row],[Hide: Rebate]]/$S$401, IF($S$401<=300000, Table_PI[[#This Row],[Hide: Rebate]], ROUND(300000*Table_PI[[#This Row],[Hide: Rebate]]/'Project Information'!$S$401,2))), \"Does not meet $50 Minimum\"), \"No Rebate\"), \"No Rebate\"),0)","v":0},0,0,0,0,0,0,0,0,0,{"$f":"IF(Table_PI[[#This Row],[Hide: Formula Name]]<>\"\",IF(AND(Table_PI[[#This Row],[Hide: Formula Name]]<>\"\",OR(Table_PI[[#This Row],[Hide: Rebate]]>0,Table_PI[[#This Row],[Hide: Rebate]]=\"No Rebate\")),TRUE,\"MI: Line Item \" & $A234),\"\")","v":""}]
[{"$f":"IF(Table_PI[[#This Row],[Hide: Formula Name]]<>\"\",MAX($A$2:A234)+1,\"\")","v":""},null,null,null,null,null,null,null,null,null,null,null,null,null,null,null,null,{"$f":"IFERROR(VLOOKUP(Table_PI[[#This Row],[Measure]],'Equipment Lookups'!$C$3:$D$23,2,FALSE),\"\")","v":""},0,{"$f":"IF(Table_PI[[#This Row],[Hide: Formula Name]]<>\"\",IFERROR(IF(AND(ISNUMBER(Table_PI[[#This Row],[Hide: Rebate]]),Table_PI[[#This Row],[Hide: Rebate]]>0), IF($S$401>=50, IF(AND(ProjectStage=\"(Installed)\",$S$401>'Customer Information'!$BC$21), 'Customer Information'!$BC$21*Table_PI[[#This Row],[Hide: Rebate]]/$S$401, IF($S$401<=300000, Table_PI[[#This Row],[Hide: Rebate]], ROUND(300000*Table_PI[[#This Row],[Hide: Rebate]]/'Project Information'!$S$401,2))), \"Does not meet $50 Minimum\"), \"No Rebate\"), \"No Rebate\"),0)","v":0},0,0,0,0,0,0,0,0,0,{"$f":"IF(Table_PI[[#This Row],[Hide: Formula Name]]<>\"\",IF(AND(Table_PI[[#This Row],[Hide: Formula Name]]<>\"\",OR(Table_PI[[#This Row],[Hide: Rebate]]>0,Table_PI[[#This Row],[Hide: Rebate]]=\"No Rebate\")),TRUE,\"MI: Line Item \" & $A235),\"\")","v":""}]
[{"$f":"IF(Table_PI[[#This Row],[Hide: Formula Name]]<>\"\",MAX($A$2:A235)+1,\"\")","v":""},null,null,null,null,null,null,null,null,null,null,null,null,null,null,null,null,{"$f":"IFERROR(VLOOKUP(Table_PI[[#This Row],[Measure]],'Equipment Lookups'!$C$3:$D$23,2,FALSE),\"\")","v":""},0,{"$f":"IF(Table_PI[[#This Row],[Hide: Formula Name]]<>\"\",IFERROR(IF(AND(ISNUMBER(Table_PI[[#This Row],[Hide: Rebate]]),Table_PI[[#This Row],[Hide: Rebate]]>0), IF($S$401>=50, IF(AND(ProjectStage=\"(Installed)\",$S$401>'Customer Information'!$BC$21), 'Customer Information'!$BC$21*Table_PI[[#This Row],[Hide: Rebate]]/$S$401, IF($S$401<=300000, Table_PI[[#This Row],[Hide: Rebate]], ROUND(300000*Table_PI[[#This Row],[Hide: Rebate]]/'Project Information'!$S$401,2))), \"Does not meet $50 Minimum\"), \"No Rebate\"), \"No Rebate\"),0)","v":0},0,0,0,0,0,0,0,0,0,{"$f":"IF(Table_PI[[#This Row],[Hide: Formula Name]]<>\"\",IF(AND(Table_PI[[#This Row],[Hide: Formula Name]]<>\"\",OR(Table_PI[[#This Row],[Hide: Rebate]]>0,Table_PI[[#This Row],[Hide: Rebate]]=\"No Rebate\")),TRUE,\"MI: Line Item \" & $A236),\"\")","v":""}]
[{"$f":"IF(Table_PI[[#This Row],[Hide: Formula Name]]<>\"\",MAX($A$2:A236)+1,\"\")","v":""},null,null,null,null,null,null,null,null,null,null,null,null,null,null,null,null,{"$f":"IFERROR(VLOOKUP(Table_PI[[#This Row],[Measure]],'Equipment Lookups'!$C$3:$D$23,2,FALSE),\"\")","v":""},0,{"$f":"IF(Table_PI[[#This Row],[Hide: Formula Name]]<>\"\",IFERROR(IF(AND(ISNUMBER(Table_PI[[#This Row],[Hide: Rebate]]),Table_PI[[#This Row],[Hide: Rebate]]>0), IF($S$401>=50, IF(AND(ProjectStage=\"(Installed)\",$S$401>'Customer Information'!$BC$21), 'Customer Information'!$BC$21*Table_PI[[#This Row],[Hide: Rebate]]/$S$401, IF($S$401<=300000, Table_PI[[#This Row],[Hide: Rebate]], ROUND(300000*Table_PI[[#This Row],[Hide: Rebate]]/'Project Information'!$S$401,2))), \"Does not meet $50 Minimum\"), \"No Rebate\"), \"No Rebate\"),0)","v":0},0,0,0,0,0,0,0,0,0,{"$f":"IF(Table_PI[[#This Row],[Hide: Formula Name]]<>\"\",IF(AND(Table_PI[[#This Row],[Hide: Formula Name]]<>\"\",OR(Table_PI[[#This Row],[Hide: Rebate]]>0,Table_PI[[#This Row],[Hide: Rebate]]=\"No Rebate\")),TRUE,\"MI: Line Item \" & $A237),\"\")","v":""}]
[{"$f":"IF(Table_PI[[#This Row],[Hide: Formula Name]]<>\"\",MAX($A$2:A237)+1,\"\")","v":""},null,null,null,null,null,null,null,null,null,null,null,null,null,null,null,null,{"$f":"IFERROR(VLOOKUP(Table_PI[[#This Row],[Measure]],'Equipment Lookups'!$C$3:$D$23,2,FALSE),\"\")","v":""},0,{"$f":"IF(Table_PI[[#This Row],[Hide: Formula Name]]<>\"\",IFERROR(IF(AND(ISNUMBER(Table_PI[[#This Row],[Hide: Rebate]]),Table_PI[[#This Row],[Hide: Rebate]]>0), IF($S$401>=50, IF(AND(ProjectStage=\"(Installed)\",$S$401>'Customer Information'!$BC$21), 'Customer Information'!$BC$21*Table_PI[[#This Row],[Hide: Rebate]]/$S$401, IF($S$401<=300000, Table_PI[[#This Row],[Hide: Rebate]], ROUND(300000*Table_PI[[#This Row],[Hide: Rebate]]/'Project Information'!$S$401,2))), \"Does not meet $50 Minimum\"), \"No Rebate\"), \"No Rebate\"),0)","v":0},0,0,0,0,0,0,0,0,0,{"$f":"IF(Table_PI[[#This Row],[Hide: Formula Name]]<>\"\",IF(AND(Table_PI[[#This Row],[Hide: Formula Name]]<>\"\",OR(Table_PI[[#This Row],[Hide: Rebate]]>0,Table_PI[[#This Row],[Hide: Rebate]]=\"No Rebate\")),TRUE,\"MI: Line Item \" & $A238),\"\")","v":""}]
[{"$f":"IF(Table_PI[[#This Row],[Hide: Formula Name]]<>\"\",MAX($A$2:A238)+1,\"\")","v":""},null,null,null,null,null,null,null,null,null,null,null,null,null,null,null,null,{"$f":"IFERROR(VLOOKUP(Table_PI[[#This Row],[Measure]],'Equipment Lookups'!$C$3:$D$23,2,FALSE),\"\")","v":""},0,{"$f":"IF(Table_PI[[#This Row],[Hide: Formula Name]]<>\"\",IFERROR(IF(AND(ISNUMBER(Table_PI[[#This Row],[Hide: Rebate]]),Table_PI[[#This Row],[Hide: Rebate]]>0), IF($S$401>=50, IF(AND(ProjectStage=\"(Installed)\",$S$401>'Customer Information'!$BC$21), 'Customer Information'!$BC$21*Table_PI[[#This Row],[Hide: Rebate]]/$S$401, IF($S$401<=300000, Table_PI[[#This Row],[Hide: Rebate]], ROUND(300000*Table_PI[[#This Row],[Hide: Rebate]]/'Project Information'!$S$401,2))), \"Does not meet $50 Minimum\"), \"No Rebate\"), \"No Rebate\"),0)","v":0},0,0,0,0,0,0,0,0,0,{"$f":"IF(Table_PI[[#This Row],[Hide: Formula Name]]<>\"\",IF(AND(Table_PI[[#This Row],[Hide: Formula Name]]<>\"\",OR(Table_PI[[#This Row],[Hide: Rebate]]>0,Table_PI[[#This Row],[Hide: Rebate]]=\"No Rebate\")),TRUE,\"MI: Line Item \" & $A239),\"\")","v":""}]
[{"$f":"IF(Table_PI[[#This Row],[Hide: Formula Name]]<>\"\",MAX($A$2:A239)+1,\"\")","v":""},null,null,null,null,null,null,null,null,null,null,null,null,null,null,null,null,{"$f":"IFERROR(VLOOKUP(Table_PI[[#This Row],[Measure]],'Equipment Lookups'!$C$3:$D$23,2,FALSE),\"\")","v":""},0,{"$f":"IF(Table_PI[[#This Row],[Hide: Formula Name]]<>\"\",IFERROR(IF(AND(ISNUMBER(Table_PI[[#This Row],[Hide: Rebate]]),Table_PI[[#This Row],[Hide: Rebate]]>0), IF($S$401>=50, IF(AND(ProjectStage=\"(Installed)\",$S$401>'Customer Information'!$BC$21), 'Customer Information'!$BC$21*Table_PI[[#This Row],[Hide: Rebate]]/$S$401, IF($S$401<=300000, Table_PI[[#This Row],[Hide: Rebate]], ROUND(300000*Table_PI[[#This Row],[Hide: Rebate]]/'Project Information'!$S$401,2))), \"Does not meet $50 Minimum\"), \"No Rebate\"), \"No Rebate\"),0)","v":0},0,0,0,0,0,0,0,0,0,{"$f":"IF(Table_PI[[#This Row],[Hide: Formula Name]]<>\"\",IF(AND(Table_PI[[#This Row],[Hide: Formula Name]]<>\"\",OR(Table_PI[[#This Row],[Hide: Rebate]]>0,Table_PI[[#This Row],[Hide: Rebate]]=\"No Rebate\")),TRUE,\"MI: Line Item \" & $A240),\"\")","v":""}]
[{"$f":"IF(Table_PI[[#This Row],[Hide: Formula Name]]<>\"\",MAX($A$2:A240)+1,\"\")","v":""},null,null,null,null,null,null,null,null,null,null,null,null,null,null,null,null,{"$f":"IFERROR(VLOOKUP(Table_PI[[#This Row],[Measure]],'Equipment Lookups'!$C$3:$D$23,2,FALSE),\"\")","v":""},0,{"$f":"IF(Table_PI[[#This Row],[Hide: Formula Name]]<>\"\",IFERROR(IF(AND(ISNUMBER(Table_PI[[#This Row],[Hide: Rebate]]),Table_PI[[#This Row],[Hide: Rebate]]>0), IF($S$401>=50, IF(AND(ProjectStage=\"(Installed)\",$S$401>'Customer Information'!$BC$21), 'Customer Information'!$BC$21*Table_PI[[#This Row],[Hide: Rebate]]/$S$401, IF($S$401<=300000, Table_PI[[#This Row],[Hide: Rebate]], ROUND(300000*Table_PI[[#This Row],[Hide: Rebate]]/'Project Information'!$S$401,2))), \"Does not meet $50 Minimum\"), \"No Rebate\"), \"No Rebate\"),0)","v":0},0,0,0,0,0,0,0,0,0,{"$f":"IF(Table_PI[[#This Row],[Hide: Formula Name]]<>\"\",IF(AND(Table_PI[[#This Row],[Hide: Formula Name]]<>\"\",OR(Table_PI[[#This Row],[Hide: Rebate]]>0,Table_PI[[#This Row],[Hide: Rebate]]=\"No Rebate\")),TRUE,\"MI: Line Item \" & $A241),\"\")","v":""}]
[{"$f":"IF(Table_PI[[#This Row],[Hide: Formula Name]]<>\"\",MAX($A$2:A241)+1,\"\")","v":""},null,null,null,null,null,null,null,null,null,null,null,null,null,null,null,null,{"$f":"IFERROR(VLOOKUP(Table_PI[[#This Row],[Measure]],'Equipment Lookups'!$C$3:$D$23,2,FALSE),\"\")","v":""},0,{"$f":"IF(Table_PI[[#This Row],[Hide: Formula Name]]<>\"\",IFERROR(IF(AND(ISNUMBER(Table_PI[[#This Row],[Hide: Rebate]]),Table_PI[[#This Row],[Hide: Rebate]]>0), IF($S$401>=50, IF(AND(ProjectStage=\"(Installed)\",$S$401>'Customer Information'!$BC$21), 'Customer Information'!$BC$21*Table_PI[[#This Row],[Hide: Rebate]]/$S$401, IF($S$401<=300000, Table_PI[[#This Row],[Hide: Rebate]], ROUND(300000*Table_PI[[#This Row],[Hide: Rebate]]/'Project Information'!$S$401,2))), \"Does not meet $50 Minimum\"), \"No Rebate\"), \"No Rebate\"),0)","v":0},0,0,0,0,0,0,0,0,0,{"$f":"IF(Table_PI[[#This Row],[Hide: Formula Name]]<>\"\",IF(AND(Table_PI[[#This Row],[Hide: Formula Name]]<>\"\",OR(Table_PI[[#This Row],[Hide: Rebate]]>0,Table_PI[[#This Row],[Hide: Rebate]]=\"No Rebate\")),TRUE,\"MI: Line Item \" & $A242),\"\")","v":""}]
[{"$f":"IF(Table_PI[[#This Row],[Hide: Formula Name]]<>\"\",MAX($A$2:A242)+1,\"\")","v":""},null,null,null,null,null,null,null,null,null,null,null,null,null,null,null,null,{"$f":"IFERROR(VLOOKUP(Table_PI[[#This Row],[Measure]],'Equipment Lookups'!$C$3:$D$23,2,FALSE),\"\")","v":""},0,{"$f":"IF(Table_PI[[#This Row],[Hide: Formula Name]]<>\"\",IFERROR(IF(AND(ISNUMBER(Table_PI[[#This Row],[Hide: Rebate]]),Table_PI[[#This Row],[Hide: Rebate]]>0), IF($S$401>=50, IF(AND(ProjectStage=\"(Installed)\",$S$401>'Customer Information'!$BC$21), 'Customer Information'!$BC$21*Table_PI[[#This Row],[Hide: Rebate]]/$S$401, IF($S$401<=300000, Table_PI[[#This Row],[Hide: Rebate]], ROUND(300000*Table_PI[[#This Row],[Hide: Rebate]]/'Project Information'!$S$401,2))), \"Does not meet $50 Minimum\"), \"No Rebate\"), \"No Rebate\"),0)","v":0},0,0,0,0,0,0,0,0,0,{"$f":"IF(Table_PI[[#This Row],[Hide: Formula Name]]<>\"\",IF(AND(Table_PI[[#This Row],[Hide: Formula Name]]<>\"\",OR(Table_PI[[#This Row],[Hide: Rebate]]>0,Table_PI[[#This Row],[Hide: Rebate]]=\"No Rebate\")),TRUE,\"MI: Line Item \" & $A243),\"\")","v":""}]
[{"$f":"IF(Table_PI[[#This Row],[Hide: Formula Name]]<>\"\",MAX($A$2:A243)+1,\"\")","v":""},null,null,null,null,null,null,null,null,null,null,null,null,null,null,null,null,{"$f":"IFERROR(VLOOKUP(Table_PI[[#This Row],[Measure]],'Equipment Lookups'!$C$3:$D$23,2,FALSE),\"\")","v":""},0,{"$f":"IF(Table_PI[[#This Row],[Hide: Formula Name]]<>\"\",IFERROR(IF(AND(ISNUMBER(Table_PI[[#This Row],[Hide: Rebate]]),Table_PI[[#This Row],[Hide: Rebate]]>0), IF($S$401>=50, IF(AND(ProjectStage=\"(Installed)\",$S$401>'Customer Information'!$BC$21), 'Customer Information'!$BC$21*Table_PI[[#This Row],[Hide: Rebate]]/$S$401, IF($S$401<=300000, Table_PI[[#This Row],[Hide: Rebate]], ROUND(300000*Table_PI[[#This Row],[Hide: Rebate]]/'Project Information'!$S$401,2))), \"Does not meet $50 Minimum\"), \"No Rebate\"), \"No Rebate\"),0)","v":0},0,0,0,0,0,0,0,0,0,{"$f":"IF(Table_PI[[#This Row],[Hide: Formula Name]]<>\"\",IF(AND(Table_PI[[#This Row],[Hide: Formula Name]]<>\"\",OR(Table_PI[[#This Row],[Hide: Rebate]]>0,Table_PI[[#This Row],[Hide: Rebate]]=\"No Rebate\")),TRUE,\"MI: Line Item \" & $A244),\"\")","v":""}]
[{"$f":"IF(Table_PI[[#This Row],[Hide: Formula Name]]<>\"\",MAX($A$2:A244)+1,\"\")","v":""},null,null,null,null,null,null,null,null,null,null,null,null,null,null,null,null,{"$f":"IFERROR(VLOOKUP(Table_PI[[#This Row],[Measure]],'Equipment Lookups'!$C$3:$D$23,2,FALSE),\"\")","v":""},0,{"$f":"IF(Table_PI[[#This Row],[Hide: Formula Name]]<>\"\",IFERROR(IF(AND(ISNUMBER(Table_PI[[#This Row],[Hide: Rebate]]),Table_PI[[#This Row],[Hide: Rebate]]>0), IF($S$401>=50, IF(AND(ProjectStage=\"(Installed)\",$S$401>'Customer Information'!$BC$21), 'Customer Information'!$BC$21*Table_PI[[#This Row],[Hide: Rebate]]/$S$401, IF($S$401<=300000, Table_PI[[#This Row],[Hide: Rebate]], ROUND(300000*Table_PI[[#This Row],[Hide: Rebate]]/'Project Information'!$S$401,2))), \"Does not meet $50 Minimum\"), \"No Rebate\"), \"No Rebate\"),0)","v":0},0,0,0,0,0,0,0,0,0,{"$f":"IF(Table_PI[[#This Row],[Hide: Formula Name]]<>\"\",IF(AND(Table_PI[[#This Row],[Hide: Formula Name]]<>\"\",OR(Table_PI[[#This Row],[Hide: Rebate]]>0,Table_PI[[#This Row],[Hide: Rebate]]=\"No Rebate\")),TRUE,\"MI: Line Item \" & $A245),\"\")","v":""}]
[{"$f":"IF(Table_PI[[#This Row],[Hide: Formula Name]]<>\"\",MAX($A$2:A245)+1,\"\")","v":""},null,null,null,null,null,null,null,null,null,null,null,null,null,null,null,null,{"$f":"IFERROR(VLOOKUP(Table_PI[[#This Row],[Measure]],'Equipment Lookups'!$C$3:$D$23,2,FALSE),\"\")","v":""},0,{"$f":"IF(Table_PI[[#This Row],[Hide: Formula Name]]<>\"\",IFERROR(IF(AND(ISNUMBER(Table_PI[[#This Row],[Hide: Rebate]]),Table_PI[[#This Row],[Hide: Rebate]]>0), IF($S$401>=50, IF(AND(ProjectStage=\"(Installed)\",$S$401>'Customer Information'!$BC$21), 'Customer Information'!$BC$21*Table_PI[[#This Row],[Hide: Rebate]]/$S$401, IF($S$401<=300000, Table_PI[[#This Row],[Hide: Rebate]], ROUND(300000*Table_PI[[#This Row],[Hide: Rebate]]/'Project Information'!$S$401,2))), \"Does not meet $50 Minimum\"), \"No Rebate\"), \"No Rebate\"),0)","v":0},0,0,0,0,0,0,0,0,0,{"$f":"IF(Table_PI[[#This Row],[Hide: Formula Name]]<>\"\",IF(AND(Table_PI[[#This Row],[Hide: Formula Name]]<>\"\",OR(Table_PI[[#This Row],[Hide: Rebate]]>0,Table_PI[[#This Row],[Hide: Rebate]]=\"No Rebate\")),TRUE,\"MI: Line Item \" & $A246),\"\")","v":""}]
[{"$f":"IF(Table_PI[[#This Row],[Hide: Formula Name]]<>\"\",MAX($A$2:A246)+1,\"\")","v":""},null,null,null,null,null,null,null,null,null,null,null,null,null,null,null,null,{"$f":"IFERROR(VLOOKUP(Table_PI[[#This Row],[Measure]],'Equipment Lookups'!$C$3:$D$23,2,FALSE),\"\")","v":""},0,{"$f":"IF(Table_PI[[#This Row],[Hide: Formula Name]]<>\"\",IFERROR(IF(AND(ISNUMBER(Table_PI[[#This Row],[Hide: Rebate]]),Table_PI[[#This Row],[Hide: Rebate]]>0), IF($S$401>=50, IF(AND(ProjectStage=\"(Installed)\",$S$401>'Customer Information'!$BC$21), 'Customer Information'!$BC$21*Table_PI[[#This Row],[Hide: Rebate]]/$S$401, IF($S$401<=300000, Table_PI[[#This Row],[Hide: Rebate]], ROUND(300000*Table_PI[[#This Row],[Hide: Rebate]]/'Project Information'!$S$401,2))), \"Does not meet $50 Minimum\"), \"No Rebate\"), \"No Rebate\"),0)","v":0},0,0,0,0,0,0,0,0,0,{"$f":"IF(Table_PI[[#This Row],[Hide: Formula Name]]<>\"\",IF(AND(Table_PI[[#This Row],[Hide: Formula Name]]<>\"\",OR(Table_PI[[#This Row],[Hide: Rebate]]>0,Table_PI[[#This Row],[Hide: Rebate]]=\"No Rebate\")),TRUE,\"MI: Line Item \" & $A247),\"\")","v":""}]
[{"$f":"IF(Table_PI[[#This Row],[Hide: Formula Name]]<>\"\",MAX($A$2:A247)+1,\"\")","v":""},null,null,null,null,null,null,null,null,null,null,null,null,null,null,null,null,{"$f":"IFERROR(VLOOKUP(Table_PI[[#This Row],[Measure]],'Equipment Lookups'!$C$3:$D$23,2,FALSE),\"\")","v":""},0,{"$f":"IF(Table_PI[[#This Row],[Hide: Formula Name]]<>\"\",IFERROR(IF(AND(ISNUMBER(Table_PI[[#This Row],[Hide: Rebate]]),Table_PI[[#This Row],[Hide: Rebate]]>0), IF($S$401>=50, IF(AND(ProjectStage=\"(Installed)\",$S$401>'Customer Information'!$BC$21), 'Customer Information'!$BC$21*Table_PI[[#This Row],[Hide: Rebate]]/$S$401, IF($S$401<=300000, Table_PI[[#This Row],[Hide: Rebate]], ROUND(300000*Table_PI[[#This Row],[Hide: Rebate]]/'Project Information'!$S$401,2))), \"Does not meet $50 Minimum\"), \"No Rebate\"), \"No Rebate\"),0)","v":0},0,0,0,0,0,0,0,0,0,{"$f":"IF(Table_PI[[#This Row],[Hide: Formula Name]]<>\"\",IF(AND(Table_PI[[#This Row],[Hide: Formula Name]]<>\"\",OR(Table_PI[[#This Row],[Hide: Rebate]]>0,Table_PI[[#This Row],[Hide: Rebate]]=\"No Rebate\")),TRUE,\"MI: Line Item \" & $A248),\"\")","v":""}]
[{"$f":"IF(Table_PI[[#This Row],[Hide: Formula Name]]<>\"\",MAX($A$2:A248)+1,\"\")","v":""},null,null,null,null,null,null,null,null,null,null,null,null,null,null,null,null,{"$f":"IFERROR(VLOOKUP(Table_PI[[#This Row],[Measure]],'Equipment Lookups'!$C$3:$D$23,2,FALSE),\"\")","v":""},0,{"$f":"IF(Table_PI[[#This Row],[Hide: Formula Name]]<>\"\",IFERROR(IF(AND(ISNUMBER(Table_PI[[#This Row],[Hide: Rebate]]),Table_PI[[#This Row],[Hide: Rebate]]>0), IF($S$401>=50, IF(AND(ProjectStage=\"(Installed)\",$S$401>'Customer Information'!$BC$21), 'Customer Information'!$BC$21*Table_PI[[#This Row],[Hide: Rebate]]/$S$401, IF($S$401<=300000, Table_PI[[#This Row],[Hide: Rebate]], ROUND(300000*Table_PI[[#This Row],[Hide: Rebate]]/'Project Information'!$S$401,2))), \"Does not meet $50 Minimum\"), \"No Rebate\"), \"No Rebate\"),0)","v":0},0,0,0,0,0,0,0,0,0,{"$f":"IF(Table_PI[[#This Row],[Hide: Formula Name]]<>\"\",IF(AND(Table_PI[[#This Row],[Hide: Formula Name]]<>\"\",OR(Table_PI[[#This Row],[Hide: Rebate]]>0,Table_PI[[#This Row],[Hide: Rebate]]=\"No Rebate\")),TRUE,\"MI: Line Item \" & $A249),\"\")","v":""}]
[{"$f":"IF(Table_PI[[#This Row],[Hide: Formula Name]]<>\"\",MAX($A$2:A249)+1,\"\")","v":""},null,null,null,null,null,null,null,null,null,null,null,null,null,null,null,null,{"$f":"IFERROR(VLOOKUP(Table_PI[[#This Row],[Measure]],'Equipment Lookups'!$C$3:$D$23,2,FALSE),\"\")","v":""},0,{"$f":"IF(Table_PI[[#This Row],[Hide: Formula Name]]<>\"\",IFERROR(IF(AND(ISNUMBER(Table_PI[[#This Row],[Hide: Rebate]]),Table_PI[[#This Row],[Hide: Rebate]]>0), IF($S$401>=50, IF(AND(ProjectStage=\"(Installed)\",$S$401>'Customer Information'!$BC$21), 'Customer Information'!$BC$21*Table_PI[[#This Row],[Hide: Rebate]]/$S$401, IF($S$401<=300000, Table_PI[[#This Row],[Hide: Rebate]], ROUND(300000*Table_PI[[#This Row],[Hide: Rebate]]/'Project Information'!$S$401,2))), \"Does not meet $50 Minimum\"), \"No Rebate\"), \"No Rebate\"),0)","v":0},0,0,0,0,0,0,0,0,0,{"$f":"IF(Table_PI[[#This Row],[Hide: Formula Name]]<>\"\",IF(AND(Table_PI[[#This Row],[Hide: Formula Name]]<>\"\",OR(Table_PI[[#This Row],[Hide: Rebate]]>0,Table_PI[[#This Row],[Hide: Rebate]]=\"No Rebate\")),TRUE,\"MI: Line Item \" & $A250),\"\")","v":""}]
[{"$f":"IF(Table_PI[[#This Row],[Hide: Formula Name]]<>\"\",MAX($A$2:A250)+1,\"\")","v":""},null,null,null,null,null,null,null,null,null,null,null,null,null,null,null,null,{"$f":"IFERROR(VLOOKUP(Table_PI[[#This Row],[Measure]],'Equipment Lookups'!$C$3:$D$23,2,FALSE),\"\")","v":""},0,{"$f":"IF(Table_PI[[#This Row],[Hide: Formula Name]]<>\"\",IFERROR(IF(AND(ISNUMBER(Table_PI[[#This Row],[Hide: Rebate]]),Table_PI[[#This Row],[Hide: Rebate]]>0), IF($S$401>=50, IF(AND(ProjectStage=\"(Installed)\",$S$401>'Customer Information'!$BC$21), 'Customer Information'!$BC$21*Table_PI[[#This Row],[Hide: Rebate]]/$S$401, IF($S$401<=300000, Table_PI[[#This Row],[Hide: Rebate]], ROUND(300000*Table_PI[[#This Row],[Hide: Rebate]]/'Project Information'!$S$401,2))), \"Does not meet $50 Minimum\"), \"No Rebate\"), \"No Rebate\"),0)","v":0},0,0,0,0,0,0,0,0,0,{"$f":"IF(Table_PI[[#This Row],[Hide: Formula Name]]<>\"\",IF(AND(Table_PI[[#This Row],[Hide: Formula Name]]<>\"\",OR(Table_PI[[#This Row],[Hide: Rebate]]>0,Table_PI[[#This Row],[Hide: Rebate]]=\"No Rebate\")),TRUE,\"MI: Line Item \" & $A251),\"\")","v":""}]
[{"$f":"IF(Table_PI[[#This Row],[Hide: Formula Name]]<>\"\",MAX($A$2:A251)+1,\"\")","v":""},null,null,null,null,null,null,null,null,null,null,null,null,null,null,null,null,{"$f":"IFERROR(VLOOKUP(Table_PI[[#This Row],[Measure]],'Equipment Lookups'!$C$3:$D$23,2,FALSE),\"\")","v":""},0,{"$f":"IF(Table_PI[[#This Row],[Hide: Formula Name]]<>\"\",IFERROR(IF(AND(ISNUMBER(Table_PI[[#This Row],[Hide: Rebate]]),Table_PI[[#This Row],[Hide: Rebate]]>0), IF($S$401>=50, IF(AND(ProjectStage=\"(Installed)\",$S$401>'Customer Information'!$BC$21), 'Customer Information'!$BC$21*Table_PI[[#This Row],[Hide: Rebate]]/$S$401, IF($S$401<=300000, Table_PI[[#This Row],[Hide: Rebate]], ROUND(300000*Table_PI[[#This Row],[Hide: Rebate]]/'Project Information'!$S$401,2))), \"Does not meet $50 Minimum\"), \"No Rebate\"), \"No Rebate\"),0)","v":0},0,0,0,0,0,0,0,0,0,{"$f":"IF(Table_PI[[#This Row],[Hide: Formula Name]]<>\"\",IF(AND(Table_PI[[#This Row],[Hide: Formula Name]]<>\"\",OR(Table_PI[[#This Row],[Hide: Rebate]]>0,Table_PI[[#This Row],[Hide: Rebate]]=\"No Rebate\")),TRUE,\"MI: Line Item \" & $A252),\"\")","v":""}]
[{"$f":"IF(Table_PI[[#This Row],[Hide: Formula Name]]<>\"\",MAX($A$2:A252)+1,\"\")","v":""},null,null,null,null,null,null,null,null,null,null,null,null,null,null,null,null,{"$f":"IFERROR(VLOOKUP(Table_PI[[#This Row],[Measure]],'Equipment Lookups'!$C$3:$D$23,2,FALSE),\"\")","v":""},0,{"$f":"IF(Table_PI[[#This Row],[Hide: Formula Name]]<>\"\",IFERROR(IF(AND(ISNUMBER(Table_PI[[#This Row],[Hide: Rebate]]),Table_PI[[#This Row],[Hide: Rebate]]>0), IF($S$401>=50, IF(AND(ProjectStage=\"(Installed)\",$S$401>'Customer Information'!$BC$21), 'Customer Information'!$BC$21*Table_PI[[#This Row],[Hide: Rebate]]/$S$401, IF($S$401<=300000, Table_PI[[#This Row],[Hide: Rebate]], ROUND(300000*Table_PI[[#This Row],[Hide: Rebate]]/'Project Information'!$S$401,2))), \"Does not meet $50 Minimum\"), \"No Rebate\"), \"No Rebate\"),0)","v":0},0,0,0,0,0,0,0,0,0,{"$f":"IF(Table_PI[[#This Row],[Hide: Formula Name]]<>\"\",IF(AND(Table_PI[[#This Row],[Hide: Formula Name]]<>\"\",OR(Table_PI[[#This Row],[Hide: Rebate]]>0,Table_PI[[#This Row],[Hide: Rebate]]=\"No Rebate\")),TRUE,\"MI: Line Item \" & $A253),\"\")","v":""}]
[{"$f":"IF(Table_PI[[#This Row],[Hide: Formula Name]]<>\"\",MAX($A$2:A253)+1,\"\")","v":""},null,null,null,null,null,null,null,null,null,null,null,null,null,null,null,null,{"$f":"IFERROR(VLOOKUP(Table_PI[[#This Row],[Measure]],'Equipment Lookups'!$C$3:$D$23,2,FALSE),\"\")","v":""},0,{"$f":"IF(Table_PI[[#This Row],[Hide: Formula Name]]<>\"\",IFERROR(IF(AND(ISNUMBER(Table_PI[[#This Row],[Hide: Rebate]]),Table_PI[[#This Row],[Hide: Rebate]]>0), IF($S$401>=50, IF(AND(ProjectStage=\"(Installed)\",$S$401>'Customer Information'!$BC$21), 'Customer Information'!$BC$21*Table_PI[[#This Row],[Hide: Rebate]]/$S$401, IF($S$401<=300000, Table_PI[[#This Row],[Hide: Rebate]], ROUND(300000*Table_PI[[#This Row],[Hide: Rebate]]/'Project Information'!$S$401,2))), \"Does not meet $50 Minimum\"), \"No Rebate\"), \"No Rebate\"),0)","v":0},0,0,0,0,0,0,0,0,0,{"$f":"IF(Table_PI[[#This Row],[Hide: Formula Name]]<>\"\",IF(AND(Table_PI[[#This Row],[Hide: Formula Name]]<>\"\",OR(Table_PI[[#This Row],[Hide: Rebate]]>0,Table_PI[[#This Row],[Hide: Rebate]]=\"No Rebate\")),TRUE,\"MI: Line Item \" & $A254),\"\")","v":""}]
[{"$f":"IF(Table_PI[[#This Row],[Hide: Formula Name]]<>\"\",MAX($A$2:A254)+1,\"\")","v":""},null,null,null,null,null,null,null,null,null,null,null,null,null,null,null,null,{"$f":"IFERROR(VLOOKUP(Table_PI[[#This Row],[Measure]],'Equipment Lookups'!$C$3:$D$23,2,FALSE),\"\")","v":""},0,{"$f":"IF(Table_PI[[#This Row],[Hide: Formula Name]]<>\"\",IFERROR(IF(AND(ISNUMBER(Table_PI[[#This Row],[Hide: Rebate]]),Table_PI[[#This Row],[Hide: Rebate]]>0), IF($S$401>=50, IF(AND(ProjectStage=\"(Installed)\",$S$401>'Customer Information'!$BC$21), 'Customer Information'!$BC$21*Table_PI[[#This Row],[Hide: Rebate]]/$S$401, IF($S$401<=300000, Table_PI[[#This Row],[Hide: Rebate]], ROUND(300000*Table_PI[[#This Row],[Hide: Rebate]]/'Project Information'!$S$401,2))), \"Does not meet $50 Minimum\"), \"No Rebate\"), \"No Rebate\"),0)","v":0},0,0,0,0,0,0,0,0,0,{"$f":"IF(Table_PI[[#This Row],[Hide: Formula Name]]<>\"\",IF(AND(Table_PI[[#This Row],[Hide: Formula Name]]<>\"\",OR(Table_PI[[#This Row],[Hide: Rebate]]>0,Table_PI[[#This Row],[Hide: Rebate]]=\"No Rebate\")),TRUE,\"MI: Line Item \" & $A255),\"\")","v":""}]
[{"$f":"IF(Table_PI[[#This Row],[Hide: Formula Name]]<>\"\",MAX($A$2:A255)+1,\"\")","v":""},null,null,null,null,null,null,null,null,null,null,null,null,null,null,null,null,{"$f":"IFERROR(VLOOKUP(Table_PI[[#This Row],[Measure]],'Equipment Lookups'!$C$3:$D$23,2,FALSE),\"\")","v":""},0,{"$f":"IF(Table_PI[[#This Row],[Hide: Formula Name]]<>\"\",IFERROR(IF(AND(ISNUMBER(Table_PI[[#This Row],[Hide: Rebate]]),Table_PI[[#This Row],[Hide: Rebate]]>0), IF($S$401>=50, IF(AND(ProjectStage=\"(Installed)\",$S$401>'Customer Information'!$BC$21), 'Customer Information'!$BC$21*Table_PI[[#This Row],[Hide: Rebate]]/$S$401, IF($S$401<=300000, Table_PI[[#This Row],[Hide: Rebate]], ROUND(300000*Table_PI[[#This Row],[Hide: Rebate]]/'Project Information'!$S$401,2))), \"Does not meet $50 Minimum\"), \"No Rebate\"), \"No Rebate\"),0)","v":0},0,0,0,0,0,0,0,0,0,{"$f":"IF(Table_PI[[#This Row],[Hide: Formula Name]]<>\"\",IF(AND(Table_PI[[#This Row],[Hide: Formula Name]]<>\"\",OR(Table_PI[[#This Row],[Hide: Rebate]]>0,Table_PI[[#This Row],[Hide: Rebate]]=\"No Rebate\")),TRUE,\"MI: Line Item \" & $A256),\"\")","v":""}]
[{"$f":"IF(Table_PI[[#This Row],[Hide: Formula Name]]<>\"\",MAX($A$2:A256)+1,\"\")","v":""},null,null,null,null,null,null,null,null,null,null,null,null,null,null,null,null,{"$f":"IFERROR(VLOOKUP(Table_PI[[#This Row],[Measure]],'Equipment Lookups'!$C$3:$D$23,2,FALSE),\"\")","v":""},0,{"$f":"IF(Table_PI[[#This Row],[Hide: Formula Name]]<>\"\",IFERROR(IF(AND(ISNUMBER(Table_PI[[#This Row],[Hide: Rebate]]),Table_PI[[#This Row],[Hide: Rebate]]>0), IF($S$401>=50, IF(AND(ProjectStage=\"(Installed)\",$S$401>'Customer Information'!$BC$21), 'Customer Information'!$BC$21*Table_PI[[#This Row],[Hide: Rebate]]/$S$401, IF($S$401<=300000, Table_PI[[#This Row],[Hide: Rebate]], ROUND(300000*Table_PI[[#This Row],[Hide: Rebate]]/'Project Information'!$S$401,2))), \"Does not meet $50 Minimum\"), \"No Rebate\"), \"No Rebate\"),0)","v":0},0,0,0,0,0,0,0,0,0,{"$f":"IF(Table_PI[[#This Row],[Hide: Formula Name]]<>\"\",IF(AND(Table_PI[[#This Row],[Hide: Formula Name]]<>\"\",OR(Table_PI[[#This Row],[Hide: Rebate]]>0,Table_PI[[#This Row],[Hide: Rebate]]=\"No Rebate\")),TRUE,\"MI: Line Item \" & $A257),\"\")","v":""}]
[{"$f":"IF(Table_PI[[#This Row],[Hide: Formula Name]]<>\"\",MAX($A$2:A257)+1,\"\")","v":""},null,null,null,null,null,null,null,null,null,null,null,null,null,null,null,null,{"$f":"IFERROR(VLOOKUP(Table_PI[[#This Row],[Measure]],'Equipment Lookups'!$C$3:$D$23,2,FALSE),\"\")","v":""},0,{"$f":"IF(Table_PI[[#This Row],[Hide: Formula Name]]<>\"\",IFERROR(IF(AND(ISNUMBER(Table_PI[[#This Row],[Hide: Rebate]]),Table_PI[[#This Row],[Hide: Rebate]]>0), IF($S$401>=50, IF(AND(ProjectStage=\"(Installed)\",$S$401>'Customer Information'!$BC$21), 'Customer Information'!$BC$21*Table_PI[[#This Row],[Hide: Rebate]]/$S$401, IF($S$401<=300000, Table_PI[[#This Row],[Hide: Rebate]], ROUND(300000*Table_PI[[#This Row],[Hide: Rebate]]/'Project Information'!$S$401,2))), \"Does not meet $50 Minimum\"), \"No Rebate\"), \"No Rebate\"),0)","v":0},0,0,0,0,0,0,0,0,0,{"$f":"IF(Table_PI[[#This Row],[Hide: Formula Name]]<>\"\",IF(AND(Table_PI[[#This Row],[Hide: Formula Name]]<>\"\",OR(Table_PI[[#This Row],[Hide: Rebate]]>0,Table_PI[[#This Row],[Hide: Rebate]]=\"No Rebate\")),TRUE,\"MI: Line Item \" & $A258),\"\")","v":""}]
[{"$f":"IF(Table_PI[[#This Row],[Hide: Formula Name]]<>\"\",MAX($A$2:A258)+1,\"\")","v":""},null,null,null,null,null,null,null,null,null,null,null,null,null,null,null,null,{"$f":"IFERROR(VLOOKUP(Table_PI[[#This Row],[Measure]],'Equipment Lookups'!$C$3:$D$23,2,FALSE),\"\")","v":""},0,{"$f":"IF(Table_PI[[#This Row],[Hide: Formula Name]]<>\"\",IFERROR(IF(AND(ISNUMBER(Table_PI[[#This Row],[Hide: Rebate]]),Table_PI[[#This Row],[Hide: Rebate]]>0), IF($S$401>=50, IF(AND(ProjectStage=\"(Installed)\",$S$401>'Customer Information'!$BC$21), 'Customer Information'!$BC$21*Table_PI[[#This Row],[Hide: Rebate]]/$S$401, IF($S$401<=300000, Table_PI[[#This Row],[Hide: Rebate]], ROUND(300000*Table_PI[[#This Row],[Hide: Rebate]]/'Project Information'!$S$401,2))), \"Does not meet $50 Minimum\"), \"No Rebate\"), \"No Rebate\"),0)","v":0},0,0,0,0,0,0,0,0,0,{"$f":"IF(Table_PI[[#This Row],[Hide: Formula Name]]<>\"\",IF(AND(Table_PI[[#This Row],[Hide: Formula Name]]<>\"\",OR(Table_PI[[#This Row],[Hide: Rebate]]>0,Table_PI[[#This Row],[Hide: Rebate]]=\"No Rebate\")),TRUE,\"MI: Line Item \" & $A259),\"\")","v":""}]
[{"$f":"IF(Table_PI[[#This Row],[Hide: Formula Name]]<>\"\",MAX($A$2:A259)+1,\"\")","v":""},null,null,null,null,null,null,null,null,null,null,null,null,null,null,null,null,{"$f":"IFERROR(VLOOKUP(Table_PI[[#This Row],[Measure]],'Equipment Lookups'!$C$3:$D$23,2,FALSE),\"\")","v":""},0,{"$f":"IF(Table_PI[[#This Row],[Hide: Formula Name]]<>\"\",IFERROR(IF(AND(ISNUMBER(Table_PI[[#This Row],[Hide: Rebate]]),Table_PI[[#This Row],[Hide: Rebate]]>0), IF($S$401>=50, IF(AND(ProjectStage=\"(Installed)\",$S$401>'Customer Information'!$BC$21), 'Customer Information'!$BC$21*Table_PI[[#This Row],[Hide: Rebate]]/$S$401, IF($S$401<=300000, Table_PI[[#This Row],[Hide: Rebate]], ROUND(300000*Table_PI[[#This Row],[Hide: Rebate]]/'Project Information'!$S$401,2))), \"Does not meet $50 Minimum\"), \"No Rebate\"), \"No Rebate\"),0)","v":0},0,0,0,0,0,0,0,0,0,{"$f":"IF(Table_PI[[#This Row],[Hide: Formula Name]]<>\"\",IF(AND(Table_PI[[#This Row],[Hide: Formula Name]]<>\"\",OR(Table_PI[[#This Row],[Hide: Rebate]]>0,Table_PI[[#This Row],[Hide: Rebate]]=\"No Rebate\")),TRUE,\"MI: Line Item \" & $A260),\"\")","v":""}]
[{"$f":"IF(Table_PI[[#This Row],[Hide: Formula Name]]<>\"\",MAX($A$2:A260)+1,\"\")","v":""},null,null,null,null,null,null,null,null,null,null,null,null,null,null,null,null,{"$f":"IFERROR(VLOOKUP(Table_PI[[#This Row],[Measure]],'Equipment Lookups'!$C$3:$D$23,2,FALSE),\"\")","v":""},0,{"$f":"IF(Table_PI[[#This Row],[Hide: Formula Name]]<>\"\",IFERROR(IF(AND(ISNUMBER(Table_PI[[#This Row],[Hide: Rebate]]),Table_PI[[#This Row],[Hide: Rebate]]>0), IF($S$401>=50, IF(AND(ProjectStage=\"(Installed)\",$S$401>'Customer Information'!$BC$21), 'Customer Information'!$BC$21*Table_PI[[#This Row],[Hide: Rebate]]/$S$401, IF($S$401<=300000, Table_PI[[#This Row],[Hide: Rebate]], ROUND(300000*Table_PI[[#This Row],[Hide: Rebate]]/'Project Information'!$S$401,2))), \"Does not meet $50 Minimum\"), \"No Rebate\"), \"No Rebate\"),0)","v":0},0,0,0,0,0,0,0,0,0,{"$f":"IF(Table_PI[[#This Row],[Hide: Formula Name]]<>\"\",IF(AND(Table_PI[[#This Row],[Hide: Formula Name]]<>\"\",OR(Table_PI[[#This Row],[Hide: Rebate]]>0,Table_PI[[#This Row],[Hide: Rebate]]=\"No Rebate\")),TRUE,\"MI: Line Item \" & $A261),\"\")","v":""}]
[{"$f":"IF(Table_PI[[#This Row],[Hide: Formula Name]]<>\"\",MAX($A$2:A261)+1,\"\")","v":""},null,null,null,null,null,null,null,null,null,null,null,null,null,null,null,null,{"$f":"IFERROR(VLOOKUP(Table_PI[[#This Row],[Measure]],'Equipment Lookups'!$C$3:$D$23,2,FALSE),\"\")","v":""},0,{"$f":"IF(Table_PI[[#This Row],[Hide: Formula Name]]<>\"\",IFERROR(IF(AND(ISNUMBER(Table_PI[[#This Row],[Hide: Rebate]]),Table_PI[[#This Row],[Hide: Rebate]]>0), IF($S$401>=50, IF(AND(ProjectStage=\"(Installed)\",$S$401>'Customer Information'!$BC$21), 'Customer Information'!$BC$21*Table_PI[[#This Row],[Hide: Rebate]]/$S$401, IF($S$401<=300000, Table_PI[[#This Row],[Hide: Rebate]], ROUND(300000*Table_PI[[#This Row],[Hide: Rebate]]/'Project Information'!$S$401,2))), \"Does not meet $50 Minimum\"), \"No Rebate\"), \"No Rebate\"),0)","v":0},0,0,0,0,0,0,0,0,0,{"$f":"IF(Table_PI[[#This Row],[Hide: Formula Name]]<>\"\",IF(AND(Table_PI[[#This Row],[Hide: Formula Name]]<>\"\",OR(Table_PI[[#This Row],[Hide: Rebate]]>0,Table_PI[[#This Row],[Hide: Rebate]]=\"No Rebate\")),TRUE,\"MI: Line Item \" & $A262),\"\")","v":""}]
[{"$f":"IF(Table_PI[[#This Row],[Hide: Formula Name]]<>\"\",MAX($A$2:A262)+1,\"\")","v":""},null,null,null,null,null,null,null,null,null,null,null,null,null,null,null,null,{"$f":"IFERROR(VLOOKUP(Table_PI[[#This Row],[Measure]],'Equipment Lookups'!$C$3:$D$23,2,FALSE),\"\")","v":""},0,{"$f":"IF(Table_PI[[#This Row],[Hide: Formula Name]]<>\"\",IFERROR(IF(AND(ISNUMBER(Table_PI[[#This Row],[Hide: Rebate]]),Table_PI[[#This Row],[Hide: Rebate]]>0), IF($S$401>=50, IF(AND(ProjectStage=\"(Installed)\",$S$401>'Customer Information'!$BC$21), 'Customer Information'!$BC$21*Table_PI[[#This Row],[Hide: Rebate]]/$S$401, IF($S$401<=300000, Table_PI[[#This Row],[Hide: Rebate]], ROUND(300000*Table_PI[[#This Row],[Hide: Rebate]]/'Project Information'!$S$401,2))), \"Does not meet $50 Minimum\"), \"No Rebate\"), \"No Rebate\"),0)","v":0},0,0,0,0,0,0,0,0,0,{"$f":"IF(Table_PI[[#This Row],[Hide: Formula Name]]<>\"\",IF(AND(Table_PI[[#This Row],[Hide: Formula Name]]<>\"\",OR(Table_PI[[#This Row],[Hide: Rebate]]>0,Table_PI[[#This Row],[Hide: Rebate]]=\"No Rebate\")),TRUE,\"MI: Line Item \" & $A263),\"\")","v":""}]
[{"$f":"IF(Table_PI[[#This Row],[Hide: Formula Name]]<>\"\",MAX($A$2:A263)+1,\"\")","v":""},null,null,null,null,null,null,null,null,null,null,null,null,null,null,null,null,{"$f":"IFERROR(VLOOKUP(Table_PI[[#This Row],[Measure]],'Equipment Lookups'!$C$3:$D$23,2,FALSE),\"\")","v":""},0,{"$f":"IF(Table_PI[[#This Row],[Hide: Formula Name]]<>\"\",IFERROR(IF(AND(ISNUMBER(Table_PI[[#This Row],[Hide: Rebate]]),Table_PI[[#This Row],[Hide: Rebate]]>0), IF($S$401>=50, IF(AND(ProjectStage=\"(Installed)\",$S$401>'Customer Information'!$BC$21), 'Customer Information'!$BC$21*Table_PI[[#This Row],[Hide: Rebate]]/$S$401, IF($S$401<=300000, Table_PI[[#This Row],[Hide: Rebate]], ROUND(300000*Table_PI[[#This Row],[Hide: Rebate]]/'Project Information'!$S$401,2))), \"Does not meet $50 Minimum\"), \"No Rebate\"), \"No Rebate\"),0)","v":0},0,0,0,0,0,0,0,0,0,{"$f":"IF(Table_PI[[#This Row],[Hide: Formula Name]]<>\"\",IF(AND(Table_PI[[#This Row],[Hide: Formula Name]]<>\"\",OR(Table_PI[[#This Row],[Hide: Rebate]]>0,Table_PI[[#This Row],[Hide: Rebate]]=\"No Rebate\")),TRUE,\"MI: Line Item \" & $A264),\"\")","v":""}]
[{"$f":"IF(Table_PI[[#This Row],[Hide: Formula Name]]<>\"\",MAX($A$2:A264)+1,\"\")","v":""},null,null,null,null,null,null,null,null,null,null,null,null,null,null,null,null,{"$f":"IFERROR(VLOOKUP(Table_PI[[#This Row],[Measure]],'Equipment Lookups'!$C$3:$D$23,2,FALSE),\"\")","v":""},0,{"$f":"IF(Table_PI[[#This Row],[Hide: Formula Name]]<>\"\",IFERROR(IF(AND(ISNUMBER(Table_PI[[#This Row],[Hide: Rebate]]),Table_PI[[#This Row],[Hide: Rebate]]>0), IF($S$401>=50, IF(AND(ProjectStage=\"(Installed)\",$S$401>'Customer Information'!$BC$21), 'Customer Information'!$BC$21*Table_PI[[#This Row],[Hide: Rebate]]/$S$401, IF($S$401<=300000, Table_PI[[#This Row],[Hide: Rebate]], ROUND(300000*Table_PI[[#This Row],[Hide: Rebate]]/'Project Information'!$S$401,2))), \"Does not meet $50 Minimum\"), \"No Rebate\"), \"No Rebate\"),0)","v":0},0,0,0,0,0,0,0,0,0,{"$f":"IF(Table_PI[[#This Row],[Hide: Formula Name]]<>\"\",IF(AND(Table_PI[[#This Row],[Hide: Formula Name]]<>\"\",OR(Table_PI[[#This Row],[Hide: Rebate]]>0,Table_PI[[#This Row],[Hide: Rebate]]=\"No Rebate\")),TRUE,\"MI: Line Item \" & $A265),\"\")","v":""}]
[{"$f":"IF(Table_PI[[#This Row],[Hide: Formula Name]]<>\"\",MAX($A$2:A265)+1,\"\")","v":""},null,null,null,null,null,null,null,null,null,null,null,null,null,null,null,null,{"$f":"IFERROR(VLOOKUP(Table_PI[[#This Row],[Measure]],'Equipment Lookups'!$C$3:$D$23,2,FALSE),\"\")","v":""},0,{"$f":"IF(Table_PI[[#This Row],[Hide: Formula Name]]<>\"\",IFERROR(IF(AND(ISNUMBER(Table_PI[[#This Row],[Hide: Rebate]]),Table_PI[[#This Row],[Hide: Rebate]]>0), IF($S$401>=50, IF(AND(ProjectStage=\"(Installed)\",$S$401>'Customer Information'!$BC$21), 'Customer Information'!$BC$21*Table_PI[[#This Row],[Hide: Rebate]]/$S$401, IF($S$401<=300000, Table_PI[[#This Row],[Hide: Rebate]], ROUND(300000*Table_PI[[#This Row],[Hide: Rebate]]/'Project Information'!$S$401,2))), \"Does not meet $50 Minimum\"), \"No Rebate\"), \"No Rebate\"),0)","v":0},0,0,0,0,0,0,0,0,0,{"$f":"IF(Table_PI[[#This Row],[Hide: Formula Name]]<>\"\",IF(AND(Table_PI[[#This Row],[Hide: Formula Name]]<>\"\",OR(Table_PI[[#This Row],[Hide: Rebate]]>0,Table_PI[[#This Row],[Hide: Rebate]]=\"No Rebate\")),TRUE,\"MI: Line Item \" & $A266),\"\")","v":""}]
[{"$f":"IF(Table_PI[[#This Row],[Hide: Formula Name]]<>\"\",MAX($A$2:A266)+1,\"\")","v":""},null,null,null,null,null,null,null,null,null,null,null,null,null,null,null,null,{"$f":"IFERROR(VLOOKUP(Table_PI[[#This Row],[Measure]],'Equipment Lookups'!$C$3:$D$23,2,FALSE),\"\")","v":""},0,{"$f":"IF(Table_PI[[#This Row],[Hide: Formula Name]]<>\"\",IFERROR(IF(AND(ISNUMBER(Table_PI[[#This Row],[Hide: Rebate]]),Table_PI[[#This Row],[Hide: Rebate]]>0), IF($S$401>=50, IF(AND(ProjectStage=\"(Installed)\",$S$401>'Customer Information'!$BC$21), 'Customer Information'!$BC$21*Table_PI[[#This Row],[Hide: Rebate]]/$S$401, IF($S$401<=300000, Table_PI[[#This Row],[Hide: Rebate]], ROUND(300000*Table_PI[[#This Row],[Hide: Rebate]]/'Project Information'!$S$401,2))), \"Does not meet $50 Minimum\"), \"No Rebate\"), \"No Rebate\"),0)","v":0},0,0,0,0,0,0,0,0,0,{"$f":"IF(Table_PI[[#This Row],[Hide: Formula Name]]<>\"\",IF(AND(Table_PI[[#This Row],[Hide: Formula Name]]<>\"\",OR(Table_PI[[#This Row],[Hide: Rebate]]>0,Table_PI[[#This Row],[Hide: Rebate]]=\"No Rebate\")),TRUE,\"MI: Line Item \" & $A267),\"\")","v":""}]
[{"$f":"IF(Table_PI[[#This Row],[Hide: Formula Name]]<>\"\",MAX($A$2:A267)+1,\"\")","v":""},null,null,null,null,null,null,null,null,null,null,null,null,null,null,null,null,{"$f":"IFERROR(VLOOKUP(Table_PI[[#This Row],[Measure]],'Equipment Lookups'!$C$3:$D$23,2,FALSE),\"\")","v":""},0,{"$f":"IF(Table_PI[[#This Row],[Hide: Formula Name]]<>\"\",IFERROR(IF(AND(ISNUMBER(Table_PI[[#This Row],[Hide: Rebate]]),Table_PI[[#This Row],[Hide: Rebate]]>0), IF($S$401>=50, IF(AND(ProjectStage=\"(Installed)\",$S$401>'Customer Information'!$BC$21), 'Customer Information'!$BC$21*Table_PI[[#This Row],[Hide: Rebate]]/$S$401, IF($S$401<=300000, Table_PI[[#This Row],[Hide: Rebate]], ROUND(300000*Table_PI[[#This Row],[Hide: Rebate]]/'Project Information'!$S$401,2))), \"Does not meet $50 Minimum\"), \"No Rebate\"), \"No Rebate\"),0)","v":0},0,0,0,0,0,0,0,0,0,{"$f":"IF(Table_PI[[#This Row],[Hide: Formula Name]]<>\"\",IF(AND(Table_PI[[#This Row],[Hide: Formula Name]]<>\"\",OR(Table_PI[[#This Row],[Hide: Rebate]]>0,Table_PI[[#This Row],[Hide: Rebate]]=\"No Rebate\")),TRUE,\"MI: Line Item \" & $A268),\"\")","v":""}]
[{"$f":"IF(Table_PI[[#This Row],[Hide: Formula Name]]<>\"\",MAX($A$2:A268)+1,\"\")","v":""},null,null,null,null,null,null,null,null,null,null,null,null,null,null,null,null,{"$f":"IFERROR(VLOOKUP(Table_PI[[#This Row],[Measure]],'Equipment Lookups'!$C$3:$D$23,2,FALSE),\"\")","v":""},0,{"$f":"IF(Table_PI[[#This Row],[Hide: Formula Name]]<>\"\",IFERROR(IF(AND(ISNUMBER(Table_PI[[#This Row],[Hide: Rebate]]),Table_PI[[#This Row],[Hide: Rebate]]>0), IF($S$401>=50, IF(AND(ProjectStage=\"(Installed)\",$S$401>'Customer Information'!$BC$21), 'Customer Information'!$BC$21*Table_PI[[#This Row],[Hide: Rebate]]/$S$401, IF($S$401<=300000, Table_PI[[#This Row],[Hide: Rebate]], ROUND(300000*Table_PI[[#This Row],[Hide: Rebate]]/'Project Information'!$S$401,2))), \"Does not meet $50 Minimum\"), \"No Rebate\"), \"No Rebate\"),0)","v":0},0,0,0,0,0,0,0,0,0,{"$f":"IF(Table_PI[[#This Row],[Hide: Formula Name]]<>\"\",IF(AND(Table_PI[[#This Row],[Hide: Formula Name]]<>\"\",OR(Table_PI[[#This Row],[Hide: Rebate]]>0,Table_PI[[#This Row],[Hide: Rebate]]=\"No Rebate\")),TRUE,\"MI: Line Item \" & $A269),\"\")","v":""}]
[{"$f":"IF(Table_PI[[#This Row],[Hide: Formula Name]]<>\"\",MAX($A$2:A269)+1,\"\")","v":""},null,null,null,null,null,null,null,null,null,null,null,null,null,null,null,null,{"$f":"IFERROR(VLOOKUP(Table_PI[[#This Row],[Measure]],'Equipment Lookups'!$C$3:$D$23,2,FALSE),\"\")","v":""},0,{"$f":"IF(Table_PI[[#This Row],[Hide: Formula Name]]<>\"\",IFERROR(IF(AND(ISNUMBER(Table_PI[[#This Row],[Hide: Rebate]]),Table_PI[[#This Row],[Hide: Rebate]]>0), IF($S$401>=50, IF(AND(ProjectStage=\"(Installed)\",$S$401>'Customer Information'!$BC$21), 'Customer Information'!$BC$21*Table_PI[[#This Row],[Hide: Rebate]]/$S$401, IF($S$401<=300000, Table_PI[[#This Row],[Hide: Rebate]], ROUND(300000*Table_PI[[#This Row],[Hide: Rebate]]/'Project Information'!$S$401,2))), \"Does not meet $50 Minimum\"), \"No Rebate\"), \"No Rebate\"),0)","v":0},0,0,0,0,0,0,0,0,0,{"$f":"IF(Table_PI[[#This Row],[Hide: Formula Name]]<>\"\",IF(AND(Table_PI[[#This Row],[Hide: Formula Name]]<>\"\",OR(Table_PI[[#This Row],[Hide: Rebate]]>0,Table_PI[[#This Row],[Hide: Rebate]]=\"No Rebate\")),TRUE,\"MI: Line Item \" & $A270),\"\")","v":""}]
[{"$f":"IF(Table_PI[[#This Row],[Hide: Formula Name]]<>\"\",MAX($A$2:A270)+1,\"\")","v":""},null,null,null,null,null,null,null,null,null,null,null,null,null,null,null,null,{"$f":"IFERROR(VLOOKUP(Table_PI[[#This Row],[Measure]],'Equipment Lookups'!$C$3:$D$23,2,FALSE),\"\")","v":""},0,{"$f":"IF(Table_PI[[#This Row],[Hide: Formula Name]]<>\"\",IFERROR(IF(AND(ISNUMBER(Table_PI[[#This Row],[Hide: Rebate]]),Table_PI[[#This Row],[Hide: Rebate]]>0), IF($S$401>=50, IF(AND(ProjectStage=\"(Installed)\",$S$401>'Customer Information'!$BC$21), 'Customer Information'!$BC$21*Table_PI[[#This Row],[Hide: Rebate]]/$S$401, IF($S$401<=300000, Table_PI[[#This Row],[Hide: Rebate]], ROUND(300000*Table_PI[[#This Row],[Hide: Rebate]]/'Project Information'!$S$401,2))), \"Does not meet $50 Minimum\"), \"No Rebate\"), \"No Rebate\"),0)","v":0},0,0,0,0,0,0,0,0,0,{"$f":"IF(Table_PI[[#This Row],[Hide: Formula Name]]<>\"\",IF(AND(Table_PI[[#This Row],[Hide: Formula Name]]<>\"\",OR(Table_PI[[#This Row],[Hide: Rebate]]>0,Table_PI[[#This Row],[Hide: Rebate]]=\"No Rebate\")),TRUE,\"MI: Line Item \" & $A271),\"\")","v":""}]
[{"$f":"IF(Table_PI[[#This Row],[Hide: Formula Name]]<>\"\",MAX($A$2:A271)+1,\"\")","v":""},null,null,null,null,null,null,null,null,null,null,null,null,null,null,null,null,{"$f":"IFERROR(VLOOKUP(Table_PI[[#This Row],[Measure]],'Equipment Lookups'!$C$3:$D$23,2,FALSE),\"\")","v":""},0,{"$f":"IF(Table_PI[[#This Row],[Hide: Formula Name]]<>\"\",IFERROR(IF(AND(ISNUMBER(Table_PI[[#This Row],[Hide: Rebate]]),Table_PI[[#This Row],[Hide: Rebate]]>0), IF($S$401>=50, IF(AND(ProjectStage=\"(Installed)\",$S$401>'Customer Information'!$BC$21), 'Customer Information'!$BC$21*Table_PI[[#This Row],[Hide: Rebate]]/$S$401, IF($S$401<=300000, Table_PI[[#This Row],[Hide: Rebate]], ROUND(300000*Table_PI[[#This Row],[Hide: Rebate]]/'Project Information'!$S$401,2))), \"Does not meet $50 Minimum\"), \"No Rebate\"), \"No Rebate\"),0)","v":0},0,0,0,0,0,0,0,0,0,{"$f":"IF(Table_PI[[#This Row],[Hide: Formula Name]]<>\"\",IF(AND(Table_PI[[#This Row],[Hide: Formula Name]]<>\"\",OR(Table_PI[[#This Row],[Hide: Rebate]]>0,Table_PI[[#This Row],[Hide: Rebate]]=\"No Rebate\")),TRUE,\"MI: Line Item \" & $A272),\"\")","v":""}]
[{"$f":"IF(Table_PI[[#This Row],[Hide: Formula Name]]<>\"\",MAX($A$2:A272)+1,\"\")","v":""},null,null,null,null,null,null,null,null,null,null,null,null,null,null,null,null,{"$f":"IFERROR(VLOOKUP(Table_PI[[#This Row],[Measure]],'Equipment Lookups'!$C$3:$D$23,2,FALSE),\"\")","v":""},0,{"$f":"IF(Table_PI[[#This Row],[Hide: Formula Name]]<>\"\",IFERROR(IF(AND(ISNUMBER(Table_PI[[#This Row],[Hide: Rebate]]),Table_PI[[#This Row],[Hide: Rebate]]>0), IF($S$401>=50, IF(AND(ProjectStage=\"(Installed)\",$S$401>'Customer Information'!$BC$21), 'Customer Information'!$BC$21*Table_PI[[#This Row],[Hide: Rebate]]/$S$401, IF($S$401<=300000, Table_PI[[#This Row],[Hide: Rebate]], ROUND(300000*Table_PI[[#This Row],[Hide: Rebate]]/'Project Information'!$S$401,2))), \"Does not meet $50 Minimum\"), \"No Rebate\"), \"No Rebate\"),0)","v":0},0,0,0,0,0,0,0,0,0,{"$f":"IF(Table_PI[[#This Row],[Hide: Formula Name]]<>\"\",IF(AND(Table_PI[[#This Row],[Hide: Formula Name]]<>\"\",OR(Table_PI[[#This Row],[Hide: Rebate]]>0,Table_PI[[#This Row],[Hide: Rebate]]=\"No Rebate\")),TRUE,\"MI: Line Item \" & $A273),\"\")","v":""}]
[{"$f":"IF(Table_PI[[#This Row],[Hide: Formula Name]]<>\"\",MAX($A$2:A273)+1,\"\")","v":""},null,null,null,null,null,null,null,null,null,null,null,null,null,null,null,null,{"$f":"IFERROR(VLOOKUP(Table_PI[[#This Row],[Measure]],'Equipment Lookups'!$C$3:$D$23,2,FALSE),\"\")","v":""},0,{"$f":"IF(Table_PI[[#This Row],[Hide: Formula Name]]<>\"\",IFERROR(IF(AND(ISNUMBER(Table_PI[[#This Row],[Hide: Rebate]]),Table_PI[[#This Row],[Hide: Rebate]]>0), IF($S$401>=50, IF(AND(ProjectStage=\"(Installed)\",$S$401>'Customer Information'!$BC$21), 'Customer Information'!$BC$21*Table_PI[[#This Row],[Hide: Rebate]]/$S$401, IF($S$401<=300000, Table_PI[[#This Row],[Hide: Rebate]], ROUND(300000*Table_PI[[#This Row],[Hide: Rebate]]/'Project Information'!$S$401,2))), \"Does not meet $50 Minimum\"), \"No Rebate\"), \"No Rebate\"),0)","v":0},0,0,0,0,0,0,0,0,0,{"$f":"IF(Table_PI[[#This Row],[Hide: Formula Name]]<>\"\",IF(AND(Table_PI[[#This Row],[Hide: Formula Name]]<>\"\",OR(Table_PI[[#This Row],[Hide: Rebate]]>0,Table_PI[[#This Row],[Hide: Rebate]]=\"No Rebate\")),TRUE,\"MI: Line Item \" & $A274),\"\")","v":""}]
[{"$f":"IF(Table_PI[[#This Row],[Hide: Formula Name]]<>\"\",MAX($A$2:A274)+1,\"\")","v":""},null,null,null,null,null,null,null,null,null,null,null,null,null,null,null,null,{"$f":"IFERROR(VLOOKUP(Table_PI[[#This Row],[Measure]],'Equipment Lookups'!$C$3:$D$23,2,FALSE),\"\")","v":""},0,{"$f":"IF(Table_PI[[#This Row],[Hide: Formula Name]]<>\"\",IFERROR(IF(AND(ISNUMBER(Table_PI[[#This Row],[Hide: Rebate]]),Table_PI[[#This Row],[Hide: Rebate]]>0), IF($S$401>=50, IF(AND(ProjectStage=\"(Installed)\",$S$401>'Customer Information'!$BC$21), 'Customer Information'!$BC$21*Table_PI[[#This Row],[Hide: Rebate]]/$S$401, IF($S$401<=300000, Table_PI[[#This Row],[Hide: Rebate]], ROUND(300000*Table_PI[[#This Row],[Hide: Rebate]]/'Project Information'!$S$401,2))), \"Does not meet $50 Minimum\"), \"No Rebate\"), \"No Rebate\"),0)","v":0},0,0,0,0,0,0,0,0,0,{"$f":"IF(Table_PI[[#This Row],[Hide: Formula Name]]<>\"\",IF(AND(Table_PI[[#This Row],[Hide: Formula Name]]<>\"\",OR(Table_PI[[#This Row],[Hide: Rebate]]>0,Table_PI[[#This Row],[Hide: Rebate]]=\"No Rebate\")),TRUE,\"MI: Line Item \" & $A275),\"\")","v":""}]
[{"$f":"IF(Table_PI[[#This Row],[Hide: Formula Name]]<>\"\",MAX($A$2:A275)+1,\"\")","v":""},null,null,null,null,null,null,null,null,null,null,null,null,null,null,null,null,{"$f":"IFERROR(VLOOKUP(Table_PI[[#This Row],[Measure]],'Equipment Lookups'!$C$3:$D$23,2,FALSE),\"\")","v":""},0,{"$f":"IF(Table_PI[[#This Row],[Hide: Formula Name]]<>\"\",IFERROR(IF(AND(ISNUMBER(Table_PI[[#This Row],[Hide: Rebate]]),Table_PI[[#This Row],[Hide: Rebate]]>0), IF($S$401>=50, IF(AND(ProjectStage=\"(Installed)\",$S$401>'Customer Information'!$BC$21), 'Customer Information'!$BC$21*Table_PI[[#This Row],[Hide: Rebate]]/$S$401, IF($S$401<=300000, Table_PI[[#This Row],[Hide: Rebate]], ROUND(300000*Table_PI[[#This Row],[Hide: Rebate]]/'Project Information'!$S$401,2))), \"Does not meet $50 Minimum\"), \"No Rebate\"), \"No Rebate\"),0)","v":0},0,0,0,0,0,0,0,0,0,{"$f":"IF(Table_PI[[#This Row],[Hide: Formula Name]]<>\"\",IF(AND(Table_PI[[#This Row],[Hide: Formula Name]]<>\"\",OR(Table_PI[[#This Row],[Hide: Rebate]]>0,Table_PI[[#This Row],[Hide: Rebate]]=\"No Rebate\")),TRUE,\"MI: Line Item \" & $A276),\"\")","v":""}]
[{"$f":"IF(Table_PI[[#This Row],[Hide: Formula Name]]<>\"\",MAX($A$2:A276)+1,\"\")","v":""},null,null,null,null,null,null,null,null,null,null,null,null,null,null,null,null,{"$f":"IFERROR(VLOOKUP(Table_PI[[#This Row],[Measure]],'Equipment Lookups'!$C$3:$D$23,2,FALSE),\"\")","v":""},0,{"$f":"IF(Table_PI[[#This Row],[Hide: Formula Name]]<>\"\",IFERROR(IF(AND(ISNUMBER(Table_PI[[#This Row],[Hide: Rebate]]),Table_PI[[#This Row],[Hide: Rebate]]>0), IF($S$401>=50, IF(AND(ProjectStage=\"(Installed)\",$S$401>'Customer Information'!$BC$21), 'Customer Information'!$BC$21*Table_PI[[#This Row],[Hide: Rebate]]/$S$401, IF($S$401<=300000, Table_PI[[#This Row],[Hide: Rebate]], ROUND(300000*Table_PI[[#This Row],[Hide: Rebate]]/'Project Information'!$S$401,2))), \"Does not meet $50 Minimum\"), \"No Rebate\"), \"No Rebate\"),0)","v":0},0,0,0,0,0,0,0,0,0,{"$f":"IF(Table_PI[[#This Row],[Hide: Formula Name]]<>\"\",IF(AND(Table_PI[[#This Row],[Hide: Formula Name]]<>\"\",OR(Table_PI[[#This Row],[Hide: Rebate]]>0,Table_PI[[#This Row],[Hide: Rebate]]=\"No Rebate\")),TRUE,\"MI: Line Item \" & $A277),\"\")","v":""}]
[{"$f":"IF(Table_PI[[#This Row],[Hide: Formula Name]]<>\"\",MAX($A$2:A277)+1,\"\")","v":""},null,null,null,null,null,null,null,null,null,null,null,null,null,null,null,null,{"$f":"IFERROR(VLOOKUP(Table_PI[[#This Row],[Measure]],'Equipment Lookups'!$C$3:$D$23,2,FALSE),\"\")","v":""},0,{"$f":"IF(Table_PI[[#This Row],[Hide: Formula Name]]<>\"\",IFERROR(IF(AND(ISNUMBER(Table_PI[[#This Row],[Hide: Rebate]]),Table_PI[[#This Row],[Hide: Rebate]]>0), IF($S$401>=50, IF(AND(ProjectStage=\"(Installed)\",$S$401>'Customer Information'!$BC$21), 'Customer Information'!$BC$21*Table_PI[[#This Row],[Hide: Rebate]]/$S$401, IF($S$401<=300000, Table_PI[[#This Row],[Hide: Rebate]], ROUND(300000*Table_PI[[#This Row],[Hide: Rebate]]/'Project Information'!$S$401,2))), \"Does not meet $50 Minimum\"), \"No Rebate\"), \"No Rebate\"),0)","v":0},0,0,0,0,0,0,0,0,0,{"$f":"IF(Table_PI[[#This Row],[Hide: Formula Name]]<>\"\",IF(AND(Table_PI[[#This Row],[Hide: Formula Name]]<>\"\",OR(Table_PI[[#This Row],[Hide: Rebate]]>0,Table_PI[[#This Row],[Hide: Rebate]]=\"No Rebate\")),TRUE,\"MI: Line Item \" & $A278),\"\")","v":""}]
[{"$f":"IF(Table_PI[[#This Row],[Hide: Formula Name]]<>\"\",MAX($A$2:A278)+1,\"\")","v":""},null,null,null,null,null,null,null,null,null,null,null,null,null,null,null,null,{"$f":"IFERROR(VLOOKUP(Table_PI[[#This Row],[Measure]],'Equipment Lookups'!$C$3:$D$23,2,FALSE),\"\")","v":""},0,{"$f":"IF(Table_PI[[#This Row],[Hide: Formula Name]]<>\"\",IFERROR(IF(AND(ISNUMBER(Table_PI[[#This Row],[Hide: Rebate]]),Table_PI[[#This Row],[Hide: Rebate]]>0), IF($S$401>=50, IF(AND(ProjectStage=\"(Installed)\",$S$401>'Customer Information'!$BC$21), 'Customer Information'!$BC$21*Table_PI[[#This Row],[Hide: Rebate]]/$S$401, IF($S$401<=300000, Table_PI[[#This Row],[Hide: Rebate]], ROUND(300000*Table_PI[[#This Row],[Hide: Rebate]]/'Project Information'!$S$401,2))), \"Does not meet $50 Minimum\"), \"No Rebate\"), \"No Rebate\"),0)","v":0},0,0,0,0,0,0,0,0,0,{"$f":"IF(Table_PI[[#This Row],[Hide: Formula Name]]<>\"\",IF(AND(Table_PI[[#This Row],[Hide: Formula Name]]<>\"\",OR(Table_PI[[#This Row],[Hide: Rebate]]>0,Table_PI[[#This Row],[Hide: Rebate]]=\"No Rebate\")),TRUE,\"MI: Line Item \" & $A279),\"\")","v":""}]
[{"$f":"IF(Table_PI[[#This Row],[Hide: Formula Name]]<>\"\",MAX($A$2:A279)+1,\"\")","v":""},null,null,null,null,null,null,null,null,null,null,null,null,null,null,null,null,{"$f":"IFERROR(VLOOKUP(Table_PI[[#This Row],[Measure]],'Equipment Lookups'!$C$3:$D$23,2,FALSE),\"\")","v":""},0,{"$f":"IF(Table_PI[[#This Row],[Hide: Formula Name]]<>\"\",IFERROR(IF(AND(ISNUMBER(Table_PI[[#This Row],[Hide: Rebate]]),Table_PI[[#This Row],[Hide: Rebate]]>0), IF($S$401>=50, IF(AND(ProjectStage=\"(Installed)\",$S$401>'Customer Information'!$BC$21), 'Customer Information'!$BC$21*Table_PI[[#This Row],[Hide: Rebate]]/$S$401, IF($S$401<=300000, Table_PI[[#This Row],[Hide: Rebate]], ROUND(300000*Table_PI[[#This Row],[Hide: Rebate]]/'Project Information'!$S$401,2))), \"Does not meet $50 Minimum\"), \"No Rebate\"), \"No Rebate\"),0)","v":0},0,0,0,0,0,0,0,0,0,{"$f":"IF(Table_PI[[#This Row],[Hide: Formula Name]]<>\"\",IF(AND(Table_PI[[#This Row],[Hide: Formula Name]]<>\"\",OR(Table_PI[[#This Row],[Hide: Rebate]]>0,Table_PI[[#This Row],[Hide: Rebate]]=\"No Rebate\")),TRUE,\"MI: Line Item \" & $A280),\"\")","v":""}]
[{"$f":"IF(Table_PI[[#This Row],[Hide: Formula Name]]<>\"\",MAX($A$2:A280)+1,\"\")","v":""},null,null,null,null,null,null,null,null,null,null,null,null,null,null,null,null,{"$f":"IFERROR(VLOOKUP(Table_PI[[#This Row],[Measure]],'Equipment Lookups'!$C$3:$D$23,2,FALSE),\"\")","v":""},0,{"$f":"IF(Table_PI[[#This Row],[Hide: Formula Name]]<>\"\",IFERROR(IF(AND(ISNUMBER(Table_PI[[#This Row],[Hide: Rebate]]),Table_PI[[#This Row],[Hide: Rebate]]>0), IF($S$401>=50, IF(AND(ProjectStage=\"(Installed)\",$S$401>'Customer Information'!$BC$21), 'Customer Information'!$BC$21*Table_PI[[#This Row],[Hide: Rebate]]/$S$401, IF($S$401<=300000, Table_PI[[#This Row],[Hide: Rebate]], ROUND(300000*Table_PI[[#This Row],[Hide: Rebate]]/'Project Information'!$S$401,2))), \"Does not meet $50 Minimum\"), \"No Rebate\"), \"No Rebate\"),0)","v":0},0,0,0,0,0,0,0,0,0,{"$f":"IF(Table_PI[[#This Row],[Hide: Formula Name]]<>\"\",IF(AND(Table_PI[[#This Row],[Hide: Formula Name]]<>\"\",OR(Table_PI[[#This Row],[Hide: Rebate]]>0,Table_PI[[#This Row],[Hide: Rebate]]=\"No Rebate\")),TRUE,\"MI: Line Item \" & $A281),\"\")","v":""}]
[{"$f":"IF(Table_PI[[#This Row],[Hide: Formula Name]]<>\"\",MAX($A$2:A281)+1,\"\")","v":""},null,null,null,null,null,null,null,null,null,null,null,null,null,null,null,null,{"$f":"IFERROR(VLOOKUP(Table_PI[[#This Row],[Measure]],'Equipment Lookups'!$C$3:$D$23,2,FALSE),\"\")","v":""},0,{"$f":"IF(Table_PI[[#This Row],[Hide: Formula Name]]<>\"\",IFERROR(IF(AND(ISNUMBER(Table_PI[[#This Row],[Hide: Rebate]]),Table_PI[[#This Row],[Hide: Rebate]]>0), IF($S$401>=50, IF(AND(ProjectStage=\"(Installed)\",$S$401>'Customer Information'!$BC$21), 'Customer Information'!$BC$21*Table_PI[[#This Row],[Hide: Rebate]]/$S$401, IF($S$401<=300000, Table_PI[[#This Row],[Hide: Rebate]], ROUND(300000*Table_PI[[#This Row],[Hide: Rebate]]/'Project Information'!$S$401,2))), \"Does not meet $50 Minimum\"), \"No Rebate\"), \"No Rebate\"),0)","v":0},0,0,0,0,0,0,0,0,0,{"$f":"IF(Table_PI[[#This Row],[Hide: Formula Name]]<>\"\",IF(AND(Table_PI[[#This Row],[Hide: Formula Name]]<>\"\",OR(Table_PI[[#This Row],[Hide: Rebate]]>0,Table_PI[[#This Row],[Hide: Rebate]]=\"No Rebate\")),TRUE,\"MI: Line Item \" & $A282),\"\")","v":""}]
[{"$f":"IF(Table_PI[[#This Row],[Hide: Formula Name]]<>\"\",MAX($A$2:A282)+1,\"\")","v":""},null,null,null,null,null,null,null,null,null,null,null,null,null,null,null,null,{"$f":"IFERROR(VLOOKUP(Table_PI[[#This Row],[Measure]],'Equipment Lookups'!$C$3:$D$23,2,FALSE),\"\")","v":""},0,{"$f":"IF(Table_PI[[#This Row],[Hide: Formula Name]]<>\"\",IFERROR(IF(AND(ISNUMBER(Table_PI[[#This Row],[Hide: Rebate]]),Table_PI[[#This Row],[Hide: Rebate]]>0), IF($S$401>=50, IF(AND(ProjectStage=\"(Installed)\",$S$401>'Customer Information'!$BC$21), 'Customer Information'!$BC$21*Table_PI[[#This Row],[Hide: Rebate]]/$S$401, IF($S$401<=300000, Table_PI[[#This Row],[Hide: Rebate]], ROUND(300000*Table_PI[[#This Row],[Hide: Rebate]]/'Project Information'!$S$401,2))), \"Does not meet $50 Minimum\"), \"No Rebate\"), \"No Rebate\"),0)","v":0},0,0,0,0,0,0,0,0,0,{"$f":"IF(Table_PI[[#This Row],[Hide: Formula Name]]<>\"\",IF(AND(Table_PI[[#This Row],[Hide: Formula Name]]<>\"\",OR(Table_PI[[#This Row],[Hide: Rebate]]>0,Table_PI[[#This Row],[Hide: Rebate]]=\"No Rebate\")),TRUE,\"MI: Line Item \" & $A283),\"\")","v":""}]
[{"$f":"IF(Table_PI[[#This Row],[Hide: Formula Name]]<>\"\",MAX($A$2:A283)+1,\"\")","v":""},null,null,null,null,null,null,null,null,null,null,null,null,null,null,null,null,{"$f":"IFERROR(VLOOKUP(Table_PI[[#This Row],[Measure]],'Equipment Lookups'!$C$3:$D$23,2,FALSE),\"\")","v":""},0,{"$f":"IF(Table_PI[[#This Row],[Hide: Formula Name]]<>\"\",IFERROR(IF(AND(ISNUMBER(Table_PI[[#This Row],[Hide: Rebate]]),Table_PI[[#This Row],[Hide: Rebate]]>0), IF($S$401>=50, IF(AND(ProjectStage=\"(Installed)\",$S$401>'Customer Information'!$BC$21), 'Customer Information'!$BC$21*Table_PI[[#This Row],[Hide: Rebate]]/$S$401, IF($S$401<=300000, Table_PI[[#This Row],[Hide: Rebate]], ROUND(300000*Table_PI[[#This Row],[Hide: Rebate]]/'Project Information'!$S$401,2))), \"Does not meet $50 Minimum\"), \"No Rebate\"), \"No Rebate\"),0)","v":0},0,0,0,0,0,0,0,0,0,{"$f":"IF(Table_PI[[#This Row],[Hide: Formula Name]]<>\"\",IF(AND(Table_PI[[#This Row],[Hide: Formula Name]]<>\"\",OR(Table_PI[[#This Row],[Hide: Rebate]]>0,Table_PI[[#This Row],[Hide: Rebate]]=\"No Rebate\")),TRUE,\"MI: Line Item \" & $A284),\"\")","v":""}]
[{"$f":"IF(Table_PI[[#This Row],[Hide: Formula Name]]<>\"\",MAX($A$2:A284)+1,\"\")","v":""},null,null,null,null,null,null,null,null,null,null,null,null,null,null,null,null,{"$f":"IFERROR(VLOOKUP(Table_PI[[#This Row],[Measure]],'Equipment Lookups'!$C$3:$D$23,2,FALSE),\"\")","v":""},0,{"$f":"IF(Table_PI[[#This Row],[Hide: Formula Name]]<>\"\",IFERROR(IF(AND(ISNUMBER(Table_PI[[#This Row],[Hide: Rebate]]),Table_PI[[#This Row],[Hide: Rebate]]>0), IF($S$401>=50, IF(AND(ProjectStage=\"(Installed)\",$S$401>'Customer Information'!$BC$21), 'Customer Information'!$BC$21*Table_PI[[#This Row],[Hide: Rebate]]/$S$401, IF($S$401<=300000, Table_PI[[#This Row],[Hide: Rebate]], ROUND(300000*Table_PI[[#This Row],[Hide: Rebate]]/'Project Information'!$S$401,2))), \"Does not meet $50 Minimum\"), \"No Rebate\"), \"No Rebate\"),0)","v":0},0,0,0,0,0,0,0,0,0,{"$f":"IF(Table_PI[[#This Row],[Hide: Formula Name]]<>\"\",IF(AND(Table_PI[[#This Row],[Hide: Formula Name]]<>\"\",OR(Table_PI[[#This Row],[Hide: Rebate]]>0,Table_PI[[#This Row],[Hide: Rebate]]=\"No Rebate\")),TRUE,\"MI: Line Item \" & $A285),\"\")","v":""}]
[{"$f":"IF(Table_PI[[#This Row],[Hide: Formula Name]]<>\"\",MAX($A$2:A285)+1,\"\")","v":""},null,null,null,null,null,null,null,null,null,null,null,null,null,null,null,null,{"$f":"IFERROR(VLOOKUP(Table_PI[[#This Row],[Measure]],'Equipment Lookups'!$C$3:$D$23,2,FALSE),\"\")","v":""},0,{"$f":"IF(Table_PI[[#This Row],[Hide: Formula Name]]<>\"\",IFERROR(IF(AND(ISNUMBER(Table_PI[[#This Row],[Hide: Rebate]]),Table_PI[[#This Row],[Hide: Rebate]]>0), IF($S$401>=50, IF(AND(ProjectStage=\"(Installed)\",$S$401>'Customer Information'!$BC$21), 'Customer Information'!$BC$21*Table_PI[[#This Row],[Hide: Rebate]]/$S$401, IF($S$401<=300000, Table_PI[[#This Row],[Hide: Rebate]], ROUND(300000*Table_PI[[#This Row],[Hide: Rebate]]/'Project Information'!$S$401,2))), \"Does not meet $50 Minimum\"), \"No Rebate\"), \"No Rebate\"),0)","v":0},0,0,0,0,0,0,0,0,0,{"$f":"IF(Table_PI[[#This Row],[Hide: Formula Name]]<>\"\",IF(AND(Table_PI[[#This Row],[Hide: Formula Name]]<>\"\",OR(Table_PI[[#This Row],[Hide: Rebate]]>0,Table_PI[[#This Row],[Hide: Rebate]]=\"No Rebate\")),TRUE,\"MI: Line Item \" & $A286),\"\")","v":""}]
[{"$f":"IF(Table_PI[[#This Row],[Hide: Formula Name]]<>\"\",MAX($A$2:A286)+1,\"\")","v":""},null,null,null,null,null,null,null,null,null,null,null,null,null,null,null,null,{"$f":"IFERROR(VLOOKUP(Table_PI[[#This Row],[Measure]],'Equipment Lookups'!$C$3:$D$23,2,FALSE),\"\")","v":""},0,{"$f":"IF(Table_PI[[#This Row],[Hide: Formula Name]]<>\"\",IFERROR(IF(AND(ISNUMBER(Table_PI[[#This Row],[Hide: Rebate]]),Table_PI[[#This Row],[Hide: Rebate]]>0), IF($S$401>=50, IF(AND(ProjectStage=\"(Installed)\",$S$401>'Customer Information'!$BC$21), 'Customer Information'!$BC$21*Table_PI[[#This Row],[Hide: Rebate]]/$S$401, IF($S$401<=300000, Table_PI[[#This Row],[Hide: Rebate]], ROUND(300000*Table_PI[[#This Row],[Hide: Rebate]]/'Project Information'!$S$401,2))), \"Does not meet $50 Minimum\"), \"No Rebate\"), \"No Rebate\"),0)","v":0},0,0,0,0,0,0,0,0,0,{"$f":"IF(Table_PI[[#This Row],[Hide: Formula Name]]<>\"\",IF(AND(Table_PI[[#This Row],[Hide: Formula Name]]<>\"\",OR(Table_PI[[#This Row],[Hide: Rebate]]>0,Table_PI[[#This Row],[Hide: Rebate]]=\"No Rebate\")),TRUE,\"MI: Line Item \" & $A287),\"\")","v":""}]
[{"$f":"IF(Table_PI[[#This Row],[Hide: Formula Name]]<>\"\",MAX($A$2:A287)+1,\"\")","v":""},null,null,null,null,null,null,null,null,null,null,null,null,null,null,null,null,{"$f":"IFERROR(VLOOKUP(Table_PI[[#This Row],[Measure]],'Equipment Lookups'!$C$3:$D$23,2,FALSE),\"\")","v":""},0,{"$f":"IF(Table_PI[[#This Row],[Hide: Formula Name]]<>\"\",IFERROR(IF(AND(ISNUMBER(Table_PI[[#This Row],[Hide: Rebate]]),Table_PI[[#This Row],[Hide: Rebate]]>0), IF($S$401>=50, IF(AND(ProjectStage=\"(Installed)\",$S$401>'Customer Information'!$BC$21), 'Customer Information'!$BC$21*Table_PI[[#This Row],[Hide: Rebate]]/$S$401, IF($S$401<=300000, Table_PI[[#This Row],[Hide: Rebate]], ROUND(300000*Table_PI[[#This Row],[Hide: Rebate]]/'Project Information'!$S$401,2))), \"Does not meet $50 Minimum\"), \"No Rebate\"), \"No Rebate\"),0)","v":0},0,0,0,0,0,0,0,0,0,{"$f":"IF(Table_PI[[#This Row],[Hide: Formula Name]]<>\"\",IF(AND(Table_PI[[#This Row],[Hide: Formula Name]]<>\"\",OR(Table_PI[[#This Row],[Hide: Rebate]]>0,Table_PI[[#This Row],[Hide: Rebate]]=\"No Rebate\")),TRUE,\"MI: Line Item \" & $A288),\"\")","v":""}]
[{"$f":"IF(Table_PI[[#This Row],[Hide: Formula Name]]<>\"\",MAX($A$2:A288)+1,\"\")","v":""},null,null,null,null,null,null,null,null,null,null,null,null,null,null,null,null,{"$f":"IFERROR(VLOOKUP(Table_PI[[#This Row],[Measure]],'Equipment Lookups'!$C$3:$D$23,2,FALSE),\"\")","v":""},0,{"$f":"IF(Table_PI[[#This Row],[Hide: Formula Name]]<>\"\",IFERROR(IF(AND(ISNUMBER(Table_PI[[#This Row],[Hide: Rebate]]),Table_PI[[#This Row],[Hide: Rebate]]>0), IF($S$401>=50, IF(AND(ProjectStage=\"(Installed)\",$S$401>'Customer Information'!$BC$21), 'Customer Information'!$BC$21*Table_PI[[#This Row],[Hide: Rebate]]/$S$401, IF($S$401<=300000, Table_PI[[#This Row],[Hide: Rebate]], ROUND(300000*Table_PI[[#This Row],[Hide: Rebate]]/'Project Information'!$S$401,2))), \"Does not meet $50 Minimum\"), \"No Rebate\"), \"No Rebate\"),0)","v":0},0,0,0,0,0,0,0,0,0,{"$f":"IF(Table_PI[[#This Row],[Hide: Formula Name]]<>\"\",IF(AND(Table_PI[[#This Row],[Hide: Formula Name]]<>\"\",OR(Table_PI[[#This Row],[Hide: Rebate]]>0,Table_PI[[#This Row],[Hide: Rebate]]=\"No Rebate\")),TRUE,\"MI: Line Item \" & $A289),\"\")","v":""}]
[{"$f":"IF(Table_PI[[#This Row],[Hide: Formula Name]]<>\"\",MAX($A$2:A289)+1,\"\")","v":""},null,null,null,null,null,null,null,null,null,null,null,null,null,null,null,null,{"$f":"IFERROR(VLOOKUP(Table_PI[[#This Row],[Measure]],'Equipment Lookups'!$C$3:$D$23,2,FALSE),\"\")","v":""},0,{"$f":"IF(Table_PI[[#This Row],[Hide: Formula Name]]<>\"\",IFERROR(IF(AND(ISNUMBER(Table_PI[[#This Row],[Hide: Rebate]]),Table_PI[[#This Row],[Hide: Rebate]]>0), IF($S$401>=50, IF(AND(ProjectStage=\"(Installed)\",$S$401>'Customer Information'!$BC$21), 'Customer Information'!$BC$21*Table_PI[[#This Row],[Hide: Rebate]]/$S$401, IF($S$401<=300000, Table_PI[[#This Row],[Hide: Rebate]], ROUND(300000*Table_PI[[#This Row],[Hide: Rebate]]/'Project Information'!$S$401,2))), \"Does not meet $50 Minimum\"), \"No Rebate\"), \"No Rebate\"),0)","v":0},0,0,0,0,0,0,0,0,0,{"$f":"IF(Table_PI[[#This Row],[Hide: Formula Name]]<>\"\",IF(AND(Table_PI[[#This Row],[Hide: Formula Name]]<>\"\",OR(Table_PI[[#This Row],[Hide: Rebate]]>0,Table_PI[[#This Row],[Hide: Rebate]]=\"No Rebate\")),TRUE,\"MI: Line Item \" & $A290),\"\")","v":""}]
[{"$f":"IF(Table_PI[[#This Row],[Hide: Formula Name]]<>\"\",MAX($A$2:A290)+1,\"\")","v":""},null,null,null,null,null,null,null,null,null,null,null,null,null,null,null,null,{"$f":"IFERROR(VLOOKUP(Table_PI[[#This Row],[Measure]],'Equipment Lookups'!$C$3:$D$23,2,FALSE),\"\")","v":""},0,{"$f":"IF(Table_PI[[#This Row],[Hide: Formula Name]]<>\"\",IFERROR(IF(AND(ISNUMBER(Table_PI[[#This Row],[Hide: Rebate]]),Table_PI[[#This Row],[Hide: Rebate]]>0), IF($S$401>=50, IF(AND(ProjectStage=\"(Installed)\",$S$401>'Customer Information'!$BC$21), 'Customer Information'!$BC$21*Table_PI[[#This Row],[Hide: Rebate]]/$S$401, IF($S$401<=300000, Table_PI[[#This Row],[Hide: Rebate]], ROUND(300000*Table_PI[[#This Row],[Hide: Rebate]]/'Project Information'!$S$401,2))), \"Does not meet $50 Minimum\"), \"No Rebate\"), \"No Rebate\"),0)","v":0},0,0,0,0,0,0,0,0,0,{"$f":"IF(Table_PI[[#This Row],[Hide: Formula Name]]<>\"\",IF(AND(Table_PI[[#This Row],[Hide: Formula Name]]<>\"\",OR(Table_PI[[#This Row],[Hide: Rebate]]>0,Table_PI[[#This Row],[Hide: Rebate]]=\"No Rebate\")),TRUE,\"MI: Line Item \" & $A291),\"\")","v":""}]
[{"$f":"IF(Table_PI[[#This Row],[Hide: Formula Name]]<>\"\",MAX($A$2:A291)+1,\"\")","v":""},null,null,null,null,null,null,null,null,null,null,null,null,null,null,null,null,{"$f":"IFERROR(VLOOKUP(Table_PI[[#This Row],[Measure]],'Equipment Lookups'!$C$3:$D$23,2,FALSE),\"\")","v":""},0,{"$f":"IF(Table_PI[[#This Row],[Hide: Formula Name]]<>\"\",IFERROR(IF(AND(ISNUMBER(Table_PI[[#This Row],[Hide: Rebate]]),Table_PI[[#This Row],[Hide: Rebate]]>0), IF($S$401>=50, IF(AND(ProjectStage=\"(Installed)\",$S$401>'Customer Information'!$BC$21), 'Customer Information'!$BC$21*Table_PI[[#This Row],[Hide: Rebate]]/$S$401, IF($S$401<=300000, Table_PI[[#This Row],[Hide: Rebate]], ROUND(300000*Table_PI[[#This Row],[Hide: Rebate]]/'Project Information'!$S$401,2))), \"Does not meet $50 Minimum\"), \"No Rebate\"), \"No Rebate\"),0)","v":0},0,0,0,0,0,0,0,0,0,{"$f":"IF(Table_PI[[#This Row],[Hide: Formula Name]]<>\"\",IF(AND(Table_PI[[#This Row],[Hide: Formula Name]]<>\"\",OR(Table_PI[[#This Row],[Hide: Rebate]]>0,Table_PI[[#This Row],[Hide: Rebate]]=\"No Rebate\")),TRUE,\"MI: Line Item \" & $A292),\"\")","v":""}]
[{"$f":"IF(Table_PI[[#This Row],[Hide: Formula Name]]<>\"\",MAX($A$2:A292)+1,\"\")","v":""},null,null,null,null,null,null,null,null,null,null,null,null,null,null,null,null,{"$f":"IFERROR(VLOOKUP(Table_PI[[#This Row],[Measure]],'Equipment Lookups'!$C$3:$D$23,2,FALSE),\"\")","v":""},0,{"$f":"IF(Table_PI[[#This Row],[Hide: Formula Name]]<>\"\",IFERROR(IF(AND(ISNUMBER(Table_PI[[#This Row],[Hide: Rebate]]),Table_PI[[#This Row],[Hide: Rebate]]>0), IF($S$401>=50, IF(AND(ProjectStage=\"(Installed)\",$S$401>'Customer Information'!$BC$21), 'Customer Information'!$BC$21*Table_PI[[#This Row],[Hide: Rebate]]/$S$401, IF($S$401<=300000, Table_PI[[#This Row],[Hide: Rebate]], ROUND(300000*Table_PI[[#This Row],[Hide: Rebate]]/'Project Information'!$S$401,2))), \"Does not meet $50 Minimum\"), \"No Rebate\"), \"No Rebate\"),0)","v":0},0,0,0,0,0,0,0,0,0,{"$f":"IF(Table_PI[[#This Row],[Hide: Formula Name]]<>\"\",IF(AND(Table_PI[[#This Row],[Hide: Formula Name]]<>\"\",OR(Table_PI[[#This Row],[Hide: Rebate]]>0,Table_PI[[#This Row],[Hide: Rebate]]=\"No Rebate\")),TRUE,\"MI: Line Item \" & $A293),\"\")","v":""}]
[{"$f":"IF(Table_PI[[#This Row],[Hide: Formula Name]]<>\"\",MAX($A$2:A293)+1,\"\")","v":""},null,null,null,null,null,null,null,null,null,null,null,null,null,null,null,null,{"$f":"IFERROR(VLOOKUP(Table_PI[[#This Row],[Measure]],'Equipment Lookups'!$C$3:$D$23,2,FALSE),\"\")","v":""},0,{"$f":"IF(Table_PI[[#This Row],[Hide: Formula Name]]<>\"\",IFERROR(IF(AND(ISNUMBER(Table_PI[[#This Row],[Hide: Rebate]]),Table_PI[[#This Row],[Hide: Rebate]]>0), IF($S$401>=50, IF(AND(ProjectStage=\"(Installed)\",$S$401>'Customer Information'!$BC$21), 'Customer Information'!$BC$21*Table_PI[[#This Row],[Hide: Rebate]]/$S$401, IF($S$401<=300000, Table_PI[[#This Row],[Hide: Rebate]], ROUND(300000*Table_PI[[#This Row],[Hide: Rebate]]/'Project Information'!$S$401,2))), \"Does not meet $50 Minimum\"), \"No Rebate\"), \"No Rebate\"),0)","v":0},0,0,0,0,0,0,0,0,0,{"$f":"IF(Table_PI[[#This Row],[Hide: Formula Name]]<>\"\",IF(AND(Table_PI[[#This Row],[Hide: Formula Name]]<>\"\",OR(Table_PI[[#This Row],[Hide: Rebate]]>0,Table_PI[[#This Row],[Hide: Rebate]]=\"No Rebate\")),TRUE,\"MI: Line Item \" & $A294),\"\")","v":""}]
[{"$f":"IF(Table_PI[[#This Row],[Hide: Formula Name]]<>\"\",MAX($A$2:A294)+1,\"\")","v":""},null,null,null,null,null,null,null,null,null,null,null,null,null,null,null,null,{"$f":"IFERROR(VLOOKUP(Table_PI[[#This Row],[Measure]],'Equipment Lookups'!$C$3:$D$23,2,FALSE),\"\")","v":""},0,{"$f":"IF(Table_PI[[#This Row],[Hide: Formula Name]]<>\"\",IFERROR(IF(AND(ISNUMBER(Table_PI[[#This Row],[Hide: Rebate]]),Table_PI[[#This Row],[Hide: Rebate]]>0), IF($S$401>=50, IF(AND(ProjectStage=\"(Installed)\",$S$401>'Customer Information'!$BC$21), 'Customer Information'!$BC$21*Table_PI[[#This Row],[Hide: Rebate]]/$S$401, IF($S$401<=300000, Table_PI[[#This Row],[Hide: Rebate]], ROUND(300000*Table_PI[[#This Row],[Hide: Rebate]]/'Project Information'!$S$401,2))), \"Does not meet $50 Minimum\"), \"No Rebate\"), \"No Rebate\"),0)","v":0},0,0,0,0,0,0,0,0,0,{"$f":"IF(Table_PI[[#This Row],[Hide: Formula Name]]<>\"\",IF(AND(Table_PI[[#This Row],[Hide: Formula Name]]<>\"\",OR(Table_PI[[#This Row],[Hide: Rebate]]>0,Table_PI[[#This Row],[Hide: Rebate]]=\"No Rebate\")),TRUE,\"MI: Line Item \" & $A295),\"\")","v":""}]
[{"$f":"IF(Table_PI[[#This Row],[Hide: Formula Name]]<>\"\",MAX($A$2:A295)+1,\"\")","v":""},null,null,null,null,null,null,null,null,null,null,null,null,null,null,null,null,{"$f":"IFERROR(VLOOKUP(Table_PI[[#This Row],[Measure]],'Equipment Lookups'!$C$3:$D$23,2,FALSE),\"\")","v":""},0,{"$f":"IF(Table_PI[[#This Row],[Hide: Formula Name]]<>\"\",IFERROR(IF(AND(ISNUMBER(Table_PI[[#This Row],[Hide: Rebate]]),Table_PI[[#This Row],[Hide: Rebate]]>0), IF($S$401>=50, IF(AND(ProjectStage=\"(Installed)\",$S$401>'Customer Information'!$BC$21), 'Customer Information'!$BC$21*Table_PI[[#This Row],[Hide: Rebate]]/$S$401, IF($S$401<=300000, Table_PI[[#This Row],[Hide: Rebate]], ROUND(300000*Table_PI[[#This Row],[Hide: Rebate]]/'Project Information'!$S$401,2))), \"Does not meet $50 Minimum\"), \"No Rebate\"), \"No Rebate\"),0)","v":0},0,0,0,0,0,0,0,0,0,{"$f":"IF(Table_PI[[#This Row],[Hide: Formula Name]]<>\"\",IF(AND(Table_PI[[#This Row],[Hide: Formula Name]]<>\"\",OR(Table_PI[[#This Row],[Hide: Rebate]]>0,Table_PI[[#This Row],[Hide: Rebate]]=\"No Rebate\")),TRUE,\"MI: Line Item \" & $A296),\"\")","v":""}]
[{"$f":"IF(Table_PI[[#This Row],[Hide: Formula Name]]<>\"\",MAX($A$2:A296)+1,\"\")","v":""},null,null,null,null,null,null,null,null,null,null,null,null,null,null,null,null,{"$f":"IFERROR(VLOOKUP(Table_PI[[#This Row],[Measure]],'Equipment Lookups'!$C$3:$D$23,2,FALSE),\"\")","v":""},0,{"$f":"IF(Table_PI[[#This Row],[Hide: Formula Name]]<>\"\",IFERROR(IF(AND(ISNUMBER(Table_PI[[#This Row],[Hide: Rebate]]),Table_PI[[#This Row],[Hide: Rebate]]>0), IF($S$401>=50, IF(AND(ProjectStage=\"(Installed)\",$S$401>'Customer Information'!$BC$21), 'Customer Information'!$BC$21*Table_PI[[#This Row],[Hide: Rebate]]/$S$401, IF($S$401<=300000, Table_PI[[#This Row],[Hide: Rebate]], ROUND(300000*Table_PI[[#This Row],[Hide: Rebate]]/'Project Information'!$S$401,2))), \"Does not meet $50 Minimum\"), \"No Rebate\"), \"No Rebate\"),0)","v":0},0,0,0,0,0,0,0,0,0,{"$f":"IF(Table_PI[[#This Row],[Hide: Formula Name]]<>\"\",IF(AND(Table_PI[[#This Row],[Hide: Formula Name]]<>\"\",OR(Table_PI[[#This Row],[Hide: Rebate]]>0,Table_PI[[#This Row],[Hide: Rebate]]=\"No Rebate\")),TRUE,\"MI: Line Item \" & $A297),\"\")","v":""}]
[{"$f":"IF(Table_PI[[#This Row],[Hide: Formula Name]]<>\"\",MAX($A$2:A297)+1,\"\")","v":""},null,null,null,null,null,null,null,null,null,null,null,null,null,null,null,null,{"$f":"IFERROR(VLOOKUP(Table_PI[[#This Row],[Measure]],'Equipment Lookups'!$C$3:$D$23,2,FALSE),\"\")","v":""},0,{"$f":"IF(Table_PI[[#This Row],[Hide: Formula Name]]<>\"\",IFERROR(IF(AND(ISNUMBER(Table_PI[[#This Row],[Hide: Rebate]]),Table_PI[[#This Row],[Hide: Rebate]]>0), IF($S$401>=50, IF(AND(ProjectStage=\"(Installed)\",$S$401>'Customer Information'!$BC$21), 'Customer Information'!$BC$21*Table_PI[[#This Row],[Hide: Rebate]]/$S$401, IF($S$401<=300000, Table_PI[[#This Row],[Hide: Rebate]], ROUND(300000*Table_PI[[#This Row],[Hide: Rebate]]/'Project Information'!$S$401,2))), \"Does not meet $50 Minimum\"), \"No Rebate\"), \"No Rebate\"),0)","v":0},0,0,0,0,0,0,0,0,0,{"$f":"IF(Table_PI[[#This Row],[Hide: Formula Name]]<>\"\",IF(AND(Table_PI[[#This Row],[Hide: Formula Name]]<>\"\",OR(Table_PI[[#This Row],[Hide: Rebate]]>0,Table_PI[[#This Row],[Hide: Rebate]]=\"No Rebate\")),TRUE,\"MI: Line Item \" & $A298),\"\")","v":""}]
[{"$f":"IF(Table_PI[[#This Row],[Hide: Formula Name]]<>\"\",MAX($A$2:A298)+1,\"\")","v":""},null,null,null,null,null,null,null,null,null,null,null,null,null,null,null,null,{"$f":"IFERROR(VLOOKUP(Table_PI[[#This Row],[Measure]],'Equipment Lookups'!$C$3:$D$23,2,FALSE),\"\")","v":""},0,{"$f":"IF(Table_PI[[#This Row],[Hide: Formula Name]]<>\"\",IFERROR(IF(AND(ISNUMBER(Table_PI[[#This Row],[Hide: Rebate]]),Table_PI[[#This Row],[Hide: Rebate]]>0), IF($S$401>=50, IF(AND(ProjectStage=\"(Installed)\",$S$401>'Customer Information'!$BC$21), 'Customer Information'!$BC$21*Table_PI[[#This Row],[Hide: Rebate]]/$S$401, IF($S$401<=300000, Table_PI[[#This Row],[Hide: Rebate]], ROUND(300000*Table_PI[[#This Row],[Hide: Rebate]]/'Project Information'!$S$401,2))), \"Does not meet $50 Minimum\"), \"No Rebate\"), \"No Rebate\"),0)","v":0},0,0,0,0,0,0,0,0,0,{"$f":"IF(Table_PI[[#This Row],[Hide: Formula Name]]<>\"\",IF(AND(Table_PI[[#This Row],[Hide: Formula Name]]<>\"\",OR(Table_PI[[#This Row],[Hide: Rebate]]>0,Table_PI[[#This Row],[Hide: Rebate]]=\"No Rebate\")),TRUE,\"MI: Line Item \" & $A299),\"\")","v":""}]
[{"$f":"IF(Table_PI[[#This Row],[Hide: Formula Name]]<>\"\",MAX($A$2:A299)+1,\"\")","v":""},null,null,null,null,null,null,null,null,null,null,null,null,null,null,null,null,{"$f":"IFERROR(VLOOKUP(Table_PI[[#This Row],[Measure]],'Equipment Lookups'!$C$3:$D$23,2,FALSE),\"\")","v":""},0,{"$f":"IF(Table_PI[[#This Row],[Hide: Formula Name]]<>\"\",IFERROR(IF(AND(ISNUMBER(Table_PI[[#This Row],[Hide: Rebate]]),Table_PI[[#This Row],[Hide: Rebate]]>0), IF($S$401>=50, IF(AND(ProjectStage=\"(Installed)\",$S$401>'Customer Information'!$BC$21), 'Customer Information'!$BC$21*Table_PI[[#This Row],[Hide: Rebate]]/$S$401, IF($S$401<=300000, Table_PI[[#This Row],[Hide: Rebate]], ROUND(300000*Table_PI[[#This Row],[Hide: Rebate]]/'Project Information'!$S$401,2))), \"Does not meet $50 Minimum\"), \"No Rebate\"), \"No Rebate\"),0)","v":0},0,0,0,0,0,0,0,0,0,{"$f":"IF(Table_PI[[#This Row],[Hide: Formula Name]]<>\"\",IF(AND(Table_PI[[#This Row],[Hide: Formula Name]]<>\"\",OR(Table_PI[[#This Row],[Hide: Rebate]]>0,Table_PI[[#This Row],[Hide: Rebate]]=\"No Rebate\")),TRUE,\"MI: Line Item \" & $A300),\"\")","v":""}]
[{"$f":"IF(Table_PI[[#This Row],[Hide: Formula Name]]<>\"\",MAX($A$2:A300)+1,\"\")","v":""},null,null,null,null,null,null,null,null,null,null,null,null,null,null,null,null,{"$f":"IFERROR(VLOOKUP(Table_PI[[#This Row],[Measure]],'Equipment Lookups'!$C$3:$D$23,2,FALSE),\"\")","v":""},0,{"$f":"IF(Table_PI[[#This Row],[Hide: Formula Name]]<>\"\",IFERROR(IF(AND(ISNUMBER(Table_PI[[#This Row],[Hide: Rebate]]),Table_PI[[#This Row],[Hide: Rebate]]>0), IF($S$401>=50, IF(AND(ProjectStage=\"(Installed)\",$S$401>'Customer Information'!$BC$21), 'Customer Information'!$BC$21*Table_PI[[#This Row],[Hide: Rebate]]/$S$401, IF($S$401<=300000, Table_PI[[#This Row],[Hide: Rebate]], ROUND(300000*Table_PI[[#This Row],[Hide: Rebate]]/'Project Information'!$S$401,2))), \"Does not meet $50 Minimum\"), \"No Rebate\"), \"No Rebate\"),0)","v":0},0,0,0,0,0,0,0,0,0,{"$f":"IF(Table_PI[[#This Row],[Hide: Formula Name]]<>\"\",IF(AND(Table_PI[[#This Row],[Hide: Formula Name]]<>\"\",OR(Table_PI[[#This Row],[Hide: Rebate]]>0,Table_PI[[#This Row],[Hide: Rebate]]=\"No Rebate\")),TRUE,\"MI: Line Item \" & $A301),\"\")","v":""}]
[{"$f":"IF(Table_PI[[#This Row],[Hide: Formula Name]]<>\"\",MAX($A$2:A301)+1,\"\")","v":""},null,null,null,null,null,null,null,null,null,null,null,null,null,null,null,null,{"$f":"IFERROR(VLOOKUP(Table_PI[[#This Row],[Measure]],'Equipment Lookups'!$C$3:$D$23,2,FALSE),\"\")","v":""},0,{"$f":"IF(Table_PI[[#This Row],[Hide: Formula Name]]<>\"\",IFERROR(IF(AND(ISNUMBER(Table_PI[[#This Row],[Hide: Rebate]]),Table_PI[[#This Row],[Hide: Rebate]]>0), IF($S$401>=50, IF(AND(ProjectStage=\"(Installed)\",$S$401>'Customer Information'!$BC$21), 'Customer Information'!$BC$21*Table_PI[[#This Row],[Hide: Rebate]]/$S$401, IF($S$401<=300000, Table_PI[[#This Row],[Hide: Rebate]], ROUND(300000*Table_PI[[#This Row],[Hide: Rebate]]/'Project Information'!$S$401,2))), \"Does not meet $50 Minimum\"), \"No Rebate\"), \"No Rebate\"),0)","v":0},0,0,0,0,0,0,0,0,0,{"$f":"IF(Table_PI[[#This Row],[Hide: Formula Name]]<>\"\",IF(AND(Table_PI[[#This Row],[Hide: Formula Name]]<>\"\",OR(Table_PI[[#This Row],[Hide: Rebate]]>0,Table_PI[[#This Row],[Hide: Rebate]]=\"No Rebate\")),TRUE,\"MI: Line Item \" & $A302),\"\")","v":""}]
[{"$f":"IF(Table_PI[[#This Row],[Hide: Formula Name]]<>\"\",MAX($A$2:A302)+1,\"\")","v":""},null,null,null,null,null,null,null,null,null,null,null,null,null,null,null,null,{"$f":"IFERROR(VLOOKUP(Table_PI[[#This Row],[Measure]],'Equipment Lookups'!$C$3:$D$23,2,FALSE),\"\")","v":""},0,{"$f":"IF(Table_PI[[#This Row],[Hide: Formula Name]]<>\"\",IFERROR(IF(AND(ISNUMBER(Table_PI[[#This Row],[Hide: Rebate]]),Table_PI[[#This Row],[Hide: Rebate]]>0), IF($S$401>=50, IF(AND(ProjectStage=\"(Installed)\",$S$401>'Customer Information'!$BC$21), 'Customer Information'!$BC$21*Table_PI[[#This Row],[Hide: Rebate]]/$S$401, IF($S$401<=300000, Table_PI[[#This Row],[Hide: Rebate]], ROUND(300000*Table_PI[[#This Row],[Hide: Rebate]]/'Project Information'!$S$401,2))), \"Does not meet $50 Minimum\"), \"No Rebate\"), \"No Rebate\"),0)","v":0},0,0,0,0,0,0,0,0,0,{"$f":"IF(Table_PI[[#This Row],[Hide: Formula Name]]<>\"\",IF(AND(Table_PI[[#This Row],[Hide: Formula Name]]<>\"\",OR(Table_PI[[#This Row],[Hide: Rebate]]>0,Table_PI[[#This Row],[Hide: Rebate]]=\"No Rebate\")),TRUE,\"MI: Line Item \" & $A303),\"\")","v":""}]
[{"$f":"IF(Table_PI[[#This Row],[Hide: Formula Name]]<>\"\",MAX($A$2:A303)+1,\"\")","v":""},null,null,null,null,null,null,null,null,null,null,null,null,null,null,null,null,{"$f":"IFERROR(VLOOKUP(Table_PI[[#This Row],[Measure]],'Equipment Lookups'!$C$3:$D$23,2,FALSE),\"\")","v":""},0,{"$f":"IF(Table_PI[[#This Row],[Hide: Formula Name]]<>\"\",IFERROR(IF(AND(ISNUMBER(Table_PI[[#This Row],[Hide: Rebate]]),Table_PI[[#This Row],[Hide: Rebate]]>0), IF($S$401>=50, IF(AND(ProjectStage=\"(Installed)\",$S$401>'Customer Information'!$BC$21), 'Customer Information'!$BC$21*Table_PI[[#This Row],[Hide: Rebate]]/$S$401, IF($S$401<=300000, Table_PI[[#This Row],[Hide: Rebate]], ROUND(300000*Table_PI[[#This Row],[Hide: Rebate]]/'Project Information'!$S$401,2))), \"Does not meet $50 Minimum\"), \"No Rebate\"), \"No Rebate\"),0)","v":0},0,0,0,0,0,0,0,0,0,{"$f":"IF(Table_PI[[#This Row],[Hide: Formula Name]]<>\"\",IF(AND(Table_PI[[#This Row],[Hide: Formula Name]]<>\"\",OR(Table_PI[[#This Row],[Hide: Rebate]]>0,Table_PI[[#This Row],[Hide: Rebate]]=\"No Rebate\")),TRUE,\"MI: Line Item \" & $A304),\"\")","v":""}]
[{"$f":"IF(Table_PI[[#This Row],[Hide: Formula Name]]<>\"\",MAX($A$2:A304)+1,\"\")","v":""},null,null,null,null,null,null,null,null,null,null,null,null,null,null,null,null,{"$f":"IFERROR(VLOOKUP(Table_PI[[#This Row],[Measure]],'Equipment Lookups'!$C$3:$D$23,2,FALSE),\"\")","v":""},0,{"$f":"IF(Table_PI[[#This Row],[Hide: Formula Name]]<>\"\",IFERROR(IF(AND(ISNUMBER(Table_PI[[#This Row],[Hide: Rebate]]),Table_PI[[#This Row],[Hide: Rebate]]>0), IF($S$401>=50, IF(AND(ProjectStage=\"(Installed)\",$S$401>'Customer Information'!$BC$21), 'Customer Information'!$BC$21*Table_PI[[#This Row],[Hide: Rebate]]/$S$401, IF($S$401<=300000, Table_PI[[#This Row],[Hide: Rebate]], ROUND(300000*Table_PI[[#This Row],[Hide: Rebate]]/'Project Information'!$S$401,2))), \"Does not meet $50 Minimum\"), \"No Rebate\"), \"No Rebate\"),0)","v":0},0,0,0,0,0,0,0,0,0,{"$f":"IF(Table_PI[[#This Row],[Hide: Formula Name]]<>\"\",IF(AND(Table_PI[[#This Row],[Hide: Formula Name]]<>\"\",OR(Table_PI[[#This Row],[Hide: Rebate]]>0,Table_PI[[#This Row],[Hide: Rebate]]=\"No Rebate\")),TRUE,\"MI: Line Item \" & $A305),\"\")","v":""}]
[{"$f":"IF(Table_PI[[#This Row],[Hide: Formula Name]]<>\"\",MAX($A$2:A305)+1,\"\")","v":""},null,null,null,null,null,null,null,null,null,null,null,null,null,null,null,null,{"$f":"IFERROR(VLOOKUP(Table_PI[[#This Row],[Measure]],'Equipment Lookups'!$C$3:$D$23,2,FALSE),\"\")","v":""},0,{"$f":"IF(Table_PI[[#This Row],[Hide: Formula Name]]<>\"\",IFERROR(IF(AND(ISNUMBER(Table_PI[[#This Row],[Hide: Rebate]]),Table_PI[[#This Row],[Hide: Rebate]]>0), IF($S$401>=50, IF(AND(ProjectStage=\"(Installed)\",$S$401>'Customer Information'!$BC$21), 'Customer Information'!$BC$21*Table_PI[[#This Row],[Hide: Rebate]]/$S$401, IF($S$401<=300000, Table_PI[[#This Row],[Hide: Rebate]], ROUND(300000*Table_PI[[#This Row],[Hide: Rebate]]/'Project Information'!$S$401,2))), \"Does not meet $50 Minimum\"), \"No Rebate\"), \"No Rebate\"),0)","v":0},0,0,0,0,0,0,0,0,0,{"$f":"IF(Table_PI[[#This Row],[Hide: Formula Name]]<>\"\",IF(AND(Table_PI[[#This Row],[Hide: Formula Name]]<>\"\",OR(Table_PI[[#This Row],[Hide: Rebate]]>0,Table_PI[[#This Row],[Hide: Rebate]]=\"No Rebate\")),TRUE,\"MI: Line Item \" & $A306),\"\")","v":""}]
[{"$f":"IF(Table_PI[[#This Row],[Hide: Formula Name]]<>\"\",MAX($A$2:A306)+1,\"\")","v":""},null,null,null,null,null,null,null,null,null,null,null,null,null,null,null,null,{"$f":"IFERROR(VLOOKUP(Table_PI[[#This Row],[Measure]],'Equipment Lookups'!$C$3:$D$23,2,FALSE),\"\")","v":""},0,{"$f":"IF(Table_PI[[#This Row],[Hide: Formula Name]]<>\"\",IFERROR(IF(AND(ISNUMBER(Table_PI[[#This Row],[Hide: Rebate]]),Table_PI[[#This Row],[Hide: Rebate]]>0), IF($S$401>=50, IF(AND(ProjectStage=\"(Installed)\",$S$401>'Customer Information'!$BC$21), 'Customer Information'!$BC$21*Table_PI[[#This Row],[Hide: Rebate]]/$S$401, IF($S$401<=300000, Table_PI[[#This Row],[Hide: Rebate]], ROUND(300000*Table_PI[[#This Row],[Hide: Rebate]]/'Project Information'!$S$401,2))), \"Does not meet $50 Minimum\"), \"No Rebate\"), \"No Rebate\"),0)","v":0},0,0,0,0,0,0,0,0,0,{"$f":"IF(Table_PI[[#This Row],[Hide: Formula Name]]<>\"\",IF(AND(Table_PI[[#This Row],[Hide: Formula Name]]<>\"\",OR(Table_PI[[#This Row],[Hide: Rebate]]>0,Table_PI[[#This Row],[Hide: Rebate]]=\"No Rebate\")),TRUE,\"MI: Line Item \" & $A307),\"\")","v":""}]
[{"$f":"IF(Table_PI[[#This Row],[Hide: Formula Name]]<>\"\",MAX($A$2:A307)+1,\"\")","v":""},null,null,null,null,null,null,null,null,null,null,null,null,null,null,null,null,{"$f":"IFERROR(VLOOKUP(Table_PI[[#This Row],[Measure]],'Equipment Lookups'!$C$3:$D$23,2,FALSE),\"\")","v":""},0,{"$f":"IF(Table_PI[[#This Row],[Hide: Formula Name]]<>\"\",IFERROR(IF(AND(ISNUMBER(Table_PI[[#This Row],[Hide: Rebate]]),Table_PI[[#This Row],[Hide: Rebate]]>0), IF($S$401>=50, IF(AND(ProjectStage=\"(Installed)\",$S$401>'Customer Information'!$BC$21), 'Customer Information'!$BC$21*Table_PI[[#This Row],[Hide: Rebate]]/$S$401, IF($S$401<=300000, Table_PI[[#This Row],[Hide: Rebate]], ROUND(300000*Table_PI[[#This Row],[Hide: Rebate]]/'Project Information'!$S$401,2))), \"Does not meet $50 Minimum\"), \"No Rebate\"), \"No Rebate\"),0)","v":0},0,0,0,0,0,0,0,0,0,{"$f":"IF(Table_PI[[#This Row],[Hide: Formula Name]]<>\"\",IF(AND(Table_PI[[#This Row],[Hide: Formula Name]]<>\"\",OR(Table_PI[[#This Row],[Hide: Rebate]]>0,Table_PI[[#This Row],[Hide: Rebate]]=\"No Rebate\")),TRUE,\"MI: Line Item \" & $A308),\"\")","v":""}]
[{"$f":"IF(Table_PI[[#This Row],[Hide: Formula Name]]<>\"\",MAX($A$2:A308)+1,\"\")","v":""},null,null,null,null,null,null,null,null,null,null,null,null,null,null,null,null,{"$f":"IFERROR(VLOOKUP(Table_PI[[#This Row],[Measure]],'Equipment Lookups'!$C$3:$D$23,2,FALSE),\"\")","v":""},0,{"$f":"IF(Table_PI[[#This Row],[Hide: Formula Name]]<>\"\",IFERROR(IF(AND(ISNUMBER(Table_PI[[#This Row],[Hide: Rebate]]),Table_PI[[#This Row],[Hide: Rebate]]>0), IF($S$401>=50, IF(AND(ProjectStage=\"(Installed)\",$S$401>'Customer Information'!$BC$21), 'Customer Information'!$BC$21*Table_PI[[#This Row],[Hide: Rebate]]/$S$401, IF($S$401<=300000, Table_PI[[#This Row],[Hide: Rebate]], ROUND(300000*Table_PI[[#This Row],[Hide: Rebate]]/'Project Information'!$S$401,2))), \"Does not meet $50 Minimum\"), \"No Rebate\"), \"No Rebate\"),0)","v":0},0,0,0,0,0,0,0,0,0,{"$f":"IF(Table_PI[[#This Row],[Hide: Formula Name]]<>\"\",IF(AND(Table_PI[[#This Row],[Hide: Formula Name]]<>\"\",OR(Table_PI[[#This Row],[Hide: Rebate]]>0,Table_PI[[#This Row],[Hide: Rebate]]=\"No Rebate\")),TRUE,\"MI: Line Item \" & $A309),\"\")","v":""}]
[{"$f":"IF(Table_PI[[#This Row],[Hide: Formula Name]]<>\"\",MAX($A$2:A309)+1,\"\")","v":""},null,null,null,null,null,null,null,null,null,null,null,null,null,null,null,null,{"$f":"IFERROR(VLOOKUP(Table_PI[[#This Row],[Measure]],'Equipment Lookups'!$C$3:$D$23,2,FALSE),\"\")","v":""},0,{"$f":"IF(Table_PI[[#This Row],[Hide: Formula Name]]<>\"\",IFERROR(IF(AND(ISNUMBER(Table_PI[[#This Row],[Hide: Rebate]]),Table_PI[[#This Row],[Hide: Rebate]]>0), IF($S$401>=50, IF(AND(ProjectStage=\"(Installed)\",$S$401>'Customer Information'!$BC$21), 'Customer Information'!$BC$21*Table_PI[[#This Row],[Hide: Rebate]]/$S$401, IF($S$401<=300000, Table_PI[[#This Row],[Hide: Rebate]], ROUND(300000*Table_PI[[#This Row],[Hide: Rebate]]/'Project Information'!$S$401,2))), \"Does not meet $50 Minimum\"), \"No Rebate\"), \"No Rebate\"),0)","v":0},0,0,0,0,0,0,0,0,0,{"$f":"IF(Table_PI[[#This Row],[Hide: Formula Name]]<>\"\",IF(AND(Table_PI[[#This Row],[Hide: Formula Name]]<>\"\",OR(Table_PI[[#This Row],[Hide: Rebate]]>0,Table_PI[[#This Row],[Hide: Rebate]]=\"No Rebate\")),TRUE,\"MI: Line Item \" & $A310),\"\")","v":""}]
[{"$f":"IF(Table_PI[[#This Row],[Hide: Formula Name]]<>\"\",MAX($A$2:A310)+1,\"\")","v":""},null,null,null,null,null,null,null,null,null,null,null,null,null,null,null,null,{"$f":"IFERROR(VLOOKUP(Table_PI[[#This Row],[Measure]],'Equipment Lookups'!$C$3:$D$23,2,FALSE),\"\")","v":""},0,{"$f":"IF(Table_PI[[#This Row],[Hide: Formula Name]]<>\"\",IFERROR(IF(AND(ISNUMBER(Table_PI[[#This Row],[Hide: Rebate]]),Table_PI[[#This Row],[Hide: Rebate]]>0), IF($S$401>=50, IF(AND(ProjectStage=\"(Installed)\",$S$401>'Customer Information'!$BC$21), 'Customer Information'!$BC$21*Table_PI[[#This Row],[Hide: Rebate]]/$S$401, IF($S$401<=300000, Table_PI[[#This Row],[Hide: Rebate]], ROUND(300000*Table_PI[[#This Row],[Hide: Rebate]]/'Project Information'!$S$401,2))), \"Does not meet $50 Minimum\"), \"No Rebate\"), \"No Rebate\"),0)","v":0},0,0,0,0,0,0,0,0,0,{"$f":"IF(Table_PI[[#This Row],[Hide: Formula Name]]<>\"\",IF(AND(Table_PI[[#This Row],[Hide: Formula Name]]<>\"\",OR(Table_PI[[#This Row],[Hide: Rebate]]>0,Table_PI[[#This Row],[Hide: Rebate]]=\"No Rebate\")),TRUE,\"MI: Line Item \" & $A311),\"\")","v":""}]
[{"$f":"IF(Table_PI[[#This Row],[Hide: Formula Name]]<>\"\",MAX($A$2:A311)+1,\"\")","v":""},null,null,null,null,null,null,null,null,null,null,null,null,null,null,null,null,{"$f":"IFERROR(VLOOKUP(Table_PI[[#This Row],[Measure]],'Equipment Lookups'!$C$3:$D$23,2,FALSE),\"\")","v":""},0,{"$f":"IF(Table_PI[[#This Row],[Hide: Formula Name]]<>\"\",IFERROR(IF(AND(ISNUMBER(Table_PI[[#This Row],[Hide: Rebate]]),Table_PI[[#This Row],[Hide: Rebate]]>0), IF($S$401>=50, IF(AND(ProjectStage=\"(Installed)\",$S$401>'Customer Information'!$BC$21), 'Customer Information'!$BC$21*Table_PI[[#This Row],[Hide: Rebate]]/$S$401, IF($S$401<=300000, Table_PI[[#This Row],[Hide: Rebate]], ROUND(300000*Table_PI[[#This Row],[Hide: Rebate]]/'Project Information'!$S$401,2))), \"Does not meet $50 Minimum\"), \"No Rebate\"), \"No Rebate\"),0)","v":0},0,0,0,0,0,0,0,0,0,{"$f":"IF(Table_PI[[#This Row],[Hide: Formula Name]]<>\"\",IF(AND(Table_PI[[#This Row],[Hide: Formula Name]]<>\"\",OR(Table_PI[[#This Row],[Hide: Rebate]]>0,Table_PI[[#This Row],[Hide: Rebate]]=\"No Rebate\")),TRUE,\"MI: Line Item \" & $A312),\"\")","v":""}]
[{"$f":"IF(Table_PI[[#This Row],[Hide: Formula Name]]<>\"\",MAX($A$2:A312)+1,\"\")","v":""},null,null,null,null,null,null,null,null,null,null,null,null,null,null,null,null,{"$f":"IFERROR(VLOOKUP(Table_PI[[#This Row],[Measure]],'Equipment Lookups'!$C$3:$D$23,2,FALSE),\"\")","v":""},0,{"$f":"IF(Table_PI[[#This Row],[Hide: Formula Name]]<>\"\",IFERROR(IF(AND(ISNUMBER(Table_PI[[#This Row],[Hide: Rebate]]),Table_PI[[#This Row],[Hide: Rebate]]>0), IF($S$401>=50, IF(AND(ProjectStage=\"(Installed)\",$S$401>'Customer Information'!$BC$21), 'Customer Information'!$BC$21*Table_PI[[#This Row],[Hide: Rebate]]/$S$401, IF($S$401<=300000, Table_PI[[#This Row],[Hide: Rebate]], ROUND(300000*Table_PI[[#This Row],[Hide: Rebate]]/'Project Information'!$S$401,2))), \"Does not meet $50 Minimum\"), \"No Rebate\"), \"No Rebate\"),0)","v":0},0,0,0,0,0,0,0,0,0,{"$f":"IF(Table_PI[[#This Row],[Hide: Formula Name]]<>\"\",IF(AND(Table_PI[[#This Row],[Hide: Formula Name]]<>\"\",OR(Table_PI[[#This Row],[Hide: Rebate]]>0,Table_PI[[#This Row],[Hide: Rebate]]=\"No Rebate\")),TRUE,\"MI: Line Item \" & $A313),\"\")","v":""}]
[{"$f":"IF(Table_PI[[#This Row],[Hide: Formula Name]]<>\"\",MAX($A$2:A313)+1,\"\")","v":""},null,null,null,null,null,null,null,null,null,null,null,null,null,null,null,null,{"$f":"IFERROR(VLOOKUP(Table_PI[[#This Row],[Measure]],'Equipment Lookups'!$C$3:$D$23,2,FALSE),\"\")","v":""},0,{"$f":"IF(Table_PI[[#This Row],[Hide: Formula Name]]<>\"\",IFERROR(IF(AND(ISNUMBER(Table_PI[[#This Row],[Hide: Rebate]]),Table_PI[[#This Row],[Hide: Rebate]]>0), IF($S$401>=50, IF(AND(ProjectStage=\"(Installed)\",$S$401>'Customer Information'!$BC$21), 'Customer Information'!$BC$21*Table_PI[[#This Row],[Hide: Rebate]]/$S$401, IF($S$401<=300000, Table_PI[[#This Row],[Hide: Rebate]], ROUND(300000*Table_PI[[#This Row],[Hide: Rebate]]/'Project Information'!$S$401,2))), \"Does not meet $50 Minimum\"), \"No Rebate\"), \"No Rebate\"),0)","v":0},0,0,0,0,0,0,0,0,0,{"$f":"IF(Table_PI[[#This Row],[Hide: Formula Name]]<>\"\",IF(AND(Table_PI[[#This Row],[Hide: Formula Name]]<>\"\",OR(Table_PI[[#This Row],[Hide: Rebate]]>0,Table_PI[[#This Row],[Hide: Rebate]]=\"No Rebate\")),TRUE,\"MI: Line Item \" & $A314),\"\")","v":""}]
[{"$f":"IF(Table_PI[[#This Row],[Hide: Formula Name]]<>\"\",MAX($A$2:A314)+1,\"\")","v":""},null,null,null,null,null,null,null,null,null,null,null,null,null,null,null,null,{"$f":"IFERROR(VLOOKUP(Table_PI[[#This Row],[Measure]],'Equipment Lookups'!$C$3:$D$23,2,FALSE),\"\")","v":""},0,{"$f":"IF(Table_PI[[#This Row],[Hide: Formula Name]]<>\"\",IFERROR(IF(AND(ISNUMBER(Table_PI[[#This Row],[Hide: Rebate]]),Table_PI[[#This Row],[Hide: Rebate]]>0), IF($S$401>=50, IF(AND(ProjectStage=\"(Installed)\",$S$401>'Customer Information'!$BC$21), 'Customer Information'!$BC$21*Table_PI[[#This Row],[Hide: Rebate]]/$S$401, IF($S$401<=300000, Table_PI[[#This Row],[Hide: Rebate]], ROUND(300000*Table_PI[[#This Row],[Hide: Rebate]]/'Project Information'!$S$401,2))), \"Does not meet $50 Minimum\"), \"No Rebate\"), \"No Rebate\"),0)","v":0},0,0,0,0,0,0,0,0,0,{"$f":"IF(Table_PI[[#This Row],[Hide: Formula Name]]<>\"\",IF(AND(Table_PI[[#This Row],[Hide: Formula Name]]<>\"\",OR(Table_PI[[#This Row],[Hide: Rebate]]>0,Table_PI[[#This Row],[Hide: Rebate]]=\"No Rebate\")),TRUE,\"MI: Line Item \" & $A315),\"\")","v":""}]
[{"$f":"IF(Table_PI[[#This Row],[Hide: Formula Name]]<>\"\",MAX($A$2:A315)+1,\"\")","v":""},null,null,null,null,null,null,null,null,null,null,null,null,null,null,null,null,{"$f":"IFERROR(VLOOKUP(Table_PI[[#This Row],[Measure]],'Equipment Lookups'!$C$3:$D$23,2,FALSE),\"\")","v":""},0,{"$f":"IF(Table_PI[[#This Row],[Hide: Formula Name]]<>\"\",IFERROR(IF(AND(ISNUMBER(Table_PI[[#This Row],[Hide: Rebate]]),Table_PI[[#This Row],[Hide: Rebate]]>0), IF($S$401>=50, IF(AND(ProjectStage=\"(Installed)\",$S$401>'Customer Information'!$BC$21), 'Customer Information'!$BC$21*Table_PI[[#This Row],[Hide: Rebate]]/$S$401, IF($S$401<=300000, Table_PI[[#This Row],[Hide: Rebate]], ROUND(300000*Table_PI[[#This Row],[Hide: Rebate]]/'Project Information'!$S$401,2))), \"Does not meet $50 Minimum\"), \"No Rebate\"), \"No Rebate\"),0)","v":0},0,0,0,0,0,0,0,0,0,{"$f":"IF(Table_PI[[#This Row],[Hide: Formula Name]]<>\"\",IF(AND(Table_PI[[#This Row],[Hide: Formula Name]]<>\"\",OR(Table_PI[[#This Row],[Hide: Rebate]]>0,Table_PI[[#This Row],[Hide: Rebate]]=\"No Rebate\")),TRUE,\"MI: Line Item \" & $A316),\"\")","v":""}]
[{"$f":"IF(Table_PI[[#This Row],[Hide: Formula Name]]<>\"\",MAX($A$2:A316)+1,\"\")","v":""},null,null,null,null,null,null,null,null,null,null,null,null,null,null,null,null,{"$f":"IFERROR(VLOOKUP(Table_PI[[#This Row],[Measure]],'Equipment Lookups'!$C$3:$D$23,2,FALSE),\"\")","v":""},0,{"$f":"IF(Table_PI[[#This Row],[Hide: Formula Name]]<>\"\",IFERROR(IF(AND(ISNUMBER(Table_PI[[#This Row],[Hide: Rebate]]),Table_PI[[#This Row],[Hide: Rebate]]>0), IF($S$401>=50, IF(AND(ProjectStage=\"(Installed)\",$S$401>'Customer Information'!$BC$21), 'Customer Information'!$BC$21*Table_PI[[#This Row],[Hide: Rebate]]/$S$401, IF($S$401<=300000, Table_PI[[#This Row],[Hide: Rebate]], ROUND(300000*Table_PI[[#This Row],[Hide: Rebate]]/'Project Information'!$S$401,2))), \"Does not meet $50 Minimum\"), \"No Rebate\"), \"No Rebate\"),0)","v":0},0,0,0,0,0,0,0,0,0,{"$f":"IF(Table_PI[[#This Row],[Hide: Formula Name]]<>\"\",IF(AND(Table_PI[[#This Row],[Hide: Formula Name]]<>\"\",OR(Table_PI[[#This Row],[Hide: Rebate]]>0,Table_PI[[#This Row],[Hide: Rebate]]=\"No Rebate\")),TRUE,\"MI: Line Item \" & $A317),\"\")","v":""}]
[{"$f":"IF(Table_PI[[#This Row],[Hide: Formula Name]]<>\"\",MAX($A$2:A317)+1,\"\")","v":""},null,null,null,null,null,null,null,null,null,null,null,null,null,null,null,null,{"$f":"IFERROR(VLOOKUP(Table_PI[[#This Row],[Measure]],'Equipment Lookups'!$C$3:$D$23,2,FALSE),\"\")","v":""},0,{"$f":"IF(Table_PI[[#This Row],[Hide: Formula Name]]<>\"\",IFERROR(IF(AND(ISNUMBER(Table_PI[[#This Row],[Hide: Rebate]]),Table_PI[[#This Row],[Hide: Rebate]]>0), IF($S$401>=50, IF(AND(ProjectStage=\"(Installed)\",$S$401>'Customer Information'!$BC$21), 'Customer Information'!$BC$21*Table_PI[[#This Row],[Hide: Rebate]]/$S$401, IF($S$401<=300000, Table_PI[[#This Row],[Hide: Rebate]], ROUND(300000*Table_PI[[#This Row],[Hide: Rebate]]/'Project Information'!$S$401,2))), \"Does not meet $50 Minimum\"), \"No Rebate\"), \"No Rebate\"),0)","v":0},0,0,0,0,0,0,0,0,0,{"$f":"IF(Table_PI[[#This Row],[Hide: Formula Name]]<>\"\",IF(AND(Table_PI[[#This Row],[Hide: Formula Name]]<>\"\",OR(Table_PI[[#This Row],[Hide: Rebate]]>0,Table_PI[[#This Row],[Hide: Rebate]]=\"No Rebate\")),TRUE,\"MI: Line Item \" & $A318),\"\")","v":""}]
[{"$f":"IF(Table_PI[[#This Row],[Hide: Formula Name]]<>\"\",MAX($A$2:A318)+1,\"\")","v":""},null,null,null,null,null,null,null,null,null,null,null,null,null,null,null,null,{"$f":"IFERROR(VLOOKUP(Table_PI[[#This Row],[Measure]],'Equipment Lookups'!$C$3:$D$23,2,FALSE),\"\")","v":""},0,{"$f":"IF(Table_PI[[#This Row],[Hide: Formula Name]]<>\"\",IFERROR(IF(AND(ISNUMBER(Table_PI[[#This Row],[Hide: Rebate]]),Table_PI[[#This Row],[Hide: Rebate]]>0), IF($S$401>=50, IF(AND(ProjectStage=\"(Installed)\",$S$401>'Customer Information'!$BC$21), 'Customer Information'!$BC$21*Table_PI[[#This Row],[Hide: Rebate]]/$S$401, IF($S$401<=300000, Table_PI[[#This Row],[Hide: Rebate]], ROUND(300000*Table_PI[[#This Row],[Hide: Rebate]]/'Project Information'!$S$401,2))), \"Does not meet $50 Minimum\"), \"No Rebate\"), \"No Rebate\"),0)","v":0},0,0,0,0,0,0,0,0,0,{"$f":"IF(Table_PI[[#This Row],[Hide: Formula Name]]<>\"\",IF(AND(Table_PI[[#This Row],[Hide: Formula Name]]<>\"\",OR(Table_PI[[#This Row],[Hide: Rebate]]>0,Table_PI[[#This Row],[Hide: Rebate]]=\"No Rebate\")),TRUE,\"MI: Line Item \" & $A319),\"\")","v":""}]
[{"$f":"IF(Table_PI[[#This Row],[Hide: Formula Name]]<>\"\",MAX($A$2:A319)+1,\"\")","v":""},null,null,null,null,null,null,null,null,null,null,null,null,null,null,null,null,{"$f":"IFERROR(VLOOKUP(Table_PI[[#This Row],[Measure]],'Equipment Lookups'!$C$3:$D$23,2,FALSE),\"\")","v":""},0,{"$f":"IF(Table_PI[[#This Row],[Hide: Formula Name]]<>\"\",IFERROR(IF(AND(ISNUMBER(Table_PI[[#This Row],[Hide: Rebate]]),Table_PI[[#This Row],[Hide: Rebate]]>0), IF($S$401>=50, IF(AND(ProjectStage=\"(Installed)\",$S$401>'Customer Information'!$BC$21), 'Customer Information'!$BC$21*Table_PI[[#This Row],[Hide: Rebate]]/$S$401, IF($S$401<=300000, Table_PI[[#This Row],[Hide: Rebate]], ROUND(300000*Table_PI[[#This Row],[Hide: Rebate]]/'Project Information'!$S$401,2))), \"Does not meet $50 Minimum\"), \"No Rebate\"), \"No Rebate\"),0)","v":0},0,0,0,0,0,0,0,0,0,{"$f":"IF(Table_PI[[#This Row],[Hide: Formula Name]]<>\"\",IF(AND(Table_PI[[#This Row],[Hide: Formula Name]]<>\"\",OR(Table_PI[[#This Row],[Hide: Rebate]]>0,Table_PI[[#This Row],[Hide: Rebate]]=\"No Rebate\")),TRUE,\"MI: Line Item \" & $A320),\"\")","v":""}]
[{"$f":"IF(Table_PI[[#This Row],[Hide: Formula Name]]<>\"\",MAX($A$2:A320)+1,\"\")","v":""},null,null,null,null,null,null,null,null,null,null,null,null,null,null,null,null,{"$f":"IFERROR(VLOOKUP(Table_PI[[#This Row],[Measure]],'Equipment Lookups'!$C$3:$D$23,2,FALSE),\"\")","v":""},0,{"$f":"IF(Table_PI[[#This Row],[Hide: Formula Name]]<>\"\",IFERROR(IF(AND(ISNUMBER(Table_PI[[#This Row],[Hide: Rebate]]),Table_PI[[#This Row],[Hide: Rebate]]>0), IF($S$401>=50, IF(AND(ProjectStage=\"(Installed)\",$S$401>'Customer Information'!$BC$21), 'Customer Information'!$BC$21*Table_PI[[#This Row],[Hide: Rebate]]/$S$401, IF($S$401<=300000, Table_PI[[#This Row],[Hide: Rebate]], ROUND(300000*Table_PI[[#This Row],[Hide: Rebate]]/'Project Information'!$S$401,2))), \"Does not meet $50 Minimum\"), \"No Rebate\"), \"No Rebate\"),0)","v":0},0,0,0,0,0,0,0,0,0,{"$f":"IF(Table_PI[[#This Row],[Hide: Formula Name]]<>\"\",IF(AND(Table_PI[[#This Row],[Hide: Formula Name]]<>\"\",OR(Table_PI[[#This Row],[Hide: Rebate]]>0,Table_PI[[#This Row],[Hide: Rebate]]=\"No Rebate\")),TRUE,\"MI: Line Item \" & $A321),\"\")","v":""}]
[{"$f":"IF(Table_PI[[#This Row],[Hide: Formula Name]]<>\"\",MAX($A$2:A321)+1,\"\")","v":""},null,null,null,null,null,null,null,null,null,null,null,null,null,null,null,null,{"$f":"IFERROR(VLOOKUP(Table_PI[[#This Row],[Measure]],'Equipment Lookups'!$C$3:$D$23,2,FALSE),\"\")","v":""},0,{"$f":"IF(Table_PI[[#This Row],[Hide: Formula Name]]<>\"\",IFERROR(IF(AND(ISNUMBER(Table_PI[[#This Row],[Hide: Rebate]]),Table_PI[[#This Row],[Hide: Rebate]]>0), IF($S$401>=50, IF(AND(ProjectStage=\"(Installed)\",$S$401>'Customer Information'!$BC$21), 'Customer Information'!$BC$21*Table_PI[[#This Row],[Hide: Rebate]]/$S$401, IF($S$401<=300000, Table_PI[[#This Row],[Hide: Rebate]], ROUND(300000*Table_PI[[#This Row],[Hide: Rebate]]/'Project Information'!$S$401,2))), \"Does not meet $50 Minimum\"), \"No Rebate\"), \"No Rebate\"),0)","v":0},0,0,0,0,0,0,0,0,0,{"$f":"IF(Table_PI[[#This Row],[Hide: Formula Name]]<>\"\",IF(AND(Table_PI[[#This Row],[Hide: Formula Name]]<>\"\",OR(Table_PI[[#This Row],[Hide: Rebate]]>0,Table_PI[[#This Row],[Hide: Rebate]]=\"No Rebate\")),TRUE,\"MI: Line Item \" & $A322),\"\")","v":""}]
[{"$f":"IF(Table_PI[[#This Row],[Hide: Formula Name]]<>\"\",MAX($A$2:A322)+1,\"\")","v":""},null,null,null,null,null,null,null,null,null,null,null,null,null,null,null,null,{"$f":"IFERROR(VLOOKUP(Table_PI[[#This Row],[Measure]],'Equipment Lookups'!$C$3:$D$23,2,FALSE),\"\")","v":""},0,{"$f":"IF(Table_PI[[#This Row],[Hide: Formula Name]]<>\"\",IFERROR(IF(AND(ISNUMBER(Table_PI[[#This Row],[Hide: Rebate]]),Table_PI[[#This Row],[Hide: Rebate]]>0), IF($S$401>=50, IF(AND(ProjectStage=\"(Installed)\",$S$401>'Customer Information'!$BC$21), 'Customer Information'!$BC$21*Table_PI[[#This Row],[Hide: Rebate]]/$S$401, IF($S$401<=300000, Table_PI[[#This Row],[Hide: Rebate]], ROUND(300000*Table_PI[[#This Row],[Hide: Rebate]]/'Project Information'!$S$401,2))), \"Does not meet $50 Minimum\"), \"No Rebate\"), \"No Rebate\"),0)","v":0},0,0,0,0,0,0,0,0,0,{"$f":"IF(Table_PI[[#This Row],[Hide: Formula Name]]<>\"\",IF(AND(Table_PI[[#This Row],[Hide: Formula Name]]<>\"\",OR(Table_PI[[#This Row],[Hide: Rebate]]>0,Table_PI[[#This Row],[Hide: Rebate]]=\"No Rebate\")),TRUE,\"MI: Line Item \" & $A323),\"\")","v":""}]
[{"$f":"IF(Table_PI[[#This Row],[Hide: Formula Name]]<>\"\",MAX($A$2:A323)+1,\"\")","v":""},null,null,null,null,null,null,null,null,null,null,null,null,null,null,null,null,{"$f":"IFERROR(VLOOKUP(Table_PI[[#This Row],[Measure]],'Equipment Lookups'!$C$3:$D$23,2,FALSE),\"\")","v":""},0,{"$f":"IF(Table_PI[[#This Row],[Hide: Formula Name]]<>\"\",IFERROR(IF(AND(ISNUMBER(Table_PI[[#This Row],[Hide: Rebate]]),Table_PI[[#This Row],[Hide: Rebate]]>0), IF($S$401>=50, IF(AND(ProjectStage=\"(Installed)\",$S$401>'Customer Information'!$BC$21), 'Customer Information'!$BC$21*Table_PI[[#This Row],[Hide: Rebate]]/$S$401, IF($S$401<=300000, Table_PI[[#This Row],[Hide: Rebate]], ROUND(300000*Table_PI[[#This Row],[Hide: Rebate]]/'Project Information'!$S$401,2))), \"Does not meet $50 Minimum\"), \"No Rebate\"), \"No Rebate\"),0)","v":0},0,0,0,0,0,0,0,0,0,{"$f":"IF(Table_PI[[#This Row],[Hide: Formula Name]]<>\"\",IF(AND(Table_PI[[#This Row],[Hide: Formula Name]]<>\"\",OR(Table_PI[[#This Row],[Hide: Rebate]]>0,Table_PI[[#This Row],[Hide: Rebate]]=\"No Rebate\")),TRUE,\"MI: Line Item \" & $A324),\"\")","v":""}]
[{"$f":"IF(Table_PI[[#This Row],[Hide: Formula Name]]<>\"\",MAX($A$2:A324)+1,\"\")","v":""},null,null,null,null,null,null,null,null,null,null,null,null,null,null,null,null,{"$f":"IFERROR(VLOOKUP(Table_PI[[#This Row],[Measure]],'Equipment Lookups'!$C$3:$D$23,2,FALSE),\"\")","v":""},0,{"$f":"IF(Table_PI[[#This Row],[Hide: Formula Name]]<>\"\",IFERROR(IF(AND(ISNUMBER(Table_PI[[#This Row],[Hide: Rebate]]),Table_PI[[#This Row],[Hide: Rebate]]>0), IF($S$401>=50, IF(AND(ProjectStage=\"(Installed)\",$S$401>'Customer Information'!$BC$21), 'Customer Information'!$BC$21*Table_PI[[#This Row],[Hide: Rebate]]/$S$401, IF($S$401<=300000, Table_PI[[#This Row],[Hide: Rebate]], ROUND(300000*Table_PI[[#This Row],[Hide: Rebate]]/'Project Information'!$S$401,2))), \"Does not meet $50 Minimum\"), \"No Rebate\"), \"No Rebate\"),0)","v":0},0,0,0,0,0,0,0,0,0,{"$f":"IF(Table_PI[[#This Row],[Hide: Formula Name]]<>\"\",IF(AND(Table_PI[[#This Row],[Hide: Formula Name]]<>\"\",OR(Table_PI[[#This Row],[Hide: Rebate]]>0,Table_PI[[#This Row],[Hide: Rebate]]=\"No Rebate\")),TRUE,\"MI: Line Item \" & $A325),\"\")","v":""}]
[{"$f":"IF(Table_PI[[#This Row],[Hide: Formula Name]]<>\"\",MAX($A$2:A325)+1,\"\")","v":""},null,null,null,null,null,null,null,null,null,null,null,null,null,null,null,null,{"$f":"IFERROR(VLOOKUP(Table_PI[[#This Row],[Measure]],'Equipment Lookups'!$C$3:$D$23,2,FALSE),\"\")","v":""},0,{"$f":"IF(Table_PI[[#This Row],[Hide: Formula Name]]<>\"\",IFERROR(IF(AND(ISNUMBER(Table_PI[[#This Row],[Hide: Rebate]]),Table_PI[[#This Row],[Hide: Rebate]]>0), IF($S$401>=50, IF(AND(ProjectStage=\"(Installed)\",$S$401>'Customer Information'!$BC$21), 'Customer Information'!$BC$21*Table_PI[[#This Row],[Hide: Rebate]]/$S$401, IF($S$401<=300000, Table_PI[[#This Row],[Hide: Rebate]], ROUND(300000*Table_PI[[#This Row],[Hide: Rebate]]/'Project Information'!$S$401,2))), \"Does not meet $50 Minimum\"), \"No Rebate\"), \"No Rebate\"),0)","v":0},0,0,0,0,0,0,0,0,0,{"$f":"IF(Table_PI[[#This Row],[Hide: Formula Name]]<>\"\",IF(AND(Table_PI[[#This Row],[Hide: Formula Name]]<>\"\",OR(Table_PI[[#This Row],[Hide: Rebate]]>0,Table_PI[[#This Row],[Hide: Rebate]]=\"No Rebate\")),TRUE,\"MI: Line Item \" & $A326),\"\")","v":""}]
[{"$f":"IF(Table_PI[[#This Row],[Hide: Formula Name]]<>\"\",MAX($A$2:A326)+1,\"\")","v":""},null,null,null,null,null,null,null,null,null,null,null,null,null,null,null,null,{"$f":"IFERROR(VLOOKUP(Table_PI[[#This Row],[Measure]],'Equipment Lookups'!$C$3:$D$23,2,FALSE),\"\")","v":""},0,{"$f":"IF(Table_PI[[#This Row],[Hide: Formula Name]]<>\"\",IFERROR(IF(AND(ISNUMBER(Table_PI[[#This Row],[Hide: Rebate]]),Table_PI[[#This Row],[Hide: Rebate]]>0), IF($S$401>=50, IF(AND(ProjectStage=\"(Installed)\",$S$401>'Customer Information'!$BC$21), 'Customer Information'!$BC$21*Table_PI[[#This Row],[Hide: Rebate]]/$S$401, IF($S$401<=300000, Table_PI[[#This Row],[Hide: Rebate]], ROUND(300000*Table_PI[[#This Row],[Hide: Rebate]]/'Project Information'!$S$401,2))), \"Does not meet $50 Minimum\"), \"No Rebate\"), \"No Rebate\"),0)","v":0},0,0,0,0,0,0,0,0,0,{"$f":"IF(Table_PI[[#This Row],[Hide: Formula Name]]<>\"\",IF(AND(Table_PI[[#This Row],[Hide: Formula Name]]<>\"\",OR(Table_PI[[#This Row],[Hide: Rebate]]>0,Table_PI[[#This Row],[Hide: Rebate]]=\"No Rebate\")),TRUE,\"MI: Line Item \" & $A327),\"\")","v":""}]
[{"$f":"IF(Table_PI[[#This Row],[Hide: Formula Name]]<>\"\",MAX($A$2:A327)+1,\"\")","v":""},null,null,null,null,null,null,null,null,null,null,null,null,null,null,null,null,{"$f":"IFERROR(VLOOKUP(Table_PI[[#This Row],[Measure]],'Equipment Lookups'!$C$3:$D$23,2,FALSE),\"\")","v":""},0,{"$f":"IF(Table_PI[[#This Row],[Hide: Formula Name]]<>\"\",IFERROR(IF(AND(ISNUMBER(Table_PI[[#This Row],[Hide: Rebate]]),Table_PI[[#This Row],[Hide: Rebate]]>0), IF($S$401>=50, IF(AND(ProjectStage=\"(Installed)\",$S$401>'Customer Information'!$BC$21), 'Customer Information'!$BC$21*Table_PI[[#This Row],[Hide: Rebate]]/$S$401, IF($S$401<=300000, Table_PI[[#This Row],[Hide: Rebate]], ROUND(300000*Table_PI[[#This Row],[Hide: Rebate]]/'Project Information'!$S$401,2))), \"Does not meet $50 Minimum\"), \"No Rebate\"), \"No Rebate\"),0)","v":0},0,0,0,0,0,0,0,0,0,{"$f":"IF(Table_PI[[#This Row],[Hide: Formula Name]]<>\"\",IF(AND(Table_PI[[#This Row],[Hide: Formula Name]]<>\"\",OR(Table_PI[[#This Row],[Hide: Rebate]]>0,Table_PI[[#This Row],[Hide: Rebate]]=\"No Rebate\")),TRUE,\"MI: Line Item \" & $A328),\"\")","v":""}]
[{"$f":"IF(Table_PI[[#This Row],[Hide: Formula Name]]<>\"\",MAX($A$2:A328)+1,\"\")","v":""},null,null,null,null,null,null,null,null,null,null,null,null,null,null,null,null,{"$f":"IFERROR(VLOOKUP(Table_PI[[#This Row],[Measure]],'Equipment Lookups'!$C$3:$D$23,2,FALSE),\"\")","v":""},0,{"$f":"IF(Table_PI[[#This Row],[Hide: Formula Name]]<>\"\",IFERROR(IF(AND(ISNUMBER(Table_PI[[#This Row],[Hide: Rebate]]),Table_PI[[#This Row],[Hide: Rebate]]>0), IF($S$401>=50, IF(AND(ProjectStage=\"(Installed)\",$S$401>'Customer Information'!$BC$21), 'Customer Information'!$BC$21*Table_PI[[#This Row],[Hide: Rebate]]/$S$401, IF($S$401<=300000, Table_PI[[#This Row],[Hide: Rebate]], ROUND(300000*Table_PI[[#This Row],[Hide: Rebate]]/'Project Information'!$S$401,2))), \"Does not meet $50 Minimum\"), \"No Rebate\"), \"No Rebate\"),0)","v":0},0,0,0,0,0,0,0,0,0,{"$f":"IF(Table_PI[[#This Row],[Hide: Formula Name]]<>\"\",IF(AND(Table_PI[[#This Row],[Hide: Formula Name]]<>\"\",OR(Table_PI[[#This Row],[Hide: Rebate]]>0,Table_PI[[#This Row],[Hide: Rebate]]=\"No Rebate\")),TRUE,\"MI: Line Item \" & $A329),\"\")","v":""}]
[{"$f":"IF(Table_PI[[#This Row],[Hide: Formula Name]]<>\"\",MAX($A$2:A329)+1,\"\")","v":""},null,null,null,null,null,null,null,null,null,null,null,null,null,null,null,null,{"$f":"IFERROR(VLOOKUP(Table_PI[[#This Row],[Measure]],'Equipment Lookups'!$C$3:$D$23,2,FALSE),\"\")","v":""},0,{"$f":"IF(Table_PI[[#This Row],[Hide: Formula Name]]<>\"\",IFERROR(IF(AND(ISNUMBER(Table_PI[[#This Row],[Hide: Rebate]]),Table_PI[[#This Row],[Hide: Rebate]]>0), IF($S$401>=50, IF(AND(ProjectStage=\"(Installed)\",$S$401>'Customer Information'!$BC$21), 'Customer Information'!$BC$21*Table_PI[[#This Row],[Hide: Rebate]]/$S$401, IF($S$401<=300000, Table_PI[[#This Row],[Hide: Rebate]], ROUND(300000*Table_PI[[#This Row],[Hide: Rebate]]/'Project Information'!$S$401,2))), \"Does not meet $50 Minimum\"), \"No Rebate\"), \"No Rebate\"),0)","v":0},0,0,0,0,0,0,0,0,0,{"$f":"IF(Table_PI[[#This Row],[Hide: Formula Name]]<>\"\",IF(AND(Table_PI[[#This Row],[Hide: Formula Name]]<>\"\",OR(Table_PI[[#This Row],[Hide: Rebate]]>0,Table_PI[[#This Row],[Hide: Rebate]]=\"No Rebate\")),TRUE,\"MI: Line Item \" & $A330),\"\")","v":""}]
[{"$f":"IF(Table_PI[[#This Row],[Hide: Formula Name]]<>\"\",MAX($A$2:A330)+1,\"\")","v":""},null,null,null,null,null,null,null,null,null,null,null,null,null,null,null,null,{"$f":"IFERROR(VLOOKUP(Table_PI[[#This Row],[Measure]],'Equipment Lookups'!$C$3:$D$23,2,FALSE),\"\")","v":""},0,{"$f":"IF(Table_PI[[#This Row],[Hide: Formula Name]]<>\"\",IFERROR(IF(AND(ISNUMBER(Table_PI[[#This Row],[Hide: Rebate]]),Table_PI[[#This Row],[Hide: Rebate]]>0), IF($S$401>=50, IF(AND(ProjectStage=\"(Installed)\",$S$401>'Customer Information'!$BC$21), 'Customer Information'!$BC$21*Table_PI[[#This Row],[Hide: Rebate]]/$S$401, IF($S$401<=300000, Table_PI[[#This Row],[Hide: Rebate]], ROUND(300000*Table_PI[[#This Row],[Hide: Rebate]]/'Project Information'!$S$401,2))), \"Does not meet $50 Minimum\"), \"No Rebate\"), \"No Rebate\"),0)","v":0},0,0,0,0,0,0,0,0,0,{"$f":"IF(Table_PI[[#This Row],[Hide: Formula Name]]<>\"\",IF(AND(Table_PI[[#This Row],[Hide: Formula Name]]<>\"\",OR(Table_PI[[#This Row],[Hide: Rebate]]>0,Table_PI[[#This Row],[Hide: Rebate]]=\"No Rebate\")),TRUE,\"MI: Line Item \" & $A331),\"\")","v":""}]
[{"$f":"IF(Table_PI[[#This Row],[Hide: Formula Name]]<>\"\",MAX($A$2:A331)+1,\"\")","v":""},null,null,null,null,null,null,null,null,null,null,null,null,null,null,null,null,{"$f":"IFERROR(VLOOKUP(Table_PI[[#This Row],[Measure]],'Equipment Lookups'!$C$3:$D$23,2,FALSE),\"\")","v":""},0,{"$f":"IF(Table_PI[[#This Row],[Hide: Formula Name]]<>\"\",IFERROR(IF(AND(ISNUMBER(Table_PI[[#This Row],[Hide: Rebate]]),Table_PI[[#This Row],[Hide: Rebate]]>0), IF($S$401>=50, IF(AND(ProjectStage=\"(Installed)\",$S$401>'Customer Information'!$BC$21), 'Customer Information'!$BC$21*Table_PI[[#This Row],[Hide: Rebate]]/$S$401, IF($S$401<=300000, Table_PI[[#This Row],[Hide: Rebate]], ROUND(300000*Table_PI[[#This Row],[Hide: Rebate]]/'Project Information'!$S$401,2))), \"Does not meet $50 Minimum\"), \"No Rebate\"), \"No Rebate\"),0)","v":0},0,0,0,0,0,0,0,0,0,{"$f":"IF(Table_PI[[#This Row],[Hide: Formula Name]]<>\"\",IF(AND(Table_PI[[#This Row],[Hide: Formula Name]]<>\"\",OR(Table_PI[[#This Row],[Hide: Rebate]]>0,Table_PI[[#This Row],[Hide: Rebate]]=\"No Rebate\")),TRUE,\"MI: Line Item \" & $A332),\"\")","v":""}]
[{"$f":"IF(Table_PI[[#This Row],[Hide: Formula Name]]<>\"\",MAX($A$2:A332)+1,\"\")","v":""},null,null,null,null,null,null,null,null,null,null,null,null,null,null,null,null,{"$f":"IFERROR(VLOOKUP(Table_PI[[#This Row],[Measure]],'Equipment Lookups'!$C$3:$D$23,2,FALSE),\"\")","v":""},0,{"$f":"IF(Table_PI[[#This Row],[Hide: Formula Name]]<>\"\",IFERROR(IF(AND(ISNUMBER(Table_PI[[#This Row],[Hide: Rebate]]),Table_PI[[#This Row],[Hide: Rebate]]>0), IF($S$401>=50, IF(AND(ProjectStage=\"(Installed)\",$S$401>'Customer Information'!$BC$21), 'Customer Information'!$BC$21*Table_PI[[#This Row],[Hide: Rebate]]/$S$401, IF($S$401<=300000, Table_PI[[#This Row],[Hide: Rebate]], ROUND(300000*Table_PI[[#This Row],[Hide: Rebate]]/'Project Information'!$S$401,2))), \"Does not meet $50 Minimum\"), \"No Rebate\"), \"No Rebate\"),0)","v":0},0,0,0,0,0,0,0,0,0,{"$f":"IF(Table_PI[[#This Row],[Hide: Formula Name]]<>\"\",IF(AND(Table_PI[[#This Row],[Hide: Formula Name]]<>\"\",OR(Table_PI[[#This Row],[Hide: Rebate]]>0,Table_PI[[#This Row],[Hide: Rebate]]=\"No Rebate\")),TRUE,\"MI: Line Item \" & $A333),\"\")","v":""}]
[{"$f":"IF(Table_PI[[#This Row],[Hide: Formula Name]]<>\"\",MAX($A$2:A333)+1,\"\")","v":""},null,null,null,null,null,null,null,null,null,null,null,null,null,null,null,null,{"$f":"IFERROR(VLOOKUP(Table_PI[[#This Row],[Measure]],'Equipment Lookups'!$C$3:$D$23,2,FALSE),\"\")","v":""},0,{"$f":"IF(Table_PI[[#This Row],[Hide: Formula Name]]<>\"\",IFERROR(IF(AND(ISNUMBER(Table_PI[[#This Row],[Hide: Rebate]]),Table_PI[[#This Row],[Hide: Rebate]]>0), IF($S$401>=50, IF(AND(ProjectStage=\"(Installed)\",$S$401>'Customer Information'!$BC$21), 'Customer Information'!$BC$21*Table_PI[[#This Row],[Hide: Rebate]]/$S$401, IF($S$401<=300000, Table_PI[[#This Row],[Hide: Rebate]], ROUND(300000*Table_PI[[#This Row],[Hide: Rebate]]/'Project Information'!$S$401,2))), \"Does not meet $50 Minimum\"), \"No Rebate\"), \"No Rebate\"),0)","v":0},0,0,0,0,0,0,0,0,0,{"$f":"IF(Table_PI[[#This Row],[Hide: Formula Name]]<>\"\",IF(AND(Table_PI[[#This Row],[Hide: Formula Name]]<>\"\",OR(Table_PI[[#This Row],[Hide: Rebate]]>0,Table_PI[[#This Row],[Hide: Rebate]]=\"No Rebate\")),TRUE,\"MI: Line Item \" & $A334),\"\")","v":""}]
[{"$f":"IF(Table_PI[[#This Row],[Hide: Formula Name]]<>\"\",MAX($A$2:A334)+1,\"\")","v":""},null,null,null,null,null,null,null,null,null,null,null,null,null,null,null,null,{"$f":"IFERROR(VLOOKUP(Table_PI[[#This Row],[Measure]],'Equipment Lookups'!$C$3:$D$23,2,FALSE),\"\")","v":""},0,{"$f":"IF(Table_PI[[#This Row],[Hide: Formula Name]]<>\"\",IFERROR(IF(AND(ISNUMBER(Table_PI[[#This Row],[Hide: Rebate]]),Table_PI[[#This Row],[Hide: Rebate]]>0), IF($S$401>=50, IF(AND(ProjectStage=\"(Installed)\",$S$401>'Customer Information'!$BC$21), 'Customer Information'!$BC$21*Table_PI[[#This Row],[Hide: Rebate]]/$S$401, IF($S$401<=300000, Table_PI[[#This Row],[Hide: Rebate]], ROUND(300000*Table_PI[[#This Row],[Hide: Rebate]]/'Project Information'!$S$401,2))), \"Does not meet $50 Minimum\"), \"No Rebate\"), \"No Rebate\"),0)","v":0},0,0,0,0,0,0,0,0,0,{"$f":"IF(Table_PI[[#This Row],[Hide: Formula Name]]<>\"\",IF(AND(Table_PI[[#This Row],[Hide: Formula Name]]<>\"\",OR(Table_PI[[#This Row],[Hide: Rebate]]>0,Table_PI[[#This Row],[Hide: Rebate]]=\"No Rebate\")),TRUE,\"MI: Line Item \" & $A335),\"\")","v":""}]
[{"$f":"IF(Table_PI[[#This Row],[Hide: Formula Name]]<>\"\",MAX($A$2:A335)+1,\"\")","v":""},null,null,null,null,null,null,null,null,null,null,null,null,null,null,null,null,{"$f":"IFERROR(VLOOKUP(Table_PI[[#This Row],[Measure]],'Equipment Lookups'!$C$3:$D$23,2,FALSE),\"\")","v":""},0,{"$f":"IF(Table_PI[[#This Row],[Hide: Formula Name]]<>\"\",IFERROR(IF(AND(ISNUMBER(Table_PI[[#This Row],[Hide: Rebate]]),Table_PI[[#This Row],[Hide: Rebate]]>0), IF($S$401>=50, IF(AND(ProjectStage=\"(Installed)\",$S$401>'Customer Information'!$BC$21), 'Customer Information'!$BC$21*Table_PI[[#This Row],[Hide: Rebate]]/$S$401, IF($S$401<=300000, Table_PI[[#This Row],[Hide: Rebate]], ROUND(300000*Table_PI[[#This Row],[Hide: Rebate]]/'Project Information'!$S$401,2))), \"Does not meet $50 Minimum\"), \"No Rebate\"), \"No Rebate\"),0)","v":0},0,0,0,0,0,0,0,0,0,{"$f":"IF(Table_PI[[#This Row],[Hide: Formula Name]]<>\"\",IF(AND(Table_PI[[#This Row],[Hide: Formula Name]]<>\"\",OR(Table_PI[[#This Row],[Hide: Rebate]]>0,Table_PI[[#This Row],[Hide: Rebate]]=\"No Rebate\")),TRUE,\"MI: Line Item \" & $A336),\"\")","v":""}]
[{"$f":"IF(Table_PI[[#This Row],[Hide: Formula Name]]<>\"\",MAX($A$2:A336)+1,\"\")","v":""},null,null,null,null,null,null,null,null,null,null,null,null,null,null,null,null,{"$f":"IFERROR(VLOOKUP(Table_PI[[#This Row],[Measure]],'Equipment Lookups'!$C$3:$D$23,2,FALSE),\"\")","v":""},0,{"$f":"IF(Table_PI[[#This Row],[Hide: Formula Name]]<>\"\",IFERROR(IF(AND(ISNUMBER(Table_PI[[#This Row],[Hide: Rebate]]),Table_PI[[#This Row],[Hide: Rebate]]>0), IF($S$401>=50, IF(AND(ProjectStage=\"(Installed)\",$S$401>'Customer Information'!$BC$21), 'Customer Information'!$BC$21*Table_PI[[#This Row],[Hide: Rebate]]/$S$401, IF($S$401<=300000, Table_PI[[#This Row],[Hide: Rebate]], ROUND(300000*Table_PI[[#This Row],[Hide: Rebate]]/'Project Information'!$S$401,2))), \"Does not meet $50 Minimum\"), \"No Rebate\"), \"No Rebate\"),0)","v":0},0,0,0,0,0,0,0,0,0,{"$f":"IF(Table_PI[[#This Row],[Hide: Formula Name]]<>\"\",IF(AND(Table_PI[[#This Row],[Hide: Formula Name]]<>\"\",OR(Table_PI[[#This Row],[Hide: Rebate]]>0,Table_PI[[#This Row],[Hide: Rebate]]=\"No Rebate\")),TRUE,\"MI: Line Item \" & $A337),\"\")","v":""}]
[{"$f":"IF(Table_PI[[#This Row],[Hide: Formula Name]]<>\"\",MAX($A$2:A337)+1,\"\")","v":""},null,null,null,null,null,null,null,null,null,null,null,null,null,null,null,null,{"$f":"IFERROR(VLOOKUP(Table_PI[[#This Row],[Measure]],'Equipment Lookups'!$C$3:$D$23,2,FALSE),\"\")","v":""},0,{"$f":"IF(Table_PI[[#This Row],[Hide: Formula Name]]<>\"\",IFERROR(IF(AND(ISNUMBER(Table_PI[[#This Row],[Hide: Rebate]]),Table_PI[[#This Row],[Hide: Rebate]]>0), IF($S$401>=50, IF(AND(ProjectStage=\"(Installed)\",$S$401>'Customer Information'!$BC$21), 'Customer Information'!$BC$21*Table_PI[[#This Row],[Hide: Rebate]]/$S$401, IF($S$401<=300000, Table_PI[[#This Row],[Hide: Rebate]], ROUND(300000*Table_PI[[#This Row],[Hide: Rebate]]/'Project Information'!$S$401,2))), \"Does not meet $50 Minimum\"), \"No Rebate\"), \"No Rebate\"),0)","v":0},0,0,0,0,0,0,0,0,0,{"$f":"IF(Table_PI[[#This Row],[Hide: Formula Name]]<>\"\",IF(AND(Table_PI[[#This Row],[Hide: Formula Name]]<>\"\",OR(Table_PI[[#This Row],[Hide: Rebate]]>0,Table_PI[[#This Row],[Hide: Rebate]]=\"No Rebate\")),TRUE,\"MI: Line Item \" & $A338),\"\")","v":""}]
[{"$f":"IF(Table_PI[[#This Row],[Hide: Formula Name]]<>\"\",MAX($A$2:A338)+1,\"\")","v":""},null,null,null,null,null,null,null,null,null,null,null,null,null,null,null,null,{"$f":"IFERROR(VLOOKUP(Table_PI[[#This Row],[Measure]],'Equipment Lookups'!$C$3:$D$23,2,FALSE),\"\")","v":""},0,{"$f":"IF(Table_PI[[#This Row],[Hide: Formula Name]]<>\"\",IFERROR(IF(AND(ISNUMBER(Table_PI[[#This Row],[Hide: Rebate]]),Table_PI[[#This Row],[Hide: Rebate]]>0), IF($S$401>=50, IF(AND(ProjectStage=\"(Installed)\",$S$401>'Customer Information'!$BC$21), 'Customer Information'!$BC$21*Table_PI[[#This Row],[Hide: Rebate]]/$S$401, IF($S$401<=300000, Table_PI[[#This Row],[Hide: Rebate]], ROUND(300000*Table_PI[[#This Row],[Hide: Rebate]]/'Project Information'!$S$401,2))), \"Does not meet $50 Minimum\"), \"No Rebate\"), \"No Rebate\"),0)","v":0},0,0,0,0,0,0,0,0,0,{"$f":"IF(Table_PI[[#This Row],[Hide: Formula Name]]<>\"\",IF(AND(Table_PI[[#This Row],[Hide: Formula Name]]<>\"\",OR(Table_PI[[#This Row],[Hide: Rebate]]>0,Table_PI[[#This Row],[Hide: Rebate]]=\"No Rebate\")),TRUE,\"MI: Line Item \" & $A339),\"\")","v":""}]
[{"$f":"IF(Table_PI[[#This Row],[Hide: Formula Name]]<>\"\",MAX($A$2:A339)+1,\"\")","v":""},null,null,null,null,null,null,null,null,null,null,null,null,null,null,null,null,{"$f":"IFERROR(VLOOKUP(Table_PI[[#This Row],[Measure]],'Equipment Lookups'!$C$3:$D$23,2,FALSE),\"\")","v":""},0,{"$f":"IF(Table_PI[[#This Row],[Hide: Formula Name]]<>\"\",IFERROR(IF(AND(ISNUMBER(Table_PI[[#This Row],[Hide: Rebate]]),Table_PI[[#This Row],[Hide: Rebate]]>0), IF($S$401>=50, IF(AND(ProjectStage=\"(Installed)\",$S$401>'Customer Information'!$BC$21), 'Customer Information'!$BC$21*Table_PI[[#This Row],[Hide: Rebate]]/$S$401, IF($S$401<=300000, Table_PI[[#This Row],[Hide: Rebate]], ROUND(300000*Table_PI[[#This Row],[Hide: Rebate]]/'Project Information'!$S$401,2))), \"Does not meet $50 Minimum\"), \"No Rebate\"), \"No Rebate\"),0)","v":0},0,0,0,0,0,0,0,0,0,{"$f":"IF(Table_PI[[#This Row],[Hide: Formula Name]]<>\"\",IF(AND(Table_PI[[#This Row],[Hide: Formula Name]]<>\"\",OR(Table_PI[[#This Row],[Hide: Rebate]]>0,Table_PI[[#This Row],[Hide: Rebate]]=\"No Rebate\")),TRUE,\"MI: Line Item \" & $A340),\"\")","v":""}]
[{"$f":"IF(Table_PI[[#This Row],[Hide: Formula Name]]<>\"\",MAX($A$2:A340)+1,\"\")","v":""},null,null,null,null,null,null,null,null,null,null,null,null,null,null,null,null,{"$f":"IFERROR(VLOOKUP(Table_PI[[#This Row],[Measure]],'Equipment Lookups'!$C$3:$D$23,2,FALSE),\"\")","v":""},0,{"$f":"IF(Table_PI[[#This Row],[Hide: Formula Name]]<>\"\",IFERROR(IF(AND(ISNUMBER(Table_PI[[#This Row],[Hide: Rebate]]),Table_PI[[#This Row],[Hide: Rebate]]>0), IF($S$401>=50, IF(AND(ProjectStage=\"(Installed)\",$S$401>'Customer Information'!$BC$21), 'Customer Information'!$BC$21*Table_PI[[#This Row],[Hide: Rebate]]/$S$401, IF($S$401<=300000, Table_PI[[#This Row],[Hide: Rebate]], ROUND(300000*Table_PI[[#This Row],[Hide: Rebate]]/'Project Information'!$S$401,2))), \"Does not meet $50 Minimum\"), \"No Rebate\"), \"No Rebate\"),0)","v":0},0,0,0,0,0,0,0,0,0,{"$f":"IF(Table_PI[[#This Row],[Hide: Formula Name]]<>\"\",IF(AND(Table_PI[[#This Row],[Hide: Formula Name]]<>\"\",OR(Table_PI[[#This Row],[Hide: Rebate]]>0,Table_PI[[#This Row],[Hide: Rebate]]=\"No Rebate\")),TRUE,\"MI: Line Item \" & $A341),\"\")","v":""}]
[{"$f":"IF(Table_PI[[#This Row],[Hide: Formula Name]]<>\"\",MAX($A$2:A341)+1,\"\")","v":""},null,null,null,null,null,null,null,null,null,null,null,null,null,null,null,null,{"$f":"IFERROR(VLOOKUP(Table_PI[[#This Row],[Measure]],'Equipment Lookups'!$C$3:$D$23,2,FALSE),\"\")","v":""},0,{"$f":"IF(Table_PI[[#This Row],[Hide: Formula Name]]<>\"\",IFERROR(IF(AND(ISNUMBER(Table_PI[[#This Row],[Hide: Rebate]]),Table_PI[[#This Row],[Hide: Rebate]]>0), IF($S$401>=50, IF(AND(ProjectStage=\"(Installed)\",$S$401>'Customer Information'!$BC$21), 'Customer Information'!$BC$21*Table_PI[[#This Row],[Hide: Rebate]]/$S$401, IF($S$401<=300000, Table_PI[[#This Row],[Hide: Rebate]], ROUND(300000*Table_PI[[#This Row],[Hide: Rebate]]/'Project Information'!$S$401,2))), \"Does not meet $50 Minimum\"), \"No Rebate\"), \"No Rebate\"),0)","v":0},0,0,0,0,0,0,0,0,0,{"$f":"IF(Table_PI[[#This Row],[Hide: Formula Name]]<>\"\",IF(AND(Table_PI[[#This Row],[Hide: Formula Name]]<>\"\",OR(Table_PI[[#This Row],[Hide: Rebate]]>0,Table_PI[[#This Row],[Hide: Rebate]]=\"No Rebate\")),TRUE,\"MI: Line Item \" & $A342),\"\")","v":""}]
[{"$f":"IF(Table_PI[[#This Row],[Hide: Formula Name]]<>\"\",MAX($A$2:A342)+1,\"\")","v":""},null,null,null,null,null,null,null,null,null,null,null,null,null,null,null,null,{"$f":"IFERROR(VLOOKUP(Table_PI[[#This Row],[Measure]],'Equipment Lookups'!$C$3:$D$23,2,FALSE),\"\")","v":""},0,{"$f":"IF(Table_PI[[#This Row],[Hide: Formula Name]]<>\"\",IFERROR(IF(AND(ISNUMBER(Table_PI[[#This Row],[Hide: Rebate]]),Table_PI[[#This Row],[Hide: Rebate]]>0), IF($S$401>=50, IF(AND(ProjectStage=\"(Installed)\",$S$401>'Customer Information'!$BC$21), 'Customer Information'!$BC$21*Table_PI[[#This Row],[Hide: Rebate]]/$S$401, IF($S$401<=300000, Table_PI[[#This Row],[Hide: Rebate]], ROUND(300000*Table_PI[[#This Row],[Hide: Rebate]]/'Project Information'!$S$401,2))), \"Does not meet $50 Minimum\"), \"No Rebate\"), \"No Rebate\"),0)","v":0},0,0,0,0,0,0,0,0,0,{"$f":"IF(Table_PI[[#This Row],[Hide: Formula Name]]<>\"\",IF(AND(Table_PI[[#This Row],[Hide: Formula Name]]<>\"\",OR(Table_PI[[#This Row],[Hide: Rebate]]>0,Table_PI[[#This Row],[Hide: Rebate]]=\"No Rebate\")),TRUE,\"MI: Line Item \" & $A343),\"\")","v":""}]
[{"$f":"IF(Table_PI[[#This Row],[Hide: Formula Name]]<>\"\",MAX($A$2:A343)+1,\"\")","v":""},null,null,null,null,null,null,null,null,null,null,null,null,null,null,null,null,{"$f":"IFERROR(VLOOKUP(Table_PI[[#This Row],[Measure]],'Equipment Lookups'!$C$3:$D$23,2,FALSE),\"\")","v":""},0,{"$f":"IF(Table_PI[[#This Row],[Hide: Formula Name]]<>\"\",IFERROR(IF(AND(ISNUMBER(Table_PI[[#This Row],[Hide: Rebate]]),Table_PI[[#This Row],[Hide: Rebate]]>0), IF($S$401>=50, IF(AND(ProjectStage=\"(Installed)\",$S$401>'Customer Information'!$BC$21), 'Customer Information'!$BC$21*Table_PI[[#This Row],[Hide: Rebate]]/$S$401, IF($S$401<=300000, Table_PI[[#This Row],[Hide: Rebate]], ROUND(300000*Table_PI[[#This Row],[Hide: Rebate]]/'Project Information'!$S$401,2))), \"Does not meet $50 Minimum\"), \"No Rebate\"), \"No Rebate\"),0)","v":0},0,0,0,0,0,0,0,0,0,{"$f":"IF(Table_PI[[#This Row],[Hide: Formula Name]]<>\"\",IF(AND(Table_PI[[#This Row],[Hide: Formula Name]]<>\"\",OR(Table_PI[[#This Row],[Hide: Rebate]]>0,Table_PI[[#This Row],[Hide: Rebate]]=\"No Rebate\")),TRUE,\"MI: Line Item \" & $A344),\"\")","v":""}]
[{"$f":"IF(Table_PI[[#This Row],[Hide: Formula Name]]<>\"\",MAX($A$2:A344)+1,\"\")","v":""},null,null,null,null,null,null,null,null,null,null,null,null,null,null,null,null,{"$f":"IFERROR(VLOOKUP(Table_PI[[#This Row],[Measure]],'Equipment Lookups'!$C$3:$D$23,2,FALSE),\"\")","v":""},0,{"$f":"IF(Table_PI[[#This Row],[Hide: Formula Name]]<>\"\",IFERROR(IF(AND(ISNUMBER(Table_PI[[#This Row],[Hide: Rebate]]),Table_PI[[#This Row],[Hide: Rebate]]>0), IF($S$401>=50, IF(AND(ProjectStage=\"(Installed)\",$S$401>'Customer Information'!$BC$21), 'Customer Information'!$BC$21*Table_PI[[#This Row],[Hide: Rebate]]/$S$401, IF($S$401<=300000, Table_PI[[#This Row],[Hide: Rebate]], ROUND(300000*Table_PI[[#This Row],[Hide: Rebate]]/'Project Information'!$S$401,2))), \"Does not meet $50 Minimum\"), \"No Rebate\"), \"No Rebate\"),0)","v":0},0,0,0,0,0,0,0,0,0,{"$f":"IF(Table_PI[[#This Row],[Hide: Formula Name]]<>\"\",IF(AND(Table_PI[[#This Row],[Hide: Formula Name]]<>\"\",OR(Table_PI[[#This Row],[Hide: Rebate]]>0,Table_PI[[#This Row],[Hide: Rebate]]=\"No Rebate\")),TRUE,\"MI: Line Item \" & $A345),\"\")","v":""}]
[{"$f":"IF(Table_PI[[#This Row],[Hide: Formula Name]]<>\"\",MAX($A$2:A345)+1,\"\")","v":""},null,null,null,null,null,null,null,null,null,null,null,null,null,null,null,null,{"$f":"IFERROR(VLOOKUP(Table_PI[[#This Row],[Measure]],'Equipment Lookups'!$C$3:$D$23,2,FALSE),\"\")","v":""},0,{"$f":"IF(Table_PI[[#This Row],[Hide: Formula Name]]<>\"\",IFERROR(IF(AND(ISNUMBER(Table_PI[[#This Row],[Hide: Rebate]]),Table_PI[[#This Row],[Hide: Rebate]]>0), IF($S$401>=50, IF(AND(ProjectStage=\"(Installed)\",$S$401>'Customer Information'!$BC$21), 'Customer Information'!$BC$21*Table_PI[[#This Row],[Hide: Rebate]]/$S$401, IF($S$401<=300000, Table_PI[[#This Row],[Hide: Rebate]], ROUND(300000*Table_PI[[#This Row],[Hide: Rebate]]/'Project Information'!$S$401,2))), \"Does not meet $50 Minimum\"), \"No Rebate\"), \"No Rebate\"),0)","v":0},0,0,0,0,0,0,0,0,0,{"$f":"IF(Table_PI[[#This Row],[Hide: Formula Name]]<>\"\",IF(AND(Table_PI[[#This Row],[Hide: Formula Name]]<>\"\",OR(Table_PI[[#This Row],[Hide: Rebate]]>0,Table_PI[[#This Row],[Hide: Rebate]]=\"No Rebate\")),TRUE,\"MI: Line Item \" & $A346),\"\")","v":""}]
[{"$f":"IF(Table_PI[[#This Row],[Hide: Formula Name]]<>\"\",MAX($A$2:A346)+1,\"\")","v":""},null,null,null,null,null,null,null,null,null,null,null,null,null,null,null,null,{"$f":"IFERROR(VLOOKUP(Table_PI[[#This Row],[Measure]],'Equipment Lookups'!$C$3:$D$23,2,FALSE),\"\")","v":""},0,{"$f":"IF(Table_PI[[#This Row],[Hide: Formula Name]]<>\"\",IFERROR(IF(AND(ISNUMBER(Table_PI[[#This Row],[Hide: Rebate]]),Table_PI[[#This Row],[Hide: Rebate]]>0), IF($S$401>=50, IF(AND(ProjectStage=\"(Installed)\",$S$401>'Customer Information'!$BC$21), 'Customer Information'!$BC$21*Table_PI[[#This Row],[Hide: Rebate]]/$S$401, IF($S$401<=300000, Table_PI[[#This Row],[Hide: Rebate]], ROUND(300000*Table_PI[[#This Row],[Hide: Rebate]]/'Project Information'!$S$401,2))), \"Does not meet $50 Minimum\"), \"No Rebate\"), \"No Rebate\"),0)","v":0},0,0,0,0,0,0,0,0,0,{"$f":"IF(Table_PI[[#This Row],[Hide: Formula Name]]<>\"\",IF(AND(Table_PI[[#This Row],[Hide: Formula Name]]<>\"\",OR(Table_PI[[#This Row],[Hide: Rebate]]>0,Table_PI[[#This Row],[Hide: Rebate]]=\"No Rebate\")),TRUE,\"MI: Line Item \" & $A347),\"\")","v":""}]
[{"$f":"IF(Table_PI[[#This Row],[Hide: Formula Name]]<>\"\",MAX($A$2:A347)+1,\"\")","v":""},null,null,null,null,null,null,null,null,null,null,null,null,null,null,null,null,{"$f":"IFERROR(VLOOKUP(Table_PI[[#This Row],[Measure]],'Equipment Lookups'!$C$3:$D$23,2,FALSE),\"\")","v":""},0,{"$f":"IF(Table_PI[[#This Row],[Hide: Formula Name]]<>\"\",IFERROR(IF(AND(ISNUMBER(Table_PI[[#This Row],[Hide: Rebate]]),Table_PI[[#This Row],[Hide: Rebate]]>0), IF($S$401>=50, IF(AND(ProjectStage=\"(Installed)\",$S$401>'Customer Information'!$BC$21), 'Customer Information'!$BC$21*Table_PI[[#This Row],[Hide: Rebate]]/$S$401, IF($S$401<=300000, Table_PI[[#This Row],[Hide: Rebate]], ROUND(300000*Table_PI[[#This Row],[Hide: Rebate]]/'Project Information'!$S$401,2))), \"Does not meet $50 Minimum\"), \"No Rebate\"), \"No Rebate\"),0)","v":0},0,0,0,0,0,0,0,0,0,{"$f":"IF(Table_PI[[#This Row],[Hide: Formula Name]]<>\"\",IF(AND(Table_PI[[#This Row],[Hide: Formula Name]]<>\"\",OR(Table_PI[[#This Row],[Hide: Rebate]]>0,Table_PI[[#This Row],[Hide: Rebate]]=\"No Rebate\")),TRUE,\"MI: Line Item \" & $A348),\"\")","v":""}]
[{"$f":"IF(Table_PI[[#This Row],[Hide: Formula Name]]<>\"\",MAX($A$2:A348)+1,\"\")","v":""},null,null,null,null,null,null,null,null,null,null,null,null,null,null,null,null,{"$f":"IFERROR(VLOOKUP(Table_PI[[#This Row],[Measure]],'Equipment Lookups'!$C$3:$D$23,2,FALSE),\"\")","v":""},0,{"$f":"IF(Table_PI[[#This Row],[Hide: Formula Name]]<>\"\",IFERROR(IF(AND(ISNUMBER(Table_PI[[#This Row],[Hide: Rebate]]),Table_PI[[#This Row],[Hide: Rebate]]>0), IF($S$401>=50, IF(AND(ProjectStage=\"(Installed)\",$S$401>'Customer Information'!$BC$21), 'Customer Information'!$BC$21*Table_PI[[#This Row],[Hide: Rebate]]/$S$401, IF($S$401<=300000, Table_PI[[#This Row],[Hide: Rebate]], ROUND(300000*Table_PI[[#This Row],[Hide: Rebate]]/'Project Information'!$S$401,2))), \"Does not meet $50 Minimum\"), \"No Rebate\"), \"No Rebate\"),0)","v":0},0,0,0,0,0,0,0,0,0,{"$f":"IF(Table_PI[[#This Row],[Hide: Formula Name]]<>\"\",IF(AND(Table_PI[[#This Row],[Hide: Formula Name]]<>\"\",OR(Table_PI[[#This Row],[Hide: Rebate]]>0,Table_PI[[#This Row],[Hide: Rebate]]=\"No Rebate\")),TRUE,\"MI: Line Item \" & $A349),\"\")","v":""}]
[{"$f":"IF(Table_PI[[#This Row],[Hide: Formula Name]]<>\"\",MAX($A$2:A349)+1,\"\")","v":""},null,null,null,null,null,null,null,null,null,null,null,null,null,null,null,null,{"$f":"IFERROR(VLOOKUP(Table_PI[[#This Row],[Measure]],'Equipment Lookups'!$C$3:$D$23,2,FALSE),\"\")","v":""},0,{"$f":"IF(Table_PI[[#This Row],[Hide: Formula Name]]<>\"\",IFERROR(IF(AND(ISNUMBER(Table_PI[[#This Row],[Hide: Rebate]]),Table_PI[[#This Row],[Hide: Rebate]]>0), IF($S$401>=50, IF(AND(ProjectStage=\"(Installed)\",$S$401>'Customer Information'!$BC$21), 'Customer Information'!$BC$21*Table_PI[[#This Row],[Hide: Rebate]]/$S$401, IF($S$401<=300000, Table_PI[[#This Row],[Hide: Rebate]], ROUND(300000*Table_PI[[#This Row],[Hide: Rebate]]/'Project Information'!$S$401,2))), \"Does not meet $50 Minimum\"), \"No Rebate\"), \"No Rebate\"),0)","v":0},0,0,0,0,0,0,0,0,0,{"$f":"IF(Table_PI[[#This Row],[Hide: Formula Name]]<>\"\",IF(AND(Table_PI[[#This Row],[Hide: Formula Name]]<>\"\",OR(Table_PI[[#This Row],[Hide: Rebate]]>0,Table_PI[[#This Row],[Hide: Rebate]]=\"No Rebate\")),TRUE,\"MI: Line Item \" & $A350),\"\")","v":""}]
[{"$f":"IF(Table_PI[[#This Row],[Hide: Formula Name]]<>\"\",MAX($A$2:A350)+1,\"\")","v":""},null,null,null,null,null,null,null,null,null,null,null,null,null,null,null,null,{"$f":"IFERROR(VLOOKUP(Table_PI[[#This Row],[Measure]],'Equipment Lookups'!$C$3:$D$23,2,FALSE),\"\")","v":""},0,{"$f":"IF(Table_PI[[#This Row],[Hide: Formula Name]]<>\"\",IFERROR(IF(AND(ISNUMBER(Table_PI[[#This Row],[Hide: Rebate]]),Table_PI[[#This Row],[Hide: Rebate]]>0), IF($S$401>=50, IF(AND(ProjectStage=\"(Installed)\",$S$401>'Customer Information'!$BC$21), 'Customer Information'!$BC$21*Table_PI[[#This Row],[Hide: Rebate]]/$S$401, IF($S$401<=300000, Table_PI[[#This Row],[Hide: Rebate]], ROUND(300000*Table_PI[[#This Row],[Hide: Rebate]]/'Project Information'!$S$401,2))), \"Does not meet $50 Minimum\"), \"No Rebate\"), \"No Rebate\"),0)","v":0},0,0,0,0,0,0,0,0,0,{"$f":"IF(Table_PI[[#This Row],[Hide: Formula Name]]<>\"\",IF(AND(Table_PI[[#This Row],[Hide: Formula Name]]<>\"\",OR(Table_PI[[#This Row],[Hide: Rebate]]>0,Table_PI[[#This Row],[Hide: Rebate]]=\"No Rebate\")),TRUE,\"MI: Line Item \" & $A351),\"\")","v":""}]
[{"$f":"IF(Table_PI[[#This Row],[Hide: Formula Name]]<>\"\",MAX($A$2:A351)+1,\"\")","v":""},null,null,null,null,null,null,null,null,null,null,null,null,null,null,null,null,{"$f":"IFERROR(VLOOKUP(Table_PI[[#This Row],[Measure]],'Equipment Lookups'!$C$3:$D$23,2,FALSE),\"\")","v":""},0,{"$f":"IF(Table_PI[[#This Row],[Hide: Formula Name]]<>\"\",IFERROR(IF(AND(ISNUMBER(Table_PI[[#This Row],[Hide: Rebate]]),Table_PI[[#This Row],[Hide: Rebate]]>0), IF($S$401>=50, IF(AND(ProjectStage=\"(Installed)\",$S$401>'Customer Information'!$BC$21), 'Customer Information'!$BC$21*Table_PI[[#This Row],[Hide: Rebate]]/$S$401, IF($S$401<=300000, Table_PI[[#This Row],[Hide: Rebate]], ROUND(300000*Table_PI[[#This Row],[Hide: Rebate]]/'Project Information'!$S$401,2))), \"Does not meet $50 Minimum\"), \"No Rebate\"), \"No Rebate\"),0)","v":0},0,0,0,0,0,0,0,0,0,{"$f":"IF(Table_PI[[#This Row],[Hide: Formula Name]]<>\"\",IF(AND(Table_PI[[#This Row],[Hide: Formula Name]]<>\"\",OR(Table_PI[[#This Row],[Hide: Rebate]]>0,Table_PI[[#This Row],[Hide: Rebate]]=\"No Rebate\")),TRUE,\"MI: Line Item \" & $A352),\"\")","v":""}]
[{"$f":"IF(Table_PI[[#This Row],[Hide: Formula Name]]<>\"\",MAX($A$2:A352)+1,\"\")","v":""},null,null,null,null,null,null,null,null,null,null,null,null,null,null,null,null,{"$f":"IFERROR(VLOOKUP(Table_PI[[#This Row],[Measure]],'Equipment Lookups'!$C$3:$D$23,2,FALSE),\"\")","v":""},0,{"$f":"IF(Table_PI[[#This Row],[Hide: Formula Name]]<>\"\",IFERROR(IF(AND(ISNUMBER(Table_PI[[#This Row],[Hide: Rebate]]),Table_PI[[#This Row],[Hide: Rebate]]>0), IF($S$401>=50, IF(AND(ProjectStage=\"(Installed)\",$S$401>'Customer Information'!$BC$21), 'Customer Information'!$BC$21*Table_PI[[#This Row],[Hide: Rebate]]/$S$401, IF($S$401<=300000, Table_PI[[#This Row],[Hide: Rebate]], ROUND(300000*Table_PI[[#This Row],[Hide: Rebate]]/'Project Information'!$S$401,2))), \"Does not meet $50 Minimum\"), \"No Rebate\"), \"No Rebate\"),0)","v":0},0,0,0,0,0,0,0,0,0,{"$f":"IF(Table_PI[[#This Row],[Hide: Formula Name]]<>\"\",IF(AND(Table_PI[[#This Row],[Hide: Formula Name]]<>\"\",OR(Table_PI[[#This Row],[Hide: Rebate]]>0,Table_PI[[#This Row],[Hide: Rebate]]=\"No Rebate\")),TRUE,\"MI: Line Item \" & $A353),\"\")","v":""}]
[{"$f":"IF(Table_PI[[#This Row],[Hide: Formula Name]]<>\"\",MAX($A$2:A353)+1,\"\")","v":""},null,null,null,null,null,null,null,null,null,null,null,null,null,null,null,null,{"$f":"IFERROR(VLOOKUP(Table_PI[[#This Row],[Measure]],'Equipment Lookups'!$C$3:$D$23,2,FALSE),\"\")","v":""},0,{"$f":"IF(Table_PI[[#This Row],[Hide: Formula Name]]<>\"\",IFERROR(IF(AND(ISNUMBER(Table_PI[[#This Row],[Hide: Rebate]]),Table_PI[[#This Row],[Hide: Rebate]]>0), IF($S$401>=50, IF(AND(ProjectStage=\"(Installed)\",$S$401>'Customer Information'!$BC$21), 'Customer Information'!$BC$21*Table_PI[[#This Row],[Hide: Rebate]]/$S$401, IF($S$401<=300000, Table_PI[[#This Row],[Hide: Rebate]], ROUND(300000*Table_PI[[#This Row],[Hide: Rebate]]/'Project Information'!$S$401,2))), \"Does not meet $50 Minimum\"), \"No Rebate\"), \"No Rebate\"),0)","v":0},0,0,0,0,0,0,0,0,0,{"$f":"IF(Table_PI[[#This Row],[Hide: Formula Name]]<>\"\",IF(AND(Table_PI[[#This Row],[Hide: Formula Name]]<>\"\",OR(Table_PI[[#This Row],[Hide: Rebate]]>0,Table_PI[[#This Row],[Hide: Rebate]]=\"No Rebate\")),TRUE,\"MI: Line Item \" & $A354),\"\")","v":""}]
[{"$f":"IF(Table_PI[[#This Row],[Hide: Formula Name]]<>\"\",MAX($A$2:A354)+1,\"\")","v":""},null,null,null,null,null,null,null,null,null,null,null,null,null,null,null,null,{"$f":"IFERROR(VLOOKUP(Table_PI[[#This Row],[Measure]],'Equipment Lookups'!$C$3:$D$23,2,FALSE),\"\")","v":""},0,{"$f":"IF(Table_PI[[#This Row],[Hide: Formula Name]]<>\"\",IFERROR(IF(AND(ISNUMBER(Table_PI[[#This Row],[Hide: Rebate]]),Table_PI[[#This Row],[Hide: Rebate]]>0), IF($S$401>=50, IF(AND(ProjectStage=\"(Installed)\",$S$401>'Customer Information'!$BC$21), 'Customer Information'!$BC$21*Table_PI[[#This Row],[Hide: Rebate]]/$S$401, IF($S$401<=300000, Table_PI[[#This Row],[Hide: Rebate]], ROUND(300000*Table_PI[[#This Row],[Hide: Rebate]]/'Project Information'!$S$401,2))), \"Does not meet $50 Minimum\"), \"No Rebate\"), \"No Rebate\"),0)","v":0},0,0,0,0,0,0,0,0,0,{"$f":"IF(Table_PI[[#This Row],[Hide: Formula Name]]<>\"\",IF(AND(Table_PI[[#This Row],[Hide: Formula Name]]<>\"\",OR(Table_PI[[#This Row],[Hide: Rebate]]>0,Table_PI[[#This Row],[Hide: Rebate]]=\"No Rebate\")),TRUE,\"MI: Line Item \" & $A355),\"\")","v":""}]
[{"$f":"IF(Table_PI[[#This Row],[Hide: Formula Name]]<>\"\",MAX($A$2:A355)+1,\"\")","v":""},null,null,null,null,null,null,null,null,null,null,null,null,null,null,null,null,{"$f":"IFERROR(VLOOKUP(Table_PI[[#This Row],[Measure]],'Equipment Lookups'!$C$3:$D$23,2,FALSE),\"\")","v":""},0,{"$f":"IF(Table_PI[[#This Row],[Hide: Formula Name]]<>\"\",IFERROR(IF(AND(ISNUMBER(Table_PI[[#This Row],[Hide: Rebate]]),Table_PI[[#This Row],[Hide: Rebate]]>0), IF($S$401>=50, IF(AND(ProjectStage=\"(Installed)\",$S$401>'Customer Information'!$BC$21), 'Customer Information'!$BC$21*Table_PI[[#This Row],[Hide: Rebate]]/$S$401, IF($S$401<=300000, Table_PI[[#This Row],[Hide: Rebate]], ROUND(300000*Table_PI[[#This Row],[Hide: Rebate]]/'Project Information'!$S$401,2))), \"Does not meet $50 Minimum\"), \"No Rebate\"), \"No Rebate\"),0)","v":0},0,0,0,0,0,0,0,0,0,{"$f":"IF(Table_PI[[#This Row],[Hide: Formula Name]]<>\"\",IF(AND(Table_PI[[#This Row],[Hide: Formula Name]]<>\"\",OR(Table_PI[[#This Row],[Hide: Rebate]]>0,Table_PI[[#This Row],[Hide: Rebate]]=\"No Rebate\")),TRUE,\"MI: Line Item \" & $A356),\"\")","v":""}]
[{"$f":"IF(Table_PI[[#This Row],[Hide: Formula Name]]<>\"\",MAX($A$2:A356)+1,\"\")","v":""},null,null,null,null,null,null,null,null,null,null,null,null,null,null,null,null,{"$f":"IFERROR(VLOOKUP(Table_PI[[#This Row],[Measure]],'Equipment Lookups'!$C$3:$D$23,2,FALSE),\"\")","v":""},0,{"$f":"IF(Table_PI[[#This Row],[Hide: Formula Name]]<>\"\",IFERROR(IF(AND(ISNUMBER(Table_PI[[#This Row],[Hide: Rebate]]),Table_PI[[#This Row],[Hide: Rebate]]>0), IF($S$401>=50, IF(AND(ProjectStage=\"(Installed)\",$S$401>'Customer Information'!$BC$21), 'Customer Information'!$BC$21*Table_PI[[#This Row],[Hide: Rebate]]/$S$401, IF($S$401<=300000, Table_PI[[#This Row],[Hide: Rebate]], ROUND(300000*Table_PI[[#This Row],[Hide: Rebate]]/'Project Information'!$S$401,2))), \"Does not meet $50 Minimum\"), \"No Rebate\"), \"No Rebate\"),0)","v":0},0,0,0,0,0,0,0,0,0,{"$f":"IF(Table_PI[[#This Row],[Hide: Formula Name]]<>\"\",IF(AND(Table_PI[[#This Row],[Hide: Formula Name]]<>\"\",OR(Table_PI[[#This Row],[Hide: Rebate]]>0,Table_PI[[#This Row],[Hide: Rebate]]=\"No Rebate\")),TRUE,\"MI: Line Item \" & $A357),\"\")","v":""}]
[{"$f":"IF(Table_PI[[#This Row],[Hide: Formula Name]]<>\"\",MAX($A$2:A357)+1,\"\")","v":""},null,null,null,null,null,null,null,null,null,null,null,null,null,null,null,null,{"$f":"IFERROR(VLOOKUP(Table_PI[[#This Row],[Measure]],'Equipment Lookups'!$C$3:$D$23,2,FALSE),\"\")","v":""},0,{"$f":"IF(Table_PI[[#This Row],[Hide: Formula Name]]<>\"\",IFERROR(IF(AND(ISNUMBER(Table_PI[[#This Row],[Hide: Rebate]]),Table_PI[[#This Row],[Hide: Rebate]]>0), IF($S$401>=50, IF(AND(ProjectStage=\"(Installed)\",$S$401>'Customer Information'!$BC$21), 'Customer Information'!$BC$21*Table_PI[[#This Row],[Hide: Rebate]]/$S$401, IF($S$401<=300000, Table_PI[[#This Row],[Hide: Rebate]], ROUND(300000*Table_PI[[#This Row],[Hide: Rebate]]/'Project Information'!$S$401,2))), \"Does not meet $50 Minimum\"), \"No Rebate\"), \"No Rebate\"),0)","v":0},0,0,0,0,0,0,0,0,0,{"$f":"IF(Table_PI[[#This Row],[Hide: Formula Name]]<>\"\",IF(AND(Table_PI[[#This Row],[Hide: Formula Name]]<>\"\",OR(Table_PI[[#This Row],[Hide: Rebate]]>0,Table_PI[[#This Row],[Hide: Rebate]]=\"No Rebate\")),TRUE,\"MI: Line Item \" & $A358),\"\")","v":""}]
[{"$f":"IF(Table_PI[[#This Row],[Hide: Formula Name]]<>\"\",MAX($A$2:A358)+1,\"\")","v":""},null,null,null,null,null,null,null,null,null,null,null,null,null,null,null,null,{"$f":"IFERROR(VLOOKUP(Table_PI[[#This Row],[Measure]],'Equipment Lookups'!$C$3:$D$23,2,FALSE),\"\")","v":""},0,{"$f":"IF(Table_PI[[#This Row],[Hide: Formula Name]]<>\"\",IFERROR(IF(AND(ISNUMBER(Table_PI[[#This Row],[Hide: Rebate]]),Table_PI[[#This Row],[Hide: Rebate]]>0), IF($S$401>=50, IF(AND(ProjectStage=\"(Installed)\",$S$401>'Customer Information'!$BC$21), 'Customer Information'!$BC$21*Table_PI[[#This Row],[Hide: Rebate]]/$S$401, IF($S$401<=300000, Table_PI[[#This Row],[Hide: Rebate]], ROUND(300000*Table_PI[[#This Row],[Hide: Rebate]]/'Project Information'!$S$401,2))), \"Does not meet $50 Minimum\"), \"No Rebate\"), \"No Rebate\"),0)","v":0},0,0,0,0,0,0,0,0,0,{"$f":"IF(Table_PI[[#This Row],[Hide: Formula Name]]<>\"\",IF(AND(Table_PI[[#This Row],[Hide: Formula Name]]<>\"\",OR(Table_PI[[#This Row],[Hide: Rebate]]>0,Table_PI[[#This Row],[Hide: Rebate]]=\"No Rebate\")),TRUE,\"MI: Line Item \" & $A359),\"\")","v":""}]
[{"$f":"IF(Table_PI[[#This Row],[Hide: Formula Name]]<>\"\",MAX($A$2:A359)+1,\"\")","v":""},null,null,null,null,null,null,null,null,null,null,null,null,null,null,null,null,{"$f":"IFERROR(VLOOKUP(Table_PI[[#This Row],[Measure]],'Equipment Lookups'!$C$3:$D$23,2,FALSE),\"\")","v":""},0,{"$f":"IF(Table_PI[[#This Row],[Hide: Formula Name]]<>\"\",IFERROR(IF(AND(ISNUMBER(Table_PI[[#This Row],[Hide: Rebate]]),Table_PI[[#This Row],[Hide: Rebate]]>0), IF($S$401>=50, IF(AND(ProjectStage=\"(Installed)\",$S$401>'Customer Information'!$BC$21), 'Customer Information'!$BC$21*Table_PI[[#This Row],[Hide: Rebate]]/$S$401, IF($S$401<=300000, Table_PI[[#This Row],[Hide: Rebate]], ROUND(300000*Table_PI[[#This Row],[Hide: Rebate]]/'Project Information'!$S$401,2))), \"Does not meet $50 Minimum\"), \"No Rebate\"), \"No Rebate\"),0)","v":0},0,0,0,0,0,0,0,0,0,{"$f":"IF(Table_PI[[#This Row],[Hide: Formula Name]]<>\"\",IF(AND(Table_PI[[#This Row],[Hide: Formula Name]]<>\"\",OR(Table_PI[[#This Row],[Hide: Rebate]]>0,Table_PI[[#This Row],[Hide: Rebate]]=\"No Rebate\")),TRUE,\"MI: Line Item \" & $A360),\"\")","v":""}]
[{"$f":"IF(Table_PI[[#This Row],[Hide: Formula Name]]<>\"\",MAX($A$2:A360)+1,\"\")","v":""},null,null,null,null,null,null,null,null,null,null,null,null,null,null,null,null,{"$f":"IFERROR(VLOOKUP(Table_PI[[#This Row],[Measure]],'Equipment Lookups'!$C$3:$D$23,2,FALSE),\"\")","v":""},0,{"$f":"IF(Table_PI[[#This Row],[Hide: Formula Name]]<>\"\",IFERROR(IF(AND(ISNUMBER(Table_PI[[#This Row],[Hide: Rebate]]),Table_PI[[#This Row],[Hide: Rebate]]>0), IF($S$401>=50, IF(AND(ProjectStage=\"(Installed)\",$S$401>'Customer Information'!$BC$21), 'Customer Information'!$BC$21*Table_PI[[#This Row],[Hide: Rebate]]/$S$401, IF($S$401<=300000, Table_PI[[#This Row],[Hide: Rebate]], ROUND(300000*Table_PI[[#This Row],[Hide: Rebate]]/'Project Information'!$S$401,2))), \"Does not meet $50 Minimum\"), \"No Rebate\"), \"No Rebate\"),0)","v":0},0,0,0,0,0,0,0,0,0,{"$f":"IF(Table_PI[[#This Row],[Hide: Formula Name]]<>\"\",IF(AND(Table_PI[[#This Row],[Hide: Formula Name]]<>\"\",OR(Table_PI[[#This Row],[Hide: Rebate]]>0,Table_PI[[#This Row],[Hide: Rebate]]=\"No Rebate\")),TRUE,\"MI: Line Item \" & $A361),\"\")","v":""}]
[{"$f":"IF(Table_PI[[#This Row],[Hide: Formula Name]]<>\"\",MAX($A$2:A361)+1,\"\")","v":""},null,null,null,null,null,null,null,null,null,null,null,null,null,null,null,null,{"$f":"IFERROR(VLOOKUP(Table_PI[[#This Row],[Measure]],'Equipment Lookups'!$C$3:$D$23,2,FALSE),\"\")","v":""},0,{"$f":"IF(Table_PI[[#This Row],[Hide: Formula Name]]<>\"\",IFERROR(IF(AND(ISNUMBER(Table_PI[[#This Row],[Hide: Rebate]]),Table_PI[[#This Row],[Hide: Rebate]]>0), IF($S$401>=50, IF(AND(ProjectStage=\"(Installed)\",$S$401>'Customer Information'!$BC$21), 'Customer Information'!$BC$21*Table_PI[[#This Row],[Hide: Rebate]]/$S$401, IF($S$401<=300000, Table_PI[[#This Row],[Hide: Rebate]], ROUND(300000*Table_PI[[#This Row],[Hide: Rebate]]/'Project Information'!$S$401,2))), \"Does not meet $50 Minimum\"), \"No Rebate\"), \"No Rebate\"),0)","v":0},0,0,0,0,0,0,0,0,0,{"$f":"IF(Table_PI[[#This Row],[Hide: Formula Name]]<>\"\",IF(AND(Table_PI[[#This Row],[Hide: Formula Name]]<>\"\",OR(Table_PI[[#This Row],[Hide: Rebate]]>0,Table_PI[[#This Row],[Hide: Rebate]]=\"No Rebate\")),TRUE,\"MI: Line Item \" & $A362),\"\")","v":""}]
[{"$f":"IF(Table_PI[[#This Row],[Hide: Formula Name]]<>\"\",MAX($A$2:A362)+1,\"\")","v":""},null,null,null,null,null,null,null,null,null,null,null,null,null,null,null,null,{"$f":"IFERROR(VLOOKUP(Table_PI[[#This Row],[Measure]],'Equipment Lookups'!$C$3:$D$23,2,FALSE),\"\")","v":""},0,{"$f":"IF(Table_PI[[#This Row],[Hide: Formula Name]]<>\"\",IFERROR(IF(AND(ISNUMBER(Table_PI[[#This Row],[Hide: Rebate]]),Table_PI[[#This Row],[Hide: Rebate]]>0), IF($S$401>=50, IF(AND(ProjectStage=\"(Installed)\",$S$401>'Customer Information'!$BC$21), 'Customer Information'!$BC$21*Table_PI[[#This Row],[Hide: Rebate]]/$S$401, IF($S$401<=300000, Table_PI[[#This Row],[Hide: Rebate]], ROUND(300000*Table_PI[[#This Row],[Hide: Rebate]]/'Project Information'!$S$401,2))), \"Does not meet $50 Minimum\"), \"No Rebate\"), \"No Rebate\"),0)","v":0},0,0,0,0,0,0,0,0,0,{"$f":"IF(Table_PI[[#This Row],[Hide: Formula Name]]<>\"\",IF(AND(Table_PI[[#This Row],[Hide: Formula Name]]<>\"\",OR(Table_PI[[#This Row],[Hide: Rebate]]>0,Table_PI[[#This Row],[Hide: Rebate]]=\"No Rebate\")),TRUE,\"MI: Line Item \" & $A363),\"\")","v":""}]
[{"$f":"IF(Table_PI[[#This Row],[Hide: Formula Name]]<>\"\",MAX($A$2:A363)+1,\"\")","v":""},null,null,null,null,null,null,null,null,null,null,null,null,null,null,null,null,{"$f":"IFERROR(VLOOKUP(Table_PI[[#This Row],[Measure]],'Equipment Lookups'!$C$3:$D$23,2,FALSE),\"\")","v":""},0,{"$f":"IF(Table_PI[[#This Row],[Hide: Formula Name]]<>\"\",IFERROR(IF(AND(ISNUMBER(Table_PI[[#This Row],[Hide: Rebate]]),Table_PI[[#This Row],[Hide: Rebate]]>0), IF($S$401>=50, IF(AND(ProjectStage=\"(Installed)\",$S$401>'Customer Information'!$BC$21), 'Customer Information'!$BC$21*Table_PI[[#This Row],[Hide: Rebate]]/$S$401, IF($S$401<=300000, Table_PI[[#This Row],[Hide: Rebate]], ROUND(300000*Table_PI[[#This Row],[Hide: Rebate]]/'Project Information'!$S$401,2))), \"Does not meet $50 Minimum\"), \"No Rebate\"), \"No Rebate\"),0)","v":0},0,0,0,0,0,0,0,0,0,{"$f":"IF(Table_PI[[#This Row],[Hide: Formula Name]]<>\"\",IF(AND(Table_PI[[#This Row],[Hide: Formula Name]]<>\"\",OR(Table_PI[[#This Row],[Hide: Rebate]]>0,Table_PI[[#This Row],[Hide: Rebate]]=\"No Rebate\")),TRUE,\"MI: Line Item \" & $A364),\"\")","v":""}]
[{"$f":"IF(Table_PI[[#This Row],[Hide: Formula Name]]<>\"\",MAX($A$2:A364)+1,\"\")","v":""},null,null,null,null,null,null,null,null,null,null,null,null,null,null,null,null,{"$f":"IFERROR(VLOOKUP(Table_PI[[#This Row],[Measure]],'Equipment Lookups'!$C$3:$D$23,2,FALSE),\"\")","v":""},0,{"$f":"IF(Table_PI[[#This Row],[Hide: Formula Name]]<>\"\",IFERROR(IF(AND(ISNUMBER(Table_PI[[#This Row],[Hide: Rebate]]),Table_PI[[#This Row],[Hide: Rebate]]>0), IF($S$401>=50, IF(AND(ProjectStage=\"(Installed)\",$S$401>'Customer Information'!$BC$21), 'Customer Information'!$BC$21*Table_PI[[#This Row],[Hide: Rebate]]/$S$401, IF($S$401<=300000, Table_PI[[#This Row],[Hide: Rebate]], ROUND(300000*Table_PI[[#This Row],[Hide: Rebate]]/'Project Information'!$S$401,2))), \"Does not meet $50 Minimum\"), \"No Rebate\"), \"No Rebate\"),0)","v":0},0,0,0,0,0,0,0,0,0,{"$f":"IF(Table_PI[[#This Row],[Hide: Formula Name]]<>\"\",IF(AND(Table_PI[[#This Row],[Hide: Formula Name]]<>\"\",OR(Table_PI[[#This Row],[Hide: Rebate]]>0,Table_PI[[#This Row],[Hide: Rebate]]=\"No Rebate\")),TRUE,\"MI: Line Item \" & $A365),\"\")","v":""}]
[{"$f":"IF(Table_PI[[#This Row],[Hide: Formula Name]]<>\"\",MAX($A$2:A365)+1,\"\")","v":""},null,null,null,null,null,null,null,null,null,null,null,null,null,null,null,null,{"$f":"IFERROR(VLOOKUP(Table_PI[[#This Row],[Measure]],'Equipment Lookups'!$C$3:$D$23,2,FALSE),\"\")","v":""},0,{"$f":"IF(Table_PI[[#This Row],[Hide: Formula Name]]<>\"\",IFERROR(IF(AND(ISNUMBER(Table_PI[[#This Row],[Hide: Rebate]]),Table_PI[[#This Row],[Hide: Rebate]]>0), IF($S$401>=50, IF(AND(ProjectStage=\"(Installed)\",$S$401>'Customer Information'!$BC$21), 'Customer Information'!$BC$21*Table_PI[[#This Row],[Hide: Rebate]]/$S$401, IF($S$401<=300000, Table_PI[[#This Row],[Hide: Rebate]], ROUND(300000*Table_PI[[#This Row],[Hide: Rebate]]/'Project Information'!$S$401,2))), \"Does not meet $50 Minimum\"), \"No Rebate\"), \"No Rebate\"),0)","v":0},0,0,0,0,0,0,0,0,0,{"$f":"IF(Table_PI[[#This Row],[Hide: Formula Name]]<>\"\",IF(AND(Table_PI[[#This Row],[Hide: Formula Name]]<>\"\",OR(Table_PI[[#This Row],[Hide: Rebate]]>0,Table_PI[[#This Row],[Hide: Rebate]]=\"No Rebate\")),TRUE,\"MI: Line Item \" & $A366),\"\")","v":""}]
[{"$f":"IF(Table_PI[[#This Row],[Hide: Formula Name]]<>\"\",MAX($A$2:A366)+1,\"\")","v":""},null,null,null,null,null,null,null,null,null,null,null,null,null,null,null,null,{"$f":"IFERROR(VLOOKUP(Table_PI[[#This Row],[Measure]],'Equipment Lookups'!$C$3:$D$23,2,FALSE),\"\")","v":""},0,{"$f":"IF(Table_PI[[#This Row],[Hide: Formula Name]]<>\"\",IFERROR(IF(AND(ISNUMBER(Table_PI[[#This Row],[Hide: Rebate]]),Table_PI[[#This Row],[Hide: Rebate]]>0), IF($S$401>=50, IF(AND(ProjectStage=\"(Installed)\",$S$401>'Customer Information'!$BC$21), 'Customer Information'!$BC$21*Table_PI[[#This Row],[Hide: Rebate]]/$S$401, IF($S$401<=300000, Table_PI[[#This Row],[Hide: Rebate]], ROUND(300000*Table_PI[[#This Row],[Hide: Rebate]]/'Project Information'!$S$401,2))), \"Does not meet $50 Minimum\"), \"No Rebate\"), \"No Rebate\"),0)","v":0},0,0,0,0,0,0,0,0,0,{"$f":"IF(Table_PI[[#This Row],[Hide: Formula Name]]<>\"\",IF(AND(Table_PI[[#This Row],[Hide: Formula Name]]<>\"\",OR(Table_PI[[#This Row],[Hide: Rebate]]>0,Table_PI[[#This Row],[Hide: Rebate]]=\"No Rebate\")),TRUE,\"MI: Line Item \" & $A367),\"\")","v":""}]
[{"$f":"IF(Table_PI[[#This Row],[Hide: Formula Name]]<>\"\",MAX($A$2:A367)+1,\"\")","v":""},null,null,null,null,null,null,null,null,null,null,null,null,null,null,null,null,{"$f":"IFERROR(VLOOKUP(Table_PI[[#This Row],[Measure]],'Equipment Lookups'!$C$3:$D$23,2,FALSE),\"\")","v":""},0,{"$f":"IF(Table_PI[[#This Row],[Hide: Formula Name]]<>\"\",IFERROR(IF(AND(ISNUMBER(Table_PI[[#This Row],[Hide: Rebate]]),Table_PI[[#This Row],[Hide: Rebate]]>0), IF($S$401>=50, IF(AND(ProjectStage=\"(Installed)\",$S$401>'Customer Information'!$BC$21), 'Customer Information'!$BC$21*Table_PI[[#This Row],[Hide: Rebate]]/$S$401, IF($S$401<=300000, Table_PI[[#This Row],[Hide: Rebate]], ROUND(300000*Table_PI[[#This Row],[Hide: Rebate]]/'Project Information'!$S$401,2))), \"Does not meet $50 Minimum\"), \"No Rebate\"), \"No Rebate\"),0)","v":0},0,0,0,0,0,0,0,0,0,{"$f":"IF(Table_PI[[#This Row],[Hide: Formula Name]]<>\"\",IF(AND(Table_PI[[#This Row],[Hide: Formula Name]]<>\"\",OR(Table_PI[[#This Row],[Hide: Rebate]]>0,Table_PI[[#This Row],[Hide: Rebate]]=\"No Rebate\")),TRUE,\"MI: Line Item \" & $A368),\"\")","v":""}]
[{"$f":"IF(Table_PI[[#This Row],[Hide: Formula Name]]<>\"\",MAX($A$2:A368)+1,\"\")","v":""},null,null,null,null,null,null,null,null,null,null,null,null,null,null,null,null,{"$f":"IFERROR(VLOOKUP(Table_PI[[#This Row],[Measure]],'Equipment Lookups'!$C$3:$D$23,2,FALSE),\"\")","v":""},0,{"$f":"IF(Table_PI[[#This Row],[Hide: Formula Name]]<>\"\",IFERROR(IF(AND(ISNUMBER(Table_PI[[#This Row],[Hide: Rebate]]),Table_PI[[#This Row],[Hide: Rebate]]>0), IF($S$401>=50, IF(AND(ProjectStage=\"(Installed)\",$S$401>'Customer Information'!$BC$21), 'Customer Information'!$BC$21*Table_PI[[#This Row],[Hide: Rebate]]/$S$401, IF($S$401<=300000, Table_PI[[#This Row],[Hide: Rebate]], ROUND(300000*Table_PI[[#This Row],[Hide: Rebate]]/'Project Information'!$S$401,2))), \"Does not meet $50 Minimum\"), \"No Rebate\"), \"No Rebate\"),0)","v":0},0,0,0,0,0,0,0,0,0,{"$f":"IF(Table_PI[[#This Row],[Hide: Formula Name]]<>\"\",IF(AND(Table_PI[[#This Row],[Hide: Formula Name]]<>\"\",OR(Table_PI[[#This Row],[Hide: Rebate]]>0,Table_PI[[#This Row],[Hide: Rebate]]=\"No Rebate\")),TRUE,\"MI: Line Item \" & $A369),\"\")","v":""}]
[{"$f":"IF(Table_PI[[#This Row],[Hide: Formula Name]]<>\"\",MAX($A$2:A369)+1,\"\")","v":""},null,null,null,null,null,null,null,null,null,null,null,null,null,null,null,null,{"$f":"IFERROR(VLOOKUP(Table_PI[[#This Row],[Measure]],'Equipment Lookups'!$C$3:$D$23,2,FALSE),\"\")","v":""},0,{"$f":"IF(Table_PI[[#This Row],[Hide: Formula Name]]<>\"\",IFERROR(IF(AND(ISNUMBER(Table_PI[[#This Row],[Hide: Rebate]]),Table_PI[[#This Row],[Hide: Rebate]]>0), IF($S$401>=50, IF(AND(ProjectStage=\"(Installed)\",$S$401>'Customer Information'!$BC$21), 'Customer Information'!$BC$21*Table_PI[[#This Row],[Hide: Rebate]]/$S$401, IF($S$401<=300000, Table_PI[[#This Row],[Hide: Rebate]], ROUND(300000*Table_PI[[#This Row],[Hide: Rebate]]/'Project Information'!$S$401,2))), \"Does not meet $50 Minimum\"), \"No Rebate\"), \"No Rebate\"),0)","v":0},0,0,0,0,0,0,0,0,0,{"$f":"IF(Table_PI[[#This Row],[Hide: Formula Name]]<>\"\",IF(AND(Table_PI[[#This Row],[Hide: Formula Name]]<>\"\",OR(Table_PI[[#This Row],[Hide: Rebate]]>0,Table_PI[[#This Row],[Hide: Rebate]]=\"No Rebate\")),TRUE,\"MI: Line Item \" & $A370),\"\")","v":""}]
[{"$f":"IF(Table_PI[[#This Row],[Hide: Formula Name]]<>\"\",MAX($A$2:A370)+1,\"\")","v":""},null,null,null,null,null,null,null,null,null,null,null,null,null,null,null,null,{"$f":"IFERROR(VLOOKUP(Table_PI[[#This Row],[Measure]],'Equipment Lookups'!$C$3:$D$23,2,FALSE),\"\")","v":""},0,{"$f":"IF(Table_PI[[#This Row],[Hide: Formula Name]]<>\"\",IFERROR(IF(AND(ISNUMBER(Table_PI[[#This Row],[Hide: Rebate]]),Table_PI[[#This Row],[Hide: Rebate]]>0), IF($S$401>=50, IF(AND(ProjectStage=\"(Installed)\",$S$401>'Customer Information'!$BC$21), 'Customer Information'!$BC$21*Table_PI[[#This Row],[Hide: Rebate]]/$S$401, IF($S$401<=300000, Table_PI[[#This Row],[Hide: Rebate]], ROUND(300000*Table_PI[[#This Row],[Hide: Rebate]]/'Project Information'!$S$401,2))), \"Does not meet $50 Minimum\"), \"No Rebate\"), \"No Rebate\"),0)","v":0},0,0,0,0,0,0,0,0,0,{"$f":"IF(Table_PI[[#This Row],[Hide: Formula Name]]<>\"\",IF(AND(Table_PI[[#This Row],[Hide: Formula Name]]<>\"\",OR(Table_PI[[#This Row],[Hide: Rebate]]>0,Table_PI[[#This Row],[Hide: Rebate]]=\"No Rebate\")),TRUE,\"MI: Line Item \" & $A371),\"\")","v":""}]
[{"$f":"IF(Table_PI[[#This Row],[Hide: Formula Name]]<>\"\",MAX($A$2:A371)+1,\"\")","v":""},null,null,null,null,null,null,null,null,null,null,null,null,null,null,null,null,{"$f":"IFERROR(VLOOKUP(Table_PI[[#This Row],[Measure]],'Equipment Lookups'!$C$3:$D$23,2,FALSE),\"\")","v":""},0,{"$f":"IF(Table_PI[[#This Row],[Hide: Formula Name]]<>\"\",IFERROR(IF(AND(ISNUMBER(Table_PI[[#This Row],[Hide: Rebate]]),Table_PI[[#This Row],[Hide: Rebate]]>0), IF($S$401>=50, IF(AND(ProjectStage=\"(Installed)\",$S$401>'Customer Information'!$BC$21), 'Customer Information'!$BC$21*Table_PI[[#This Row],[Hide: Rebate]]/$S$401, IF($S$401<=300000, Table_PI[[#This Row],[Hide: Rebate]], ROUND(300000*Table_PI[[#This Row],[Hide: Rebate]]/'Project Information'!$S$401,2))), \"Does not meet $50 Minimum\"), \"No Rebate\"), \"No Rebate\"),0)","v":0},0,0,0,0,0,0,0,0,0,{"$f":"IF(Table_PI[[#This Row],[Hide: Formula Name]]<>\"\",IF(AND(Table_PI[[#This Row],[Hide: Formula Name]]<>\"\",OR(Table_PI[[#This Row],[Hide: Rebate]]>0,Table_PI[[#This Row],[Hide: Rebate]]=\"No Rebate\")),TRUE,\"MI: Line Item \" & $A372),\"\")","v":""}]
[{"$f":"IF(Table_PI[[#This Row],[Hide: Formula Name]]<>\"\",MAX($A$2:A372)+1,\"\")","v":""},null,null,null,null,null,null,null,null,null,null,null,null,null,null,null,null,{"$f":"IFERROR(VLOOKUP(Table_PI[[#This Row],[Measure]],'Equipment Lookups'!$C$3:$D$23,2,FALSE),\"\")","v":""},0,{"$f":"IF(Table_PI[[#This Row],[Hide: Formula Name]]<>\"\",IFERROR(IF(AND(ISNUMBER(Table_PI[[#This Row],[Hide: Rebate]]),Table_PI[[#This Row],[Hide: Rebate]]>0), IF($S$401>=50, IF(AND(ProjectStage=\"(Installed)\",$S$401>'Customer Information'!$BC$21), 'Customer Information'!$BC$21*Table_PI[[#This Row],[Hide: Rebate]]/$S$401, IF($S$401<=300000, Table_PI[[#This Row],[Hide: Rebate]], ROUND(300000*Table_PI[[#This Row],[Hide: Rebate]]/'Project Information'!$S$401,2))), \"Does not meet $50 Minimum\"), \"No Rebate\"), \"No Rebate\"),0)","v":0},0,0,0,0,0,0,0,0,0,{"$f":"IF(Table_PI[[#This Row],[Hide: Formula Name]]<>\"\",IF(AND(Table_PI[[#This Row],[Hide: Formula Name]]<>\"\",OR(Table_PI[[#This Row],[Hide: Rebate]]>0,Table_PI[[#This Row],[Hide: Rebate]]=\"No Rebate\")),TRUE,\"MI: Line Item \" & $A373),\"\")","v":""}]
[{"$f":"IF(Table_PI[[#This Row],[Hide: Formula Name]]<>\"\",MAX($A$2:A373)+1,\"\")","v":""},null,null,null,null,null,null,null,null,null,null,null,null,null,null,null,null,{"$f":"IFERROR(VLOOKUP(Table_PI[[#This Row],[Measure]],'Equipment Lookups'!$C$3:$D$23,2,FALSE),\"\")","v":""},0,{"$f":"IF(Table_PI[[#This Row],[Hide: Formula Name]]<>\"\",IFERROR(IF(AND(ISNUMBER(Table_PI[[#This Row],[Hide: Rebate]]),Table_PI[[#This Row],[Hide: Rebate]]>0), IF($S$401>=50, IF(AND(ProjectStage=\"(Installed)\",$S$401>'Customer Information'!$BC$21), 'Customer Information'!$BC$21*Table_PI[[#This Row],[Hide: Rebate]]/$S$401, IF($S$401<=300000, Table_PI[[#This Row],[Hide: Rebate]], ROUND(300000*Table_PI[[#This Row],[Hide: Rebate]]/'Project Information'!$S$401,2))), \"Does not meet $50 Minimum\"), \"No Rebate\"), \"No Rebate\"),0)","v":0},0,0,0,0,0,0,0,0,0,{"$f":"IF(Table_PI[[#This Row],[Hide: Formula Name]]<>\"\",IF(AND(Table_PI[[#This Row],[Hide: Formula Name]]<>\"\",OR(Table_PI[[#This Row],[Hide: Rebate]]>0,Table_PI[[#This Row],[Hide: Rebate]]=\"No Rebate\")),TRUE,\"MI: Line Item \" & $A374),\"\")","v":""}]
[{"$f":"IF(Table_PI[[#This Row],[Hide: Formula Name]]<>\"\",MAX($A$2:A374)+1,\"\")","v":""},null,null,null,null,null,null,null,null,null,null,null,null,null,null,null,null,{"$f":"IFERROR(VLOOKUP(Table_PI[[#This Row],[Measure]],'Equipment Lookups'!$C$3:$D$23,2,FALSE),\"\")","v":""},0,{"$f":"IF(Table_PI[[#This Row],[Hide: Formula Name]]<>\"\",IFERROR(IF(AND(ISNUMBER(Table_PI[[#This Row],[Hide: Rebate]]),Table_PI[[#This Row],[Hide: Rebate]]>0), IF($S$401>=50, IF(AND(ProjectStage=\"(Installed)\",$S$401>'Customer Information'!$BC$21), 'Customer Information'!$BC$21*Table_PI[[#This Row],[Hide: Rebate]]/$S$401, IF($S$401<=300000, Table_PI[[#This Row],[Hide: Rebate]], ROUND(300000*Table_PI[[#This Row],[Hide: Rebate]]/'Project Information'!$S$401,2))), \"Does not meet $50 Minimum\"), \"No Rebate\"), \"No Rebate\"),0)","v":0},0,0,0,0,0,0,0,0,0,{"$f":"IF(Table_PI[[#This Row],[Hide: Formula Name]]<>\"\",IF(AND(Table_PI[[#This Row],[Hide: Formula Name]]<>\"\",OR(Table_PI[[#This Row],[Hide: Rebate]]>0,Table_PI[[#This Row],[Hide: Rebate]]=\"No Rebate\")),TRUE,\"MI: Line Item \" & $A375),\"\")","v":""}]
[{"$f":"IF(Table_PI[[#This Row],[Hide: Formula Name]]<>\"\",MAX($A$2:A375)+1,\"\")","v":""},null,null,null,null,null,null,null,null,null,null,null,null,null,null,null,null,{"$f":"IFERROR(VLOOKUP(Table_PI[[#This Row],[Measure]],'Equipment Lookups'!$C$3:$D$23,2,FALSE),\"\")","v":""},0,{"$f":"IF(Table_PI[[#This Row],[Hide: Formula Name]]<>\"\",IFERROR(IF(AND(ISNUMBER(Table_PI[[#This Row],[Hide: Rebate]]),Table_PI[[#This Row],[Hide: Rebate]]>0), IF($S$401>=50, IF(AND(ProjectStage=\"(Installed)\",$S$401>'Customer Information'!$BC$21), 'Customer Information'!$BC$21*Table_PI[[#This Row],[Hide: Rebate]]/$S$401, IF($S$401<=300000, Table_PI[[#This Row],[Hide: Rebate]], ROUND(300000*Table_PI[[#This Row],[Hide: Rebate]]/'Project Information'!$S$401,2))), \"Does not meet $50 Minimum\"), \"No Rebate\"), \"No Rebate\"),0)","v":0},0,0,0,0,0,0,0,0,0,{"$f":"IF(Table_PI[[#This Row],[Hide: Formula Name]]<>\"\",IF(AND(Table_PI[[#This Row],[Hide: Formula Name]]<>\"\",OR(Table_PI[[#This Row],[Hide: Rebate]]>0,Table_PI[[#This Row],[Hide: Rebate]]=\"No Rebate\")),TRUE,\"MI: Line Item \" & $A376),\"\")","v":""}]
[{"$f":"IF(Table_PI[[#This Row],[Hide: Formula Name]]<>\"\",MAX($A$2:A376)+1,\"\")","v":""},null,null,null,null,null,null,null,null,null,null,null,null,null,null,null,null,{"$f":"IFERROR(VLOOKUP(Table_PI[[#This Row],[Measure]],'Equipment Lookups'!$C$3:$D$23,2,FALSE),\"\")","v":""},0,{"$f":"IF(Table_PI[[#This Row],[Hide: Formula Name]]<>\"\",IFERROR(IF(AND(ISNUMBER(Table_PI[[#This Row],[Hide: Rebate]]),Table_PI[[#This Row],[Hide: Rebate]]>0), IF($S$401>=50, IF(AND(ProjectStage=\"(Installed)\",$S$401>'Customer Information'!$BC$21), 'Customer Information'!$BC$21*Table_PI[[#This Row],[Hide: Rebate]]/$S$401, IF($S$401<=300000, Table_PI[[#This Row],[Hide: Rebate]], ROUND(300000*Table_PI[[#This Row],[Hide: Rebate]]/'Project Information'!$S$401,2))), \"Does not meet $50 Minimum\"), \"No Rebate\"), \"No Rebate\"),0)","v":0},0,0,0,0,0,0,0,0,0,{"$f":"IF(Table_PI[[#This Row],[Hide: Formula Name]]<>\"\",IF(AND(Table_PI[[#This Row],[Hide: Formula Name]]<>\"\",OR(Table_PI[[#This Row],[Hide: Rebate]]>0,Table_PI[[#This Row],[Hide: Rebate]]=\"No Rebate\")),TRUE,\"MI: Line Item \" & $A377),\"\")","v":""}]
[{"$f":"IF(Table_PI[[#This Row],[Hide: Formula Name]]<>\"\",MAX($A$2:A377)+1,\"\")","v":""},null,null,null,null,null,null,null,null,null,null,null,null,null,null,null,null,{"$f":"IFERROR(VLOOKUP(Table_PI[[#This Row],[Measure]],'Equipment Lookups'!$C$3:$D$23,2,FALSE),\"\")","v":""},0,{"$f":"IF(Table_PI[[#This Row],[Hide: Formula Name]]<>\"\",IFERROR(IF(AND(ISNUMBER(Table_PI[[#This Row],[Hide: Rebate]]),Table_PI[[#This Row],[Hide: Rebate]]>0), IF($S$401>=50, IF(AND(ProjectStage=\"(Installed)\",$S$401>'Customer Information'!$BC$21), 'Customer Information'!$BC$21*Table_PI[[#This Row],[Hide: Rebate]]/$S$401, IF($S$401<=300000, Table_PI[[#This Row],[Hide: Rebate]], ROUND(300000*Table_PI[[#This Row],[Hide: Rebate]]/'Project Information'!$S$401,2))), \"Does not meet $50 Minimum\"), \"No Rebate\"), \"No Rebate\"),0)","v":0},0,0,0,0,0,0,0,0,0,{"$f":"IF(Table_PI[[#This Row],[Hide: Formula Name]]<>\"\",IF(AND(Table_PI[[#This Row],[Hide: Formula Name]]<>\"\",OR(Table_PI[[#This Row],[Hide: Rebate]]>0,Table_PI[[#This Row],[Hide: Rebate]]=\"No Rebate\")),TRUE,\"MI: Line Item \" & $A378),\"\")","v":""}]
[{"$f":"IF(Table_PI[[#This Row],[Hide: Formula Name]]<>\"\",MAX($A$2:A378)+1,\"\")","v":""},null,null,null,null,null,null,null,null,null,null,null,null,null,null,null,null,{"$f":"IFERROR(VLOOKUP(Table_PI[[#This Row],[Measure]],'Equipment Lookups'!$C$3:$D$23,2,FALSE),\"\")","v":""},0,{"$f":"IF(Table_PI[[#This Row],[Hide: Formula Name]]<>\"\",IFERROR(IF(AND(ISNUMBER(Table_PI[[#This Row],[Hide: Rebate]]),Table_PI[[#This Row],[Hide: Rebate]]>0), IF($S$401>=50, IF(AND(ProjectStage=\"(Installed)\",$S$401>'Customer Information'!$BC$21), 'Customer Information'!$BC$21*Table_PI[[#This Row],[Hide: Rebate]]/$S$401, IF($S$401<=300000, Table_PI[[#This Row],[Hide: Rebate]], ROUND(300000*Table_PI[[#This Row],[Hide: Rebate]]/'Project Information'!$S$401,2))), \"Does not meet $50 Minimum\"), \"No Rebate\"), \"No Rebate\"),0)","v":0},0,0,0,0,0,0,0,0,0,{"$f":"IF(Table_PI[[#This Row],[Hide: Formula Name]]<>\"\",IF(AND(Table_PI[[#This Row],[Hide: Formula Name]]<>\"\",OR(Table_PI[[#This Row],[Hide: Rebate]]>0,Table_PI[[#This Row],[Hide: Rebate]]=\"No Rebate\")),TRUE,\"MI: Line Item \" & $A379),\"\")","v":""}]
[{"$f":"IF(Table_PI[[#This Row],[Hide: Formula Name]]<>\"\",MAX($A$2:A379)+1,\"\")","v":""},null,null,null,null,null,null,null,null,null,null,null,null,null,null,null,null,{"$f":"IFERROR(VLOOKUP(Table_PI[[#This Row],[Measure]],'Equipment Lookups'!$C$3:$D$23,2,FALSE),\"\")","v":""},0,{"$f":"IF(Table_PI[[#This Row],[Hide: Formula Name]]<>\"\",IFERROR(IF(AND(ISNUMBER(Table_PI[[#This Row],[Hide: Rebate]]),Table_PI[[#This Row],[Hide: Rebate]]>0), IF($S$401>=50, IF(AND(ProjectStage=\"(Installed)\",$S$401>'Customer Information'!$BC$21), 'Customer Information'!$BC$21*Table_PI[[#This Row],[Hide: Rebate]]/$S$401, IF($S$401<=300000, Table_PI[[#This Row],[Hide: Rebate]], ROUND(300000*Table_PI[[#This Row],[Hide: Rebate]]/'Project Information'!$S$401,2))), \"Does not meet $50 Minimum\"), \"No Rebate\"), \"No Rebate\"),0)","v":0},0,0,0,0,0,0,0,0,0,{"$f":"IF(Table_PI[[#This Row],[Hide: Formula Name]]<>\"\",IF(AND(Table_PI[[#This Row],[Hide: Formula Name]]<>\"\",OR(Table_PI[[#This Row],[Hide: Rebate]]>0,Table_PI[[#This Row],[Hide: Rebate]]=\"No Rebate\")),TRUE,\"MI: Line Item \" & $A380),\"\")","v":""}]
[{"$f":"IF(Table_PI[[#This Row],[Hide: Formula Name]]<>\"\",MAX($A$2:A380)+1,\"\")","v":""},null,null,null,null,null,null,null,null,null,null,null,null,null,null,null,null,{"$f":"IFERROR(VLOOKUP(Table_PI[[#This Row],[Measure]],'Equipment Lookups'!$C$3:$D$23,2,FALSE),\"\")","v":""},0,{"$f":"IF(Table_PI[[#This Row],[Hide: Formula Name]]<>\"\",IFERROR(IF(AND(ISNUMBER(Table_PI[[#This Row],[Hide: Rebate]]),Table_PI[[#This Row],[Hide: Rebate]]>0), IF($S$401>=50, IF(AND(ProjectStage=\"(Installed)\",$S$401>'Customer Information'!$BC$21), 'Customer Information'!$BC$21*Table_PI[[#This Row],[Hide: Rebate]]/$S$401, IF($S$401<=300000, Table_PI[[#This Row],[Hide: Rebate]], ROUND(300000*Table_PI[[#This Row],[Hide: Rebate]]/'Project Information'!$S$401,2))), \"Does not meet $50 Minimum\"), \"No Rebate\"), \"No Rebate\"),0)","v":0},0,0,0,0,0,0,0,0,0,{"$f":"IF(Table_PI[[#This Row],[Hide: Formula Name]]<>\"\",IF(AND(Table_PI[[#This Row],[Hide: Formula Name]]<>\"\",OR(Table_PI[[#This Row],[Hide: Rebate]]>0,Table_PI[[#This Row],[Hide: Rebate]]=\"No Rebate\")),TRUE,\"MI: Line Item \" & $A381),\"\")","v":""}]
[{"$f":"IF(Table_PI[[#This Row],[Hide: Formula Name]]<>\"\",MAX($A$2:A381)+1,\"\")","v":""},null,null,null,null,null,null,null,null,null,null,null,null,null,null,null,null,{"$f":"IFERROR(VLOOKUP(Table_PI[[#This Row],[Measure]],'Equipment Lookups'!$C$3:$D$23,2,FALSE),\"\")","v":""},0,{"$f":"IF(Table_PI[[#This Row],[Hide: Formula Name]]<>\"\",IFERROR(IF(AND(ISNUMBER(Table_PI[[#This Row],[Hide: Rebate]]),Table_PI[[#This Row],[Hide: Rebate]]>0), IF($S$401>=50, IF(AND(ProjectStage=\"(Installed)\",$S$401>'Customer Information'!$BC$21), 'Customer Information'!$BC$21*Table_PI[[#This Row],[Hide: Rebate]]/$S$401, IF($S$401<=300000, Table_PI[[#This Row],[Hide: Rebate]], ROUND(300000*Table_PI[[#This Row],[Hide: Rebate]]/'Project Information'!$S$401,2))), \"Does not meet $50 Minimum\"), \"No Rebate\"), \"No Rebate\"),0)","v":0},0,0,0,0,0,0,0,0,0,{"$f":"IF(Table_PI[[#This Row],[Hide: Formula Name]]<>\"\",IF(AND(Table_PI[[#This Row],[Hide: Formula Name]]<>\"\",OR(Table_PI[[#This Row],[Hide: Rebate]]>0,Table_PI[[#This Row],[Hide: Rebate]]=\"No Rebate\")),TRUE,\"MI: Line Item \" & $A382),\"\")","v":""}]
[{"$f":"IF(Table_PI[[#This Row],[Hide: Formula Name]]<>\"\",MAX($A$2:A382)+1,\"\")","v":""},null,null,null,null,null,null,null,null,null,null,null,null,null,null,null,null,{"$f":"IFERROR(VLOOKUP(Table_PI[[#This Row],[Measure]],'Equipment Lookups'!$C$3:$D$23,2,FALSE),\"\")","v":""},0,{"$f":"IF(Table_PI[[#This Row],[Hide: Formula Name]]<>\"\",IFERROR(IF(AND(ISNUMBER(Table_PI[[#This Row],[Hide: Rebate]]),Table_PI[[#This Row],[Hide: Rebate]]>0), IF($S$401>=50, IF(AND(ProjectStage=\"(Installed)\",$S$401>'Customer Information'!$BC$21), 'Customer Information'!$BC$21*Table_PI[[#This Row],[Hide: Rebate]]/$S$401, IF($S$401<=300000, Table_PI[[#This Row],[Hide: Rebate]], ROUND(300000*Table_PI[[#This Row],[Hide: Rebate]]/'Project Information'!$S$401,2))), \"Does not meet $50 Minimum\"), \"No Rebate\"), \"No Rebate\"),0)","v":0},0,0,0,0,0,0,0,0,0,{"$f":"IF(Table_PI[[#This Row],[Hide: Formula Name]]<>\"\",IF(AND(Table_PI[[#This Row],[Hide: Formula Name]]<>\"\",OR(Table_PI[[#This Row],[Hide: Rebate]]>0,Table_PI[[#This Row],[Hide: Rebate]]=\"No Rebate\")),TRUE,\"MI: Line Item \" & $A383),\"\")","v":""}]
[{"$f":"IF(Table_PI[[#This Row],[Hide: Formula Name]]<>\"\",MAX($A$2:A383)+1,\"\")","v":""},null,null,null,null,null,null,null,null,null,null,null,null,null,null,null,null,{"$f":"IFERROR(VLOOKUP(Table_PI[[#This Row],[Measure]],'Equipment Lookups'!$C$3:$D$23,2,FALSE),\"\")","v":""},0,{"$f":"IF(Table_PI[[#This Row],[Hide: Formula Name]]<>\"\",IFERROR(IF(AND(ISNUMBER(Table_PI[[#This Row],[Hide: Rebate]]),Table_PI[[#This Row],[Hide: Rebate]]>0), IF($S$401>=50, IF(AND(ProjectStage=\"(Installed)\",$S$401>'Customer Information'!$BC$21), 'Customer Information'!$BC$21*Table_PI[[#This Row],[Hide: Rebate]]/$S$401, IF($S$401<=300000, Table_PI[[#This Row],[Hide: Rebate]], ROUND(300000*Table_PI[[#This Row],[Hide: Rebate]]/'Project Information'!$S$401,2))), \"Does not meet $50 Minimum\"), \"No Rebate\"), \"No Rebate\"),0)","v":0},0,0,0,0,0,0,0,0,0,{"$f":"IF(Table_PI[[#This Row],[Hide: Formula Name]]<>\"\",IF(AND(Table_PI[[#This Row],[Hide: Formula Name]]<>\"\",OR(Table_PI[[#This Row],[Hide: Rebate]]>0,Table_PI[[#This Row],[Hide: Rebate]]=\"No Rebate\")),TRUE,\"MI: Line Item \" & $A384),\"\")","v":""}]
[{"$f":"IF(Table_PI[[#This Row],[Hide: Formula Name]]<>\"\",MAX($A$2:A384)+1,\"\")","v":""},null,null,null,null,null,null,null,null,null,null,null,null,null,null,null,null,{"$f":"IFERROR(VLOOKUP(Table_PI[[#This Row],[Measure]],'Equipment Lookups'!$C$3:$D$23,2,FALSE),\"\")","v":""},0,{"$f":"IF(Table_PI[[#This Row],[Hide: Formula Name]]<>\"\",IFERROR(IF(AND(ISNUMBER(Table_PI[[#This Row],[Hide: Rebate]]),Table_PI[[#This Row],[Hide: Rebate]]>0), IF($S$401>=50, IF(AND(ProjectStage=\"(Installed)\",$S$401>'Customer Information'!$BC$21), 'Customer Information'!$BC$21*Table_PI[[#This Row],[Hide: Rebate]]/$S$401, IF($S$401<=300000, Table_PI[[#This Row],[Hide: Rebate]], ROUND(300000*Table_PI[[#This Row],[Hide: Rebate]]/'Project Information'!$S$401,2))), \"Does not meet $50 Minimum\"), \"No Rebate\"), \"No Rebate\"),0)","v":0},0,0,0,0,0,0,0,0,0,{"$f":"IF(Table_PI[[#This Row],[Hide: Formula Name]]<>\"\",IF(AND(Table_PI[[#This Row],[Hide: Formula Name]]<>\"\",OR(Table_PI[[#This Row],[Hide: Rebate]]>0,Table_PI[[#This Row],[Hide: Rebate]]=\"No Rebate\")),TRUE,\"MI: Line Item \" & $A385),\"\")","v":""}]
[{"$f":"IF(Table_PI[[#This Row],[Hide: Formula Name]]<>\"\",MAX($A$2:A385)+1,\"\")","v":""},null,null,null,null,null,null,null,null,null,null,null,null,null,null,null,null,{"$f":"IFERROR(VLOOKUP(Table_PI[[#This Row],[Measure]],'Equipment Lookups'!$C$3:$D$23,2,FALSE),\"\")","v":""},0,{"$f":"IF(Table_PI[[#This Row],[Hide: Formula Name]]<>\"\",IFERROR(IF(AND(ISNUMBER(Table_PI[[#This Row],[Hide: Rebate]]),Table_PI[[#This Row],[Hide: Rebate]]>0), IF($S$401>=50, IF(AND(ProjectStage=\"(Installed)\",$S$401>'Customer Information'!$BC$21), 'Customer Information'!$BC$21*Table_PI[[#This Row],[Hide: Rebate]]/$S$401, IF($S$401<=300000, Table_PI[[#This Row],[Hide: Rebate]], ROUND(300000*Table_PI[[#This Row],[Hide: Rebate]]/'Project Information'!$S$401,2))), \"Does not meet $50 Minimum\"), \"No Rebate\"), \"No Rebate\"),0)","v":0},0,0,0,0,0,0,0,0,0,{"$f":"IF(Table_PI[[#This Row],[Hide: Formula Name]]<>\"\",IF(AND(Table_PI[[#This Row],[Hide: Formula Name]]<>\"\",OR(Table_PI[[#This Row],[Hide: Rebate]]>0,Table_PI[[#This Row],[Hide: Rebate]]=\"No Rebate\")),TRUE,\"MI: Line Item \" & $A386),\"\")","v":""}]
[{"$f":"IF(Table_PI[[#This Row],[Hide: Formula Name]]<>\"\",MAX($A$2:A386)+1,\"\")","v":""},null,null,null,null,null,null,null,null,null,null,null,null,null,null,null,null,{"$f":"IFERROR(VLOOKUP(Table_PI[[#This Row],[Measure]],'Equipment Lookups'!$C$3:$D$23,2,FALSE),\"\")","v":""},0,{"$f":"IF(Table_PI[[#This Row],[Hide: Formula Name]]<>\"\",IFERROR(IF(AND(ISNUMBER(Table_PI[[#This Row],[Hide: Rebate]]),Table_PI[[#This Row],[Hide: Rebate]]>0), IF($S$401>=50, IF(AND(ProjectStage=\"(Installed)\",$S$401>'Customer Information'!$BC$21), 'Customer Information'!$BC$21*Table_PI[[#This Row],[Hide: Rebate]]/$S$401, IF($S$401<=300000, Table_PI[[#This Row],[Hide: Rebate]], ROUND(300000*Table_PI[[#This Row],[Hide: Rebate]]/'Project Information'!$S$401,2))), \"Does not meet $50 Minimum\"), \"No Rebate\"), \"No Rebate\"),0)","v":0},0,0,0,0,0,0,0,0,0,{"$f":"IF(Table_PI[[#This Row],[Hide: Formula Name]]<>\"\",IF(AND(Table_PI[[#This Row],[Hide: Formula Name]]<>\"\",OR(Table_PI[[#This Row],[Hide: Rebate]]>0,Table_PI[[#This Row],[Hide: Rebate]]=\"No Rebate\")),TRUE,\"MI: Line Item \" & $A387),\"\")","v":""}]
[{"$f":"IF(Table_PI[[#This Row],[Hide: Formula Name]]<>\"\",MAX($A$2:A387)+1,\"\")","v":""},null,null,null,null,null,null,null,null,null,null,null,null,null,null,null,null,{"$f":"IFERROR(VLOOKUP(Table_PI[[#This Row],[Measure]],'Equipment Lookups'!$C$3:$D$23,2,FALSE),\"\")","v":""},0,{"$f":"IF(Table_PI[[#This Row],[Hide: Formula Name]]<>\"\",IFERROR(IF(AND(ISNUMBER(Table_PI[[#This Row],[Hide: Rebate]]),Table_PI[[#This Row],[Hide: Rebate]]>0), IF($S$401>=50, IF(AND(ProjectStage=\"(Installed)\",$S$401>'Customer Information'!$BC$21), 'Customer Information'!$BC$21*Table_PI[[#This Row],[Hide: Rebate]]/$S$401, IF($S$401<=300000, Table_PI[[#This Row],[Hide: Rebate]], ROUND(300000*Table_PI[[#This Row],[Hide: Rebate]]/'Project Information'!$S$401,2))), \"Does not meet $50 Minimum\"), \"No Rebate\"), \"No Rebate\"),0)","v":0},0,0,0,0,0,0,0,0,0,{"$f":"IF(Table_PI[[#This Row],[Hide: Formula Name]]<>\"\",IF(AND(Table_PI[[#This Row],[Hide: Formula Name]]<>\"\",OR(Table_PI[[#This Row],[Hide: Rebate]]>0,Table_PI[[#This Row],[Hide: Rebate]]=\"No Rebate\")),TRUE,\"MI: Line Item \" & $A388),\"\")","v":""}]
[{"$f":"IF(Table_PI[[#This Row],[Hide: Formula Name]]<>\"\",MAX($A$2:A388)+1,\"\")","v":""},null,null,null,null,null,null,null,null,null,null,null,null,null,null,null,null,{"$f":"IFERROR(VLOOKUP(Table_PI[[#This Row],[Measure]],'Equipment Lookups'!$C$3:$D$23,2,FALSE),\"\")","v":""},0,{"$f":"IF(Table_PI[[#This Row],[Hide: Formula Name]]<>\"\",IFERROR(IF(AND(ISNUMBER(Table_PI[[#This Row],[Hide: Rebate]]),Table_PI[[#This Row],[Hide: Rebate]]>0), IF($S$401>=50, IF(AND(ProjectStage=\"(Installed)\",$S$401>'Customer Information'!$BC$21), 'Customer Information'!$BC$21*Table_PI[[#This Row],[Hide: Rebate]]/$S$401, IF($S$401<=300000, Table_PI[[#This Row],[Hide: Rebate]], ROUND(300000*Table_PI[[#This Row],[Hide: Rebate]]/'Project Information'!$S$401,2))), \"Does not meet $50 Minimum\"), \"No Rebate\"), \"No Rebate\"),0)","v":0},0,0,0,0,0,0,0,0,0,{"$f":"IF(Table_PI[[#This Row],[Hide: Formula Name]]<>\"\",IF(AND(Table_PI[[#This Row],[Hide: Formula Name]]<>\"\",OR(Table_PI[[#This Row],[Hide: Rebate]]>0,Table_PI[[#This Row],[Hide: Rebate]]=\"No Rebate\")),TRUE,\"MI: Line Item \" & $A389),\"\")","v":""}]
[{"$f":"IF(Table_PI[[#This Row],[Hide: Formula Name]]<>\"\",MAX($A$2:A389)+1,\"\")","v":""},null,null,null,null,null,null,null,null,null,null,null,null,null,null,null,null,{"$f":"IFERROR(VLOOKUP(Table_PI[[#This Row],[Measure]],'Equipment Lookups'!$C$3:$D$23,2,FALSE),\"\")","v":""},0,{"$f":"IF(Table_PI[[#This Row],[Hide: Formula Name]]<>\"\",IFERROR(IF(AND(ISNUMBER(Table_PI[[#This Row],[Hide: Rebate]]),Table_PI[[#This Row],[Hide: Rebate]]>0), IF($S$401>=50, IF(AND(ProjectStage=\"(Installed)\",$S$401>'Customer Information'!$BC$21), 'Customer Information'!$BC$21*Table_PI[[#This Row],[Hide: Rebate]]/$S$401, IF($S$401<=300000, Table_PI[[#This Row],[Hide: Rebate]], ROUND(300000*Table_PI[[#This Row],[Hide: Rebate]]/'Project Information'!$S$401,2))), \"Does not meet $50 Minimum\"), \"No Rebate\"), \"No Rebate\"),0)","v":0},0,0,0,0,0,0,0,0,0,{"$f":"IF(Table_PI[[#This Row],[Hide: Formula Name]]<>\"\",IF(AND(Table_PI[[#This Row],[Hide: Formula Name]]<>\"\",OR(Table_PI[[#This Row],[Hide: Rebate]]>0,Table_PI[[#This Row],[Hide: Rebate]]=\"No Rebate\")),TRUE,\"MI: Line Item \" & $A390),\"\")","v":""}]
[{"$f":"IF(Table_PI[[#This Row],[Hide: Formula Name]]<>\"\",MAX($A$2:A390)+1,\"\")","v":""},null,null,null,null,null,null,null,null,null,null,null,null,null,null,null,null,{"$f":"IFERROR(VLOOKUP(Table_PI[[#This Row],[Measure]],'Equipment Lookups'!$C$3:$D$23,2,FALSE),\"\")","v":""},0,{"$f":"IF(Table_PI[[#This Row],[Hide: Formula Name]]<>\"\",IFERROR(IF(AND(ISNUMBER(Table_PI[[#This Row],[Hide: Rebate]]),Table_PI[[#This Row],[Hide: Rebate]]>0), IF($S$401>=50, IF(AND(ProjectStage=\"(Installed)\",$S$401>'Customer Information'!$BC$21), 'Customer Information'!$BC$21*Table_PI[[#This Row],[Hide: Rebate]]/$S$401, IF($S$401<=300000, Table_PI[[#This Row],[Hide: Rebate]], ROUND(300000*Table_PI[[#This Row],[Hide: Rebate]]/'Project Information'!$S$401,2))), \"Does not meet $50 Minimum\"), \"No Rebate\"), \"No Rebate\"),0)","v":0},0,0,0,0,0,0,0,0,0,{"$f":"IF(Table_PI[[#This Row],[Hide: Formula Name]]<>\"\",IF(AND(Table_PI[[#This Row],[Hide: Formula Name]]<>\"\",OR(Table_PI[[#This Row],[Hide: Rebate]]>0,Table_PI[[#This Row],[Hide: Rebate]]=\"No Rebate\")),TRUE,\"MI: Line Item \" & $A391),\"\")","v":""}]
[{"$f":"IF(Table_PI[[#This Row],[Hide: Formula Name]]<>\"\",MAX($A$2:A391)+1,\"\")","v":""},null,null,null,null,null,null,null,null,null,null,null,null,null,null,null,null,{"$f":"IFERROR(VLOOKUP(Table_PI[[#This Row],[Measure]],'Equipment Lookups'!$C$3:$D$23,2,FALSE),\"\")","v":""},0,{"$f":"IF(Table_PI[[#This Row],[Hide: Formula Name]]<>\"\",IFERROR(IF(AND(ISNUMBER(Table_PI[[#This Row],[Hide: Rebate]]),Table_PI[[#This Row],[Hide: Rebate]]>0), IF($S$401>=50, IF(AND(ProjectStage=\"(Installed)\",$S$401>'Customer Information'!$BC$21), 'Customer Information'!$BC$21*Table_PI[[#This Row],[Hide: Rebate]]/$S$401, IF($S$401<=300000, Table_PI[[#This Row],[Hide: Rebate]], ROUND(300000*Table_PI[[#This Row],[Hide: Rebate]]/'Project Information'!$S$401,2))), \"Does not meet $50 Minimum\"), \"No Rebate\"), \"No Rebate\"),0)","v":0},0,0,0,0,0,0,0,0,0,{"$f":"IF(Table_PI[[#This Row],[Hide: Formula Name]]<>\"\",IF(AND(Table_PI[[#This Row],[Hide: Formula Name]]<>\"\",OR(Table_PI[[#This Row],[Hide: Rebate]]>0,Table_PI[[#This Row],[Hide: Rebate]]=\"No Rebate\")),TRUE,\"MI: Line Item \" & $A392),\"\")","v":""}]
[{"$f":"IF(Table_PI[[#This Row],[Hide: Formula Name]]<>\"\",MAX($A$2:A392)+1,\"\")","v":""},null,null,null,null,null,null,null,null,null,null,null,null,null,null,null,null,{"$f":"IFERROR(VLOOKUP(Table_PI[[#This Row],[Measure]],'Equipment Lookups'!$C$3:$D$23,2,FALSE),\"\")","v":""},0,{"$f":"IF(Table_PI[[#This Row],[Hide: Formula Name]]<>\"\",IFERROR(IF(AND(ISNUMBER(Table_PI[[#This Row],[Hide: Rebate]]),Table_PI[[#This Row],[Hide: Rebate]]>0), IF($S$401>=50, IF(AND(ProjectStage=\"(Installed)\",$S$401>'Customer Information'!$BC$21), 'Customer Information'!$BC$21*Table_PI[[#This Row],[Hide: Rebate]]/$S$401, IF($S$401<=300000, Table_PI[[#This Row],[Hide: Rebate]], ROUND(300000*Table_PI[[#This Row],[Hide: Rebate]]/'Project Information'!$S$401,2))), \"Does not meet $50 Minimum\"), \"No Rebate\"), \"No Rebate\"),0)","v":0},0,0,0,0,0,0,0,0,0,{"$f":"IF(Table_PI[[#This Row],[Hide: Formula Name]]<>\"\",IF(AND(Table_PI[[#This Row],[Hide: Formula Name]]<>\"\",OR(Table_PI[[#This Row],[Hide: Rebate]]>0,Table_PI[[#This Row],[Hide: Rebate]]=\"No Rebate\")),TRUE,\"MI: Line Item \" & $A393),\"\")","v":""}]
[{"$f":"IF(Table_PI[[#This Row],[Hide: Formula Name]]<>\"\",MAX($A$2:A393)+1,\"\")","v":""},null,null,null,null,null,null,null,null,null,null,null,null,null,null,null,null,{"$f":"IFERROR(VLOOKUP(Table_PI[[#This Row],[Measure]],'Equipment Lookups'!$C$3:$D$23,2,FALSE),\"\")","v":""},0,{"$f":"IF(Table_PI[[#This Row],[Hide: Formula Name]]<>\"\",IFERROR(IF(AND(ISNUMBER(Table_PI[[#This Row],[Hide: Rebate]]),Table_PI[[#This Row],[Hide: Rebate]]>0), IF($S$401>=50, IF(AND(ProjectStage=\"(Installed)\",$S$401>'Customer Information'!$BC$21), 'Customer Information'!$BC$21*Table_PI[[#This Row],[Hide: Rebate]]/$S$401, IF($S$401<=300000, Table_PI[[#This Row],[Hide: Rebate]], ROUND(300000*Table_PI[[#This Row],[Hide: Rebate]]/'Project Information'!$S$401,2))), \"Does not meet $50 Minimum\"), \"No Rebate\"), \"No Rebate\"),0)","v":0},0,0,0,0,0,0,0,0,0,{"$f":"IF(Table_PI[[#This Row],[Hide: Formula Name]]<>\"\",IF(AND(Table_PI[[#This Row],[Hide: Formula Name]]<>\"\",OR(Table_PI[[#This Row],[Hide: Rebate]]>0,Table_PI[[#This Row],[Hide: Rebate]]=\"No Rebate\")),TRUE,\"MI: Line Item \" & $A394),\"\")","v":""}]
[{"$f":"IF(Table_PI[[#This Row],[Hide: Formula Name]]<>\"\",MAX($A$2:A394)+1,\"\")","v":""},null,null,null,null,null,null,null,null,null,null,null,null,null,null,null,null,{"$f":"IFERROR(VLOOKUP(Table_PI[[#This Row],[Measure]],'Equipment Lookups'!$C$3:$D$23,2,FALSE),\"\")","v":""},0,{"$f":"IF(Table_PI[[#This Row],[Hide: Formula Name]]<>\"\",IFERROR(IF(AND(ISNUMBER(Table_PI[[#This Row],[Hide: Rebate]]),Table_PI[[#This Row],[Hide: Rebate]]>0), IF($S$401>=50, IF(AND(ProjectStage=\"(Installed)\",$S$401>'Customer Information'!$BC$21), 'Customer Information'!$BC$21*Table_PI[[#This Row],[Hide: Rebate]]/$S$401, IF($S$401<=300000, Table_PI[[#This Row],[Hide: Rebate]], ROUND(300000*Table_PI[[#This Row],[Hide: Rebate]]/'Project Information'!$S$401,2))), \"Does not meet $50 Minimum\"), \"No Rebate\"), \"No Rebate\"),0)","v":0},0,0,0,0,0,0,0,0,0,{"$f":"IF(Table_PI[[#This Row],[Hide: Formula Name]]<>\"\",IF(AND(Table_PI[[#This Row],[Hide: Formula Name]]<>\"\",OR(Table_PI[[#This Row],[Hide: Rebate]]>0,Table_PI[[#This Row],[Hide: Rebate]]=\"No Rebate\")),TRUE,\"MI: Line Item \" & $A395),\"\")","v":""}]
[{"$f":"IF(Table_PI[[#This Row],[Hide: Formula Name]]<>\"\",MAX($A$2:A395)+1,\"\")","v":""},null,null,null,null,null,null,null,null,null,null,null,null,null,null,null,null,{"$f":"IFERROR(VLOOKUP(Table_PI[[#This Row],[Measure]],'Equipment Lookups'!$C$3:$D$23,2,FALSE),\"\")","v":""},0,{"$f":"IF(Table_PI[[#This Row],[Hide: Formula Name]]<>\"\",IFERROR(IF(AND(ISNUMBER(Table_PI[[#This Row],[Hide: Rebate]]),Table_PI[[#This Row],[Hide: Rebate]]>0), IF($S$401>=50, IF(AND(ProjectStage=\"(Installed)\",$S$401>'Customer Information'!$BC$21), 'Customer Information'!$BC$21*Table_PI[[#This Row],[Hide: Rebate]]/$S$401, IF($S$401<=300000, Table_PI[[#This Row],[Hide: Rebate]], ROUND(300000*Table_PI[[#This Row],[Hide: Rebate]]/'Project Information'!$S$401,2))), \"Does not meet $50 Minimum\"), \"No Rebate\"), \"No Rebate\"),0)","v":0},0,0,0,0,0,0,0,0,0,{"$f":"IF(Table_PI[[#This Row],[Hide: Formula Name]]<>\"\",IF(AND(Table_PI[[#This Row],[Hide: Formula Name]]<>\"\",OR(Table_PI[[#This Row],[Hide: Rebate]]>0,Table_PI[[#This Row],[Hide: Rebate]]=\"No Rebate\")),TRUE,\"MI: Line Item \" & $A396),\"\")","v":""}]
[{"$f":"IF(Table_PI[[#This Row],[Hide: Formula Name]]<>\"\",MAX($A$2:A396)+1,\"\")","v":""},null,null,null,null,null,null,null,null,null,null,null,null,null,null,null,null,{"$f":"IFERROR(VLOOKUP(Table_PI[[#This Row],[Measure]],'Equipment Lookups'!$C$3:$D$23,2,FALSE),\"\")","v":""},0,{"$f":"IF(Table_PI[[#This Row],[Hide: Formula Name]]<>\"\",IFERROR(IF(AND(ISNUMBER(Table_PI[[#This Row],[Hide: Rebate]]),Table_PI[[#This Row],[Hide: Rebate]]>0), IF($S$401>=50, IF(AND(ProjectStage=\"(Installed)\",$S$401>'Customer Information'!$BC$21), 'Customer Information'!$BC$21*Table_PI[[#This Row],[Hide: Rebate]]/$S$401, IF($S$401<=300000, Table_PI[[#This Row],[Hide: Rebate]], ROUND(300000*Table_PI[[#This Row],[Hide: Rebate]]/'Project Information'!$S$401,2))), \"Does not meet $50 Minimum\"), \"No Rebate\"), \"No Rebate\"),0)","v":0},0,0,0,0,0,0,0,0,0,{"$f":"IF(Table_PI[[#This Row],[Hide: Formula Name]]<>\"\",IF(AND(Table_PI[[#This Row],[Hide: Formula Name]]<>\"\",OR(Table_PI[[#This Row],[Hide: Rebate]]>0,Table_PI[[#This Row],[Hide: Rebate]]=\"No Rebate\")),TRUE,\"MI: Line Item \" & $A397),\"\")","v":""}]
[{"$f":"IF(Table_PI[[#This Row],[Hide: Formula Name]]<>\"\",MAX($A$2:A397)+1,\"\")","v":""},null,null,null,null,null,null,null,null,null,null,null,null,null,null,null,null,{"$f":"IFERROR(VLOOKUP(Table_PI[[#This Row],[Measure]],'Equipment Lookups'!$C$3:$D$23,2,FALSE),\"\")","v":""},0,{"$f":"IF(Table_PI[[#This Row],[Hide: Formula Name]]<>\"\",IFERROR(IF(AND(ISNUMBER(Table_PI[[#This Row],[Hide: Rebate]]),Table_PI[[#This Row],[Hide: Rebate]]>0), IF($S$401>=50, IF(AND(ProjectStage=\"(Installed)\",$S$401>'Customer Information'!$BC$21), 'Customer Information'!$BC$21*Table_PI[[#This Row],[Hide: Rebate]]/$S$401, IF($S$401<=300000, Table_PI[[#This Row],[Hide: Rebate]], ROUND(300000*Table_PI[[#This Row],[Hide: Rebate]]/'Project Information'!$S$401,2))), \"Does not meet $50 Minimum\"), \"No Rebate\"), \"No Rebate\"),0)","v":0},0,0,0,0,0,0,0,0,0,{"$f":"IF(Table_PI[[#This Row],[Hide: Formula Name]]<>\"\",IF(AND(Table_PI[[#This Row],[Hide: Formula Name]]<>\"\",OR(Table_PI[[#This Row],[Hide: Rebate]]>0,Table_PI[[#This Row],[Hide: Rebate]]=\"No Rebate\")),TRUE,\"MI: Line Item \" & $A398),\"\")","v":""}]
[{"$f":"IF(Table_PI[[#This Row],[Hide: Formula Name]]<>\"\",MAX($A$2:A398)+1,\"\")","v":""},null,null,null,null,null,null,null,null,null,null,null,null,null,null,null,null,{"$f":"IFERROR(VLOOKUP(Table_PI[[#This Row],[Measure]],'Equipment Lookups'!$C$3:$D$23,2,FALSE),\"\")","v":""},0,{"$f":"IF(Table_PI[[#This Row],[Hide: Formula Name]]<>\"\",IFERROR(IF(AND(ISNUMBER(Table_PI[[#This Row],[Hide: Rebate]]),Table_PI[[#This Row],[Hide: Rebate]]>0), IF($S$401>=50, IF(AND(ProjectStage=\"(Installed)\",$S$401>'Customer Information'!$BC$21), 'Customer Information'!$BC$21*Table_PI[[#This Row],[Hide: Rebate]]/$S$401, IF($S$401<=300000, Table_PI[[#This Row],[Hide: Rebate]], ROUND(300000*Table_PI[[#This Row],[Hide: Rebate]]/'Project Information'!$S$401,2))), \"Does not meet $50 Minimum\"), \"No Rebate\"), \"No Rebate\"),0)","v":0},0,0,0,0,0,0,0,0,0,{"$f":"IF(Table_PI[[#This Row],[Hide: Formula Name]]<>\"\",IF(AND(Table_PI[[#This Row],[Hide: Formula Name]]<>\"\",OR(Table_PI[[#This Row],[Hide: Rebate]]>0,Table_PI[[#This Row],[Hide: Rebate]]=\"No Rebate\")),TRUE,\"MI: Line Item \" & $A399),\"\")","v":""}]
[{"$f":"IF(Table_PI[[#This Row],[Hide: Formula Name]]<>\"\",MAX($A$2:A399)+1,\"\")","v":""},null,null,null,null,null,null,null,null,null,null,null,null,null,null,null,null,{"$f":"IFERROR(VLOOKUP(Table_PI[[#This Row],[Measure]],'Equipment Lookups'!$C$3:$D$23,2,FALSE),\"\")","v":""},0,{"$f":"IF(Table_PI[[#This Row],[Hide: Formula Name]]<>\"\",IFERROR(IF(AND(ISNUMBER(Table_PI[[#This Row],[Hide: Rebate]]),Table_PI[[#This Row],[Hide: Rebate]]>0), IF($S$401>=50, IF(AND(ProjectStage=\"(Installed)\",$S$401>'Customer Information'!$BC$21), 'Customer Information'!$BC$21*Table_PI[[#This Row],[Hide: Rebate]]/$S$401, IF($S$401<=300000, Table_PI[[#This Row],[Hide: Rebate]], ROUND(300000*Table_PI[[#This Row],[Hide: Rebate]]/'Project Information'!$S$401,2))), \"Does not meet $50 Minimum\"), \"No Rebate\"), \"No Rebate\"),0)","v":0},0,0,0,0,0,0,0,0,0,{"$f":"IF(Table_PI[[#This Row],[Hide: Formula Name]]<>\"\",IF(AND(Table_PI[[#This Row],[Hide: Formula Name]]<>\"\",OR(Table_PI[[#This Row],[Hide: Rebate]]>0,Table_PI[[#This Row],[Hide: Rebate]]=\"No Rebate\")),TRUE,\"MI: Line Item \" & $A400),\"\")","v":""}]
["Totals",".",".",".",".",".",".",".",".",".",null,null,".",".",".",".",".",".",{"$f":"SUM(S$3:S400)","v":0},{"$f":"IF(SUM($T$3:$T$400)>0,IF(SUM($T$3:$T400)>=50,MIN(300000,SUM(T$3:T400),IF(AND(OR(ProjectStage=\"(Reservation)\",ProjectStage=\"(Evaluation)\"),'Customer Information'!$BC$21=0),300000,'Customer Information'!$BC$21)),\"$50 Min Not Met\"),0)","v":0},{"$f":"IF(SUM($T$3:$T$400)>0,IF(SUM($T$3:$T400)>=50,SUM(U$3:U400),\"$50 Min Not Met\"),0)","v":0},{"$f":"IF(SUM($T$3:$T$400)>0,IF(SUM($T$3:$T400)>=50,SUM(V$3:V400),\"$50 Min Not Met\"),0)","v":0},{"$f":"IF(SUM($T$3:$T$400)>0,IF(SUM($T$3:$T400)>=50,SUM(W$3:W400),\"$50 Min Not Met\"),0)","v":0},{"$f":"IF(SUM($T$3:$T$400)>0,IF(SUM($T$3:$T400)>=50,SUM(X$3:X400),\"$50 Min Not Met\"),0)","v":0},{"$f":"IF(SUM($T$3:$T$400)>0,IF(SUM($T$3:$T400)>=50,SUM(Y$3:Y400),\"$50 Min Not Met\"),0)","v":0},{"$f":"IF(SUM($T$3:$T$400)>0,IF(SUM($T$3:$T400)>=50,SUM(Z$3:Z400),\"$50 Min Not Met\"),0)","v":0},{"$f":"IF(SUM($T$3:$T$400)>0,IF(SUM($T$3:$T400)>=50,SUM(AA$3:AA400),\"$50 Min Not Met\"),0)","v":0},{"$f":"IF(SUM($T$3:$T$400)>0,IF(SUM($T$3:$T400)>=50,SUM(AB$3:AB400),\"$50 Min Not Met\"),0)","v":0},{"$f":"IF(SUM($T$3:$T$400)>0,IF(SUM($T$3:$T400)>=50,SUM(AC$3:AC400),\"$50 Min Not Met\"),0)","v":0},{"$f":"IFERROR(IF(MAX($A$3:$A$400)=0,\"No Measures Selected\", INDIRECT(\"Z\" & MATCH(\"MI:*\",$AD$3:$AD$400,0)+2)),\"Complete\")","v":"No Measures Selected"}]

{"sheet":"Project Summary","index":5,"n_rows":401,"n_cols":61,"rows_kept":401,"cut":false,"hidden":true,"merged":[[27,55,27,62],[18,55,18,62],[20,55,20,62],[24,55,25,62],[1,55,1,57],[2,55,2,57],[3,55,3,57],[5,55,5,57],[7,55,7,62],[4,55,4,57]]}
[1,{"$f":"A1+1","v":2},{"$f":"B1+1","v":3},4,5,6,7,8,9,10,11,12,13,14,15,16,17,18,19,20,21,22,23,24,25,26,27,28,29,30,31,32,33,34,35,36,37,38,39,40,41,42,43,44,45,46,47,48,49,50,51,52,53,54]
["Line No.","Eligible","MeasureName","MeassureCategory","ProposedMeasureCategory","P_MeasureOption1","P_MeasureOption2","Manufacturer","Model#","Serial#","SizeUnit","Size","Input1","B_InputValue1","P_InputValue1","Input2","B_InputValue2","P_InputValue2","Input3","B_InputValue3","P_InputValue3","Input4","B_InputValue4","P_InputValue4","Input5","B_InputValue5","P_InputValue5","Input6","B_InputValue6","P_InputValue6","Quantity","Notes","BaselinekWh","BaselinekW","ProposedkWh","ProposedkW","Tier","IncentiveRate","Incentive_Customer","CostRate","IncrementalCost","MeasureCost","kWhSavings","DemandSavingskW","WaterSavings","ElectrificationSavings","ElectrificationGHG","AnnualCO2Savings","AnnualVehicleSavings","AnnualCarbonSavings","AnnualNoxSavings","EFLHCooling","EFLH_Heating","MeasureLife",null,"Key"]
[{"$f":"Table_PI[[#This Row],[Line No.]]","v":""},{"$f":"IF(Table_SummaryPI[[#This Row],[MeasureName]]<>\"\",NOT(ISTEXT(Table_PI[[#This Row],[Rebate]])),\"\")","v":""},{"$f":"IF(Table_SummaryPI[[#This Row],[MeassureCategory]]<>\"\",CONCATENATE(Table_SummaryPI[[#This Row],[MeassureCategory]],  \" - \", Table_SummaryPI[[#This Row],[ProposedMeasureCategory]],  \" - \", TEXT(Table_SummaryPI[[#This Row],[Size]],\"#,##0.00\"),\" \",Table_SummaryPI[[#This Row],[SizeUnit]]),\"\")","v":""},{"$f":"SUBSTITUTE(Table_PI[[#This Row],[Measure]],\"     \",\"\",1)","v":""},{"$f":"IF(Table_PI[[#This Row],[List 1]]<>\"\",Table_PI[[#This Row],[List 1]],\"\")","v":""},{"$f":"IF(Table_PI[[#This Row],[List 2]]<>\"\",Table_PI[[#This Row],[List 2]],\"\")","v":""},{"$f":"IF(Table_PI[[#This Row],[List 3]]<>\"\",Table_PI[[#This Row],[List 3]],\"\")","v":""},{"$f":"IF(Table_PI[[#This Row],[Manufacturer]]=\"\",\"\",Table_PI[[#This Row],[Manufacturer]])","v":""},{"$f":"IF(Table_PI[[#This Row],[Model Number]]=\"\",\"\",Table_PI[[#This Row],[Model Number]])","v":""},{"$f":"IF(Table_PI[[#This Row],[Serial Number(s)]]=\"\",\"\",Table_PI[[#This Row],[Serial Number(s)]])","v":""},null,{"$f":"IF(Table_PI[[#This Row],[Size]]=\"\",\"\",Table_PI[[#This Row],[Size]])","v":""},null,null,{"$f":"IF(Table_PI[[#This Row],[Input 1]]<>\"\",Table_PI[[#This Row],[Input 1]],\"\")","v":""},null,null,{"$f":"IF(Table_PI[[#This Row],[Input 2]]<>\"\",Table_PI[[#This Row],[Input 2]],\"\")","v":""},null,null,{"$f":"IF(Table_PI[[#This Row],[Input 3]]<>\"\",Table_PI[[#This Row],[Input 3]],\"\")","v":""},null,null,{"$f":"IF(Table_PI[[#This Row],[Input 4]]<>\"\",Table_PI[[#This Row],[Input 4]],\"\")","v":""},null,null,{"$f":"IF(Table_PI[[#This Row],[Input 4]]<>\"\",Table_PI[[#This Row],[Input 4]],\"\")","v":""},null,null,{"$f":"IF(Table_PI[[#This Row],[Input 4]]<>\"\",Table_PI[[#This Row],[Input 4]],\"\")","v":""},{"$f":"IF(Table_PI[[#This Row],[Quantity]]=\"\",\"\",Table_PI[[#This Row],[Quantity]])","v":""},null,{"$f":"IF(OR(Table_PI[[#This Row],[Hide: Baseline kWh]]=\"\",Table_PI[[#This Row],[Hide: Baseline kWh]]=0,ISTEXT(Table_PI[[#This Row],[Hide: Baseline kWh]])),\"\",Table_PI[[#This Row],[Hide: Baseline kWh]])","v":""},{"$f":"IF(OR(Table_PI[[#This Row],[Hide: Baseline kW]]=\"\",Table_PI[[#This Row],[Hide: Baseline kW]]=0,ISTEXT(Table_PI[[#This Row],[Hide: Baseline kW]])),\"\",Table_PI[[#This Row],[Hide: Baseline kW]])","v":""},{"$f":"IF(OR(Table_PI[[#This Row],[Hide: Proposed kWh]]=\"\",Table_PI[[#This Row],[Hide: Proposed kWh]]=0,ISTEXT(Table_PI[[#This Row],[Hide: Proposed kWh]])),\"\",Table_PI[[#This Row],[Hide: Proposed kWh]])","v":""},{"$f":"IF(OR(Table_PI[[#This Row],[Hide: Proposed kW]]=\"\",Table_PI[[#This Row],[Hide: Proposed kW]]=0,ISTEXT(Table_PI[[#This Row],[Hide: Proposed kW]])),\"\",Table_PI[[#This Row],[Hide: Proposed kW]])","v":""},null,null,{"$f":"IF(OR(Table_PI[[#This Row],[Hide: Rebate]]=\"\",Table_PI[[#This Row],[Hide: Rebate]]=0,ISTEXT(Table_PI[[#This Row],[Hide: Rebate]])),\"\",Table_PI[[#This Row],[Hide: Rebate]])","v":""},null,{"$f":"IF(OR(Table_PI[[#This Row],[Hide: Incremental Cost]]=\"\",Table_PI[[#This Row],[Hide: Incremental Cost]]=0,ISTEXT(Table_PI[[#This Row],[Hide: Incremental Cost]])),\"\",Table_PI[[#This Row],[Hide: Incremental Cost]])","v":""},{"$f":"IFERROR(IF(Table_SummaryPI[[#This Row],[Incentive_Customer]]=\"\",\"\",ROUND(Table_SummaryPI[[#This Row],[Incentive_Customer]]/$AM$401*'Customer Information'!$BC$21,2)),0)","v":""},{"$f":"IF(OR(Table_PI[[#This Row],[Annual kWh]]=\"\",Table_PI[[#This Row],[Annual kWh]]=0,ISTEXT(Table_PI[[#This Row],[Annual kWh]])),\"\",Table_PI[[#This Row],[Annual kWh]])","v":""},{"$f":"IF(OR(Table_PI[[#This Row],[Peak kW]]=\"\",Table_PI[[#This Row],[Peak kW]]=0,ISTEXT(Table_PI[[#This Row],[Peak kW]])),\"\",Table_PI[[#This Row],[Peak kW]])","v":""},{"$f":"IF(Table_SummaryPI[[#This Row],[Line No.]]<>\"\",IF(AND(Table_SummaryPI[[#This Row],[MeassureCategory]]=\"Chiller\",Table_SummaryPI[[#This Row],[P_MeasureOption1]]=\"Air-Cooled (Water-Cooled Replacement)\"),$BD$29*Table_SummaryPI[[#This Row],[Size]]*Table_SummaryPI[[#This Row],[Quantity]]*Table_SummaryPI[[#This Row],[EFLHCooling]],\nIF(ISNUMBER(FIND(\"Dishwasher\",Table_SummaryPI[[#This Row],[ProposedMeasureCategory]],1)),$BH$29*Table_SummaryPI[[#This Row],[Quantity]],\nIF(ISNUMBER(FIND(\"Ice Maker\",Table_SummaryPI[[#This Row],[ProposedMeasureCategory]],1)),$BD$31*Table_SummaryPI[[#This Row],[Quantity]],\nIF(ISNUMBER(FIND(\"Spray Valve\",Table_SummaryPI[[#This Row],[ProposedMeasureCategory]],1)),$BH$31*Table_SummaryPI[[#This Row],[Quantity]],\n0)))),\"\")","v":""},{"$f":"IF(OR(Table_PI[[#This Row],[Hide: Electrification kWh]]=\"\",Table_PI[[#This Row],[Hide: Electrification kWh]]=0,ISTEXT(Table_PI[[#This Row],[Hide: Electrification kWh]])),\"\",Table_PI[[#This Row],[Hide: Electrification kWh]])","v":""},{"$f":"IF(OR(Table_PI[[#This Row],[Hide: Electrification GHG]]=\"\",Table_PI[[#This Row],[Hide: Electrification GHG]]=0,ISTEXT(Table_PI[[#This Row],[Hide: Electrification GHG]])),\"\",Table_PI[[#This Row],[Hide: Electrification GHG]])","v":""},{"$f":"IFERROR(IF(Table_SummaryPI[[#This Row],[kWhSavings]]=\"\",\"\",$BH$9*Table_SummaryPI[[#This Row],[kWhSavings]]),0)","v":""},{"$f":"IFERROR(IF(Table_SummaryPI[[#This Row],[kWhSavings]]=\"\",\"\",$BH$14*Table_SummaryPI[[#This Row],[kWhSavings]]),0)","v":""},{"$f":"IFERROR(IF(Table_SummaryPI[[#This Row],[kWhSavings]]=\"\",\"\",$BH$18*Table_SummaryPI[[#This Row],[kWhSavings]]),0)","v":""},{"$f":"IFERROR(IF(Table_SummaryPI[[#This Row],[kWhSavings]]=\"\",\"\",$BH$22*Table_SummaryPI[[#This Row],[kWhSavings]]),0)","v":""},null,null,null,null,"Pulls from MeasureCalcs function"]
[{"$f":"Table_PI[[#This Row],[Line No.]]","v":""},{"$f":"IF(Table_SummaryPI[[#This Row],[MeasureName]]<>\"\",NOT(ISTEXT(Table_PI[[#This Row],[Rebate]])),\"\")","v":""},{"$f":"IF(Table_SummaryPI[[#This Row],[MeassureCategory]]<>\"\",CONCATENATE(Table_SummaryPI[[#This Row],[MeassureCategory]],  \" - \", Table_SummaryPI[[#This Row],[ProposedMeasureCategory]],  \" - \", TEXT(Table_SummaryPI[[#This Row],[Size]],\"#,##0.00\"),\" \",Table_SummaryPI[[#This Row],[SizeUnit]]),\"\")","v":""},{"$f":"SUBSTITUTE(Table_PI[[#This Row],[Measure]],\"     \",\"\",1)","v":""},{"$f":"IF(Table_PI[[#This Row],[List 1]]<>\"\",Table_PI[[#This Row],[List 1]],\"\")","v":""},{"$f":"IF(Table_PI[[#This Row],[List 2]]<>\"\",Table_PI[[#This Row],[List 2]],\"\")","v":""},{"$f":"IF(Table_PI[[#This Row],[List 3]]<>\"\",Table_PI[[#This Row],[List 3]],\"\")","v":""},{"$f":"IF(Table_PI[[#This Row],[Manufacturer]]=\"\",\"\",Table_PI[[#This Row],[Manufacturer]])","v":""},{"$f":"IF(Table_PI[[#This Row],[Model Number]]=\"\",\"\",Table_PI[[#This Row],[Model Number]])","v":""},{"$f":"IF(Table_PI[[#This Row],[Serial Number(s)]]=\"\",\"\",Table_PI[[#This Row],[Serial Number(s)]])","v":""},null,{"$f":"IF(Table_PI[[#This Row],[Size]]=\"\",\"\",Table_PI[[#This Row],[Size]])","v":""},null,null,{"$f":"IF(Table_PI[[#This Row],[Input 1]]<>\"\",Table_PI[[#This Row],[Input 1]],\"\")","v":""},null,null,{"$f":"IF(Table_PI[[#This Row],[Input 2]]<>\"\",Table_PI[[#This Row],[Input 2]],\"\")","v":""},null,null,{"$f":"IF(Table_PI[[#This Row],[Input 3]]<>\"\",Table_PI[[#This Row],[Input 3]],\"\")","v":""},null,null,{"$f":"IF(Table_PI[[#This Row],[Input 4]]<>\"\",Table_PI[[#This Row],[Input 4]],\"\")","v":""},null,null,{"$f":"IF(Table_PI[[#This Row],[Input 4]]<>\"\",Table_PI[[#This Row],[Input 4]],\"\")","v":""},null,null,{"$f":"IF(Table_PI[[#This Row],[Input 4]]<>\"\",Table_PI[[#This Row],[Input 4]],\"\")","v":""},{"$f":"IF(Table_PI[[#This Row],[Quantity]]=\"\",\"\",Table_PI[[#This Row],[Quantity]])","v":""},null,{"$f":"IF(OR(Table_PI[[#This Row],[Hide: Baseline kWh]]=\"\",Table_PI[[#This Row],[Hide: Baseline kWh]]=0,ISTEXT(Table_PI[[#This Row],[Hide: Baseline kWh]])),\"\",Table_PI[[#This Row],[Hide: Baseline kWh]])","v":""},{"$f":"IF(OR(Table_PI[[#This Row],[Hide: Baseline kW]]=\"\",Table_PI[[#This Row],[Hide: Baseline kW]]=0,ISTEXT(Table_PI[[#This Row],[Hide: Baseline kW]])),\"\",Table_PI[[#This Row],[Hide: Baseline kW]])","v":""},{"$f":"IF(OR(Table_PI[[#This Row],[Hide: Proposed kWh]]=\"\",Table_PI[[#This Row],[Hide: Proposed kWh]]=0,ISTEXT(Table_PI[[#This Row],[Hide: Proposed kWh]])),\"\",Table_PI[[#This Row],[Hide: Proposed kWh]])","v":""},{"$f":"IF(OR(Table_PI[[#This Row],[Hide: Proposed kW]]=\"\",Table_PI[[#This Row],[Hide: Proposed kW]]=0,ISTEXT(Table_PI[[#This Row],[Hide: Proposed kW]])),\"\",Table_PI[[#This Row],[Hide: Proposed kW]])","v":""},null,null,{"$f":"IF(OR(Table_PI[[#This Row],[Hide: Rebate]]=\"\",Table_PI[[#This Row],[Hide: Rebate]]=0,ISTEXT(Table_PI[[#This Row],[Hide: Rebate]])),\"\",Table_PI[[#This Row],[Hide: Rebate]])","v":""},null,{"$f":"IF(OR(Table_PI[[#This Row],[Hide: Incremental Cost]]=\"\",Table_PI[[#This Row],[Hide: Incremental Cost]]=0,ISTEXT(Table_PI[[#This Row],[Hide: Incremental Cost]])),\"\",Table_PI[[#This Row],[Hide: Incremental Cost]])","v":""},{"$f":"IFERROR(IF(Table_SummaryPI[[#This Row],[Incentive_Customer]]=\"\",\"\",ROUND(Table_SummaryPI[[#This Row],[Incentive_Customer]]/$AM$401*'Customer Information'!$BC$21,2)),0)","v":""},{"$f":"IF(OR(Table_PI[[#This Row],[Annual kWh]]=\"\",Table_PI[[#This Row],[Annual kWh]]=0,ISTEXT(Table_PI[[#This Row],[Annual kWh]])),\"\",Table_PI[[#This Row],[Annual kWh]])","v":""},{"$f":"IF(OR(Table_PI[[#This Row],[Peak kW]]=\"\",Table_PI[[#This Row],[Peak kW]]=0,ISTEXT(Table_PI[[#This Row],[Peak kW]])),\"\",Table_PI[[#This Row],[Peak kW]])","v":""},{"$f":"IF(Table_SummaryPI[[#This Row],[Line No.]]<>\"\",IF(AND(ISNUMBER(FIND(\"Chiller\",Table_SummaryPI[[#This Row],[P_MeasureOption1]],1)),Table_SummaryPI[[#This Row],[ProposedMeasureCategory]]=\"Air-Cooled (Water-Cooled Replacement)\"),$BD$29*Table_SummaryPI[[#This Row],[Size]]*Table_SummaryPI[[#This Row],[Quantity]]*Table_SummaryPI[[#This Row],[EFLHCooling]],\nIF(ISNUMBER(FIND(\"Dishwasher\",Table_SummaryPI[[#This Row],[ProposedMeasureCategory]],1)),$BH$29*Table_SummaryPI[[#This Row],[Quantity]],\nIF(ISNUMBER(FIND(\"Ice Maker\",Table_SummaryPI[[#This Row],[ProposedMeasureCategory]],1)),$BD$31*Table_SummaryPI[[#This Row],[Quantity]],\nIF(ISNUMBER(FIND(\"Spray Valve\",Table_SummaryPI[[#This Row],[ProposedMeasureCategory]],1)),$BH$31*Table_SummaryPI[[#This Row],[Quantity]],\n0)))),\"\")","v":""},{"$f":"IF(OR(Table_PI[[#This Row],[Hide: Electrification kWh]]=\"\",Table_PI[[#This Row],[Hide: Electrification kWh]]=0,ISTEXT(Table_PI[[#This Row],[Hide: Electrification kWh]])),\"\",Table_PI[[#This Row],[Hide: Electrification kWh]])","v":""},{"$f":"IF(OR(Table_PI[[#This Row],[Hide: Electrification GHG]]=\"\",Table_PI[[#This Row],[Hide: Electrification GHG]]=0,ISTEXT(Table_PI[[#This Row],[Hide: Electrification GHG]])),\"\",Table_PI[[#This Row],[Hide: Electrification GHG]])","v":""},{"$f":"IFERROR(IF(Table_SummaryPI[[#This Row],[kWhSavings]]=\"\",\"\",$BH$9*Table_SummaryPI[[#This Row],[kWhSavings]]),0)","v":""},{"$f":"IFERROR(IF(Table_SummaryPI[[#This Row],[kWhSavings]]=\"\",\"\",$BH$14*Table_SummaryPI[[#This Row],[kWhSavings]]),0)","v":""},{"$f":"IFERROR(IF(Table_SummaryPI[[#This Row],[kWhSavings]]=\"\",\"\",$BH$18*Table_SummaryPI[[#This Row],[kWhSavings]]),0)","v":""},{"$f":"IFERROR(IF(Table_SummaryPI[[#This Row],[kWhSavings]]=\"\",\"\",$BH$22*Table_SummaryPI[[#This Row],[kWhSavings]]),0)","v":""},null,null,null,null,"Pulls from Project Information (Table_PI)"]
[{"$f":"Table_PI[[#This Row],[Line No.]]","v":""},{"$f":"IF(Table_SummaryPI[[#This Row],[MeasureName]]<>\"\",NOT(ISTEXT(Table_PI[[#This Row],[Rebate]])),\"\")","v":""},{"$f":"IF(Table_SummaryPI[[#This Row],[MeassureCategory]]<>\"\",CONCATENATE(Table_SummaryPI[[#This Row],[MeassureCategory]],  \" - \", Table_SummaryPI[[#This Row],[ProposedMeasureCategory]],  \" - \", TEXT(Table_SummaryPI[[#This Row],[Size]],\"#,##0.00\"),\" \",Table_SummaryPI[[#This Row],[SizeUnit]]),\"\")","v":""},{"$f":"SUBSTITUTE(Table_PI[[#This Row],[Measure]],\"     \",\"\",1)","v":""},{"$f":"IF(Table_PI[[#This Row],[List 1]]<>\"\",Table_PI[[#This Row],[List 1]],\"\")","v":""},{"$f":"IF(Table_PI[[#This Row],[List 2]]<>\"\",Table_PI[[#This Row],[List 2]],\"\")","v":""},{"$f":"IF(Table_PI[[#This Row],[List 3]]<>\"\",Table_PI[[#This Row],[List 3]],\"\")","v":""},{"$f":"IF(Table_PI[[#This Row],[Manufacturer]]=\"\",\"\",Table_PI[[#This Row],[Manufacturer]])","v":""},{"$f":"IF(Table_PI[[#This Row],[Model Number]]=\"\",\"\",Table_PI[[#This Row],[Model Number]])","v":""},{"$f":"IF(Table_PI[[#This Row],[Serial Number(s)]]=\"\",\"\",Table_PI[[#This Row],[Serial Number(s)]])","v":""},null,{"$f":"IF(Table_PI[[#This Row],[Size]]=\"\",\"\",Table_PI[[#This Row],[Size]])","v":""},null,null,{"$f":"IF(Table_PI[[#This Row],[Input 1]]<>\"\",Table_PI[[#This Row],[Input 1]],\"\")","v":""},null,null,{"$f":"IF(Table_PI[[#This Row],[Input 2]]<>\"\",Table_PI[[#This Row],[Input 2]],\"\")","v":""},null,null,{"$f":"IF(Table_PI[[#This Row],[Input 3]]<>\"\",Table_PI[[#This Row],[Input 3]],\"\")","v":""},null,null,{"$f":"IF(Table_PI[[#This Row],[Input 4]]<>\"\",Table_PI[[#This Row],[Input 4]],\"\")","v":""},null,null,{"$f":"IF(Table_PI[[#This Row],[Input 4]]<>\"\",Table_PI[[#This Row],[Input 4]],\"\")","v":""},null,null,{"$f":"IF(Table_PI[[#This Row],[Input 4]]<>\"\",Table_PI[[#This Row],[Input 4]],\"\")","v":""},{"$f":"IF(Table_PI[[#This Row],[Quantity]]=\"\",\"\",Table_PI[[#This Row],[Quantity]])","v":""},6.7,{"$f":"IF(OR(Table_PI[[#This Row],[Hide: Baseline kWh]]=\"\",Table_PI[[#This Row],[Hide: Baseline kWh]]=0,ISTEXT(Table_PI[[#This Row],[Hide: Baseline kWh]])),\"\",Table_PI[[#This Row],[Hide: Baseline kWh]])","v":""},{"$f":"IF(OR(Table_PI[[#This Row],[Hide: Baseline kW]]=\"\",Table_PI[[#This Row],[Hide: Baseline kW]]=0,ISTEXT(Table_PI[[#This Row],[Hide: Baseline kW]])),\"\",Table_PI[[#This Row],[Hide: Baseline kW]])","v":""},{"$f":"IF(OR(Table_PI[[#This Row],[Hide: Proposed kWh]]=\"\",Table_PI[[#This Row],[Hide: Proposed kWh]]=0,ISTEXT(Table_PI[[#This Row],[Hide: Proposed kWh]])),\"\",Table_PI[[#This Row],[Hide: Proposed kWh]])","v":""},{"$f":"IF(OR(Table_PI[[#This Row],[Hide: Proposed kW]]=\"\",Table_PI[[#This Row],[Hide: Proposed kW]]=0,ISTEXT(Table_PI[[#This Row],[Hide: Proposed kW]])),\"\",Table_PI[[#This Row],[Hide: Proposed kW]])","v":""},null,null,{"$f":"IF(OR(Table_PI[[#This Row],[Hide: Rebate]]=\"\",Table_PI[[#This Row],[Hide: Rebate]]=0,ISTEXT(Table_PI[[#This Row],[Hide: Rebate]])),\"\",Table_PI[[#This Row],[Hide: Rebate]])","v":""},null,{"$f":"IF(OR(Table_PI[[#This Row],[Hide: Incremental Cost]]=\"\",Table_PI[[#This Row],[Hide: Incremental Cost]]=0,ISTEXT(Table_PI[[#This Row],[Hide: Incremental Cost]])),\"\",Table_PI[[#This Row],[Hide: Incremental Cost]])","v":""},{"$f":"IFERROR(IF(Table_SummaryPI[[#This Row],[Incentive_Customer]]=\"\",\"\",ROUND(Table_SummaryPI[[#This Row],[Incentive_Customer]]/$AM$401*'Customer Information'!$BC$21,2)),0)","v":""},{"$f":"IF(OR(Table_PI[[#This Row],[Annual kWh]]=\"\",Table_PI[[#This Row],[Annual kWh]]=0,ISTEXT(Table_PI[[#This Row],[Annual kWh]])),\"\",Table_PI[[#This Row],[Annual kWh]])","v":""},{"$f":"IF(OR(Table_PI[[#This Row],[Peak kW]]=\"\",Table_PI[[#This Row],[Peak kW]]=0,ISTEXT(Table_PI[[#This Row],[Peak kW]])),\"\",Table_PI[[#This Row],[Peak kW]])","v":""},{"$f":"IF(Table_SummaryPI[[#This Row],[Line No.]]<>\"\",IF(AND(ISNUMBER(FIND(\"Chiller\",Table_SummaryPI[[#This Row],[P_MeasureOption1]],1)),Table_SummaryPI[[#This Row],[ProposedMeasureCategory]]=\"Air-Cooled (Water-Cooled Replacement)\"),$BD$29*Table_SummaryPI[[#This Row],[Size]]*Table_SummaryPI[[#This Row],[Quantity]]*Table_SummaryPI[[#This Row],[EFLHCooling]],\nIF(ISNUMBER(FIND(\"Dishwasher\",Table_SummaryPI[[#This Row],[ProposedMeasureCategory]],1)),$BH$29*Table_SummaryPI[[#This Row],[Quantity]],\nIF(ISNUMBER(FIND(\"Ice Maker\",Table_SummaryPI[[#This Row],[ProposedMeasureCategory]],1)),$BD$31*Table_SummaryPI[[#This Row],[Quantity]],\nIF(ISNUMBER(FIND(\"Spray Valve\",Table_SummaryPI[[#This Row],[ProposedMeasureCategory]],1)),$BH$31*Table_SummaryPI[[#This Row],[Quantity]],\n0)))),\"\")","v":""},{"$f":"IF(OR(Table_PI[[#This Row],[Hide: Electrification kWh]]=\"\",Table_PI[[#This Row],[Hide: Electrification kWh]]=0,ISTEXT(Table_PI[[#This Row],[Hide: Electrification kWh]])),\"\",Table_PI[[#This Row],[Hide: Electrification kWh]])","v":""},{"$f":"IF(OR(Table_PI[[#This Row],[Hide: Electrification GHG]]=\"\",Table_PI[[#This Row],[Hide: Electrification GHG]]=0,ISTEXT(Table_PI[[#This Row],[Hide: Electrification GHG]])),\"\",Table_PI[[#This Row],[Hide: Electrification GHG]])","v":""},{"$f":"IFERROR(IF(Table_SummaryPI[[#This Row],[kWhSavings]]=\"\",\"\",$BH$9*Table_SummaryPI[[#This Row],[kWhSavings]]),0)","v":""},{"$f":"IFERROR(IF(Table_SummaryPI[[#This Row],[kWhSavings]]=\"\",\"\",$BH$14*Table_SummaryPI[[#This Row],[kWhSavings]]),0)","v":""},{"$f":"IFERROR(IF(Table_SummaryPI[[#This Row],[kWhSavings]]=\"\",\"\",$BH$18*Table_SummaryPI[[#This Row],[kWhSavings]]),0)","v":""},{"$f":"IFERROR(IF(Table_SummaryPI[[#This Row],[kWhSavings]]=\"\",\"\",$BH$22*Table_SummaryPI[[#This Row],[kWhSavings]]),0)","v":""},null,null,null,null,"Calculated by MeasureCalcs, pass-in value"]
[{"$f":"Table_PI[[#This Row],[Line No.]]","v":""},{"$f":"IF(Table_SummaryPI[[#This Row],[MeasureName]]<>\"\",NOT(ISTEXT(Table_PI[[#This Row],[Rebate]])),\"\")","v":""},{"$f":"IF(Table_SummaryPI[[#This Row],[MeassureCategory]]<>\"\",CONCATENATE(Table_SummaryPI[[#This Row],[MeassureCategory]],  \" - \", Table_SummaryPI[[#This Row],[ProposedMeasureCategory]],  \" - \", TEXT(Table_SummaryPI[[#This Row],[Size]],\"#,##0.00\"),\" \",Table_SummaryPI[[#This Row],[SizeUnit]]),\"\")","v":""},{"$f":"SUBSTITUTE(Table_PI[[#This Row],[Measure]],\"     \",\"\",1)","v":""},{"$f":"IF(Table_PI[[#This Row],[List 1]]<>\"\",Table_PI[[#This Row],[List 1]],\"\")","v":""},{"$f":"IF(Table_PI[[#This Row],[List 2]]<>\"\",Table_PI[[#This Row],[List 2]],\"\")","v":""},{"$f":"IF(Table_PI[[#This Row],[List 3]]<>\"\",Table_PI[[#This Row],[List 3]],\"\")","v":""},{"$f":"IF(Table_PI[[#This Row],[Manufacturer]]=\"\",\"\",Table_PI[[#This Row],[Manufacturer]])","v":""},{"$f":"IF(Table_PI[[#This Row],[Model Number]]=\"\",\"\",Table_PI[[#This Row],[Model Number]])","v":""},{"$f":"IF(Table_PI[[#This Row],[Serial Number(s)]]=\"\",\"\",Table_PI[[#This Row],[Serial Number(s)]])","v":""},null,{"$f":"IF(Table_PI[[#This Row],[Size]]=\"\",\"\",Table_PI[[#This Row],[Size]])","v":""},null,null,{"$f":"IF(Table_PI[[#This Row],[Input 1]]<>\"\",Table_PI[[#This Row],[Input 1]],\"\")","v":""},null,null,{"$f":"IF(Table_PI[[#This Row],[Input 2]]<>\"\",Table_PI[[#This Row],[Input 2]],\"\")","v":""},null,null,{"$f":"IF(Table_PI[[#This Row],[Input 3]]<>\"\",Table_PI[[#This Row],[Input 3]],\"\")","v":""},null,null,{"$f":"IF(Table_PI[[#This Row],[Input 4]]<>\"\",Table_PI[[#This Row],[Input 4]],\"\")","v":""},null,null,{"$f":"IF(Table_PI[[#This Row],[Input 4]]<>\"\",Table_PI[[#This Row],[Input 4]],\"\")","v":""},null,null,{"$f":"IF(Table_PI[[#This Row],[Input 4]]<>\"\",Table_PI[[#This Row],[Input 4]],\"\")","v":""},{"$f":"IF(Table_PI[[#This Row],[Quantity]]=\"\",\"\",Table_PI[[#This Row],[Quantity]])","v":""},null,{"$f":"IF(OR(Table_PI[[#This Row],[Hide: Baseline kWh]]=\"\",Table_PI[[#This Row],[Hide: Baseline kWh]]=0,ISTEXT(Table_PI[[#This Row],[Hide: Baseline kWh]])),\"\",Table_PI[[#This Row],[Hide: Baseline kWh]])","v":""},{"$f":"IF(OR(Table_PI[[#This Row],[Hide: Baseline kW]]=\"\",Table_PI[[#This Row],[Hide: Baseline kW]]=0,ISTEXT(Table_PI[[#This Row],[Hide: Baseline kW]])),\"\",Table_PI[[#This Row],[Hide: Baseline kW]])","v":""},{"$f":"IF(OR(Table_PI[[#This Row],[Hide: Proposed kWh]]=\"\",Table_PI[[#This Row],[Hide: Proposed kWh]]=0,ISTEXT(Table_PI[[#This Row],[Hide: Proposed kWh]])),\"\",Table_PI[[#This Row],[Hide: Proposed kWh]])","v":""},{"$f":"IF(OR(Table_PI[[#This Row],[Hide: Proposed kW]]=\"\",Table_PI[[#This Row],[Hide: Proposed kW]]=0,ISTEXT(Table_PI[[#This Row],[Hide: Proposed kW]])),\"\",Table_PI[[#This Row],[Hide: Proposed kW]])","v":""},null,null,{"$f":"IF(OR(Table_PI[[#This Row],[Hide: Rebate]]=\"\",Table_PI[[#This Row],[Hide: Rebate]]=0,ISTEXT(Table_PI[[#This Row],[Hide: Rebate]])),\"\",Table_PI[[#This Row],[Hide: Rebate]])","v":""},null,{"$f":"IF(OR(Table_PI[[#This Row],[Hide: Incremental Cost]]=\"\",Table_PI[[#This Row],[Hide: Incremental Cost]]=0,ISTEXT(Table_PI[[#This Row],[Hide: Incremental Cost]])),\"\",Table_PI[[#This Row],[Hide: Incremental Cost]])","v":""},{"$f":"IFERROR(IF(Table_SummaryPI[[#This Row],[Incentive_Customer]]=\"\",\"\",ROUND(Table_SummaryPI[[#This Row],[Incentive_Customer]]/$AM$401*'Customer Information'!$BC$21,2)),0)","v":""},{"$f":"IF(OR(Table_PI[[#This Row],[Annual kWh]]=\"\",Table_PI[[#This Row],[Annual kWh]]=0,ISTEXT(Table_PI[[#This Row],[Annual kWh]])),\"\",Table_PI[[#This Row],[Annual kWh]])","v":""},{"$f":"IF(OR(Table_PI[[#This Row],[Peak kW]]=\"\",Table_PI[[#This Row],[Peak kW]]=0,ISTEXT(Table_PI[[#This Row],[Peak kW]])),\"\",Table_PI[[#This Row],[Peak kW]])","v":""},{"$f":"IF(Table_SummaryPI[[#This Row],[Line No.]]<>\"\",IF(AND(ISNUMBER(FIND(\"Chiller\",Table_SummaryPI[[#This Row],[P_MeasureOption1]],1)),Table_SummaryPI[[#This Row],[ProposedMeasureCategory]]=\"Air-Cooled (Water-Cooled Replacement)\"),$BD$29*Table_SummaryPI[[#This Row],[Size]]*Table_SummaryPI[[#This Row],[Quantity]]*Table_SummaryPI[[#This Row],[EFLHCooling]],\nIF(ISNUMBER(FIND(\"Dishwasher\",Table_SummaryPI[[#This Row],[ProposedMeasureCategory]],1)),$BH$29*Table_SummaryPI[[#This Row],[Quantity]],\nIF(ISNUMBER(FIND(\"Ice Maker\",Table_SummaryPI[[#This Row],[ProposedMeasureCategory]],1)),$BD$31*Table_SummaryPI[[#This Row],[Quantity]],\nIF(ISNUMBER(FIND(\"Spray Valve\",Table_SummaryPI[[#This Row],[ProposedMeasureCategory]],1)),$BH$31*Table_SummaryPI[[#This Row],[Quantity]],\n0)))),\"\")","v":""},{"$f":"IF(OR(Table_PI[[#This Row],[Hide: Electrification kWh]]=\"\",Table_PI[[#This Row],[Hide: Electrification kWh]]=0,ISTEXT(Table_PI[[#This Row],[Hide: Electrification kWh]])),\"\",Table_PI[[#This Row],[Hide: Electrification kWh]])","v":""},{"$f":"IF(OR(Table_PI[[#This Row],[Hide: Electrification GHG]]=\"\",Table_PI[[#This Row],[Hide: Electrification GHG]]=0,ISTEXT(Table_PI[[#This Row],[Hide: Electrification GHG]])),\"\",Table_PI[[#This Row],[Hide: Electrification GHG]])","v":""},{"$f":"IFERROR(IF(Table_SummaryPI[[#This Row],[kWhSavings]]=\"\",\"\",$BH$9*Table_SummaryPI[[#This Row],[kWhSavings]]),0)","v":""},{"$f":"IFERROR(IF(Table_SummaryPI[[#This Row],[kWhSavings]]=\"\",\"\",$BH$14*Table_SummaryPI[[#This Row],[kWhSavings]]),0)","v":""},{"$f":"IFERROR(IF(Table_SummaryPI[[#This Row],[kWhSavings]]=\"\",\"\",$BH$18*Table_SummaryPI[[#This Row],[kWhSavings]]),0)","v":""},{"$f":"IFERROR(IF(Table_SummaryPI[[#This Row],[kWhSavings]]=\"\",\"\",$BH$22*Table_SummaryPI[[#This Row],[kWhSavings]]),0)","v":""},null,null,null,null,"Calculated on this sheet"]
[{"$f":"Table_PI[[#This Row],[Line No.]]","v":""},{"$f":"IF(Table_SummaryPI[[#This Row],[MeasureName]]<>\"\",NOT(ISTEXT(Table_PI[[#This Row],[Rebate]])),\"\")","v":""},{"$f":"IF(Table_SummaryPI[[#This Row],[MeassureCategory]]<>\"\",CONCATENATE(Table_SummaryPI[[#This Row],[MeassureCategory]],  \" - \", Table_SummaryPI[[#This Row],[ProposedMeasureCategory]],  \" - \", TEXT(Table_SummaryPI[[#This Row],[Size]],\"#,##0.00\"),\" \",Table_SummaryPI[[#This Row],[SizeUnit]]),\"\")","v":""},{"$f":"SUBSTITUTE(Table_PI[[#This Row],[Measure]],\"     \",\"\",1)","v":""},{"$f":"IF(Table_PI[[#This Row],[List 1]]<>\"\",Table_PI[[#This Row],[List 1]],\"\")","v":""},{"$f":"IF(Table_PI[[#This Row],[List 2]]<>\"\",Table_PI[[#This Row],[List 2]],\"\")","v":""},{"$f":"IF(Table_PI[[#This Row],[List 3]]<>\"\",Table_PI[[#This Row],[List 3]],\"\")","v":""},{"$f":"IF(Table_PI[[#This Row],[Manufacturer]]=\"\",\"\",Table_PI[[#This Row],[Manufacturer]])","v":""},{"$f":"IF(Table_PI[[#This Row],[Model Number]]=\"\",\"\",Table_PI[[#This Row],[Model Number]])","v":""},{"$f":"IF(Table_PI[[#This Row],[Serial Number(s)]]=\"\",\"\",Table_PI[[#This Row],[Serial Number(s)]])","v":""},null,{"$f":"IF(Table_PI[[#This Row],[Size]]=\"\",\"\",Table_PI[[#This Row],[Size]])","v":""},null,null,{"$f":"IF(Table_PI[[#This Row],[Input 1]]<>\"\",Table_PI[[#This Row],[Input 1]],\"\")","v":""},null,null,{"$f":"IF(Table_PI[[#This Row],[Input 2]]<>\"\",Table_PI[[#This Row],[Input 2]],\"\")","v":""},null,null,{"$f":"IF(Table_PI[[#This Row],[Input 3]]<>\"\",Table_PI[[#This Row],[Input 3]],\"\")","v":""},null,null,{"$f":"IF(Table_PI[[#This Row],[Input 4]]<>\"\",Table_PI[[#This Row],[Input 4]],\"\")","v":""},null,null,{"$f":"IF(Table_PI[[#This Row],[Input 4]]<>\"\",Table_PI[[#This Row],[Input 4]],\"\")","v":""},null,null,{"$f":"IF(Table_PI[[#This Row],[Input 4]]<>\"\",Table_PI[[#This Row],[Input 4]],\"\")","v":""},{"$f":"IF(Table_PI[[#This Row],[Quantity]]=\"\",\"\",Table_PI[[#This Row],[Quantity]])","v":""},7.5,{"$f":"IF(OR(Table_PI[[#This Row],[Hide: Baseline kWh]]=\"\",Table_PI[[#This Row],[Hide: Baseline kWh]]=0,ISTEXT(Table_PI[[#This Row],[Hide: Baseline kWh]])),\"\",Table_PI[[#This Row],[Hide: Baseline kWh]])","v":""},{"$f":"IF(OR(Table_PI[[#This Row],[Hide: Baseline kW]]=\"\",Table_PI[[#This Row],[Hide: Baseline kW]]=0,ISTEXT(Table_PI[[#This Row],[Hide: Baseline kW]])),\"\",Table_PI[[#This Row],[Hide: Baseline kW]])","v":""},{"$f":"IF(OR(Table_PI[[#This Row],[Hide: Proposed kWh]]=\"\",Table_PI[[#This Row],[Hide: Proposed kWh]]=0,ISTEXT(Table_PI[[#This Row],[Hide: Proposed kWh]])),\"\",Table_PI[[#This Row],[Hide: Proposed kWh]])","v":""},{"$f":"IF(OR(Table_PI[[#This Row],[Hide: Proposed kW]]=\"\",Table_PI[[#This Row],[Hide: Proposed kW]]=0,ISTEXT(Table_PI[[#This Row],[Hide: Proposed kW]])),\"\",Table_PI[[#This Row],[Hide: Proposed kW]])","v":""},null,null,{"$f":"IF(OR(Table_PI[[#This Row],[Hide: Rebate]]=\"\",Table_PI[[#This Row],[Hide: Rebate]]=0,ISTEXT(Table_PI[[#This Row],[Hide: Rebate]])),\"\",Table_PI[[#This Row],[Hide: Rebate]])","v":""},null,{"$f":"IF(OR(Table_PI[[#This Row],[Hide: Incremental Cost]]=\"\",Table_PI[[#This Row],[Hide: Incremental Cost]]=0,ISTEXT(Table_PI[[#This Row],[Hide: Incremental Cost]])),\"\",Table_PI[[#This Row],[Hide: Incremental Cost]])","v":""},{"$f":"IFERROR(IF(Table_SummaryPI[[#This Row],[Incentive_Customer]]=\"\",\"\",ROUND(Table_SummaryPI[[#This Row],[Incentive_Customer]]/$AM$401*'Customer Information'!$BC$21,2)),0)","v":""},{"$f":"IF(OR(Table_PI[[#This Row],[Annual kWh]]=\"\",Table_PI[[#This Row],[Annual kWh]]=0,ISTEXT(Table_PI[[#This Row],[Annual kWh]])),\"\",Table_PI[[#This Row],[Annual kWh]])","v":""},{"$f":"IF(OR(Table_PI[[#This Row],[Peak kW]]=\"\",Table_PI[[#This Row],[Peak kW]]=0,ISTEXT(Table_PI[[#This Row],[Peak kW]])),\"\",Table_PI[[#This Row],[Peak kW]])","v":""},{"$f":"IF(Table_SummaryPI[[#This Row],[Line No.]]<>\"\",IF(AND(ISNUMBER(FIND(\"Chiller\",Table_SummaryPI[[#This Row],[P_MeasureOption1]],1)),Table_SummaryPI[[#This Row],[ProposedMeasureCategory]]=\"Air-Cooled (Water-Cooled Replacement)\"),$BD$29*Table_SummaryPI[[#This Row],[Size]]*Table_SummaryPI[[#This Row],[Quantity]]*Table_SummaryPI[[#This Row],[EFLHCooling]],\nIF(ISNUMBER(FIND(\"Dishwasher\",Table_SummaryPI[[#This Row],[ProposedMeasureCategory]],1)),$BH$29*Table_SummaryPI[[#This Row],[Quantity]],\nIF(ISNUMBER(FIND(\"Ice Maker\",Table_SummaryPI[[#This Row],[ProposedMeasureCategory]],1)),$BD$31*Table_SummaryPI[[#This Row],[Quantity]],\nIF(ISNUMBER(FIND(\"Spray Valve\",Table_SummaryPI[[#This Row],[ProposedMeasureCategory]],1)),$BH$31*Table_SummaryPI[[#This Row],[Quantity]],\n0)))),\"\")","v":""},{"$f":"IF(OR(Table_PI[[#This Row],[Hide: Electrification kWh]]=\"\",Table_PI[[#This Row],[Hide: Electrification kWh]]=0,ISTEXT(Table_PI[[#This Row],[Hide: Electrification kWh]])),\"\",Table_PI[[#This Row],[Hide: Electrification kWh]])","v":""},{"$f":"IF(OR(Table_PI[[#This Row],[Hide: Electrification GHG]]=\"\",Table_PI[[#This Row],[Hide: Electrification GHG]]=0,ISTEXT(Table_PI[[#This Row],[Hide: Electrification GHG]])),\"\",Table_PI[[#This Row],[Hide: Electrification GHG]])","v":""},{"$f":"IFERROR(IF(Table_SummaryPI[[#This Row],[kWhSavings]]=\"\",\"\",$BH$9*Table_SummaryPI[[#This Row],[kWhSavings]]),0)","v":""},{"$f":"IFERROR(IF(Table_SummaryPI[[#This Row],[kWhSavings]]=\"\",\"\",$BH$14*Table_SummaryPI[[#This Row],[kWhSavings]]),0)","v":""},{"$f":"IFERROR(IF(Table_SummaryPI[[#This Row],[kWhSavings]]=\"\",\"\",$BH$18*Table_SummaryPI[[#This Row],[kWhSavings]]),0)","v":""},{"$f":"IFERROR(IF(Table_SummaryPI[[#This Row],[kWhSavings]]=\"\",\"\",$BH$22*Table_SummaryPI[[#This Row],[kWhSavings]]),0)","v":""}]
[{"$f":"Table_PI[[#This Row],[Line No.]]","v":""},{"$f":"IF(Table_SummaryPI[[#This Row],[MeasureName]]<>\"\",NOT(ISTEXT(Table_PI[[#This Row],[Rebate]])),\"\")","v":""},{"$f":"IF(Table_SummaryPI[[#This Row],[MeassureCategory]]<>\"\",CONCATENATE(Table_SummaryPI[[#This Row],[MeassureCategory]],  \" - \", Table_SummaryPI[[#This Row],[ProposedMeasureCategory]],  \" - \", TEXT(Table_SummaryPI[[#This Row],[Size]],\"#,##0.00\"),\" \",Table_SummaryPI[[#This Row],[SizeUnit]]),\"\")","v":""},{"$f":"SUBSTITUTE(Table_PI[[#This Row],[Measure]],\"     \",\"\",1)","v":""},{"$f":"IF(Table_PI[[#This Row],[List 1]]<>\"\",Table_PI[[#This Row],[List 1]],\"\")","v":""},{"$f":"IF(Table_PI[[#This Row],[List 2]]<>\"\",Table_PI[[#This Row],[List 2]],\"\")","v":""},{"$f":"IF(Table_PI[[#This Row],[List 3]]<>\"\",Table_PI[[#This Row],[List 3]],\"\")","v":""},{"$f":"IF(Table_PI[[#This Row],[Manufacturer]]=\"\",\"\",Table_PI[[#This Row],[Manufacturer]])","v":""},{"$f":"IF(Table_PI[[#This Row],[Model Number]]=\"\",\"\",Table_PI[[#This Row],[Model Number]])","v":""},{"$f":"IF(Table_PI[[#This Row],[Serial Number(s)]]=\"\",\"\",Table_PI[[#This Row],[Serial Number(s)]])","v":""},null,{"$f":"IF(Table_PI[[#This Row],[Size]]=\"\",\"\",Table_PI[[#This Row],[Size]])","v":""},null,null,{"$f":"IF(Table_PI[[#This Row],[Input 1]]<>\"\",Table_PI[[#This Row],[Input 1]],\"\")","v":""},null,null,{"$f":"IF(Table_PI[[#This Row],[Input 2]]<>\"\",Table_PI[[#This Row],[Input 2]],\"\")","v":""},null,null,{"$f":"IF(Table_PI[[#This Row],[Input 3]]<>\"\",Table_PI[[#This Row],[Input 3]],\"\")","v":""},null,null,{"$f":"IF(Table_PI[[#This Row],[Input 4]]<>\"\",Table_PI[[#This Row],[Input 4]],\"\")","v":""},null,null,{"$f":"IF(Table_PI[[#This Row],[Input 4]]<>\"\",Table_PI[[#This Row],[Input 4]],\"\")","v":""},null,null,{"$f":"IF(Table_PI[[#This Row],[Input 4]]<>\"\",Table_PI[[#This Row],[Input 4]],\"\")","v":""},{"$f":"IF(Table_PI[[#This Row],[Quantity]]=\"\",\"\",Table_PI[[#This Row],[Quantity]])","v":""},7.5,{"$f":"IF(OR(Table_PI[[#This Row],[Hide: Baseline kWh]]=\"\",Table_PI[[#This Row],[Hide: Baseline kWh]]=0,ISTEXT(Table_PI[[#This Row],[Hide: Baseline kWh]])),\"\",Table_PI[[#This Row],[Hide: Baseline kWh]])","v":""},{"$f":"IF(OR(Table_PI[[#This Row],[Hide: Baseline kW]]=\"\",Table_PI[[#This Row],[Hide: Baseline kW]]=0,ISTEXT(Table_PI[[#This Row],[Hide: Baseline kW]])),\"\",Table_PI[[#This Row],[Hide: Baseline kW]])","v":""},{"$f":"IF(OR(Table_PI[[#This Row],[Hide: Proposed kWh]]=\"\",Table_PI[[#This Row],[Hide: Proposed kWh]]=0,ISTEXT(Table_PI[[#This Row],[Hide: Proposed kWh]])),\"\",Table_PI[[#This Row],[Hide: Proposed kWh]])","v":""},{"$f":"IF(OR(Table_PI[[#This Row],[Hide: Proposed kW]]=\"\",Table_PI[[#This Row],[Hide: Proposed kW]]=0,ISTEXT(Table_PI[[#This Row],[Hide: Proposed kW]])),\"\",Table_PI[[#This Row],[Hide: Proposed kW]])","v":""},null,null,{"$f":"IF(OR(Table_PI[[#This Row],[Hide: Rebate]]=\"\",Table_PI[[#This Row],[Hide: Rebate]]=0,ISTEXT(Table_PI[[#This Row],[Hide: Rebate]])),\"\",Table_PI[[#This Row],[Hide: Rebate]])","v":""},null,{"$f":"IF(OR(Table_PI[[#This Row],[Hide: Incremental Cost]]=\"\",Table_PI[[#This Row],[Hide: Incremental Cost]]=0,ISTEXT(Table_PI[[#This Row],[Hide: Incremental Cost]])),\"\",Table_PI[[#This Row],[Hide: Incremental Cost]])","v":""},{"$f":"IFERROR(IF(Table_SummaryPI[[#This Row],[Incentive_Customer]]=\"\",\"\",ROUND(Table_SummaryPI[[#This Row],[Incentive_Customer]]/$AM$401*'Customer Information'!$BC$21,2)),0)","v":""},{"$f":"IF(OR(Table_PI[[#This Row],[Annual kWh]]=\"\",Table_PI[[#This Row],[Annual kWh]]=0,ISTEXT(Table_PI[[#This Row],[Annual kWh]])),\"\",Table_PI[[#This Row],[Annual kWh]])","v":""},{"$f":"IF(OR(Table_PI[[#This Row],[Peak kW]]=\"\",Table_PI[[#This Row],[Peak kW]]=0,ISTEXT(Table_PI[[#This Row],[Peak kW]])),\"\",Table_PI[[#This Row],[Peak kW]])","v":""},{"$f":"IF(Table_SummaryPI[[#This Row],[Line No.]]<>\"\",IF(AND(ISNUMBER(FIND(\"Chiller\",Table_SummaryPI[[#This Row],[P_MeasureOption1]],1)),Table_SummaryPI[[#This Row],[ProposedMeasureCategory]]=\"Air-Cooled (Water-Cooled Replacement)\"),$BD$29*Table_SummaryPI[[#This Row],[Size]]*Table_SummaryPI[[#This Row],[Quantity]]*Table_SummaryPI[[#This Row],[EFLHCooling]],\nIF(ISNUMBER(FIND(\"Dishwasher\",Table_SummaryPI[[#This Row],[ProposedMeasureCategory]],1)),$BH$29*Table_SummaryPI[[#This Row],[Quantity]],\nIF(ISNUMBER(FIND(\"Ice Maker\",Table_SummaryPI[[#This Row],[ProposedMeasureCategory]],1)),$BD$31*Table_SummaryPI[[#This Row],[Quantity]],\nIF(ISNUMBER(FIND(\"Spray Valve\",Table_SummaryPI[[#This Row],[ProposedMeasureCategory]],1)),$BH$31*Table_SummaryPI[[#This Row],[Quantity]],\n0)))),\"\")","v":""},{"$f":"IF(OR(Table_PI[[#This Row],[Hide: Electrification kWh]]=\"\",Table_PI[[#This Row],[Hide: Electrification kWh]]=0,ISTEXT(Table_PI[[#This Row],[Hide: Electrification kWh]])),\"\",Table_PI[[#This Row],[Hide: Electrification kWh]])","v":""},{"$f":"IF(OR(Table_PI[[#This Row],[Hide: Electrification GHG]]=\"\",Table_PI[[#This Row],[Hide: Electrification GHG]]=0,ISTEXT(Table_PI[[#This Row],[Hide: Electrification GHG]])),\"\",Table_PI[[#This Row],[Hide: Electrification GHG]])","v":""},{"$f":"IFERROR(IF(Table_SummaryPI[[#This Row],[kWhSavings]]=\"\",\"\",$BH$9*Table_SummaryPI[[#This Row],[kWhSavings]]),0)","v":""},{"$f":"IFERROR(IF(Table_SummaryPI[[#This Row],[kWhSavings]]=\"\",\"\",$BH$14*Table_SummaryPI[[#This Row],[kWhSavings]]),0)","v":""},{"$f":"IFERROR(IF(Table_SummaryPI[[#This Row],[kWhSavings]]=\"\",\"\",$BH$18*Table_SummaryPI[[#This Row],[kWhSavings]]),0)","v":""},{"$f":"IFERROR(IF(Table_SummaryPI[[#This Row],[kWhSavings]]=\"\",\"\",$BH$22*Table_SummaryPI[[#This Row],[kWhSavings]]),0)","v":""},null,null,null,null,"CO2 Calculations"]
[{"$f":"Table_PI[[#This Row],[Line No.]]","v":""},{"$f":"IF(Table_SummaryPI[[#This Row],[MeasureName]]<>\"\",NOT(ISTEXT(Table_PI[[#This Row],[Rebate]])),\"\")","v":""},{"$f":"IF(Table_SummaryPI[[#This Row],[MeassureCategory]]<>\"\",CONCATENATE(Table_SummaryPI[[#This Row],[MeassureCategory]],  \" - \", Table_SummaryPI[[#This Row],[ProposedMeasureCategory]],  \" - \", TEXT(Table_SummaryPI[[#This Row],[Size]],\"#,##0.00\"),\" \",Table_SummaryPI[[#This Row],[SizeUnit]]),\"\")","v":""},{"$f":"SUBSTITUTE(Table_PI[[#This Row],[Measure]],\"     \",\"\",1)","v":""},{"$f":"IF(Table_PI[[#This Row],[List 1]]<>\"\",Table_PI[[#This Row],[List 1]],\"\")","v":""},{"$f":"IF(Table_PI[[#This Row],[List 2]]<>\"\",Table_PI[[#This Row],[List 2]],\"\")","v":""},{"$f":"IF(Table_PI[[#This Row],[List 3]]<>\"\",Table_PI[[#This Row],[List 3]],\"\")","v":""},{"$f":"IF(Table_PI[[#This Row],[Manufacturer]]=\"\",\"\",Table_PI[[#This Row],[Manufacturer]])","v":""},{"$f":"IF(Table_PI[[#This Row],[Model Number]]=\"\",\"\",Table_PI[[#This Row],[Model Number]])","v":""},{"$f":"IF(Table_PI[[#This Row],[Serial Number(s)]]=\"\",\"\",Table_PI[[#This Row],[Serial Number(s)]])","v":""},null,{"$f":"IF(Table_PI[[#This Row],[Size]]=\"\",\"\",Table_PI[[#This Row],[Size]])","v":""},null,null,{"$f":"IF(Table_PI[[#This Row],[Input 1]]<>\"\",Table_PI[[#This Row],[Input 1]],\"\")","v":""},null,null,{"$f":"IF(Table_PI[[#This Row],[Input 2]]<>\"\",Table_PI[[#This Row],[Input 2]],\"\")","v":""},null,null,{"$f":"IF(Table_PI[[#This Row],[Input 3]]<>\"\",Table_PI[[#This Row],[Input 3]],\"\")","v":""},null,null,{"$f":"IF(Table_PI[[#This Row],[Input 4]]<>\"\",Table_PI[[#This Row],[Input 4]],\"\")","v":""},null,null,{"$f":"IF(Table_PI[[#This Row],[Input 4]]<>\"\",Table_PI[[#This Row],[Input 4]],\"\")","v":""},null,null,{"$f":"IF(Table_PI[[#This Row],[Input 4]]<>\"\",Table_PI[[#This Row],[Input 4]],\"\")","v":""},{"$f":"IF(Table_PI[[#This Row],[Quantity]]=\"\",\"\",Table_PI[[#This Row],[Quantity]])","v":""},7.5,{"$f":"IF(OR(Table_PI[[#This Row],[Hide: Baseline kWh]]=\"\",Table_PI[[#This Row],[Hide: Baseline kWh]]=0,ISTEXT(Table_PI[[#This Row],[Hide: Baseline kWh]])),\"\",Table_PI[[#This Row],[Hide: Baseline kWh]])","v":""},{"$f":"IF(OR(Table_PI[[#This Row],[Hide: Baseline kW]]=\"\",Table_PI[[#This Row],[Hide: Baseline kW]]=0,ISTEXT(Table_PI[[#This Row],[Hide: Baseline kW]])),\"\",Table_PI[[#This Row],[Hide: Baseline kW]])","v":""},{"$f":"IF(OR(Table_PI[[#This Row],[Hide: Proposed kWh]]=\"\",Table_PI[[#This Row],[Hide: Proposed kWh]]=0,ISTEXT(Table_PI[[#This Row],[Hide: Proposed kWh]])),\"\",Table_PI[[#This Row],[Hide: Proposed kWh]])","v":""},{"$f":"IF(OR(Table_PI[[#This Row],[Hide: Proposed kW]]=\"\",Table_PI[[#This Row],[Hide: Proposed kW]]=0,ISTEXT(Table_PI[[#This Row],[Hide: Proposed kW]])),\"\",Table_PI[[#This Row],[Hide: Proposed kW]])","v":""},null,null,{"$f":"IF(OR(Table_PI[[#This Row],[Hide: Rebate]]=\"\",Table_PI[[#This Row],[Hide: Rebate]]=0,ISTEXT(Table_PI[[#This Row],[Hide: Rebate]])),\"\",Table_PI[[#This Row],[Hide: Rebate]])","v":""},null,{"$f":"IF(OR(Table_PI[[#This Row],[Hide: Incremental Cost]]=\"\",Table_PI[[#This Row],[Hide: Incremental Cost]]=0,ISTEXT(Table_PI[[#This Row],[Hide: Incremental Cost]])),\"\",Table_PI[[#This Row],[Hide: Incremental Cost]])","v":""},{"$f":"IFERROR(IF(Table_SummaryPI[[#This Row],[Incentive_Customer]]=\"\",\"\",ROUND(Table_SummaryPI[[#This Row],[Incentive_Customer]]/$AM$401*'Customer Information'!$BC$21,2)),0)","v":""},{"$f":"IF(OR(Table_PI[[#This Row],[Annual kWh]]=\"\",Table_PI[[#This Row],[Annual kWh]]=0,ISTEXT(Table_PI[[#This Row],[Annual kWh]])),\"\",Table_PI[[#This Row],[Annual kWh]])","v":""},{"$f":"IF(OR(Table_PI[[#This Row],[Peak kW]]=\"\",Table_PI[[#This Row],[Peak kW]]=0,ISTEXT(Table_PI[[#This Row],[Peak kW]])),\"\",Table_PI[[#This Row],[Peak kW]])","v":""},{"$f":"IF(Table_SummaryPI[[#This Row],[Line No.]]<>\"\",IF(AND(ISNUMBER(FIND(\"Chiller\",Table_SummaryPI[[#This Row],[P_MeasureOption1]],1)),Table_SummaryPI[[#This Row],[ProposedMeasureCategory]]=\"Air-Cooled (Water-Cooled Replacement)\"),$BD$29*Table_SummaryPI[[#This Row],[Size]]*Table_SummaryPI[[#This Row],[Quantity]]*Table_SummaryPI[[#This Row],[EFLHCooling]],\nIF(ISNUMBER(FIND(\"Dishwasher\",Table_SummaryPI[[#This Row],[ProposedMeasureCategory]],1)),$BH$29*Table_SummaryPI[[#This Row],[Quantity]],\nIF(ISNUMBER(FIND(\"Ice Maker\",Table_SummaryPI[[#This Row],[ProposedMeasureCategory]],1)),$BD$31*Table_SummaryPI[[#This Row],[Quantity]],\nIF(ISNUMBER(FIND(\"Spray Valve\",Table_SummaryPI[[#This Row],[ProposedMeasureCategory]],1)),$BH$31*Table_SummaryPI[[#This Row],[Quantity]],\n0)))),\"\")","v":""},{"$f":"IF(OR(Table_PI[[#This Row],[Hide: Electrification kWh]]=\"\",Table_PI[[#This Row],[Hide: Electrification kWh]]=0,ISTEXT(Table_PI[[#This Row],[Hide: Electrification kWh]])),\"\",Table_PI[[#This Row],[Hide: Electrification kWh]])","v":""},{"$f":"IF(OR(Table_PI[[#This Row],[Hide: Electrification GHG]]=\"\",Table_PI[[#This Row],[Hide: Electrification GHG]]=0,ISTEXT(Table_PI[[#This Row],[Hide: Electrification GHG]])),\"\",Table_PI[[#This Row],[Hide: Electrification GHG]])","v":""},{"$f":"IFERROR(IF(Table_SummaryPI[[#This Row],[kWhSavings]]=\"\",\"\",$BH$9*Table_SummaryPI[[#This Row],[kWhSavings]]),0)","v":""},{"$f":"IFERROR(IF(Table_SummaryPI[[#This Row],[kWhSavings]]=\"\",\"\",$BH$14*Table_SummaryPI[[#This Row],[kWhSavings]]),0)","v":""},{"$f":"IFERROR(IF(Table_SummaryPI[[#This Row],[kWhSavings]]=\"\",\"\",$BH$18*Table_SummaryPI[[#This Row],[kWhSavings]]),0)","v":""},{"$f":"IFERROR(IF(Table_SummaryPI[[#This Row],[kWhSavings]]=\"\",\"\",$BH$22*Table_SummaryPI[[#This Row],[kWhSavings]]),0)","v":""},null,null,null,null,922,"lbs. CO2 / MWh",null,null,{"$f":"BD9*BD10/1000","v":4.1821645650004535E-4},"Tons CO2 / kWh"]
[{"$f":"Table_PI[[#This Row],[Line No.]]","v":""},{"$f":"IF(Table_SummaryPI[[#This Row],[MeasureName]]<>\"\",NOT(ISTEXT(Table_PI[[#This Row],[Rebate]])),\"\")","v":""},{"$f":"IF(Table_SummaryPI[[#This Row],[MeassureCategory]]<>\"\",CONCATENATE(Table_SummaryPI[[#This Row],[MeassureCategory]],  \" - \", Table_SummaryPI[[#This Row],[ProposedMeasureCategory]],  \" - \", TEXT(Table_SummaryPI[[#This Row],[Size]],\"#,##0.00\"),\" \",Table_SummaryPI[[#This Row],[SizeUnit]]),\"\")","v":""},{"$f":"SUBSTITUTE(Table_PI[[#This Row],[Measure]],\"     \",\"\",1)","v":""},{"$f":"IF(Table_PI[[#This Row],[List 1]]<>\"\",Table_PI[[#This Row],[List 1]],\"\")","v":""},{"$f":"IF(Table_PI[[#This Row],[List 2]]<>\"\",Table_PI[[#This Row],[List 2]],\"\")","v":""},{"$f":"IF(Table_PI[[#This Row],[List 3]]<>\"\",Table_PI[[#This Row],[List 3]],\"\")","v":""},{"$f":"IF(Table_PI[[#This Row],[Manufacturer]]=\"\",\"\",Table_PI[[#This Row],[Manufacturer]])","v":""},{"$f":"IF(Table_PI[[#This Row],[Model Number]]=\"\",\"\",Table_PI[[#This Row],[Model Number]])","v":""},{"$f":"IF(Table_PI[[#This Row],[Serial Number(s)]]=\"\",\"\",Table_PI[[#This Row],[Serial Number(s)]])","v":""},null,{"$f":"IF(Table_PI[[#This Row],[Size]]=\"\",\"\",Table_PI[[#This Row],[Size]])","v":""},null,null,{"$f":"IF(Table_PI[[#This Row],[Input 1]]<>\"\",Table_PI[[#This Row],[Input 1]],\"\")","v":""},null,null,{"$f":"IF(Table_PI[[#This Row],[Input 2]]<>\"\",Table_PI[[#This Row],[Input 2]],\"\")","v":""},null,null,{"$f":"IF(Table_PI[[#This Row],[Input 3]]<>\"\",Table_PI[[#This Row],[Input 3]],\"\")","v":""},null,null,{"$f":"IF(Table_PI[[#This Row],[Input 4]]<>\"\",Table_PI[[#This Row],[Input 4]],\"\")","v":""},null,null,{"$f":"IF(Table_PI[[#This Row],[Input 4]]<>\"\",Table_PI[[#This Row],[Input 4]],\"\")","v":""},null,null,{"$f":"IF(Table_PI[[#This Row],[Input 4]]<>\"\",Table_PI[[#This Row],[Input 4]],\"\")","v":""},{"$f":"IF(Table_PI[[#This Row],[Quantity]]=\"\",\"\",Table_PI[[#This Row],[Quantity]])","v":""},null,{"$f":"IF(OR(Table_PI[[#This Row],[Hide: Baseline kWh]]=\"\",Table_PI[[#This Row],[Hide: Baseline kWh]]=0,ISTEXT(Table_PI[[#This Row],[Hide: Baseline kWh]])),\"\",Table_PI[[#This Row],[Hide: Baseline kWh]])","v":""},{"$f":"IF(OR(Table_PI[[#This Row],[Hide: Baseline kW]]=\"\",Table_PI[[#This Row],[Hide: Baseline kW]]=0,ISTEXT(Table_PI[[#This Row],[Hide: Baseline kW]])),\"\",Table_PI[[#This Row],[Hide: Baseline kW]])","v":""},{"$f":"IF(OR(Table_PI[[#This Row],[Hide: Proposed kWh]]=\"\",Table_PI[[#This Row],[Hide: Proposed kWh]]=0,ISTEXT(Table_PI[[#This Row],[Hide: Proposed kWh]])),\"\",Table_PI[[#This Row],[Hide: Proposed kWh]])","v":""},{"$f":"IF(OR(Table_PI[[#This Row],[Hide: Proposed kW]]=\"\",Table_PI[[#This Row],[Hide: Proposed kW]]=0,ISTEXT(Table_PI[[#This Row],[Hide: Proposed kW]])),\"\",Table_PI[[#This Row],[Hide: Proposed kW]])","v":""},null,null,{"$f":"IF(OR(Table_PI[[#This Row],[Hide: Rebate]]=\"\",Table_PI[[#This Row],[Hide: Rebate]]=0,ISTEXT(Table_PI[[#This Row],[Hide: Rebate]])),\"\",Table_PI[[#This Row],[Hide: Rebate]])","v":""},null,{"$f":"IF(OR(Table_PI[[#This Row],[Hide: Incremental Cost]]=\"\",Table_PI[[#This Row],[Hide: Incremental Cost]]=0,ISTEXT(Table_PI[[#This Row],[Hide: Incremental Cost]])),\"\",Table_PI[[#This Row],[Hide: Incremental Cost]])","v":""},{"$f":"IFERROR(IF(Table_SummaryPI[[#This Row],[Incentive_Customer]]=\"\",\"\",ROUND(Table_SummaryPI[[#This Row],[Incentive_Customer]]/$AM$401*'Customer Information'!$BC$21,2)),0)","v":""},{"$f":"IF(OR(Table_PI[[#This Row],[Annual kWh]]=\"\",Table_PI[[#This Row],[Annual kWh]]=0,ISTEXT(Table_PI[[#This Row],[Annual kWh]])),\"\",Table_PI[[#This Row],[Annual kWh]])","v":""},{"$f":"IF(OR(Table_PI[[#This Row],[Peak kW]]=\"\",Table_PI[[#This Row],[Peak kW]]=0,ISTEXT(Table_PI[[#This Row],[Peak kW]])),\"\",Table_PI[[#This Row],[Peak kW]])","v":""},{"$f":"IF(Table_SummaryPI[[#This Row],[Line No.]]<>\"\",IF(AND(ISNUMBER(FIND(\"Chiller\",Table_SummaryPI[[#This Row],[P_MeasureOption1]],1)),Table_SummaryPI[[#This Row],[ProposedMeasureCategory]]=\"Air-Cooled (Water-Cooled Replacement)\"),$BD$29*Table_SummaryPI[[#This Row],[Size]]*Table_SummaryPI[[#This Row],[Quantity]]*Table_SummaryPI[[#This Row],[EFLHCooling]],\nIF(ISNUMBER(FIND(\"Dishwasher\",Table_SummaryPI[[#This Row],[ProposedMeasureCategory]],1)),$BH$29*Table_SummaryPI[[#This Row],[Quantity]],\nIF(ISNUMBER(FIND(\"Ice Maker\",Table_SummaryPI[[#This Row],[ProposedMeasureCategory]],1)),$BD$31*Table_SummaryPI[[#This Row],[Quantity]],\nIF(ISNUMBER(FIND(\"Spray Valve\",Table_SummaryPI[[#This Row],[ProposedMeasureCategory]],1)),$BH$31*Table_SummaryPI[[#This Row],[Quantity]],\n0)))),\"\")","v":""},{"$f":"IF(OR(Table_PI[[#This Row],[Hide: Electrification kWh]]=\"\",Table_PI[[#This Row],[Hide: Electrification kWh]]=0,ISTEXT(Table_PI[[#This Row],[Hide: Electrification kWh]])),\"\",Table_PI[[#This Row],[Hide: Electrification kWh]])","v":""},{"$f":"IF(OR(Table_PI[[#This Row],[Hide: Electrification GHG]]=\"\",Table_PI[[#This Row],[Hide: Electrification GHG]]=0,ISTEXT(Table_PI[[#This Row],[Hide: Electrification GHG]])),\"\",Table_PI[[#This Row],[Hide: Electrification GHG]])","v":""},{"$f":"IFERROR(IF(Table_SummaryPI[[#This Row],[kWhSavings]]=\"\",\"\",$BH$9*Table_SummaryPI[[#This Row],[kWhSavings]]),0)","v":""},{"$f":"IFERROR(IF(Table_SummaryPI[[#This Row],[kWhSavings]]=\"\",\"\",$BH$14*Table_SummaryPI[[#This Row],[kWhSavings]]),0)","v":""},{"$f":"IFERROR(IF(Table_SummaryPI[[#This Row],[kWhSavings]]=\"\",\"\",$BH$18*Table_SummaryPI[[#This Row],[kWhSavings]]),0)","v":""},{"$f":"IFERROR(IF(Table_SummaryPI[[#This Row],[kWhSavings]]=\"\",\"\",$BH$22*Table_SummaryPI[[#This Row],[kWhSavings]]),0)","v":""},null,null,null,null,{"$f":"1/2204.6","v":4.5359702440351992E-4},"Tons / lbs."]
[{"$f":"Table_PI[[#This Row],[Line No.]]","v":""},{"$f":"IF(Table_SummaryPI[[#This Row],[MeasureName]]<>\"\",NOT(ISTEXT(Table_PI[[#This Row],[Rebate]])),\"\")","v":""},{"$f":"IF(Table_SummaryPI[[#This Row],[MeassureCategory]]<>\"\",CONCATENATE(Table_SummaryPI[[#This Row],[MeassureCategory]],  \" - \", Table_SummaryPI[[#This Row],[ProposedMeasureCategory]],  \" - \", TEXT(Table_SummaryPI[[#This Row],[Size]],\"#,##0.00\"),\" \",Table_SummaryPI[[#This Row],[SizeUnit]]),\"\")","v":""},{"$f":"SUBSTITUTE(Table_PI[[#This Row],[Measure]],\"     \",\"\",1)","v":""},{"$f":"IF(Table_PI[[#This Row],[List 1]]<>\"\",Table_PI[[#This Row],[List 1]],\"\")","v":""},{"$f":"IF(Table_PI[[#This Row],[List 2]]<>\"\",Table_PI[[#This Row],[List 2]],\"\")","v":""},{"$f":"IF(Table_PI[[#This Row],[List 3]]<>\"\",Table_PI[[#This Row],[List 3]],\"\")","v":""},{"$f":"IF(Table_PI[[#This Row],[Manufacturer]]=\"\",\"\",Table_PI[[#This Row],[Manufacturer]])","v":""},{"$f":"IF(Table_PI[[#This Row],[Model Number]]=\"\",\"\",Table_PI[[#This Row],[Model Number]])","v":""},{"$f":"IF(Table_PI[[#This Row],[Serial Number(s)]]=\"\",\"\",Table_PI[[#This Row],[Serial Number(s)]])","v":""},null,{"$f":"IF(Table_PI[[#This Row],[Size]]=\"\",\"\",Table_PI[[#This Row],[Size]])","v":""},null,null,{"$f":"IF(Table_PI[[#This Row],[Input 1]]<>\"\",Table_PI[[#This Row],[Input 1]],\"\")","v":""},null,null,{"$f":"IF(Table_PI[[#This Row],[Input 2]]<>\"\",Table_PI[[#This Row],[Input 2]],\"\")","v":""},null,null,{"$f":"IF(Table_PI[[#This Row],[Input 3]]<>\"\",Table_PI[[#This Row],[Input 3]],\"\")","v":""},null,null,{"$f":"IF(Table_PI[[#This Row],[Input 4]]<>\"\",Table_PI[[#This Row],[Input 4]],\"\")","v":""},null,null,{"$f":"IF(Table_PI[[#This Row],[Input 4]]<>\"\",Table_PI[[#This Row],[Input 4]],\"\")","v":""},null,null,{"$f":"IF(Table_PI[[#This Row],[Input 4]]<>\"\",Table_PI[[#This Row],[Input 4]],\"\")","v":""},{"$f":"IF(Table_PI[[#This Row],[Quantity]]=\"\",\"\",Table_PI[[#This Row],[Quantity]])","v":""},7.5,{"$f":"IF(OR(Table_PI[[#This Row],[Hide: Baseline kWh]]=\"\",Table_PI[[#This Row],[Hide: Baseline kWh]]=0,ISTEXT(Table_PI[[#This Row],[Hide: Baseline kWh]])),\"\",Table_PI[[#This Row],[Hide: Baseline kWh]])","v":""},{"$f":"IF(OR(Table_PI[[#This Row],[Hide: Baseline kW]]=\"\",Table_PI[[#This Row],[Hide: Baseline kW]]=0,ISTEXT(Table_PI[[#This Row],[Hide: Baseline kW]])),\"\",Table_PI[[#This Row],[Hide: Baseline kW]])","v":""},{"$f":"IF(OR(Table_PI[[#This Row],[Hide: Proposed kWh]]=\"\",Table_PI[[#This Row],[Hide: Proposed kWh]]=0,ISTEXT(Table_PI[[#This Row],[Hide: Proposed kWh]])),\"\",Table_PI[[#This Row],[Hide: Proposed kWh]])","v":""},{"$f":"IF(OR(Table_PI[[#This Row],[Hide: Proposed kW]]=\"\",Table_PI[[#This Row],[Hide: Proposed kW]]=0,ISTEXT(Table_PI[[#This Row],[Hide: Proposed kW]])),\"\",Table_PI[[#This Row],[Hide: Proposed kW]])","v":""},null,null,{"$f":"IF(OR(Table_PI[[#This Row],[Hide: Rebate]]=\"\",Table_PI[[#This Row],[Hide: Rebate]]=0,ISTEXT(Table_PI[[#This Row],[Hide: Rebate]])),\"\",Table_PI[[#This Row],[Hide: Rebate]])","v":""},null,{"$f":"IF(OR(Table_PI[[#This Row],[Hide: Incremental Cost]]=\"\",Table_PI[[#This Row],[Hide: Incremental Cost]]=0,ISTEXT(Table_PI[[#This Row],[Hide: Incremental Cost]])),\"\",Table_PI[[#This Row],[Hide: Incremental Cost]])","v":""},{"$f":"IFERROR(IF(Table_SummaryPI[[#This Row],[Incentive_Customer]]=\"\",\"\",ROUND(Table_SummaryPI[[#This Row],[Incentive_Customer]]/$AM$401*'Customer Information'!$BC$21,2)),0)","v":""},{"$f":"IF(OR(Table_PI[[#This Row],[Annual kWh]]=\"\",Table_PI[[#This Row],[Annual kWh]]=0,ISTEXT(Table_PI[[#This Row],[Annual kWh]])),\"\",Table_PI[[#This Row],[Annual kWh]])","v":""},{"$f":"IF(OR(Table_PI[[#This Row],[Peak kW]]=\"\",Table_PI[[#This Row],[Peak kW]]=0,ISTEXT(Table_PI[[#This Row],[Peak kW]])),\"\",Table_PI[[#This Row],[Peak kW]])","v":""},{"$f":"IF(Table_SummaryPI[[#This Row],[Line No.]]<>\"\",IF(AND(ISNUMBER(FIND(\"Chiller\",Table_SummaryPI[[#This Row],[P_MeasureOption1]],1)),Table_SummaryPI[[#This Row],[ProposedMeasureCategory]]=\"Air-Cooled (Water-Cooled Replacement)\"),$BD$29*Table_SummaryPI[[#This Row],[Size]]*Table_SummaryPI[[#This Row],[Quantity]]*Table_SummaryPI[[#This Row],[EFLHCooling]],\nIF(ISNUMBER(FIND(\"Dishwasher\",Table_SummaryPI[[#This Row],[ProposedMeasureCategory]],1)),$BH$29*Table_SummaryPI[[#This Row],[Quantity]],\nIF(ISNUMBER(FIND(\"Ice Maker\",Table_SummaryPI[[#This Row],[ProposedMeasureCategory]],1)),$BD$31*Table_SummaryPI[[#This Row],[Quantity]],\nIF(ISNUMBER(FIND(\"Spray Valve\",Table_SummaryPI[[#This Row],[ProposedMeasureCategory]],1)),$BH$31*Table_SummaryPI[[#This Row],[Quantity]],\n0)))),\"\")","v":""},{"$f":"IF(OR(Table_PI[[#This Row],[Hide: Electrification kWh]]=\"\",Table_PI[[#This Row],[Hide: Electrification kWh]]=0,ISTEXT(Table_PI[[#This Row],[Hide: Electrification kWh]])),\"\",Table_PI[[#This Row],[Hide: Electrification kWh]])","v":""},{"$f":"IF(OR(Table_PI[[#This Row],[Hide: Electrification GHG]]=\"\",Table_PI[[#This Row],[Hide: Electrification GHG]]=0,ISTEXT(Table_PI[[#This Row],[Hide: Electrification GHG]])),\"\",Table_PI[[#This Row],[Hide: Electrification GHG]])","v":""},{"$f":"IFERROR(IF(Table_SummaryPI[[#This Row],[kWhSavings]]=\"\",\"\",$BH$9*Table_SummaryPI[[#This Row],[kWhSavings]]),0)","v":""},{"$f":"IFERROR(IF(Table_SummaryPI[[#This Row],[kWhSavings]]=\"\",\"\",$BH$14*Table_SummaryPI[[#This Row],[kWhSavings]]),0)","v":""},{"$f":"IFERROR(IF(Table_SummaryPI[[#This Row],[kWhSavings]]=\"\",\"\",$BH$18*Table_SummaryPI[[#This Row],[kWhSavings]]),0)","v":""},{"$f":"IFERROR(IF(Table_SummaryPI[[#This Row],[kWhSavings]]=\"\",\"\",$BH$22*Table_SummaryPI[[#This Row],[kWhSavings]]),0)","v":""}]
[{"$f":"Table_PI[[#This Row],[Line No.]]","v":""},{"$f":"IF(Table_SummaryPI[[#This Row],[MeasureName]]<>\"\",NOT(ISTEXT(Table_PI[[#This Row],[Rebate]])),\"\")","v":""},{"$f":"IF(Table_SummaryPI[[#This Row],[MeassureCategory]]<>\"\",CONCATENATE(Table_SummaryPI[[#This Row],[MeassureCategory]],  \" - \", Table_SummaryPI[[#This Row],[ProposedMeasureCategory]],  \" - \", TEXT(Table_SummaryPI[[#This Row],[Size]],\"#,##0.00\"),\" \",Table_SummaryPI[[#This Row],[SizeUnit]]),\"\")","v":""},{"$f":"SUBSTITUTE(Table_PI[[#This Row],[Measure]],\"     \",\"\",1)","v":""},{"$f":"IF(Table_PI[[#This Row],[List 1]]<>\"\",Table_PI[[#This Row],[List 1]],\"\")","v":""},{"$f":"IF(Table_PI[[#This Row],[List 2]]<>\"\",Table_PI[[#This Row],[List 2]],\"\")","v":""},{"$f":"IF(Table_PI[[#This Row],[List 3]]<>\"\",Table_PI[[#This Row],[List 3]],\"\")","v":""},{"$f":"IF(Table_PI[[#This Row],[Manufacturer]]=\"\",\"\",Table_PI[[#This Row],[Manufacturer]])","v":""},{"$f":"IF(Table_PI[[#This Row],[Model Number]]=\"\",\"\",Table_PI[[#This Row],[Model Number]])","v":""},{"$f":"IF(Table_PI[[#This Row],[Serial Number(s)]]=\"\",\"\",Table_PI[[#This Row],[Serial Number(s)]])","v":""},null,{"$f":"IF(Table_PI[[#This Row],[Size]]=\"\",\"\",Table_PI[[#This Row],[Size]])","v":""},null,null,{"$f":"IF(Table_PI[[#This Row],[Input 1]]<>\"\",Table_PI[[#This Row],[Input 1]],\"\")","v":""},null,null,{"$f":"IF(Table_PI[[#This Row],[Input 2]]<>\"\",Table_PI[[#This Row],[Input 2]],\"\")","v":""},null,null,{"$f":"IF(Table_PI[[#This Row],[Input 3]]<>\"\",Table_PI[[#This Row],[Input 3]],\"\")","v":""},null,null,{"$f":"IF(Table_PI[[#This Row],[Input 4]]<>\"\",Table_PI[[#This Row],[Input 4]],\"\")","v":""},null,null,{"$f":"IF(Table_PI[[#This Row],[Input 4]]<>\"\",Table_PI[[#This Row],[Input 4]],\"\")","v":""},null,null,{"$f":"IF(Table_PI[[#This Row],[Input 4]]<>\"\",Table_PI[[#This Row],[Input 4]],\"\")","v":""},{"$f":"IF(Table_PI[[#This Row],[Quantity]]=\"\",\"\",Table_PI[[#This Row],[Quantity]])","v":""},{"$f":"IF(Table_PI[[#This Row],[Notes]]=\"\",\"\",Table_PI[[#This Row],[Notes]])","v":""},{"$f":"IF(OR(Table_PI[[#This Row],[Hide: Baseline kWh]]=\"\",Table_PI[[#This Row],[Hide: Baseline kWh]]=0,ISTEXT(Table_PI[[#This Row],[Hide: Baseline kWh]])),\"\",Table_PI[[#This Row],[Hide: Baseline kWh]])","v":""},{"$f":"IF(OR(Table_PI[[#This Row],[Hide: Baseline kW]]=\"\",Table_PI[[#This Row],[Hide: Baseline kW]]=0,ISTEXT(Table_PI[[#This Row],[Hide: Baseline kW]])),\"\",Table_PI[[#This Row],[Hide: Baseline kW]])","v":""},{"$f":"IF(OR(Table_PI[[#This Row],[Hide: Proposed kWh]]=\"\",Table_PI[[#This Row],[Hide: Proposed kWh]]=0,ISTEXT(Table_PI[[#This Row],[Hide: Proposed kWh]])),\"\",Table_PI[[#This Row],[Hide: Proposed kWh]])","v":""},{"$f":"IF(OR(Table_PI[[#This Row],[Hide: Proposed kW]]=\"\",Table_PI[[#This Row],[Hide: Proposed kW]]=0,ISTEXT(Table_PI[[#This Row],[Hide: Proposed kW]])),\"\",Table_PI[[#This Row],[Hide: Proposed kW]])","v":""},null,null,{"$f":"IF(OR(Table_PI[[#This Row],[Hide: Rebate]]=\"\",Table_PI[[#This Row],[Hide: Rebate]]=0,ISTEXT(Table_PI[[#This Row],[Hide: Rebate]])),\"\",Table_PI[[#This Row],[Hide: Rebate]])","v":""},null,{"$f":"IF(OR(Table_PI[[#This Row],[Hide: Incremental Cost]]=\"\",Table_PI[[#This Row],[Hide: Incremental Cost]]=0,ISTEXT(Table_PI[[#This Row],[Hide: Incremental Cost]])),\"\",Table_PI[[#This Row],[Hide: Incremental Cost]])","v":""},{"$f":"IFERROR(IF(Table_SummaryPI[[#This Row],[Incentive_Customer]]=\"\",\"\",ROUND(Table_SummaryPI[[#This Row],[Incentive_Customer]]/$AM$401*'Customer Information'!$BC$21,2)),0)","v":""},{"$f":"IF(OR(Table_PI[[#This Row],[Annual kWh]]=\"\",Table_PI[[#This Row],[Annual kWh]]=0,ISTEXT(Table_PI[[#This Row],[Annual kWh]])),\"\",Table_PI[[#This Row],[Annual kWh]])","v":""},{"$f":"IF(OR(Table_PI[[#This Row],[Peak kW]]=\"\",Table_PI[[#This Row],[Peak kW]]=0,ISTEXT(Table_PI[[#This Row],[Peak kW]])),\"\",Table_PI[[#This Row],[Peak kW]])","v":""},{"$f":"IF(Table_SummaryPI[[#This Row],[Line No.]]<>\"\",IF(AND(ISNUMBER(FIND(\"Chiller\",Table_SummaryPI[[#This Row],[P_MeasureOption1]],1)),Table_SummaryPI[[#This Row],[ProposedMeasureCategory]]=\"Air-Cooled (Water-Cooled Replacement)\"),$BD$29*Table_SummaryPI[[#This Row],[Size]]*Table_SummaryPI[[#This Row],[Quantity]]*Table_SummaryPI[[#This Row],[EFLHCooling]],\nIF(ISNUMBER(FIND(\"Dishwasher\",Table_SummaryPI[[#This Row],[ProposedMeasureCategory]],1)),$BH$29*Table_SummaryPI[[#This Row],[Quantity]],\nIF(ISNUMBER(FIND(\"Ice Maker\",Table_SummaryPI[[#This Row],[ProposedMeasureCategory]],1)),$BD$31*Table_SummaryPI[[#This Row],[Quantity]],\nIF(ISNUMBER(FIND(\"Spray Valve\",Table_SummaryPI[[#This Row],[ProposedMeasureCategory]],1)),$BH$31*Table_SummaryPI[[#This Row],[Quantity]],\n0)))),\"\")","v":""},{"$f":"IF(OR(Table_PI[[#This Row],[Hide: Electrification kWh]]=\"\",Table_PI[[#This Row],[Hide: Electrification kWh]]=0,ISTEXT(Table_PI[[#This Row],[Hide: Electrification kWh]])),\"\",Table_PI[[#This Row],[Hide: Electrification kWh]])","v":""},{"$f":"IF(OR(Table_PI[[#This Row],[Hide: Electrification GHG]]=\"\",Table_PI[[#This Row],[Hide: Electrification GHG]]=0,ISTEXT(Table_PI[[#This Row],[Hide: Electrification GHG]])),\"\",Table_PI[[#This Row],[Hide: Electrification GHG]])","v":""},{"$f":"IFERROR(IF(Table_SummaryPI[[#This Row],[kWhSavings]]=\"\",\"\",$BH$9*Table_SummaryPI[[#This Row],[kWhSavings]]),0)","v":""},{"$f":"IFERROR(IF(Table_SummaryPI[[#This Row],[kWhSavings]]=\"\",\"\",$BH$14*Table_SummaryPI[[#This Row],[kWhSavings]]),0)","v":""},{"$f":"IFERROR(IF(Table_SummaryPI[[#This Row],[kWhSavings]]=\"\",\"\",$BH$18*Table_SummaryPI[[#This Row],[kWhSavings]]),0)","v":""},{"$f":"IFERROR(IF(Table_SummaryPI[[#This Row],[kWhSavings]]=\"\",\"\",$BH$22*Table_SummaryPI[[#This Row],[kWhSavings]]),0)","v":""},null,null,null,null,8887,"grams CO2 / gal Gasoline",null,null,{"$f":"BD12/1000000","v":8.8870000000000008E-3},"Tons CO2 / gal Gasoline"]
[{"$f":"Table_PI[[#This Row],[Line No.]]","v":""},{"$f":"IF(Table_SummaryPI[[#This Row],[MeasureName]]<>\"\",NOT(ISTEXT(Table_PI[[#This Row],[Rebate]])),\"\")","v":""},{"$f":"IF(Table_SummaryPI[[#This Row],[MeassureCategory]]<>\"\",CONCATENATE(Table_SummaryPI[[#This Row],[MeassureCategory]],  \" - \", Table_SummaryPI[[#This Row],[ProposedMeasureCategory]],  \" - \", TEXT(Table_SummaryPI[[#This Row],[Size]],\"#,##0.00\"),\" \",Table_SummaryPI[[#This Row],[SizeUnit]]),\"\")","v":""},{"$f":"SUBSTITUTE(Table_PI[[#This Row],[Measure]],\"     \",\"\",1)","v":""},{"$f":"IF(Table_PI[[#This Row],[List 1]]<>\"\",Table_PI[[#This Row],[List 1]],\"\")","v":""},{"$f":"IF(Table_PI[[#This Row],[List 2]]<>\"\",Table_PI[[#This Row],[List 2]],\"\")","v":""},{"$f":"IF(Table_PI[[#This Row],[List 3]]<>\"\",Table_PI[[#This Row],[List 3]],\"\")","v":""},{"$f":"IF(Table_PI[[#This Row],[Manufacturer]]=\"\",\"\",Table_PI[[#This Row],[Manufacturer]])","v":""},{"$f":"IF(Table_PI[[#This Row],[Model Number]]=\"\",\"\",Table_PI[[#This Row],[Model Number]])","v":""},{"$f":"IF(Table_PI[[#This Row],[Serial Number(s)]]=\"\",\"\",Table_PI[[#This Row],[Serial Number(s)]])","v":""},null,{"$f":"IF(Table_PI[[#This Row],[Size]]=\"\",\"\",Table_PI[[#This Row],[Size]])","v":""},null,null,{"$f":"IF(Table_PI[[#This Row],[Input 1]]<>\"\",Table_PI[[#This Row],[Input 1]],\"\")","v":""},null,null,{"$f":"IF(Table_PI[[#This Row],[Input 2]]<>\"\",Table_PI[[#This Row],[Input 2]],\"\")","v":""},null,null,{"$f":"IF(Table_PI[[#This Row],[Input 3]]<>\"\",Table_PI[[#This Row],[Input 3]],\"\")","v":""},null,null,{"$f":"IF(Table_PI[[#This Row],[Input 4]]<>\"\",Table_PI[[#This Row],[Input 4]],\"\")","v":""},null,null,{"$f":"IF(Table_PI[[#This Row],[Input 4]]<>\"\",Table_PI[[#This Row],[Input 4]],\"\")","v":""},null,null,{"$f":"IF(Table_PI[[#This Row],[Input 4]]<>\"\",Table_PI[[#This Row],[Input 4]],\"\")","v":""},{"$f":"IF(Table_PI[[#This Row],[Quantity]]=\"\",\"\",Table_PI[[#This Row],[Quantity]])","v":""},{"$f":"IF(Table_PI[[#This Row],[Notes]]=\"\",\"\",Table_PI[[#This Row],[Notes]])","v":""},{"$f":"IF(OR(Table_PI[[#This Row],[Hide: Baseline kWh]]=\"\",Table_PI[[#This Row],[Hide: Baseline kWh]]=0,ISTEXT(Table_PI[[#This Row],[Hide: Baseline kWh]])),\"\",Table_PI[[#This Row],[Hide: Baseline kWh]])","v":""},{"$f":"IF(OR(Table_PI[[#This Row],[Hide: Baseline kW]]=\"\",Table_PI[[#This Row],[Hide: Baseline kW]]=0,ISTEXT(Table_PI[[#This Row],[Hide: Baseline kW]])),\"\",Table_PI[[#This Row],[Hide: Baseline kW]])","v":""},{"$f":"IF(OR(Table_PI[[#This Row],[Hide: Proposed kWh]]=\"\",Table_PI[[#This Row],[Hide: Proposed kWh]]=0,ISTEXT(Table_PI[[#This Row],[Hide: Proposed kWh]])),\"\",Table_PI[[#This Row],[Hide: Proposed kWh]])","v":""},{"$f":"IF(OR(Table_PI[[#This Row],[Hide: Proposed kW]]=\"\",Table_PI[[#This Row],[Hide: Proposed kW]]=0,ISTEXT(Table_PI[[#This Row],[Hide: Proposed kW]])),\"\",Table_PI[[#This Row],[Hide: Proposed kW]])","v":""},null,null,{"$f":"IF(OR(Table_PI[[#This Row],[Hide: Rebate]]=\"\",Table_PI[[#This Row],[Hide: Rebate]]=0,ISTEXT(Table_PI[[#This Row],[Hide: Rebate]])),\"\",Table_PI[[#This Row],[Hide: Rebate]])","v":""},null,{"$f":"IF(OR(Table_PI[[#This Row],[Hide: Incremental Cost]]=\"\",Table_PI[[#This Row],[Hide: Incremental Cost]]=0,ISTEXT(Table_PI[[#This Row],[Hide: Incremental Cost]])),\"\",Table_PI[[#This Row],[Hide: Incremental Cost]])","v":""},{"$f":"IFERROR(IF(Table_SummaryPI[[#This Row],[Incentive_Customer]]=\"\",\"\",ROUND(Table_SummaryPI[[#This Row],[Incentive_Customer]]/$AM$401*'Customer Information'!$BC$21,2)),0)","v":""},{"$f":"IF(OR(Table_PI[[#This Row],[Annual kWh]]=\"\",Table_PI[[#This Row],[Annual kWh]]=0,ISTEXT(Table_PI[[#This Row],[Annual kWh]])),\"\",Table_PI[[#This Row],[Annual kWh]])","v":""},{"$f":"IF(OR(Table_PI[[#This Row],[Peak kW]]=\"\",Table_PI[[#This Row],[Peak kW]]=0,ISTEXT(Table_PI[[#This Row],[Peak kW]])),\"\",Table_PI[[#This Row],[Peak kW]])","v":""},{"$f":"IF(Table_SummaryPI[[#This Row],[Line No.]]<>\"\",IF(AND(ISNUMBER(FIND(\"Chiller\",Table_SummaryPI[[#This Row],[P_MeasureOption1]],1)),Table_SummaryPI[[#This Row],[ProposedMeasureCategory]]=\"Air-Cooled (Water-Cooled Replacement)\"),$BD$29*Table_SummaryPI[[#This Row],[Size]]*Table_SummaryPI[[#This Row],[Quantity]]*Table_SummaryPI[[#This Row],[EFLHCooling]],\nIF(ISNUMBER(FIND(\"Dishwasher\",Table_SummaryPI[[#This Row],[ProposedMeasureCategory]],1)),$BH$29*Table_SummaryPI[[#This Row],[Quantity]],\nIF(ISNUMBER(FIND(\"Ice Maker\",Table_SummaryPI[[#This Row],[ProposedMeasureCategory]],1)),$BD$31*Table_SummaryPI[[#This Row],[Quantity]],\nIF(ISNUMBER(FIND(\"Spray Valve\",Table_SummaryPI[[#This Row],[ProposedMeasureCategory]],1)),$BH$31*Table_SummaryPI[[#This Row],[Quantity]],\n0)))),\"\")","v":""},{"$f":"IF(OR(Table_PI[[#This Row],[Hide: Electrification kWh]]=\"\",Table_PI[[#This Row],[Hide: Electrification kWh]]=0,ISTEXT(Table_PI[[#This Row],[Hide: Electrification kWh]])),\"\",Table_PI[[#This Row],[Hide: Electrification kWh]])","v":""},{"$f":"IF(OR(Table_PI[[#This Row],[Hide: Electrification GHG]]=\"\",Table_PI[[#This Row],[Hide: Electrification GHG]]=0,ISTEXT(Table_PI[[#This Row],[Hide: Electrification GHG]])),\"\",Table_PI[[#This Row],[Hide: Electrification GHG]])","v":""},{"$f":"IFERROR(IF(Table_SummaryPI[[#This Row],[kWhSavings]]=\"\",\"\",$BH$9*Table_SummaryPI[[#This Row],[kWhSavings]]),0)","v":""},{"$f":"IFERROR(IF(Table_SummaryPI[[#This Row],[kWhSavings]]=\"\",\"\",$BH$14*Table_SummaryPI[[#This Row],[kWhSavings]]),0)","v":""},{"$f":"IFERROR(IF(Table_SummaryPI[[#This Row],[kWhSavings]]=\"\",\"\",$BH$18*Table_SummaryPI[[#This Row],[kWhSavings]]),0)","v":""},{"$f":"IFERROR(IF(Table_SummaryPI[[#This Row],[kWhSavings]]=\"\",\"\",$BH$22*Table_SummaryPI[[#This Row],[kWhSavings]]),0)","v":""},null,null,null,null,22.3,"MPG",null,null,{"$f":"BD14/BD13*BH12*1/0.989","v":4.6275083315574461},"Tons CO2 / Vehicle/yr."]
[{"$f":"Table_PI[[#This Row],[Line No.]]","v":""},{"$f":"IF(Table_SummaryPI[[#This Row],[MeasureName]]<>\"\",NOT(ISTEXT(Table_PI[[#This Row],[Rebate]])),\"\")","v":""},{"$f":"IF(Table_SummaryPI[[#This Row],[MeassureCategory]]<>\"\",CONCATENATE(Table_SummaryPI[[#This Row],[MeassureCategory]],  \" - \", Table_SummaryPI[[#This Row],[ProposedMeasureCategory]],  \" - \", TEXT(Table_SummaryPI[[#This Row],[Size]],\"#,##0.00\"),\" \",Table_SummaryPI[[#This Row],[SizeUnit]]),\"\")","v":""},{"$f":"SUBSTITUTE(Table_PI[[#This Row],[Measure]],\"     \",\"\",1)","v":""},{"$f":"IF(Table_PI[[#This Row],[List 1]]<>\"\",Table_PI[[#This Row],[List 1]],\"\")","v":""},{"$f":"IF(Table_PI[[#This Row],[List 2]]<>\"\",Table_PI[[#This Row],[List 2]],\"\")","v":""},{"$f":"IF(Table_PI[[#This Row],[List 3]]<>\"\",Table_PI[[#This Row],[List 3]],\"\")","v":""},{"$f":"IF(Table_PI[[#This Row],[Manufacturer]]=\"\",\"\",Table_PI[[#This Row],[Manufacturer]])","v":""},{"$f":"IF(Table_PI[[#This Row],[Model Number]]=\"\",\"\",Table_PI[[#This Row],[Model Number]])","v":""},{"$f":"IF(Table_PI[[#This Row],[Serial Number(s)]]=\"\",\"\",Table_PI[[#This Row],[Serial Number(s)]])","v":""},null,{"$f":"IF(Table_PI[[#This Row],[Size]]=\"\",\"\",Table_PI[[#This Row],[Size]])","v":""},null,null,{"$f":"IF(Table_PI[[#This Row],[Input 1]]<>\"\",Table_PI[[#This Row],[Input 1]],\"\")","v":""},null,null,{"$f":"IF(Table_PI[[#This Row],[Input 2]]<>\"\",Table_PI[[#This Row],[Input 2]],\"\")","v":""},null,null,{"$f":"IF(Table_PI[[#This Row],[Input 3]]<>\"\",Table_PI[[#This Row],[Input 3]],\"\")","v":""},null,null,{"$f":"IF(Table_PI[[#This Row],[Input 4]]<>\"\",Table_PI[[#This Row],[Input 4]],\"\")","v":""},null,null,{"$f":"IF(Table_PI[[#This Row],[Input 4]]<>\"\",Table_PI[[#This Row],[Input 4]],\"\")","v":""},null,null,{"$f":"IF(Table_PI[[#This Row],[Input 4]]<>\"\",Table_PI[[#This Row],[Input 4]],\"\")","v":""},{"$f":"IF(Table_PI[[#This Row],[Quantity]]=\"\",\"\",Table_PI[[#This Row],[Quantity]])","v":""},{"$f":"IF(Table_PI[[#This Row],[Notes]]=\"\",\"\",Table_PI[[#This Row],[Notes]])","v":""},{"$f":"IF(OR(Table_PI[[#This Row],[Hide: Baseline kWh]]=\"\",Table_PI[[#This Row],[Hide: Baseline kWh]]=0,ISTEXT(Table_PI[[#This Row],[Hide: Baseline kWh]])),\"\",Table_PI[[#This Row],[Hide: Baseline kWh]])","v":""},{"$f":"IF(OR(Table_PI[[#This Row],[Hide: Baseline kW]]=\"\",Table_PI[[#This Row],[Hide: Baseline kW]]=0,ISTEXT(Table_PI[[#This Row],[Hide: Baseline kW]])),\"\",Table_PI[[#This Row],[Hide: Baseline kW]])","v":""},{"$f":"IF(OR(Table_PI[[#This Row],[Hide: Proposed kWh]]=\"\",Table_PI[[#This Row],[Hide: Proposed kWh]]=0,ISTEXT(Table_PI[[#This Row],[Hide: Proposed kWh]])),\"\",Table_PI[[#This Row],[Hide: Proposed kWh]])","v":""},{"$f":"IF(OR(Table_PI[[#This Row],[Hide: Proposed kW]]=\"\",Table_PI[[#This Row],[Hide: Proposed kW]]=0,ISTEXT(Table_PI[[#This Row],[Hide: Proposed kW]])),\"\",Table_PI[[#This Row],[Hide: Proposed kW]])","v":""},null,null,{"$f":"IF(OR(Table_PI[[#This Row],[Hide: Rebate]]=\"\",Table_PI[[#This Row],[Hide: Rebate]]=0,ISTEXT(Table_PI[[#This Row],[Hide: Rebate]])),\"\",Table_PI[[#This Row],[Hide: Rebate]])","v":""},null,{"$f":"IF(OR(Table_PI[[#This Row],[Hide: Incremental Cost]]=\"\",Table_PI[[#This Row],[Hide: Incremental Cost]]=0,ISTEXT(Table_PI[[#This Row],[Hide: Incremental Cost]])),\"\",Table_PI[[#This Row],[Hide: Incremental Cost]])","v":""},{"$f":"IFERROR(IF(Table_SummaryPI[[#This Row],[Incentive_Customer]]=\"\",\"\",ROUND(Table_SummaryPI[[#This Row],[Incentive_Customer]]/$AM$401*'Customer Information'!$BC$21,2)),0)","v":""},{"$f":"IF(OR(Table_PI[[#This Row],[Annual kWh]]=\"\",Table_PI[[#This Row],[Annual kWh]]=0,ISTEXT(Table_PI[[#This Row],[Annual kWh]])),\"\",Table_PI[[#This Row],[Annual kWh]])","v":""},{"$f":"IF(OR(Table_PI[[#This Row],[Peak kW]]=\"\",Table_PI[[#This Row],[Peak kW]]=0,ISTEXT(Table_PI[[#This Row],[Peak kW]])),\"\",Table_PI[[#This Row],[Peak kW]])","v":""},{"$f":"IF(Table_SummaryPI[[#This Row],[Line No.]]<>\"\",IF(AND(ISNUMBER(FIND(\"Chiller\",Table_SummaryPI[[#This Row],[P_MeasureOption1]],1)),Table_SummaryPI[[#This Row],[ProposedMeasureCategory]]=\"Air-Cooled (Water-Cooled Replacement)\"),$BD$29*Table_SummaryPI[[#This Row],[Size]]*Table_SummaryPI[[#This Row],[Quantity]]*Table_SummaryPI[[#This Row],[EFLHCooling]],\nIF(ISNUMBER(FIND(\"Dishwasher\",Table_SummaryPI[[#This Row],[ProposedMeasureCategory]],1)),$BH$29*Table_SummaryPI[[#This Row],[Quantity]],\nIF(ISNUMBER(FIND(\"Ice Maker\",Table_SummaryPI[[#This Row],[ProposedMeasureCategory]],1)),$BD$31*Table_SummaryPI[[#This Row],[Quantity]],\nIF(ISNUMBER(FIND(\"Spray Valve\",Table_SummaryPI[[#This Row],[ProposedMeasureCategory]],1)),$BH$31*Table_SummaryPI[[#This Row],[Quantity]],\n0)))),\"\")","v":""},{"$f":"IF(OR(Table_PI[[#This Row],[Hide: Electrification kWh]]=\"\",Table_PI[[#This Row],[Hide: Electrification kWh]]=0,ISTEXT(Table_PI[[#This Row],[Hide: Electrification kWh]])),\"\",Table_PI[[#This Row],[Hide: Electrification kWh]])","v":""},{"$f":"IF(OR(Table_PI[[#This Row],[Hide: Electrification GHG]]=\"\",Table_PI[[#This Row],[Hide: Electrification GHG]]=0,ISTEXT(Table_PI[[#This Row],[Hide: Electrification GHG]])),\"\",Table_PI[[#This Row],[Hide: Electrification GHG]])","v":""},{"$f":"IFERROR(IF(Table_SummaryPI[[#This Row],[kWhSavings]]=\"\",\"\",$BH$9*Table_SummaryPI[[#This Row],[kWhSavings]]),0)","v":""},{"$f":"IFERROR(IF(Table_SummaryPI[[#This Row],[kWhSavings]]=\"\",\"\",$BH$14*Table_SummaryPI[[#This Row],[kWhSavings]]),0)","v":""},{"$f":"IFERROR(IF(Table_SummaryPI[[#This Row],[kWhSavings]]=\"\",\"\",$BH$18*Table_SummaryPI[[#This Row],[kWhSavings]]),0)","v":""},{"$f":"IFERROR(IF(Table_SummaryPI[[#This Row],[kWhSavings]]=\"\",\"\",$BH$22*Table_SummaryPI[[#This Row],[kWhSavings]]),0)","v":""},null,null,null,null,11484,"Annual Vehicle Miles Traveled",null,null,{"$f":"(1/BH13)/(1/BH9)","v":9.037616499747917E-5},"Vehicles/yr. / kWh"]
[{"$f":"Table_PI[[#This Row],[Line No.]]","v":""},{"$f":"IF(Table_SummaryPI[[#This Row],[MeasureName]]<>\"\",NOT(ISTEXT(Table_PI[[#This Row],[Rebate]])),\"\")","v":""},{"$f":"IF(Table_SummaryPI[[#This Row],[MeassureCategory]]<>\"\",CONCATENATE(Table_SummaryPI[[#This Row],[MeassureCategory]],  \" - \", Table_SummaryPI[[#This Row],[ProposedMeasureCategory]],  \" - \", TEXT(Table_SummaryPI[[#This Row],[Size]],\"#,##0.00\"),\" \",Table_SummaryPI[[#This Row],[SizeUnit]]),\"\")","v":""},{"$f":"SUBSTITUTE(Table_PI[[#This Row],[Measure]],\"     \",\"\",1)","v":""},{"$f":"IF(Table_PI[[#This Row],[List 1]]<>\"\",Table_PI[[#This Row],[List 1]],\"\")","v":""},{"$f":"IF(Table_PI[[#This Row],[List 2]]<>\"\",Table_PI[[#This Row],[List 2]],\"\")","v":""},{"$f":"IF(Table_PI[[#This Row],[List 3]]<>\"\",Table_PI[[#This Row],[List 3]],\"\")","v":""},{"$f":"IF(Table_PI[[#This Row],[Manufacturer]]=\"\",\"\",Table_PI[[#This Row],[Manufacturer]])","v":""},{"$f":"IF(Table_PI[[#This Row],[Model Number]]=\"\",\"\",Table_PI[[#This Row],[Model Number]])","v":""},{"$f":"IF(Table_PI[[#This Row],[Serial Number(s)]]=\"\",\"\",Table_PI[[#This Row],[Serial Number(s)]])","v":""},null,{"$f":"IF(Table_PI[[#This Row],[Size]]=\"\",\"\",Table_PI[[#This Row],[Size]])","v":""},null,null,{"$f":"IF(Table_PI[[#This Row],[Input 1]]<>\"\",Table_PI[[#This Row],[Input 1]],\"\")","v":""},null,null,{"$f":"IF(Table_PI[[#This Row],[Input 2]]<>\"\",Table_PI[[#This Row],[Input 2]],\"\")","v":""},null,null,{"$f":"IF(Table_PI[[#This Row],[Input 3]]<>\"\",Table_PI[[#This Row],[Input 3]],\"\")","v":""},null,null,{"$f":"IF(Table_PI[[#This Row],[Input 4]]<>\"\",Table_PI[[#This Row],[Input 4]],\"\")","v":""},null,null,{"$f":"IF(Table_PI[[#This Row],[Input 4]]<>\"\",Table_PI[[#This Row],[Input 4]],\"\")","v":""},null,null,{"$f":"IF(Table_PI[[#This Row],[Input 4]]<>\"\",Table_PI[[#This Row],[Input 4]],\"\")","v":""},{"$f":"IF(Table_PI[[#This Row],[Quantity]]=\"\",\"\",Table_PI[[#This Row],[Quantity]])","v":""},{"$f":"IF(Table_PI[[#This Row],[Notes]]=\"\",\"\",Table_PI[[#This Row],[Notes]])","v":""},{"$f":"IF(OR(Table_PI[[#This Row],[Hide: Baseline kWh]]=\"\",Table_PI[[#This Row],[Hide: Baseline kWh]]=0,ISTEXT(Table_PI[[#This Row],[Hide: Baseline kWh]])),\"\",Table_PI[[#This Row],[Hide: Baseline kWh]])","v":""},{"$f":"IF(OR(Table_PI[[#This Row],[Hide: Baseline kW]]=\"\",Table_PI[[#This Row],[Hide: Baseline kW]]=0,ISTEXT(Table_PI[[#This Row],[Hide: Baseline kW]])),\"\",Table_PI[[#This Row],[Hide: Baseline kW]])","v":""},{"$f":"IF(OR(Table_PI[[#This Row],[Hide: Proposed kWh]]=\"\",Table_PI[[#This Row],[Hide: Proposed kWh]]=0,ISTEXT(Table_PI[[#This Row],[Hide: Proposed kWh]])),\"\",Table_PI[[#This Row],[Hide: Proposed kWh]])","v":""},{"$f":"IF(OR(Table_PI[[#This Row],[Hide: Proposed kW]]=\"\",Table_PI[[#This Row],[Hide: Proposed kW]]=0,ISTEXT(Table_PI[[#This Row],[Hide: Proposed kW]])),\"\",Table_PI[[#This Row],[Hide: Proposed kW]])","v":""},null,null,{"$f":"IF(OR(Table_PI[[#This Row],[Hide: Rebate]]=\"\",Table_PI[[#This Row],[Hide: Rebate]]=0,ISTEXT(Table_PI[[#This Row],[Hide: Rebate]])),\"\",Table_PI[[#This Row],[Hide: Rebate]])","v":""},null,{"$f":"IF(OR(Table_PI[[#This Row],[Hide: Incremental Cost]]=\"\",Table_PI[[#This Row],[Hide: Incremental Cost]]=0,ISTEXT(Table_PI[[#This Row],[Hide: Incremental Cost]])),\"\",Table_PI[[#This Row],[Hide: Incremental Cost]])","v":""},{"$f":"IFERROR(IF(Table_SummaryPI[[#This Row],[Incentive_Customer]]=\"\",\"\",ROUND(Table_SummaryPI[[#This Row],[Incentive_Customer]]/$AM$401*'Customer Information'!$BC$21,2)),0)","v":""},{"$f":"IF(OR(Table_PI[[#This Row],[Annual kWh]]=\"\",Table_PI[[#This Row],[Annual kWh]]=0,ISTEXT(Table_PI[[#This Row],[Annual kWh]])),\"\",Table_PI[[#This Row],[Annual kWh]])","v":""},{"$f":"IF(OR(Table_PI[[#This Row],[Peak kW]]=\"\",Table_PI[[#This Row],[Peak kW]]=0,ISTEXT(Table_PI[[#This Row],[Peak kW]])),\"\",Table_PI[[#This Row],[Peak kW]])","v":""},{"$f":"IF(Table_SummaryPI[[#This Row],[Line No.]]<>\"\",IF(AND(ISNUMBER(FIND(\"Chiller\",Table_SummaryPI[[#This Row],[P_MeasureOption1]],1)),Table_SummaryPI[[#This Row],[ProposedMeasureCategory]]=\"Air-Cooled (Water-Cooled Replacement)\"),$BD$29*Table_SummaryPI[[#This Row],[Size]]*Table_SummaryPI[[#This Row],[Quantity]]*Table_SummaryPI[[#This Row],[EFLHCooling]],\nIF(ISNUMBER(FIND(\"Dishwasher\",Table_SummaryPI[[#This Row],[ProposedMeasureCategory]],1)),$BH$29*Table_SummaryPI[[#This Row],[Quantity]],\nIF(ISNUMBER(FIND(\"Ice Maker\",Table_SummaryPI[[#This Row],[ProposedMeasureCategory]],1)),$BD$31*Table_SummaryPI[[#This Row],[Quantity]],\nIF(ISNUMBER(FIND(\"Spray Valve\",Table_SummaryPI[[#This Row],[ProposedMeasureCategory]],1)),$BH$31*Table_SummaryPI[[#This Row],[Quantity]],\n0)))),\"\")","v":""},{"$f":"IF(OR(Table_PI[[#This Row],[Hide: Electrification kWh]]=\"\",Table_PI[[#This Row],[Hide: Electrification kWh]]=0,ISTEXT(Table_PI[[#This Row],[Hide: Electrification kWh]])),\"\",Table_PI[[#This Row],[Hide: Electrification kWh]])","v":""},{"$f":"IF(OR(Table_PI[[#This Row],[Hide: Electrification GHG]]=\"\",Table_PI[[#This Row],[Hide: Electrification GHG]]=0,ISTEXT(Table_PI[[#This Row],[Hide: Electrification GHG]])),\"\",Table_PI[[#This Row],[Hide: Electrification GHG]])","v":""},{"$f":"IFERROR(IF(Table_SummaryPI[[#This Row],[kWhSavings]]=\"\",\"\",$BH$9*Table_SummaryPI[[#This Row],[kWhSavings]]),0)","v":""},{"$f":"IFERROR(IF(Table_SummaryPI[[#This Row],[kWhSavings]]=\"\",\"\",$BH$14*Table_SummaryPI[[#This Row],[kWhSavings]]),0)","v":""},{"$f":"IFERROR(IF(Table_SummaryPI[[#This Row],[kWhSavings]]=\"\",\"\",$BH$18*Table_SummaryPI[[#This Row],[kWhSavings]]),0)","v":""},{"$f":"IFERROR(IF(Table_SummaryPI[[#This Row],[kWhSavings]]=\"\",\"\",$BH$22*Table_SummaryPI[[#This Row],[kWhSavings]]),0)","v":""}]
[{"$f":"Table_PI[[#This Row],[Line No.]]","v":""},{"$f":"IF(Table_SummaryPI[[#This Row],[MeasureName]]<>\"\",NOT(ISTEXT(Table_PI[[#This Row],[Rebate]])),\"\")","v":""},{"$f":"IF(Table_SummaryPI[[#This Row],[MeassureCategory]]<>\"\",CONCATENATE(Table_SummaryPI[[#This Row],[MeassureCategory]],  \" - \", Table_SummaryPI[[#This Row],[ProposedMeasureCategory]],  \" - \", TEXT(Table_SummaryPI[[#This Row],[Size]],\"#,##0.00\"),\" \",Table_SummaryPI[[#This Row],[SizeUnit]]),\"\")","v":""},{"$f":"SUBSTITUTE(Table_PI[[#This Row],[Measure]],\"     \",\"\",1)","v":""},{"$f":"IF(Table_PI[[#This Row],[List 1]]<>\"\",Table_PI[[#This Row],[List 1]],\"\")","v":""},{"$f":"IF(Table_PI[[#This Row],[List 2]]<>\"\",Table_PI[[#This Row],[List 2]],\"\")","v":""},{"$f":"IF(Table_PI[[#This Row],[List 3]]<>\"\",Table_PI[[#This Row],[List 3]],\"\")","v":""},{"$f":"IF(Table_PI[[#This Row],[Manufacturer]]=\"\",\"\",Table_PI[[#This Row],[Manufacturer]])","v":""},{"$f":"IF(Table_PI[[#This Row],[Model Number]]=\"\",\"\",Table_PI[[#This Row],[Model Number]])","v":""},{"$f":"IF(Table_PI[[#This Row],[Serial Number(s)]]=\"\",\"\",Table_PI[[#This Row],[Serial Number(s)]])","v":""},null,{"$f":"IF(Table_PI[[#This Row],[Size]]=\"\",\"\",Table_PI[[#This Row],[Size]])","v":""},null,null,{"$f":"IF(Table_PI[[#This Row],[Input 1]]<>\"\",Table_PI[[#This Row],[Input 1]],\"\")","v":""},null,null,{"$f":"IF(Table_PI[[#This Row],[Input 2]]<>\"\",Table_PI[[#This Row],[Input 2]],\"\")","v":""},null,null,{"$f":"IF(Table_PI[[#This Row],[Input 3]]<>\"\",Table_PI[[#This Row],[Input 3]],\"\")","v":""},null,null,{"$f":"IF(Table_PI[[#This Row],[Input 4]]<>\"\",Table_PI[[#This Row],[Input 4]],\"\")","v":""},null,null,{"$f":"IF(Table_PI[[#This Row],[Input 4]]<>\"\",Table_PI[[#This Row],[Input 4]],\"\")","v":""},null,null,{"$f":"IF(Table_PI[[#This Row],[Input 4]]<>\"\",Table_PI[[#This Row],[Input 4]],\"\")","v":""},{"$f":"IF(Table_PI[[#This Row],[Quantity]]=\"\",\"\",Table_PI[[#This Row],[Quantity]])","v":""},{"$f":"IF(Table_PI[[#This Row],[Notes]]=\"\",\"\",Table_PI[[#This Row],[Notes]])","v":""},{"$f":"IF(OR(Table_PI[[#This Row],[Hide: Baseline kWh]]=\"\",Table_PI[[#This Row],[Hide: Baseline kWh]]=0,ISTEXT(Table_PI[[#This Row],[Hide: Baseline kWh]])),\"\",Table_PI[[#This Row],[Hide: Baseline kWh]])","v":""},{"$f":"IF(OR(Table_PI[[#This Row],[Hide: Baseline kW]]=\"\",Table_PI[[#This Row],[Hide: Baseline kW]]=0,ISTEXT(Table_PI[[#This Row],[Hide: Baseline kW]])),\"\",Table_PI[[#This Row],[Hide: Baseline kW]])","v":""},{"$f":"IF(OR(Table_PI[[#This Row],[Hide: Proposed kWh]]=\"\",Table_PI[[#This Row],[Hide: Proposed kWh]]=0,ISTEXT(Table_PI[[#This Row],[Hide: Proposed kWh]])),\"\",Table_PI[[#This Row],[Hide: Proposed kWh]])","v":""},{"$f":"IF(OR(Table_PI[[#This Row],[Hide: Proposed kW]]=\"\",Table_PI[[#This Row],[Hide: Proposed kW]]=0,ISTEXT(Table_PI[[#This Row],[Hide: Proposed kW]])),\"\",Table_PI[[#This Row],[Hide: Proposed kW]])","v":""},null,null,{"$f":"IF(OR(Table_PI[[#This Row],[Hide: Rebate]]=\"\",Table_PI[[#This Row],[Hide: Rebate]]=0,ISTEXT(Table_PI[[#This Row],[Hide: Rebate]])),\"\",Table_PI[[#This Row],[Hide: Rebate]])","v":""},null,{"$f":"IF(OR(Table_PI[[#This Row],[Hide: Incremental Cost]]=\"\",Table_PI[[#This Row],[Hide: Incremental Cost]]=0,ISTEXT(Table_PI[[#This Row],[Hide: Incremental Cost]])),\"\",Table_PI[[#This Row],[Hide: Incremental Cost]])","v":""},{"$f":"IFERROR(IF(Table_SummaryPI[[#This Row],[Incentive_Customer]]=\"\",\"\",ROUND(Table_SummaryPI[[#This Row],[Incentive_Customer]]/$AM$401*'Customer Information'!$BC$21,2)),0)","v":""},{"$f":"IF(OR(Table_PI[[#This Row],[Annual kWh]]=\"\",Table_PI[[#This Row],[Annual kWh]]=0,ISTEXT(Table_PI[[#This Row],[Annual kWh]])),\"\",Table_PI[[#This Row],[Annual kWh]])","v":""},{"$f":"IF(OR(Table_PI[[#This Row],[Peak kW]]=\"\",Table_PI[[#This Row],[Peak kW]]=0,ISTEXT(Table_PI[[#This Row],[Peak kW]])),\"\",Table_PI[[#This Row],[Peak kW]])","v":""},{"$f":"IF(Table_SummaryPI[[#This Row],[Line No.]]<>\"\",IF(AND(ISNUMBER(FIND(\"Chiller\",Table_SummaryPI[[#This Row],[P_MeasureOption1]],1)),Table_SummaryPI[[#This Row],[ProposedMeasureCategory]]=\"Air-Cooled (Water-Cooled Replacement)\"),$BD$29*Table_SummaryPI[[#This Row],[Size]]*Table_SummaryPI[[#This Row],[Quantity]]*Table_SummaryPI[[#This Row],[EFLHCooling]],\nIF(ISNUMBER(FIND(\"Dishwasher\",Table_SummaryPI[[#This Row],[ProposedMeasureCategory]],1)),$BH$29*Table_SummaryPI[[#This Row],[Quantity]],\nIF(ISNUMBER(FIND(\"Ice Maker\",Table_SummaryPI[[#This Row],[ProposedMeasureCategory]],1)),$BD$31*Table_SummaryPI[[#This Row],[Quantity]],\nIF(ISNUMBER(FIND(\"Spray Valve\",Table_SummaryPI[[#This Row],[ProposedMeasureCategory]],1)),$BH$31*Table_SummaryPI[[#This Row],[Quantity]],\n0)))),\"\")","v":""},{"$f":"IF(OR(Table_PI[[#This Row],[Hide: Electrification kWh]]=\"\",Table_PI[[#This Row],[Hide: Electrification kWh]]=0,ISTEXT(Table_PI[[#This Row],[Hide: Electrification kWh]])),\"\",Table_PI[[#This Row],[Hide: Electrification kWh]])","v":""},{"$f":"IF(OR(Table_PI[[#This Row],[Hide: Electrification GHG]]=\"\",Table_PI[[#This Row],[Hide: Electrification GHG]]=0,ISTEXT(Table_PI[[#This Row],[Hide: Electrification GHG]])),\"\",Table_PI[[#This Row],[Hide: Electrification GHG]])","v":""},{"$f":"IFERROR(IF(Table_SummaryPI[[#This Row],[kWhSavings]]=\"\",\"\",$BH$9*Table_SummaryPI[[#This Row],[kWhSavings]]),0)","v":""},{"$f":"IFERROR(IF(Table_SummaryPI[[#This Row],[kWhSavings]]=\"\",\"\",$BH$14*Table_SummaryPI[[#This Row],[kWhSavings]]),0)","v":""},{"$f":"IFERROR(IF(Table_SummaryPI[[#This Row],[kWhSavings]]=\"\",\"\",$BH$18*Table_SummaryPI[[#This Row],[kWhSavings]]),0)","v":""},{"$f":"IFERROR(IF(Table_SummaryPI[[#This Row],[kWhSavings]]=\"\",\"\",$BH$22*Table_SummaryPI[[#This Row],[kWhSavings]]),0)","v":""},null,null,null,null,{"$f":"0.11*23.2","v":2.552},"lbs. Carbon / Tree (Coniferous)",null,null,{"$f":"BD10","v":4.5359702440351992E-4},"Tons / lbs."]
[{"$f":"Table_PI[[#This Row],[Line No.]]","v":""},{"$f":"IF(Table_SummaryPI[[#This Row],[MeasureName]]<>\"\",NOT(ISTEXT(Table_PI[[#This Row],[Rebate]])),\"\")","v":""},{"$f":"IF(Table_SummaryPI[[#This Row],[MeassureCategory]]<>\"\",CONCATENATE(Table_SummaryPI[[#This Row],[MeassureCategory]],  \" - \", Table_SummaryPI[[#This Row],[ProposedMeasureCategory]],  \" - \", TEXT(Table_SummaryPI[[#This Row],[Size]],\"#,##0.00\"),\" \",Table_SummaryPI[[#This Row],[SizeUnit]]),\"\")","v":""},{"$f":"SUBSTITUTE(Table_PI[[#This Row],[Measure]],\"     \",\"\",1)","v":""},{"$f":"IF(Table_PI[[#This Row],[List 1]]<>\"\",Table_PI[[#This Row],[List 1]],\"\")","v":""},{"$f":"IF(Table_PI[[#This Row],[List 2]]<>\"\",Table_PI[[#This Row],[List 2]],\"\")","v":""},{"$f":"IF(Table_PI[[#This Row],[List 3]]<>\"\",Table_PI[[#This Row],[List 3]],\"\")","v":""},{"$f":"IF(Table_PI[[#This Row],[Manufacturer]]=\"\",\"\",Table_PI[[#This Row],[Manufacturer]])","v":""},{"$f":"IF(Table_PI[[#This Row],[Model Number]]=\"\",\"\",Table_PI[[#This Row],[Model Number]])","v":""},{"$f":"IF(Table_PI[[#This Row],[Serial Number(s)]]=\"\",\"\",Table_PI[[#This Row],[Serial Number(s)]])","v":""},null,{"$f":"IF(Table_PI[[#This Row],[Size]]=\"\",\"\",Table_PI[[#This Row],[Size]])","v":""},null,null,{"$f":"IF(Table_PI[[#This Row],[Input 1]]<>\"\",Table_PI[[#This Row],[Input 1]],\"\")","v":""},null,null,{"$f":"IF(Table_PI[[#This Row],[Input 2]]<>\"\",Table_PI[[#This Row],[Input 2]],\"\")","v":""},null,null,{"$f":"IF(Table_PI[[#This Row],[Input 3]]<>\"\",Table_PI[[#This Row],[Input 3]],\"\")","v":""},null,null,{"$f":"IF(Table_PI[[#This Row],[Input 4]]<>\"\",Table_PI[[#This Row],[Input 4]],\"\")","v":""},null,null,{"$f":"IF(Table_PI[[#This Row],[Input 4]]<>\"\",Table_PI[[#This Row],[Input 4]],\"\")","v":""},null,null,{"$f":"IF(Table_PI[[#This Row],[Input 4]]<>\"\",Table_PI[[#This Row],[Input 4]],\"\")","v":""},{"$f":"IF(Table_PI[[#This Row],[Quantity]]=\"\",\"\",Table_PI[[#This Row],[Quantity]])","v":""},{"$f":"IF(Table_PI[[#This Row],[Notes]]=\"\",\"\",Table_PI[[#This Row],[Notes]])","v":""},{"$f":"IF(OR(Table_PI[[#This Row],[Hide: Baseline kWh]]=\"\",Table_PI[[#This Row],[Hide: Baseline kWh]]=0,ISTEXT(Table_PI[[#This Row],[Hide: Baseline kWh]])),\"\",Table_PI[[#This Row],[Hide: Baseline kWh]])","v":""},{"$f":"IF(OR(Table_PI[[#This Row],[Hide: Baseline kW]]=\"\",Table_PI[[#This Row],[Hide: Baseline kW]]=0,ISTEXT(Table_PI[[#This Row],[Hide: Baseline kW]])),\"\",Table_PI[[#This Row],[Hide: Baseline kW]])","v":""},{"$f":"IF(OR(Table_PI[[#This Row],[Hide: Proposed kWh]]=\"\",Table_PI[[#This Row],[Hide: Proposed kWh]]=0,ISTEXT(Table_PI[[#This Row],[Hide: Proposed kWh]])),\"\",Table_PI[[#This Row],[Hide: Proposed kWh]])","v":""},{"$f":"IF(OR(Table_PI[[#This Row],[Hide: Proposed kW]]=\"\",Table_PI[[#This Row],[Hide: Proposed kW]]=0,ISTEXT(Table_PI[[#This Row],[Hide: Proposed kW]])),\"\",Table_PI[[#This Row],[Hide: Proposed kW]])","v":""},null,null,{"$f":"IF(OR(Table_PI[[#This Row],[Hide: Rebate]]=\"\",Table_PI[[#This Row],[Hide: Rebate]]=0,ISTEXT(Table_PI[[#This Row],[Hide: Rebate]])),\"\",Table_PI[[#This Row],[Hide: Rebate]])","v":""},null,{"$f":"IF(OR(Table_PI[[#This Row],[Hide: Incremental Cost]]=\"\",Table_PI[[#This Row],[Hide: Incremental Cost]]=0,ISTEXT(Table_PI[[#This Row],[Hide: Incremental Cost]])),\"\",Table_PI[[#This Row],[Hide: Incremental Cost]])","v":""},{"$f":"IFERROR(IF(Table_SummaryPI[[#This Row],[Incentive_Customer]]=\"\",\"\",ROUND(Table_SummaryPI[[#This Row],[Incentive_Customer]]/$AM$401*'Customer Information'!$BC$21,2)),0)","v":""},{"$f":"IF(OR(Table_PI[[#This Row],[Annual kWh]]=\"\",Table_PI[[#This Row],[Annual kWh]]=0,ISTEXT(Table_PI[[#This Row],[Annual kWh]])),\"\",Table_PI[[#This Row],[Annual kWh]])","v":""},{"$f":"IF(OR(Table_PI[[#This Row],[Peak kW]]=\"\",Table_PI[[#This Row],[Peak kW]]=0,ISTEXT(Table_PI[[#This Row],[Peak kW]])),\"\",Table_PI[[#This Row],[Peak kW]])","v":""},{"$f":"IF(Table_SummaryPI[[#This Row],[Line No.]]<>\"\",IF(AND(ISNUMBER(FIND(\"Chiller\",Table_SummaryPI[[#This Row],[P_MeasureOption1]],1)),Table_SummaryPI[[#This Row],[ProposedMeasureCategory]]=\"Air-Cooled (Water-Cooled Replacement)\"),$BD$29*Table_SummaryPI[[#This Row],[Size]]*Table_SummaryPI[[#This Row],[Quantity]]*Table_SummaryPI[[#This Row],[EFLHCooling]],\nIF(ISNUMBER(FIND(\"Dishwasher\",Table_SummaryPI[[#This Row],[ProposedMeasureCategory]],1)),$BH$29*Table_SummaryPI[[#This Row],[Quantity]],\nIF(ISNUMBER(FIND(\"Ice Maker\",Table_SummaryPI[[#This Row],[ProposedMeasureCategory]],1)),$BD$31*Table_SummaryPI[[#This Row],[Quantity]],\nIF(ISNUMBER(FIND(\"Spray Valve\",Table_SummaryPI[[#This Row],[ProposedMeasureCategory]],1)),$BH$31*Table_SummaryPI[[#This Row],[Quantity]],\n0)))),\"\")","v":""},{"$f":"IF(OR(Table_PI[[#This Row],[Hide: Electrification kWh]]=\"\",Table_PI[[#This Row],[Hide: Electrification kWh]]=0,ISTEXT(Table_PI[[#This Row],[Hide: Electrification kWh]])),\"\",Table_PI[[#This Row],[Hide: Electrification kWh]])","v":""},{"$f":"IF(OR(Table_PI[[#This Row],[Hide: Electrification GHG]]=\"\",Table_PI[[#This Row],[Hide: Electrification GHG]]=0,ISTEXT(Table_PI[[#This Row],[Hide: Electrification GHG]])),\"\",Table_PI[[#This Row],[Hide: Electrification GHG]])","v":""},{"$f":"IFERROR(IF(Table_SummaryPI[[#This Row],[kWhSavings]]=\"\",\"\",$BH$9*Table_SummaryPI[[#This Row],[kWhSavings]]),0)","v":""},{"$f":"IFERROR(IF(Table_SummaryPI[[#This Row],[kWhSavings]]=\"\",\"\",$BH$14*Table_SummaryPI[[#This Row],[kWhSavings]]),0)","v":""},{"$f":"IFERROR(IF(Table_SummaryPI[[#This Row],[kWhSavings]]=\"\",\"\",$BH$18*Table_SummaryPI[[#This Row],[kWhSavings]]),0)","v":""},{"$f":"IFERROR(IF(Table_SummaryPI[[#This Row],[kWhSavings]]=\"\",\"\",$BH$22*Table_SummaryPI[[#This Row],[kWhSavings]]),0)","v":""},null,null,null,null,{"$f":"0.89*38","v":33.82},"lbs. Carbon / Tree (Deciduous)",null,null,{"$f":"(BD16+BD17)*BD18*BH16","v":6.0493513562551032E-2},"Tons CO2 Sequestered / Tree"]
[{"$f":"Table_PI[[#This Row],[Line No.]]","v":""},{"$f":"IF(Table_SummaryPI[[#This Row],[MeasureName]]<>\"\",NOT(ISTEXT(Table_PI[[#This Row],[Rebate]])),\"\")","v":""},{"$f":"IF(Table_SummaryPI[[#This Row],[MeassureCategory]]<>\"\",CONCATENATE(Table_SummaryPI[[#This Row],[MeassureCategory]],  \" - \", Table_SummaryPI[[#This Row],[ProposedMeasureCategory]],  \" - \", TEXT(Table_SummaryPI[[#This Row],[Size]],\"#,##0.00\"),\" \",Table_SummaryPI[[#This Row],[SizeUnit]]),\"\")","v":""},{"$f":"SUBSTITUTE(Table_PI[[#This Row],[Measure]],\"     \",\"\",1)","v":""},{"$f":"IF(Table_PI[[#This Row],[List 1]]<>\"\",Table_PI[[#This Row],[List 1]],\"\")","v":""},{"$f":"IF(Table_PI[[#This Row],[List 2]]<>\"\",Table_PI[[#This Row],[List 2]],\"\")","v":""},{"$f":"IF(Table_PI[[#This Row],[List 3]]<>\"\",Table_PI[[#This Row],[List 3]],\"\")","v":""},{"$f":"IF(Table_PI[[#This Row],[Manufacturer]]=\"\",\"\",Table_PI[[#This Row],[Manufacturer]])","v":""},{"$f":"IF(Table_PI[[#This Row],[Model Number]]=\"\",\"\",Table_PI[[#This Row],[Model Number]])","v":""},{"$f":"IF(Table_PI[[#This Row],[Serial Number(s)]]=\"\",\"\",Table_PI[[#This Row],[Serial Number(s)]])","v":""},null,{"$f":"IF(Table_PI[[#This Row],[Size]]=\"\",\"\",Table_PI[[#This Row],[Size]])","v":""},null,null,{"$f":"IF(Table_PI[[#This Row],[Input 1]]<>\"\",Table_PI[[#This Row],[Input 1]],\"\")","v":""},null,null,{"$f":"IF(Table_PI[[#This Row],[Input 2]]<>\"\",Table_PI[[#This Row],[Input 2]],\"\")","v":""},null,null,{"$f":"IF(Table_PI[[#This Row],[Input 3]]<>\"\",Table_PI[[#This Row],[Input 3]],\"\")","v":""},null,null,{"$f":"IF(Table_PI[[#This Row],[Input 4]]<>\"\",Table_PI[[#This Row],[Input 4]],\"\")","v":""},null,null,{"$f":"IF(Table_PI[[#This Row],[Input 4]]<>\"\",Table_PI[[#This Row],[Input 4]],\"\")","v":""},null,null,{"$f":"IF(Table_PI[[#This Row],[Input 4]]<>\"\",Table_PI[[#This Row],[Input 4]],\"\")","v":""},{"$f":"IF(Table_PI[[#This Row],[Quantity]]=\"\",\"\",Table_PI[[#This Row],[Quantity]])","v":""},{"$f":"IF(Table_PI[[#This Row],[Notes]]=\"\",\"\",Table_PI[[#This Row],[Notes]])","v":""},{"$f":"IF(OR(Table_PI[[#This Row],[Hide: Baseline kWh]]=\"\",Table_PI[[#This Row],[Hide: Baseline kWh]]=0,ISTEXT(Table_PI[[#This Row],[Hide: Baseline kWh]])),\"\",Table_PI[[#This Row],[Hide: Baseline kWh]])","v":""},{"$f":"IF(OR(Table_PI[[#This Row],[Hide: Baseline kW]]=\"\",Table_PI[[#This Row],[Hide: Baseline kW]]=0,ISTEXT(Table_PI[[#This Row],[Hide: Baseline kW]])),\"\",Table_PI[[#This Row],[Hide: Baseline kW]])","v":""},{"$f":"IF(OR(Table_PI[[#This Row],[Hide: Proposed kWh]]=\"\",Table_PI[[#This Row],[Hide: Proposed kWh]]=0,ISTEXT(Table_PI[[#This Row],[Hide: Proposed kWh]])),\"\",Table_PI[[#This Row],[Hide: Proposed kWh]])","v":""},{"$f":"IF(OR(Table_PI[[#This Row],[Hide: Proposed kW]]=\"\",Table_PI[[#This Row],[Hide: Proposed kW]]=0,ISTEXT(Table_PI[[#This Row],[Hide: Proposed kW]])),\"\",Table_PI[[#This Row],[Hide: Proposed kW]])","v":""},null,null,{"$f":"IF(OR(Table_PI[[#This Row],[Hide: Rebate]]=\"\",Table_PI[[#This Row],[Hide: Rebate]]=0,ISTEXT(Table_PI[[#This Row],[Hide: Rebate]])),\"\",Table_PI[[#This Row],[Hide: Rebate]])","v":""},null,{"$f":"IF(OR(Table_PI[[#This Row],[Hide: Incremental Cost]]=\"\",Table_PI[[#This Row],[Hide: Incremental Cost]]=0,ISTEXT(Table_PI[[#This Row],[Hide: Incremental Cost]])),\"\",Table_PI[[#This Row],[Hide: Incremental Cost]])","v":""},{"$f":"IFERROR(IF(Table_SummaryPI[[#This Row],[Incentive_Customer]]=\"\",\"\",ROUND(Table_SummaryPI[[#This Row],[Incentive_Customer]]/$AM$401*'Customer Information'!$BC$21,2)),0)","v":""},{"$f":"IF(OR(Table_PI[[#This Row],[Annual kWh]]=\"\",Table_PI[[#This Row],[Annual kWh]]=0,ISTEXT(Table_PI[[#This Row],[Annual kWh]])),\"\",Table_PI[[#This Row],[Annual kWh]])","v":""},{"$f":"IF(OR(Table_PI[[#This Row],[Peak kW]]=\"\",Table_PI[[#This Row],[Peak kW]]=0,ISTEXT(Table_PI[[#This Row],[Peak kW]])),\"\",Table_PI[[#This Row],[Peak kW]])","v":""},{"$f":"IF(Table_SummaryPI[[#This Row],[Line No.]]<>\"\",IF(AND(ISNUMBER(FIND(\"Chiller\",Table_SummaryPI[[#This Row],[P_MeasureOption1]],1)),Table_SummaryPI[[#This Row],[ProposedMeasureCategory]]=\"Air-Cooled (Water-Cooled Replacement)\"),$BD$29*Table_SummaryPI[[#This Row],[Size]]*Table_SummaryPI[[#This Row],[Quantity]]*Table_SummaryPI[[#This Row],[EFLHCooling]],\nIF(ISNUMBER(FIND(\"Dishwasher\",Table_SummaryPI[[#This Row],[ProposedMeasureCategory]],1)),$BH$29*Table_SummaryPI[[#This Row],[Quantity]],\nIF(ISNUMBER(FIND(\"Ice Maker\",Table_SummaryPI[[#This Row],[ProposedMeasureCategory]],1)),$BD$31*Table_SummaryPI[[#This Row],[Quantity]],\nIF(ISNUMBER(FIND(\"Spray Valve\",Table_SummaryPI[[#This Row],[ProposedMeasureCategory]],1)),$BH$31*Table_SummaryPI[[#This Row],[Quantity]],\n0)))),\"\")","v":""},{"$f":"IF(OR(Table_PI[[#This Row],[Hide: Electrification kWh]]=\"\",Table_PI[[#This Row],[Hide: Electrification kWh]]=0,ISTEXT(Table_PI[[#This Row],[Hide: Electrification kWh]])),\"\",Table_PI[[#This Row],[Hide: Electrification kWh]])","v":""},{"$f":"IF(OR(Table_PI[[#This Row],[Hide: Electrification GHG]]=\"\",Table_PI[[#This Row],[Hide: Electrification GHG]]=0,ISTEXT(Table_PI[[#This Row],[Hide: Electrification GHG]])),\"\",Table_PI[[#This Row],[Hide: Electrification GHG]])","v":""},{"$f":"IFERROR(IF(Table_SummaryPI[[#This Row],[kWhSavings]]=\"\",\"\",$BH$9*Table_SummaryPI[[#This Row],[kWhSavings]]),0)","v":""},{"$f":"IFERROR(IF(Table_SummaryPI[[#This Row],[kWhSavings]]=\"\",\"\",$BH$14*Table_SummaryPI[[#This Row],[kWhSavings]]),0)","v":""},{"$f":"IFERROR(IF(Table_SummaryPI[[#This Row],[kWhSavings]]=\"\",\"\",$BH$18*Table_SummaryPI[[#This Row],[kWhSavings]]),0)","v":""},{"$f":"IFERROR(IF(Table_SummaryPI[[#This Row],[kWhSavings]]=\"\",\"\",$BH$22*Table_SummaryPI[[#This Row],[kWhSavings]]),0)","v":""},null,null,null,null,{"$f":"44/12","v":3.6666666666666665},"CO2 / Carbon (Units)",null,null,{"$f":"(1/BH17)/(1/BH9)","v":6.9134099157193837E-3},"# Seedlings grown for 10 yrs. / kWh"]
[{"$f":"Table_PI[[#This Row],[Line No.]]","v":""},{"$f":"IF(Table_SummaryPI[[#This Row],[MeasureName]]<>\"\",NOT(ISTEXT(Table_PI[[#This Row],[Rebate]])),\"\")","v":""},{"$f":"IF(Table_SummaryPI[[#This Row],[MeassureCategory]]<>\"\",CONCATENATE(Table_SummaryPI[[#This Row],[MeassureCategory]],  \" - \", Table_SummaryPI[[#This Row],[ProposedMeasureCategory]],  \" - \", TEXT(Table_SummaryPI[[#This Row],[Size]],\"#,##0.00\"),\" \",Table_SummaryPI[[#This Row],[SizeUnit]]),\"\")","v":""},{"$f":"SUBSTITUTE(Table_PI[[#This Row],[Measure]],\"     \",\"\",1)","v":""},{"$f":"IF(Table_PI[[#This Row],[List 1]]<>\"\",Table_PI[[#This Row],[List 1]],\"\")","v":""},{"$f":"IF(Table_PI[[#This Row],[List 2]]<>\"\",Table_PI[[#This Row],[List 2]],\"\")","v":""},{"$f":"IF(Table_PI[[#This Row],[List 3]]<>\"\",Table_PI[[#This Row],[List 3]],\"\")","v":""},{"$f":"IF(Table_PI[[#This Row],[Manufacturer]]=\"\",\"\",Table_PI[[#This Row],[Manufacturer]])","v":""},{"$f":"IF(Table_PI[[#This Row],[Model Number]]=\"\",\"\",Table_PI[[#This Row],[Model Number]])","v":""},{"$f":"IF(Table_PI[[#This Row],[Serial Number(s)]]=\"\",\"\",Table_PI[[#This Row],[Serial Number(s)]])","v":""},null,{"$f":"IF(Table_PI[[#This Row],[Size]]=\"\",\"\",Table_PI[[#This Row],[Size]])","v":""},null,null,{"$f":"IF(Table_PI[[#This Row],[Input 1]]<>\"\",Table_PI[[#This Row],[Input 1]],\"\")","v":""},null,null,{"$f":"IF(Table_PI[[#This Row],[Input 2]]<>\"\",Table_PI[[#This Row],[Input 2]],\"\")","v":""},null,null,{"$f":"IF(Table_PI[[#This Row],[Input 3]]<>\"\",Table_PI[[#This Row],[Input 3]],\"\")","v":""},null,null,{"$f":"IF(Table_PI[[#This Row],[Input 4]]<>\"\",Table_PI[[#This Row],[Input 4]],\"\")","v":""},null,null,{"$f":"IF(Table_PI[[#This Row],[Input 4]]<>\"\",Table_PI[[#This Row],[Input 4]],\"\")","v":""},null,null,{"$f":"IF(Table_PI[[#This Row],[Input 4]]<>\"\",Table_PI[[#This Row],[Input 4]],\"\")","v":""},{"$f":"IF(Table_PI[[#This Row],[Quantity]]=\"\",\"\",Table_PI[[#This Row],[Quantity]])","v":""},{"$f":"IF(Table_PI[[#This Row],[Notes]]=\"\",\"\",Table_PI[[#This Row],[Notes]])","v":""},{"$f":"IF(OR(Table_PI[[#This Row],[Hide: Baseline kWh]]=\"\",Table_PI[[#This Row],[Hide: Baseline kWh]]=0,ISTEXT(Table_PI[[#This Row],[Hide: Baseline kWh]])),\"\",Table_PI[[#This Row],[Hide: Baseline kWh]])","v":""},{"$f":"IF(OR(Table_PI[[#This Row],[Hide: Baseline kW]]=\"\",Table_PI[[#This Row],[Hide: Baseline kW]]=0,ISTEXT(Table_PI[[#This Row],[Hide: Baseline kW]])),\"\",Table_PI[[#This Row],[Hide: Baseline kW]])","v":""},{"$f":"IF(OR(Table_PI[[#This Row],[Hide: Proposed kWh]]=\"\",Table_PI[[#This Row],[Hide: Proposed kWh]]=0,ISTEXT(Table_PI[[#This Row],[Hide: Proposed kWh]])),\"\",Table_PI[[#This Row],[Hide: Proposed kWh]])","v":""},{"$f":"IF(OR(Table_PI[[#This Row],[Hide: Proposed kW]]=\"\",Table_PI[[#This Row],[Hide: Proposed kW]]=0,ISTEXT(Table_PI[[#This Row],[Hide: Proposed kW]])),\"\",Table_PI[[#This Row],[Hide: Proposed kW]])","v":""},null,null,{"$f":"IF(OR(Table_PI[[#This Row],[Hide: Rebate]]=\"\",Table_PI[[#This Row],[Hide: Rebate]]=0,ISTEXT(Table_PI[[#This Row],[Hide: Rebate]])),\"\",Table_PI[[#This Row],[Hide: Rebate]])","v":""},null,{"$f":"IF(OR(Table_PI[[#This Row],[Hide: Incremental Cost]]=\"\",Table_PI[[#This Row],[Hide: Incremental Cost]]=0,ISTEXT(Table_PI[[#This Row],[Hide: Incremental Cost]])),\"\",Table_PI[[#This Row],[Hide: Incremental Cost]])","v":""},{"$f":"IFERROR(IF(Table_SummaryPI[[#This Row],[Incentive_Customer]]=\"\",\"\",ROUND(Table_SummaryPI[[#This Row],[Incentive_Customer]]/$AM$401*'Customer Information'!$BC$21,2)),0)","v":""},{"$f":"IF(OR(Table_PI[[#This Row],[Annual kWh]]=\"\",Table_PI[[#This Row],[Annual kWh]]=0,ISTEXT(Table_PI[[#This Row],[Annual kWh]])),\"\",Table_PI[[#This Row],[Annual kWh]])","v":""},{"$f":"IF(OR(Table_PI[[#This Row],[Peak kW]]=\"\",Table_PI[[#This Row],[Peak kW]]=0,ISTEXT(Table_PI[[#This Row],[Peak kW]])),\"\",Table_PI[[#This Row],[Peak kW]])","v":""},{"$f":"IF(Table_SummaryPI[[#This Row],[Line No.]]<>\"\",IF(AND(ISNUMBER(FIND(\"Chiller\",Table_SummaryPI[[#This Row],[P_MeasureOption1]],1)),Table_SummaryPI[[#This Row],[ProposedMeasureCategory]]=\"Air-Cooled (Water-Cooled Replacement)\"),$BD$29*Table_SummaryPI[[#This Row],[Size]]*Table_SummaryPI[[#This Row],[Quantity]]*Table_SummaryPI[[#This Row],[EFLHCooling]],\nIF(ISNUMBER(FIND(\"Dishwasher\",Table_SummaryPI[[#This Row],[ProposedMeasureCategory]],1)),$BH$29*Table_SummaryPI[[#This Row],[Quantity]],\nIF(ISNUMBER(FIND(\"Ice Maker\",Table_SummaryPI[[#This Row],[ProposedMeasureCategory]],1)),$BD$31*Table_SummaryPI[[#This Row],[Quantity]],\nIF(ISNUMBER(FIND(\"Spray Valve\",Table_SummaryPI[[#This Row],[ProposedMeasureCategory]],1)),$BH$31*Table_SummaryPI[[#This Row],[Quantity]],\n0)))),\"\")","v":""},{"$f":"IF(OR(Table_PI[[#This Row],[Hide: Electrification kWh]]=\"\",Table_PI[[#This Row],[Hide: Electrification kWh]]=0,ISTEXT(Table_PI[[#This Row],[Hide: Electrification kWh]])),\"\",Table_PI[[#This Row],[Hide: Electrification kWh]])","v":""},{"$f":"IF(OR(Table_PI[[#This Row],[Hide: Electrification GHG]]=\"\",Table_PI[[#This Row],[Hide: Electrification GHG]]=0,ISTEXT(Table_PI[[#This Row],[Hide: Electrification GHG]])),\"\",Table_PI[[#This Row],[Hide: Electrification GHG]])","v":""},{"$f":"IFERROR(IF(Table_SummaryPI[[#This Row],[kWhSavings]]=\"\",\"\",$BH$9*Table_SummaryPI[[#This Row],[kWhSavings]]),0)","v":""},{"$f":"IFERROR(IF(Table_SummaryPI[[#This Row],[kWhSavings]]=\"\",\"\",$BH$14*Table_SummaryPI[[#This Row],[kWhSavings]]),0)","v":""},{"$f":"IFERROR(IF(Table_SummaryPI[[#This Row],[kWhSavings]]=\"\",\"\",$BH$18*Table_SummaryPI[[#This Row],[kWhSavings]]),0)","v":""},{"$f":"IFERROR(IF(Table_SummaryPI[[#This Row],[kWhSavings]]=\"\",\"\",$BH$22*Table_SummaryPI[[#This Row],[kWhSavings]]),0)","v":""},null,null,null,null,"Reference: https://www.epa.gov/energy/greenhouse-gases-equivalencies-calculator-calculations-and-references"]
[{"$f":"Table_PI[[#This Row],[Line No.]]","v":""},{"$f":"IF(Table_SummaryPI[[#This Row],[MeasureName]]<>\"\",NOT(ISTEXT(Table_PI[[#This Row],[Rebate]])),\"\")","v":""},{"$f":"IF(Table_SummaryPI[[#This Row],[MeassureCategory]]<>\"\",CONCATENATE(Table_SummaryPI[[#This Row],[MeassureCategory]],  \" - \", Table_SummaryPI[[#This Row],[ProposedMeasureCategory]],  \" - \", TEXT(Table_SummaryPI[[#This Row],[Size]],\"#,##0.00\"),\" \",Table_SummaryPI[[#This Row],[SizeUnit]]),\"\")","v":""},{"$f":"SUBSTITUTE(Table_PI[[#This Row],[Measure]],\"     \",\"\",1)","v":""},{"$f":"IF(Table_PI[[#This Row],[List 1]]<>\"\",Table_PI[[#This Row],[List 1]],\"\")","v":""},{"$f":"IF(Table_PI[[#This Row],[List 2]]<>\"\",Table_PI[[#This Row],[List 2]],\"\")","v":""},{"$f":"IF(Table_PI[[#This Row],[List 3]]<>\"\",Table_PI[[#This Row],[List 3]],\"\")","v":""},{"$f":"IF(Table_PI[[#This Row],[Manufacturer]]=\"\",\"\",Table_PI[[#This Row],[Manufacturer]])","v":""},{"$f":"IF(Table_PI[[#This Row],[Model Number]]=\"\",\"\",Table_PI[[#This Row],[Model Number]])","v":""},{"$f":"IF(Table_PI[[#This Row],[Serial Number(s)]]=\"\",\"\",Table_PI[[#This Row],[Serial Number(s)]])","v":""},null,{"$f":"IF(Table_PI[[#This Row],[Size]]=\"\",\"\",Table_PI[[#This Row],[Size]])","v":""},null,null,{"$f":"IF(Table_PI[[#This Row],[Input 1]]<>\"\",Table_PI[[#This Row],[Input 1]],\"\")","v":""},null,null,{"$f":"IF(Table_PI[[#This Row],[Input 2]]<>\"\",Table_PI[[#This Row],[Input 2]],\"\")","v":""},null,null,{"$f":"IF(Table_PI[[#This Row],[Input 3]]<>\"\",Table_PI[[#This Row],[Input 3]],\"\")","v":""},null,null,{"$f":"IF(Table_PI[[#This Row],[Input 4]]<>\"\",Table_PI[[#This Row],[Input 4]],\"\")","v":""},null,null,{"$f":"IF(Table_PI[[#This Row],[Input 4]]<>\"\",Table_PI[[#This Row],[Input 4]],\"\")","v":""},null,null,{"$f":"IF(Table_PI[[#This Row],[Input 4]]<>\"\",Table_PI[[#This Row],[Input 4]],\"\")","v":""},{"$f":"IF(Table_PI[[#This Row],[Quantity]]=\"\",\"\",Table_PI[[#This Row],[Quantity]])","v":""},{"$f":"IF(Table_PI[[#This Row],[Notes]]=\"\",\"\",Table_PI[[#This Row],[Notes]])","v":""},{"$f":"IF(OR(Table_PI[[#This Row],[Hide: Baseline kWh]]=\"\",Table_PI[[#This Row],[Hide: Baseline kWh]]=0,ISTEXT(Table_PI[[#This Row],[Hide: Baseline kWh]])),\"\",Table_PI[[#This Row],[Hide: Baseline kWh]])","v":""},{"$f":"IF(OR(Table_PI[[#This Row],[Hide: Baseline kW]]=\"\",Table_PI[[#This Row],[Hide: Baseline kW]]=0,ISTEXT(Table_PI[[#This Row],[Hide: Baseline kW]])),\"\",Table_PI[[#This Row],[Hide: Baseline kW]])","v":""},{"$f":"IF(OR(Table_PI[[#This Row],[Hide: Proposed kWh]]=\"\",Table_PI[[#This Row],[Hide: Proposed kWh]]=0,ISTEXT(Table_PI[[#This Row],[Hide: Proposed kWh]])),\"\",Table_PI[[#This Row],[Hide: Proposed kWh]])","v":""},{"$f":"IF(OR(Table_PI[[#This Row],[Hide: Proposed kW]]=\"\",Table_PI[[#This Row],[Hide: Proposed kW]]=0,ISTEXT(Table_PI[[#This Row],[Hide: Proposed kW]])),\"\",Table_PI[[#This Row],[Hide: Proposed kW]])","v":""},null,null,{"$f":"IF(OR(Table_PI[[#This Row],[Hide: Rebate]]=\"\",Table_PI[[#This Row],[Hide: Rebate]]=0,ISTEXT(Table_PI[[#This Row],[Hide: Rebate]])),\"\",Table_PI[[#This Row],[Hide: Rebate]])","v":""},null,{"$f":"IF(OR(Table_PI[[#This Row],[Hide: Incremental Cost]]=\"\",Table_PI[[#This Row],[Hide: Incremental Cost]]=0,ISTEXT(Table_PI[[#This Row],[Hide: Incremental Cost]])),\"\",Table_PI[[#This Row],[Hide: Incremental Cost]])","v":""},{"$f":"IFERROR(IF(Table_SummaryPI[[#This Row],[Incentive_Customer]]=\"\",\"\",ROUND(Table_SummaryPI[[#This Row],[Incentive_Customer]]/$AM$401*'Customer Information'!$BC$21,2)),0)","v":""},{"$f":"IF(OR(Table_PI[[#This Row],[Annual kWh]]=\"\",Table_PI[[#This Row],[Annual kWh]]=0,ISTEXT(Table_PI[[#This Row],[Annual kWh]])),\"\",Table_PI[[#This Row],[Annual kWh]])","v":""},{"$f":"IF(OR(Table_PI[[#This Row],[Peak kW]]=\"\",Table_PI[[#This Row],[Peak kW]]=0,ISTEXT(Table_PI[[#This Row],[Peak kW]])),\"\",Table_PI[[#This Row],[Peak kW]])","v":""},{"$f":"IF(Table_SummaryPI[[#This Row],[Line No.]]<>\"\",IF(AND(ISNUMBER(FIND(\"Chiller\",Table_SummaryPI[[#This Row],[P_MeasureOption1]],1)),Table_SummaryPI[[#This Row],[ProposedMeasureCategory]]=\"Air-Cooled (Water-Cooled Replacement)\"),$BD$29*Table_SummaryPI[[#This Row],[Size]]*Table_SummaryPI[[#This Row],[Quantity]]*Table_SummaryPI[[#This Row],[EFLHCooling]],\nIF(ISNUMBER(FIND(\"Dishwasher\",Table_SummaryPI[[#This Row],[ProposedMeasureCategory]],1)),$BH$29*Table_SummaryPI[[#This Row],[Quantity]],\nIF(ISNUMBER(FIND(\"Ice Maker\",Table_SummaryPI[[#This Row],[ProposedMeasureCategory]],1)),$BD$31*Table_SummaryPI[[#This Row],[Quantity]],\nIF(ISNUMBER(FIND(\"Spray Valve\",Table_SummaryPI[[#This Row],[ProposedMeasureCategory]],1)),$BH$31*Table_SummaryPI[[#This Row],[Quantity]],\n0)))),\"\")","v":""},{"$f":"IF(OR(Table_PI[[#This Row],[Hide: Electrification kWh]]=\"\",Table_PI[[#This Row],[Hide: Electrification kWh]]=0,ISTEXT(Table_PI[[#This Row],[Hide: Electrification kWh]])),\"\",Table_PI[[#This Row],[Hide: Electrification kWh]])","v":""},{"$f":"IF(OR(Table_PI[[#This Row],[Hide: Electrification GHG]]=\"\",Table_PI[[#This Row],[Hide: Electrification GHG]]=0,ISTEXT(Table_PI[[#This Row],[Hide: Electrification GHG]])),\"\",Table_PI[[#This Row],[Hide: Electrification GHG]])","v":""},{"$f":"IFERROR(IF(Table_SummaryPI[[#This Row],[kWhSavings]]=\"\",\"\",$BH$9*Table_SummaryPI[[#This Row],[kWhSavings]]),0)","v":""},{"$f":"IFERROR(IF(Table_SummaryPI[[#This Row],[kWhSavings]]=\"\",\"\",$BH$14*Table_SummaryPI[[#This Row],[kWhSavings]]),0)","v":""},{"$f":"IFERROR(IF(Table_SummaryPI[[#This Row],[kWhSavings]]=\"\",\"\",$BH$18*Table_SummaryPI[[#This Row],[kWhSavings]]),0)","v":""},{"$f":"IFERROR(IF(Table_SummaryPI[[#This Row],[kWhSavings]]=\"\",\"\",$BH$22*Table_SummaryPI[[#This Row],[kWhSavings]]),0)","v":""}]
[{"$f":"Table_PI[[#This Row],[Line No.]]","v":""},{"$f":"IF(Table_SummaryPI[[#This Row],[MeasureName]]<>\"\",NOT(ISTEXT(Table_PI[[#This Row],[Rebate]])),\"\")","v":""},{"$f":"IF(Table_SummaryPI[[#This Row],[MeassureCategory]]<>\"\",CONCATENATE(Table_SummaryPI[[#This Row],[MeassureCategory]],  \" - \", Table_SummaryPI[[#This Row],[ProposedMeasureCategory]],  \" - \", TEXT(Table_SummaryPI[[#This Row],[Size]],\"#,##0.00\"),\" \",Table_SummaryPI[[#This Row],[SizeUnit]]),\"\")","v":""},{"$f":"SUBSTITUTE(Table_PI[[#This Row],[Measure]],\"     \",\"\",1)","v":""},{"$f":"IF(Table_PI[[#This Row],[List 1]]<>\"\",Table_PI[[#This Row],[List 1]],\"\")","v":""},{"$f":"IF(Table_PI[[#This Row],[List 2]]<>\"\",Table_PI[[#This Row],[List 2]],\"\")","v":""},{"$f":"IF(Table_PI[[#This Row],[List 3]]<>\"\",Table_PI[[#This Row],[List 3]],\"\")","v":""},{"$f":"IF(Table_PI[[#This Row],[Manufacturer]]=\"\",\"\",Table_PI[[#This Row],[Manufacturer]])","v":""},{"$f":"IF(Table_PI[[#This Row],[Model Number]]=\"\",\"\",Table_PI[[#This Row],[Model Number]])","v":""},{"$f":"IF(Table_PI[[#This Row],[Serial Number(s)]]=\"\",\"\",Table_PI[[#This Row],[Serial Number(s)]])","v":""},null,{"$f":"IF(Table_PI[[#This Row],[Size]]=\"\",\"\",Table_PI[[#This Row],[Size]])","v":""},null,null,{"$f":"IF(Table_PI[[#This Row],[Input 1]]<>\"\",Table_PI[[#This Row],[Input 1]],\"\")","v":""},null,null,{"$f":"IF(Table_PI[[#This Row],[Input 2]]<>\"\",Table_PI[[#This Row],[Input 2]],\"\")","v":""},null,null,{"$f":"IF(Table_PI[[#This Row],[Input 3]]<>\"\",Table_PI[[#This Row],[Input 3]],\"\")","v":""},null,null,{"$f":"IF(Table_PI[[#This Row],[Input 4]]<>\"\",Table_PI[[#This Row],[Input 4]],\"\")","v":""},null,null,{"$f":"IF(Table_PI[[#This Row],[Input 4]]<>\"\",Table_PI[[#This Row],[Input 4]],\"\")","v":""},null,null,{"$f":"IF(Table_PI[[#This Row],[Input 4]]<>\"\",Table_PI[[#This Row],[Input 4]],\"\")","v":""},{"$f":"IF(Table_PI[[#This Row],[Quantity]]=\"\",\"\",Table_PI[[#This Row],[Quantity]])","v":""},{"$f":"IF(Table_PI[[#This Row],[Notes]]=\"\",\"\",Table_PI[[#This Row],[Notes]])","v":""},{"$f":"IF(OR(Table_PI[[#This Row],[Hide: Baseline kWh]]=\"\",Table_PI[[#This Row],[Hide: Baseline kWh]]=0,ISTEXT(Table_PI[[#This Row],[Hide: Baseline kWh]])),\"\",Table_PI[[#This Row],[Hide: Baseline kWh]])","v":""},{"$f":"IF(OR(Table_PI[[#This Row],[Hide: Baseline kW]]=\"\",Table_PI[[#This Row],[Hide: Baseline kW]]=0,ISTEXT(Table_PI[[#This Row],[Hide: Baseline kW]])),\"\",Table_PI[[#This Row],[Hide: Baseline kW]])","v":""},{"$f":"IF(OR(Table_PI[[#This Row],[Hide: Proposed kWh]]=\"\",Table_PI[[#This Row],[Hide: Proposed kWh]]=0,ISTEXT(Table_PI[[#This Row],[Hide: Proposed kWh]])),\"\",Table_PI[[#This Row],[Hide: Proposed kWh]])","v":""},{"$f":"IF(OR(Table_PI[[#This Row],[Hide: Proposed kW]]=\"\",Table_PI[[#This Row],[Hide: Proposed kW]]=0,ISTEXT(Table_PI[[#This Row],[Hide: Proposed kW]])),\"\",Table_PI[[#This Row],[Hide: Proposed kW]])","v":""},null,null,{"$f":"IF(OR(Table_PI[[#This Row],[Hide: Rebate]]=\"\",Table_PI[[#This Row],[Hide: Rebate]]=0,ISTEXT(Table_PI[[#This Row],[Hide: Rebate]])),\"\",Table_PI[[#This Row],[Hide: Rebate]])","v":""},null,{"$f":"IF(OR(Table_PI[[#This Row],[Hide: Incremental Cost]]=\"\",Table_PI[[#This Row],[Hide: Incremental Cost]]=0,ISTEXT(Table_PI[[#This Row],[Hide: Incremental Cost]])),\"\",Table_PI[[#This Row],[Hide: Incremental Cost]])","v":""},{"$f":"IFERROR(IF(Table_SummaryPI[[#This Row],[Incentive_Customer]]=\"\",\"\",ROUND(Table_SummaryPI[[#This Row],[Incentive_Customer]]/$AM$401*'Customer Information'!$BC$21,2)),0)","v":""},{"$f":"IF(OR(Table_PI[[#This Row],[Annual kWh]]=\"\",Table_PI[[#This Row],[Annual kWh]]=0,ISTEXT(Table_PI[[#This Row],[Annual kWh]])),\"\",Table_PI[[#This Row],[Annual kWh]])","v":""},{"$f":"IF(OR(Table_PI[[#This Row],[Peak kW]]=\"\",Table_PI[[#This Row],[Peak kW]]=0,ISTEXT(Table_PI[[#This Row],[Peak kW]])),\"\",Table_PI[[#This Row],[Peak kW]])","v":""},{"$f":"IF(Table_SummaryPI[[#This Row],[Line No.]]<>\"\",IF(AND(ISNUMBER(FIND(\"Chiller\",Table_SummaryPI[[#This Row],[P_MeasureOption1]],1)),Table_SummaryPI[[#This Row],[ProposedMeasureCategory]]=\"Air-Cooled (Water-Cooled Replacement)\"),$BD$29*Table_SummaryPI[[#This Row],[Size]]*Table_SummaryPI[[#This Row],[Quantity]]*Table_SummaryPI[[#This Row],[EFLHCooling]],\nIF(ISNUMBER(FIND(\"Dishwasher\",Table_SummaryPI[[#This Row],[ProposedMeasureCategory]],1)),$BH$29*Table_SummaryPI[[#This Row],[Quantity]],\nIF(ISNUMBER(FIND(\"Ice Maker\",Table_SummaryPI[[#This Row],[ProposedMeasureCategory]],1)),$BD$31*Table_SummaryPI[[#This Row],[Quantity]],\nIF(ISNUMBER(FIND(\"Spray Valve\",Table_SummaryPI[[#This Row],[ProposedMeasureCategory]],1)),$BH$31*Table_SummaryPI[[#This Row],[Quantity]],\n0)))),\"\")","v":""},{"$f":"IF(OR(Table_PI[[#This Row],[Hide: Electrification kWh]]=\"\",Table_PI[[#This Row],[Hide: Electrification kWh]]=0,ISTEXT(Table_PI[[#This Row],[Hide: Electrification kWh]])),\"\",Table_PI[[#This Row],[Hide: Electrification kWh]])","v":""},{"$f":"IF(OR(Table_PI[[#This Row],[Hide: Electrification GHG]]=\"\",Table_PI[[#This Row],[Hide: Electrification GHG]]=0,ISTEXT(Table_PI[[#This Row],[Hide: Electrification GHG]])),\"\",Table_PI[[#This Row],[Hide: Electrification GHG]])","v":""},{"$f":"IFERROR(IF(Table_SummaryPI[[#This Row],[kWhSavings]]=\"\",\"\",$BH$9*Table_SummaryPI[[#This Row],[kWhSavings]]),0)","v":""},{"$f":"IFERROR(IF(Table_SummaryPI[[#This Row],[kWhSavings]]=\"\",\"\",$BH$14*Table_SummaryPI[[#This Row],[kWhSavings]]),0)","v":""},{"$f":"IFERROR(IF(Table_SummaryPI[[#This Row],[kWhSavings]]=\"\",\"\",$BH$18*Table_SummaryPI[[#This Row],[kWhSavings]]),0)","v":""},{"$f":"IFERROR(IF(Table_SummaryPI[[#This Row],[kWhSavings]]=\"\",\"\",$BH$22*Table_SummaryPI[[#This Row],[kWhSavings]]),0)","v":""},null,null,null,null,"N3O Calculations"]
[{"$f":"Table_PI[[#This Row],[Line No.]]","v":""},{"$f":"IF(Table_SummaryPI[[#This Row],[MeasureName]]<>\"\",NOT(ISTEXT(Table_PI[[#This Row],[Rebate]])),\"\")","v":""},{"$f":"IF(Table_SummaryPI[[#This Row],[MeassureCategory]]<>\"\",CONCATENATE(Table_SummaryPI[[#This Row],[MeassureCategory]],  \" - \", Table_SummaryPI[[#This Row],[ProposedMeasureCategory]],  \" - \", TEXT(Table_SummaryPI[[#This Row],[Size]],\"#,##0.00\"),\" \",Table_SummaryPI[[#This Row],[SizeUnit]]),\"\")","v":""},{"$f":"SUBSTITUTE(Table_PI[[#This Row],[Measure]],\"     \",\"\",1)","v":""},{"$f":"IF(Table_PI[[#This Row],[List 1]]<>\"\",Table_PI[[#This Row],[List 1]],\"\")","v":""},{"$f":"IF(Table_PI[[#This Row],[List 2]]<>\"\",Table_PI[[#This Row],[List 2]],\"\")","v":""},{"$f":"IF(Table_PI[[#This Row],[List 3]]<>\"\",Table_PI[[#This Row],[List 3]],\"\")","v":""},{"$f":"IF(Table_PI[[#This Row],[Manufacturer]]=\"\",\"\",Table_PI[[#This Row],[Manufacturer]])","v":""},{"$f":"IF(Table_PI[[#This Row],[Model Number]]=\"\",\"\",Table_PI[[#This Row],[Model Number]])","v":""},{"$f":"IF(Table_PI[[#This Row],[Serial Number(s)]]=\"\",\"\",Table_PI[[#This Row],[Serial Number(s)]])","v":""},null,{"$f":"IF(Table_PI[[#This Row],[Size]]=\"\",\"\",Table_PI[[#This Row],[Size]])","v":""},null,null,{"$f":"IF(Table_PI[[#This Row],[Input 1]]<>\"\",Table_PI[[#This Row],[Input 1]],\"\")","v":""},null,null,{"$f":"IF(Table_PI[[#This Row],[Input 2]]<>\"\",Table_PI[[#This Row],[Input 2]],\"\")","v":""},null,null,{"$f":"IF(Table_PI[[#This Row],[Input 3]]<>\"\",Table_PI[[#This Row],[Input 3]],\"\")","v":""},null,null,{"$f":"IF(Table_PI[[#This Row],[Input 4]]<>\"\",Table_PI[[#This Row],[Input 4]],\"\")","v":""},null,null,{"$f":"IF(Table_PI[[#This Row],[Input 4]]<>\"\",Table_PI[[#This Row],[Input 4]],\"\")","v":""},null,null,{"$f":"IF(Table_PI[[#This Row],[Input 4]]<>\"\",Table_PI[[#This Row],[Input 4]],\"\")","v":""},{"$f":"IF(Table_PI[[#This Row],[Quantity]]=\"\",\"\",Table_PI[[#This Row],[Quantity]])","v":""},{"$f":"IF(Table_PI[[#This Row],[Notes]]=\"\",\"\",Table_PI[[#This Row],[Notes]])","v":""},{"$f":"IF(OR(Table_PI[[#This Row],[Hide: Baseline kWh]]=\"\",Table_PI[[#This Row],[Hide: Baseline kWh]]=0,ISTEXT(Table_PI[[#This Row],[Hide: Baseline kWh]])),\"\",Table_PI[[#This Row],[Hide: Baseline kWh]])","v":""},{"$f":"IF(OR(Table_PI[[#This Row],[Hide: Baseline kW]]=\"\",Table_PI[[#This Row],[Hide: Baseline kW]]=0,ISTEXT(Table_PI[[#This Row],[Hide: Baseline kW]])),\"\",Table_PI[[#This Row],[Hide: Baseline kW]])","v":""},{"$f":"IF(OR(Table_PI[[#This Row],[Hide: Proposed kWh]]=\"\",Table_PI[[#This Row],[Hide: Proposed kWh]]=0,ISTEXT(Table_PI[[#This Row],[Hide: Proposed kWh]])),\"\",Table_PI[[#This Row],[Hide: Proposed kWh]])","v":""},{"$f":"IF(OR(Table_PI[[#This Row],[Hide: Proposed kW]]=\"\",Table_PI[[#This Row],[Hide: Proposed kW]]=0,ISTEXT(Table_PI[[#This Row],[Hide: Proposed kW]])),\"\",Table_PI[[#This Row],[Hide: Proposed kW]])","v":""},null,null,{"$f":"IF(OR(Table_PI[[#This Row],[Hide: Rebate]]=\"\",Table_PI[[#This Row],[Hide: Rebate]]=0,ISTEXT(Table_PI[[#This Row],[Hide: Rebate]])),\"\",Table_PI[[#This Row],[Hide: Rebate]])","v":""},null,{"$f":"IF(OR(Table_PI[[#This Row],[Hide: Incremental Cost]]=\"\",Table_PI[[#This Row],[Hide: Incremental Cost]]=0,ISTEXT(Table_PI[[#This Row],[Hide: Incremental Cost]])),\"\",Table_PI[[#This Row],[Hide: Incremental Cost]])","v":""},{"$f":"IFERROR(IF(Table_SummaryPI[[#This Row],[Incentive_Customer]]=\"\",\"\",ROUND(Table_SummaryPI[[#This Row],[Incentive_Customer]]/$AM$401*'Customer Information'!$BC$21,2)),0)","v":""},{"$f":"IF(OR(Table_PI[[#This Row],[Annual kWh]]=\"\",Table_PI[[#This Row],[Annual kWh]]=0,ISTEXT(Table_PI[[#This Row],[Annual kWh]])),\"\",Table_PI[[#This Row],[Annual kWh]])","v":""},{"$f":"IF(OR(Table_PI[[#This Row],[Peak kW]]=\"\",Table_PI[[#This Row],[Peak kW]]=0,ISTEXT(Table_PI[[#This Row],[Peak kW]])),\"\",Table_PI[[#This Row],[Peak kW]])","v":""},{"$f":"IF(Table_SummaryPI[[#This Row],[Line No.]]<>\"\",IF(AND(ISNUMBER(FIND(\"Chiller\",Table_SummaryPI[[#This Row],[P_MeasureOption1]],1)),Table_SummaryPI[[#This Row],[ProposedMeasureCategory]]=\"Air-Cooled (Water-Cooled Replacement)\"),$BD$29*Table_SummaryPI[[#This Row],[Size]]*Table_SummaryPI[[#This Row],[Quantity]]*Table_SummaryPI[[#This Row],[EFLHCooling]],\nIF(ISNUMBER(FIND(\"Dishwasher\",Table_SummaryPI[[#This Row],[ProposedMeasureCategory]],1)),$BH$29*Table_SummaryPI[[#This Row],[Quantity]],\nIF(ISNUMBER(FIND(\"Ice Maker\",Table_SummaryPI[[#This Row],[ProposedMeasureCategory]],1)),$BD$31*Table_SummaryPI[[#This Row],[Quantity]],\nIF(ISNUMBER(FIND(\"Spray Valve\",Table_SummaryPI[[#This Row],[ProposedMeasureCategory]],1)),$BH$31*Table_SummaryPI[[#This Row],[Quantity]],\n0)))),\"\")","v":""},{"$f":"IF(OR(Table_PI[[#This Row],[Hide: Electrification kWh]]=\"\",Table_PI[[#This Row],[Hide: Electrification kWh]]=0,ISTEXT(Table_PI[[#This Row],[Hide: Electrification kWh]])),\"\",Table_PI[[#This Row],[Hide: Electrification kWh]])","v":""},{"$f":"IF(OR(Table_PI[[#This Row],[Hide: Electrification GHG]]=\"\",Table_PI[[#This Row],[Hide: Electrification GHG]]=0,ISTEXT(Table_PI[[#This Row],[Hide: Electrification GHG]])),\"\",Table_PI[[#This Row],[Hide: Electrification GHG]])","v":""},{"$f":"IFERROR(IF(Table_SummaryPI[[#This Row],[kWhSavings]]=\"\",\"\",$BH$9*Table_SummaryPI[[#This Row],[kWhSavings]]),0)","v":""},{"$f":"IFERROR(IF(Table_SummaryPI[[#This Row],[kWhSavings]]=\"\",\"\",$BH$14*Table_SummaryPI[[#This Row],[kWhSavings]]),0)","v":""},{"$f":"IFERROR(IF(Table_SummaryPI[[#This Row],[kWhSavings]]=\"\",\"\",$BH$18*Table_SummaryPI[[#This Row],[kWhSavings]]),0)","v":""},{"$f":"IFERROR(IF(Table_SummaryPI[[#This Row],[kWhSavings]]=\"\",\"\",$BH$22*Table_SummaryPI[[#This Row],[kWhSavings]]),0)","v":""},null,null,null,null,0.7,"lbs. N3O / MWh",null,null,{"$f":"BD22*BD23/1000","v":3.1752E-7},"Tons N3O / kWh"]
[{"$f":"Table_PI[[#This Row],[Line No.]]","v":""},{"$f":"IF(Table_SummaryPI[[#This Row],[MeasureName]]<>\"\",NOT(ISTEXT(Table_PI[[#This Row],[Rebate]])),\"\")","v":""},{"$f":"IF(Table_SummaryPI[[#This Row],[MeassureCategory]]<>\"\",CONCATENATE(Table_SummaryPI[[#This Row],[MeassureCategory]],  \" - \", Table_SummaryPI[[#This Row],[ProposedMeasureCategory]],  \" - \", TEXT(Table_SummaryPI[[#This Row],[Size]],\"#,##0.00\"),\" \",Table_SummaryPI[[#This Row],[SizeUnit]]),\"\")","v":""},{"$f":"SUBSTITUTE(Table_PI[[#This Row],[Measure]],\"     \",\"\",1)","v":""},{"$f":"IF(Table_PI[[#This Row],[List 1]]<>\"\",Table_PI[[#This Row],[List 1]],\"\")","v":""},{"$f":"IF(Table_PI[[#This Row],[List 2]]<>\"\",Table_PI[[#This Row],[List 2]],\"\")","v":""},{"$f":"IF(Table_PI[[#This Row],[List 3]]<>\"\",Table_PI[[#This Row],[List 3]],\"\")","v":""},{"$f":"IF(Table_PI[[#This Row],[Manufacturer]]=\"\",\"\",Table_PI[[#This Row],[Manufacturer]])","v":""},{"$f":"IF(Table_PI[[#This Row],[Model Number]]=\"\",\"\",Table_PI[[#This Row],[Model Number]])","v":""},{"$f":"IF(Table_PI[[#This Row],[Serial Number(s)]]=\"\",\"\",Table_PI[[#This Row],[Serial Number(s)]])","v":""},null,{"$f":"IF(Table_PI[[#This Row],[Size]]=\"\",\"\",Table_PI[[#This Row],[Size]])","v":""},null,null,{"$f":"IF(Table_PI[[#This Row],[Input 1]]<>\"\",Table_PI[[#This Row],[Input 1]],\"\")","v":""},null,null,{"$f":"IF(Table_PI[[#This Row],[Input 2]]<>\"\",Table_PI[[#This Row],[Input 2]],\"\")","v":""},null,null,{"$f":"IF(Table_PI[[#This Row],[Input 3]]<>\"\",Table_PI[[#This Row],[Input 3]],\"\")","v":""},null,null,{"$f":"IF(Table_PI[[#This Row],[Input 4]]<>\"\",Table_PI[[#This Row],[Input 4]],\"\")","v":""},null,null,{"$f":"IF(Table_PI[[#This Row],[Input 4]]<>\"\",Table_PI[[#This Row],[Input 4]],\"\")","v":""},null,null,{"$f":"IF(Table_PI[[#This Row],[Input 4]]<>\"\",Table_PI[[#This Row],[Input 4]],\"\")","v":""},{"$f":"IF(Table_PI[[#This Row],[Quantity]]=\"\",\"\",Table_PI[[#This Row],[Quantity]])","v":""},{"$f":"IF(Table_PI[[#This Row],[Notes]]=\"\",\"\",Table_PI[[#This Row],[Notes]])","v":""},{"$f":"IF(OR(Table_PI[[#This Row],[Hide: Baseline kWh]]=\"\",Table_PI[[#This Row],[Hide: Baseline kWh]]=0,ISTEXT(Table_PI[[#This Row],[Hide: Baseline kWh]])),\"\",Table_PI[[#This Row],[Hide: Baseline kWh]])","v":""},{"$f":"IF(OR(Table_PI[[#This Row],[Hide: Baseline kW]]=\"\",Table_PI[[#This Row],[Hide: Baseline kW]]=0,ISTEXT(Table_PI[[#This Row],[Hide: Baseline kW]])),\"\",Table_PI[[#This Row],[Hide: Baseline kW]])","v":""},{"$f":"IF(OR(Table_PI[[#This Row],[Hide: Proposed kWh]]=\"\",Table_PI[[#This Row],[Hide: Proposed kWh]]=0,ISTEXT(Table_PI[[#This Row],[Hide: Proposed kWh]])),\"\",Table_PI[[#This Row],[Hide: Proposed kWh]])","v":""},{"$f":"IF(OR(Table_PI[[#This Row],[Hide: Proposed kW]]=\"\",Table_PI[[#This Row],[Hide: Proposed kW]]=0,ISTEXT(Table_PI[[#This Row],[Hide: Proposed kW]])),\"\",Table_PI[[#This Row],[Hide: Proposed kW]])","v":""},null,null,{"$f":"IF(OR(Table_PI[[#This Row],[Hide: Rebate]]=\"\",Table_PI[[#This Row],[Hide: Rebate]]=0,ISTEXT(Table_PI[[#This Row],[Hide: Rebate]])),\"\",Table_PI[[#This Row],[Hide: Rebate]])","v":""},null,{"$f":"IF(OR(Table_PI[[#This Row],[Hide: Incremental Cost]]=\"\",Table_PI[[#This Row],[Hide: Incremental Cost]]=0,ISTEXT(Table_PI[[#This Row],[Hide: Incremental Cost]])),\"\",Table_PI[[#This Row],[Hide: Incremental Cost]])","v":""},{"$f":"IFERROR(IF(Table_SummaryPI[[#This Row],[Incentive_Customer]]=\"\",\"\",ROUND(Table_SummaryPI[[#This Row],[Incentive_Customer]]/$AM$401*'Customer Information'!$BC$21,2)),0)","v":""},{"$f":"IF(OR(Table_PI[[#This Row],[Annual kWh]]=\"\",Table_PI[[#This Row],[Annual kWh]]=0,ISTEXT(Table_PI[[#This Row],[Annual kWh]])),\"\",Table_PI[[#This Row],[Annual kWh]])","v":""},{"$f":"IF(OR(Table_PI[[#This Row],[Peak kW]]=\"\",Table_PI[[#This Row],[Peak kW]]=0,ISTEXT(Table_PI[[#This Row],[Peak kW]])),\"\",Table_PI[[#This Row],[Peak kW]])","v":""},{"$f":"IF(Table_SummaryPI[[#This Row],[Line No.]]<>\"\",IF(AND(ISNUMBER(FIND(\"Chiller\",Table_SummaryPI[[#This Row],[P_MeasureOption1]],1)),Table_SummaryPI[[#This Row],[ProposedMeasureCategory]]=\"Air-Cooled (Water-Cooled Replacement)\"),$BD$29*Table_SummaryPI[[#This Row],[Size]]*Table_SummaryPI[[#This Row],[Quantity]]*Table_SummaryPI[[#This Row],[EFLHCooling]],\nIF(ISNUMBER(FIND(\"Dishwasher\",Table_SummaryPI[[#This Row],[ProposedMeasureCategory]],1)),$BH$29*Table_SummaryPI[[#This Row],[Quantity]],\nIF(ISNUMBER(FIND(\"Ice Maker\",Table_SummaryPI[[#This Row],[ProposedMeasureCategory]],1)),$BD$31*Table_SummaryPI[[#This Row],[Quantity]],\nIF(ISNUMBER(FIND(\"Spray Valve\",Table_SummaryPI[[#This Row],[ProposedMeasureCategory]],1)),$BH$31*Table_SummaryPI[[#This Row],[Quantity]],\n0)))),\"\")","v":""},{"$f":"IF(OR(Table_PI[[#This Row],[Hide: Electrification kWh]]=\"\",Table_PI[[#This Row],[Hide: Electrification kWh]]=0,ISTEXT(Table_PI[[#This Row],[Hide: Electrification kWh]])),\"\",Table_PI[[#This Row],[Hide: Electrification kWh]])","v":""},{"$f":"IF(OR(Table_PI[[#This Row],[Hide: Electrification GHG]]=\"\",Table_PI[[#This Row],[Hide: Electrification GHG]]=0,ISTEXT(Table_PI[[#This Row],[Hide: Electrification GHG]])),\"\",Table_PI[[#This Row],[Hide: Electrification GHG]])","v":""},{"$f":"IFERROR(IF(Table_SummaryPI[[#This Row],[kWhSavings]]=\"\",\"\",$BH$9*Table_SummaryPI[[#This Row],[kWhSavings]]),0)","v":""},{"$f":"IFERROR(IF(Table_SummaryPI[[#This Row],[kWhSavings]]=\"\",\"\",$BH$14*Table_SummaryPI[[#This Row],[kWhSavings]]),0)","v":""},{"$f":"IFERROR(IF(Table_SummaryPI[[#This Row],[kWhSavings]]=\"\",\"\",$BH$18*Table_SummaryPI[[#This Row],[kWhSavings]]),0)","v":""},{"$f":"IFERROR(IF(Table_SummaryPI[[#This Row],[kWhSavings]]=\"\",\"\",$BH$22*Table_SummaryPI[[#This Row],[kWhSavings]]),0)","v":""},null,null,null,null,4.5360000000000002E-4,"Tons / lbs."]
[{"$f":"Table_PI[[#This Row],[Line No.]]","v":""},{"$f":"IF(Table_SummaryPI[[#This Row],[MeasureName]]<>\"\",NOT(ISTEXT(Table_PI[[#This Row],[Rebate]])),\"\")","v":""},{"$f":"IF(Table_SummaryPI[[#This Row],[MeassureCategory]]<>\"\",CONCATENATE(Table_SummaryPI[[#This Row],[MeassureCategory]],  \" - \", Table_SummaryPI[[#This Row],[ProposedMeasureCategory]],  \" - \", TEXT(Table_SummaryPI[[#This Row],[Size]],\"#,##0.00\"),\" \",Table_SummaryPI[[#This Row],[SizeUnit]]),\"\")","v":""},{"$f":"SUBSTITUTE(Table_PI[[#This Row],[Measure]],\"     \",\"\",1)","v":""},{"$f":"IF(Table_PI[[#This Row],[List 1]]<>\"\",Table_PI[[#This Row],[List 1]],\"\")","v":""},{"$f":"IF(Table_PI[[#This Row],[List 2]]<>\"\",Table_PI[[#This Row],[List 2]],\"\")","v":""},{"$f":"IF(Table_PI[[#This Row],[List 3]]<>\"\",Table_PI[[#This Row],[List 3]],\"\")","v":""},{"$f":"IF(Table_PI[[#This Row],[Manufacturer]]=\"\",\"\",Table_PI[[#This Row],[Manufacturer]])","v":""},{"$f":"IF(Table_PI[[#This Row],[Model Number]]=\"\",\"\",Table_PI[[#This Row],[Model Number]])","v":""},{"$f":"IF(Table_PI[[#This Row],[Serial Number(s)]]=\"\",\"\",Table_PI[[#This Row],[Serial Number(s)]])","v":""},null,{"$f":"IF(Table_PI[[#This Row],[Size]]=\"\",\"\",Table_PI[[#This Row],[Size]])","v":""},null,null,{"$f":"IF(Table_PI[[#This Row],[Input 1]]<>\"\",Table_PI[[#This Row],[Input 1]],\"\")","v":""},null,null,{"$f":"IF(Table_PI[[#This Row],[Input 2]]<>\"\",Table_PI[[#This Row],[Input 2]],\"\")","v":""},null,null,{"$f":"IF(Table_PI[[#This Row],[Input 3]]<>\"\",Table_PI[[#This Row],[Input 3]],\"\")","v":""},null,null,{"$f":"IF(Table_PI[[#This Row],[Input 4]]<>\"\",Table_PI[[#This Row],[Input 4]],\"\")","v":""},null,null,{"$f":"IF(Table_PI[[#This Row],[Input 4]]<>\"\",Table_PI[[#This Row],[Input 4]],\"\")","v":""},null,null,{"$f":"IF(Table_PI[[#This Row],[Input 4]]<>\"\",Table_PI[[#This Row],[Input 4]],\"\")","v":""},{"$f":"IF(Table_PI[[#This Row],[Quantity]]=\"\",\"\",Table_PI[[#This Row],[Quantity]])","v":""},{"$f":"IF(Table_PI[[#This Row],[Notes]]=\"\",\"\",Table_PI[[#This Row],[Notes]])","v":""},{"$f":"IF(OR(Table_PI[[#This Row],[Hide: Baseline kWh]]=\"\",Table_PI[[#This Row],[Hide: Baseline kWh]]=0,ISTEXT(Table_PI[[#This Row],[Hide: Baseline kWh]])),\"\",Table_PI[[#This Row],[Hide: Baseline kWh]])","v":""},{"$f":"IF(OR(Table_PI[[#This Row],[Hide: Baseline kW]]=\"\",Table_PI[[#This Row],[Hide: Baseline kW]]=0,ISTEXT(Table_PI[[#This Row],[Hide: Baseline kW]])),\"\",Table_PI[[#This Row],[Hide: Baseline kW]])","v":""},{"$f":"IF(OR(Table_PI[[#This Row],[Hide: Proposed kWh]]=\"\",Table_PI[[#This Row],[Hide: Proposed kWh]]=0,ISTEXT(Table_PI[[#This Row],[Hide: Proposed kWh]])),\"\",Table_PI[[#This Row],[Hide: Proposed kWh]])","v":""},{"$f":"IF(OR(Table_PI[[#This Row],[Hide: Proposed kW]]=\"\",Table_PI[[#This Row],[Hide: Proposed kW]]=0,ISTEXT(Table_PI[[#This Row],[Hide: Proposed kW]])),\"\",Table_PI[[#This Row],[Hide: Proposed kW]])","v":""},null,null,{"$f":"IF(OR(Table_PI[[#This Row],[Hide: Rebate]]=\"\",Table_PI[[#This Row],[Hide: Rebate]]=0,ISTEXT(Table_PI[[#This Row],[Hide: Rebate]])),\"\",Table_PI[[#This Row],[Hide: Rebate]])","v":""},null,{"$f":"IF(OR(Table_PI[[#This Row],[Hide: Incremental Cost]]=\"\",Table_PI[[#This Row],[Hide: Incremental Cost]]=0,ISTEXT(Table_PI[[#This Row],[Hide: Incremental Cost]])),\"\",Table_PI[[#This Row],[Hide: Incremental Cost]])","v":""},{"$f":"IFERROR(IF(Table_SummaryPI[[#This Row],[Incentive_Customer]]=\"\",\"\",ROUND(Table_SummaryPI[[#This Row],[Incentive_Customer]]/$AM$401*'Customer Information'!$BC$21,2)),0)","v":""},{"$f":"IF(OR(Table_PI[[#This Row],[Annual kWh]]=\"\",Table_PI[[#This Row],[Annual kWh]]=0,ISTEXT(Table_PI[[#This Row],[Annual kWh]])),\"\",Table_PI[[#This Row],[Annual kWh]])","v":""},{"$f":"IF(OR(Table_PI[[#This Row],[Peak kW]]=\"\",Table_PI[[#This Row],[Peak kW]]=0,ISTEXT(Table_PI[[#This Row],[Peak kW]])),\"\",Table_PI[[#This Row],[Peak kW]])","v":""},{"$f":"IF(Table_SummaryPI[[#This Row],[Line No.]]<>\"\",IF(AND(ISNUMBER(FIND(\"Chiller\",Table_SummaryPI[[#This Row],[P_MeasureOption1]],1)),Table_SummaryPI[[#This Row],[ProposedMeasureCategory]]=\"Air-Cooled (Water-Cooled Replacement)\"),$BD$29*Table_SummaryPI[[#This Row],[Size]]*Table_SummaryPI[[#This Row],[Quantity]]*Table_SummaryPI[[#This Row],[EFLHCooling]],\nIF(ISNUMBER(FIND(\"Dishwasher\",Table_SummaryPI[[#This Row],[ProposedMeasureCategory]],1)),$BH$29*Table_SummaryPI[[#This Row],[Quantity]],\nIF(ISNUMBER(FIND(\"Ice Maker\",Table_SummaryPI[[#This Row],[ProposedMeasureCategory]],1)),$BD$31*Table_SummaryPI[[#This Row],[Quantity]],\nIF(ISNUMBER(FIND(\"Spray Valve\",Table_SummaryPI[[#This Row],[ProposedMeasureCategory]],1)),$BH$31*Table_SummaryPI[[#This Row],[Quantity]],\n0)))),\"\")","v":""},{"$f":"IF(OR(Table_PI[[#This Row],[Hide: Electrification kWh]]=\"\",Table_PI[[#This Row],[Hide: Electrification kWh]]=0,ISTEXT(Table_PI[[#This Row],[Hide: Electrification kWh]])),\"\",Table_PI[[#This Row],[Hide: Electrification kWh]])","v":""},{"$f":"IF(OR(Table_PI[[#This Row],[Hide: Electrification GHG]]=\"\",Table_PI[[#This Row],[Hide: Electrification GHG]]=0,ISTEXT(Table_PI[[#This Row],[Hide: Electrification GHG]])),\"\",Table_PI[[#This Row],[Hide: Electrification GHG]])","v":""},{"$f":"IFERROR(IF(Table_SummaryPI[[#This Row],[kWhSavings]]=\"\",\"\",$BH$9*Table_SummaryPI[[#This Row],[kWhSavings]]),0)","v":""},{"$f":"IFERROR(IF(Table_SummaryPI[[#This Row],[kWhSavings]]=\"\",\"\",$BH$14*Table_SummaryPI[[#This Row],[kWhSavings]]),0)","v":""},{"$f":"IFERROR(IF(Table_SummaryPI[[#This Row],[kWhSavings]]=\"\",\"\",$BH$18*Table_SummaryPI[[#This Row],[kWhSavings]]),0)","v":""},{"$f":"IFERROR(IF(Table_SummaryPI[[#This Row],[kWhSavings]]=\"\",\"\",$BH$22*Table_SummaryPI[[#This Row],[kWhSavings]]),0)","v":""}]
[{"$f":"Table_PI[[#This Row],[Line No.]]","v":""},{"$f":"IF(Table_SummaryPI[[#This Row],[MeasureName]]<>\"\",NOT(ISTEXT(Table_PI[[#This Row],[Rebate]])),\"\")","v":""},{"$f":"IF(Table_SummaryPI[[#This Row],[MeassureCategory]]<>\"\",CONCATENATE(Table_SummaryPI[[#This Row],[MeassureCategory]],  \" - \", Table_SummaryPI[[#This Row],[ProposedMeasureCategory]],  \" - \", TEXT(Table_SummaryPI[[#This Row],[Size]],\"#,##0.00\"),\" \",Table_SummaryPI[[#This Row],[SizeUnit]]),\"\")","v":""},{"$f":"SUBSTITUTE(Table_PI[[#This Row],[Measure]],\"     \",\"\",1)","v":""},{"$f":"IF(Table_PI[[#This Row],[List 1]]<>\"\",Table_PI[[#This Row],[List 1]],\"\")","v":""},{"$f":"IF(Table_PI[[#This Row],[List 2]]<>\"\",Table_PI[[#This Row],[List 2]],\"\")","v":""},{"$f":"IF(Table_PI[[#This Row],[List 3]]<>\"\",Table_PI[[#This Row],[List 3]],\"\")","v":""},{"$f":"IF(Table_PI[[#This Row],[Manufacturer]]=\"\",\"\",Table_PI[[#This Row],[Manufacturer]])","v":""},{"$f":"IF(Table_PI[[#This Row],[Model Number]]=\"\",\"\",Table_PI[[#This Row],[Model Number]])","v":""},{"$f":"IF(Table_PI[[#This Row],[Serial Number(s)]]=\"\",\"\",Table_PI[[#This Row],[Serial Number(s)]])","v":""},null,{"$f":"IF(Table_PI[[#This Row],[Size]]=\"\",\"\",Table_PI[[#This Row],[Size]])","v":""},null,null,{"$f":"IF(Table_PI[[#This Row],[Input 1]]<>\"\",Table_PI[[#This Row],[Input 1]],\"\")","v":""},null,null,{"$f":"IF(Table_PI[[#This Row],[Input 2]]<>\"\",Table_PI[[#This Row],[Input 2]],\"\")","v":""},null,null,{"$f":"IF(Table_PI[[#This Row],[Input 3]]<>\"\",Table_PI[[#This Row],[Input 3]],\"\")","v":""},null,null,{"$f":"IF(Table_PI[[#This Row],[Input 4]]<>\"\",Table_PI[[#This Row],[Input 4]],\"\")","v":""},null,null,{"$f":"IF(Table_PI[[#This Row],[Input 4]]<>\"\",Table_PI[[#This Row],[Input 4]],\"\")","v":""},null,null,{"$f":"IF(Table_PI[[#This Row],[Input 4]]<>\"\",Table_PI[[#This Row],[Input 4]],\"\")","v":""},{"$f":"IF(Table_PI[[#This Row],[Quantity]]=\"\",\"\",Table_PI[[#This Row],[Quantity]])","v":""},{"$f":"IF(Table_PI[[#This Row],[Notes]]=\"\",\"\",Table_PI[[#This Row],[Notes]])","v":""},{"$f":"IF(OR(Table_PI[[#This Row],[Hide: Baseline kWh]]=\"\",Table_PI[[#This Row],[Hide: Baseline kWh]]=0,ISTEXT(Table_PI[[#This Row],[Hide: Baseline kWh]])),\"\",Table_PI[[#This Row],[Hide: Baseline kWh]])","v":""},{"$f":"IF(OR(Table_PI[[#This Row],[Hide: Baseline kW]]=\"\",Table_PI[[#This Row],[Hide: Baseline kW]]=0,ISTEXT(Table_PI[[#This Row],[Hide: Baseline kW]])),\"\",Table_PI[[#This Row],[Hide: Baseline kW]])","v":""},{"$f":"IF(OR(Table_PI[[#This Row],[Hide: Proposed kWh]]=\"\",Table_PI[[#This Row],[Hide: Proposed kWh]]=0,ISTEXT(Table_PI[[#This Row],[Hide: Proposed kWh]])),\"\",Table_PI[[#This Row],[Hide: Proposed kWh]])","v":""},{"$f":"IF(OR(Table_PI[[#This Row],[Hide: Proposed kW]]=\"\",Table_PI[[#This Row],[Hide: Proposed kW]]=0,ISTEXT(Table_PI[[#This Row],[Hide: Proposed kW]])),\"\",Table_PI[[#This Row],[Hide: Proposed kW]])","v":""},null,null,{"$f":"IF(OR(Table_PI[[#This Row],[Hide: Rebate]]=\"\",Table_PI[[#This Row],[Hide: Rebate]]=0,ISTEXT(Table_PI[[#This Row],[Hide: Rebate]])),\"\",Table_PI[[#This Row],[Hide: Rebate]])","v":""},null,{"$f":"IF(OR(Table_PI[[#This Row],[Hide: Incremental Cost]]=\"\",Table_PI[[#This Row],[Hide: Incremental Cost]]=0,ISTEXT(Table_PI[[#This Row],[Hide: Incremental Cost]])),\"\",Table_PI[[#This Row],[Hide: Incremental Cost]])","v":""},{"$f":"IFERROR(IF(Table_SummaryPI[[#This Row],[Incentive_Customer]]=\"\",\"\",ROUND(Table_SummaryPI[[#This Row],[Incentive_Customer]]/$AM$401*'Customer Information'!$BC$21,2)),0)","v":""},{"$f":"IF(OR(Table_PI[[#This Row],[Annual kWh]]=\"\",Table_PI[[#This Row],[Annual kWh]]=0,ISTEXT(Table_PI[[#This Row],[Annual kWh]])),\"\",Table_PI[[#This Row],[Annual kWh]])","v":""},{"$f":"IF(OR(Table_PI[[#This Row],[Peak kW]]=\"\",Table_PI[[#This Row],[Peak kW]]=0,ISTEXT(Table_PI[[#This Row],[Peak kW]])),\"\",Table_PI[[#This Row],[Peak kW]])","v":""},{"$f":"IF(Table_SummaryPI[[#This Row],[Line No.]]<>\"\",IF(AND(ISNUMBER(FIND(\"Chiller\",Table_SummaryPI[[#This Row],[P_MeasureOption1]],1)),Table_SummaryPI[[#This Row],[ProposedMeasureCategory]]=\"Air-Cooled (Water-Cooled Replacement)\"),$BD$29*Table_SummaryPI[[#This Row],[Size]]*Table_SummaryPI[[#This Row],[Quantity]]*Table_SummaryPI[[#This Row],[EFLHCooling]],\nIF(ISNUMBER(FIND(\"Dishwasher\",Table_SummaryPI[[#This Row],[ProposedMeasureCategory]],1)),$BH$29*Table_SummaryPI[[#This Row],[Quantity]],\nIF(ISNUMBER(FIND(\"Ice Maker\",Table_SummaryPI[[#This Row],[ProposedMeasureCategory]],1)),$BD$31*Table_SummaryPI[[#This Row],[Quantity]],\nIF(ISNUMBER(FIND(\"Spray Valve\",Table_SummaryPI[[#This Row],[ProposedMeasureCategory]],1)),$BH$31*Table_SummaryPI[[#This Row],[Quantity]],\n0)))),\"\")","v":""},{"$f":"IF(OR(Table_PI[[#This Row],[Hide: Electrification kWh]]=\"\",Table_PI[[#This Row],[Hide: Electrification kWh]]=0,ISTEXT(Table_PI[[#This Row],[Hide: Electrification kWh]])),\"\",Table_PI[[#This Row],[Hide: Electrification kWh]])","v":""},{"$f":"IF(OR(Table_PI[[#This Row],[Hide: Electrification GHG]]=\"\",Table_PI[[#This Row],[Hide: Electrification GHG]]=0,ISTEXT(Table_PI[[#This Row],[Hide: Electrification GHG]])),\"\",Table_PI[[#This Row],[Hide: Electrification GHG]])","v":""},{"$f":"IFERROR(IF(Table_SummaryPI[[#This Row],[kWhSavings]]=\"\",\"\",$BH$9*Table_SummaryPI[[#This Row],[kWhSavings]]),0)","v":""},{"$f":"IFERROR(IF(Table_SummaryPI[[#This Row],[kWhSavings]]=\"\",\"\",$BH$14*Table_SummaryPI[[#This Row],[kWhSavings]]),0)","v":""},{"$f":"IFERROR(IF(Table_SummaryPI[[#This Row],[kWhSavings]]=\"\",\"\",$BH$18*Table_SummaryPI[[#This Row],[kWhSavings]]),0)","v":""},{"$f":"IFERROR(IF(Table_SummaryPI[[#This Row],[kWhSavings]]=\"\",\"\",$BH$22*Table_SummaryPI[[#This Row],[kWhSavings]]),0)","v":""},null,null,null,null,"Reference: https://www.epa.gov/sites/production/files/2018-12/documents/power_profiler_terms_calculations_and_data_sources_12-1-2018.pdf"]
[{"$f":"Table_PI[[#This Row],[Line No.]]","v":""},{"$f":"IF(Table_SummaryPI[[#This Row],[MeasureName]]<>\"\",NOT(ISTEXT(Table_PI[[#This Row],[Rebate]])),\"\")","v":""},{"$f":"IF(Table_SummaryPI[[#This Row],[MeassureCategory]]<>\"\",CONCATENATE(Table_SummaryPI[[#This Row],[MeassureCategory]],  \" - \", Table_SummaryPI[[#This Row],[ProposedMeasureCategory]],  \" - \", TEXT(Table_SummaryPI[[#This Row],[Size]],\"#,##0.00\"),\" \",Table_SummaryPI[[#This Row],[SizeUnit]]),\"\")","v":""},{"$f":"SUBSTITUTE(Table_PI[[#This Row],[Measure]],\"     \",\"\",1)","v":""},{"$f":"IF(Table_PI[[#This Row],[List 1]]<>\"\",Table_PI[[#This Row],[List 1]],\"\")","v":""},{"$f":"IF(Table_PI[[#This Row],[List 2]]<>\"\",Table_PI[[#This Row],[List 2]],\"\")","v":""},{"$f":"IF(Table_PI[[#This Row],[List 3]]<>\"\",Table_PI[[#This Row],[List 3]],\"\")","v":""},{"$f":"IF(Table_PI[[#This Row],[Manufacturer]]=\"\",\"\",Table_PI[[#This Row],[Manufacturer]])","v":""},{"$f":"IF(Table_PI[[#This Row],[Model Number]]=\"\",\"\",Table_PI[[#This Row],[Model Number]])","v":""},{"$f":"IF(Table_PI[[#This Row],[Serial Number(s)]]=\"\",\"\",Table_PI[[#This Row],[Serial Number(s)]])","v":""},null,{"$f":"IF(Table_PI[[#This Row],[Size]]=\"\",\"\",Table_PI[[#This Row],[Size]])","v":""},null,null,{"$f":"IF(Table_PI[[#This Row],[Input 1]]<>\"\",Table_PI[[#This Row],[Input 1]],\"\")","v":""},null,null,{"$f":"IF(Table_PI[[#This Row],[Input 2]]<>\"\",Table_PI[[#This Row],[Input 2]],\"\")","v":""},null,null,{"$f":"IF(Table_PI[[#This Row],[Input 3]]<>\"\",Table_PI[[#This Row],[Input 3]],\"\")","v":""},null,null,{"$f":"IF(Table_PI[[#This Row],[Input 4]]<>\"\",Table_PI[[#This Row],[Input 4]],\"\")","v":""},null,null,{"$f":"IF(Table_PI[[#This Row],[Input 4]]<>\"\",Table_PI[[#This Row],[Input 4]],\"\")","v":""},null,null,{"$f":"IF(Table_PI[[#This Row],[Input 4]]<>\"\",Table_PI[[#This Row],[Input 4]],\"\")","v":""},{"$f":"IF(Table_PI[[#This Row],[Quantity]]=\"\",\"\",Table_PI[[#This Row],[Quantity]])","v":""},{"$f":"IF(Table_PI[[#This Row],[Notes]]=\"\",\"\",Table_PI[[#This Row],[Notes]])","v":""},{"$f":"IF(OR(Table_PI[[#This Row],[Hide: Baseline kWh]]=\"\",Table_PI[[#This Row],[Hide: Baseline kWh]]=0,ISTEXT(Table_PI[[#This Row],[Hide: Baseline kWh]])),\"\",Table_PI[[#This Row],[Hide: Baseline kWh]])","v":""},{"$f":"IF(OR(Table_PI[[#This Row],[Hide: Baseline kW]]=\"\",Table_PI[[#This Row],[Hide: Baseline kW]]=0,ISTEXT(Table_PI[[#This Row],[Hide: Baseline kW]])),\"\",Table_PI[[#This Row],[Hide: Baseline kW]])","v":""},{"$f":"IF(OR(Table_PI[[#This Row],[Hide: Proposed kWh]]=\"\",Table_PI[[#This Row],[Hide: Proposed kWh]]=0,ISTEXT(Table_PI[[#This Row],[Hide: Proposed kWh]])),\"\",Table_PI[[#This Row],[Hide: Proposed kWh]])","v":""},{"$f":"IF(OR(Table_PI[[#This Row],[Hide: Proposed kW]]=\"\",Table_PI[[#This Row],[Hide: Proposed kW]]=0,ISTEXT(Table_PI[[#This Row],[Hide: Proposed kW]])),\"\",Table_PI[[#This Row],[Hide: Proposed kW]])","v":""},null,null,{"$f":"IF(OR(Table_PI[[#This Row],[Hide: Rebate]]=\"\",Table_PI[[#This Row],[Hide: Rebate]]=0,ISTEXT(Table_PI[[#This Row],[Hide: Rebate]])),\"\",Table_PI[[#This Row],[Hide: Rebate]])","v":""},null,{"$f":"IF(OR(Table_PI[[#This Row],[Hide: Incremental Cost]]=\"\",Table_PI[[#This Row],[Hide: Incremental Cost]]=0,ISTEXT(Table_PI[[#This Row],[Hide: Incremental Cost]])),\"\",Table_PI[[#This Row],[Hide: Incremental Cost]])","v":""},{"$f":"IFERROR(IF(Table_SummaryPI[[#This Row],[Incentive_Customer]]=\"\",\"\",ROUND(Table_SummaryPI[[#This Row],[Incentive_Customer]]/$AM$401*'Customer Information'!$BC$21,2)),0)","v":""},{"$f":"IF(OR(Table_PI[[#This Row],[Annual kWh]]=\"\",Table_PI[[#This Row],[Annual kWh]]=0,ISTEXT(Table_PI[[#This Row],[Annual kWh]])),\"\",Table_PI[[#This Row],[Annual kWh]])","v":""},{"$f":"IF(OR(Table_PI[[#This Row],[Peak kW]]=\"\",Table_PI[[#This Row],[Peak kW]]=0,ISTEXT(Table_PI[[#This Row],[Peak kW]])),\"\",Table_PI[[#This Row],[Peak kW]])","v":""},{"$f":"IF(Table_SummaryPI[[#This Row],[Line No.]]<>\"\",IF(AND(ISNUMBER(FIND(\"Chiller\",Table_SummaryPI[[#This Row],[P_MeasureOption1]],1)),Table_SummaryPI[[#This Row],[ProposedMeasureCategory]]=\"Air-Cooled (Water-Cooled Replacement)\"),$BD$29*Table_SummaryPI[[#This Row],[Size]]*Table_SummaryPI[[#This Row],[Quantity]]*Table_SummaryPI[[#This Row],[EFLHCooling]],\nIF(ISNUMBER(FIND(\"Dishwasher\",Table_SummaryPI[[#This Row],[ProposedMeasureCategory]],1)),$BH$29*Table_SummaryPI[[#This Row],[Quantity]],\nIF(ISNUMBER(FIND(\"Ice Maker\",Table_SummaryPI[[#This Row],[ProposedMeasureCategory]],1)),$BD$31*Table_SummaryPI[[#This Row],[Quantity]],\nIF(ISNUMBER(FIND(\"Spray Valve\",Table_SummaryPI[[#This Row],[ProposedMeasureCategory]],1)),$BH$31*Table_SummaryPI[[#This Row],[Quantity]],\n0)))),\"\")","v":""},{"$f":"IF(OR(Table_PI[[#This Row],[Hide: Electrification kWh]]=\"\",Table_PI[[#This Row],[Hide: Electrification kWh]]=0,ISTEXT(Table_PI[[#This Row],[Hide: Electrification kWh]])),\"\",Table_PI[[#This Row],[Hide: Electrification kWh]])","v":""},{"$f":"IF(OR(Table_PI[[#This Row],[Hide: Electrification GHG]]=\"\",Table_PI[[#This Row],[Hide: Electrification GHG]]=0,ISTEXT(Table_PI[[#This Row],[Hide: Electrification GHG]])),\"\",Table_PI[[#This Row],[Hide: Electrification GHG]])","v":""},{"$f":"IFERROR(IF(Table_SummaryPI[[#This Row],[kWhSavings]]=\"\",\"\",$BH$9*Table_SummaryPI[[#This Row],[kWhSavings]]),0)","v":""},{"$f":"IFERROR(IF(Table_SummaryPI[[#This Row],[kWhSavings]]=\"\",\"\",$BH$14*Table_SummaryPI[[#This Row],[kWhSavings]]),0)","v":""},{"$f":"IFERROR(IF(Table_SummaryPI[[#This Row],[kWhSavings]]=\"\",\"\",$BH$18*Table_SummaryPI[[#This Row],[kWhSavings]]),0)","v":""},{"$f":"IFERROR(IF(Table_SummaryPI[[#This Row],[kWhSavings]]=\"\",\"\",$BH$22*Table_SummaryPI[[#This Row],[kWhSavings]]),0)","v":""}]
[{"$f":"Table_PI[[#This Row],[Line No.]]","v":""},{"$f":"IF(Table_SummaryPI[[#This Row],[MeasureName]]<>\"\",NOT(ISTEXT(Table_PI[[#This Row],[Rebate]])),\"\")","v":""},{"$f":"IF(Table_SummaryPI[[#This Row],[MeassureCategory]]<>\"\",CONCATENATE(Table_SummaryPI[[#This Row],[MeassureCategory]],  \" - \", Table_SummaryPI[[#This Row],[ProposedMeasureCategory]],  \" - \", TEXT(Table_SummaryPI[[#This Row],[Size]],\"#,##0.00\"),\" \",Table_SummaryPI[[#This Row],[SizeUnit]]),\"\")","v":""},{"$f":"SUBSTITUTE(Table_PI[[#This Row],[Measure]],\"     \",\"\",1)","v":""},{"$f":"IF(Table_PI[[#This Row],[List 1]]<>\"\",Table_PI[[#This Row],[List 1]],\"\")","v":""},{"$f":"IF(Table_PI[[#This Row],[List 2]]<>\"\",Table_PI[[#This Row],[List 2]],\"\")","v":""},{"$f":"IF(Table_PI[[#This Row],[List 3]]<>\"\",Table_PI[[#This Row],[List 3]],\"\")","v":""},{"$f":"IF(Table_PI[[#This Row],[Manufacturer]]=\"\",\"\",Table_PI[[#This Row],[Manufacturer]])","v":""},{"$f":"IF(Table_PI[[#This Row],[Model Number]]=\"\",\"\",Table_PI[[#This Row],[Model Number]])","v":""},{"$f":"IF(Table_PI[[#This Row],[Serial Number(s)]]=\"\",\"\",Table_PI[[#This Row],[Serial Number(s)]])","v":""},null,{"$f":"IF(Table_PI[[#This Row],[Size]]=\"\",\"\",Table_PI[[#This Row],[Size]])","v":""},null,null,{"$f":"IF(Table_PI[[#This Row],[Input 1]]<>\"\",Table_PI[[#This Row],[Input 1]],\"\")","v":""},null,null,{"$f":"IF(Table_PI[[#This Row],[Input 2]]<>\"\",Table_PI[[#This Row],[Input 2]],\"\")","v":""},null,null,{"$f":"IF(Table_PI[[#This Row],[Input 3]]<>\"\",Table_PI[[#This Row],[Input 3]],\"\")","v":""},null,null,{"$f":"IF(Table_PI[[#This Row],[Input 4]]<>\"\",Table_PI[[#This Row],[Input 4]],\"\")","v":""},null,null,{"$f":"IF(Table_PI[[#This Row],[Input 4]]<>\"\",Table_PI[[#This Row],[Input 4]],\"\")","v":""},null,null,{"$f":"IF(Table_PI[[#This Row],[Input 4]]<>\"\",Table_PI[[#This Row],[Input 4]],\"\")","v":""},{"$f":"IF(Table_PI[[#This Row],[Quantity]]=\"\",\"\",Table_PI[[#This Row],[Quantity]])","v":""},{"$f":"IF(Table_PI[[#This Row],[Notes]]=\"\",\"\",Table_PI[[#This Row],[Notes]])","v":""},{"$f":"IF(OR(Table_PI[[#This Row],[Hide: Baseline kWh]]=\"\",Table_PI[[#This Row],[Hide: Baseline kWh]]=0,ISTEXT(Table_PI[[#This Row],[Hide: Baseline kWh]])),\"\",Table_PI[[#This Row],[Hide: Baseline kWh]])","v":""},{"$f":"IF(OR(Table_PI[[#This Row],[Hide: Baseline kW]]=\"\",Table_PI[[#This Row],[Hide: Baseline kW]]=0,ISTEXT(Table_PI[[#This Row],[Hide: Baseline kW]])),\"\",Table_PI[[#This Row],[Hide: Baseline kW]])","v":""},{"$f":"IF(OR(Table_PI[[#This Row],[Hide: Proposed kWh]]=\"\",Table_PI[[#This Row],[Hide: Proposed kWh]]=0,ISTEXT(Table_PI[[#This Row],[Hide: Proposed kWh]])),\"\",Table_PI[[#This Row],[Hide: Proposed kWh]])","v":""},{"$f":"IF(OR(Table_PI[[#This Row],[Hide: Proposed kW]]=\"\",Table_PI[[#This Row],[Hide: Proposed kW]]=0,ISTEXT(Table_PI[[#This Row],[Hide: Proposed kW]])),\"\",Table_PI[[#This Row],[Hide: Proposed kW]])","v":""},null,null,{"$f":"IF(OR(Table_PI[[#This Row],[Hide: Rebate]]=\"\",Table_PI[[#This Row],[Hide: Rebate]]=0,ISTEXT(Table_PI[[#This Row],[Hide: Rebate]])),\"\",Table_PI[[#This Row],[Hide: Rebate]])","v":""},null,{"$f":"IF(OR(Table_PI[[#This Row],[Hide: Incremental Cost]]=\"\",Table_PI[[#This Row],[Hide: Incremental Cost]]=0,ISTEXT(Table_PI[[#This Row],[Hide: Incremental Cost]])),\"\",Table_PI[[#This Row],[Hide: Incremental Cost]])","v":""},{"$f":"IFERROR(IF(Table_SummaryPI[[#This Row],[Incentive_Customer]]=\"\",\"\",ROUND(Table_SummaryPI[[#This Row],[Incentive_Customer]]/$AM$401*'Customer Information'!$BC$21,2)),0)","v":""},{"$f":"IF(OR(Table_PI[[#This Row],[Annual kWh]]=\"\",Table_PI[[#This Row],[Annual kWh]]=0,ISTEXT(Table_PI[[#This Row],[Annual kWh]])),\"\",Table_PI[[#This Row],[Annual kWh]])","v":""},{"$f":"IF(OR(Table_PI[[#This Row],[Peak kW]]=\"\",Table_PI[[#This Row],[Peak kW]]=0,ISTEXT(Table_PI[[#This Row],[Peak kW]])),\"\",Table_PI[[#This Row],[Peak kW]])","v":""},{"$f":"IF(Table_SummaryPI[[#This Row],[Line No.]]<>\"\",IF(AND(ISNUMBER(FIND(\"Chiller\",Table_SummaryPI[[#This Row],[P_MeasureOption1]],1)),Table_SummaryPI[[#This Row],[ProposedMeasureCategory]]=\"Air-Cooled (Water-Cooled Replacement)\"),$BD$29*Table_SummaryPI[[#This Row],[Size]]*Table_SummaryPI[[#This Row],[Quantity]]*Table_SummaryPI[[#This Row],[EFLHCooling]],\nIF(ISNUMBER(FIND(\"Dishwasher\",Table_SummaryPI[[#This Row],[ProposedMeasureCategory]],1)),$BH$29*Table_SummaryPI[[#This Row],[Quantity]],\nIF(ISNUMBER(FIND(\"Ice Maker\",Table_SummaryPI[[#This Row],[ProposedMeasureCategory]],1)),$BD$31*Table_SummaryPI[[#This Row],[Quantity]],\nIF(ISNUMBER(FIND(\"Spray Valve\",Table_SummaryPI[[#This Row],[ProposedMeasureCategory]],1)),$BH$31*Table_SummaryPI[[#This Row],[Quantity]],\n0)))),\"\")","v":""},{"$f":"IF(OR(Table_PI[[#This Row],[Hide: Electrification kWh]]=\"\",Table_PI[[#This Row],[Hide: Electrification kWh]]=0,ISTEXT(Table_PI[[#This Row],[Hide: Electrification kWh]])),\"\",Table_PI[[#This Row],[Hide: Electrification kWh]])","v":""},{"$f":"IF(OR(Table_PI[[#This Row],[Hide: Electrification GHG]]=\"\",Table_PI[[#This Row],[Hide: Electrification GHG]]=0,ISTEXT(Table_PI[[#This Row],[Hide: Electrification GHG]])),\"\",Table_PI[[#This Row],[Hide: Electrification GHG]])","v":""},{"$f":"IFERROR(IF(Table_SummaryPI[[#This Row],[kWhSavings]]=\"\",\"\",$BH$9*Table_SummaryPI[[#This Row],[kWhSavings]]),0)","v":""},{"$f":"IFERROR(IF(Table_SummaryPI[[#This Row],[kWhSavings]]=\"\",\"\",$BH$14*Table_SummaryPI[[#This Row],[kWhSavings]]),0)","v":""},{"$f":"IFERROR(IF(Table_SummaryPI[[#This Row],[kWhSavings]]=\"\",\"\",$BH$18*Table_SummaryPI[[#This Row],[kWhSavings]]),0)","v":""},{"$f":"IFERROR(IF(Table_SummaryPI[[#This Row],[kWhSavings]]=\"\",\"\",$BH$22*Table_SummaryPI[[#This Row],[kWhSavings]]),0)","v":""}]
[{"$f":"Table_PI[[#This Row],[Line No.]]","v":""},{"$f":"IF(Table_SummaryPI[[#This Row],[MeasureName]]<>\"\",NOT(ISTEXT(Table_PI[[#This Row],[Rebate]])),\"\")","v":""},{"$f":"IF(Table_SummaryPI[[#This Row],[MeassureCategory]]<>\"\",CONCATENATE(Table_SummaryPI[[#This Row],[MeassureCategory]],  \" - \", Table_SummaryPI[[#This Row],[ProposedMeasureCategory]],  \" - \", TEXT(Table_SummaryPI[[#This Row],[Size]],\"#,##0.00\"),\" \",Table_SummaryPI[[#This Row],[SizeUnit]]),\"\")","v":""},{"$f":"SUBSTITUTE(Table_PI[[#This Row],[Measure]],\"     \",\"\",1)","v":""},{"$f":"IF(Table_PI[[#This Row],[List 1]]<>\"\",Table_PI[[#This Row],[List 1]],\"\")","v":""},{"$f":"IF(Table_PI[[#This Row],[List 2]]<>\"\",Table_PI[[#This Row],[List 2]],\"\")","v":""},{"$f":"IF(Table_PI[[#This Row],[List 3]]<>\"\",Table_PI[[#This Row],[List 3]],\"\")","v":""},{"$f":"IF(Table_PI[[#This Row],[Manufacturer]]=\"\",\"\",Table_PI[[#This Row],[Manufacturer]])","v":""},{"$f":"IF(Table_PI[[#This Row],[Model Number]]=\"\",\"\",Table_PI[[#This Row],[Model Number]])","v":""},{"$f":"IF(Table_PI[[#This Row],[Serial Number(s)]]=\"\",\"\",Table_PI[[#This Row],[Serial Number(s)]])","v":""},null,{"$f":"IF(Table_PI[[#This Row],[Size]]=\"\",\"\",Table_PI[[#This Row],[Size]])","v":""},null,null,{"$f":"IF(Table_PI[[#This Row],[Input 1]]<>\"\",Table_PI[[#This Row],[Input 1]],\"\")","v":""},null,null,{"$f":"IF(Table_PI[[#This Row],[Input 2]]<>\"\",Table_PI[[#This Row],[Input 2]],\"\")","v":""},null,null,{"$f":"IF(Table_PI[[#This Row],[Input 3]]<>\"\",Table_PI[[#This Row],[Input 3]],\"\")","v":""},null,null,{"$f":"IF(Table_PI[[#This Row],[Input 4]]<>\"\",Table_PI[[#This Row],[Input 4]],\"\")","v":""},null,null,{"$f":"IF(Table_PI[[#This Row],[Input 4]]<>\"\",Table_PI[[#This Row],[Input 4]],\"\")","v":""},null,null,{"$f":"IF(Table_PI[[#This Row],[Input 4]]<>\"\",Table_PI[[#This Row],[Input 4]],\"\")","v":""},{"$f":"IF(Table_PI[[#This Row],[Quantity]]=\"\",\"\",Table_PI[[#This Row],[Quantity]])","v":""},{"$f":"IF(Table_PI[[#This Row],[Notes]]=\"\",\"\",Table_PI[[#This Row],[Notes]])","v":""},{"$f":"IF(OR(Table_PI[[#This Row],[Hide: Baseline kWh]]=\"\",Table_PI[[#This Row],[Hide: Baseline kWh]]=0,ISTEXT(Table_PI[[#This Row],[Hide: Baseline kWh]])),\"\",Table_PI[[#This Row],[Hide: Baseline kWh]])","v":""},{"$f":"IF(OR(Table_PI[[#This Row],[Hide: Baseline kW]]=\"\",Table_PI[[#This Row],[Hide: Baseline kW]]=0,ISTEXT(Table_PI[[#This Row],[Hide: Baseline kW]])),\"\",Table_PI[[#This Row],[Hide: Baseline kW]])","v":""},{"$f":"IF(OR(Table_PI[[#This Row],[Hide: Proposed kWh]]=\"\",Table_PI[[#This Row],[Hide: Proposed kWh]]=0,ISTEXT(Table_PI[[#This Row],[Hide: Proposed kWh]])),\"\",Table_PI[[#This Row],[Hide: Proposed kWh]])","v":""},{"$f":"IF(OR(Table_PI[[#This Row],[Hide: Proposed kW]]=\"\",Table_PI[[#This Row],[Hide: Proposed kW]]=0,ISTEXT(Table_PI[[#This Row],[Hide: Proposed kW]])),\"\",Table_PI[[#This Row],[Hide: Proposed kW]])","v":""},null,null,{"$f":"IF(OR(Table_PI[[#This Row],[Hide: Rebate]]=\"\",Table_PI[[#This Row],[Hide: Rebate]]=0,ISTEXT(Table_PI[[#This Row],[Hide: Rebate]])),\"\",Table_PI[[#This Row],[Hide: Rebate]])","v":""},null,{"$f":"IF(OR(Table_PI[[#This Row],[Hide: Incremental Cost]]=\"\",Table_PI[[#This Row],[Hide: Incremental Cost]]=0,ISTEXT(Table_PI[[#This Row],[Hide: Incremental Cost]])),\"\",Table_PI[[#This Row],[Hide: Incremental Cost]])","v":""},{"$f":"IFERROR(IF(Table_SummaryPI[[#This Row],[Incentive_Customer]]=\"\",\"\",ROUND(Table_SummaryPI[[#This Row],[Incentive_Customer]]/$AM$401*'Customer Information'!$BC$21,2)),0)","v":""},{"$f":"IF(OR(Table_PI[[#This Row],[Annual kWh]]=\"\",Table_PI[[#This Row],[Annual kWh]]=0,ISTEXT(Table_PI[[#This Row],[Annual kWh]])),\"\",Table_PI[[#This Row],[Annual kWh]])","v":""},{"$f":"IF(OR(Table_PI[[#This Row],[Peak kW]]=\"\",Table_PI[[#This Row],[Peak kW]]=0,ISTEXT(Table_PI[[#This Row],[Peak kW]])),\"\",Table_PI[[#This Row],[Peak kW]])","v":""},{"$f":"IF(Table_SummaryPI[[#This Row],[Line No.]]<>\"\",IF(AND(ISNUMBER(FIND(\"Chiller\",Table_SummaryPI[[#This Row],[P_MeasureOption1]],1)),Table_SummaryPI[[#This Row],[ProposedMeasureCategory]]=\"Air-Cooled (Water-Cooled Replacement)\"),$BD$29*Table_SummaryPI[[#This Row],[Size]]*Table_SummaryPI[[#This Row],[Quantity]]*Table_SummaryPI[[#This Row],[EFLHCooling]],\nIF(ISNUMBER(FIND(\"Dishwasher\",Table_SummaryPI[[#This Row],[ProposedMeasureCategory]],1)),$BH$29*Table_SummaryPI[[#This Row],[Quantity]],\nIF(ISNUMBER(FIND(\"Ice Maker\",Table_SummaryPI[[#This Row],[ProposedMeasureCategory]],1)),$BD$31*Table_SummaryPI[[#This Row],[Quantity]],\nIF(ISNUMBER(FIND(\"Spray Valve\",Table_SummaryPI[[#This Row],[ProposedMeasureCategory]],1)),$BH$31*Table_SummaryPI[[#This Row],[Quantity]],\n0)))),\"\")","v":""},{"$f":"IF(OR(Table_PI[[#This Row],[Hide: Electrification kWh]]=\"\",Table_PI[[#This Row],[Hide: Electrification kWh]]=0,ISTEXT(Table_PI[[#This Row],[Hide: Electrification kWh]])),\"\",Table_PI[[#This Row],[Hide: Electrification kWh]])","v":""},{"$f":"IF(OR(Table_PI[[#This Row],[Hide: Electrification GHG]]=\"\",Table_PI[[#This Row],[Hide: Electrification GHG]]=0,ISTEXT(Table_PI[[#This Row],[Hide: Electrification GHG]])),\"\",Table_PI[[#This Row],[Hide: Electrification GHG]])","v":""},{"$f":"IFERROR(IF(Table_SummaryPI[[#This Row],[kWhSavings]]=\"\",\"\",$BH$9*Table_SummaryPI[[#This Row],[kWhSavings]]),0)","v":""},{"$f":"IFERROR(IF(Table_SummaryPI[[#This Row],[kWhSavings]]=\"\",\"\",$BH$14*Table_SummaryPI[[#This Row],[kWhSavings]]),0)","v":""},{"$f":"IFERROR(IF(Table_SummaryPI[[#This Row],[kWhSavings]]=\"\",\"\",$BH$18*Table_SummaryPI[[#This Row],[kWhSavings]]),0)","v":""},{"$f":"IFERROR(IF(Table_SummaryPI[[#This Row],[kWhSavings]]=\"\",\"\",$BH$22*Table_SummaryPI[[#This Row],[kWhSavings]]),0)","v":""},null,null,null,null,"WaterSavings Calculations"]
[{"$f":"Table_PI[[#This Row],[Line No.]]","v":""},{"$f":"IF(Table_SummaryPI[[#This Row],[MeasureName]]<>\"\",NOT(ISTEXT(Table_PI[[#This Row],[Rebate]])),\"\")","v":""},{"$f":"IF(Table_SummaryPI[[#This Row],[MeassureCategory]]<>\"\",CONCATENATE(Table_SummaryPI[[#This Row],[MeassureCategory]],  \" - \", Table_SummaryPI[[#This Row],[ProposedMeasureCategory]],  \" - \", TEXT(Table_SummaryPI[[#This Row],[Size]],\"#,##0.00\"),\" \",Table_SummaryPI[[#This Row],[SizeUnit]]),\"\")","v":""},{"$f":"SUBSTITUTE(Table_PI[[#This Row],[Measure]],\"     \",\"\",1)","v":""},{"$f":"IF(Table_PI[[#This Row],[List 1]]<>\"\",Table_PI[[#This Row],[List 1]],\"\")","v":""},{"$f":"IF(Table_PI[[#This Row],[List 2]]<>\"\",Table_PI[[#This Row],[List 2]],\"\")","v":""},{"$f":"IF(Table_PI[[#This Row],[List 3]]<>\"\",Table_PI[[#This Row],[List 3]],\"\")","v":""},{"$f":"IF(Table_PI[[#This Row],[Manufacturer]]=\"\",\"\",Table_PI[[#This Row],[Manufacturer]])","v":""},{"$f":"IF(Table_PI[[#This Row],[Model Number]]=\"\",\"\",Table_PI[[#This Row],[Model Number]])","v":""},{"$f":"IF(Table_PI[[#This Row],[Serial Number(s)]]=\"\",\"\",Table_PI[[#This Row],[Serial Number(s)]])","v":""},null,{"$f":"IF(Table_PI[[#This Row],[Size]]=\"\",\"\",Table_PI[[#This Row],[Size]])","v":""},null,null,{"$f":"IF(Table_PI[[#This Row],[Input 1]]<>\"\",Table_PI[[#This Row],[Input 1]],\"\")","v":""},null,null,{"$f":"IF(Table_PI[[#This Row],[Input 2]]<>\"\",Table_PI[[#This Row],[Input 2]],\"\")","v":""},null,null,{"$f":"IF(Table_PI[[#This Row],[Input 3]]<>\"\",Table_PI[[#This Row],[Input 3]],\"\")","v":""},null,null,{"$f":"IF(Table_PI[[#This Row],[Input 4]]<>\"\",Table_PI[[#This Row],[Input 4]],\"\")","v":""},null,null,{"$f":"IF(Table_PI[[#This Row],[Input 4]]<>\"\",Table_PI[[#This Row],[Input 4]],\"\")","v":""},null,null,{"$f":"IF(Table_PI[[#This Row],[Input 4]]<>\"\",Table_PI[[#This Row],[Input 4]],\"\")","v":""},{"$f":"IF(Table_PI[[#This Row],[Quantity]]=\"\",\"\",Table_PI[[#This Row],[Quantity]])","v":""},{"$f":"IF(Table_PI[[#This Row],[Notes]]=\"\",\"\",Table_PI[[#This Row],[Notes]])","v":""},{"$f":"IF(OR(Table_PI[[#This Row],[Hide: Baseline kWh]]=\"\",Table_PI[[#This Row],[Hide: Baseline kWh]]=0,ISTEXT(Table_PI[[#This Row],[Hide: Baseline kWh]])),\"\",Table_PI[[#This Row],[Hide: Baseline kWh]])","v":""},{"$f":"IF(OR(Table_PI[[#This Row],[Hide: Baseline kW]]=\"\",Table_PI[[#This Row],[Hide: Baseline kW]]=0,ISTEXT(Table_PI[[#This Row],[Hide: Baseline kW]])),\"\",Table_PI[[#This Row],[Hide: Baseline kW]])","v":""},{"$f":"IF(OR(Table_PI[[#This Row],[Hide: Proposed kWh]]=\"\",Table_PI[[#This Row],[Hide: Proposed kWh]]=0,ISTEXT(Table_PI[[#This Row],[Hide: Proposed kWh]])),\"\",Table_PI[[#This Row],[Hide: Proposed kWh]])","v":""},{"$f":"IF(OR(Table_PI[[#This Row],[Hide: Proposed kW]]=\"\",Table_PI[[#This Row],[Hide: Proposed kW]]=0,ISTEXT(Table_PI[[#This Row],[Hide: Proposed kW]])),\"\",Table_PI[[#This Row],[Hide: Proposed kW]])","v":""},null,null,{"$f":"IF(OR(Table_PI[[#This Row],[Hide: Rebate]]=\"\",Table_PI[[#This Row],[Hide: Rebate]]=0,ISTEXT(Table_PI[[#This Row],[Hide: Rebate]])),\"\",Table_PI[[#This Row],[Hide: Rebate]])","v":""},null,{"$f":"IF(OR(Table_PI[[#This Row],[Hide: Incremental Cost]]=\"\",Table_PI[[#This Row],[Hide: Incremental Cost]]=0,ISTEXT(Table_PI[[#This Row],[Hide: Incremental Cost]])),\"\",Table_PI[[#This Row],[Hide: Incremental Cost]])","v":""},{"$f":"IFERROR(IF(Table_SummaryPI[[#This Row],[Incentive_Customer]]=\"\",\"\",ROUND(Table_SummaryPI[[#This Row],[Incentive_Customer]]/$AM$401*'Customer Information'!$BC$21,2)),0)","v":""},{"$f":"IF(OR(Table_PI[[#This Row],[Annual kWh]]=\"\",Table_PI[[#This Row],[Annual kWh]]=0,ISTEXT(Table_PI[[#This Row],[Annual kWh]])),\"\",Table_PI[[#This Row],[Annual kWh]])","v":""},{"$f":"IF(OR(Table_PI[[#This Row],[Peak kW]]=\"\",Table_PI[[#This Row],[Peak kW]]=0,ISTEXT(Table_PI[[#This Row],[Peak kW]])),\"\",Table_PI[[#This Row],[Peak kW]])","v":""},{"$f":"IF(Table_SummaryPI[[#This Row],[Line No.]]<>\"\",IF(AND(ISNUMBER(FIND(\"Chiller\",Table_SummaryPI[[#This Row],[P_MeasureOption1]],1)),Table_SummaryPI[[#This Row],[ProposedMeasureCategory]]=\"Air-Cooled (Water-Cooled Replacement)\"),$BD$29*Table_SummaryPI[[#This Row],[Size]]*Table_SummaryPI[[#This Row],[Quantity]]*Table_SummaryPI[[#This Row],[EFLHCooling]],\nIF(ISNUMBER(FIND(\"Dishwasher\",Table_SummaryPI[[#This Row],[ProposedMeasureCategory]],1)),$BH$29*Table_SummaryPI[[#This Row],[Quantity]],\nIF(ISNUMBER(FIND(\"Ice Maker\",Table_SummaryPI[[#This Row],[ProposedMeasureCategory]],1)),$BD$31*Table_SummaryPI[[#This Row],[Quantity]],\nIF(ISNUMBER(FIND(\"Spray Valve\",Table_SummaryPI[[#This Row],[ProposedMeasureCategory]],1)),$BH$31*Table_SummaryPI[[#This Row],[Quantity]],\n0)))),\"\")","v":""},{"$f":"IF(OR(Table_PI[[#This Row],[Hide: Electrification kWh]]=\"\",Table_PI[[#This Row],[Hide: Electrification kWh]]=0,ISTEXT(Table_PI[[#This Row],[Hide: Electrification kWh]])),\"\",Table_PI[[#This Row],[Hide: Electrification kWh]])","v":""},{"$f":"IF(OR(Table_PI[[#This Row],[Hide: Electrification GHG]]=\"\",Table_PI[[#This Row],[Hide: Electrification GHG]]=0,ISTEXT(Table_PI[[#This Row],[Hide: Electrification GHG]])),\"\",Table_PI[[#This Row],[Hide: Electrification GHG]])","v":""},{"$f":"IFERROR(IF(Table_SummaryPI[[#This Row],[kWhSavings]]=\"\",\"\",$BH$9*Table_SummaryPI[[#This Row],[kWhSavings]]),0)","v":""},{"$f":"IFERROR(IF(Table_SummaryPI[[#This Row],[kWhSavings]]=\"\",\"\",$BH$14*Table_SummaryPI[[#This Row],[kWhSavings]]),0)","v":""},{"$f":"IFERROR(IF(Table_SummaryPI[[#This Row],[kWhSavings]]=\"\",\"\",$BH$18*Table_SummaryPI[[#This Row],[kWhSavings]]),0)","v":""},{"$f":"IFERROR(IF(Table_SummaryPI[[#This Row],[kWhSavings]]=\"\",\"\",$BH$22*Table_SummaryPI[[#This Row],[kWhSavings]]),0)","v":""},null,null,null,null,2.4,"gal/ton (WC Chiller)",null,null,5600,"gal/year (ES Dishwasher)"]
[{"$f":"Table_PI[[#This Row],[Line No.]]","v":""},{"$f":"IF(Table_SummaryPI[[#This Row],[MeasureName]]<>\"\",NOT(ISTEXT(Table_PI[[#This Row],[Rebate]])),\"\")","v":""},{"$f":"IF(Table_SummaryPI[[#This Row],[MeassureCategory]]<>\"\",CONCATENATE(Table_SummaryPI[[#This Row],[MeassureCategory]],  \" - \", Table_SummaryPI[[#This Row],[ProposedMeasureCategory]],  \" - \", TEXT(Table_SummaryPI[[#This Row],[Size]],\"#,##0.00\"),\" \",Table_SummaryPI[[#This Row],[SizeUnit]]),\"\")","v":""},{"$f":"SUBSTITUTE(Table_PI[[#This Row],[Measure]],\"     \",\"\",1)","v":""},{"$f":"IF(Table_PI[[#This Row],[List 1]]<>\"\",Table_PI[[#This Row],[List 1]],\"\")","v":""},{"$f":"IF(Table_PI[[#This Row],[List 2]]<>\"\",Table_PI[[#This Row],[List 2]],\"\")","v":""},{"$f":"IF(Table_PI[[#This Row],[List 3]]<>\"\",Table_PI[[#This Row],[List 3]],\"\")","v":""},{"$f":"IF(Table_PI[[#This Row],[Manufacturer]]=\"\",\"\",Table_PI[[#This Row],[Manufacturer]])","v":""},{"$f":"IF(Table_PI[[#This Row],[Model Number]]=\"\",\"\",Table_PI[[#This Row],[Model Number]])","v":""},{"$f":"IF(Table_PI[[#This Row],[Serial Number(s)]]=\"\",\"\",Table_PI[[#This Row],[Serial Number(s)]])","v":""},null,{"$f":"IF(Table_PI[[#This Row],[Size]]=\"\",\"\",Table_PI[[#This Row],[Size]])","v":""},null,null,{"$f":"IF(Table_PI[[#This Row],[Input 1]]<>\"\",Table_PI[[#This Row],[Input 1]],\"\")","v":""},null,null,{"$f":"IF(Table_PI[[#This Row],[Input 2]]<>\"\",Table_PI[[#This Row],[Input 2]],\"\")","v":""},null,null,{"$f":"IF(Table_PI[[#This Row],[Input 3]]<>\"\",Table_PI[[#This Row],[Input 3]],\"\")","v":""},null,null,{"$f":"IF(Table_PI[[#This Row],[Input 4]]<>\"\",Table_PI[[#This Row],[Input 4]],\"\")","v":""},null,null,{"$f":"IF(Table_PI[[#This Row],[Input 4]]<>\"\",Table_PI[[#This Row],[Input 4]],\"\")","v":""},null,null,{"$f":"IF(Table_PI[[#This Row],[Input 4]]<>\"\",Table_PI[[#This Row],[Input 4]],\"\")","v":""},{"$f":"IF(Table_PI[[#This Row],[Quantity]]=\"\",\"\",Table_PI[[#This Row],[Quantity]])","v":""},{"$f":"IF(Table_PI[[#This Row],[Notes]]=\"\",\"\",Table_PI[[#This Row],[Notes]])","v":""},{"$f":"IF(OR(Table_PI[[#This Row],[Hide: Baseline kWh]]=\"\",Table_PI[[#This Row],[Hide: Baseline kWh]]=0,ISTEXT(Table_PI[[#This Row],[Hide: Baseline kWh]])),\"\",Table_PI[[#This Row],[Hide: Baseline kWh]])","v":""},{"$f":"IF(OR(Table_PI[[#This Row],[Hide: Baseline kW]]=\"\",Table_PI[[#This Row],[Hide: Baseline kW]]=0,ISTEXT(Table_PI[[#This Row],[Hide: Baseline kW]])),\"\",Table_PI[[#This Row],[Hide: Baseline kW]])","v":""},{"$f":"IF(OR(Table_PI[[#This Row],[Hide: Proposed kWh]]=\"\",Table_PI[[#This Row],[Hide: Proposed kWh]]=0,ISTEXT(Table_PI[[#This Row],[Hide: Proposed kWh]])),\"\",Table_PI[[#This Row],[Hide: Proposed kWh]])","v":""},{"$f":"IF(OR(Table_PI[[#This Row],[Hide: Proposed kW]]=\"\",Table_PI[[#This Row],[Hide: Proposed kW]]=0,ISTEXT(Table_PI[[#This Row],[Hide: Proposed kW]])),\"\",Table_PI[[#This Row],[Hide: Proposed kW]])","v":""},null,null,{"$f":"IF(OR(Table_PI[[#This Row],[Hide: Rebate]]=\"\",Table_PI[[#This Row],[Hide: Rebate]]=0,ISTEXT(Table_PI[[#This Row],[Hide: Rebate]])),\"\",Table_PI[[#This Row],[Hide: Rebate]])","v":""},null,{"$f":"IF(OR(Table_PI[[#This Row],[Hide: Incremental Cost]]=\"\",Table_PI[[#This Row],[Hide: Incremental Cost]]=0,ISTEXT(Table_PI[[#This Row],[Hide: Incremental Cost]])),\"\",Table_PI[[#This Row],[Hide: Incremental Cost]])","v":""},{"$f":"IFERROR(IF(Table_SummaryPI[[#This Row],[Incentive_Customer]]=\"\",\"\",ROUND(Table_SummaryPI[[#This Row],[Incentive_Customer]]/$AM$401*'Customer Information'!$BC$21,2)),0)","v":""},{"$f":"IF(OR(Table_PI[[#This Row],[Annual kWh]]=\"\",Table_PI[[#This Row],[Annual kWh]]=0,ISTEXT(Table_PI[[#This Row],[Annual kWh]])),\"\",Table_PI[[#This Row],[Annual kWh]])","v":""},{"$f":"IF(OR(Table_PI[[#This Row],[Peak kW]]=\"\",Table_PI[[#This Row],[Peak kW]]=0,ISTEXT(Table_PI[[#This Row],[Peak kW]])),\"\",Table_PI[[#This Row],[Peak kW]])","v":""},{"$f":"IF(Table_SummaryPI[[#This Row],[Line No.]]<>\"\",IF(AND(ISNUMBER(FIND(\"Chiller\",Table_SummaryPI[[#This Row],[P_MeasureOption1]],1)),Table_SummaryPI[[#This Row],[ProposedMeasureCategory]]=\"Air-Cooled (Water-Cooled Replacement)\"),$BD$29*Table_SummaryPI[[#This Row],[Size]]*Table_SummaryPI[[#This Row],[Quantity]]*Table_SummaryPI[[#This Row],[EFLHCooling]],\nIF(ISNUMBER(FIND(\"Dishwasher\",Table_SummaryPI[[#This Row],[ProposedMeasureCategory]],1)),$BH$29*Table_SummaryPI[[#This Row],[Quantity]],\nIF(ISNUMBER(FIND(\"Ice Maker\",Table_SummaryPI[[#This Row],[ProposedMeasureCategory]],1)),$BD$31*Table_SummaryPI[[#This Row],[Quantity]],\nIF(ISNUMBER(FIND(\"Spray Valve\",Table_SummaryPI[[#This Row],[ProposedMeasureCategory]],1)),$BH$31*Table_SummaryPI[[#This Row],[Quantity]],\n0)))),\"\")","v":""},{"$f":"IF(OR(Table_PI[[#This Row],[Hide: Electrification kWh]]=\"\",Table_PI[[#This Row],[Hide: Electrification kWh]]=0,ISTEXT(Table_PI[[#This Row],[Hide: Electrification kWh]])),\"\",Table_PI[[#This Row],[Hide: Electrification kWh]])","v":""},{"$f":"IF(OR(Table_PI[[#This Row],[Hide: Electrification GHG]]=\"\",Table_PI[[#This Row],[Hide: Electrification GHG]]=0,ISTEXT(Table_PI[[#This Row],[Hide: Electrification GHG]])),\"\",Table_PI[[#This Row],[Hide: Electrification GHG]])","v":""},{"$f":"IFERROR(IF(Table_SummaryPI[[#This Row],[kWhSavings]]=\"\",\"\",$BH$9*Table_SummaryPI[[#This Row],[kWhSavings]]),0)","v":""},{"$f":"IFERROR(IF(Table_SummaryPI[[#This Row],[kWhSavings]]=\"\",\"\",$BH$14*Table_SummaryPI[[#This Row],[kWhSavings]]),0)","v":""},{"$f":"IFERROR(IF(Table_SummaryPI[[#This Row],[kWhSavings]]=\"\",\"\",$BH$18*Table_SummaryPI[[#This Row],[kWhSavings]]),0)","v":""},{"$f":"IFERROR(IF(Table_SummaryPI[[#This Row],[kWhSavings]]=\"\",\"\",$BH$22*Table_SummaryPI[[#This Row],[kWhSavings]]),0)","v":""}]
[{"$f":"Table_PI[[#This Row],[Line No.]]","v":""},{"$f":"IF(Table_SummaryPI[[#This Row],[MeasureName]]<>\"\",NOT(ISTEXT(Table_PI[[#This Row],[Rebate]])),\"\")","v":""},{"$f":"IF(Table_SummaryPI[[#This Row],[MeassureCategory]]<>\"\",CONCATENATE(Table_SummaryPI[[#This Row],[MeassureCategory]],  \" - \", Table_SummaryPI[[#This Row],[ProposedMeasureCategory]],  \" - \", TEXT(Table_SummaryPI[[#This Row],[Size]],\"#,##0.00\"),\" \",Table_SummaryPI[[#This Row],[SizeUnit]]),\"\")","v":""},{"$f":"SUBSTITUTE(Table_PI[[#This Row],[Measure]],\"     \",\"\",1)","v":""},{"$f":"IF(Table_PI[[#This Row],[List 1]]<>\"\",Table_PI[[#This Row],[List 1]],\"\")","v":""},{"$f":"IF(Table_PI[[#This Row],[List 2]]<>\"\",Table_PI[[#This Row],[List 2]],\"\")","v":""},{"$f":"IF(Table_PI[[#This Row],[List 3]]<>\"\",Table_PI[[#This Row],[List 3]],\"\")","v":""},{"$f":"IF(Table_PI[[#This Row],[Manufacturer]]=\"\",\"\",Table_PI[[#This Row],[Manufacturer]])","v":""},{"$f":"IF(Table_PI[[#This Row],[Model Number]]=\"\",\"\",Table_PI[[#This Row],[Model Number]])","v":""},{"$f":"IF(Table_PI[[#This Row],[Serial Number(s)]]=\"\",\"\",Table_PI[[#This Row],[Serial Number(s)]])","v":""},null,{"$f":"IF(Table_PI[[#This Row],[Size]]=\"\",\"\",Table_PI[[#This Row],[Size]])","v":""},null,null,{"$f":"IF(Table_PI[[#This Row],[Input 1]]<>\"\",Table_PI[[#This Row],[Input 1]],\"\")","v":""},null,null,{"$f":"IF(Table_PI[[#This Row],[Input 2]]<>\"\",Table_PI[[#This Row],[Input 2]],\"\")","v":""},null,null,{"$f":"IF(Table_PI[[#This Row],[Input 3]]<>\"\",Table_PI[[#This Row],[Input 3]],\"\")","v":""},null,null,{"$f":"IF(Table_PI[[#This Row],[Input 4]]<>\"\",Table_PI[[#This Row],[Input 4]],\"\")","v":""},null,null,{"$f":"IF(Table_PI[[#This Row],[Input 4]]<>\"\",Table_PI[[#This Row],[Input 4]],\"\")","v":""},null,null,{"$f":"IF(Table_PI[[#This Row],[Input 4]]<>\"\",Table_PI[[#This Row],[Input 4]],\"\")","v":""},{"$f":"IF(Table_PI[[#This Row],[Quantity]]=\"\",\"\",Table_PI[[#This Row],[Quantity]])","v":""},{"$f":"IF(Table_PI[[#This Row],[Notes]]=\"\",\"\",Table_PI[[#This Row],[Notes]])","v":""},{"$f":"IF(OR(Table_PI[[#This Row],[Hide: Baseline kWh]]=\"\",Table_PI[[#This Row],[Hide: Baseline kWh]]=0,ISTEXT(Table_PI[[#This Row],[Hide: Baseline kWh]])),\"\",Table_PI[[#This Row],[Hide: Baseline kWh]])","v":""},{"$f":"IF(OR(Table_PI[[#This Row],[Hide: Baseline kW]]=\"\",Table_PI[[#This Row],[Hide: Baseline kW]]=0,ISTEXT(Table_PI[[#This Row],[Hide: Baseline kW]])),\"\",Table_PI[[#This Row],[Hide: Baseline kW]])","v":""},{"$f":"IF(OR(Table_PI[[#This Row],[Hide: Proposed kWh]]=\"\",Table_PI[[#This Row],[Hide: Proposed kWh]]=0,ISTEXT(Table_PI[[#This Row],[Hide: Proposed kWh]])),\"\",Table_PI[[#This Row],[Hide: Proposed kWh]])","v":""},{"$f":"IF(OR(Table_PI[[#This Row],[Hide: Proposed kW]]=\"\",Table_PI[[#This Row],[Hide: Proposed kW]]=0,ISTEXT(Table_PI[[#This Row],[Hide: Proposed kW]])),\"\",Table_PI[[#This Row],[Hide: Proposed kW]])","v":""},null,null,{"$f":"IF(OR(Table_PI[[#This Row],[Hide: Rebate]]=\"\",Table_PI[[#This Row],[Hide: Rebate]]=0,ISTEXT(Table_PI[[#This Row],[Hide: Rebate]])),\"\",Table_PI[[#This Row],[Hide: Rebate]])","v":""},null,{"$f":"IF(OR(Table_PI[[#This Row],[Hide: Incremental Cost]]=\"\",Table_PI[[#This Row],[Hide: Incremental Cost]]=0,ISTEXT(Table_PI[[#This Row],[Hide: Incremental Cost]])),\"\",Table_PI[[#This Row],[Hide: Incremental Cost]])","v":""},{"$f":"IFERROR(IF(Table_SummaryPI[[#This Row],[Incentive_Customer]]=\"\",\"\",ROUND(Table_SummaryPI[[#This Row],[Incentive_Customer]]/$AM$401*'Customer Information'!$BC$21,2)),0)","v":""},{"$f":"IF(OR(Table_PI[[#This Row],[Annual kWh]]=\"\",Table_PI[[#This Row],[Annual kWh]]=0,ISTEXT(Table_PI[[#This Row],[Annual kWh]])),\"\",Table_PI[[#This Row],[Annual kWh]])","v":""},{"$f":"IF(OR(Table_PI[[#This Row],[Peak kW]]=\"\",Table_PI[[#This Row],[Peak kW]]=0,ISTEXT(Table_PI[[#This Row],[Peak kW]])),\"\",Table_PI[[#This Row],[Peak kW]])","v":""},{"$f":"IF(Table_SummaryPI[[#This Row],[Line No.]]<>\"\",IF(AND(ISNUMBER(FIND(\"Chiller\",Table_SummaryPI[[#This Row],[P_MeasureOption1]],1)),Table_SummaryPI[[#This Row],[ProposedMeasureCategory]]=\"Air-Cooled (Water-Cooled Replacement)\"),$BD$29*Table_SummaryPI[[#This Row],[Size]]*Table_SummaryPI[[#This Row],[Quantity]]*Table_SummaryPI[[#This Row],[EFLHCooling]],\nIF(ISNUMBER(FIND(\"Dishwasher\",Table_SummaryPI[[#This Row],[ProposedMeasureCategory]],1)),$BH$29*Table_SummaryPI[[#This Row],[Quantity]],\nIF(ISNUMBER(FIND(\"Ice Maker\",Table_SummaryPI[[#This Row],[ProposedMeasureCategory]],1)),$BD$31*Table_SummaryPI[[#This Row],[Quantity]],\nIF(ISNUMBER(FIND(\"Spray Valve\",Table_SummaryPI[[#This Row],[ProposedMeasureCategory]],1)),$BH$31*Table_SummaryPI[[#This Row],[Quantity]],\n0)))),\"\")","v":""},{"$f":"IF(OR(Table_PI[[#This Row],[Hide: Electrification kWh]]=\"\",Table_PI[[#This Row],[Hide: Electrification kWh]]=0,ISTEXT(Table_PI[[#This Row],[Hide: Electrification kWh]])),\"\",Table_PI[[#This Row],[Hide: Electrification kWh]])","v":""},{"$f":"IF(OR(Table_PI[[#This Row],[Hide: Electrification GHG]]=\"\",Table_PI[[#This Row],[Hide: Electrification GHG]]=0,ISTEXT(Table_PI[[#This Row],[Hide: Electrification GHG]])),\"\",Table_PI[[#This Row],[Hide: Electrification GHG]])","v":""},{"$f":"IFERROR(IF(Table_SummaryPI[[#This Row],[kWhSavings]]=\"\",\"\",$BH$9*Table_SummaryPI[[#This Row],[kWhSavings]]),0)","v":""},{"$f":"IFERROR(IF(Table_SummaryPI[[#This Row],[kWhSavings]]=\"\",\"\",$BH$14*Table_SummaryPI[[#This Row],[kWhSavings]]),0)","v":""},{"$f":"IFERROR(IF(Table_SummaryPI[[#This Row],[kWhSavings]]=\"\",\"\",$BH$18*Table_SummaryPI[[#This Row],[kWhSavings]]),0)","v":""},{"$f":"IFERROR(IF(Table_SummaryPI[[#This Row],[kWhSavings]]=\"\",\"\",$BH$22*Table_SummaryPI[[#This Row],[kWhSavings]]),0)","v":""},null,null,null,null,5300,"gal/year (ES Ice Maker)",null,null,7000,"gal/year (HE Spray Valve)"]
[{"$f":"Table_PI[[#This Row],[Line No.]]","v":""},{"$f":"IF(Table_SummaryPI[[#This Row],[MeasureName]]<>\"\",NOT(ISTEXT(Table_PI[[#This Row],[Rebate]])),\"\")","v":""},{"$f":"IF(Table_SummaryPI[[#This Row],[MeassureCategory]]<>\"\",CONCATENATE(Table_SummaryPI[[#This Row],[MeassureCategory]],  \" - \", Table_SummaryPI[[#This Row],[ProposedMeasureCategory]],  \" - \", TEXT(Table_SummaryPI[[#This Row],[Size]],\"#,##0.00\"),\" \",Table_SummaryPI[[#This Row],[SizeUnit]]),\"\")","v":""},{"$f":"SUBSTITUTE(Table_PI[[#This Row],[Measure]],\"     \",\"\",1)","v":""},{"$f":"IF(Table_PI[[#This Row],[List 1]]<>\"\",Table_PI[[#This Row],[List 1]],\"\")","v":""},{"$f":"IF(Table_PI[[#This Row],[List 2]]<>\"\",Table_PI[[#This Row],[List 2]],\"\")","v":""},{"$f":"IF(Table_PI[[#This Row],[List 3]]<>\"\",Table_PI[[#This Row],[List 3]],\"\")","v":""},{"$f":"IF(Table_PI[[#This Row],[Manufacturer]]=\"\",\"\",Table_PI[[#This Row],[Manufacturer]])","v":""},{"$f":"IF(Table_PI[[#This Row],[Model Number]]=\"\",\"\",Table_PI[[#This Row],[Model Number]])","v":""},{"$f":"IF(Table_PI[[#This Row],[Serial Number(s)]]=\"\",\"\",Table_PI[[#This Row],[Serial Number(s)]])","v":""},null,{"$f":"IF(Table_PI[[#This Row],[Size]]=\"\",\"\",Table_PI[[#This Row],[Size]])","v":""},null,null,{"$f":"IF(Table_PI[[#This Row],[Input 1]]<>\"\",Table_PI[[#This Row],[Input 1]],\"\")","v":""},null,null,{"$f":"IF(Table_PI[[#This Row],[Input 2]]<>\"\",Table_PI[[#This Row],[Input 2]],\"\")","v":""},null,null,{"$f":"IF(Table_PI[[#This Row],[Input 3]]<>\"\",Table_PI[[#This Row],[Input 3]],\"\")","v":""},null,null,{"$f":"IF(Table_PI[[#This Row],[Input 4]]<>\"\",Table_PI[[#This Row],[Input 4]],\"\")","v":""},null,null,{"$f":"IF(Table_PI[[#This Row],[Input 4]]<>\"\",Table_PI[[#This Row],[Input 4]],\"\")","v":""},null,null,{"$f":"IF(Table_PI[[#This Row],[Input 4]]<>\"\",Table_PI[[#This Row],[Input 4]],\"\")","v":""},{"$f":"IF(Table_PI[[#This Row],[Quantity]]=\"\",\"\",Table_PI[[#This Row],[Quantity]])","v":""},{"$f":"IF(Table_PI[[#This Row],[Notes]]=\"\",\"\",Table_PI[[#This Row],[Notes]])","v":""},{"$f":"IF(OR(Table_PI[[#This Row],[Hide: Baseline kWh]]=\"\",Table_PI[[#This Row],[Hide: Baseline kWh]]=0,ISTEXT(Table_PI[[#This Row],[Hide: Baseline kWh]])),\"\",Table_PI[[#This Row],[Hide: Baseline kWh]])","v":""},{"$f":"IF(OR(Table_PI[[#This Row],[Hide: Baseline kW]]=\"\",Table_PI[[#This Row],[Hide: Baseline kW]]=0,ISTEXT(Table_PI[[#This Row],[Hide: Baseline kW]])),\"\",Table_PI[[#This Row],[Hide: Baseline kW]])","v":""},{"$f":"IF(OR(Table_PI[[#This Row],[Hide: Proposed kWh]]=\"\",Table_PI[[#This Row],[Hide: Proposed kWh]]=0,ISTEXT(Table_PI[[#This Row],[Hide: Proposed kWh]])),\"\",Table_PI[[#This Row],[Hide: Proposed kWh]])","v":""},{"$f":"IF(OR(Table_PI[[#This Row],[Hide: Proposed kW]]=\"\",Table_PI[[#This Row],[Hide: Proposed kW]]=0,ISTEXT(Table_PI[[#This Row],[Hide: Proposed kW]])),\"\",Table_PI[[#This Row],[Hide: Proposed kW]])","v":""},null,null,{"$f":"IF(OR(Table_PI[[#This Row],[Hide: Rebate]]=\"\",Table_PI[[#This Row],[Hide: Rebate]]=0,ISTEXT(Table_PI[[#This Row],[Hide: Rebate]])),\"\",Table_PI[[#This Row],[Hide: Rebate]])","v":""},null,{"$f":"IF(OR(Table_PI[[#This Row],[Hide: Incremental Cost]]=\"\",Table_PI[[#This Row],[Hide: Incremental Cost]]=0,ISTEXT(Table_PI[[#This Row],[Hide: Incremental Cost]])),\"\",Table_PI[[#This Row],[Hide: Incremental Cost]])","v":""},{"$f":"IFERROR(IF(Table_SummaryPI[[#This Row],[Incentive_Customer]]=\"\",\"\",ROUND(Table_SummaryPI[[#This Row],[Incentive_Customer]]/$AM$401*'Customer Information'!$BC$21,2)),0)","v":""},{"$f":"IF(OR(Table_PI[[#This Row],[Annual kWh]]=\"\",Table_PI[[#This Row],[Annual kWh]]=0,ISTEXT(Table_PI[[#This Row],[Annual kWh]])),\"\",Table_PI[[#This Row],[Annual kWh]])","v":""},{"$f":"IF(OR(Table_PI[[#This Row],[Peak kW]]=\"\",Table_PI[[#This Row],[Peak kW]]=0,ISTEXT(Table_PI[[#This Row],[Peak kW]])),\"\",Table_PI[[#This Row],[Peak kW]])","v":""},{"$f":"IF(Table_SummaryPI[[#This Row],[Line No.]]<>\"\",IF(AND(ISNUMBER(FIND(\"Chiller\",Table_SummaryPI[[#This Row],[P_MeasureOption1]],1)),Table_SummaryPI[[#This Row],[ProposedMeasureCategory]]=\"Air-Cooled (Water-Cooled Replacement)\"),$BD$29*Table_SummaryPI[[#This Row],[Size]]*Table_SummaryPI[[#This Row],[Quantity]]*Table_SummaryPI[[#This Row],[EFLHCooling]],\nIF(ISNUMBER(FIND(\"Dishwasher\",Table_SummaryPI[[#This Row],[ProposedMeasureCategory]],1)),$BH$29*Table_SummaryPI[[#This Row],[Quantity]],\nIF(ISNUMBER(FIND(\"Ice Maker\",Table_SummaryPI[[#This Row],[ProposedMeasureCategory]],1)),$BD$31*Table_SummaryPI[[#This Row],[Quantity]],\nIF(ISNUMBER(FIND(\"Spray Valve\",Table_SummaryPI[[#This Row],[ProposedMeasureCategory]],1)),$BH$31*Table_SummaryPI[[#This Row],[Quantity]],\n0)))),\"\")","v":""},{"$f":"IF(OR(Table_PI[[#This Row],[Hide: Electrification kWh]]=\"\",Table_PI[[#This Row],[Hide: Electrification kWh]]=0,ISTEXT(Table_PI[[#This Row],[Hide: Electrification kWh]])),\"\",Table_PI[[#This Row],[Hide: Electrification kWh]])","v":""},{"$f":"IF(OR(Table_PI[[#This Row],[Hide: Electrification GHG]]=\"\",Table_PI[[#This Row],[Hide: Electrification GHG]]=0,ISTEXT(Table_PI[[#This Row],[Hide: Electrification GHG]])),\"\",Table_PI[[#This Row],[Hide: Electrification GHG]])","v":""},{"$f":"IFERROR(IF(Table_SummaryPI[[#This Row],[kWhSavings]]=\"\",\"\",$BH$9*Table_SummaryPI[[#This Row],[kWhSavings]]),0)","v":""},{"$f":"IFERROR(IF(Table_SummaryPI[[#This Row],[kWhSavings]]=\"\",\"\",$BH$14*Table_SummaryPI[[#This Row],[kWhSavings]]),0)","v":""},{"$f":"IFERROR(IF(Table_SummaryPI[[#This Row],[kWhSavings]]=\"\",\"\",$BH$18*Table_SummaryPI[[#This Row],[kWhSavings]]),0)","v":""},{"$f":"IFERROR(IF(Table_SummaryPI[[#This Row],[kWhSavings]]=\"\",\"\",$BH$22*Table_SummaryPI[[#This Row],[kWhSavings]]),0)","v":""}]
[{"$f":"Table_PI[[#This Row],[Line No.]]","v":""},{"$f":"IF(Table_SummaryPI[[#This Row],[MeasureName]]<>\"\",NOT(ISTEXT(Table_PI[[#This Row],[Rebate]])),\"\")","v":""},{"$f":"IF(Table_SummaryPI[[#This Row],[MeassureCategory]]<>\"\",CONCATENATE(Table_SummaryPI[[#This Row],[MeassureCategory]],  \" - \", Table_SummaryPI[[#This Row],[ProposedMeasureCategory]],  \" - \", TEXT(Table_SummaryPI[[#This Row],[Size]],\"#,##0.00\"),\" \",Table_SummaryPI[[#This Row],[SizeUnit]]),\"\")","v":""},{"$f":"SUBSTITUTE(Table_PI[[#This Row],[Measure]],\"     \",\"\",1)","v":""},{"$f":"IF(Table_PI[[#This Row],[List 1]]<>\"\",Table_PI[[#This Row],[List 1]],\"\")","v":""},{"$f":"IF(Table_PI[[#This Row],[List 2]]<>\"\",Table_PI[[#This Row],[List 2]],\"\")","v":""},{"$f":"IF(Table_PI[[#This Row],[List 3]]<>\"\",Table_PI[[#This Row],[List 3]],\"\")","v":""},{"$f":"IF(Table_PI[[#This Row],[Manufacturer]]=\"\",\"\",Table_PI[[#This Row],[Manufacturer]])","v":""},{"$f":"IF(Table_PI[[#This Row],[Model Number]]=\"\",\"\",Table_PI[[#This Row],[Model Number]])","v":""},{"$f":"IF(Table_PI[[#This Row],[Serial Number(s)]]=\"\",\"\",Table_PI[[#This Row],[Serial Number(s)]])","v":""},null,{"$f":"IF(Table_PI[[#This Row],[Size]]=\"\",\"\",Table_PI[[#This Row],[Size]])","v":""},null,null,{"$f":"IF(Table_PI[[#This Row],[Input 1]]<>\"\",Table_PI[[#This Row],[Input 1]],\"\")","v":""},null,null,{"$f":"IF(Table_PI[[#This Row],[Input 2]]<>\"\",Table_PI[[#This Row],[Input 2]],\"\")","v":""},null,null,{"$f":"IF(Table_PI[[#This Row],[Input 3]]<>\"\",Table_PI[[#This Row],[Input 3]],\"\")","v":""},null,null,{"$f":"IF(Table_PI[[#This Row],[Input 4]]<>\"\",Table_PI[[#This Row],[Input 4]],\"\")","v":""},null,null,{"$f":"IF(Table_PI[[#This Row],[Input 4]]<>\"\",Table_PI[[#This Row],[Input 4]],\"\")","v":""},null,null,{"$f":"IF(Table_PI[[#This Row],[Input 4]]<>\"\",Table_PI[[#This Row],[Input 4]],\"\")","v":""},{"$f":"IF(Table_PI[[#This Row],[Quantity]]=\"\",\"\",Table_PI[[#This Row],[Quantity]])","v":""},{"$f":"IF(Table_PI[[#This Row],[Notes]]=\"\",\"\",Table_PI[[#This Row],[Notes]])","v":""},{"$f":"IF(OR(Table_PI[[#This Row],[Hide: Baseline kWh]]=\"\",Table_PI[[#This Row],[Hide: Baseline kWh]]=0,ISTEXT(Table_PI[[#This Row],[Hide: Baseline kWh]])),\"\",Table_PI[[#This Row],[Hide: Baseline kWh]])","v":""},{"$f":"IF(OR(Table_PI[[#This Row],[Hide: Baseline kW]]=\"\",Table_PI[[#This Row],[Hide: Baseline kW]]=0,ISTEXT(Table_PI[[#This Row],[Hide: Baseline kW]])),\"\",Table_PI[[#This Row],[Hide: Baseline kW]])","v":""},{"$f":"IF(OR(Table_PI[[#This Row],[Hide: Proposed kWh]]=\"\",Table_PI[[#This Row],[Hide: Proposed kWh]]=0,ISTEXT(Table_PI[[#This Row],[Hide: Proposed kWh]])),\"\",Table_PI[[#This Row],[Hide: Proposed kWh]])","v":""},{"$f":"IF(OR(Table_PI[[#This Row],[Hide: Proposed kW]]=\"\",Table_PI[[#This Row],[Hide: Proposed kW]]=0,ISTEXT(Table_PI[[#This Row],[Hide: Proposed kW]])),\"\",Table_PI[[#This Row],[Hide: Proposed kW]])","v":""},null,null,{"$f":"IF(OR(Table_PI[[#This Row],[Hide: Rebate]]=\"\",Table_PI[[#This Row],[Hide: Rebate]]=0,ISTEXT(Table_PI[[#This Row],[Hide: Rebate]])),\"\",Table_PI[[#This Row],[Hide: Rebate]])","v":""},null,{"$f":"IF(OR(Table_PI[[#This Row],[Hide: Incremental Cost]]=\"\",Table_PI[[#This Row],[Hide: Incremental Cost]]=0,ISTEXT(Table_PI[[#This Row],[Hide: Incremental Cost]])),\"\",Table_PI[[#This Row],[Hide: Incremental Cost]])","v":""},{"$f":"IFERROR(IF(Table_SummaryPI[[#This Row],[Incentive_Customer]]=\"\",\"\",ROUND(Table_SummaryPI[[#This Row],[Incentive_Customer]]/$AM$401*'Customer Information'!$BC$21,2)),0)","v":""},{"$f":"IF(OR(Table_PI[[#This Row],[Annual kWh]]=\"\",Table_PI[[#This Row],[Annual kWh]]=0,ISTEXT(Table_PI[[#This Row],[Annual kWh]])),\"\",Table_PI[[#This Row],[Annual kWh]])","v":""},{"$f":"IF(OR(Table_PI[[#This Row],[Peak kW]]=\"\",Table_PI[[#This Row],[Peak kW]]=0,ISTEXT(Table_PI[[#This Row],[Peak kW]])),\"\",Table_PI[[#This Row],[Peak kW]])","v":""},{"$f":"IF(Table_SummaryPI[[#This Row],[Line No.]]<>\"\",IF(AND(ISNUMBER(FIND(\"Chiller\",Table_SummaryPI[[#This Row],[P_MeasureOption1]],1)),Table_SummaryPI[[#This Row],[ProposedMeasureCategory]]=\"Air-Cooled (Water-Cooled Replacement)\"),$BD$29*Table_SummaryPI[[#This Row],[Size]]*Table_SummaryPI[[#This Row],[Quantity]]*Table_SummaryPI[[#This Row],[EFLHCooling]],\nIF(ISNUMBER(FIND(\"Dishwasher\",Table_SummaryPI[[#This Row],[ProposedMeasureCategory]],1)),$BH$29*Table_SummaryPI[[#This Row],[Quantity]],\nIF(ISNUMBER(FIND(\"Ice Maker\",Table_SummaryPI[[#This Row],[ProposedMeasureCategory]],1)),$BD$31*Table_SummaryPI[[#This Row],[Quantity]],\nIF(ISNUMBER(FIND(\"Spray Valve\",Table_SummaryPI[[#This Row],[ProposedMeasureCategory]],1)),$BH$31*Table_SummaryPI[[#This Row],[Quantity]],\n0)))),\"\")","v":""},{"$f":"IF(OR(Table_PI[[#This Row],[Hide: Electrification kWh]]=\"\",Table_PI[[#This Row],[Hide: Electrification kWh]]=0,ISTEXT(Table_PI[[#This Row],[Hide: Electrification kWh]])),\"\",Table_PI[[#This Row],[Hide: Electrification kWh]])","v":""},{"$f":"IF(OR(Table_PI[[#This Row],[Hide: Electrification GHG]]=\"\",Table_PI[[#This Row],[Hide: Electrification GHG]]=0,ISTEXT(Table_PI[[#This Row],[Hide: Electrification GHG]])),\"\",Table_PI[[#This Row],[Hide: Electrification GHG]])","v":""},{"$f":"IFERROR(IF(Table_SummaryPI[[#This Row],[kWhSavings]]=\"\",\"\",$BH$9*Table_SummaryPI[[#This Row],[kWhSavings]]),0)","v":""},{"$f":"IFERROR(IF(Table_SummaryPI[[#This Row],[kWhSavings]]=\"\",\"\",$BH$14*Table_SummaryPI[[#This Row],[kWhSavings]]),0)","v":""},{"$f":"IFERROR(IF(Table_SummaryPI[[#This Row],[kWhSavings]]=\"\",\"\",$BH$18*Table_SummaryPI[[#This Row],[kWhSavings]]),0)","v":""},{"$f":"IFERROR(IF(Table_SummaryPI[[#This Row],[kWhSavings]]=\"\",\"\",$BH$22*Table_SummaryPI[[#This Row],[kWhSavings]]),0)","v":""}]
[{"$f":"Table_PI[[#This Row],[Line No.]]","v":""},{"$f":"IF(Table_SummaryPI[[#This Row],[MeasureName]]<>\"\",NOT(ISTEXT(Table_PI[[#This Row],[Rebate]])),\"\")","v":""},{"$f":"IF(Table_SummaryPI[[#This Row],[MeassureCategory]]<>\"\",CONCATENATE(Table_SummaryPI[[#This Row],[MeassureCategory]],  \" - \", Table_SummaryPI[[#This Row],[ProposedMeasureCategory]],  \" - \", TEXT(Table_SummaryPI[[#This Row],[Size]],\"#,##0.00\"),\" \",Table_SummaryPI[[#This Row],[SizeUnit]]),\"\")","v":""},{"$f":"SUBSTITUTE(Table_PI[[#This Row],[Measure]],\"     \",\"\",1)","v":""},{"$f":"IF(Table_PI[[#This Row],[List 1]]<>\"\",Table_PI[[#This Row],[List 1]],\"\")","v":""},{"$f":"IF(Table_PI[[#This Row],[List 2]]<>\"\",Table_PI[[#This Row],[List 2]],\"\")","v":""},{"$f":"IF(Table_PI[[#This Row],[List 3]]<>\"\",Table_PI[[#This Row],[List 3]],\"\")","v":""},{"$f":"IF(Table_PI[[#This Row],[Manufacturer]]=\"\",\"\",Table_PI[[#This Row],[Manufacturer]])","v":""},{"$f":"IF(Table_PI[[#This Row],[Model Number]]=\"\",\"\",Table_PI[[#This Row],[Model Number]])","v":""},{"$f":"IF(Table_PI[[#This Row],[Serial Number(s)]]=\"\",\"\",Table_PI[[#This Row],[Serial Number(s)]])","v":""},null,{"$f":"IF(Table_PI[[#This Row],[Size]]=\"\",\"\",Table_PI[[#This Row],[Size]])","v":""},null,null,{"$f":"IF(Table_PI[[#This Row],[Input 1]]<>\"\",Table_PI[[#This Row],[Input 1]],\"\")","v":""},null,null,{"$f":"IF(Table_PI[[#This Row],[Input 2]]<>\"\",Table_PI[[#This Row],[Input 2]],\"\")","v":""},null,null,{"$f":"IF(Table_PI[[#This Row],[Input 3]]<>\"\",Table_PI[[#This Row],[Input 3]],\"\")","v":""},null,null,{"$f":"IF(Table_PI[[#This Row],[Input 4]]<>\"\",Table_PI[[#This Row],[Input 4]],\"\")","v":""},null,null,{"$f":"IF(Table_PI[[#This Row],[Input 4]]<>\"\",Table_PI[[#This Row],[Input 4]],\"\")","v":""},null,null,{"$f":"IF(Table_PI[[#This Row],[Input 4]]<>\"\",Table_PI[[#This Row],[Input 4]],\"\")","v":""},{"$f":"IF(Table_PI[[#This Row],[Quantity]]=\"\",\"\",Table_PI[[#This Row],[Quantity]])","v":""},{"$f":"IF(Table_PI[[#This Row],[Notes]]=\"\",\"\",Table_PI[[#This Row],[Notes]])","v":""},{"$f":"IF(OR(Table_PI[[#This Row],[Hide: Baseline kWh]]=\"\",Table_PI[[#This Row],[Hide: Baseline kWh]]=0,ISTEXT(Table_PI[[#This Row],[Hide: Baseline kWh]])),\"\",Table_PI[[#This Row],[Hide: Baseline kWh]])","v":""},{"$f":"IF(OR(Table_PI[[#This Row],[Hide: Baseline kW]]=\"\",Table_PI[[#This Row],[Hide: Baseline kW]]=0,ISTEXT(Table_PI[[#This Row],[Hide: Baseline kW]])),\"\",Table_PI[[#This Row],[Hide: Baseline kW]])","v":""},{"$f":"IF(OR(Table_PI[[#This Row],[Hide: Proposed kWh]]=\"\",Table_PI[[#This Row],[Hide: Proposed kWh]]=0,ISTEXT(Table_PI[[#This Row],[Hide: Proposed kWh]])),\"\",Table_PI[[#This Row],[Hide: Proposed kWh]])","v":""},{"$f":"IF(OR(Table_PI[[#This Row],[Hide: Proposed kW]]=\"\",Table_PI[[#This Row],[Hide: Proposed kW]]=0,ISTEXT(Table_PI[[#This Row],[Hide: Proposed kW]])),\"\",Table_PI[[#This Row],[Hide: Proposed kW]])","v":""},null,null,{"$f":"IF(OR(Table_PI[[#This Row],[Hide: Rebate]]=\"\",Table_PI[[#This Row],[Hide: Rebate]]=0,ISTEXT(Table_PI[[#This Row],[Hide: Rebate]])),\"\",Table_PI[[#This Row],[Hide: Rebate]])","v":""},null,{"$f":"IF(OR(Table_PI[[#This Row],[Hide: Incremental Cost]]=\"\",Table_PI[[#This Row],[Hide: Incremental Cost]]=0,ISTEXT(Table_PI[[#This Row],[Hide: Incremental Cost]])),\"\",Table_PI[[#This Row],[Hide: Incremental Cost]])","v":""},{"$f":"IFERROR(IF(Table_SummaryPI[[#This Row],[Incentive_Customer]]=\"\",\"\",ROUND(Table_SummaryPI[[#This Row],[Incentive_Customer]]/$AM$401*'Customer Information'!$BC$21,2)),0)","v":""},{"$f":"IF(OR(Table_PI[[#This Row],[Annual kWh]]=\"\",Table_PI[[#This Row],[Annual kWh]]=0,ISTEXT(Table_PI[[#This Row],[Annual kWh]])),\"\",Table_PI[[#This Row],[Annual kWh]])","v":""},{"$f":"IF(OR(Table_PI[[#This Row],[Peak kW]]=\"\",Table_PI[[#This Row],[Peak kW]]=0,ISTEXT(Table_PI[[#This Row],[Peak kW]])),\"\",Table_PI[[#This Row],[Peak kW]])","v":""},{"$f":"IF(Table_SummaryPI[[#This Row],[Line No.]]<>\"\",IF(AND(ISNUMBER(FIND(\"Chiller\",Table_SummaryPI[[#This Row],[P_MeasureOption1]],1)),Table_SummaryPI[[#This Row],[ProposedMeasureCategory]]=\"Air-Cooled (Water-Cooled Replacement)\"),$BD$29*Table_SummaryPI[[#This Row],[Size]]*Table_SummaryPI[[#This Row],[Quantity]]*Table_SummaryPI[[#This Row],[EFLHCooling]],\nIF(ISNUMBER(FIND(\"Dishwasher\",Table_SummaryPI[[#This Row],[ProposedMeasureCategory]],1)),$BH$29*Table_SummaryPI[[#This Row],[Quantity]],\nIF(ISNUMBER(FIND(\"Ice Maker\",Table_SummaryPI[[#This Row],[ProposedMeasureCategory]],1)),$BD$31*Table_SummaryPI[[#This Row],[Quantity]],\nIF(ISNUMBER(FIND(\"Spray Valve\",Table_SummaryPI[[#This Row],[ProposedMeasureCategory]],1)),$BH$31*Table_SummaryPI[[#This Row],[Quantity]],\n0)))),\"\")","v":""},{"$f":"IF(OR(Table_PI[[#This Row],[Hide: Electrification kWh]]=\"\",Table_PI[[#This Row],[Hide: Electrification kWh]]=0,ISTEXT(Table_PI[[#This Row],[Hide: Electrification kWh]])),\"\",Table_PI[[#This Row],[Hide: Electrification kWh]])","v":""},{"$f":"IF(OR(Table_PI[[#This Row],[Hide: Electrification GHG]]=\"\",Table_PI[[#This Row],[Hide: Electrification GHG]]=0,ISTEXT(Table_PI[[#This Row],[Hide: Electrification GHG]])),\"\",Table_PI[[#This Row],[Hide: Electrification GHG]])","v":""},{"$f":"IFERROR(IF(Table_SummaryPI[[#This Row],[kWhSavings]]=\"\",\"\",$BH$9*Table_SummaryPI[[#This Row],[kWhSavings]]),0)","v":""},{"$f":"IFERROR(IF(Table_SummaryPI[[#This Row],[kWhSavings]]=\"\",\"\",$BH$14*Table_SummaryPI[[#This Row],[kWhSavings]]),0)","v":""},{"$f":"IFERROR(IF(Table_SummaryPI[[#This Row],[kWhSavings]]=\"\",\"\",$BH$18*Table_SummaryPI[[#This Row],[kWhSavings]]),0)","v":""},{"$f":"IFERROR(IF(Table_SummaryPI[[#This Row],[kWhSavings]]=\"\",\"\",$BH$22*Table_SummaryPI[[#This Row],[kWhSavings]]),0)","v":""}]
[{"$f":"Table_PI[[#This Row],[Line No.]]","v":""},{"$f":"IF(Table_SummaryPI[[#This Row],[MeasureName]]<>\"\",NOT(ISTEXT(Table_PI[[#This Row],[Rebate]])),\"\")","v":""},{"$f":"IF(Table_SummaryPI[[#This Row],[MeassureCategory]]<>\"\",CONCATENATE(Table_SummaryPI[[#This Row],[MeassureCategory]],  \" - \", Table_SummaryPI[[#This Row],[ProposedMeasureCategory]],  \" - \", TEXT(Table_SummaryPI[[#This Row],[Size]],\"#,##0.00\"),\" \",Table_SummaryPI[[#This Row],[SizeUnit]]),\"\")","v":""},{"$f":"SUBSTITUTE(Table_PI[[#This Row],[Measure]],\"     \",\"\",1)","v":""},{"$f":"IF(Table_PI[[#This Row],[List 1]]<>\"\",Table_PI[[#This Row],[List 1]],\"\")","v":""},{"$f":"IF(Table_PI[[#This Row],[List 2]]<>\"\",Table_PI[[#This Row],[List 2]],\"\")","v":""},{"$f":"IF(Table_PI[[#This Row],[List 3]]<>\"\",Table_PI[[#This Row],[List 3]],\"\")","v":""},{"$f":"IF(Table_PI[[#This Row],[Manufacturer]]=\"\",\"\",Table_PI[[#This Row],[Manufacturer]])","v":""},{"$f":"IF(Table_PI[[#This Row],[Model Number]]=\"\",\"\",Table_PI[[#This Row],[Model Number]])","v":""},{"$f":"IF(Table_PI[[#This Row],[Serial Number(s)]]=\"\",\"\",Table_PI[[#This Row],[Serial Number(s)]])","v":""},null,{"$f":"IF(Table_PI[[#This Row],[Size]]=\"\",\"\",Table_PI[[#This Row],[Size]])","v":""},null,null,{"$f":"IF(Table_PI[[#This Row],[Input 1]]<>\"\",Table_PI[[#This Row],[Input 1]],\"\")","v":""},null,null,{"$f":"IF(Table_PI[[#This Row],[Input 2]]<>\"\",Table_PI[[#This Row],[Input 2]],\"\")","v":""},null,null,{"$f":"IF(Table_PI[[#This Row],[Input 3]]<>\"\",Table_PI[[#This Row],[Input 3]],\"\")","v":""},null,null,{"$f":"IF(Table_PI[[#This Row],[Input 4]]<>\"\",Table_PI[[#This Row],[Input 4]],\"\")","v":""},null,null,{"$f":"IF(Table_PI[[#This Row],[Input 4]]<>\"\",Table_PI[[#This Row],[Input 4]],\"\")","v":""},null,null,{"$f":"IF(Table_PI[[#This Row],[Input 4]]<>\"\",Table_PI[[#This Row],[Input 4]],\"\")","v":""},{"$f":"IF(Table_PI[[#This Row],[Quantity]]=\"\",\"\",Table_PI[[#This Row],[Quantity]])","v":""},{"$f":"IF(Table_PI[[#This Row],[Notes]]=\"\",\"\",Table_PI[[#This Row],[Notes]])","v":""},{"$f":"IF(OR(Table_PI[[#This Row],[Hide: Baseline kWh]]=\"\",Table_PI[[#This Row],[Hide: Baseline kWh]]=0,ISTEXT(Table_PI[[#This Row],[Hide: Baseline kWh]])),\"\",Table_PI[[#This Row],[Hide: Baseline kWh]])","v":""},{"$f":"IF(OR(Table_PI[[#This Row],[Hide: Baseline kW]]=\"\",Table_PI[[#This Row],[Hide: Baseline kW]]=0,ISTEXT(Table_PI[[#This Row],[Hide: Baseline kW]])),\"\",Table_PI[[#This Row],[Hide: Baseline kW]])","v":""},{"$f":"IF(OR(Table_PI[[#This Row],[Hide: Proposed kWh]]=\"\",Table_PI[[#This Row],[Hide: Proposed kWh]]=0,ISTEXT(Table_PI[[#This Row],[Hide: Proposed kWh]])),\"\",Table_PI[[#This Row],[Hide: Proposed kWh]])","v":""},{"$f":"IF(OR(Table_PI[[#This Row],[Hide: Proposed kW]]=\"\",Table_PI[[#This Row],[Hide: Proposed kW]]=0,ISTEXT(Table_PI[[#This Row],[Hide: Proposed kW]])),\"\",Table_PI[[#This Row],[Hide: Proposed kW]])","v":""},null,null,{"$f":"IF(OR(Table_PI[[#This Row],[Hide: Rebate]]=\"\",Table_PI[[#This Row],[Hide: Rebate]]=0,ISTEXT(Table_PI[[#This Row],[Hide: Rebate]])),\"\",Table_PI[[#This Row],[Hide: Rebate]])","v":""},null,{"$f":"IF(OR(Table_PI[[#This Row],[Hide: Incremental Cost]]=\"\",Table_PI[[#This Row],[Hide: Incremental Cost]]=0,ISTEXT(Table_PI[[#This Row],[Hide: Incremental Cost]])),\"\",Table_PI[[#This Row],[Hide: Incremental Cost]])","v":""},{"$f":"IFERROR(IF(Table_SummaryPI[[#This Row],[Incentive_Customer]]=\"\",\"\",ROUND(Table_SummaryPI[[#This Row],[Incentive_Customer]]/$AM$401*'Customer Information'!$BC$21,2)),0)","v":""},{"$f":"IF(OR(Table_PI[[#This Row],[Annual kWh]]=\"\",Table_PI[[#This Row],[Annual kWh]]=0,ISTEXT(Table_PI[[#This Row],[Annual kWh]])),\"\",Table_PI[[#This Row],[Annual kWh]])","v":""},{"$f":"IF(OR(Table_PI[[#This Row],[Peak kW]]=\"\",Table_PI[[#This Row],[Peak kW]]=0,ISTEXT(Table_PI[[#This Row],[Peak kW]])),\"\",Table_PI[[#This Row],[Peak kW]])","v":""},{"$f":"IF(Table_SummaryPI[[#This Row],[Line No.]]<>\"\",IF(AND(ISNUMBER(FIND(\"Chiller\",Table_SummaryPI[[#This Row],[P_MeasureOption1]],1)),Table_SummaryPI[[#This Row],[ProposedMeasureCategory]]=\"Air-Cooled (Water-Cooled Replacement)\"),$BD$29*Table_SummaryPI[[#This Row],[Size]]*Table_SummaryPI[[#This Row],[Quantity]]*Table_SummaryPI[[#This Row],[EFLHCooling]],\nIF(ISNUMBER(FIND(\"Dishwasher\",Table_SummaryPI[[#This Row],[ProposedMeasureCategory]],1)),$BH$29*Table_SummaryPI[[#This Row],[Quantity]],\nIF(ISNUMBER(FIND(\"Ice Maker\",Table_SummaryPI[[#This Row],[ProposedMeasureCategory]],1)),$BD$31*Table_SummaryPI[[#This Row],[Quantity]],\nIF(ISNUMBER(FIND(\"Spray Valve\",Table_SummaryPI[[#This Row],[ProposedMeasureCategory]],1)),$BH$31*Table_SummaryPI[[#This Row],[Quantity]],\n0)))),\"\")","v":""},{"$f":"IF(OR(Table_PI[[#This Row],[Hide: Electrification kWh]]=\"\",Table_PI[[#This Row],[Hide: Electrification kWh]]=0,ISTEXT(Table_PI[[#This Row],[Hide: Electrification kWh]])),\"\",Table_PI[[#This Row],[Hide: Electrification kWh]])","v":""},{"$f":"IF(OR(Table_PI[[#This Row],[Hide: Electrification GHG]]=\"\",Table_PI[[#This Row],[Hide: Electrification GHG]]=0,ISTEXT(Table_PI[[#This Row],[Hide: Electrification GHG]])),\"\",Table_PI[[#This Row],[Hide: Electrification GHG]])","v":""},{"$f":"IFERROR(IF(Table_SummaryPI[[#This Row],[kWhSavings]]=\"\",\"\",$BH$9*Table_SummaryPI[[#This Row],[kWhSavings]]),0)","v":""},{"$f":"IFERROR(IF(Table_SummaryPI[[#This Row],[kWhSavings]]=\"\",\"\",$BH$14*Table_SummaryPI[[#This Row],[kWhSavings]]),0)","v":""},{"$f":"IFERROR(IF(Table_SummaryPI[[#This Row],[kWhSavings]]=\"\",\"\",$BH$18*Table_SummaryPI[[#This Row],[kWhSavings]]),0)","v":""},{"$f":"IFERROR(IF(Table_SummaryPI[[#This Row],[kWhSavings]]=\"\",\"\",$BH$22*Table_SummaryPI[[#This Row],[kWhSavings]]),0)","v":""}]
[{"$f":"Table_PI[[#This Row],[Line No.]]","v":""},{"$f":"IF(Table_SummaryPI[[#This Row],[MeasureName]]<>\"\",NOT(ISTEXT(Table_PI[[#This Row],[Rebate]])),\"\")","v":""},{"$f":"IF(Table_SummaryPI[[#This Row],[MeassureCategory]]<>\"\",CONCATENATE(Table_SummaryPI[[#This Row],[MeassureCategory]],  \" - \", Table_SummaryPI[[#This Row],[ProposedMeasureCategory]],  \" - \", TEXT(Table_SummaryPI[[#This Row],[Size]],\"#,##0.00\"),\" \",Table_SummaryPI[[#This Row],[SizeUnit]]),\"\")","v":""},{"$f":"SUBSTITUTE(Table_PI[[#This Row],[Measure]],\"     \",\"\",1)","v":""},{"$f":"IF(Table_PI[[#This Row],[List 1]]<>\"\",Table_PI[[#This Row],[List 1]],\"\")","v":""},{"$f":"IF(Table_PI[[#This Row],[List 2]]<>\"\",Table_PI[[#This Row],[List 2]],\"\")","v":""},{"$f":"IF(Table_PI[[#This Row],[List 3]]<>\"\",Table_PI[[#This Row],[List 3]],\"\")","v":""},{"$f":"IF(Table_PI[[#This Row],[Manufacturer]]=\"\",\"\",Table_PI[[#This Row],[Manufacturer]])","v":""},{"$f":"IF(Table_PI[[#This Row],[Model Number]]=\"\",\"\",Table_PI[[#This Row],[Model Number]])","v":""},{"$f":"IF(Table_PI[[#This Row],[Serial Number(s)]]=\"\",\"\",Table_PI[[#This Row],[Serial Number(s)]])","v":""},null,{"$f":"IF(Table_PI[[#This Row],[Size]]=\"\",\"\",Table_PI[[#This Row],[Size]])","v":""},null,null,{"$f":"IF(Table_PI[[#This Row],[Input 1]]<>\"\",Table_PI[[#This Row],[Input 1]],\"\")","v":""},null,null,{"$f":"IF(Table_PI[[#This Row],[Input 2]]<>\"\",Table_PI[[#This Row],[Input 2]],\"\")","v":""},null,null,{"$f":"IF(Table_PI[[#This Row],[Input 3]]<>\"\",Table_PI[[#This Row],[Input 3]],\"\")","v":""},null,null,{"$f":"IF(Table_PI[[#This Row],[Input 4]]<>\"\",Table_PI[[#This Row],[Input 4]],\"\")","v":""},null,null,{"$f":"IF(Table_PI[[#This Row],[Input 4]]<>\"\",Table_PI[[#This Row],[Input 4]],\"\")","v":""},null,null,{"$f":"IF(Table_PI[[#This Row],[Input 4]]<>\"\",Table_PI[[#This Row],[Input 4]],\"\")","v":""},{"$f":"IF(Table_PI[[#This Row],[Quantity]]=\"\",\"\",Table_PI[[#This Row],[Quantity]])","v":""},{"$f":"IF(Table_PI[[#This Row],[Notes]]=\"\",\"\",Table_PI[[#This Row],[Notes]])","v":""},{"$f":"IF(OR(Table_PI[[#This Row],[Hide: Baseline kWh]]=\"\",Table_PI[[#This Row],[Hide: Baseline kWh]]=0,ISTEXT(Table_PI[[#This Row],[Hide: Baseline kWh]])),\"\",Table_PI[[#This Row],[Hide: Baseline kWh]])","v":""},{"$f":"IF(OR(Table_PI[[#This Row],[Hide: Baseline kW]]=\"\",Table_PI[[#This Row],[Hide: Baseline kW]]=0,ISTEXT(Table_PI[[#This Row],[Hide: Baseline kW]])),\"\",Table_PI[[#This Row],[Hide: Baseline kW]])","v":""},{"$f":"IF(OR(Table_PI[[#This Row],[Hide: Proposed kWh]]=\"\",Table_PI[[#This Row],[Hide: Proposed kWh]]=0,ISTEXT(Table_PI[[#This Row],[Hide: Proposed kWh]])),\"\",Table_PI[[#This Row],[Hide: Proposed kWh]])","v":""},{"$f":"IF(OR(Table_PI[[#This Row],[Hide: Proposed kW]]=\"\",Table_PI[[#This Row],[Hide: Proposed kW]]=0,ISTEXT(Table_PI[[#This Row],[Hide: Proposed kW]])),\"\",Table_PI[[#This Row],[Hide: Proposed kW]])","v":""},null,null,{"$f":"IF(OR(Table_PI[[#This Row],[Hide: Rebate]]=\"\",Table_PI[[#This Row],[Hide: Rebate]]=0,ISTEXT(Table_PI[[#This Row],[Hide: Rebate]])),\"\",Table_PI[[#This Row],[Hide: Rebate]])","v":""},null,{"$f":"IF(OR(Table_PI[[#This Row],[Hide: Incremental Cost]]=\"\",Table_PI[[#This Row],[Hide: Incremental Cost]]=0,ISTEXT(Table_PI[[#This Row],[Hide: Incremental Cost]])),\"\",Table_PI[[#This Row],[Hide: Incremental Cost]])","v":""},{"$f":"IFERROR(IF(Table_SummaryPI[[#This Row],[Incentive_Customer]]=\"\",\"\",ROUND(Table_SummaryPI[[#This Row],[Incentive_Customer]]/$AM$401*'Customer Information'!$BC$21,2)),0)","v":""},{"$f":"IF(OR(Table_PI[[#This Row],[Annual kWh]]=\"\",Table_PI[[#This Row],[Annual kWh]]=0,ISTEXT(Table_PI[[#This Row],[Annual kWh]])),\"\",Table_PI[[#This Row],[Annual kWh]])","v":""},{"$f":"IF(OR(Table_PI[[#This Row],[Peak kW]]=\"\",Table_PI[[#This Row],[Peak kW]]=0,ISTEXT(Table_PI[[#This Row],[Peak kW]])),\"\",Table_PI[[#This Row],[Peak kW]])","v":""},{"$f":"IF(Table_SummaryPI[[#This Row],[Line No.]]<>\"\",IF(AND(ISNUMBER(FIND(\"Chiller\",Table_SummaryPI[[#This Row],[P_MeasureOption1]],1)),Table_SummaryPI[[#This Row],[ProposedMeasureCategory]]=\"Air-Cooled (Water-Cooled Replacement)\"),$BD$29*Table_SummaryPI[[#This Row],[Size]]*Table_SummaryPI[[#This Row],[Quantity]]*Table_SummaryPI[[#This Row],[EFLHCooling]],\nIF(ISNUMBER(FIND(\"Dishwasher\",Table_SummaryPI[[#This Row],[ProposedMeasureCategory]],1)),$BH$29*Table_SummaryPI[[#This Row],[Quantity]],\nIF(ISNUMBER(FIND(\"Ice Maker\",Table_SummaryPI[[#This Row],[ProposedMeasureCategory]],1)),$BD$31*Table_SummaryPI[[#This Row],[Quantity]],\nIF(ISNUMBER(FIND(\"Spray Valve\",Table_SummaryPI[[#This Row],[ProposedMeasureCategory]],1)),$BH$31*Table_SummaryPI[[#This Row],[Quantity]],\n0)))),\"\")","v":""},{"$f":"IF(OR(Table_PI[[#This Row],[Hide: Electrification kWh]]=\"\",Table_PI[[#This Row],[Hide: Electrification kWh]]=0,ISTEXT(Table_PI[[#This Row],[Hide: Electrification kWh]])),\"\",Table_PI[[#This Row],[Hide: Electrification kWh]])","v":""},{"$f":"IF(OR(Table_PI[[#This Row],[Hide: Electrification GHG]]=\"\",Table_PI[[#This Row],[Hide: Electrification GHG]]=0,ISTEXT(Table_PI[[#This Row],[Hide: Electrification GHG]])),\"\",Table_PI[[#This Row],[Hide: Electrification GHG]])","v":""},{"$f":"IFERROR(IF(Table_SummaryPI[[#This Row],[kWhSavings]]=\"\",\"\",$BH$9*Table_SummaryPI[[#This Row],[kWhSavings]]),0)","v":""},{"$f":"IFERROR(IF(Table_SummaryPI[[#This Row],[kWhSavings]]=\"\",\"\",$BH$14*Table_SummaryPI[[#This Row],[kWhSavings]]),0)","v":""},{"$f":"IFERROR(IF(Table_SummaryPI[[#This Row],[kWhSavings]]=\"\",\"\",$BH$18*Table_SummaryPI[[#This Row],[kWhSavings]]),0)","v":""},{"$f":"IFERROR(IF(Table_SummaryPI[[#This Row],[kWhSavings]]=\"\",\"\",$BH$22*Table_SummaryPI[[#This Row],[kWhSavings]]),0)","v":""}]
[{"$f":"Table_PI[[#This Row],[Line No.]]","v":""},{"$f":"IF(Table_SummaryPI[[#This Row],[MeasureName]]<>\"\",NOT(ISTEXT(Table_PI[[#This Row],[Rebate]])),\"\")","v":""},{"$f":"IF(Table_SummaryPI[[#This Row],[MeassureCategory]]<>\"\",CONCATENATE(Table_SummaryPI[[#This Row],[MeassureCategory]],  \" - \", Table_SummaryPI[[#This Row],[ProposedMeasureCategory]],  \" - \", TEXT(Table_SummaryPI[[#This Row],[Size]],\"#,##0.00\"),\" \",Table_SummaryPI[[#This Row],[SizeUnit]]),\"\")","v":""},{"$f":"SUBSTITUTE(Table_PI[[#This Row],[Measure]],\"     \",\"\",1)","v":""},{"$f":"IF(Table_PI[[#This Row],[List 1]]<>\"\",Table_PI[[#This Row],[List 1]],\"\")","v":""},{"$f":"IF(Table_PI[[#This Row],[List 2]]<>\"\",Table_PI[[#This Row],[List 2]],\"\")","v":""},{"$f":"IF(Table_PI[[#This Row],[List 3]]<>\"\",Table_PI[[#This Row],[List 3]],\"\")","v":""},{"$f":"IF(Table_PI[[#This Row],[Manufacturer]]=\"\",\"\",Table_PI[[#This Row],[Manufacturer]])","v":""},{"$f":"IF(Table_PI[[#This Row],[Model Number]]=\"\",\"\",Table_PI[[#This Row],[Model Number]])","v":""},{"$f":"IF(Table_PI[[#This Row],[Serial Number(s)]]=\"\",\"\",Table_PI[[#This Row],[Serial Number(s)]])","v":""},null,{"$f":"IF(Table_PI[[#This Row],[Size]]=\"\",\"\",Table_PI[[#This Row],[Size]])","v":""},null,null,{"$f":"IF(Table_PI[[#This Row],[Input 1]]<>\"\",Table_PI[[#This Row],[Input 1]],\"\")","v":""},null,null,{"$f":"IF(Table_PI[[#This Row],[Input 2]]<>\"\",Table_PI[[#This Row],[Input 2]],\"\")","v":""},null,null,{"$f":"IF(Table_PI[[#This Row],[Input 3]]<>\"\",Table_PI[[#This Row],[Input 3]],\"\")","v":""},null,null,{"$f":"IF(Table_PI[[#This Row],[Input 4]]<>\"\",Table_PI[[#This Row],[Input 4]],\"\")","v":""},null,null,{"$f":"IF(Table_PI[[#This Row],[Input 4]]<>\"\",Table_PI[[#This Row],[Input 4]],\"\")","v":""},null,null,{"$f":"IF(Table_PI[[#This Row],[Input 4]]<>\"\",Table_PI[[#This Row],[Input 4]],\"\")","v":""},{"$f":"IF(Table_PI[[#This Row],[Quantity]]=\"\",\"\",Table_PI[[#This Row],[Quantity]])","v":""},{"$f":"IF(Table_PI[[#This Row],[Notes]]=\"\",\"\",Table_PI[[#This Row],[Notes]])","v":""},{"$f":"IF(OR(Table_PI[[#This Row],[Hide: Baseline kWh]]=\"\",Table_PI[[#This Row],[Hide: Baseline kWh]]=0,ISTEXT(Table_PI[[#This Row],[Hide: Baseline kWh]])),\"\",Table_PI[[#This Row],[Hide: Baseline kWh]])","v":""},{"$f":"IF(OR(Table_PI[[#This Row],[Hide: Baseline kW]]=\"\",Table_PI[[#This Row],[Hide: Baseline kW]]=0,ISTEXT(Table_PI[[#This Row],[Hide: Baseline kW]])),\"\",Table_PI[[#This Row],[Hide: Baseline kW]])","v":""},{"$f":"IF(OR(Table_PI[[#This Row],[Hide: Proposed kWh]]=\"\",Table_PI[[#This Row],[Hide: Proposed kWh]]=0,ISTEXT(Table_PI[[#This Row],[Hide: Proposed kWh]])),\"\",Table_PI[[#This Row],[Hide: Proposed kWh]])","v":""},{"$f":"IF(OR(Table_PI[[#This Row],[Hide: Proposed kW]]=\"\",Table_PI[[#This Row],[Hide: Proposed kW]]=0,ISTEXT(Table_PI[[#This Row],[Hide: Proposed kW]])),\"\",Table_PI[[#This Row],[Hide: Proposed kW]])","v":""},null,null,{"$f":"IF(OR(Table_PI[[#This Row],[Hide: Rebate]]=\"\",Table_PI[[#This Row],[Hide: Rebate]]=0,ISTEXT(Table_PI[[#This Row],[Hide: Rebate]])),\"\",Table_PI[[#This Row],[Hide: Rebate]])","v":""},null,{"$f":"IF(OR(Table_PI[[#This Row],[Hide: Incremental Cost]]=\"\",Table_PI[[#This Row],[Hide: Incremental Cost]]=0,ISTEXT(Table_PI[[#This Row],[Hide: Incremental Cost]])),\"\",Table_PI[[#This Row],[Hide: Incremental Cost]])","v":""},{"$f":"IFERROR(IF(Table_SummaryPI[[#This Row],[Incentive_Customer]]=\"\",\"\",ROUND(Table_SummaryPI[[#This Row],[Incentive_Customer]]/$AM$401*'Customer Information'!$BC$21,2)),0)","v":""},{"$f":"IF(OR(Table_PI[[#This Row],[Annual kWh]]=\"\",Table_PI[[#This Row],[Annual kWh]]=0,ISTEXT(Table_PI[[#This Row],[Annual kWh]])),\"\",Table_PI[[#This Row],[Annual kWh]])","v":""},{"$f":"IF(OR(Table_PI[[#This Row],[Peak kW]]=\"\",Table_PI[[#This Row],[Peak kW]]=0,ISTEXT(Table_PI[[#This Row],[Peak kW]])),\"\",Table_PI[[#This Row],[Peak kW]])","v":""},{"$f":"IF(Table_SummaryPI[[#This Row],[Line No.]]<>\"\",IF(AND(ISNUMBER(FIND(\"Chiller\",Table_SummaryPI[[#This Row],[P_MeasureOption1]],1)),Table_SummaryPI[[#This Row],[ProposedMeasureCategory]]=\"Air-Cooled (Water-Cooled Replacement)\"),$BD$29*Table_SummaryPI[[#This Row],[Size]]*Table_SummaryPI[[#This Row],[Quantity]]*Table_SummaryPI[[#This Row],[EFLHCooling]],\nIF(ISNUMBER(FIND(\"Dishwasher\",Table_SummaryPI[[#This Row],[ProposedMeasureCategory]],1)),$BH$29*Table_SummaryPI[[#This Row],[Quantity]],\nIF(ISNUMBER(FIND(\"Ice Maker\",Table_SummaryPI[[#This Row],[ProposedMeasureCategory]],1)),$BD$31*Table_SummaryPI[[#This Row],[Quantity]],\nIF(ISNUMBER(FIND(\"Spray Valve\",Table_SummaryPI[[#This Row],[ProposedMeasureCategory]],1)),$BH$31*Table_SummaryPI[[#This Row],[Quantity]],\n0)))),\"\")","v":""},{"$f":"IF(OR(Table_PI[[#This Row],[Hide: Electrification kWh]]=\"\",Table_PI[[#This Row],[Hide: Electrification kWh]]=0,ISTEXT(Table_PI[[#This Row],[Hide: Electrification kWh]])),\"\",Table_PI[[#This Row],[Hide: Electrification kWh]])","v":""},{"$f":"IF(OR(Table_PI[[#This Row],[Hide: Electrification GHG]]=\"\",Table_PI[[#This Row],[Hide: Electrification GHG]]=0,ISTEXT(Table_PI[[#This Row],[Hide: Electrification GHG]])),\"\",Table_PI[[#This Row],[Hide: Electrification GHG]])","v":""},{"$f":"IFERROR(IF(Table_SummaryPI[[#This Row],[kWhSavings]]=\"\",\"\",$BH$9*Table_SummaryPI[[#This Row],[kWhSavings]]),0)","v":""},{"$f":"IFERROR(IF(Table_SummaryPI[[#This Row],[kWhSavings]]=\"\",\"\",$BH$14*Table_SummaryPI[[#This Row],[kWhSavings]]),0)","v":""},{"$f":"IFERROR(IF(Table_SummaryPI[[#This Row],[kWhSavings]]=\"\",\"\",$BH$18*Table_SummaryPI[[#This Row],[kWhSavings]]),0)","v":""},{"$f":"IFERROR(IF(Table_SummaryPI[[#This Row],[kWhSavings]]=\"\",\"\",$BH$22*Table_SummaryPI[[#This Row],[kWhSavings]]),0)","v":""}]
[{"$f":"Table_PI[[#This Row],[Line No.]]","v":""},{"$f":"IF(Table_SummaryPI[[#This Row],[MeasureName]]<>\"\",NOT(ISTEXT(Table_PI[[#This Row],[Rebate]])),\"\")","v":""},{"$f":"IF(Table_SummaryPI[[#This Row],[MeassureCategory]]<>\"\",CONCATENATE(Table_SummaryPI[[#This Row],[MeassureCategory]],  \" - \", Table_SummaryPI[[#This Row],[ProposedMeasureCategory]],  \" - \", TEXT(Table_SummaryPI[[#This Row],[Size]],\"#,##0.00\"),\" \",Table_SummaryPI[[#This Row],[SizeUnit]]),\"\")","v":""},{"$f":"SUBSTITUTE(Table_PI[[#This Row],[Measure]],\"     \",\"\",1)","v":""},{"$f":"IF(Table_PI[[#This Row],[List 1]]<>\"\",Table_PI[[#This Row],[List 1]],\"\")","v":""},{"$f":"IF(Table_PI[[#This Row],[List 2]]<>\"\",Table_PI[[#This Row],[List 2]],\"\")","v":""},{"$f":"IF(Table_PI[[#This Row],[List 3]]<>\"\",Table_PI[[#This Row],[List 3]],\"\")","v":""},{"$f":"IF(Table_PI[[#This Row],[Manufacturer]]=\"\",\"\",Table_PI[[#This Row],[Manufacturer]])","v":""},{"$f":"IF(Table_PI[[#This Row],[Model Number]]=\"\",\"\",Table_PI[[#This Row],[Model Number]])","v":""},{"$f":"IF(Table_PI[[#This Row],[Serial Number(s)]]=\"\",\"\",Table_PI[[#This Row],[Serial Number(s)]])","v":""},null,{"$f":"IF(Table_PI[[#This Row],[Size]]=\"\",\"\",Table_PI[[#This Row],[Size]])","v":""},null,null,{"$f":"IF(Table_PI[[#This Row],[Input 1]]<>\"\",Table_PI[[#This Row],[Input 1]],\"\")","v":""},null,null,{"$f":"IF(Table_PI[[#This Row],[Input 2]]<>\"\",Table_PI[[#This Row],[Input 2]],\"\")","v":""},null,null,{"$f":"IF(Table_PI[[#This Row],[Input 3]]<>\"\",Table_PI[[#This Row],[Input 3]],\"\")","v":""},null,null,{"$f":"IF(Table_PI[[#This Row],[Input 4]]<>\"\",Table_PI[[#This Row],[Input 4]],\"\")","v":""},null,null,{"$f":"IF(Table_PI[[#This Row],[Input 4]]<>\"\",Table_PI[[#This Row],[Input 4]],\"\")","v":""},null,null,{"$f":"IF(Table_PI[[#This Row],[Input 4]]<>\"\",Table_PI[[#This Row],[Input 4]],\"\")","v":""},{"$f":"IF(Table_PI[[#This Row],[Quantity]]=\"\",\"\",Table_PI[[#This Row],[Quantity]])","v":""},{"$f":"IF(Table_PI[[#This Row],[Notes]]=\"\",\"\",Table_PI[[#This Row],[Notes]])","v":""},{"$f":"IF(OR(Table_PI[[#This Row],[Hide: Baseline kWh]]=\"\",Table_PI[[#This Row],[Hide: Baseline kWh]]=0,ISTEXT(Table_PI[[#This Row],[Hide: Baseline kWh]])),\"\",Table_PI[[#This Row],[Hide: Baseline kWh]])","v":""},{"$f":"IF(OR(Table_PI[[#This Row],[Hide: Baseline kW]]=\"\",Table_PI[[#This Row],[Hide: Baseline kW]]=0,ISTEXT(Table_PI[[#This Row],[Hide: Baseline kW]])),\"\",Table_PI[[#This Row],[Hide: Baseline kW]])","v":""},{"$f":"IF(OR(Table_PI[[#This Row],[Hide: Proposed kWh]]=\"\",Table_PI[[#This Row],[Hide: Proposed kWh]]=0,ISTEXT(Table_PI[[#This Row],[Hide: Proposed kWh]])),\"\",Table_PI[[#This Row],[Hide: Proposed kWh]])","v":""},{"$f":"IF(OR(Table_PI[[#This Row],[Hide: Proposed kW]]=\"\",Table_PI[[#This Row],[Hide: Proposed kW]]=0,ISTEXT(Table_PI[[#This Row],[Hide: Proposed kW]])),\"\",Table_PI[[#This Row],[Hide: Proposed kW]])","v":""},null,null,{"$f":"IF(OR(Table_PI[[#This Row],[Hide: Rebate]]=\"\",Table_PI[[#This Row],[Hide: Rebate]]=0,ISTEXT(Table_PI[[#This Row],[Hide: Rebate]])),\"\",Table_PI[[#This Row],[Hide: Rebate]])","v":""},null,{"$f":"IF(OR(Table_PI[[#This Row],[Hide: Incremental Cost]]=\"\",Table_PI[[#This Row],[Hide: Incremental Cost]]=0,ISTEXT(Table_PI[[#This Row],[Hide: Incremental Cost]])),\"\",Table_PI[[#This Row],[Hide: Incremental Cost]])","v":""},{"$f":"IFERROR(IF(Table_SummaryPI[[#This Row],[Incentive_Customer]]=\"\",\"\",ROUND(Table_SummaryPI[[#This Row],[Incentive_Customer]]/$AM$401*'Customer Information'!$BC$21,2)),0)","v":""},{"$f":"IF(OR(Table_PI[[#This Row],[Annual kWh]]=\"\",Table_PI[[#This Row],[Annual kWh]]=0,ISTEXT(Table_PI[[#This Row],[Annual kWh]])),\"\",Table_PI[[#This Row],[Annual kWh]])","v":""},{"$f":"IF(OR(Table_PI[[#This Row],[Peak kW]]=\"\",Table_PI[[#This Row],[Peak kW]]=0,ISTEXT(Table_PI[[#This Row],[Peak kW]])),\"\",Table_PI[[#This Row],[Peak kW]])","v":""},{"$f":"IF(Table_SummaryPI[[#This Row],[Line No.]]<>\"\",IF(AND(ISNUMBER(FIND(\"Chiller\",Table_SummaryPI[[#This Row],[P_MeasureOption1]],1)),Table_SummaryPI[[#This Row],[ProposedMeasureCategory]]=\"Air-Cooled (Water-Cooled Replacement)\"),$BD$29*Table_SummaryPI[[#This Row],[Size]]*Table_SummaryPI[[#This Row],[Quantity]]*Table_SummaryPI[[#This Row],[EFLHCooling]],\nIF(ISNUMBER(FIND(\"Dishwasher\",Table_SummaryPI[[#This Row],[ProposedMeasureCategory]],1)),$BH$29*Table_SummaryPI[[#This Row],[Quantity]],\nIF(ISNUMBER(FIND(\"Ice Maker\",Table_SummaryPI[[#This Row],[ProposedMeasureCategory]],1)),$BD$31*Table_SummaryPI[[#This Row],[Quantity]],\nIF(ISNUMBER(FIND(\"Spray Valve\",Table_SummaryPI[[#This Row],[ProposedMeasureCategory]],1)),$BH$31*Table_SummaryPI[[#This Row],[Quantity]],\n0)))),\"\")","v":""},{"$f":"IF(OR(Table_PI[[#This Row],[Hide: Electrification kWh]]=\"\",Table_PI[[#This Row],[Hide: Electrification kWh]]=0,ISTEXT(Table_PI[[#This Row],[Hide: Electrification kWh]])),\"\",Table_PI[[#This Row],[Hide: Electrification kWh]])","v":""},{"$f":"IF(OR(Table_PI[[#This Row],[Hide: Electrification GHG]]=\"\",Table_PI[[#This Row],[Hide: Electrification GHG]]=0,ISTEXT(Table_PI[[#This Row],[Hide: Electrification GHG]])),\"\",Table_PI[[#This Row],[Hide: Electrification GHG]])","v":""},{"$f":"IFERROR(IF(Table_SummaryPI[[#This Row],[kWhSavings]]=\"\",\"\",$BH$9*Table_SummaryPI[[#This Row],[kWhSavings]]),0)","v":""},{"$f":"IFERROR(IF(Table_SummaryPI[[#This Row],[kWhSavings]]=\"\",\"\",$BH$14*Table_SummaryPI[[#This Row],[kWhSavings]]),0)","v":""},{"$f":"IFERROR(IF(Table_SummaryPI[[#This Row],[kWhSavings]]=\"\",\"\",$BH$18*Table_SummaryPI[[#This Row],[kWhSavings]]),0)","v":""},{"$f":"IFERROR(IF(Table_SummaryPI[[#This Row],[kWhSavings]]=\"\",\"\",$BH$22*Table_SummaryPI[[#This Row],[kWhSavings]]),0)","v":""}]
[{"$f":"Table_PI[[#This Row],[Line No.]]","v":""},{"$f":"IF(Table_SummaryPI[[#This Row],[MeasureName]]<>\"\",NOT(ISTEXT(Table_PI[[#This Row],[Rebate]])),\"\")","v":""},{"$f":"IF(Table_SummaryPI[[#This Row],[MeassureCategory]]<>\"\",CONCATENATE(Table_SummaryPI[[#This Row],[MeassureCategory]],  \" - \", Table_SummaryPI[[#This Row],[ProposedMeasureCategory]],  \" - \", TEXT(Table_SummaryPI[[#This Row],[Size]],\"#,##0.00\"),\" \",Table_SummaryPI[[#This Row],[SizeUnit]]),\"\")","v":""},{"$f":"SUBSTITUTE(Table_PI[[#This Row],[Measure]],\"     \",\"\",1)","v":""},{"$f":"IF(Table_PI[[#This Row],[List 1]]<>\"\",Table_PI[[#This Row],[List 1]],\"\")","v":""},{"$f":"IF(Table_PI[[#This Row],[List 2]]<>\"\",Table_PI[[#This Row],[List 2]],\"\")","v":""},{"$f":"IF(Table_PI[[#This Row],[List 3]]<>\"\",Table_PI[[#This Row],[List 3]],\"\")","v":""},{"$f":"IF(Table_PI[[#This Row],[Manufacturer]]=\"\",\"\",Table_PI[[#This Row],[Manufacturer]])","v":""},{"$f":"IF(Table_PI[[#This Row],[Model Number]]=\"\",\"\",Table_PI[[#This Row],[Model Number]])","v":""},{"$f":"IF(Table_PI[[#This Row],[Serial Number(s)]]=\"\",\"\",Table_PI[[#This Row],[Serial Number(s)]])","v":""},null,{"$f":"IF(Table_PI[[#This Row],[Size]]=\"\",\"\",Table_PI[[#This Row],[Size]])","v":""},null,null,{"$f":"IF(Table_PI[[#This Row],[Input 1]]<>\"\",Table_PI[[#This Row],[Input 1]],\"\")","v":""},null,null,{"$f":"IF(Table_PI[[#This Row],[Input 2]]<>\"\",Table_PI[[#This Row],[Input 2]],\"\")","v":""},null,null,{"$f":"IF(Table_PI[[#This Row],[Input 3]]<>\"\",Table_PI[[#This Row],[Input 3]],\"\")","v":""},null,null,{"$f":"IF(Table_PI[[#This Row],[Input 4]]<>\"\",Table_PI[[#This Row],[Input 4]],\"\")","v":""},null,null,{"$f":"IF(Table_PI[[#This Row],[Input 4]]<>\"\",Table_PI[[#This Row],[Input 4]],\"\")","v":""},null,null,{"$f":"IF(Table_PI[[#This Row],[Input 4]]<>\"\",Table_PI[[#This Row],[Input 4]],\"\")","v":""},{"$f":"IF(Table_PI[[#This Row],[Quantity]]=\"\",\"\",Table_PI[[#This Row],[Quantity]])","v":""},{"$f":"IF(Table_PI[[#This Row],[Notes]]=\"\",\"\",Table_PI[[#This Row],[Notes]])","v":""},{"$f":"IF(OR(Table_PI[[#This Row],[Hide: Baseline kWh]]=\"\",Table_PI[[#This Row],[Hide: Baseline kWh]]=0,ISTEXT(Table_PI[[#This Row],[Hide: Baseline kWh]])),\"\",Table_PI[[#This Row],[Hide: Baseline kWh]])","v":""},{"$f":"IF(OR(Table_PI[[#This Row],[Hide: Baseline kW]]=\"\",Table_PI[[#This Row],[Hide: Baseline kW]]=0,ISTEXT(Table_PI[[#This Row],[Hide: Baseline kW]])),\"\",Table_PI[[#This Row],[Hide: Baseline kW]])","v":""},{"$f":"IF(OR(Table_PI[[#This Row],[Hide: Proposed kWh]]=\"\",Table_PI[[#This Row],[Hide: Proposed kWh]]=0,ISTEXT(Table_PI[[#This Row],[Hide: Proposed kWh]])),\"\",Table_PI[[#This Row],[Hide: Proposed kWh]])","v":""},{"$f":"IF(OR(Table_PI[[#This Row],[Hide: Proposed kW]]=\"\",Table_PI[[#This Row],[Hide: Proposed kW]]=0,ISTEXT(Table_PI[[#This Row],[Hide: Proposed kW]])),\"\",Table_PI[[#This Row],[Hide: Proposed kW]])","v":""},null,null,{"$f":"IF(OR(Table_PI[[#This Row],[Hide: Rebate]]=\"\",Table_PI[[#This Row],[Hide: Rebate]]=0,ISTEXT(Table_PI[[#This Row],[Hide: Rebate]])),\"\",Table_PI[[#This Row],[Hide: Rebate]])","v":""},null,{"$f":"IF(OR(Table_PI[[#This Row],[Hide: Incremental Cost]]=\"\",Table_PI[[#This Row],[Hide: Incremental Cost]]=0,ISTEXT(Table_PI[[#This Row],[Hide: Incremental Cost]])),\"\",Table_PI[[#This Row],[Hide: Incremental Cost]])","v":""},{"$f":"IFERROR(IF(Table_SummaryPI[[#This Row],[Incentive_Customer]]=\"\",\"\",ROUND(Table_SummaryPI[[#This Row],[Incentive_Customer]]/$AM$401*'Customer Information'!$BC$21,2)),0)","v":""},{"$f":"IF(OR(Table_PI[[#This Row],[Annual kWh]]=\"\",Table_PI[[#This Row],[Annual kWh]]=0,ISTEXT(Table_PI[[#This Row],[Annual kWh]])),\"\",Table_PI[[#This Row],[Annual kWh]])","v":""},{"$f":"IF(OR(Table_PI[[#This Row],[Peak kW]]=\"\",Table_PI[[#This Row],[Peak kW]]=0,ISTEXT(Table_PI[[#This Row],[Peak kW]])),\"\",Table_PI[[#This Row],[Peak kW]])","v":""},{"$f":"IF(Table_SummaryPI[[#This Row],[Line No.]]<>\"\",IF(AND(ISNUMBER(FIND(\"Chiller\",Table_SummaryPI[[#This Row],[P_MeasureOption1]],1)),Table_SummaryPI[[#This Row],[ProposedMeasureCategory]]=\"Air-Cooled (Water-Cooled Replacement)\"),$BD$29*Table_SummaryPI[[#This Row],[Size]]*Table_SummaryPI[[#This Row],[Quantity]]*Table_SummaryPI[[#This Row],[EFLHCooling]],\nIF(ISNUMBER(FIND(\"Dishwasher\",Table_SummaryPI[[#This Row],[ProposedMeasureCategory]],1)),$BH$29*Table_SummaryPI[[#This Row],[Quantity]],\nIF(ISNUMBER(FIND(\"Ice Maker\",Table_SummaryPI[[#This Row],[ProposedMeasureCategory]],1)),$BD$31*Table_SummaryPI[[#This Row],[Quantity]],\nIF(ISNUMBER(FIND(\"Spray Valve\",Table_SummaryPI[[#This Row],[ProposedMeasureCategory]],1)),$BH$31*Table_SummaryPI[[#This Row],[Quantity]],\n0)))),\"\")","v":""},{"$f":"IF(OR(Table_PI[[#This Row],[Hide: Electrification kWh]]=\"\",Table_PI[[#This Row],[Hide: Electrification kWh]]=0,ISTEXT(Table_PI[[#This Row],[Hide: Electrification kWh]])),\"\",Table_PI[[#This Row],[Hide: Electrification kWh]])","v":""},{"$f":"IF(OR(Table_PI[[#This Row],[Hide: Electrification GHG]]=\"\",Table_PI[[#This Row],[Hide: Electrification GHG]]=0,ISTEXT(Table_PI[[#This Row],[Hide: Electrification GHG]])),\"\",Table_PI[[#This Row],[Hide: Electrification GHG]])","v":""},{"$f":"IFERROR(IF(Table_SummaryPI[[#This Row],[kWhSavings]]=\"\",\"\",$BH$9*Table_SummaryPI[[#This Row],[kWhSavings]]),0)","v":""},{"$f":"IFERROR(IF(Table_SummaryPI[[#This Row],[kWhSavings]]=\"\",\"\",$BH$14*Table_SummaryPI[[#This Row],[kWhSavings]]),0)","v":""},{"$f":"IFERROR(IF(Table_SummaryPI[[#This Row],[kWhSavings]]=\"\",\"\",$BH$18*Table_SummaryPI[[#This Row],[kWhSavings]]),0)","v":""},{"$f":"IFERROR(IF(Table_SummaryPI[[#This Row],[kWhSavings]]=\"\",\"\",$BH$22*Table_SummaryPI[[#This Row],[kWhSavings]]),0)","v":""}]
[{"$f":"Table_PI[[#This Row],[Line No.]]","v":""},{"$f":"IF(Table_SummaryPI[[#This Row],[MeasureName]]<>\"\",NOT(ISTEXT(Table_PI[[#This Row],[Rebate]])),\"\")","v":""},{"$f":"IF(Table_SummaryPI[[#This Row],[MeassureCategory]]<>\"\",CONCATENATE(Table_SummaryPI[[#This Row],[MeassureCategory]],  \" - \", Table_SummaryPI[[#This Row],[ProposedMeasureCategory]],  \" - \", TEXT(Table_SummaryPI[[#This Row],[Size]],\"#,##0.00\"),\" \",Table_SummaryPI[[#This Row],[SizeUnit]]),\"\")","v":""},{"$f":"SUBSTITUTE(Table_PI[[#This Row],[Measure]],\"     \",\"\",1)","v":""},{"$f":"IF(Table_PI[[#This Row],[List 1]]<>\"\",Table_PI[[#This Row],[List 1]],\"\")","v":""},{"$f":"IF(Table_PI[[#This Row],[List 2]]<>\"\",Table_PI[[#This Row],[List 2]],\"\")","v":""},{"$f":"IF(Table_PI[[#This Row],[List 3]]<>\"\",Table_PI[[#This Row],[List 3]],\"\")","v":""},{"$f":"IF(Table_PI[[#This Row],[Manufacturer]]=\"\",\"\",Table_PI[[#This Row],[Manufacturer]])","v":""},{"$f":"IF(Table_PI[[#This Row],[Model Number]]=\"\",\"\",Table_PI[[#This Row],[Model Number]])","v":""},{"$f":"IF(Table_PI[[#This Row],[Serial Number(s)]]=\"\",\"\",Table_PI[[#This Row],[Serial Number(s)]])","v":""},null,{"$f":"IF(Table_PI[[#This Row],[Size]]=\"\",\"\",Table_PI[[#This Row],[Size]])","v":""},null,null,{"$f":"IF(Table_PI[[#This Row],[Input 1]]<>\"\",Table_PI[[#This Row],[Input 1]],\"\")","v":""},null,null,{"$f":"IF(Table_PI[[#This Row],[Input 2]]<>\"\",Table_PI[[#This Row],[Input 2]],\"\")","v":""},null,null,{"$f":"IF(Table_PI[[#This Row],[Input 3]]<>\"\",Table_PI[[#This Row],[Input 3]],\"\")","v":""},null,null,{"$f":"IF(Table_PI[[#This Row],[Input 4]]<>\"\",Table_PI[[#This Row],[Input 4]],\"\")","v":""},null,null,{"$f":"IF(Table_PI[[#This Row],[Input 4]]<>\"\",Table_PI[[#This Row],[Input 4]],\"\")","v":""},null,null,{"$f":"IF(Table_PI[[#This Row],[Input 4]]<>\"\",Table_PI[[#This Row],[Input 4]],\"\")","v":""},{"$f":"IF(Table_PI[[#This Row],[Quantity]]=\"\",\"\",Table_PI[[#This Row],[Quantity]])","v":""},{"$f":"IF(Table_PI[[#This Row],[Notes]]=\"\",\"\",Table_PI[[#This Row],[Notes]])","v":""},{"$f":"IF(OR(Table_PI[[#This Row],[Hide: Baseline kWh]]=\"\",Table_PI[[#This Row],[Hide: Baseline kWh]]=0,ISTEXT(Table_PI[[#This Row],[Hide: Baseline kWh]])),\"\",Table_PI[[#This Row],[Hide: Baseline kWh]])","v":""},{"$f":"IF(OR(Table_PI[[#This Row],[Hide: Baseline kW]]=\"\",Table_PI[[#This Row],[Hide: Baseline kW]]=0,ISTEXT(Table_PI[[#This Row],[Hide: Baseline kW]])),\"\",Table_PI[[#This Row],[Hide: Baseline kW]])","v":""},{"$f":"IF(OR(Table_PI[[#This Row],[Hide: Proposed kWh]]=\"\",Table_PI[[#This Row],[Hide: Proposed kWh]]=0,ISTEXT(Table_PI[[#This Row],[Hide: Proposed kWh]])),\"\",Table_PI[[#This Row],[Hide: Proposed kWh]])","v":""},{"$f":"IF(OR(Table_PI[[#This Row],[Hide: Proposed kW]]=\"\",Table_PI[[#This Row],[Hide: Proposed kW]]=0,ISTEXT(Table_PI[[#This Row],[Hide: Proposed kW]])),\"\",Table_PI[[#This Row],[Hide: Proposed kW]])","v":""},null,null,{"$f":"IF(OR(Table_PI[[#This Row],[Hide: Rebate]]=\"\",Table_PI[[#This Row],[Hide: Rebate]]=0,ISTEXT(Table_PI[[#This Row],[Hide: Rebate]])),\"\",Table_PI[[#This Row],[Hide: Rebate]])","v":""},null,{"$f":"IF(OR(Table_PI[[#This Row],[Hide: Incremental Cost]]=\"\",Table_PI[[#This Row],[Hide: Incremental Cost]]=0,ISTEXT(Table_PI[[#This Row],[Hide: Incremental Cost]])),\"\",Table_PI[[#This Row],[Hide: Incremental Cost]])","v":""},{"$f":"IFERROR(IF(Table_SummaryPI[[#This Row],[Incentive_Customer]]=\"\",\"\",ROUND(Table_SummaryPI[[#This Row],[Incentive_Customer]]/$AM$401*'Customer Information'!$BC$21,2)),0)","v":""},{"$f":"IF(OR(Table_PI[[#This Row],[Annual kWh]]=\"\",Table_PI[[#This Row],[Annual kWh]]=0,ISTEXT(Table_PI[[#This Row],[Annual kWh]])),\"\",Table_PI[[#This Row],[Annual kWh]])","v":""},{"$f":"IF(OR(Table_PI[[#This Row],[Peak kW]]=\"\",Table_PI[[#This Row],[Peak kW]]=0,ISTEXT(Table_PI[[#This Row],[Peak kW]])),\"\",Table_PI[[#This Row],[Peak kW]])","v":""},{"$f":"IF(Table_SummaryPI[[#This Row],[Line No.]]<>\"\",IF(AND(ISNUMBER(FIND(\"Chiller\",Table_SummaryPI[[#This Row],[P_MeasureOption1]],1)),Table_SummaryPI[[#This Row],[ProposedMeasureCategory]]=\"Air-Cooled (Water-Cooled Replacement)\"),$BD$29*Table_SummaryPI[[#This Row],[Size]]*Table_SummaryPI[[#This Row],[Quantity]]*Table_SummaryPI[[#This Row],[EFLHCooling]],\nIF(ISNUMBER(FIND(\"Dishwasher\",Table_SummaryPI[[#This Row],[ProposedMeasureCategory]],1)),$BH$29*Table_SummaryPI[[#This Row],[Quantity]],\nIF(ISNUMBER(FIND(\"Ice Maker\",Table_SummaryPI[[#This Row],[ProposedMeasureCategory]],1)),$BD$31*Table_SummaryPI[[#This Row],[Quantity]],\nIF(ISNUMBER(FIND(\"Spray Valve\",Table_SummaryPI[[#This Row],[ProposedMeasureCategory]],1)),$BH$31*Table_SummaryPI[[#This Row],[Quantity]],\n0)))),\"\")","v":""},{"$f":"IF(OR(Table_PI[[#This Row],[Hide: Electrification kWh]]=\"\",Table_PI[[#This Row],[Hide: Electrification kWh]]=0,ISTEXT(Table_PI[[#This Row],[Hide: Electrification kWh]])),\"\",Table_PI[[#This Row],[Hide: Electrification kWh]])","v":""},{"$f":"IF(OR(Table_PI[[#This Row],[Hide: Electrification GHG]]=\"\",Table_PI[[#This Row],[Hide: Electrification GHG]]=0,ISTEXT(Table_PI[[#This Row],[Hide: Electrification GHG]])),\"\",Table_PI[[#This Row],[Hide: Electrification GHG]])","v":""},{"$f":"IFERROR(IF(Table_SummaryPI[[#This Row],[kWhSavings]]=\"\",\"\",$BH$9*Table_SummaryPI[[#This Row],[kWhSavings]]),0)","v":""},{"$f":"IFERROR(IF(Table_SummaryPI[[#This Row],[kWhSavings]]=\"\",\"\",$BH$14*Table_SummaryPI[[#This Row],[kWhSavings]]),0)","v":""},{"$f":"IFERROR(IF(Table_SummaryPI[[#This Row],[kWhSavings]]=\"\",\"\",$BH$18*Table_SummaryPI[[#This Row],[kWhSavings]]),0)","v":""},{"$f":"IFERROR(IF(Table_SummaryPI[[#This Row],[kWhSavings]]=\"\",\"\",$BH$22*Table_SummaryPI[[#This Row],[kWhSavings]]),0)","v":""}]
[{"$f":"Table_PI[[#This Row],[Line No.]]","v":""},{"$f":"IF(Table_SummaryPI[[#This Row],[MeasureName]]<>\"\",NOT(ISTEXT(Table_PI[[#This Row],[Rebate]])),\"\")","v":""},{"$f":"IF(Table_SummaryPI[[#This Row],[MeassureCategory]]<>\"\",CONCATENATE(Table_SummaryPI[[#This Row],[MeassureCategory]],  \" - \", Table_SummaryPI[[#This Row],[ProposedMeasureCategory]],  \" - \", TEXT(Table_SummaryPI[[#This Row],[Size]],\"#,##0.00\"),\" \",Table_SummaryPI[[#This Row],[SizeUnit]]),\"\")","v":""},{"$f":"SUBSTITUTE(Table_PI[[#This Row],[Measure]],\"     \",\"\",1)","v":""},{"$f":"IF(Table_PI[[#This Row],[List 1]]<>\"\",Table_PI[[#This Row],[List 1]],\"\")","v":""},{"$f":"IF(Table_PI[[#This Row],[List 2]]<>\"\",Table_PI[[#This Row],[List 2]],\"\")","v":""},{"$f":"IF(Table_PI[[#This Row],[List 3]]<>\"\",Table_PI[[#This Row],[List 3]],\"\")","v":""},{"$f":"IF(Table_PI[[#This Row],[Manufacturer]]=\"\",\"\",Table_PI[[#This Row],[Manufacturer]])","v":""},{"$f":"IF(Table_PI[[#This Row],[Model Number]]=\"\",\"\",Table_PI[[#This Row],[Model Number]])","v":""},{"$f":"IF(Table_PI[[#This Row],[Serial Number(s)]]=\"\",\"\",Table_PI[[#This Row],[Serial Number(s)]])","v":""},null,{"$f":"IF(Table_PI[[#This Row],[Size]]=\"\",\"\",Table_PI[[#This Row],[Size]])","v":""},null,null,{"$f":"IF(Table_PI[[#This Row],[Input 1]]<>\"\",Table_PI[[#This Row],[Input 1]],\"\")","v":""},null,null,{"$f":"IF(Table_PI[[#This Row],[Input 2]]<>\"\",Table_PI[[#This Row],[Input 2]],\"\")","v":""},null,null,{"$f":"IF(Table_PI[[#This Row],[Input 3]]<>\"\",Table_PI[[#This Row],[Input 3]],\"\")","v":""},null,null,{"$f":"IF(Table_PI[[#This Row],[Input 4]]<>\"\",Table_PI[[#This Row],[Input 4]],\"\")","v":""},null,null,{"$f":"IF(Table_PI[[#This Row],[Input 4]]<>\"\",Table_PI[[#This Row],[Input 4]],\"\")","v":""},null,null,{"$f":"IF(Table_PI[[#This Row],[Input 4]]<>\"\",Table_PI[[#This Row],[Input 4]],\"\")","v":""},{"$f":"IF(Table_PI[[#This Row],[Quantity]]=\"\",\"\",Table_PI[[#This Row],[Quantity]])","v":""},{"$f":"IF(Table_PI[[#This Row],[Notes]]=\"\",\"\",Table_PI[[#This Row],[Notes]])","v":""},{"$f":"IF(OR(Table_PI[[#This Row],[Hide: Baseline kWh]]=\"\",Table_PI[[#This Row],[Hide: Baseline kWh]]=0,ISTEXT(Table_PI[[#This Row],[Hide: Baseline kWh]])),\"\",Table_PI[[#This Row],[Hide: Baseline kWh]])","v":""},{"$f":"IF(OR(Table_PI[[#This Row],[Hide: Baseline kW]]=\"\",Table_PI[[#This Row],[Hide: Baseline kW]]=0,ISTEXT(Table_PI[[#This Row],[Hide: Baseline kW]])),\"\",Table_PI[[#This Row],[Hide: Baseline kW]])","v":""},{"$f":"IF(OR(Table_PI[[#This Row],[Hide: Proposed kWh]]=\"\",Table_PI[[#This Row],[Hide: Proposed kWh]]=0,ISTEXT(Table_PI[[#This Row],[Hide: Proposed kWh]])),\"\",Table_PI[[#This Row],[Hide: Proposed kWh]])","v":""},{"$f":"IF(OR(Table_PI[[#This Row],[Hide: Proposed kW]]=\"\",Table_PI[[#This Row],[Hide: Proposed kW]]=0,ISTEXT(Table_PI[[#This Row],[Hide: Proposed kW]])),\"\",Table_PI[[#This Row],[Hide: Proposed kW]])","v":""},null,null,{"$f":"IF(OR(Table_PI[[#This Row],[Hide: Rebate]]=\"\",Table_PI[[#This Row],[Hide: Rebate]]=0,ISTEXT(Table_PI[[#This Row],[Hide: Rebate]])),\"\",Table_PI[[#This Row],[Hide: Rebate]])","v":""},null,{"$f":"IF(OR(Table_PI[[#This Row],[Hide: Incremental Cost]]=\"\",Table_PI[[#This Row],[Hide: Incremental Cost]]=0,ISTEXT(Table_PI[[#This Row],[Hide: Incremental Cost]])),\"\",Table_PI[[#This Row],[Hide: Incremental Cost]])","v":""},{"$f":"IFERROR(IF(Table_SummaryPI[[#This Row],[Incentive_Customer]]=\"\",\"\",ROUND(Table_SummaryPI[[#This Row],[Incentive_Customer]]/$AM$401*'Customer Information'!$BC$21,2)),0)","v":""},{"$f":"IF(OR(Table_PI[[#This Row],[Annual kWh]]=\"\",Table_PI[[#This Row],[Annual kWh]]=0,ISTEXT(Table_PI[[#This Row],[Annual kWh]])),\"\",Table_PI[[#This Row],[Annual kWh]])","v":""},{"$f":"IF(OR(Table_PI[[#This Row],[Peak kW]]=\"\",Table_PI[[#This Row],[Peak kW]]=0,ISTEXT(Table_PI[[#This Row],[Peak kW]])),\"\",Table_PI[[#This Row],[Peak kW]])","v":""},{"$f":"IF(Table_SummaryPI[[#This Row],[Line No.]]<>\"\",IF(AND(ISNUMBER(FIND(\"Chiller\",Table_SummaryPI[[#This Row],[P_MeasureOption1]],1)),Table_SummaryPI[[#This Row],[ProposedMeasureCategory]]=\"Air-Cooled (Water-Cooled Replacement)\"),$BD$29*Table_SummaryPI[[#This Row],[Size]]*Table_SummaryPI[[#This Row],[Quantity]]*Table_SummaryPI[[#This Row],[EFLHCooling]],\nIF(ISNUMBER(FIND(\"Dishwasher\",Table_SummaryPI[[#This Row],[ProposedMeasureCategory]],1)),$BH$29*Table_SummaryPI[[#This Row],[Quantity]],\nIF(ISNUMBER(FIND(\"Ice Maker\",Table_SummaryPI[[#This Row],[ProposedMeasureCategory]],1)),$BD$31*Table_SummaryPI[[#This Row],[Quantity]],\nIF(ISNUMBER(FIND(\"Spray Valve\",Table_SummaryPI[[#This Row],[ProposedMeasureCategory]],1)),$BH$31*Table_SummaryPI[[#This Row],[Quantity]],\n0)))),\"\")","v":""},{"$f":"IF(OR(Table_PI[[#This Row],[Hide: Electrification kWh]]=\"\",Table_PI[[#This Row],[Hide: Electrification kWh]]=0,ISTEXT(Table_PI[[#This Row],[Hide: Electrification kWh]])),\"\",Table_PI[[#This Row],[Hide: Electrification kWh]])","v":""},{"$f":"IF(OR(Table_PI[[#This Row],[Hide: Electrification GHG]]=\"\",Table_PI[[#This Row],[Hide: Electrification GHG]]=0,ISTEXT(Table_PI[[#This Row],[Hide: Electrification GHG]])),\"\",Table_PI[[#This Row],[Hide: Electrification GHG]])","v":""},{"$f":"IFERROR(IF(Table_SummaryPI[[#This Row],[kWhSavings]]=\"\",\"\",$BH$9*Table_SummaryPI[[#This Row],[kWhSavings]]),0)","v":""},{"$f":"IFERROR(IF(Table_SummaryPI[[#This Row],[kWhSavings]]=\"\",\"\",$BH$14*Table_SummaryPI[[#This Row],[kWhSavings]]),0)","v":""},{"$f":"IFERROR(IF(Table_SummaryPI[[#This Row],[kWhSavings]]=\"\",\"\",$BH$18*Table_SummaryPI[[#This Row],[kWhSavings]]),0)","v":""},{"$f":"IFERROR(IF(Table_SummaryPI[[#This Row],[kWhSavings]]=\"\",\"\",$BH$22*Table_SummaryPI[[#This Row],[kWhSavings]]),0)","v":""}]
[{"$f":"Table_PI[[#This Row],[Line No.]]","v":""},{"$f":"IF(Table_SummaryPI[[#This Row],[MeasureName]]<>\"\",NOT(ISTEXT(Table_PI[[#This Row],[Rebate]])),\"\")","v":""},{"$f":"IF(Table_SummaryPI[[#This Row],[MeassureCategory]]<>\"\",CONCATENATE(Table_SummaryPI[[#This Row],[MeassureCategory]],  \" - \", Table_SummaryPI[[#This Row],[ProposedMeasureCategory]],  \" - \", TEXT(Table_SummaryPI[[#This Row],[Size]],\"#,##0.00\"),\" \",Table_SummaryPI[[#This Row],[SizeUnit]]),\"\")","v":""},{"$f":"SUBSTITUTE(Table_PI[[#This Row],[Measure]],\"     \",\"\",1)","v":""},{"$f":"IF(Table_PI[[#This Row],[List 1]]<>\"\",Table_PI[[#This Row],[List 1]],\"\")","v":""},{"$f":"IF(Table_PI[[#This Row],[List 2]]<>\"\",Table_PI[[#This Row],[List 2]],\"\")","v":""},{"$f":"IF(Table_PI[[#This Row],[List 3]]<>\"\",Table_PI[[#This Row],[List 3]],\"\")","v":""},{"$f":"IF(Table_PI[[#This Row],[Manufacturer]]=\"\",\"\",Table_PI[[#This Row],[Manufacturer]])","v":""},{"$f":"IF(Table_PI[[#This Row],[Model Number]]=\"\",\"\",Table_PI[[#This Row],[Model Number]])","v":""},{"$f":"IF(Table_PI[[#This Row],[Serial Number(s)]]=\"\",\"\",Table_PI[[#This Row],[Serial Number(s)]])","v":""},null,{"$f":"IF(Table_PI[[#This Row],[Size]]=\"\",\"\",Table_PI[[#This Row],[Size]])","v":""},null,null,{"$f":"IF(Table_PI[[#This Row],[Input 1]]<>\"\",Table_PI[[#This Row],[Input 1]],\"\")","v":""},null,null,{"$f":"IF(Table_PI[[#This Row],[Input 2]]<>\"\",Table_PI[[#This Row],[Input 2]],\"\")","v":""},null,null,{"$f":"IF(Table_PI[[#This Row],[Input 3]]<>\"\",Table_PI[[#This Row],[Input 3]],\"\")","v":""},null,null,{"$f":"IF(Table_PI[[#This Row],[Input 4]]<>\"\",Table_PI[[#This Row],[Input 4]],\"\")","v":""},null,null,{"$f":"IF(Table_PI[[#This Row],[Input 4]]<>\"\",Table_PI[[#This Row],[Input 4]],\"\")","v":""},null,null,{"$f":"IF(Table_PI[[#This Row],[Input 4]]<>\"\",Table_PI[[#This Row],[Input 4]],\"\")","v":""},{"$f":"IF(Table_PI[[#This Row],[Quantity]]=\"\",\"\",Table_PI[[#This Row],[Quantity]])","v":""},{"$f":"IF(Table_PI[[#This Row],[Notes]]=\"\",\"\",Table_PI[[#This Row],[Notes]])","v":""},{"$f":"IF(OR(Table_PI[[#This Row],[Hide: Baseline kWh]]=\"\",Table_PI[[#This Row],[Hide: Baseline kWh]]=0,ISTEXT(Table_PI[[#This Row],[Hide: Baseline kWh]])),\"\",Table_PI[[#This Row],[Hide: Baseline kWh]])","v":""},{"$f":"IF(OR(Table_PI[[#This Row],[Hide: Baseline kW]]=\"\",Table_PI[[#This Row],[Hide: Baseline kW]]=0,ISTEXT(Table_PI[[#This Row],[Hide: Baseline kW]])),\"\",Table_PI[[#This Row],[Hide: Baseline kW]])","v":""},{"$f":"IF(OR(Table_PI[[#This Row],[Hide: Proposed kWh]]=\"\",Table_PI[[#This Row],[Hide: Proposed kWh]]=0,ISTEXT(Table_PI[[#This Row],[Hide: Proposed kWh]])),\"\",Table_PI[[#This Row],[Hide: Proposed kWh]])","v":""},{"$f":"IF(OR(Table_PI[[#This Row],[Hide: Proposed kW]]=\"\",Table_PI[[#This Row],[Hide: Proposed kW]]=0,ISTEXT(Table_PI[[#This Row],[Hide: Proposed kW]])),\"\",Table_PI[[#This Row],[Hide: Proposed kW]])","v":""},null,null,{"$f":"IF(OR(Table_PI[[#This Row],[Hide: Rebate]]=\"\",Table_PI[[#This Row],[Hide: Rebate]]=0,ISTEXT(Table_PI[[#This Row],[Hide: Rebate]])),\"\",Table_PI[[#This Row],[Hide: Rebate]])","v":""},null,{"$f":"IF(OR(Table_PI[[#This Row],[Hide: Incremental Cost]]=\"\",Table_PI[[#This Row],[Hide: Incremental Cost]]=0,ISTEXT(Table_PI[[#This Row],[Hide: Incremental Cost]])),\"\",Table_PI[[#This Row],[Hide: Incremental Cost]])","v":""},{"$f":"IFERROR(IF(Table_SummaryPI[[#This Row],[Incentive_Customer]]=\"\",\"\",ROUND(Table_SummaryPI[[#This Row],[Incentive_Customer]]/$AM$401*'Customer Information'!$BC$21,2)),0)","v":""},{"$f":"IF(OR(Table_PI[[#This Row],[Annual kWh]]=\"\",Table_PI[[#This Row],[Annual kWh]]=0,ISTEXT(Table_PI[[#This Row],[Annual kWh]])),\"\",Table_PI[[#This Row],[Annual kWh]])","v":""},{"$f":"IF(OR(Table_PI[[#This Row],[Peak kW]]=\"\",Table_PI[[#This Row],[Peak kW]]=0,ISTEXT(Table_PI[[#This Row],[Peak kW]])),\"\",Table_PI[[#This Row],[Peak kW]])","v":""},{"$f":"IF(Table_SummaryPI[[#This Row],[Line No.]]<>\"\",IF(AND(ISNUMBER(FIND(\"Chiller\",Table_SummaryPI[[#This Row],[P_MeasureOption1]],1)),Table_SummaryPI[[#This Row],[ProposedMeasureCategory]]=\"Air-Cooled (Water-Cooled Replacement)\"),$BD$29*Table_SummaryPI[[#This Row],[Size]]*Table_SummaryPI[[#This Row],[Quantity]]*Table_SummaryPI[[#This Row],[EFLHCooling]],\nIF(ISNUMBER(FIND(\"Dishwasher\",Table_SummaryPI[[#This Row],[ProposedMeasureCategory]],1)),$BH$29*Table_SummaryPI[[#This Row],[Quantity]],\nIF(ISNUMBER(FIND(\"Ice Maker\",Table_SummaryPI[[#This Row],[ProposedMeasureCategory]],1)),$BD$31*Table_SummaryPI[[#This Row],[Quantity]],\nIF(ISNUMBER(FIND(\"Spray Valve\",Table_SummaryPI[[#This Row],[ProposedMeasureCategory]],1)),$BH$31*Table_SummaryPI[[#This Row],[Quantity]],\n0)))),\"\")","v":""},{"$f":"IF(OR(Table_PI[[#This Row],[Hide: Electrification kWh]]=\"\",Table_PI[[#This Row],[Hide: Electrification kWh]]=0,ISTEXT(Table_PI[[#This Row],[Hide: Electrification kWh]])),\"\",Table_PI[[#This Row],[Hide: Electrification kWh]])","v":""},{"$f":"IF(OR(Table_PI[[#This Row],[Hide: Electrification GHG]]=\"\",Table_PI[[#This Row],[Hide: Electrification GHG]]=0,ISTEXT(Table_PI[[#This Row],[Hide: Electrification GHG]])),\"\",Table_PI[[#This Row],[Hide: Electrification GHG]])","v":""},{"$f":"IFERROR(IF(Table_SummaryPI[[#This Row],[kWhSavings]]=\"\",\"\",$BH$9*Table_SummaryPI[[#This Row],[kWhSavings]]),0)","v":""},{"$f":"IFERROR(IF(Table_SummaryPI[[#This Row],[kWhSavings]]=\"\",\"\",$BH$14*Table_SummaryPI[[#This Row],[kWhSavings]]),0)","v":""},{"$f":"IFERROR(IF(Table_SummaryPI[[#This Row],[kWhSavings]]=\"\",\"\",$BH$18*Table_SummaryPI[[#This Row],[kWhSavings]]),0)","v":""},{"$f":"IFERROR(IF(Table_SummaryPI[[#This Row],[kWhSavings]]=\"\",\"\",$BH$22*Table_SummaryPI[[#This Row],[kWhSavings]]),0)","v":""}]
[{"$f":"Table_PI[[#This Row],[Line No.]]","v":""},{"$f":"IF(Table_SummaryPI[[#This Row],[MeasureName]]<>\"\",NOT(ISTEXT(Table_PI[[#This Row],[Rebate]])),\"\")","v":""},{"$f":"IF(Table_SummaryPI[[#This Row],[MeassureCategory]]<>\"\",CONCATENATE(Table_SummaryPI[[#This Row],[MeassureCategory]],  \" - \", Table_SummaryPI[[#This Row],[ProposedMeasureCategory]],  \" - \", TEXT(Table_SummaryPI[[#This Row],[Size]],\"#,##0.00\"),\" \",Table_SummaryPI[[#This Row],[SizeUnit]]),\"\")","v":""},{"$f":"SUBSTITUTE(Table_PI[[#This Row],[Measure]],\"     \",\"\",1)","v":""},{"$f":"IF(Table_PI[[#This Row],[List 1]]<>\"\",Table_PI[[#This Row],[List 1]],\"\")","v":""},{"$f":"IF(Table_PI[[#This Row],[List 2]]<>\"\",Table_PI[[#This Row],[List 2]],\"\")","v":""},{"$f":"IF(Table_PI[[#This Row],[List 3]]<>\"\",Table_PI[[#This Row],[List 3]],\"\")","v":""},{"$f":"IF(Table_PI[[#This Row],[Manufacturer]]=\"\",\"\",Table_PI[[#This Row],[Manufacturer]])","v":""},{"$f":"IF(Table_PI[[#This Row],[Model Number]]=\"\",\"\",Table_PI[[#This Row],[Model Number]])","v":""},{"$f":"IF(Table_PI[[#This Row],[Serial Number(s)]]=\"\",\"\",Table_PI[[#This Row],[Serial Number(s)]])","v":""},null,{"$f":"IF(Table_PI[[#This Row],[Size]]=\"\",\"\",Table_PI[[#This Row],[Size]])","v":""},null,null,{"$f":"IF(Table_PI[[#This Row],[Input 1]]<>\"\",Table_PI[[#This Row],[Input 1]],\"\")","v":""},null,null,{"$f":"IF(Table_PI[[#This Row],[Input 2]]<>\"\",Table_PI[[#This Row],[Input 2]],\"\")","v":""},null,null,{"$f":"IF(Table_PI[[#This Row],[Input 3]]<>\"\",Table_PI[[#This Row],[Input 3]],\"\")","v":""},null,null,{"$f":"IF(Table_PI[[#This Row],[Input 4]]<>\"\",Table_PI[[#This Row],[Input 4]],\"\")","v":""},null,null,{"$f":"IF(Table_PI[[#This Row],[Input 4]]<>\"\",Table_PI[[#This Row],[Input 4]],\"\")","v":""},null,null,{"$f":"IF(Table_PI[[#This Row],[Input 4]]<>\"\",Table_PI[[#This Row],[Input 4]],\"\")","v":""},{"$f":"IF(Table_PI[[#This Row],[Quantity]]=\"\",\"\",Table_PI[[#This Row],[Quantity]])","v":""},{"$f":"IF(Table_PI[[#This Row],[Notes]]=\"\",\"\",Table_PI[[#This Row],[Notes]])","v":""},{"$f":"IF(OR(Table_PI[[#This Row],[Hide: Baseline kWh]]=\"\",Table_PI[[#This Row],[Hide: Baseline kWh]]=0,ISTEXT(Table_PI[[#This Row],[Hide: Baseline kWh]])),\"\",Table_PI[[#This Row],[Hide: Baseline kWh]])","v":""},{"$f":"IF(OR(Table_PI[[#This Row],[Hide: Baseline kW]]=\"\",Table_PI[[#This Row],[Hide: Baseline kW]]=0,ISTEXT(Table_PI[[#This Row],[Hide: Baseline kW]])),\"\",Table_PI[[#This Row],[Hide: Baseline kW]])","v":""},{"$f":"IF(OR(Table_PI[[#This Row],[Hide: Proposed kWh]]=\"\",Table_PI[[#This Row],[Hide: Proposed kWh]]=0,ISTEXT(Table_PI[[#This Row],[Hide: Proposed kWh]])),\"\",Table_PI[[#This Row],[Hide: Proposed kWh]])","v":""},{"$f":"IF(OR(Table_PI[[#This Row],[Hide: Proposed kW]]=\"\",Table_PI[[#This Row],[Hide: Proposed kW]]=0,ISTEXT(Table_PI[[#This Row],[Hide: Proposed kW]])),\"\",Table_PI[[#This Row],[Hide: Proposed kW]])","v":""},null,null,{"$f":"IF(OR(Table_PI[[#This Row],[Hide: Rebate]]=\"\",Table_PI[[#This Row],[Hide: Rebate]]=0,ISTEXT(Table_PI[[#This Row],[Hide: Rebate]])),\"\",Table_PI[[#This Row],[Hide: Rebate]])","v":""},null,{"$f":"IF(OR(Table_PI[[#This Row],[Hide: Incremental Cost]]=\"\",Table_PI[[#This Row],[Hide: Incremental Cost]]=0,ISTEXT(Table_PI[[#This Row],[Hide: Incremental Cost]])),\"\",Table_PI[[#This Row],[Hide: Incremental Cost]])","v":""},{"$f":"IFERROR(IF(Table_SummaryPI[[#This Row],[Incentive_Customer]]=\"\",\"\",ROUND(Table_SummaryPI[[#This Row],[Incentive_Customer]]/$AM$401*'Customer Information'!$BC$21,2)),0)","v":""},{"$f":"IF(OR(Table_PI[[#This Row],[Annual kWh]]=\"\",Table_PI[[#This Row],[Annual kWh]]=0,ISTEXT(Table_PI[[#This Row],[Annual kWh]])),\"\",Table_PI[[#This Row],[Annual kWh]])","v":""},{"$f":"IF(OR(Table_PI[[#This Row],[Peak kW]]=\"\",Table_PI[[#This Row],[Peak kW]]=0,ISTEXT(Table_PI[[#This Row],[Peak kW]])),\"\",Table_PI[[#This Row],[Peak kW]])","v":""},{"$f":"IF(Table_SummaryPI[[#This Row],[Line No.]]<>\"\",IF(AND(ISNUMBER(FIND(\"Chiller\",Table_SummaryPI[[#This Row],[P_MeasureOption1]],1)),Table_SummaryPI[[#This Row],[ProposedMeasureCategory]]=\"Air-Cooled (Water-Cooled Replacement)\"),$BD$29*Table_SummaryPI[[#This Row],[Size]]*Table_SummaryPI[[#This Row],[Quantity]]*Table_SummaryPI[[#This Row],[EFLHCooling]],\nIF(ISNUMBER(FIND(\"Dishwasher\",Table_SummaryPI[[#This Row],[ProposedMeasureCategory]],1)),$BH$29*Table_SummaryPI[[#This Row],[Quantity]],\nIF(ISNUMBER(FIND(\"Ice Maker\",Table_SummaryPI[[#This Row],[ProposedMeasureCategory]],1)),$BD$31*Table_SummaryPI[[#This Row],[Quantity]],\nIF(ISNUMBER(FIND(\"Spray Valve\",Table_SummaryPI[[#This Row],[ProposedMeasureCategory]],1)),$BH$31*Table_SummaryPI[[#This Row],[Quantity]],\n0)))),\"\")","v":""},{"$f":"IF(OR(Table_PI[[#This Row],[Hide: Electrification kWh]]=\"\",Table_PI[[#This Row],[Hide: Electrification kWh]]=0,ISTEXT(Table_PI[[#This Row],[Hide: Electrification kWh]])),\"\",Table_PI[[#This Row],[Hide: Electrification kWh]])","v":""},{"$f":"IF(OR(Table_PI[[#This Row],[Hide: Electrification GHG]]=\"\",Table_PI[[#This Row],[Hide: Electrification GHG]]=0,ISTEXT(Table_PI[[#This Row],[Hide: Electrification GHG]])),\"\",Table_PI[[#This Row],[Hide: Electrification GHG]])","v":""},{"$f":"IFERROR(IF(Table_SummaryPI[[#This Row],[kWhSavings]]=\"\",\"\",$BH$9*Table_SummaryPI[[#This Row],[kWhSavings]]),0)","v":""},{"$f":"IFERROR(IF(Table_SummaryPI[[#This Row],[kWhSavings]]=\"\",\"\",$BH$14*Table_SummaryPI[[#This Row],[kWhSavings]]),0)","v":""},{"$f":"IFERROR(IF(Table_SummaryPI[[#This Row],[kWhSavings]]=\"\",\"\",$BH$18*Table_SummaryPI[[#This Row],[kWhSavings]]),0)","v":""},{"$f":"IFERROR(IF(Table_SummaryPI[[#This Row],[kWhSavings]]=\"\",\"\",$BH$22*Table_SummaryPI[[#This Row],[kWhSavings]]),0)","v":""}]
[{"$f":"Table_PI[[#This Row],[Line No.]]","v":""},{"$f":"IF(Table_SummaryPI[[#This Row],[MeasureName]]<>\"\",NOT(ISTEXT(Table_PI[[#This Row],[Rebate]])),\"\")","v":""},{"$f":"IF(Table_SummaryPI[[#This Row],[MeassureCategory]]<>\"\",CONCATENATE(Table_SummaryPI[[#This Row],[MeassureCategory]],  \" - \", Table_SummaryPI[[#This Row],[ProposedMeasureCategory]],  \" - \", TEXT(Table_SummaryPI[[#This Row],[Size]],\"#,##0.00\"),\" \",Table_SummaryPI[[#This Row],[SizeUnit]]),\"\")","v":""},{"$f":"SUBSTITUTE(Table_PI[[#This Row],[Measure]],\"     \",\"\",1)","v":""},{"$f":"IF(Table_PI[[#This Row],[List 1]]<>\"\",Table_PI[[#This Row],[List 1]],\"\")","v":""},{"$f":"IF(Table_PI[[#This Row],[List 2]]<>\"\",Table_PI[[#This Row],[List 2]],\"\")","v":""},{"$f":"IF(Table_PI[[#This Row],[List 3]]<>\"\",Table_PI[[#This Row],[List 3]],\"\")","v":""},{"$f":"IF(Table_PI[[#This Row],[Manufacturer]]=\"\",\"\",Table_PI[[#This Row],[Manufacturer]])","v":""},{"$f":"IF(Table_PI[[#This Row],[Model Number]]=\"\",\"\",Table_PI[[#This Row],[Model Number]])","v":""},{"$f":"IF(Table_PI[[#This Row],[Serial Number(s)]]=\"\",\"\",Table_PI[[#This Row],[Serial Number(s)]])","v":""},null,{"$f":"IF(Table_PI[[#This Row],[Size]]=\"\",\"\",Table_PI[[#This Row],[Size]])","v":""},null,null,{"$f":"IF(Table_PI[[#This Row],[Input 1]]<>\"\",Table_PI[[#This Row],[Input 1]],\"\")","v":""},null,null,{"$f":"IF(Table_PI[[#This Row],[Input 2]]<>\"\",Table_PI[[#This Row],[Input 2]],\"\")","v":""},null,null,{"$f":"IF(Table_PI[[#This Row],[Input 3]]<>\"\",Table_PI[[#This Row],[Input 3]],\"\")","v":""},null,null,{"$f":"IF(Table_PI[[#This Row],[Input 4]]<>\"\",Table_PI[[#This Row],[Input 4]],\"\")","v":""},null,null,{"$f":"IF(Table_PI[[#This Row],[Input 4]]<>\"\",Table_PI[[#This Row],[Input 4]],\"\")","v":""},null,null,{"$f":"IF(Table_PI[[#This Row],[Input 4]]<>\"\",Table_PI[[#This Row],[Input 4]],\"\")","v":""},{"$f":"IF(Table_PI[[#This Row],[Quantity]]=\"\",\"\",Table_PI[[#This Row],[Quantity]])","v":""},{"$f":"IF(Table_PI[[#This Row],[Notes]]=\"\",\"\",Table_PI[[#This Row],[Notes]])","v":""},{"$f":"IF(OR(Table_PI[[#This Row],[Hide: Baseline kWh]]=\"\",Table_PI[[#This Row],[Hide: Baseline kWh]]=0,ISTEXT(Table_PI[[#This Row],[Hide: Baseline kWh]])),\"\",Table_PI[[#This Row],[Hide: Baseline kWh]])","v":""},{"$f":"IF(OR(Table_PI[[#This Row],[Hide: Baseline kW]]=\"\",Table_PI[[#This Row],[Hide: Baseline kW]]=0,ISTEXT(Table_PI[[#This Row],[Hide: Baseline kW]])),\"\",Table_PI[[#This Row],[Hide: Baseline kW]])","v":""},{"$f":"IF(OR(Table_PI[[#This Row],[Hide: Proposed kWh]]=\"\",Table_PI[[#This Row],[Hide: Proposed kWh]]=0,ISTEXT(Table_PI[[#This Row],[Hide: Proposed kWh]])),\"\",Table_PI[[#This Row],[Hide: Proposed kWh]])","v":""},{"$f":"IF(OR(Table_PI[[#This Row],[Hide: Proposed kW]]=\"\",Table_PI[[#This Row],[Hide: Proposed kW]]=0,ISTEXT(Table_PI[[#This Row],[Hide: Proposed kW]])),\"\",Table_PI[[#This Row],[Hide: Proposed kW]])","v":""},null,null,{"$f":"IF(OR(Table_PI[[#This Row],[Hide: Rebate]]=\"\",Table_PI[[#This Row],[Hide: Rebate]]=0,ISTEXT(Table_PI[[#This Row],[Hide: Rebate]])),\"\",Table_PI[[#This Row],[Hide: Rebate]])","v":""},null,{"$f":"IF(OR(Table_PI[[#This Row],[Hide: Incremental Cost]]=\"\",Table_PI[[#This Row],[Hide: Incremental Cost]]=0,ISTEXT(Table_PI[[#This Row],[Hide: Incremental Cost]])),\"\",Table_PI[[#This Row],[Hide: Incremental Cost]])","v":""},{"$f":"IFERROR(IF(Table_SummaryPI[[#This Row],[Incentive_Customer]]=\"\",\"\",ROUND(Table_SummaryPI[[#This Row],[Incentive_Customer]]/$AM$401*'Customer Information'!$BC$21,2)),0)","v":""},{"$f":"IF(OR(Table_PI[[#This Row],[Annual kWh]]=\"\",Table_PI[[#This Row],[Annual kWh]]=0,ISTEXT(Table_PI[[#This Row],[Annual kWh]])),\"\",Table_PI[[#This Row],[Annual kWh]])","v":""},{"$f":"IF(OR(Table_PI[[#This Row],[Peak kW]]=\"\",Table_PI[[#This Row],[Peak kW]]=0,ISTEXT(Table_PI[[#This Row],[Peak kW]])),\"\",Table_PI[[#This Row],[Peak kW]])","v":""},{"$f":"IF(Table_SummaryPI[[#This Row],[Line No.]]<>\"\",IF(AND(ISNUMBER(FIND(\"Chiller\",Table_SummaryPI[[#This Row],[P_MeasureOption1]],1)),Table_SummaryPI[[#This Row],[ProposedMeasureCategory]]=\"Air-Cooled (Water-Cooled Replacement)\"),$BD$29*Table_SummaryPI[[#This Row],[Size]]*Table_SummaryPI[[#This Row],[Quantity]]*Table_SummaryPI[[#This Row],[EFLHCooling]],\nIF(ISNUMBER(FIND(\"Dishwasher\",Table_SummaryPI[[#This Row],[ProposedMeasureCategory]],1)),$BH$29*Table_SummaryPI[[#This Row],[Quantity]],\nIF(ISNUMBER(FIND(\"Ice Maker\",Table_SummaryPI[[#This Row],[ProposedMeasureCategory]],1)),$BD$31*Table_SummaryPI[[#This Row],[Quantity]],\nIF(ISNUMBER(FIND(\"Spray Valve\",Table_SummaryPI[[#This Row],[ProposedMeasureCategory]],1)),$BH$31*Table_SummaryPI[[#This Row],[Quantity]],\n0)))),\"\")","v":""},{"$f":"IF(OR(Table_PI[[#This Row],[Hide: Electrification kWh]]=\"\",Table_PI[[#This Row],[Hide: Electrification kWh]]=0,ISTEXT(Table_PI[[#This Row],[Hide: Electrification kWh]])),\"\",Table_PI[[#This Row],[Hide: Electrification kWh]])","v":""},{"$f":"IF(OR(Table_PI[[#This Row],[Hide: Electrification GHG]]=\"\",Table_PI[[#This Row],[Hide: Electrification GHG]]=0,ISTEXT(Table_PI[[#This Row],[Hide: Electrification GHG]])),\"\",Table_PI[[#This Row],[Hide: Electrification GHG]])","v":""},{"$f":"IFERROR(IF(Table_SummaryPI[[#This Row],[kWhSavings]]=\"\",\"\",$BH$9*Table_SummaryPI[[#This Row],[kWhSavings]]),0)","v":""},{"$f":"IFERROR(IF(Table_SummaryPI[[#This Row],[kWhSavings]]=\"\",\"\",$BH$14*Table_SummaryPI[[#This Row],[kWhSavings]]),0)","v":""},{"$f":"IFERROR(IF(Table_SummaryPI[[#This Row],[kWhSavings]]=\"\",\"\",$BH$18*Table_SummaryPI[[#This Row],[kWhSavings]]),0)","v":""},{"$f":"IFERROR(IF(Table_SummaryPI[[#This Row],[kWhSavings]]=\"\",\"\",$BH$22*Table_SummaryPI[[#This Row],[kWhSavings]]),0)","v":""}]
[{"$f":"Table_PI[[#This Row],[Line No.]]","v":""},{"$f":"IF(Table_SummaryPI[[#This Row],[MeasureName]]<>\"\",NOT(ISTEXT(Table_PI[[#This Row],[Rebate]])),\"\")","v":""},{"$f":"IF(Table_SummaryPI[[#This Row],[MeassureCategory]]<>\"\",CONCATENATE(Table_SummaryPI[[#This Row],[MeassureCategory]],  \" - \", Table_SummaryPI[[#This Row],[ProposedMeasureCategory]],  \" - \", TEXT(Table_SummaryPI[[#This Row],[Size]],\"#,##0.00\"),\" \",Table_SummaryPI[[#This Row],[SizeUnit]]),\"\")","v":""},{"$f":"SUBSTITUTE(Table_PI[[#This Row],[Measure]],\"     \",\"\",1)","v":""},{"$f":"IF(Table_PI[[#This Row],[List 1]]<>\"\",Table_PI[[#This Row],[List 1]],\"\")","v":""},{"$f":"IF(Table_PI[[#This Row],[List 2]]<>\"\",Table_PI[[#This Row],[List 2]],\"\")","v":""},{"$f":"IF(Table_PI[[#This Row],[List 3]]<>\"\",Table_PI[[#This Row],[List 3]],\"\")","v":""},{"$f":"IF(Table_PI[[#This Row],[Manufacturer]]=\"\",\"\",Table_PI[[#This Row],[Manufacturer]])","v":""},{"$f":"IF(Table_PI[[#This Row],[Model Number]]=\"\",\"\",Table_PI[[#This Row],[Model Number]])","v":""},{"$f":"IF(Table_PI[[#This Row],[Serial Number(s)]]=\"\",\"\",Table_PI[[#This Row],[Serial Number(s)]])","v":""},null,{"$f":"IF(Table_PI[[#This Row],[Size]]=\"\",\"\",Table_PI[[#This Row],[Size]])","v":""},null,null,{"$f":"IF(Table_PI[[#This Row],[Input 1]]<>\"\",Table_PI[[#This Row],[Input 1]],\"\")","v":""},null,null,{"$f":"IF(Table_PI[[#This Row],[Input 2]]<>\"\",Table_PI[[#This Row],[Input 2]],\"\")","v":""},null,null,{"$f":"IF(Table_PI[[#This Row],[Input 3]]<>\"\",Table_PI[[#This Row],[Input 3]],\"\")","v":""},null,null,{"$f":"IF(Table_PI[[#This Row],[Input 4]]<>\"\",Table_PI[[#This Row],[Input 4]],\"\")","v":""},null,null,{"$f":"IF(Table_PI[[#This Row],[Input 4]]<>\"\",Table_PI[[#This Row],[Input 4]],\"\")","v":""},null,null,{"$f":"IF(Table_PI[[#This Row],[Input 4]]<>\"\",Table_PI[[#This Row],[Input 4]],\"\")","v":""},{"$f":"IF(Table_PI[[#This Row],[Quantity]]=\"\",\"\",Table_PI[[#This Row],[Quantity]])","v":""},{"$f":"IF(Table_PI[[#This Row],[Notes]]=\"\",\"\",Table_PI[[#This Row],[Notes]])","v":""},{"$f":"IF(OR(Table_PI[[#This Row],[Hide: Baseline kWh]]=\"\",Table_PI[[#This Row],[Hide: Baseline kWh]]=0,ISTEXT(Table_PI[[#This Row],[Hide: Baseline kWh]])),\"\",Table_PI[[#This Row],[Hide: Baseline kWh]])","v":""},{"$f":"IF(OR(Table_PI[[#This Row],[Hide: Baseline kW]]=\"\",Table_PI[[#This Row],[Hide: Baseline kW]]=0,ISTEXT(Table_PI[[#This Row],[Hide: Baseline kW]])),\"\",Table_PI[[#This Row],[Hide: Baseline kW]])","v":""},{"$f":"IF(OR(Table_PI[[#This Row],[Hide: Proposed kWh]]=\"\",Table_PI[[#This Row],[Hide: Proposed kWh]]=0,ISTEXT(Table_PI[[#This Row],[Hide: Proposed kWh]])),\"\",Table_PI[[#This Row],[Hide: Proposed kWh]])","v":""},{"$f":"IF(OR(Table_PI[[#This Row],[Hide: Proposed kW]]=\"\",Table_PI[[#This Row],[Hide: Proposed kW]]=0,ISTEXT(Table_PI[[#This Row],[Hide: Proposed kW]])),\"\",Table_PI[[#This Row],[Hide: Proposed kW]])","v":""},null,null,{"$f":"IF(OR(Table_PI[[#This Row],[Hide: Rebate]]=\"\",Table_PI[[#This Row],[Hide: Rebate]]=0,ISTEXT(Table_PI[[#This Row],[Hide: Rebate]])),\"\",Table_PI[[#This Row],[Hide: Rebate]])","v":""},null,{"$f":"IF(OR(Table_PI[[#This Row],[Hide: Incremental Cost]]=\"\",Table_PI[[#This Row],[Hide: Incremental Cost]]=0,ISTEXT(Table_PI[[#This Row],[Hide: Incremental Cost]])),\"\",Table_PI[[#This Row],[Hide: Incremental Cost]])","v":""},{"$f":"IFERROR(IF(Table_SummaryPI[[#This Row],[Incentive_Customer]]=\"\",\"\",ROUND(Table_SummaryPI[[#This Row],[Incentive_Customer]]/$AM$401*'Customer Information'!$BC$21,2)),0)","v":""},{"$f":"IF(OR(Table_PI[[#This Row],[Annual kWh]]=\"\",Table_PI[[#This Row],[Annual kWh]]=0,ISTEXT(Table_PI[[#This Row],[Annual kWh]])),\"\",Table_PI[[#This Row],[Annual kWh]])","v":""},{"$f":"IF(OR(Table_PI[[#This Row],[Peak kW]]=\"\",Table_PI[[#This Row],[Peak kW]]=0,ISTEXT(Table_PI[[#This Row],[Peak kW]])),\"\",Table_PI[[#This Row],[Peak kW]])","v":""},{"$f":"IF(Table_SummaryPI[[#This Row],[Line No.]]<>\"\",IF(AND(ISNUMBER(FIND(\"Chiller\",Table_SummaryPI[[#This Row],[P_MeasureOption1]],1)),Table_SummaryPI[[#This Row],[ProposedMeasureCategory]]=\"Air-Cooled (Water-Cooled Replacement)\"),$BD$29*Table_SummaryPI[[#This Row],[Size]]*Table_SummaryPI[[#This Row],[Quantity]]*Table_SummaryPI[[#This Row],[EFLHCooling]],\nIF(ISNUMBER(FIND(\"Dishwasher\",Table_SummaryPI[[#This Row],[ProposedMeasureCategory]],1)),$BH$29*Table_SummaryPI[[#This Row],[Quantity]],\nIF(ISNUMBER(FIND(\"Ice Maker\",Table_SummaryPI[[#This Row],[ProposedMeasureCategory]],1)),$BD$31*Table_SummaryPI[[#This Row],[Quantity]],\nIF(ISNUMBER(FIND(\"Spray Valve\",Table_SummaryPI[[#This Row],[ProposedMeasureCategory]],1)),$BH$31*Table_SummaryPI[[#This Row],[Quantity]],\n0)))),\"\")","v":""},{"$f":"IF(OR(Table_PI[[#This Row],[Hide: Electrification kWh]]=\"\",Table_PI[[#This Row],[Hide: Electrification kWh]]=0,ISTEXT(Table_PI[[#This Row],[Hide: Electrification kWh]])),\"\",Table_PI[[#This Row],[Hide: Electrification kWh]])","v":""},{"$f":"IF(OR(Table_PI[[#This Row],[Hide: Electrification GHG]]=\"\",Table_PI[[#This Row],[Hide: Electrification GHG]]=0,ISTEXT(Table_PI[[#This Row],[Hide: Electrification GHG]])),\"\",Table_PI[[#This Row],[Hide: Electrification GHG]])","v":""},{"$f":"IFERROR(IF(Table_SummaryPI[[#This Row],[kWhSavings]]=\"\",\"\",$BH$9*Table_SummaryPI[[#This Row],[kWhSavings]]),0)","v":""},{"$f":"IFERROR(IF(Table_SummaryPI[[#This Row],[kWhSavings]]=\"\",\"\",$BH$14*Table_SummaryPI[[#This Row],[kWhSavings]]),0)","v":""},{"$f":"IFERROR(IF(Table_SummaryPI[[#This Row],[kWhSavings]]=\"\",\"\",$BH$18*Table_SummaryPI[[#This Row],[kWhSavings]]),0)","v":""},{"$f":"IFERROR(IF(Table_SummaryPI[[#This Row],[kWhSavings]]=\"\",\"\",$BH$22*Table_SummaryPI[[#This Row],[kWhSavings]]),0)","v":""}]
[{"$f":"Table_PI[[#This Row],[Line No.]]","v":""},{"$f":"IF(Table_SummaryPI[[#This Row],[MeasureName]]<>\"\",NOT(ISTEXT(Table_PI[[#This Row],[Rebate]])),\"\")","v":""},{"$f":"IF(Table_SummaryPI[[#This Row],[MeassureCategory]]<>\"\",CONCATENATE(Table_SummaryPI[[#This Row],[MeassureCategory]],  \" - \", Table_SummaryPI[[#This Row],[ProposedMeasureCategory]],  \" - \", TEXT(Table_SummaryPI[[#This Row],[Size]],\"#,##0.00\"),\" \",Table_SummaryPI[[#This Row],[SizeUnit]]),\"\")","v":""},{"$f":"SUBSTITUTE(Table_PI[[#This Row],[Measure]],\"     \",\"\",1)","v":""},{"$f":"IF(Table_PI[[#This Row],[List 1]]<>\"\",Table_PI[[#This Row],[List 1]],\"\")","v":""},{"$f":"IF(Table_PI[[#This Row],[List 2]]<>\"\",Table_PI[[#This Row],[List 2]],\"\")","v":""},{"$f":"IF(Table_PI[[#This Row],[List 3]]<>\"\",Table_PI[[#This Row],[List 3]],\"\")","v":""},{"$f":"IF(Table_PI[[#This Row],[Manufacturer]]=\"\",\"\",Table_PI[[#This Row],[Manufacturer]])","v":""},{"$f":"IF(Table_PI[[#This Row],[Model Number]]=\"\",\"\",Table_PI[[#This Row],[Model Number]])","v":""},{"$f":"IF(Table_PI[[#This Row],[Serial Number(s)]]=\"\",\"\",Table_PI[[#This Row],[Serial Number(s)]])","v":""},null,{"$f":"IF(Table_PI[[#This Row],[Size]]=\"\",\"\",Table_PI[[#This Row],[Size]])","v":""},null,null,{"$f":"IF(Table_PI[[#This Row],[Input 1]]<>\"\",Table_PI[[#This Row],[Input 1]],\"\")","v":""},null,null,{"$f":"IF(Table_PI[[#This Row],[Input 2]]<>\"\",Table_PI[[#This Row],[Input 2]],\"\")","v":""},null,null,{"$f":"IF(Table_PI[[#This Row],[Input 3]]<>\"\",Table_PI[[#This Row],[Input 3]],\"\")","v":""},null,null,{"$f":"IF(Table_PI[[#This Row],[Input 4]]<>\"\",Table_PI[[#This Row],[Input 4]],\"\")","v":""},null,null,{"$f":"IF(Table_PI[[#This Row],[Input 4]]<>\"\",Table_PI[[#This Row],[Input 4]],\"\")","v":""},null,null,{"$f":"IF(Table_PI[[#This Row],[Input 4]]<>\"\",Table_PI[[#This Row],[Input 4]],\"\")","v":""},{"$f":"IF(Table_PI[[#This Row],[Quantity]]=\"\",\"\",Table_PI[[#This Row],[Quantity]])","v":""},{"$f":"IF(Table_PI[[#This Row],[Notes]]=\"\",\"\",Table_PI[[#This Row],[Notes]])","v":""},{"$f":"IF(OR(Table_PI[[#This Row],[Hide: Baseline kWh]]=\"\",Table_PI[[#This Row],[Hide: Baseline kWh]]=0,ISTEXT(Table_PI[[#This Row],[Hide: Baseline kWh]])),\"\",Table_PI[[#This Row],[Hide: Baseline kWh]])","v":""},{"$f":"IF(OR(Table_PI[[#This Row],[Hide: Baseline kW]]=\"\",Table_PI[[#This Row],[Hide: Baseline kW]]=0,ISTEXT(Table_PI[[#This Row],[Hide: Baseline kW]])),\"\",Table_PI[[#This Row],[Hide: Baseline kW]])","v":""},{"$f":"IF(OR(Table_PI[[#This Row],[Hide: Proposed kWh]]=\"\",Table_PI[[#This Row],[Hide: Proposed kWh]]=0,ISTEXT(Table_PI[[#This Row],[Hide: Proposed kWh]])),\"\",Table_PI[[#This Row],[Hide: Proposed kWh]])","v":""},{"$f":"IF(OR(Table_PI[[#This Row],[Hide: Proposed kW]]=\"\",Table_PI[[#This Row],[Hide: Proposed kW]]=0,ISTEXT(Table_PI[[#This Row],[Hide: Proposed kW]])),\"\",Table_PI[[#This Row],[Hide: Proposed kW]])","v":""},null,null,{"$f":"IF(OR(Table_PI[[#This Row],[Hide: Rebate]]=\"\",Table_PI[[#This Row],[Hide: Rebate]]=0,ISTEXT(Table_PI[[#This Row],[Hide: Rebate]])),\"\",Table_PI[[#This Row],[Hide: Rebate]])","v":""},null,{"$f":"IF(OR(Table_PI[[#This Row],[Hide: Incremental Cost]]=\"\",Table_PI[[#This Row],[Hide: Incremental Cost]]=0,ISTEXT(Table_PI[[#This Row],[Hide: Incremental Cost]])),\"\",Table_PI[[#This Row],[Hide: Incremental Cost]])","v":""},{"$f":"IFERROR(IF(Table_SummaryPI[[#This Row],[Incentive_Customer]]=\"\",\"\",ROUND(Table_SummaryPI[[#This Row],[Incentive_Customer]]/$AM$401*'Customer Information'!$BC$21,2)),0)","v":""},{"$f":"IF(OR(Table_PI[[#This Row],[Annual kWh]]=\"\",Table_PI[[#This Row],[Annual kWh]]=0,ISTEXT(Table_PI[[#This Row],[Annual kWh]])),\"\",Table_PI[[#This Row],[Annual kWh]])","v":""},{"$f":"IF(OR(Table_PI[[#This Row],[Peak kW]]=\"\",Table_PI[[#This Row],[Peak kW]]=0,ISTEXT(Table_PI[[#This Row],[Peak kW]])),\"\",Table_PI[[#This Row],[Peak kW]])","v":""},{"$f":"IF(Table_SummaryPI[[#This Row],[Line No.]]<>\"\",IF(AND(ISNUMBER(FIND(\"Chiller\",Table_SummaryPI[[#This Row],[P_MeasureOption1]],1)),Table_SummaryPI[[#This Row],[ProposedMeasureCategory]]=\"Air-Cooled (Water-Cooled Replacement)\"),$BD$29*Table_SummaryPI[[#This Row],[Size]]*Table_SummaryPI[[#This Row],[Quantity]]*Table_SummaryPI[[#This Row],[EFLHCooling]],\nIF(ISNUMBER(FIND(\"Dishwasher\",Table_SummaryPI[[#This Row],[ProposedMeasureCategory]],1)),$BH$29*Table_SummaryPI[[#This Row],[Quantity]],\nIF(ISNUMBER(FIND(\"Ice Maker\",Table_SummaryPI[[#This Row],[ProposedMeasureCategory]],1)),$BD$31*Table_SummaryPI[[#This Row],[Quantity]],\nIF(ISNUMBER(FIND(\"Spray Valve\",Table_SummaryPI[[#This Row],[ProposedMeasureCategory]],1)),$BH$31*Table_SummaryPI[[#This Row],[Quantity]],\n0)))),\"\")","v":""},{"$f":"IF(OR(Table_PI[[#This Row],[Hide: Electrification kWh]]=\"\",Table_PI[[#This Row],[Hide: Electrification kWh]]=0,ISTEXT(Table_PI[[#This Row],[Hide: Electrification kWh]])),\"\",Table_PI[[#This Row],[Hide: Electrification kWh]])","v":""},{"$f":"IF(OR(Table_PI[[#This Row],[Hide: Electrification GHG]]=\"\",Table_PI[[#This Row],[Hide: Electrification GHG]]=0,ISTEXT(Table_PI[[#This Row],[Hide: Electrification GHG]])),\"\",Table_PI[[#This Row],[Hide: Electrification GHG]])","v":""},{"$f":"IFERROR(IF(Table_SummaryPI[[#This Row],[kWhSavings]]=\"\",\"\",$BH$9*Table_SummaryPI[[#This Row],[kWhSavings]]),0)","v":""},{"$f":"IFERROR(IF(Table_SummaryPI[[#This Row],[kWhSavings]]=\"\",\"\",$BH$14*Table_SummaryPI[[#This Row],[kWhSavings]]),0)","v":""},{"$f":"IFERROR(IF(Table_SummaryPI[[#This Row],[kWhSavings]]=\"\",\"\",$BH$18*Table_SummaryPI[[#This Row],[kWhSavings]]),0)","v":""},{"$f":"IFERROR(IF(Table_SummaryPI[[#This Row],[kWhSavings]]=\"\",\"\",$BH$22*Table_SummaryPI[[#This Row],[kWhSavings]]),0)","v":""}]
[{"$f":"Table_PI[[#This Row],[Line No.]]","v":""},{"$f":"IF(Table_SummaryPI[[#This Row],[MeasureName]]<>\"\",NOT(ISTEXT(Table_PI[[#This Row],[Rebate]])),\"\")","v":""},{"$f":"IF(Table_SummaryPI[[#This Row],[MeassureCategory]]<>\"\",CONCATENATE(Table_SummaryPI[[#This Row],[MeassureCategory]],  \" - \", Table_SummaryPI[[#This Row],[ProposedMeasureCategory]],  \" - \", TEXT(Table_SummaryPI[[#This Row],[Size]],\"#,##0.00\"),\" \",Table_SummaryPI[[#This Row],[SizeUnit]]),\"\")","v":""},{"$f":"SUBSTITUTE(Table_PI[[#This Row],[Measure]],\"     \",\"\",1)","v":""},{"$f":"IF(Table_PI[[#This Row],[List 1]]<>\"\",Table_PI[[#This Row],[List 1]],\"\")","v":""},{"$f":"IF(Table_PI[[#This Row],[List 2]]<>\"\",Table_PI[[#This Row],[List 2]],\"\")","v":""},{"$f":"IF(Table_PI[[#This Row],[List 3]]<>\"\",Table_PI[[#This Row],[List 3]],\"\")","v":""},{"$f":"IF(Table_PI[[#This Row],[Manufacturer]]=\"\",\"\",Table_PI[[#This Row],[Manufacturer]])","v":""},{"$f":"IF(Table_PI[[#This Row],[Model Number]]=\"\",\"\",Table_PI[[#This Row],[Model Number]])","v":""},{"$f":"IF(Table_PI[[#This Row],[Serial Number(s)]]=\"\",\"\",Table_PI[[#This Row],[Serial Number(s)]])","v":""},null,{"$f":"IF(Table_PI[[#This Row],[Size]]=\"\",\"\",Table_PI[[#This Row],[Size]])","v":""},null,null,{"$f":"IF(Table_PI[[#This Row],[Input 1]]<>\"\",Table_PI[[#This Row],[Input 1]],\"\")","v":""},null,null,{"$f":"IF(Table_PI[[#This Row],[Input 2]]<>\"\",Table_PI[[#This Row],[Input 2]],\"\")","v":""},null,null,{"$f":"IF(Table_PI[[#This Row],[Input 3]]<>\"\",Table_PI[[#This Row],[Input 3]],\"\")","v":""},null,null,{"$f":"IF(Table_PI[[#This Row],[Input 4]]<>\"\",Table_PI[[#This Row],[Input 4]],\"\")","v":""},null,null,{"$f":"IF(Table_PI[[#This Row],[Input 4]]<>\"\",Table_PI[[#This Row],[Input 4]],\"\")","v":""},null,null,{"$f":"IF(Table_PI[[#This Row],[Input 4]]<>\"\",Table_PI[[#This Row],[Input 4]],\"\")","v":""},{"$f":"IF(Table_PI[[#This Row],[Quantity]]=\"\",\"\",Table_PI[[#This Row],[Quantity]])","v":""},{"$f":"IF(Table_PI[[#This Row],[Notes]]=\"\",\"\",Table_PI[[#This Row],[Notes]])","v":""},{"$f":"IF(OR(Table_PI[[#This Row],[Hide: Baseline kWh]]=\"\",Table_PI[[#This Row],[Hide: Baseline kWh]]=0,ISTEXT(Table_PI[[#This Row],[Hide: Baseline kWh]])),\"\",Table_PI[[#This Row],[Hide: Baseline kWh]])","v":""},{"$f":"IF(OR(Table_PI[[#This Row],[Hide: Baseline kW]]=\"\",Table_PI[[#This Row],[Hide: Baseline kW]]=0,ISTEXT(Table_PI[[#This Row],[Hide: Baseline kW]])),\"\",Table_PI[[#This Row],[Hide: Baseline kW]])","v":""},{"$f":"IF(OR(Table_PI[[#This Row],[Hide: Proposed kWh]]=\"\",Table_PI[[#This Row],[Hide: Proposed kWh]]=0,ISTEXT(Table_PI[[#This Row],[Hide: Proposed kWh]])),\"\",Table_PI[[#This Row],[Hide: Proposed kWh]])","v":""},{"$f":"IF(OR(Table_PI[[#This Row],[Hide: Proposed kW]]=\"\",Table_PI[[#This Row],[Hide: Proposed kW]]=0,ISTEXT(Table_PI[[#This Row],[Hide: Proposed kW]])),\"\",Table_PI[[#This Row],[Hide: Proposed kW]])","v":""},null,null,{"$f":"IF(OR(Table_PI[[#This Row],[Hide: Rebate]]=\"\",Table_PI[[#This Row],[Hide: Rebate]]=0,ISTEXT(Table_PI[[#This Row],[Hide: Rebate]])),\"\",Table_PI[[#This Row],[Hide: Rebate]])","v":""},null,{"$f":"IF(OR(Table_PI[[#This Row],[Hide: Incremental Cost]]=\"\",Table_PI[[#This Row],[Hide: Incremental Cost]]=0,ISTEXT(Table_PI[[#This Row],[Hide: Incremental Cost]])),\"\",Table_PI[[#This Row],[Hide: Incremental Cost]])","v":""},{"$f":"IFERROR(IF(Table_SummaryPI[[#This Row],[Incentive_Customer]]=\"\",\"\",ROUND(Table_SummaryPI[[#This Row],[Incentive_Customer]]/$AM$401*'Customer Information'!$BC$21,2)),0)","v":""},{"$f":"IF(OR(Table_PI[[#This Row],[Annual kWh]]=\"\",Table_PI[[#This Row],[Annual kWh]]=0,ISTEXT(Table_PI[[#This Row],[Annual kWh]])),\"\",Table_PI[[#This Row],[Annual kWh]])","v":""},{"$f":"IF(OR(Table_PI[[#This Row],[Peak kW]]=\"\",Table_PI[[#This Row],[Peak kW]]=0,ISTEXT(Table_PI[[#This Row],[Peak kW]])),\"\",Table_PI[[#This Row],[Peak kW]])","v":""},{"$f":"IF(Table_SummaryPI[[#This Row],[Line No.]]<>\"\",IF(AND(ISNUMBER(FIND(\"Chiller\",Table_SummaryPI[[#This Row],[P_MeasureOption1]],1)),Table_SummaryPI[[#This Row],[ProposedMeasureCategory]]=\"Air-Cooled (Water-Cooled Replacement)\"),$BD$29*Table_SummaryPI[[#This Row],[Size]]*Table_SummaryPI[[#This Row],[Quantity]]*Table_SummaryPI[[#This Row],[EFLHCooling]],\nIF(ISNUMBER(FIND(\"Dishwasher\",Table_SummaryPI[[#This Row],[ProposedMeasureCategory]],1)),$BH$29*Table_SummaryPI[[#This Row],[Quantity]],\nIF(ISNUMBER(FIND(\"Ice Maker\",Table_SummaryPI[[#This Row],[ProposedMeasureCategory]],1)),$BD$31*Table_SummaryPI[[#This Row],[Quantity]],\nIF(ISNUMBER(FIND(\"Spray Valve\",Table_SummaryPI[[#This Row],[ProposedMeasureCategory]],1)),$BH$31*Table_SummaryPI[[#This Row],[Quantity]],\n0)))),\"\")","v":""},{"$f":"IF(OR(Table_PI[[#This Row],[Hide: Electrification kWh]]=\"\",Table_PI[[#This Row],[Hide: Electrification kWh]]=0,ISTEXT(Table_PI[[#This Row],[Hide: Electrification kWh]])),\"\",Table_PI[[#This Row],[Hide: Electrification kWh]])","v":""},{"$f":"IF(OR(Table_PI[[#This Row],[Hide: Electrification GHG]]=\"\",Table_PI[[#This Row],[Hide: Electrification GHG]]=0,ISTEXT(Table_PI[[#This Row],[Hide: Electrification GHG]])),\"\",Table_PI[[#This Row],[Hide: Electrification GHG]])","v":""},{"$f":"IFERROR(IF(Table_SummaryPI[[#This Row],[kWhSavings]]=\"\",\"\",$BH$9*Table_SummaryPI[[#This Row],[kWhSavings]]),0)","v":""},{"$f":"IFERROR(IF(Table_SummaryPI[[#This Row],[kWhSavings]]=\"\",\"\",$BH$14*Table_SummaryPI[[#This Row],[kWhSavings]]),0)","v":""},{"$f":"IFERROR(IF(Table_SummaryPI[[#This Row],[kWhSavings]]=\"\",\"\",$BH$18*Table_SummaryPI[[#This Row],[kWhSavings]]),0)","v":""},{"$f":"IFERROR(IF(Table_SummaryPI[[#This Row],[kWhSavings]]=\"\",\"\",$BH$22*Table_SummaryPI[[#This Row],[kWhSavings]]),0)","v":""}]
[{"$f":"Table_PI[[#This Row],[Line No.]]","v":""},{"$f":"IF(Table_SummaryPI[[#This Row],[MeasureName]]<>\"\",NOT(ISTEXT(Table_PI[[#This Row],[Rebate]])),\"\")","v":""},{"$f":"IF(Table_SummaryPI[[#This Row],[MeassureCategory]]<>\"\",CONCATENATE(Table_SummaryPI[[#This Row],[MeassureCategory]],  \" - \", Table_SummaryPI[[#This Row],[ProposedMeasureCategory]],  \" - \", TEXT(Table_SummaryPI[[#This Row],[Size]],\"#,##0.00\"),\" \",Table_SummaryPI[[#This Row],[SizeUnit]]),\"\")","v":""},{"$f":"SUBSTITUTE(Table_PI[[#This Row],[Measure]],\"     \",\"\",1)","v":""},{"$f":"IF(Table_PI[[#This Row],[List 1]]<>\"\",Table_PI[[#This Row],[List 1]],\"\")","v":""},{"$f":"IF(Table_PI[[#This Row],[List 2]]<>\"\",Table_PI[[#This Row],[List 2]],\"\")","v":""},{"$f":"IF(Table_PI[[#This Row],[List 3]]<>\"\",Table_PI[[#This Row],[List 3]],\"\")","v":""},{"$f":"IF(Table_PI[[#This Row],[Manufacturer]]=\"\",\"\",Table_PI[[#This Row],[Manufacturer]])","v":""},{"$f":"IF(Table_PI[[#This Row],[Model Number]]=\"\",\"\",Table_PI[[#This Row],[Model Number]])","v":""},{"$f":"IF(Table_PI[[#This Row],[Serial Number(s)]]=\"\",\"\",Table_PI[[#This Row],[Serial Number(s)]])","v":""},null,{"$f":"IF(Table_PI[[#This Row],[Size]]=\"\",\"\",Table_PI[[#This Row],[Size]])","v":""},null,null,{"$f":"IF(Table_PI[[#This Row],[Input 1]]<>\"\",Table_PI[[#This Row],[Input 1]],\"\")","v":""},null,null,{"$f":"IF(Table_PI[[#This Row],[Input 2]]<>\"\",Table_PI[[#This Row],[Input 2]],\"\")","v":""},null,null,{"$f":"IF(Table_PI[[#This Row],[Input 3]]<>\"\",Table_PI[[#This Row],[Input 3]],\"\")","v":""},null,null,{"$f":"IF(Table_PI[[#This Row],[Input 4]]<>\"\",Table_PI[[#This Row],[Input 4]],\"\")","v":""},null,null,{"$f":"IF(Table_PI[[#This Row],[Input 4]]<>\"\",Table_PI[[#This Row],[Input 4]],\"\")","v":""},null,null,{"$f":"IF(Table_PI[[#This Row],[Input 4]]<>\"\",Table_PI[[#This Row],[Input 4]],\"\")","v":""},{"$f":"IF(Table_PI[[#This Row],[Quantity]]=\"\",\"\",Table_PI[[#This Row],[Quantity]])","v":""},{"$f":"IF(Table_PI[[#This Row],[Notes]]=\"\",\"\",Table_PI[[#This Row],[Notes]])","v":""},{"$f":"IF(OR(Table_PI[[#This Row],[Hide: Baseline kWh]]=\"\",Table_PI[[#This Row],[Hide: Baseline kWh]]=0,ISTEXT(Table_PI[[#This Row],[Hide: Baseline kWh]])),\"\",Table_PI[[#This Row],[Hide: Baseline kWh]])","v":""},{"$f":"IF(OR(Table_PI[[#This Row],[Hide: Baseline kW]]=\"\",Table_PI[[#This Row],[Hide: Baseline kW]]=0,ISTEXT(Table_PI[[#This Row],[Hide: Baseline kW]])),\"\",Table_PI[[#This Row],[Hide: Baseline kW]])","v":""},{"$f":"IF(OR(Table_PI[[#This Row],[Hide: Proposed kWh]]=\"\",Table_PI[[#This Row],[Hide: Proposed kWh]]=0,ISTEXT(Table_PI[[#This Row],[Hide: Proposed kWh]])),\"\",Table_PI[[#This Row],[Hide: Proposed kWh]])","v":""},{"$f":"IF(OR(Table_PI[[#This Row],[Hide: Proposed kW]]=\"\",Table_PI[[#This Row],[Hide: Proposed kW]]=0,ISTEXT(Table_PI[[#This Row],[Hide: Proposed kW]])),\"\",Table_PI[[#This Row],[Hide: Proposed kW]])","v":""},null,null,{"$f":"IF(OR(Table_PI[[#This Row],[Hide: Rebate]]=\"\",Table_PI[[#This Row],[Hide: Rebate]]=0,ISTEXT(Table_PI[[#This Row],[Hide: Rebate]])),\"\",Table_PI[[#This Row],[Hide: Rebate]])","v":""},null,{"$f":"IF(OR(Table_PI[[#This Row],[Hide: Incremental Cost]]=\"\",Table_PI[[#This Row],[Hide: Incremental Cost]]=0,ISTEXT(Table_PI[[#This Row],[Hide: Incremental Cost]])),\"\",Table_PI[[#This Row],[Hide: Incremental Cost]])","v":""},{"$f":"IFERROR(IF(Table_SummaryPI[[#This Row],[Incentive_Customer]]=\"\",\"\",ROUND(Table_SummaryPI[[#This Row],[Incentive_Customer]]/$AM$401*'Customer Information'!$BC$21,2)),0)","v":""},{"$f":"IF(OR(Table_PI[[#This Row],[Annual kWh]]=\"\",Table_PI[[#This Row],[Annual kWh]]=0,ISTEXT(Table_PI[[#This Row],[Annual kWh]])),\"\",Table_PI[[#This Row],[Annual kWh]])","v":""},{"$f":"IF(OR(Table_PI[[#This Row],[Peak kW]]=\"\",Table_PI[[#This Row],[Peak kW]]=0,ISTEXT(Table_PI[[#This Row],[Peak kW]])),\"\",Table_PI[[#This Row],[Peak kW]])","v":""},{"$f":"IF(Table_SummaryPI[[#This Row],[Line No.]]<>\"\",IF(AND(ISNUMBER(FIND(\"Chiller\",Table_SummaryPI[[#This Row],[P_MeasureOption1]],1)),Table_SummaryPI[[#This Row],[ProposedMeasureCategory]]=\"Air-Cooled (Water-Cooled Replacement)\"),$BD$29*Table_SummaryPI[[#This Row],[Size]]*Table_SummaryPI[[#This Row],[Quantity]]*Table_SummaryPI[[#This Row],[EFLHCooling]],\nIF(ISNUMBER(FIND(\"Dishwasher\",Table_SummaryPI[[#This Row],[ProposedMeasureCategory]],1)),$BH$29*Table_SummaryPI[[#This Row],[Quantity]],\nIF(ISNUMBER(FIND(\"Ice Maker\",Table_SummaryPI[[#This Row],[ProposedMeasureCategory]],1)),$BD$31*Table_SummaryPI[[#This Row],[Quantity]],\nIF(ISNUMBER(FIND(\"Spray Valve\",Table_SummaryPI[[#This Row],[ProposedMeasureCategory]],1)),$BH$31*Table_SummaryPI[[#This Row],[Quantity]],\n0)))),\"\")","v":""},{"$f":"IF(OR(Table_PI[[#This Row],[Hide: Electrification kWh]]=\"\",Table_PI[[#This Row],[Hide: Electrification kWh]]=0,ISTEXT(Table_PI[[#This Row],[Hide: Electrification kWh]])),\"\",Table_PI[[#This Row],[Hide: Electrification kWh]])","v":""},{"$f":"IF(OR(Table_PI[[#This Row],[Hide: Electrification GHG]]=\"\",Table_PI[[#This Row],[Hide: Electrification GHG]]=0,ISTEXT(Table_PI[[#This Row],[Hide: Electrification GHG]])),\"\",Table_PI[[#This Row],[Hide: Electrification GHG]])","v":""},{"$f":"IFERROR(IF(Table_SummaryPI[[#This Row],[kWhSavings]]=\"\",\"\",$BH$9*Table_SummaryPI[[#This Row],[kWhSavings]]),0)","v":""},{"$f":"IFERROR(IF(Table_SummaryPI[[#This Row],[kWhSavings]]=\"\",\"\",$BH$14*Table_SummaryPI[[#This Row],[kWhSavings]]),0)","v":""},{"$f":"IFERROR(IF(Table_SummaryPI[[#This Row],[kWhSavings]]=\"\",\"\",$BH$18*Table_SummaryPI[[#This Row],[kWhSavings]]),0)","v":""},{"$f":"IFERROR(IF(Table_SummaryPI[[#This Row],[kWhSavings]]=\"\",\"\",$BH$22*Table_SummaryPI[[#This Row],[kWhSavings]]),0)","v":""}]
[{"$f":"Table_PI[[#This Row],[Line No.]]","v":""},{"$f":"IF(Table_SummaryPI[[#This Row],[MeasureName]]<>\"\",NOT(ISTEXT(Table_PI[[#This Row],[Rebate]])),\"\")","v":""},{"$f":"IF(Table_SummaryPI[[#This Row],[MeassureCategory]]<>\"\",CONCATENATE(Table_SummaryPI[[#This Row],[MeassureCategory]],  \" - \", Table_SummaryPI[[#This Row],[ProposedMeasureCategory]],  \" - \", TEXT(Table_SummaryPI[[#This Row],[Size]],\"#,##0.00\"),\" \",Table_SummaryPI[[#This Row],[SizeUnit]]),\"\")","v":""},{"$f":"SUBSTITUTE(Table_PI[[#This Row],[Measure]],\"     \",\"\",1)","v":""},{"$f":"IF(Table_PI[[#This Row],[List 1]]<>\"\",Table_PI[[#This Row],[List 1]],\"\")","v":""},{"$f":"IF(Table_PI[[#This Row],[List 2]]<>\"\",Table_PI[[#This Row],[List 2]],\"\")","v":""},{"$f":"IF(Table_PI[[#This Row],[List 3]]<>\"\",Table_PI[[#This Row],[List 3]],\"\")","v":""},{"$f":"IF(Table_PI[[#This Row],[Manufacturer]]=\"\",\"\",Table_PI[[#This Row],[Manufacturer]])","v":""},{"$f":"IF(Table_PI[[#This Row],[Model Number]]=\"\",\"\",Table_PI[[#This Row],[Model Number]])","v":""},{"$f":"IF(Table_PI[[#This Row],[Serial Number(s)]]=\"\",\"\",Table_PI[[#This Row],[Serial Number(s)]])","v":""},null,{"$f":"IF(Table_PI[[#This Row],[Size]]=\"\",\"\",Table_PI[[#This Row],[Size]])","v":""},null,null,{"$f":"IF(Table_PI[[#This Row],[Input 1]]<>\"\",Table_PI[[#This Row],[Input 1]],\"\")","v":""},null,null,{"$f":"IF(Table_PI[[#This Row],[Input 2]]<>\"\",Table_PI[[#This Row],[Input 2]],\"\")","v":""},null,null,{"$f":"IF(Table_PI[[#This Row],[Input 3]]<>\"\",Table_PI[[#This Row],[Input 3]],\"\")","v":""},null,null,{"$f":"IF(Table_PI[[#This Row],[Input 4]]<>\"\",Table_PI[[#This Row],[Input 4]],\"\")","v":""},null,null,{"$f":"IF(Table_PI[[#This Row],[Input 4]]<>\"\",Table_PI[[#This Row],[Input 4]],\"\")","v":""},null,null,{"$f":"IF(Table_PI[[#This Row],[Input 4]]<>\"\",Table_PI[[#This Row],[Input 4]],\"\")","v":""},{"$f":"IF(Table_PI[[#This Row],[Quantity]]=\"\",\"\",Table_PI[[#This Row],[Quantity]])","v":""},{"$f":"IF(Table_PI[[#This Row],[Notes]]=\"\",\"\",Table_PI[[#This Row],[Notes]])","v":""},{"$f":"IF(OR(Table_PI[[#This Row],[Hide: Baseline kWh]]=\"\",Table_PI[[#This Row],[Hide: Baseline kWh]]=0,ISTEXT(Table_PI[[#This Row],[Hide: Baseline kWh]])),\"\",Table_PI[[#This Row],[Hide: Baseline kWh]])","v":""},{"$f":"IF(OR(Table_PI[[#This Row],[Hide: Baseline kW]]=\"\",Table_PI[[#This Row],[Hide: Baseline kW]]=0,ISTEXT(Table_PI[[#This Row],[Hide: Baseline kW]])),\"\",Table_PI[[#This Row],[Hide: Baseline kW]])","v":""},{"$f":"IF(OR(Table_PI[[#This Row],[Hide: Proposed kWh]]=\"\",Table_PI[[#This Row],[Hide: Proposed kWh]]=0,ISTEXT(Table_PI[[#This Row],[Hide: Proposed kWh]])),\"\",Table_PI[[#This Row],[Hide: Proposed kWh]])","v":""},{"$f":"IF(OR(Table_PI[[#This Row],[Hide: Proposed kW]]=\"\",Table_PI[[#This Row],[Hide: Proposed kW]]=0,ISTEXT(Table_PI[[#This Row],[Hide: Proposed kW]])),\"\",Table_PI[[#This Row],[Hide: Proposed kW]])","v":""},null,null,{"$f":"IF(OR(Table_PI[[#This Row],[Hide: Rebate]]=\"\",Table_PI[[#This Row],[Hide: Rebate]]=0,ISTEXT(Table_PI[[#This Row],[Hide: Rebate]])),\"\",Table_PI[[#This Row],[Hide: Rebate]])","v":""},null,{"$f":"IF(OR(Table_PI[[#This Row],[Hide: Incremental Cost]]=\"\",Table_PI[[#This Row],[Hide: Incremental Cost]]=0,ISTEXT(Table_PI[[#This Row],[Hide: Incremental Cost]])),\"\",Table_PI[[#This Row],[Hide: Incremental Cost]])","v":""},{"$f":"IFERROR(IF(Table_SummaryPI[[#This Row],[Incentive_Customer]]=\"\",\"\",ROUND(Table_SummaryPI[[#This Row],[Incentive_Customer]]/$AM$401*'Customer Information'!$BC$21,2)),0)","v":""},{"$f":"IF(OR(Table_PI[[#This Row],[Annual kWh]]=\"\",Table_PI[[#This Row],[Annual kWh]]=0,ISTEXT(Table_PI[[#This Row],[Annual kWh]])),\"\",Table_PI[[#This Row],[Annual kWh]])","v":""},{"$f":"IF(OR(Table_PI[[#This Row],[Peak kW]]=\"\",Table_PI[[#This Row],[Peak kW]]=0,ISTEXT(Table_PI[[#This Row],[Peak kW]])),\"\",Table_PI[[#This Row],[Peak kW]])","v":""},{"$f":"IF(Table_SummaryPI[[#This Row],[Line No.]]<>\"\",IF(AND(ISNUMBER(FIND(\"Chiller\",Table_SummaryPI[[#This Row],[P_MeasureOption1]],1)),Table_SummaryPI[[#This Row],[ProposedMeasureCategory]]=\"Air-Cooled (Water-Cooled Replacement)\"),$BD$29*Table_SummaryPI[[#This Row],[Size]]*Table_SummaryPI[[#This Row],[Quantity]]*Table_SummaryPI[[#This Row],[EFLHCooling]],\nIF(ISNUMBER(FIND(\"Dishwasher\",Table_SummaryPI[[#This Row],[ProposedMeasureCategory]],1)),$BH$29*Table_SummaryPI[[#This Row],[Quantity]],\nIF(ISNUMBER(FIND(\"Ice Maker\",Table_SummaryPI[[#This Row],[ProposedMeasureCategory]],1)),$BD$31*Table_SummaryPI[[#This Row],[Quantity]],\nIF(ISNUMBER(FIND(\"Spray Valve\",Table_SummaryPI[[#This Row],[ProposedMeasureCategory]],1)),$BH$31*Table_SummaryPI[[#This Row],[Quantity]],\n0)))),\"\")","v":""},{"$f":"IF(OR(Table_PI[[#This Row],[Hide: Electrification kWh]]=\"\",Table_PI[[#This Row],[Hide: Electrification kWh]]=0,ISTEXT(Table_PI[[#This Row],[Hide: Electrification kWh]])),\"\",Table_PI[[#This Row],[Hide: Electrification kWh]])","v":""},{"$f":"IF(OR(Table_PI[[#This Row],[Hide: Electrification GHG]]=\"\",Table_PI[[#This Row],[Hide: Electrification GHG]]=0,ISTEXT(Table_PI[[#This Row],[Hide: Electrification GHG]])),\"\",Table_PI[[#This Row],[Hide: Electrification GHG]])","v":""},{"$f":"IFERROR(IF(Table_SummaryPI[[#This Row],[kWhSavings]]=\"\",\"\",$BH$9*Table_SummaryPI[[#This Row],[kWhSavings]]),0)","v":""},{"$f":"IFERROR(IF(Table_SummaryPI[[#This Row],[kWhSavings]]=\"\",\"\",$BH$14*Table_SummaryPI[[#This Row],[kWhSavings]]),0)","v":""},{"$f":"IFERROR(IF(Table_SummaryPI[[#This Row],[kWhSavings]]=\"\",\"\",$BH$18*Table_SummaryPI[[#This Row],[kWhSavings]]),0)","v":""},{"$f":"IFERROR(IF(Table_SummaryPI[[#This Row],[kWhSavings]]=\"\",\"\",$BH$22*Table_SummaryPI[[#This Row],[kWhSavings]]),0)","v":""}]
[{"$f":"Table_PI[[#This Row],[Line No.]]","v":""},{"$f":"IF(Table_SummaryPI[[#This Row],[MeasureName]]<>\"\",NOT(ISTEXT(Table_PI[[#This Row],[Rebate]])),\"\")","v":""},{"$f":"IF(Table_SummaryPI[[#This Row],[MeassureCategory]]<>\"\",CONCATENATE(Table_SummaryPI[[#This Row],[MeassureCategory]],  \" - \", Table_SummaryPI[[#This Row],[ProposedMeasureCategory]],  \" - \", TEXT(Table_SummaryPI[[#This Row],[Size]],\"#,##0.00\"),\" \",Table_SummaryPI[[#This Row],[SizeUnit]]),\"\")","v":""},{"$f":"SUBSTITUTE(Table_PI[[#This Row],[Measure]],\"     \",\"\",1)","v":""},{"$f":"IF(Table_PI[[#This Row],[List 1]]<>\"\",Table_PI[[#This Row],[List 1]],\"\")","v":""},{"$f":"IF(Table_PI[[#This Row],[List 2]]<>\"\",Table_PI[[#This Row],[List 2]],\"\")","v":""},{"$f":"IF(Table_PI[[#This Row],[List 3]]<>\"\",Table_PI[[#This Row],[List 3]],\"\")","v":""},{"$f":"IF(Table_PI[[#This Row],[Manufacturer]]=\"\",\"\",Table_PI[[#This Row],[Manufacturer]])","v":""},{"$f":"IF(Table_PI[[#This Row],[Model Number]]=\"\",\"\",Table_PI[[#This Row],[Model Number]])","v":""},{"$f":"IF(Table_PI[[#This Row],[Serial Number(s)]]=\"\",\"\",Table_PI[[#This Row],[Serial Number(s)]])","v":""},null,{"$f":"IF(Table_PI[[#This Row],[Size]]=\"\",\"\",Table_PI[[#This Row],[Size]])","v":""},null,null,{"$f":"IF(Table_PI[[#This Row],[Input 1]]<>\"\",Table_PI[[#This Row],[Input 1]],\"\")","v":""},null,null,{"$f":"IF(Table_PI[[#This Row],[Input 2]]<>\"\",Table_PI[[#This Row],[Input 2]],\"\")","v":""},null,null,{"$f":"IF(Table_PI[[#This Row],[Input 3]]<>\"\",Table_PI[[#This Row],[Input 3]],\"\")","v":""},null,null,{"$f":"IF(Table_PI[[#This Row],[Input 4]]<>\"\",Table_PI[[#This Row],[Input 4]],\"\")","v":""},null,null,{"$f":"IF(Table_PI[[#This Row],[Input 4]]<>\"\",Table_PI[[#This Row],[Input 4]],\"\")","v":""},null,null,{"$f":"IF(Table_PI[[#This Row],[Input 4]]<>\"\",Table_PI[[#This Row],[Input 4]],\"\")","v":""},{"$f":"IF(Table_PI[[#This Row],[Quantity]]=\"\",\"\",Table_PI[[#This Row],[Quantity]])","v":""},{"$f":"IF(Table_PI[[#This Row],[Notes]]=\"\",\"\",Table_PI[[#This Row],[Notes]])","v":""},{"$f":"IF(OR(Table_PI[[#This Row],[Hide: Baseline kWh]]=\"\",Table_PI[[#This Row],[Hide: Baseline kWh]]=0,ISTEXT(Table_PI[[#This Row],[Hide: Baseline kWh]])),\"\",Table_PI[[#This Row],[Hide: Baseline kWh]])","v":""},{"$f":"IF(OR(Table_PI[[#This Row],[Hide: Baseline kW]]=\"\",Table_PI[[#This Row],[Hide: Baseline kW]]=0,ISTEXT(Table_PI[[#This Row],[Hide: Baseline kW]])),\"\",Table_PI[[#This Row],[Hide: Baseline kW]])","v":""},{"$f":"IF(OR(Table_PI[[#This Row],[Hide: Proposed kWh]]=\"\",Table_PI[[#This Row],[Hide: Proposed kWh]]=0,ISTEXT(Table_PI[[#This Row],[Hide: Proposed kWh]])),\"\",Table_PI[[#This Row],[Hide: Proposed kWh]])","v":""},{"$f":"IF(OR(Table_PI[[#This Row],[Hide: Proposed kW]]=\"\",Table_PI[[#This Row],[Hide: Proposed kW]]=0,ISTEXT(Table_PI[[#This Row],[Hide: Proposed kW]])),\"\",Table_PI[[#This Row],[Hide: Proposed kW]])","v":""},null,null,{"$f":"IF(OR(Table_PI[[#This Row],[Hide: Rebate]]=\"\",Table_PI[[#This Row],[Hide: Rebate]]=0,ISTEXT(Table_PI[[#This Row],[Hide: Rebate]])),\"\",Table_PI[[#This Row],[Hide: Rebate]])","v":""},null,{"$f":"IF(OR(Table_PI[[#This Row],[Hide: Incremental Cost]]=\"\",Table_PI[[#This Row],[Hide: Incremental Cost]]=0,ISTEXT(Table_PI[[#This Row],[Hide: Incremental Cost]])),\"\",Table_PI[[#This Row],[Hide: Incremental Cost]])","v":""},{"$f":"IFERROR(IF(Table_SummaryPI[[#This Row],[Incentive_Customer]]=\"\",\"\",ROUND(Table_SummaryPI[[#This Row],[Incentive_Customer]]/$AM$401*'Customer Information'!$BC$21,2)),0)","v":""},{"$f":"IF(OR(Table_PI[[#This Row],[Annual kWh]]=\"\",Table_PI[[#This Row],[Annual kWh]]=0,ISTEXT(Table_PI[[#This Row],[Annual kWh]])),\"\",Table_PI[[#This Row],[Annual kWh]])","v":""},{"$f":"IF(OR(Table_PI[[#This Row],[Peak kW]]=\"\",Table_PI[[#This Row],[Peak kW]]=0,ISTEXT(Table_PI[[#This Row],[Peak kW]])),\"\",Table_PI[[#This Row],[Peak kW]])","v":""},{"$f":"IF(Table_SummaryPI[[#This Row],[Line No.]]<>\"\",IF(AND(ISNUMBER(FIND(\"Chiller\",Table_SummaryPI[[#This Row],[P_MeasureOption1]],1)),Table_SummaryPI[[#This Row],[ProposedMeasureCategory]]=\"Air-Cooled (Water-Cooled Replacement)\"),$BD$29*Table_SummaryPI[[#This Row],[Size]]*Table_SummaryPI[[#This Row],[Quantity]]*Table_SummaryPI[[#This Row],[EFLHCooling]],\nIF(ISNUMBER(FIND(\"Dishwasher\",Table_SummaryPI[[#This Row],[ProposedMeasureCategory]],1)),$BH$29*Table_SummaryPI[[#This Row],[Quantity]],\nIF(ISNUMBER(FIND(\"Ice Maker\",Table_SummaryPI[[#This Row],[ProposedMeasureCategory]],1)),$BD$31*Table_SummaryPI[[#This Row],[Quantity]],\nIF(ISNUMBER(FIND(\"Spray Valve\",Table_SummaryPI[[#This Row],[ProposedMeasureCategory]],1)),$BH$31*Table_SummaryPI[[#This Row],[Quantity]],\n0)))),\"\")","v":""},{"$f":"IF(OR(Table_PI[[#This Row],[Hide: Electrification kWh]]=\"\",Table_PI[[#This Row],[Hide: Electrification kWh]]=0,ISTEXT(Table_PI[[#This Row],[Hide: Electrification kWh]])),\"\",Table_PI[[#This Row],[Hide: Electrification kWh]])","v":""},{"$f":"IF(OR(Table_PI[[#This Row],[Hide: Electrification GHG]]=\"\",Table_PI[[#This Row],[Hide: Electrification GHG]]=0,ISTEXT(Table_PI[[#This Row],[Hide: Electrification GHG]])),\"\",Table_PI[[#This Row],[Hide: Electrification GHG]])","v":""},{"$f":"IFERROR(IF(Table_SummaryPI[[#This Row],[kWhSavings]]=\"\",\"\",$BH$9*Table_SummaryPI[[#This Row],[kWhSavings]]),0)","v":""},{"$f":"IFERROR(IF(Table_SummaryPI[[#This Row],[kWhSavings]]=\"\",\"\",$BH$14*Table_SummaryPI[[#This Row],[kWhSavings]]),0)","v":""},{"$f":"IFERROR(IF(Table_SummaryPI[[#This Row],[kWhSavings]]=\"\",\"\",$BH$18*Table_SummaryPI[[#This Row],[kWhSavings]]),0)","v":""},{"$f":"IFERROR(IF(Table_SummaryPI[[#This Row],[kWhSavings]]=\"\",\"\",$BH$22*Table_SummaryPI[[#This Row],[kWhSavings]]),0)","v":""}]
[{"$f":"Table_PI[[#This Row],[Line No.]]","v":""},{"$f":"IF(Table_SummaryPI[[#This Row],[MeasureName]]<>\"\",NOT(ISTEXT(Table_PI[[#This Row],[Rebate]])),\"\")","v":""},{"$f":"IF(Table_SummaryPI[[#This Row],[MeassureCategory]]<>\"\",CONCATENATE(Table_SummaryPI[[#This Row],[MeassureCategory]],  \" - \", Table_SummaryPI[[#This Row],[ProposedMeasureCategory]],  \" - \", TEXT(Table_SummaryPI[[#This Row],[Size]],\"#,##0.00\"),\" \",Table_SummaryPI[[#This Row],[SizeUnit]]),\"\")","v":""},{"$f":"SUBSTITUTE(Table_PI[[#This Row],[Measure]],\"     \",\"\",1)","v":""},{"$f":"IF(Table_PI[[#This Row],[List 1]]<>\"\",Table_PI[[#This Row],[List 1]],\"\")","v":""},{"$f":"IF(Table_PI[[#This Row],[List 2]]<>\"\",Table_PI[[#This Row],[List 2]],\"\")","v":""},{"$f":"IF(Table_PI[[#This Row],[List 3]]<>\"\",Table_PI[[#This Row],[List 3]],\"\")","v":""},{"$f":"IF(Table_PI[[#This Row],[Manufacturer]]=\"\",\"\",Table_PI[[#This Row],[Manufacturer]])","v":""},{"$f":"IF(Table_PI[[#This Row],[Model Number]]=\"\",\"\",Table_PI[[#This Row],[Model Number]])","v":""},{"$f":"IF(Table_PI[[#This Row],[Serial Number(s)]]=\"\",\"\",Table_PI[[#This Row],[Serial Number(s)]])","v":""},null,{"$f":"IF(Table_PI[[#This Row],[Size]]=\"\",\"\",Table_PI[[#This Row],[Size]])","v":""},null,null,{"$f":"IF(Table_PI[[#This Row],[Input 1]]<>\"\",Table_PI[[#This Row],[Input 1]],\"\")","v":""},null,null,{"$f":"IF(Table_PI[[#This Row],[Input 2]]<>\"\",Table_PI[[#This Row],[Input 2]],\"\")","v":""},null,null,{"$f":"IF(Table_PI[[#This Row],[Input 3]]<>\"\",Table_PI[[#This Row],[Input 3]],\"\")","v":""},null,null,{"$f":"IF(Table_PI[[#This Row],[Input 4]]<>\"\",Table_PI[[#This Row],[Input 4]],\"\")","v":""},null,null,{"$f":"IF(Table_PI[[#This Row],[Input 4]]<>\"\",Table_PI[[#This Row],[Input 4]],\"\")","v":""},null,null,{"$f":"IF(Table_PI[[#This Row],[Input 4]]<>\"\",Table_PI[[#This Row],[Input 4]],\"\")","v":""},{"$f":"IF(Table_PI[[#This Row],[Quantity]]=\"\",\"\",Table_PI[[#This Row],[Quantity]])","v":""},{"$f":"IF(Table_PI[[#This Row],[Notes]]=\"\",\"\",Table_PI[[#This Row],[Notes]])","v":""},{"$f":"IF(OR(Table_PI[[#This Row],[Hide: Baseline kWh]]=\"\",Table_PI[[#This Row],[Hide: Baseline kWh]]=0,ISTEXT(Table_PI[[#This Row],[Hide: Baseline kWh]])),\"\",Table_PI[[#This Row],[Hide: Baseline kWh]])","v":""},{"$f":"IF(OR(Table_PI[[#This Row],[Hide: Baseline kW]]=\"\",Table_PI[[#This Row],[Hide: Baseline kW]]=0,ISTEXT(Table_PI[[#This Row],[Hide: Baseline kW]])),\"\",Table_PI[[#This Row],[Hide: Baseline kW]])","v":""},{"$f":"IF(OR(Table_PI[[#This Row],[Hide: Proposed kWh]]=\"\",Table_PI[[#This Row],[Hide: Proposed kWh]]=0,ISTEXT(Table_PI[[#This Row],[Hide: Proposed kWh]])),\"\",Table_PI[[#This Row],[Hide: Proposed kWh]])","v":""},{"$f":"IF(OR(Table_PI[[#This Row],[Hide: Proposed kW]]=\"\",Table_PI[[#This Row],[Hide: Proposed kW]]=0,ISTEXT(Table_PI[[#This Row],[Hide: Proposed kW]])),\"\",Table_PI[[#This Row],[Hide: Proposed kW]])","v":""},null,null,{"$f":"IF(OR(Table_PI[[#This Row],[Hide: Rebate]]=\"\",Table_PI[[#This Row],[Hide: Rebate]]=0,ISTEXT(Table_PI[[#This Row],[Hide: Rebate]])),\"\",Table_PI[[#This Row],[Hide: Rebate]])","v":""},null,{"$f":"IF(OR(Table_PI[[#This Row],[Hide: Incremental Cost]]=\"\",Table_PI[[#This Row],[Hide: Incremental Cost]]=0,ISTEXT(Table_PI[[#This Row],[Hide: Incremental Cost]])),\"\",Table_PI[[#This Row],[Hide: Incremental Cost]])","v":""},{"$f":"IFERROR(IF(Table_SummaryPI[[#This Row],[Incentive_Customer]]=\"\",\"\",ROUND(Table_SummaryPI[[#This Row],[Incentive_Customer]]/$AM$401*'Customer Information'!$BC$21,2)),0)","v":""},{"$f":"IF(OR(Table_PI[[#This Row],[Annual kWh]]=\"\",Table_PI[[#This Row],[Annual kWh]]=0,ISTEXT(Table_PI[[#This Row],[Annual kWh]])),\"\",Table_PI[[#This Row],[Annual kWh]])","v":""},{"$f":"IF(OR(Table_PI[[#This Row],[Peak kW]]=\"\",Table_PI[[#This Row],[Peak kW]]=0,ISTEXT(Table_PI[[#This Row],[Peak kW]])),\"\",Table_PI[[#This Row],[Peak kW]])","v":""},{"$f":"IF(Table_SummaryPI[[#This Row],[Line No.]]<>\"\",IF(AND(ISNUMBER(FIND(\"Chiller\",Table_SummaryPI[[#This Row],[P_MeasureOption1]],1)),Table_SummaryPI[[#This Row],[ProposedMeasureCategory]]=\"Air-Cooled (Water-Cooled Replacement)\"),$BD$29*Table_SummaryPI[[#This Row],[Size]]*Table_SummaryPI[[#This Row],[Quantity]]*Table_SummaryPI[[#This Row],[EFLHCooling]],\nIF(ISNUMBER(FIND(\"Dishwasher\",Table_SummaryPI[[#This Row],[ProposedMeasureCategory]],1)),$BH$29*Table_SummaryPI[[#This Row],[Quantity]],\nIF(ISNUMBER(FIND(\"Ice Maker\",Table_SummaryPI[[#This Row],[ProposedMeasureCategory]],1)),$BD$31*Table_SummaryPI[[#This Row],[Quantity]],\nIF(ISNUMBER(FIND(\"Spray Valve\",Table_SummaryPI[[#This Row],[ProposedMeasureCategory]],1)),$BH$31*Table_SummaryPI[[#This Row],[Quantity]],\n0)))),\"\")","v":""},{"$f":"IF(OR(Table_PI[[#This Row],[Hide: Electrification kWh]]=\"\",Table_PI[[#This Row],[Hide: Electrification kWh]]=0,ISTEXT(Table_PI[[#This Row],[Hide: Electrification kWh]])),\"\",Table_PI[[#This Row],[Hide: Electrification kWh]])","v":""},{"$f":"IF(OR(Table_PI[[#This Row],[Hide: Electrification GHG]]=\"\",Table_PI[[#This Row],[Hide: Electrification GHG]]=0,ISTEXT(Table_PI[[#This Row],[Hide: Electrification GHG]])),\"\",Table_PI[[#This Row],[Hide: Electrification GHG]])","v":""},{"$f":"IFERROR(IF(Table_SummaryPI[[#This Row],[kWhSavings]]=\"\",\"\",$BH$9*Table_SummaryPI[[#This Row],[kWhSavings]]),0)","v":""},{"$f":"IFERROR(IF(Table_SummaryPI[[#This Row],[kWhSavings]]=\"\",\"\",$BH$14*Table_SummaryPI[[#This Row],[kWhSavings]]),0)","v":""},{"$f":"IFERROR(IF(Table_SummaryPI[[#This Row],[kWhSavings]]=\"\",\"\",$BH$18*Table_SummaryPI[[#This Row],[kWhSavings]]),0)","v":""},{"$f":"IFERROR(IF(Table_SummaryPI[[#This Row],[kWhSavings]]=\"\",\"\",$BH$22*Table_SummaryPI[[#This Row],[kWhSavings]]),0)","v":""}]
[{"$f":"Table_PI[[#This Row],[Line No.]]","v":""},{"$f":"IF(Table_SummaryPI[[#This Row],[MeasureName]]<>\"\",NOT(ISTEXT(Table_PI[[#This Row],[Rebate]])),\"\")","v":""},{"$f":"IF(Table_SummaryPI[[#This Row],[MeassureCategory]]<>\"\",CONCATENATE(Table_SummaryPI[[#This Row],[MeassureCategory]],  \" - \", Table_SummaryPI[[#This Row],[ProposedMeasureCategory]],  \" - \", TEXT(Table_SummaryPI[[#This Row],[Size]],\"#,##0.00\"),\" \",Table_SummaryPI[[#This Row],[SizeUnit]]),\"\")","v":""},{"$f":"SUBSTITUTE(Table_PI[[#This Row],[Measure]],\"     \",\"\",1)","v":""},{"$f":"IF(Table_PI[[#This Row],[List 1]]<>\"\",Table_PI[[#This Row],[List 1]],\"\")","v":""},{"$f":"IF(Table_PI[[#This Row],[List 2]]<>\"\",Table_PI[[#This Row],[List 2]],\"\")","v":""},{"$f":"IF(Table_PI[[#This Row],[List 3]]<>\"\",Table_PI[[#This Row],[List 3]],\"\")","v":""},{"$f":"IF(Table_PI[[#This Row],[Manufacturer]]=\"\",\"\",Table_PI[[#This Row],[Manufacturer]])","v":""},{"$f":"IF(Table_PI[[#This Row],[Model Number]]=\"\",\"\",Table_PI[[#This Row],[Model Number]])","v":""},{"$f":"IF(Table_PI[[#This Row],[Serial Number(s)]]=\"\",\"\",Table_PI[[#This Row],[Serial Number(s)]])","v":""},null,{"$f":"IF(Table_PI[[#This Row],[Size]]=\"\",\"\",Table_PI[[#This Row],[Size]])","v":""},null,null,{"$f":"IF(Table_PI[[#This Row],[Input 1]]<>\"\",Table_PI[[#This Row],[Input 1]],\"\")","v":""},null,null,{"$f":"IF(Table_PI[[#This Row],[Input 2]]<>\"\",Table_PI[[#This Row],[Input 2]],\"\")","v":""},null,null,{"$f":"IF(Table_PI[[#This Row],[Input 3]]<>\"\",Table_PI[[#This Row],[Input 3]],\"\")","v":""},null,null,{"$f":"IF(Table_PI[[#This Row],[Input 4]]<>\"\",Table_PI[[#This Row],[Input 4]],\"\")","v":""},null,null,{"$f":"IF(Table_PI[[#This Row],[Input 4]]<>\"\",Table_PI[[#This Row],[Input 4]],\"\")","v":""},null,null,{"$f":"IF(Table_PI[[#This Row],[Input 4]]<>\"\",Table_PI[[#This Row],[Input 4]],\"\")","v":""},{"$f":"IF(Table_PI[[#This Row],[Quantity]]=\"\",\"\",Table_PI[[#This Row],[Quantity]])","v":""},{"$f":"IF(Table_PI[[#This Row],[Notes]]=\"\",\"\",Table_PI[[#This Row],[Notes]])","v":""},{"$f":"IF(OR(Table_PI[[#This Row],[Hide: Baseline kWh]]=\"\",Table_PI[[#This Row],[Hide: Baseline kWh]]=0,ISTEXT(Table_PI[[#This Row],[Hide: Baseline kWh]])),\"\",Table_PI[[#This Row],[Hide: Baseline kWh]])","v":""},{"$f":"IF(OR(Table_PI[[#This Row],[Hide: Baseline kW]]=\"\",Table_PI[[#This Row],[Hide: Baseline kW]]=0,ISTEXT(Table_PI[[#This Row],[Hide: Baseline kW]])),\"\",Table_PI[[#This Row],[Hide: Baseline kW]])","v":""},{"$f":"IF(OR(Table_PI[[#This Row],[Hide: Proposed kWh]]=\"\",Table_PI[[#This Row],[Hide: Proposed kWh]]=0,ISTEXT(Table_PI[[#This Row],[Hide: Proposed kWh]])),\"\",Table_PI[[#This Row],[Hide: Proposed kWh]])","v":""},{"$f":"IF(OR(Table_PI[[#This Row],[Hide: Proposed kW]]=\"\",Table_PI[[#This Row],[Hide: Proposed kW]]=0,ISTEXT(Table_PI[[#This Row],[Hide: Proposed kW]])),\"\",Table_PI[[#This Row],[Hide: Proposed kW]])","v":""},null,null,{"$f":"IF(OR(Table_PI[[#This Row],[Hide: Rebate]]=\"\",Table_PI[[#This Row],[Hide: Rebate]]=0,ISTEXT(Table_PI[[#This Row],[Hide: Rebate]])),\"\",Table_PI[[#This Row],[Hide: Rebate]])","v":""},null,{"$f":"IF(OR(Table_PI[[#This Row],[Hide: Incremental Cost]]=\"\",Table_PI[[#This Row],[Hide: Incremental Cost]]=0,ISTEXT(Table_PI[[#This Row],[Hide: Incremental Cost]])),\"\",Table_PI[[#This Row],[Hide: Incremental Cost]])","v":""},{"$f":"IFERROR(IF(Table_SummaryPI[[#This Row],[Incentive_Customer]]=\"\",\"\",ROUND(Table_SummaryPI[[#This Row],[Incentive_Customer]]/$AM$401*'Customer Information'!$BC$21,2)),0)","v":""},{"$f":"IF(OR(Table_PI[[#This Row],[Annual kWh]]=\"\",Table_PI[[#This Row],[Annual kWh]]=0,ISTEXT(Table_PI[[#This Row],[Annual kWh]])),\"\",Table_PI[[#This Row],[Annual kWh]])","v":""},{"$f":"IF(OR(Table_PI[[#This Row],[Peak kW]]=\"\",Table_PI[[#This Row],[Peak kW]]=0,ISTEXT(Table_PI[[#This Row],[Peak kW]])),\"\",Table_PI[[#This Row],[Peak kW]])","v":""},{"$f":"IF(Table_SummaryPI[[#This Row],[Line No.]]<>\"\",IF(AND(ISNUMBER(FIND(\"Chiller\",Table_SummaryPI[[#This Row],[P_MeasureOption1]],1)),Table_SummaryPI[[#This Row],[ProposedMeasureCategory]]=\"Air-Cooled (Water-Cooled Replacement)\"),$BD$29*Table_SummaryPI[[#This Row],[Size]]*Table_SummaryPI[[#This Row],[Quantity]]*Table_SummaryPI[[#This Row],[EFLHCooling]],\nIF(ISNUMBER(FIND(\"Dishwasher\",Table_SummaryPI[[#This Row],[ProposedMeasureCategory]],1)),$BH$29*Table_SummaryPI[[#This Row],[Quantity]],\nIF(ISNUMBER(FIND(\"Ice Maker\",Table_SummaryPI[[#This Row],[ProposedMeasureCategory]],1)),$BD$31*Table_SummaryPI[[#This Row],[Quantity]],\nIF(ISNUMBER(FIND(\"Spray Valve\",Table_SummaryPI[[#This Row],[ProposedMeasureCategory]],1)),$BH$31*Table_SummaryPI[[#This Row],[Quantity]],\n0)))),\"\")","v":""},{"$f":"IF(OR(Table_PI[[#This Row],[Hide: Electrification kWh]]=\"\",Table_PI[[#This Row],[Hide: Electrification kWh]]=0,ISTEXT(Table_PI[[#This Row],[Hide: Electrification kWh]])),\"\",Table_PI[[#This Row],[Hide: Electrification kWh]])","v":""},{"$f":"IF(OR(Table_PI[[#This Row],[Hide: Electrification GHG]]=\"\",Table_PI[[#This Row],[Hide: Electrification GHG]]=0,ISTEXT(Table_PI[[#This Row],[Hide: Electrification GHG]])),\"\",Table_PI[[#This Row],[Hide: Electrification GHG]])","v":""},{"$f":"IFERROR(IF(Table_SummaryPI[[#This Row],[kWhSavings]]=\"\",\"\",$BH$9*Table_SummaryPI[[#This Row],[kWhSavings]]),0)","v":""},{"$f":"IFERROR(IF(Table_SummaryPI[[#This Row],[kWhSavings]]=\"\",\"\",$BH$14*Table_SummaryPI[[#This Row],[kWhSavings]]),0)","v":""},{"$f":"IFERROR(IF(Table_SummaryPI[[#This Row],[kWhSavings]]=\"\",\"\",$BH$18*Table_SummaryPI[[#This Row],[kWhSavings]]),0)","v":""},{"$f":"IFERROR(IF(Table_SummaryPI[[#This Row],[kWhSavings]]=\"\",\"\",$BH$22*Table_SummaryPI[[#This Row],[kWhSavings]]),0)","v":""}]
[{"$f":"Table_PI[[#This Row],[Line No.]]","v":""},{"$f":"IF(Table_SummaryPI[[#This Row],[MeasureName]]<>\"\",NOT(ISTEXT(Table_PI[[#This Row],[Rebate]])),\"\")","v":""},{"$f":"IF(Table_SummaryPI[[#This Row],[MeassureCategory]]<>\"\",CONCATENATE(Table_SummaryPI[[#This Row],[MeassureCategory]],  \" - \", Table_SummaryPI[[#This Row],[ProposedMeasureCategory]],  \" - \", TEXT(Table_SummaryPI[[#This Row],[Size]],\"#,##0.00\"),\" \",Table_SummaryPI[[#This Row],[SizeUnit]]),\"\")","v":""},{"$f":"SUBSTITUTE(Table_PI[[#This Row],[Measure]],\"     \",\"\",1)","v":""},{"$f":"IF(Table_PI[[#This Row],[List 1]]<>\"\",Table_PI[[#This Row],[List 1]],\"\")","v":""},{"$f":"IF(Table_PI[[#This Row],[List 2]]<>\"\",Table_PI[[#This Row],[List 2]],\"\")","v":""},{"$f":"IF(Table_PI[[#This Row],[List 3]]<>\"\",Table_PI[[#This Row],[List 3]],\"\")","v":""},{"$f":"IF(Table_PI[[#This Row],[Manufacturer]]=\"\",\"\",Table_PI[[#This Row],[Manufacturer]])","v":""},{"$f":"IF(Table_PI[[#This Row],[Model Number]]=\"\",\"\",Table_PI[[#This Row],[Model Number]])","v":""},{"$f":"IF(Table_PI[[#This Row],[Serial Number(s)]]=\"\",\"\",Table_PI[[#This Row],[Serial Number(s)]])","v":""},null,{"$f":"IF(Table_PI[[#This Row],[Size]]=\"\",\"\",Table_PI[[#This Row],[Size]])","v":""},null,null,{"$f":"IF(Table_PI[[#This Row],[Input 1]]<>\"\",Table_PI[[#This Row],[Input 1]],\"\")","v":""},null,null,{"$f":"IF(Table_PI[[#This Row],[Input 2]]<>\"\",Table_PI[[#This Row],[Input 2]],\"\")","v":""},null,null,{"$f":"IF(Table_PI[[#This Row],[Input 3]]<>\"\",Table_PI[[#This Row],[Input 3]],\"\")","v":""},null,null,{"$f":"IF(Table_PI[[#This Row],[Input 4]]<>\"\",Table_PI[[#This Row],[Input 4]],\"\")","v":""},null,null,{"$f":"IF(Table_PI[[#This Row],[Input 4]]<>\"\",Table_PI[[#This Row],[Input 4]],\"\")","v":""},null,null,{"$f":"IF(Table_PI[[#This Row],[Input 4]]<>\"\",Table_PI[[#This Row],[Input 4]],\"\")","v":""},{"$f":"IF(Table_PI[[#This Row],[Quantity]]=\"\",\"\",Table_PI[[#This Row],[Quantity]])","v":""},{"$f":"IF(Table_PI[[#This Row],[Notes]]=\"\",\"\",Table_PI[[#This Row],[Notes]])","v":""},{"$f":"IF(OR(Table_PI[[#This Row],[Hide: Baseline kWh]]=\"\",Table_PI[[#This Row],[Hide: Baseline kWh]]=0,ISTEXT(Table_PI[[#This Row],[Hide: Baseline kWh]])),\"\",Table_PI[[#This Row],[Hide: Baseline kWh]])","v":""},{"$f":"IF(OR(Table_PI[[#This Row],[Hide: Baseline kW]]=\"\",Table_PI[[#This Row],[Hide: Baseline kW]]=0,ISTEXT(Table_PI[[#This Row],[Hide: Baseline kW]])),\"\",Table_PI[[#This Row],[Hide: Baseline kW]])","v":""},{"$f":"IF(OR(Table_PI[[#This Row],[Hide: Proposed kWh]]=\"\",Table_PI[[#This Row],[Hide: Proposed kWh]]=0,ISTEXT(Table_PI[[#This Row],[Hide: Proposed kWh]])),\"\",Table_PI[[#This Row],[Hide: Proposed kWh]])","v":""},{"$f":"IF(OR(Table_PI[[#This Row],[Hide: Proposed kW]]=\"\",Table_PI[[#This Row],[Hide: Proposed kW]]=0,ISTEXT(Table_PI[[#This Row],[Hide: Proposed kW]])),\"\",Table_PI[[#This Row],[Hide: Proposed kW]])","v":""},null,null,{"$f":"IF(OR(Table_PI[[#This Row],[Hide: Rebate]]=\"\",Table_PI[[#This Row],[Hide: Rebate]]=0,ISTEXT(Table_PI[[#This Row],[Hide: Rebate]])),\"\",Table_PI[[#This Row],[Hide: Rebate]])","v":""},null,{"$f":"IF(OR(Table_PI[[#This Row],[Hide: Incremental Cost]]=\"\",Table_PI[[#This Row],[Hide: Incremental Cost]]=0,ISTEXT(Table_PI[[#This Row],[Hide: Incremental Cost]])),\"\",Table_PI[[#This Row],[Hide: Incremental Cost]])","v":""},{"$f":"IFERROR(IF(Table_SummaryPI[[#This Row],[Incentive_Customer]]=\"\",\"\",ROUND(Table_SummaryPI[[#This Row],[Incentive_Customer]]/$AM$401*'Customer Information'!$BC$21,2)),0)","v":""},{"$f":"IF(OR(Table_PI[[#This Row],[Annual kWh]]=\"\",Table_PI[[#This Row],[Annual kWh]]=0,ISTEXT(Table_PI[[#This Row],[Annual kWh]])),\"\",Table_PI[[#This Row],[Annual kWh]])","v":""},{"$f":"IF(OR(Table_PI[[#This Row],[Peak kW]]=\"\",Table_PI[[#This Row],[Peak kW]]=0,ISTEXT(Table_PI[[#This Row],[Peak kW]])),\"\",Table_PI[[#This Row],[Peak kW]])","v":""},{"$f":"IF(Table_SummaryPI[[#This Row],[Line No.]]<>\"\",IF(AND(ISNUMBER(FIND(\"Chiller\",Table_SummaryPI[[#This Row],[P_MeasureOption1]],1)),Table_SummaryPI[[#This Row],[ProposedMeasureCategory]]=\"Air-Cooled (Water-Cooled Replacement)\"),$BD$29*Table_SummaryPI[[#This Row],[Size]]*Table_SummaryPI[[#This Row],[Quantity]]*Table_SummaryPI[[#This Row],[EFLHCooling]],\nIF(ISNUMBER(FIND(\"Dishwasher\",Table_SummaryPI[[#This Row],[ProposedMeasureCategory]],1)),$BH$29*Table_SummaryPI[[#This Row],[Quantity]],\nIF(ISNUMBER(FIND(\"Ice Maker\",Table_SummaryPI[[#This Row],[ProposedMeasureCategory]],1)),$BD$31*Table_SummaryPI[[#This Row],[Quantity]],\nIF(ISNUMBER(FIND(\"Spray Valve\",Table_SummaryPI[[#This Row],[ProposedMeasureCategory]],1)),$BH$31*Table_SummaryPI[[#This Row],[Quantity]],\n0)))),\"\")","v":""},{"$f":"IF(OR(Table_PI[[#This Row],[Hide: Electrification kWh]]=\"\",Table_PI[[#This Row],[Hide: Electrification kWh]]=0,ISTEXT(Table_PI[[#This Row],[Hide: Electrification kWh]])),\"\",Table_PI[[#This Row],[Hide: Electrification kWh]])","v":""},{"$f":"IF(OR(Table_PI[[#This Row],[Hide: Electrification GHG]]=\"\",Table_PI[[#This Row],[Hide: Electrification GHG]]=0,ISTEXT(Table_PI[[#This Row],[Hide: Electrification GHG]])),\"\",Table_PI[[#This Row],[Hide: Electrification GHG]])","v":""},{"$f":"IFERROR(IF(Table_SummaryPI[[#This Row],[kWhSavings]]=\"\",\"\",$BH$9*Table_SummaryPI[[#This Row],[kWhSavings]]),0)","v":""},{"$f":"IFERROR(IF(Table_SummaryPI[[#This Row],[kWhSavings]]=\"\",\"\",$BH$14*Table_SummaryPI[[#This Row],[kWhSavings]]),0)","v":""},{"$f":"IFERROR(IF(Table_SummaryPI[[#This Row],[kWhSavings]]=\"\",\"\",$BH$18*Table_SummaryPI[[#This Row],[kWhSavings]]),0)","v":""},{"$f":"IFERROR(IF(Table_SummaryPI[[#This Row],[kWhSavings]]=\"\",\"\",$BH$22*Table_SummaryPI[[#This Row],[kWhSavings]]),0)","v":""}]
[{"$f":"Table_PI[[#This Row],[Line No.]]","v":""},{"$f":"IF(Table_SummaryPI[[#This Row],[MeasureName]]<>\"\",NOT(ISTEXT(Table_PI[[#This Row],[Rebate]])),\"\")","v":""},{"$f":"IF(Table_SummaryPI[[#This Row],[MeassureCategory]]<>\"\",CONCATENATE(Table_SummaryPI[[#This Row],[MeassureCategory]],  \" - \", Table_SummaryPI[[#This Row],[ProposedMeasureCategory]],  \" - \", TEXT(Table_SummaryPI[[#This Row],[Size]],\"#,##0.00\"),\" \",Table_SummaryPI[[#This Row],[SizeUnit]]),\"\")","v":""},{"$f":"SUBSTITUTE(Table_PI[[#This Row],[Measure]],\"     \",\"\",1)","v":""},{"$f":"IF(Table_PI[[#This Row],[List 1]]<>\"\",Table_PI[[#This Row],[List 1]],\"\")","v":""},{"$f":"IF(Table_PI[[#This Row],[List 2]]<>\"\",Table_PI[[#This Row],[List 2]],\"\")","v":""},{"$f":"IF(Table_PI[[#This Row],[List 3]]<>\"\",Table_PI[[#This Row],[List 3]],\"\")","v":""},{"$f":"IF(Table_PI[[#This Row],[Manufacturer]]=\"\",\"\",Table_PI[[#This Row],[Manufacturer]])","v":""},{"$f":"IF(Table_PI[[#This Row],[Model Number]]=\"\",\"\",Table_PI[[#This Row],[Model Number]])","v":""},{"$f":"IF(Table_PI[[#This Row],[Serial Number(s)]]=\"\",\"\",Table_PI[[#This Row],[Serial Number(s)]])","v":""},null,{"$f":"IF(Table_PI[[#This Row],[Size]]=\"\",\"\",Table_PI[[#This Row],[Size]])","v":""},null,null,{"$f":"IF(Table_PI[[#This Row],[Input 1]]<>\"\",Table_PI[[#This Row],[Input 1]],\"\")","v":""},null,null,{"$f":"IF(Table_PI[[#This Row],[Input 2]]<>\"\",Table_PI[[#This Row],[Input 2]],\"\")","v":""},null,null,{"$f":"IF(Table_PI[[#This Row],[Input 3]]<>\"\",Table_PI[[#This Row],[Input 3]],\"\")","v":""},null,null,{"$f":"IF(Table_PI[[#This Row],[Input 4]]<>\"\",Table_PI[[#This Row],[Input 4]],\"\")","v":""},null,null,{"$f":"IF(Table_PI[[#This Row],[Input 4]]<>\"\",Table_PI[[#This Row],[Input 4]],\"\")","v":""},null,null,{"$f":"IF(Table_PI[[#This Row],[Input 4]]<>\"\",Table_PI[[#This Row],[Input 4]],\"\")","v":""},{"$f":"IF(Table_PI[[#This Row],[Quantity]]=\"\",\"\",Table_PI[[#This Row],[Quantity]])","v":""},{"$f":"IF(Table_PI[[#This Row],[Notes]]=\"\",\"\",Table_PI[[#This Row],[Notes]])","v":""},{"$f":"IF(OR(Table_PI[[#This Row],[Hide: Baseline kWh]]=\"\",Table_PI[[#This Row],[Hide: Baseline kWh]]=0,ISTEXT(Table_PI[[#This Row],[Hide: Baseline kWh]])),\"\",Table_PI[[#This Row],[Hide: Baseline kWh]])","v":""},{"$f":"IF(OR(Table_PI[[#This Row],[Hide: Baseline kW]]=\"\",Table_PI[[#This Row],[Hide: Baseline kW]]=0,ISTEXT(Table_PI[[#This Row],[Hide: Baseline kW]])),\"\",Table_PI[[#This Row],[Hide: Baseline kW]])","v":""},{"$f":"IF(OR(Table_PI[[#This Row],[Hide: Proposed kWh]]=\"\",Table_PI[[#This Row],[Hide: Proposed kWh]]=0,ISTEXT(Table_PI[[#This Row],[Hide: Proposed kWh]])),\"\",Table_PI[[#This Row],[Hide: Proposed kWh]])","v":""},{"$f":"IF(OR(Table_PI[[#This Row],[Hide: Proposed kW]]=\"\",Table_PI[[#This Row],[Hide: Proposed kW]]=0,ISTEXT(Table_PI[[#This Row],[Hide: Proposed kW]])),\"\",Table_PI[[#This Row],[Hide: Proposed kW]])","v":""},null,null,{"$f":"IF(OR(Table_PI[[#This Row],[Hide: Rebate]]=\"\",Table_PI[[#This Row],[Hide: Rebate]]=0,ISTEXT(Table_PI[[#This Row],[Hide: Rebate]])),\"\",Table_PI[[#This Row],[Hide: Rebate]])","v":""},null,{"$f":"IF(OR(Table_PI[[#This Row],[Hide: Incremental Cost]]=\"\",Table_PI[[#This Row],[Hide: Incremental Cost]]=0,ISTEXT(Table_PI[[#This Row],[Hide: Incremental Cost]])),\"\",Table_PI[[#This Row],[Hide: Incremental Cost]])","v":""},{"$f":"IFERROR(IF(Table_SummaryPI[[#This Row],[Incentive_Customer]]=\"\",\"\",ROUND(Table_SummaryPI[[#This Row],[Incentive_Customer]]/$AM$401*'Customer Information'!$BC$21,2)),0)","v":""},{"$f":"IF(OR(Table_PI[[#This Row],[Annual kWh]]=\"\",Table_PI[[#This Row],[Annual kWh]]=0,ISTEXT(Table_PI[[#This Row],[Annual kWh]])),\"\",Table_PI[[#This Row],[Annual kWh]])","v":""},{"$f":"IF(OR(Table_PI[[#This Row],[Peak kW]]=\"\",Table_PI[[#This Row],[Peak kW]]=0,ISTEXT(Table_PI[[#This Row],[Peak kW]])),\"\",Table_PI[[#This Row],[Peak kW]])","v":""},{"$f":"IF(Table_SummaryPI[[#This Row],[Line No.]]<>\"\",IF(AND(ISNUMBER(FIND(\"Chiller\",Table_SummaryPI[[#This Row],[P_MeasureOption1]],1)),Table_SummaryPI[[#This Row],[ProposedMeasureCategory]]=\"Air-Cooled (Water-Cooled Replacement)\"),$BD$29*Table_SummaryPI[[#This Row],[Size]]*Table_SummaryPI[[#This Row],[Quantity]]*Table_SummaryPI[[#This Row],[EFLHCooling]],\nIF(ISNUMBER(FIND(\"Dishwasher\",Table_SummaryPI[[#This Row],[ProposedMeasureCategory]],1)),$BH$29*Table_SummaryPI[[#This Row],[Quantity]],\nIF(ISNUMBER(FIND(\"Ice Maker\",Table_SummaryPI[[#This Row],[ProposedMeasureCategory]],1)),$BD$31*Table_SummaryPI[[#This Row],[Quantity]],\nIF(ISNUMBER(FIND(\"Spray Valve\",Table_SummaryPI[[#This Row],[ProposedMeasureCategory]],1)),$BH$31*Table_SummaryPI[[#This Row],[Quantity]],\n0)))),\"\")","v":""},{"$f":"IF(OR(Table_PI[[#This Row],[Hide: Electrification kWh]]=\"\",Table_PI[[#This Row],[Hide: Electrification kWh]]=0,ISTEXT(Table_PI[[#This Row],[Hide: Electrification kWh]])),\"\",Table_PI[[#This Row],[Hide: Electrification kWh]])","v":""},{"$f":"IF(OR(Table_PI[[#This Row],[Hide: Electrification GHG]]=\"\",Table_PI[[#This Row],[Hide: Electrification GHG]]=0,ISTEXT(Table_PI[[#This Row],[Hide: Electrification GHG]])),\"\",Table_PI[[#This Row],[Hide: Electrification GHG]])","v":""},{"$f":"IFERROR(IF(Table_SummaryPI[[#This Row],[kWhSavings]]=\"\",\"\",$BH$9*Table_SummaryPI[[#This Row],[kWhSavings]]),0)","v":""},{"$f":"IFERROR(IF(Table_SummaryPI[[#This Row],[kWhSavings]]=\"\",\"\",$BH$14*Table_SummaryPI[[#This Row],[kWhSavings]]),0)","v":""},{"$f":"IFERROR(IF(Table_SummaryPI[[#This Row],[kWhSavings]]=\"\",\"\",$BH$18*Table_SummaryPI[[#This Row],[kWhSavings]]),0)","v":""},{"$f":"IFERROR(IF(Table_SummaryPI[[#This Row],[kWhSavings]]=\"\",\"\",$BH$22*Table_SummaryPI[[#This Row],[kWhSavings]]),0)","v":""}]
[{"$f":"Table_PI[[#This Row],[Line No.]]","v":""},{"$f":"IF(Table_SummaryPI[[#This Row],[MeasureName]]<>\"\",NOT(ISTEXT(Table_PI[[#This Row],[Rebate]])),\"\")","v":""},{"$f":"IF(Table_SummaryPI[[#This Row],[MeassureCategory]]<>\"\",CONCATENATE(Table_SummaryPI[[#This Row],[MeassureCategory]],  \" - \", Table_SummaryPI[[#This Row],[ProposedMeasureCategory]],  \" - \", TEXT(Table_SummaryPI[[#This Row],[Size]],\"#,##0.00\"),\" \",Table_SummaryPI[[#This Row],[SizeUnit]]),\"\")","v":""},{"$f":"SUBSTITUTE(Table_PI[[#This Row],[Measure]],\"     \",\"\",1)","v":""},{"$f":"IF(Table_PI[[#This Row],[List 1]]<>\"\",Table_PI[[#This Row],[List 1]],\"\")","v":""},{"$f":"IF(Table_PI[[#This Row],[List 2]]<>\"\",Table_PI[[#This Row],[List 2]],\"\")","v":""},{"$f":"IF(Table_PI[[#This Row],[List 3]]<>\"\",Table_PI[[#This Row],[List 3]],\"\")","v":""},{"$f":"IF(Table_PI[[#This Row],[Manufacturer]]=\"\",\"\",Table_PI[[#This Row],[Manufacturer]])","v":""},{"$f":"IF(Table_PI[[#This Row],[Model Number]]=\"\",\"\",Table_PI[[#This Row],[Model Number]])","v":""},{"$f":"IF(Table_PI[[#This Row],[Serial Number(s)]]=\"\",\"\",Table_PI[[#This Row],[Serial Number(s)]])","v":""},null,{"$f":"IF(Table_PI[[#This Row],[Size]]=\"\",\"\",Table_PI[[#This Row],[Size]])","v":""},null,null,{"$f":"IF(Table_PI[[#This Row],[Input 1]]<>\"\",Table_PI[[#This Row],[Input 1]],\"\")","v":""},null,null,{"$f":"IF(Table_PI[[#This Row],[Input 2]]<>\"\",Table_PI[[#This Row],[Input 2]],\"\")","v":""},null,null,{"$f":"IF(Table_PI[[#This Row],[Input 3]]<>\"\",Table_PI[[#This Row],[Input 3]],\"\")","v":""},null,null,{"$f":"IF(Table_PI[[#This Row],[Input 4]]<>\"\",Table_PI[[#This Row],[Input 4]],\"\")","v":""},null,null,{"$f":"IF(Table_PI[[#This Row],[Input 4]]<>\"\",Table_PI[[#This Row],[Input 4]],\"\")","v":""},null,null,{"$f":"IF(Table_PI[[#This Row],[Input 4]]<>\"\",Table_PI[[#This Row],[Input 4]],\"\")","v":""},{"$f":"IF(Table_PI[[#This Row],[Quantity]]=\"\",\"\",Table_PI[[#This Row],[Quantity]])","v":""},{"$f":"IF(Table_PI[[#This Row],[Notes]]=\"\",\"\",Table_PI[[#This Row],[Notes]])","v":""},{"$f":"IF(OR(Table_PI[[#This Row],[Hide: Baseline kWh]]=\"\",Table_PI[[#This Row],[Hide: Baseline kWh]]=0,ISTEXT(Table_PI[[#This Row],[Hide: Baseline kWh]])),\"\",Table_PI[[#This Row],[Hide: Baseline kWh]])","v":""},{"$f":"IF(OR(Table_PI[[#This Row],[Hide: Baseline kW]]=\"\",Table_PI[[#This Row],[Hide: Baseline kW]]=0,ISTEXT(Table_PI[[#This Row],[Hide: Baseline kW]])),\"\",Table_PI[[#This Row],[Hide: Baseline kW]])","v":""},{"$f":"IF(OR(Table_PI[[#This Row],[Hide: Proposed kWh]]=\"\",Table_PI[[#This Row],[Hide: Proposed kWh]]=0,ISTEXT(Table_PI[[#This Row],[Hide: Proposed kWh]])),\"\",Table_PI[[#This Row],[Hide: Proposed kWh]])","v":""},{"$f":"IF(OR(Table_PI[[#This Row],[Hide: Proposed kW]]=\"\",Table_PI[[#This Row],[Hide: Proposed kW]]=0,ISTEXT(Table_PI[[#This Row],[Hide: Proposed kW]])),\"\",Table_PI[[#This Row],[Hide: Proposed kW]])","v":""},null,null,{"$f":"IF(OR(Table_PI[[#This Row],[Hide: Rebate]]=\"\",Table_PI[[#This Row],[Hide: Rebate]]=0,ISTEXT(Table_PI[[#This Row],[Hide: Rebate]])),\"\",Table_PI[[#This Row],[Hide: Rebate]])","v":""},null,{"$f":"IF(OR(Table_PI[[#This Row],[Hide: Incremental Cost]]=\"\",Table_PI[[#This Row],[Hide: Incremental Cost]]=0,ISTEXT(Table_PI[[#This Row],[Hide: Incremental Cost]])),\"\",Table_PI[[#This Row],[Hide: Incremental Cost]])","v":""},{"$f":"IFERROR(IF(Table_SummaryPI[[#This Row],[Incentive_Customer]]=\"\",\"\",ROUND(Table_SummaryPI[[#This Row],[Incentive_Customer]]/$AM$401*'Customer Information'!$BC$21,2)),0)","v":""},{"$f":"IF(OR(Table_PI[[#This Row],[Annual kWh]]=\"\",Table_PI[[#This Row],[Annual kWh]]=0,ISTEXT(Table_PI[[#This Row],[Annual kWh]])),\"\",Table_PI[[#This Row],[Annual kWh]])","v":""},{"$f":"IF(OR(Table_PI[[#This Row],[Peak kW]]=\"\",Table_PI[[#This Row],[Peak kW]]=0,ISTEXT(Table_PI[[#This Row],[Peak kW]])),\"\",Table_PI[[#This Row],[Peak kW]])","v":""},{"$f":"IF(Table_SummaryPI[[#This Row],[Line No.]]<>\"\",IF(AND(ISNUMBER(FIND(\"Chiller\",Table_SummaryPI[[#This Row],[P_MeasureOption1]],1)),Table_SummaryPI[[#This Row],[ProposedMeasureCategory]]=\"Air-Cooled (Water-Cooled Replacement)\"),$BD$29*Table_SummaryPI[[#This Row],[Size]]*Table_SummaryPI[[#This Row],[Quantity]]*Table_SummaryPI[[#This Row],[EFLHCooling]],\nIF(ISNUMBER(FIND(\"Dishwasher\",Table_SummaryPI[[#This Row],[ProposedMeasureCategory]],1)),$BH$29*Table_SummaryPI[[#This Row],[Quantity]],\nIF(ISNUMBER(FIND(\"Ice Maker\",Table_SummaryPI[[#This Row],[ProposedMeasureCategory]],1)),$BD$31*Table_SummaryPI[[#This Row],[Quantity]],\nIF(ISNUMBER(FIND(\"Spray Valve\",Table_SummaryPI[[#This Row],[ProposedMeasureCategory]],1)),$BH$31*Table_SummaryPI[[#This Row],[Quantity]],\n0)))),\"\")","v":""},{"$f":"IF(OR(Table_PI[[#This Row],[Hide: Electrification kWh]]=\"\",Table_PI[[#This Row],[Hide: Electrification kWh]]=0,ISTEXT(Table_PI[[#This Row],[Hide: Electrification kWh]])),\"\",Table_PI[[#This Row],[Hide: Electrification kWh]])","v":""},{"$f":"IF(OR(Table_PI[[#This Row],[Hide: Electrification GHG]]=\"\",Table_PI[[#This Row],[Hide: Electrification GHG]]=0,ISTEXT(Table_PI[[#This Row],[Hide: Electrification GHG]])),\"\",Table_PI[[#This Row],[Hide: Electrification GHG]])","v":""},{"$f":"IFERROR(IF(Table_SummaryPI[[#This Row],[kWhSavings]]=\"\",\"\",$BH$9*Table_SummaryPI[[#This Row],[kWhSavings]]),0)","v":""},{"$f":"IFERROR(IF(Table_SummaryPI[[#This Row],[kWhSavings]]=\"\",\"\",$BH$14*Table_SummaryPI[[#This Row],[kWhSavings]]),0)","v":""},{"$f":"IFERROR(IF(Table_SummaryPI[[#This Row],[kWhSavings]]=\"\",\"\",$BH$18*Table_SummaryPI[[#This Row],[kWhSavings]]),0)","v":""},{"$f":"IFERROR(IF(Table_SummaryPI[[#This Row],[kWhSavings]]=\"\",\"\",$BH$22*Table_SummaryPI[[#This Row],[kWhSavings]]),0)","v":""}]
[{"$f":"Table_PI[[#This Row],[Line No.]]","v":""},{"$f":"IF(Table_SummaryPI[[#This Row],[MeasureName]]<>\"\",NOT(ISTEXT(Table_PI[[#This Row],[Rebate]])),\"\")","v":""},{"$f":"IF(Table_SummaryPI[[#This Row],[MeassureCategory]]<>\"\",CONCATENATE(Table_SummaryPI[[#This Row],[MeassureCategory]],  \" - \", Table_SummaryPI[[#This Row],[ProposedMeasureCategory]],  \" - \", TEXT(Table_SummaryPI[[#This Row],[Size]],\"#,##0.00\"),\" \",Table_SummaryPI[[#This Row],[SizeUnit]]),\"\")","v":""},{"$f":"SUBSTITUTE(Table_PI[[#This Row],[Measure]],\"     \",\"\",1)","v":""},{"$f":"IF(Table_PI[[#This Row],[List 1]]<>\"\",Table_PI[[#This Row],[List 1]],\"\")","v":""},{"$f":"IF(Table_PI[[#This Row],[List 2]]<>\"\",Table_PI[[#This Row],[List 2]],\"\")","v":""},{"$f":"IF(Table_PI[[#This Row],[List 3]]<>\"\",Table_PI[[#This Row],[List 3]],\"\")","v":""},{"$f":"IF(Table_PI[[#This Row],[Manufacturer]]=\"\",\"\",Table_PI[[#This Row],[Manufacturer]])","v":""},{"$f":"IF(Table_PI[[#This Row],[Model Number]]=\"\",\"\",Table_PI[[#This Row],[Model Number]])","v":""},{"$f":"IF(Table_PI[[#This Row],[Serial Number(s)]]=\"\",\"\",Table_PI[[#This Row],[Serial Number(s)]])","v":""},null,{"$f":"IF(Table_PI[[#This Row],[Size]]=\"\",\"\",Table_PI[[#This Row],[Size]])","v":""},null,null,{"$f":"IF(Table_PI[[#This Row],[Input 1]]<>\"\",Table_PI[[#This Row],[Input 1]],\"\")","v":""},null,null,{"$f":"IF(Table_PI[[#This Row],[Input 2]]<>\"\",Table_PI[[#This Row],[Input 2]],\"\")","v":""},null,null,{"$f":"IF(Table_PI[[#This Row],[Input 3]]<>\"\",Table_PI[[#This Row],[Input 3]],\"\")","v":""},null,null,{"$f":"IF(Table_PI[[#This Row],[Input 4]]<>\"\",Table_PI[[#This Row],[Input 4]],\"\")","v":""},null,null,{"$f":"IF(Table_PI[[#This Row],[Input 4]]<>\"\",Table_PI[[#This Row],[Input 4]],\"\")","v":""},null,null,{"$f":"IF(Table_PI[[#This Row],[Input 4]]<>\"\",Table_PI[[#This Row],[Input 4]],\"\")","v":""},{"$f":"IF(Table_PI[[#This Row],[Quantity]]=\"\",\"\",Table_PI[[#This Row],[Quantity]])","v":""},{"$f":"IF(Table_PI[[#This Row],[Notes]]=\"\",\"\",Table_PI[[#This Row],[Notes]])","v":""},{"$f":"IF(OR(Table_PI[[#This Row],[Hide: Baseline kWh]]=\"\",Table_PI[[#This Row],[Hide: Baseline kWh]]=0,ISTEXT(Table_PI[[#This Row],[Hide: Baseline kWh]])),\"\",Table_PI[[#This Row],[Hide: Baseline kWh]])","v":""},{"$f":"IF(OR(Table_PI[[#This Row],[Hide: Baseline kW]]=\"\",Table_PI[[#This Row],[Hide: Baseline kW]]=0,ISTEXT(Table_PI[[#This Row],[Hide: Baseline kW]])),\"\",Table_PI[[#This Row],[Hide: Baseline kW]])","v":""},{"$f":"IF(OR(Table_PI[[#This Row],[Hide: Proposed kWh]]=\"\",Table_PI[[#This Row],[Hide: Proposed kWh]]=0,ISTEXT(Table_PI[[#This Row],[Hide: Proposed kWh]])),\"\",Table_PI[[#This Row],[Hide: Proposed kWh]])","v":""},{"$f":"IF(OR(Table_PI[[#This Row],[Hide: Proposed kW]]=\"\",Table_PI[[#This Row],[Hide: Proposed kW]]=0,ISTEXT(Table_PI[[#This Row],[Hide: Proposed kW]])),\"\",Table_PI[[#This Row],[Hide: Proposed kW]])","v":""},null,null,{"$f":"IF(OR(Table_PI[[#This Row],[Hide: Rebate]]=\"\",Table_PI[[#This Row],[Hide: Rebate]]=0,ISTEXT(Table_PI[[#This Row],[Hide: Rebate]])),\"\",Table_PI[[#This Row],[Hide: Rebate]])","v":""},null,{"$f":"IF(OR(Table_PI[[#This Row],[Hide: Incremental Cost]]=\"\",Table_PI[[#This Row],[Hide: Incremental Cost]]=0,ISTEXT(Table_PI[[#This Row],[Hide: Incremental Cost]])),\"\",Table_PI[[#This Row],[Hide: Incremental Cost]])","v":""},{"$f":"IFERROR(IF(Table_SummaryPI[[#This Row],[Incentive_Customer]]=\"\",\"\",ROUND(Table_SummaryPI[[#This Row],[Incentive_Customer]]/$AM$401*'Customer Information'!$BC$21,2)),0)","v":""},{"$f":"IF(OR(Table_PI[[#This Row],[Annual kWh]]=\"\",Table_PI[[#This Row],[Annual kWh]]=0,ISTEXT(Table_PI[[#This Row],[Annual kWh]])),\"\",Table_PI[[#This Row],[Annual kWh]])","v":""},{"$f":"IF(OR(Table_PI[[#This Row],[Peak kW]]=\"\",Table_PI[[#This Row],[Peak kW]]=0,ISTEXT(Table_PI[[#This Row],[Peak kW]])),\"\",Table_PI[[#This Row],[Peak kW]])","v":""},{"$f":"IF(Table_SummaryPI[[#This Row],[Line No.]]<>\"\",IF(AND(ISNUMBER(FIND(\"Chiller\",Table_SummaryPI[[#This Row],[P_MeasureOption1]],1)),Table_SummaryPI[[#This Row],[ProposedMeasureCategory]]=\"Air-Cooled (Water-Cooled Replacement)\"),$BD$29*Table_SummaryPI[[#This Row],[Size]]*Table_SummaryPI[[#This Row],[Quantity]]*Table_SummaryPI[[#This Row],[EFLHCooling]],\nIF(ISNUMBER(FIND(\"Dishwasher\",Table_SummaryPI[[#This Row],[ProposedMeasureCategory]],1)),$BH$29*Table_SummaryPI[[#This Row],[Quantity]],\nIF(ISNUMBER(FIND(\"Ice Maker\",Table_SummaryPI[[#This Row],[ProposedMeasureCategory]],1)),$BD$31*Table_SummaryPI[[#This Row],[Quantity]],\nIF(ISNUMBER(FIND(\"Spray Valve\",Table_SummaryPI[[#This Row],[ProposedMeasureCategory]],1)),$BH$31*Table_SummaryPI[[#This Row],[Quantity]],\n0)))),\"\")","v":""},{"$f":"IF(OR(Table_PI[[#This Row],[Hide: Electrification kWh]]=\"\",Table_PI[[#This Row],[Hide: Electrification kWh]]=0,ISTEXT(Table_PI[[#This Row],[Hide: Electrification kWh]])),\"\",Table_PI[[#This Row],[Hide: Electrification kWh]])","v":""},{"$f":"IF(OR(Table_PI[[#This Row],[Hide: Electrification GHG]]=\"\",Table_PI[[#This Row],[Hide: Electrification GHG]]=0,ISTEXT(Table_PI[[#This Row],[Hide: Electrification GHG]])),\"\",Table_PI[[#This Row],[Hide: Electrification GHG]])","v":""},{"$f":"IFERROR(IF(Table_SummaryPI[[#This Row],[kWhSavings]]=\"\",\"\",$BH$9*Table_SummaryPI[[#This Row],[kWhSavings]]),0)","v":""},{"$f":"IFERROR(IF(Table_SummaryPI[[#This Row],[kWhSavings]]=\"\",\"\",$BH$14*Table_SummaryPI[[#This Row],[kWhSavings]]),0)","v":""},{"$f":"IFERROR(IF(Table_SummaryPI[[#This Row],[kWhSavings]]=\"\",\"\",$BH$18*Table_SummaryPI[[#This Row],[kWhSavings]]),0)","v":""},{"$f":"IFERROR(IF(Table_SummaryPI[[#This Row],[kWhSavings]]=\"\",\"\",$BH$22*Table_SummaryPI[[#This Row],[kWhSavings]]),0)","v":""}]
[{"$f":"Table_PI[[#This Row],[Line No.]]","v":""},{"$f":"IF(Table_SummaryPI[[#This Row],[MeasureName]]<>\"\",NOT(ISTEXT(Table_PI[[#This Row],[Rebate]])),\"\")","v":""},{"$f":"IF(Table_SummaryPI[[#This Row],[MeassureCategory]]<>\"\",CONCATENATE(Table_SummaryPI[[#This Row],[MeassureCategory]],  \" - \", Table_SummaryPI[[#This Row],[ProposedMeasureCategory]],  \" - \", TEXT(Table_SummaryPI[[#This Row],[Size]],\"#,##0.00\"),\" \",Table_SummaryPI[[#This Row],[SizeUnit]]),\"\")","v":""},{"$f":"SUBSTITUTE(Table_PI[[#This Row],[Measure]],\"     \",\"\",1)","v":""},{"$f":"IF(Table_PI[[#This Row],[List 1]]<>\"\",Table_PI[[#This Row],[List 1]],\"\")","v":""},{"$f":"IF(Table_PI[[#This Row],[List 2]]<>\"\",Table_PI[[#This Row],[List 2]],\"\")","v":""},{"$f":"IF(Table_PI[[#This Row],[List 3]]<>\"\",Table_PI[[#This Row],[List 3]],\"\")","v":""},{"$f":"IF(Table_PI[[#This Row],[Manufacturer]]=\"\",\"\",Table_PI[[#This Row],[Manufacturer]])","v":""},{"$f":"IF(Table_PI[[#This Row],[Model Number]]=\"\",\"\",Table_PI[[#This Row],[Model Number]])","v":""},{"$f":"IF(Table_PI[[#This Row],[Serial Number(s)]]=\"\",\"\",Table_PI[[#This Row],[Serial Number(s)]])","v":""},null,{"$f":"IF(Table_PI[[#This Row],[Size]]=\"\",\"\",Table_PI[[#This Row],[Size]])","v":""},null,null,{"$f":"IF(Table_PI[[#This Row],[Input 1]]<>\"\",Table_PI[[#This Row],[Input 1]],\"\")","v":""},null,null,{"$f":"IF(Table_PI[[#This Row],[Input 2]]<>\"\",Table_PI[[#This Row],[Input 2]],\"\")","v":""},null,null,{"$f":"IF(Table_PI[[#This Row],[Input 3]]<>\"\",Table_PI[[#This Row],[Input 3]],\"\")","v":""},null,null,{"$f":"IF(Table_PI[[#This Row],[Input 4]]<>\"\",Table_PI[[#This Row],[Input 4]],\"\")","v":""},null,null,{"$f":"IF(Table_PI[[#This Row],[Input 4]]<>\"\",Table_PI[[#This Row],[Input 4]],\"\")","v":""},null,null,{"$f":"IF(Table_PI[[#This Row],[Input 4]]<>\"\",Table_PI[[#This Row],[Input 4]],\"\")","v":""},{"$f":"IF(Table_PI[[#This Row],[Quantity]]=\"\",\"\",Table_PI[[#This Row],[Quantity]])","v":""},{"$f":"IF(Table_PI[[#This Row],[Notes]]=\"\",\"\",Table_PI[[#This Row],[Notes]])","v":""},{"$f":"IF(OR(Table_PI[[#This Row],[Hide: Baseline kWh]]=\"\",Table_PI[[#This Row],[Hide: Baseline kWh]]=0,ISTEXT(Table_PI[[#This Row],[Hide: Baseline kWh]])),\"\",Table_PI[[#This Row],[Hide: Baseline kWh]])","v":""},{"$f":"IF(OR(Table_PI[[#This Row],[Hide: Baseline kW]]=\"\",Table_PI[[#This Row],[Hide: Baseline kW]]=0,ISTEXT(Table_PI[[#This Row],[Hide: Baseline kW]])),\"\",Table_PI[[#This Row],[Hide: Baseline kW]])","v":""},{"$f":"IF(OR(Table_PI[[#This Row],[Hide: Proposed kWh]]=\"\",Table_PI[[#This Row],[Hide: Proposed kWh]]=0,ISTEXT(Table_PI[[#This Row],[Hide: Proposed kWh]])),\"\",Table_PI[[#This Row],[Hide: Proposed kWh]])","v":""},{"$f":"IF(OR(Table_PI[[#This Row],[Hide: Proposed kW]]=\"\",Table_PI[[#This Row],[Hide: Proposed kW]]=0,ISTEXT(Table_PI[[#This Row],[Hide: Proposed kW]])),\"\",Table_PI[[#This Row],[Hide: Proposed kW]])","v":""},null,null,{"$f":"IF(OR(Table_PI[[#This Row],[Hide: Rebate]]=\"\",Table_PI[[#This Row],[Hide: Rebate]]=0,ISTEXT(Table_PI[[#This Row],[Hide: Rebate]])),\"\",Table_PI[[#This Row],[Hide: Rebate]])","v":""},null,{"$f":"IF(OR(Table_PI[[#This Row],[Hide: Incremental Cost]]=\"\",Table_PI[[#This Row],[Hide: Incremental Cost]]=0,ISTEXT(Table_PI[[#This Row],[Hide: Incremental Cost]])),\"\",Table_PI[[#This Row],[Hide: Incremental Cost]])","v":""},{"$f":"IFERROR(IF(Table_SummaryPI[[#This Row],[Incentive_Customer]]=\"\",\"\",ROUND(Table_SummaryPI[[#This Row],[Incentive_Customer]]/$AM$401*'Customer Information'!$BC$21,2)),0)","v":""},{"$f":"IF(OR(Table_PI[[#This Row],[Annual kWh]]=\"\",Table_PI[[#This Row],[Annual kWh]]=0,ISTEXT(Table_PI[[#This Row],[Annual kWh]])),\"\",Table_PI[[#This Row],[Annual kWh]])","v":""},{"$f":"IF(OR(Table_PI[[#This Row],[Peak kW]]=\"\",Table_PI[[#This Row],[Peak kW]]=0,ISTEXT(Table_PI[[#This Row],[Peak kW]])),\"\",Table_PI[[#This Row],[Peak kW]])","v":""},{"$f":"IF(Table_SummaryPI[[#This Row],[Line No.]]<>\"\",IF(AND(ISNUMBER(FIND(\"Chiller\",Table_SummaryPI[[#This Row],[P_MeasureOption1]],1)),Table_SummaryPI[[#This Row],[ProposedMeasureCategory]]=\"Air-Cooled (Water-Cooled Replacement)\"),$BD$29*Table_SummaryPI[[#This Row],[Size]]*Table_SummaryPI[[#This Row],[Quantity]]*Table_SummaryPI[[#This Row],[EFLHCooling]],\nIF(ISNUMBER(FIND(\"Dishwasher\",Table_SummaryPI[[#This Row],[ProposedMeasureCategory]],1)),$BH$29*Table_SummaryPI[[#This Row],[Quantity]],\nIF(ISNUMBER(FIND(\"Ice Maker\",Table_SummaryPI[[#This Row],[ProposedMeasureCategory]],1)),$BD$31*Table_SummaryPI[[#This Row],[Quantity]],\nIF(ISNUMBER(FIND(\"Spray Valve\",Table_SummaryPI[[#This Row],[ProposedMeasureCategory]],1)),$BH$31*Table_SummaryPI[[#This Row],[Quantity]],\n0)))),\"\")","v":""},{"$f":"IF(OR(Table_PI[[#This Row],[Hide: Electrification kWh]]=\"\",Table_PI[[#This Row],[Hide: Electrification kWh]]=0,ISTEXT(Table_PI[[#This Row],[Hide: Electrification kWh]])),\"\",Table_PI[[#This Row],[Hide: Electrification kWh]])","v":""},{"$f":"IF(OR(Table_PI[[#This Row],[Hide: Electrification GHG]]=\"\",Table_PI[[#This Row],[Hide: Electrification GHG]]=0,ISTEXT(Table_PI[[#This Row],[Hide: Electrification GHG]])),\"\",Table_PI[[#This Row],[Hide: Electrification GHG]])","v":""},{"$f":"IFERROR(IF(Table_SummaryPI[[#This Row],[kWhSavings]]=\"\",\"\",$BH$9*Table_SummaryPI[[#This Row],[kWhSavings]]),0)","v":""},{"$f":"IFERROR(IF(Table_SummaryPI[[#This Row],[kWhSavings]]=\"\",\"\",$BH$14*Table_SummaryPI[[#This Row],[kWhSavings]]),0)","v":""},{"$f":"IFERROR(IF(Table_SummaryPI[[#This Row],[kWhSavings]]=\"\",\"\",$BH$18*Table_SummaryPI[[#This Row],[kWhSavings]]),0)","v":""},{"$f":"IFERROR(IF(Table_SummaryPI[[#This Row],[kWhSavings]]=\"\",\"\",$BH$22*Table_SummaryPI[[#This Row],[kWhSavings]]),0)","v":""}]
[{"$f":"Table_PI[[#This Row],[Line No.]]","v":""},{"$f":"IF(Table_SummaryPI[[#This Row],[MeasureName]]<>\"\",NOT(ISTEXT(Table_PI[[#This Row],[Rebate]])),\"\")","v":""},{"$f":"IF(Table_SummaryPI[[#This Row],[MeassureCategory]]<>\"\",CONCATENATE(Table_SummaryPI[[#This Row],[MeassureCategory]],  \" - \", Table_SummaryPI[[#This Row],[ProposedMeasureCategory]],  \" - \", TEXT(Table_SummaryPI[[#This Row],[Size]],\"#,##0.00\"),\" \",Table_SummaryPI[[#This Row],[SizeUnit]]),\"\")","v":""},{"$f":"SUBSTITUTE(Table_PI[[#This Row],[Measure]],\"     \",\"\",1)","v":""},{"$f":"IF(Table_PI[[#This Row],[List 1]]<>\"\",Table_PI[[#This Row],[List 1]],\"\")","v":""},{"$f":"IF(Table_PI[[#This Row],[List 2]]<>\"\",Table_PI[[#This Row],[List 2]],\"\")","v":""},{"$f":"IF(Table_PI[[#This Row],[List 3]]<>\"\",Table_PI[[#This Row],[List 3]],\"\")","v":""},{"$f":"IF(Table_PI[[#This Row],[Manufacturer]]=\"\",\"\",Table_PI[[#This Row],[Manufacturer]])","v":""},{"$f":"IF(Table_PI[[#This Row],[Model Number]]=\"\",\"\",Table_PI[[#This Row],[Model Number]])","v":""},{"$f":"IF(Table_PI[[#This Row],[Serial Number(s)]]=\"\",\"\",Table_PI[[#This Row],[Serial Number(s)]])","v":""},null,{"$f":"IF(Table_PI[[#This Row],[Size]]=\"\",\"\",Table_PI[[#This Row],[Size]])","v":""},null,null,{"$f":"IF(Table_PI[[#This Row],[Input 1]]<>\"\",Table_PI[[#This Row],[Input 1]],\"\")","v":""},null,null,{"$f":"IF(Table_PI[[#This Row],[Input 2]]<>\"\",Table_PI[[#This Row],[Input 2]],\"\")","v":""},null,null,{"$f":"IF(Table_PI[[#This Row],[Input 3]]<>\"\",Table_PI[[#This Row],[Input 3]],\"\")","v":""},null,null,{"$f":"IF(Table_PI[[#This Row],[Input 4]]<>\"\",Table_PI[[#This Row],[Input 4]],\"\")","v":""},null,null,{"$f":"IF(Table_PI[[#This Row],[Input 4]]<>\"\",Table_PI[[#This Row],[Input 4]],\"\")","v":""},null,null,{"$f":"IF(Table_PI[[#This Row],[Input 4]]<>\"\",Table_PI[[#This Row],[Input 4]],\"\")","v":""},{"$f":"IF(Table_PI[[#This Row],[Quantity]]=\"\",\"\",Table_PI[[#This Row],[Quantity]])","v":""},{"$f":"IF(Table_PI[[#This Row],[Notes]]=\"\",\"\",Table_PI[[#This Row],[Notes]])","v":""},{"$f":"IF(OR(Table_PI[[#This Row],[Hide: Baseline kWh]]=\"\",Table_PI[[#This Row],[Hide: Baseline kWh]]=0,ISTEXT(Table_PI[[#This Row],[Hide: Baseline kWh]])),\"\",Table_PI[[#This Row],[Hide: Baseline kWh]])","v":""},{"$f":"IF(OR(Table_PI[[#This Row],[Hide: Baseline kW]]=\"\",Table_PI[[#This Row],[Hide: Baseline kW]]=0,ISTEXT(Table_PI[[#This Row],[Hide: Baseline kW]])),\"\",Table_PI[[#This Row],[Hide: Baseline kW]])","v":""},{"$f":"IF(OR(Table_PI[[#This Row],[Hide: Proposed kWh]]=\"\",Table_PI[[#This Row],[Hide: Proposed kWh]]=0,ISTEXT(Table_PI[[#This Row],[Hide: Proposed kWh]])),\"\",Table_PI[[#This Row],[Hide: Proposed kWh]])","v":""},{"$f":"IF(OR(Table_PI[[#This Row],[Hide: Proposed kW]]=\"\",Table_PI[[#This Row],[Hide: Proposed kW]]=0,ISTEXT(Table_PI[[#This Row],[Hide: Proposed kW]])),\"\",Table_PI[[#This Row],[Hide: Proposed kW]])","v":""},null,null,{"$f":"IF(OR(Table_PI[[#This Row],[Hide: Rebate]]=\"\",Table_PI[[#This Row],[Hide: Rebate]]=0,ISTEXT(Table_PI[[#This Row],[Hide: Rebate]])),\"\",Table_PI[[#This Row],[Hide: Rebate]])","v":""},null,{"$f":"IF(OR(Table_PI[[#This Row],[Hide: Incremental Cost]]=\"\",Table_PI[[#This Row],[Hide: Incremental Cost]]=0,ISTEXT(Table_PI[[#This Row],[Hide: Incremental Cost]])),\"\",Table_PI[[#This Row],[Hide: Incremental Cost]])","v":""},{"$f":"IFERROR(IF(Table_SummaryPI[[#This Row],[Incentive_Customer]]=\"\",\"\",ROUND(Table_SummaryPI[[#This Row],[Incentive_Customer]]/$AM$401*'Customer Information'!$BC$21,2)),0)","v":""},{"$f":"IF(OR(Table_PI[[#This Row],[Annual kWh]]=\"\",Table_PI[[#This Row],[Annual kWh]]=0,ISTEXT(Table_PI[[#This Row],[Annual kWh]])),\"\",Table_PI[[#This Row],[Annual kWh]])","v":""},{"$f":"IF(OR(Table_PI[[#This Row],[Peak kW]]=\"\",Table_PI[[#This Row],[Peak kW]]=0,ISTEXT(Table_PI[[#This Row],[Peak kW]])),\"\",Table_PI[[#This Row],[Peak kW]])","v":""},{"$f":"IF(Table_SummaryPI[[#This Row],[Line No.]]<>\"\",IF(AND(ISNUMBER(FIND(\"Chiller\",Table_SummaryPI[[#This Row],[P_MeasureOption1]],1)),Table_SummaryPI[[#This Row],[ProposedMeasureCategory]]=\"Air-Cooled (Water-Cooled Replacement)\"),$BD$29*Table_SummaryPI[[#This Row],[Size]]*Table_SummaryPI[[#This Row],[Quantity]]*Table_SummaryPI[[#This Row],[EFLHCooling]],\nIF(ISNUMBER(FIND(\"Dishwasher\",Table_SummaryPI[[#This Row],[ProposedMeasureCategory]],1)),$BH$29*Table_SummaryPI[[#This Row],[Quantity]],\nIF(ISNUMBER(FIND(\"Ice Maker\",Table_SummaryPI[[#This Row],[ProposedMeasureCategory]],1)),$BD$31*Table_SummaryPI[[#This Row],[Quantity]],\nIF(ISNUMBER(FIND(\"Spray Valve\",Table_SummaryPI[[#This Row],[ProposedMeasureCategory]],1)),$BH$31*Table_SummaryPI[[#This Row],[Quantity]],\n0)))),\"\")","v":""},{"$f":"IF(OR(Table_PI[[#This Row],[Hide: Electrification kWh]]=\"\",Table_PI[[#This Row],[Hide: Electrification kWh]]=0,ISTEXT(Table_PI[[#This Row],[Hide: Electrification kWh]])),\"\",Table_PI[[#This Row],[Hide: Electrification kWh]])","v":""},{"$f":"IF(OR(Table_PI[[#This Row],[Hide: Electrification GHG]]=\"\",Table_PI[[#This Row],[Hide: Electrification GHG]]=0,ISTEXT(Table_PI[[#This Row],[Hide: Electrification GHG]])),\"\",Table_PI[[#This Row],[Hide: Electrification GHG]])","v":""},{"$f":"IFERROR(IF(Table_SummaryPI[[#This Row],[kWhSavings]]=\"\",\"\",$BH$9*Table_SummaryPI[[#This Row],[kWhSavings]]),0)","v":""},{"$f":"IFERROR(IF(Table_SummaryPI[[#This Row],[kWhSavings]]=\"\",\"\",$BH$14*Table_SummaryPI[[#This Row],[kWhSavings]]),0)","v":""},{"$f":"IFERROR(IF(Table_SummaryPI[[#This Row],[kWhSavings]]=\"\",\"\",$BH$18*Table_SummaryPI[[#This Row],[kWhSavings]]),0)","v":""},{"$f":"IFERROR(IF(Table_SummaryPI[[#This Row],[kWhSavings]]=\"\",\"\",$BH$22*Table_SummaryPI[[#This Row],[kWhSavings]]),0)","v":""}]
[{"$f":"Table_PI[[#This Row],[Line No.]]","v":""},{"$f":"IF(Table_SummaryPI[[#This Row],[MeasureName]]<>\"\",NOT(ISTEXT(Table_PI[[#This Row],[Rebate]])),\"\")","v":""},{"$f":"IF(Table_SummaryPI[[#This Row],[MeassureCategory]]<>\"\",CONCATENATE(Table_SummaryPI[[#This Row],[MeassureCategory]],  \" - \", Table_SummaryPI[[#This Row],[ProposedMeasureCategory]],  \" - \", TEXT(Table_SummaryPI[[#This Row],[Size]],\"#,##0.00\"),\" \",Table_SummaryPI[[#This Row],[SizeUnit]]),\"\")","v":""},{"$f":"SUBSTITUTE(Table_PI[[#This Row],[Measure]],\"     \",\"\",1)","v":""},{"$f":"IF(Table_PI[[#This Row],[List 1]]<>\"\",Table_PI[[#This Row],[List 1]],\"\")","v":""},{"$f":"IF(Table_PI[[#This Row],[List 2]]<>\"\",Table_PI[[#This Row],[List 2]],\"\")","v":""},{"$f":"IF(Table_PI[[#This Row],[List 3]]<>\"\",Table_PI[[#This Row],[List 3]],\"\")","v":""},{"$f":"IF(Table_PI[[#This Row],[Manufacturer]]=\"\",\"\",Table_PI[[#This Row],[Manufacturer]])","v":""},{"$f":"IF(Table_PI[[#This Row],[Model Number]]=\"\",\"\",Table_PI[[#This Row],[Model Number]])","v":""},{"$f":"IF(Table_PI[[#This Row],[Serial Number(s)]]=\"\",\"\",Table_PI[[#This Row],[Serial Number(s)]])","v":""},null,{"$f":"IF(Table_PI[[#This Row],[Size]]=\"\",\"\",Table_PI[[#This Row],[Size]])","v":""},null,null,{"$f":"IF(Table_PI[[#This Row],[Input 1]]<>\"\",Table_PI[[#This Row],[Input 1]],\"\")","v":""},null,null,{"$f":"IF(Table_PI[[#This Row],[Input 2]]<>\"\",Table_PI[[#This Row],[Input 2]],\"\")","v":""},null,null,{"$f":"IF(Table_PI[[#This Row],[Input 3]]<>\"\",Table_PI[[#This Row],[Input 3]],\"\")","v":""},null,null,{"$f":"IF(Table_PI[[#This Row],[Input 4]]<>\"\",Table_PI[[#This Row],[Input 4]],\"\")","v":""},null,null,{"$f":"IF(Table_PI[[#This Row],[Input 4]]<>\"\",Table_PI[[#This Row],[Input 4]],\"\")","v":""},null,null,{"$f":"IF(Table_PI[[#This Row],[Input 4]]<>\"\",Table_PI[[#This Row],[Input 4]],\"\")","v":""},{"$f":"IF(Table_PI[[#This Row],[Quantity]]=\"\",\"\",Table_PI[[#This Row],[Quantity]])","v":""},{"$f":"IF(Table_PI[[#This Row],[Notes]]=\"\",\"\",Table_PI[[#This Row],[Notes]])","v":""},{"$f":"IF(OR(Table_PI[[#This Row],[Hide: Baseline kWh]]=\"\",Table_PI[[#This Row],[Hide: Baseline kWh]]=0,ISTEXT(Table_PI[[#This Row],[Hide: Baseline kWh]])),\"\",Table_PI[[#This Row],[Hide: Baseline kWh]])","v":""},{"$f":"IF(OR(Table_PI[[#This Row],[Hide: Baseline kW]]=\"\",Table_PI[[#This Row],[Hide: Baseline kW]]=0,ISTEXT(Table_PI[[#This Row],[Hide: Baseline kW]])),\"\",Table_PI[[#This Row],[Hide: Baseline kW]])","v":""},{"$f":"IF(OR(Table_PI[[#This Row],[Hide: Proposed kWh]]=\"\",Table_PI[[#This Row],[Hide: Proposed kWh]]=0,ISTEXT(Table_PI[[#This Row],[Hide: Proposed kWh]])),\"\",Table_PI[[#This Row],[Hide: Proposed kWh]])","v":""},{"$f":"IF(OR(Table_PI[[#This Row],[Hide: Proposed kW]]=\"\",Table_PI[[#This Row],[Hide: Proposed kW]]=0,ISTEXT(Table_PI[[#This Row],[Hide: Proposed kW]])),\"\",Table_PI[[#This Row],[Hide: Proposed kW]])","v":""},null,null,{"$f":"IF(OR(Table_PI[[#This Row],[Hide: Rebate]]=\"\",Table_PI[[#This Row],[Hide: Rebate]]=0,ISTEXT(Table_PI[[#This Row],[Hide: Rebate]])),\"\",Table_PI[[#This Row],[Hide: Rebate]])","v":""},null,{"$f":"IF(OR(Table_PI[[#This Row],[Hide: Incremental Cost]]=\"\",Table_PI[[#This Row],[Hide: Incremental Cost]]=0,ISTEXT(Table_PI[[#This Row],[Hide: Incremental Cost]])),\"\",Table_PI[[#This Row],[Hide: Incremental Cost]])","v":""},{"$f":"IFERROR(IF(Table_SummaryPI[[#This Row],[Incentive_Customer]]=\"\",\"\",ROUND(Table_SummaryPI[[#This Row],[Incentive_Customer]]/$AM$401*'Customer Information'!$BC$21,2)),0)","v":""},{"$f":"IF(OR(Table_PI[[#This Row],[Annual kWh]]=\"\",Table_PI[[#This Row],[Annual kWh]]=0,ISTEXT(Table_PI[[#This Row],[Annual kWh]])),\"\",Table_PI[[#This Row],[Annual kWh]])","v":""},{"$f":"IF(OR(Table_PI[[#This Row],[Peak kW]]=\"\",Table_PI[[#This Row],[Peak kW]]=0,ISTEXT(Table_PI[[#This Row],[Peak kW]])),\"\",Table_PI[[#This Row],[Peak kW]])","v":""},{"$f":"IF(Table_SummaryPI[[#This Row],[Line No.]]<>\"\",IF(AND(ISNUMBER(FIND(\"Chiller\",Table_SummaryPI[[#This Row],[P_MeasureOption1]],1)),Table_SummaryPI[[#This Row],[ProposedMeasureCategory]]=\"Air-Cooled (Water-Cooled Replacement)\"),$BD$29*Table_SummaryPI[[#This Row],[Size]]*Table_SummaryPI[[#This Row],[Quantity]]*Table_SummaryPI[[#This Row],[EFLHCooling]],\nIF(ISNUMBER(FIND(\"Dishwasher\",Table_SummaryPI[[#This Row],[ProposedMeasureCategory]],1)),$BH$29*Table_SummaryPI[[#This Row],[Quantity]],\nIF(ISNUMBER(FIND(\"Ice Maker\",Table_SummaryPI[[#This Row],[ProposedMeasureCategory]],1)),$BD$31*Table_SummaryPI[[#This Row],[Quantity]],\nIF(ISNUMBER(FIND(\"Spray Valve\",Table_SummaryPI[[#This Row],[ProposedMeasureCategory]],1)),$BH$31*Table_SummaryPI[[#This Row],[Quantity]],\n0)))),\"\")","v":""},{"$f":"IF(OR(Table_PI[[#This Row],[Hide: Electrification kWh]]=\"\",Table_PI[[#This Row],[Hide: Electrification kWh]]=0,ISTEXT(Table_PI[[#This Row],[Hide: Electrification kWh]])),\"\",Table_PI[[#This Row],[Hide: Electrification kWh]])","v":""},{"$f":"IF(OR(Table_PI[[#This Row],[Hide: Electrification GHG]]=\"\",Table_PI[[#This Row],[Hide: Electrification GHG]]=0,ISTEXT(Table_PI[[#This Row],[Hide: Electrification GHG]])),\"\",Table_PI[[#This Row],[Hide: Electrification GHG]])","v":""},{"$f":"IFERROR(IF(Table_SummaryPI[[#This Row],[kWhSavings]]=\"\",\"\",$BH$9*Table_SummaryPI[[#This Row],[kWhSavings]]),0)","v":""},{"$f":"IFERROR(IF(Table_SummaryPI[[#This Row],[kWhSavings]]=\"\",\"\",$BH$14*Table_SummaryPI[[#This Row],[kWhSavings]]),0)","v":""},{"$f":"IFERROR(IF(Table_SummaryPI[[#This Row],[kWhSavings]]=\"\",\"\",$BH$18*Table_SummaryPI[[#This Row],[kWhSavings]]),0)","v":""},{"$f":"IFERROR(IF(Table_SummaryPI[[#This Row],[kWhSavings]]=\"\",\"\",$BH$22*Table_SummaryPI[[#This Row],[kWhSavings]]),0)","v":""}]
[{"$f":"Table_PI[[#This Row],[Line No.]]","v":""},{"$f":"IF(Table_SummaryPI[[#This Row],[MeasureName]]<>\"\",NOT(ISTEXT(Table_PI[[#This Row],[Rebate]])),\"\")","v":""},{"$f":"IF(Table_SummaryPI[[#This Row],[MeassureCategory]]<>\"\",CONCATENATE(Table_SummaryPI[[#This Row],[MeassureCategory]],  \" - \", Table_SummaryPI[[#This Row],[ProposedMeasureCategory]],  \" - \", TEXT(Table_SummaryPI[[#This Row],[Size]],\"#,##0.00\"),\" \",Table_SummaryPI[[#This Row],[SizeUnit]]),\"\")","v":""},{"$f":"SUBSTITUTE(Table_PI[[#This Row],[Measure]],\"     \",\"\",1)","v":""},{"$f":"IF(Table_PI[[#This Row],[List 1]]<>\"\",Table_PI[[#This Row],[List 1]],\"\")","v":""},{"$f":"IF(Table_PI[[#This Row],[List 2]]<>\"\",Table_PI[[#This Row],[List 2]],\"\")","v":""},{"$f":"IF(Table_PI[[#This Row],[List 3]]<>\"\",Table_PI[[#This Row],[List 3]],\"\")","v":""},{"$f":"IF(Table_PI[[#This Row],[Manufacturer]]=\"\",\"\",Table_PI[[#This Row],[Manufacturer]])","v":""},{"$f":"IF(Table_PI[[#This Row],[Model Number]]=\"\",\"\",Table_PI[[#This Row],[Model Number]])","v":""},{"$f":"IF(Table_PI[[#This Row],[Serial Number(s)]]=\"\",\"\",Table_PI[[#This Row],[Serial Number(s)]])","v":""},null,{"$f":"IF(Table_PI[[#This Row],[Size]]=\"\",\"\",Table_PI[[#This Row],[Size]])","v":""},null,null,{"$f":"IF(Table_PI[[#This Row],[Input 1]]<>\"\",Table_PI[[#This Row],[Input 1]],\"\")","v":""},null,null,{"$f":"IF(Table_PI[[#This Row],[Input 2]]<>\"\",Table_PI[[#This Row],[Input 2]],\"\")","v":""},null,null,{"$f":"IF(Table_PI[[#This Row],[Input 3]]<>\"\",Table_PI[[#This Row],[Input 3]],\"\")","v":""},null,null,{"$f":"IF(Table_PI[[#This Row],[Input 4]]<>\"\",Table_PI[[#This Row],[Input 4]],\"\")","v":""},null,null,{"$f":"IF(Table_PI[[#This Row],[Input 4]]<>\"\",Table_PI[[#This Row],[Input 4]],\"\")","v":""},null,null,{"$f":"IF(Table_PI[[#This Row],[Input 4]]<>\"\",Table_PI[[#This Row],[Input 4]],\"\")","v":""},{"$f":"IF(Table_PI[[#This Row],[Quantity]]=\"\",\"\",Table_PI[[#This Row],[Quantity]])","v":""},{"$f":"IF(Table_PI[[#This Row],[Notes]]=\"\",\"\",Table_PI[[#This Row],[Notes]])","v":""},{"$f":"IF(OR(Table_PI[[#This Row],[Hide: Baseline kWh]]=\"\",Table_PI[[#This Row],[Hide: Baseline kWh]]=0,ISTEXT(Table_PI[[#This Row],[Hide: Baseline kWh]])),\"\",Table_PI[[#This Row],[Hide: Baseline kWh]])","v":""},{"$f":"IF(OR(Table_PI[[#This Row],[Hide: Baseline kW]]=\"\",Table_PI[[#This Row],[Hide: Baseline kW]]=0,ISTEXT(Table_PI[[#This Row],[Hide: Baseline kW]])),\"\",Table_PI[[#This Row],[Hide: Baseline kW]])","v":""},{"$f":"IF(OR(Table_PI[[#This Row],[Hide: Proposed kWh]]=\"\",Table_PI[[#This Row],[Hide: Proposed kWh]]=0,ISTEXT(Table_PI[[#This Row],[Hide: Proposed kWh]])),\"\",Table_PI[[#This Row],[Hide: Proposed kWh]])","v":""},{"$f":"IF(OR(Table_PI[[#This Row],[Hide: Proposed kW]]=\"\",Table_PI[[#This Row],[Hide: Proposed kW]]=0,ISTEXT(Table_PI[[#This Row],[Hide: Proposed kW]])),\"\",Table_PI[[#This Row],[Hide: Proposed kW]])","v":""},null,null,{"$f":"IF(OR(Table_PI[[#This Row],[Hide: Rebate]]=\"\",Table_PI[[#This Row],[Hide: Rebate]]=0,ISTEXT(Table_PI[[#This Row],[Hide: Rebate]])),\"\",Table_PI[[#This Row],[Hide: Rebate]])","v":""},null,{"$f":"IF(OR(Table_PI[[#This Row],[Hide: Incremental Cost]]=\"\",Table_PI[[#This Row],[Hide: Incremental Cost]]=0,ISTEXT(Table_PI[[#This Row],[Hide: Incremental Cost]])),\"\",Table_PI[[#This Row],[Hide: Incremental Cost]])","v":""},{"$f":"IFERROR(IF(Table_SummaryPI[[#This Row],[Incentive_Customer]]=\"\",\"\",ROUND(Table_SummaryPI[[#This Row],[Incentive_Customer]]/$AM$401*'Customer Information'!$BC$21,2)),0)","v":""},{"$f":"IF(OR(Table_PI[[#This Row],[Annual kWh]]=\"\",Table_PI[[#This Row],[Annual kWh]]=0,ISTEXT(Table_PI[[#This Row],[Annual kWh]])),\"\",Table_PI[[#This Row],[Annual kWh]])","v":""},{"$f":"IF(OR(Table_PI[[#This Row],[Peak kW]]=\"\",Table_PI[[#This Row],[Peak kW]]=0,ISTEXT(Table_PI[[#This Row],[Peak kW]])),\"\",Table_PI[[#This Row],[Peak kW]])","v":""},{"$f":"IF(Table_SummaryPI[[#This Row],[Line No.]]<>\"\",IF(AND(ISNUMBER(FIND(\"Chiller\",Table_SummaryPI[[#This Row],[P_MeasureOption1]],1)),Table_SummaryPI[[#This Row],[ProposedMeasureCategory]]=\"Air-Cooled (Water-Cooled Replacement)\"),$BD$29*Table_SummaryPI[[#This Row],[Size]]*Table_SummaryPI[[#This Row],[Quantity]]*Table_SummaryPI[[#This Row],[EFLHCooling]],\nIF(ISNUMBER(FIND(\"Dishwasher\",Table_SummaryPI[[#This Row],[ProposedMeasureCategory]],1)),$BH$29*Table_SummaryPI[[#This Row],[Quantity]],\nIF(ISNUMBER(FIND(\"Ice Maker\",Table_SummaryPI[[#This Row],[ProposedMeasureCategory]],1)),$BD$31*Table_SummaryPI[[#This Row],[Quantity]],\nIF(ISNUMBER(FIND(\"Spray Valve\",Table_SummaryPI[[#This Row],[ProposedMeasureCategory]],1)),$BH$31*Table_SummaryPI[[#This Row],[Quantity]],\n0)))),\"\")","v":""},{"$f":"IF(OR(Table_PI[[#This Row],[Hide: Electrification kWh]]=\"\",Table_PI[[#This Row],[Hide: Electrification kWh]]=0,ISTEXT(Table_PI[[#This Row],[Hide: Electrification kWh]])),\"\",Table_PI[[#This Row],[Hide: Electrification kWh]])","v":""},{"$f":"IF(OR(Table_PI[[#This Row],[Hide: Electrification GHG]]=\"\",Table_PI[[#This Row],[Hide: Electrification GHG]]=0,ISTEXT(Table_PI[[#This Row],[Hide: Electrification GHG]])),\"\",Table_PI[[#This Row],[Hide: Electrification GHG]])","v":""},{"$f":"IFERROR(IF(Table_SummaryPI[[#This Row],[kWhSavings]]=\"\",\"\",$BH$9*Table_SummaryPI[[#This Row],[kWhSavings]]),0)","v":""},{"$f":"IFERROR(IF(Table_SummaryPI[[#This Row],[kWhSavings]]=\"\",\"\",$BH$14*Table_SummaryPI[[#This Row],[kWhSavings]]),0)","v":""},{"$f":"IFERROR(IF(Table_SummaryPI[[#This Row],[kWhSavings]]=\"\",\"\",$BH$18*Table_SummaryPI[[#This Row],[kWhSavings]]),0)","v":""},{"$f":"IFERROR(IF(Table_SummaryPI[[#This Row],[kWhSavings]]=\"\",\"\",$BH$22*Table_SummaryPI[[#This Row],[kWhSavings]]),0)","v":""}]
[{"$f":"Table_PI[[#This Row],[Line No.]]","v":""},{"$f":"IF(Table_SummaryPI[[#This Row],[MeasureName]]<>\"\",NOT(ISTEXT(Table_PI[[#This Row],[Rebate]])),\"\")","v":""},{"$f":"IF(Table_SummaryPI[[#This Row],[MeassureCategory]]<>\"\",CONCATENATE(Table_SummaryPI[[#This Row],[MeassureCategory]],  \" - \", Table_SummaryPI[[#This Row],[ProposedMeasureCategory]],  \" - \", TEXT(Table_SummaryPI[[#This Row],[Size]],\"#,##0.00\"),\" \",Table_SummaryPI[[#This Row],[SizeUnit]]),\"\")","v":""},{"$f":"SUBSTITUTE(Table_PI[[#This Row],[Measure]],\"     \",\"\",1)","v":""},{"$f":"IF(Table_PI[[#This Row],[List 1]]<>\"\",Table_PI[[#This Row],[List 1]],\"\")","v":""},{"$f":"IF(Table_PI[[#This Row],[List 2]]<>\"\",Table_PI[[#This Row],[List 2]],\"\")","v":""},{"$f":"IF(Table_PI[[#This Row],[List 3]]<>\"\",Table_PI[[#This Row],[List 3]],\"\")","v":""},{"$f":"IF(Table_PI[[#This Row],[Manufacturer]]=\"\",\"\",Table_PI[[#This Row],[Manufacturer]])","v":""},{"$f":"IF(Table_PI[[#This Row],[Model Number]]=\"\",\"\",Table_PI[[#This Row],[Model Number]])","v":""},{"$f":"IF(Table_PI[[#This Row],[Serial Number(s)]]=\"\",\"\",Table_PI[[#This Row],[Serial Number(s)]])","v":""},null,{"$f":"IF(Table_PI[[#This Row],[Size]]=\"\",\"\",Table_PI[[#This Row],[Size]])","v":""},null,null,{"$f":"IF(Table_PI[[#This Row],[Input 1]]<>\"\",Table_PI[[#This Row],[Input 1]],\"\")","v":""},null,null,{"$f":"IF(Table_PI[[#This Row],[Input 2]]<>\"\",Table_PI[[#This Row],[Input 2]],\"\")","v":""},null,null,{"$f":"IF(Table_PI[[#This Row],[Input 3]]<>\"\",Table_PI[[#This Row],[Input 3]],\"\")","v":""},null,null,{"$f":"IF(Table_PI[[#This Row],[Input 4]]<>\"\",Table_PI[[#This Row],[Input 4]],\"\")","v":""},null,null,{"$f":"IF(Table_PI[[#This Row],[Input 4]]<>\"\",Table_PI[[#This Row],[Input 4]],\"\")","v":""},null,null,{"$f":"IF(Table_PI[[#This Row],[Input 4]]<>\"\",Table_PI[[#This Row],[Input 4]],\"\")","v":""},{"$f":"IF(Table_PI[[#This Row],[Quantity]]=\"\",\"\",Table_PI[[#This Row],[Quantity]])","v":""},{"$f":"IF(Table_PI[[#This Row],[Notes]]=\"\",\"\",Table_PI[[#This Row],[Notes]])","v":""},{"$f":"IF(OR(Table_PI[[#This Row],[Hide: Baseline kWh]]=\"\",Table_PI[[#This Row],[Hide: Baseline kWh]]=0,ISTEXT(Table_PI[[#This Row],[Hide: Baseline kWh]])),\"\",Table_PI[[#This Row],[Hide: Baseline kWh]])","v":""},{"$f":"IF(OR(Table_PI[[#This Row],[Hide: Baseline kW]]=\"\",Table_PI[[#This Row],[Hide: Baseline kW]]=0,ISTEXT(Table_PI[[#This Row],[Hide: Baseline kW]])),\"\",Table_PI[[#This Row],[Hide: Baseline kW]])","v":""},{"$f":"IF(OR(Table_PI[[#This Row],[Hide: Proposed kWh]]=\"\",Table_PI[[#This Row],[Hide: Proposed kWh]]=0,ISTEXT(Table_PI[[#This Row],[Hide: Proposed kWh]])),\"\",Table_PI[[#This Row],[Hide: Proposed kWh]])","v":""},{"$f":"IF(OR(Table_PI[[#This Row],[Hide: Proposed kW]]=\"\",Table_PI[[#This Row],[Hide: Proposed kW]]=0,ISTEXT(Table_PI[[#This Row],[Hide: Proposed kW]])),\"\",Table_PI[[#This Row],[Hide: Proposed kW]])","v":""},null,null,{"$f":"IF(OR(Table_PI[[#This Row],[Hide: Rebate]]=\"\",Table_PI[[#This Row],[Hide: Rebate]]=0,ISTEXT(Table_PI[[#This Row],[Hide: Rebate]])),\"\",Table_PI[[#This Row],[Hide: Rebate]])","v":""},null,{"$f":"IF(OR(Table_PI[[#This Row],[Hide: Incremental Cost]]=\"\",Table_PI[[#This Row],[Hide: Incremental Cost]]=0,ISTEXT(Table_PI[[#This Row],[Hide: Incremental Cost]])),\"\",Table_PI[[#This Row],[Hide: Incremental Cost]])","v":""},{"$f":"IFERROR(IF(Table_SummaryPI[[#This Row],[Incentive_Customer]]=\"\",\"\",ROUND(Table_SummaryPI[[#This Row],[Incentive_Customer]]/$AM$401*'Customer Information'!$BC$21,2)),0)","v":""},{"$f":"IF(OR(Table_PI[[#This Row],[Annual kWh]]=\"\",Table_PI[[#This Row],[Annual kWh]]=0,ISTEXT(Table_PI[[#This Row],[Annual kWh]])),\"\",Table_PI[[#This Row],[Annual kWh]])","v":""},{"$f":"IF(OR(Table_PI[[#This Row],[Peak kW]]=\"\",Table_PI[[#This Row],[Peak kW]]=0,ISTEXT(Table_PI[[#This Row],[Peak kW]])),\"\",Table_PI[[#This Row],[Peak kW]])","v":""},{"$f":"IF(Table_SummaryPI[[#This Row],[Line No.]]<>\"\",IF(AND(ISNUMBER(FIND(\"Chiller\",Table_SummaryPI[[#This Row],[P_MeasureOption1]],1)),Table_SummaryPI[[#This Row],[ProposedMeasureCategory]]=\"Air-Cooled (Water-Cooled Replacement)\"),$BD$29*Table_SummaryPI[[#This Row],[Size]]*Table_SummaryPI[[#This Row],[Quantity]]*Table_SummaryPI[[#This Row],[EFLHCooling]],\nIF(ISNUMBER(FIND(\"Dishwasher\",Table_SummaryPI[[#This Row],[ProposedMeasureCategory]],1)),$BH$29*Table_SummaryPI[[#This Row],[Quantity]],\nIF(ISNUMBER(FIND(\"Ice Maker\",Table_SummaryPI[[#This Row],[ProposedMeasureCategory]],1)),$BD$31*Table_SummaryPI[[#This Row],[Quantity]],\nIF(ISNUMBER(FIND(\"Spray Valve\",Table_SummaryPI[[#This Row],[ProposedMeasureCategory]],1)),$BH$31*Table_SummaryPI[[#This Row],[Quantity]],\n0)))),\"\")","v":""},{"$f":"IF(OR(Table_PI[[#This Row],[Hide: Electrification kWh]]=\"\",Table_PI[[#This Row],[Hide: Electrification kWh]]=0,ISTEXT(Table_PI[[#This Row],[Hide: Electrification kWh]])),\"\",Table_PI[[#This Row],[Hide: Electrification kWh]])","v":""},{"$f":"IF(OR(Table_PI[[#This Row],[Hide: Electrification GHG]]=\"\",Table_PI[[#This Row],[Hide: Electrification GHG]]=0,ISTEXT(Table_PI[[#This Row],[Hide: Electrification GHG]])),\"\",Table_PI[[#This Row],[Hide: Electrification GHG]])","v":""},{"$f":"IFERROR(IF(Table_SummaryPI[[#This Row],[kWhSavings]]=\"\",\"\",$BH$9*Table_SummaryPI[[#This Row],[kWhSavings]]),0)","v":""},{"$f":"IFERROR(IF(Table_SummaryPI[[#This Row],[kWhSavings]]=\"\",\"\",$BH$14*Table_SummaryPI[[#This Row],[kWhSavings]]),0)","v":""},{"$f":"IFERROR(IF(Table_SummaryPI[[#This Row],[kWhSavings]]=\"\",\"\",$BH$18*Table_SummaryPI[[#This Row],[kWhSavings]]),0)","v":""},{"$f":"IFERROR(IF(Table_SummaryPI[[#This Row],[kWhSavings]]=\"\",\"\",$BH$22*Table_SummaryPI[[#This Row],[kWhSavings]]),0)","v":""}]
[{"$f":"Table_PI[[#This Row],[Line No.]]","v":""},{"$f":"IF(Table_SummaryPI[[#This Row],[MeasureName]]<>\"\",NOT(ISTEXT(Table_PI[[#This Row],[Rebate]])),\"\")","v":""},{"$f":"IF(Table_SummaryPI[[#This Row],[MeassureCategory]]<>\"\",CONCATENATE(Table_SummaryPI[[#This Row],[MeassureCategory]],  \" - \", Table_SummaryPI[[#This Row],[ProposedMeasureCategory]],  \" - \", TEXT(Table_SummaryPI[[#This Row],[Size]],\"#,##0.00\"),\" \",Table_SummaryPI[[#This Row],[SizeUnit]]),\"\")","v":""},{"$f":"SUBSTITUTE(Table_PI[[#This Row],[Measure]],\"     \",\"\",1)","v":""},{"$f":"IF(Table_PI[[#This Row],[List 1]]<>\"\",Table_PI[[#This Row],[List 1]],\"\")","v":""},{"$f":"IF(Table_PI[[#This Row],[List 2]]<>\"\",Table_PI[[#This Row],[List 2]],\"\")","v":""},{"$f":"IF(Table_PI[[#This Row],[List 3]]<>\"\",Table_PI[[#This Row],[List 3]],\"\")","v":""},{"$f":"IF(Table_PI[[#This Row],[Manufacturer]]=\"\",\"\",Table_PI[[#This Row],[Manufacturer]])","v":""},{"$f":"IF(Table_PI[[#This Row],[Model Number]]=\"\",\"\",Table_PI[[#This Row],[Model Number]])","v":""},{"$f":"IF(Table_PI[[#This Row],[Serial Number(s)]]=\"\",\"\",Table_PI[[#This Row],[Serial Number(s)]])","v":""},null,{"$f":"IF(Table_PI[[#This Row],[Size]]=\"\",\"\",Table_PI[[#This Row],[Size]])","v":""},null,null,{"$f":"IF(Table_PI[[#This Row],[Input 1]]<>\"\",Table_PI[[#This Row],[Input 1]],\"\")","v":""},null,null,{"$f":"IF(Table_PI[[#This Row],[Input 2]]<>\"\",Table_PI[[#This Row],[Input 2]],\"\")","v":""},null,null,{"$f":"IF(Table_PI[[#This Row],[Input 3]]<>\"\",Table_PI[[#This Row],[Input 3]],\"\")","v":""},null,null,{"$f":"IF(Table_PI[[#This Row],[Input 4]]<>\"\",Table_PI[[#This Row],[Input 4]],\"\")","v":""},null,null,{"$f":"IF(Table_PI[[#This Row],[Input 4]]<>\"\",Table_PI[[#This Row],[Input 4]],\"\")","v":""},null,null,{"$f":"IF(Table_PI[[#This Row],[Input 4]]<>\"\",Table_PI[[#This Row],[Input 4]],\"\")","v":""},{"$f":"IF(Table_PI[[#This Row],[Quantity]]=\"\",\"\",Table_PI[[#This Row],[Quantity]])","v":""},{"$f":"IF(Table_PI[[#This Row],[Notes]]=\"\",\"\",Table_PI[[#This Row],[Notes]])","v":""},{"$f":"IF(OR(Table_PI[[#This Row],[Hide: Baseline kWh]]=\"\",Table_PI[[#This Row],[Hide: Baseline kWh]]=0,ISTEXT(Table_PI[[#This Row],[Hide: Baseline kWh]])),\"\",Table_PI[[#This Row],[Hide: Baseline kWh]])","v":""},{"$f":"IF(OR(Table_PI[[#This Row],[Hide: Baseline kW]]=\"\",Table_PI[[#This Row],[Hide: Baseline kW]]=0,ISTEXT(Table_PI[[#This Row],[Hide: Baseline kW]])),\"\",Table_PI[[#This Row],[Hide: Baseline kW]])","v":""},{"$f":"IF(OR(Table_PI[[#This Row],[Hide: Proposed kWh]]=\"\",Table_PI[[#This Row],[Hide: Proposed kWh]]=0,ISTEXT(Table_PI[[#This Row],[Hide: Proposed kWh]])),\"\",Table_PI[[#This Row],[Hide: Proposed kWh]])","v":""},{"$f":"IF(OR(Table_PI[[#This Row],[Hide: Proposed kW]]=\"\",Table_PI[[#This Row],[Hide: Proposed kW]]=0,ISTEXT(Table_PI[[#This Row],[Hide: Proposed kW]])),\"\",Table_PI[[#This Row],[Hide: Proposed kW]])","v":""},null,null,{"$f":"IF(OR(Table_PI[[#This Row],[Hide: Rebate]]=\"\",Table_PI[[#This Row],[Hide: Rebate]]=0,ISTEXT(Table_PI[[#This Row],[Hide: Rebate]])),\"\",Table_PI[[#This Row],[Hide: Rebate]])","v":""},null,{"$f":"IF(OR(Table_PI[[#This Row],[Hide: Incremental Cost]]=\"\",Table_PI[[#This Row],[Hide: Incremental Cost]]=0,ISTEXT(Table_PI[[#This Row],[Hide: Incremental Cost]])),\"\",Table_PI[[#This Row],[Hide: Incremental Cost]])","v":""},{"$f":"IFERROR(IF(Table_SummaryPI[[#This Row],[Incentive_Customer]]=\"\",\"\",ROUND(Table_SummaryPI[[#This Row],[Incentive_Customer]]/$AM$401*'Customer Information'!$BC$21,2)),0)","v":""},{"$f":"IF(OR(Table_PI[[#This Row],[Annual kWh]]=\"\",Table_PI[[#This Row],[Annual kWh]]=0,ISTEXT(Table_PI[[#This Row],[Annual kWh]])),\"\",Table_PI[[#This Row],[Annual kWh]])","v":""},{"$f":"IF(OR(Table_PI[[#This Row],[Peak kW]]=\"\",Table_PI[[#This Row],[Peak kW]]=0,ISTEXT(Table_PI[[#This Row],[Peak kW]])),\"\",Table_PI[[#This Row],[Peak kW]])","v":""},{"$f":"IF(Table_SummaryPI[[#This Row],[Line No.]]<>\"\",IF(AND(ISNUMBER(FIND(\"Chiller\",Table_SummaryPI[[#This Row],[P_MeasureOption1]],1)),Table_SummaryPI[[#This Row],[ProposedMeasureCategory]]=\"Air-Cooled (Water-Cooled Replacement)\"),$BD$29*Table_SummaryPI[[#This Row],[Size]]*Table_SummaryPI[[#This Row],[Quantity]]*Table_SummaryPI[[#This Row],[EFLHCooling]],\nIF(ISNUMBER(FIND(\"Dishwasher\",Table_SummaryPI[[#This Row],[ProposedMeasureCategory]],1)),$BH$29*Table_SummaryPI[[#This Row],[Quantity]],\nIF(ISNUMBER(FIND(\"Ice Maker\",Table_SummaryPI[[#This Row],[ProposedMeasureCategory]],1)),$BD$31*Table_SummaryPI[[#This Row],[Quantity]],\nIF(ISNUMBER(FIND(\"Spray Valve\",Table_SummaryPI[[#This Row],[ProposedMeasureCategory]],1)),$BH$31*Table_SummaryPI[[#This Row],[Quantity]],\n0)))),\"\")","v":""},{"$f":"IF(OR(Table_PI[[#This Row],[Hide: Electrification kWh]]=\"\",Table_PI[[#This Row],[Hide: Electrification kWh]]=0,ISTEXT(Table_PI[[#This Row],[Hide: Electrification kWh]])),\"\",Table_PI[[#This Row],[Hide: Electrification kWh]])","v":""},{"$f":"IF(OR(Table_PI[[#This Row],[Hide: Electrification GHG]]=\"\",Table_PI[[#This Row],[Hide: Electrification GHG]]=0,ISTEXT(Table_PI[[#This Row],[Hide: Electrification GHG]])),\"\",Table_PI[[#This Row],[Hide: Electrification GHG]])","v":""},{"$f":"IFERROR(IF(Table_SummaryPI[[#This Row],[kWhSavings]]=\"\",\"\",$BH$9*Table_SummaryPI[[#This Row],[kWhSavings]]),0)","v":""},{"$f":"IFERROR(IF(Table_SummaryPI[[#This Row],[kWhSavings]]=\"\",\"\",$BH$14*Table_SummaryPI[[#This Row],[kWhSavings]]),0)","v":""},{"$f":"IFERROR(IF(Table_SummaryPI[[#This Row],[kWhSavings]]=\"\",\"\",$BH$18*Table_SummaryPI[[#This Row],[kWhSavings]]),0)","v":""},{"$f":"IFERROR(IF(Table_SummaryPI[[#This Row],[kWhSavings]]=\"\",\"\",$BH$22*Table_SummaryPI[[#This Row],[kWhSavings]]),0)","v":""}]
[{"$f":"Table_PI[[#This Row],[Line No.]]","v":""},{"$f":"IF(Table_SummaryPI[[#This Row],[MeasureName]]<>\"\",NOT(ISTEXT(Table_PI[[#This Row],[Rebate]])),\"\")","v":""},{"$f":"IF(Table_SummaryPI[[#This Row],[MeassureCategory]]<>\"\",CONCATENATE(Table_SummaryPI[[#This Row],[MeassureCategory]],  \" - \", Table_SummaryPI[[#This Row],[ProposedMeasureCategory]],  \" - \", TEXT(Table_SummaryPI[[#This Row],[Size]],\"#,##0.00\"),\" \",Table_SummaryPI[[#This Row],[SizeUnit]]),\"\")","v":""},{"$f":"SUBSTITUTE(Table_PI[[#This Row],[Measure]],\"     \",\"\",1)","v":""},{"$f":"IF(Table_PI[[#This Row],[List 1]]<>\"\",Table_PI[[#This Row],[List 1]],\"\")","v":""},{"$f":"IF(Table_PI[[#This Row],[List 2]]<>\"\",Table_PI[[#This Row],[List 2]],\"\")","v":""},{"$f":"IF(Table_PI[[#This Row],[List 3]]<>\"\",Table_PI[[#This Row],[List 3]],\"\")","v":""},{"$f":"IF(Table_PI[[#This Row],[Manufacturer]]=\"\",\"\",Table_PI[[#This Row],[Manufacturer]])","v":""},{"$f":"IF(Table_PI[[#This Row],[Model Number]]=\"\",\"\",Table_PI[[#This Row],[Model Number]])","v":""},{"$f":"IF(Table_PI[[#This Row],[Serial Number(s)]]=\"\",\"\",Table_PI[[#This Row],[Serial Number(s)]])","v":""},null,{"$f":"IF(Table_PI[[#This Row],[Size]]=\"\",\"\",Table_PI[[#This Row],[Size]])","v":""},null,null,{"$f":"IF(Table_PI[[#This Row],[Input 1]]<>\"\",Table_PI[[#This Row],[Input 1]],\"\")","v":""},null,null,{"$f":"IF(Table_PI[[#This Row],[Input 2]]<>\"\",Table_PI[[#This Row],[Input 2]],\"\")","v":""},null,null,{"$f":"IF(Table_PI[[#This Row],[Input 3]]<>\"\",Table_PI[[#This Row],[Input 3]],\"\")","v":""},null,null,{"$f":"IF(Table_PI[[#This Row],[Input 4]]<>\"\",Table_PI[[#This Row],[Input 4]],\"\")","v":""},null,null,{"$f":"IF(Table_PI[[#This Row],[Input 4]]<>\"\",Table_PI[[#This Row],[Input 4]],\"\")","v":""},null,null,{"$f":"IF(Table_PI[[#This Row],[Input 4]]<>\"\",Table_PI[[#This Row],[Input 4]],\"\")","v":""},{"$f":"IF(Table_PI[[#This Row],[Quantity]]=\"\",\"\",Table_PI[[#This Row],[Quantity]])","v":""},{"$f":"IF(Table_PI[[#This Row],[Notes]]=\"\",\"\",Table_PI[[#This Row],[Notes]])","v":""},{"$f":"IF(OR(Table_PI[[#This Row],[Hide: Baseline kWh]]=\"\",Table_PI[[#This Row],[Hide: Baseline kWh]]=0,ISTEXT(Table_PI[[#This Row],[Hide: Baseline kWh]])),\"\",Table_PI[[#This Row],[Hide: Baseline kWh]])","v":""},{"$f":"IF(OR(Table_PI[[#This Row],[Hide: Baseline kW]]=\"\",Table_PI[[#This Row],[Hide: Baseline kW]]=0,ISTEXT(Table_PI[[#This Row],[Hide: Baseline kW]])),\"\",Table_PI[[#This Row],[Hide: Baseline kW]])","v":""},{"$f":"IF(OR(Table_PI[[#This Row],[Hide: Proposed kWh]]=\"\",Table_PI[[#This Row],[Hide: Proposed kWh]]=0,ISTEXT(Table_PI[[#This Row],[Hide: Proposed kWh]])),\"\",Table_PI[[#This Row],[Hide: Proposed kWh]])","v":""},{"$f":"IF(OR(Table_PI[[#This Row],[Hide: Proposed kW]]=\"\",Table_PI[[#This Row],[Hide: Proposed kW]]=0,ISTEXT(Table_PI[[#This Row],[Hide: Proposed kW]])),\"\",Table_PI[[#This Row],[Hide: Proposed kW]])","v":""},null,null,{"$f":"IF(OR(Table_PI[[#This Row],[Hide: Rebate]]=\"\",Table_PI[[#This Row],[Hide: Rebate]]=0,ISTEXT(Table_PI[[#This Row],[Hide: Rebate]])),\"\",Table_PI[[#This Row],[Hide: Rebate]])","v":""},null,{"$f":"IF(OR(Table_PI[[#This Row],[Hide: Incremental Cost]]=\"\",Table_PI[[#This Row],[Hide: Incremental Cost]]=0,ISTEXT(Table_PI[[#This Row],[Hide: Incremental Cost]])),\"\",Table_PI[[#This Row],[Hide: Incremental Cost]])","v":""},{"$f":"IFERROR(IF(Table_SummaryPI[[#This Row],[Incentive_Customer]]=\"\",\"\",ROUND(Table_SummaryPI[[#This Row],[Incentive_Customer]]/$AM$401*'Customer Information'!$BC$21,2)),0)","v":""},{"$f":"IF(OR(Table_PI[[#This Row],[Annual kWh]]=\"\",Table_PI[[#This Row],[Annual kWh]]=0,ISTEXT(Table_PI[[#This Row],[Annual kWh]])),\"\",Table_PI[[#This Row],[Annual kWh]])","v":""},{"$f":"IF(OR(Table_PI[[#This Row],[Peak kW]]=\"\",Table_PI[[#This Row],[Peak kW]]=0,ISTEXT(Table_PI[[#This Row],[Peak kW]])),\"\",Table_PI[[#This Row],[Peak kW]])","v":""},{"$f":"IF(Table_SummaryPI[[#This Row],[Line No.]]<>\"\",IF(AND(ISNUMBER(FIND(\"Chiller\",Table_SummaryPI[[#This Row],[P_MeasureOption1]],1)),Table_SummaryPI[[#This Row],[ProposedMeasureCategory]]=\"Air-Cooled (Water-Cooled Replacement)\"),$BD$29*Table_SummaryPI[[#This Row],[Size]]*Table_SummaryPI[[#This Row],[Quantity]]*Table_SummaryPI[[#This Row],[EFLHCooling]],\nIF(ISNUMBER(FIND(\"Dishwasher\",Table_SummaryPI[[#This Row],[ProposedMeasureCategory]],1)),$BH$29*Table_SummaryPI[[#This Row],[Quantity]],\nIF(ISNUMBER(FIND(\"Ice Maker\",Table_SummaryPI[[#This Row],[ProposedMeasureCategory]],1)),$BD$31*Table_SummaryPI[[#This Row],[Quantity]],\nIF(ISNUMBER(FIND(\"Spray Valve\",Table_SummaryPI[[#This Row],[ProposedMeasureCategory]],1)),$BH$31*Table_SummaryPI[[#This Row],[Quantity]],\n0)))),\"\")","v":""},{"$f":"IF(OR(Table_PI[[#This Row],[Hide: Electrification kWh]]=\"\",Table_PI[[#This Row],[Hide: Electrification kWh]]=0,ISTEXT(Table_PI[[#This Row],[Hide: Electrification kWh]])),\"\",Table_PI[[#This Row],[Hide: Electrification kWh]])","v":""},{"$f":"IF(OR(Table_PI[[#This Row],[Hide: Electrification GHG]]=\"\",Table_PI[[#This Row],[Hide: Electrification GHG]]=0,ISTEXT(Table_PI[[#This Row],[Hide: Electrification GHG]])),\"\",Table_PI[[#This Row],[Hide: Electrification GHG]])","v":""},{"$f":"IFERROR(IF(Table_SummaryPI[[#This Row],[kWhSavings]]=\"\",\"\",$BH$9*Table_SummaryPI[[#This Row],[kWhSavings]]),0)","v":""},{"$f":"IFERROR(IF(Table_SummaryPI[[#This Row],[kWhSavings]]=\"\",\"\",$BH$14*Table_SummaryPI[[#This Row],[kWhSavings]]),0)","v":""},{"$f":"IFERROR(IF(Table_SummaryPI[[#This Row],[kWhSavings]]=\"\",\"\",$BH$18*Table_SummaryPI[[#This Row],[kWhSavings]]),0)","v":""},{"$f":"IFERROR(IF(Table_SummaryPI[[#This Row],[kWhSavings]]=\"\",\"\",$BH$22*Table_SummaryPI[[#This Row],[kWhSavings]]),0)","v":""}]
[{"$f":"Table_PI[[#This Row],[Line No.]]","v":""},{"$f":"IF(Table_SummaryPI[[#This Row],[MeasureName]]<>\"\",NOT(ISTEXT(Table_PI[[#This Row],[Rebate]])),\"\")","v":""},{"$f":"IF(Table_SummaryPI[[#This Row],[MeassureCategory]]<>\"\",CONCATENATE(Table_SummaryPI[[#This Row],[MeassureCategory]],  \" - \", Table_SummaryPI[[#This Row],[ProposedMeasureCategory]],  \" - \", TEXT(Table_SummaryPI[[#This Row],[Size]],\"#,##0.00\"),\" \",Table_SummaryPI[[#This Row],[SizeUnit]]),\"\")","v":""},{"$f":"SUBSTITUTE(Table_PI[[#This Row],[Measure]],\"     \",\"\",1)","v":""},{"$f":"IF(Table_PI[[#This Row],[List 1]]<>\"\",Table_PI[[#This Row],[List 1]],\"\")","v":""},{"$f":"IF(Table_PI[[#This Row],[List 2]]<>\"\",Table_PI[[#This Row],[List 2]],\"\")","v":""},{"$f":"IF(Table_PI[[#This Row],[List 3]]<>\"\",Table_PI[[#This Row],[List 3]],\"\")","v":""},{"$f":"IF(Table_PI[[#This Row],[Manufacturer]]=\"\",\"\",Table_PI[[#This Row],[Manufacturer]])","v":""},{"$f":"IF(Table_PI[[#This Row],[Model Number]]=\"\",\"\",Table_PI[[#This Row],[Model Number]])","v":""},{"$f":"IF(Table_PI[[#This Row],[Serial Number(s)]]=\"\",\"\",Table_PI[[#This Row],[Serial Number(s)]])","v":""},null,{"$f":"IF(Table_PI[[#This Row],[Size]]=\"\",\"\",Table_PI[[#This Row],[Size]])","v":""},null,null,{"$f":"IF(Table_PI[[#This Row],[Input 1]]<>\"\",Table_PI[[#This Row],[Input 1]],\"\")","v":""},null,null,{"$f":"IF(Table_PI[[#This Row],[Input 2]]<>\"\",Table_PI[[#This Row],[Input 2]],\"\")","v":""},null,null,{"$f":"IF(Table_PI[[#This Row],[Input 3]]<>\"\",Table_PI[[#This Row],[Input 3]],\"\")","v":""},null,null,{"$f":"IF(Table_PI[[#This Row],[Input 4]]<>\"\",Table_PI[[#This Row],[Input 4]],\"\")","v":""},null,null,{"$f":"IF(Table_PI[[#This Row],[Input 4]]<>\"\",Table_PI[[#This Row],[Input 4]],\"\")","v":""},null,null,{"$f":"IF(Table_PI[[#This Row],[Input 4]]<>\"\",Table_PI[[#This Row],[Input 4]],\"\")","v":""},{"$f":"IF(Table_PI[[#This Row],[Quantity]]=\"\",\"\",Table_PI[[#This Row],[Quantity]])","v":""},{"$f":"IF(Table_PI[[#This Row],[Notes]]=\"\",\"\",Table_PI[[#This Row],[Notes]])","v":""},{"$f":"IF(OR(Table_PI[[#This Row],[Hide: Baseline kWh]]=\"\",Table_PI[[#This Row],[Hide: Baseline kWh]]=0,ISTEXT(Table_PI[[#This Row],[Hide: Baseline kWh]])),\"\",Table_PI[[#This Row],[Hide: Baseline kWh]])","v":""},{"$f":"IF(OR(Table_PI[[#This Row],[Hide: Baseline kW]]=\"\",Table_PI[[#This Row],[Hide: Baseline kW]]=0,ISTEXT(Table_PI[[#This Row],[Hide: Baseline kW]])),\"\",Table_PI[[#This Row],[Hide: Baseline kW]])","v":""},{"$f":"IF(OR(Table_PI[[#This Row],[Hide: Proposed kWh]]=\"\",Table_PI[[#This Row],[Hide: Proposed kWh]]=0,ISTEXT(Table_PI[[#This Row],[Hide: Proposed kWh]])),\"\",Table_PI[[#This Row],[Hide: Proposed kWh]])","v":""},{"$f":"IF(OR(Table_PI[[#This Row],[Hide: Proposed kW]]=\"\",Table_PI[[#This Row],[Hide: Proposed kW]]=0,ISTEXT(Table_PI[[#This Row],[Hide: Proposed kW]])),\"\",Table_PI[[#This Row],[Hide: Proposed kW]])","v":""},null,null,{"$f":"IF(OR(Table_PI[[#This Row],[Hide: Rebate]]=\"\",Table_PI[[#This Row],[Hide: Rebate]]=0,ISTEXT(Table_PI[[#This Row],[Hide: Rebate]])),\"\",Table_PI[[#This Row],[Hide: Rebate]])","v":""},null,{"$f":"IF(OR(Table_PI[[#This Row],[Hide: Incremental Cost]]=\"\",Table_PI[[#This Row],[Hide: Incremental Cost]]=0,ISTEXT(Table_PI[[#This Row],[Hide: Incremental Cost]])),\"\",Table_PI[[#This Row],[Hide: Incremental Cost]])","v":""},{"$f":"IFERROR(IF(Table_SummaryPI[[#This Row],[Incentive_Customer]]=\"\",\"\",ROUND(Table_SummaryPI[[#This Row],[Incentive_Customer]]/$AM$401*'Customer Information'!$BC$21,2)),0)","v":""},{"$f":"IF(OR(Table_PI[[#This Row],[Annual kWh]]=\"\",Table_PI[[#This Row],[Annual kWh]]=0,ISTEXT(Table_PI[[#This Row],[Annual kWh]])),\"\",Table_PI[[#This Row],[Annual kWh]])","v":""},{"$f":"IF(OR(Table_PI[[#This Row],[Peak kW]]=\"\",Table_PI[[#This Row],[Peak kW]]=0,ISTEXT(Table_PI[[#This Row],[Peak kW]])),\"\",Table_PI[[#This Row],[Peak kW]])","v":""},{"$f":"IF(Table_SummaryPI[[#This Row],[Line No.]]<>\"\",IF(AND(ISNUMBER(FIND(\"Chiller\",Table_SummaryPI[[#This Row],[P_MeasureOption1]],1)),Table_SummaryPI[[#This Row],[ProposedMeasureCategory]]=\"Air-Cooled (Water-Cooled Replacement)\"),$BD$29*Table_SummaryPI[[#This Row],[Size]]*Table_SummaryPI[[#This Row],[Quantity]]*Table_SummaryPI[[#This Row],[EFLHCooling]],\nIF(ISNUMBER(FIND(\"Dishwasher\",Table_SummaryPI[[#This Row],[ProposedMeasureCategory]],1)),$BH$29*Table_SummaryPI[[#This Row],[Quantity]],\nIF(ISNUMBER(FIND(\"Ice Maker\",Table_SummaryPI[[#This Row],[ProposedMeasureCategory]],1)),$BD$31*Table_SummaryPI[[#This Row],[Quantity]],\nIF(ISNUMBER(FIND(\"Spray Valve\",Table_SummaryPI[[#This Row],[ProposedMeasureCategory]],1)),$BH$31*Table_SummaryPI[[#This Row],[Quantity]],\n0)))),\"\")","v":""},{"$f":"IF(OR(Table_PI[[#This Row],[Hide: Electrification kWh]]=\"\",Table_PI[[#This Row],[Hide: Electrification kWh]]=0,ISTEXT(Table_PI[[#This Row],[Hide: Electrification kWh]])),\"\",Table_PI[[#This Row],[Hide: Electrification kWh]])","v":""},{"$f":"IF(OR(Table_PI[[#This Row],[Hide: Electrification GHG]]=\"\",Table_PI[[#This Row],[Hide: Electrification GHG]]=0,ISTEXT(Table_PI[[#This Row],[Hide: Electrification GHG]])),\"\",Table_PI[[#This Row],[Hide: Electrification GHG]])","v":""},{"$f":"IFERROR(IF(Table_SummaryPI[[#This Row],[kWhSavings]]=\"\",\"\",$BH$9*Table_SummaryPI[[#This Row],[kWhSavings]]),0)","v":""},{"$f":"IFERROR(IF(Table_SummaryPI[[#This Row],[kWhSavings]]=\"\",\"\",$BH$14*Table_SummaryPI[[#This Row],[kWhSavings]]),0)","v":""},{"$f":"IFERROR(IF(Table_SummaryPI[[#This Row],[kWhSavings]]=\"\",\"\",$BH$18*Table_SummaryPI[[#This Row],[kWhSavings]]),0)","v":""},{"$f":"IFERROR(IF(Table_SummaryPI[[#This Row],[kWhSavings]]=\"\",\"\",$BH$22*Table_SummaryPI[[#This Row],[kWhSavings]]),0)","v":""}]
[{"$f":"Table_PI[[#This Row],[Line No.]]","v":""},{"$f":"IF(Table_SummaryPI[[#This Row],[MeasureName]]<>\"\",NOT(ISTEXT(Table_PI[[#This Row],[Rebate]])),\"\")","v":""},{"$f":"IF(Table_SummaryPI[[#This Row],[MeassureCategory]]<>\"\",CONCATENATE(Table_SummaryPI[[#This Row],[MeassureCategory]],  \" - \", Table_SummaryPI[[#This Row],[ProposedMeasureCategory]],  \" - \", TEXT(Table_SummaryPI[[#This Row],[Size]],\"#,##0.00\"),\" \",Table_SummaryPI[[#This Row],[SizeUnit]]),\"\")","v":""},{"$f":"SUBSTITUTE(Table_PI[[#This Row],[Measure]],\"     \",\"\",1)","v":""},{"$f":"IF(Table_PI[[#This Row],[List 1]]<>\"\",Table_PI[[#This Row],[List 1]],\"\")","v":""},{"$f":"IF(Table_PI[[#This Row],[List 2]]<>\"\",Table_PI[[#This Row],[List 2]],\"\")","v":""},{"$f":"IF(Table_PI[[#This Row],[List 3]]<>\"\",Table_PI[[#This Row],[List 3]],\"\")","v":""},{"$f":"IF(Table_PI[[#This Row],[Manufacturer]]=\"\",\"\",Table_PI[[#This Row],[Manufacturer]])","v":""},{"$f":"IF(Table_PI[[#This Row],[Model Number]]=\"\",\"\",Table_PI[[#This Row],[Model Number]])","v":""},{"$f":"IF(Table_PI[[#This Row],[Serial Number(s)]]=\"\",\"\",Table_PI[[#This Row],[Serial Number(s)]])","v":""},null,{"$f":"IF(Table_PI[[#This Row],[Size]]=\"\",\"\",Table_PI[[#This Row],[Size]])","v":""},null,null,{"$f":"IF(Table_PI[[#This Row],[Input 1]]<>\"\",Table_PI[[#This Row],[Input 1]],\"\")","v":""},null,null,{"$f":"IF(Table_PI[[#This Row],[Input 2]]<>\"\",Table_PI[[#This Row],[Input 2]],\"\")","v":""},null,null,{"$f":"IF(Table_PI[[#This Row],[Input 3]]<>\"\",Table_PI[[#This Row],[Input 3]],\"\")","v":""},null,null,{"$f":"IF(Table_PI[[#This Row],[Input 4]]<>\"\",Table_PI[[#This Row],[Input 4]],\"\")","v":""},null,null,{"$f":"IF(Table_PI[[#This Row],[Input 4]]<>\"\",Table_PI[[#This Row],[Input 4]],\"\")","v":""},null,null,{"$f":"IF(Table_PI[[#This Row],[Input 4]]<>\"\",Table_PI[[#This Row],[Input 4]],\"\")","v":""},{"$f":"IF(Table_PI[[#This Row],[Quantity]]=\"\",\"\",Table_PI[[#This Row],[Quantity]])","v":""},{"$f":"IF(Table_PI[[#This Row],[Notes]]=\"\",\"\",Table_PI[[#This Row],[Notes]])","v":""},{"$f":"IF(OR(Table_PI[[#This Row],[Hide: Baseline kWh]]=\"\",Table_PI[[#This Row],[Hide: Baseline kWh]]=0,ISTEXT(Table_PI[[#This Row],[Hide: Baseline kWh]])),\"\",Table_PI[[#This Row],[Hide: Baseline kWh]])","v":""},{"$f":"IF(OR(Table_PI[[#This Row],[Hide: Baseline kW]]=\"\",Table_PI[[#This Row],[Hide: Baseline kW]]=0,ISTEXT(Table_PI[[#This Row],[Hide: Baseline kW]])),\"\",Table_PI[[#This Row],[Hide: Baseline kW]])","v":""},{"$f":"IF(OR(Table_PI[[#This Row],[Hide: Proposed kWh]]=\"\",Table_PI[[#This Row],[Hide: Proposed kWh]]=0,ISTEXT(Table_PI[[#This Row],[Hide: Proposed kWh]])),\"\",Table_PI[[#This Row],[Hide: Proposed kWh]])","v":""},{"$f":"IF(OR(Table_PI[[#This Row],[Hide: Proposed kW]]=\"\",Table_PI[[#This Row],[Hide: Proposed kW]]=0,ISTEXT(Table_PI[[#This Row],[Hide: Proposed kW]])),\"\",Table_PI[[#This Row],[Hide: Proposed kW]])","v":""},null,null,{"$f":"IF(OR(Table_PI[[#This Row],[Hide: Rebate]]=\"\",Table_PI[[#This Row],[Hide: Rebate]]=0,ISTEXT(Table_PI[[#This Row],[Hide: Rebate]])),\"\",Table_PI[[#This Row],[Hide: Rebate]])","v":""},null,{"$f":"IF(OR(Table_PI[[#This Row],[Hide: Incremental Cost]]=\"\",Table_PI[[#This Row],[Hide: Incremental Cost]]=0,ISTEXT(Table_PI[[#This Row],[Hide: Incremental Cost]])),\"\",Table_PI[[#This Row],[Hide: Incremental Cost]])","v":""},{"$f":"IFERROR(IF(Table_SummaryPI[[#This Row],[Incentive_Customer]]=\"\",\"\",ROUND(Table_SummaryPI[[#This Row],[Incentive_Customer]]/$AM$401*'Customer Information'!$BC$21,2)),0)","v":""},{"$f":"IF(OR(Table_PI[[#This Row],[Annual kWh]]=\"\",Table_PI[[#This Row],[Annual kWh]]=0,ISTEXT(Table_PI[[#This Row],[Annual kWh]])),\"\",Table_PI[[#This Row],[Annual kWh]])","v":""},{"$f":"IF(OR(Table_PI[[#This Row],[Peak kW]]=\"\",Table_PI[[#This Row],[Peak kW]]=0,ISTEXT(Table_PI[[#This Row],[Peak kW]])),\"\",Table_PI[[#This Row],[Peak kW]])","v":""},{"$f":"IF(Table_SummaryPI[[#This Row],[Line No.]]<>\"\",IF(AND(ISNUMBER(FIND(\"Chiller\",Table_SummaryPI[[#This Row],[P_MeasureOption1]],1)),Table_SummaryPI[[#This Row],[ProposedMeasureCategory]]=\"Air-Cooled (Water-Cooled Replacement)\"),$BD$29*Table_SummaryPI[[#This Row],[Size]]*Table_SummaryPI[[#This Row],[Quantity]]*Table_SummaryPI[[#This Row],[EFLHCooling]],\nIF(ISNUMBER(FIND(\"Dishwasher\",Table_SummaryPI[[#This Row],[ProposedMeasureCategory]],1)),$BH$29*Table_SummaryPI[[#This Row],[Quantity]],\nIF(ISNUMBER(FIND(\"Ice Maker\",Table_SummaryPI[[#This Row],[ProposedMeasureCategory]],1)),$BD$31*Table_SummaryPI[[#This Row],[Quantity]],\nIF(ISNUMBER(FIND(\"Spray Valve\",Table_SummaryPI[[#This Row],[ProposedMeasureCategory]],1)),$BH$31*Table_SummaryPI[[#This Row],[Quantity]],\n0)))),\"\")","v":""},{"$f":"IF(OR(Table_PI[[#This Row],[Hide: Electrification kWh]]=\"\",Table_PI[[#This Row],[Hide: Electrification kWh]]=0,ISTEXT(Table_PI[[#This Row],[Hide: Electrification kWh]])),\"\",Table_PI[[#This Row],[Hide: Electrification kWh]])","v":""},{"$f":"IF(OR(Table_PI[[#This Row],[Hide: Electrification GHG]]=\"\",Table_PI[[#This Row],[Hide: Electrification GHG]]=0,ISTEXT(Table_PI[[#This Row],[Hide: Electrification GHG]])),\"\",Table_PI[[#This Row],[Hide: Electrification GHG]])","v":""},{"$f":"IFERROR(IF(Table_SummaryPI[[#This Row],[kWhSavings]]=\"\",\"\",$BH$9*Table_SummaryPI[[#This Row],[kWhSavings]]),0)","v":""},{"$f":"IFERROR(IF(Table_SummaryPI[[#This Row],[kWhSavings]]=\"\",\"\",$BH$14*Table_SummaryPI[[#This Row],[kWhSavings]]),0)","v":""},{"$f":"IFERROR(IF(Table_SummaryPI[[#This Row],[kWhSavings]]=\"\",\"\",$BH$18*Table_SummaryPI[[#This Row],[kWhSavings]]),0)","v":""},{"$f":"IFERROR(IF(Table_SummaryPI[[#This Row],[kWhSavings]]=\"\",\"\",$BH$22*Table_SummaryPI[[#This Row],[kWhSavings]]),0)","v":""}]
[{"$f":"Table_PI[[#This Row],[Line No.]]","v":""},{"$f":"IF(Table_SummaryPI[[#This Row],[MeasureName]]<>\"\",NOT(ISTEXT(Table_PI[[#This Row],[Rebate]])),\"\")","v":""},{"$f":"IF(Table_SummaryPI[[#This Row],[MeassureCategory]]<>\"\",CONCATENATE(Table_SummaryPI[[#This Row],[MeassureCategory]],  \" - \", Table_SummaryPI[[#This Row],[ProposedMeasureCategory]],  \" - \", TEXT(Table_SummaryPI[[#This Row],[Size]],\"#,##0.00\"),\" \",Table_SummaryPI[[#This Row],[SizeUnit]]),\"\")","v":""},{"$f":"SUBSTITUTE(Table_PI[[#This Row],[Measure]],\"     \",\"\",1)","v":""},{"$f":"IF(Table_PI[[#This Row],[List 1]]<>\"\",Table_PI[[#This Row],[List 1]],\"\")","v":""},{"$f":"IF(Table_PI[[#This Row],[List 2]]<>\"\",Table_PI[[#This Row],[List 2]],\"\")","v":""},{"$f":"IF(Table_PI[[#This Row],[List 3]]<>\"\",Table_PI[[#This Row],[List 3]],\"\")","v":""},{"$f":"IF(Table_PI[[#This Row],[Manufacturer]]=\"\",\"\",Table_PI[[#This Row],[Manufacturer]])","v":""},{"$f":"IF(Table_PI[[#This Row],[Model Number]]=\"\",\"\",Table_PI[[#This Row],[Model Number]])","v":""},{"$f":"IF(Table_PI[[#This Row],[Serial Number(s)]]=\"\",\"\",Table_PI[[#This Row],[Serial Number(s)]])","v":""},null,{"$f":"IF(Table_PI[[#This Row],[Size]]=\"\",\"\",Table_PI[[#This Row],[Size]])","v":""},null,null,{"$f":"IF(Table_PI[[#This Row],[Input 1]]<>\"\",Table_PI[[#This Row],[Input 1]],\"\")","v":""},null,null,{"$f":"IF(Table_PI[[#This Row],[Input 2]]<>\"\",Table_PI[[#This Row],[Input 2]],\"\")","v":""},null,null,{"$f":"IF(Table_PI[[#This Row],[Input 3]]<>\"\",Table_PI[[#This Row],[Input 3]],\"\")","v":""},null,null,{"$f":"IF(Table_PI[[#This Row],[Input 4]]<>\"\",Table_PI[[#This Row],[Input 4]],\"\")","v":""},null,null,{"$f":"IF(Table_PI[[#This Row],[Input 4]]<>\"\",Table_PI[[#This Row],[Input 4]],\"\")","v":""},null,null,{"$f":"IF(Table_PI[[#This Row],[Input 4]]<>\"\",Table_PI[[#This Row],[Input 4]],\"\")","v":""},{"$f":"IF(Table_PI[[#This Row],[Quantity]]=\"\",\"\",Table_PI[[#This Row],[Quantity]])","v":""},{"$f":"IF(Table_PI[[#This Row],[Notes]]=\"\",\"\",Table_PI[[#This Row],[Notes]])","v":""},{"$f":"IF(OR(Table_PI[[#This Row],[Hide: Baseline kWh]]=\"\",Table_PI[[#This Row],[Hide: Baseline kWh]]=0,ISTEXT(Table_PI[[#This Row],[Hide: Baseline kWh]])),\"\",Table_PI[[#This Row],[Hide: Baseline kWh]])","v":""},{"$f":"IF(OR(Table_PI[[#This Row],[Hide: Baseline kW]]=\"\",Table_PI[[#This Row],[Hide: Baseline kW]]=0,ISTEXT(Table_PI[[#This Row],[Hide: Baseline kW]])),\"\",Table_PI[[#This Row],[Hide: Baseline kW]])","v":""},{"$f":"IF(OR(Table_PI[[#This Row],[Hide: Proposed kWh]]=\"\",Table_PI[[#This Row],[Hide: Proposed kWh]]=0,ISTEXT(Table_PI[[#This Row],[Hide: Proposed kWh]])),\"\",Table_PI[[#This Row],[Hide: Proposed kWh]])","v":""},{"$f":"IF(OR(Table_PI[[#This Row],[Hide: Proposed kW]]=\"\",Table_PI[[#This Row],[Hide: Proposed kW]]=0,ISTEXT(Table_PI[[#This Row],[Hide: Proposed kW]])),\"\",Table_PI[[#This Row],[Hide: Proposed kW]])","v":""},null,null,{"$f":"IF(OR(Table_PI[[#This Row],[Hide: Rebate]]=\"\",Table_PI[[#This Row],[Hide: Rebate]]=0,ISTEXT(Table_PI[[#This Row],[Hide: Rebate]])),\"\",Table_PI[[#This Row],[Hide: Rebate]])","v":""},null,{"$f":"IF(OR(Table_PI[[#This Row],[Hide: Incremental Cost]]=\"\",Table_PI[[#This Row],[Hide: Incremental Cost]]=0,ISTEXT(Table_PI[[#This Row],[Hide: Incremental Cost]])),\"\",Table_PI[[#This Row],[Hide: Incremental Cost]])","v":""},{"$f":"IFERROR(IF(Table_SummaryPI[[#This Row],[Incentive_Customer]]=\"\",\"\",ROUND(Table_SummaryPI[[#This Row],[Incentive_Customer]]/$AM$401*'Customer Information'!$BC$21,2)),0)","v":""},{"$f":"IF(OR(Table_PI[[#This Row],[Annual kWh]]=\"\",Table_PI[[#This Row],[Annual kWh]]=0,ISTEXT(Table_PI[[#This Row],[Annual kWh]])),\"\",Table_PI[[#This Row],[Annual kWh]])","v":""},{"$f":"IF(OR(Table_PI[[#This Row],[Peak kW]]=\"\",Table_PI[[#This Row],[Peak kW]]=0,ISTEXT(Table_PI[[#This Row],[Peak kW]])),\"\",Table_PI[[#This Row],[Peak kW]])","v":""},{"$f":"IF(Table_SummaryPI[[#This Row],[Line No.]]<>\"\",IF(AND(ISNUMBER(FIND(\"Chiller\",Table_SummaryPI[[#This Row],[P_MeasureOption1]],1)),Table_SummaryPI[[#This Row],[ProposedMeasureCategory]]=\"Air-Cooled (Water-Cooled Replacement)\"),$BD$29*Table_SummaryPI[[#This Row],[Size]]*Table_SummaryPI[[#This Row],[Quantity]]*Table_SummaryPI[[#This Row],[EFLHCooling]],\nIF(ISNUMBER(FIND(\"Dishwasher\",Table_SummaryPI[[#This Row],[ProposedMeasureCategory]],1)),$BH$29*Table_SummaryPI[[#This Row],[Quantity]],\nIF(ISNUMBER(FIND(\"Ice Maker\",Table_SummaryPI[[#This Row],[ProposedMeasureCategory]],1)),$BD$31*Table_SummaryPI[[#This Row],[Quantity]],\nIF(ISNUMBER(FIND(\"Spray Valve\",Table_SummaryPI[[#This Row],[ProposedMeasureCategory]],1)),$BH$31*Table_SummaryPI[[#This Row],[Quantity]],\n0)))),\"\")","v":""},{"$f":"IF(OR(Table_PI[[#This Row],[Hide: Electrification kWh]]=\"\",Table_PI[[#This Row],[Hide: Electrification kWh]]=0,ISTEXT(Table_PI[[#This Row],[Hide: Electrification kWh]])),\"\",Table_PI[[#This Row],[Hide: Electrification kWh]])","v":""},{"$f":"IF(OR(Table_PI[[#This Row],[Hide: Electrification GHG]]=\"\",Table_PI[[#This Row],[Hide: Electrification GHG]]=0,ISTEXT(Table_PI[[#This Row],[Hide: Electrification GHG]])),\"\",Table_PI[[#This Row],[Hide: Electrification GHG]])","v":""},{"$f":"IFERROR(IF(Table_SummaryPI[[#This Row],[kWhSavings]]=\"\",\"\",$BH$9*Table_SummaryPI[[#This Row],[kWhSavings]]),0)","v":""},{"$f":"IFERROR(IF(Table_SummaryPI[[#This Row],[kWhSavings]]=\"\",\"\",$BH$14*Table_SummaryPI[[#This Row],[kWhSavings]]),0)","v":""},{"$f":"IFERROR(IF(Table_SummaryPI[[#This Row],[kWhSavings]]=\"\",\"\",$BH$18*Table_SummaryPI[[#This Row],[kWhSavings]]),0)","v":""},{"$f":"IFERROR(IF(Table_SummaryPI[[#This Row],[kWhSavings]]=\"\",\"\",$BH$22*Table_SummaryPI[[#This Row],[kWhSavings]]),0)","v":""}]
[{"$f":"Table_PI[[#This Row],[Line No.]]","v":""},{"$f":"IF(Table_SummaryPI[[#This Row],[MeasureName]]<>\"\",NOT(ISTEXT(Table_PI[[#This Row],[Rebate]])),\"\")","v":""},{"$f":"IF(Table_SummaryPI[[#This Row],[MeassureCategory]]<>\"\",CONCATENATE(Table_SummaryPI[[#This Row],[MeassureCategory]],  \" - \", Table_SummaryPI[[#This Row],[ProposedMeasureCategory]],  \" - \", TEXT(Table_SummaryPI[[#This Row],[Size]],\"#,##0.00\"),\" \",Table_SummaryPI[[#This Row],[SizeUnit]]),\"\")","v":""},{"$f":"SUBSTITUTE(Table_PI[[#This Row],[Measure]],\"     \",\"\",1)","v":""},{"$f":"IF(Table_PI[[#This Row],[List 1]]<>\"\",Table_PI[[#This Row],[List 1]],\"\")","v":""},{"$f":"IF(Table_PI[[#This Row],[List 2]]<>\"\",Table_PI[[#This Row],[List 2]],\"\")","v":""},{"$f":"IF(Table_PI[[#This Row],[List 3]]<>\"\",Table_PI[[#This Row],[List 3]],\"\")","v":""},{"$f":"IF(Table_PI[[#This Row],[Manufacturer]]=\"\",\"\",Table_PI[[#This Row],[Manufacturer]])","v":""},{"$f":"IF(Table_PI[[#This Row],[Model Number]]=\"\",\"\",Table_PI[[#This Row],[Model Number]])","v":""},{"$f":"IF(Table_PI[[#This Row],[Serial Number(s)]]=\"\",\"\",Table_PI[[#This Row],[Serial Number(s)]])","v":""},null,{"$f":"IF(Table_PI[[#This Row],[Size]]=\"\",\"\",Table_PI[[#This Row],[Size]])","v":""},null,null,{"$f":"IF(Table_PI[[#This Row],[Input 1]]<>\"\",Table_PI[[#This Row],[Input 1]],\"\")","v":""},null,null,{"$f":"IF(Table_PI[[#This Row],[Input 2]]<>\"\",Table_PI[[#This Row],[Input 2]],\"\")","v":""},null,null,{"$f":"IF(Table_PI[[#This Row],[Input 3]]<>\"\",Table_PI[[#This Row],[Input 3]],\"\")","v":""},null,null,{"$f":"IF(Table_PI[[#This Row],[Input 4]]<>\"\",Table_PI[[#This Row],[Input 4]],\"\")","v":""},null,null,{"$f":"IF(Table_PI[[#This Row],[Input 4]]<>\"\",Table_PI[[#This Row],[Input 4]],\"\")","v":""},null,null,{"$f":"IF(Table_PI[[#This Row],[Input 4]]<>\"\",Table_PI[[#This Row],[Input 4]],\"\")","v":""},{"$f":"IF(Table_PI[[#This Row],[Quantity]]=\"\",\"\",Table_PI[[#This Row],[Quantity]])","v":""},{"$f":"IF(Table_PI[[#This Row],[Notes]]=\"\",\"\",Table_PI[[#This Row],[Notes]])","v":""},{"$f":"IF(OR(Table_PI[[#This Row],[Hide: Baseline kWh]]=\"\",Table_PI[[#This Row],[Hide: Baseline kWh]]=0,ISTEXT(Table_PI[[#This Row],[Hide: Baseline kWh]])),\"\",Table_PI[[#This Row],[Hide: Baseline kWh]])","v":""},{"$f":"IF(OR(Table_PI[[#This Row],[Hide: Baseline kW]]=\"\",Table_PI[[#This Row],[Hide: Baseline kW]]=0,ISTEXT(Table_PI[[#This Row],[Hide: Baseline kW]])),\"\",Table_PI[[#This Row],[Hide: Baseline kW]])","v":""},{"$f":"IF(OR(Table_PI[[#This Row],[Hide: Proposed kWh]]=\"\",Table_PI[[#This Row],[Hide: Proposed kWh]]=0,ISTEXT(Table_PI[[#This Row],[Hide: Proposed kWh]])),\"\",Table_PI[[#This Row],[Hide: Proposed kWh]])","v":""},{"$f":"IF(OR(Table_PI[[#This Row],[Hide: Proposed kW]]=\"\",Table_PI[[#This Row],[Hide: Proposed kW]]=0,ISTEXT(Table_PI[[#This Row],[Hide: Proposed kW]])),\"\",Table_PI[[#This Row],[Hide: Proposed kW]])","v":""},null,null,{"$f":"IF(OR(Table_PI[[#This Row],[Hide: Rebate]]=\"\",Table_PI[[#This Row],[Hide: Rebate]]=0,ISTEXT(Table_PI[[#This Row],[Hide: Rebate]])),\"\",Table_PI[[#This Row],[Hide: Rebate]])","v":""},null,{"$f":"IF(OR(Table_PI[[#This Row],[Hide: Incremental Cost]]=\"\",Table_PI[[#This Row],[Hide: Incremental Cost]]=0,ISTEXT(Table_PI[[#This Row],[Hide: Incremental Cost]])),\"\",Table_PI[[#This Row],[Hide: Incremental Cost]])","v":""},{"$f":"IFERROR(IF(Table_SummaryPI[[#This Row],[Incentive_Customer]]=\"\",\"\",ROUND(Table_SummaryPI[[#This Row],[Incentive_Customer]]/$AM$401*'Customer Information'!$BC$21,2)),0)","v":""},{"$f":"IF(OR(Table_PI[[#This Row],[Annual kWh]]=\"\",Table_PI[[#This Row],[Annual kWh]]=0,ISTEXT(Table_PI[[#This Row],[Annual kWh]])),\"\",Table_PI[[#This Row],[Annual kWh]])","v":""},{"$f":"IF(OR(Table_PI[[#This Row],[Peak kW]]=\"\",Table_PI[[#This Row],[Peak kW]]=0,ISTEXT(Table_PI[[#This Row],[Peak kW]])),\"\",Table_PI[[#This Row],[Peak kW]])","v":""},{"$f":"IF(Table_SummaryPI[[#This Row],[Line No.]]<>\"\",IF(AND(ISNUMBER(FIND(\"Chiller\",Table_SummaryPI[[#This Row],[P_MeasureOption1]],1)),Table_SummaryPI[[#This Row],[ProposedMeasureCategory]]=\"Air-Cooled (Water-Cooled Replacement)\"),$BD$29*Table_SummaryPI[[#This Row],[Size]]*Table_SummaryPI[[#This Row],[Quantity]]*Table_SummaryPI[[#This Row],[EFLHCooling]],\nIF(ISNUMBER(FIND(\"Dishwasher\",Table_SummaryPI[[#This Row],[ProposedMeasureCategory]],1)),$BH$29*Table_SummaryPI[[#This Row],[Quantity]],\nIF(ISNUMBER(FIND(\"Ice Maker\",Table_SummaryPI[[#This Row],[ProposedMeasureCategory]],1)),$BD$31*Table_SummaryPI[[#This Row],[Quantity]],\nIF(ISNUMBER(FIND(\"Spray Valve\",Table_SummaryPI[[#This Row],[ProposedMeasureCategory]],1)),$BH$31*Table_SummaryPI[[#This Row],[Quantity]],\n0)))),\"\")","v":""},{"$f":"IF(OR(Table_PI[[#This Row],[Hide: Electrification kWh]]=\"\",Table_PI[[#This Row],[Hide: Electrification kWh]]=0,ISTEXT(Table_PI[[#This Row],[Hide: Electrification kWh]])),\"\",Table_PI[[#This Row],[Hide: Electrification kWh]])","v":""},{"$f":"IF(OR(Table_PI[[#This Row],[Hide: Electrification GHG]]=\"\",Table_PI[[#This Row],[Hide: Electrification GHG]]=0,ISTEXT(Table_PI[[#This Row],[Hide: Electrification GHG]])),\"\",Table_PI[[#This Row],[Hide: Electrification GHG]])","v":""},{"$f":"IFERROR(IF(Table_SummaryPI[[#This Row],[kWhSavings]]=\"\",\"\",$BH$9*Table_SummaryPI[[#This Row],[kWhSavings]]),0)","v":""},{"$f":"IFERROR(IF(Table_SummaryPI[[#This Row],[kWhSavings]]=\"\",\"\",$BH$14*Table_SummaryPI[[#This Row],[kWhSavings]]),0)","v":""},{"$f":"IFERROR(IF(Table_SummaryPI[[#This Row],[kWhSavings]]=\"\",\"\",$BH$18*Table_SummaryPI[[#This Row],[kWhSavings]]),0)","v":""},{"$f":"IFERROR(IF(Table_SummaryPI[[#This Row],[kWhSavings]]=\"\",\"\",$BH$22*Table_SummaryPI[[#This Row],[kWhSavings]]),0)","v":""}]
[{"$f":"Table_PI[[#This Row],[Line No.]]","v":""},{"$f":"IF(Table_SummaryPI[[#This Row],[MeasureName]]<>\"\",NOT(ISTEXT(Table_PI[[#This Row],[Rebate]])),\"\")","v":""},{"$f":"IF(Table_SummaryPI[[#This Row],[MeassureCategory]]<>\"\",CONCATENATE(Table_SummaryPI[[#This Row],[MeassureCategory]],  \" - \", Table_SummaryPI[[#This Row],[ProposedMeasureCategory]],  \" - \", TEXT(Table_SummaryPI[[#This Row],[Size]],\"#,##0.00\"),\" \",Table_SummaryPI[[#This Row],[SizeUnit]]),\"\")","v":""},{"$f":"SUBSTITUTE(Table_PI[[#This Row],[Measure]],\"     \",\"\",1)","v":""},{"$f":"IF(Table_PI[[#This Row],[List 1]]<>\"\",Table_PI[[#This Row],[List 1]],\"\")","v":""},{"$f":"IF(Table_PI[[#This Row],[List 2]]<>\"\",Table_PI[[#This Row],[List 2]],\"\")","v":""},{"$f":"IF(Table_PI[[#This Row],[List 3]]<>\"\",Table_PI[[#This Row],[List 3]],\"\")","v":""},{"$f":"IF(Table_PI[[#This Row],[Manufacturer]]=\"\",\"\",Table_PI[[#This Row],[Manufacturer]])","v":""},{"$f":"IF(Table_PI[[#This Row],[Model Number]]=\"\",\"\",Table_PI[[#This Row],[Model Number]])","v":""},{"$f":"IF(Table_PI[[#This Row],[Serial Number(s)]]=\"\",\"\",Table_PI[[#This Row],[Serial Number(s)]])","v":""},null,{"$f":"IF(Table_PI[[#This Row],[Size]]=\"\",\"\",Table_PI[[#This Row],[Size]])","v":""},null,null,{"$f":"IF(Table_PI[[#This Row],[Input 1]]<>\"\",Table_PI[[#This Row],[Input 1]],\"\")","v":""},null,null,{"$f":"IF(Table_PI[[#This Row],[Input 2]]<>\"\",Table_PI[[#This Row],[Input 2]],\"\")","v":""},null,null,{"$f":"IF(Table_PI[[#This Row],[Input 3]]<>\"\",Table_PI[[#This Row],[Input 3]],\"\")","v":""},null,null,{"$f":"IF(Table_PI[[#This Row],[Input 4]]<>\"\",Table_PI[[#This Row],[Input 4]],\"\")","v":""},null,null,{"$f":"IF(Table_PI[[#This Row],[Input 4]]<>\"\",Table_PI[[#This Row],[Input 4]],\"\")","v":""},null,null,{"$f":"IF(Table_PI[[#This Row],[Input 4]]<>\"\",Table_PI[[#This Row],[Input 4]],\"\")","v":""},{"$f":"IF(Table_PI[[#This Row],[Quantity]]=\"\",\"\",Table_PI[[#This Row],[Quantity]])","v":""},{"$f":"IF(Table_PI[[#This Row],[Notes]]=\"\",\"\",Table_PI[[#This Row],[Notes]])","v":""},{"$f":"IF(OR(Table_PI[[#This Row],[Hide: Baseline kWh]]=\"\",Table_PI[[#This Row],[Hide: Baseline kWh]]=0,ISTEXT(Table_PI[[#This Row],[Hide: Baseline kWh]])),\"\",Table_PI[[#This Row],[Hide: Baseline kWh]])","v":""},{"$f":"IF(OR(Table_PI[[#This Row],[Hide: Baseline kW]]=\"\",Table_PI[[#This Row],[Hide: Baseline kW]]=0,ISTEXT(Table_PI[[#This Row],[Hide: Baseline kW]])),\"\",Table_PI[[#This Row],[Hide: Baseline kW]])","v":""},{"$f":"IF(OR(Table_PI[[#This Row],[Hide: Proposed kWh]]=\"\",Table_PI[[#This Row],[Hide: Proposed kWh]]=0,ISTEXT(Table_PI[[#This Row],[Hide: Proposed kWh]])),\"\",Table_PI[[#This Row],[Hide: Proposed kWh]])","v":""},{"$f":"IF(OR(Table_PI[[#This Row],[Hide: Proposed kW]]=\"\",Table_PI[[#This Row],[Hide: Proposed kW]]=0,ISTEXT(Table_PI[[#This Row],[Hide: Proposed kW]])),\"\",Table_PI[[#This Row],[Hide: Proposed kW]])","v":""},null,null,{"$f":"IF(OR(Table_PI[[#This Row],[Hide: Rebate]]=\"\",Table_PI[[#This Row],[Hide: Rebate]]=0,ISTEXT(Table_PI[[#This Row],[Hide: Rebate]])),\"\",Table_PI[[#This Row],[Hide: Rebate]])","v":""},null,{"$f":"IF(OR(Table_PI[[#This Row],[Hide: Incremental Cost]]=\"\",Table_PI[[#This Row],[Hide: Incremental Cost]]=0,ISTEXT(Table_PI[[#This Row],[Hide: Incremental Cost]])),\"\",Table_PI[[#This Row],[Hide: Incremental Cost]])","v":""},{"$f":"IFERROR(IF(Table_SummaryPI[[#This Row],[Incentive_Customer]]=\"\",\"\",ROUND(Table_SummaryPI[[#This Row],[Incentive_Customer]]/$AM$401*'Customer Information'!$BC$21,2)),0)","v":""},{"$f":"IF(OR(Table_PI[[#This Row],[Annual kWh]]=\"\",Table_PI[[#This Row],[Annual kWh]]=0,ISTEXT(Table_PI[[#This Row],[Annual kWh]])),\"\",Table_PI[[#This Row],[Annual kWh]])","v":""},{"$f":"IF(OR(Table_PI[[#This Row],[Peak kW]]=\"\",Table_PI[[#This Row],[Peak kW]]=0,ISTEXT(Table_PI[[#This Row],[Peak kW]])),\"\",Table_PI[[#This Row],[Peak kW]])","v":""},{"$f":"IF(Table_SummaryPI[[#This Row],[Line No.]]<>\"\",IF(AND(ISNUMBER(FIND(\"Chiller\",Table_SummaryPI[[#This Row],[P_MeasureOption1]],1)),Table_SummaryPI[[#This Row],[ProposedMeasureCategory]]=\"Air-Cooled (Water-Cooled Replacement)\"),$BD$29*Table_SummaryPI[[#This Row],[Size]]*Table_SummaryPI[[#This Row],[Quantity]]*Table_SummaryPI[[#This Row],[EFLHCooling]],\nIF(ISNUMBER(FIND(\"Dishwasher\",Table_SummaryPI[[#This Row],[ProposedMeasureCategory]],1)),$BH$29*Table_SummaryPI[[#This Row],[Quantity]],\nIF(ISNUMBER(FIND(\"Ice Maker\",Table_SummaryPI[[#This Row],[ProposedMeasureCategory]],1)),$BD$31*Table_SummaryPI[[#This Row],[Quantity]],\nIF(ISNUMBER(FIND(\"Spray Valve\",Table_SummaryPI[[#This Row],[ProposedMeasureCategory]],1)),$BH$31*Table_SummaryPI[[#This Row],[Quantity]],\n0)))),\"\")","v":""},{"$f":"IF(OR(Table_PI[[#This Row],[Hide: Electrification kWh]]=\"\",Table_PI[[#This Row],[Hide: Electrification kWh]]=0,ISTEXT(Table_PI[[#This Row],[Hide: Electrification kWh]])),\"\",Table_PI[[#This Row],[Hide: Electrification kWh]])","v":""},{"$f":"IF(OR(Table_PI[[#This Row],[Hide: Electrification GHG]]=\"\",Table_PI[[#This Row],[Hide: Electrification GHG]]=0,ISTEXT(Table_PI[[#This Row],[Hide: Electrification GHG]])),\"\",Table_PI[[#This Row],[Hide: Electrification GHG]])","v":""},{"$f":"IFERROR(IF(Table_SummaryPI[[#This Row],[kWhSavings]]=\"\",\"\",$BH$9*Table_SummaryPI[[#This Row],[kWhSavings]]),0)","v":""},{"$f":"IFERROR(IF(Table_SummaryPI[[#This Row],[kWhSavings]]=\"\",\"\",$BH$14*Table_SummaryPI[[#This Row],[kWhSavings]]),0)","v":""},{"$f":"IFERROR(IF(Table_SummaryPI[[#This Row],[kWhSavings]]=\"\",\"\",$BH$18*Table_SummaryPI[[#This Row],[kWhSavings]]),0)","v":""},{"$f":"IFERROR(IF(Table_SummaryPI[[#This Row],[kWhSavings]]=\"\",\"\",$BH$22*Table_SummaryPI[[#This Row],[kWhSavings]]),0)","v":""}]
[{"$f":"Table_PI[[#This Row],[Line No.]]","v":""},{"$f":"IF(Table_SummaryPI[[#This Row],[MeasureName]]<>\"\",NOT(ISTEXT(Table_PI[[#This Row],[Rebate]])),\"\")","v":""},{"$f":"IF(Table_SummaryPI[[#This Row],[MeassureCategory]]<>\"\",CONCATENATE(Table_SummaryPI[[#This Row],[MeassureCategory]],  \" - \", Table_SummaryPI[[#This Row],[ProposedMeasureCategory]],  \" - \", TEXT(Table_SummaryPI[[#This Row],[Size]],\"#,##0.00\"),\" \",Table_SummaryPI[[#This Row],[SizeUnit]]),\"\")","v":""},{"$f":"SUBSTITUTE(Table_PI[[#This Row],[Measure]],\"     \",\"\",1)","v":""},{"$f":"IF(Table_PI[[#This Row],[List 1]]<>\"\",Table_PI[[#This Row],[List 1]],\"\")","v":""},{"$f":"IF(Table_PI[[#This Row],[List 2]]<>\"\",Table_PI[[#This Row],[List 2]],\"\")","v":""},{"$f":"IF(Table_PI[[#This Row],[List 3]]<>\"\",Table_PI[[#This Row],[List 3]],\"\")","v":""},{"$f":"IF(Table_PI[[#This Row],[Manufacturer]]=\"\",\"\",Table_PI[[#This Row],[Manufacturer]])","v":""},{"$f":"IF(Table_PI[[#This Row],[Model Number]]=\"\",\"\",Table_PI[[#This Row],[Model Number]])","v":""},{"$f":"IF(Table_PI[[#This Row],[Serial Number(s)]]=\"\",\"\",Table_PI[[#This Row],[Serial Number(s)]])","v":""},null,{"$f":"IF(Table_PI[[#This Row],[Size]]=\"\",\"\",Table_PI[[#This Row],[Size]])","v":""},null,null,{"$f":"IF(Table_PI[[#This Row],[Input 1]]<>\"\",Table_PI[[#This Row],[Input 1]],\"\")","v":""},null,null,{"$f":"IF(Table_PI[[#This Row],[Input 2]]<>\"\",Table_PI[[#This Row],[Input 2]],\"\")","v":""},null,null,{"$f":"IF(Table_PI[[#This Row],[Input 3]]<>\"\",Table_PI[[#This Row],[Input 3]],\"\")","v":""},null,null,{"$f":"IF(Table_PI[[#This Row],[Input 4]]<>\"\",Table_PI[[#This Row],[Input 4]],\"\")","v":""},null,null,{"$f":"IF(Table_PI[[#This Row],[Input 4]]<>\"\",Table_PI[[#This Row],[Input 4]],\"\")","v":""},null,null,{"$f":"IF(Table_PI[[#This Row],[Input 4]]<>\"\",Table_PI[[#This Row],[Input 4]],\"\")","v":""},{"$f":"IF(Table_PI[[#This Row],[Quantity]]=\"\",\"\",Table_PI[[#This Row],[Quantity]])","v":""},{"$f":"IF(Table_PI[[#This Row],[Notes]]=\"\",\"\",Table_PI[[#This Row],[Notes]])","v":""},{"$f":"IF(OR(Table_PI[[#This Row],[Hide: Baseline kWh]]=\"\",Table_PI[[#This Row],[Hide: Baseline kWh]]=0,ISTEXT(Table_PI[[#This Row],[Hide: Baseline kWh]])),\"\",Table_PI[[#This Row],[Hide: Baseline kWh]])","v":""},{"$f":"IF(OR(Table_PI[[#This Row],[Hide: Baseline kW]]=\"\",Table_PI[[#This Row],[Hide: Baseline kW]]=0,ISTEXT(Table_PI[[#This Row],[Hide: Baseline kW]])),\"\",Table_PI[[#This Row],[Hide: Baseline kW]])","v":""},{"$f":"IF(OR(Table_PI[[#This Row],[Hide: Proposed kWh]]=\"\",Table_PI[[#This Row],[Hide: Proposed kWh]]=0,ISTEXT(Table_PI[[#This Row],[Hide: Proposed kWh]])),\"\",Table_PI[[#This Row],[Hide: Proposed kWh]])","v":""},{"$f":"IF(OR(Table_PI[[#This Row],[Hide: Proposed kW]]=\"\",Table_PI[[#This Row],[Hide: Proposed kW]]=0,ISTEXT(Table_PI[[#This Row],[Hide: Proposed kW]])),\"\",Table_PI[[#This Row],[Hide: Proposed kW]])","v":""},null,null,{"$f":"IF(OR(Table_PI[[#This Row],[Hide: Rebate]]=\"\",Table_PI[[#This Row],[Hide: Rebate]]=0,ISTEXT(Table_PI[[#This Row],[Hide: Rebate]])),\"\",Table_PI[[#This Row],[Hide: Rebate]])","v":""},null,{"$f":"IF(OR(Table_PI[[#This Row],[Hide: Incremental Cost]]=\"\",Table_PI[[#This Row],[Hide: Incremental Cost]]=0,ISTEXT(Table_PI[[#This Row],[Hide: Incremental Cost]])),\"\",Table_PI[[#This Row],[Hide: Incremental Cost]])","v":""},{"$f":"IFERROR(IF(Table_SummaryPI[[#This Row],[Incentive_Customer]]=\"\",\"\",ROUND(Table_SummaryPI[[#This Row],[Incentive_Customer]]/$AM$401*'Customer Information'!$BC$21,2)),0)","v":""},{"$f":"IF(OR(Table_PI[[#This Row],[Annual kWh]]=\"\",Table_PI[[#This Row],[Annual kWh]]=0,ISTEXT(Table_PI[[#This Row],[Annual kWh]])),\"\",Table_PI[[#This Row],[Annual kWh]])","v":""},{"$f":"IF(OR(Table_PI[[#This Row],[Peak kW]]=\"\",Table_PI[[#This Row],[Peak kW]]=0,ISTEXT(Table_PI[[#This Row],[Peak kW]])),\"\",Table_PI[[#This Row],[Peak kW]])","v":""},{"$f":"IF(Table_SummaryPI[[#This Row],[Line No.]]<>\"\",IF(AND(ISNUMBER(FIND(\"Chiller\",Table_SummaryPI[[#This Row],[P_MeasureOption1]],1)),Table_SummaryPI[[#This Row],[ProposedMeasureCategory]]=\"Air-Cooled (Water-Cooled Replacement)\"),$BD$29*Table_SummaryPI[[#This Row],[Size]]*Table_SummaryPI[[#This Row],[Quantity]]*Table_SummaryPI[[#This Row],[EFLHCooling]],\nIF(ISNUMBER(FIND(\"Dishwasher\",Table_SummaryPI[[#This Row],[ProposedMeasureCategory]],1)),$BH$29*Table_SummaryPI[[#This Row],[Quantity]],\nIF(ISNUMBER(FIND(\"Ice Maker\",Table_SummaryPI[[#This Row],[ProposedMeasureCategory]],1)),$BD$31*Table_SummaryPI[[#This Row],[Quantity]],\nIF(ISNUMBER(FIND(\"Spray Valve\",Table_SummaryPI[[#This Row],[ProposedMeasureCategory]],1)),$BH$31*Table_SummaryPI[[#This Row],[Quantity]],\n0)))),\"\")","v":""},{"$f":"IF(OR(Table_PI[[#This Row],[Hide: Electrification kWh]]=\"\",Table_PI[[#This Row],[Hide: Electrification kWh]]=0,ISTEXT(Table_PI[[#This Row],[Hide: Electrification kWh]])),\"\",Table_PI[[#This Row],[Hide: Electrification kWh]])","v":""},{"$f":"IF(OR(Table_PI[[#This Row],[Hide: Electrification GHG]]=\"\",Table_PI[[#This Row],[Hide: Electrification GHG]]=0,ISTEXT(Table_PI[[#This Row],[Hide: Electrification GHG]])),\"\",Table_PI[[#This Row],[Hide: Electrification GHG]])","v":""},{"$f":"IFERROR(IF(Table_SummaryPI[[#This Row],[kWhSavings]]=\"\",\"\",$BH$9*Table_SummaryPI[[#This Row],[kWhSavings]]),0)","v":""},{"$f":"IFERROR(IF(Table_SummaryPI[[#This Row],[kWhSavings]]=\"\",\"\",$BH$14*Table_SummaryPI[[#This Row],[kWhSavings]]),0)","v":""},{"$f":"IFERROR(IF(Table_SummaryPI[[#This Row],[kWhSavings]]=\"\",\"\",$BH$18*Table_SummaryPI[[#This Row],[kWhSavings]]),0)","v":""},{"$f":"IFERROR(IF(Table_SummaryPI[[#This Row],[kWhSavings]]=\"\",\"\",$BH$22*Table_SummaryPI[[#This Row],[kWhSavings]]),0)","v":""}]
[{"$f":"Table_PI[[#This Row],[Line No.]]","v":""},{"$f":"IF(Table_SummaryPI[[#This Row],[MeasureName]]<>\"\",NOT(ISTEXT(Table_PI[[#This Row],[Rebate]])),\"\")","v":""},{"$f":"IF(Table_SummaryPI[[#This Row],[MeassureCategory]]<>\"\",CONCATENATE(Table_SummaryPI[[#This Row],[MeassureCategory]],  \" - \", Table_SummaryPI[[#This Row],[ProposedMeasureCategory]],  \" - \", TEXT(Table_SummaryPI[[#This Row],[Size]],\"#,##0.00\"),\" \",Table_SummaryPI[[#This Row],[SizeUnit]]),\"\")","v":""},{"$f":"SUBSTITUTE(Table_PI[[#This Row],[Measure]],\"     \",\"\",1)","v":""},{"$f":"IF(Table_PI[[#This Row],[List 1]]<>\"\",Table_PI[[#This Row],[List 1]],\"\")","v":""},{"$f":"IF(Table_PI[[#This Row],[List 2]]<>\"\",Table_PI[[#This Row],[List 2]],\"\")","v":""},{"$f":"IF(Table_PI[[#This Row],[List 3]]<>\"\",Table_PI[[#This Row],[List 3]],\"\")","v":""},{"$f":"IF(Table_PI[[#This Row],[Manufacturer]]=\"\",\"\",Table_PI[[#This Row],[Manufacturer]])","v":""},{"$f":"IF(Table_PI[[#This Row],[Model Number]]=\"\",\"\",Table_PI[[#This Row],[Model Number]])","v":""},{"$f":"IF(Table_PI[[#This Row],[Serial Number(s)]]=\"\",\"\",Table_PI[[#This Row],[Serial Number(s)]])","v":""},null,{"$f":"IF(Table_PI[[#This Row],[Size]]=\"\",\"\",Table_PI[[#This Row],[Size]])","v":""},null,null,{"$f":"IF(Table_PI[[#This Row],[Input 1]]<>\"\",Table_PI[[#This Row],[Input 1]],\"\")","v":""},null,null,{"$f":"IF(Table_PI[[#This Row],[Input 2]]<>\"\",Table_PI[[#This Row],[Input 2]],\"\")","v":""},null,null,{"$f":"IF(Table_PI[[#This Row],[Input 3]]<>\"\",Table_PI[[#This Row],[Input 3]],\"\")","v":""},null,null,{"$f":"IF(Table_PI[[#This Row],[Input 4]]<>\"\",Table_PI[[#This Row],[Input 4]],\"\")","v":""},null,null,{"$f":"IF(Table_PI[[#This Row],[Input 4]]<>\"\",Table_PI[[#This Row],[Input 4]],\"\")","v":""},null,null,{"$f":"IF(Table_PI[[#This Row],[Input 4]]<>\"\",Table_PI[[#This Row],[Input 4]],\"\")","v":""},{"$f":"IF(Table_PI[[#This Row],[Quantity]]=\"\",\"\",Table_PI[[#This Row],[Quantity]])","v":""},{"$f":"IF(Table_PI[[#This Row],[Notes]]=\"\",\"\",Table_PI[[#This Row],[Notes]])","v":""},{"$f":"IF(OR(Table_PI[[#This Row],[Hide: Baseline kWh]]=\"\",Table_PI[[#This Row],[Hide: Baseline kWh]]=0,ISTEXT(Table_PI[[#This Row],[Hide: Baseline kWh]])),\"\",Table_PI[[#This Row],[Hide: Baseline kWh]])","v":""},{"$f":"IF(OR(Table_PI[[#This Row],[Hide: Baseline kW]]=\"\",Table_PI[[#This Row],[Hide: Baseline kW]]=0,ISTEXT(Table_PI[[#This Row],[Hide: Baseline kW]])),\"\",Table_PI[[#This Row],[Hide: Baseline kW]])","v":""},{"$f":"IF(OR(Table_PI[[#This Row],[Hide: Proposed kWh]]=\"\",Table_PI[[#This Row],[Hide: Proposed kWh]]=0,ISTEXT(Table_PI[[#This Row],[Hide: Proposed kWh]])),\"\",Table_PI[[#This Row],[Hide: Proposed kWh]])","v":""},{"$f":"IF(OR(Table_PI[[#This Row],[Hide: Proposed kW]]=\"\",Table_PI[[#This Row],[Hide: Proposed kW]]=0,ISTEXT(Table_PI[[#This Row],[Hide: Proposed kW]])),\"\",Table_PI[[#This Row],[Hide: Proposed kW]])","v":""},null,null,{"$f":"IF(OR(Table_PI[[#This Row],[Hide: Rebate]]=\"\",Table_PI[[#This Row],[Hide: Rebate]]=0,ISTEXT(Table_PI[[#This Row],[Hide: Rebate]])),\"\",Table_PI[[#This Row],[Hide: Rebate]])","v":""},null,{"$f":"IF(OR(Table_PI[[#This Row],[Hide: Incremental Cost]]=\"\",Table_PI[[#This Row],[Hide: Incremental Cost]]=0,ISTEXT(Table_PI[[#This Row],[Hide: Incremental Cost]])),\"\",Table_PI[[#This Row],[Hide: Incremental Cost]])","v":""},{"$f":"IFERROR(IF(Table_SummaryPI[[#This Row],[Incentive_Customer]]=\"\",\"\",ROUND(Table_SummaryPI[[#This Row],[Incentive_Customer]]/$AM$401*'Customer Information'!$BC$21,2)),0)","v":""},{"$f":"IF(OR(Table_PI[[#This Row],[Annual kWh]]=\"\",Table_PI[[#This Row],[Annual kWh]]=0,ISTEXT(Table_PI[[#This Row],[Annual kWh]])),\"\",Table_PI[[#This Row],[Annual kWh]])","v":""},{"$f":"IF(OR(Table_PI[[#This Row],[Peak kW]]=\"\",Table_PI[[#This Row],[Peak kW]]=0,ISTEXT(Table_PI[[#This Row],[Peak kW]])),\"\",Table_PI[[#This Row],[Peak kW]])","v":""},{"$f":"IF(Table_SummaryPI[[#This Row],[Line No.]]<>\"\",IF(AND(ISNUMBER(FIND(\"Chiller\",Table_SummaryPI[[#This Row],[P_MeasureOption1]],1)),Table_SummaryPI[[#This Row],[ProposedMeasureCategory]]=\"Air-Cooled (Water-Cooled Replacement)\"),$BD$29*Table_SummaryPI[[#This Row],[Size]]*Table_SummaryPI[[#This Row],[Quantity]]*Table_SummaryPI[[#This Row],[EFLHCooling]],\nIF(ISNUMBER(FIND(\"Dishwasher\",Table_SummaryPI[[#This Row],[ProposedMeasureCategory]],1)),$BH$29*Table_SummaryPI[[#This Row],[Quantity]],\nIF(ISNUMBER(FIND(\"Ice Maker\",Table_SummaryPI[[#This Row],[ProposedMeasureCategory]],1)),$BD$31*Table_SummaryPI[[#This Row],[Quantity]],\nIF(ISNUMBER(FIND(\"Spray Valve\",Table_SummaryPI[[#This Row],[ProposedMeasureCategory]],1)),$BH$31*Table_SummaryPI[[#This Row],[Quantity]],\n0)))),\"\")","v":""},{"$f":"IF(OR(Table_PI[[#This Row],[Hide: Electrification kWh]]=\"\",Table_PI[[#This Row],[Hide: Electrification kWh]]=0,ISTEXT(Table_PI[[#This Row],[Hide: Electrification kWh]])),\"\",Table_PI[[#This Row],[Hide: Electrification kWh]])","v":""},{"$f":"IF(OR(Table_PI[[#This Row],[Hide: Electrification GHG]]=\"\",Table_PI[[#This Row],[Hide: Electrification GHG]]=0,ISTEXT(Table_PI[[#This Row],[Hide: Electrification GHG]])),\"\",Table_PI[[#This Row],[Hide: Electrification GHG]])","v":""},{"$f":"IFERROR(IF(Table_SummaryPI[[#This Row],[kWhSavings]]=\"\",\"\",$BH$9*Table_SummaryPI[[#This Row],[kWhSavings]]),0)","v":""},{"$f":"IFERROR(IF(Table_SummaryPI[[#This Row],[kWhSavings]]=\"\",\"\",$BH$14*Table_SummaryPI[[#This Row],[kWhSavings]]),0)","v":""},{"$f":"IFERROR(IF(Table_SummaryPI[[#This Row],[kWhSavings]]=\"\",\"\",$BH$18*Table_SummaryPI[[#This Row],[kWhSavings]]),0)","v":""},{"$f":"IFERROR(IF(Table_SummaryPI[[#This Row],[kWhSavings]]=\"\",\"\",$BH$22*Table_SummaryPI[[#This Row],[kWhSavings]]),0)","v":""}]
[{"$f":"Table_PI[[#This Row],[Line No.]]","v":""},{"$f":"IF(Table_SummaryPI[[#This Row],[MeasureName]]<>\"\",NOT(ISTEXT(Table_PI[[#This Row],[Rebate]])),\"\")","v":""},{"$f":"IF(Table_SummaryPI[[#This Row],[MeassureCategory]]<>\"\",CONCATENATE(Table_SummaryPI[[#This Row],[MeassureCategory]],  \" - \", Table_SummaryPI[[#This Row],[ProposedMeasureCategory]],  \" - \", TEXT(Table_SummaryPI[[#This Row],[Size]],\"#,##0.00\"),\" \",Table_SummaryPI[[#This Row],[SizeUnit]]),\"\")","v":""},{"$f":"SUBSTITUTE(Table_PI[[#This Row],[Measure]],\"     \",\"\",1)","v":""},{"$f":"IF(Table_PI[[#This Row],[List 1]]<>\"\",Table_PI[[#This Row],[List 1]],\"\")","v":""},{"$f":"IF(Table_PI[[#This Row],[List 2]]<>\"\",Table_PI[[#This Row],[List 2]],\"\")","v":""},{"$f":"IF(Table_PI[[#This Row],[List 3]]<>\"\",Table_PI[[#This Row],[List 3]],\"\")","v":""},{"$f":"IF(Table_PI[[#This Row],[Manufacturer]]=\"\",\"\",Table_PI[[#This Row],[Manufacturer]])","v":""},{"$f":"IF(Table_PI[[#This Row],[Model Number]]=\"\",\"\",Table_PI[[#This Row],[Model Number]])","v":""},{"$f":"IF(Table_PI[[#This Row],[Serial Number(s)]]=\"\",\"\",Table_PI[[#This Row],[Serial Number(s)]])","v":""},null,{"$f":"IF(Table_PI[[#This Row],[Size]]=\"\",\"\",Table_PI[[#This Row],[Size]])","v":""},null,null,{"$f":"IF(Table_PI[[#This Row],[Input 1]]<>\"\",Table_PI[[#This Row],[Input 1]],\"\")","v":""},null,null,{"$f":"IF(Table_PI[[#This Row],[Input 2]]<>\"\",Table_PI[[#This Row],[Input 2]],\"\")","v":""},null,null,{"$f":"IF(Table_PI[[#This Row],[Input 3]]<>\"\",Table_PI[[#This Row],[Input 3]],\"\")","v":""},null,null,{"$f":"IF(Table_PI[[#This Row],[Input 4]]<>\"\",Table_PI[[#This Row],[Input 4]],\"\")","v":""},null,null,{"$f":"IF(Table_PI[[#This Row],[Input 4]]<>\"\",Table_PI[[#This Row],[Input 4]],\"\")","v":""},null,null,{"$f":"IF(Table_PI[[#This Row],[Input 4]]<>\"\",Table_PI[[#This Row],[Input 4]],\"\")","v":""},{"$f":"IF(Table_PI[[#This Row],[Quantity]]=\"\",\"\",Table_PI[[#This Row],[Quantity]])","v":""},{"$f":"IF(Table_PI[[#This Row],[Notes]]=\"\",\"\",Table_PI[[#This Row],[Notes]])","v":""},{"$f":"IF(OR(Table_PI[[#This Row],[Hide: Baseline kWh]]=\"\",Table_PI[[#This Row],[Hide: Baseline kWh]]=0,ISTEXT(Table_PI[[#This Row],[Hide: Baseline kWh]])),\"\",Table_PI[[#This Row],[Hide: Baseline kWh]])","v":""},{"$f":"IF(OR(Table_PI[[#This Row],[Hide: Baseline kW]]=\"\",Table_PI[[#This Row],[Hide: Baseline kW]]=0,ISTEXT(Table_PI[[#This Row],[Hide: Baseline kW]])),\"\",Table_PI[[#This Row],[Hide: Baseline kW]])","v":""},{"$f":"IF(OR(Table_PI[[#This Row],[Hide: Proposed kWh]]=\"\",Table_PI[[#This Row],[Hide: Proposed kWh]]=0,ISTEXT(Table_PI[[#This Row],[Hide: Proposed kWh]])),\"\",Table_PI[[#This Row],[Hide: Proposed kWh]])","v":""},{"$f":"IF(OR(Table_PI[[#This Row],[Hide: Proposed kW]]=\"\",Table_PI[[#This Row],[Hide: Proposed kW]]=0,ISTEXT(Table_PI[[#This Row],[Hide: Proposed kW]])),\"\",Table_PI[[#This Row],[Hide: Proposed kW]])","v":""},null,null,{"$f":"IF(OR(Table_PI[[#This Row],[Hide: Rebate]]=\"\",Table_PI[[#This Row],[Hide: Rebate]]=0,ISTEXT(Table_PI[[#This Row],[Hide: Rebate]])),\"\",Table_PI[[#This Row],[Hide: Rebate]])","v":""},null,{"$f":"IF(OR(Table_PI[[#This Row],[Hide: Incremental Cost]]=\"\",Table_PI[[#This Row],[Hide: Incremental Cost]]=0,ISTEXT(Table_PI[[#This Row],[Hide: Incremental Cost]])),\"\",Table_PI[[#This Row],[Hide: Incremental Cost]])","v":""},{"$f":"IFERROR(IF(Table_SummaryPI[[#This Row],[Incentive_Customer]]=\"\",\"\",ROUND(Table_SummaryPI[[#This Row],[Incentive_Customer]]/$AM$401*'Customer Information'!$BC$21,2)),0)","v":""},{"$f":"IF(OR(Table_PI[[#This Row],[Annual kWh]]=\"\",Table_PI[[#This Row],[Annual kWh]]=0,ISTEXT(Table_PI[[#This Row],[Annual kWh]])),\"\",Table_PI[[#This Row],[Annual kWh]])","v":""},{"$f":"IF(OR(Table_PI[[#This Row],[Peak kW]]=\"\",Table_PI[[#This Row],[Peak kW]]=0,ISTEXT(Table_PI[[#This Row],[Peak kW]])),\"\",Table_PI[[#This Row],[Peak kW]])","v":""},{"$f":"IF(Table_SummaryPI[[#This Row],[Line No.]]<>\"\",IF(AND(ISNUMBER(FIND(\"Chiller\",Table_SummaryPI[[#This Row],[P_MeasureOption1]],1)),Table_SummaryPI[[#This Row],[ProposedMeasureCategory]]=\"Air-Cooled (Water-Cooled Replacement)\"),$BD$29*Table_SummaryPI[[#This Row],[Size]]*Table_SummaryPI[[#This Row],[Quantity]]*Table_SummaryPI[[#This Row],[EFLHCooling]],\nIF(ISNUMBER(FIND(\"Dishwasher\",Table_SummaryPI[[#This Row],[ProposedMeasureCategory]],1)),$BH$29*Table_SummaryPI[[#This Row],[Quantity]],\nIF(ISNUMBER(FIND(\"Ice Maker\",Table_SummaryPI[[#This Row],[ProposedMeasureCategory]],1)),$BD$31*Table_SummaryPI[[#This Row],[Quantity]],\nIF(ISNUMBER(FIND(\"Spray Valve\",Table_SummaryPI[[#This Row],[ProposedMeasureCategory]],1)),$BH$31*Table_SummaryPI[[#This Row],[Quantity]],\n0)))),\"\")","v":""},{"$f":"IF(OR(Table_PI[[#This Row],[Hide: Electrification kWh]]=\"\",Table_PI[[#This Row],[Hide: Electrification kWh]]=0,ISTEXT(Table_PI[[#This Row],[Hide: Electrification kWh]])),\"\",Table_PI[[#This Row],[Hide: Electrification kWh]])","v":""},{"$f":"IF(OR(Table_PI[[#This Row],[Hide: Electrification GHG]]=\"\",Table_PI[[#This Row],[Hide: Electrification GHG]]=0,ISTEXT(Table_PI[[#This Row],[Hide: Electrification GHG]])),\"\",Table_PI[[#This Row],[Hide: Electrification GHG]])","v":""},{"$f":"IFERROR(IF(Table_SummaryPI[[#This Row],[kWhSavings]]=\"\",\"\",$BH$9*Table_SummaryPI[[#This Row],[kWhSavings]]),0)","v":""},{"$f":"IFERROR(IF(Table_SummaryPI[[#This Row],[kWhSavings]]=\"\",\"\",$BH$14*Table_SummaryPI[[#This Row],[kWhSavings]]),0)","v":""},{"$f":"IFERROR(IF(Table_SummaryPI[[#This Row],[kWhSavings]]=\"\",\"\",$BH$18*Table_SummaryPI[[#This Row],[kWhSavings]]),0)","v":""},{"$f":"IFERROR(IF(Table_SummaryPI[[#This Row],[kWhSavings]]=\"\",\"\",$BH$22*Table_SummaryPI[[#This Row],[kWhSavings]]),0)","v":""}]
[{"$f":"Table_PI[[#This Row],[Line No.]]","v":""},{"$f":"IF(Table_SummaryPI[[#This Row],[MeasureName]]<>\"\",NOT(ISTEXT(Table_PI[[#This Row],[Rebate]])),\"\")","v":""},{"$f":"IF(Table_SummaryPI[[#This Row],[MeassureCategory]]<>\"\",CONCATENATE(Table_SummaryPI[[#This Row],[MeassureCategory]],  \" - \", Table_SummaryPI[[#This Row],[ProposedMeasureCategory]],  \" - \", TEXT(Table_SummaryPI[[#This Row],[Size]],\"#,##0.00\"),\" \",Table_SummaryPI[[#This Row],[SizeUnit]]),\"\")","v":""},{"$f":"SUBSTITUTE(Table_PI[[#This Row],[Measure]],\"     \",\"\",1)","v":""},{"$f":"IF(Table_PI[[#This Row],[List 1]]<>\"\",Table_PI[[#This Row],[List 1]],\"\")","v":""},{"$f":"IF(Table_PI[[#This Row],[List 2]]<>\"\",Table_PI[[#This Row],[List 2]],\"\")","v":""},{"$f":"IF(Table_PI[[#This Row],[List 3]]<>\"\",Table_PI[[#This Row],[List 3]],\"\")","v":""},{"$f":"IF(Table_PI[[#This Row],[Manufacturer]]=\"\",\"\",Table_PI[[#This Row],[Manufacturer]])","v":""},{"$f":"IF(Table_PI[[#This Row],[Model Number]]=\"\",\"\",Table_PI[[#This Row],[Model Number]])","v":""},{"$f":"IF(Table_PI[[#This Row],[Serial Number(s)]]=\"\",\"\",Table_PI[[#This Row],[Serial Number(s)]])","v":""},null,{"$f":"IF(Table_PI[[#This Row],[Size]]=\"\",\"\",Table_PI[[#This Row],[Size]])","v":""},null,null,{"$f":"IF(Table_PI[[#This Row],[Input 1]]<>\"\",Table_PI[[#This Row],[Input 1]],\"\")","v":""},null,null,{"$f":"IF(Table_PI[[#This Row],[Input 2]]<>\"\",Table_PI[[#This Row],[Input 2]],\"\")","v":""},null,null,{"$f":"IF(Table_PI[[#This Row],[Input 3]]<>\"\",Table_PI[[#This Row],[Input 3]],\"\")","v":""},null,null,{"$f":"IF(Table_PI[[#This Row],[Input 4]]<>\"\",Table_PI[[#This Row],[Input 4]],\"\")","v":""},null,null,{"$f":"IF(Table_PI[[#This Row],[Input 4]]<>\"\",Table_PI[[#This Row],[Input 4]],\"\")","v":""},null,null,{"$f":"IF(Table_PI[[#This Row],[Input 4]]<>\"\",Table_PI[[#This Row],[Input 4]],\"\")","v":""},{"$f":"IF(Table_PI[[#This Row],[Quantity]]=\"\",\"\",Table_PI[[#This Row],[Quantity]])","v":""},{"$f":"IF(Table_PI[[#This Row],[Notes]]=\"\",\"\",Table_PI[[#This Row],[Notes]])","v":""},{"$f":"IF(OR(Table_PI[[#This Row],[Hide: Baseline kWh]]=\"\",Table_PI[[#This Row],[Hide: Baseline kWh]]=0,ISTEXT(Table_PI[[#This Row],[Hide: Baseline kWh]])),\"\",Table_PI[[#This Row],[Hide: Baseline kWh]])","v":""},{"$f":"IF(OR(Table_PI[[#This Row],[Hide: Baseline kW]]=\"\",Table_PI[[#This Row],[Hide: Baseline kW]]=0,ISTEXT(Table_PI[[#This Row],[Hide: Baseline kW]])),\"\",Table_PI[[#This Row],[Hide: Baseline kW]])","v":""},{"$f":"IF(OR(Table_PI[[#This Row],[Hide: Proposed kWh]]=\"\",Table_PI[[#This Row],[Hide: Proposed kWh]]=0,ISTEXT(Table_PI[[#This Row],[Hide: Proposed kWh]])),\"\",Table_PI[[#This Row],[Hide: Proposed kWh]])","v":""},{"$f":"IF(OR(Table_PI[[#This Row],[Hide: Proposed kW]]=\"\",Table_PI[[#This Row],[Hide: Proposed kW]]=0,ISTEXT(Table_PI[[#This Row],[Hide: Proposed kW]])),\"\",Table_PI[[#This Row],[Hide: Proposed kW]])","v":""},null,null,{"$f":"IF(OR(Table_PI[[#This Row],[Hide: Rebate]]=\"\",Table_PI[[#This Row],[Hide: Rebate]]=0,ISTEXT(Table_PI[[#This Row],[Hide: Rebate]])),\"\",Table_PI[[#This Row],[Hide: Rebate]])","v":""},null,{"$f":"IF(OR(Table_PI[[#This Row],[Hide: Incremental Cost]]=\"\",Table_PI[[#This Row],[Hide: Incremental Cost]]=0,ISTEXT(Table_PI[[#This Row],[Hide: Incremental Cost]])),\"\",Table_PI[[#This Row],[Hide: Incremental Cost]])","v":""},{"$f":"IFERROR(IF(Table_SummaryPI[[#This Row],[Incentive_Customer]]=\"\",\"\",ROUND(Table_SummaryPI[[#This Row],[Incentive_Customer]]/$AM$401*'Customer Information'!$BC$21,2)),0)","v":""},{"$f":"IF(OR(Table_PI[[#This Row],[Annual kWh]]=\"\",Table_PI[[#This Row],[Annual kWh]]=0,ISTEXT(Table_PI[[#This Row],[Annual kWh]])),\"\",Table_PI[[#This Row],[Annual kWh]])","v":""},{"$f":"IF(OR(Table_PI[[#This Row],[Peak kW]]=\"\",Table_PI[[#This Row],[Peak kW]]=0,ISTEXT(Table_PI[[#This Row],[Peak kW]])),\"\",Table_PI[[#This Row],[Peak kW]])","v":""},{"$f":"IF(Table_SummaryPI[[#This Row],[Line No.]]<>\"\",IF(AND(ISNUMBER(FIND(\"Chiller\",Table_SummaryPI[[#This Row],[P_MeasureOption1]],1)),Table_SummaryPI[[#This Row],[ProposedMeasureCategory]]=\"Air-Cooled (Water-Cooled Replacement)\"),$BD$29*Table_SummaryPI[[#This Row],[Size]]*Table_SummaryPI[[#This Row],[Quantity]]*Table_SummaryPI[[#This Row],[EFLHCooling]],\nIF(ISNUMBER(FIND(\"Dishwasher\",Table_SummaryPI[[#This Row],[ProposedMeasureCategory]],1)),$BH$29*Table_SummaryPI[[#This Row],[Quantity]],\nIF(ISNUMBER(FIND(\"Ice Maker\",Table_SummaryPI[[#This Row],[ProposedMeasureCategory]],1)),$BD$31*Table_SummaryPI[[#This Row],[Quantity]],\nIF(ISNUMBER(FIND(\"Spray Valve\",Table_SummaryPI[[#This Row],[ProposedMeasureCategory]],1)),$BH$31*Table_SummaryPI[[#This Row],[Quantity]],\n0)))),\"\")","v":""},{"$f":"IF(OR(Table_PI[[#This Row],[Hide: Electrification kWh]]=\"\",Table_PI[[#This Row],[Hide: Electrification kWh]]=0,ISTEXT(Table_PI[[#This Row],[Hide: Electrification kWh]])),\"\",Table_PI[[#This Row],[Hide: Electrification kWh]])","v":""},{"$f":"IF(OR(Table_PI[[#This Row],[Hide: Electrification GHG]]=\"\",Table_PI[[#This Row],[Hide: Electrification GHG]]=0,ISTEXT(Table_PI[[#This Row],[Hide: Electrification GHG]])),\"\",Table_PI[[#This Row],[Hide: Electrification GHG]])","v":""},{"$f":"IFERROR(IF(Table_SummaryPI[[#This Row],[kWhSavings]]=\"\",\"\",$BH$9*Table_SummaryPI[[#This Row],[kWhSavings]]),0)","v":""},{"$f":"IFERROR(IF(Table_SummaryPI[[#This Row],[kWhSavings]]=\"\",\"\",$BH$14*Table_SummaryPI[[#This Row],[kWhSavings]]),0)","v":""},{"$f":"IFERROR(IF(Table_SummaryPI[[#This Row],[kWhSavings]]=\"\",\"\",$BH$18*Table_SummaryPI[[#This Row],[kWhSavings]]),0)","v":""},{"$f":"IFERROR(IF(Table_SummaryPI[[#This Row],[kWhSavings]]=\"\",\"\",$BH$22*Table_SummaryPI[[#This Row],[kWhSavings]]),0)","v":""}]
[{"$f":"Table_PI[[#This Row],[Line No.]]","v":""},{"$f":"IF(Table_SummaryPI[[#This Row],[MeasureName]]<>\"\",NOT(ISTEXT(Table_PI[[#This Row],[Rebate]])),\"\")","v":""},{"$f":"IF(Table_SummaryPI[[#This Row],[MeassureCategory]]<>\"\",CONCATENATE(Table_SummaryPI[[#This Row],[MeassureCategory]],  \" - \", Table_SummaryPI[[#This Row],[ProposedMeasureCategory]],  \" - \", TEXT(Table_SummaryPI[[#This Row],[Size]],\"#,##0.00\"),\" \",Table_SummaryPI[[#This Row],[SizeUnit]]),\"\")","v":""},{"$f":"SUBSTITUTE(Table_PI[[#This Row],[Measure]],\"     \",\"\",1)","v":""},{"$f":"IF(Table_PI[[#This Row],[List 1]]<>\"\",Table_PI[[#This Row],[List 1]],\"\")","v":""},{"$f":"IF(Table_PI[[#This Row],[List 2]]<>\"\",Table_PI[[#This Row],[List 2]],\"\")","v":""},{"$f":"IF(Table_PI[[#This Row],[List 3]]<>\"\",Table_PI[[#This Row],[List 3]],\"\")","v":""},{"$f":"IF(Table_PI[[#This Row],[Manufacturer]]=\"\",\"\",Table_PI[[#This Row],[Manufacturer]])","v":""},{"$f":"IF(Table_PI[[#This Row],[Model Number]]=\"\",\"\",Table_PI[[#This Row],[Model Number]])","v":""},{"$f":"IF(Table_PI[[#This Row],[Serial Number(s)]]=\"\",\"\",Table_PI[[#This Row],[Serial Number(s)]])","v":""},null,{"$f":"IF(Table_PI[[#This Row],[Size]]=\"\",\"\",Table_PI[[#This Row],[Size]])","v":""},null,null,{"$f":"IF(Table_PI[[#This Row],[Input 1]]<>\"\",Table_PI[[#This Row],[Input 1]],\"\")","v":""},null,null,{"$f":"IF(Table_PI[[#This Row],[Input 2]]<>\"\",Table_PI[[#This Row],[Input 2]],\"\")","v":""},null,null,{"$f":"IF(Table_PI[[#This Row],[Input 3]]<>\"\",Table_PI[[#This Row],[Input 3]],\"\")","v":""},null,null,{"$f":"IF(Table_PI[[#This Row],[Input 4]]<>\"\",Table_PI[[#This Row],[Input 4]],\"\")","v":""},null,null,{"$f":"IF(Table_PI[[#This Row],[Input 4]]<>\"\",Table_PI[[#This Row],[Input 4]],\"\")","v":""},null,null,{"$f":"IF(Table_PI[[#This Row],[Input 4]]<>\"\",Table_PI[[#This Row],[Input 4]],\"\")","v":""},{"$f":"IF(Table_PI[[#This Row],[Quantity]]=\"\",\"\",Table_PI[[#This Row],[Quantity]])","v":""},{"$f":"IF(Table_PI[[#This Row],[Notes]]=\"\",\"\",Table_PI[[#This Row],[Notes]])","v":""},{"$f":"IF(OR(Table_PI[[#This Row],[Hide: Baseline kWh]]=\"\",Table_PI[[#This Row],[Hide: Baseline kWh]]=0,ISTEXT(Table_PI[[#This Row],[Hide: Baseline kWh]])),\"\",Table_PI[[#This Row],[Hide: Baseline kWh]])","v":""},{"$f":"IF(OR(Table_PI[[#This Row],[Hide: Baseline kW]]=\"\",Table_PI[[#This Row],[Hide: Baseline kW]]=0,ISTEXT(Table_PI[[#This Row],[Hide: Baseline kW]])),\"\",Table_PI[[#This Row],[Hide: Baseline kW]])","v":""},{"$f":"IF(OR(Table_PI[[#This Row],[Hide: Proposed kWh]]=\"\",Table_PI[[#This Row],[Hide: Proposed kWh]]=0,ISTEXT(Table_PI[[#This Row],[Hide: Proposed kWh]])),\"\",Table_PI[[#This Row],[Hide: Proposed kWh]])","v":""},{"$f":"IF(OR(Table_PI[[#This Row],[Hide: Proposed kW]]=\"\",Table_PI[[#This Row],[Hide: Proposed kW]]=0,ISTEXT(Table_PI[[#This Row],[Hide: Proposed kW]])),\"\",Table_PI[[#This Row],[Hide: Proposed kW]])","v":""},null,null,{"$f":"IF(OR(Table_PI[[#This Row],[Hide: Rebate]]=\"\",Table_PI[[#This Row],[Hide: Rebate]]=0,ISTEXT(Table_PI[[#This Row],[Hide: Rebate]])),\"\",Table_PI[[#This Row],[Hide: Rebate]])","v":""},null,{"$f":"IF(OR(Table_PI[[#This Row],[Hide: Incremental Cost]]=\"\",Table_PI[[#This Row],[Hide: Incremental Cost]]=0,ISTEXT(Table_PI[[#This Row],[Hide: Incremental Cost]])),\"\",Table_PI[[#This Row],[Hide: Incremental Cost]])","v":""},{"$f":"IFERROR(IF(Table_SummaryPI[[#This Row],[Incentive_Customer]]=\"\",\"\",ROUND(Table_SummaryPI[[#This Row],[Incentive_Customer]]/$AM$401*'Customer Information'!$BC$21,2)),0)","v":""},{"$f":"IF(OR(Table_PI[[#This Row],[Annual kWh]]=\"\",Table_PI[[#This Row],[Annual kWh]]=0,ISTEXT(Table_PI[[#This Row],[Annual kWh]])),\"\",Table_PI[[#This Row],[Annual kWh]])","v":""},{"$f":"IF(OR(Table_PI[[#This Row],[Peak kW]]=\"\",Table_PI[[#This Row],[Peak kW]]=0,ISTEXT(Table_PI[[#This Row],[Peak kW]])),\"\",Table_PI[[#This Row],[Peak kW]])","v":""},{"$f":"IF(Table_SummaryPI[[#This Row],[Line No.]]<>\"\",IF(AND(ISNUMBER(FIND(\"Chiller\",Table_SummaryPI[[#This Row],[P_MeasureOption1]],1)),Table_SummaryPI[[#This Row],[ProposedMeasureCategory]]=\"Air-Cooled (Water-Cooled Replacement)\"),$BD$29*Table_SummaryPI[[#This Row],[Size]]*Table_SummaryPI[[#This Row],[Quantity]]*Table_SummaryPI[[#This Row],[EFLHCooling]],\nIF(ISNUMBER(FIND(\"Dishwasher\",Table_SummaryPI[[#This Row],[ProposedMeasureCategory]],1)),$BH$29*Table_SummaryPI[[#This Row],[Quantity]],\nIF(ISNUMBER(FIND(\"Ice Maker\",Table_SummaryPI[[#This Row],[ProposedMeasureCategory]],1)),$BD$31*Table_SummaryPI[[#This Row],[Quantity]],\nIF(ISNUMBER(FIND(\"Spray Valve\",Table_SummaryPI[[#This Row],[ProposedMeasureCategory]],1)),$BH$31*Table_SummaryPI[[#This Row],[Quantity]],\n0)))),\"\")","v":""},{"$f":"IF(OR(Table_PI[[#This Row],[Hide: Electrification kWh]]=\"\",Table_PI[[#This Row],[Hide: Electrification kWh]]=0,ISTEXT(Table_PI[[#This Row],[Hide: Electrification kWh]])),\"\",Table_PI[[#This Row],[Hide: Electrification kWh]])","v":""},{"$f":"IF(OR(Table_PI[[#This Row],[Hide: Electrification GHG]]=\"\",Table_PI[[#This Row],[Hide: Electrification GHG]]=0,ISTEXT(Table_PI[[#This Row],[Hide: Electrification GHG]])),\"\",Table_PI[[#This Row],[Hide: Electrification GHG]])","v":""},{"$f":"IFERROR(IF(Table_SummaryPI[[#This Row],[kWhSavings]]=\"\",\"\",$BH$9*Table_SummaryPI[[#This Row],[kWhSavings]]),0)","v":""},{"$f":"IFERROR(IF(Table_SummaryPI[[#This Row],[kWhSavings]]=\"\",\"\",$BH$14*Table_SummaryPI[[#This Row],[kWhSavings]]),0)","v":""},{"$f":"IFERROR(IF(Table_SummaryPI[[#This Row],[kWhSavings]]=\"\",\"\",$BH$18*Table_SummaryPI[[#This Row],[kWhSavings]]),0)","v":""},{"$f":"IFERROR(IF(Table_SummaryPI[[#This Row],[kWhSavings]]=\"\",\"\",$BH$22*Table_SummaryPI[[#This Row],[kWhSavings]]),0)","v":""}]
[{"$f":"Table_PI[[#This Row],[Line No.]]","v":""},{"$f":"IF(Table_SummaryPI[[#This Row],[MeasureName]]<>\"\",NOT(ISTEXT(Table_PI[[#This Row],[Rebate]])),\"\")","v":""},{"$f":"IF(Table_SummaryPI[[#This Row],[MeassureCategory]]<>\"\",CONCATENATE(Table_SummaryPI[[#This Row],[MeassureCategory]],  \" - \", Table_SummaryPI[[#This Row],[ProposedMeasureCategory]],  \" - \", TEXT(Table_SummaryPI[[#This Row],[Size]],\"#,##0.00\"),\" \",Table_SummaryPI[[#This Row],[SizeUnit]]),\"\")","v":""},{"$f":"SUBSTITUTE(Table_PI[[#This Row],[Measure]],\"     \",\"\",1)","v":""},{"$f":"IF(Table_PI[[#This Row],[List 1]]<>\"\",Table_PI[[#This Row],[List 1]],\"\")","v":""},{"$f":"IF(Table_PI[[#This Row],[List 2]]<>\"\",Table_PI[[#This Row],[List 2]],\"\")","v":""},{"$f":"IF(Table_PI[[#This Row],[List 3]]<>\"\",Table_PI[[#This Row],[List 3]],\"\")","v":""},{"$f":"IF(Table_PI[[#This Row],[Manufacturer]]=\"\",\"\",Table_PI[[#This Row],[Manufacturer]])","v":""},{"$f":"IF(Table_PI[[#This Row],[Model Number]]=\"\",\"\",Table_PI[[#This Row],[Model Number]])","v":""},{"$f":"IF(Table_PI[[#This Row],[Serial Number(s)]]=\"\",\"\",Table_PI[[#This Row],[Serial Number(s)]])","v":""},null,{"$f":"IF(Table_PI[[#This Row],[Size]]=\"\",\"\",Table_PI[[#This Row],[Size]])","v":""},null,null,{"$f":"IF(Table_PI[[#This Row],[Input 1]]<>\"\",Table_PI[[#This Row],[Input 1]],\"\")","v":""},null,null,{"$f":"IF(Table_PI[[#This Row],[Input 2]]<>\"\",Table_PI[[#This Row],[Input 2]],\"\")","v":""},null,null,{"$f":"IF(Table_PI[[#This Row],[Input 3]]<>\"\",Table_PI[[#This Row],[Input 3]],\"\")","v":""},null,null,{"$f":"IF(Table_PI[[#This Row],[Input 4]]<>\"\",Table_PI[[#This Row],[Input 4]],\"\")","v":""},null,null,{"$f":"IF(Table_PI[[#This Row],[Input 4]]<>\"\",Table_PI[[#This Row],[Input 4]],\"\")","v":""},null,null,{"$f":"IF(Table_PI[[#This Row],[Input 4]]<>\"\",Table_PI[[#This Row],[Input 4]],\"\")","v":""},{"$f":"IF(Table_PI[[#This Row],[Quantity]]=\"\",\"\",Table_PI[[#This Row],[Quantity]])","v":""},{"$f":"IF(Table_PI[[#This Row],[Notes]]=\"\",\"\",Table_PI[[#This Row],[Notes]])","v":""},{"$f":"IF(OR(Table_PI[[#This Row],[Hide: Baseline kWh]]=\"\",Table_PI[[#This Row],[Hide: Baseline kWh]]=0,ISTEXT(Table_PI[[#This Row],[Hide: Baseline kWh]])),\"\",Table_PI[[#This Row],[Hide: Baseline kWh]])","v":""},{"$f":"IF(OR(Table_PI[[#This Row],[Hide: Baseline kW]]=\"\",Table_PI[[#This Row],[Hide: Baseline kW]]=0,ISTEXT(Table_PI[[#This Row],[Hide: Baseline kW]])),\"\",Table_PI[[#This Row],[Hide: Baseline kW]])","v":""},{"$f":"IF(OR(Table_PI[[#This Row],[Hide: Proposed kWh]]=\"\",Table_PI[[#This Row],[Hide: Proposed kWh]]=0,ISTEXT(Table_PI[[#This Row],[Hide: Proposed kWh]])),\"\",Table_PI[[#This Row],[Hide: Proposed kWh]])","v":""},{"$f":"IF(OR(Table_PI[[#This Row],[Hide: Proposed kW]]=\"\",Table_PI[[#This Row],[Hide: Proposed kW]]=0,ISTEXT(Table_PI[[#This Row],[Hide: Proposed kW]])),\"\",Table_PI[[#This Row],[Hide: Proposed kW]])","v":""},null,null,{"$f":"IF(OR(Table_PI[[#This Row],[Hide: Rebate]]=\"\",Table_PI[[#This Row],[Hide: Rebate]]=0,ISTEXT(Table_PI[[#This Row],[Hide: Rebate]])),\"\",Table_PI[[#This Row],[Hide: Rebate]])","v":""},null,{"$f":"IF(OR(Table_PI[[#This Row],[Hide: Incremental Cost]]=\"\",Table_PI[[#This Row],[Hide: Incremental Cost]]=0,ISTEXT(Table_PI[[#This Row],[Hide: Incremental Cost]])),\"\",Table_PI[[#This Row],[Hide: Incremental Cost]])","v":""},{"$f":"IFERROR(IF(Table_SummaryPI[[#This Row],[Incentive_Customer]]=\"\",\"\",ROUND(Table_SummaryPI[[#This Row],[Incentive_Customer]]/$AM$401*'Customer Information'!$BC$21,2)),0)","v":""},{"$f":"IF(OR(Table_PI[[#This Row],[Annual kWh]]=\"\",Table_PI[[#This Row],[Annual kWh]]=0,ISTEXT(Table_PI[[#This Row],[Annual kWh]])),\"\",Table_PI[[#This Row],[Annual kWh]])","v":""},{"$f":"IF(OR(Table_PI[[#This Row],[Peak kW]]=\"\",Table_PI[[#This Row],[Peak kW]]=0,ISTEXT(Table_PI[[#This Row],[Peak kW]])),\"\",Table_PI[[#This Row],[Peak kW]])","v":""},{"$f":"IF(Table_SummaryPI[[#This Row],[Line No.]]<>\"\",IF(AND(ISNUMBER(FIND(\"Chiller\",Table_SummaryPI[[#This Row],[P_MeasureOption1]],1)),Table_SummaryPI[[#This Row],[ProposedMeasureCategory]]=\"Air-Cooled (Water-Cooled Replacement)\"),$BD$29*Table_SummaryPI[[#This Row],[Size]]*Table_SummaryPI[[#This Row],[Quantity]]*Table_SummaryPI[[#This Row],[EFLHCooling]],\nIF(ISNUMBER(FIND(\"Dishwasher\",Table_SummaryPI[[#This Row],[ProposedMeasureCategory]],1)),$BH$29*Table_SummaryPI[[#This Row],[Quantity]],\nIF(ISNUMBER(FIND(\"Ice Maker\",Table_SummaryPI[[#This Row],[ProposedMeasureCategory]],1)),$BD$31*Table_SummaryPI[[#This Row],[Quantity]],\nIF(ISNUMBER(FIND(\"Spray Valve\",Table_SummaryPI[[#This Row],[ProposedMeasureCategory]],1)),$BH$31*Table_SummaryPI[[#This Row],[Quantity]],\n0)))),\"\")","v":""},{"$f":"IF(OR(Table_PI[[#This Row],[Hide: Electrification kWh]]=\"\",Table_PI[[#This Row],[Hide: Electrification kWh]]=0,ISTEXT(Table_PI[[#This Row],[Hide: Electrification kWh]])),\"\",Table_PI[[#This Row],[Hide: Electrification kWh]])","v":""},{"$f":"IF(OR(Table_PI[[#This Row],[Hide: Electrification GHG]]=\"\",Table_PI[[#This Row],[Hide: Electrification GHG]]=0,ISTEXT(Table_PI[[#This Row],[Hide: Electrification GHG]])),\"\",Table_PI[[#This Row],[Hide: Electrification GHG]])","v":""},{"$f":"IFERROR(IF(Table_SummaryPI[[#This Row],[kWhSavings]]=\"\",\"\",$BH$9*Table_SummaryPI[[#This Row],[kWhSavings]]),0)","v":""},{"$f":"IFERROR(IF(Table_SummaryPI[[#This Row],[kWhSavings]]=\"\",\"\",$BH$14*Table_SummaryPI[[#This Row],[kWhSavings]]),0)","v":""},{"$f":"IFERROR(IF(Table_SummaryPI[[#This Row],[kWhSavings]]=\"\",\"\",$BH$18*Table_SummaryPI[[#This Row],[kWhSavings]]),0)","v":""},{"$f":"IFERROR(IF(Table_SummaryPI[[#This Row],[kWhSavings]]=\"\",\"\",$BH$22*Table_SummaryPI[[#This Row],[kWhSavings]]),0)","v":""}]
[{"$f":"Table_PI[[#This Row],[Line No.]]","v":""},{"$f":"IF(Table_SummaryPI[[#This Row],[MeasureName]]<>\"\",NOT(ISTEXT(Table_PI[[#This Row],[Rebate]])),\"\")","v":""},{"$f":"IF(Table_SummaryPI[[#This Row],[MeassureCategory]]<>\"\",CONCATENATE(Table_SummaryPI[[#This Row],[MeassureCategory]],  \" - \", Table_SummaryPI[[#This Row],[ProposedMeasureCategory]],  \" - \", TEXT(Table_SummaryPI[[#This Row],[Size]],\"#,##0.00\"),\" \",Table_SummaryPI[[#This Row],[SizeUnit]]),\"\")","v":""},{"$f":"SUBSTITUTE(Table_PI[[#This Row],[Measure]],\"     \",\"\",1)","v":""},{"$f":"IF(Table_PI[[#This Row],[List 1]]<>\"\",Table_PI[[#This Row],[List 1]],\"\")","v":""},{"$f":"IF(Table_PI[[#This Row],[List 2]]<>\"\",Table_PI[[#This Row],[List 2]],\"\")","v":""},{"$f":"IF(Table_PI[[#This Row],[List 3]]<>\"\",Table_PI[[#This Row],[List 3]],\"\")","v":""},{"$f":"IF(Table_PI[[#This Row],[Manufacturer]]=\"\",\"\",Table_PI[[#This Row],[Manufacturer]])","v":""},{"$f":"IF(Table_PI[[#This Row],[Model Number]]=\"\",\"\",Table_PI[[#This Row],[Model Number]])","v":""},{"$f":"IF(Table_PI[[#This Row],[Serial Number(s)]]=\"\",\"\",Table_PI[[#This Row],[Serial Number(s)]])","v":""},null,{"$f":"IF(Table_PI[[#This Row],[Size]]=\"\",\"\",Table_PI[[#This Row],[Size]])","v":""},null,null,{"$f":"IF(Table_PI[[#This Row],[Input 1]]<>\"\",Table_PI[[#This Row],[Input 1]],\"\")","v":""},null,null,{"$f":"IF(Table_PI[[#This Row],[Input 2]]<>\"\",Table_PI[[#This Row],[Input 2]],\"\")","v":""},null,null,{"$f":"IF(Table_PI[[#This Row],[Input 3]]<>\"\",Table_PI[[#This Row],[Input 3]],\"\")","v":""},null,null,{"$f":"IF(Table_PI[[#This Row],[Input 4]]<>\"\",Table_PI[[#This Row],[Input 4]],\"\")","v":""},null,null,{"$f":"IF(Table_PI[[#This Row],[Input 4]]<>\"\",Table_PI[[#This Row],[Input 4]],\"\")","v":""},null,null,{"$f":"IF(Table_PI[[#This Row],[Input 4]]<>\"\",Table_PI[[#This Row],[Input 4]],\"\")","v":""},{"$f":"IF(Table_PI[[#This Row],[Quantity]]=\"\",\"\",Table_PI[[#This Row],[Quantity]])","v":""},{"$f":"IF(Table_PI[[#This Row],[Notes]]=\"\",\"\",Table_PI[[#This Row],[Notes]])","v":""},{"$f":"IF(OR(Table_PI[[#This Row],[Hide: Baseline kWh]]=\"\",Table_PI[[#This Row],[Hide: Baseline kWh]]=0,ISTEXT(Table_PI[[#This Row],[Hide: Baseline kWh]])),\"\",Table_PI[[#This Row],[Hide: Baseline kWh]])","v":""},{"$f":"IF(OR(Table_PI[[#This Row],[Hide: Baseline kW]]=\"\",Table_PI[[#This Row],[Hide: Baseline kW]]=0,ISTEXT(Table_PI[[#This Row],[Hide: Baseline kW]])),\"\",Table_PI[[#This Row],[Hide: Baseline kW]])","v":""},{"$f":"IF(OR(Table_PI[[#This Row],[Hide: Proposed kWh]]=\"\",Table_PI[[#This Row],[Hide: Proposed kWh]]=0,ISTEXT(Table_PI[[#This Row],[Hide: Proposed kWh]])),\"\",Table_PI[[#This Row],[Hide: Proposed kWh]])","v":""},{"$f":"IF(OR(Table_PI[[#This Row],[Hide: Proposed kW]]=\"\",Table_PI[[#This Row],[Hide: Proposed kW]]=0,ISTEXT(Table_PI[[#This Row],[Hide: Proposed kW]])),\"\",Table_PI[[#This Row],[Hide: Proposed kW]])","v":""},null,null,{"$f":"IF(OR(Table_PI[[#This Row],[Hide: Rebate]]=\"\",Table_PI[[#This Row],[Hide: Rebate]]=0,ISTEXT(Table_PI[[#This Row],[Hide: Rebate]])),\"\",Table_PI[[#This Row],[Hide: Rebate]])","v":""},null,{"$f":"IF(OR(Table_PI[[#This Row],[Hide: Incremental Cost]]=\"\",Table_PI[[#This Row],[Hide: Incremental Cost]]=0,ISTEXT(Table_PI[[#This Row],[Hide: Incremental Cost]])),\"\",Table_PI[[#This Row],[Hide: Incremental Cost]])","v":""},{"$f":"IFERROR(IF(Table_SummaryPI[[#This Row],[Incentive_Customer]]=\"\",\"\",ROUND(Table_SummaryPI[[#This Row],[Incentive_Customer]]/$AM$401*'Customer Information'!$BC$21,2)),0)","v":""},{"$f":"IF(OR(Table_PI[[#This Row],[Annual kWh]]=\"\",Table_PI[[#This Row],[Annual kWh]]=0,ISTEXT(Table_PI[[#This Row],[Annual kWh]])),\"\",Table_PI[[#This Row],[Annual kWh]])","v":""},{"$f":"IF(OR(Table_PI[[#This Row],[Peak kW]]=\"\",Table_PI[[#This Row],[Peak kW]]=0,ISTEXT(Table_PI[[#This Row],[Peak kW]])),\"\",Table_PI[[#This Row],[Peak kW]])","v":""},{"$f":"IF(Table_SummaryPI[[#This Row],[Line No.]]<>\"\",IF(AND(ISNUMBER(FIND(\"Chiller\",Table_SummaryPI[[#This Row],[P_MeasureOption1]],1)),Table_SummaryPI[[#This Row],[ProposedMeasureCategory]]=\"Air-Cooled (Water-Cooled Replacement)\"),$BD$29*Table_SummaryPI[[#This Row],[Size]]*Table_SummaryPI[[#This Row],[Quantity]]*Table_SummaryPI[[#This Row],[EFLHCooling]],\nIF(ISNUMBER(FIND(\"Dishwasher\",Table_SummaryPI[[#This Row],[ProposedMeasureCategory]],1)),$BH$29*Table_SummaryPI[[#This Row],[Quantity]],\nIF(ISNUMBER(FIND(\"Ice Maker\",Table_SummaryPI[[#This Row],[ProposedMeasureCategory]],1)),$BD$31*Table_SummaryPI[[#This Row],[Quantity]],\nIF(ISNUMBER(FIND(\"Spray Valve\",Table_SummaryPI[[#This Row],[ProposedMeasureCategory]],1)),$BH$31*Table_SummaryPI[[#This Row],[Quantity]],\n0)))),\"\")","v":""},{"$f":"IF(OR(Table_PI[[#This Row],[Hide: Electrification kWh]]=\"\",Table_PI[[#This Row],[Hide: Electrification kWh]]=0,ISTEXT(Table_PI[[#This Row],[Hide: Electrification kWh]])),\"\",Table_PI[[#This Row],[Hide: Electrification kWh]])","v":""},{"$f":"IF(OR(Table_PI[[#This Row],[Hide: Electrification GHG]]=\"\",Table_PI[[#This Row],[Hide: Electrification GHG]]=0,ISTEXT(Table_PI[[#This Row],[Hide: Electrification GHG]])),\"\",Table_PI[[#This Row],[Hide: Electrification GHG]])","v":""},{"$f":"IFERROR(IF(Table_SummaryPI[[#This Row],[kWhSavings]]=\"\",\"\",$BH$9*Table_SummaryPI[[#This Row],[kWhSavings]]),0)","v":""},{"$f":"IFERROR(IF(Table_SummaryPI[[#This Row],[kWhSavings]]=\"\",\"\",$BH$14*Table_SummaryPI[[#This Row],[kWhSavings]]),0)","v":""},{"$f":"IFERROR(IF(Table_SummaryPI[[#This Row],[kWhSavings]]=\"\",\"\",$BH$18*Table_SummaryPI[[#This Row],[kWhSavings]]),0)","v":""},{"$f":"IFERROR(IF(Table_SummaryPI[[#This Row],[kWhSavings]]=\"\",\"\",$BH$22*Table_SummaryPI[[#This Row],[kWhSavings]]),0)","v":""}]
[{"$f":"Table_PI[[#This Row],[Line No.]]","v":""},{"$f":"IF(Table_SummaryPI[[#This Row],[MeasureName]]<>\"\",NOT(ISTEXT(Table_PI[[#This Row],[Rebate]])),\"\")","v":""},{"$f":"IF(Table_SummaryPI[[#This Row],[MeassureCategory]]<>\"\",CONCATENATE(Table_SummaryPI[[#This Row],[MeassureCategory]],  \" - \", Table_SummaryPI[[#This Row],[ProposedMeasureCategory]],  \" - \", TEXT(Table_SummaryPI[[#This Row],[Size]],\"#,##0.00\"),\" \",Table_SummaryPI[[#This Row],[SizeUnit]]),\"\")","v":""},{"$f":"SUBSTITUTE(Table_PI[[#This Row],[Measure]],\"     \",\"\",1)","v":""},{"$f":"IF(Table_PI[[#This Row],[List 1]]<>\"\",Table_PI[[#This Row],[List 1]],\"\")","v":""},{"$f":"IF(Table_PI[[#This Row],[List 2]]<>\"\",Table_PI[[#This Row],[List 2]],\"\")","v":""},{"$f":"IF(Table_PI[[#This Row],[List 3]]<>\"\",Table_PI[[#This Row],[List 3]],\"\")","v":""},{"$f":"IF(Table_PI[[#This Row],[Manufacturer]]=\"\",\"\",Table_PI[[#This Row],[Manufacturer]])","v":""},{"$f":"IF(Table_PI[[#This Row],[Model Number]]=\"\",\"\",Table_PI[[#This Row],[Model Number]])","v":""},{"$f":"IF(Table_PI[[#This Row],[Serial Number(s)]]=\"\",\"\",Table_PI[[#This Row],[Serial Number(s)]])","v":""},null,{"$f":"IF(Table_PI[[#This Row],[Size]]=\"\",\"\",Table_PI[[#This Row],[Size]])","v":""},null,null,{"$f":"IF(Table_PI[[#This Row],[Input 1]]<>\"\",Table_PI[[#This Row],[Input 1]],\"\")","v":""},null,null,{"$f":"IF(Table_PI[[#This Row],[Input 2]]<>\"\",Table_PI[[#This Row],[Input 2]],\"\")","v":""},null,null,{"$f":"IF(Table_PI[[#This Row],[Input 3]]<>\"\",Table_PI[[#This Row],[Input 3]],\"\")","v":""},null,null,{"$f":"IF(Table_PI[[#This Row],[Input 4]]<>\"\",Table_PI[[#This Row],[Input 4]],\"\")","v":""},null,null,{"$f":"IF(Table_PI[[#This Row],[Input 4]]<>\"\",Table_PI[[#This Row],[Input 4]],\"\")","v":""},null,null,{"$f":"IF(Table_PI[[#This Row],[Input 4]]<>\"\",Table_PI[[#This Row],[Input 4]],\"\")","v":""},{"$f":"IF(Table_PI[[#This Row],[Quantity]]=\"\",\"\",Table_PI[[#This Row],[Quantity]])","v":""},{"$f":"IF(Table_PI[[#This Row],[Notes]]=\"\",\"\",Table_PI[[#This Row],[Notes]])","v":""},{"$f":"IF(OR(Table_PI[[#This Row],[Hide: Baseline kWh]]=\"\",Table_PI[[#This Row],[Hide: Baseline kWh]]=0,ISTEXT(Table_PI[[#This Row],[Hide: Baseline kWh]])),\"\",Table_PI[[#This Row],[Hide: Baseline kWh]])","v":""},{"$f":"IF(OR(Table_PI[[#This Row],[Hide: Baseline kW]]=\"\",Table_PI[[#This Row],[Hide: Baseline kW]]=0,ISTEXT(Table_PI[[#This Row],[Hide: Baseline kW]])),\"\",Table_PI[[#This Row],[Hide: Baseline kW]])","v":""},{"$f":"IF(OR(Table_PI[[#This Row],[Hide: Proposed kWh]]=\"\",Table_PI[[#This Row],[Hide: Proposed kWh]]=0,ISTEXT(Table_PI[[#This Row],[Hide: Proposed kWh]])),\"\",Table_PI[[#This Row],[Hide: Proposed kWh]])","v":""},{"$f":"IF(OR(Table_PI[[#This Row],[Hide: Proposed kW]]=\"\",Table_PI[[#This Row],[Hide: Proposed kW]]=0,ISTEXT(Table_PI[[#This Row],[Hide: Proposed kW]])),\"\",Table_PI[[#This Row],[Hide: Proposed kW]])","v":""},null,null,{"$f":"IF(OR(Table_PI[[#This Row],[Hide: Rebate]]=\"\",Table_PI[[#This Row],[Hide: Rebate]]=0,ISTEXT(Table_PI[[#This Row],[Hide: Rebate]])),\"\",Table_PI[[#This Row],[Hide: Rebate]])","v":""},null,{"$f":"IF(OR(Table_PI[[#This Row],[Hide: Incremental Cost]]=\"\",Table_PI[[#This Row],[Hide: Incremental Cost]]=0,ISTEXT(Table_PI[[#This Row],[Hide: Incremental Cost]])),\"\",Table_PI[[#This Row],[Hide: Incremental Cost]])","v":""},{"$f":"IFERROR(IF(Table_SummaryPI[[#This Row],[Incentive_Customer]]=\"\",\"\",ROUND(Table_SummaryPI[[#This Row],[Incentive_Customer]]/$AM$401*'Customer Information'!$BC$21,2)),0)","v":""},{"$f":"IF(OR(Table_PI[[#This Row],[Annual kWh]]=\"\",Table_PI[[#This Row],[Annual kWh]]=0,ISTEXT(Table_PI[[#This Row],[Annual kWh]])),\"\",Table_PI[[#This Row],[Annual kWh]])","v":""},{"$f":"IF(OR(Table_PI[[#This Row],[Peak kW]]=\"\",Table_PI[[#This Row],[Peak kW]]=0,ISTEXT(Table_PI[[#This Row],[Peak kW]])),\"\",Table_PI[[#This Row],[Peak kW]])","v":""},{"$f":"IF(Table_SummaryPI[[#This Row],[Line No.]]<>\"\",IF(AND(ISNUMBER(FIND(\"Chiller\",Table_SummaryPI[[#This Row],[P_MeasureOption1]],1)),Table_SummaryPI[[#This Row],[ProposedMeasureCategory]]=\"Air-Cooled (Water-Cooled Replacement)\"),$BD$29*Table_SummaryPI[[#This Row],[Size]]*Table_SummaryPI[[#This Row],[Quantity]]*Table_SummaryPI[[#This Row],[EFLHCooling]],\nIF(ISNUMBER(FIND(\"Dishwasher\",Table_SummaryPI[[#This Row],[ProposedMeasureCategory]],1)),$BH$29*Table_SummaryPI[[#This Row],[Quantity]],\nIF(ISNUMBER(FIND(\"Ice Maker\",Table_SummaryPI[[#This Row],[ProposedMeasureCategory]],1)),$BD$31*Table_SummaryPI[[#This Row],[Quantity]],\nIF(ISNUMBER(FIND(\"Spray Valve\",Table_SummaryPI[[#This Row],[ProposedMeasureCategory]],1)),$BH$31*Table_SummaryPI[[#This Row],[Quantity]],\n0)))),\"\")","v":""},{"$f":"IF(OR(Table_PI[[#This Row],[Hide: Electrification kWh]]=\"\",Table_PI[[#This Row],[Hide: Electrification kWh]]=0,ISTEXT(Table_PI[[#This Row],[Hide: Electrification kWh]])),\"\",Table_PI[[#This Row],[Hide: Electrification kWh]])","v":""},{"$f":"IF(OR(Table_PI[[#This Row],[Hide: Electrification GHG]]=\"\",Table_PI[[#This Row],[Hide: Electrification GHG]]=0,ISTEXT(Table_PI[[#This Row],[Hide: Electrification GHG]])),\"\",Table_PI[[#This Row],[Hide: Electrification GHG]])","v":""},{"$f":"IFERROR(IF(Table_SummaryPI[[#This Row],[kWhSavings]]=\"\",\"\",$BH$9*Table_SummaryPI[[#This Row],[kWhSavings]]),0)","v":""},{"$f":"IFERROR(IF(Table_SummaryPI[[#This Row],[kWhSavings]]=\"\",\"\",$BH$14*Table_SummaryPI[[#This Row],[kWhSavings]]),0)","v":""},{"$f":"IFERROR(IF(Table_SummaryPI[[#This Row],[kWhSavings]]=\"\",\"\",$BH$18*Table_SummaryPI[[#This Row],[kWhSavings]]),0)","v":""},{"$f":"IFERROR(IF(Table_SummaryPI[[#This Row],[kWhSavings]]=\"\",\"\",$BH$22*Table_SummaryPI[[#This Row],[kWhSavings]]),0)","v":""}]
[{"$f":"Table_PI[[#This Row],[Line No.]]","v":""},{"$f":"IF(Table_SummaryPI[[#This Row],[MeasureName]]<>\"\",NOT(ISTEXT(Table_PI[[#This Row],[Rebate]])),\"\")","v":""},{"$f":"IF(Table_SummaryPI[[#This Row],[MeassureCategory]]<>\"\",CONCATENATE(Table_SummaryPI[[#This Row],[MeassureCategory]],  \" - \", Table_SummaryPI[[#This Row],[ProposedMeasureCategory]],  \" - \", TEXT(Table_SummaryPI[[#This Row],[Size]],\"#,##0.00\"),\" \",Table_SummaryPI[[#This Row],[SizeUnit]]),\"\")","v":""},{"$f":"SUBSTITUTE(Table_PI[[#This Row],[Measure]],\"     \",\"\",1)","v":""},{"$f":"IF(Table_PI[[#This Row],[List 1]]<>\"\",Table_PI[[#This Row],[List 1]],\"\")","v":""},{"$f":"IF(Table_PI[[#This Row],[List 2]]<>\"\",Table_PI[[#This Row],[List 2]],\"\")","v":""},{"$f":"IF(Table_PI[[#This Row],[List 3]]<>\"\",Table_PI[[#This Row],[List 3]],\"\")","v":""},{"$f":"IF(Table_PI[[#This Row],[Manufacturer]]=\"\",\"\",Table_PI[[#This Row],[Manufacturer]])","v":""},{"$f":"IF(Table_PI[[#This Row],[Model Number]]=\"\",\"\",Table_PI[[#This Row],[Model Number]])","v":""},{"$f":"IF(Table_PI[[#This Row],[Serial Number(s)]]=\"\",\"\",Table_PI[[#This Row],[Serial Number(s)]])","v":""},null,{"$f":"IF(Table_PI[[#This Row],[Size]]=\"\",\"\",Table_PI[[#This Row],[Size]])","v":""},null,null,{"$f":"IF(Table_PI[[#This Row],[Input 1]]<>\"\",Table_PI[[#This Row],[Input 1]],\"\")","v":""},null,null,{"$f":"IF(Table_PI[[#This Row],[Input 2]]<>\"\",Table_PI[[#This Row],[Input 2]],\"\")","v":""},null,null,{"$f":"IF(Table_PI[[#This Row],[Input 3]]<>\"\",Table_PI[[#This Row],[Input 3]],\"\")","v":""},null,null,{"$f":"IF(Table_PI[[#This Row],[Input 4]]<>\"\",Table_PI[[#This Row],[Input 4]],\"\")","v":""},null,null,{"$f":"IF(Table_PI[[#This Row],[Input 4]]<>\"\",Table_PI[[#This Row],[Input 4]],\"\")","v":""},null,null,{"$f":"IF(Table_PI[[#This Row],[Input 4]]<>\"\",Table_PI[[#This Row],[Input 4]],\"\")","v":""},{"$f":"IF(Table_PI[[#This Row],[Quantity]]=\"\",\"\",Table_PI[[#This Row],[Quantity]])","v":""},{"$f":"IF(Table_PI[[#This Row],[Notes]]=\"\",\"\",Table_PI[[#This Row],[Notes]])","v":""},{"$f":"IF(OR(Table_PI[[#This Row],[Hide: Baseline kWh]]=\"\",Table_PI[[#This Row],[Hide: Baseline kWh]]=0,ISTEXT(Table_PI[[#This Row],[Hide: Baseline kWh]])),\"\",Table_PI[[#This Row],[Hide: Baseline kWh]])","v":""},{"$f":"IF(OR(Table_PI[[#This Row],[Hide: Baseline kW]]=\"\",Table_PI[[#This Row],[Hide: Baseline kW]]=0,ISTEXT(Table_PI[[#This Row],[Hide: Baseline kW]])),\"\",Table_PI[[#This Row],[Hide: Baseline kW]])","v":""},{"$f":"IF(OR(Table_PI[[#This Row],[Hide: Proposed kWh]]=\"\",Table_PI[[#This Row],[Hide: Proposed kWh]]=0,ISTEXT(Table_PI[[#This Row],[Hide: Proposed kWh]])),\"\",Table_PI[[#This Row],[Hide: Proposed kWh]])","v":""},{"$f":"IF(OR(Table_PI[[#This Row],[Hide: Proposed kW]]=\"\",Table_PI[[#This Row],[Hide: Proposed kW]]=0,ISTEXT(Table_PI[[#This Row],[Hide: Proposed kW]])),\"\",Table_PI[[#This Row],[Hide: Proposed kW]])","v":""},null,null,{"$f":"IF(OR(Table_PI[[#This Row],[Hide: Rebate]]=\"\",Table_PI[[#This Row],[Hide: Rebate]]=0,ISTEXT(Table_PI[[#This Row],[Hide: Rebate]])),\"\",Table_PI[[#This Row],[Hide: Rebate]])","v":""},null,{"$f":"IF(OR(Table_PI[[#This Row],[Hide: Incremental Cost]]=\"\",Table_PI[[#This Row],[Hide: Incremental Cost]]=0,ISTEXT(Table_PI[[#This Row],[Hide: Incremental Cost]])),\"\",Table_PI[[#This Row],[Hide: Incremental Cost]])","v":""},{"$f":"IFERROR(IF(Table_SummaryPI[[#This Row],[Incentive_Customer]]=\"\",\"\",ROUND(Table_SummaryPI[[#This Row],[Incentive_Customer]]/$AM$401*'Customer Information'!$BC$21,2)),0)","v":""},{"$f":"IF(OR(Table_PI[[#This Row],[Annual kWh]]=\"\",Table_PI[[#This Row],[Annual kWh]]=0,ISTEXT(Table_PI[[#This Row],[Annual kWh]])),\"\",Table_PI[[#This Row],[Annual kWh]])","v":""},{"$f":"IF(OR(Table_PI[[#This Row],[Peak kW]]=\"\",Table_PI[[#This Row],[Peak kW]]=0,ISTEXT(Table_PI[[#This Row],[Peak kW]])),\"\",Table_PI[[#This Row],[Peak kW]])","v":""},{"$f":"IF(Table_SummaryPI[[#This Row],[Line No.]]<>\"\",IF(AND(ISNUMBER(FIND(\"Chiller\",Table_SummaryPI[[#This Row],[P_MeasureOption1]],1)),Table_SummaryPI[[#This Row],[ProposedMeasureCategory]]=\"Air-Cooled (Water-Cooled Replacement)\"),$BD$29*Table_SummaryPI[[#This Row],[Size]]*Table_SummaryPI[[#This Row],[Quantity]]*Table_SummaryPI[[#This Row],[EFLHCooling]],\nIF(ISNUMBER(FIND(\"Dishwasher\",Table_SummaryPI[[#This Row],[ProposedMeasureCategory]],1)),$BH$29*Table_SummaryPI[[#This Row],[Quantity]],\nIF(ISNUMBER(FIND(\"Ice Maker\",Table_SummaryPI[[#This Row],[ProposedMeasureCategory]],1)),$BD$31*Table_SummaryPI[[#This Row],[Quantity]],\nIF(ISNUMBER(FIND(\"Spray Valve\",Table_SummaryPI[[#This Row],[ProposedMeasureCategory]],1)),$BH$31*Table_SummaryPI[[#This Row],[Quantity]],\n0)))),\"\")","v":""},{"$f":"IF(OR(Table_PI[[#This Row],[Hide: Electrification kWh]]=\"\",Table_PI[[#This Row],[Hide: Electrification kWh]]=0,ISTEXT(Table_PI[[#This Row],[Hide: Electrification kWh]])),\"\",Table_PI[[#This Row],[Hide: Electrification kWh]])","v":""},{"$f":"IF(OR(Table_PI[[#This Row],[Hide: Electrification GHG]]=\"\",Table_PI[[#This Row],[Hide: Electrification GHG]]=0,ISTEXT(Table_PI[[#This Row],[Hide: Electrification GHG]])),\"\",Table_PI[[#This Row],[Hide: Electrification GHG]])","v":""},{"$f":"IFERROR(IF(Table_SummaryPI[[#This Row],[kWhSavings]]=\"\",\"\",$BH$9*Table_SummaryPI[[#This Row],[kWhSavings]]),0)","v":""},{"$f":"IFERROR(IF(Table_SummaryPI[[#This Row],[kWhSavings]]=\"\",\"\",$BH$14*Table_SummaryPI[[#This Row],[kWhSavings]]),0)","v":""},{"$f":"IFERROR(IF(Table_SummaryPI[[#This Row],[kWhSavings]]=\"\",\"\",$BH$18*Table_SummaryPI[[#This Row],[kWhSavings]]),0)","v":""},{"$f":"IFERROR(IF(Table_SummaryPI[[#This Row],[kWhSavings]]=\"\",\"\",$BH$22*Table_SummaryPI[[#This Row],[kWhSavings]]),0)","v":""}]
[{"$f":"Table_PI[[#This Row],[Line No.]]","v":""},{"$f":"IF(Table_SummaryPI[[#This Row],[MeasureName]]<>\"\",NOT(ISTEXT(Table_PI[[#This Row],[Rebate]])),\"\")","v":""},{"$f":"IF(Table_SummaryPI[[#This Row],[MeassureCategory]]<>\"\",CONCATENATE(Table_SummaryPI[[#This Row],[MeassureCategory]],  \" - \", Table_SummaryPI[[#This Row],[ProposedMeasureCategory]],  \" - \", TEXT(Table_SummaryPI[[#This Row],[Size]],\"#,##0.00\"),\" \",Table_SummaryPI[[#This Row],[SizeUnit]]),\"\")","v":""},{"$f":"SUBSTITUTE(Table_PI[[#This Row],[Measure]],\"     \",\"\",1)","v":""},{"$f":"IF(Table_PI[[#This Row],[List 1]]<>\"\",Table_PI[[#This Row],[List 1]],\"\")","v":""},{"$f":"IF(Table_PI[[#This Row],[List 2]]<>\"\",Table_PI[[#This Row],[List 2]],\"\")","v":""},{"$f":"IF(Table_PI[[#This Row],[List 3]]<>\"\",Table_PI[[#This Row],[List 3]],\"\")","v":""},{"$f":"IF(Table_PI[[#This Row],[Manufacturer]]=\"\",\"\",Table_PI[[#This Row],[Manufacturer]])","v":""},{"$f":"IF(Table_PI[[#This Row],[Model Number]]=\"\",\"\",Table_PI[[#This Row],[Model Number]])","v":""},{"$f":"IF(Table_PI[[#This Row],[Serial Number(s)]]=\"\",\"\",Table_PI[[#This Row],[Serial Number(s)]])","v":""},null,{"$f":"IF(Table_PI[[#This Row],[Size]]=\"\",\"\",Table_PI[[#This Row],[Size]])","v":""},null,null,{"$f":"IF(Table_PI[[#This Row],[Input 1]]<>\"\",Table_PI[[#This Row],[Input 1]],\"\")","v":""},null,null,{"$f":"IF(Table_PI[[#This Row],[Input 2]]<>\"\",Table_PI[[#This Row],[Input 2]],\"\")","v":""},null,null,{"$f":"IF(Table_PI[[#This Row],[Input 3]]<>\"\",Table_PI[[#This Row],[Input 3]],\"\")","v":""},null,null,{"$f":"IF(Table_PI[[#This Row],[Input 4]]<>\"\",Table_PI[[#This Row],[Input 4]],\"\")","v":""},null,null,{"$f":"IF(Table_PI[[#This Row],[Input 4]]<>\"\",Table_PI[[#This Row],[Input 4]],\"\")","v":""},null,null,{"$f":"IF(Table_PI[[#This Row],[Input 4]]<>\"\",Table_PI[[#This Row],[Input 4]],\"\")","v":""},{"$f":"IF(Table_PI[[#This Row],[Quantity]]=\"\",\"\",Table_PI[[#This Row],[Quantity]])","v":""},{"$f":"IF(Table_PI[[#This Row],[Notes]]=\"\",\"\",Table_PI[[#This Row],[Notes]])","v":""},{"$f":"IF(OR(Table_PI[[#This Row],[Hide: Baseline kWh]]=\"\",Table_PI[[#This Row],[Hide: Baseline kWh]]=0,ISTEXT(Table_PI[[#This Row],[Hide: Baseline kWh]])),\"\",Table_PI[[#This Row],[Hide: Baseline kWh]])","v":""},{"$f":"IF(OR(Table_PI[[#This Row],[Hide: Baseline kW]]=\"\",Table_PI[[#This Row],[Hide: Baseline kW]]=0,ISTEXT(Table_PI[[#This Row],[Hide: Baseline kW]])),\"\",Table_PI[[#This Row],[Hide: Baseline kW]])","v":""},{"$f":"IF(OR(Table_PI[[#This Row],[Hide: Proposed kWh]]=\"\",Table_PI[[#This Row],[Hide: Proposed kWh]]=0,ISTEXT(Table_PI[[#This Row],[Hide: Proposed kWh]])),\"\",Table_PI[[#This Row],[Hide: Proposed kWh]])","v":""},{"$f":"IF(OR(Table_PI[[#This Row],[Hide: Proposed kW]]=\"\",Table_PI[[#This Row],[Hide: Proposed kW]]=0,ISTEXT(Table_PI[[#This Row],[Hide: Proposed kW]])),\"\",Table_PI[[#This Row],[Hide: Proposed kW]])","v":""},null,null,{"$f":"IF(OR(Table_PI[[#This Row],[Hide: Rebate]]=\"\",Table_PI[[#This Row],[Hide: Rebate]]=0,ISTEXT(Table_PI[[#This Row],[Hide: Rebate]])),\"\",Table_PI[[#This Row],[Hide: Rebate]])","v":""},null,{"$f":"IF(OR(Table_PI[[#This Row],[Hide: Incremental Cost]]=\"\",Table_PI[[#This Row],[Hide: Incremental Cost]]=0,ISTEXT(Table_PI[[#This Row],[Hide: Incremental Cost]])),\"\",Table_PI[[#This Row],[Hide: Incremental Cost]])","v":""},{"$f":"IFERROR(IF(Table_SummaryPI[[#This Row],[Incentive_Customer]]=\"\",\"\",ROUND(Table_SummaryPI[[#This Row],[Incentive_Customer]]/$AM$401*'Customer Information'!$BC$21,2)),0)","v":""},{"$f":"IF(OR(Table_PI[[#This Row],[Annual kWh]]=\"\",Table_PI[[#This Row],[Annual kWh]]=0,ISTEXT(Table_PI[[#This Row],[Annual kWh]])),\"\",Table_PI[[#This Row],[Annual kWh]])","v":""},{"$f":"IF(OR(Table_PI[[#This Row],[Peak kW]]=\"\",Table_PI[[#This Row],[Peak kW]]=0,ISTEXT(Table_PI[[#This Row],[Peak kW]])),\"\",Table_PI[[#This Row],[Peak kW]])","v":""},{"$f":"IF(Table_SummaryPI[[#This Row],[Line No.]]<>\"\",IF(AND(ISNUMBER(FIND(\"Chiller\",Table_SummaryPI[[#This Row],[P_MeasureOption1]],1)),Table_SummaryPI[[#This Row],[ProposedMeasureCategory]]=\"Air-Cooled (Water-Cooled Replacement)\"),$BD$29*Table_SummaryPI[[#This Row],[Size]]*Table_SummaryPI[[#This Row],[Quantity]]*Table_SummaryPI[[#This Row],[EFLHCooling]],\nIF(ISNUMBER(FIND(\"Dishwasher\",Table_SummaryPI[[#This Row],[ProposedMeasureCategory]],1)),$BH$29*Table_SummaryPI[[#This Row],[Quantity]],\nIF(ISNUMBER(FIND(\"Ice Maker\",Table_SummaryPI[[#This Row],[ProposedMeasureCategory]],1)),$BD$31*Table_SummaryPI[[#This Row],[Quantity]],\nIF(ISNUMBER(FIND(\"Spray Valve\",Table_SummaryPI[[#This Row],[ProposedMeasureCategory]],1)),$BH$31*Table_SummaryPI[[#This Row],[Quantity]],\n0)))),\"\")","v":""},{"$f":"IF(OR(Table_PI[[#This Row],[Hide: Electrification kWh]]=\"\",Table_PI[[#This Row],[Hide: Electrification kWh]]=0,ISTEXT(Table_PI[[#This Row],[Hide: Electrification kWh]])),\"\",Table_PI[[#This Row],[Hide: Electrification kWh]])","v":""},{"$f":"IF(OR(Table_PI[[#This Row],[Hide: Electrification GHG]]=\"\",Table_PI[[#This Row],[Hide: Electrification GHG]]=0,ISTEXT(Table_PI[[#This Row],[Hide: Electrification GHG]])),\"\",Table_PI[[#This Row],[Hide: Electrification GHG]])","v":""},{"$f":"IFERROR(IF(Table_SummaryPI[[#This Row],[kWhSavings]]=\"\",\"\",$BH$9*Table_SummaryPI[[#This Row],[kWhSavings]]),0)","v":""},{"$f":"IFERROR(IF(Table_SummaryPI[[#This Row],[kWhSavings]]=\"\",\"\",$BH$14*Table_SummaryPI[[#This Row],[kWhSavings]]),0)","v":""},{"$f":"IFERROR(IF(Table_SummaryPI[[#This Row],[kWhSavings]]=\"\",\"\",$BH$18*Table_SummaryPI[[#This Row],[kWhSavings]]),0)","v":""},{"$f":"IFERROR(IF(Table_SummaryPI[[#This Row],[kWhSavings]]=\"\",\"\",$BH$22*Table_SummaryPI[[#This Row],[kWhSavings]]),0)","v":""}]
[{"$f":"Table_PI[[#This Row],[Line No.]]","v":""},{"$f":"IF(Table_SummaryPI[[#This Row],[MeasureName]]<>\"\",NOT(ISTEXT(Table_PI[[#This Row],[Rebate]])),\"\")","v":""},{"$f":"IF(Table_SummaryPI[[#This Row],[MeassureCategory]]<>\"\",CONCATENATE(Table_SummaryPI[[#This Row],[MeassureCategory]],  \" - \", Table_SummaryPI[[#This Row],[ProposedMeasureCategory]],  \" - \", TEXT(Table_SummaryPI[[#This Row],[Size]],\"#,##0.00\"),\" \",Table_SummaryPI[[#This Row],[SizeUnit]]),\"\")","v":""},{"$f":"SUBSTITUTE(Table_PI[[#This Row],[Measure]],\"     \",\"\",1)","v":""},{"$f":"IF(Table_PI[[#This Row],[List 1]]<>\"\",Table_PI[[#This Row],[List 1]],\"\")","v":""},{"$f":"IF(Table_PI[[#This Row],[List 2]]<>\"\",Table_PI[[#This Row],[List 2]],\"\")","v":""},{"$f":"IF(Table_PI[[#This Row],[List 3]]<>\"\",Table_PI[[#This Row],[List 3]],\"\")","v":""},{"$f":"IF(Table_PI[[#This Row],[Manufacturer]]=\"\",\"\",Table_PI[[#This Row],[Manufacturer]])","v":""},{"$f":"IF(Table_PI[[#This Row],[Model Number]]=\"\",\"\",Table_PI[[#This Row],[Model Number]])","v":""},{"$f":"IF(Table_PI[[#This Row],[Serial Number(s)]]=\"\",\"\",Table_PI[[#This Row],[Serial Number(s)]])","v":""},null,{"$f":"IF(Table_PI[[#This Row],[Size]]=\"\",\"\",Table_PI[[#This Row],[Size]])","v":""},null,null,{"$f":"IF(Table_PI[[#This Row],[Input 1]]<>\"\",Table_PI[[#This Row],[Input 1]],\"\")","v":""},null,null,{"$f":"IF(Table_PI[[#This Row],[Input 2]]<>\"\",Table_PI[[#This Row],[Input 2]],\"\")","v":""},null,null,{"$f":"IF(Table_PI[[#This Row],[Input 3]]<>\"\",Table_PI[[#This Row],[Input 3]],\"\")","v":""},null,null,{"$f":"IF(Table_PI[[#This Row],[Input 4]]<>\"\",Table_PI[[#This Row],[Input 4]],\"\")","v":""},null,null,{"$f":"IF(Table_PI[[#This Row],[Input 4]]<>\"\",Table_PI[[#This Row],[Input 4]],\"\")","v":""},null,null,{"$f":"IF(Table_PI[[#This Row],[Input 4]]<>\"\",Table_PI[[#This Row],[Input 4]],\"\")","v":""},{"$f":"IF(Table_PI[[#This Row],[Quantity]]=\"\",\"\",Table_PI[[#This Row],[Quantity]])","v":""},{"$f":"IF(Table_PI[[#This Row],[Notes]]=\"\",\"\",Table_PI[[#This Row],[Notes]])","v":""},{"$f":"IF(OR(Table_PI[[#This Row],[Hide: Baseline kWh]]=\"\",Table_PI[[#This Row],[Hide: Baseline kWh]]=0,ISTEXT(Table_PI[[#This Row],[Hide: Baseline kWh]])),\"\",Table_PI[[#This Row],[Hide: Baseline kWh]])","v":""},{"$f":"IF(OR(Table_PI[[#This Row],[Hide: Baseline kW]]=\"\",Table_PI[[#This Row],[Hide: Baseline kW]]=0,ISTEXT(Table_PI[[#This Row],[Hide: Baseline kW]])),\"\",Table_PI[[#This Row],[Hide: Baseline kW]])","v":""},{"$f":"IF(OR(Table_PI[[#This Row],[Hide: Proposed kWh]]=\"\",Table_PI[[#This Row],[Hide: Proposed kWh]]=0,ISTEXT(Table_PI[[#This Row],[Hide: Proposed kWh]])),\"\",Table_PI[[#This Row],[Hide: Proposed kWh]])","v":""},{"$f":"IF(OR(Table_PI[[#This Row],[Hide: Proposed kW]]=\"\",Table_PI[[#This Row],[Hide: Proposed kW]]=0,ISTEXT(Table_PI[[#This Row],[Hide: Proposed kW]])),\"\",Table_PI[[#This Row],[Hide: Proposed kW]])","v":""},null,null,{"$f":"IF(OR(Table_PI[[#This Row],[Hide: Rebate]]=\"\",Table_PI[[#This Row],[Hide: Rebate]]=0,ISTEXT(Table_PI[[#This Row],[Hide: Rebate]])),\"\",Table_PI[[#This Row],[Hide: Rebate]])","v":""},null,{"$f":"IF(OR(Table_PI[[#This Row],[Hide: Incremental Cost]]=\"\",Table_PI[[#This Row],[Hide: Incremental Cost]]=0,ISTEXT(Table_PI[[#This Row],[Hide: Incremental Cost]])),\"\",Table_PI[[#This Row],[Hide: Incremental Cost]])","v":""},{"$f":"IFERROR(IF(Table_SummaryPI[[#This Row],[Incentive_Customer]]=\"\",\"\",ROUND(Table_SummaryPI[[#This Row],[Incentive_Customer]]/$AM$401*'Customer Information'!$BC$21,2)),0)","v":""},{"$f":"IF(OR(Table_PI[[#This Row],[Annual kWh]]=\"\",Table_PI[[#This Row],[Annual kWh]]=0,ISTEXT(Table_PI[[#This Row],[Annual kWh]])),\"\",Table_PI[[#This Row],[Annual kWh]])","v":""},{"$f":"IF(OR(Table_PI[[#This Row],[Peak kW]]=\"\",Table_PI[[#This Row],[Peak kW]]=0,ISTEXT(Table_PI[[#This Row],[Peak kW]])),\"\",Table_PI[[#This Row],[Peak kW]])","v":""},{"$f":"IF(Table_SummaryPI[[#This Row],[Line No.]]<>\"\",IF(AND(ISNUMBER(FIND(\"Chiller\",Table_SummaryPI[[#This Row],[P_MeasureOption1]],1)),Table_SummaryPI[[#This Row],[ProposedMeasureCategory]]=\"Air-Cooled (Water-Cooled Replacement)\"),$BD$29*Table_SummaryPI[[#This Row],[Size]]*Table_SummaryPI[[#This Row],[Quantity]]*Table_SummaryPI[[#This Row],[EFLHCooling]],\nIF(ISNUMBER(FIND(\"Dishwasher\",Table_SummaryPI[[#This Row],[ProposedMeasureCategory]],1)),$BH$29*Table_SummaryPI[[#This Row],[Quantity]],\nIF(ISNUMBER(FIND(\"Ice Maker\",Table_SummaryPI[[#This Row],[ProposedMeasureCategory]],1)),$BD$31*Table_SummaryPI[[#This Row],[Quantity]],\nIF(ISNUMBER(FIND(\"Spray Valve\",Table_SummaryPI[[#This Row],[ProposedMeasureCategory]],1)),$BH$31*Table_SummaryPI[[#This Row],[Quantity]],\n0)))),\"\")","v":""},{"$f":"IF(OR(Table_PI[[#This Row],[Hide: Electrification kWh]]=\"\",Table_PI[[#This Row],[Hide: Electrification kWh]]=0,ISTEXT(Table_PI[[#This Row],[Hide: Electrification kWh]])),\"\",Table_PI[[#This Row],[Hide: Electrification kWh]])","v":""},{"$f":"IF(OR(Table_PI[[#This Row],[Hide: Electrification GHG]]=\"\",Table_PI[[#This Row],[Hide: Electrification GHG]]=0,ISTEXT(Table_PI[[#This Row],[Hide: Electrification GHG]])),\"\",Table_PI[[#This Row],[Hide: Electrification GHG]])","v":""},{"$f":"IFERROR(IF(Table_SummaryPI[[#This Row],[kWhSavings]]=\"\",\"\",$BH$9*Table_SummaryPI[[#This Row],[kWhSavings]]),0)","v":""},{"$f":"IFERROR(IF(Table_SummaryPI[[#This Row],[kWhSavings]]=\"\",\"\",$BH$14*Table_SummaryPI[[#This Row],[kWhSavings]]),0)","v":""},{"$f":"IFERROR(IF(Table_SummaryPI[[#This Row],[kWhSavings]]=\"\",\"\",$BH$18*Table_SummaryPI[[#This Row],[kWhSavings]]),0)","v":""},{"$f":"IFERROR(IF(Table_SummaryPI[[#This Row],[kWhSavings]]=\"\",\"\",$BH$22*Table_SummaryPI[[#This Row],[kWhSavings]]),0)","v":""}]
[{"$f":"Table_PI[[#This Row],[Line No.]]","v":""},{"$f":"IF(Table_SummaryPI[[#This Row],[MeasureName]]<>\"\",NOT(ISTEXT(Table_PI[[#This Row],[Rebate]])),\"\")","v":""},{"$f":"IF(Table_SummaryPI[[#This Row],[MeassureCategory]]<>\"\",CONCATENATE(Table_SummaryPI[[#This Row],[MeassureCategory]],  \" - \", Table_SummaryPI[[#This Row],[ProposedMeasureCategory]],  \" - \", TEXT(Table_SummaryPI[[#This Row],[Size]],\"#,##0.00\"),\" \",Table_SummaryPI[[#This Row],[SizeUnit]]),\"\")","v":""},{"$f":"SUBSTITUTE(Table_PI[[#This Row],[Measure]],\"     \",\"\",1)","v":""},{"$f":"IF(Table_PI[[#This Row],[List 1]]<>\"\",Table_PI[[#This Row],[List 1]],\"\")","v":""},{"$f":"IF(Table_PI[[#This Row],[List 2]]<>\"\",Table_PI[[#This Row],[List 2]],\"\")","v":""},{"$f":"IF(Table_PI[[#This Row],[List 3]]<>\"\",Table_PI[[#This Row],[List 3]],\"\")","v":""},{"$f":"IF(Table_PI[[#This Row],[Manufacturer]]=\"\",\"\",Table_PI[[#This Row],[Manufacturer]])","v":""},{"$f":"IF(Table_PI[[#This Row],[Model Number]]=\"\",\"\",Table_PI[[#This Row],[Model Number]])","v":""},{"$f":"IF(Table_PI[[#This Row],[Serial Number(s)]]=\"\",\"\",Table_PI[[#This Row],[Serial Number(s)]])","v":""},null,{"$f":"IF(Table_PI[[#This Row],[Size]]=\"\",\"\",Table_PI[[#This Row],[Size]])","v":""},null,null,{"$f":"IF(Table_PI[[#This Row],[Input 1]]<>\"\",Table_PI[[#This Row],[Input 1]],\"\")","v":""},null,null,{"$f":"IF(Table_PI[[#This Row],[Input 2]]<>\"\",Table_PI[[#This Row],[Input 2]],\"\")","v":""},null,null,{"$f":"IF(Table_PI[[#This Row],[Input 3]]<>\"\",Table_PI[[#This Row],[Input 3]],\"\")","v":""},null,null,{"$f":"IF(Table_PI[[#This Row],[Input 4]]<>\"\",Table_PI[[#This Row],[Input 4]],\"\")","v":""},null,null,{"$f":"IF(Table_PI[[#This Row],[Input 4]]<>\"\",Table_PI[[#This Row],[Input 4]],\"\")","v":""},null,null,{"$f":"IF(Table_PI[[#This Row],[Input 4]]<>\"\",Table_PI[[#This Row],[Input 4]],\"\")","v":""},{"$f":"IF(Table_PI[[#This Row],[Quantity]]=\"\",\"\",Table_PI[[#This Row],[Quantity]])","v":""},{"$f":"IF(Table_PI[[#This Row],[Notes]]=\"\",\"\",Table_PI[[#This Row],[Notes]])","v":""},{"$f":"IF(OR(Table_PI[[#This Row],[Hide: Baseline kWh]]=\"\",Table_PI[[#This Row],[Hide: Baseline kWh]]=0,ISTEXT(Table_PI[[#This Row],[Hide: Baseline kWh]])),\"\",Table_PI[[#This Row],[Hide: Baseline kWh]])","v":""},{"$f":"IF(OR(Table_PI[[#This Row],[Hide: Baseline kW]]=\"\",Table_PI[[#This Row],[Hide: Baseline kW]]=0,ISTEXT(Table_PI[[#This Row],[Hide: Baseline kW]])),\"\",Table_PI[[#This Row],[Hide: Baseline kW]])","v":""},{"$f":"IF(OR(Table_PI[[#This Row],[Hide: Proposed kWh]]=\"\",Table_PI[[#This Row],[Hide: Proposed kWh]]=0,ISTEXT(Table_PI[[#This Row],[Hide: Proposed kWh]])),\"\",Table_PI[[#This Row],[Hide: Proposed kWh]])","v":""},{"$f":"IF(OR(Table_PI[[#This Row],[Hide: Proposed kW]]=\"\",Table_PI[[#This Row],[Hide: Proposed kW]]=0,ISTEXT(Table_PI[[#This Row],[Hide: Proposed kW]])),\"\",Table_PI[[#This Row],[Hide: Proposed kW]])","v":""},null,null,{"$f":"IF(OR(Table_PI[[#This Row],[Hide: Rebate]]=\"\",Table_PI[[#This Row],[Hide: Rebate]]=0,ISTEXT(Table_PI[[#This Row],[Hide: Rebate]])),\"\",Table_PI[[#This Row],[Hide: Rebate]])","v":""},null,{"$f":"IF(OR(Table_PI[[#This Row],[Hide: Incremental Cost]]=\"\",Table_PI[[#This Row],[Hide: Incremental Cost]]=0,ISTEXT(Table_PI[[#This Row],[Hide: Incremental Cost]])),\"\",Table_PI[[#This Row],[Hide: Incremental Cost]])","v":""},{"$f":"IFERROR(IF(Table_SummaryPI[[#This Row],[Incentive_Customer]]=\"\",\"\",ROUND(Table_SummaryPI[[#This Row],[Incentive_Customer]]/$AM$401*'Customer Information'!$BC$21,2)),0)","v":""},{"$f":"IF(OR(Table_PI[[#This Row],[Annual kWh]]=\"\",Table_PI[[#This Row],[Annual kWh]]=0,ISTEXT(Table_PI[[#This Row],[Annual kWh]])),\"\",Table_PI[[#This Row],[Annual kWh]])","v":""},{"$f":"IF(OR(Table_PI[[#This Row],[Peak kW]]=\"\",Table_PI[[#This Row],[Peak kW]]=0,ISTEXT(Table_PI[[#This Row],[Peak kW]])),\"\",Table_PI[[#This Row],[Peak kW]])","v":""},{"$f":"IF(Table_SummaryPI[[#This Row],[Line No.]]<>\"\",IF(AND(ISNUMBER(FIND(\"Chiller\",Table_SummaryPI[[#This Row],[P_MeasureOption1]],1)),Table_SummaryPI[[#This Row],[ProposedMeasureCategory]]=\"Air-Cooled (Water-Cooled Replacement)\"),$BD$29*Table_SummaryPI[[#This Row],[Size]]*Table_SummaryPI[[#This Row],[Quantity]]*Table_SummaryPI[[#This Row],[EFLHCooling]],\nIF(ISNUMBER(FIND(\"Dishwasher\",Table_SummaryPI[[#This Row],[ProposedMeasureCategory]],1)),$BH$29*Table_SummaryPI[[#This Row],[Quantity]],\nIF(ISNUMBER(FIND(\"Ice Maker\",Table_SummaryPI[[#This Row],[ProposedMeasureCategory]],1)),$BD$31*Table_SummaryPI[[#This Row],[Quantity]],\nIF(ISNUMBER(FIND(\"Spray Valve\",Table_SummaryPI[[#This Row],[ProposedMeasureCategory]],1)),$BH$31*Table_SummaryPI[[#This Row],[Quantity]],\n0)))),\"\")","v":""},{"$f":"IF(OR(Table_PI[[#This Row],[Hide: Electrification kWh]]=\"\",Table_PI[[#This Row],[Hide: Electrification kWh]]=0,ISTEXT(Table_PI[[#This Row],[Hide: Electrification kWh]])),\"\",Table_PI[[#This Row],[Hide: Electrification kWh]])","v":""},{"$f":"IF(OR(Table_PI[[#This Row],[Hide: Electrification GHG]]=\"\",Table_PI[[#This Row],[Hide: Electrification GHG]]=0,ISTEXT(Table_PI[[#This Row],[Hide: Electrification GHG]])),\"\",Table_PI[[#This Row],[Hide: Electrification GHG]])","v":""},{"$f":"IFERROR(IF(Table_SummaryPI[[#This Row],[kWhSavings]]=\"\",\"\",$BH$9*Table_SummaryPI[[#This Row],[kWhSavings]]),0)","v":""},{"$f":"IFERROR(IF(Table_SummaryPI[[#This Row],[kWhSavings]]=\"\",\"\",$BH$14*Table_SummaryPI[[#This Row],[kWhSavings]]),0)","v":""},{"$f":"IFERROR(IF(Table_SummaryPI[[#This Row],[kWhSavings]]=\"\",\"\",$BH$18*Table_SummaryPI[[#This Row],[kWhSavings]]),0)","v":""},{"$f":"IFERROR(IF(Table_SummaryPI[[#This Row],[kWhSavings]]=\"\",\"\",$BH$22*Table_SummaryPI[[#This Row],[kWhSavings]]),0)","v":""}]
[{"$f":"Table_PI[[#This Row],[Line No.]]","v":""},{"$f":"IF(Table_SummaryPI[[#This Row],[MeasureName]]<>\"\",NOT(ISTEXT(Table_PI[[#This Row],[Rebate]])),\"\")","v":""},{"$f":"IF(Table_SummaryPI[[#This Row],[MeassureCategory]]<>\"\",CONCATENATE(Table_SummaryPI[[#This Row],[MeassureCategory]],  \" - \", Table_SummaryPI[[#This Row],[ProposedMeasureCategory]],  \" - \", TEXT(Table_SummaryPI[[#This Row],[Size]],\"#,##0.00\"),\" \",Table_SummaryPI[[#This Row],[SizeUnit]]),\"\")","v":""},{"$f":"SUBSTITUTE(Table_PI[[#This Row],[Measure]],\"     \",\"\",1)","v":""},{"$f":"IF(Table_PI[[#This Row],[List 1]]<>\"\",Table_PI[[#This Row],[List 1]],\"\")","v":""},{"$f":"IF(Table_PI[[#This Row],[List 2]]<>\"\",Table_PI[[#This Row],[List 2]],\"\")","v":""},{"$f":"IF(Table_PI[[#This Row],[List 3]]<>\"\",Table_PI[[#This Row],[List 3]],\"\")","v":""},{"$f":"IF(Table_PI[[#This Row],[Manufacturer]]=\"\",\"\",Table_PI[[#This Row],[Manufacturer]])","v":""},{"$f":"IF(Table_PI[[#This Row],[Model Number]]=\"\",\"\",Table_PI[[#This Row],[Model Number]])","v":""},{"$f":"IF(Table_PI[[#This Row],[Serial Number(s)]]=\"\",\"\",Table_PI[[#This Row],[Serial Number(s)]])","v":""},null,{"$f":"IF(Table_PI[[#This Row],[Size]]=\"\",\"\",Table_PI[[#This Row],[Size]])","v":""},null,null,{"$f":"IF(Table_PI[[#This Row],[Input 1]]<>\"\",Table_PI[[#This Row],[Input 1]],\"\")","v":""},null,null,{"$f":"IF(Table_PI[[#This Row],[Input 2]]<>\"\",Table_PI[[#This Row],[Input 2]],\"\")","v":""},null,null,{"$f":"IF(Table_PI[[#This Row],[Input 3]]<>\"\",Table_PI[[#This Row],[Input 3]],\"\")","v":""},null,null,{"$f":"IF(Table_PI[[#This Row],[Input 4]]<>\"\",Table_PI[[#This Row],[Input 4]],\"\")","v":""},null,null,{"$f":"IF(Table_PI[[#This Row],[Input 4]]<>\"\",Table_PI[[#This Row],[Input 4]],\"\")","v":""},null,null,{"$f":"IF(Table_PI[[#This Row],[Input 4]]<>\"\",Table_PI[[#This Row],[Input 4]],\"\")","v":""},{"$f":"IF(Table_PI[[#This Row],[Quantity]]=\"\",\"\",Table_PI[[#This Row],[Quantity]])","v":""},{"$f":"IF(Table_PI[[#This Row],[Notes]]=\"\",\"\",Table_PI[[#This Row],[Notes]])","v":""},{"$f":"IF(OR(Table_PI[[#This Row],[Hide: Baseline kWh]]=\"\",Table_PI[[#This Row],[Hide: Baseline kWh]]=0,ISTEXT(Table_PI[[#This Row],[Hide: Baseline kWh]])),\"\",Table_PI[[#This Row],[Hide: Baseline kWh]])","v":""},{"$f":"IF(OR(Table_PI[[#This Row],[Hide: Baseline kW]]=\"\",Table_PI[[#This Row],[Hide: Baseline kW]]=0,ISTEXT(Table_PI[[#This Row],[Hide: Baseline kW]])),\"\",Table_PI[[#This Row],[Hide: Baseline kW]])","v":""},{"$f":"IF(OR(Table_PI[[#This Row],[Hide: Proposed kWh]]=\"\",Table_PI[[#This Row],[Hide: Proposed kWh]]=0,ISTEXT(Table_PI[[#This Row],[Hide: Proposed kWh]])),\"\",Table_PI[[#This Row],[Hide: Proposed kWh]])","v":""},{"$f":"IF(OR(Table_PI[[#This Row],[Hide: Proposed kW]]=\"\",Table_PI[[#This Row],[Hide: Proposed kW]]=0,ISTEXT(Table_PI[[#This Row],[Hide: Proposed kW]])),\"\",Table_PI[[#This Row],[Hide: Proposed kW]])","v":""},null,null,{"$f":"IF(OR(Table_PI[[#This Row],[Hide: Rebate]]=\"\",Table_PI[[#This Row],[Hide: Rebate]]=0,ISTEXT(Table_PI[[#This Row],[Hide: Rebate]])),\"\",Table_PI[[#This Row],[Hide: Rebate]])","v":""},null,{"$f":"IF(OR(Table_PI[[#This Row],[Hide: Incremental Cost]]=\"\",Table_PI[[#This Row],[Hide: Incremental Cost]]=0,ISTEXT(Table_PI[[#This Row],[Hide: Incremental Cost]])),\"\",Table_PI[[#This Row],[Hide: Incremental Cost]])","v":""},{"$f":"IFERROR(IF(Table_SummaryPI[[#This Row],[Incentive_Customer]]=\"\",\"\",ROUND(Table_SummaryPI[[#This Row],[Incentive_Customer]]/$AM$401*'Customer Information'!$BC$21,2)),0)","v":""},{"$f":"IF(OR(Table_PI[[#This Row],[Annual kWh]]=\"\",Table_PI[[#This Row],[Annual kWh]]=0,ISTEXT(Table_PI[[#This Row],[Annual kWh]])),\"\",Table_PI[[#This Row],[Annual kWh]])","v":""},{"$f":"IF(OR(Table_PI[[#This Row],[Peak kW]]=\"\",Table_PI[[#This Row],[Peak kW]]=0,ISTEXT(Table_PI[[#This Row],[Peak kW]])),\"\",Table_PI[[#This Row],[Peak kW]])","v":""},{"$f":"IF(Table_SummaryPI[[#This Row],[Line No.]]<>\"\",IF(AND(ISNUMBER(FIND(\"Chiller\",Table_SummaryPI[[#This Row],[P_MeasureOption1]],1)),Table_SummaryPI[[#This Row],[ProposedMeasureCategory]]=\"Air-Cooled (Water-Cooled Replacement)\"),$BD$29*Table_SummaryPI[[#This Row],[Size]]*Table_SummaryPI[[#This Row],[Quantity]]*Table_SummaryPI[[#This Row],[EFLHCooling]],\nIF(ISNUMBER(FIND(\"Dishwasher\",Table_SummaryPI[[#This Row],[ProposedMeasureCategory]],1)),$BH$29*Table_SummaryPI[[#This Row],[Quantity]],\nIF(ISNUMBER(FIND(\"Ice Maker\",Table_SummaryPI[[#This Row],[ProposedMeasureCategory]],1)),$BD$31*Table_SummaryPI[[#This Row],[Quantity]],\nIF(ISNUMBER(FIND(\"Spray Valve\",Table_SummaryPI[[#This Row],[ProposedMeasureCategory]],1)),$BH$31*Table_SummaryPI[[#This Row],[Quantity]],\n0)))),\"\")","v":""},{"$f":"IF(OR(Table_PI[[#This Row],[Hide: Electrification kWh]]=\"\",Table_PI[[#This Row],[Hide: Electrification kWh]]=0,ISTEXT(Table_PI[[#This Row],[Hide: Electrification kWh]])),\"\",Table_PI[[#This Row],[Hide: Electrification kWh]])","v":""},{"$f":"IF(OR(Table_PI[[#This Row],[Hide: Electrification GHG]]=\"\",Table_PI[[#This Row],[Hide: Electrification GHG]]=0,ISTEXT(Table_PI[[#This Row],[Hide: Electrification GHG]])),\"\",Table_PI[[#This Row],[Hide: Electrification GHG]])","v":""},{"$f":"IFERROR(IF(Table_SummaryPI[[#This Row],[kWhSavings]]=\"\",\"\",$BH$9*Table_SummaryPI[[#This Row],[kWhSavings]]),0)","v":""},{"$f":"IFERROR(IF(Table_SummaryPI[[#This Row],[kWhSavings]]=\"\",\"\",$BH$14*Table_SummaryPI[[#This Row],[kWhSavings]]),0)","v":""},{"$f":"IFERROR(IF(Table_SummaryPI[[#This Row],[kWhSavings]]=\"\",\"\",$BH$18*Table_SummaryPI[[#This Row],[kWhSavings]]),0)","v":""},{"$f":"IFERROR(IF(Table_SummaryPI[[#This Row],[kWhSavings]]=\"\",\"\",$BH$22*Table_SummaryPI[[#This Row],[kWhSavings]]),0)","v":""}]
[{"$f":"Table_PI[[#This Row],[Line No.]]","v":""},{"$f":"IF(Table_SummaryPI[[#This Row],[MeasureName]]<>\"\",NOT(ISTEXT(Table_PI[[#This Row],[Rebate]])),\"\")","v":""},{"$f":"IF(Table_SummaryPI[[#This Row],[MeassureCategory]]<>\"\",CONCATENATE(Table_SummaryPI[[#This Row],[MeassureCategory]],  \" - \", Table_SummaryPI[[#This Row],[ProposedMeasureCategory]],  \" - \", TEXT(Table_SummaryPI[[#This Row],[Size]],\"#,##0.00\"),\" \",Table_SummaryPI[[#This Row],[SizeUnit]]),\"\")","v":""},{"$f":"SUBSTITUTE(Table_PI[[#This Row],[Measure]],\"     \",\"\",1)","v":""},{"$f":"IF(Table_PI[[#This Row],[List 1]]<>\"\",Table_PI[[#This Row],[List 1]],\"\")","v":""},{"$f":"IF(Table_PI[[#This Row],[List 2]]<>\"\",Table_PI[[#This Row],[List 2]],\"\")","v":""},{"$f":"IF(Table_PI[[#This Row],[List 3]]<>\"\",Table_PI[[#This Row],[List 3]],\"\")","v":""},{"$f":"IF(Table_PI[[#This Row],[Manufacturer]]=\"\",\"\",Table_PI[[#This Row],[Manufacturer]])","v":""},{"$f":"IF(Table_PI[[#This Row],[Model Number]]=\"\",\"\",Table_PI[[#This Row],[Model Number]])","v":""},{"$f":"IF(Table_PI[[#This Row],[Serial Number(s)]]=\"\",\"\",Table_PI[[#This Row],[Serial Number(s)]])","v":""},null,{"$f":"IF(Table_PI[[#This Row],[Size]]=\"\",\"\",Table_PI[[#This Row],[Size]])","v":""},null,null,{"$f":"IF(Table_PI[[#This Row],[Input 1]]<>\"\",Table_PI[[#This Row],[Input 1]],\"\")","v":""},null,null,{"$f":"IF(Table_PI[[#This Row],[Input 2]]<>\"\",Table_PI[[#This Row],[Input 2]],\"\")","v":""},null,null,{"$f":"IF(Table_PI[[#This Row],[Input 3]]<>\"\",Table_PI[[#This Row],[Input 3]],\"\")","v":""},null,null,{"$f":"IF(Table_PI[[#This Row],[Input 4]]<>\"\",Table_PI[[#This Row],[Input 4]],\"\")","v":""},null,null,{"$f":"IF(Table_PI[[#This Row],[Input 4]]<>\"\",Table_PI[[#This Row],[Input 4]],\"\")","v":""},null,null,{"$f":"IF(Table_PI[[#This Row],[Input 4]]<>\"\",Table_PI[[#This Row],[Input 4]],\"\")","v":""},{"$f":"IF(Table_PI[[#This Row],[Quantity]]=\"\",\"\",Table_PI[[#This Row],[Quantity]])","v":""},{"$f":"IF(Table_PI[[#This Row],[Notes]]=\"\",\"\",Table_PI[[#This Row],[Notes]])","v":""},{"$f":"IF(OR(Table_PI[[#This Row],[Hide: Baseline kWh]]=\"\",Table_PI[[#This Row],[Hide: Baseline kWh]]=0,ISTEXT(Table_PI[[#This Row],[Hide: Baseline kWh]])),\"\",Table_PI[[#This Row],[Hide: Baseline kWh]])","v":""},{"$f":"IF(OR(Table_PI[[#This Row],[Hide: Baseline kW]]=\"\",Table_PI[[#This Row],[Hide: Baseline kW]]=0,ISTEXT(Table_PI[[#This Row],[Hide: Baseline kW]])),\"\",Table_PI[[#This Row],[Hide: Baseline kW]])","v":""},{"$f":"IF(OR(Table_PI[[#This Row],[Hide: Proposed kWh]]=\"\",Table_PI[[#This Row],[Hide: Proposed kWh]]=0,ISTEXT(Table_PI[[#This Row],[Hide: Proposed kWh]])),\"\",Table_PI[[#This Row],[Hide: Proposed kWh]])","v":""},{"$f":"IF(OR(Table_PI[[#This Row],[Hide: Proposed kW]]=\"\",Table_PI[[#This Row],[Hide: Proposed kW]]=0,ISTEXT(Table_PI[[#This Row],[Hide: Proposed kW]])),\"\",Table_PI[[#This Row],[Hide: Proposed kW]])","v":""},null,null,{"$f":"IF(OR(Table_PI[[#This Row],[Hide: Rebate]]=\"\",Table_PI[[#This Row],[Hide: Rebate]]=0,ISTEXT(Table_PI[[#This Row],[Hide: Rebate]])),\"\",Table_PI[[#This Row],[Hide: Rebate]])","v":""},null,{"$f":"IF(OR(Table_PI[[#This Row],[Hide: Incremental Cost]]=\"\",Table_PI[[#This Row],[Hide: Incremental Cost]]=0,ISTEXT(Table_PI[[#This Row],[Hide: Incremental Cost]])),\"\",Table_PI[[#This Row],[Hide: Incremental Cost]])","v":""},{"$f":"IFERROR(IF(Table_SummaryPI[[#This Row],[Incentive_Customer]]=\"\",\"\",ROUND(Table_SummaryPI[[#This Row],[Incentive_Customer]]/$AM$401*'Customer Information'!$BC$21,2)),0)","v":""},{"$f":"IF(OR(Table_PI[[#This Row],[Annual kWh]]=\"\",Table_PI[[#This Row],[Annual kWh]]=0,ISTEXT(Table_PI[[#This Row],[Annual kWh]])),\"\",Table_PI[[#This Row],[Annual kWh]])","v":""},{"$f":"IF(OR(Table_PI[[#This Row],[Peak kW]]=\"\",Table_PI[[#This Row],[Peak kW]]=0,ISTEXT(Table_PI[[#This Row],[Peak kW]])),\"\",Table_PI[[#This Row],[Peak kW]])","v":""},{"$f":"IF(Table_SummaryPI[[#This Row],[Line No.]]<>\"\",IF(AND(ISNUMBER(FIND(\"Chiller\",Table_SummaryPI[[#This Row],[P_MeasureOption1]],1)),Table_SummaryPI[[#This Row],[ProposedMeasureCategory]]=\"Air-Cooled (Water-Cooled Replacement)\"),$BD$29*Table_SummaryPI[[#This Row],[Size]]*Table_SummaryPI[[#This Row],[Quantity]]*Table_SummaryPI[[#This Row],[EFLHCooling]],\nIF(ISNUMBER(FIND(\"Dishwasher\",Table_SummaryPI[[#This Row],[ProposedMeasureCategory]],1)),$BH$29*Table_SummaryPI[[#This Row],[Quantity]],\nIF(ISNUMBER(FIND(\"Ice Maker\",Table_SummaryPI[[#This Row],[ProposedMeasureCategory]],1)),$BD$31*Table_SummaryPI[[#This Row],[Quantity]],\nIF(ISNUMBER(FIND(\"Spray Valve\",Table_SummaryPI[[#This Row],[ProposedMeasureCategory]],1)),$BH$31*Table_SummaryPI[[#This Row],[Quantity]],\n0)))),\"\")","v":""},{"$f":"IF(OR(Table_PI[[#This Row],[Hide: Electrification kWh]]=\"\",Table_PI[[#This Row],[Hide: Electrification kWh]]=0,ISTEXT(Table_PI[[#This Row],[Hide: Electrification kWh]])),\"\",Table_PI[[#This Row],[Hide: Electrification kWh]])","v":""},{"$f":"IF(OR(Table_PI[[#This Row],[Hide: Electrification GHG]]=\"\",Table_PI[[#This Row],[Hide: Electrification GHG]]=0,ISTEXT(Table_PI[[#This Row],[Hide: Electrification GHG]])),\"\",Table_PI[[#This Row],[Hide: Electrification GHG]])","v":""},{"$f":"IFERROR(IF(Table_SummaryPI[[#This Row],[kWhSavings]]=\"\",\"\",$BH$9*Table_SummaryPI[[#This Row],[kWhSavings]]),0)","v":""},{"$f":"IFERROR(IF(Table_SummaryPI[[#This Row],[kWhSavings]]=\"\",\"\",$BH$14*Table_SummaryPI[[#This Row],[kWhSavings]]),0)","v":""},{"$f":"IFERROR(IF(Table_SummaryPI[[#This Row],[kWhSavings]]=\"\",\"\",$BH$18*Table_SummaryPI[[#This Row],[kWhSavings]]),0)","v":""},{"$f":"IFERROR(IF(Table_SummaryPI[[#This Row],[kWhSavings]]=\"\",\"\",$BH$22*Table_SummaryPI[[#This Row],[kWhSavings]]),0)","v":""}]
[{"$f":"Table_PI[[#This Row],[Line No.]]","v":""},{"$f":"IF(Table_SummaryPI[[#This Row],[MeasureName]]<>\"\",NOT(ISTEXT(Table_PI[[#This Row],[Rebate]])),\"\")","v":""},{"$f":"IF(Table_SummaryPI[[#This Row],[MeassureCategory]]<>\"\",CONCATENATE(Table_SummaryPI[[#This Row],[MeassureCategory]],  \" - \", Table_SummaryPI[[#This Row],[ProposedMeasureCategory]],  \" - \", TEXT(Table_SummaryPI[[#This Row],[Size]],\"#,##0.00\"),\" \",Table_SummaryPI[[#This Row],[SizeUnit]]),\"\")","v":""},{"$f":"SUBSTITUTE(Table_PI[[#This Row],[Measure]],\"     \",\"\",1)","v":""},{"$f":"IF(Table_PI[[#This Row],[List 1]]<>\"\",Table_PI[[#This Row],[List 1]],\"\")","v":""},{"$f":"IF(Table_PI[[#This Row],[List 2]]<>\"\",Table_PI[[#This Row],[List 2]],\"\")","v":""},{"$f":"IF(Table_PI[[#This Row],[List 3]]<>\"\",Table_PI[[#This Row],[List 3]],\"\")","v":""},{"$f":"IF(Table_PI[[#This Row],[Manufacturer]]=\"\",\"\",Table_PI[[#This Row],[Manufacturer]])","v":""},{"$f":"IF(Table_PI[[#This Row],[Model Number]]=\"\",\"\",Table_PI[[#This Row],[Model Number]])","v":""},{"$f":"IF(Table_PI[[#This Row],[Serial Number(s)]]=\"\",\"\",Table_PI[[#This Row],[Serial Number(s)]])","v":""},null,{"$f":"IF(Table_PI[[#This Row],[Size]]=\"\",\"\",Table_PI[[#This Row],[Size]])","v":""},null,null,{"$f":"IF(Table_PI[[#This Row],[Input 1]]<>\"\",Table_PI[[#This Row],[Input 1]],\"\")","v":""},null,null,{"$f":"IF(Table_PI[[#This Row],[Input 2]]<>\"\",Table_PI[[#This Row],[Input 2]],\"\")","v":""},null,null,{"$f":"IF(Table_PI[[#This Row],[Input 3]]<>\"\",Table_PI[[#This Row],[Input 3]],\"\")","v":""},null,null,{"$f":"IF(Table_PI[[#This Row],[Input 4]]<>\"\",Table_PI[[#This Row],[Input 4]],\"\")","v":""},null,null,{"$f":"IF(Table_PI[[#This Row],[Input 4]]<>\"\",Table_PI[[#This Row],[Input 4]],\"\")","v":""},null,null,{"$f":"IF(Table_PI[[#This Row],[Input 4]]<>\"\",Table_PI[[#This Row],[Input 4]],\"\")","v":""},{"$f":"IF(Table_PI[[#This Row],[Quantity]]=\"\",\"\",Table_PI[[#This Row],[Quantity]])","v":""},{"$f":"IF(Table_PI[[#This Row],[Notes]]=\"\",\"\",Table_PI[[#This Row],[Notes]])","v":""},{"$f":"IF(OR(Table_PI[[#This Row],[Hide: Baseline kWh]]=\"\",Table_PI[[#This Row],[Hide: Baseline kWh]]=0,ISTEXT(Table_PI[[#This Row],[Hide: Baseline kWh]])),\"\",Table_PI[[#This Row],[Hide: Baseline kWh]])","v":""},{"$f":"IF(OR(Table_PI[[#This Row],[Hide: Baseline kW]]=\"\",Table_PI[[#This Row],[Hide: Baseline kW]]=0,ISTEXT(Table_PI[[#This Row],[Hide: Baseline kW]])),\"\",Table_PI[[#This Row],[Hide: Baseline kW]])","v":""},{"$f":"IF(OR(Table_PI[[#This Row],[Hide: Proposed kWh]]=\"\",Table_PI[[#This Row],[Hide: Proposed kWh]]=0,ISTEXT(Table_PI[[#This Row],[Hide: Proposed kWh]])),\"\",Table_PI[[#This Row],[Hide: Proposed kWh]])","v":""},{"$f":"IF(OR(Table_PI[[#This Row],[Hide: Proposed kW]]=\"\",Table_PI[[#This Row],[Hide: Proposed kW]]=0,ISTEXT(Table_PI[[#This Row],[Hide: Proposed kW]])),\"\",Table_PI[[#This Row],[Hide: Proposed kW]])","v":""},null,null,{"$f":"IF(OR(Table_PI[[#This Row],[Hide: Rebate]]=\"\",Table_PI[[#This Row],[Hide: Rebate]]=0,ISTEXT(Table_PI[[#This Row],[Hide: Rebate]])),\"\",Table_PI[[#This Row],[Hide: Rebate]])","v":""},null,{"$f":"IF(OR(Table_PI[[#This Row],[Hide: Incremental Cost]]=\"\",Table_PI[[#This Row],[Hide: Incremental Cost]]=0,ISTEXT(Table_PI[[#This Row],[Hide: Incremental Cost]])),\"\",Table_PI[[#This Row],[Hide: Incremental Cost]])","v":""},{"$f":"IFERROR(IF(Table_SummaryPI[[#This Row],[Incentive_Customer]]=\"\",\"\",ROUND(Table_SummaryPI[[#This Row],[Incentive_Customer]]/$AM$401*'Customer Information'!$BC$21,2)),0)","v":""},{"$f":"IF(OR(Table_PI[[#This Row],[Annual kWh]]=\"\",Table_PI[[#This Row],[Annual kWh]]=0,ISTEXT(Table_PI[[#This Row],[Annual kWh]])),\"\",Table_PI[[#This Row],[Annual kWh]])","v":""},{"$f":"IF(OR(Table_PI[[#This Row],[Peak kW]]=\"\",Table_PI[[#This Row],[Peak kW]]=0,ISTEXT(Table_PI[[#This Row],[Peak kW]])),\"\",Table_PI[[#This Row],[Peak kW]])","v":""},{"$f":"IF(Table_SummaryPI[[#This Row],[Line No.]]<>\"\",IF(AND(ISNUMBER(FIND(\"Chiller\",Table_SummaryPI[[#This Row],[P_MeasureOption1]],1)),Table_SummaryPI[[#This Row],[ProposedMeasureCategory]]=\"Air-Cooled (Water-Cooled Replacement)\"),$BD$29*Table_SummaryPI[[#This Row],[Size]]*Table_SummaryPI[[#This Row],[Quantity]]*Table_SummaryPI[[#This Row],[EFLHCooling]],\nIF(ISNUMBER(FIND(\"Dishwasher\",Table_SummaryPI[[#This Row],[ProposedMeasureCategory]],1)),$BH$29*Table_SummaryPI[[#This Row],[Quantity]],\nIF(ISNUMBER(FIND(\"Ice Maker\",Table_SummaryPI[[#This Row],[ProposedMeasureCategory]],1)),$BD$31*Table_SummaryPI[[#This Row],[Quantity]],\nIF(ISNUMBER(FIND(\"Spray Valve\",Table_SummaryPI[[#This Row],[ProposedMeasureCategory]],1)),$BH$31*Table_SummaryPI[[#This Row],[Quantity]],\n0)))),\"\")","v":""},{"$f":"IF(OR(Table_PI[[#This Row],[Hide: Electrification kWh]]=\"\",Table_PI[[#This Row],[Hide: Electrification kWh]]=0,ISTEXT(Table_PI[[#This Row],[Hide: Electrification kWh]])),\"\",Table_PI[[#This Row],[Hide: Electrification kWh]])","v":""},{"$f":"IF(OR(Table_PI[[#This Row],[Hide: Electrification GHG]]=\"\",Table_PI[[#This Row],[Hide: Electrification GHG]]=0,ISTEXT(Table_PI[[#This Row],[Hide: Electrification GHG]])),\"\",Table_PI[[#This Row],[Hide: Electrification GHG]])","v":""},{"$f":"IFERROR(IF(Table_SummaryPI[[#This Row],[kWhSavings]]=\"\",\"\",$BH$9*Table_SummaryPI[[#This Row],[kWhSavings]]),0)","v":""},{"$f":"IFERROR(IF(Table_SummaryPI[[#This Row],[kWhSavings]]=\"\",\"\",$BH$14*Table_SummaryPI[[#This Row],[kWhSavings]]),0)","v":""},{"$f":"IFERROR(IF(Table_SummaryPI[[#This Row],[kWhSavings]]=\"\",\"\",$BH$18*Table_SummaryPI[[#This Row],[kWhSavings]]),0)","v":""},{"$f":"IFERROR(IF(Table_SummaryPI[[#This Row],[kWhSavings]]=\"\",\"\",$BH$22*Table_SummaryPI[[#This Row],[kWhSavings]]),0)","v":""}]
[{"$f":"Table_PI[[#This Row],[Line No.]]","v":""},{"$f":"IF(Table_SummaryPI[[#This Row],[MeasureName]]<>\"\",NOT(ISTEXT(Table_PI[[#This Row],[Rebate]])),\"\")","v":""},{"$f":"IF(Table_SummaryPI[[#This Row],[MeassureCategory]]<>\"\",CONCATENATE(Table_SummaryPI[[#This Row],[MeassureCategory]],  \" - \", Table_SummaryPI[[#This Row],[ProposedMeasureCategory]],  \" - \", TEXT(Table_SummaryPI[[#This Row],[Size]],\"#,##0.00\"),\" \",Table_SummaryPI[[#This Row],[SizeUnit]]),\"\")","v":""},{"$f":"SUBSTITUTE(Table_PI[[#This Row],[Measure]],\"     \",\"\",1)","v":""},{"$f":"IF(Table_PI[[#This Row],[List 1]]<>\"\",Table_PI[[#This Row],[List 1]],\"\")","v":""},{"$f":"IF(Table_PI[[#This Row],[List 2]]<>\"\",Table_PI[[#This Row],[List 2]],\"\")","v":""},{"$f":"IF(Table_PI[[#This Row],[List 3]]<>\"\",Table_PI[[#This Row],[List 3]],\"\")","v":""},{"$f":"IF(Table_PI[[#This Row],[Manufacturer]]=\"\",\"\",Table_PI[[#This Row],[Manufacturer]])","v":""},{"$f":"IF(Table_PI[[#This Row],[Model Number]]=\"\",\"\",Table_PI[[#This Row],[Model Number]])","v":""},{"$f":"IF(Table_PI[[#This Row],[Serial Number(s)]]=\"\",\"\",Table_PI[[#This Row],[Serial Number(s)]])","v":""},null,{"$f":"IF(Table_PI[[#This Row],[Size]]=\"\",\"\",Table_PI[[#This Row],[Size]])","v":""},null,null,{"$f":"IF(Table_PI[[#This Row],[Input 1]]<>\"\",Table_PI[[#This Row],[Input 1]],\"\")","v":""},null,null,{"$f":"IF(Table_PI[[#This Row],[Input 2]]<>\"\",Table_PI[[#This Row],[Input 2]],\"\")","v":""},null,null,{"$f":"IF(Table_PI[[#This Row],[Input 3]]<>\"\",Table_PI[[#This Row],[Input 3]],\"\")","v":""},null,null,{"$f":"IF(Table_PI[[#This Row],[Input 4]]<>\"\",Table_PI[[#This Row],[Input 4]],\"\")","v":""},null,null,{"$f":"IF(Table_PI[[#This Row],[Input 4]]<>\"\",Table_PI[[#This Row],[Input 4]],\"\")","v":""},null,null,{"$f":"IF(Table_PI[[#This Row],[Input 4]]<>\"\",Table_PI[[#This Row],[Input 4]],\"\")","v":""},{"$f":"IF(Table_PI[[#This Row],[Quantity]]=\"\",\"\",Table_PI[[#This Row],[Quantity]])","v":""},{"$f":"IF(Table_PI[[#This Row],[Notes]]=\"\",\"\",Table_PI[[#This Row],[Notes]])","v":""},{"$f":"IF(OR(Table_PI[[#This Row],[Hide: Baseline kWh]]=\"\",Table_PI[[#This Row],[Hide: Baseline kWh]]=0,ISTEXT(Table_PI[[#This Row],[Hide: Baseline kWh]])),\"\",Table_PI[[#This Row],[Hide: Baseline kWh]])","v":""},{"$f":"IF(OR(Table_PI[[#This Row],[Hide: Baseline kW]]=\"\",Table_PI[[#This Row],[Hide: Baseline kW]]=0,ISTEXT(Table_PI[[#This Row],[Hide: Baseline kW]])),\"\",Table_PI[[#This Row],[Hide: Baseline kW]])","v":""},{"$f":"IF(OR(Table_PI[[#This Row],[Hide: Proposed kWh]]=\"\",Table_PI[[#This Row],[Hide: Proposed kWh]]=0,ISTEXT(Table_PI[[#This Row],[Hide: Proposed kWh]])),\"\",Table_PI[[#This Row],[Hide: Proposed kWh]])","v":""},{"$f":"IF(OR(Table_PI[[#This Row],[Hide: Proposed kW]]=\"\",Table_PI[[#This Row],[Hide: Proposed kW]]=0,ISTEXT(Table_PI[[#This Row],[Hide: Proposed kW]])),\"\",Table_PI[[#This Row],[Hide: Proposed kW]])","v":""},null,null,{"$f":"IF(OR(Table_PI[[#This Row],[Hide: Rebate]]=\"\",Table_PI[[#This Row],[Hide: Rebate]]=0,ISTEXT(Table_PI[[#This Row],[Hide: Rebate]])),\"\",Table_PI[[#This Row],[Hide: Rebate]])","v":""},null,{"$f":"IF(OR(Table_PI[[#This Row],[Hide: Incremental Cost]]=\"\",Table_PI[[#This Row],[Hide: Incremental Cost]]=0,ISTEXT(Table_PI[[#This Row],[Hide: Incremental Cost]])),\"\",Table_PI[[#This Row],[Hide: Incremental Cost]])","v":""},{"$f":"IFERROR(IF(Table_SummaryPI[[#This Row],[Incentive_Customer]]=\"\",\"\",ROUND(Table_SummaryPI[[#This Row],[Incentive_Customer]]/$AM$401*'Customer Information'!$BC$21,2)),0)","v":""},{"$f":"IF(OR(Table_PI[[#This Row],[Annual kWh]]=\"\",Table_PI[[#This Row],[Annual kWh]]=0,ISTEXT(Table_PI[[#This Row],[Annual kWh]])),\"\",Table_PI[[#This Row],[Annual kWh]])","v":""},{"$f":"IF(OR(Table_PI[[#This Row],[Peak kW]]=\"\",Table_PI[[#This Row],[Peak kW]]=0,ISTEXT(Table_PI[[#This Row],[Peak kW]])),\"\",Table_PI[[#This Row],[Peak kW]])","v":""},{"$f":"IF(Table_SummaryPI[[#This Row],[Line No.]]<>\"\",IF(AND(ISNUMBER(FIND(\"Chiller\",Table_SummaryPI[[#This Row],[P_MeasureOption1]],1)),Table_SummaryPI[[#This Row],[ProposedMeasureCategory]]=\"Air-Cooled (Water-Cooled Replacement)\"),$BD$29*Table_SummaryPI[[#This Row],[Size]]*Table_SummaryPI[[#This Row],[Quantity]]*Table_SummaryPI[[#This Row],[EFLHCooling]],\nIF(ISNUMBER(FIND(\"Dishwasher\",Table_SummaryPI[[#This Row],[ProposedMeasureCategory]],1)),$BH$29*Table_SummaryPI[[#This Row],[Quantity]],\nIF(ISNUMBER(FIND(\"Ice Maker\",Table_SummaryPI[[#This Row],[ProposedMeasureCategory]],1)),$BD$31*Table_SummaryPI[[#This Row],[Quantity]],\nIF(ISNUMBER(FIND(\"Spray Valve\",Table_SummaryPI[[#This Row],[ProposedMeasureCategory]],1)),$BH$31*Table_SummaryPI[[#This Row],[Quantity]],\n0)))),\"\")","v":""},{"$f":"IF(OR(Table_PI[[#This Row],[Hide: Electrification kWh]]=\"\",Table_PI[[#This Row],[Hide: Electrification kWh]]=0,ISTEXT(Table_PI[[#This Row],[Hide: Electrification kWh]])),\"\",Table_PI[[#This Row],[Hide: Electrification kWh]])","v":""},{"$f":"IF(OR(Table_PI[[#This Row],[Hide: Electrification GHG]]=\"\",Table_PI[[#This Row],[Hide: Electrification GHG]]=0,ISTEXT(Table_PI[[#This Row],[Hide: Electrification GHG]])),\"\",Table_PI[[#This Row],[Hide: Electrification GHG]])","v":""},{"$f":"IFERROR(IF(Table_SummaryPI[[#This Row],[kWhSavings]]=\"\",\"\",$BH$9*Table_SummaryPI[[#This Row],[kWhSavings]]),0)","v":""},{"$f":"IFERROR(IF(Table_SummaryPI[[#This Row],[kWhSavings]]=\"\",\"\",$BH$14*Table_SummaryPI[[#This Row],[kWhSavings]]),0)","v":""},{"$f":"IFERROR(IF(Table_SummaryPI[[#This Row],[kWhSavings]]=\"\",\"\",$BH$18*Table_SummaryPI[[#This Row],[kWhSavings]]),0)","v":""},{"$f":"IFERROR(IF(Table_SummaryPI[[#This Row],[kWhSavings]]=\"\",\"\",$BH$22*Table_SummaryPI[[#This Row],[kWhSavings]]),0)","v":""}]
[{"$f":"Table_PI[[#This Row],[Line No.]]","v":""},{"$f":"IF(Table_SummaryPI[[#This Row],[MeasureName]]<>\"\",NOT(ISTEXT(Table_PI[[#This Row],[Rebate]])),\"\")","v":""},{"$f":"IF(Table_SummaryPI[[#This Row],[MeassureCategory]]<>\"\",CONCATENATE(Table_SummaryPI[[#This Row],[MeassureCategory]],  \" - \", Table_SummaryPI[[#This Row],[ProposedMeasureCategory]],  \" - \", TEXT(Table_SummaryPI[[#This Row],[Size]],\"#,##0.00\"),\" \",Table_SummaryPI[[#This Row],[SizeUnit]]),\"\")","v":""},{"$f":"SUBSTITUTE(Table_PI[[#This Row],[Measure]],\"     \",\"\",1)","v":""},{"$f":"IF(Table_PI[[#This Row],[List 1]]<>\"\",Table_PI[[#This Row],[List 1]],\"\")","v":""},{"$f":"IF(Table_PI[[#This Row],[List 2]]<>\"\",Table_PI[[#This Row],[List 2]],\"\")","v":""},{"$f":"IF(Table_PI[[#This Row],[List 3]]<>\"\",Table_PI[[#This Row],[List 3]],\"\")","v":""},{"$f":"IF(Table_PI[[#This Row],[Manufacturer]]=\"\",\"\",Table_PI[[#This Row],[Manufacturer]])","v":""},{"$f":"IF(Table_PI[[#This Row],[Model Number]]=\"\",\"\",Table_PI[[#This Row],[Model Number]])","v":""},{"$f":"IF(Table_PI[[#This Row],[Serial Number(s)]]=\"\",\"\",Table_PI[[#This Row],[Serial Number(s)]])","v":""},null,{"$f":"IF(Table_PI[[#This Row],[Size]]=\"\",\"\",Table_PI[[#This Row],[Size]])","v":""},null,null,{"$f":"IF(Table_PI[[#This Row],[Input 1]]<>\"\",Table_PI[[#This Row],[Input 1]],\"\")","v":""},null,null,{"$f":"IF(Table_PI[[#This Row],[Input 2]]<>\"\",Table_PI[[#This Row],[Input 2]],\"\")","v":""},null,null,{"$f":"IF(Table_PI[[#This Row],[Input 3]]<>\"\",Table_PI[[#This Row],[Input 3]],\"\")","v":""},null,null,{"$f":"IF(Table_PI[[#This Row],[Input 4]]<>\"\",Table_PI[[#This Row],[Input 4]],\"\")","v":""},null,null,{"$f":"IF(Table_PI[[#This Row],[Input 4]]<>\"\",Table_PI[[#This Row],[Input 4]],\"\")","v":""},null,null,{"$f":"IF(Table_PI[[#This Row],[Input 4]]<>\"\",Table_PI[[#This Row],[Input 4]],\"\")","v":""},{"$f":"IF(Table_PI[[#This Row],[Quantity]]=\"\",\"\",Table_PI[[#This Row],[Quantity]])","v":""},{"$f":"IF(Table_PI[[#This Row],[Notes]]=\"\",\"\",Table_PI[[#This Row],[Notes]])","v":""},{"$f":"IF(OR(Table_PI[[#This Row],[Hide: Baseline kWh]]=\"\",Table_PI[[#This Row],[Hide: Baseline kWh]]=0,ISTEXT(Table_PI[[#This Row],[Hide: Baseline kWh]])),\"\",Table_PI[[#This Row],[Hide: Baseline kWh]])","v":""},{"$f":"IF(OR(Table_PI[[#This Row],[Hide: Baseline kW]]=\"\",Table_PI[[#This Row],[Hide: Baseline kW]]=0,ISTEXT(Table_PI[[#This Row],[Hide: Baseline kW]])),\"\",Table_PI[[#This Row],[Hide: Baseline kW]])","v":""},{"$f":"IF(OR(Table_PI[[#This Row],[Hide: Proposed kWh]]=\"\",Table_PI[[#This Row],[Hide: Proposed kWh]]=0,ISTEXT(Table_PI[[#This Row],[Hide: Proposed kWh]])),\"\",Table_PI[[#This Row],[Hide: Proposed kWh]])","v":""},{"$f":"IF(OR(Table_PI[[#This Row],[Hide: Proposed kW]]=\"\",Table_PI[[#This Row],[Hide: Proposed kW]]=0,ISTEXT(Table_PI[[#This Row],[Hide: Proposed kW]])),\"\",Table_PI[[#This Row],[Hide: Proposed kW]])","v":""},null,null,{"$f":"IF(OR(Table_PI[[#This Row],[Hide: Rebate]]=\"\",Table_PI[[#This Row],[Hide: Rebate]]=0,ISTEXT(Table_PI[[#This Row],[Hide: Rebate]])),\"\",Table_PI[[#This Row],[Hide: Rebate]])","v":""},null,{"$f":"IF(OR(Table_PI[[#This Row],[Hide: Incremental Cost]]=\"\",Table_PI[[#This Row],[Hide: Incremental Cost]]=0,ISTEXT(Table_PI[[#This Row],[Hide: Incremental Cost]])),\"\",Table_PI[[#This Row],[Hide: Incremental Cost]])","v":""},{"$f":"IFERROR(IF(Table_SummaryPI[[#This Row],[Incentive_Customer]]=\"\",\"\",ROUND(Table_SummaryPI[[#This Row],[Incentive_Customer]]/$AM$401*'Customer Information'!$BC$21,2)),0)","v":""},{"$f":"IF(OR(Table_PI[[#This Row],[Annual kWh]]=\"\",Table_PI[[#This Row],[Annual kWh]]=0,ISTEXT(Table_PI[[#This Row],[Annual kWh]])),\"\",Table_PI[[#This Row],[Annual kWh]])","v":""},{"$f":"IF(OR(Table_PI[[#This Row],[Peak kW]]=\"\",Table_PI[[#This Row],[Peak kW]]=0,ISTEXT(Table_PI[[#This Row],[Peak kW]])),\"\",Table_PI[[#This Row],[Peak kW]])","v":""},{"$f":"IF(Table_SummaryPI[[#This Row],[Line No.]]<>\"\",IF(AND(ISNUMBER(FIND(\"Chiller\",Table_SummaryPI[[#This Row],[P_MeasureOption1]],1)),Table_SummaryPI[[#This Row],[ProposedMeasureCategory]]=\"Air-Cooled (Water-Cooled Replacement)\"),$BD$29*Table_SummaryPI[[#This Row],[Size]]*Table_SummaryPI[[#This Row],[Quantity]]*Table_SummaryPI[[#This Row],[EFLHCooling]],\nIF(ISNUMBER(FIND(\"Dishwasher\",Table_SummaryPI[[#This Row],[ProposedMeasureCategory]],1)),$BH$29*Table_SummaryPI[[#This Row],[Quantity]],\nIF(ISNUMBER(FIND(\"Ice Maker\",Table_SummaryPI[[#This Row],[ProposedMeasureCategory]],1)),$BD$31*Table_SummaryPI[[#This Row],[Quantity]],\nIF(ISNUMBER(FIND(\"Spray Valve\",Table_SummaryPI[[#This Row],[ProposedMeasureCategory]],1)),$BH$31*Table_SummaryPI[[#This Row],[Quantity]],\n0)))),\"\")","v":""},{"$f":"IF(OR(Table_PI[[#This Row],[Hide: Electrification kWh]]=\"\",Table_PI[[#This Row],[Hide: Electrification kWh]]=0,ISTEXT(Table_PI[[#This Row],[Hide: Electrification kWh]])),\"\",Table_PI[[#This Row],[Hide: Electrification kWh]])","v":""},{"$f":"IF(OR(Table_PI[[#This Row],[Hide: Electrification GHG]]=\"\",Table_PI[[#This Row],[Hide: Electrification GHG]]=0,ISTEXT(Table_PI[[#This Row],[Hide: Electrification GHG]])),\"\",Table_PI[[#This Row],[Hide: Electrification GHG]])","v":""},{"$f":"IFERROR(IF(Table_SummaryPI[[#This Row],[kWhSavings]]=\"\",\"\",$BH$9*Table_SummaryPI[[#This Row],[kWhSavings]]),0)","v":""},{"$f":"IFERROR(IF(Table_SummaryPI[[#This Row],[kWhSavings]]=\"\",\"\",$BH$14*Table_SummaryPI[[#This Row],[kWhSavings]]),0)","v":""},{"$f":"IFERROR(IF(Table_SummaryPI[[#This Row],[kWhSavings]]=\"\",\"\",$BH$18*Table_SummaryPI[[#This Row],[kWhSavings]]),0)","v":""},{"$f":"IFERROR(IF(Table_SummaryPI[[#This Row],[kWhSavings]]=\"\",\"\",$BH$22*Table_SummaryPI[[#This Row],[kWhSavings]]),0)","v":""}]
[{"$f":"Table_PI[[#This Row],[Line No.]]","v":""},{"$f":"IF(Table_SummaryPI[[#This Row],[MeasureName]]<>\"\",NOT(ISTEXT(Table_PI[[#This Row],[Rebate]])),\"\")","v":""},{"$f":"IF(Table_SummaryPI[[#This Row],[MeassureCategory]]<>\"\",CONCATENATE(Table_SummaryPI[[#This Row],[MeassureCategory]],  \" - \", Table_SummaryPI[[#This Row],[ProposedMeasureCategory]],  \" - \", TEXT(Table_SummaryPI[[#This Row],[Size]],\"#,##0.00\"),\" \",Table_SummaryPI[[#This Row],[SizeUnit]]),\"\")","v":""},{"$f":"SUBSTITUTE(Table_PI[[#This Row],[Measure]],\"     \",\"\",1)","v":""},{"$f":"IF(Table_PI[[#This Row],[List 1]]<>\"\",Table_PI[[#This Row],[List 1]],\"\")","v":""},{"$f":"IF(Table_PI[[#This Row],[List 2]]<>\"\",Table_PI[[#This Row],[List 2]],\"\")","v":""},{"$f":"IF(Table_PI[[#This Row],[List 3]]<>\"\",Table_PI[[#This Row],[List 3]],\"\")","v":""},{"$f":"IF(Table_PI[[#This Row],[Manufacturer]]=\"\",\"\",Table_PI[[#This Row],[Manufacturer]])","v":""},{"$f":"IF(Table_PI[[#This Row],[Model Number]]=\"\",\"\",Table_PI[[#This Row],[Model Number]])","v":""},{"$f":"IF(Table_PI[[#This Row],[Serial Number(s)]]=\"\",\"\",Table_PI[[#This Row],[Serial Number(s)]])","v":""},null,{"$f":"IF(Table_PI[[#This Row],[Size]]=\"\",\"\",Table_PI[[#This Row],[Size]])","v":""},null,null,{"$f":"IF(Table_PI[[#This Row],[Input 1]]<>\"\",Table_PI[[#This Row],[Input 1]],\"\")","v":""},null,null,{"$f":"IF(Table_PI[[#This Row],[Input 2]]<>\"\",Table_PI[[#This Row],[Input 2]],\"\")","v":""},null,null,{"$f":"IF(Table_PI[[#This Row],[Input 3]]<>\"\",Table_PI[[#This Row],[Input 3]],\"\")","v":""},null,null,{"$f":"IF(Table_PI[[#This Row],[Input 4]]<>\"\",Table_PI[[#This Row],[Input 4]],\"\")","v":""},null,null,{"$f":"IF(Table_PI[[#This Row],[Input 4]]<>\"\",Table_PI[[#This Row],[Input 4]],\"\")","v":""},null,null,{"$f":"IF(Table_PI[[#This Row],[Input 4]]<>\"\",Table_PI[[#This Row],[Input 4]],\"\")","v":""},{"$f":"IF(Table_PI[[#This Row],[Quantity]]=\"\",\"\",Table_PI[[#This Row],[Quantity]])","v":""},{"$f":"IF(Table_PI[[#This Row],[Notes]]=\"\",\"\",Table_PI[[#This Row],[Notes]])","v":""},{"$f":"IF(OR(Table_PI[[#This Row],[Hide: Baseline kWh]]=\"\",Table_PI[[#This Row],[Hide: Baseline kWh]]=0,ISTEXT(Table_PI[[#This Row],[Hide: Baseline kWh]])),\"\",Table_PI[[#This Row],[Hide: Baseline kWh]])","v":""},{"$f":"IF(OR(Table_PI[[#This Row],[Hide: Baseline kW]]=\"\",Table_PI[[#This Row],[Hide: Baseline kW]]=0,ISTEXT(Table_PI[[#This Row],[Hide: Baseline kW]])),\"\",Table_PI[[#This Row],[Hide: Baseline kW]])","v":""},{"$f":"IF(OR(Table_PI[[#This Row],[Hide: Proposed kWh]]=\"\",Table_PI[[#This Row],[Hide: Proposed kWh]]=0,ISTEXT(Table_PI[[#This Row],[Hide: Proposed kWh]])),\"\",Table_PI[[#This Row],[Hide: Proposed kWh]])","v":""},{"$f":"IF(OR(Table_PI[[#This Row],[Hide: Proposed kW]]=\"\",Table_PI[[#This Row],[Hide: Proposed kW]]=0,ISTEXT(Table_PI[[#This Row],[Hide: Proposed kW]])),\"\",Table_PI[[#This Row],[Hide: Proposed kW]])","v":""},null,null,{"$f":"IF(OR(Table_PI[[#This Row],[Hide: Rebate]]=\"\",Table_PI[[#This Row],[Hide: Rebate]]=0,ISTEXT(Table_PI[[#This Row],[Hide: Rebate]])),\"\",Table_PI[[#This Row],[Hide: Rebate]])","v":""},null,{"$f":"IF(OR(Table_PI[[#This Row],[Hide: Incremental Cost]]=\"\",Table_PI[[#This Row],[Hide: Incremental Cost]]=0,ISTEXT(Table_PI[[#This Row],[Hide: Incremental Cost]])),\"\",Table_PI[[#This Row],[Hide: Incremental Cost]])","v":""},{"$f":"IFERROR(IF(Table_SummaryPI[[#This Row],[Incentive_Customer]]=\"\",\"\",ROUND(Table_SummaryPI[[#This Row],[Incentive_Customer]]/$AM$401*'Customer Information'!$BC$21,2)),0)","v":""},{"$f":"IF(OR(Table_PI[[#This Row],[Annual kWh]]=\"\",Table_PI[[#This Row],[Annual kWh]]=0,ISTEXT(Table_PI[[#This Row],[Annual kWh]])),\"\",Table_PI[[#This Row],[Annual kWh]])","v":""},{"$f":"IF(OR(Table_PI[[#This Row],[Peak kW]]=\"\",Table_PI[[#This Row],[Peak kW]]=0,ISTEXT(Table_PI[[#This Row],[Peak kW]])),\"\",Table_PI[[#This Row],[Peak kW]])","v":""},{"$f":"IF(Table_SummaryPI[[#This Row],[Line No.]]<>\"\",IF(AND(ISNUMBER(FIND(\"Chiller\",Table_SummaryPI[[#This Row],[P_MeasureOption1]],1)),Table_SummaryPI[[#This Row],[ProposedMeasureCategory]]=\"Air-Cooled (Water-Cooled Replacement)\"),$BD$29*Table_SummaryPI[[#This Row],[Size]]*Table_SummaryPI[[#This Row],[Quantity]]*Table_SummaryPI[[#This Row],[EFLHCooling]],\nIF(ISNUMBER(FIND(\"Dishwasher\",Table_SummaryPI[[#This Row],[ProposedMeasureCategory]],1)),$BH$29*Table_SummaryPI[[#This Row],[Quantity]],\nIF(ISNUMBER(FIND(\"Ice Maker\",Table_SummaryPI[[#This Row],[ProposedMeasureCategory]],1)),$BD$31*Table_SummaryPI[[#This Row],[Quantity]],\nIF(ISNUMBER(FIND(\"Spray Valve\",Table_SummaryPI[[#This Row],[ProposedMeasureCategory]],1)),$BH$31*Table_SummaryPI[[#This Row],[Quantity]],\n0)))),\"\")","v":""},{"$f":"IF(OR(Table_PI[[#This Row],[Hide: Electrification kWh]]=\"\",Table_PI[[#This Row],[Hide: Electrification kWh]]=0,ISTEXT(Table_PI[[#This Row],[Hide: Electrification kWh]])),\"\",Table_PI[[#This Row],[Hide: Electrification kWh]])","v":""},{"$f":"IF(OR(Table_PI[[#This Row],[Hide: Electrification GHG]]=\"\",Table_PI[[#This Row],[Hide: Electrification GHG]]=0,ISTEXT(Table_PI[[#This Row],[Hide: Electrification GHG]])),\"\",Table_PI[[#This Row],[Hide: Electrification GHG]])","v":""},{"$f":"IFERROR(IF(Table_SummaryPI[[#This Row],[kWhSavings]]=\"\",\"\",$BH$9*Table_SummaryPI[[#This Row],[kWhSavings]]),0)","v":""},{"$f":"IFERROR(IF(Table_SummaryPI[[#This Row],[kWhSavings]]=\"\",\"\",$BH$14*Table_SummaryPI[[#This Row],[kWhSavings]]),0)","v":""},{"$f":"IFERROR(IF(Table_SummaryPI[[#This Row],[kWhSavings]]=\"\",\"\",$BH$18*Table_SummaryPI[[#This Row],[kWhSavings]]),0)","v":""},{"$f":"IFERROR(IF(Table_SummaryPI[[#This Row],[kWhSavings]]=\"\",\"\",$BH$22*Table_SummaryPI[[#This Row],[kWhSavings]]),0)","v":""}]
[{"$f":"Table_PI[[#This Row],[Line No.]]","v":""},{"$f":"IF(Table_SummaryPI[[#This Row],[MeasureName]]<>\"\",NOT(ISTEXT(Table_PI[[#This Row],[Rebate]])),\"\")","v":""},{"$f":"IF(Table_SummaryPI[[#This Row],[MeassureCategory]]<>\"\",CONCATENATE(Table_SummaryPI[[#This Row],[MeassureCategory]],  \" - \", Table_SummaryPI[[#This Row],[ProposedMeasureCategory]],  \" - \", TEXT(Table_SummaryPI[[#This Row],[Size]],\"#,##0.00\"),\" \",Table_SummaryPI[[#This Row],[SizeUnit]]),\"\")","v":""},{"$f":"SUBSTITUTE(Table_PI[[#This Row],[Measure]],\"     \",\"\",1)","v":""},{"$f":"IF(Table_PI[[#This Row],[List 1]]<>\"\",Table_PI[[#This Row],[List 1]],\"\")","v":""},{"$f":"IF(Table_PI[[#This Row],[List 2]]<>\"\",Table_PI[[#This Row],[List 2]],\"\")","v":""},{"$f":"IF(Table_PI[[#This Row],[List 3]]<>\"\",Table_PI[[#This Row],[List 3]],\"\")","v":""},{"$f":"IF(Table_PI[[#This Row],[Manufacturer]]=\"\",\"\",Table_PI[[#This Row],[Manufacturer]])","v":""},{"$f":"IF(Table_PI[[#This Row],[Model Number]]=\"\",\"\",Table_PI[[#This Row],[Model Number]])","v":""},{"$f":"IF(Table_PI[[#This Row],[Serial Number(s)]]=\"\",\"\",Table_PI[[#This Row],[Serial Number(s)]])","v":""},null,{"$f":"IF(Table_PI[[#This Row],[Size]]=\"\",\"\",Table_PI[[#This Row],[Size]])","v":""},null,null,{"$f":"IF(Table_PI[[#This Row],[Input 1]]<>\"\",Table_PI[[#This Row],[Input 1]],\"\")","v":""},null,null,{"$f":"IF(Table_PI[[#This Row],[Input 2]]<>\"\",Table_PI[[#This Row],[Input 2]],\"\")","v":""},null,null,{"$f":"IF(Table_PI[[#This Row],[Input 3]]<>\"\",Table_PI[[#This Row],[Input 3]],\"\")","v":""},null,null,{"$f":"IF(Table_PI[[#This Row],[Input 4]]<>\"\",Table_PI[[#This Row],[Input 4]],\"\")","v":""},null,null,{"$f":"IF(Table_PI[[#This Row],[Input 4]]<>\"\",Table_PI[[#This Row],[Input 4]],\"\")","v":""},null,null,{"$f":"IF(Table_PI[[#This Row],[Input 4]]<>\"\",Table_PI[[#This Row],[Input 4]],\"\")","v":""},{"$f":"IF(Table_PI[[#This Row],[Quantity]]=\"\",\"\",Table_PI[[#This Row],[Quantity]])","v":""},{"$f":"IF(Table_PI[[#This Row],[Notes]]=\"\",\"\",Table_PI[[#This Row],[Notes]])","v":""},{"$f":"IF(OR(Table_PI[[#This Row],[Hide: Baseline kWh]]=\"\",Table_PI[[#This Row],[Hide: Baseline kWh]]=0,ISTEXT(Table_PI[[#This Row],[Hide: Baseline kWh]])),\"\",Table_PI[[#This Row],[Hide: Baseline kWh]])","v":""},{"$f":"IF(OR(Table_PI[[#This Row],[Hide: Baseline kW]]=\"\",Table_PI[[#This Row],[Hide: Baseline kW]]=0,ISTEXT(Table_PI[[#This Row],[Hide: Baseline kW]])),\"\",Table_PI[[#This Row],[Hide: Baseline kW]])","v":""},{"$f":"IF(OR(Table_PI[[#This Row],[Hide: Proposed kWh]]=\"\",Table_PI[[#This Row],[Hide: Proposed kWh]]=0,ISTEXT(Table_PI[[#This Row],[Hide: Proposed kWh]])),\"\",Table_PI[[#This Row],[Hide: Proposed kWh]])","v":""},{"$f":"IF(OR(Table_PI[[#This Row],[Hide: Proposed kW]]=\"\",Table_PI[[#This Row],[Hide: Proposed kW]]=0,ISTEXT(Table_PI[[#This Row],[Hide: Proposed kW]])),\"\",Table_PI[[#This Row],[Hide: Proposed kW]])","v":""},null,null,{"$f":"IF(OR(Table_PI[[#This Row],[Hide: Rebate]]=\"\",Table_PI[[#This Row],[Hide: Rebate]]=0,ISTEXT(Table_PI[[#This Row],[Hide: Rebate]])),\"\",Table_PI[[#This Row],[Hide: Rebate]])","v":""},null,{"$f":"IF(OR(Table_PI[[#This Row],[Hide: Incremental Cost]]=\"\",Table_PI[[#This Row],[Hide: Incremental Cost]]=0,ISTEXT(Table_PI[[#This Row],[Hide: Incremental Cost]])),\"\",Table_PI[[#This Row],[Hide: Incremental Cost]])","v":""},{"$f":"IFERROR(IF(Table_SummaryPI[[#This Row],[Incentive_Customer]]=\"\",\"\",ROUND(Table_SummaryPI[[#This Row],[Incentive_Customer]]/$AM$401*'Customer Information'!$BC$21,2)),0)","v":""},{"$f":"IF(OR(Table_PI[[#This Row],[Annual kWh]]=\"\",Table_PI[[#This Row],[Annual kWh]]=0,ISTEXT(Table_PI[[#This Row],[Annual kWh]])),\"\",Table_PI[[#This Row],[Annual kWh]])","v":""},{"$f":"IF(OR(Table_PI[[#This Row],[Peak kW]]=\"\",Table_PI[[#This Row],[Peak kW]]=0,ISTEXT(Table_PI[[#This Row],[Peak kW]])),\"\",Table_PI[[#This Row],[Peak kW]])","v":""},{"$f":"IF(Table_SummaryPI[[#This Row],[Line No.]]<>\"\",IF(AND(ISNUMBER(FIND(\"Chiller\",Table_SummaryPI[[#This Row],[P_MeasureOption1]],1)),Table_SummaryPI[[#This Row],[ProposedMeasureCategory]]=\"Air-Cooled (Water-Cooled Replacement)\"),$BD$29*Table_SummaryPI[[#This Row],[Size]]*Table_SummaryPI[[#This Row],[Quantity]]*Table_SummaryPI[[#This Row],[EFLHCooling]],\nIF(ISNUMBER(FIND(\"Dishwasher\",Table_SummaryPI[[#This Row],[ProposedMeasureCategory]],1)),$BH$29*Table_SummaryPI[[#This Row],[Quantity]],\nIF(ISNUMBER(FIND(\"Ice Maker\",Table_SummaryPI[[#This Row],[ProposedMeasureCategory]],1)),$BD$31*Table_SummaryPI[[#This Row],[Quantity]],\nIF(ISNUMBER(FIND(\"Spray Valve\",Table_SummaryPI[[#This Row],[ProposedMeasureCategory]],1)),$BH$31*Table_SummaryPI[[#This Row],[Quantity]],\n0)))),\"\")","v":""},{"$f":"IF(OR(Table_PI[[#This Row],[Hide: Electrification kWh]]=\"\",Table_PI[[#This Row],[Hide: Electrification kWh]]=0,ISTEXT(Table_PI[[#This Row],[Hide: Electrification kWh]])),\"\",Table_PI[[#This Row],[Hide: Electrification kWh]])","v":""},{"$f":"IF(OR(Table_PI[[#This Row],[Hide: Electrification GHG]]=\"\",Table_PI[[#This Row],[Hide: Electrification GHG]]=0,ISTEXT(Table_PI[[#This Row],[Hide: Electrification GHG]])),\"\",Table_PI[[#This Row],[Hide: Electrification GHG]])","v":""},{"$f":"IFERROR(IF(Table_SummaryPI[[#This Row],[kWhSavings]]=\"\",\"\",$BH$9*Table_SummaryPI[[#This Row],[kWhSavings]]),0)","v":""},{"$f":"IFERROR(IF(Table_SummaryPI[[#This Row],[kWhSavings]]=\"\",\"\",$BH$14*Table_SummaryPI[[#This Row],[kWhSavings]]),0)","v":""},{"$f":"IFERROR(IF(Table_SummaryPI[[#This Row],[kWhSavings]]=\"\",\"\",$BH$18*Table_SummaryPI[[#This Row],[kWhSavings]]),0)","v":""},{"$f":"IFERROR(IF(Table_SummaryPI[[#This Row],[kWhSavings]]=\"\",\"\",$BH$22*Table_SummaryPI[[#This Row],[kWhSavings]]),0)","v":""}]
[{"$f":"Table_PI[[#This Row],[Line No.]]","v":""},{"$f":"IF(Table_SummaryPI[[#This Row],[MeasureName]]<>\"\",NOT(ISTEXT(Table_PI[[#This Row],[Rebate]])),\"\")","v":""},{"$f":"IF(Table_SummaryPI[[#This Row],[MeassureCategory]]<>\"\",CONCATENATE(Table_SummaryPI[[#This Row],[MeassureCategory]],  \" - \", Table_SummaryPI[[#This Row],[ProposedMeasureCategory]],  \" - \", TEXT(Table_SummaryPI[[#This Row],[Size]],\"#,##0.00\"),\" \",Table_SummaryPI[[#This Row],[SizeUnit]]),\"\")","v":""},{"$f":"SUBSTITUTE(Table_PI[[#This Row],[Measure]],\"     \",\"\",1)","v":""},{"$f":"IF(Table_PI[[#This Row],[List 1]]<>\"\",Table_PI[[#This Row],[List 1]],\"\")","v":""},{"$f":"IF(Table_PI[[#This Row],[List 2]]<>\"\",Table_PI[[#This Row],[List 2]],\"\")","v":""},{"$f":"IF(Table_PI[[#This Row],[List 3]]<>\"\",Table_PI[[#This Row],[List 3]],\"\")","v":""},{"$f":"IF(Table_PI[[#This Row],[Manufacturer]]=\"\",\"\",Table_PI[[#This Row],[Manufacturer]])","v":""},{"$f":"IF(Table_PI[[#This Row],[Model Number]]=\"\",\"\",Table_PI[[#This Row],[Model Number]])","v":""},{"$f":"IF(Table_PI[[#This Row],[Serial Number(s)]]=\"\",\"\",Table_PI[[#This Row],[Serial Number(s)]])","v":""},null,{"$f":"IF(Table_PI[[#This Row],[Size]]=\"\",\"\",Table_PI[[#This Row],[Size]])","v":""},null,null,{"$f":"IF(Table_PI[[#This Row],[Input 1]]<>\"\",Table_PI[[#This Row],[Input 1]],\"\")","v":""},null,null,{"$f":"IF(Table_PI[[#This Row],[Input 2]]<>\"\",Table_PI[[#This Row],[Input 2]],\"\")","v":""},null,null,{"$f":"IF(Table_PI[[#This Row],[Input 3]]<>\"\",Table_PI[[#This Row],[Input 3]],\"\")","v":""},null,null,{"$f":"IF(Table_PI[[#This Row],[Input 4]]<>\"\",Table_PI[[#This Row],[Input 4]],\"\")","v":""},null,null,{"$f":"IF(Table_PI[[#This Row],[Input 4]]<>\"\",Table_PI[[#This Row],[Input 4]],\"\")","v":""},null,null,{"$f":"IF(Table_PI[[#This Row],[Input 4]]<>\"\",Table_PI[[#This Row],[Input 4]],\"\")","v":""},{"$f":"IF(Table_PI[[#This Row],[Quantity]]=\"\",\"\",Table_PI[[#This Row],[Quantity]])","v":""},{"$f":"IF(Table_PI[[#This Row],[Notes]]=\"\",\"\",Table_PI[[#This Row],[Notes]])","v":""},{"$f":"IF(OR(Table_PI[[#This Row],[Hide: Baseline kWh]]=\"\",Table_PI[[#This Row],[Hide: Baseline kWh]]=0,ISTEXT(Table_PI[[#This Row],[Hide: Baseline kWh]])),\"\",Table_PI[[#This Row],[Hide: Baseline kWh]])","v":""},{"$f":"IF(OR(Table_PI[[#This Row],[Hide: Baseline kW]]=\"\",Table_PI[[#This Row],[Hide: Baseline kW]]=0,ISTEXT(Table_PI[[#This Row],[Hide: Baseline kW]])),\"\",Table_PI[[#This Row],[Hide: Baseline kW]])","v":""},{"$f":"IF(OR(Table_PI[[#This Row],[Hide: Proposed kWh]]=\"\",Table_PI[[#This Row],[Hide: Proposed kWh]]=0,ISTEXT(Table_PI[[#This Row],[Hide: Proposed kWh]])),\"\",Table_PI[[#This Row],[Hide: Proposed kWh]])","v":""},{"$f":"IF(OR(Table_PI[[#This Row],[Hide: Proposed kW]]=\"\",Table_PI[[#This Row],[Hide: Proposed kW]]=0,ISTEXT(Table_PI[[#This Row],[Hide: Proposed kW]])),\"\",Table_PI[[#This Row],[Hide: Proposed kW]])","v":""},null,null,{"$f":"IF(OR(Table_PI[[#This Row],[Hide: Rebate]]=\"\",Table_PI[[#This Row],[Hide: Rebate]]=0,ISTEXT(Table_PI[[#This Row],[Hide: Rebate]])),\"\",Table_PI[[#This Row],[Hide: Rebate]])","v":""},null,{"$f":"IF(OR(Table_PI[[#This Row],[Hide: Incremental Cost]]=\"\",Table_PI[[#This Row],[Hide: Incremental Cost]]=0,ISTEXT(Table_PI[[#This Row],[Hide: Incremental Cost]])),\"\",Table_PI[[#This Row],[Hide: Incremental Cost]])","v":""},{"$f":"IFERROR(IF(Table_SummaryPI[[#This Row],[Incentive_Customer]]=\"\",\"\",ROUND(Table_SummaryPI[[#This Row],[Incentive_Customer]]/$AM$401*'Customer Information'!$BC$21,2)),0)","v":""},{"$f":"IF(OR(Table_PI[[#This Row],[Annual kWh]]=\"\",Table_PI[[#This Row],[Annual kWh]]=0,ISTEXT(Table_PI[[#This Row],[Annual kWh]])),\"\",Table_PI[[#This Row],[Annual kWh]])","v":""},{"$f":"IF(OR(Table_PI[[#This Row],[Peak kW]]=\"\",Table_PI[[#This Row],[Peak kW]]=0,ISTEXT(Table_PI[[#This Row],[Peak kW]])),\"\",Table_PI[[#This Row],[Peak kW]])","v":""},{"$f":"IF(Table_SummaryPI[[#This Row],[Line No.]]<>\"\",IF(AND(ISNUMBER(FIND(\"Chiller\",Table_SummaryPI[[#This Row],[P_MeasureOption1]],1)),Table_SummaryPI[[#This Row],[ProposedMeasureCategory]]=\"Air-Cooled (Water-Cooled Replacement)\"),$BD$29*Table_SummaryPI[[#This Row],[Size]]*Table_SummaryPI[[#This Row],[Quantity]]*Table_SummaryPI[[#This Row],[EFLHCooling]],\nIF(ISNUMBER(FIND(\"Dishwasher\",Table_SummaryPI[[#This Row],[ProposedMeasureCategory]],1)),$BH$29*Table_SummaryPI[[#This Row],[Quantity]],\nIF(ISNUMBER(FIND(\"Ice Maker\",Table_SummaryPI[[#This Row],[ProposedMeasureCategory]],1)),$BD$31*Table_SummaryPI[[#This Row],[Quantity]],\nIF(ISNUMBER(FIND(\"Spray Valve\",Table_SummaryPI[[#This Row],[ProposedMeasureCategory]],1)),$BH$31*Table_SummaryPI[[#This Row],[Quantity]],\n0)))),\"\")","v":""},{"$f":"IF(OR(Table_PI[[#This Row],[Hide: Electrification kWh]]=\"\",Table_PI[[#This Row],[Hide: Electrification kWh]]=0,ISTEXT(Table_PI[[#This Row],[Hide: Electrification kWh]])),\"\",Table_PI[[#This Row],[Hide: Electrification kWh]])","v":""},{"$f":"IF(OR(Table_PI[[#This Row],[Hide: Electrification GHG]]=\"\",Table_PI[[#This Row],[Hide: Electrification GHG]]=0,ISTEXT(Table_PI[[#This Row],[Hide: Electrification GHG]])),\"\",Table_PI[[#This Row],[Hide: Electrification GHG]])","v":""},{"$f":"IFERROR(IF(Table_SummaryPI[[#This Row],[kWhSavings]]=\"\",\"\",$BH$9*Table_SummaryPI[[#This Row],[kWhSavings]]),0)","v":""},{"$f":"IFERROR(IF(Table_SummaryPI[[#This Row],[kWhSavings]]=\"\",\"\",$BH$14*Table_SummaryPI[[#This Row],[kWhSavings]]),0)","v":""},{"$f":"IFERROR(IF(Table_SummaryPI[[#This Row],[kWhSavings]]=\"\",\"\",$BH$18*Table_SummaryPI[[#This Row],[kWhSavings]]),0)","v":""},{"$f":"IFERROR(IF(Table_SummaryPI[[#This Row],[kWhSavings]]=\"\",\"\",$BH$22*Table_SummaryPI[[#This Row],[kWhSavings]]),0)","v":""}]
[{"$f":"Table_PI[[#This Row],[Line No.]]","v":""},{"$f":"IF(Table_SummaryPI[[#This Row],[MeasureName]]<>\"\",NOT(ISTEXT(Table_PI[[#This Row],[Rebate]])),\"\")","v":""},{"$f":"IF(Table_SummaryPI[[#This Row],[MeassureCategory]]<>\"\",CONCATENATE(Table_SummaryPI[[#This Row],[MeassureCategory]],  \" - \", Table_SummaryPI[[#This Row],[ProposedMeasureCategory]],  \" - \", TEXT(Table_SummaryPI[[#This Row],[Size]],\"#,##0.00\"),\" \",Table_SummaryPI[[#This Row],[SizeUnit]]),\"\")","v":""},{"$f":"SUBSTITUTE(Table_PI[[#This Row],[Measure]],\"     \",\"\",1)","v":""},{"$f":"IF(Table_PI[[#This Row],[List 1]]<>\"\",Table_PI[[#This Row],[List 1]],\"\")","v":""},{"$f":"IF(Table_PI[[#This Row],[List 2]]<>\"\",Table_PI[[#This Row],[List 2]],\"\")","v":""},{"$f":"IF(Table_PI[[#This Row],[List 3]]<>\"\",Table_PI[[#This Row],[List 3]],\"\")","v":""},{"$f":"IF(Table_PI[[#This Row],[Manufacturer]]=\"\",\"\",Table_PI[[#This Row],[Manufacturer]])","v":""},{"$f":"IF(Table_PI[[#This Row],[Model Number]]=\"\",\"\",Table_PI[[#This Row],[Model Number]])","v":""},{"$f":"IF(Table_PI[[#This Row],[Serial Number(s)]]=\"\",\"\",Table_PI[[#This Row],[Serial Number(s)]])","v":""},null,{"$f":"IF(Table_PI[[#This Row],[Size]]=\"\",\"\",Table_PI[[#This Row],[Size]])","v":""},null,null,{"$f":"IF(Table_PI[[#This Row],[Input 1]]<>\"\",Table_PI[[#This Row],[Input 1]],\"\")","v":""},null,null,{"$f":"IF(Table_PI[[#This Row],[Input 2]]<>\"\",Table_PI[[#This Row],[Input 2]],\"\")","v":""},null,null,{"$f":"IF(Table_PI[[#This Row],[Input 3]]<>\"\",Table_PI[[#This Row],[Input 3]],\"\")","v":""},null,null,{"$f":"IF(Table_PI[[#This Row],[Input 4]]<>\"\",Table_PI[[#This Row],[Input 4]],\"\")","v":""},null,null,{"$f":"IF(Table_PI[[#This Row],[Input 4]]<>\"\",Table_PI[[#This Row],[Input 4]],\"\")","v":""},null,null,{"$f":"IF(Table_PI[[#This Row],[Input 4]]<>\"\",Table_PI[[#This Row],[Input 4]],\"\")","v":""},{"$f":"IF(Table_PI[[#This Row],[Quantity]]=\"\",\"\",Table_PI[[#This Row],[Quantity]])","v":""},{"$f":"IF(Table_PI[[#This Row],[Notes]]=\"\",\"\",Table_PI[[#This Row],[Notes]])","v":""},{"$f":"IF(OR(Table_PI[[#This Row],[Hide: Baseline kWh]]=\"\",Table_PI[[#This Row],[Hide: Baseline kWh]]=0,ISTEXT(Table_PI[[#This Row],[Hide: Baseline kWh]])),\"\",Table_PI[[#This Row],[Hide: Baseline kWh]])","v":""},{"$f":"IF(OR(Table_PI[[#This Row],[Hide: Baseline kW]]=\"\",Table_PI[[#This Row],[Hide: Baseline kW]]=0,ISTEXT(Table_PI[[#This Row],[Hide: Baseline kW]])),\"\",Table_PI[[#This Row],[Hide: Baseline kW]])","v":""},{"$f":"IF(OR(Table_PI[[#This Row],[Hide: Proposed kWh]]=\"\",Table_PI[[#This Row],[Hide: Proposed kWh]]=0,ISTEXT(Table_PI[[#This Row],[Hide: Proposed kWh]])),\"\",Table_PI[[#This Row],[Hide: Proposed kWh]])","v":""},{"$f":"IF(OR(Table_PI[[#This Row],[Hide: Proposed kW]]=\"\",Table_PI[[#This Row],[Hide: Proposed kW]]=0,ISTEXT(Table_PI[[#This Row],[Hide: Proposed kW]])),\"\",Table_PI[[#This Row],[Hide: Proposed kW]])","v":""},null,null,{"$f":"IF(OR(Table_PI[[#This Row],[Hide: Rebate]]=\"\",Table_PI[[#This Row],[Hide: Rebate]]=0,ISTEXT(Table_PI[[#This Row],[Hide: Rebate]])),\"\",Table_PI[[#This Row],[Hide: Rebate]])","v":""},null,{"$f":"IF(OR(Table_PI[[#This Row],[Hide: Incremental Cost]]=\"\",Table_PI[[#This Row],[Hide: Incremental Cost]]=0,ISTEXT(Table_PI[[#This Row],[Hide: Incremental Cost]])),\"\",Table_PI[[#This Row],[Hide: Incremental Cost]])","v":""},{"$f":"IFERROR(IF(Table_SummaryPI[[#This Row],[Incentive_Customer]]=\"\",\"\",ROUND(Table_SummaryPI[[#This Row],[Incentive_Customer]]/$AM$401*'Customer Information'!$BC$21,2)),0)","v":""},{"$f":"IF(OR(Table_PI[[#This Row],[Annual kWh]]=\"\",Table_PI[[#This Row],[Annual kWh]]=0,ISTEXT(Table_PI[[#This Row],[Annual kWh]])),\"\",Table_PI[[#This Row],[Annual kWh]])","v":""},{"$f":"IF(OR(Table_PI[[#This Row],[Peak kW]]=\"\",Table_PI[[#This Row],[Peak kW]]=0,ISTEXT(Table_PI[[#This Row],[Peak kW]])),\"\",Table_PI[[#This Row],[Peak kW]])","v":""},{"$f":"IF(Table_SummaryPI[[#This Row],[Line No.]]<>\"\",IF(AND(ISNUMBER(FIND(\"Chiller\",Table_SummaryPI[[#This Row],[P_MeasureOption1]],1)),Table_SummaryPI[[#This Row],[ProposedMeasureCategory]]=\"Air-Cooled (Water-Cooled Replacement)\"),$BD$29*Table_SummaryPI[[#This Row],[Size]]*Table_SummaryPI[[#This Row],[Quantity]]*Table_SummaryPI[[#This Row],[EFLHCooling]],\nIF(ISNUMBER(FIND(\"Dishwasher\",Table_SummaryPI[[#This Row],[ProposedMeasureCategory]],1)),$BH$29*Table_SummaryPI[[#This Row],[Quantity]],\nIF(ISNUMBER(FIND(\"Ice Maker\",Table_SummaryPI[[#This Row],[ProposedMeasureCategory]],1)),$BD$31*Table_SummaryPI[[#This Row],[Quantity]],\nIF(ISNUMBER(FIND(\"Spray Valve\",Table_SummaryPI[[#This Row],[ProposedMeasureCategory]],1)),$BH$31*Table_SummaryPI[[#This Row],[Quantity]],\n0)))),\"\")","v":""},{"$f":"IF(OR(Table_PI[[#This Row],[Hide: Electrification kWh]]=\"\",Table_PI[[#This Row],[Hide: Electrification kWh]]=0,ISTEXT(Table_PI[[#This Row],[Hide: Electrification kWh]])),\"\",Table_PI[[#This Row],[Hide: Electrification kWh]])","v":""},{"$f":"IF(OR(Table_PI[[#This Row],[Hide: Electrification GHG]]=\"\",Table_PI[[#This Row],[Hide: Electrification GHG]]=0,ISTEXT(Table_PI[[#This Row],[Hide: Electrification GHG]])),\"\",Table_PI[[#This Row],[Hide: Electrification GHG]])","v":""},{"$f":"IFERROR(IF(Table_SummaryPI[[#This Row],[kWhSavings]]=\"\",\"\",$BH$9*Table_SummaryPI[[#This Row],[kWhSavings]]),0)","v":""},{"$f":"IFERROR(IF(Table_SummaryPI[[#This Row],[kWhSavings]]=\"\",\"\",$BH$14*Table_SummaryPI[[#This Row],[kWhSavings]]),0)","v":""},{"$f":"IFERROR(IF(Table_SummaryPI[[#This Row],[kWhSavings]]=\"\",\"\",$BH$18*Table_SummaryPI[[#This Row],[kWhSavings]]),0)","v":""},{"$f":"IFERROR(IF(Table_SummaryPI[[#This Row],[kWhSavings]]=\"\",\"\",$BH$22*Table_SummaryPI[[#This Row],[kWhSavings]]),0)","v":""}]
[{"$f":"Table_PI[[#This Row],[Line No.]]","v":""},{"$f":"IF(Table_SummaryPI[[#This Row],[MeasureName]]<>\"\",NOT(ISTEXT(Table_PI[[#This Row],[Rebate]])),\"\")","v":""},{"$f":"IF(Table_SummaryPI[[#This Row],[MeassureCategory]]<>\"\",CONCATENATE(Table_SummaryPI[[#This Row],[MeassureCategory]],  \" - \", Table_SummaryPI[[#This Row],[ProposedMeasureCategory]],  \" - \", TEXT(Table_SummaryPI[[#This Row],[Size]],\"#,##0.00\"),\" \",Table_SummaryPI[[#This Row],[SizeUnit]]),\"\")","v":""},{"$f":"SUBSTITUTE(Table_PI[[#This Row],[Measure]],\"     \",\"\",1)","v":""},{"$f":"IF(Table_PI[[#This Row],[List 1]]<>\"\",Table_PI[[#This Row],[List 1]],\"\")","v":""},{"$f":"IF(Table_PI[[#This Row],[List 2]]<>\"\",Table_PI[[#This Row],[List 2]],\"\")","v":""},{"$f":"IF(Table_PI[[#This Row],[List 3]]<>\"\",Table_PI[[#This Row],[List 3]],\"\")","v":""},{"$f":"IF(Table_PI[[#This Row],[Manufacturer]]=\"\",\"\",Table_PI[[#This Row],[Manufacturer]])","v":""},{"$f":"IF(Table_PI[[#This Row],[Model Number]]=\"\",\"\",Table_PI[[#This Row],[Model Number]])","v":""},{"$f":"IF(Table_PI[[#This Row],[Serial Number(s)]]=\"\",\"\",Table_PI[[#This Row],[Serial Number(s)]])","v":""},null,{"$f":"IF(Table_PI[[#This Row],[Size]]=\"\",\"\",Table_PI[[#This Row],[Size]])","v":""},null,null,{"$f":"IF(Table_PI[[#This Row],[Input 1]]<>\"\",Table_PI[[#This Row],[Input 1]],\"\")","v":""},null,null,{"$f":"IF(Table_PI[[#This Row],[Input 2]]<>\"\",Table_PI[[#This Row],[Input 2]],\"\")","v":""},null,null,{"$f":"IF(Table_PI[[#This Row],[Input 3]]<>\"\",Table_PI[[#This Row],[Input 3]],\"\")","v":""},null,null,{"$f":"IF(Table_PI[[#This Row],[Input 4]]<>\"\",Table_PI[[#This Row],[Input 4]],\"\")","v":""},null,null,{"$f":"IF(Table_PI[[#This Row],[Input 4]]<>\"\",Table_PI[[#This Row],[Input 4]],\"\")","v":""},null,null,{"$f":"IF(Table_PI[[#This Row],[Input 4]]<>\"\",Table_PI[[#This Row],[Input 4]],\"\")","v":""},{"$f":"IF(Table_PI[[#This Row],[Quantity]]=\"\",\"\",Table_PI[[#This Row],[Quantity]])","v":""},{"$f":"IF(Table_PI[[#This Row],[Notes]]=\"\",\"\",Table_PI[[#This Row],[Notes]])","v":""},{"$f":"IF(OR(Table_PI[[#This Row],[Hide: Baseline kWh]]=\"\",Table_PI[[#This Row],[Hide: Baseline kWh]]=0,ISTEXT(Table_PI[[#This Row],[Hide: Baseline kWh]])),\"\",Table_PI[[#This Row],[Hide: Baseline kWh]])","v":""},{"$f":"IF(OR(Table_PI[[#This Row],[Hide: Baseline kW]]=\"\",Table_PI[[#This Row],[Hide: Baseline kW]]=0,ISTEXT(Table_PI[[#This Row],[Hide: Baseline kW]])),\"\",Table_PI[[#This Row],[Hide: Baseline kW]])","v":""},{"$f":"IF(OR(Table_PI[[#This Row],[Hide: Proposed kWh]]=\"\",Table_PI[[#This Row],[Hide: Proposed kWh]]=0,ISTEXT(Table_PI[[#This Row],[Hide: Proposed kWh]])),\"\",Table_PI[[#This Row],[Hide: Proposed kWh]])","v":""},{"$f":"IF(OR(Table_PI[[#This Row],[Hide: Proposed kW]]=\"\",Table_PI[[#This Row],[Hide: Proposed kW]]=0,ISTEXT(Table_PI[[#This Row],[Hide: Proposed kW]])),\"\",Table_PI[[#This Row],[Hide: Proposed kW]])","v":""},null,null,{"$f":"IF(OR(Table_PI[[#This Row],[Hide: Rebate]]=\"\",Table_PI[[#This Row],[Hide: Rebate]]=0,ISTEXT(Table_PI[[#This Row],[Hide: Rebate]])),\"\",Table_PI[[#This Row],[Hide: Rebate]])","v":""},null,{"$f":"IF(OR(Table_PI[[#This Row],[Hide: Incremental Cost]]=\"\",Table_PI[[#This Row],[Hide: Incremental Cost]]=0,ISTEXT(Table_PI[[#This Row],[Hide: Incremental Cost]])),\"\",Table_PI[[#This Row],[Hide: Incremental Cost]])","v":""},{"$f":"IFERROR(IF(Table_SummaryPI[[#This Row],[Incentive_Customer]]=\"\",\"\",ROUND(Table_SummaryPI[[#This Row],[Incentive_Customer]]/$AM$401*'Customer Information'!$BC$21,2)),0)","v":""},{"$f":"IF(OR(Table_PI[[#This Row],[Annual kWh]]=\"\",Table_PI[[#This Row],[Annual kWh]]=0,ISTEXT(Table_PI[[#This Row],[Annual kWh]])),\"\",Table_PI[[#This Row],[Annual kWh]])","v":""},{"$f":"IF(OR(Table_PI[[#This Row],[Peak kW]]=\"\",Table_PI[[#This Row],[Peak kW]]=0,ISTEXT(Table_PI[[#This Row],[Peak kW]])),\"\",Table_PI[[#This Row],[Peak kW]])","v":""},{"$f":"IF(Table_SummaryPI[[#This Row],[Line No.]]<>\"\",IF(AND(ISNUMBER(FIND(\"Chiller\",Table_SummaryPI[[#This Row],[P_MeasureOption1]],1)),Table_SummaryPI[[#This Row],[ProposedMeasureCategory]]=\"Air-Cooled (Water-Cooled Replacement)\"),$BD$29*Table_SummaryPI[[#This Row],[Size]]*Table_SummaryPI[[#This Row],[Quantity]]*Table_SummaryPI[[#This Row],[EFLHCooling]],\nIF(ISNUMBER(FIND(\"Dishwasher\",Table_SummaryPI[[#This Row],[ProposedMeasureCategory]],1)),$BH$29*Table_SummaryPI[[#This Row],[Quantity]],\nIF(ISNUMBER(FIND(\"Ice Maker\",Table_SummaryPI[[#This Row],[ProposedMeasureCategory]],1)),$BD$31*Table_SummaryPI[[#This Row],[Quantity]],\nIF(ISNUMBER(FIND(\"Spray Valve\",Table_SummaryPI[[#This Row],[ProposedMeasureCategory]],1)),$BH$31*Table_SummaryPI[[#This Row],[Quantity]],\n0)))),\"\")","v":""},{"$f":"IF(OR(Table_PI[[#This Row],[Hide: Electrification kWh]]=\"\",Table_PI[[#This Row],[Hide: Electrification kWh]]=0,ISTEXT(Table_PI[[#This Row],[Hide: Electrification kWh]])),\"\",Table_PI[[#This Row],[Hide: Electrification kWh]])","v":""},{"$f":"IF(OR(Table_PI[[#This Row],[Hide: Electrification GHG]]=\"\",Table_PI[[#This Row],[Hide: Electrification GHG]]=0,ISTEXT(Table_PI[[#This Row],[Hide: Electrification GHG]])),\"\",Table_PI[[#This Row],[Hide: Electrification GHG]])","v":""},{"$f":"IFERROR(IF(Table_SummaryPI[[#This Row],[kWhSavings]]=\"\",\"\",$BH$9*Table_SummaryPI[[#This Row],[kWhSavings]]),0)","v":""},{"$f":"IFERROR(IF(Table_SummaryPI[[#This Row],[kWhSavings]]=\"\",\"\",$BH$14*Table_SummaryPI[[#This Row],[kWhSavings]]),0)","v":""},{"$f":"IFERROR(IF(Table_SummaryPI[[#This Row],[kWhSavings]]=\"\",\"\",$BH$18*Table_SummaryPI[[#This Row],[kWhSavings]]),0)","v":""},{"$f":"IFERROR(IF(Table_SummaryPI[[#This Row],[kWhSavings]]=\"\",\"\",$BH$22*Table_SummaryPI[[#This Row],[kWhSavings]]),0)","v":""}]
[{"$f":"Table_PI[[#This Row],[Line No.]]","v":""},{"$f":"IF(Table_SummaryPI[[#This Row],[MeasureName]]<>\"\",NOT(ISTEXT(Table_PI[[#This Row],[Rebate]])),\"\")","v":""},{"$f":"IF(Table_SummaryPI[[#This Row],[MeassureCategory]]<>\"\",CONCATENATE(Table_SummaryPI[[#This Row],[MeassureCategory]],  \" - \", Table_SummaryPI[[#This Row],[ProposedMeasureCategory]],  \" - \", TEXT(Table_SummaryPI[[#This Row],[Size]],\"#,##0.00\"),\" \",Table_SummaryPI[[#This Row],[SizeUnit]]),\"\")","v":""},{"$f":"SUBSTITUTE(Table_PI[[#This Row],[Measure]],\"     \",\"\",1)","v":""},{"$f":"IF(Table_PI[[#This Row],[List 1]]<>\"\",Table_PI[[#This Row],[List 1]],\"\")","v":""},{"$f":"IF(Table_PI[[#This Row],[List 2]]<>\"\",Table_PI[[#This Row],[List 2]],\"\")","v":""},{"$f":"IF(Table_PI[[#This Row],[List 3]]<>\"\",Table_PI[[#This Row],[List 3]],\"\")","v":""},{"$f":"IF(Table_PI[[#This Row],[Manufacturer]]=\"\",\"\",Table_PI[[#This Row],[Manufacturer]])","v":""},{"$f":"IF(Table_PI[[#This Row],[Model Number]]=\"\",\"\",Table_PI[[#This Row],[Model Number]])","v":""},{"$f":"IF(Table_PI[[#This Row],[Serial Number(s)]]=\"\",\"\",Table_PI[[#This Row],[Serial Number(s)]])","v":""},null,{"$f":"IF(Table_PI[[#This Row],[Size]]=\"\",\"\",Table_PI[[#This Row],[Size]])","v":""},null,null,{"$f":"IF(Table_PI[[#This Row],[Input 1]]<>\"\",Table_PI[[#This Row],[Input 1]],\"\")","v":""},null,null,{"$f":"IF(Table_PI[[#This Row],[Input 2]]<>\"\",Table_PI[[#This Row],[Input 2]],\"\")","v":""},null,null,{"$f":"IF(Table_PI[[#This Row],[Input 3]]<>\"\",Table_PI[[#This Row],[Input 3]],\"\")","v":""},null,null,{"$f":"IF(Table_PI[[#This Row],[Input 4]]<>\"\",Table_PI[[#This Row],[Input 4]],\"\")","v":""},null,null,{"$f":"IF(Table_PI[[#This Row],[Input 4]]<>\"\",Table_PI[[#This Row],[Input 4]],\"\")","v":""},null,null,{"$f":"IF(Table_PI[[#This Row],[Input 4]]<>\"\",Table_PI[[#This Row],[Input 4]],\"\")","v":""},{"$f":"IF(Table_PI[[#This Row],[Quantity]]=\"\",\"\",Table_PI[[#This Row],[Quantity]])","v":""},{"$f":"IF(Table_PI[[#This Row],[Notes]]=\"\",\"\",Table_PI[[#This Row],[Notes]])","v":""},{"$f":"IF(OR(Table_PI[[#This Row],[Hide: Baseline kWh]]=\"\",Table_PI[[#This Row],[Hide: Baseline kWh]]=0,ISTEXT(Table_PI[[#This Row],[Hide: Baseline kWh]])),\"\",Table_PI[[#This Row],[Hide: Baseline kWh]])","v":""},{"$f":"IF(OR(Table_PI[[#This Row],[Hide: Baseline kW]]=\"\",Table_PI[[#This Row],[Hide: Baseline kW]]=0,ISTEXT(Table_PI[[#This Row],[Hide: Baseline kW]])),\"\",Table_PI[[#This Row],[Hide: Baseline kW]])","v":""},{"$f":"IF(OR(Table_PI[[#This Row],[Hide: Proposed kWh]]=\"\",Table_PI[[#This Row],[Hide: Proposed kWh]]=0,ISTEXT(Table_PI[[#This Row],[Hide: Proposed kWh]])),\"\",Table_PI[[#This Row],[Hide: Proposed kWh]])","v":""},{"$f":"IF(OR(Table_PI[[#This Row],[Hide: Proposed kW]]=\"\",Table_PI[[#This Row],[Hide: Proposed kW]]=0,ISTEXT(Table_PI[[#This Row],[Hide: Proposed kW]])),\"\",Table_PI[[#This Row],[Hide: Proposed kW]])","v":""},null,null,{"$f":"IF(OR(Table_PI[[#This Row],[Hide: Rebate]]=\"\",Table_PI[[#This Row],[Hide: Rebate]]=0,ISTEXT(Table_PI[[#This Row],[Hide: Rebate]])),\"\",Table_PI[[#This Row],[Hide: Rebate]])","v":""},null,{"$f":"IF(OR(Table_PI[[#This Row],[Hide: Incremental Cost]]=\"\",Table_PI[[#This Row],[Hide: Incremental Cost]]=0,ISTEXT(Table_PI[[#This Row],[Hide: Incremental Cost]])),\"\",Table_PI[[#This Row],[Hide: Incremental Cost]])","v":""},{"$f":"IFERROR(IF(Table_SummaryPI[[#This Row],[Incentive_Customer]]=\"\",\"\",ROUND(Table_SummaryPI[[#This Row],[Incentive_Customer]]/$AM$401*'Customer Information'!$BC$21,2)),0)","v":""},{"$f":"IF(OR(Table_PI[[#This Row],[Annual kWh]]=\"\",Table_PI[[#This Row],[Annual kWh]]=0,ISTEXT(Table_PI[[#This Row],[Annual kWh]])),\"\",Table_PI[[#This Row],[Annual kWh]])","v":""},{"$f":"IF(OR(Table_PI[[#This Row],[Peak kW]]=\"\",Table_PI[[#This Row],[Peak kW]]=0,ISTEXT(Table_PI[[#This Row],[Peak kW]])),\"\",Table_PI[[#This Row],[Peak kW]])","v":""},{"$f":"IF(Table_SummaryPI[[#This Row],[Line No.]]<>\"\",IF(AND(ISNUMBER(FIND(\"Chiller\",Table_SummaryPI[[#This Row],[P_MeasureOption1]],1)),Table_SummaryPI[[#This Row],[ProposedMeasureCategory]]=\"Air-Cooled (Water-Cooled Replacement)\"),$BD$29*Table_SummaryPI[[#This Row],[Size]]*Table_SummaryPI[[#This Row],[Quantity]]*Table_SummaryPI[[#This Row],[EFLHCooling]],\nIF(ISNUMBER(FIND(\"Dishwasher\",Table_SummaryPI[[#This Row],[ProposedMeasureCategory]],1)),$BH$29*Table_SummaryPI[[#This Row],[Quantity]],\nIF(ISNUMBER(FIND(\"Ice Maker\",Table_SummaryPI[[#This Row],[ProposedMeasureCategory]],1)),$BD$31*Table_SummaryPI[[#This Row],[Quantity]],\nIF(ISNUMBER(FIND(\"Spray Valve\",Table_SummaryPI[[#This Row],[ProposedMeasureCategory]],1)),$BH$31*Table_SummaryPI[[#This Row],[Quantity]],\n0)))),\"\")","v":""},{"$f":"IF(OR(Table_PI[[#This Row],[Hide: Electrification kWh]]=\"\",Table_PI[[#This Row],[Hide: Electrification kWh]]=0,ISTEXT(Table_PI[[#This Row],[Hide: Electrification kWh]])),\"\",Table_PI[[#This Row],[Hide: Electrification kWh]])","v":""},{"$f":"IF(OR(Table_PI[[#This Row],[Hide: Electrification GHG]]=\"\",Table_PI[[#This Row],[Hide: Electrification GHG]]=0,ISTEXT(Table_PI[[#This Row],[Hide: Electrification GHG]])),\"\",Table_PI[[#This Row],[Hide: Electrification GHG]])","v":""},{"$f":"IFERROR(IF(Table_SummaryPI[[#This Row],[kWhSavings]]=\"\",\"\",$BH$9*Table_SummaryPI[[#This Row],[kWhSavings]]),0)","v":""},{"$f":"IFERROR(IF(Table_SummaryPI[[#This Row],[kWhSavings]]=\"\",\"\",$BH$14*Table_SummaryPI[[#This Row],[kWhSavings]]),0)","v":""},{"$f":"IFERROR(IF(Table_SummaryPI[[#This Row],[kWhSavings]]=\"\",\"\",$BH$18*Table_SummaryPI[[#This Row],[kWhSavings]]),0)","v":""},{"$f":"IFERROR(IF(Table_SummaryPI[[#This Row],[kWhSavings]]=\"\",\"\",$BH$22*Table_SummaryPI[[#This Row],[kWhSavings]]),0)","v":""}]
[{"$f":"Table_PI[[#This Row],[Line No.]]","v":""},{"$f":"IF(Table_SummaryPI[[#This Row],[MeasureName]]<>\"\",NOT(ISTEXT(Table_PI[[#This Row],[Rebate]])),\"\")","v":""},{"$f":"IF(Table_SummaryPI[[#This Row],[MeassureCategory]]<>\"\",CONCATENATE(Table_SummaryPI[[#This Row],[MeassureCategory]],  \" - \", Table_SummaryPI[[#This Row],[ProposedMeasureCategory]],  \" - \", TEXT(Table_SummaryPI[[#This Row],[Size]],\"#,##0.00\"),\" \",Table_SummaryPI[[#This Row],[SizeUnit]]),\"\")","v":""},{"$f":"SUBSTITUTE(Table_PI[[#This Row],[Measure]],\"     \",\"\",1)","v":""},{"$f":"IF(Table_PI[[#This Row],[List 1]]<>\"\",Table_PI[[#This Row],[List 1]],\"\")","v":""},{"$f":"IF(Table_PI[[#This Row],[List 2]]<>\"\",Table_PI[[#This Row],[List 2]],\"\")","v":""},{"$f":"IF(Table_PI[[#This Row],[List 3]]<>\"\",Table_PI[[#This Row],[List 3]],\"\")","v":""},{"$f":"IF(Table_PI[[#This Row],[Manufacturer]]=\"\",\"\",Table_PI[[#This Row],[Manufacturer]])","v":""},{"$f":"IF(Table_PI[[#This Row],[Model Number]]=\"\",\"\",Table_PI[[#This Row],[Model Number]])","v":""},{"$f":"IF(Table_PI[[#This Row],[Serial Number(s)]]=\"\",\"\",Table_PI[[#This Row],[Serial Number(s)]])","v":""},null,{"$f":"IF(Table_PI[[#This Row],[Size]]=\"\",\"\",Table_PI[[#This Row],[Size]])","v":""},null,null,{"$f":"IF(Table_PI[[#This Row],[Input 1]]<>\"\",Table_PI[[#This Row],[Input 1]],\"\")","v":""},null,null,{"$f":"IF(Table_PI[[#This Row],[Input 2]]<>\"\",Table_PI[[#This Row],[Input 2]],\"\")","v":""},null,null,{"$f":"IF(Table_PI[[#This Row],[Input 3]]<>\"\",Table_PI[[#This Row],[Input 3]],\"\")","v":""},null,null,{"$f":"IF(Table_PI[[#This Row],[Input 4]]<>\"\",Table_PI[[#This Row],[Input 4]],\"\")","v":""},null,null,{"$f":"IF(Table_PI[[#This Row],[Input 4]]<>\"\",Table_PI[[#This Row],[Input 4]],\"\")","v":""},null,null,{"$f":"IF(Table_PI[[#This Row],[Input 4]]<>\"\",Table_PI[[#This Row],[Input 4]],\"\")","v":""},{"$f":"IF(Table_PI[[#This Row],[Quantity]]=\"\",\"\",Table_PI[[#This Row],[Quantity]])","v":""},{"$f":"IF(Table_PI[[#This Row],[Notes]]=\"\",\"\",Table_PI[[#This Row],[Notes]])","v":""},{"$f":"IF(OR(Table_PI[[#This Row],[Hide: Baseline kWh]]=\"\",Table_PI[[#This Row],[Hide: Baseline kWh]]=0,ISTEXT(Table_PI[[#This Row],[Hide: Baseline kWh]])),\"\",Table_PI[[#This Row],[Hide: Baseline kWh]])","v":""},{"$f":"IF(OR(Table_PI[[#This Row],[Hide: Baseline kW]]=\"\",Table_PI[[#This Row],[Hide: Baseline kW]]=0,ISTEXT(Table_PI[[#This Row],[Hide: Baseline kW]])),\"\",Table_PI[[#This Row],[Hide: Baseline kW]])","v":""},{"$f":"IF(OR(Table_PI[[#This Row],[Hide: Proposed kWh]]=\"\",Table_PI[[#This Row],[Hide: Proposed kWh]]=0,ISTEXT(Table_PI[[#This Row],[Hide: Proposed kWh]])),\"\",Table_PI[[#This Row],[Hide: Proposed kWh]])","v":""},{"$f":"IF(OR(Table_PI[[#This Row],[Hide: Proposed kW]]=\"\",Table_PI[[#This Row],[Hide: Proposed kW]]=0,ISTEXT(Table_PI[[#This Row],[Hide: Proposed kW]])),\"\",Table_PI[[#This Row],[Hide: Proposed kW]])","v":""},null,null,{"$f":"IF(OR(Table_PI[[#This Row],[Hide: Rebate]]=\"\",Table_PI[[#This Row],[Hide: Rebate]]=0,ISTEXT(Table_PI[[#This Row],[Hide: Rebate]])),\"\",Table_PI[[#This Row],[Hide: Rebate]])","v":""},null,{"$f":"IF(OR(Table_PI[[#This Row],[Hide: Incremental Cost]]=\"\",Table_PI[[#This Row],[Hide: Incremental Cost]]=0,ISTEXT(Table_PI[[#This Row],[Hide: Incremental Cost]])),\"\",Table_PI[[#This Row],[Hide: Incremental Cost]])","v":""},{"$f":"IFERROR(IF(Table_SummaryPI[[#This Row],[Incentive_Customer]]=\"\",\"\",ROUND(Table_SummaryPI[[#This Row],[Incentive_Customer]]/$AM$401*'Customer Information'!$BC$21,2)),0)","v":""},{"$f":"IF(OR(Table_PI[[#This Row],[Annual kWh]]=\"\",Table_PI[[#This Row],[Annual kWh]]=0,ISTEXT(Table_PI[[#This Row],[Annual kWh]])),\"\",Table_PI[[#This Row],[Annual kWh]])","v":""},{"$f":"IF(OR(Table_PI[[#This Row],[Peak kW]]=\"\",Table_PI[[#This Row],[Peak kW]]=0,ISTEXT(Table_PI[[#This Row],[Peak kW]])),\"\",Table_PI[[#This Row],[Peak kW]])","v":""},{"$f":"IF(Table_SummaryPI[[#This Row],[Line No.]]<>\"\",IF(AND(ISNUMBER(FIND(\"Chiller\",Table_SummaryPI[[#This Row],[P_MeasureOption1]],1)),Table_SummaryPI[[#This Row],[ProposedMeasureCategory]]=\"Air-Cooled (Water-Cooled Replacement)\"),$BD$29*Table_SummaryPI[[#This Row],[Size]]*Table_SummaryPI[[#This Row],[Quantity]]*Table_SummaryPI[[#This Row],[EFLHCooling]],\nIF(ISNUMBER(FIND(\"Dishwasher\",Table_SummaryPI[[#This Row],[ProposedMeasureCategory]],1)),$BH$29*Table_SummaryPI[[#This Row],[Quantity]],\nIF(ISNUMBER(FIND(\"Ice Maker\",Table_SummaryPI[[#This Row],[ProposedMeasureCategory]],1)),$BD$31*Table_SummaryPI[[#This Row],[Quantity]],\nIF(ISNUMBER(FIND(\"Spray Valve\",Table_SummaryPI[[#This Row],[ProposedMeasureCategory]],1)),$BH$31*Table_SummaryPI[[#This Row],[Quantity]],\n0)))),\"\")","v":""},{"$f":"IF(OR(Table_PI[[#This Row],[Hide: Electrification kWh]]=\"\",Table_PI[[#This Row],[Hide: Electrification kWh]]=0,ISTEXT(Table_PI[[#This Row],[Hide: Electrification kWh]])),\"\",Table_PI[[#This Row],[Hide: Electrification kWh]])","v":""},{"$f":"IF(OR(Table_PI[[#This Row],[Hide: Electrification GHG]]=\"\",Table_PI[[#This Row],[Hide: Electrification GHG]]=0,ISTEXT(Table_PI[[#This Row],[Hide: Electrification GHG]])),\"\",Table_PI[[#This Row],[Hide: Electrification GHG]])","v":""},{"$f":"IFERROR(IF(Table_SummaryPI[[#This Row],[kWhSavings]]=\"\",\"\",$BH$9*Table_SummaryPI[[#This Row],[kWhSavings]]),0)","v":""},{"$f":"IFERROR(IF(Table_SummaryPI[[#This Row],[kWhSavings]]=\"\",\"\",$BH$14*Table_SummaryPI[[#This Row],[kWhSavings]]),0)","v":""},{"$f":"IFERROR(IF(Table_SummaryPI[[#This Row],[kWhSavings]]=\"\",\"\",$BH$18*Table_SummaryPI[[#This Row],[kWhSavings]]),0)","v":""},{"$f":"IFERROR(IF(Table_SummaryPI[[#This Row],[kWhSavings]]=\"\",\"\",$BH$22*Table_SummaryPI[[#This Row],[kWhSavings]]),0)","v":""}]
[{"$f":"Table_PI[[#This Row],[Line No.]]","v":""},{"$f":"IF(Table_SummaryPI[[#This Row],[MeasureName]]<>\"\",NOT(ISTEXT(Table_PI[[#This Row],[Rebate]])),\"\")","v":""},{"$f":"IF(Table_SummaryPI[[#This Row],[MeassureCategory]]<>\"\",CONCATENATE(Table_SummaryPI[[#This Row],[MeassureCategory]],  \" - \", Table_SummaryPI[[#This Row],[ProposedMeasureCategory]],  \" - \", TEXT(Table_SummaryPI[[#This Row],[Size]],\"#,##0.00\"),\" \",Table_SummaryPI[[#This Row],[SizeUnit]]),\"\")","v":""},{"$f":"SUBSTITUTE(Table_PI[[#This Row],[Measure]],\"     \",\"\",1)","v":""},{"$f":"IF(Table_PI[[#This Row],[List 1]]<>\"\",Table_PI[[#This Row],[List 1]],\"\")","v":""},{"$f":"IF(Table_PI[[#This Row],[List 2]]<>\"\",Table_PI[[#This Row],[List 2]],\"\")","v":""},{"$f":"IF(Table_PI[[#This Row],[List 3]]<>\"\",Table_PI[[#This Row],[List 3]],\"\")","v":""},{"$f":"IF(Table_PI[[#This Row],[Manufacturer]]=\"\",\"\",Table_PI[[#This Row],[Manufacturer]])","v":""},{"$f":"IF(Table_PI[[#This Row],[Model Number]]=\"\",\"\",Table_PI[[#This Row],[Model Number]])","v":""},{"$f":"IF(Table_PI[[#This Row],[Serial Number(s)]]=\"\",\"\",Table_PI[[#This Row],[Serial Number(s)]])","v":""},null,{"$f":"IF(Table_PI[[#This Row],[Size]]=\"\",\"\",Table_PI[[#This Row],[Size]])","v":""},null,null,{"$f":"IF(Table_PI[[#This Row],[Input 1]]<>\"\",Table_PI[[#This Row],[Input 1]],\"\")","v":""},null,null,{"$f":"IF(Table_PI[[#This Row],[Input 2]]<>\"\",Table_PI[[#This Row],[Input 2]],\"\")","v":""},null,null,{"$f":"IF(Table_PI[[#This Row],[Input 3]]<>\"\",Table_PI[[#This Row],[Input 3]],\"\")","v":""},null,null,{"$f":"IF(Table_PI[[#This Row],[Input 4]]<>\"\",Table_PI[[#This Row],[Input 4]],\"\")","v":""},null,null,{"$f":"IF(Table_PI[[#This Row],[Input 4]]<>\"\",Table_PI[[#This Row],[Input 4]],\"\")","v":""},null,null,{"$f":"IF(Table_PI[[#This Row],[Input 4]]<>\"\",Table_PI[[#This Row],[Input 4]],\"\")","v":""},{"$f":"IF(Table_PI[[#This Row],[Quantity]]=\"\",\"\",Table_PI[[#This Row],[Quantity]])","v":""},{"$f":"IF(Table_PI[[#This Row],[Notes]]=\"\",\"\",Table_PI[[#This Row],[Notes]])","v":""},{"$f":"IF(OR(Table_PI[[#This Row],[Hide: Baseline kWh]]=\"\",Table_PI[[#This Row],[Hide: Baseline kWh]]=0,ISTEXT(Table_PI[[#This Row],[Hide: Baseline kWh]])),\"\",Table_PI[[#This Row],[Hide: Baseline kWh]])","v":""},{"$f":"IF(OR(Table_PI[[#This Row],[Hide: Baseline kW]]=\"\",Table_PI[[#This Row],[Hide: Baseline kW]]=0,ISTEXT(Table_PI[[#This Row],[Hide: Baseline kW]])),\"\",Table_PI[[#This Row],[Hide: Baseline kW]])","v":""},{"$f":"IF(OR(Table_PI[[#This Row],[Hide: Proposed kWh]]=\"\",Table_PI[[#This Row],[Hide: Proposed kWh]]=0,ISTEXT(Table_PI[[#This Row],[Hide: Proposed kWh]])),\"\",Table_PI[[#This Row],[Hide: Proposed kWh]])","v":""},{"$f":"IF(OR(Table_PI[[#This Row],[Hide: Proposed kW]]=\"\",Table_PI[[#This Row],[Hide: Proposed kW]]=0,ISTEXT(Table_PI[[#This Row],[Hide: Proposed kW]])),\"\",Table_PI[[#This Row],[Hide: Proposed kW]])","v":""},null,null,{"$f":"IF(OR(Table_PI[[#This Row],[Hide: Rebate]]=\"\",Table_PI[[#This Row],[Hide: Rebate]]=0,ISTEXT(Table_PI[[#This Row],[Hide: Rebate]])),\"\",Table_PI[[#This Row],[Hide: Rebate]])","v":""},null,{"$f":"IF(OR(Table_PI[[#This Row],[Hide: Incremental Cost]]=\"\",Table_PI[[#This Row],[Hide: Incremental Cost]]=0,ISTEXT(Table_PI[[#This Row],[Hide: Incremental Cost]])),\"\",Table_PI[[#This Row],[Hide: Incremental Cost]])","v":""},{"$f":"IFERROR(IF(Table_SummaryPI[[#This Row],[Incentive_Customer]]=\"\",\"\",ROUND(Table_SummaryPI[[#This Row],[Incentive_Customer]]/$AM$401*'Customer Information'!$BC$21,2)),0)","v":""},{"$f":"IF(OR(Table_PI[[#This Row],[Annual kWh]]=\"\",Table_PI[[#This Row],[Annual kWh]]=0,ISTEXT(Table_PI[[#This Row],[Annual kWh]])),\"\",Table_PI[[#This Row],[Annual kWh]])","v":""},{"$f":"IF(OR(Table_PI[[#This Row],[Peak kW]]=\"\",Table_PI[[#This Row],[Peak kW]]=0,ISTEXT(Table_PI[[#This Row],[Peak kW]])),\"\",Table_PI[[#This Row],[Peak kW]])","v":""},{"$f":"IF(Table_SummaryPI[[#This Row],[Line No.]]<>\"\",IF(AND(ISNUMBER(FIND(\"Chiller\",Table_SummaryPI[[#This Row],[P_MeasureOption1]],1)),Table_SummaryPI[[#This Row],[ProposedMeasureCategory]]=\"Air-Cooled (Water-Cooled Replacement)\"),$BD$29*Table_SummaryPI[[#This Row],[Size]]*Table_SummaryPI[[#This Row],[Quantity]]*Table_SummaryPI[[#This Row],[EFLHCooling]],\nIF(ISNUMBER(FIND(\"Dishwasher\",Table_SummaryPI[[#This Row],[ProposedMeasureCategory]],1)),$BH$29*Table_SummaryPI[[#This Row],[Quantity]],\nIF(ISNUMBER(FIND(\"Ice Maker\",Table_SummaryPI[[#This Row],[ProposedMeasureCategory]],1)),$BD$31*Table_SummaryPI[[#This Row],[Quantity]],\nIF(ISNUMBER(FIND(\"Spray Valve\",Table_SummaryPI[[#This Row],[ProposedMeasureCategory]],1)),$BH$31*Table_SummaryPI[[#This Row],[Quantity]],\n0)))),\"\")","v":""},{"$f":"IF(OR(Table_PI[[#This Row],[Hide: Electrification kWh]]=\"\",Table_PI[[#This Row],[Hide: Electrification kWh]]=0,ISTEXT(Table_PI[[#This Row],[Hide: Electrification kWh]])),\"\",Table_PI[[#This Row],[Hide: Electrification kWh]])","v":""},{"$f":"IF(OR(Table_PI[[#This Row],[Hide: Electrification GHG]]=\"\",Table_PI[[#This Row],[Hide: Electrification GHG]]=0,ISTEXT(Table_PI[[#This Row],[Hide: Electrification GHG]])),\"\",Table_PI[[#This Row],[Hide: Electrification GHG]])","v":""},{"$f":"IFERROR(IF(Table_SummaryPI[[#This Row],[kWhSavings]]=\"\",\"\",$BH$9*Table_SummaryPI[[#This Row],[kWhSavings]]),0)","v":""},{"$f":"IFERROR(IF(Table_SummaryPI[[#This Row],[kWhSavings]]=\"\",\"\",$BH$14*Table_SummaryPI[[#This Row],[kWhSavings]]),0)","v":""},{"$f":"IFERROR(IF(Table_SummaryPI[[#This Row],[kWhSavings]]=\"\",\"\",$BH$18*Table_SummaryPI[[#This Row],[kWhSavings]]),0)","v":""},{"$f":"IFERROR(IF(Table_SummaryPI[[#This Row],[kWhSavings]]=\"\",\"\",$BH$22*Table_SummaryPI[[#This Row],[kWhSavings]]),0)","v":""}]
[{"$f":"Table_PI[[#This Row],[Line No.]]","v":""},{"$f":"IF(Table_SummaryPI[[#This Row],[MeasureName]]<>\"\",NOT(ISTEXT(Table_PI[[#This Row],[Rebate]])),\"\")","v":""},{"$f":"IF(Table_SummaryPI[[#This Row],[MeassureCategory]]<>\"\",CONCATENATE(Table_SummaryPI[[#This Row],[MeassureCategory]],  \" - \", Table_SummaryPI[[#This Row],[ProposedMeasureCategory]],  \" - \", TEXT(Table_SummaryPI[[#This Row],[Size]],\"#,##0.00\"),\" \",Table_SummaryPI[[#This Row],[SizeUnit]]),\"\")","v":""},{"$f":"SUBSTITUTE(Table_PI[[#This Row],[Measure]],\"     \",\"\",1)","v":""},{"$f":"IF(Table_PI[[#This Row],[List 1]]<>\"\",Table_PI[[#This Row],[List 1]],\"\")","v":""},{"$f":"IF(Table_PI[[#This Row],[List 2]]<>\"\",Table_PI[[#This Row],[List 2]],\"\")","v":""},{"$f":"IF(Table_PI[[#This Row],[List 3]]<>\"\",Table_PI[[#This Row],[List 3]],\"\")","v":""},{"$f":"IF(Table_PI[[#This Row],[Manufacturer]]=\"\",\"\",Table_PI[[#This Row],[Manufacturer]])","v":""},{"$f":"IF(Table_PI[[#This Row],[Model Number]]=\"\",\"\",Table_PI[[#This Row],[Model Number]])","v":""},{"$f":"IF(Table_PI[[#This Row],[Serial Number(s)]]=\"\",\"\",Table_PI[[#This Row],[Serial Number(s)]])","v":""},null,{"$f":"IF(Table_PI[[#This Row],[Size]]=\"\",\"\",Table_PI[[#This Row],[Size]])","v":""},null,null,{"$f":"IF(Table_PI[[#This Row],[Input 1]]<>\"\",Table_PI[[#This Row],[Input 1]],\"\")","v":""},null,null,{"$f":"IF(Table_PI[[#This Row],[Input 2]]<>\"\",Table_PI[[#This Row],[Input 2]],\"\")","v":""},null,null,{"$f":"IF(Table_PI[[#This Row],[Input 3]]<>\"\",Table_PI[[#This Row],[Input 3]],\"\")","v":""},null,null,{"$f":"IF(Table_PI[[#This Row],[Input 4]]<>\"\",Table_PI[[#This Row],[Input 4]],\"\")","v":""},null,null,{"$f":"IF(Table_PI[[#This Row],[Input 4]]<>\"\",Table_PI[[#This Row],[Input 4]],\"\")","v":""},null,null,{"$f":"IF(Table_PI[[#This Row],[Input 4]]<>\"\",Table_PI[[#This Row],[Input 4]],\"\")","v":""},{"$f":"IF(Table_PI[[#This Row],[Quantity]]=\"\",\"\",Table_PI[[#This Row],[Quantity]])","v":""},{"$f":"IF(Table_PI[[#This Row],[Notes]]=\"\",\"\",Table_PI[[#This Row],[Notes]])","v":""},{"$f":"IF(OR(Table_PI[[#This Row],[Hide: Baseline kWh]]=\"\",Table_PI[[#This Row],[Hide: Baseline kWh]]=0,ISTEXT(Table_PI[[#This Row],[Hide: Baseline kWh]])),\"\",Table_PI[[#This Row],[Hide: Baseline kWh]])","v":""},{"$f":"IF(OR(Table_PI[[#This Row],[Hide: Baseline kW]]=\"\",Table_PI[[#This Row],[Hide: Baseline kW]]=0,ISTEXT(Table_PI[[#This Row],[Hide: Baseline kW]])),\"\",Table_PI[[#This Row],[Hide: Baseline kW]])","v":""},{"$f":"IF(OR(Table_PI[[#This Row],[Hide: Proposed kWh]]=\"\",Table_PI[[#This Row],[Hide: Proposed kWh]]=0,ISTEXT(Table_PI[[#This Row],[Hide: Proposed kWh]])),\"\",Table_PI[[#This Row],[Hide: Proposed kWh]])","v":""},{"$f":"IF(OR(Table_PI[[#This Row],[Hide: Proposed kW]]=\"\",Table_PI[[#This Row],[Hide: Proposed kW]]=0,ISTEXT(Table_PI[[#This Row],[Hide: Proposed kW]])),\"\",Table_PI[[#This Row],[Hide: Proposed kW]])","v":""},null,null,{"$f":"IF(OR(Table_PI[[#This Row],[Hide: Rebate]]=\"\",Table_PI[[#This Row],[Hide: Rebate]]=0,ISTEXT(Table_PI[[#This Row],[Hide: Rebate]])),\"\",Table_PI[[#This Row],[Hide: Rebate]])","v":""},null,{"$f":"IF(OR(Table_PI[[#This Row],[Hide: Incremental Cost]]=\"\",Table_PI[[#This Row],[Hide: Incremental Cost]]=0,ISTEXT(Table_PI[[#This Row],[Hide: Incremental Cost]])),\"\",Table_PI[[#This Row],[Hide: Incremental Cost]])","v":""},{"$f":"IFERROR(IF(Table_SummaryPI[[#This Row],[Incentive_Customer]]=\"\",\"\",ROUND(Table_SummaryPI[[#This Row],[Incentive_Customer]]/$AM$401*'Customer Information'!$BC$21,2)),0)","v":""},{"$f":"IF(OR(Table_PI[[#This Row],[Annual kWh]]=\"\",Table_PI[[#This Row],[Annual kWh]]=0,ISTEXT(Table_PI[[#This Row],[Annual kWh]])),\"\",Table_PI[[#This Row],[Annual kWh]])","v":""},{"$f":"IF(OR(Table_PI[[#This Row],[Peak kW]]=\"\",Table_PI[[#This Row],[Peak kW]]=0,ISTEXT(Table_PI[[#This Row],[Peak kW]])),\"\",Table_PI[[#This Row],[Peak kW]])","v":""},{"$f":"IF(Table_SummaryPI[[#This Row],[Line No.]]<>\"\",IF(AND(ISNUMBER(FIND(\"Chiller\",Table_SummaryPI[[#This Row],[P_MeasureOption1]],1)),Table_SummaryPI[[#This Row],[ProposedMeasureCategory]]=\"Air-Cooled (Water-Cooled Replacement)\"),$BD$29*Table_SummaryPI[[#This Row],[Size]]*Table_SummaryPI[[#This Row],[Quantity]]*Table_SummaryPI[[#This Row],[EFLHCooling]],\nIF(ISNUMBER(FIND(\"Dishwasher\",Table_SummaryPI[[#This Row],[ProposedMeasureCategory]],1)),$BH$29*Table_SummaryPI[[#This Row],[Quantity]],\nIF(ISNUMBER(FIND(\"Ice Maker\",Table_SummaryPI[[#This Row],[ProposedMeasureCategory]],1)),$BD$31*Table_SummaryPI[[#This Row],[Quantity]],\nIF(ISNUMBER(FIND(\"Spray Valve\",Table_SummaryPI[[#This Row],[ProposedMeasureCategory]],1)),$BH$31*Table_SummaryPI[[#This Row],[Quantity]],\n0)))),\"\")","v":""},{"$f":"IF(OR(Table_PI[[#This Row],[Hide: Electrification kWh]]=\"\",Table_PI[[#This Row],[Hide: Electrification kWh]]=0,ISTEXT(Table_PI[[#This Row],[Hide: Electrification kWh]])),\"\",Table_PI[[#This Row],[Hide: Electrification kWh]])","v":""},{"$f":"IF(OR(Table_PI[[#This Row],[Hide: Electrification GHG]]=\"\",Table_PI[[#This Row],[Hide: Electrification GHG]]=0,ISTEXT(Table_PI[[#This Row],[Hide: Electrification GHG]])),\"\",Table_PI[[#This Row],[Hide: Electrification GHG]])","v":""},{"$f":"IFERROR(IF(Table_SummaryPI[[#This Row],[kWhSavings]]=\"\",\"\",$BH$9*Table_SummaryPI[[#This Row],[kWhSavings]]),0)","v":""},{"$f":"IFERROR(IF(Table_SummaryPI[[#This Row],[kWhSavings]]=\"\",\"\",$BH$14*Table_SummaryPI[[#This Row],[kWhSavings]]),0)","v":""},{"$f":"IFERROR(IF(Table_SummaryPI[[#This Row],[kWhSavings]]=\"\",\"\",$BH$18*Table_SummaryPI[[#This Row],[kWhSavings]]),0)","v":""},{"$f":"IFERROR(IF(Table_SummaryPI[[#This Row],[kWhSavings]]=\"\",\"\",$BH$22*Table_SummaryPI[[#This Row],[kWhSavings]]),0)","v":""}]
[{"$f":"Table_PI[[#This Row],[Line No.]]","v":""},{"$f":"IF(Table_SummaryPI[[#This Row],[MeasureName]]<>\"\",NOT(ISTEXT(Table_PI[[#This Row],[Rebate]])),\"\")","v":""},{"$f":"IF(Table_SummaryPI[[#This Row],[MeassureCategory]]<>\"\",CONCATENATE(Table_SummaryPI[[#This Row],[MeassureCategory]],  \" - \", Table_SummaryPI[[#This Row],[ProposedMeasureCategory]],  \" - \", TEXT(Table_SummaryPI[[#This Row],[Size]],\"#,##0.00\"),\" \",Table_SummaryPI[[#This Row],[SizeUnit]]),\"\")","v":""},{"$f":"SUBSTITUTE(Table_PI[[#This Row],[Measure]],\"     \",\"\",1)","v":""},{"$f":"IF(Table_PI[[#This Row],[List 1]]<>\"\",Table_PI[[#This Row],[List 1]],\"\")","v":""},{"$f":"IF(Table_PI[[#This Row],[List 2]]<>\"\",Table_PI[[#This Row],[List 2]],\"\")","v":""},{"$f":"IF(Table_PI[[#This Row],[List 3]]<>\"\",Table_PI[[#This Row],[List 3]],\"\")","v":""},{"$f":"IF(Table_PI[[#This Row],[Manufacturer]]=\"\",\"\",Table_PI[[#This Row],[Manufacturer]])","v":""},{"$f":"IF(Table_PI[[#This Row],[Model Number]]=\"\",\"\",Table_PI[[#This Row],[Model Number]])","v":""},{"$f":"IF(Table_PI[[#This Row],[Serial Number(s)]]=\"\",\"\",Table_PI[[#This Row],[Serial Number(s)]])","v":""},null,{"$f":"IF(Table_PI[[#This Row],[Size]]=\"\",\"\",Table_PI[[#This Row],[Size]])","v":""},null,null,{"$f":"IF(Table_PI[[#This Row],[Input 1]]<>\"\",Table_PI[[#This Row],[Input 1]],\"\")","v":""},null,null,{"$f":"IF(Table_PI[[#This Row],[Input 2]]<>\"\",Table_PI[[#This Row],[Input 2]],\"\")","v":""},null,null,{"$f":"IF(Table_PI[[#This Row],[Input 3]]<>\"\",Table_PI[[#This Row],[Input 3]],\"\")","v":""},null,null,{"$f":"IF(Table_PI[[#This Row],[Input 4]]<>\"\",Table_PI[[#This Row],[Input 4]],\"\")","v":""},null,null,{"$f":"IF(Table_PI[[#This Row],[Input 4]]<>\"\",Table_PI[[#This Row],[Input 4]],\"\")","v":""},null,null,{"$f":"IF(Table_PI[[#This Row],[Input 4]]<>\"\",Table_PI[[#This Row],[Input 4]],\"\")","v":""},{"$f":"IF(Table_PI[[#This Row],[Quantity]]=\"\",\"\",Table_PI[[#This Row],[Quantity]])","v":""},{"$f":"IF(Table_PI[[#This Row],[Notes]]=\"\",\"\",Table_PI[[#This Row],[Notes]])","v":""},{"$f":"IF(OR(Table_PI[[#This Row],[Hide: Baseline kWh]]=\"\",Table_PI[[#This Row],[Hide: Baseline kWh]]=0,ISTEXT(Table_PI[[#This Row],[Hide: Baseline kWh]])),\"\",Table_PI[[#This Row],[Hide: Baseline kWh]])","v":""},{"$f":"IF(OR(Table_PI[[#This Row],[Hide: Baseline kW]]=\"\",Table_PI[[#This Row],[Hide: Baseline kW]]=0,ISTEXT(Table_PI[[#This Row],[Hide: Baseline kW]])),\"\",Table_PI[[#This Row],[Hide: Baseline kW]])","v":""},{"$f":"IF(OR(Table_PI[[#This Row],[Hide: Proposed kWh]]=\"\",Table_PI[[#This Row],[Hide: Proposed kWh]]=0,ISTEXT(Table_PI[[#This Row],[Hide: Proposed kWh]])),\"\",Table_PI[[#This Row],[Hide: Proposed kWh]])","v":""},{"$f":"IF(OR(Table_PI[[#This Row],[Hide: Proposed kW]]=\"\",Table_PI[[#This Row],[Hide: Proposed kW]]=0,ISTEXT(Table_PI[[#This Row],[Hide: Proposed kW]])),\"\",Table_PI[[#This Row],[Hide: Proposed kW]])","v":""},null,null,{"$f":"IF(OR(Table_PI[[#This Row],[Hide: Rebate]]=\"\",Table_PI[[#This Row],[Hide: Rebate]]=0,ISTEXT(Table_PI[[#This Row],[Hide: Rebate]])),\"\",Table_PI[[#This Row],[Hide: Rebate]])","v":""},null,{"$f":"IF(OR(Table_PI[[#This Row],[Hide: Incremental Cost]]=\"\",Table_PI[[#This Row],[Hide: Incremental Cost]]=0,ISTEXT(Table_PI[[#This Row],[Hide: Incremental Cost]])),\"\",Table_PI[[#This Row],[Hide: Incremental Cost]])","v":""},{"$f":"IFERROR(IF(Table_SummaryPI[[#This Row],[Incentive_Customer]]=\"\",\"\",ROUND(Table_SummaryPI[[#This Row],[Incentive_Customer]]/$AM$401*'Customer Information'!$BC$21,2)),0)","v":""},{"$f":"IF(OR(Table_PI[[#This Row],[Annual kWh]]=\"\",Table_PI[[#This Row],[Annual kWh]]=0,ISTEXT(Table_PI[[#This Row],[Annual kWh]])),\"\",Table_PI[[#This Row],[Annual kWh]])","v":""},{"$f":"IF(OR(Table_PI[[#This Row],[Peak kW]]=\"\",Table_PI[[#This Row],[Peak kW]]=0,ISTEXT(Table_PI[[#This Row],[Peak kW]])),\"\",Table_PI[[#This Row],[Peak kW]])","v":""},{"$f":"IF(Table_SummaryPI[[#This Row],[Line No.]]<>\"\",IF(AND(ISNUMBER(FIND(\"Chiller\",Table_SummaryPI[[#This Row],[P_MeasureOption1]],1)),Table_SummaryPI[[#This Row],[ProposedMeasureCategory]]=\"Air-Cooled (Water-Cooled Replacement)\"),$BD$29*Table_SummaryPI[[#This Row],[Size]]*Table_SummaryPI[[#This Row],[Quantity]]*Table_SummaryPI[[#This Row],[EFLHCooling]],\nIF(ISNUMBER(FIND(\"Dishwasher\",Table_SummaryPI[[#This Row],[ProposedMeasureCategory]],1)),$BH$29*Table_SummaryPI[[#This Row],[Quantity]],\nIF(ISNUMBER(FIND(\"Ice Maker\",Table_SummaryPI[[#This Row],[ProposedMeasureCategory]],1)),$BD$31*Table_SummaryPI[[#This Row],[Quantity]],\nIF(ISNUMBER(FIND(\"Spray Valve\",Table_SummaryPI[[#This Row],[ProposedMeasureCategory]],1)),$BH$31*Table_SummaryPI[[#This Row],[Quantity]],\n0)))),\"\")","v":""},{"$f":"IF(OR(Table_PI[[#This Row],[Hide: Electrification kWh]]=\"\",Table_PI[[#This Row],[Hide: Electrification kWh]]=0,ISTEXT(Table_PI[[#This Row],[Hide: Electrification kWh]])),\"\",Table_PI[[#This Row],[Hide: Electrification kWh]])","v":""},{"$f":"IF(OR(Table_PI[[#This Row],[Hide: Electrification GHG]]=\"\",Table_PI[[#This Row],[Hide: Electrification GHG]]=0,ISTEXT(Table_PI[[#This Row],[Hide: Electrification GHG]])),\"\",Table_PI[[#This Row],[Hide: Electrification GHG]])","v":""},{"$f":"IFERROR(IF(Table_SummaryPI[[#This Row],[kWhSavings]]=\"\",\"\",$BH$9*Table_SummaryPI[[#This Row],[kWhSavings]]),0)","v":""},{"$f":"IFERROR(IF(Table_SummaryPI[[#This Row],[kWhSavings]]=\"\",\"\",$BH$14*Table_SummaryPI[[#This Row],[kWhSavings]]),0)","v":""},{"$f":"IFERROR(IF(Table_SummaryPI[[#This Row],[kWhSavings]]=\"\",\"\",$BH$18*Table_SummaryPI[[#This Row],[kWhSavings]]),0)","v":""},{"$f":"IFERROR(IF(Table_SummaryPI[[#This Row],[kWhSavings]]=\"\",\"\",$BH$22*Table_SummaryPI[[#This Row],[kWhSavings]]),0)","v":""}]
[{"$f":"Table_PI[[#This Row],[Line No.]]","v":""},{"$f":"IF(Table_SummaryPI[[#This Row],[MeasureName]]<>\"\",NOT(ISTEXT(Table_PI[[#This Row],[Rebate]])),\"\")","v":""},{"$f":"IF(Table_SummaryPI[[#This Row],[MeassureCategory]]<>\"\",CONCATENATE(Table_SummaryPI[[#This Row],[MeassureCategory]],  \" - \", Table_SummaryPI[[#This Row],[ProposedMeasureCategory]],  \" - \", TEXT(Table_SummaryPI[[#This Row],[Size]],\"#,##0.00\"),\" \",Table_SummaryPI[[#This Row],[SizeUnit]]),\"\")","v":""},{"$f":"SUBSTITUTE(Table_PI[[#This Row],[Measure]],\"     \",\"\",1)","v":""},{"$f":"IF(Table_PI[[#This Row],[List 1]]<>\"\",Table_PI[[#This Row],[List 1]],\"\")","v":""},{"$f":"IF(Table_PI[[#This Row],[List 2]]<>\"\",Table_PI[[#This Row],[List 2]],\"\")","v":""},{"$f":"IF(Table_PI[[#This Row],[List 3]]<>\"\",Table_PI[[#This Row],[List 3]],\"\")","v":""},{"$f":"IF(Table_PI[[#This Row],[Manufacturer]]=\"\",\"\",Table_PI[[#This Row],[Manufacturer]])","v":""},{"$f":"IF(Table_PI[[#This Row],[Model Number]]=\"\",\"\",Table_PI[[#This Row],[Model Number]])","v":""},{"$f":"IF(Table_PI[[#This Row],[Serial Number(s)]]=\"\",\"\",Table_PI[[#This Row],[Serial Number(s)]])","v":""},null,{"$f":"IF(Table_PI[[#This Row],[Size]]=\"\",\"\",Table_PI[[#This Row],[Size]])","v":""},null,null,{"$f":"IF(Table_PI[[#This Row],[Input 1]]<>\"\",Table_PI[[#This Row],[Input 1]],\"\")","v":""},null,null,{"$f":"IF(Table_PI[[#This Row],[Input 2]]<>\"\",Table_PI[[#This Row],[Input 2]],\"\")","v":""},null,null,{"$f":"IF(Table_PI[[#This Row],[Input 3]]<>\"\",Table_PI[[#This Row],[Input 3]],\"\")","v":""},null,null,{"$f":"IF(Table_PI[[#This Row],[Input 4]]<>\"\",Table_PI[[#This Row],[Input 4]],\"\")","v":""},null,null,{"$f":"IF(Table_PI[[#This Row],[Input 4]]<>\"\",Table_PI[[#This Row],[Input 4]],\"\")","v":""},null,null,{"$f":"IF(Table_PI[[#This Row],[Input 4]]<>\"\",Table_PI[[#This Row],[Input 4]],\"\")","v":""},{"$f":"IF(Table_PI[[#This Row],[Quantity]]=\"\",\"\",Table_PI[[#This Row],[Quantity]])","v":""},{"$f":"IF(Table_PI[[#This Row],[Notes]]=\"\",\"\",Table_PI[[#This Row],[Notes]])","v":""},{"$f":"IF(OR(Table_PI[[#This Row],[Hide: Baseline kWh]]=\"\",Table_PI[[#This Row],[Hide: Baseline kWh]]=0,ISTEXT(Table_PI[[#This Row],[Hide: Baseline kWh]])),\"\",Table_PI[[#This Row],[Hide: Baseline kWh]])","v":""},{"$f":"IF(OR(Table_PI[[#This Row],[Hide: Baseline kW]]=\"\",Table_PI[[#This Row],[Hide: Baseline kW]]=0,ISTEXT(Table_PI[[#This Row],[Hide: Baseline kW]])),\"\",Table_PI[[#This Row],[Hide: Baseline kW]])","v":""},{"$f":"IF(OR(Table_PI[[#This Row],[Hide: Proposed kWh]]=\"\",Table_PI[[#This Row],[Hide: Proposed kWh]]=0,ISTEXT(Table_PI[[#This Row],[Hide: Proposed kWh]])),\"\",Table_PI[[#This Row],[Hide: Proposed kWh]])","v":""},{"$f":"IF(OR(Table_PI[[#This Row],[Hide: Proposed kW]]=\"\",Table_PI[[#This Row],[Hide: Proposed kW]]=0,ISTEXT(Table_PI[[#This Row],[Hide: Proposed kW]])),\"\",Table_PI[[#This Row],[Hide: Proposed kW]])","v":""},null,null,{"$f":"IF(OR(Table_PI[[#This Row],[Hide: Rebate]]=\"\",Table_PI[[#This Row],[Hide: Rebate]]=0,ISTEXT(Table_PI[[#This Row],[Hide: Rebate]])),\"\",Table_PI[[#This Row],[Hide: Rebate]])","v":""},null,{"$f":"IF(OR(Table_PI[[#This Row],[Hide: Incremental Cost]]=\"\",Table_PI[[#This Row],[Hide: Incremental Cost]]=0,ISTEXT(Table_PI[[#This Row],[Hide: Incremental Cost]])),\"\",Table_PI[[#This Row],[Hide: Incremental Cost]])","v":""},{"$f":"IFERROR(IF(Table_SummaryPI[[#This Row],[Incentive_Customer]]=\"\",\"\",ROUND(Table_SummaryPI[[#This Row],[Incentive_Customer]]/$AM$401*'Customer Information'!$BC$21,2)),0)","v":""},{"$f":"IF(OR(Table_PI[[#This Row],[Annual kWh]]=\"\",Table_PI[[#This Row],[Annual kWh]]=0,ISTEXT(Table_PI[[#This Row],[Annual kWh]])),\"\",Table_PI[[#This Row],[Annual kWh]])","v":""},{"$f":"IF(OR(Table_PI[[#This Row],[Peak kW]]=\"\",Table_PI[[#This Row],[Peak kW]]=0,ISTEXT(Table_PI[[#This Row],[Peak kW]])),\"\",Table_PI[[#This Row],[Peak kW]])","v":""},{"$f":"IF(Table_SummaryPI[[#This Row],[Line No.]]<>\"\",IF(AND(ISNUMBER(FIND(\"Chiller\",Table_SummaryPI[[#This Row],[P_MeasureOption1]],1)),Table_SummaryPI[[#This Row],[ProposedMeasureCategory]]=\"Air-Cooled (Water-Cooled Replacement)\"),$BD$29*Table_SummaryPI[[#This Row],[Size]]*Table_SummaryPI[[#This Row],[Quantity]]*Table_SummaryPI[[#This Row],[EFLHCooling]],\nIF(ISNUMBER(FIND(\"Dishwasher\",Table_SummaryPI[[#This Row],[ProposedMeasureCategory]],1)),$BH$29*Table_SummaryPI[[#This Row],[Quantity]],\nIF(ISNUMBER(FIND(\"Ice Maker\",Table_SummaryPI[[#This Row],[ProposedMeasureCategory]],1)),$BD$31*Table_SummaryPI[[#This Row],[Quantity]],\nIF(ISNUMBER(FIND(\"Spray Valve\",Table_SummaryPI[[#This Row],[ProposedMeasureCategory]],1)),$BH$31*Table_SummaryPI[[#This Row],[Quantity]],\n0)))),\"\")","v":""},{"$f":"IF(OR(Table_PI[[#This Row],[Hide: Electrification kWh]]=\"\",Table_PI[[#This Row],[Hide: Electrification kWh]]=0,ISTEXT(Table_PI[[#This Row],[Hide: Electrification kWh]])),\"\",Table_PI[[#This Row],[Hide: Electrification kWh]])","v":""},{"$f":"IF(OR(Table_PI[[#This Row],[Hide: Electrification GHG]]=\"\",Table_PI[[#This Row],[Hide: Electrification GHG]]=0,ISTEXT(Table_PI[[#This Row],[Hide: Electrification GHG]])),\"\",Table_PI[[#This Row],[Hide: Electrification GHG]])","v":""},{"$f":"IFERROR(IF(Table_SummaryPI[[#This Row],[kWhSavings]]=\"\",\"\",$BH$9*Table_SummaryPI[[#This Row],[kWhSavings]]),0)","v":""},{"$f":"IFERROR(IF(Table_SummaryPI[[#This Row],[kWhSavings]]=\"\",\"\",$BH$14*Table_SummaryPI[[#This Row],[kWhSavings]]),0)","v":""},{"$f":"IFERROR(IF(Table_SummaryPI[[#This Row],[kWhSavings]]=\"\",\"\",$BH$18*Table_SummaryPI[[#This Row],[kWhSavings]]),0)","v":""},{"$f":"IFERROR(IF(Table_SummaryPI[[#This Row],[kWhSavings]]=\"\",\"\",$BH$22*Table_SummaryPI[[#This Row],[kWhSavings]]),0)","v":""}]
[{"$f":"Table_PI[[#This Row],[Line No.]]","v":""},{"$f":"IF(Table_SummaryPI[[#This Row],[MeasureName]]<>\"\",NOT(ISTEXT(Table_PI[[#This Row],[Rebate]])),\"\")","v":""},{"$f":"IF(Table_SummaryPI[[#This Row],[MeassureCategory]]<>\"\",CONCATENATE(Table_SummaryPI[[#This Row],[MeassureCategory]],  \" - \", Table_SummaryPI[[#This Row],[ProposedMeasureCategory]],  \" - \", TEXT(Table_SummaryPI[[#This Row],[Size]],\"#,##0.00\"),\" \",Table_SummaryPI[[#This Row],[SizeUnit]]),\"\")","v":""},{"$f":"SUBSTITUTE(Table_PI[[#This Row],[Measure]],\"     \",\"\",1)","v":""},{"$f":"IF(Table_PI[[#This Row],[List 1]]<>\"\",Table_PI[[#This Row],[List 1]],\"\")","v":""},{"$f":"IF(Table_PI[[#This Row],[List 2]]<>\"\",Table_PI[[#This Row],[List 2]],\"\")","v":""},{"$f":"IF(Table_PI[[#This Row],[List 3]]<>\"\",Table_PI[[#This Row],[List 3]],\"\")","v":""},{"$f":"IF(Table_PI[[#This Row],[Manufacturer]]=\"\",\"\",Table_PI[[#This Row],[Manufacturer]])","v":""},{"$f":"IF(Table_PI[[#This Row],[Model Number]]=\"\",\"\",Table_PI[[#This Row],[Model Number]])","v":""},{"$f":"IF(Table_PI[[#This Row],[Serial Number(s)]]=\"\",\"\",Table_PI[[#This Row],[Serial Number(s)]])","v":""},null,{"$f":"IF(Table_PI[[#This Row],[Size]]=\"\",\"\",Table_PI[[#This Row],[Size]])","v":""},null,null,{"$f":"IF(Table_PI[[#This Row],[Input 1]]<>\"\",Table_PI[[#This Row],[Input 1]],\"\")","v":""},null,null,{"$f":"IF(Table_PI[[#This Row],[Input 2]]<>\"\",Table_PI[[#This Row],[Input 2]],\"\")","v":""},null,null,{"$f":"IF(Table_PI[[#This Row],[Input 3]]<>\"\",Table_PI[[#This Row],[Input 3]],\"\")","v":""},null,null,{"$f":"IF(Table_PI[[#This Row],[Input 4]]<>\"\",Table_PI[[#This Row],[Input 4]],\"\")","v":""},null,null,{"$f":"IF(Table_PI[[#This Row],[Input 4]]<>\"\",Table_PI[[#This Row],[Input 4]],\"\")","v":""},null,null,{"$f":"IF(Table_PI[[#This Row],[Input 4]]<>\"\",Table_PI[[#This Row],[Input 4]],\"\")","v":""},{"$f":"IF(Table_PI[[#This Row],[Quantity]]=\"\",\"\",Table_PI[[#This Row],[Quantity]])","v":""},{"$f":"IF(Table_PI[[#This Row],[Notes]]=\"\",\"\",Table_PI[[#This Row],[Notes]])","v":""},{"$f":"IF(OR(Table_PI[[#This Row],[Hide: Baseline kWh]]=\"\",Table_PI[[#This Row],[Hide: Baseline kWh]]=0,ISTEXT(Table_PI[[#This Row],[Hide: Baseline kWh]])),\"\",Table_PI[[#This Row],[Hide: Baseline kWh]])","v":""},{"$f":"IF(OR(Table_PI[[#This Row],[Hide: Baseline kW]]=\"\",Table_PI[[#This Row],[Hide: Baseline kW]]=0,ISTEXT(Table_PI[[#This Row],[Hide: Baseline kW]])),\"\",Table_PI[[#This Row],[Hide: Baseline kW]])","v":""},{"$f":"IF(OR(Table_PI[[#This Row],[Hide: Proposed kWh]]=\"\",Table_PI[[#This Row],[Hide: Proposed kWh]]=0,ISTEXT(Table_PI[[#This Row],[Hide: Proposed kWh]])),\"\",Table_PI[[#This Row],[Hide: Proposed kWh]])","v":""},{"$f":"IF(OR(Table_PI[[#This Row],[Hide: Proposed kW]]=\"\",Table_PI[[#This Row],[Hide: Proposed kW]]=0,ISTEXT(Table_PI[[#This Row],[Hide: Proposed kW]])),\"\",Table_PI[[#This Row],[Hide: Proposed kW]])","v":""},null,null,{"$f":"IF(OR(Table_PI[[#This Row],[Hide: Rebate]]=\"\",Table_PI[[#This Row],[Hide: Rebate]]=0,ISTEXT(Table_PI[[#This Row],[Hide: Rebate]])),\"\",Table_PI[[#This Row],[Hide: Rebate]])","v":""},null,{"$f":"IF(OR(Table_PI[[#This Row],[Hide: Incremental Cost]]=\"\",Table_PI[[#This Row],[Hide: Incremental Cost]]=0,ISTEXT(Table_PI[[#This Row],[Hide: Incremental Cost]])),\"\",Table_PI[[#This Row],[Hide: Incremental Cost]])","v":""},{"$f":"IFERROR(IF(Table_SummaryPI[[#This Row],[Incentive_Customer]]=\"\",\"\",ROUND(Table_SummaryPI[[#This Row],[Incentive_Customer]]/$AM$401*'Customer Information'!$BC$21,2)),0)","v":""},{"$f":"IF(OR(Table_PI[[#This Row],[Annual kWh]]=\"\",Table_PI[[#This Row],[Annual kWh]]=0,ISTEXT(Table_PI[[#This Row],[Annual kWh]])),\"\",Table_PI[[#This Row],[Annual kWh]])","v":""},{"$f":"IF(OR(Table_PI[[#This Row],[Peak kW]]=\"\",Table_PI[[#This Row],[Peak kW]]=0,ISTEXT(Table_PI[[#This Row],[Peak kW]])),\"\",Table_PI[[#This Row],[Peak kW]])","v":""},{"$f":"IF(Table_SummaryPI[[#This Row],[Line No.]]<>\"\",IF(AND(ISNUMBER(FIND(\"Chiller\",Table_SummaryPI[[#This Row],[P_MeasureOption1]],1)),Table_SummaryPI[[#This Row],[ProposedMeasureCategory]]=\"Air-Cooled (Water-Cooled Replacement)\"),$BD$29*Table_SummaryPI[[#This Row],[Size]]*Table_SummaryPI[[#This Row],[Quantity]]*Table_SummaryPI[[#This Row],[EFLHCooling]],\nIF(ISNUMBER(FIND(\"Dishwasher\",Table_SummaryPI[[#This Row],[ProposedMeasureCategory]],1)),$BH$29*Table_SummaryPI[[#This Row],[Quantity]],\nIF(ISNUMBER(FIND(\"Ice Maker\",Table_SummaryPI[[#This Row],[ProposedMeasureCategory]],1)),$BD$31*Table_SummaryPI[[#This Row],[Quantity]],\nIF(ISNUMBER(FIND(\"Spray Valve\",Table_SummaryPI[[#This Row],[ProposedMeasureCategory]],1)),$BH$31*Table_SummaryPI[[#This Row],[Quantity]],\n0)))),\"\")","v":""},{"$f":"IF(OR(Table_PI[[#This Row],[Hide: Electrification kWh]]=\"\",Table_PI[[#This Row],[Hide: Electrification kWh]]=0,ISTEXT(Table_PI[[#This Row],[Hide: Electrification kWh]])),\"\",Table_PI[[#This Row],[Hide: Electrification kWh]])","v":""},{"$f":"IF(OR(Table_PI[[#This Row],[Hide: Electrification GHG]]=\"\",Table_PI[[#This Row],[Hide: Electrification GHG]]=0,ISTEXT(Table_PI[[#This Row],[Hide: Electrification GHG]])),\"\",Table_PI[[#This Row],[Hide: Electrification GHG]])","v":""},{"$f":"IFERROR(IF(Table_SummaryPI[[#This Row],[kWhSavings]]=\"\",\"\",$BH$9*Table_SummaryPI[[#This Row],[kWhSavings]]),0)","v":""},{"$f":"IFERROR(IF(Table_SummaryPI[[#This Row],[kWhSavings]]=\"\",\"\",$BH$14*Table_SummaryPI[[#This Row],[kWhSavings]]),0)","v":""},{"$f":"IFERROR(IF(Table_SummaryPI[[#This Row],[kWhSavings]]=\"\",\"\",$BH$18*Table_SummaryPI[[#This Row],[kWhSavings]]),0)","v":""},{"$f":"IFERROR(IF(Table_SummaryPI[[#This Row],[kWhSavings]]=\"\",\"\",$BH$22*Table_SummaryPI[[#This Row],[kWhSavings]]),0)","v":""}]
[{"$f":"Table_PI[[#This Row],[Line No.]]","v":""},{"$f":"IF(Table_SummaryPI[[#This Row],[MeasureName]]<>\"\",NOT(ISTEXT(Table_PI[[#This Row],[Rebate]])),\"\")","v":""},{"$f":"IF(Table_SummaryPI[[#This Row],[MeassureCategory]]<>\"\",CONCATENATE(Table_SummaryPI[[#This Row],[MeassureCategory]],  \" - \", Table_SummaryPI[[#This Row],[ProposedMeasureCategory]],  \" - \", TEXT(Table_SummaryPI[[#This Row],[Size]],\"#,##0.00\"),\" \",Table_SummaryPI[[#This Row],[SizeUnit]]),\"\")","v":""},{"$f":"SUBSTITUTE(Table_PI[[#This Row],[Measure]],\"     \",\"\",1)","v":""},{"$f":"IF(Table_PI[[#This Row],[List 1]]<>\"\",Table_PI[[#This Row],[List 1]],\"\")","v":""},{"$f":"IF(Table_PI[[#This Row],[List 2]]<>\"\",Table_PI[[#This Row],[List 2]],\"\")","v":""},{"$f":"IF(Table_PI[[#This Row],[List 3]]<>\"\",Table_PI[[#This Row],[List 3]],\"\")","v":""},{"$f":"IF(Table_PI[[#This Row],[Manufacturer]]=\"\",\"\",Table_PI[[#This Row],[Manufacturer]])","v":""},{"$f":"IF(Table_PI[[#This Row],[Model Number]]=\"\",\"\",Table_PI[[#This Row],[Model Number]])","v":""},{"$f":"IF(Table_PI[[#This Row],[Serial Number(s)]]=\"\",\"\",Table_PI[[#This Row],[Serial Number(s)]])","v":""},null,{"$f":"IF(Table_PI[[#This Row],[Size]]=\"\",\"\",Table_PI[[#This Row],[Size]])","v":""},null,null,{"$f":"IF(Table_PI[[#This Row],[Input 1]]<>\"\",Table_PI[[#This Row],[Input 1]],\"\")","v":""},null,null,{"$f":"IF(Table_PI[[#This Row],[Input 2]]<>\"\",Table_PI[[#This Row],[Input 2]],\"\")","v":""},null,null,{"$f":"IF(Table_PI[[#This Row],[Input 3]]<>\"\",Table_PI[[#This Row],[Input 3]],\"\")","v":""},null,null,{"$f":"IF(Table_PI[[#This Row],[Input 4]]<>\"\",Table_PI[[#This Row],[Input 4]],\"\")","v":""},null,null,{"$f":"IF(Table_PI[[#This Row],[Input 4]]<>\"\",Table_PI[[#This Row],[Input 4]],\"\")","v":""},null,null,{"$f":"IF(Table_PI[[#This Row],[Input 4]]<>\"\",Table_PI[[#This Row],[Input 4]],\"\")","v":""},{"$f":"IF(Table_PI[[#This Row],[Quantity]]=\"\",\"\",Table_PI[[#This Row],[Quantity]])","v":""},{"$f":"IF(Table_PI[[#This Row],[Notes]]=\"\",\"\",Table_PI[[#This Row],[Notes]])","v":""},{"$f":"IF(OR(Table_PI[[#This Row],[Hide: Baseline kWh]]=\"\",Table_PI[[#This Row],[Hide: Baseline kWh]]=0,ISTEXT(Table_PI[[#This Row],[Hide: Baseline kWh]])),\"\",Table_PI[[#This Row],[Hide: Baseline kWh]])","v":""},{"$f":"IF(OR(Table_PI[[#This Row],[Hide: Baseline kW]]=\"\",Table_PI[[#This Row],[Hide: Baseline kW]]=0,ISTEXT(Table_PI[[#This Row],[Hide: Baseline kW]])),\"\",Table_PI[[#This Row],[Hide: Baseline kW]])","v":""},{"$f":"IF(OR(Table_PI[[#This Row],[Hide: Proposed kWh]]=\"\",Table_PI[[#This Row],[Hide: Proposed kWh]]=0,ISTEXT(Table_PI[[#This Row],[Hide: Proposed kWh]])),\"\",Table_PI[[#This Row],[Hide: Proposed kWh]])","v":""},{"$f":"IF(OR(Table_PI[[#This Row],[Hide: Proposed kW]]=\"\",Table_PI[[#This Row],[Hide: Proposed kW]]=0,ISTEXT(Table_PI[[#This Row],[Hide: Proposed kW]])),\"\",Table_PI[[#This Row],[Hide: Proposed kW]])","v":""},null,null,{"$f":"IF(OR(Table_PI[[#This Row],[Hide: Rebate]]=\"\",Table_PI[[#This Row],[Hide: Rebate]]=0,ISTEXT(Table_PI[[#This Row],[Hide: Rebate]])),\"\",Table_PI[[#This Row],[Hide: Rebate]])","v":""},null,{"$f":"IF(OR(Table_PI[[#This Row],[Hide: Incremental Cost]]=\"\",Table_PI[[#This Row],[Hide: Incremental Cost]]=0,ISTEXT(Table_PI[[#This Row],[Hide: Incremental Cost]])),\"\",Table_PI[[#This Row],[Hide: Incremental Cost]])","v":""},{"$f":"IFERROR(IF(Table_SummaryPI[[#This Row],[Incentive_Customer]]=\"\",\"\",ROUND(Table_SummaryPI[[#This Row],[Incentive_Customer]]/$AM$401*'Customer Information'!$BC$21,2)),0)","v":""},{"$f":"IF(OR(Table_PI[[#This Row],[Annual kWh]]=\"\",Table_PI[[#This Row],[Annual kWh]]=0,ISTEXT(Table_PI[[#This Row],[Annual kWh]])),\"\",Table_PI[[#This Row],[Annual kWh]])","v":""},{"$f":"IF(OR(Table_PI[[#This Row],[Peak kW]]=\"\",Table_PI[[#This Row],[Peak kW]]=0,ISTEXT(Table_PI[[#This Row],[Peak kW]])),\"\",Table_PI[[#This Row],[Peak kW]])","v":""},{"$f":"IF(Table_SummaryPI[[#This Row],[Line No.]]<>\"\",IF(AND(ISNUMBER(FIND(\"Chiller\",Table_SummaryPI[[#This Row],[P_MeasureOption1]],1)),Table_SummaryPI[[#This Row],[ProposedMeasureCategory]]=\"Air-Cooled (Water-Cooled Replacement)\"),$BD$29*Table_SummaryPI[[#This Row],[Size]]*Table_SummaryPI[[#This Row],[Quantity]]*Table_SummaryPI[[#This Row],[EFLHCooling]],\nIF(ISNUMBER(FIND(\"Dishwasher\",Table_SummaryPI[[#This Row],[ProposedMeasureCategory]],1)),$BH$29*Table_SummaryPI[[#This Row],[Quantity]],\nIF(ISNUMBER(FIND(\"Ice Maker\",Table_SummaryPI[[#This Row],[ProposedMeasureCategory]],1)),$BD$31*Table_SummaryPI[[#This Row],[Quantity]],\nIF(ISNUMBER(FIND(\"Spray Valve\",Table_SummaryPI[[#This Row],[ProposedMeasureCategory]],1)),$BH$31*Table_SummaryPI[[#This Row],[Quantity]],\n0)))),\"\")","v":""},{"$f":"IF(OR(Table_PI[[#This Row],[Hide: Electrification kWh]]=\"\",Table_PI[[#This Row],[Hide: Electrification kWh]]=0,ISTEXT(Table_PI[[#This Row],[Hide: Electrification kWh]])),\"\",Table_PI[[#This Row],[Hide: Electrification kWh]])","v":""},{"$f":"IF(OR(Table_PI[[#This Row],[Hide: Electrification GHG]]=\"\",Table_PI[[#This Row],[Hide: Electrification GHG]]=0,ISTEXT(Table_PI[[#This Row],[Hide: Electrification GHG]])),\"\",Table_PI[[#This Row],[Hide: Electrification GHG]])","v":""},{"$f":"IFERROR(IF(Table_SummaryPI[[#This Row],[kWhSavings]]=\"\",\"\",$BH$9*Table_SummaryPI[[#This Row],[kWhSavings]]),0)","v":""},{"$f":"IFERROR(IF(Table_SummaryPI[[#This Row],[kWhSavings]]=\"\",\"\",$BH$14*Table_SummaryPI[[#This Row],[kWhSavings]]),0)","v":""},{"$f":"IFERROR(IF(Table_SummaryPI[[#This Row],[kWhSavings]]=\"\",\"\",$BH$18*Table_SummaryPI[[#This Row],[kWhSavings]]),0)","v":""},{"$f":"IFERROR(IF(Table_SummaryPI[[#This Row],[kWhSavings]]=\"\",\"\",$BH$22*Table_SummaryPI[[#This Row],[kWhSavings]]),0)","v":""}]
[{"$f":"Table_PI[[#This Row],[Line No.]]","v":""},{"$f":"IF(Table_SummaryPI[[#This Row],[MeasureName]]<>\"\",NOT(ISTEXT(Table_PI[[#This Row],[Rebate]])),\"\")","v":""},{"$f":"IF(Table_SummaryPI[[#This Row],[MeassureCategory]]<>\"\",CONCATENATE(Table_SummaryPI[[#This Row],[MeassureCategory]],  \" - \", Table_SummaryPI[[#This Row],[ProposedMeasureCategory]],  \" - \", TEXT(Table_SummaryPI[[#This Row],[Size]],\"#,##0.00\"),\" \",Table_SummaryPI[[#This Row],[SizeUnit]]),\"\")","v":""},{"$f":"SUBSTITUTE(Table_PI[[#This Row],[Measure]],\"     \",\"\",1)","v":""},{"$f":"IF(Table_PI[[#This Row],[List 1]]<>\"\",Table_PI[[#This Row],[List 1]],\"\")","v":""},{"$f":"IF(Table_PI[[#This Row],[List 2]]<>\"\",Table_PI[[#This Row],[List 2]],\"\")","v":""},{"$f":"IF(Table_PI[[#This Row],[List 3]]<>\"\",Table_PI[[#This Row],[List 3]],\"\")","v":""},{"$f":"IF(Table_PI[[#This Row],[Manufacturer]]=\"\",\"\",Table_PI[[#This Row],[Manufacturer]])","v":""},{"$f":"IF(Table_PI[[#This Row],[Model Number]]=\"\",\"\",Table_PI[[#This Row],[Model Number]])","v":""},{"$f":"IF(Table_PI[[#This Row],[Serial Number(s)]]=\"\",\"\",Table_PI[[#This Row],[Serial Number(s)]])","v":""},null,{"$f":"IF(Table_PI[[#This Row],[Size]]=\"\",\"\",Table_PI[[#This Row],[Size]])","v":""},null,null,{"$f":"IF(Table_PI[[#This Row],[Input 1]]<>\"\",Table_PI[[#This Row],[Input 1]],\"\")","v":""},null,null,{"$f":"IF(Table_PI[[#This Row],[Input 2]]<>\"\",Table_PI[[#This Row],[Input 2]],\"\")","v":""},null,null,{"$f":"IF(Table_PI[[#This Row],[Input 3]]<>\"\",Table_PI[[#This Row],[Input 3]],\"\")","v":""},null,null,{"$f":"IF(Table_PI[[#This Row],[Input 4]]<>\"\",Table_PI[[#This Row],[Input 4]],\"\")","v":""},null,null,{"$f":"IF(Table_PI[[#This Row],[Input 4]]<>\"\",Table_PI[[#This Row],[Input 4]],\"\")","v":""},null,null,{"$f":"IF(Table_PI[[#This Row],[Input 4]]<>\"\",Table_PI[[#This Row],[Input 4]],\"\")","v":""},{"$f":"IF(Table_PI[[#This Row],[Quantity]]=\"\",\"\",Table_PI[[#This Row],[Quantity]])","v":""},{"$f":"IF(Table_PI[[#This Row],[Notes]]=\"\",\"\",Table_PI[[#This Row],[Notes]])","v":""},{"$f":"IF(OR(Table_PI[[#This Row],[Hide: Baseline kWh]]=\"\",Table_PI[[#This Row],[Hide: Baseline kWh]]=0,ISTEXT(Table_PI[[#This Row],[Hide: Baseline kWh]])),\"\",Table_PI[[#This Row],[Hide: Baseline kWh]])","v":""},{"$f":"IF(OR(Table_PI[[#This Row],[Hide: Baseline kW]]=\"\",Table_PI[[#This Row],[Hide: Baseline kW]]=0,ISTEXT(Table_PI[[#This Row],[Hide: Baseline kW]])),\"\",Table_PI[[#This Row],[Hide: Baseline kW]])","v":""},{"$f":"IF(OR(Table_PI[[#This Row],[Hide: Proposed kWh]]=\"\",Table_PI[[#This Row],[Hide: Proposed kWh]]=0,ISTEXT(Table_PI[[#This Row],[Hide: Proposed kWh]])),\"\",Table_PI[[#This Row],[Hide: Proposed kWh]])","v":""},{"$f":"IF(OR(Table_PI[[#This Row],[Hide: Proposed kW]]=\"\",Table_PI[[#This Row],[Hide: Proposed kW]]=0,ISTEXT(Table_PI[[#This Row],[Hide: Proposed kW]])),\"\",Table_PI[[#This Row],[Hide: Proposed kW]])","v":""},null,null,{"$f":"IF(OR(Table_PI[[#This Row],[Hide: Rebate]]=\"\",Table_PI[[#This Row],[Hide: Rebate]]=0,ISTEXT(Table_PI[[#This Row],[Hide: Rebate]])),\"\",Table_PI[[#This Row],[Hide: Rebate]])","v":""},null,{"$f":"IF(OR(Table_PI[[#This Row],[Hide: Incremental Cost]]=\"\",Table_PI[[#This Row],[Hide: Incremental Cost]]=0,ISTEXT(Table_PI[[#This Row],[Hide: Incremental Cost]])),\"\",Table_PI[[#This Row],[Hide: Incremental Cost]])","v":""},{"$f":"IFERROR(IF(Table_SummaryPI[[#This Row],[Incentive_Customer]]=\"\",\"\",ROUND(Table_SummaryPI[[#This Row],[Incentive_Customer]]/$AM$401*'Customer Information'!$BC$21,2)),0)","v":""},{"$f":"IF(OR(Table_PI[[#This Row],[Annual kWh]]=\"\",Table_PI[[#This Row],[Annual kWh]]=0,ISTEXT(Table_PI[[#This Row],[Annual kWh]])),\"\",Table_PI[[#This Row],[Annual kWh]])","v":""},{"$f":"IF(OR(Table_PI[[#This Row],[Peak kW]]=\"\",Table_PI[[#This Row],[Peak kW]]=0,ISTEXT(Table_PI[[#This Row],[Peak kW]])),\"\",Table_PI[[#This Row],[Peak kW]])","v":""},{"$f":"IF(Table_SummaryPI[[#This Row],[Line No.]]<>\"\",IF(AND(ISNUMBER(FIND(\"Chiller\",Table_SummaryPI[[#This Row],[P_MeasureOption1]],1)),Table_SummaryPI[[#This Row],[ProposedMeasureCategory]]=\"Air-Cooled (Water-Cooled Replacement)\"),$BD$29*Table_SummaryPI[[#This Row],[Size]]*Table_SummaryPI[[#This Row],[Quantity]]*Table_SummaryPI[[#This Row],[EFLHCooling]],\nIF(ISNUMBER(FIND(\"Dishwasher\",Table_SummaryPI[[#This Row],[ProposedMeasureCategory]],1)),$BH$29*Table_SummaryPI[[#This Row],[Quantity]],\nIF(ISNUMBER(FIND(\"Ice Maker\",Table_SummaryPI[[#This Row],[ProposedMeasureCategory]],1)),$BD$31*Table_SummaryPI[[#This Row],[Quantity]],\nIF(ISNUMBER(FIND(\"Spray Valve\",Table_SummaryPI[[#This Row],[ProposedMeasureCategory]],1)),$BH$31*Table_SummaryPI[[#This Row],[Quantity]],\n0)))),\"\")","v":""},{"$f":"IF(OR(Table_PI[[#This Row],[Hide: Electrification kWh]]=\"\",Table_PI[[#This Row],[Hide: Electrification kWh]]=0,ISTEXT(Table_PI[[#This Row],[Hide: Electrification kWh]])),\"\",Table_PI[[#This Row],[Hide: Electrification kWh]])","v":""},{"$f":"IF(OR(Table_PI[[#This Row],[Hide: Electrification GHG]]=\"\",Table_PI[[#This Row],[Hide: Electrification GHG]]=0,ISTEXT(Table_PI[[#This Row],[Hide: Electrification GHG]])),\"\",Table_PI[[#This Row],[Hide: Electrification GHG]])","v":""},{"$f":"IFERROR(IF(Table_SummaryPI[[#This Row],[kWhSavings]]=\"\",\"\",$BH$9*Table_SummaryPI[[#This Row],[kWhSavings]]),0)","v":""},{"$f":"IFERROR(IF(Table_SummaryPI[[#This Row],[kWhSavings]]=\"\",\"\",$BH$14*Table_SummaryPI[[#This Row],[kWhSavings]]),0)","v":""},{"$f":"IFERROR(IF(Table_SummaryPI[[#This Row],[kWhSavings]]=\"\",\"\",$BH$18*Table_SummaryPI[[#This Row],[kWhSavings]]),0)","v":""},{"$f":"IFERROR(IF(Table_SummaryPI[[#This Row],[kWhSavings]]=\"\",\"\",$BH$22*Table_SummaryPI[[#This Row],[kWhSavings]]),0)","v":""}]
[{"$f":"Table_PI[[#This Row],[Line No.]]","v":""},{"$f":"IF(Table_SummaryPI[[#This Row],[MeasureName]]<>\"\",NOT(ISTEXT(Table_PI[[#This Row],[Rebate]])),\"\")","v":""},{"$f":"IF(Table_SummaryPI[[#This Row],[MeassureCategory]]<>\"\",CONCATENATE(Table_SummaryPI[[#This Row],[MeassureCategory]],  \" - \", Table_SummaryPI[[#This Row],[ProposedMeasureCategory]],  \" - \", TEXT(Table_SummaryPI[[#This Row],[Size]],\"#,##0.00\"),\" \",Table_SummaryPI[[#This Row],[SizeUnit]]),\"\")","v":""},{"$f":"SUBSTITUTE(Table_PI[[#This Row],[Measure]],\"     \",\"\",1)","v":""},{"$f":"IF(Table_PI[[#This Row],[List 1]]<>\"\",Table_PI[[#This Row],[List 1]],\"\")","v":""},{"$f":"IF(Table_PI[[#This Row],[List 2]]<>\"\",Table_PI[[#This Row],[List 2]],\"\")","v":""},{"$f":"IF(Table_PI[[#This Row],[List 3]]<>\"\",Table_PI[[#This Row],[List 3]],\"\")","v":""},{"$f":"IF(Table_PI[[#This Row],[Manufacturer]]=\"\",\"\",Table_PI[[#This Row],[Manufacturer]])","v":""},{"$f":"IF(Table_PI[[#This Row],[Model Number]]=\"\",\"\",Table_PI[[#This Row],[Model Number]])","v":""},{"$f":"IF(Table_PI[[#This Row],[Serial Number(s)]]=\"\",\"\",Table_PI[[#This Row],[Serial Number(s)]])","v":""},null,{"$f":"IF(Table_PI[[#This Row],[Size]]=\"\",\"\",Table_PI[[#This Row],[Size]])","v":""},null,null,{"$f":"IF(Table_PI[[#This Row],[Input 1]]<>\"\",Table_PI[[#This Row],[Input 1]],\"\")","v":""},null,null,{"$f":"IF(Table_PI[[#This Row],[Input 2]]<>\"\",Table_PI[[#This Row],[Input 2]],\"\")","v":""},null,null,{"$f":"IF(Table_PI[[#This Row],[Input 3]]<>\"\",Table_PI[[#This Row],[Input 3]],\"\")","v":""},null,null,{"$f":"IF(Table_PI[[#This Row],[Input 4]]<>\"\",Table_PI[[#This Row],[Input 4]],\"\")","v":""},null,null,{"$f":"IF(Table_PI[[#This Row],[Input 4]]<>\"\",Table_PI[[#This Row],[Input 4]],\"\")","v":""},null,null,{"$f":"IF(Table_PI[[#This Row],[Input 4]]<>\"\",Table_PI[[#This Row],[Input 4]],\"\")","v":""},{"$f":"IF(Table_PI[[#This Row],[Quantity]]=\"\",\"\",Table_PI[[#This Row],[Quantity]])","v":""},{"$f":"IF(Table_PI[[#This Row],[Notes]]=\"\",\"\",Table_PI[[#This Row],[Notes]])","v":""},{"$f":"IF(OR(Table_PI[[#This Row],[Hide: Baseline kWh]]=\"\",Table_PI[[#This Row],[Hide: Baseline kWh]]=0,ISTEXT(Table_PI[[#This Row],[Hide: Baseline kWh]])),\"\",Table_PI[[#This Row],[Hide: Baseline kWh]])","v":""},{"$f":"IF(OR(Table_PI[[#This Row],[Hide: Baseline kW]]=\"\",Table_PI[[#This Row],[Hide: Baseline kW]]=0,ISTEXT(Table_PI[[#This Row],[Hide: Baseline kW]])),\"\",Table_PI[[#This Row],[Hide: Baseline kW]])","v":""},{"$f":"IF(OR(Table_PI[[#This Row],[Hide: Proposed kWh]]=\"\",Table_PI[[#This Row],[Hide: Proposed kWh]]=0,ISTEXT(Table_PI[[#This Row],[Hide: Proposed kWh]])),\"\",Table_PI[[#This Row],[Hide: Proposed kWh]])","v":""},{"$f":"IF(OR(Table_PI[[#This Row],[Hide: Proposed kW]]=\"\",Table_PI[[#This Row],[Hide: Proposed kW]]=0,ISTEXT(Table_PI[[#This Row],[Hide: Proposed kW]])),\"\",Table_PI[[#This Row],[Hide: Proposed kW]])","v":""},null,null,{"$f":"IF(OR(Table_PI[[#This Row],[Hide: Rebate]]=\"\",Table_PI[[#This Row],[Hide: Rebate]]=0,ISTEXT(Table_PI[[#This Row],[Hide: Rebate]])),\"\",Table_PI[[#This Row],[Hide: Rebate]])","v":""},null,{"$f":"IF(OR(Table_PI[[#This Row],[Hide: Incremental Cost]]=\"\",Table_PI[[#This Row],[Hide: Incremental Cost]]=0,ISTEXT(Table_PI[[#This Row],[Hide: Incremental Cost]])),\"\",Table_PI[[#This Row],[Hide: Incremental Cost]])","v":""},{"$f":"IFERROR(IF(Table_SummaryPI[[#This Row],[Incentive_Customer]]=\"\",\"\",ROUND(Table_SummaryPI[[#This Row],[Incentive_Customer]]/$AM$401*'Customer Information'!$BC$21,2)),0)","v":""},{"$f":"IF(OR(Table_PI[[#This Row],[Annual kWh]]=\"\",Table_PI[[#This Row],[Annual kWh]]=0,ISTEXT(Table_PI[[#This Row],[Annual kWh]])),\"\",Table_PI[[#This Row],[Annual kWh]])","v":""},{"$f":"IF(OR(Table_PI[[#This Row],[Peak kW]]=\"\",Table_PI[[#This Row],[Peak kW]]=0,ISTEXT(Table_PI[[#This Row],[Peak kW]])),\"\",Table_PI[[#This Row],[Peak kW]])","v":""},{"$f":"IF(Table_SummaryPI[[#This Row],[Line No.]]<>\"\",IF(AND(ISNUMBER(FIND(\"Chiller\",Table_SummaryPI[[#This Row],[P_MeasureOption1]],1)),Table_SummaryPI[[#This Row],[ProposedMeasureCategory]]=\"Air-Cooled (Water-Cooled Replacement)\"),$BD$29*Table_SummaryPI[[#This Row],[Size]]*Table_SummaryPI[[#This Row],[Quantity]]*Table_SummaryPI[[#This Row],[EFLHCooling]],\nIF(ISNUMBER(FIND(\"Dishwasher\",Table_SummaryPI[[#This Row],[ProposedMeasureCategory]],1)),$BH$29*Table_SummaryPI[[#This Row],[Quantity]],\nIF(ISNUMBER(FIND(\"Ice Maker\",Table_SummaryPI[[#This Row],[ProposedMeasureCategory]],1)),$BD$31*Table_SummaryPI[[#This Row],[Quantity]],\nIF(ISNUMBER(FIND(\"Spray Valve\",Table_SummaryPI[[#This Row],[ProposedMeasureCategory]],1)),$BH$31*Table_SummaryPI[[#This Row],[Quantity]],\n0)))),\"\")","v":""},{"$f":"IF(OR(Table_PI[[#This Row],[Hide: Electrification kWh]]=\"\",Table_PI[[#This Row],[Hide: Electrification kWh]]=0,ISTEXT(Table_PI[[#This Row],[Hide: Electrification kWh]])),\"\",Table_PI[[#This Row],[Hide: Electrification kWh]])","v":""},{"$f":"IF(OR(Table_PI[[#This Row],[Hide: Electrification GHG]]=\"\",Table_PI[[#This Row],[Hide: Electrification GHG]]=0,ISTEXT(Table_PI[[#This Row],[Hide: Electrification GHG]])),\"\",Table_PI[[#This Row],[Hide: Electrification GHG]])","v":""},{"$f":"IFERROR(IF(Table_SummaryPI[[#This Row],[kWhSavings]]=\"\",\"\",$BH$9*Table_SummaryPI[[#This Row],[kWhSavings]]),0)","v":""},{"$f":"IFERROR(IF(Table_SummaryPI[[#This Row],[kWhSavings]]=\"\",\"\",$BH$14*Table_SummaryPI[[#This Row],[kWhSavings]]),0)","v":""},{"$f":"IFERROR(IF(Table_SummaryPI[[#This Row],[kWhSavings]]=\"\",\"\",$BH$18*Table_SummaryPI[[#This Row],[kWhSavings]]),0)","v":""},{"$f":"IFERROR(IF(Table_SummaryPI[[#This Row],[kWhSavings]]=\"\",\"\",$BH$22*Table_SummaryPI[[#This Row],[kWhSavings]]),0)","v":""}]
[{"$f":"Table_PI[[#This Row],[Line No.]]","v":""},{"$f":"IF(Table_SummaryPI[[#This Row],[MeasureName]]<>\"\",NOT(ISTEXT(Table_PI[[#This Row],[Rebate]])),\"\")","v":""},{"$f":"IF(Table_SummaryPI[[#This Row],[MeassureCategory]]<>\"\",CONCATENATE(Table_SummaryPI[[#This Row],[MeassureCategory]],  \" - \", Table_SummaryPI[[#This Row],[ProposedMeasureCategory]],  \" - \", TEXT(Table_SummaryPI[[#This Row],[Size]],\"#,##0.00\"),\" \",Table_SummaryPI[[#This Row],[SizeUnit]]),\"\")","v":""},{"$f":"SUBSTITUTE(Table_PI[[#This Row],[Measure]],\"     \",\"\",1)","v":""},{"$f":"IF(Table_PI[[#This Row],[List 1]]<>\"\",Table_PI[[#This Row],[List 1]],\"\")","v":""},{"$f":"IF(Table_PI[[#This Row],[List 2]]<>\"\",Table_PI[[#This Row],[List 2]],\"\")","v":""},{"$f":"IF(Table_PI[[#This Row],[List 3]]<>\"\",Table_PI[[#This Row],[List 3]],\"\")","v":""},{"$f":"IF(Table_PI[[#This Row],[Manufacturer]]=\"\",\"\",Table_PI[[#This Row],[Manufacturer]])","v":""},{"$f":"IF(Table_PI[[#This Row],[Model Number]]=\"\",\"\",Table_PI[[#This Row],[Model Number]])","v":""},{"$f":"IF(Table_PI[[#This Row],[Serial Number(s)]]=\"\",\"\",Table_PI[[#This Row],[Serial Number(s)]])","v":""},null,{"$f":"IF(Table_PI[[#This Row],[Size]]=\"\",\"\",Table_PI[[#This Row],[Size]])","v":""},null,null,{"$f":"IF(Table_PI[[#This Row],[Input 1]]<>\"\",Table_PI[[#This Row],[Input 1]],\"\")","v":""},null,null,{"$f":"IF(Table_PI[[#This Row],[Input 2]]<>\"\",Table_PI[[#This Row],[Input 2]],\"\")","v":""},null,null,{"$f":"IF(Table_PI[[#This Row],[Input 3]]<>\"\",Table_PI[[#This Row],[Input 3]],\"\")","v":""},null,null,{"$f":"IF(Table_PI[[#This Row],[Input 4]]<>\"\",Table_PI[[#This Row],[Input 4]],\"\")","v":""},null,null,{"$f":"IF(Table_PI[[#This Row],[Input 4]]<>\"\",Table_PI[[#This Row],[Input 4]],\"\")","v":""},null,null,{"$f":"IF(Table_PI[[#This Row],[Input 4]]<>\"\",Table_PI[[#This Row],[Input 4]],\"\")","v":""},{"$f":"IF(Table_PI[[#This Row],[Quantity]]=\"\",\"\",Table_PI[[#This Row],[Quantity]])","v":""},{"$f":"IF(Table_PI[[#This Row],[Notes]]=\"\",\"\",Table_PI[[#This Row],[Notes]])","v":""},{"$f":"IF(OR(Table_PI[[#This Row],[Hide: Baseline kWh]]=\"\",Table_PI[[#This Row],[Hide: Baseline kWh]]=0,ISTEXT(Table_PI[[#This Row],[Hide: Baseline kWh]])),\"\",Table_PI[[#This Row],[Hide: Baseline kWh]])","v":""},{"$f":"IF(OR(Table_PI[[#This Row],[Hide: Baseline kW]]=\"\",Table_PI[[#This Row],[Hide: Baseline kW]]=0,ISTEXT(Table_PI[[#This Row],[Hide: Baseline kW]])),\"\",Table_PI[[#This Row],[Hide: Baseline kW]])","v":""},{"$f":"IF(OR(Table_PI[[#This Row],[Hide: Proposed kWh]]=\"\",Table_PI[[#This Row],[Hide: Proposed kWh]]=0,ISTEXT(Table_PI[[#This Row],[Hide: Proposed kWh]])),\"\",Table_PI[[#This Row],[Hide: Proposed kWh]])","v":""},{"$f":"IF(OR(Table_PI[[#This Row],[Hide: Proposed kW]]=\"\",Table_PI[[#This Row],[Hide: Proposed kW]]=0,ISTEXT(Table_PI[[#This Row],[Hide: Proposed kW]])),\"\",Table_PI[[#This Row],[Hide: Proposed kW]])","v":""},null,null,{"$f":"IF(OR(Table_PI[[#This Row],[Hide: Rebate]]=\"\",Table_PI[[#This Row],[Hide: Rebate]]=0,ISTEXT(Table_PI[[#This Row],[Hide: Rebate]])),\"\",Table_PI[[#This Row],[Hide: Rebate]])","v":""},null,{"$f":"IF(OR(Table_PI[[#This Row],[Hide: Incremental Cost]]=\"\",Table_PI[[#This Row],[Hide: Incremental Cost]]=0,ISTEXT(Table_PI[[#This Row],[Hide: Incremental Cost]])),\"\",Table_PI[[#This Row],[Hide: Incremental Cost]])","v":""},{"$f":"IFERROR(IF(Table_SummaryPI[[#This Row],[Incentive_Customer]]=\"\",\"\",ROUND(Table_SummaryPI[[#This Row],[Incentive_Customer]]/$AM$401*'Customer Information'!$BC$21,2)),0)","v":""},{"$f":"IF(OR(Table_PI[[#This Row],[Annual kWh]]=\"\",Table_PI[[#This Row],[Annual kWh]]=0,ISTEXT(Table_PI[[#This Row],[Annual kWh]])),\"\",Table_PI[[#This Row],[Annual kWh]])","v":""},{"$f":"IF(OR(Table_PI[[#This Row],[Peak kW]]=\"\",Table_PI[[#This Row],[Peak kW]]=0,ISTEXT(Table_PI[[#This Row],[Peak kW]])),\"\",Table_PI[[#This Row],[Peak kW]])","v":""},{"$f":"IF(Table_SummaryPI[[#This Row],[Line No.]]<>\"\",IF(AND(ISNUMBER(FIND(\"Chiller\",Table_SummaryPI[[#This Row],[P_MeasureOption1]],1)),Table_SummaryPI[[#This Row],[ProposedMeasureCategory]]=\"Air-Cooled (Water-Cooled Replacement)\"),$BD$29*Table_SummaryPI[[#This Row],[Size]]*Table_SummaryPI[[#This Row],[Quantity]]*Table_SummaryPI[[#This Row],[EFLHCooling]],\nIF(ISNUMBER(FIND(\"Dishwasher\",Table_SummaryPI[[#This Row],[ProposedMeasureCategory]],1)),$BH$29*Table_SummaryPI[[#This Row],[Quantity]],\nIF(ISNUMBER(FIND(\"Ice Maker\",Table_SummaryPI[[#This Row],[ProposedMeasureCategory]],1)),$BD$31*Table_SummaryPI[[#This Row],[Quantity]],\nIF(ISNUMBER(FIND(\"Spray Valve\",Table_SummaryPI[[#This Row],[ProposedMeasureCategory]],1)),$BH$31*Table_SummaryPI[[#This Row],[Quantity]],\n0)))),\"\")","v":""},{"$f":"IF(OR(Table_PI[[#This Row],[Hide: Electrification kWh]]=\"\",Table_PI[[#This Row],[Hide: Electrification kWh]]=0,ISTEXT(Table_PI[[#This Row],[Hide: Electrification kWh]])),\"\",Table_PI[[#This Row],[Hide: Electrification kWh]])","v":""},{"$f":"IF(OR(Table_PI[[#This Row],[Hide: Electrification GHG]]=\"\",Table_PI[[#This Row],[Hide: Electrification GHG]]=0,ISTEXT(Table_PI[[#This Row],[Hide: Electrification GHG]])),\"\",Table_PI[[#This Row],[Hide: Electrification GHG]])","v":""},{"$f":"IFERROR(IF(Table_SummaryPI[[#This Row],[kWhSavings]]=\"\",\"\",$BH$9*Table_SummaryPI[[#This Row],[kWhSavings]]),0)","v":""},{"$f":"IFERROR(IF(Table_SummaryPI[[#This Row],[kWhSavings]]=\"\",\"\",$BH$14*Table_SummaryPI[[#This Row],[kWhSavings]]),0)","v":""},{"$f":"IFERROR(IF(Table_SummaryPI[[#This Row],[kWhSavings]]=\"\",\"\",$BH$18*Table_SummaryPI[[#This Row],[kWhSavings]]),0)","v":""},{"$f":"IFERROR(IF(Table_SummaryPI[[#This Row],[kWhSavings]]=\"\",\"\",$BH$22*Table_SummaryPI[[#This Row],[kWhSavings]]),0)","v":""}]
[{"$f":"Table_PI[[#This Row],[Line No.]]","v":""},{"$f":"IF(Table_SummaryPI[[#This Row],[MeasureName]]<>\"\",NOT(ISTEXT(Table_PI[[#This Row],[Rebate]])),\"\")","v":""},{"$f":"IF(Table_SummaryPI[[#This Row],[MeassureCategory]]<>\"\",CONCATENATE(Table_SummaryPI[[#This Row],[MeassureCategory]],  \" - \", Table_SummaryPI[[#This Row],[ProposedMeasureCategory]],  \" - \", TEXT(Table_SummaryPI[[#This Row],[Size]],\"#,##0.00\"),\" \",Table_SummaryPI[[#This Row],[SizeUnit]]),\"\")","v":""},{"$f":"SUBSTITUTE(Table_PI[[#This Row],[Measure]],\"     \",\"\",1)","v":""},{"$f":"IF(Table_PI[[#This Row],[List 1]]<>\"\",Table_PI[[#This Row],[List 1]],\"\")","v":""},{"$f":"IF(Table_PI[[#This Row],[List 2]]<>\"\",Table_PI[[#This Row],[List 2]],\"\")","v":""},{"$f":"IF(Table_PI[[#This Row],[List 3]]<>\"\",Table_PI[[#This Row],[List 3]],\"\")","v":""},{"$f":"IF(Table_PI[[#This Row],[Manufacturer]]=\"\",\"\",Table_PI[[#This Row],[Manufacturer]])","v":""},{"$f":"IF(Table_PI[[#This Row],[Model Number]]=\"\",\"\",Table_PI[[#This Row],[Model Number]])","v":""},{"$f":"IF(Table_PI[[#This Row],[Serial Number(s)]]=\"\",\"\",Table_PI[[#This Row],[Serial Number(s)]])","v":""},null,{"$f":"IF(Table_PI[[#This Row],[Size]]=\"\",\"\",Table_PI[[#This Row],[Size]])","v":""},null,null,{"$f":"IF(Table_PI[[#This Row],[Input 1]]<>\"\",Table_PI[[#This Row],[Input 1]],\"\")","v":""},null,null,{"$f":"IF(Table_PI[[#This Row],[Input 2]]<>\"\",Table_PI[[#This Row],[Input 2]],\"\")","v":""},null,null,{"$f":"IF(Table_PI[[#This Row],[Input 3]]<>\"\",Table_PI[[#This Row],[Input 3]],\"\")","v":""},null,null,{"$f":"IF(Table_PI[[#This Row],[Input 4]]<>\"\",Table_PI[[#This Row],[Input 4]],\"\")","v":""},null,null,{"$f":"IF(Table_PI[[#This Row],[Input 4]]<>\"\",Table_PI[[#This Row],[Input 4]],\"\")","v":""},null,null,{"$f":"IF(Table_PI[[#This Row],[Input 4]]<>\"\",Table_PI[[#This Row],[Input 4]],\"\")","v":""},{"$f":"IF(Table_PI[[#This Row],[Quantity]]=\"\",\"\",Table_PI[[#This Row],[Quantity]])","v":""},{"$f":"IF(Table_PI[[#This Row],[Notes]]=\"\",\"\",Table_PI[[#This Row],[Notes]])","v":""},{"$f":"IF(OR(Table_PI[[#This Row],[Hide: Baseline kWh]]=\"\",Table_PI[[#This Row],[Hide: Baseline kWh]]=0,ISTEXT(Table_PI[[#This Row],[Hide: Baseline kWh]])),\"\",Table_PI[[#This Row],[Hide: Baseline kWh]])","v":""},{"$f":"IF(OR(Table_PI[[#This Row],[Hide: Baseline kW]]=\"\",Table_PI[[#This Row],[Hide: Baseline kW]]=0,ISTEXT(Table_PI[[#This Row],[Hide: Baseline kW]])),\"\",Table_PI[[#This Row],[Hide: Baseline kW]])","v":""},{"$f":"IF(OR(Table_PI[[#This Row],[Hide: Proposed kWh]]=\"\",Table_PI[[#This Row],[Hide: Proposed kWh]]=0,ISTEXT(Table_PI[[#This Row],[Hide: Proposed kWh]])),\"\",Table_PI[[#This Row],[Hide: Proposed kWh]])","v":""},{"$f":"IF(OR(Table_PI[[#This Row],[Hide: Proposed kW]]=\"\",Table_PI[[#This Row],[Hide: Proposed kW]]=0,ISTEXT(Table_PI[[#This Row],[Hide: Proposed kW]])),\"\",Table_PI[[#This Row],[Hide: Proposed kW]])","v":""},null,null,{"$f":"IF(OR(Table_PI[[#This Row],[Hide: Rebate]]=\"\",Table_PI[[#This Row],[Hide: Rebate]]=0,ISTEXT(Table_PI[[#This Row],[Hide: Rebate]])),\"\",Table_PI[[#This Row],[Hide: Rebate]])","v":""},null,{"$f":"IF(OR(Table_PI[[#This Row],[Hide: Incremental Cost]]=\"\",Table_PI[[#This Row],[Hide: Incremental Cost]]=0,ISTEXT(Table_PI[[#This Row],[Hide: Incremental Cost]])),\"\",Table_PI[[#This Row],[Hide: Incremental Cost]])","v":""},{"$f":"IFERROR(IF(Table_SummaryPI[[#This Row],[Incentive_Customer]]=\"\",\"\",ROUND(Table_SummaryPI[[#This Row],[Incentive_Customer]]/$AM$401*'Customer Information'!$BC$21,2)),0)","v":""},{"$f":"IF(OR(Table_PI[[#This Row],[Annual kWh]]=\"\",Table_PI[[#This Row],[Annual kWh]]=0,ISTEXT(Table_PI[[#This Row],[Annual kWh]])),\"\",Table_PI[[#This Row],[Annual kWh]])","v":""},{"$f":"IF(OR(Table_PI[[#This Row],[Peak kW]]=\"\",Table_PI[[#This Row],[Peak kW]]=0,ISTEXT(Table_PI[[#This Row],[Peak kW]])),\"\",Table_PI[[#This Row],[Peak kW]])","v":""},{"$f":"IF(Table_SummaryPI[[#This Row],[Line No.]]<>\"\",IF(AND(ISNUMBER(FIND(\"Chiller\",Table_SummaryPI[[#This Row],[P_MeasureOption1]],1)),Table_SummaryPI[[#This Row],[ProposedMeasureCategory]]=\"Air-Cooled (Water-Cooled Replacement)\"),$BD$29*Table_SummaryPI[[#This Row],[Size]]*Table_SummaryPI[[#This Row],[Quantity]]*Table_SummaryPI[[#This Row],[EFLHCooling]],\nIF(ISNUMBER(FIND(\"Dishwasher\",Table_SummaryPI[[#This Row],[ProposedMeasureCategory]],1)),$BH$29*Table_SummaryPI[[#This Row],[Quantity]],\nIF(ISNUMBER(FIND(\"Ice Maker\",Table_SummaryPI[[#This Row],[ProposedMeasureCategory]],1)),$BD$31*Table_SummaryPI[[#This Row],[Quantity]],\nIF(ISNUMBER(FIND(\"Spray Valve\",Table_SummaryPI[[#This Row],[ProposedMeasureCategory]],1)),$BH$31*Table_SummaryPI[[#This Row],[Quantity]],\n0)))),\"\")","v":""},{"$f":"IF(OR(Table_PI[[#This Row],[Hide: Electrification kWh]]=\"\",Table_PI[[#This Row],[Hide: Electrification kWh]]=0,ISTEXT(Table_PI[[#This Row],[Hide: Electrification kWh]])),\"\",Table_PI[[#This Row],[Hide: Electrification kWh]])","v":""},{"$f":"IF(OR(Table_PI[[#This Row],[Hide: Electrification GHG]]=\"\",Table_PI[[#This Row],[Hide: Electrification GHG]]=0,ISTEXT(Table_PI[[#This Row],[Hide: Electrification GHG]])),\"\",Table_PI[[#This Row],[Hide: Electrification GHG]])","v":""},{"$f":"IFERROR(IF(Table_SummaryPI[[#This Row],[kWhSavings]]=\"\",\"\",$BH$9*Table_SummaryPI[[#This Row],[kWhSavings]]),0)","v":""},{"$f":"IFERROR(IF(Table_SummaryPI[[#This Row],[kWhSavings]]=\"\",\"\",$BH$14*Table_SummaryPI[[#This Row],[kWhSavings]]),0)","v":""},{"$f":"IFERROR(IF(Table_SummaryPI[[#This Row],[kWhSavings]]=\"\",\"\",$BH$18*Table_SummaryPI[[#This Row],[kWhSavings]]),0)","v":""},{"$f":"IFERROR(IF(Table_SummaryPI[[#This Row],[kWhSavings]]=\"\",\"\",$BH$22*Table_SummaryPI[[#This Row],[kWhSavings]]),0)","v":""}]
[{"$f":"Table_PI[[#This Row],[Line No.]]","v":""},{"$f":"IF(Table_SummaryPI[[#This Row],[MeasureName]]<>\"\",NOT(ISTEXT(Table_PI[[#This Row],[Rebate]])),\"\")","v":""},{"$f":"IF(Table_SummaryPI[[#This Row],[MeassureCategory]]<>\"\",CONCATENATE(Table_SummaryPI[[#This Row],[MeassureCategory]],  \" - \", Table_SummaryPI[[#This Row],[ProposedMeasureCategory]],  \" - \", TEXT(Table_SummaryPI[[#This Row],[Size]],\"#,##0.00\"),\" \",Table_SummaryPI[[#This Row],[SizeUnit]]),\"\")","v":""},{"$f":"SUBSTITUTE(Table_PI[[#This Row],[Measure]],\"     \",\"\",1)","v":""},{"$f":"IF(Table_PI[[#This Row],[List 1]]<>\"\",Table_PI[[#This Row],[List 1]],\"\")","v":""},{"$f":"IF(Table_PI[[#This Row],[List 2]]<>\"\",Table_PI[[#This Row],[List 2]],\"\")","v":""},{"$f":"IF(Table_PI[[#This Row],[List 3]]<>\"\",Table_PI[[#This Row],[List 3]],\"\")","v":""},{"$f":"IF(Table_PI[[#This Row],[Manufacturer]]=\"\",\"\",Table_PI[[#This Row],[Manufacturer]])","v":""},{"$f":"IF(Table_PI[[#This Row],[Model Number]]=\"\",\"\",Table_PI[[#This Row],[Model Number]])","v":""},{"$f":"IF(Table_PI[[#This Row],[Serial Number(s)]]=\"\",\"\",Table_PI[[#This Row],[Serial Number(s)]])","v":""},null,{"$f":"IF(Table_PI[[#This Row],[Size]]=\"\",\"\",Table_PI[[#This Row],[Size]])","v":""},null,null,{"$f":"IF(Table_PI[[#This Row],[Input 1]]<>\"\",Table_PI[[#This Row],[Input 1]],\"\")","v":""},null,null,{"$f":"IF(Table_PI[[#This Row],[Input 2]]<>\"\",Table_PI[[#This Row],[Input 2]],\"\")","v":""},null,null,{"$f":"IF(Table_PI[[#This Row],[Input 3]]<>\"\",Table_PI[[#This Row],[Input 3]],\"\")","v":""},null,null,{"$f":"IF(Table_PI[[#This Row],[Input 4]]<>\"\",Table_PI[[#This Row],[Input 4]],\"\")","v":""},null,null,{"$f":"IF(Table_PI[[#This Row],[Input 4]]<>\"\",Table_PI[[#This Row],[Input 4]],\"\")","v":""},null,null,{"$f":"IF(Table_PI[[#This Row],[Input 4]]<>\"\",Table_PI[[#This Row],[Input 4]],\"\")","v":""},{"$f":"IF(Table_PI[[#This Row],[Quantity]]=\"\",\"\",Table_PI[[#This Row],[Quantity]])","v":""},{"$f":"IF(Table_PI[[#This Row],[Notes]]=\"\",\"\",Table_PI[[#This Row],[Notes]])","v":""},{"$f":"IF(OR(Table_PI[[#This Row],[Hide: Baseline kWh]]=\"\",Table_PI[[#This Row],[Hide: Baseline kWh]]=0,ISTEXT(Table_PI[[#This Row],[Hide: Baseline kWh]])),\"\",Table_PI[[#This Row],[Hide: Baseline kWh]])","v":""},{"$f":"IF(OR(Table_PI[[#This Row],[Hide: Baseline kW]]=\"\",Table_PI[[#This Row],[Hide: Baseline kW]]=0,ISTEXT(Table_PI[[#This Row],[Hide: Baseline kW]])),\"\",Table_PI[[#This Row],[Hide: Baseline kW]])","v":""},{"$f":"IF(OR(Table_PI[[#This Row],[Hide: Proposed kWh]]=\"\",Table_PI[[#This Row],[Hide: Proposed kWh]]=0,ISTEXT(Table_PI[[#This Row],[Hide: Proposed kWh]])),\"\",Table_PI[[#This Row],[Hide: Proposed kWh]])","v":""},{"$f":"IF(OR(Table_PI[[#This Row],[Hide: Proposed kW]]=\"\",Table_PI[[#This Row],[Hide: Proposed kW]]=0,ISTEXT(Table_PI[[#This Row],[Hide: Proposed kW]])),\"\",Table_PI[[#This Row],[Hide: Proposed kW]])","v":""},null,null,{"$f":"IF(OR(Table_PI[[#This Row],[Hide: Rebate]]=\"\",Table_PI[[#This Row],[Hide: Rebate]]=0,ISTEXT(Table_PI[[#This Row],[Hide: Rebate]])),\"\",Table_PI[[#This Row],[Hide: Rebate]])","v":""},null,{"$f":"IF(OR(Table_PI[[#This Row],[Hide: Incremental Cost]]=\"\",Table_PI[[#This Row],[Hide: Incremental Cost]]=0,ISTEXT(Table_PI[[#This Row],[Hide: Incremental Cost]])),\"\",Table_PI[[#This Row],[Hide: Incremental Cost]])","v":""},{"$f":"IFERROR(IF(Table_SummaryPI[[#This Row],[Incentive_Customer]]=\"\",\"\",ROUND(Table_SummaryPI[[#This Row],[Incentive_Customer]]/$AM$401*'Customer Information'!$BC$21,2)),0)","v":""},{"$f":"IF(OR(Table_PI[[#This Row],[Annual kWh]]=\"\",Table_PI[[#This Row],[Annual kWh]]=0,ISTEXT(Table_PI[[#This Row],[Annual kWh]])),\"\",Table_PI[[#This Row],[Annual kWh]])","v":""},{"$f":"IF(OR(Table_PI[[#This Row],[Peak kW]]=\"\",Table_PI[[#This Row],[Peak kW]]=0,ISTEXT(Table_PI[[#This Row],[Peak kW]])),\"\",Table_PI[[#This Row],[Peak kW]])","v":""},{"$f":"IF(Table_SummaryPI[[#This Row],[Line No.]]<>\"\",IF(AND(ISNUMBER(FIND(\"Chiller\",Table_SummaryPI[[#This Row],[P_MeasureOption1]],1)),Table_SummaryPI[[#This Row],[ProposedMeasureCategory]]=\"Air-Cooled (Water-Cooled Replacement)\"),$BD$29*Table_SummaryPI[[#This Row],[Size]]*Table_SummaryPI[[#This Row],[Quantity]]*Table_SummaryPI[[#This Row],[EFLHCooling]],\nIF(ISNUMBER(FIND(\"Dishwasher\",Table_SummaryPI[[#This Row],[ProposedMeasureCategory]],1)),$BH$29*Table_SummaryPI[[#This Row],[Quantity]],\nIF(ISNUMBER(FIND(\"Ice Maker\",Table_SummaryPI[[#This Row],[ProposedMeasureCategory]],1)),$BD$31*Table_SummaryPI[[#This Row],[Quantity]],\nIF(ISNUMBER(FIND(\"Spray Valve\",Table_SummaryPI[[#This Row],[ProposedMeasureCategory]],1)),$BH$31*Table_SummaryPI[[#This Row],[Quantity]],\n0)))),\"\")","v":""},{"$f":"IF(OR(Table_PI[[#This Row],[Hide: Electrification kWh]]=\"\",Table_PI[[#This Row],[Hide: Electrification kWh]]=0,ISTEXT(Table_PI[[#This Row],[Hide: Electrification kWh]])),\"\",Table_PI[[#This Row],[Hide: Electrification kWh]])","v":""},{"$f":"IF(OR(Table_PI[[#This Row],[Hide: Electrification GHG]]=\"\",Table_PI[[#This Row],[Hide: Electrification GHG]]=0,ISTEXT(Table_PI[[#This Row],[Hide: Electrification GHG]])),\"\",Table_PI[[#This Row],[Hide: Electrification GHG]])","v":""},{"$f":"IFERROR(IF(Table_SummaryPI[[#This Row],[kWhSavings]]=\"\",\"\",$BH$9*Table_SummaryPI[[#This Row],[kWhSavings]]),0)","v":""},{"$f":"IFERROR(IF(Table_SummaryPI[[#This Row],[kWhSavings]]=\"\",\"\",$BH$14*Table_SummaryPI[[#This Row],[kWhSavings]]),0)","v":""},{"$f":"IFERROR(IF(Table_SummaryPI[[#This Row],[kWhSavings]]=\"\",\"\",$BH$18*Table_SummaryPI[[#This Row],[kWhSavings]]),0)","v":""},{"$f":"IFERROR(IF(Table_SummaryPI[[#This Row],[kWhSavings]]=\"\",\"\",$BH$22*Table_SummaryPI[[#This Row],[kWhSavings]]),0)","v":""}]
[{"$f":"Table_PI[[#This Row],[Line No.]]","v":""},{"$f":"IF(Table_SummaryPI[[#This Row],[MeasureName]]<>\"\",NOT(ISTEXT(Table_PI[[#This Row],[Rebate]])),\"\")","v":""},{"$f":"IF(Table_SummaryPI[[#This Row],[MeassureCategory]]<>\"\",CONCATENATE(Table_SummaryPI[[#This Row],[MeassureCategory]],  \" - \", Table_SummaryPI[[#This Row],[ProposedMeasureCategory]],  \" - \", TEXT(Table_SummaryPI[[#This Row],[Size]],\"#,##0.00\"),\" \",Table_SummaryPI[[#This Row],[SizeUnit]]),\"\")","v":""},{"$f":"SUBSTITUTE(Table_PI[[#This Row],[Measure]],\"     \",\"\",1)","v":""},{"$f":"IF(Table_PI[[#This Row],[List 1]]<>\"\",Table_PI[[#This Row],[List 1]],\"\")","v":""},{"$f":"IF(Table_PI[[#This Row],[List 2]]<>\"\",Table_PI[[#This Row],[List 2]],\"\")","v":""},{"$f":"IF(Table_PI[[#This Row],[List 3]]<>\"\",Table_PI[[#This Row],[List 3]],\"\")","v":""},{"$f":"IF(Table_PI[[#This Row],[Manufacturer]]=\"\",\"\",Table_PI[[#This Row],[Manufacturer]])","v":""},{"$f":"IF(Table_PI[[#This Row],[Model Number]]=\"\",\"\",Table_PI[[#This Row],[Model Number]])","v":""},{"$f":"IF(Table_PI[[#This Row],[Serial Number(s)]]=\"\",\"\",Table_PI[[#This Row],[Serial Number(s)]])","v":""},null,{"$f":"IF(Table_PI[[#This Row],[Size]]=\"\",\"\",Table_PI[[#This Row],[Size]])","v":""},null,null,{"$f":"IF(Table_PI[[#This Row],[Input 1]]<>\"\",Table_PI[[#This Row],[Input 1]],\"\")","v":""},null,null,{"$f":"IF(Table_PI[[#This Row],[Input 2]]<>\"\",Table_PI[[#This Row],[Input 2]],\"\")","v":""},null,null,{"$f":"IF(Table_PI[[#This Row],[Input 3]]<>\"\",Table_PI[[#This Row],[Input 3]],\"\")","v":""},null,null,{"$f":"IF(Table_PI[[#This Row],[Input 4]]<>\"\",Table_PI[[#This Row],[Input 4]],\"\")","v":""},null,null,{"$f":"IF(Table_PI[[#This Row],[Input 4]]<>\"\",Table_PI[[#This Row],[Input 4]],\"\")","v":""},null,null,{"$f":"IF(Table_PI[[#This Row],[Input 4]]<>\"\",Table_PI[[#This Row],[Input 4]],\"\")","v":""},{"$f":"IF(Table_PI[[#This Row],[Quantity]]=\"\",\"\",Table_PI[[#This Row],[Quantity]])","v":""},{"$f":"IF(Table_PI[[#This Row],[Notes]]=\"\",\"\",Table_PI[[#This Row],[Notes]])","v":""},{"$f":"IF(OR(Table_PI[[#This Row],[Hide: Baseline kWh]]=\"\",Table_PI[[#This Row],[Hide: Baseline kWh]]=0,ISTEXT(Table_PI[[#This Row],[Hide: Baseline kWh]])),\"\",Table_PI[[#This Row],[Hide: Baseline kWh]])","v":""},{"$f":"IF(OR(Table_PI[[#This Row],[Hide: Baseline kW]]=\"\",Table_PI[[#This Row],[Hide: Baseline kW]]=0,ISTEXT(Table_PI[[#This Row],[Hide: Baseline kW]])),\"\",Table_PI[[#This Row],[Hide: Baseline kW]])","v":""},{"$f":"IF(OR(Table_PI[[#This Row],[Hide: Proposed kWh]]=\"\",Table_PI[[#This Row],[Hide: Proposed kWh]]=0,ISTEXT(Table_PI[[#This Row],[Hide: Proposed kWh]])),\"\",Table_PI[[#This Row],[Hide: Proposed kWh]])","v":""},{"$f":"IF(OR(Table_PI[[#This Row],[Hide: Proposed kW]]=\"\",Table_PI[[#This Row],[Hide: Proposed kW]]=0,ISTEXT(Table_PI[[#This Row],[Hide: Proposed kW]])),\"\",Table_PI[[#This Row],[Hide: Proposed kW]])","v":""},null,null,{"$f":"IF(OR(Table_PI[[#This Row],[Hide: Rebate]]=\"\",Table_PI[[#This Row],[Hide: Rebate]]=0,ISTEXT(Table_PI[[#This Row],[Hide: Rebate]])),\"\",Table_PI[[#This Row],[Hide: Rebate]])","v":""},null,{"$f":"IF(OR(Table_PI[[#This Row],[Hide: Incremental Cost]]=\"\",Table_PI[[#This Row],[Hide: Incremental Cost]]=0,ISTEXT(Table_PI[[#This Row],[Hide: Incremental Cost]])),\"\",Table_PI[[#This Row],[Hide: Incremental Cost]])","v":""},{"$f":"IFERROR(IF(Table_SummaryPI[[#This Row],[Incentive_Customer]]=\"\",\"\",ROUND(Table_SummaryPI[[#This Row],[Incentive_Customer]]/$AM$401*'Customer Information'!$BC$21,2)),0)","v":""},{"$f":"IF(OR(Table_PI[[#This Row],[Annual kWh]]=\"\",Table_PI[[#This Row],[Annual kWh]]=0,ISTEXT(Table_PI[[#This Row],[Annual kWh]])),\"\",Table_PI[[#This Row],[Annual kWh]])","v":""},{"$f":"IF(OR(Table_PI[[#This Row],[Peak kW]]=\"\",Table_PI[[#This Row],[Peak kW]]=0,ISTEXT(Table_PI[[#This Row],[Peak kW]])),\"\",Table_PI[[#This Row],[Peak kW]])","v":""},{"$f":"IF(Table_SummaryPI[[#This Row],[Line No.]]<>\"\",IF(AND(ISNUMBER(FIND(\"Chiller\",Table_SummaryPI[[#This Row],[P_MeasureOption1]],1)),Table_SummaryPI[[#This Row],[ProposedMeasureCategory]]=\"Air-Cooled (Water-Cooled Replacement)\"),$BD$29*Table_SummaryPI[[#This Row],[Size]]*Table_SummaryPI[[#This Row],[Quantity]]*Table_SummaryPI[[#This Row],[EFLHCooling]],\nIF(ISNUMBER(FIND(\"Dishwasher\",Table_SummaryPI[[#This Row],[ProposedMeasureCategory]],1)),$BH$29*Table_SummaryPI[[#This Row],[Quantity]],\nIF(ISNUMBER(FIND(\"Ice Maker\",Table_SummaryPI[[#This Row],[ProposedMeasureCategory]],1)),$BD$31*Table_SummaryPI[[#This Row],[Quantity]],\nIF(ISNUMBER(FIND(\"Spray Valve\",Table_SummaryPI[[#This Row],[ProposedMeasureCategory]],1)),$BH$31*Table_SummaryPI[[#This Row],[Quantity]],\n0)))),\"\")","v":""},{"$f":"IF(OR(Table_PI[[#This Row],[Hide: Electrification kWh]]=\"\",Table_PI[[#This Row],[Hide: Electrification kWh]]=0,ISTEXT(Table_PI[[#This Row],[Hide: Electrification kWh]])),\"\",Table_PI[[#This Row],[Hide: Electrification kWh]])","v":""},{"$f":"IF(OR(Table_PI[[#This Row],[Hide: Electrification GHG]]=\"\",Table_PI[[#This Row],[Hide: Electrification GHG]]=0,ISTEXT(Table_PI[[#This Row],[Hide: Electrification GHG]])),\"\",Table_PI[[#This Row],[Hide: Electrification GHG]])","v":""},{"$f":"IFERROR(IF(Table_SummaryPI[[#This Row],[kWhSavings]]=\"\",\"\",$BH$9*Table_SummaryPI[[#This Row],[kWhSavings]]),0)","v":""},{"$f":"IFERROR(IF(Table_SummaryPI[[#This Row],[kWhSavings]]=\"\",\"\",$BH$14*Table_SummaryPI[[#This Row],[kWhSavings]]),0)","v":""},{"$f":"IFERROR(IF(Table_SummaryPI[[#This Row],[kWhSavings]]=\"\",\"\",$BH$18*Table_SummaryPI[[#This Row],[kWhSavings]]),0)","v":""},{"$f":"IFERROR(IF(Table_SummaryPI[[#This Row],[kWhSavings]]=\"\",\"\",$BH$22*Table_SummaryPI[[#This Row],[kWhSavings]]),0)","v":""}]
[{"$f":"Table_PI[[#This Row],[Line No.]]","v":""},{"$f":"IF(Table_SummaryPI[[#This Row],[MeasureName]]<>\"\",NOT(ISTEXT(Table_PI[[#This Row],[Rebate]])),\"\")","v":""},{"$f":"IF(Table_SummaryPI[[#This Row],[MeassureCategory]]<>\"\",CONCATENATE(Table_SummaryPI[[#This Row],[MeassureCategory]],  \" - \", Table_SummaryPI[[#This Row],[ProposedMeasureCategory]],  \" - \", TEXT(Table_SummaryPI[[#This Row],[Size]],\"#,##0.00\"),\" \",Table_SummaryPI[[#This Row],[SizeUnit]]),\"\")","v":""},{"$f":"SUBSTITUTE(Table_PI[[#This Row],[Measure]],\"     \",\"\",1)","v":""},{"$f":"IF(Table_PI[[#This Row],[List 1]]<>\"\",Table_PI[[#This Row],[List 1]],\"\")","v":""},{"$f":"IF(Table_PI[[#This Row],[List 2]]<>\"\",Table_PI[[#This Row],[List 2]],\"\")","v":""},{"$f":"IF(Table_PI[[#This Row],[List 3]]<>\"\",Table_PI[[#This Row],[List 3]],\"\")","v":""},{"$f":"IF(Table_PI[[#This Row],[Manufacturer]]=\"\",\"\",Table_PI[[#This Row],[Manufacturer]])","v":""},{"$f":"IF(Table_PI[[#This Row],[Model Number]]=\"\",\"\",Table_PI[[#This Row],[Model Number]])","v":""},{"$f":"IF(Table_PI[[#This Row],[Serial Number(s)]]=\"\",\"\",Table_PI[[#This Row],[Serial Number(s)]])","v":""},null,{"$f":"IF(Table_PI[[#This Row],[Size]]=\"\",\"\",Table_PI[[#This Row],[Size]])","v":""},null,null,{"$f":"IF(Table_PI[[#This Row],[Input 1]]<>\"\",Table_PI[[#This Row],[Input 1]],\"\")","v":""},null,null,{"$f":"IF(Table_PI[[#This Row],[Input 2]]<>\"\",Table_PI[[#This Row],[Input 2]],\"\")","v":""},null,null,{"$f":"IF(Table_PI[[#This Row],[Input 3]]<>\"\",Table_PI[[#This Row],[Input 3]],\"\")","v":""},null,null,{"$f":"IF(Table_PI[[#This Row],[Input 4]]<>\"\",Table_PI[[#This Row],[Input 4]],\"\")","v":""},null,null,{"$f":"IF(Table_PI[[#This Row],[Input 4]]<>\"\",Table_PI[[#This Row],[Input 4]],\"\")","v":""},null,null,{"$f":"IF(Table_PI[[#This Row],[Input 4]]<>\"\",Table_PI[[#This Row],[Input 4]],\"\")","v":""},{"$f":"IF(Table_PI[[#This Row],[Quantity]]=\"\",\"\",Table_PI[[#This Row],[Quantity]])","v":""},{"$f":"IF(Table_PI[[#This Row],[Notes]]=\"\",\"\",Table_PI[[#This Row],[Notes]])","v":""},{"$f":"IF(OR(Table_PI[[#This Row],[Hide: Baseline kWh]]=\"\",Table_PI[[#This Row],[Hide: Baseline kWh]]=0,ISTEXT(Table_PI[[#This Row],[Hide: Baseline kWh]])),\"\",Table_PI[[#This Row],[Hide: Baseline kWh]])","v":""},{"$f":"IF(OR(Table_PI[[#This Row],[Hide: Baseline kW]]=\"\",Table_PI[[#This Row],[Hide: Baseline kW]]=0,ISTEXT(Table_PI[[#This Row],[Hide: Baseline kW]])),\"\",Table_PI[[#This Row],[Hide: Baseline kW]])","v":""},{"$f":"IF(OR(Table_PI[[#This Row],[Hide: Proposed kWh]]=\"\",Table_PI[[#This Row],[Hide: Proposed kWh]]=0,ISTEXT(Table_PI[[#This Row],[Hide: Proposed kWh]])),\"\",Table_PI[[#This Row],[Hide: Proposed kWh]])","v":""},{"$f":"IF(OR(Table_PI[[#This Row],[Hide: Proposed kW]]=\"\",Table_PI[[#This Row],[Hide: Proposed kW]]=0,ISTEXT(Table_PI[[#This Row],[Hide: Proposed kW]])),\"\",Table_PI[[#This Row],[Hide: Proposed kW]])","v":""},null,null,{"$f":"IF(OR(Table_PI[[#This Row],[Hide: Rebate]]=\"\",Table_PI[[#This Row],[Hide: Rebate]]=0,ISTEXT(Table_PI[[#This Row],[Hide: Rebate]])),\"\",Table_PI[[#This Row],[Hide: Rebate]])","v":""},null,{"$f":"IF(OR(Table_PI[[#This Row],[Hide: Incremental Cost]]=\"\",Table_PI[[#This Row],[Hide: Incremental Cost]]=0,ISTEXT(Table_PI[[#This Row],[Hide: Incremental Cost]])),\"\",Table_PI[[#This Row],[Hide: Incremental Cost]])","v":""},{"$f":"IFERROR(IF(Table_SummaryPI[[#This Row],[Incentive_Customer]]=\"\",\"\",ROUND(Table_SummaryPI[[#This Row],[Incentive_Customer]]/$AM$401*'Customer Information'!$BC$21,2)),0)","v":""},{"$f":"IF(OR(Table_PI[[#This Row],[Annual kWh]]=\"\",Table_PI[[#This Row],[Annual kWh]]=0,ISTEXT(Table_PI[[#This Row],[Annual kWh]])),\"\",Table_PI[[#This Row],[Annual kWh]])","v":""},{"$f":"IF(OR(Table_PI[[#This Row],[Peak kW]]=\"\",Table_PI[[#This Row],[Peak kW]]=0,ISTEXT(Table_PI[[#This Row],[Peak kW]])),\"\",Table_PI[[#This Row],[Peak kW]])","v":""},{"$f":"IF(Table_SummaryPI[[#This Row],[Line No.]]<>\"\",IF(AND(ISNUMBER(FIND(\"Chiller\",Table_SummaryPI[[#This Row],[P_MeasureOption1]],1)),Table_SummaryPI[[#This Row],[ProposedMeasureCategory]]=\"Air-Cooled (Water-Cooled Replacement)\"),$BD$29*Table_SummaryPI[[#This Row],[Size]]*Table_SummaryPI[[#This Row],[Quantity]]*Table_SummaryPI[[#This Row],[EFLHCooling]],\nIF(ISNUMBER(FIND(\"Dishwasher\",Table_SummaryPI[[#This Row],[ProposedMeasureCategory]],1)),$BH$29*Table_SummaryPI[[#This Row],[Quantity]],\nIF(ISNUMBER(FIND(\"Ice Maker\",Table_SummaryPI[[#This Row],[ProposedMeasureCategory]],1)),$BD$31*Table_SummaryPI[[#This Row],[Quantity]],\nIF(ISNUMBER(FIND(\"Spray Valve\",Table_SummaryPI[[#This Row],[ProposedMeasureCategory]],1)),$BH$31*Table_SummaryPI[[#This Row],[Quantity]],\n0)))),\"\")","v":""},{"$f":"IF(OR(Table_PI[[#This Row],[Hide: Electrification kWh]]=\"\",Table_PI[[#This Row],[Hide: Electrification kWh]]=0,ISTEXT(Table_PI[[#This Row],[Hide: Electrification kWh]])),\"\",Table_PI[[#This Row],[Hide: Electrification kWh]])","v":""},{"$f":"IF(OR(Table_PI[[#This Row],[Hide: Electrification GHG]]=\"\",Table_PI[[#This Row],[Hide: Electrification GHG]]=0,ISTEXT(Table_PI[[#This Row],[Hide: Electrification GHG]])),\"\",Table_PI[[#This Row],[Hide: Electrification GHG]])","v":""},{"$f":"IFERROR(IF(Table_SummaryPI[[#This Row],[kWhSavings]]=\"\",\"\",$BH$9*Table_SummaryPI[[#This Row],[kWhSavings]]),0)","v":""},{"$f":"IFERROR(IF(Table_SummaryPI[[#This Row],[kWhSavings]]=\"\",\"\",$BH$14*Table_SummaryPI[[#This Row],[kWhSavings]]),0)","v":""},{"$f":"IFERROR(IF(Table_SummaryPI[[#This Row],[kWhSavings]]=\"\",\"\",$BH$18*Table_SummaryPI[[#This Row],[kWhSavings]]),0)","v":""},{"$f":"IFERROR(IF(Table_SummaryPI[[#This Row],[kWhSavings]]=\"\",\"\",$BH$22*Table_SummaryPI[[#This Row],[kWhSavings]]),0)","v":""}]
[{"$f":"Table_PI[[#This Row],[Line No.]]","v":""},{"$f":"IF(Table_SummaryPI[[#This Row],[MeasureName]]<>\"\",NOT(ISTEXT(Table_PI[[#This Row],[Rebate]])),\"\")","v":""},{"$f":"IF(Table_SummaryPI[[#This Row],[MeassureCategory]]<>\"\",CONCATENATE(Table_SummaryPI[[#This Row],[MeassureCategory]],  \" - \", Table_SummaryPI[[#This Row],[ProposedMeasureCategory]],  \" - \", TEXT(Table_SummaryPI[[#This Row],[Size]],\"#,##0.00\"),\" \",Table_SummaryPI[[#This Row],[SizeUnit]]),\"\")","v":""},{"$f":"SUBSTITUTE(Table_PI[[#This Row],[Measure]],\"     \",\"\",1)","v":""},{"$f":"IF(Table_PI[[#This Row],[List 1]]<>\"\",Table_PI[[#This Row],[List 1]],\"\")","v":""},{"$f":"IF(Table_PI[[#This Row],[List 2]]<>\"\",Table_PI[[#This Row],[List 2]],\"\")","v":""},{"$f":"IF(Table_PI[[#This Row],[List 3]]<>\"\",Table_PI[[#This Row],[List 3]],\"\")","v":""},{"$f":"IF(Table_PI[[#This Row],[Manufacturer]]=\"\",\"\",Table_PI[[#This Row],[Manufacturer]])","v":""},{"$f":"IF(Table_PI[[#This Row],[Model Number]]=\"\",\"\",Table_PI[[#This Row],[Model Number]])","v":""},{"$f":"IF(Table_PI[[#This Row],[Serial Number(s)]]=\"\",\"\",Table_PI[[#This Row],[Serial Number(s)]])","v":""},null,{"$f":"IF(Table_PI[[#This Row],[Size]]=\"\",\"\",Table_PI[[#This Row],[Size]])","v":""},null,null,{"$f":"IF(Table_PI[[#This Row],[Input 1]]<>\"\",Table_PI[[#This Row],[Input 1]],\"\")","v":""},null,null,{"$f":"IF(Table_PI[[#This Row],[Input 2]]<>\"\",Table_PI[[#This Row],[Input 2]],\"\")","v":""},null,null,{"$f":"IF(Table_PI[[#This Row],[Input 3]]<>\"\",Table_PI[[#This Row],[Input 3]],\"\")","v":""},null,null,{"$f":"IF(Table_PI[[#This Row],[Input 4]]<>\"\",Table_PI[[#This Row],[Input 4]],\"\")","v":""},null,null,{"$f":"IF(Table_PI[[#This Row],[Input 4]]<>\"\",Table_PI[[#This Row],[Input 4]],\"\")","v":""},null,null,{"$f":"IF(Table_PI[[#This Row],[Input 4]]<>\"\",Table_PI[[#This Row],[Input 4]],\"\")","v":""},{"$f":"IF(Table_PI[[#This Row],[Quantity]]=\"\",\"\",Table_PI[[#This Row],[Quantity]])","v":""},{"$f":"IF(Table_PI[[#This Row],[Notes]]=\"\",\"\",Table_PI[[#This Row],[Notes]])","v":""},{"$f":"IF(OR(Table_PI[[#This Row],[Hide: Baseline kWh]]=\"\",Table_PI[[#This Row],[Hide: Baseline kWh]]=0,ISTEXT(Table_PI[[#This Row],[Hide: Baseline kWh]])),\"\",Table_PI[[#This Row],[Hide: Baseline kWh]])","v":""},{"$f":"IF(OR(Table_PI[[#This Row],[Hide: Baseline kW]]=\"\",Table_PI[[#This Row],[Hide: Baseline kW]]=0,ISTEXT(Table_PI[[#This Row],[Hide: Baseline kW]])),\"\",Table_PI[[#This Row],[Hide: Baseline kW]])","v":""},{"$f":"IF(OR(Table_PI[[#This Row],[Hide: Proposed kWh]]=\"\",Table_PI[[#This Row],[Hide: Proposed kWh]]=0,ISTEXT(Table_PI[[#This Row],[Hide: Proposed kWh]])),\"\",Table_PI[[#This Row],[Hide: Proposed kWh]])","v":""},{"$f":"IF(OR(Table_PI[[#This Row],[Hide: Proposed kW]]=\"\",Table_PI[[#This Row],[Hide: Proposed kW]]=0,ISTEXT(Table_PI[[#This Row],[Hide: Proposed kW]])),\"\",Table_PI[[#This Row],[Hide: Proposed kW]])","v":""},null,null,{"$f":"IF(OR(Table_PI[[#This Row],[Hide: Rebate]]=\"\",Table_PI[[#This Row],[Hide: Rebate]]=0,ISTEXT(Table_PI[[#This Row],[Hide: Rebate]])),\"\",Table_PI[[#This Row],[Hide: Rebate]])","v":""},null,{"$f":"IF(OR(Table_PI[[#This Row],[Hide: Incremental Cost]]=\"\",Table_PI[[#This Row],[Hide: Incremental Cost]]=0,ISTEXT(Table_PI[[#This Row],[Hide: Incremental Cost]])),\"\",Table_PI[[#This Row],[Hide: Incremental Cost]])","v":""},{"$f":"IFERROR(IF(Table_SummaryPI[[#This Row],[Incentive_Customer]]=\"\",\"\",ROUND(Table_SummaryPI[[#This Row],[Incentive_Customer]]/$AM$401*'Customer Information'!$BC$21,2)),0)","v":""},{"$f":"IF(OR(Table_PI[[#This Row],[Annual kWh]]=\"\",Table_PI[[#This Row],[Annual kWh]]=0,ISTEXT(Table_PI[[#This Row],[Annual kWh]])),\"\",Table_PI[[#This Row],[Annual kWh]])","v":""},{"$f":"IF(OR(Table_PI[[#This Row],[Peak kW]]=\"\",Table_PI[[#This Row],[Peak kW]]=0,ISTEXT(Table_PI[[#This Row],[Peak kW]])),\"\",Table_PI[[#This Row],[Peak kW]])","v":""},{"$f":"IF(Table_SummaryPI[[#This Row],[Line No.]]<>\"\",IF(AND(ISNUMBER(FIND(\"Chiller\",Table_SummaryPI[[#This Row],[P_MeasureOption1]],1)),Table_SummaryPI[[#This Row],[ProposedMeasureCategory]]=\"Air-Cooled (Water-Cooled Replacement)\"),$BD$29*Table_SummaryPI[[#This Row],[Size]]*Table_SummaryPI[[#This Row],[Quantity]]*Table_SummaryPI[[#This Row],[EFLHCooling]],\nIF(ISNUMBER(FIND(\"Dishwasher\",Table_SummaryPI[[#This Row],[ProposedMeasureCategory]],1)),$BH$29*Table_SummaryPI[[#This Row],[Quantity]],\nIF(ISNUMBER(FIND(\"Ice Maker\",Table_SummaryPI[[#This Row],[ProposedMeasureCategory]],1)),$BD$31*Table_SummaryPI[[#This Row],[Quantity]],\nIF(ISNUMBER(FIND(\"Spray Valve\",Table_SummaryPI[[#This Row],[ProposedMeasureCategory]],1)),$BH$31*Table_SummaryPI[[#This Row],[Quantity]],\n0)))),\"\")","v":""},{"$f":"IF(OR(Table_PI[[#This Row],[Hide: Electrification kWh]]=\"\",Table_PI[[#This Row],[Hide: Electrification kWh]]=0,ISTEXT(Table_PI[[#This Row],[Hide: Electrification kWh]])),\"\",Table_PI[[#This Row],[Hide: Electrification kWh]])","v":""},{"$f":"IF(OR(Table_PI[[#This Row],[Hide: Electrification GHG]]=\"\",Table_PI[[#This Row],[Hide: Electrification GHG]]=0,ISTEXT(Table_PI[[#This Row],[Hide: Electrification GHG]])),\"\",Table_PI[[#This Row],[Hide: Electrification GHG]])","v":""},{"$f":"IFERROR(IF(Table_SummaryPI[[#This Row],[kWhSavings]]=\"\",\"\",$BH$9*Table_SummaryPI[[#This Row],[kWhSavings]]),0)","v":""},{"$f":"IFERROR(IF(Table_SummaryPI[[#This Row],[kWhSavings]]=\"\",\"\",$BH$14*Table_SummaryPI[[#This Row],[kWhSavings]]),0)","v":""},{"$f":"IFERROR(IF(Table_SummaryPI[[#This Row],[kWhSavings]]=\"\",\"\",$BH$18*Table_SummaryPI[[#This Row],[kWhSavings]]),0)","v":""},{"$f":"IFERROR(IF(Table_SummaryPI[[#This Row],[kWhSavings]]=\"\",\"\",$BH$22*Table_SummaryPI[[#This Row],[kWhSavings]]),0)","v":""}]
[{"$f":"Table_PI[[#This Row],[Line No.]]","v":""},{"$f":"IF(Table_SummaryPI[[#This Row],[MeasureName]]<>\"\",NOT(ISTEXT(Table_PI[[#This Row],[Rebate]])),\"\")","v":""},{"$f":"IF(Table_SummaryPI[[#This Row],[MeassureCategory]]<>\"\",CONCATENATE(Table_SummaryPI[[#This Row],[MeassureCategory]],  \" - \", Table_SummaryPI[[#This Row],[ProposedMeasureCategory]],  \" - \", TEXT(Table_SummaryPI[[#This Row],[Size]],\"#,##0.00\"),\" \",Table_SummaryPI[[#This Row],[SizeUnit]]),\"\")","v":""},{"$f":"SUBSTITUTE(Table_PI[[#This Row],[Measure]],\"     \",\"\",1)","v":""},{"$f":"IF(Table_PI[[#This Row],[List 1]]<>\"\",Table_PI[[#This Row],[List 1]],\"\")","v":""},{"$f":"IF(Table_PI[[#This Row],[List 2]]<>\"\",Table_PI[[#This Row],[List 2]],\"\")","v":""},{"$f":"IF(Table_PI[[#This Row],[List 3]]<>\"\",Table_PI[[#This Row],[List 3]],\"\")","v":""},{"$f":"IF(Table_PI[[#This Row],[Manufacturer]]=\"\",\"\",Table_PI[[#This Row],[Manufacturer]])","v":""},{"$f":"IF(Table_PI[[#This Row],[Model Number]]=\"\",\"\",Table_PI[[#This Row],[Model Number]])","v":""},{"$f":"IF(Table_PI[[#This Row],[Serial Number(s)]]=\"\",\"\",Table_PI[[#This Row],[Serial Number(s)]])","v":""},null,{"$f":"IF(Table_PI[[#This Row],[Size]]=\"\",\"\",Table_PI[[#This Row],[Size]])","v":""},null,null,{"$f":"IF(Table_PI[[#This Row],[Input 1]]<>\"\",Table_PI[[#This Row],[Input 1]],\"\")","v":""},null,null,{"$f":"IF(Table_PI[[#This Row],[Input 2]]<>\"\",Table_PI[[#This Row],[Input 2]],\"\")","v":""},null,null,{"$f":"IF(Table_PI[[#This Row],[Input 3]]<>\"\",Table_PI[[#This Row],[Input 3]],\"\")","v":""},null,null,{"$f":"IF(Table_PI[[#This Row],[Input 4]]<>\"\",Table_PI[[#This Row],[Input 4]],\"\")","v":""},null,null,{"$f":"IF(Table_PI[[#This Row],[Input 4]]<>\"\",Table_PI[[#This Row],[Input 4]],\"\")","v":""},null,null,{"$f":"IF(Table_PI[[#This Row],[Input 4]]<>\"\",Table_PI[[#This Row],[Input 4]],\"\")","v":""},{"$f":"IF(Table_PI[[#This Row],[Quantity]]=\"\",\"\",Table_PI[[#This Row],[Quantity]])","v":""},{"$f":"IF(Table_PI[[#This Row],[Notes]]=\"\",\"\",Table_PI[[#This Row],[Notes]])","v":""},{"$f":"IF(OR(Table_PI[[#This Row],[Hide: Baseline kWh]]=\"\",Table_PI[[#This Row],[Hide: Baseline kWh]]=0,ISTEXT(Table_PI[[#This Row],[Hide: Baseline kWh]])),\"\",Table_PI[[#This Row],[Hide: Baseline kWh]])","v":""},{"$f":"IF(OR(Table_PI[[#This Row],[Hide: Baseline kW]]=\"\",Table_PI[[#This Row],[Hide: Baseline kW]]=0,ISTEXT(Table_PI[[#This Row],[Hide: Baseline kW]])),\"\",Table_PI[[#This Row],[Hide: Baseline kW]])","v":""},{"$f":"IF(OR(Table_PI[[#This Row],[Hide: Proposed kWh]]=\"\",Table_PI[[#This Row],[Hide: Proposed kWh]]=0,ISTEXT(Table_PI[[#This Row],[Hide: Proposed kWh]])),\"\",Table_PI[[#This Row],[Hide: Proposed kWh]])","v":""},{"$f":"IF(OR(Table_PI[[#This Row],[Hide: Proposed kW]]=\"\",Table_PI[[#This Row],[Hide: Proposed kW]]=0,ISTEXT(Table_PI[[#This Row],[Hide: Proposed kW]])),\"\",Table_PI[[#This Row],[Hide: Proposed kW]])","v":""},null,null,{"$f":"IF(OR(Table_PI[[#This Row],[Hide: Rebate]]=\"\",Table_PI[[#This Row],[Hide: Rebate]]=0,ISTEXT(Table_PI[[#This Row],[Hide: Rebate]])),\"\",Table_PI[[#This Row],[Hide: Rebate]])","v":""},null,{"$f":"IF(OR(Table_PI[[#This Row],[Hide: Incremental Cost]]=\"\",Table_PI[[#This Row],[Hide: Incremental Cost]]=0,ISTEXT(Table_PI[[#This Row],[Hide: Incremental Cost]])),\"\",Table_PI[[#This Row],[Hide: Incremental Cost]])","v":""},{"$f":"IFERROR(IF(Table_SummaryPI[[#This Row],[Incentive_Customer]]=\"\",\"\",ROUND(Table_SummaryPI[[#This Row],[Incentive_Customer]]/$AM$401*'Customer Information'!$BC$21,2)),0)","v":""},{"$f":"IF(OR(Table_PI[[#This Row],[Annual kWh]]=\"\",Table_PI[[#This Row],[Annual kWh]]=0,ISTEXT(Table_PI[[#This Row],[Annual kWh]])),\"\",Table_PI[[#This Row],[Annual kWh]])","v":""},{"$f":"IF(OR(Table_PI[[#This Row],[Peak kW]]=\"\",Table_PI[[#This Row],[Peak kW]]=0,ISTEXT(Table_PI[[#This Row],[Peak kW]])),\"\",Table_PI[[#This Row],[Peak kW]])","v":""},{"$f":"IF(Table_SummaryPI[[#This Row],[Line No.]]<>\"\",IF(AND(ISNUMBER(FIND(\"Chiller\",Table_SummaryPI[[#This Row],[P_MeasureOption1]],1)),Table_SummaryPI[[#This Row],[ProposedMeasureCategory]]=\"Air-Cooled (Water-Cooled Replacement)\"),$BD$29*Table_SummaryPI[[#This Row],[Size]]*Table_SummaryPI[[#This Row],[Quantity]]*Table_SummaryPI[[#This Row],[EFLHCooling]],\nIF(ISNUMBER(FIND(\"Dishwasher\",Table_SummaryPI[[#This Row],[ProposedMeasureCategory]],1)),$BH$29*Table_SummaryPI[[#This Row],[Quantity]],\nIF(ISNUMBER(FIND(\"Ice Maker\",Table_SummaryPI[[#This Row],[ProposedMeasureCategory]],1)),$BD$31*Table_SummaryPI[[#This Row],[Quantity]],\nIF(ISNUMBER(FIND(\"Spray Valve\",Table_SummaryPI[[#This Row],[ProposedMeasureCategory]],1)),$BH$31*Table_SummaryPI[[#This Row],[Quantity]],\n0)))),\"\")","v":""},{"$f":"IF(OR(Table_PI[[#This Row],[Hide: Electrification kWh]]=\"\",Table_PI[[#This Row],[Hide: Electrification kWh]]=0,ISTEXT(Table_PI[[#This Row],[Hide: Electrification kWh]])),\"\",Table_PI[[#This Row],[Hide: Electrification kWh]])","v":""},{"$f":"IF(OR(Table_PI[[#This Row],[Hide: Electrification GHG]]=\"\",Table_PI[[#This Row],[Hide: Electrification GHG]]=0,ISTEXT(Table_PI[[#This Row],[Hide: Electrification GHG]])),\"\",Table_PI[[#This Row],[Hide: Electrification GHG]])","v":""},{"$f":"IFERROR(IF(Table_SummaryPI[[#This Row],[kWhSavings]]=\"\",\"\",$BH$9*Table_SummaryPI[[#This Row],[kWhSavings]]),0)","v":""},{"$f":"IFERROR(IF(Table_SummaryPI[[#This Row],[kWhSavings]]=\"\",\"\",$BH$14*Table_SummaryPI[[#This Row],[kWhSavings]]),0)","v":""},{"$f":"IFERROR(IF(Table_SummaryPI[[#This Row],[kWhSavings]]=\"\",\"\",$BH$18*Table_SummaryPI[[#This Row],[kWhSavings]]),0)","v":""},{"$f":"IFERROR(IF(Table_SummaryPI[[#This Row],[kWhSavings]]=\"\",\"\",$BH$22*Table_SummaryPI[[#This Row],[kWhSavings]]),0)","v":""}]
[{"$f":"Table_PI[[#This Row],[Line No.]]","v":""},{"$f":"IF(Table_SummaryPI[[#This Row],[MeasureName]]<>\"\",NOT(ISTEXT(Table_PI[[#This Row],[Rebate]])),\"\")","v":""},{"$f":"IF(Table_SummaryPI[[#This Row],[MeassureCategory]]<>\"\",CONCATENATE(Table_SummaryPI[[#This Row],[MeassureCategory]],  \" - \", Table_SummaryPI[[#This Row],[ProposedMeasureCategory]],  \" - \", TEXT(Table_SummaryPI[[#This Row],[Size]],\"#,##0.00\"),\" \",Table_SummaryPI[[#This Row],[SizeUnit]]),\"\")","v":""},{"$f":"SUBSTITUTE(Table_PI[[#This Row],[Measure]],\"     \",\"\",1)","v":""},{"$f":"IF(Table_PI[[#This Row],[List 1]]<>\"\",Table_PI[[#This Row],[List 1]],\"\")","v":""},{"$f":"IF(Table_PI[[#This Row],[List 2]]<>\"\",Table_PI[[#This Row],[List 2]],\"\")","v":""},{"$f":"IF(Table_PI[[#This Row],[List 3]]<>\"\",Table_PI[[#This Row],[List 3]],\"\")","v":""},{"$f":"IF(Table_PI[[#This Row],[Manufacturer]]=\"\",\"\",Table_PI[[#This Row],[Manufacturer]])","v":""},{"$f":"IF(Table_PI[[#This Row],[Model Number]]=\"\",\"\",Table_PI[[#This Row],[Model Number]])","v":""},{"$f":"IF(Table_PI[[#This Row],[Serial Number(s)]]=\"\",\"\",Table_PI[[#This Row],[Serial Number(s)]])","v":""},null,{"$f":"IF(Table_PI[[#This Row],[Size]]=\"\",\"\",Table_PI[[#This Row],[Size]])","v":""},null,null,{"$f":"IF(Table_PI[[#This Row],[Input 1]]<>\"\",Table_PI[[#This Row],[Input 1]],\"\")","v":""},null,null,{"$f":"IF(Table_PI[[#This Row],[Input 2]]<>\"\",Table_PI[[#This Row],[Input 2]],\"\")","v":""},null,null,{"$f":"IF(Table_PI[[#This Row],[Input 3]]<>\"\",Table_PI[[#This Row],[Input 3]],\"\")","v":""},null,null,{"$f":"IF(Table_PI[[#This Row],[Input 4]]<>\"\",Table_PI[[#This Row],[Input 4]],\"\")","v":""},null,null,{"$f":"IF(Table_PI[[#This Row],[Input 4]]<>\"\",Table_PI[[#This Row],[Input 4]],\"\")","v":""},null,null,{"$f":"IF(Table_PI[[#This Row],[Input 4]]<>\"\",Table_PI[[#This Row],[Input 4]],\"\")","v":""},{"$f":"IF(Table_PI[[#This Row],[Quantity]]=\"\",\"\",Table_PI[[#This Row],[Quantity]])","v":""},{"$f":"IF(Table_PI[[#This Row],[Notes]]=\"\",\"\",Table_PI[[#This Row],[Notes]])","v":""},{"$f":"IF(OR(Table_PI[[#This Row],[Hide: Baseline kWh]]=\"\",Table_PI[[#This Row],[Hide: Baseline kWh]]=0,ISTEXT(Table_PI[[#This Row],[Hide: Baseline kWh]])),\"\",Table_PI[[#This Row],[Hide: Baseline kWh]])","v":""},{"$f":"IF(OR(Table_PI[[#This Row],[Hide: Baseline kW]]=\"\",Table_PI[[#This Row],[Hide: Baseline kW]]=0,ISTEXT(Table_PI[[#This Row],[Hide: Baseline kW]])),\"\",Table_PI[[#This Row],[Hide: Baseline kW]])","v":""},{"$f":"IF(OR(Table_PI[[#This Row],[Hide: Proposed kWh]]=\"\",Table_PI[[#This Row],[Hide: Proposed kWh]]=0,ISTEXT(Table_PI[[#This Row],[Hide: Proposed kWh]])),\"\",Table_PI[[#This Row],[Hide: Proposed kWh]])","v":""},{"$f":"IF(OR(Table_PI[[#This Row],[Hide: Proposed kW]]=\"\",Table_PI[[#This Row],[Hide: Proposed kW]]=0,ISTEXT(Table_PI[[#This Row],[Hide: Proposed kW]])),\"\",Table_PI[[#This Row],[Hide: Proposed kW]])","v":""},null,null,{"$f":"IF(OR(Table_PI[[#This Row],[Hide: Rebate]]=\"\",Table_PI[[#This Row],[Hide: Rebate]]=0,ISTEXT(Table_PI[[#This Row],[Hide: Rebate]])),\"\",Table_PI[[#This Row],[Hide: Rebate]])","v":""},null,{"$f":"IF(OR(Table_PI[[#This Row],[Hide: Incremental Cost]]=\"\",Table_PI[[#This Row],[Hide: Incremental Cost]]=0,ISTEXT(Table_PI[[#This Row],[Hide: Incremental Cost]])),\"\",Table_PI[[#This Row],[Hide: Incremental Cost]])","v":""},{"$f":"IFERROR(IF(Table_SummaryPI[[#This Row],[Incentive_Customer]]=\"\",\"\",ROUND(Table_SummaryPI[[#This Row],[Incentive_Customer]]/$AM$401*'Customer Information'!$BC$21,2)),0)","v":""},{"$f":"IF(OR(Table_PI[[#This Row],[Annual kWh]]=\"\",Table_PI[[#This Row],[Annual kWh]]=0,ISTEXT(Table_PI[[#This Row],[Annual kWh]])),\"\",Table_PI[[#This Row],[Annual kWh]])","v":""},{"$f":"IF(OR(Table_PI[[#This Row],[Peak kW]]=\"\",Table_PI[[#This Row],[Peak kW]]=0,ISTEXT(Table_PI[[#This Row],[Peak kW]])),\"\",Table_PI[[#This Row],[Peak kW]])","v":""},{"$f":"IF(Table_SummaryPI[[#This Row],[Line No.]]<>\"\",IF(AND(ISNUMBER(FIND(\"Chiller\",Table_SummaryPI[[#This Row],[P_MeasureOption1]],1)),Table_SummaryPI[[#This Row],[ProposedMeasureCategory]]=\"Air-Cooled (Water-Cooled Replacement)\"),$BD$29*Table_SummaryPI[[#This Row],[Size]]*Table_SummaryPI[[#This Row],[Quantity]]*Table_SummaryPI[[#This Row],[EFLHCooling]],\nIF(ISNUMBER(FIND(\"Dishwasher\",Table_SummaryPI[[#This Row],[ProposedMeasureCategory]],1)),$BH$29*Table_SummaryPI[[#This Row],[Quantity]],\nIF(ISNUMBER(FIND(\"Ice Maker\",Table_SummaryPI[[#This Row],[ProposedMeasureCategory]],1)),$BD$31*Table_SummaryPI[[#This Row],[Quantity]],\nIF(ISNUMBER(FIND(\"Spray Valve\",Table_SummaryPI[[#This Row],[ProposedMeasureCategory]],1)),$BH$31*Table_SummaryPI[[#This Row],[Quantity]],\n0)))),\"\")","v":""},{"$f":"IF(OR(Table_PI[[#This Row],[Hide: Electrification kWh]]=\"\",Table_PI[[#This Row],[Hide: Electrification kWh]]=0,ISTEXT(Table_PI[[#This Row],[Hide: Electrification kWh]])),\"\",Table_PI[[#This Row],[Hide: Electrification kWh]])","v":""},{"$f":"IF(OR(Table_PI[[#This Row],[Hide: Electrification GHG]]=\"\",Table_PI[[#This Row],[Hide: Electrification GHG]]=0,ISTEXT(Table_PI[[#This Row],[Hide: Electrification GHG]])),\"\",Table_PI[[#This Row],[Hide: Electrification GHG]])","v":""},{"$f":"IFERROR(IF(Table_SummaryPI[[#This Row],[kWhSavings]]=\"\",\"\",$BH$9*Table_SummaryPI[[#This Row],[kWhSavings]]),0)","v":""},{"$f":"IFERROR(IF(Table_SummaryPI[[#This Row],[kWhSavings]]=\"\",\"\",$BH$14*Table_SummaryPI[[#This Row],[kWhSavings]]),0)","v":""},{"$f":"IFERROR(IF(Table_SummaryPI[[#This Row],[kWhSavings]]=\"\",\"\",$BH$18*Table_SummaryPI[[#This Row],[kWhSavings]]),0)","v":""},{"$f":"IFERROR(IF(Table_SummaryPI[[#This Row],[kWhSavings]]=\"\",\"\",$BH$22*Table_SummaryPI[[#This Row],[kWhSavings]]),0)","v":""}]
[{"$f":"Table_PI[[#This Row],[Line No.]]","v":""},{"$f":"IF(Table_SummaryPI[[#This Row],[MeasureName]]<>\"\",NOT(ISTEXT(Table_PI[[#This Row],[Rebate]])),\"\")","v":""},{"$f":"IF(Table_SummaryPI[[#This Row],[MeassureCategory]]<>\"\",CONCATENATE(Table_SummaryPI[[#This Row],[MeassureCategory]],  \" - \", Table_SummaryPI[[#This Row],[ProposedMeasureCategory]],  \" - \", TEXT(Table_SummaryPI[[#This Row],[Size]],\"#,##0.00\"),\" \",Table_SummaryPI[[#This Row],[SizeUnit]]),\"\")","v":""},{"$f":"SUBSTITUTE(Table_PI[[#This Row],[Measure]],\"     \",\"\",1)","v":""},{"$f":"IF(Table_PI[[#This Row],[List 1]]<>\"\",Table_PI[[#This Row],[List 1]],\"\")","v":""},{"$f":"IF(Table_PI[[#This Row],[List 2]]<>\"\",Table_PI[[#This Row],[List 2]],\"\")","v":""},{"$f":"IF(Table_PI[[#This Row],[List 3]]<>\"\",Table_PI[[#This Row],[List 3]],\"\")","v":""},{"$f":"IF(Table_PI[[#This Row],[Manufacturer]]=\"\",\"\",Table_PI[[#This Row],[Manufacturer]])","v":""},{"$f":"IF(Table_PI[[#This Row],[Model Number]]=\"\",\"\",Table_PI[[#This Row],[Model Number]])","v":""},{"$f":"IF(Table_PI[[#This Row],[Serial Number(s)]]=\"\",\"\",Table_PI[[#This Row],[Serial Number(s)]])","v":""},null,{"$f":"IF(Table_PI[[#This Row],[Size]]=\"\",\"\",Table_PI[[#This Row],[Size]])","v":""},null,null,{"$f":"IF(Table_PI[[#This Row],[Input 1]]<>\"\",Table_PI[[#This Row],[Input 1]],\"\")","v":""},null,null,{"$f":"IF(Table_PI[[#This Row],[Input 2]]<>\"\",Table_PI[[#This Row],[Input 2]],\"\")","v":""},null,null,{"$f":"IF(Table_PI[[#This Row],[Input 3]]<>\"\",Table_PI[[#This Row],[Input 3]],\"\")","v":""},null,null,{"$f":"IF(Table_PI[[#This Row],[Input 4]]<>\"\",Table_PI[[#This Row],[Input 4]],\"\")","v":""},null,null,{"$f":"IF(Table_PI[[#This Row],[Input 4]]<>\"\",Table_PI[[#This Row],[Input 4]],\"\")","v":""},null,null,{"$f":"IF(Table_PI[[#This Row],[Input 4]]<>\"\",Table_PI[[#This Row],[Input 4]],\"\")","v":""},{"$f":"IF(Table_PI[[#This Row],[Quantity]]=\"\",\"\",Table_PI[[#This Row],[Quantity]])","v":""},{"$f":"IF(Table_PI[[#This Row],[Notes]]=\"\",\"\",Table_PI[[#This Row],[Notes]])","v":""},{"$f":"IF(OR(Table_PI[[#This Row],[Hide: Baseline kWh]]=\"\",Table_PI[[#This Row],[Hide: Baseline kWh]]=0,ISTEXT(Table_PI[[#This Row],[Hide: Baseline kWh]])),\"\",Table_PI[[#This Row],[Hide: Baseline kWh]])","v":""},{"$f":"IF(OR(Table_PI[[#This Row],[Hide: Baseline kW]]=\"\",Table_PI[[#This Row],[Hide: Baseline kW]]=0,ISTEXT(Table_PI[[#This Row],[Hide: Baseline kW]])),\"\",Table_PI[[#This Row],[Hide: Baseline kW]])","v":""},{"$f":"IF(OR(Table_PI[[#This Row],[Hide: Proposed kWh]]=\"\",Table_PI[[#This Row],[Hide: Proposed kWh]]=0,ISTEXT(Table_PI[[#This Row],[Hide: Proposed kWh]])),\"\",Table_PI[[#This Row],[Hide: Proposed kWh]])","v":""},{"$f":"IF(OR(Table_PI[[#This Row],[Hide: Proposed kW]]=\"\",Table_PI[[#This Row],[Hide: Proposed kW]]=0,ISTEXT(Table_PI[[#This Row],[Hide: Proposed kW]])),\"\",Table_PI[[#This Row],[Hide: Proposed kW]])","v":""},null,null,{"$f":"IF(OR(Table_PI[[#This Row],[Hide: Rebate]]=\"\",Table_PI[[#This Row],[Hide: Rebate]]=0,ISTEXT(Table_PI[[#This Row],[Hide: Rebate]])),\"\",Table_PI[[#This Row],[Hide: Rebate]])","v":""},null,{"$f":"IF(OR(Table_PI[[#This Row],[Hide: Incremental Cost]]=\"\",Table_PI[[#This Row],[Hide: Incremental Cost]]=0,ISTEXT(Table_PI[[#This Row],[Hide: Incremental Cost]])),\"\",Table_PI[[#This Row],[Hide: Incremental Cost]])","v":""},{"$f":"IFERROR(IF(Table_SummaryPI[[#This Row],[Incentive_Customer]]=\"\",\"\",ROUND(Table_SummaryPI[[#This Row],[Incentive_Customer]]/$AM$401*'Customer Information'!$BC$21,2)),0)","v":""},{"$f":"IF(OR(Table_PI[[#This Row],[Annual kWh]]=\"\",Table_PI[[#This Row],[Annual kWh]]=0,ISTEXT(Table_PI[[#This Row],[Annual kWh]])),\"\",Table_PI[[#This Row],[Annual kWh]])","v":""},{"$f":"IF(OR(Table_PI[[#This Row],[Peak kW]]=\"\",Table_PI[[#This Row],[Peak kW]]=0,ISTEXT(Table_PI[[#This Row],[Peak kW]])),\"\",Table_PI[[#This Row],[Peak kW]])","v":""},{"$f":"IF(Table_SummaryPI[[#This Row],[Line No.]]<>\"\",IF(AND(ISNUMBER(FIND(\"Chiller\",Table_SummaryPI[[#This Row],[P_MeasureOption1]],1)),Table_SummaryPI[[#This Row],[ProposedMeasureCategory]]=\"Air-Cooled (Water-Cooled Replacement)\"),$BD$29*Table_SummaryPI[[#This Row],[Size]]*Table_SummaryPI[[#This Row],[Quantity]]*Table_SummaryPI[[#This Row],[EFLHCooling]],\nIF(ISNUMBER(FIND(\"Dishwasher\",Table_SummaryPI[[#This Row],[ProposedMeasureCategory]],1)),$BH$29*Table_SummaryPI[[#This Row],[Quantity]],\nIF(ISNUMBER(FIND(\"Ice Maker\",Table_SummaryPI[[#This Row],[ProposedMeasureCategory]],1)),$BD$31*Table_SummaryPI[[#This Row],[Quantity]],\nIF(ISNUMBER(FIND(\"Spray Valve\",Table_SummaryPI[[#This Row],[ProposedMeasureCategory]],1)),$BH$31*Table_SummaryPI[[#This Row],[Quantity]],\n0)))),\"\")","v":""},{"$f":"IF(OR(Table_PI[[#This Row],[Hide: Electrification kWh]]=\"\",Table_PI[[#This Row],[Hide: Electrification kWh]]=0,ISTEXT(Table_PI[[#This Row],[Hide: Electrification kWh]])),\"\",Table_PI[[#This Row],[Hide: Electrification kWh]])","v":""},{"$f":"IF(OR(Table_PI[[#This Row],[Hide: Electrification GHG]]=\"\",Table_PI[[#This Row],[Hide: Electrification GHG]]=0,ISTEXT(Table_PI[[#This Row],[Hide: Electrification GHG]])),\"\",Table_PI[[#This Row],[Hide: Electrification GHG]])","v":""},{"$f":"IFERROR(IF(Table_SummaryPI[[#This Row],[kWhSavings]]=\"\",\"\",$BH$9*Table_SummaryPI[[#This Row],[kWhSavings]]),0)","v":""},{"$f":"IFERROR(IF(Table_SummaryPI[[#This Row],[kWhSavings]]=\"\",\"\",$BH$14*Table_SummaryPI[[#This Row],[kWhSavings]]),0)","v":""},{"$f":"IFERROR(IF(Table_SummaryPI[[#This Row],[kWhSavings]]=\"\",\"\",$BH$18*Table_SummaryPI[[#This Row],[kWhSavings]]),0)","v":""},{"$f":"IFERROR(IF(Table_SummaryPI[[#This Row],[kWhSavings]]=\"\",\"\",$BH$22*Table_SummaryPI[[#This Row],[kWhSavings]]),0)","v":""}]
[{"$f":"Table_PI[[#This Row],[Line No.]]","v":""},{"$f":"IF(Table_SummaryPI[[#This Row],[MeasureName]]<>\"\",NOT(ISTEXT(Table_PI[[#This Row],[Rebate]])),\"\")","v":""},{"$f":"IF(Table_SummaryPI[[#This Row],[MeassureCategory]]<>\"\",CONCATENATE(Table_SummaryPI[[#This Row],[MeassureCategory]],  \" - \", Table_SummaryPI[[#This Row],[ProposedMeasureCategory]],  \" - \", TEXT(Table_SummaryPI[[#This Row],[Size]],\"#,##0.00\"),\" \",Table_SummaryPI[[#This Row],[SizeUnit]]),\"\")","v":""},{"$f":"SUBSTITUTE(Table_PI[[#This Row],[Measure]],\"     \",\"\",1)","v":""},{"$f":"IF(Table_PI[[#This Row],[List 1]]<>\"\",Table_PI[[#This Row],[List 1]],\"\")","v":""},{"$f":"IF(Table_PI[[#This Row],[List 2]]<>\"\",Table_PI[[#This Row],[List 2]],\"\")","v":""},{"$f":"IF(Table_PI[[#This Row],[List 3]]<>\"\",Table_PI[[#This Row],[List 3]],\"\")","v":""},{"$f":"IF(Table_PI[[#This Row],[Manufacturer]]=\"\",\"\",Table_PI[[#This Row],[Manufacturer]])","v":""},{"$f":"IF(Table_PI[[#This Row],[Model Number]]=\"\",\"\",Table_PI[[#This Row],[Model Number]])","v":""},{"$f":"IF(Table_PI[[#This Row],[Serial Number(s)]]=\"\",\"\",Table_PI[[#This Row],[Serial Number(s)]])","v":""},null,{"$f":"IF(Table_PI[[#This Row],[Size]]=\"\",\"\",Table_PI[[#This Row],[Size]])","v":""},null,null,{"$f":"IF(Table_PI[[#This Row],[Input 1]]<>\"\",Table_PI[[#This Row],[Input 1]],\"\")","v":""},null,null,{"$f":"IF(Table_PI[[#This Row],[Input 2]]<>\"\",Table_PI[[#This Row],[Input 2]],\"\")","v":""},null,null,{"$f":"IF(Table_PI[[#This Row],[Input 3]]<>\"\",Table_PI[[#This Row],[Input 3]],\"\")","v":""},null,null,{"$f":"IF(Table_PI[[#This Row],[Input 4]]<>\"\",Table_PI[[#This Row],[Input 4]],\"\")","v":""},null,null,{"$f":"IF(Table_PI[[#This Row],[Input 4]]<>\"\",Table_PI[[#This Row],[Input 4]],\"\")","v":""},null,null,{"$f":"IF(Table_PI[[#This Row],[Input 4]]<>\"\",Table_PI[[#This Row],[Input 4]],\"\")","v":""},{"$f":"IF(Table_PI[[#This Row],[Quantity]]=\"\",\"\",Table_PI[[#This Row],[Quantity]])","v":""},{"$f":"IF(Table_PI[[#This Row],[Notes]]=\"\",\"\",Table_PI[[#This Row],[Notes]])","v":""},{"$f":"IF(OR(Table_PI[[#This Row],[Hide: Baseline kWh]]=\"\",Table_PI[[#This Row],[Hide: Baseline kWh]]=0,ISTEXT(Table_PI[[#This Row],[Hide: Baseline kWh]])),\"\",Table_PI[[#This Row],[Hide: Baseline kWh]])","v":""},{"$f":"IF(OR(Table_PI[[#This Row],[Hide: Baseline kW]]=\"\",Table_PI[[#This Row],[Hide: Baseline kW]]=0,ISTEXT(Table_PI[[#This Row],[Hide: Baseline kW]])),\"\",Table_PI[[#This Row],[Hide: Baseline kW]])","v":""},{"$f":"IF(OR(Table_PI[[#This Row],[Hide: Proposed kWh]]=\"\",Table_PI[[#This Row],[Hide: Proposed kWh]]=0,ISTEXT(Table_PI[[#This Row],[Hide: Proposed kWh]])),\"\",Table_PI[[#This Row],[Hide: Proposed kWh]])","v":""},{"$f":"IF(OR(Table_PI[[#This Row],[Hide: Proposed kW]]=\"\",Table_PI[[#This Row],[Hide: Proposed kW]]=0,ISTEXT(Table_PI[[#This Row],[Hide: Proposed kW]])),\"\",Table_PI[[#This Row],[Hide: Proposed kW]])","v":""},null,null,{"$f":"IF(OR(Table_PI[[#This Row],[Hide: Rebate]]=\"\",Table_PI[[#This Row],[Hide: Rebate]]=0,ISTEXT(Table_PI[[#This Row],[Hide: Rebate]])),\"\",Table_PI[[#This Row],[Hide: Rebate]])","v":""},null,{"$f":"IF(OR(Table_PI[[#This Row],[Hide: Incremental Cost]]=\"\",Table_PI[[#This Row],[Hide: Incremental Cost]]=0,ISTEXT(Table_PI[[#This Row],[Hide: Incremental Cost]])),\"\",Table_PI[[#This Row],[Hide: Incremental Cost]])","v":""},{"$f":"IFERROR(IF(Table_SummaryPI[[#This Row],[Incentive_Customer]]=\"\",\"\",ROUND(Table_SummaryPI[[#This Row],[Incentive_Customer]]/$AM$401*'Customer Information'!$BC$21,2)),0)","v":""},{"$f":"IF(OR(Table_PI[[#This Row],[Annual kWh]]=\"\",Table_PI[[#This Row],[Annual kWh]]=0,ISTEXT(Table_PI[[#This Row],[Annual kWh]])),\"\",Table_PI[[#This Row],[Annual kWh]])","v":""},{"$f":"IF(OR(Table_PI[[#This Row],[Peak kW]]=\"\",Table_PI[[#This Row],[Peak kW]]=0,ISTEXT(Table_PI[[#This Row],[Peak kW]])),\"\",Table_PI[[#This Row],[Peak kW]])","v":""},{"$f":"IF(Table_SummaryPI[[#This Row],[Line No.]]<>\"\",IF(AND(ISNUMBER(FIND(\"Chiller\",Table_SummaryPI[[#This Row],[P_MeasureOption1]],1)),Table_SummaryPI[[#This Row],[ProposedMeasureCategory]]=\"Air-Cooled (Water-Cooled Replacement)\"),$BD$29*Table_SummaryPI[[#This Row],[Size]]*Table_SummaryPI[[#This Row],[Quantity]]*Table_SummaryPI[[#This Row],[EFLHCooling]],\nIF(ISNUMBER(FIND(\"Dishwasher\",Table_SummaryPI[[#This Row],[ProposedMeasureCategory]],1)),$BH$29*Table_SummaryPI[[#This Row],[Quantity]],\nIF(ISNUMBER(FIND(\"Ice Maker\",Table_SummaryPI[[#This Row],[ProposedMeasureCategory]],1)),$BD$31*Table_SummaryPI[[#This Row],[Quantity]],\nIF(ISNUMBER(FIND(\"Spray Valve\",Table_SummaryPI[[#This Row],[ProposedMeasureCategory]],1)),$BH$31*Table_SummaryPI[[#This Row],[Quantity]],\n0)))),\"\")","v":""},{"$f":"IF(OR(Table_PI[[#This Row],[Hide: Electrification kWh]]=\"\",Table_PI[[#This Row],[Hide: Electrification kWh]]=0,ISTEXT(Table_PI[[#This Row],[Hide: Electrification kWh]])),\"\",Table_PI[[#This Row],[Hide: Electrification kWh]])","v":""},{"$f":"IF(OR(Table_PI[[#This Row],[Hide: Electrification GHG]]=\"\",Table_PI[[#This Row],[Hide: Electrification GHG]]=0,ISTEXT(Table_PI[[#This Row],[Hide: Electrification GHG]])),\"\",Table_PI[[#This Row],[Hide: Electrification GHG]])","v":""},{"$f":"IFERROR(IF(Table_SummaryPI[[#This Row],[kWhSavings]]=\"\",\"\",$BH$9*Table_SummaryPI[[#This Row],[kWhSavings]]),0)","v":""},{"$f":"IFERROR(IF(Table_SummaryPI[[#This Row],[kWhSavings]]=\"\",\"\",$BH$14*Table_SummaryPI[[#This Row],[kWhSavings]]),0)","v":""},{"$f":"IFERROR(IF(Table_SummaryPI[[#This Row],[kWhSavings]]=\"\",\"\",$BH$18*Table_SummaryPI[[#This Row],[kWhSavings]]),0)","v":""},{"$f":"IFERROR(IF(Table_SummaryPI[[#This Row],[kWhSavings]]=\"\",\"\",$BH$22*Table_SummaryPI[[#This Row],[kWhSavings]]),0)","v":""}]
[{"$f":"Table_PI[[#This Row],[Line No.]]","v":""},{"$f":"IF(Table_SummaryPI[[#This Row],[MeasureName]]<>\"\",NOT(ISTEXT(Table_PI[[#This Row],[Rebate]])),\"\")","v":""},{"$f":"IF(Table_SummaryPI[[#This Row],[MeassureCategory]]<>\"\",CONCATENATE(Table_SummaryPI[[#This Row],[MeassureCategory]],  \" - \", Table_SummaryPI[[#This Row],[ProposedMeasureCategory]],  \" - \", TEXT(Table_SummaryPI[[#This Row],[Size]],\"#,##0.00\"),\" \",Table_SummaryPI[[#This Row],[SizeUnit]]),\"\")","v":""},{"$f":"SUBSTITUTE(Table_PI[[#This Row],[Measure]],\"     \",\"\",1)","v":""},{"$f":"IF(Table_PI[[#This Row],[List 1]]<>\"\",Table_PI[[#This Row],[List 1]],\"\")","v":""},{"$f":"IF(Table_PI[[#This Row],[List 2]]<>\"\",Table_PI[[#This Row],[List 2]],\"\")","v":""},{"$f":"IF(Table_PI[[#This Row],[List 3]]<>\"\",Table_PI[[#This Row],[List 3]],\"\")","v":""},{"$f":"IF(Table_PI[[#This Row],[Manufacturer]]=\"\",\"\",Table_PI[[#This Row],[Manufacturer]])","v":""},{"$f":"IF(Table_PI[[#This Row],[Model Number]]=\"\",\"\",Table_PI[[#This Row],[Model Number]])","v":""},{"$f":"IF(Table_PI[[#This Row],[Serial Number(s)]]=\"\",\"\",Table_PI[[#This Row],[Serial Number(s)]])","v":""},null,{"$f":"IF(Table_PI[[#This Row],[Size]]=\"\",\"\",Table_PI[[#This Row],[Size]])","v":""},null,null,{"$f":"IF(Table_PI[[#This Row],[Input 1]]<>\"\",Table_PI[[#This Row],[Input 1]],\"\")","v":""},null,null,{"$f":"IF(Table_PI[[#This Row],[Input 2]]<>\"\",Table_PI[[#This Row],[Input 2]],\"\")","v":""},null,null,{"$f":"IF(Table_PI[[#This Row],[Input 3]]<>\"\",Table_PI[[#This Row],[Input 3]],\"\")","v":""},null,null,{"$f":"IF(Table_PI[[#This Row],[Input 4]]<>\"\",Table_PI[[#This Row],[Input 4]],\"\")","v":""},null,null,{"$f":"IF(Table_PI[[#This Row],[Input 4]]<>\"\",Table_PI[[#This Row],[Input 4]],\"\")","v":""},null,null,{"$f":"IF(Table_PI[[#This Row],[Input 4]]<>\"\",Table_PI[[#This Row],[Input 4]],\"\")","v":""},{"$f":"IF(Table_PI[[#This Row],[Quantity]]=\"\",\"\",Table_PI[[#This Row],[Quantity]])","v":""},{"$f":"IF(Table_PI[[#This Row],[Notes]]=\"\",\"\",Table_PI[[#This Row],[Notes]])","v":""},{"$f":"IF(OR(Table_PI[[#This Row],[Hide: Baseline kWh]]=\"\",Table_PI[[#This Row],[Hide: Baseline kWh]]=0,ISTEXT(Table_PI[[#This Row],[Hide: Baseline kWh]])),\"\",Table_PI[[#This Row],[Hide: Baseline kWh]])","v":""},{"$f":"IF(OR(Table_PI[[#This Row],[Hide: Baseline kW]]=\"\",Table_PI[[#This Row],[Hide: Baseline kW]]=0,ISTEXT(Table_PI[[#This Row],[Hide: Baseline kW]])),\"\",Table_PI[[#This Row],[Hide: Baseline kW]])","v":""},{"$f":"IF(OR(Table_PI[[#This Row],[Hide: Proposed kWh]]=\"\",Table_PI[[#This Row],[Hide: Proposed kWh]]=0,ISTEXT(Table_PI[[#This Row],[Hide: Proposed kWh]])),\"\",Table_PI[[#This Row],[Hide: Proposed kWh]])","v":""},{"$f":"IF(OR(Table_PI[[#This Row],[Hide: Proposed kW]]=\"\",Table_PI[[#This Row],[Hide: Proposed kW]]=0,ISTEXT(Table_PI[[#This Row],[Hide: Proposed kW]])),\"\",Table_PI[[#This Row],[Hide: Proposed kW]])","v":""},null,null,{"$f":"IF(OR(Table_PI[[#This Row],[Hide: Rebate]]=\"\",Table_PI[[#This Row],[Hide: Rebate]]=0,ISTEXT(Table_PI[[#This Row],[Hide: Rebate]])),\"\",Table_PI[[#This Row],[Hide: Rebate]])","v":""},null,{"$f":"IF(OR(Table_PI[[#This Row],[Hide: Incremental Cost]]=\"\",Table_PI[[#This Row],[Hide: Incremental Cost]]=0,ISTEXT(Table_PI[[#This Row],[Hide: Incremental Cost]])),\"\",Table_PI[[#This Row],[Hide: Incremental Cost]])","v":""},{"$f":"IFERROR(IF(Table_SummaryPI[[#This Row],[Incentive_Customer]]=\"\",\"\",ROUND(Table_SummaryPI[[#This Row],[Incentive_Customer]]/$AM$401*'Customer Information'!$BC$21,2)),0)","v":""},{"$f":"IF(OR(Table_PI[[#This Row],[Annual kWh]]=\"\",Table_PI[[#This Row],[Annual kWh]]=0,ISTEXT(Table_PI[[#This Row],[Annual kWh]])),\"\",Table_PI[[#This Row],[Annual kWh]])","v":""},{"$f":"IF(OR(Table_PI[[#This Row],[Peak kW]]=\"\",Table_PI[[#This Row],[Peak kW]]=0,ISTEXT(Table_PI[[#This Row],[Peak kW]])),\"\",Table_PI[[#This Row],[Peak kW]])","v":""},{"$f":"IF(Table_SummaryPI[[#This Row],[Line No.]]<>\"\",IF(AND(ISNUMBER(FIND(\"Chiller\",Table_SummaryPI[[#This Row],[P_MeasureOption1]],1)),Table_SummaryPI[[#This Row],[ProposedMeasureCategory]]=\"Air-Cooled (Water-Cooled Replacement)\"),$BD$29*Table_SummaryPI[[#This Row],[Size]]*Table_SummaryPI[[#This Row],[Quantity]]*Table_SummaryPI[[#This Row],[EFLHCooling]],\nIF(ISNUMBER(FIND(\"Dishwasher\",Table_SummaryPI[[#This Row],[ProposedMeasureCategory]],1)),$BH$29*Table_SummaryPI[[#This Row],[Quantity]],\nIF(ISNUMBER(FIND(\"Ice Maker\",Table_SummaryPI[[#This Row],[ProposedMeasureCategory]],1)),$BD$31*Table_SummaryPI[[#This Row],[Quantity]],\nIF(ISNUMBER(FIND(\"Spray Valve\",Table_SummaryPI[[#This Row],[ProposedMeasureCategory]],1)),$BH$31*Table_SummaryPI[[#This Row],[Quantity]],\n0)))),\"\")","v":""},{"$f":"IF(OR(Table_PI[[#This Row],[Hide: Electrification kWh]]=\"\",Table_PI[[#This Row],[Hide: Electrification kWh]]=0,ISTEXT(Table_PI[[#This Row],[Hide: Electrification kWh]])),\"\",Table_PI[[#This Row],[Hide: Electrification kWh]])","v":""},{"$f":"IF(OR(Table_PI[[#This Row],[Hide: Electrification GHG]]=\"\",Table_PI[[#This Row],[Hide: Electrification GHG]]=0,ISTEXT(Table_PI[[#This Row],[Hide: Electrification GHG]])),\"\",Table_PI[[#This Row],[Hide: Electrification GHG]])","v":""},{"$f":"IFERROR(IF(Table_SummaryPI[[#This Row],[kWhSavings]]=\"\",\"\",$BH$9*Table_SummaryPI[[#This Row],[kWhSavings]]),0)","v":""},{"$f":"IFERROR(IF(Table_SummaryPI[[#This Row],[kWhSavings]]=\"\",\"\",$BH$14*Table_SummaryPI[[#This Row],[kWhSavings]]),0)","v":""},{"$f":"IFERROR(IF(Table_SummaryPI[[#This Row],[kWhSavings]]=\"\",\"\",$BH$18*Table_SummaryPI[[#This Row],[kWhSavings]]),0)","v":""},{"$f":"IFERROR(IF(Table_SummaryPI[[#This Row],[kWhSavings]]=\"\",\"\",$BH$22*Table_SummaryPI[[#This Row],[kWhSavings]]),0)","v":""}]
[{"$f":"Table_PI[[#This Row],[Line No.]]","v":""},{"$f":"IF(Table_SummaryPI[[#This Row],[MeasureName]]<>\"\",NOT(ISTEXT(Table_PI[[#This Row],[Rebate]])),\"\")","v":""},{"$f":"IF(Table_SummaryPI[[#This Row],[MeassureCategory]]<>\"\",CONCATENATE(Table_SummaryPI[[#This Row],[MeassureCategory]],  \" - \", Table_SummaryPI[[#This Row],[ProposedMeasureCategory]],  \" - \", TEXT(Table_SummaryPI[[#This Row],[Size]],\"#,##0.00\"),\" \",Table_SummaryPI[[#This Row],[SizeUnit]]),\"\")","v":""},{"$f":"SUBSTITUTE(Table_PI[[#This Row],[Measure]],\"     \",\"\",1)","v":""},{"$f":"IF(Table_PI[[#This Row],[List 1]]<>\"\",Table_PI[[#This Row],[List 1]],\"\")","v":""},{"$f":"IF(Table_PI[[#This Row],[List 2]]<>\"\",Table_PI[[#This Row],[List 2]],\"\")","v":""},{"$f":"IF(Table_PI[[#This Row],[List 3]]<>\"\",Table_PI[[#This Row],[List 3]],\"\")","v":""},{"$f":"IF(Table_PI[[#This Row],[Manufacturer]]=\"\",\"\",Table_PI[[#This Row],[Manufacturer]])","v":""},{"$f":"IF(Table_PI[[#This Row],[Model Number]]=\"\",\"\",Table_PI[[#This Row],[Model Number]])","v":""},{"$f":"IF(Table_PI[[#This Row],[Serial Number(s)]]=\"\",\"\",Table_PI[[#This Row],[Serial Number(s)]])","v":""},null,{"$f":"IF(Table_PI[[#This Row],[Size]]=\"\",\"\",Table_PI[[#This Row],[Size]])","v":""},null,null,{"$f":"IF(Table_PI[[#This Row],[Input 1]]<>\"\",Table_PI[[#This Row],[Input 1]],\"\")","v":""},null,null,{"$f":"IF(Table_PI[[#This Row],[Input 2]]<>\"\",Table_PI[[#This Row],[Input 2]],\"\")","v":""},null,null,{"$f":"IF(Table_PI[[#This Row],[Input 3]]<>\"\",Table_PI[[#This Row],[Input 3]],\"\")","v":""},null,null,{"$f":"IF(Table_PI[[#This Row],[Input 4]]<>\"\",Table_PI[[#This Row],[Input 4]],\"\")","v":""},null,null,{"$f":"IF(Table_PI[[#This Row],[Input 4]]<>\"\",Table_PI[[#This Row],[Input 4]],\"\")","v":""},null,null,{"$f":"IF(Table_PI[[#This Row],[Input 4]]<>\"\",Table_PI[[#This Row],[Input 4]],\"\")","v":""},{"$f":"IF(Table_PI[[#This Row],[Quantity]]=\"\",\"\",Table_PI[[#This Row],[Quantity]])","v":""},{"$f":"IF(Table_PI[[#This Row],[Notes]]=\"\",\"\",Table_PI[[#This Row],[Notes]])","v":""},{"$f":"IF(OR(Table_PI[[#This Row],[Hide: Baseline kWh]]=\"\",Table_PI[[#This Row],[Hide: Baseline kWh]]=0,ISTEXT(Table_PI[[#This Row],[Hide: Baseline kWh]])),\"\",Table_PI[[#This Row],[Hide: Baseline kWh]])","v":""},{"$f":"IF(OR(Table_PI[[#This Row],[Hide: Baseline kW]]=\"\",Table_PI[[#This Row],[Hide: Baseline kW]]=0,ISTEXT(Table_PI[[#This Row],[Hide: Baseline kW]])),\"\",Table_PI[[#This Row],[Hide: Baseline kW]])","v":""},{"$f":"IF(OR(Table_PI[[#This Row],[Hide: Proposed kWh]]=\"\",Table_PI[[#This Row],[Hide: Proposed kWh]]=0,ISTEXT(Table_PI[[#This Row],[Hide: Proposed kWh]])),\"\",Table_PI[[#This Row],[Hide: Proposed kWh]])","v":""},{"$f":"IF(OR(Table_PI[[#This Row],[Hide: Proposed kW]]=\"\",Table_PI[[#This Row],[Hide: Proposed kW]]=0,ISTEXT(Table_PI[[#This Row],[Hide: Proposed kW]])),\"\",Table_PI[[#This Row],[Hide: Proposed kW]])","v":""},null,null,{"$f":"IF(OR(Table_PI[[#This Row],[Hide: Rebate]]=\"\",Table_PI[[#This Row],[Hide: Rebate]]=0,ISTEXT(Table_PI[[#This Row],[Hide: Rebate]])),\"\",Table_PI[[#This Row],[Hide: Rebate]])","v":""},null,{"$f":"IF(OR(Table_PI[[#This Row],[Hide: Incremental Cost]]=\"\",Table_PI[[#This Row],[Hide: Incremental Cost]]=0,ISTEXT(Table_PI[[#This Row],[Hide: Incremental Cost]])),\"\",Table_PI[[#This Row],[Hide: Incremental Cost]])","v":""},{"$f":"IFERROR(IF(Table_SummaryPI[[#This Row],[Incentive_Customer]]=\"\",\"\",ROUND(Table_SummaryPI[[#This Row],[Incentive_Customer]]/$AM$401*'Customer Information'!$BC$21,2)),0)","v":""},{"$f":"IF(OR(Table_PI[[#This Row],[Annual kWh]]=\"\",Table_PI[[#This Row],[Annual kWh]]=0,ISTEXT(Table_PI[[#This Row],[Annual kWh]])),\"\",Table_PI[[#This Row],[Annual kWh]])","v":""},{"$f":"IF(OR(Table_PI[[#This Row],[Peak kW]]=\"\",Table_PI[[#This Row],[Peak kW]]=0,ISTEXT(Table_PI[[#This Row],[Peak kW]])),\"\",Table_PI[[#This Row],[Peak kW]])","v":""},{"$f":"IF(Table_SummaryPI[[#This Row],[Line No.]]<>\"\",IF(AND(ISNUMBER(FIND(\"Chiller\",Table_SummaryPI[[#This Row],[P_MeasureOption1]],1)),Table_SummaryPI[[#This Row],[ProposedMeasureCategory]]=\"Air-Cooled (Water-Cooled Replacement)\"),$BD$29*Table_SummaryPI[[#This Row],[Size]]*Table_SummaryPI[[#This Row],[Quantity]]*Table_SummaryPI[[#This Row],[EFLHCooling]],\nIF(ISNUMBER(FIND(\"Dishwasher\",Table_SummaryPI[[#This Row],[ProposedMeasureCategory]],1)),$BH$29*Table_SummaryPI[[#This Row],[Quantity]],\nIF(ISNUMBER(FIND(\"Ice Maker\",Table_SummaryPI[[#This Row],[ProposedMeasureCategory]],1)),$BD$31*Table_SummaryPI[[#This Row],[Quantity]],\nIF(ISNUMBER(FIND(\"Spray Valve\",Table_SummaryPI[[#This Row],[ProposedMeasureCategory]],1)),$BH$31*Table_SummaryPI[[#This Row],[Quantity]],\n0)))),\"\")","v":""},{"$f":"IF(OR(Table_PI[[#This Row],[Hide: Electrification kWh]]=\"\",Table_PI[[#This Row],[Hide: Electrification kWh]]=0,ISTEXT(Table_PI[[#This Row],[Hide: Electrification kWh]])),\"\",Table_PI[[#This Row],[Hide: Electrification kWh]])","v":""},{"$f":"IF(OR(Table_PI[[#This Row],[Hide: Electrification GHG]]=\"\",Table_PI[[#This Row],[Hide: Electrification GHG]]=0,ISTEXT(Table_PI[[#This Row],[Hide: Electrification GHG]])),\"\",Table_PI[[#This Row],[Hide: Electrification GHG]])","v":""},{"$f":"IFERROR(IF(Table_SummaryPI[[#This Row],[kWhSavings]]=\"\",\"\",$BH$9*Table_SummaryPI[[#This Row],[kWhSavings]]),0)","v":""},{"$f":"IFERROR(IF(Table_SummaryPI[[#This Row],[kWhSavings]]=\"\",\"\",$BH$14*Table_SummaryPI[[#This Row],[kWhSavings]]),0)","v":""},{"$f":"IFERROR(IF(Table_SummaryPI[[#This Row],[kWhSavings]]=\"\",\"\",$BH$18*Table_SummaryPI[[#This Row],[kWhSavings]]),0)","v":""},{"$f":"IFERROR(IF(Table_SummaryPI[[#This Row],[kWhSavings]]=\"\",\"\",$BH$22*Table_SummaryPI[[#This Row],[kWhSavings]]),0)","v":""}]
[{"$f":"Table_PI[[#This Row],[Line No.]]","v":""},{"$f":"IF(Table_SummaryPI[[#This Row],[MeasureName]]<>\"\",NOT(ISTEXT(Table_PI[[#This Row],[Rebate]])),\"\")","v":""},{"$f":"IF(Table_SummaryPI[[#This Row],[MeassureCategory]]<>\"\",CONCATENATE(Table_SummaryPI[[#This Row],[MeassureCategory]],  \" - \", Table_SummaryPI[[#This Row],[ProposedMeasureCategory]],  \" - \", TEXT(Table_SummaryPI[[#This Row],[Size]],\"#,##0.00\"),\" \",Table_SummaryPI[[#This Row],[SizeUnit]]),\"\")","v":""},{"$f":"SUBSTITUTE(Table_PI[[#This Row],[Measure]],\"     \",\"\",1)","v":""},{"$f":"IF(Table_PI[[#This Row],[List 1]]<>\"\",Table_PI[[#This Row],[List 1]],\"\")","v":""},{"$f":"IF(Table_PI[[#This Row],[List 2]]<>\"\",Table_PI[[#This Row],[List 2]],\"\")","v":""},{"$f":"IF(Table_PI[[#This Row],[List 3]]<>\"\",Table_PI[[#This Row],[List 3]],\"\")","v":""},{"$f":"IF(Table_PI[[#This Row],[Manufacturer]]=\"\",\"\",Table_PI[[#This Row],[Manufacturer]])","v":""},{"$f":"IF(Table_PI[[#This Row],[Model Number]]=\"\",\"\",Table_PI[[#This Row],[Model Number]])","v":""},{"$f":"IF(Table_PI[[#This Row],[Serial Number(s)]]=\"\",\"\",Table_PI[[#This Row],[Serial Number(s)]])","v":""},null,{"$f":"IF(Table_PI[[#This Row],[Size]]=\"\",\"\",Table_PI[[#This Row],[Size]])","v":""},null,null,{"$f":"IF(Table_PI[[#This Row],[Input 1]]<>\"\",Table_PI[[#This Row],[Input 1]],\"\")","v":""},null,null,{"$f":"IF(Table_PI[[#This Row],[Input 2]]<>\"\",Table_PI[[#This Row],[Input 2]],\"\")","v":""},null,null,{"$f":"IF(Table_PI[[#This Row],[Input 3]]<>\"\",Table_PI[[#This Row],[Input 3]],\"\")","v":""},null,null,{"$f":"IF(Table_PI[[#This Row],[Input 4]]<>\"\",Table_PI[[#This Row],[Input 4]],\"\")","v":""},null,null,{"$f":"IF(Table_PI[[#This Row],[Input 4]]<>\"\",Table_PI[[#This Row],[Input 4]],\"\")","v":""},null,null,{"$f":"IF(Table_PI[[#This Row],[Input 4]]<>\"\",Table_PI[[#This Row],[Input 4]],\"\")","v":""},{"$f":"IF(Table_PI[[#This Row],[Quantity]]=\"\",\"\",Table_PI[[#This Row],[Quantity]])","v":""},{"$f":"IF(Table_PI[[#This Row],[Notes]]=\"\",\"\",Table_PI[[#This Row],[Notes]])","v":""},{"$f":"IF(OR(Table_PI[[#This Row],[Hide: Baseline kWh]]=\"\",Table_PI[[#This Row],[Hide: Baseline kWh]]=0,ISTEXT(Table_PI[[#This Row],[Hide: Baseline kWh]])),\"\",Table_PI[[#This Row],[Hide: Baseline kWh]])","v":""},{"$f":"IF(OR(Table_PI[[#This Row],[Hide: Baseline kW]]=\"\",Table_PI[[#This Row],[Hide: Baseline kW]]=0,ISTEXT(Table_PI[[#This Row],[Hide: Baseline kW]])),\"\",Table_PI[[#This Row],[Hide: Baseline kW]])","v":""},{"$f":"IF(OR(Table_PI[[#This Row],[Hide: Proposed kWh]]=\"\",Table_PI[[#This Row],[Hide: Proposed kWh]]=0,ISTEXT(Table_PI[[#This Row],[Hide: Proposed kWh]])),\"\",Table_PI[[#This Row],[Hide: Proposed kWh]])","v":""},{"$f":"IF(OR(Table_PI[[#This Row],[Hide: Proposed kW]]=\"\",Table_PI[[#This Row],[Hide: Proposed kW]]=0,ISTEXT(Table_PI[[#This Row],[Hide: Proposed kW]])),\"\",Table_PI[[#This Row],[Hide: Proposed kW]])","v":""},null,null,{"$f":"IF(OR(Table_PI[[#This Row],[Hide: Rebate]]=\"\",Table_PI[[#This Row],[Hide: Rebate]]=0,ISTEXT(Table_PI[[#This Row],[Hide: Rebate]])),\"\",Table_PI[[#This Row],[Hide: Rebate]])","v":""},null,{"$f":"IF(OR(Table_PI[[#This Row],[Hide: Incremental Cost]]=\"\",Table_PI[[#This Row],[Hide: Incremental Cost]]=0,ISTEXT(Table_PI[[#This Row],[Hide: Incremental Cost]])),\"\",Table_PI[[#This Row],[Hide: Incremental Cost]])","v":""},{"$f":"IFERROR(IF(Table_SummaryPI[[#This Row],[Incentive_Customer]]=\"\",\"\",ROUND(Table_SummaryPI[[#This Row],[Incentive_Customer]]/$AM$401*'Customer Information'!$BC$21,2)),0)","v":""},{"$f":"IF(OR(Table_PI[[#This Row],[Annual kWh]]=\"\",Table_PI[[#This Row],[Annual kWh]]=0,ISTEXT(Table_PI[[#This Row],[Annual kWh]])),\"\",Table_PI[[#This Row],[Annual kWh]])","v":""},{"$f":"IF(OR(Table_PI[[#This Row],[Peak kW]]=\"\",Table_PI[[#This Row],[Peak kW]]=0,ISTEXT(Table_PI[[#This Row],[Peak kW]])),\"\",Table_PI[[#This Row],[Peak kW]])","v":""},{"$f":"IF(Table_SummaryPI[[#This Row],[Line No.]]<>\"\",IF(AND(ISNUMBER(FIND(\"Chiller\",Table_SummaryPI[[#This Row],[P_MeasureOption1]],1)),Table_SummaryPI[[#This Row],[ProposedMeasureCategory]]=\"Air-Cooled (Water-Cooled Replacement)\"),$BD$29*Table_SummaryPI[[#This Row],[Size]]*Table_SummaryPI[[#This Row],[Quantity]]*Table_SummaryPI[[#This Row],[EFLHCooling]],\nIF(ISNUMBER(FIND(\"Dishwasher\",Table_SummaryPI[[#This Row],[ProposedMeasureCategory]],1)),$BH$29*Table_SummaryPI[[#This Row],[Quantity]],\nIF(ISNUMBER(FIND(\"Ice Maker\",Table_SummaryPI[[#This Row],[ProposedMeasureCategory]],1)),$BD$31*Table_SummaryPI[[#This Row],[Quantity]],\nIF(ISNUMBER(FIND(\"Spray Valve\",Table_SummaryPI[[#This Row],[ProposedMeasureCategory]],1)),$BH$31*Table_SummaryPI[[#This Row],[Quantity]],\n0)))),\"\")","v":""},{"$f":"IF(OR(Table_PI[[#This Row],[Hide: Electrification kWh]]=\"\",Table_PI[[#This Row],[Hide: Electrification kWh]]=0,ISTEXT(Table_PI[[#This Row],[Hide: Electrification kWh]])),\"\",Table_PI[[#This Row],[Hide: Electrification kWh]])","v":""},{"$f":"IF(OR(Table_PI[[#This Row],[Hide: Electrification GHG]]=\"\",Table_PI[[#This Row],[Hide: Electrification GHG]]=0,ISTEXT(Table_PI[[#This Row],[Hide: Electrification GHG]])),\"\",Table_PI[[#This Row],[Hide: Electrification GHG]])","v":""},{"$f":"IFERROR(IF(Table_SummaryPI[[#This Row],[kWhSavings]]=\"\",\"\",$BH$9*Table_SummaryPI[[#This Row],[kWhSavings]]),0)","v":""},{"$f":"IFERROR(IF(Table_SummaryPI[[#This Row],[kWhSavings]]=\"\",\"\",$BH$14*Table_SummaryPI[[#This Row],[kWhSavings]]),0)","v":""},{"$f":"IFERROR(IF(Table_SummaryPI[[#This Row],[kWhSavings]]=\"\",\"\",$BH$18*Table_SummaryPI[[#This Row],[kWhSavings]]),0)","v":""},{"$f":"IFERROR(IF(Table_SummaryPI[[#This Row],[kWhSavings]]=\"\",\"\",$BH$22*Table_SummaryPI[[#This Row],[kWhSavings]]),0)","v":""}]
[{"$f":"Table_PI[[#This Row],[Line No.]]","v":""},{"$f":"IF(Table_SummaryPI[[#This Row],[MeasureName]]<>\"\",NOT(ISTEXT(Table_PI[[#This Row],[Rebate]])),\"\")","v":""},{"$f":"IF(Table_SummaryPI[[#This Row],[MeassureCategory]]<>\"\",CONCATENATE(Table_SummaryPI[[#This Row],[MeassureCategory]],  \" - \", Table_SummaryPI[[#This Row],[ProposedMeasureCategory]],  \" - \", TEXT(Table_SummaryPI[[#This Row],[Size]],\"#,##0.00\"),\" \",Table_SummaryPI[[#This Row],[SizeUnit]]),\"\")","v":""},{"$f":"SUBSTITUTE(Table_PI[[#This Row],[Measure]],\"     \",\"\",1)","v":""},{"$f":"IF(Table_PI[[#This Row],[List 1]]<>\"\",Table_PI[[#This Row],[List 1]],\"\")","v":""},{"$f":"IF(Table_PI[[#This Row],[List 2]]<>\"\",Table_PI[[#This Row],[List 2]],\"\")","v":""},{"$f":"IF(Table_PI[[#This Row],[List 3]]<>\"\",Table_PI[[#This Row],[List 3]],\"\")","v":""},{"$f":"IF(Table_PI[[#This Row],[Manufacturer]]=\"\",\"\",Table_PI[[#This Row],[Manufacturer]])","v":""},{"$f":"IF(Table_PI[[#This Row],[Model Number]]=\"\",\"\",Table_PI[[#This Row],[Model Number]])","v":""},{"$f":"IF(Table_PI[[#This Row],[Serial Number(s)]]=\"\",\"\",Table_PI[[#This Row],[Serial Number(s)]])","v":""},null,{"$f":"IF(Table_PI[[#This Row],[Size]]=\"\",\"\",Table_PI[[#This Row],[Size]])","v":""},null,null,{"$f":"IF(Table_PI[[#This Row],[Input 1]]<>\"\",Table_PI[[#This Row],[Input 1]],\"\")","v":""},null,null,{"$f":"IF(Table_PI[[#This Row],[Input 2]]<>\"\",Table_PI[[#This Row],[Input 2]],\"\")","v":""},null,null,{"$f":"IF(Table_PI[[#This Row],[Input 3]]<>\"\",Table_PI[[#This Row],[Input 3]],\"\")","v":""},null,null,{"$f":"IF(Table_PI[[#This Row],[Input 4]]<>\"\",Table_PI[[#This Row],[Input 4]],\"\")","v":""},null,null,{"$f":"IF(Table_PI[[#This Row],[Input 4]]<>\"\",Table_PI[[#This Row],[Input 4]],\"\")","v":""},null,null,{"$f":"IF(Table_PI[[#This Row],[Input 4]]<>\"\",Table_PI[[#This Row],[Input 4]],\"\")","v":""},{"$f":"IF(Table_PI[[#This Row],[Quantity]]=\"\",\"\",Table_PI[[#This Row],[Quantity]])","v":""},{"$f":"IF(Table_PI[[#This Row],[Notes]]=\"\",\"\",Table_PI[[#This Row],[Notes]])","v":""},{"$f":"IF(OR(Table_PI[[#This Row],[Hide: Baseline kWh]]=\"\",Table_PI[[#This Row],[Hide: Baseline kWh]]=0,ISTEXT(Table_PI[[#This Row],[Hide: Baseline kWh]])),\"\",Table_PI[[#This Row],[Hide: Baseline kWh]])","v":""},{"$f":"IF(OR(Table_PI[[#This Row],[Hide: Baseline kW]]=\"\",Table_PI[[#This Row],[Hide: Baseline kW]]=0,ISTEXT(Table_PI[[#This Row],[Hide: Baseline kW]])),\"\",Table_PI[[#This Row],[Hide: Baseline kW]])","v":""},{"$f":"IF(OR(Table_PI[[#This Row],[Hide: Proposed kWh]]=\"\",Table_PI[[#This Row],[Hide: Proposed kWh]]=0,ISTEXT(Table_PI[[#This Row],[Hide: Proposed kWh]])),\"\",Table_PI[[#This Row],[Hide: Proposed kWh]])","v":""},{"$f":"IF(OR(Table_PI[[#This Row],[Hide: Proposed kW]]=\"\",Table_PI[[#This Row],[Hide: Proposed kW]]=0,ISTEXT(Table_PI[[#This Row],[Hide: Proposed kW]])),\"\",Table_PI[[#This Row],[Hide: Proposed kW]])","v":""},null,null,{"$f":"IF(OR(Table_PI[[#This Row],[Hide: Rebate]]=\"\",Table_PI[[#This Row],[Hide: Rebate]]=0,ISTEXT(Table_PI[[#This Row],[Hide: Rebate]])),\"\",Table_PI[[#This Row],[Hide: Rebate]])","v":""},null,{"$f":"IF(OR(Table_PI[[#This Row],[Hide: Incremental Cost]]=\"\",Table_PI[[#This Row],[Hide: Incremental Cost]]=0,ISTEXT(Table_PI[[#This Row],[Hide: Incremental Cost]])),\"\",Table_PI[[#This Row],[Hide: Incremental Cost]])","v":""},{"$f":"IFERROR(IF(Table_SummaryPI[[#This Row],[Incentive_Customer]]=\"\",\"\",ROUND(Table_SummaryPI[[#This Row],[Incentive_Customer]]/$AM$401*'Customer Information'!$BC$21,2)),0)","v":""},{"$f":"IF(OR(Table_PI[[#This Row],[Annual kWh]]=\"\",Table_PI[[#This Row],[Annual kWh]]=0,ISTEXT(Table_PI[[#This Row],[Annual kWh]])),\"\",Table_PI[[#This Row],[Annual kWh]])","v":""},{"$f":"IF(OR(Table_PI[[#This Row],[Peak kW]]=\"\",Table_PI[[#This Row],[Peak kW]]=0,ISTEXT(Table_PI[[#This Row],[Peak kW]])),\"\",Table_PI[[#This Row],[Peak kW]])","v":""},{"$f":"IF(Table_SummaryPI[[#This Row],[Line No.]]<>\"\",IF(AND(ISNUMBER(FIND(\"Chiller\",Table_SummaryPI[[#This Row],[P_MeasureOption1]],1)),Table_SummaryPI[[#This Row],[ProposedMeasureCategory]]=\"Air-Cooled (Water-Cooled Replacement)\"),$BD$29*Table_SummaryPI[[#This Row],[Size]]*Table_SummaryPI[[#This Row],[Quantity]]*Table_SummaryPI[[#This Row],[EFLHCooling]],\nIF(ISNUMBER(FIND(\"Dishwasher\",Table_SummaryPI[[#This Row],[ProposedMeasureCategory]],1)),$BH$29*Table_SummaryPI[[#This Row],[Quantity]],\nIF(ISNUMBER(FIND(\"Ice Maker\",Table_SummaryPI[[#This Row],[ProposedMeasureCategory]],1)),$BD$31*Table_SummaryPI[[#This Row],[Quantity]],\nIF(ISNUMBER(FIND(\"Spray Valve\",Table_SummaryPI[[#This Row],[ProposedMeasureCategory]],1)),$BH$31*Table_SummaryPI[[#This Row],[Quantity]],\n0)))),\"\")","v":""},{"$f":"IF(OR(Table_PI[[#This Row],[Hide: Electrification kWh]]=\"\",Table_PI[[#This Row],[Hide: Electrification kWh]]=0,ISTEXT(Table_PI[[#This Row],[Hide: Electrification kWh]])),\"\",Table_PI[[#This Row],[Hide: Electrification kWh]])","v":""},{"$f":"IF(OR(Table_PI[[#This Row],[Hide: Electrification GHG]]=\"\",Table_PI[[#This Row],[Hide: Electrification GHG]]=0,ISTEXT(Table_PI[[#This Row],[Hide: Electrification GHG]])),\"\",Table_PI[[#This Row],[Hide: Electrification GHG]])","v":""},{"$f":"IFERROR(IF(Table_SummaryPI[[#This Row],[kWhSavings]]=\"\",\"\",$BH$9*Table_SummaryPI[[#This Row],[kWhSavings]]),0)","v":""},{"$f":"IFERROR(IF(Table_SummaryPI[[#This Row],[kWhSavings]]=\"\",\"\",$BH$14*Table_SummaryPI[[#This Row],[kWhSavings]]),0)","v":""},{"$f":"IFERROR(IF(Table_SummaryPI[[#This Row],[kWhSavings]]=\"\",\"\",$BH$18*Table_SummaryPI[[#This Row],[kWhSavings]]),0)","v":""},{"$f":"IFERROR(IF(Table_SummaryPI[[#This Row],[kWhSavings]]=\"\",\"\",$BH$22*Table_SummaryPI[[#This Row],[kWhSavings]]),0)","v":""}]
[{"$f":"Table_PI[[#This Row],[Line No.]]","v":""},{"$f":"IF(Table_SummaryPI[[#This Row],[MeasureName]]<>\"\",NOT(ISTEXT(Table_PI[[#This Row],[Rebate]])),\"\")","v":""},{"$f":"IF(Table_SummaryPI[[#This Row],[MeassureCategory]]<>\"\",CONCATENATE(Table_SummaryPI[[#This Row],[MeassureCategory]],  \" - \", Table_SummaryPI[[#This Row],[ProposedMeasureCategory]],  \" - \", TEXT(Table_SummaryPI[[#This Row],[Size]],\"#,##0.00\"),\" \",Table_SummaryPI[[#This Row],[SizeUnit]]),\"\")","v":""},{"$f":"SUBSTITUTE(Table_PI[[#This Row],[Measure]],\"     \",\"\",1)","v":""},{"$f":"IF(Table_PI[[#This Row],[List 1]]<>\"\",Table_PI[[#This Row],[List 1]],\"\")","v":""},{"$f":"IF(Table_PI[[#This Row],[List 2]]<>\"\",Table_PI[[#This Row],[List 2]],\"\")","v":""},{"$f":"IF(Table_PI[[#This Row],[List 3]]<>\"\",Table_PI[[#This Row],[List 3]],\"\")","v":""},{"$f":"IF(Table_PI[[#This Row],[Manufacturer]]=\"\",\"\",Table_PI[[#This Row],[Manufacturer]])","v":""},{"$f":"IF(Table_PI[[#This Row],[Model Number]]=\"\",\"\",Table_PI[[#This Row],[Model Number]])","v":""},{"$f":"IF(Table_PI[[#This Row],[Serial Number(s)]]=\"\",\"\",Table_PI[[#This Row],[Serial Number(s)]])","v":""},null,{"$f":"IF(Table_PI[[#This Row],[Size]]=\"\",\"\",Table_PI[[#This Row],[Size]])","v":""},null,null,{"$f":"IF(Table_PI[[#This Row],[Input 1]]<>\"\",Table_PI[[#This Row],[Input 1]],\"\")","v":""},null,null,{"$f":"IF(Table_PI[[#This Row],[Input 2]]<>\"\",Table_PI[[#This Row],[Input 2]],\"\")","v":""},null,null,{"$f":"IF(Table_PI[[#This Row],[Input 3]]<>\"\",Table_PI[[#This Row],[Input 3]],\"\")","v":""},null,null,{"$f":"IF(Table_PI[[#This Row],[Input 4]]<>\"\",Table_PI[[#This Row],[Input 4]],\"\")","v":""},null,null,{"$f":"IF(Table_PI[[#This Row],[Input 4]]<>\"\",Table_PI[[#This Row],[Input 4]],\"\")","v":""},null,null,{"$f":"IF(Table_PI[[#This Row],[Input 4]]<>\"\",Table_PI[[#This Row],[Input 4]],\"\")","v":""},{"$f":"IF(Table_PI[[#This Row],[Quantity]]=\"\",\"\",Table_PI[[#This Row],[Quantity]])","v":""},{"$f":"IF(Table_PI[[#This Row],[Notes]]=\"\",\"\",Table_PI[[#This Row],[Notes]])","v":""},{"$f":"IF(OR(Table_PI[[#This Row],[Hide: Baseline kWh]]=\"\",Table_PI[[#This Row],[Hide: Baseline kWh]]=0,ISTEXT(Table_PI[[#This Row],[Hide: Baseline kWh]])),\"\",Table_PI[[#This Row],[Hide: Baseline kWh]])","v":""},{"$f":"IF(OR(Table_PI[[#This Row],[Hide: Baseline kW]]=\"\",Table_PI[[#This Row],[Hide: Baseline kW]]=0,ISTEXT(Table_PI[[#This Row],[Hide: Baseline kW]])),\"\",Table_PI[[#This Row],[Hide: Baseline kW]])","v":""},{"$f":"IF(OR(Table_PI[[#This Row],[Hide: Proposed kWh]]=\"\",Table_PI[[#This Row],[Hide: Proposed kWh]]=0,ISTEXT(Table_PI[[#This Row],[Hide: Proposed kWh]])),\"\",Table_PI[[#This Row],[Hide: Proposed kWh]])","v":""},{"$f":"IF(OR(Table_PI[[#This Row],[Hide: Proposed kW]]=\"\",Table_PI[[#This Row],[Hide: Proposed kW]]=0,ISTEXT(Table_PI[[#This Row],[Hide: Proposed kW]])),\"\",Table_PI[[#This Row],[Hide: Proposed kW]])","v":""},null,null,{"$f":"IF(OR(Table_PI[[#This Row],[Hide: Rebate]]=\"\",Table_PI[[#This Row],[Hide: Rebate]]=0,ISTEXT(Table_PI[[#This Row],[Hide: Rebate]])),\"\",Table_PI[[#This Row],[Hide: Rebate]])","v":""},null,{"$f":"IF(OR(Table_PI[[#This Row],[Hide: Incremental Cost]]=\"\",Table_PI[[#This Row],[Hide: Incremental Cost]]=0,ISTEXT(Table_PI[[#This Row],[Hide: Incremental Cost]])),\"\",Table_PI[[#This Row],[Hide: Incremental Cost]])","v":""},{"$f":"IFERROR(IF(Table_SummaryPI[[#This Row],[Incentive_Customer]]=\"\",\"\",ROUND(Table_SummaryPI[[#This Row],[Incentive_Customer]]/$AM$401*'Customer Information'!$BC$21,2)),0)","v":""},{"$f":"IF(OR(Table_PI[[#This Row],[Annual kWh]]=\"\",Table_PI[[#This Row],[Annual kWh]]=0,ISTEXT(Table_PI[[#This Row],[Annual kWh]])),\"\",Table_PI[[#This Row],[Annual kWh]])","v":""},{"$f":"IF(OR(Table_PI[[#This Row],[Peak kW]]=\"\",Table_PI[[#This Row],[Peak kW]]=0,ISTEXT(Table_PI[[#This Row],[Peak kW]])),\"\",Table_PI[[#This Row],[Peak kW]])","v":""},{"$f":"IF(Table_SummaryPI[[#This Row],[Line No.]]<>\"\",IF(AND(ISNUMBER(FIND(\"Chiller\",Table_SummaryPI[[#This Row],[P_MeasureOption1]],1)),Table_SummaryPI[[#This Row],[ProposedMeasureCategory]]=\"Air-Cooled (Water-Cooled Replacement)\"),$BD$29*Table_SummaryPI[[#This Row],[Size]]*Table_SummaryPI[[#This Row],[Quantity]]*Table_SummaryPI[[#This Row],[EFLHCooling]],\nIF(ISNUMBER(FIND(\"Dishwasher\",Table_SummaryPI[[#This Row],[ProposedMeasureCategory]],1)),$BH$29*Table_SummaryPI[[#This Row],[Quantity]],\nIF(ISNUMBER(FIND(\"Ice Maker\",Table_SummaryPI[[#This Row],[ProposedMeasureCategory]],1)),$BD$31*Table_SummaryPI[[#This Row],[Quantity]],\nIF(ISNUMBER(FIND(\"Spray Valve\",Table_SummaryPI[[#This Row],[ProposedMeasureCategory]],1)),$BH$31*Table_SummaryPI[[#This Row],[Quantity]],\n0)))),\"\")","v":""},{"$f":"IF(OR(Table_PI[[#This Row],[Hide: Electrification kWh]]=\"\",Table_PI[[#This Row],[Hide: Electrification kWh]]=0,ISTEXT(Table_PI[[#This Row],[Hide: Electrification kWh]])),\"\",Table_PI[[#This Row],[Hide: Electrification kWh]])","v":""},{"$f":"IF(OR(Table_PI[[#This Row],[Hide: Electrification GHG]]=\"\",Table_PI[[#This Row],[Hide: Electrification GHG]]=0,ISTEXT(Table_PI[[#This Row],[Hide: Electrification GHG]])),\"\",Table_PI[[#This Row],[Hide: Electrification GHG]])","v":""},{"$f":"IFERROR(IF(Table_SummaryPI[[#This Row],[kWhSavings]]=\"\",\"\",$BH$9*Table_SummaryPI[[#This Row],[kWhSavings]]),0)","v":""},{"$f":"IFERROR(IF(Table_SummaryPI[[#This Row],[kWhSavings]]=\"\",\"\",$BH$14*Table_SummaryPI[[#This Row],[kWhSavings]]),0)","v":""},{"$f":"IFERROR(IF(Table_SummaryPI[[#This Row],[kWhSavings]]=\"\",\"\",$BH$18*Table_SummaryPI[[#This Row],[kWhSavings]]),0)","v":""},{"$f":"IFERROR(IF(Table_SummaryPI[[#This Row],[kWhSavings]]=\"\",\"\",$BH$22*Table_SummaryPI[[#This Row],[kWhSavings]]),0)","v":""}]
[{"$f":"Table_PI[[#This Row],[Line No.]]","v":""},{"$f":"IF(Table_SummaryPI[[#This Row],[MeasureName]]<>\"\",NOT(ISTEXT(Table_PI[[#This Row],[Rebate]])),\"\")","v":""},{"$f":"IF(Table_SummaryPI[[#This Row],[MeassureCategory]]<>\"\",CONCATENATE(Table_SummaryPI[[#This Row],[MeassureCategory]],  \" - \", Table_SummaryPI[[#This Row],[ProposedMeasureCategory]],  \" - \", TEXT(Table_SummaryPI[[#This Row],[Size]],\"#,##0.00\"),\" \",Table_SummaryPI[[#This Row],[SizeUnit]]),\"\")","v":""},{"$f":"SUBSTITUTE(Table_PI[[#This Row],[Measure]],\"     \",\"\",1)","v":""},{"$f":"IF(Table_PI[[#This Row],[List 1]]<>\"\",Table_PI[[#This Row],[List 1]],\"\")","v":""},{"$f":"IF(Table_PI[[#This Row],[List 2]]<>\"\",Table_PI[[#This Row],[List 2]],\"\")","v":""},{"$f":"IF(Table_PI[[#This Row],[List 3]]<>\"\",Table_PI[[#This Row],[List 3]],\"\")","v":""},{"$f":"IF(Table_PI[[#This Row],[Manufacturer]]=\"\",\"\",Table_PI[[#This Row],[Manufacturer]])","v":""},{"$f":"IF(Table_PI[[#This Row],[Model Number]]=\"\",\"\",Table_PI[[#This Row],[Model Number]])","v":""},{"$f":"IF(Table_PI[[#This Row],[Serial Number(s)]]=\"\",\"\",Table_PI[[#This Row],[Serial Number(s)]])","v":""},null,{"$f":"IF(Table_PI[[#This Row],[Size]]=\"\",\"\",Table_PI[[#This Row],[Size]])","v":""},null,null,{"$f":"IF(Table_PI[[#This Row],[Input 1]]<>\"\",Table_PI[[#This Row],[Input 1]],\"\")","v":""},null,null,{"$f":"IF(Table_PI[[#This Row],[Input 2]]<>\"\",Table_PI[[#This Row],[Input 2]],\"\")","v":""},null,null,{"$f":"IF(Table_PI[[#This Row],[Input 3]]<>\"\",Table_PI[[#This Row],[Input 3]],\"\")","v":""},null,null,{"$f":"IF(Table_PI[[#This Row],[Input 4]]<>\"\",Table_PI[[#This Row],[Input 4]],\"\")","v":""},null,null,{"$f":"IF(Table_PI[[#This Row],[Input 4]]<>\"\",Table_PI[[#This Row],[Input 4]],\"\")","v":""},null,null,{"$f":"IF(Table_PI[[#This Row],[Input 4]]<>\"\",Table_PI[[#This Row],[Input 4]],\"\")","v":""},{"$f":"IF(Table_PI[[#This Row],[Quantity]]=\"\",\"\",Table_PI[[#This Row],[Quantity]])","v":""},{"$f":"IF(Table_PI[[#This Row],[Notes]]=\"\",\"\",Table_PI[[#This Row],[Notes]])","v":""},{"$f":"IF(OR(Table_PI[[#This Row],[Hide: Baseline kWh]]=\"\",Table_PI[[#This Row],[Hide: Baseline kWh]]=0,ISTEXT(Table_PI[[#This Row],[Hide: Baseline kWh]])),\"\",Table_PI[[#This Row],[Hide: Baseline kWh]])","v":""},{"$f":"IF(OR(Table_PI[[#This Row],[Hide: Baseline kW]]=\"\",Table_PI[[#This Row],[Hide: Baseline kW]]=0,ISTEXT(Table_PI[[#This Row],[Hide: Baseline kW]])),\"\",Table_PI[[#This Row],[Hide: Baseline kW]])","v":""},{"$f":"IF(OR(Table_PI[[#This Row],[Hide: Proposed kWh]]=\"\",Table_PI[[#This Row],[Hide: Proposed kWh]]=0,ISTEXT(Table_PI[[#This Row],[Hide: Proposed kWh]])),\"\",Table_PI[[#This Row],[Hide: Proposed kWh]])","v":""},{"$f":"IF(OR(Table_PI[[#This Row],[Hide: Proposed kW]]=\"\",Table_PI[[#This Row],[Hide: Proposed kW]]=0,ISTEXT(Table_PI[[#This Row],[Hide: Proposed kW]])),\"\",Table_PI[[#This Row],[Hide: Proposed kW]])","v":""},null,null,{"$f":"IF(OR(Table_PI[[#This Row],[Hide: Rebate]]=\"\",Table_PI[[#This Row],[Hide: Rebate]]=0,ISTEXT(Table_PI[[#This Row],[Hide: Rebate]])),\"\",Table_PI[[#This Row],[Hide: Rebate]])","v":""},null,{"$f":"IF(OR(Table_PI[[#This Row],[Hide: Incremental Cost]]=\"\",Table_PI[[#This Row],[Hide: Incremental Cost]]=0,ISTEXT(Table_PI[[#This Row],[Hide: Incremental Cost]])),\"\",Table_PI[[#This Row],[Hide: Incremental Cost]])","v":""},{"$f":"IFERROR(IF(Table_SummaryPI[[#This Row],[Incentive_Customer]]=\"\",\"\",ROUND(Table_SummaryPI[[#This Row],[Incentive_Customer]]/$AM$401*'Customer Information'!$BC$21,2)),0)","v":""},{"$f":"IF(OR(Table_PI[[#This Row],[Annual kWh]]=\"\",Table_PI[[#This Row],[Annual kWh]]=0,ISTEXT(Table_PI[[#This Row],[Annual kWh]])),\"\",Table_PI[[#This Row],[Annual kWh]])","v":""},{"$f":"IF(OR(Table_PI[[#This Row],[Peak kW]]=\"\",Table_PI[[#This Row],[Peak kW]]=0,ISTEXT(Table_PI[[#This Row],[Peak kW]])),\"\",Table_PI[[#This Row],[Peak kW]])","v":""},{"$f":"IF(Table_SummaryPI[[#This Row],[Line No.]]<>\"\",IF(AND(ISNUMBER(FIND(\"Chiller\",Table_SummaryPI[[#This Row],[P_MeasureOption1]],1)),Table_SummaryPI[[#This Row],[ProposedMeasureCategory]]=\"Air-Cooled (Water-Cooled Replacement)\"),$BD$29*Table_SummaryPI[[#This Row],[Size]]*Table_SummaryPI[[#This Row],[Quantity]]*Table_SummaryPI[[#This Row],[EFLHCooling]],\nIF(ISNUMBER(FIND(\"Dishwasher\",Table_SummaryPI[[#This Row],[ProposedMeasureCategory]],1)),$BH$29*Table_SummaryPI[[#This Row],[Quantity]],\nIF(ISNUMBER(FIND(\"Ice Maker\",Table_SummaryPI[[#This Row],[ProposedMeasureCategory]],1)),$BD$31*Table_SummaryPI[[#This Row],[Quantity]],\nIF(ISNUMBER(FIND(\"Spray Valve\",Table_SummaryPI[[#This Row],[ProposedMeasureCategory]],1)),$BH$31*Table_SummaryPI[[#This Row],[Quantity]],\n0)))),\"\")","v":""},{"$f":"IF(OR(Table_PI[[#This Row],[Hide: Electrification kWh]]=\"\",Table_PI[[#This Row],[Hide: Electrification kWh]]=0,ISTEXT(Table_PI[[#This Row],[Hide: Electrification kWh]])),\"\",Table_PI[[#This Row],[Hide: Electrification kWh]])","v":""},{"$f":"IF(OR(Table_PI[[#This Row],[Hide: Electrification GHG]]=\"\",Table_PI[[#This Row],[Hide: Electrification GHG]]=0,ISTEXT(Table_PI[[#This Row],[Hide: Electrification GHG]])),\"\",Table_PI[[#This Row],[Hide: Electrification GHG]])","v":""},{"$f":"IFERROR(IF(Table_SummaryPI[[#This Row],[kWhSavings]]=\"\",\"\",$BH$9*Table_SummaryPI[[#This Row],[kWhSavings]]),0)","v":""},{"$f":"IFERROR(IF(Table_SummaryPI[[#This Row],[kWhSavings]]=\"\",\"\",$BH$14*Table_SummaryPI[[#This Row],[kWhSavings]]),0)","v":""},{"$f":"IFERROR(IF(Table_SummaryPI[[#This Row],[kWhSavings]]=\"\",\"\",$BH$18*Table_SummaryPI[[#This Row],[kWhSavings]]),0)","v":""},{"$f":"IFERROR(IF(Table_SummaryPI[[#This Row],[kWhSavings]]=\"\",\"\",$BH$22*Table_SummaryPI[[#This Row],[kWhSavings]]),0)","v":""}]
[{"$f":"Table_PI[[#This Row],[Line No.]]","v":""},{"$f":"IF(Table_SummaryPI[[#This Row],[MeasureName]]<>\"\",NOT(ISTEXT(Table_PI[[#This Row],[Rebate]])),\"\")","v":""},{"$f":"IF(Table_SummaryPI[[#This Row],[MeassureCategory]]<>\"\",CONCATENATE(Table_SummaryPI[[#This Row],[MeassureCategory]],  \" - \", Table_SummaryPI[[#This Row],[ProposedMeasureCategory]],  \" - \", TEXT(Table_SummaryPI[[#This Row],[Size]],\"#,##0.00\"),\" \",Table_SummaryPI[[#This Row],[SizeUnit]]),\"\")","v":""},{"$f":"SUBSTITUTE(Table_PI[[#This Row],[Measure]],\"     \",\"\",1)","v":""},{"$f":"IF(Table_PI[[#This Row],[List 1]]<>\"\",Table_PI[[#This Row],[List 1]],\"\")","v":""},{"$f":"IF(Table_PI[[#This Row],[List 2]]<>\"\",Table_PI[[#This Row],[List 2]],\"\")","v":""},{"$f":"IF(Table_PI[[#This Row],[List 3]]<>\"\",Table_PI[[#This Row],[List 3]],\"\")","v":""},{"$f":"IF(Table_PI[[#This Row],[Manufacturer]]=\"\",\"\",Table_PI[[#This Row],[Manufacturer]])","v":""},{"$f":"IF(Table_PI[[#This Row],[Model Number]]=\"\",\"\",Table_PI[[#This Row],[Model Number]])","v":""},{"$f":"IF(Table_PI[[#This Row],[Serial Number(s)]]=\"\",\"\",Table_PI[[#This Row],[Serial Number(s)]])","v":""},null,{"$f":"IF(Table_PI[[#This Row],[Size]]=\"\",\"\",Table_PI[[#This Row],[Size]])","v":""},null,null,{"$f":"IF(Table_PI[[#This Row],[Input 1]]<>\"\",Table_PI[[#This Row],[Input 1]],\"\")","v":""},null,null,{"$f":"IF(Table_PI[[#This Row],[Input 2]]<>\"\",Table_PI[[#This Row],[Input 2]],\"\")","v":""},null,null,{"$f":"IF(Table_PI[[#This Row],[Input 3]]<>\"\",Table_PI[[#This Row],[Input 3]],\"\")","v":""},null,null,{"$f":"IF(Table_PI[[#This Row],[Input 4]]<>\"\",Table_PI[[#This Row],[Input 4]],\"\")","v":""},null,null,{"$f":"IF(Table_PI[[#This Row],[Input 4]]<>\"\",Table_PI[[#This Row],[Input 4]],\"\")","v":""},null,null,{"$f":"IF(Table_PI[[#This Row],[Input 4]]<>\"\",Table_PI[[#This Row],[Input 4]],\"\")","v":""},{"$f":"IF(Table_PI[[#This Row],[Quantity]]=\"\",\"\",Table_PI[[#This Row],[Quantity]])","v":""},{"$f":"IF(Table_PI[[#This Row],[Notes]]=\"\",\"\",Table_PI[[#This Row],[Notes]])","v":""},{"$f":"IF(OR(Table_PI[[#This Row],[Hide: Baseline kWh]]=\"\",Table_PI[[#This Row],[Hide: Baseline kWh]]=0,ISTEXT(Table_PI[[#This Row],[Hide: Baseline kWh]])),\"\",Table_PI[[#This Row],[Hide: Baseline kWh]])","v":""},{"$f":"IF(OR(Table_PI[[#This Row],[Hide: Baseline kW]]=\"\",Table_PI[[#This Row],[Hide: Baseline kW]]=0,ISTEXT(Table_PI[[#This Row],[Hide: Baseline kW]])),\"\",Table_PI[[#This Row],[Hide: Baseline kW]])","v":""},{"$f":"IF(OR(Table_PI[[#This Row],[Hide: Proposed kWh]]=\"\",Table_PI[[#This Row],[Hide: Proposed kWh]]=0,ISTEXT(Table_PI[[#This Row],[Hide: Proposed kWh]])),\"\",Table_PI[[#This Row],[Hide: Proposed kWh]])","v":""},{"$f":"IF(OR(Table_PI[[#This Row],[Hide: Proposed kW]]=\"\",Table_PI[[#This Row],[Hide: Proposed kW]]=0,ISTEXT(Table_PI[[#This Row],[Hide: Proposed kW]])),\"\",Table_PI[[#This Row],[Hide: Proposed kW]])","v":""},null,null,{"$f":"IF(OR(Table_PI[[#This Row],[Hide: Rebate]]=\"\",Table_PI[[#This Row],[Hide: Rebate]]=0,ISTEXT(Table_PI[[#This Row],[Hide: Rebate]])),\"\",Table_PI[[#This Row],[Hide: Rebate]])","v":""},null,{"$f":"IF(OR(Table_PI[[#This Row],[Hide: Incremental Cost]]=\"\",Table_PI[[#This Row],[Hide: Incremental Cost]]=0,ISTEXT(Table_PI[[#This Row],[Hide: Incremental Cost]])),\"\",Table_PI[[#This Row],[Hide: Incremental Cost]])","v":""},{"$f":"IFERROR(IF(Table_SummaryPI[[#This Row],[Incentive_Customer]]=\"\",\"\",ROUND(Table_SummaryPI[[#This Row],[Incentive_Customer]]/$AM$401*'Customer Information'!$BC$21,2)),0)","v":""},{"$f":"IF(OR(Table_PI[[#This Row],[Annual kWh]]=\"\",Table_PI[[#This Row],[Annual kWh]]=0,ISTEXT(Table_PI[[#This Row],[Annual kWh]])),\"\",Table_PI[[#This Row],[Annual kWh]])","v":""},{"$f":"IF(OR(Table_PI[[#This Row],[Peak kW]]=\"\",Table_PI[[#This Row],[Peak kW]]=0,ISTEXT(Table_PI[[#This Row],[Peak kW]])),\"\",Table_PI[[#This Row],[Peak kW]])","v":""},{"$f":"IF(Table_SummaryPI[[#This Row],[Line No.]]<>\"\",IF(AND(ISNUMBER(FIND(\"Chiller\",Table_SummaryPI[[#This Row],[P_MeasureOption1]],1)),Table_SummaryPI[[#This Row],[ProposedMeasureCategory]]=\"Air-Cooled (Water-Cooled Replacement)\"),$BD$29*Table_SummaryPI[[#This Row],[Size]]*Table_SummaryPI[[#This Row],[Quantity]]*Table_SummaryPI[[#This Row],[EFLHCooling]],\nIF(ISNUMBER(FIND(\"Dishwasher\",Table_SummaryPI[[#This Row],[ProposedMeasureCategory]],1)),$BH$29*Table_SummaryPI[[#This Row],[Quantity]],\nIF(ISNUMBER(FIND(\"Ice Maker\",Table_SummaryPI[[#This Row],[ProposedMeasureCategory]],1)),$BD$31*Table_SummaryPI[[#This Row],[Quantity]],\nIF(ISNUMBER(FIND(\"Spray Valve\",Table_SummaryPI[[#This Row],[ProposedMeasureCategory]],1)),$BH$31*Table_SummaryPI[[#This Row],[Quantity]],\n0)))),\"\")","v":""},{"$f":"IF(OR(Table_PI[[#This Row],[Hide: Electrification kWh]]=\"\",Table_PI[[#This Row],[Hide: Electrification kWh]]=0,ISTEXT(Table_PI[[#This Row],[Hide: Electrification kWh]])),\"\",Table_PI[[#This Row],[Hide: Electrification kWh]])","v":""},{"$f":"IF(OR(Table_PI[[#This Row],[Hide: Electrification GHG]]=\"\",Table_PI[[#This Row],[Hide: Electrification GHG]]=0,ISTEXT(Table_PI[[#This Row],[Hide: Electrification GHG]])),\"\",Table_PI[[#This Row],[Hide: Electrification GHG]])","v":""},{"$f":"IFERROR(IF(Table_SummaryPI[[#This Row],[kWhSavings]]=\"\",\"\",$BH$9*Table_SummaryPI[[#This Row],[kWhSavings]]),0)","v":""},{"$f":"IFERROR(IF(Table_SummaryPI[[#This Row],[kWhSavings]]=\"\",\"\",$BH$14*Table_SummaryPI[[#This Row],[kWhSavings]]),0)","v":""},{"$f":"IFERROR(IF(Table_SummaryPI[[#This Row],[kWhSavings]]=\"\",\"\",$BH$18*Table_SummaryPI[[#This Row],[kWhSavings]]),0)","v":""},{"$f":"IFERROR(IF(Table_SummaryPI[[#This Row],[kWhSavings]]=\"\",\"\",$BH$22*Table_SummaryPI[[#This Row],[kWhSavings]]),0)","v":""}]
[{"$f":"Table_PI[[#This Row],[Line No.]]","v":""},{"$f":"IF(Table_SummaryPI[[#This Row],[MeasureName]]<>\"\",NOT(ISTEXT(Table_PI[[#This Row],[Rebate]])),\"\")","v":""},{"$f":"IF(Table_SummaryPI[[#This Row],[MeassureCategory]]<>\"\",CONCATENATE(Table_SummaryPI[[#This Row],[MeassureCategory]],  \" - \", Table_SummaryPI[[#This Row],[ProposedMeasureCategory]],  \" - \", TEXT(Table_SummaryPI[[#This Row],[Size]],\"#,##0.00\"),\" \",Table_SummaryPI[[#This Row],[SizeUnit]]),\"\")","v":""},{"$f":"SUBSTITUTE(Table_PI[[#This Row],[Measure]],\"     \",\"\",1)","v":""},{"$f":"IF(Table_PI[[#This Row],[List 1]]<>\"\",Table_PI[[#This Row],[List 1]],\"\")","v":""},{"$f":"IF(Table_PI[[#This Row],[List 2]]<>\"\",Table_PI[[#This Row],[List 2]],\"\")","v":""},{"$f":"IF(Table_PI[[#This Row],[List 3]]<>\"\",Table_PI[[#This Row],[List 3]],\"\")","v":""},{"$f":"IF(Table_PI[[#This Row],[Manufacturer]]=\"\",\"\",Table_PI[[#This Row],[Manufacturer]])","v":""},{"$f":"IF(Table_PI[[#This Row],[Model Number]]=\"\",\"\",Table_PI[[#This Row],[Model Number]])","v":""},{"$f":"IF(Table_PI[[#This Row],[Serial Number(s)]]=\"\",\"\",Table_PI[[#This Row],[Serial Number(s)]])","v":""},null,{"$f":"IF(Table_PI[[#This Row],[Size]]=\"\",\"\",Table_PI[[#This Row],[Size]])","v":""},null,null,{"$f":"IF(Table_PI[[#This Row],[Input 1]]<>\"\",Table_PI[[#This Row],[Input 1]],\"\")","v":""},null,null,{"$f":"IF(Table_PI[[#This Row],[Input 2]]<>\"\",Table_PI[[#This Row],[Input 2]],\"\")","v":""},null,null,{"$f":"IF(Table_PI[[#This Row],[Input 3]]<>\"\",Table_PI[[#This Row],[Input 3]],\"\")","v":""},null,null,{"$f":"IF(Table_PI[[#This Row],[Input 4]]<>\"\",Table_PI[[#This Row],[Input 4]],\"\")","v":""},null,null,{"$f":"IF(Table_PI[[#This Row],[Input 4]]<>\"\",Table_PI[[#This Row],[Input 4]],\"\")","v":""},null,null,{"$f":"IF(Table_PI[[#This Row],[Input 4]]<>\"\",Table_PI[[#This Row],[Input 4]],\"\")","v":""},{"$f":"IF(Table_PI[[#This Row],[Quantity]]=\"\",\"\",Table_PI[[#This Row],[Quantity]])","v":""},{"$f":"IF(Table_PI[[#This Row],[Notes]]=\"\",\"\",Table_PI[[#This Row],[Notes]])","v":""},{"$f":"IF(OR(Table_PI[[#This Row],[Hide: Baseline kWh]]=\"\",Table_PI[[#This Row],[Hide: Baseline kWh]]=0,ISTEXT(Table_PI[[#This Row],[Hide: Baseline kWh]])),\"\",Table_PI[[#This Row],[Hide: Baseline kWh]])","v":""},{"$f":"IF(OR(Table_PI[[#This Row],[Hide: Baseline kW]]=\"\",Table_PI[[#This Row],[Hide: Baseline kW]]=0,ISTEXT(Table_PI[[#This Row],[Hide: Baseline kW]])),\"\",Table_PI[[#This Row],[Hide: Baseline kW]])","v":""},{"$f":"IF(OR(Table_PI[[#This Row],[Hide: Proposed kWh]]=\"\",Table_PI[[#This Row],[Hide: Proposed kWh]]=0,ISTEXT(Table_PI[[#This Row],[Hide: Proposed kWh]])),\"\",Table_PI[[#This Row],[Hide: Proposed kWh]])","v":""},{"$f":"IF(OR(Table_PI[[#This Row],[Hide: Proposed kW]]=\"\",Table_PI[[#This Row],[Hide: Proposed kW]]=0,ISTEXT(Table_PI[[#This Row],[Hide: Proposed kW]])),\"\",Table_PI[[#This Row],[Hide: Proposed kW]])","v":""},null,null,{"$f":"IF(OR(Table_PI[[#This Row],[Hide: Rebate]]=\"\",Table_PI[[#This Row],[Hide: Rebate]]=0,ISTEXT(Table_PI[[#This Row],[Hide: Rebate]])),\"\",Table_PI[[#This Row],[Hide: Rebate]])","v":""},null,{"$f":"IF(OR(Table_PI[[#This Row],[Hide: Incremental Cost]]=\"\",Table_PI[[#This Row],[Hide: Incremental Cost]]=0,ISTEXT(Table_PI[[#This Row],[Hide: Incremental Cost]])),\"\",Table_PI[[#This Row],[Hide: Incremental Cost]])","v":""},{"$f":"IFERROR(IF(Table_SummaryPI[[#This Row],[Incentive_Customer]]=\"\",\"\",ROUND(Table_SummaryPI[[#This Row],[Incentive_Customer]]/$AM$401*'Customer Information'!$BC$21,2)),0)","v":""},{"$f":"IF(OR(Table_PI[[#This Row],[Annual kWh]]=\"\",Table_PI[[#This Row],[Annual kWh]]=0,ISTEXT(Table_PI[[#This Row],[Annual kWh]])),\"\",Table_PI[[#This Row],[Annual kWh]])","v":""},{"$f":"IF(OR(Table_PI[[#This Row],[Peak kW]]=\"\",Table_PI[[#This Row],[Peak kW]]=0,ISTEXT(Table_PI[[#This Row],[Peak kW]])),\"\",Table_PI[[#This Row],[Peak kW]])","v":""},{"$f":"IF(Table_SummaryPI[[#This Row],[Line No.]]<>\"\",IF(AND(ISNUMBER(FIND(\"Chiller\",Table_SummaryPI[[#This Row],[P_MeasureOption1]],1)),Table_SummaryPI[[#This Row],[ProposedMeasureCategory]]=\"Air-Cooled (Water-Cooled Replacement)\"),$BD$29*Table_SummaryPI[[#This Row],[Size]]*Table_SummaryPI[[#This Row],[Quantity]]*Table_SummaryPI[[#This Row],[EFLHCooling]],\nIF(ISNUMBER(FIND(\"Dishwasher\",Table_SummaryPI[[#This Row],[ProposedMeasureCategory]],1)),$BH$29*Table_SummaryPI[[#This Row],[Quantity]],\nIF(ISNUMBER(FIND(\"Ice Maker\",Table_SummaryPI[[#This Row],[ProposedMeasureCategory]],1)),$BD$31*Table_SummaryPI[[#This Row],[Quantity]],\nIF(ISNUMBER(FIND(\"Spray Valve\",Table_SummaryPI[[#This Row],[ProposedMeasureCategory]],1)),$BH$31*Table_SummaryPI[[#This Row],[Quantity]],\n0)))),\"\")","v":""},{"$f":"IF(OR(Table_PI[[#This Row],[Hide: Electrification kWh]]=\"\",Table_PI[[#This Row],[Hide: Electrification kWh]]=0,ISTEXT(Table_PI[[#This Row],[Hide: Electrification kWh]])),\"\",Table_PI[[#This Row],[Hide: Electrification kWh]])","v":""},{"$f":"IF(OR(Table_PI[[#This Row],[Hide: Electrification GHG]]=\"\",Table_PI[[#This Row],[Hide: Electrification GHG]]=0,ISTEXT(Table_PI[[#This Row],[Hide: Electrification GHG]])),\"\",Table_PI[[#This Row],[Hide: Electrification GHG]])","v":""},{"$f":"IFERROR(IF(Table_SummaryPI[[#This Row],[kWhSavings]]=\"\",\"\",$BH$9*Table_SummaryPI[[#This Row],[kWhSavings]]),0)","v":""},{"$f":"IFERROR(IF(Table_SummaryPI[[#This Row],[kWhSavings]]=\"\",\"\",$BH$14*Table_SummaryPI[[#This Row],[kWhSavings]]),0)","v":""},{"$f":"IFERROR(IF(Table_SummaryPI[[#This Row],[kWhSavings]]=\"\",\"\",$BH$18*Table_SummaryPI[[#This Row],[kWhSavings]]),0)","v":""},{"$f":"IFERROR(IF(Table_SummaryPI[[#This Row],[kWhSavings]]=\"\",\"\",$BH$22*Table_SummaryPI[[#This Row],[kWhSavings]]),0)","v":""}]
[{"$f":"Table_PI[[#This Row],[Line No.]]","v":""},{"$f":"IF(Table_SummaryPI[[#This Row],[MeasureName]]<>\"\",NOT(ISTEXT(Table_PI[[#This Row],[Rebate]])),\"\")","v":""},{"$f":"IF(Table_SummaryPI[[#This Row],[MeassureCategory]]<>\"\",CONCATENATE(Table_SummaryPI[[#This Row],[MeassureCategory]],  \" - \", Table_SummaryPI[[#This Row],[ProposedMeasureCategory]],  \" - \", TEXT(Table_SummaryPI[[#This Row],[Size]],\"#,##0.00\"),\" \",Table_SummaryPI[[#This Row],[SizeUnit]]),\"\")","v":""},{"$f":"SUBSTITUTE(Table_PI[[#This Row],[Measure]],\"     \",\"\",1)","v":""},{"$f":"IF(Table_PI[[#This Row],[List 1]]<>\"\",Table_PI[[#This Row],[List 1]],\"\")","v":""},{"$f":"IF(Table_PI[[#This Row],[List 2]]<>\"\",Table_PI[[#This Row],[List 2]],\"\")","v":""},{"$f":"IF(Table_PI[[#This Row],[List 3]]<>\"\",Table_PI[[#This Row],[List 3]],\"\")","v":""},{"$f":"IF(Table_PI[[#This Row],[Manufacturer]]=\"\",\"\",Table_PI[[#This Row],[Manufacturer]])","v":""},{"$f":"IF(Table_PI[[#This Row],[Model Number]]=\"\",\"\",Table_PI[[#This Row],[Model Number]])","v":""},{"$f":"IF(Table_PI[[#This Row],[Serial Number(s)]]=\"\",\"\",Table_PI[[#This Row],[Serial Number(s)]])","v":""},null,{"$f":"IF(Table_PI[[#This Row],[Size]]=\"\",\"\",Table_PI[[#This Row],[Size]])","v":""},null,null,{"$f":"IF(Table_PI[[#This Row],[Input 1]]<>\"\",Table_PI[[#This Row],[Input 1]],\"\")","v":""},null,null,{"$f":"IF(Table_PI[[#This Row],[Input 2]]<>\"\",Table_PI[[#This Row],[Input 2]],\"\")","v":""},null,null,{"$f":"IF(Table_PI[[#This Row],[Input 3]]<>\"\",Table_PI[[#This Row],[Input 3]],\"\")","v":""},null,null,{"$f":"IF(Table_PI[[#This Row],[Input 4]]<>\"\",Table_PI[[#This Row],[Input 4]],\"\")","v":""},null,null,{"$f":"IF(Table_PI[[#This Row],[Input 4]]<>\"\",Table_PI[[#This Row],[Input 4]],\"\")","v":""},null,null,{"$f":"IF(Table_PI[[#This Row],[Input 4]]<>\"\",Table_PI[[#This Row],[Input 4]],\"\")","v":""},{"$f":"IF(Table_PI[[#This Row],[Quantity]]=\"\",\"\",Table_PI[[#This Row],[Quantity]])","v":""},{"$f":"IF(Table_PI[[#This Row],[Notes]]=\"\",\"\",Table_PI[[#This Row],[Notes]])","v":""},{"$f":"IF(OR(Table_PI[[#This Row],[Hide: Baseline kWh]]=\"\",Table_PI[[#This Row],[Hide: Baseline kWh]]=0,ISTEXT(Table_PI[[#This Row],[Hide: Baseline kWh]])),\"\",Table_PI[[#This Row],[Hide: Baseline kWh]])","v":""},{"$f":"IF(OR(Table_PI[[#This Row],[Hide: Baseline kW]]=\"\",Table_PI[[#This Row],[Hide: Baseline kW]]=0,ISTEXT(Table_PI[[#This Row],[Hide: Baseline kW]])),\"\",Table_PI[[#This Row],[Hide: Baseline kW]])","v":""},{"$f":"IF(OR(Table_PI[[#This Row],[Hide: Proposed kWh]]=\"\",Table_PI[[#This Row],[Hide: Proposed kWh]]=0,ISTEXT(Table_PI[[#This Row],[Hide: Proposed kWh]])),\"\",Table_PI[[#This Row],[Hide: Proposed kWh]])","v":""},{"$f":"IF(OR(Table_PI[[#This Row],[Hide: Proposed kW]]=\"\",Table_PI[[#This Row],[Hide: Proposed kW]]=0,ISTEXT(Table_PI[[#This Row],[Hide: Proposed kW]])),\"\",Table_PI[[#This Row],[Hide: Proposed kW]])","v":""},null,null,{"$f":"IF(OR(Table_PI[[#This Row],[Hide: Rebate]]=\"\",Table_PI[[#This Row],[Hide: Rebate]]=0,ISTEXT(Table_PI[[#This Row],[Hide: Rebate]])),\"\",Table_PI[[#This Row],[Hide: Rebate]])","v":""},null,{"$f":"IF(OR(Table_PI[[#This Row],[Hide: Incremental Cost]]=\"\",Table_PI[[#This Row],[Hide: Incremental Cost]]=0,ISTEXT(Table_PI[[#This Row],[Hide: Incremental Cost]])),\"\",Table_PI[[#This Row],[Hide: Incremental Cost]])","v":""},{"$f":"IFERROR(IF(Table_SummaryPI[[#This Row],[Incentive_Customer]]=\"\",\"\",ROUND(Table_SummaryPI[[#This Row],[Incentive_Customer]]/$AM$401*'Customer Information'!$BC$21,2)),0)","v":""},{"$f":"IF(OR(Table_PI[[#This Row],[Annual kWh]]=\"\",Table_PI[[#This Row],[Annual kWh]]=0,ISTEXT(Table_PI[[#This Row],[Annual kWh]])),\"\",Table_PI[[#This Row],[Annual kWh]])","v":""},{"$f":"IF(OR(Table_PI[[#This Row],[Peak kW]]=\"\",Table_PI[[#This Row],[Peak kW]]=0,ISTEXT(Table_PI[[#This Row],[Peak kW]])),\"\",Table_PI[[#This Row],[Peak kW]])","v":""},{"$f":"IF(Table_SummaryPI[[#This Row],[Line No.]]<>\"\",IF(AND(ISNUMBER(FIND(\"Chiller\",Table_SummaryPI[[#This Row],[P_MeasureOption1]],1)),Table_SummaryPI[[#This Row],[ProposedMeasureCategory]]=\"Air-Cooled (Water-Cooled Replacement)\"),$BD$29*Table_SummaryPI[[#This Row],[Size]]*Table_SummaryPI[[#This Row],[Quantity]]*Table_SummaryPI[[#This Row],[EFLHCooling]],\nIF(ISNUMBER(FIND(\"Dishwasher\",Table_SummaryPI[[#This Row],[ProposedMeasureCategory]],1)),$BH$29*Table_SummaryPI[[#This Row],[Quantity]],\nIF(ISNUMBER(FIND(\"Ice Maker\",Table_SummaryPI[[#This Row],[ProposedMeasureCategory]],1)),$BD$31*Table_SummaryPI[[#This Row],[Quantity]],\nIF(ISNUMBER(FIND(\"Spray Valve\",Table_SummaryPI[[#This Row],[ProposedMeasureCategory]],1)),$BH$31*Table_SummaryPI[[#This Row],[Quantity]],\n0)))),\"\")","v":""},{"$f":"IF(OR(Table_PI[[#This Row],[Hide: Electrification kWh]]=\"\",Table_PI[[#This Row],[Hide: Electrification kWh]]=0,ISTEXT(Table_PI[[#This Row],[Hide: Electrification kWh]])),\"\",Table_PI[[#This Row],[Hide: Electrification kWh]])","v":""},{"$f":"IF(OR(Table_PI[[#This Row],[Hide: Electrification GHG]]=\"\",Table_PI[[#This Row],[Hide: Electrification GHG]]=0,ISTEXT(Table_PI[[#This Row],[Hide: Electrification GHG]])),\"\",Table_PI[[#This Row],[Hide: Electrification GHG]])","v":""},{"$f":"IFERROR(IF(Table_SummaryPI[[#This Row],[kWhSavings]]=\"\",\"\",$BH$9*Table_SummaryPI[[#This Row],[kWhSavings]]),0)","v":""},{"$f":"IFERROR(IF(Table_SummaryPI[[#This Row],[kWhSavings]]=\"\",\"\",$BH$14*Table_SummaryPI[[#This Row],[kWhSavings]]),0)","v":""},{"$f":"IFERROR(IF(Table_SummaryPI[[#This Row],[kWhSavings]]=\"\",\"\",$BH$18*Table_SummaryPI[[#This Row],[kWhSavings]]),0)","v":""},{"$f":"IFERROR(IF(Table_SummaryPI[[#This Row],[kWhSavings]]=\"\",\"\",$BH$22*Table_SummaryPI[[#This Row],[kWhSavings]]),0)","v":""}]
[{"$f":"Table_PI[[#This Row],[Line No.]]","v":""},{"$f":"IF(Table_SummaryPI[[#This Row],[MeasureName]]<>\"\",NOT(ISTEXT(Table_PI[[#This Row],[Rebate]])),\"\")","v":""},{"$f":"IF(Table_SummaryPI[[#This Row],[MeassureCategory]]<>\"\",CONCATENATE(Table_SummaryPI[[#This Row],[MeassureCategory]],  \" - \", Table_SummaryPI[[#This Row],[ProposedMeasureCategory]],  \" - \", TEXT(Table_SummaryPI[[#This Row],[Size]],\"#,##0.00\"),\" \",Table_SummaryPI[[#This Row],[SizeUnit]]),\"\")","v":""},{"$f":"SUBSTITUTE(Table_PI[[#This Row],[Measure]],\"     \",\"\",1)","v":""},{"$f":"IF(Table_PI[[#This Row],[List 1]]<>\"\",Table_PI[[#This Row],[List 1]],\"\")","v":""},{"$f":"IF(Table_PI[[#This Row],[List 2]]<>\"\",Table_PI[[#This Row],[List 2]],\"\")","v":""},{"$f":"IF(Table_PI[[#This Row],[List 3]]<>\"\",Table_PI[[#This Row],[List 3]],\"\")","v":""},{"$f":"IF(Table_PI[[#This Row],[Manufacturer]]=\"\",\"\",Table_PI[[#This Row],[Manufacturer]])","v":""},{"$f":"IF(Table_PI[[#This Row],[Model Number]]=\"\",\"\",Table_PI[[#This Row],[Model Number]])","v":""},{"$f":"IF(Table_PI[[#This Row],[Serial Number(s)]]=\"\",\"\",Table_PI[[#This Row],[Serial Number(s)]])","v":""},null,{"$f":"IF(Table_PI[[#This Row],[Size]]=\"\",\"\",Table_PI[[#This Row],[Size]])","v":""},null,null,{"$f":"IF(Table_PI[[#This Row],[Input 1]]<>\"\",Table_PI[[#This Row],[Input 1]],\"\")","v":""},null,null,{"$f":"IF(Table_PI[[#This Row],[Input 2]]<>\"\",Table_PI[[#This Row],[Input 2]],\"\")","v":""},null,null,{"$f":"IF(Table_PI[[#This Row],[Input 3]]<>\"\",Table_PI[[#This Row],[Input 3]],\"\")","v":""},null,null,{"$f":"IF(Table_PI[[#This Row],[Input 4]]<>\"\",Table_PI[[#This Row],[Input 4]],\"\")","v":""},null,null,{"$f":"IF(Table_PI[[#This Row],[Input 4]]<>\"\",Table_PI[[#This Row],[Input 4]],\"\")","v":""},null,null,{"$f":"IF(Table_PI[[#This Row],[Input 4]]<>\"\",Table_PI[[#This Row],[Input 4]],\"\")","v":""},{"$f":"IF(Table_PI[[#This Row],[Quantity]]=\"\",\"\",Table_PI[[#This Row],[Quantity]])","v":""},{"$f":"IF(Table_PI[[#This Row],[Notes]]=\"\",\"\",Table_PI[[#This Row],[Notes]])","v":""},{"$f":"IF(OR(Table_PI[[#This Row],[Hide: Baseline kWh]]=\"\",Table_PI[[#This Row],[Hide: Baseline kWh]]=0,ISTEXT(Table_PI[[#This Row],[Hide: Baseline kWh]])),\"\",Table_PI[[#This Row],[Hide: Baseline kWh]])","v":""},{"$f":"IF(OR(Table_PI[[#This Row],[Hide: Baseline kW]]=\"\",Table_PI[[#This Row],[Hide: Baseline kW]]=0,ISTEXT(Table_PI[[#This Row],[Hide: Baseline kW]])),\"\",Table_PI[[#This Row],[Hide: Baseline kW]])","v":""},{"$f":"IF(OR(Table_PI[[#This Row],[Hide: Proposed kWh]]=\"\",Table_PI[[#This Row],[Hide: Proposed kWh]]=0,ISTEXT(Table_PI[[#This Row],[Hide: Proposed kWh]])),\"\",Table_PI[[#This Row],[Hide: Proposed kWh]])","v":""},{"$f":"IF(OR(Table_PI[[#This Row],[Hide: Proposed kW]]=\"\",Table_PI[[#This Row],[Hide: Proposed kW]]=0,ISTEXT(Table_PI[[#This Row],[Hide: Proposed kW]])),\"\",Table_PI[[#This Row],[Hide: Proposed kW]])","v":""},null,null,{"$f":"IF(OR(Table_PI[[#This Row],[Hide: Rebate]]=\"\",Table_PI[[#This Row],[Hide: Rebate]]=0,ISTEXT(Table_PI[[#This Row],[Hide: Rebate]])),\"\",Table_PI[[#This Row],[Hide: Rebate]])","v":""},null,{"$f":"IF(OR(Table_PI[[#This Row],[Hide: Incremental Cost]]=\"\",Table_PI[[#This Row],[Hide: Incremental Cost]]=0,ISTEXT(Table_PI[[#This Row],[Hide: Incremental Cost]])),\"\",Table_PI[[#This Row],[Hide: Incremental Cost]])","v":""},{"$f":"IFERROR(IF(Table_SummaryPI[[#This Row],[Incentive_Customer]]=\"\",\"\",ROUND(Table_SummaryPI[[#This Row],[Incentive_Customer]]/$AM$401*'Customer Information'!$BC$21,2)),0)","v":""},{"$f":"IF(OR(Table_PI[[#This Row],[Annual kWh]]=\"\",Table_PI[[#This Row],[Annual kWh]]=0,ISTEXT(Table_PI[[#This Row],[Annual kWh]])),\"\",Table_PI[[#This Row],[Annual kWh]])","v":""},{"$f":"IF(OR(Table_PI[[#This Row],[Peak kW]]=\"\",Table_PI[[#This Row],[Peak kW]]=0,ISTEXT(Table_PI[[#This Row],[Peak kW]])),\"\",Table_PI[[#This Row],[Peak kW]])","v":""},{"$f":"IF(Table_SummaryPI[[#This Row],[Line No.]]<>\"\",IF(AND(ISNUMBER(FIND(\"Chiller\",Table_SummaryPI[[#This Row],[P_MeasureOption1]],1)),Table_SummaryPI[[#This Row],[ProposedMeasureCategory]]=\"Air-Cooled (Water-Cooled Replacement)\"),$BD$29*Table_SummaryPI[[#This Row],[Size]]*Table_SummaryPI[[#This Row],[Quantity]]*Table_SummaryPI[[#This Row],[EFLHCooling]],\nIF(ISNUMBER(FIND(\"Dishwasher\",Table_SummaryPI[[#This Row],[ProposedMeasureCategory]],1)),$BH$29*Table_SummaryPI[[#This Row],[Quantity]],\nIF(ISNUMBER(FIND(\"Ice Maker\",Table_SummaryPI[[#This Row],[ProposedMeasureCategory]],1)),$BD$31*Table_SummaryPI[[#This Row],[Quantity]],\nIF(ISNUMBER(FIND(\"Spray Valve\",Table_SummaryPI[[#This Row],[ProposedMeasureCategory]],1)),$BH$31*Table_SummaryPI[[#This Row],[Quantity]],\n0)))),\"\")","v":""},{"$f":"IF(OR(Table_PI[[#This Row],[Hide: Electrification kWh]]=\"\",Table_PI[[#This Row],[Hide: Electrification kWh]]=0,ISTEXT(Table_PI[[#This Row],[Hide: Electrification kWh]])),\"\",Table_PI[[#This Row],[Hide: Electrification kWh]])","v":""},{"$f":"IF(OR(Table_PI[[#This Row],[Hide: Electrification GHG]]=\"\",Table_PI[[#This Row],[Hide: Electrification GHG]]=0,ISTEXT(Table_PI[[#This Row],[Hide: Electrification GHG]])),\"\",Table_PI[[#This Row],[Hide: Electrification GHG]])","v":""},{"$f":"IFERROR(IF(Table_SummaryPI[[#This Row],[kWhSavings]]=\"\",\"\",$BH$9*Table_SummaryPI[[#This Row],[kWhSavings]]),0)","v":""},{"$f":"IFERROR(IF(Table_SummaryPI[[#This Row],[kWhSavings]]=\"\",\"\",$BH$14*Table_SummaryPI[[#This Row],[kWhSavings]]),0)","v":""},{"$f":"IFERROR(IF(Table_SummaryPI[[#This Row],[kWhSavings]]=\"\",\"\",$BH$18*Table_SummaryPI[[#This Row],[kWhSavings]]),0)","v":""},{"$f":"IFERROR(IF(Table_SummaryPI[[#This Row],[kWhSavings]]=\"\",\"\",$BH$22*Table_SummaryPI[[#This Row],[kWhSavings]]),0)","v":""}]
[{"$f":"Table_PI[[#This Row],[Line No.]]","v":""},{"$f":"IF(Table_SummaryPI[[#This Row],[MeasureName]]<>\"\",NOT(ISTEXT(Table_PI[[#This Row],[Rebate]])),\"\")","v":""},{"$f":"IF(Table_SummaryPI[[#This Row],[MeassureCategory]]<>\"\",CONCATENATE(Table_SummaryPI[[#This Row],[MeassureCategory]],  \" - \", Table_SummaryPI[[#This Row],[ProposedMeasureCategory]],  \" - \", TEXT(Table_SummaryPI[[#This Row],[Size]],\"#,##0.00\"),\" \",Table_SummaryPI[[#This Row],[SizeUnit]]),\"\")","v":""},{"$f":"SUBSTITUTE(Table_PI[[#This Row],[Measure]],\"     \",\"\",1)","v":""},{"$f":"IF(Table_PI[[#This Row],[List 1]]<>\"\",Table_PI[[#This Row],[List 1]],\"\")","v":""},{"$f":"IF(Table_PI[[#This Row],[List 2]]<>\"\",Table_PI[[#This Row],[List 2]],\"\")","v":""},{"$f":"IF(Table_PI[[#This Row],[List 3]]<>\"\",Table_PI[[#This Row],[List 3]],\"\")","v":""},{"$f":"IF(Table_PI[[#This Row],[Manufacturer]]=\"\",\"\",Table_PI[[#This Row],[Manufacturer]])","v":""},{"$f":"IF(Table_PI[[#This Row],[Model Number]]=\"\",\"\",Table_PI[[#This Row],[Model Number]])","v":""},{"$f":"IF(Table_PI[[#This Row],[Serial Number(s)]]=\"\",\"\",Table_PI[[#This Row],[Serial Number(s)]])","v":""},null,{"$f":"IF(Table_PI[[#This Row],[Size]]=\"\",\"\",Table_PI[[#This Row],[Size]])","v":""},null,null,{"$f":"IF(Table_PI[[#This Row],[Input 1]]<>\"\",Table_PI[[#This Row],[Input 1]],\"\")","v":""},null,null,{"$f":"IF(Table_PI[[#This Row],[Input 2]]<>\"\",Table_PI[[#This Row],[Input 2]],\"\")","v":""},null,null,{"$f":"IF(Table_PI[[#This Row],[Input 3]]<>\"\",Table_PI[[#This Row],[Input 3]],\"\")","v":""},null,null,{"$f":"IF(Table_PI[[#This Row],[Input 4]]<>\"\",Table_PI[[#This Row],[Input 4]],\"\")","v":""},null,null,{"$f":"IF(Table_PI[[#This Row],[Input 4]]<>\"\",Table_PI[[#This Row],[Input 4]],\"\")","v":""},null,null,{"$f":"IF(Table_PI[[#This Row],[Input 4]]<>\"\",Table_PI[[#This Row],[Input 4]],\"\")","v":""},{"$f":"IF(Table_PI[[#This Row],[Quantity]]=\"\",\"\",Table_PI[[#This Row],[Quantity]])","v":""},{"$f":"IF(Table_PI[[#This Row],[Notes]]=\"\",\"\",Table_PI[[#This Row],[Notes]])","v":""},{"$f":"IF(OR(Table_PI[[#This Row],[Hide: Baseline kWh]]=\"\",Table_PI[[#This Row],[Hide: Baseline kWh]]=0,ISTEXT(Table_PI[[#This Row],[Hide: Baseline kWh]])),\"\",Table_PI[[#This Row],[Hide: Baseline kWh]])","v":""},{"$f":"IF(OR(Table_PI[[#This Row],[Hide: Baseline kW]]=\"\",Table_PI[[#This Row],[Hide: Baseline kW]]=0,ISTEXT(Table_PI[[#This Row],[Hide: Baseline kW]])),\"\",Table_PI[[#This Row],[Hide: Baseline kW]])","v":""},{"$f":"IF(OR(Table_PI[[#This Row],[Hide: Proposed kWh]]=\"\",Table_PI[[#This Row],[Hide: Proposed kWh]]=0,ISTEXT(Table_PI[[#This Row],[Hide: Proposed kWh]])),\"\",Table_PI[[#This Row],[Hide: Proposed kWh]])","v":""},{"$f":"IF(OR(Table_PI[[#This Row],[Hide: Proposed kW]]=\"\",Table_PI[[#This Row],[Hide: Proposed kW]]=0,ISTEXT(Table_PI[[#This Row],[Hide: Proposed kW]])),\"\",Table_PI[[#This Row],[Hide: Proposed kW]])","v":""},null,null,{"$f":"IF(OR(Table_PI[[#This Row],[Hide: Rebate]]=\"\",Table_PI[[#This Row],[Hide: Rebate]]=0,ISTEXT(Table_PI[[#This Row],[Hide: Rebate]])),\"\",Table_PI[[#This Row],[Hide: Rebate]])","v":""},null,{"$f":"IF(OR(Table_PI[[#This Row],[Hide: Incremental Cost]]=\"\",Table_PI[[#This Row],[Hide: Incremental Cost]]=0,ISTEXT(Table_PI[[#This Row],[Hide: Incremental Cost]])),\"\",Table_PI[[#This Row],[Hide: Incremental Cost]])","v":""},{"$f":"IFERROR(IF(Table_SummaryPI[[#This Row],[Incentive_Customer]]=\"\",\"\",ROUND(Table_SummaryPI[[#This Row],[Incentive_Customer]]/$AM$401*'Customer Information'!$BC$21,2)),0)","v":""},{"$f":"IF(OR(Table_PI[[#This Row],[Annual kWh]]=\"\",Table_PI[[#This Row],[Annual kWh]]=0,ISTEXT(Table_PI[[#This Row],[Annual kWh]])),\"\",Table_PI[[#This Row],[Annual kWh]])","v":""},{"$f":"IF(OR(Table_PI[[#This Row],[Peak kW]]=\"\",Table_PI[[#This Row],[Peak kW]]=0,ISTEXT(Table_PI[[#This Row],[Peak kW]])),\"\",Table_PI[[#This Row],[Peak kW]])","v":""},{"$f":"IF(Table_SummaryPI[[#This Row],[Line No.]]<>\"\",IF(AND(ISNUMBER(FIND(\"Chiller\",Table_SummaryPI[[#This Row],[P_MeasureOption1]],1)),Table_SummaryPI[[#This Row],[ProposedMeasureCategory]]=\"Air-Cooled (Water-Cooled Replacement)\"),$BD$29*Table_SummaryPI[[#This Row],[Size]]*Table_SummaryPI[[#This Row],[Quantity]]*Table_SummaryPI[[#This Row],[EFLHCooling]],\nIF(ISNUMBER(FIND(\"Dishwasher\",Table_SummaryPI[[#This Row],[ProposedMeasureCategory]],1)),$BH$29*Table_SummaryPI[[#This Row],[Quantity]],\nIF(ISNUMBER(FIND(\"Ice Maker\",Table_SummaryPI[[#This Row],[ProposedMeasureCategory]],1)),$BD$31*Table_SummaryPI[[#This Row],[Quantity]],\nIF(ISNUMBER(FIND(\"Spray Valve\",Table_SummaryPI[[#This Row],[ProposedMeasureCategory]],1)),$BH$31*Table_SummaryPI[[#This Row],[Quantity]],\n0)))),\"\")","v":""},{"$f":"IF(OR(Table_PI[[#This Row],[Hide: Electrification kWh]]=\"\",Table_PI[[#This Row],[Hide: Electrification kWh]]=0,ISTEXT(Table_PI[[#This Row],[Hide: Electrification kWh]])),\"\",Table_PI[[#This Row],[Hide: Electrification kWh]])","v":""},{"$f":"IF(OR(Table_PI[[#This Row],[Hide: Electrification GHG]]=\"\",Table_PI[[#This Row],[Hide: Electrification GHG]]=0,ISTEXT(Table_PI[[#This Row],[Hide: Electrification GHG]])),\"\",Table_PI[[#This Row],[Hide: Electrification GHG]])","v":""},{"$f":"IFERROR(IF(Table_SummaryPI[[#This Row],[kWhSavings]]=\"\",\"\",$BH$9*Table_SummaryPI[[#This Row],[kWhSavings]]),0)","v":""},{"$f":"IFERROR(IF(Table_SummaryPI[[#This Row],[kWhSavings]]=\"\",\"\",$BH$14*Table_SummaryPI[[#This Row],[kWhSavings]]),0)","v":""},{"$f":"IFERROR(IF(Table_SummaryPI[[#This Row],[kWhSavings]]=\"\",\"\",$BH$18*Table_SummaryPI[[#This Row],[kWhSavings]]),0)","v":""},{"$f":"IFERROR(IF(Table_SummaryPI[[#This Row],[kWhSavings]]=\"\",\"\",$BH$22*Table_SummaryPI[[#This Row],[kWhSavings]]),0)","v":""}]
[{"$f":"Table_PI[[#This Row],[Line No.]]","v":""},{"$f":"IF(Table_SummaryPI[[#This Row],[MeasureName]]<>\"\",NOT(ISTEXT(Table_PI[[#This Row],[Rebate]])),\"\")","v":""},{"$f":"IF(Table_SummaryPI[[#This Row],[MeassureCategory]]<>\"\",CONCATENATE(Table_SummaryPI[[#This Row],[MeassureCategory]],  \" - \", Table_SummaryPI[[#This Row],[ProposedMeasureCategory]],  \" - \", TEXT(Table_SummaryPI[[#This Row],[Size]],\"#,##0.00\"),\" \",Table_SummaryPI[[#This Row],[SizeUnit]]),\"\")","v":""},{"$f":"SUBSTITUTE(Table_PI[[#This Row],[Measure]],\"     \",\"\",1)","v":""},{"$f":"IF(Table_PI[[#This Row],[List 1]]<>\"\",Table_PI[[#This Row],[List 1]],\"\")","v":""},{"$f":"IF(Table_PI[[#This Row],[List 2]]<>\"\",Table_PI[[#This Row],[List 2]],\"\")","v":""},{"$f":"IF(Table_PI[[#This Row],[List 3]]<>\"\",Table_PI[[#This Row],[List 3]],\"\")","v":""},{"$f":"IF(Table_PI[[#This Row],[Manufacturer]]=\"\",\"\",Table_PI[[#This Row],[Manufacturer]])","v":""},{"$f":"IF(Table_PI[[#This Row],[Model Number]]=\"\",\"\",Table_PI[[#This Row],[Model Number]])","v":""},{"$f":"IF(Table_PI[[#This Row],[Serial Number(s)]]=\"\",\"\",Table_PI[[#This Row],[Serial Number(s)]])","v":""},null,{"$f":"IF(Table_PI[[#This Row],[Size]]=\"\",\"\",Table_PI[[#This Row],[Size]])","v":""},null,null,{"$f":"IF(Table_PI[[#This Row],[Input 1]]<>\"\",Table_PI[[#This Row],[Input 1]],\"\")","v":""},null,null,{"$f":"IF(Table_PI[[#This Row],[Input 2]]<>\"\",Table_PI[[#This Row],[Input 2]],\"\")","v":""},null,null,{"$f":"IF(Table_PI[[#This Row],[Input 3]]<>\"\",Table_PI[[#This Row],[Input 3]],\"\")","v":""},null,null,{"$f":"IF(Table_PI[[#This Row],[Input 4]]<>\"\",Table_PI[[#This Row],[Input 4]],\"\")","v":""},null,null,{"$f":"IF(Table_PI[[#This Row],[Input 4]]<>\"\",Table_PI[[#This Row],[Input 4]],\"\")","v":""},null,null,{"$f":"IF(Table_PI[[#This Row],[Input 4]]<>\"\",Table_PI[[#This Row],[Input 4]],\"\")","v":""},{"$f":"IF(Table_PI[[#This Row],[Quantity]]=\"\",\"\",Table_PI[[#This Row],[Quantity]])","v":""},{"$f":"IF(Table_PI[[#This Row],[Notes]]=\"\",\"\",Table_PI[[#This Row],[Notes]])","v":""},{"$f":"IF(OR(Table_PI[[#This Row],[Hide: Baseline kWh]]=\"\",Table_PI[[#This Row],[Hide: Baseline kWh]]=0,ISTEXT(Table_PI[[#This Row],[Hide: Baseline kWh]])),\"\",Table_PI[[#This Row],[Hide: Baseline kWh]])","v":""},{"$f":"IF(OR(Table_PI[[#This Row],[Hide: Baseline kW]]=\"\",Table_PI[[#This Row],[Hide: Baseline kW]]=0,ISTEXT(Table_PI[[#This Row],[Hide: Baseline kW]])),\"\",Table_PI[[#This Row],[Hide: Baseline kW]])","v":""},{"$f":"IF(OR(Table_PI[[#This Row],[Hide: Proposed kWh]]=\"\",Table_PI[[#This Row],[Hide: Proposed kWh]]=0,ISTEXT(Table_PI[[#This Row],[Hide: Proposed kWh]])),\"\",Table_PI[[#This Row],[Hide: Proposed kWh]])","v":""},{"$f":"IF(OR(Table_PI[[#This Row],[Hide: Proposed kW]]=\"\",Table_PI[[#This Row],[Hide: Proposed kW]]=0,ISTEXT(Table_PI[[#This Row],[Hide: Proposed kW]])),\"\",Table_PI[[#This Row],[Hide: Proposed kW]])","v":""},null,null,{"$f":"IF(OR(Table_PI[[#This Row],[Hide: Rebate]]=\"\",Table_PI[[#This Row],[Hide: Rebate]]=0,ISTEXT(Table_PI[[#This Row],[Hide: Rebate]])),\"\",Table_PI[[#This Row],[Hide: Rebate]])","v":""},null,{"$f":"IF(OR(Table_PI[[#This Row],[Hide: Incremental Cost]]=\"\",Table_PI[[#This Row],[Hide: Incremental Cost]]=0,ISTEXT(Table_PI[[#This Row],[Hide: Incremental Cost]])),\"\",Table_PI[[#This Row],[Hide: Incremental Cost]])","v":""},{"$f":"IFERROR(IF(Table_SummaryPI[[#This Row],[Incentive_Customer]]=\"\",\"\",ROUND(Table_SummaryPI[[#This Row],[Incentive_Customer]]/$AM$401*'Customer Information'!$BC$21,2)),0)","v":""},{"$f":"IF(OR(Table_PI[[#This Row],[Annual kWh]]=\"\",Table_PI[[#This Row],[Annual kWh]]=0,ISTEXT(Table_PI[[#This Row],[Annual kWh]])),\"\",Table_PI[[#This Row],[Annual kWh]])","v":""},{"$f":"IF(OR(Table_PI[[#This Row],[Peak kW]]=\"\",Table_PI[[#This Row],[Peak kW]]=0,ISTEXT(Table_PI[[#This Row],[Peak kW]])),\"\",Table_PI[[#This Row],[Peak kW]])","v":""},{"$f":"IF(Table_SummaryPI[[#This Row],[Line No.]]<>\"\",IF(AND(ISNUMBER(FIND(\"Chiller\",Table_SummaryPI[[#This Row],[P_MeasureOption1]],1)),Table_SummaryPI[[#This Row],[ProposedMeasureCategory]]=\"Air-Cooled (Water-Cooled Replacement)\"),$BD$29*Table_SummaryPI[[#This Row],[Size]]*Table_SummaryPI[[#This Row],[Quantity]]*Table_SummaryPI[[#This Row],[EFLHCooling]],\nIF(ISNUMBER(FIND(\"Dishwasher\",Table_SummaryPI[[#This Row],[ProposedMeasureCategory]],1)),$BH$29*Table_SummaryPI[[#This Row],[Quantity]],\nIF(ISNUMBER(FIND(\"Ice Maker\",Table_SummaryPI[[#This Row],[ProposedMeasureCategory]],1)),$BD$31*Table_SummaryPI[[#This Row],[Quantity]],\nIF(ISNUMBER(FIND(\"Spray Valve\",Table_SummaryPI[[#This Row],[ProposedMeasureCategory]],1)),$BH$31*Table_SummaryPI[[#This Row],[Quantity]],\n0)))),\"\")","v":""},{"$f":"IF(OR(Table_PI[[#This Row],[Hide: Electrification kWh]]=\"\",Table_PI[[#This Row],[Hide: Electrification kWh]]=0,ISTEXT(Table_PI[[#This Row],[Hide: Electrification kWh]])),\"\",Table_PI[[#This Row],[Hide: Electrification kWh]])","v":""},{"$f":"IF(OR(Table_PI[[#This Row],[Hide: Electrification GHG]]=\"\",Table_PI[[#This Row],[Hide: Electrification GHG]]=0,ISTEXT(Table_PI[[#This Row],[Hide: Electrification GHG]])),\"\",Table_PI[[#This Row],[Hide: Electrification GHG]])","v":""},{"$f":"IFERROR(IF(Table_SummaryPI[[#This Row],[kWhSavings]]=\"\",\"\",$BH$9*Table_SummaryPI[[#This Row],[kWhSavings]]),0)","v":""},{"$f":"IFERROR(IF(Table_SummaryPI[[#This Row],[kWhSavings]]=\"\",\"\",$BH$14*Table_SummaryPI[[#This Row],[kWhSavings]]),0)","v":""},{"$f":"IFERROR(IF(Table_SummaryPI[[#This Row],[kWhSavings]]=\"\",\"\",$BH$18*Table_SummaryPI[[#This Row],[kWhSavings]]),0)","v":""},{"$f":"IFERROR(IF(Table_SummaryPI[[#This Row],[kWhSavings]]=\"\",\"\",$BH$22*Table_SummaryPI[[#This Row],[kWhSavings]]),0)","v":""}]
[{"$f":"Table_PI[[#This Row],[Line No.]]","v":""},{"$f":"IF(Table_SummaryPI[[#This Row],[MeasureName]]<>\"\",NOT(ISTEXT(Table_PI[[#This Row],[Rebate]])),\"\")","v":""},{"$f":"IF(Table_SummaryPI[[#This Row],[MeassureCategory]]<>\"\",CONCATENATE(Table_SummaryPI[[#This Row],[MeassureCategory]],  \" - \", Table_SummaryPI[[#This Row],[ProposedMeasureCategory]],  \" - \", TEXT(Table_SummaryPI[[#This Row],[Size]],\"#,##0.00\"),\" \",Table_SummaryPI[[#This Row],[SizeUnit]]),\"\")","v":""},{"$f":"SUBSTITUTE(Table_PI[[#This Row],[Measure]],\"     \",\"\",1)","v":""},{"$f":"IF(Table_PI[[#This Row],[List 1]]<>\"\",Table_PI[[#This Row],[List 1]],\"\")","v":""},{"$f":"IF(Table_PI[[#This Row],[List 2]]<>\"\",Table_PI[[#This Row],[List 2]],\"\")","v":""},{"$f":"IF(Table_PI[[#This Row],[List 3]]<>\"\",Table_PI[[#This Row],[List 3]],\"\")","v":""},{"$f":"IF(Table_PI[[#This Row],[Manufacturer]]=\"\",\"\",Table_PI[[#This Row],[Manufacturer]])","v":""},{"$f":"IF(Table_PI[[#This Row],[Model Number]]=\"\",\"\",Table_PI[[#This Row],[Model Number]])","v":""},{"$f":"IF(Table_PI[[#This Row],[Serial Number(s)]]=\"\",\"\",Table_PI[[#This Row],[Serial Number(s)]])","v":""},null,{"$f":"IF(Table_PI[[#This Row],[Size]]=\"\",\"\",Table_PI[[#This Row],[Size]])","v":""},null,null,{"$f":"IF(Table_PI[[#This Row],[Input 1]]<>\"\",Table_PI[[#This Row],[Input 1]],\"\")","v":""},null,null,{"$f":"IF(Table_PI[[#This Row],[Input 2]]<>\"\",Table_PI[[#This Row],[Input 2]],\"\")","v":""},null,null,{"$f":"IF(Table_PI[[#This Row],[Input 3]]<>\"\",Table_PI[[#This Row],[Input 3]],\"\")","v":""},null,null,{"$f":"IF(Table_PI[[#This Row],[Input 4]]<>\"\",Table_PI[[#This Row],[Input 4]],\"\")","v":""},null,null,{"$f":"IF(Table_PI[[#This Row],[Input 4]]<>\"\",Table_PI[[#This Row],[Input 4]],\"\")","v":""},null,null,{"$f":"IF(Table_PI[[#This Row],[Input 4]]<>\"\",Table_PI[[#This Row],[Input 4]],\"\")","v":""},{"$f":"IF(Table_PI[[#This Row],[Quantity]]=\"\",\"\",Table_PI[[#This Row],[Quantity]])","v":""},{"$f":"IF(Table_PI[[#This Row],[Notes]]=\"\",\"\",Table_PI[[#This Row],[Notes]])","v":""},{"$f":"IF(OR(Table_PI[[#This Row],[Hide: Baseline kWh]]=\"\",Table_PI[[#This Row],[Hide: Baseline kWh]]=0,ISTEXT(Table_PI[[#This Row],[Hide: Baseline kWh]])),\"\",Table_PI[[#This Row],[Hide: Baseline kWh]])","v":""},{"$f":"IF(OR(Table_PI[[#This Row],[Hide: Baseline kW]]=\"\",Table_PI[[#This Row],[Hide: Baseline kW]]=0,ISTEXT(Table_PI[[#This Row],[Hide: Baseline kW]])),\"\",Table_PI[[#This Row],[Hide: Baseline kW]])","v":""},{"$f":"IF(OR(Table_PI[[#This Row],[Hide: Proposed kWh]]=\"\",Table_PI[[#This Row],[Hide: Proposed kWh]]=0,ISTEXT(Table_PI[[#This Row],[Hide: Proposed kWh]])),\"\",Table_PI[[#This Row],[Hide: Proposed kWh]])","v":""},{"$f":"IF(OR(Table_PI[[#This Row],[Hide: Proposed kW]]=\"\",Table_PI[[#This Row],[Hide: Proposed kW]]=0,ISTEXT(Table_PI[[#This Row],[Hide: Proposed kW]])),\"\",Table_PI[[#This Row],[Hide: Proposed kW]])","v":""},null,null,{"$f":"IF(OR(Table_PI[[#This Row],[Hide: Rebate]]=\"\",Table_PI[[#This Row],[Hide: Rebate]]=0,ISTEXT(Table_PI[[#This Row],[Hide: Rebate]])),\"\",Table_PI[[#This Row],[Hide: Rebate]])","v":""},null,{"$f":"IF(OR(Table_PI[[#This Row],[Hide: Incremental Cost]]=\"\",Table_PI[[#This Row],[Hide: Incremental Cost]]=0,ISTEXT(Table_PI[[#This Row],[Hide: Incremental Cost]])),\"\",Table_PI[[#This Row],[Hide: Incremental Cost]])","v":""},{"$f":"IFERROR(IF(Table_SummaryPI[[#This Row],[Incentive_Customer]]=\"\",\"\",ROUND(Table_SummaryPI[[#This Row],[Incentive_Customer]]/$AM$401*'Customer Information'!$BC$21,2)),0)","v":""},{"$f":"IF(OR(Table_PI[[#This Row],[Annual kWh]]=\"\",Table_PI[[#This Row],[Annual kWh]]=0,ISTEXT(Table_PI[[#This Row],[Annual kWh]])),\"\",Table_PI[[#This Row],[Annual kWh]])","v":""},{"$f":"IF(OR(Table_PI[[#This Row],[Peak kW]]=\"\",Table_PI[[#This Row],[Peak kW]]=0,ISTEXT(Table_PI[[#This Row],[Peak kW]])),\"\",Table_PI[[#This Row],[Peak kW]])","v":""},{"$f":"IF(Table_SummaryPI[[#This Row],[Line No.]]<>\"\",IF(AND(ISNUMBER(FIND(\"Chiller\",Table_SummaryPI[[#This Row],[P_MeasureOption1]],1)),Table_SummaryPI[[#This Row],[ProposedMeasureCategory]]=\"Air-Cooled (Water-Cooled Replacement)\"),$BD$29*Table_SummaryPI[[#This Row],[Size]]*Table_SummaryPI[[#This Row],[Quantity]]*Table_SummaryPI[[#This Row],[EFLHCooling]],\nIF(ISNUMBER(FIND(\"Dishwasher\",Table_SummaryPI[[#This Row],[ProposedMeasureCategory]],1)),$BH$29*Table_SummaryPI[[#This Row],[Quantity]],\nIF(ISNUMBER(FIND(\"Ice Maker\",Table_SummaryPI[[#This Row],[ProposedMeasureCategory]],1)),$BD$31*Table_SummaryPI[[#This Row],[Quantity]],\nIF(ISNUMBER(FIND(\"Spray Valve\",Table_SummaryPI[[#This Row],[ProposedMeasureCategory]],1)),$BH$31*Table_SummaryPI[[#This Row],[Quantity]],\n0)))),\"\")","v":""},{"$f":"IF(OR(Table_PI[[#This Row],[Hide: Electrification kWh]]=\"\",Table_PI[[#This Row],[Hide: Electrification kWh]]=0,ISTEXT(Table_PI[[#This Row],[Hide: Electrification kWh]])),\"\",Table_PI[[#This Row],[Hide: Electrification kWh]])","v":""},{"$f":"IF(OR(Table_PI[[#This Row],[Hide: Electrification GHG]]=\"\",Table_PI[[#This Row],[Hide: Electrification GHG]]=0,ISTEXT(Table_PI[[#This Row],[Hide: Electrification GHG]])),\"\",Table_PI[[#This Row],[Hide: Electrification GHG]])","v":""},{"$f":"IFERROR(IF(Table_SummaryPI[[#This Row],[kWhSavings]]=\"\",\"\",$BH$9*Table_SummaryPI[[#This Row],[kWhSavings]]),0)","v":""},{"$f":"IFERROR(IF(Table_SummaryPI[[#This Row],[kWhSavings]]=\"\",\"\",$BH$14*Table_SummaryPI[[#This Row],[kWhSavings]]),0)","v":""},{"$f":"IFERROR(IF(Table_SummaryPI[[#This Row],[kWhSavings]]=\"\",\"\",$BH$18*Table_SummaryPI[[#This Row],[kWhSavings]]),0)","v":""},{"$f":"IFERROR(IF(Table_SummaryPI[[#This Row],[kWhSavings]]=\"\",\"\",$BH$22*Table_SummaryPI[[#This Row],[kWhSavings]]),0)","v":""}]
[{"$f":"Table_PI[[#This Row],[Line No.]]","v":""},{"$f":"IF(Table_SummaryPI[[#This Row],[MeasureName]]<>\"\",NOT(ISTEXT(Table_PI[[#This Row],[Rebate]])),\"\")","v":""},{"$f":"IF(Table_SummaryPI[[#This Row],[MeassureCategory]]<>\"\",CONCATENATE(Table_SummaryPI[[#This Row],[MeassureCategory]],  \" - \", Table_SummaryPI[[#This Row],[ProposedMeasureCategory]],  \" - \", TEXT(Table_SummaryPI[[#This Row],[Size]],\"#,##0.00\"),\" \",Table_SummaryPI[[#This Row],[SizeUnit]]),\"\")","v":""},{"$f":"SUBSTITUTE(Table_PI[[#This Row],[Measure]],\"     \",\"\",1)","v":""},{"$f":"IF(Table_PI[[#This Row],[List 1]]<>\"\",Table_PI[[#This Row],[List 1]],\"\")","v":""},{"$f":"IF(Table_PI[[#This Row],[List 2]]<>\"\",Table_PI[[#This Row],[List 2]],\"\")","v":""},{"$f":"IF(Table_PI[[#This Row],[List 3]]<>\"\",Table_PI[[#This Row],[List 3]],\"\")","v":""},{"$f":"IF(Table_PI[[#This Row],[Manufacturer]]=\"\",\"\",Table_PI[[#This Row],[Manufacturer]])","v":""},{"$f":"IF(Table_PI[[#This Row],[Model Number]]=\"\",\"\",Table_PI[[#This Row],[Model Number]])","v":""},{"$f":"IF(Table_PI[[#This Row],[Serial Number(s)]]=\"\",\"\",Table_PI[[#This Row],[Serial Number(s)]])","v":""},null,{"$f":"IF(Table_PI[[#This Row],[Size]]=\"\",\"\",Table_PI[[#This Row],[Size]])","v":""},null,null,{"$f":"IF(Table_PI[[#This Row],[Input 1]]<>\"\",Table_PI[[#This Row],[Input 1]],\"\")","v":""},null,null,{"$f":"IF(Table_PI[[#This Row],[Input 2]]<>\"\",Table_PI[[#This Row],[Input 2]],\"\")","v":""},null,null,{"$f":"IF(Table_PI[[#This Row],[Input 3]]<>\"\",Table_PI[[#This Row],[Input 3]],\"\")","v":""},null,null,{"$f":"IF(Table_PI[[#This Row],[Input 4]]<>\"\",Table_PI[[#This Row],[Input 4]],\"\")","v":""},null,null,{"$f":"IF(Table_PI[[#This Row],[Input 4]]<>\"\",Table_PI[[#This Row],[Input 4]],\"\")","v":""},null,null,{"$f":"IF(Table_PI[[#This Row],[Input 4]]<>\"\",Table_PI[[#This Row],[Input 4]],\"\")","v":""},{"$f":"IF(Table_PI[[#This Row],[Quantity]]=\"\",\"\",Table_PI[[#This Row],[Quantity]])","v":""},{"$f":"IF(Table_PI[[#This Row],[Notes]]=\"\",\"\",Table_PI[[#This Row],[Notes]])","v":""},{"$f":"IF(OR(Table_PI[[#This Row],[Hide: Baseline kWh]]=\"\",Table_PI[[#This Row],[Hide: Baseline kWh]]=0,ISTEXT(Table_PI[[#This Row],[Hide: Baseline kWh]])),\"\",Table_PI[[#This Row],[Hide: Baseline kWh]])","v":""},{"$f":"IF(OR(Table_PI[[#This Row],[Hide: Baseline kW]]=\"\",Table_PI[[#This Row],[Hide: Baseline kW]]=0,ISTEXT(Table_PI[[#This Row],[Hide: Baseline kW]])),\"\",Table_PI[[#This Row],[Hide: Baseline kW]])","v":""},{"$f":"IF(OR(Table_PI[[#This Row],[Hide: Proposed kWh]]=\"\",Table_PI[[#This Row],[Hide: Proposed kWh]]=0,ISTEXT(Table_PI[[#This Row],[Hide: Proposed kWh]])),\"\",Table_PI[[#This Row],[Hide: Proposed kWh]])","v":""},{"$f":"IF(OR(Table_PI[[#This Row],[Hide: Proposed kW]]=\"\",Table_PI[[#This Row],[Hide: Proposed kW]]=0,ISTEXT(Table_PI[[#This Row],[Hide: Proposed kW]])),\"\",Table_PI[[#This Row],[Hide: Proposed kW]])","v":""},null,null,{"$f":"IF(OR(Table_PI[[#This Row],[Hide: Rebate]]=\"\",Table_PI[[#This Row],[Hide: Rebate]]=0,ISTEXT(Table_PI[[#This Row],[Hide: Rebate]])),\"\",Table_PI[[#This Row],[Hide: Rebate]])","v":""},null,{"$f":"IF(OR(Table_PI[[#This Row],[Hide: Incremental Cost]]=\"\",Table_PI[[#This Row],[Hide: Incremental Cost]]=0,ISTEXT(Table_PI[[#This Row],[Hide: Incremental Cost]])),\"\",Table_PI[[#This Row],[Hide: Incremental Cost]])","v":""},{"$f":"IFERROR(IF(Table_SummaryPI[[#This Row],[Incentive_Customer]]=\"\",\"\",ROUND(Table_SummaryPI[[#This Row],[Incentive_Customer]]/$AM$401*'Customer Information'!$BC$21,2)),0)","v":""},{"$f":"IF(OR(Table_PI[[#This Row],[Annual kWh]]=\"\",Table_PI[[#This Row],[Annual kWh]]=0,ISTEXT(Table_PI[[#This Row],[Annual kWh]])),\"\",Table_PI[[#This Row],[Annual kWh]])","v":""},{"$f":"IF(OR(Table_PI[[#This Row],[Peak kW]]=\"\",Table_PI[[#This Row],[Peak kW]]=0,ISTEXT(Table_PI[[#This Row],[Peak kW]])),\"\",Table_PI[[#This Row],[Peak kW]])","v":""},{"$f":"IF(Table_SummaryPI[[#This Row],[Line No.]]<>\"\",IF(AND(ISNUMBER(FIND(\"Chiller\",Table_SummaryPI[[#This Row],[P_MeasureOption1]],1)),Table_SummaryPI[[#This Row],[ProposedMeasureCategory]]=\"Air-Cooled (Water-Cooled Replacement)\"),$BD$29*Table_SummaryPI[[#This Row],[Size]]*Table_SummaryPI[[#This Row],[Quantity]]*Table_SummaryPI[[#This Row],[EFLHCooling]],\nIF(ISNUMBER(FIND(\"Dishwasher\",Table_SummaryPI[[#This Row],[ProposedMeasureCategory]],1)),$BH$29*Table_SummaryPI[[#This Row],[Quantity]],\nIF(ISNUMBER(FIND(\"Ice Maker\",Table_SummaryPI[[#This Row],[ProposedMeasureCategory]],1)),$BD$31*Table_SummaryPI[[#This Row],[Quantity]],\nIF(ISNUMBER(FIND(\"Spray Valve\",Table_SummaryPI[[#This Row],[ProposedMeasureCategory]],1)),$BH$31*Table_SummaryPI[[#This Row],[Quantity]],\n0)))),\"\")","v":""},{"$f":"IF(OR(Table_PI[[#This Row],[Hide: Electrification kWh]]=\"\",Table_PI[[#This Row],[Hide: Electrification kWh]]=0,ISTEXT(Table_PI[[#This Row],[Hide: Electrification kWh]])),\"\",Table_PI[[#This Row],[Hide: Electrification kWh]])","v":""},{"$f":"IF(OR(Table_PI[[#This Row],[Hide: Electrification GHG]]=\"\",Table_PI[[#This Row],[Hide: Electrification GHG]]=0,ISTEXT(Table_PI[[#This Row],[Hide: Electrification GHG]])),\"\",Table_PI[[#This Row],[Hide: Electrification GHG]])","v":""},{"$f":"IFERROR(IF(Table_SummaryPI[[#This Row],[kWhSavings]]=\"\",\"\",$BH$9*Table_SummaryPI[[#This Row],[kWhSavings]]),0)","v":""},{"$f":"IFERROR(IF(Table_SummaryPI[[#This Row],[kWhSavings]]=\"\",\"\",$BH$14*Table_SummaryPI[[#This Row],[kWhSavings]]),0)","v":""},{"$f":"IFERROR(IF(Table_SummaryPI[[#This Row],[kWhSavings]]=\"\",\"\",$BH$18*Table_SummaryPI[[#This Row],[kWhSavings]]),0)","v":""},{"$f":"IFERROR(IF(Table_SummaryPI[[#This Row],[kWhSavings]]=\"\",\"\",$BH$22*Table_SummaryPI[[#This Row],[kWhSavings]]),0)","v":""}]
[{"$f":"Table_PI[[#This Row],[Line No.]]","v":""},{"$f":"IF(Table_SummaryPI[[#This Row],[MeasureName]]<>\"\",NOT(ISTEXT(Table_PI[[#This Row],[Rebate]])),\"\")","v":""},{"$f":"IF(Table_SummaryPI[[#This Row],[MeassureCategory]]<>\"\",CONCATENATE(Table_SummaryPI[[#This Row],[MeassureCategory]],  \" - \", Table_SummaryPI[[#This Row],[ProposedMeasureCategory]],  \" - \", TEXT(Table_SummaryPI[[#This Row],[Size]],\"#,##0.00\"),\" \",Table_SummaryPI[[#This Row],[SizeUnit]]),\"\")","v":""},{"$f":"SUBSTITUTE(Table_PI[[#This Row],[Measure]],\"     \",\"\",1)","v":""},{"$f":"IF(Table_PI[[#This Row],[List 1]]<>\"\",Table_PI[[#This Row],[List 1]],\"\")","v":""},{"$f":"IF(Table_PI[[#This Row],[List 2]]<>\"\",Table_PI[[#This Row],[List 2]],\"\")","v":""},{"$f":"IF(Table_PI[[#This Row],[List 3]]<>\"\",Table_PI[[#This Row],[List 3]],\"\")","v":""},{"$f":"IF(Table_PI[[#This Row],[Manufacturer]]=\"\",\"\",Table_PI[[#This Row],[Manufacturer]])","v":""},{"$f":"IF(Table_PI[[#This Row],[Model Number]]=\"\",\"\",Table_PI[[#This Row],[Model Number]])","v":""},{"$f":"IF(Table_PI[[#This Row],[Serial Number(s)]]=\"\",\"\",Table_PI[[#This Row],[Serial Number(s)]])","v":""},null,{"$f":"IF(Table_PI[[#This Row],[Size]]=\"\",\"\",Table_PI[[#This Row],[Size]])","v":""},null,null,{"$f":"IF(Table_PI[[#This Row],[Input 1]]<>\"\",Table_PI[[#This Row],[Input 1]],\"\")","v":""},null,null,{"$f":"IF(Table_PI[[#This Row],[Input 2]]<>\"\",Table_PI[[#This Row],[Input 2]],\"\")","v":""},null,null,{"$f":"IF(Table_PI[[#This Row],[Input 3]]<>\"\",Table_PI[[#This Row],[Input 3]],\"\")","v":""},null,null,{"$f":"IF(Table_PI[[#This Row],[Input 4]]<>\"\",Table_PI[[#This Row],[Input 4]],\"\")","v":""},null,null,{"$f":"IF(Table_PI[[#This Row],[Input 4]]<>\"\",Table_PI[[#This Row],[Input 4]],\"\")","v":""},null,null,{"$f":"IF(Table_PI[[#This Row],[Input 4]]<>\"\",Table_PI[[#This Row],[Input 4]],\"\")","v":""},{"$f":"IF(Table_PI[[#This Row],[Quantity]]=\"\",\"\",Table_PI[[#This Row],[Quantity]])","v":""},{"$f":"IF(Table_PI[[#This Row],[Notes]]=\"\",\"\",Table_PI[[#This Row],[Notes]])","v":""},{"$f":"IF(OR(Table_PI[[#This Row],[Hide: Baseline kWh]]=\"\",Table_PI[[#This Row],[Hide: Baseline kWh]]=0,ISTEXT(Table_PI[[#This Row],[Hide: Baseline kWh]])),\"\",Table_PI[[#This Row],[Hide: Baseline kWh]])","v":""},{"$f":"IF(OR(Table_PI[[#This Row],[Hide: Baseline kW]]=\"\",Table_PI[[#This Row],[Hide: Baseline kW]]=0,ISTEXT(Table_PI[[#This Row],[Hide: Baseline kW]])),\"\",Table_PI[[#This Row],[Hide: Baseline kW]])","v":""},{"$f":"IF(OR(Table_PI[[#This Row],[Hide: Proposed kWh]]=\"\",Table_PI[[#This Row],[Hide: Proposed kWh]]=0,ISTEXT(Table_PI[[#This Row],[Hide: Proposed kWh]])),\"\",Table_PI[[#This Row],[Hide: Proposed kWh]])","v":""},{"$f":"IF(OR(Table_PI[[#This Row],[Hide: Proposed kW]]=\"\",Table_PI[[#This Row],[Hide: Proposed kW]]=0,ISTEXT(Table_PI[[#This Row],[Hide: Proposed kW]])),\"\",Table_PI[[#This Row],[Hide: Proposed kW]])","v":""},null,null,{"$f":"IF(OR(Table_PI[[#This Row],[Hide: Rebate]]=\"\",Table_PI[[#This Row],[Hide: Rebate]]=0,ISTEXT(Table_PI[[#This Row],[Hide: Rebate]])),\"\",Table_PI[[#This Row],[Hide: Rebate]])","v":""},null,{"$f":"IF(OR(Table_PI[[#This Row],[Hide: Incremental Cost]]=\"\",Table_PI[[#This Row],[Hide: Incremental Cost]]=0,ISTEXT(Table_PI[[#This Row],[Hide: Incremental Cost]])),\"\",Table_PI[[#This Row],[Hide: Incremental Cost]])","v":""},{"$f":"IFERROR(IF(Table_SummaryPI[[#This Row],[Incentive_Customer]]=\"\",\"\",ROUND(Table_SummaryPI[[#This Row],[Incentive_Customer]]/$AM$401*'Customer Information'!$BC$21,2)),0)","v":""},{"$f":"IF(OR(Table_PI[[#This Row],[Annual kWh]]=\"\",Table_PI[[#This Row],[Annual kWh]]=0,ISTEXT(Table_PI[[#This Row],[Annual kWh]])),\"\",Table_PI[[#This Row],[Annual kWh]])","v":""},{"$f":"IF(OR(Table_PI[[#This Row],[Peak kW]]=\"\",Table_PI[[#This Row],[Peak kW]]=0,ISTEXT(Table_PI[[#This Row],[Peak kW]])),\"\",Table_PI[[#This Row],[Peak kW]])","v":""},{"$f":"IF(Table_SummaryPI[[#This Row],[Line No.]]<>\"\",IF(AND(ISNUMBER(FIND(\"Chiller\",Table_SummaryPI[[#This Row],[P_MeasureOption1]],1)),Table_SummaryPI[[#This Row],[ProposedMeasureCategory]]=\"Air-Cooled (Water-Cooled Replacement)\"),$BD$29*Table_SummaryPI[[#This Row],[Size]]*Table_SummaryPI[[#This Row],[Quantity]]*Table_SummaryPI[[#This Row],[EFLHCooling]],\nIF(ISNUMBER(FIND(\"Dishwasher\",Table_SummaryPI[[#This Row],[ProposedMeasureCategory]],1)),$BH$29*Table_SummaryPI[[#This Row],[Quantity]],\nIF(ISNUMBER(FIND(\"Ice Maker\",Table_SummaryPI[[#This Row],[ProposedMeasureCategory]],1)),$BD$31*Table_SummaryPI[[#This Row],[Quantity]],\nIF(ISNUMBER(FIND(\"Spray Valve\",Table_SummaryPI[[#This Row],[ProposedMeasureCategory]],1)),$BH$31*Table_SummaryPI[[#This Row],[Quantity]],\n0)))),\"\")","v":""},{"$f":"IF(OR(Table_PI[[#This Row],[Hide: Electrification kWh]]=\"\",Table_PI[[#This Row],[Hide: Electrification kWh]]=0,ISTEXT(Table_PI[[#This Row],[Hide: Electrification kWh]])),\"\",Table_PI[[#This Row],[Hide: Electrification kWh]])","v":""},{"$f":"IF(OR(Table_PI[[#This Row],[Hide: Electrification GHG]]=\"\",Table_PI[[#This Row],[Hide: Electrification GHG]]=0,ISTEXT(Table_PI[[#This Row],[Hide: Electrification GHG]])),\"\",Table_PI[[#This Row],[Hide: Electrification GHG]])","v":""},{"$f":"IFERROR(IF(Table_SummaryPI[[#This Row],[kWhSavings]]=\"\",\"\",$BH$9*Table_SummaryPI[[#This Row],[kWhSavings]]),0)","v":""},{"$f":"IFERROR(IF(Table_SummaryPI[[#This Row],[kWhSavings]]=\"\",\"\",$BH$14*Table_SummaryPI[[#This Row],[kWhSavings]]),0)","v":""},{"$f":"IFERROR(IF(Table_SummaryPI[[#This Row],[kWhSavings]]=\"\",\"\",$BH$18*Table_SummaryPI[[#This Row],[kWhSavings]]),0)","v":""},{"$f":"IFERROR(IF(Table_SummaryPI[[#This Row],[kWhSavings]]=\"\",\"\",$BH$22*Table_SummaryPI[[#This Row],[kWhSavings]]),0)","v":""}]
[{"$f":"Table_PI[[#This Row],[Line No.]]","v":""},{"$f":"IF(Table_SummaryPI[[#This Row],[MeasureName]]<>\"\",NOT(ISTEXT(Table_PI[[#This Row],[Rebate]])),\"\")","v":""},{"$f":"IF(Table_SummaryPI[[#This Row],[MeassureCategory]]<>\"\",CONCATENATE(Table_SummaryPI[[#This Row],[MeassureCategory]],  \" - \", Table_SummaryPI[[#This Row],[ProposedMeasureCategory]],  \" - \", TEXT(Table_SummaryPI[[#This Row],[Size]],\"#,##0.00\"),\" \",Table_SummaryPI[[#This Row],[SizeUnit]]),\"\")","v":""},{"$f":"SUBSTITUTE(Table_PI[[#This Row],[Measure]],\"     \",\"\",1)","v":""},{"$f":"IF(Table_PI[[#This Row],[List 1]]<>\"\",Table_PI[[#This Row],[List 1]],\"\")","v":""},{"$f":"IF(Table_PI[[#This Row],[List 2]]<>\"\",Table_PI[[#This Row],[List 2]],\"\")","v":""},{"$f":"IF(Table_PI[[#This Row],[List 3]]<>\"\",Table_PI[[#This Row],[List 3]],\"\")","v":""},{"$f":"IF(Table_PI[[#This Row],[Manufacturer]]=\"\",\"\",Table_PI[[#This Row],[Manufacturer]])","v":""},{"$f":"IF(Table_PI[[#This Row],[Model Number]]=\"\",\"\",Table_PI[[#This Row],[Model Number]])","v":""},{"$f":"IF(Table_PI[[#This Row],[Serial Number(s)]]=\"\",\"\",Table_PI[[#This Row],[Serial Number(s)]])","v":""},null,{"$f":"IF(Table_PI[[#This Row],[Size]]=\"\",\"\",Table_PI[[#This Row],[Size]])","v":""},null,null,{"$f":"IF(Table_PI[[#This Row],[Input 1]]<>\"\",Table_PI[[#This Row],[Input 1]],\"\")","v":""},null,null,{"$f":"IF(Table_PI[[#This Row],[Input 2]]<>\"\",Table_PI[[#This Row],[Input 2]],\"\")","v":""},null,null,{"$f":"IF(Table_PI[[#This Row],[Input 3]]<>\"\",Table_PI[[#This Row],[Input 3]],\"\")","v":""},null,null,{"$f":"IF(Table_PI[[#This Row],[Input 4]]<>\"\",Table_PI[[#This Row],[Input 4]],\"\")","v":""},null,null,{"$f":"IF(Table_PI[[#This Row],[Input 4]]<>\"\",Table_PI[[#This Row],[Input 4]],\"\")","v":""},null,null,{"$f":"IF(Table_PI[[#This Row],[Input 4]]<>\"\",Table_PI[[#This Row],[Input 4]],\"\")","v":""},{"$f":"IF(Table_PI[[#This Row],[Quantity]]=\"\",\"\",Table_PI[[#This Row],[Quantity]])","v":""},{"$f":"IF(Table_PI[[#This Row],[Notes]]=\"\",\"\",Table_PI[[#This Row],[Notes]])","v":""},{"$f":"IF(OR(Table_PI[[#This Row],[Hide: Baseline kWh]]=\"\",Table_PI[[#This Row],[Hide: Baseline kWh]]=0,ISTEXT(Table_PI[[#This Row],[Hide: Baseline kWh]])),\"\",Table_PI[[#This Row],[Hide: Baseline kWh]])","v":""},{"$f":"IF(OR(Table_PI[[#This Row],[Hide: Baseline kW]]=\"\",Table_PI[[#This Row],[Hide: Baseline kW]]=0,ISTEXT(Table_PI[[#This Row],[Hide: Baseline kW]])),\"\",Table_PI[[#This Row],[Hide: Baseline kW]])","v":""},{"$f":"IF(OR(Table_PI[[#This Row],[Hide: Proposed kWh]]=\"\",Table_PI[[#This Row],[Hide: Proposed kWh]]=0,ISTEXT(Table_PI[[#This Row],[Hide: Proposed kWh]])),\"\",Table_PI[[#This Row],[Hide: Proposed kWh]])","v":""},{"$f":"IF(OR(Table_PI[[#This Row],[Hide: Proposed kW]]=\"\",Table_PI[[#This Row],[Hide: Proposed kW]]=0,ISTEXT(Table_PI[[#This Row],[Hide: Proposed kW]])),\"\",Table_PI[[#This Row],[Hide: Proposed kW]])","v":""},null,null,{"$f":"IF(OR(Table_PI[[#This Row],[Hide: Rebate]]=\"\",Table_PI[[#This Row],[Hide: Rebate]]=0,ISTEXT(Table_PI[[#This Row],[Hide: Rebate]])),\"\",Table_PI[[#This Row],[Hide: Rebate]])","v":""},null,{"$f":"IF(OR(Table_PI[[#This Row],[Hide: Incremental Cost]]=\"\",Table_PI[[#This Row],[Hide: Incremental Cost]]=0,ISTEXT(Table_PI[[#This Row],[Hide: Incremental Cost]])),\"\",Table_PI[[#This Row],[Hide: Incremental Cost]])","v":""},{"$f":"IFERROR(IF(Table_SummaryPI[[#This Row],[Incentive_Customer]]=\"\",\"\",ROUND(Table_SummaryPI[[#This Row],[Incentive_Customer]]/$AM$401*'Customer Information'!$BC$21,2)),0)","v":""},{"$f":"IF(OR(Table_PI[[#This Row],[Annual kWh]]=\"\",Table_PI[[#This Row],[Annual kWh]]=0,ISTEXT(Table_PI[[#This Row],[Annual kWh]])),\"\",Table_PI[[#This Row],[Annual kWh]])","v":""},{"$f":"IF(OR(Table_PI[[#This Row],[Peak kW]]=\"\",Table_PI[[#This Row],[Peak kW]]=0,ISTEXT(Table_PI[[#This Row],[Peak kW]])),\"\",Table_PI[[#This Row],[Peak kW]])","v":""},{"$f":"IF(Table_SummaryPI[[#This Row],[Line No.]]<>\"\",IF(AND(ISNUMBER(FIND(\"Chiller\",Table_SummaryPI[[#This Row],[P_MeasureOption1]],1)),Table_SummaryPI[[#This Row],[ProposedMeasureCategory]]=\"Air-Cooled (Water-Cooled Replacement)\"),$BD$29*Table_SummaryPI[[#This Row],[Size]]*Table_SummaryPI[[#This Row],[Quantity]]*Table_SummaryPI[[#This Row],[EFLHCooling]],\nIF(ISNUMBER(FIND(\"Dishwasher\",Table_SummaryPI[[#This Row],[ProposedMeasureCategory]],1)),$BH$29*Table_SummaryPI[[#This Row],[Quantity]],\nIF(ISNUMBER(FIND(\"Ice Maker\",Table_SummaryPI[[#This Row],[ProposedMeasureCategory]],1)),$BD$31*Table_SummaryPI[[#This Row],[Quantity]],\nIF(ISNUMBER(FIND(\"Spray Valve\",Table_SummaryPI[[#This Row],[ProposedMeasureCategory]],1)),$BH$31*Table_SummaryPI[[#This Row],[Quantity]],\n0)))),\"\")","v":""},{"$f":"IF(OR(Table_PI[[#This Row],[Hide: Electrification kWh]]=\"\",Table_PI[[#This Row],[Hide: Electrification kWh]]=0,ISTEXT(Table_PI[[#This Row],[Hide: Electrification kWh]])),\"\",Table_PI[[#This Row],[Hide: Electrification kWh]])","v":""},{"$f":"IF(OR(Table_PI[[#This Row],[Hide: Electrification GHG]]=\"\",Table_PI[[#This Row],[Hide: Electrification GHG]]=0,ISTEXT(Table_PI[[#This Row],[Hide: Electrification GHG]])),\"\",Table_PI[[#This Row],[Hide: Electrification GHG]])","v":""},{"$f":"IFERROR(IF(Table_SummaryPI[[#This Row],[kWhSavings]]=\"\",\"\",$BH$9*Table_SummaryPI[[#This Row],[kWhSavings]]),0)","v":""},{"$f":"IFERROR(IF(Table_SummaryPI[[#This Row],[kWhSavings]]=\"\",\"\",$BH$14*Table_SummaryPI[[#This Row],[kWhSavings]]),0)","v":""},{"$f":"IFERROR(IF(Table_SummaryPI[[#This Row],[kWhSavings]]=\"\",\"\",$BH$18*Table_SummaryPI[[#This Row],[kWhSavings]]),0)","v":""},{"$f":"IFERROR(IF(Table_SummaryPI[[#This Row],[kWhSavings]]=\"\",\"\",$BH$22*Table_SummaryPI[[#This Row],[kWhSavings]]),0)","v":""}]
[{"$f":"Table_PI[[#This Row],[Line No.]]","v":""},{"$f":"IF(Table_SummaryPI[[#This Row],[MeasureName]]<>\"\",NOT(ISTEXT(Table_PI[[#This Row],[Rebate]])),\"\")","v":""},{"$f":"IF(Table_SummaryPI[[#This Row],[MeassureCategory]]<>\"\",CONCATENATE(Table_SummaryPI[[#This Row],[MeassureCategory]],  \" - \", Table_SummaryPI[[#This Row],[ProposedMeasureCategory]],  \" - \", TEXT(Table_SummaryPI[[#This Row],[Size]],\"#,##0.00\"),\" \",Table_SummaryPI[[#This Row],[SizeUnit]]),\"\")","v":""},{"$f":"SUBSTITUTE(Table_PI[[#This Row],[Measure]],\"     \",\"\",1)","v":""},{"$f":"IF(Table_PI[[#This Row],[List 1]]<>\"\",Table_PI[[#This Row],[List 1]],\"\")","v":""},{"$f":"IF(Table_PI[[#This Row],[List 2]]<>\"\",Table_PI[[#This Row],[List 2]],\"\")","v":""},{"$f":"IF(Table_PI[[#This Row],[List 3]]<>\"\",Table_PI[[#This Row],[List 3]],\"\")","v":""},{"$f":"IF(Table_PI[[#This Row],[Manufacturer]]=\"\",\"\",Table_PI[[#This Row],[Manufacturer]])","v":""},{"$f":"IF(Table_PI[[#This Row],[Model Number]]=\"\",\"\",Table_PI[[#This Row],[Model Number]])","v":""},{"$f":"IF(Table_PI[[#This Row],[Serial Number(s)]]=\"\",\"\",Table_PI[[#This Row],[Serial Number(s)]])","v":""},null,{"$f":"IF(Table_PI[[#This Row],[Size]]=\"\",\"\",Table_PI[[#This Row],[Size]])","v":""},null,null,{"$f":"IF(Table_PI[[#This Row],[Input 1]]<>\"\",Table_PI[[#This Row],[Input 1]],\"\")","v":""},null,null,{"$f":"IF(Table_PI[[#This Row],[Input 2]]<>\"\",Table_PI[[#This Row],[Input 2]],\"\")","v":""},null,null,{"$f":"IF(Table_PI[[#This Row],[Input 3]]<>\"\",Table_PI[[#This Row],[Input 3]],\"\")","v":""},null,null,{"$f":"IF(Table_PI[[#This Row],[Input 4]]<>\"\",Table_PI[[#This Row],[Input 4]],\"\")","v":""},null,null,{"$f":"IF(Table_PI[[#This Row],[Input 4]]<>\"\",Table_PI[[#This Row],[Input 4]],\"\")","v":""},null,null,{"$f":"IF(Table_PI[[#This Row],[Input 4]]<>\"\",Table_PI[[#This Row],[Input 4]],\"\")","v":""},{"$f":"IF(Table_PI[[#This Row],[Quantity]]=\"\",\"\",Table_PI[[#This Row],[Quantity]])","v":""},{"$f":"IF(Table_PI[[#This Row],[Notes]]=\"\",\"\",Table_PI[[#This Row],[Notes]])","v":""},{"$f":"IF(OR(Table_PI[[#This Row],[Hide: Baseline kWh]]=\"\",Table_PI[[#This Row],[Hide: Baseline kWh]]=0,ISTEXT(Table_PI[[#This Row],[Hide: Baseline kWh]])),\"\",Table_PI[[#This Row],[Hide: Baseline kWh]])","v":""},{"$f":"IF(OR(Table_PI[[#This Row],[Hide: Baseline kW]]=\"\",Table_PI[[#This Row],[Hide: Baseline kW]]=0,ISTEXT(Table_PI[[#This Row],[Hide: Baseline kW]])),\"\",Table_PI[[#This Row],[Hide: Baseline kW]])","v":""},{"$f":"IF(OR(Table_PI[[#This Row],[Hide: Proposed kWh]]=\"\",Table_PI[[#This Row],[Hide: Proposed kWh]]=0,ISTEXT(Table_PI[[#This Row],[Hide: Proposed kWh]])),\"\",Table_PI[[#This Row],[Hide: Proposed kWh]])","v":""},{"$f":"IF(OR(Table_PI[[#This Row],[Hide: Proposed kW]]=\"\",Table_PI[[#This Row],[Hide: Proposed kW]]=0,ISTEXT(Table_PI[[#This Row],[Hide: Proposed kW]])),\"\",Table_PI[[#This Row],[Hide: Proposed kW]])","v":""},null,null,{"$f":"IF(OR(Table_PI[[#This Row],[Hide: Rebate]]=\"\",Table_PI[[#This Row],[Hide: Rebate]]=0,ISTEXT(Table_PI[[#This Row],[Hide: Rebate]])),\"\",Table_PI[[#This Row],[Hide: Rebate]])","v":""},null,{"$f":"IF(OR(Table_PI[[#This Row],[Hide: Incremental Cost]]=\"\",Table_PI[[#This Row],[Hide: Incremental Cost]]=0,ISTEXT(Table_PI[[#This Row],[Hide: Incremental Cost]])),\"\",Table_PI[[#This Row],[Hide: Incremental Cost]])","v":""},{"$f":"IFERROR(IF(Table_SummaryPI[[#This Row],[Incentive_Customer]]=\"\",\"\",ROUND(Table_SummaryPI[[#This Row],[Incentive_Customer]]/$AM$401*'Customer Information'!$BC$21,2)),0)","v":""},{"$f":"IF(OR(Table_PI[[#This Row],[Annual kWh]]=\"\",Table_PI[[#This Row],[Annual kWh]]=0,ISTEXT(Table_PI[[#This Row],[Annual kWh]])),\"\",Table_PI[[#This Row],[Annual kWh]])","v":""},{"$f":"IF(OR(Table_PI[[#This Row],[Peak kW]]=\"\",Table_PI[[#This Row],[Peak kW]]=0,ISTEXT(Table_PI[[#This Row],[Peak kW]])),\"\",Table_PI[[#This Row],[Peak kW]])","v":""},{"$f":"IF(Table_SummaryPI[[#This Row],[Line No.]]<>\"\",IF(AND(ISNUMBER(FIND(\"Chiller\",Table_SummaryPI[[#This Row],[P_MeasureOption1]],1)),Table_SummaryPI[[#This Row],[ProposedMeasureCategory]]=\"Air-Cooled (Water-Cooled Replacement)\"),$BD$29*Table_SummaryPI[[#This Row],[Size]]*Table_SummaryPI[[#This Row],[Quantity]]*Table_SummaryPI[[#This Row],[EFLHCooling]],\nIF(ISNUMBER(FIND(\"Dishwasher\",Table_SummaryPI[[#This Row],[ProposedMeasureCategory]],1)),$BH$29*Table_SummaryPI[[#This Row],[Quantity]],\nIF(ISNUMBER(FIND(\"Ice Maker\",Table_SummaryPI[[#This Row],[ProposedMeasureCategory]],1)),$BD$31*Table_SummaryPI[[#This Row],[Quantity]],\nIF(ISNUMBER(FIND(\"Spray Valve\",Table_SummaryPI[[#This Row],[ProposedMeasureCategory]],1)),$BH$31*Table_SummaryPI[[#This Row],[Quantity]],\n0)))),\"\")","v":""},{"$f":"IF(OR(Table_PI[[#This Row],[Hide: Electrification kWh]]=\"\",Table_PI[[#This Row],[Hide: Electrification kWh]]=0,ISTEXT(Table_PI[[#This Row],[Hide: Electrification kWh]])),\"\",Table_PI[[#This Row],[Hide: Electrification kWh]])","v":""},{"$f":"IF(OR(Table_PI[[#This Row],[Hide: Electrification GHG]]=\"\",Table_PI[[#This Row],[Hide: Electrification GHG]]=0,ISTEXT(Table_PI[[#This Row],[Hide: Electrification GHG]])),\"\",Table_PI[[#This Row],[Hide: Electrification GHG]])","v":""},{"$f":"IFERROR(IF(Table_SummaryPI[[#This Row],[kWhSavings]]=\"\",\"\",$BH$9*Table_SummaryPI[[#This Row],[kWhSavings]]),0)","v":""},{"$f":"IFERROR(IF(Table_SummaryPI[[#This Row],[kWhSavings]]=\"\",\"\",$BH$14*Table_SummaryPI[[#This Row],[kWhSavings]]),0)","v":""},{"$f":"IFERROR(IF(Table_SummaryPI[[#This Row],[kWhSavings]]=\"\",\"\",$BH$18*Table_SummaryPI[[#This Row],[kWhSavings]]),0)","v":""},{"$f":"IFERROR(IF(Table_SummaryPI[[#This Row],[kWhSavings]]=\"\",\"\",$BH$22*Table_SummaryPI[[#This Row],[kWhSavings]]),0)","v":""}]
[{"$f":"Table_PI[[#This Row],[Line No.]]","v":""},{"$f":"IF(Table_SummaryPI[[#This Row],[MeasureName]]<>\"\",NOT(ISTEXT(Table_PI[[#This Row],[Rebate]])),\"\")","v":""},{"$f":"IF(Table_SummaryPI[[#This Row],[MeassureCategory]]<>\"\",CONCATENATE(Table_SummaryPI[[#This Row],[MeassureCategory]],  \" - \", Table_SummaryPI[[#This Row],[ProposedMeasureCategory]],  \" - \", TEXT(Table_SummaryPI[[#This Row],[Size]],\"#,##0.00\"),\" \",Table_SummaryPI[[#This Row],[SizeUnit]]),\"\")","v":""},{"$f":"SUBSTITUTE(Table_PI[[#This Row],[Measure]],\"     \",\"\",1)","v":""},{"$f":"IF(Table_PI[[#This Row],[List 1]]<>\"\",Table_PI[[#This Row],[List 1]],\"\")","v":""},{"$f":"IF(Table_PI[[#This Row],[List 2]]<>\"\",Table_PI[[#This Row],[List 2]],\"\")","v":""},{"$f":"IF(Table_PI[[#This Row],[List 3]]<>\"\",Table_PI[[#This Row],[List 3]],\"\")","v":""},{"$f":"IF(Table_PI[[#This Row],[Manufacturer]]=\"\",\"\",Table_PI[[#This Row],[Manufacturer]])","v":""},{"$f":"IF(Table_PI[[#This Row],[Model Number]]=\"\",\"\",Table_PI[[#This Row],[Model Number]])","v":""},{"$f":"IF(Table_PI[[#This Row],[Serial Number(s)]]=\"\",\"\",Table_PI[[#This Row],[Serial Number(s)]])","v":""},null,{"$f":"IF(Table_PI[[#This Row],[Size]]=\"\",\"\",Table_PI[[#This Row],[Size]])","v":""},null,null,{"$f":"IF(Table_PI[[#This Row],[Input 1]]<>\"\",Table_PI[[#This Row],[Input 1]],\"\")","v":""},null,null,{"$f":"IF(Table_PI[[#This Row],[Input 2]]<>\"\",Table_PI[[#This Row],[Input 2]],\"\")","v":""},null,null,{"$f":"IF(Table_PI[[#This Row],[Input 3]]<>\"\",Table_PI[[#This Row],[Input 3]],\"\")","v":""},null,null,{"$f":"IF(Table_PI[[#This Row],[Input 4]]<>\"\",Table_PI[[#This Row],[Input 4]],\"\")","v":""},null,null,{"$f":"IF(Table_PI[[#This Row],[Input 4]]<>\"\",Table_PI[[#This Row],[Input 4]],\"\")","v":""},null,null,{"$f":"IF(Table_PI[[#This Row],[Input 4]]<>\"\",Table_PI[[#This Row],[Input 4]],\"\")","v":""},{"$f":"IF(Table_PI[[#This Row],[Quantity]]=\"\",\"\",Table_PI[[#This Row],[Quantity]])","v":""},{"$f":"IF(Table_PI[[#This Row],[Notes]]=\"\",\"\",Table_PI[[#This Row],[Notes]])","v":""},{"$f":"IF(OR(Table_PI[[#This Row],[Hide: Baseline kWh]]=\"\",Table_PI[[#This Row],[Hide: Baseline kWh]]=0,ISTEXT(Table_PI[[#This Row],[Hide: Baseline kWh]])),\"\",Table_PI[[#This Row],[Hide: Baseline kWh]])","v":""},{"$f":"IF(OR(Table_PI[[#This Row],[Hide: Baseline kW]]=\"\",Table_PI[[#This Row],[Hide: Baseline kW]]=0,ISTEXT(Table_PI[[#This Row],[Hide: Baseline kW]])),\"\",Table_PI[[#This Row],[Hide: Baseline kW]])","v":""},{"$f":"IF(OR(Table_PI[[#This Row],[Hide: Proposed kWh]]=\"\",Table_PI[[#This Row],[Hide: Proposed kWh]]=0,ISTEXT(Table_PI[[#This Row],[Hide: Proposed kWh]])),\"\",Table_PI[[#This Row],[Hide: Proposed kWh]])","v":""},{"$f":"IF(OR(Table_PI[[#This Row],[Hide: Proposed kW]]=\"\",Table_PI[[#This Row],[Hide: Proposed kW]]=0,ISTEXT(Table_PI[[#This Row],[Hide: Proposed kW]])),\"\",Table_PI[[#This Row],[Hide: Proposed kW]])","v":""},null,null,{"$f":"IF(OR(Table_PI[[#This Row],[Hide: Rebate]]=\"\",Table_PI[[#This Row],[Hide: Rebate]]=0,ISTEXT(Table_PI[[#This Row],[Hide: Rebate]])),\"\",Table_PI[[#This Row],[Hide: Rebate]])","v":""},null,{"$f":"IF(OR(Table_PI[[#This Row],[Hide: Incremental Cost]]=\"\",Table_PI[[#This Row],[Hide: Incremental Cost]]=0,ISTEXT(Table_PI[[#This Row],[Hide: Incremental Cost]])),\"\",Table_PI[[#This Row],[Hide: Incremental Cost]])","v":""},{"$f":"IFERROR(IF(Table_SummaryPI[[#This Row],[Incentive_Customer]]=\"\",\"\",ROUND(Table_SummaryPI[[#This Row],[Incentive_Customer]]/$AM$401*'Customer Information'!$BC$21,2)),0)","v":""},{"$f":"IF(OR(Table_PI[[#This Row],[Annual kWh]]=\"\",Table_PI[[#This Row],[Annual kWh]]=0,ISTEXT(Table_PI[[#This Row],[Annual kWh]])),\"\",Table_PI[[#This Row],[Annual kWh]])","v":""},{"$f":"IF(OR(Table_PI[[#This Row],[Peak kW]]=\"\",Table_PI[[#This Row],[Peak kW]]=0,ISTEXT(Table_PI[[#This Row],[Peak kW]])),\"\",Table_PI[[#This Row],[Peak kW]])","v":""},{"$f":"IF(Table_SummaryPI[[#This Row],[Line No.]]<>\"\",IF(AND(ISNUMBER(FIND(\"Chiller\",Table_SummaryPI[[#This Row],[P_MeasureOption1]],1)),Table_SummaryPI[[#This Row],[ProposedMeasureCategory]]=\"Air-Cooled (Water-Cooled Replacement)\"),$BD$29*Table_SummaryPI[[#This Row],[Size]]*Table_SummaryPI[[#This Row],[Quantity]]*Table_SummaryPI[[#This Row],[EFLHCooling]],\nIF(ISNUMBER(FIND(\"Dishwasher\",Table_SummaryPI[[#This Row],[ProposedMeasureCategory]],1)),$BH$29*Table_SummaryPI[[#This Row],[Quantity]],\nIF(ISNUMBER(FIND(\"Ice Maker\",Table_SummaryPI[[#This Row],[ProposedMeasureCategory]],1)),$BD$31*Table_SummaryPI[[#This Row],[Quantity]],\nIF(ISNUMBER(FIND(\"Spray Valve\",Table_SummaryPI[[#This Row],[ProposedMeasureCategory]],1)),$BH$31*Table_SummaryPI[[#This Row],[Quantity]],\n0)))),\"\")","v":""},{"$f":"IF(OR(Table_PI[[#This Row],[Hide: Electrification kWh]]=\"\",Table_PI[[#This Row],[Hide: Electrification kWh]]=0,ISTEXT(Table_PI[[#This Row],[Hide: Electrification kWh]])),\"\",Table_PI[[#This Row],[Hide: Electrification kWh]])","v":""},{"$f":"IF(OR(Table_PI[[#This Row],[Hide: Electrification GHG]]=\"\",Table_PI[[#This Row],[Hide: Electrification GHG]]=0,ISTEXT(Table_PI[[#This Row],[Hide: Electrification GHG]])),\"\",Table_PI[[#This Row],[Hide: Electrification GHG]])","v":""},{"$f":"IFERROR(IF(Table_SummaryPI[[#This Row],[kWhSavings]]=\"\",\"\",$BH$9*Table_SummaryPI[[#This Row],[kWhSavings]]),0)","v":""},{"$f":"IFERROR(IF(Table_SummaryPI[[#This Row],[kWhSavings]]=\"\",\"\",$BH$14*Table_SummaryPI[[#This Row],[kWhSavings]]),0)","v":""},{"$f":"IFERROR(IF(Table_SummaryPI[[#This Row],[kWhSavings]]=\"\",\"\",$BH$18*Table_SummaryPI[[#This Row],[kWhSavings]]),0)","v":""},{"$f":"IFERROR(IF(Table_SummaryPI[[#This Row],[kWhSavings]]=\"\",\"\",$BH$22*Table_SummaryPI[[#This Row],[kWhSavings]]),0)","v":""}]
[{"$f":"Table_PI[[#This Row],[Line No.]]","v":""},{"$f":"IF(Table_SummaryPI[[#This Row],[MeasureName]]<>\"\",NOT(ISTEXT(Table_PI[[#This Row],[Rebate]])),\"\")","v":""},{"$f":"IF(Table_SummaryPI[[#This Row],[MeassureCategory]]<>\"\",CONCATENATE(Table_SummaryPI[[#This Row],[MeassureCategory]],  \" - \", Table_SummaryPI[[#This Row],[ProposedMeasureCategory]],  \" - \", TEXT(Table_SummaryPI[[#This Row],[Size]],\"#,##0.00\"),\" \",Table_SummaryPI[[#This Row],[SizeUnit]]),\"\")","v":""},{"$f":"SUBSTITUTE(Table_PI[[#This Row],[Measure]],\"     \",\"\",1)","v":""},{"$f":"IF(Table_PI[[#This Row],[List 1]]<>\"\",Table_PI[[#This Row],[List 1]],\"\")","v":""},{"$f":"IF(Table_PI[[#This Row],[List 2]]<>\"\",Table_PI[[#This Row],[List 2]],\"\")","v":""},{"$f":"IF(Table_PI[[#This Row],[List 3]]<>\"\",Table_PI[[#This Row],[List 3]],\"\")","v":""},{"$f":"IF(Table_PI[[#This Row],[Manufacturer]]=\"\",\"\",Table_PI[[#This Row],[Manufacturer]])","v":""},{"$f":"IF(Table_PI[[#This Row],[Model Number]]=\"\",\"\",Table_PI[[#This Row],[Model Number]])","v":""},{"$f":"IF(Table_PI[[#This Row],[Serial Number(s)]]=\"\",\"\",Table_PI[[#This Row],[Serial Number(s)]])","v":""},null,{"$f":"IF(Table_PI[[#This Row],[Size]]=\"\",\"\",Table_PI[[#This Row],[Size]])","v":""},null,null,{"$f":"IF(Table_PI[[#This Row],[Input 1]]<>\"\",Table_PI[[#This Row],[Input 1]],\"\")","v":""},null,null,{"$f":"IF(Table_PI[[#This Row],[Input 2]]<>\"\",Table_PI[[#This Row],[Input 2]],\"\")","v":""},null,null,{"$f":"IF(Table_PI[[#This Row],[Input 3]]<>\"\",Table_PI[[#This Row],[Input 3]],\"\")","v":""},null,null,{"$f":"IF(Table_PI[[#This Row],[Input 4]]<>\"\",Table_PI[[#This Row],[Input 4]],\"\")","v":""},null,null,{"$f":"IF(Table_PI[[#This Row],[Input 4]]<>\"\",Table_PI[[#This Row],[Input 4]],\"\")","v":""},null,null,{"$f":"IF(Table_PI[[#This Row],[Input 4]]<>\"\",Table_PI[[#This Row],[Input 4]],\"\")","v":""},{"$f":"IF(Table_PI[[#This Row],[Quantity]]=\"\",\"\",Table_PI[[#This Row],[Quantity]])","v":""},{"$f":"IF(Table_PI[[#This Row],[Notes]]=\"\",\"\",Table_PI[[#This Row],[Notes]])","v":""},{"$f":"IF(OR(Table_PI[[#This Row],[Hide: Baseline kWh]]=\"\",Table_PI[[#This Row],[Hide: Baseline kWh]]=0,ISTEXT(Table_PI[[#This Row],[Hide: Baseline kWh]])),\"\",Table_PI[[#This Row],[Hide: Baseline kWh]])","v":""},{"$f":"IF(OR(Table_PI[[#This Row],[Hide: Baseline kW]]=\"\",Table_PI[[#This Row],[Hide: Baseline kW]]=0,ISTEXT(Table_PI[[#This Row],[Hide: Baseline kW]])),\"\",Table_PI[[#This Row],[Hide: Baseline kW]])","v":""},{"$f":"IF(OR(Table_PI[[#This Row],[Hide: Proposed kWh]]=\"\",Table_PI[[#This Row],[Hide: Proposed kWh]]=0,ISTEXT(Table_PI[[#This Row],[Hide: Proposed kWh]])),\"\",Table_PI[[#This Row],[Hide: Proposed kWh]])","v":""},{"$f":"IF(OR(Table_PI[[#This Row],[Hide: Proposed kW]]=\"\",Table_PI[[#This Row],[Hide: Proposed kW]]=0,ISTEXT(Table_PI[[#This Row],[Hide: Proposed kW]])),\"\",Table_PI[[#This Row],[Hide: Proposed kW]])","v":""},null,null,{"$f":"IF(OR(Table_PI[[#This Row],[Hide: Rebate]]=\"\",Table_PI[[#This Row],[Hide: Rebate]]=0,ISTEXT(Table_PI[[#This Row],[Hide: Rebate]])),\"\",Table_PI[[#This Row],[Hide: Rebate]])","v":""},null,{"$f":"IF(OR(Table_PI[[#This Row],[Hide: Incremental Cost]]=\"\",Table_PI[[#This Row],[Hide: Incremental Cost]]=0,ISTEXT(Table_PI[[#This Row],[Hide: Incremental Cost]])),\"\",Table_PI[[#This Row],[Hide: Incremental Cost]])","v":""},{"$f":"IFERROR(IF(Table_SummaryPI[[#This Row],[Incentive_Customer]]=\"\",\"\",ROUND(Table_SummaryPI[[#This Row],[Incentive_Customer]]/$AM$401*'Customer Information'!$BC$21,2)),0)","v":""},{"$f":"IF(OR(Table_PI[[#This Row],[Annual kWh]]=\"\",Table_PI[[#This Row],[Annual kWh]]=0,ISTEXT(Table_PI[[#This Row],[Annual kWh]])),\"\",Table_PI[[#This Row],[Annual kWh]])","v":""},{"$f":"IF(OR(Table_PI[[#This Row],[Peak kW]]=\"\",Table_PI[[#This Row],[Peak kW]]=0,ISTEXT(Table_PI[[#This Row],[Peak kW]])),\"\",Table_PI[[#This Row],[Peak kW]])","v":""},{"$f":"IF(Table_SummaryPI[[#This Row],[Line No.]]<>\"\",IF(AND(ISNUMBER(FIND(\"Chiller\",Table_SummaryPI[[#This Row],[P_MeasureOption1]],1)),Table_SummaryPI[[#This Row],[ProposedMeasureCategory]]=\"Air-Cooled (Water-Cooled Replacement)\"),$BD$29*Table_SummaryPI[[#This Row],[Size]]*Table_SummaryPI[[#This Row],[Quantity]]*Table_SummaryPI[[#This Row],[EFLHCooling]],\nIF(ISNUMBER(FIND(\"Dishwasher\",Table_SummaryPI[[#This Row],[ProposedMeasureCategory]],1)),$BH$29*Table_SummaryPI[[#This Row],[Quantity]],\nIF(ISNUMBER(FIND(\"Ice Maker\",Table_SummaryPI[[#This Row],[ProposedMeasureCategory]],1)),$BD$31*Table_SummaryPI[[#This Row],[Quantity]],\nIF(ISNUMBER(FIND(\"Spray Valve\",Table_SummaryPI[[#This Row],[ProposedMeasureCategory]],1)),$BH$31*Table_SummaryPI[[#This Row],[Quantity]],\n0)))),\"\")","v":""},{"$f":"IF(OR(Table_PI[[#This Row],[Hide: Electrification kWh]]=\"\",Table_PI[[#This Row],[Hide: Electrification kWh]]=0,ISTEXT(Table_PI[[#This Row],[Hide: Electrification kWh]])),\"\",Table_PI[[#This Row],[Hide: Electrification kWh]])","v":""},{"$f":"IF(OR(Table_PI[[#This Row],[Hide: Electrification GHG]]=\"\",Table_PI[[#This Row],[Hide: Electrification GHG]]=0,ISTEXT(Table_PI[[#This Row],[Hide: Electrification GHG]])),\"\",Table_PI[[#This Row],[Hide: Electrification GHG]])","v":""},{"$f":"IFERROR(IF(Table_SummaryPI[[#This Row],[kWhSavings]]=\"\",\"\",$BH$9*Table_SummaryPI[[#This Row],[kWhSavings]]),0)","v":""},{"$f":"IFERROR(IF(Table_SummaryPI[[#This Row],[kWhSavings]]=\"\",\"\",$BH$14*Table_SummaryPI[[#This Row],[kWhSavings]]),0)","v":""},{"$f":"IFERROR(IF(Table_SummaryPI[[#This Row],[kWhSavings]]=\"\",\"\",$BH$18*Table_SummaryPI[[#This Row],[kWhSavings]]),0)","v":""},{"$f":"IFERROR(IF(Table_SummaryPI[[#This Row],[kWhSavings]]=\"\",\"\",$BH$22*Table_SummaryPI[[#This Row],[kWhSavings]]),0)","v":""}]
[{"$f":"Table_PI[[#This Row],[Line No.]]","v":""},{"$f":"IF(Table_SummaryPI[[#This Row],[MeasureName]]<>\"\",NOT(ISTEXT(Table_PI[[#This Row],[Rebate]])),\"\")","v":""},{"$f":"IF(Table_SummaryPI[[#This Row],[MeassureCategory]]<>\"\",CONCATENATE(Table_SummaryPI[[#This Row],[MeassureCategory]],  \" - \", Table_SummaryPI[[#This Row],[ProposedMeasureCategory]],  \" - \", TEXT(Table_SummaryPI[[#This Row],[Size]],\"#,##0.00\"),\" \",Table_SummaryPI[[#This Row],[SizeUnit]]),\"\")","v":""},{"$f":"SUBSTITUTE(Table_PI[[#This Row],[Measure]],\"     \",\"\",1)","v":""},{"$f":"IF(Table_PI[[#This Row],[List 1]]<>\"\",Table_PI[[#This Row],[List 1]],\"\")","v":""},{"$f":"IF(Table_PI[[#This Row],[List 2]]<>\"\",Table_PI[[#This Row],[List 2]],\"\")","v":""},{"$f":"IF(Table_PI[[#This Row],[List 3]]<>\"\",Table_PI[[#This Row],[List 3]],\"\")","v":""},{"$f":"IF(Table_PI[[#This Row],[Manufacturer]]=\"\",\"\",Table_PI[[#This Row],[Manufacturer]])","v":""},{"$f":"IF(Table_PI[[#This Row],[Model Number]]=\"\",\"\",Table_PI[[#This Row],[Model Number]])","v":""},{"$f":"IF(Table_PI[[#This Row],[Serial Number(s)]]=\"\",\"\",Table_PI[[#This Row],[Serial Number(s)]])","v":""},null,{"$f":"IF(Table_PI[[#This Row],[Size]]=\"\",\"\",Table_PI[[#This Row],[Size]])","v":""},null,null,{"$f":"IF(Table_PI[[#This Row],[Input 1]]<>\"\",Table_PI[[#This Row],[Input 1]],\"\")","v":""},null,null,{"$f":"IF(Table_PI[[#This Row],[Input 2]]<>\"\",Table_PI[[#This Row],[Input 2]],\"\")","v":""},null,null,{"$f":"IF(Table_PI[[#This Row],[Input 3]]<>\"\",Table_PI[[#This Row],[Input 3]],\"\")","v":""},null,null,{"$f":"IF(Table_PI[[#This Row],[Input 4]]<>\"\",Table_PI[[#This Row],[Input 4]],\"\")","v":""},null,null,{"$f":"IF(Table_PI[[#This Row],[Input 4]]<>\"\",Table_PI[[#This Row],[Input 4]],\"\")","v":""},null,null,{"$f":"IF(Table_PI[[#This Row],[Input 4]]<>\"\",Table_PI[[#This Row],[Input 4]],\"\")","v":""},{"$f":"IF(Table_PI[[#This Row],[Quantity]]=\"\",\"\",Table_PI[[#This Row],[Quantity]])","v":""},{"$f":"IF(Table_PI[[#This Row],[Notes]]=\"\",\"\",Table_PI[[#This Row],[Notes]])","v":""},{"$f":"IF(OR(Table_PI[[#This Row],[Hide: Baseline kWh]]=\"\",Table_PI[[#This Row],[Hide: Baseline kWh]]=0,ISTEXT(Table_PI[[#This Row],[Hide: Baseline kWh]])),\"\",Table_PI[[#This Row],[Hide: Baseline kWh]])","v":""},{"$f":"IF(OR(Table_PI[[#This Row],[Hide: Baseline kW]]=\"\",Table_PI[[#This Row],[Hide: Baseline kW]]=0,ISTEXT(Table_PI[[#This Row],[Hide: Baseline kW]])),\"\",Table_PI[[#This Row],[Hide: Baseline kW]])","v":""},{"$f":"IF(OR(Table_PI[[#This Row],[Hide: Proposed kWh]]=\"\",Table_PI[[#This Row],[Hide: Proposed kWh]]=0,ISTEXT(Table_PI[[#This Row],[Hide: Proposed kWh]])),\"\",Table_PI[[#This Row],[Hide: Proposed kWh]])","v":""},{"$f":"IF(OR(Table_PI[[#This Row],[Hide: Proposed kW]]=\"\",Table_PI[[#This Row],[Hide: Proposed kW]]=0,ISTEXT(Table_PI[[#This Row],[Hide: Proposed kW]])),\"\",Table_PI[[#This Row],[Hide: Proposed kW]])","v":""},null,null,{"$f":"IF(OR(Table_PI[[#This Row],[Hide: Rebate]]=\"\",Table_PI[[#This Row],[Hide: Rebate]]=0,ISTEXT(Table_PI[[#This Row],[Hide: Rebate]])),\"\",Table_PI[[#This Row],[Hide: Rebate]])","v":""},null,{"$f":"IF(OR(Table_PI[[#This Row],[Hide: Incremental Cost]]=\"\",Table_PI[[#This Row],[Hide: Incremental Cost]]=0,ISTEXT(Table_PI[[#This Row],[Hide: Incremental Cost]])),\"\",Table_PI[[#This Row],[Hide: Incremental Cost]])","v":""},{"$f":"IFERROR(IF(Table_SummaryPI[[#This Row],[Incentive_Customer]]=\"\",\"\",ROUND(Table_SummaryPI[[#This Row],[Incentive_Customer]]/$AM$401*'Customer Information'!$BC$21,2)),0)","v":""},{"$f":"IF(OR(Table_PI[[#This Row],[Annual kWh]]=\"\",Table_PI[[#This Row],[Annual kWh]]=0,ISTEXT(Table_PI[[#This Row],[Annual kWh]])),\"\",Table_PI[[#This Row],[Annual kWh]])","v":""},{"$f":"IF(OR(Table_PI[[#This Row],[Peak kW]]=\"\",Table_PI[[#This Row],[Peak kW]]=0,ISTEXT(Table_PI[[#This Row],[Peak kW]])),\"\",Table_PI[[#This Row],[Peak kW]])","v":""},{"$f":"IF(Table_SummaryPI[[#This Row],[Line No.]]<>\"\",IF(AND(ISNUMBER(FIND(\"Chiller\",Table_SummaryPI[[#This Row],[P_MeasureOption1]],1)),Table_SummaryPI[[#This Row],[ProposedMeasureCategory]]=\"Air-Cooled (Water-Cooled Replacement)\"),$BD$29*Table_SummaryPI[[#This Row],[Size]]*Table_SummaryPI[[#This Row],[Quantity]]*Table_SummaryPI[[#This Row],[EFLHCooling]],\nIF(ISNUMBER(FIND(\"Dishwasher\",Table_SummaryPI[[#This Row],[ProposedMeasureCategory]],1)),$BH$29*Table_SummaryPI[[#This Row],[Quantity]],\nIF(ISNUMBER(FIND(\"Ice Maker\",Table_SummaryPI[[#This Row],[ProposedMeasureCategory]],1)),$BD$31*Table_SummaryPI[[#This Row],[Quantity]],\nIF(ISNUMBER(FIND(\"Spray Valve\",Table_SummaryPI[[#This Row],[ProposedMeasureCategory]],1)),$BH$31*Table_SummaryPI[[#This Row],[Quantity]],\n0)))),\"\")","v":""},{"$f":"IF(OR(Table_PI[[#This Row],[Hide: Electrification kWh]]=\"\",Table_PI[[#This Row],[Hide: Electrification kWh]]=0,ISTEXT(Table_PI[[#This Row],[Hide: Electrification kWh]])),\"\",Table_PI[[#This Row],[Hide: Electrification kWh]])","v":""},{"$f":"IF(OR(Table_PI[[#This Row],[Hide: Electrification GHG]]=\"\",Table_PI[[#This Row],[Hide: Electrification GHG]]=0,ISTEXT(Table_PI[[#This Row],[Hide: Electrification GHG]])),\"\",Table_PI[[#This Row],[Hide: Electrification GHG]])","v":""},{"$f":"IFERROR(IF(Table_SummaryPI[[#This Row],[kWhSavings]]=\"\",\"\",$BH$9*Table_SummaryPI[[#This Row],[kWhSavings]]),0)","v":""},{"$f":"IFERROR(IF(Table_SummaryPI[[#This Row],[kWhSavings]]=\"\",\"\",$BH$14*Table_SummaryPI[[#This Row],[kWhSavings]]),0)","v":""},{"$f":"IFERROR(IF(Table_SummaryPI[[#This Row],[kWhSavings]]=\"\",\"\",$BH$18*Table_SummaryPI[[#This Row],[kWhSavings]]),0)","v":""},{"$f":"IFERROR(IF(Table_SummaryPI[[#This Row],[kWhSavings]]=\"\",\"\",$BH$22*Table_SummaryPI[[#This Row],[kWhSavings]]),0)","v":""}]
[{"$f":"Table_PI[[#This Row],[Line No.]]","v":""},{"$f":"IF(Table_SummaryPI[[#This Row],[MeasureName]]<>\"\",NOT(ISTEXT(Table_PI[[#This Row],[Rebate]])),\"\")","v":""},{"$f":"IF(Table_SummaryPI[[#This Row],[MeassureCategory]]<>\"\",CONCATENATE(Table_SummaryPI[[#This Row],[MeassureCategory]],  \" - \", Table_SummaryPI[[#This Row],[ProposedMeasureCategory]],  \" - \", TEXT(Table_SummaryPI[[#This Row],[Size]],\"#,##0.00\"),\" \",Table_SummaryPI[[#This Row],[SizeUnit]]),\"\")","v":""},{"$f":"SUBSTITUTE(Table_PI[[#This Row],[Measure]],\"     \",\"\",1)","v":""},{"$f":"IF(Table_PI[[#This Row],[List 1]]<>\"\",Table_PI[[#This Row],[List 1]],\"\")","v":""},{"$f":"IF(Table_PI[[#This Row],[List 2]]<>\"\",Table_PI[[#This Row],[List 2]],\"\")","v":""},{"$f":"IF(Table_PI[[#This Row],[List 3]]<>\"\",Table_PI[[#This Row],[List 3]],\"\")","v":""},{"$f":"IF(Table_PI[[#This Row],[Manufacturer]]=\"\",\"\",Table_PI[[#This Row],[Manufacturer]])","v":""},{"$f":"IF(Table_PI[[#This Row],[Model Number]]=\"\",\"\",Table_PI[[#This Row],[Model Number]])","v":""},{"$f":"IF(Table_PI[[#This Row],[Serial Number(s)]]=\"\",\"\",Table_PI[[#This Row],[Serial Number(s)]])","v":""},null,{"$f":"IF(Table_PI[[#This Row],[Size]]=\"\",\"\",Table_PI[[#This Row],[Size]])","v":""},null,null,{"$f":"IF(Table_PI[[#This Row],[Input 1]]<>\"\",Table_PI[[#This Row],[Input 1]],\"\")","v":""},null,null,{"$f":"IF(Table_PI[[#This Row],[Input 2]]<>\"\",Table_PI[[#This Row],[Input 2]],\"\")","v":""},null,null,{"$f":"IF(Table_PI[[#This Row],[Input 3]]<>\"\",Table_PI[[#This Row],[Input 3]],\"\")","v":""},null,null,{"$f":"IF(Table_PI[[#This Row],[Input 4]]<>\"\",Table_PI[[#This Row],[Input 4]],\"\")","v":""},null,null,{"$f":"IF(Table_PI[[#This Row],[Input 4]]<>\"\",Table_PI[[#This Row],[Input 4]],\"\")","v":""},null,null,{"$f":"IF(Table_PI[[#This Row],[Input 4]]<>\"\",Table_PI[[#This Row],[Input 4]],\"\")","v":""},{"$f":"IF(Table_PI[[#This Row],[Quantity]]=\"\",\"\",Table_PI[[#This Row],[Quantity]])","v":""},{"$f":"IF(Table_PI[[#This Row],[Notes]]=\"\",\"\",Table_PI[[#This Row],[Notes]])","v":""},{"$f":"IF(OR(Table_PI[[#This Row],[Hide: Baseline kWh]]=\"\",Table_PI[[#This Row],[Hide: Baseline kWh]]=0,ISTEXT(Table_PI[[#This Row],[Hide: Baseline kWh]])),\"\",Table_PI[[#This Row],[Hide: Baseline kWh]])","v":""},{"$f":"IF(OR(Table_PI[[#This Row],[Hide: Baseline kW]]=\"\",Table_PI[[#This Row],[Hide: Baseline kW]]=0,ISTEXT(Table_PI[[#This Row],[Hide: Baseline kW]])),\"\",Table_PI[[#This Row],[Hide: Baseline kW]])","v":""},{"$f":"IF(OR(Table_PI[[#This Row],[Hide: Proposed kWh]]=\"\",Table_PI[[#This Row],[Hide: Proposed kWh]]=0,ISTEXT(Table_PI[[#This Row],[Hide: Proposed kWh]])),\"\",Table_PI[[#This Row],[Hide: Proposed kWh]])","v":""},{"$f":"IF(OR(Table_PI[[#This Row],[Hide: Proposed kW]]=\"\",Table_PI[[#This Row],[Hide: Proposed kW]]=0,ISTEXT(Table_PI[[#This Row],[Hide: Proposed kW]])),\"\",Table_PI[[#This Row],[Hide: Proposed kW]])","v":""},null,null,{"$f":"IF(OR(Table_PI[[#This Row],[Hide: Rebate]]=\"\",Table_PI[[#This Row],[Hide: Rebate]]=0,ISTEXT(Table_PI[[#This Row],[Hide: Rebate]])),\"\",Table_PI[[#This Row],[Hide: Rebate]])","v":""},null,{"$f":"IF(OR(Table_PI[[#This Row],[Hide: Incremental Cost]]=\"\",Table_PI[[#This Row],[Hide: Incremental Cost]]=0,ISTEXT(Table_PI[[#This Row],[Hide: Incremental Cost]])),\"\",Table_PI[[#This Row],[Hide: Incremental Cost]])","v":""},{"$f":"IFERROR(IF(Table_SummaryPI[[#This Row],[Incentive_Customer]]=\"\",\"\",ROUND(Table_SummaryPI[[#This Row],[Incentive_Customer]]/$AM$401*'Customer Information'!$BC$21,2)),0)","v":""},{"$f":"IF(OR(Table_PI[[#This Row],[Annual kWh]]=\"\",Table_PI[[#This Row],[Annual kWh]]=0,ISTEXT(Table_PI[[#This Row],[Annual kWh]])),\"\",Table_PI[[#This Row],[Annual kWh]])","v":""},{"$f":"IF(OR(Table_PI[[#This Row],[Peak kW]]=\"\",Table_PI[[#This Row],[Peak kW]]=0,ISTEXT(Table_PI[[#This Row],[Peak kW]])),\"\",Table_PI[[#This Row],[Peak kW]])","v":""},{"$f":"IF(Table_SummaryPI[[#This Row],[Line No.]]<>\"\",IF(AND(ISNUMBER(FIND(\"Chiller\",Table_SummaryPI[[#This Row],[P_MeasureOption1]],1)),Table_SummaryPI[[#This Row],[ProposedMeasureCategory]]=\"Air-Cooled (Water-Cooled Replacement)\"),$BD$29*Table_SummaryPI[[#This Row],[Size]]*Table_SummaryPI[[#This Row],[Quantity]]*Table_SummaryPI[[#This Row],[EFLHCooling]],\nIF(ISNUMBER(FIND(\"Dishwasher\",Table_SummaryPI[[#This Row],[ProposedMeasureCategory]],1)),$BH$29*Table_SummaryPI[[#This Row],[Quantity]],\nIF(ISNUMBER(FIND(\"Ice Maker\",Table_SummaryPI[[#This Row],[ProposedMeasureCategory]],1)),$BD$31*Table_SummaryPI[[#This Row],[Quantity]],\nIF(ISNUMBER(FIND(\"Spray Valve\",Table_SummaryPI[[#This Row],[ProposedMeasureCategory]],1)),$BH$31*Table_SummaryPI[[#This Row],[Quantity]],\n0)))),\"\")","v":""},{"$f":"IF(OR(Table_PI[[#This Row],[Hide: Electrification kWh]]=\"\",Table_PI[[#This Row],[Hide: Electrification kWh]]=0,ISTEXT(Table_PI[[#This Row],[Hide: Electrification kWh]])),\"\",Table_PI[[#This Row],[Hide: Electrification kWh]])","v":""},{"$f":"IF(OR(Table_PI[[#This Row],[Hide: Electrification GHG]]=\"\",Table_PI[[#This Row],[Hide: Electrification GHG]]=0,ISTEXT(Table_PI[[#This Row],[Hide: Electrification GHG]])),\"\",Table_PI[[#This Row],[Hide: Electrification GHG]])","v":""},{"$f":"IFERROR(IF(Table_SummaryPI[[#This Row],[kWhSavings]]=\"\",\"\",$BH$9*Table_SummaryPI[[#This Row],[kWhSavings]]),0)","v":""},{"$f":"IFERROR(IF(Table_SummaryPI[[#This Row],[kWhSavings]]=\"\",\"\",$BH$14*Table_SummaryPI[[#This Row],[kWhSavings]]),0)","v":""},{"$f":"IFERROR(IF(Table_SummaryPI[[#This Row],[kWhSavings]]=\"\",\"\",$BH$18*Table_SummaryPI[[#This Row],[kWhSavings]]),0)","v":""},{"$f":"IFERROR(IF(Table_SummaryPI[[#This Row],[kWhSavings]]=\"\",\"\",$BH$22*Table_SummaryPI[[#This Row],[kWhSavings]]),0)","v":""}]
[{"$f":"Table_PI[[#This Row],[Line No.]]","v":""},{"$f":"IF(Table_SummaryPI[[#This Row],[MeasureName]]<>\"\",NOT(ISTEXT(Table_PI[[#This Row],[Rebate]])),\"\")","v":""},{"$f":"IF(Table_SummaryPI[[#This Row],[MeassureCategory]]<>\"\",CONCATENATE(Table_SummaryPI[[#This Row],[MeassureCategory]],  \" - \", Table_SummaryPI[[#This Row],[ProposedMeasureCategory]],  \" - \", TEXT(Table_SummaryPI[[#This Row],[Size]],\"#,##0.00\"),\" \",Table_SummaryPI[[#This Row],[SizeUnit]]),\"\")","v":""},{"$f":"SUBSTITUTE(Table_PI[[#This Row],[Measure]],\"     \",\"\",1)","v":""},{"$f":"IF(Table_PI[[#This Row],[List 1]]<>\"\",Table_PI[[#This Row],[List 1]],\"\")","v":""},{"$f":"IF(Table_PI[[#This Row],[List 2]]<>\"\",Table_PI[[#This Row],[List 2]],\"\")","v":""},{"$f":"IF(Table_PI[[#This Row],[List 3]]<>\"\",Table_PI[[#This Row],[List 3]],\"\")","v":""},{"$f":"IF(Table_PI[[#This Row],[Manufacturer]]=\"\",\"\",Table_PI[[#This Row],[Manufacturer]])","v":""},{"$f":"IF(Table_PI[[#This Row],[Model Number]]=\"\",\"\",Table_PI[[#This Row],[Model Number]])","v":""},{"$f":"IF(Table_PI[[#This Row],[Serial Number(s)]]=\"\",\"\",Table_PI[[#This Row],[Serial Number(s)]])","v":""},null,{"$f":"IF(Table_PI[[#This Row],[Size]]=\"\",\"\",Table_PI[[#This Row],[Size]])","v":""},null,null,{"$f":"IF(Table_PI[[#This Row],[Input 1]]<>\"\",Table_PI[[#This Row],[Input 1]],\"\")","v":""},null,null,{"$f":"IF(Table_PI[[#This Row],[Input 2]]<>\"\",Table_PI[[#This Row],[Input 2]],\"\")","v":""},null,null,{"$f":"IF(Table_PI[[#This Row],[Input 3]]<>\"\",Table_PI[[#This Row],[Input 3]],\"\")","v":""},null,null,{"$f":"IF(Table_PI[[#This Row],[Input 4]]<>\"\",Table_PI[[#This Row],[Input 4]],\"\")","v":""},null,null,{"$f":"IF(Table_PI[[#This Row],[Input 4]]<>\"\",Table_PI[[#This Row],[Input 4]],\"\")","v":""},null,null,{"$f":"IF(Table_PI[[#This Row],[Input 4]]<>\"\",Table_PI[[#This Row],[Input 4]],\"\")","v":""},{"$f":"IF(Table_PI[[#This Row],[Quantity]]=\"\",\"\",Table_PI[[#This Row],[Quantity]])","v":""},{"$f":"IF(Table_PI[[#This Row],[Notes]]=\"\",\"\",Table_PI[[#This Row],[Notes]])","v":""},{"$f":"IF(OR(Table_PI[[#This Row],[Hide: Baseline kWh]]=\"\",Table_PI[[#This Row],[Hide: Baseline kWh]]=0,ISTEXT(Table_PI[[#This Row],[Hide: Baseline kWh]])),\"\",Table_PI[[#This Row],[Hide: Baseline kWh]])","v":""},{"$f":"IF(OR(Table_PI[[#This Row],[Hide: Baseline kW]]=\"\",Table_PI[[#This Row],[Hide: Baseline kW]]=0,ISTEXT(Table_PI[[#This Row],[Hide: Baseline kW]])),\"\",Table_PI[[#This Row],[Hide: Baseline kW]])","v":""},{"$f":"IF(OR(Table_PI[[#This Row],[Hide: Proposed kWh]]=\"\",Table_PI[[#This Row],[Hide: Proposed kWh]]=0,ISTEXT(Table_PI[[#This Row],[Hide: Proposed kWh]])),\"\",Table_PI[[#This Row],[Hide: Proposed kWh]])","v":""},{"$f":"IF(OR(Table_PI[[#This Row],[Hide: Proposed kW]]=\"\",Table_PI[[#This Row],[Hide: Proposed kW]]=0,ISTEXT(Table_PI[[#This Row],[Hide: Proposed kW]])),\"\",Table_PI[[#This Row],[Hide: Proposed kW]])","v":""},null,null,{"$f":"IF(OR(Table_PI[[#This Row],[Hide: Rebate]]=\"\",Table_PI[[#This Row],[Hide: Rebate]]=0,ISTEXT(Table_PI[[#This Row],[Hide: Rebate]])),\"\",Table_PI[[#This Row],[Hide: Rebate]])","v":""},null,{"$f":"IF(OR(Table_PI[[#This Row],[Hide: Incremental Cost]]=\"\",Table_PI[[#This Row],[Hide: Incremental Cost]]=0,ISTEXT(Table_PI[[#This Row],[Hide: Incremental Cost]])),\"\",Table_PI[[#This Row],[Hide: Incremental Cost]])","v":""},{"$f":"IFERROR(IF(Table_SummaryPI[[#This Row],[Incentive_Customer]]=\"\",\"\",ROUND(Table_SummaryPI[[#This Row],[Incentive_Customer]]/$AM$401*'Customer Information'!$BC$21,2)),0)","v":""},{"$f":"IF(OR(Table_PI[[#This Row],[Annual kWh]]=\"\",Table_PI[[#This Row],[Annual kWh]]=0,ISTEXT(Table_PI[[#This Row],[Annual kWh]])),\"\",Table_PI[[#This Row],[Annual kWh]])","v":""},{"$f":"IF(OR(Table_PI[[#This Row],[Peak kW]]=\"\",Table_PI[[#This Row],[Peak kW]]=0,ISTEXT(Table_PI[[#This Row],[Peak kW]])),\"\",Table_PI[[#This Row],[Peak kW]])","v":""},{"$f":"IF(Table_SummaryPI[[#This Row],[Line No.]]<>\"\",IF(AND(ISNUMBER(FIND(\"Chiller\",Table_SummaryPI[[#This Row],[P_MeasureOption1]],1)),Table_SummaryPI[[#This Row],[ProposedMeasureCategory]]=\"Air-Cooled (Water-Cooled Replacement)\"),$BD$29*Table_SummaryPI[[#This Row],[Size]]*Table_SummaryPI[[#This Row],[Quantity]]*Table_SummaryPI[[#This Row],[EFLHCooling]],\nIF(ISNUMBER(FIND(\"Dishwasher\",Table_SummaryPI[[#This Row],[ProposedMeasureCategory]],1)),$BH$29*Table_SummaryPI[[#This Row],[Quantity]],\nIF(ISNUMBER(FIND(\"Ice Maker\",Table_SummaryPI[[#This Row],[ProposedMeasureCategory]],1)),$BD$31*Table_SummaryPI[[#This Row],[Quantity]],\nIF(ISNUMBER(FIND(\"Spray Valve\",Table_SummaryPI[[#This Row],[ProposedMeasureCategory]],1)),$BH$31*Table_SummaryPI[[#This Row],[Quantity]],\n0)))),\"\")","v":""},{"$f":"IF(OR(Table_PI[[#This Row],[Hide: Electrification kWh]]=\"\",Table_PI[[#This Row],[Hide: Electrification kWh]]=0,ISTEXT(Table_PI[[#This Row],[Hide: Electrification kWh]])),\"\",Table_PI[[#This Row],[Hide: Electrification kWh]])","v":""},{"$f":"IF(OR(Table_PI[[#This Row],[Hide: Electrification GHG]]=\"\",Table_PI[[#This Row],[Hide: Electrification GHG]]=0,ISTEXT(Table_PI[[#This Row],[Hide: Electrification GHG]])),\"\",Table_PI[[#This Row],[Hide: Electrification GHG]])","v":""},{"$f":"IFERROR(IF(Table_SummaryPI[[#This Row],[kWhSavings]]=\"\",\"\",$BH$9*Table_SummaryPI[[#This Row],[kWhSavings]]),0)","v":""},{"$f":"IFERROR(IF(Table_SummaryPI[[#This Row],[kWhSavings]]=\"\",\"\",$BH$14*Table_SummaryPI[[#This Row],[kWhSavings]]),0)","v":""},{"$f":"IFERROR(IF(Table_SummaryPI[[#This Row],[kWhSavings]]=\"\",\"\",$BH$18*Table_SummaryPI[[#This Row],[kWhSavings]]),0)","v":""},{"$f":"IFERROR(IF(Table_SummaryPI[[#This Row],[kWhSavings]]=\"\",\"\",$BH$22*Table_SummaryPI[[#This Row],[kWhSavings]]),0)","v":""}]
[{"$f":"Table_PI[[#This Row],[Line No.]]","v":""},{"$f":"IF(Table_SummaryPI[[#This Row],[MeasureName]]<>\"\",NOT(ISTEXT(Table_PI[[#This Row],[Rebate]])),\"\")","v":""},{"$f":"IF(Table_SummaryPI[[#This Row],[MeassureCategory]]<>\"\",CONCATENATE(Table_SummaryPI[[#This Row],[MeassureCategory]],  \" - \", Table_SummaryPI[[#This Row],[ProposedMeasureCategory]],  \" - \", TEXT(Table_SummaryPI[[#This Row],[Size]],\"#,##0.00\"),\" \",Table_SummaryPI[[#This Row],[SizeUnit]]),\"\")","v":""},{"$f":"SUBSTITUTE(Table_PI[[#This Row],[Measure]],\"     \",\"\",1)","v":""},{"$f":"IF(Table_PI[[#This Row],[List 1]]<>\"\",Table_PI[[#This Row],[List 1]],\"\")","v":""},{"$f":"IF(Table_PI[[#This Row],[List 2]]<>\"\",Table_PI[[#This Row],[List 2]],\"\")","v":""},{"$f":"IF(Table_PI[[#This Row],[List 3]]<>\"\",Table_PI[[#This Row],[List 3]],\"\")","v":""},{"$f":"IF(Table_PI[[#This Row],[Manufacturer]]=\"\",\"\",Table_PI[[#This Row],[Manufacturer]])","v":""},{"$f":"IF(Table_PI[[#This Row],[Model Number]]=\"\",\"\",Table_PI[[#This Row],[Model Number]])","v":""},{"$f":"IF(Table_PI[[#This Row],[Serial Number(s)]]=\"\",\"\",Table_PI[[#This Row],[Serial Number(s)]])","v":""},null,{"$f":"IF(Table_PI[[#This Row],[Size]]=\"\",\"\",Table_PI[[#This Row],[Size]])","v":""},null,null,{"$f":"IF(Table_PI[[#This Row],[Input 1]]<>\"\",Table_PI[[#This Row],[Input 1]],\"\")","v":""},null,null,{"$f":"IF(Table_PI[[#This Row],[Input 2]]<>\"\",Table_PI[[#This Row],[Input 2]],\"\")","v":""},null,null,{"$f":"IF(Table_PI[[#This Row],[Input 3]]<>\"\",Table_PI[[#This Row],[Input 3]],\"\")","v":""},null,null,{"$f":"IF(Table_PI[[#This Row],[Input 4]]<>\"\",Table_PI[[#This Row],[Input 4]],\"\")","v":""},null,null,{"$f":"IF(Table_PI[[#This Row],[Input 4]]<>\"\",Table_PI[[#This Row],[Input 4]],\"\")","v":""},null,null,{"$f":"IF(Table_PI[[#This Row],[Input 4]]<>\"\",Table_PI[[#This Row],[Input 4]],\"\")","v":""},{"$f":"IF(Table_PI[[#This Row],[Quantity]]=\"\",\"\",Table_PI[[#This Row],[Quantity]])","v":""},{"$f":"IF(Table_PI[[#This Row],[Notes]]=\"\",\"\",Table_PI[[#This Row],[Notes]])","v":""},{"$f":"IF(OR(Table_PI[[#This Row],[Hide: Baseline kWh]]=\"\",Table_PI[[#This Row],[Hide: Baseline kWh]]=0,ISTEXT(Table_PI[[#This Row],[Hide: Baseline kWh]])),\"\",Table_PI[[#This Row],[Hide: Baseline kWh]])","v":""},{"$f":"IF(OR(Table_PI[[#This Row],[Hide: Baseline kW]]=\"\",Table_PI[[#This Row],[Hide: Baseline kW]]=0,ISTEXT(Table_PI[[#This Row],[Hide: Baseline kW]])),\"\",Table_PI[[#This Row],[Hide: Baseline kW]])","v":""},{"$f":"IF(OR(Table_PI[[#This Row],[Hide: Proposed kWh]]=\"\",Table_PI[[#This Row],[Hide: Proposed kWh]]=0,ISTEXT(Table_PI[[#This Row],[Hide: Proposed kWh]])),\"\",Table_PI[[#This Row],[Hide: Proposed kWh]])","v":""},{"$f":"IF(OR(Table_PI[[#This Row],[Hide: Proposed kW]]=\"\",Table_PI[[#This Row],[Hide: Proposed kW]]=0,ISTEXT(Table_PI[[#This Row],[Hide: Proposed kW]])),\"\",Table_PI[[#This Row],[Hide: Proposed kW]])","v":""},null,null,{"$f":"IF(OR(Table_PI[[#This Row],[Hide: Rebate]]=\"\",Table_PI[[#This Row],[Hide: Rebate]]=0,ISTEXT(Table_PI[[#This Row],[Hide: Rebate]])),\"\",Table_PI[[#This Row],[Hide: Rebate]])","v":""},null,{"$f":"IF(OR(Table_PI[[#This Row],[Hide: Incremental Cost]]=\"\",Table_PI[[#This Row],[Hide: Incremental Cost]]=0,ISTEXT(Table_PI[[#This Row],[Hide: Incremental Cost]])),\"\",Table_PI[[#This Row],[Hide: Incremental Cost]])","v":""},{"$f":"IFERROR(IF(Table_SummaryPI[[#This Row],[Incentive_Customer]]=\"\",\"\",ROUND(Table_SummaryPI[[#This Row],[Incentive_Customer]]/$AM$401*'Customer Information'!$BC$21,2)),0)","v":""},{"$f":"IF(OR(Table_PI[[#This Row],[Annual kWh]]=\"\",Table_PI[[#This Row],[Annual kWh]]=0,ISTEXT(Table_PI[[#This Row],[Annual kWh]])),\"\",Table_PI[[#This Row],[Annual kWh]])","v":""},{"$f":"IF(OR(Table_PI[[#This Row],[Peak kW]]=\"\",Table_PI[[#This Row],[Peak kW]]=0,ISTEXT(Table_PI[[#This Row],[Peak kW]])),\"\",Table_PI[[#This Row],[Peak kW]])","v":""},{"$f":"IF(Table_SummaryPI[[#This Row],[Line No.]]<>\"\",IF(AND(ISNUMBER(FIND(\"Chiller\",Table_SummaryPI[[#This Row],[P_MeasureOption1]],1)),Table_SummaryPI[[#This Row],[ProposedMeasureCategory]]=\"Air-Cooled (Water-Cooled Replacement)\"),$BD$29*Table_SummaryPI[[#This Row],[Size]]*Table_SummaryPI[[#This Row],[Quantity]]*Table_SummaryPI[[#This Row],[EFLHCooling]],\nIF(ISNUMBER(FIND(\"Dishwasher\",Table_SummaryPI[[#This Row],[ProposedMeasureCategory]],1)),$BH$29*Table_SummaryPI[[#This Row],[Quantity]],\nIF(ISNUMBER(FIND(\"Ice Maker\",Table_SummaryPI[[#This Row],[ProposedMeasureCategory]],1)),$BD$31*Table_SummaryPI[[#This Row],[Quantity]],\nIF(ISNUMBER(FIND(\"Spray Valve\",Table_SummaryPI[[#This Row],[ProposedMeasureCategory]],1)),$BH$31*Table_SummaryPI[[#This Row],[Quantity]],\n0)))),\"\")","v":""},{"$f":"IF(OR(Table_PI[[#This Row],[Hide: Electrification kWh]]=\"\",Table_PI[[#This Row],[Hide: Electrification kWh]]=0,ISTEXT(Table_PI[[#This Row],[Hide: Electrification kWh]])),\"\",Table_PI[[#This Row],[Hide: Electrification kWh]])","v":""},{"$f":"IF(OR(Table_PI[[#This Row],[Hide: Electrification GHG]]=\"\",Table_PI[[#This Row],[Hide: Electrification GHG]]=0,ISTEXT(Table_PI[[#This Row],[Hide: Electrification GHG]])),\"\",Table_PI[[#This Row],[Hide: Electrification GHG]])","v":""},{"$f":"IFERROR(IF(Table_SummaryPI[[#This Row],[kWhSavings]]=\"\",\"\",$BH$9*Table_SummaryPI[[#This Row],[kWhSavings]]),0)","v":""},{"$f":"IFERROR(IF(Table_SummaryPI[[#This Row],[kWhSavings]]=\"\",\"\",$BH$14*Table_SummaryPI[[#This Row],[kWhSavings]]),0)","v":""},{"$f":"IFERROR(IF(Table_SummaryPI[[#This Row],[kWhSavings]]=\"\",\"\",$BH$18*Table_SummaryPI[[#This Row],[kWhSavings]]),0)","v":""},{"$f":"IFERROR(IF(Table_SummaryPI[[#This Row],[kWhSavings]]=\"\",\"\",$BH$22*Table_SummaryPI[[#This Row],[kWhSavings]]),0)","v":""}]
[{"$f":"Table_PI[[#This Row],[Line No.]]","v":""},{"$f":"IF(Table_SummaryPI[[#This Row],[MeasureName]]<>\"\",NOT(ISTEXT(Table_PI[[#This Row],[Rebate]])),\"\")","v":""},{"$f":"IF(Table_SummaryPI[[#This Row],[MeassureCategory]]<>\"\",CONCATENATE(Table_SummaryPI[[#This Row],[MeassureCategory]],  \" - \", Table_SummaryPI[[#This Row],[ProposedMeasureCategory]],  \" - \", TEXT(Table_SummaryPI[[#This Row],[Size]],\"#,##0.00\"),\" \",Table_SummaryPI[[#This Row],[SizeUnit]]),\"\")","v":""},{"$f":"SUBSTITUTE(Table_PI[[#This Row],[Measure]],\"     \",\"\",1)","v":""},{"$f":"IF(Table_PI[[#This Row],[List 1]]<>\"\",Table_PI[[#This Row],[List 1]],\"\")","v":""},{"$f":"IF(Table_PI[[#This Row],[List 2]]<>\"\",Table_PI[[#This Row],[List 2]],\"\")","v":""},{"$f":"IF(Table_PI[[#This Row],[List 3]]<>\"\",Table_PI[[#This Row],[List 3]],\"\")","v":""},{"$f":"IF(Table_PI[[#This Row],[Manufacturer]]=\"\",\"\",Table_PI[[#This Row],[Manufacturer]])","v":""},{"$f":"IF(Table_PI[[#This Row],[Model Number]]=\"\",\"\",Table_PI[[#This Row],[Model Number]])","v":""},{"$f":"IF(Table_PI[[#This Row],[Serial Number(s)]]=\"\",\"\",Table_PI[[#This Row],[Serial Number(s)]])","v":""},null,{"$f":"IF(Table_PI[[#This Row],[Size]]=\"\",\"\",Table_PI[[#This Row],[Size]])","v":""},null,null,{"$f":"IF(Table_PI[[#This Row],[Input 1]]<>\"\",Table_PI[[#This Row],[Input 1]],\"\")","v":""},null,null,{"$f":"IF(Table_PI[[#This Row],[Input 2]]<>\"\",Table_PI[[#This Row],[Input 2]],\"\")","v":""},null,null,{"$f":"IF(Table_PI[[#This Row],[Input 3]]<>\"\",Table_PI[[#This Row],[Input 3]],\"\")","v":""},null,null,{"$f":"IF(Table_PI[[#This Row],[Input 4]]<>\"\",Table_PI[[#This Row],[Input 4]],\"\")","v":""},null,null,{"$f":"IF(Table_PI[[#This Row],[Input 4]]<>\"\",Table_PI[[#This Row],[Input 4]],\"\")","v":""},null,null,{"$f":"IF(Table_PI[[#This Row],[Input 4]]<>\"\",Table_PI[[#This Row],[Input 4]],\"\")","v":""},{"$f":"IF(Table_PI[[#This Row],[Quantity]]=\"\",\"\",Table_PI[[#This Row],[Quantity]])","v":""},{"$f":"IF(Table_PI[[#This Row],[Notes]]=\"\",\"\",Table_PI[[#This Row],[Notes]])","v":""},{"$f":"IF(OR(Table_PI[[#This Row],[Hide: Baseline kWh]]=\"\",Table_PI[[#This Row],[Hide: Baseline kWh]]=0,ISTEXT(Table_PI[[#This Row],[Hide: Baseline kWh]])),\"\",Table_PI[[#This Row],[Hide: Baseline kWh]])","v":""},{"$f":"IF(OR(Table_PI[[#This Row],[Hide: Baseline kW]]=\"\",Table_PI[[#This Row],[Hide: Baseline kW]]=0,ISTEXT(Table_PI[[#This Row],[Hide: Baseline kW]])),\"\",Table_PI[[#This Row],[Hide: Baseline kW]])","v":""},{"$f":"IF(OR(Table_PI[[#This Row],[Hide: Proposed kWh]]=\"\",Table_PI[[#This Row],[Hide: Proposed kWh]]=0,ISTEXT(Table_PI[[#This Row],[Hide: Proposed kWh]])),\"\",Table_PI[[#This Row],[Hide: Proposed kWh]])","v":""},{"$f":"IF(OR(Table_PI[[#This Row],[Hide: Proposed kW]]=\"\",Table_PI[[#This Row],[Hide: Proposed kW]]=0,ISTEXT(Table_PI[[#This Row],[Hide: Proposed kW]])),\"\",Table_PI[[#This Row],[Hide: Proposed kW]])","v":""},null,null,{"$f":"IF(OR(Table_PI[[#This Row],[Hide: Rebate]]=\"\",Table_PI[[#This Row],[Hide: Rebate]]=0,ISTEXT(Table_PI[[#This Row],[Hide: Rebate]])),\"\",Table_PI[[#This Row],[Hide: Rebate]])","v":""},null,{"$f":"IF(OR(Table_PI[[#This Row],[Hide: Incremental Cost]]=\"\",Table_PI[[#This Row],[Hide: Incremental Cost]]=0,ISTEXT(Table_PI[[#This Row],[Hide: Incremental Cost]])),\"\",Table_PI[[#This Row],[Hide: Incremental Cost]])","v":""},{"$f":"IFERROR(IF(Table_SummaryPI[[#This Row],[Incentive_Customer]]=\"\",\"\",ROUND(Table_SummaryPI[[#This Row],[Incentive_Customer]]/$AM$401*'Customer Information'!$BC$21,2)),0)","v":""},{"$f":"IF(OR(Table_PI[[#This Row],[Annual kWh]]=\"\",Table_PI[[#This Row],[Annual kWh]]=0,ISTEXT(Table_PI[[#This Row],[Annual kWh]])),\"\",Table_PI[[#This Row],[Annual kWh]])","v":""},{"$f":"IF(OR(Table_PI[[#This Row],[Peak kW]]=\"\",Table_PI[[#This Row],[Peak kW]]=0,ISTEXT(Table_PI[[#This Row],[Peak kW]])),\"\",Table_PI[[#This Row],[Peak kW]])","v":""},{"$f":"IF(Table_SummaryPI[[#This Row],[Line No.]]<>\"\",IF(AND(ISNUMBER(FIND(\"Chiller\",Table_SummaryPI[[#This Row],[P_MeasureOption1]],1)),Table_SummaryPI[[#This Row],[ProposedMeasureCategory]]=\"Air-Cooled (Water-Cooled Replacement)\"),$BD$29*Table_SummaryPI[[#This Row],[Size]]*Table_SummaryPI[[#This Row],[Quantity]]*Table_SummaryPI[[#This Row],[EFLHCooling]],\nIF(ISNUMBER(FIND(\"Dishwasher\",Table_SummaryPI[[#This Row],[ProposedMeasureCategory]],1)),$BH$29*Table_SummaryPI[[#This Row],[Quantity]],\nIF(ISNUMBER(FIND(\"Ice Maker\",Table_SummaryPI[[#This Row],[ProposedMeasureCategory]],1)),$BD$31*Table_SummaryPI[[#This Row],[Quantity]],\nIF(ISNUMBER(FIND(\"Spray Valve\",Table_SummaryPI[[#This Row],[ProposedMeasureCategory]],1)),$BH$31*Table_SummaryPI[[#This Row],[Quantity]],\n0)))),\"\")","v":""},{"$f":"IF(OR(Table_PI[[#This Row],[Hide: Electrification kWh]]=\"\",Table_PI[[#This Row],[Hide: Electrification kWh]]=0,ISTEXT(Table_PI[[#This Row],[Hide: Electrification kWh]])),\"\",Table_PI[[#This Row],[Hide: Electrification kWh]])","v":""},{"$f":"IF(OR(Table_PI[[#This Row],[Hide: Electrification GHG]]=\"\",Table_PI[[#This Row],[Hide: Electrification GHG]]=0,ISTEXT(Table_PI[[#This Row],[Hide: Electrification GHG]])),\"\",Table_PI[[#This Row],[Hide: Electrification GHG]])","v":""},{"$f":"IFERROR(IF(Table_SummaryPI[[#This Row],[kWhSavings]]=\"\",\"\",$BH$9*Table_SummaryPI[[#This Row],[kWhSavings]]),0)","v":""},{"$f":"IFERROR(IF(Table_SummaryPI[[#This Row],[kWhSavings]]=\"\",\"\",$BH$14*Table_SummaryPI[[#This Row],[kWhSavings]]),0)","v":""},{"$f":"IFERROR(IF(Table_SummaryPI[[#This Row],[kWhSavings]]=\"\",\"\",$BH$18*Table_SummaryPI[[#This Row],[kWhSavings]]),0)","v":""},{"$f":"IFERROR(IF(Table_SummaryPI[[#This Row],[kWhSavings]]=\"\",\"\",$BH$22*Table_SummaryPI[[#This Row],[kWhSavings]]),0)","v":""}]
[{"$f":"Table_PI[[#This Row],[Line No.]]","v":""},{"$f":"IF(Table_SummaryPI[[#This Row],[MeasureName]]<>\"\",NOT(ISTEXT(Table_PI[[#This Row],[Rebate]])),\"\")","v":""},{"$f":"IF(Table_SummaryPI[[#This Row],[MeassureCategory]]<>\"\",CONCATENATE(Table_SummaryPI[[#This Row],[MeassureCategory]],  \" - \", Table_SummaryPI[[#This Row],[ProposedMeasureCategory]],  \" - \", TEXT(Table_SummaryPI[[#This Row],[Size]],\"#,##0.00\"),\" \",Table_SummaryPI[[#This Row],[SizeUnit]]),\"\")","v":""},{"$f":"SUBSTITUTE(Table_PI[[#This Row],[Measure]],\"     \",\"\",1)","v":""},{"$f":"IF(Table_PI[[#This Row],[List 1]]<>\"\",Table_PI[[#This Row],[List 1]],\"\")","v":""},{"$f":"IF(Table_PI[[#This Row],[List 2]]<>\"\",Table_PI[[#This Row],[List 2]],\"\")","v":""},{"$f":"IF(Table_PI[[#This Row],[List 3]]<>\"\",Table_PI[[#This Row],[List 3]],\"\")","v":""},{"$f":"IF(Table_PI[[#This Row],[Manufacturer]]=\"\",\"\",Table_PI[[#This Row],[Manufacturer]])","v":""},{"$f":"IF(Table_PI[[#This Row],[Model Number]]=\"\",\"\",Table_PI[[#This Row],[Model Number]])","v":""},{"$f":"IF(Table_PI[[#This Row],[Serial Number(s)]]=\"\",\"\",Table_PI[[#This Row],[Serial Number(s)]])","v":""},null,{"$f":"IF(Table_PI[[#This Row],[Size]]=\"\",\"\",Table_PI[[#This Row],[Size]])","v":""},null,null,{"$f":"IF(Table_PI[[#This Row],[Input 1]]<>\"\",Table_PI[[#This Row],[Input 1]],\"\")","v":""},null,null,{"$f":"IF(Table_PI[[#This Row],[Input 2]]<>\"\",Table_PI[[#This Row],[Input 2]],\"\")","v":""},null,null,{"$f":"IF(Table_PI[[#This Row],[Input 3]]<>\"\",Table_PI[[#This Row],[Input 3]],\"\")","v":""},null,null,{"$f":"IF(Table_PI[[#This Row],[Input 4]]<>\"\",Table_PI[[#This Row],[Input 4]],\"\")","v":""},null,null,{"$f":"IF(Table_PI[[#This Row],[Input 4]]<>\"\",Table_PI[[#This Row],[Input 4]],\"\")","v":""},null,null,{"$f":"IF(Table_PI[[#This Row],[Input 4]]<>\"\",Table_PI[[#This Row],[Input 4]],\"\")","v":""},{"$f":"IF(Table_PI[[#This Row],[Quantity]]=\"\",\"\",Table_PI[[#This Row],[Quantity]])","v":""},{"$f":"IF(Table_PI[[#This Row],[Notes]]=\"\",\"\",Table_PI[[#This Row],[Notes]])","v":""},{"$f":"IF(OR(Table_PI[[#This Row],[Hide: Baseline kWh]]=\"\",Table_PI[[#This Row],[Hide: Baseline kWh]]=0,ISTEXT(Table_PI[[#This Row],[Hide: Baseline kWh]])),\"\",Table_PI[[#This Row],[Hide: Baseline kWh]])","v":""},{"$f":"IF(OR(Table_PI[[#This Row],[Hide: Baseline kW]]=\"\",Table_PI[[#This Row],[Hide: Baseline kW]]=0,ISTEXT(Table_PI[[#This Row],[Hide: Baseline kW]])),\"\",Table_PI[[#This Row],[Hide: Baseline kW]])","v":""},{"$f":"IF(OR(Table_PI[[#This Row],[Hide: Proposed kWh]]=\"\",Table_PI[[#This Row],[Hide: Proposed kWh]]=0,ISTEXT(Table_PI[[#This Row],[Hide: Proposed kWh]])),\"\",Table_PI[[#This Row],[Hide: Proposed kWh]])","v":""},{"$f":"IF(OR(Table_PI[[#This Row],[Hide: Proposed kW]]=\"\",Table_PI[[#This Row],[Hide: Proposed kW]]=0,ISTEXT(Table_PI[[#This Row],[Hide: Proposed kW]])),\"\",Table_PI[[#This Row],[Hide: Proposed kW]])","v":""},null,null,{"$f":"IF(OR(Table_PI[[#This Row],[Hide: Rebate]]=\"\",Table_PI[[#This Row],[Hide: Rebate]]=0,ISTEXT(Table_PI[[#This Row],[Hide: Rebate]])),\"\",Table_PI[[#This Row],[Hide: Rebate]])","v":""},null,{"$f":"IF(OR(Table_PI[[#This Row],[Hide: Incremental Cost]]=\"\",Table_PI[[#This Row],[Hide: Incremental Cost]]=0,ISTEXT(Table_PI[[#This Row],[Hide: Incremental Cost]])),\"\",Table_PI[[#This Row],[Hide: Incremental Cost]])","v":""},{"$f":"IFERROR(IF(Table_SummaryPI[[#This Row],[Incentive_Customer]]=\"\",\"\",ROUND(Table_SummaryPI[[#This Row],[Incentive_Customer]]/$AM$401*'Customer Information'!$BC$21,2)),0)","v":""},{"$f":"IF(OR(Table_PI[[#This Row],[Annual kWh]]=\"\",Table_PI[[#This Row],[Annual kWh]]=0,ISTEXT(Table_PI[[#This Row],[Annual kWh]])),\"\",Table_PI[[#This Row],[Annual kWh]])","v":""},{"$f":"IF(OR(Table_PI[[#This Row],[Peak kW]]=\"\",Table_PI[[#This Row],[Peak kW]]=0,ISTEXT(Table_PI[[#This Row],[Peak kW]])),\"\",Table_PI[[#This Row],[Peak kW]])","v":""},{"$f":"IF(Table_SummaryPI[[#This Row],[Line No.]]<>\"\",IF(AND(ISNUMBER(FIND(\"Chiller\",Table_SummaryPI[[#This Row],[P_MeasureOption1]],1)),Table_SummaryPI[[#This Row],[ProposedMeasureCategory]]=\"Air-Cooled (Water-Cooled Replacement)\"),$BD$29*Table_SummaryPI[[#This Row],[Size]]*Table_SummaryPI[[#This Row],[Quantity]]*Table_SummaryPI[[#This Row],[EFLHCooling]],\nIF(ISNUMBER(FIND(\"Dishwasher\",Table_SummaryPI[[#This Row],[ProposedMeasureCategory]],1)),$BH$29*Table_SummaryPI[[#This Row],[Quantity]],\nIF(ISNUMBER(FIND(\"Ice Maker\",Table_SummaryPI[[#This Row],[ProposedMeasureCategory]],1)),$BD$31*Table_SummaryPI[[#This Row],[Quantity]],\nIF(ISNUMBER(FIND(\"Spray Valve\",Table_SummaryPI[[#This Row],[ProposedMeasureCategory]],1)),$BH$31*Table_SummaryPI[[#This Row],[Quantity]],\n0)))),\"\")","v":""},{"$f":"IF(OR(Table_PI[[#This Row],[Hide: Electrification kWh]]=\"\",Table_PI[[#This Row],[Hide: Electrification kWh]]=0,ISTEXT(Table_PI[[#This Row],[Hide: Electrification kWh]])),\"\",Table_PI[[#This Row],[Hide: Electrification kWh]])","v":""},{"$f":"IF(OR(Table_PI[[#This Row],[Hide: Electrification GHG]]=\"\",Table_PI[[#This Row],[Hide: Electrification GHG]]=0,ISTEXT(Table_PI[[#This Row],[Hide: Electrification GHG]])),\"\",Table_PI[[#This Row],[Hide: Electrification GHG]])","v":""},{"$f":"IFERROR(IF(Table_SummaryPI[[#This Row],[kWhSavings]]=\"\",\"\",$BH$9*Table_SummaryPI[[#This Row],[kWhSavings]]),0)","v":""},{"$f":"IFERROR(IF(Table_SummaryPI[[#This Row],[kWhSavings]]=\"\",\"\",$BH$14*Table_SummaryPI[[#This Row],[kWhSavings]]),0)","v":""},{"$f":"IFERROR(IF(Table_SummaryPI[[#This Row],[kWhSavings]]=\"\",\"\",$BH$18*Table_SummaryPI[[#This Row],[kWhSavings]]),0)","v":""},{"$f":"IFERROR(IF(Table_SummaryPI[[#This Row],[kWhSavings]]=\"\",\"\",$BH$22*Table_SummaryPI[[#This Row],[kWhSavings]]),0)","v":""}]
[{"$f":"Table_PI[[#This Row],[Line No.]]","v":""},{"$f":"IF(Table_SummaryPI[[#This Row],[MeasureName]]<>\"\",NOT(ISTEXT(Table_PI[[#This Row],[Rebate]])),\"\")","v":""},{"$f":"IF(Table_SummaryPI[[#This Row],[MeassureCategory]]<>\"\",CONCATENATE(Table_SummaryPI[[#This Row],[MeassureCategory]],  \" - \", Table_SummaryPI[[#This Row],[ProposedMeasureCategory]],  \" - \", TEXT(Table_SummaryPI[[#This Row],[Size]],\"#,##0.00\"),\" \",Table_SummaryPI[[#This Row],[SizeUnit]]),\"\")","v":""},{"$f":"SUBSTITUTE(Table_PI[[#This Row],[Measure]],\"     \",\"\",1)","v":""},{"$f":"IF(Table_PI[[#This Row],[List 1]]<>\"\",Table_PI[[#This Row],[List 1]],\"\")","v":""},{"$f":"IF(Table_PI[[#This Row],[List 2]]<>\"\",Table_PI[[#This Row],[List 2]],\"\")","v":""},{"$f":"IF(Table_PI[[#This Row],[List 3]]<>\"\",Table_PI[[#This Row],[List 3]],\"\")","v":""},{"$f":"IF(Table_PI[[#This Row],[Manufacturer]]=\"\",\"\",Table_PI[[#This Row],[Manufacturer]])","v":""},{"$f":"IF(Table_PI[[#This Row],[Model Number]]=\"\",\"\",Table_PI[[#This Row],[Model Number]])","v":""},{"$f":"IF(Table_PI[[#This Row],[Serial Number(s)]]=\"\",\"\",Table_PI[[#This Row],[Serial Number(s)]])","v":""},null,{"$f":"IF(Table_PI[[#This Row],[Size]]=\"\",\"\",Table_PI[[#This Row],[Size]])","v":""},null,null,{"$f":"IF(Table_PI[[#This Row],[Input 1]]<>\"\",Table_PI[[#This Row],[Input 1]],\"\")","v":""},null,null,{"$f":"IF(Table_PI[[#This Row],[Input 2]]<>\"\",Table_PI[[#This Row],[Input 2]],\"\")","v":""},null,null,{"$f":"IF(Table_PI[[#This Row],[Input 3]]<>\"\",Table_PI[[#This Row],[Input 3]],\"\")","v":""},null,null,{"$f":"IF(Table_PI[[#This Row],[Input 4]]<>\"\",Table_PI[[#This Row],[Input 4]],\"\")","v":""},null,null,{"$f":"IF(Table_PI[[#This Row],[Input 4]]<>\"\",Table_PI[[#This Row],[Input 4]],\"\")","v":""},null,null,{"$f":"IF(Table_PI[[#This Row],[Input 4]]<>\"\",Table_PI[[#This Row],[Input 4]],\"\")","v":""},{"$f":"IF(Table_PI[[#This Row],[Quantity]]=\"\",\"\",Table_PI[[#This Row],[Quantity]])","v":""},{"$f":"IF(Table_PI[[#This Row],[Notes]]=\"\",\"\",Table_PI[[#This Row],[Notes]])","v":""},{"$f":"IF(OR(Table_PI[[#This Row],[Hide: Baseline kWh]]=\"\",Table_PI[[#This Row],[Hide: Baseline kWh]]=0,ISTEXT(Table_PI[[#This Row],[Hide: Baseline kWh]])),\"\",Table_PI[[#This Row],[Hide: Baseline kWh]])","v":""},{"$f":"IF(OR(Table_PI[[#This Row],[Hide: Baseline kW]]=\"\",Table_PI[[#This Row],[Hide: Baseline kW]]=0,ISTEXT(Table_PI[[#This Row],[Hide: Baseline kW]])),\"\",Table_PI[[#This Row],[Hide: Baseline kW]])","v":""},{"$f":"IF(OR(Table_PI[[#This Row],[Hide: Proposed kWh]]=\"\",Table_PI[[#This Row],[Hide: Proposed kWh]]=0,ISTEXT(Table_PI[[#This Row],[Hide: Proposed kWh]])),\"\",Table_PI[[#This Row],[Hide: Proposed kWh]])","v":""},{"$f":"IF(OR(Table_PI[[#This Row],[Hide: Proposed kW]]=\"\",Table_PI[[#This Row],[Hide: Proposed kW]]=0,ISTEXT(Table_PI[[#This Row],[Hide: Proposed kW]])),\"\",Table_PI[[#This Row],[Hide: Proposed kW]])","v":""},null,null,{"$f":"IF(OR(Table_PI[[#This Row],[Hide: Rebate]]=\"\",Table_PI[[#This Row],[Hide: Rebate]]=0,ISTEXT(Table_PI[[#This Row],[Hide: Rebate]])),\"\",Table_PI[[#This Row],[Hide: Rebate]])","v":""},null,{"$f":"IF(OR(Table_PI[[#This Row],[Hide: Incremental Cost]]=\"\",Table_PI[[#This Row],[Hide: Incremental Cost]]=0,ISTEXT(Table_PI[[#This Row],[Hide: Incremental Cost]])),\"\",Table_PI[[#This Row],[Hide: Incremental Cost]])","v":""},{"$f":"IFERROR(IF(Table_SummaryPI[[#This Row],[Incentive_Customer]]=\"\",\"\",ROUND(Table_SummaryPI[[#This Row],[Incentive_Customer]]/$AM$401*'Customer Information'!$BC$21,2)),0)","v":""},{"$f":"IF(OR(Table_PI[[#This Row],[Annual kWh]]=\"\",Table_PI[[#This Row],[Annual kWh]]=0,ISTEXT(Table_PI[[#This Row],[Annual kWh]])),\"\",Table_PI[[#This Row],[Annual kWh]])","v":""},{"$f":"IF(OR(Table_PI[[#This Row],[Peak kW]]=\"\",Table_PI[[#This Row],[Peak kW]]=0,ISTEXT(Table_PI[[#This Row],[Peak kW]])),\"\",Table_PI[[#This Row],[Peak kW]])","v":""},{"$f":"IF(Table_SummaryPI[[#This Row],[Line No.]]<>\"\",IF(AND(ISNUMBER(FIND(\"Chiller\",Table_SummaryPI[[#This Row],[P_MeasureOption1]],1)),Table_SummaryPI[[#This Row],[ProposedMeasureCategory]]=\"Air-Cooled (Water-Cooled Replacement)\"),$BD$29*Table_SummaryPI[[#This Row],[Size]]*Table_SummaryPI[[#This Row],[Quantity]]*Table_SummaryPI[[#This Row],[EFLHCooling]],\nIF(ISNUMBER(FIND(\"Dishwasher\",Table_SummaryPI[[#This Row],[ProposedMeasureCategory]],1)),$BH$29*Table_SummaryPI[[#This Row],[Quantity]],\nIF(ISNUMBER(FIND(\"Ice Maker\",Table_SummaryPI[[#This Row],[ProposedMeasureCategory]],1)),$BD$31*Table_SummaryPI[[#This Row],[Quantity]],\nIF(ISNUMBER(FIND(\"Spray Valve\",Table_SummaryPI[[#This Row],[ProposedMeasureCategory]],1)),$BH$31*Table_SummaryPI[[#This Row],[Quantity]],\n0)))),\"\")","v":""},{"$f":"IF(OR(Table_PI[[#This Row],[Hide: Electrification kWh]]=\"\",Table_PI[[#This Row],[Hide: Electrification kWh]]=0,ISTEXT(Table_PI[[#This Row],[Hide: Electrification kWh]])),\"\",Table_PI[[#This Row],[Hide: Electrification kWh]])","v":""},{"$f":"IF(OR(Table_PI[[#This Row],[Hide: Electrification GHG]]=\"\",Table_PI[[#This Row],[Hide: Electrification GHG]]=0,ISTEXT(Table_PI[[#This Row],[Hide: Electrification GHG]])),\"\",Table_PI[[#This Row],[Hide: Electrification GHG]])","v":""},{"$f":"IFERROR(IF(Table_SummaryPI[[#This Row],[kWhSavings]]=\"\",\"\",$BH$9*Table_SummaryPI[[#This Row],[kWhSavings]]),0)","v":""},{"$f":"IFERROR(IF(Table_SummaryPI[[#This Row],[kWhSavings]]=\"\",\"\",$BH$14*Table_SummaryPI[[#This Row],[kWhSavings]]),0)","v":""},{"$f":"IFERROR(IF(Table_SummaryPI[[#This Row],[kWhSavings]]=\"\",\"\",$BH$18*Table_SummaryPI[[#This Row],[kWhSavings]]),0)","v":""},{"$f":"IFERROR(IF(Table_SummaryPI[[#This Row],[kWhSavings]]=\"\",\"\",$BH$22*Table_SummaryPI[[#This Row],[kWhSavings]]),0)","v":""}]
[{"$f":"Table_PI[[#This Row],[Line No.]]","v":""},{"$f":"IF(Table_SummaryPI[[#This Row],[MeasureName]]<>\"\",NOT(ISTEXT(Table_PI[[#This Row],[Rebate]])),\"\")","v":""},{"$f":"IF(Table_SummaryPI[[#This Row],[MeassureCategory]]<>\"\",CONCATENATE(Table_SummaryPI[[#This Row],[MeassureCategory]],  \" - \", Table_SummaryPI[[#This Row],[ProposedMeasureCategory]],  \" - \", TEXT(Table_SummaryPI[[#This Row],[Size]],\"#,##0.00\"),\" \",Table_SummaryPI[[#This Row],[SizeUnit]]),\"\")","v":""},{"$f":"SUBSTITUTE(Table_PI[[#This Row],[Measure]],\"     \",\"\",1)","v":""},{"$f":"IF(Table_PI[[#This Row],[List 1]]<>\"\",Table_PI[[#This Row],[List 1]],\"\")","v":""},{"$f":"IF(Table_PI[[#This Row],[List 2]]<>\"\",Table_PI[[#This Row],[List 2]],\"\")","v":""},{"$f":"IF(Table_PI[[#This Row],[List 3]]<>\"\",Table_PI[[#This Row],[List 3]],\"\")","v":""},{"$f":"IF(Table_PI[[#This Row],[Manufacturer]]=\"\",\"\",Table_PI[[#This Row],[Manufacturer]])","v":""},{"$f":"IF(Table_PI[[#This Row],[Model Number]]=\"\",\"\",Table_PI[[#This Row],[Model Number]])","v":""},{"$f":"IF(Table_PI[[#This Row],[Serial Number(s)]]=\"\",\"\",Table_PI[[#This Row],[Serial Number(s)]])","v":""},null,{"$f":"IF(Table_PI[[#This Row],[Size]]=\"\",\"\",Table_PI[[#This Row],[Size]])","v":""},null,null,{"$f":"IF(Table_PI[[#This Row],[Input 1]]<>\"\",Table_PI[[#This Row],[Input 1]],\"\")","v":""},null,null,{"$f":"IF(Table_PI[[#This Row],[Input 2]]<>\"\",Table_PI[[#This Row],[Input 2]],\"\")","v":""},null,null,{"$f":"IF(Table_PI[[#This Row],[Input 3]]<>\"\",Table_PI[[#This Row],[Input 3]],\"\")","v":""},null,null,{"$f":"IF(Table_PI[[#This Row],[Input 4]]<>\"\",Table_PI[[#This Row],[Input 4]],\"\")","v":""},null,null,{"$f":"IF(Table_PI[[#This Row],[Input 4]]<>\"\",Table_PI[[#This Row],[Input 4]],\"\")","v":""},null,null,{"$f":"IF(Table_PI[[#This Row],[Input 4]]<>\"\",Table_PI[[#This Row],[Input 4]],\"\")","v":""},{"$f":"IF(Table_PI[[#This Row],[Quantity]]=\"\",\"\",Table_PI[[#This Row],[Quantity]])","v":""},{"$f":"IF(Table_PI[[#This Row],[Notes]]=\"\",\"\",Table_PI[[#This Row],[Notes]])","v":""},{"$f":"IF(OR(Table_PI[[#This Row],[Hide: Baseline kWh]]=\"\",Table_PI[[#This Row],[Hide: Baseline kWh]]=0,ISTEXT(Table_PI[[#This Row],[Hide: Baseline kWh]])),\"\",Table_PI[[#This Row],[Hide: Baseline kWh]])","v":""},{"$f":"IF(OR(Table_PI[[#This Row],[Hide: Baseline kW]]=\"\",Table_PI[[#This Row],[Hide: Baseline kW]]=0,ISTEXT(Table_PI[[#This Row],[Hide: Baseline kW]])),\"\",Table_PI[[#This Row],[Hide: Baseline kW]])","v":""},{"$f":"IF(OR(Table_PI[[#This Row],[Hide: Proposed kWh]]=\"\",Table_PI[[#This Row],[Hide: Proposed kWh]]=0,ISTEXT(Table_PI[[#This Row],[Hide: Proposed kWh]])),\"\",Table_PI[[#This Row],[Hide: Proposed kWh]])","v":""},{"$f":"IF(OR(Table_PI[[#This Row],[Hide: Proposed kW]]=\"\",Table_PI[[#This Row],[Hide: Proposed kW]]=0,ISTEXT(Table_PI[[#This Row],[Hide: Proposed kW]])),\"\",Table_PI[[#This Row],[Hide: Proposed kW]])","v":""},null,null,{"$f":"IF(OR(Table_PI[[#This Row],[Hide: Rebate]]=\"\",Table_PI[[#This Row],[Hide: Rebate]]=0,ISTEXT(Table_PI[[#This Row],[Hide: Rebate]])),\"\",Table_PI[[#This Row],[Hide: Rebate]])","v":""},null,{"$f":"IF(OR(Table_PI[[#This Row],[Hide: Incremental Cost]]=\"\",Table_PI[[#This Row],[Hide: Incremental Cost]]=0,ISTEXT(Table_PI[[#This Row],[Hide: Incremental Cost]])),\"\",Table_PI[[#This Row],[Hide: Incremental Cost]])","v":""},{"$f":"IFERROR(IF(Table_SummaryPI[[#This Row],[Incentive_Customer]]=\"\",\"\",ROUND(Table_SummaryPI[[#This Row],[Incentive_Customer]]/$AM$401*'Customer Information'!$BC$21,2)),0)","v":""},{"$f":"IF(OR(Table_PI[[#This Row],[Annual kWh]]=\"\",Table_PI[[#This Row],[Annual kWh]]=0,ISTEXT(Table_PI[[#This Row],[Annual kWh]])),\"\",Table_PI[[#This Row],[Annual kWh]])","v":""},{"$f":"IF(OR(Table_PI[[#This Row],[Peak kW]]=\"\",Table_PI[[#This Row],[Peak kW]]=0,ISTEXT(Table_PI[[#This Row],[Peak kW]])),\"\",Table_PI[[#This Row],[Peak kW]])","v":""},{"$f":"IF(Table_SummaryPI[[#This Row],[Line No.]]<>\"\",IF(AND(ISNUMBER(FIND(\"Chiller\",Table_SummaryPI[[#This Row],[P_MeasureOption1]],1)),Table_SummaryPI[[#This Row],[ProposedMeasureCategory]]=\"Air-Cooled (Water-Cooled Replacement)\"),$BD$29*Table_SummaryPI[[#This Row],[Size]]*Table_SummaryPI[[#This Row],[Quantity]]*Table_SummaryPI[[#This Row],[EFLHCooling]],\nIF(ISNUMBER(FIND(\"Dishwasher\",Table_SummaryPI[[#This Row],[ProposedMeasureCategory]],1)),$BH$29*Table_SummaryPI[[#This Row],[Quantity]],\nIF(ISNUMBER(FIND(\"Ice Maker\",Table_SummaryPI[[#This Row],[ProposedMeasureCategory]],1)),$BD$31*Table_SummaryPI[[#This Row],[Quantity]],\nIF(ISNUMBER(FIND(\"Spray Valve\",Table_SummaryPI[[#This Row],[ProposedMeasureCategory]],1)),$BH$31*Table_SummaryPI[[#This Row],[Quantity]],\n0)))),\"\")","v":""},{"$f":"IF(OR(Table_PI[[#This Row],[Hide: Electrification kWh]]=\"\",Table_PI[[#This Row],[Hide: Electrification kWh]]=0,ISTEXT(Table_PI[[#This Row],[Hide: Electrification kWh]])),\"\",Table_PI[[#This Row],[Hide: Electrification kWh]])","v":""},{"$f":"IF(OR(Table_PI[[#This Row],[Hide: Electrification GHG]]=\"\",Table_PI[[#This Row],[Hide: Electrification GHG]]=0,ISTEXT(Table_PI[[#This Row],[Hide: Electrification GHG]])),\"\",Table_PI[[#This Row],[Hide: Electrification GHG]])","v":""},{"$f":"IFERROR(IF(Table_SummaryPI[[#This Row],[kWhSavings]]=\"\",\"\",$BH$9*Table_SummaryPI[[#This Row],[kWhSavings]]),0)","v":""},{"$f":"IFERROR(IF(Table_SummaryPI[[#This Row],[kWhSavings]]=\"\",\"\",$BH$14*Table_SummaryPI[[#This Row],[kWhSavings]]),0)","v":""},{"$f":"IFERROR(IF(Table_SummaryPI[[#This Row],[kWhSavings]]=\"\",\"\",$BH$18*Table_SummaryPI[[#This Row],[kWhSavings]]),0)","v":""},{"$f":"IFERROR(IF(Table_SummaryPI[[#This Row],[kWhSavings]]=\"\",\"\",$BH$22*Table_SummaryPI[[#This Row],[kWhSavings]]),0)","v":""}]
[{"$f":"Table_PI[[#This Row],[Line No.]]","v":""},{"$f":"IF(Table_SummaryPI[[#This Row],[MeasureName]]<>\"\",NOT(ISTEXT(Table_PI[[#This Row],[Rebate]])),\"\")","v":""},{"$f":"IF(Table_SummaryPI[[#This Row],[MeassureCategory]]<>\"\",CONCATENATE(Table_SummaryPI[[#This Row],[MeassureCategory]],  \" - \", Table_SummaryPI[[#This Row],[ProposedMeasureCategory]],  \" - \", TEXT(Table_SummaryPI[[#This Row],[Size]],\"#,##0.00\"),\" \",Table_SummaryPI[[#This Row],[SizeUnit]]),\"\")","v":""},{"$f":"SUBSTITUTE(Table_PI[[#This Row],[Measure]],\"     \",\"\",1)","v":""},{"$f":"IF(Table_PI[[#This Row],[List 1]]<>\"\",Table_PI[[#This Row],[List 1]],\"\")","v":""},{"$f":"IF(Table_PI[[#This Row],[List 2]]<>\"\",Table_PI[[#This Row],[List 2]],\"\")","v":""},{"$f":"IF(Table_PI[[#This Row],[List 3]]<>\"\",Table_PI[[#This Row],[List 3]],\"\")","v":""},{"$f":"IF(Table_PI[[#This Row],[Manufacturer]]=\"\",\"\",Table_PI[[#This Row],[Manufacturer]])","v":""},{"$f":"IF(Table_PI[[#This Row],[Model Number]]=\"\",\"\",Table_PI[[#This Row],[Model Number]])","v":""},{"$f":"IF(Table_PI[[#This Row],[Serial Number(s)]]=\"\",\"\",Table_PI[[#This Row],[Serial Number(s)]])","v":""},null,{"$f":"IF(Table_PI[[#This Row],[Size]]=\"\",\"\",Table_PI[[#This Row],[Size]])","v":""},null,null,{"$f":"IF(Table_PI[[#This Row],[Input 1]]<>\"\",Table_PI[[#This Row],[Input 1]],\"\")","v":""},null,null,{"$f":"IF(Table_PI[[#This Row],[Input 2]]<>\"\",Table_PI[[#This Row],[Input 2]],\"\")","v":""},null,null,{"$f":"IF(Table_PI[[#This Row],[Input 3]]<>\"\",Table_PI[[#This Row],[Input 3]],\"\")","v":""},null,null,{"$f":"IF(Table_PI[[#This Row],[Input 4]]<>\"\",Table_PI[[#This Row],[Input 4]],\"\")","v":""},null,null,{"$f":"IF(Table_PI[[#This Row],[Input 4]]<>\"\",Table_PI[[#This Row],[Input 4]],\"\")","v":""},null,null,{"$f":"IF(Table_PI[[#This Row],[Input 4]]<>\"\",Table_PI[[#This Row],[Input 4]],\"\")","v":""},{"$f":"IF(Table_PI[[#This Row],[Quantity]]=\"\",\"\",Table_PI[[#This Row],[Quantity]])","v":""},{"$f":"IF(Table_PI[[#This Row],[Notes]]=\"\",\"\",Table_PI[[#This Row],[Notes]])","v":""},{"$f":"IF(OR(Table_PI[[#This Row],[Hide: Baseline kWh]]=\"\",Table_PI[[#This Row],[Hide: Baseline kWh]]=0,ISTEXT(Table_PI[[#This Row],[Hide: Baseline kWh]])),\"\",Table_PI[[#This Row],[Hide: Baseline kWh]])","v":""},{"$f":"IF(OR(Table_PI[[#This Row],[Hide: Baseline kW]]=\"\",Table_PI[[#This Row],[Hide: Baseline kW]]=0,ISTEXT(Table_PI[[#This Row],[Hide: Baseline kW]])),\"\",Table_PI[[#This Row],[Hide: Baseline kW]])","v":""},{"$f":"IF(OR(Table_PI[[#This Row],[Hide: Proposed kWh]]=\"\",Table_PI[[#This Row],[Hide: Proposed kWh]]=0,ISTEXT(Table_PI[[#This Row],[Hide: Proposed kWh]])),\"\",Table_PI[[#This Row],[Hide: Proposed kWh]])","v":""},{"$f":"IF(OR(Table_PI[[#This Row],[Hide: Proposed kW]]=\"\",Table_PI[[#This Row],[Hide: Proposed kW]]=0,ISTEXT(Table_PI[[#This Row],[Hide: Proposed kW]])),\"\",Table_PI[[#This Row],[Hide: Proposed kW]])","v":""},null,null,{"$f":"IF(OR(Table_PI[[#This Row],[Hide: Rebate]]=\"\",Table_PI[[#This Row],[Hide: Rebate]]=0,ISTEXT(Table_PI[[#This Row],[Hide: Rebate]])),\"\",Table_PI[[#This Row],[Hide: Rebate]])","v":""},null,{"$f":"IF(OR(Table_PI[[#This Row],[Hide: Incremental Cost]]=\"\",Table_PI[[#This Row],[Hide: Incremental Cost]]=0,ISTEXT(Table_PI[[#This Row],[Hide: Incremental Cost]])),\"\",Table_PI[[#This Row],[Hide: Incremental Cost]])","v":""},{"$f":"IFERROR(IF(Table_SummaryPI[[#This Row],[Incentive_Customer]]=\"\",\"\",ROUND(Table_SummaryPI[[#This Row],[Incentive_Customer]]/$AM$401*'Customer Information'!$BC$21,2)),0)","v":""},{"$f":"IF(OR(Table_PI[[#This Row],[Annual kWh]]=\"\",Table_PI[[#This Row],[Annual kWh]]=0,ISTEXT(Table_PI[[#This Row],[Annual kWh]])),\"\",Table_PI[[#This Row],[Annual kWh]])","v":""},{"$f":"IF(OR(Table_PI[[#This Row],[Peak kW]]=\"\",Table_PI[[#This Row],[Peak kW]]=0,ISTEXT(Table_PI[[#This Row],[Peak kW]])),\"\",Table_PI[[#This Row],[Peak kW]])","v":""},{"$f":"IF(Table_SummaryPI[[#This Row],[Line No.]]<>\"\",IF(AND(ISNUMBER(FIND(\"Chiller\",Table_SummaryPI[[#This Row],[P_MeasureOption1]],1)),Table_SummaryPI[[#This Row],[ProposedMeasureCategory]]=\"Air-Cooled (Water-Cooled Replacement)\"),$BD$29*Table_SummaryPI[[#This Row],[Size]]*Table_SummaryPI[[#This Row],[Quantity]]*Table_SummaryPI[[#This Row],[EFLHCooling]],\nIF(ISNUMBER(FIND(\"Dishwasher\",Table_SummaryPI[[#This Row],[ProposedMeasureCategory]],1)),$BH$29*Table_SummaryPI[[#This Row],[Quantity]],\nIF(ISNUMBER(FIND(\"Ice Maker\",Table_SummaryPI[[#This Row],[ProposedMeasureCategory]],1)),$BD$31*Table_SummaryPI[[#This Row],[Quantity]],\nIF(ISNUMBER(FIND(\"Spray Valve\",Table_SummaryPI[[#This Row],[ProposedMeasureCategory]],1)),$BH$31*Table_SummaryPI[[#This Row],[Quantity]],\n0)))),\"\")","v":""},{"$f":"IF(OR(Table_PI[[#This Row],[Hide: Electrification kWh]]=\"\",Table_PI[[#This Row],[Hide: Electrification kWh]]=0,ISTEXT(Table_PI[[#This Row],[Hide: Electrification kWh]])),\"\",Table_PI[[#This Row],[Hide: Electrification kWh]])","v":""},{"$f":"IF(OR(Table_PI[[#This Row],[Hide: Electrification GHG]]=\"\",Table_PI[[#This Row],[Hide: Electrification GHG]]=0,ISTEXT(Table_PI[[#This Row],[Hide: Electrification GHG]])),\"\",Table_PI[[#This Row],[Hide: Electrification GHG]])","v":""},{"$f":"IFERROR(IF(Table_SummaryPI[[#This Row],[kWhSavings]]=\"\",\"\",$BH$9*Table_SummaryPI[[#This Row],[kWhSavings]]),0)","v":""},{"$f":"IFERROR(IF(Table_SummaryPI[[#This Row],[kWhSavings]]=\"\",\"\",$BH$14*Table_SummaryPI[[#This Row],[kWhSavings]]),0)","v":""},{"$f":"IFERROR(IF(Table_SummaryPI[[#This Row],[kWhSavings]]=\"\",\"\",$BH$18*Table_SummaryPI[[#This Row],[kWhSavings]]),0)","v":""},{"$f":"IFERROR(IF(Table_SummaryPI[[#This Row],[kWhSavings]]=\"\",\"\",$BH$22*Table_SummaryPI[[#This Row],[kWhSavings]]),0)","v":""}]
[{"$f":"Table_PI[[#This Row],[Line No.]]","v":""},{"$f":"IF(Table_SummaryPI[[#This Row],[MeasureName]]<>\"\",NOT(ISTEXT(Table_PI[[#This Row],[Rebate]])),\"\")","v":""},{"$f":"IF(Table_SummaryPI[[#This Row],[MeassureCategory]]<>\"\",CONCATENATE(Table_SummaryPI[[#This Row],[MeassureCategory]],  \" - \", Table_SummaryPI[[#This Row],[ProposedMeasureCategory]],  \" - \", TEXT(Table_SummaryPI[[#This Row],[Size]],\"#,##0.00\"),\" \",Table_SummaryPI[[#This Row],[SizeUnit]]),\"\")","v":""},{"$f":"SUBSTITUTE(Table_PI[[#This Row],[Measure]],\"     \",\"\",1)","v":""},{"$f":"IF(Table_PI[[#This Row],[List 1]]<>\"\",Table_PI[[#This Row],[List 1]],\"\")","v":""},{"$f":"IF(Table_PI[[#This Row],[List 2]]<>\"\",Table_PI[[#This Row],[List 2]],\"\")","v":""},{"$f":"IF(Table_PI[[#This Row],[List 3]]<>\"\",Table_PI[[#This Row],[List 3]],\"\")","v":""},{"$f":"IF(Table_PI[[#This Row],[Manufacturer]]=\"\",\"\",Table_PI[[#This Row],[Manufacturer]])","v":""},{"$f":"IF(Table_PI[[#This Row],[Model Number]]=\"\",\"\",Table_PI[[#This Row],[Model Number]])","v":""},{"$f":"IF(Table_PI[[#This Row],[Serial Number(s)]]=\"\",\"\",Table_PI[[#This Row],[Serial Number(s)]])","v":""},null,{"$f":"IF(Table_PI[[#This Row],[Size]]=\"\",\"\",Table_PI[[#This Row],[Size]])","v":""},null,null,{"$f":"IF(Table_PI[[#This Row],[Input 1]]<>\"\",Table_PI[[#This Row],[Input 1]],\"\")","v":""},null,null,{"$f":"IF(Table_PI[[#This Row],[Input 2]]<>\"\",Table_PI[[#This Row],[Input 2]],\"\")","v":""},null,null,{"$f":"IF(Table_PI[[#This Row],[Input 3]]<>\"\",Table_PI[[#This Row],[Input 3]],\"\")","v":""},null,null,{"$f":"IF(Table_PI[[#This Row],[Input 4]]<>\"\",Table_PI[[#This Row],[Input 4]],\"\")","v":""},null,null,{"$f":"IF(Table_PI[[#This Row],[Input 4]]<>\"\",Table_PI[[#This Row],[Input 4]],\"\")","v":""},null,null,{"$f":"IF(Table_PI[[#This Row],[Input 4]]<>\"\",Table_PI[[#This Row],[Input 4]],\"\")","v":""},{"$f":"IF(Table_PI[[#This Row],[Quantity]]=\"\",\"\",Table_PI[[#This Row],[Quantity]])","v":""},{"$f":"IF(Table_PI[[#This Row],[Notes]]=\"\",\"\",Table_PI[[#This Row],[Notes]])","v":""},{"$f":"IF(OR(Table_PI[[#This Row],[Hide: Baseline kWh]]=\"\",Table_PI[[#This Row],[Hide: Baseline kWh]]=0,ISTEXT(Table_PI[[#This Row],[Hide: Baseline kWh]])),\"\",Table_PI[[#This Row],[Hide: Baseline kWh]])","v":""},{"$f":"IF(OR(Table_PI[[#This Row],[Hide: Baseline kW]]=\"\",Table_PI[[#This Row],[Hide: Baseline kW]]=0,ISTEXT(Table_PI[[#This Row],[Hide: Baseline kW]])),\"\",Table_PI[[#This Row],[Hide: Baseline kW]])","v":""},{"$f":"IF(OR(Table_PI[[#This Row],[Hide: Proposed kWh]]=\"\",Table_PI[[#This Row],[Hide: Proposed kWh]]=0,ISTEXT(Table_PI[[#This Row],[Hide: Proposed kWh]])),\"\",Table_PI[[#This Row],[Hide: Proposed kWh]])","v":""},{"$f":"IF(OR(Table_PI[[#This Row],[Hide: Proposed kW]]=\"\",Table_PI[[#This Row],[Hide: Proposed kW]]=0,ISTEXT(Table_PI[[#This Row],[Hide: Proposed kW]])),\"\",Table_PI[[#This Row],[Hide: Proposed kW]])","v":""},null,null,{"$f":"IF(OR(Table_PI[[#This Row],[Hide: Rebate]]=\"\",Table_PI[[#This Row],[Hide: Rebate]]=0,ISTEXT(Table_PI[[#This Row],[Hide: Rebate]])),\"\",Table_PI[[#This Row],[Hide: Rebate]])","v":""},null,{"$f":"IF(OR(Table_PI[[#This Row],[Hide: Incremental Cost]]=\"\",Table_PI[[#This Row],[Hide: Incremental Cost]]=0,ISTEXT(Table_PI[[#This Row],[Hide: Incremental Cost]])),\"\",Table_PI[[#This Row],[Hide: Incremental Cost]])","v":""},{"$f":"IFERROR(IF(Table_SummaryPI[[#This Row],[Incentive_Customer]]=\"\",\"\",ROUND(Table_SummaryPI[[#This Row],[Incentive_Customer]]/$AM$401*'Customer Information'!$BC$21,2)),0)","v":""},{"$f":"IF(OR(Table_PI[[#This Row],[Annual kWh]]=\"\",Table_PI[[#This Row],[Annual kWh]]=0,ISTEXT(Table_PI[[#This Row],[Annual kWh]])),\"\",Table_PI[[#This Row],[Annual kWh]])","v":""},{"$f":"IF(OR(Table_PI[[#This Row],[Peak kW]]=\"\",Table_PI[[#This Row],[Peak kW]]=0,ISTEXT(Table_PI[[#This Row],[Peak kW]])),\"\",Table_PI[[#This Row],[Peak kW]])","v":""},{"$f":"IF(Table_SummaryPI[[#This Row],[Line No.]]<>\"\",IF(AND(ISNUMBER(FIND(\"Chiller\",Table_SummaryPI[[#This Row],[P_MeasureOption1]],1)),Table_SummaryPI[[#This Row],[ProposedMeasureCategory]]=\"Air-Cooled (Water-Cooled Replacement)\"),$BD$29*Table_SummaryPI[[#This Row],[Size]]*Table_SummaryPI[[#This Row],[Quantity]]*Table_SummaryPI[[#This Row],[EFLHCooling]],\nIF(ISNUMBER(FIND(\"Dishwasher\",Table_SummaryPI[[#This Row],[ProposedMeasureCategory]],1)),$BH$29*Table_SummaryPI[[#This Row],[Quantity]],\nIF(ISNUMBER(FIND(\"Ice Maker\",Table_SummaryPI[[#This Row],[ProposedMeasureCategory]],1)),$BD$31*Table_SummaryPI[[#This Row],[Quantity]],\nIF(ISNUMBER(FIND(\"Spray Valve\",Table_SummaryPI[[#This Row],[ProposedMeasureCategory]],1)),$BH$31*Table_SummaryPI[[#This Row],[Quantity]],\n0)))),\"\")","v":""},{"$f":"IF(OR(Table_PI[[#This Row],[Hide: Electrification kWh]]=\"\",Table_PI[[#This Row],[Hide: Electrification kWh]]=0,ISTEXT(Table_PI[[#This Row],[Hide: Electrification kWh]])),\"\",Table_PI[[#This Row],[Hide: Electrification kWh]])","v":""},{"$f":"IF(OR(Table_PI[[#This Row],[Hide: Electrification GHG]]=\"\",Table_PI[[#This Row],[Hide: Electrification GHG]]=0,ISTEXT(Table_PI[[#This Row],[Hide: Electrification GHG]])),\"\",Table_PI[[#This Row],[Hide: Electrification GHG]])","v":""},{"$f":"IFERROR(IF(Table_SummaryPI[[#This Row],[kWhSavings]]=\"\",\"\",$BH$9*Table_SummaryPI[[#This Row],[kWhSavings]]),0)","v":""},{"$f":"IFERROR(IF(Table_SummaryPI[[#This Row],[kWhSavings]]=\"\",\"\",$BH$14*Table_SummaryPI[[#This Row],[kWhSavings]]),0)","v":""},{"$f":"IFERROR(IF(Table_SummaryPI[[#This Row],[kWhSavings]]=\"\",\"\",$BH$18*Table_SummaryPI[[#This Row],[kWhSavings]]),0)","v":""},{"$f":"IFERROR(IF(Table_SummaryPI[[#This Row],[kWhSavings]]=\"\",\"\",$BH$22*Table_SummaryPI[[#This Row],[kWhSavings]]),0)","v":""}]
[{"$f":"Table_PI[[#This Row],[Line No.]]","v":""},{"$f":"IF(Table_SummaryPI[[#This Row],[MeasureName]]<>\"\",NOT(ISTEXT(Table_PI[[#This Row],[Rebate]])),\"\")","v":""},{"$f":"IF(Table_SummaryPI[[#This Row],[MeassureCategory]]<>\"\",CONCATENATE(Table_SummaryPI[[#This Row],[MeassureCategory]],  \" - \", Table_SummaryPI[[#This Row],[ProposedMeasureCategory]],  \" - \", TEXT(Table_SummaryPI[[#This Row],[Size]],\"#,##0.00\"),\" \",Table_SummaryPI[[#This Row],[SizeUnit]]),\"\")","v":""},{"$f":"SUBSTITUTE(Table_PI[[#This Row],[Measure]],\"     \",\"\",1)","v":""},{"$f":"IF(Table_PI[[#This Row],[List 1]]<>\"\",Table_PI[[#This Row],[List 1]],\"\")","v":""},{"$f":"IF(Table_PI[[#This Row],[List 2]]<>\"\",Table_PI[[#This Row],[List 2]],\"\")","v":""},{"$f":"IF(Table_PI[[#This Row],[List 3]]<>\"\",Table_PI[[#This Row],[List 3]],\"\")","v":""},{"$f":"IF(Table_PI[[#This Row],[Manufacturer]]=\"\",\"\",Table_PI[[#This Row],[Manufacturer]])","v":""},{"$f":"IF(Table_PI[[#This Row],[Model Number]]=\"\",\"\",Table_PI[[#This Row],[Model Number]])","v":""},{"$f":"IF(Table_PI[[#This Row],[Serial Number(s)]]=\"\",\"\",Table_PI[[#This Row],[Serial Number(s)]])","v":""},null,{"$f":"IF(Table_PI[[#This Row],[Size]]=\"\",\"\",Table_PI[[#This Row],[Size]])","v":""},null,null,{"$f":"IF(Table_PI[[#This Row],[Input 1]]<>\"\",Table_PI[[#This Row],[Input 1]],\"\")","v":""},null,null,{"$f":"IF(Table_PI[[#This Row],[Input 2]]<>\"\",Table_PI[[#This Row],[Input 2]],\"\")","v":""},null,null,{"$f":"IF(Table_PI[[#This Row],[Input 3]]<>\"\",Table_PI[[#This Row],[Input 3]],\"\")","v":""},null,null,{"$f":"IF(Table_PI[[#This Row],[Input 4]]<>\"\",Table_PI[[#This Row],[Input 4]],\"\")","v":""},null,null,{"$f":"IF(Table_PI[[#This Row],[Input 4]]<>\"\",Table_PI[[#This Row],[Input 4]],\"\")","v":""},null,null,{"$f":"IF(Table_PI[[#This Row],[Input 4]]<>\"\",Table_PI[[#This Row],[Input 4]],\"\")","v":""},{"$f":"IF(Table_PI[[#This Row],[Quantity]]=\"\",\"\",Table_PI[[#This Row],[Quantity]])","v":""},{"$f":"IF(Table_PI[[#This Row],[Notes]]=\"\",\"\",Table_PI[[#This Row],[Notes]])","v":""},{"$f":"IF(OR(Table_PI[[#This Row],[Hide: Baseline kWh]]=\"\",Table_PI[[#This Row],[Hide: Baseline kWh]]=0,ISTEXT(Table_PI[[#This Row],[Hide: Baseline kWh]])),\"\",Table_PI[[#This Row],[Hide: Baseline kWh]])","v":""},{"$f":"IF(OR(Table_PI[[#This Row],[Hide: Baseline kW]]=\"\",Table_PI[[#This Row],[Hide: Baseline kW]]=0,ISTEXT(Table_PI[[#This Row],[Hide: Baseline kW]])),\"\",Table_PI[[#This Row],[Hide: Baseline kW]])","v":""},{"$f":"IF(OR(Table_PI[[#This Row],[Hide: Proposed kWh]]=\"\",Table_PI[[#This Row],[Hide: Proposed kWh]]=0,ISTEXT(Table_PI[[#This Row],[Hide: Proposed kWh]])),\"\",Table_PI[[#This Row],[Hide: Proposed kWh]])","v":""},{"$f":"IF(OR(Table_PI[[#This Row],[Hide: Proposed kW]]=\"\",Table_PI[[#This Row],[Hide: Proposed kW]]=0,ISTEXT(Table_PI[[#This Row],[Hide: Proposed kW]])),\"\",Table_PI[[#This Row],[Hide: Proposed kW]])","v":""},null,null,{"$f":"IF(OR(Table_PI[[#This Row],[Hide: Rebate]]=\"\",Table_PI[[#This Row],[Hide: Rebate]]=0,ISTEXT(Table_PI[[#This Row],[Hide: Rebate]])),\"\",Table_PI[[#This Row],[Hide: Rebate]])","v":""},null,{"$f":"IF(OR(Table_PI[[#This Row],[Hide: Incremental Cost]]=\"\",Table_PI[[#This Row],[Hide: Incremental Cost]]=0,ISTEXT(Table_PI[[#This Row],[Hide: Incremental Cost]])),\"\",Table_PI[[#This Row],[Hide: Incremental Cost]])","v":""},{"$f":"IFERROR(IF(Table_SummaryPI[[#This Row],[Incentive_Customer]]=\"\",\"\",ROUND(Table_SummaryPI[[#This Row],[Incentive_Customer]]/$AM$401*'Customer Information'!$BC$21,2)),0)","v":""},{"$f":"IF(OR(Table_PI[[#This Row],[Annual kWh]]=\"\",Table_PI[[#This Row],[Annual kWh]]=0,ISTEXT(Table_PI[[#This Row],[Annual kWh]])),\"\",Table_PI[[#This Row],[Annual kWh]])","v":""},{"$f":"IF(OR(Table_PI[[#This Row],[Peak kW]]=\"\",Table_PI[[#This Row],[Peak kW]]=0,ISTEXT(Table_PI[[#This Row],[Peak kW]])),\"\",Table_PI[[#This Row],[Peak kW]])","v":""},{"$f":"IF(Table_SummaryPI[[#This Row],[Line No.]]<>\"\",IF(AND(ISNUMBER(FIND(\"Chiller\",Table_SummaryPI[[#This Row],[P_MeasureOption1]],1)),Table_SummaryPI[[#This Row],[ProposedMeasureCategory]]=\"Air-Cooled (Water-Cooled Replacement)\"),$BD$29*Table_SummaryPI[[#This Row],[Size]]*Table_SummaryPI[[#This Row],[Quantity]]*Table_SummaryPI[[#This Row],[EFLHCooling]],\nIF(ISNUMBER(FIND(\"Dishwasher\",Table_SummaryPI[[#This Row],[ProposedMeasureCategory]],1)),$BH$29*Table_SummaryPI[[#This Row],[Quantity]],\nIF(ISNUMBER(FIND(\"Ice Maker\",Table_SummaryPI[[#This Row],[ProposedMeasureCategory]],1)),$BD$31*Table_SummaryPI[[#This Row],[Quantity]],\nIF(ISNUMBER(FIND(\"Spray Valve\",Table_SummaryPI[[#This Row],[ProposedMeasureCategory]],1)),$BH$31*Table_SummaryPI[[#This Row],[Quantity]],\n0)))),\"\")","v":""},{"$f":"IF(OR(Table_PI[[#This Row],[Hide: Electrification kWh]]=\"\",Table_PI[[#This Row],[Hide: Electrification kWh]]=0,ISTEXT(Table_PI[[#This Row],[Hide: Electrification kWh]])),\"\",Table_PI[[#This Row],[Hide: Electrification kWh]])","v":""},{"$f":"IF(OR(Table_PI[[#This Row],[Hide: Electrification GHG]]=\"\",Table_PI[[#This Row],[Hide: Electrification GHG]]=0,ISTEXT(Table_PI[[#This Row],[Hide: Electrification GHG]])),\"\",Table_PI[[#This Row],[Hide: Electrification GHG]])","v":""},{"$f":"IFERROR(IF(Table_SummaryPI[[#This Row],[kWhSavings]]=\"\",\"\",$BH$9*Table_SummaryPI[[#This Row],[kWhSavings]]),0)","v":""},{"$f":"IFERROR(IF(Table_SummaryPI[[#This Row],[kWhSavings]]=\"\",\"\",$BH$14*Table_SummaryPI[[#This Row],[kWhSavings]]),0)","v":""},{"$f":"IFERROR(IF(Table_SummaryPI[[#This Row],[kWhSavings]]=\"\",\"\",$BH$18*Table_SummaryPI[[#This Row],[kWhSavings]]),0)","v":""},{"$f":"IFERROR(IF(Table_SummaryPI[[#This Row],[kWhSavings]]=\"\",\"\",$BH$22*Table_SummaryPI[[#This Row],[kWhSavings]]),0)","v":""}]
[{"$f":"Table_PI[[#This Row],[Line No.]]","v":""},{"$f":"IF(Table_SummaryPI[[#This Row],[MeasureName]]<>\"\",NOT(ISTEXT(Table_PI[[#This Row],[Rebate]])),\"\")","v":""},{"$f":"IF(Table_SummaryPI[[#This Row],[MeassureCategory]]<>\"\",CONCATENATE(Table_SummaryPI[[#This Row],[MeassureCategory]],  \" - \", Table_SummaryPI[[#This Row],[ProposedMeasureCategory]],  \" - \", TEXT(Table_SummaryPI[[#This Row],[Size]],\"#,##0.00\"),\" \",Table_SummaryPI[[#This Row],[SizeUnit]]),\"\")","v":""},{"$f":"SUBSTITUTE(Table_PI[[#This Row],[Measure]],\"     \",\"\",1)","v":""},{"$f":"IF(Table_PI[[#This Row],[List 1]]<>\"\",Table_PI[[#This Row],[List 1]],\"\")","v":""},{"$f":"IF(Table_PI[[#This Row],[List 2]]<>\"\",Table_PI[[#This Row],[List 2]],\"\")","v":""},{"$f":"IF(Table_PI[[#This Row],[List 3]]<>\"\",Table_PI[[#This Row],[List 3]],\"\")","v":""},{"$f":"IF(Table_PI[[#This Row],[Manufacturer]]=\"\",\"\",Table_PI[[#This Row],[Manufacturer]])","v":""},{"$f":"IF(Table_PI[[#This Row],[Model Number]]=\"\",\"\",Table_PI[[#This Row],[Model Number]])","v":""},{"$f":"IF(Table_PI[[#This Row],[Serial Number(s)]]=\"\",\"\",Table_PI[[#This Row],[Serial Number(s)]])","v":""},null,{"$f":"IF(Table_PI[[#This Row],[Size]]=\"\",\"\",Table_PI[[#This Row],[Size]])","v":""},null,null,{"$f":"IF(Table_PI[[#This Row],[Input 1]]<>\"\",Table_PI[[#This Row],[Input 1]],\"\")","v":""},null,null,{"$f":"IF(Table_PI[[#This Row],[Input 2]]<>\"\",Table_PI[[#This Row],[Input 2]],\"\")","v":""},null,null,{"$f":"IF(Table_PI[[#This Row],[Input 3]]<>\"\",Table_PI[[#This Row],[Input 3]],\"\")","v":""},null,null,{"$f":"IF(Table_PI[[#This Row],[Input 4]]<>\"\",Table_PI[[#This Row],[Input 4]],\"\")","v":""},null,null,{"$f":"IF(Table_PI[[#This Row],[Input 4]]<>\"\",Table_PI[[#This Row],[Input 4]],\"\")","v":""},null,null,{"$f":"IF(Table_PI[[#This Row],[Input 4]]<>\"\",Table_PI[[#This Row],[Input 4]],\"\")","v":""},{"$f":"IF(Table_PI[[#This Row],[Quantity]]=\"\",\"\",Table_PI[[#This Row],[Quantity]])","v":""},{"$f":"IF(Table_PI[[#This Row],[Notes]]=\"\",\"\",Table_PI[[#This Row],[Notes]])","v":""},{"$f":"IF(OR(Table_PI[[#This Row],[Hide: Baseline kWh]]=\"\",Table_PI[[#This Row],[Hide: Baseline kWh]]=0,ISTEXT(Table_PI[[#This Row],[Hide: Baseline kWh]])),\"\",Table_PI[[#This Row],[Hide: Baseline kWh]])","v":""},{"$f":"IF(OR(Table_PI[[#This Row],[Hide: Baseline kW]]=\"\",Table_PI[[#This Row],[Hide: Baseline kW]]=0,ISTEXT(Table_PI[[#This Row],[Hide: Baseline kW]])),\"\",Table_PI[[#This Row],[Hide: Baseline kW]])","v":""},{"$f":"IF(OR(Table_PI[[#This Row],[Hide: Proposed kWh]]=\"\",Table_PI[[#This Row],[Hide: Proposed kWh]]=0,ISTEXT(Table_PI[[#This Row],[Hide: Proposed kWh]])),\"\",Table_PI[[#This Row],[Hide: Proposed kWh]])","v":""},{"$f":"IF(OR(Table_PI[[#This Row],[Hide: Proposed kW]]=\"\",Table_PI[[#This Row],[Hide: Proposed kW]]=0,ISTEXT(Table_PI[[#This Row],[Hide: Proposed kW]])),\"\",Table_PI[[#This Row],[Hide: Proposed kW]])","v":""},null,null,{"$f":"IF(OR(Table_PI[[#This Row],[Hide: Rebate]]=\"\",Table_PI[[#This Row],[Hide: Rebate]]=0,ISTEXT(Table_PI[[#This Row],[Hide: Rebate]])),\"\",Table_PI[[#This Row],[Hide: Rebate]])","v":""},null,{"$f":"IF(OR(Table_PI[[#This Row],[Hide: Incremental Cost]]=\"\",Table_PI[[#This Row],[Hide: Incremental Cost]]=0,ISTEXT(Table_PI[[#This Row],[Hide: Incremental Cost]])),\"\",Table_PI[[#This Row],[Hide: Incremental Cost]])","v":""},{"$f":"IFERROR(IF(Table_SummaryPI[[#This Row],[Incentive_Customer]]=\"\",\"\",ROUND(Table_SummaryPI[[#This Row],[Incentive_Customer]]/$AM$401*'Customer Information'!$BC$21,2)),0)","v":""},{"$f":"IF(OR(Table_PI[[#This Row],[Annual kWh]]=\"\",Table_PI[[#This Row],[Annual kWh]]=0,ISTEXT(Table_PI[[#This Row],[Annual kWh]])),\"\",Table_PI[[#This Row],[Annual kWh]])","v":""},{"$f":"IF(OR(Table_PI[[#This Row],[Peak kW]]=\"\",Table_PI[[#This Row],[Peak kW]]=0,ISTEXT(Table_PI[[#This Row],[Peak kW]])),\"\",Table_PI[[#This Row],[Peak kW]])","v":""},{"$f":"IF(Table_SummaryPI[[#This Row],[Line No.]]<>\"\",IF(AND(ISNUMBER(FIND(\"Chiller\",Table_SummaryPI[[#This Row],[P_MeasureOption1]],1)),Table_SummaryPI[[#This Row],[ProposedMeasureCategory]]=\"Air-Cooled (Water-Cooled Replacement)\"),$BD$29*Table_SummaryPI[[#This Row],[Size]]*Table_SummaryPI[[#This Row],[Quantity]]*Table_SummaryPI[[#This Row],[EFLHCooling]],\nIF(ISNUMBER(FIND(\"Dishwasher\",Table_SummaryPI[[#This Row],[ProposedMeasureCategory]],1)),$BH$29*Table_SummaryPI[[#This Row],[Quantity]],\nIF(ISNUMBER(FIND(\"Ice Maker\",Table_SummaryPI[[#This Row],[ProposedMeasureCategory]],1)),$BD$31*Table_SummaryPI[[#This Row],[Quantity]],\nIF(ISNUMBER(FIND(\"Spray Valve\",Table_SummaryPI[[#This Row],[ProposedMeasureCategory]],1)),$BH$31*Table_SummaryPI[[#This Row],[Quantity]],\n0)))),\"\")","v":""},{"$f":"IF(OR(Table_PI[[#This Row],[Hide: Electrification kWh]]=\"\",Table_PI[[#This Row],[Hide: Electrification kWh]]=0,ISTEXT(Table_PI[[#This Row],[Hide: Electrification kWh]])),\"\",Table_PI[[#This Row],[Hide: Electrification kWh]])","v":""},{"$f":"IF(OR(Table_PI[[#This Row],[Hide: Electrification GHG]]=\"\",Table_PI[[#This Row],[Hide: Electrification GHG]]=0,ISTEXT(Table_PI[[#This Row],[Hide: Electrification GHG]])),\"\",Table_PI[[#This Row],[Hide: Electrification GHG]])","v":""},{"$f":"IFERROR(IF(Table_SummaryPI[[#This Row],[kWhSavings]]=\"\",\"\",$BH$9*Table_SummaryPI[[#This Row],[kWhSavings]]),0)","v":""},{"$f":"IFERROR(IF(Table_SummaryPI[[#This Row],[kWhSavings]]=\"\",\"\",$BH$14*Table_SummaryPI[[#This Row],[kWhSavings]]),0)","v":""},{"$f":"IFERROR(IF(Table_SummaryPI[[#This Row],[kWhSavings]]=\"\",\"\",$BH$18*Table_SummaryPI[[#This Row],[kWhSavings]]),0)","v":""},{"$f":"IFERROR(IF(Table_SummaryPI[[#This Row],[kWhSavings]]=\"\",\"\",$BH$22*Table_SummaryPI[[#This Row],[kWhSavings]]),0)","v":""}]
[{"$f":"Table_PI[[#This Row],[Line No.]]","v":""},{"$f":"IF(Table_SummaryPI[[#This Row],[MeasureName]]<>\"\",NOT(ISTEXT(Table_PI[[#This Row],[Rebate]])),\"\")","v":""},{"$f":"IF(Table_SummaryPI[[#This Row],[MeassureCategory]]<>\"\",CONCATENATE(Table_SummaryPI[[#This Row],[MeassureCategory]],  \" - \", Table_SummaryPI[[#This Row],[ProposedMeasureCategory]],  \" - \", TEXT(Table_SummaryPI[[#This Row],[Size]],\"#,##0.00\"),\" \",Table_SummaryPI[[#This Row],[SizeUnit]]),\"\")","v":""},{"$f":"SUBSTITUTE(Table_PI[[#This Row],[Measure]],\"     \",\"\",1)","v":""},{"$f":"IF(Table_PI[[#This Row],[List 1]]<>\"\",Table_PI[[#This Row],[List 1]],\"\")","v":""},{"$f":"IF(Table_PI[[#This Row],[List 2]]<>\"\",Table_PI[[#This Row],[List 2]],\"\")","v":""},{"$f":"IF(Table_PI[[#This Row],[List 3]]<>\"\",Table_PI[[#This Row],[List 3]],\"\")","v":""},{"$f":"IF(Table_PI[[#This Row],[Manufacturer]]=\"\",\"\",Table_PI[[#This Row],[Manufacturer]])","v":""},{"$f":"IF(Table_PI[[#This Row],[Model Number]]=\"\",\"\",Table_PI[[#This Row],[Model Number]])","v":""},{"$f":"IF(Table_PI[[#This Row],[Serial Number(s)]]=\"\",\"\",Table_PI[[#This Row],[Serial Number(s)]])","v":""},null,{"$f":"IF(Table_PI[[#This Row],[Size]]=\"\",\"\",Table_PI[[#This Row],[Size]])","v":""},null,null,{"$f":"IF(Table_PI[[#This Row],[Input 1]]<>\"\",Table_PI[[#This Row],[Input 1]],\"\")","v":""},null,null,{"$f":"IF(Table_PI[[#This Row],[Input 2]]<>\"\",Table_PI[[#This Row],[Input 2]],\"\")","v":""},null,null,{"$f":"IF(Table_PI[[#This Row],[Input 3]]<>\"\",Table_PI[[#This Row],[Input 3]],\"\")","v":""},null,null,{"$f":"IF(Table_PI[[#This Row],[Input 4]]<>\"\",Table_PI[[#This Row],[Input 4]],\"\")","v":""},null,null,{"$f":"IF(Table_PI[[#This Row],[Input 4]]<>\"\",Table_PI[[#This Row],[Input 4]],\"\")","v":""},null,null,{"$f":"IF(Table_PI[[#This Row],[Input 4]]<>\"\",Table_PI[[#This Row],[Input 4]],\"\")","v":""},{"$f":"IF(Table_PI[[#This Row],[Quantity]]=\"\",\"\",Table_PI[[#This Row],[Quantity]])","v":""},{"$f":"IF(Table_PI[[#This Row],[Notes]]=\"\",\"\",Table_PI[[#This Row],[Notes]])","v":""},{"$f":"IF(OR(Table_PI[[#This Row],[Hide: Baseline kWh]]=\"\",Table_PI[[#This Row],[Hide: Baseline kWh]]=0,ISTEXT(Table_PI[[#This Row],[Hide: Baseline kWh]])),\"\",Table_PI[[#This Row],[Hide: Baseline kWh]])","v":""},{"$f":"IF(OR(Table_PI[[#This Row],[Hide: Baseline kW]]=\"\",Table_PI[[#This Row],[Hide: Baseline kW]]=0,ISTEXT(Table_PI[[#This Row],[Hide: Baseline kW]])),\"\",Table_PI[[#This Row],[Hide: Baseline kW]])","v":""},{"$f":"IF(OR(Table_PI[[#This Row],[Hide: Proposed kWh]]=\"\",Table_PI[[#This Row],[Hide: Proposed kWh]]=0,ISTEXT(Table_PI[[#This Row],[Hide: Proposed kWh]])),\"\",Table_PI[[#This Row],[Hide: Proposed kWh]])","v":""},{"$f":"IF(OR(Table_PI[[#This Row],[Hide: Proposed kW]]=\"\",Table_PI[[#This Row],[Hide: Proposed kW]]=0,ISTEXT(Table_PI[[#This Row],[Hide: Proposed kW]])),\"\",Table_PI[[#This Row],[Hide: Proposed kW]])","v":""},null,null,{"$f":"IF(OR(Table_PI[[#This Row],[Hide: Rebate]]=\"\",Table_PI[[#This Row],[Hide: Rebate]]=0,ISTEXT(Table_PI[[#This Row],[Hide: Rebate]])),\"\",Table_PI[[#This Row],[Hide: Rebate]])","v":""},null,{"$f":"IF(OR(Table_PI[[#This Row],[Hide: Incremental Cost]]=\"\",Table_PI[[#This Row],[Hide: Incremental Cost]]=0,ISTEXT(Table_PI[[#This Row],[Hide: Incremental Cost]])),\"\",Table_PI[[#This Row],[Hide: Incremental Cost]])","v":""},{"$f":"IFERROR(IF(Table_SummaryPI[[#This Row],[Incentive_Customer]]=\"\",\"\",ROUND(Table_SummaryPI[[#This Row],[Incentive_Customer]]/$AM$401*'Customer Information'!$BC$21,2)),0)","v":""},{"$f":"IF(OR(Table_PI[[#This Row],[Annual kWh]]=\"\",Table_PI[[#This Row],[Annual kWh]]=0,ISTEXT(Table_PI[[#This Row],[Annual kWh]])),\"\",Table_PI[[#This Row],[Annual kWh]])","v":""},{"$f":"IF(OR(Table_PI[[#This Row],[Peak kW]]=\"\",Table_PI[[#This Row],[Peak kW]]=0,ISTEXT(Table_PI[[#This Row],[Peak kW]])),\"\",Table_PI[[#This Row],[Peak kW]])","v":""},{"$f":"IF(Table_SummaryPI[[#This Row],[Line No.]]<>\"\",IF(AND(ISNUMBER(FIND(\"Chiller\",Table_SummaryPI[[#This Row],[P_MeasureOption1]],1)),Table_SummaryPI[[#This Row],[ProposedMeasureCategory]]=\"Air-Cooled (Water-Cooled Replacement)\"),$BD$29*Table_SummaryPI[[#This Row],[Size]]*Table_SummaryPI[[#This Row],[Quantity]]*Table_SummaryPI[[#This Row],[EFLHCooling]],\nIF(ISNUMBER(FIND(\"Dishwasher\",Table_SummaryPI[[#This Row],[ProposedMeasureCategory]],1)),$BH$29*Table_SummaryPI[[#This Row],[Quantity]],\nIF(ISNUMBER(FIND(\"Ice Maker\",Table_SummaryPI[[#This Row],[ProposedMeasureCategory]],1)),$BD$31*Table_SummaryPI[[#This Row],[Quantity]],\nIF(ISNUMBER(FIND(\"Spray Valve\",Table_SummaryPI[[#This Row],[ProposedMeasureCategory]],1)),$BH$31*Table_SummaryPI[[#This Row],[Quantity]],\n0)))),\"\")","v":""},{"$f":"IF(OR(Table_PI[[#This Row],[Hide: Electrification kWh]]=\"\",Table_PI[[#This Row],[Hide: Electrification kWh]]=0,ISTEXT(Table_PI[[#This Row],[Hide: Electrification kWh]])),\"\",Table_PI[[#This Row],[Hide: Electrification kWh]])","v":""},{"$f":"IF(OR(Table_PI[[#This Row],[Hide: Electrification GHG]]=\"\",Table_PI[[#This Row],[Hide: Electrification GHG]]=0,ISTEXT(Table_PI[[#This Row],[Hide: Electrification GHG]])),\"\",Table_PI[[#This Row],[Hide: Electrification GHG]])","v":""},{"$f":"IFERROR(IF(Table_SummaryPI[[#This Row],[kWhSavings]]=\"\",\"\",$BH$9*Table_SummaryPI[[#This Row],[kWhSavings]]),0)","v":""},{"$f":"IFERROR(IF(Table_SummaryPI[[#This Row],[kWhSavings]]=\"\",\"\",$BH$14*Table_SummaryPI[[#This Row],[kWhSavings]]),0)","v":""},{"$f":"IFERROR(IF(Table_SummaryPI[[#This Row],[kWhSavings]]=\"\",\"\",$BH$18*Table_SummaryPI[[#This Row],[kWhSavings]]),0)","v":""},{"$f":"IFERROR(IF(Table_SummaryPI[[#This Row],[kWhSavings]]=\"\",\"\",$BH$22*Table_SummaryPI[[#This Row],[kWhSavings]]),0)","v":""}]
[{"$f":"Table_PI[[#This Row],[Line No.]]","v":""},{"$f":"IF(Table_SummaryPI[[#This Row],[MeasureName]]<>\"\",NOT(ISTEXT(Table_PI[[#This Row],[Rebate]])),\"\")","v":""},{"$f":"IF(Table_SummaryPI[[#This Row],[MeassureCategory]]<>\"\",CONCATENATE(Table_SummaryPI[[#This Row],[MeassureCategory]],  \" - \", Table_SummaryPI[[#This Row],[ProposedMeasureCategory]],  \" - \", TEXT(Table_SummaryPI[[#This Row],[Size]],\"#,##0.00\"),\" \",Table_SummaryPI[[#This Row],[SizeUnit]]),\"\")","v":""},{"$f":"SUBSTITUTE(Table_PI[[#This Row],[Measure]],\"     \",\"\",1)","v":""},{"$f":"IF(Table_PI[[#This Row],[List 1]]<>\"\",Table_PI[[#This Row],[List 1]],\"\")","v":""},{"$f":"IF(Table_PI[[#This Row],[List 2]]<>\"\",Table_PI[[#This Row],[List 2]],\"\")","v":""},{"$f":"IF(Table_PI[[#This Row],[List 3]]<>\"\",Table_PI[[#This Row],[List 3]],\"\")","v":""},{"$f":"IF(Table_PI[[#This Row],[Manufacturer]]=\"\",\"\",Table_PI[[#This Row],[Manufacturer]])","v":""},{"$f":"IF(Table_PI[[#This Row],[Model Number]]=\"\",\"\",Table_PI[[#This Row],[Model Number]])","v":""},{"$f":"IF(Table_PI[[#This Row],[Serial Number(s)]]=\"\",\"\",Table_PI[[#This Row],[Serial Number(s)]])","v":""},null,{"$f":"IF(Table_PI[[#This Row],[Size]]=\"\",\"\",Table_PI[[#This Row],[Size]])","v":""},null,null,{"$f":"IF(Table_PI[[#This Row],[Input 1]]<>\"\",Table_PI[[#This Row],[Input 1]],\"\")","v":""},null,null,{"$f":"IF(Table_PI[[#This Row],[Input 2]]<>\"\",Table_PI[[#This Row],[Input 2]],\"\")","v":""},null,null,{"$f":"IF(Table_PI[[#This Row],[Input 3]]<>\"\",Table_PI[[#This Row],[Input 3]],\"\")","v":""},null,null,{"$f":"IF(Table_PI[[#This Row],[Input 4]]<>\"\",Table_PI[[#This Row],[Input 4]],\"\")","v":""},null,null,{"$f":"IF(Table_PI[[#This Row],[Input 4]]<>\"\",Table_PI[[#This Row],[Input 4]],\"\")","v":""},null,null,{"$f":"IF(Table_PI[[#This Row],[Input 4]]<>\"\",Table_PI[[#This Row],[Input 4]],\"\")","v":""},{"$f":"IF(Table_PI[[#This Row],[Quantity]]=\"\",\"\",Table_PI[[#This Row],[Quantity]])","v":""},{"$f":"IF(Table_PI[[#This Row],[Notes]]=\"\",\"\",Table_PI[[#This Row],[Notes]])","v":""},{"$f":"IF(OR(Table_PI[[#This Row],[Hide: Baseline kWh]]=\"\",Table_PI[[#This Row],[Hide: Baseline kWh]]=0,ISTEXT(Table_PI[[#This Row],[Hide: Baseline kWh]])),\"\",Table_PI[[#This Row],[Hide: Baseline kWh]])","v":""},{"$f":"IF(OR(Table_PI[[#This Row],[Hide: Baseline kW]]=\"\",Table_PI[[#This Row],[Hide: Baseline kW]]=0,ISTEXT(Table_PI[[#This Row],[Hide: Baseline kW]])),\"\",Table_PI[[#This Row],[Hide: Baseline kW]])","v":""},{"$f":"IF(OR(Table_PI[[#This Row],[Hide: Proposed kWh]]=\"\",Table_PI[[#This Row],[Hide: Proposed kWh]]=0,ISTEXT(Table_PI[[#This Row],[Hide: Proposed kWh]])),\"\",Table_PI[[#This Row],[Hide: Proposed kWh]])","v":""},{"$f":"IF(OR(Table_PI[[#This Row],[Hide: Proposed kW]]=\"\",Table_PI[[#This Row],[Hide: Proposed kW]]=0,ISTEXT(Table_PI[[#This Row],[Hide: Proposed kW]])),\"\",Table_PI[[#This Row],[Hide: Proposed kW]])","v":""},null,null,{"$f":"IF(OR(Table_PI[[#This Row],[Hide: Rebate]]=\"\",Table_PI[[#This Row],[Hide: Rebate]]=0,ISTEXT(Table_PI[[#This Row],[Hide: Rebate]])),\"\",Table_PI[[#This Row],[Hide: Rebate]])","v":""},null,{"$f":"IF(OR(Table_PI[[#This Row],[Hide: Incremental Cost]]=\"\",Table_PI[[#This Row],[Hide: Incremental Cost]]=0,ISTEXT(Table_PI[[#This Row],[Hide: Incremental Cost]])),\"\",Table_PI[[#This Row],[Hide: Incremental Cost]])","v":""},{"$f":"IFERROR(IF(Table_SummaryPI[[#This Row],[Incentive_Customer]]=\"\",\"\",ROUND(Table_SummaryPI[[#This Row],[Incentive_Customer]]/$AM$401*'Customer Information'!$BC$21,2)),0)","v":""},{"$f":"IF(OR(Table_PI[[#This Row],[Annual kWh]]=\"\",Table_PI[[#This Row],[Annual kWh]]=0,ISTEXT(Table_PI[[#This Row],[Annual kWh]])),\"\",Table_PI[[#This Row],[Annual kWh]])","v":""},{"$f":"IF(OR(Table_PI[[#This Row],[Peak kW]]=\"\",Table_PI[[#This Row],[Peak kW]]=0,ISTEXT(Table_PI[[#This Row],[Peak kW]])),\"\",Table_PI[[#This Row],[Peak kW]])","v":""},{"$f":"IF(Table_SummaryPI[[#This Row],[Line No.]]<>\"\",IF(AND(ISNUMBER(FIND(\"Chiller\",Table_SummaryPI[[#This Row],[P_MeasureOption1]],1)),Table_SummaryPI[[#This Row],[ProposedMeasureCategory]]=\"Air-Cooled (Water-Cooled Replacement)\"),$BD$29*Table_SummaryPI[[#This Row],[Size]]*Table_SummaryPI[[#This Row],[Quantity]]*Table_SummaryPI[[#This Row],[EFLHCooling]],\nIF(ISNUMBER(FIND(\"Dishwasher\",Table_SummaryPI[[#This Row],[ProposedMeasureCategory]],1)),$BH$29*Table_SummaryPI[[#This Row],[Quantity]],\nIF(ISNUMBER(FIND(\"Ice Maker\",Table_SummaryPI[[#This Row],[ProposedMeasureCategory]],1)),$BD$31*Table_SummaryPI[[#This Row],[Quantity]],\nIF(ISNUMBER(FIND(\"Spray Valve\",Table_SummaryPI[[#This Row],[ProposedMeasureCategory]],1)),$BH$31*Table_SummaryPI[[#This Row],[Quantity]],\n0)))),\"\")","v":""},{"$f":"IF(OR(Table_PI[[#This Row],[Hide: Electrification kWh]]=\"\",Table_PI[[#This Row],[Hide: Electrification kWh]]=0,ISTEXT(Table_PI[[#This Row],[Hide: Electrification kWh]])),\"\",Table_PI[[#This Row],[Hide: Electrification kWh]])","v":""},{"$f":"IF(OR(Table_PI[[#This Row],[Hide: Electrification GHG]]=\"\",Table_PI[[#This Row],[Hide: Electrification GHG]]=0,ISTEXT(Table_PI[[#This Row],[Hide: Electrification GHG]])),\"\",Table_PI[[#This Row],[Hide: Electrification GHG]])","v":""},{"$f":"IFERROR(IF(Table_SummaryPI[[#This Row],[kWhSavings]]=\"\",\"\",$BH$9*Table_SummaryPI[[#This Row],[kWhSavings]]),0)","v":""},{"$f":"IFERROR(IF(Table_SummaryPI[[#This Row],[kWhSavings]]=\"\",\"\",$BH$14*Table_SummaryPI[[#This Row],[kWhSavings]]),0)","v":""},{"$f":"IFERROR(IF(Table_SummaryPI[[#This Row],[kWhSavings]]=\"\",\"\",$BH$18*Table_SummaryPI[[#This Row],[kWhSavings]]),0)","v":""},{"$f":"IFERROR(IF(Table_SummaryPI[[#This Row],[kWhSavings]]=\"\",\"\",$BH$22*Table_SummaryPI[[#This Row],[kWhSavings]]),0)","v":""}]
[{"$f":"Table_PI[[#This Row],[Line No.]]","v":""},{"$f":"IF(Table_SummaryPI[[#This Row],[MeasureName]]<>\"\",NOT(ISTEXT(Table_PI[[#This Row],[Rebate]])),\"\")","v":""},{"$f":"IF(Table_SummaryPI[[#This Row],[MeassureCategory]]<>\"\",CONCATENATE(Table_SummaryPI[[#This Row],[MeassureCategory]],  \" - \", Table_SummaryPI[[#This Row],[ProposedMeasureCategory]],  \" - \", TEXT(Table_SummaryPI[[#This Row],[Size]],\"#,##0.00\"),\" \",Table_SummaryPI[[#This Row],[SizeUnit]]),\"\")","v":""},{"$f":"SUBSTITUTE(Table_PI[[#This Row],[Measure]],\"     \",\"\",1)","v":""},{"$f":"IF(Table_PI[[#This Row],[List 1]]<>\"\",Table_PI[[#This Row],[List 1]],\"\")","v":""},{"$f":"IF(Table_PI[[#This Row],[List 2]]<>\"\",Table_PI[[#This Row],[List 2]],\"\")","v":""},{"$f":"IF(Table_PI[[#This Row],[List 3]]<>\"\",Table_PI[[#This Row],[List 3]],\"\")","v":""},{"$f":"IF(Table_PI[[#This Row],[Manufacturer]]=\"\",\"\",Table_PI[[#This Row],[Manufacturer]])","v":""},{"$f":"IF(Table_PI[[#This Row],[Model Number]]=\"\",\"\",Table_PI[[#This Row],[Model Number]])","v":""},{"$f":"IF(Table_PI[[#This Row],[Serial Number(s)]]=\"\",\"\",Table_PI[[#This Row],[Serial Number(s)]])","v":""},null,{"$f":"IF(Table_PI[[#This Row],[Size]]=\"\",\"\",Table_PI[[#This Row],[Size]])","v":""},null,null,{"$f":"IF(Table_PI[[#This Row],[Input 1]]<>\"\",Table_PI[[#This Row],[Input 1]],\"\")","v":""},null,null,{"$f":"IF(Table_PI[[#This Row],[Input 2]]<>\"\",Table_PI[[#This Row],[Input 2]],\"\")","v":""},null,null,{"$f":"IF(Table_PI[[#This Row],[Input 3]]<>\"\",Table_PI[[#This Row],[Input 3]],\"\")","v":""},null,null,{"$f":"IF(Table_PI[[#This Row],[Input 4]]<>\"\",Table_PI[[#This Row],[Input 4]],\"\")","v":""},null,null,{"$f":"IF(Table_PI[[#This Row],[Input 4]]<>\"\",Table_PI[[#This Row],[Input 4]],\"\")","v":""},null,null,{"$f":"IF(Table_PI[[#This Row],[Input 4]]<>\"\",Table_PI[[#This Row],[Input 4]],\"\")","v":""},{"$f":"IF(Table_PI[[#This Row],[Quantity]]=\"\",\"\",Table_PI[[#This Row],[Quantity]])","v":""},{"$f":"IF(Table_PI[[#This Row],[Notes]]=\"\",\"\",Table_PI[[#This Row],[Notes]])","v":""},{"$f":"IF(OR(Table_PI[[#This Row],[Hide: Baseline kWh]]=\"\",Table_PI[[#This Row],[Hide: Baseline kWh]]=0,ISTEXT(Table_PI[[#This Row],[Hide: Baseline kWh]])),\"\",Table_PI[[#This Row],[Hide: Baseline kWh]])","v":""},{"$f":"IF(OR(Table_PI[[#This Row],[Hide: Baseline kW]]=\"\",Table_PI[[#This Row],[Hide: Baseline kW]]=0,ISTEXT(Table_PI[[#This Row],[Hide: Baseline kW]])),\"\",Table_PI[[#This Row],[Hide: Baseline kW]])","v":""},{"$f":"IF(OR(Table_PI[[#This Row],[Hide: Proposed kWh]]=\"\",Table_PI[[#This Row],[Hide: Proposed kWh]]=0,ISTEXT(Table_PI[[#This Row],[Hide: Proposed kWh]])),\"\",Table_PI[[#This Row],[Hide: Proposed kWh]])","v":""},{"$f":"IF(OR(Table_PI[[#This Row],[Hide: Proposed kW]]=\"\",Table_PI[[#This Row],[Hide: Proposed kW]]=0,ISTEXT(Table_PI[[#This Row],[Hide: Proposed kW]])),\"\",Table_PI[[#This Row],[Hide: Proposed kW]])","v":""},null,null,{"$f":"IF(OR(Table_PI[[#This Row],[Hide: Rebate]]=\"\",Table_PI[[#This Row],[Hide: Rebate]]=0,ISTEXT(Table_PI[[#This Row],[Hide: Rebate]])),\"\",Table_PI[[#This Row],[Hide: Rebate]])","v":""},null,{"$f":"IF(OR(Table_PI[[#This Row],[Hide: Incremental Cost]]=\"\",Table_PI[[#This Row],[Hide: Incremental Cost]]=0,ISTEXT(Table_PI[[#This Row],[Hide: Incremental Cost]])),\"\",Table_PI[[#This Row],[Hide: Incremental Cost]])","v":""},{"$f":"IFERROR(IF(Table_SummaryPI[[#This Row],[Incentive_Customer]]=\"\",\"\",ROUND(Table_SummaryPI[[#This Row],[Incentive_Customer]]/$AM$401*'Customer Information'!$BC$21,2)),0)","v":""},{"$f":"IF(OR(Table_PI[[#This Row],[Annual kWh]]=\"\",Table_PI[[#This Row],[Annual kWh]]=0,ISTEXT(Table_PI[[#This Row],[Annual kWh]])),\"\",Table_PI[[#This Row],[Annual kWh]])","v":""},{"$f":"IF(OR(Table_PI[[#This Row],[Peak kW]]=\"\",Table_PI[[#This Row],[Peak kW]]=0,ISTEXT(Table_PI[[#This Row],[Peak kW]])),\"\",Table_PI[[#This Row],[Peak kW]])","v":""},{"$f":"IF(Table_SummaryPI[[#This Row],[Line No.]]<>\"\",IF(AND(ISNUMBER(FIND(\"Chiller\",Table_SummaryPI[[#This Row],[P_MeasureOption1]],1)),Table_SummaryPI[[#This Row],[ProposedMeasureCategory]]=\"Air-Cooled (Water-Cooled Replacement)\"),$BD$29*Table_SummaryPI[[#This Row],[Size]]*Table_SummaryPI[[#This Row],[Quantity]]*Table_SummaryPI[[#This Row],[EFLHCooling]],\nIF(ISNUMBER(FIND(\"Dishwasher\",Table_SummaryPI[[#This Row],[ProposedMeasureCategory]],1)),$BH$29*Table_SummaryPI[[#This Row],[Quantity]],\nIF(ISNUMBER(FIND(\"Ice Maker\",Table_SummaryPI[[#This Row],[ProposedMeasureCategory]],1)),$BD$31*Table_SummaryPI[[#This Row],[Quantity]],\nIF(ISNUMBER(FIND(\"Spray Valve\",Table_SummaryPI[[#This Row],[ProposedMeasureCategory]],1)),$BH$31*Table_SummaryPI[[#This Row],[Quantity]],\n0)))),\"\")","v":""},{"$f":"IF(OR(Table_PI[[#This Row],[Hide: Electrification kWh]]=\"\",Table_PI[[#This Row],[Hide: Electrification kWh]]=0,ISTEXT(Table_PI[[#This Row],[Hide: Electrification kWh]])),\"\",Table_PI[[#This Row],[Hide: Electrification kWh]])","v":""},{"$f":"IF(OR(Table_PI[[#This Row],[Hide: Electrification GHG]]=\"\",Table_PI[[#This Row],[Hide: Electrification GHG]]=0,ISTEXT(Table_PI[[#This Row],[Hide: Electrification GHG]])),\"\",Table_PI[[#This Row],[Hide: Electrification GHG]])","v":""},{"$f":"IFERROR(IF(Table_SummaryPI[[#This Row],[kWhSavings]]=\"\",\"\",$BH$9*Table_SummaryPI[[#This Row],[kWhSavings]]),0)","v":""},{"$f":"IFERROR(IF(Table_SummaryPI[[#This Row],[kWhSavings]]=\"\",\"\",$BH$14*Table_SummaryPI[[#This Row],[kWhSavings]]),0)","v":""},{"$f":"IFERROR(IF(Table_SummaryPI[[#This Row],[kWhSavings]]=\"\",\"\",$BH$18*Table_SummaryPI[[#This Row],[kWhSavings]]),0)","v":""},{"$f":"IFERROR(IF(Table_SummaryPI[[#This Row],[kWhSavings]]=\"\",\"\",$BH$22*Table_SummaryPI[[#This Row],[kWhSavings]]),0)","v":""}]
[{"$f":"Table_PI[[#This Row],[Line No.]]","v":""},{"$f":"IF(Table_SummaryPI[[#This Row],[MeasureName]]<>\"\",NOT(ISTEXT(Table_PI[[#This Row],[Rebate]])),\"\")","v":""},{"$f":"IF(Table_SummaryPI[[#This Row],[MeassureCategory]]<>\"\",CONCATENATE(Table_SummaryPI[[#This Row],[MeassureCategory]],  \" - \", Table_SummaryPI[[#This Row],[ProposedMeasureCategory]],  \" - \", TEXT(Table_SummaryPI[[#This Row],[Size]],\"#,##0.00\"),\" \",Table_SummaryPI[[#This Row],[SizeUnit]]),\"\")","v":""},{"$f":"SUBSTITUTE(Table_PI[[#This Row],[Measure]],\"     \",\"\",1)","v":""},{"$f":"IF(Table_PI[[#This Row],[List 1]]<>\"\",Table_PI[[#This Row],[List 1]],\"\")","v":""},{"$f":"IF(Table_PI[[#This Row],[List 2]]<>\"\",Table_PI[[#This Row],[List 2]],\"\")","v":""},{"$f":"IF(Table_PI[[#This Row],[List 3]]<>\"\",Table_PI[[#This Row],[List 3]],\"\")","v":""},{"$f":"IF(Table_PI[[#This Row],[Manufacturer]]=\"\",\"\",Table_PI[[#This Row],[Manufacturer]])","v":""},{"$f":"IF(Table_PI[[#This Row],[Model Number]]=\"\",\"\",Table_PI[[#This Row],[Model Number]])","v":""},{"$f":"IF(Table_PI[[#This Row],[Serial Number(s)]]=\"\",\"\",Table_PI[[#This Row],[Serial Number(s)]])","v":""},null,{"$f":"IF(Table_PI[[#This Row],[Size]]=\"\",\"\",Table_PI[[#This Row],[Size]])","v":""},null,null,{"$f":"IF(Table_PI[[#This Row],[Input 1]]<>\"\",Table_PI[[#This Row],[Input 1]],\"\")","v":""},null,null,{"$f":"IF(Table_PI[[#This Row],[Input 2]]<>\"\",Table_PI[[#This Row],[Input 2]],\"\")","v":""},null,null,{"$f":"IF(Table_PI[[#This Row],[Input 3]]<>\"\",Table_PI[[#This Row],[Input 3]],\"\")","v":""},null,null,{"$f":"IF(Table_PI[[#This Row],[Input 4]]<>\"\",Table_PI[[#This Row],[Input 4]],\"\")","v":""},null,null,{"$f":"IF(Table_PI[[#This Row],[Input 4]]<>\"\",Table_PI[[#This Row],[Input 4]],\"\")","v":""},null,null,{"$f":"IF(Table_PI[[#This Row],[Input 4]]<>\"\",Table_PI[[#This Row],[Input 4]],\"\")","v":""},{"$f":"IF(Table_PI[[#This Row],[Quantity]]=\"\",\"\",Table_PI[[#This Row],[Quantity]])","v":""},{"$f":"IF(Table_PI[[#This Row],[Notes]]=\"\",\"\",Table_PI[[#This Row],[Notes]])","v":""},{"$f":"IF(OR(Table_PI[[#This Row],[Hide: Baseline kWh]]=\"\",Table_PI[[#This Row],[Hide: Baseline kWh]]=0,ISTEXT(Table_PI[[#This Row],[Hide: Baseline kWh]])),\"\",Table_PI[[#This Row],[Hide: Baseline kWh]])","v":""},{"$f":"IF(OR(Table_PI[[#This Row],[Hide: Baseline kW]]=\"\",Table_PI[[#This Row],[Hide: Baseline kW]]=0,ISTEXT(Table_PI[[#This Row],[Hide: Baseline kW]])),\"\",Table_PI[[#This Row],[Hide: Baseline kW]])","v":""},{"$f":"IF(OR(Table_PI[[#This Row],[Hide: Proposed kWh]]=\"\",Table_PI[[#This Row],[Hide: Proposed kWh]]=0,ISTEXT(Table_PI[[#This Row],[Hide: Proposed kWh]])),\"\",Table_PI[[#This Row],[Hide: Proposed kWh]])","v":""},{"$f":"IF(OR(Table_PI[[#This Row],[Hide: Proposed kW]]=\"\",Table_PI[[#This Row],[Hide: Proposed kW]]=0,ISTEXT(Table_PI[[#This Row],[Hide: Proposed kW]])),\"\",Table_PI[[#This Row],[Hide: Proposed kW]])","v":""},null,null,{"$f":"IF(OR(Table_PI[[#This Row],[Hide: Rebate]]=\"\",Table_PI[[#This Row],[Hide: Rebate]]=0,ISTEXT(Table_PI[[#This Row],[Hide: Rebate]])),\"\",Table_PI[[#This Row],[Hide: Rebate]])","v":""},null,{"$f":"IF(OR(Table_PI[[#This Row],[Hide: Incremental Cost]]=\"\",Table_PI[[#This Row],[Hide: Incremental Cost]]=0,ISTEXT(Table_PI[[#This Row],[Hide: Incremental Cost]])),\"\",Table_PI[[#This Row],[Hide: Incremental Cost]])","v":""},{"$f":"IFERROR(IF(Table_SummaryPI[[#This Row],[Incentive_Customer]]=\"\",\"\",ROUND(Table_SummaryPI[[#This Row],[Incentive_Customer]]/$AM$401*'Customer Information'!$BC$21,2)),0)","v":""},{"$f":"IF(OR(Table_PI[[#This Row],[Annual kWh]]=\"\",Table_PI[[#This Row],[Annual kWh]]=0,ISTEXT(Table_PI[[#This Row],[Annual kWh]])),\"\",Table_PI[[#This Row],[Annual kWh]])","v":""},{"$f":"IF(OR(Table_PI[[#This Row],[Peak kW]]=\"\",Table_PI[[#This Row],[Peak kW]]=0,ISTEXT(Table_PI[[#This Row],[Peak kW]])),\"\",Table_PI[[#This Row],[Peak kW]])","v":""},{"$f":"IF(Table_SummaryPI[[#This Row],[Line No.]]<>\"\",IF(AND(ISNUMBER(FIND(\"Chiller\",Table_SummaryPI[[#This Row],[P_MeasureOption1]],1)),Table_SummaryPI[[#This Row],[ProposedMeasureCategory]]=\"Air-Cooled (Water-Cooled Replacement)\"),$BD$29*Table_SummaryPI[[#This Row],[Size]]*Table_SummaryPI[[#This Row],[Quantity]]*Table_SummaryPI[[#This Row],[EFLHCooling]],\nIF(ISNUMBER(FIND(\"Dishwasher\",Table_SummaryPI[[#This Row],[ProposedMeasureCategory]],1)),$BH$29*Table_SummaryPI[[#This Row],[Quantity]],\nIF(ISNUMBER(FIND(\"Ice Maker\",Table_SummaryPI[[#This Row],[ProposedMeasureCategory]],1)),$BD$31*Table_SummaryPI[[#This Row],[Quantity]],\nIF(ISNUMBER(FIND(\"Spray Valve\",Table_SummaryPI[[#This Row],[ProposedMeasureCategory]],1)),$BH$31*Table_SummaryPI[[#This Row],[Quantity]],\n0)))),\"\")","v":""},{"$f":"IF(OR(Table_PI[[#This Row],[Hide: Electrification kWh]]=\"\",Table_PI[[#This Row],[Hide: Electrification kWh]]=0,ISTEXT(Table_PI[[#This Row],[Hide: Electrification kWh]])),\"\",Table_PI[[#This Row],[Hide: Electrification kWh]])","v":""},{"$f":"IF(OR(Table_PI[[#This Row],[Hide: Electrification GHG]]=\"\",Table_PI[[#This Row],[Hide: Electrification GHG]]=0,ISTEXT(Table_PI[[#This Row],[Hide: Electrification GHG]])),\"\",Table_PI[[#This Row],[Hide: Electrification GHG]])","v":""},{"$f":"IFERROR(IF(Table_SummaryPI[[#This Row],[kWhSavings]]=\"\",\"\",$BH$9*Table_SummaryPI[[#This Row],[kWhSavings]]),0)","v":""},{"$f":"IFERROR(IF(Table_SummaryPI[[#This Row],[kWhSavings]]=\"\",\"\",$BH$14*Table_SummaryPI[[#This Row],[kWhSavings]]),0)","v":""},{"$f":"IFERROR(IF(Table_SummaryPI[[#This Row],[kWhSavings]]=\"\",\"\",$BH$18*Table_SummaryPI[[#This Row],[kWhSavings]]),0)","v":""},{"$f":"IFERROR(IF(Table_SummaryPI[[#This Row],[kWhSavings]]=\"\",\"\",$BH$22*Table_SummaryPI[[#This Row],[kWhSavings]]),0)","v":""}]
[{"$f":"Table_PI[[#This Row],[Line No.]]","v":""},{"$f":"IF(Table_SummaryPI[[#This Row],[MeasureName]]<>\"\",NOT(ISTEXT(Table_PI[[#This Row],[Rebate]])),\"\")","v":""},{"$f":"IF(Table_SummaryPI[[#This Row],[MeassureCategory]]<>\"\",CONCATENATE(Table_SummaryPI[[#This Row],[MeassureCategory]],  \" - \", Table_SummaryPI[[#This Row],[ProposedMeasureCategory]],  \" - \", TEXT(Table_SummaryPI[[#This Row],[Size]],\"#,##0.00\"),\" \",Table_SummaryPI[[#This Row],[SizeUnit]]),\"\")","v":""},{"$f":"SUBSTITUTE(Table_PI[[#This Row],[Measure]],\"     \",\"\",1)","v":""},{"$f":"IF(Table_PI[[#This Row],[List 1]]<>\"\",Table_PI[[#This Row],[List 1]],\"\")","v":""},{"$f":"IF(Table_PI[[#This Row],[List 2]]<>\"\",Table_PI[[#This Row],[List 2]],\"\")","v":""},{"$f":"IF(Table_PI[[#This Row],[List 3]]<>\"\",Table_PI[[#This Row],[List 3]],\"\")","v":""},{"$f":"IF(Table_PI[[#This Row],[Manufacturer]]=\"\",\"\",Table_PI[[#This Row],[Manufacturer]])","v":""},{"$f":"IF(Table_PI[[#This Row],[Model Number]]=\"\",\"\",Table_PI[[#This Row],[Model Number]])","v":""},{"$f":"IF(Table_PI[[#This Row],[Serial Number(s)]]=\"\",\"\",Table_PI[[#This Row],[Serial Number(s)]])","v":""},null,{"$f":"IF(Table_PI[[#This Row],[Size]]=\"\",\"\",Table_PI[[#This Row],[Size]])","v":""},null,null,{"$f":"IF(Table_PI[[#This Row],[Input 1]]<>\"\",Table_PI[[#This Row],[Input 1]],\"\")","v":""},null,null,{"$f":"IF(Table_PI[[#This Row],[Input 2]]<>\"\",Table_PI[[#This Row],[Input 2]],\"\")","v":""},null,null,{"$f":"IF(Table_PI[[#This Row],[Input 3]]<>\"\",Table_PI[[#This Row],[Input 3]],\"\")","v":""},null,null,{"$f":"IF(Table_PI[[#This Row],[Input 4]]<>\"\",Table_PI[[#This Row],[Input 4]],\"\")","v":""},null,null,{"$f":"IF(Table_PI[[#This Row],[Input 4]]<>\"\",Table_PI[[#This Row],[Input 4]],\"\")","v":""},null,null,{"$f":"IF(Table_PI[[#This Row],[Input 4]]<>\"\",Table_PI[[#This Row],[Input 4]],\"\")","v":""},{"$f":"IF(Table_PI[[#This Row],[Quantity]]=\"\",\"\",Table_PI[[#This Row],[Quantity]])","v":""},{"$f":"IF(Table_PI[[#This Row],[Notes]]=\"\",\"\",Table_PI[[#This Row],[Notes]])","v":""},{"$f":"IF(OR(Table_PI[[#This Row],[Hide: Baseline kWh]]=\"\",Table_PI[[#This Row],[Hide: Baseline kWh]]=0,ISTEXT(Table_PI[[#This Row],[Hide: Baseline kWh]])),\"\",Table_PI[[#This Row],[Hide: Baseline kWh]])","v":""},{"$f":"IF(OR(Table_PI[[#This Row],[Hide: Baseline kW]]=\"\",Table_PI[[#This Row],[Hide: Baseline kW]]=0,ISTEXT(Table_PI[[#This Row],[Hide: Baseline kW]])),\"\",Table_PI[[#This Row],[Hide: Baseline kW]])","v":""},{"$f":"IF(OR(Table_PI[[#This Row],[Hide: Proposed kWh]]=\"\",Table_PI[[#This Row],[Hide: Proposed kWh]]=0,ISTEXT(Table_PI[[#This Row],[Hide: Proposed kWh]])),\"\",Table_PI[[#This Row],[Hide: Proposed kWh]])","v":""},{"$f":"IF(OR(Table_PI[[#This Row],[Hide: Proposed kW]]=\"\",Table_PI[[#This Row],[Hide: Proposed kW]]=0,ISTEXT(Table_PI[[#This Row],[Hide: Proposed kW]])),\"\",Table_PI[[#This Row],[Hide: Proposed kW]])","v":""},null,null,{"$f":"IF(OR(Table_PI[[#This Row],[Hide: Rebate]]=\"\",Table_PI[[#This Row],[Hide: Rebate]]=0,ISTEXT(Table_PI[[#This Row],[Hide: Rebate]])),\"\",Table_PI[[#This Row],[Hide: Rebate]])","v":""},null,{"$f":"IF(OR(Table_PI[[#This Row],[Hide: Incremental Cost]]=\"\",Table_PI[[#This Row],[Hide: Incremental Cost]]=0,ISTEXT(Table_PI[[#This Row],[Hide: Incremental Cost]])),\"\",Table_PI[[#This Row],[Hide: Incremental Cost]])","v":""},{"$f":"IFERROR(IF(Table_SummaryPI[[#This Row],[Incentive_Customer]]=\"\",\"\",ROUND(Table_SummaryPI[[#This Row],[Incentive_Customer]]/$AM$401*'Customer Information'!$BC$21,2)),0)","v":""},{"$f":"IF(OR(Table_PI[[#This Row],[Annual kWh]]=\"\",Table_PI[[#This Row],[Annual kWh]]=0,ISTEXT(Table_PI[[#This Row],[Annual kWh]])),\"\",Table_PI[[#This Row],[Annual kWh]])","v":""},{"$f":"IF(OR(Table_PI[[#This Row],[Peak kW]]=\"\",Table_PI[[#This Row],[Peak kW]]=0,ISTEXT(Table_PI[[#This Row],[Peak kW]])),\"\",Table_PI[[#This Row],[Peak kW]])","v":""},{"$f":"IF(Table_SummaryPI[[#This Row],[Line No.]]<>\"\",IF(AND(ISNUMBER(FIND(\"Chiller\",Table_SummaryPI[[#This Row],[P_MeasureOption1]],1)),Table_SummaryPI[[#This Row],[ProposedMeasureCategory]]=\"Air-Cooled (Water-Cooled Replacement)\"),$BD$29*Table_SummaryPI[[#This Row],[Size]]*Table_SummaryPI[[#This Row],[Quantity]]*Table_SummaryPI[[#This Row],[EFLHCooling]],\nIF(ISNUMBER(FIND(\"Dishwasher\",Table_SummaryPI[[#This Row],[ProposedMeasureCategory]],1)),$BH$29*Table_SummaryPI[[#This Row],[Quantity]],\nIF(ISNUMBER(FIND(\"Ice Maker\",Table_SummaryPI[[#This Row],[ProposedMeasureCategory]],1)),$BD$31*Table_SummaryPI[[#This Row],[Quantity]],\nIF(ISNUMBER(FIND(\"Spray Valve\",Table_SummaryPI[[#This Row],[ProposedMeasureCategory]],1)),$BH$31*Table_SummaryPI[[#This Row],[Quantity]],\n0)))),\"\")","v":""},{"$f":"IF(OR(Table_PI[[#This Row],[Hide: Electrification kWh]]=\"\",Table_PI[[#This Row],[Hide: Electrification kWh]]=0,ISTEXT(Table_PI[[#This Row],[Hide: Electrification kWh]])),\"\",Table_PI[[#This Row],[Hide: Electrification kWh]])","v":""},{"$f":"IF(OR(Table_PI[[#This Row],[Hide: Electrification GHG]]=\"\",Table_PI[[#This Row],[Hide: Electrification GHG]]=0,ISTEXT(Table_PI[[#This Row],[Hide: Electrification GHG]])),\"\",Table_PI[[#This Row],[Hide: Electrification GHG]])","v":""},{"$f":"IFERROR(IF(Table_SummaryPI[[#This Row],[kWhSavings]]=\"\",\"\",$BH$9*Table_SummaryPI[[#This Row],[kWhSavings]]),0)","v":""},{"$f":"IFERROR(IF(Table_SummaryPI[[#This Row],[kWhSavings]]=\"\",\"\",$BH$14*Table_SummaryPI[[#This Row],[kWhSavings]]),0)","v":""},{"$f":"IFERROR(IF(Table_SummaryPI[[#This Row],[kWhSavings]]=\"\",\"\",$BH$18*Table_SummaryPI[[#This Row],[kWhSavings]]),0)","v":""},{"$f":"IFERROR(IF(Table_SummaryPI[[#This Row],[kWhSavings]]=\"\",\"\",$BH$22*Table_SummaryPI[[#This Row],[kWhSavings]]),0)","v":""}]
[{"$f":"Table_PI[[#This Row],[Line No.]]","v":""},{"$f":"IF(Table_SummaryPI[[#This Row],[MeasureName]]<>\"\",NOT(ISTEXT(Table_PI[[#This Row],[Rebate]])),\"\")","v":""},{"$f":"IF(Table_SummaryPI[[#This Row],[MeassureCategory]]<>\"\",CONCATENATE(Table_SummaryPI[[#This Row],[MeassureCategory]],  \" - \", Table_SummaryPI[[#This Row],[ProposedMeasureCategory]],  \" - \", TEXT(Table_SummaryPI[[#This Row],[Size]],\"#,##0.00\"),\" \",Table_SummaryPI[[#This Row],[SizeUnit]]),\"\")","v":""},{"$f":"SUBSTITUTE(Table_PI[[#This Row],[Measure]],\"     \",\"\",1)","v":""},{"$f":"IF(Table_PI[[#This Row],[List 1]]<>\"\",Table_PI[[#This Row],[List 1]],\"\")","v":""},{"$f":"IF(Table_PI[[#This Row],[List 2]]<>\"\",Table_PI[[#This Row],[List 2]],\"\")","v":""},{"$f":"IF(Table_PI[[#This Row],[List 3]]<>\"\",Table_PI[[#This Row],[List 3]],\"\")","v":""},{"$f":"IF(Table_PI[[#This Row],[Manufacturer]]=\"\",\"\",Table_PI[[#This Row],[Manufacturer]])","v":""},{"$f":"IF(Table_PI[[#This Row],[Model Number]]=\"\",\"\",Table_PI[[#This Row],[Model Number]])","v":""},{"$f":"IF(Table_PI[[#This Row],[Serial Number(s)]]=\"\",\"\",Table_PI[[#This Row],[Serial Number(s)]])","v":""},null,{"$f":"IF(Table_PI[[#This Row],[Size]]=\"\",\"\",Table_PI[[#This Row],[Size]])","v":""},null,null,{"$f":"IF(Table_PI[[#This Row],[Input 1]]<>\"\",Table_PI[[#This Row],[Input 1]],\"\")","v":""},null,null,{"$f":"IF(Table_PI[[#This Row],[Input 2]]<>\"\",Table_PI[[#This Row],[Input 2]],\"\")","v":""},null,null,{"$f":"IF(Table_PI[[#This Row],[Input 3]]<>\"\",Table_PI[[#This Row],[Input 3]],\"\")","v":""},null,null,{"$f":"IF(Table_PI[[#This Row],[Input 4]]<>\"\",Table_PI[[#This Row],[Input 4]],\"\")","v":""},null,null,{"$f":"IF(Table_PI[[#This Row],[Input 4]]<>\"\",Table_PI[[#This Row],[Input 4]],\"\")","v":""},null,null,{"$f":"IF(Table_PI[[#This Row],[Input 4]]<>\"\",Table_PI[[#This Row],[Input 4]],\"\")","v":""},{"$f":"IF(Table_PI[[#This Row],[Quantity]]=\"\",\"\",Table_PI[[#This Row],[Quantity]])","v":""},{"$f":"IF(Table_PI[[#This Row],[Notes]]=\"\",\"\",Table_PI[[#This Row],[Notes]])","v":""},{"$f":"IF(OR(Table_PI[[#This Row],[Hide: Baseline kWh]]=\"\",Table_PI[[#This Row],[Hide: Baseline kWh]]=0,ISTEXT(Table_PI[[#This Row],[Hide: Baseline kWh]])),\"\",Table_PI[[#This Row],[Hide: Baseline kWh]])","v":""},{"$f":"IF(OR(Table_PI[[#This Row],[Hide: Baseline kW]]=\"\",Table_PI[[#This Row],[Hide: Baseline kW]]=0,ISTEXT(Table_PI[[#This Row],[Hide: Baseline kW]])),\"\",Table_PI[[#This Row],[Hide: Baseline kW]])","v":""},{"$f":"IF(OR(Table_PI[[#This Row],[Hide: Proposed kWh]]=\"\",Table_PI[[#This Row],[Hide: Proposed kWh]]=0,ISTEXT(Table_PI[[#This Row],[Hide: Proposed kWh]])),\"\",Table_PI[[#This Row],[Hide: Proposed kWh]])","v":""},{"$f":"IF(OR(Table_PI[[#This Row],[Hide: Proposed kW]]=\"\",Table_PI[[#This Row],[Hide: Proposed kW]]=0,ISTEXT(Table_PI[[#This Row],[Hide: Proposed kW]])),\"\",Table_PI[[#This Row],[Hide: Proposed kW]])","v":""},null,null,{"$f":"IF(OR(Table_PI[[#This Row],[Hide: Rebate]]=\"\",Table_PI[[#This Row],[Hide: Rebate]]=0,ISTEXT(Table_PI[[#This Row],[Hide: Rebate]])),\"\",Table_PI[[#This Row],[Hide: Rebate]])","v":""},null,{"$f":"IF(OR(Table_PI[[#This Row],[Hide: Incremental Cost]]=\"\",Table_PI[[#This Row],[Hide: Incremental Cost]]=0,ISTEXT(Table_PI[[#This Row],[Hide: Incremental Cost]])),\"\",Table_PI[[#This Row],[Hide: Incremental Cost]])","v":""},{"$f":"IFERROR(IF(Table_SummaryPI[[#This Row],[Incentive_Customer]]=\"\",\"\",ROUND(Table_SummaryPI[[#This Row],[Incentive_Customer]]/$AM$401*'Customer Information'!$BC$21,2)),0)","v":""},{"$f":"IF(OR(Table_PI[[#This Row],[Annual kWh]]=\"\",Table_PI[[#This Row],[Annual kWh]]=0,ISTEXT(Table_PI[[#This Row],[Annual kWh]])),\"\",Table_PI[[#This Row],[Annual kWh]])","v":""},{"$f":"IF(OR(Table_PI[[#This Row],[Peak kW]]=\"\",Table_PI[[#This Row],[Peak kW]]=0,ISTEXT(Table_PI[[#This Row],[Peak kW]])),\"\",Table_PI[[#This Row],[Peak kW]])","v":""},{"$f":"IF(Table_SummaryPI[[#This Row],[Line No.]]<>\"\",IF(AND(ISNUMBER(FIND(\"Chiller\",Table_SummaryPI[[#This Row],[P_MeasureOption1]],1)),Table_SummaryPI[[#This Row],[ProposedMeasureCategory]]=\"Air-Cooled (Water-Cooled Replacement)\"),$BD$29*Table_SummaryPI[[#This Row],[Size]]*Table_SummaryPI[[#This Row],[Quantity]]*Table_SummaryPI[[#This Row],[EFLHCooling]],\nIF(ISNUMBER(FIND(\"Dishwasher\",Table_SummaryPI[[#This Row],[ProposedMeasureCategory]],1)),$BH$29*Table_SummaryPI[[#This Row],[Quantity]],\nIF(ISNUMBER(FIND(\"Ice Maker\",Table_SummaryPI[[#This Row],[ProposedMeasureCategory]],1)),$BD$31*Table_SummaryPI[[#This Row],[Quantity]],\nIF(ISNUMBER(FIND(\"Spray Valve\",Table_SummaryPI[[#This Row],[ProposedMeasureCategory]],1)),$BH$31*Table_SummaryPI[[#This Row],[Quantity]],\n0)))),\"\")","v":""},{"$f":"IF(OR(Table_PI[[#This Row],[Hide: Electrification kWh]]=\"\",Table_PI[[#This Row],[Hide: Electrification kWh]]=0,ISTEXT(Table_PI[[#This Row],[Hide: Electrification kWh]])),\"\",Table_PI[[#This Row],[Hide: Electrification kWh]])","v":""},{"$f":"IF(OR(Table_PI[[#This Row],[Hide: Electrification GHG]]=\"\",Table_PI[[#This Row],[Hide: Electrification GHG]]=0,ISTEXT(Table_PI[[#This Row],[Hide: Electrification GHG]])),\"\",Table_PI[[#This Row],[Hide: Electrification GHG]])","v":""},{"$f":"IFERROR(IF(Table_SummaryPI[[#This Row],[kWhSavings]]=\"\",\"\",$BH$9*Table_SummaryPI[[#This Row],[kWhSavings]]),0)","v":""},{"$f":"IFERROR(IF(Table_SummaryPI[[#This Row],[kWhSavings]]=\"\",\"\",$BH$14*Table_SummaryPI[[#This Row],[kWhSavings]]),0)","v":""},{"$f":"IFERROR(IF(Table_SummaryPI[[#This Row],[kWhSavings]]=\"\",\"\",$BH$18*Table_SummaryPI[[#This Row],[kWhSavings]]),0)","v":""},{"$f":"IFERROR(IF(Table_SummaryPI[[#This Row],[kWhSavings]]=\"\",\"\",$BH$22*Table_SummaryPI[[#This Row],[kWhSavings]]),0)","v":""}]
[{"$f":"Table_PI[[#This Row],[Line No.]]","v":""},{"$f":"IF(Table_SummaryPI[[#This Row],[MeasureName]]<>\"\",NOT(ISTEXT(Table_PI[[#This Row],[Rebate]])),\"\")","v":""},{"$f":"IF(Table_SummaryPI[[#This Row],[MeassureCategory]]<>\"\",CONCATENATE(Table_SummaryPI[[#This Row],[MeassureCategory]],  \" - \", Table_SummaryPI[[#This Row],[ProposedMeasureCategory]],  \" - \", TEXT(Table_SummaryPI[[#This Row],[Size]],\"#,##0.00\"),\" \",Table_SummaryPI[[#This Row],[SizeUnit]]),\"\")","v":""},{"$f":"SUBSTITUTE(Table_PI[[#This Row],[Measure]],\"     \",\"\",1)","v":""},{"$f":"IF(Table_PI[[#This Row],[List 1]]<>\"\",Table_PI[[#This Row],[List 1]],\"\")","v":""},{"$f":"IF(Table_PI[[#This Row],[List 2]]<>\"\",Table_PI[[#This Row],[List 2]],\"\")","v":""},{"$f":"IF(Table_PI[[#This Row],[List 3]]<>\"\",Table_PI[[#This Row],[List 3]],\"\")","v":""},{"$f":"IF(Table_PI[[#This Row],[Manufacturer]]=\"\",\"\",Table_PI[[#This Row],[Manufacturer]])","v":""},{"$f":"IF(Table_PI[[#This Row],[Model Number]]=\"\",\"\",Table_PI[[#This Row],[Model Number]])","v":""},{"$f":"IF(Table_PI[[#This Row],[Serial Number(s)]]=\"\",\"\",Table_PI[[#This Row],[Serial Number(s)]])","v":""},null,{"$f":"IF(Table_PI[[#This Row],[Size]]=\"\",\"\",Table_PI[[#This Row],[Size]])","v":""},null,null,{"$f":"IF(Table_PI[[#This Row],[Input 1]]<>\"\",Table_PI[[#This Row],[Input 1]],\"\")","v":""},null,null,{"$f":"IF(Table_PI[[#This Row],[Input 2]]<>\"\",Table_PI[[#This Row],[Input 2]],\"\")","v":""},null,null,{"$f":"IF(Table_PI[[#This Row],[Input 3]]<>\"\",Table_PI[[#This Row],[Input 3]],\"\")","v":""},null,null,{"$f":"IF(Table_PI[[#This Row],[Input 4]]<>\"\",Table_PI[[#This Row],[Input 4]],\"\")","v":""},null,null,{"$f":"IF(Table_PI[[#This Row],[Input 4]]<>\"\",Table_PI[[#This Row],[Input 4]],\"\")","v":""},null,null,{"$f":"IF(Table_PI[[#This Row],[Input 4]]<>\"\",Table_PI[[#This Row],[Input 4]],\"\")","v":""},{"$f":"IF(Table_PI[[#This Row],[Quantity]]=\"\",\"\",Table_PI[[#This Row],[Quantity]])","v":""},{"$f":"IF(Table_PI[[#This Row],[Notes]]=\"\",\"\",Table_PI[[#This Row],[Notes]])","v":""},{"$f":"IF(OR(Table_PI[[#This Row],[Hide: Baseline kWh]]=\"\",Table_PI[[#This Row],[Hide: Baseline kWh]]=0,ISTEXT(Table_PI[[#This Row],[Hide: Baseline kWh]])),\"\",Table_PI[[#This Row],[Hide: Baseline kWh]])","v":""},{"$f":"IF(OR(Table_PI[[#This Row],[Hide: Baseline kW]]=\"\",Table_PI[[#This Row],[Hide: Baseline kW]]=0,ISTEXT(Table_PI[[#This Row],[Hide: Baseline kW]])),\"\",Table_PI[[#This Row],[Hide: Baseline kW]])","v":""},{"$f":"IF(OR(Table_PI[[#This Row],[Hide: Proposed kWh]]=\"\",Table_PI[[#This Row],[Hide: Proposed kWh]]=0,ISTEXT(Table_PI[[#This Row],[Hide: Proposed kWh]])),\"\",Table_PI[[#This Row],[Hide: Proposed kWh]])","v":""},{"$f":"IF(OR(Table_PI[[#This Row],[Hide: Proposed kW]]=\"\",Table_PI[[#This Row],[Hide: Proposed kW]]=0,ISTEXT(Table_PI[[#This Row],[Hide: Proposed kW]])),\"\",Table_PI[[#This Row],[Hide: Proposed kW]])","v":""},null,null,{"$f":"IF(OR(Table_PI[[#This Row],[Hide: Rebate]]=\"\",Table_PI[[#This Row],[Hide: Rebate]]=0,ISTEXT(Table_PI[[#This Row],[Hide: Rebate]])),\"\",Table_PI[[#This Row],[Hide: Rebate]])","v":""},null,{"$f":"IF(OR(Table_PI[[#This Row],[Hide: Incremental Cost]]=\"\",Table_PI[[#This Row],[Hide: Incremental Cost]]=0,ISTEXT(Table_PI[[#This Row],[Hide: Incremental Cost]])),\"\",Table_PI[[#This Row],[Hide: Incremental Cost]])","v":""},{"$f":"IFERROR(IF(Table_SummaryPI[[#This Row],[Incentive_Customer]]=\"\",\"\",ROUND(Table_SummaryPI[[#This Row],[Incentive_Customer]]/$AM$401*'Customer Information'!$BC$21,2)),0)","v":""},{"$f":"IF(OR(Table_PI[[#This Row],[Annual kWh]]=\"\",Table_PI[[#This Row],[Annual kWh]]=0,ISTEXT(Table_PI[[#This Row],[Annual kWh]])),\"\",Table_PI[[#This Row],[Annual kWh]])","v":""},{"$f":"IF(OR(Table_PI[[#This Row],[Peak kW]]=\"\",Table_PI[[#This Row],[Peak kW]]=0,ISTEXT(Table_PI[[#This Row],[Peak kW]])),\"\",Table_PI[[#This Row],[Peak kW]])","v":""},{"$f":"IF(Table_SummaryPI[[#This Row],[Line No.]]<>\"\",IF(AND(ISNUMBER(FIND(\"Chiller\",Table_SummaryPI[[#This Row],[P_MeasureOption1]],1)),Table_SummaryPI[[#This Row],[ProposedMeasureCategory]]=\"Air-Cooled (Water-Cooled Replacement)\"),$BD$29*Table_SummaryPI[[#This Row],[Size]]*Table_SummaryPI[[#This Row],[Quantity]]*Table_SummaryPI[[#This Row],[EFLHCooling]],\nIF(ISNUMBER(FIND(\"Dishwasher\",Table_SummaryPI[[#This Row],[ProposedMeasureCategory]],1)),$BH$29*Table_SummaryPI[[#This Row],[Quantity]],\nIF(ISNUMBER(FIND(\"Ice Maker\",Table_SummaryPI[[#This Row],[ProposedMeasureCategory]],1)),$BD$31*Table_SummaryPI[[#This Row],[Quantity]],\nIF(ISNUMBER(FIND(\"Spray Valve\",Table_SummaryPI[[#This Row],[ProposedMeasureCategory]],1)),$BH$31*Table_SummaryPI[[#This Row],[Quantity]],\n0)))),\"\")","v":""},{"$f":"IF(OR(Table_PI[[#This Row],[Hide: Electrification kWh]]=\"\",Table_PI[[#This Row],[Hide: Electrification kWh]]=0,ISTEXT(Table_PI[[#This Row],[Hide: Electrification kWh]])),\"\",Table_PI[[#This Row],[Hide: Electrification kWh]])","v":""},{"$f":"IF(OR(Table_PI[[#This Row],[Hide: Electrification GHG]]=\"\",Table_PI[[#This Row],[Hide: Electrification GHG]]=0,ISTEXT(Table_PI[[#This Row],[Hide: Electrification GHG]])),\"\",Table_PI[[#This Row],[Hide: Electrification GHG]])","v":""},{"$f":"IFERROR(IF(Table_SummaryPI[[#This Row],[kWhSavings]]=\"\",\"\",$BH$9*Table_SummaryPI[[#This Row],[kWhSavings]]),0)","v":""},{"$f":"IFERROR(IF(Table_SummaryPI[[#This Row],[kWhSavings]]=\"\",\"\",$BH$14*Table_SummaryPI[[#This Row],[kWhSavings]]),0)","v":""},{"$f":"IFERROR(IF(Table_SummaryPI[[#This Row],[kWhSavings]]=\"\",\"\",$BH$18*Table_SummaryPI[[#This Row],[kWhSavings]]),0)","v":""},{"$f":"IFERROR(IF(Table_SummaryPI[[#This Row],[kWhSavings]]=\"\",\"\",$BH$22*Table_SummaryPI[[#This Row],[kWhSavings]]),0)","v":""}]
[{"$f":"Table_PI[[#This Row],[Line No.]]","v":""},{"$f":"IF(Table_SummaryPI[[#This Row],[MeasureName]]<>\"\",NOT(ISTEXT(Table_PI[[#This Row],[Rebate]])),\"\")","v":""},{"$f":"IF(Table_SummaryPI[[#This Row],[MeassureCategory]]<>\"\",CONCATENATE(Table_SummaryPI[[#This Row],[MeassureCategory]],  \" - \", Table_SummaryPI[[#This Row],[ProposedMeasureCategory]],  \" - \", TEXT(Table_SummaryPI[[#This Row],[Size]],\"#,##0.00\"),\" \",Table_SummaryPI[[#This Row],[SizeUnit]]),\"\")","v":""},{"$f":"SUBSTITUTE(Table_PI[[#This Row],[Measure]],\"     \",\"\",1)","v":""},{"$f":"IF(Table_PI[[#This Row],[List 1]]<>\"\",Table_PI[[#This Row],[List 1]],\"\")","v":""},{"$f":"IF(Table_PI[[#This Row],[List 2]]<>\"\",Table_PI[[#This Row],[List 2]],\"\")","v":""},{"$f":"IF(Table_PI[[#This Row],[List 3]]<>\"\",Table_PI[[#This Row],[List 3]],\"\")","v":""},{"$f":"IF(Table_PI[[#This Row],[Manufacturer]]=\"\",\"\",Table_PI[[#This Row],[Manufacturer]])","v":""},{"$f":"IF(Table_PI[[#This Row],[Model Number]]=\"\",\"\",Table_PI[[#This Row],[Model Number]])","v":""},{"$f":"IF(Table_PI[[#This Row],[Serial Number(s)]]=\"\",\"\",Table_PI[[#This Row],[Serial Number(s)]])","v":""},null,{"$f":"IF(Table_PI[[#This Row],[Size]]=\"\",\"\",Table_PI[[#This Row],[Size]])","v":""},null,null,{"$f":"IF(Table_PI[[#This Row],[Input 1]]<>\"\",Table_PI[[#This Row],[Input 1]],\"\")","v":""},null,null,{"$f":"IF(Table_PI[[#This Row],[Input 2]]<>\"\",Table_PI[[#This Row],[Input 2]],\"\")","v":""},null,null,{"$f":"IF(Table_PI[[#This Row],[Input 3]]<>\"\",Table_PI[[#This Row],[Input 3]],\"\")","v":""},null,null,{"$f":"IF(Table_PI[[#This Row],[Input 4]]<>\"\",Table_PI[[#This Row],[Input 4]],\"\")","v":""},null,null,{"$f":"IF(Table_PI[[#This Row],[Input 4]]<>\"\",Table_PI[[#This Row],[Input 4]],\"\")","v":""},null,null,{"$f":"IF(Table_PI[[#This Row],[Input 4]]<>\"\",Table_PI[[#This Row],[Input 4]],\"\")","v":""},{"$f":"IF(Table_PI[[#This Row],[Quantity]]=\"\",\"\",Table_PI[[#This Row],[Quantity]])","v":""},{"$f":"IF(Table_PI[[#This Row],[Notes]]=\"\",\"\",Table_PI[[#This Row],[Notes]])","v":""},{"$f":"IF(OR(Table_PI[[#This Row],[Hide: Baseline kWh]]=\"\",Table_PI[[#This Row],[Hide: Baseline kWh]]=0,ISTEXT(Table_PI[[#This Row],[Hide: Baseline kWh]])),\"\",Table_PI[[#This Row],[Hide: Baseline kWh]])","v":""},{"$f":"IF(OR(Table_PI[[#This Row],[Hide: Baseline kW]]=\"\",Table_PI[[#This Row],[Hide: Baseline kW]]=0,ISTEXT(Table_PI[[#This Row],[Hide: Baseline kW]])),\"\",Table_PI[[#This Row],[Hide: Baseline kW]])","v":""},{"$f":"IF(OR(Table_PI[[#This Row],[Hide: Proposed kWh]]=\"\",Table_PI[[#This Row],[Hide: Proposed kWh]]=0,ISTEXT(Table_PI[[#This Row],[Hide: Proposed kWh]])),\"\",Table_PI[[#This Row],[Hide: Proposed kWh]])","v":""},{"$f":"IF(OR(Table_PI[[#This Row],[Hide: Proposed kW]]=\"\",Table_PI[[#This Row],[Hide: Proposed kW]]=0,ISTEXT(Table_PI[[#This Row],[Hide: Proposed kW]])),\"\",Table_PI[[#This Row],[Hide: Proposed kW]])","v":""},null,null,{"$f":"IF(OR(Table_PI[[#This Row],[Hide: Rebate]]=\"\",Table_PI[[#This Row],[Hide: Rebate]]=0,ISTEXT(Table_PI[[#This Row],[Hide: Rebate]])),\"\",Table_PI[[#This Row],[Hide: Rebate]])","v":""},null,{"$f":"IF(OR(Table_PI[[#This Row],[Hide: Incremental Cost]]=\"\",Table_PI[[#This Row],[Hide: Incremental Cost]]=0,ISTEXT(Table_PI[[#This Row],[Hide: Incremental Cost]])),\"\",Table_PI[[#This Row],[Hide: Incremental Cost]])","v":""},{"$f":"IFERROR(IF(Table_SummaryPI[[#This Row],[Incentive_Customer]]=\"\",\"\",ROUND(Table_SummaryPI[[#This Row],[Incentive_Customer]]/$AM$401*'Customer Information'!$BC$21,2)),0)","v":""},{"$f":"IF(OR(Table_PI[[#This Row],[Annual kWh]]=\"\",Table_PI[[#This Row],[Annual kWh]]=0,ISTEXT(Table_PI[[#This Row],[Annual kWh]])),\"\",Table_PI[[#This Row],[Annual kWh]])","v":""},{"$f":"IF(OR(Table_PI[[#This Row],[Peak kW]]=\"\",Table_PI[[#This Row],[Peak kW]]=0,ISTEXT(Table_PI[[#This Row],[Peak kW]])),\"\",Table_PI[[#This Row],[Peak kW]])","v":""},{"$f":"IF(Table_SummaryPI[[#This Row],[Line No.]]<>\"\",IF(AND(ISNUMBER(FIND(\"Chiller\",Table_SummaryPI[[#This Row],[P_MeasureOption1]],1)),Table_SummaryPI[[#This Row],[ProposedMeasureCategory]]=\"Air-Cooled (Water-Cooled Replacement)\"),$BD$29*Table_SummaryPI[[#This Row],[Size]]*Table_SummaryPI[[#This Row],[Quantity]]*Table_SummaryPI[[#This Row],[EFLHCooling]],\nIF(ISNUMBER(FIND(\"Dishwasher\",Table_SummaryPI[[#This Row],[ProposedMeasureCategory]],1)),$BH$29*Table_SummaryPI[[#This Row],[Quantity]],\nIF(ISNUMBER(FIND(\"Ice Maker\",Table_SummaryPI[[#This Row],[ProposedMeasureCategory]],1)),$BD$31*Table_SummaryPI[[#This Row],[Quantity]],\nIF(ISNUMBER(FIND(\"Spray Valve\",Table_SummaryPI[[#This Row],[ProposedMeasureCategory]],1)),$BH$31*Table_SummaryPI[[#This Row],[Quantity]],\n0)))),\"\")","v":""},{"$f":"IF(OR(Table_PI[[#This Row],[Hide: Electrification kWh]]=\"\",Table_PI[[#This Row],[Hide: Electrification kWh]]=0,ISTEXT(Table_PI[[#This Row],[Hide: Electrification kWh]])),\"\",Table_PI[[#This Row],[Hide: Electrification kWh]])","v":""},{"$f":"IF(OR(Table_PI[[#This Row],[Hide: Electrification GHG]]=\"\",Table_PI[[#This Row],[Hide: Electrification GHG]]=0,ISTEXT(Table_PI[[#This Row],[Hide: Electrification GHG]])),\"\",Table_PI[[#This Row],[Hide: Electrification GHG]])","v":""},{"$f":"IFERROR(IF(Table_SummaryPI[[#This Row],[kWhSavings]]=\"\",\"\",$BH$9*Table_SummaryPI[[#This Row],[kWhSavings]]),0)","v":""},{"$f":"IFERROR(IF(Table_SummaryPI[[#This Row],[kWhSavings]]=\"\",\"\",$BH$14*Table_SummaryPI[[#This Row],[kWhSavings]]),0)","v":""},{"$f":"IFERROR(IF(Table_SummaryPI[[#This Row],[kWhSavings]]=\"\",\"\",$BH$18*Table_SummaryPI[[#This Row],[kWhSavings]]),0)","v":""},{"$f":"IFERROR(IF(Table_SummaryPI[[#This Row],[kWhSavings]]=\"\",\"\",$BH$22*Table_SummaryPI[[#This Row],[kWhSavings]]),0)","v":""}]
[{"$f":"Table_PI[[#This Row],[Line No.]]","v":""},{"$f":"IF(Table_SummaryPI[[#This Row],[MeasureName]]<>\"\",NOT(ISTEXT(Table_PI[[#This Row],[Rebate]])),\"\")","v":""},{"$f":"IF(Table_SummaryPI[[#This Row],[MeassureCategory]]<>\"\",CONCATENATE(Table_SummaryPI[[#This Row],[MeassureCategory]],  \" - \", Table_SummaryPI[[#This Row],[ProposedMeasureCategory]],  \" - \", TEXT(Table_SummaryPI[[#This Row],[Size]],\"#,##0.00\"),\" \",Table_SummaryPI[[#This Row],[SizeUnit]]),\"\")","v":""},{"$f":"SUBSTITUTE(Table_PI[[#This Row],[Measure]],\"     \",\"\",1)","v":""},{"$f":"IF(Table_PI[[#This Row],[List 1]]<>\"\",Table_PI[[#This Row],[List 1]],\"\")","v":""},{"$f":"IF(Table_PI[[#This Row],[List 2]]<>\"\",Table_PI[[#This Row],[List 2]],\"\")","v":""},{"$f":"IF(Table_PI[[#This Row],[List 3]]<>\"\",Table_PI[[#This Row],[List 3]],\"\")","v":""},{"$f":"IF(Table_PI[[#This Row],[Manufacturer]]=\"\",\"\",Table_PI[[#This Row],[Manufacturer]])","v":""},{"$f":"IF(Table_PI[[#This Row],[Model Number]]=\"\",\"\",Table_PI[[#This Row],[Model Number]])","v":""},{"$f":"IF(Table_PI[[#This Row],[Serial Number(s)]]=\"\",\"\",Table_PI[[#This Row],[Serial Number(s)]])","v":""},null,{"$f":"IF(Table_PI[[#This Row],[Size]]=\"\",\"\",Table_PI[[#This Row],[Size]])","v":""},null,null,{"$f":"IF(Table_PI[[#This Row],[Input 1]]<>\"\",Table_PI[[#This Row],[Input 1]],\"\")","v":""},null,null,{"$f":"IF(Table_PI[[#This Row],[Input 2]]<>\"\",Table_PI[[#This Row],[Input 2]],\"\")","v":""},null,null,{"$f":"IF(Table_PI[[#This Row],[Input 3]]<>\"\",Table_PI[[#This Row],[Input 3]],\"\")","v":""},null,null,{"$f":"IF(Table_PI[[#This Row],[Input 4]]<>\"\",Table_PI[[#This Row],[Input 4]],\"\")","v":""},null,null,{"$f":"IF(Table_PI[[#This Row],[Input 4]]<>\"\",Table_PI[[#This Row],[Input 4]],\"\")","v":""},null,null,{"$f":"IF(Table_PI[[#This Row],[Input 4]]<>\"\",Table_PI[[#This Row],[Input 4]],\"\")","v":""},{"$f":"IF(Table_PI[[#This Row],[Quantity]]=\"\",\"\",Table_PI[[#This Row],[Quantity]])","v":""},{"$f":"IF(Table_PI[[#This Row],[Notes]]=\"\",\"\",Table_PI[[#This Row],[Notes]])","v":""},{"$f":"IF(OR(Table_PI[[#This Row],[Hide: Baseline kWh]]=\"\",Table_PI[[#This Row],[Hide: Baseline kWh]]=0,ISTEXT(Table_PI[[#This Row],[Hide: Baseline kWh]])),\"\",Table_PI[[#This Row],[Hide: Baseline kWh]])","v":""},{"$f":"IF(OR(Table_PI[[#This Row],[Hide: Baseline kW]]=\"\",Table_PI[[#This Row],[Hide: Baseline kW]]=0,ISTEXT(Table_PI[[#This Row],[Hide: Baseline kW]])),\"\",Table_PI[[#This Row],[Hide: Baseline kW]])","v":""},{"$f":"IF(OR(Table_PI[[#This Row],[Hide: Proposed kWh]]=\"\",Table_PI[[#This Row],[Hide: Proposed kWh]]=0,ISTEXT(Table_PI[[#This Row],[Hide: Proposed kWh]])),\"\",Table_PI[[#This Row],[Hide: Proposed kWh]])","v":""},{"$f":"IF(OR(Table_PI[[#This Row],[Hide: Proposed kW]]=\"\",Table_PI[[#This Row],[Hide: Proposed kW]]=0,ISTEXT(Table_PI[[#This Row],[Hide: Proposed kW]])),\"\",Table_PI[[#This Row],[Hide: Proposed kW]])","v":""},null,null,{"$f":"IF(OR(Table_PI[[#This Row],[Hide: Rebate]]=\"\",Table_PI[[#This Row],[Hide: Rebate]]=0,ISTEXT(Table_PI[[#This Row],[Hide: Rebate]])),\"\",Table_PI[[#This Row],[Hide: Rebate]])","v":""},null,{"$f":"IF(OR(Table_PI[[#This Row],[Hide: Incremental Cost]]=\"\",Table_PI[[#This Row],[Hide: Incremental Cost]]=0,ISTEXT(Table_PI[[#This Row],[Hide: Incremental Cost]])),\"\",Table_PI[[#This Row],[Hide: Incremental Cost]])","v":""},{"$f":"IFERROR(IF(Table_SummaryPI[[#This Row],[Incentive_Customer]]=\"\",\"\",ROUND(Table_SummaryPI[[#This Row],[Incentive_Customer]]/$AM$401*'Customer Information'!$BC$21,2)),0)","v":""},{"$f":"IF(OR(Table_PI[[#This Row],[Annual kWh]]=\"\",Table_PI[[#This Row],[Annual kWh]]=0,ISTEXT(Table_PI[[#This Row],[Annual kWh]])),\"\",Table_PI[[#This Row],[Annual kWh]])","v":""},{"$f":"IF(OR(Table_PI[[#This Row],[Peak kW]]=\"\",Table_PI[[#This Row],[Peak kW]]=0,ISTEXT(Table_PI[[#This Row],[Peak kW]])),\"\",Table_PI[[#This Row],[Peak kW]])","v":""},{"$f":"IF(Table_SummaryPI[[#This Row],[Line No.]]<>\"\",IF(AND(ISNUMBER(FIND(\"Chiller\",Table_SummaryPI[[#This Row],[P_MeasureOption1]],1)),Table_SummaryPI[[#This Row],[ProposedMeasureCategory]]=\"Air-Cooled (Water-Cooled Replacement)\"),$BD$29*Table_SummaryPI[[#This Row],[Size]]*Table_SummaryPI[[#This Row],[Quantity]]*Table_SummaryPI[[#This Row],[EFLHCooling]],\nIF(ISNUMBER(FIND(\"Dishwasher\",Table_SummaryPI[[#This Row],[ProposedMeasureCategory]],1)),$BH$29*Table_SummaryPI[[#This Row],[Quantity]],\nIF(ISNUMBER(FIND(\"Ice Maker\",Table_SummaryPI[[#This Row],[ProposedMeasureCategory]],1)),$BD$31*Table_SummaryPI[[#This Row],[Quantity]],\nIF(ISNUMBER(FIND(\"Spray Valve\",Table_SummaryPI[[#This Row],[ProposedMeasureCategory]],1)),$BH$31*Table_SummaryPI[[#This Row],[Quantity]],\n0)))),\"\")","v":""},{"$f":"IF(OR(Table_PI[[#This Row],[Hide: Electrification kWh]]=\"\",Table_PI[[#This Row],[Hide: Electrification kWh]]=0,ISTEXT(Table_PI[[#This Row],[Hide: Electrification kWh]])),\"\",Table_PI[[#This Row],[Hide: Electrification kWh]])","v":""},{"$f":"IF(OR(Table_PI[[#This Row],[Hide: Electrification GHG]]=\"\",Table_PI[[#This Row],[Hide: Electrification GHG]]=0,ISTEXT(Table_PI[[#This Row],[Hide: Electrification GHG]])),\"\",Table_PI[[#This Row],[Hide: Electrification GHG]])","v":""},{"$f":"IFERROR(IF(Table_SummaryPI[[#This Row],[kWhSavings]]=\"\",\"\",$BH$9*Table_SummaryPI[[#This Row],[kWhSavings]]),0)","v":""},{"$f":"IFERROR(IF(Table_SummaryPI[[#This Row],[kWhSavings]]=\"\",\"\",$BH$14*Table_SummaryPI[[#This Row],[kWhSavings]]),0)","v":""},{"$f":"IFERROR(IF(Table_SummaryPI[[#This Row],[kWhSavings]]=\"\",\"\",$BH$18*Table_SummaryPI[[#This Row],[kWhSavings]]),0)","v":""},{"$f":"IFERROR(IF(Table_SummaryPI[[#This Row],[kWhSavings]]=\"\",\"\",$BH$22*Table_SummaryPI[[#This Row],[kWhSavings]]),0)","v":""}]
[{"$f":"Table_PI[[#This Row],[Line No.]]","v":""},{"$f":"IF(Table_SummaryPI[[#This Row],[MeasureName]]<>\"\",NOT(ISTEXT(Table_PI[[#This Row],[Rebate]])),\"\")","v":""},{"$f":"IF(Table_SummaryPI[[#This Row],[MeassureCategory]]<>\"\",CONCATENATE(Table_SummaryPI[[#This Row],[MeassureCategory]],  \" - \", Table_SummaryPI[[#This Row],[ProposedMeasureCategory]],  \" - \", TEXT(Table_SummaryPI[[#This Row],[Size]],\"#,##0.00\"),\" \",Table_SummaryPI[[#This Row],[SizeUnit]]),\"\")","v":""},{"$f":"SUBSTITUTE(Table_PI[[#This Row],[Measure]],\"     \",\"\",1)","v":""},{"$f":"IF(Table_PI[[#This Row],[List 1]]<>\"\",Table_PI[[#This Row],[List 1]],\"\")","v":""},{"$f":"IF(Table_PI[[#This Row],[List 2]]<>\"\",Table_PI[[#This Row],[List 2]],\"\")","v":""},{"$f":"IF(Table_PI[[#This Row],[List 3]]<>\"\",Table_PI[[#This Row],[List 3]],\"\")","v":""},{"$f":"IF(Table_PI[[#This Row],[Manufacturer]]=\"\",\"\",Table_PI[[#This Row],[Manufacturer]])","v":""},{"$f":"IF(Table_PI[[#This Row],[Model Number]]=\"\",\"\",Table_PI[[#This Row],[Model Number]])","v":""},{"$f":"IF(Table_PI[[#This Row],[Serial Number(s)]]=\"\",\"\",Table_PI[[#This Row],[Serial Number(s)]])","v":""},null,{"$f":"IF(Table_PI[[#This Row],[Size]]=\"\",\"\",Table_PI[[#This Row],[Size]])","v":""},null,null,{"$f":"IF(Table_PI[[#This Row],[Input 1]]<>\"\",Table_PI[[#This Row],[Input 1]],\"\")","v":""},null,null,{"$f":"IF(Table_PI[[#This Row],[Input 2]]<>\"\",Table_PI[[#This Row],[Input 2]],\"\")","v":""},null,null,{"$f":"IF(Table_PI[[#This Row],[Input 3]]<>\"\",Table_PI[[#This Row],[Input 3]],\"\")","v":""},null,null,{"$f":"IF(Table_PI[[#This Row],[Input 4]]<>\"\",Table_PI[[#This Row],[Input 4]],\"\")","v":""},null,null,{"$f":"IF(Table_PI[[#This Row],[Input 4]]<>\"\",Table_PI[[#This Row],[Input 4]],\"\")","v":""},null,null,{"$f":"IF(Table_PI[[#This Row],[Input 4]]<>\"\",Table_PI[[#This Row],[Input 4]],\"\")","v":""},{"$f":"IF(Table_PI[[#This Row],[Quantity]]=\"\",\"\",Table_PI[[#This Row],[Quantity]])","v":""},{"$f":"IF(Table_PI[[#This Row],[Notes]]=\"\",\"\",Table_PI[[#This Row],[Notes]])","v":""},{"$f":"IF(OR(Table_PI[[#This Row],[Hide: Baseline kWh]]=\"\",Table_PI[[#This Row],[Hide: Baseline kWh]]=0,ISTEXT(Table_PI[[#This Row],[Hide: Baseline kWh]])),\"\",Table_PI[[#This Row],[Hide: Baseline kWh]])","v":""},{"$f":"IF(OR(Table_PI[[#This Row],[Hide: Baseline kW]]=\"\",Table_PI[[#This Row],[Hide: Baseline kW]]=0,ISTEXT(Table_PI[[#This Row],[Hide: Baseline kW]])),\"\",Table_PI[[#This Row],[Hide: Baseline kW]])","v":""},{"$f":"IF(OR(Table_PI[[#This Row],[Hide: Proposed kWh]]=\"\",Table_PI[[#This Row],[Hide: Proposed kWh]]=0,ISTEXT(Table_PI[[#This Row],[Hide: Proposed kWh]])),\"\",Table_PI[[#This Row],[Hide: Proposed kWh]])","v":""},{"$f":"IF(OR(Table_PI[[#This Row],[Hide: Proposed kW]]=\"\",Table_PI[[#This Row],[Hide: Proposed kW]]=0,ISTEXT(Table_PI[[#This Row],[Hide: Proposed kW]])),\"\",Table_PI[[#This Row],[Hide: Proposed kW]])","v":""},null,null,{"$f":"IF(OR(Table_PI[[#This Row],[Hide: Rebate]]=\"\",Table_PI[[#This Row],[Hide: Rebate]]=0,ISTEXT(Table_PI[[#This Row],[Hide: Rebate]])),\"\",Table_PI[[#This Row],[Hide: Rebate]])","v":""},null,{"$f":"IF(OR(Table_PI[[#This Row],[Hide: Incremental Cost]]=\"\",Table_PI[[#This Row],[Hide: Incremental Cost]]=0,ISTEXT(Table_PI[[#This Row],[Hide: Incremental Cost]])),\"\",Table_PI[[#This Row],[Hide: Incremental Cost]])","v":""},{"$f":"IFERROR(IF(Table_SummaryPI[[#This Row],[Incentive_Customer]]=\"\",\"\",ROUND(Table_SummaryPI[[#This Row],[Incentive_Customer]]/$AM$401*'Customer Information'!$BC$21,2)),0)","v":""},{"$f":"IF(OR(Table_PI[[#This Row],[Annual kWh]]=\"\",Table_PI[[#This Row],[Annual kWh]]=0,ISTEXT(Table_PI[[#This Row],[Annual kWh]])),\"\",Table_PI[[#This Row],[Annual kWh]])","v":""},{"$f":"IF(OR(Table_PI[[#This Row],[Peak kW]]=\"\",Table_PI[[#This Row],[Peak kW]]=0,ISTEXT(Table_PI[[#This Row],[Peak kW]])),\"\",Table_PI[[#This Row],[Peak kW]])","v":""},{"$f":"IF(Table_SummaryPI[[#This Row],[Line No.]]<>\"\",IF(AND(ISNUMBER(FIND(\"Chiller\",Table_SummaryPI[[#This Row],[P_MeasureOption1]],1)),Table_SummaryPI[[#This Row],[ProposedMeasureCategory]]=\"Air-Cooled (Water-Cooled Replacement)\"),$BD$29*Table_SummaryPI[[#This Row],[Size]]*Table_SummaryPI[[#This Row],[Quantity]]*Table_SummaryPI[[#This Row],[EFLHCooling]],\nIF(ISNUMBER(FIND(\"Dishwasher\",Table_SummaryPI[[#This Row],[ProposedMeasureCategory]],1)),$BH$29*Table_SummaryPI[[#This Row],[Quantity]],\nIF(ISNUMBER(FIND(\"Ice Maker\",Table_SummaryPI[[#This Row],[ProposedMeasureCategory]],1)),$BD$31*Table_SummaryPI[[#This Row],[Quantity]],\nIF(ISNUMBER(FIND(\"Spray Valve\",Table_SummaryPI[[#This Row],[ProposedMeasureCategory]],1)),$BH$31*Table_SummaryPI[[#This Row],[Quantity]],\n0)))),\"\")","v":""},{"$f":"IF(OR(Table_PI[[#This Row],[Hide: Electrification kWh]]=\"\",Table_PI[[#This Row],[Hide: Electrification kWh]]=0,ISTEXT(Table_PI[[#This Row],[Hide: Electrification kWh]])),\"\",Table_PI[[#This Row],[Hide: Electrification kWh]])","v":""},{"$f":"IF(OR(Table_PI[[#This Row],[Hide: Electrification GHG]]=\"\",Table_PI[[#This Row],[Hide: Electrification GHG]]=0,ISTEXT(Table_PI[[#This Row],[Hide: Electrification GHG]])),\"\",Table_PI[[#This Row],[Hide: Electrification GHG]])","v":""},{"$f":"IFERROR(IF(Table_SummaryPI[[#This Row],[kWhSavings]]=\"\",\"\",$BH$9*Table_SummaryPI[[#This Row],[kWhSavings]]),0)","v":""},{"$f":"IFERROR(IF(Table_SummaryPI[[#This Row],[kWhSavings]]=\"\",\"\",$BH$14*Table_SummaryPI[[#This Row],[kWhSavings]]),0)","v":""},{"$f":"IFERROR(IF(Table_SummaryPI[[#This Row],[kWhSavings]]=\"\",\"\",$BH$18*Table_SummaryPI[[#This Row],[kWhSavings]]),0)","v":""},{"$f":"IFERROR(IF(Table_SummaryPI[[#This Row],[kWhSavings]]=\"\",\"\",$BH$22*Table_SummaryPI[[#This Row],[kWhSavings]]),0)","v":""}]
[{"$f":"Table_PI[[#This Row],[Line No.]]","v":""},{"$f":"IF(Table_SummaryPI[[#This Row],[MeasureName]]<>\"\",NOT(ISTEXT(Table_PI[[#This Row],[Rebate]])),\"\")","v":""},{"$f":"IF(Table_SummaryPI[[#This Row],[MeassureCategory]]<>\"\",CONCATENATE(Table_SummaryPI[[#This Row],[MeassureCategory]],  \" - \", Table_SummaryPI[[#This Row],[ProposedMeasureCategory]],  \" - \", TEXT(Table_SummaryPI[[#This Row],[Size]],\"#,##0.00\"),\" \",Table_SummaryPI[[#This Row],[SizeUnit]]),\"\")","v":""},{"$f":"SUBSTITUTE(Table_PI[[#This Row],[Measure]],\"     \",\"\",1)","v":""},{"$f":"IF(Table_PI[[#This Row],[List 1]]<>\"\",Table_PI[[#This Row],[List 1]],\"\")","v":""},{"$f":"IF(Table_PI[[#This Row],[List 2]]<>\"\",Table_PI[[#This Row],[List 2]],\"\")","v":""},{"$f":"IF(Table_PI[[#This Row],[List 3]]<>\"\",Table_PI[[#This Row],[List 3]],\"\")","v":""},{"$f":"IF(Table_PI[[#This Row],[Manufacturer]]=\"\",\"\",Table_PI[[#This Row],[Manufacturer]])","v":""},{"$f":"IF(Table_PI[[#This Row],[Model Number]]=\"\",\"\",Table_PI[[#This Row],[Model Number]])","v":""},{"$f":"IF(Table_PI[[#This Row],[Serial Number(s)]]=\"\",\"\",Table_PI[[#This Row],[Serial Number(s)]])","v":""},null,{"$f":"IF(Table_PI[[#This Row],[Size]]=\"\",\"\",Table_PI[[#This Row],[Size]])","v":""},null,null,{"$f":"IF(Table_PI[[#This Row],[Input 1]]<>\"\",Table_PI[[#This Row],[Input 1]],\"\")","v":""},null,null,{"$f":"IF(Table_PI[[#This Row],[Input 2]]<>\"\",Table_PI[[#This Row],[Input 2]],\"\")","v":""},null,null,{"$f":"IF(Table_PI[[#This Row],[Input 3]]<>\"\",Table_PI[[#This Row],[Input 3]],\"\")","v":""},null,null,{"$f":"IF(Table_PI[[#This Row],[Input 4]]<>\"\",Table_PI[[#This Row],[Input 4]],\"\")","v":""},null,null,{"$f":"IF(Table_PI[[#This Row],[Input 4]]<>\"\",Table_PI[[#This Row],[Input 4]],\"\")","v":""},null,null,{"$f":"IF(Table_PI[[#This Row],[Input 4]]<>\"\",Table_PI[[#This Row],[Input 4]],\"\")","v":""},{"$f":"IF(Table_PI[[#This Row],[Quantity]]=\"\",\"\",Table_PI[[#This Row],[Quantity]])","v":""},{"$f":"IF(Table_PI[[#This Row],[Notes]]=\"\",\"\",Table_PI[[#This Row],[Notes]])","v":""},{"$f":"IF(OR(Table_PI[[#This Row],[Hide: Baseline kWh]]=\"\",Table_PI[[#This Row],[Hide: Baseline kWh]]=0,ISTEXT(Table_PI[[#This Row],[Hide: Baseline kWh]])),\"\",Table_PI[[#This Row],[Hide: Baseline kWh]])","v":""},{"$f":"IF(OR(Table_PI[[#This Row],[Hide: Baseline kW]]=\"\",Table_PI[[#This Row],[Hide: Baseline kW]]=0,ISTEXT(Table_PI[[#This Row],[Hide: Baseline kW]])),\"\",Table_PI[[#This Row],[Hide: Baseline kW]])","v":""},{"$f":"IF(OR(Table_PI[[#This Row],[Hide: Proposed kWh]]=\"\",Table_PI[[#This Row],[Hide: Proposed kWh]]=0,ISTEXT(Table_PI[[#This Row],[Hide: Proposed kWh]])),\"\",Table_PI[[#This Row],[Hide: Proposed kWh]])","v":""},{"$f":"IF(OR(Table_PI[[#This Row],[Hide: Proposed kW]]=\"\",Table_PI[[#This Row],[Hide: Proposed kW]]=0,ISTEXT(Table_PI[[#This Row],[Hide: Proposed kW]])),\"\",Table_PI[[#This Row],[Hide: Proposed kW]])","v":""},null,null,{"$f":"IF(OR(Table_PI[[#This Row],[Hide: Rebate]]=\"\",Table_PI[[#This Row],[Hide: Rebate]]=0,ISTEXT(Table_PI[[#This Row],[Hide: Rebate]])),\"\",Table_PI[[#This Row],[Hide: Rebate]])","v":""},null,{"$f":"IF(OR(Table_PI[[#This Row],[Hide: Incremental Cost]]=\"\",Table_PI[[#This Row],[Hide: Incremental Cost]]=0,ISTEXT(Table_PI[[#This Row],[Hide: Incremental Cost]])),\"\",Table_PI[[#This Row],[Hide: Incremental Cost]])","v":""},{"$f":"IFERROR(IF(Table_SummaryPI[[#This Row],[Incentive_Customer]]=\"\",\"\",ROUND(Table_SummaryPI[[#This Row],[Incentive_Customer]]/$AM$401*'Customer Information'!$BC$21,2)),0)","v":""},{"$f":"IF(OR(Table_PI[[#This Row],[Annual kWh]]=\"\",Table_PI[[#This Row],[Annual kWh]]=0,ISTEXT(Table_PI[[#This Row],[Annual kWh]])),\"\",Table_PI[[#This Row],[Annual kWh]])","v":""},{"$f":"IF(OR(Table_PI[[#This Row],[Peak kW]]=\"\",Table_PI[[#This Row],[Peak kW]]=0,ISTEXT(Table_PI[[#This Row],[Peak kW]])),\"\",Table_PI[[#This Row],[Peak kW]])","v":""},{"$f":"IF(Table_SummaryPI[[#This Row],[Line No.]]<>\"\",IF(AND(ISNUMBER(FIND(\"Chiller\",Table_SummaryPI[[#This Row],[P_MeasureOption1]],1)),Table_SummaryPI[[#This Row],[ProposedMeasureCategory]]=\"Air-Cooled (Water-Cooled Replacement)\"),$BD$29*Table_SummaryPI[[#This Row],[Size]]*Table_SummaryPI[[#This Row],[Quantity]]*Table_SummaryPI[[#This Row],[EFLHCooling]],\nIF(ISNUMBER(FIND(\"Dishwasher\",Table_SummaryPI[[#This Row],[ProposedMeasureCategory]],1)),$BH$29*Table_SummaryPI[[#This Row],[Quantity]],\nIF(ISNUMBER(FIND(\"Ice Maker\",Table_SummaryPI[[#This Row],[ProposedMeasureCategory]],1)),$BD$31*Table_SummaryPI[[#This Row],[Quantity]],\nIF(ISNUMBER(FIND(\"Spray Valve\",Table_SummaryPI[[#This Row],[ProposedMeasureCategory]],1)),$BH$31*Table_SummaryPI[[#This Row],[Quantity]],\n0)))),\"\")","v":""},{"$f":"IF(OR(Table_PI[[#This Row],[Hide: Electrification kWh]]=\"\",Table_PI[[#This Row],[Hide: Electrification kWh]]=0,ISTEXT(Table_PI[[#This Row],[Hide: Electrification kWh]])),\"\",Table_PI[[#This Row],[Hide: Electrification kWh]])","v":""},{"$f":"IF(OR(Table_PI[[#This Row],[Hide: Electrification GHG]]=\"\",Table_PI[[#This Row],[Hide: Electrification GHG]]=0,ISTEXT(Table_PI[[#This Row],[Hide: Electrification GHG]])),\"\",Table_PI[[#This Row],[Hide: Electrification GHG]])","v":""},{"$f":"IFERROR(IF(Table_SummaryPI[[#This Row],[kWhSavings]]=\"\",\"\",$BH$9*Table_SummaryPI[[#This Row],[kWhSavings]]),0)","v":""},{"$f":"IFERROR(IF(Table_SummaryPI[[#This Row],[kWhSavings]]=\"\",\"\",$BH$14*Table_SummaryPI[[#This Row],[kWhSavings]]),0)","v":""},{"$f":"IFERROR(IF(Table_SummaryPI[[#This Row],[kWhSavings]]=\"\",\"\",$BH$18*Table_SummaryPI[[#This Row],[kWhSavings]]),0)","v":""},{"$f":"IFERROR(IF(Table_SummaryPI[[#This Row],[kWhSavings]]=\"\",\"\",$BH$22*Table_SummaryPI[[#This Row],[kWhSavings]]),0)","v":""}]
[{"$f":"Table_PI[[#This Row],[Line No.]]","v":""},{"$f":"IF(Table_SummaryPI[[#This Row],[MeasureName]]<>\"\",NOT(ISTEXT(Table_PI[[#This Row],[Rebate]])),\"\")","v":""},{"$f":"IF(Table_SummaryPI[[#This Row],[MeassureCategory]]<>\"\",CONCATENATE(Table_SummaryPI[[#This Row],[MeassureCategory]],  \" - \", Table_SummaryPI[[#This Row],[ProposedMeasureCategory]],  \" - \", TEXT(Table_SummaryPI[[#This Row],[Size]],\"#,##0.00\"),\" \",Table_SummaryPI[[#This Row],[SizeUnit]]),\"\")","v":""},{"$f":"SUBSTITUTE(Table_PI[[#This Row],[Measure]],\"     \",\"\",1)","v":""},{"$f":"IF(Table_PI[[#This Row],[List 1]]<>\"\",Table_PI[[#This Row],[List 1]],\"\")","v":""},{"$f":"IF(Table_PI[[#This Row],[List 2]]<>\"\",Table_PI[[#This Row],[List 2]],\"\")","v":""},{"$f":"IF(Table_PI[[#This Row],[List 3]]<>\"\",Table_PI[[#This Row],[List 3]],\"\")","v":""},{"$f":"IF(Table_PI[[#This Row],[Manufacturer]]=\"\",\"\",Table_PI[[#This Row],[Manufacturer]])","v":""},{"$f":"IF(Table_PI[[#This Row],[Model Number]]=\"\",\"\",Table_PI[[#This Row],[Model Number]])","v":""},{"$f":"IF(Table_PI[[#This Row],[Serial Number(s)]]=\"\",\"\",Table_PI[[#This Row],[Serial Number(s)]])","v":""},null,{"$f":"IF(Table_PI[[#This Row],[Size]]=\"\",\"\",Table_PI[[#This Row],[Size]])","v":""},null,null,{"$f":"IF(Table_PI[[#This Row],[Input 1]]<>\"\",Table_PI[[#This Row],[Input 1]],\"\")","v":""},null,null,{"$f":"IF(Table_PI[[#This Row],[Input 2]]<>\"\",Table_PI[[#This Row],[Input 2]],\"\")","v":""},null,null,{"$f":"IF(Table_PI[[#This Row],[Input 3]]<>\"\",Table_PI[[#This Row],[Input 3]],\"\")","v":""},null,null,{"$f":"IF(Table_PI[[#This Row],[Input 4]]<>\"\",Table_PI[[#This Row],[Input 4]],\"\")","v":""},null,null,{"$f":"IF(Table_PI[[#This Row],[Input 4]]<>\"\",Table_PI[[#This Row],[Input 4]],\"\")","v":""},null,null,{"$f":"IF(Table_PI[[#This Row],[Input 4]]<>\"\",Table_PI[[#This Row],[Input 4]],\"\")","v":""},{"$f":"IF(Table_PI[[#This Row],[Quantity]]=\"\",\"\",Table_PI[[#This Row],[Quantity]])","v":""},{"$f":"IF(Table_PI[[#This Row],[Notes]]=\"\",\"\",Table_PI[[#This Row],[Notes]])","v":""},{"$f":"IF(OR(Table_PI[[#This Row],[Hide: Baseline kWh]]=\"\",Table_PI[[#This Row],[Hide: Baseline kWh]]=0,ISTEXT(Table_PI[[#This Row],[Hide: Baseline kWh]])),\"\",Table_PI[[#This Row],[Hide: Baseline kWh]])","v":""},{"$f":"IF(OR(Table_PI[[#This Row],[Hide: Baseline kW]]=\"\",Table_PI[[#This Row],[Hide: Baseline kW]]=0,ISTEXT(Table_PI[[#This Row],[Hide: Baseline kW]])),\"\",Table_PI[[#This Row],[Hide: Baseline kW]])","v":""},{"$f":"IF(OR(Table_PI[[#This Row],[Hide: Proposed kWh]]=\"\",Table_PI[[#This Row],[Hide: Proposed kWh]]=0,ISTEXT(Table_PI[[#This Row],[Hide: Proposed kWh]])),\"\",Table_PI[[#This Row],[Hide: Proposed kWh]])","v":""},{"$f":"IF(OR(Table_PI[[#This Row],[Hide: Proposed kW]]=\"\",Table_PI[[#This Row],[Hide: Proposed kW]]=0,ISTEXT(Table_PI[[#This Row],[Hide: Proposed kW]])),\"\",Table_PI[[#This Row],[Hide: Proposed kW]])","v":""},null,null,{"$f":"IF(OR(Table_PI[[#This Row],[Hide: Rebate]]=\"\",Table_PI[[#This Row],[Hide: Rebate]]=0,ISTEXT(Table_PI[[#This Row],[Hide: Rebate]])),\"\",Table_PI[[#This Row],[Hide: Rebate]])","v":""},null,{"$f":"IF(OR(Table_PI[[#This Row],[Hide: Incremental Cost]]=\"\",Table_PI[[#This Row],[Hide: Incremental Cost]]=0,ISTEXT(Table_PI[[#This Row],[Hide: Incremental Cost]])),\"\",Table_PI[[#This Row],[Hide: Incremental Cost]])","v":""},{"$f":"IFERROR(IF(Table_SummaryPI[[#This Row],[Incentive_Customer]]=\"\",\"\",ROUND(Table_SummaryPI[[#This Row],[Incentive_Customer]]/$AM$401*'Customer Information'!$BC$21,2)),0)","v":""},{"$f":"IF(OR(Table_PI[[#This Row],[Annual kWh]]=\"\",Table_PI[[#This Row],[Annual kWh]]=0,ISTEXT(Table_PI[[#This Row],[Annual kWh]])),\"\",Table_PI[[#This Row],[Annual kWh]])","v":""},{"$f":"IF(OR(Table_PI[[#This Row],[Peak kW]]=\"\",Table_PI[[#This Row],[Peak kW]]=0,ISTEXT(Table_PI[[#This Row],[Peak kW]])),\"\",Table_PI[[#This Row],[Peak kW]])","v":""},{"$f":"IF(Table_SummaryPI[[#This Row],[Line No.]]<>\"\",IF(AND(ISNUMBER(FIND(\"Chiller\",Table_SummaryPI[[#This Row],[P_MeasureOption1]],1)),Table_SummaryPI[[#This Row],[ProposedMeasureCategory]]=\"Air-Cooled (Water-Cooled Replacement)\"),$BD$29*Table_SummaryPI[[#This Row],[Size]]*Table_SummaryPI[[#This Row],[Quantity]]*Table_SummaryPI[[#This Row],[EFLHCooling]],\nIF(ISNUMBER(FIND(\"Dishwasher\",Table_SummaryPI[[#This Row],[ProposedMeasureCategory]],1)),$BH$29*Table_SummaryPI[[#This Row],[Quantity]],\nIF(ISNUMBER(FIND(\"Ice Maker\",Table_SummaryPI[[#This Row],[ProposedMeasureCategory]],1)),$BD$31*Table_SummaryPI[[#This Row],[Quantity]],\nIF(ISNUMBER(FIND(\"Spray Valve\",Table_SummaryPI[[#This Row],[ProposedMeasureCategory]],1)),$BH$31*Table_SummaryPI[[#This Row],[Quantity]],\n0)))),\"\")","v":""},{"$f":"IF(OR(Table_PI[[#This Row],[Hide: Electrification kWh]]=\"\",Table_PI[[#This Row],[Hide: Electrification kWh]]=0,ISTEXT(Table_PI[[#This Row],[Hide: Electrification kWh]])),\"\",Table_PI[[#This Row],[Hide: Electrification kWh]])","v":""},{"$f":"IF(OR(Table_PI[[#This Row],[Hide: Electrification GHG]]=\"\",Table_PI[[#This Row],[Hide: Electrification GHG]]=0,ISTEXT(Table_PI[[#This Row],[Hide: Electrification GHG]])),\"\",Table_PI[[#This Row],[Hide: Electrification GHG]])","v":""},{"$f":"IFERROR(IF(Table_SummaryPI[[#This Row],[kWhSavings]]=\"\",\"\",$BH$9*Table_SummaryPI[[#This Row],[kWhSavings]]),0)","v":""},{"$f":"IFERROR(IF(Table_SummaryPI[[#This Row],[kWhSavings]]=\"\",\"\",$BH$14*Table_SummaryPI[[#This Row],[kWhSavings]]),0)","v":""},{"$f":"IFERROR(IF(Table_SummaryPI[[#This Row],[kWhSavings]]=\"\",\"\",$BH$18*Table_SummaryPI[[#This Row],[kWhSavings]]),0)","v":""},{"$f":"IFERROR(IF(Table_SummaryPI[[#This Row],[kWhSavings]]=\"\",\"\",$BH$22*Table_SummaryPI[[#This Row],[kWhSavings]]),0)","v":""}]
[{"$f":"Table_PI[[#This Row],[Line No.]]","v":""},{"$f":"IF(Table_SummaryPI[[#This Row],[MeasureName]]<>\"\",NOT(ISTEXT(Table_PI[[#This Row],[Rebate]])),\"\")","v":""},{"$f":"IF(Table_SummaryPI[[#This Row],[MeassureCategory]]<>\"\",CONCATENATE(Table_SummaryPI[[#This Row],[MeassureCategory]],  \" - \", Table_SummaryPI[[#This Row],[ProposedMeasureCategory]],  \" - \", TEXT(Table_SummaryPI[[#This Row],[Size]],\"#,##0.00\"),\" \",Table_SummaryPI[[#This Row],[SizeUnit]]),\"\")","v":""},{"$f":"SUBSTITUTE(Table_PI[[#This Row],[Measure]],\"     \",\"\",1)","v":""},{"$f":"IF(Table_PI[[#This Row],[List 1]]<>\"\",Table_PI[[#This Row],[List 1]],\"\")","v":""},{"$f":"IF(Table_PI[[#This Row],[List 2]]<>\"\",Table_PI[[#This Row],[List 2]],\"\")","v":""},{"$f":"IF(Table_PI[[#This Row],[List 3]]<>\"\",Table_PI[[#This Row],[List 3]],\"\")","v":""},{"$f":"IF(Table_PI[[#This Row],[Manufacturer]]=\"\",\"\",Table_PI[[#This Row],[Manufacturer]])","v":""},{"$f":"IF(Table_PI[[#This Row],[Model Number]]=\"\",\"\",Table_PI[[#This Row],[Model Number]])","v":""},{"$f":"IF(Table_PI[[#This Row],[Serial Number(s)]]=\"\",\"\",Table_PI[[#This Row],[Serial Number(s)]])","v":""},null,{"$f":"IF(Table_PI[[#This Row],[Size]]=\"\",\"\",Table_PI[[#This Row],[Size]])","v":""},null,null,{"$f":"IF(Table_PI[[#This Row],[Input 1]]<>\"\",Table_PI[[#This Row],[Input 1]],\"\")","v":""},null,null,{"$f":"IF(Table_PI[[#This Row],[Input 2]]<>\"\",Table_PI[[#This Row],[Input 2]],\"\")","v":""},null,null,{"$f":"IF(Table_PI[[#This Row],[Input 3]]<>\"\",Table_PI[[#This Row],[Input 3]],\"\")","v":""},null,null,{"$f":"IF(Table_PI[[#This Row],[Input 4]]<>\"\",Table_PI[[#This Row],[Input 4]],\"\")","v":""},null,null,{"$f":"IF(Table_PI[[#This Row],[Input 4]]<>\"\",Table_PI[[#This Row],[Input 4]],\"\")","v":""},null,null,{"$f":"IF(Table_PI[[#This Row],[Input 4]]<>\"\",Table_PI[[#This Row],[Input 4]],\"\")","v":""},{"$f":"IF(Table_PI[[#This Row],[Quantity]]=\"\",\"\",Table_PI[[#This Row],[Quantity]])","v":""},{"$f":"IF(Table_PI[[#This Row],[Notes]]=\"\",\"\",Table_PI[[#This Row],[Notes]])","v":""},{"$f":"IF(OR(Table_PI[[#This Row],[Hide: Baseline kWh]]=\"\",Table_PI[[#This Row],[Hide: Baseline kWh]]=0,ISTEXT(Table_PI[[#This Row],[Hide: Baseline kWh]])),\"\",Table_PI[[#This Row],[Hide: Baseline kWh]])","v":""},{"$f":"IF(OR(Table_PI[[#This Row],[Hide: Baseline kW]]=\"\",Table_PI[[#This Row],[Hide: Baseline kW]]=0,ISTEXT(Table_PI[[#This Row],[Hide: Baseline kW]])),\"\",Table_PI[[#This Row],[Hide: Baseline kW]])","v":""},{"$f":"IF(OR(Table_PI[[#This Row],[Hide: Proposed kWh]]=\"\",Table_PI[[#This Row],[Hide: Proposed kWh]]=0,ISTEXT(Table_PI[[#This Row],[Hide: Proposed kWh]])),\"\",Table_PI[[#This Row],[Hide: Proposed kWh]])","v":""},{"$f":"IF(OR(Table_PI[[#This Row],[Hide: Proposed kW]]=\"\",Table_PI[[#This Row],[Hide: Proposed kW]]=0,ISTEXT(Table_PI[[#This Row],[Hide: Proposed kW]])),\"\",Table_PI[[#This Row],[Hide: Proposed kW]])","v":""},null,null,{"$f":"IF(OR(Table_PI[[#This Row],[Hide: Rebate]]=\"\",Table_PI[[#This Row],[Hide: Rebate]]=0,ISTEXT(Table_PI[[#This Row],[Hide: Rebate]])),\"\",Table_PI[[#This Row],[Hide: Rebate]])","v":""},null,{"$f":"IF(OR(Table_PI[[#This Row],[Hide: Incremental Cost]]=\"\",Table_PI[[#This Row],[Hide: Incremental Cost]]=0,ISTEXT(Table_PI[[#This Row],[Hide: Incremental Cost]])),\"\",Table_PI[[#This Row],[Hide: Incremental Cost]])","v":""},{"$f":"IFERROR(IF(Table_SummaryPI[[#This Row],[Incentive_Customer]]=\"\",\"\",ROUND(Table_SummaryPI[[#This Row],[Incentive_Customer]]/$AM$401*'Customer Information'!$BC$21,2)),0)","v":""},{"$f":"IF(OR(Table_PI[[#This Row],[Annual kWh]]=\"\",Table_PI[[#This Row],[Annual kWh]]=0,ISTEXT(Table_PI[[#This Row],[Annual kWh]])),\"\",Table_PI[[#This Row],[Annual kWh]])","v":""},{"$f":"IF(OR(Table_PI[[#This Row],[Peak kW]]=\"\",Table_PI[[#This Row],[Peak kW]]=0,ISTEXT(Table_PI[[#This Row],[Peak kW]])),\"\",Table_PI[[#This Row],[Peak kW]])","v":""},{"$f":"IF(Table_SummaryPI[[#This Row],[Line No.]]<>\"\",IF(AND(ISNUMBER(FIND(\"Chiller\",Table_SummaryPI[[#This Row],[P_MeasureOption1]],1)),Table_SummaryPI[[#This Row],[ProposedMeasureCategory]]=\"Air-Cooled (Water-Cooled Replacement)\"),$BD$29*Table_SummaryPI[[#This Row],[Size]]*Table_SummaryPI[[#This Row],[Quantity]]*Table_SummaryPI[[#This Row],[EFLHCooling]],\nIF(ISNUMBER(FIND(\"Dishwasher\",Table_SummaryPI[[#This Row],[ProposedMeasureCategory]],1)),$BH$29*Table_SummaryPI[[#This Row],[Quantity]],\nIF(ISNUMBER(FIND(\"Ice Maker\",Table_SummaryPI[[#This Row],[ProposedMeasureCategory]],1)),$BD$31*Table_SummaryPI[[#This Row],[Quantity]],\nIF(ISNUMBER(FIND(\"Spray Valve\",Table_SummaryPI[[#This Row],[ProposedMeasureCategory]],1)),$BH$31*Table_SummaryPI[[#This Row],[Quantity]],\n0)))),\"\")","v":""},{"$f":"IF(OR(Table_PI[[#This Row],[Hide: Electrification kWh]]=\"\",Table_PI[[#This Row],[Hide: Electrification kWh]]=0,ISTEXT(Table_PI[[#This Row],[Hide: Electrification kWh]])),\"\",Table_PI[[#This Row],[Hide: Electrification kWh]])","v":""},{"$f":"IF(OR(Table_PI[[#This Row],[Hide: Electrification GHG]]=\"\",Table_PI[[#This Row],[Hide: Electrification GHG]]=0,ISTEXT(Table_PI[[#This Row],[Hide: Electrification GHG]])),\"\",Table_PI[[#This Row],[Hide: Electrification GHG]])","v":""},{"$f":"IFERROR(IF(Table_SummaryPI[[#This Row],[kWhSavings]]=\"\",\"\",$BH$9*Table_SummaryPI[[#This Row],[kWhSavings]]),0)","v":""},{"$f":"IFERROR(IF(Table_SummaryPI[[#This Row],[kWhSavings]]=\"\",\"\",$BH$14*Table_SummaryPI[[#This Row],[kWhSavings]]),0)","v":""},{"$f":"IFERROR(IF(Table_SummaryPI[[#This Row],[kWhSavings]]=\"\",\"\",$BH$18*Table_SummaryPI[[#This Row],[kWhSavings]]),0)","v":""},{"$f":"IFERROR(IF(Table_SummaryPI[[#This Row],[kWhSavings]]=\"\",\"\",$BH$22*Table_SummaryPI[[#This Row],[kWhSavings]]),0)","v":""}]
[{"$f":"Table_PI[[#This Row],[Line No.]]","v":""},{"$f":"IF(Table_SummaryPI[[#This Row],[MeasureName]]<>\"\",NOT(ISTEXT(Table_PI[[#This Row],[Rebate]])),\"\")","v":""},{"$f":"IF(Table_SummaryPI[[#This Row],[MeassureCategory]]<>\"\",CONCATENATE(Table_SummaryPI[[#This Row],[MeassureCategory]],  \" - \", Table_SummaryPI[[#This Row],[ProposedMeasureCategory]],  \" - \", TEXT(Table_SummaryPI[[#This Row],[Size]],\"#,##0.00\"),\" \",Table_SummaryPI[[#This Row],[SizeUnit]]),\"\")","v":""},{"$f":"SUBSTITUTE(Table_PI[[#This Row],[Measure]],\"     \",\"\",1)","v":""},{"$f":"IF(Table_PI[[#This Row],[List 1]]<>\"\",Table_PI[[#This Row],[List 1]],\"\")","v":""},{"$f":"IF(Table_PI[[#This Row],[List 2]]<>\"\",Table_PI[[#This Row],[List 2]],\"\")","v":""},{"$f":"IF(Table_PI[[#This Row],[List 3]]<>\"\",Table_PI[[#This Row],[List 3]],\"\")","v":""},{"$f":"IF(Table_PI[[#This Row],[Manufacturer]]=\"\",\"\",Table_PI[[#This Row],[Manufacturer]])","v":""},{"$f":"IF(Table_PI[[#This Row],[Model Number]]=\"\",\"\",Table_PI[[#This Row],[Model Number]])","v":""},{"$f":"IF(Table_PI[[#This Row],[Serial Number(s)]]=\"\",\"\",Table_PI[[#This Row],[Serial Number(s)]])","v":""},null,{"$f":"IF(Table_PI[[#This Row],[Size]]=\"\",\"\",Table_PI[[#This Row],[Size]])","v":""},null,null,{"$f":"IF(Table_PI[[#This Row],[Input 1]]<>\"\",Table_PI[[#This Row],[Input 1]],\"\")","v":""},null,null,{"$f":"IF(Table_PI[[#This Row],[Input 2]]<>\"\",Table_PI[[#This Row],[Input 2]],\"\")","v":""},null,null,{"$f":"IF(Table_PI[[#This Row],[Input 3]]<>\"\",Table_PI[[#This Row],[Input 3]],\"\")","v":""},null,null,{"$f":"IF(Table_PI[[#This Row],[Input 4]]<>\"\",Table_PI[[#This Row],[Input 4]],\"\")","v":""},null,null,{"$f":"IF(Table_PI[[#This Row],[Input 4]]<>\"\",Table_PI[[#This Row],[Input 4]],\"\")","v":""},null,null,{"$f":"IF(Table_PI[[#This Row],[Input 4]]<>\"\",Table_PI[[#This Row],[Input 4]],\"\")","v":""},{"$f":"IF(Table_PI[[#This Row],[Quantity]]=\"\",\"\",Table_PI[[#This Row],[Quantity]])","v":""},{"$f":"IF(Table_PI[[#This Row],[Notes]]=\"\",\"\",Table_PI[[#This Row],[Notes]])","v":""},{"$f":"IF(OR(Table_PI[[#This Row],[Hide: Baseline kWh]]=\"\",Table_PI[[#This Row],[Hide: Baseline kWh]]=0,ISTEXT(Table_PI[[#This Row],[Hide: Baseline kWh]])),\"\",Table_PI[[#This Row],[Hide: Baseline kWh]])","v":""},{"$f":"IF(OR(Table_PI[[#This Row],[Hide: Baseline kW]]=\"\",Table_PI[[#This Row],[Hide: Baseline kW]]=0,ISTEXT(Table_PI[[#This Row],[Hide: Baseline kW]])),\"\",Table_PI[[#This Row],[Hide: Baseline kW]])","v":""},{"$f":"IF(OR(Table_PI[[#This Row],[Hide: Proposed kWh]]=\"\",Table_PI[[#This Row],[Hide: Proposed kWh]]=0,ISTEXT(Table_PI[[#This Row],[Hide: Proposed kWh]])),\"\",Table_PI[[#This Row],[Hide: Proposed kWh]])","v":""},{"$f":"IF(OR(Table_PI[[#This Row],[Hide: Proposed kW]]=\"\",Table_PI[[#This Row],[Hide: Proposed kW]]=0,ISTEXT(Table_PI[[#This Row],[Hide: Proposed kW]])),\"\",Table_PI[[#This Row],[Hide: Proposed kW]])","v":""},null,null,{"$f":"IF(OR(Table_PI[[#This Row],[Hide: Rebate]]=\"\",Table_PI[[#This Row],[Hide: Rebate]]=0,ISTEXT(Table_PI[[#This Row],[Hide: Rebate]])),\"\",Table_PI[[#This Row],[Hide: Rebate]])","v":""},null,{"$f":"IF(OR(Table_PI[[#This Row],[Hide: Incremental Cost]]=\"\",Table_PI[[#This Row],[Hide: Incremental Cost]]=0,ISTEXT(Table_PI[[#This Row],[Hide: Incremental Cost]])),\"\",Table_PI[[#This Row],[Hide: Incremental Cost]])","v":""},{"$f":"IFERROR(IF(Table_SummaryPI[[#This Row],[Incentive_Customer]]=\"\",\"\",ROUND(Table_SummaryPI[[#This Row],[Incentive_Customer]]/$AM$401*'Customer Information'!$BC$21,2)),0)","v":""},{"$f":"IF(OR(Table_PI[[#This Row],[Annual kWh]]=\"\",Table_PI[[#This Row],[Annual kWh]]=0,ISTEXT(Table_PI[[#This Row],[Annual kWh]])),\"\",Table_PI[[#This Row],[Annual kWh]])","v":""},{"$f":"IF(OR(Table_PI[[#This Row],[Peak kW]]=\"\",Table_PI[[#This Row],[Peak kW]]=0,ISTEXT(Table_PI[[#This Row],[Peak kW]])),\"\",Table_PI[[#This Row],[Peak kW]])","v":""},{"$f":"IF(Table_SummaryPI[[#This Row],[Line No.]]<>\"\",IF(AND(ISNUMBER(FIND(\"Chiller\",Table_SummaryPI[[#This Row],[P_MeasureOption1]],1)),Table_SummaryPI[[#This Row],[ProposedMeasureCategory]]=\"Air-Cooled (Water-Cooled Replacement)\"),$BD$29*Table_SummaryPI[[#This Row],[Size]]*Table_SummaryPI[[#This Row],[Quantity]]*Table_SummaryPI[[#This Row],[EFLHCooling]],\nIF(ISNUMBER(FIND(\"Dishwasher\",Table_SummaryPI[[#This Row],[ProposedMeasureCategory]],1)),$BH$29*Table_SummaryPI[[#This Row],[Quantity]],\nIF(ISNUMBER(FIND(\"Ice Maker\",Table_SummaryPI[[#This Row],[ProposedMeasureCategory]],1)),$BD$31*Table_SummaryPI[[#This Row],[Quantity]],\nIF(ISNUMBER(FIND(\"Spray Valve\",Table_SummaryPI[[#This Row],[ProposedMeasureCategory]],1)),$BH$31*Table_SummaryPI[[#This Row],[Quantity]],\n0)))),\"\")","v":""},{"$f":"IF(OR(Table_PI[[#This Row],[Hide: Electrification kWh]]=\"\",Table_PI[[#This Row],[Hide: Electrification kWh]]=0,ISTEXT(Table_PI[[#This Row],[Hide: Electrification kWh]])),\"\",Table_PI[[#This Row],[Hide: Electrification kWh]])","v":""},{"$f":"IF(OR(Table_PI[[#This Row],[Hide: Electrification GHG]]=\"\",Table_PI[[#This Row],[Hide: Electrification GHG]]=0,ISTEXT(Table_PI[[#This Row],[Hide: Electrification GHG]])),\"\",Table_PI[[#This Row],[Hide: Electrification GHG]])","v":""},{"$f":"IFERROR(IF(Table_SummaryPI[[#This Row],[kWhSavings]]=\"\",\"\",$BH$9*Table_SummaryPI[[#This Row],[kWhSavings]]),0)","v":""},{"$f":"IFERROR(IF(Table_SummaryPI[[#This Row],[kWhSavings]]=\"\",\"\",$BH$14*Table_SummaryPI[[#This Row],[kWhSavings]]),0)","v":""},{"$f":"IFERROR(IF(Table_SummaryPI[[#This Row],[kWhSavings]]=\"\",\"\",$BH$18*Table_SummaryPI[[#This Row],[kWhSavings]]),0)","v":""},{"$f":"IFERROR(IF(Table_SummaryPI[[#This Row],[kWhSavings]]=\"\",\"\",$BH$22*Table_SummaryPI[[#This Row],[kWhSavings]]),0)","v":""}]
[{"$f":"Table_PI[[#This Row],[Line No.]]","v":""},{"$f":"IF(Table_SummaryPI[[#This Row],[MeasureName]]<>\"\",NOT(ISTEXT(Table_PI[[#This Row],[Rebate]])),\"\")","v":""},{"$f":"IF(Table_SummaryPI[[#This Row],[MeassureCategory]]<>\"\",CONCATENATE(Table_SummaryPI[[#This Row],[MeassureCategory]],  \" - \", Table_SummaryPI[[#This Row],[ProposedMeasureCategory]],  \" - \", TEXT(Table_SummaryPI[[#This Row],[Size]],\"#,##0.00\"),\" \",Table_SummaryPI[[#This Row],[SizeUnit]]),\"\")","v":""},{"$f":"SUBSTITUTE(Table_PI[[#This Row],[Measure]],\"     \",\"\",1)","v":""},{"$f":"IF(Table_PI[[#This Row],[List 1]]<>\"\",Table_PI[[#This Row],[List 1]],\"\")","v":""},{"$f":"IF(Table_PI[[#This Row],[List 2]]<>\"\",Table_PI[[#This Row],[List 2]],\"\")","v":""},{"$f":"IF(Table_PI[[#This Row],[List 3]]<>\"\",Table_PI[[#This Row],[List 3]],\"\")","v":""},{"$f":"IF(Table_PI[[#This Row],[Manufacturer]]=\"\",\"\",Table_PI[[#This Row],[Manufacturer]])","v":""},{"$f":"IF(Table_PI[[#This Row],[Model Number]]=\"\",\"\",Table_PI[[#This Row],[Model Number]])","v":""},{"$f":"IF(Table_PI[[#This Row],[Serial Number(s)]]=\"\",\"\",Table_PI[[#This Row],[Serial Number(s)]])","v":""},null,{"$f":"IF(Table_PI[[#This Row],[Size]]=\"\",\"\",Table_PI[[#This Row],[Size]])","v":""},null,null,{"$f":"IF(Table_PI[[#This Row],[Input 1]]<>\"\",Table_PI[[#This Row],[Input 1]],\"\")","v":""},null,null,{"$f":"IF(Table_PI[[#This Row],[Input 2]]<>\"\",Table_PI[[#This Row],[Input 2]],\"\")","v":""},null,null,{"$f":"IF(Table_PI[[#This Row],[Input 3]]<>\"\",Table_PI[[#This Row],[Input 3]],\"\")","v":""},null,null,{"$f":"IF(Table_PI[[#This Row],[Input 4]]<>\"\",Table_PI[[#This Row],[Input 4]],\"\")","v":""},null,null,{"$f":"IF(Table_PI[[#This Row],[Input 4]]<>\"\",Table_PI[[#This Row],[Input 4]],\"\")","v":""},null,null,{"$f":"IF(Table_PI[[#This Row],[Input 4]]<>\"\",Table_PI[[#This Row],[Input 4]],\"\")","v":""},{"$f":"IF(Table_PI[[#This Row],[Quantity]]=\"\",\"\",Table_PI[[#This Row],[Quantity]])","v":""},{"$f":"IF(Table_PI[[#This Row],[Notes]]=\"\",\"\",Table_PI[[#This Row],[Notes]])","v":""},{"$f":"IF(OR(Table_PI[[#This Row],[Hide: Baseline kWh]]=\"\",Table_PI[[#This Row],[Hide: Baseline kWh]]=0,ISTEXT(Table_PI[[#This Row],[Hide: Baseline kWh]])),\"\",Table_PI[[#This Row],[Hide: Baseline kWh]])","v":""},{"$f":"IF(OR(Table_PI[[#This Row],[Hide: Baseline kW]]=\"\",Table_PI[[#This Row],[Hide: Baseline kW]]=0,ISTEXT(Table_PI[[#This Row],[Hide: Baseline kW]])),\"\",Table_PI[[#This Row],[Hide: Baseline kW]])","v":""},{"$f":"IF(OR(Table_PI[[#This Row],[Hide: Proposed kWh]]=\"\",Table_PI[[#This Row],[Hide: Proposed kWh]]=0,ISTEXT(Table_PI[[#This Row],[Hide: Proposed kWh]])),\"\",Table_PI[[#This Row],[Hide: Proposed kWh]])","v":""},{"$f":"IF(OR(Table_PI[[#This Row],[Hide: Proposed kW]]=\"\",Table_PI[[#This Row],[Hide: Proposed kW]]=0,ISTEXT(Table_PI[[#This Row],[Hide: Proposed kW]])),\"\",Table_PI[[#This Row],[Hide: Proposed kW]])","v":""},null,null,{"$f":"IF(OR(Table_PI[[#This Row],[Hide: Rebate]]=\"\",Table_PI[[#This Row],[Hide: Rebate]]=0,ISTEXT(Table_PI[[#This Row],[Hide: Rebate]])),\"\",Table_PI[[#This Row],[Hide: Rebate]])","v":""},null,{"$f":"IF(OR(Table_PI[[#This Row],[Hide: Incremental Cost]]=\"\",Table_PI[[#This Row],[Hide: Incremental Cost]]=0,ISTEXT(Table_PI[[#This Row],[Hide: Incremental Cost]])),\"\",Table_PI[[#This Row],[Hide: Incremental Cost]])","v":""},{"$f":"IFERROR(IF(Table_SummaryPI[[#This Row],[Incentive_Customer]]=\"\",\"\",ROUND(Table_SummaryPI[[#This Row],[Incentive_Customer]]/$AM$401*'Customer Information'!$BC$21,2)),0)","v":""},{"$f":"IF(OR(Table_PI[[#This Row],[Annual kWh]]=\"\",Table_PI[[#This Row],[Annual kWh]]=0,ISTEXT(Table_PI[[#This Row],[Annual kWh]])),\"\",Table_PI[[#This Row],[Annual kWh]])","v":""},{"$f":"IF(OR(Table_PI[[#This Row],[Peak kW]]=\"\",Table_PI[[#This Row],[Peak kW]]=0,ISTEXT(Table_PI[[#This Row],[Peak kW]])),\"\",Table_PI[[#This Row],[Peak kW]])","v":""},{"$f":"IF(Table_SummaryPI[[#This Row],[Line No.]]<>\"\",IF(AND(ISNUMBER(FIND(\"Chiller\",Table_SummaryPI[[#This Row],[P_MeasureOption1]],1)),Table_SummaryPI[[#This Row],[ProposedMeasureCategory]]=\"Air-Cooled (Water-Cooled Replacement)\"),$BD$29*Table_SummaryPI[[#This Row],[Size]]*Table_SummaryPI[[#This Row],[Quantity]]*Table_SummaryPI[[#This Row],[EFLHCooling]],\nIF(ISNUMBER(FIND(\"Dishwasher\",Table_SummaryPI[[#This Row],[ProposedMeasureCategory]],1)),$BH$29*Table_SummaryPI[[#This Row],[Quantity]],\nIF(ISNUMBER(FIND(\"Ice Maker\",Table_SummaryPI[[#This Row],[ProposedMeasureCategory]],1)),$BD$31*Table_SummaryPI[[#This Row],[Quantity]],\nIF(ISNUMBER(FIND(\"Spray Valve\",Table_SummaryPI[[#This Row],[ProposedMeasureCategory]],1)),$BH$31*Table_SummaryPI[[#This Row],[Quantity]],\n0)))),\"\")","v":""},{"$f":"IF(OR(Table_PI[[#This Row],[Hide: Electrification kWh]]=\"\",Table_PI[[#This Row],[Hide: Electrification kWh]]=0,ISTEXT(Table_PI[[#This Row],[Hide: Electrification kWh]])),\"\",Table_PI[[#This Row],[Hide: Electrification kWh]])","v":""},{"$f":"IF(OR(Table_PI[[#This Row],[Hide: Electrification GHG]]=\"\",Table_PI[[#This Row],[Hide: Electrification GHG]]=0,ISTEXT(Table_PI[[#This Row],[Hide: Electrification GHG]])),\"\",Table_PI[[#This Row],[Hide: Electrification GHG]])","v":""},{"$f":"IFERROR(IF(Table_SummaryPI[[#This Row],[kWhSavings]]=\"\",\"\",$BH$9*Table_SummaryPI[[#This Row],[kWhSavings]]),0)","v":""},{"$f":"IFERROR(IF(Table_SummaryPI[[#This Row],[kWhSavings]]=\"\",\"\",$BH$14*Table_SummaryPI[[#This Row],[kWhSavings]]),0)","v":""},{"$f":"IFERROR(IF(Table_SummaryPI[[#This Row],[kWhSavings]]=\"\",\"\",$BH$18*Table_SummaryPI[[#This Row],[kWhSavings]]),0)","v":""},{"$f":"IFERROR(IF(Table_SummaryPI[[#This Row],[kWhSavings]]=\"\",\"\",$BH$22*Table_SummaryPI[[#This Row],[kWhSavings]]),0)","v":""}]
[{"$f":"Table_PI[[#This Row],[Line No.]]","v":""},{"$f":"IF(Table_SummaryPI[[#This Row],[MeasureName]]<>\"\",NOT(ISTEXT(Table_PI[[#This Row],[Rebate]])),\"\")","v":""},{"$f":"IF(Table_SummaryPI[[#This Row],[MeassureCategory]]<>\"\",CONCATENATE(Table_SummaryPI[[#This Row],[MeassureCategory]],  \" - \", Table_SummaryPI[[#This Row],[ProposedMeasureCategory]],  \" - \", TEXT(Table_SummaryPI[[#This Row],[Size]],\"#,##0.00\"),\" \",Table_SummaryPI[[#This Row],[SizeUnit]]),\"\")","v":""},{"$f":"SUBSTITUTE(Table_PI[[#This Row],[Measure]],\"     \",\"\",1)","v":""},{"$f":"IF(Table_PI[[#This Row],[List 1]]<>\"\",Table_PI[[#This Row],[List 1]],\"\")","v":""},{"$f":"IF(Table_PI[[#This Row],[List 2]]<>\"\",Table_PI[[#This Row],[List 2]],\"\")","v":""},{"$f":"IF(Table_PI[[#This Row],[List 3]]<>\"\",Table_PI[[#This Row],[List 3]],\"\")","v":""},{"$f":"IF(Table_PI[[#This Row],[Manufacturer]]=\"\",\"\",Table_PI[[#This Row],[Manufacturer]])","v":""},{"$f":"IF(Table_PI[[#This Row],[Model Number]]=\"\",\"\",Table_PI[[#This Row],[Model Number]])","v":""},{"$f":"IF(Table_PI[[#This Row],[Serial Number(s)]]=\"\",\"\",Table_PI[[#This Row],[Serial Number(s)]])","v":""},null,{"$f":"IF(Table_PI[[#This Row],[Size]]=\"\",\"\",Table_PI[[#This Row],[Size]])","v":""},null,null,{"$f":"IF(Table_PI[[#This Row],[Input 1]]<>\"\",Table_PI[[#This Row],[Input 1]],\"\")","v":""},null,null,{"$f":"IF(Table_PI[[#This Row],[Input 2]]<>\"\",Table_PI[[#This Row],[Input 2]],\"\")","v":""},null,null,{"$f":"IF(Table_PI[[#This Row],[Input 3]]<>\"\",Table_PI[[#This Row],[Input 3]],\"\")","v":""},null,null,{"$f":"IF(Table_PI[[#This Row],[Input 4]]<>\"\",Table_PI[[#This Row],[Input 4]],\"\")","v":""},null,null,{"$f":"IF(Table_PI[[#This Row],[Input 4]]<>\"\",Table_PI[[#This Row],[Input 4]],\"\")","v":""},null,null,{"$f":"IF(Table_PI[[#This Row],[Input 4]]<>\"\",Table_PI[[#This Row],[Input 4]],\"\")","v":""},{"$f":"IF(Table_PI[[#This Row],[Quantity]]=\"\",\"\",Table_PI[[#This Row],[Quantity]])","v":""},{"$f":"IF(Table_PI[[#This Row],[Notes]]=\"\",\"\",Table_PI[[#This Row],[Notes]])","v":""},{"$f":"IF(OR(Table_PI[[#This Row],[Hide: Baseline kWh]]=\"\",Table_PI[[#This Row],[Hide: Baseline kWh]]=0,ISTEXT(Table_PI[[#This Row],[Hide: Baseline kWh]])),\"\",Table_PI[[#This Row],[Hide: Baseline kWh]])","v":""},{"$f":"IF(OR(Table_PI[[#This Row],[Hide: Baseline kW]]=\"\",Table_PI[[#This Row],[Hide: Baseline kW]]=0,ISTEXT(Table_PI[[#This Row],[Hide: Baseline kW]])),\"\",Table_PI[[#This Row],[Hide: Baseline kW]])","v":""},{"$f":"IF(OR(Table_PI[[#This Row],[Hide: Proposed kWh]]=\"\",Table_PI[[#This Row],[Hide: Proposed kWh]]=0,ISTEXT(Table_PI[[#This Row],[Hide: Proposed kWh]])),\"\",Table_PI[[#This Row],[Hide: Proposed kWh]])","v":""},{"$f":"IF(OR(Table_PI[[#This Row],[Hide: Proposed kW]]=\"\",Table_PI[[#This Row],[Hide: Proposed kW]]=0,ISTEXT(Table_PI[[#This Row],[Hide: Proposed kW]])),\"\",Table_PI[[#This Row],[Hide: Proposed kW]])","v":""},null,null,{"$f":"IF(OR(Table_PI[[#This Row],[Hide: Rebate]]=\"\",Table_PI[[#This Row],[Hide: Rebate]]=0,ISTEXT(Table_PI[[#This Row],[Hide: Rebate]])),\"\",Table_PI[[#This Row],[Hide: Rebate]])","v":""},null,{"$f":"IF(OR(Table_PI[[#This Row],[Hide: Incremental Cost]]=\"\",Table_PI[[#This Row],[Hide: Incremental Cost]]=0,ISTEXT(Table_PI[[#This Row],[Hide: Incremental Cost]])),\"\",Table_PI[[#This Row],[Hide: Incremental Cost]])","v":""},{"$f":"IFERROR(IF(Table_SummaryPI[[#This Row],[Incentive_Customer]]=\"\",\"\",ROUND(Table_SummaryPI[[#This Row],[Incentive_Customer]]/$AM$401*'Customer Information'!$BC$21,2)),0)","v":""},{"$f":"IF(OR(Table_PI[[#This Row],[Annual kWh]]=\"\",Table_PI[[#This Row],[Annual kWh]]=0,ISTEXT(Table_PI[[#This Row],[Annual kWh]])),\"\",Table_PI[[#This Row],[Annual kWh]])","v":""},{"$f":"IF(OR(Table_PI[[#This Row],[Peak kW]]=\"\",Table_PI[[#This Row],[Peak kW]]=0,ISTEXT(Table_PI[[#This Row],[Peak kW]])),\"\",Table_PI[[#This Row],[Peak kW]])","v":""},{"$f":"IF(Table_SummaryPI[[#This Row],[Line No.]]<>\"\",IF(AND(ISNUMBER(FIND(\"Chiller\",Table_SummaryPI[[#This Row],[P_MeasureOption1]],1)),Table_SummaryPI[[#This Row],[ProposedMeasureCategory]]=\"Air-Cooled (Water-Cooled Replacement)\"),$BD$29*Table_SummaryPI[[#This Row],[Size]]*Table_SummaryPI[[#This Row],[Quantity]]*Table_SummaryPI[[#This Row],[EFLHCooling]],\nIF(ISNUMBER(FIND(\"Dishwasher\",Table_SummaryPI[[#This Row],[ProposedMeasureCategory]],1)),$BH$29*Table_SummaryPI[[#This Row],[Quantity]],\nIF(ISNUMBER(FIND(\"Ice Maker\",Table_SummaryPI[[#This Row],[ProposedMeasureCategory]],1)),$BD$31*Table_SummaryPI[[#This Row],[Quantity]],\nIF(ISNUMBER(FIND(\"Spray Valve\",Table_SummaryPI[[#This Row],[ProposedMeasureCategory]],1)),$BH$31*Table_SummaryPI[[#This Row],[Quantity]],\n0)))),\"\")","v":""},{"$f":"IF(OR(Table_PI[[#This Row],[Hide: Electrification kWh]]=\"\",Table_PI[[#This Row],[Hide: Electrification kWh]]=0,ISTEXT(Table_PI[[#This Row],[Hide: Electrification kWh]])),\"\",Table_PI[[#This Row],[Hide: Electrification kWh]])","v":""},{"$f":"IF(OR(Table_PI[[#This Row],[Hide: Electrification GHG]]=\"\",Table_PI[[#This Row],[Hide: Electrification GHG]]=0,ISTEXT(Table_PI[[#This Row],[Hide: Electrification GHG]])),\"\",Table_PI[[#This Row],[Hide: Electrification GHG]])","v":""},{"$f":"IFERROR(IF(Table_SummaryPI[[#This Row],[kWhSavings]]=\"\",\"\",$BH$9*Table_SummaryPI[[#This Row],[kWhSavings]]),0)","v":""},{"$f":"IFERROR(IF(Table_SummaryPI[[#This Row],[kWhSavings]]=\"\",\"\",$BH$14*Table_SummaryPI[[#This Row],[kWhSavings]]),0)","v":""},{"$f":"IFERROR(IF(Table_SummaryPI[[#This Row],[kWhSavings]]=\"\",\"\",$BH$18*Table_SummaryPI[[#This Row],[kWhSavings]]),0)","v":""},{"$f":"IFERROR(IF(Table_SummaryPI[[#This Row],[kWhSavings]]=\"\",\"\",$BH$22*Table_SummaryPI[[#This Row],[kWhSavings]]),0)","v":""}]
[{"$f":"Table_PI[[#This Row],[Line No.]]","v":""},{"$f":"IF(Table_SummaryPI[[#This Row],[MeasureName]]<>\"\",NOT(ISTEXT(Table_PI[[#This Row],[Rebate]])),\"\")","v":""},{"$f":"IF(Table_SummaryPI[[#This Row],[MeassureCategory]]<>\"\",CONCATENATE(Table_SummaryPI[[#This Row],[MeassureCategory]],  \" - \", Table_SummaryPI[[#This Row],[ProposedMeasureCategory]],  \" - \", TEXT(Table_SummaryPI[[#This Row],[Size]],\"#,##0.00\"),\" \",Table_SummaryPI[[#This Row],[SizeUnit]]),\"\")","v":""},{"$f":"SUBSTITUTE(Table_PI[[#This Row],[Measure]],\"     \",\"\",1)","v":""},{"$f":"IF(Table_PI[[#This Row],[List 1]]<>\"\",Table_PI[[#This Row],[List 1]],\"\")","v":""},{"$f":"IF(Table_PI[[#This Row],[List 2]]<>\"\",Table_PI[[#This Row],[List 2]],\"\")","v":""},{"$f":"IF(Table_PI[[#This Row],[List 3]]<>\"\",Table_PI[[#This Row],[List 3]],\"\")","v":""},{"$f":"IF(Table_PI[[#This Row],[Manufacturer]]=\"\",\"\",Table_PI[[#This Row],[Manufacturer]])","v":""},{"$f":"IF(Table_PI[[#This Row],[Model Number]]=\"\",\"\",Table_PI[[#This Row],[Model Number]])","v":""},{"$f":"IF(Table_PI[[#This Row],[Serial Number(s)]]=\"\",\"\",Table_PI[[#This Row],[Serial Number(s)]])","v":""},null,{"$f":"IF(Table_PI[[#This Row],[Size]]=\"\",\"\",Table_PI[[#This Row],[Size]])","v":""},null,null,{"$f":"IF(Table_PI[[#This Row],[Input 1]]<>\"\",Table_PI[[#This Row],[Input 1]],\"\")","v":""},null,null,{"$f":"IF(Table_PI[[#This Row],[Input 2]]<>\"\",Table_PI[[#This Row],[Input 2]],\"\")","v":""},null,null,{"$f":"IF(Table_PI[[#This Row],[Input 3]]<>\"\",Table_PI[[#This Row],[Input 3]],\"\")","v":""},null,null,{"$f":"IF(Table_PI[[#This Row],[Input 4]]<>\"\",Table_PI[[#This Row],[Input 4]],\"\")","v":""},null,null,{"$f":"IF(Table_PI[[#This Row],[Input 4]]<>\"\",Table_PI[[#This Row],[Input 4]],\"\")","v":""},null,null,{"$f":"IF(Table_PI[[#This Row],[Input 4]]<>\"\",Table_PI[[#This Row],[Input 4]],\"\")","v":""},{"$f":"IF(Table_PI[[#This Row],[Quantity]]=\"\",\"\",Table_PI[[#This Row],[Quantity]])","v":""},{"$f":"IF(Table_PI[[#This Row],[Notes]]=\"\",\"\",Table_PI[[#This Row],[Notes]])","v":""},{"$f":"IF(OR(Table_PI[[#This Row],[Hide: Baseline kWh]]=\"\",Table_PI[[#This Row],[Hide: Baseline kWh]]=0,ISTEXT(Table_PI[[#This Row],[Hide: Baseline kWh]])),\"\",Table_PI[[#This Row],[Hide: Baseline kWh]])","v":""},{"$f":"IF(OR(Table_PI[[#This Row],[Hide: Baseline kW]]=\"\",Table_PI[[#This Row],[Hide: Baseline kW]]=0,ISTEXT(Table_PI[[#This Row],[Hide: Baseline kW]])),\"\",Table_PI[[#This Row],[Hide: Baseline kW]])","v":""},{"$f":"IF(OR(Table_PI[[#This Row],[Hide: Proposed kWh]]=\"\",Table_PI[[#This Row],[Hide: Proposed kWh]]=0,ISTEXT(Table_PI[[#This Row],[Hide: Proposed kWh]])),\"\",Table_PI[[#This Row],[Hide: Proposed kWh]])","v":""},{"$f":"IF(OR(Table_PI[[#This Row],[Hide: Proposed kW]]=\"\",Table_PI[[#This Row],[Hide: Proposed kW]]=0,ISTEXT(Table_PI[[#This Row],[Hide: Proposed kW]])),\"\",Table_PI[[#This Row],[Hide: Proposed kW]])","v":""},null,null,{"$f":"IF(OR(Table_PI[[#This Row],[Hide: Rebate]]=\"\",Table_PI[[#This Row],[Hide: Rebate]]=0,ISTEXT(Table_PI[[#This Row],[Hide: Rebate]])),\"\",Table_PI[[#This Row],[Hide: Rebate]])","v":""},null,{"$f":"IF(OR(Table_PI[[#This Row],[Hide: Incremental Cost]]=\"\",Table_PI[[#This Row],[Hide: Incremental Cost]]=0,ISTEXT(Table_PI[[#This Row],[Hide: Incremental Cost]])),\"\",Table_PI[[#This Row],[Hide: Incremental Cost]])","v":""},{"$f":"IFERROR(IF(Table_SummaryPI[[#This Row],[Incentive_Customer]]=\"\",\"\",ROUND(Table_SummaryPI[[#This Row],[Incentive_Customer]]/$AM$401*'Customer Information'!$BC$21,2)),0)","v":""},{"$f":"IF(OR(Table_PI[[#This Row],[Annual kWh]]=\"\",Table_PI[[#This Row],[Annual kWh]]=0,ISTEXT(Table_PI[[#This Row],[Annual kWh]])),\"\",Table_PI[[#This Row],[Annual kWh]])","v":""},{"$f":"IF(OR(Table_PI[[#This Row],[Peak kW]]=\"\",Table_PI[[#This Row],[Peak kW]]=0,ISTEXT(Table_PI[[#This Row],[Peak kW]])),\"\",Table_PI[[#This Row],[Peak kW]])","v":""},{"$f":"IF(Table_SummaryPI[[#This Row],[Line No.]]<>\"\",IF(AND(ISNUMBER(FIND(\"Chiller\",Table_SummaryPI[[#This Row],[P_MeasureOption1]],1)),Table_SummaryPI[[#This Row],[ProposedMeasureCategory]]=\"Air-Cooled (Water-Cooled Replacement)\"),$BD$29*Table_SummaryPI[[#This Row],[Size]]*Table_SummaryPI[[#This Row],[Quantity]]*Table_SummaryPI[[#This Row],[EFLHCooling]],\nIF(ISNUMBER(FIND(\"Dishwasher\",Table_SummaryPI[[#This Row],[ProposedMeasureCategory]],1)),$BH$29*Table_SummaryPI[[#This Row],[Quantity]],\nIF(ISNUMBER(FIND(\"Ice Maker\",Table_SummaryPI[[#This Row],[ProposedMeasureCategory]],1)),$BD$31*Table_SummaryPI[[#This Row],[Quantity]],\nIF(ISNUMBER(FIND(\"Spray Valve\",Table_SummaryPI[[#This Row],[ProposedMeasureCategory]],1)),$BH$31*Table_SummaryPI[[#This Row],[Quantity]],\n0)))),\"\")","v":""},{"$f":"IF(OR(Table_PI[[#This Row],[Hide: Electrification kWh]]=\"\",Table_PI[[#This Row],[Hide: Electrification kWh]]=0,ISTEXT(Table_PI[[#This Row],[Hide: Electrification kWh]])),\"\",Table_PI[[#This Row],[Hide: Electrification kWh]])","v":""},{"$f":"IF(OR(Table_PI[[#This Row],[Hide: Electrification GHG]]=\"\",Table_PI[[#This Row],[Hide: Electrification GHG]]=0,ISTEXT(Table_PI[[#This Row],[Hide: Electrification GHG]])),\"\",Table_PI[[#This Row],[Hide: Electrification GHG]])","v":""},{"$f":"IFERROR(IF(Table_SummaryPI[[#This Row],[kWhSavings]]=\"\",\"\",$BH$9*Table_SummaryPI[[#This Row],[kWhSavings]]),0)","v":""},{"$f":"IFERROR(IF(Table_SummaryPI[[#This Row],[kWhSavings]]=\"\",\"\",$BH$14*Table_SummaryPI[[#This Row],[kWhSavings]]),0)","v":""},{"$f":"IFERROR(IF(Table_SummaryPI[[#This Row],[kWhSavings]]=\"\",\"\",$BH$18*Table_SummaryPI[[#This Row],[kWhSavings]]),0)","v":""},{"$f":"IFERROR(IF(Table_SummaryPI[[#This Row],[kWhSavings]]=\"\",\"\",$BH$22*Table_SummaryPI[[#This Row],[kWhSavings]]),0)","v":""}]
[{"$f":"Table_PI[[#This Row],[Line No.]]","v":""},{"$f":"IF(Table_SummaryPI[[#This Row],[MeasureName]]<>\"\",NOT(ISTEXT(Table_PI[[#This Row],[Rebate]])),\"\")","v":""},{"$f":"IF(Table_SummaryPI[[#This Row],[MeassureCategory]]<>\"\",CONCATENATE(Table_SummaryPI[[#This Row],[MeassureCategory]],  \" - \", Table_SummaryPI[[#This Row],[ProposedMeasureCategory]],  \" - \", TEXT(Table_SummaryPI[[#This Row],[Size]],\"#,##0.00\"),\" \",Table_SummaryPI[[#This Row],[SizeUnit]]),\"\")","v":""},{"$f":"SUBSTITUTE(Table_PI[[#This Row],[Measure]],\"     \",\"\",1)","v":""},{"$f":"IF(Table_PI[[#This Row],[List 1]]<>\"\",Table_PI[[#This Row],[List 1]],\"\")","v":""},{"$f":"IF(Table_PI[[#This Row],[List 2]]<>\"\",Table_PI[[#This Row],[List 2]],\"\")","v":""},{"$f":"IF(Table_PI[[#This Row],[List 3]]<>\"\",Table_PI[[#This Row],[List 3]],\"\")","v":""},{"$f":"IF(Table_PI[[#This Row],[Manufacturer]]=\"\",\"\",Table_PI[[#This Row],[Manufacturer]])","v":""},{"$f":"IF(Table_PI[[#This Row],[Model Number]]=\"\",\"\",Table_PI[[#This Row],[Model Number]])","v":""},{"$f":"IF(Table_PI[[#This Row],[Serial Number(s)]]=\"\",\"\",Table_PI[[#This Row],[Serial Number(s)]])","v":""},null,{"$f":"IF(Table_PI[[#This Row],[Size]]=\"\",\"\",Table_PI[[#This Row],[Size]])","v":""},null,null,{"$f":"IF(Table_PI[[#This Row],[Input 1]]<>\"\",Table_PI[[#This Row],[Input 1]],\"\")","v":""},null,null,{"$f":"IF(Table_PI[[#This Row],[Input 2]]<>\"\",Table_PI[[#This Row],[Input 2]],\"\")","v":""},null,null,{"$f":"IF(Table_PI[[#This Row],[Input 3]]<>\"\",Table_PI[[#This Row],[Input 3]],\"\")","v":""},null,null,{"$f":"IF(Table_PI[[#This Row],[Input 4]]<>\"\",Table_PI[[#This Row],[Input 4]],\"\")","v":""},null,null,{"$f":"IF(Table_PI[[#This Row],[Input 4]]<>\"\",Table_PI[[#This Row],[Input 4]],\"\")","v":""},null,null,{"$f":"IF(Table_PI[[#This Row],[Input 4]]<>\"\",Table_PI[[#This Row],[Input 4]],\"\")","v":""},{"$f":"IF(Table_PI[[#This Row],[Quantity]]=\"\",\"\",Table_PI[[#This Row],[Quantity]])","v":""},{"$f":"IF(Table_PI[[#This Row],[Notes]]=\"\",\"\",Table_PI[[#This Row],[Notes]])","v":""},{"$f":"IF(OR(Table_PI[[#This Row],[Hide: Baseline kWh]]=\"\",Table_PI[[#This Row],[Hide: Baseline kWh]]=0,ISTEXT(Table_PI[[#This Row],[Hide: Baseline kWh]])),\"\",Table_PI[[#This Row],[Hide: Baseline kWh]])","v":""},{"$f":"IF(OR(Table_PI[[#This Row],[Hide: Baseline kW]]=\"\",Table_PI[[#This Row],[Hide: Baseline kW]]=0,ISTEXT(Table_PI[[#This Row],[Hide: Baseline kW]])),\"\",Table_PI[[#This Row],[Hide: Baseline kW]])","v":""},{"$f":"IF(OR(Table_PI[[#This Row],[Hide: Proposed kWh]]=\"\",Table_PI[[#This Row],[Hide: Proposed kWh]]=0,ISTEXT(Table_PI[[#This Row],[Hide: Proposed kWh]])),\"\",Table_PI[[#This Row],[Hide: Proposed kWh]])","v":""},{"$f":"IF(OR(Table_PI[[#This Row],[Hide: Proposed kW]]=\"\",Table_PI[[#This Row],[Hide: Proposed kW]]=0,ISTEXT(Table_PI[[#This Row],[Hide: Proposed kW]])),\"\",Table_PI[[#This Row],[Hide: Proposed kW]])","v":""},null,null,{"$f":"IF(OR(Table_PI[[#This Row],[Hide: Rebate]]=\"\",Table_PI[[#This Row],[Hide: Rebate]]=0,ISTEXT(Table_PI[[#This Row],[Hide: Rebate]])),\"\",Table_PI[[#This Row],[Hide: Rebate]])","v":""},null,{"$f":"IF(OR(Table_PI[[#This Row],[Hide: Incremental Cost]]=\"\",Table_PI[[#This Row],[Hide: Incremental Cost]]=0,ISTEXT(Table_PI[[#This Row],[Hide: Incremental Cost]])),\"\",Table_PI[[#This Row],[Hide: Incremental Cost]])","v":""},{"$f":"IFERROR(IF(Table_SummaryPI[[#This Row],[Incentive_Customer]]=\"\",\"\",ROUND(Table_SummaryPI[[#This Row],[Incentive_Customer]]/$AM$401*'Customer Information'!$BC$21,2)),0)","v":""},{"$f":"IF(OR(Table_PI[[#This Row],[Annual kWh]]=\"\",Table_PI[[#This Row],[Annual kWh]]=0,ISTEXT(Table_PI[[#This Row],[Annual kWh]])),\"\",Table_PI[[#This Row],[Annual kWh]])","v":""},{"$f":"IF(OR(Table_PI[[#This Row],[Peak kW]]=\"\",Table_PI[[#This Row],[Peak kW]]=0,ISTEXT(Table_PI[[#This Row],[Peak kW]])),\"\",Table_PI[[#This Row],[Peak kW]])","v":""},{"$f":"IF(Table_SummaryPI[[#This Row],[Line No.]]<>\"\",IF(AND(ISNUMBER(FIND(\"Chiller\",Table_SummaryPI[[#This Row],[P_MeasureOption1]],1)),Table_SummaryPI[[#This Row],[ProposedMeasureCategory]]=\"Air-Cooled (Water-Cooled Replacement)\"),$BD$29*Table_SummaryPI[[#This Row],[Size]]*Table_SummaryPI[[#This Row],[Quantity]]*Table_SummaryPI[[#This Row],[EFLHCooling]],\nIF(ISNUMBER(FIND(\"Dishwasher\",Table_SummaryPI[[#This Row],[ProposedMeasureCategory]],1)),$BH$29*Table_SummaryPI[[#This Row],[Quantity]],\nIF(ISNUMBER(FIND(\"Ice Maker\",Table_SummaryPI[[#This Row],[ProposedMeasureCategory]],1)),$BD$31*Table_SummaryPI[[#This Row],[Quantity]],\nIF(ISNUMBER(FIND(\"Spray Valve\",Table_SummaryPI[[#This Row],[ProposedMeasureCategory]],1)),$BH$31*Table_SummaryPI[[#This Row],[Quantity]],\n0)))),\"\")","v":""},{"$f":"IF(OR(Table_PI[[#This Row],[Hide: Electrification kWh]]=\"\",Table_PI[[#This Row],[Hide: Electrification kWh]]=0,ISTEXT(Table_PI[[#This Row],[Hide: Electrification kWh]])),\"\",Table_PI[[#This Row],[Hide: Electrification kWh]])","v":""},{"$f":"IF(OR(Table_PI[[#This Row],[Hide: Electrification GHG]]=\"\",Table_PI[[#This Row],[Hide: Electrification GHG]]=0,ISTEXT(Table_PI[[#This Row],[Hide: Electrification GHG]])),\"\",Table_PI[[#This Row],[Hide: Electrification GHG]])","v":""},{"$f":"IFERROR(IF(Table_SummaryPI[[#This Row],[kWhSavings]]=\"\",\"\",$BH$9*Table_SummaryPI[[#This Row],[kWhSavings]]),0)","v":""},{"$f":"IFERROR(IF(Table_SummaryPI[[#This Row],[kWhSavings]]=\"\",\"\",$BH$14*Table_SummaryPI[[#This Row],[kWhSavings]]),0)","v":""},{"$f":"IFERROR(IF(Table_SummaryPI[[#This Row],[kWhSavings]]=\"\",\"\",$BH$18*Table_SummaryPI[[#This Row],[kWhSavings]]),0)","v":""},{"$f":"IFERROR(IF(Table_SummaryPI[[#This Row],[kWhSavings]]=\"\",\"\",$BH$22*Table_SummaryPI[[#This Row],[kWhSavings]]),0)","v":""}]
[{"$f":"Table_PI[[#This Row],[Line No.]]","v":""},{"$f":"IF(Table_SummaryPI[[#This Row],[MeasureName]]<>\"\",NOT(ISTEXT(Table_PI[[#This Row],[Rebate]])),\"\")","v":""},{"$f":"IF(Table_SummaryPI[[#This Row],[MeassureCategory]]<>\"\",CONCATENATE(Table_SummaryPI[[#This Row],[MeassureCategory]],  \" - \", Table_SummaryPI[[#This Row],[ProposedMeasureCategory]],  \" - \", TEXT(Table_SummaryPI[[#This Row],[Size]],\"#,##0.00\"),\" \",Table_SummaryPI[[#This Row],[SizeUnit]]),\"\")","v":""},{"$f":"SUBSTITUTE(Table_PI[[#This Row],[Measure]],\"     \",\"\",1)","v":""},{"$f":"IF(Table_PI[[#This Row],[List 1]]<>\"\",Table_PI[[#This Row],[List 1]],\"\")","v":""},{"$f":"IF(Table_PI[[#This Row],[List 2]]<>\"\",Table_PI[[#This Row],[List 2]],\"\")","v":""},{"$f":"IF(Table_PI[[#This Row],[List 3]]<>\"\",Table_PI[[#This Row],[List 3]],\"\")","v":""},{"$f":"IF(Table_PI[[#This Row],[Manufacturer]]=\"\",\"\",Table_PI[[#This Row],[Manufacturer]])","v":""},{"$f":"IF(Table_PI[[#This Row],[Model Number]]=\"\",\"\",Table_PI[[#This Row],[Model Number]])","v":""},{"$f":"IF(Table_PI[[#This Row],[Serial Number(s)]]=\"\",\"\",Table_PI[[#This Row],[Serial Number(s)]])","v":""},null,{"$f":"IF(Table_PI[[#This Row],[Size]]=\"\",\"\",Table_PI[[#This Row],[Size]])","v":""},null,null,{"$f":"IF(Table_PI[[#This Row],[Input 1]]<>\"\",Table_PI[[#This Row],[Input 1]],\"\")","v":""},null,null,{"$f":"IF(Table_PI[[#This Row],[Input 2]]<>\"\",Table_PI[[#This Row],[Input 2]],\"\")","v":""},null,null,{"$f":"IF(Table_PI[[#This Row],[Input 3]]<>\"\",Table_PI[[#This Row],[Input 3]],\"\")","v":""},null,null,{"$f":"IF(Table_PI[[#This Row],[Input 4]]<>\"\",Table_PI[[#This Row],[Input 4]],\"\")","v":""},null,null,{"$f":"IF(Table_PI[[#This Row],[Input 4]]<>\"\",Table_PI[[#This Row],[Input 4]],\"\")","v":""},null,null,{"$f":"IF(Table_PI[[#This Row],[Input 4]]<>\"\",Table_PI[[#This Row],[Input 4]],\"\")","v":""},{"$f":"IF(Table_PI[[#This Row],[Quantity]]=\"\",\"\",Table_PI[[#This Row],[Quantity]])","v":""},{"$f":"IF(Table_PI[[#This Row],[Notes]]=\"\",\"\",Table_PI[[#This Row],[Notes]])","v":""},{"$f":"IF(OR(Table_PI[[#This Row],[Hide: Baseline kWh]]=\"\",Table_PI[[#This Row],[Hide: Baseline kWh]]=0,ISTEXT(Table_PI[[#This Row],[Hide: Baseline kWh]])),\"\",Table_PI[[#This Row],[Hide: Baseline kWh]])","v":""},{"$f":"IF(OR(Table_PI[[#This Row],[Hide: Baseline kW]]=\"\",Table_PI[[#This Row],[Hide: Baseline kW]]=0,ISTEXT(Table_PI[[#This Row],[Hide: Baseline kW]])),\"\",Table_PI[[#This Row],[Hide: Baseline kW]])","v":""},{"$f":"IF(OR(Table_PI[[#This Row],[Hide: Proposed kWh]]=\"\",Table_PI[[#This Row],[Hide: Proposed kWh]]=0,ISTEXT(Table_PI[[#This Row],[Hide: Proposed kWh]])),\"\",Table_PI[[#This Row],[Hide: Proposed kWh]])","v":""},{"$f":"IF(OR(Table_PI[[#This Row],[Hide: Proposed kW]]=\"\",Table_PI[[#This Row],[Hide: Proposed kW]]=0,ISTEXT(Table_PI[[#This Row],[Hide: Proposed kW]])),\"\",Table_PI[[#This Row],[Hide: Proposed kW]])","v":""},null,null,{"$f":"IF(OR(Table_PI[[#This Row],[Hide: Rebate]]=\"\",Table_PI[[#This Row],[Hide: Rebate]]=0,ISTEXT(Table_PI[[#This Row],[Hide: Rebate]])),\"\",Table_PI[[#This Row],[Hide: Rebate]])","v":""},null,{"$f":"IF(OR(Table_PI[[#This Row],[Hide: Incremental Cost]]=\"\",Table_PI[[#This Row],[Hide: Incremental Cost]]=0,ISTEXT(Table_PI[[#This Row],[Hide: Incremental Cost]])),\"\",Table_PI[[#This Row],[Hide: Incremental Cost]])","v":""},{"$f":"IFERROR(IF(Table_SummaryPI[[#This Row],[Incentive_Customer]]=\"\",\"\",ROUND(Table_SummaryPI[[#This Row],[Incentive_Customer]]/$AM$401*'Customer Information'!$BC$21,2)),0)","v":""},{"$f":"IF(OR(Table_PI[[#This Row],[Annual kWh]]=\"\",Table_PI[[#This Row],[Annual kWh]]=0,ISTEXT(Table_PI[[#This Row],[Annual kWh]])),\"\",Table_PI[[#This Row],[Annual kWh]])","v":""},{"$f":"IF(OR(Table_PI[[#This Row],[Peak kW]]=\"\",Table_PI[[#This Row],[Peak kW]]=0,ISTEXT(Table_PI[[#This Row],[Peak kW]])),\"\",Table_PI[[#This Row],[Peak kW]])","v":""},{"$f":"IF(Table_SummaryPI[[#This Row],[Line No.]]<>\"\",IF(AND(ISNUMBER(FIND(\"Chiller\",Table_SummaryPI[[#This Row],[P_MeasureOption1]],1)),Table_SummaryPI[[#This Row],[ProposedMeasureCategory]]=\"Air-Cooled (Water-Cooled Replacement)\"),$BD$29*Table_SummaryPI[[#This Row],[Size]]*Table_SummaryPI[[#This Row],[Quantity]]*Table_SummaryPI[[#This Row],[EFLHCooling]],\nIF(ISNUMBER(FIND(\"Dishwasher\",Table_SummaryPI[[#This Row],[ProposedMeasureCategory]],1)),$BH$29*Table_SummaryPI[[#This Row],[Quantity]],\nIF(ISNUMBER(FIND(\"Ice Maker\",Table_SummaryPI[[#This Row],[ProposedMeasureCategory]],1)),$BD$31*Table_SummaryPI[[#This Row],[Quantity]],\nIF(ISNUMBER(FIND(\"Spray Valve\",Table_SummaryPI[[#This Row],[ProposedMeasureCategory]],1)),$BH$31*Table_SummaryPI[[#This Row],[Quantity]],\n0)))),\"\")","v":""},{"$f":"IF(OR(Table_PI[[#This Row],[Hide: Electrification kWh]]=\"\",Table_PI[[#This Row],[Hide: Electrification kWh]]=0,ISTEXT(Table_PI[[#This Row],[Hide: Electrification kWh]])),\"\",Table_PI[[#This Row],[Hide: Electrification kWh]])","v":""},{"$f":"IF(OR(Table_PI[[#This Row],[Hide: Electrification GHG]]=\"\",Table_PI[[#This Row],[Hide: Electrification GHG]]=0,ISTEXT(Table_PI[[#This Row],[Hide: Electrification GHG]])),\"\",Table_PI[[#This Row],[Hide: Electrification GHG]])","v":""},{"$f":"IFERROR(IF(Table_SummaryPI[[#This Row],[kWhSavings]]=\"\",\"\",$BH$9*Table_SummaryPI[[#This Row],[kWhSavings]]),0)","v":""},{"$f":"IFERROR(IF(Table_SummaryPI[[#This Row],[kWhSavings]]=\"\",\"\",$BH$14*Table_SummaryPI[[#This Row],[kWhSavings]]),0)","v":""},{"$f":"IFERROR(IF(Table_SummaryPI[[#This Row],[kWhSavings]]=\"\",\"\",$BH$18*Table_SummaryPI[[#This Row],[kWhSavings]]),0)","v":""},{"$f":"IFERROR(IF(Table_SummaryPI[[#This Row],[kWhSavings]]=\"\",\"\",$BH$22*Table_SummaryPI[[#This Row],[kWhSavings]]),0)","v":""}]
[{"$f":"Table_PI[[#This Row],[Line No.]]","v":""},{"$f":"IF(Table_SummaryPI[[#This Row],[MeasureName]]<>\"\",NOT(ISTEXT(Table_PI[[#This Row],[Rebate]])),\"\")","v":""},{"$f":"IF(Table_SummaryPI[[#This Row],[MeassureCategory]]<>\"\",CONCATENATE(Table_SummaryPI[[#This Row],[MeassureCategory]],  \" - \", Table_SummaryPI[[#This Row],[ProposedMeasureCategory]],  \" - \", TEXT(Table_SummaryPI[[#This Row],[Size]],\"#,##0.00\"),\" \",Table_SummaryPI[[#This Row],[SizeUnit]]),\"\")","v":""},{"$f":"SUBSTITUTE(Table_PI[[#This Row],[Measure]],\"     \",\"\",1)","v":""},{"$f":"IF(Table_PI[[#This Row],[List 1]]<>\"\",Table_PI[[#This Row],[List 1]],\"\")","v":""},{"$f":"IF(Table_PI[[#This Row],[List 2]]<>\"\",Table_PI[[#This Row],[List 2]],\"\")","v":""},{"$f":"IF(Table_PI[[#This Row],[List 3]]<>\"\",Table_PI[[#This Row],[List 3]],\"\")","v":""},{"$f":"IF(Table_PI[[#This Row],[Manufacturer]]=\"\",\"\",Table_PI[[#This Row],[Manufacturer]])","v":""},{"$f":"IF(Table_PI[[#This Row],[Model Number]]=\"\",\"\",Table_PI[[#This Row],[Model Number]])","v":""},{"$f":"IF(Table_PI[[#This Row],[Serial Number(s)]]=\"\",\"\",Table_PI[[#This Row],[Serial Number(s)]])","v":""},null,{"$f":"IF(Table_PI[[#This Row],[Size]]=\"\",\"\",Table_PI[[#This Row],[Size]])","v":""},null,null,{"$f":"IF(Table_PI[[#This Row],[Input 1]]<>\"\",Table_PI[[#This Row],[Input 1]],\"\")","v":""},null,null,{"$f":"IF(Table_PI[[#This Row],[Input 2]]<>\"\",Table_PI[[#This Row],[Input 2]],\"\")","v":""},null,null,{"$f":"IF(Table_PI[[#This Row],[Input 3]]<>\"\",Table_PI[[#This Row],[Input 3]],\"\")","v":""},null,null,{"$f":"IF(Table_PI[[#This Row],[Input 4]]<>\"\",Table_PI[[#This Row],[Input 4]],\"\")","v":""},null,null,{"$f":"IF(Table_PI[[#This Row],[Input 4]]<>\"\",Table_PI[[#This Row],[Input 4]],\"\")","v":""},null,null,{"$f":"IF(Table_PI[[#This Row],[Input 4]]<>\"\",Table_PI[[#This Row],[Input 4]],\"\")","v":""},{"$f":"IF(Table_PI[[#This Row],[Quantity]]=\"\",\"\",Table_PI[[#This Row],[Quantity]])","v":""},{"$f":"IF(Table_PI[[#This Row],[Notes]]=\"\",\"\",Table_PI[[#This Row],[Notes]])","v":""},{"$f":"IF(OR(Table_PI[[#This Row],[Hide: Baseline kWh]]=\"\",Table_PI[[#This Row],[Hide: Baseline kWh]]=0,ISTEXT(Table_PI[[#This Row],[Hide: Baseline kWh]])),\"\",Table_PI[[#This Row],[Hide: Baseline kWh]])","v":""},{"$f":"IF(OR(Table_PI[[#This Row],[Hide: Baseline kW]]=\"\",Table_PI[[#This Row],[Hide: Baseline kW]]=0,ISTEXT(Table_PI[[#This Row],[Hide: Baseline kW]])),\"\",Table_PI[[#This Row],[Hide: Baseline kW]])","v":""},{"$f":"IF(OR(Table_PI[[#This Row],[Hide: Proposed kWh]]=\"\",Table_PI[[#This Row],[Hide: Proposed kWh]]=0,ISTEXT(Table_PI[[#This Row],[Hide: Proposed kWh]])),\"\",Table_PI[[#This Row],[Hide: Proposed kWh]])","v":""},{"$f":"IF(OR(Table_PI[[#This Row],[Hide: Proposed kW]]=\"\",Table_PI[[#This Row],[Hide: Proposed kW]]=0,ISTEXT(Table_PI[[#This Row],[Hide: Proposed kW]])),\"\",Table_PI[[#This Row],[Hide: Proposed kW]])","v":""},null,null,{"$f":"IF(OR(Table_PI[[#This Row],[Hide: Rebate]]=\"\",Table_PI[[#This Row],[Hide: Rebate]]=0,ISTEXT(Table_PI[[#This Row],[Hide: Rebate]])),\"\",Table_PI[[#This Row],[Hide: Rebate]])","v":""},null,{"$f":"IF(OR(Table_PI[[#This Row],[Hide: Incremental Cost]]=\"\",Table_PI[[#This Row],[Hide: Incremental Cost]]=0,ISTEXT(Table_PI[[#This Row],[Hide: Incremental Cost]])),\"\",Table_PI[[#This Row],[Hide: Incremental Cost]])","v":""},{"$f":"IFERROR(IF(Table_SummaryPI[[#This Row],[Incentive_Customer]]=\"\",\"\",ROUND(Table_SummaryPI[[#This Row],[Incentive_Customer]]/$AM$401*'Customer Information'!$BC$21,2)),0)","v":""},{"$f":"IF(OR(Table_PI[[#This Row],[Annual kWh]]=\"\",Table_PI[[#This Row],[Annual kWh]]=0,ISTEXT(Table_PI[[#This Row],[Annual kWh]])),\"\",Table_PI[[#This Row],[Annual kWh]])","v":""},{"$f":"IF(OR(Table_PI[[#This Row],[Peak kW]]=\"\",Table_PI[[#This Row],[Peak kW]]=0,ISTEXT(Table_PI[[#This Row],[Peak kW]])),\"\",Table_PI[[#This Row],[Peak kW]])","v":""},{"$f":"IF(Table_SummaryPI[[#This Row],[Line No.]]<>\"\",IF(AND(ISNUMBER(FIND(\"Chiller\",Table_SummaryPI[[#This Row],[P_MeasureOption1]],1)),Table_SummaryPI[[#This Row],[ProposedMeasureCategory]]=\"Air-Cooled (Water-Cooled Replacement)\"),$BD$29*Table_SummaryPI[[#This Row],[Size]]*Table_SummaryPI[[#This Row],[Quantity]]*Table_SummaryPI[[#This Row],[EFLHCooling]],\nIF(ISNUMBER(FIND(\"Dishwasher\",Table_SummaryPI[[#This Row],[ProposedMeasureCategory]],1)),$BH$29*Table_SummaryPI[[#This Row],[Quantity]],\nIF(ISNUMBER(FIND(\"Ice Maker\",Table_SummaryPI[[#This Row],[ProposedMeasureCategory]],1)),$BD$31*Table_SummaryPI[[#This Row],[Quantity]],\nIF(ISNUMBER(FIND(\"Spray Valve\",Table_SummaryPI[[#This Row],[ProposedMeasureCategory]],1)),$BH$31*Table_SummaryPI[[#This Row],[Quantity]],\n0)))),\"\")","v":""},{"$f":"IF(OR(Table_PI[[#This Row],[Hide: Electrification kWh]]=\"\",Table_PI[[#This Row],[Hide: Electrification kWh]]=0,ISTEXT(Table_PI[[#This Row],[Hide: Electrification kWh]])),\"\",Table_PI[[#This Row],[Hide: Electrification kWh]])","v":""},{"$f":"IF(OR(Table_PI[[#This Row],[Hide: Electrification GHG]]=\"\",Table_PI[[#This Row],[Hide: Electrification GHG]]=0,ISTEXT(Table_PI[[#This Row],[Hide: Electrification GHG]])),\"\",Table_PI[[#This Row],[Hide: Electrification GHG]])","v":""},{"$f":"IFERROR(IF(Table_SummaryPI[[#This Row],[kWhSavings]]=\"\",\"\",$BH$9*Table_SummaryPI[[#This Row],[kWhSavings]]),0)","v":""},{"$f":"IFERROR(IF(Table_SummaryPI[[#This Row],[kWhSavings]]=\"\",\"\",$BH$14*Table_SummaryPI[[#This Row],[kWhSavings]]),0)","v":""},{"$f":"IFERROR(IF(Table_SummaryPI[[#This Row],[kWhSavings]]=\"\",\"\",$BH$18*Table_SummaryPI[[#This Row],[kWhSavings]]),0)","v":""},{"$f":"IFERROR(IF(Table_SummaryPI[[#This Row],[kWhSavings]]=\"\",\"\",$BH$22*Table_SummaryPI[[#This Row],[kWhSavings]]),0)","v":""}]
[{"$f":"Table_PI[[#This Row],[Line No.]]","v":""},{"$f":"IF(Table_SummaryPI[[#This Row],[MeasureName]]<>\"\",NOT(ISTEXT(Table_PI[[#This Row],[Rebate]])),\"\")","v":""},{"$f":"IF(Table_SummaryPI[[#This Row],[MeassureCategory]]<>\"\",CONCATENATE(Table_SummaryPI[[#This Row],[MeassureCategory]],  \" - \", Table_SummaryPI[[#This Row],[ProposedMeasureCategory]],  \" - \", TEXT(Table_SummaryPI[[#This Row],[Size]],\"#,##0.00\"),\" \",Table_SummaryPI[[#This Row],[SizeUnit]]),\"\")","v":""},{"$f":"SUBSTITUTE(Table_PI[[#This Row],[Measure]],\"     \",\"\",1)","v":""},{"$f":"IF(Table_PI[[#This Row],[List 1]]<>\"\",Table_PI[[#This Row],[List 1]],\"\")","v":""},{"$f":"IF(Table_PI[[#This Row],[List 2]]<>\"\",Table_PI[[#This Row],[List 2]],\"\")","v":""},{"$f":"IF(Table_PI[[#This Row],[List 3]]<>\"\",Table_PI[[#This Row],[List 3]],\"\")","v":""},{"$f":"IF(Table_PI[[#This Row],[Manufacturer]]=\"\",\"\",Table_PI[[#This Row],[Manufacturer]])","v":""},{"$f":"IF(Table_PI[[#This Row],[Model Number]]=\"\",\"\",Table_PI[[#This Row],[Model Number]])","v":""},{"$f":"IF(Table_PI[[#This Row],[Serial Number(s)]]=\"\",\"\",Table_PI[[#This Row],[Serial Number(s)]])","v":""},null,{"$f":"IF(Table_PI[[#This Row],[Size]]=\"\",\"\",Table_PI[[#This Row],[Size]])","v":""},null,null,{"$f":"IF(Table_PI[[#This Row],[Input 1]]<>\"\",Table_PI[[#This Row],[Input 1]],\"\")","v":""},null,null,{"$f":"IF(Table_PI[[#This Row],[Input 2]]<>\"\",Table_PI[[#This Row],[Input 2]],\"\")","v":""},null,null,{"$f":"IF(Table_PI[[#This Row],[Input 3]]<>\"\",Table_PI[[#This Row],[Input 3]],\"\")","v":""},null,null,{"$f":"IF(Table_PI[[#This Row],[Input 4]]<>\"\",Table_PI[[#This Row],[Input 4]],\"\")","v":""},null,null,{"$f":"IF(Table_PI[[#This Row],[Input 4]]<>\"\",Table_PI[[#This Row],[Input 4]],\"\")","v":""},null,null,{"$f":"IF(Table_PI[[#This Row],[Input 4]]<>\"\",Table_PI[[#This Row],[Input 4]],\"\")","v":""},{"$f":"IF(Table_PI[[#This Row],[Quantity]]=\"\",\"\",Table_PI[[#This Row],[Quantity]])","v":""},{"$f":"IF(Table_PI[[#This Row],[Notes]]=\"\",\"\",Table_PI[[#This Row],[Notes]])","v":""},{"$f":"IF(OR(Table_PI[[#This Row],[Hide: Baseline kWh]]=\"\",Table_PI[[#This Row],[Hide: Baseline kWh]]=0,ISTEXT(Table_PI[[#This Row],[Hide: Baseline kWh]])),\"\",Table_PI[[#This Row],[Hide: Baseline kWh]])","v":""},{"$f":"IF(OR(Table_PI[[#This Row],[Hide: Baseline kW]]=\"\",Table_PI[[#This Row],[Hide: Baseline kW]]=0,ISTEXT(Table_PI[[#This Row],[Hide: Baseline kW]])),\"\",Table_PI[[#This Row],[Hide: Baseline kW]])","v":""},{"$f":"IF(OR(Table_PI[[#This Row],[Hide: Proposed kWh]]=\"\",Table_PI[[#This Row],[Hide: Proposed kWh]]=0,ISTEXT(Table_PI[[#This Row],[Hide: Proposed kWh]])),\"\",Table_PI[[#This Row],[Hide: Proposed kWh]])","v":""},{"$f":"IF(OR(Table_PI[[#This Row],[Hide: Proposed kW]]=\"\",Table_PI[[#This Row],[Hide: Proposed kW]]=0,ISTEXT(Table_PI[[#This Row],[Hide: Proposed kW]])),\"\",Table_PI[[#This Row],[Hide: Proposed kW]])","v":""},null,null,{"$f":"IF(OR(Table_PI[[#This Row],[Hide: Rebate]]=\"\",Table_PI[[#This Row],[Hide: Rebate]]=0,ISTEXT(Table_PI[[#This Row],[Hide: Rebate]])),\"\",Table_PI[[#This Row],[Hide: Rebate]])","v":""},null,{"$f":"IF(OR(Table_PI[[#This Row],[Hide: Incremental Cost]]=\"\",Table_PI[[#This Row],[Hide: Incremental Cost]]=0,ISTEXT(Table_PI[[#This Row],[Hide: Incremental Cost]])),\"\",Table_PI[[#This Row],[Hide: Incremental Cost]])","v":""},{"$f":"IFERROR(IF(Table_SummaryPI[[#This Row],[Incentive_Customer]]=\"\",\"\",ROUND(Table_SummaryPI[[#This Row],[Incentive_Customer]]/$AM$401*'Customer Information'!$BC$21,2)),0)","v":""},{"$f":"IF(OR(Table_PI[[#This Row],[Annual kWh]]=\"\",Table_PI[[#This Row],[Annual kWh]]=0,ISTEXT(Table_PI[[#This Row],[Annual kWh]])),\"\",Table_PI[[#This Row],[Annual kWh]])","v":""},{"$f":"IF(OR(Table_PI[[#This Row],[Peak kW]]=\"\",Table_PI[[#This Row],[Peak kW]]=0,ISTEXT(Table_PI[[#This Row],[Peak kW]])),\"\",Table_PI[[#This Row],[Peak kW]])","v":""},{"$f":"IF(Table_SummaryPI[[#This Row],[Line No.]]<>\"\",IF(AND(ISNUMBER(FIND(\"Chiller\",Table_SummaryPI[[#This Row],[P_MeasureOption1]],1)),Table_SummaryPI[[#This Row],[ProposedMeasureCategory]]=\"Air-Cooled (Water-Cooled Replacement)\"),$BD$29*Table_SummaryPI[[#This Row],[Size]]*Table_SummaryPI[[#This Row],[Quantity]]*Table_SummaryPI[[#This Row],[EFLHCooling]],\nIF(ISNUMBER(FIND(\"Dishwasher\",Table_SummaryPI[[#This Row],[ProposedMeasureCategory]],1)),$BH$29*Table_SummaryPI[[#This Row],[Quantity]],\nIF(ISNUMBER(FIND(\"Ice Maker\",Table_SummaryPI[[#This Row],[ProposedMeasureCategory]],1)),$BD$31*Table_SummaryPI[[#This Row],[Quantity]],\nIF(ISNUMBER(FIND(\"Spray Valve\",Table_SummaryPI[[#This Row],[ProposedMeasureCategory]],1)),$BH$31*Table_SummaryPI[[#This Row],[Quantity]],\n0)))),\"\")","v":""},{"$f":"IF(OR(Table_PI[[#This Row],[Hide: Electrification kWh]]=\"\",Table_PI[[#This Row],[Hide: Electrification kWh]]=0,ISTEXT(Table_PI[[#This Row],[Hide: Electrification kWh]])),\"\",Table_PI[[#This Row],[Hide: Electrification kWh]])","v":""},{"$f":"IF(OR(Table_PI[[#This Row],[Hide: Electrification GHG]]=\"\",Table_PI[[#This Row],[Hide: Electrification GHG]]=0,ISTEXT(Table_PI[[#This Row],[Hide: Electrification GHG]])),\"\",Table_PI[[#This Row],[Hide: Electrification GHG]])","v":""},{"$f":"IFERROR(IF(Table_SummaryPI[[#This Row],[kWhSavings]]=\"\",\"\",$BH$9*Table_SummaryPI[[#This Row],[kWhSavings]]),0)","v":""},{"$f":"IFERROR(IF(Table_SummaryPI[[#This Row],[kWhSavings]]=\"\",\"\",$BH$14*Table_SummaryPI[[#This Row],[kWhSavings]]),0)","v":""},{"$f":"IFERROR(IF(Table_SummaryPI[[#This Row],[kWhSavings]]=\"\",\"\",$BH$18*Table_SummaryPI[[#This Row],[kWhSavings]]),0)","v":""},{"$f":"IFERROR(IF(Table_SummaryPI[[#This Row],[kWhSavings]]=\"\",\"\",$BH$22*Table_SummaryPI[[#This Row],[kWhSavings]]),0)","v":""}]
[{"$f":"Table_PI[[#This Row],[Line No.]]","v":""},{"$f":"IF(Table_SummaryPI[[#This Row],[MeasureName]]<>\"\",NOT(ISTEXT(Table_PI[[#This Row],[Rebate]])),\"\")","v":""},{"$f":"IF(Table_SummaryPI[[#This Row],[MeassureCategory]]<>\"\",CONCATENATE(Table_SummaryPI[[#This Row],[MeassureCategory]],  \" - \", Table_SummaryPI[[#This Row],[ProposedMeasureCategory]],  \" - \", TEXT(Table_SummaryPI[[#This Row],[Size]],\"#,##0.00\"),\" \",Table_SummaryPI[[#This Row],[SizeUnit]]),\"\")","v":""},{"$f":"SUBSTITUTE(Table_PI[[#This Row],[Measure]],\"     \",\"\",1)","v":""},{"$f":"IF(Table_PI[[#This Row],[List 1]]<>\"\",Table_PI[[#This Row],[List 1]],\"\")","v":""},{"$f":"IF(Table_PI[[#This Row],[List 2]]<>\"\",Table_PI[[#This Row],[List 2]],\"\")","v":""},{"$f":"IF(Table_PI[[#This Row],[List 3]]<>\"\",Table_PI[[#This Row],[List 3]],\"\")","v":""},{"$f":"IF(Table_PI[[#This Row],[Manufacturer]]=\"\",\"\",Table_PI[[#This Row],[Manufacturer]])","v":""},{"$f":"IF(Table_PI[[#This Row],[Model Number]]=\"\",\"\",Table_PI[[#This Row],[Model Number]])","v":""},{"$f":"IF(Table_PI[[#This Row],[Serial Number(s)]]=\"\",\"\",Table_PI[[#This Row],[Serial Number(s)]])","v":""},null,{"$f":"IF(Table_PI[[#This Row],[Size]]=\"\",\"\",Table_PI[[#This Row],[Size]])","v":""},null,null,{"$f":"IF(Table_PI[[#This Row],[Input 1]]<>\"\",Table_PI[[#This Row],[Input 1]],\"\")","v":""},null,null,{"$f":"IF(Table_PI[[#This Row],[Input 2]]<>\"\",Table_PI[[#This Row],[Input 2]],\"\")","v":""},null,null,{"$f":"IF(Table_PI[[#This Row],[Input 3]]<>\"\",Table_PI[[#This Row],[Input 3]],\"\")","v":""},null,null,{"$f":"IF(Table_PI[[#This Row],[Input 4]]<>\"\",Table_PI[[#This Row],[Input 4]],\"\")","v":""},null,null,{"$f":"IF(Table_PI[[#This Row],[Input 4]]<>\"\",Table_PI[[#This Row],[Input 4]],\"\")","v":""},null,null,{"$f":"IF(Table_PI[[#This Row],[Input 4]]<>\"\",Table_PI[[#This Row],[Input 4]],\"\")","v":""},{"$f":"IF(Table_PI[[#This Row],[Quantity]]=\"\",\"\",Table_PI[[#This Row],[Quantity]])","v":""},{"$f":"IF(Table_PI[[#This Row],[Notes]]=\"\",\"\",Table_PI[[#This Row],[Notes]])","v":""},{"$f":"IF(OR(Table_PI[[#This Row],[Hide: Baseline kWh]]=\"\",Table_PI[[#This Row],[Hide: Baseline kWh]]=0,ISTEXT(Table_PI[[#This Row],[Hide: Baseline kWh]])),\"\",Table_PI[[#This Row],[Hide: Baseline kWh]])","v":""},{"$f":"IF(OR(Table_PI[[#This Row],[Hide: Baseline kW]]=\"\",Table_PI[[#This Row],[Hide: Baseline kW]]=0,ISTEXT(Table_PI[[#This Row],[Hide: Baseline kW]])),\"\",Table_PI[[#This Row],[Hide: Baseline kW]])","v":""},{"$f":"IF(OR(Table_PI[[#This Row],[Hide: Proposed kWh]]=\"\",Table_PI[[#This Row],[Hide: Proposed kWh]]=0,ISTEXT(Table_PI[[#This Row],[Hide: Proposed kWh]])),\"\",Table_PI[[#This Row],[Hide: Proposed kWh]])","v":""},{"$f":"IF(OR(Table_PI[[#This Row],[Hide: Proposed kW]]=\"\",Table_PI[[#This Row],[Hide: Proposed kW]]=0,ISTEXT(Table_PI[[#This Row],[Hide: Proposed kW]])),\"\",Table_PI[[#This Row],[Hide: Proposed kW]])","v":""},null,null,{"$f":"IF(OR(Table_PI[[#This Row],[Hide: Rebate]]=\"\",Table_PI[[#This Row],[Hide: Rebate]]=0,ISTEXT(Table_PI[[#This Row],[Hide: Rebate]])),\"\",Table_PI[[#This Row],[Hide: Rebate]])","v":""},null,{"$f":"IF(OR(Table_PI[[#This Row],[Hide: Incremental Cost]]=\"\",Table_PI[[#This Row],[Hide: Incremental Cost]]=0,ISTEXT(Table_PI[[#This Row],[Hide: Incremental Cost]])),\"\",Table_PI[[#This Row],[Hide: Incremental Cost]])","v":""},{"$f":"IFERROR(IF(Table_SummaryPI[[#This Row],[Incentive_Customer]]=\"\",\"\",ROUND(Table_SummaryPI[[#This Row],[Incentive_Customer]]/$AM$401*'Customer Information'!$BC$21,2)),0)","v":""},{"$f":"IF(OR(Table_PI[[#This Row],[Annual kWh]]=\"\",Table_PI[[#This Row],[Annual kWh]]=0,ISTEXT(Table_PI[[#This Row],[Annual kWh]])),\"\",Table_PI[[#This Row],[Annual kWh]])","v":""},{"$f":"IF(OR(Table_PI[[#This Row],[Peak kW]]=\"\",Table_PI[[#This Row],[Peak kW]]=0,ISTEXT(Table_PI[[#This Row],[Peak kW]])),\"\",Table_PI[[#This Row],[Peak kW]])","v":""},{"$f":"IF(Table_SummaryPI[[#This Row],[Line No.]]<>\"\",IF(AND(ISNUMBER(FIND(\"Chiller\",Table_SummaryPI[[#This Row],[P_MeasureOption1]],1)),Table_SummaryPI[[#This Row],[ProposedMeasureCategory]]=\"Air-Cooled (Water-Cooled Replacement)\"),$BD$29*Table_SummaryPI[[#This Row],[Size]]*Table_SummaryPI[[#This Row],[Quantity]]*Table_SummaryPI[[#This Row],[EFLHCooling]],\nIF(ISNUMBER(FIND(\"Dishwasher\",Table_SummaryPI[[#This Row],[ProposedMeasureCategory]],1)),$BH$29*Table_SummaryPI[[#This Row],[Quantity]],\nIF(ISNUMBER(FIND(\"Ice Maker\",Table_SummaryPI[[#This Row],[ProposedMeasureCategory]],1)),$BD$31*Table_SummaryPI[[#This Row],[Quantity]],\nIF(ISNUMBER(FIND(\"Spray Valve\",Table_SummaryPI[[#This Row],[ProposedMeasureCategory]],1)),$BH$31*Table_SummaryPI[[#This Row],[Quantity]],\n0)))),\"\")","v":""},{"$f":"IF(OR(Table_PI[[#This Row],[Hide: Electrification kWh]]=\"\",Table_PI[[#This Row],[Hide: Electrification kWh]]=0,ISTEXT(Table_PI[[#This Row],[Hide: Electrification kWh]])),\"\",Table_PI[[#This Row],[Hide: Electrification kWh]])","v":""},{"$f":"IF(OR(Table_PI[[#This Row],[Hide: Electrification GHG]]=\"\",Table_PI[[#This Row],[Hide: Electrification GHG]]=0,ISTEXT(Table_PI[[#This Row],[Hide: Electrification GHG]])),\"\",Table_PI[[#This Row],[Hide: Electrification GHG]])","v":""},{"$f":"IFERROR(IF(Table_SummaryPI[[#This Row],[kWhSavings]]=\"\",\"\",$BH$9*Table_SummaryPI[[#This Row],[kWhSavings]]),0)","v":""},{"$f":"IFERROR(IF(Table_SummaryPI[[#This Row],[kWhSavings]]=\"\",\"\",$BH$14*Table_SummaryPI[[#This Row],[kWhSavings]]),0)","v":""},{"$f":"IFERROR(IF(Table_SummaryPI[[#This Row],[kWhSavings]]=\"\",\"\",$BH$18*Table_SummaryPI[[#This Row],[kWhSavings]]),0)","v":""},{"$f":"IFERROR(IF(Table_SummaryPI[[#This Row],[kWhSavings]]=\"\",\"\",$BH$22*Table_SummaryPI[[#This Row],[kWhSavings]]),0)","v":""}]
[{"$f":"Table_PI[[#This Row],[Line No.]]","v":""},{"$f":"IF(Table_SummaryPI[[#This Row],[MeasureName]]<>\"\",NOT(ISTEXT(Table_PI[[#This Row],[Rebate]])),\"\")","v":""},{"$f":"IF(Table_SummaryPI[[#This Row],[MeassureCategory]]<>\"\",CONCATENATE(Table_SummaryPI[[#This Row],[MeassureCategory]],  \" - \", Table_SummaryPI[[#This Row],[ProposedMeasureCategory]],  \" - \", TEXT(Table_SummaryPI[[#This Row],[Size]],\"#,##0.00\"),\" \",Table_SummaryPI[[#This Row],[SizeUnit]]),\"\")","v":""},{"$f":"SUBSTITUTE(Table_PI[[#This Row],[Measure]],\"     \",\"\",1)","v":""},{"$f":"IF(Table_PI[[#This Row],[List 1]]<>\"\",Table_PI[[#This Row],[List 1]],\"\")","v":""},{"$f":"IF(Table_PI[[#This Row],[List 2]]<>\"\",Table_PI[[#This Row],[List 2]],\"\")","v":""},{"$f":"IF(Table_PI[[#This Row],[List 3]]<>\"\",Table_PI[[#This Row],[List 3]],\"\")","v":""},{"$f":"IF(Table_PI[[#This Row],[Manufacturer]]=\"\",\"\",Table_PI[[#This Row],[Manufacturer]])","v":""},{"$f":"IF(Table_PI[[#This Row],[Model Number]]=\"\",\"\",Table_PI[[#This Row],[Model Number]])","v":""},{"$f":"IF(Table_PI[[#This Row],[Serial Number(s)]]=\"\",\"\",Table_PI[[#This Row],[Serial Number(s)]])","v":""},null,{"$f":"IF(Table_PI[[#This Row],[Size]]=\"\",\"\",Table_PI[[#This Row],[Size]])","v":""},null,null,{"$f":"IF(Table_PI[[#This Row],[Input 1]]<>\"\",Table_PI[[#This Row],[Input 1]],\"\")","v":""},null,null,{"$f":"IF(Table_PI[[#This Row],[Input 2]]<>\"\",Table_PI[[#This Row],[Input 2]],\"\")","v":""},null,null,{"$f":"IF(Table_PI[[#This Row],[Input 3]]<>\"\",Table_PI[[#This Row],[Input 3]],\"\")","v":""},null,null,{"$f":"IF(Table_PI[[#This Row],[Input 4]]<>\"\",Table_PI[[#This Row],[Input 4]],\"\")","v":""},null,null,{"$f":"IF(Table_PI[[#This Row],[Input 4]]<>\"\",Table_PI[[#This Row],[Input 4]],\"\")","v":""},null,null,{"$f":"IF(Table_PI[[#This Row],[Input 4]]<>\"\",Table_PI[[#This Row],[Input 4]],\"\")","v":""},{"$f":"IF(Table_PI[[#This Row],[Quantity]]=\"\",\"\",Table_PI[[#This Row],[Quantity]])","v":""},{"$f":"IF(Table_PI[[#This Row],[Notes]]=\"\",\"\",Table_PI[[#This Row],[Notes]])","v":""},{"$f":"IF(OR(Table_PI[[#This Row],[Hide: Baseline kWh]]=\"\",Table_PI[[#This Row],[Hide: Baseline kWh]]=0,ISTEXT(Table_PI[[#This Row],[Hide: Baseline kWh]])),\"\",Table_PI[[#This Row],[Hide: Baseline kWh]])","v":""},{"$f":"IF(OR(Table_PI[[#This Row],[Hide: Baseline kW]]=\"\",Table_PI[[#This Row],[Hide: Baseline kW]]=0,ISTEXT(Table_PI[[#This Row],[Hide: Baseline kW]])),\"\",Table_PI[[#This Row],[Hide: Baseline kW]])","v":""},{"$f":"IF(OR(Table_PI[[#This Row],[Hide: Proposed kWh]]=\"\",Table_PI[[#This Row],[Hide: Proposed kWh]]=0,ISTEXT(Table_PI[[#This Row],[Hide: Proposed kWh]])),\"\",Table_PI[[#This Row],[Hide: Proposed kWh]])","v":""},{"$f":"IF(OR(Table_PI[[#This Row],[Hide: Proposed kW]]=\"\",Table_PI[[#This Row],[Hide: Proposed kW]]=0,ISTEXT(Table_PI[[#This Row],[Hide: Proposed kW]])),\"\",Table_PI[[#This Row],[Hide: Proposed kW]])","v":""},null,null,{"$f":"IF(OR(Table_PI[[#This Row],[Hide: Rebate]]=\"\",Table_PI[[#This Row],[Hide: Rebate]]=0,ISTEXT(Table_PI[[#This Row],[Hide: Rebate]])),\"\",Table_PI[[#This Row],[Hide: Rebate]])","v":""},null,{"$f":"IF(OR(Table_PI[[#This Row],[Hide: Incremental Cost]]=\"\",Table_PI[[#This Row],[Hide: Incremental Cost]]=0,ISTEXT(Table_PI[[#This Row],[Hide: Incremental Cost]])),\"\",Table_PI[[#This Row],[Hide: Incremental Cost]])","v":""},{"$f":"IFERROR(IF(Table_SummaryPI[[#This Row],[Incentive_Customer]]=\"\",\"\",ROUND(Table_SummaryPI[[#This Row],[Incentive_Customer]]/$AM$401*'Customer Information'!$BC$21,2)),0)","v":""},{"$f":"IF(OR(Table_PI[[#This Row],[Annual kWh]]=\"\",Table_PI[[#This Row],[Annual kWh]]=0,ISTEXT(Table_PI[[#This Row],[Annual kWh]])),\"\",Table_PI[[#This Row],[Annual kWh]])","v":""},{"$f":"IF(OR(Table_PI[[#This Row],[Peak kW]]=\"\",Table_PI[[#This Row],[Peak kW]]=0,ISTEXT(Table_PI[[#This Row],[Peak kW]])),\"\",Table_PI[[#This Row],[Peak kW]])","v":""},{"$f":"IF(Table_SummaryPI[[#This Row],[Line No.]]<>\"\",IF(AND(ISNUMBER(FIND(\"Chiller\",Table_SummaryPI[[#This Row],[P_MeasureOption1]],1)),Table_SummaryPI[[#This Row],[ProposedMeasureCategory]]=\"Air-Cooled (Water-Cooled Replacement)\"),$BD$29*Table_SummaryPI[[#This Row],[Size]]*Table_SummaryPI[[#This Row],[Quantity]]*Table_SummaryPI[[#This Row],[EFLHCooling]],\nIF(ISNUMBER(FIND(\"Dishwasher\",Table_SummaryPI[[#This Row],[ProposedMeasureCategory]],1)),$BH$29*Table_SummaryPI[[#This Row],[Quantity]],\nIF(ISNUMBER(FIND(\"Ice Maker\",Table_SummaryPI[[#This Row],[ProposedMeasureCategory]],1)),$BD$31*Table_SummaryPI[[#This Row],[Quantity]],\nIF(ISNUMBER(FIND(\"Spray Valve\",Table_SummaryPI[[#This Row],[ProposedMeasureCategory]],1)),$BH$31*Table_SummaryPI[[#This Row],[Quantity]],\n0)))),\"\")","v":""},{"$f":"IF(OR(Table_PI[[#This Row],[Hide: Electrification kWh]]=\"\",Table_PI[[#This Row],[Hide: Electrification kWh]]=0,ISTEXT(Table_PI[[#This Row],[Hide: Electrification kWh]])),\"\",Table_PI[[#This Row],[Hide: Electrification kWh]])","v":""},{"$f":"IF(OR(Table_PI[[#This Row],[Hide: Electrification GHG]]=\"\",Table_PI[[#This Row],[Hide: Electrification GHG]]=0,ISTEXT(Table_PI[[#This Row],[Hide: Electrification GHG]])),\"\",Table_PI[[#This Row],[Hide: Electrification GHG]])","v":""},{"$f":"IFERROR(IF(Table_SummaryPI[[#This Row],[kWhSavings]]=\"\",\"\",$BH$9*Table_SummaryPI[[#This Row],[kWhSavings]]),0)","v":""},{"$f":"IFERROR(IF(Table_SummaryPI[[#This Row],[kWhSavings]]=\"\",\"\",$BH$14*Table_SummaryPI[[#This Row],[kWhSavings]]),0)","v":""},{"$f":"IFERROR(IF(Table_SummaryPI[[#This Row],[kWhSavings]]=\"\",\"\",$BH$18*Table_SummaryPI[[#This Row],[kWhSavings]]),0)","v":""},{"$f":"IFERROR(IF(Table_SummaryPI[[#This Row],[kWhSavings]]=\"\",\"\",$BH$22*Table_SummaryPI[[#This Row],[kWhSavings]]),0)","v":""}]
[{"$f":"Table_PI[[#This Row],[Line No.]]","v":""},{"$f":"IF(Table_SummaryPI[[#This Row],[MeasureName]]<>\"\",NOT(ISTEXT(Table_PI[[#This Row],[Rebate]])),\"\")","v":""},{"$f":"IF(Table_SummaryPI[[#This Row],[MeassureCategory]]<>\"\",CONCATENATE(Table_SummaryPI[[#This Row],[MeassureCategory]],  \" - \", Table_SummaryPI[[#This Row],[ProposedMeasureCategory]],  \" - \", TEXT(Table_SummaryPI[[#This Row],[Size]],\"#,##0.00\"),\" \",Table_SummaryPI[[#This Row],[SizeUnit]]),\"\")","v":""},{"$f":"SUBSTITUTE(Table_PI[[#This Row],[Measure]],\"     \",\"\",1)","v":""},{"$f":"IF(Table_PI[[#This Row],[List 1]]<>\"\",Table_PI[[#This Row],[List 1]],\"\")","v":""},{"$f":"IF(Table_PI[[#This Row],[List 2]]<>\"\",Table_PI[[#This Row],[List 2]],\"\")","v":""},{"$f":"IF(Table_PI[[#This Row],[List 3]]<>\"\",Table_PI[[#This Row],[List 3]],\"\")","v":""},{"$f":"IF(Table_PI[[#This Row],[Manufacturer]]=\"\",\"\",Table_PI[[#This Row],[Manufacturer]])","v":""},{"$f":"IF(Table_PI[[#This Row],[Model Number]]=\"\",\"\",Table_PI[[#This Row],[Model Number]])","v":""},{"$f":"IF(Table_PI[[#This Row],[Serial Number(s)]]=\"\",\"\",Table_PI[[#This Row],[Serial Number(s)]])","v":""},null,{"$f":"IF(Table_PI[[#This Row],[Size]]=\"\",\"\",Table_PI[[#This Row],[Size]])","v":""},null,null,{"$f":"IF(Table_PI[[#This Row],[Input 1]]<>\"\",Table_PI[[#This Row],[Input 1]],\"\")","v":""},null,null,{"$f":"IF(Table_PI[[#This Row],[Input 2]]<>\"\",Table_PI[[#This Row],[Input 2]],\"\")","v":""},null,null,{"$f":"IF(Table_PI[[#This Row],[Input 3]]<>\"\",Table_PI[[#This Row],[Input 3]],\"\")","v":""},null,null,{"$f":"IF(Table_PI[[#This Row],[Input 4]]<>\"\",Table_PI[[#This Row],[Input 4]],\"\")","v":""},null,null,{"$f":"IF(Table_PI[[#This Row],[Input 4]]<>\"\",Table_PI[[#This Row],[Input 4]],\"\")","v":""},null,null,{"$f":"IF(Table_PI[[#This Row],[Input 4]]<>\"\",Table_PI[[#This Row],[Input 4]],\"\")","v":""},{"$f":"IF(Table_PI[[#This Row],[Quantity]]=\"\",\"\",Table_PI[[#This Row],[Quantity]])","v":""},{"$f":"IF(Table_PI[[#This Row],[Notes]]=\"\",\"\",Table_PI[[#This Row],[Notes]])","v":""},{"$f":"IF(OR(Table_PI[[#This Row],[Hide: Baseline kWh]]=\"\",Table_PI[[#This Row],[Hide: Baseline kWh]]=0,ISTEXT(Table_PI[[#This Row],[Hide: Baseline kWh]])),\"\",Table_PI[[#This Row],[Hide: Baseline kWh]])","v":""},{"$f":"IF(OR(Table_PI[[#This Row],[Hide: Baseline kW]]=\"\",Table_PI[[#This Row],[Hide: Baseline kW]]=0,ISTEXT(Table_PI[[#This Row],[Hide: Baseline kW]])),\"\",Table_PI[[#This Row],[Hide: Baseline kW]])","v":""},{"$f":"IF(OR(Table_PI[[#This Row],[Hide: Proposed kWh]]=\"\",Table_PI[[#This Row],[Hide: Proposed kWh]]=0,ISTEXT(Table_PI[[#This Row],[Hide: Proposed kWh]])),\"\",Table_PI[[#This Row],[Hide: Proposed kWh]])","v":""},{"$f":"IF(OR(Table_PI[[#This Row],[Hide: Proposed kW]]=\"\",Table_PI[[#This Row],[Hide: Proposed kW]]=0,ISTEXT(Table_PI[[#This Row],[Hide: Proposed kW]])),\"\",Table_PI[[#This Row],[Hide: Proposed kW]])","v":""},null,null,{"$f":"IF(OR(Table_PI[[#This Row],[Hide: Rebate]]=\"\",Table_PI[[#This Row],[Hide: Rebate]]=0,ISTEXT(Table_PI[[#This Row],[Hide: Rebate]])),\"\",Table_PI[[#This Row],[Hide: Rebate]])","v":""},null,{"$f":"IF(OR(Table_PI[[#This Row],[Hide: Incremental Cost]]=\"\",Table_PI[[#This Row],[Hide: Incremental Cost]]=0,ISTEXT(Table_PI[[#This Row],[Hide: Incremental Cost]])),\"\",Table_PI[[#This Row],[Hide: Incremental Cost]])","v":""},{"$f":"IFERROR(IF(Table_SummaryPI[[#This Row],[Incentive_Customer]]=\"\",\"\",ROUND(Table_SummaryPI[[#This Row],[Incentive_Customer]]/$AM$401*'Customer Information'!$BC$21,2)),0)","v":""},{"$f":"IF(OR(Table_PI[[#This Row],[Annual kWh]]=\"\",Table_PI[[#This Row],[Annual kWh]]=0,ISTEXT(Table_PI[[#This Row],[Annual kWh]])),\"\",Table_PI[[#This Row],[Annual kWh]])","v":""},{"$f":"IF(OR(Table_PI[[#This Row],[Peak kW]]=\"\",Table_PI[[#This Row],[Peak kW]]=0,ISTEXT(Table_PI[[#This Row],[Peak kW]])),\"\",Table_PI[[#This Row],[Peak kW]])","v":""},{"$f":"IF(Table_SummaryPI[[#This Row],[Line No.]]<>\"\",IF(AND(ISNUMBER(FIND(\"Chiller\",Table_SummaryPI[[#This Row],[P_MeasureOption1]],1)),Table_SummaryPI[[#This Row],[ProposedMeasureCategory]]=\"Air-Cooled (Water-Cooled Replacement)\"),$BD$29*Table_SummaryPI[[#This Row],[Size]]*Table_SummaryPI[[#This Row],[Quantity]]*Table_SummaryPI[[#This Row],[EFLHCooling]],\nIF(ISNUMBER(FIND(\"Dishwasher\",Table_SummaryPI[[#This Row],[ProposedMeasureCategory]],1)),$BH$29*Table_SummaryPI[[#This Row],[Quantity]],\nIF(ISNUMBER(FIND(\"Ice Maker\",Table_SummaryPI[[#This Row],[ProposedMeasureCategory]],1)),$BD$31*Table_SummaryPI[[#This Row],[Quantity]],\nIF(ISNUMBER(FIND(\"Spray Valve\",Table_SummaryPI[[#This Row],[ProposedMeasureCategory]],1)),$BH$31*Table_SummaryPI[[#This Row],[Quantity]],\n0)))),\"\")","v":""},{"$f":"IF(OR(Table_PI[[#This Row],[Hide: Electrification kWh]]=\"\",Table_PI[[#This Row],[Hide: Electrification kWh]]=0,ISTEXT(Table_PI[[#This Row],[Hide: Electrification kWh]])),\"\",Table_PI[[#This Row],[Hide: Electrification kWh]])","v":""},{"$f":"IF(OR(Table_PI[[#This Row],[Hide: Electrification GHG]]=\"\",Table_PI[[#This Row],[Hide: Electrification GHG]]=0,ISTEXT(Table_PI[[#This Row],[Hide: Electrification GHG]])),\"\",Table_PI[[#This Row],[Hide: Electrification GHG]])","v":""},{"$f":"IFERROR(IF(Table_SummaryPI[[#This Row],[kWhSavings]]=\"\",\"\",$BH$9*Table_SummaryPI[[#This Row],[kWhSavings]]),0)","v":""},{"$f":"IFERROR(IF(Table_SummaryPI[[#This Row],[kWhSavings]]=\"\",\"\",$BH$14*Table_SummaryPI[[#This Row],[kWhSavings]]),0)","v":""},{"$f":"IFERROR(IF(Table_SummaryPI[[#This Row],[kWhSavings]]=\"\",\"\",$BH$18*Table_SummaryPI[[#This Row],[kWhSavings]]),0)","v":""},{"$f":"IFERROR(IF(Table_SummaryPI[[#This Row],[kWhSavings]]=\"\",\"\",$BH$22*Table_SummaryPI[[#This Row],[kWhSavings]]),0)","v":""}]
[{"$f":"Table_PI[[#This Row],[Line No.]]","v":""},{"$f":"IF(Table_SummaryPI[[#This Row],[MeasureName]]<>\"\",NOT(ISTEXT(Table_PI[[#This Row],[Rebate]])),\"\")","v":""},{"$f":"IF(Table_SummaryPI[[#This Row],[MeassureCategory]]<>\"\",CONCATENATE(Table_SummaryPI[[#This Row],[MeassureCategory]],  \" - \", Table_SummaryPI[[#This Row],[ProposedMeasureCategory]],  \" - \", TEXT(Table_SummaryPI[[#This Row],[Size]],\"#,##0.00\"),\" \",Table_SummaryPI[[#This Row],[SizeUnit]]),\"\")","v":""},{"$f":"SUBSTITUTE(Table_PI[[#This Row],[Measure]],\"     \",\"\",1)","v":""},{"$f":"IF(Table_PI[[#This Row],[List 1]]<>\"\",Table_PI[[#This Row],[List 1]],\"\")","v":""},{"$f":"IF(Table_PI[[#This Row],[List 2]]<>\"\",Table_PI[[#This Row],[List 2]],\"\")","v":""},{"$f":"IF(Table_PI[[#This Row],[List 3]]<>\"\",Table_PI[[#This Row],[List 3]],\"\")","v":""},{"$f":"IF(Table_PI[[#This Row],[Manufacturer]]=\"\",\"\",Table_PI[[#This Row],[Manufacturer]])","v":""},{"$f":"IF(Table_PI[[#This Row],[Model Number]]=\"\",\"\",Table_PI[[#This Row],[Model Number]])","v":""},{"$f":"IF(Table_PI[[#This Row],[Serial Number(s)]]=\"\",\"\",Table_PI[[#This Row],[Serial Number(s)]])","v":""},null,{"$f":"IF(Table_PI[[#This Row],[Size]]=\"\",\"\",Table_PI[[#This Row],[Size]])","v":""},null,null,{"$f":"IF(Table_PI[[#This Row],[Input 1]]<>\"\",Table_PI[[#This Row],[Input 1]],\"\")","v":""},null,null,{"$f":"IF(Table_PI[[#This Row],[Input 2]]<>\"\",Table_PI[[#This Row],[Input 2]],\"\")","v":""},null,null,{"$f":"IF(Table_PI[[#This Row],[Input 3]]<>\"\",Table_PI[[#This Row],[Input 3]],\"\")","v":""},null,null,{"$f":"IF(Table_PI[[#This Row],[Input 4]]<>\"\",Table_PI[[#This Row],[Input 4]],\"\")","v":""},null,null,{"$f":"IF(Table_PI[[#This Row],[Input 4]]<>\"\",Table_PI[[#This Row],[Input 4]],\"\")","v":""},null,null,{"$f":"IF(Table_PI[[#This Row],[Input 4]]<>\"\",Table_PI[[#This Row],[Input 4]],\"\")","v":""},{"$f":"IF(Table_PI[[#This Row],[Quantity]]=\"\",\"\",Table_PI[[#This Row],[Quantity]])","v":""},{"$f":"IF(Table_PI[[#This Row],[Notes]]=\"\",\"\",Table_PI[[#This Row],[Notes]])","v":""},{"$f":"IF(OR(Table_PI[[#This Row],[Hide: Baseline kWh]]=\"\",Table_PI[[#This Row],[Hide: Baseline kWh]]=0,ISTEXT(Table_PI[[#This Row],[Hide: Baseline kWh]])),\"\",Table_PI[[#This Row],[Hide: Baseline kWh]])","v":""},{"$f":"IF(OR(Table_PI[[#This Row],[Hide: Baseline kW]]=\"\",Table_PI[[#This Row],[Hide: Baseline kW]]=0,ISTEXT(Table_PI[[#This Row],[Hide: Baseline kW]])),\"\",Table_PI[[#This Row],[Hide: Baseline kW]])","v":""},{"$f":"IF(OR(Table_PI[[#This Row],[Hide: Proposed kWh]]=\"\",Table_PI[[#This Row],[Hide: Proposed kWh]]=0,ISTEXT(Table_PI[[#This Row],[Hide: Proposed kWh]])),\"\",Table_PI[[#This Row],[Hide: Proposed kWh]])","v":""},{"$f":"IF(OR(Table_PI[[#This Row],[Hide: Proposed kW]]=\"\",Table_PI[[#This Row],[Hide: Proposed kW]]=0,ISTEXT(Table_PI[[#This Row],[Hide: Proposed kW]])),\"\",Table_PI[[#This Row],[Hide: Proposed kW]])","v":""},null,null,{"$f":"IF(OR(Table_PI[[#This Row],[Hide: Rebate]]=\"\",Table_PI[[#This Row],[Hide: Rebate]]=0,ISTEXT(Table_PI[[#This Row],[Hide: Rebate]])),\"\",Table_PI[[#This Row],[Hide: Rebate]])","v":""},null,{"$f":"IF(OR(Table_PI[[#This Row],[Hide: Incremental Cost]]=\"\",Table_PI[[#This Row],[Hide: Incremental Cost]]=0,ISTEXT(Table_PI[[#This Row],[Hide: Incremental Cost]])),\"\",Table_PI[[#This Row],[Hide: Incremental Cost]])","v":""},{"$f":"IFERROR(IF(Table_SummaryPI[[#This Row],[Incentive_Customer]]=\"\",\"\",ROUND(Table_SummaryPI[[#This Row],[Incentive_Customer]]/$AM$401*'Customer Information'!$BC$21,2)),0)","v":""},{"$f":"IF(OR(Table_PI[[#This Row],[Annual kWh]]=\"\",Table_PI[[#This Row],[Annual kWh]]=0,ISTEXT(Table_PI[[#This Row],[Annual kWh]])),\"\",Table_PI[[#This Row],[Annual kWh]])","v":""},{"$f":"IF(OR(Table_PI[[#This Row],[Peak kW]]=\"\",Table_PI[[#This Row],[Peak kW]]=0,ISTEXT(Table_PI[[#This Row],[Peak kW]])),\"\",Table_PI[[#This Row],[Peak kW]])","v":""},{"$f":"IF(Table_SummaryPI[[#This Row],[Line No.]]<>\"\",IF(AND(ISNUMBER(FIND(\"Chiller\",Table_SummaryPI[[#This Row],[P_MeasureOption1]],1)),Table_SummaryPI[[#This Row],[ProposedMeasureCategory]]=\"Air-Cooled (Water-Cooled Replacement)\"),$BD$29*Table_SummaryPI[[#This Row],[Size]]*Table_SummaryPI[[#This Row],[Quantity]]*Table_SummaryPI[[#This Row],[EFLHCooling]],\nIF(ISNUMBER(FIND(\"Dishwasher\",Table_SummaryPI[[#This Row],[ProposedMeasureCategory]],1)),$BH$29*Table_SummaryPI[[#This Row],[Quantity]],\nIF(ISNUMBER(FIND(\"Ice Maker\",Table_SummaryPI[[#This Row],[ProposedMeasureCategory]],1)),$BD$31*Table_SummaryPI[[#This Row],[Quantity]],\nIF(ISNUMBER(FIND(\"Spray Valve\",Table_SummaryPI[[#This Row],[ProposedMeasureCategory]],1)),$BH$31*Table_SummaryPI[[#This Row],[Quantity]],\n0)))),\"\")","v":""},{"$f":"IF(OR(Table_PI[[#This Row],[Hide: Electrification kWh]]=\"\",Table_PI[[#This Row],[Hide: Electrification kWh]]=0,ISTEXT(Table_PI[[#This Row],[Hide: Electrification kWh]])),\"\",Table_PI[[#This Row],[Hide: Electrification kWh]])","v":""},{"$f":"IF(OR(Table_PI[[#This Row],[Hide: Electrification GHG]]=\"\",Table_PI[[#This Row],[Hide: Electrification GHG]]=0,ISTEXT(Table_PI[[#This Row],[Hide: Electrification GHG]])),\"\",Table_PI[[#This Row],[Hide: Electrification GHG]])","v":""},{"$f":"IFERROR(IF(Table_SummaryPI[[#This Row],[kWhSavings]]=\"\",\"\",$BH$9*Table_SummaryPI[[#This Row],[kWhSavings]]),0)","v":""},{"$f":"IFERROR(IF(Table_SummaryPI[[#This Row],[kWhSavings]]=\"\",\"\",$BH$14*Table_SummaryPI[[#This Row],[kWhSavings]]),0)","v":""},{"$f":"IFERROR(IF(Table_SummaryPI[[#This Row],[kWhSavings]]=\"\",\"\",$BH$18*Table_SummaryPI[[#This Row],[kWhSavings]]),0)","v":""},{"$f":"IFERROR(IF(Table_SummaryPI[[#This Row],[kWhSavings]]=\"\",\"\",$BH$22*Table_SummaryPI[[#This Row],[kWhSavings]]),0)","v":""}]
[{"$f":"Table_PI[[#This Row],[Line No.]]","v":""},{"$f":"IF(Table_SummaryPI[[#This Row],[MeasureName]]<>\"\",NOT(ISTEXT(Table_PI[[#This Row],[Rebate]])),\"\")","v":""},{"$f":"IF(Table_SummaryPI[[#This Row],[MeassureCategory]]<>\"\",CONCATENATE(Table_SummaryPI[[#This Row],[MeassureCategory]],  \" - \", Table_SummaryPI[[#This Row],[ProposedMeasureCategory]],  \" - \", TEXT(Table_SummaryPI[[#This Row],[Size]],\"#,##0.00\"),\" \",Table_SummaryPI[[#This Row],[SizeUnit]]),\"\")","v":""},{"$f":"SUBSTITUTE(Table_PI[[#This Row],[Measure]],\"     \",\"\",1)","v":""},{"$f":"IF(Table_PI[[#This Row],[List 1]]<>\"\",Table_PI[[#This Row],[List 1]],\"\")","v":""},{"$f":"IF(Table_PI[[#This Row],[List 2]]<>\"\",Table_PI[[#This Row],[List 2]],\"\")","v":""},{"$f":"IF(Table_PI[[#This Row],[List 3]]<>\"\",Table_PI[[#This Row],[List 3]],\"\")","v":""},{"$f":"IF(Table_PI[[#This Row],[Manufacturer]]=\"\",\"\",Table_PI[[#This Row],[Manufacturer]])","v":""},{"$f":"IF(Table_PI[[#This Row],[Model Number]]=\"\",\"\",Table_PI[[#This Row],[Model Number]])","v":""},{"$f":"IF(Table_PI[[#This Row],[Serial Number(s)]]=\"\",\"\",Table_PI[[#This Row],[Serial Number(s)]])","v":""},null,{"$f":"IF(Table_PI[[#This Row],[Size]]=\"\",\"\",Table_PI[[#This Row],[Size]])","v":""},null,null,{"$f":"IF(Table_PI[[#This Row],[Input 1]]<>\"\",Table_PI[[#This Row],[Input 1]],\"\")","v":""},null,null,{"$f":"IF(Table_PI[[#This Row],[Input 2]]<>\"\",Table_PI[[#This Row],[Input 2]],\"\")","v":""},null,null,{"$f":"IF(Table_PI[[#This Row],[Input 3]]<>\"\",Table_PI[[#This Row],[Input 3]],\"\")","v":""},null,null,{"$f":"IF(Table_PI[[#This Row],[Input 4]]<>\"\",Table_PI[[#This Row],[Input 4]],\"\")","v":""},null,null,{"$f":"IF(Table_PI[[#This Row],[Input 4]]<>\"\",Table_PI[[#This Row],[Input 4]],\"\")","v":""},null,null,{"$f":"IF(Table_PI[[#This Row],[Input 4]]<>\"\",Table_PI[[#This Row],[Input 4]],\"\")","v":""},{"$f":"IF(Table_PI[[#This Row],[Quantity]]=\"\",\"\",Table_PI[[#This Row],[Quantity]])","v":""},{"$f":"IF(Table_PI[[#This Row],[Notes]]=\"\",\"\",Table_PI[[#This Row],[Notes]])","v":""},{"$f":"IF(OR(Table_PI[[#This Row],[Hide: Baseline kWh]]=\"\",Table_PI[[#This Row],[Hide: Baseline kWh]]=0,ISTEXT(Table_PI[[#This Row],[Hide: Baseline kWh]])),\"\",Table_PI[[#This Row],[Hide: Baseline kWh]])","v":""},{"$f":"IF(OR(Table_PI[[#This Row],[Hide: Baseline kW]]=\"\",Table_PI[[#This Row],[Hide: Baseline kW]]=0,ISTEXT(Table_PI[[#This Row],[Hide: Baseline kW]])),\"\",Table_PI[[#This Row],[Hide: Baseline kW]])","v":""},{"$f":"IF(OR(Table_PI[[#This Row],[Hide: Proposed kWh]]=\"\",Table_PI[[#This Row],[Hide: Proposed kWh]]=0,ISTEXT(Table_PI[[#This Row],[Hide: Proposed kWh]])),\"\",Table_PI[[#This Row],[Hide: Proposed kWh]])","v":""},{"$f":"IF(OR(Table_PI[[#This Row],[Hide: Proposed kW]]=\"\",Table_PI[[#This Row],[Hide: Proposed kW]]=0,ISTEXT(Table_PI[[#This Row],[Hide: Proposed kW]])),\"\",Table_PI[[#This Row],[Hide: Proposed kW]])","v":""},null,null,{"$f":"IF(OR(Table_PI[[#This Row],[Hide: Rebate]]=\"\",Table_PI[[#This Row],[Hide: Rebate]]=0,ISTEXT(Table_PI[[#This Row],[Hide: Rebate]])),\"\",Table_PI[[#This Row],[Hide: Rebate]])","v":""},null,{"$f":"IF(OR(Table_PI[[#This Row],[Hide: Incremental Cost]]=\"\",Table_PI[[#This Row],[Hide: Incremental Cost]]=0,ISTEXT(Table_PI[[#This Row],[Hide: Incremental Cost]])),\"\",Table_PI[[#This Row],[Hide: Incremental Cost]])","v":""},{"$f":"IFERROR(IF(Table_SummaryPI[[#This Row],[Incentive_Customer]]=\"\",\"\",ROUND(Table_SummaryPI[[#This Row],[Incentive_Customer]]/$AM$401*'Customer Information'!$BC$21,2)),0)","v":""},{"$f":"IF(OR(Table_PI[[#This Row],[Annual kWh]]=\"\",Table_PI[[#This Row],[Annual kWh]]=0,ISTEXT(Table_PI[[#This Row],[Annual kWh]])),\"\",Table_PI[[#This Row],[Annual kWh]])","v":""},{"$f":"IF(OR(Table_PI[[#This Row],[Peak kW]]=\"\",Table_PI[[#This Row],[Peak kW]]=0,ISTEXT(Table_PI[[#This Row],[Peak kW]])),\"\",Table_PI[[#This Row],[Peak kW]])","v":""},{"$f":"IF(Table_SummaryPI[[#This Row],[Line No.]]<>\"\",IF(AND(ISNUMBER(FIND(\"Chiller\",Table_SummaryPI[[#This Row],[P_MeasureOption1]],1)),Table_SummaryPI[[#This Row],[ProposedMeasureCategory]]=\"Air-Cooled (Water-Cooled Replacement)\"),$BD$29*Table_SummaryPI[[#This Row],[Size]]*Table_SummaryPI[[#This Row],[Quantity]]*Table_SummaryPI[[#This Row],[EFLHCooling]],\nIF(ISNUMBER(FIND(\"Dishwasher\",Table_SummaryPI[[#This Row],[ProposedMeasureCategory]],1)),$BH$29*Table_SummaryPI[[#This Row],[Quantity]],\nIF(ISNUMBER(FIND(\"Ice Maker\",Table_SummaryPI[[#This Row],[ProposedMeasureCategory]],1)),$BD$31*Table_SummaryPI[[#This Row],[Quantity]],\nIF(ISNUMBER(FIND(\"Spray Valve\",Table_SummaryPI[[#This Row],[ProposedMeasureCategory]],1)),$BH$31*Table_SummaryPI[[#This Row],[Quantity]],\n0)))),\"\")","v":""},{"$f":"IF(OR(Table_PI[[#This Row],[Hide: Electrification kWh]]=\"\",Table_PI[[#This Row],[Hide: Electrification kWh]]=0,ISTEXT(Table_PI[[#This Row],[Hide: Electrification kWh]])),\"\",Table_PI[[#This Row],[Hide: Electrification kWh]])","v":""},{"$f":"IF(OR(Table_PI[[#This Row],[Hide: Electrification GHG]]=\"\",Table_PI[[#This Row],[Hide: Electrification GHG]]=0,ISTEXT(Table_PI[[#This Row],[Hide: Electrification GHG]])),\"\",Table_PI[[#This Row],[Hide: Electrification GHG]])","v":""},{"$f":"IFERROR(IF(Table_SummaryPI[[#This Row],[kWhSavings]]=\"\",\"\",$BH$9*Table_SummaryPI[[#This Row],[kWhSavings]]),0)","v":""},{"$f":"IFERROR(IF(Table_SummaryPI[[#This Row],[kWhSavings]]=\"\",\"\",$BH$14*Table_SummaryPI[[#This Row],[kWhSavings]]),0)","v":""},{"$f":"IFERROR(IF(Table_SummaryPI[[#This Row],[kWhSavings]]=\"\",\"\",$BH$18*Table_SummaryPI[[#This Row],[kWhSavings]]),0)","v":""},{"$f":"IFERROR(IF(Table_SummaryPI[[#This Row],[kWhSavings]]=\"\",\"\",$BH$22*Table_SummaryPI[[#This Row],[kWhSavings]]),0)","v":""}]
[{"$f":"Table_PI[[#This Row],[Line No.]]","v":""},{"$f":"IF(Table_SummaryPI[[#This Row],[MeasureName]]<>\"\",NOT(ISTEXT(Table_PI[[#This Row],[Rebate]])),\"\")","v":""},{"$f":"IF(Table_SummaryPI[[#This Row],[MeassureCategory]]<>\"\",CONCATENATE(Table_SummaryPI[[#This Row],[MeassureCategory]],  \" - \", Table_SummaryPI[[#This Row],[ProposedMeasureCategory]],  \" - \", TEXT(Table_SummaryPI[[#This Row],[Size]],\"#,##0.00\"),\" \",Table_SummaryPI[[#This Row],[SizeUnit]]),\"\")","v":""},{"$f":"SUBSTITUTE(Table_PI[[#This Row],[Measure]],\"     \",\"\",1)","v":""},{"$f":"IF(Table_PI[[#This Row],[List 1]]<>\"\",Table_PI[[#This Row],[List 1]],\"\")","v":""},{"$f":"IF(Table_PI[[#This Row],[List 2]]<>\"\",Table_PI[[#This Row],[List 2]],\"\")","v":""},{"$f":"IF(Table_PI[[#This Row],[List 3]]<>\"\",Table_PI[[#This Row],[List 3]],\"\")","v":""},{"$f":"IF(Table_PI[[#This Row],[Manufacturer]]=\"\",\"\",Table_PI[[#This Row],[Manufacturer]])","v":""},{"$f":"IF(Table_PI[[#This Row],[Model Number]]=\"\",\"\",Table_PI[[#This Row],[Model Number]])","v":""},{"$f":"IF(Table_PI[[#This Row],[Serial Number(s)]]=\"\",\"\",Table_PI[[#This Row],[Serial Number(s)]])","v":""},null,{"$f":"IF(Table_PI[[#This Row],[Size]]=\"\",\"\",Table_PI[[#This Row],[Size]])","v":""},null,null,{"$f":"IF(Table_PI[[#This Row],[Input 1]]<>\"\",Table_PI[[#This Row],[Input 1]],\"\")","v":""},null,null,{"$f":"IF(Table_PI[[#This Row],[Input 2]]<>\"\",Table_PI[[#This Row],[Input 2]],\"\")","v":""},null,null,{"$f":"IF(Table_PI[[#This Row],[Input 3]]<>\"\",Table_PI[[#This Row],[Input 3]],\"\")","v":""},null,null,{"$f":"IF(Table_PI[[#This Row],[Input 4]]<>\"\",Table_PI[[#This Row],[Input 4]],\"\")","v":""},null,null,{"$f":"IF(Table_PI[[#This Row],[Input 4]]<>\"\",Table_PI[[#This Row],[Input 4]],\"\")","v":""},null,null,{"$f":"IF(Table_PI[[#This Row],[Input 4]]<>\"\",Table_PI[[#This Row],[Input 4]],\"\")","v":""},{"$f":"IF(Table_PI[[#This Row],[Quantity]]=\"\",\"\",Table_PI[[#This Row],[Quantity]])","v":""},{"$f":"IF(Table_PI[[#This Row],[Notes]]=\"\",\"\",Table_PI[[#This Row],[Notes]])","v":""},{"$f":"IF(OR(Table_PI[[#This Row],[Hide: Baseline kWh]]=\"\",Table_PI[[#This Row],[Hide: Baseline kWh]]=0,ISTEXT(Table_PI[[#This Row],[Hide: Baseline kWh]])),\"\",Table_PI[[#This Row],[Hide: Baseline kWh]])","v":""},{"$f":"IF(OR(Table_PI[[#This Row],[Hide: Baseline kW]]=\"\",Table_PI[[#This Row],[Hide: Baseline kW]]=0,ISTEXT(Table_PI[[#This Row],[Hide: Baseline kW]])),\"\",Table_PI[[#This Row],[Hide: Baseline kW]])","v":""},{"$f":"IF(OR(Table_PI[[#This Row],[Hide: Proposed kWh]]=\"\",Table_PI[[#This Row],[Hide: Proposed kWh]]=0,ISTEXT(Table_PI[[#This Row],[Hide: Proposed kWh]])),\"\",Table_PI[[#This Row],[Hide: Proposed kWh]])","v":""},{"$f":"IF(OR(Table_PI[[#This Row],[Hide: Proposed kW]]=\"\",Table_PI[[#This Row],[Hide: Proposed kW]]=0,ISTEXT(Table_PI[[#This Row],[Hide: Proposed kW]])),\"\",Table_PI[[#This Row],[Hide: Proposed kW]])","v":""},null,null,{"$f":"IF(OR(Table_PI[[#This Row],[Hide: Rebate]]=\"\",Table_PI[[#This Row],[Hide: Rebate]]=0,ISTEXT(Table_PI[[#This Row],[Hide: Rebate]])),\"\",Table_PI[[#This Row],[Hide: Rebate]])","v":""},null,{"$f":"IF(OR(Table_PI[[#This Row],[Hide: Incremental Cost]]=\"\",Table_PI[[#This Row],[Hide: Incremental Cost]]=0,ISTEXT(Table_PI[[#This Row],[Hide: Incremental Cost]])),\"\",Table_PI[[#This Row],[Hide: Incremental Cost]])","v":""},{"$f":"IFERROR(IF(Table_SummaryPI[[#This Row],[Incentive_Customer]]=\"\",\"\",ROUND(Table_SummaryPI[[#This Row],[Incentive_Customer]]/$AM$401*'Customer Information'!$BC$21,2)),0)","v":""},{"$f":"IF(OR(Table_PI[[#This Row],[Annual kWh]]=\"\",Table_PI[[#This Row],[Annual kWh]]=0,ISTEXT(Table_PI[[#This Row],[Annual kWh]])),\"\",Table_PI[[#This Row],[Annual kWh]])","v":""},{"$f":"IF(OR(Table_PI[[#This Row],[Peak kW]]=\"\",Table_PI[[#This Row],[Peak kW]]=0,ISTEXT(Table_PI[[#This Row],[Peak kW]])),\"\",Table_PI[[#This Row],[Peak kW]])","v":""},{"$f":"IF(Table_SummaryPI[[#This Row],[Line No.]]<>\"\",IF(AND(ISNUMBER(FIND(\"Chiller\",Table_SummaryPI[[#This Row],[P_MeasureOption1]],1)),Table_SummaryPI[[#This Row],[ProposedMeasureCategory]]=\"Air-Cooled (Water-Cooled Replacement)\"),$BD$29*Table_SummaryPI[[#This Row],[Size]]*Table_SummaryPI[[#This Row],[Quantity]]*Table_SummaryPI[[#This Row],[EFLHCooling]],\nIF(ISNUMBER(FIND(\"Dishwasher\",Table_SummaryPI[[#This Row],[ProposedMeasureCategory]],1)),$BH$29*Table_SummaryPI[[#This Row],[Quantity]],\nIF(ISNUMBER(FIND(\"Ice Maker\",Table_SummaryPI[[#This Row],[ProposedMeasureCategory]],1)),$BD$31*Table_SummaryPI[[#This Row],[Quantity]],\nIF(ISNUMBER(FIND(\"Spray Valve\",Table_SummaryPI[[#This Row],[ProposedMeasureCategory]],1)),$BH$31*Table_SummaryPI[[#This Row],[Quantity]],\n0)))),\"\")","v":""},{"$f":"IF(OR(Table_PI[[#This Row],[Hide: Electrification kWh]]=\"\",Table_PI[[#This Row],[Hide: Electrification kWh]]=0,ISTEXT(Table_PI[[#This Row],[Hide: Electrification kWh]])),\"\",Table_PI[[#This Row],[Hide: Electrification kWh]])","v":""},{"$f":"IF(OR(Table_PI[[#This Row],[Hide: Electrification GHG]]=\"\",Table_PI[[#This Row],[Hide: Electrification GHG]]=0,ISTEXT(Table_PI[[#This Row],[Hide: Electrification GHG]])),\"\",Table_PI[[#This Row],[Hide: Electrification GHG]])","v":""},{"$f":"IFERROR(IF(Table_SummaryPI[[#This Row],[kWhSavings]]=\"\",\"\",$BH$9*Table_SummaryPI[[#This Row],[kWhSavings]]),0)","v":""},{"$f":"IFERROR(IF(Table_SummaryPI[[#This Row],[kWhSavings]]=\"\",\"\",$BH$14*Table_SummaryPI[[#This Row],[kWhSavings]]),0)","v":""},{"$f":"IFERROR(IF(Table_SummaryPI[[#This Row],[kWhSavings]]=\"\",\"\",$BH$18*Table_SummaryPI[[#This Row],[kWhSavings]]),0)","v":""},{"$f":"IFERROR(IF(Table_SummaryPI[[#This Row],[kWhSavings]]=\"\",\"\",$BH$22*Table_SummaryPI[[#This Row],[kWhSavings]]),0)","v":""}]
[{"$f":"Table_PI[[#This Row],[Line No.]]","v":""},{"$f":"IF(Table_SummaryPI[[#This Row],[MeasureName]]<>\"\",NOT(ISTEXT(Table_PI[[#This Row],[Rebate]])),\"\")","v":""},{"$f":"IF(Table_SummaryPI[[#This Row],[MeassureCategory]]<>\"\",CONCATENATE(Table_SummaryPI[[#This Row],[MeassureCategory]],  \" - \", Table_SummaryPI[[#This Row],[ProposedMeasureCategory]],  \" - \", TEXT(Table_SummaryPI[[#This Row],[Size]],\"#,##0.00\"),\" \",Table_SummaryPI[[#This Row],[SizeUnit]]),\"\")","v":""},{"$f":"SUBSTITUTE(Table_PI[[#This Row],[Measure]],\"     \",\"\",1)","v":""},{"$f":"IF(Table_PI[[#This Row],[List 1]]<>\"\",Table_PI[[#This Row],[List 1]],\"\")","v":""},{"$f":"IF(Table_PI[[#This Row],[List 2]]<>\"\",Table_PI[[#This Row],[List 2]],\"\")","v":""},{"$f":"IF(Table_PI[[#This Row],[List 3]]<>\"\",Table_PI[[#This Row],[List 3]],\"\")","v":""},{"$f":"IF(Table_PI[[#This Row],[Manufacturer]]=\"\",\"\",Table_PI[[#This Row],[Manufacturer]])","v":""},{"$f":"IF(Table_PI[[#This Row],[Model Number]]=\"\",\"\",Table_PI[[#This Row],[Model Number]])","v":""},{"$f":"IF(Table_PI[[#This Row],[Serial Number(s)]]=\"\",\"\",Table_PI[[#This Row],[Serial Number(s)]])","v":""},null,{"$f":"IF(Table_PI[[#This Row],[Size]]=\"\",\"\",Table_PI[[#This Row],[Size]])","v":""},null,null,{"$f":"IF(Table_PI[[#This Row],[Input 1]]<>\"\",Table_PI[[#This Row],[Input 1]],\"\")","v":""},null,null,{"$f":"IF(Table_PI[[#This Row],[Input 2]]<>\"\",Table_PI[[#This Row],[Input 2]],\"\")","v":""},null,null,{"$f":"IF(Table_PI[[#This Row],[Input 3]]<>\"\",Table_PI[[#This Row],[Input 3]],\"\")","v":""},null,null,{"$f":"IF(Table_PI[[#This Row],[Input 4]]<>\"\",Table_PI[[#This Row],[Input 4]],\"\")","v":""},null,null,{"$f":"IF(Table_PI[[#This Row],[Input 4]]<>\"\",Table_PI[[#This Row],[Input 4]],\"\")","v":""},null,null,{"$f":"IF(Table_PI[[#This Row],[Input 4]]<>\"\",Table_PI[[#This Row],[Input 4]],\"\")","v":""},{"$f":"IF(Table_PI[[#This Row],[Quantity]]=\"\",\"\",Table_PI[[#This Row],[Quantity]])","v":""},{"$f":"IF(Table_PI[[#This Row],[Notes]]=\"\",\"\",Table_PI[[#This Row],[Notes]])","v":""},{"$f":"IF(OR(Table_PI[[#This Row],[Hide: Baseline kWh]]=\"\",Table_PI[[#This Row],[Hide: Baseline kWh]]=0,ISTEXT(Table_PI[[#This Row],[Hide: Baseline kWh]])),\"\",Table_PI[[#This Row],[Hide: Baseline kWh]])","v":""},{"$f":"IF(OR(Table_PI[[#This Row],[Hide: Baseline kW]]=\"\",Table_PI[[#This Row],[Hide: Baseline kW]]=0,ISTEXT(Table_PI[[#This Row],[Hide: Baseline kW]])),\"\",Table_PI[[#This Row],[Hide: Baseline kW]])","v":""},{"$f":"IF(OR(Table_PI[[#This Row],[Hide: Proposed kWh]]=\"\",Table_PI[[#This Row],[Hide: Proposed kWh]]=0,ISTEXT(Table_PI[[#This Row],[Hide: Proposed kWh]])),\"\",Table_PI[[#This Row],[Hide: Proposed kWh]])","v":""},{"$f":"IF(OR(Table_PI[[#This Row],[Hide: Proposed kW]]=\"\",Table_PI[[#This Row],[Hide: Proposed kW]]=0,ISTEXT(Table_PI[[#This Row],[Hide: Proposed kW]])),\"\",Table_PI[[#This Row],[Hide: Proposed kW]])","v":""},null,null,{"$f":"IF(OR(Table_PI[[#This Row],[Hide: Rebate]]=\"\",Table_PI[[#This Row],[Hide: Rebate]]=0,ISTEXT(Table_PI[[#This Row],[Hide: Rebate]])),\"\",Table_PI[[#This Row],[Hide: Rebate]])","v":""},null,{"$f":"IF(OR(Table_PI[[#This Row],[Hide: Incremental Cost]]=\"\",Table_PI[[#This Row],[Hide: Incremental Cost]]=0,ISTEXT(Table_PI[[#This Row],[Hide: Incremental Cost]])),\"\",Table_PI[[#This Row],[Hide: Incremental Cost]])","v":""},{"$f":"IFERROR(IF(Table_SummaryPI[[#This Row],[Incentive_Customer]]=\"\",\"\",ROUND(Table_SummaryPI[[#This Row],[Incentive_Customer]]/$AM$401*'Customer Information'!$BC$21,2)),0)","v":""},{"$f":"IF(OR(Table_PI[[#This Row],[Annual kWh]]=\"\",Table_PI[[#This Row],[Annual kWh]]=0,ISTEXT(Table_PI[[#This Row],[Annual kWh]])),\"\",Table_PI[[#This Row],[Annual kWh]])","v":""},{"$f":"IF(OR(Table_PI[[#This Row],[Peak kW]]=\"\",Table_PI[[#This Row],[Peak kW]]=0,ISTEXT(Table_PI[[#This Row],[Peak kW]])),\"\",Table_PI[[#This Row],[Peak kW]])","v":""},{"$f":"IF(Table_SummaryPI[[#This Row],[Line No.]]<>\"\",IF(AND(ISNUMBER(FIND(\"Chiller\",Table_SummaryPI[[#This Row],[P_MeasureOption1]],1)),Table_SummaryPI[[#This Row],[ProposedMeasureCategory]]=\"Air-Cooled (Water-Cooled Replacement)\"),$BD$29*Table_SummaryPI[[#This Row],[Size]]*Table_SummaryPI[[#This Row],[Quantity]]*Table_SummaryPI[[#This Row],[EFLHCooling]],\nIF(ISNUMBER(FIND(\"Dishwasher\",Table_SummaryPI[[#This Row],[ProposedMeasureCategory]],1)),$BH$29*Table_SummaryPI[[#This Row],[Quantity]],\nIF(ISNUMBER(FIND(\"Ice Maker\",Table_SummaryPI[[#This Row],[ProposedMeasureCategory]],1)),$BD$31*Table_SummaryPI[[#This Row],[Quantity]],\nIF(ISNUMBER(FIND(\"Spray Valve\",Table_SummaryPI[[#This Row],[ProposedMeasureCategory]],1)),$BH$31*Table_SummaryPI[[#This Row],[Quantity]],\n0)))),\"\")","v":""},{"$f":"IF(OR(Table_PI[[#This Row],[Hide: Electrification kWh]]=\"\",Table_PI[[#This Row],[Hide: Electrification kWh]]=0,ISTEXT(Table_PI[[#This Row],[Hide: Electrification kWh]])),\"\",Table_PI[[#This Row],[Hide: Electrification kWh]])","v":""},{"$f":"IF(OR(Table_PI[[#This Row],[Hide: Electrification GHG]]=\"\",Table_PI[[#This Row],[Hide: Electrification GHG]]=0,ISTEXT(Table_PI[[#This Row],[Hide: Electrification GHG]])),\"\",Table_PI[[#This Row],[Hide: Electrification GHG]])","v":""},{"$f":"IFERROR(IF(Table_SummaryPI[[#This Row],[kWhSavings]]=\"\",\"\",$BH$9*Table_SummaryPI[[#This Row],[kWhSavings]]),0)","v":""},{"$f":"IFERROR(IF(Table_SummaryPI[[#This Row],[kWhSavings]]=\"\",\"\",$BH$14*Table_SummaryPI[[#This Row],[kWhSavings]]),0)","v":""},{"$f":"IFERROR(IF(Table_SummaryPI[[#This Row],[kWhSavings]]=\"\",\"\",$BH$18*Table_SummaryPI[[#This Row],[kWhSavings]]),0)","v":""},{"$f":"IFERROR(IF(Table_SummaryPI[[#This Row],[kWhSavings]]=\"\",\"\",$BH$22*Table_SummaryPI[[#This Row],[kWhSavings]]),0)","v":""}]
[{"$f":"Table_PI[[#This Row],[Line No.]]","v":""},{"$f":"IF(Table_SummaryPI[[#This Row],[MeasureName]]<>\"\",NOT(ISTEXT(Table_PI[[#This Row],[Rebate]])),\"\")","v":""},{"$f":"IF(Table_SummaryPI[[#This Row],[MeassureCategory]]<>\"\",CONCATENATE(Table_SummaryPI[[#This Row],[MeassureCategory]],  \" - \", Table_SummaryPI[[#This Row],[ProposedMeasureCategory]],  \" - \", TEXT(Table_SummaryPI[[#This Row],[Size]],\"#,##0.00\"),\" \",Table_SummaryPI[[#This Row],[SizeUnit]]),\"\")","v":""},{"$f":"SUBSTITUTE(Table_PI[[#This Row],[Measure]],\"     \",\"\",1)","v":""},{"$f":"IF(Table_PI[[#This Row],[List 1]]<>\"\",Table_PI[[#This Row],[List 1]],\"\")","v":""},{"$f":"IF(Table_PI[[#This Row],[List 2]]<>\"\",Table_PI[[#This Row],[List 2]],\"\")","v":""},{"$f":"IF(Table_PI[[#This Row],[List 3]]<>\"\",Table_PI[[#This Row],[List 3]],\"\")","v":""},{"$f":"IF(Table_PI[[#This Row],[Manufacturer]]=\"\",\"\",Table_PI[[#This Row],[Manufacturer]])","v":""},{"$f":"IF(Table_PI[[#This Row],[Model Number]]=\"\",\"\",Table_PI[[#This Row],[Model Number]])","v":""},{"$f":"IF(Table_PI[[#This Row],[Serial Number(s)]]=\"\",\"\",Table_PI[[#This Row],[Serial Number(s)]])","v":""},null,{"$f":"IF(Table_PI[[#This Row],[Size]]=\"\",\"\",Table_PI[[#This Row],[Size]])","v":""},null,null,{"$f":"IF(Table_PI[[#This Row],[Input 1]]<>\"\",Table_PI[[#This Row],[Input 1]],\"\")","v":""},null,null,{"$f":"IF(Table_PI[[#This Row],[Input 2]]<>\"\",Table_PI[[#This Row],[Input 2]],\"\")","v":""},null,null,{"$f":"IF(Table_PI[[#This Row],[Input 3]]<>\"\",Table_PI[[#This Row],[Input 3]],\"\")","v":""},null,null,{"$f":"IF(Table_PI[[#This Row],[Input 4]]<>\"\",Table_PI[[#This Row],[Input 4]],\"\")","v":""},null,null,{"$f":"IF(Table_PI[[#This Row],[Input 4]]<>\"\",Table_PI[[#This Row],[Input 4]],\"\")","v":""},null,null,{"$f":"IF(Table_PI[[#This Row],[Input 4]]<>\"\",Table_PI[[#This Row],[Input 4]],\"\")","v":""},{"$f":"IF(Table_PI[[#This Row],[Quantity]]=\"\",\"\",Table_PI[[#This Row],[Quantity]])","v":""},{"$f":"IF(Table_PI[[#This Row],[Notes]]=\"\",\"\",Table_PI[[#This Row],[Notes]])","v":""},{"$f":"IF(OR(Table_PI[[#This Row],[Hide: Baseline kWh]]=\"\",Table_PI[[#This Row],[Hide: Baseline kWh]]=0,ISTEXT(Table_PI[[#This Row],[Hide: Baseline kWh]])),\"\",Table_PI[[#This Row],[Hide: Baseline kWh]])","v":""},{"$f":"IF(OR(Table_PI[[#This Row],[Hide: Baseline kW]]=\"\",Table_PI[[#This Row],[Hide: Baseline kW]]=0,ISTEXT(Table_PI[[#This Row],[Hide: Baseline kW]])),\"\",Table_PI[[#This Row],[Hide: Baseline kW]])","v":""},{"$f":"IF(OR(Table_PI[[#This Row],[Hide: Proposed kWh]]=\"\",Table_PI[[#This Row],[Hide: Proposed kWh]]=0,ISTEXT(Table_PI[[#This Row],[Hide: Proposed kWh]])),\"\",Table_PI[[#This Row],[Hide: Proposed kWh]])","v":""},{"$f":"IF(OR(Table_PI[[#This Row],[Hide: Proposed kW]]=\"\",Table_PI[[#This Row],[Hide: Proposed kW]]=0,ISTEXT(Table_PI[[#This Row],[Hide: Proposed kW]])),\"\",Table_PI[[#This Row],[Hide: Proposed kW]])","v":""},null,null,{"$f":"IF(OR(Table_PI[[#This Row],[Hide: Rebate]]=\"\",Table_PI[[#This Row],[Hide: Rebate]]=0,ISTEXT(Table_PI[[#This Row],[Hide: Rebate]])),\"\",Table_PI[[#This Row],[Hide: Rebate]])","v":""},null,{"$f":"IF(OR(Table_PI[[#This Row],[Hide: Incremental Cost]]=\"\",Table_PI[[#This Row],[Hide: Incremental Cost]]=0,ISTEXT(Table_PI[[#This Row],[Hide: Incremental Cost]])),\"\",Table_PI[[#This Row],[Hide: Incremental Cost]])","v":""},{"$f":"IFERROR(IF(Table_SummaryPI[[#This Row],[Incentive_Customer]]=\"\",\"\",ROUND(Table_SummaryPI[[#This Row],[Incentive_Customer]]/$AM$401*'Customer Information'!$BC$21,2)),0)","v":""},{"$f":"IF(OR(Table_PI[[#This Row],[Annual kWh]]=\"\",Table_PI[[#This Row],[Annual kWh]]=0,ISTEXT(Table_PI[[#This Row],[Annual kWh]])),\"\",Table_PI[[#This Row],[Annual kWh]])","v":""},{"$f":"IF(OR(Table_PI[[#This Row],[Peak kW]]=\"\",Table_PI[[#This Row],[Peak kW]]=0,ISTEXT(Table_PI[[#This Row],[Peak kW]])),\"\",Table_PI[[#This Row],[Peak kW]])","v":""},{"$f":"IF(Table_SummaryPI[[#This Row],[Line No.]]<>\"\",IF(AND(ISNUMBER(FIND(\"Chiller\",Table_SummaryPI[[#This Row],[P_MeasureOption1]],1)),Table_SummaryPI[[#This Row],[ProposedMeasureCategory]]=\"Air-Cooled (Water-Cooled Replacement)\"),$BD$29*Table_SummaryPI[[#This Row],[Size]]*Table_SummaryPI[[#This Row],[Quantity]]*Table_SummaryPI[[#This Row],[EFLHCooling]],\nIF(ISNUMBER(FIND(\"Dishwasher\",Table_SummaryPI[[#This Row],[ProposedMeasureCategory]],1)),$BH$29*Table_SummaryPI[[#This Row],[Quantity]],\nIF(ISNUMBER(FIND(\"Ice Maker\",Table_SummaryPI[[#This Row],[ProposedMeasureCategory]],1)),$BD$31*Table_SummaryPI[[#This Row],[Quantity]],\nIF(ISNUMBER(FIND(\"Spray Valve\",Table_SummaryPI[[#This Row],[ProposedMeasureCategory]],1)),$BH$31*Table_SummaryPI[[#This Row],[Quantity]],\n0)))),\"\")","v":""},{"$f":"IF(OR(Table_PI[[#This Row],[Hide: Electrification kWh]]=\"\",Table_PI[[#This Row],[Hide: Electrification kWh]]=0,ISTEXT(Table_PI[[#This Row],[Hide: Electrification kWh]])),\"\",Table_PI[[#This Row],[Hide: Electrification kWh]])","v":""},{"$f":"IF(OR(Table_PI[[#This Row],[Hide: Electrification GHG]]=\"\",Table_PI[[#This Row],[Hide: Electrification GHG]]=0,ISTEXT(Table_PI[[#This Row],[Hide: Electrification GHG]])),\"\",Table_PI[[#This Row],[Hide: Electrification GHG]])","v":""},{"$f":"IFERROR(IF(Table_SummaryPI[[#This Row],[kWhSavings]]=\"\",\"\",$BH$9*Table_SummaryPI[[#This Row],[kWhSavings]]),0)","v":""},{"$f":"IFERROR(IF(Table_SummaryPI[[#This Row],[kWhSavings]]=\"\",\"\",$BH$14*Table_SummaryPI[[#This Row],[kWhSavings]]),0)","v":""},{"$f":"IFERROR(IF(Table_SummaryPI[[#This Row],[kWhSavings]]=\"\",\"\",$BH$18*Table_SummaryPI[[#This Row],[kWhSavings]]),0)","v":""},{"$f":"IFERROR(IF(Table_SummaryPI[[#This Row],[kWhSavings]]=\"\",\"\",$BH$22*Table_SummaryPI[[#This Row],[kWhSavings]]),0)","v":""}]
[{"$f":"Table_PI[[#This Row],[Line No.]]","v":""},{"$f":"IF(Table_SummaryPI[[#This Row],[MeasureName]]<>\"\",NOT(ISTEXT(Table_PI[[#This Row],[Rebate]])),\"\")","v":""},{"$f":"IF(Table_SummaryPI[[#This Row],[MeassureCategory]]<>\"\",CONCATENATE(Table_SummaryPI[[#This Row],[MeassureCategory]],  \" - \", Table_SummaryPI[[#This Row],[ProposedMeasureCategory]],  \" - \", TEXT(Table_SummaryPI[[#This Row],[Size]],\"#,##0.00\"),\" \",Table_SummaryPI[[#This Row],[SizeUnit]]),\"\")","v":""},{"$f":"SUBSTITUTE(Table_PI[[#This Row],[Measure]],\"     \",\"\",1)","v":""},{"$f":"IF(Table_PI[[#This Row],[List 1]]<>\"\",Table_PI[[#This Row],[List 1]],\"\")","v":""},{"$f":"IF(Table_PI[[#This Row],[List 2]]<>\"\",Table_PI[[#This Row],[List 2]],\"\")","v":""},{"$f":"IF(Table_PI[[#This Row],[List 3]]<>\"\",Table_PI[[#This Row],[List 3]],\"\")","v":""},{"$f":"IF(Table_PI[[#This Row],[Manufacturer]]=\"\",\"\",Table_PI[[#This Row],[Manufacturer]])","v":""},{"$f":"IF(Table_PI[[#This Row],[Model Number]]=\"\",\"\",Table_PI[[#This Row],[Model Number]])","v":""},{"$f":"IF(Table_PI[[#This Row],[Serial Number(s)]]=\"\",\"\",Table_PI[[#This Row],[Serial Number(s)]])","v":""},null,{"$f":"IF(Table_PI[[#This Row],[Size]]=\"\",\"\",Table_PI[[#This Row],[Size]])","v":""},null,null,{"$f":"IF(Table_PI[[#This Row],[Input 1]]<>\"\",Table_PI[[#This Row],[Input 1]],\"\")","v":""},null,null,{"$f":"IF(Table_PI[[#This Row],[Input 2]]<>\"\",Table_PI[[#This Row],[Input 2]],\"\")","v":""},null,null,{"$f":"IF(Table_PI[[#This Row],[Input 3]]<>\"\",Table_PI[[#This Row],[Input 3]],\"\")","v":""},null,null,{"$f":"IF(Table_PI[[#This Row],[Input 4]]<>\"\",Table_PI[[#This Row],[Input 4]],\"\")","v":""},null,null,{"$f":"IF(Table_PI[[#This Row],[Input 4]]<>\"\",Table_PI[[#This Row],[Input 4]],\"\")","v":""},null,null,{"$f":"IF(Table_PI[[#This Row],[Input 4]]<>\"\",Table_PI[[#This Row],[Input 4]],\"\")","v":""},{"$f":"IF(Table_PI[[#This Row],[Quantity]]=\"\",\"\",Table_PI[[#This Row],[Quantity]])","v":""},{"$f":"IF(Table_PI[[#This Row],[Notes]]=\"\",\"\",Table_PI[[#This Row],[Notes]])","v":""},{"$f":"IF(OR(Table_PI[[#This Row],[Hide: Baseline kWh]]=\"\",Table_PI[[#This Row],[Hide: Baseline kWh]]=0,ISTEXT(Table_PI[[#This Row],[Hide: Baseline kWh]])),\"\",Table_PI[[#This Row],[Hide: Baseline kWh]])","v":""},{"$f":"IF(OR(Table_PI[[#This Row],[Hide: Baseline kW]]=\"\",Table_PI[[#This Row],[Hide: Baseline kW]]=0,ISTEXT(Table_PI[[#This Row],[Hide: Baseline kW]])),\"\",Table_PI[[#This Row],[Hide: Baseline kW]])","v":""},{"$f":"IF(OR(Table_PI[[#This Row],[Hide: Proposed kWh]]=\"\",Table_PI[[#This Row],[Hide: Proposed kWh]]=0,ISTEXT(Table_PI[[#This Row],[Hide: Proposed kWh]])),\"\",Table_PI[[#This Row],[Hide: Proposed kWh]])","v":""},{"$f":"IF(OR(Table_PI[[#This Row],[Hide: Proposed kW]]=\"\",Table_PI[[#This Row],[Hide: Proposed kW]]=0,ISTEXT(Table_PI[[#This Row],[Hide: Proposed kW]])),\"\",Table_PI[[#This Row],[Hide: Proposed kW]])","v":""},null,null,{"$f":"IF(OR(Table_PI[[#This Row],[Hide: Rebate]]=\"\",Table_PI[[#This Row],[Hide: Rebate]]=0,ISTEXT(Table_PI[[#This Row],[Hide: Rebate]])),\"\",Table_PI[[#This Row],[Hide: Rebate]])","v":""},null,{"$f":"IF(OR(Table_PI[[#This Row],[Hide: Incremental Cost]]=\"\",Table_PI[[#This Row],[Hide: Incremental Cost]]=0,ISTEXT(Table_PI[[#This Row],[Hide: Incremental Cost]])),\"\",Table_PI[[#This Row],[Hide: Incremental Cost]])","v":""},{"$f":"IFERROR(IF(Table_SummaryPI[[#This Row],[Incentive_Customer]]=\"\",\"\",ROUND(Table_SummaryPI[[#This Row],[Incentive_Customer]]/$AM$401*'Customer Information'!$BC$21,2)),0)","v":""},{"$f":"IF(OR(Table_PI[[#This Row],[Annual kWh]]=\"\",Table_PI[[#This Row],[Annual kWh]]=0,ISTEXT(Table_PI[[#This Row],[Annual kWh]])),\"\",Table_PI[[#This Row],[Annual kWh]])","v":""},{"$f":"IF(OR(Table_PI[[#This Row],[Peak kW]]=\"\",Table_PI[[#This Row],[Peak kW]]=0,ISTEXT(Table_PI[[#This Row],[Peak kW]])),\"\",Table_PI[[#This Row],[Peak kW]])","v":""},{"$f":"IF(Table_SummaryPI[[#This Row],[Line No.]]<>\"\",IF(AND(ISNUMBER(FIND(\"Chiller\",Table_SummaryPI[[#This Row],[P_MeasureOption1]],1)),Table_SummaryPI[[#This Row],[ProposedMeasureCategory]]=\"Air-Cooled (Water-Cooled Replacement)\"),$BD$29*Table_SummaryPI[[#This Row],[Size]]*Table_SummaryPI[[#This Row],[Quantity]]*Table_SummaryPI[[#This Row],[EFLHCooling]],\nIF(ISNUMBER(FIND(\"Dishwasher\",Table_SummaryPI[[#This Row],[ProposedMeasureCategory]],1)),$BH$29*Table_SummaryPI[[#This Row],[Quantity]],\nIF(ISNUMBER(FIND(\"Ice Maker\",Table_SummaryPI[[#This Row],[ProposedMeasureCategory]],1)),$BD$31*Table_SummaryPI[[#This Row],[Quantity]],\nIF(ISNUMBER(FIND(\"Spray Valve\",Table_SummaryPI[[#This Row],[ProposedMeasureCategory]],1)),$BH$31*Table_SummaryPI[[#This Row],[Quantity]],\n0)))),\"\")","v":""},{"$f":"IF(OR(Table_PI[[#This Row],[Hide: Electrification kWh]]=\"\",Table_PI[[#This Row],[Hide: Electrification kWh]]=0,ISTEXT(Table_PI[[#This Row],[Hide: Electrification kWh]])),\"\",Table_PI[[#This Row],[Hide: Electrification kWh]])","v":""},{"$f":"IF(OR(Table_PI[[#This Row],[Hide: Electrification GHG]]=\"\",Table_PI[[#This Row],[Hide: Electrification GHG]]=0,ISTEXT(Table_PI[[#This Row],[Hide: Electrification GHG]])),\"\",Table_PI[[#This Row],[Hide: Electrification GHG]])","v":""},{"$f":"IFERROR(IF(Table_SummaryPI[[#This Row],[kWhSavings]]=\"\",\"\",$BH$9*Table_SummaryPI[[#This Row],[kWhSavings]]),0)","v":""},{"$f":"IFERROR(IF(Table_SummaryPI[[#This Row],[kWhSavings]]=\"\",\"\",$BH$14*Table_SummaryPI[[#This Row],[kWhSavings]]),0)","v":""},{"$f":"IFERROR(IF(Table_SummaryPI[[#This Row],[kWhSavings]]=\"\",\"\",$BH$18*Table_SummaryPI[[#This Row],[kWhSavings]]),0)","v":""},{"$f":"IFERROR(IF(Table_SummaryPI[[#This Row],[kWhSavings]]=\"\",\"\",$BH$22*Table_SummaryPI[[#This Row],[kWhSavings]]),0)","v":""}]
[{"$f":"Table_PI[[#This Row],[Line No.]]","v":""},{"$f":"IF(Table_SummaryPI[[#This Row],[MeasureName]]<>\"\",NOT(ISTEXT(Table_PI[[#This Row],[Rebate]])),\"\")","v":""},{"$f":"IF(Table_SummaryPI[[#This Row],[MeassureCategory]]<>\"\",CONCATENATE(Table_SummaryPI[[#This Row],[MeassureCategory]],  \" - \", Table_SummaryPI[[#This Row],[ProposedMeasureCategory]],  \" - \", TEXT(Table_SummaryPI[[#This Row],[Size]],\"#,##0.00\"),\" \",Table_SummaryPI[[#This Row],[SizeUnit]]),\"\")","v":""},{"$f":"SUBSTITUTE(Table_PI[[#This Row],[Measure]],\"     \",\"\",1)","v":""},{"$f":"IF(Table_PI[[#This Row],[List 1]]<>\"\",Table_PI[[#This Row],[List 1]],\"\")","v":""},{"$f":"IF(Table_PI[[#This Row],[List 2]]<>\"\",Table_PI[[#This Row],[List 2]],\"\")","v":""},{"$f":"IF(Table_PI[[#This Row],[List 3]]<>\"\",Table_PI[[#This Row],[List 3]],\"\")","v":""},{"$f":"IF(Table_PI[[#This Row],[Manufacturer]]=\"\",\"\",Table_PI[[#This Row],[Manufacturer]])","v":""},{"$f":"IF(Table_PI[[#This Row],[Model Number]]=\"\",\"\",Table_PI[[#This Row],[Model Number]])","v":""},{"$f":"IF(Table_PI[[#This Row],[Serial Number(s)]]=\"\",\"\",Table_PI[[#This Row],[Serial Number(s)]])","v":""},null,{"$f":"IF(Table_PI[[#This Row],[Size]]=\"\",\"\",Table_PI[[#This Row],[Size]])","v":""},null,null,{"$f":"IF(Table_PI[[#This Row],[Input 1]]<>\"\",Table_PI[[#This Row],[Input 1]],\"\")","v":""},null,null,{"$f":"IF(Table_PI[[#This Row],[Input 2]]<>\"\",Table_PI[[#This Row],[Input 2]],\"\")","v":""},null,null,{"$f":"IF(Table_PI[[#This Row],[Input 3]]<>\"\",Table_PI[[#This Row],[Input 3]],\"\")","v":""},null,null,{"$f":"IF(Table_PI[[#This Row],[Input 4]]<>\"\",Table_PI[[#This Row],[Input 4]],\"\")","v":""},null,null,{"$f":"IF(Table_PI[[#This Row],[Input 4]]<>\"\",Table_PI[[#This Row],[Input 4]],\"\")","v":""},null,null,{"$f":"IF(Table_PI[[#This Row],[Input 4]]<>\"\",Table_PI[[#This Row],[Input 4]],\"\")","v":""},{"$f":"IF(Table_PI[[#This Row],[Quantity]]=\"\",\"\",Table_PI[[#This Row],[Quantity]])","v":""},{"$f":"IF(Table_PI[[#This Row],[Notes]]=\"\",\"\",Table_PI[[#This Row],[Notes]])","v":""},{"$f":"IF(OR(Table_PI[[#This Row],[Hide: Baseline kWh]]=\"\",Table_PI[[#This Row],[Hide: Baseline kWh]]=0,ISTEXT(Table_PI[[#This Row],[Hide: Baseline kWh]])),\"\",Table_PI[[#This Row],[Hide: Baseline kWh]])","v":""},{"$f":"IF(OR(Table_PI[[#This Row],[Hide: Baseline kW]]=\"\",Table_PI[[#This Row],[Hide: Baseline kW]]=0,ISTEXT(Table_PI[[#This Row],[Hide: Baseline kW]])),\"\",Table_PI[[#This Row],[Hide: Baseline kW]])","v":""},{"$f":"IF(OR(Table_PI[[#This Row],[Hide: Proposed kWh]]=\"\",Table_PI[[#This Row],[Hide: Proposed kWh]]=0,ISTEXT(Table_PI[[#This Row],[Hide: Proposed kWh]])),\"\",Table_PI[[#This Row],[Hide: Proposed kWh]])","v":""},{"$f":"IF(OR(Table_PI[[#This Row],[Hide: Proposed kW]]=\"\",Table_PI[[#This Row],[Hide: Proposed kW]]=0,ISTEXT(Table_PI[[#This Row],[Hide: Proposed kW]])),\"\",Table_PI[[#This Row],[Hide: Proposed kW]])","v":""},null,null,{"$f":"IF(OR(Table_PI[[#This Row],[Hide: Rebate]]=\"\",Table_PI[[#This Row],[Hide: Rebate]]=0,ISTEXT(Table_PI[[#This Row],[Hide: Rebate]])),\"\",Table_PI[[#This Row],[Hide: Rebate]])","v":""},null,{"$f":"IF(OR(Table_PI[[#This Row],[Hide: Incremental Cost]]=\"\",Table_PI[[#This Row],[Hide: Incremental Cost]]=0,ISTEXT(Table_PI[[#This Row],[Hide: Incremental Cost]])),\"\",Table_PI[[#This Row],[Hide: Incremental Cost]])","v":""},{"$f":"IFERROR(IF(Table_SummaryPI[[#This Row],[Incentive_Customer]]=\"\",\"\",ROUND(Table_SummaryPI[[#This Row],[Incentive_Customer]]/$AM$401*'Customer Information'!$BC$21,2)),0)","v":""},{"$f":"IF(OR(Table_PI[[#This Row],[Annual kWh]]=\"\",Table_PI[[#This Row],[Annual kWh]]=0,ISTEXT(Table_PI[[#This Row],[Annual kWh]])),\"\",Table_PI[[#This Row],[Annual kWh]])","v":""},{"$f":"IF(OR(Table_PI[[#This Row],[Peak kW]]=\"\",Table_PI[[#This Row],[Peak kW]]=0,ISTEXT(Table_PI[[#This Row],[Peak kW]])),\"\",Table_PI[[#This Row],[Peak kW]])","v":""},{"$f":"IF(Table_SummaryPI[[#This Row],[Line No.]]<>\"\",IF(AND(ISNUMBER(FIND(\"Chiller\",Table_SummaryPI[[#This Row],[P_MeasureOption1]],1)),Table_SummaryPI[[#This Row],[ProposedMeasureCategory]]=\"Air-Cooled (Water-Cooled Replacement)\"),$BD$29*Table_SummaryPI[[#This Row],[Size]]*Table_SummaryPI[[#This Row],[Quantity]]*Table_SummaryPI[[#This Row],[EFLHCooling]],\nIF(ISNUMBER(FIND(\"Dishwasher\",Table_SummaryPI[[#This Row],[ProposedMeasureCategory]],1)),$BH$29*Table_SummaryPI[[#This Row],[Quantity]],\nIF(ISNUMBER(FIND(\"Ice Maker\",Table_SummaryPI[[#This Row],[ProposedMeasureCategory]],1)),$BD$31*Table_SummaryPI[[#This Row],[Quantity]],\nIF(ISNUMBER(FIND(\"Spray Valve\",Table_SummaryPI[[#This Row],[ProposedMeasureCategory]],1)),$BH$31*Table_SummaryPI[[#This Row],[Quantity]],\n0)))),\"\")","v":""},{"$f":"IF(OR(Table_PI[[#This Row],[Hide: Electrification kWh]]=\"\",Table_PI[[#This Row],[Hide: Electrification kWh]]=0,ISTEXT(Table_PI[[#This Row],[Hide: Electrification kWh]])),\"\",Table_PI[[#This Row],[Hide: Electrification kWh]])","v":""},{"$f":"IF(OR(Table_PI[[#This Row],[Hide: Electrification GHG]]=\"\",Table_PI[[#This Row],[Hide: Electrification GHG]]=0,ISTEXT(Table_PI[[#This Row],[Hide: Electrification GHG]])),\"\",Table_PI[[#This Row],[Hide: Electrification GHG]])","v":""},{"$f":"IFERROR(IF(Table_SummaryPI[[#This Row],[kWhSavings]]=\"\",\"\",$BH$9*Table_SummaryPI[[#This Row],[kWhSavings]]),0)","v":""},{"$f":"IFERROR(IF(Table_SummaryPI[[#This Row],[kWhSavings]]=\"\",\"\",$BH$14*Table_SummaryPI[[#This Row],[kWhSavings]]),0)","v":""},{"$f":"IFERROR(IF(Table_SummaryPI[[#This Row],[kWhSavings]]=\"\",\"\",$BH$18*Table_SummaryPI[[#This Row],[kWhSavings]]),0)","v":""},{"$f":"IFERROR(IF(Table_SummaryPI[[#This Row],[kWhSavings]]=\"\",\"\",$BH$22*Table_SummaryPI[[#This Row],[kWhSavings]]),0)","v":""}]
[{"$f":"Table_PI[[#This Row],[Line No.]]","v":""},{"$f":"IF(Table_SummaryPI[[#This Row],[MeasureName]]<>\"\",NOT(ISTEXT(Table_PI[[#This Row],[Rebate]])),\"\")","v":""},{"$f":"IF(Table_SummaryPI[[#This Row],[MeassureCategory]]<>\"\",CONCATENATE(Table_SummaryPI[[#This Row],[MeassureCategory]],  \" - \", Table_SummaryPI[[#This Row],[ProposedMeasureCategory]],  \" - \", TEXT(Table_SummaryPI[[#This Row],[Size]],\"#,##0.00\"),\" \",Table_SummaryPI[[#This Row],[SizeUnit]]),\"\")","v":""},{"$f":"SUBSTITUTE(Table_PI[[#This Row],[Measure]],\"     \",\"\",1)","v":""},{"$f":"IF(Table_PI[[#This Row],[List 1]]<>\"\",Table_PI[[#This Row],[List 1]],\"\")","v":""},{"$f":"IF(Table_PI[[#This Row],[List 2]]<>\"\",Table_PI[[#This Row],[List 2]],\"\")","v":""},{"$f":"IF(Table_PI[[#This Row],[List 3]]<>\"\",Table_PI[[#This Row],[List 3]],\"\")","v":""},{"$f":"IF(Table_PI[[#This Row],[Manufacturer]]=\"\",\"\",Table_PI[[#This Row],[Manufacturer]])","v":""},{"$f":"IF(Table_PI[[#This Row],[Model Number]]=\"\",\"\",Table_PI[[#This Row],[Model Number]])","v":""},{"$f":"IF(Table_PI[[#This Row],[Serial Number(s)]]=\"\",\"\",Table_PI[[#This Row],[Serial Number(s)]])","v":""},null,{"$f":"IF(Table_PI[[#This Row],[Size]]=\"\",\"\",Table_PI[[#This Row],[Size]])","v":""},null,null,{"$f":"IF(Table_PI[[#This Row],[Input 1]]<>\"\",Table_PI[[#This Row],[Input 1]],\"\")","v":""},null,null,{"$f":"IF(Table_PI[[#This Row],[Input 2]]<>\"\",Table_PI[[#This Row],[Input 2]],\"\")","v":""},null,null,{"$f":"IF(Table_PI[[#This Row],[Input 3]]<>\"\",Table_PI[[#This Row],[Input 3]],\"\")","v":""},null,null,{"$f":"IF(Table_PI[[#This Row],[Input 4]]<>\"\",Table_PI[[#This Row],[Input 4]],\"\")","v":""},null,null,{"$f":"IF(Table_PI[[#This Row],[Input 4]]<>\"\",Table_PI[[#This Row],[Input 4]],\"\")","v":""},null,null,{"$f":"IF(Table_PI[[#This Row],[Input 4]]<>\"\",Table_PI[[#This Row],[Input 4]],\"\")","v":""},{"$f":"IF(Table_PI[[#This Row],[Quantity]]=\"\",\"\",Table_PI[[#This Row],[Quantity]])","v":""},{"$f":"IF(Table_PI[[#This Row],[Notes]]=\"\",\"\",Table_PI[[#This Row],[Notes]])","v":""},{"$f":"IF(OR(Table_PI[[#This Row],[Hide: Baseline kWh]]=\"\",Table_PI[[#This Row],[Hide: Baseline kWh]]=0,ISTEXT(Table_PI[[#This Row],[Hide: Baseline kWh]])),\"\",Table_PI[[#This Row],[Hide: Baseline kWh]])","v":""},{"$f":"IF(OR(Table_PI[[#This Row],[Hide: Baseline kW]]=\"\",Table_PI[[#This Row],[Hide: Baseline kW]]=0,ISTEXT(Table_PI[[#This Row],[Hide: Baseline kW]])),\"\",Table_PI[[#This Row],[Hide: Baseline kW]])","v":""},{"$f":"IF(OR(Table_PI[[#This Row],[Hide: Proposed kWh]]=\"\",Table_PI[[#This Row],[Hide: Proposed kWh]]=0,ISTEXT(Table_PI[[#This Row],[Hide: Proposed kWh]])),\"\",Table_PI[[#This Row],[Hide: Proposed kWh]])","v":""},{"$f":"IF(OR(Table_PI[[#This Row],[Hide: Proposed kW]]=\"\",Table_PI[[#This Row],[Hide: Proposed kW]]=0,ISTEXT(Table_PI[[#This Row],[Hide: Proposed kW]])),\"\",Table_PI[[#This Row],[Hide: Proposed kW]])","v":""},null,null,{"$f":"IF(OR(Table_PI[[#This Row],[Hide: Rebate]]=\"\",Table_PI[[#This Row],[Hide: Rebate]]=0,ISTEXT(Table_PI[[#This Row],[Hide: Rebate]])),\"\",Table_PI[[#This Row],[Hide: Rebate]])","v":""},null,{"$f":"IF(OR(Table_PI[[#This Row],[Hide: Incremental Cost]]=\"\",Table_PI[[#This Row],[Hide: Incremental Cost]]=0,ISTEXT(Table_PI[[#This Row],[Hide: Incremental Cost]])),\"\",Table_PI[[#This Row],[Hide: Incremental Cost]])","v":""},{"$f":"IFERROR(IF(Table_SummaryPI[[#This Row],[Incentive_Customer]]=\"\",\"\",ROUND(Table_SummaryPI[[#This Row],[Incentive_Customer]]/$AM$401*'Customer Information'!$BC$21,2)),0)","v":""},{"$f":"IF(OR(Table_PI[[#This Row],[Annual kWh]]=\"\",Table_PI[[#This Row],[Annual kWh]]=0,ISTEXT(Table_PI[[#This Row],[Annual kWh]])),\"\",Table_PI[[#This Row],[Annual kWh]])","v":""},{"$f":"IF(OR(Table_PI[[#This Row],[Peak kW]]=\"\",Table_PI[[#This Row],[Peak kW]]=0,ISTEXT(Table_PI[[#This Row],[Peak kW]])),\"\",Table_PI[[#This Row],[Peak kW]])","v":""},{"$f":"IF(Table_SummaryPI[[#This Row],[Line No.]]<>\"\",IF(AND(ISNUMBER(FIND(\"Chiller\",Table_SummaryPI[[#This Row],[P_MeasureOption1]],1)),Table_SummaryPI[[#This Row],[ProposedMeasureCategory]]=\"Air-Cooled (Water-Cooled Replacement)\"),$BD$29*Table_SummaryPI[[#This Row],[Size]]*Table_SummaryPI[[#This Row],[Quantity]]*Table_SummaryPI[[#This Row],[EFLHCooling]],\nIF(ISNUMBER(FIND(\"Dishwasher\",Table_SummaryPI[[#This Row],[ProposedMeasureCategory]],1)),$BH$29*Table_SummaryPI[[#This Row],[Quantity]],\nIF(ISNUMBER(FIND(\"Ice Maker\",Table_SummaryPI[[#This Row],[ProposedMeasureCategory]],1)),$BD$31*Table_SummaryPI[[#This Row],[Quantity]],\nIF(ISNUMBER(FIND(\"Spray Valve\",Table_SummaryPI[[#This Row],[ProposedMeasureCategory]],1)),$BH$31*Table_SummaryPI[[#This Row],[Quantity]],\n0)))),\"\")","v":""},{"$f":"IF(OR(Table_PI[[#This Row],[Hide: Electrification kWh]]=\"\",Table_PI[[#This Row],[Hide: Electrification kWh]]=0,ISTEXT(Table_PI[[#This Row],[Hide: Electrification kWh]])),\"\",Table_PI[[#This Row],[Hide: Electrification kWh]])","v":""},{"$f":"IF(OR(Table_PI[[#This Row],[Hide: Electrification GHG]]=\"\",Table_PI[[#This Row],[Hide: Electrification GHG]]=0,ISTEXT(Table_PI[[#This Row],[Hide: Electrification GHG]])),\"\",Table_PI[[#This Row],[Hide: Electrification GHG]])","v":""},{"$f":"IFERROR(IF(Table_SummaryPI[[#This Row],[kWhSavings]]=\"\",\"\",$BH$9*Table_SummaryPI[[#This Row],[kWhSavings]]),0)","v":""},{"$f":"IFERROR(IF(Table_SummaryPI[[#This Row],[kWhSavings]]=\"\",\"\",$BH$14*Table_SummaryPI[[#This Row],[kWhSavings]]),0)","v":""},{"$f":"IFERROR(IF(Table_SummaryPI[[#This Row],[kWhSavings]]=\"\",\"\",$BH$18*Table_SummaryPI[[#This Row],[kWhSavings]]),0)","v":""},{"$f":"IFERROR(IF(Table_SummaryPI[[#This Row],[kWhSavings]]=\"\",\"\",$BH$22*Table_SummaryPI[[#This Row],[kWhSavings]]),0)","v":""}]
[{"$f":"Table_PI[[#This Row],[Line No.]]","v":""},{"$f":"IF(Table_SummaryPI[[#This Row],[MeasureName]]<>\"\",NOT(ISTEXT(Table_PI[[#This Row],[Rebate]])),\"\")","v":""},{"$f":"IF(Table_SummaryPI[[#This Row],[MeassureCategory]]<>\"\",CONCATENATE(Table_SummaryPI[[#This Row],[MeassureCategory]],  \" - \", Table_SummaryPI[[#This Row],[ProposedMeasureCategory]],  \" - \", TEXT(Table_SummaryPI[[#This Row],[Size]],\"#,##0.00\"),\" \",Table_SummaryPI[[#This Row],[SizeUnit]]),\"\")","v":""},{"$f":"SUBSTITUTE(Table_PI[[#This Row],[Measure]],\"     \",\"\",1)","v":""},{"$f":"IF(Table_PI[[#This Row],[List 1]]<>\"\",Table_PI[[#This Row],[List 1]],\"\")","v":""},{"$f":"IF(Table_PI[[#This Row],[List 2]]<>\"\",Table_PI[[#This Row],[List 2]],\"\")","v":""},{"$f":"IF(Table_PI[[#This Row],[List 3]]<>\"\",Table_PI[[#This Row],[List 3]],\"\")","v":""},{"$f":"IF(Table_PI[[#This Row],[Manufacturer]]=\"\",\"\",Table_PI[[#This Row],[Manufacturer]])","v":""},{"$f":"IF(Table_PI[[#This Row],[Model Number]]=\"\",\"\",Table_PI[[#This Row],[Model Number]])","v":""},{"$f":"IF(Table_PI[[#This Row],[Serial Number(s)]]=\"\",\"\",Table_PI[[#This Row],[Serial Number(s)]])","v":""},null,{"$f":"IF(Table_PI[[#This Row],[Size]]=\"\",\"\",Table_PI[[#This Row],[Size]])","v":""},null,null,{"$f":"IF(Table_PI[[#This Row],[Input 1]]<>\"\",Table_PI[[#This Row],[Input 1]],\"\")","v":""},null,null,{"$f":"IF(Table_PI[[#This Row],[Input 2]]<>\"\",Table_PI[[#This Row],[Input 2]],\"\")","v":""},null,null,{"$f":"IF(Table_PI[[#This Row],[Input 3]]<>\"\",Table_PI[[#This Row],[Input 3]],\"\")","v":""},null,null,{"$f":"IF(Table_PI[[#This Row],[Input 4]]<>\"\",Table_PI[[#This Row],[Input 4]],\"\")","v":""},null,null,{"$f":"IF(Table_PI[[#This Row],[Input 4]]<>\"\",Table_PI[[#This Row],[Input 4]],\"\")","v":""},null,null,{"$f":"IF(Table_PI[[#This Row],[Input 4]]<>\"\",Table_PI[[#This Row],[Input 4]],\"\")","v":""},{"$f":"IF(Table_PI[[#This Row],[Quantity]]=\"\",\"\",Table_PI[[#This Row],[Quantity]])","v":""},{"$f":"IF(Table_PI[[#This Row],[Notes]]=\"\",\"\",Table_PI[[#This Row],[Notes]])","v":""},{"$f":"IF(OR(Table_PI[[#This Row],[Hide: Baseline kWh]]=\"\",Table_PI[[#This Row],[Hide: Baseline kWh]]=0,ISTEXT(Table_PI[[#This Row],[Hide: Baseline kWh]])),\"\",Table_PI[[#This Row],[Hide: Baseline kWh]])","v":""},{"$f":"IF(OR(Table_PI[[#This Row],[Hide: Baseline kW]]=\"\",Table_PI[[#This Row],[Hide: Baseline kW]]=0,ISTEXT(Table_PI[[#This Row],[Hide: Baseline kW]])),\"\",Table_PI[[#This Row],[Hide: Baseline kW]])","v":""},{"$f":"IF(OR(Table_PI[[#This Row],[Hide: Proposed kWh]]=\"\",Table_PI[[#This Row],[Hide: Proposed kWh]]=0,ISTEXT(Table_PI[[#This Row],[Hide: Proposed kWh]])),\"\",Table_PI[[#This Row],[Hide: Proposed kWh]])","v":""},{"$f":"IF(OR(Table_PI[[#This Row],[Hide: Proposed kW]]=\"\",Table_PI[[#This Row],[Hide: Proposed kW]]=0,ISTEXT(Table_PI[[#This Row],[Hide: Proposed kW]])),\"\",Table_PI[[#This Row],[Hide: Proposed kW]])","v":""},null,null,{"$f":"IF(OR(Table_PI[[#This Row],[Hide: Rebate]]=\"\",Table_PI[[#This Row],[Hide: Rebate]]=0,ISTEXT(Table_PI[[#This Row],[Hide: Rebate]])),\"\",Table_PI[[#This Row],[Hide: Rebate]])","v":""},null,{"$f":"IF(OR(Table_PI[[#This Row],[Hide: Incremental Cost]]=\"\",Table_PI[[#This Row],[Hide: Incremental Cost]]=0,ISTEXT(Table_PI[[#This Row],[Hide: Incremental Cost]])),\"\",Table_PI[[#This Row],[Hide: Incremental Cost]])","v":""},{"$f":"IFERROR(IF(Table_SummaryPI[[#This Row],[Incentive_Customer]]=\"\",\"\",ROUND(Table_SummaryPI[[#This Row],[Incentive_Customer]]/$AM$401*'Customer Information'!$BC$21,2)),0)","v":""},{"$f":"IF(OR(Table_PI[[#This Row],[Annual kWh]]=\"\",Table_PI[[#This Row],[Annual kWh]]=0,ISTEXT(Table_PI[[#This Row],[Annual kWh]])),\"\",Table_PI[[#This Row],[Annual kWh]])","v":""},{"$f":"IF(OR(Table_PI[[#This Row],[Peak kW]]=\"\",Table_PI[[#This Row],[Peak kW]]=0,ISTEXT(Table_PI[[#This Row],[Peak kW]])),\"\",Table_PI[[#This Row],[Peak kW]])","v":""},{"$f":"IF(Table_SummaryPI[[#This Row],[Line No.]]<>\"\",IF(AND(ISNUMBER(FIND(\"Chiller\",Table_SummaryPI[[#This Row],[P_MeasureOption1]],1)),Table_SummaryPI[[#This Row],[ProposedMeasureCategory]]=\"Air-Cooled (Water-Cooled Replacement)\"),$BD$29*Table_SummaryPI[[#This Row],[Size]]*Table_SummaryPI[[#This Row],[Quantity]]*Table_SummaryPI[[#This Row],[EFLHCooling]],\nIF(ISNUMBER(FIND(\"Dishwasher\",Table_SummaryPI[[#This Row],[ProposedMeasureCategory]],1)),$BH$29*Table_SummaryPI[[#This Row],[Quantity]],\nIF(ISNUMBER(FIND(\"Ice Maker\",Table_SummaryPI[[#This Row],[ProposedMeasureCategory]],1)),$BD$31*Table_SummaryPI[[#This Row],[Quantity]],\nIF(ISNUMBER(FIND(\"Spray Valve\",Table_SummaryPI[[#This Row],[ProposedMeasureCategory]],1)),$BH$31*Table_SummaryPI[[#This Row],[Quantity]],\n0)))),\"\")","v":""},{"$f":"IF(OR(Table_PI[[#This Row],[Hide: Electrification kWh]]=\"\",Table_PI[[#This Row],[Hide: Electrification kWh]]=0,ISTEXT(Table_PI[[#This Row],[Hide: Electrification kWh]])),\"\",Table_PI[[#This Row],[Hide: Electrification kWh]])","v":""},{"$f":"IF(OR(Table_PI[[#This Row],[Hide: Electrification GHG]]=\"\",Table_PI[[#This Row],[Hide: Electrification GHG]]=0,ISTEXT(Table_PI[[#This Row],[Hide: Electrification GHG]])),\"\",Table_PI[[#This Row],[Hide: Electrification GHG]])","v":""},{"$f":"IFERROR(IF(Table_SummaryPI[[#This Row],[kWhSavings]]=\"\",\"\",$BH$9*Table_SummaryPI[[#This Row],[kWhSavings]]),0)","v":""},{"$f":"IFERROR(IF(Table_SummaryPI[[#This Row],[kWhSavings]]=\"\",\"\",$BH$14*Table_SummaryPI[[#This Row],[kWhSavings]]),0)","v":""},{"$f":"IFERROR(IF(Table_SummaryPI[[#This Row],[kWhSavings]]=\"\",\"\",$BH$18*Table_SummaryPI[[#This Row],[kWhSavings]]),0)","v":""},{"$f":"IFERROR(IF(Table_SummaryPI[[#This Row],[kWhSavings]]=\"\",\"\",$BH$22*Table_SummaryPI[[#This Row],[kWhSavings]]),0)","v":""}]
[{"$f":"Table_PI[[#This Row],[Line No.]]","v":""},{"$f":"IF(Table_SummaryPI[[#This Row],[MeasureName]]<>\"\",NOT(ISTEXT(Table_PI[[#This Row],[Rebate]])),\"\")","v":""},{"$f":"IF(Table_SummaryPI[[#This Row],[MeassureCategory]]<>\"\",CONCATENATE(Table_SummaryPI[[#This Row],[MeassureCategory]],  \" - \", Table_SummaryPI[[#This Row],[ProposedMeasureCategory]],  \" - \", TEXT(Table_SummaryPI[[#This Row],[Size]],\"#,##0.00\"),\" \",Table_SummaryPI[[#This Row],[SizeUnit]]),\"\")","v":""},{"$f":"SUBSTITUTE(Table_PI[[#This Row],[Measure]],\"     \",\"\",1)","v":""},{"$f":"IF(Table_PI[[#This Row],[List 1]]<>\"\",Table_PI[[#This Row],[List 1]],\"\")","v":""},{"$f":"IF(Table_PI[[#This Row],[List 2]]<>\"\",Table_PI[[#This Row],[List 2]],\"\")","v":""},{"$f":"IF(Table_PI[[#This Row],[List 3]]<>\"\",Table_PI[[#This Row],[List 3]],\"\")","v":""},{"$f":"IF(Table_PI[[#This Row],[Manufacturer]]=\"\",\"\",Table_PI[[#This Row],[Manufacturer]])","v":""},{"$f":"IF(Table_PI[[#This Row],[Model Number]]=\"\",\"\",Table_PI[[#This Row],[Model Number]])","v":""},{"$f":"IF(Table_PI[[#This Row],[Serial Number(s)]]=\"\",\"\",Table_PI[[#This Row],[Serial Number(s)]])","v":""},null,{"$f":"IF(Table_PI[[#This Row],[Size]]=\"\",\"\",Table_PI[[#This Row],[Size]])","v":""},null,null,{"$f":"IF(Table_PI[[#This Row],[Input 1]]<>\"\",Table_PI[[#This Row],[Input 1]],\"\")","v":""},null,null,{"$f":"IF(Table_PI[[#This Row],[Input 2]]<>\"\",Table_PI[[#This Row],[Input 2]],\"\")","v":""},null,null,{"$f":"IF(Table_PI[[#This Row],[Input 3]]<>\"\",Table_PI[[#This Row],[Input 3]],\"\")","v":""},null,null,{"$f":"IF(Table_PI[[#This Row],[Input 4]]<>\"\",Table_PI[[#This Row],[Input 4]],\"\")","v":""},null,null,{"$f":"IF(Table_PI[[#This Row],[Input 4]]<>\"\",Table_PI[[#This Row],[Input 4]],\"\")","v":""},null,null,{"$f":"IF(Table_PI[[#This Row],[Input 4]]<>\"\",Table_PI[[#This Row],[Input 4]],\"\")","v":""},{"$f":"IF(Table_PI[[#This Row],[Quantity]]=\"\",\"\",Table_PI[[#This Row],[Quantity]])","v":""},{"$f":"IF(Table_PI[[#This Row],[Notes]]=\"\",\"\",Table_PI[[#This Row],[Notes]])","v":""},{"$f":"IF(OR(Table_PI[[#This Row],[Hide: Baseline kWh]]=\"\",Table_PI[[#This Row],[Hide: Baseline kWh]]=0,ISTEXT(Table_PI[[#This Row],[Hide: Baseline kWh]])),\"\",Table_PI[[#This Row],[Hide: Baseline kWh]])","v":""},{"$f":"IF(OR(Table_PI[[#This Row],[Hide: Baseline kW]]=\"\",Table_PI[[#This Row],[Hide: Baseline kW]]=0,ISTEXT(Table_PI[[#This Row],[Hide: Baseline kW]])),\"\",Table_PI[[#This Row],[Hide: Baseline kW]])","v":""},{"$f":"IF(OR(Table_PI[[#This Row],[Hide: Proposed kWh]]=\"\",Table_PI[[#This Row],[Hide: Proposed kWh]]=0,ISTEXT(Table_PI[[#This Row],[Hide: Proposed kWh]])),\"\",Table_PI[[#This Row],[Hide: Proposed kWh]])","v":""},{"$f":"IF(OR(Table_PI[[#This Row],[Hide: Proposed kW]]=\"\",Table_PI[[#This Row],[Hide: Proposed kW]]=0,ISTEXT(Table_PI[[#This Row],[Hide: Proposed kW]])),\"\",Table_PI[[#This Row],[Hide: Proposed kW]])","v":""},null,null,{"$f":"IF(OR(Table_PI[[#This Row],[Hide: Rebate]]=\"\",Table_PI[[#This Row],[Hide: Rebate]]=0,ISTEXT(Table_PI[[#This Row],[Hide: Rebate]])),\"\",Table_PI[[#This Row],[Hide: Rebate]])","v":""},null,{"$f":"IF(OR(Table_PI[[#This Row],[Hide: Incremental Cost]]=\"\",Table_PI[[#This Row],[Hide: Incremental Cost]]=0,ISTEXT(Table_PI[[#This Row],[Hide: Incremental Cost]])),\"\",Table_PI[[#This Row],[Hide: Incremental Cost]])","v":""},{"$f":"IFERROR(IF(Table_SummaryPI[[#This Row],[Incentive_Customer]]=\"\",\"\",ROUND(Table_SummaryPI[[#This Row],[Incentive_Customer]]/$AM$401*'Customer Information'!$BC$21,2)),0)","v":""},{"$f":"IF(OR(Table_PI[[#This Row],[Annual kWh]]=\"\",Table_PI[[#This Row],[Annual kWh]]=0,ISTEXT(Table_PI[[#This Row],[Annual kWh]])),\"\",Table_PI[[#This Row],[Annual kWh]])","v":""},{"$f":"IF(OR(Table_PI[[#This Row],[Peak kW]]=\"\",Table_PI[[#This Row],[Peak kW]]=0,ISTEXT(Table_PI[[#This Row],[Peak kW]])),\"\",Table_PI[[#This Row],[Peak kW]])","v":""},{"$f":"IF(Table_SummaryPI[[#This Row],[Line No.]]<>\"\",IF(AND(ISNUMBER(FIND(\"Chiller\",Table_SummaryPI[[#This Row],[P_MeasureOption1]],1)),Table_SummaryPI[[#This Row],[ProposedMeasureCategory]]=\"Air-Cooled (Water-Cooled Replacement)\"),$BD$29*Table_SummaryPI[[#This Row],[Size]]*Table_SummaryPI[[#This Row],[Quantity]]*Table_SummaryPI[[#This Row],[EFLHCooling]],\nIF(ISNUMBER(FIND(\"Dishwasher\",Table_SummaryPI[[#This Row],[ProposedMeasureCategory]],1)),$BH$29*Table_SummaryPI[[#This Row],[Quantity]],\nIF(ISNUMBER(FIND(\"Ice Maker\",Table_SummaryPI[[#This Row],[ProposedMeasureCategory]],1)),$BD$31*Table_SummaryPI[[#This Row],[Quantity]],\nIF(ISNUMBER(FIND(\"Spray Valve\",Table_SummaryPI[[#This Row],[ProposedMeasureCategory]],1)),$BH$31*Table_SummaryPI[[#This Row],[Quantity]],\n0)))),\"\")","v":""},{"$f":"IF(OR(Table_PI[[#This Row],[Hide: Electrification kWh]]=\"\",Table_PI[[#This Row],[Hide: Electrification kWh]]=0,ISTEXT(Table_PI[[#This Row],[Hide: Electrification kWh]])),\"\",Table_PI[[#This Row],[Hide: Electrification kWh]])","v":""},{"$f":"IF(OR(Table_PI[[#This Row],[Hide: Electrification GHG]]=\"\",Table_PI[[#This Row],[Hide: Electrification GHG]]=0,ISTEXT(Table_PI[[#This Row],[Hide: Electrification GHG]])),\"\",Table_PI[[#This Row],[Hide: Electrification GHG]])","v":""},{"$f":"IFERROR(IF(Table_SummaryPI[[#This Row],[kWhSavings]]=\"\",\"\",$BH$9*Table_SummaryPI[[#This Row],[kWhSavings]]),0)","v":""},{"$f":"IFERROR(IF(Table_SummaryPI[[#This Row],[kWhSavings]]=\"\",\"\",$BH$14*Table_SummaryPI[[#This Row],[kWhSavings]]),0)","v":""},{"$f":"IFERROR(IF(Table_SummaryPI[[#This Row],[kWhSavings]]=\"\",\"\",$BH$18*Table_SummaryPI[[#This Row],[kWhSavings]]),0)","v":""},{"$f":"IFERROR(IF(Table_SummaryPI[[#This Row],[kWhSavings]]=\"\",\"\",$BH$22*Table_SummaryPI[[#This Row],[kWhSavings]]),0)","v":""}]
[{"$f":"Table_PI[[#This Row],[Line No.]]","v":""},{"$f":"IF(Table_SummaryPI[[#This Row],[MeasureName]]<>\"\",NOT(ISTEXT(Table_PI[[#This Row],[Rebate]])),\"\")","v":""},{"$f":"IF(Table_SummaryPI[[#This Row],[MeassureCategory]]<>\"\",CONCATENATE(Table_SummaryPI[[#This Row],[MeassureCategory]],  \" - \", Table_SummaryPI[[#This Row],[ProposedMeasureCategory]],  \" - \", TEXT(Table_SummaryPI[[#This Row],[Size]],\"#,##0.00\"),\" \",Table_SummaryPI[[#This Row],[SizeUnit]]),\"\")","v":""},{"$f":"SUBSTITUTE(Table_PI[[#This Row],[Measure]],\"     \",\"\",1)","v":""},{"$f":"IF(Table_PI[[#This Row],[List 1]]<>\"\",Table_PI[[#This Row],[List 1]],\"\")","v":""},{"$f":"IF(Table_PI[[#This Row],[List 2]]<>\"\",Table_PI[[#This Row],[List 2]],\"\")","v":""},{"$f":"IF(Table_PI[[#This Row],[List 3]]<>\"\",Table_PI[[#This Row],[List 3]],\"\")","v":""},{"$f":"IF(Table_PI[[#This Row],[Manufacturer]]=\"\",\"\",Table_PI[[#This Row],[Manufacturer]])","v":""},{"$f":"IF(Table_PI[[#This Row],[Model Number]]=\"\",\"\",Table_PI[[#This Row],[Model Number]])","v":""},{"$f":"IF(Table_PI[[#This Row],[Serial Number(s)]]=\"\",\"\",Table_PI[[#This Row],[Serial Number(s)]])","v":""},null,{"$f":"IF(Table_PI[[#This Row],[Size]]=\"\",\"\",Table_PI[[#This Row],[Size]])","v":""},null,null,{"$f":"IF(Table_PI[[#This Row],[Input 1]]<>\"\",Table_PI[[#This Row],[Input 1]],\"\")","v":""},null,null,{"$f":"IF(Table_PI[[#This Row],[Input 2]]<>\"\",Table_PI[[#This Row],[Input 2]],\"\")","v":""},null,null,{"$f":"IF(Table_PI[[#This Row],[Input 3]]<>\"\",Table_PI[[#This Row],[Input 3]],\"\")","v":""},null,null,{"$f":"IF(Table_PI[[#This Row],[Input 4]]<>\"\",Table_PI[[#This Row],[Input 4]],\"\")","v":""},null,null,{"$f":"IF(Table_PI[[#This Row],[Input 4]]<>\"\",Table_PI[[#This Row],[Input 4]],\"\")","v":""},null,null,{"$f":"IF(Table_PI[[#This Row],[Input 4]]<>\"\",Table_PI[[#This Row],[Input 4]],\"\")","v":""},{"$f":"IF(Table_PI[[#This Row],[Quantity]]=\"\",\"\",Table_PI[[#This Row],[Quantity]])","v":""},{"$f":"IF(Table_PI[[#This Row],[Notes]]=\"\",\"\",Table_PI[[#This Row],[Notes]])","v":""},{"$f":"IF(OR(Table_PI[[#This Row],[Hide: Baseline kWh]]=\"\",Table_PI[[#This Row],[Hide: Baseline kWh]]=0,ISTEXT(Table_PI[[#This Row],[Hide: Baseline kWh]])),\"\",Table_PI[[#This Row],[Hide: Baseline kWh]])","v":""},{"$f":"IF(OR(Table_PI[[#This Row],[Hide: Baseline kW]]=\"\",Table_PI[[#This Row],[Hide: Baseline kW]]=0,ISTEXT(Table_PI[[#This Row],[Hide: Baseline kW]])),\"\",Table_PI[[#This Row],[Hide: Baseline kW]])","v":""},{"$f":"IF(OR(Table_PI[[#This Row],[Hide: Proposed kWh]]=\"\",Table_PI[[#This Row],[Hide: Proposed kWh]]=0,ISTEXT(Table_PI[[#This Row],[Hide: Proposed kWh]])),\"\",Table_PI[[#This Row],[Hide: Proposed kWh]])","v":""},{"$f":"IF(OR(Table_PI[[#This Row],[Hide: Proposed kW]]=\"\",Table_PI[[#This Row],[Hide: Proposed kW]]=0,ISTEXT(Table_PI[[#This Row],[Hide: Proposed kW]])),\"\",Table_PI[[#This Row],[Hide: Proposed kW]])","v":""},null,null,{"$f":"IF(OR(Table_PI[[#This Row],[Hide: Rebate]]=\"\",Table_PI[[#This Row],[Hide: Rebate]]=0,ISTEXT(Table_PI[[#This Row],[Hide: Rebate]])),\"\",Table_PI[[#This Row],[Hide: Rebate]])","v":""},null,{"$f":"IF(OR(Table_PI[[#This Row],[Hide: Incremental Cost]]=\"\",Table_PI[[#This Row],[Hide: Incremental Cost]]=0,ISTEXT(Table_PI[[#This Row],[Hide: Incremental Cost]])),\"\",Table_PI[[#This Row],[Hide: Incremental Cost]])","v":""},{"$f":"IFERROR(IF(Table_SummaryPI[[#This Row],[Incentive_Customer]]=\"\",\"\",ROUND(Table_SummaryPI[[#This Row],[Incentive_Customer]]/$AM$401*'Customer Information'!$BC$21,2)),0)","v":""},{"$f":"IF(OR(Table_PI[[#This Row],[Annual kWh]]=\"\",Table_PI[[#This Row],[Annual kWh]]=0,ISTEXT(Table_PI[[#This Row],[Annual kWh]])),\"\",Table_PI[[#This Row],[Annual kWh]])","v":""},{"$f":"IF(OR(Table_PI[[#This Row],[Peak kW]]=\"\",Table_PI[[#This Row],[Peak kW]]=0,ISTEXT(Table_PI[[#This Row],[Peak kW]])),\"\",Table_PI[[#This Row],[Peak kW]])","v":""},{"$f":"IF(Table_SummaryPI[[#This Row],[Line No.]]<>\"\",IF(AND(ISNUMBER(FIND(\"Chiller\",Table_SummaryPI[[#This Row],[P_MeasureOption1]],1)),Table_SummaryPI[[#This Row],[ProposedMeasureCategory]]=\"Air-Cooled (Water-Cooled Replacement)\"),$BD$29*Table_SummaryPI[[#This Row],[Size]]*Table_SummaryPI[[#This Row],[Quantity]]*Table_SummaryPI[[#This Row],[EFLHCooling]],\nIF(ISNUMBER(FIND(\"Dishwasher\",Table_SummaryPI[[#This Row],[ProposedMeasureCategory]],1)),$BH$29*Table_SummaryPI[[#This Row],[Quantity]],\nIF(ISNUMBER(FIND(\"Ice Maker\",Table_SummaryPI[[#This Row],[ProposedMeasureCategory]],1)),$BD$31*Table_SummaryPI[[#This Row],[Quantity]],\nIF(ISNUMBER(FIND(\"Spray Valve\",Table_SummaryPI[[#This Row],[ProposedMeasureCategory]],1)),$BH$31*Table_SummaryPI[[#This Row],[Quantity]],\n0)))),\"\")","v":""},{"$f":"IF(OR(Table_PI[[#This Row],[Hide: Electrification kWh]]=\"\",Table_PI[[#This Row],[Hide: Electrification kWh]]=0,ISTEXT(Table_PI[[#This Row],[Hide: Electrification kWh]])),\"\",Table_PI[[#This Row],[Hide: Electrification kWh]])","v":""},{"$f":"IF(OR(Table_PI[[#This Row],[Hide: Electrification GHG]]=\"\",Table_PI[[#This Row],[Hide: Electrification GHG]]=0,ISTEXT(Table_PI[[#This Row],[Hide: Electrification GHG]])),\"\",Table_PI[[#This Row],[Hide: Electrification GHG]])","v":""},{"$f":"IFERROR(IF(Table_SummaryPI[[#This Row],[kWhSavings]]=\"\",\"\",$BH$9*Table_SummaryPI[[#This Row],[kWhSavings]]),0)","v":""},{"$f":"IFERROR(IF(Table_SummaryPI[[#This Row],[kWhSavings]]=\"\",\"\",$BH$14*Table_SummaryPI[[#This Row],[kWhSavings]]),0)","v":""},{"$f":"IFERROR(IF(Table_SummaryPI[[#This Row],[kWhSavings]]=\"\",\"\",$BH$18*Table_SummaryPI[[#This Row],[kWhSavings]]),0)","v":""},{"$f":"IFERROR(IF(Table_SummaryPI[[#This Row],[kWhSavings]]=\"\",\"\",$BH$22*Table_SummaryPI[[#This Row],[kWhSavings]]),0)","v":""}]
[{"$f":"Table_PI[[#This Row],[Line No.]]","v":""},{"$f":"IF(Table_SummaryPI[[#This Row],[MeasureName]]<>\"\",NOT(ISTEXT(Table_PI[[#This Row],[Rebate]])),\"\")","v":""},{"$f":"IF(Table_SummaryPI[[#This Row],[MeassureCategory]]<>\"\",CONCATENATE(Table_SummaryPI[[#This Row],[MeassureCategory]],  \" - \", Table_SummaryPI[[#This Row],[ProposedMeasureCategory]],  \" - \", TEXT(Table_SummaryPI[[#This Row],[Size]],\"#,##0.00\"),\" \",Table_SummaryPI[[#This Row],[SizeUnit]]),\"\")","v":""},{"$f":"SUBSTITUTE(Table_PI[[#This Row],[Measure]],\"     \",\"\",1)","v":""},{"$f":"IF(Table_PI[[#This Row],[List 1]]<>\"\",Table_PI[[#This Row],[List 1]],\"\")","v":""},{"$f":"IF(Table_PI[[#This Row],[List 2]]<>\"\",Table_PI[[#This Row],[List 2]],\"\")","v":""},{"$f":"IF(Table_PI[[#This Row],[List 3]]<>\"\",Table_PI[[#This Row],[List 3]],\"\")","v":""},{"$f":"IF(Table_PI[[#This Row],[Manufacturer]]=\"\",\"\",Table_PI[[#This Row],[Manufacturer]])","v":""},{"$f":"IF(Table_PI[[#This Row],[Model Number]]=\"\",\"\",Table_PI[[#This Row],[Model Number]])","v":""},{"$f":"IF(Table_PI[[#This Row],[Serial Number(s)]]=\"\",\"\",Table_PI[[#This Row],[Serial Number(s)]])","v":""},null,{"$f":"IF(Table_PI[[#This Row],[Size]]=\"\",\"\",Table_PI[[#This Row],[Size]])","v":""},null,null,{"$f":"IF(Table_PI[[#This Row],[Input 1]]<>\"\",Table_PI[[#This Row],[Input 1]],\"\")","v":""},null,null,{"$f":"IF(Table_PI[[#This Row],[Input 2]]<>\"\",Table_PI[[#This Row],[Input 2]],\"\")","v":""},null,null,{"$f":"IF(Table_PI[[#This Row],[Input 3]]<>\"\",Table_PI[[#This Row],[Input 3]],\"\")","v":""},null,null,{"$f":"IF(Table_PI[[#This Row],[Input 4]]<>\"\",Table_PI[[#This Row],[Input 4]],\"\")","v":""},null,null,{"$f":"IF(Table_PI[[#This Row],[Input 4]]<>\"\",Table_PI[[#This Row],[Input 4]],\"\")","v":""},null,null,{"$f":"IF(Table_PI[[#This Row],[Input 4]]<>\"\",Table_PI[[#This Row],[Input 4]],\"\")","v":""},{"$f":"IF(Table_PI[[#This Row],[Quantity]]=\"\",\"\",Table_PI[[#This Row],[Quantity]])","v":""},{"$f":"IF(Table_PI[[#This Row],[Notes]]=\"\",\"\",Table_PI[[#This Row],[Notes]])","v":""},{"$f":"IF(OR(Table_PI[[#This Row],[Hide: Baseline kWh]]=\"\",Table_PI[[#This Row],[Hide: Baseline kWh]]=0,ISTEXT(Table_PI[[#This Row],[Hide: Baseline kWh]])),\"\",Table_PI[[#This Row],[Hide: Baseline kWh]])","v":""},{"$f":"IF(OR(Table_PI[[#This Row],[Hide: Baseline kW]]=\"\",Table_PI[[#This Row],[Hide: Baseline kW]]=0,ISTEXT(Table_PI[[#This Row],[Hide: Baseline kW]])),\"\",Table_PI[[#This Row],[Hide: Baseline kW]])","v":""},{"$f":"IF(OR(Table_PI[[#This Row],[Hide: Proposed kWh]]=\"\",Table_PI[[#This Row],[Hide: Proposed kWh]]=0,ISTEXT(Table_PI[[#This Row],[Hide: Proposed kWh]])),\"\",Table_PI[[#This Row],[Hide: Proposed kWh]])","v":""},{"$f":"IF(OR(Table_PI[[#This Row],[Hide: Proposed kW]]=\"\",Table_PI[[#This Row],[Hide: Proposed kW]]=0,ISTEXT(Table_PI[[#This Row],[Hide: Proposed kW]])),\"\",Table_PI[[#This Row],[Hide: Proposed kW]])","v":""},null,null,{"$f":"IF(OR(Table_PI[[#This Row],[Hide: Rebate]]=\"\",Table_PI[[#This Row],[Hide: Rebate]]=0,ISTEXT(Table_PI[[#This Row],[Hide: Rebate]])),\"\",Table_PI[[#This Row],[Hide: Rebate]])","v":""},null,{"$f":"IF(OR(Table_PI[[#This Row],[Hide: Incremental Cost]]=\"\",Table_PI[[#This Row],[Hide: Incremental Cost]]=0,ISTEXT(Table_PI[[#This Row],[Hide: Incremental Cost]])),\"\",Table_PI[[#This Row],[Hide: Incremental Cost]])","v":""},{"$f":"IFERROR(IF(Table_SummaryPI[[#This Row],[Incentive_Customer]]=\"\",\"\",ROUND(Table_SummaryPI[[#This Row],[Incentive_Customer]]/$AM$401*'Customer Information'!$BC$21,2)),0)","v":""},{"$f":"IF(OR(Table_PI[[#This Row],[Annual kWh]]=\"\",Table_PI[[#This Row],[Annual kWh]]=0,ISTEXT(Table_PI[[#This Row],[Annual kWh]])),\"\",Table_PI[[#This Row],[Annual kWh]])","v":""},{"$f":"IF(OR(Table_PI[[#This Row],[Peak kW]]=\"\",Table_PI[[#This Row],[Peak kW]]=0,ISTEXT(Table_PI[[#This Row],[Peak kW]])),\"\",Table_PI[[#This Row],[Peak kW]])","v":""},{"$f":"IF(Table_SummaryPI[[#This Row],[Line No.]]<>\"\",IF(AND(ISNUMBER(FIND(\"Chiller\",Table_SummaryPI[[#This Row],[P_MeasureOption1]],1)),Table_SummaryPI[[#This Row],[ProposedMeasureCategory]]=\"Air-Cooled (Water-Cooled Replacement)\"),$BD$29*Table_SummaryPI[[#This Row],[Size]]*Table_SummaryPI[[#This Row],[Quantity]]*Table_SummaryPI[[#This Row],[EFLHCooling]],\nIF(ISNUMBER(FIND(\"Dishwasher\",Table_SummaryPI[[#This Row],[ProposedMeasureCategory]],1)),$BH$29*Table_SummaryPI[[#This Row],[Quantity]],\nIF(ISNUMBER(FIND(\"Ice Maker\",Table_SummaryPI[[#This Row],[ProposedMeasureCategory]],1)),$BD$31*Table_SummaryPI[[#This Row],[Quantity]],\nIF(ISNUMBER(FIND(\"Spray Valve\",Table_SummaryPI[[#This Row],[ProposedMeasureCategory]],1)),$BH$31*Table_SummaryPI[[#This Row],[Quantity]],\n0)))),\"\")","v":""},{"$f":"IF(OR(Table_PI[[#This Row],[Hide: Electrification kWh]]=\"\",Table_PI[[#This Row],[Hide: Electrification kWh]]=0,ISTEXT(Table_PI[[#This Row],[Hide: Electrification kWh]])),\"\",Table_PI[[#This Row],[Hide: Electrification kWh]])","v":""},{"$f":"IF(OR(Table_PI[[#This Row],[Hide: Electrification GHG]]=\"\",Table_PI[[#This Row],[Hide: Electrification GHG]]=0,ISTEXT(Table_PI[[#This Row],[Hide: Electrification GHG]])),\"\",Table_PI[[#This Row],[Hide: Electrification GHG]])","v":""},{"$f":"IFERROR(IF(Table_SummaryPI[[#This Row],[kWhSavings]]=\"\",\"\",$BH$9*Table_SummaryPI[[#This Row],[kWhSavings]]),0)","v":""},{"$f":"IFERROR(IF(Table_SummaryPI[[#This Row],[kWhSavings]]=\"\",\"\",$BH$14*Table_SummaryPI[[#This Row],[kWhSavings]]),0)","v":""},{"$f":"IFERROR(IF(Table_SummaryPI[[#This Row],[kWhSavings]]=\"\",\"\",$BH$18*Table_SummaryPI[[#This Row],[kWhSavings]]),0)","v":""},{"$f":"IFERROR(IF(Table_SummaryPI[[#This Row],[kWhSavings]]=\"\",\"\",$BH$22*Table_SummaryPI[[#This Row],[kWhSavings]]),0)","v":""}]
[{"$f":"Table_PI[[#This Row],[Line No.]]","v":""},{"$f":"IF(Table_SummaryPI[[#This Row],[MeasureName]]<>\"\",NOT(ISTEXT(Table_PI[[#This Row],[Rebate]])),\"\")","v":""},{"$f":"IF(Table_SummaryPI[[#This Row],[MeassureCategory]]<>\"\",CONCATENATE(Table_SummaryPI[[#This Row],[MeassureCategory]],  \" - \", Table_SummaryPI[[#This Row],[ProposedMeasureCategory]],  \" - \", TEXT(Table_SummaryPI[[#This Row],[Size]],\"#,##0.00\"),\" \",Table_SummaryPI[[#This Row],[SizeUnit]]),\"\")","v":""},{"$f":"SUBSTITUTE(Table_PI[[#This Row],[Measure]],\"     \",\"\",1)","v":""},{"$f":"IF(Table_PI[[#This Row],[List 1]]<>\"\",Table_PI[[#This Row],[List 1]],\"\")","v":""},{"$f":"IF(Table_PI[[#This Row],[List 2]]<>\"\",Table_PI[[#This Row],[List 2]],\"\")","v":""},{"$f":"IF(Table_PI[[#This Row],[List 3]]<>\"\",Table_PI[[#This Row],[List 3]],\"\")","v":""},{"$f":"IF(Table_PI[[#This Row],[Manufacturer]]=\"\",\"\",Table_PI[[#This Row],[Manufacturer]])","v":""},{"$f":"IF(Table_PI[[#This Row],[Model Number]]=\"\",\"\",Table_PI[[#This Row],[Model Number]])","v":""},{"$f":"IF(Table_PI[[#This Row],[Serial Number(s)]]=\"\",\"\",Table_PI[[#This Row],[Serial Number(s)]])","v":""},null,{"$f":"IF(Table_PI[[#This Row],[Size]]=\"\",\"\",Table_PI[[#This Row],[Size]])","v":""},null,null,{"$f":"IF(Table_PI[[#This Row],[Input 1]]<>\"\",Table_PI[[#This Row],[Input 1]],\"\")","v":""},null,null,{"$f":"IF(Table_PI[[#This Row],[Input 2]]<>\"\",Table_PI[[#This Row],[Input 2]],\"\")","v":""},null,null,{"$f":"IF(Table_PI[[#This Row],[Input 3]]<>\"\",Table_PI[[#This Row],[Input 3]],\"\")","v":""},null,null,{"$f":"IF(Table_PI[[#This Row],[Input 4]]<>\"\",Table_PI[[#This Row],[Input 4]],\"\")","v":""},null,null,{"$f":"IF(Table_PI[[#This Row],[Input 4]]<>\"\",Table_PI[[#This Row],[Input 4]],\"\")","v":""},null,null,{"$f":"IF(Table_PI[[#This Row],[Input 4]]<>\"\",Table_PI[[#This Row],[Input 4]],\"\")","v":""},{"$f":"IF(Table_PI[[#This Row],[Quantity]]=\"\",\"\",Table_PI[[#This Row],[Quantity]])","v":""},{"$f":"IF(Table_PI[[#This Row],[Notes]]=\"\",\"\",Table_PI[[#This Row],[Notes]])","v":""},{"$f":"IF(OR(Table_PI[[#This Row],[Hide: Baseline kWh]]=\"\",Table_PI[[#This Row],[Hide: Baseline kWh]]=0,ISTEXT(Table_PI[[#This Row],[Hide: Baseline kWh]])),\"\",Table_PI[[#This Row],[Hide: Baseline kWh]])","v":""},{"$f":"IF(OR(Table_PI[[#This Row],[Hide: Baseline kW]]=\"\",Table_PI[[#This Row],[Hide: Baseline kW]]=0,ISTEXT(Table_PI[[#This Row],[Hide: Baseline kW]])),\"\",Table_PI[[#This Row],[Hide: Baseline kW]])","v":""},{"$f":"IF(OR(Table_PI[[#This Row],[Hide: Proposed kWh]]=\"\",Table_PI[[#This Row],[Hide: Proposed kWh]]=0,ISTEXT(Table_PI[[#This Row],[Hide: Proposed kWh]])),\"\",Table_PI[[#This Row],[Hide: Proposed kWh]])","v":""},{"$f":"IF(OR(Table_PI[[#This Row],[Hide: Proposed kW]]=\"\",Table_PI[[#This Row],[Hide: Proposed kW]]=0,ISTEXT(Table_PI[[#This Row],[Hide: Proposed kW]])),\"\",Table_PI[[#This Row],[Hide: Proposed kW]])","v":""},null,null,{"$f":"IF(OR(Table_PI[[#This Row],[Hide: Rebate]]=\"\",Table_PI[[#This Row],[Hide: Rebate]]=0,ISTEXT(Table_PI[[#This Row],[Hide: Rebate]])),\"\",Table_PI[[#This Row],[Hide: Rebate]])","v":""},null,{"$f":"IF(OR(Table_PI[[#This Row],[Hide: Incremental Cost]]=\"\",Table_PI[[#This Row],[Hide: Incremental Cost]]=0,ISTEXT(Table_PI[[#This Row],[Hide: Incremental Cost]])),\"\",Table_PI[[#This Row],[Hide: Incremental Cost]])","v":""},{"$f":"IFERROR(IF(Table_SummaryPI[[#This Row],[Incentive_Customer]]=\"\",\"\",ROUND(Table_SummaryPI[[#This Row],[Incentive_Customer]]/$AM$401*'Customer Information'!$BC$21,2)),0)","v":""},{"$f":"IF(OR(Table_PI[[#This Row],[Annual kWh]]=\"\",Table_PI[[#This Row],[Annual kWh]]=0,ISTEXT(Table_PI[[#This Row],[Annual kWh]])),\"\",Table_PI[[#This Row],[Annual kWh]])","v":""},{"$f":"IF(OR(Table_PI[[#This Row],[Peak kW]]=\"\",Table_PI[[#This Row],[Peak kW]]=0,ISTEXT(Table_PI[[#This Row],[Peak kW]])),\"\",Table_PI[[#This Row],[Peak kW]])","v":""},{"$f":"IF(Table_SummaryPI[[#This Row],[Line No.]]<>\"\",IF(AND(ISNUMBER(FIND(\"Chiller\",Table_SummaryPI[[#This Row],[P_MeasureOption1]],1)),Table_SummaryPI[[#This Row],[ProposedMeasureCategory]]=\"Air-Cooled (Water-Cooled Replacement)\"),$BD$29*Table_SummaryPI[[#This Row],[Size]]*Table_SummaryPI[[#This Row],[Quantity]]*Table_SummaryPI[[#This Row],[EFLHCooling]],\nIF(ISNUMBER(FIND(\"Dishwasher\",Table_SummaryPI[[#This Row],[ProposedMeasureCategory]],1)),$BH$29*Table_SummaryPI[[#This Row],[Quantity]],\nIF(ISNUMBER(FIND(\"Ice Maker\",Table_SummaryPI[[#This Row],[ProposedMeasureCategory]],1)),$BD$31*Table_SummaryPI[[#This Row],[Quantity]],\nIF(ISNUMBER(FIND(\"Spray Valve\",Table_SummaryPI[[#This Row],[ProposedMeasureCategory]],1)),$BH$31*Table_SummaryPI[[#This Row],[Quantity]],\n0)))),\"\")","v":""},{"$f":"IF(OR(Table_PI[[#This Row],[Hide: Electrification kWh]]=\"\",Table_PI[[#This Row],[Hide: Electrification kWh]]=0,ISTEXT(Table_PI[[#This Row],[Hide: Electrification kWh]])),\"\",Table_PI[[#This Row],[Hide: Electrification kWh]])","v":""},{"$f":"IF(OR(Table_PI[[#This Row],[Hide: Electrification GHG]]=\"\",Table_PI[[#This Row],[Hide: Electrification GHG]]=0,ISTEXT(Table_PI[[#This Row],[Hide: Electrification GHG]])),\"\",Table_PI[[#This Row],[Hide: Electrification GHG]])","v":""},{"$f":"IFERROR(IF(Table_SummaryPI[[#This Row],[kWhSavings]]=\"\",\"\",$BH$9*Table_SummaryPI[[#This Row],[kWhSavings]]),0)","v":""},{"$f":"IFERROR(IF(Table_SummaryPI[[#This Row],[kWhSavings]]=\"\",\"\",$BH$14*Table_SummaryPI[[#This Row],[kWhSavings]]),0)","v":""},{"$f":"IFERROR(IF(Table_SummaryPI[[#This Row],[kWhSavings]]=\"\",\"\",$BH$18*Table_SummaryPI[[#This Row],[kWhSavings]]),0)","v":""},{"$f":"IFERROR(IF(Table_SummaryPI[[#This Row],[kWhSavings]]=\"\",\"\",$BH$22*Table_SummaryPI[[#This Row],[kWhSavings]]),0)","v":""}]
[{"$f":"Table_PI[[#This Row],[Line No.]]","v":""},{"$f":"IF(Table_SummaryPI[[#This Row],[MeasureName]]<>\"\",NOT(ISTEXT(Table_PI[[#This Row],[Rebate]])),\"\")","v":""},{"$f":"IF(Table_SummaryPI[[#This Row],[MeassureCategory]]<>\"\",CONCATENATE(Table_SummaryPI[[#This Row],[MeassureCategory]],  \" - \", Table_SummaryPI[[#This Row],[ProposedMeasureCategory]],  \" - \", TEXT(Table_SummaryPI[[#This Row],[Size]],\"#,##0.00\"),\" \",Table_SummaryPI[[#This Row],[SizeUnit]]),\"\")","v":""},{"$f":"SUBSTITUTE(Table_PI[[#This Row],[Measure]],\"     \",\"\",1)","v":""},{"$f":"IF(Table_PI[[#This Row],[List 1]]<>\"\",Table_PI[[#This Row],[List 1]],\"\")","v":""},{"$f":"IF(Table_PI[[#This Row],[List 2]]<>\"\",Table_PI[[#This Row],[List 2]],\"\")","v":""},{"$f":"IF(Table_PI[[#This Row],[List 3]]<>\"\",Table_PI[[#This Row],[List 3]],\"\")","v":""},{"$f":"IF(Table_PI[[#This Row],[Manufacturer]]=\"\",\"\",Table_PI[[#This Row],[Manufacturer]])","v":""},{"$f":"IF(Table_PI[[#This Row],[Model Number]]=\"\",\"\",Table_PI[[#This Row],[Model Number]])","v":""},{"$f":"IF(Table_PI[[#This Row],[Serial Number(s)]]=\"\",\"\",Table_PI[[#This Row],[Serial Number(s)]])","v":""},null,{"$f":"IF(Table_PI[[#This Row],[Size]]=\"\",\"\",Table_PI[[#This Row],[Size]])","v":""},null,null,{"$f":"IF(Table_PI[[#This Row],[Input 1]]<>\"\",Table_PI[[#This Row],[Input 1]],\"\")","v":""},null,null,{"$f":"IF(Table_PI[[#This Row],[Input 2]]<>\"\",Table_PI[[#This Row],[Input 2]],\"\")","v":""},null,null,{"$f":"IF(Table_PI[[#This Row],[Input 3]]<>\"\",Table_PI[[#This Row],[Input 3]],\"\")","v":""},null,null,{"$f":"IF(Table_PI[[#This Row],[Input 4]]<>\"\",Table_PI[[#This Row],[Input 4]],\"\")","v":""},null,null,{"$f":"IF(Table_PI[[#This Row],[Input 4]]<>\"\",Table_PI[[#This Row],[Input 4]],\"\")","v":""},null,null,{"$f":"IF(Table_PI[[#This Row],[Input 4]]<>\"\",Table_PI[[#This Row],[Input 4]],\"\")","v":""},{"$f":"IF(Table_PI[[#This Row],[Quantity]]=\"\",\"\",Table_PI[[#This Row],[Quantity]])","v":""},{"$f":"IF(Table_PI[[#This Row],[Notes]]=\"\",\"\",Table_PI[[#This Row],[Notes]])","v":""},{"$f":"IF(OR(Table_PI[[#This Row],[Hide: Baseline kWh]]=\"\",Table_PI[[#This Row],[Hide: Baseline kWh]]=0,ISTEXT(Table_PI[[#This Row],[Hide: Baseline kWh]])),\"\",Table_PI[[#This Row],[Hide: Baseline kWh]])","v":""},{"$f":"IF(OR(Table_PI[[#This Row],[Hide: Baseline kW]]=\"\",Table_PI[[#This Row],[Hide: Baseline kW]]=0,ISTEXT(Table_PI[[#This Row],[Hide: Baseline kW]])),\"\",Table_PI[[#This Row],[Hide: Baseline kW]])","v":""},{"$f":"IF(OR(Table_PI[[#This Row],[Hide: Proposed kWh]]=\"\",Table_PI[[#This Row],[Hide: Proposed kWh]]=0,ISTEXT(Table_PI[[#This Row],[Hide: Proposed kWh]])),\"\",Table_PI[[#This Row],[Hide: Proposed kWh]])","v":""},{"$f":"IF(OR(Table_PI[[#This Row],[Hide: Proposed kW]]=\"\",Table_PI[[#This Row],[Hide: Proposed kW]]=0,ISTEXT(Table_PI[[#This Row],[Hide: Proposed kW]])),\"\",Table_PI[[#This Row],[Hide: Proposed kW]])","v":""},null,null,{"$f":"IF(OR(Table_PI[[#This Row],[Hide: Rebate]]=\"\",Table_PI[[#This Row],[Hide: Rebate]]=0,ISTEXT(Table_PI[[#This Row],[Hide: Rebate]])),\"\",Table_PI[[#This Row],[Hide: Rebate]])","v":""},null,{"$f":"IF(OR(Table_PI[[#This Row],[Hide: Incremental Cost]]=\"\",Table_PI[[#This Row],[Hide: Incremental Cost]]=0,ISTEXT(Table_PI[[#This Row],[Hide: Incremental Cost]])),\"\",Table_PI[[#This Row],[Hide: Incremental Cost]])","v":""},{"$f":"IFERROR(IF(Table_SummaryPI[[#This Row],[Incentive_Customer]]=\"\",\"\",ROUND(Table_SummaryPI[[#This Row],[Incentive_Customer]]/$AM$401*'Customer Information'!$BC$21,2)),0)","v":""},{"$f":"IF(OR(Table_PI[[#This Row],[Annual kWh]]=\"\",Table_PI[[#This Row],[Annual kWh]]=0,ISTEXT(Table_PI[[#This Row],[Annual kWh]])),\"\",Table_PI[[#This Row],[Annual kWh]])","v":""},{"$f":"IF(OR(Table_PI[[#This Row],[Peak kW]]=\"\",Table_PI[[#This Row],[Peak kW]]=0,ISTEXT(Table_PI[[#This Row],[Peak kW]])),\"\",Table_PI[[#This Row],[Peak kW]])","v":""},{"$f":"IF(Table_SummaryPI[[#This Row],[Line No.]]<>\"\",IF(AND(ISNUMBER(FIND(\"Chiller\",Table_SummaryPI[[#This Row],[P_MeasureOption1]],1)),Table_SummaryPI[[#This Row],[ProposedMeasureCategory]]=\"Air-Cooled (Water-Cooled Replacement)\"),$BD$29*Table_SummaryPI[[#This Row],[Size]]*Table_SummaryPI[[#This Row],[Quantity]]*Table_SummaryPI[[#This Row],[EFLHCooling]],\nIF(ISNUMBER(FIND(\"Dishwasher\",Table_SummaryPI[[#This Row],[ProposedMeasureCategory]],1)),$BH$29*Table_SummaryPI[[#This Row],[Quantity]],\nIF(ISNUMBER(FIND(\"Ice Maker\",Table_SummaryPI[[#This Row],[ProposedMeasureCategory]],1)),$BD$31*Table_SummaryPI[[#This Row],[Quantity]],\nIF(ISNUMBER(FIND(\"Spray Valve\",Table_SummaryPI[[#This Row],[ProposedMeasureCategory]],1)),$BH$31*Table_SummaryPI[[#This Row],[Quantity]],\n0)))),\"\")","v":""},{"$f":"IF(OR(Table_PI[[#This Row],[Hide: Electrification kWh]]=\"\",Table_PI[[#This Row],[Hide: Electrification kWh]]=0,ISTEXT(Table_PI[[#This Row],[Hide: Electrification kWh]])),\"\",Table_PI[[#This Row],[Hide: Electrification kWh]])","v":""},{"$f":"IF(OR(Table_PI[[#This Row],[Hide: Electrification GHG]]=\"\",Table_PI[[#This Row],[Hide: Electrification GHG]]=0,ISTEXT(Table_PI[[#This Row],[Hide: Electrification GHG]])),\"\",Table_PI[[#This Row],[Hide: Electrification GHG]])","v":""},{"$f":"IFERROR(IF(Table_SummaryPI[[#This Row],[kWhSavings]]=\"\",\"\",$BH$9*Table_SummaryPI[[#This Row],[kWhSavings]]),0)","v":""},{"$f":"IFERROR(IF(Table_SummaryPI[[#This Row],[kWhSavings]]=\"\",\"\",$BH$14*Table_SummaryPI[[#This Row],[kWhSavings]]),0)","v":""},{"$f":"IFERROR(IF(Table_SummaryPI[[#This Row],[kWhSavings]]=\"\",\"\",$BH$18*Table_SummaryPI[[#This Row],[kWhSavings]]),0)","v":""},{"$f":"IFERROR(IF(Table_SummaryPI[[#This Row],[kWhSavings]]=\"\",\"\",$BH$22*Table_SummaryPI[[#This Row],[kWhSavings]]),0)","v":""}]
[{"$f":"Table_PI[[#This Row],[Line No.]]","v":""},{"$f":"IF(Table_SummaryPI[[#This Row],[MeasureName]]<>\"\",NOT(ISTEXT(Table_PI[[#This Row],[Rebate]])),\"\")","v":""},{"$f":"IF(Table_SummaryPI[[#This Row],[MeassureCategory]]<>\"\",CONCATENATE(Table_SummaryPI[[#This Row],[MeassureCategory]],  \" - \", Table_SummaryPI[[#This Row],[ProposedMeasureCategory]],  \" - \", TEXT(Table_SummaryPI[[#This Row],[Size]],\"#,##0.00\"),\" \",Table_SummaryPI[[#This Row],[SizeUnit]]),\"\")","v":""},{"$f":"SUBSTITUTE(Table_PI[[#This Row],[Measure]],\"     \",\"\",1)","v":""},{"$f":"IF(Table_PI[[#This Row],[List 1]]<>\"\",Table_PI[[#This Row],[List 1]],\"\")","v":""},{"$f":"IF(Table_PI[[#This Row],[List 2]]<>\"\",Table_PI[[#This Row],[List 2]],\"\")","v":""},{"$f":"IF(Table_PI[[#This Row],[List 3]]<>\"\",Table_PI[[#This Row],[List 3]],\"\")","v":""},{"$f":"IF(Table_PI[[#This Row],[Manufacturer]]=\"\",\"\",Table_PI[[#This Row],[Manufacturer]])","v":""},{"$f":"IF(Table_PI[[#This Row],[Model Number]]=\"\",\"\",Table_PI[[#This Row],[Model Number]])","v":""},{"$f":"IF(Table_PI[[#This Row],[Serial Number(s)]]=\"\",\"\",Table_PI[[#This Row],[Serial Number(s)]])","v":""},null,{"$f":"IF(Table_PI[[#This Row],[Size]]=\"\",\"\",Table_PI[[#This Row],[Size]])","v":""},null,null,{"$f":"IF(Table_PI[[#This Row],[Input 1]]<>\"\",Table_PI[[#This Row],[Input 1]],\"\")","v":""},null,null,{"$f":"IF(Table_PI[[#This Row],[Input 2]]<>\"\",Table_PI[[#This Row],[Input 2]],\"\")","v":""},null,null,{"$f":"IF(Table_PI[[#This Row],[Input 3]]<>\"\",Table_PI[[#This Row],[Input 3]],\"\")","v":""},null,null,{"$f":"IF(Table_PI[[#This Row],[Input 4]]<>\"\",Table_PI[[#This Row],[Input 4]],\"\")","v":""},null,null,{"$f":"IF(Table_PI[[#This Row],[Input 4]]<>\"\",Table_PI[[#This Row],[Input 4]],\"\")","v":""},null,null,{"$f":"IF(Table_PI[[#This Row],[Input 4]]<>\"\",Table_PI[[#This Row],[Input 4]],\"\")","v":""},{"$f":"IF(Table_PI[[#This Row],[Quantity]]=\"\",\"\",Table_PI[[#This Row],[Quantity]])","v":""},{"$f":"IF(Table_PI[[#This Row],[Notes]]=\"\",\"\",Table_PI[[#This Row],[Notes]])","v":""},{"$f":"IF(OR(Table_PI[[#This Row],[Hide: Baseline kWh]]=\"\",Table_PI[[#This Row],[Hide: Baseline kWh]]=0,ISTEXT(Table_PI[[#This Row],[Hide: Baseline kWh]])),\"\",Table_PI[[#This Row],[Hide: Baseline kWh]])","v":""},{"$f":"IF(OR(Table_PI[[#This Row],[Hide: Baseline kW]]=\"\",Table_PI[[#This Row],[Hide: Baseline kW]]=0,ISTEXT(Table_PI[[#This Row],[Hide: Baseline kW]])),\"\",Table_PI[[#This Row],[Hide: Baseline kW]])","v":""},{"$f":"IF(OR(Table_PI[[#This Row],[Hide: Proposed kWh]]=\"\",Table_PI[[#This Row],[Hide: Proposed kWh]]=0,ISTEXT(Table_PI[[#This Row],[Hide: Proposed kWh]])),\"\",Table_PI[[#This Row],[Hide: Proposed kWh]])","v":""},{"$f":"IF(OR(Table_PI[[#This Row],[Hide: Proposed kW]]=\"\",Table_PI[[#This Row],[Hide: Proposed kW]]=0,ISTEXT(Table_PI[[#This Row],[Hide: Proposed kW]])),\"\",Table_PI[[#This Row],[Hide: Proposed kW]])","v":""},null,null,{"$f":"IF(OR(Table_PI[[#This Row],[Hide: Rebate]]=\"\",Table_PI[[#This Row],[Hide: Rebate]]=0,ISTEXT(Table_PI[[#This Row],[Hide: Rebate]])),\"\",Table_PI[[#This Row],[Hide: Rebate]])","v":""},null,{"$f":"IF(OR(Table_PI[[#This Row],[Hide: Incremental Cost]]=\"\",Table_PI[[#This Row],[Hide: Incremental Cost]]=0,ISTEXT(Table_PI[[#This Row],[Hide: Incremental Cost]])),\"\",Table_PI[[#This Row],[Hide: Incremental Cost]])","v":""},{"$f":"IFERROR(IF(Table_SummaryPI[[#This Row],[Incentive_Customer]]=\"\",\"\",ROUND(Table_SummaryPI[[#This Row],[Incentive_Customer]]/$AM$401*'Customer Information'!$BC$21,2)),0)","v":""},{"$f":"IF(OR(Table_PI[[#This Row],[Annual kWh]]=\"\",Table_PI[[#This Row],[Annual kWh]]=0,ISTEXT(Table_PI[[#This Row],[Annual kWh]])),\"\",Table_PI[[#This Row],[Annual kWh]])","v":""},{"$f":"IF(OR(Table_PI[[#This Row],[Peak kW]]=\"\",Table_PI[[#This Row],[Peak kW]]=0,ISTEXT(Table_PI[[#This Row],[Peak kW]])),\"\",Table_PI[[#This Row],[Peak kW]])","v":""},{"$f":"IF(Table_SummaryPI[[#This Row],[Line No.]]<>\"\",IF(AND(ISNUMBER(FIND(\"Chiller\",Table_SummaryPI[[#This Row],[P_MeasureOption1]],1)),Table_SummaryPI[[#This Row],[ProposedMeasureCategory]]=\"Air-Cooled (Water-Cooled Replacement)\"),$BD$29*Table_SummaryPI[[#This Row],[Size]]*Table_SummaryPI[[#This Row],[Quantity]]*Table_SummaryPI[[#This Row],[EFLHCooling]],\nIF(ISNUMBER(FIND(\"Dishwasher\",Table_SummaryPI[[#This Row],[ProposedMeasureCategory]],1)),$BH$29*Table_SummaryPI[[#This Row],[Quantity]],\nIF(ISNUMBER(FIND(\"Ice Maker\",Table_SummaryPI[[#This Row],[ProposedMeasureCategory]],1)),$BD$31*Table_SummaryPI[[#This Row],[Quantity]],\nIF(ISNUMBER(FIND(\"Spray Valve\",Table_SummaryPI[[#This Row],[ProposedMeasureCategory]],1)),$BH$31*Table_SummaryPI[[#This Row],[Quantity]],\n0)))),\"\")","v":""},{"$f":"IF(OR(Table_PI[[#This Row],[Hide: Electrification kWh]]=\"\",Table_PI[[#This Row],[Hide: Electrification kWh]]=0,ISTEXT(Table_PI[[#This Row],[Hide: Electrification kWh]])),\"\",Table_PI[[#This Row],[Hide: Electrification kWh]])","v":""},{"$f":"IF(OR(Table_PI[[#This Row],[Hide: Electrification GHG]]=\"\",Table_PI[[#This Row],[Hide: Electrification GHG]]=0,ISTEXT(Table_PI[[#This Row],[Hide: Electrification GHG]])),\"\",Table_PI[[#This Row],[Hide: Electrification GHG]])","v":""},{"$f":"IFERROR(IF(Table_SummaryPI[[#This Row],[kWhSavings]]=\"\",\"\",$BH$9*Table_SummaryPI[[#This Row],[kWhSavings]]),0)","v":""},{"$f":"IFERROR(IF(Table_SummaryPI[[#This Row],[kWhSavings]]=\"\",\"\",$BH$14*Table_SummaryPI[[#This Row],[kWhSavings]]),0)","v":""},{"$f":"IFERROR(IF(Table_SummaryPI[[#This Row],[kWhSavings]]=\"\",\"\",$BH$18*Table_SummaryPI[[#This Row],[kWhSavings]]),0)","v":""},{"$f":"IFERROR(IF(Table_SummaryPI[[#This Row],[kWhSavings]]=\"\",\"\",$BH$22*Table_SummaryPI[[#This Row],[kWhSavings]]),0)","v":""}]
[{"$f":"Table_PI[[#This Row],[Line No.]]","v":""},{"$f":"IF(Table_SummaryPI[[#This Row],[MeasureName]]<>\"\",NOT(ISTEXT(Table_PI[[#This Row],[Rebate]])),\"\")","v":""},{"$f":"IF(Table_SummaryPI[[#This Row],[MeassureCategory]]<>\"\",CONCATENATE(Table_SummaryPI[[#This Row],[MeassureCategory]],  \" - \", Table_SummaryPI[[#This Row],[ProposedMeasureCategory]],  \" - \", TEXT(Table_SummaryPI[[#This Row],[Size]],\"#,##0.00\"),\" \",Table_SummaryPI[[#This Row],[SizeUnit]]),\"\")","v":""},{"$f":"SUBSTITUTE(Table_PI[[#This Row],[Measure]],\"     \",\"\",1)","v":""},{"$f":"IF(Table_PI[[#This Row],[List 1]]<>\"\",Table_PI[[#This Row],[List 1]],\"\")","v":""},{"$f":"IF(Table_PI[[#This Row],[List 2]]<>\"\",Table_PI[[#This Row],[List 2]],\"\")","v":""},{"$f":"IF(Table_PI[[#This Row],[List 3]]<>\"\",Table_PI[[#This Row],[List 3]],\"\")","v":""},{"$f":"IF(Table_PI[[#This Row],[Manufacturer]]=\"\",\"\",Table_PI[[#This Row],[Manufacturer]])","v":""},{"$f":"IF(Table_PI[[#This Row],[Model Number]]=\"\",\"\",Table_PI[[#This Row],[Model Number]])","v":""},{"$f":"IF(Table_PI[[#This Row],[Serial Number(s)]]=\"\",\"\",Table_PI[[#This Row],[Serial Number(s)]])","v":""},null,{"$f":"IF(Table_PI[[#This Row],[Size]]=\"\",\"\",Table_PI[[#This Row],[Size]])","v":""},null,null,{"$f":"IF(Table_PI[[#This Row],[Input 1]]<>\"\",Table_PI[[#This Row],[Input 1]],\"\")","v":""},null,null,{"$f":"IF(Table_PI[[#This Row],[Input 2]]<>\"\",Table_PI[[#This Row],[Input 2]],\"\")","v":""},null,null,{"$f":"IF(Table_PI[[#This Row],[Input 3]]<>\"\",Table_PI[[#This Row],[Input 3]],\"\")","v":""},null,null,{"$f":"IF(Table_PI[[#This Row],[Input 4]]<>\"\",Table_PI[[#This Row],[Input 4]],\"\")","v":""},null,null,{"$f":"IF(Table_PI[[#This Row],[Input 4]]<>\"\",Table_PI[[#This Row],[Input 4]],\"\")","v":""},null,null,{"$f":"IF(Table_PI[[#This Row],[Input 4]]<>\"\",Table_PI[[#This Row],[Input 4]],\"\")","v":""},{"$f":"IF(Table_PI[[#This Row],[Quantity]]=\"\",\"\",Table_PI[[#This Row],[Quantity]])","v":""},{"$f":"IF(Table_PI[[#This Row],[Notes]]=\"\",\"\",Table_PI[[#This Row],[Notes]])","v":""},{"$f":"IF(OR(Table_PI[[#This Row],[Hide: Baseline kWh]]=\"\",Table_PI[[#This Row],[Hide: Baseline kWh]]=0,ISTEXT(Table_PI[[#This Row],[Hide: Baseline kWh]])),\"\",Table_PI[[#This Row],[Hide: Baseline kWh]])","v":""},{"$f":"IF(OR(Table_PI[[#This Row],[Hide: Baseline kW]]=\"\",Table_PI[[#This Row],[Hide: Baseline kW]]=0,ISTEXT(Table_PI[[#This Row],[Hide: Baseline kW]])),\"\",Table_PI[[#This Row],[Hide: Baseline kW]])","v":""},{"$f":"IF(OR(Table_PI[[#This Row],[Hide: Proposed kWh]]=\"\",Table_PI[[#This Row],[Hide: Proposed kWh]]=0,ISTEXT(Table_PI[[#This Row],[Hide: Proposed kWh]])),\"\",Table_PI[[#This Row],[Hide: Proposed kWh]])","v":""},{"$f":"IF(OR(Table_PI[[#This Row],[Hide: Proposed kW]]=\"\",Table_PI[[#This Row],[Hide: Proposed kW]]=0,ISTEXT(Table_PI[[#This Row],[Hide: Proposed kW]])),\"\",Table_PI[[#This Row],[Hide: Proposed kW]])","v":""},null,null,{"$f":"IF(OR(Table_PI[[#This Row],[Hide: Rebate]]=\"\",Table_PI[[#This Row],[Hide: Rebate]]=0,ISTEXT(Table_PI[[#This Row],[Hide: Rebate]])),\"\",Table_PI[[#This Row],[Hide: Rebate]])","v":""},null,{"$f":"IF(OR(Table_PI[[#This Row],[Hide: Incremental Cost]]=\"\",Table_PI[[#This Row],[Hide: Incremental Cost]]=0,ISTEXT(Table_PI[[#This Row],[Hide: Incremental Cost]])),\"\",Table_PI[[#This Row],[Hide: Incremental Cost]])","v":""},{"$f":"IFERROR(IF(Table_SummaryPI[[#This Row],[Incentive_Customer]]=\"\",\"\",ROUND(Table_SummaryPI[[#This Row],[Incentive_Customer]]/$AM$401*'Customer Information'!$BC$21,2)),0)","v":""},{"$f":"IF(OR(Table_PI[[#This Row],[Annual kWh]]=\"\",Table_PI[[#This Row],[Annual kWh]]=0,ISTEXT(Table_PI[[#This Row],[Annual kWh]])),\"\",Table_PI[[#This Row],[Annual kWh]])","v":""},{"$f":"IF(OR(Table_PI[[#This Row],[Peak kW]]=\"\",Table_PI[[#This Row],[Peak kW]]=0,ISTEXT(Table_PI[[#This Row],[Peak kW]])),\"\",Table_PI[[#This Row],[Peak kW]])","v":""},{"$f":"IF(Table_SummaryPI[[#This Row],[Line No.]]<>\"\",IF(AND(ISNUMBER(FIND(\"Chiller\",Table_SummaryPI[[#This Row],[P_MeasureOption1]],1)),Table_SummaryPI[[#This Row],[ProposedMeasureCategory]]=\"Air-Cooled (Water-Cooled Replacement)\"),$BD$29*Table_SummaryPI[[#This Row],[Size]]*Table_SummaryPI[[#This Row],[Quantity]]*Table_SummaryPI[[#This Row],[EFLHCooling]],\nIF(ISNUMBER(FIND(\"Dishwasher\",Table_SummaryPI[[#This Row],[ProposedMeasureCategory]],1)),$BH$29*Table_SummaryPI[[#This Row],[Quantity]],\nIF(ISNUMBER(FIND(\"Ice Maker\",Table_SummaryPI[[#This Row],[ProposedMeasureCategory]],1)),$BD$31*Table_SummaryPI[[#This Row],[Quantity]],\nIF(ISNUMBER(FIND(\"Spray Valve\",Table_SummaryPI[[#This Row],[ProposedMeasureCategory]],1)),$BH$31*Table_SummaryPI[[#This Row],[Quantity]],\n0)))),\"\")","v":""},{"$f":"IF(OR(Table_PI[[#This Row],[Hide: Electrification kWh]]=\"\",Table_PI[[#This Row],[Hide: Electrification kWh]]=0,ISTEXT(Table_PI[[#This Row],[Hide: Electrification kWh]])),\"\",Table_PI[[#This Row],[Hide: Electrification kWh]])","v":""},{"$f":"IF(OR(Table_PI[[#This Row],[Hide: Electrification GHG]]=\"\",Table_PI[[#This Row],[Hide: Electrification GHG]]=0,ISTEXT(Table_PI[[#This Row],[Hide: Electrification GHG]])),\"\",Table_PI[[#This Row],[Hide: Electrification GHG]])","v":""},{"$f":"IFERROR(IF(Table_SummaryPI[[#This Row],[kWhSavings]]=\"\",\"\",$BH$9*Table_SummaryPI[[#This Row],[kWhSavings]]),0)","v":""},{"$f":"IFERROR(IF(Table_SummaryPI[[#This Row],[kWhSavings]]=\"\",\"\",$BH$14*Table_SummaryPI[[#This Row],[kWhSavings]]),0)","v":""},{"$f":"IFERROR(IF(Table_SummaryPI[[#This Row],[kWhSavings]]=\"\",\"\",$BH$18*Table_SummaryPI[[#This Row],[kWhSavings]]),0)","v":""},{"$f":"IFERROR(IF(Table_SummaryPI[[#This Row],[kWhSavings]]=\"\",\"\",$BH$22*Table_SummaryPI[[#This Row],[kWhSavings]]),0)","v":""}]
[{"$f":"Table_PI[[#This Row],[Line No.]]","v":""},{"$f":"IF(Table_SummaryPI[[#This Row],[MeasureName]]<>\"\",NOT(ISTEXT(Table_PI[[#This Row],[Rebate]])),\"\")","v":""},{"$f":"IF(Table_SummaryPI[[#This Row],[MeassureCategory]]<>\"\",CONCATENATE(Table_SummaryPI[[#This Row],[MeassureCategory]],  \" - \", Table_SummaryPI[[#This Row],[ProposedMeasureCategory]],  \" - \", TEXT(Table_SummaryPI[[#This Row],[Size]],\"#,##0.00\"),\" \",Table_SummaryPI[[#This Row],[SizeUnit]]),\"\")","v":""},{"$f":"SUBSTITUTE(Table_PI[[#This Row],[Measure]],\"     \",\"\",1)","v":""},{"$f":"IF(Table_PI[[#This Row],[List 1]]<>\"\",Table_PI[[#This Row],[List 1]],\"\")","v":""},{"$f":"IF(Table_PI[[#This Row],[List 2]]<>\"\",Table_PI[[#This Row],[List 2]],\"\")","v":""},{"$f":"IF(Table_PI[[#This Row],[List 3]]<>\"\",Table_PI[[#This Row],[List 3]],\"\")","v":""},{"$f":"IF(Table_PI[[#This Row],[Manufacturer]]=\"\",\"\",Table_PI[[#This Row],[Manufacturer]])","v":""},{"$f":"IF(Table_PI[[#This Row],[Model Number]]=\"\",\"\",Table_PI[[#This Row],[Model Number]])","v":""},{"$f":"IF(Table_PI[[#This Row],[Serial Number(s)]]=\"\",\"\",Table_PI[[#This Row],[Serial Number(s)]])","v":""},null,{"$f":"IF(Table_PI[[#This Row],[Size]]=\"\",\"\",Table_PI[[#This Row],[Size]])","v":""},null,null,{"$f":"IF(Table_PI[[#This Row],[Input 1]]<>\"\",Table_PI[[#This Row],[Input 1]],\"\")","v":""},null,null,{"$f":"IF(Table_PI[[#This Row],[Input 2]]<>\"\",Table_PI[[#This Row],[Input 2]],\"\")","v":""},null,null,{"$f":"IF(Table_PI[[#This Row],[Input 3]]<>\"\",Table_PI[[#This Row],[Input 3]],\"\")","v":""},null,null,{"$f":"IF(Table_PI[[#This Row],[Input 4]]<>\"\",Table_PI[[#This Row],[Input 4]],\"\")","v":""},null,null,{"$f":"IF(Table_PI[[#This Row],[Input 4]]<>\"\",Table_PI[[#This Row],[Input 4]],\"\")","v":""},null,null,{"$f":"IF(Table_PI[[#This Row],[Input 4]]<>\"\",Table_PI[[#This Row],[Input 4]],\"\")","v":""},{"$f":"IF(Table_PI[[#This Row],[Quantity]]=\"\",\"\",Table_PI[[#This Row],[Quantity]])","v":""},{"$f":"IF(Table_PI[[#This Row],[Notes]]=\"\",\"\",Table_PI[[#This Row],[Notes]])","v":""},{"$f":"IF(OR(Table_PI[[#This Row],[Hide: Baseline kWh]]=\"\",Table_PI[[#This Row],[Hide: Baseline kWh]]=0,ISTEXT(Table_PI[[#This Row],[Hide: Baseline kWh]])),\"\",Table_PI[[#This Row],[Hide: Baseline kWh]])","v":""},{"$f":"IF(OR(Table_PI[[#This Row],[Hide: Baseline kW]]=\"\",Table_PI[[#This Row],[Hide: Baseline kW]]=0,ISTEXT(Table_PI[[#This Row],[Hide: Baseline kW]])),\"\",Table_PI[[#This Row],[Hide: Baseline kW]])","v":""},{"$f":"IF(OR(Table_PI[[#This Row],[Hide: Proposed kWh]]=\"\",Table_PI[[#This Row],[Hide: Proposed kWh]]=0,ISTEXT(Table_PI[[#This Row],[Hide: Proposed kWh]])),\"\",Table_PI[[#This Row],[Hide: Proposed kWh]])","v":""},{"$f":"IF(OR(Table_PI[[#This Row],[Hide: Proposed kW]]=\"\",Table_PI[[#This Row],[Hide: Proposed kW]]=0,ISTEXT(Table_PI[[#This Row],[Hide: Proposed kW]])),\"\",Table_PI[[#This Row],[Hide: Proposed kW]])","v":""},null,null,{"$f":"IF(OR(Table_PI[[#This Row],[Hide: Rebate]]=\"\",Table_PI[[#This Row],[Hide: Rebate]]=0,ISTEXT(Table_PI[[#This Row],[Hide: Rebate]])),\"\",Table_PI[[#This Row],[Hide: Rebate]])","v":""},null,{"$f":"IF(OR(Table_PI[[#This Row],[Hide: Incremental Cost]]=\"\",Table_PI[[#This Row],[Hide: Incremental Cost]]=0,ISTEXT(Table_PI[[#This Row],[Hide: Incremental Cost]])),\"\",Table_PI[[#This Row],[Hide: Incremental Cost]])","v":""},{"$f":"IFERROR(IF(Table_SummaryPI[[#This Row],[Incentive_Customer]]=\"\",\"\",ROUND(Table_SummaryPI[[#This Row],[Incentive_Customer]]/$AM$401*'Customer Information'!$BC$21,2)),0)","v":""},{"$f":"IF(OR(Table_PI[[#This Row],[Annual kWh]]=\"\",Table_PI[[#This Row],[Annual kWh]]=0,ISTEXT(Table_PI[[#This Row],[Annual kWh]])),\"\",Table_PI[[#This Row],[Annual kWh]])","v":""},{"$f":"IF(OR(Table_PI[[#This Row],[Peak kW]]=\"\",Table_PI[[#This Row],[Peak kW]]=0,ISTEXT(Table_PI[[#This Row],[Peak kW]])),\"\",Table_PI[[#This Row],[Peak kW]])","v":""},{"$f":"IF(Table_SummaryPI[[#This Row],[Line No.]]<>\"\",IF(AND(ISNUMBER(FIND(\"Chiller\",Table_SummaryPI[[#This Row],[P_MeasureOption1]],1)),Table_SummaryPI[[#This Row],[ProposedMeasureCategory]]=\"Air-Cooled (Water-Cooled Replacement)\"),$BD$29*Table_SummaryPI[[#This Row],[Size]]*Table_SummaryPI[[#This Row],[Quantity]]*Table_SummaryPI[[#This Row],[EFLHCooling]],\nIF(ISNUMBER(FIND(\"Dishwasher\",Table_SummaryPI[[#This Row],[ProposedMeasureCategory]],1)),$BH$29*Table_SummaryPI[[#This Row],[Quantity]],\nIF(ISNUMBER(FIND(\"Ice Maker\",Table_SummaryPI[[#This Row],[ProposedMeasureCategory]],1)),$BD$31*Table_SummaryPI[[#This Row],[Quantity]],\nIF(ISNUMBER(FIND(\"Spray Valve\",Table_SummaryPI[[#This Row],[ProposedMeasureCategory]],1)),$BH$31*Table_SummaryPI[[#This Row],[Quantity]],\n0)))),\"\")","v":""},{"$f":"IF(OR(Table_PI[[#This Row],[Hide: Electrification kWh]]=\"\",Table_PI[[#This Row],[Hide: Electrification kWh]]=0,ISTEXT(Table_PI[[#This Row],[Hide: Electrification kWh]])),\"\",Table_PI[[#This Row],[Hide: Electrification kWh]])","v":""},{"$f":"IF(OR(Table_PI[[#This Row],[Hide: Electrification GHG]]=\"\",Table_PI[[#This Row],[Hide: Electrification GHG]]=0,ISTEXT(Table_PI[[#This Row],[Hide: Electrification GHG]])),\"\",Table_PI[[#This Row],[Hide: Electrification GHG]])","v":""},{"$f":"IFERROR(IF(Table_SummaryPI[[#This Row],[kWhSavings]]=\"\",\"\",$BH$9*Table_SummaryPI[[#This Row],[kWhSavings]]),0)","v":""},{"$f":"IFERROR(IF(Table_SummaryPI[[#This Row],[kWhSavings]]=\"\",\"\",$BH$14*Table_SummaryPI[[#This Row],[kWhSavings]]),0)","v":""},{"$f":"IFERROR(IF(Table_SummaryPI[[#This Row],[kWhSavings]]=\"\",\"\",$BH$18*Table_SummaryPI[[#This Row],[kWhSavings]]),0)","v":""},{"$f":"IFERROR(IF(Table_SummaryPI[[#This Row],[kWhSavings]]=\"\",\"\",$BH$22*Table_SummaryPI[[#This Row],[kWhSavings]]),0)","v":""}]
[{"$f":"Table_PI[[#This Row],[Line No.]]","v":""},{"$f":"IF(Table_SummaryPI[[#This Row],[MeasureName]]<>\"\",NOT(ISTEXT(Table_PI[[#This Row],[Rebate]])),\"\")","v":""},{"$f":"IF(Table_SummaryPI[[#This Row],[MeassureCategory]]<>\"\",CONCATENATE(Table_SummaryPI[[#This Row],[MeassureCategory]],  \" - \", Table_SummaryPI[[#This Row],[ProposedMeasureCategory]],  \" - \", TEXT(Table_SummaryPI[[#This Row],[Size]],\"#,##0.00\"),\" \",Table_SummaryPI[[#This Row],[SizeUnit]]),\"\")","v":""},{"$f":"SUBSTITUTE(Table_PI[[#This Row],[Measure]],\"     \",\"\",1)","v":""},{"$f":"IF(Table_PI[[#This Row],[List 1]]<>\"\",Table_PI[[#This Row],[List 1]],\"\")","v":""},{"$f":"IF(Table_PI[[#This Row],[List 2]]<>\"\",Table_PI[[#This Row],[List 2]],\"\")","v":""},{"$f":"IF(Table_PI[[#This Row],[List 3]]<>\"\",Table_PI[[#This Row],[List 3]],\"\")","v":""},{"$f":"IF(Table_PI[[#This Row],[Manufacturer]]=\"\",\"\",Table_PI[[#This Row],[Manufacturer]])","v":""},{"$f":"IF(Table_PI[[#This Row],[Model Number]]=\"\",\"\",Table_PI[[#This Row],[Model Number]])","v":""},{"$f":"IF(Table_PI[[#This Row],[Serial Number(s)]]=\"\",\"\",Table_PI[[#This Row],[Serial Number(s)]])","v":""},null,{"$f":"IF(Table_PI[[#This Row],[Size]]=\"\",\"\",Table_PI[[#This Row],[Size]])","v":""},null,null,{"$f":"IF(Table_PI[[#This Row],[Input 1]]<>\"\",Table_PI[[#This Row],[Input 1]],\"\")","v":""},null,null,{"$f":"IF(Table_PI[[#This Row],[Input 2]]<>\"\",Table_PI[[#This Row],[Input 2]],\"\")","v":""},null,null,{"$f":"IF(Table_PI[[#This Row],[Input 3]]<>\"\",Table_PI[[#This Row],[Input 3]],\"\")","v":""},null,null,{"$f":"IF(Table_PI[[#This Row],[Input 4]]<>\"\",Table_PI[[#This Row],[Input 4]],\"\")","v":""},null,null,{"$f":"IF(Table_PI[[#This Row],[Input 4]]<>\"\",Table_PI[[#This Row],[Input 4]],\"\")","v":""},null,null,{"$f":"IF(Table_PI[[#This Row],[Input 4]]<>\"\",Table_PI[[#This Row],[Input 4]],\"\")","v":""},{"$f":"IF(Table_PI[[#This Row],[Quantity]]=\"\",\"\",Table_PI[[#This Row],[Quantity]])","v":""},{"$f":"IF(Table_PI[[#This Row],[Notes]]=\"\",\"\",Table_PI[[#This Row],[Notes]])","v":""},{"$f":"IF(OR(Table_PI[[#This Row],[Hide: Baseline kWh]]=\"\",Table_PI[[#This Row],[Hide: Baseline kWh]]=0,ISTEXT(Table_PI[[#This Row],[Hide: Baseline kWh]])),\"\",Table_PI[[#This Row],[Hide: Baseline kWh]])","v":""},{"$f":"IF(OR(Table_PI[[#This Row],[Hide: Baseline kW]]=\"\",Table_PI[[#This Row],[Hide: Baseline kW]]=0,ISTEXT(Table_PI[[#This Row],[Hide: Baseline kW]])),\"\",Table_PI[[#This Row],[Hide: Baseline kW]])","v":""},{"$f":"IF(OR(Table_PI[[#This Row],[Hide: Proposed kWh]]=\"\",Table_PI[[#This Row],[Hide: Proposed kWh]]=0,ISTEXT(Table_PI[[#This Row],[Hide: Proposed kWh]])),\"\",Table_PI[[#This Row],[Hide: Proposed kWh]])","v":""},{"$f":"IF(OR(Table_PI[[#This Row],[Hide: Proposed kW]]=\"\",Table_PI[[#This Row],[Hide: Proposed kW]]=0,ISTEXT(Table_PI[[#This Row],[Hide: Proposed kW]])),\"\",Table_PI[[#This Row],[Hide: Proposed kW]])","v":""},null,null,{"$f":"IF(OR(Table_PI[[#This Row],[Hide: Rebate]]=\"\",Table_PI[[#This Row],[Hide: Rebate]]=0,ISTEXT(Table_PI[[#This Row],[Hide: Rebate]])),\"\",Table_PI[[#This Row],[Hide: Rebate]])","v":""},null,{"$f":"IF(OR(Table_PI[[#This Row],[Hide: Incremental Cost]]=\"\",Table_PI[[#This Row],[Hide: Incremental Cost]]=0,ISTEXT(Table_PI[[#This Row],[Hide: Incremental Cost]])),\"\",Table_PI[[#This Row],[Hide: Incremental Cost]])","v":""},{"$f":"IFERROR(IF(Table_SummaryPI[[#This Row],[Incentive_Customer]]=\"\",\"\",ROUND(Table_SummaryPI[[#This Row],[Incentive_Customer]]/$AM$401*'Customer Information'!$BC$21,2)),0)","v":""},{"$f":"IF(OR(Table_PI[[#This Row],[Annual kWh]]=\"\",Table_PI[[#This Row],[Annual kWh]]=0,ISTEXT(Table_PI[[#This Row],[Annual kWh]])),\"\",Table_PI[[#This Row],[Annual kWh]])","v":""},{"$f":"IF(OR(Table_PI[[#This Row],[Peak kW]]=\"\",Table_PI[[#This Row],[Peak kW]]=0,ISTEXT(Table_PI[[#This Row],[Peak kW]])),\"\",Table_PI[[#This Row],[Peak kW]])","v":""},{"$f":"IF(Table_SummaryPI[[#This Row],[Line No.]]<>\"\",IF(AND(ISNUMBER(FIND(\"Chiller\",Table_SummaryPI[[#This Row],[P_MeasureOption1]],1)),Table_SummaryPI[[#This Row],[ProposedMeasureCategory]]=\"Air-Cooled (Water-Cooled Replacement)\"),$BD$29*Table_SummaryPI[[#This Row],[Size]]*Table_SummaryPI[[#This Row],[Quantity]]*Table_SummaryPI[[#This Row],[EFLHCooling]],\nIF(ISNUMBER(FIND(\"Dishwasher\",Table_SummaryPI[[#This Row],[ProposedMeasureCategory]],1)),$BH$29*Table_SummaryPI[[#This Row],[Quantity]],\nIF(ISNUMBER(FIND(\"Ice Maker\",Table_SummaryPI[[#This Row],[ProposedMeasureCategory]],1)),$BD$31*Table_SummaryPI[[#This Row],[Quantity]],\nIF(ISNUMBER(FIND(\"Spray Valve\",Table_SummaryPI[[#This Row],[ProposedMeasureCategory]],1)),$BH$31*Table_SummaryPI[[#This Row],[Quantity]],\n0)))),\"\")","v":""},{"$f":"IF(OR(Table_PI[[#This Row],[Hide: Electrification kWh]]=\"\",Table_PI[[#This Row],[Hide: Electrification kWh]]=0,ISTEXT(Table_PI[[#This Row],[Hide: Electrification kWh]])),\"\",Table_PI[[#This Row],[Hide: Electrification kWh]])","v":""},{"$f":"IF(OR(Table_PI[[#This Row],[Hide: Electrification GHG]]=\"\",Table_PI[[#This Row],[Hide: Electrification GHG]]=0,ISTEXT(Table_PI[[#This Row],[Hide: Electrification GHG]])),\"\",Table_PI[[#This Row],[Hide: Electrification GHG]])","v":""},{"$f":"IFERROR(IF(Table_SummaryPI[[#This Row],[kWhSavings]]=\"\",\"\",$BH$9*Table_SummaryPI[[#This Row],[kWhSavings]]),0)","v":""},{"$f":"IFERROR(IF(Table_SummaryPI[[#This Row],[kWhSavings]]=\"\",\"\",$BH$14*Table_SummaryPI[[#This Row],[kWhSavings]]),0)","v":""},{"$f":"IFERROR(IF(Table_SummaryPI[[#This Row],[kWhSavings]]=\"\",\"\",$BH$18*Table_SummaryPI[[#This Row],[kWhSavings]]),0)","v":""},{"$f":"IFERROR(IF(Table_SummaryPI[[#This Row],[kWhSavings]]=\"\",\"\",$BH$22*Table_SummaryPI[[#This Row],[kWhSavings]]),0)","v":""}]
[{"$f":"Table_PI[[#This Row],[Line No.]]","v":""},{"$f":"IF(Table_SummaryPI[[#This Row],[MeasureName]]<>\"\",NOT(ISTEXT(Table_PI[[#This Row],[Rebate]])),\"\")","v":""},{"$f":"IF(Table_SummaryPI[[#This Row],[MeassureCategory]]<>\"\",CONCATENATE(Table_SummaryPI[[#This Row],[MeassureCategory]],  \" - \", Table_SummaryPI[[#This Row],[ProposedMeasureCategory]],  \" - \", TEXT(Table_SummaryPI[[#This Row],[Size]],\"#,##0.00\"),\" \",Table_SummaryPI[[#This Row],[SizeUnit]]),\"\")","v":""},{"$f":"SUBSTITUTE(Table_PI[[#This Row],[Measure]],\"     \",\"\",1)","v":""},{"$f":"IF(Table_PI[[#This Row],[List 1]]<>\"\",Table_PI[[#This Row],[List 1]],\"\")","v":""},{"$f":"IF(Table_PI[[#This Row],[List 2]]<>\"\",Table_PI[[#This Row],[List 2]],\"\")","v":""},{"$f":"IF(Table_PI[[#This Row],[List 3]]<>\"\",Table_PI[[#This Row],[List 3]],\"\")","v":""},{"$f":"IF(Table_PI[[#This Row],[Manufacturer]]=\"\",\"\",Table_PI[[#This Row],[Manufacturer]])","v":""},{"$f":"IF(Table_PI[[#This Row],[Model Number]]=\"\",\"\",Table_PI[[#This Row],[Model Number]])","v":""},{"$f":"IF(Table_PI[[#This Row],[Serial Number(s)]]=\"\",\"\",Table_PI[[#This Row],[Serial Number(s)]])","v":""},null,{"$f":"IF(Table_PI[[#This Row],[Size]]=\"\",\"\",Table_PI[[#This Row],[Size]])","v":""},null,null,{"$f":"IF(Table_PI[[#This Row],[Input 1]]<>\"\",Table_PI[[#This Row],[Input 1]],\"\")","v":""},null,null,{"$f":"IF(Table_PI[[#This Row],[Input 2]]<>\"\",Table_PI[[#This Row],[Input 2]],\"\")","v":""},null,null,{"$f":"IF(Table_PI[[#This Row],[Input 3]]<>\"\",Table_PI[[#This Row],[Input 3]],\"\")","v":""},null,null,{"$f":"IF(Table_PI[[#This Row],[Input 4]]<>\"\",Table_PI[[#This Row],[Input 4]],\"\")","v":""},null,null,{"$f":"IF(Table_PI[[#This Row],[Input 4]]<>\"\",Table_PI[[#This Row],[Input 4]],\"\")","v":""},null,null,{"$f":"IF(Table_PI[[#This Row],[Input 4]]<>\"\",Table_PI[[#This Row],[Input 4]],\"\")","v":""},{"$f":"IF(Table_PI[[#This Row],[Quantity]]=\"\",\"\",Table_PI[[#This Row],[Quantity]])","v":""},{"$f":"IF(Table_PI[[#This Row],[Notes]]=\"\",\"\",Table_PI[[#This Row],[Notes]])","v":""},{"$f":"IF(OR(Table_PI[[#This Row],[Hide: Baseline kWh]]=\"\",Table_PI[[#This Row],[Hide: Baseline kWh]]=0,ISTEXT(Table_PI[[#This Row],[Hide: Baseline kWh]])),\"\",Table_PI[[#This Row],[Hide: Baseline kWh]])","v":""},{"$f":"IF(OR(Table_PI[[#This Row],[Hide: Baseline kW]]=\"\",Table_PI[[#This Row],[Hide: Baseline kW]]=0,ISTEXT(Table_PI[[#This Row],[Hide: Baseline kW]])),\"\",Table_PI[[#This Row],[Hide: Baseline kW]])","v":""},{"$f":"IF(OR(Table_PI[[#This Row],[Hide: Proposed kWh]]=\"\",Table_PI[[#This Row],[Hide: Proposed kWh]]=0,ISTEXT(Table_PI[[#This Row],[Hide: Proposed kWh]])),\"\",Table_PI[[#This Row],[Hide: Proposed kWh]])","v":""},{"$f":"IF(OR(Table_PI[[#This Row],[Hide: Proposed kW]]=\"\",Table_PI[[#This Row],[Hide: Proposed kW]]=0,ISTEXT(Table_PI[[#This Row],[Hide: Proposed kW]])),\"\",Table_PI[[#This Row],[Hide: Proposed kW]])","v":""},null,null,{"$f":"IF(OR(Table_PI[[#This Row],[Hide: Rebate]]=\"\",Table_PI[[#This Row],[Hide: Rebate]]=0,ISTEXT(Table_PI[[#This Row],[Hide: Rebate]])),\"\",Table_PI[[#This Row],[Hide: Rebate]])","v":""},null,{"$f":"IF(OR(Table_PI[[#This Row],[Hide: Incremental Cost]]=\"\",Table_PI[[#This Row],[Hide: Incremental Cost]]=0,ISTEXT(Table_PI[[#This Row],[Hide: Incremental Cost]])),\"\",Table_PI[[#This Row],[Hide: Incremental Cost]])","v":""},{"$f":"IFERROR(IF(Table_SummaryPI[[#This Row],[Incentive_Customer]]=\"\",\"\",ROUND(Table_SummaryPI[[#This Row],[Incentive_Customer]]/$AM$401*'Customer Information'!$BC$21,2)),0)","v":""},{"$f":"IF(OR(Table_PI[[#This Row],[Annual kWh]]=\"\",Table_PI[[#This Row],[Annual kWh]]=0,ISTEXT(Table_PI[[#This Row],[Annual kWh]])),\"\",Table_PI[[#This Row],[Annual kWh]])","v":""},{"$f":"IF(OR(Table_PI[[#This Row],[Peak kW]]=\"\",Table_PI[[#This Row],[Peak kW]]=0,ISTEXT(Table_PI[[#This Row],[Peak kW]])),\"\",Table_PI[[#This Row],[Peak kW]])","v":""},{"$f":"IF(Table_SummaryPI[[#This Row],[Line No.]]<>\"\",IF(AND(ISNUMBER(FIND(\"Chiller\",Table_SummaryPI[[#This Row],[P_MeasureOption1]],1)),Table_SummaryPI[[#This Row],[ProposedMeasureCategory]]=\"Air-Cooled (Water-Cooled Replacement)\"),$BD$29*Table_SummaryPI[[#This Row],[Size]]*Table_SummaryPI[[#This Row],[Quantity]]*Table_SummaryPI[[#This Row],[EFLHCooling]],\nIF(ISNUMBER(FIND(\"Dishwasher\",Table_SummaryPI[[#This Row],[ProposedMeasureCategory]],1)),$BH$29*Table_SummaryPI[[#This Row],[Quantity]],\nIF(ISNUMBER(FIND(\"Ice Maker\",Table_SummaryPI[[#This Row],[ProposedMeasureCategory]],1)),$BD$31*Table_SummaryPI[[#This Row],[Quantity]],\nIF(ISNUMBER(FIND(\"Spray Valve\",Table_SummaryPI[[#This Row],[ProposedMeasureCategory]],1)),$BH$31*Table_SummaryPI[[#This Row],[Quantity]],\n0)))),\"\")","v":""},{"$f":"IF(OR(Table_PI[[#This Row],[Hide: Electrification kWh]]=\"\",Table_PI[[#This Row],[Hide: Electrification kWh]]=0,ISTEXT(Table_PI[[#This Row],[Hide: Electrification kWh]])),\"\",Table_PI[[#This Row],[Hide: Electrification kWh]])","v":""},{"$f":"IF(OR(Table_PI[[#This Row],[Hide: Electrification GHG]]=\"\",Table_PI[[#This Row],[Hide: Electrification GHG]]=0,ISTEXT(Table_PI[[#This Row],[Hide: Electrification GHG]])),\"\",Table_PI[[#This Row],[Hide: Electrification GHG]])","v":""},{"$f":"IFERROR(IF(Table_SummaryPI[[#This Row],[kWhSavings]]=\"\",\"\",$BH$9*Table_SummaryPI[[#This Row],[kWhSavings]]),0)","v":""},{"$f":"IFERROR(IF(Table_SummaryPI[[#This Row],[kWhSavings]]=\"\",\"\",$BH$14*Table_SummaryPI[[#This Row],[kWhSavings]]),0)","v":""},{"$f":"IFERROR(IF(Table_SummaryPI[[#This Row],[kWhSavings]]=\"\",\"\",$BH$18*Table_SummaryPI[[#This Row],[kWhSavings]]),0)","v":""},{"$f":"IFERROR(IF(Table_SummaryPI[[#This Row],[kWhSavings]]=\"\",\"\",$BH$22*Table_SummaryPI[[#This Row],[kWhSavings]]),0)","v":""}]
[{"$f":"Table_PI[[#This Row],[Line No.]]","v":""},{"$f":"IF(Table_SummaryPI[[#This Row],[MeasureName]]<>\"\",NOT(ISTEXT(Table_PI[[#This Row],[Rebate]])),\"\")","v":""},{"$f":"IF(Table_SummaryPI[[#This Row],[MeassureCategory]]<>\"\",CONCATENATE(Table_SummaryPI[[#This Row],[MeassureCategory]],  \" - \", Table_SummaryPI[[#This Row],[ProposedMeasureCategory]],  \" - \", TEXT(Table_SummaryPI[[#This Row],[Size]],\"#,##0.00\"),\" \",Table_SummaryPI[[#This Row],[SizeUnit]]),\"\")","v":""},{"$f":"SUBSTITUTE(Table_PI[[#This Row],[Measure]],\"     \",\"\",1)","v":""},{"$f":"IF(Table_PI[[#This Row],[List 1]]<>\"\",Table_PI[[#This Row],[List 1]],\"\")","v":""},{"$f":"IF(Table_PI[[#This Row],[List 2]]<>\"\",Table_PI[[#This Row],[List 2]],\"\")","v":""},{"$f":"IF(Table_PI[[#This Row],[List 3]]<>\"\",Table_PI[[#This Row],[List 3]],\"\")","v":""},{"$f":"IF(Table_PI[[#This Row],[Manufacturer]]=\"\",\"\",Table_PI[[#This Row],[Manufacturer]])","v":""},{"$f":"IF(Table_PI[[#This Row],[Model Number]]=\"\",\"\",Table_PI[[#This Row],[Model Number]])","v":""},{"$f":"IF(Table_PI[[#This Row],[Serial Number(s)]]=\"\",\"\",Table_PI[[#This Row],[Serial Number(s)]])","v":""},null,{"$f":"IF(Table_PI[[#This Row],[Size]]=\"\",\"\",Table_PI[[#This Row],[Size]])","v":""},null,null,{"$f":"IF(Table_PI[[#This Row],[Input 1]]<>\"\",Table_PI[[#This Row],[Input 1]],\"\")","v":""},null,null,{"$f":"IF(Table_PI[[#This Row],[Input 2]]<>\"\",Table_PI[[#This Row],[Input 2]],\"\")","v":""},null,null,{"$f":"IF(Table_PI[[#This Row],[Input 3]]<>\"\",Table_PI[[#This Row],[Input 3]],\"\")","v":""},null,null,{"$f":"IF(Table_PI[[#This Row],[Input 4]]<>\"\",Table_PI[[#This Row],[Input 4]],\"\")","v":""},null,null,{"$f":"IF(Table_PI[[#This Row],[Input 4]]<>\"\",Table_PI[[#This Row],[Input 4]],\"\")","v":""},null,null,{"$f":"IF(Table_PI[[#This Row],[Input 4]]<>\"\",Table_PI[[#This Row],[Input 4]],\"\")","v":""},{"$f":"IF(Table_PI[[#This Row],[Quantity]]=\"\",\"\",Table_PI[[#This Row],[Quantity]])","v":""},{"$f":"IF(Table_PI[[#This Row],[Notes]]=\"\",\"\",Table_PI[[#This Row],[Notes]])","v":""},{"$f":"IF(OR(Table_PI[[#This Row],[Hide: Baseline kWh]]=\"\",Table_PI[[#This Row],[Hide: Baseline kWh]]=0,ISTEXT(Table_PI[[#This Row],[Hide: Baseline kWh]])),\"\",Table_PI[[#This Row],[Hide: Baseline kWh]])","v":""},{"$f":"IF(OR(Table_PI[[#This Row],[Hide: Baseline kW]]=\"\",Table_PI[[#This Row],[Hide: Baseline kW]]=0,ISTEXT(Table_PI[[#This Row],[Hide: Baseline kW]])),\"\",Table_PI[[#This Row],[Hide: Baseline kW]])","v":""},{"$f":"IF(OR(Table_PI[[#This Row],[Hide: Proposed kWh]]=\"\",Table_PI[[#This Row],[Hide: Proposed kWh]]=0,ISTEXT(Table_PI[[#This Row],[Hide: Proposed kWh]])),\"\",Table_PI[[#This Row],[Hide: Proposed kWh]])","v":""},{"$f":"IF(OR(Table_PI[[#This Row],[Hide: Proposed kW]]=\"\",Table_PI[[#This Row],[Hide: Proposed kW]]=0,ISTEXT(Table_PI[[#This Row],[Hide: Proposed kW]])),\"\",Table_PI[[#This Row],[Hide: Proposed kW]])","v":""},null,null,{"$f":"IF(OR(Table_PI[[#This Row],[Hide: Rebate]]=\"\",Table_PI[[#This Row],[Hide: Rebate]]=0,ISTEXT(Table_PI[[#This Row],[Hide: Rebate]])),\"\",Table_PI[[#This Row],[Hide: Rebate]])","v":""},null,{"$f":"IF(OR(Table_PI[[#This Row],[Hide: Incremental Cost]]=\"\",Table_PI[[#This Row],[Hide: Incremental Cost]]=0,ISTEXT(Table_PI[[#This Row],[Hide: Incremental Cost]])),\"\",Table_PI[[#This Row],[Hide: Incremental Cost]])","v":""},{"$f":"IFERROR(IF(Table_SummaryPI[[#This Row],[Incentive_Customer]]=\"\",\"\",ROUND(Table_SummaryPI[[#This Row],[Incentive_Customer]]/$AM$401*'Customer Information'!$BC$21,2)),0)","v":""},{"$f":"IF(OR(Table_PI[[#This Row],[Annual kWh]]=\"\",Table_PI[[#This Row],[Annual kWh]]=0,ISTEXT(Table_PI[[#This Row],[Annual kWh]])),\"\",Table_PI[[#This Row],[Annual kWh]])","v":""},{"$f":"IF(OR(Table_PI[[#This Row],[Peak kW]]=\"\",Table_PI[[#This Row],[Peak kW]]=0,ISTEXT(Table_PI[[#This Row],[Peak kW]])),\"\",Table_PI[[#This Row],[Peak kW]])","v":""},{"$f":"IF(Table_SummaryPI[[#This Row],[Line No.]]<>\"\",IF(AND(ISNUMBER(FIND(\"Chiller\",Table_SummaryPI[[#This Row],[P_MeasureOption1]],1)),Table_SummaryPI[[#This Row],[ProposedMeasureCategory]]=\"Air-Cooled (Water-Cooled Replacement)\"),$BD$29*Table_SummaryPI[[#This Row],[Size]]*Table_SummaryPI[[#This Row],[Quantity]]*Table_SummaryPI[[#This Row],[EFLHCooling]],\nIF(ISNUMBER(FIND(\"Dishwasher\",Table_SummaryPI[[#This Row],[ProposedMeasureCategory]],1)),$BH$29*Table_SummaryPI[[#This Row],[Quantity]],\nIF(ISNUMBER(FIND(\"Ice Maker\",Table_SummaryPI[[#This Row],[ProposedMeasureCategory]],1)),$BD$31*Table_SummaryPI[[#This Row],[Quantity]],\nIF(ISNUMBER(FIND(\"Spray Valve\",Table_SummaryPI[[#This Row],[ProposedMeasureCategory]],1)),$BH$31*Table_SummaryPI[[#This Row],[Quantity]],\n0)))),\"\")","v":""},{"$f":"IF(OR(Table_PI[[#This Row],[Hide: Electrification kWh]]=\"\",Table_PI[[#This Row],[Hide: Electrification kWh]]=0,ISTEXT(Table_PI[[#This Row],[Hide: Electrification kWh]])),\"\",Table_PI[[#This Row],[Hide: Electrification kWh]])","v":""},{"$f":"IF(OR(Table_PI[[#This Row],[Hide: Electrification GHG]]=\"\",Table_PI[[#This Row],[Hide: Electrification GHG]]=0,ISTEXT(Table_PI[[#This Row],[Hide: Electrification GHG]])),\"\",Table_PI[[#This Row],[Hide: Electrification GHG]])","v":""},{"$f":"IFERROR(IF(Table_SummaryPI[[#This Row],[kWhSavings]]=\"\",\"\",$BH$9*Table_SummaryPI[[#This Row],[kWhSavings]]),0)","v":""},{"$f":"IFERROR(IF(Table_SummaryPI[[#This Row],[kWhSavings]]=\"\",\"\",$BH$14*Table_SummaryPI[[#This Row],[kWhSavings]]),0)","v":""},{"$f":"IFERROR(IF(Table_SummaryPI[[#This Row],[kWhSavings]]=\"\",\"\",$BH$18*Table_SummaryPI[[#This Row],[kWhSavings]]),0)","v":""},{"$f":"IFERROR(IF(Table_SummaryPI[[#This Row],[kWhSavings]]=\"\",\"\",$BH$22*Table_SummaryPI[[#This Row],[kWhSavings]]),0)","v":""}]
[{"$f":"Table_PI[[#This Row],[Line No.]]","v":""},{"$f":"IF(Table_SummaryPI[[#This Row],[MeasureName]]<>\"\",NOT(ISTEXT(Table_PI[[#This Row],[Rebate]])),\"\")","v":""},{"$f":"IF(Table_SummaryPI[[#This Row],[MeassureCategory]]<>\"\",CONCATENATE(Table_SummaryPI[[#This Row],[MeassureCategory]],  \" - \", Table_SummaryPI[[#This Row],[ProposedMeasureCategory]],  \" - \", TEXT(Table_SummaryPI[[#This Row],[Size]],\"#,##0.00\"),\" \",Table_SummaryPI[[#This Row],[SizeUnit]]),\"\")","v":""},{"$f":"SUBSTITUTE(Table_PI[[#This Row],[Measure]],\"     \",\"\",1)","v":""},{"$f":"IF(Table_PI[[#This Row],[List 1]]<>\"\",Table_PI[[#This Row],[List 1]],\"\")","v":""},{"$f":"IF(Table_PI[[#This Row],[List 2]]<>\"\",Table_PI[[#This Row],[List 2]],\"\")","v":""},{"$f":"IF(Table_PI[[#This Row],[List 3]]<>\"\",Table_PI[[#This Row],[List 3]],\"\")","v":""},{"$f":"IF(Table_PI[[#This Row],[Manufacturer]]=\"\",\"\",Table_PI[[#This Row],[Manufacturer]])","v":""},{"$f":"IF(Table_PI[[#This Row],[Model Number]]=\"\",\"\",Table_PI[[#This Row],[Model Number]])","v":""},{"$f":"IF(Table_PI[[#This Row],[Serial Number(s)]]=\"\",\"\",Table_PI[[#This Row],[Serial Number(s)]])","v":""},null,{"$f":"IF(Table_PI[[#This Row],[Size]]=\"\",\"\",Table_PI[[#This Row],[Size]])","v":""},null,null,{"$f":"IF(Table_PI[[#This Row],[Input 1]]<>\"\",Table_PI[[#This Row],[Input 1]],\"\")","v":""},null,null,{"$f":"IF(Table_PI[[#This Row],[Input 2]]<>\"\",Table_PI[[#This Row],[Input 2]],\"\")","v":""},null,null,{"$f":"IF(Table_PI[[#This Row],[Input 3]]<>\"\",Table_PI[[#This Row],[Input 3]],\"\")","v":""},null,null,{"$f":"IF(Table_PI[[#This Row],[Input 4]]<>\"\",Table_PI[[#This Row],[Input 4]],\"\")","v":""},null,null,{"$f":"IF(Table_PI[[#This Row],[Input 4]]<>\"\",Table_PI[[#This Row],[Input 4]],\"\")","v":""},null,null,{"$f":"IF(Table_PI[[#This Row],[Input 4]]<>\"\",Table_PI[[#This Row],[Input 4]],\"\")","v":""},{"$f":"IF(Table_PI[[#This Row],[Quantity]]=\"\",\"\",Table_PI[[#This Row],[Quantity]])","v":""},{"$f":"IF(Table_PI[[#This Row],[Notes]]=\"\",\"\",Table_PI[[#This Row],[Notes]])","v":""},{"$f":"IF(OR(Table_PI[[#This Row],[Hide: Baseline kWh]]=\"\",Table_PI[[#This Row],[Hide: Baseline kWh]]=0,ISTEXT(Table_PI[[#This Row],[Hide: Baseline kWh]])),\"\",Table_PI[[#This Row],[Hide: Baseline kWh]])","v":""},{"$f":"IF(OR(Table_PI[[#This Row],[Hide: Baseline kW]]=\"\",Table_PI[[#This Row],[Hide: Baseline kW]]=0,ISTEXT(Table_PI[[#This Row],[Hide: Baseline kW]])),\"\",Table_PI[[#This Row],[Hide: Baseline kW]])","v":""},{"$f":"IF(OR(Table_PI[[#This Row],[Hide: Proposed kWh]]=\"\",Table_PI[[#This Row],[Hide: Proposed kWh]]=0,ISTEXT(Table_PI[[#This Row],[Hide: Proposed kWh]])),\"\",Table_PI[[#This Row],[Hide: Proposed kWh]])","v":""},{"$f":"IF(OR(Table_PI[[#This Row],[Hide: Proposed kW]]=\"\",Table_PI[[#This Row],[Hide: Proposed kW]]=0,ISTEXT(Table_PI[[#This Row],[Hide: Proposed kW]])),\"\",Table_PI[[#This Row],[Hide: Proposed kW]])","v":""},null,null,{"$f":"IF(OR(Table_PI[[#This Row],[Hide: Rebate]]=\"\",Table_PI[[#This Row],[Hide: Rebate]]=0,ISTEXT(Table_PI[[#This Row],[Hide: Rebate]])),\"\",Table_PI[[#This Row],[Hide: Rebate]])","v":""},null,{"$f":"IF(OR(Table_PI[[#This Row],[Hide: Incremental Cost]]=\"\",Table_PI[[#This Row],[Hide: Incremental Cost]]=0,ISTEXT(Table_PI[[#This Row],[Hide: Incremental Cost]])),\"\",Table_PI[[#This Row],[Hide: Incremental Cost]])","v":""},{"$f":"IFERROR(IF(Table_SummaryPI[[#This Row],[Incentive_Customer]]=\"\",\"\",ROUND(Table_SummaryPI[[#This Row],[Incentive_Customer]]/$AM$401*'Customer Information'!$BC$21,2)),0)","v":""},{"$f":"IF(OR(Table_PI[[#This Row],[Annual kWh]]=\"\",Table_PI[[#This Row],[Annual kWh]]=0,ISTEXT(Table_PI[[#This Row],[Annual kWh]])),\"\",Table_PI[[#This Row],[Annual kWh]])","v":""},{"$f":"IF(OR(Table_PI[[#This Row],[Peak kW]]=\"\",Table_PI[[#This Row],[Peak kW]]=0,ISTEXT(Table_PI[[#This Row],[Peak kW]])),\"\",Table_PI[[#This Row],[Peak kW]])","v":""},{"$f":"IF(Table_SummaryPI[[#This Row],[Line No.]]<>\"\",IF(AND(ISNUMBER(FIND(\"Chiller\",Table_SummaryPI[[#This Row],[P_MeasureOption1]],1)),Table_SummaryPI[[#This Row],[ProposedMeasureCategory]]=\"Air-Cooled (Water-Cooled Replacement)\"),$BD$29*Table_SummaryPI[[#This Row],[Size]]*Table_SummaryPI[[#This Row],[Quantity]]*Table_SummaryPI[[#This Row],[EFLHCooling]],\nIF(ISNUMBER(FIND(\"Dishwasher\",Table_SummaryPI[[#This Row],[ProposedMeasureCategory]],1)),$BH$29*Table_SummaryPI[[#This Row],[Quantity]],\nIF(ISNUMBER(FIND(\"Ice Maker\",Table_SummaryPI[[#This Row],[ProposedMeasureCategory]],1)),$BD$31*Table_SummaryPI[[#This Row],[Quantity]],\nIF(ISNUMBER(FIND(\"Spray Valve\",Table_SummaryPI[[#This Row],[ProposedMeasureCategory]],1)),$BH$31*Table_SummaryPI[[#This Row],[Quantity]],\n0)))),\"\")","v":""},{"$f":"IF(OR(Table_PI[[#This Row],[Hide: Electrification kWh]]=\"\",Table_PI[[#This Row],[Hide: Electrification kWh]]=0,ISTEXT(Table_PI[[#This Row],[Hide: Electrification kWh]])),\"\",Table_PI[[#This Row],[Hide: Electrification kWh]])","v":""},{"$f":"IF(OR(Table_PI[[#This Row],[Hide: Electrification GHG]]=\"\",Table_PI[[#This Row],[Hide: Electrification GHG]]=0,ISTEXT(Table_PI[[#This Row],[Hide: Electrification GHG]])),\"\",Table_PI[[#This Row],[Hide: Electrification GHG]])","v":""},{"$f":"IFERROR(IF(Table_SummaryPI[[#This Row],[kWhSavings]]=\"\",\"\",$BH$9*Table_SummaryPI[[#This Row],[kWhSavings]]),0)","v":""},{"$f":"IFERROR(IF(Table_SummaryPI[[#This Row],[kWhSavings]]=\"\",\"\",$BH$14*Table_SummaryPI[[#This Row],[kWhSavings]]),0)","v":""},{"$f":"IFERROR(IF(Table_SummaryPI[[#This Row],[kWhSavings]]=\"\",\"\",$BH$18*Table_SummaryPI[[#This Row],[kWhSavings]]),0)","v":""},{"$f":"IFERROR(IF(Table_SummaryPI[[#This Row],[kWhSavings]]=\"\",\"\",$BH$22*Table_SummaryPI[[#This Row],[kWhSavings]]),0)","v":""}]
[{"$f":"Table_PI[[#This Row],[Line No.]]","v":""},{"$f":"IF(Table_SummaryPI[[#This Row],[MeasureName]]<>\"\",NOT(ISTEXT(Table_PI[[#This Row],[Rebate]])),\"\")","v":""},{"$f":"IF(Table_SummaryPI[[#This Row],[MeassureCategory]]<>\"\",CONCATENATE(Table_SummaryPI[[#This Row],[MeassureCategory]],  \" - \", Table_SummaryPI[[#This Row],[ProposedMeasureCategory]],  \" - \", TEXT(Table_SummaryPI[[#This Row],[Size]],\"#,##0.00\"),\" \",Table_SummaryPI[[#This Row],[SizeUnit]]),\"\")","v":""},{"$f":"SUBSTITUTE(Table_PI[[#This Row],[Measure]],\"     \",\"\",1)","v":""},{"$f":"IF(Table_PI[[#This Row],[List 1]]<>\"\",Table_PI[[#This Row],[List 1]],\"\")","v":""},{"$f":"IF(Table_PI[[#This Row],[List 2]]<>\"\",Table_PI[[#This Row],[List 2]],\"\")","v":""},{"$f":"IF(Table_PI[[#This Row],[List 3]]<>\"\",Table_PI[[#This Row],[List 3]],\"\")","v":""},{"$f":"IF(Table_PI[[#This Row],[Manufacturer]]=\"\",\"\",Table_PI[[#This Row],[Manufacturer]])","v":""},{"$f":"IF(Table_PI[[#This Row],[Model Number]]=\"\",\"\",Table_PI[[#This Row],[Model Number]])","v":""},{"$f":"IF(Table_PI[[#This Row],[Serial Number(s)]]=\"\",\"\",Table_PI[[#This Row],[Serial Number(s)]])","v":""},null,{"$f":"IF(Table_PI[[#This Row],[Size]]=\"\",\"\",Table_PI[[#This Row],[Size]])","v":""},null,null,{"$f":"IF(Table_PI[[#This Row],[Input 1]]<>\"\",Table_PI[[#This Row],[Input 1]],\"\")","v":""},null,null,{"$f":"IF(Table_PI[[#This Row],[Input 2]]<>\"\",Table_PI[[#This Row],[Input 2]],\"\")","v":""},null,null,{"$f":"IF(Table_PI[[#This Row],[Input 3]]<>\"\",Table_PI[[#This Row],[Input 3]],\"\")","v":""},null,null,{"$f":"IF(Table_PI[[#This Row],[Input 4]]<>\"\",Table_PI[[#This Row],[Input 4]],\"\")","v":""},null,null,{"$f":"IF(Table_PI[[#This Row],[Input 4]]<>\"\",Table_PI[[#This Row],[Input 4]],\"\")","v":""},null,null,{"$f":"IF(Table_PI[[#This Row],[Input 4]]<>\"\",Table_PI[[#This Row],[Input 4]],\"\")","v":""},{"$f":"IF(Table_PI[[#This Row],[Quantity]]=\"\",\"\",Table_PI[[#This Row],[Quantity]])","v":""},{"$f":"IF(Table_PI[[#This Row],[Notes]]=\"\",\"\",Table_PI[[#This Row],[Notes]])","v":""},{"$f":"IF(OR(Table_PI[[#This Row],[Hide: Baseline kWh]]=\"\",Table_PI[[#This Row],[Hide: Baseline kWh]]=0,ISTEXT(Table_PI[[#This Row],[Hide: Baseline kWh]])),\"\",Table_PI[[#This Row],[Hide: Baseline kWh]])","v":""},{"$f":"IF(OR(Table_PI[[#This Row],[Hide: Baseline kW]]=\"\",Table_PI[[#This Row],[Hide: Baseline kW]]=0,ISTEXT(Table_PI[[#This Row],[Hide: Baseline kW]])),\"\",Table_PI[[#This Row],[Hide: Baseline kW]])","v":""},{"$f":"IF(OR(Table_PI[[#This Row],[Hide: Proposed kWh]]=\"\",Table_PI[[#This Row],[Hide: Proposed kWh]]=0,ISTEXT(Table_PI[[#This Row],[Hide: Proposed kWh]])),\"\",Table_PI[[#This Row],[Hide: Proposed kWh]])","v":""},{"$f":"IF(OR(Table_PI[[#This Row],[Hide: Proposed kW]]=\"\",Table_PI[[#This Row],[Hide: Proposed kW]]=0,ISTEXT(Table_PI[[#This Row],[Hide: Proposed kW]])),\"\",Table_PI[[#This Row],[Hide: Proposed kW]])","v":""},null,null,{"$f":"IF(OR(Table_PI[[#This Row],[Hide: Rebate]]=\"\",Table_PI[[#This Row],[Hide: Rebate]]=0,ISTEXT(Table_PI[[#This Row],[Hide: Rebate]])),\"\",Table_PI[[#This Row],[Hide: Rebate]])","v":""},null,{"$f":"IF(OR(Table_PI[[#This Row],[Hide: Incremental Cost]]=\"\",Table_PI[[#This Row],[Hide: Incremental Cost]]=0,ISTEXT(Table_PI[[#This Row],[Hide: Incremental Cost]])),\"\",Table_PI[[#This Row],[Hide: Incremental Cost]])","v":""},{"$f":"IFERROR(IF(Table_SummaryPI[[#This Row],[Incentive_Customer]]=\"\",\"\",ROUND(Table_SummaryPI[[#This Row],[Incentive_Customer]]/$AM$401*'Customer Information'!$BC$21,2)),0)","v":""},{"$f":"IF(OR(Table_PI[[#This Row],[Annual kWh]]=\"\",Table_PI[[#This Row],[Annual kWh]]=0,ISTEXT(Table_PI[[#This Row],[Annual kWh]])),\"\",Table_PI[[#This Row],[Annual kWh]])","v":""},{"$f":"IF(OR(Table_PI[[#This Row],[Peak kW]]=\"\",Table_PI[[#This Row],[Peak kW]]=0,ISTEXT(Table_PI[[#This Row],[Peak kW]])),\"\",Table_PI[[#This Row],[Peak kW]])","v":""},{"$f":"IF(Table_SummaryPI[[#This Row],[Line No.]]<>\"\",IF(AND(ISNUMBER(FIND(\"Chiller\",Table_SummaryPI[[#This Row],[P_MeasureOption1]],1)),Table_SummaryPI[[#This Row],[ProposedMeasureCategory]]=\"Air-Cooled (Water-Cooled Replacement)\"),$BD$29*Table_SummaryPI[[#This Row],[Size]]*Table_SummaryPI[[#This Row],[Quantity]]*Table_SummaryPI[[#This Row],[EFLHCooling]],\nIF(ISNUMBER(FIND(\"Dishwasher\",Table_SummaryPI[[#This Row],[ProposedMeasureCategory]],1)),$BH$29*Table_SummaryPI[[#This Row],[Quantity]],\nIF(ISNUMBER(FIND(\"Ice Maker\",Table_SummaryPI[[#This Row],[ProposedMeasureCategory]],1)),$BD$31*Table_SummaryPI[[#This Row],[Quantity]],\nIF(ISNUMBER(FIND(\"Spray Valve\",Table_SummaryPI[[#This Row],[ProposedMeasureCategory]],1)),$BH$31*Table_SummaryPI[[#This Row],[Quantity]],\n0)))),\"\")","v":""},{"$f":"IF(OR(Table_PI[[#This Row],[Hide: Electrification kWh]]=\"\",Table_PI[[#This Row],[Hide: Electrification kWh]]=0,ISTEXT(Table_PI[[#This Row],[Hide: Electrification kWh]])),\"\",Table_PI[[#This Row],[Hide: Electrification kWh]])","v":""},{"$f":"IF(OR(Table_PI[[#This Row],[Hide: Electrification GHG]]=\"\",Table_PI[[#This Row],[Hide: Electrification GHG]]=0,ISTEXT(Table_PI[[#This Row],[Hide: Electrification GHG]])),\"\",Table_PI[[#This Row],[Hide: Electrification GHG]])","v":""},{"$f":"IFERROR(IF(Table_SummaryPI[[#This Row],[kWhSavings]]=\"\",\"\",$BH$9*Table_SummaryPI[[#This Row],[kWhSavings]]),0)","v":""},{"$f":"IFERROR(IF(Table_SummaryPI[[#This Row],[kWhSavings]]=\"\",\"\",$BH$14*Table_SummaryPI[[#This Row],[kWhSavings]]),0)","v":""},{"$f":"IFERROR(IF(Table_SummaryPI[[#This Row],[kWhSavings]]=\"\",\"\",$BH$18*Table_SummaryPI[[#This Row],[kWhSavings]]),0)","v":""},{"$f":"IFERROR(IF(Table_SummaryPI[[#This Row],[kWhSavings]]=\"\",\"\",$BH$22*Table_SummaryPI[[#This Row],[kWhSavings]]),0)","v":""}]
[{"$f":"Table_PI[[#This Row],[Line No.]]","v":""},{"$f":"IF(Table_SummaryPI[[#This Row],[MeasureName]]<>\"\",NOT(ISTEXT(Table_PI[[#This Row],[Rebate]])),\"\")","v":""},{"$f":"IF(Table_SummaryPI[[#This Row],[MeassureCategory]]<>\"\",CONCATENATE(Table_SummaryPI[[#This Row],[MeassureCategory]],  \" - \", Table_SummaryPI[[#This Row],[ProposedMeasureCategory]],  \" - \", TEXT(Table_SummaryPI[[#This Row],[Size]],\"#,##0.00\"),\" \",Table_SummaryPI[[#This Row],[SizeUnit]]),\"\")","v":""},{"$f":"SUBSTITUTE(Table_PI[[#This Row],[Measure]],\"     \",\"\",1)","v":""},{"$f":"IF(Table_PI[[#This Row],[List 1]]<>\"\",Table_PI[[#This Row],[List 1]],\"\")","v":""},{"$f":"IF(Table_PI[[#This Row],[List 2]]<>\"\",Table_PI[[#This Row],[List 2]],\"\")","v":""},{"$f":"IF(Table_PI[[#This Row],[List 3]]<>\"\",Table_PI[[#This Row],[List 3]],\"\")","v":""},{"$f":"IF(Table_PI[[#This Row],[Manufacturer]]=\"\",\"\",Table_PI[[#This Row],[Manufacturer]])","v":""},{"$f":"IF(Table_PI[[#This Row],[Model Number]]=\"\",\"\",Table_PI[[#This Row],[Model Number]])","v":""},{"$f":"IF(Table_PI[[#This Row],[Serial Number(s)]]=\"\",\"\",Table_PI[[#This Row],[Serial Number(s)]])","v":""},null,{"$f":"IF(Table_PI[[#This Row],[Size]]=\"\",\"\",Table_PI[[#This Row],[Size]])","v":""},null,null,{"$f":"IF(Table_PI[[#This Row],[Input 1]]<>\"\",Table_PI[[#This Row],[Input 1]],\"\")","v":""},null,null,{"$f":"IF(Table_PI[[#This Row],[Input 2]]<>\"\",Table_PI[[#This Row],[Input 2]],\"\")","v":""},null,null,{"$f":"IF(Table_PI[[#This Row],[Input 3]]<>\"\",Table_PI[[#This Row],[Input 3]],\"\")","v":""},null,null,{"$f":"IF(Table_PI[[#This Row],[Input 4]]<>\"\",Table_PI[[#This Row],[Input 4]],\"\")","v":""},null,null,{"$f":"IF(Table_PI[[#This Row],[Input 4]]<>\"\",Table_PI[[#This Row],[Input 4]],\"\")","v":""},null,null,{"$f":"IF(Table_PI[[#This Row],[Input 4]]<>\"\",Table_PI[[#This Row],[Input 4]],\"\")","v":""},{"$f":"IF(Table_PI[[#This Row],[Quantity]]=\"\",\"\",Table_PI[[#This Row],[Quantity]])","v":""},{"$f":"IF(Table_PI[[#This Row],[Notes]]=\"\",\"\",Table_PI[[#This Row],[Notes]])","v":""},{"$f":"IF(OR(Table_PI[[#This Row],[Hide: Baseline kWh]]=\"\",Table_PI[[#This Row],[Hide: Baseline kWh]]=0,ISTEXT(Table_PI[[#This Row],[Hide: Baseline kWh]])),\"\",Table_PI[[#This Row],[Hide: Baseline kWh]])","v":""},{"$f":"IF(OR(Table_PI[[#This Row],[Hide: Baseline kW]]=\"\",Table_PI[[#This Row],[Hide: Baseline kW]]=0,ISTEXT(Table_PI[[#This Row],[Hide: Baseline kW]])),\"\",Table_PI[[#This Row],[Hide: Baseline kW]])","v":""},{"$f":"IF(OR(Table_PI[[#This Row],[Hide: Proposed kWh]]=\"\",Table_PI[[#This Row],[Hide: Proposed kWh]]=0,ISTEXT(Table_PI[[#This Row],[Hide: Proposed kWh]])),\"\",Table_PI[[#This Row],[Hide: Proposed kWh]])","v":""},{"$f":"IF(OR(Table_PI[[#This Row],[Hide: Proposed kW]]=\"\",Table_PI[[#This Row],[Hide: Proposed kW]]=0,ISTEXT(Table_PI[[#This Row],[Hide: Proposed kW]])),\"\",Table_PI[[#This Row],[Hide: Proposed kW]])","v":""},null,null,{"$f":"IF(OR(Table_PI[[#This Row],[Hide: Rebate]]=\"\",Table_PI[[#This Row],[Hide: Rebate]]=0,ISTEXT(Table_PI[[#This Row],[Hide: Rebate]])),\"\",Table_PI[[#This Row],[Hide: Rebate]])","v":""},null,{"$f":"IF(OR(Table_PI[[#This Row],[Hide: Incremental Cost]]=\"\",Table_PI[[#This Row],[Hide: Incremental Cost]]=0,ISTEXT(Table_PI[[#This Row],[Hide: Incremental Cost]])),\"\",Table_PI[[#This Row],[Hide: Incremental Cost]])","v":""},{"$f":"IFERROR(IF(Table_SummaryPI[[#This Row],[Incentive_Customer]]=\"\",\"\",ROUND(Table_SummaryPI[[#This Row],[Incentive_Customer]]/$AM$401*'Customer Information'!$BC$21,2)),0)","v":""},{"$f":"IF(OR(Table_PI[[#This Row],[Annual kWh]]=\"\",Table_PI[[#This Row],[Annual kWh]]=0,ISTEXT(Table_PI[[#This Row],[Annual kWh]])),\"\",Table_PI[[#This Row],[Annual kWh]])","v":""},{"$f":"IF(OR(Table_PI[[#This Row],[Peak kW]]=\"\",Table_PI[[#This Row],[Peak kW]]=0,ISTEXT(Table_PI[[#This Row],[Peak kW]])),\"\",Table_PI[[#This Row],[Peak kW]])","v":""},{"$f":"IF(Table_SummaryPI[[#This Row],[Line No.]]<>\"\",IF(AND(ISNUMBER(FIND(\"Chiller\",Table_SummaryPI[[#This Row],[P_MeasureOption1]],1)),Table_SummaryPI[[#This Row],[ProposedMeasureCategory]]=\"Air-Cooled (Water-Cooled Replacement)\"),$BD$29*Table_SummaryPI[[#This Row],[Size]]*Table_SummaryPI[[#This Row],[Quantity]]*Table_SummaryPI[[#This Row],[EFLHCooling]],\nIF(ISNUMBER(FIND(\"Dishwasher\",Table_SummaryPI[[#This Row],[ProposedMeasureCategory]],1)),$BH$29*Table_SummaryPI[[#This Row],[Quantity]],\nIF(ISNUMBER(FIND(\"Ice Maker\",Table_SummaryPI[[#This Row],[ProposedMeasureCategory]],1)),$BD$31*Table_SummaryPI[[#This Row],[Quantity]],\nIF(ISNUMBER(FIND(\"Spray Valve\",Table_SummaryPI[[#This Row],[ProposedMeasureCategory]],1)),$BH$31*Table_SummaryPI[[#This Row],[Quantity]],\n0)))),\"\")","v":""},{"$f":"IF(OR(Table_PI[[#This Row],[Hide: Electrification kWh]]=\"\",Table_PI[[#This Row],[Hide: Electrification kWh]]=0,ISTEXT(Table_PI[[#This Row],[Hide: Electrification kWh]])),\"\",Table_PI[[#This Row],[Hide: Electrification kWh]])","v":""},{"$f":"IF(OR(Table_PI[[#This Row],[Hide: Electrification GHG]]=\"\",Table_PI[[#This Row],[Hide: Electrification GHG]]=0,ISTEXT(Table_PI[[#This Row],[Hide: Electrification GHG]])),\"\",Table_PI[[#This Row],[Hide: Electrification GHG]])","v":""},{"$f":"IFERROR(IF(Table_SummaryPI[[#This Row],[kWhSavings]]=\"\",\"\",$BH$9*Table_SummaryPI[[#This Row],[kWhSavings]]),0)","v":""},{"$f":"IFERROR(IF(Table_SummaryPI[[#This Row],[kWhSavings]]=\"\",\"\",$BH$14*Table_SummaryPI[[#This Row],[kWhSavings]]),0)","v":""},{"$f":"IFERROR(IF(Table_SummaryPI[[#This Row],[kWhSavings]]=\"\",\"\",$BH$18*Table_SummaryPI[[#This Row],[kWhSavings]]),0)","v":""},{"$f":"IFERROR(IF(Table_SummaryPI[[#This Row],[kWhSavings]]=\"\",\"\",$BH$22*Table_SummaryPI[[#This Row],[kWhSavings]]),0)","v":""}]
[{"$f":"Table_PI[[#This Row],[Line No.]]","v":""},{"$f":"IF(Table_SummaryPI[[#This Row],[MeasureName]]<>\"\",NOT(ISTEXT(Table_PI[[#This Row],[Rebate]])),\"\")","v":""},{"$f":"IF(Table_SummaryPI[[#This Row],[MeassureCategory]]<>\"\",CONCATENATE(Table_SummaryPI[[#This Row],[MeassureCategory]],  \" - \", Table_SummaryPI[[#This Row],[ProposedMeasureCategory]],  \" - \", TEXT(Table_SummaryPI[[#This Row],[Size]],\"#,##0.00\"),\" \",Table_SummaryPI[[#This Row],[SizeUnit]]),\"\")","v":""},{"$f":"SUBSTITUTE(Table_PI[[#This Row],[Measure]],\"     \",\"\",1)","v":""},{"$f":"IF(Table_PI[[#This Row],[List 1]]<>\"\",Table_PI[[#This Row],[List 1]],\"\")","v":""},{"$f":"IF(Table_PI[[#This Row],[List 2]]<>\"\",Table_PI[[#This Row],[List 2]],\"\")","v":""},{"$f":"IF(Table_PI[[#This Row],[List 3]]<>\"\",Table_PI[[#This Row],[List 3]],\"\")","v":""},{"$f":"IF(Table_PI[[#This Row],[Manufacturer]]=\"\",\"\",Table_PI[[#This Row],[Manufacturer]])","v":""},{"$f":"IF(Table_PI[[#This Row],[Model Number]]=\"\",\"\",Table_PI[[#This Row],[Model Number]])","v":""},{"$f":"IF(Table_PI[[#This Row],[Serial Number(s)]]=\"\",\"\",Table_PI[[#This Row],[Serial Number(s)]])","v":""},null,{"$f":"IF(Table_PI[[#This Row],[Size]]=\"\",\"\",Table_PI[[#This Row],[Size]])","v":""},null,null,{"$f":"IF(Table_PI[[#This Row],[Input 1]]<>\"\",Table_PI[[#This Row],[Input 1]],\"\")","v":""},null,null,{"$f":"IF(Table_PI[[#This Row],[Input 2]]<>\"\",Table_PI[[#This Row],[Input 2]],\"\")","v":""},null,null,{"$f":"IF(Table_PI[[#This Row],[Input 3]]<>\"\",Table_PI[[#This Row],[Input 3]],\"\")","v":""},null,null,{"$f":"IF(Table_PI[[#This Row],[Input 4]]<>\"\",Table_PI[[#This Row],[Input 4]],\"\")","v":""},null,null,{"$f":"IF(Table_PI[[#This Row],[Input 4]]<>\"\",Table_PI[[#This Row],[Input 4]],\"\")","v":""},null,null,{"$f":"IF(Table_PI[[#This Row],[Input 4]]<>\"\",Table_PI[[#This Row],[Input 4]],\"\")","v":""},{"$f":"IF(Table_PI[[#This Row],[Quantity]]=\"\",\"\",Table_PI[[#This Row],[Quantity]])","v":""},{"$f":"IF(Table_PI[[#This Row],[Notes]]=\"\",\"\",Table_PI[[#This Row],[Notes]])","v":""},{"$f":"IF(OR(Table_PI[[#This Row],[Hide: Baseline kWh]]=\"\",Table_PI[[#This Row],[Hide: Baseline kWh]]=0,ISTEXT(Table_PI[[#This Row],[Hide: Baseline kWh]])),\"\",Table_PI[[#This Row],[Hide: Baseline kWh]])","v":""},{"$f":"IF(OR(Table_PI[[#This Row],[Hide: Baseline kW]]=\"\",Table_PI[[#This Row],[Hide: Baseline kW]]=0,ISTEXT(Table_PI[[#This Row],[Hide: Baseline kW]])),\"\",Table_PI[[#This Row],[Hide: Baseline kW]])","v":""},{"$f":"IF(OR(Table_PI[[#This Row],[Hide: Proposed kWh]]=\"\",Table_PI[[#This Row],[Hide: Proposed kWh]]=0,ISTEXT(Table_PI[[#This Row],[Hide: Proposed kWh]])),\"\",Table_PI[[#This Row],[Hide: Proposed kWh]])","v":""},{"$f":"IF(OR(Table_PI[[#This Row],[Hide: Proposed kW]]=\"\",Table_PI[[#This Row],[Hide: Proposed kW]]=0,ISTEXT(Table_PI[[#This Row],[Hide: Proposed kW]])),\"\",Table_PI[[#This Row],[Hide: Proposed kW]])","v":""},null,null,{"$f":"IF(OR(Table_PI[[#This Row],[Hide: Rebate]]=\"\",Table_PI[[#This Row],[Hide: Rebate]]=0,ISTEXT(Table_PI[[#This Row],[Hide: Rebate]])),\"\",Table_PI[[#This Row],[Hide: Rebate]])","v":""},null,{"$f":"IF(OR(Table_PI[[#This Row],[Hide: Incremental Cost]]=\"\",Table_PI[[#This Row],[Hide: Incremental Cost]]=0,ISTEXT(Table_PI[[#This Row],[Hide: Incremental Cost]])),\"\",Table_PI[[#This Row],[Hide: Incremental Cost]])","v":""},{"$f":"IFERROR(IF(Table_SummaryPI[[#This Row],[Incentive_Customer]]=\"\",\"\",ROUND(Table_SummaryPI[[#This Row],[Incentive_Customer]]/$AM$401*'Customer Information'!$BC$21,2)),0)","v":""},{"$f":"IF(OR(Table_PI[[#This Row],[Annual kWh]]=\"\",Table_PI[[#This Row],[Annual kWh]]=0,ISTEXT(Table_PI[[#This Row],[Annual kWh]])),\"\",Table_PI[[#This Row],[Annual kWh]])","v":""},{"$f":"IF(OR(Table_PI[[#This Row],[Peak kW]]=\"\",Table_PI[[#This Row],[Peak kW]]=0,ISTEXT(Table_PI[[#This Row],[Peak kW]])),\"\",Table_PI[[#This Row],[Peak kW]])","v":""},{"$f":"IF(Table_SummaryPI[[#This Row],[Line No.]]<>\"\",IF(AND(ISNUMBER(FIND(\"Chiller\",Table_SummaryPI[[#This Row],[P_MeasureOption1]],1)),Table_SummaryPI[[#This Row],[ProposedMeasureCategory]]=\"Air-Cooled (Water-Cooled Replacement)\"),$BD$29*Table_SummaryPI[[#This Row],[Size]]*Table_SummaryPI[[#This Row],[Quantity]]*Table_SummaryPI[[#This Row],[EFLHCooling]],\nIF(ISNUMBER(FIND(\"Dishwasher\",Table_SummaryPI[[#This Row],[ProposedMeasureCategory]],1)),$BH$29*Table_SummaryPI[[#This Row],[Quantity]],\nIF(ISNUMBER(FIND(\"Ice Maker\",Table_SummaryPI[[#This Row],[ProposedMeasureCategory]],1)),$BD$31*Table_SummaryPI[[#This Row],[Quantity]],\nIF(ISNUMBER(FIND(\"Spray Valve\",Table_SummaryPI[[#This Row],[ProposedMeasureCategory]],1)),$BH$31*Table_SummaryPI[[#This Row],[Quantity]],\n0)))),\"\")","v":""},{"$f":"IF(OR(Table_PI[[#This Row],[Hide: Electrification kWh]]=\"\",Table_PI[[#This Row],[Hide: Electrification kWh]]=0,ISTEXT(Table_PI[[#This Row],[Hide: Electrification kWh]])),\"\",Table_PI[[#This Row],[Hide: Electrification kWh]])","v":""},{"$f":"IF(OR(Table_PI[[#This Row],[Hide: Electrification GHG]]=\"\",Table_PI[[#This Row],[Hide: Electrification GHG]]=0,ISTEXT(Table_PI[[#This Row],[Hide: Electrification GHG]])),\"\",Table_PI[[#This Row],[Hide: Electrification GHG]])","v":""},{"$f":"IFERROR(IF(Table_SummaryPI[[#This Row],[kWhSavings]]=\"\",\"\",$BH$9*Table_SummaryPI[[#This Row],[kWhSavings]]),0)","v":""},{"$f":"IFERROR(IF(Table_SummaryPI[[#This Row],[kWhSavings]]=\"\",\"\",$BH$14*Table_SummaryPI[[#This Row],[kWhSavings]]),0)","v":""},{"$f":"IFERROR(IF(Table_SummaryPI[[#This Row],[kWhSavings]]=\"\",\"\",$BH$18*Table_SummaryPI[[#This Row],[kWhSavings]]),0)","v":""},{"$f":"IFERROR(IF(Table_SummaryPI[[#This Row],[kWhSavings]]=\"\",\"\",$BH$22*Table_SummaryPI[[#This Row],[kWhSavings]]),0)","v":""}]
[{"$f":"Table_PI[[#This Row],[Line No.]]","v":""},{"$f":"IF(Table_SummaryPI[[#This Row],[MeasureName]]<>\"\",NOT(ISTEXT(Table_PI[[#This Row],[Rebate]])),\"\")","v":""},{"$f":"IF(Table_SummaryPI[[#This Row],[MeassureCategory]]<>\"\",CONCATENATE(Table_SummaryPI[[#This Row],[MeassureCategory]],  \" - \", Table_SummaryPI[[#This Row],[ProposedMeasureCategory]],  \" - \", TEXT(Table_SummaryPI[[#This Row],[Size]],\"#,##0.00\"),\" \",Table_SummaryPI[[#This Row],[SizeUnit]]),\"\")","v":""},{"$f":"SUBSTITUTE(Table_PI[[#This Row],[Measure]],\"     \",\"\",1)","v":""},{"$f":"IF(Table_PI[[#This Row],[List 1]]<>\"\",Table_PI[[#This Row],[List 1]],\"\")","v":""},{"$f":"IF(Table_PI[[#This Row],[List 2]]<>\"\",Table_PI[[#This Row],[List 2]],\"\")","v":""},{"$f":"IF(Table_PI[[#This Row],[List 3]]<>\"\",Table_PI[[#This Row],[List 3]],\"\")","v":""},{"$f":"IF(Table_PI[[#This Row],[Manufacturer]]=\"\",\"\",Table_PI[[#This Row],[Manufacturer]])","v":""},{"$f":"IF(Table_PI[[#This Row],[Model Number]]=\"\",\"\",Table_PI[[#This Row],[Model Number]])","v":""},{"$f":"IF(Table_PI[[#This Row],[Serial Number(s)]]=\"\",\"\",Table_PI[[#This Row],[Serial Number(s)]])","v":""},null,{"$f":"IF(Table_PI[[#This Row],[Size]]=\"\",\"\",Table_PI[[#This Row],[Size]])","v":""},null,null,{"$f":"IF(Table_PI[[#This Row],[Input 1]]<>\"\",Table_PI[[#This Row],[Input 1]],\"\")","v":""},null,null,{"$f":"IF(Table_PI[[#This Row],[Input 2]]<>\"\",Table_PI[[#This Row],[Input 2]],\"\")","v":""},null,null,{"$f":"IF(Table_PI[[#This Row],[Input 3]]<>\"\",Table_PI[[#This Row],[Input 3]],\"\")","v":""},null,null,{"$f":"IF(Table_PI[[#This Row],[Input 4]]<>\"\",Table_PI[[#This Row],[Input 4]],\"\")","v":""},null,null,{"$f":"IF(Table_PI[[#This Row],[Input 4]]<>\"\",Table_PI[[#This Row],[Input 4]],\"\")","v":""},null,null,{"$f":"IF(Table_PI[[#This Row],[Input 4]]<>\"\",Table_PI[[#This Row],[Input 4]],\"\")","v":""},{"$f":"IF(Table_PI[[#This Row],[Quantity]]=\"\",\"\",Table_PI[[#This Row],[Quantity]])","v":""},{"$f":"IF(Table_PI[[#This Row],[Notes]]=\"\",\"\",Table_PI[[#This Row],[Notes]])","v":""},{"$f":"IF(OR(Table_PI[[#This Row],[Hide: Baseline kWh]]=\"\",Table_PI[[#This Row],[Hide: Baseline kWh]]=0,ISTEXT(Table_PI[[#This Row],[Hide: Baseline kWh]])),\"\",Table_PI[[#This Row],[Hide: Baseline kWh]])","v":""},{"$f":"IF(OR(Table_PI[[#This Row],[Hide: Baseline kW]]=\"\",Table_PI[[#This Row],[Hide: Baseline kW]]=0,ISTEXT(Table_PI[[#This Row],[Hide: Baseline kW]])),\"\",Table_PI[[#This Row],[Hide: Baseline kW]])","v":""},{"$f":"IF(OR(Table_PI[[#This Row],[Hide: Proposed kWh]]=\"\",Table_PI[[#This Row],[Hide: Proposed kWh]]=0,ISTEXT(Table_PI[[#This Row],[Hide: Proposed kWh]])),\"\",Table_PI[[#This Row],[Hide: Proposed kWh]])","v":""},{"$f":"IF(OR(Table_PI[[#This Row],[Hide: Proposed kW]]=\"\",Table_PI[[#This Row],[Hide: Proposed kW]]=0,ISTEXT(Table_PI[[#This Row],[Hide: Proposed kW]])),\"\",Table_PI[[#This Row],[Hide: Proposed kW]])","v":""},null,null,{"$f":"IF(OR(Table_PI[[#This Row],[Hide: Rebate]]=\"\",Table_PI[[#This Row],[Hide: Rebate]]=0,ISTEXT(Table_PI[[#This Row],[Hide: Rebate]])),\"\",Table_PI[[#This Row],[Hide: Rebate]])","v":""},null,{"$f":"IF(OR(Table_PI[[#This Row],[Hide: Incremental Cost]]=\"\",Table_PI[[#This Row],[Hide: Incremental Cost]]=0,ISTEXT(Table_PI[[#This Row],[Hide: Incremental Cost]])),\"\",Table_PI[[#This Row],[Hide: Incremental Cost]])","v":""},{"$f":"IFERROR(IF(Table_SummaryPI[[#This Row],[Incentive_Customer]]=\"\",\"\",ROUND(Table_SummaryPI[[#This Row],[Incentive_Customer]]/$AM$401*'Customer Information'!$BC$21,2)),0)","v":""},{"$f":"IF(OR(Table_PI[[#This Row],[Annual kWh]]=\"\",Table_PI[[#This Row],[Annual kWh]]=0,ISTEXT(Table_PI[[#This Row],[Annual kWh]])),\"\",Table_PI[[#This Row],[Annual kWh]])","v":""},{"$f":"IF(OR(Table_PI[[#This Row],[Peak kW]]=\"\",Table_PI[[#This Row],[Peak kW]]=0,ISTEXT(Table_PI[[#This Row],[Peak kW]])),\"\",Table_PI[[#This Row],[Peak kW]])","v":""},{"$f":"IF(Table_SummaryPI[[#This Row],[Line No.]]<>\"\",IF(AND(ISNUMBER(FIND(\"Chiller\",Table_SummaryPI[[#This Row],[P_MeasureOption1]],1)),Table_SummaryPI[[#This Row],[ProposedMeasureCategory]]=\"Air-Cooled (Water-Cooled Replacement)\"),$BD$29*Table_SummaryPI[[#This Row],[Size]]*Table_SummaryPI[[#This Row],[Quantity]]*Table_SummaryPI[[#This Row],[EFLHCooling]],\nIF(ISNUMBER(FIND(\"Dishwasher\",Table_SummaryPI[[#This Row],[ProposedMeasureCategory]],1)),$BH$29*Table_SummaryPI[[#This Row],[Quantity]],\nIF(ISNUMBER(FIND(\"Ice Maker\",Table_SummaryPI[[#This Row],[ProposedMeasureCategory]],1)),$BD$31*Table_SummaryPI[[#This Row],[Quantity]],\nIF(ISNUMBER(FIND(\"Spray Valve\",Table_SummaryPI[[#This Row],[ProposedMeasureCategory]],1)),$BH$31*Table_SummaryPI[[#This Row],[Quantity]],\n0)))),\"\")","v":""},{"$f":"IF(OR(Table_PI[[#This Row],[Hide: Electrification kWh]]=\"\",Table_PI[[#This Row],[Hide: Electrification kWh]]=0,ISTEXT(Table_PI[[#This Row],[Hide: Electrification kWh]])),\"\",Table_PI[[#This Row],[Hide: Electrification kWh]])","v":""},{"$f":"IF(OR(Table_PI[[#This Row],[Hide: Electrification GHG]]=\"\",Table_PI[[#This Row],[Hide: Electrification GHG]]=0,ISTEXT(Table_PI[[#This Row],[Hide: Electrification GHG]])),\"\",Table_PI[[#This Row],[Hide: Electrification GHG]])","v":""},{"$f":"IFERROR(IF(Table_SummaryPI[[#This Row],[kWhSavings]]=\"\",\"\",$BH$9*Table_SummaryPI[[#This Row],[kWhSavings]]),0)","v":""},{"$f":"IFERROR(IF(Table_SummaryPI[[#This Row],[kWhSavings]]=\"\",\"\",$BH$14*Table_SummaryPI[[#This Row],[kWhSavings]]),0)","v":""},{"$f":"IFERROR(IF(Table_SummaryPI[[#This Row],[kWhSavings]]=\"\",\"\",$BH$18*Table_SummaryPI[[#This Row],[kWhSavings]]),0)","v":""},{"$f":"IFERROR(IF(Table_SummaryPI[[#This Row],[kWhSavings]]=\"\",\"\",$BH$22*Table_SummaryPI[[#This Row],[kWhSavings]]),0)","v":""}]
[{"$f":"Table_PI[[#This Row],[Line No.]]","v":""},{"$f":"IF(Table_SummaryPI[[#This Row],[MeasureName]]<>\"\",NOT(ISTEXT(Table_PI[[#This Row],[Rebate]])),\"\")","v":""},{"$f":"IF(Table_SummaryPI[[#This Row],[MeassureCategory]]<>\"\",CONCATENATE(Table_SummaryPI[[#This Row],[MeassureCategory]],  \" - \", Table_SummaryPI[[#This Row],[ProposedMeasureCategory]],  \" - \", TEXT(Table_SummaryPI[[#This Row],[Size]],\"#,##0.00\"),\" \",Table_SummaryPI[[#This Row],[SizeUnit]]),\"\")","v":""},{"$f":"SUBSTITUTE(Table_PI[[#This Row],[Measure]],\"     \",\"\",1)","v":""},{"$f":"IF(Table_PI[[#This Row],[List 1]]<>\"\",Table_PI[[#This Row],[List 1]],\"\")","v":""},{"$f":"IF(Table_PI[[#This Row],[List 2]]<>\"\",Table_PI[[#This Row],[List 2]],\"\")","v":""},{"$f":"IF(Table_PI[[#This Row],[List 3]]<>\"\",Table_PI[[#This Row],[List 3]],\"\")","v":""},{"$f":"IF(Table_PI[[#This Row],[Manufacturer]]=\"\",\"\",Table_PI[[#This Row],[Manufacturer]])","v":""},{"$f":"IF(Table_PI[[#This Row],[Model Number]]=\"\",\"\",Table_PI[[#This Row],[Model Number]])","v":""},{"$f":"IF(Table_PI[[#This Row],[Serial Number(s)]]=\"\",\"\",Table_PI[[#This Row],[Serial Number(s)]])","v":""},null,{"$f":"IF(Table_PI[[#This Row],[Size]]=\"\",\"\",Table_PI[[#This Row],[Size]])","v":""},null,null,{"$f":"IF(Table_PI[[#This Row],[Input 1]]<>\"\",Table_PI[[#This Row],[Input 1]],\"\")","v":""},null,null,{"$f":"IF(Table_PI[[#This Row],[Input 2]]<>\"\",Table_PI[[#This Row],[Input 2]],\"\")","v":""},null,null,{"$f":"IF(Table_PI[[#This Row],[Input 3]]<>\"\",Table_PI[[#This Row],[Input 3]],\"\")","v":""},null,null,{"$f":"IF(Table_PI[[#This Row],[Input 4]]<>\"\",Table_PI[[#This Row],[Input 4]],\"\")","v":""},null,null,{"$f":"IF(Table_PI[[#This Row],[Input 4]]<>\"\",Table_PI[[#This Row],[Input 4]],\"\")","v":""},null,null,{"$f":"IF(Table_PI[[#This Row],[Input 4]]<>\"\",Table_PI[[#This Row],[Input 4]],\"\")","v":""},{"$f":"IF(Table_PI[[#This Row],[Quantity]]=\"\",\"\",Table_PI[[#This Row],[Quantity]])","v":""},{"$f":"IF(Table_PI[[#This Row],[Notes]]=\"\",\"\",Table_PI[[#This Row],[Notes]])","v":""},{"$f":"IF(OR(Table_PI[[#This Row],[Hide: Baseline kWh]]=\"\",Table_PI[[#This Row],[Hide: Baseline kWh]]=0,ISTEXT(Table_PI[[#This Row],[Hide: Baseline kWh]])),\"\",Table_PI[[#This Row],[Hide: Baseline kWh]])","v":""},{"$f":"IF(OR(Table_PI[[#This Row],[Hide: Baseline kW]]=\"\",Table_PI[[#This Row],[Hide: Baseline kW]]=0,ISTEXT(Table_PI[[#This Row],[Hide: Baseline kW]])),\"\",Table_PI[[#This Row],[Hide: Baseline kW]])","v":""},{"$f":"IF(OR(Table_PI[[#This Row],[Hide: Proposed kWh]]=\"\",Table_PI[[#This Row],[Hide: Proposed kWh]]=0,ISTEXT(Table_PI[[#This Row],[Hide: Proposed kWh]])),\"\",Table_PI[[#This Row],[Hide: Proposed kWh]])","v":""},{"$f":"IF(OR(Table_PI[[#This Row],[Hide: Proposed kW]]=\"\",Table_PI[[#This Row],[Hide: Proposed kW]]=0,ISTEXT(Table_PI[[#This Row],[Hide: Proposed kW]])),\"\",Table_PI[[#This Row],[Hide: Proposed kW]])","v":""},null,null,{"$f":"IF(OR(Table_PI[[#This Row],[Hide: Rebate]]=\"\",Table_PI[[#This Row],[Hide: Rebate]]=0,ISTEXT(Table_PI[[#This Row],[Hide: Rebate]])),\"\",Table_PI[[#This Row],[Hide: Rebate]])","v":""},null,{"$f":"IF(OR(Table_PI[[#This Row],[Hide: Incremental Cost]]=\"\",Table_PI[[#This Row],[Hide: Incremental Cost]]=0,ISTEXT(Table_PI[[#This Row],[Hide: Incremental Cost]])),\"\",Table_PI[[#This Row],[Hide: Incremental Cost]])","v":""},{"$f":"IFERROR(IF(Table_SummaryPI[[#This Row],[Incentive_Customer]]=\"\",\"\",ROUND(Table_SummaryPI[[#This Row],[Incentive_Customer]]/$AM$401*'Customer Information'!$BC$21,2)),0)","v":""},{"$f":"IF(OR(Table_PI[[#This Row],[Annual kWh]]=\"\",Table_PI[[#This Row],[Annual kWh]]=0,ISTEXT(Table_PI[[#This Row],[Annual kWh]])),\"\",Table_PI[[#This Row],[Annual kWh]])","v":""},{"$f":"IF(OR(Table_PI[[#This Row],[Peak kW]]=\"\",Table_PI[[#This Row],[Peak kW]]=0,ISTEXT(Table_PI[[#This Row],[Peak kW]])),\"\",Table_PI[[#This Row],[Peak kW]])","v":""},{"$f":"IF(Table_SummaryPI[[#This Row],[Line No.]]<>\"\",IF(AND(ISNUMBER(FIND(\"Chiller\",Table_SummaryPI[[#This Row],[P_MeasureOption1]],1)),Table_SummaryPI[[#This Row],[ProposedMeasureCategory]]=\"Air-Cooled (Water-Cooled Replacement)\"),$BD$29*Table_SummaryPI[[#This Row],[Size]]*Table_SummaryPI[[#This Row],[Quantity]]*Table_SummaryPI[[#This Row],[EFLHCooling]],\nIF(ISNUMBER(FIND(\"Dishwasher\",Table_SummaryPI[[#This Row],[ProposedMeasureCategory]],1)),$BH$29*Table_SummaryPI[[#This Row],[Quantity]],\nIF(ISNUMBER(FIND(\"Ice Maker\",Table_SummaryPI[[#This Row],[ProposedMeasureCategory]],1)),$BD$31*Table_SummaryPI[[#This Row],[Quantity]],\nIF(ISNUMBER(FIND(\"Spray Valve\",Table_SummaryPI[[#This Row],[ProposedMeasureCategory]],1)),$BH$31*Table_SummaryPI[[#This Row],[Quantity]],\n0)))),\"\")","v":""},{"$f":"IF(OR(Table_PI[[#This Row],[Hide: Electrification kWh]]=\"\",Table_PI[[#This Row],[Hide: Electrification kWh]]=0,ISTEXT(Table_PI[[#This Row],[Hide: Electrification kWh]])),\"\",Table_PI[[#This Row],[Hide: Electrification kWh]])","v":""},{"$f":"IF(OR(Table_PI[[#This Row],[Hide: Electrification GHG]]=\"\",Table_PI[[#This Row],[Hide: Electrification GHG]]=0,ISTEXT(Table_PI[[#This Row],[Hide: Electrification GHG]])),\"\",Table_PI[[#This Row],[Hide: Electrification GHG]])","v":""},{"$f":"IFERROR(IF(Table_SummaryPI[[#This Row],[kWhSavings]]=\"\",\"\",$BH$9*Table_SummaryPI[[#This Row],[kWhSavings]]),0)","v":""},{"$f":"IFERROR(IF(Table_SummaryPI[[#This Row],[kWhSavings]]=\"\",\"\",$BH$14*Table_SummaryPI[[#This Row],[kWhSavings]]),0)","v":""},{"$f":"IFERROR(IF(Table_SummaryPI[[#This Row],[kWhSavings]]=\"\",\"\",$BH$18*Table_SummaryPI[[#This Row],[kWhSavings]]),0)","v":""},{"$f":"IFERROR(IF(Table_SummaryPI[[#This Row],[kWhSavings]]=\"\",\"\",$BH$22*Table_SummaryPI[[#This Row],[kWhSavings]]),0)","v":""}]
[{"$f":"Table_PI[[#This Row],[Line No.]]","v":""},{"$f":"IF(Table_SummaryPI[[#This Row],[MeasureName]]<>\"\",NOT(ISTEXT(Table_PI[[#This Row],[Rebate]])),\"\")","v":""},{"$f":"IF(Table_SummaryPI[[#This Row],[MeassureCategory]]<>\"\",CONCATENATE(Table_SummaryPI[[#This Row],[MeassureCategory]],  \" - \", Table_SummaryPI[[#This Row],[ProposedMeasureCategory]],  \" - \", TEXT(Table_SummaryPI[[#This Row],[Size]],\"#,##0.00\"),\" \",Table_SummaryPI[[#This Row],[SizeUnit]]),\"\")","v":""},{"$f":"SUBSTITUTE(Table_PI[[#This Row],[Measure]],\"     \",\"\",1)","v":""},{"$f":"IF(Table_PI[[#This Row],[List 1]]<>\"\",Table_PI[[#This Row],[List 1]],\"\")","v":""},{"$f":"IF(Table_PI[[#This Row],[List 2]]<>\"\",Table_PI[[#This Row],[List 2]],\"\")","v":""},{"$f":"IF(Table_PI[[#This Row],[List 3]]<>\"\",Table_PI[[#This Row],[List 3]],\"\")","v":""},{"$f":"IF(Table_PI[[#This Row],[Manufacturer]]=\"\",\"\",Table_PI[[#This Row],[Manufacturer]])","v":""},{"$f":"IF(Table_PI[[#This Row],[Model Number]]=\"\",\"\",Table_PI[[#This Row],[Model Number]])","v":""},{"$f":"IF(Table_PI[[#This Row],[Serial Number(s)]]=\"\",\"\",Table_PI[[#This Row],[Serial Number(s)]])","v":""},null,{"$f":"IF(Table_PI[[#This Row],[Size]]=\"\",\"\",Table_PI[[#This Row],[Size]])","v":""},null,null,{"$f":"IF(Table_PI[[#This Row],[Input 1]]<>\"\",Table_PI[[#This Row],[Input 1]],\"\")","v":""},null,null,{"$f":"IF(Table_PI[[#This Row],[Input 2]]<>\"\",Table_PI[[#This Row],[Input 2]],\"\")","v":""},null,null,{"$f":"IF(Table_PI[[#This Row],[Input 3]]<>\"\",Table_PI[[#This Row],[Input 3]],\"\")","v":""},null,null,{"$f":"IF(Table_PI[[#This Row],[Input 4]]<>\"\",Table_PI[[#This Row],[Input 4]],\"\")","v":""},null,null,{"$f":"IF(Table_PI[[#This Row],[Input 4]]<>\"\",Table_PI[[#This Row],[Input 4]],\"\")","v":""},null,null,{"$f":"IF(Table_PI[[#This Row],[Input 4]]<>\"\",Table_PI[[#This Row],[Input 4]],\"\")","v":""},{"$f":"IF(Table_PI[[#This Row],[Quantity]]=\"\",\"\",Table_PI[[#This Row],[Quantity]])","v":""},{"$f":"IF(Table_PI[[#This Row],[Notes]]=\"\",\"\",Table_PI[[#This Row],[Notes]])","v":""},{"$f":"IF(OR(Table_PI[[#This Row],[Hide: Baseline kWh]]=\"\",Table_PI[[#This Row],[Hide: Baseline kWh]]=0,ISTEXT(Table_PI[[#This Row],[Hide: Baseline kWh]])),\"\",Table_PI[[#This Row],[Hide: Baseline kWh]])","v":""},{"$f":"IF(OR(Table_PI[[#This Row],[Hide: Baseline kW]]=\"\",Table_PI[[#This Row],[Hide: Baseline kW]]=0,ISTEXT(Table_PI[[#This Row],[Hide: Baseline kW]])),\"\",Table_PI[[#This Row],[Hide: Baseline kW]])","v":""},{"$f":"IF(OR(Table_PI[[#This Row],[Hide: Proposed kWh]]=\"\",Table_PI[[#This Row],[Hide: Proposed kWh]]=0,ISTEXT(Table_PI[[#This Row],[Hide: Proposed kWh]])),\"\",Table_PI[[#This Row],[Hide: Proposed kWh]])","v":""},{"$f":"IF(OR(Table_PI[[#This Row],[Hide: Proposed kW]]=\"\",Table_PI[[#This Row],[Hide: Proposed kW]]=0,ISTEXT(Table_PI[[#This Row],[Hide: Proposed kW]])),\"\",Table_PI[[#This Row],[Hide: Proposed kW]])","v":""},null,null,{"$f":"IF(OR(Table_PI[[#This Row],[Hide: Rebate]]=\"\",Table_PI[[#This Row],[Hide: Rebate]]=0,ISTEXT(Table_PI[[#This Row],[Hide: Rebate]])),\"\",Table_PI[[#This Row],[Hide: Rebate]])","v":""},null,{"$f":"IF(OR(Table_PI[[#This Row],[Hide: Incremental Cost]]=\"\",Table_PI[[#This Row],[Hide: Incremental Cost]]=0,ISTEXT(Table_PI[[#This Row],[Hide: Incremental Cost]])),\"\",Table_PI[[#This Row],[Hide: Incremental Cost]])","v":""},{"$f":"IFERROR(IF(Table_SummaryPI[[#This Row],[Incentive_Customer]]=\"\",\"\",ROUND(Table_SummaryPI[[#This Row],[Incentive_Customer]]/$AM$401*'Customer Information'!$BC$21,2)),0)","v":""},{"$f":"IF(OR(Table_PI[[#This Row],[Annual kWh]]=\"\",Table_PI[[#This Row],[Annual kWh]]=0,ISTEXT(Table_PI[[#This Row],[Annual kWh]])),\"\",Table_PI[[#This Row],[Annual kWh]])","v":""},{"$f":"IF(OR(Table_PI[[#This Row],[Peak kW]]=\"\",Table_PI[[#This Row],[Peak kW]]=0,ISTEXT(Table_PI[[#This Row],[Peak kW]])),\"\",Table_PI[[#This Row],[Peak kW]])","v":""},{"$f":"IF(Table_SummaryPI[[#This Row],[Line No.]]<>\"\",IF(AND(ISNUMBER(FIND(\"Chiller\",Table_SummaryPI[[#This Row],[P_MeasureOption1]],1)),Table_SummaryPI[[#This Row],[ProposedMeasureCategory]]=\"Air-Cooled (Water-Cooled Replacement)\"),$BD$29*Table_SummaryPI[[#This Row],[Size]]*Table_SummaryPI[[#This Row],[Quantity]]*Table_SummaryPI[[#This Row],[EFLHCooling]],\nIF(ISNUMBER(FIND(\"Dishwasher\",Table_SummaryPI[[#This Row],[ProposedMeasureCategory]],1)),$BH$29*Table_SummaryPI[[#This Row],[Quantity]],\nIF(ISNUMBER(FIND(\"Ice Maker\",Table_SummaryPI[[#This Row],[ProposedMeasureCategory]],1)),$BD$31*Table_SummaryPI[[#This Row],[Quantity]],\nIF(ISNUMBER(FIND(\"Spray Valve\",Table_SummaryPI[[#This Row],[ProposedMeasureCategory]],1)),$BH$31*Table_SummaryPI[[#This Row],[Quantity]],\n0)))),\"\")","v":""},{"$f":"IF(OR(Table_PI[[#This Row],[Hide: Electrification kWh]]=\"\",Table_PI[[#This Row],[Hide: Electrification kWh]]=0,ISTEXT(Table_PI[[#This Row],[Hide: Electrification kWh]])),\"\",Table_PI[[#This Row],[Hide: Electrification kWh]])","v":""},{"$f":"IF(OR(Table_PI[[#This Row],[Hide: Electrification GHG]]=\"\",Table_PI[[#This Row],[Hide: Electrification GHG]]=0,ISTEXT(Table_PI[[#This Row],[Hide: Electrification GHG]])),\"\",Table_PI[[#This Row],[Hide: Electrification GHG]])","v":""},{"$f":"IFERROR(IF(Table_SummaryPI[[#This Row],[kWhSavings]]=\"\",\"\",$BH$9*Table_SummaryPI[[#This Row],[kWhSavings]]),0)","v":""},{"$f":"IFERROR(IF(Table_SummaryPI[[#This Row],[kWhSavings]]=\"\",\"\",$BH$14*Table_SummaryPI[[#This Row],[kWhSavings]]),0)","v":""},{"$f":"IFERROR(IF(Table_SummaryPI[[#This Row],[kWhSavings]]=\"\",\"\",$BH$18*Table_SummaryPI[[#This Row],[kWhSavings]]),0)","v":""},{"$f":"IFERROR(IF(Table_SummaryPI[[#This Row],[kWhSavings]]=\"\",\"\",$BH$22*Table_SummaryPI[[#This Row],[kWhSavings]]),0)","v":""}]
[{"$f":"Table_PI[[#This Row],[Line No.]]","v":""},{"$f":"IF(Table_SummaryPI[[#This Row],[MeasureName]]<>\"\",NOT(ISTEXT(Table_PI[[#This Row],[Rebate]])),\"\")","v":""},{"$f":"IF(Table_SummaryPI[[#This Row],[MeassureCategory]]<>\"\",CONCATENATE(Table_SummaryPI[[#This Row],[MeassureCategory]],  \" - \", Table_SummaryPI[[#This Row],[ProposedMeasureCategory]],  \" - \", TEXT(Table_SummaryPI[[#This Row],[Size]],\"#,##0.00\"),\" \",Table_SummaryPI[[#This Row],[SizeUnit]]),\"\")","v":""},{"$f":"SUBSTITUTE(Table_PI[[#This Row],[Measure]],\"     \",\"\",1)","v":""},{"$f":"IF(Table_PI[[#This Row],[List 1]]<>\"\",Table_PI[[#This Row],[List 1]],\"\")","v":""},{"$f":"IF(Table_PI[[#This Row],[List 2]]<>\"\",Table_PI[[#This Row],[List 2]],\"\")","v":""},{"$f":"IF(Table_PI[[#This Row],[List 3]]<>\"\",Table_PI[[#This Row],[List 3]],\"\")","v":""},{"$f":"IF(Table_PI[[#This Row],[Manufacturer]]=\"\",\"\",Table_PI[[#This Row],[Manufacturer]])","v":""},{"$f":"IF(Table_PI[[#This Row],[Model Number]]=\"\",\"\",Table_PI[[#This Row],[Model Number]])","v":""},{"$f":"IF(Table_PI[[#This Row],[Serial Number(s)]]=\"\",\"\",Table_PI[[#This Row],[Serial Number(s)]])","v":""},null,{"$f":"IF(Table_PI[[#This Row],[Size]]=\"\",\"\",Table_PI[[#This Row],[Size]])","v":""},null,null,{"$f":"IF(Table_PI[[#This Row],[Input 1]]<>\"\",Table_PI[[#This Row],[Input 1]],\"\")","v":""},null,null,{"$f":"IF(Table_PI[[#This Row],[Input 2]]<>\"\",Table_PI[[#This Row],[Input 2]],\"\")","v":""},null,null,{"$f":"IF(Table_PI[[#This Row],[Input 3]]<>\"\",Table_PI[[#This Row],[Input 3]],\"\")","v":""},null,null,{"$f":"IF(Table_PI[[#This Row],[Input 4]]<>\"\",Table_PI[[#This Row],[Input 4]],\"\")","v":""},null,null,{"$f":"IF(Table_PI[[#This Row],[Input 4]]<>\"\",Table_PI[[#This Row],[Input 4]],\"\")","v":""},null,null,{"$f":"IF(Table_PI[[#This Row],[Input 4]]<>\"\",Table_PI[[#This Row],[Input 4]],\"\")","v":""},{"$f":"IF(Table_PI[[#This Row],[Quantity]]=\"\",\"\",Table_PI[[#This Row],[Quantity]])","v":""},{"$f":"IF(Table_PI[[#This Row],[Notes]]=\"\",\"\",Table_PI[[#This Row],[Notes]])","v":""},{"$f":"IF(OR(Table_PI[[#This Row],[Hide: Baseline kWh]]=\"\",Table_PI[[#This Row],[Hide: Baseline kWh]]=0,ISTEXT(Table_PI[[#This Row],[Hide: Baseline kWh]])),\"\",Table_PI[[#This Row],[Hide: Baseline kWh]])","v":""},{"$f":"IF(OR(Table_PI[[#This Row],[Hide: Baseline kW]]=\"\",Table_PI[[#This Row],[Hide: Baseline kW]]=0,ISTEXT(Table_PI[[#This Row],[Hide: Baseline kW]])),\"\",Table_PI[[#This Row],[Hide: Baseline kW]])","v":""},{"$f":"IF(OR(Table_PI[[#This Row],[Hide: Proposed kWh]]=\"\",Table_PI[[#This Row],[Hide: Proposed kWh]]=0,ISTEXT(Table_PI[[#This Row],[Hide: Proposed kWh]])),\"\",Table_PI[[#This Row],[Hide: Proposed kWh]])","v":""},{"$f":"IF(OR(Table_PI[[#This Row],[Hide: Proposed kW]]=\"\",Table_PI[[#This Row],[Hide: Proposed kW]]=0,ISTEXT(Table_PI[[#This Row],[Hide: Proposed kW]])),\"\",Table_PI[[#This Row],[Hide: Proposed kW]])","v":""},null,null,{"$f":"IF(OR(Table_PI[[#This Row],[Hide: Rebate]]=\"\",Table_PI[[#This Row],[Hide: Rebate]]=0,ISTEXT(Table_PI[[#This Row],[Hide: Rebate]])),\"\",Table_PI[[#This Row],[Hide: Rebate]])","v":""},null,{"$f":"IF(OR(Table_PI[[#This Row],[Hide: Incremental Cost]]=\"\",Table_PI[[#This Row],[Hide: Incremental Cost]]=0,ISTEXT(Table_PI[[#This Row],[Hide: Incremental Cost]])),\"\",Table_PI[[#This Row],[Hide: Incremental Cost]])","v":""},{"$f":"IFERROR(IF(Table_SummaryPI[[#This Row],[Incentive_Customer]]=\"\",\"\",ROUND(Table_SummaryPI[[#This Row],[Incentive_Customer]]/$AM$401*'Customer Information'!$BC$21,2)),0)","v":""},{"$f":"IF(OR(Table_PI[[#This Row],[Annual kWh]]=\"\",Table_PI[[#This Row],[Annual kWh]]=0,ISTEXT(Table_PI[[#This Row],[Annual kWh]])),\"\",Table_PI[[#This Row],[Annual kWh]])","v":""},{"$f":"IF(OR(Table_PI[[#This Row],[Peak kW]]=\"\",Table_PI[[#This Row],[Peak kW]]=0,ISTEXT(Table_PI[[#This Row],[Peak kW]])),\"\",Table_PI[[#This Row],[Peak kW]])","v":""},{"$f":"IF(Table_SummaryPI[[#This Row],[Line No.]]<>\"\",IF(AND(ISNUMBER(FIND(\"Chiller\",Table_SummaryPI[[#This Row],[P_MeasureOption1]],1)),Table_SummaryPI[[#This Row],[ProposedMeasureCategory]]=\"Air-Cooled (Water-Cooled Replacement)\"),$BD$29*Table_SummaryPI[[#This Row],[Size]]*Table_SummaryPI[[#This Row],[Quantity]]*Table_SummaryPI[[#This Row],[EFLHCooling]],\nIF(ISNUMBER(FIND(\"Dishwasher\",Table_SummaryPI[[#This Row],[ProposedMeasureCategory]],1)),$BH$29*Table_SummaryPI[[#This Row],[Quantity]],\nIF(ISNUMBER(FIND(\"Ice Maker\",Table_SummaryPI[[#This Row],[ProposedMeasureCategory]],1)),$BD$31*Table_SummaryPI[[#This Row],[Quantity]],\nIF(ISNUMBER(FIND(\"Spray Valve\",Table_SummaryPI[[#This Row],[ProposedMeasureCategory]],1)),$BH$31*Table_SummaryPI[[#This Row],[Quantity]],\n0)))),\"\")","v":""},{"$f":"IF(OR(Table_PI[[#This Row],[Hide: Electrification kWh]]=\"\",Table_PI[[#This Row],[Hide: Electrification kWh]]=0,ISTEXT(Table_PI[[#This Row],[Hide: Electrification kWh]])),\"\",Table_PI[[#This Row],[Hide: Electrification kWh]])","v":""},{"$f":"IF(OR(Table_PI[[#This Row],[Hide: Electrification GHG]]=\"\",Table_PI[[#This Row],[Hide: Electrification GHG]]=0,ISTEXT(Table_PI[[#This Row],[Hide: Electrification GHG]])),\"\",Table_PI[[#This Row],[Hide: Electrification GHG]])","v":""},{"$f":"IFERROR(IF(Table_SummaryPI[[#This Row],[kWhSavings]]=\"\",\"\",$BH$9*Table_SummaryPI[[#This Row],[kWhSavings]]),0)","v":""},{"$f":"IFERROR(IF(Table_SummaryPI[[#This Row],[kWhSavings]]=\"\",\"\",$BH$14*Table_SummaryPI[[#This Row],[kWhSavings]]),0)","v":""},{"$f":"IFERROR(IF(Table_SummaryPI[[#This Row],[kWhSavings]]=\"\",\"\",$BH$18*Table_SummaryPI[[#This Row],[kWhSavings]]),0)","v":""},{"$f":"IFERROR(IF(Table_SummaryPI[[#This Row],[kWhSavings]]=\"\",\"\",$BH$22*Table_SummaryPI[[#This Row],[kWhSavings]]),0)","v":""}]
[{"$f":"Table_PI[[#This Row],[Line No.]]","v":""},{"$f":"IF(Table_SummaryPI[[#This Row],[MeasureName]]<>\"\",NOT(ISTEXT(Table_PI[[#This Row],[Rebate]])),\"\")","v":""},{"$f":"IF(Table_SummaryPI[[#This Row],[MeassureCategory]]<>\"\",CONCATENATE(Table_SummaryPI[[#This Row],[MeassureCategory]],  \" - \", Table_SummaryPI[[#This Row],[ProposedMeasureCategory]],  \" - \", TEXT(Table_SummaryPI[[#This Row],[Size]],\"#,##0.00\"),\" \",Table_SummaryPI[[#This Row],[SizeUnit]]),\"\")","v":""},{"$f":"SUBSTITUTE(Table_PI[[#This Row],[Measure]],\"     \",\"\",1)","v":""},{"$f":"IF(Table_PI[[#This Row],[List 1]]<>\"\",Table_PI[[#This Row],[List 1]],\"\")","v":""},{"$f":"IF(Table_PI[[#This Row],[List 2]]<>\"\",Table_PI[[#This Row],[List 2]],\"\")","v":""},{"$f":"IF(Table_PI[[#This Row],[List 3]]<>\"\",Table_PI[[#This Row],[List 3]],\"\")","v":""},{"$f":"IF(Table_PI[[#This Row],[Manufacturer]]=\"\",\"\",Table_PI[[#This Row],[Manufacturer]])","v":""},{"$f":"IF(Table_PI[[#This Row],[Model Number]]=\"\",\"\",Table_PI[[#This Row],[Model Number]])","v":""},{"$f":"IF(Table_PI[[#This Row],[Serial Number(s)]]=\"\",\"\",Table_PI[[#This Row],[Serial Number(s)]])","v":""},null,{"$f":"IF(Table_PI[[#This Row],[Size]]=\"\",\"\",Table_PI[[#This Row],[Size]])","v":""},null,null,{"$f":"IF(Table_PI[[#This Row],[Input 1]]<>\"\",Table_PI[[#This Row],[Input 1]],\"\")","v":""},null,null,{"$f":"IF(Table_PI[[#This Row],[Input 2]]<>\"\",Table_PI[[#This Row],[Input 2]],\"\")","v":""},null,null,{"$f":"IF(Table_PI[[#This Row],[Input 3]]<>\"\",Table_PI[[#This Row],[Input 3]],\"\")","v":""},null,null,{"$f":"IF(Table_PI[[#This Row],[Input 4]]<>\"\",Table_PI[[#This Row],[Input 4]],\"\")","v":""},null,null,{"$f":"IF(Table_PI[[#This Row],[Input 4]]<>\"\",Table_PI[[#This Row],[Input 4]],\"\")","v":""},null,null,{"$f":"IF(Table_PI[[#This Row],[Input 4]]<>\"\",Table_PI[[#This Row],[Input 4]],\"\")","v":""},{"$f":"IF(Table_PI[[#This Row],[Quantity]]=\"\",\"\",Table_PI[[#This Row],[Quantity]])","v":""},{"$f":"IF(Table_PI[[#This Row],[Notes]]=\"\",\"\",Table_PI[[#This Row],[Notes]])","v":""},{"$f":"IF(OR(Table_PI[[#This Row],[Hide: Baseline kWh]]=\"\",Table_PI[[#This Row],[Hide: Baseline kWh]]=0,ISTEXT(Table_PI[[#This Row],[Hide: Baseline kWh]])),\"\",Table_PI[[#This Row],[Hide: Baseline kWh]])","v":""},{"$f":"IF(OR(Table_PI[[#This Row],[Hide: Baseline kW]]=\"\",Table_PI[[#This Row],[Hide: Baseline kW]]=0,ISTEXT(Table_PI[[#This Row],[Hide: Baseline kW]])),\"\",Table_PI[[#This Row],[Hide: Baseline kW]])","v":""},{"$f":"IF(OR(Table_PI[[#This Row],[Hide: Proposed kWh]]=\"\",Table_PI[[#This Row],[Hide: Proposed kWh]]=0,ISTEXT(Table_PI[[#This Row],[Hide: Proposed kWh]])),\"\",Table_PI[[#This Row],[Hide: Proposed kWh]])","v":""},{"$f":"IF(OR(Table_PI[[#This Row],[Hide: Proposed kW]]=\"\",Table_PI[[#This Row],[Hide: Proposed kW]]=0,ISTEXT(Table_PI[[#This Row],[Hide: Proposed kW]])),\"\",Table_PI[[#This Row],[Hide: Proposed kW]])","v":""},null,null,{"$f":"IF(OR(Table_PI[[#This Row],[Hide: Rebate]]=\"\",Table_PI[[#This Row],[Hide: Rebate]]=0,ISTEXT(Table_PI[[#This Row],[Hide: Rebate]])),\"\",Table_PI[[#This Row],[Hide: Rebate]])","v":""},null,{"$f":"IF(OR(Table_PI[[#This Row],[Hide: Incremental Cost]]=\"\",Table_PI[[#This Row],[Hide: Incremental Cost]]=0,ISTEXT(Table_PI[[#This Row],[Hide: Incremental Cost]])),\"\",Table_PI[[#This Row],[Hide: Incremental Cost]])","v":""},{"$f":"IFERROR(IF(Table_SummaryPI[[#This Row],[Incentive_Customer]]=\"\",\"\",ROUND(Table_SummaryPI[[#This Row],[Incentive_Customer]]/$AM$401*'Customer Information'!$BC$21,2)),0)","v":""},{"$f":"IF(OR(Table_PI[[#This Row],[Annual kWh]]=\"\",Table_PI[[#This Row],[Annual kWh]]=0,ISTEXT(Table_PI[[#This Row],[Annual kWh]])),\"\",Table_PI[[#This Row],[Annual kWh]])","v":""},{"$f":"IF(OR(Table_PI[[#This Row],[Peak kW]]=\"\",Table_PI[[#This Row],[Peak kW]]=0,ISTEXT(Table_PI[[#This Row],[Peak kW]])),\"\",Table_PI[[#This Row],[Peak kW]])","v":""},{"$f":"IF(Table_SummaryPI[[#This Row],[Line No.]]<>\"\",IF(AND(ISNUMBER(FIND(\"Chiller\",Table_SummaryPI[[#This Row],[P_MeasureOption1]],1)),Table_SummaryPI[[#This Row],[ProposedMeasureCategory]]=\"Air-Cooled (Water-Cooled Replacement)\"),$BD$29*Table_SummaryPI[[#This Row],[Size]]*Table_SummaryPI[[#This Row],[Quantity]]*Table_SummaryPI[[#This Row],[EFLHCooling]],\nIF(ISNUMBER(FIND(\"Dishwasher\",Table_SummaryPI[[#This Row],[ProposedMeasureCategory]],1)),$BH$29*Table_SummaryPI[[#This Row],[Quantity]],\nIF(ISNUMBER(FIND(\"Ice Maker\",Table_SummaryPI[[#This Row],[ProposedMeasureCategory]],1)),$BD$31*Table_SummaryPI[[#This Row],[Quantity]],\nIF(ISNUMBER(FIND(\"Spray Valve\",Table_SummaryPI[[#This Row],[ProposedMeasureCategory]],1)),$BH$31*Table_SummaryPI[[#This Row],[Quantity]],\n0)))),\"\")","v":""},{"$f":"IF(OR(Table_PI[[#This Row],[Hide: Electrification kWh]]=\"\",Table_PI[[#This Row],[Hide: Electrification kWh]]=0,ISTEXT(Table_PI[[#This Row],[Hide: Electrification kWh]])),\"\",Table_PI[[#This Row],[Hide: Electrification kWh]])","v":""},{"$f":"IF(OR(Table_PI[[#This Row],[Hide: Electrification GHG]]=\"\",Table_PI[[#This Row],[Hide: Electrification GHG]]=0,ISTEXT(Table_PI[[#This Row],[Hide: Electrification GHG]])),\"\",Table_PI[[#This Row],[Hide: Electrification GHG]])","v":""},{"$f":"IFERROR(IF(Table_SummaryPI[[#This Row],[kWhSavings]]=\"\",\"\",$BH$9*Table_SummaryPI[[#This Row],[kWhSavings]]),0)","v":""},{"$f":"IFERROR(IF(Table_SummaryPI[[#This Row],[kWhSavings]]=\"\",\"\",$BH$14*Table_SummaryPI[[#This Row],[kWhSavings]]),0)","v":""},{"$f":"IFERROR(IF(Table_SummaryPI[[#This Row],[kWhSavings]]=\"\",\"\",$BH$18*Table_SummaryPI[[#This Row],[kWhSavings]]),0)","v":""},{"$f":"IFERROR(IF(Table_SummaryPI[[#This Row],[kWhSavings]]=\"\",\"\",$BH$22*Table_SummaryPI[[#This Row],[kWhSavings]]),0)","v":""}]
[{"$f":"Table_PI[[#This Row],[Line No.]]","v":""},{"$f":"IF(Table_SummaryPI[[#This Row],[MeasureName]]<>\"\",NOT(ISTEXT(Table_PI[[#This Row],[Rebate]])),\"\")","v":""},{"$f":"IF(Table_SummaryPI[[#This Row],[MeassureCategory]]<>\"\",CONCATENATE(Table_SummaryPI[[#This Row],[MeassureCategory]],  \" - \", Table_SummaryPI[[#This Row],[ProposedMeasureCategory]],  \" - \", TEXT(Table_SummaryPI[[#This Row],[Size]],\"#,##0.00\"),\" \",Table_SummaryPI[[#This Row],[SizeUnit]]),\"\")","v":""},{"$f":"SUBSTITUTE(Table_PI[[#This Row],[Measure]],\"     \",\"\",1)","v":""},{"$f":"IF(Table_PI[[#This Row],[List 1]]<>\"\",Table_PI[[#This Row],[List 1]],\"\")","v":""},{"$f":"IF(Table_PI[[#This Row],[List 2]]<>\"\",Table_PI[[#This Row],[List 2]],\"\")","v":""},{"$f":"IF(Table_PI[[#This Row],[List 3]]<>\"\",Table_PI[[#This Row],[List 3]],\"\")","v":""},{"$f":"IF(Table_PI[[#This Row],[Manufacturer]]=\"\",\"\",Table_PI[[#This Row],[Manufacturer]])","v":""},{"$f":"IF(Table_PI[[#This Row],[Model Number]]=\"\",\"\",Table_PI[[#This Row],[Model Number]])","v":""},{"$f":"IF(Table_PI[[#This Row],[Serial Number(s)]]=\"\",\"\",Table_PI[[#This Row],[Serial Number(s)]])","v":""},null,{"$f":"IF(Table_PI[[#This Row],[Size]]=\"\",\"\",Table_PI[[#This Row],[Size]])","v":""},null,null,{"$f":"IF(Table_PI[[#This Row],[Input 1]]<>\"\",Table_PI[[#This Row],[Input 1]],\"\")","v":""},null,null,{"$f":"IF(Table_PI[[#This Row],[Input 2]]<>\"\",Table_PI[[#This Row],[Input 2]],\"\")","v":""},null,null,{"$f":"IF(Table_PI[[#This Row],[Input 3]]<>\"\",Table_PI[[#This Row],[Input 3]],\"\")","v":""},null,null,{"$f":"IF(Table_PI[[#This Row],[Input 4]]<>\"\",Table_PI[[#This Row],[Input 4]],\"\")","v":""},null,null,{"$f":"IF(Table_PI[[#This Row],[Input 4]]<>\"\",Table_PI[[#This Row],[Input 4]],\"\")","v":""},null,null,{"$f":"IF(Table_PI[[#This Row],[Input 4]]<>\"\",Table_PI[[#This Row],[Input 4]],\"\")","v":""},{"$f":"IF(Table_PI[[#This Row],[Quantity]]=\"\",\"\",Table_PI[[#This Row],[Quantity]])","v":""},{"$f":"IF(Table_PI[[#This Row],[Notes]]=\"\",\"\",Table_PI[[#This Row],[Notes]])","v":""},{"$f":"IF(OR(Table_PI[[#This Row],[Hide: Baseline kWh]]=\"\",Table_PI[[#This Row],[Hide: Baseline kWh]]=0,ISTEXT(Table_PI[[#This Row],[Hide: Baseline kWh]])),\"\",Table_PI[[#This Row],[Hide: Baseline kWh]])","v":""},{"$f":"IF(OR(Table_PI[[#This Row],[Hide: Baseline kW]]=\"\",Table_PI[[#This Row],[Hide: Baseline kW]]=0,ISTEXT(Table_PI[[#This Row],[Hide: Baseline kW]])),\"\",Table_PI[[#This Row],[Hide: Baseline kW]])","v":""},{"$f":"IF(OR(Table_PI[[#This Row],[Hide: Proposed kWh]]=\"\",Table_PI[[#This Row],[Hide: Proposed kWh]]=0,ISTEXT(Table_PI[[#This Row],[Hide: Proposed kWh]])),\"\",Table_PI[[#This Row],[Hide: Proposed kWh]])","v":""},{"$f":"IF(OR(Table_PI[[#This Row],[Hide: Proposed kW]]=\"\",Table_PI[[#This Row],[Hide: Proposed kW]]=0,ISTEXT(Table_PI[[#This Row],[Hide: Proposed kW]])),\"\",Table_PI[[#This Row],[Hide: Proposed kW]])","v":""},null,null,{"$f":"IF(OR(Table_PI[[#This Row],[Hide: Rebate]]=\"\",Table_PI[[#This Row],[Hide: Rebate]]=0,ISTEXT(Table_PI[[#This Row],[Hide: Rebate]])),\"\",Table_PI[[#This Row],[Hide: Rebate]])","v":""},null,{"$f":"IF(OR(Table_PI[[#This Row],[Hide: Incremental Cost]]=\"\",Table_PI[[#This Row],[Hide: Incremental Cost]]=0,ISTEXT(Table_PI[[#This Row],[Hide: Incremental Cost]])),\"\",Table_PI[[#This Row],[Hide: Incremental Cost]])","v":""},{"$f":"IFERROR(IF(Table_SummaryPI[[#This Row],[Incentive_Customer]]=\"\",\"\",ROUND(Table_SummaryPI[[#This Row],[Incentive_Customer]]/$AM$401*'Customer Information'!$BC$21,2)),0)","v":""},{"$f":"IF(OR(Table_PI[[#This Row],[Annual kWh]]=\"\",Table_PI[[#This Row],[Annual kWh]]=0,ISTEXT(Table_PI[[#This Row],[Annual kWh]])),\"\",Table_PI[[#This Row],[Annual kWh]])","v":""},{"$f":"IF(OR(Table_PI[[#This Row],[Peak kW]]=\"\",Table_PI[[#This Row],[Peak kW]]=0,ISTEXT(Table_PI[[#This Row],[Peak kW]])),\"\",Table_PI[[#This Row],[Peak kW]])","v":""},{"$f":"IF(Table_SummaryPI[[#This Row],[Line No.]]<>\"\",IF(AND(ISNUMBER(FIND(\"Chiller\",Table_SummaryPI[[#This Row],[P_MeasureOption1]],1)),Table_SummaryPI[[#This Row],[ProposedMeasureCategory]]=\"Air-Cooled (Water-Cooled Replacement)\"),$BD$29*Table_SummaryPI[[#This Row],[Size]]*Table_SummaryPI[[#This Row],[Quantity]]*Table_SummaryPI[[#This Row],[EFLHCooling]],\nIF(ISNUMBER(FIND(\"Dishwasher\",Table_SummaryPI[[#This Row],[ProposedMeasureCategory]],1)),$BH$29*Table_SummaryPI[[#This Row],[Quantity]],\nIF(ISNUMBER(FIND(\"Ice Maker\",Table_SummaryPI[[#This Row],[ProposedMeasureCategory]],1)),$BD$31*Table_SummaryPI[[#This Row],[Quantity]],\nIF(ISNUMBER(FIND(\"Spray Valve\",Table_SummaryPI[[#This Row],[ProposedMeasureCategory]],1)),$BH$31*Table_SummaryPI[[#This Row],[Quantity]],\n0)))),\"\")","v":""},{"$f":"IF(OR(Table_PI[[#This Row],[Hide: Electrification kWh]]=\"\",Table_PI[[#This Row],[Hide: Electrification kWh]]=0,ISTEXT(Table_PI[[#This Row],[Hide: Electrification kWh]])),\"\",Table_PI[[#This Row],[Hide: Electrification kWh]])","v":""},{"$f":"IF(OR(Table_PI[[#This Row],[Hide: Electrification GHG]]=\"\",Table_PI[[#This Row],[Hide: Electrification GHG]]=0,ISTEXT(Table_PI[[#This Row],[Hide: Electrification GHG]])),\"\",Table_PI[[#This Row],[Hide: Electrification GHG]])","v":""},{"$f":"IFERROR(IF(Table_SummaryPI[[#This Row],[kWhSavings]]=\"\",\"\",$BH$9*Table_SummaryPI[[#This Row],[kWhSavings]]),0)","v":""},{"$f":"IFERROR(IF(Table_SummaryPI[[#This Row],[kWhSavings]]=\"\",\"\",$BH$14*Table_SummaryPI[[#This Row],[kWhSavings]]),0)","v":""},{"$f":"IFERROR(IF(Table_SummaryPI[[#This Row],[kWhSavings]]=\"\",\"\",$BH$18*Table_SummaryPI[[#This Row],[kWhSavings]]),0)","v":""},{"$f":"IFERROR(IF(Table_SummaryPI[[#This Row],[kWhSavings]]=\"\",\"\",$BH$22*Table_SummaryPI[[#This Row],[kWhSavings]]),0)","v":""}]
[{"$f":"Table_PI[[#This Row],[Line No.]]","v":""},{"$f":"IF(Table_SummaryPI[[#This Row],[MeasureName]]<>\"\",NOT(ISTEXT(Table_PI[[#This Row],[Rebate]])),\"\")","v":""},{"$f":"IF(Table_SummaryPI[[#This Row],[MeassureCategory]]<>\"\",CONCATENATE(Table_SummaryPI[[#This Row],[MeassureCategory]],  \" - \", Table_SummaryPI[[#This Row],[ProposedMeasureCategory]],  \" - \", TEXT(Table_SummaryPI[[#This Row],[Size]],\"#,##0.00\"),\" \",Table_SummaryPI[[#This Row],[SizeUnit]]),\"\")","v":""},{"$f":"SUBSTITUTE(Table_PI[[#This Row],[Measure]],\"     \",\"\",1)","v":""},{"$f":"IF(Table_PI[[#This Row],[List 1]]<>\"\",Table_PI[[#This Row],[List 1]],\"\")","v":""},{"$f":"IF(Table_PI[[#This Row],[List 2]]<>\"\",Table_PI[[#This Row],[List 2]],\"\")","v":""},{"$f":"IF(Table_PI[[#This Row],[List 3]]<>\"\",Table_PI[[#This Row],[List 3]],\"\")","v":""},{"$f":"IF(Table_PI[[#This Row],[Manufacturer]]=\"\",\"\",Table_PI[[#This Row],[Manufacturer]])","v":""},{"$f":"IF(Table_PI[[#This Row],[Model Number]]=\"\",\"\",Table_PI[[#This Row],[Model Number]])","v":""},{"$f":"IF(Table_PI[[#This Row],[Serial Number(s)]]=\"\",\"\",Table_PI[[#This Row],[Serial Number(s)]])","v":""},null,{"$f":"IF(Table_PI[[#This Row],[Size]]=\"\",\"\",Table_PI[[#This Row],[Size]])","v":""},null,null,{"$f":"IF(Table_PI[[#This Row],[Input 1]]<>\"\",Table_PI[[#This Row],[Input 1]],\"\")","v":""},null,null,{"$f":"IF(Table_PI[[#This Row],[Input 2]]<>\"\",Table_PI[[#This Row],[Input 2]],\"\")","v":""},null,null,{"$f":"IF(Table_PI[[#This Row],[Input 3]]<>\"\",Table_PI[[#This Row],[Input 3]],\"\")","v":""},null,null,{"$f":"IF(Table_PI[[#This Row],[Input 4]]<>\"\",Table_PI[[#This Row],[Input 4]],\"\")","v":""},null,null,{"$f":"IF(Table_PI[[#This Row],[Input 4]]<>\"\",Table_PI[[#This Row],[Input 4]],\"\")","v":""},null,null,{"$f":"IF(Table_PI[[#This Row],[Input 4]]<>\"\",Table_PI[[#This Row],[Input 4]],\"\")","v":""},{"$f":"IF(Table_PI[[#This Row],[Quantity]]=\"\",\"\",Table_PI[[#This Row],[Quantity]])","v":""},{"$f":"IF(Table_PI[[#This Row],[Notes]]=\"\",\"\",Table_PI[[#This Row],[Notes]])","v":""},{"$f":"IF(OR(Table_PI[[#This Row],[Hide: Baseline kWh]]=\"\",Table_PI[[#This Row],[Hide: Baseline kWh]]=0,ISTEXT(Table_PI[[#This Row],[Hide: Baseline kWh]])),\"\",Table_PI[[#This Row],[Hide: Baseline kWh]])","v":""},{"$f":"IF(OR(Table_PI[[#This Row],[Hide: Baseline kW]]=\"\",Table_PI[[#This Row],[Hide: Baseline kW]]=0,ISTEXT(Table_PI[[#This Row],[Hide: Baseline kW]])),\"\",Table_PI[[#This Row],[Hide: Baseline kW]])","v":""},{"$f":"IF(OR(Table_PI[[#This Row],[Hide: Proposed kWh]]=\"\",Table_PI[[#This Row],[Hide: Proposed kWh]]=0,ISTEXT(Table_PI[[#This Row],[Hide: Proposed kWh]])),\"\",Table_PI[[#This Row],[Hide: Proposed kWh]])","v":""},{"$f":"IF(OR(Table_PI[[#This Row],[Hide: Proposed kW]]=\"\",Table_PI[[#This Row],[Hide: Proposed kW]]=0,ISTEXT(Table_PI[[#This Row],[Hide: Proposed kW]])),\"\",Table_PI[[#This Row],[Hide: Proposed kW]])","v":""},null,null,{"$f":"IF(OR(Table_PI[[#This Row],[Hide: Rebate]]=\"\",Table_PI[[#This Row],[Hide: Rebate]]=0,ISTEXT(Table_PI[[#This Row],[Hide: Rebate]])),\"\",Table_PI[[#This Row],[Hide: Rebate]])","v":""},null,{"$f":"IF(OR(Table_PI[[#This Row],[Hide: Incremental Cost]]=\"\",Table_PI[[#This Row],[Hide: Incremental Cost]]=0,ISTEXT(Table_PI[[#This Row],[Hide: Incremental Cost]])),\"\",Table_PI[[#This Row],[Hide: Incremental Cost]])","v":""},{"$f":"IFERROR(IF(Table_SummaryPI[[#This Row],[Incentive_Customer]]=\"\",\"\",ROUND(Table_SummaryPI[[#This Row],[Incentive_Customer]]/$AM$401*'Customer Information'!$BC$21,2)),0)","v":""},{"$f":"IF(OR(Table_PI[[#This Row],[Annual kWh]]=\"\",Table_PI[[#This Row],[Annual kWh]]=0,ISTEXT(Table_PI[[#This Row],[Annual kWh]])),\"\",Table_PI[[#This Row],[Annual kWh]])","v":""},{"$f":"IF(OR(Table_PI[[#This Row],[Peak kW]]=\"\",Table_PI[[#This Row],[Peak kW]]=0,ISTEXT(Table_PI[[#This Row],[Peak kW]])),\"\",Table_PI[[#This Row],[Peak kW]])","v":""},{"$f":"IF(Table_SummaryPI[[#This Row],[Line No.]]<>\"\",IF(AND(ISNUMBER(FIND(\"Chiller\",Table_SummaryPI[[#This Row],[P_MeasureOption1]],1)),Table_SummaryPI[[#This Row],[ProposedMeasureCategory]]=\"Air-Cooled (Water-Cooled Replacement)\"),$BD$29*Table_SummaryPI[[#This Row],[Size]]*Table_SummaryPI[[#This Row],[Quantity]]*Table_SummaryPI[[#This Row],[EFLHCooling]],\nIF(ISNUMBER(FIND(\"Dishwasher\",Table_SummaryPI[[#This Row],[ProposedMeasureCategory]],1)),$BH$29*Table_SummaryPI[[#This Row],[Quantity]],\nIF(ISNUMBER(FIND(\"Ice Maker\",Table_SummaryPI[[#This Row],[ProposedMeasureCategory]],1)),$BD$31*Table_SummaryPI[[#This Row],[Quantity]],\nIF(ISNUMBER(FIND(\"Spray Valve\",Table_SummaryPI[[#This Row],[ProposedMeasureCategory]],1)),$BH$31*Table_SummaryPI[[#This Row],[Quantity]],\n0)))),\"\")","v":""},{"$f":"IF(OR(Table_PI[[#This Row],[Hide: Electrification kWh]]=\"\",Table_PI[[#This Row],[Hide: Electrification kWh]]=0,ISTEXT(Table_PI[[#This Row],[Hide: Electrification kWh]])),\"\",Table_PI[[#This Row],[Hide: Electrification kWh]])","v":""},{"$f":"IF(OR(Table_PI[[#This Row],[Hide: Electrification GHG]]=\"\",Table_PI[[#This Row],[Hide: Electrification GHG]]=0,ISTEXT(Table_PI[[#This Row],[Hide: Electrification GHG]])),\"\",Table_PI[[#This Row],[Hide: Electrification GHG]])","v":""},{"$f":"IFERROR(IF(Table_SummaryPI[[#This Row],[kWhSavings]]=\"\",\"\",$BH$9*Table_SummaryPI[[#This Row],[kWhSavings]]),0)","v":""},{"$f":"IFERROR(IF(Table_SummaryPI[[#This Row],[kWhSavings]]=\"\",\"\",$BH$14*Table_SummaryPI[[#This Row],[kWhSavings]]),0)","v":""},{"$f":"IFERROR(IF(Table_SummaryPI[[#This Row],[kWhSavings]]=\"\",\"\",$BH$18*Table_SummaryPI[[#This Row],[kWhSavings]]),0)","v":""},{"$f":"IFERROR(IF(Table_SummaryPI[[#This Row],[kWhSavings]]=\"\",\"\",$BH$22*Table_SummaryPI[[#This Row],[kWhSavings]]),0)","v":""}]
[{"$f":"Table_PI[[#This Row],[Line No.]]","v":""},{"$f":"IF(Table_SummaryPI[[#This Row],[MeasureName]]<>\"\",NOT(ISTEXT(Table_PI[[#This Row],[Rebate]])),\"\")","v":""},{"$f":"IF(Table_SummaryPI[[#This Row],[MeassureCategory]]<>\"\",CONCATENATE(Table_SummaryPI[[#This Row],[MeassureCategory]],  \" - \", Table_SummaryPI[[#This Row],[ProposedMeasureCategory]],  \" - \", TEXT(Table_SummaryPI[[#This Row],[Size]],\"#,##0.00\"),\" \",Table_SummaryPI[[#This Row],[SizeUnit]]),\"\")","v":""},{"$f":"SUBSTITUTE(Table_PI[[#This Row],[Measure]],\"     \",\"\",1)","v":""},{"$f":"IF(Table_PI[[#This Row],[List 1]]<>\"\",Table_PI[[#This Row],[List 1]],\"\")","v":""},{"$f":"IF(Table_PI[[#This Row],[List 2]]<>\"\",Table_PI[[#This Row],[List 2]],\"\")","v":""},{"$f":"IF(Table_PI[[#This Row],[List 3]]<>\"\",Table_PI[[#This Row],[List 3]],\"\")","v":""},{"$f":"IF(Table_PI[[#This Row],[Manufacturer]]=\"\",\"\",Table_PI[[#This Row],[Manufacturer]])","v":""},{"$f":"IF(Table_PI[[#This Row],[Model Number]]=\"\",\"\",Table_PI[[#This Row],[Model Number]])","v":""},{"$f":"IF(Table_PI[[#This Row],[Serial Number(s)]]=\"\",\"\",Table_PI[[#This Row],[Serial Number(s)]])","v":""},null,{"$f":"IF(Table_PI[[#This Row],[Size]]=\"\",\"\",Table_PI[[#This Row],[Size]])","v":""},null,null,{"$f":"IF(Table_PI[[#This Row],[Input 1]]<>\"\",Table_PI[[#This Row],[Input 1]],\"\")","v":""},null,null,{"$f":"IF(Table_PI[[#This Row],[Input 2]]<>\"\",Table_PI[[#This Row],[Input 2]],\"\")","v":""},null,null,{"$f":"IF(Table_PI[[#This Row],[Input 3]]<>\"\",Table_PI[[#This Row],[Input 3]],\"\")","v":""},null,null,{"$f":"IF(Table_PI[[#This Row],[Input 4]]<>\"\",Table_PI[[#This Row],[Input 4]],\"\")","v":""},null,null,{"$f":"IF(Table_PI[[#This Row],[Input 4]]<>\"\",Table_PI[[#This Row],[Input 4]],\"\")","v":""},null,null,{"$f":"IF(Table_PI[[#This Row],[Input 4]]<>\"\",Table_PI[[#This Row],[Input 4]],\"\")","v":""},{"$f":"IF(Table_PI[[#This Row],[Quantity]]=\"\",\"\",Table_PI[[#This Row],[Quantity]])","v":""},{"$f":"IF(Table_PI[[#This Row],[Notes]]=\"\",\"\",Table_PI[[#This Row],[Notes]])","v":""},{"$f":"IF(OR(Table_PI[[#This Row],[Hide: Baseline kWh]]=\"\",Table_PI[[#This Row],[Hide: Baseline kWh]]=0,ISTEXT(Table_PI[[#This Row],[Hide: Baseline kWh]])),\"\",Table_PI[[#This Row],[Hide: Baseline kWh]])","v":""},{"$f":"IF(OR(Table_PI[[#This Row],[Hide: Baseline kW]]=\"\",Table_PI[[#This Row],[Hide: Baseline kW]]=0,ISTEXT(Table_PI[[#This Row],[Hide: Baseline kW]])),\"\",Table_PI[[#This Row],[Hide: Baseline kW]])","v":""},{"$f":"IF(OR(Table_PI[[#This Row],[Hide: Proposed kWh]]=\"\",Table_PI[[#This Row],[Hide: Proposed kWh]]=0,ISTEXT(Table_PI[[#This Row],[Hide: Proposed kWh]])),\"\",Table_PI[[#This Row],[Hide: Proposed kWh]])","v":""},{"$f":"IF(OR(Table_PI[[#This Row],[Hide: Proposed kW]]=\"\",Table_PI[[#This Row],[Hide: Proposed kW]]=0,ISTEXT(Table_PI[[#This Row],[Hide: Proposed kW]])),\"\",Table_PI[[#This Row],[Hide: Proposed kW]])","v":""},null,null,{"$f":"IF(OR(Table_PI[[#This Row],[Hide: Rebate]]=\"\",Table_PI[[#This Row],[Hide: Rebate]]=0,ISTEXT(Table_PI[[#This Row],[Hide: Rebate]])),\"\",Table_PI[[#This Row],[Hide: Rebate]])","v":""},null,{"$f":"IF(OR(Table_PI[[#This Row],[Hide: Incremental Cost]]=\"\",Table_PI[[#This Row],[Hide: Incremental Cost]]=0,ISTEXT(Table_PI[[#This Row],[Hide: Incremental Cost]])),\"\",Table_PI[[#This Row],[Hide: Incremental Cost]])","v":""},{"$f":"IFERROR(IF(Table_SummaryPI[[#This Row],[Incentive_Customer]]=\"\",\"\",ROUND(Table_SummaryPI[[#This Row],[Incentive_Customer]]/$AM$401*'Customer Information'!$BC$21,2)),0)","v":""},{"$f":"IF(OR(Table_PI[[#This Row],[Annual kWh]]=\"\",Table_PI[[#This Row],[Annual kWh]]=0,ISTEXT(Table_PI[[#This Row],[Annual kWh]])),\"\",Table_PI[[#This Row],[Annual kWh]])","v":""},{"$f":"IF(OR(Table_PI[[#This Row],[Peak kW]]=\"\",Table_PI[[#This Row],[Peak kW]]=0,ISTEXT(Table_PI[[#This Row],[Peak kW]])),\"\",Table_PI[[#This Row],[Peak kW]])","v":""},{"$f":"IF(Table_SummaryPI[[#This Row],[Line No.]]<>\"\",IF(AND(ISNUMBER(FIND(\"Chiller\",Table_SummaryPI[[#This Row],[P_MeasureOption1]],1)),Table_SummaryPI[[#This Row],[ProposedMeasureCategory]]=\"Air-Cooled (Water-Cooled Replacement)\"),$BD$29*Table_SummaryPI[[#This Row],[Size]]*Table_SummaryPI[[#This Row],[Quantity]]*Table_SummaryPI[[#This Row],[EFLHCooling]],\nIF(ISNUMBER(FIND(\"Dishwasher\",Table_SummaryPI[[#This Row],[ProposedMeasureCategory]],1)),$BH$29*Table_SummaryPI[[#This Row],[Quantity]],\nIF(ISNUMBER(FIND(\"Ice Maker\",Table_SummaryPI[[#This Row],[ProposedMeasureCategory]],1)),$BD$31*Table_SummaryPI[[#This Row],[Quantity]],\nIF(ISNUMBER(FIND(\"Spray Valve\",Table_SummaryPI[[#This Row],[ProposedMeasureCategory]],1)),$BH$31*Table_SummaryPI[[#This Row],[Quantity]],\n0)))),\"\")","v":""},{"$f":"IF(OR(Table_PI[[#This Row],[Hide: Electrification kWh]]=\"\",Table_PI[[#This Row],[Hide: Electrification kWh]]=0,ISTEXT(Table_PI[[#This Row],[Hide: Electrification kWh]])),\"\",Table_PI[[#This Row],[Hide: Electrification kWh]])","v":""},{"$f":"IF(OR(Table_PI[[#This Row],[Hide: Electrification GHG]]=\"\",Table_PI[[#This Row],[Hide: Electrification GHG]]=0,ISTEXT(Table_PI[[#This Row],[Hide: Electrification GHG]])),\"\",Table_PI[[#This Row],[Hide: Electrification GHG]])","v":""},{"$f":"IFERROR(IF(Table_SummaryPI[[#This Row],[kWhSavings]]=\"\",\"\",$BH$9*Table_SummaryPI[[#This Row],[kWhSavings]]),0)","v":""},{"$f":"IFERROR(IF(Table_SummaryPI[[#This Row],[kWhSavings]]=\"\",\"\",$BH$14*Table_SummaryPI[[#This Row],[kWhSavings]]),0)","v":""},{"$f":"IFERROR(IF(Table_SummaryPI[[#This Row],[kWhSavings]]=\"\",\"\",$BH$18*Table_SummaryPI[[#This Row],[kWhSavings]]),0)","v":""},{"$f":"IFERROR(IF(Table_SummaryPI[[#This Row],[kWhSavings]]=\"\",\"\",$BH$22*Table_SummaryPI[[#This Row],[kWhSavings]]),0)","v":""}]
[{"$f":"Table_PI[[#This Row],[Line No.]]","v":""},{"$f":"IF(Table_SummaryPI[[#This Row],[MeasureName]]<>\"\",NOT(ISTEXT(Table_PI[[#This Row],[Rebate]])),\"\")","v":""},{"$f":"IF(Table_SummaryPI[[#This Row],[MeassureCategory]]<>\"\",CONCATENATE(Table_SummaryPI[[#This Row],[MeassureCategory]],  \" - \", Table_SummaryPI[[#This Row],[ProposedMeasureCategory]],  \" - \", TEXT(Table_SummaryPI[[#This Row],[Size]],\"#,##0.00\"),\" \",Table_SummaryPI[[#This Row],[SizeUnit]]),\"\")","v":""},{"$f":"SUBSTITUTE(Table_PI[[#This Row],[Measure]],\"     \",\"\",1)","v":""},{"$f":"IF(Table_PI[[#This Row],[List 1]]<>\"\",Table_PI[[#This Row],[List 1]],\"\")","v":""},{"$f":"IF(Table_PI[[#This Row],[List 2]]<>\"\",Table_PI[[#This Row],[List 2]],\"\")","v":""},{"$f":"IF(Table_PI[[#This Row],[List 3]]<>\"\",Table_PI[[#This Row],[List 3]],\"\")","v":""},{"$f":"IF(Table_PI[[#This Row],[Manufacturer]]=\"\",\"\",Table_PI[[#This Row],[Manufacturer]])","v":""},{"$f":"IF(Table_PI[[#This Row],[Model Number]]=\"\",\"\",Table_PI[[#This Row],[Model Number]])","v":""},{"$f":"IF(Table_PI[[#This Row],[Serial Number(s)]]=\"\",\"\",Table_PI[[#This Row],[Serial Number(s)]])","v":""},null,{"$f":"IF(Table_PI[[#This Row],[Size]]=\"\",\"\",Table_PI[[#This Row],[Size]])","v":""},null,null,{"$f":"IF(Table_PI[[#This Row],[Input 1]]<>\"\",Table_PI[[#This Row],[Input 1]],\"\")","v":""},null,null,{"$f":"IF(Table_PI[[#This Row],[Input 2]]<>\"\",Table_PI[[#This Row],[Input 2]],\"\")","v":""},null,null,{"$f":"IF(Table_PI[[#This Row],[Input 3]]<>\"\",Table_PI[[#This Row],[Input 3]],\"\")","v":""},null,null,{"$f":"IF(Table_PI[[#This Row],[Input 4]]<>\"\",Table_PI[[#This Row],[Input 4]],\"\")","v":""},null,null,{"$f":"IF(Table_PI[[#This Row],[Input 4]]<>\"\",Table_PI[[#This Row],[Input 4]],\"\")","v":""},null,null,{"$f":"IF(Table_PI[[#This Row],[Input 4]]<>\"\",Table_PI[[#This Row],[Input 4]],\"\")","v":""},{"$f":"IF(Table_PI[[#This Row],[Quantity]]=\"\",\"\",Table_PI[[#This Row],[Quantity]])","v":""},{"$f":"IF(Table_PI[[#This Row],[Notes]]=\"\",\"\",Table_PI[[#This Row],[Notes]])","v":""},{"$f":"IF(OR(Table_PI[[#This Row],[Hide: Baseline kWh]]=\"\",Table_PI[[#This Row],[Hide: Baseline kWh]]=0,ISTEXT(Table_PI[[#This Row],[Hide: Baseline kWh]])),\"\",Table_PI[[#This Row],[Hide: Baseline kWh]])","v":""},{"$f":"IF(OR(Table_PI[[#This Row],[Hide: Baseline kW]]=\"\",Table_PI[[#This Row],[Hide: Baseline kW]]=0,ISTEXT(Table_PI[[#This Row],[Hide: Baseline kW]])),\"\",Table_PI[[#This Row],[Hide: Baseline kW]])","v":""},{"$f":"IF(OR(Table_PI[[#This Row],[Hide: Proposed kWh]]=\"\",Table_PI[[#This Row],[Hide: Proposed kWh]]=0,ISTEXT(Table_PI[[#This Row],[Hide: Proposed kWh]])),\"\",Table_PI[[#This Row],[Hide: Proposed kWh]])","v":""},{"$f":"IF(OR(Table_PI[[#This Row],[Hide: Proposed kW]]=\"\",Table_PI[[#This Row],[Hide: Proposed kW]]=0,ISTEXT(Table_PI[[#This Row],[Hide: Proposed kW]])),\"\",Table_PI[[#This Row],[Hide: Proposed kW]])","v":""},null,null,{"$f":"IF(OR(Table_PI[[#This Row],[Hide: Rebate]]=\"\",Table_PI[[#This Row],[Hide: Rebate]]=0,ISTEXT(Table_PI[[#This Row],[Hide: Rebate]])),\"\",Table_PI[[#This Row],[Hide: Rebate]])","v":""},null,{"$f":"IF(OR(Table_PI[[#This Row],[Hide: Incremental Cost]]=\"\",Table_PI[[#This Row],[Hide: Incremental Cost]]=0,ISTEXT(Table_PI[[#This Row],[Hide: Incremental Cost]])),\"\",Table_PI[[#This Row],[Hide: Incremental Cost]])","v":""},{"$f":"IFERROR(IF(Table_SummaryPI[[#This Row],[Incentive_Customer]]=\"\",\"\",ROUND(Table_SummaryPI[[#This Row],[Incentive_Customer]]/$AM$401*'Customer Information'!$BC$21,2)),0)","v":""},{"$f":"IF(OR(Table_PI[[#This Row],[Annual kWh]]=\"\",Table_PI[[#This Row],[Annual kWh]]=0,ISTEXT(Table_PI[[#This Row],[Annual kWh]])),\"\",Table_PI[[#This Row],[Annual kWh]])","v":""},{"$f":"IF(OR(Table_PI[[#This Row],[Peak kW]]=\"\",Table_PI[[#This Row],[Peak kW]]=0,ISTEXT(Table_PI[[#This Row],[Peak kW]])),\"\",Table_PI[[#This Row],[Peak kW]])","v":""},{"$f":"IF(Table_SummaryPI[[#This Row],[Line No.]]<>\"\",IF(AND(ISNUMBER(FIND(\"Chiller\",Table_SummaryPI[[#This Row],[P_MeasureOption1]],1)),Table_SummaryPI[[#This Row],[ProposedMeasureCategory]]=\"Air-Cooled (Water-Cooled Replacement)\"),$BD$29*Table_SummaryPI[[#This Row],[Size]]*Table_SummaryPI[[#This Row],[Quantity]]*Table_SummaryPI[[#This Row],[EFLHCooling]],\nIF(ISNUMBER(FIND(\"Dishwasher\",Table_SummaryPI[[#This Row],[ProposedMeasureCategory]],1)),$BH$29*Table_SummaryPI[[#This Row],[Quantity]],\nIF(ISNUMBER(FIND(\"Ice Maker\",Table_SummaryPI[[#This Row],[ProposedMeasureCategory]],1)),$BD$31*Table_SummaryPI[[#This Row],[Quantity]],\nIF(ISNUMBER(FIND(\"Spray Valve\",Table_SummaryPI[[#This Row],[ProposedMeasureCategory]],1)),$BH$31*Table_SummaryPI[[#This Row],[Quantity]],\n0)))),\"\")","v":""},{"$f":"IF(OR(Table_PI[[#This Row],[Hide: Electrification kWh]]=\"\",Table_PI[[#This Row],[Hide: Electrification kWh]]=0,ISTEXT(Table_PI[[#This Row],[Hide: Electrification kWh]])),\"\",Table_PI[[#This Row],[Hide: Electrification kWh]])","v":""},{"$f":"IF(OR(Table_PI[[#This Row],[Hide: Electrification GHG]]=\"\",Table_PI[[#This Row],[Hide: Electrification GHG]]=0,ISTEXT(Table_PI[[#This Row],[Hide: Electrification GHG]])),\"\",Table_PI[[#This Row],[Hide: Electrification GHG]])","v":""},{"$f":"IFERROR(IF(Table_SummaryPI[[#This Row],[kWhSavings]]=\"\",\"\",$BH$9*Table_SummaryPI[[#This Row],[kWhSavings]]),0)","v":""},{"$f":"IFERROR(IF(Table_SummaryPI[[#This Row],[kWhSavings]]=\"\",\"\",$BH$14*Table_SummaryPI[[#This Row],[kWhSavings]]),0)","v":""},{"$f":"IFERROR(IF(Table_SummaryPI[[#This Row],[kWhSavings]]=\"\",\"\",$BH$18*Table_SummaryPI[[#This Row],[kWhSavings]]),0)","v":""},{"$f":"IFERROR(IF(Table_SummaryPI[[#This Row],[kWhSavings]]=\"\",\"\",$BH$22*Table_SummaryPI[[#This Row],[kWhSavings]]),0)","v":""}]
[{"$f":"Table_PI[[#This Row],[Line No.]]","v":""},{"$f":"IF(Table_SummaryPI[[#This Row],[MeasureName]]<>\"\",NOT(ISTEXT(Table_PI[[#This Row],[Rebate]])),\"\")","v":""},{"$f":"IF(Table_SummaryPI[[#This Row],[MeassureCategory]]<>\"\",CONCATENATE(Table_SummaryPI[[#This Row],[MeassureCategory]],  \" - \", Table_SummaryPI[[#This Row],[ProposedMeasureCategory]],  \" - \", TEXT(Table_SummaryPI[[#This Row],[Size]],\"#,##0.00\"),\" \",Table_SummaryPI[[#This Row],[SizeUnit]]),\"\")","v":""},{"$f":"SUBSTITUTE(Table_PI[[#This Row],[Measure]],\"     \",\"\",1)","v":""},{"$f":"IF(Table_PI[[#This Row],[List 1]]<>\"\",Table_PI[[#This Row],[List 1]],\"\")","v":""},{"$f":"IF(Table_PI[[#This Row],[List 2]]<>\"\",Table_PI[[#This Row],[List 2]],\"\")","v":""},{"$f":"IF(Table_PI[[#This Row],[List 3]]<>\"\",Table_PI[[#This Row],[List 3]],\"\")","v":""},{"$f":"IF(Table_PI[[#This Row],[Manufacturer]]=\"\",\"\",Table_PI[[#This Row],[Manufacturer]])","v":""},{"$f":"IF(Table_PI[[#This Row],[Model Number]]=\"\",\"\",Table_PI[[#This Row],[Model Number]])","v":""},{"$f":"IF(Table_PI[[#This Row],[Serial Number(s)]]=\"\",\"\",Table_PI[[#This Row],[Serial Number(s)]])","v":""},null,{"$f":"IF(Table_PI[[#This Row],[Size]]=\"\",\"\",Table_PI[[#This Row],[Size]])","v":""},null,null,{"$f":"IF(Table_PI[[#This Row],[Input 1]]<>\"\",Table_PI[[#This Row],[Input 1]],\"\")","v":""},null,null,{"$f":"IF(Table_PI[[#This Row],[Input 2]]<>\"\",Table_PI[[#This Row],[Input 2]],\"\")","v":""},null,null,{"$f":"IF(Table_PI[[#This Row],[Input 3]]<>\"\",Table_PI[[#This Row],[Input 3]],\"\")","v":""},null,null,{"$f":"IF(Table_PI[[#This Row],[Input 4]]<>\"\",Table_PI[[#This Row],[Input 4]],\"\")","v":""},null,null,{"$f":"IF(Table_PI[[#This Row],[Input 4]]<>\"\",Table_PI[[#This Row],[Input 4]],\"\")","v":""},null,null,{"$f":"IF(Table_PI[[#This Row],[Input 4]]<>\"\",Table_PI[[#This Row],[Input 4]],\"\")","v":""},{"$f":"IF(Table_PI[[#This Row],[Quantity]]=\"\",\"\",Table_PI[[#This Row],[Quantity]])","v":""},{"$f":"IF(Table_PI[[#This Row],[Notes]]=\"\",\"\",Table_PI[[#This Row],[Notes]])","v":""},{"$f":"IF(OR(Table_PI[[#This Row],[Hide: Baseline kWh]]=\"\",Table_PI[[#This Row],[Hide: Baseline kWh]]=0,ISTEXT(Table_PI[[#This Row],[Hide: Baseline kWh]])),\"\",Table_PI[[#This Row],[Hide: Baseline kWh]])","v":""},{"$f":"IF(OR(Table_PI[[#This Row],[Hide: Baseline kW]]=\"\",Table_PI[[#This Row],[Hide: Baseline kW]]=0,ISTEXT(Table_PI[[#This Row],[Hide: Baseline kW]])),\"\",Table_PI[[#This Row],[Hide: Baseline kW]])","v":""},{"$f":"IF(OR(Table_PI[[#This Row],[Hide: Proposed kWh]]=\"\",Table_PI[[#This Row],[Hide: Proposed kWh]]=0,ISTEXT(Table_PI[[#This Row],[Hide: Proposed kWh]])),\"\",Table_PI[[#This Row],[Hide: Proposed kWh]])","v":""},{"$f":"IF(OR(Table_PI[[#This Row],[Hide: Proposed kW]]=\"\",Table_PI[[#This Row],[Hide: Proposed kW]]=0,ISTEXT(Table_PI[[#This Row],[Hide: Proposed kW]])),\"\",Table_PI[[#This Row],[Hide: Proposed kW]])","v":""},null,null,{"$f":"IF(OR(Table_PI[[#This Row],[Hide: Rebate]]=\"\",Table_PI[[#This Row],[Hide: Rebate]]=0,ISTEXT(Table_PI[[#This Row],[Hide: Rebate]])),\"\",Table_PI[[#This Row],[Hide: Rebate]])","v":""},null,{"$f":"IF(OR(Table_PI[[#This Row],[Hide: Incremental Cost]]=\"\",Table_PI[[#This Row],[Hide: Incremental Cost]]=0,ISTEXT(Table_PI[[#This Row],[Hide: Incremental Cost]])),\"\",Table_PI[[#This Row],[Hide: Incremental Cost]])","v":""},{"$f":"IFERROR(IF(Table_SummaryPI[[#This Row],[Incentive_Customer]]=\"\",\"\",ROUND(Table_SummaryPI[[#This Row],[Incentive_Customer]]/$AM$401*'Customer Information'!$BC$21,2)),0)","v":""},{"$f":"IF(OR(Table_PI[[#This Row],[Annual kWh]]=\"\",Table_PI[[#This Row],[Annual kWh]]=0,ISTEXT(Table_PI[[#This Row],[Annual kWh]])),\"\",Table_PI[[#This Row],[Annual kWh]])","v":""},{"$f":"IF(OR(Table_PI[[#This Row],[Peak kW]]=\"\",Table_PI[[#This Row],[Peak kW]]=0,ISTEXT(Table_PI[[#This Row],[Peak kW]])),\"\",Table_PI[[#This Row],[Peak kW]])","v":""},{"$f":"IF(Table_SummaryPI[[#This Row],[Line No.]]<>\"\",IF(AND(ISNUMBER(FIND(\"Chiller\",Table_SummaryPI[[#This Row],[P_MeasureOption1]],1)),Table_SummaryPI[[#This Row],[ProposedMeasureCategory]]=\"Air-Cooled (Water-Cooled Replacement)\"),$BD$29*Table_SummaryPI[[#This Row],[Size]]*Table_SummaryPI[[#This Row],[Quantity]]*Table_SummaryPI[[#This Row],[EFLHCooling]],\nIF(ISNUMBER(FIND(\"Dishwasher\",Table_SummaryPI[[#This Row],[ProposedMeasureCategory]],1)),$BH$29*Table_SummaryPI[[#This Row],[Quantity]],\nIF(ISNUMBER(FIND(\"Ice Maker\",Table_SummaryPI[[#This Row],[ProposedMeasureCategory]],1)),$BD$31*Table_SummaryPI[[#This Row],[Quantity]],\nIF(ISNUMBER(FIND(\"Spray Valve\",Table_SummaryPI[[#This Row],[ProposedMeasureCategory]],1)),$BH$31*Table_SummaryPI[[#This Row],[Quantity]],\n0)))),\"\")","v":""},{"$f":"IF(OR(Table_PI[[#This Row],[Hide: Electrification kWh]]=\"\",Table_PI[[#This Row],[Hide: Electrification kWh]]=0,ISTEXT(Table_PI[[#This Row],[Hide: Electrification kWh]])),\"\",Table_PI[[#This Row],[Hide: Electrification kWh]])","v":""},{"$f":"IF(OR(Table_PI[[#This Row],[Hide: Electrification GHG]]=\"\",Table_PI[[#This Row],[Hide: Electrification GHG]]=0,ISTEXT(Table_PI[[#This Row],[Hide: Electrification GHG]])),\"\",Table_PI[[#This Row],[Hide: Electrification GHG]])","v":""},{"$f":"IFERROR(IF(Table_SummaryPI[[#This Row],[kWhSavings]]=\"\",\"\",$BH$9*Table_SummaryPI[[#This Row],[kWhSavings]]),0)","v":""},{"$f":"IFERROR(IF(Table_SummaryPI[[#This Row],[kWhSavings]]=\"\",\"\",$BH$14*Table_SummaryPI[[#This Row],[kWhSavings]]),0)","v":""},{"$f":"IFERROR(IF(Table_SummaryPI[[#This Row],[kWhSavings]]=\"\",\"\",$BH$18*Table_SummaryPI[[#This Row],[kWhSavings]]),0)","v":""},{"$f":"IFERROR(IF(Table_SummaryPI[[#This Row],[kWhSavings]]=\"\",\"\",$BH$22*Table_SummaryPI[[#This Row],[kWhSavings]]),0)","v":""}]
[{"$f":"Table_PI[[#This Row],[Line No.]]","v":""},{"$f":"IF(Table_SummaryPI[[#This Row],[MeasureName]]<>\"\",NOT(ISTEXT(Table_PI[[#This Row],[Rebate]])),\"\")","v":""},{"$f":"IF(Table_SummaryPI[[#This Row],[MeassureCategory]]<>\"\",CONCATENATE(Table_SummaryPI[[#This Row],[MeassureCategory]],  \" - \", Table_SummaryPI[[#This Row],[ProposedMeasureCategory]],  \" - \", TEXT(Table_SummaryPI[[#This Row],[Size]],\"#,##0.00\"),\" \",Table_SummaryPI[[#This Row],[SizeUnit]]),\"\")","v":""},{"$f":"SUBSTITUTE(Table_PI[[#This Row],[Measure]],\"     \",\"\",1)","v":""},{"$f":"IF(Table_PI[[#This Row],[List 1]]<>\"\",Table_PI[[#This Row],[List 1]],\"\")","v":""},{"$f":"IF(Table_PI[[#This Row],[List 2]]<>\"\",Table_PI[[#This Row],[List 2]],\"\")","v":""},{"$f":"IF(Table_PI[[#This Row],[List 3]]<>\"\",Table_PI[[#This Row],[List 3]],\"\")","v":""},{"$f":"IF(Table_PI[[#This Row],[Manufacturer]]=\"\",\"\",Table_PI[[#This Row],[Manufacturer]])","v":""},{"$f":"IF(Table_PI[[#This Row],[Model Number]]=\"\",\"\",Table_PI[[#This Row],[Model Number]])","v":""},{"$f":"IF(Table_PI[[#This Row],[Serial Number(s)]]=\"\",\"\",Table_PI[[#This Row],[Serial Number(s)]])","v":""},null,{"$f":"IF(Table_PI[[#This Row],[Size]]=\"\",\"\",Table_PI[[#This Row],[Size]])","v":""},null,null,{"$f":"IF(Table_PI[[#This Row],[Input 1]]<>\"\",Table_PI[[#This Row],[Input 1]],\"\")","v":""},null,null,{"$f":"IF(Table_PI[[#This Row],[Input 2]]<>\"\",Table_PI[[#This Row],[Input 2]],\"\")","v":""},null,null,{"$f":"IF(Table_PI[[#This Row],[Input 3]]<>\"\",Table_PI[[#This Row],[Input 3]],\"\")","v":""},null,null,{"$f":"IF(Table_PI[[#This Row],[Input 4]]<>\"\",Table_PI[[#This Row],[Input 4]],\"\")","v":""},null,null,{"$f":"IF(Table_PI[[#This Row],[Input 4]]<>\"\",Table_PI[[#This Row],[Input 4]],\"\")","v":""},null,null,{"$f":"IF(Table_PI[[#This Row],[Input 4]]<>\"\",Table_PI[[#This Row],[Input 4]],\"\")","v":""},{"$f":"IF(Table_PI[[#This Row],[Quantity]]=\"\",\"\",Table_PI[[#This Row],[Quantity]])","v":""},{"$f":"IF(Table_PI[[#This Row],[Notes]]=\"\",\"\",Table_PI[[#This Row],[Notes]])","v":""},{"$f":"IF(OR(Table_PI[[#This Row],[Hide: Baseline kWh]]=\"\",Table_PI[[#This Row],[Hide: Baseline kWh]]=0,ISTEXT(Table_PI[[#This Row],[Hide: Baseline kWh]])),\"\",Table_PI[[#This Row],[Hide: Baseline kWh]])","v":""},{"$f":"IF(OR(Table_PI[[#This Row],[Hide: Baseline kW]]=\"\",Table_PI[[#This Row],[Hide: Baseline kW]]=0,ISTEXT(Table_PI[[#This Row],[Hide: Baseline kW]])),\"\",Table_PI[[#This Row],[Hide: Baseline kW]])","v":""},{"$f":"IF(OR(Table_PI[[#This Row],[Hide: Proposed kWh]]=\"\",Table_PI[[#This Row],[Hide: Proposed kWh]]=0,ISTEXT(Table_PI[[#This Row],[Hide: Proposed kWh]])),\"\",Table_PI[[#This Row],[Hide: Proposed kWh]])","v":""},{"$f":"IF(OR(Table_PI[[#This Row],[Hide: Proposed kW]]=\"\",Table_PI[[#This Row],[Hide: Proposed kW]]=0,ISTEXT(Table_PI[[#This Row],[Hide: Proposed kW]])),\"\",Table_PI[[#This Row],[Hide: Proposed kW]])","v":""},null,null,{"$f":"IF(OR(Table_PI[[#This Row],[Hide: Rebate]]=\"\",Table_PI[[#This Row],[Hide: Rebate]]=0,ISTEXT(Table_PI[[#This Row],[Hide: Rebate]])),\"\",Table_PI[[#This Row],[Hide: Rebate]])","v":""},null,{"$f":"IF(OR(Table_PI[[#This Row],[Hide: Incremental Cost]]=\"\",Table_PI[[#This Row],[Hide: Incremental Cost]]=0,ISTEXT(Table_PI[[#This Row],[Hide: Incremental Cost]])),\"\",Table_PI[[#This Row],[Hide: Incremental Cost]])","v":""},{"$f":"IFERROR(IF(Table_SummaryPI[[#This Row],[Incentive_Customer]]=\"\",\"\",ROUND(Table_SummaryPI[[#This Row],[Incentive_Customer]]/$AM$401*'Customer Information'!$BC$21,2)),0)","v":""},{"$f":"IF(OR(Table_PI[[#This Row],[Annual kWh]]=\"\",Table_PI[[#This Row],[Annual kWh]]=0,ISTEXT(Table_PI[[#This Row],[Annual kWh]])),\"\",Table_PI[[#This Row],[Annual kWh]])","v":""},{"$f":"IF(OR(Table_PI[[#This Row],[Peak kW]]=\"\",Table_PI[[#This Row],[Peak kW]]=0,ISTEXT(Table_PI[[#This Row],[Peak kW]])),\"\",Table_PI[[#This Row],[Peak kW]])","v":""},{"$f":"IF(Table_SummaryPI[[#This Row],[Line No.]]<>\"\",IF(AND(ISNUMBER(FIND(\"Chiller\",Table_SummaryPI[[#This Row],[P_MeasureOption1]],1)),Table_SummaryPI[[#This Row],[ProposedMeasureCategory]]=\"Air-Cooled (Water-Cooled Replacement)\"),$BD$29*Table_SummaryPI[[#This Row],[Size]]*Table_SummaryPI[[#This Row],[Quantity]]*Table_SummaryPI[[#This Row],[EFLHCooling]],\nIF(ISNUMBER(FIND(\"Dishwasher\",Table_SummaryPI[[#This Row],[ProposedMeasureCategory]],1)),$BH$29*Table_SummaryPI[[#This Row],[Quantity]],\nIF(ISNUMBER(FIND(\"Ice Maker\",Table_SummaryPI[[#This Row],[ProposedMeasureCategory]],1)),$BD$31*Table_SummaryPI[[#This Row],[Quantity]],\nIF(ISNUMBER(FIND(\"Spray Valve\",Table_SummaryPI[[#This Row],[ProposedMeasureCategory]],1)),$BH$31*Table_SummaryPI[[#This Row],[Quantity]],\n0)))),\"\")","v":""},{"$f":"IF(OR(Table_PI[[#This Row],[Hide: Electrification kWh]]=\"\",Table_PI[[#This Row],[Hide: Electrification kWh]]=0,ISTEXT(Table_PI[[#This Row],[Hide: Electrification kWh]])),\"\",Table_PI[[#This Row],[Hide: Electrification kWh]])","v":""},{"$f":"IF(OR(Table_PI[[#This Row],[Hide: Electrification GHG]]=\"\",Table_PI[[#This Row],[Hide: Electrification GHG]]=0,ISTEXT(Table_PI[[#This Row],[Hide: Electrification GHG]])),\"\",Table_PI[[#This Row],[Hide: Electrification GHG]])","v":""},{"$f":"IFERROR(IF(Table_SummaryPI[[#This Row],[kWhSavings]]=\"\",\"\",$BH$9*Table_SummaryPI[[#This Row],[kWhSavings]]),0)","v":""},{"$f":"IFERROR(IF(Table_SummaryPI[[#This Row],[kWhSavings]]=\"\",\"\",$BH$14*Table_SummaryPI[[#This Row],[kWhSavings]]),0)","v":""},{"$f":"IFERROR(IF(Table_SummaryPI[[#This Row],[kWhSavings]]=\"\",\"\",$BH$18*Table_SummaryPI[[#This Row],[kWhSavings]]),0)","v":""},{"$f":"IFERROR(IF(Table_SummaryPI[[#This Row],[kWhSavings]]=\"\",\"\",$BH$22*Table_SummaryPI[[#This Row],[kWhSavings]]),0)","v":""}]
[{"$f":"Table_PI[[#This Row],[Line No.]]","v":""},{"$f":"IF(Table_SummaryPI[[#This Row],[MeasureName]]<>\"\",NOT(ISTEXT(Table_PI[[#This Row],[Rebate]])),\"\")","v":""},{"$f":"IF(Table_SummaryPI[[#This Row],[MeassureCategory]]<>\"\",CONCATENATE(Table_SummaryPI[[#This Row],[MeassureCategory]],  \" - \", Table_SummaryPI[[#This Row],[ProposedMeasureCategory]],  \" - \", TEXT(Table_SummaryPI[[#This Row],[Size]],\"#,##0.00\"),\" \",Table_SummaryPI[[#This Row],[SizeUnit]]),\"\")","v":""},{"$f":"SUBSTITUTE(Table_PI[[#This Row],[Measure]],\"     \",\"\",1)","v":""},{"$f":"IF(Table_PI[[#This Row],[List 1]]<>\"\",Table_PI[[#This Row],[List 1]],\"\")","v":""},{"$f":"IF(Table_PI[[#This Row],[List 2]]<>\"\",Table_PI[[#This Row],[List 2]],\"\")","v":""},{"$f":"IF(Table_PI[[#This Row],[List 3]]<>\"\",Table_PI[[#This Row],[List 3]],\"\")","v":""},{"$f":"IF(Table_PI[[#This Row],[Manufacturer]]=\"\",\"\",Table_PI[[#This Row],[Manufacturer]])","v":""},{"$f":"IF(Table_PI[[#This Row],[Model Number]]=\"\",\"\",Table_PI[[#This Row],[Model Number]])","v":""},{"$f":"IF(Table_PI[[#This Row],[Serial Number(s)]]=\"\",\"\",Table_PI[[#This Row],[Serial Number(s)]])","v":""},null,{"$f":"IF(Table_PI[[#This Row],[Size]]=\"\",\"\",Table_PI[[#This Row],[Size]])","v":""},null,null,{"$f":"IF(Table_PI[[#This Row],[Input 1]]<>\"\",Table_PI[[#This Row],[Input 1]],\"\")","v":""},null,null,{"$f":"IF(Table_PI[[#This Row],[Input 2]]<>\"\",Table_PI[[#This Row],[Input 2]],\"\")","v":""},null,null,{"$f":"IF(Table_PI[[#This Row],[Input 3]]<>\"\",Table_PI[[#This Row],[Input 3]],\"\")","v":""},null,null,{"$f":"IF(Table_PI[[#This Row],[Input 4]]<>\"\",Table_PI[[#This Row],[Input 4]],\"\")","v":""},null,null,{"$f":"IF(Table_PI[[#This Row],[Input 4]]<>\"\",Table_PI[[#This Row],[Input 4]],\"\")","v":""},null,null,{"$f":"IF(Table_PI[[#This Row],[Input 4]]<>\"\",Table_PI[[#This Row],[Input 4]],\"\")","v":""},{"$f":"IF(Table_PI[[#This Row],[Quantity]]=\"\",\"\",Table_PI[[#This Row],[Quantity]])","v":""},{"$f":"IF(Table_PI[[#This Row],[Notes]]=\"\",\"\",Table_PI[[#This Row],[Notes]])","v":""},{"$f":"IF(OR(Table_PI[[#This Row],[Hide: Baseline kWh]]=\"\",Table_PI[[#This Row],[Hide: Baseline kWh]]=0,ISTEXT(Table_PI[[#This Row],[Hide: Baseline kWh]])),\"\",Table_PI[[#This Row],[Hide: Baseline kWh]])","v":""},{"$f":"IF(OR(Table_PI[[#This Row],[Hide: Baseline kW]]=\"\",Table_PI[[#This Row],[Hide: Baseline kW]]=0,ISTEXT(Table_PI[[#This Row],[Hide: Baseline kW]])),\"\",Table_PI[[#This Row],[Hide: Baseline kW]])","v":""},{"$f":"IF(OR(Table_PI[[#This Row],[Hide: Proposed kWh]]=\"\",Table_PI[[#This Row],[Hide: Proposed kWh]]=0,ISTEXT(Table_PI[[#This Row],[Hide: Proposed kWh]])),\"\",Table_PI[[#This Row],[Hide: Proposed kWh]])","v":""},{"$f":"IF(OR(Table_PI[[#This Row],[Hide: Proposed kW]]=\"\",Table_PI[[#This Row],[Hide: Proposed kW]]=0,ISTEXT(Table_PI[[#This Row],[Hide: Proposed kW]])),\"\",Table_PI[[#This Row],[Hide: Proposed kW]])","v":""},null,null,{"$f":"IF(OR(Table_PI[[#This Row],[Hide: Rebate]]=\"\",Table_PI[[#This Row],[Hide: Rebate]]=0,ISTEXT(Table_PI[[#This Row],[Hide: Rebate]])),\"\",Table_PI[[#This Row],[Hide: Rebate]])","v":""},null,{"$f":"IF(OR(Table_PI[[#This Row],[Hide: Incremental Cost]]=\"\",Table_PI[[#This Row],[Hide: Incremental Cost]]=0,ISTEXT(Table_PI[[#This Row],[Hide: Incremental Cost]])),\"\",Table_PI[[#This Row],[Hide: Incremental Cost]])","v":""},{"$f":"IFERROR(IF(Table_SummaryPI[[#This Row],[Incentive_Customer]]=\"\",\"\",ROUND(Table_SummaryPI[[#This Row],[Incentive_Customer]]/$AM$401*'Customer Information'!$BC$21,2)),0)","v":""},{"$f":"IF(OR(Table_PI[[#This Row],[Annual kWh]]=\"\",Table_PI[[#This Row],[Annual kWh]]=0,ISTEXT(Table_PI[[#This Row],[Annual kWh]])),\"\",Table_PI[[#This Row],[Annual kWh]])","v":""},{"$f":"IF(OR(Table_PI[[#This Row],[Peak kW]]=\"\",Table_PI[[#This Row],[Peak kW]]=0,ISTEXT(Table_PI[[#This Row],[Peak kW]])),\"\",Table_PI[[#This Row],[Peak kW]])","v":""},{"$f":"IF(Table_SummaryPI[[#This Row],[Line No.]]<>\"\",IF(AND(ISNUMBER(FIND(\"Chiller\",Table_SummaryPI[[#This Row],[P_MeasureOption1]],1)),Table_SummaryPI[[#This Row],[ProposedMeasureCategory]]=\"Air-Cooled (Water-Cooled Replacement)\"),$BD$29*Table_SummaryPI[[#This Row],[Size]]*Table_SummaryPI[[#This Row],[Quantity]]*Table_SummaryPI[[#This Row],[EFLHCooling]],\nIF(ISNUMBER(FIND(\"Dishwasher\",Table_SummaryPI[[#This Row],[ProposedMeasureCategory]],1)),$BH$29*Table_SummaryPI[[#This Row],[Quantity]],\nIF(ISNUMBER(FIND(\"Ice Maker\",Table_SummaryPI[[#This Row],[ProposedMeasureCategory]],1)),$BD$31*Table_SummaryPI[[#This Row],[Quantity]],\nIF(ISNUMBER(FIND(\"Spray Valve\",Table_SummaryPI[[#This Row],[ProposedMeasureCategory]],1)),$BH$31*Table_SummaryPI[[#This Row],[Quantity]],\n0)))),\"\")","v":""},{"$f":"IF(OR(Table_PI[[#This Row],[Hide: Electrification kWh]]=\"\",Table_PI[[#This Row],[Hide: Electrification kWh]]=0,ISTEXT(Table_PI[[#This Row],[Hide: Electrification kWh]])),\"\",Table_PI[[#This Row],[Hide: Electrification kWh]])","v":""},{"$f":"IF(OR(Table_PI[[#This Row],[Hide: Electrification GHG]]=\"\",Table_PI[[#This Row],[Hide: Electrification GHG]]=0,ISTEXT(Table_PI[[#This Row],[Hide: Electrification GHG]])),\"\",Table_PI[[#This Row],[Hide: Electrification GHG]])","v":""},{"$f":"IFERROR(IF(Table_SummaryPI[[#This Row],[kWhSavings]]=\"\",\"\",$BH$9*Table_SummaryPI[[#This Row],[kWhSavings]]),0)","v":""},{"$f":"IFERROR(IF(Table_SummaryPI[[#This Row],[kWhSavings]]=\"\",\"\",$BH$14*Table_SummaryPI[[#This Row],[kWhSavings]]),0)","v":""},{"$f":"IFERROR(IF(Table_SummaryPI[[#This Row],[kWhSavings]]=\"\",\"\",$BH$18*Table_SummaryPI[[#This Row],[kWhSavings]]),0)","v":""},{"$f":"IFERROR(IF(Table_SummaryPI[[#This Row],[kWhSavings]]=\"\",\"\",$BH$22*Table_SummaryPI[[#This Row],[kWhSavings]]),0)","v":""}]
[{"$f":"Table_PI[[#This Row],[Line No.]]","v":""},{"$f":"IF(Table_SummaryPI[[#This Row],[MeasureName]]<>\"\",NOT(ISTEXT(Table_PI[[#This Row],[Rebate]])),\"\")","v":""},{"$f":"IF(Table_SummaryPI[[#This Row],[MeassureCategory]]<>\"\",CONCATENATE(Table_SummaryPI[[#This Row],[MeassureCategory]],  \" - \", Table_SummaryPI[[#This Row],[ProposedMeasureCategory]],  \" - \", TEXT(Table_SummaryPI[[#This Row],[Size]],\"#,##0.00\"),\" \",Table_SummaryPI[[#This Row],[SizeUnit]]),\"\")","v":""},{"$f":"SUBSTITUTE(Table_PI[[#This Row],[Measure]],\"     \",\"\",1)","v":""},{"$f":"IF(Table_PI[[#This Row],[List 1]]<>\"\",Table_PI[[#This Row],[List 1]],\"\")","v":""},{"$f":"IF(Table_PI[[#This Row],[List 2]]<>\"\",Table_PI[[#This Row],[List 2]],\"\")","v":""},{"$f":"IF(Table_PI[[#This Row],[List 3]]<>\"\",Table_PI[[#This Row],[List 3]],\"\")","v":""},{"$f":"IF(Table_PI[[#This Row],[Manufacturer]]=\"\",\"\",Table_PI[[#This Row],[Manufacturer]])","v":""},{"$f":"IF(Table_PI[[#This Row],[Model Number]]=\"\",\"\",Table_PI[[#This Row],[Model Number]])","v":""},{"$f":"IF(Table_PI[[#This Row],[Serial Number(s)]]=\"\",\"\",Table_PI[[#This Row],[Serial Number(s)]])","v":""},null,{"$f":"IF(Table_PI[[#This Row],[Size]]=\"\",\"\",Table_PI[[#This Row],[Size]])","v":""},null,null,{"$f":"IF(Table_PI[[#This Row],[Input 1]]<>\"\",Table_PI[[#This Row],[Input 1]],\"\")","v":""},null,null,{"$f":"IF(Table_PI[[#This Row],[Input 2]]<>\"\",Table_PI[[#This Row],[Input 2]],\"\")","v":""},null,null,{"$f":"IF(Table_PI[[#This Row],[Input 3]]<>\"\",Table_PI[[#This Row],[Input 3]],\"\")","v":""},null,null,{"$f":"IF(Table_PI[[#This Row],[Input 4]]<>\"\",Table_PI[[#This Row],[Input 4]],\"\")","v":""},null,null,{"$f":"IF(Table_PI[[#This Row],[Input 4]]<>\"\",Table_PI[[#This Row],[Input 4]],\"\")","v":""},null,null,{"$f":"IF(Table_PI[[#This Row],[Input 4]]<>\"\",Table_PI[[#This Row],[Input 4]],\"\")","v":""},{"$f":"IF(Table_PI[[#This Row],[Quantity]]=\"\",\"\",Table_PI[[#This Row],[Quantity]])","v":""},{"$f":"IF(Table_PI[[#This Row],[Notes]]=\"\",\"\",Table_PI[[#This Row],[Notes]])","v":""},{"$f":"IF(OR(Table_PI[[#This Row],[Hide: Baseline kWh]]=\"\",Table_PI[[#This Row],[Hide: Baseline kWh]]=0,ISTEXT(Table_PI[[#This Row],[Hide: Baseline kWh]])),\"\",Table_PI[[#This Row],[Hide: Baseline kWh]])","v":""},{"$f":"IF(OR(Table_PI[[#This Row],[Hide: Baseline kW]]=\"\",Table_PI[[#This Row],[Hide: Baseline kW]]=0,ISTEXT(Table_PI[[#This Row],[Hide: Baseline kW]])),\"\",Table_PI[[#This Row],[Hide: Baseline kW]])","v":""},{"$f":"IF(OR(Table_PI[[#This Row],[Hide: Proposed kWh]]=\"\",Table_PI[[#This Row],[Hide: Proposed kWh]]=0,ISTEXT(Table_PI[[#This Row],[Hide: Proposed kWh]])),\"\",Table_PI[[#This Row],[Hide: Proposed kWh]])","v":""},{"$f":"IF(OR(Table_PI[[#This Row],[Hide: Proposed kW]]=\"\",Table_PI[[#This Row],[Hide: Proposed kW]]=0,ISTEXT(Table_PI[[#This Row],[Hide: Proposed kW]])),\"\",Table_PI[[#This Row],[Hide: Proposed kW]])","v":""},null,null,{"$f":"IF(OR(Table_PI[[#This Row],[Hide: Rebate]]=\"\",Table_PI[[#This Row],[Hide: Rebate]]=0,ISTEXT(Table_PI[[#This Row],[Hide: Rebate]])),\"\",Table_PI[[#This Row],[Hide: Rebate]])","v":""},null,{"$f":"IF(OR(Table_PI[[#This Row],[Hide: Incremental Cost]]=\"\",Table_PI[[#This Row],[Hide: Incremental Cost]]=0,ISTEXT(Table_PI[[#This Row],[Hide: Incremental Cost]])),\"\",Table_PI[[#This Row],[Hide: Incremental Cost]])","v":""},{"$f":"IFERROR(IF(Table_SummaryPI[[#This Row],[Incentive_Customer]]=\"\",\"\",ROUND(Table_SummaryPI[[#This Row],[Incentive_Customer]]/$AM$401*'Customer Information'!$BC$21,2)),0)","v":""},{"$f":"IF(OR(Table_PI[[#This Row],[Annual kWh]]=\"\",Table_PI[[#This Row],[Annual kWh]]=0,ISTEXT(Table_PI[[#This Row],[Annual kWh]])),\"\",Table_PI[[#This Row],[Annual kWh]])","v":""},{"$f":"IF(OR(Table_PI[[#This Row],[Peak kW]]=\"\",Table_PI[[#This Row],[Peak kW]]=0,ISTEXT(Table_PI[[#This Row],[Peak kW]])),\"\",Table_PI[[#This Row],[Peak kW]])","v":""},{"$f":"IF(Table_SummaryPI[[#This Row],[Line No.]]<>\"\",IF(AND(ISNUMBER(FIND(\"Chiller\",Table_SummaryPI[[#This Row],[P_MeasureOption1]],1)),Table_SummaryPI[[#This Row],[ProposedMeasureCategory]]=\"Air-Cooled (Water-Cooled Replacement)\"),$BD$29*Table_SummaryPI[[#This Row],[Size]]*Table_SummaryPI[[#This Row],[Quantity]]*Table_SummaryPI[[#This Row],[EFLHCooling]],\nIF(ISNUMBER(FIND(\"Dishwasher\",Table_SummaryPI[[#This Row],[ProposedMeasureCategory]],1)),$BH$29*Table_SummaryPI[[#This Row],[Quantity]],\nIF(ISNUMBER(FIND(\"Ice Maker\",Table_SummaryPI[[#This Row],[ProposedMeasureCategory]],1)),$BD$31*Table_SummaryPI[[#This Row],[Quantity]],\nIF(ISNUMBER(FIND(\"Spray Valve\",Table_SummaryPI[[#This Row],[ProposedMeasureCategory]],1)),$BH$31*Table_SummaryPI[[#This Row],[Quantity]],\n0)))),\"\")","v":""},{"$f":"IF(OR(Table_PI[[#This Row],[Hide: Electrification kWh]]=\"\",Table_PI[[#This Row],[Hide: Electrification kWh]]=0,ISTEXT(Table_PI[[#This Row],[Hide: Electrification kWh]])),\"\",Table_PI[[#This Row],[Hide: Electrification kWh]])","v":""},{"$f":"IF(OR(Table_PI[[#This Row],[Hide: Electrification GHG]]=\"\",Table_PI[[#This Row],[Hide: Electrification GHG]]=0,ISTEXT(Table_PI[[#This Row],[Hide: Electrification GHG]])),\"\",Table_PI[[#This Row],[Hide: Electrification GHG]])","v":""},{"$f":"IFERROR(IF(Table_SummaryPI[[#This Row],[kWhSavings]]=\"\",\"\",$BH$9*Table_SummaryPI[[#This Row],[kWhSavings]]),0)","v":""},{"$f":"IFERROR(IF(Table_SummaryPI[[#This Row],[kWhSavings]]=\"\",\"\",$BH$14*Table_SummaryPI[[#This Row],[kWhSavings]]),0)","v":""},{"$f":"IFERROR(IF(Table_SummaryPI[[#This Row],[kWhSavings]]=\"\",\"\",$BH$18*Table_SummaryPI[[#This Row],[kWhSavings]]),0)","v":""},{"$f":"IFERROR(IF(Table_SummaryPI[[#This Row],[kWhSavings]]=\"\",\"\",$BH$22*Table_SummaryPI[[#This Row],[kWhSavings]]),0)","v":""}]
[{"$f":"Table_PI[[#This Row],[Line No.]]","v":""},{"$f":"IF(Table_SummaryPI[[#This Row],[MeasureName]]<>\"\",NOT(ISTEXT(Table_PI[[#This Row],[Rebate]])),\"\")","v":""},{"$f":"IF(Table_SummaryPI[[#This Row],[MeassureCategory]]<>\"\",CONCATENATE(Table_SummaryPI[[#This Row],[MeassureCategory]],  \" - \", Table_SummaryPI[[#This Row],[ProposedMeasureCategory]],  \" - \", TEXT(Table_SummaryPI[[#This Row],[Size]],\"#,##0.00\"),\" \",Table_SummaryPI[[#This Row],[SizeUnit]]),\"\")","v":""},{"$f":"SUBSTITUTE(Table_PI[[#This Row],[Measure]],\"     \",\"\",1)","v":""},{"$f":"IF(Table_PI[[#This Row],[List 1]]<>\"\",Table_PI[[#This Row],[List 1]],\"\")","v":""},{"$f":"IF(Table_PI[[#This Row],[List 2]]<>\"\",Table_PI[[#This Row],[List 2]],\"\")","v":""},{"$f":"IF(Table_PI[[#This Row],[List 3]]<>\"\",Table_PI[[#This Row],[List 3]],\"\")","v":""},{"$f":"IF(Table_PI[[#This Row],[Manufacturer]]=\"\",\"\",Table_PI[[#This Row],[Manufacturer]])","v":""},{"$f":"IF(Table_PI[[#This Row],[Model Number]]=\"\",\"\",Table_PI[[#This Row],[Model Number]])","v":""},{"$f":"IF(Table_PI[[#This Row],[Serial Number(s)]]=\"\",\"\",Table_PI[[#This Row],[Serial Number(s)]])","v":""},null,{"$f":"IF(Table_PI[[#This Row],[Size]]=\"\",\"\",Table_PI[[#This Row],[Size]])","v":""},null,null,{"$f":"IF(Table_PI[[#This Row],[Input 1]]<>\"\",Table_PI[[#This Row],[Input 1]],\"\")","v":""},null,null,{"$f":"IF(Table_PI[[#This Row],[Input 2]]<>\"\",Table_PI[[#This Row],[Input 2]],\"\")","v":""},null,null,{"$f":"IF(Table_PI[[#This Row],[Input 3]]<>\"\",Table_PI[[#This Row],[Input 3]],\"\")","v":""},null,null,{"$f":"IF(Table_PI[[#This Row],[Input 4]]<>\"\",Table_PI[[#This Row],[Input 4]],\"\")","v":""},null,null,{"$f":"IF(Table_PI[[#This Row],[Input 4]]<>\"\",Table_PI[[#This Row],[Input 4]],\"\")","v":""},null,null,{"$f":"IF(Table_PI[[#This Row],[Input 4]]<>\"\",Table_PI[[#This Row],[Input 4]],\"\")","v":""},{"$f":"IF(Table_PI[[#This Row],[Quantity]]=\"\",\"\",Table_PI[[#This Row],[Quantity]])","v":""},{"$f":"IF(Table_PI[[#This Row],[Notes]]=\"\",\"\",Table_PI[[#This Row],[Notes]])","v":""},{"$f":"IF(OR(Table_PI[[#This Row],[Hide: Baseline kWh]]=\"\",Table_PI[[#This Row],[Hide: Baseline kWh]]=0,ISTEXT(Table_PI[[#This Row],[Hide: Baseline kWh]])),\"\",Table_PI[[#This Row],[Hide: Baseline kWh]])","v":""},{"$f":"IF(OR(Table_PI[[#This Row],[Hide: Baseline kW]]=\"\",Table_PI[[#This Row],[Hide: Baseline kW]]=0,ISTEXT(Table_PI[[#This Row],[Hide: Baseline kW]])),\"\",Table_PI[[#This Row],[Hide: Baseline kW]])","v":""},{"$f":"IF(OR(Table_PI[[#This Row],[Hide: Proposed kWh]]=\"\",Table_PI[[#This Row],[Hide: Proposed kWh]]=0,ISTEXT(Table_PI[[#This Row],[Hide: Proposed kWh]])),\"\",Table_PI[[#This Row],[Hide: Proposed kWh]])","v":""},{"$f":"IF(OR(Table_PI[[#This Row],[Hide: Proposed kW]]=\"\",Table_PI[[#This Row],[Hide: Proposed kW]]=0,ISTEXT(Table_PI[[#This Row],[Hide: Proposed kW]])),\"\",Table_PI[[#This Row],[Hide: Proposed kW]])","v":""},null,null,{"$f":"IF(OR(Table_PI[[#This Row],[Hide: Rebate]]=\"\",Table_PI[[#This Row],[Hide: Rebate]]=0,ISTEXT(Table_PI[[#This Row],[Hide: Rebate]])),\"\",Table_PI[[#This Row],[Hide: Rebate]])","v":""},null,{"$f":"IF(OR(Table_PI[[#This Row],[Hide: Incremental Cost]]=\"\",Table_PI[[#This Row],[Hide: Incremental Cost]]=0,ISTEXT(Table_PI[[#This Row],[Hide: Incremental Cost]])),\"\",Table_PI[[#This Row],[Hide: Incremental Cost]])","v":""},{"$f":"IFERROR(IF(Table_SummaryPI[[#This Row],[Incentive_Customer]]=\"\",\"\",ROUND(Table_SummaryPI[[#This Row],[Incentive_Customer]]/$AM$401*'Customer Information'!$BC$21,2)),0)","v":""},{"$f":"IF(OR(Table_PI[[#This Row],[Annual kWh]]=\"\",Table_PI[[#This Row],[Annual kWh]]=0,ISTEXT(Table_PI[[#This Row],[Annual kWh]])),\"\",Table_PI[[#This Row],[Annual kWh]])","v":""},{"$f":"IF(OR(Table_PI[[#This Row],[Peak kW]]=\"\",Table_PI[[#This Row],[Peak kW]]=0,ISTEXT(Table_PI[[#This Row],[Peak kW]])),\"\",Table_PI[[#This Row],[Peak kW]])","v":""},{"$f":"IF(Table_SummaryPI[[#This Row],[Line No.]]<>\"\",IF(AND(ISNUMBER(FIND(\"Chiller\",Table_SummaryPI[[#This Row],[P_MeasureOption1]],1)),Table_SummaryPI[[#This Row],[ProposedMeasureCategory]]=\"Air-Cooled (Water-Cooled Replacement)\"),$BD$29*Table_SummaryPI[[#This Row],[Size]]*Table_SummaryPI[[#This Row],[Quantity]]*Table_SummaryPI[[#This Row],[EFLHCooling]],\nIF(ISNUMBER(FIND(\"Dishwasher\",Table_SummaryPI[[#This Row],[ProposedMeasureCategory]],1)),$BH$29*Table_SummaryPI[[#This Row],[Quantity]],\nIF(ISNUMBER(FIND(\"Ice Maker\",Table_SummaryPI[[#This Row],[ProposedMeasureCategory]],1)),$BD$31*Table_SummaryPI[[#This Row],[Quantity]],\nIF(ISNUMBER(FIND(\"Spray Valve\",Table_SummaryPI[[#This Row],[ProposedMeasureCategory]],1)),$BH$31*Table_SummaryPI[[#This Row],[Quantity]],\n0)))),\"\")","v":""},{"$f":"IF(OR(Table_PI[[#This Row],[Hide: Electrification kWh]]=\"\",Table_PI[[#This Row],[Hide: Electrification kWh]]=0,ISTEXT(Table_PI[[#This Row],[Hide: Electrification kWh]])),\"\",Table_PI[[#This Row],[Hide: Electrification kWh]])","v":""},{"$f":"IF(OR(Table_PI[[#This Row],[Hide: Electrification GHG]]=\"\",Table_PI[[#This Row],[Hide: Electrification GHG]]=0,ISTEXT(Table_PI[[#This Row],[Hide: Electrification GHG]])),\"\",Table_PI[[#This Row],[Hide: Electrification GHG]])","v":""},{"$f":"IFERROR(IF(Table_SummaryPI[[#This Row],[kWhSavings]]=\"\",\"\",$BH$9*Table_SummaryPI[[#This Row],[kWhSavings]]),0)","v":""},{"$f":"IFERROR(IF(Table_SummaryPI[[#This Row],[kWhSavings]]=\"\",\"\",$BH$14*Table_SummaryPI[[#This Row],[kWhSavings]]),0)","v":""},{"$f":"IFERROR(IF(Table_SummaryPI[[#This Row],[kWhSavings]]=\"\",\"\",$BH$18*Table_SummaryPI[[#This Row],[kWhSavings]]),0)","v":""},{"$f":"IFERROR(IF(Table_SummaryPI[[#This Row],[kWhSavings]]=\"\",\"\",$BH$22*Table_SummaryPI[[#This Row],[kWhSavings]]),0)","v":""}]
[{"$f":"Table_PI[[#This Row],[Line No.]]","v":""},{"$f":"IF(Table_SummaryPI[[#This Row],[MeasureName]]<>\"\",NOT(ISTEXT(Table_PI[[#This Row],[Rebate]])),\"\")","v":""},{"$f":"IF(Table_SummaryPI[[#This Row],[MeassureCategory]]<>\"\",CONCATENATE(Table_SummaryPI[[#This Row],[MeassureCategory]],  \" - \", Table_SummaryPI[[#This Row],[ProposedMeasureCategory]],  \" - \", TEXT(Table_SummaryPI[[#This Row],[Size]],\"#,##0.00\"),\" \",Table_SummaryPI[[#This Row],[SizeUnit]]),\"\")","v":""},{"$f":"SUBSTITUTE(Table_PI[[#This Row],[Measure]],\"     \",\"\",1)","v":""},{"$f":"IF(Table_PI[[#This Row],[List 1]]<>\"\",Table_PI[[#This Row],[List 1]],\"\")","v":""},{"$f":"IF(Table_PI[[#This Row],[List 2]]<>\"\",Table_PI[[#This Row],[List 2]],\"\")","v":""},{"$f":"IF(Table_PI[[#This Row],[List 3]]<>\"\",Table_PI[[#This Row],[List 3]],\"\")","v":""},{"$f":"IF(Table_PI[[#This Row],[Manufacturer]]=\"\",\"\",Table_PI[[#This Row],[Manufacturer]])","v":""},{"$f":"IF(Table_PI[[#This Row],[Model Number]]=\"\",\"\",Table_PI[[#This Row],[Model Number]])","v":""},{"$f":"IF(Table_PI[[#This Row],[Serial Number(s)]]=\"\",\"\",Table_PI[[#This Row],[Serial Number(s)]])","v":""},null,{"$f":"IF(Table_PI[[#This Row],[Size]]=\"\",\"\",Table_PI[[#This Row],[Size]])","v":""},null,null,{"$f":"IF(Table_PI[[#This Row],[Input 1]]<>\"\",Table_PI[[#This Row],[Input 1]],\"\")","v":""},null,null,{"$f":"IF(Table_PI[[#This Row],[Input 2]]<>\"\",Table_PI[[#This Row],[Input 2]],\"\")","v":""},null,null,{"$f":"IF(Table_PI[[#This Row],[Input 3]]<>\"\",Table_PI[[#This Row],[Input 3]],\"\")","v":""},null,null,{"$f":"IF(Table_PI[[#This Row],[Input 4]]<>\"\",Table_PI[[#This Row],[Input 4]],\"\")","v":""},null,null,{"$f":"IF(Table_PI[[#This Row],[Input 4]]<>\"\",Table_PI[[#This Row],[Input 4]],\"\")","v":""},null,null,{"$f":"IF(Table_PI[[#This Row],[Input 4]]<>\"\",Table_PI[[#This Row],[Input 4]],\"\")","v":""},{"$f":"IF(Table_PI[[#This Row],[Quantity]]=\"\",\"\",Table_PI[[#This Row],[Quantity]])","v":""},{"$f":"IF(Table_PI[[#This Row],[Notes]]=\"\",\"\",Table_PI[[#This Row],[Notes]])","v":""},{"$f":"IF(OR(Table_PI[[#This Row],[Hide: Baseline kWh]]=\"\",Table_PI[[#This Row],[Hide: Baseline kWh]]=0,ISTEXT(Table_PI[[#This Row],[Hide: Baseline kWh]])),\"\",Table_PI[[#This Row],[Hide: Baseline kWh]])","v":""},{"$f":"IF(OR(Table_PI[[#This Row],[Hide: Baseline kW]]=\"\",Table_PI[[#This Row],[Hide: Baseline kW]]=0,ISTEXT(Table_PI[[#This Row],[Hide: Baseline kW]])),\"\",Table_PI[[#This Row],[Hide: Baseline kW]])","v":""},{"$f":"IF(OR(Table_PI[[#This Row],[Hide: Proposed kWh]]=\"\",Table_PI[[#This Row],[Hide: Proposed kWh]]=0,ISTEXT(Table_PI[[#This Row],[Hide: Proposed kWh]])),\"\",Table_PI[[#This Row],[Hide: Proposed kWh]])","v":""},{"$f":"IF(OR(Table_PI[[#This Row],[Hide: Proposed kW]]=\"\",Table_PI[[#This Row],[Hide: Proposed kW]]=0,ISTEXT(Table_PI[[#This Row],[Hide: Proposed kW]])),\"\",Table_PI[[#This Row],[Hide: Proposed kW]])","v":""},null,null,{"$f":"IF(OR(Table_PI[[#This Row],[Hide: Rebate]]=\"\",Table_PI[[#This Row],[Hide: Rebate]]=0,ISTEXT(Table_PI[[#This Row],[Hide: Rebate]])),\"\",Table_PI[[#This Row],[Hide: Rebate]])","v":""},null,{"$f":"IF(OR(Table_PI[[#This Row],[Hide: Incremental Cost]]=\"\",Table_PI[[#This Row],[Hide: Incremental Cost]]=0,ISTEXT(Table_PI[[#This Row],[Hide: Incremental Cost]])),\"\",Table_PI[[#This Row],[Hide: Incremental Cost]])","v":""},{"$f":"IFERROR(IF(Table_SummaryPI[[#This Row],[Incentive_Customer]]=\"\",\"\",ROUND(Table_SummaryPI[[#This Row],[Incentive_Customer]]/$AM$401*'Customer Information'!$BC$21,2)),0)","v":""},{"$f":"IF(OR(Table_PI[[#This Row],[Annual kWh]]=\"\",Table_PI[[#This Row],[Annual kWh]]=0,ISTEXT(Table_PI[[#This Row],[Annual kWh]])),\"\",Table_PI[[#This Row],[Annual kWh]])","v":""},{"$f":"IF(OR(Table_PI[[#This Row],[Peak kW]]=\"\",Table_PI[[#This Row],[Peak kW]]=0,ISTEXT(Table_PI[[#This Row],[Peak kW]])),\"\",Table_PI[[#This Row],[Peak kW]])","v":""},{"$f":"IF(Table_SummaryPI[[#This Row],[Line No.]]<>\"\",IF(AND(ISNUMBER(FIND(\"Chiller\",Table_SummaryPI[[#This Row],[P_MeasureOption1]],1)),Table_SummaryPI[[#This Row],[ProposedMeasureCategory]]=\"Air-Cooled (Water-Cooled Replacement)\"),$BD$29*Table_SummaryPI[[#This Row],[Size]]*Table_SummaryPI[[#This Row],[Quantity]]*Table_SummaryPI[[#This Row],[EFLHCooling]],\nIF(ISNUMBER(FIND(\"Dishwasher\",Table_SummaryPI[[#This Row],[ProposedMeasureCategory]],1)),$BH$29*Table_SummaryPI[[#This Row],[Quantity]],\nIF(ISNUMBER(FIND(\"Ice Maker\",Table_SummaryPI[[#This Row],[ProposedMeasureCategory]],1)),$BD$31*Table_SummaryPI[[#This Row],[Quantity]],\nIF(ISNUMBER(FIND(\"Spray Valve\",Table_SummaryPI[[#This Row],[ProposedMeasureCategory]],1)),$BH$31*Table_SummaryPI[[#This Row],[Quantity]],\n0)))),\"\")","v":""},{"$f":"IF(OR(Table_PI[[#This Row],[Hide: Electrification kWh]]=\"\",Table_PI[[#This Row],[Hide: Electrification kWh]]=0,ISTEXT(Table_PI[[#This Row],[Hide: Electrification kWh]])),\"\",Table_PI[[#This Row],[Hide: Electrification kWh]])","v":""},{"$f":"IF(OR(Table_PI[[#This Row],[Hide: Electrification GHG]]=\"\",Table_PI[[#This Row],[Hide: Electrification GHG]]=0,ISTEXT(Table_PI[[#This Row],[Hide: Electrification GHG]])),\"\",Table_PI[[#This Row],[Hide: Electrification GHG]])","v":""},{"$f":"IFERROR(IF(Table_SummaryPI[[#This Row],[kWhSavings]]=\"\",\"\",$BH$9*Table_SummaryPI[[#This Row],[kWhSavings]]),0)","v":""},{"$f":"IFERROR(IF(Table_SummaryPI[[#This Row],[kWhSavings]]=\"\",\"\",$BH$14*Table_SummaryPI[[#This Row],[kWhSavings]]),0)","v":""},{"$f":"IFERROR(IF(Table_SummaryPI[[#This Row],[kWhSavings]]=\"\",\"\",$BH$18*Table_SummaryPI[[#This Row],[kWhSavings]]),0)","v":""},{"$f":"IFERROR(IF(Table_SummaryPI[[#This Row],[kWhSavings]]=\"\",\"\",$BH$22*Table_SummaryPI[[#This Row],[kWhSavings]]),0)","v":""}]
[{"$f":"Table_PI[[#This Row],[Line No.]]","v":""},{"$f":"IF(Table_SummaryPI[[#This Row],[MeasureName]]<>\"\",NOT(ISTEXT(Table_PI[[#This Row],[Rebate]])),\"\")","v":""},{"$f":"IF(Table_SummaryPI[[#This Row],[MeassureCategory]]<>\"\",CONCATENATE(Table_SummaryPI[[#This Row],[MeassureCategory]],  \" - \", Table_SummaryPI[[#This Row],[ProposedMeasureCategory]],  \" - \", TEXT(Table_SummaryPI[[#This Row],[Size]],\"#,##0.00\"),\" \",Table_SummaryPI[[#This Row],[SizeUnit]]),\"\")","v":""},{"$f":"SUBSTITUTE(Table_PI[[#This Row],[Measure]],\"     \",\"\",1)","v":""},{"$f":"IF(Table_PI[[#This Row],[List 1]]<>\"\",Table_PI[[#This Row],[List 1]],\"\")","v":""},{"$f":"IF(Table_PI[[#This Row],[List 2]]<>\"\",Table_PI[[#This Row],[List 2]],\"\")","v":""},{"$f":"IF(Table_PI[[#This Row],[List 3]]<>\"\",Table_PI[[#This Row],[List 3]],\"\")","v":""},{"$f":"IF(Table_PI[[#This Row],[Manufacturer]]=\"\",\"\",Table_PI[[#This Row],[Manufacturer]])","v":""},{"$f":"IF(Table_PI[[#This Row],[Model Number]]=\"\",\"\",Table_PI[[#This Row],[Model Number]])","v":""},{"$f":"IF(Table_PI[[#This Row],[Serial Number(s)]]=\"\",\"\",Table_PI[[#This Row],[Serial Number(s)]])","v":""},null,{"$f":"IF(Table_PI[[#This Row],[Size]]=\"\",\"\",Table_PI[[#This Row],[Size]])","v":""},null,null,{"$f":"IF(Table_PI[[#This Row],[Input 1]]<>\"\",Table_PI[[#This Row],[Input 1]],\"\")","v":""},null,null,{"$f":"IF(Table_PI[[#This Row],[Input 2]]<>\"\",Table_PI[[#This Row],[Input 2]],\"\")","v":""},null,null,{"$f":"IF(Table_PI[[#This Row],[Input 3]]<>\"\",Table_PI[[#This Row],[Input 3]],\"\")","v":""},null,null,{"$f":"IF(Table_PI[[#This Row],[Input 4]]<>\"\",Table_PI[[#This Row],[Input 4]],\"\")","v":""},null,null,{"$f":"IF(Table_PI[[#This Row],[Input 4]]<>\"\",Table_PI[[#This Row],[Input 4]],\"\")","v":""},null,null,{"$f":"IF(Table_PI[[#This Row],[Input 4]]<>\"\",Table_PI[[#This Row],[Input 4]],\"\")","v":""},{"$f":"IF(Table_PI[[#This Row],[Quantity]]=\"\",\"\",Table_PI[[#This Row],[Quantity]])","v":""},{"$f":"IF(Table_PI[[#This Row],[Notes]]=\"\",\"\",Table_PI[[#This Row],[Notes]])","v":""},{"$f":"IF(OR(Table_PI[[#This Row],[Hide: Baseline kWh]]=\"\",Table_PI[[#This Row],[Hide: Baseline kWh]]=0,ISTEXT(Table_PI[[#This Row],[Hide: Baseline kWh]])),\"\",Table_PI[[#This Row],[Hide: Baseline kWh]])","v":""},{"$f":"IF(OR(Table_PI[[#This Row],[Hide: Baseline kW]]=\"\",Table_PI[[#This Row],[Hide: Baseline kW]]=0,ISTEXT(Table_PI[[#This Row],[Hide: Baseline kW]])),\"\",Table_PI[[#This Row],[Hide: Baseline kW]])","v":""},{"$f":"IF(OR(Table_PI[[#This Row],[Hide: Proposed kWh]]=\"\",Table_PI[[#This Row],[Hide: Proposed kWh]]=0,ISTEXT(Table_PI[[#This Row],[Hide: Proposed kWh]])),\"\",Table_PI[[#This Row],[Hide: Proposed kWh]])","v":""},{"$f":"IF(OR(Table_PI[[#This Row],[Hide: Proposed kW]]=\"\",Table_PI[[#This Row],[Hide: Proposed kW]]=0,ISTEXT(Table_PI[[#This Row],[Hide: Proposed kW]])),\"\",Table_PI[[#This Row],[Hide: Proposed kW]])","v":""},null,null,{"$f":"IF(OR(Table_PI[[#This Row],[Hide: Rebate]]=\"\",Table_PI[[#This Row],[Hide: Rebate]]=0,ISTEXT(Table_PI[[#This Row],[Hide: Rebate]])),\"\",Table_PI[[#This Row],[Hide: Rebate]])","v":""},null,{"$f":"IF(OR(Table_PI[[#This Row],[Hide: Incremental Cost]]=\"\",Table_PI[[#This Row],[Hide: Incremental Cost]]=0,ISTEXT(Table_PI[[#This Row],[Hide: Incremental Cost]])),\"\",Table_PI[[#This Row],[Hide: Incremental Cost]])","v":""},{"$f":"IFERROR(IF(Table_SummaryPI[[#This Row],[Incentive_Customer]]=\"\",\"\",ROUND(Table_SummaryPI[[#This Row],[Incentive_Customer]]/$AM$401*'Customer Information'!$BC$21,2)),0)","v":""},{"$f":"IF(OR(Table_PI[[#This Row],[Annual kWh]]=\"\",Table_PI[[#This Row],[Annual kWh]]=0,ISTEXT(Table_PI[[#This Row],[Annual kWh]])),\"\",Table_PI[[#This Row],[Annual kWh]])","v":""},{"$f":"IF(OR(Table_PI[[#This Row],[Peak kW]]=\"\",Table_PI[[#This Row],[Peak kW]]=0,ISTEXT(Table_PI[[#This Row],[Peak kW]])),\"\",Table_PI[[#This Row],[Peak kW]])","v":""},{"$f":"IF(Table_SummaryPI[[#This Row],[Line No.]]<>\"\",IF(AND(ISNUMBER(FIND(\"Chiller\",Table_SummaryPI[[#This Row],[P_MeasureOption1]],1)),Table_SummaryPI[[#This Row],[ProposedMeasureCategory]]=\"Air-Cooled (Water-Cooled Replacement)\"),$BD$29*Table_SummaryPI[[#This Row],[Size]]*Table_SummaryPI[[#This Row],[Quantity]]*Table_SummaryPI[[#This Row],[EFLHCooling]],\nIF(ISNUMBER(FIND(\"Dishwasher\",Table_SummaryPI[[#This Row],[ProposedMeasureCategory]],1)),$BH$29*Table_SummaryPI[[#This Row],[Quantity]],\nIF(ISNUMBER(FIND(\"Ice Maker\",Table_SummaryPI[[#This Row],[ProposedMeasureCategory]],1)),$BD$31*Table_SummaryPI[[#This Row],[Quantity]],\nIF(ISNUMBER(FIND(\"Spray Valve\",Table_SummaryPI[[#This Row],[ProposedMeasureCategory]],1)),$BH$31*Table_SummaryPI[[#This Row],[Quantity]],\n0)))),\"\")","v":""},{"$f":"IF(OR(Table_PI[[#This Row],[Hide: Electrification kWh]]=\"\",Table_PI[[#This Row],[Hide: Electrification kWh]]=0,ISTEXT(Table_PI[[#This Row],[Hide: Electrification kWh]])),\"\",Table_PI[[#This Row],[Hide: Electrification kWh]])","v":""},{"$f":"IF(OR(Table_PI[[#This Row],[Hide: Electrification GHG]]=\"\",Table_PI[[#This Row],[Hide: Electrification GHG]]=0,ISTEXT(Table_PI[[#This Row],[Hide: Electrification GHG]])),\"\",Table_PI[[#This Row],[Hide: Electrification GHG]])","v":""},{"$f":"IFERROR(IF(Table_SummaryPI[[#This Row],[kWhSavings]]=\"\",\"\",$BH$9*Table_SummaryPI[[#This Row],[kWhSavings]]),0)","v":""},{"$f":"IFERROR(IF(Table_SummaryPI[[#This Row],[kWhSavings]]=\"\",\"\",$BH$14*Table_SummaryPI[[#This Row],[kWhSavings]]),0)","v":""},{"$f":"IFERROR(IF(Table_SummaryPI[[#This Row],[kWhSavings]]=\"\",\"\",$BH$18*Table_SummaryPI[[#This Row],[kWhSavings]]),0)","v":""},{"$f":"IFERROR(IF(Table_SummaryPI[[#This Row],[kWhSavings]]=\"\",\"\",$BH$22*Table_SummaryPI[[#This Row],[kWhSavings]]),0)","v":""}]
[{"$f":"Table_PI[[#This Row],[Line No.]]","v":""},{"$f":"IF(Table_SummaryPI[[#This Row],[MeasureName]]<>\"\",NOT(ISTEXT(Table_PI[[#This Row],[Rebate]])),\"\")","v":""},{"$f":"IF(Table_SummaryPI[[#This Row],[MeassureCategory]]<>\"\",CONCATENATE(Table_SummaryPI[[#This Row],[MeassureCategory]],  \" - \", Table_SummaryPI[[#This Row],[ProposedMeasureCategory]],  \" - \", TEXT(Table_SummaryPI[[#This Row],[Size]],\"#,##0.00\"),\" \",Table_SummaryPI[[#This Row],[SizeUnit]]),\"\")","v":""},{"$f":"SUBSTITUTE(Table_PI[[#This Row],[Measure]],\"     \",\"\",1)","v":""},{"$f":"IF(Table_PI[[#This Row],[List 1]]<>\"\",Table_PI[[#This Row],[List 1]],\"\")","v":""},{"$f":"IF(Table_PI[[#This Row],[List 2]]<>\"\",Table_PI[[#This Row],[List 2]],\"\")","v":""},{"$f":"IF(Table_PI[[#This Row],[List 3]]<>\"\",Table_PI[[#This Row],[List 3]],\"\")","v":""},{"$f":"IF(Table_PI[[#This Row],[Manufacturer]]=\"\",\"\",Table_PI[[#This Row],[Manufacturer]])","v":""},{"$f":"IF(Table_PI[[#This Row],[Model Number]]=\"\",\"\",Table_PI[[#This Row],[Model Number]])","v":""},{"$f":"IF(Table_PI[[#This Row],[Serial Number(s)]]=\"\",\"\",Table_PI[[#This Row],[Serial Number(s)]])","v":""},null,{"$f":"IF(Table_PI[[#This Row],[Size]]=\"\",\"\",Table_PI[[#This Row],[Size]])","v":""},null,null,{"$f":"IF(Table_PI[[#This Row],[Input 1]]<>\"\",Table_PI[[#This Row],[Input 1]],\"\")","v":""},null,null,{"$f":"IF(Table_PI[[#This Row],[Input 2]]<>\"\",Table_PI[[#This Row],[Input 2]],\"\")","v":""},null,null,{"$f":"IF(Table_PI[[#This Row],[Input 3]]<>\"\",Table_PI[[#This Row],[Input 3]],\"\")","v":""},null,null,{"$f":"IF(Table_PI[[#This Row],[Input 4]]<>\"\",Table_PI[[#This Row],[Input 4]],\"\")","v":""},null,null,{"$f":"IF(Table_PI[[#This Row],[Input 4]]<>\"\",Table_PI[[#This Row],[Input 4]],\"\")","v":""},null,null,{"$f":"IF(Table_PI[[#This Row],[Input 4]]<>\"\",Table_PI[[#This Row],[Input 4]],\"\")","v":""},{"$f":"IF(Table_PI[[#This Row],[Quantity]]=\"\",\"\",Table_PI[[#This Row],[Quantity]])","v":""},{"$f":"IF(Table_PI[[#This Row],[Notes]]=\"\",\"\",Table_PI[[#This Row],[Notes]])","v":""},{"$f":"IF(OR(Table_PI[[#This Row],[Hide: Baseline kWh]]=\"\",Table_PI[[#This Row],[Hide: Baseline kWh]]=0,ISTEXT(Table_PI[[#This Row],[Hide: Baseline kWh]])),\"\",Table_PI[[#This Row],[Hide: Baseline kWh]])","v":""},{"$f":"IF(OR(Table_PI[[#This Row],[Hide: Baseline kW]]=\"\",Table_PI[[#This Row],[Hide: Baseline kW]]=0,ISTEXT(Table_PI[[#This Row],[Hide: Baseline kW]])),\"\",Table_PI[[#This Row],[Hide: Baseline kW]])","v":""},{"$f":"IF(OR(Table_PI[[#This Row],[Hide: Proposed kWh]]=\"\",Table_PI[[#This Row],[Hide: Proposed kWh]]=0,ISTEXT(Table_PI[[#This Row],[Hide: Proposed kWh]])),\"\",Table_PI[[#This Row],[Hide: Proposed kWh]])","v":""},{"$f":"IF(OR(Table_PI[[#This Row],[Hide: Proposed kW]]=\"\",Table_PI[[#This Row],[Hide: Proposed kW]]=0,ISTEXT(Table_PI[[#This Row],[Hide: Proposed kW]])),\"\",Table_PI[[#This Row],[Hide: Proposed kW]])","v":""},null,null,{"$f":"IF(OR(Table_PI[[#This Row],[Hide: Rebate]]=\"\",Table_PI[[#This Row],[Hide: Rebate]]=0,ISTEXT(Table_PI[[#This Row],[Hide: Rebate]])),\"\",Table_PI[[#This Row],[Hide: Rebate]])","v":""},null,{"$f":"IF(OR(Table_PI[[#This Row],[Hide: Incremental Cost]]=\"\",Table_PI[[#This Row],[Hide: Incremental Cost]]=0,ISTEXT(Table_PI[[#This Row],[Hide: Incremental Cost]])),\"\",Table_PI[[#This Row],[Hide: Incremental Cost]])","v":""},{"$f":"IFERROR(IF(Table_SummaryPI[[#This Row],[Incentive_Customer]]=\"\",\"\",ROUND(Table_SummaryPI[[#This Row],[Incentive_Customer]]/$AM$401*'Customer Information'!$BC$21,2)),0)","v":""},{"$f":"IF(OR(Table_PI[[#This Row],[Annual kWh]]=\"\",Table_PI[[#This Row],[Annual kWh]]=0,ISTEXT(Table_PI[[#This Row],[Annual kWh]])),\"\",Table_PI[[#This Row],[Annual kWh]])","v":""},{"$f":"IF(OR(Table_PI[[#This Row],[Peak kW]]=\"\",Table_PI[[#This Row],[Peak kW]]=0,ISTEXT(Table_PI[[#This Row],[Peak kW]])),\"\",Table_PI[[#This Row],[Peak kW]])","v":""},{"$f":"IF(Table_SummaryPI[[#This Row],[Line No.]]<>\"\",IF(AND(ISNUMBER(FIND(\"Chiller\",Table_SummaryPI[[#This Row],[P_MeasureOption1]],1)),Table_SummaryPI[[#This Row],[ProposedMeasureCategory]]=\"Air-Cooled (Water-Cooled Replacement)\"),$BD$29*Table_SummaryPI[[#This Row],[Size]]*Table_SummaryPI[[#This Row],[Quantity]]*Table_SummaryPI[[#This Row],[EFLHCooling]],\nIF(ISNUMBER(FIND(\"Dishwasher\",Table_SummaryPI[[#This Row],[ProposedMeasureCategory]],1)),$BH$29*Table_SummaryPI[[#This Row],[Quantity]],\nIF(ISNUMBER(FIND(\"Ice Maker\",Table_SummaryPI[[#This Row],[ProposedMeasureCategory]],1)),$BD$31*Table_SummaryPI[[#This Row],[Quantity]],\nIF(ISNUMBER(FIND(\"Spray Valve\",Table_SummaryPI[[#This Row],[ProposedMeasureCategory]],1)),$BH$31*Table_SummaryPI[[#This Row],[Quantity]],\n0)))),\"\")","v":""},{"$f":"IF(OR(Table_PI[[#This Row],[Hide: Electrification kWh]]=\"\",Table_PI[[#This Row],[Hide: Electrification kWh]]=0,ISTEXT(Table_PI[[#This Row],[Hide: Electrification kWh]])),\"\",Table_PI[[#This Row],[Hide: Electrification kWh]])","v":""},{"$f":"IF(OR(Table_PI[[#This Row],[Hide: Electrification GHG]]=\"\",Table_PI[[#This Row],[Hide: Electrification GHG]]=0,ISTEXT(Table_PI[[#This Row],[Hide: Electrification GHG]])),\"\",Table_PI[[#This Row],[Hide: Electrification GHG]])","v":""},{"$f":"IFERROR(IF(Table_SummaryPI[[#This Row],[kWhSavings]]=\"\",\"\",$BH$9*Table_SummaryPI[[#This Row],[kWhSavings]]),0)","v":""},{"$f":"IFERROR(IF(Table_SummaryPI[[#This Row],[kWhSavings]]=\"\",\"\",$BH$14*Table_SummaryPI[[#This Row],[kWhSavings]]),0)","v":""},{"$f":"IFERROR(IF(Table_SummaryPI[[#This Row],[kWhSavings]]=\"\",\"\",$BH$18*Table_SummaryPI[[#This Row],[kWhSavings]]),0)","v":""},{"$f":"IFERROR(IF(Table_SummaryPI[[#This Row],[kWhSavings]]=\"\",\"\",$BH$22*Table_SummaryPI[[#This Row],[kWhSavings]]),0)","v":""}]
[{"$f":"Table_PI[[#This Row],[Line No.]]","v":""},{"$f":"IF(Table_SummaryPI[[#This Row],[MeasureName]]<>\"\",NOT(ISTEXT(Table_PI[[#This Row],[Rebate]])),\"\")","v":""},{"$f":"IF(Table_SummaryPI[[#This Row],[MeassureCategory]]<>\"\",CONCATENATE(Table_SummaryPI[[#This Row],[MeassureCategory]],  \" - \", Table_SummaryPI[[#This Row],[ProposedMeasureCategory]],  \" - \", TEXT(Table_SummaryPI[[#This Row],[Size]],\"#,##0.00\"),\" \",Table_SummaryPI[[#This Row],[SizeUnit]]),\"\")","v":""},{"$f":"SUBSTITUTE(Table_PI[[#This Row],[Measure]],\"     \",\"\",1)","v":""},{"$f":"IF(Table_PI[[#This Row],[List 1]]<>\"\",Table_PI[[#This Row],[List 1]],\"\")","v":""},{"$f":"IF(Table_PI[[#This Row],[List 2]]<>\"\",Table_PI[[#This Row],[List 2]],\"\")","v":""},{"$f":"IF(Table_PI[[#This Row],[List 3]]<>\"\",Table_PI[[#This Row],[List 3]],\"\")","v":""},{"$f":"IF(Table_PI[[#This Row],[Manufacturer]]=\"\",\"\",Table_PI[[#This Row],[Manufacturer]])","v":""},{"$f":"IF(Table_PI[[#This Row],[Model Number]]=\"\",\"\",Table_PI[[#This Row],[Model Number]])","v":""},{"$f":"IF(Table_PI[[#This Row],[Serial Number(s)]]=\"\",\"\",Table_PI[[#This Row],[Serial Number(s)]])","v":""},null,{"$f":"IF(Table_PI[[#This Row],[Size]]=\"\",\"\",Table_PI[[#This Row],[Size]])","v":""},null,null,{"$f":"IF(Table_PI[[#This Row],[Input 1]]<>\"\",Table_PI[[#This Row],[Input 1]],\"\")","v":""},null,null,{"$f":"IF(Table_PI[[#This Row],[Input 2]]<>\"\",Table_PI[[#This Row],[Input 2]],\"\")","v":""},null,null,{"$f":"IF(Table_PI[[#This Row],[Input 3]]<>\"\",Table_PI[[#This Row],[Input 3]],\"\")","v":""},null,null,{"$f":"IF(Table_PI[[#This Row],[Input 4]]<>\"\",Table_PI[[#This Row],[Input 4]],\"\")","v":""},null,null,{"$f":"IF(Table_PI[[#This Row],[Input 4]]<>\"\",Table_PI[[#This Row],[Input 4]],\"\")","v":""},null,null,{"$f":"IF(Table_PI[[#This Row],[Input 4]]<>\"\",Table_PI[[#This Row],[Input 4]],\"\")","v":""},{"$f":"IF(Table_PI[[#This Row],[Quantity]]=\"\",\"\",Table_PI[[#This Row],[Quantity]])","v":""},{"$f":"IF(Table_PI[[#This Row],[Notes]]=\"\",\"\",Table_PI[[#This Row],[Notes]])","v":""},{"$f":"IF(OR(Table_PI[[#This Row],[Hide: Baseline kWh]]=\"\",Table_PI[[#This Row],[Hide: Baseline kWh]]=0,ISTEXT(Table_PI[[#This Row],[Hide: Baseline kWh]])),\"\",Table_PI[[#This Row],[Hide: Baseline kWh]])","v":""},{"$f":"IF(OR(Table_PI[[#This Row],[Hide: Baseline kW]]=\"\",Table_PI[[#This Row],[Hide: Baseline kW]]=0,ISTEXT(Table_PI[[#This Row],[Hide: Baseline kW]])),\"\",Table_PI[[#This Row],[Hide: Baseline kW]])","v":""},{"$f":"IF(OR(Table_PI[[#This Row],[Hide: Proposed kWh]]=\"\",Table_PI[[#This Row],[Hide: Proposed kWh]]=0,ISTEXT(Table_PI[[#This Row],[Hide: Proposed kWh]])),\"\",Table_PI[[#This Row],[Hide: Proposed kWh]])","v":""},{"$f":"IF(OR(Table_PI[[#This Row],[Hide: Proposed kW]]=\"\",Table_PI[[#This Row],[Hide: Proposed kW]]=0,ISTEXT(Table_PI[[#This Row],[Hide: Proposed kW]])),\"\",Table_PI[[#This Row],[Hide: Proposed kW]])","v":""},null,null,{"$f":"IF(OR(Table_PI[[#This Row],[Hide: Rebate]]=\"\",Table_PI[[#This Row],[Hide: Rebate]]=0,ISTEXT(Table_PI[[#This Row],[Hide: Rebate]])),\"\",Table_PI[[#This Row],[Hide: Rebate]])","v":""},null,{"$f":"IF(OR(Table_PI[[#This Row],[Hide: Incremental Cost]]=\"\",Table_PI[[#This Row],[Hide: Incremental Cost]]=0,ISTEXT(Table_PI[[#This Row],[Hide: Incremental Cost]])),\"\",Table_PI[[#This Row],[Hide: Incremental Cost]])","v":""},{"$f":"IFERROR(IF(Table_SummaryPI[[#This Row],[Incentive_Customer]]=\"\",\"\",ROUND(Table_SummaryPI[[#This Row],[Incentive_Customer]]/$AM$401*'Customer Information'!$BC$21,2)),0)","v":""},{"$f":"IF(OR(Table_PI[[#This Row],[Annual kWh]]=\"\",Table_PI[[#This Row],[Annual kWh]]=0,ISTEXT(Table_PI[[#This Row],[Annual kWh]])),\"\",Table_PI[[#This Row],[Annual kWh]])","v":""},{"$f":"IF(OR(Table_PI[[#This Row],[Peak kW]]=\"\",Table_PI[[#This Row],[Peak kW]]=0,ISTEXT(Table_PI[[#This Row],[Peak kW]])),\"\",Table_PI[[#This Row],[Peak kW]])","v":""},{"$f":"IF(Table_SummaryPI[[#This Row],[Line No.]]<>\"\",IF(AND(ISNUMBER(FIND(\"Chiller\",Table_SummaryPI[[#This Row],[P_MeasureOption1]],1)),Table_SummaryPI[[#This Row],[ProposedMeasureCategory]]=\"Air-Cooled (Water-Cooled Replacement)\"),$BD$29*Table_SummaryPI[[#This Row],[Size]]*Table_SummaryPI[[#This Row],[Quantity]]*Table_SummaryPI[[#This Row],[EFLHCooling]],\nIF(ISNUMBER(FIND(\"Dishwasher\",Table_SummaryPI[[#This Row],[ProposedMeasureCategory]],1)),$BH$29*Table_SummaryPI[[#This Row],[Quantity]],\nIF(ISNUMBER(FIND(\"Ice Maker\",Table_SummaryPI[[#This Row],[ProposedMeasureCategory]],1)),$BD$31*Table_SummaryPI[[#This Row],[Quantity]],\nIF(ISNUMBER(FIND(\"Spray Valve\",Table_SummaryPI[[#This Row],[ProposedMeasureCategory]],1)),$BH$31*Table_SummaryPI[[#This Row],[Quantity]],\n0)))),\"\")","v":""},{"$f":"IF(OR(Table_PI[[#This Row],[Hide: Electrification kWh]]=\"\",Table_PI[[#This Row],[Hide: Electrification kWh]]=0,ISTEXT(Table_PI[[#This Row],[Hide: Electrification kWh]])),\"\",Table_PI[[#This Row],[Hide: Electrification kWh]])","v":""},{"$f":"IF(OR(Table_PI[[#This Row],[Hide: Electrification GHG]]=\"\",Table_PI[[#This Row],[Hide: Electrification GHG]]=0,ISTEXT(Table_PI[[#This Row],[Hide: Electrification GHG]])),\"\",Table_PI[[#This Row],[Hide: Electrification GHG]])","v":""},{"$f":"IFERROR(IF(Table_SummaryPI[[#This Row],[kWhSavings]]=\"\",\"\",$BH$9*Table_SummaryPI[[#This Row],[kWhSavings]]),0)","v":""},{"$f":"IFERROR(IF(Table_SummaryPI[[#This Row],[kWhSavings]]=\"\",\"\",$BH$14*Table_SummaryPI[[#This Row],[kWhSavings]]),0)","v":""},{"$f":"IFERROR(IF(Table_SummaryPI[[#This Row],[kWhSavings]]=\"\",\"\",$BH$18*Table_SummaryPI[[#This Row],[kWhSavings]]),0)","v":""},{"$f":"IFERROR(IF(Table_SummaryPI[[#This Row],[kWhSavings]]=\"\",\"\",$BH$22*Table_SummaryPI[[#This Row],[kWhSavings]]),0)","v":""}]
[{"$f":"Table_PI[[#This Row],[Line No.]]","v":""},{"$f":"IF(Table_SummaryPI[[#This Row],[MeasureName]]<>\"\",NOT(ISTEXT(Table_PI[[#This Row],[Rebate]])),\"\")","v":""},{"$f":"IF(Table_SummaryPI[[#This Row],[MeassureCategory]]<>\"\",CONCATENATE(Table_SummaryPI[[#This Row],[MeassureCategory]],  \" - \", Table_SummaryPI[[#This Row],[ProposedMeasureCategory]],  \" - \", TEXT(Table_SummaryPI[[#This Row],[Size]],\"#,##0.00\"),\" \",Table_SummaryPI[[#This Row],[SizeUnit]]),\"\")","v":""},{"$f":"SUBSTITUTE(Table_PI[[#This Row],[Measure]],\"     \",\"\",1)","v":""},{"$f":"IF(Table_PI[[#This Row],[List 1]]<>\"\",Table_PI[[#This Row],[List 1]],\"\")","v":""},{"$f":"IF(Table_PI[[#This Row],[List 2]]<>\"\",Table_PI[[#This Row],[List 2]],\"\")","v":""},{"$f":"IF(Table_PI[[#This Row],[List 3]]<>\"\",Table_PI[[#This Row],[List 3]],\"\")","v":""},{"$f":"IF(Table_PI[[#This Row],[Manufacturer]]=\"\",\"\",Table_PI[[#This Row],[Manufacturer]])","v":""},{"$f":"IF(Table_PI[[#This Row],[Model Number]]=\"\",\"\",Table_PI[[#This Row],[Model Number]])","v":""},{"$f":"IF(Table_PI[[#This Row],[Serial Number(s)]]=\"\",\"\",Table_PI[[#This Row],[Serial Number(s)]])","v":""},null,{"$f":"IF(Table_PI[[#This Row],[Size]]=\"\",\"\",Table_PI[[#This Row],[Size]])","v":""},null,null,{"$f":"IF(Table_PI[[#This Row],[Input 1]]<>\"\",Table_PI[[#This Row],[Input 1]],\"\")","v":""},null,null,{"$f":"IF(Table_PI[[#This Row],[Input 2]]<>\"\",Table_PI[[#This Row],[Input 2]],\"\")","v":""},null,null,{"$f":"IF(Table_PI[[#This Row],[Input 3]]<>\"\",Table_PI[[#This Row],[Input 3]],\"\")","v":""},null,null,{"$f":"IF(Table_PI[[#This Row],[Input 4]]<>\"\",Table_PI[[#This Row],[Input 4]],\"\")","v":""},null,null,{"$f":"IF(Table_PI[[#This Row],[Input 4]]<>\"\",Table_PI[[#This Row],[Input 4]],\"\")","v":""},null,null,{"$f":"IF(Table_PI[[#This Row],[Input 4]]<>\"\",Table_PI[[#This Row],[Input 4]],\"\")","v":""},{"$f":"IF(Table_PI[[#This Row],[Quantity]]=\"\",\"\",Table_PI[[#This Row],[Quantity]])","v":""},{"$f":"IF(Table_PI[[#This Row],[Notes]]=\"\",\"\",Table_PI[[#This Row],[Notes]])","v":""},{"$f":"IF(OR(Table_PI[[#This Row],[Hide: Baseline kWh]]=\"\",Table_PI[[#This Row],[Hide: Baseline kWh]]=0,ISTEXT(Table_PI[[#This Row],[Hide: Baseline kWh]])),\"\",Table_PI[[#This Row],[Hide: Baseline kWh]])","v":""},{"$f":"IF(OR(Table_PI[[#This Row],[Hide: Baseline kW]]=\"\",Table_PI[[#This Row],[Hide: Baseline kW]]=0,ISTEXT(Table_PI[[#This Row],[Hide: Baseline kW]])),\"\",Table_PI[[#This Row],[Hide: Baseline kW]])","v":""},{"$f":"IF(OR(Table_PI[[#This Row],[Hide: Proposed kWh]]=\"\",Table_PI[[#This Row],[Hide: Proposed kWh]]=0,ISTEXT(Table_PI[[#This Row],[Hide: Proposed kWh]])),\"\",Table_PI[[#This Row],[Hide: Proposed kWh]])","v":""},{"$f":"IF(OR(Table_PI[[#This Row],[Hide: Proposed kW]]=\"\",Table_PI[[#This Row],[Hide: Proposed kW]]=0,ISTEXT(Table_PI[[#This Row],[Hide: Proposed kW]])),\"\",Table_PI[[#This Row],[Hide: Proposed kW]])","v":""},null,null,{"$f":"IF(OR(Table_PI[[#This Row],[Hide: Rebate]]=\"\",Table_PI[[#This Row],[Hide: Rebate]]=0,ISTEXT(Table_PI[[#This Row],[Hide: Rebate]])),\"\",Table_PI[[#This Row],[Hide: Rebate]])","v":""},null,{"$f":"IF(OR(Table_PI[[#This Row],[Hide: Incremental Cost]]=\"\",Table_PI[[#This Row],[Hide: Incremental Cost]]=0,ISTEXT(Table_PI[[#This Row],[Hide: Incremental Cost]])),\"\",Table_PI[[#This Row],[Hide: Incremental Cost]])","v":""},{"$f":"IFERROR(IF(Table_SummaryPI[[#This Row],[Incentive_Customer]]=\"\",\"\",ROUND(Table_SummaryPI[[#This Row],[Incentive_Customer]]/$AM$401*'Customer Information'!$BC$21,2)),0)","v":""},{"$f":"IF(OR(Table_PI[[#This Row],[Annual kWh]]=\"\",Table_PI[[#This Row],[Annual kWh]]=0,ISTEXT(Table_PI[[#This Row],[Annual kWh]])),\"\",Table_PI[[#This Row],[Annual kWh]])","v":""},{"$f":"IF(OR(Table_PI[[#This Row],[Peak kW]]=\"\",Table_PI[[#This Row],[Peak kW]]=0,ISTEXT(Table_PI[[#This Row],[Peak kW]])),\"\",Table_PI[[#This Row],[Peak kW]])","v":""},{"$f":"IF(Table_SummaryPI[[#This Row],[Line No.]]<>\"\",IF(AND(ISNUMBER(FIND(\"Chiller\",Table_SummaryPI[[#This Row],[P_MeasureOption1]],1)),Table_SummaryPI[[#This Row],[ProposedMeasureCategory]]=\"Air-Cooled (Water-Cooled Replacement)\"),$BD$29*Table_SummaryPI[[#This Row],[Size]]*Table_SummaryPI[[#This Row],[Quantity]]*Table_SummaryPI[[#This Row],[EFLHCooling]],\nIF(ISNUMBER(FIND(\"Dishwasher\",Table_SummaryPI[[#This Row],[ProposedMeasureCategory]],1)),$BH$29*Table_SummaryPI[[#This Row],[Quantity]],\nIF(ISNUMBER(FIND(\"Ice Maker\",Table_SummaryPI[[#This Row],[ProposedMeasureCategory]],1)),$BD$31*Table_SummaryPI[[#This Row],[Quantity]],\nIF(ISNUMBER(FIND(\"Spray Valve\",Table_SummaryPI[[#This Row],[ProposedMeasureCategory]],1)),$BH$31*Table_SummaryPI[[#This Row],[Quantity]],\n0)))),\"\")","v":""},{"$f":"IF(OR(Table_PI[[#This Row],[Hide: Electrification kWh]]=\"\",Table_PI[[#This Row],[Hide: Electrification kWh]]=0,ISTEXT(Table_PI[[#This Row],[Hide: Electrification kWh]])),\"\",Table_PI[[#This Row],[Hide: Electrification kWh]])","v":""},{"$f":"IF(OR(Table_PI[[#This Row],[Hide: Electrification GHG]]=\"\",Table_PI[[#This Row],[Hide: Electrification GHG]]=0,ISTEXT(Table_PI[[#This Row],[Hide: Electrification GHG]])),\"\",Table_PI[[#This Row],[Hide: Electrification GHG]])","v":""},{"$f":"IFERROR(IF(Table_SummaryPI[[#This Row],[kWhSavings]]=\"\",\"\",$BH$9*Table_SummaryPI[[#This Row],[kWhSavings]]),0)","v":""},{"$f":"IFERROR(IF(Table_SummaryPI[[#This Row],[kWhSavings]]=\"\",\"\",$BH$14*Table_SummaryPI[[#This Row],[kWhSavings]]),0)","v":""},{"$f":"IFERROR(IF(Table_SummaryPI[[#This Row],[kWhSavings]]=\"\",\"\",$BH$18*Table_SummaryPI[[#This Row],[kWhSavings]]),0)","v":""},{"$f":"IFERROR(IF(Table_SummaryPI[[#This Row],[kWhSavings]]=\"\",\"\",$BH$22*Table_SummaryPI[[#This Row],[kWhSavings]]),0)","v":""}]
[{"$f":"Table_PI[[#This Row],[Line No.]]","v":""},{"$f":"IF(Table_SummaryPI[[#This Row],[MeasureName]]<>\"\",NOT(ISTEXT(Table_PI[[#This Row],[Rebate]])),\"\")","v":""},{"$f":"IF(Table_SummaryPI[[#This Row],[MeassureCategory]]<>\"\",CONCATENATE(Table_SummaryPI[[#This Row],[MeassureCategory]],  \" - \", Table_SummaryPI[[#This Row],[ProposedMeasureCategory]],  \" - \", TEXT(Table_SummaryPI[[#This Row],[Size]],\"#,##0.00\"),\" \",Table_SummaryPI[[#This Row],[SizeUnit]]),\"\")","v":""},{"$f":"SUBSTITUTE(Table_PI[[#This Row],[Measure]],\"     \",\"\",1)","v":""},{"$f":"IF(Table_PI[[#This Row],[List 1]]<>\"\",Table_PI[[#This Row],[List 1]],\"\")","v":""},{"$f":"IF(Table_PI[[#This Row],[List 2]]<>\"\",Table_PI[[#This Row],[List 2]],\"\")","v":""},{"$f":"IF(Table_PI[[#This Row],[List 3]]<>\"\",Table_PI[[#This Row],[List 3]],\"\")","v":""},{"$f":"IF(Table_PI[[#This Row],[Manufacturer]]=\"\",\"\",Table_PI[[#This Row],[Manufacturer]])","v":""},{"$f":"IF(Table_PI[[#This Row],[Model Number]]=\"\",\"\",Table_PI[[#This Row],[Model Number]])","v":""},{"$f":"IF(Table_PI[[#This Row],[Serial Number(s)]]=\"\",\"\",Table_PI[[#This Row],[Serial Number(s)]])","v":""},null,{"$f":"IF(Table_PI[[#This Row],[Size]]=\"\",\"\",Table_PI[[#This Row],[Size]])","v":""},null,null,{"$f":"IF(Table_PI[[#This Row],[Input 1]]<>\"\",Table_PI[[#This Row],[Input 1]],\"\")","v":""},null,null,{"$f":"IF(Table_PI[[#This Row],[Input 2]]<>\"\",Table_PI[[#This Row],[Input 2]],\"\")","v":""},null,null,{"$f":"IF(Table_PI[[#This Row],[Input 3]]<>\"\",Table_PI[[#This Row],[Input 3]],\"\")","v":""},null,null,{"$f":"IF(Table_PI[[#This Row],[Input 4]]<>\"\",Table_PI[[#This Row],[Input 4]],\"\")","v":""},null,null,{"$f":"IF(Table_PI[[#This Row],[Input 4]]<>\"\",Table_PI[[#This Row],[Input 4]],\"\")","v":""},null,null,{"$f":"IF(Table_PI[[#This Row],[Input 4]]<>\"\",Table_PI[[#This Row],[Input 4]],\"\")","v":""},{"$f":"IF(Table_PI[[#This Row],[Quantity]]=\"\",\"\",Table_PI[[#This Row],[Quantity]])","v":""},{"$f":"IF(Table_PI[[#This Row],[Notes]]=\"\",\"\",Table_PI[[#This Row],[Notes]])","v":""},{"$f":"IF(OR(Table_PI[[#This Row],[Hide: Baseline kWh]]=\"\",Table_PI[[#This Row],[Hide: Baseline kWh]]=0,ISTEXT(Table_PI[[#This Row],[Hide: Baseline kWh]])),\"\",Table_PI[[#This Row],[Hide: Baseline kWh]])","v":""},{"$f":"IF(OR(Table_PI[[#This Row],[Hide: Baseline kW]]=\"\",Table_PI[[#This Row],[Hide: Baseline kW]]=0,ISTEXT(Table_PI[[#This Row],[Hide: Baseline kW]])),\"\",Table_PI[[#This Row],[Hide: Baseline kW]])","v":""},{"$f":"IF(OR(Table_PI[[#This Row],[Hide: Proposed kWh]]=\"\",Table_PI[[#This Row],[Hide: Proposed kWh]]=0,ISTEXT(Table_PI[[#This Row],[Hide: Proposed kWh]])),\"\",Table_PI[[#This Row],[Hide: Proposed kWh]])","v":""},{"$f":"IF(OR(Table_PI[[#This Row],[Hide: Proposed kW]]=\"\",Table_PI[[#This Row],[Hide: Proposed kW]]=0,ISTEXT(Table_PI[[#This Row],[Hide: Proposed kW]])),\"\",Table_PI[[#This Row],[Hide: Proposed kW]])","v":""},null,null,{"$f":"IF(OR(Table_PI[[#This Row],[Hide: Rebate]]=\"\",Table_PI[[#This Row],[Hide: Rebate]]=0,ISTEXT(Table_PI[[#This Row],[Hide: Rebate]])),\"\",Table_PI[[#This Row],[Hide: Rebate]])","v":""},null,{"$f":"IF(OR(Table_PI[[#This Row],[Hide: Incremental Cost]]=\"\",Table_PI[[#This Row],[Hide: Incremental Cost]]=0,ISTEXT(Table_PI[[#This Row],[Hide: Incremental Cost]])),\"\",Table_PI[[#This Row],[Hide: Incremental Cost]])","v":""},{"$f":"IFERROR(IF(Table_SummaryPI[[#This Row],[Incentive_Customer]]=\"\",\"\",ROUND(Table_SummaryPI[[#This Row],[Incentive_Customer]]/$AM$401*'Customer Information'!$BC$21,2)),0)","v":""},{"$f":"IF(OR(Table_PI[[#This Row],[Annual kWh]]=\"\",Table_PI[[#This Row],[Annual kWh]]=0,ISTEXT(Table_PI[[#This Row],[Annual kWh]])),\"\",Table_PI[[#This Row],[Annual kWh]])","v":""},{"$f":"IF(OR(Table_PI[[#This Row],[Peak kW]]=\"\",Table_PI[[#This Row],[Peak kW]]=0,ISTEXT(Table_PI[[#This Row],[Peak kW]])),\"\",Table_PI[[#This Row],[Peak kW]])","v":""},{"$f":"IF(Table_SummaryPI[[#This Row],[Line No.]]<>\"\",IF(AND(ISNUMBER(FIND(\"Chiller\",Table_SummaryPI[[#This Row],[P_MeasureOption1]],1)),Table_SummaryPI[[#This Row],[ProposedMeasureCategory]]=\"Air-Cooled (Water-Cooled Replacement)\"),$BD$29*Table_SummaryPI[[#This Row],[Size]]*Table_SummaryPI[[#This Row],[Quantity]]*Table_SummaryPI[[#This Row],[EFLHCooling]],\nIF(ISNUMBER(FIND(\"Dishwasher\",Table_SummaryPI[[#This Row],[ProposedMeasureCategory]],1)),$BH$29*Table_SummaryPI[[#This Row],[Quantity]],\nIF(ISNUMBER(FIND(\"Ice Maker\",Table_SummaryPI[[#This Row],[ProposedMeasureCategory]],1)),$BD$31*Table_SummaryPI[[#This Row],[Quantity]],\nIF(ISNUMBER(FIND(\"Spray Valve\",Table_SummaryPI[[#This Row],[ProposedMeasureCategory]],1)),$BH$31*Table_SummaryPI[[#This Row],[Quantity]],\n0)))),\"\")","v":""},{"$f":"IF(OR(Table_PI[[#This Row],[Hide: Electrification kWh]]=\"\",Table_PI[[#This Row],[Hide: Electrification kWh]]=0,ISTEXT(Table_PI[[#This Row],[Hide: Electrification kWh]])),\"\",Table_PI[[#This Row],[Hide: Electrification kWh]])","v":""},{"$f":"IF(OR(Table_PI[[#This Row],[Hide: Electrification GHG]]=\"\",Table_PI[[#This Row],[Hide: Electrification GHG]]=0,ISTEXT(Table_PI[[#This Row],[Hide: Electrification GHG]])),\"\",Table_PI[[#This Row],[Hide: Electrification GHG]])","v":""},{"$f":"IFERROR(IF(Table_SummaryPI[[#This Row],[kWhSavings]]=\"\",\"\",$BH$9*Table_SummaryPI[[#This Row],[kWhSavings]]),0)","v":""},{"$f":"IFERROR(IF(Table_SummaryPI[[#This Row],[kWhSavings]]=\"\",\"\",$BH$14*Table_SummaryPI[[#This Row],[kWhSavings]]),0)","v":""},{"$f":"IFERROR(IF(Table_SummaryPI[[#This Row],[kWhSavings]]=\"\",\"\",$BH$18*Table_SummaryPI[[#This Row],[kWhSavings]]),0)","v":""},{"$f":"IFERROR(IF(Table_SummaryPI[[#This Row],[kWhSavings]]=\"\",\"\",$BH$22*Table_SummaryPI[[#This Row],[kWhSavings]]),0)","v":""}]
[{"$f":"Table_PI[[#This Row],[Line No.]]","v":""},{"$f":"IF(Table_SummaryPI[[#This Row],[MeasureName]]<>\"\",NOT(ISTEXT(Table_PI[[#This Row],[Rebate]])),\"\")","v":""},{"$f":"IF(Table_SummaryPI[[#This Row],[MeassureCategory]]<>\"\",CONCATENATE(Table_SummaryPI[[#This Row],[MeassureCategory]],  \" - \", Table_SummaryPI[[#This Row],[ProposedMeasureCategory]],  \" - \", TEXT(Table_SummaryPI[[#This Row],[Size]],\"#,##0.00\"),\" \",Table_SummaryPI[[#This Row],[SizeUnit]]),\"\")","v":""},{"$f":"SUBSTITUTE(Table_PI[[#This Row],[Measure]],\"     \",\"\",1)","v":""},{"$f":"IF(Table_PI[[#This Row],[List 1]]<>\"\",Table_PI[[#This Row],[List 1]],\"\")","v":""},{"$f":"IF(Table_PI[[#This Row],[List 2]]<>\"\",Table_PI[[#This Row],[List 2]],\"\")","v":""},{"$f":"IF(Table_PI[[#This Row],[List 3]]<>\"\",Table_PI[[#This Row],[List 3]],\"\")","v":""},{"$f":"IF(Table_PI[[#This Row],[Manufacturer]]=\"\",\"\",Table_PI[[#This Row],[Manufacturer]])","v":""},{"$f":"IF(Table_PI[[#This Row],[Model Number]]=\"\",\"\",Table_PI[[#This Row],[Model Number]])","v":""},{"$f":"IF(Table_PI[[#This Row],[Serial Number(s)]]=\"\",\"\",Table_PI[[#This Row],[Serial Number(s)]])","v":""},null,{"$f":"IF(Table_PI[[#This Row],[Size]]=\"\",\"\",Table_PI[[#This Row],[Size]])","v":""},null,null,{"$f":"IF(Table_PI[[#This Row],[Input 1]]<>\"\",Table_PI[[#This Row],[Input 1]],\"\")","v":""},null,null,{"$f":"IF(Table_PI[[#This Row],[Input 2]]<>\"\",Table_PI[[#This Row],[Input 2]],\"\")","v":""},null,null,{"$f":"IF(Table_PI[[#This Row],[Input 3]]<>\"\",Table_PI[[#This Row],[Input 3]],\"\")","v":""},null,null,{"$f":"IF(Table_PI[[#This Row],[Input 4]]<>\"\",Table_PI[[#This Row],[Input 4]],\"\")","v":""},null,null,{"$f":"IF(Table_PI[[#This Row],[Input 4]]<>\"\",Table_PI[[#This Row],[Input 4]],\"\")","v":""},null,null,{"$f":"IF(Table_PI[[#This Row],[Input 4]]<>\"\",Table_PI[[#This Row],[Input 4]],\"\")","v":""},{"$f":"IF(Table_PI[[#This Row],[Quantity]]=\"\",\"\",Table_PI[[#This Row],[Quantity]])","v":""},{"$f":"IF(Table_PI[[#This Row],[Notes]]=\"\",\"\",Table_PI[[#This Row],[Notes]])","v":""},{"$f":"IF(OR(Table_PI[[#This Row],[Hide: Baseline kWh]]=\"\",Table_PI[[#This Row],[Hide: Baseline kWh]]=0,ISTEXT(Table_PI[[#This Row],[Hide: Baseline kWh]])),\"\",Table_PI[[#This Row],[Hide: Baseline kWh]])","v":""},{"$f":"IF(OR(Table_PI[[#This Row],[Hide: Baseline kW]]=\"\",Table_PI[[#This Row],[Hide: Baseline kW]]=0,ISTEXT(Table_PI[[#This Row],[Hide: Baseline kW]])),\"\",Table_PI[[#This Row],[Hide: Baseline kW]])","v":""},{"$f":"IF(OR(Table_PI[[#This Row],[Hide: Proposed kWh]]=\"\",Table_PI[[#This Row],[Hide: Proposed kWh]]=0,ISTEXT(Table_PI[[#This Row],[Hide: Proposed kWh]])),\"\",Table_PI[[#This Row],[Hide: Proposed kWh]])","v":""},{"$f":"IF(OR(Table_PI[[#This Row],[Hide: Proposed kW]]=\"\",Table_PI[[#This Row],[Hide: Proposed kW]]=0,ISTEXT(Table_PI[[#This Row],[Hide: Proposed kW]])),\"\",Table_PI[[#This Row],[Hide: Proposed kW]])","v":""},null,null,{"$f":"IF(OR(Table_PI[[#This Row],[Hide: Rebate]]=\"\",Table_PI[[#This Row],[Hide: Rebate]]=0,ISTEXT(Table_PI[[#This Row],[Hide: Rebate]])),\"\",Table_PI[[#This Row],[Hide: Rebate]])","v":""},null,{"$f":"IF(OR(Table_PI[[#This Row],[Hide: Incremental Cost]]=\"\",Table_PI[[#This Row],[Hide: Incremental Cost]]=0,ISTEXT(Table_PI[[#This Row],[Hide: Incremental Cost]])),\"\",Table_PI[[#This Row],[Hide: Incremental Cost]])","v":""},{"$f":"IFERROR(IF(Table_SummaryPI[[#This Row],[Incentive_Customer]]=\"\",\"\",ROUND(Table_SummaryPI[[#This Row],[Incentive_Customer]]/$AM$401*'Customer Information'!$BC$21,2)),0)","v":""},{"$f":"IF(OR(Table_PI[[#This Row],[Annual kWh]]=\"\",Table_PI[[#This Row],[Annual kWh]]=0,ISTEXT(Table_PI[[#This Row],[Annual kWh]])),\"\",Table_PI[[#This Row],[Annual kWh]])","v":""},{"$f":"IF(OR(Table_PI[[#This Row],[Peak kW]]=\"\",Table_PI[[#This Row],[Peak kW]]=0,ISTEXT(Table_PI[[#This Row],[Peak kW]])),\"\",Table_PI[[#This Row],[Peak kW]])","v":""},{"$f":"IF(Table_SummaryPI[[#This Row],[Line No.]]<>\"\",IF(AND(ISNUMBER(FIND(\"Chiller\",Table_SummaryPI[[#This Row],[P_MeasureOption1]],1)),Table_SummaryPI[[#This Row],[ProposedMeasureCategory]]=\"Air-Cooled (Water-Cooled Replacement)\"),$BD$29*Table_SummaryPI[[#This Row],[Size]]*Table_SummaryPI[[#This Row],[Quantity]]*Table_SummaryPI[[#This Row],[EFLHCooling]],\nIF(ISNUMBER(FIND(\"Dishwasher\",Table_SummaryPI[[#This Row],[ProposedMeasureCategory]],1)),$BH$29*Table_SummaryPI[[#This Row],[Quantity]],\nIF(ISNUMBER(FIND(\"Ice Maker\",Table_SummaryPI[[#This Row],[ProposedMeasureCategory]],1)),$BD$31*Table_SummaryPI[[#This Row],[Quantity]],\nIF(ISNUMBER(FIND(\"Spray Valve\",Table_SummaryPI[[#This Row],[ProposedMeasureCategory]],1)),$BH$31*Table_SummaryPI[[#This Row],[Quantity]],\n0)))),\"\")","v":""},{"$f":"IF(OR(Table_PI[[#This Row],[Hide: Electrification kWh]]=\"\",Table_PI[[#This Row],[Hide: Electrification kWh]]=0,ISTEXT(Table_PI[[#This Row],[Hide: Electrification kWh]])),\"\",Table_PI[[#This Row],[Hide: Electrification kWh]])","v":""},{"$f":"IF(OR(Table_PI[[#This Row],[Hide: Electrification GHG]]=\"\",Table_PI[[#This Row],[Hide: Electrification GHG]]=0,ISTEXT(Table_PI[[#This Row],[Hide: Electrification GHG]])),\"\",Table_PI[[#This Row],[Hide: Electrification GHG]])","v":""},{"$f":"IFERROR(IF(Table_SummaryPI[[#This Row],[kWhSavings]]=\"\",\"\",$BH$9*Table_SummaryPI[[#This Row],[kWhSavings]]),0)","v":""},{"$f":"IFERROR(IF(Table_SummaryPI[[#This Row],[kWhSavings]]=\"\",\"\",$BH$14*Table_SummaryPI[[#This Row],[kWhSavings]]),0)","v":""},{"$f":"IFERROR(IF(Table_SummaryPI[[#This Row],[kWhSavings]]=\"\",\"\",$BH$18*Table_SummaryPI[[#This Row],[kWhSavings]]),0)","v":""},{"$f":"IFERROR(IF(Table_SummaryPI[[#This Row],[kWhSavings]]=\"\",\"\",$BH$22*Table_SummaryPI[[#This Row],[kWhSavings]]),0)","v":""}]
[{"$f":"Table_PI[[#This Row],[Line No.]]","v":""},{"$f":"IF(Table_SummaryPI[[#This Row],[MeasureName]]<>\"\",NOT(ISTEXT(Table_PI[[#This Row],[Rebate]])),\"\")","v":""},{"$f":"IF(Table_SummaryPI[[#This Row],[MeassureCategory]]<>\"\",CONCATENATE(Table_SummaryPI[[#This Row],[MeassureCategory]],  \" - \", Table_SummaryPI[[#This Row],[ProposedMeasureCategory]],  \" - \", TEXT(Table_SummaryPI[[#This Row],[Size]],\"#,##0.00\"),\" \",Table_SummaryPI[[#This Row],[SizeUnit]]),\"\")","v":""},{"$f":"SUBSTITUTE(Table_PI[[#This Row],[Measure]],\"     \",\"\",1)","v":""},{"$f":"IF(Table_PI[[#This Row],[List 1]]<>\"\",Table_PI[[#This Row],[List 1]],\"\")","v":""},{"$f":"IF(Table_PI[[#This Row],[List 2]]<>\"\",Table_PI[[#This Row],[List 2]],\"\")","v":""},{"$f":"IF(Table_PI[[#This Row],[List 3]]<>\"\",Table_PI[[#This Row],[List 3]],\"\")","v":""},{"$f":"IF(Table_PI[[#This Row],[Manufacturer]]=\"\",\"\",Table_PI[[#This Row],[Manufacturer]])","v":""},{"$f":"IF(Table_PI[[#This Row],[Model Number]]=\"\",\"\",Table_PI[[#This Row],[Model Number]])","v":""},{"$f":"IF(Table_PI[[#This Row],[Serial Number(s)]]=\"\",\"\",Table_PI[[#This Row],[Serial Number(s)]])","v":""},null,{"$f":"IF(Table_PI[[#This Row],[Size]]=\"\",\"\",Table_PI[[#This Row],[Size]])","v":""},null,null,{"$f":"IF(Table_PI[[#This Row],[Input 1]]<>\"\",Table_PI[[#This Row],[Input 1]],\"\")","v":""},null,null,{"$f":"IF(Table_PI[[#This Row],[Input 2]]<>\"\",Table_PI[[#This Row],[Input 2]],\"\")","v":""},null,null,{"$f":"IF(Table_PI[[#This Row],[Input 3]]<>\"\",Table_PI[[#This Row],[Input 3]],\"\")","v":""},null,null,{"$f":"IF(Table_PI[[#This Row],[Input 4]]<>\"\",Table_PI[[#This Row],[Input 4]],\"\")","v":""},null,null,{"$f":"IF(Table_PI[[#This Row],[Input 4]]<>\"\",Table_PI[[#This Row],[Input 4]],\"\")","v":""},null,null,{"$f":"IF(Table_PI[[#This Row],[Input 4]]<>\"\",Table_PI[[#This Row],[Input 4]],\"\")","v":""},{"$f":"IF(Table_PI[[#This Row],[Quantity]]=\"\",\"\",Table_PI[[#This Row],[Quantity]])","v":""},{"$f":"IF(Table_PI[[#This Row],[Notes]]=\"\",\"\",Table_PI[[#This Row],[Notes]])","v":""},{"$f":"IF(OR(Table_PI[[#This Row],[Hide: Baseline kWh]]=\"\",Table_PI[[#This Row],[Hide: Baseline kWh]]=0,ISTEXT(Table_PI[[#This Row],[Hide: Baseline kWh]])),\"\",Table_PI[[#This Row],[Hide: Baseline kWh]])","v":""},{"$f":"IF(OR(Table_PI[[#This Row],[Hide: Baseline kW]]=\"\",Table_PI[[#This Row],[Hide: Baseline kW]]=0,ISTEXT(Table_PI[[#This Row],[Hide: Baseline kW]])),\"\",Table_PI[[#This Row],[Hide: Baseline kW]])","v":""},{"$f":"IF(OR(Table_PI[[#This Row],[Hide: Proposed kWh]]=\"\",Table_PI[[#This Row],[Hide: Proposed kWh]]=0,ISTEXT(Table_PI[[#This Row],[Hide: Proposed kWh]])),\"\",Table_PI[[#This Row],[Hide: Proposed kWh]])","v":""},{"$f":"IF(OR(Table_PI[[#This Row],[Hide: Proposed kW]]=\"\",Table_PI[[#This Row],[Hide: Proposed kW]]=0,ISTEXT(Table_PI[[#This Row],[Hide: Proposed kW]])),\"\",Table_PI[[#This Row],[Hide: Proposed kW]])","v":""},null,null,{"$f":"IF(OR(Table_PI[[#This Row],[Hide: Rebate]]=\"\",Table_PI[[#This Row],[Hide: Rebate]]=0,ISTEXT(Table_PI[[#This Row],[Hide: Rebate]])),\"\",Table_PI[[#This Row],[Hide: Rebate]])","v":""},null,{"$f":"IF(OR(Table_PI[[#This Row],[Hide: Incremental Cost]]=\"\",Table_PI[[#This Row],[Hide: Incremental Cost]]=0,ISTEXT(Table_PI[[#This Row],[Hide: Incremental Cost]])),\"\",Table_PI[[#This Row],[Hide: Incremental Cost]])","v":""},{"$f":"IFERROR(IF(Table_SummaryPI[[#This Row],[Incentive_Customer]]=\"\",\"\",ROUND(Table_SummaryPI[[#This Row],[Incentive_Customer]]/$AM$401*'Customer Information'!$BC$21,2)),0)","v":""},{"$f":"IF(OR(Table_PI[[#This Row],[Annual kWh]]=\"\",Table_PI[[#This Row],[Annual kWh]]=0,ISTEXT(Table_PI[[#This Row],[Annual kWh]])),\"\",Table_PI[[#This Row],[Annual kWh]])","v":""},{"$f":"IF(OR(Table_PI[[#This Row],[Peak kW]]=\"\",Table_PI[[#This Row],[Peak kW]]=0,ISTEXT(Table_PI[[#This Row],[Peak kW]])),\"\",Table_PI[[#This Row],[Peak kW]])","v":""},{"$f":"IF(Table_SummaryPI[[#This Row],[Line No.]]<>\"\",IF(AND(ISNUMBER(FIND(\"Chiller\",Table_SummaryPI[[#This Row],[P_MeasureOption1]],1)),Table_SummaryPI[[#This Row],[ProposedMeasureCategory]]=\"Air-Cooled (Water-Cooled Replacement)\"),$BD$29*Table_SummaryPI[[#This Row],[Size]]*Table_SummaryPI[[#This Row],[Quantity]]*Table_SummaryPI[[#This Row],[EFLHCooling]],\nIF(ISNUMBER(FIND(\"Dishwasher\",Table_SummaryPI[[#This Row],[ProposedMeasureCategory]],1)),$BH$29*Table_SummaryPI[[#This Row],[Quantity]],\nIF(ISNUMBER(FIND(\"Ice Maker\",Table_SummaryPI[[#This Row],[ProposedMeasureCategory]],1)),$BD$31*Table_SummaryPI[[#This Row],[Quantity]],\nIF(ISNUMBER(FIND(\"Spray Valve\",Table_SummaryPI[[#This Row],[ProposedMeasureCategory]],1)),$BH$31*Table_SummaryPI[[#This Row],[Quantity]],\n0)))),\"\")","v":""},{"$f":"IF(OR(Table_PI[[#This Row],[Hide: Electrification kWh]]=\"\",Table_PI[[#This Row],[Hide: Electrification kWh]]=0,ISTEXT(Table_PI[[#This Row],[Hide: Electrification kWh]])),\"\",Table_PI[[#This Row],[Hide: Electrification kWh]])","v":""},{"$f":"IF(OR(Table_PI[[#This Row],[Hide: Electrification GHG]]=\"\",Table_PI[[#This Row],[Hide: Electrification GHG]]=0,ISTEXT(Table_PI[[#This Row],[Hide: Electrification GHG]])),\"\",Table_PI[[#This Row],[Hide: Electrification GHG]])","v":""},{"$f":"IFERROR(IF(Table_SummaryPI[[#This Row],[kWhSavings]]=\"\",\"\",$BH$9*Table_SummaryPI[[#This Row],[kWhSavings]]),0)","v":""},{"$f":"IFERROR(IF(Table_SummaryPI[[#This Row],[kWhSavings]]=\"\",\"\",$BH$14*Table_SummaryPI[[#This Row],[kWhSavings]]),0)","v":""},{"$f":"IFERROR(IF(Table_SummaryPI[[#This Row],[kWhSavings]]=\"\",\"\",$BH$18*Table_SummaryPI[[#This Row],[kWhSavings]]),0)","v":""},{"$f":"IFERROR(IF(Table_SummaryPI[[#This Row],[kWhSavings]]=\"\",\"\",$BH$22*Table_SummaryPI[[#This Row],[kWhSavings]]),0)","v":""}]
[{"$f":"Table_PI[[#This Row],[Line No.]]","v":""},{"$f":"IF(Table_SummaryPI[[#This Row],[MeasureName]]<>\"\",NOT(ISTEXT(Table_PI[[#This Row],[Rebate]])),\"\")","v":""},{"$f":"IF(Table_SummaryPI[[#This Row],[MeassureCategory]]<>\"\",CONCATENATE(Table_SummaryPI[[#This Row],[MeassureCategory]],  \" - \", Table_SummaryPI[[#This Row],[ProposedMeasureCategory]],  \" - \", TEXT(Table_SummaryPI[[#This Row],[Size]],\"#,##0.00\"),\" \",Table_SummaryPI[[#This Row],[SizeUnit]]),\"\")","v":""},{"$f":"SUBSTITUTE(Table_PI[[#This Row],[Measure]],\"     \",\"\",1)","v":""},{"$f":"IF(Table_PI[[#This Row],[List 1]]<>\"\",Table_PI[[#This Row],[List 1]],\"\")","v":""},{"$f":"IF(Table_PI[[#This Row],[List 2]]<>\"\",Table_PI[[#This Row],[List 2]],\"\")","v":""},{"$f":"IF(Table_PI[[#This Row],[List 3]]<>\"\",Table_PI[[#This Row],[List 3]],\"\")","v":""},{"$f":"IF(Table_PI[[#This Row],[Manufacturer]]=\"\",\"\",Table_PI[[#This Row],[Manufacturer]])","v":""},{"$f":"IF(Table_PI[[#This Row],[Model Number]]=\"\",\"\",Table_PI[[#This Row],[Model Number]])","v":""},{"$f":"IF(Table_PI[[#This Row],[Serial Number(s)]]=\"\",\"\",Table_PI[[#This Row],[Serial Number(s)]])","v":""},null,{"$f":"IF(Table_PI[[#This Row],[Size]]=\"\",\"\",Table_PI[[#This Row],[Size]])","v":""},null,null,{"$f":"IF(Table_PI[[#This Row],[Input 1]]<>\"\",Table_PI[[#This Row],[Input 1]],\"\")","v":""},null,null,{"$f":"IF(Table_PI[[#This Row],[Input 2]]<>\"\",Table_PI[[#This Row],[Input 2]],\"\")","v":""},null,null,{"$f":"IF(Table_PI[[#This Row],[Input 3]]<>\"\",Table_PI[[#This Row],[Input 3]],\"\")","v":""},null,null,{"$f":"IF(Table_PI[[#This Row],[Input 4]]<>\"\",Table_PI[[#This Row],[Input 4]],\"\")","v":""},null,null,{"$f":"IF(Table_PI[[#This Row],[Input 4]]<>\"\",Table_PI[[#This Row],[Input 4]],\"\")","v":""},null,null,{"$f":"IF(Table_PI[[#This Row],[Input 4]]<>\"\",Table_PI[[#This Row],[Input 4]],\"\")","v":""},{"$f":"IF(Table_PI[[#This Row],[Quantity]]=\"\",\"\",Table_PI[[#This Row],[Quantity]])","v":""},{"$f":"IF(Table_PI[[#This Row],[Notes]]=\"\",\"\",Table_PI[[#This Row],[Notes]])","v":""},{"$f":"IF(OR(Table_PI[[#This Row],[Hide: Baseline kWh]]=\"\",Table_PI[[#This Row],[Hide: Baseline kWh]]=0,ISTEXT(Table_PI[[#This Row],[Hide: Baseline kWh]])),\"\",Table_PI[[#This Row],[Hide: Baseline kWh]])","v":""},{"$f":"IF(OR(Table_PI[[#This Row],[Hide: Baseline kW]]=\"\",Table_PI[[#This Row],[Hide: Baseline kW]]=0,ISTEXT(Table_PI[[#This Row],[Hide: Baseline kW]])),\"\",Table_PI[[#This Row],[Hide: Baseline kW]])","v":""},{"$f":"IF(OR(Table_PI[[#This Row],[Hide: Proposed kWh]]=\"\",Table_PI[[#This Row],[Hide: Proposed kWh]]=0,ISTEXT(Table_PI[[#This Row],[Hide: Proposed kWh]])),\"\",Table_PI[[#This Row],[Hide: Proposed kWh]])","v":""},{"$f":"IF(OR(Table_PI[[#This Row],[Hide: Proposed kW]]=\"\",Table_PI[[#This Row],[Hide: Proposed kW]]=0,ISTEXT(Table_PI[[#This Row],[Hide: Proposed kW]])),\"\",Table_PI[[#This Row],[Hide: Proposed kW]])","v":""},null,null,{"$f":"IF(OR(Table_PI[[#This Row],[Hide: Rebate]]=\"\",Table_PI[[#This Row],[Hide: Rebate]]=0,ISTEXT(Table_PI[[#This Row],[Hide: Rebate]])),\"\",Table_PI[[#This Row],[Hide: Rebate]])","v":""},null,{"$f":"IF(OR(Table_PI[[#This Row],[Hide: Incremental Cost]]=\"\",Table_PI[[#This Row],[Hide: Incremental Cost]]=0,ISTEXT(Table_PI[[#This Row],[Hide: Incremental Cost]])),\"\",Table_PI[[#This Row],[Hide: Incremental Cost]])","v":""},{"$f":"IFERROR(IF(Table_SummaryPI[[#This Row],[Incentive_Customer]]=\"\",\"\",ROUND(Table_SummaryPI[[#This Row],[Incentive_Customer]]/$AM$401*'Customer Information'!$BC$21,2)),0)","v":""},{"$f":"IF(OR(Table_PI[[#This Row],[Annual kWh]]=\"\",Table_PI[[#This Row],[Annual kWh]]=0,ISTEXT(Table_PI[[#This Row],[Annual kWh]])),\"\",Table_PI[[#This Row],[Annual kWh]])","v":""},{"$f":"IF(OR(Table_PI[[#This Row],[Peak kW]]=\"\",Table_PI[[#This Row],[Peak kW]]=0,ISTEXT(Table_PI[[#This Row],[Peak kW]])),\"\",Table_PI[[#This Row],[Peak kW]])","v":""},{"$f":"IF(Table_SummaryPI[[#This Row],[Line No.]]<>\"\",IF(AND(ISNUMBER(FIND(\"Chiller\",Table_SummaryPI[[#This Row],[P_MeasureOption1]],1)),Table_SummaryPI[[#This Row],[ProposedMeasureCategory]]=\"Air-Cooled (Water-Cooled Replacement)\"),$BD$29*Table_SummaryPI[[#This Row],[Size]]*Table_SummaryPI[[#This Row],[Quantity]]*Table_SummaryPI[[#This Row],[EFLHCooling]],\nIF(ISNUMBER(FIND(\"Dishwasher\",Table_SummaryPI[[#This Row],[ProposedMeasureCategory]],1)),$BH$29*Table_SummaryPI[[#This Row],[Quantity]],\nIF(ISNUMBER(FIND(\"Ice Maker\",Table_SummaryPI[[#This Row],[ProposedMeasureCategory]],1)),$BD$31*Table_SummaryPI[[#This Row],[Quantity]],\nIF(ISNUMBER(FIND(\"Spray Valve\",Table_SummaryPI[[#This Row],[ProposedMeasureCategory]],1)),$BH$31*Table_SummaryPI[[#This Row],[Quantity]],\n0)))),\"\")","v":""},{"$f":"IF(OR(Table_PI[[#This Row],[Hide: Electrification kWh]]=\"\",Table_PI[[#This Row],[Hide: Electrification kWh]]=0,ISTEXT(Table_PI[[#This Row],[Hide: Electrification kWh]])),\"\",Table_PI[[#This Row],[Hide: Electrification kWh]])","v":""},{"$f":"IF(OR(Table_PI[[#This Row],[Hide: Electrification GHG]]=\"\",Table_PI[[#This Row],[Hide: Electrification GHG]]=0,ISTEXT(Table_PI[[#This Row],[Hide: Electrification GHG]])),\"\",Table_PI[[#This Row],[Hide: Electrification GHG]])","v":""},{"$f":"IFERROR(IF(Table_SummaryPI[[#This Row],[kWhSavings]]=\"\",\"\",$BH$9*Table_SummaryPI[[#This Row],[kWhSavings]]),0)","v":""},{"$f":"IFERROR(IF(Table_SummaryPI[[#This Row],[kWhSavings]]=\"\",\"\",$BH$14*Table_SummaryPI[[#This Row],[kWhSavings]]),0)","v":""},{"$f":"IFERROR(IF(Table_SummaryPI[[#This Row],[kWhSavings]]=\"\",\"\",$BH$18*Table_SummaryPI[[#This Row],[kWhSavings]]),0)","v":""},{"$f":"IFERROR(IF(Table_SummaryPI[[#This Row],[kWhSavings]]=\"\",\"\",$BH$22*Table_SummaryPI[[#This Row],[kWhSavings]]),0)","v":""}]
[{"$f":"Table_PI[[#This Row],[Line No.]]","v":""},{"$f":"IF(Table_SummaryPI[[#This Row],[MeasureName]]<>\"\",NOT(ISTEXT(Table_PI[[#This Row],[Rebate]])),\"\")","v":""},{"$f":"IF(Table_SummaryPI[[#This Row],[MeassureCategory]]<>\"\",CONCATENATE(Table_SummaryPI[[#This Row],[MeassureCategory]],  \" - \", Table_SummaryPI[[#This Row],[ProposedMeasureCategory]],  \" - \", TEXT(Table_SummaryPI[[#This Row],[Size]],\"#,##0.00\"),\" \",Table_SummaryPI[[#This Row],[SizeUnit]]),\"\")","v":""},{"$f":"SUBSTITUTE(Table_PI[[#This Row],[Measure]],\"     \",\"\",1)","v":""},{"$f":"IF(Table_PI[[#This Row],[List 1]]<>\"\",Table_PI[[#This Row],[List 1]],\"\")","v":""},{"$f":"IF(Table_PI[[#This Row],[List 2]]<>\"\",Table_PI[[#This Row],[List 2]],\"\")","v":""},{"$f":"IF(Table_PI[[#This Row],[List 3]]<>\"\",Table_PI[[#This Row],[List 3]],\"\")","v":""},{"$f":"IF(Table_PI[[#This Row],[Manufacturer]]=\"\",\"\",Table_PI[[#This Row],[Manufacturer]])","v":""},{"$f":"IF(Table_PI[[#This Row],[Model Number]]=\"\",\"\",Table_PI[[#This Row],[Model Number]])","v":""},{"$f":"IF(Table_PI[[#This Row],[Serial Number(s)]]=\"\",\"\",Table_PI[[#This Row],[Serial Number(s)]])","v":""},null,{"$f":"IF(Table_PI[[#This Row],[Size]]=\"\",\"\",Table_PI[[#This Row],[Size]])","v":""},null,null,{"$f":"IF(Table_PI[[#This Row],[Input 1]]<>\"\",Table_PI[[#This Row],[Input 1]],\"\")","v":""},null,null,{"$f":"IF(Table_PI[[#This Row],[Input 2]]<>\"\",Table_PI[[#This Row],[Input 2]],\"\")","v":""},null,null,{"$f":"IF(Table_PI[[#This Row],[Input 3]]<>\"\",Table_PI[[#This Row],[Input 3]],\"\")","v":""},null,null,{"$f":"IF(Table_PI[[#This Row],[Input 4]]<>\"\",Table_PI[[#This Row],[Input 4]],\"\")","v":""},null,null,{"$f":"IF(Table_PI[[#This Row],[Input 4]]<>\"\",Table_PI[[#This Row],[Input 4]],\"\")","v":""},null,null,{"$f":"IF(Table_PI[[#This Row],[Input 4]]<>\"\",Table_PI[[#This Row],[Input 4]],\"\")","v":""},{"$f":"IF(Table_PI[[#This Row],[Quantity]]=\"\",\"\",Table_PI[[#This Row],[Quantity]])","v":""},{"$f":"IF(Table_PI[[#This Row],[Notes]]=\"\",\"\",Table_PI[[#This Row],[Notes]])","v":""},{"$f":"IF(OR(Table_PI[[#This Row],[Hide: Baseline kWh]]=\"\",Table_PI[[#This Row],[Hide: Baseline kWh]]=0,ISTEXT(Table_PI[[#This Row],[Hide: Baseline kWh]])),\"\",Table_PI[[#This Row],[Hide: Baseline kWh]])","v":""},{"$f":"IF(OR(Table_PI[[#This Row],[Hide: Baseline kW]]=\"\",Table_PI[[#This Row],[Hide: Baseline kW]]=0,ISTEXT(Table_PI[[#This Row],[Hide: Baseline kW]])),\"\",Table_PI[[#This Row],[Hide: Baseline kW]])","v":""},{"$f":"IF(OR(Table_PI[[#This Row],[Hide: Proposed kWh]]=\"\",Table_PI[[#This Row],[Hide: Proposed kWh]]=0,ISTEXT(Table_PI[[#This Row],[Hide: Proposed kWh]])),\"\",Table_PI[[#This Row],[Hide: Proposed kWh]])","v":""},{"$f":"IF(OR(Table_PI[[#This Row],[Hide: Proposed kW]]=\"\",Table_PI[[#This Row],[Hide: Proposed kW]]=0,ISTEXT(Table_PI[[#This Row],[Hide: Proposed kW]])),\"\",Table_PI[[#This Row],[Hide: Proposed kW]])","v":""},null,null,{"$f":"IF(OR(Table_PI[[#This Row],[Hide: Rebate]]=\"\",Table_PI[[#This Row],[Hide: Rebate]]=0,ISTEXT(Table_PI[[#This Row],[Hide: Rebate]])),\"\",Table_PI[[#This Row],[Hide: Rebate]])","v":""},null,{"$f":"IF(OR(Table_PI[[#This Row],[Hide: Incremental Cost]]=\"\",Table_PI[[#This Row],[Hide: Incremental Cost]]=0,ISTEXT(Table_PI[[#This Row],[Hide: Incremental Cost]])),\"\",Table_PI[[#This Row],[Hide: Incremental Cost]])","v":""},{"$f":"IFERROR(IF(Table_SummaryPI[[#This Row],[Incentive_Customer]]=\"\",\"\",ROUND(Table_SummaryPI[[#This Row],[Incentive_Customer]]/$AM$401*'Customer Information'!$BC$21,2)),0)","v":""},{"$f":"IF(OR(Table_PI[[#This Row],[Annual kWh]]=\"\",Table_PI[[#This Row],[Annual kWh]]=0,ISTEXT(Table_PI[[#This Row],[Annual kWh]])),\"\",Table_PI[[#This Row],[Annual kWh]])","v":""},{"$f":"IF(OR(Table_PI[[#This Row],[Peak kW]]=\"\",Table_PI[[#This Row],[Peak kW]]=0,ISTEXT(Table_PI[[#This Row],[Peak kW]])),\"\",Table_PI[[#This Row],[Peak kW]])","v":""},{"$f":"IF(Table_SummaryPI[[#This Row],[Line No.]]<>\"\",IF(AND(ISNUMBER(FIND(\"Chiller\",Table_SummaryPI[[#This Row],[P_MeasureOption1]],1)),Table_SummaryPI[[#This Row],[ProposedMeasureCategory]]=\"Air-Cooled (Water-Cooled Replacement)\"),$BD$29*Table_SummaryPI[[#This Row],[Size]]*Table_SummaryPI[[#This Row],[Quantity]]*Table_SummaryPI[[#This Row],[EFLHCooling]],\nIF(ISNUMBER(FIND(\"Dishwasher\",Table_SummaryPI[[#This Row],[ProposedMeasureCategory]],1)),$BH$29*Table_SummaryPI[[#This Row],[Quantity]],\nIF(ISNUMBER(FIND(\"Ice Maker\",Table_SummaryPI[[#This Row],[ProposedMeasureCategory]],1)),$BD$31*Table_SummaryPI[[#This Row],[Quantity]],\nIF(ISNUMBER(FIND(\"Spray Valve\",Table_SummaryPI[[#This Row],[ProposedMeasureCategory]],1)),$BH$31*Table_SummaryPI[[#This Row],[Quantity]],\n0)))),\"\")","v":""},{"$f":"IF(OR(Table_PI[[#This Row],[Hide: Electrification kWh]]=\"\",Table_PI[[#This Row],[Hide: Electrification kWh]]=0,ISTEXT(Table_PI[[#This Row],[Hide: Electrification kWh]])),\"\",Table_PI[[#This Row],[Hide: Electrification kWh]])","v":""},{"$f":"IF(OR(Table_PI[[#This Row],[Hide: Electrification GHG]]=\"\",Table_PI[[#This Row],[Hide: Electrification GHG]]=0,ISTEXT(Table_PI[[#This Row],[Hide: Electrification GHG]])),\"\",Table_PI[[#This Row],[Hide: Electrification GHG]])","v":""},{"$f":"IFERROR(IF(Table_SummaryPI[[#This Row],[kWhSavings]]=\"\",\"\",$BH$9*Table_SummaryPI[[#This Row],[kWhSavings]]),0)","v":""},{"$f":"IFERROR(IF(Table_SummaryPI[[#This Row],[kWhSavings]]=\"\",\"\",$BH$14*Table_SummaryPI[[#This Row],[kWhSavings]]),0)","v":""},{"$f":"IFERROR(IF(Table_SummaryPI[[#This Row],[kWhSavings]]=\"\",\"\",$BH$18*Table_SummaryPI[[#This Row],[kWhSavings]]),0)","v":""},{"$f":"IFERROR(IF(Table_SummaryPI[[#This Row],[kWhSavings]]=\"\",\"\",$BH$22*Table_SummaryPI[[#This Row],[kWhSavings]]),0)","v":""}]
[{"$f":"Table_PI[[#This Row],[Line No.]]","v":""},{"$f":"IF(Table_SummaryPI[[#This Row],[MeasureName]]<>\"\",NOT(ISTEXT(Table_PI[[#This Row],[Rebate]])),\"\")","v":""},{"$f":"IF(Table_SummaryPI[[#This Row],[MeassureCategory]]<>\"\",CONCATENATE(Table_SummaryPI[[#This Row],[MeassureCategory]],  \" - \", Table_SummaryPI[[#This Row],[ProposedMeasureCategory]],  \" - \", TEXT(Table_SummaryPI[[#This Row],[Size]],\"#,##0.00\"),\" \",Table_SummaryPI[[#This Row],[SizeUnit]]),\"\")","v":""},{"$f":"SUBSTITUTE(Table_PI[[#This Row],[Measure]],\"     \",\"\",1)","v":""},{"$f":"IF(Table_PI[[#This Row],[List 1]]<>\"\",Table_PI[[#This Row],[List 1]],\"\")","v":""},{"$f":"IF(Table_PI[[#This Row],[List 2]]<>\"\",Table_PI[[#This Row],[List 2]],\"\")","v":""},{"$f":"IF(Table_PI[[#This Row],[List 3]]<>\"\",Table_PI[[#This Row],[List 3]],\"\")","v":""},{"$f":"IF(Table_PI[[#This Row],[Manufacturer]]=\"\",\"\",Table_PI[[#This Row],[Manufacturer]])","v":""},{"$f":"IF(Table_PI[[#This Row],[Model Number]]=\"\",\"\",Table_PI[[#This Row],[Model Number]])","v":""},{"$f":"IF(Table_PI[[#This Row],[Serial Number(s)]]=\"\",\"\",Table_PI[[#This Row],[Serial Number(s)]])","v":""},null,{"$f":"IF(Table_PI[[#This Row],[Size]]=\"\",\"\",Table_PI[[#This Row],[Size]])","v":""},null,null,{"$f":"IF(Table_PI[[#This Row],[Input 1]]<>\"\",Table_PI[[#This Row],[Input 1]],\"\")","v":""},null,null,{"$f":"IF(Table_PI[[#This Row],[Input 2]]<>\"\",Table_PI[[#This Row],[Input 2]],\"\")","v":""},null,null,{"$f":"IF(Table_PI[[#This Row],[Input 3]]<>\"\",Table_PI[[#This Row],[Input 3]],\"\")","v":""},null,null,{"$f":"IF(Table_PI[[#This Row],[Input 4]]<>\"\",Table_PI[[#This Row],[Input 4]],\"\")","v":""},null,null,{"$f":"IF(Table_PI[[#This Row],[Input 4]]<>\"\",Table_PI[[#This Row],[Input 4]],\"\")","v":""},null,null,{"$f":"IF(Table_PI[[#This Row],[Input 4]]<>\"\",Table_PI[[#This Row],[Input 4]],\"\")","v":""},{"$f":"IF(Table_PI[[#This Row],[Quantity]]=\"\",\"\",Table_PI[[#This Row],[Quantity]])","v":""},{"$f":"IF(Table_PI[[#This Row],[Notes]]=\"\",\"\",Table_PI[[#This Row],[Notes]])","v":""},{"$f":"IF(OR(Table_PI[[#This Row],[Hide: Baseline kWh]]=\"\",Table_PI[[#This Row],[Hide: Baseline kWh]]=0,ISTEXT(Table_PI[[#This Row],[Hide: Baseline kWh]])),\"\",Table_PI[[#This Row],[Hide: Baseline kWh]])","v":""},{"$f":"IF(OR(Table_PI[[#This Row],[Hide: Baseline kW]]=\"\",Table_PI[[#This Row],[Hide: Baseline kW]]=0,ISTEXT(Table_PI[[#This Row],[Hide: Baseline kW]])),\"\",Table_PI[[#This Row],[Hide: Baseline kW]])","v":""},{"$f":"IF(OR(Table_PI[[#This Row],[Hide: Proposed kWh]]=\"\",Table_PI[[#This Row],[Hide: Proposed kWh]]=0,ISTEXT(Table_PI[[#This Row],[Hide: Proposed kWh]])),\"\",Table_PI[[#This Row],[Hide: Proposed kWh]])","v":""},{"$f":"IF(OR(Table_PI[[#This Row],[Hide: Proposed kW]]=\"\",Table_PI[[#This Row],[Hide: Proposed kW]]=0,ISTEXT(Table_PI[[#This Row],[Hide: Proposed kW]])),\"\",Table_PI[[#This Row],[Hide: Proposed kW]])","v":""},null,null,{"$f":"IF(OR(Table_PI[[#This Row],[Hide: Rebate]]=\"\",Table_PI[[#This Row],[Hide: Rebate]]=0,ISTEXT(Table_PI[[#This Row],[Hide: Rebate]])),\"\",Table_PI[[#This Row],[Hide: Rebate]])","v":""},null,{"$f":"IF(OR(Table_PI[[#This Row],[Hide: Incremental Cost]]=\"\",Table_PI[[#This Row],[Hide: Incremental Cost]]=0,ISTEXT(Table_PI[[#This Row],[Hide: Incremental Cost]])),\"\",Table_PI[[#This Row],[Hide: Incremental Cost]])","v":""},{"$f":"IFERROR(IF(Table_SummaryPI[[#This Row],[Incentive_Customer]]=\"\",\"\",ROUND(Table_SummaryPI[[#This Row],[Incentive_Customer]]/$AM$401*'Customer Information'!$BC$21,2)),0)","v":""},{"$f":"IF(OR(Table_PI[[#This Row],[Annual kWh]]=\"\",Table_PI[[#This Row],[Annual kWh]]=0,ISTEXT(Table_PI[[#This Row],[Annual kWh]])),\"\",Table_PI[[#This Row],[Annual kWh]])","v":""},{"$f":"IF(OR(Table_PI[[#This Row],[Peak kW]]=\"\",Table_PI[[#This Row],[Peak kW]]=0,ISTEXT(Table_PI[[#This Row],[Peak kW]])),\"\",Table_PI[[#This Row],[Peak kW]])","v":""},{"$f":"IF(Table_SummaryPI[[#This Row],[Line No.]]<>\"\",IF(AND(ISNUMBER(FIND(\"Chiller\",Table_SummaryPI[[#This Row],[P_MeasureOption1]],1)),Table_SummaryPI[[#This Row],[ProposedMeasureCategory]]=\"Air-Cooled (Water-Cooled Replacement)\"),$BD$29*Table_SummaryPI[[#This Row],[Size]]*Table_SummaryPI[[#This Row],[Quantity]]*Table_SummaryPI[[#This Row],[EFLHCooling]],\nIF(ISNUMBER(FIND(\"Dishwasher\",Table_SummaryPI[[#This Row],[ProposedMeasureCategory]],1)),$BH$29*Table_SummaryPI[[#This Row],[Quantity]],\nIF(ISNUMBER(FIND(\"Ice Maker\",Table_SummaryPI[[#This Row],[ProposedMeasureCategory]],1)),$BD$31*Table_SummaryPI[[#This Row],[Quantity]],\nIF(ISNUMBER(FIND(\"Spray Valve\",Table_SummaryPI[[#This Row],[ProposedMeasureCategory]],1)),$BH$31*Table_SummaryPI[[#This Row],[Quantity]],\n0)))),\"\")","v":""},{"$f":"IF(OR(Table_PI[[#This Row],[Hide: Electrification kWh]]=\"\",Table_PI[[#This Row],[Hide: Electrification kWh]]=0,ISTEXT(Table_PI[[#This Row],[Hide: Electrification kWh]])),\"\",Table_PI[[#This Row],[Hide: Electrification kWh]])","v":""},{"$f":"IF(OR(Table_PI[[#This Row],[Hide: Electrification GHG]]=\"\",Table_PI[[#This Row],[Hide: Electrification GHG]]=0,ISTEXT(Table_PI[[#This Row],[Hide: Electrification GHG]])),\"\",Table_PI[[#This Row],[Hide: Electrification GHG]])","v":""},{"$f":"IFERROR(IF(Table_SummaryPI[[#This Row],[kWhSavings]]=\"\",\"\",$BH$9*Table_SummaryPI[[#This Row],[kWhSavings]]),0)","v":""},{"$f":"IFERROR(IF(Table_SummaryPI[[#This Row],[kWhSavings]]=\"\",\"\",$BH$14*Table_SummaryPI[[#This Row],[kWhSavings]]),0)","v":""},{"$f":"IFERROR(IF(Table_SummaryPI[[#This Row],[kWhSavings]]=\"\",\"\",$BH$18*Table_SummaryPI[[#This Row],[kWhSavings]]),0)","v":""},{"$f":"IFERROR(IF(Table_SummaryPI[[#This Row],[kWhSavings]]=\"\",\"\",$BH$22*Table_SummaryPI[[#This Row],[kWhSavings]]),0)","v":""}]
[{"$f":"Table_PI[[#This Row],[Line No.]]","v":""},{"$f":"IF(Table_SummaryPI[[#This Row],[MeasureName]]<>\"\",NOT(ISTEXT(Table_PI[[#This Row],[Rebate]])),\"\")","v":""},{"$f":"IF(Table_SummaryPI[[#This Row],[MeassureCategory]]<>\"\",CONCATENATE(Table_SummaryPI[[#This Row],[MeassureCategory]],  \" - \", Table_SummaryPI[[#This Row],[ProposedMeasureCategory]],  \" - \", TEXT(Table_SummaryPI[[#This Row],[Size]],\"#,##0.00\"),\" \",Table_SummaryPI[[#This Row],[SizeUnit]]),\"\")","v":""},{"$f":"SUBSTITUTE(Table_PI[[#This Row],[Measure]],\"     \",\"\",1)","v":""},{"$f":"IF(Table_PI[[#This Row],[List 1]]<>\"\",Table_PI[[#This Row],[List 1]],\"\")","v":""},{"$f":"IF(Table_PI[[#This Row],[List 2]]<>\"\",Table_PI[[#This Row],[List 2]],\"\")","v":""},{"$f":"IF(Table_PI[[#This Row],[List 3]]<>\"\",Table_PI[[#This Row],[List 3]],\"\")","v":""},{"$f":"IF(Table_PI[[#This Row],[Manufacturer]]=\"\",\"\",Table_PI[[#This Row],[Manufacturer]])","v":""},{"$f":"IF(Table_PI[[#This Row],[Model Number]]=\"\",\"\",Table_PI[[#This Row],[Model Number]])","v":""},{"$f":"IF(Table_PI[[#This Row],[Serial Number(s)]]=\"\",\"\",Table_PI[[#This Row],[Serial Number(s)]])","v":""},null,{"$f":"IF(Table_PI[[#This Row],[Size]]=\"\",\"\",Table_PI[[#This Row],[Size]])","v":""},null,null,{"$f":"IF(Table_PI[[#This Row],[Input 1]]<>\"\",Table_PI[[#This Row],[Input 1]],\"\")","v":""},null,null,{"$f":"IF(Table_PI[[#This Row],[Input 2]]<>\"\",Table_PI[[#This Row],[Input 2]],\"\")","v":""},null,null,{"$f":"IF(Table_PI[[#This Row],[Input 3]]<>\"\",Table_PI[[#This Row],[Input 3]],\"\")","v":""},null,null,{"$f":"IF(Table_PI[[#This Row],[Input 4]]<>\"\",Table_PI[[#This Row],[Input 4]],\"\")","v":""},null,null,{"$f":"IF(Table_PI[[#This Row],[Input 4]]<>\"\",Table_PI[[#This Row],[Input 4]],\"\")","v":""},null,null,{"$f":"IF(Table_PI[[#This Row],[Input 4]]<>\"\",Table_PI[[#This Row],[Input 4]],\"\")","v":""},{"$f":"IF(Table_PI[[#This Row],[Quantity]]=\"\",\"\",Table_PI[[#This Row],[Quantity]])","v":""},{"$f":"IF(Table_PI[[#This Row],[Notes]]=\"\",\"\",Table_PI[[#This Row],[Notes]])","v":""},{"$f":"IF(OR(Table_PI[[#This Row],[Hide: Baseline kWh]]=\"\",Table_PI[[#This Row],[Hide: Baseline kWh]]=0,ISTEXT(Table_PI[[#This Row],[Hide: Baseline kWh]])),\"\",Table_PI[[#This Row],[Hide: Baseline kWh]])","v":""},{"$f":"IF(OR(Table_PI[[#This Row],[Hide: Baseline kW]]=\"\",Table_PI[[#This Row],[Hide: Baseline kW]]=0,ISTEXT(Table_PI[[#This Row],[Hide: Baseline kW]])),\"\",Table_PI[[#This Row],[Hide: Baseline kW]])","v":""},{"$f":"IF(OR(Table_PI[[#This Row],[Hide: Proposed kWh]]=\"\",Table_PI[[#This Row],[Hide: Proposed kWh]]=0,ISTEXT(Table_PI[[#This Row],[Hide: Proposed kWh]])),\"\",Table_PI[[#This Row],[Hide: Proposed kWh]])","v":""},{"$f":"IF(OR(Table_PI[[#This Row],[Hide: Proposed kW]]=\"\",Table_PI[[#This Row],[Hide: Proposed kW]]=0,ISTEXT(Table_PI[[#This Row],[Hide: Proposed kW]])),\"\",Table_PI[[#This Row],[Hide: Proposed kW]])","v":""},null,null,{"$f":"IF(OR(Table_PI[[#This Row],[Hide: Rebate]]=\"\",Table_PI[[#This Row],[Hide: Rebate]]=0,ISTEXT(Table_PI[[#This Row],[Hide: Rebate]])),\"\",Table_PI[[#This Row],[Hide: Rebate]])","v":""},null,{"$f":"IF(OR(Table_PI[[#This Row],[Hide: Incremental Cost]]=\"\",Table_PI[[#This Row],[Hide: Incremental Cost]]=0,ISTEXT(Table_PI[[#This Row],[Hide: Incremental Cost]])),\"\",Table_PI[[#This Row],[Hide: Incremental Cost]])","v":""},{"$f":"IFERROR(IF(Table_SummaryPI[[#This Row],[Incentive_Customer]]=\"\",\"\",ROUND(Table_SummaryPI[[#This Row],[Incentive_Customer]]/$AM$401*'Customer Information'!$BC$21,2)),0)","v":""},{"$f":"IF(OR(Table_PI[[#This Row],[Annual kWh]]=\"\",Table_PI[[#This Row],[Annual kWh]]=0,ISTEXT(Table_PI[[#This Row],[Annual kWh]])),\"\",Table_PI[[#This Row],[Annual kWh]])","v":""},{"$f":"IF(OR(Table_PI[[#This Row],[Peak kW]]=\"\",Table_PI[[#This Row],[Peak kW]]=0,ISTEXT(Table_PI[[#This Row],[Peak kW]])),\"\",Table_PI[[#This Row],[Peak kW]])","v":""},{"$f":"IF(Table_SummaryPI[[#This Row],[Line No.]]<>\"\",IF(AND(ISNUMBER(FIND(\"Chiller\",Table_SummaryPI[[#This Row],[P_MeasureOption1]],1)),Table_SummaryPI[[#This Row],[ProposedMeasureCategory]]=\"Air-Cooled (Water-Cooled Replacement)\"),$BD$29*Table_SummaryPI[[#This Row],[Size]]*Table_SummaryPI[[#This Row],[Quantity]]*Table_SummaryPI[[#This Row],[EFLHCooling]],\nIF(ISNUMBER(FIND(\"Dishwasher\",Table_SummaryPI[[#This Row],[ProposedMeasureCategory]],1)),$BH$29*Table_SummaryPI[[#This Row],[Quantity]],\nIF(ISNUMBER(FIND(\"Ice Maker\",Table_SummaryPI[[#This Row],[ProposedMeasureCategory]],1)),$BD$31*Table_SummaryPI[[#This Row],[Quantity]],\nIF(ISNUMBER(FIND(\"Spray Valve\",Table_SummaryPI[[#This Row],[ProposedMeasureCategory]],1)),$BH$31*Table_SummaryPI[[#This Row],[Quantity]],\n0)))),\"\")","v":""},{"$f":"IF(OR(Table_PI[[#This Row],[Hide: Electrification kWh]]=\"\",Table_PI[[#This Row],[Hide: Electrification kWh]]=0,ISTEXT(Table_PI[[#This Row],[Hide: Electrification kWh]])),\"\",Table_PI[[#This Row],[Hide: Electrification kWh]])","v":""},{"$f":"IF(OR(Table_PI[[#This Row],[Hide: Electrification GHG]]=\"\",Table_PI[[#This Row],[Hide: Electrification GHG]]=0,ISTEXT(Table_PI[[#This Row],[Hide: Electrification GHG]])),\"\",Table_PI[[#This Row],[Hide: Electrification GHG]])","v":""},{"$f":"IFERROR(IF(Table_SummaryPI[[#This Row],[kWhSavings]]=\"\",\"\",$BH$9*Table_SummaryPI[[#This Row],[kWhSavings]]),0)","v":""},{"$f":"IFERROR(IF(Table_SummaryPI[[#This Row],[kWhSavings]]=\"\",\"\",$BH$14*Table_SummaryPI[[#This Row],[kWhSavings]]),0)","v":""},{"$f":"IFERROR(IF(Table_SummaryPI[[#This Row],[kWhSavings]]=\"\",\"\",$BH$18*Table_SummaryPI[[#This Row],[kWhSavings]]),0)","v":""},{"$f":"IFERROR(IF(Table_SummaryPI[[#This Row],[kWhSavings]]=\"\",\"\",$BH$22*Table_SummaryPI[[#This Row],[kWhSavings]]),0)","v":""}]
[{"$f":"Table_PI[[#This Row],[Line No.]]","v":""},{"$f":"IF(Table_SummaryPI[[#This Row],[MeasureName]]<>\"\",NOT(ISTEXT(Table_PI[[#This Row],[Rebate]])),\"\")","v":""},{"$f":"IF(Table_SummaryPI[[#This Row],[MeassureCategory]]<>\"\",CONCATENATE(Table_SummaryPI[[#This Row],[MeassureCategory]],  \" - \", Table_SummaryPI[[#This Row],[ProposedMeasureCategory]],  \" - \", TEXT(Table_SummaryPI[[#This Row],[Size]],\"#,##0.00\"),\" \",Table_SummaryPI[[#This Row],[SizeUnit]]),\"\")","v":""},{"$f":"SUBSTITUTE(Table_PI[[#This Row],[Measure]],\"     \",\"\",1)","v":""},{"$f":"IF(Table_PI[[#This Row],[List 1]]<>\"\",Table_PI[[#This Row],[List 1]],\"\")","v":""},{"$f":"IF(Table_PI[[#This Row],[List 2]]<>\"\",Table_PI[[#This Row],[List 2]],\"\")","v":""},{"$f":"IF(Table_PI[[#This Row],[List 3]]<>\"\",Table_PI[[#This Row],[List 3]],\"\")","v":""},{"$f":"IF(Table_PI[[#This Row],[Manufacturer]]=\"\",\"\",Table_PI[[#This Row],[Manufacturer]])","v":""},{"$f":"IF(Table_PI[[#This Row],[Model Number]]=\"\",\"\",Table_PI[[#This Row],[Model Number]])","v":""},{"$f":"IF(Table_PI[[#This Row],[Serial Number(s)]]=\"\",\"\",Table_PI[[#This Row],[Serial Number(s)]])","v":""},null,{"$f":"IF(Table_PI[[#This Row],[Size]]=\"\",\"\",Table_PI[[#This Row],[Size]])","v":""},null,null,{"$f":"IF(Table_PI[[#This Row],[Input 1]]<>\"\",Table_PI[[#This Row],[Input 1]],\"\")","v":""},null,null,{"$f":"IF(Table_PI[[#This Row],[Input 2]]<>\"\",Table_PI[[#This Row],[Input 2]],\"\")","v":""},null,null,{"$f":"IF(Table_PI[[#This Row],[Input 3]]<>\"\",Table_PI[[#This Row],[Input 3]],\"\")","v":""},null,null,{"$f":"IF(Table_PI[[#This Row],[Input 4]]<>\"\",Table_PI[[#This Row],[Input 4]],\"\")","v":""},null,null,{"$f":"IF(Table_PI[[#This Row],[Input 4]]<>\"\",Table_PI[[#This Row],[Input 4]],\"\")","v":""},null,null,{"$f":"IF(Table_PI[[#This Row],[Input 4]]<>\"\",Table_PI[[#This Row],[Input 4]],\"\")","v":""},{"$f":"IF(Table_PI[[#This Row],[Quantity]]=\"\",\"\",Table_PI[[#This Row],[Quantity]])","v":""},{"$f":"IF(Table_PI[[#This Row],[Notes]]=\"\",\"\",Table_PI[[#This Row],[Notes]])","v":""},{"$f":"IF(OR(Table_PI[[#This Row],[Hide: Baseline kWh]]=\"\",Table_PI[[#This Row],[Hide: Baseline kWh]]=0,ISTEXT(Table_PI[[#This Row],[Hide: Baseline kWh]])),\"\",Table_PI[[#This Row],[Hide: Baseline kWh]])","v":""},{"$f":"IF(OR(Table_PI[[#This Row],[Hide: Baseline kW]]=\"\",Table_PI[[#This Row],[Hide: Baseline kW]]=0,ISTEXT(Table_PI[[#This Row],[Hide: Baseline kW]])),\"\",Table_PI[[#This Row],[Hide: Baseline kW]])","v":""},{"$f":"IF(OR(Table_PI[[#This Row],[Hide: Proposed kWh]]=\"\",Table_PI[[#This Row],[Hide: Proposed kWh]]=0,ISTEXT(Table_PI[[#This Row],[Hide: Proposed kWh]])),\"\",Table_PI[[#This Row],[Hide: Proposed kWh]])","v":""},{"$f":"IF(OR(Table_PI[[#This Row],[Hide: Proposed kW]]=\"\",Table_PI[[#This Row],[Hide: Proposed kW]]=0,ISTEXT(Table_PI[[#This Row],[Hide: Proposed kW]])),\"\",Table_PI[[#This Row],[Hide: Proposed kW]])","v":""},null,null,{"$f":"IF(OR(Table_PI[[#This Row],[Hide: Rebate]]=\"\",Table_PI[[#This Row],[Hide: Rebate]]=0,ISTEXT(Table_PI[[#This Row],[Hide: Rebate]])),\"\",Table_PI[[#This Row],[Hide: Rebate]])","v":""},null,{"$f":"IF(OR(Table_PI[[#This Row],[Hide: Incremental Cost]]=\"\",Table_PI[[#This Row],[Hide: Incremental Cost]]=0,ISTEXT(Table_PI[[#This Row],[Hide: Incremental Cost]])),\"\",Table_PI[[#This Row],[Hide: Incremental Cost]])","v":""},{"$f":"IFERROR(IF(Table_SummaryPI[[#This Row],[Incentive_Customer]]=\"\",\"\",ROUND(Table_SummaryPI[[#This Row],[Incentive_Customer]]/$AM$401*'Customer Information'!$BC$21,2)),0)","v":""},{"$f":"IF(OR(Table_PI[[#This Row],[Annual kWh]]=\"\",Table_PI[[#This Row],[Annual kWh]]=0,ISTEXT(Table_PI[[#This Row],[Annual kWh]])),\"\",Table_PI[[#This Row],[Annual kWh]])","v":""},{"$f":"IF(OR(Table_PI[[#This Row],[Peak kW]]=\"\",Table_PI[[#This Row],[Peak kW]]=0,ISTEXT(Table_PI[[#This Row],[Peak kW]])),\"\",Table_PI[[#This Row],[Peak kW]])","v":""},{"$f":"IF(Table_SummaryPI[[#This Row],[Line No.]]<>\"\",IF(AND(ISNUMBER(FIND(\"Chiller\",Table_SummaryPI[[#This Row],[P_MeasureOption1]],1)),Table_SummaryPI[[#This Row],[ProposedMeasureCategory]]=\"Air-Cooled (Water-Cooled Replacement)\"),$BD$29*Table_SummaryPI[[#This Row],[Size]]*Table_SummaryPI[[#This Row],[Quantity]]*Table_SummaryPI[[#This Row],[EFLHCooling]],\nIF(ISNUMBER(FIND(\"Dishwasher\",Table_SummaryPI[[#This Row],[ProposedMeasureCategory]],1)),$BH$29*Table_SummaryPI[[#This Row],[Quantity]],\nIF(ISNUMBER(FIND(\"Ice Maker\",Table_SummaryPI[[#This Row],[ProposedMeasureCategory]],1)),$BD$31*Table_SummaryPI[[#This Row],[Quantity]],\nIF(ISNUMBER(FIND(\"Spray Valve\",Table_SummaryPI[[#This Row],[ProposedMeasureCategory]],1)),$BH$31*Table_SummaryPI[[#This Row],[Quantity]],\n0)))),\"\")","v":""},{"$f":"IF(OR(Table_PI[[#This Row],[Hide: Electrification kWh]]=\"\",Table_PI[[#This Row],[Hide: Electrification kWh]]=0,ISTEXT(Table_PI[[#This Row],[Hide: Electrification kWh]])),\"\",Table_PI[[#This Row],[Hide: Electrification kWh]])","v":""},{"$f":"IF(OR(Table_PI[[#This Row],[Hide: Electrification GHG]]=\"\",Table_PI[[#This Row],[Hide: Electrification GHG]]=0,ISTEXT(Table_PI[[#This Row],[Hide: Electrification GHG]])),\"\",Table_PI[[#This Row],[Hide: Electrification GHG]])","v":""},{"$f":"IFERROR(IF(Table_SummaryPI[[#This Row],[kWhSavings]]=\"\",\"\",$BH$9*Table_SummaryPI[[#This Row],[kWhSavings]]),0)","v":""},{"$f":"IFERROR(IF(Table_SummaryPI[[#This Row],[kWhSavings]]=\"\",\"\",$BH$14*Table_SummaryPI[[#This Row],[kWhSavings]]),0)","v":""},{"$f":"IFERROR(IF(Table_SummaryPI[[#This Row],[kWhSavings]]=\"\",\"\",$BH$18*Table_SummaryPI[[#This Row],[kWhSavings]]),0)","v":""},{"$f":"IFERROR(IF(Table_SummaryPI[[#This Row],[kWhSavings]]=\"\",\"\",$BH$22*Table_SummaryPI[[#This Row],[kWhSavings]]),0)","v":""}]
[{"$f":"Table_PI[[#This Row],[Line No.]]","v":""},{"$f":"IF(Table_SummaryPI[[#This Row],[MeasureName]]<>\"\",NOT(ISTEXT(Table_PI[[#This Row],[Rebate]])),\"\")","v":""},{"$f":"IF(Table_SummaryPI[[#This Row],[MeassureCategory]]<>\"\",CONCATENATE(Table_SummaryPI[[#This Row],[MeassureCategory]],  \" - \", Table_SummaryPI[[#This Row],[ProposedMeasureCategory]],  \" - \", TEXT(Table_SummaryPI[[#This Row],[Size]],\"#,##0.00\"),\" \",Table_SummaryPI[[#This Row],[SizeUnit]]),\"\")","v":""},{"$f":"SUBSTITUTE(Table_PI[[#This Row],[Measure]],\"     \",\"\",1)","v":""},{"$f":"IF(Table_PI[[#This Row],[List 1]]<>\"\",Table_PI[[#This Row],[List 1]],\"\")","v":""},{"$f":"IF(Table_PI[[#This Row],[List 2]]<>\"\",Table_PI[[#This Row],[List 2]],\"\")","v":""},{"$f":"IF(Table_PI[[#This Row],[List 3]]<>\"\",Table_PI[[#This Row],[List 3]],\"\")","v":""},{"$f":"IF(Table_PI[[#This Row],[Manufacturer]]=\"\",\"\",Table_PI[[#This Row],[Manufacturer]])","v":""},{"$f":"IF(Table_PI[[#This Row],[Model Number]]=\"\",\"\",Table_PI[[#This Row],[Model Number]])","v":""},{"$f":"IF(Table_PI[[#This Row],[Serial Number(s)]]=\"\",\"\",Table_PI[[#This Row],[Serial Number(s)]])","v":""},null,{"$f":"IF(Table_PI[[#This Row],[Size]]=\"\",\"\",Table_PI[[#This Row],[Size]])","v":""},null,null,{"$f":"IF(Table_PI[[#This Row],[Input 1]]<>\"\",Table_PI[[#This Row],[Input 1]],\"\")","v":""},null,null,{"$f":"IF(Table_PI[[#This Row],[Input 2]]<>\"\",Table_PI[[#This Row],[Input 2]],\"\")","v":""},null,null,{"$f":"IF(Table_PI[[#This Row],[Input 3]]<>\"\",Table_PI[[#This Row],[Input 3]],\"\")","v":""},null,null,{"$f":"IF(Table_PI[[#This Row],[Input 4]]<>\"\",Table_PI[[#This Row],[Input 4]],\"\")","v":""},null,null,{"$f":"IF(Table_PI[[#This Row],[Input 4]]<>\"\",Table_PI[[#This Row],[Input 4]],\"\")","v":""},null,null,{"$f":"IF(Table_PI[[#This Row],[Input 4]]<>\"\",Table_PI[[#This Row],[Input 4]],\"\")","v":""},{"$f":"IF(Table_PI[[#This Row],[Quantity]]=\"\",\"\",Table_PI[[#This Row],[Quantity]])","v":""},{"$f":"IF(Table_PI[[#This Row],[Notes]]=\"\",\"\",Table_PI[[#This Row],[Notes]])","v":""},{"$f":"IF(OR(Table_PI[[#This Row],[Hide: Baseline kWh]]=\"\",Table_PI[[#This Row],[Hide: Baseline kWh]]=0,ISTEXT(Table_PI[[#This Row],[Hide: Baseline kWh]])),\"\",Table_PI[[#This Row],[Hide: Baseline kWh]])","v":""},{"$f":"IF(OR(Table_PI[[#This Row],[Hide: Baseline kW]]=\"\",Table_PI[[#This Row],[Hide: Baseline kW]]=0,ISTEXT(Table_PI[[#This Row],[Hide: Baseline kW]])),\"\",Table_PI[[#This Row],[Hide: Baseline kW]])","v":""},{"$f":"IF(OR(Table_PI[[#This Row],[Hide: Proposed kWh]]=\"\",Table_PI[[#This Row],[Hide: Proposed kWh]]=0,ISTEXT(Table_PI[[#This Row],[Hide: Proposed kWh]])),\"\",Table_PI[[#This Row],[Hide: Proposed kWh]])","v":""},{"$f":"IF(OR(Table_PI[[#This Row],[Hide: Proposed kW]]=\"\",Table_PI[[#This Row],[Hide: Proposed kW]]=0,ISTEXT(Table_PI[[#This Row],[Hide: Proposed kW]])),\"\",Table_PI[[#This Row],[Hide: Proposed kW]])","v":""},null,null,{"$f":"IF(OR(Table_PI[[#This Row],[Hide: Rebate]]=\"\",Table_PI[[#This Row],[Hide: Rebate]]=0,ISTEXT(Table_PI[[#This Row],[Hide: Rebate]])),\"\",Table_PI[[#This Row],[Hide: Rebate]])","v":""},null,{"$f":"IF(OR(Table_PI[[#This Row],[Hide: Incremental Cost]]=\"\",Table_PI[[#This Row],[Hide: Incremental Cost]]=0,ISTEXT(Table_PI[[#This Row],[Hide: Incremental Cost]])),\"\",Table_PI[[#This Row],[Hide: Incremental Cost]])","v":""},{"$f":"IFERROR(IF(Table_SummaryPI[[#This Row],[Incentive_Customer]]=\"\",\"\",ROUND(Table_SummaryPI[[#This Row],[Incentive_Customer]]/$AM$401*'Customer Information'!$BC$21,2)),0)","v":""},{"$f":"IF(OR(Table_PI[[#This Row],[Annual kWh]]=\"\",Table_PI[[#This Row],[Annual kWh]]=0,ISTEXT(Table_PI[[#This Row],[Annual kWh]])),\"\",Table_PI[[#This Row],[Annual kWh]])","v":""},{"$f":"IF(OR(Table_PI[[#This Row],[Peak kW]]=\"\",Table_PI[[#This Row],[Peak kW]]=0,ISTEXT(Table_PI[[#This Row],[Peak kW]])),\"\",Table_PI[[#This Row],[Peak kW]])","v":""},{"$f":"IF(Table_SummaryPI[[#This Row],[Line No.]]<>\"\",IF(AND(ISNUMBER(FIND(\"Chiller\",Table_SummaryPI[[#This Row],[P_MeasureOption1]],1)),Table_SummaryPI[[#This Row],[ProposedMeasureCategory]]=\"Air-Cooled (Water-Cooled Replacement)\"),$BD$29*Table_SummaryPI[[#This Row],[Size]]*Table_SummaryPI[[#This Row],[Quantity]]*Table_SummaryPI[[#This Row],[EFLHCooling]],\nIF(ISNUMBER(FIND(\"Dishwasher\",Table_SummaryPI[[#This Row],[ProposedMeasureCategory]],1)),$BH$29*Table_SummaryPI[[#This Row],[Quantity]],\nIF(ISNUMBER(FIND(\"Ice Maker\",Table_SummaryPI[[#This Row],[ProposedMeasureCategory]],1)),$BD$31*Table_SummaryPI[[#This Row],[Quantity]],\nIF(ISNUMBER(FIND(\"Spray Valve\",Table_SummaryPI[[#This Row],[ProposedMeasureCategory]],1)),$BH$31*Table_SummaryPI[[#This Row],[Quantity]],\n0)))),\"\")","v":""},{"$f":"IF(OR(Table_PI[[#This Row],[Hide: Electrification kWh]]=\"\",Table_PI[[#This Row],[Hide: Electrification kWh]]=0,ISTEXT(Table_PI[[#This Row],[Hide: Electrification kWh]])),\"\",Table_PI[[#This Row],[Hide: Electrification kWh]])","v":""},{"$f":"IF(OR(Table_PI[[#This Row],[Hide: Electrification GHG]]=\"\",Table_PI[[#This Row],[Hide: Electrification GHG]]=0,ISTEXT(Table_PI[[#This Row],[Hide: Electrification GHG]])),\"\",Table_PI[[#This Row],[Hide: Electrification GHG]])","v":""},{"$f":"IFERROR(IF(Table_SummaryPI[[#This Row],[kWhSavings]]=\"\",\"\",$BH$9*Table_SummaryPI[[#This Row],[kWhSavings]]),0)","v":""},{"$f":"IFERROR(IF(Table_SummaryPI[[#This Row],[kWhSavings]]=\"\",\"\",$BH$14*Table_SummaryPI[[#This Row],[kWhSavings]]),0)","v":""},{"$f":"IFERROR(IF(Table_SummaryPI[[#This Row],[kWhSavings]]=\"\",\"\",$BH$18*Table_SummaryPI[[#This Row],[kWhSavings]]),0)","v":""},{"$f":"IFERROR(IF(Table_SummaryPI[[#This Row],[kWhSavings]]=\"\",\"\",$BH$22*Table_SummaryPI[[#This Row],[kWhSavings]]),0)","v":""}]
[{"$f":"Table_PI[[#This Row],[Line No.]]","v":""},{"$f":"IF(Table_SummaryPI[[#This Row],[MeasureName]]<>\"\",NOT(ISTEXT(Table_PI[[#This Row],[Rebate]])),\"\")","v":""},{"$f":"IF(Table_SummaryPI[[#This Row],[MeassureCategory]]<>\"\",CONCATENATE(Table_SummaryPI[[#This Row],[MeassureCategory]],  \" - \", Table_SummaryPI[[#This Row],[ProposedMeasureCategory]],  \" - \", TEXT(Table_SummaryPI[[#This Row],[Size]],\"#,##0.00\"),\" \",Table_SummaryPI[[#This Row],[SizeUnit]]),\"\")","v":""},{"$f":"SUBSTITUTE(Table_PI[[#This Row],[Measure]],\"     \",\"\",1)","v":""},{"$f":"IF(Table_PI[[#This Row],[List 1]]<>\"\",Table_PI[[#This Row],[List 1]],\"\")","v":""},{"$f":"IF(Table_PI[[#This Row],[List 2]]<>\"\",Table_PI[[#This Row],[List 2]],\"\")","v":""},{"$f":"IF(Table_PI[[#This Row],[List 3]]<>\"\",Table_PI[[#This Row],[List 3]],\"\")","v":""},{"$f":"IF(Table_PI[[#This Row],[Manufacturer]]=\"\",\"\",Table_PI[[#This Row],[Manufacturer]])","v":""},{"$f":"IF(Table_PI[[#This Row],[Model Number]]=\"\",\"\",Table_PI[[#This Row],[Model Number]])","v":""},{"$f":"IF(Table_PI[[#This Row],[Serial Number(s)]]=\"\",\"\",Table_PI[[#This Row],[Serial Number(s)]])","v":""},null,{"$f":"IF(Table_PI[[#This Row],[Size]]=\"\",\"\",Table_PI[[#This Row],[Size]])","v":""},null,null,{"$f":"IF(Table_PI[[#This Row],[Input 1]]<>\"\",Table_PI[[#This Row],[Input 1]],\"\")","v":""},null,null,{"$f":"IF(Table_PI[[#This Row],[Input 2]]<>\"\",Table_PI[[#This Row],[Input 2]],\"\")","v":""},null,null,{"$f":"IF(Table_PI[[#This Row],[Input 3]]<>\"\",Table_PI[[#This Row],[Input 3]],\"\")","v":""},null,null,{"$f":"IF(Table_PI[[#This Row],[Input 4]]<>\"\",Table_PI[[#This Row],[Input 4]],\"\")","v":""},null,null,{"$f":"IF(Table_PI[[#This Row],[Input 4]]<>\"\",Table_PI[[#This Row],[Input 4]],\"\")","v":""},null,null,{"$f":"IF(Table_PI[[#This Row],[Input 4]]<>\"\",Table_PI[[#This Row],[Input 4]],\"\")","v":""},{"$f":"IF(Table_PI[[#This Row],[Quantity]]=\"\",\"\",Table_PI[[#This Row],[Quantity]])","v":""},{"$f":"IF(Table_PI[[#This Row],[Notes]]=\"\",\"\",Table_PI[[#This Row],[Notes]])","v":""},{"$f":"IF(OR(Table_PI[[#This Row],[Hide: Baseline kWh]]=\"\",Table_PI[[#This Row],[Hide: Baseline kWh]]=0,ISTEXT(Table_PI[[#This Row],[Hide: Baseline kWh]])),\"\",Table_PI[[#This Row],[Hide: Baseline kWh]])","v":""},{"$f":"IF(OR(Table_PI[[#This Row],[Hide: Baseline kW]]=\"\",Table_PI[[#This Row],[Hide: Baseline kW]]=0,ISTEXT(Table_PI[[#This Row],[Hide: Baseline kW]])),\"\",Table_PI[[#This Row],[Hide: Baseline kW]])","v":""},{"$f":"IF(OR(Table_PI[[#This Row],[Hide: Proposed kWh]]=\"\",Table_PI[[#This Row],[Hide: Proposed kWh]]=0,ISTEXT(Table_PI[[#This Row],[Hide: Proposed kWh]])),\"\",Table_PI[[#This Row],[Hide: Proposed kWh]])","v":""},{"$f":"IF(OR(Table_PI[[#This Row],[Hide: Proposed kW]]=\"\",Table_PI[[#This Row],[Hide: Proposed kW]]=0,ISTEXT(Table_PI[[#This Row],[Hide: Proposed kW]])),\"\",Table_PI[[#This Row],[Hide: Proposed kW]])","v":""},null,null,{"$f":"IF(OR(Table_PI[[#This Row],[Hide: Rebate]]=\"\",Table_PI[[#This Row],[Hide: Rebate]]=0,ISTEXT(Table_PI[[#This Row],[Hide: Rebate]])),\"\",Table_PI[[#This Row],[Hide: Rebate]])","v":""},null,{"$f":"IF(OR(Table_PI[[#This Row],[Hide: Incremental Cost]]=\"\",Table_PI[[#This Row],[Hide: Incremental Cost]]=0,ISTEXT(Table_PI[[#This Row],[Hide: Incremental Cost]])),\"\",Table_PI[[#This Row],[Hide: Incremental Cost]])","v":""},{"$f":"IFERROR(IF(Table_SummaryPI[[#This Row],[Incentive_Customer]]=\"\",\"\",ROUND(Table_SummaryPI[[#This Row],[Incentive_Customer]]/$AM$401*'Customer Information'!$BC$21,2)),0)","v":""},{"$f":"IF(OR(Table_PI[[#This Row],[Annual kWh]]=\"\",Table_PI[[#This Row],[Annual kWh]]=0,ISTEXT(Table_PI[[#This Row],[Annual kWh]])),\"\",Table_PI[[#This Row],[Annual kWh]])","v":""},{"$f":"IF(OR(Table_PI[[#This Row],[Peak kW]]=\"\",Table_PI[[#This Row],[Peak kW]]=0,ISTEXT(Table_PI[[#This Row],[Peak kW]])),\"\",Table_PI[[#This Row],[Peak kW]])","v":""},{"$f":"IF(Table_SummaryPI[[#This Row],[Line No.]]<>\"\",IF(AND(ISNUMBER(FIND(\"Chiller\",Table_SummaryPI[[#This Row],[P_MeasureOption1]],1)),Table_SummaryPI[[#This Row],[ProposedMeasureCategory]]=\"Air-Cooled (Water-Cooled Replacement)\"),$BD$29*Table_SummaryPI[[#This Row],[Size]]*Table_SummaryPI[[#This Row],[Quantity]]*Table_SummaryPI[[#This Row],[EFLHCooling]],\nIF(ISNUMBER(FIND(\"Dishwasher\",Table_SummaryPI[[#This Row],[ProposedMeasureCategory]],1)),$BH$29*Table_SummaryPI[[#This Row],[Quantity]],\nIF(ISNUMBER(FIND(\"Ice Maker\",Table_SummaryPI[[#This Row],[ProposedMeasureCategory]],1)),$BD$31*Table_SummaryPI[[#This Row],[Quantity]],\nIF(ISNUMBER(FIND(\"Spray Valve\",Table_SummaryPI[[#This Row],[ProposedMeasureCategory]],1)),$BH$31*Table_SummaryPI[[#This Row],[Quantity]],\n0)))),\"\")","v":""},{"$f":"IF(OR(Table_PI[[#This Row],[Hide: Electrification kWh]]=\"\",Table_PI[[#This Row],[Hide: Electrification kWh]]=0,ISTEXT(Table_PI[[#This Row],[Hide: Electrification kWh]])),\"\",Table_PI[[#This Row],[Hide: Electrification kWh]])","v":""},{"$f":"IF(OR(Table_PI[[#This Row],[Hide: Electrification GHG]]=\"\",Table_PI[[#This Row],[Hide: Electrification GHG]]=0,ISTEXT(Table_PI[[#This Row],[Hide: Electrification GHG]])),\"\",Table_PI[[#This Row],[Hide: Electrification GHG]])","v":""},{"$f":"IFERROR(IF(Table_SummaryPI[[#This Row],[kWhSavings]]=\"\",\"\",$BH$9*Table_SummaryPI[[#This Row],[kWhSavings]]),0)","v":""},{"$f":"IFERROR(IF(Table_SummaryPI[[#This Row],[kWhSavings]]=\"\",\"\",$BH$14*Table_SummaryPI[[#This Row],[kWhSavings]]),0)","v":""},{"$f":"IFERROR(IF(Table_SummaryPI[[#This Row],[kWhSavings]]=\"\",\"\",$BH$18*Table_SummaryPI[[#This Row],[kWhSavings]]),0)","v":""},{"$f":"IFERROR(IF(Table_SummaryPI[[#This Row],[kWhSavings]]=\"\",\"\",$BH$22*Table_SummaryPI[[#This Row],[kWhSavings]]),0)","v":""}]
[{"$f":"Table_PI[[#This Row],[Line No.]]","v":""},{"$f":"IF(Table_SummaryPI[[#This Row],[MeasureName]]<>\"\",NOT(ISTEXT(Table_PI[[#This Row],[Rebate]])),\"\")","v":""},{"$f":"IF(Table_SummaryPI[[#This Row],[MeassureCategory]]<>\"\",CONCATENATE(Table_SummaryPI[[#This Row],[MeassureCategory]],  \" - \", Table_SummaryPI[[#This Row],[ProposedMeasureCategory]],  \" - \", TEXT(Table_SummaryPI[[#This Row],[Size]],\"#,##0.00\"),\" \",Table_SummaryPI[[#This Row],[SizeUnit]]),\"\")","v":""},{"$f":"SUBSTITUTE(Table_PI[[#This Row],[Measure]],\"     \",\"\",1)","v":""},{"$f":"IF(Table_PI[[#This Row],[List 1]]<>\"\",Table_PI[[#This Row],[List 1]],\"\")","v":""},{"$f":"IF(Table_PI[[#This Row],[List 2]]<>\"\",Table_PI[[#This Row],[List 2]],\"\")","v":""},{"$f":"IF(Table_PI[[#This Row],[List 3]]<>\"\",Table_PI[[#This Row],[List 3]],\"\")","v":""},{"$f":"IF(Table_PI[[#This Row],[Manufacturer]]=\"\",\"\",Table_PI[[#This Row],[Manufacturer]])","v":""},{"$f":"IF(Table_PI[[#This Row],[Model Number]]=\"\",\"\",Table_PI[[#This Row],[Model Number]])","v":""},{"$f":"IF(Table_PI[[#This Row],[Serial Number(s)]]=\"\",\"\",Table_PI[[#This Row],[Serial Number(s)]])","v":""},null,{"$f":"IF(Table_PI[[#This Row],[Size]]=\"\",\"\",Table_PI[[#This Row],[Size]])","v":""},null,null,{"$f":"IF(Table_PI[[#This Row],[Input 1]]<>\"\",Table_PI[[#This Row],[Input 1]],\"\")","v":""},null,null,{"$f":"IF(Table_PI[[#This Row],[Input 2]]<>\"\",Table_PI[[#This Row],[Input 2]],\"\")","v":""},null,null,{"$f":"IF(Table_PI[[#This Row],[Input 3]]<>\"\",Table_PI[[#This Row],[Input 3]],\"\")","v":""},null,null,{"$f":"IF(Table_PI[[#This Row],[Input 4]]<>\"\",Table_PI[[#This Row],[Input 4]],\"\")","v":""},null,null,{"$f":"IF(Table_PI[[#This Row],[Input 4]]<>\"\",Table_PI[[#This Row],[Input 4]],\"\")","v":""},null,null,{"$f":"IF(Table_PI[[#This Row],[Input 4]]<>\"\",Table_PI[[#This Row],[Input 4]],\"\")","v":""},{"$f":"IF(Table_PI[[#This Row],[Quantity]]=\"\",\"\",Table_PI[[#This Row],[Quantity]])","v":""},{"$f":"IF(Table_PI[[#This Row],[Notes]]=\"\",\"\",Table_PI[[#This Row],[Notes]])","v":""},{"$f":"IF(OR(Table_PI[[#This Row],[Hide: Baseline kWh]]=\"\",Table_PI[[#This Row],[Hide: Baseline kWh]]=0,ISTEXT(Table_PI[[#This Row],[Hide: Baseline kWh]])),\"\",Table_PI[[#This Row],[Hide: Baseline kWh]])","v":""},{"$f":"IF(OR(Table_PI[[#This Row],[Hide: Baseline kW]]=\"\",Table_PI[[#This Row],[Hide: Baseline kW]]=0,ISTEXT(Table_PI[[#This Row],[Hide: Baseline kW]])),\"\",Table_PI[[#This Row],[Hide: Baseline kW]])","v":""},{"$f":"IF(OR(Table_PI[[#This Row],[Hide: Proposed kWh]]=\"\",Table_PI[[#This Row],[Hide: Proposed kWh]]=0,ISTEXT(Table_PI[[#This Row],[Hide: Proposed kWh]])),\"\",Table_PI[[#This Row],[Hide: Proposed kWh]])","v":""},{"$f":"IF(OR(Table_PI[[#This Row],[Hide: Proposed kW]]=\"\",Table_PI[[#This Row],[Hide: Proposed kW]]=0,ISTEXT(Table_PI[[#This Row],[Hide: Proposed kW]])),\"\",Table_PI[[#This Row],[Hide: Proposed kW]])","v":""},null,null,{"$f":"IF(OR(Table_PI[[#This Row],[Hide: Rebate]]=\"\",Table_PI[[#This Row],[Hide: Rebate]]=0,ISTEXT(Table_PI[[#This Row],[Hide: Rebate]])),\"\",Table_PI[[#This Row],[Hide: Rebate]])","v":""},null,{"$f":"IF(OR(Table_PI[[#This Row],[Hide: Incremental Cost]]=\"\",Table_PI[[#This Row],[Hide: Incremental Cost]]=0,ISTEXT(Table_PI[[#This Row],[Hide: Incremental Cost]])),\"\",Table_PI[[#This Row],[Hide: Incremental Cost]])","v":""},{"$f":"IFERROR(IF(Table_SummaryPI[[#This Row],[Incentive_Customer]]=\"\",\"\",ROUND(Table_SummaryPI[[#This Row],[Incentive_Customer]]/$AM$401*'Customer Information'!$BC$21,2)),0)","v":""},{"$f":"IF(OR(Table_PI[[#This Row],[Annual kWh]]=\"\",Table_PI[[#This Row],[Annual kWh]]=0,ISTEXT(Table_PI[[#This Row],[Annual kWh]])),\"\",Table_PI[[#This Row],[Annual kWh]])","v":""},{"$f":"IF(OR(Table_PI[[#This Row],[Peak kW]]=\"\",Table_PI[[#This Row],[Peak kW]]=0,ISTEXT(Table_PI[[#This Row],[Peak kW]])),\"\",Table_PI[[#This Row],[Peak kW]])","v":""},{"$f":"IF(Table_SummaryPI[[#This Row],[Line No.]]<>\"\",IF(AND(ISNUMBER(FIND(\"Chiller\",Table_SummaryPI[[#This Row],[P_MeasureOption1]],1)),Table_SummaryPI[[#This Row],[ProposedMeasureCategory]]=\"Air-Cooled (Water-Cooled Replacement)\"),$BD$29*Table_SummaryPI[[#This Row],[Size]]*Table_SummaryPI[[#This Row],[Quantity]]*Table_SummaryPI[[#This Row],[EFLHCooling]],\nIF(ISNUMBER(FIND(\"Dishwasher\",Table_SummaryPI[[#This Row],[ProposedMeasureCategory]],1)),$BH$29*Table_SummaryPI[[#This Row],[Quantity]],\nIF(ISNUMBER(FIND(\"Ice Maker\",Table_SummaryPI[[#This Row],[ProposedMeasureCategory]],1)),$BD$31*Table_SummaryPI[[#This Row],[Quantity]],\nIF(ISNUMBER(FIND(\"Spray Valve\",Table_SummaryPI[[#This Row],[ProposedMeasureCategory]],1)),$BH$31*Table_SummaryPI[[#This Row],[Quantity]],\n0)))),\"\")","v":""},{"$f":"IF(OR(Table_PI[[#This Row],[Hide: Electrification kWh]]=\"\",Table_PI[[#This Row],[Hide: Electrification kWh]]=0,ISTEXT(Table_PI[[#This Row],[Hide: Electrification kWh]])),\"\",Table_PI[[#This Row],[Hide: Electrification kWh]])","v":""},{"$f":"IF(OR(Table_PI[[#This Row],[Hide: Electrification GHG]]=\"\",Table_PI[[#This Row],[Hide: Electrification GHG]]=0,ISTEXT(Table_PI[[#This Row],[Hide: Electrification GHG]])),\"\",Table_PI[[#This Row],[Hide: Electrification GHG]])","v":""},{"$f":"IFERROR(IF(Table_SummaryPI[[#This Row],[kWhSavings]]=\"\",\"\",$BH$9*Table_SummaryPI[[#This Row],[kWhSavings]]),0)","v":""},{"$f":"IFERROR(IF(Table_SummaryPI[[#This Row],[kWhSavings]]=\"\",\"\",$BH$14*Table_SummaryPI[[#This Row],[kWhSavings]]),0)","v":""},{"$f":"IFERROR(IF(Table_SummaryPI[[#This Row],[kWhSavings]]=\"\",\"\",$BH$18*Table_SummaryPI[[#This Row],[kWhSavings]]),0)","v":""},{"$f":"IFERROR(IF(Table_SummaryPI[[#This Row],[kWhSavings]]=\"\",\"\",$BH$22*Table_SummaryPI[[#This Row],[kWhSavings]]),0)","v":""}]
[{"$f":"Table_PI[[#This Row],[Line No.]]","v":""},{"$f":"IF(Table_SummaryPI[[#This Row],[MeasureName]]<>\"\",NOT(ISTEXT(Table_PI[[#This Row],[Rebate]])),\"\")","v":""},{"$f":"IF(Table_SummaryPI[[#This Row],[MeassureCategory]]<>\"\",CONCATENATE(Table_SummaryPI[[#This Row],[MeassureCategory]],  \" - \", Table_SummaryPI[[#This Row],[ProposedMeasureCategory]],  \" - \", TEXT(Table_SummaryPI[[#This Row],[Size]],\"#,##0.00\"),\" \",Table_SummaryPI[[#This Row],[SizeUnit]]),\"\")","v":""},{"$f":"SUBSTITUTE(Table_PI[[#This Row],[Measure]],\"     \",\"\",1)","v":""},{"$f":"IF(Table_PI[[#This Row],[List 1]]<>\"\",Table_PI[[#This Row],[List 1]],\"\")","v":""},{"$f":"IF(Table_PI[[#This Row],[List 2]]<>\"\",Table_PI[[#This Row],[List 2]],\"\")","v":""},{"$f":"IF(Table_PI[[#This Row],[List 3]]<>\"\",Table_PI[[#This Row],[List 3]],\"\")","v":""},{"$f":"IF(Table_PI[[#This Row],[Manufacturer]]=\"\",\"\",Table_PI[[#This Row],[Manufacturer]])","v":""},{"$f":"IF(Table_PI[[#This Row],[Model Number]]=\"\",\"\",Table_PI[[#This Row],[Model Number]])","v":""},{"$f":"IF(Table_PI[[#This Row],[Serial Number(s)]]=\"\",\"\",Table_PI[[#This Row],[Serial Number(s)]])","v":""},null,{"$f":"IF(Table_PI[[#This Row],[Size]]=\"\",\"\",Table_PI[[#This Row],[Size]])","v":""},null,null,{"$f":"IF(Table_PI[[#This Row],[Input 1]]<>\"\",Table_PI[[#This Row],[Input 1]],\"\")","v":""},null,null,{"$f":"IF(Table_PI[[#This Row],[Input 2]]<>\"\",Table_PI[[#This Row],[Input 2]],\"\")","v":""},null,null,{"$f":"IF(Table_PI[[#This Row],[Input 3]]<>\"\",Table_PI[[#This Row],[Input 3]],\"\")","v":""},null,null,{"$f":"IF(Table_PI[[#This Row],[Input 4]]<>\"\",Table_PI[[#This Row],[Input 4]],\"\")","v":""},null,null,{"$f":"IF(Table_PI[[#This Row],[Input 4]]<>\"\",Table_PI[[#This Row],[Input 4]],\"\")","v":""},null,null,{"$f":"IF(Table_PI[[#This Row],[Input 4]]<>\"\",Table_PI[[#This Row],[Input 4]],\"\")","v":""},{"$f":"IF(Table_PI[[#This Row],[Quantity]]=\"\",\"\",Table_PI[[#This Row],[Quantity]])","v":""},{"$f":"IF(Table_PI[[#This Row],[Notes]]=\"\",\"\",Table_PI[[#This Row],[Notes]])","v":""},{"$f":"IF(OR(Table_PI[[#This Row],[Hide: Baseline kWh]]=\"\",Table_PI[[#This Row],[Hide: Baseline kWh]]=0,ISTEXT(Table_PI[[#This Row],[Hide: Baseline kWh]])),\"\",Table_PI[[#This Row],[Hide: Baseline kWh]])","v":""},{"$f":"IF(OR(Table_PI[[#This Row],[Hide: Baseline kW]]=\"\",Table_PI[[#This Row],[Hide: Baseline kW]]=0,ISTEXT(Table_PI[[#This Row],[Hide: Baseline kW]])),\"\",Table_PI[[#This Row],[Hide: Baseline kW]])","v":""},{"$f":"IF(OR(Table_PI[[#This Row],[Hide: Proposed kWh]]=\"\",Table_PI[[#This Row],[Hide: Proposed kWh]]=0,ISTEXT(Table_PI[[#This Row],[Hide: Proposed kWh]])),\"\",Table_PI[[#This Row],[Hide: Proposed kWh]])","v":""},{"$f":"IF(OR(Table_PI[[#This Row],[Hide: Proposed kW]]=\"\",Table_PI[[#This Row],[Hide: Proposed kW]]=0,ISTEXT(Table_PI[[#This Row],[Hide: Proposed kW]])),\"\",Table_PI[[#This Row],[Hide: Proposed kW]])","v":""},null,null,{"$f":"IF(OR(Table_PI[[#This Row],[Hide: Rebate]]=\"\",Table_PI[[#This Row],[Hide: Rebate]]=0,ISTEXT(Table_PI[[#This Row],[Hide: Rebate]])),\"\",Table_PI[[#This Row],[Hide: Rebate]])","v":""},null,{"$f":"IF(OR(Table_PI[[#This Row],[Hide: Incremental Cost]]=\"\",Table_PI[[#This Row],[Hide: Incremental Cost]]=0,ISTEXT(Table_PI[[#This Row],[Hide: Incremental Cost]])),\"\",Table_PI[[#This Row],[Hide: Incremental Cost]])","v":""},{"$f":"IFERROR(IF(Table_SummaryPI[[#This Row],[Incentive_Customer]]=\"\",\"\",ROUND(Table_SummaryPI[[#This Row],[Incentive_Customer]]/$AM$401*'Customer Information'!$BC$21,2)),0)","v":""},{"$f":"IF(OR(Table_PI[[#This Row],[Annual kWh]]=\"\",Table_PI[[#This Row],[Annual kWh]]=0,ISTEXT(Table_PI[[#This Row],[Annual kWh]])),\"\",Table_PI[[#This Row],[Annual kWh]])","v":""},{"$f":"IF(OR(Table_PI[[#This Row],[Peak kW]]=\"\",Table_PI[[#This Row],[Peak kW]]=0,ISTEXT(Table_PI[[#This Row],[Peak kW]])),\"\",Table_PI[[#This Row],[Peak kW]])","v":""},{"$f":"IF(Table_SummaryPI[[#This Row],[Line No.]]<>\"\",IF(AND(ISNUMBER(FIND(\"Chiller\",Table_SummaryPI[[#This Row],[P_MeasureOption1]],1)),Table_SummaryPI[[#This Row],[ProposedMeasureCategory]]=\"Air-Cooled (Water-Cooled Replacement)\"),$BD$29*Table_SummaryPI[[#This Row],[Size]]*Table_SummaryPI[[#This Row],[Quantity]]*Table_SummaryPI[[#This Row],[EFLHCooling]],\nIF(ISNUMBER(FIND(\"Dishwasher\",Table_SummaryPI[[#This Row],[ProposedMeasureCategory]],1)),$BH$29*Table_SummaryPI[[#This Row],[Quantity]],\nIF(ISNUMBER(FIND(\"Ice Maker\",Table_SummaryPI[[#This Row],[ProposedMeasureCategory]],1)),$BD$31*Table_SummaryPI[[#This Row],[Quantity]],\nIF(ISNUMBER(FIND(\"Spray Valve\",Table_SummaryPI[[#This Row],[ProposedMeasureCategory]],1)),$BH$31*Table_SummaryPI[[#This Row],[Quantity]],\n0)))),\"\")","v":""},{"$f":"IF(OR(Table_PI[[#This Row],[Hide: Electrification kWh]]=\"\",Table_PI[[#This Row],[Hide: Electrification kWh]]=0,ISTEXT(Table_PI[[#This Row],[Hide: Electrification kWh]])),\"\",Table_PI[[#This Row],[Hide: Electrification kWh]])","v":""},{"$f":"IF(OR(Table_PI[[#This Row],[Hide: Electrification GHG]]=\"\",Table_PI[[#This Row],[Hide: Electrification GHG]]=0,ISTEXT(Table_PI[[#This Row],[Hide: Electrification GHG]])),\"\",Table_PI[[#This Row],[Hide: Electrification GHG]])","v":""},{"$f":"IFERROR(IF(Table_SummaryPI[[#This Row],[kWhSavings]]=\"\",\"\",$BH$9*Table_SummaryPI[[#This Row],[kWhSavings]]),0)","v":""},{"$f":"IFERROR(IF(Table_SummaryPI[[#This Row],[kWhSavings]]=\"\",\"\",$BH$14*Table_SummaryPI[[#This Row],[kWhSavings]]),0)","v":""},{"$f":"IFERROR(IF(Table_SummaryPI[[#This Row],[kWhSavings]]=\"\",\"\",$BH$18*Table_SummaryPI[[#This Row],[kWhSavings]]),0)","v":""},{"$f":"IFERROR(IF(Table_SummaryPI[[#This Row],[kWhSavings]]=\"\",\"\",$BH$22*Table_SummaryPI[[#This Row],[kWhSavings]]),0)","v":""}]
[{"$f":"Table_PI[[#This Row],[Line No.]]","v":""},{"$f":"IF(Table_SummaryPI[[#This Row],[MeasureName]]<>\"\",NOT(ISTEXT(Table_PI[[#This Row],[Rebate]])),\"\")","v":""},{"$f":"IF(Table_SummaryPI[[#This Row],[MeassureCategory]]<>\"\",CONCATENATE(Table_SummaryPI[[#This Row],[MeassureCategory]],  \" - \", Table_SummaryPI[[#This Row],[ProposedMeasureCategory]],  \" - \", TEXT(Table_SummaryPI[[#This Row],[Size]],\"#,##0.00\"),\" \",Table_SummaryPI[[#This Row],[SizeUnit]]),\"\")","v":""},{"$f":"SUBSTITUTE(Table_PI[[#This Row],[Measure]],\"     \",\"\",1)","v":""},{"$f":"IF(Table_PI[[#This Row],[List 1]]<>\"\",Table_PI[[#This Row],[List 1]],\"\")","v":""},{"$f":"IF(Table_PI[[#This Row],[List 2]]<>\"\",Table_PI[[#This Row],[List 2]],\"\")","v":""},{"$f":"IF(Table_PI[[#This Row],[List 3]]<>\"\",Table_PI[[#This Row],[List 3]],\"\")","v":""},{"$f":"IF(Table_PI[[#This Row],[Manufacturer]]=\"\",\"\",Table_PI[[#This Row],[Manufacturer]])","v":""},{"$f":"IF(Table_PI[[#This Row],[Model Number]]=\"\",\"\",Table_PI[[#This Row],[Model Number]])","v":""},{"$f":"IF(Table_PI[[#This Row],[Serial Number(s)]]=\"\",\"\",Table_PI[[#This Row],[Serial Number(s)]])","v":""},null,{"$f":"IF(Table_PI[[#This Row],[Size]]=\"\",\"\",Table_PI[[#This Row],[Size]])","v":""},null,null,{"$f":"IF(Table_PI[[#This Row],[Input 1]]<>\"\",Table_PI[[#This Row],[Input 1]],\"\")","v":""},null,null,{"$f":"IF(Table_PI[[#This Row],[Input 2]]<>\"\",Table_PI[[#This Row],[Input 2]],\"\")","v":""},null,null,{"$f":"IF(Table_PI[[#This Row],[Input 3]]<>\"\",Table_PI[[#This Row],[Input 3]],\"\")","v":""},null,null,{"$f":"IF(Table_PI[[#This Row],[Input 4]]<>\"\",Table_PI[[#This Row],[Input 4]],\"\")","v":""},null,null,{"$f":"IF(Table_PI[[#This Row],[Input 4]]<>\"\",Table_PI[[#This Row],[Input 4]],\"\")","v":""},null,null,{"$f":"IF(Table_PI[[#This Row],[Input 4]]<>\"\",Table_PI[[#This Row],[Input 4]],\"\")","v":""},{"$f":"IF(Table_PI[[#This Row],[Quantity]]=\"\",\"\",Table_PI[[#This Row],[Quantity]])","v":""},{"$f":"IF(Table_PI[[#This Row],[Notes]]=\"\",\"\",Table_PI[[#This Row],[Notes]])","v":""},{"$f":"IF(OR(Table_PI[[#This Row],[Hide: Baseline kWh]]=\"\",Table_PI[[#This Row],[Hide: Baseline kWh]]=0,ISTEXT(Table_PI[[#This Row],[Hide: Baseline kWh]])),\"\",Table_PI[[#This Row],[Hide: Baseline kWh]])","v":""},{"$f":"IF(OR(Table_PI[[#This Row],[Hide: Baseline kW]]=\"\",Table_PI[[#This Row],[Hide: Baseline kW]]=0,ISTEXT(Table_PI[[#This Row],[Hide: Baseline kW]])),\"\",Table_PI[[#This Row],[Hide: Baseline kW]])","v":""},{"$f":"IF(OR(Table_PI[[#This Row],[Hide: Proposed kWh]]=\"\",Table_PI[[#This Row],[Hide: Proposed kWh]]=0,ISTEXT(Table_PI[[#This Row],[Hide: Proposed kWh]])),\"\",Table_PI[[#This Row],[Hide: Proposed kWh]])","v":""},{"$f":"IF(OR(Table_PI[[#This Row],[Hide: Proposed kW]]=\"\",Table_PI[[#This Row],[Hide: Proposed kW]]=0,ISTEXT(Table_PI[[#This Row],[Hide: Proposed kW]])),\"\",Table_PI[[#This Row],[Hide: Proposed kW]])","v":""},null,null,{"$f":"IF(OR(Table_PI[[#This Row],[Hide: Rebate]]=\"\",Table_PI[[#This Row],[Hide: Rebate]]=0,ISTEXT(Table_PI[[#This Row],[Hide: Rebate]])),\"\",Table_PI[[#This Row],[Hide: Rebate]])","v":""},null,{"$f":"IF(OR(Table_PI[[#This Row],[Hide: Incremental Cost]]=\"\",Table_PI[[#This Row],[Hide: Incremental Cost]]=0,ISTEXT(Table_PI[[#This Row],[Hide: Incremental Cost]])),\"\",Table_PI[[#This Row],[Hide: Incremental Cost]])","v":""},{"$f":"IFERROR(IF(Table_SummaryPI[[#This Row],[Incentive_Customer]]=\"\",\"\",ROUND(Table_SummaryPI[[#This Row],[Incentive_Customer]]/$AM$401*'Customer Information'!$BC$21,2)),0)","v":""},{"$f":"IF(OR(Table_PI[[#This Row],[Annual kWh]]=\"\",Table_PI[[#This Row],[Annual kWh]]=0,ISTEXT(Table_PI[[#This Row],[Annual kWh]])),\"\",Table_PI[[#This Row],[Annual kWh]])","v":""},{"$f":"IF(OR(Table_PI[[#This Row],[Peak kW]]=\"\",Table_PI[[#This Row],[Peak kW]]=0,ISTEXT(Table_PI[[#This Row],[Peak kW]])),\"\",Table_PI[[#This Row],[Peak kW]])","v":""},{"$f":"IF(Table_SummaryPI[[#This Row],[Line No.]]<>\"\",IF(AND(ISNUMBER(FIND(\"Chiller\",Table_SummaryPI[[#This Row],[P_MeasureOption1]],1)),Table_SummaryPI[[#This Row],[ProposedMeasureCategory]]=\"Air-Cooled (Water-Cooled Replacement)\"),$BD$29*Table_SummaryPI[[#This Row],[Size]]*Table_SummaryPI[[#This Row],[Quantity]]*Table_SummaryPI[[#This Row],[EFLHCooling]],\nIF(ISNUMBER(FIND(\"Dishwasher\",Table_SummaryPI[[#This Row],[ProposedMeasureCategory]],1)),$BH$29*Table_SummaryPI[[#This Row],[Quantity]],\nIF(ISNUMBER(FIND(\"Ice Maker\",Table_SummaryPI[[#This Row],[ProposedMeasureCategory]],1)),$BD$31*Table_SummaryPI[[#This Row],[Quantity]],\nIF(ISNUMBER(FIND(\"Spray Valve\",Table_SummaryPI[[#This Row],[ProposedMeasureCategory]],1)),$BH$31*Table_SummaryPI[[#This Row],[Quantity]],\n0)))),\"\")","v":""},{"$f":"IF(OR(Table_PI[[#This Row],[Hide: Electrification kWh]]=\"\",Table_PI[[#This Row],[Hide: Electrification kWh]]=0,ISTEXT(Table_PI[[#This Row],[Hide: Electrification kWh]])),\"\",Table_PI[[#This Row],[Hide: Electrification kWh]])","v":""},{"$f":"IF(OR(Table_PI[[#This Row],[Hide: Electrification GHG]]=\"\",Table_PI[[#This Row],[Hide: Electrification GHG]]=0,ISTEXT(Table_PI[[#This Row],[Hide: Electrification GHG]])),\"\",Table_PI[[#This Row],[Hide: Electrification GHG]])","v":""},{"$f":"IFERROR(IF(Table_SummaryPI[[#This Row],[kWhSavings]]=\"\",\"\",$BH$9*Table_SummaryPI[[#This Row],[kWhSavings]]),0)","v":""},{"$f":"IFERROR(IF(Table_SummaryPI[[#This Row],[kWhSavings]]=\"\",\"\",$BH$14*Table_SummaryPI[[#This Row],[kWhSavings]]),0)","v":""},{"$f":"IFERROR(IF(Table_SummaryPI[[#This Row],[kWhSavings]]=\"\",\"\",$BH$18*Table_SummaryPI[[#This Row],[kWhSavings]]),0)","v":""},{"$f":"IFERROR(IF(Table_SummaryPI[[#This Row],[kWhSavings]]=\"\",\"\",$BH$22*Table_SummaryPI[[#This Row],[kWhSavings]]),0)","v":""}]
[{"$f":"Table_PI[[#This Row],[Line No.]]","v":""},{"$f":"IF(Table_SummaryPI[[#This Row],[MeasureName]]<>\"\",NOT(ISTEXT(Table_PI[[#This Row],[Rebate]])),\"\")","v":""},{"$f":"IF(Table_SummaryPI[[#This Row],[MeassureCategory]]<>\"\",CONCATENATE(Table_SummaryPI[[#This Row],[MeassureCategory]],  \" - \", Table_SummaryPI[[#This Row],[ProposedMeasureCategory]],  \" - \", TEXT(Table_SummaryPI[[#This Row],[Size]],\"#,##0.00\"),\" \",Table_SummaryPI[[#This Row],[SizeUnit]]),\"\")","v":""},{"$f":"SUBSTITUTE(Table_PI[[#This Row],[Measure]],\"     \",\"\",1)","v":""},{"$f":"IF(Table_PI[[#This Row],[List 1]]<>\"\",Table_PI[[#This Row],[List 1]],\"\")","v":""},{"$f":"IF(Table_PI[[#This Row],[List 2]]<>\"\",Table_PI[[#This Row],[List 2]],\"\")","v":""},{"$f":"IF(Table_PI[[#This Row],[List 3]]<>\"\",Table_PI[[#This Row],[List 3]],\"\")","v":""},{"$f":"IF(Table_PI[[#This Row],[Manufacturer]]=\"\",\"\",Table_PI[[#This Row],[Manufacturer]])","v":""},{"$f":"IF(Table_PI[[#This Row],[Model Number]]=\"\",\"\",Table_PI[[#This Row],[Model Number]])","v":""},{"$f":"IF(Table_PI[[#This Row],[Serial Number(s)]]=\"\",\"\",Table_PI[[#This Row],[Serial Number(s)]])","v":""},null,{"$f":"IF(Table_PI[[#This Row],[Size]]=\"\",\"\",Table_PI[[#This Row],[Size]])","v":""},null,null,{"$f":"IF(Table_PI[[#This Row],[Input 1]]<>\"\",Table_PI[[#This Row],[Input 1]],\"\")","v":""},null,null,{"$f":"IF(Table_PI[[#This Row],[Input 2]]<>\"\",Table_PI[[#This Row],[Input 2]],\"\")","v":""},null,null,{"$f":"IF(Table_PI[[#This Row],[Input 3]]<>\"\",Table_PI[[#This Row],[Input 3]],\"\")","v":""},null,null,{"$f":"IF(Table_PI[[#This Row],[Input 4]]<>\"\",Table_PI[[#This Row],[Input 4]],\"\")","v":""},null,null,{"$f":"IF(Table_PI[[#This Row],[Input 4]]<>\"\",Table_PI[[#This Row],[Input 4]],\"\")","v":""},null,null,{"$f":"IF(Table_PI[[#This Row],[Input 4]]<>\"\",Table_PI[[#This Row],[Input 4]],\"\")","v":""},{"$f":"IF(Table_PI[[#This Row],[Quantity]]=\"\",\"\",Table_PI[[#This Row],[Quantity]])","v":""},{"$f":"IF(Table_PI[[#This Row],[Notes]]=\"\",\"\",Table_PI[[#This Row],[Notes]])","v":""},{"$f":"IF(OR(Table_PI[[#This Row],[Hide: Baseline kWh]]=\"\",Table_PI[[#This Row],[Hide: Baseline kWh]]=0,ISTEXT(Table_PI[[#This Row],[Hide: Baseline kWh]])),\"\",Table_PI[[#This Row],[Hide: Baseline kWh]])","v":""},{"$f":"IF(OR(Table_PI[[#This Row],[Hide: Baseline kW]]=\"\",Table_PI[[#This Row],[Hide: Baseline kW]]=0,ISTEXT(Table_PI[[#This Row],[Hide: Baseline kW]])),\"\",Table_PI[[#This Row],[Hide: Baseline kW]])","v":""},{"$f":"IF(OR(Table_PI[[#This Row],[Hide: Proposed kWh]]=\"\",Table_PI[[#This Row],[Hide: Proposed kWh]]=0,ISTEXT(Table_PI[[#This Row],[Hide: Proposed kWh]])),\"\",Table_PI[[#This Row],[Hide: Proposed kWh]])","v":""},{"$f":"IF(OR(Table_PI[[#This Row],[Hide: Proposed kW]]=\"\",Table_PI[[#This Row],[Hide: Proposed kW]]=0,ISTEXT(Table_PI[[#This Row],[Hide: Proposed kW]])),\"\",Table_PI[[#This Row],[Hide: Proposed kW]])","v":""},null,null,{"$f":"IF(OR(Table_PI[[#This Row],[Hide: Rebate]]=\"\",Table_PI[[#This Row],[Hide: Rebate]]=0,ISTEXT(Table_PI[[#This Row],[Hide: Rebate]])),\"\",Table_PI[[#This Row],[Hide: Rebate]])","v":""},null,{"$f":"IF(OR(Table_PI[[#This Row],[Hide: Incremental Cost]]=\"\",Table_PI[[#This Row],[Hide: Incremental Cost]]=0,ISTEXT(Table_PI[[#This Row],[Hide: Incremental Cost]])),\"\",Table_PI[[#This Row],[Hide: Incremental Cost]])","v":""},{"$f":"IFERROR(IF(Table_SummaryPI[[#This Row],[Incentive_Customer]]=\"\",\"\",ROUND(Table_SummaryPI[[#This Row],[Incentive_Customer]]/$AM$401*'Customer Information'!$BC$21,2)),0)","v":""},{"$f":"IF(OR(Table_PI[[#This Row],[Annual kWh]]=\"\",Table_PI[[#This Row],[Annual kWh]]=0,ISTEXT(Table_PI[[#This Row],[Annual kWh]])),\"\",Table_PI[[#This Row],[Annual kWh]])","v":""},{"$f":"IF(OR(Table_PI[[#This Row],[Peak kW]]=\"\",Table_PI[[#This Row],[Peak kW]]=0,ISTEXT(Table_PI[[#This Row],[Peak kW]])),\"\",Table_PI[[#This Row],[Peak kW]])","v":""},{"$f":"IF(Table_SummaryPI[[#This Row],[Line No.]]<>\"\",IF(AND(ISNUMBER(FIND(\"Chiller\",Table_SummaryPI[[#This Row],[P_MeasureOption1]],1)),Table_SummaryPI[[#This Row],[ProposedMeasureCategory]]=\"Air-Cooled (Water-Cooled Replacement)\"),$BD$29*Table_SummaryPI[[#This Row],[Size]]*Table_SummaryPI[[#This Row],[Quantity]]*Table_SummaryPI[[#This Row],[EFLHCooling]],\nIF(ISNUMBER(FIND(\"Dishwasher\",Table_SummaryPI[[#This Row],[ProposedMeasureCategory]],1)),$BH$29*Table_SummaryPI[[#This Row],[Quantity]],\nIF(ISNUMBER(FIND(\"Ice Maker\",Table_SummaryPI[[#This Row],[ProposedMeasureCategory]],1)),$BD$31*Table_SummaryPI[[#This Row],[Quantity]],\nIF(ISNUMBER(FIND(\"Spray Valve\",Table_SummaryPI[[#This Row],[ProposedMeasureCategory]],1)),$BH$31*Table_SummaryPI[[#This Row],[Quantity]],\n0)))),\"\")","v":""},{"$f":"IF(OR(Table_PI[[#This Row],[Hide: Electrification kWh]]=\"\",Table_PI[[#This Row],[Hide: Electrification kWh]]=0,ISTEXT(Table_PI[[#This Row],[Hide: Electrification kWh]])),\"\",Table_PI[[#This Row],[Hide: Electrification kWh]])","v":""},{"$f":"IF(OR(Table_PI[[#This Row],[Hide: Electrification GHG]]=\"\",Table_PI[[#This Row],[Hide: Electrification GHG]]=0,ISTEXT(Table_PI[[#This Row],[Hide: Electrification GHG]])),\"\",Table_PI[[#This Row],[Hide: Electrification GHG]])","v":""},{"$f":"IFERROR(IF(Table_SummaryPI[[#This Row],[kWhSavings]]=\"\",\"\",$BH$9*Table_SummaryPI[[#This Row],[kWhSavings]]),0)","v":""},{"$f":"IFERROR(IF(Table_SummaryPI[[#This Row],[kWhSavings]]=\"\",\"\",$BH$14*Table_SummaryPI[[#This Row],[kWhSavings]]),0)","v":""},{"$f":"IFERROR(IF(Table_SummaryPI[[#This Row],[kWhSavings]]=\"\",\"\",$BH$18*Table_SummaryPI[[#This Row],[kWhSavings]]),0)","v":""},{"$f":"IFERROR(IF(Table_SummaryPI[[#This Row],[kWhSavings]]=\"\",\"\",$BH$22*Table_SummaryPI[[#This Row],[kWhSavings]]),0)","v":""}]
[{"$f":"Table_PI[[#This Row],[Line No.]]","v":""},{"$f":"IF(Table_SummaryPI[[#This Row],[MeasureName]]<>\"\",NOT(ISTEXT(Table_PI[[#This Row],[Rebate]])),\"\")","v":""},{"$f":"IF(Table_SummaryPI[[#This Row],[MeassureCategory]]<>\"\",CONCATENATE(Table_SummaryPI[[#This Row],[MeassureCategory]],  \" - \", Table_SummaryPI[[#This Row],[ProposedMeasureCategory]],  \" - \", TEXT(Table_SummaryPI[[#This Row],[Size]],\"#,##0.00\"),\" \",Table_SummaryPI[[#This Row],[SizeUnit]]),\"\")","v":""},{"$f":"SUBSTITUTE(Table_PI[[#This Row],[Measure]],\"     \",\"\",1)","v":""},{"$f":"IF(Table_PI[[#This Row],[List 1]]<>\"\",Table_PI[[#This Row],[List 1]],\"\")","v":""},{"$f":"IF(Table_PI[[#This Row],[List 2]]<>\"\",Table_PI[[#This Row],[List 2]],\"\")","v":""},{"$f":"IF(Table_PI[[#This Row],[List 3]]<>\"\",Table_PI[[#This Row],[List 3]],\"\")","v":""},{"$f":"IF(Table_PI[[#This Row],[Manufacturer]]=\"\",\"\",Table_PI[[#This Row],[Manufacturer]])","v":""},{"$f":"IF(Table_PI[[#This Row],[Model Number]]=\"\",\"\",Table_PI[[#This Row],[Model Number]])","v":""},{"$f":"IF(Table_PI[[#This Row],[Serial Number(s)]]=\"\",\"\",Table_PI[[#This Row],[Serial Number(s)]])","v":""},null,{"$f":"IF(Table_PI[[#This Row],[Size]]=\"\",\"\",Table_PI[[#This Row],[Size]])","v":""},null,null,{"$f":"IF(Table_PI[[#This Row],[Input 1]]<>\"\",Table_PI[[#This Row],[Input 1]],\"\")","v":""},null,null,{"$f":"IF(Table_PI[[#This Row],[Input 2]]<>\"\",Table_PI[[#This Row],[Input 2]],\"\")","v":""},null,null,{"$f":"IF(Table_PI[[#This Row],[Input 3]]<>\"\",Table_PI[[#This Row],[Input 3]],\"\")","v":""},null,null,{"$f":"IF(Table_PI[[#This Row],[Input 4]]<>\"\",Table_PI[[#This Row],[Input 4]],\"\")","v":""},null,null,{"$f":"IF(Table_PI[[#This Row],[Input 4]]<>\"\",Table_PI[[#This Row],[Input 4]],\"\")","v":""},null,null,{"$f":"IF(Table_PI[[#This Row],[Input 4]]<>\"\",Table_PI[[#This Row],[Input 4]],\"\")","v":""},{"$f":"IF(Table_PI[[#This Row],[Quantity]]=\"\",\"\",Table_PI[[#This Row],[Quantity]])","v":""},{"$f":"IF(Table_PI[[#This Row],[Notes]]=\"\",\"\",Table_PI[[#This Row],[Notes]])","v":""},{"$f":"IF(OR(Table_PI[[#This Row],[Hide: Baseline kWh]]=\"\",Table_PI[[#This Row],[Hide: Baseline kWh]]=0,ISTEXT(Table_PI[[#This Row],[Hide: Baseline kWh]])),\"\",Table_PI[[#This Row],[Hide: Baseline kWh]])","v":""},{"$f":"IF(OR(Table_PI[[#This Row],[Hide: Baseline kW]]=\"\",Table_PI[[#This Row],[Hide: Baseline kW]]=0,ISTEXT(Table_PI[[#This Row],[Hide: Baseline kW]])),\"\",Table_PI[[#This Row],[Hide: Baseline kW]])","v":""},{"$f":"IF(OR(Table_PI[[#This Row],[Hide: Proposed kWh]]=\"\",Table_PI[[#This Row],[Hide: Proposed kWh]]=0,ISTEXT(Table_PI[[#This Row],[Hide: Proposed kWh]])),\"\",Table_PI[[#This Row],[Hide: Proposed kWh]])","v":""},{"$f":"IF(OR(Table_PI[[#This Row],[Hide: Proposed kW]]=\"\",Table_PI[[#This Row],[Hide: Proposed kW]]=0,ISTEXT(Table_PI[[#This Row],[Hide: Proposed kW]])),\"\",Table_PI[[#This Row],[Hide: Proposed kW]])","v":""},null,null,{"$f":"IF(OR(Table_PI[[#This Row],[Hide: Rebate]]=\"\",Table_PI[[#This Row],[Hide: Rebate]]=0,ISTEXT(Table_PI[[#This Row],[Hide: Rebate]])),\"\",Table_PI[[#This Row],[Hide: Rebate]])","v":""},null,{"$f":"IF(OR(Table_PI[[#This Row],[Hide: Incremental Cost]]=\"\",Table_PI[[#This Row],[Hide: Incremental Cost]]=0,ISTEXT(Table_PI[[#This Row],[Hide: Incremental Cost]])),\"\",Table_PI[[#This Row],[Hide: Incremental Cost]])","v":""},{"$f":"IFERROR(IF(Table_SummaryPI[[#This Row],[Incentive_Customer]]=\"\",\"\",ROUND(Table_SummaryPI[[#This Row],[Incentive_Customer]]/$AM$401*'Customer Information'!$BC$21,2)),0)","v":""},{"$f":"IF(OR(Table_PI[[#This Row],[Annual kWh]]=\"\",Table_PI[[#This Row],[Annual kWh]]=0,ISTEXT(Table_PI[[#This Row],[Annual kWh]])),\"\",Table_PI[[#This Row],[Annual kWh]])","v":""},{"$f":"IF(OR(Table_PI[[#This Row],[Peak kW]]=\"\",Table_PI[[#This Row],[Peak kW]]=0,ISTEXT(Table_PI[[#This Row],[Peak kW]])),\"\",Table_PI[[#This Row],[Peak kW]])","v":""},{"$f":"IF(Table_SummaryPI[[#This Row],[Line No.]]<>\"\",IF(AND(ISNUMBER(FIND(\"Chiller\",Table_SummaryPI[[#This Row],[P_MeasureOption1]],1)),Table_SummaryPI[[#This Row],[ProposedMeasureCategory]]=\"Air-Cooled (Water-Cooled Replacement)\"),$BD$29*Table_SummaryPI[[#This Row],[Size]]*Table_SummaryPI[[#This Row],[Quantity]]*Table_SummaryPI[[#This Row],[EFLHCooling]],\nIF(ISNUMBER(FIND(\"Dishwasher\",Table_SummaryPI[[#This Row],[ProposedMeasureCategory]],1)),$BH$29*Table_SummaryPI[[#This Row],[Quantity]],\nIF(ISNUMBER(FIND(\"Ice Maker\",Table_SummaryPI[[#This Row],[ProposedMeasureCategory]],1)),$BD$31*Table_SummaryPI[[#This Row],[Quantity]],\nIF(ISNUMBER(FIND(\"Spray Valve\",Table_SummaryPI[[#This Row],[ProposedMeasureCategory]],1)),$BH$31*Table_SummaryPI[[#This Row],[Quantity]],\n0)))),\"\")","v":""},{"$f":"IF(OR(Table_PI[[#This Row],[Hide: Electrification kWh]]=\"\",Table_PI[[#This Row],[Hide: Electrification kWh]]=0,ISTEXT(Table_PI[[#This Row],[Hide: Electrification kWh]])),\"\",Table_PI[[#This Row],[Hide: Electrification kWh]])","v":""},{"$f":"IF(OR(Table_PI[[#This Row],[Hide: Electrification GHG]]=\"\",Table_PI[[#This Row],[Hide: Electrification GHG]]=0,ISTEXT(Table_PI[[#This Row],[Hide: Electrification GHG]])),\"\",Table_PI[[#This Row],[Hide: Electrification GHG]])","v":""},{"$f":"IFERROR(IF(Table_SummaryPI[[#This Row],[kWhSavings]]=\"\",\"\",$BH$9*Table_SummaryPI[[#This Row],[kWhSavings]]),0)","v":""},{"$f":"IFERROR(IF(Table_SummaryPI[[#This Row],[kWhSavings]]=\"\",\"\",$BH$14*Table_SummaryPI[[#This Row],[kWhSavings]]),0)","v":""},{"$f":"IFERROR(IF(Table_SummaryPI[[#This Row],[kWhSavings]]=\"\",\"\",$BH$18*Table_SummaryPI[[#This Row],[kWhSavings]]),0)","v":""},{"$f":"IFERROR(IF(Table_SummaryPI[[#This Row],[kWhSavings]]=\"\",\"\",$BH$22*Table_SummaryPI[[#This Row],[kWhSavings]]),0)","v":""}]
[{"$f":"Table_PI[[#This Row],[Line No.]]","v":""},{"$f":"IF(Table_SummaryPI[[#This Row],[MeasureName]]<>\"\",NOT(ISTEXT(Table_PI[[#This Row],[Rebate]])),\"\")","v":""},{"$f":"IF(Table_SummaryPI[[#This Row],[MeassureCategory]]<>\"\",CONCATENATE(Table_SummaryPI[[#This Row],[MeassureCategory]],  \" - \", Table_SummaryPI[[#This Row],[ProposedMeasureCategory]],  \" - \", TEXT(Table_SummaryPI[[#This Row],[Size]],\"#,##0.00\"),\" \",Table_SummaryPI[[#This Row],[SizeUnit]]),\"\")","v":""},{"$f":"SUBSTITUTE(Table_PI[[#This Row],[Measure]],\"     \",\"\",1)","v":""},{"$f":"IF(Table_PI[[#This Row],[List 1]]<>\"\",Table_PI[[#This Row],[List 1]],\"\")","v":""},{"$f":"IF(Table_PI[[#This Row],[List 2]]<>\"\",Table_PI[[#This Row],[List 2]],\"\")","v":""},{"$f":"IF(Table_PI[[#This Row],[List 3]]<>\"\",Table_PI[[#This Row],[List 3]],\"\")","v":""},{"$f":"IF(Table_PI[[#This Row],[Manufacturer]]=\"\",\"\",Table_PI[[#This Row],[Manufacturer]])","v":""},{"$f":"IF(Table_PI[[#This Row],[Model Number]]=\"\",\"\",Table_PI[[#This Row],[Model Number]])","v":""},{"$f":"IF(Table_PI[[#This Row],[Serial Number(s)]]=\"\",\"\",Table_PI[[#This Row],[Serial Number(s)]])","v":""},null,{"$f":"IF(Table_PI[[#This Row],[Size]]=\"\",\"\",Table_PI[[#This Row],[Size]])","v":""},null,null,{"$f":"IF(Table_PI[[#This Row],[Input 1]]<>\"\",Table_PI[[#This Row],[Input 1]],\"\")","v":""},null,null,{"$f":"IF(Table_PI[[#This Row],[Input 2]]<>\"\",Table_PI[[#This Row],[Input 2]],\"\")","v":""},null,null,{"$f":"IF(Table_PI[[#This Row],[Input 3]]<>\"\",Table_PI[[#This Row],[Input 3]],\"\")","v":""},null,null,{"$f":"IF(Table_PI[[#This Row],[Input 4]]<>\"\",Table_PI[[#This Row],[Input 4]],\"\")","v":""},null,null,{"$f":"IF(Table_PI[[#This Row],[Input 4]]<>\"\",Table_PI[[#This Row],[Input 4]],\"\")","v":""},null,null,{"$f":"IF(Table_PI[[#This Row],[Input 4]]<>\"\",Table_PI[[#This Row],[Input 4]],\"\")","v":""},{"$f":"IF(Table_PI[[#This Row],[Quantity]]=\"\",\"\",Table_PI[[#This Row],[Quantity]])","v":""},{"$f":"IF(Table_PI[[#This Row],[Notes]]=\"\",\"\",Table_PI[[#This Row],[Notes]])","v":""},{"$f":"IF(OR(Table_PI[[#This Row],[Hide: Baseline kWh]]=\"\",Table_PI[[#This Row],[Hide: Baseline kWh]]=0,ISTEXT(Table_PI[[#This Row],[Hide: Baseline kWh]])),\"\",Table_PI[[#This Row],[Hide: Baseline kWh]])","v":""},{"$f":"IF(OR(Table_PI[[#This Row],[Hide: Baseline kW]]=\"\",Table_PI[[#This Row],[Hide: Baseline kW]]=0,ISTEXT(Table_PI[[#This Row],[Hide: Baseline kW]])),\"\",Table_PI[[#This Row],[Hide: Baseline kW]])","v":""},{"$f":"IF(OR(Table_PI[[#This Row],[Hide: Proposed kWh]]=\"\",Table_PI[[#This Row],[Hide: Proposed kWh]]=0,ISTEXT(Table_PI[[#This Row],[Hide: Proposed kWh]])),\"\",Table_PI[[#This Row],[Hide: Proposed kWh]])","v":""},{"$f":"IF(OR(Table_PI[[#This Row],[Hide: Proposed kW]]=\"\",Table_PI[[#This Row],[Hide: Proposed kW]]=0,ISTEXT(Table_PI[[#This Row],[Hide: Proposed kW]])),\"\",Table_PI[[#This Row],[Hide: Proposed kW]])","v":""},null,null,{"$f":"IF(OR(Table_PI[[#This Row],[Hide: Rebate]]=\"\",Table_PI[[#This Row],[Hide: Rebate]]=0,ISTEXT(Table_PI[[#This Row],[Hide: Rebate]])),\"\",Table_PI[[#This Row],[Hide: Rebate]])","v":""},null,{"$f":"IF(OR(Table_PI[[#This Row],[Hide: Incremental Cost]]=\"\",Table_PI[[#This Row],[Hide: Incremental Cost]]=0,ISTEXT(Table_PI[[#This Row],[Hide: Incremental Cost]])),\"\",Table_PI[[#This Row],[Hide: Incremental Cost]])","v":""},{"$f":"IFERROR(IF(Table_SummaryPI[[#This Row],[Incentive_Customer]]=\"\",\"\",ROUND(Table_SummaryPI[[#This Row],[Incentive_Customer]]/$AM$401*'Customer Information'!$BC$21,2)),0)","v":""},{"$f":"IF(OR(Table_PI[[#This Row],[Annual kWh]]=\"\",Table_PI[[#This Row],[Annual kWh]]=0,ISTEXT(Table_PI[[#This Row],[Annual kWh]])),\"\",Table_PI[[#This Row],[Annual kWh]])","v":""},{"$f":"IF(OR(Table_PI[[#This Row],[Peak kW]]=\"\",Table_PI[[#This Row],[Peak kW]]=0,ISTEXT(Table_PI[[#This Row],[Peak kW]])),\"\",Table_PI[[#This Row],[Peak kW]])","v":""},{"$f":"IF(Table_SummaryPI[[#This Row],[Line No.]]<>\"\",IF(AND(ISNUMBER(FIND(\"Chiller\",Table_SummaryPI[[#This Row],[P_MeasureOption1]],1)),Table_SummaryPI[[#This Row],[ProposedMeasureCategory]]=\"Air-Cooled (Water-Cooled Replacement)\"),$BD$29*Table_SummaryPI[[#This Row],[Size]]*Table_SummaryPI[[#This Row],[Quantity]]*Table_SummaryPI[[#This Row],[EFLHCooling]],\nIF(ISNUMBER(FIND(\"Dishwasher\",Table_SummaryPI[[#This Row],[ProposedMeasureCategory]],1)),$BH$29*Table_SummaryPI[[#This Row],[Quantity]],\nIF(ISNUMBER(FIND(\"Ice Maker\",Table_SummaryPI[[#This Row],[ProposedMeasureCategory]],1)),$BD$31*Table_SummaryPI[[#This Row],[Quantity]],\nIF(ISNUMBER(FIND(\"Spray Valve\",Table_SummaryPI[[#This Row],[ProposedMeasureCategory]],1)),$BH$31*Table_SummaryPI[[#This Row],[Quantity]],\n0)))),\"\")","v":""},{"$f":"IF(OR(Table_PI[[#This Row],[Hide: Electrification kWh]]=\"\",Table_PI[[#This Row],[Hide: Electrification kWh]]=0,ISTEXT(Table_PI[[#This Row],[Hide: Electrification kWh]])),\"\",Table_PI[[#This Row],[Hide: Electrification kWh]])","v":""},{"$f":"IF(OR(Table_PI[[#This Row],[Hide: Electrification GHG]]=\"\",Table_PI[[#This Row],[Hide: Electrification GHG]]=0,ISTEXT(Table_PI[[#This Row],[Hide: Electrification GHG]])),\"\",Table_PI[[#This Row],[Hide: Electrification GHG]])","v":""},{"$f":"IFERROR(IF(Table_SummaryPI[[#This Row],[kWhSavings]]=\"\",\"\",$BH$9*Table_SummaryPI[[#This Row],[kWhSavings]]),0)","v":""},{"$f":"IFERROR(IF(Table_SummaryPI[[#This Row],[kWhSavings]]=\"\",\"\",$BH$14*Table_SummaryPI[[#This Row],[kWhSavings]]),0)","v":""},{"$f":"IFERROR(IF(Table_SummaryPI[[#This Row],[kWhSavings]]=\"\",\"\",$BH$18*Table_SummaryPI[[#This Row],[kWhSavings]]),0)","v":""},{"$f":"IFERROR(IF(Table_SummaryPI[[#This Row],[kWhSavings]]=\"\",\"\",$BH$22*Table_SummaryPI[[#This Row],[kWhSavings]]),0)","v":""}]
[{"$f":"Table_PI[[#This Row],[Line No.]]","v":""},{"$f":"IF(Table_SummaryPI[[#This Row],[MeasureName]]<>\"\",NOT(ISTEXT(Table_PI[[#This Row],[Rebate]])),\"\")","v":""},{"$f":"IF(Table_SummaryPI[[#This Row],[MeassureCategory]]<>\"\",CONCATENATE(Table_SummaryPI[[#This Row],[MeassureCategory]],  \" - \", Table_SummaryPI[[#This Row],[ProposedMeasureCategory]],  \" - \", TEXT(Table_SummaryPI[[#This Row],[Size]],\"#,##0.00\"),\" \",Table_SummaryPI[[#This Row],[SizeUnit]]),\"\")","v":""},{"$f":"SUBSTITUTE(Table_PI[[#This Row],[Measure]],\"     \",\"\",1)","v":""},{"$f":"IF(Table_PI[[#This Row],[List 1]]<>\"\",Table_PI[[#This Row],[List 1]],\"\")","v":""},{"$f":"IF(Table_PI[[#This Row],[List 2]]<>\"\",Table_PI[[#This Row],[List 2]],\"\")","v":""},{"$f":"IF(Table_PI[[#This Row],[List 3]]<>\"\",Table_PI[[#This Row],[List 3]],\"\")","v":""},{"$f":"IF(Table_PI[[#This Row],[Manufacturer]]=\"\",\"\",Table_PI[[#This Row],[Manufacturer]])","v":""},{"$f":"IF(Table_PI[[#This Row],[Model Number]]=\"\",\"\",Table_PI[[#This Row],[Model Number]])","v":""},{"$f":"IF(Table_PI[[#This Row],[Serial Number(s)]]=\"\",\"\",Table_PI[[#This Row],[Serial Number(s)]])","v":""},null,{"$f":"IF(Table_PI[[#This Row],[Size]]=\"\",\"\",Table_PI[[#This Row],[Size]])","v":""},null,null,{"$f":"IF(Table_PI[[#This Row],[Input 1]]<>\"\",Table_PI[[#This Row],[Input 1]],\"\")","v":""},null,null,{"$f":"IF(Table_PI[[#This Row],[Input 2]]<>\"\",Table_PI[[#This Row],[Input 2]],\"\")","v":""},null,null,{"$f":"IF(Table_PI[[#This Row],[Input 3]]<>\"\",Table_PI[[#This Row],[Input 3]],\"\")","v":""},null,null,{"$f":"IF(Table_PI[[#This Row],[Input 4]]<>\"\",Table_PI[[#This Row],[Input 4]],\"\")","v":""},null,null,{"$f":"IF(Table_PI[[#This Row],[Input 4]]<>\"\",Table_PI[[#This Row],[Input 4]],\"\")","v":""},null,null,{"$f":"IF(Table_PI[[#This Row],[Input 4]]<>\"\",Table_PI[[#This Row],[Input 4]],\"\")","v":""},{"$f":"IF(Table_PI[[#This Row],[Quantity]]=\"\",\"\",Table_PI[[#This Row],[Quantity]])","v":""},{"$f":"IF(Table_PI[[#This Row],[Notes]]=\"\",\"\",Table_PI[[#This Row],[Notes]])","v":""},{"$f":"IF(OR(Table_PI[[#This Row],[Hide: Baseline kWh]]=\"\",Table_PI[[#This Row],[Hide: Baseline kWh]]=0,ISTEXT(Table_PI[[#This Row],[Hide: Baseline kWh]])),\"\",Table_PI[[#This Row],[Hide: Baseline kWh]])","v":""},{"$f":"IF(OR(Table_PI[[#This Row],[Hide: Baseline kW]]=\"\",Table_PI[[#This Row],[Hide: Baseline kW]]=0,ISTEXT(Table_PI[[#This Row],[Hide: Baseline kW]])),\"\",Table_PI[[#This Row],[Hide: Baseline kW]])","v":""},{"$f":"IF(OR(Table_PI[[#This Row],[Hide: Proposed kWh]]=\"\",Table_PI[[#This Row],[Hide: Proposed kWh]]=0,ISTEXT(Table_PI[[#This Row],[Hide: Proposed kWh]])),\"\",Table_PI[[#This Row],[Hide: Proposed kWh]])","v":""},{"$f":"IF(OR(Table_PI[[#This Row],[Hide: Proposed kW]]=\"\",Table_PI[[#This Row],[Hide: Proposed kW]]=0,ISTEXT(Table_PI[[#This Row],[Hide: Proposed kW]])),\"\",Table_PI[[#This Row],[Hide: Proposed kW]])","v":""},null,null,{"$f":"IF(OR(Table_PI[[#This Row],[Hide: Rebate]]=\"\",Table_PI[[#This Row],[Hide: Rebate]]=0,ISTEXT(Table_PI[[#This Row],[Hide: Rebate]])),\"\",Table_PI[[#This Row],[Hide: Rebate]])","v":""},null,{"$f":"IF(OR(Table_PI[[#This Row],[Hide: Incremental Cost]]=\"\",Table_PI[[#This Row],[Hide: Incremental Cost]]=0,ISTEXT(Table_PI[[#This Row],[Hide: Incremental Cost]])),\"\",Table_PI[[#This Row],[Hide: Incremental Cost]])","v":""},{"$f":"IFERROR(IF(Table_SummaryPI[[#This Row],[Incentive_Customer]]=\"\",\"\",ROUND(Table_SummaryPI[[#This Row],[Incentive_Customer]]/$AM$401*'Customer Information'!$BC$21,2)),0)","v":""},{"$f":"IF(OR(Table_PI[[#This Row],[Annual kWh]]=\"\",Table_PI[[#This Row],[Annual kWh]]=0,ISTEXT(Table_PI[[#This Row],[Annual kWh]])),\"\",Table_PI[[#This Row],[Annual kWh]])","v":""},{"$f":"IF(OR(Table_PI[[#This Row],[Peak kW]]=\"\",Table_PI[[#This Row],[Peak kW]]=0,ISTEXT(Table_PI[[#This Row],[Peak kW]])),\"\",Table_PI[[#This Row],[Peak kW]])","v":""},{"$f":"IF(Table_SummaryPI[[#This Row],[Line No.]]<>\"\",IF(AND(ISNUMBER(FIND(\"Chiller\",Table_SummaryPI[[#This Row],[P_MeasureOption1]],1)),Table_SummaryPI[[#This Row],[ProposedMeasureCategory]]=\"Air-Cooled (Water-Cooled Replacement)\"),$BD$29*Table_SummaryPI[[#This Row],[Size]]*Table_SummaryPI[[#This Row],[Quantity]]*Table_SummaryPI[[#This Row],[EFLHCooling]],\nIF(ISNUMBER(FIND(\"Dishwasher\",Table_SummaryPI[[#This Row],[ProposedMeasureCategory]],1)),$BH$29*Table_SummaryPI[[#This Row],[Quantity]],\nIF(ISNUMBER(FIND(\"Ice Maker\",Table_SummaryPI[[#This Row],[ProposedMeasureCategory]],1)),$BD$31*Table_SummaryPI[[#This Row],[Quantity]],\nIF(ISNUMBER(FIND(\"Spray Valve\",Table_SummaryPI[[#This Row],[ProposedMeasureCategory]],1)),$BH$31*Table_SummaryPI[[#This Row],[Quantity]],\n0)))),\"\")","v":""},{"$f":"IF(OR(Table_PI[[#This Row],[Hide: Electrification kWh]]=\"\",Table_PI[[#This Row],[Hide: Electrification kWh]]=0,ISTEXT(Table_PI[[#This Row],[Hide: Electrification kWh]])),\"\",Table_PI[[#This Row],[Hide: Electrification kWh]])","v":""},{"$f":"IF(OR(Table_PI[[#This Row],[Hide: Electrification GHG]]=\"\",Table_PI[[#This Row],[Hide: Electrification GHG]]=0,ISTEXT(Table_PI[[#This Row],[Hide: Electrification GHG]])),\"\",Table_PI[[#This Row],[Hide: Electrification GHG]])","v":""},{"$f":"IFERROR(IF(Table_SummaryPI[[#This Row],[kWhSavings]]=\"\",\"\",$BH$9*Table_SummaryPI[[#This Row],[kWhSavings]]),0)","v":""},{"$f":"IFERROR(IF(Table_SummaryPI[[#This Row],[kWhSavings]]=\"\",\"\",$BH$14*Table_SummaryPI[[#This Row],[kWhSavings]]),0)","v":""},{"$f":"IFERROR(IF(Table_SummaryPI[[#This Row],[kWhSavings]]=\"\",\"\",$BH$18*Table_SummaryPI[[#This Row],[kWhSavings]]),0)","v":""},{"$f":"IFERROR(IF(Table_SummaryPI[[#This Row],[kWhSavings]]=\"\",\"\",$BH$22*Table_SummaryPI[[#This Row],[kWhSavings]]),0)","v":""}]
[{"$f":"Table_PI[[#This Row],[Line No.]]","v":""},{"$f":"IF(Table_SummaryPI[[#This Row],[MeasureName]]<>\"\",NOT(ISTEXT(Table_PI[[#This Row],[Rebate]])),\"\")","v":""},{"$f":"IF(Table_SummaryPI[[#This Row],[MeassureCategory]]<>\"\",CONCATENATE(Table_SummaryPI[[#This Row],[MeassureCategory]],  \" - \", Table_SummaryPI[[#This Row],[ProposedMeasureCategory]],  \" - \", TEXT(Table_SummaryPI[[#This Row],[Size]],\"#,##0.00\"),\" \",Table_SummaryPI[[#This Row],[SizeUnit]]),\"\")","v":""},{"$f":"SUBSTITUTE(Table_PI[[#This Row],[Measure]],\"     \",\"\",1)","v":""},{"$f":"IF(Table_PI[[#This Row],[List 1]]<>\"\",Table_PI[[#This Row],[List 1]],\"\")","v":""},{"$f":"IF(Table_PI[[#This Row],[List 2]]<>\"\",Table_PI[[#This Row],[List 2]],\"\")","v":""},{"$f":"IF(Table_PI[[#This Row],[List 3]]<>\"\",Table_PI[[#This Row],[List 3]],\"\")","v":""},{"$f":"IF(Table_PI[[#This Row],[Manufacturer]]=\"\",\"\",Table_PI[[#This Row],[Manufacturer]])","v":""},{"$f":"IF(Table_PI[[#This Row],[Model Number]]=\"\",\"\",Table_PI[[#This Row],[Model Number]])","v":""},{"$f":"IF(Table_PI[[#This Row],[Serial Number(s)]]=\"\",\"\",Table_PI[[#This Row],[Serial Number(s)]])","v":""},null,{"$f":"IF(Table_PI[[#This Row],[Size]]=\"\",\"\",Table_PI[[#This Row],[Size]])","v":""},null,null,{"$f":"IF(Table_PI[[#This Row],[Input 1]]<>\"\",Table_PI[[#This Row],[Input 1]],\"\")","v":""},null,null,{"$f":"IF(Table_PI[[#This Row],[Input 2]]<>\"\",Table_PI[[#This Row],[Input 2]],\"\")","v":""},null,null,{"$f":"IF(Table_PI[[#This Row],[Input 3]]<>\"\",Table_PI[[#This Row],[Input 3]],\"\")","v":""},null,null,{"$f":"IF(Table_PI[[#This Row],[Input 4]]<>\"\",Table_PI[[#This Row],[Input 4]],\"\")","v":""},null,null,{"$f":"IF(Table_PI[[#This Row],[Input 4]]<>\"\",Table_PI[[#This Row],[Input 4]],\"\")","v":""},null,null,{"$f":"IF(Table_PI[[#This Row],[Input 4]]<>\"\",Table_PI[[#This Row],[Input 4]],\"\")","v":""},{"$f":"IF(Table_PI[[#This Row],[Quantity]]=\"\",\"\",Table_PI[[#This Row],[Quantity]])","v":""},{"$f":"IF(Table_PI[[#This Row],[Notes]]=\"\",\"\",Table_PI[[#This Row],[Notes]])","v":""},{"$f":"IF(OR(Table_PI[[#This Row],[Hide: Baseline kWh]]=\"\",Table_PI[[#This Row],[Hide: Baseline kWh]]=0,ISTEXT(Table_PI[[#This Row],[Hide: Baseline kWh]])),\"\",Table_PI[[#This Row],[Hide: Baseline kWh]])","v":""},{"$f":"IF(OR(Table_PI[[#This Row],[Hide: Baseline kW]]=\"\",Table_PI[[#This Row],[Hide: Baseline kW]]=0,ISTEXT(Table_PI[[#This Row],[Hide: Baseline kW]])),\"\",Table_PI[[#This Row],[Hide: Baseline kW]])","v":""},{"$f":"IF(OR(Table_PI[[#This Row],[Hide: Proposed kWh]]=\"\",Table_PI[[#This Row],[Hide: Proposed kWh]]=0,ISTEXT(Table_PI[[#This Row],[Hide: Proposed kWh]])),\"\",Table_PI[[#This Row],[Hide: Proposed kWh]])","v":""},{"$f":"IF(OR(Table_PI[[#This Row],[Hide: Proposed kW]]=\"\",Table_PI[[#This Row],[Hide: Proposed kW]]=0,ISTEXT(Table_PI[[#This Row],[Hide: Proposed kW]])),\"\",Table_PI[[#This Row],[Hide: Proposed kW]])","v":""},null,null,{"$f":"IF(OR(Table_PI[[#This Row],[Hide: Rebate]]=\"\",Table_PI[[#This Row],[Hide: Rebate]]=0,ISTEXT(Table_PI[[#This Row],[Hide: Rebate]])),\"\",Table_PI[[#This Row],[Hide: Rebate]])","v":""},null,{"$f":"IF(OR(Table_PI[[#This Row],[Hide: Incremental Cost]]=\"\",Table_PI[[#This Row],[Hide: Incremental Cost]]=0,ISTEXT(Table_PI[[#This Row],[Hide: Incremental Cost]])),\"\",Table_PI[[#This Row],[Hide: Incremental Cost]])","v":""},{"$f":"IFERROR(IF(Table_SummaryPI[[#This Row],[Incentive_Customer]]=\"\",\"\",ROUND(Table_SummaryPI[[#This Row],[Incentive_Customer]]/$AM$401*'Customer Information'!$BC$21,2)),0)","v":""},{"$f":"IF(OR(Table_PI[[#This Row],[Annual kWh]]=\"\",Table_PI[[#This Row],[Annual kWh]]=0,ISTEXT(Table_PI[[#This Row],[Annual kWh]])),\"\",Table_PI[[#This Row],[Annual kWh]])","v":""},{"$f":"IF(OR(Table_PI[[#This Row],[Peak kW]]=\"\",Table_PI[[#This Row],[Peak kW]]=0,ISTEXT(Table_PI[[#This Row],[Peak kW]])),\"\",Table_PI[[#This Row],[Peak kW]])","v":""},{"$f":"IF(Table_SummaryPI[[#This Row],[Line No.]]<>\"\",IF(AND(ISNUMBER(FIND(\"Chiller\",Table_SummaryPI[[#This Row],[P_MeasureOption1]],1)),Table_SummaryPI[[#This Row],[ProposedMeasureCategory]]=\"Air-Cooled (Water-Cooled Replacement)\"),$BD$29*Table_SummaryPI[[#This Row],[Size]]*Table_SummaryPI[[#This Row],[Quantity]]*Table_SummaryPI[[#This Row],[EFLHCooling]],\nIF(ISNUMBER(FIND(\"Dishwasher\",Table_SummaryPI[[#This Row],[ProposedMeasureCategory]],1)),$BH$29*Table_SummaryPI[[#This Row],[Quantity]],\nIF(ISNUMBER(FIND(\"Ice Maker\",Table_SummaryPI[[#This Row],[ProposedMeasureCategory]],1)),$BD$31*Table_SummaryPI[[#This Row],[Quantity]],\nIF(ISNUMBER(FIND(\"Spray Valve\",Table_SummaryPI[[#This Row],[ProposedMeasureCategory]],1)),$BH$31*Table_SummaryPI[[#This Row],[Quantity]],\n0)))),\"\")","v":""},{"$f":"IF(OR(Table_PI[[#This Row],[Hide: Electrification kWh]]=\"\",Table_PI[[#This Row],[Hide: Electrification kWh]]=0,ISTEXT(Table_PI[[#This Row],[Hide: Electrification kWh]])),\"\",Table_PI[[#This Row],[Hide: Electrification kWh]])","v":""},{"$f":"IF(OR(Table_PI[[#This Row],[Hide: Electrification GHG]]=\"\",Table_PI[[#This Row],[Hide: Electrification GHG]]=0,ISTEXT(Table_PI[[#This Row],[Hide: Electrification GHG]])),\"\",Table_PI[[#This Row],[Hide: Electrification GHG]])","v":""},{"$f":"IFERROR(IF(Table_SummaryPI[[#This Row],[kWhSavings]]=\"\",\"\",$BH$9*Table_SummaryPI[[#This Row],[kWhSavings]]),0)","v":""},{"$f":"IFERROR(IF(Table_SummaryPI[[#This Row],[kWhSavings]]=\"\",\"\",$BH$14*Table_SummaryPI[[#This Row],[kWhSavings]]),0)","v":""},{"$f":"IFERROR(IF(Table_SummaryPI[[#This Row],[kWhSavings]]=\"\",\"\",$BH$18*Table_SummaryPI[[#This Row],[kWhSavings]]),0)","v":""},{"$f":"IFERROR(IF(Table_SummaryPI[[#This Row],[kWhSavings]]=\"\",\"\",$BH$22*Table_SummaryPI[[#This Row],[kWhSavings]]),0)","v":""}]
[{"$f":"Table_PI[[#This Row],[Line No.]]","v":""},{"$f":"IF(Table_SummaryPI[[#This Row],[MeasureName]]<>\"\",NOT(ISTEXT(Table_PI[[#This Row],[Rebate]])),\"\")","v":""},{"$f":"IF(Table_SummaryPI[[#This Row],[MeassureCategory]]<>\"\",CONCATENATE(Table_SummaryPI[[#This Row],[MeassureCategory]],  \" - \", Table_SummaryPI[[#This Row],[ProposedMeasureCategory]],  \" - \", TEXT(Table_SummaryPI[[#This Row],[Size]],\"#,##0.00\"),\" \",Table_SummaryPI[[#This Row],[SizeUnit]]),\"\")","v":""},{"$f":"SUBSTITUTE(Table_PI[[#This Row],[Measure]],\"     \",\"\",1)","v":""},{"$f":"IF(Table_PI[[#This Row],[List 1]]<>\"\",Table_PI[[#This Row],[List 1]],\"\")","v":""},{"$f":"IF(Table_PI[[#This Row],[List 2]]<>\"\",Table_PI[[#This Row],[List 2]],\"\")","v":""},{"$f":"IF(Table_PI[[#This Row],[List 3]]<>\"\",Table_PI[[#This Row],[List 3]],\"\")","v":""},{"$f":"IF(Table_PI[[#This Row],[Manufacturer]]=\"\",\"\",Table_PI[[#This Row],[Manufacturer]])","v":""},{"$f":"IF(Table_PI[[#This Row],[Model Number]]=\"\",\"\",Table_PI[[#This Row],[Model Number]])","v":""},{"$f":"IF(Table_PI[[#This Row],[Serial Number(s)]]=\"\",\"\",Table_PI[[#This Row],[Serial Number(s)]])","v":""},null,{"$f":"IF(Table_PI[[#This Row],[Size]]=\"\",\"\",Table_PI[[#This Row],[Size]])","v":""},null,null,{"$f":"IF(Table_PI[[#This Row],[Input 1]]<>\"\",Table_PI[[#This Row],[Input 1]],\"\")","v":""},null,null,{"$f":"IF(Table_PI[[#This Row],[Input 2]]<>\"\",Table_PI[[#This Row],[Input 2]],\"\")","v":""},null,null,{"$f":"IF(Table_PI[[#This Row],[Input 3]]<>\"\",Table_PI[[#This Row],[Input 3]],\"\")","v":""},null,null,{"$f":"IF(Table_PI[[#This Row],[Input 4]]<>\"\",Table_PI[[#This Row],[Input 4]],\"\")","v":""},null,null,{"$f":"IF(Table_PI[[#This Row],[Input 4]]<>\"\",Table_PI[[#This Row],[Input 4]],\"\")","v":""},null,null,{"$f":"IF(Table_PI[[#This Row],[Input 4]]<>\"\",Table_PI[[#This Row],[Input 4]],\"\")","v":""},{"$f":"IF(Table_PI[[#This Row],[Quantity]]=\"\",\"\",Table_PI[[#This Row],[Quantity]])","v":""},{"$f":"IF(Table_PI[[#This Row],[Notes]]=\"\",\"\",Table_PI[[#This Row],[Notes]])","v":""},{"$f":"IF(OR(Table_PI[[#This Row],[Hide: Baseline kWh]]=\"\",Table_PI[[#This Row],[Hide: Baseline kWh]]=0,ISTEXT(Table_PI[[#This Row],[Hide: Baseline kWh]])),\"\",Table_PI[[#This Row],[Hide: Baseline kWh]])","v":""},{"$f":"IF(OR(Table_PI[[#This Row],[Hide: Baseline kW]]=\"\",Table_PI[[#This Row],[Hide: Baseline kW]]=0,ISTEXT(Table_PI[[#This Row],[Hide: Baseline kW]])),\"\",Table_PI[[#This Row],[Hide: Baseline kW]])","v":""},{"$f":"IF(OR(Table_PI[[#This Row],[Hide: Proposed kWh]]=\"\",Table_PI[[#This Row],[Hide: Proposed kWh]]=0,ISTEXT(Table_PI[[#This Row],[Hide: Proposed kWh]])),\"\",Table_PI[[#This Row],[Hide: Proposed kWh]])","v":""},{"$f":"IF(OR(Table_PI[[#This Row],[Hide: Proposed kW]]=\"\",Table_PI[[#This Row],[Hide: Proposed kW]]=0,ISTEXT(Table_PI[[#This Row],[Hide: Proposed kW]])),\"\",Table_PI[[#This Row],[Hide: Proposed kW]])","v":""},null,null,{"$f":"IF(OR(Table_PI[[#This Row],[Hide: Rebate]]=\"\",Table_PI[[#This Row],[Hide: Rebate]]=0,ISTEXT(Table_PI[[#This Row],[Hide: Rebate]])),\"\",Table_PI[[#This Row],[Hide: Rebate]])","v":""},null,{"$f":"IF(OR(Table_PI[[#This Row],[Hide: Incremental Cost]]=\"\",Table_PI[[#This Row],[Hide: Incremental Cost]]=0,ISTEXT(Table_PI[[#This Row],[Hide: Incremental Cost]])),\"\",Table_PI[[#This Row],[Hide: Incremental Cost]])","v":""},{"$f":"IFERROR(IF(Table_SummaryPI[[#This Row],[Incentive_Customer]]=\"\",\"\",ROUND(Table_SummaryPI[[#This Row],[Incentive_Customer]]/$AM$401*'Customer Information'!$BC$21,2)),0)","v":""},{"$f":"IF(OR(Table_PI[[#This Row],[Annual kWh]]=\"\",Table_PI[[#This Row],[Annual kWh]]=0,ISTEXT(Table_PI[[#This Row],[Annual kWh]])),\"\",Table_PI[[#This Row],[Annual kWh]])","v":""},{"$f":"IF(OR(Table_PI[[#This Row],[Peak kW]]=\"\",Table_PI[[#This Row],[Peak kW]]=0,ISTEXT(Table_PI[[#This Row],[Peak kW]])),\"\",Table_PI[[#This Row],[Peak kW]])","v":""},{"$f":"IF(Table_SummaryPI[[#This Row],[Line No.]]<>\"\",IF(AND(ISNUMBER(FIND(\"Chiller\",Table_SummaryPI[[#This Row],[P_MeasureOption1]],1)),Table_SummaryPI[[#This Row],[ProposedMeasureCategory]]=\"Air-Cooled (Water-Cooled Replacement)\"),$BD$29*Table_SummaryPI[[#This Row],[Size]]*Table_SummaryPI[[#This Row],[Quantity]]*Table_SummaryPI[[#This Row],[EFLHCooling]],\nIF(ISNUMBER(FIND(\"Dishwasher\",Table_SummaryPI[[#This Row],[ProposedMeasureCategory]],1)),$BH$29*Table_SummaryPI[[#This Row],[Quantity]],\nIF(ISNUMBER(FIND(\"Ice Maker\",Table_SummaryPI[[#This Row],[ProposedMeasureCategory]],1)),$BD$31*Table_SummaryPI[[#This Row],[Quantity]],\nIF(ISNUMBER(FIND(\"Spray Valve\",Table_SummaryPI[[#This Row],[ProposedMeasureCategory]],1)),$BH$31*Table_SummaryPI[[#This Row],[Quantity]],\n0)))),\"\")","v":""},{"$f":"IF(OR(Table_PI[[#This Row],[Hide: Electrification kWh]]=\"\",Table_PI[[#This Row],[Hide: Electrification kWh]]=0,ISTEXT(Table_PI[[#This Row],[Hide: Electrification kWh]])),\"\",Table_PI[[#This Row],[Hide: Electrification kWh]])","v":""},{"$f":"IF(OR(Table_PI[[#This Row],[Hide: Electrification GHG]]=\"\",Table_PI[[#This Row],[Hide: Electrification GHG]]=0,ISTEXT(Table_PI[[#This Row],[Hide: Electrification GHG]])),\"\",Table_PI[[#This Row],[Hide: Electrification GHG]])","v":""},{"$f":"IFERROR(IF(Table_SummaryPI[[#This Row],[kWhSavings]]=\"\",\"\",$BH$9*Table_SummaryPI[[#This Row],[kWhSavings]]),0)","v":""},{"$f":"IFERROR(IF(Table_SummaryPI[[#This Row],[kWhSavings]]=\"\",\"\",$BH$14*Table_SummaryPI[[#This Row],[kWhSavings]]),0)","v":""},{"$f":"IFERROR(IF(Table_SummaryPI[[#This Row],[kWhSavings]]=\"\",\"\",$BH$18*Table_SummaryPI[[#This Row],[kWhSavings]]),0)","v":""},{"$f":"IFERROR(IF(Table_SummaryPI[[#This Row],[kWhSavings]]=\"\",\"\",$BH$22*Table_SummaryPI[[#This Row],[kWhSavings]]),0)","v":""}]
[{"$f":"Table_PI[[#This Row],[Line No.]]","v":""},{"$f":"IF(Table_SummaryPI[[#This Row],[MeasureName]]<>\"\",NOT(ISTEXT(Table_PI[[#This Row],[Rebate]])),\"\")","v":""},{"$f":"IF(Table_SummaryPI[[#This Row],[MeassureCategory]]<>\"\",CONCATENATE(Table_SummaryPI[[#This Row],[MeassureCategory]],  \" - \", Table_SummaryPI[[#This Row],[ProposedMeasureCategory]],  \" - \", TEXT(Table_SummaryPI[[#This Row],[Size]],\"#,##0.00\"),\" \",Table_SummaryPI[[#This Row],[SizeUnit]]),\"\")","v":""},{"$f":"SUBSTITUTE(Table_PI[[#This Row],[Measure]],\"     \",\"\",1)","v":""},{"$f":"IF(Table_PI[[#This Row],[List 1]]<>\"\",Table_PI[[#This Row],[List 1]],\"\")","v":""},{"$f":"IF(Table_PI[[#This Row],[List 2]]<>\"\",Table_PI[[#This Row],[List 2]],\"\")","v":""},{"$f":"IF(Table_PI[[#This Row],[List 3]]<>\"\",Table_PI[[#This Row],[List 3]],\"\")","v":""},{"$f":"IF(Table_PI[[#This Row],[Manufacturer]]=\"\",\"\",Table_PI[[#This Row],[Manufacturer]])","v":""},{"$f":"IF(Table_PI[[#This Row],[Model Number]]=\"\",\"\",Table_PI[[#This Row],[Model Number]])","v":""},{"$f":"IF(Table_PI[[#This Row],[Serial Number(s)]]=\"\",\"\",Table_PI[[#This Row],[Serial Number(s)]])","v":""},null,{"$f":"IF(Table_PI[[#This Row],[Size]]=\"\",\"\",Table_PI[[#This Row],[Size]])","v":""},null,null,{"$f":"IF(Table_PI[[#This Row],[Input 1]]<>\"\",Table_PI[[#This Row],[Input 1]],\"\")","v":""},null,null,{"$f":"IF(Table_PI[[#This Row],[Input 2]]<>\"\",Table_PI[[#This Row],[Input 2]],\"\")","v":""},null,null,{"$f":"IF(Table_PI[[#This Row],[Input 3]]<>\"\",Table_PI[[#This Row],[Input 3]],\"\")","v":""},null,null,{"$f":"IF(Table_PI[[#This Row],[Input 4]]<>\"\",Table_PI[[#This Row],[Input 4]],\"\")","v":""},null,null,{"$f":"IF(Table_PI[[#This Row],[Input 4]]<>\"\",Table_PI[[#This Row],[Input 4]],\"\")","v":""},null,null,{"$f":"IF(Table_PI[[#This Row],[Input 4]]<>\"\",Table_PI[[#This Row],[Input 4]],\"\")","v":""},{"$f":"IF(Table_PI[[#This Row],[Quantity]]=\"\",\"\",Table_PI[[#This Row],[Quantity]])","v":""},{"$f":"IF(Table_PI[[#This Row],[Notes]]=\"\",\"\",Table_PI[[#This Row],[Notes]])","v":""},{"$f":"IF(OR(Table_PI[[#This Row],[Hide: Baseline kWh]]=\"\",Table_PI[[#This Row],[Hide: Baseline kWh]]=0,ISTEXT(Table_PI[[#This Row],[Hide: Baseline kWh]])),\"\",Table_PI[[#This Row],[Hide: Baseline kWh]])","v":""},{"$f":"IF(OR(Table_PI[[#This Row],[Hide: Baseline kW]]=\"\",Table_PI[[#This Row],[Hide: Baseline kW]]=0,ISTEXT(Table_PI[[#This Row],[Hide: Baseline kW]])),\"\",Table_PI[[#This Row],[Hide: Baseline kW]])","v":""},{"$f":"IF(OR(Table_PI[[#This Row],[Hide: Proposed kWh]]=\"\",Table_PI[[#This Row],[Hide: Proposed kWh]]=0,ISTEXT(Table_PI[[#This Row],[Hide: Proposed kWh]])),\"\",Table_PI[[#This Row],[Hide: Proposed kWh]])","v":""},{"$f":"IF(OR(Table_PI[[#This Row],[Hide: Proposed kW]]=\"\",Table_PI[[#This Row],[Hide: Proposed kW]]=0,ISTEXT(Table_PI[[#This Row],[Hide: Proposed kW]])),\"\",Table_PI[[#This Row],[Hide: Proposed kW]])","v":""},null,null,{"$f":"IF(OR(Table_PI[[#This Row],[Hide: Rebate]]=\"\",Table_PI[[#This Row],[Hide: Rebate]]=0,ISTEXT(Table_PI[[#This Row],[Hide: Rebate]])),\"\",Table_PI[[#This Row],[Hide: Rebate]])","v":""},null,{"$f":"IF(OR(Table_PI[[#This Row],[Hide: Incremental Cost]]=\"\",Table_PI[[#This Row],[Hide: Incremental Cost]]=0,ISTEXT(Table_PI[[#This Row],[Hide: Incremental Cost]])),\"\",Table_PI[[#This Row],[Hide: Incremental Cost]])","v":""},{"$f":"IFERROR(IF(Table_SummaryPI[[#This Row],[Incentive_Customer]]=\"\",\"\",ROUND(Table_SummaryPI[[#This Row],[Incentive_Customer]]/$AM$401*'Customer Information'!$BC$21,2)),0)","v":""},{"$f":"IF(OR(Table_PI[[#This Row],[Annual kWh]]=\"\",Table_PI[[#This Row],[Annual kWh]]=0,ISTEXT(Table_PI[[#This Row],[Annual kWh]])),\"\",Table_PI[[#This Row],[Annual kWh]])","v":""},{"$f":"IF(OR(Table_PI[[#This Row],[Peak kW]]=\"\",Table_PI[[#This Row],[Peak kW]]=0,ISTEXT(Table_PI[[#This Row],[Peak kW]])),\"\",Table_PI[[#This Row],[Peak kW]])","v":""},{"$f":"IF(Table_SummaryPI[[#This Row],[Line No.]]<>\"\",IF(AND(ISNUMBER(FIND(\"Chiller\",Table_SummaryPI[[#This Row],[P_MeasureOption1]],1)),Table_SummaryPI[[#This Row],[ProposedMeasureCategory]]=\"Air-Cooled (Water-Cooled Replacement)\"),$BD$29*Table_SummaryPI[[#This Row],[Size]]*Table_SummaryPI[[#This Row],[Quantity]]*Table_SummaryPI[[#This Row],[EFLHCooling]],\nIF(ISNUMBER(FIND(\"Dishwasher\",Table_SummaryPI[[#This Row],[ProposedMeasureCategory]],1)),$BH$29*Table_SummaryPI[[#This Row],[Quantity]],\nIF(ISNUMBER(FIND(\"Ice Maker\",Table_SummaryPI[[#This Row],[ProposedMeasureCategory]],1)),$BD$31*Table_SummaryPI[[#This Row],[Quantity]],\nIF(ISNUMBER(FIND(\"Spray Valve\",Table_SummaryPI[[#This Row],[ProposedMeasureCategory]],1)),$BH$31*Table_SummaryPI[[#This Row],[Quantity]],\n0)))),\"\")","v":""},{"$f":"IF(OR(Table_PI[[#This Row],[Hide: Electrification kWh]]=\"\",Table_PI[[#This Row],[Hide: Electrification kWh]]=0,ISTEXT(Table_PI[[#This Row],[Hide: Electrification kWh]])),\"\",Table_PI[[#This Row],[Hide: Electrification kWh]])","v":""},{"$f":"IF(OR(Table_PI[[#This Row],[Hide: Electrification GHG]]=\"\",Table_PI[[#This Row],[Hide: Electrification GHG]]=0,ISTEXT(Table_PI[[#This Row],[Hide: Electrification GHG]])),\"\",Table_PI[[#This Row],[Hide: Electrification GHG]])","v":""},{"$f":"IFERROR(IF(Table_SummaryPI[[#This Row],[kWhSavings]]=\"\",\"\",$BH$9*Table_SummaryPI[[#This Row],[kWhSavings]]),0)","v":""},{"$f":"IFERROR(IF(Table_SummaryPI[[#This Row],[kWhSavings]]=\"\",\"\",$BH$14*Table_SummaryPI[[#This Row],[kWhSavings]]),0)","v":""},{"$f":"IFERROR(IF(Table_SummaryPI[[#This Row],[kWhSavings]]=\"\",\"\",$BH$18*Table_SummaryPI[[#This Row],[kWhSavings]]),0)","v":""},{"$f":"IFERROR(IF(Table_SummaryPI[[#This Row],[kWhSavings]]=\"\",\"\",$BH$22*Table_SummaryPI[[#This Row],[kWhSavings]]),0)","v":""}]
[{"$f":"Table_PI[[#This Row],[Line No.]]","v":""},{"$f":"IF(Table_SummaryPI[[#This Row],[MeasureName]]<>\"\",NOT(ISTEXT(Table_PI[[#This Row],[Rebate]])),\"\")","v":""},{"$f":"IF(Table_SummaryPI[[#This Row],[MeassureCategory]]<>\"\",CONCATENATE(Table_SummaryPI[[#This Row],[MeassureCategory]],  \" - \", Table_SummaryPI[[#This Row],[ProposedMeasureCategory]],  \" - \", TEXT(Table_SummaryPI[[#This Row],[Size]],\"#,##0.00\"),\" \",Table_SummaryPI[[#This Row],[SizeUnit]]),\"\")","v":""},{"$f":"SUBSTITUTE(Table_PI[[#This Row],[Measure]],\"     \",\"\",1)","v":""},{"$f":"IF(Table_PI[[#This Row],[List 1]]<>\"\",Table_PI[[#This Row],[List 1]],\"\")","v":""},{"$f":"IF(Table_PI[[#This Row],[List 2]]<>\"\",Table_PI[[#This Row],[List 2]],\"\")","v":""},{"$f":"IF(Table_PI[[#This Row],[List 3]]<>\"\",Table_PI[[#This Row],[List 3]],\"\")","v":""},{"$f":"IF(Table_PI[[#This Row],[Manufacturer]]=\"\",\"\",Table_PI[[#This Row],[Manufacturer]])","v":""},{"$f":"IF(Table_PI[[#This Row],[Model Number]]=\"\",\"\",Table_PI[[#This Row],[Model Number]])","v":""},{"$f":"IF(Table_PI[[#This Row],[Serial Number(s)]]=\"\",\"\",Table_PI[[#This Row],[Serial Number(s)]])","v":""},null,{"$f":"IF(Table_PI[[#This Row],[Size]]=\"\",\"\",Table_PI[[#This Row],[Size]])","v":""},null,null,{"$f":"IF(Table_PI[[#This Row],[Input 1]]<>\"\",Table_PI[[#This Row],[Input 1]],\"\")","v":""},null,null,{"$f":"IF(Table_PI[[#This Row],[Input 2]]<>\"\",Table_PI[[#This Row],[Input 2]],\"\")","v":""},null,null,{"$f":"IF(Table_PI[[#This Row],[Input 3]]<>\"\",Table_PI[[#This Row],[Input 3]],\"\")","v":""},null,null,{"$f":"IF(Table_PI[[#This Row],[Input 4]]<>\"\",Table_PI[[#This Row],[Input 4]],\"\")","v":""},null,null,{"$f":"IF(Table_PI[[#This Row],[Input 4]]<>\"\",Table_PI[[#This Row],[Input 4]],\"\")","v":""},null,null,{"$f":"IF(Table_PI[[#This Row],[Input 4]]<>\"\",Table_PI[[#This Row],[Input 4]],\"\")","v":""},{"$f":"IF(Table_PI[[#This Row],[Quantity]]=\"\",\"\",Table_PI[[#This Row],[Quantity]])","v":""},{"$f":"IF(Table_PI[[#This Row],[Notes]]=\"\",\"\",Table_PI[[#This Row],[Notes]])","v":""},{"$f":"IF(OR(Table_PI[[#This Row],[Hide: Baseline kWh]]=\"\",Table_PI[[#This Row],[Hide: Baseline kWh]]=0,ISTEXT(Table_PI[[#This Row],[Hide: Baseline kWh]])),\"\",Table_PI[[#This Row],[Hide: Baseline kWh]])","v":""},{"$f":"IF(OR(Table_PI[[#This Row],[Hide: Baseline kW]]=\"\",Table_PI[[#This Row],[Hide: Baseline kW]]=0,ISTEXT(Table_PI[[#This Row],[Hide: Baseline kW]])),\"\",Table_PI[[#This Row],[Hide: Baseline kW]])","v":""},{"$f":"IF(OR(Table_PI[[#This Row],[Hide: Proposed kWh]]=\"\",Table_PI[[#This Row],[Hide: Proposed kWh]]=0,ISTEXT(Table_PI[[#This Row],[Hide: Proposed kWh]])),\"\",Table_PI[[#This Row],[Hide: Proposed kWh]])","v":""},{"$f":"IF(OR(Table_PI[[#This Row],[Hide: Proposed kW]]=\"\",Table_PI[[#This Row],[Hide: Proposed kW]]=0,ISTEXT(Table_PI[[#This Row],[Hide: Proposed kW]])),\"\",Table_PI[[#This Row],[Hide: Proposed kW]])","v":""},null,null,{"$f":"IF(OR(Table_PI[[#This Row],[Hide: Rebate]]=\"\",Table_PI[[#This Row],[Hide: Rebate]]=0,ISTEXT(Table_PI[[#This Row],[Hide: Rebate]])),\"\",Table_PI[[#This Row],[Hide: Rebate]])","v":""},null,{"$f":"IF(OR(Table_PI[[#This Row],[Hide: Incremental Cost]]=\"\",Table_PI[[#This Row],[Hide: Incremental Cost]]=0,ISTEXT(Table_PI[[#This Row],[Hide: Incremental Cost]])),\"\",Table_PI[[#This Row],[Hide: Incremental Cost]])","v":""},{"$f":"IFERROR(IF(Table_SummaryPI[[#This Row],[Incentive_Customer]]=\"\",\"\",ROUND(Table_SummaryPI[[#This Row],[Incentive_Customer]]/$AM$401*'Customer Information'!$BC$21,2)),0)","v":""},{"$f":"IF(OR(Table_PI[[#This Row],[Annual kWh]]=\"\",Table_PI[[#This Row],[Annual kWh]]=0,ISTEXT(Table_PI[[#This Row],[Annual kWh]])),\"\",Table_PI[[#This Row],[Annual kWh]])","v":""},{"$f":"IF(OR(Table_PI[[#This Row],[Peak kW]]=\"\",Table_PI[[#This Row],[Peak kW]]=0,ISTEXT(Table_PI[[#This Row],[Peak kW]])),\"\",Table_PI[[#This Row],[Peak kW]])","v":""},{"$f":"IF(Table_SummaryPI[[#This Row],[Line No.]]<>\"\",IF(AND(ISNUMBER(FIND(\"Chiller\",Table_SummaryPI[[#This Row],[P_MeasureOption1]],1)),Table_SummaryPI[[#This Row],[ProposedMeasureCategory]]=\"Air-Cooled (Water-Cooled Replacement)\"),$BD$29*Table_SummaryPI[[#This Row],[Size]]*Table_SummaryPI[[#This Row],[Quantity]]*Table_SummaryPI[[#This Row],[EFLHCooling]],\nIF(ISNUMBER(FIND(\"Dishwasher\",Table_SummaryPI[[#This Row],[ProposedMeasureCategory]],1)),$BH$29*Table_SummaryPI[[#This Row],[Quantity]],\nIF(ISNUMBER(FIND(\"Ice Maker\",Table_SummaryPI[[#This Row],[ProposedMeasureCategory]],1)),$BD$31*Table_SummaryPI[[#This Row],[Quantity]],\nIF(ISNUMBER(FIND(\"Spray Valve\",Table_SummaryPI[[#This Row],[ProposedMeasureCategory]],1)),$BH$31*Table_SummaryPI[[#This Row],[Quantity]],\n0)))),\"\")","v":""},{"$f":"IF(OR(Table_PI[[#This Row],[Hide: Electrification kWh]]=\"\",Table_PI[[#This Row],[Hide: Electrification kWh]]=0,ISTEXT(Table_PI[[#This Row],[Hide: Electrification kWh]])),\"\",Table_PI[[#This Row],[Hide: Electrification kWh]])","v":""},{"$f":"IF(OR(Table_PI[[#This Row],[Hide: Electrification GHG]]=\"\",Table_PI[[#This Row],[Hide: Electrification GHG]]=0,ISTEXT(Table_PI[[#This Row],[Hide: Electrification GHG]])),\"\",Table_PI[[#This Row],[Hide: Electrification GHG]])","v":""},{"$f":"IFERROR(IF(Table_SummaryPI[[#This Row],[kWhSavings]]=\"\",\"\",$BH$9*Table_SummaryPI[[#This Row],[kWhSavings]]),0)","v":""},{"$f":"IFERROR(IF(Table_SummaryPI[[#This Row],[kWhSavings]]=\"\",\"\",$BH$14*Table_SummaryPI[[#This Row],[kWhSavings]]),0)","v":""},{"$f":"IFERROR(IF(Table_SummaryPI[[#This Row],[kWhSavings]]=\"\",\"\",$BH$18*Table_SummaryPI[[#This Row],[kWhSavings]]),0)","v":""},{"$f":"IFERROR(IF(Table_SummaryPI[[#This Row],[kWhSavings]]=\"\",\"\",$BH$22*Table_SummaryPI[[#This Row],[kWhSavings]]),0)","v":""}]
[{"$f":"Table_PI[[#This Row],[Line No.]]","v":""},{"$f":"IF(Table_SummaryPI[[#This Row],[MeasureName]]<>\"\",NOT(ISTEXT(Table_PI[[#This Row],[Rebate]])),\"\")","v":""},{"$f":"IF(Table_SummaryPI[[#This Row],[MeassureCategory]]<>\"\",CONCATENATE(Table_SummaryPI[[#This Row],[MeassureCategory]],  \" - \", Table_SummaryPI[[#This Row],[ProposedMeasureCategory]],  \" - \", TEXT(Table_SummaryPI[[#This Row],[Size]],\"#,##0.00\"),\" \",Table_SummaryPI[[#This Row],[SizeUnit]]),\"\")","v":""},{"$f":"SUBSTITUTE(Table_PI[[#This Row],[Measure]],\"     \",\"\",1)","v":""},{"$f":"IF(Table_PI[[#This Row],[List 1]]<>\"\",Table_PI[[#This Row],[List 1]],\"\")","v":""},{"$f":"IF(Table_PI[[#This Row],[List 2]]<>\"\",Table_PI[[#This Row],[List 2]],\"\")","v":""},{"$f":"IF(Table_PI[[#This Row],[List 3]]<>\"\",Table_PI[[#This Row],[List 3]],\"\")","v":""},{"$f":"IF(Table_PI[[#This Row],[Manufacturer]]=\"\",\"\",Table_PI[[#This Row],[Manufacturer]])","v":""},{"$f":"IF(Table_PI[[#This Row],[Model Number]]=\"\",\"\",Table_PI[[#This Row],[Model Number]])","v":""},{"$f":"IF(Table_PI[[#This Row],[Serial Number(s)]]=\"\",\"\",Table_PI[[#This Row],[Serial Number(s)]])","v":""},null,{"$f":"IF(Table_PI[[#This Row],[Size]]=\"\",\"\",Table_PI[[#This Row],[Size]])","v":""},null,null,{"$f":"IF(Table_PI[[#This Row],[Input 1]]<>\"\",Table_PI[[#This Row],[Input 1]],\"\")","v":""},null,null,{"$f":"IF(Table_PI[[#This Row],[Input 2]]<>\"\",Table_PI[[#This Row],[Input 2]],\"\")","v":""},null,null,{"$f":"IF(Table_PI[[#This Row],[Input 3]]<>\"\",Table_PI[[#This Row],[Input 3]],\"\")","v":""},null,null,{"$f":"IF(Table_PI[[#This Row],[Input 4]]<>\"\",Table_PI[[#This Row],[Input 4]],\"\")","v":""},null,null,{"$f":"IF(Table_PI[[#This Row],[Input 4]]<>\"\",Table_PI[[#This Row],[Input 4]],\"\")","v":""},null,null,{"$f":"IF(Table_PI[[#This Row],[Input 4]]<>\"\",Table_PI[[#This Row],[Input 4]],\"\")","v":""},{"$f":"IF(Table_PI[[#This Row],[Quantity]]=\"\",\"\",Table_PI[[#This Row],[Quantity]])","v":""},{"$f":"IF(Table_PI[[#This Row],[Notes]]=\"\",\"\",Table_PI[[#This Row],[Notes]])","v":""},{"$f":"IF(OR(Table_PI[[#This Row],[Hide: Baseline kWh]]=\"\",Table_PI[[#This Row],[Hide: Baseline kWh]]=0,ISTEXT(Table_PI[[#This Row],[Hide: Baseline kWh]])),\"\",Table_PI[[#This Row],[Hide: Baseline kWh]])","v":""},{"$f":"IF(OR(Table_PI[[#This Row],[Hide: Baseline kW]]=\"\",Table_PI[[#This Row],[Hide: Baseline kW]]=0,ISTEXT(Table_PI[[#This Row],[Hide: Baseline kW]])),\"\",Table_PI[[#This Row],[Hide: Baseline kW]])","v":""},{"$f":"IF(OR(Table_PI[[#This Row],[Hide: Proposed kWh]]=\"\",Table_PI[[#This Row],[Hide: Proposed kWh]]=0,ISTEXT(Table_PI[[#This Row],[Hide: Proposed kWh]])),\"\",Table_PI[[#This Row],[Hide: Proposed kWh]])","v":""},{"$f":"IF(OR(Table_PI[[#This Row],[Hide: Proposed kW]]=\"\",Table_PI[[#This Row],[Hide: Proposed kW]]=0,ISTEXT(Table_PI[[#This Row],[Hide: Proposed kW]])),\"\",Table_PI[[#This Row],[Hide: Proposed kW]])","v":""},null,null,{"$f":"IF(OR(Table_PI[[#This Row],[Hide: Rebate]]=\"\",Table_PI[[#This Row],[Hide: Rebate]]=0,ISTEXT(Table_PI[[#This Row],[Hide: Rebate]])),\"\",Table_PI[[#This Row],[Hide: Rebate]])","v":""},null,{"$f":"IF(OR(Table_PI[[#This Row],[Hide: Incremental Cost]]=\"\",Table_PI[[#This Row],[Hide: Incremental Cost]]=0,ISTEXT(Table_PI[[#This Row],[Hide: Incremental Cost]])),\"\",Table_PI[[#This Row],[Hide: Incremental Cost]])","v":""},{"$f":"IFERROR(IF(Table_SummaryPI[[#This Row],[Incentive_Customer]]=\"\",\"\",ROUND(Table_SummaryPI[[#This Row],[Incentive_Customer]]/$AM$401*'Customer Information'!$BC$21,2)),0)","v":""},{"$f":"IF(OR(Table_PI[[#This Row],[Annual kWh]]=\"\",Table_PI[[#This Row],[Annual kWh]]=0,ISTEXT(Table_PI[[#This Row],[Annual kWh]])),\"\",Table_PI[[#This Row],[Annual kWh]])","v":""},{"$f":"IF(OR(Table_PI[[#This Row],[Peak kW]]=\"\",Table_PI[[#This Row],[Peak kW]]=0,ISTEXT(Table_PI[[#This Row],[Peak kW]])),\"\",Table_PI[[#This Row],[Peak kW]])","v":""},{"$f":"IF(Table_SummaryPI[[#This Row],[Line No.]]<>\"\",IF(AND(ISNUMBER(FIND(\"Chiller\",Table_SummaryPI[[#This Row],[P_MeasureOption1]],1)),Table_SummaryPI[[#This Row],[ProposedMeasureCategory]]=\"Air-Cooled (Water-Cooled Replacement)\"),$BD$29*Table_SummaryPI[[#This Row],[Size]]*Table_SummaryPI[[#This Row],[Quantity]]*Table_SummaryPI[[#This Row],[EFLHCooling]],\nIF(ISNUMBER(FIND(\"Dishwasher\",Table_SummaryPI[[#This Row],[ProposedMeasureCategory]],1)),$BH$29*Table_SummaryPI[[#This Row],[Quantity]],\nIF(ISNUMBER(FIND(\"Ice Maker\",Table_SummaryPI[[#This Row],[ProposedMeasureCategory]],1)),$BD$31*Table_SummaryPI[[#This Row],[Quantity]],\nIF(ISNUMBER(FIND(\"Spray Valve\",Table_SummaryPI[[#This Row],[ProposedMeasureCategory]],1)),$BH$31*Table_SummaryPI[[#This Row],[Quantity]],\n0)))),\"\")","v":""},{"$f":"IF(OR(Table_PI[[#This Row],[Hide: Electrification kWh]]=\"\",Table_PI[[#This Row],[Hide: Electrification kWh]]=0,ISTEXT(Table_PI[[#This Row],[Hide: Electrification kWh]])),\"\",Table_PI[[#This Row],[Hide: Electrification kWh]])","v":""},{"$f":"IF(OR(Table_PI[[#This Row],[Hide: Electrification GHG]]=\"\",Table_PI[[#This Row],[Hide: Electrification GHG]]=0,ISTEXT(Table_PI[[#This Row],[Hide: Electrification GHG]])),\"\",Table_PI[[#This Row],[Hide: Electrification GHG]])","v":""},{"$f":"IFERROR(IF(Table_SummaryPI[[#This Row],[kWhSavings]]=\"\",\"\",$BH$9*Table_SummaryPI[[#This Row],[kWhSavings]]),0)","v":""},{"$f":"IFERROR(IF(Table_SummaryPI[[#This Row],[kWhSavings]]=\"\",\"\",$BH$14*Table_SummaryPI[[#This Row],[kWhSavings]]),0)","v":""},{"$f":"IFERROR(IF(Table_SummaryPI[[#This Row],[kWhSavings]]=\"\",\"\",$BH$18*Table_SummaryPI[[#This Row],[kWhSavings]]),0)","v":""},{"$f":"IFERROR(IF(Table_SummaryPI[[#This Row],[kWhSavings]]=\"\",\"\",$BH$22*Table_SummaryPI[[#This Row],[kWhSavings]]),0)","v":""}]
[{"$f":"Table_PI[[#This Row],[Line No.]]","v":""},{"$f":"IF(Table_SummaryPI[[#This Row],[MeasureName]]<>\"\",NOT(ISTEXT(Table_PI[[#This Row],[Rebate]])),\"\")","v":""},{"$f":"IF(Table_SummaryPI[[#This Row],[MeassureCategory]]<>\"\",CONCATENATE(Table_SummaryPI[[#This Row],[MeassureCategory]],  \" - \", Table_SummaryPI[[#This Row],[ProposedMeasureCategory]],  \" - \", TEXT(Table_SummaryPI[[#This Row],[Size]],\"#,##0.00\"),\" \",Table_SummaryPI[[#This Row],[SizeUnit]]),\"\")","v":""},{"$f":"SUBSTITUTE(Table_PI[[#This Row],[Measure]],\"     \",\"\",1)","v":""},{"$f":"IF(Table_PI[[#This Row],[List 1]]<>\"\",Table_PI[[#This Row],[List 1]],\"\")","v":""},{"$f":"IF(Table_PI[[#This Row],[List 2]]<>\"\",Table_PI[[#This Row],[List 2]],\"\")","v":""},{"$f":"IF(Table_PI[[#This Row],[List 3]]<>\"\",Table_PI[[#This Row],[List 3]],\"\")","v":""},{"$f":"IF(Table_PI[[#This Row],[Manufacturer]]=\"\",\"\",Table_PI[[#This Row],[Manufacturer]])","v":""},{"$f":"IF(Table_PI[[#This Row],[Model Number]]=\"\",\"\",Table_PI[[#This Row],[Model Number]])","v":""},{"$f":"IF(Table_PI[[#This Row],[Serial Number(s)]]=\"\",\"\",Table_PI[[#This Row],[Serial Number(s)]])","v":""},null,{"$f":"IF(Table_PI[[#This Row],[Size]]=\"\",\"\",Table_PI[[#This Row],[Size]])","v":""},null,null,{"$f":"IF(Table_PI[[#This Row],[Input 1]]<>\"\",Table_PI[[#This Row],[Input 1]],\"\")","v":""},null,null,{"$f":"IF(Table_PI[[#This Row],[Input 2]]<>\"\",Table_PI[[#This Row],[Input 2]],\"\")","v":""},null,null,{"$f":"IF(Table_PI[[#This Row],[Input 3]]<>\"\",Table_PI[[#This Row],[Input 3]],\"\")","v":""},null,null,{"$f":"IF(Table_PI[[#This Row],[Input 4]]<>\"\",Table_PI[[#This Row],[Input 4]],\"\")","v":""},null,null,{"$f":"IF(Table_PI[[#This Row],[Input 4]]<>\"\",Table_PI[[#This Row],[Input 4]],\"\")","v":""},null,null,{"$f":"IF(Table_PI[[#This Row],[Input 4]]<>\"\",Table_PI[[#This Row],[Input 4]],\"\")","v":""},{"$f":"IF(Table_PI[[#This Row],[Quantity]]=\"\",\"\",Table_PI[[#This Row],[Quantity]])","v":""},{"$f":"IF(Table_PI[[#This Row],[Notes]]=\"\",\"\",Table_PI[[#This Row],[Notes]])","v":""},{"$f":"IF(OR(Table_PI[[#This Row],[Hide: Baseline kWh]]=\"\",Table_PI[[#This Row],[Hide: Baseline kWh]]=0,ISTEXT(Table_PI[[#This Row],[Hide: Baseline kWh]])),\"\",Table_PI[[#This Row],[Hide: Baseline kWh]])","v":""},{"$f":"IF(OR(Table_PI[[#This Row],[Hide: Baseline kW]]=\"\",Table_PI[[#This Row],[Hide: Baseline kW]]=0,ISTEXT(Table_PI[[#This Row],[Hide: Baseline kW]])),\"\",Table_PI[[#This Row],[Hide: Baseline kW]])","v":""},{"$f":"IF(OR(Table_PI[[#This Row],[Hide: Proposed kWh]]=\"\",Table_PI[[#This Row],[Hide: Proposed kWh]]=0,ISTEXT(Table_PI[[#This Row],[Hide: Proposed kWh]])),\"\",Table_PI[[#This Row],[Hide: Proposed kWh]])","v":""},{"$f":"IF(OR(Table_PI[[#This Row],[Hide: Proposed kW]]=\"\",Table_PI[[#This Row],[Hide: Proposed kW]]=0,ISTEXT(Table_PI[[#This Row],[Hide: Proposed kW]])),\"\",Table_PI[[#This Row],[Hide: Proposed kW]])","v":""},null,null,{"$f":"IF(OR(Table_PI[[#This Row],[Hide: Rebate]]=\"\",Table_PI[[#This Row],[Hide: Rebate]]=0,ISTEXT(Table_PI[[#This Row],[Hide: Rebate]])),\"\",Table_PI[[#This Row],[Hide: Rebate]])","v":""},null,{"$f":"IF(OR(Table_PI[[#This Row],[Hide: Incremental Cost]]=\"\",Table_PI[[#This Row],[Hide: Incremental Cost]]=0,ISTEXT(Table_PI[[#This Row],[Hide: Incremental Cost]])),\"\",Table_PI[[#This Row],[Hide: Incremental Cost]])","v":""},{"$f":"IFERROR(IF(Table_SummaryPI[[#This Row],[Incentive_Customer]]=\"\",\"\",ROUND(Table_SummaryPI[[#This Row],[Incentive_Customer]]/$AM$401*'Customer Information'!$BC$21,2)),0)","v":""},{"$f":"IF(OR(Table_PI[[#This Row],[Annual kWh]]=\"\",Table_PI[[#This Row],[Annual kWh]]=0,ISTEXT(Table_PI[[#This Row],[Annual kWh]])),\"\",Table_PI[[#This Row],[Annual kWh]])","v":""},{"$f":"IF(OR(Table_PI[[#This Row],[Peak kW]]=\"\",Table_PI[[#This Row],[Peak kW]]=0,ISTEXT(Table_PI[[#This Row],[Peak kW]])),\"\",Table_PI[[#This Row],[Peak kW]])","v":""},{"$f":"IF(Table_SummaryPI[[#This Row],[Line No.]]<>\"\",IF(AND(ISNUMBER(FIND(\"Chiller\",Table_SummaryPI[[#This Row],[P_MeasureOption1]],1)),Table_SummaryPI[[#This Row],[ProposedMeasureCategory]]=\"Air-Cooled (Water-Cooled Replacement)\"),$BD$29*Table_SummaryPI[[#This Row],[Size]]*Table_SummaryPI[[#This Row],[Quantity]]*Table_SummaryPI[[#This Row],[EFLHCooling]],\nIF(ISNUMBER(FIND(\"Dishwasher\",Table_SummaryPI[[#This Row],[ProposedMeasureCategory]],1)),$BH$29*Table_SummaryPI[[#This Row],[Quantity]],\nIF(ISNUMBER(FIND(\"Ice Maker\",Table_SummaryPI[[#This Row],[ProposedMeasureCategory]],1)),$BD$31*Table_SummaryPI[[#This Row],[Quantity]],\nIF(ISNUMBER(FIND(\"Spray Valve\",Table_SummaryPI[[#This Row],[ProposedMeasureCategory]],1)),$BH$31*Table_SummaryPI[[#This Row],[Quantity]],\n0)))),\"\")","v":""},{"$f":"IF(OR(Table_PI[[#This Row],[Hide: Electrification kWh]]=\"\",Table_PI[[#This Row],[Hide: Electrification kWh]]=0,ISTEXT(Table_PI[[#This Row],[Hide: Electrification kWh]])),\"\",Table_PI[[#This Row],[Hide: Electrification kWh]])","v":""},{"$f":"IF(OR(Table_PI[[#This Row],[Hide: Electrification GHG]]=\"\",Table_PI[[#This Row],[Hide: Electrification GHG]]=0,ISTEXT(Table_PI[[#This Row],[Hide: Electrification GHG]])),\"\",Table_PI[[#This Row],[Hide: Electrification GHG]])","v":""},{"$f":"IFERROR(IF(Table_SummaryPI[[#This Row],[kWhSavings]]=\"\",\"\",$BH$9*Table_SummaryPI[[#This Row],[kWhSavings]]),0)","v":""},{"$f":"IFERROR(IF(Table_SummaryPI[[#This Row],[kWhSavings]]=\"\",\"\",$BH$14*Table_SummaryPI[[#This Row],[kWhSavings]]),0)","v":""},{"$f":"IFERROR(IF(Table_SummaryPI[[#This Row],[kWhSavings]]=\"\",\"\",$BH$18*Table_SummaryPI[[#This Row],[kWhSavings]]),0)","v":""},{"$f":"IFERROR(IF(Table_SummaryPI[[#This Row],[kWhSavings]]=\"\",\"\",$BH$22*Table_SummaryPI[[#This Row],[kWhSavings]]),0)","v":""}]
[{"$f":"Table_PI[[#This Row],[Line No.]]","v":""},{"$f":"IF(Table_SummaryPI[[#This Row],[MeasureName]]<>\"\",NOT(ISTEXT(Table_PI[[#This Row],[Rebate]])),\"\")","v":""},{"$f":"IF(Table_SummaryPI[[#This Row],[MeassureCategory]]<>\"\",CONCATENATE(Table_SummaryPI[[#This Row],[MeassureCategory]],  \" - \", Table_SummaryPI[[#This Row],[ProposedMeasureCategory]],  \" - \", TEXT(Table_SummaryPI[[#This Row],[Size]],\"#,##0.00\"),\" \",Table_SummaryPI[[#This Row],[SizeUnit]]),\"\")","v":""},{"$f":"SUBSTITUTE(Table_PI[[#This Row],[Measure]],\"     \",\"\",1)","v":""},{"$f":"IF(Table_PI[[#This Row],[List 1]]<>\"\",Table_PI[[#This Row],[List 1]],\"\")","v":""},{"$f":"IF(Table_PI[[#This Row],[List 2]]<>\"\",Table_PI[[#This Row],[List 2]],\"\")","v":""},{"$f":"IF(Table_PI[[#This Row],[List 3]]<>\"\",Table_PI[[#This Row],[List 3]],\"\")","v":""},{"$f":"IF(Table_PI[[#This Row],[Manufacturer]]=\"\",\"\",Table_PI[[#This Row],[Manufacturer]])","v":""},{"$f":"IF(Table_PI[[#This Row],[Model Number]]=\"\",\"\",Table_PI[[#This Row],[Model Number]])","v":""},{"$f":"IF(Table_PI[[#This Row],[Serial Number(s)]]=\"\",\"\",Table_PI[[#This Row],[Serial Number(s)]])","v":""},null,{"$f":"IF(Table_PI[[#This Row],[Size]]=\"\",\"\",Table_PI[[#This Row],[Size]])","v":""},null,null,{"$f":"IF(Table_PI[[#This Row],[Input 1]]<>\"\",Table_PI[[#This Row],[Input 1]],\"\")","v":""},null,null,{"$f":"IF(Table_PI[[#This Row],[Input 2]]<>\"\",Table_PI[[#This Row],[Input 2]],\"\")","v":""},null,null,{"$f":"IF(Table_PI[[#This Row],[Input 3]]<>\"\",Table_PI[[#This Row],[Input 3]],\"\")","v":""},null,null,{"$f":"IF(Table_PI[[#This Row],[Input 4]]<>\"\",Table_PI[[#This Row],[Input 4]],\"\")","v":""},null,null,{"$f":"IF(Table_PI[[#This Row],[Input 4]]<>\"\",Table_PI[[#This Row],[Input 4]],\"\")","v":""},null,null,{"$f":"IF(Table_PI[[#This Row],[Input 4]]<>\"\",Table_PI[[#This Row],[Input 4]],\"\")","v":""},{"$f":"IF(Table_PI[[#This Row],[Quantity]]=\"\",\"\",Table_PI[[#This Row],[Quantity]])","v":""},{"$f":"IF(Table_PI[[#This Row],[Notes]]=\"\",\"\",Table_PI[[#This Row],[Notes]])","v":""},{"$f":"IF(OR(Table_PI[[#This Row],[Hide: Baseline kWh]]=\"\",Table_PI[[#This Row],[Hide: Baseline kWh]]=0,ISTEXT(Table_PI[[#This Row],[Hide: Baseline kWh]])),\"\",Table_PI[[#This Row],[Hide: Baseline kWh]])","v":""},{"$f":"IF(OR(Table_PI[[#This Row],[Hide: Baseline kW]]=\"\",Table_PI[[#This Row],[Hide: Baseline kW]]=0,ISTEXT(Table_PI[[#This Row],[Hide: Baseline kW]])),\"\",Table_PI[[#This Row],[Hide: Baseline kW]])","v":""},{"$f":"IF(OR(Table_PI[[#This Row],[Hide: Proposed kWh]]=\"\",Table_PI[[#This Row],[Hide: Proposed kWh]]=0,ISTEXT(Table_PI[[#This Row],[Hide: Proposed kWh]])),\"\",Table_PI[[#This Row],[Hide: Proposed kWh]])","v":""},{"$f":"IF(OR(Table_PI[[#This Row],[Hide: Proposed kW]]=\"\",Table_PI[[#This Row],[Hide: Proposed kW]]=0,ISTEXT(Table_PI[[#This Row],[Hide: Proposed kW]])),\"\",Table_PI[[#This Row],[Hide: Proposed kW]])","v":""},null,null,{"$f":"IF(OR(Table_PI[[#This Row],[Hide: Rebate]]=\"\",Table_PI[[#This Row],[Hide: Rebate]]=0,ISTEXT(Table_PI[[#This Row],[Hide: Rebate]])),\"\",Table_PI[[#This Row],[Hide: Rebate]])","v":""},null,{"$f":"IF(OR(Table_PI[[#This Row],[Hide: Incremental Cost]]=\"\",Table_PI[[#This Row],[Hide: Incremental Cost]]=0,ISTEXT(Table_PI[[#This Row],[Hide: Incremental Cost]])),\"\",Table_PI[[#This Row],[Hide: Incremental Cost]])","v":""},{"$f":"IFERROR(IF(Table_SummaryPI[[#This Row],[Incentive_Customer]]=\"\",\"\",ROUND(Table_SummaryPI[[#This Row],[Incentive_Customer]]/$AM$401*'Customer Information'!$BC$21,2)),0)","v":""},{"$f":"IF(OR(Table_PI[[#This Row],[Annual kWh]]=\"\",Table_PI[[#This Row],[Annual kWh]]=0,ISTEXT(Table_PI[[#This Row],[Annual kWh]])),\"\",Table_PI[[#This Row],[Annual kWh]])","v":""},{"$f":"IF(OR(Table_PI[[#This Row],[Peak kW]]=\"\",Table_PI[[#This Row],[Peak kW]]=0,ISTEXT(Table_PI[[#This Row],[Peak kW]])),\"\",Table_PI[[#This Row],[Peak kW]])","v":""},{"$f":"IF(Table_SummaryPI[[#This Row],[Line No.]]<>\"\",IF(AND(ISNUMBER(FIND(\"Chiller\",Table_SummaryPI[[#This Row],[P_MeasureOption1]],1)),Table_SummaryPI[[#This Row],[ProposedMeasureCategory]]=\"Air-Cooled (Water-Cooled Replacement)\"),$BD$29*Table_SummaryPI[[#This Row],[Size]]*Table_SummaryPI[[#This Row],[Quantity]]*Table_SummaryPI[[#This Row],[EFLHCooling]],\nIF(ISNUMBER(FIND(\"Dishwasher\",Table_SummaryPI[[#This Row],[ProposedMeasureCategory]],1)),$BH$29*Table_SummaryPI[[#This Row],[Quantity]],\nIF(ISNUMBER(FIND(\"Ice Maker\",Table_SummaryPI[[#This Row],[ProposedMeasureCategory]],1)),$BD$31*Table_SummaryPI[[#This Row],[Quantity]],\nIF(ISNUMBER(FIND(\"Spray Valve\",Table_SummaryPI[[#This Row],[ProposedMeasureCategory]],1)),$BH$31*Table_SummaryPI[[#This Row],[Quantity]],\n0)))),\"\")","v":""},{"$f":"IF(OR(Table_PI[[#This Row],[Hide: Electrification kWh]]=\"\",Table_PI[[#This Row],[Hide: Electrification kWh]]=0,ISTEXT(Table_PI[[#This Row],[Hide: Electrification kWh]])),\"\",Table_PI[[#This Row],[Hide: Electrification kWh]])","v":""},{"$f":"IF(OR(Table_PI[[#This Row],[Hide: Electrification GHG]]=\"\",Table_PI[[#This Row],[Hide: Electrification GHG]]=0,ISTEXT(Table_PI[[#This Row],[Hide: Electrification GHG]])),\"\",Table_PI[[#This Row],[Hide: Electrification GHG]])","v":""},{"$f":"IFERROR(IF(Table_SummaryPI[[#This Row],[kWhSavings]]=\"\",\"\",$BH$9*Table_SummaryPI[[#This Row],[kWhSavings]]),0)","v":""},{"$f":"IFERROR(IF(Table_SummaryPI[[#This Row],[kWhSavings]]=\"\",\"\",$BH$14*Table_SummaryPI[[#This Row],[kWhSavings]]),0)","v":""},{"$f":"IFERROR(IF(Table_SummaryPI[[#This Row],[kWhSavings]]=\"\",\"\",$BH$18*Table_SummaryPI[[#This Row],[kWhSavings]]),0)","v":""},{"$f":"IFERROR(IF(Table_SummaryPI[[#This Row],[kWhSavings]]=\"\",\"\",$BH$22*Table_SummaryPI[[#This Row],[kWhSavings]]),0)","v":""}]
[{"$f":"Table_PI[[#This Row],[Line No.]]","v":""},{"$f":"IF(Table_SummaryPI[[#This Row],[MeasureName]]<>\"\",NOT(ISTEXT(Table_PI[[#This Row],[Rebate]])),\"\")","v":""},{"$f":"IF(Table_SummaryPI[[#This Row],[MeassureCategory]]<>\"\",CONCATENATE(Table_SummaryPI[[#This Row],[MeassureCategory]],  \" - \", Table_SummaryPI[[#This Row],[ProposedMeasureCategory]],  \" - \", TEXT(Table_SummaryPI[[#This Row],[Size]],\"#,##0.00\"),\" \",Table_SummaryPI[[#This Row],[SizeUnit]]),\"\")","v":""},{"$f":"SUBSTITUTE(Table_PI[[#This Row],[Measure]],\"     \",\"\",1)","v":""},{"$f":"IF(Table_PI[[#This Row],[List 1]]<>\"\",Table_PI[[#This Row],[List 1]],\"\")","v":""},{"$f":"IF(Table_PI[[#This Row],[List 2]]<>\"\",Table_PI[[#This Row],[List 2]],\"\")","v":""},{"$f":"IF(Table_PI[[#This Row],[List 3]]<>\"\",Table_PI[[#This Row],[List 3]],\"\")","v":""},{"$f":"IF(Table_PI[[#This Row],[Manufacturer]]=\"\",\"\",Table_PI[[#This Row],[Manufacturer]])","v":""},{"$f":"IF(Table_PI[[#This Row],[Model Number]]=\"\",\"\",Table_PI[[#This Row],[Model Number]])","v":""},{"$f":"IF(Table_PI[[#This Row],[Serial Number(s)]]=\"\",\"\",Table_PI[[#This Row],[Serial Number(s)]])","v":""},null,{"$f":"IF(Table_PI[[#This Row],[Size]]=\"\",\"\",Table_PI[[#This Row],[Size]])","v":""},null,null,{"$f":"IF(Table_PI[[#This Row],[Input 1]]<>\"\",Table_PI[[#This Row],[Input 1]],\"\")","v":""},null,null,{"$f":"IF(Table_PI[[#This Row],[Input 2]]<>\"\",Table_PI[[#This Row],[Input 2]],\"\")","v":""},null,null,{"$f":"IF(Table_PI[[#This Row],[Input 3]]<>\"\",Table_PI[[#This Row],[Input 3]],\"\")","v":""},null,null,{"$f":"IF(Table_PI[[#This Row],[Input 4]]<>\"\",Table_PI[[#This Row],[Input 4]],\"\")","v":""},null,null,{"$f":"IF(Table_PI[[#This Row],[Input 4]]<>\"\",Table_PI[[#This Row],[Input 4]],\"\")","v":""},null,null,{"$f":"IF(Table_PI[[#This Row],[Input 4]]<>\"\",Table_PI[[#This Row],[Input 4]],\"\")","v":""},{"$f":"IF(Table_PI[[#This Row],[Quantity]]=\"\",\"\",Table_PI[[#This Row],[Quantity]])","v":""},{"$f":"IF(Table_PI[[#This Row],[Notes]]=\"\",\"\",Table_PI[[#This Row],[Notes]])","v":""},{"$f":"IF(OR(Table_PI[[#This Row],[Hide: Baseline kWh]]=\"\",Table_PI[[#This Row],[Hide: Baseline kWh]]=0,ISTEXT(Table_PI[[#This Row],[Hide: Baseline kWh]])),\"\",Table_PI[[#This Row],[Hide: Baseline kWh]])","v":""},{"$f":"IF(OR(Table_PI[[#This Row],[Hide: Baseline kW]]=\"\",Table_PI[[#This Row],[Hide: Baseline kW]]=0,ISTEXT(Table_PI[[#This Row],[Hide: Baseline kW]])),\"\",Table_PI[[#This Row],[Hide: Baseline kW]])","v":""},{"$f":"IF(OR(Table_PI[[#This Row],[Hide: Proposed kWh]]=\"\",Table_PI[[#This Row],[Hide: Proposed kWh]]=0,ISTEXT(Table_PI[[#This Row],[Hide: Proposed kWh]])),\"\",Table_PI[[#This Row],[Hide: Proposed kWh]])","v":""},{"$f":"IF(OR(Table_PI[[#This Row],[Hide: Proposed kW]]=\"\",Table_PI[[#This Row],[Hide: Proposed kW]]=0,ISTEXT(Table_PI[[#This Row],[Hide: Proposed kW]])),\"\",Table_PI[[#This Row],[Hide: Proposed kW]])","v":""},null,null,{"$f":"IF(OR(Table_PI[[#This Row],[Hide: Rebate]]=\"\",Table_PI[[#This Row],[Hide: Rebate]]=0,ISTEXT(Table_PI[[#This Row],[Hide: Rebate]])),\"\",Table_PI[[#This Row],[Hide: Rebate]])","v":""},null,{"$f":"IF(OR(Table_PI[[#This Row],[Hide: Incremental Cost]]=\"\",Table_PI[[#This Row],[Hide: Incremental Cost]]=0,ISTEXT(Table_PI[[#This Row],[Hide: Incremental Cost]])),\"\",Table_PI[[#This Row],[Hide: Incremental Cost]])","v":""},{"$f":"IFERROR(IF(Table_SummaryPI[[#This Row],[Incentive_Customer]]=\"\",\"\",ROUND(Table_SummaryPI[[#This Row],[Incentive_Customer]]/$AM$401*'Customer Information'!$BC$21,2)),0)","v":""},{"$f":"IF(OR(Table_PI[[#This Row],[Annual kWh]]=\"\",Table_PI[[#This Row],[Annual kWh]]=0,ISTEXT(Table_PI[[#This Row],[Annual kWh]])),\"\",Table_PI[[#This Row],[Annual kWh]])","v":""},{"$f":"IF(OR(Table_PI[[#This Row],[Peak kW]]=\"\",Table_PI[[#This Row],[Peak kW]]=0,ISTEXT(Table_PI[[#This Row],[Peak kW]])),\"\",Table_PI[[#This Row],[Peak kW]])","v":""},{"$f":"IF(Table_SummaryPI[[#This Row],[Line No.]]<>\"\",IF(AND(ISNUMBER(FIND(\"Chiller\",Table_SummaryPI[[#This Row],[P_MeasureOption1]],1)),Table_SummaryPI[[#This Row],[ProposedMeasureCategory]]=\"Air-Cooled (Water-Cooled Replacement)\"),$BD$29*Table_SummaryPI[[#This Row],[Size]]*Table_SummaryPI[[#This Row],[Quantity]]*Table_SummaryPI[[#This Row],[EFLHCooling]],\nIF(ISNUMBER(FIND(\"Dishwasher\",Table_SummaryPI[[#This Row],[ProposedMeasureCategory]],1)),$BH$29*Table_SummaryPI[[#This Row],[Quantity]],\nIF(ISNUMBER(FIND(\"Ice Maker\",Table_SummaryPI[[#This Row],[ProposedMeasureCategory]],1)),$BD$31*Table_SummaryPI[[#This Row],[Quantity]],\nIF(ISNUMBER(FIND(\"Spray Valve\",Table_SummaryPI[[#This Row],[ProposedMeasureCategory]],1)),$BH$31*Table_SummaryPI[[#This Row],[Quantity]],\n0)))),\"\")","v":""},{"$f":"IF(OR(Table_PI[[#This Row],[Hide: Electrification kWh]]=\"\",Table_PI[[#This Row],[Hide: Electrification kWh]]=0,ISTEXT(Table_PI[[#This Row],[Hide: Electrification kWh]])),\"\",Table_PI[[#This Row],[Hide: Electrification kWh]])","v":""},{"$f":"IF(OR(Table_PI[[#This Row],[Hide: Electrification GHG]]=\"\",Table_PI[[#This Row],[Hide: Electrification GHG]]=0,ISTEXT(Table_PI[[#This Row],[Hide: Electrification GHG]])),\"\",Table_PI[[#This Row],[Hide: Electrification GHG]])","v":""},{"$f":"IFERROR(IF(Table_SummaryPI[[#This Row],[kWhSavings]]=\"\",\"\",$BH$9*Table_SummaryPI[[#This Row],[kWhSavings]]),0)","v":""},{"$f":"IFERROR(IF(Table_SummaryPI[[#This Row],[kWhSavings]]=\"\",\"\",$BH$14*Table_SummaryPI[[#This Row],[kWhSavings]]),0)","v":""},{"$f":"IFERROR(IF(Table_SummaryPI[[#This Row],[kWhSavings]]=\"\",\"\",$BH$18*Table_SummaryPI[[#This Row],[kWhSavings]]),0)","v":""},{"$f":"IFERROR(IF(Table_SummaryPI[[#This Row],[kWhSavings]]=\"\",\"\",$BH$22*Table_SummaryPI[[#This Row],[kWhSavings]]),0)","v":""}]
[{"$f":"Table_PI[[#This Row],[Line No.]]","v":""},{"$f":"IF(Table_SummaryPI[[#This Row],[MeasureName]]<>\"\",NOT(ISTEXT(Table_PI[[#This Row],[Rebate]])),\"\")","v":""},{"$f":"IF(Table_SummaryPI[[#This Row],[MeassureCategory]]<>\"\",CONCATENATE(Table_SummaryPI[[#This Row],[MeassureCategory]],  \" - \", Table_SummaryPI[[#This Row],[ProposedMeasureCategory]],  \" - \", TEXT(Table_SummaryPI[[#This Row],[Size]],\"#,##0.00\"),\" \",Table_SummaryPI[[#This Row],[SizeUnit]]),\"\")","v":""},{"$f":"SUBSTITUTE(Table_PI[[#This Row],[Measure]],\"     \",\"\",1)","v":""},{"$f":"IF(Table_PI[[#This Row],[List 1]]<>\"\",Table_PI[[#This Row],[List 1]],\"\")","v":""},{"$f":"IF(Table_PI[[#This Row],[List 2]]<>\"\",Table_PI[[#This Row],[List 2]],\"\")","v":""},{"$f":"IF(Table_PI[[#This Row],[List 3]]<>\"\",Table_PI[[#This Row],[List 3]],\"\")","v":""},{"$f":"IF(Table_PI[[#This Row],[Manufacturer]]=\"\",\"\",Table_PI[[#This Row],[Manufacturer]])","v":""},{"$f":"IF(Table_PI[[#This Row],[Model Number]]=\"\",\"\",Table_PI[[#This Row],[Model Number]])","v":""},{"$f":"IF(Table_PI[[#This Row],[Serial Number(s)]]=\"\",\"\",Table_PI[[#This Row],[Serial Number(s)]])","v":""},null,{"$f":"IF(Table_PI[[#This Row],[Size]]=\"\",\"\",Table_PI[[#This Row],[Size]])","v":""},null,null,{"$f":"IF(Table_PI[[#This Row],[Input 1]]<>\"\",Table_PI[[#This Row],[Input 1]],\"\")","v":""},null,null,{"$f":"IF(Table_PI[[#This Row],[Input 2]]<>\"\",Table_PI[[#This Row],[Input 2]],\"\")","v":""},null,null,{"$f":"IF(Table_PI[[#This Row],[Input 3]]<>\"\",Table_PI[[#This Row],[Input 3]],\"\")","v":""},null,null,{"$f":"IF(Table_PI[[#This Row],[Input 4]]<>\"\",Table_PI[[#This Row],[Input 4]],\"\")","v":""},null,null,{"$f":"IF(Table_PI[[#This Row],[Input 4]]<>\"\",Table_PI[[#This Row],[Input 4]],\"\")","v":""},null,null,{"$f":"IF(Table_PI[[#This Row],[Input 4]]<>\"\",Table_PI[[#This Row],[Input 4]],\"\")","v":""},{"$f":"IF(Table_PI[[#This Row],[Quantity]]=\"\",\"\",Table_PI[[#This Row],[Quantity]])","v":""},{"$f":"IF(Table_PI[[#This Row],[Notes]]=\"\",\"\",Table_PI[[#This Row],[Notes]])","v":""},{"$f":"IF(OR(Table_PI[[#This Row],[Hide: Baseline kWh]]=\"\",Table_PI[[#This Row],[Hide: Baseline kWh]]=0,ISTEXT(Table_PI[[#This Row],[Hide: Baseline kWh]])),\"\",Table_PI[[#This Row],[Hide: Baseline kWh]])","v":""},{"$f":"IF(OR(Table_PI[[#This Row],[Hide: Baseline kW]]=\"\",Table_PI[[#This Row],[Hide: Baseline kW]]=0,ISTEXT(Table_PI[[#This Row],[Hide: Baseline kW]])),\"\",Table_PI[[#This Row],[Hide: Baseline kW]])","v":""},{"$f":"IF(OR(Table_PI[[#This Row],[Hide: Proposed kWh]]=\"\",Table_PI[[#This Row],[Hide: Proposed kWh]]=0,ISTEXT(Table_PI[[#This Row],[Hide: Proposed kWh]])),\"\",Table_PI[[#This Row],[Hide: Proposed kWh]])","v":""},{"$f":"IF(OR(Table_PI[[#This Row],[Hide: Proposed kW]]=\"\",Table_PI[[#This Row],[Hide: Proposed kW]]=0,ISTEXT(Table_PI[[#This Row],[Hide: Proposed kW]])),\"\",Table_PI[[#This Row],[Hide: Proposed kW]])","v":""},null,null,{"$f":"IF(OR(Table_PI[[#This Row],[Hide: Rebate]]=\"\",Table_PI[[#This Row],[Hide: Rebate]]=0,ISTEXT(Table_PI[[#This Row],[Hide: Rebate]])),\"\",Table_PI[[#This Row],[Hide: Rebate]])","v":""},null,{"$f":"IF(OR(Table_PI[[#This Row],[Hide: Incremental Cost]]=\"\",Table_PI[[#This Row],[Hide: Incremental Cost]]=0,ISTEXT(Table_PI[[#This Row],[Hide: Incremental Cost]])),\"\",Table_PI[[#This Row],[Hide: Incremental Cost]])","v":""},{"$f":"IFERROR(IF(Table_SummaryPI[[#This Row],[Incentive_Customer]]=\"\",\"\",ROUND(Table_SummaryPI[[#This Row],[Incentive_Customer]]/$AM$401*'Customer Information'!$BC$21,2)),0)","v":""},{"$f":"IF(OR(Table_PI[[#This Row],[Annual kWh]]=\"\",Table_PI[[#This Row],[Annual kWh]]=0,ISTEXT(Table_PI[[#This Row],[Annual kWh]])),\"\",Table_PI[[#This Row],[Annual kWh]])","v":""},{"$f":"IF(OR(Table_PI[[#This Row],[Peak kW]]=\"\",Table_PI[[#This Row],[Peak kW]]=0,ISTEXT(Table_PI[[#This Row],[Peak kW]])),\"\",Table_PI[[#This Row],[Peak kW]])","v":""},{"$f":"IF(Table_SummaryPI[[#This Row],[Line No.]]<>\"\",IF(AND(ISNUMBER(FIND(\"Chiller\",Table_SummaryPI[[#This Row],[P_MeasureOption1]],1)),Table_SummaryPI[[#This Row],[ProposedMeasureCategory]]=\"Air-Cooled (Water-Cooled Replacement)\"),$BD$29*Table_SummaryPI[[#This Row],[Size]]*Table_SummaryPI[[#This Row],[Quantity]]*Table_SummaryPI[[#This Row],[EFLHCooling]],\nIF(ISNUMBER(FIND(\"Dishwasher\",Table_SummaryPI[[#This Row],[ProposedMeasureCategory]],1)),$BH$29*Table_SummaryPI[[#This Row],[Quantity]],\nIF(ISNUMBER(FIND(\"Ice Maker\",Table_SummaryPI[[#This Row],[ProposedMeasureCategory]],1)),$BD$31*Table_SummaryPI[[#This Row],[Quantity]],\nIF(ISNUMBER(FIND(\"Spray Valve\",Table_SummaryPI[[#This Row],[ProposedMeasureCategory]],1)),$BH$31*Table_SummaryPI[[#This Row],[Quantity]],\n0)))),\"\")","v":""},{"$f":"IF(OR(Table_PI[[#This Row],[Hide: Electrification kWh]]=\"\",Table_PI[[#This Row],[Hide: Electrification kWh]]=0,ISTEXT(Table_PI[[#This Row],[Hide: Electrification kWh]])),\"\",Table_PI[[#This Row],[Hide: Electrification kWh]])","v":""},{"$f":"IF(OR(Table_PI[[#This Row],[Hide: Electrification GHG]]=\"\",Table_PI[[#This Row],[Hide: Electrification GHG]]=0,ISTEXT(Table_PI[[#This Row],[Hide: Electrification GHG]])),\"\",Table_PI[[#This Row],[Hide: Electrification GHG]])","v":""},{"$f":"IFERROR(IF(Table_SummaryPI[[#This Row],[kWhSavings]]=\"\",\"\",$BH$9*Table_SummaryPI[[#This Row],[kWhSavings]]),0)","v":""},{"$f":"IFERROR(IF(Table_SummaryPI[[#This Row],[kWhSavings]]=\"\",\"\",$BH$14*Table_SummaryPI[[#This Row],[kWhSavings]]),0)","v":""},{"$f":"IFERROR(IF(Table_SummaryPI[[#This Row],[kWhSavings]]=\"\",\"\",$BH$18*Table_SummaryPI[[#This Row],[kWhSavings]]),0)","v":""},{"$f":"IFERROR(IF(Table_SummaryPI[[#This Row],[kWhSavings]]=\"\",\"\",$BH$22*Table_SummaryPI[[#This Row],[kWhSavings]]),0)","v":""}]
[{"$f":"Table_PI[[#This Row],[Line No.]]","v":""},{"$f":"IF(Table_SummaryPI[[#This Row],[MeasureName]]<>\"\",NOT(ISTEXT(Table_PI[[#This Row],[Rebate]])),\"\")","v":""},{"$f":"IF(Table_SummaryPI[[#This Row],[MeassureCategory]]<>\"\",CONCATENATE(Table_SummaryPI[[#This Row],[MeassureCategory]],  \" - \", Table_SummaryPI[[#This Row],[ProposedMeasureCategory]],  \" - \", TEXT(Table_SummaryPI[[#This Row],[Size]],\"#,##0.00\"),\" \",Table_SummaryPI[[#This Row],[SizeUnit]]),\"\")","v":""},{"$f":"SUBSTITUTE(Table_PI[[#This Row],[Measure]],\"     \",\"\",1)","v":""},{"$f":"IF(Table_PI[[#This Row],[List 1]]<>\"\",Table_PI[[#This Row],[List 1]],\"\")","v":""},{"$f":"IF(Table_PI[[#This Row],[List 2]]<>\"\",Table_PI[[#This Row],[List 2]],\"\")","v":""},{"$f":"IF(Table_PI[[#This Row],[List 3]]<>\"\",Table_PI[[#This Row],[List 3]],\"\")","v":""},{"$f":"IF(Table_PI[[#This Row],[Manufacturer]]=\"\",\"\",Table_PI[[#This Row],[Manufacturer]])","v":""},{"$f":"IF(Table_PI[[#This Row],[Model Number]]=\"\",\"\",Table_PI[[#This Row],[Model Number]])","v":""},{"$f":"IF(Table_PI[[#This Row],[Serial Number(s)]]=\"\",\"\",Table_PI[[#This Row],[Serial Number(s)]])","v":""},null,{"$f":"IF(Table_PI[[#This Row],[Size]]=\"\",\"\",Table_PI[[#This Row],[Size]])","v":""},null,null,{"$f":"IF(Table_PI[[#This Row],[Input 1]]<>\"\",Table_PI[[#This Row],[Input 1]],\"\")","v":""},null,null,{"$f":"IF(Table_PI[[#This Row],[Input 2]]<>\"\",Table_PI[[#This Row],[Input 2]],\"\")","v":""},null,null,{"$f":"IF(Table_PI[[#This Row],[Input 3]]<>\"\",Table_PI[[#This Row],[Input 3]],\"\")","v":""},null,null,{"$f":"IF(Table_PI[[#This Row],[Input 4]]<>\"\",Table_PI[[#This Row],[Input 4]],\"\")","v":""},null,null,{"$f":"IF(Table_PI[[#This Row],[Input 4]]<>\"\",Table_PI[[#This Row],[Input 4]],\"\")","v":""},null,null,{"$f":"IF(Table_PI[[#This Row],[Input 4]]<>\"\",Table_PI[[#This Row],[Input 4]],\"\")","v":""},{"$f":"IF(Table_PI[[#This Row],[Quantity]]=\"\",\"\",Table_PI[[#This Row],[Quantity]])","v":""},{"$f":"IF(Table_PI[[#This Row],[Notes]]=\"\",\"\",Table_PI[[#This Row],[Notes]])","v":""},{"$f":"IF(OR(Table_PI[[#This Row],[Hide: Baseline kWh]]=\"\",Table_PI[[#This Row],[Hide: Baseline kWh]]=0,ISTEXT(Table_PI[[#This Row],[Hide: Baseline kWh]])),\"\",Table_PI[[#This Row],[Hide: Baseline kWh]])","v":""},{"$f":"IF(OR(Table_PI[[#This Row],[Hide: Baseline kW]]=\"\",Table_PI[[#This Row],[Hide: Baseline kW]]=0,ISTEXT(Table_PI[[#This Row],[Hide: Baseline kW]])),\"\",Table_PI[[#This Row],[Hide: Baseline kW]])","v":""},{"$f":"IF(OR(Table_PI[[#This Row],[Hide: Proposed kWh]]=\"\",Table_PI[[#This Row],[Hide: Proposed kWh]]=0,ISTEXT(Table_PI[[#This Row],[Hide: Proposed kWh]])),\"\",Table_PI[[#This Row],[Hide: Proposed kWh]])","v":""},{"$f":"IF(OR(Table_PI[[#This Row],[Hide: Proposed kW]]=\"\",Table_PI[[#This Row],[Hide: Proposed kW]]=0,ISTEXT(Table_PI[[#This Row],[Hide: Proposed kW]])),\"\",Table_PI[[#This Row],[Hide: Proposed kW]])","v":""},null,null,{"$f":"IF(OR(Table_PI[[#This Row],[Hide: Rebate]]=\"\",Table_PI[[#This Row],[Hide: Rebate]]=0,ISTEXT(Table_PI[[#This Row],[Hide: Rebate]])),\"\",Table_PI[[#This Row],[Hide: Rebate]])","v":""},null,{"$f":"IF(OR(Table_PI[[#This Row],[Hide: Incremental Cost]]=\"\",Table_PI[[#This Row],[Hide: Incremental Cost]]=0,ISTEXT(Table_PI[[#This Row],[Hide: Incremental Cost]])),\"\",Table_PI[[#This Row],[Hide: Incremental Cost]])","v":""},{"$f":"IFERROR(IF(Table_SummaryPI[[#This Row],[Incentive_Customer]]=\"\",\"\",ROUND(Table_SummaryPI[[#This Row],[Incentive_Customer]]/$AM$401*'Customer Information'!$BC$21,2)),0)","v":""},{"$f":"IF(OR(Table_PI[[#This Row],[Annual kWh]]=\"\",Table_PI[[#This Row],[Annual kWh]]=0,ISTEXT(Table_PI[[#This Row],[Annual kWh]])),\"\",Table_PI[[#This Row],[Annual kWh]])","v":""},{"$f":"IF(OR(Table_PI[[#This Row],[Peak kW]]=\"\",Table_PI[[#This Row],[Peak kW]]=0,ISTEXT(Table_PI[[#This Row],[Peak kW]])),\"\",Table_PI[[#This Row],[Peak kW]])","v":""},{"$f":"IF(Table_SummaryPI[[#This Row],[Line No.]]<>\"\",IF(AND(ISNUMBER(FIND(\"Chiller\",Table_SummaryPI[[#This Row],[P_MeasureOption1]],1)),Table_SummaryPI[[#This Row],[ProposedMeasureCategory]]=\"Air-Cooled (Water-Cooled Replacement)\"),$BD$29*Table_SummaryPI[[#This Row],[Size]]*Table_SummaryPI[[#This Row],[Quantity]]*Table_SummaryPI[[#This Row],[EFLHCooling]],\nIF(ISNUMBER(FIND(\"Dishwasher\",Table_SummaryPI[[#This Row],[ProposedMeasureCategory]],1)),$BH$29*Table_SummaryPI[[#This Row],[Quantity]],\nIF(ISNUMBER(FIND(\"Ice Maker\",Table_SummaryPI[[#This Row],[ProposedMeasureCategory]],1)),$BD$31*Table_SummaryPI[[#This Row],[Quantity]],\nIF(ISNUMBER(FIND(\"Spray Valve\",Table_SummaryPI[[#This Row],[ProposedMeasureCategory]],1)),$BH$31*Table_SummaryPI[[#This Row],[Quantity]],\n0)))),\"\")","v":""},{"$f":"IF(OR(Table_PI[[#This Row],[Hide: Electrification kWh]]=\"\",Table_PI[[#This Row],[Hide: Electrification kWh]]=0,ISTEXT(Table_PI[[#This Row],[Hide: Electrification kWh]])),\"\",Table_PI[[#This Row],[Hide: Electrification kWh]])","v":""},{"$f":"IF(OR(Table_PI[[#This Row],[Hide: Electrification GHG]]=\"\",Table_PI[[#This Row],[Hide: Electrification GHG]]=0,ISTEXT(Table_PI[[#This Row],[Hide: Electrification GHG]])),\"\",Table_PI[[#This Row],[Hide: Electrification GHG]])","v":""},{"$f":"IFERROR(IF(Table_SummaryPI[[#This Row],[kWhSavings]]=\"\",\"\",$BH$9*Table_SummaryPI[[#This Row],[kWhSavings]]),0)","v":""},{"$f":"IFERROR(IF(Table_SummaryPI[[#This Row],[kWhSavings]]=\"\",\"\",$BH$14*Table_SummaryPI[[#This Row],[kWhSavings]]),0)","v":""},{"$f":"IFERROR(IF(Table_SummaryPI[[#This Row],[kWhSavings]]=\"\",\"\",$BH$18*Table_SummaryPI[[#This Row],[kWhSavings]]),0)","v":""},{"$f":"IFERROR(IF(Table_SummaryPI[[#This Row],[kWhSavings]]=\"\",\"\",$BH$22*Table_SummaryPI[[#This Row],[kWhSavings]]),0)","v":""}]
[{"$f":"Table_PI[[#This Row],[Line No.]]","v":""},{"$f":"IF(Table_SummaryPI[[#This Row],[MeasureName]]<>\"\",NOT(ISTEXT(Table_PI[[#This Row],[Rebate]])),\"\")","v":""},{"$f":"IF(Table_SummaryPI[[#This Row],[MeassureCategory]]<>\"\",CONCATENATE(Table_SummaryPI[[#This Row],[MeassureCategory]],  \" - \", Table_SummaryPI[[#This Row],[ProposedMeasureCategory]],  \" - \", TEXT(Table_SummaryPI[[#This Row],[Size]],\"#,##0.00\"),\" \",Table_SummaryPI[[#This Row],[SizeUnit]]),\"\")","v":""},{"$f":"SUBSTITUTE(Table_PI[[#This Row],[Measure]],\"     \",\"\",1)","v":""},{"$f":"IF(Table_PI[[#This Row],[List 1]]<>\"\",Table_PI[[#This Row],[List 1]],\"\")","v":""},{"$f":"IF(Table_PI[[#This Row],[List 2]]<>\"\",Table_PI[[#This Row],[List 2]],\"\")","v":""},{"$f":"IF(Table_PI[[#This Row],[List 3]]<>\"\",Table_PI[[#This Row],[List 3]],\"\")","v":""},{"$f":"IF(Table_PI[[#This Row],[Manufacturer]]=\"\",\"\",Table_PI[[#This Row],[Manufacturer]])","v":""},{"$f":"IF(Table_PI[[#This Row],[Model Number]]=\"\",\"\",Table_PI[[#This Row],[Model Number]])","v":""},{"$f":"IF(Table_PI[[#This Row],[Serial Number(s)]]=\"\",\"\",Table_PI[[#This Row],[Serial Number(s)]])","v":""},null,{"$f":"IF(Table_PI[[#This Row],[Size]]=\"\",\"\",Table_PI[[#This Row],[Size]])","v":""},null,null,{"$f":"IF(Table_PI[[#This Row],[Input 1]]<>\"\",Table_PI[[#This Row],[Input 1]],\"\")","v":""},null,null,{"$f":"IF(Table_PI[[#This Row],[Input 2]]<>\"\",Table_PI[[#This Row],[Input 2]],\"\")","v":""},null,null,{"$f":"IF(Table_PI[[#This Row],[Input 3]]<>\"\",Table_PI[[#This Row],[Input 3]],\"\")","v":""},null,null,{"$f":"IF(Table_PI[[#This Row],[Input 4]]<>\"\",Table_PI[[#This Row],[Input 4]],\"\")","v":""},null,null,{"$f":"IF(Table_PI[[#This Row],[Input 4]]<>\"\",Table_PI[[#This Row],[Input 4]],\"\")","v":""},null,null,{"$f":"IF(Table_PI[[#This Row],[Input 4]]<>\"\",Table_PI[[#This Row],[Input 4]],\"\")","v":""},{"$f":"IF(Table_PI[[#This Row],[Quantity]]=\"\",\"\",Table_PI[[#This Row],[Quantity]])","v":""},{"$f":"IF(Table_PI[[#This Row],[Notes]]=\"\",\"\",Table_PI[[#This Row],[Notes]])","v":""},{"$f":"IF(OR(Table_PI[[#This Row],[Hide: Baseline kWh]]=\"\",Table_PI[[#This Row],[Hide: Baseline kWh]]=0,ISTEXT(Table_PI[[#This Row],[Hide: Baseline kWh]])),\"\",Table_PI[[#This Row],[Hide: Baseline kWh]])","v":""},{"$f":"IF(OR(Table_PI[[#This Row],[Hide: Baseline kW]]=\"\",Table_PI[[#This Row],[Hide: Baseline kW]]=0,ISTEXT(Table_PI[[#This Row],[Hide: Baseline kW]])),\"\",Table_PI[[#This Row],[Hide: Baseline kW]])","v":""},{"$f":"IF(OR(Table_PI[[#This Row],[Hide: Proposed kWh]]=\"\",Table_PI[[#This Row],[Hide: Proposed kWh]]=0,ISTEXT(Table_PI[[#This Row],[Hide: Proposed kWh]])),\"\",Table_PI[[#This Row],[Hide: Proposed kWh]])","v":""},{"$f":"IF(OR(Table_PI[[#This Row],[Hide: Proposed kW]]=\"\",Table_PI[[#This Row],[Hide: Proposed kW]]=0,ISTEXT(Table_PI[[#This Row],[Hide: Proposed kW]])),\"\",Table_PI[[#This Row],[Hide: Proposed kW]])","v":""},null,null,{"$f":"IF(OR(Table_PI[[#This Row],[Hide: Rebate]]=\"\",Table_PI[[#This Row],[Hide: Rebate]]=0,ISTEXT(Table_PI[[#This Row],[Hide: Rebate]])),\"\",Table_PI[[#This Row],[Hide: Rebate]])","v":""},null,{"$f":"IF(OR(Table_PI[[#This Row],[Hide: Incremental Cost]]=\"\",Table_PI[[#This Row],[Hide: Incremental Cost]]=0,ISTEXT(Table_PI[[#This Row],[Hide: Incremental Cost]])),\"\",Table_PI[[#This Row],[Hide: Incremental Cost]])","v":""},{"$f":"IFERROR(IF(Table_SummaryPI[[#This Row],[Incentive_Customer]]=\"\",\"\",ROUND(Table_SummaryPI[[#This Row],[Incentive_Customer]]/$AM$401*'Customer Information'!$BC$21,2)),0)","v":""},{"$f":"IF(OR(Table_PI[[#This Row],[Annual kWh]]=\"\",Table_PI[[#This Row],[Annual kWh]]=0,ISTEXT(Table_PI[[#This Row],[Annual kWh]])),\"\",Table_PI[[#This Row],[Annual kWh]])","v":""},{"$f":"IF(OR(Table_PI[[#This Row],[Peak kW]]=\"\",Table_PI[[#This Row],[Peak kW]]=0,ISTEXT(Table_PI[[#This Row],[Peak kW]])),\"\",Table_PI[[#This Row],[Peak kW]])","v":""},{"$f":"IF(Table_SummaryPI[[#This Row],[Line No.]]<>\"\",IF(AND(ISNUMBER(FIND(\"Chiller\",Table_SummaryPI[[#This Row],[P_MeasureOption1]],1)),Table_SummaryPI[[#This Row],[ProposedMeasureCategory]]=\"Air-Cooled (Water-Cooled Replacement)\"),$BD$29*Table_SummaryPI[[#This Row],[Size]]*Table_SummaryPI[[#This Row],[Quantity]]*Table_SummaryPI[[#This Row],[EFLHCooling]],\nIF(ISNUMBER(FIND(\"Dishwasher\",Table_SummaryPI[[#This Row],[ProposedMeasureCategory]],1)),$BH$29*Table_SummaryPI[[#This Row],[Quantity]],\nIF(ISNUMBER(FIND(\"Ice Maker\",Table_SummaryPI[[#This Row],[ProposedMeasureCategory]],1)),$BD$31*Table_SummaryPI[[#This Row],[Quantity]],\nIF(ISNUMBER(FIND(\"Spray Valve\",Table_SummaryPI[[#This Row],[ProposedMeasureCategory]],1)),$BH$31*Table_SummaryPI[[#This Row],[Quantity]],\n0)))),\"\")","v":""},{"$f":"IF(OR(Table_PI[[#This Row],[Hide: Electrification kWh]]=\"\",Table_PI[[#This Row],[Hide: Electrification kWh]]=0,ISTEXT(Table_PI[[#This Row],[Hide: Electrification kWh]])),\"\",Table_PI[[#This Row],[Hide: Electrification kWh]])","v":""},{"$f":"IF(OR(Table_PI[[#This Row],[Hide: Electrification GHG]]=\"\",Table_PI[[#This Row],[Hide: Electrification GHG]]=0,ISTEXT(Table_PI[[#This Row],[Hide: Electrification GHG]])),\"\",Table_PI[[#This Row],[Hide: Electrification GHG]])","v":""},{"$f":"IFERROR(IF(Table_SummaryPI[[#This Row],[kWhSavings]]=\"\",\"\",$BH$9*Table_SummaryPI[[#This Row],[kWhSavings]]),0)","v":""},{"$f":"IFERROR(IF(Table_SummaryPI[[#This Row],[kWhSavings]]=\"\",\"\",$BH$14*Table_SummaryPI[[#This Row],[kWhSavings]]),0)","v":""},{"$f":"IFERROR(IF(Table_SummaryPI[[#This Row],[kWhSavings]]=\"\",\"\",$BH$18*Table_SummaryPI[[#This Row],[kWhSavings]]),0)","v":""},{"$f":"IFERROR(IF(Table_SummaryPI[[#This Row],[kWhSavings]]=\"\",\"\",$BH$22*Table_SummaryPI[[#This Row],[kWhSavings]]),0)","v":""}]
[{"$f":"Table_PI[[#This Row],[Line No.]]","v":""},{"$f":"IF(Table_SummaryPI[[#This Row],[MeasureName]]<>\"\",NOT(ISTEXT(Table_PI[[#This Row],[Rebate]])),\"\")","v":""},{"$f":"IF(Table_SummaryPI[[#This Row],[MeassureCategory]]<>\"\",CONCATENATE(Table_SummaryPI[[#This Row],[MeassureCategory]],  \" - \", Table_SummaryPI[[#This Row],[ProposedMeasureCategory]],  \" - \", TEXT(Table_SummaryPI[[#This Row],[Size]],\"#,##0.00\"),\" \",Table_SummaryPI[[#This Row],[SizeUnit]]),\"\")","v":""},{"$f":"SUBSTITUTE(Table_PI[[#This Row],[Measure]],\"     \",\"\",1)","v":""},{"$f":"IF(Table_PI[[#This Row],[List 1]]<>\"\",Table_PI[[#This Row],[List 1]],\"\")","v":""},{"$f":"IF(Table_PI[[#This Row],[List 2]]<>\"\",Table_PI[[#This Row],[List 2]],\"\")","v":""},{"$f":"IF(Table_PI[[#This Row],[List 3]]<>\"\",Table_PI[[#This Row],[List 3]],\"\")","v":""},{"$f":"IF(Table_PI[[#This Row],[Manufacturer]]=\"\",\"\",Table_PI[[#This Row],[Manufacturer]])","v":""},{"$f":"IF(Table_PI[[#This Row],[Model Number]]=\"\",\"\",Table_PI[[#This Row],[Model Number]])","v":""},{"$f":"IF(Table_PI[[#This Row],[Serial Number(s)]]=\"\",\"\",Table_PI[[#This Row],[Serial Number(s)]])","v":""},null,{"$f":"IF(Table_PI[[#This Row],[Size]]=\"\",\"\",Table_PI[[#This Row],[Size]])","v":""},null,null,{"$f":"IF(Table_PI[[#This Row],[Input 1]]<>\"\",Table_PI[[#This Row],[Input 1]],\"\")","v":""},null,null,{"$f":"IF(Table_PI[[#This Row],[Input 2]]<>\"\",Table_PI[[#This Row],[Input 2]],\"\")","v":""},null,null,{"$f":"IF(Table_PI[[#This Row],[Input 3]]<>\"\",Table_PI[[#This Row],[Input 3]],\"\")","v":""},null,null,{"$f":"IF(Table_PI[[#This Row],[Input 4]]<>\"\",Table_PI[[#This Row],[Input 4]],\"\")","v":""},null,null,{"$f":"IF(Table_PI[[#This Row],[Input 4]]<>\"\",Table_PI[[#This Row],[Input 4]],\"\")","v":""},null,null,{"$f":"IF(Table_PI[[#This Row],[Input 4]]<>\"\",Table_PI[[#This Row],[Input 4]],\"\")","v":""},{"$f":"IF(Table_PI[[#This Row],[Quantity]]=\"\",\"\",Table_PI[[#This Row],[Quantity]])","v":""},{"$f":"IF(Table_PI[[#This Row],[Notes]]=\"\",\"\",Table_PI[[#This Row],[Notes]])","v":""},{"$f":"IF(OR(Table_PI[[#This Row],[Hide: Baseline kWh]]=\"\",Table_PI[[#This Row],[Hide: Baseline kWh]]=0,ISTEXT(Table_PI[[#This Row],[Hide: Baseline kWh]])),\"\",Table_PI[[#This Row],[Hide: Baseline kWh]])","v":""},{"$f":"IF(OR(Table_PI[[#This Row],[Hide: Baseline kW]]=\"\",Table_PI[[#This Row],[Hide: Baseline kW]]=0,ISTEXT(Table_PI[[#This Row],[Hide: Baseline kW]])),\"\",Table_PI[[#This Row],[Hide: Baseline kW]])","v":""},{"$f":"IF(OR(Table_PI[[#This Row],[Hide: Proposed kWh]]=\"\",Table_PI[[#This Row],[Hide: Proposed kWh]]=0,ISTEXT(Table_PI[[#This Row],[Hide: Proposed kWh]])),\"\",Table_PI[[#This Row],[Hide: Proposed kWh]])","v":""},{"$f":"IF(OR(Table_PI[[#This Row],[Hide: Proposed kW]]=\"\",Table_PI[[#This Row],[Hide: Proposed kW]]=0,ISTEXT(Table_PI[[#This Row],[Hide: Proposed kW]])),\"\",Table_PI[[#This Row],[Hide: Proposed kW]])","v":""},null,null,{"$f":"IF(OR(Table_PI[[#This Row],[Hide: Rebate]]=\"\",Table_PI[[#This Row],[Hide: Rebate]]=0,ISTEXT(Table_PI[[#This Row],[Hide: Rebate]])),\"\",Table_PI[[#This Row],[Hide: Rebate]])","v":""},null,{"$f":"IF(OR(Table_PI[[#This Row],[Hide: Incremental Cost]]=\"\",Table_PI[[#This Row],[Hide: Incremental Cost]]=0,ISTEXT(Table_PI[[#This Row],[Hide: Incremental Cost]])),\"\",Table_PI[[#This Row],[Hide: Incremental Cost]])","v":""},{"$f":"IFERROR(IF(Table_SummaryPI[[#This Row],[Incentive_Customer]]=\"\",\"\",ROUND(Table_SummaryPI[[#This Row],[Incentive_Customer]]/$AM$401*'Customer Information'!$BC$21,2)),0)","v":""},{"$f":"IF(OR(Table_PI[[#This Row],[Annual kWh]]=\"\",Table_PI[[#This Row],[Annual kWh]]=0,ISTEXT(Table_PI[[#This Row],[Annual kWh]])),\"\",Table_PI[[#This Row],[Annual kWh]])","v":""},{"$f":"IF(OR(Table_PI[[#This Row],[Peak kW]]=\"\",Table_PI[[#This Row],[Peak kW]]=0,ISTEXT(Table_PI[[#This Row],[Peak kW]])),\"\",Table_PI[[#This Row],[Peak kW]])","v":""},{"$f":"IF(Table_SummaryPI[[#This Row],[Line No.]]<>\"\",IF(AND(ISNUMBER(FIND(\"Chiller\",Table_SummaryPI[[#This Row],[P_MeasureOption1]],1)),Table_SummaryPI[[#This Row],[ProposedMeasureCategory]]=\"Air-Cooled (Water-Cooled Replacement)\"),$BD$29*Table_SummaryPI[[#This Row],[Size]]*Table_SummaryPI[[#This Row],[Quantity]]*Table_SummaryPI[[#This Row],[EFLHCooling]],\nIF(ISNUMBER(FIND(\"Dishwasher\",Table_SummaryPI[[#This Row],[ProposedMeasureCategory]],1)),$BH$29*Table_SummaryPI[[#This Row],[Quantity]],\nIF(ISNUMBER(FIND(\"Ice Maker\",Table_SummaryPI[[#This Row],[ProposedMeasureCategory]],1)),$BD$31*Table_SummaryPI[[#This Row],[Quantity]],\nIF(ISNUMBER(FIND(\"Spray Valve\",Table_SummaryPI[[#This Row],[ProposedMeasureCategory]],1)),$BH$31*Table_SummaryPI[[#This Row],[Quantity]],\n0)))),\"\")","v":""},{"$f":"IF(OR(Table_PI[[#This Row],[Hide: Electrification kWh]]=\"\",Table_PI[[#This Row],[Hide: Electrification kWh]]=0,ISTEXT(Table_PI[[#This Row],[Hide: Electrification kWh]])),\"\",Table_PI[[#This Row],[Hide: Electrification kWh]])","v":""},{"$f":"IF(OR(Table_PI[[#This Row],[Hide: Electrification GHG]]=\"\",Table_PI[[#This Row],[Hide: Electrification GHG]]=0,ISTEXT(Table_PI[[#This Row],[Hide: Electrification GHG]])),\"\",Table_PI[[#This Row],[Hide: Electrification GHG]])","v":""},{"$f":"IFERROR(IF(Table_SummaryPI[[#This Row],[kWhSavings]]=\"\",\"\",$BH$9*Table_SummaryPI[[#This Row],[kWhSavings]]),0)","v":""},{"$f":"IFERROR(IF(Table_SummaryPI[[#This Row],[kWhSavings]]=\"\",\"\",$BH$14*Table_SummaryPI[[#This Row],[kWhSavings]]),0)","v":""},{"$f":"IFERROR(IF(Table_SummaryPI[[#This Row],[kWhSavings]]=\"\",\"\",$BH$18*Table_SummaryPI[[#This Row],[kWhSavings]]),0)","v":""},{"$f":"IFERROR(IF(Table_SummaryPI[[#This Row],[kWhSavings]]=\"\",\"\",$BH$22*Table_SummaryPI[[#This Row],[kWhSavings]]),0)","v":""}]
[{"$f":"Table_PI[[#This Row],[Line No.]]","v":""},{"$f":"IF(Table_SummaryPI[[#This Row],[MeasureName]]<>\"\",NOT(ISTEXT(Table_PI[[#This Row],[Rebate]])),\"\")","v":""},{"$f":"IF(Table_SummaryPI[[#This Row],[MeassureCategory]]<>\"\",CONCATENATE(Table_SummaryPI[[#This Row],[MeassureCategory]],  \" - \", Table_SummaryPI[[#This Row],[ProposedMeasureCategory]],  \" - \", TEXT(Table_SummaryPI[[#This Row],[Size]],\"#,##0.00\"),\" \",Table_SummaryPI[[#This Row],[SizeUnit]]),\"\")","v":""},{"$f":"SUBSTITUTE(Table_PI[[#This Row],[Measure]],\"     \",\"\",1)","v":""},{"$f":"IF(Table_PI[[#This Row],[List 1]]<>\"\",Table_PI[[#This Row],[List 1]],\"\")","v":""},{"$f":"IF(Table_PI[[#This Row],[List 2]]<>\"\",Table_PI[[#This Row],[List 2]],\"\")","v":""},{"$f":"IF(Table_PI[[#This Row],[List 3]]<>\"\",Table_PI[[#This Row],[List 3]],\"\")","v":""},{"$f":"IF(Table_PI[[#This Row],[Manufacturer]]=\"\",\"\",Table_PI[[#This Row],[Manufacturer]])","v":""},{"$f":"IF(Table_PI[[#This Row],[Model Number]]=\"\",\"\",Table_PI[[#This Row],[Model Number]])","v":""},{"$f":"IF(Table_PI[[#This Row],[Serial Number(s)]]=\"\",\"\",Table_PI[[#This Row],[Serial Number(s)]])","v":""},null,{"$f":"IF(Table_PI[[#This Row],[Size]]=\"\",\"\",Table_PI[[#This Row],[Size]])","v":""},null,null,{"$f":"IF(Table_PI[[#This Row],[Input 1]]<>\"\",Table_PI[[#This Row],[Input 1]],\"\")","v":""},null,null,{"$f":"IF(Table_PI[[#This Row],[Input 2]]<>\"\",Table_PI[[#This Row],[Input 2]],\"\")","v":""},null,null,{"$f":"IF(Table_PI[[#This Row],[Input 3]]<>\"\",Table_PI[[#This Row],[Input 3]],\"\")","v":""},null,null,{"$f":"IF(Table_PI[[#This Row],[Input 4]]<>\"\",Table_PI[[#This Row],[Input 4]],\"\")","v":""},null,null,{"$f":"IF(Table_PI[[#This Row],[Input 4]]<>\"\",Table_PI[[#This Row],[Input 4]],\"\")","v":""},null,null,{"$f":"IF(Table_PI[[#This Row],[Input 4]]<>\"\",Table_PI[[#This Row],[Input 4]],\"\")","v":""},{"$f":"IF(Table_PI[[#This Row],[Quantity]]=\"\",\"\",Table_PI[[#This Row],[Quantity]])","v":""},{"$f":"IF(Table_PI[[#This Row],[Notes]]=\"\",\"\",Table_PI[[#This Row],[Notes]])","v":""},{"$f":"IF(OR(Table_PI[[#This Row],[Hide: Baseline kWh]]=\"\",Table_PI[[#This Row],[Hide: Baseline kWh]]=0,ISTEXT(Table_PI[[#This Row],[Hide: Baseline kWh]])),\"\",Table_PI[[#This Row],[Hide: Baseline kWh]])","v":""},{"$f":"IF(OR(Table_PI[[#This Row],[Hide: Baseline kW]]=\"\",Table_PI[[#This Row],[Hide: Baseline kW]]=0,ISTEXT(Table_PI[[#This Row],[Hide: Baseline kW]])),\"\",Table_PI[[#This Row],[Hide: Baseline kW]])","v":""},{"$f":"IF(OR(Table_PI[[#This Row],[Hide: Proposed kWh]]=\"\",Table_PI[[#This Row],[Hide: Proposed kWh]]=0,ISTEXT(Table_PI[[#This Row],[Hide: Proposed kWh]])),\"\",Table_PI[[#This Row],[Hide: Proposed kWh]])","v":""},{"$f":"IF(OR(Table_PI[[#This Row],[Hide: Proposed kW]]=\"\",Table_PI[[#This Row],[Hide: Proposed kW]]=0,ISTEXT(Table_PI[[#This Row],[Hide: Proposed kW]])),\"\",Table_PI[[#This Row],[Hide: Proposed kW]])","v":""},null,null,{"$f":"IF(OR(Table_PI[[#This Row],[Hide: Rebate]]=\"\",Table_PI[[#This Row],[Hide: Rebate]]=0,ISTEXT(Table_PI[[#This Row],[Hide: Rebate]])),\"\",Table_PI[[#This Row],[Hide: Rebate]])","v":""},null,{"$f":"IF(OR(Table_PI[[#This Row],[Hide: Incremental Cost]]=\"\",Table_PI[[#This Row],[Hide: Incremental Cost]]=0,ISTEXT(Table_PI[[#This Row],[Hide: Incremental Cost]])),\"\",Table_PI[[#This Row],[Hide: Incremental Cost]])","v":""},{"$f":"IFERROR(IF(Table_SummaryPI[[#This Row],[Incentive_Customer]]=\"\",\"\",ROUND(Table_SummaryPI[[#This Row],[Incentive_Customer]]/$AM$401*'Customer Information'!$BC$21,2)),0)","v":""},{"$f":"IF(OR(Table_PI[[#This Row],[Annual kWh]]=\"\",Table_PI[[#This Row],[Annual kWh]]=0,ISTEXT(Table_PI[[#This Row],[Annual kWh]])),\"\",Table_PI[[#This Row],[Annual kWh]])","v":""},{"$f":"IF(OR(Table_PI[[#This Row],[Peak kW]]=\"\",Table_PI[[#This Row],[Peak kW]]=0,ISTEXT(Table_PI[[#This Row],[Peak kW]])),\"\",Table_PI[[#This Row],[Peak kW]])","v":""},{"$f":"IF(Table_SummaryPI[[#This Row],[Line No.]]<>\"\",IF(AND(ISNUMBER(FIND(\"Chiller\",Table_SummaryPI[[#This Row],[P_MeasureOption1]],1)),Table_SummaryPI[[#This Row],[ProposedMeasureCategory]]=\"Air-Cooled (Water-Cooled Replacement)\"),$BD$29*Table_SummaryPI[[#This Row],[Size]]*Table_SummaryPI[[#This Row],[Quantity]]*Table_SummaryPI[[#This Row],[EFLHCooling]],\nIF(ISNUMBER(FIND(\"Dishwasher\",Table_SummaryPI[[#This Row],[ProposedMeasureCategory]],1)),$BH$29*Table_SummaryPI[[#This Row],[Quantity]],\nIF(ISNUMBER(FIND(\"Ice Maker\",Table_SummaryPI[[#This Row],[ProposedMeasureCategory]],1)),$BD$31*Table_SummaryPI[[#This Row],[Quantity]],\nIF(ISNUMBER(FIND(\"Spray Valve\",Table_SummaryPI[[#This Row],[ProposedMeasureCategory]],1)),$BH$31*Table_SummaryPI[[#This Row],[Quantity]],\n0)))),\"\")","v":""},{"$f":"IF(OR(Table_PI[[#This Row],[Hide: Electrification kWh]]=\"\",Table_PI[[#This Row],[Hide: Electrification kWh]]=0,ISTEXT(Table_PI[[#This Row],[Hide: Electrification kWh]])),\"\",Table_PI[[#This Row],[Hide: Electrification kWh]])","v":""},{"$f":"IF(OR(Table_PI[[#This Row],[Hide: Electrification GHG]]=\"\",Table_PI[[#This Row],[Hide: Electrification GHG]]=0,ISTEXT(Table_PI[[#This Row],[Hide: Electrification GHG]])),\"\",Table_PI[[#This Row],[Hide: Electrification GHG]])","v":""},{"$f":"IFERROR(IF(Table_SummaryPI[[#This Row],[kWhSavings]]=\"\",\"\",$BH$9*Table_SummaryPI[[#This Row],[kWhSavings]]),0)","v":""},{"$f":"IFERROR(IF(Table_SummaryPI[[#This Row],[kWhSavings]]=\"\",\"\",$BH$14*Table_SummaryPI[[#This Row],[kWhSavings]]),0)","v":""},{"$f":"IFERROR(IF(Table_SummaryPI[[#This Row],[kWhSavings]]=\"\",\"\",$BH$18*Table_SummaryPI[[#This Row],[kWhSavings]]),0)","v":""},{"$f":"IFERROR(IF(Table_SummaryPI[[#This Row],[kWhSavings]]=\"\",\"\",$BH$22*Table_SummaryPI[[#This Row],[kWhSavings]]),0)","v":""}]
[{"$f":"Table_PI[[#This Row],[Line No.]]","v":""},{"$f":"IF(Table_SummaryPI[[#This Row],[MeasureName]]<>\"\",NOT(ISTEXT(Table_PI[[#This Row],[Rebate]])),\"\")","v":""},{"$f":"IF(Table_SummaryPI[[#This Row],[MeassureCategory]]<>\"\",CONCATENATE(Table_SummaryPI[[#This Row],[MeassureCategory]],  \" - \", Table_SummaryPI[[#This Row],[ProposedMeasureCategory]],  \" - \", TEXT(Table_SummaryPI[[#This Row],[Size]],\"#,##0.00\"),\" \",Table_SummaryPI[[#This Row],[SizeUnit]]),\"\")","v":""},{"$f":"SUBSTITUTE(Table_PI[[#This Row],[Measure]],\"     \",\"\",1)","v":""},{"$f":"IF(Table_PI[[#This Row],[List 1]]<>\"\",Table_PI[[#This Row],[List 1]],\"\")","v":""},{"$f":"IF(Table_PI[[#This Row],[List 2]]<>\"\",Table_PI[[#This Row],[List 2]],\"\")","v":""},{"$f":"IF(Table_PI[[#This Row],[List 3]]<>\"\",Table_PI[[#This Row],[List 3]],\"\")","v":""},{"$f":"IF(Table_PI[[#This Row],[Manufacturer]]=\"\",\"\",Table_PI[[#This Row],[Manufacturer]])","v":""},{"$f":"IF(Table_PI[[#This Row],[Model Number]]=\"\",\"\",Table_PI[[#This Row],[Model Number]])","v":""},{"$f":"IF(Table_PI[[#This Row],[Serial Number(s)]]=\"\",\"\",Table_PI[[#This Row],[Serial Number(s)]])","v":""},null,{"$f":"IF(Table_PI[[#This Row],[Size]]=\"\",\"\",Table_PI[[#This Row],[Size]])","v":""},null,null,{"$f":"IF(Table_PI[[#This Row],[Input 1]]<>\"\",Table_PI[[#This Row],[Input 1]],\"\")","v":""},null,null,{"$f":"IF(Table_PI[[#This Row],[Input 2]]<>\"\",Table_PI[[#This Row],[Input 2]],\"\")","v":""},null,null,{"$f":"IF(Table_PI[[#This Row],[Input 3]]<>\"\",Table_PI[[#This Row],[Input 3]],\"\")","v":""},null,null,{"$f":"IF(Table_PI[[#This Row],[Input 4]]<>\"\",Table_PI[[#This Row],[Input 4]],\"\")","v":""},null,null,{"$f":"IF(Table_PI[[#This Row],[Input 4]]<>\"\",Table_PI[[#This Row],[Input 4]],\"\")","v":""},null,null,{"$f":"IF(Table_PI[[#This Row],[Input 4]]<>\"\",Table_PI[[#This Row],[Input 4]],\"\")","v":""},{"$f":"IF(Table_PI[[#This Row],[Quantity]]=\"\",\"\",Table_PI[[#This Row],[Quantity]])","v":""},{"$f":"IF(Table_PI[[#This Row],[Notes]]=\"\",\"\",Table_PI[[#This Row],[Notes]])","v":""},{"$f":"IF(OR(Table_PI[[#This Row],[Hide: Baseline kWh]]=\"\",Table_PI[[#This Row],[Hide: Baseline kWh]]=0,ISTEXT(Table_PI[[#This Row],[Hide: Baseline kWh]])),\"\",Table_PI[[#This Row],[Hide: Baseline kWh]])","v":""},{"$f":"IF(OR(Table_PI[[#This Row],[Hide: Baseline kW]]=\"\",Table_PI[[#This Row],[Hide: Baseline kW]]=0,ISTEXT(Table_PI[[#This Row],[Hide: Baseline kW]])),\"\",Table_PI[[#This Row],[Hide: Baseline kW]])","v":""},{"$f":"IF(OR(Table_PI[[#This Row],[Hide: Proposed kWh]]=\"\",Table_PI[[#This Row],[Hide: Proposed kWh]]=0,ISTEXT(Table_PI[[#This Row],[Hide: Proposed kWh]])),\"\",Table_PI[[#This Row],[Hide: Proposed kWh]])","v":""},{"$f":"IF(OR(Table_PI[[#This Row],[Hide: Proposed kW]]=\"\",Table_PI[[#This Row],[Hide: Proposed kW]]=0,ISTEXT(Table_PI[[#This Row],[Hide: Proposed kW]])),\"\",Table_PI[[#This Row],[Hide: Proposed kW]])","v":""},null,null,{"$f":"IF(OR(Table_PI[[#This Row],[Hide: Rebate]]=\"\",Table_PI[[#This Row],[Hide: Rebate]]=0,ISTEXT(Table_PI[[#This Row],[Hide: Rebate]])),\"\",Table_PI[[#This Row],[Hide: Rebate]])","v":""},null,{"$f":"IF(OR(Table_PI[[#This Row],[Hide: Incremental Cost]]=\"\",Table_PI[[#This Row],[Hide: Incremental Cost]]=0,ISTEXT(Table_PI[[#This Row],[Hide: Incremental Cost]])),\"\",Table_PI[[#This Row],[Hide: Incremental Cost]])","v":""},{"$f":"IFERROR(IF(Table_SummaryPI[[#This Row],[Incentive_Customer]]=\"\",\"\",ROUND(Table_SummaryPI[[#This Row],[Incentive_Customer]]/$AM$401*'Customer Information'!$BC$21,2)),0)","v":""},{"$f":"IF(OR(Table_PI[[#This Row],[Annual kWh]]=\"\",Table_PI[[#This Row],[Annual kWh]]=0,ISTEXT(Table_PI[[#This Row],[Annual kWh]])),\"\",Table_PI[[#This Row],[Annual kWh]])","v":""},{"$f":"IF(OR(Table_PI[[#This Row],[Peak kW]]=\"\",Table_PI[[#This Row],[Peak kW]]=0,ISTEXT(Table_PI[[#This Row],[Peak kW]])),\"\",Table_PI[[#This Row],[Peak kW]])","v":""},{"$f":"IF(Table_SummaryPI[[#This Row],[Line No.]]<>\"\",IF(AND(ISNUMBER(FIND(\"Chiller\",Table_SummaryPI[[#This Row],[P_MeasureOption1]],1)),Table_SummaryPI[[#This Row],[ProposedMeasureCategory]]=\"Air-Cooled (Water-Cooled Replacement)\"),$BD$29*Table_SummaryPI[[#This Row],[Size]]*Table_SummaryPI[[#This Row],[Quantity]]*Table_SummaryPI[[#This Row],[EFLHCooling]],\nIF(ISNUMBER(FIND(\"Dishwasher\",Table_SummaryPI[[#This Row],[ProposedMeasureCategory]],1)),$BH$29*Table_SummaryPI[[#This Row],[Quantity]],\nIF(ISNUMBER(FIND(\"Ice Maker\",Table_SummaryPI[[#This Row],[ProposedMeasureCategory]],1)),$BD$31*Table_SummaryPI[[#This Row],[Quantity]],\nIF(ISNUMBER(FIND(\"Spray Valve\",Table_SummaryPI[[#This Row],[ProposedMeasureCategory]],1)),$BH$31*Table_SummaryPI[[#This Row],[Quantity]],\n0)))),\"\")","v":""},{"$f":"IF(OR(Table_PI[[#This Row],[Hide: Electrification kWh]]=\"\",Table_PI[[#This Row],[Hide: Electrification kWh]]=0,ISTEXT(Table_PI[[#This Row],[Hide: Electrification kWh]])),\"\",Table_PI[[#This Row],[Hide: Electrification kWh]])","v":""},{"$f":"IF(OR(Table_PI[[#This Row],[Hide: Electrification GHG]]=\"\",Table_PI[[#This Row],[Hide: Electrification GHG]]=0,ISTEXT(Table_PI[[#This Row],[Hide: Electrification GHG]])),\"\",Table_PI[[#This Row],[Hide: Electrification GHG]])","v":""},{"$f":"IFERROR(IF(Table_SummaryPI[[#This Row],[kWhSavings]]=\"\",\"\",$BH$9*Table_SummaryPI[[#This Row],[kWhSavings]]),0)","v":""},{"$f":"IFERROR(IF(Table_SummaryPI[[#This Row],[kWhSavings]]=\"\",\"\",$BH$14*Table_SummaryPI[[#This Row],[kWhSavings]]),0)","v":""},{"$f":"IFERROR(IF(Table_SummaryPI[[#This Row],[kWhSavings]]=\"\",\"\",$BH$18*Table_SummaryPI[[#This Row],[kWhSavings]]),0)","v":""},{"$f":"IFERROR(IF(Table_SummaryPI[[#This Row],[kWhSavings]]=\"\",\"\",$BH$22*Table_SummaryPI[[#This Row],[kWhSavings]]),0)","v":""}]
[{"$f":"Table_PI[[#This Row],[Line No.]]","v":""},{"$f":"IF(Table_SummaryPI[[#This Row],[MeasureName]]<>\"\",NOT(ISTEXT(Table_PI[[#This Row],[Rebate]])),\"\")","v":""},{"$f":"IF(Table_SummaryPI[[#This Row],[MeassureCategory]]<>\"\",CONCATENATE(Table_SummaryPI[[#This Row],[MeassureCategory]],  \" - \", Table_SummaryPI[[#This Row],[ProposedMeasureCategory]],  \" - \", TEXT(Table_SummaryPI[[#This Row],[Size]],\"#,##0.00\"),\" \",Table_SummaryPI[[#This Row],[SizeUnit]]),\"\")","v":""},{"$f":"SUBSTITUTE(Table_PI[[#This Row],[Measure]],\"     \",\"\",1)","v":""},{"$f":"IF(Table_PI[[#This Row],[List 1]]<>\"\",Table_PI[[#This Row],[List 1]],\"\")","v":""},{"$f":"IF(Table_PI[[#This Row],[List 2]]<>\"\",Table_PI[[#This Row],[List 2]],\"\")","v":""},{"$f":"IF(Table_PI[[#This Row],[List 3]]<>\"\",Table_PI[[#This Row],[List 3]],\"\")","v":""},{"$f":"IF(Table_PI[[#This Row],[Manufacturer]]=\"\",\"\",Table_PI[[#This Row],[Manufacturer]])","v":""},{"$f":"IF(Table_PI[[#This Row],[Model Number]]=\"\",\"\",Table_PI[[#This Row],[Model Number]])","v":""},{"$f":"IF(Table_PI[[#This Row],[Serial Number(s)]]=\"\",\"\",Table_PI[[#This Row],[Serial Number(s)]])","v":""},null,{"$f":"IF(Table_PI[[#This Row],[Size]]=\"\",\"\",Table_PI[[#This Row],[Size]])","v":""},null,null,{"$f":"IF(Table_PI[[#This Row],[Input 1]]<>\"\",Table_PI[[#This Row],[Input 1]],\"\")","v":""},null,null,{"$f":"IF(Table_PI[[#This Row],[Input 2]]<>\"\",Table_PI[[#This Row],[Input 2]],\"\")","v":""},null,null,{"$f":"IF(Table_PI[[#This Row],[Input 3]]<>\"\",Table_PI[[#This Row],[Input 3]],\"\")","v":""},null,null,{"$f":"IF(Table_PI[[#This Row],[Input 4]]<>\"\",Table_PI[[#This Row],[Input 4]],\"\")","v":""},null,null,{"$f":"IF(Table_PI[[#This Row],[Input 4]]<>\"\",Table_PI[[#This Row],[Input 4]],\"\")","v":""},null,null,{"$f":"IF(Table_PI[[#This Row],[Input 4]]<>\"\",Table_PI[[#This Row],[Input 4]],\"\")","v":""},{"$f":"IF(Table_PI[[#This Row],[Quantity]]=\"\",\"\",Table_PI[[#This Row],[Quantity]])","v":""},{"$f":"IF(Table_PI[[#This Row],[Notes]]=\"\",\"\",Table_PI[[#This Row],[Notes]])","v":""},{"$f":"IF(OR(Table_PI[[#This Row],[Hide: Baseline kWh]]=\"\",Table_PI[[#This Row],[Hide: Baseline kWh]]=0,ISTEXT(Table_PI[[#This Row],[Hide: Baseline kWh]])),\"\",Table_PI[[#This Row],[Hide: Baseline kWh]])","v":""},{"$f":"IF(OR(Table_PI[[#This Row],[Hide: Baseline kW]]=\"\",Table_PI[[#This Row],[Hide: Baseline kW]]=0,ISTEXT(Table_PI[[#This Row],[Hide: Baseline kW]])),\"\",Table_PI[[#This Row],[Hide: Baseline kW]])","v":""},{"$f":"IF(OR(Table_PI[[#This Row],[Hide: Proposed kWh]]=\"\",Table_PI[[#This Row],[Hide: Proposed kWh]]=0,ISTEXT(Table_PI[[#This Row],[Hide: Proposed kWh]])),\"\",Table_PI[[#This Row],[Hide: Proposed kWh]])","v":""},{"$f":"IF(OR(Table_PI[[#This Row],[Hide: Proposed kW]]=\"\",Table_PI[[#This Row],[Hide: Proposed kW]]=0,ISTEXT(Table_PI[[#This Row],[Hide: Proposed kW]])),\"\",Table_PI[[#This Row],[Hide: Proposed kW]])","v":""},null,null,{"$f":"IF(OR(Table_PI[[#This Row],[Hide: Rebate]]=\"\",Table_PI[[#This Row],[Hide: Rebate]]=0,ISTEXT(Table_PI[[#This Row],[Hide: Rebate]])),\"\",Table_PI[[#This Row],[Hide: Rebate]])","v":""},null,{"$f":"IF(OR(Table_PI[[#This Row],[Hide: Incremental Cost]]=\"\",Table_PI[[#This Row],[Hide: Incremental Cost]]=0,ISTEXT(Table_PI[[#This Row],[Hide: Incremental Cost]])),\"\",Table_PI[[#This Row],[Hide: Incremental Cost]])","v":""},{"$f":"IFERROR(IF(Table_SummaryPI[[#This Row],[Incentive_Customer]]=\"\",\"\",ROUND(Table_SummaryPI[[#This Row],[Incentive_Customer]]/$AM$401*'Customer Information'!$BC$21,2)),0)","v":""},{"$f":"IF(OR(Table_PI[[#This Row],[Annual kWh]]=\"\",Table_PI[[#This Row],[Annual kWh]]=0,ISTEXT(Table_PI[[#This Row],[Annual kWh]])),\"\",Table_PI[[#This Row],[Annual kWh]])","v":""},{"$f":"IF(OR(Table_PI[[#This Row],[Peak kW]]=\"\",Table_PI[[#This Row],[Peak kW]]=0,ISTEXT(Table_PI[[#This Row],[Peak kW]])),\"\",Table_PI[[#This Row],[Peak kW]])","v":""},{"$f":"IF(Table_SummaryPI[[#This Row],[Line No.]]<>\"\",IF(AND(ISNUMBER(FIND(\"Chiller\",Table_SummaryPI[[#This Row],[P_MeasureOption1]],1)),Table_SummaryPI[[#This Row],[ProposedMeasureCategory]]=\"Air-Cooled (Water-Cooled Replacement)\"),$BD$29*Table_SummaryPI[[#This Row],[Size]]*Table_SummaryPI[[#This Row],[Quantity]]*Table_SummaryPI[[#This Row],[EFLHCooling]],\nIF(ISNUMBER(FIND(\"Dishwasher\",Table_SummaryPI[[#This Row],[ProposedMeasureCategory]],1)),$BH$29*Table_SummaryPI[[#This Row],[Quantity]],\nIF(ISNUMBER(FIND(\"Ice Maker\",Table_SummaryPI[[#This Row],[ProposedMeasureCategory]],1)),$BD$31*Table_SummaryPI[[#This Row],[Quantity]],\nIF(ISNUMBER(FIND(\"Spray Valve\",Table_SummaryPI[[#This Row],[ProposedMeasureCategory]],1)),$BH$31*Table_SummaryPI[[#This Row],[Quantity]],\n0)))),\"\")","v":""},{"$f":"IF(OR(Table_PI[[#This Row],[Hide: Electrification kWh]]=\"\",Table_PI[[#This Row],[Hide: Electrification kWh]]=0,ISTEXT(Table_PI[[#This Row],[Hide: Electrification kWh]])),\"\",Table_PI[[#This Row],[Hide: Electrification kWh]])","v":""},{"$f":"IF(OR(Table_PI[[#This Row],[Hide: Electrification GHG]]=\"\",Table_PI[[#This Row],[Hide: Electrification GHG]]=0,ISTEXT(Table_PI[[#This Row],[Hide: Electrification GHG]])),\"\",Table_PI[[#This Row],[Hide: Electrification GHG]])","v":""},{"$f":"IFERROR(IF(Table_SummaryPI[[#This Row],[kWhSavings]]=\"\",\"\",$BH$9*Table_SummaryPI[[#This Row],[kWhSavings]]),0)","v":""},{"$f":"IFERROR(IF(Table_SummaryPI[[#This Row],[kWhSavings]]=\"\",\"\",$BH$14*Table_SummaryPI[[#This Row],[kWhSavings]]),0)","v":""},{"$f":"IFERROR(IF(Table_SummaryPI[[#This Row],[kWhSavings]]=\"\",\"\",$BH$18*Table_SummaryPI[[#This Row],[kWhSavings]]),0)","v":""},{"$f":"IFERROR(IF(Table_SummaryPI[[#This Row],[kWhSavings]]=\"\",\"\",$BH$22*Table_SummaryPI[[#This Row],[kWhSavings]]),0)","v":""}]
[{"$f":"Table_PI[[#This Row],[Line No.]]","v":""},{"$f":"IF(Table_SummaryPI[[#This Row],[MeasureName]]<>\"\",NOT(ISTEXT(Table_PI[[#This Row],[Rebate]])),\"\")","v":""},{"$f":"IF(Table_SummaryPI[[#This Row],[MeassureCategory]]<>\"\",CONCATENATE(Table_SummaryPI[[#This Row],[MeassureCategory]],  \" - \", Table_SummaryPI[[#This Row],[ProposedMeasureCategory]],  \" - \", TEXT(Table_SummaryPI[[#This Row],[Size]],\"#,##0.00\"),\" \",Table_SummaryPI[[#This Row],[SizeUnit]]),\"\")","v":""},{"$f":"SUBSTITUTE(Table_PI[[#This Row],[Measure]],\"     \",\"\",1)","v":""},{"$f":"IF(Table_PI[[#This Row],[List 1]]<>\"\",Table_PI[[#This Row],[List 1]],\"\")","v":""},{"$f":"IF(Table_PI[[#This Row],[List 2]]<>\"\",Table_PI[[#This Row],[List 2]],\"\")","v":""},{"$f":"IF(Table_PI[[#This Row],[List 3]]<>\"\",Table_PI[[#This Row],[List 3]],\"\")","v":""},{"$f":"IF(Table_PI[[#This Row],[Manufacturer]]=\"\",\"\",Table_PI[[#This Row],[Manufacturer]])","v":""},{"$f":"IF(Table_PI[[#This Row],[Model Number]]=\"\",\"\",Table_PI[[#This Row],[Model Number]])","v":""},{"$f":"IF(Table_PI[[#This Row],[Serial Number(s)]]=\"\",\"\",Table_PI[[#This Row],[Serial Number(s)]])","v":""},null,{"$f":"IF(Table_PI[[#This Row],[Size]]=\"\",\"\",Table_PI[[#This Row],[Size]])","v":""},null,null,{"$f":"IF(Table_PI[[#This Row],[Input 1]]<>\"\",Table_PI[[#This Row],[Input 1]],\"\")","v":""},null,null,{"$f":"IF(Table_PI[[#This Row],[Input 2]]<>\"\",Table_PI[[#This Row],[Input 2]],\"\")","v":""},null,null,{"$f":"IF(Table_PI[[#This Row],[Input 3]]<>\"\",Table_PI[[#This Row],[Input 3]],\"\")","v":""},null,null,{"$f":"IF(Table_PI[[#This Row],[Input 4]]<>\"\",Table_PI[[#This Row],[Input 4]],\"\")","v":""},null,null,{"$f":"IF(Table_PI[[#This Row],[Input 4]]<>\"\",Table_PI[[#This Row],[Input 4]],\"\")","v":""},null,null,{"$f":"IF(Table_PI[[#This Row],[Input 4]]<>\"\",Table_PI[[#This Row],[Input 4]],\"\")","v":""},{"$f":"IF(Table_PI[[#This Row],[Quantity]]=\"\",\"\",Table_PI[[#This Row],[Quantity]])","v":""},{"$f":"IF(Table_PI[[#This Row],[Notes]]=\"\",\"\",Table_PI[[#This Row],[Notes]])","v":""},{"$f":"IF(OR(Table_PI[[#This Row],[Hide: Baseline kWh]]=\"\",Table_PI[[#This Row],[Hide: Baseline kWh]]=0,ISTEXT(Table_PI[[#This Row],[Hide: Baseline kWh]])),\"\",Table_PI[[#This Row],[Hide: Baseline kWh]])","v":""},{"$f":"IF(OR(Table_PI[[#This Row],[Hide: Baseline kW]]=\"\",Table_PI[[#This Row],[Hide: Baseline kW]]=0,ISTEXT(Table_PI[[#This Row],[Hide: Baseline kW]])),\"\",Table_PI[[#This Row],[Hide: Baseline kW]])","v":""},{"$f":"IF(OR(Table_PI[[#This Row],[Hide: Proposed kWh]]=\"\",Table_PI[[#This Row],[Hide: Proposed kWh]]=0,ISTEXT(Table_PI[[#This Row],[Hide: Proposed kWh]])),\"\",Table_PI[[#This Row],[Hide: Proposed kWh]])","v":""},{"$f":"IF(OR(Table_PI[[#This Row],[Hide: Proposed kW]]=\"\",Table_PI[[#This Row],[Hide: Proposed kW]]=0,ISTEXT(Table_PI[[#This Row],[Hide: Proposed kW]])),\"\",Table_PI[[#This Row],[Hide: Proposed kW]])","v":""},null,null,{"$f":"IF(OR(Table_PI[[#This Row],[Hide: Rebate]]=\"\",Table_PI[[#This Row],[Hide: Rebate]]=0,ISTEXT(Table_PI[[#This Row],[Hide: Rebate]])),\"\",Table_PI[[#This Row],[Hide: Rebate]])","v":""},null,{"$f":"IF(OR(Table_PI[[#This Row],[Hide: Incremental Cost]]=\"\",Table_PI[[#This Row],[Hide: Incremental Cost]]=0,ISTEXT(Table_PI[[#This Row],[Hide: Incremental Cost]])),\"\",Table_PI[[#This Row],[Hide: Incremental Cost]])","v":""},{"$f":"IFERROR(IF(Table_SummaryPI[[#This Row],[Incentive_Customer]]=\"\",\"\",ROUND(Table_SummaryPI[[#This Row],[Incentive_Customer]]/$AM$401*'Customer Information'!$BC$21,2)),0)","v":""},{"$f":"IF(OR(Table_PI[[#This Row],[Annual kWh]]=\"\",Table_PI[[#This Row],[Annual kWh]]=0,ISTEXT(Table_PI[[#This Row],[Annual kWh]])),\"\",Table_PI[[#This Row],[Annual kWh]])","v":""},{"$f":"IF(OR(Table_PI[[#This Row],[Peak kW]]=\"\",Table_PI[[#This Row],[Peak kW]]=0,ISTEXT(Table_PI[[#This Row],[Peak kW]])),\"\",Table_PI[[#This Row],[Peak kW]])","v":""},{"$f":"IF(Table_SummaryPI[[#This Row],[Line No.]]<>\"\",IF(AND(ISNUMBER(FIND(\"Chiller\",Table_SummaryPI[[#This Row],[P_MeasureOption1]],1)),Table_SummaryPI[[#This Row],[ProposedMeasureCategory]]=\"Air-Cooled (Water-Cooled Replacement)\"),$BD$29*Table_SummaryPI[[#This Row],[Size]]*Table_SummaryPI[[#This Row],[Quantity]]*Table_SummaryPI[[#This Row],[EFLHCooling]],\nIF(ISNUMBER(FIND(\"Dishwasher\",Table_SummaryPI[[#This Row],[ProposedMeasureCategory]],1)),$BH$29*Table_SummaryPI[[#This Row],[Quantity]],\nIF(ISNUMBER(FIND(\"Ice Maker\",Table_SummaryPI[[#This Row],[ProposedMeasureCategory]],1)),$BD$31*Table_SummaryPI[[#This Row],[Quantity]],\nIF(ISNUMBER(FIND(\"Spray Valve\",Table_SummaryPI[[#This Row],[ProposedMeasureCategory]],1)),$BH$31*Table_SummaryPI[[#This Row],[Quantity]],\n0)))),\"\")","v":""},{"$f":"IF(OR(Table_PI[[#This Row],[Hide: Electrification kWh]]=\"\",Table_PI[[#This Row],[Hide: Electrification kWh]]=0,ISTEXT(Table_PI[[#This Row],[Hide: Electrification kWh]])),\"\",Table_PI[[#This Row],[Hide: Electrification kWh]])","v":""},{"$f":"IF(OR(Table_PI[[#This Row],[Hide: Electrification GHG]]=\"\",Table_PI[[#This Row],[Hide: Electrification GHG]]=0,ISTEXT(Table_PI[[#This Row],[Hide: Electrification GHG]])),\"\",Table_PI[[#This Row],[Hide: Electrification GHG]])","v":""},{"$f":"IFERROR(IF(Table_SummaryPI[[#This Row],[kWhSavings]]=\"\",\"\",$BH$9*Table_SummaryPI[[#This Row],[kWhSavings]]),0)","v":""},{"$f":"IFERROR(IF(Table_SummaryPI[[#This Row],[kWhSavings]]=\"\",\"\",$BH$14*Table_SummaryPI[[#This Row],[kWhSavings]]),0)","v":""},{"$f":"IFERROR(IF(Table_SummaryPI[[#This Row],[kWhSavings]]=\"\",\"\",$BH$18*Table_SummaryPI[[#This Row],[kWhSavings]]),0)","v":""},{"$f":"IFERROR(IF(Table_SummaryPI[[#This Row],[kWhSavings]]=\"\",\"\",$BH$22*Table_SummaryPI[[#This Row],[kWhSavings]]),0)","v":""}]
[{"$f":"Table_PI[[#This Row],[Line No.]]","v":""},{"$f":"IF(Table_SummaryPI[[#This Row],[MeasureName]]<>\"\",NOT(ISTEXT(Table_PI[[#This Row],[Rebate]])),\"\")","v":""},{"$f":"IF(Table_SummaryPI[[#This Row],[MeassureCategory]]<>\"\",CONCATENATE(Table_SummaryPI[[#This Row],[MeassureCategory]],  \" - \", Table_SummaryPI[[#This Row],[ProposedMeasureCategory]],  \" - \", TEXT(Table_SummaryPI[[#This Row],[Size]],\"#,##0.00\"),\" \",Table_SummaryPI[[#This Row],[SizeUnit]]),\"\")","v":""},{"$f":"SUBSTITUTE(Table_PI[[#This Row],[Measure]],\"     \",\"\",1)","v":""},{"$f":"IF(Table_PI[[#This Row],[List 1]]<>\"\",Table_PI[[#This Row],[List 1]],\"\")","v":""},{"$f":"IF(Table_PI[[#This Row],[List 2]]<>\"\",Table_PI[[#This Row],[List 2]],\"\")","v":""},{"$f":"IF(Table_PI[[#This Row],[List 3]]<>\"\",Table_PI[[#This Row],[List 3]],\"\")","v":""},{"$f":"IF(Table_PI[[#This Row],[Manufacturer]]=\"\",\"\",Table_PI[[#This Row],[Manufacturer]])","v":""},{"$f":"IF(Table_PI[[#This Row],[Model Number]]=\"\",\"\",Table_PI[[#This Row],[Model Number]])","v":""},{"$f":"IF(Table_PI[[#This Row],[Serial Number(s)]]=\"\",\"\",Table_PI[[#This Row],[Serial Number(s)]])","v":""},null,{"$f":"IF(Table_PI[[#This Row],[Size]]=\"\",\"\",Table_PI[[#This Row],[Size]])","v":""},null,null,{"$f":"IF(Table_PI[[#This Row],[Input 1]]<>\"\",Table_PI[[#This Row],[Input 1]],\"\")","v":""},null,null,{"$f":"IF(Table_PI[[#This Row],[Input 2]]<>\"\",Table_PI[[#This Row],[Input 2]],\"\")","v":""},null,null,{"$f":"IF(Table_PI[[#This Row],[Input 3]]<>\"\",Table_PI[[#This Row],[Input 3]],\"\")","v":""},null,null,{"$f":"IF(Table_PI[[#This Row],[Input 4]]<>\"\",Table_PI[[#This Row],[Input 4]],\"\")","v":""},null,null,{"$f":"IF(Table_PI[[#This Row],[Input 4]]<>\"\",Table_PI[[#This Row],[Input 4]],\"\")","v":""},null,null,{"$f":"IF(Table_PI[[#This Row],[Input 4]]<>\"\",Table_PI[[#This Row],[Input 4]],\"\")","v":""},{"$f":"IF(Table_PI[[#This Row],[Quantity]]=\"\",\"\",Table_PI[[#This Row],[Quantity]])","v":""},{"$f":"IF(Table_PI[[#This Row],[Notes]]=\"\",\"\",Table_PI[[#This Row],[Notes]])","v":""},{"$f":"IF(OR(Table_PI[[#This Row],[Hide: Baseline kWh]]=\"\",Table_PI[[#This Row],[Hide: Baseline kWh]]=0,ISTEXT(Table_PI[[#This Row],[Hide: Baseline kWh]])),\"\",Table_PI[[#This Row],[Hide: Baseline kWh]])","v":""},{"$f":"IF(OR(Table_PI[[#This Row],[Hide: Baseline kW]]=\"\",Table_PI[[#This Row],[Hide: Baseline kW]]=0,ISTEXT(Table_PI[[#This Row],[Hide: Baseline kW]])),\"\",Table_PI[[#This Row],[Hide: Baseline kW]])","v":""},{"$f":"IF(OR(Table_PI[[#This Row],[Hide: Proposed kWh]]=\"\",Table_PI[[#This Row],[Hide: Proposed kWh]]=0,ISTEXT(Table_PI[[#This Row],[Hide: Proposed kWh]])),\"\",Table_PI[[#This Row],[Hide: Proposed kWh]])","v":""},{"$f":"IF(OR(Table_PI[[#This Row],[Hide: Proposed kW]]=\"\",Table_PI[[#This Row],[Hide: Proposed kW]]=0,ISTEXT(Table_PI[[#This Row],[Hide: Proposed kW]])),\"\",Table_PI[[#This Row],[Hide: Proposed kW]])","v":""},null,null,{"$f":"IF(OR(Table_PI[[#This Row],[Hide: Rebate]]=\"\",Table_PI[[#This Row],[Hide: Rebate]]=0,ISTEXT(Table_PI[[#This Row],[Hide: Rebate]])),\"\",Table_PI[[#This Row],[Hide: Rebate]])","v":""},null,{"$f":"IF(OR(Table_PI[[#This Row],[Hide: Incremental Cost]]=\"\",Table_PI[[#This Row],[Hide: Incremental Cost]]=0,ISTEXT(Table_PI[[#This Row],[Hide: Incremental Cost]])),\"\",Table_PI[[#This Row],[Hide: Incremental Cost]])","v":""},{"$f":"IFERROR(IF(Table_SummaryPI[[#This Row],[Incentive_Customer]]=\"\",\"\",ROUND(Table_SummaryPI[[#This Row],[Incentive_Customer]]/$AM$401*'Customer Information'!$BC$21,2)),0)","v":""},{"$f":"IF(OR(Table_PI[[#This Row],[Annual kWh]]=\"\",Table_PI[[#This Row],[Annual kWh]]=0,ISTEXT(Table_PI[[#This Row],[Annual kWh]])),\"\",Table_PI[[#This Row],[Annual kWh]])","v":""},{"$f":"IF(OR(Table_PI[[#This Row],[Peak kW]]=\"\",Table_PI[[#This Row],[Peak kW]]=0,ISTEXT(Table_PI[[#This Row],[Peak kW]])),\"\",Table_PI[[#This Row],[Peak kW]])","v":""},{"$f":"IF(Table_SummaryPI[[#This Row],[Line No.]]<>\"\",IF(AND(ISNUMBER(FIND(\"Chiller\",Table_SummaryPI[[#This Row],[P_MeasureOption1]],1)),Table_SummaryPI[[#This Row],[ProposedMeasureCategory]]=\"Air-Cooled (Water-Cooled Replacement)\"),$BD$29*Table_SummaryPI[[#This Row],[Size]]*Table_SummaryPI[[#This Row],[Quantity]]*Table_SummaryPI[[#This Row],[EFLHCooling]],\nIF(ISNUMBER(FIND(\"Dishwasher\",Table_SummaryPI[[#This Row],[ProposedMeasureCategory]],1)),$BH$29*Table_SummaryPI[[#This Row],[Quantity]],\nIF(ISNUMBER(FIND(\"Ice Maker\",Table_SummaryPI[[#This Row],[ProposedMeasureCategory]],1)),$BD$31*Table_SummaryPI[[#This Row],[Quantity]],\nIF(ISNUMBER(FIND(\"Spray Valve\",Table_SummaryPI[[#This Row],[ProposedMeasureCategory]],1)),$BH$31*Table_SummaryPI[[#This Row],[Quantity]],\n0)))),\"\")","v":""},{"$f":"IF(OR(Table_PI[[#This Row],[Hide: Electrification kWh]]=\"\",Table_PI[[#This Row],[Hide: Electrification kWh]]=0,ISTEXT(Table_PI[[#This Row],[Hide: Electrification kWh]])),\"\",Table_PI[[#This Row],[Hide: Electrification kWh]])","v":""},{"$f":"IF(OR(Table_PI[[#This Row],[Hide: Electrification GHG]]=\"\",Table_PI[[#This Row],[Hide: Electrification GHG]]=0,ISTEXT(Table_PI[[#This Row],[Hide: Electrification GHG]])),\"\",Table_PI[[#This Row],[Hide: Electrification GHG]])","v":""},{"$f":"IFERROR(IF(Table_SummaryPI[[#This Row],[kWhSavings]]=\"\",\"\",$BH$9*Table_SummaryPI[[#This Row],[kWhSavings]]),0)","v":""},{"$f":"IFERROR(IF(Table_SummaryPI[[#This Row],[kWhSavings]]=\"\",\"\",$BH$14*Table_SummaryPI[[#This Row],[kWhSavings]]),0)","v":""},{"$f":"IFERROR(IF(Table_SummaryPI[[#This Row],[kWhSavings]]=\"\",\"\",$BH$18*Table_SummaryPI[[#This Row],[kWhSavings]]),0)","v":""},{"$f":"IFERROR(IF(Table_SummaryPI[[#This Row],[kWhSavings]]=\"\",\"\",$BH$22*Table_SummaryPI[[#This Row],[kWhSavings]]),0)","v":""}]
[{"$f":"Table_PI[[#This Row],[Line No.]]","v":""},{"$f":"IF(Table_SummaryPI[[#This Row],[MeasureName]]<>\"\",NOT(ISTEXT(Table_PI[[#This Row],[Rebate]])),\"\")","v":""},{"$f":"IF(Table_SummaryPI[[#This Row],[MeassureCategory]]<>\"\",CONCATENATE(Table_SummaryPI[[#This Row],[MeassureCategory]],  \" - \", Table_SummaryPI[[#This Row],[ProposedMeasureCategory]],  \" - \", TEXT(Table_SummaryPI[[#This Row],[Size]],\"#,##0.00\"),\" \",Table_SummaryPI[[#This Row],[SizeUnit]]),\"\")","v":""},{"$f":"SUBSTITUTE(Table_PI[[#This Row],[Measure]],\"     \",\"\",1)","v":""},{"$f":"IF(Table_PI[[#This Row],[List 1]]<>\"\",Table_PI[[#This Row],[List 1]],\"\")","v":""},{"$f":"IF(Table_PI[[#This Row],[List 2]]<>\"\",Table_PI[[#This Row],[List 2]],\"\")","v":""},{"$f":"IF(Table_PI[[#This Row],[List 3]]<>\"\",Table_PI[[#This Row],[List 3]],\"\")","v":""},{"$f":"IF(Table_PI[[#This Row],[Manufacturer]]=\"\",\"\",Table_PI[[#This Row],[Manufacturer]])","v":""},{"$f":"IF(Table_PI[[#This Row],[Model Number]]=\"\",\"\",Table_PI[[#This Row],[Model Number]])","v":""},{"$f":"IF(Table_PI[[#This Row],[Serial Number(s)]]=\"\",\"\",Table_PI[[#This Row],[Serial Number(s)]])","v":""},null,{"$f":"IF(Table_PI[[#This Row],[Size]]=\"\",\"\",Table_PI[[#This Row],[Size]])","v":""},null,null,{"$f":"IF(Table_PI[[#This Row],[Input 1]]<>\"\",Table_PI[[#This Row],[Input 1]],\"\")","v":""},null,null,{"$f":"IF(Table_PI[[#This Row],[Input 2]]<>\"\",Table_PI[[#This Row],[Input 2]],\"\")","v":""},null,null,{"$f":"IF(Table_PI[[#This Row],[Input 3]]<>\"\",Table_PI[[#This Row],[Input 3]],\"\")","v":""},null,null,{"$f":"IF(Table_PI[[#This Row],[Input 4]]<>\"\",Table_PI[[#This Row],[Input 4]],\"\")","v":""},null,null,{"$f":"IF(Table_PI[[#This Row],[Input 4]]<>\"\",Table_PI[[#This Row],[Input 4]],\"\")","v":""},null,null,{"$f":"IF(Table_PI[[#This Row],[Input 4]]<>\"\",Table_PI[[#This Row],[Input 4]],\"\")","v":""},{"$f":"IF(Table_PI[[#This Row],[Quantity]]=\"\",\"\",Table_PI[[#This Row],[Quantity]])","v":""},{"$f":"IF(Table_PI[[#This Row],[Notes]]=\"\",\"\",Table_PI[[#This Row],[Notes]])","v":""},{"$f":"IF(OR(Table_PI[[#This Row],[Hide: Baseline kWh]]=\"\",Table_PI[[#This Row],[Hide: Baseline kWh]]=0,ISTEXT(Table_PI[[#This Row],[Hide: Baseline kWh]])),\"\",Table_PI[[#This Row],[Hide: Baseline kWh]])","v":""},{"$f":"IF(OR(Table_PI[[#This Row],[Hide: Baseline kW]]=\"\",Table_PI[[#This Row],[Hide: Baseline kW]]=0,ISTEXT(Table_PI[[#This Row],[Hide: Baseline kW]])),\"\",Table_PI[[#This Row],[Hide: Baseline kW]])","v":""},{"$f":"IF(OR(Table_PI[[#This Row],[Hide: Proposed kWh]]=\"\",Table_PI[[#This Row],[Hide: Proposed kWh]]=0,ISTEXT(Table_PI[[#This Row],[Hide: Proposed kWh]])),\"\",Table_PI[[#This Row],[Hide: Proposed kWh]])","v":""},{"$f":"IF(OR(Table_PI[[#This Row],[Hide: Proposed kW]]=\"\",Table_PI[[#This Row],[Hide: Proposed kW]]=0,ISTEXT(Table_PI[[#This Row],[Hide: Proposed kW]])),\"\",Table_PI[[#This Row],[Hide: Proposed kW]])","v":""},null,null,{"$f":"IF(OR(Table_PI[[#This Row],[Hide: Rebate]]=\"\",Table_PI[[#This Row],[Hide: Rebate]]=0,ISTEXT(Table_PI[[#This Row],[Hide: Rebate]])),\"\",Table_PI[[#This Row],[Hide: Rebate]])","v":""},null,{"$f":"IF(OR(Table_PI[[#This Row],[Hide: Incremental Cost]]=\"\",Table_PI[[#This Row],[Hide: Incremental Cost]]=0,ISTEXT(Table_PI[[#This Row],[Hide: Incremental Cost]])),\"\",Table_PI[[#This Row],[Hide: Incremental Cost]])","v":""},{"$f":"IFERROR(IF(Table_SummaryPI[[#This Row],[Incentive_Customer]]=\"\",\"\",ROUND(Table_SummaryPI[[#This Row],[Incentive_Customer]]/$AM$401*'Customer Information'!$BC$21,2)),0)","v":""},{"$f":"IF(OR(Table_PI[[#This Row],[Annual kWh]]=\"\",Table_PI[[#This Row],[Annual kWh]]=0,ISTEXT(Table_PI[[#This Row],[Annual kWh]])),\"\",Table_PI[[#This Row],[Annual kWh]])","v":""},{"$f":"IF(OR(Table_PI[[#This Row],[Peak kW]]=\"\",Table_PI[[#This Row],[Peak kW]]=0,ISTEXT(Table_PI[[#This Row],[Peak kW]])),\"\",Table_PI[[#This Row],[Peak kW]])","v":""},{"$f":"IF(Table_SummaryPI[[#This Row],[Line No.]]<>\"\",IF(AND(ISNUMBER(FIND(\"Chiller\",Table_SummaryPI[[#This Row],[P_MeasureOption1]],1)),Table_SummaryPI[[#This Row],[ProposedMeasureCategory]]=\"Air-Cooled (Water-Cooled Replacement)\"),$BD$29*Table_SummaryPI[[#This Row],[Size]]*Table_SummaryPI[[#This Row],[Quantity]]*Table_SummaryPI[[#This Row],[EFLHCooling]],\nIF(ISNUMBER(FIND(\"Dishwasher\",Table_SummaryPI[[#This Row],[ProposedMeasureCategory]],1)),$BH$29*Table_SummaryPI[[#This Row],[Quantity]],\nIF(ISNUMBER(FIND(\"Ice Maker\",Table_SummaryPI[[#This Row],[ProposedMeasureCategory]],1)),$BD$31*Table_SummaryPI[[#This Row],[Quantity]],\nIF(ISNUMBER(FIND(\"Spray Valve\",Table_SummaryPI[[#This Row],[ProposedMeasureCategory]],1)),$BH$31*Table_SummaryPI[[#This Row],[Quantity]],\n0)))),\"\")","v":""},{"$f":"IF(OR(Table_PI[[#This Row],[Hide: Electrification kWh]]=\"\",Table_PI[[#This Row],[Hide: Electrification kWh]]=0,ISTEXT(Table_PI[[#This Row],[Hide: Electrification kWh]])),\"\",Table_PI[[#This Row],[Hide: Electrification kWh]])","v":""},{"$f":"IF(OR(Table_PI[[#This Row],[Hide: Electrification GHG]]=\"\",Table_PI[[#This Row],[Hide: Electrification GHG]]=0,ISTEXT(Table_PI[[#This Row],[Hide: Electrification GHG]])),\"\",Table_PI[[#This Row],[Hide: Electrification GHG]])","v":""},{"$f":"IFERROR(IF(Table_SummaryPI[[#This Row],[kWhSavings]]=\"\",\"\",$BH$9*Table_SummaryPI[[#This Row],[kWhSavings]]),0)","v":""},{"$f":"IFERROR(IF(Table_SummaryPI[[#This Row],[kWhSavings]]=\"\",\"\",$BH$14*Table_SummaryPI[[#This Row],[kWhSavings]]),0)","v":""},{"$f":"IFERROR(IF(Table_SummaryPI[[#This Row],[kWhSavings]]=\"\",\"\",$BH$18*Table_SummaryPI[[#This Row],[kWhSavings]]),0)","v":""},{"$f":"IFERROR(IF(Table_SummaryPI[[#This Row],[kWhSavings]]=\"\",\"\",$BH$22*Table_SummaryPI[[#This Row],[kWhSavings]]),0)","v":""}]
[{"$f":"Table_PI[[#This Row],[Line No.]]","v":""},{"$f":"IF(Table_SummaryPI[[#This Row],[MeasureName]]<>\"\",NOT(ISTEXT(Table_PI[[#This Row],[Rebate]])),\"\")","v":""},{"$f":"IF(Table_SummaryPI[[#This Row],[MeassureCategory]]<>\"\",CONCATENATE(Table_SummaryPI[[#This Row],[MeassureCategory]],  \" - \", Table_SummaryPI[[#This Row],[ProposedMeasureCategory]],  \" - \", TEXT(Table_SummaryPI[[#This Row],[Size]],\"#,##0.00\"),\" \",Table_SummaryPI[[#This Row],[SizeUnit]]),\"\")","v":""},{"$f":"SUBSTITUTE(Table_PI[[#This Row],[Measure]],\"     \",\"\",1)","v":""},{"$f":"IF(Table_PI[[#This Row],[List 1]]<>\"\",Table_PI[[#This Row],[List 1]],\"\")","v":""},{"$f":"IF(Table_PI[[#This Row],[List 2]]<>\"\",Table_PI[[#This Row],[List 2]],\"\")","v":""},{"$f":"IF(Table_PI[[#This Row],[List 3]]<>\"\",Table_PI[[#This Row],[List 3]],\"\")","v":""},{"$f":"IF(Table_PI[[#This Row],[Manufacturer]]=\"\",\"\",Table_PI[[#This Row],[Manufacturer]])","v":""},{"$f":"IF(Table_PI[[#This Row],[Model Number]]=\"\",\"\",Table_PI[[#This Row],[Model Number]])","v":""},{"$f":"IF(Table_PI[[#This Row],[Serial Number(s)]]=\"\",\"\",Table_PI[[#This Row],[Serial Number(s)]])","v":""},null,{"$f":"IF(Table_PI[[#This Row],[Size]]=\"\",\"\",Table_PI[[#This Row],[Size]])","v":""},null,null,{"$f":"IF(Table_PI[[#This Row],[Input 1]]<>\"\",Table_PI[[#This Row],[Input 1]],\"\")","v":""},null,null,{"$f":"IF(Table_PI[[#This Row],[Input 2]]<>\"\",Table_PI[[#This Row],[Input 2]],\"\")","v":""},null,null,{"$f":"IF(Table_PI[[#This Row],[Input 3]]<>\"\",Table_PI[[#This Row],[Input 3]],\"\")","v":""},null,null,{"$f":"IF(Table_PI[[#This Row],[Input 4]]<>\"\",Table_PI[[#This Row],[Input 4]],\"\")","v":""},null,null,{"$f":"IF(Table_PI[[#This Row],[Input 4]]<>\"\",Table_PI[[#This Row],[Input 4]],\"\")","v":""},null,null,{"$f":"IF(Table_PI[[#This Row],[Input 4]]<>\"\",Table_PI[[#This Row],[Input 4]],\"\")","v":""},{"$f":"IF(Table_PI[[#This Row],[Quantity]]=\"\",\"\",Table_PI[[#This Row],[Quantity]])","v":""},{"$f":"IF(Table_PI[[#This Row],[Notes]]=\"\",\"\",Table_PI[[#This Row],[Notes]])","v":""},{"$f":"IF(OR(Table_PI[[#This Row],[Hide: Baseline kWh]]=\"\",Table_PI[[#This Row],[Hide: Baseline kWh]]=0,ISTEXT(Table_PI[[#This Row],[Hide: Baseline kWh]])),\"\",Table_PI[[#This Row],[Hide: Baseline kWh]])","v":""},{"$f":"IF(OR(Table_PI[[#This Row],[Hide: Baseline kW]]=\"\",Table_PI[[#This Row],[Hide: Baseline kW]]=0,ISTEXT(Table_PI[[#This Row],[Hide: Baseline kW]])),\"\",Table_PI[[#This Row],[Hide: Baseline kW]])","v":""},{"$f":"IF(OR(Table_PI[[#This Row],[Hide: Proposed kWh]]=\"\",Table_PI[[#This Row],[Hide: Proposed kWh]]=0,ISTEXT(Table_PI[[#This Row],[Hide: Proposed kWh]])),\"\",Table_PI[[#This Row],[Hide: Proposed kWh]])","v":""},{"$f":"IF(OR(Table_PI[[#This Row],[Hide: Proposed kW]]=\"\",Table_PI[[#This Row],[Hide: Proposed kW]]=0,ISTEXT(Table_PI[[#This Row],[Hide: Proposed kW]])),\"\",Table_PI[[#This Row],[Hide: Proposed kW]])","v":""},null,null,{"$f":"IF(OR(Table_PI[[#This Row],[Hide: Rebate]]=\"\",Table_PI[[#This Row],[Hide: Rebate]]=0,ISTEXT(Table_PI[[#This Row],[Hide: Rebate]])),\"\",Table_PI[[#This Row],[Hide: Rebate]])","v":""},null,{"$f":"IF(OR(Table_PI[[#This Row],[Hide: Incremental Cost]]=\"\",Table_PI[[#This Row],[Hide: Incremental Cost]]=0,ISTEXT(Table_PI[[#This Row],[Hide: Incremental Cost]])),\"\",Table_PI[[#This Row],[Hide: Incremental Cost]])","v":""},{"$f":"IFERROR(IF(Table_SummaryPI[[#This Row],[Incentive_Customer]]=\"\",\"\",ROUND(Table_SummaryPI[[#This Row],[Incentive_Customer]]/$AM$401*'Customer Information'!$BC$21,2)),0)","v":""},{"$f":"IF(OR(Table_PI[[#This Row],[Annual kWh]]=\"\",Table_PI[[#This Row],[Annual kWh]]=0,ISTEXT(Table_PI[[#This Row],[Annual kWh]])),\"\",Table_PI[[#This Row],[Annual kWh]])","v":""},{"$f":"IF(OR(Table_PI[[#This Row],[Peak kW]]=\"\",Table_PI[[#This Row],[Peak kW]]=0,ISTEXT(Table_PI[[#This Row],[Peak kW]])),\"\",Table_PI[[#This Row],[Peak kW]])","v":""},{"$f":"IF(Table_SummaryPI[[#This Row],[Line No.]]<>\"\",IF(AND(ISNUMBER(FIND(\"Chiller\",Table_SummaryPI[[#This Row],[P_MeasureOption1]],1)),Table_SummaryPI[[#This Row],[ProposedMeasureCategory]]=\"Air-Cooled (Water-Cooled Replacement)\"),$BD$29*Table_SummaryPI[[#This Row],[Size]]*Table_SummaryPI[[#This Row],[Quantity]]*Table_SummaryPI[[#This Row],[EFLHCooling]],\nIF(ISNUMBER(FIND(\"Dishwasher\",Table_SummaryPI[[#This Row],[ProposedMeasureCategory]],1)),$BH$29*Table_SummaryPI[[#This Row],[Quantity]],\nIF(ISNUMBER(FIND(\"Ice Maker\",Table_SummaryPI[[#This Row],[ProposedMeasureCategory]],1)),$BD$31*Table_SummaryPI[[#This Row],[Quantity]],\nIF(ISNUMBER(FIND(\"Spray Valve\",Table_SummaryPI[[#This Row],[ProposedMeasureCategory]],1)),$BH$31*Table_SummaryPI[[#This Row],[Quantity]],\n0)))),\"\")","v":""},{"$f":"IF(OR(Table_PI[[#This Row],[Hide: Electrification kWh]]=\"\",Table_PI[[#This Row],[Hide: Electrification kWh]]=0,ISTEXT(Table_PI[[#This Row],[Hide: Electrification kWh]])),\"\",Table_PI[[#This Row],[Hide: Electrification kWh]])","v":""},{"$f":"IF(OR(Table_PI[[#This Row],[Hide: Electrification GHG]]=\"\",Table_PI[[#This Row],[Hide: Electrification GHG]]=0,ISTEXT(Table_PI[[#This Row],[Hide: Electrification GHG]])),\"\",Table_PI[[#This Row],[Hide: Electrification GHG]])","v":""},{"$f":"IFERROR(IF(Table_SummaryPI[[#This Row],[kWhSavings]]=\"\",\"\",$BH$9*Table_SummaryPI[[#This Row],[kWhSavings]]),0)","v":""},{"$f":"IFERROR(IF(Table_SummaryPI[[#This Row],[kWhSavings]]=\"\",\"\",$BH$14*Table_SummaryPI[[#This Row],[kWhSavings]]),0)","v":""},{"$f":"IFERROR(IF(Table_SummaryPI[[#This Row],[kWhSavings]]=\"\",\"\",$BH$18*Table_SummaryPI[[#This Row],[kWhSavings]]),0)","v":""},{"$f":"IFERROR(IF(Table_SummaryPI[[#This Row],[kWhSavings]]=\"\",\"\",$BH$22*Table_SummaryPI[[#This Row],[kWhSavings]]),0)","v":""}]
[{"$f":"Table_PI[[#This Row],[Line No.]]","v":""},{"$f":"IF(Table_SummaryPI[[#This Row],[MeasureName]]<>\"\",NOT(ISTEXT(Table_PI[[#This Row],[Rebate]])),\"\")","v":""},{"$f":"IF(Table_SummaryPI[[#This Row],[MeassureCategory]]<>\"\",CONCATENATE(Table_SummaryPI[[#This Row],[MeassureCategory]],  \" - \", Table_SummaryPI[[#This Row],[ProposedMeasureCategory]],  \" - \", TEXT(Table_SummaryPI[[#This Row],[Size]],\"#,##0.00\"),\" \",Table_SummaryPI[[#This Row],[SizeUnit]]),\"\")","v":""},{"$f":"SUBSTITUTE(Table_PI[[#This Row],[Measure]],\"     \",\"\",1)","v":""},{"$f":"IF(Table_PI[[#This Row],[List 1]]<>\"\",Table_PI[[#This Row],[List 1]],\"\")","v":""},{"$f":"IF(Table_PI[[#This Row],[List 2]]<>\"\",Table_PI[[#This Row],[List 2]],\"\")","v":""},{"$f":"IF(Table_PI[[#This Row],[List 3]]<>\"\",Table_PI[[#This Row],[List 3]],\"\")","v":""},{"$f":"IF(Table_PI[[#This Row],[Manufacturer]]=\"\",\"\",Table_PI[[#This Row],[Manufacturer]])","v":""},{"$f":"IF(Table_PI[[#This Row],[Model Number]]=\"\",\"\",Table_PI[[#This Row],[Model Number]])","v":""},{"$f":"IF(Table_PI[[#This Row],[Serial Number(s)]]=\"\",\"\",Table_PI[[#This Row],[Serial Number(s)]])","v":""},null,{"$f":"IF(Table_PI[[#This Row],[Size]]=\"\",\"\",Table_PI[[#This Row],[Size]])","v":""},null,null,{"$f":"IF(Table_PI[[#This Row],[Input 1]]<>\"\",Table_PI[[#This Row],[Input 1]],\"\")","v":""},null,null,{"$f":"IF(Table_PI[[#This Row],[Input 2]]<>\"\",Table_PI[[#This Row],[Input 2]],\"\")","v":""},null,null,{"$f":"IF(Table_PI[[#This Row],[Input 3]]<>\"\",Table_PI[[#This Row],[Input 3]],\"\")","v":""},null,null,{"$f":"IF(Table_PI[[#This Row],[Input 4]]<>\"\",Table_PI[[#This Row],[Input 4]],\"\")","v":""},null,null,{"$f":"IF(Table_PI[[#This Row],[Input 4]]<>\"\",Table_PI[[#This Row],[Input 4]],\"\")","v":""},null,null,{"$f":"IF(Table_PI[[#This Row],[Input 4]]<>\"\",Table_PI[[#This Row],[Input 4]],\"\")","v":""},{"$f":"IF(Table_PI[[#This Row],[Quantity]]=\"\",\"\",Table_PI[[#This Row],[Quantity]])","v":""},{"$f":"IF(Table_PI[[#This Row],[Notes]]=\"\",\"\",Table_PI[[#This Row],[Notes]])","v":""},{"$f":"IF(OR(Table_PI[[#This Row],[Hide: Baseline kWh]]=\"\",Table_PI[[#This Row],[Hide: Baseline kWh]]=0,ISTEXT(Table_PI[[#This Row],[Hide: Baseline kWh]])),\"\",Table_PI[[#This Row],[Hide: Baseline kWh]])","v":""},{"$f":"IF(OR(Table_PI[[#This Row],[Hide: Baseline kW]]=\"\",Table_PI[[#This Row],[Hide: Baseline kW]]=0,ISTEXT(Table_PI[[#This Row],[Hide: Baseline kW]])),\"\",Table_PI[[#This Row],[Hide: Baseline kW]])","v":""},{"$f":"IF(OR(Table_PI[[#This Row],[Hide: Proposed kWh]]=\"\",Table_PI[[#This Row],[Hide: Proposed kWh]]=0,ISTEXT(Table_PI[[#This Row],[Hide: Proposed kWh]])),\"\",Table_PI[[#This Row],[Hide: Proposed kWh]])","v":""},{"$f":"IF(OR(Table_PI[[#This Row],[Hide: Proposed kW]]=\"\",Table_PI[[#This Row],[Hide: Proposed kW]]=0,ISTEXT(Table_PI[[#This Row],[Hide: Proposed kW]])),\"\",Table_PI[[#This Row],[Hide: Proposed kW]])","v":""},null,null,{"$f":"IF(OR(Table_PI[[#This Row],[Hide: Rebate]]=\"\",Table_PI[[#This Row],[Hide: Rebate]]=0,ISTEXT(Table_PI[[#This Row],[Hide: Rebate]])),\"\",Table_PI[[#This Row],[Hide: Rebate]])","v":""},null,{"$f":"IF(OR(Table_PI[[#This Row],[Hide: Incremental Cost]]=\"\",Table_PI[[#This Row],[Hide: Incremental Cost]]=0,ISTEXT(Table_PI[[#This Row],[Hide: Incremental Cost]])),\"\",Table_PI[[#This Row],[Hide: Incremental Cost]])","v":""},{"$f":"IFERROR(IF(Table_SummaryPI[[#This Row],[Incentive_Customer]]=\"\",\"\",ROUND(Table_SummaryPI[[#This Row],[Incentive_Customer]]/$AM$401*'Customer Information'!$BC$21,2)),0)","v":""},{"$f":"IF(OR(Table_PI[[#This Row],[Annual kWh]]=\"\",Table_PI[[#This Row],[Annual kWh]]=0,ISTEXT(Table_PI[[#This Row],[Annual kWh]])),\"\",Table_PI[[#This Row],[Annual kWh]])","v":""},{"$f":"IF(OR(Table_PI[[#This Row],[Peak kW]]=\"\",Table_PI[[#This Row],[Peak kW]]=0,ISTEXT(Table_PI[[#This Row],[Peak kW]])),\"\",Table_PI[[#This Row],[Peak kW]])","v":""},{"$f":"IF(Table_SummaryPI[[#This Row],[Line No.]]<>\"\",IF(AND(ISNUMBER(FIND(\"Chiller\",Table_SummaryPI[[#This Row],[P_MeasureOption1]],1)),Table_SummaryPI[[#This Row],[ProposedMeasureCategory]]=\"Air-Cooled (Water-Cooled Replacement)\"),$BD$29*Table_SummaryPI[[#This Row],[Size]]*Table_SummaryPI[[#This Row],[Quantity]]*Table_SummaryPI[[#This Row],[EFLHCooling]],\nIF(ISNUMBER(FIND(\"Dishwasher\",Table_SummaryPI[[#This Row],[ProposedMeasureCategory]],1)),$BH$29*Table_SummaryPI[[#This Row],[Quantity]],\nIF(ISNUMBER(FIND(\"Ice Maker\",Table_SummaryPI[[#This Row],[ProposedMeasureCategory]],1)),$BD$31*Table_SummaryPI[[#This Row],[Quantity]],\nIF(ISNUMBER(FIND(\"Spray Valve\",Table_SummaryPI[[#This Row],[ProposedMeasureCategory]],1)),$BH$31*Table_SummaryPI[[#This Row],[Quantity]],\n0)))),\"\")","v":""},{"$f":"IF(OR(Table_PI[[#This Row],[Hide: Electrification kWh]]=\"\",Table_PI[[#This Row],[Hide: Electrification kWh]]=0,ISTEXT(Table_PI[[#This Row],[Hide: Electrification kWh]])),\"\",Table_PI[[#This Row],[Hide: Electrification kWh]])","v":""},{"$f":"IF(OR(Table_PI[[#This Row],[Hide: Electrification GHG]]=\"\",Table_PI[[#This Row],[Hide: Electrification GHG]]=0,ISTEXT(Table_PI[[#This Row],[Hide: Electrification GHG]])),\"\",Table_PI[[#This Row],[Hide: Electrification GHG]])","v":""},{"$f":"IFERROR(IF(Table_SummaryPI[[#This Row],[kWhSavings]]=\"\",\"\",$BH$9*Table_SummaryPI[[#This Row],[kWhSavings]]),0)","v":""},{"$f":"IFERROR(IF(Table_SummaryPI[[#This Row],[kWhSavings]]=\"\",\"\",$BH$14*Table_SummaryPI[[#This Row],[kWhSavings]]),0)","v":""},{"$f":"IFERROR(IF(Table_SummaryPI[[#This Row],[kWhSavings]]=\"\",\"\",$BH$18*Table_SummaryPI[[#This Row],[kWhSavings]]),0)","v":""},{"$f":"IFERROR(IF(Table_SummaryPI[[#This Row],[kWhSavings]]=\"\",\"\",$BH$22*Table_SummaryPI[[#This Row],[kWhSavings]]),0)","v":""}]
[{"$f":"Table_PI[[#This Row],[Line No.]]","v":""},{"$f":"IF(Table_SummaryPI[[#This Row],[MeasureName]]<>\"\",NOT(ISTEXT(Table_PI[[#This Row],[Rebate]])),\"\")","v":""},{"$f":"IF(Table_SummaryPI[[#This Row],[MeassureCategory]]<>\"\",CONCATENATE(Table_SummaryPI[[#This Row],[MeassureCategory]],  \" - \", Table_SummaryPI[[#This Row],[ProposedMeasureCategory]],  \" - \", TEXT(Table_SummaryPI[[#This Row],[Size]],\"#,##0.00\"),\" \",Table_SummaryPI[[#This Row],[SizeUnit]]),\"\")","v":""},{"$f":"SUBSTITUTE(Table_PI[[#This Row],[Measure]],\"     \",\"\",1)","v":""},{"$f":"IF(Table_PI[[#This Row],[List 1]]<>\"\",Table_PI[[#This Row],[List 1]],\"\")","v":""},{"$f":"IF(Table_PI[[#This Row],[List 2]]<>\"\",Table_PI[[#This Row],[List 2]],\"\")","v":""},{"$f":"IF(Table_PI[[#This Row],[List 3]]<>\"\",Table_PI[[#This Row],[List 3]],\"\")","v":""},{"$f":"IF(Table_PI[[#This Row],[Manufacturer]]=\"\",\"\",Table_PI[[#This Row],[Manufacturer]])","v":""},{"$f":"IF(Table_PI[[#This Row],[Model Number]]=\"\",\"\",Table_PI[[#This Row],[Model Number]])","v":""},{"$f":"IF(Table_PI[[#This Row],[Serial Number(s)]]=\"\",\"\",Table_PI[[#This Row],[Serial Number(s)]])","v":""},null,{"$f":"IF(Table_PI[[#This Row],[Size]]=\"\",\"\",Table_PI[[#This Row],[Size]])","v":""},null,null,{"$f":"IF(Table_PI[[#This Row],[Input 1]]<>\"\",Table_PI[[#This Row],[Input 1]],\"\")","v":""},null,null,{"$f":"IF(Table_PI[[#This Row],[Input 2]]<>\"\",Table_PI[[#This Row],[Input 2]],\"\")","v":""},null,null,{"$f":"IF(Table_PI[[#This Row],[Input 3]]<>\"\",Table_PI[[#This Row],[Input 3]],\"\")","v":""},null,null,{"$f":"IF(Table_PI[[#This Row],[Input 4]]<>\"\",Table_PI[[#This Row],[Input 4]],\"\")","v":""},null,null,{"$f":"IF(Table_PI[[#This Row],[Input 4]]<>\"\",Table_PI[[#This Row],[Input 4]],\"\")","v":""},null,null,{"$f":"IF(Table_PI[[#This Row],[Input 4]]<>\"\",Table_PI[[#This Row],[Input 4]],\"\")","v":""},{"$f":"IF(Table_PI[[#This Row],[Quantity]]=\"\",\"\",Table_PI[[#This Row],[Quantity]])","v":""},{"$f":"IF(Table_PI[[#This Row],[Notes]]=\"\",\"\",Table_PI[[#This Row],[Notes]])","v":""},{"$f":"IF(OR(Table_PI[[#This Row],[Hide: Baseline kWh]]=\"\",Table_PI[[#This Row],[Hide: Baseline kWh]]=0,ISTEXT(Table_PI[[#This Row],[Hide: Baseline kWh]])),\"\",Table_PI[[#This Row],[Hide: Baseline kWh]])","v":""},{"$f":"IF(OR(Table_PI[[#This Row],[Hide: Baseline kW]]=\"\",Table_PI[[#This Row],[Hide: Baseline kW]]=0,ISTEXT(Table_PI[[#This Row],[Hide: Baseline kW]])),\"\",Table_PI[[#This Row],[Hide: Baseline kW]])","v":""},{"$f":"IF(OR(Table_PI[[#This Row],[Hide: Proposed kWh]]=\"\",Table_PI[[#This Row],[Hide: Proposed kWh]]=0,ISTEXT(Table_PI[[#This Row],[Hide: Proposed kWh]])),\"\",Table_PI[[#This Row],[Hide: Proposed kWh]])","v":""},{"$f":"IF(OR(Table_PI[[#This Row],[Hide: Proposed kW]]=\"\",Table_PI[[#This Row],[Hide: Proposed kW]]=0,ISTEXT(Table_PI[[#This Row],[Hide: Proposed kW]])),\"\",Table_PI[[#This Row],[Hide: Proposed kW]])","v":""},null,null,{"$f":"IF(OR(Table_PI[[#This Row],[Hide: Rebate]]=\"\",Table_PI[[#This Row],[Hide: Rebate]]=0,ISTEXT(Table_PI[[#This Row],[Hide: Rebate]])),\"\",Table_PI[[#This Row],[Hide: Rebate]])","v":""},null,{"$f":"IF(OR(Table_PI[[#This Row],[Hide: Incremental Cost]]=\"\",Table_PI[[#This Row],[Hide: Incremental Cost]]=0,ISTEXT(Table_PI[[#This Row],[Hide: Incremental Cost]])),\"\",Table_PI[[#This Row],[Hide: Incremental Cost]])","v":""},{"$f":"IFERROR(IF(Table_SummaryPI[[#This Row],[Incentive_Customer]]=\"\",\"\",ROUND(Table_SummaryPI[[#This Row],[Incentive_Customer]]/$AM$401*'Customer Information'!$BC$21,2)),0)","v":""},{"$f":"IF(OR(Table_PI[[#This Row],[Annual kWh]]=\"\",Table_PI[[#This Row],[Annual kWh]]=0,ISTEXT(Table_PI[[#This Row],[Annual kWh]])),\"\",Table_PI[[#This Row],[Annual kWh]])","v":""},{"$f":"IF(OR(Table_PI[[#This Row],[Peak kW]]=\"\",Table_PI[[#This Row],[Peak kW]]=0,ISTEXT(Table_PI[[#This Row],[Peak kW]])),\"\",Table_PI[[#This Row],[Peak kW]])","v":""},{"$f":"IF(Table_SummaryPI[[#This Row],[Line No.]]<>\"\",IF(AND(ISNUMBER(FIND(\"Chiller\",Table_SummaryPI[[#This Row],[P_MeasureOption1]],1)),Table_SummaryPI[[#This Row],[ProposedMeasureCategory]]=\"Air-Cooled (Water-Cooled Replacement)\"),$BD$29*Table_SummaryPI[[#This Row],[Size]]*Table_SummaryPI[[#This Row],[Quantity]]*Table_SummaryPI[[#This Row],[EFLHCooling]],\nIF(ISNUMBER(FIND(\"Dishwasher\",Table_SummaryPI[[#This Row],[ProposedMeasureCategory]],1)),$BH$29*Table_SummaryPI[[#This Row],[Quantity]],\nIF(ISNUMBER(FIND(\"Ice Maker\",Table_SummaryPI[[#This Row],[ProposedMeasureCategory]],1)),$BD$31*Table_SummaryPI[[#This Row],[Quantity]],\nIF(ISNUMBER(FIND(\"Spray Valve\",Table_SummaryPI[[#This Row],[ProposedMeasureCategory]],1)),$BH$31*Table_SummaryPI[[#This Row],[Quantity]],\n0)))),\"\")","v":""},{"$f":"IF(OR(Table_PI[[#This Row],[Hide: Electrification kWh]]=\"\",Table_PI[[#This Row],[Hide: Electrification kWh]]=0,ISTEXT(Table_PI[[#This Row],[Hide: Electrification kWh]])),\"\",Table_PI[[#This Row],[Hide: Electrification kWh]])","v":""},{"$f":"IF(OR(Table_PI[[#This Row],[Hide: Electrification GHG]]=\"\",Table_PI[[#This Row],[Hide: Electrification GHG]]=0,ISTEXT(Table_PI[[#This Row],[Hide: Electrification GHG]])),\"\",Table_PI[[#This Row],[Hide: Electrification GHG]])","v":""},{"$f":"IFERROR(IF(Table_SummaryPI[[#This Row],[kWhSavings]]=\"\",\"\",$BH$9*Table_SummaryPI[[#This Row],[kWhSavings]]),0)","v":""},{"$f":"IFERROR(IF(Table_SummaryPI[[#This Row],[kWhSavings]]=\"\",\"\",$BH$14*Table_SummaryPI[[#This Row],[kWhSavings]]),0)","v":""},{"$f":"IFERROR(IF(Table_SummaryPI[[#This Row],[kWhSavings]]=\"\",\"\",$BH$18*Table_SummaryPI[[#This Row],[kWhSavings]]),0)","v":""},{"$f":"IFERROR(IF(Table_SummaryPI[[#This Row],[kWhSavings]]=\"\",\"\",$BH$22*Table_SummaryPI[[#This Row],[kWhSavings]]),0)","v":""}]
[{"$f":"Table_PI[[#This Row],[Line No.]]","v":""},{"$f":"IF(Table_SummaryPI[[#This Row],[MeasureName]]<>\"\",NOT(ISTEXT(Table_PI[[#This Row],[Rebate]])),\"\")","v":""},{"$f":"IF(Table_SummaryPI[[#This Row],[MeassureCategory]]<>\"\",CONCATENATE(Table_SummaryPI[[#This Row],[MeassureCategory]],  \" - \", Table_SummaryPI[[#This Row],[ProposedMeasureCategory]],  \" - \", TEXT(Table_SummaryPI[[#This Row],[Size]],\"#,##0.00\"),\" \",Table_SummaryPI[[#This Row],[SizeUnit]]),\"\")","v":""},{"$f":"SUBSTITUTE(Table_PI[[#This Row],[Measure]],\"     \",\"\",1)","v":""},{"$f":"IF(Table_PI[[#This Row],[List 1]]<>\"\",Table_PI[[#This Row],[List 1]],\"\")","v":""},{"$f":"IF(Table_PI[[#This Row],[List 2]]<>\"\",Table_PI[[#This Row],[List 2]],\"\")","v":""},{"$f":"IF(Table_PI[[#This Row],[List 3]]<>\"\",Table_PI[[#This Row],[List 3]],\"\")","v":""},{"$f":"IF(Table_PI[[#This Row],[Manufacturer]]=\"\",\"\",Table_PI[[#This Row],[Manufacturer]])","v":""},{"$f":"IF(Table_PI[[#This Row],[Model Number]]=\"\",\"\",Table_PI[[#This Row],[Model Number]])","v":""},{"$f":"IF(Table_PI[[#This Row],[Serial Number(s)]]=\"\",\"\",Table_PI[[#This Row],[Serial Number(s)]])","v":""},null,{"$f":"IF(Table_PI[[#This Row],[Size]]=\"\",\"\",Table_PI[[#This Row],[Size]])","v":""},null,null,{"$f":"IF(Table_PI[[#This Row],[Input 1]]<>\"\",Table_PI[[#This Row],[Input 1]],\"\")","v":""},null,null,{"$f":"IF(Table_PI[[#This Row],[Input 2]]<>\"\",Table_PI[[#This Row],[Input 2]],\"\")","v":""},null,null,{"$f":"IF(Table_PI[[#This Row],[Input 3]]<>\"\",Table_PI[[#This Row],[Input 3]],\"\")","v":""},null,null,{"$f":"IF(Table_PI[[#This Row],[Input 4]]<>\"\",Table_PI[[#This Row],[Input 4]],\"\")","v":""},null,null,{"$f":"IF(Table_PI[[#This Row],[Input 4]]<>\"\",Table_PI[[#This Row],[Input 4]],\"\")","v":""},null,null,{"$f":"IF(Table_PI[[#This Row],[Input 4]]<>\"\",Table_PI[[#This Row],[Input 4]],\"\")","v":""},{"$f":"IF(Table_PI[[#This Row],[Quantity]]=\"\",\"\",Table_PI[[#This Row],[Quantity]])","v":""},{"$f":"IF(Table_PI[[#This Row],[Notes]]=\"\",\"\",Table_PI[[#This Row],[Notes]])","v":""},{"$f":"IF(OR(Table_PI[[#This Row],[Hide: Baseline kWh]]=\"\",Table_PI[[#This Row],[Hide: Baseline kWh]]=0,ISTEXT(Table_PI[[#This Row],[Hide: Baseline kWh]])),\"\",Table_PI[[#This Row],[Hide: Baseline kWh]])","v":""},{"$f":"IF(OR(Table_PI[[#This Row],[Hide: Baseline kW]]=\"\",Table_PI[[#This Row],[Hide: Baseline kW]]=0,ISTEXT(Table_PI[[#This Row],[Hide: Baseline kW]])),\"\",Table_PI[[#This Row],[Hide: Baseline kW]])","v":""},{"$f":"IF(OR(Table_PI[[#This Row],[Hide: Proposed kWh]]=\"\",Table_PI[[#This Row],[Hide: Proposed kWh]]=0,ISTEXT(Table_PI[[#This Row],[Hide: Proposed kWh]])),\"\",Table_PI[[#This Row],[Hide: Proposed kWh]])","v":""},{"$f":"IF(OR(Table_PI[[#This Row],[Hide: Proposed kW]]=\"\",Table_PI[[#This Row],[Hide: Proposed kW]]=0,ISTEXT(Table_PI[[#This Row],[Hide: Proposed kW]])),\"\",Table_PI[[#This Row],[Hide: Proposed kW]])","v":""},null,null,{"$f":"IF(OR(Table_PI[[#This Row],[Hide: Rebate]]=\"\",Table_PI[[#This Row],[Hide: Rebate]]=0,ISTEXT(Table_PI[[#This Row],[Hide: Rebate]])),\"\",Table_PI[[#This Row],[Hide: Rebate]])","v":""},null,{"$f":"IF(OR(Table_PI[[#This Row],[Hide: Incremental Cost]]=\"\",Table_PI[[#This Row],[Hide: Incremental Cost]]=0,ISTEXT(Table_PI[[#This Row],[Hide: Incremental Cost]])),\"\",Table_PI[[#This Row],[Hide: Incremental Cost]])","v":""},{"$f":"IFERROR(IF(Table_SummaryPI[[#This Row],[Incentive_Customer]]=\"\",\"\",ROUND(Table_SummaryPI[[#This Row],[Incentive_Customer]]/$AM$401*'Customer Information'!$BC$21,2)),0)","v":""},{"$f":"IF(OR(Table_PI[[#This Row],[Annual kWh]]=\"\",Table_PI[[#This Row],[Annual kWh]]=0,ISTEXT(Table_PI[[#This Row],[Annual kWh]])),\"\",Table_PI[[#This Row],[Annual kWh]])","v":""},{"$f":"IF(OR(Table_PI[[#This Row],[Peak kW]]=\"\",Table_PI[[#This Row],[Peak kW]]=0,ISTEXT(Table_PI[[#This Row],[Peak kW]])),\"\",Table_PI[[#This Row],[Peak kW]])","v":""},{"$f":"IF(Table_SummaryPI[[#This Row],[Line No.]]<>\"\",IF(AND(ISNUMBER(FIND(\"Chiller\",Table_SummaryPI[[#This Row],[P_MeasureOption1]],1)),Table_SummaryPI[[#This Row],[ProposedMeasureCategory]]=\"Air-Cooled (Water-Cooled Replacement)\"),$BD$29*Table_SummaryPI[[#This Row],[Size]]*Table_SummaryPI[[#This Row],[Quantity]]*Table_SummaryPI[[#This Row],[EFLHCooling]],\nIF(ISNUMBER(FIND(\"Dishwasher\",Table_SummaryPI[[#This Row],[ProposedMeasureCategory]],1)),$BH$29*Table_SummaryPI[[#This Row],[Quantity]],\nIF(ISNUMBER(FIND(\"Ice Maker\",Table_SummaryPI[[#This Row],[ProposedMeasureCategory]],1)),$BD$31*Table_SummaryPI[[#This Row],[Quantity]],\nIF(ISNUMBER(FIND(\"Spray Valve\",Table_SummaryPI[[#This Row],[ProposedMeasureCategory]],1)),$BH$31*Table_SummaryPI[[#This Row],[Quantity]],\n0)))),\"\")","v":""},{"$f":"IF(OR(Table_PI[[#This Row],[Hide: Electrification kWh]]=\"\",Table_PI[[#This Row],[Hide: Electrification kWh]]=0,ISTEXT(Table_PI[[#This Row],[Hide: Electrification kWh]])),\"\",Table_PI[[#This Row],[Hide: Electrification kWh]])","v":""},{"$f":"IF(OR(Table_PI[[#This Row],[Hide: Electrification GHG]]=\"\",Table_PI[[#This Row],[Hide: Electrification GHG]]=0,ISTEXT(Table_PI[[#This Row],[Hide: Electrification GHG]])),\"\",Table_PI[[#This Row],[Hide: Electrification GHG]])","v":""},{"$f":"IFERROR(IF(Table_SummaryPI[[#This Row],[kWhSavings]]=\"\",\"\",$BH$9*Table_SummaryPI[[#This Row],[kWhSavings]]),0)","v":""},{"$f":"IFERROR(IF(Table_SummaryPI[[#This Row],[kWhSavings]]=\"\",\"\",$BH$14*Table_SummaryPI[[#This Row],[kWhSavings]]),0)","v":""},{"$f":"IFERROR(IF(Table_SummaryPI[[#This Row],[kWhSavings]]=\"\",\"\",$BH$18*Table_SummaryPI[[#This Row],[kWhSavings]]),0)","v":""},{"$f":"IFERROR(IF(Table_SummaryPI[[#This Row],[kWhSavings]]=\"\",\"\",$BH$22*Table_SummaryPI[[#This Row],[kWhSavings]]),0)","v":""}]
[{"$f":"Table_PI[[#This Row],[Line No.]]","v":""},{"$f":"IF(Table_SummaryPI[[#This Row],[MeasureName]]<>\"\",NOT(ISTEXT(Table_PI[[#This Row],[Rebate]])),\"\")","v":""},{"$f":"IF(Table_SummaryPI[[#This Row],[MeassureCategory]]<>\"\",CONCATENATE(Table_SummaryPI[[#This Row],[MeassureCategory]],  \" - \", Table_SummaryPI[[#This Row],[ProposedMeasureCategory]],  \" - \", TEXT(Table_SummaryPI[[#This Row],[Size]],\"#,##0.00\"),\" \",Table_SummaryPI[[#This Row],[SizeUnit]]),\"\")","v":""},{"$f":"SUBSTITUTE(Table_PI[[#This Row],[Measure]],\"     \",\"\",1)","v":""},{"$f":"IF(Table_PI[[#This Row],[List 1]]<>\"\",Table_PI[[#This Row],[List 1]],\"\")","v":""},{"$f":"IF(Table_PI[[#This Row],[List 2]]<>\"\",Table_PI[[#This Row],[List 2]],\"\")","v":""},{"$f":"IF(Table_PI[[#This Row],[List 3]]<>\"\",Table_PI[[#This Row],[List 3]],\"\")","v":""},{"$f":"IF(Table_PI[[#This Row],[Manufacturer]]=\"\",\"\",Table_PI[[#This Row],[Manufacturer]])","v":""},{"$f":"IF(Table_PI[[#This Row],[Model Number]]=\"\",\"\",Table_PI[[#This Row],[Model Number]])","v":""},{"$f":"IF(Table_PI[[#This Row],[Serial Number(s)]]=\"\",\"\",Table_PI[[#This Row],[Serial Number(s)]])","v":""},null,{"$f":"IF(Table_PI[[#This Row],[Size]]=\"\",\"\",Table_PI[[#This Row],[Size]])","v":""},null,null,{"$f":"IF(Table_PI[[#This Row],[Input 1]]<>\"\",Table_PI[[#This Row],[Input 1]],\"\")","v":""},null,null,{"$f":"IF(Table_PI[[#This Row],[Input 2]]<>\"\",Table_PI[[#This Row],[Input 2]],\"\")","v":""},null,null,{"$f":"IF(Table_PI[[#This Row],[Input 3]]<>\"\",Table_PI[[#This Row],[Input 3]],\"\")","v":""},null,null,{"$f":"IF(Table_PI[[#This Row],[Input 4]]<>\"\",Table_PI[[#This Row],[Input 4]],\"\")","v":""},null,null,{"$f":"IF(Table_PI[[#This Row],[Input 4]]<>\"\",Table_PI[[#This Row],[Input 4]],\"\")","v":""},null,null,{"$f":"IF(Table_PI[[#This Row],[Input 4]]<>\"\",Table_PI[[#This Row],[Input 4]],\"\")","v":""},{"$f":"IF(Table_PI[[#This Row],[Quantity]]=\"\",\"\",Table_PI[[#This Row],[Quantity]])","v":""},{"$f":"IF(Table_PI[[#This Row],[Notes]]=\"\",\"\",Table_PI[[#This Row],[Notes]])","v":""},{"$f":"IF(OR(Table_PI[[#This Row],[Hide: Baseline kWh]]=\"\",Table_PI[[#This Row],[Hide: Baseline kWh]]=0,ISTEXT(Table_PI[[#This Row],[Hide: Baseline kWh]])),\"\",Table_PI[[#This Row],[Hide: Baseline kWh]])","v":""},{"$f":"IF(OR(Table_PI[[#This Row],[Hide: Baseline kW]]=\"\",Table_PI[[#This Row],[Hide: Baseline kW]]=0,ISTEXT(Table_PI[[#This Row],[Hide: Baseline kW]])),\"\",Table_PI[[#This Row],[Hide: Baseline kW]])","v":""},{"$f":"IF(OR(Table_PI[[#This Row],[Hide: Proposed kWh]]=\"\",Table_PI[[#This Row],[Hide: Proposed kWh]]=0,ISTEXT(Table_PI[[#This Row],[Hide: Proposed kWh]])),\"\",Table_PI[[#This Row],[Hide: Proposed kWh]])","v":""},{"$f":"IF(OR(Table_PI[[#This Row],[Hide: Proposed kW]]=\"\",Table_PI[[#This Row],[Hide: Proposed kW]]=0,ISTEXT(Table_PI[[#This Row],[Hide: Proposed kW]])),\"\",Table_PI[[#This Row],[Hide: Proposed kW]])","v":""},null,null,{"$f":"IF(OR(Table_PI[[#This Row],[Hide: Rebate]]=\"\",Table_PI[[#This Row],[Hide: Rebate]]=0,ISTEXT(Table_PI[[#This Row],[Hide: Rebate]])),\"\",Table_PI[[#This Row],[Hide: Rebate]])","v":""},null,{"$f":"IF(OR(Table_PI[[#This Row],[Hide: Incremental Cost]]=\"\",Table_PI[[#This Row],[Hide: Incremental Cost]]=0,ISTEXT(Table_PI[[#This Row],[Hide: Incremental Cost]])),\"\",Table_PI[[#This Row],[Hide: Incremental Cost]])","v":""},{"$f":"IFERROR(IF(Table_SummaryPI[[#This Row],[Incentive_Customer]]=\"\",\"\",ROUND(Table_SummaryPI[[#This Row],[Incentive_Customer]]/$AM$401*'Customer Information'!$BC$21,2)),0)","v":""},{"$f":"IF(OR(Table_PI[[#This Row],[Annual kWh]]=\"\",Table_PI[[#This Row],[Annual kWh]]=0,ISTEXT(Table_PI[[#This Row],[Annual kWh]])),\"\",Table_PI[[#This Row],[Annual kWh]])","v":""},{"$f":"IF(OR(Table_PI[[#This Row],[Peak kW]]=\"\",Table_PI[[#This Row],[Peak kW]]=0,ISTEXT(Table_PI[[#This Row],[Peak kW]])),\"\",Table_PI[[#This Row],[Peak kW]])","v":""},{"$f":"IF(Table_SummaryPI[[#This Row],[Line No.]]<>\"\",IF(AND(ISNUMBER(FIND(\"Chiller\",Table_SummaryPI[[#This Row],[P_MeasureOption1]],1)),Table_SummaryPI[[#This Row],[ProposedMeasureCategory]]=\"Air-Cooled (Water-Cooled Replacement)\"),$BD$29*Table_SummaryPI[[#This Row],[Size]]*Table_SummaryPI[[#This Row],[Quantity]]*Table_SummaryPI[[#This Row],[EFLHCooling]],\nIF(ISNUMBER(FIND(\"Dishwasher\",Table_SummaryPI[[#This Row],[ProposedMeasureCategory]],1)),$BH$29*Table_SummaryPI[[#This Row],[Quantity]],\nIF(ISNUMBER(FIND(\"Ice Maker\",Table_SummaryPI[[#This Row],[ProposedMeasureCategory]],1)),$BD$31*Table_SummaryPI[[#This Row],[Quantity]],\nIF(ISNUMBER(FIND(\"Spray Valve\",Table_SummaryPI[[#This Row],[ProposedMeasureCategory]],1)),$BH$31*Table_SummaryPI[[#This Row],[Quantity]],\n0)))),\"\")","v":""},{"$f":"IF(OR(Table_PI[[#This Row],[Hide: Electrification kWh]]=\"\",Table_PI[[#This Row],[Hide: Electrification kWh]]=0,ISTEXT(Table_PI[[#This Row],[Hide: Electrification kWh]])),\"\",Table_PI[[#This Row],[Hide: Electrification kWh]])","v":""},{"$f":"IF(OR(Table_PI[[#This Row],[Hide: Electrification GHG]]=\"\",Table_PI[[#This Row],[Hide: Electrification GHG]]=0,ISTEXT(Table_PI[[#This Row],[Hide: Electrification GHG]])),\"\",Table_PI[[#This Row],[Hide: Electrification GHG]])","v":""},{"$f":"IFERROR(IF(Table_SummaryPI[[#This Row],[kWhSavings]]=\"\",\"\",$BH$9*Table_SummaryPI[[#This Row],[kWhSavings]]),0)","v":""},{"$f":"IFERROR(IF(Table_SummaryPI[[#This Row],[kWhSavings]]=\"\",\"\",$BH$14*Table_SummaryPI[[#This Row],[kWhSavings]]),0)","v":""},{"$f":"IFERROR(IF(Table_SummaryPI[[#This Row],[kWhSavings]]=\"\",\"\",$BH$18*Table_SummaryPI[[#This Row],[kWhSavings]]),0)","v":""},{"$f":"IFERROR(IF(Table_SummaryPI[[#This Row],[kWhSavings]]=\"\",\"\",$BH$22*Table_SummaryPI[[#This Row],[kWhSavings]]),0)","v":""}]
[{"$f":"Table_PI[[#This Row],[Line No.]]","v":""},{"$f":"IF(Table_SummaryPI[[#This Row],[MeasureName]]<>\"\",NOT(ISTEXT(Table_PI[[#This Row],[Rebate]])),\"\")","v":""},{"$f":"IF(Table_SummaryPI[[#This Row],[MeassureCategory]]<>\"\",CONCATENATE(Table_SummaryPI[[#This Row],[MeassureCategory]],  \" - \", Table_SummaryPI[[#This Row],[ProposedMeasureCategory]],  \" - \", TEXT(Table_SummaryPI[[#This Row],[Size]],\"#,##0.00\"),\" \",Table_SummaryPI[[#This Row],[SizeUnit]]),\"\")","v":""},{"$f":"SUBSTITUTE(Table_PI[[#This Row],[Measure]],\"     \",\"\",1)","v":""},{"$f":"IF(Table_PI[[#This Row],[List 1]]<>\"\",Table_PI[[#This Row],[List 1]],\"\")","v":""},{"$f":"IF(Table_PI[[#This Row],[List 2]]<>\"\",Table_PI[[#This Row],[List 2]],\"\")","v":""},{"$f":"IF(Table_PI[[#This Row],[List 3]]<>\"\",Table_PI[[#This Row],[List 3]],\"\")","v":""},{"$f":"IF(Table_PI[[#This Row],[Manufacturer]]=\"\",\"\",Table_PI[[#This Row],[Manufacturer]])","v":""},{"$f":"IF(Table_PI[[#This Row],[Model Number]]=\"\",\"\",Table_PI[[#This Row],[Model Number]])","v":""},{"$f":"IF(Table_PI[[#This Row],[Serial Number(s)]]=\"\",\"\",Table_PI[[#This Row],[Serial Number(s)]])","v":""},null,{"$f":"IF(Table_PI[[#This Row],[Size]]=\"\",\"\",Table_PI[[#This Row],[Size]])","v":""},null,null,{"$f":"IF(Table_PI[[#This Row],[Input 1]]<>\"\",Table_PI[[#This Row],[Input 1]],\"\")","v":""},null,null,{"$f":"IF(Table_PI[[#This Row],[Input 2]]<>\"\",Table_PI[[#This Row],[Input 2]],\"\")","v":""},null,null,{"$f":"IF(Table_PI[[#This Row],[Input 3]]<>\"\",Table_PI[[#This Row],[Input 3]],\"\")","v":""},null,null,{"$f":"IF(Table_PI[[#This Row],[Input 4]]<>\"\",Table_PI[[#This Row],[Input 4]],\"\")","v":""},null,null,{"$f":"IF(Table_PI[[#This Row],[Input 4]]<>\"\",Table_PI[[#This Row],[Input 4]],\"\")","v":""},null,null,{"$f":"IF(Table_PI[[#This Row],[Input 4]]<>\"\",Table_PI[[#This Row],[Input 4]],\"\")","v":""},{"$f":"IF(Table_PI[[#This Row],[Quantity]]=\"\",\"\",Table_PI[[#This Row],[Quantity]])","v":""},{"$f":"IF(Table_PI[[#This Row],[Notes]]=\"\",\"\",Table_PI[[#This Row],[Notes]])","v":""},{"$f":"IF(OR(Table_PI[[#This Row],[Hide: Baseline kWh]]=\"\",Table_PI[[#This Row],[Hide: Baseline kWh]]=0,ISTEXT(Table_PI[[#This Row],[Hide: Baseline kWh]])),\"\",Table_PI[[#This Row],[Hide: Baseline kWh]])","v":""},{"$f":"IF(OR(Table_PI[[#This Row],[Hide: Baseline kW]]=\"\",Table_PI[[#This Row],[Hide: Baseline kW]]=0,ISTEXT(Table_PI[[#This Row],[Hide: Baseline kW]])),\"\",Table_PI[[#This Row],[Hide: Baseline kW]])","v":""},{"$f":"IF(OR(Table_PI[[#This Row],[Hide: Proposed kWh]]=\"\",Table_PI[[#This Row],[Hide: Proposed kWh]]=0,ISTEXT(Table_PI[[#This Row],[Hide: Proposed kWh]])),\"\",Table_PI[[#This Row],[Hide: Proposed kWh]])","v":""},{"$f":"IF(OR(Table_PI[[#This Row],[Hide: Proposed kW]]=\"\",Table_PI[[#This Row],[Hide: Proposed kW]]=0,ISTEXT(Table_PI[[#This Row],[Hide: Proposed kW]])),\"\",Table_PI[[#This Row],[Hide: Proposed kW]])","v":""},null,null,{"$f":"IF(OR(Table_PI[[#This Row],[Hide: Rebate]]=\"\",Table_PI[[#This Row],[Hide: Rebate]]=0,ISTEXT(Table_PI[[#This Row],[Hide: Rebate]])),\"\",Table_PI[[#This Row],[Hide: Rebate]])","v":""},null,{"$f":"IF(OR(Table_PI[[#This Row],[Hide: Incremental Cost]]=\"\",Table_PI[[#This Row],[Hide: Incremental Cost]]=0,ISTEXT(Table_PI[[#This Row],[Hide: Incremental Cost]])),\"\",Table_PI[[#This Row],[Hide: Incremental Cost]])","v":""},{"$f":"IFERROR(IF(Table_SummaryPI[[#This Row],[Incentive_Customer]]=\"\",\"\",ROUND(Table_SummaryPI[[#This Row],[Incentive_Customer]]/$AM$401*'Customer Information'!$BC$21,2)),0)","v":""},{"$f":"IF(OR(Table_PI[[#This Row],[Annual kWh]]=\"\",Table_PI[[#This Row],[Annual kWh]]=0,ISTEXT(Table_PI[[#This Row],[Annual kWh]])),\"\",Table_PI[[#This Row],[Annual kWh]])","v":""},{"$f":"IF(OR(Table_PI[[#This Row],[Peak kW]]=\"\",Table_PI[[#This Row],[Peak kW]]=0,ISTEXT(Table_PI[[#This Row],[Peak kW]])),\"\",Table_PI[[#This Row],[Peak kW]])","v":""},{"$f":"IF(Table_SummaryPI[[#This Row],[Line No.]]<>\"\",IF(AND(ISNUMBER(FIND(\"Chiller\",Table_SummaryPI[[#This Row],[P_MeasureOption1]],1)),Table_SummaryPI[[#This Row],[ProposedMeasureCategory]]=\"Air-Cooled (Water-Cooled Replacement)\"),$BD$29*Table_SummaryPI[[#This Row],[Size]]*Table_SummaryPI[[#This Row],[Quantity]]*Table_SummaryPI[[#This Row],[EFLHCooling]],\nIF(ISNUMBER(FIND(\"Dishwasher\",Table_SummaryPI[[#This Row],[ProposedMeasureCategory]],1)),$BH$29*Table_SummaryPI[[#This Row],[Quantity]],\nIF(ISNUMBER(FIND(\"Ice Maker\",Table_SummaryPI[[#This Row],[ProposedMeasureCategory]],1)),$BD$31*Table_SummaryPI[[#This Row],[Quantity]],\nIF(ISNUMBER(FIND(\"Spray Valve\",Table_SummaryPI[[#This Row],[ProposedMeasureCategory]],1)),$BH$31*Table_SummaryPI[[#This Row],[Quantity]],\n0)))),\"\")","v":""},{"$f":"IF(OR(Table_PI[[#This Row],[Hide: Electrification kWh]]=\"\",Table_PI[[#This Row],[Hide: Electrification kWh]]=0,ISTEXT(Table_PI[[#This Row],[Hide: Electrification kWh]])),\"\",Table_PI[[#This Row],[Hide: Electrification kWh]])","v":""},{"$f":"IF(OR(Table_PI[[#This Row],[Hide: Electrification GHG]]=\"\",Table_PI[[#This Row],[Hide: Electrification GHG]]=0,ISTEXT(Table_PI[[#This Row],[Hide: Electrification GHG]])),\"\",Table_PI[[#This Row],[Hide: Electrification GHG]])","v":""},{"$f":"IFERROR(IF(Table_SummaryPI[[#This Row],[kWhSavings]]=\"\",\"\",$BH$9*Table_SummaryPI[[#This Row],[kWhSavings]]),0)","v":""},{"$f":"IFERROR(IF(Table_SummaryPI[[#This Row],[kWhSavings]]=\"\",\"\",$BH$14*Table_SummaryPI[[#This Row],[kWhSavings]]),0)","v":""},{"$f":"IFERROR(IF(Table_SummaryPI[[#This Row],[kWhSavings]]=\"\",\"\",$BH$18*Table_SummaryPI[[#This Row],[kWhSavings]]),0)","v":""},{"$f":"IFERROR(IF(Table_SummaryPI[[#This Row],[kWhSavings]]=\"\",\"\",$BH$22*Table_SummaryPI[[#This Row],[kWhSavings]]),0)","v":""}]
[{"$f":"Table_PI[[#This Row],[Line No.]]","v":""},{"$f":"IF(Table_SummaryPI[[#This Row],[MeasureName]]<>\"\",NOT(ISTEXT(Table_PI[[#This Row],[Rebate]])),\"\")","v":""},{"$f":"IF(Table_SummaryPI[[#This Row],[MeassureCategory]]<>\"\",CONCATENATE(Table_SummaryPI[[#This Row],[MeassureCategory]],  \" - \", Table_SummaryPI[[#This Row],[ProposedMeasureCategory]],  \" - \", TEXT(Table_SummaryPI[[#This Row],[Size]],\"#,##0.00\"),\" \",Table_SummaryPI[[#This Row],[SizeUnit]]),\"\")","v":""},{"$f":"SUBSTITUTE(Table_PI[[#This Row],[Measure]],\"     \",\"\",1)","v":""},{"$f":"IF(Table_PI[[#This Row],[List 1]]<>\"\",Table_PI[[#This Row],[List 1]],\"\")","v":""},{"$f":"IF(Table_PI[[#This Row],[List 2]]<>\"\",Table_PI[[#This Row],[List 2]],\"\")","v":""},{"$f":"IF(Table_PI[[#This Row],[List 3]]<>\"\",Table_PI[[#This Row],[List 3]],\"\")","v":""},{"$f":"IF(Table_PI[[#This Row],[Manufacturer]]=\"\",\"\",Table_PI[[#This Row],[Manufacturer]])","v":""},{"$f":"IF(Table_PI[[#This Row],[Model Number]]=\"\",\"\",Table_PI[[#This Row],[Model Number]])","v":""},{"$f":"IF(Table_PI[[#This Row],[Serial Number(s)]]=\"\",\"\",Table_PI[[#This Row],[Serial Number(s)]])","v":""},null,{"$f":"IF(Table_PI[[#This Row],[Size]]=\"\",\"\",Table_PI[[#This Row],[Size]])","v":""},null,null,{"$f":"IF(Table_PI[[#This Row],[Input 1]]<>\"\",Table_PI[[#This Row],[Input 1]],\"\")","v":""},null,null,{"$f":"IF(Table_PI[[#This Row],[Input 2]]<>\"\",Table_PI[[#This Row],[Input 2]],\"\")","v":""},null,null,{"$f":"IF(Table_PI[[#This Row],[Input 3]]<>\"\",Table_PI[[#This Row],[Input 3]],\"\")","v":""},null,null,{"$f":"IF(Table_PI[[#This Row],[Input 4]]<>\"\",Table_PI[[#This Row],[Input 4]],\"\")","v":""},null,null,{"$f":"IF(Table_PI[[#This Row],[Input 4]]<>\"\",Table_PI[[#This Row],[Input 4]],\"\")","v":""},null,null,{"$f":"IF(Table_PI[[#This Row],[Input 4]]<>\"\",Table_PI[[#This Row],[Input 4]],\"\")","v":""},{"$f":"IF(Table_PI[[#This Row],[Quantity]]=\"\",\"\",Table_PI[[#This Row],[Quantity]])","v":""},{"$f":"IF(Table_PI[[#This Row],[Notes]]=\"\",\"\",Table_PI[[#This Row],[Notes]])","v":""},{"$f":"IF(OR(Table_PI[[#This Row],[Hide: Baseline kWh]]=\"\",Table_PI[[#This Row],[Hide: Baseline kWh]]=0,ISTEXT(Table_PI[[#This Row],[Hide: Baseline kWh]])),\"\",Table_PI[[#This Row],[Hide: Baseline kWh]])","v":""},{"$f":"IF(OR(Table_PI[[#This Row],[Hide: Baseline kW]]=\"\",Table_PI[[#This Row],[Hide: Baseline kW]]=0,ISTEXT(Table_PI[[#This Row],[Hide: Baseline kW]])),\"\",Table_PI[[#This Row],[Hide: Baseline kW]])","v":""},{"$f":"IF(OR(Table_PI[[#This Row],[Hide: Proposed kWh]]=\"\",Table_PI[[#This Row],[Hide: Proposed kWh]]=0,ISTEXT(Table_PI[[#This Row],[Hide: Proposed kWh]])),\"\",Table_PI[[#This Row],[Hide: Proposed kWh]])","v":""},{"$f":"IF(OR(Table_PI[[#This Row],[Hide: Proposed kW]]=\"\",Table_PI[[#This Row],[Hide: Proposed kW]]=0,ISTEXT(Table_PI[[#This Row],[Hide: Proposed kW]])),\"\",Table_PI[[#This Row],[Hide: Proposed kW]])","v":""},null,null,{"$f":"IF(OR(Table_PI[[#This Row],[Hide: Rebate]]=\"\",Table_PI[[#This Row],[Hide: Rebate]]=0,ISTEXT(Table_PI[[#This Row],[Hide: Rebate]])),\"\",Table_PI[[#This Row],[Hide: Rebate]])","v":""},null,{"$f":"IF(OR(Table_PI[[#This Row],[Hide: Incremental Cost]]=\"\",Table_PI[[#This Row],[Hide: Incremental Cost]]=0,ISTEXT(Table_PI[[#This Row],[Hide: Incremental Cost]])),\"\",Table_PI[[#This Row],[Hide: Incremental Cost]])","v":""},{"$f":"IFERROR(IF(Table_SummaryPI[[#This Row],[Incentive_Customer]]=\"\",\"\",ROUND(Table_SummaryPI[[#This Row],[Incentive_Customer]]/$AM$401*'Customer Information'!$BC$21,2)),0)","v":""},{"$f":"IF(OR(Table_PI[[#This Row],[Annual kWh]]=\"\",Table_PI[[#This Row],[Annual kWh]]=0,ISTEXT(Table_PI[[#This Row],[Annual kWh]])),\"\",Table_PI[[#This Row],[Annual kWh]])","v":""},{"$f":"IF(OR(Table_PI[[#This Row],[Peak kW]]=\"\",Table_PI[[#This Row],[Peak kW]]=0,ISTEXT(Table_PI[[#This Row],[Peak kW]])),\"\",Table_PI[[#This Row],[Peak kW]])","v":""},{"$f":"IF(Table_SummaryPI[[#This Row],[Line No.]]<>\"\",IF(AND(ISNUMBER(FIND(\"Chiller\",Table_SummaryPI[[#This Row],[P_MeasureOption1]],1)),Table_SummaryPI[[#This Row],[ProposedMeasureCategory]]=\"Air-Cooled (Water-Cooled Replacement)\"),$BD$29*Table_SummaryPI[[#This Row],[Size]]*Table_SummaryPI[[#This Row],[Quantity]]*Table_SummaryPI[[#This Row],[EFLHCooling]],\nIF(ISNUMBER(FIND(\"Dishwasher\",Table_SummaryPI[[#This Row],[ProposedMeasureCategory]],1)),$BH$29*Table_SummaryPI[[#This Row],[Quantity]],\nIF(ISNUMBER(FIND(\"Ice Maker\",Table_SummaryPI[[#This Row],[ProposedMeasureCategory]],1)),$BD$31*Table_SummaryPI[[#This Row],[Quantity]],\nIF(ISNUMBER(FIND(\"Spray Valve\",Table_SummaryPI[[#This Row],[ProposedMeasureCategory]],1)),$BH$31*Table_SummaryPI[[#This Row],[Quantity]],\n0)))),\"\")","v":""},{"$f":"IF(OR(Table_PI[[#This Row],[Hide: Electrification kWh]]=\"\",Table_PI[[#This Row],[Hide: Electrification kWh]]=0,ISTEXT(Table_PI[[#This Row],[Hide: Electrification kWh]])),\"\",Table_PI[[#This Row],[Hide: Electrification kWh]])","v":""},{"$f":"IF(OR(Table_PI[[#This Row],[Hide: Electrification GHG]]=\"\",Table_PI[[#This Row],[Hide: Electrification GHG]]=0,ISTEXT(Table_PI[[#This Row],[Hide: Electrification GHG]])),\"\",Table_PI[[#This Row],[Hide: Electrification GHG]])","v":""},{"$f":"IFERROR(IF(Table_SummaryPI[[#This Row],[kWhSavings]]=\"\",\"\",$BH$9*Table_SummaryPI[[#This Row],[kWhSavings]]),0)","v":""},{"$f":"IFERROR(IF(Table_SummaryPI[[#This Row],[kWhSavings]]=\"\",\"\",$BH$14*Table_SummaryPI[[#This Row],[kWhSavings]]),0)","v":""},{"$f":"IFERROR(IF(Table_SummaryPI[[#This Row],[kWhSavings]]=\"\",\"\",$BH$18*Table_SummaryPI[[#This Row],[kWhSavings]]),0)","v":""},{"$f":"IFERROR(IF(Table_SummaryPI[[#This Row],[kWhSavings]]=\"\",\"\",$BH$22*Table_SummaryPI[[#This Row],[kWhSavings]]),0)","v":""}]
[{"$f":"Table_PI[[#This Row],[Line No.]]","v":""},{"$f":"IF(Table_SummaryPI[[#This Row],[MeasureName]]<>\"\",NOT(ISTEXT(Table_PI[[#This Row],[Rebate]])),\"\")","v":""},{"$f":"IF(Table_SummaryPI[[#This Row],[MeassureCategory]]<>\"\",CONCATENATE(Table_SummaryPI[[#This Row],[MeassureCategory]],  \" - \", Table_SummaryPI[[#This Row],[ProposedMeasureCategory]],  \" - \", TEXT(Table_SummaryPI[[#This Row],[Size]],\"#,##0.00\"),\" \",Table_SummaryPI[[#This Row],[SizeUnit]]),\"\")","v":""},{"$f":"SUBSTITUTE(Table_PI[[#This Row],[Measure]],\"     \",\"\",1)","v":""},{"$f":"IF(Table_PI[[#This Row],[List 1]]<>\"\",Table_PI[[#This Row],[List 1]],\"\")","v":""},{"$f":"IF(Table_PI[[#This Row],[List 2]]<>\"\",Table_PI[[#This Row],[List 2]],\"\")","v":""},{"$f":"IF(Table_PI[[#This Row],[List 3]]<>\"\",Table_PI[[#This Row],[List 3]],\"\")","v":""},{"$f":"IF(Table_PI[[#This Row],[Manufacturer]]=\"\",\"\",Table_PI[[#This Row],[Manufacturer]])","v":""},{"$f":"IF(Table_PI[[#This Row],[Model Number]]=\"\",\"\",Table_PI[[#This Row],[Model Number]])","v":""},{"$f":"IF(Table_PI[[#This Row],[Serial Number(s)]]=\"\",\"\",Table_PI[[#This Row],[Serial Number(s)]])","v":""},null,{"$f":"IF(Table_PI[[#This Row],[Size]]=\"\",\"\",Table_PI[[#This Row],[Size]])","v":""},null,null,{"$f":"IF(Table_PI[[#This Row],[Input 1]]<>\"\",Table_PI[[#This Row],[Input 1]],\"\")","v":""},null,null,{"$f":"IF(Table_PI[[#This Row],[Input 2]]<>\"\",Table_PI[[#This Row],[Input 2]],\"\")","v":""},null,null,{"$f":"IF(Table_PI[[#This Row],[Input 3]]<>\"\",Table_PI[[#This Row],[Input 3]],\"\")","v":""},null,null,{"$f":"IF(Table_PI[[#This Row],[Input 4]]<>\"\",Table_PI[[#This Row],[Input 4]],\"\")","v":""},null,null,{"$f":"IF(Table_PI[[#This Row],[Input 4]]<>\"\",Table_PI[[#This Row],[Input 4]],\"\")","v":""},null,null,{"$f":"IF(Table_PI[[#This Row],[Input 4]]<>\"\",Table_PI[[#This Row],[Input 4]],\"\")","v":""},{"$f":"IF(Table_PI[[#This Row],[Quantity]]=\"\",\"\",Table_PI[[#This Row],[Quantity]])","v":""},{"$f":"IF(Table_PI[[#This Row],[Notes]]=\"\",\"\",Table_PI[[#This Row],[Notes]])","v":""},{"$f":"IF(OR(Table_PI[[#This Row],[Hide: Baseline kWh]]=\"\",Table_PI[[#This Row],[Hide: Baseline kWh]]=0,ISTEXT(Table_PI[[#This Row],[Hide: Baseline kWh]])),\"\",Table_PI[[#This Row],[Hide: Baseline kWh]])","v":""},{"$f":"IF(OR(Table_PI[[#This Row],[Hide: Baseline kW]]=\"\",Table_PI[[#This Row],[Hide: Baseline kW]]=0,ISTEXT(Table_PI[[#This Row],[Hide: Baseline kW]])),\"\",Table_PI[[#This Row],[Hide: Baseline kW]])","v":""},{"$f":"IF(OR(Table_PI[[#This Row],[Hide: Proposed kWh]]=\"\",Table_PI[[#This Row],[Hide: Proposed kWh]]=0,ISTEXT(Table_PI[[#This Row],[Hide: Proposed kWh]])),\"\",Table_PI[[#This Row],[Hide: Proposed kWh]])","v":""},{"$f":"IF(OR(Table_PI[[#This Row],[Hide: Proposed kW]]=\"\",Table_PI[[#This Row],[Hide: Proposed kW]]=0,ISTEXT(Table_PI[[#This Row],[Hide: Proposed kW]])),\"\",Table_PI[[#This Row],[Hide: Proposed kW]])","v":""},null,null,{"$f":"IF(OR(Table_PI[[#This Row],[Hide: Rebate]]=\"\",Table_PI[[#This Row],[Hide: Rebate]]=0,ISTEXT(Table_PI[[#This Row],[Hide: Rebate]])),\"\",Table_PI[[#This Row],[Hide: Rebate]])","v":""},null,{"$f":"IF(OR(Table_PI[[#This Row],[Hide: Incremental Cost]]=\"\",Table_PI[[#This Row],[Hide: Incremental Cost]]=0,ISTEXT(Table_PI[[#This Row],[Hide: Incremental Cost]])),\"\",Table_PI[[#This Row],[Hide: Incremental Cost]])","v":""},{"$f":"IFERROR(IF(Table_SummaryPI[[#This Row],[Incentive_Customer]]=\"\",\"\",ROUND(Table_SummaryPI[[#This Row],[Incentive_Customer]]/$AM$401*'Customer Information'!$BC$21,2)),0)","v":""},{"$f":"IF(OR(Table_PI[[#This Row],[Annual kWh]]=\"\",Table_PI[[#This Row],[Annual kWh]]=0,ISTEXT(Table_PI[[#This Row],[Annual kWh]])),\"\",Table_PI[[#This Row],[Annual kWh]])","v":""},{"$f":"IF(OR(Table_PI[[#This Row],[Peak kW]]=\"\",Table_PI[[#This Row],[Peak kW]]=0,ISTEXT(Table_PI[[#This Row],[Peak kW]])),\"\",Table_PI[[#This Row],[Peak kW]])","v":""},{"$f":"IF(Table_SummaryPI[[#This Row],[Line No.]]<>\"\",IF(AND(ISNUMBER(FIND(\"Chiller\",Table_SummaryPI[[#This Row],[P_MeasureOption1]],1)),Table_SummaryPI[[#This Row],[ProposedMeasureCategory]]=\"Air-Cooled (Water-Cooled Replacement)\"),$BD$29*Table_SummaryPI[[#This Row],[Size]]*Table_SummaryPI[[#This Row],[Quantity]]*Table_SummaryPI[[#This Row],[EFLHCooling]],\nIF(ISNUMBER(FIND(\"Dishwasher\",Table_SummaryPI[[#This Row],[ProposedMeasureCategory]],1)),$BH$29*Table_SummaryPI[[#This Row],[Quantity]],\nIF(ISNUMBER(FIND(\"Ice Maker\",Table_SummaryPI[[#This Row],[ProposedMeasureCategory]],1)),$BD$31*Table_SummaryPI[[#This Row],[Quantity]],\nIF(ISNUMBER(FIND(\"Spray Valve\",Table_SummaryPI[[#This Row],[ProposedMeasureCategory]],1)),$BH$31*Table_SummaryPI[[#This Row],[Quantity]],\n0)))),\"\")","v":""},{"$f":"IF(OR(Table_PI[[#This Row],[Hide: Electrification kWh]]=\"\",Table_PI[[#This Row],[Hide: Electrification kWh]]=0,ISTEXT(Table_PI[[#This Row],[Hide: Electrification kWh]])),\"\",Table_PI[[#This Row],[Hide: Electrification kWh]])","v":""},{"$f":"IF(OR(Table_PI[[#This Row],[Hide: Electrification GHG]]=\"\",Table_PI[[#This Row],[Hide: Electrification GHG]]=0,ISTEXT(Table_PI[[#This Row],[Hide: Electrification GHG]])),\"\",Table_PI[[#This Row],[Hide: Electrification GHG]])","v":""},{"$f":"IFERROR(IF(Table_SummaryPI[[#This Row],[kWhSavings]]=\"\",\"\",$BH$9*Table_SummaryPI[[#This Row],[kWhSavings]]),0)","v":""},{"$f":"IFERROR(IF(Table_SummaryPI[[#This Row],[kWhSavings]]=\"\",\"\",$BH$14*Table_SummaryPI[[#This Row],[kWhSavings]]),0)","v":""},{"$f":"IFERROR(IF(Table_SummaryPI[[#This Row],[kWhSavings]]=\"\",\"\",$BH$18*Table_SummaryPI[[#This Row],[kWhSavings]]),0)","v":""},{"$f":"IFERROR(IF(Table_SummaryPI[[#This Row],[kWhSavings]]=\"\",\"\",$BH$22*Table_SummaryPI[[#This Row],[kWhSavings]]),0)","v":""}]
[{"$f":"Table_PI[[#This Row],[Line No.]]","v":""},{"$f":"IF(Table_SummaryPI[[#This Row],[MeasureName]]<>\"\",NOT(ISTEXT(Table_PI[[#This Row],[Rebate]])),\"\")","v":""},{"$f":"IF(Table_SummaryPI[[#This Row],[MeassureCategory]]<>\"\",CONCATENATE(Table_SummaryPI[[#This Row],[MeassureCategory]],  \" - \", Table_SummaryPI[[#This Row],[ProposedMeasureCategory]],  \" - \", TEXT(Table_SummaryPI[[#This Row],[Size]],\"#,##0.00\"),\" \",Table_SummaryPI[[#This Row],[SizeUnit]]),\"\")","v":""},{"$f":"SUBSTITUTE(Table_PI[[#This Row],[Measure]],\"     \",\"\",1)","v":""},{"$f":"IF(Table_PI[[#This Row],[List 1]]<>\"\",Table_PI[[#This Row],[List 1]],\"\")","v":""},{"$f":"IF(Table_PI[[#This Row],[List 2]]<>\"\",Table_PI[[#This Row],[List 2]],\"\")","v":""},{"$f":"IF(Table_PI[[#This Row],[List 3]]<>\"\",Table_PI[[#This Row],[List 3]],\"\")","v":""},{"$f":"IF(Table_PI[[#This Row],[Manufacturer]]=\"\",\"\",Table_PI[[#This Row],[Manufacturer]])","v":""},{"$f":"IF(Table_PI[[#This Row],[Model Number]]=\"\",\"\",Table_PI[[#This Row],[Model Number]])","v":""},{"$f":"IF(Table_PI[[#This Row],[Serial Number(s)]]=\"\",\"\",Table_PI[[#This Row],[Serial Number(s)]])","v":""},null,{"$f":"IF(Table_PI[[#This Row],[Size]]=\"\",\"\",Table_PI[[#This Row],[Size]])","v":""},null,null,{"$f":"IF(Table_PI[[#This Row],[Input 1]]<>\"\",Table_PI[[#This Row],[Input 1]],\"\")","v":""},null,null,{"$f":"IF(Table_PI[[#This Row],[Input 2]]<>\"\",Table_PI[[#This Row],[Input 2]],\"\")","v":""},null,null,{"$f":"IF(Table_PI[[#This Row],[Input 3]]<>\"\",Table_PI[[#This Row],[Input 3]],\"\")","v":""},null,null,{"$f":"IF(Table_PI[[#This Row],[Input 4]]<>\"\",Table_PI[[#This Row],[Input 4]],\"\")","v":""},null,null,{"$f":"IF(Table_PI[[#This Row],[Input 4]]<>\"\",Table_PI[[#This Row],[Input 4]],\"\")","v":""},null,null,{"$f":"IF(Table_PI[[#This Row],[Input 4]]<>\"\",Table_PI[[#This Row],[Input 4]],\"\")","v":""},{"$f":"IF(Table_PI[[#This Row],[Quantity]]=\"\",\"\",Table_PI[[#This Row],[Quantity]])","v":""},{"$f":"IF(Table_PI[[#This Row],[Notes]]=\"\",\"\",Table_PI[[#This Row],[Notes]])","v":""},{"$f":"IF(OR(Table_PI[[#This Row],[Hide: Baseline kWh]]=\"\",Table_PI[[#This Row],[Hide: Baseline kWh]]=0,ISTEXT(Table_PI[[#This Row],[Hide: Baseline kWh]])),\"\",Table_PI[[#This Row],[Hide: Baseline kWh]])","v":""},{"$f":"IF(OR(Table_PI[[#This Row],[Hide: Baseline kW]]=\"\",Table_PI[[#This Row],[Hide: Baseline kW]]=0,ISTEXT(Table_PI[[#This Row],[Hide: Baseline kW]])),\"\",Table_PI[[#This Row],[Hide: Baseline kW]])","v":""},{"$f":"IF(OR(Table_PI[[#This Row],[Hide: Proposed kWh]]=\"\",Table_PI[[#This Row],[Hide: Proposed kWh]]=0,ISTEXT(Table_PI[[#This Row],[Hide: Proposed kWh]])),\"\",Table_PI[[#This Row],[Hide: Proposed kWh]])","v":""},{"$f":"IF(OR(Table_PI[[#This Row],[Hide: Proposed kW]]=\"\",Table_PI[[#This Row],[Hide: Proposed kW]]=0,ISTEXT(Table_PI[[#This Row],[Hide: Proposed kW]])),\"\",Table_PI[[#This Row],[Hide: Proposed kW]])","v":""},null,null,{"$f":"IF(OR(Table_PI[[#This Row],[Hide: Rebate]]=\"\",Table_PI[[#This Row],[Hide: Rebate]]=0,ISTEXT(Table_PI[[#This Row],[Hide: Rebate]])),\"\",Table_PI[[#This Row],[Hide: Rebate]])","v":""},null,{"$f":"IF(OR(Table_PI[[#This Row],[Hide: Incremental Cost]]=\"\",Table_PI[[#This Row],[Hide: Incremental Cost]]=0,ISTEXT(Table_PI[[#This Row],[Hide: Incremental Cost]])),\"\",Table_PI[[#This Row],[Hide: Incremental Cost]])","v":""},{"$f":"IFERROR(IF(Table_SummaryPI[[#This Row],[Incentive_Customer]]=\"\",\"\",ROUND(Table_SummaryPI[[#This Row],[Incentive_Customer]]/$AM$401*'Customer Information'!$BC$21,2)),0)","v":""},{"$f":"IF(OR(Table_PI[[#This Row],[Annual kWh]]=\"\",Table_PI[[#This Row],[Annual kWh]]=0,ISTEXT(Table_PI[[#This Row],[Annual kWh]])),\"\",Table_PI[[#This Row],[Annual kWh]])","v":""},{"$f":"IF(OR(Table_PI[[#This Row],[Peak kW]]=\"\",Table_PI[[#This Row],[Peak kW]]=0,ISTEXT(Table_PI[[#This Row],[Peak kW]])),\"\",Table_PI[[#This Row],[Peak kW]])","v":""},{"$f":"IF(Table_SummaryPI[[#This Row],[Line No.]]<>\"\",IF(AND(ISNUMBER(FIND(\"Chiller\",Table_SummaryPI[[#This Row],[P_MeasureOption1]],1)),Table_SummaryPI[[#This Row],[ProposedMeasureCategory]]=\"Air-Cooled (Water-Cooled Replacement)\"),$BD$29*Table_SummaryPI[[#This Row],[Size]]*Table_SummaryPI[[#This Row],[Quantity]]*Table_SummaryPI[[#This Row],[EFLHCooling]],\nIF(ISNUMBER(FIND(\"Dishwasher\",Table_SummaryPI[[#This Row],[ProposedMeasureCategory]],1)),$BH$29*Table_SummaryPI[[#This Row],[Quantity]],\nIF(ISNUMBER(FIND(\"Ice Maker\",Table_SummaryPI[[#This Row],[ProposedMeasureCategory]],1)),$BD$31*Table_SummaryPI[[#This Row],[Quantity]],\nIF(ISNUMBER(FIND(\"Spray Valve\",Table_SummaryPI[[#This Row],[ProposedMeasureCategory]],1)),$BH$31*Table_SummaryPI[[#This Row],[Quantity]],\n0)))),\"\")","v":""},{"$f":"IF(OR(Table_PI[[#This Row],[Hide: Electrification kWh]]=\"\",Table_PI[[#This Row],[Hide: Electrification kWh]]=0,ISTEXT(Table_PI[[#This Row],[Hide: Electrification kWh]])),\"\",Table_PI[[#This Row],[Hide: Electrification kWh]])","v":""},{"$f":"IF(OR(Table_PI[[#This Row],[Hide: Electrification GHG]]=\"\",Table_PI[[#This Row],[Hide: Electrification GHG]]=0,ISTEXT(Table_PI[[#This Row],[Hide: Electrification GHG]])),\"\",Table_PI[[#This Row],[Hide: Electrification GHG]])","v":""},{"$f":"IFERROR(IF(Table_SummaryPI[[#This Row],[kWhSavings]]=\"\",\"\",$BH$9*Table_SummaryPI[[#This Row],[kWhSavings]]),0)","v":""},{"$f":"IFERROR(IF(Table_SummaryPI[[#This Row],[kWhSavings]]=\"\",\"\",$BH$14*Table_SummaryPI[[#This Row],[kWhSavings]]),0)","v":""},{"$f":"IFERROR(IF(Table_SummaryPI[[#This Row],[kWhSavings]]=\"\",\"\",$BH$18*Table_SummaryPI[[#This Row],[kWhSavings]]),0)","v":""},{"$f":"IFERROR(IF(Table_SummaryPI[[#This Row],[kWhSavings]]=\"\",\"\",$BH$22*Table_SummaryPI[[#This Row],[kWhSavings]]),0)","v":""}]
[{"$f":"Table_PI[[#This Row],[Line No.]]","v":""},{"$f":"IF(Table_SummaryPI[[#This Row],[MeasureName]]<>\"\",NOT(ISTEXT(Table_PI[[#This Row],[Rebate]])),\"\")","v":""},{"$f":"IF(Table_SummaryPI[[#This Row],[MeassureCategory]]<>\"\",CONCATENATE(Table_SummaryPI[[#This Row],[MeassureCategory]],  \" - \", Table_SummaryPI[[#This Row],[ProposedMeasureCategory]],  \" - \", TEXT(Table_SummaryPI[[#This Row],[Size]],\"#,##0.00\"),\" \",Table_SummaryPI[[#This Row],[SizeUnit]]),\"\")","v":""},{"$f":"SUBSTITUTE(Table_PI[[#This Row],[Measure]],\"     \",\"\",1)","v":""},{"$f":"IF(Table_PI[[#This Row],[List 1]]<>\"\",Table_PI[[#This Row],[List 1]],\"\")","v":""},{"$f":"IF(Table_PI[[#This Row],[List 2]]<>\"\",Table_PI[[#This Row],[List 2]],\"\")","v":""},{"$f":"IF(Table_PI[[#This Row],[List 3]]<>\"\",Table_PI[[#This Row],[List 3]],\"\")","v":""},{"$f":"IF(Table_PI[[#This Row],[Manufacturer]]=\"\",\"\",Table_PI[[#This Row],[Manufacturer]])","v":""},{"$f":"IF(Table_PI[[#This Row],[Model Number]]=\"\",\"\",Table_PI[[#This Row],[Model Number]])","v":""},{"$f":"IF(Table_PI[[#This Row],[Serial Number(s)]]=\"\",\"\",Table_PI[[#This Row],[Serial Number(s)]])","v":""},null,{"$f":"IF(Table_PI[[#This Row],[Size]]=\"\",\"\",Table_PI[[#This Row],[Size]])","v":""},null,null,{"$f":"IF(Table_PI[[#This Row],[Input 1]]<>\"\",Table_PI[[#This Row],[Input 1]],\"\")","v":""},null,null,{"$f":"IF(Table_PI[[#This Row],[Input 2]]<>\"\",Table_PI[[#This Row],[Input 2]],\"\")","v":""},null,null,{"$f":"IF(Table_PI[[#This Row],[Input 3]]<>\"\",Table_PI[[#This Row],[Input 3]],\"\")","v":""},null,null,{"$f":"IF(Table_PI[[#This Row],[Input 4]]<>\"\",Table_PI[[#This Row],[Input 4]],\"\")","v":""},null,null,{"$f":"IF(Table_PI[[#This Row],[Input 4]]<>\"\",Table_PI[[#This Row],[Input 4]],\"\")","v":""},null,null,{"$f":"IF(Table_PI[[#This Row],[Input 4]]<>\"\",Table_PI[[#This Row],[Input 4]],\"\")","v":""},{"$f":"IF(Table_PI[[#This Row],[Quantity]]=\"\",\"\",Table_PI[[#This Row],[Quantity]])","v":""},{"$f":"IF(Table_PI[[#This Row],[Notes]]=\"\",\"\",Table_PI[[#This Row],[Notes]])","v":""},{"$f":"IF(OR(Table_PI[[#This Row],[Hide: Baseline kWh]]=\"\",Table_PI[[#This Row],[Hide: Baseline kWh]]=0,ISTEXT(Table_PI[[#This Row],[Hide: Baseline kWh]])),\"\",Table_PI[[#This Row],[Hide: Baseline kWh]])","v":""},{"$f":"IF(OR(Table_PI[[#This Row],[Hide: Baseline kW]]=\"\",Table_PI[[#This Row],[Hide: Baseline kW]]=0,ISTEXT(Table_PI[[#This Row],[Hide: Baseline kW]])),\"\",Table_PI[[#This Row],[Hide: Baseline kW]])","v":""},{"$f":"IF(OR(Table_PI[[#This Row],[Hide: Proposed kWh]]=\"\",Table_PI[[#This Row],[Hide: Proposed kWh]]=0,ISTEXT(Table_PI[[#This Row],[Hide: Proposed kWh]])),\"\",Table_PI[[#This Row],[Hide: Proposed kWh]])","v":""},{"$f":"IF(OR(Table_PI[[#This Row],[Hide: Proposed kW]]=\"\",Table_PI[[#This Row],[Hide: Proposed kW]]=0,ISTEXT(Table_PI[[#This Row],[Hide: Proposed kW]])),\"\",Table_PI[[#This Row],[Hide: Proposed kW]])","v":""},null,null,{"$f":"IF(OR(Table_PI[[#This Row],[Hide: Rebate]]=\"\",Table_PI[[#This Row],[Hide: Rebate]]=0,ISTEXT(Table_PI[[#This Row],[Hide: Rebate]])),\"\",Table_PI[[#This Row],[Hide: Rebate]])","v":""},null,{"$f":"IF(OR(Table_PI[[#This Row],[Hide: Incremental Cost]]=\"\",Table_PI[[#This Row],[Hide: Incremental Cost]]=0,ISTEXT(Table_PI[[#This Row],[Hide: Incremental Cost]])),\"\",Table_PI[[#This Row],[Hide: Incremental Cost]])","v":""},{"$f":"IFERROR(IF(Table_SummaryPI[[#This Row],[Incentive_Customer]]=\"\",\"\",ROUND(Table_SummaryPI[[#This Row],[Incentive_Customer]]/$AM$401*'Customer Information'!$BC$21,2)),0)","v":""},{"$f":"IF(OR(Table_PI[[#This Row],[Annual kWh]]=\"\",Table_PI[[#This Row],[Annual kWh]]=0,ISTEXT(Table_PI[[#This Row],[Annual kWh]])),\"\",Table_PI[[#This Row],[Annual kWh]])","v":""},{"$f":"IF(OR(Table_PI[[#This Row],[Peak kW]]=\"\",Table_PI[[#This Row],[Peak kW]]=0,ISTEXT(Table_PI[[#This Row],[Peak kW]])),\"\",Table_PI[[#This Row],[Peak kW]])","v":""},{"$f":"IF(Table_SummaryPI[[#This Row],[Line No.]]<>\"\",IF(AND(ISNUMBER(FIND(\"Chiller\",Table_SummaryPI[[#This Row],[P_MeasureOption1]],1)),Table_SummaryPI[[#This Row],[ProposedMeasureCategory]]=\"Air-Cooled (Water-Cooled Replacement)\"),$BD$29*Table_SummaryPI[[#This Row],[Size]]*Table_SummaryPI[[#This Row],[Quantity]]*Table_SummaryPI[[#This Row],[EFLHCooling]],\nIF(ISNUMBER(FIND(\"Dishwasher\",Table_SummaryPI[[#This Row],[ProposedMeasureCategory]],1)),$BH$29*Table_SummaryPI[[#This Row],[Quantity]],\nIF(ISNUMBER(FIND(\"Ice Maker\",Table_SummaryPI[[#This Row],[ProposedMeasureCategory]],1)),$BD$31*Table_SummaryPI[[#This Row],[Quantity]],\nIF(ISNUMBER(FIND(\"Spray Valve\",Table_SummaryPI[[#This Row],[ProposedMeasureCategory]],1)),$BH$31*Table_SummaryPI[[#This Row],[Quantity]],\n0)))),\"\")","v":""},{"$f":"IF(OR(Table_PI[[#This Row],[Hide: Electrification kWh]]=\"\",Table_PI[[#This Row],[Hide: Electrification kWh]]=0,ISTEXT(Table_PI[[#This Row],[Hide: Electrification kWh]])),\"\",Table_PI[[#This Row],[Hide: Electrification kWh]])","v":""},{"$f":"IF(OR(Table_PI[[#This Row],[Hide: Electrification GHG]]=\"\",Table_PI[[#This Row],[Hide: Electrification GHG]]=0,ISTEXT(Table_PI[[#This Row],[Hide: Electrification GHG]])),\"\",Table_PI[[#This Row],[Hide: Electrification GHG]])","v":""},{"$f":"IFERROR(IF(Table_SummaryPI[[#This Row],[kWhSavings]]=\"\",\"\",$BH$9*Table_SummaryPI[[#This Row],[kWhSavings]]),0)","v":""},{"$f":"IFERROR(IF(Table_SummaryPI[[#This Row],[kWhSavings]]=\"\",\"\",$BH$14*Table_SummaryPI[[#This Row],[kWhSavings]]),0)","v":""},{"$f":"IFERROR(IF(Table_SummaryPI[[#This Row],[kWhSavings]]=\"\",\"\",$BH$18*Table_SummaryPI[[#This Row],[kWhSavings]]),0)","v":""},{"$f":"IFERROR(IF(Table_SummaryPI[[#This Row],[kWhSavings]]=\"\",\"\",$BH$22*Table_SummaryPI[[#This Row],[kWhSavings]]),0)","v":""}]
[{"$f":"Table_PI[[#This Row],[Line No.]]","v":""},{"$f":"IF(Table_SummaryPI[[#This Row],[MeasureName]]<>\"\",NOT(ISTEXT(Table_PI[[#This Row],[Rebate]])),\"\")","v":""},{"$f":"IF(Table_SummaryPI[[#This Row],[MeassureCategory]]<>\"\",CONCATENATE(Table_SummaryPI[[#This Row],[MeassureCategory]],  \" - \", Table_SummaryPI[[#This Row],[ProposedMeasureCategory]],  \" - \", TEXT(Table_SummaryPI[[#This Row],[Size]],\"#,##0.00\"),\" \",Table_SummaryPI[[#This Row],[SizeUnit]]),\"\")","v":""},{"$f":"SUBSTITUTE(Table_PI[[#This Row],[Measure]],\"     \",\"\",1)","v":""},{"$f":"IF(Table_PI[[#This Row],[List 1]]<>\"\",Table_PI[[#This Row],[List 1]],\"\")","v":""},{"$f":"IF(Table_PI[[#This Row],[List 2]]<>\"\",Table_PI[[#This Row],[List 2]],\"\")","v":""},{"$f":"IF(Table_PI[[#This Row],[List 3]]<>\"\",Table_PI[[#This Row],[List 3]],\"\")","v":""},{"$f":"IF(Table_PI[[#This Row],[Manufacturer]]=\"\",\"\",Table_PI[[#This Row],[Manufacturer]])","v":""},{"$f":"IF(Table_PI[[#This Row],[Model Number]]=\"\",\"\",Table_PI[[#This Row],[Model Number]])","v":""},{"$f":"IF(Table_PI[[#This Row],[Serial Number(s)]]=\"\",\"\",Table_PI[[#This Row],[Serial Number(s)]])","v":""},null,{"$f":"IF(Table_PI[[#This Row],[Size]]=\"\",\"\",Table_PI[[#This Row],[Size]])","v":""},null,null,{"$f":"IF(Table_PI[[#This Row],[Input 1]]<>\"\",Table_PI[[#This Row],[Input 1]],\"\")","v":""},null,null,{"$f":"IF(Table_PI[[#This Row],[Input 2]]<>\"\",Table_PI[[#This Row],[Input 2]],\"\")","v":""},null,null,{"$f":"IF(Table_PI[[#This Row],[Input 3]]<>\"\",Table_PI[[#This Row],[Input 3]],\"\")","v":""},null,null,{"$f":"IF(Table_PI[[#This Row],[Input 4]]<>\"\",Table_PI[[#This Row],[Input 4]],\"\")","v":""},null,null,{"$f":"IF(Table_PI[[#This Row],[Input 4]]<>\"\",Table_PI[[#This Row],[Input 4]],\"\")","v":""},null,null,{"$f":"IF(Table_PI[[#This Row],[Input 4]]<>\"\",Table_PI[[#This Row],[Input 4]],\"\")","v":""},{"$f":"IF(Table_PI[[#This Row],[Quantity]]=\"\",\"\",Table_PI[[#This Row],[Quantity]])","v":""},{"$f":"IF(Table_PI[[#This Row],[Notes]]=\"\",\"\",Table_PI[[#This Row],[Notes]])","v":""},{"$f":"IF(OR(Table_PI[[#This Row],[Hide: Baseline kWh]]=\"\",Table_PI[[#This Row],[Hide: Baseline kWh]]=0,ISTEXT(Table_PI[[#This Row],[Hide: Baseline kWh]])),\"\",Table_PI[[#This Row],[Hide: Baseline kWh]])","v":""},{"$f":"IF(OR(Table_PI[[#This Row],[Hide: Baseline kW]]=\"\",Table_PI[[#This Row],[Hide: Baseline kW]]=0,ISTEXT(Table_PI[[#This Row],[Hide: Baseline kW]])),\"\",Table_PI[[#This Row],[Hide: Baseline kW]])","v":""},{"$f":"IF(OR(Table_PI[[#This Row],[Hide: Proposed kWh]]=\"\",Table_PI[[#This Row],[Hide: Proposed kWh]]=0,ISTEXT(Table_PI[[#This Row],[Hide: Proposed kWh]])),\"\",Table_PI[[#This Row],[Hide: Proposed kWh]])","v":""},{"$f":"IF(OR(Table_PI[[#This Row],[Hide: Proposed kW]]=\"\",Table_PI[[#This Row],[Hide: Proposed kW]]=0,ISTEXT(Table_PI[[#This Row],[Hide: Proposed kW]])),\"\",Table_PI[[#This Row],[Hide: Proposed kW]])","v":""},null,null,{"$f":"IF(OR(Table_PI[[#This Row],[Hide: Rebate]]=\"\",Table_PI[[#This Row],[Hide: Rebate]]=0,ISTEXT(Table_PI[[#This Row],[Hide: Rebate]])),\"\",Table_PI[[#This Row],[Hide: Rebate]])","v":""},null,{"$f":"IF(OR(Table_PI[[#This Row],[Hide: Incremental Cost]]=\"\",Table_PI[[#This Row],[Hide: Incremental Cost]]=0,ISTEXT(Table_PI[[#This Row],[Hide: Incremental Cost]])),\"\",Table_PI[[#This Row],[Hide: Incremental Cost]])","v":""},{"$f":"IFERROR(IF(Table_SummaryPI[[#This Row],[Incentive_Customer]]=\"\",\"\",ROUND(Table_SummaryPI[[#This Row],[Incentive_Customer]]/$AM$401*'Customer Information'!$BC$21,2)),0)","v":""},{"$f":"IF(OR(Table_PI[[#This Row],[Annual kWh]]=\"\",Table_PI[[#This Row],[Annual kWh]]=0,ISTEXT(Table_PI[[#This Row],[Annual kWh]])),\"\",Table_PI[[#This Row],[Annual kWh]])","v":""},{"$f":"IF(OR(Table_PI[[#This Row],[Peak kW]]=\"\",Table_PI[[#This Row],[Peak kW]]=0,ISTEXT(Table_PI[[#This Row],[Peak kW]])),\"\",Table_PI[[#This Row],[Peak kW]])","v":""},{"$f":"IF(Table_SummaryPI[[#This Row],[Line No.]]<>\"\",IF(AND(ISNUMBER(FIND(\"Chiller\",Table_SummaryPI[[#This Row],[P_MeasureOption1]],1)),Table_SummaryPI[[#This Row],[ProposedMeasureCategory]]=\"Air-Cooled (Water-Cooled Replacement)\"),$BD$29*Table_SummaryPI[[#This Row],[Size]]*Table_SummaryPI[[#This Row],[Quantity]]*Table_SummaryPI[[#This Row],[EFLHCooling]],\nIF(ISNUMBER(FIND(\"Dishwasher\",Table_SummaryPI[[#This Row],[ProposedMeasureCategory]],1)),$BH$29*Table_SummaryPI[[#This Row],[Quantity]],\nIF(ISNUMBER(FIND(\"Ice Maker\",Table_SummaryPI[[#This Row],[ProposedMeasureCategory]],1)),$BD$31*Table_SummaryPI[[#This Row],[Quantity]],\nIF(ISNUMBER(FIND(\"Spray Valve\",Table_SummaryPI[[#This Row],[ProposedMeasureCategory]],1)),$BH$31*Table_SummaryPI[[#This Row],[Quantity]],\n0)))),\"\")","v":""},{"$f":"IF(OR(Table_PI[[#This Row],[Hide: Electrification kWh]]=\"\",Table_PI[[#This Row],[Hide: Electrification kWh]]=0,ISTEXT(Table_PI[[#This Row],[Hide: Electrification kWh]])),\"\",Table_PI[[#This Row],[Hide: Electrification kWh]])","v":""},{"$f":"IF(OR(Table_PI[[#This Row],[Hide: Electrification GHG]]=\"\",Table_PI[[#This Row],[Hide: Electrification GHG]]=0,ISTEXT(Table_PI[[#This Row],[Hide: Electrification GHG]])),\"\",Table_PI[[#This Row],[Hide: Electrification GHG]])","v":""},{"$f":"IFERROR(IF(Table_SummaryPI[[#This Row],[kWhSavings]]=\"\",\"\",$BH$9*Table_SummaryPI[[#This Row],[kWhSavings]]),0)","v":""},{"$f":"IFERROR(IF(Table_SummaryPI[[#This Row],[kWhSavings]]=\"\",\"\",$BH$14*Table_SummaryPI[[#This Row],[kWhSavings]]),0)","v":""},{"$f":"IFERROR(IF(Table_SummaryPI[[#This Row],[kWhSavings]]=\"\",\"\",$BH$18*Table_SummaryPI[[#This Row],[kWhSavings]]),0)","v":""},{"$f":"IFERROR(IF(Table_SummaryPI[[#This Row],[kWhSavings]]=\"\",\"\",$BH$22*Table_SummaryPI[[#This Row],[kWhSavings]]),0)","v":""}]
[{"$f":"Table_PI[[#This Row],[Line No.]]","v":""},{"$f":"IF(Table_SummaryPI[[#This Row],[MeasureName]]<>\"\",NOT(ISTEXT(Table_PI[[#This Row],[Rebate]])),\"\")","v":""},{"$f":"IF(Table_SummaryPI[[#This Row],[MeassureCategory]]<>\"\",CONCATENATE(Table_SummaryPI[[#This Row],[MeassureCategory]],  \" - \", Table_SummaryPI[[#This Row],[ProposedMeasureCategory]],  \" - \", TEXT(Table_SummaryPI[[#This Row],[Size]],\"#,##0.00\"),\" \",Table_SummaryPI[[#This Row],[SizeUnit]]),\"\")","v":""},{"$f":"SUBSTITUTE(Table_PI[[#This Row],[Measure]],\"     \",\"\",1)","v":""},{"$f":"IF(Table_PI[[#This Row],[List 1]]<>\"\",Table_PI[[#This Row],[List 1]],\"\")","v":""},{"$f":"IF(Table_PI[[#This Row],[List 2]]<>\"\",Table_PI[[#This Row],[List 2]],\"\")","v":""},{"$f":"IF(Table_PI[[#This Row],[List 3]]<>\"\",Table_PI[[#This Row],[List 3]],\"\")","v":""},{"$f":"IF(Table_PI[[#This Row],[Manufacturer]]=\"\",\"\",Table_PI[[#This Row],[Manufacturer]])","v":""},{"$f":"IF(Table_PI[[#This Row],[Model Number]]=\"\",\"\",Table_PI[[#This Row],[Model Number]])","v":""},{"$f":"IF(Table_PI[[#This Row],[Serial Number(s)]]=\"\",\"\",Table_PI[[#This Row],[Serial Number(s)]])","v":""},null,{"$f":"IF(Table_PI[[#This Row],[Size]]=\"\",\"\",Table_PI[[#This Row],[Size]])","v":""},null,null,{"$f":"IF(Table_PI[[#This Row],[Input 1]]<>\"\",Table_PI[[#This Row],[Input 1]],\"\")","v":""},null,null,{"$f":"IF(Table_PI[[#This Row],[Input 2]]<>\"\",Table_PI[[#This Row],[Input 2]],\"\")","v":""},null,null,{"$f":"IF(Table_PI[[#This Row],[Input 3]]<>\"\",Table_PI[[#This Row],[Input 3]],\"\")","v":""},null,null,{"$f":"IF(Table_PI[[#This Row],[Input 4]]<>\"\",Table_PI[[#This Row],[Input 4]],\"\")","v":""},null,null,{"$f":"IF(Table_PI[[#This Row],[Input 4]]<>\"\",Table_PI[[#This Row],[Input 4]],\"\")","v":""},null,null,{"$f":"IF(Table_PI[[#This Row],[Input 4]]<>\"\",Table_PI[[#This Row],[Input 4]],\"\")","v":""},{"$f":"IF(Table_PI[[#This Row],[Quantity]]=\"\",\"\",Table_PI[[#This Row],[Quantity]])","v":""},{"$f":"IF(Table_PI[[#This Row],[Notes]]=\"\",\"\",Table_PI[[#This Row],[Notes]])","v":""},{"$f":"IF(OR(Table_PI[[#This Row],[Hide: Baseline kWh]]=\"\",Table_PI[[#This Row],[Hide: Baseline kWh]]=0,ISTEXT(Table_PI[[#This Row],[Hide: Baseline kWh]])),\"\",Table_PI[[#This Row],[Hide: Baseline kWh]])","v":""},{"$f":"IF(OR(Table_PI[[#This Row],[Hide: Baseline kW]]=\"\",Table_PI[[#This Row],[Hide: Baseline kW]]=0,ISTEXT(Table_PI[[#This Row],[Hide: Baseline kW]])),\"\",Table_PI[[#This Row],[Hide: Baseline kW]])","v":""},{"$f":"IF(OR(Table_PI[[#This Row],[Hide: Proposed kWh]]=\"\",Table_PI[[#This Row],[Hide: Proposed kWh]]=0,ISTEXT(Table_PI[[#This Row],[Hide: Proposed kWh]])),\"\",Table_PI[[#This Row],[Hide: Proposed kWh]])","v":""},{"$f":"IF(OR(Table_PI[[#This Row],[Hide: Proposed kW]]=\"\",Table_PI[[#This Row],[Hide: Proposed kW]]=0,ISTEXT(Table_PI[[#This Row],[Hide: Proposed kW]])),\"\",Table_PI[[#This Row],[Hide: Proposed kW]])","v":""},null,null,{"$f":"IF(OR(Table_PI[[#This Row],[Hide: Rebate]]=\"\",Table_PI[[#This Row],[Hide: Rebate]]=0,ISTEXT(Table_PI[[#This Row],[Hide: Rebate]])),\"\",Table_PI[[#This Row],[Hide: Rebate]])","v":""},null,{"$f":"IF(OR(Table_PI[[#This Row],[Hide: Incremental Cost]]=\"\",Table_PI[[#This Row],[Hide: Incremental Cost]]=0,ISTEXT(Table_PI[[#This Row],[Hide: Incremental Cost]])),\"\",Table_PI[[#This Row],[Hide: Incremental Cost]])","v":""},{"$f":"IFERROR(IF(Table_SummaryPI[[#This Row],[Incentive_Customer]]=\"\",\"\",ROUND(Table_SummaryPI[[#This Row],[Incentive_Customer]]/$AM$401*'Customer Information'!$BC$21,2)),0)","v":""},{"$f":"IF(OR(Table_PI[[#This Row],[Annual kWh]]=\"\",Table_PI[[#This Row],[Annual kWh]]=0,ISTEXT(Table_PI[[#This Row],[Annual kWh]])),\"\",Table_PI[[#This Row],[Annual kWh]])","v":""},{"$f":"IF(OR(Table_PI[[#This Row],[Peak kW]]=\"\",Table_PI[[#This Row],[Peak kW]]=0,ISTEXT(Table_PI[[#This Row],[Peak kW]])),\"\",Table_PI[[#This Row],[Peak kW]])","v":""},{"$f":"IF(Table_SummaryPI[[#This Row],[Line No.]]<>\"\",IF(AND(ISNUMBER(FIND(\"Chiller\",Table_SummaryPI[[#This Row],[P_MeasureOption1]],1)),Table_SummaryPI[[#This Row],[ProposedMeasureCategory]]=\"Air-Cooled (Water-Cooled Replacement)\"),$BD$29*Table_SummaryPI[[#This Row],[Size]]*Table_SummaryPI[[#This Row],[Quantity]]*Table_SummaryPI[[#This Row],[EFLHCooling]],\nIF(ISNUMBER(FIND(\"Dishwasher\",Table_SummaryPI[[#This Row],[ProposedMeasureCategory]],1)),$BH$29*Table_SummaryPI[[#This Row],[Quantity]],\nIF(ISNUMBER(FIND(\"Ice Maker\",Table_SummaryPI[[#This Row],[ProposedMeasureCategory]],1)),$BD$31*Table_SummaryPI[[#This Row],[Quantity]],\nIF(ISNUMBER(FIND(\"Spray Valve\",Table_SummaryPI[[#This Row],[ProposedMeasureCategory]],1)),$BH$31*Table_SummaryPI[[#This Row],[Quantity]],\n0)))),\"\")","v":""},{"$f":"IF(OR(Table_PI[[#This Row],[Hide: Electrification kWh]]=\"\",Table_PI[[#This Row],[Hide: Electrification kWh]]=0,ISTEXT(Table_PI[[#This Row],[Hide: Electrification kWh]])),\"\",Table_PI[[#This Row],[Hide: Electrification kWh]])","v":""},{"$f":"IF(OR(Table_PI[[#This Row],[Hide: Electrification GHG]]=\"\",Table_PI[[#This Row],[Hide: Electrification GHG]]=0,ISTEXT(Table_PI[[#This Row],[Hide: Electrification GHG]])),\"\",Table_PI[[#This Row],[Hide: Electrification GHG]])","v":""},{"$f":"IFERROR(IF(Table_SummaryPI[[#This Row],[kWhSavings]]=\"\",\"\",$BH$9*Table_SummaryPI[[#This Row],[kWhSavings]]),0)","v":""},{"$f":"IFERROR(IF(Table_SummaryPI[[#This Row],[kWhSavings]]=\"\",\"\",$BH$14*Table_SummaryPI[[#This Row],[kWhSavings]]),0)","v":""},{"$f":"IFERROR(IF(Table_SummaryPI[[#This Row],[kWhSavings]]=\"\",\"\",$BH$18*Table_SummaryPI[[#This Row],[kWhSavings]]),0)","v":""},{"$f":"IFERROR(IF(Table_SummaryPI[[#This Row],[kWhSavings]]=\"\",\"\",$BH$22*Table_SummaryPI[[#This Row],[kWhSavings]]),0)","v":""}]
[{"$f":"Table_PI[[#This Row],[Line No.]]","v":""},{"$f":"IF(Table_SummaryPI[[#This Row],[MeasureName]]<>\"\",NOT(ISTEXT(Table_PI[[#This Row],[Rebate]])),\"\")","v":""},{"$f":"IF(Table_SummaryPI[[#This Row],[MeassureCategory]]<>\"\",CONCATENATE(Table_SummaryPI[[#This Row],[MeassureCategory]],  \" - \", Table_SummaryPI[[#This Row],[ProposedMeasureCategory]],  \" - \", TEXT(Table_SummaryPI[[#This Row],[Size]],\"#,##0.00\"),\" \",Table_SummaryPI[[#This Row],[SizeUnit]]),\"\")","v":""},{"$f":"SUBSTITUTE(Table_PI[[#This Row],[Measure]],\"     \",\"\",1)","v":""},{"$f":"IF(Table_PI[[#This Row],[List 1]]<>\"\",Table_PI[[#This Row],[List 1]],\"\")","v":""},{"$f":"IF(Table_PI[[#This Row],[List 2]]<>\"\",Table_PI[[#This Row],[List 2]],\"\")","v":""},{"$f":"IF(Table_PI[[#This Row],[List 3]]<>\"\",Table_PI[[#This Row],[List 3]],\"\")","v":""},{"$f":"IF(Table_PI[[#This Row],[Manufacturer]]=\"\",\"\",Table_PI[[#This Row],[Manufacturer]])","v":""},{"$f":"IF(Table_PI[[#This Row],[Model Number]]=\"\",\"\",Table_PI[[#This Row],[Model Number]])","v":""},{"$f":"IF(Table_PI[[#This Row],[Serial Number(s)]]=\"\",\"\",Table_PI[[#This Row],[Serial Number(s)]])","v":""},null,{"$f":"IF(Table_PI[[#This Row],[Size]]=\"\",\"\",Table_PI[[#This Row],[Size]])","v":""},null,null,{"$f":"IF(Table_PI[[#This Row],[Input 1]]<>\"\",Table_PI[[#This Row],[Input 1]],\"\")","v":""},null,null,{"$f":"IF(Table_PI[[#This Row],[Input 2]]<>\"\",Table_PI[[#This Row],[Input 2]],\"\")","v":""},null,null,{"$f":"IF(Table_PI[[#This Row],[Input 3]]<>\"\",Table_PI[[#This Row],[Input 3]],\"\")","v":""},null,null,{"$f":"IF(Table_PI[[#This Row],[Input 4]]<>\"\",Table_PI[[#This Row],[Input 4]],\"\")","v":""},null,null,{"$f":"IF(Table_PI[[#This Row],[Input 4]]<>\"\",Table_PI[[#This Row],[Input 4]],\"\")","v":""},null,null,{"$f":"IF(Table_PI[[#This Row],[Input 4]]<>\"\",Table_PI[[#This Row],[Input 4]],\"\")","v":""},{"$f":"IF(Table_PI[[#This Row],[Quantity]]=\"\",\"\",Table_PI[[#This Row],[Quantity]])","v":""},{"$f":"IF(Table_PI[[#This Row],[Notes]]=\"\",\"\",Table_PI[[#This Row],[Notes]])","v":""},{"$f":"IF(OR(Table_PI[[#This Row],[Hide: Baseline kWh]]=\"\",Table_PI[[#This Row],[Hide: Baseline kWh]]=0,ISTEXT(Table_PI[[#This Row],[Hide: Baseline kWh]])),\"\",Table_PI[[#This Row],[Hide: Baseline kWh]])","v":""},{"$f":"IF(OR(Table_PI[[#This Row],[Hide: Baseline kW]]=\"\",Table_PI[[#This Row],[Hide: Baseline kW]]=0,ISTEXT(Table_PI[[#This Row],[Hide: Baseline kW]])),\"\",Table_PI[[#This Row],[Hide: Baseline kW]])","v":""},{"$f":"IF(OR(Table_PI[[#This Row],[Hide: Proposed kWh]]=\"\",Table_PI[[#This Row],[Hide: Proposed kWh]]=0,ISTEXT(Table_PI[[#This Row],[Hide: Proposed kWh]])),\"\",Table_PI[[#This Row],[Hide: Proposed kWh]])","v":""},{"$f":"IF(OR(Table_PI[[#This Row],[Hide: Proposed kW]]=\"\",Table_PI[[#This Row],[Hide: Proposed kW]]=0,ISTEXT(Table_PI[[#This Row],[Hide: Proposed kW]])),\"\",Table_PI[[#This Row],[Hide: Proposed kW]])","v":""},null,null,{"$f":"IF(OR(Table_PI[[#This Row],[Hide: Rebate]]=\"\",Table_PI[[#This Row],[Hide: Rebate]]=0,ISTEXT(Table_PI[[#This Row],[Hide: Rebate]])),\"\",Table_PI[[#This Row],[Hide: Rebate]])","v":""},null,{"$f":"IF(OR(Table_PI[[#This Row],[Hide: Incremental Cost]]=\"\",Table_PI[[#This Row],[Hide: Incremental Cost]]=0,ISTEXT(Table_PI[[#This Row],[Hide: Incremental Cost]])),\"\",Table_PI[[#This Row],[Hide: Incremental Cost]])","v":""},{"$f":"IFERROR(IF(Table_SummaryPI[[#This Row],[Incentive_Customer]]=\"\",\"\",ROUND(Table_SummaryPI[[#This Row],[Incentive_Customer]]/$AM$401*'Customer Information'!$BC$21,2)),0)","v":""},{"$f":"IF(OR(Table_PI[[#This Row],[Annual kWh]]=\"\",Table_PI[[#This Row],[Annual kWh]]=0,ISTEXT(Table_PI[[#This Row],[Annual kWh]])),\"\",Table_PI[[#This Row],[Annual kWh]])","v":""},{"$f":"IF(OR(Table_PI[[#This Row],[Peak kW]]=\"\",Table_PI[[#This Row],[Peak kW]]=0,ISTEXT(Table_PI[[#This Row],[Peak kW]])),\"\",Table_PI[[#This Row],[Peak kW]])","v":""},{"$f":"IF(Table_SummaryPI[[#This Row],[Line No.]]<>\"\",IF(AND(ISNUMBER(FIND(\"Chiller\",Table_SummaryPI[[#This Row],[P_MeasureOption1]],1)),Table_SummaryPI[[#This Row],[ProposedMeasureCategory]]=\"Air-Cooled (Water-Cooled Replacement)\"),$BD$29*Table_SummaryPI[[#This Row],[Size]]*Table_SummaryPI[[#This Row],[Quantity]]*Table_SummaryPI[[#This Row],[EFLHCooling]],\nIF(ISNUMBER(FIND(\"Dishwasher\",Table_SummaryPI[[#This Row],[ProposedMeasureCategory]],1)),$BH$29*Table_SummaryPI[[#This Row],[Quantity]],\nIF(ISNUMBER(FIND(\"Ice Maker\",Table_SummaryPI[[#This Row],[ProposedMeasureCategory]],1)),$BD$31*Table_SummaryPI[[#This Row],[Quantity]],\nIF(ISNUMBER(FIND(\"Spray Valve\",Table_SummaryPI[[#This Row],[ProposedMeasureCategory]],1)),$BH$31*Table_SummaryPI[[#This Row],[Quantity]],\n0)))),\"\")","v":""},{"$f":"IF(OR(Table_PI[[#This Row],[Hide: Electrification kWh]]=\"\",Table_PI[[#This Row],[Hide: Electrification kWh]]=0,ISTEXT(Table_PI[[#This Row],[Hide: Electrification kWh]])),\"\",Table_PI[[#This Row],[Hide: Electrification kWh]])","v":""},{"$f":"IF(OR(Table_PI[[#This Row],[Hide: Electrification GHG]]=\"\",Table_PI[[#This Row],[Hide: Electrification GHG]]=0,ISTEXT(Table_PI[[#This Row],[Hide: Electrification GHG]])),\"\",Table_PI[[#This Row],[Hide: Electrification GHG]])","v":""},{"$f":"IFERROR(IF(Table_SummaryPI[[#This Row],[kWhSavings]]=\"\",\"\",$BH$9*Table_SummaryPI[[#This Row],[kWhSavings]]),0)","v":""},{"$f":"IFERROR(IF(Table_SummaryPI[[#This Row],[kWhSavings]]=\"\",\"\",$BH$14*Table_SummaryPI[[#This Row],[kWhSavings]]),0)","v":""},{"$f":"IFERROR(IF(Table_SummaryPI[[#This Row],[kWhSavings]]=\"\",\"\",$BH$18*Table_SummaryPI[[#This Row],[kWhSavings]]),0)","v":""},{"$f":"IFERROR(IF(Table_SummaryPI[[#This Row],[kWhSavings]]=\"\",\"\",$BH$22*Table_SummaryPI[[#This Row],[kWhSavings]]),0)","v":""}]
[{"$f":"Table_PI[[#This Row],[Line No.]]","v":""},{"$f":"IF(Table_SummaryPI[[#This Row],[MeasureName]]<>\"\",NOT(ISTEXT(Table_PI[[#This Row],[Rebate]])),\"\")","v":""},{"$f":"IF(Table_SummaryPI[[#This Row],[MeassureCategory]]<>\"\",CONCATENATE(Table_SummaryPI[[#This Row],[MeassureCategory]],  \" - \", Table_SummaryPI[[#This Row],[ProposedMeasureCategory]],  \" - \", TEXT(Table_SummaryPI[[#This Row],[Size]],\"#,##0.00\"),\" \",Table_SummaryPI[[#This Row],[SizeUnit]]),\"\")","v":""},{"$f":"SUBSTITUTE(Table_PI[[#This Row],[Measure]],\"     \",\"\",1)","v":""},{"$f":"IF(Table_PI[[#This Row],[List 1]]<>\"\",Table_PI[[#This Row],[List 1]],\"\")","v":""},{"$f":"IF(Table_PI[[#This Row],[List 2]]<>\"\",Table_PI[[#This Row],[List 2]],\"\")","v":""},{"$f":"IF(Table_PI[[#This Row],[List 3]]<>\"\",Table_PI[[#This Row],[List 3]],\"\")","v":""},{"$f":"IF(Table_PI[[#This Row],[Manufacturer]]=\"\",\"\",Table_PI[[#This Row],[Manufacturer]])","v":""},{"$f":"IF(Table_PI[[#This Row],[Model Number]]=\"\",\"\",Table_PI[[#This Row],[Model Number]])","v":""},{"$f":"IF(Table_PI[[#This Row],[Serial Number(s)]]=\"\",\"\",Table_PI[[#This Row],[Serial Number(s)]])","v":""},null,{"$f":"IF(Table_PI[[#This Row],[Size]]=\"\",\"\",Table_PI[[#This Row],[Size]])","v":""},null,null,{"$f":"IF(Table_PI[[#This Row],[Input 1]]<>\"\",Table_PI[[#This Row],[Input 1]],\"\")","v":""},null,null,{"$f":"IF(Table_PI[[#This Row],[Input 2]]<>\"\",Table_PI[[#This Row],[Input 2]],\"\")","v":""},null,null,{"$f":"IF(Table_PI[[#This Row],[Input 3]]<>\"\",Table_PI[[#This Row],[Input 3]],\"\")","v":""},null,null,{"$f":"IF(Table_PI[[#This Row],[Input 4]]<>\"\",Table_PI[[#This Row],[Input 4]],\"\")","v":""},null,null,{"$f":"IF(Table_PI[[#This Row],[Input 4]]<>\"\",Table_PI[[#This Row],[Input 4]],\"\")","v":""},null,null,{"$f":"IF(Table_PI[[#This Row],[Input 4]]<>\"\",Table_PI[[#This Row],[Input 4]],\"\")","v":""},{"$f":"IF(Table_PI[[#This Row],[Quantity]]=\"\",\"\",Table_PI[[#This Row],[Quantity]])","v":""},{"$f":"IF(Table_PI[[#This Row],[Notes]]=\"\",\"\",Table_PI[[#This Row],[Notes]])","v":""},{"$f":"IF(OR(Table_PI[[#This Row],[Hide: Baseline kWh]]=\"\",Table_PI[[#This Row],[Hide: Baseline kWh]]=0,ISTEXT(Table_PI[[#This Row],[Hide: Baseline kWh]])),\"\",Table_PI[[#This Row],[Hide: Baseline kWh]])","v":""},{"$f":"IF(OR(Table_PI[[#This Row],[Hide: Baseline kW]]=\"\",Table_PI[[#This Row],[Hide: Baseline kW]]=0,ISTEXT(Table_PI[[#This Row],[Hide: Baseline kW]])),\"\",Table_PI[[#This Row],[Hide: Baseline kW]])","v":""},{"$f":"IF(OR(Table_PI[[#This Row],[Hide: Proposed kWh]]=\"\",Table_PI[[#This Row],[Hide: Proposed kWh]]=0,ISTEXT(Table_PI[[#This Row],[Hide: Proposed kWh]])),\"\",Table_PI[[#This Row],[Hide: Proposed kWh]])","v":""},{"$f":"IF(OR(Table_PI[[#This Row],[Hide: Proposed kW]]=\"\",Table_PI[[#This Row],[Hide: Proposed kW]]=0,ISTEXT(Table_PI[[#This Row],[Hide: Proposed kW]])),\"\",Table_PI[[#This Row],[Hide: Proposed kW]])","v":""},null,null,{"$f":"IF(OR(Table_PI[[#This Row],[Hide: Rebate]]=\"\",Table_PI[[#This Row],[Hide: Rebate]]=0,ISTEXT(Table_PI[[#This Row],[Hide: Rebate]])),\"\",Table_PI[[#This Row],[Hide: Rebate]])","v":""},null,{"$f":"IF(OR(Table_PI[[#This Row],[Hide: Incremental Cost]]=\"\",Table_PI[[#This Row],[Hide: Incremental Cost]]=0,ISTEXT(Table_PI[[#This Row],[Hide: Incremental Cost]])),\"\",Table_PI[[#This Row],[Hide: Incremental Cost]])","v":""},{"$f":"IFERROR(IF(Table_SummaryPI[[#This Row],[Incentive_Customer]]=\"\",\"\",ROUND(Table_SummaryPI[[#This Row],[Incentive_Customer]]/$AM$401*'Customer Information'!$BC$21,2)),0)","v":""},{"$f":"IF(OR(Table_PI[[#This Row],[Annual kWh]]=\"\",Table_PI[[#This Row],[Annual kWh]]=0,ISTEXT(Table_PI[[#This Row],[Annual kWh]])),\"\",Table_PI[[#This Row],[Annual kWh]])","v":""},{"$f":"IF(OR(Table_PI[[#This Row],[Peak kW]]=\"\",Table_PI[[#This Row],[Peak kW]]=0,ISTEXT(Table_PI[[#This Row],[Peak kW]])),\"\",Table_PI[[#This Row],[Peak kW]])","v":""},{"$f":"IF(Table_SummaryPI[[#This Row],[Line No.]]<>\"\",IF(AND(ISNUMBER(FIND(\"Chiller\",Table_SummaryPI[[#This Row],[P_MeasureOption1]],1)),Table_SummaryPI[[#This Row],[ProposedMeasureCategory]]=\"Air-Cooled (Water-Cooled Replacement)\"),$BD$29*Table_SummaryPI[[#This Row],[Size]]*Table_SummaryPI[[#This Row],[Quantity]]*Table_SummaryPI[[#This Row],[EFLHCooling]],\nIF(ISNUMBER(FIND(\"Dishwasher\",Table_SummaryPI[[#This Row],[ProposedMeasureCategory]],1)),$BH$29*Table_SummaryPI[[#This Row],[Quantity]],\nIF(ISNUMBER(FIND(\"Ice Maker\",Table_SummaryPI[[#This Row],[ProposedMeasureCategory]],1)),$BD$31*Table_SummaryPI[[#This Row],[Quantity]],\nIF(ISNUMBER(FIND(\"Spray Valve\",Table_SummaryPI[[#This Row],[ProposedMeasureCategory]],1)),$BH$31*Table_SummaryPI[[#This Row],[Quantity]],\n0)))),\"\")","v":""},{"$f":"IF(OR(Table_PI[[#This Row],[Hide: Electrification kWh]]=\"\",Table_PI[[#This Row],[Hide: Electrification kWh]]=0,ISTEXT(Table_PI[[#This Row],[Hide: Electrification kWh]])),\"\",Table_PI[[#This Row],[Hide: Electrification kWh]])","v":""},{"$f":"IF(OR(Table_PI[[#This Row],[Hide: Electrification GHG]]=\"\",Table_PI[[#This Row],[Hide: Electrification GHG]]=0,ISTEXT(Table_PI[[#This Row],[Hide: Electrification GHG]])),\"\",Table_PI[[#This Row],[Hide: Electrification GHG]])","v":""},{"$f":"IFERROR(IF(Table_SummaryPI[[#This Row],[kWhSavings]]=\"\",\"\",$BH$9*Table_SummaryPI[[#This Row],[kWhSavings]]),0)","v":""},{"$f":"IFERROR(IF(Table_SummaryPI[[#This Row],[kWhSavings]]=\"\",\"\",$BH$14*Table_SummaryPI[[#This Row],[kWhSavings]]),0)","v":""},{"$f":"IFERROR(IF(Table_SummaryPI[[#This Row],[kWhSavings]]=\"\",\"\",$BH$18*Table_SummaryPI[[#This Row],[kWhSavings]]),0)","v":""},{"$f":"IFERROR(IF(Table_SummaryPI[[#This Row],[kWhSavings]]=\"\",\"\",$BH$22*Table_SummaryPI[[#This Row],[kWhSavings]]),0)","v":""}]
[{"$f":"Table_PI[[#This Row],[Line No.]]","v":""},{"$f":"IF(Table_SummaryPI[[#This Row],[MeasureName]]<>\"\",NOT(ISTEXT(Table_PI[[#This Row],[Rebate]])),\"\")","v":""},{"$f":"IF(Table_SummaryPI[[#This Row],[MeassureCategory]]<>\"\",CONCATENATE(Table_SummaryPI[[#This Row],[MeassureCategory]],  \" - \", Table_SummaryPI[[#This Row],[ProposedMeasureCategory]],  \" - \", TEXT(Table_SummaryPI[[#This Row],[Size]],\"#,##0.00\"),\" \",Table_SummaryPI[[#This Row],[SizeUnit]]),\"\")","v":""},{"$f":"SUBSTITUTE(Table_PI[[#This Row],[Measure]],\"     \",\"\",1)","v":""},{"$f":"IF(Table_PI[[#This Row],[List 1]]<>\"\",Table_PI[[#This Row],[List 1]],\"\")","v":""},{"$f":"IF(Table_PI[[#This Row],[List 2]]<>\"\",Table_PI[[#This Row],[List 2]],\"\")","v":""},{"$f":"IF(Table_PI[[#This Row],[List 3]]<>\"\",Table_PI[[#This Row],[List 3]],\"\")","v":""},{"$f":"IF(Table_PI[[#This Row],[Manufacturer]]=\"\",\"\",Table_PI[[#This Row],[Manufacturer]])","v":""},{"$f":"IF(Table_PI[[#This Row],[Model Number]]=\"\",\"\",Table_PI[[#This Row],[Model Number]])","v":""},{"$f":"IF(Table_PI[[#This Row],[Serial Number(s)]]=\"\",\"\",Table_PI[[#This Row],[Serial Number(s)]])","v":""},null,{"$f":"IF(Table_PI[[#This Row],[Size]]=\"\",\"\",Table_PI[[#This Row],[Size]])","v":""},null,null,{"$f":"IF(Table_PI[[#This Row],[Input 1]]<>\"\",Table_PI[[#This Row],[Input 1]],\"\")","v":""},null,null,{"$f":"IF(Table_PI[[#This Row],[Input 2]]<>\"\",Table_PI[[#This Row],[Input 2]],\"\")","v":""},null,null,{"$f":"IF(Table_PI[[#This Row],[Input 3]]<>\"\",Table_PI[[#This Row],[Input 3]],\"\")","v":""},null,null,{"$f":"IF(Table_PI[[#This Row],[Input 4]]<>\"\",Table_PI[[#This Row],[Input 4]],\"\")","v":""},null,null,{"$f":"IF(Table_PI[[#This Row],[Input 4]]<>\"\",Table_PI[[#This Row],[Input 4]],\"\")","v":""},null,null,{"$f":"IF(Table_PI[[#This Row],[Input 4]]<>\"\",Table_PI[[#This Row],[Input 4]],\"\")","v":""},{"$f":"IF(Table_PI[[#This Row],[Quantity]]=\"\",\"\",Table_PI[[#This Row],[Quantity]])","v":""},{"$f":"IF(Table_PI[[#This Row],[Notes]]=\"\",\"\",Table_PI[[#This Row],[Notes]])","v":""},{"$f":"IF(OR(Table_PI[[#This Row],[Hide: Baseline kWh]]=\"\",Table_PI[[#This Row],[Hide: Baseline kWh]]=0,ISTEXT(Table_PI[[#This Row],[Hide: Baseline kWh]])),\"\",Table_PI[[#This Row],[Hide: Baseline kWh]])","v":""},{"$f":"IF(OR(Table_PI[[#This Row],[Hide: Baseline kW]]=\"\",Table_PI[[#This Row],[Hide: Baseline kW]]=0,ISTEXT(Table_PI[[#This Row],[Hide: Baseline kW]])),\"\",Table_PI[[#This Row],[Hide: Baseline kW]])","v":""},{"$f":"IF(OR(Table_PI[[#This Row],[Hide: Proposed kWh]]=\"\",Table_PI[[#This Row],[Hide: Proposed kWh]]=0,ISTEXT(Table_PI[[#This Row],[Hide: Proposed kWh]])),\"\",Table_PI[[#This Row],[Hide: Proposed kWh]])","v":""},{"$f":"IF(OR(Table_PI[[#This Row],[Hide: Proposed kW]]=\"\",Table_PI[[#This Row],[Hide: Proposed kW]]=0,ISTEXT(Table_PI[[#This Row],[Hide: Proposed kW]])),\"\",Table_PI[[#This Row],[Hide: Proposed kW]])","v":""},null,null,{"$f":"IF(OR(Table_PI[[#This Row],[Hide: Rebate]]=\"\",Table_PI[[#This Row],[Hide: Rebate]]=0,ISTEXT(Table_PI[[#This Row],[Hide: Rebate]])),\"\",Table_PI[[#This Row],[Hide: Rebate]])","v":""},null,{"$f":"IF(OR(Table_PI[[#This Row],[Hide: Incremental Cost]]=\"\",Table_PI[[#This Row],[Hide: Incremental Cost]]=0,ISTEXT(Table_PI[[#This Row],[Hide: Incremental Cost]])),\"\",Table_PI[[#This Row],[Hide: Incremental Cost]])","v":""},{"$f":"IFERROR(IF(Table_SummaryPI[[#This Row],[Incentive_Customer]]=\"\",\"\",ROUND(Table_SummaryPI[[#This Row],[Incentive_Customer]]/$AM$401*'Customer Information'!$BC$21,2)),0)","v":""},{"$f":"IF(OR(Table_PI[[#This Row],[Annual kWh]]=\"\",Table_PI[[#This Row],[Annual kWh]]=0,ISTEXT(Table_PI[[#This Row],[Annual kWh]])),\"\",Table_PI[[#This Row],[Annual kWh]])","v":""},{"$f":"IF(OR(Table_PI[[#This Row],[Peak kW]]=\"\",Table_PI[[#This Row],[Peak kW]]=0,ISTEXT(Table_PI[[#This Row],[Peak kW]])),\"\",Table_PI[[#This Row],[Peak kW]])","v":""},{"$f":"IF(Table_SummaryPI[[#This Row],[Line No.]]<>\"\",IF(AND(ISNUMBER(FIND(\"Chiller\",Table_SummaryPI[[#This Row],[P_MeasureOption1]],1)),Table_SummaryPI[[#This Row],[ProposedMeasureCategory]]=\"Air-Cooled (Water-Cooled Replacement)\"),$BD$29*Table_SummaryPI[[#This Row],[Size]]*Table_SummaryPI[[#This Row],[Quantity]]*Table_SummaryPI[[#This Row],[EFLHCooling]],\nIF(ISNUMBER(FIND(\"Dishwasher\",Table_SummaryPI[[#This Row],[ProposedMeasureCategory]],1)),$BH$29*Table_SummaryPI[[#This Row],[Quantity]],\nIF(ISNUMBER(FIND(\"Ice Maker\",Table_SummaryPI[[#This Row],[ProposedMeasureCategory]],1)),$BD$31*Table_SummaryPI[[#This Row],[Quantity]],\nIF(ISNUMBER(FIND(\"Spray Valve\",Table_SummaryPI[[#This Row],[ProposedMeasureCategory]],1)),$BH$31*Table_SummaryPI[[#This Row],[Quantity]],\n0)))),\"\")","v":""},{"$f":"IF(OR(Table_PI[[#This Row],[Hide: Electrification kWh]]=\"\",Table_PI[[#This Row],[Hide: Electrification kWh]]=0,ISTEXT(Table_PI[[#This Row],[Hide: Electrification kWh]])),\"\",Table_PI[[#This Row],[Hide: Electrification kWh]])","v":""},{"$f":"IF(OR(Table_PI[[#This Row],[Hide: Electrification GHG]]=\"\",Table_PI[[#This Row],[Hide: Electrification GHG]]=0,ISTEXT(Table_PI[[#This Row],[Hide: Electrification GHG]])),\"\",Table_PI[[#This Row],[Hide: Electrification GHG]])","v":""},{"$f":"IFERROR(IF(Table_SummaryPI[[#This Row],[kWhSavings]]=\"\",\"\",$BH$9*Table_SummaryPI[[#This Row],[kWhSavings]]),0)","v":""},{"$f":"IFERROR(IF(Table_SummaryPI[[#This Row],[kWhSavings]]=\"\",\"\",$BH$14*Table_SummaryPI[[#This Row],[kWhSavings]]),0)","v":""},{"$f":"IFERROR(IF(Table_SummaryPI[[#This Row],[kWhSavings]]=\"\",\"\",$BH$18*Table_SummaryPI[[#This Row],[kWhSavings]]),0)","v":""},{"$f":"IFERROR(IF(Table_SummaryPI[[#This Row],[kWhSavings]]=\"\",\"\",$BH$22*Table_SummaryPI[[#This Row],[kWhSavings]]),0)","v":""}]
[{"$f":"Table_PI[[#This Row],[Line No.]]","v":""},{"$f":"IF(Table_SummaryPI[[#This Row],[MeasureName]]<>\"\",NOT(ISTEXT(Table_PI[[#This Row],[Rebate]])),\"\")","v":""},{"$f":"IF(Table_SummaryPI[[#This Row],[MeassureCategory]]<>\"\",CONCATENATE(Table_SummaryPI[[#This Row],[MeassureCategory]],  \" - \", Table_SummaryPI[[#This Row],[ProposedMeasureCategory]],  \" - \", TEXT(Table_SummaryPI[[#This Row],[Size]],\"#,##0.00\"),\" \",Table_SummaryPI[[#This Row],[SizeUnit]]),\"\")","v":""},{"$f":"SUBSTITUTE(Table_PI[[#This Row],[Measure]],\"     \",\"\",1)","v":""},{"$f":"IF(Table_PI[[#This Row],[List 1]]<>\"\",Table_PI[[#This Row],[List 1]],\"\")","v":""},{"$f":"IF(Table_PI[[#This Row],[List 2]]<>\"\",Table_PI[[#This Row],[List 2]],\"\")","v":""},{"$f":"IF(Table_PI[[#This Row],[List 3]]<>\"\",Table_PI[[#This Row],[List 3]],\"\")","v":""},{"$f":"IF(Table_PI[[#This Row],[Manufacturer]]=\"\",\"\",Table_PI[[#This Row],[Manufacturer]])","v":""},{"$f":"IF(Table_PI[[#This Row],[Model Number]]=\"\",\"\",Table_PI[[#This Row],[Model Number]])","v":""},{"$f":"IF(Table_PI[[#This Row],[Serial Number(s)]]=\"\",\"\",Table_PI[[#This Row],[Serial Number(s)]])","v":""},null,{"$f":"IF(Table_PI[[#This Row],[Size]]=\"\",\"\",Table_PI[[#This Row],[Size]])","v":""},null,null,{"$f":"IF(Table_PI[[#This Row],[Input 1]]<>\"\",Table_PI[[#This Row],[Input 1]],\"\")","v":""},null,null,{"$f":"IF(Table_PI[[#This Row],[Input 2]]<>\"\",Table_PI[[#This Row],[Input 2]],\"\")","v":""},null,null,{"$f":"IF(Table_PI[[#This Row],[Input 3]]<>\"\",Table_PI[[#This Row],[Input 3]],\"\")","v":""},null,null,{"$f":"IF(Table_PI[[#This Row],[Input 4]]<>\"\",Table_PI[[#This Row],[Input 4]],\"\")","v":""},null,null,{"$f":"IF(Table_PI[[#This Row],[Input 4]]<>\"\",Table_PI[[#This Row],[Input 4]],\"\")","v":""},null,null,{"$f":"IF(Table_PI[[#This Row],[Input 4]]<>\"\",Table_PI[[#This Row],[Input 4]],\"\")","v":""},{"$f":"IF(Table_PI[[#This Row],[Quantity]]=\"\",\"\",Table_PI[[#This Row],[Quantity]])","v":""},{"$f":"IF(Table_PI[[#This Row],[Notes]]=\"\",\"\",Table_PI[[#This Row],[Notes]])","v":""},{"$f":"IF(OR(Table_PI[[#This Row],[Hide: Baseline kWh]]=\"\",Table_PI[[#This Row],[Hide: Baseline kWh]]=0,ISTEXT(Table_PI[[#This Row],[Hide: Baseline kWh]])),\"\",Table_PI[[#This Row],[Hide: Baseline kWh]])","v":""},{"$f":"IF(OR(Table_PI[[#This Row],[Hide: Baseline kW]]=\"\",Table_PI[[#This Row],[Hide: Baseline kW]]=0,ISTEXT(Table_PI[[#This Row],[Hide: Baseline kW]])),\"\",Table_PI[[#This Row],[Hide: Baseline kW]])","v":""},{"$f":"IF(OR(Table_PI[[#This Row],[Hide: Proposed kWh]]=\"\",Table_PI[[#This Row],[Hide: Proposed kWh]]=0,ISTEXT(Table_PI[[#This Row],[Hide: Proposed kWh]])),\"\",Table_PI[[#This Row],[Hide: Proposed kWh]])","v":""},{"$f":"IF(OR(Table_PI[[#This Row],[Hide: Proposed kW]]=\"\",Table_PI[[#This Row],[Hide: Proposed kW]]=0,ISTEXT(Table_PI[[#This Row],[Hide: Proposed kW]])),\"\",Table_PI[[#This Row],[Hide: Proposed kW]])","v":""},null,null,{"$f":"IF(OR(Table_PI[[#This Row],[Hide: Rebate]]=\"\",Table_PI[[#This Row],[Hide: Rebate]]=0,ISTEXT(Table_PI[[#This Row],[Hide: Rebate]])),\"\",Table_PI[[#This Row],[Hide: Rebate]])","v":""},null,{"$f":"IF(OR(Table_PI[[#This Row],[Hide: Incremental Cost]]=\"\",Table_PI[[#This Row],[Hide: Incremental Cost]]=0,ISTEXT(Table_PI[[#This Row],[Hide: Incremental Cost]])),\"\",Table_PI[[#This Row],[Hide: Incremental Cost]])","v":""},{"$f":"IFERROR(IF(Table_SummaryPI[[#This Row],[Incentive_Customer]]=\"\",\"\",ROUND(Table_SummaryPI[[#This Row],[Incentive_Customer]]/$AM$401*'Customer Information'!$BC$21,2)),0)","v":""},{"$f":"IF(OR(Table_PI[[#This Row],[Annual kWh]]=\"\",Table_PI[[#This Row],[Annual kWh]]=0,ISTEXT(Table_PI[[#This Row],[Annual kWh]])),\"\",Table_PI[[#This Row],[Annual kWh]])","v":""},{"$f":"IF(OR(Table_PI[[#This Row],[Peak kW]]=\"\",Table_PI[[#This Row],[Peak kW]]=0,ISTEXT(Table_PI[[#This Row],[Peak kW]])),\"\",Table_PI[[#This Row],[Peak kW]])","v":""},{"$f":"IF(Table_SummaryPI[[#This Row],[Line No.]]<>\"\",IF(AND(ISNUMBER(FIND(\"Chiller\",Table_SummaryPI[[#This Row],[P_MeasureOption1]],1)),Table_SummaryPI[[#This Row],[ProposedMeasureCategory]]=\"Air-Cooled (Water-Cooled Replacement)\"),$BD$29*Table_SummaryPI[[#This Row],[Size]]*Table_SummaryPI[[#This Row],[Quantity]]*Table_SummaryPI[[#This Row],[EFLHCooling]],\nIF(ISNUMBER(FIND(\"Dishwasher\",Table_SummaryPI[[#This Row],[ProposedMeasureCategory]],1)),$BH$29*Table_SummaryPI[[#This Row],[Quantity]],\nIF(ISNUMBER(FIND(\"Ice Maker\",Table_SummaryPI[[#This Row],[ProposedMeasureCategory]],1)),$BD$31*Table_SummaryPI[[#This Row],[Quantity]],\nIF(ISNUMBER(FIND(\"Spray Valve\",Table_SummaryPI[[#This Row],[ProposedMeasureCategory]],1)),$BH$31*Table_SummaryPI[[#This Row],[Quantity]],\n0)))),\"\")","v":""},{"$f":"IF(OR(Table_PI[[#This Row],[Hide: Electrification kWh]]=\"\",Table_PI[[#This Row],[Hide: Electrification kWh]]=0,ISTEXT(Table_PI[[#This Row],[Hide: Electrification kWh]])),\"\",Table_PI[[#This Row],[Hide: Electrification kWh]])","v":""},{"$f":"IF(OR(Table_PI[[#This Row],[Hide: Electrification GHG]]=\"\",Table_PI[[#This Row],[Hide: Electrification GHG]]=0,ISTEXT(Table_PI[[#This Row],[Hide: Electrification GHG]])),\"\",Table_PI[[#This Row],[Hide: Electrification GHG]])","v":""},{"$f":"IFERROR(IF(Table_SummaryPI[[#This Row],[kWhSavings]]=\"\",\"\",$BH$9*Table_SummaryPI[[#This Row],[kWhSavings]]),0)","v":""},{"$f":"IFERROR(IF(Table_SummaryPI[[#This Row],[kWhSavings]]=\"\",\"\",$BH$14*Table_SummaryPI[[#This Row],[kWhSavings]]),0)","v":""},{"$f":"IFERROR(IF(Table_SummaryPI[[#This Row],[kWhSavings]]=\"\",\"\",$BH$18*Table_SummaryPI[[#This Row],[kWhSavings]]),0)","v":""},{"$f":"IFERROR(IF(Table_SummaryPI[[#This Row],[kWhSavings]]=\"\",\"\",$BH$22*Table_SummaryPI[[#This Row],[kWhSavings]]),0)","v":""}]
[{"$f":"Table_PI[[#This Row],[Line No.]]","v":""},{"$f":"IF(Table_SummaryPI[[#This Row],[MeasureName]]<>\"\",NOT(ISTEXT(Table_PI[[#This Row],[Rebate]])),\"\")","v":""},{"$f":"IF(Table_SummaryPI[[#This Row],[MeassureCategory]]<>\"\",CONCATENATE(Table_SummaryPI[[#This Row],[MeassureCategory]],  \" - \", Table_SummaryPI[[#This Row],[ProposedMeasureCategory]],  \" - \", TEXT(Table_SummaryPI[[#This Row],[Size]],\"#,##0.00\"),\" \",Table_SummaryPI[[#This Row],[SizeUnit]]),\"\")","v":""},{"$f":"SUBSTITUTE(Table_PI[[#This Row],[Measure]],\"     \",\"\",1)","v":""},{"$f":"IF(Table_PI[[#This Row],[List 1]]<>\"\",Table_PI[[#This Row],[List 1]],\"\")","v":""},{"$f":"IF(Table_PI[[#This Row],[List 2]]<>\"\",Table_PI[[#This Row],[List 2]],\"\")","v":""},{"$f":"IF(Table_PI[[#This Row],[List 3]]<>\"\",Table_PI[[#This Row],[List 3]],\"\")","v":""},{"$f":"IF(Table_PI[[#This Row],[Manufacturer]]=\"\",\"\",Table_PI[[#This Row],[Manufacturer]])","v":""},{"$f":"IF(Table_PI[[#This Row],[Model Number]]=\"\",\"\",Table_PI[[#This Row],[Model Number]])","v":""},{"$f":"IF(Table_PI[[#This Row],[Serial Number(s)]]=\"\",\"\",Table_PI[[#This Row],[Serial Number(s)]])","v":""},null,{"$f":"IF(Table_PI[[#This Row],[Size]]=\"\",\"\",Table_PI[[#This Row],[Size]])","v":""},null,null,{"$f":"IF(Table_PI[[#This Row],[Input 1]]<>\"\",Table_PI[[#This Row],[Input 1]],\"\")","v":""},null,null,{"$f":"IF(Table_PI[[#This Row],[Input 2]]<>\"\",Table_PI[[#This Row],[Input 2]],\"\")","v":""},null,null,{"$f":"IF(Table_PI[[#This Row],[Input 3]]<>\"\",Table_PI[[#This Row],[Input 3]],\"\")","v":""},null,null,{"$f":"IF(Table_PI[[#This Row],[Input 4]]<>\"\",Table_PI[[#This Row],[Input 4]],\"\")","v":""},null,null,{"$f":"IF(Table_PI[[#This Row],[Input 4]]<>\"\",Table_PI[[#This Row],[Input 4]],\"\")","v":""},null,null,{"$f":"IF(Table_PI[[#This Row],[Input 4]]<>\"\",Table_PI[[#This Row],[Input 4]],\"\")","v":""},{"$f":"IF(Table_PI[[#This Row],[Quantity]]=\"\",\"\",Table_PI[[#This Row],[Quantity]])","v":""},{"$f":"IF(Table_PI[[#This Row],[Notes]]=\"\",\"\",Table_PI[[#This Row],[Notes]])","v":""},{"$f":"IF(OR(Table_PI[[#This Row],[Hide: Baseline kWh]]=\"\",Table_PI[[#This Row],[Hide: Baseline kWh]]=0,ISTEXT(Table_PI[[#This Row],[Hide: Baseline kWh]])),\"\",Table_PI[[#This Row],[Hide: Baseline kWh]])","v":""},{"$f":"IF(OR(Table_PI[[#This Row],[Hide: Baseline kW]]=\"\",Table_PI[[#This Row],[Hide: Baseline kW]]=0,ISTEXT(Table_PI[[#This Row],[Hide: Baseline kW]])),\"\",Table_PI[[#This Row],[Hide: Baseline kW]])","v":""},{"$f":"IF(OR(Table_PI[[#This Row],[Hide: Proposed kWh]]=\"\",Table_PI[[#This Row],[Hide: Proposed kWh]]=0,ISTEXT(Table_PI[[#This Row],[Hide: Proposed kWh]])),\"\",Table_PI[[#This Row],[Hide: Proposed kWh]])","v":""},{"$f":"IF(OR(Table_PI[[#This Row],[Hide: Proposed kW]]=\"\",Table_PI[[#This Row],[Hide: Proposed kW]]=0,ISTEXT(Table_PI[[#This Row],[Hide: Proposed kW]])),\"\",Table_PI[[#This Row],[Hide: Proposed kW]])","v":""},null,null,{"$f":"IF(OR(Table_PI[[#This Row],[Hide: Rebate]]=\"\",Table_PI[[#This Row],[Hide: Rebate]]=0,ISTEXT(Table_PI[[#This Row],[Hide: Rebate]])),\"\",Table_PI[[#This Row],[Hide: Rebate]])","v":""},null,{"$f":"IF(OR(Table_PI[[#This Row],[Hide: Incremental Cost]]=\"\",Table_PI[[#This Row],[Hide: Incremental Cost]]=0,ISTEXT(Table_PI[[#This Row],[Hide: Incremental Cost]])),\"\",Table_PI[[#This Row],[Hide: Incremental Cost]])","v":""},{"$f":"IFERROR(IF(Table_SummaryPI[[#This Row],[Incentive_Customer]]=\"\",\"\",ROUND(Table_SummaryPI[[#This Row],[Incentive_Customer]]/$AM$401*'Customer Information'!$BC$21,2)),0)","v":""},{"$f":"IF(OR(Table_PI[[#This Row],[Annual kWh]]=\"\",Table_PI[[#This Row],[Annual kWh]]=0,ISTEXT(Table_PI[[#This Row],[Annual kWh]])),\"\",Table_PI[[#This Row],[Annual kWh]])","v":""},{"$f":"IF(OR(Table_PI[[#This Row],[Peak kW]]=\"\",Table_PI[[#This Row],[Peak kW]]=0,ISTEXT(Table_PI[[#This Row],[Peak kW]])),\"\",Table_PI[[#This Row],[Peak kW]])","v":""},{"$f":"IF(Table_SummaryPI[[#This Row],[Line No.]]<>\"\",IF(AND(ISNUMBER(FIND(\"Chiller\",Table_SummaryPI[[#This Row],[P_MeasureOption1]],1)),Table_SummaryPI[[#This Row],[ProposedMeasureCategory]]=\"Air-Cooled (Water-Cooled Replacement)\"),$BD$29*Table_SummaryPI[[#This Row],[Size]]*Table_SummaryPI[[#This Row],[Quantity]]*Table_SummaryPI[[#This Row],[EFLHCooling]],\nIF(ISNUMBER(FIND(\"Dishwasher\",Table_SummaryPI[[#This Row],[ProposedMeasureCategory]],1)),$BH$29*Table_SummaryPI[[#This Row],[Quantity]],\nIF(ISNUMBER(FIND(\"Ice Maker\",Table_SummaryPI[[#This Row],[ProposedMeasureCategory]],1)),$BD$31*Table_SummaryPI[[#This Row],[Quantity]],\nIF(ISNUMBER(FIND(\"Spray Valve\",Table_SummaryPI[[#This Row],[ProposedMeasureCategory]],1)),$BH$31*Table_SummaryPI[[#This Row],[Quantity]],\n0)))),\"\")","v":""},{"$f":"IF(OR(Table_PI[[#This Row],[Hide: Electrification kWh]]=\"\",Table_PI[[#This Row],[Hide: Electrification kWh]]=0,ISTEXT(Table_PI[[#This Row],[Hide: Electrification kWh]])),\"\",Table_PI[[#This Row],[Hide: Electrification kWh]])","v":""},{"$f":"IF(OR(Table_PI[[#This Row],[Hide: Electrification GHG]]=\"\",Table_PI[[#This Row],[Hide: Electrification GHG]]=0,ISTEXT(Table_PI[[#This Row],[Hide: Electrification GHG]])),\"\",Table_PI[[#This Row],[Hide: Electrification GHG]])","v":""},{"$f":"IFERROR(IF(Table_SummaryPI[[#This Row],[kWhSavings]]=\"\",\"\",$BH$9*Table_SummaryPI[[#This Row],[kWhSavings]]),0)","v":""},{"$f":"IFERROR(IF(Table_SummaryPI[[#This Row],[kWhSavings]]=\"\",\"\",$BH$14*Table_SummaryPI[[#This Row],[kWhSavings]]),0)","v":""},{"$f":"IFERROR(IF(Table_SummaryPI[[#This Row],[kWhSavings]]=\"\",\"\",$BH$18*Table_SummaryPI[[#This Row],[kWhSavings]]),0)","v":""},{"$f":"IFERROR(IF(Table_SummaryPI[[#This Row],[kWhSavings]]=\"\",\"\",$BH$22*Table_SummaryPI[[#This Row],[kWhSavings]]),0)","v":""}]
[{"$f":"Table_PI[[#This Row],[Line No.]]","v":""},{"$f":"IF(Table_SummaryPI[[#This Row],[MeasureName]]<>\"\",NOT(ISTEXT(Table_PI[[#This Row],[Rebate]])),\"\")","v":""},{"$f":"IF(Table_SummaryPI[[#This Row],[MeassureCategory]]<>\"\",CONCATENATE(Table_SummaryPI[[#This Row],[MeassureCategory]],  \" - \", Table_SummaryPI[[#This Row],[ProposedMeasureCategory]],  \" - \", TEXT(Table_SummaryPI[[#This Row],[Size]],\"#,##0.00\"),\" \",Table_SummaryPI[[#This Row],[SizeUnit]]),\"\")","v":""},{"$f":"SUBSTITUTE(Table_PI[[#This Row],[Measure]],\"     \",\"\",1)","v":""},{"$f":"IF(Table_PI[[#This Row],[List 1]]<>\"\",Table_PI[[#This Row],[List 1]],\"\")","v":""},{"$f":"IF(Table_PI[[#This Row],[List 2]]<>\"\",Table_PI[[#This Row],[List 2]],\"\")","v":""},{"$f":"IF(Table_PI[[#This Row],[List 3]]<>\"\",Table_PI[[#This Row],[List 3]],\"\")","v":""},{"$f":"IF(Table_PI[[#This Row],[Manufacturer]]=\"\",\"\",Table_PI[[#This Row],[Manufacturer]])","v":""},{"$f":"IF(Table_PI[[#This Row],[Model Number]]=\"\",\"\",Table_PI[[#This Row],[Model Number]])","v":""},{"$f":"IF(Table_PI[[#This Row],[Serial Number(s)]]=\"\",\"\",Table_PI[[#This Row],[Serial Number(s)]])","v":""},null,{"$f":"IF(Table_PI[[#This Row],[Size]]=\"\",\"\",Table_PI[[#This Row],[Size]])","v":""},null,null,{"$f":"IF(Table_PI[[#This Row],[Input 1]]<>\"\",Table_PI[[#This Row],[Input 1]],\"\")","v":""},null,null,{"$f":"IF(Table_PI[[#This Row],[Input 2]]<>\"\",Table_PI[[#This Row],[Input 2]],\"\")","v":""},null,null,{"$f":"IF(Table_PI[[#This Row],[Input 3]]<>\"\",Table_PI[[#This Row],[Input 3]],\"\")","v":""},null,null,{"$f":"IF(Table_PI[[#This Row],[Input 4]]<>\"\",Table_PI[[#This Row],[Input 4]],\"\")","v":""},null,null,{"$f":"IF(Table_PI[[#This Row],[Input 4]]<>\"\",Table_PI[[#This Row],[Input 4]],\"\")","v":""},null,null,{"$f":"IF(Table_PI[[#This Row],[Input 4]]<>\"\",Table_PI[[#This Row],[Input 4]],\"\")","v":""},{"$f":"IF(Table_PI[[#This Row],[Quantity]]=\"\",\"\",Table_PI[[#This Row],[Quantity]])","v":""},{"$f":"IF(Table_PI[[#This Row],[Notes]]=\"\",\"\",Table_PI[[#This Row],[Notes]])","v":""},{"$f":"IF(OR(Table_PI[[#This Row],[Hide: Baseline kWh]]=\"\",Table_PI[[#This Row],[Hide: Baseline kWh]]=0,ISTEXT(Table_PI[[#This Row],[Hide: Baseline kWh]])),\"\",Table_PI[[#This Row],[Hide: Baseline kWh]])","v":""},{"$f":"IF(OR(Table_PI[[#This Row],[Hide: Baseline kW]]=\"\",Table_PI[[#This Row],[Hide: Baseline kW]]=0,ISTEXT(Table_PI[[#This Row],[Hide: Baseline kW]])),\"\",Table_PI[[#This Row],[Hide: Baseline kW]])","v":""},{"$f":"IF(OR(Table_PI[[#This Row],[Hide: Proposed kWh]]=\"\",Table_PI[[#This Row],[Hide: Proposed kWh]]=0,ISTEXT(Table_PI[[#This Row],[Hide: Proposed kWh]])),\"\",Table_PI[[#This Row],[Hide: Proposed kWh]])","v":""},{"$f":"IF(OR(Table_PI[[#This Row],[Hide: Proposed kW]]=\"\",Table_PI[[#This Row],[Hide: Proposed kW]]=0,ISTEXT(Table_PI[[#This Row],[Hide: Proposed kW]])),\"\",Table_PI[[#This Row],[Hide: Proposed kW]])","v":""},null,null,{"$f":"IF(OR(Table_PI[[#This Row],[Hide: Rebate]]=\"\",Table_PI[[#This Row],[Hide: Rebate]]=0,ISTEXT(Table_PI[[#This Row],[Hide: Rebate]])),\"\",Table_PI[[#This Row],[Hide: Rebate]])","v":""},null,{"$f":"IF(OR(Table_PI[[#This Row],[Hide: Incremental Cost]]=\"\",Table_PI[[#This Row],[Hide: Incremental Cost]]=0,ISTEXT(Table_PI[[#This Row],[Hide: Incremental Cost]])),\"\",Table_PI[[#This Row],[Hide: Incremental Cost]])","v":""},{"$f":"IFERROR(IF(Table_SummaryPI[[#This Row],[Incentive_Customer]]=\"\",\"\",ROUND(Table_SummaryPI[[#This Row],[Incentive_Customer]]/$AM$401*'Customer Information'!$BC$21,2)),0)","v":""},{"$f":"IF(OR(Table_PI[[#This Row],[Annual kWh]]=\"\",Table_PI[[#This Row],[Annual kWh]]=0,ISTEXT(Table_PI[[#This Row],[Annual kWh]])),\"\",Table_PI[[#This Row],[Annual kWh]])","v":""},{"$f":"IF(OR(Table_PI[[#This Row],[Peak kW]]=\"\",Table_PI[[#This Row],[Peak kW]]=0,ISTEXT(Table_PI[[#This Row],[Peak kW]])),\"\",Table_PI[[#This Row],[Peak kW]])","v":""},{"$f":"IF(Table_SummaryPI[[#This Row],[Line No.]]<>\"\",IF(AND(ISNUMBER(FIND(\"Chiller\",Table_SummaryPI[[#This Row],[P_MeasureOption1]],1)),Table_SummaryPI[[#This Row],[ProposedMeasureCategory]]=\"Air-Cooled (Water-Cooled Replacement)\"),$BD$29*Table_SummaryPI[[#This Row],[Size]]*Table_SummaryPI[[#This Row],[Quantity]]*Table_SummaryPI[[#This Row],[EFLHCooling]],\nIF(ISNUMBER(FIND(\"Dishwasher\",Table_SummaryPI[[#This Row],[ProposedMeasureCategory]],1)),$BH$29*Table_SummaryPI[[#This Row],[Quantity]],\nIF(ISNUMBER(FIND(\"Ice Maker\",Table_SummaryPI[[#This Row],[ProposedMeasureCategory]],1)),$BD$31*Table_SummaryPI[[#This Row],[Quantity]],\nIF(ISNUMBER(FIND(\"Spray Valve\",Table_SummaryPI[[#This Row],[ProposedMeasureCategory]],1)),$BH$31*Table_SummaryPI[[#This Row],[Quantity]],\n0)))),\"\")","v":""},{"$f":"IF(OR(Table_PI[[#This Row],[Hide: Electrification kWh]]=\"\",Table_PI[[#This Row],[Hide: Electrification kWh]]=0,ISTEXT(Table_PI[[#This Row],[Hide: Electrification kWh]])),\"\",Table_PI[[#This Row],[Hide: Electrification kWh]])","v":""},{"$f":"IF(OR(Table_PI[[#This Row],[Hide: Electrification GHG]]=\"\",Table_PI[[#This Row],[Hide: Electrification GHG]]=0,ISTEXT(Table_PI[[#This Row],[Hide: Electrification GHG]])),\"\",Table_PI[[#This Row],[Hide: Electrification GHG]])","v":""},{"$f":"IFERROR(IF(Table_SummaryPI[[#This Row],[kWhSavings]]=\"\",\"\",$BH$9*Table_SummaryPI[[#This Row],[kWhSavings]]),0)","v":""},{"$f":"IFERROR(IF(Table_SummaryPI[[#This Row],[kWhSavings]]=\"\",\"\",$BH$14*Table_SummaryPI[[#This Row],[kWhSavings]]),0)","v":""},{"$f":"IFERROR(IF(Table_SummaryPI[[#This Row],[kWhSavings]]=\"\",\"\",$BH$18*Table_SummaryPI[[#This Row],[kWhSavings]]),0)","v":""},{"$f":"IFERROR(IF(Table_SummaryPI[[#This Row],[kWhSavings]]=\"\",\"\",$BH$22*Table_SummaryPI[[#This Row],[kWhSavings]]),0)","v":""}]
[{"$f":"Table_PI[[#This Row],[Line No.]]","v":""},{"$f":"IF(Table_SummaryPI[[#This Row],[MeasureName]]<>\"\",NOT(ISTEXT(Table_PI[[#This Row],[Rebate]])),\"\")","v":""},{"$f":"IF(Table_SummaryPI[[#This Row],[MeassureCategory]]<>\"\",CONCATENATE(Table_SummaryPI[[#This Row],[MeassureCategory]],  \" - \", Table_SummaryPI[[#This Row],[ProposedMeasureCategory]],  \" - \", TEXT(Table_SummaryPI[[#This Row],[Size]],\"#,##0.00\"),\" \",Table_SummaryPI[[#This Row],[SizeUnit]]),\"\")","v":""},{"$f":"SUBSTITUTE(Table_PI[[#This Row],[Measure]],\"     \",\"\",1)","v":""},{"$f":"IF(Table_PI[[#This Row],[List 1]]<>\"\",Table_PI[[#This Row],[List 1]],\"\")","v":""},{"$f":"IF(Table_PI[[#This Row],[List 2]]<>\"\",Table_PI[[#This Row],[List 2]],\"\")","v":""},{"$f":"IF(Table_PI[[#This Row],[List 3]]<>\"\",Table_PI[[#This Row],[List 3]],\"\")","v":""},{"$f":"IF(Table_PI[[#This Row],[Manufacturer]]=\"\",\"\",Table_PI[[#This Row],[Manufacturer]])","v":""},{"$f":"IF(Table_PI[[#This Row],[Model Number]]=\"\",\"\",Table_PI[[#This Row],[Model Number]])","v":""},{"$f":"IF(Table_PI[[#This Row],[Serial Number(s)]]=\"\",\"\",Table_PI[[#This Row],[Serial Number(s)]])","v":""},null,{"$f":"IF(Table_PI[[#This Row],[Size]]=\"\",\"\",Table_PI[[#This Row],[Size]])","v":""},null,null,{"$f":"IF(Table_PI[[#This Row],[Input 1]]<>\"\",Table_PI[[#This Row],[Input 1]],\"\")","v":""},null,null,{"$f":"IF(Table_PI[[#This Row],[Input 2]]<>\"\",Table_PI[[#This Row],[Input 2]],\"\")","v":""},null,null,{"$f":"IF(Table_PI[[#This Row],[Input 3]]<>\"\",Table_PI[[#This Row],[Input 3]],\"\")","v":""},null,null,{"$f":"IF(Table_PI[[#This Row],[Input 4]]<>\"\",Table_PI[[#This Row],[Input 4]],\"\")","v":""},null,null,{"$f":"IF(Table_PI[[#This Row],[Input 4]]<>\"\",Table_PI[[#This Row],[Input 4]],\"\")","v":""},null,null,{"$f":"IF(Table_PI[[#This Row],[Input 4]]<>\"\",Table_PI[[#This Row],[Input 4]],\"\")","v":""},{"$f":"IF(Table_PI[[#This Row],[Quantity]]=\"\",\"\",Table_PI[[#This Row],[Quantity]])","v":""},{"$f":"IF(Table_PI[[#This Row],[Notes]]=\"\",\"\",Table_PI[[#This Row],[Notes]])","v":""},{"$f":"IF(OR(Table_PI[[#This Row],[Hide: Baseline kWh]]=\"\",Table_PI[[#This Row],[Hide: Baseline kWh]]=0,ISTEXT(Table_PI[[#This Row],[Hide: Baseline kWh]])),\"\",Table_PI[[#This Row],[Hide: Baseline kWh]])","v":""},{"$f":"IF(OR(Table_PI[[#This Row],[Hide: Baseline kW]]=\"\",Table_PI[[#This Row],[Hide: Baseline kW]]=0,ISTEXT(Table_PI[[#This Row],[Hide: Baseline kW]])),\"\",Table_PI[[#This Row],[Hide: Baseline kW]])","v":""},{"$f":"IF(OR(Table_PI[[#This Row],[Hide: Proposed kWh]]=\"\",Table_PI[[#This Row],[Hide: Proposed kWh]]=0,ISTEXT(Table_PI[[#This Row],[Hide: Proposed kWh]])),\"\",Table_PI[[#This Row],[Hide: Proposed kWh]])","v":""},{"$f":"IF(OR(Table_PI[[#This Row],[Hide: Proposed kW]]=\"\",Table_PI[[#This Row],[Hide: Proposed kW]]=0,ISTEXT(Table_PI[[#This Row],[Hide: Proposed kW]])),\"\",Table_PI[[#This Row],[Hide: Proposed kW]])","v":""},null,null,{"$f":"IF(OR(Table_PI[[#This Row],[Hide: Rebate]]=\"\",Table_PI[[#This Row],[Hide: Rebate]]=0,ISTEXT(Table_PI[[#This Row],[Hide: Rebate]])),\"\",Table_PI[[#This Row],[Hide: Rebate]])","v":""},null,{"$f":"IF(OR(Table_PI[[#This Row],[Hide: Incremental Cost]]=\"\",Table_PI[[#This Row],[Hide: Incremental Cost]]=0,ISTEXT(Table_PI[[#This Row],[Hide: Incremental Cost]])),\"\",Table_PI[[#This Row],[Hide: Incremental Cost]])","v":""},{"$f":"IFERROR(IF(Table_SummaryPI[[#This Row],[Incentive_Customer]]=\"\",\"\",ROUND(Table_SummaryPI[[#This Row],[Incentive_Customer]]/$AM$401*'Customer Information'!$BC$21,2)),0)","v":""},{"$f":"IF(OR(Table_PI[[#This Row],[Annual kWh]]=\"\",Table_PI[[#This Row],[Annual kWh]]=0,ISTEXT(Table_PI[[#This Row],[Annual kWh]])),\"\",Table_PI[[#This Row],[Annual kWh]])","v":""},{"$f":"IF(OR(Table_PI[[#This Row],[Peak kW]]=\"\",Table_PI[[#This Row],[Peak kW]]=0,ISTEXT(Table_PI[[#This Row],[Peak kW]])),\"\",Table_PI[[#This Row],[Peak kW]])","v":""},{"$f":"IF(Table_SummaryPI[[#This Row],[Line No.]]<>\"\",IF(AND(ISNUMBER(FIND(\"Chiller\",Table_SummaryPI[[#This Row],[P_MeasureOption1]],1)),Table_SummaryPI[[#This Row],[ProposedMeasureCategory]]=\"Air-Cooled (Water-Cooled Replacement)\"),$BD$29*Table_SummaryPI[[#This Row],[Size]]*Table_SummaryPI[[#This Row],[Quantity]]*Table_SummaryPI[[#This Row],[EFLHCooling]],\nIF(ISNUMBER(FIND(\"Dishwasher\",Table_SummaryPI[[#This Row],[ProposedMeasureCategory]],1)),$BH$29*Table_SummaryPI[[#This Row],[Quantity]],\nIF(ISNUMBER(FIND(\"Ice Maker\",Table_SummaryPI[[#This Row],[ProposedMeasureCategory]],1)),$BD$31*Table_SummaryPI[[#This Row],[Quantity]],\nIF(ISNUMBER(FIND(\"Spray Valve\",Table_SummaryPI[[#This Row],[ProposedMeasureCategory]],1)),$BH$31*Table_SummaryPI[[#This Row],[Quantity]],\n0)))),\"\")","v":""},{"$f":"IF(OR(Table_PI[[#This Row],[Hide: Electrification kWh]]=\"\",Table_PI[[#This Row],[Hide: Electrification kWh]]=0,ISTEXT(Table_PI[[#This Row],[Hide: Electrification kWh]])),\"\",Table_PI[[#This Row],[Hide: Electrification kWh]])","v":""},{"$f":"IF(OR(Table_PI[[#This Row],[Hide: Electrification GHG]]=\"\",Table_PI[[#This Row],[Hide: Electrification GHG]]=0,ISTEXT(Table_PI[[#This Row],[Hide: Electrification GHG]])),\"\",Table_PI[[#This Row],[Hide: Electrification GHG]])","v":""},{"$f":"IFERROR(IF(Table_SummaryPI[[#This Row],[kWhSavings]]=\"\",\"\",$BH$9*Table_SummaryPI[[#This Row],[kWhSavings]]),0)","v":""},{"$f":"IFERROR(IF(Table_SummaryPI[[#This Row],[kWhSavings]]=\"\",\"\",$BH$14*Table_SummaryPI[[#This Row],[kWhSavings]]),0)","v":""},{"$f":"IFERROR(IF(Table_SummaryPI[[#This Row],[kWhSavings]]=\"\",\"\",$BH$18*Table_SummaryPI[[#This Row],[kWhSavings]]),0)","v":""},{"$f":"IFERROR(IF(Table_SummaryPI[[#This Row],[kWhSavings]]=\"\",\"\",$BH$22*Table_SummaryPI[[#This Row],[kWhSavings]]),0)","v":""}]
[{"$f":"Table_PI[[#This Row],[Line No.]]","v":""},{"$f":"IF(Table_SummaryPI[[#This Row],[MeasureName]]<>\"\",NOT(ISTEXT(Table_PI[[#This Row],[Rebate]])),\"\")","v":""},{"$f":"IF(Table_SummaryPI[[#This Row],[MeassureCategory]]<>\"\",CONCATENATE(Table_SummaryPI[[#This Row],[MeassureCategory]],  \" - \", Table_SummaryPI[[#This Row],[ProposedMeasureCategory]],  \" - \", TEXT(Table_SummaryPI[[#This Row],[Size]],\"#,##0.00\"),\" \",Table_SummaryPI[[#This Row],[SizeUnit]]),\"\")","v":""},{"$f":"SUBSTITUTE(Table_PI[[#This Row],[Measure]],\"     \",\"\",1)","v":""},{"$f":"IF(Table_PI[[#This Row],[List 1]]<>\"\",Table_PI[[#This Row],[List 1]],\"\")","v":""},{"$f":"IF(Table_PI[[#This Row],[List 2]]<>\"\",Table_PI[[#This Row],[List 2]],\"\")","v":""},{"$f":"IF(Table_PI[[#This Row],[List 3]]<>\"\",Table_PI[[#This Row],[List 3]],\"\")","v":""},{"$f":"IF(Table_PI[[#This Row],[Manufacturer]]=\"\",\"\",Table_PI[[#This Row],[Manufacturer]])","v":""},{"$f":"IF(Table_PI[[#This Row],[Model Number]]=\"\",\"\",Table_PI[[#This Row],[Model Number]])","v":""},{"$f":"IF(Table_PI[[#This Row],[Serial Number(s)]]=\"\",\"\",Table_PI[[#This Row],[Serial Number(s)]])","v":""},null,{"$f":"IF(Table_PI[[#This Row],[Size]]=\"\",\"\",Table_PI[[#This Row],[Size]])","v":""},null,null,{"$f":"IF(Table_PI[[#This Row],[Input 1]]<>\"\",Table_PI[[#This Row],[Input 1]],\"\")","v":""},null,null,{"$f":"IF(Table_PI[[#This Row],[Input 2]]<>\"\",Table_PI[[#This Row],[Input 2]],\"\")","v":""},null,null,{"$f":"IF(Table_PI[[#This Row],[Input 3]]<>\"\",Table_PI[[#This Row],[Input 3]],\"\")","v":""},null,null,{"$f":"IF(Table_PI[[#This Row],[Input 4]]<>\"\",Table_PI[[#This Row],[Input 4]],\"\")","v":""},null,null,{"$f":"IF(Table_PI[[#This Row],[Input 4]]<>\"\",Table_PI[[#This Row],[Input 4]],\"\")","v":""},null,null,{"$f":"IF(Table_PI[[#This Row],[Input 4]]<>\"\",Table_PI[[#This Row],[Input 4]],\"\")","v":""},{"$f":"IF(Table_PI[[#This Row],[Quantity]]=\"\",\"\",Table_PI[[#This Row],[Quantity]])","v":""},{"$f":"IF(Table_PI[[#This Row],[Notes]]=\"\",\"\",Table_PI[[#This Row],[Notes]])","v":""},{"$f":"IF(OR(Table_PI[[#This Row],[Hide: Baseline kWh]]=\"\",Table_PI[[#This Row],[Hide: Baseline kWh]]=0,ISTEXT(Table_PI[[#This Row],[Hide: Baseline kWh]])),\"\",Table_PI[[#This Row],[Hide: Baseline kWh]])","v":""},{"$f":"IF(OR(Table_PI[[#This Row],[Hide: Baseline kW]]=\"\",Table_PI[[#This Row],[Hide: Baseline kW]]=0,ISTEXT(Table_PI[[#This Row],[Hide: Baseline kW]])),\"\",Table_PI[[#This Row],[Hide: Baseline kW]])","v":""},{"$f":"IF(OR(Table_PI[[#This Row],[Hide: Proposed kWh]]=\"\",Table_PI[[#This Row],[Hide: Proposed kWh]]=0,ISTEXT(Table_PI[[#This Row],[Hide: Proposed kWh]])),\"\",Table_PI[[#This Row],[Hide: Proposed kWh]])","v":""},{"$f":"IF(OR(Table_PI[[#This Row],[Hide: Proposed kW]]=\"\",Table_PI[[#This Row],[Hide: Proposed kW]]=0,ISTEXT(Table_PI[[#This Row],[Hide: Proposed kW]])),\"\",Table_PI[[#This Row],[Hide: Proposed kW]])","v":""},null,null,{"$f":"IF(OR(Table_PI[[#This Row],[Hide: Rebate]]=\"\",Table_PI[[#This Row],[Hide: Rebate]]=0,ISTEXT(Table_PI[[#This Row],[Hide: Rebate]])),\"\",Table_PI[[#This Row],[Hide: Rebate]])","v":""},null,{"$f":"IF(OR(Table_PI[[#This Row],[Hide: Incremental Cost]]=\"\",Table_PI[[#This Row],[Hide: Incremental Cost]]=0,ISTEXT(Table_PI[[#This Row],[Hide: Incremental Cost]])),\"\",Table_PI[[#This Row],[Hide: Incremental Cost]])","v":""},{"$f":"IFERROR(IF(Table_SummaryPI[[#This Row],[Incentive_Customer]]=\"\",\"\",ROUND(Table_SummaryPI[[#This Row],[Incentive_Customer]]/$AM$401*'Customer Information'!$BC$21,2)),0)","v":""},{"$f":"IF(OR(Table_PI[[#This Row],[Annual kWh]]=\"\",Table_PI[[#This Row],[Annual kWh]]=0,ISTEXT(Table_PI[[#This Row],[Annual kWh]])),\"\",Table_PI[[#This Row],[Annual kWh]])","v":""},{"$f":"IF(OR(Table_PI[[#This Row],[Peak kW]]=\"\",Table_PI[[#This Row],[Peak kW]]=0,ISTEXT(Table_PI[[#This Row],[Peak kW]])),\"\",Table_PI[[#This Row],[Peak kW]])","v":""},{"$f":"IF(Table_SummaryPI[[#This Row],[Line No.]]<>\"\",IF(AND(ISNUMBER(FIND(\"Chiller\",Table_SummaryPI[[#This Row],[P_MeasureOption1]],1)),Table_SummaryPI[[#This Row],[ProposedMeasureCategory]]=\"Air-Cooled (Water-Cooled Replacement)\"),$BD$29*Table_SummaryPI[[#This Row],[Size]]*Table_SummaryPI[[#This Row],[Quantity]]*Table_SummaryPI[[#This Row],[EFLHCooling]],\nIF(ISNUMBER(FIND(\"Dishwasher\",Table_SummaryPI[[#This Row],[ProposedMeasureCategory]],1)),$BH$29*Table_SummaryPI[[#This Row],[Quantity]],\nIF(ISNUMBER(FIND(\"Ice Maker\",Table_SummaryPI[[#This Row],[ProposedMeasureCategory]],1)),$BD$31*Table_SummaryPI[[#This Row],[Quantity]],\nIF(ISNUMBER(FIND(\"Spray Valve\",Table_SummaryPI[[#This Row],[ProposedMeasureCategory]],1)),$BH$31*Table_SummaryPI[[#This Row],[Quantity]],\n0)))),\"\")","v":""},{"$f":"IF(OR(Table_PI[[#This Row],[Hide: Electrification kWh]]=\"\",Table_PI[[#This Row],[Hide: Electrification kWh]]=0,ISTEXT(Table_PI[[#This Row],[Hide: Electrification kWh]])),\"\",Table_PI[[#This Row],[Hide: Electrification kWh]])","v":""},{"$f":"IF(OR(Table_PI[[#This Row],[Hide: Electrification GHG]]=\"\",Table_PI[[#This Row],[Hide: Electrification GHG]]=0,ISTEXT(Table_PI[[#This Row],[Hide: Electrification GHG]])),\"\",Table_PI[[#This Row],[Hide: Electrification GHG]])","v":""},{"$f":"IFERROR(IF(Table_SummaryPI[[#This Row],[kWhSavings]]=\"\",\"\",$BH$9*Table_SummaryPI[[#This Row],[kWhSavings]]),0)","v":""},{"$f":"IFERROR(IF(Table_SummaryPI[[#This Row],[kWhSavings]]=\"\",\"\",$BH$14*Table_SummaryPI[[#This Row],[kWhSavings]]),0)","v":""},{"$f":"IFERROR(IF(Table_SummaryPI[[#This Row],[kWhSavings]]=\"\",\"\",$BH$18*Table_SummaryPI[[#This Row],[kWhSavings]]),0)","v":""},{"$f":"IFERROR(IF(Table_SummaryPI[[#This Row],[kWhSavings]]=\"\",\"\",$BH$22*Table_SummaryPI[[#This Row],[kWhSavings]]),0)","v":""}]
[{"$f":"Table_PI[[#This Row],[Line No.]]","v":""},{"$f":"IF(Table_SummaryPI[[#This Row],[MeasureName]]<>\"\",NOT(ISTEXT(Table_PI[[#This Row],[Rebate]])),\"\")","v":""},{"$f":"IF(Table_SummaryPI[[#This Row],[MeassureCategory]]<>\"\",CONCATENATE(Table_SummaryPI[[#This Row],[MeassureCategory]],  \" - \", Table_SummaryPI[[#This Row],[ProposedMeasureCategory]],  \" - \", TEXT(Table_SummaryPI[[#This Row],[Size]],\"#,##0.00\"),\" \",Table_SummaryPI[[#This Row],[SizeUnit]]),\"\")","v":""},{"$f":"SUBSTITUTE(Table_PI[[#This Row],[Measure]],\"     \",\"\",1)","v":""},{"$f":"IF(Table_PI[[#This Row],[List 1]]<>\"\",Table_PI[[#This Row],[List 1]],\"\")","v":""},{"$f":"IF(Table_PI[[#This Row],[List 2]]<>\"\",Table_PI[[#This Row],[List 2]],\"\")","v":""},{"$f":"IF(Table_PI[[#This Row],[List 3]]<>\"\",Table_PI[[#This Row],[List 3]],\"\")","v":""},{"$f":"IF(Table_PI[[#This Row],[Manufacturer]]=\"\",\"\",Table_PI[[#This Row],[Manufacturer]])","v":""},{"$f":"IF(Table_PI[[#This Row],[Model Number]]=\"\",\"\",Table_PI[[#This Row],[Model Number]])","v":""},{"$f":"IF(Table_PI[[#This Row],[Serial Number(s)]]=\"\",\"\",Table_PI[[#This Row],[Serial Number(s)]])","v":""},null,{"$f":"IF(Table_PI[[#This Row],[Size]]=\"\",\"\",Table_PI[[#This Row],[Size]])","v":""},null,null,{"$f":"IF(Table_PI[[#This Row],[Input 1]]<>\"\",Table_PI[[#This Row],[Input 1]],\"\")","v":""},null,null,{"$f":"IF(Table_PI[[#This Row],[Input 2]]<>\"\",Table_PI[[#This Row],[Input 2]],\"\")","v":""},null,null,{"$f":"IF(Table_PI[[#This Row],[Input 3]]<>\"\",Table_PI[[#This Row],[Input 3]],\"\")","v":""},null,null,{"$f":"IF(Table_PI[[#This Row],[Input 4]]<>\"\",Table_PI[[#This Row],[Input 4]],\"\")","v":""},null,null,{"$f":"IF(Table_PI[[#This Row],[Input 4]]<>\"\",Table_PI[[#This Row],[Input 4]],\"\")","v":""},null,null,{"$f":"IF(Table_PI[[#This Row],[Input 4]]<>\"\",Table_PI[[#This Row],[Input 4]],\"\")","v":""},{"$f":"IF(Table_PI[[#This Row],[Quantity]]=\"\",\"\",Table_PI[[#This Row],[Quantity]])","v":""},{"$f":"IF(Table_PI[[#This Row],[Notes]]=\"\",\"\",Table_PI[[#This Row],[Notes]])","v":""},{"$f":"IF(OR(Table_PI[[#This Row],[Hide: Baseline kWh]]=\"\",Table_PI[[#This Row],[Hide: Baseline kWh]]=0,ISTEXT(Table_PI[[#This Row],[Hide: Baseline kWh]])),\"\",Table_PI[[#This Row],[Hide: Baseline kWh]])","v":""},{"$f":"IF(OR(Table_PI[[#This Row],[Hide: Baseline kW]]=\"\",Table_PI[[#This Row],[Hide: Baseline kW]]=0,ISTEXT(Table_PI[[#This Row],[Hide: Baseline kW]])),\"\",Table_PI[[#This Row],[Hide: Baseline kW]])","v":""},{"$f":"IF(OR(Table_PI[[#This Row],[Hide: Proposed kWh]]=\"\",Table_PI[[#This Row],[Hide: Proposed kWh]]=0,ISTEXT(Table_PI[[#This Row],[Hide: Proposed kWh]])),\"\",Table_PI[[#This Row],[Hide: Proposed kWh]])","v":""},{"$f":"IF(OR(Table_PI[[#This Row],[Hide: Proposed kW]]=\"\",Table_PI[[#This Row],[Hide: Proposed kW]]=0,ISTEXT(Table_PI[[#This Row],[Hide: Proposed kW]])),\"\",Table_PI[[#This Row],[Hide: Proposed kW]])","v":""},null,null,{"$f":"IF(OR(Table_PI[[#This Row],[Hide: Rebate]]=\"\",Table_PI[[#This Row],[Hide: Rebate]]=0,ISTEXT(Table_PI[[#This Row],[Hide: Rebate]])),\"\",Table_PI[[#This Row],[Hide: Rebate]])","v":""},null,{"$f":"IF(OR(Table_PI[[#This Row],[Hide: Incremental Cost]]=\"\",Table_PI[[#This Row],[Hide: Incremental Cost]]=0,ISTEXT(Table_PI[[#This Row],[Hide: Incremental Cost]])),\"\",Table_PI[[#This Row],[Hide: Incremental Cost]])","v":""},{"$f":"IFERROR(IF(Table_SummaryPI[[#This Row],[Incentive_Customer]]=\"\",\"\",ROUND(Table_SummaryPI[[#This Row],[Incentive_Customer]]/$AM$401*'Customer Information'!$BC$21,2)),0)","v":""},{"$f":"IF(OR(Table_PI[[#This Row],[Annual kWh]]=\"\",Table_PI[[#This Row],[Annual kWh]]=0,ISTEXT(Table_PI[[#This Row],[Annual kWh]])),\"\",Table_PI[[#This Row],[Annual kWh]])","v":""},{"$f":"IF(OR(Table_PI[[#This Row],[Peak kW]]=\"\",Table_PI[[#This Row],[Peak kW]]=0,ISTEXT(Table_PI[[#This Row],[Peak kW]])),\"\",Table_PI[[#This Row],[Peak kW]])","v":""},{"$f":"IF(Table_SummaryPI[[#This Row],[Line No.]]<>\"\",IF(AND(ISNUMBER(FIND(\"Chiller\",Table_SummaryPI[[#This Row],[P_MeasureOption1]],1)),Table_SummaryPI[[#This Row],[ProposedMeasureCategory]]=\"Air-Cooled (Water-Cooled Replacement)\"),$BD$29*Table_SummaryPI[[#This Row],[Size]]*Table_SummaryPI[[#This Row],[Quantity]]*Table_SummaryPI[[#This Row],[EFLHCooling]],\nIF(ISNUMBER(FIND(\"Dishwasher\",Table_SummaryPI[[#This Row],[ProposedMeasureCategory]],1)),$BH$29*Table_SummaryPI[[#This Row],[Quantity]],\nIF(ISNUMBER(FIND(\"Ice Maker\",Table_SummaryPI[[#This Row],[ProposedMeasureCategory]],1)),$BD$31*Table_SummaryPI[[#This Row],[Quantity]],\nIF(ISNUMBER(FIND(\"Spray Valve\",Table_SummaryPI[[#This Row],[ProposedMeasureCategory]],1)),$BH$31*Table_SummaryPI[[#This Row],[Quantity]],\n0)))),\"\")","v":""},{"$f":"IF(OR(Table_PI[[#This Row],[Hide: Electrification kWh]]=\"\",Table_PI[[#This Row],[Hide: Electrification kWh]]=0,ISTEXT(Table_PI[[#This Row],[Hide: Electrification kWh]])),\"\",Table_PI[[#This Row],[Hide: Electrification kWh]])","v":""},{"$f":"IF(OR(Table_PI[[#This Row],[Hide: Electrification GHG]]=\"\",Table_PI[[#This Row],[Hide: Electrification GHG]]=0,ISTEXT(Table_PI[[#This Row],[Hide: Electrification GHG]])),\"\",Table_PI[[#This Row],[Hide: Electrification GHG]])","v":""},{"$f":"IFERROR(IF(Table_SummaryPI[[#This Row],[kWhSavings]]=\"\",\"\",$BH$9*Table_SummaryPI[[#This Row],[kWhSavings]]),0)","v":""},{"$f":"IFERROR(IF(Table_SummaryPI[[#This Row],[kWhSavings]]=\"\",\"\",$BH$14*Table_SummaryPI[[#This Row],[kWhSavings]]),0)","v":""},{"$f":"IFERROR(IF(Table_SummaryPI[[#This Row],[kWhSavings]]=\"\",\"\",$BH$18*Table_SummaryPI[[#This Row],[kWhSavings]]),0)","v":""},{"$f":"IFERROR(IF(Table_SummaryPI[[#This Row],[kWhSavings]]=\"\",\"\",$BH$22*Table_SummaryPI[[#This Row],[kWhSavings]]),0)","v":""}]
[{"$f":"Table_PI[[#This Row],[Line No.]]","v":""},{"$f":"IF(Table_SummaryPI[[#This Row],[MeasureName]]<>\"\",NOT(ISTEXT(Table_PI[[#This Row],[Rebate]])),\"\")","v":""},{"$f":"IF(Table_SummaryPI[[#This Row],[MeassureCategory]]<>\"\",CONCATENATE(Table_SummaryPI[[#This Row],[MeassureCategory]],  \" - \", Table_SummaryPI[[#This Row],[ProposedMeasureCategory]],  \" - \", TEXT(Table_SummaryPI[[#This Row],[Size]],\"#,##0.00\"),\" \",Table_SummaryPI[[#This Row],[SizeUnit]]),\"\")","v":""},{"$f":"SUBSTITUTE(Table_PI[[#This Row],[Measure]],\"     \",\"\",1)","v":""},{"$f":"IF(Table_PI[[#This Row],[List 1]]<>\"\",Table_PI[[#This Row],[List 1]],\"\")","v":""},{"$f":"IF(Table_PI[[#This Row],[List 2]]<>\"\",Table_PI[[#This Row],[List 2]],\"\")","v":""},{"$f":"IF(Table_PI[[#This Row],[List 3]]<>\"\",Table_PI[[#This Row],[List 3]],\"\")","v":""},{"$f":"IF(Table_PI[[#This Row],[Manufacturer]]=\"\",\"\",Table_PI[[#This Row],[Manufacturer]])","v":""},{"$f":"IF(Table_PI[[#This Row],[Model Number]]=\"\",\"\",Table_PI[[#This Row],[Model Number]])","v":""},{"$f":"IF(Table_PI[[#This Row],[Serial Number(s)]]=\"\",\"\",Table_PI[[#This Row],[Serial Number(s)]])","v":""},null,{"$f":"IF(Table_PI[[#This Row],[Size]]=\"\",\"\",Table_PI[[#This Row],[Size]])","v":""},null,null,{"$f":"IF(Table_PI[[#This Row],[Input 1]]<>\"\",Table_PI[[#This Row],[Input 1]],\"\")","v":""},null,null,{"$f":"IF(Table_PI[[#This Row],[Input 2]]<>\"\",Table_PI[[#This Row],[Input 2]],\"\")","v":""},null,null,{"$f":"IF(Table_PI[[#This Row],[Input 3]]<>\"\",Table_PI[[#This Row],[Input 3]],\"\")","v":""},null,null,{"$f":"IF(Table_PI[[#This Row],[Input 4]]<>\"\",Table_PI[[#This Row],[Input 4]],\"\")","v":""},null,null,{"$f":"IF(Table_PI[[#This Row],[Input 4]]<>\"\",Table_PI[[#This Row],[Input 4]],\"\")","v":""},null,null,{"$f":"IF(Table_PI[[#This Row],[Input 4]]<>\"\",Table_PI[[#This Row],[Input 4]],\"\")","v":""},{"$f":"IF(Table_PI[[#This Row],[Quantity]]=\"\",\"\",Table_PI[[#This Row],[Quantity]])","v":""},{"$f":"IF(Table_PI[[#This Row],[Notes]]=\"\",\"\",Table_PI[[#This Row],[Notes]])","v":""},{"$f":"IF(OR(Table_PI[[#This Row],[Hide: Baseline kWh]]=\"\",Table_PI[[#This Row],[Hide: Baseline kWh]]=0,ISTEXT(Table_PI[[#This Row],[Hide: Baseline kWh]])),\"\",Table_PI[[#This Row],[Hide: Baseline kWh]])","v":""},{"$f":"IF(OR(Table_PI[[#This Row],[Hide: Baseline kW]]=\"\",Table_PI[[#This Row],[Hide: Baseline kW]]=0,ISTEXT(Table_PI[[#This Row],[Hide: Baseline kW]])),\"\",Table_PI[[#This Row],[Hide: Baseline kW]])","v":""},{"$f":"IF(OR(Table_PI[[#This Row],[Hide: Proposed kWh]]=\"\",Table_PI[[#This Row],[Hide: Proposed kWh]]=0,ISTEXT(Table_PI[[#This Row],[Hide: Proposed kWh]])),\"\",Table_PI[[#This Row],[Hide: Proposed kWh]])","v":""},{"$f":"IF(OR(Table_PI[[#This Row],[Hide: Proposed kW]]=\"\",Table_PI[[#This Row],[Hide: Proposed kW]]=0,ISTEXT(Table_PI[[#This Row],[Hide: Proposed kW]])),\"\",Table_PI[[#This Row],[Hide: Proposed kW]])","v":""},null,null,{"$f":"IF(OR(Table_PI[[#This Row],[Hide: Rebate]]=\"\",Table_PI[[#This Row],[Hide: Rebate]]=0,ISTEXT(Table_PI[[#This Row],[Hide: Rebate]])),\"\",Table_PI[[#This Row],[Hide: Rebate]])","v":""},null,{"$f":"IF(OR(Table_PI[[#This Row],[Hide: Incremental Cost]]=\"\",Table_PI[[#This Row],[Hide: Incremental Cost]]=0,ISTEXT(Table_PI[[#This Row],[Hide: Incremental Cost]])),\"\",Table_PI[[#This Row],[Hide: Incremental Cost]])","v":""},{"$f":"IFERROR(IF(Table_SummaryPI[[#This Row],[Incentive_Customer]]=\"\",\"\",ROUND(Table_SummaryPI[[#This Row],[Incentive_Customer]]/$AM$401*'Customer Information'!$BC$21,2)),0)","v":""},{"$f":"IF(OR(Table_PI[[#This Row],[Annual kWh]]=\"\",Table_PI[[#This Row],[Annual kWh]]=0,ISTEXT(Table_PI[[#This Row],[Annual kWh]])),\"\",Table_PI[[#This Row],[Annual kWh]])","v":""},{"$f":"IF(OR(Table_PI[[#This Row],[Peak kW]]=\"\",Table_PI[[#This Row],[Peak kW]]=0,ISTEXT(Table_PI[[#This Row],[Peak kW]])),\"\",Table_PI[[#This Row],[Peak kW]])","v":""},{"$f":"IF(Table_SummaryPI[[#This Row],[Line No.]]<>\"\",IF(AND(ISNUMBER(FIND(\"Chiller\",Table_SummaryPI[[#This Row],[P_MeasureOption1]],1)),Table_SummaryPI[[#This Row],[ProposedMeasureCategory]]=\"Air-Cooled (Water-Cooled Replacement)\"),$BD$29*Table_SummaryPI[[#This Row],[Size]]*Table_SummaryPI[[#This Row],[Quantity]]*Table_SummaryPI[[#This Row],[EFLHCooling]],\nIF(ISNUMBER(FIND(\"Dishwasher\",Table_SummaryPI[[#This Row],[ProposedMeasureCategory]],1)),$BH$29*Table_SummaryPI[[#This Row],[Quantity]],\nIF(ISNUMBER(FIND(\"Ice Maker\",Table_SummaryPI[[#This Row],[ProposedMeasureCategory]],1)),$BD$31*Table_SummaryPI[[#This Row],[Quantity]],\nIF(ISNUMBER(FIND(\"Spray Valve\",Table_SummaryPI[[#This Row],[ProposedMeasureCategory]],1)),$BH$31*Table_SummaryPI[[#This Row],[Quantity]],\n0)))),\"\")","v":""},{"$f":"IF(OR(Table_PI[[#This Row],[Hide: Electrification kWh]]=\"\",Table_PI[[#This Row],[Hide: Electrification kWh]]=0,ISTEXT(Table_PI[[#This Row],[Hide: Electrification kWh]])),\"\",Table_PI[[#This Row],[Hide: Electrification kWh]])","v":""},{"$f":"IF(OR(Table_PI[[#This Row],[Hide: Electrification GHG]]=\"\",Table_PI[[#This Row],[Hide: Electrification GHG]]=0,ISTEXT(Table_PI[[#This Row],[Hide: Electrification GHG]])),\"\",Table_PI[[#This Row],[Hide: Electrification GHG]])","v":""},{"$f":"IFERROR(IF(Table_SummaryPI[[#This Row],[kWhSavings]]=\"\",\"\",$BH$9*Table_SummaryPI[[#This Row],[kWhSavings]]),0)","v":""},{"$f":"IFERROR(IF(Table_SummaryPI[[#This Row],[kWhSavings]]=\"\",\"\",$BH$14*Table_SummaryPI[[#This Row],[kWhSavings]]),0)","v":""},{"$f":"IFERROR(IF(Table_SummaryPI[[#This Row],[kWhSavings]]=\"\",\"\",$BH$18*Table_SummaryPI[[#This Row],[kWhSavings]]),0)","v":""},{"$f":"IFERROR(IF(Table_SummaryPI[[#This Row],[kWhSavings]]=\"\",\"\",$BH$22*Table_SummaryPI[[#This Row],[kWhSavings]]),0)","v":""}]
[{"$f":"Table_PI[[#This Row],[Line No.]]","v":""},{"$f":"IF(Table_SummaryPI[[#This Row],[MeasureName]]<>\"\",NOT(ISTEXT(Table_PI[[#This Row],[Rebate]])),\"\")","v":""},{"$f":"IF(Table_SummaryPI[[#This Row],[MeassureCategory]]<>\"\",CONCATENATE(Table_SummaryPI[[#This Row],[MeassureCategory]],  \" - \", Table_SummaryPI[[#This Row],[ProposedMeasureCategory]],  \" - \", TEXT(Table_SummaryPI[[#This Row],[Size]],\"#,##0.00\"),\" \",Table_SummaryPI[[#This Row],[SizeUnit]]),\"\")","v":""},{"$f":"SUBSTITUTE(Table_PI[[#This Row],[Measure]],\"     \",\"\",1)","v":""},{"$f":"IF(Table_PI[[#This Row],[List 1]]<>\"\",Table_PI[[#This Row],[List 1]],\"\")","v":""},{"$f":"IF(Table_PI[[#This Row],[List 2]]<>\"\",Table_PI[[#This Row],[List 2]],\"\")","v":""},{"$f":"IF(Table_PI[[#This Row],[List 3]]<>\"\",Table_PI[[#This Row],[List 3]],\"\")","v":""},{"$f":"IF(Table_PI[[#This Row],[Manufacturer]]=\"\",\"\",Table_PI[[#This Row],[Manufacturer]])","v":""},{"$f":"IF(Table_PI[[#This Row],[Model Number]]=\"\",\"\",Table_PI[[#This Row],[Model Number]])","v":""},{"$f":"IF(Table_PI[[#This Row],[Serial Number(s)]]=\"\",\"\",Table_PI[[#This Row],[Serial Number(s)]])","v":""},null,{"$f":"IF(Table_PI[[#This Row],[Size]]=\"\",\"\",Table_PI[[#This Row],[Size]])","v":""},null,null,{"$f":"IF(Table_PI[[#This Row],[Input 1]]<>\"\",Table_PI[[#This Row],[Input 1]],\"\")","v":""},null,null,{"$f":"IF(Table_PI[[#This Row],[Input 2]]<>\"\",Table_PI[[#This Row],[Input 2]],\"\")","v":""},null,null,{"$f":"IF(Table_PI[[#This Row],[Input 3]]<>\"\",Table_PI[[#This Row],[Input 3]],\"\")","v":""},null,null,{"$f":"IF(Table_PI[[#This Row],[Input 4]]<>\"\",Table_PI[[#This Row],[Input 4]],\"\")","v":""},null,null,{"$f":"IF(Table_PI[[#This Row],[Input 4]]<>\"\",Table_PI[[#This Row],[Input 4]],\"\")","v":""},null,null,{"$f":"IF(Table_PI[[#This Row],[Input 4]]<>\"\",Table_PI[[#This Row],[Input 4]],\"\")","v":""},{"$f":"IF(Table_PI[[#This Row],[Quantity]]=\"\",\"\",Table_PI[[#This Row],[Quantity]])","v":""},{"$f":"IF(Table_PI[[#This Row],[Notes]]=\"\",\"\",Table_PI[[#This Row],[Notes]])","v":""},{"$f":"IF(OR(Table_PI[[#This Row],[Hide: Baseline kWh]]=\"\",Table_PI[[#This Row],[Hide: Baseline kWh]]=0,ISTEXT(Table_PI[[#This Row],[Hide: Baseline kWh]])),\"\",Table_PI[[#This Row],[Hide: Baseline kWh]])","v":""},{"$f":"IF(OR(Table_PI[[#This Row],[Hide: Baseline kW]]=\"\",Table_PI[[#This Row],[Hide: Baseline kW]]=0,ISTEXT(Table_PI[[#This Row],[Hide: Baseline kW]])),\"\",Table_PI[[#This Row],[Hide: Baseline kW]])","v":""},{"$f":"IF(OR(Table_PI[[#This Row],[Hide: Proposed kWh]]=\"\",Table_PI[[#This Row],[Hide: Proposed kWh]]=0,ISTEXT(Table_PI[[#This Row],[Hide: Proposed kWh]])),\"\",Table_PI[[#This Row],[Hide: Proposed kWh]])","v":""},{"$f":"IF(OR(Table_PI[[#This Row],[Hide: Proposed kW]]=\"\",Table_PI[[#This Row],[Hide: Proposed kW]]=0,ISTEXT(Table_PI[[#This Row],[Hide: Proposed kW]])),\"\",Table_PI[[#This Row],[Hide: Proposed kW]])","v":""},null,null,{"$f":"IF(OR(Table_PI[[#This Row],[Hide: Rebate]]=\"\",Table_PI[[#This Row],[Hide: Rebate]]=0,ISTEXT(Table_PI[[#This Row],[Hide: Rebate]])),\"\",Table_PI[[#This Row],[Hide: Rebate]])","v":""},null,{"$f":"IF(OR(Table_PI[[#This Row],[Hide: Incremental Cost]]=\"\",Table_PI[[#This Row],[Hide: Incremental Cost]]=0,ISTEXT(Table_PI[[#This Row],[Hide: Incremental Cost]])),\"\",Table_PI[[#This Row],[Hide: Incremental Cost]])","v":""},{"$f":"IFERROR(IF(Table_SummaryPI[[#This Row],[Incentive_Customer]]=\"\",\"\",ROUND(Table_SummaryPI[[#This Row],[Incentive_Customer]]/$AM$401*'Customer Information'!$BC$21,2)),0)","v":""},{"$f":"IF(OR(Table_PI[[#This Row],[Annual kWh]]=\"\",Table_PI[[#This Row],[Annual kWh]]=0,ISTEXT(Table_PI[[#This Row],[Annual kWh]])),\"\",Table_PI[[#This Row],[Annual kWh]])","v":""},{"$f":"IF(OR(Table_PI[[#This Row],[Peak kW]]=\"\",Table_PI[[#This Row],[Peak kW]]=0,ISTEXT(Table_PI[[#This Row],[Peak kW]])),\"\",Table_PI[[#This Row],[Peak kW]])","v":""},{"$f":"IF(Table_SummaryPI[[#This Row],[Line No.]]<>\"\",IF(AND(ISNUMBER(FIND(\"Chiller\",Table_SummaryPI[[#This Row],[P_MeasureOption1]],1)),Table_SummaryPI[[#This Row],[ProposedMeasureCategory]]=\"Air-Cooled (Water-Cooled Replacement)\"),$BD$29*Table_SummaryPI[[#This Row],[Size]]*Table_SummaryPI[[#This Row],[Quantity]]*Table_SummaryPI[[#This Row],[EFLHCooling]],\nIF(ISNUMBER(FIND(\"Dishwasher\",Table_SummaryPI[[#This Row],[ProposedMeasureCategory]],1)),$BH$29*Table_SummaryPI[[#This Row],[Quantity]],\nIF(ISNUMBER(FIND(\"Ice Maker\",Table_SummaryPI[[#This Row],[ProposedMeasureCategory]],1)),$BD$31*Table_SummaryPI[[#This Row],[Quantity]],\nIF(ISNUMBER(FIND(\"Spray Valve\",Table_SummaryPI[[#This Row],[ProposedMeasureCategory]],1)),$BH$31*Table_SummaryPI[[#This Row],[Quantity]],\n0)))),\"\")","v":""},{"$f":"IF(OR(Table_PI[[#This Row],[Hide: Electrification kWh]]=\"\",Table_PI[[#This Row],[Hide: Electrification kWh]]=0,ISTEXT(Table_PI[[#This Row],[Hide: Electrification kWh]])),\"\",Table_PI[[#This Row],[Hide: Electrification kWh]])","v":""},{"$f":"IF(OR(Table_PI[[#This Row],[Hide: Electrification GHG]]=\"\",Table_PI[[#This Row],[Hide: Electrification GHG]]=0,ISTEXT(Table_PI[[#This Row],[Hide: Electrification GHG]])),\"\",Table_PI[[#This Row],[Hide: Electrification GHG]])","v":""},{"$f":"IFERROR(IF(Table_SummaryPI[[#This Row],[kWhSavings]]=\"\",\"\",$BH$9*Table_SummaryPI[[#This Row],[kWhSavings]]),0)","v":""},{"$f":"IFERROR(IF(Table_SummaryPI[[#This Row],[kWhSavings]]=\"\",\"\",$BH$14*Table_SummaryPI[[#This Row],[kWhSavings]]),0)","v":""},{"$f":"IFERROR(IF(Table_SummaryPI[[#This Row],[kWhSavings]]=\"\",\"\",$BH$18*Table_SummaryPI[[#This Row],[kWhSavings]]),0)","v":""},{"$f":"IFERROR(IF(Table_SummaryPI[[#This Row],[kWhSavings]]=\"\",\"\",$BH$22*Table_SummaryPI[[#This Row],[kWhSavings]]),0)","v":""}]
[{"$f":"Table_PI[[#This Row],[Line No.]]","v":""},{"$f":"IF(Table_SummaryPI[[#This Row],[MeasureName]]<>\"\",NOT(ISTEXT(Table_PI[[#This Row],[Rebate]])),\"\")","v":""},{"$f":"IF(Table_SummaryPI[[#This Row],[MeassureCategory]]<>\"\",CONCATENATE(Table_SummaryPI[[#This Row],[MeassureCategory]],  \" - \", Table_SummaryPI[[#This Row],[ProposedMeasureCategory]],  \" - \", TEXT(Table_SummaryPI[[#This Row],[Size]],\"#,##0.00\"),\" \",Table_SummaryPI[[#This Row],[SizeUnit]]),\"\")","v":""},{"$f":"SUBSTITUTE(Table_PI[[#This Row],[Measure]],\"     \",\"\",1)","v":""},{"$f":"IF(Table_PI[[#This Row],[List 1]]<>\"\",Table_PI[[#This Row],[List 1]],\"\")","v":""},{"$f":"IF(Table_PI[[#This Row],[List 2]]<>\"\",Table_PI[[#This Row],[List 2]],\"\")","v":""},{"$f":"IF(Table_PI[[#This Row],[List 3]]<>\"\",Table_PI[[#This Row],[List 3]],\"\")","v":""},{"$f":"IF(Table_PI[[#This Row],[Manufacturer]]=\"\",\"\",Table_PI[[#This Row],[Manufacturer]])","v":""},{"$f":"IF(Table_PI[[#This Row],[Model Number]]=\"\",\"\",Table_PI[[#This Row],[Model Number]])","v":""},{"$f":"IF(Table_PI[[#This Row],[Serial Number(s)]]=\"\",\"\",Table_PI[[#This Row],[Serial Number(s)]])","v":""},null,{"$f":"IF(Table_PI[[#This Row],[Size]]=\"\",\"\",Table_PI[[#This Row],[Size]])","v":""},null,null,{"$f":"IF(Table_PI[[#This Row],[Input 1]]<>\"\",Table_PI[[#This Row],[Input 1]],\"\")","v":""},null,null,{"$f":"IF(Table_PI[[#This Row],[Input 2]]<>\"\",Table_PI[[#This Row],[Input 2]],\"\")","v":""},null,null,{"$f":"IF(Table_PI[[#This Row],[Input 3]]<>\"\",Table_PI[[#This Row],[Input 3]],\"\")","v":""},null,null,{"$f":"IF(Table_PI[[#This Row],[Input 4]]<>\"\",Table_PI[[#This Row],[Input 4]],\"\")","v":""},null,null,{"$f":"IF(Table_PI[[#This Row],[Input 4]]<>\"\",Table_PI[[#This Row],[Input 4]],\"\")","v":""},null,null,{"$f":"IF(Table_PI[[#This Row],[Input 4]]<>\"\",Table_PI[[#This Row],[Input 4]],\"\")","v":""},{"$f":"IF(Table_PI[[#This Row],[Quantity]]=\"\",\"\",Table_PI[[#This Row],[Quantity]])","v":""},{"$f":"IF(Table_PI[[#This Row],[Notes]]=\"\",\"\",Table_PI[[#This Row],[Notes]])","v":""},{"$f":"IF(OR(Table_PI[[#This Row],[Hide: Baseline kWh]]=\"\",Table_PI[[#This Row],[Hide: Baseline kWh]]=0,ISTEXT(Table_PI[[#This Row],[Hide: Baseline kWh]])),\"\",Table_PI[[#This Row],[Hide: Baseline kWh]])","v":""},{"$f":"IF(OR(Table_PI[[#This Row],[Hide: Baseline kW]]=\"\",Table_PI[[#This Row],[Hide: Baseline kW]]=0,ISTEXT(Table_PI[[#This Row],[Hide: Baseline kW]])),\"\",Table_PI[[#This Row],[Hide: Baseline kW]])","v":""},{"$f":"IF(OR(Table_PI[[#This Row],[Hide: Proposed kWh]]=\"\",Table_PI[[#This Row],[Hide: Proposed kWh]]=0,ISTEXT(Table_PI[[#This Row],[Hide: Proposed kWh]])),\"\",Table_PI[[#This Row],[Hide: Proposed kWh]])","v":""},{"$f":"IF(OR(Table_PI[[#This Row],[Hide: Proposed kW]]=\"\",Table_PI[[#This Row],[Hide: Proposed kW]]=0,ISTEXT(Table_PI[[#This Row],[Hide: Proposed kW]])),\"\",Table_PI[[#This Row],[Hide: Proposed kW]])","v":""},null,null,{"$f":"IF(OR(Table_PI[[#This Row],[Hide: Rebate]]=\"\",Table_PI[[#This Row],[Hide: Rebate]]=0,ISTEXT(Table_PI[[#This Row],[Hide: Rebate]])),\"\",Table_PI[[#This Row],[Hide: Rebate]])","v":""},null,{"$f":"IF(OR(Table_PI[[#This Row],[Hide: Incremental Cost]]=\"\",Table_PI[[#This Row],[Hide: Incremental Cost]]=0,ISTEXT(Table_PI[[#This Row],[Hide: Incremental Cost]])),\"\",Table_PI[[#This Row],[Hide: Incremental Cost]])","v":""},{"$f":"IFERROR(IF(Table_SummaryPI[[#This Row],[Incentive_Customer]]=\"\",\"\",ROUND(Table_SummaryPI[[#This Row],[Incentive_Customer]]/$AM$401*'Customer Information'!$BC$21,2)),0)","v":""},{"$f":"IF(OR(Table_PI[[#This Row],[Annual kWh]]=\"\",Table_PI[[#This Row],[Annual kWh]]=0,ISTEXT(Table_PI[[#This Row],[Annual kWh]])),\"\",Table_PI[[#This Row],[Annual kWh]])","v":""},{"$f":"IF(OR(Table_PI[[#This Row],[Peak kW]]=\"\",Table_PI[[#This Row],[Peak kW]]=0,ISTEXT(Table_PI[[#This Row],[Peak kW]])),\"\",Table_PI[[#This Row],[Peak kW]])","v":""},{"$f":"IF(Table_SummaryPI[[#This Row],[Line No.]]<>\"\",IF(AND(ISNUMBER(FIND(\"Chiller\",Table_SummaryPI[[#This Row],[P_MeasureOption1]],1)),Table_SummaryPI[[#This Row],[ProposedMeasureCategory]]=\"Air-Cooled (Water-Cooled Replacement)\"),$BD$29*Table_SummaryPI[[#This Row],[Size]]*Table_SummaryPI[[#This Row],[Quantity]]*Table_SummaryPI[[#This Row],[EFLHCooling]],\nIF(ISNUMBER(FIND(\"Dishwasher\",Table_SummaryPI[[#This Row],[ProposedMeasureCategory]],1)),$BH$29*Table_SummaryPI[[#This Row],[Quantity]],\nIF(ISNUMBER(FIND(\"Ice Maker\",Table_SummaryPI[[#This Row],[ProposedMeasureCategory]],1)),$BD$31*Table_SummaryPI[[#This Row],[Quantity]],\nIF(ISNUMBER(FIND(\"Spray Valve\",Table_SummaryPI[[#This Row],[ProposedMeasureCategory]],1)),$BH$31*Table_SummaryPI[[#This Row],[Quantity]],\n0)))),\"\")","v":""},{"$f":"IF(OR(Table_PI[[#This Row],[Hide: Electrification kWh]]=\"\",Table_PI[[#This Row],[Hide: Electrification kWh]]=0,ISTEXT(Table_PI[[#This Row],[Hide: Electrification kWh]])),\"\",Table_PI[[#This Row],[Hide: Electrification kWh]])","v":""},{"$f":"IF(OR(Table_PI[[#This Row],[Hide: Electrification GHG]]=\"\",Table_PI[[#This Row],[Hide: Electrification GHG]]=0,ISTEXT(Table_PI[[#This Row],[Hide: Electrification GHG]])),\"\",Table_PI[[#This Row],[Hide: Electrification GHG]])","v":""},{"$f":"IFERROR(IF(Table_SummaryPI[[#This Row],[kWhSavings]]=\"\",\"\",$BH$9*Table_SummaryPI[[#This Row],[kWhSavings]]),0)","v":""},{"$f":"IFERROR(IF(Table_SummaryPI[[#This Row],[kWhSavings]]=\"\",\"\",$BH$14*Table_SummaryPI[[#This Row],[kWhSavings]]),0)","v":""},{"$f":"IFERROR(IF(Table_SummaryPI[[#This Row],[kWhSavings]]=\"\",\"\",$BH$18*Table_SummaryPI[[#This Row],[kWhSavings]]),0)","v":""},{"$f":"IFERROR(IF(Table_SummaryPI[[#This Row],[kWhSavings]]=\"\",\"\",$BH$22*Table_SummaryPI[[#This Row],[kWhSavings]]),0)","v":""}]
[{"$f":"Table_PI[[#This Row],[Line No.]]","v":""},{"$f":"IF(Table_SummaryPI[[#This Row],[MeasureName]]<>\"\",NOT(ISTEXT(Table_PI[[#This Row],[Rebate]])),\"\")","v":""},{"$f":"IF(Table_SummaryPI[[#This Row],[MeassureCategory]]<>\"\",CONCATENATE(Table_SummaryPI[[#This Row],[MeassureCategory]],  \" - \", Table_SummaryPI[[#This Row],[ProposedMeasureCategory]],  \" - \", TEXT(Table_SummaryPI[[#This Row],[Size]],\"#,##0.00\"),\" \",Table_SummaryPI[[#This Row],[SizeUnit]]),\"\")","v":""},{"$f":"SUBSTITUTE(Table_PI[[#This Row],[Measure]],\"     \",\"\",1)","v":""},{"$f":"IF(Table_PI[[#This Row],[List 1]]<>\"\",Table_PI[[#This Row],[List 1]],\"\")","v":""},{"$f":"IF(Table_PI[[#This Row],[List 2]]<>\"\",Table_PI[[#This Row],[List 2]],\"\")","v":""},{"$f":"IF(Table_PI[[#This Row],[List 3]]<>\"\",Table_PI[[#This Row],[List 3]],\"\")","v":""},{"$f":"IF(Table_PI[[#This Row],[Manufacturer]]=\"\",\"\",Table_PI[[#This Row],[Manufacturer]])","v":""},{"$f":"IF(Table_PI[[#This Row],[Model Number]]=\"\",\"\",Table_PI[[#This Row],[Model Number]])","v":""},{"$f":"IF(Table_PI[[#This Row],[Serial Number(s)]]=\"\",\"\",Table_PI[[#This Row],[Serial Number(s)]])","v":""},null,{"$f":"IF(Table_PI[[#This Row],[Size]]=\"\",\"\",Table_PI[[#This Row],[Size]])","v":""},null,null,{"$f":"IF(Table_PI[[#This Row],[Input 1]]<>\"\",Table_PI[[#This Row],[Input 1]],\"\")","v":""},null,null,{"$f":"IF(Table_PI[[#This Row],[Input 2]]<>\"\",Table_PI[[#This Row],[Input 2]],\"\")","v":""},null,null,{"$f":"IF(Table_PI[[#This Row],[Input 3]]<>\"\",Table_PI[[#This Row],[Input 3]],\"\")","v":""},null,null,{"$f":"IF(Table_PI[[#This Row],[Input 4]]<>\"\",Table_PI[[#This Row],[Input 4]],\"\")","v":""},null,null,{"$f":"IF(Table_PI[[#This Row],[Input 4]]<>\"\",Table_PI[[#This Row],[Input 4]],\"\")","v":""},null,null,{"$f":"IF(Table_PI[[#This Row],[Input 4]]<>\"\",Table_PI[[#This Row],[Input 4]],\"\")","v":""},{"$f":"IF(Table_PI[[#This Row],[Quantity]]=\"\",\"\",Table_PI[[#This Row],[Quantity]])","v":""},{"$f":"IF(Table_PI[[#This Row],[Notes]]=\"\",\"\",Table_PI[[#This Row],[Notes]])","v":""},{"$f":"IF(OR(Table_PI[[#This Row],[Hide: Baseline kWh]]=\"\",Table_PI[[#This Row],[Hide: Baseline kWh]]=0,ISTEXT(Table_PI[[#This Row],[Hide: Baseline kWh]])),\"\",Table_PI[[#This Row],[Hide: Baseline kWh]])","v":""},{"$f":"IF(OR(Table_PI[[#This Row],[Hide: Baseline kW]]=\"\",Table_PI[[#This Row],[Hide: Baseline kW]]=0,ISTEXT(Table_PI[[#This Row],[Hide: Baseline kW]])),\"\",Table_PI[[#This Row],[Hide: Baseline kW]])","v":""},{"$f":"IF(OR(Table_PI[[#This Row],[Hide: Proposed kWh]]=\"\",Table_PI[[#This Row],[Hide: Proposed kWh]]=0,ISTEXT(Table_PI[[#This Row],[Hide: Proposed kWh]])),\"\",Table_PI[[#This Row],[Hide: Proposed kWh]])","v":""},{"$f":"IF(OR(Table_PI[[#This Row],[Hide: Proposed kW]]=\"\",Table_PI[[#This Row],[Hide: Proposed kW]]=0,ISTEXT(Table_PI[[#This Row],[Hide: Proposed kW]])),\"\",Table_PI[[#This Row],[Hide: Proposed kW]])","v":""},null,null,{"$f":"IF(OR(Table_PI[[#This Row],[Hide: Rebate]]=\"\",Table_PI[[#This Row],[Hide: Rebate]]=0,ISTEXT(Table_PI[[#This Row],[Hide: Rebate]])),\"\",Table_PI[[#This Row],[Hide: Rebate]])","v":""},null,{"$f":"IF(OR(Table_PI[[#This Row],[Hide: Incremental Cost]]=\"\",Table_PI[[#This Row],[Hide: Incremental Cost]]=0,ISTEXT(Table_PI[[#This Row],[Hide: Incremental Cost]])),\"\",Table_PI[[#This Row],[Hide: Incremental Cost]])","v":""},{"$f":"IFERROR(IF(Table_SummaryPI[[#This Row],[Incentive_Customer]]=\"\",\"\",ROUND(Table_SummaryPI[[#This Row],[Incentive_Customer]]/$AM$401*'Customer Information'!$BC$21,2)),0)","v":""},{"$f":"IF(OR(Table_PI[[#This Row],[Annual kWh]]=\"\",Table_PI[[#This Row],[Annual kWh]]=0,ISTEXT(Table_PI[[#This Row],[Annual kWh]])),\"\",Table_PI[[#This Row],[Annual kWh]])","v":""},{"$f":"IF(OR(Table_PI[[#This Row],[Peak kW]]=\"\",Table_PI[[#This Row],[Peak kW]]=0,ISTEXT(Table_PI[[#This Row],[Peak kW]])),\"\",Table_PI[[#This Row],[Peak kW]])","v":""},{"$f":"IF(Table_SummaryPI[[#This Row],[Line No.]]<>\"\",IF(AND(ISNUMBER(FIND(\"Chiller\",Table_SummaryPI[[#This Row],[P_MeasureOption1]],1)),Table_SummaryPI[[#This Row],[ProposedMeasureCategory]]=\"Air-Cooled (Water-Cooled Replacement)\"),$BD$29*Table_SummaryPI[[#This Row],[Size]]*Table_SummaryPI[[#This Row],[Quantity]]*Table_SummaryPI[[#This Row],[EFLHCooling]],\nIF(ISNUMBER(FIND(\"Dishwasher\",Table_SummaryPI[[#This Row],[ProposedMeasureCategory]],1)),$BH$29*Table_SummaryPI[[#This Row],[Quantity]],\nIF(ISNUMBER(FIND(\"Ice Maker\",Table_SummaryPI[[#This Row],[ProposedMeasureCategory]],1)),$BD$31*Table_SummaryPI[[#This Row],[Quantity]],\nIF(ISNUMBER(FIND(\"Spray Valve\",Table_SummaryPI[[#This Row],[ProposedMeasureCategory]],1)),$BH$31*Table_SummaryPI[[#This Row],[Quantity]],\n0)))),\"\")","v":""},{"$f":"IF(OR(Table_PI[[#This Row],[Hide: Electrification kWh]]=\"\",Table_PI[[#This Row],[Hide: Electrification kWh]]=0,ISTEXT(Table_PI[[#This Row],[Hide: Electrification kWh]])),\"\",Table_PI[[#This Row],[Hide: Electrification kWh]])","v":""},{"$f":"IF(OR(Table_PI[[#This Row],[Hide: Electrification GHG]]=\"\",Table_PI[[#This Row],[Hide: Electrification GHG]]=0,ISTEXT(Table_PI[[#This Row],[Hide: Electrification GHG]])),\"\",Table_PI[[#This Row],[Hide: Electrification GHG]])","v":""},{"$f":"IFERROR(IF(Table_SummaryPI[[#This Row],[kWhSavings]]=\"\",\"\",$BH$9*Table_SummaryPI[[#This Row],[kWhSavings]]),0)","v":""},{"$f":"IFERROR(IF(Table_SummaryPI[[#This Row],[kWhSavings]]=\"\",\"\",$BH$14*Table_SummaryPI[[#This Row],[kWhSavings]]),0)","v":""},{"$f":"IFERROR(IF(Table_SummaryPI[[#This Row],[kWhSavings]]=\"\",\"\",$BH$18*Table_SummaryPI[[#This Row],[kWhSavings]]),0)","v":""},{"$f":"IFERROR(IF(Table_SummaryPI[[#This Row],[kWhSavings]]=\"\",\"\",$BH$22*Table_SummaryPI[[#This Row],[kWhSavings]]),0)","v":""}]
[{"$f":"Table_PI[[#This Row],[Line No.]]","v":""},{"$f":"IF(Table_SummaryPI[[#This Row],[MeasureName]]<>\"\",NOT(ISTEXT(Table_PI[[#This Row],[Rebate]])),\"\")","v":""},{"$f":"IF(Table_SummaryPI[[#This Row],[MeassureCategory]]<>\"\",CONCATENATE(Table_SummaryPI[[#This Row],[MeassureCategory]],  \" - \", Table_SummaryPI[[#This Row],[ProposedMeasureCategory]],  \" - \", TEXT(Table_SummaryPI[[#This Row],[Size]],\"#,##0.00\"),\" \",Table_SummaryPI[[#This Row],[SizeUnit]]),\"\")","v":""},{"$f":"SUBSTITUTE(Table_PI[[#This Row],[Measure]],\"     \",\"\",1)","v":""},{"$f":"IF(Table_PI[[#This Row],[List 1]]<>\"\",Table_PI[[#This Row],[List 1]],\"\")","v":""},{"$f":"IF(Table_PI[[#This Row],[List 2]]<>\"\",Table_PI[[#This Row],[List 2]],\"\")","v":""},{"$f":"IF(Table_PI[[#This Row],[List 3]]<>\"\",Table_PI[[#This Row],[List 3]],\"\")","v":""},{"$f":"IF(Table_PI[[#This Row],[Manufacturer]]=\"\",\"\",Table_PI[[#This Row],[Manufacturer]])","v":""},{"$f":"IF(Table_PI[[#This Row],[Model Number]]=\"\",\"\",Table_PI[[#This Row],[Model Number]])","v":""},{"$f":"IF(Table_PI[[#This Row],[Serial Number(s)]]=\"\",\"\",Table_PI[[#This Row],[Serial Number(s)]])","v":""},null,{"$f":"IF(Table_PI[[#This Row],[Size]]=\"\",\"\",Table_PI[[#This Row],[Size]])","v":""},null,null,{"$f":"IF(Table_PI[[#This Row],[Input 1]]<>\"\",Table_PI[[#This Row],[Input 1]],\"\")","v":""},null,null,{"$f":"IF(Table_PI[[#This Row],[Input 2]]<>\"\",Table_PI[[#This Row],[Input 2]],\"\")","v":""},null,null,{"$f":"IF(Table_PI[[#This Row],[Input 3]]<>\"\",Table_PI[[#This Row],[Input 3]],\"\")","v":""},null,null,{"$f":"IF(Table_PI[[#This Row],[Input 4]]<>\"\",Table_PI[[#This Row],[Input 4]],\"\")","v":""},null,null,{"$f":"IF(Table_PI[[#This Row],[Input 4]]<>\"\",Table_PI[[#This Row],[Input 4]],\"\")","v":""},null,null,{"$f":"IF(Table_PI[[#This Row],[Input 4]]<>\"\",Table_PI[[#This Row],[Input 4]],\"\")","v":""},{"$f":"IF(Table_PI[[#This Row],[Quantity]]=\"\",\"\",Table_PI[[#This Row],[Quantity]])","v":""},{"$f":"IF(Table_PI[[#This Row],[Notes]]=\"\",\"\",Table_PI[[#This Row],[Notes]])","v":""},{"$f":"IF(OR(Table_PI[[#This Row],[Hide: Baseline kWh]]=\"\",Table_PI[[#This Row],[Hide: Baseline kWh]]=0,ISTEXT(Table_PI[[#This Row],[Hide: Baseline kWh]])),\"\",Table_PI[[#This Row],[Hide: Baseline kWh]])","v":""},{"$f":"IF(OR(Table_PI[[#This Row],[Hide: Baseline kW]]=\"\",Table_PI[[#This Row],[Hide: Baseline kW]]=0,ISTEXT(Table_PI[[#This Row],[Hide: Baseline kW]])),\"\",Table_PI[[#This Row],[Hide: Baseline kW]])","v":""},{"$f":"IF(OR(Table_PI[[#This Row],[Hide: Proposed kWh]]=\"\",Table_PI[[#This Row],[Hide: Proposed kWh]]=0,ISTEXT(Table_PI[[#This Row],[Hide: Proposed kWh]])),\"\",Table_PI[[#This Row],[Hide: Proposed kWh]])","v":""},{"$f":"IF(OR(Table_PI[[#This Row],[Hide: Proposed kW]]=\"\",Table_PI[[#This Row],[Hide: Proposed kW]]=0,ISTEXT(Table_PI[[#This Row],[Hide: Proposed kW]])),\"\",Table_PI[[#This Row],[Hide: Proposed kW]])","v":""},null,null,{"$f":"IF(OR(Table_PI[[#This Row],[Hide: Rebate]]=\"\",Table_PI[[#This Row],[Hide: Rebate]]=0,ISTEXT(Table_PI[[#This Row],[Hide: Rebate]])),\"\",Table_PI[[#This Row],[Hide: Rebate]])","v":""},null,{"$f":"IF(OR(Table_PI[[#This Row],[Hide: Incremental Cost]]=\"\",Table_PI[[#This Row],[Hide: Incremental Cost]]=0,ISTEXT(Table_PI[[#This Row],[Hide: Incremental Cost]])),\"\",Table_PI[[#This Row],[Hide: Incremental Cost]])","v":""},{"$f":"IFERROR(IF(Table_SummaryPI[[#This Row],[Incentive_Customer]]=\"\",\"\",ROUND(Table_SummaryPI[[#This Row],[Incentive_Customer]]/$AM$401*'Customer Information'!$BC$21,2)),0)","v":""},{"$f":"IF(OR(Table_PI[[#This Row],[Annual kWh]]=\"\",Table_PI[[#This Row],[Annual kWh]]=0,ISTEXT(Table_PI[[#This Row],[Annual kWh]])),\"\",Table_PI[[#This Row],[Annual kWh]])","v":""},{"$f":"IF(OR(Table_PI[[#This Row],[Peak kW]]=\"\",Table_PI[[#This Row],[Peak kW]]=0,ISTEXT(Table_PI[[#This Row],[Peak kW]])),\"\",Table_PI[[#This Row],[Peak kW]])","v":""},{"$f":"IF(Table_SummaryPI[[#This Row],[Line No.]]<>\"\",IF(AND(ISNUMBER(FIND(\"Chiller\",Table_SummaryPI[[#This Row],[P_MeasureOption1]],1)),Table_SummaryPI[[#This Row],[ProposedMeasureCategory]]=\"Air-Cooled (Water-Cooled Replacement)\"),$BD$29*Table_SummaryPI[[#This Row],[Size]]*Table_SummaryPI[[#This Row],[Quantity]]*Table_SummaryPI[[#This Row],[EFLHCooling]],\nIF(ISNUMBER(FIND(\"Dishwasher\",Table_SummaryPI[[#This Row],[ProposedMeasureCategory]],1)),$BH$29*Table_SummaryPI[[#This Row],[Quantity]],\nIF(ISNUMBER(FIND(\"Ice Maker\",Table_SummaryPI[[#This Row],[ProposedMeasureCategory]],1)),$BD$31*Table_SummaryPI[[#This Row],[Quantity]],\nIF(ISNUMBER(FIND(\"Spray Valve\",Table_SummaryPI[[#This Row],[ProposedMeasureCategory]],1)),$BH$31*Table_SummaryPI[[#This Row],[Quantity]],\n0)))),\"\")","v":""},{"$f":"IF(OR(Table_PI[[#This Row],[Hide: Electrification kWh]]=\"\",Table_PI[[#This Row],[Hide: Electrification kWh]]=0,ISTEXT(Table_PI[[#This Row],[Hide: Electrification kWh]])),\"\",Table_PI[[#This Row],[Hide: Electrification kWh]])","v":""},{"$f":"IF(OR(Table_PI[[#This Row],[Hide: Electrification GHG]]=\"\",Table_PI[[#This Row],[Hide: Electrification GHG]]=0,ISTEXT(Table_PI[[#This Row],[Hide: Electrification GHG]])),\"\",Table_PI[[#This Row],[Hide: Electrification GHG]])","v":""},{"$f":"IFERROR(IF(Table_SummaryPI[[#This Row],[kWhSavings]]=\"\",\"\",$BH$9*Table_SummaryPI[[#This Row],[kWhSavings]]),0)","v":""},{"$f":"IFERROR(IF(Table_SummaryPI[[#This Row],[kWhSavings]]=\"\",\"\",$BH$14*Table_SummaryPI[[#This Row],[kWhSavings]]),0)","v":""},{"$f":"IFERROR(IF(Table_SummaryPI[[#This Row],[kWhSavings]]=\"\",\"\",$BH$18*Table_SummaryPI[[#This Row],[kWhSavings]]),0)","v":""},{"$f":"IFERROR(IF(Table_SummaryPI[[#This Row],[kWhSavings]]=\"\",\"\",$BH$22*Table_SummaryPI[[#This Row],[kWhSavings]]),0)","v":""}]
[{"$f":"Table_PI[[#This Row],[Line No.]]","v":""},{"$f":"IF(Table_SummaryPI[[#This Row],[MeasureName]]<>\"\",NOT(ISTEXT(Table_PI[[#This Row],[Rebate]])),\"\")","v":""},{"$f":"IF(Table_SummaryPI[[#This Row],[MeassureCategory]]<>\"\",CONCATENATE(Table_SummaryPI[[#This Row],[MeassureCategory]],  \" - \", Table_SummaryPI[[#This Row],[ProposedMeasureCategory]],  \" - \", TEXT(Table_SummaryPI[[#This Row],[Size]],\"#,##0.00\"),\" \",Table_SummaryPI[[#This Row],[SizeUnit]]),\"\")","v":""},{"$f":"SUBSTITUTE(Table_PI[[#This Row],[Measure]],\"     \",\"\",1)","v":""},{"$f":"IF(Table_PI[[#This Row],[List 1]]<>\"\",Table_PI[[#This Row],[List 1]],\"\")","v":""},{"$f":"IF(Table_PI[[#This Row],[List 2]]<>\"\",Table_PI[[#This Row],[List 2]],\"\")","v":""},{"$f":"IF(Table_PI[[#This Row],[List 3]]<>\"\",Table_PI[[#This Row],[List 3]],\"\")","v":""},{"$f":"IF(Table_PI[[#This Row],[Manufacturer]]=\"\",\"\",Table_PI[[#This Row],[Manufacturer]])","v":""},{"$f":"IF(Table_PI[[#This Row],[Model Number]]=\"\",\"\",Table_PI[[#This Row],[Model Number]])","v":""},{"$f":"IF(Table_PI[[#This Row],[Serial Number(s)]]=\"\",\"\",Table_PI[[#This Row],[Serial Number(s)]])","v":""},null,{"$f":"IF(Table_PI[[#This Row],[Size]]=\"\",\"\",Table_PI[[#This Row],[Size]])","v":""},null,null,{"$f":"IF(Table_PI[[#This Row],[Input 1]]<>\"\",Table_PI[[#This Row],[Input 1]],\"\")","v":""},null,null,{"$f":"IF(Table_PI[[#This Row],[Input 2]]<>\"\",Table_PI[[#This Row],[Input 2]],\"\")","v":""},null,null,{"$f":"IF(Table_PI[[#This Row],[Input 3]]<>\"\",Table_PI[[#This Row],[Input 3]],\"\")","v":""},null,null,{"$f":"IF(Table_PI[[#This Row],[Input 4]]<>\"\",Table_PI[[#This Row],[Input 4]],\"\")","v":""},null,null,{"$f":"IF(Table_PI[[#This Row],[Input 4]]<>\"\",Table_PI[[#This Row],[Input 4]],\"\")","v":""},null,null,{"$f":"IF(Table_PI[[#This Row],[Input 4]]<>\"\",Table_PI[[#This Row],[Input 4]],\"\")","v":""},{"$f":"IF(Table_PI[[#This Row],[Quantity]]=\"\",\"\",Table_PI[[#This Row],[Quantity]])","v":""},{"$f":"IF(Table_PI[[#This Row],[Notes]]=\"\",\"\",Table_PI[[#This Row],[Notes]])","v":""},{"$f":"IF(OR(Table_PI[[#This Row],[Hide: Baseline kWh]]=\"\",Table_PI[[#This Row],[Hide: Baseline kWh]]=0,ISTEXT(Table_PI[[#This Row],[Hide: Baseline kWh]])),\"\",Table_PI[[#This Row],[Hide: Baseline kWh]])","v":""},{"$f":"IF(OR(Table_PI[[#This Row],[Hide: Baseline kW]]=\"\",Table_PI[[#This Row],[Hide: Baseline kW]]=0,ISTEXT(Table_PI[[#This Row],[Hide: Baseline kW]])),\"\",Table_PI[[#This Row],[Hide: Baseline kW]])","v":""},{"$f":"IF(OR(Table_PI[[#This Row],[Hide: Proposed kWh]]=\"\",Table_PI[[#This Row],[Hide: Proposed kWh]]=0,ISTEXT(Table_PI[[#This Row],[Hide: Proposed kWh]])),\"\",Table_PI[[#This Row],[Hide: Proposed kWh]])","v":""},{"$f":"IF(OR(Table_PI[[#This Row],[Hide: Proposed kW]]=\"\",Table_PI[[#This Row],[Hide: Proposed kW]]=0,ISTEXT(Table_PI[[#This Row],[Hide: Proposed kW]])),\"\",Table_PI[[#This Row],[Hide: Proposed kW]])","v":""},null,null,{"$f":"IF(OR(Table_PI[[#This Row],[Hide: Rebate]]=\"\",Table_PI[[#This Row],[Hide: Rebate]]=0,ISTEXT(Table_PI[[#This Row],[Hide: Rebate]])),\"\",Table_PI[[#This Row],[Hide: Rebate]])","v":""},null,{"$f":"IF(OR(Table_PI[[#This Row],[Hide: Incremental Cost]]=\"\",Table_PI[[#This Row],[Hide: Incremental Cost]]=0,ISTEXT(Table_PI[[#This Row],[Hide: Incremental Cost]])),\"\",Table_PI[[#This Row],[Hide: Incremental Cost]])","v":""},{"$f":"IFERROR(IF(Table_SummaryPI[[#This Row],[Incentive_Customer]]=\"\",\"\",ROUND(Table_SummaryPI[[#This Row],[Incentive_Customer]]/$AM$401*'Customer Information'!$BC$21,2)),0)","v":""},{"$f":"IF(OR(Table_PI[[#This Row],[Annual kWh]]=\"\",Table_PI[[#This Row],[Annual kWh]]=0,ISTEXT(Table_PI[[#This Row],[Annual kWh]])),\"\",Table_PI[[#This Row],[Annual kWh]])","v":""},{"$f":"IF(OR(Table_PI[[#This Row],[Peak kW]]=\"\",Table_PI[[#This Row],[Peak kW]]=0,ISTEXT(Table_PI[[#This Row],[Peak kW]])),\"\",Table_PI[[#This Row],[Peak kW]])","v":""},{"$f":"IF(Table_SummaryPI[[#This Row],[Line No.]]<>\"\",IF(AND(ISNUMBER(FIND(\"Chiller\",Table_SummaryPI[[#This Row],[P_MeasureOption1]],1)),Table_SummaryPI[[#This Row],[ProposedMeasureCategory]]=\"Air-Cooled (Water-Cooled Replacement)\"),$BD$29*Table_SummaryPI[[#This Row],[Size]]*Table_SummaryPI[[#This Row],[Quantity]]*Table_SummaryPI[[#This Row],[EFLHCooling]],\nIF(ISNUMBER(FIND(\"Dishwasher\",Table_SummaryPI[[#This Row],[ProposedMeasureCategory]],1)),$BH$29*Table_SummaryPI[[#This Row],[Quantity]],\nIF(ISNUMBER(FIND(\"Ice Maker\",Table_SummaryPI[[#This Row],[ProposedMeasureCategory]],1)),$BD$31*Table_SummaryPI[[#This Row],[Quantity]],\nIF(ISNUMBER(FIND(\"Spray Valve\",Table_SummaryPI[[#This Row],[ProposedMeasureCategory]],1)),$BH$31*Table_SummaryPI[[#This Row],[Quantity]],\n0)))),\"\")","v":""},{"$f":"IF(OR(Table_PI[[#This Row],[Hide: Electrification kWh]]=\"\",Table_PI[[#This Row],[Hide: Electrification kWh]]=0,ISTEXT(Table_PI[[#This Row],[Hide: Electrification kWh]])),\"\",Table_PI[[#This Row],[Hide: Electrification kWh]])","v":""},{"$f":"IF(OR(Table_PI[[#This Row],[Hide: Electrification GHG]]=\"\",Table_PI[[#This Row],[Hide: Electrification GHG]]=0,ISTEXT(Table_PI[[#This Row],[Hide: Electrification GHG]])),\"\",Table_PI[[#This Row],[Hide: Electrification GHG]])","v":""},{"$f":"IFERROR(IF(Table_SummaryPI[[#This Row],[kWhSavings]]=\"\",\"\",$BH$9*Table_SummaryPI[[#This Row],[kWhSavings]]),0)","v":""},{"$f":"IFERROR(IF(Table_SummaryPI[[#This Row],[kWhSavings]]=\"\",\"\",$BH$14*Table_SummaryPI[[#This Row],[kWhSavings]]),0)","v":""},{"$f":"IFERROR(IF(Table_SummaryPI[[#This Row],[kWhSavings]]=\"\",\"\",$BH$18*Table_SummaryPI[[#This Row],[kWhSavings]]),0)","v":""},{"$f":"IFERROR(IF(Table_SummaryPI[[#This Row],[kWhSavings]]=\"\",\"\",$BH$22*Table_SummaryPI[[#This Row],[kWhSavings]]),0)","v":""}]
[{"$f":"Table_PI[[#This Row],[Line No.]]","v":""},{"$f":"IF(Table_SummaryPI[[#This Row],[MeasureName]]<>\"\",NOT(ISTEXT(Table_PI[[#This Row],[Rebate]])),\"\")","v":""},{"$f":"IF(Table_SummaryPI[[#This Row],[MeassureCategory]]<>\"\",CONCATENATE(Table_SummaryPI[[#This Row],[MeassureCategory]],  \" - \", Table_SummaryPI[[#This Row],[ProposedMeasureCategory]],  \" - \", TEXT(Table_SummaryPI[[#This Row],[Size]],\"#,##0.00\"),\" \",Table_SummaryPI[[#This Row],[SizeUnit]]),\"\")","v":""},{"$f":"SUBSTITUTE(Table_PI[[#This Row],[Measure]],\"     \",\"\",1)","v":""},{"$f":"IF(Table_PI[[#This Row],[List 1]]<>\"\",Table_PI[[#This Row],[List 1]],\"\")","v":""},{"$f":"IF(Table_PI[[#This Row],[List 2]]<>\"\",Table_PI[[#This Row],[List 2]],\"\")","v":""},{"$f":"IF(Table_PI[[#This Row],[List 3]]<>\"\",Table_PI[[#This Row],[List 3]],\"\")","v":""},{"$f":"IF(Table_PI[[#This Row],[Manufacturer]]=\"\",\"\",Table_PI[[#This Row],[Manufacturer]])","v":""},{"$f":"IF(Table_PI[[#This Row],[Model Number]]=\"\",\"\",Table_PI[[#This Row],[Model Number]])","v":""},{"$f":"IF(Table_PI[[#This Row],[Serial Number(s)]]=\"\",\"\",Table_PI[[#This Row],[Serial Number(s)]])","v":""},null,{"$f":"IF(Table_PI[[#This Row],[Size]]=\"\",\"\",Table_PI[[#This Row],[Size]])","v":""},null,null,{"$f":"IF(Table_PI[[#This Row],[Input 1]]<>\"\",Table_PI[[#This Row],[Input 1]],\"\")","v":""},null,null,{"$f":"IF(Table_PI[[#This Row],[Input 2]]<>\"\",Table_PI[[#This Row],[Input 2]],\"\")","v":""},null,null,{"$f":"IF(Table_PI[[#This Row],[Input 3]]<>\"\",Table_PI[[#This Row],[Input 3]],\"\")","v":""},null,null,{"$f":"IF(Table_PI[[#This Row],[Input 4]]<>\"\",Table_PI[[#This Row],[Input 4]],\"\")","v":""},null,null,{"$f":"IF(Table_PI[[#This Row],[Input 4]]<>\"\",Table_PI[[#This Row],[Input 4]],\"\")","v":""},null,null,{"$f":"IF(Table_PI[[#This Row],[Input 4]]<>\"\",Table_PI[[#This Row],[Input 4]],\"\")","v":""},{"$f":"IF(Table_PI[[#This Row],[Quantity]]=\"\",\"\",Table_PI[[#This Row],[Quantity]])","v":""},{"$f":"IF(Table_PI[[#This Row],[Notes]]=\"\",\"\",Table_PI[[#This Row],[Notes]])","v":""},{"$f":"IF(OR(Table_PI[[#This Row],[Hide: Baseline kWh]]=\"\",Table_PI[[#This Row],[Hide: Baseline kWh]]=0,ISTEXT(Table_PI[[#This Row],[Hide: Baseline kWh]])),\"\",Table_PI[[#This Row],[Hide: Baseline kWh]])","v":""},{"$f":"IF(OR(Table_PI[[#This Row],[Hide: Baseline kW]]=\"\",Table_PI[[#This Row],[Hide: Baseline kW]]=0,ISTEXT(Table_PI[[#This Row],[Hide: Baseline kW]])),\"\",Table_PI[[#This Row],[Hide: Baseline kW]])","v":""},{"$f":"IF(OR(Table_PI[[#This Row],[Hide: Proposed kWh]]=\"\",Table_PI[[#This Row],[Hide: Proposed kWh]]=0,ISTEXT(Table_PI[[#This Row],[Hide: Proposed kWh]])),\"\",Table_PI[[#This Row],[Hide: Proposed kWh]])","v":""},{"$f":"IF(OR(Table_PI[[#This Row],[Hide: Proposed kW]]=\"\",Table_PI[[#This Row],[Hide: Proposed kW]]=0,ISTEXT(Table_PI[[#This Row],[Hide: Proposed kW]])),\"\",Table_PI[[#This Row],[Hide: Proposed kW]])","v":""},null,null,{"$f":"IF(OR(Table_PI[[#This Row],[Hide: Rebate]]=\"\",Table_PI[[#This Row],[Hide: Rebate]]=0,ISTEXT(Table_PI[[#This Row],[Hide: Rebate]])),\"\",Table_PI[[#This Row],[Hide: Rebate]])","v":""},null,{"$f":"IF(OR(Table_PI[[#This Row],[Hide: Incremental Cost]]=\"\",Table_PI[[#This Row],[Hide: Incremental Cost]]=0,ISTEXT(Table_PI[[#This Row],[Hide: Incremental Cost]])),\"\",Table_PI[[#This Row],[Hide: Incremental Cost]])","v":""},{"$f":"IFERROR(IF(Table_SummaryPI[[#This Row],[Incentive_Customer]]=\"\",\"\",ROUND(Table_SummaryPI[[#This Row],[Incentive_Customer]]/$AM$401*'Customer Information'!$BC$21,2)),0)","v":""},{"$f":"IF(OR(Table_PI[[#This Row],[Annual kWh]]=\"\",Table_PI[[#This Row],[Annual kWh]]=0,ISTEXT(Table_PI[[#This Row],[Annual kWh]])),\"\",Table_PI[[#This Row],[Annual kWh]])","v":""},{"$f":"IF(OR(Table_PI[[#This Row],[Peak kW]]=\"\",Table_PI[[#This Row],[Peak kW]]=0,ISTEXT(Table_PI[[#This Row],[Peak kW]])),\"\",Table_PI[[#This Row],[Peak kW]])","v":""},{"$f":"IF(Table_SummaryPI[[#This Row],[Line No.]]<>\"\",IF(AND(ISNUMBER(FIND(\"Chiller\",Table_SummaryPI[[#This Row],[P_MeasureOption1]],1)),Table_SummaryPI[[#This Row],[ProposedMeasureCategory]]=\"Air-Cooled (Water-Cooled Replacement)\"),$BD$29*Table_SummaryPI[[#This Row],[Size]]*Table_SummaryPI[[#This Row],[Quantity]]*Table_SummaryPI[[#This Row],[EFLHCooling]],\nIF(ISNUMBER(FIND(\"Dishwasher\",Table_SummaryPI[[#This Row],[ProposedMeasureCategory]],1)),$BH$29*Table_SummaryPI[[#This Row],[Quantity]],\nIF(ISNUMBER(FIND(\"Ice Maker\",Table_SummaryPI[[#This Row],[ProposedMeasureCategory]],1)),$BD$31*Table_SummaryPI[[#This Row],[Quantity]],\nIF(ISNUMBER(FIND(\"Spray Valve\",Table_SummaryPI[[#This Row],[ProposedMeasureCategory]],1)),$BH$31*Table_SummaryPI[[#This Row],[Quantity]],\n0)))),\"\")","v":""},{"$f":"IF(OR(Table_PI[[#This Row],[Hide: Electrification kWh]]=\"\",Table_PI[[#This Row],[Hide: Electrification kWh]]=0,ISTEXT(Table_PI[[#This Row],[Hide: Electrification kWh]])),\"\",Table_PI[[#This Row],[Hide: Electrification kWh]])","v":""},{"$f":"IF(OR(Table_PI[[#This Row],[Hide: Electrification GHG]]=\"\",Table_PI[[#This Row],[Hide: Electrification GHG]]=0,ISTEXT(Table_PI[[#This Row],[Hide: Electrification GHG]])),\"\",Table_PI[[#This Row],[Hide: Electrification GHG]])","v":""},{"$f":"IFERROR(IF(Table_SummaryPI[[#This Row],[kWhSavings]]=\"\",\"\",$BH$9*Table_SummaryPI[[#This Row],[kWhSavings]]),0)","v":""},{"$f":"IFERROR(IF(Table_SummaryPI[[#This Row],[kWhSavings]]=\"\",\"\",$BH$14*Table_SummaryPI[[#This Row],[kWhSavings]]),0)","v":""},{"$f":"IFERROR(IF(Table_SummaryPI[[#This Row],[kWhSavings]]=\"\",\"\",$BH$18*Table_SummaryPI[[#This Row],[kWhSavings]]),0)","v":""},{"$f":"IFERROR(IF(Table_SummaryPI[[#This Row],[kWhSavings]]=\"\",\"\",$BH$22*Table_SummaryPI[[#This Row],[kWhSavings]]),0)","v":""}]
[{"$f":"Table_PI[[#This Row],[Line No.]]","v":""},{"$f":"IF(Table_SummaryPI[[#This Row],[MeasureName]]<>\"\",NOT(ISTEXT(Table_PI[[#This Row],[Rebate]])),\"\")","v":""},{"$f":"IF(Table_SummaryPI[[#This Row],[MeassureCategory]]<>\"\",CONCATENATE(Table_SummaryPI[[#This Row],[MeassureCategory]],  \" - \", Table_SummaryPI[[#This Row],[ProposedMeasureCategory]],  \" - \", TEXT(Table_SummaryPI[[#This Row],[Size]],\"#,##0.00\"),\" \",Table_SummaryPI[[#This Row],[SizeUnit]]),\"\")","v":""},{"$f":"SUBSTITUTE(Table_PI[[#This Row],[Measure]],\"     \",\"\",1)","v":""},{"$f":"IF(Table_PI[[#This Row],[List 1]]<>\"\",Table_PI[[#This Row],[List 1]],\"\")","v":""},{"$f":"IF(Table_PI[[#This Row],[List 2]]<>\"\",Table_PI[[#This Row],[List 2]],\"\")","v":""},{"$f":"IF(Table_PI[[#This Row],[List 3]]<>\"\",Table_PI[[#This Row],[List 3]],\"\")","v":""},{"$f":"IF(Table_PI[[#This Row],[Manufacturer]]=\"\",\"\",Table_PI[[#This Row],[Manufacturer]])","v":""},{"$f":"IF(Table_PI[[#This Row],[Model Number]]=\"\",\"\",Table_PI[[#This Row],[Model Number]])","v":""},{"$f":"IF(Table_PI[[#This Row],[Serial Number(s)]]=\"\",\"\",Table_PI[[#This Row],[Serial Number(s)]])","v":""},null,{"$f":"IF(Table_PI[[#This Row],[Size]]=\"\",\"\",Table_PI[[#This Row],[Size]])","v":""},null,null,{"$f":"IF(Table_PI[[#This Row],[Input 1]]<>\"\",Table_PI[[#This Row],[Input 1]],\"\")","v":""},null,null,{"$f":"IF(Table_PI[[#This Row],[Input 2]]<>\"\",Table_PI[[#This Row],[Input 2]],\"\")","v":""},null,null,{"$f":"IF(Table_PI[[#This Row],[Input 3]]<>\"\",Table_PI[[#This Row],[Input 3]],\"\")","v":""},null,null,{"$f":"IF(Table_PI[[#This Row],[Input 4]]<>\"\",Table_PI[[#This Row],[Input 4]],\"\")","v":""},null,null,{"$f":"IF(Table_PI[[#This Row],[Input 4]]<>\"\",Table_PI[[#This Row],[Input 4]],\"\")","v":""},null,null,{"$f":"IF(Table_PI[[#This Row],[Input 4]]<>\"\",Table_PI[[#This Row],[Input 4]],\"\")","v":""},{"$f":"IF(Table_PI[[#This Row],[Quantity]]=\"\",\"\",Table_PI[[#This Row],[Quantity]])","v":""},{"$f":"IF(Table_PI[[#This Row],[Notes]]=\"\",\"\",Table_PI[[#This Row],[Notes]])","v":""},{"$f":"IF(OR(Table_PI[[#This Row],[Hide: Baseline kWh]]=\"\",Table_PI[[#This Row],[Hide: Baseline kWh]]=0,ISTEXT(Table_PI[[#This Row],[Hide: Baseline kWh]])),\"\",Table_PI[[#This Row],[Hide: Baseline kWh]])","v":""},{"$f":"IF(OR(Table_PI[[#This Row],[Hide: Baseline kW]]=\"\",Table_PI[[#This Row],[Hide: Baseline kW]]=0,ISTEXT(Table_PI[[#This Row],[Hide: Baseline kW]])),\"\",Table_PI[[#This Row],[Hide: Baseline kW]])","v":""},{"$f":"IF(OR(Table_PI[[#This Row],[Hide: Proposed kWh]]=\"\",Table_PI[[#This Row],[Hide: Proposed kWh]]=0,ISTEXT(Table_PI[[#This Row],[Hide: Proposed kWh]])),\"\",Table_PI[[#This Row],[Hide: Proposed kWh]])","v":""},{"$f":"IF(OR(Table_PI[[#This Row],[Hide: Proposed kW]]=\"\",Table_PI[[#This Row],[Hide: Proposed kW]]=0,ISTEXT(Table_PI[[#This Row],[Hide: Proposed kW]])),\"\",Table_PI[[#This Row],[Hide: Proposed kW]])","v":""},null,null,{"$f":"IF(OR(Table_PI[[#This Row],[Hide: Rebate]]=\"\",Table_PI[[#This Row],[Hide: Rebate]]=0,ISTEXT(Table_PI[[#This Row],[Hide: Rebate]])),\"\",Table_PI[[#This Row],[Hide: Rebate]])","v":""},null,{"$f":"IF(OR(Table_PI[[#This Row],[Hide: Incremental Cost]]=\"\",Table_PI[[#This Row],[Hide: Incremental Cost]]=0,ISTEXT(Table_PI[[#This Row],[Hide: Incremental Cost]])),\"\",Table_PI[[#This Row],[Hide: Incremental Cost]])","v":""},{"$f":"IFERROR(IF(Table_SummaryPI[[#This Row],[Incentive_Customer]]=\"\",\"\",ROUND(Table_SummaryPI[[#This Row],[Incentive_Customer]]/$AM$401*'Customer Information'!$BC$21,2)),0)","v":""},{"$f":"IF(OR(Table_PI[[#This Row],[Annual kWh]]=\"\",Table_PI[[#This Row],[Annual kWh]]=0,ISTEXT(Table_PI[[#This Row],[Annual kWh]])),\"\",Table_PI[[#This Row],[Annual kWh]])","v":""},{"$f":"IF(OR(Table_PI[[#This Row],[Peak kW]]=\"\",Table_PI[[#This Row],[Peak kW]]=0,ISTEXT(Table_PI[[#This Row],[Peak kW]])),\"\",Table_PI[[#This Row],[Peak kW]])","v":""},{"$f":"IF(Table_SummaryPI[[#This Row],[Line No.]]<>\"\",IF(AND(ISNUMBER(FIND(\"Chiller\",Table_SummaryPI[[#This Row],[P_MeasureOption1]],1)),Table_SummaryPI[[#This Row],[ProposedMeasureCategory]]=\"Air-Cooled (Water-Cooled Replacement)\"),$BD$29*Table_SummaryPI[[#This Row],[Size]]*Table_SummaryPI[[#This Row],[Quantity]]*Table_SummaryPI[[#This Row],[EFLHCooling]],\nIF(ISNUMBER(FIND(\"Dishwasher\",Table_SummaryPI[[#This Row],[ProposedMeasureCategory]],1)),$BH$29*Table_SummaryPI[[#This Row],[Quantity]],\nIF(ISNUMBER(FIND(\"Ice Maker\",Table_SummaryPI[[#This Row],[ProposedMeasureCategory]],1)),$BD$31*Table_SummaryPI[[#This Row],[Quantity]],\nIF(ISNUMBER(FIND(\"Spray Valve\",Table_SummaryPI[[#This Row],[ProposedMeasureCategory]],1)),$BH$31*Table_SummaryPI[[#This Row],[Quantity]],\n0)))),\"\")","v":""},{"$f":"IF(OR(Table_PI[[#This Row],[Hide: Electrification kWh]]=\"\",Table_PI[[#This Row],[Hide: Electrification kWh]]=0,ISTEXT(Table_PI[[#This Row],[Hide: Electrification kWh]])),\"\",Table_PI[[#This Row],[Hide: Electrification kWh]])","v":""},{"$f":"IF(OR(Table_PI[[#This Row],[Hide: Electrification GHG]]=\"\",Table_PI[[#This Row],[Hide: Electrification GHG]]=0,ISTEXT(Table_PI[[#This Row],[Hide: Electrification GHG]])),\"\",Table_PI[[#This Row],[Hide: Electrification GHG]])","v":""},{"$f":"IFERROR(IF(Table_SummaryPI[[#This Row],[kWhSavings]]=\"\",\"\",$BH$9*Table_SummaryPI[[#This Row],[kWhSavings]]),0)","v":""},{"$f":"IFERROR(IF(Table_SummaryPI[[#This Row],[kWhSavings]]=\"\",\"\",$BH$14*Table_SummaryPI[[#This Row],[kWhSavings]]),0)","v":""},{"$f":"IFERROR(IF(Table_SummaryPI[[#This Row],[kWhSavings]]=\"\",\"\",$BH$18*Table_SummaryPI[[#This Row],[kWhSavings]]),0)","v":""},{"$f":"IFERROR(IF(Table_SummaryPI[[#This Row],[kWhSavings]]=\"\",\"\",$BH$22*Table_SummaryPI[[#This Row],[kWhSavings]]),0)","v":""}]
[{"$f":"Table_PI[[#This Row],[Line No.]]","v":""},{"$f":"IF(Table_SummaryPI[[#This Row],[MeasureName]]<>\"\",NOT(ISTEXT(Table_PI[[#This Row],[Rebate]])),\"\")","v":""},{"$f":"IF(Table_SummaryPI[[#This Row],[MeassureCategory]]<>\"\",CONCATENATE(Table_SummaryPI[[#This Row],[MeassureCategory]],  \" - \", Table_SummaryPI[[#This Row],[ProposedMeasureCategory]],  \" - \", TEXT(Table_SummaryPI[[#This Row],[Size]],\"#,##0.00\"),\" \",Table_SummaryPI[[#This Row],[SizeUnit]]),\"\")","v":""},{"$f":"SUBSTITUTE(Table_PI[[#This Row],[Measure]],\"     \",\"\",1)","v":""},{"$f":"IF(Table_PI[[#This Row],[List 1]]<>\"\",Table_PI[[#This Row],[List 1]],\"\")","v":""},{"$f":"IF(Table_PI[[#This Row],[List 2]]<>\"\",Table_PI[[#This Row],[List 2]],\"\")","v":""},{"$f":"IF(Table_PI[[#This Row],[List 3]]<>\"\",Table_PI[[#This Row],[List 3]],\"\")","v":""},{"$f":"IF(Table_PI[[#This Row],[Manufacturer]]=\"\",\"\",Table_PI[[#This Row],[Manufacturer]])","v":""},{"$f":"IF(Table_PI[[#This Row],[Model Number]]=\"\",\"\",Table_PI[[#This Row],[Model Number]])","v":""},{"$f":"IF(Table_PI[[#This Row],[Serial Number(s)]]=\"\",\"\",Table_PI[[#This Row],[Serial Number(s)]])","v":""},null,{"$f":"IF(Table_PI[[#This Row],[Size]]=\"\",\"\",Table_PI[[#This Row],[Size]])","v":""},null,null,{"$f":"IF(Table_PI[[#This Row],[Input 1]]<>\"\",Table_PI[[#This Row],[Input 1]],\"\")","v":""},null,null,{"$f":"IF(Table_PI[[#This Row],[Input 2]]<>\"\",Table_PI[[#This Row],[Input 2]],\"\")","v":""},null,null,{"$f":"IF(Table_PI[[#This Row],[Input 3]]<>\"\",Table_PI[[#This Row],[Input 3]],\"\")","v":""},null,null,{"$f":"IF(Table_PI[[#This Row],[Input 4]]<>\"\",Table_PI[[#This Row],[Input 4]],\"\")","v":""},null,null,{"$f":"IF(Table_PI[[#This Row],[Input 4]]<>\"\",Table_PI[[#This Row],[Input 4]],\"\")","v":""},null,null,{"$f":"IF(Table_PI[[#This Row],[Input 4]]<>\"\",Table_PI[[#This Row],[Input 4]],\"\")","v":""},{"$f":"IF(Table_PI[[#This Row],[Quantity]]=\"\",\"\",Table_PI[[#This Row],[Quantity]])","v":""},{"$f":"IF(Table_PI[[#This Row],[Notes]]=\"\",\"\",Table_PI[[#This Row],[Notes]])","v":""},{"$f":"IF(OR(Table_PI[[#This Row],[Hide: Baseline kWh]]=\"\",Table_PI[[#This Row],[Hide: Baseline kWh]]=0,ISTEXT(Table_PI[[#This Row],[Hide: Baseline kWh]])),\"\",Table_PI[[#This Row],[Hide: Baseline kWh]])","v":""},{"$f":"IF(OR(Table_PI[[#This Row],[Hide: Baseline kW]]=\"\",Table_PI[[#This Row],[Hide: Baseline kW]]=0,ISTEXT(Table_PI[[#This Row],[Hide: Baseline kW]])),\"\",Table_PI[[#This Row],[Hide: Baseline kW]])","v":""},{"$f":"IF(OR(Table_PI[[#This Row],[Hide: Proposed kWh]]=\"\",Table_PI[[#This Row],[Hide: Proposed kWh]]=0,ISTEXT(Table_PI[[#This Row],[Hide: Proposed kWh]])),\"\",Table_PI[[#This Row],[Hide: Proposed kWh]])","v":""},{"$f":"IF(OR(Table_PI[[#This Row],[Hide: Proposed kW]]=\"\",Table_PI[[#This Row],[Hide: Proposed kW]]=0,ISTEXT(Table_PI[[#This Row],[Hide: Proposed kW]])),\"\",Table_PI[[#This Row],[Hide: Proposed kW]])","v":""},null,null,{"$f":"IF(OR(Table_PI[[#This Row],[Hide: Rebate]]=\"\",Table_PI[[#This Row],[Hide: Rebate]]=0,ISTEXT(Table_PI[[#This Row],[Hide: Rebate]])),\"\",Table_PI[[#This Row],[Hide: Rebate]])","v":""},null,{"$f":"IF(OR(Table_PI[[#This Row],[Hide: Incremental Cost]]=\"\",Table_PI[[#This Row],[Hide: Incremental Cost]]=0,ISTEXT(Table_PI[[#This Row],[Hide: Incremental Cost]])),\"\",Table_PI[[#This Row],[Hide: Incremental Cost]])","v":""},{"$f":"IFERROR(IF(Table_SummaryPI[[#This Row],[Incentive_Customer]]=\"\",\"\",ROUND(Table_SummaryPI[[#This Row],[Incentive_Customer]]/$AM$401*'Customer Information'!$BC$21,2)),0)","v":""},{"$f":"IF(OR(Table_PI[[#This Row],[Annual kWh]]=\"\",Table_PI[[#This Row],[Annual kWh]]=0,ISTEXT(Table_PI[[#This Row],[Annual kWh]])),\"\",Table_PI[[#This Row],[Annual kWh]])","v":""},{"$f":"IF(OR(Table_PI[[#This Row],[Peak kW]]=\"\",Table_PI[[#This Row],[Peak kW]]=0,ISTEXT(Table_PI[[#This Row],[Peak kW]])),\"\",Table_PI[[#This Row],[Peak kW]])","v":""},{"$f":"IF(Table_SummaryPI[[#This Row],[Line No.]]<>\"\",IF(AND(ISNUMBER(FIND(\"Chiller\",Table_SummaryPI[[#This Row],[P_MeasureOption1]],1)),Table_SummaryPI[[#This Row],[ProposedMeasureCategory]]=\"Air-Cooled (Water-Cooled Replacement)\"),$BD$29*Table_SummaryPI[[#This Row],[Size]]*Table_SummaryPI[[#This Row],[Quantity]]*Table_SummaryPI[[#This Row],[EFLHCooling]],\nIF(ISNUMBER(FIND(\"Dishwasher\",Table_SummaryPI[[#This Row],[ProposedMeasureCategory]],1)),$BH$29*Table_SummaryPI[[#This Row],[Quantity]],\nIF(ISNUMBER(FIND(\"Ice Maker\",Table_SummaryPI[[#This Row],[ProposedMeasureCategory]],1)),$BD$31*Table_SummaryPI[[#This Row],[Quantity]],\nIF(ISNUMBER(FIND(\"Spray Valve\",Table_SummaryPI[[#This Row],[ProposedMeasureCategory]],1)),$BH$31*Table_SummaryPI[[#This Row],[Quantity]],\n0)))),\"\")","v":""},{"$f":"IF(OR(Table_PI[[#This Row],[Hide: Electrification kWh]]=\"\",Table_PI[[#This Row],[Hide: Electrification kWh]]=0,ISTEXT(Table_PI[[#This Row],[Hide: Electrification kWh]])),\"\",Table_PI[[#This Row],[Hide: Electrification kWh]])","v":""},{"$f":"IF(OR(Table_PI[[#This Row],[Hide: Electrification GHG]]=\"\",Table_PI[[#This Row],[Hide: Electrification GHG]]=0,ISTEXT(Table_PI[[#This Row],[Hide: Electrification GHG]])),\"\",Table_PI[[#This Row],[Hide: Electrification GHG]])","v":""},{"$f":"IFERROR(IF(Table_SummaryPI[[#This Row],[kWhSavings]]=\"\",\"\",$BH$9*Table_SummaryPI[[#This Row],[kWhSavings]]),0)","v":""},{"$f":"IFERROR(IF(Table_SummaryPI[[#This Row],[kWhSavings]]=\"\",\"\",$BH$14*Table_SummaryPI[[#This Row],[kWhSavings]]),0)","v":""},{"$f":"IFERROR(IF(Table_SummaryPI[[#This Row],[kWhSavings]]=\"\",\"\",$BH$18*Table_SummaryPI[[#This Row],[kWhSavings]]),0)","v":""},{"$f":"IFERROR(IF(Table_SummaryPI[[#This Row],[kWhSavings]]=\"\",\"\",$BH$22*Table_SummaryPI[[#This Row],[kWhSavings]]),0)","v":""}]
[{"$f":"Table_PI[[#This Row],[Line No.]]","v":""},{"$f":"IF(Table_SummaryPI[[#This Row],[MeasureName]]<>\"\",NOT(ISTEXT(Table_PI[[#This Row],[Rebate]])),\"\")","v":""},{"$f":"IF(Table_SummaryPI[[#This Row],[MeassureCategory]]<>\"\",CONCATENATE(Table_SummaryPI[[#This Row],[MeassureCategory]],  \" - \", Table_SummaryPI[[#This Row],[ProposedMeasureCategory]],  \" - \", TEXT(Table_SummaryPI[[#This Row],[Size]],\"#,##0.00\"),\" \",Table_SummaryPI[[#This Row],[SizeUnit]]),\"\")","v":""},{"$f":"SUBSTITUTE(Table_PI[[#This Row],[Measure]],\"     \",\"\",1)","v":""},{"$f":"IF(Table_PI[[#This Row],[List 1]]<>\"\",Table_PI[[#This Row],[List 1]],\"\")","v":""},{"$f":"IF(Table_PI[[#This Row],[List 2]]<>\"\",Table_PI[[#This Row],[List 2]],\"\")","v":""},{"$f":"IF(Table_PI[[#This Row],[List 3]]<>\"\",Table_PI[[#This Row],[List 3]],\"\")","v":""},{"$f":"IF(Table_PI[[#This Row],[Manufacturer]]=\"\",\"\",Table_PI[[#This Row],[Manufacturer]])","v":""},{"$f":"IF(Table_PI[[#This Row],[Model Number]]=\"\",\"\",Table_PI[[#This Row],[Model Number]])","v":""},{"$f":"IF(Table_PI[[#This Row],[Serial Number(s)]]=\"\",\"\",Table_PI[[#This Row],[Serial Number(s)]])","v":""},null,{"$f":"IF(Table_PI[[#This Row],[Size]]=\"\",\"\",Table_PI[[#This Row],[Size]])","v":""},null,null,{"$f":"IF(Table_PI[[#This Row],[Input 1]]<>\"\",Table_PI[[#This Row],[Input 1]],\"\")","v":""},null,null,{"$f":"IF(Table_PI[[#This Row],[Input 2]]<>\"\",Table_PI[[#This Row],[Input 2]],\"\")","v":""},null,null,{"$f":"IF(Table_PI[[#This Row],[Input 3]]<>\"\",Table_PI[[#This Row],[Input 3]],\"\")","v":""},null,null,{"$f":"IF(Table_PI[[#This Row],[Input 4]]<>\"\",Table_PI[[#This Row],[Input 4]],\"\")","v":""},null,null,{"$f":"IF(Table_PI[[#This Row],[Input 4]]<>\"\",Table_PI[[#This Row],[Input 4]],\"\")","v":""},null,null,{"$f":"IF(Table_PI[[#This Row],[Input 4]]<>\"\",Table_PI[[#This Row],[Input 4]],\"\")","v":""},{"$f":"IF(Table_PI[[#This Row],[Quantity]]=\"\",\"\",Table_PI[[#This Row],[Quantity]])","v":""},{"$f":"IF(Table_PI[[#This Row],[Notes]]=\"\",\"\",Table_PI[[#This Row],[Notes]])","v":""},{"$f":"IF(OR(Table_PI[[#This Row],[Hide: Baseline kWh]]=\"\",Table_PI[[#This Row],[Hide: Baseline kWh]]=0,ISTEXT(Table_PI[[#This Row],[Hide: Baseline kWh]])),\"\",Table_PI[[#This Row],[Hide: Baseline kWh]])","v":""},{"$f":"IF(OR(Table_PI[[#This Row],[Hide: Baseline kW]]=\"\",Table_PI[[#This Row],[Hide: Baseline kW]]=0,ISTEXT(Table_PI[[#This Row],[Hide: Baseline kW]])),\"\",Table_PI[[#This Row],[Hide: Baseline kW]])","v":""},{"$f":"IF(OR(Table_PI[[#This Row],[Hide: Proposed kWh]]=\"\",Table_PI[[#This Row],[Hide: Proposed kWh]]=0,ISTEXT(Table_PI[[#This Row],[Hide: Proposed kWh]])),\"\",Table_PI[[#This Row],[Hide: Proposed kWh]])","v":""},{"$f":"IF(OR(Table_PI[[#This Row],[Hide: Proposed kW]]=\"\",Table_PI[[#This Row],[Hide: Proposed kW]]=0,ISTEXT(Table_PI[[#This Row],[Hide: Proposed kW]])),\"\",Table_PI[[#This Row],[Hide: Proposed kW]])","v":""},null,null,{"$f":"IF(OR(Table_PI[[#This Row],[Hide: Rebate]]=\"\",Table_PI[[#This Row],[Hide: Rebate]]=0,ISTEXT(Table_PI[[#This Row],[Hide: Rebate]])),\"\",Table_PI[[#This Row],[Hide: Rebate]])","v":""},null,{"$f":"IF(OR(Table_PI[[#This Row],[Hide: Incremental Cost]]=\"\",Table_PI[[#This Row],[Hide: Incremental Cost]]=0,ISTEXT(Table_PI[[#This Row],[Hide: Incremental Cost]])),\"\",Table_PI[[#This Row],[Hide: Incremental Cost]])","v":""},{"$f":"IFERROR(IF(Table_SummaryPI[[#This Row],[Incentive_Customer]]=\"\",\"\",ROUND(Table_SummaryPI[[#This Row],[Incentive_Customer]]/$AM$401*'Customer Information'!$BC$21,2)),0)","v":""},{"$f":"IF(OR(Table_PI[[#This Row],[Annual kWh]]=\"\",Table_PI[[#This Row],[Annual kWh]]=0,ISTEXT(Table_PI[[#This Row],[Annual kWh]])),\"\",Table_PI[[#This Row],[Annual kWh]])","v":""},{"$f":"IF(OR(Table_PI[[#This Row],[Peak kW]]=\"\",Table_PI[[#This Row],[Peak kW]]=0,ISTEXT(Table_PI[[#This Row],[Peak kW]])),\"\",Table_PI[[#This Row],[Peak kW]])","v":""},{"$f":"IF(Table_SummaryPI[[#This Row],[Line No.]]<>\"\",IF(AND(ISNUMBER(FIND(\"Chiller\",Table_SummaryPI[[#This Row],[P_MeasureOption1]],1)),Table_SummaryPI[[#This Row],[ProposedMeasureCategory]]=\"Air-Cooled (Water-Cooled Replacement)\"),$BD$29*Table_SummaryPI[[#This Row],[Size]]*Table_SummaryPI[[#This Row],[Quantity]]*Table_SummaryPI[[#This Row],[EFLHCooling]],\nIF(ISNUMBER(FIND(\"Dishwasher\",Table_SummaryPI[[#This Row],[ProposedMeasureCategory]],1)),$BH$29*Table_SummaryPI[[#This Row],[Quantity]],\nIF(ISNUMBER(FIND(\"Ice Maker\",Table_SummaryPI[[#This Row],[ProposedMeasureCategory]],1)),$BD$31*Table_SummaryPI[[#This Row],[Quantity]],\nIF(ISNUMBER(FIND(\"Spray Valve\",Table_SummaryPI[[#This Row],[ProposedMeasureCategory]],1)),$BH$31*Table_SummaryPI[[#This Row],[Quantity]],\n0)))),\"\")","v":""},{"$f":"IF(OR(Table_PI[[#This Row],[Hide: Electrification kWh]]=\"\",Table_PI[[#This Row],[Hide: Electrification kWh]]=0,ISTEXT(Table_PI[[#This Row],[Hide: Electrification kWh]])),\"\",Table_PI[[#This Row],[Hide: Electrification kWh]])","v":""},{"$f":"IF(OR(Table_PI[[#This Row],[Hide: Electrification GHG]]=\"\",Table_PI[[#This Row],[Hide: Electrification GHG]]=0,ISTEXT(Table_PI[[#This Row],[Hide: Electrification GHG]])),\"\",Table_PI[[#This Row],[Hide: Electrification GHG]])","v":""},{"$f":"IFERROR(IF(Table_SummaryPI[[#This Row],[kWhSavings]]=\"\",\"\",$BH$9*Table_SummaryPI[[#This Row],[kWhSavings]]),0)","v":""},{"$f":"IFERROR(IF(Table_SummaryPI[[#This Row],[kWhSavings]]=\"\",\"\",$BH$14*Table_SummaryPI[[#This Row],[kWhSavings]]),0)","v":""},{"$f":"IFERROR(IF(Table_SummaryPI[[#This Row],[kWhSavings]]=\"\",\"\",$BH$18*Table_SummaryPI[[#This Row],[kWhSavings]]),0)","v":""},{"$f":"IFERROR(IF(Table_SummaryPI[[#This Row],[kWhSavings]]=\"\",\"\",$BH$22*Table_SummaryPI[[#This Row],[kWhSavings]]),0)","v":""}]
[{"$f":"Table_PI[[#This Row],[Line No.]]","v":""},{"$f":"IF(Table_SummaryPI[[#This Row],[MeasureName]]<>\"\",NOT(ISTEXT(Table_PI[[#This Row],[Rebate]])),\"\")","v":""},{"$f":"IF(Table_SummaryPI[[#This Row],[MeassureCategory]]<>\"\",CONCATENATE(Table_SummaryPI[[#This Row],[MeassureCategory]],  \" - \", Table_SummaryPI[[#This Row],[ProposedMeasureCategory]],  \" - \", TEXT(Table_SummaryPI[[#This Row],[Size]],\"#,##0.00\"),\" \",Table_SummaryPI[[#This Row],[SizeUnit]]),\"\")","v":""},{"$f":"SUBSTITUTE(Table_PI[[#This Row],[Measure]],\"     \",\"\",1)","v":""},{"$f":"IF(Table_PI[[#This Row],[List 1]]<>\"\",Table_PI[[#This Row],[List 1]],\"\")","v":""},{"$f":"IF(Table_PI[[#This Row],[List 2]]<>\"\",Table_PI[[#This Row],[List 2]],\"\")","v":""},{"$f":"IF(Table_PI[[#This Row],[List 3]]<>\"\",Table_PI[[#This Row],[List 3]],\"\")","v":""},{"$f":"IF(Table_PI[[#This Row],[Manufacturer]]=\"\",\"\",Table_PI[[#This Row],[Manufacturer]])","v":""},{"$f":"IF(Table_PI[[#This Row],[Model Number]]=\"\",\"\",Table_PI[[#This Row],[Model Number]])","v":""},{"$f":"IF(Table_PI[[#This Row],[Serial Number(s)]]=\"\",\"\",Table_PI[[#This Row],[Serial Number(s)]])","v":""},null,{"$f":"IF(Table_PI[[#This Row],[Size]]=\"\",\"\",Table_PI[[#This Row],[Size]])","v":""},null,null,{"$f":"IF(Table_PI[[#This Row],[Input 1]]<>\"\",Table_PI[[#This Row],[Input 1]],\"\")","v":""},null,null,{"$f":"IF(Table_PI[[#This Row],[Input 2]]<>\"\",Table_PI[[#This Row],[Input 2]],\"\")","v":""},null,null,{"$f":"IF(Table_PI[[#This Row],[Input 3]]<>\"\",Table_PI[[#This Row],[Input 3]],\"\")","v":""},null,null,{"$f":"IF(Table_PI[[#This Row],[Input 4]]<>\"\",Table_PI[[#This Row],[Input 4]],\"\")","v":""},null,null,{"$f":"IF(Table_PI[[#This Row],[Input 4]]<>\"\",Table_PI[[#This Row],[Input 4]],\"\")","v":""},null,null,{"$f":"IF(Table_PI[[#This Row],[Input 4]]<>\"\",Table_PI[[#This Row],[Input 4]],\"\")","v":""},{"$f":"IF(Table_PI[[#This Row],[Quantity]]=\"\",\"\",Table_PI[[#This Row],[Quantity]])","v":""},{"$f":"IF(Table_PI[[#This Row],[Notes]]=\"\",\"\",Table_PI[[#This Row],[Notes]])","v":""},{"$f":"IF(OR(Table_PI[[#This Row],[Hide: Baseline kWh]]=\"\",Table_PI[[#This Row],[Hide: Baseline kWh]]=0,ISTEXT(Table_PI[[#This Row],[Hide: Baseline kWh]])),\"\",Table_PI[[#This Row],[Hide: Baseline kWh]])","v":""},{"$f":"IF(OR(Table_PI[[#This Row],[Hide: Baseline kW]]=\"\",Table_PI[[#This Row],[Hide: Baseline kW]]=0,ISTEXT(Table_PI[[#This Row],[Hide: Baseline kW]])),\"\",Table_PI[[#This Row],[Hide: Baseline kW]])","v":""},{"$f":"IF(OR(Table_PI[[#This Row],[Hide: Proposed kWh]]=\"\",Table_PI[[#This Row],[Hide: Proposed kWh]]=0,ISTEXT(Table_PI[[#This Row],[Hide: Proposed kWh]])),\"\",Table_PI[[#This Row],[Hide: Proposed kWh]])","v":""},{"$f":"IF(OR(Table_PI[[#This Row],[Hide: Proposed kW]]=\"\",Table_PI[[#This Row],[Hide: Proposed kW]]=0,ISTEXT(Table_PI[[#This Row],[Hide: Proposed kW]])),\"\",Table_PI[[#This Row],[Hide: Proposed kW]])","v":""},null,null,{"$f":"IF(OR(Table_PI[[#This Row],[Hide: Rebate]]=\"\",Table_PI[[#This Row],[Hide: Rebate]]=0,ISTEXT(Table_PI[[#This Row],[Hide: Rebate]])),\"\",Table_PI[[#This Row],[Hide: Rebate]])","v":""},null,{"$f":"IF(OR(Table_PI[[#This Row],[Hide: Incremental Cost]]=\"\",Table_PI[[#This Row],[Hide: Incremental Cost]]=0,ISTEXT(Table_PI[[#This Row],[Hide: Incremental Cost]])),\"\",Table_PI[[#This Row],[Hide: Incremental Cost]])","v":""},{"$f":"IFERROR(IF(Table_SummaryPI[[#This Row],[Incentive_Customer]]=\"\",\"\",ROUND(Table_SummaryPI[[#This Row],[Incentive_Customer]]/$AM$401*'Customer Information'!$BC$21,2)),0)","v":""},{"$f":"IF(OR(Table_PI[[#This Row],[Annual kWh]]=\"\",Table_PI[[#This Row],[Annual kWh]]=0,ISTEXT(Table_PI[[#This Row],[Annual kWh]])),\"\",Table_PI[[#This Row],[Annual kWh]])","v":""},{"$f":"IF(OR(Table_PI[[#This Row],[Peak kW]]=\"\",Table_PI[[#This Row],[Peak kW]]=0,ISTEXT(Table_PI[[#This Row],[Peak kW]])),\"\",Table_PI[[#This Row],[Peak kW]])","v":""},{"$f":"IF(Table_SummaryPI[[#This Row],[Line No.]]<>\"\",IF(AND(ISNUMBER(FIND(\"Chiller\",Table_SummaryPI[[#This Row],[P_MeasureOption1]],1)),Table_SummaryPI[[#This Row],[ProposedMeasureCategory]]=\"Air-Cooled (Water-Cooled Replacement)\"),$BD$29*Table_SummaryPI[[#This Row],[Size]]*Table_SummaryPI[[#This Row],[Quantity]]*Table_SummaryPI[[#This Row],[EFLHCooling]],\nIF(ISNUMBER(FIND(\"Dishwasher\",Table_SummaryPI[[#This Row],[ProposedMeasureCategory]],1)),$BH$29*Table_SummaryPI[[#This Row],[Quantity]],\nIF(ISNUMBER(FIND(\"Ice Maker\",Table_SummaryPI[[#This Row],[ProposedMeasureCategory]],1)),$BD$31*Table_SummaryPI[[#This Row],[Quantity]],\nIF(ISNUMBER(FIND(\"Spray Valve\",Table_SummaryPI[[#This Row],[ProposedMeasureCategory]],1)),$BH$31*Table_SummaryPI[[#This Row],[Quantity]],\n0)))),\"\")","v":""},{"$f":"IF(OR(Table_PI[[#This Row],[Hide: Electrification kWh]]=\"\",Table_PI[[#This Row],[Hide: Electrification kWh]]=0,ISTEXT(Table_PI[[#This Row],[Hide: Electrification kWh]])),\"\",Table_PI[[#This Row],[Hide: Electrification kWh]])","v":""},{"$f":"IF(OR(Table_PI[[#This Row],[Hide: Electrification GHG]]=\"\",Table_PI[[#This Row],[Hide: Electrification GHG]]=0,ISTEXT(Table_PI[[#This Row],[Hide: Electrification GHG]])),\"\",Table_PI[[#This Row],[Hide: Electrification GHG]])","v":""},{"$f":"IFERROR(IF(Table_SummaryPI[[#This Row],[kWhSavings]]=\"\",\"\",$BH$9*Table_SummaryPI[[#This Row],[kWhSavings]]),0)","v":""},{"$f":"IFERROR(IF(Table_SummaryPI[[#This Row],[kWhSavings]]=\"\",\"\",$BH$14*Table_SummaryPI[[#This Row],[kWhSavings]]),0)","v":""},{"$f":"IFERROR(IF(Table_SummaryPI[[#This Row],[kWhSavings]]=\"\",\"\",$BH$18*Table_SummaryPI[[#This Row],[kWhSavings]]),0)","v":""},{"$f":"IFERROR(IF(Table_SummaryPI[[#This Row],[kWhSavings]]=\"\",\"\",$BH$22*Table_SummaryPI[[#This Row],[kWhSavings]]),0)","v":""}]
[{"$f":"Table_PI[[#This Row],[Line No.]]","v":""},{"$f":"IF(Table_SummaryPI[[#This Row],[MeasureName]]<>\"\",NOT(ISTEXT(Table_PI[[#This Row],[Rebate]])),\"\")","v":""},{"$f":"IF(Table_SummaryPI[[#This Row],[MeassureCategory]]<>\"\",CONCATENATE(Table_SummaryPI[[#This Row],[MeassureCategory]],  \" - \", Table_SummaryPI[[#This Row],[ProposedMeasureCategory]],  \" - \", TEXT(Table_SummaryPI[[#This Row],[Size]],\"#,##0.00\"),\" \",Table_SummaryPI[[#This Row],[SizeUnit]]),\"\")","v":""},{"$f":"SUBSTITUTE(Table_PI[[#This Row],[Measure]],\"     \",\"\",1)","v":""},{"$f":"IF(Table_PI[[#This Row],[List 1]]<>\"\",Table_PI[[#This Row],[List 1]],\"\")","v":""},{"$f":"IF(Table_PI[[#This Row],[List 2]]<>\"\",Table_PI[[#This Row],[List 2]],\"\")","v":""},{"$f":"IF(Table_PI[[#This Row],[List 3]]<>\"\",Table_PI[[#This Row],[List 3]],\"\")","v":""},{"$f":"IF(Table_PI[[#This Row],[Manufacturer]]=\"\",\"\",Table_PI[[#This Row],[Manufacturer]])","v":""},{"$f":"IF(Table_PI[[#This Row],[Model Number]]=\"\",\"\",Table_PI[[#This Row],[Model Number]])","v":""},{"$f":"IF(Table_PI[[#This Row],[Serial Number(s)]]=\"\",\"\",Table_PI[[#This Row],[Serial Number(s)]])","v":""},null,{"$f":"IF(Table_PI[[#This Row],[Size]]=\"\",\"\",Table_PI[[#This Row],[Size]])","v":""},null,null,{"$f":"IF(Table_PI[[#This Row],[Input 1]]<>\"\",Table_PI[[#This Row],[Input 1]],\"\")","v":""},null,null,{"$f":"IF(Table_PI[[#This Row],[Input 2]]<>\"\",Table_PI[[#This Row],[Input 2]],\"\")","v":""},null,null,{"$f":"IF(Table_PI[[#This Row],[Input 3]]<>\"\",Table_PI[[#This Row],[Input 3]],\"\")","v":""},null,null,{"$f":"IF(Table_PI[[#This Row],[Input 4]]<>\"\",Table_PI[[#This Row],[Input 4]],\"\")","v":""},null,null,{"$f":"IF(Table_PI[[#This Row],[Input 4]]<>\"\",Table_PI[[#This Row],[Input 4]],\"\")","v":""},null,null,{"$f":"IF(Table_PI[[#This Row],[Input 4]]<>\"\",Table_PI[[#This Row],[Input 4]],\"\")","v":""},{"$f":"IF(Table_PI[[#This Row],[Quantity]]=\"\",\"\",Table_PI[[#This Row],[Quantity]])","v":""},{"$f":"IF(Table_PI[[#This Row],[Notes]]=\"\",\"\",Table_PI[[#This Row],[Notes]])","v":""},{"$f":"IF(OR(Table_PI[[#This Row],[Hide: Baseline kWh]]=\"\",Table_PI[[#This Row],[Hide: Baseline kWh]]=0,ISTEXT(Table_PI[[#This Row],[Hide: Baseline kWh]])),\"\",Table_PI[[#This Row],[Hide: Baseline kWh]])","v":""},{"$f":"IF(OR(Table_PI[[#This Row],[Hide: Baseline kW]]=\"\",Table_PI[[#This Row],[Hide: Baseline kW]]=0,ISTEXT(Table_PI[[#This Row],[Hide: Baseline kW]])),\"\",Table_PI[[#This Row],[Hide: Baseline kW]])","v":""},{"$f":"IF(OR(Table_PI[[#This Row],[Hide: Proposed kWh]]=\"\",Table_PI[[#This Row],[Hide: Proposed kWh]]=0,ISTEXT(Table_PI[[#This Row],[Hide: Proposed kWh]])),\"\",Table_PI[[#This Row],[Hide: Proposed kWh]])","v":""},{"$f":"IF(OR(Table_PI[[#This Row],[Hide: Proposed kW]]=\"\",Table_PI[[#This Row],[Hide: Proposed kW]]=0,ISTEXT(Table_PI[[#This Row],[Hide: Proposed kW]])),\"\",Table_PI[[#This Row],[Hide: Proposed kW]])","v":""},null,null,{"$f":"IF(OR(Table_PI[[#This Row],[Hide: Rebate]]=\"\",Table_PI[[#This Row],[Hide: Rebate]]=0,ISTEXT(Table_PI[[#This Row],[Hide: Rebate]])),\"\",Table_PI[[#This Row],[Hide: Rebate]])","v":""},null,{"$f":"IF(OR(Table_PI[[#This Row],[Hide: Incremental Cost]]=\"\",Table_PI[[#This Row],[Hide: Incremental Cost]]=0,ISTEXT(Table_PI[[#This Row],[Hide: Incremental Cost]])),\"\",Table_PI[[#This Row],[Hide: Incremental Cost]])","v":""},{"$f":"IFERROR(IF(Table_SummaryPI[[#This Row],[Incentive_Customer]]=\"\",\"\",ROUND(Table_SummaryPI[[#This Row],[Incentive_Customer]]/$AM$401*'Customer Information'!$BC$21,2)),0)","v":""},{"$f":"IF(OR(Table_PI[[#This Row],[Annual kWh]]=\"\",Table_PI[[#This Row],[Annual kWh]]=0,ISTEXT(Table_PI[[#This Row],[Annual kWh]])),\"\",Table_PI[[#This Row],[Annual kWh]])","v":""},{"$f":"IF(OR(Table_PI[[#This Row],[Peak kW]]=\"\",Table_PI[[#This Row],[Peak kW]]=0,ISTEXT(Table_PI[[#This Row],[Peak kW]])),\"\",Table_PI[[#This Row],[Peak kW]])","v":""},{"$f":"IF(Table_SummaryPI[[#This Row],[Line No.]]<>\"\",IF(AND(ISNUMBER(FIND(\"Chiller\",Table_SummaryPI[[#This Row],[P_MeasureOption1]],1)),Table_SummaryPI[[#This Row],[ProposedMeasureCategory]]=\"Air-Cooled (Water-Cooled Replacement)\"),$BD$29*Table_SummaryPI[[#This Row],[Size]]*Table_SummaryPI[[#This Row],[Quantity]]*Table_SummaryPI[[#This Row],[EFLHCooling]],\nIF(ISNUMBER(FIND(\"Dishwasher\",Table_SummaryPI[[#This Row],[ProposedMeasureCategory]],1)),$BH$29*Table_SummaryPI[[#This Row],[Quantity]],\nIF(ISNUMBER(FIND(\"Ice Maker\",Table_SummaryPI[[#This Row],[ProposedMeasureCategory]],1)),$BD$31*Table_SummaryPI[[#This Row],[Quantity]],\nIF(ISNUMBER(FIND(\"Spray Valve\",Table_SummaryPI[[#This Row],[ProposedMeasureCategory]],1)),$BH$31*Table_SummaryPI[[#This Row],[Quantity]],\n0)))),\"\")","v":""},{"$f":"IF(OR(Table_PI[[#This Row],[Hide: Electrification kWh]]=\"\",Table_PI[[#This Row],[Hide: Electrification kWh]]=0,ISTEXT(Table_PI[[#This Row],[Hide: Electrification kWh]])),\"\",Table_PI[[#This Row],[Hide: Electrification kWh]])","v":""},{"$f":"IF(OR(Table_PI[[#This Row],[Hide: Electrification GHG]]=\"\",Table_PI[[#This Row],[Hide: Electrification GHG]]=0,ISTEXT(Table_PI[[#This Row],[Hide: Electrification GHG]])),\"\",Table_PI[[#This Row],[Hide: Electrification GHG]])","v":""},{"$f":"IFERROR(IF(Table_SummaryPI[[#This Row],[kWhSavings]]=\"\",\"\",$BH$9*Table_SummaryPI[[#This Row],[kWhSavings]]),0)","v":""},{"$f":"IFERROR(IF(Table_SummaryPI[[#This Row],[kWhSavings]]=\"\",\"\",$BH$14*Table_SummaryPI[[#This Row],[kWhSavings]]),0)","v":""},{"$f":"IFERROR(IF(Table_SummaryPI[[#This Row],[kWhSavings]]=\"\",\"\",$BH$18*Table_SummaryPI[[#This Row],[kWhSavings]]),0)","v":""},{"$f":"IFERROR(IF(Table_SummaryPI[[#This Row],[kWhSavings]]=\"\",\"\",$BH$22*Table_SummaryPI[[#This Row],[kWhSavings]]),0)","v":""}]
[{"$f":"Table_PI[[#This Row],[Line No.]]","v":""},{"$f":"IF(Table_SummaryPI[[#This Row],[MeasureName]]<>\"\",NOT(ISTEXT(Table_PI[[#This Row],[Rebate]])),\"\")","v":""},{"$f":"IF(Table_SummaryPI[[#This Row],[MeassureCategory]]<>\"\",CONCATENATE(Table_SummaryPI[[#This Row],[MeassureCategory]],  \" - \", Table_SummaryPI[[#This Row],[ProposedMeasureCategory]],  \" - \", TEXT(Table_SummaryPI[[#This Row],[Size]],\"#,##0.00\"),\" \",Table_SummaryPI[[#This Row],[SizeUnit]]),\"\")","v":""},{"$f":"SUBSTITUTE(Table_PI[[#This Row],[Measure]],\"     \",\"\",1)","v":""},{"$f":"IF(Table_PI[[#This Row],[List 1]]<>\"\",Table_PI[[#This Row],[List 1]],\"\")","v":""},{"$f":"IF(Table_PI[[#This Row],[List 2]]<>\"\",Table_PI[[#This Row],[List 2]],\"\")","v":""},{"$f":"IF(Table_PI[[#This Row],[List 3]]<>\"\",Table_PI[[#This Row],[List 3]],\"\")","v":""},{"$f":"IF(Table_PI[[#This Row],[Manufacturer]]=\"\",\"\",Table_PI[[#This Row],[Manufacturer]])","v":""},{"$f":"IF(Table_PI[[#This Row],[Model Number]]=\"\",\"\",Table_PI[[#This Row],[Model Number]])","v":""},{"$f":"IF(Table_PI[[#This Row],[Serial Number(s)]]=\"\",\"\",Table_PI[[#This Row],[Serial Number(s)]])","v":""},null,{"$f":"IF(Table_PI[[#This Row],[Size]]=\"\",\"\",Table_PI[[#This Row],[Size]])","v":""},null,null,{"$f":"IF(Table_PI[[#This Row],[Input 1]]<>\"\",Table_PI[[#This Row],[Input 1]],\"\")","v":""},null,null,{"$f":"IF(Table_PI[[#This Row],[Input 2]]<>\"\",Table_PI[[#This Row],[Input 2]],\"\")","v":""},null,null,{"$f":"IF(Table_PI[[#This Row],[Input 3]]<>\"\",Table_PI[[#This Row],[Input 3]],\"\")","v":""},null,null,{"$f":"IF(Table_PI[[#This Row],[Input 4]]<>\"\",Table_PI[[#This Row],[Input 4]],\"\")","v":""},null,null,{"$f":"IF(Table_PI[[#This Row],[Input 4]]<>\"\",Table_PI[[#This Row],[Input 4]],\"\")","v":""},null,null,{"$f":"IF(Table_PI[[#This Row],[Input 4]]<>\"\",Table_PI[[#This Row],[Input 4]],\"\")","v":""},{"$f":"IF(Table_PI[[#This Row],[Quantity]]=\"\",\"\",Table_PI[[#This Row],[Quantity]])","v":""},{"$f":"IF(Table_PI[[#This Row],[Notes]]=\"\",\"\",Table_PI[[#This Row],[Notes]])","v":""},{"$f":"IF(OR(Table_PI[[#This Row],[Hide: Baseline kWh]]=\"\",Table_PI[[#This Row],[Hide: Baseline kWh]]=0,ISTEXT(Table_PI[[#This Row],[Hide: Baseline kWh]])),\"\",Table_PI[[#This Row],[Hide: Baseline kWh]])","v":""},{"$f":"IF(OR(Table_PI[[#This Row],[Hide: Baseline kW]]=\"\",Table_PI[[#This Row],[Hide: Baseline kW]]=0,ISTEXT(Table_PI[[#This Row],[Hide: Baseline kW]])),\"\",Table_PI[[#This Row],[Hide: Baseline kW]])","v":""},{"$f":"IF(OR(Table_PI[[#This Row],[Hide: Proposed kWh]]=\"\",Table_PI[[#This Row],[Hide: Proposed kWh]]=0,ISTEXT(Table_PI[[#This Row],[Hide: Proposed kWh]])),\"\",Table_PI[[#This Row],[Hide: Proposed kWh]])","v":""},{"$f":"IF(OR(Table_PI[[#This Row],[Hide: Proposed kW]]=\"\",Table_PI[[#This Row],[Hide: Proposed kW]]=0,ISTEXT(Table_PI[[#This Row],[Hide: Proposed kW]])),\"\",Table_PI[[#This Row],[Hide: Proposed kW]])","v":""},null,null,{"$f":"IF(OR(Table_PI[[#This Row],[Hide: Rebate]]=\"\",Table_PI[[#This Row],[Hide: Rebate]]=0,ISTEXT(Table_PI[[#This Row],[Hide: Rebate]])),\"\",Table_PI[[#This Row],[Hide: Rebate]])","v":""},null,{"$f":"IF(OR(Table_PI[[#This Row],[Hide: Incremental Cost]]=\"\",Table_PI[[#This Row],[Hide: Incremental Cost]]=0,ISTEXT(Table_PI[[#This Row],[Hide: Incremental Cost]])),\"\",Table_PI[[#This Row],[Hide: Incremental Cost]])","v":""},{"$f":"IFERROR(IF(Table_SummaryPI[[#This Row],[Incentive_Customer]]=\"\",\"\",ROUND(Table_SummaryPI[[#This Row],[Incentive_Customer]]/$AM$401*'Customer Information'!$BC$21,2)),0)","v":""},{"$f":"IF(OR(Table_PI[[#This Row],[Annual kWh]]=\"\",Table_PI[[#This Row],[Annual kWh]]=0,ISTEXT(Table_PI[[#This Row],[Annual kWh]])),\"\",Table_PI[[#This Row],[Annual kWh]])","v":""},{"$f":"IF(OR(Table_PI[[#This Row],[Peak kW]]=\"\",Table_PI[[#This Row],[Peak kW]]=0,ISTEXT(Table_PI[[#This Row],[Peak kW]])),\"\",Table_PI[[#This Row],[Peak kW]])","v":""},{"$f":"IF(Table_SummaryPI[[#This Row],[Line No.]]<>\"\",IF(AND(ISNUMBER(FIND(\"Chiller\",Table_SummaryPI[[#This Row],[P_MeasureOption1]],1)),Table_SummaryPI[[#This Row],[ProposedMeasureCategory]]=\"Air-Cooled (Water-Cooled Replacement)\"),$BD$29*Table_SummaryPI[[#This Row],[Size]]*Table_SummaryPI[[#This Row],[Quantity]]*Table_SummaryPI[[#This Row],[EFLHCooling]],\nIF(ISNUMBER(FIND(\"Dishwasher\",Table_SummaryPI[[#This Row],[ProposedMeasureCategory]],1)),$BH$29*Table_SummaryPI[[#This Row],[Quantity]],\nIF(ISNUMBER(FIND(\"Ice Maker\",Table_SummaryPI[[#This Row],[ProposedMeasureCategory]],1)),$BD$31*Table_SummaryPI[[#This Row],[Quantity]],\nIF(ISNUMBER(FIND(\"Spray Valve\",Table_SummaryPI[[#This Row],[ProposedMeasureCategory]],1)),$BH$31*Table_SummaryPI[[#This Row],[Quantity]],\n0)))),\"\")","v":""},{"$f":"IF(OR(Table_PI[[#This Row],[Hide: Electrification kWh]]=\"\",Table_PI[[#This Row],[Hide: Electrification kWh]]=0,ISTEXT(Table_PI[[#This Row],[Hide: Electrification kWh]])),\"\",Table_PI[[#This Row],[Hide: Electrification kWh]])","v":""},{"$f":"IF(OR(Table_PI[[#This Row],[Hide: Electrification GHG]]=\"\",Table_PI[[#This Row],[Hide: Electrification GHG]]=0,ISTEXT(Table_PI[[#This Row],[Hide: Electrification GHG]])),\"\",Table_PI[[#This Row],[Hide: Electrification GHG]])","v":""},{"$f":"IFERROR(IF(Table_SummaryPI[[#This Row],[kWhSavings]]=\"\",\"\",$BH$9*Table_SummaryPI[[#This Row],[kWhSavings]]),0)","v":""},{"$f":"IFERROR(IF(Table_SummaryPI[[#This Row],[kWhSavings]]=\"\",\"\",$BH$14*Table_SummaryPI[[#This Row],[kWhSavings]]),0)","v":""},{"$f":"IFERROR(IF(Table_SummaryPI[[#This Row],[kWhSavings]]=\"\",\"\",$BH$18*Table_SummaryPI[[#This Row],[kWhSavings]]),0)","v":""},{"$f":"IFERROR(IF(Table_SummaryPI[[#This Row],[kWhSavings]]=\"\",\"\",$BH$22*Table_SummaryPI[[#This Row],[kWhSavings]]),0)","v":""}]
[{"$f":"Table_PI[[#This Row],[Line No.]]","v":""},{"$f":"IF(Table_SummaryPI[[#This Row],[MeasureName]]<>\"\",NOT(ISTEXT(Table_PI[[#This Row],[Rebate]])),\"\")","v":""},{"$f":"IF(Table_SummaryPI[[#This Row],[MeassureCategory]]<>\"\",CONCATENATE(Table_SummaryPI[[#This Row],[MeassureCategory]],  \" - \", Table_SummaryPI[[#This Row],[ProposedMeasureCategory]],  \" - \", TEXT(Table_SummaryPI[[#This Row],[Size]],\"#,##0.00\"),\" \",Table_SummaryPI[[#This Row],[SizeUnit]]),\"\")","v":""},{"$f":"SUBSTITUTE(Table_PI[[#This Row],[Measure]],\"     \",\"\",1)","v":""},{"$f":"IF(Table_PI[[#This Row],[List 1]]<>\"\",Table_PI[[#This Row],[List 1]],\"\")","v":""},{"$f":"IF(Table_PI[[#This Row],[List 2]]<>\"\",Table_PI[[#This Row],[List 2]],\"\")","v":""},{"$f":"IF(Table_PI[[#This Row],[List 3]]<>\"\",Table_PI[[#This Row],[List 3]],\"\")","v":""},{"$f":"IF(Table_PI[[#This Row],[Manufacturer]]=\"\",\"\",Table_PI[[#This Row],[Manufacturer]])","v":""},{"$f":"IF(Table_PI[[#This Row],[Model Number]]=\"\",\"\",Table_PI[[#This Row],[Model Number]])","v":""},{"$f":"IF(Table_PI[[#This Row],[Serial Number(s)]]=\"\",\"\",Table_PI[[#This Row],[Serial Number(s)]])","v":""},null,{"$f":"IF(Table_PI[[#This Row],[Size]]=\"\",\"\",Table_PI[[#This Row],[Size]])","v":""},null,null,{"$f":"IF(Table_PI[[#This Row],[Input 1]]<>\"\",Table_PI[[#This Row],[Input 1]],\"\")","v":""},null,null,{"$f":"IF(Table_PI[[#This Row],[Input 2]]<>\"\",Table_PI[[#This Row],[Input 2]],\"\")","v":""},null,null,{"$f":"IF(Table_PI[[#This Row],[Input 3]]<>\"\",Table_PI[[#This Row],[Input 3]],\"\")","v":""},null,null,{"$f":"IF(Table_PI[[#This Row],[Input 4]]<>\"\",Table_PI[[#This Row],[Input 4]],\"\")","v":""},null,null,{"$f":"IF(Table_PI[[#This Row],[Input 4]]<>\"\",Table_PI[[#This Row],[Input 4]],\"\")","v":""},null,null,{"$f":"IF(Table_PI[[#This Row],[Input 4]]<>\"\",Table_PI[[#This Row],[Input 4]],\"\")","v":""},{"$f":"IF(Table_PI[[#This Row],[Quantity]]=\"\",\"\",Table_PI[[#This Row],[Quantity]])","v":""},{"$f":"IF(Table_PI[[#This Row],[Notes]]=\"\",\"\",Table_PI[[#This Row],[Notes]])","v":""},{"$f":"IF(OR(Table_PI[[#This Row],[Hide: Baseline kWh]]=\"\",Table_PI[[#This Row],[Hide: Baseline kWh]]=0,ISTEXT(Table_PI[[#This Row],[Hide: Baseline kWh]])),\"\",Table_PI[[#This Row],[Hide: Baseline kWh]])","v":""},{"$f":"IF(OR(Table_PI[[#This Row],[Hide: Baseline kW]]=\"\",Table_PI[[#This Row],[Hide: Baseline kW]]=0,ISTEXT(Table_PI[[#This Row],[Hide: Baseline kW]])),\"\",Table_PI[[#This Row],[Hide: Baseline kW]])","v":""},{"$f":"IF(OR(Table_PI[[#This Row],[Hide: Proposed kWh]]=\"\",Table_PI[[#This Row],[Hide: Proposed kWh]]=0,ISTEXT(Table_PI[[#This Row],[Hide: Proposed kWh]])),\"\",Table_PI[[#This Row],[Hide: Proposed kWh]])","v":""},{"$f":"IF(OR(Table_PI[[#This Row],[Hide: Proposed kW]]=\"\",Table_PI[[#This Row],[Hide: Proposed kW]]=0,ISTEXT(Table_PI[[#This Row],[Hide: Proposed kW]])),\"\",Table_PI[[#This Row],[Hide: Proposed kW]])","v":""},null,null,{"$f":"IF(OR(Table_PI[[#This Row],[Hide: Rebate]]=\"\",Table_PI[[#This Row],[Hide: Rebate]]=0,ISTEXT(Table_PI[[#This Row],[Hide: Rebate]])),\"\",Table_PI[[#This Row],[Hide: Rebate]])","v":""},null,{"$f":"IF(OR(Table_PI[[#This Row],[Hide: Incremental Cost]]=\"\",Table_PI[[#This Row],[Hide: Incremental Cost]]=0,ISTEXT(Table_PI[[#This Row],[Hide: Incremental Cost]])),\"\",Table_PI[[#This Row],[Hide: Incremental Cost]])","v":""},{"$f":"IFERROR(IF(Table_SummaryPI[[#This Row],[Incentive_Customer]]=\"\",\"\",ROUND(Table_SummaryPI[[#This Row],[Incentive_Customer]]/$AM$401*'Customer Information'!$BC$21,2)),0)","v":""},{"$f":"IF(OR(Table_PI[[#This Row],[Annual kWh]]=\"\",Table_PI[[#This Row],[Annual kWh]]=0,ISTEXT(Table_PI[[#This Row],[Annual kWh]])),\"\",Table_PI[[#This Row],[Annual kWh]])","v":""},{"$f":"IF(OR(Table_PI[[#This Row],[Peak kW]]=\"\",Table_PI[[#This Row],[Peak kW]]=0,ISTEXT(Table_PI[[#This Row],[Peak kW]])),\"\",Table_PI[[#This Row],[Peak kW]])","v":""},{"$f":"IF(Table_SummaryPI[[#This Row],[Line No.]]<>\"\",IF(AND(ISNUMBER(FIND(\"Chiller\",Table_SummaryPI[[#This Row],[P_MeasureOption1]],1)),Table_SummaryPI[[#This Row],[ProposedMeasureCategory]]=\"Air-Cooled (Water-Cooled Replacement)\"),$BD$29*Table_SummaryPI[[#This Row],[Size]]*Table_SummaryPI[[#This Row],[Quantity]]*Table_SummaryPI[[#This Row],[EFLHCooling]],\nIF(ISNUMBER(FIND(\"Dishwasher\",Table_SummaryPI[[#This Row],[ProposedMeasureCategory]],1)),$BH$29*Table_SummaryPI[[#This Row],[Quantity]],\nIF(ISNUMBER(FIND(\"Ice Maker\",Table_SummaryPI[[#This Row],[ProposedMeasureCategory]],1)),$BD$31*Table_SummaryPI[[#This Row],[Quantity]],\nIF(ISNUMBER(FIND(\"Spray Valve\",Table_SummaryPI[[#This Row],[ProposedMeasureCategory]],1)),$BH$31*Table_SummaryPI[[#This Row],[Quantity]],\n0)))),\"\")","v":""},{"$f":"IF(OR(Table_PI[[#This Row],[Hide: Electrification kWh]]=\"\",Table_PI[[#This Row],[Hide: Electrification kWh]]=0,ISTEXT(Table_PI[[#This Row],[Hide: Electrification kWh]])),\"\",Table_PI[[#This Row],[Hide: Electrification kWh]])","v":""},{"$f":"IF(OR(Table_PI[[#This Row],[Hide: Electrification GHG]]=\"\",Table_PI[[#This Row],[Hide: Electrification GHG]]=0,ISTEXT(Table_PI[[#This Row],[Hide: Electrification GHG]])),\"\",Table_PI[[#This Row],[Hide: Electrification GHG]])","v":""},{"$f":"IFERROR(IF(Table_SummaryPI[[#This Row],[kWhSavings]]=\"\",\"\",$BH$9*Table_SummaryPI[[#This Row],[kWhSavings]]),0)","v":""},{"$f":"IFERROR(IF(Table_SummaryPI[[#This Row],[kWhSavings]]=\"\",\"\",$BH$14*Table_SummaryPI[[#This Row],[kWhSavings]]),0)","v":""},{"$f":"IFERROR(IF(Table_SummaryPI[[#This Row],[kWhSavings]]=\"\",\"\",$BH$18*Table_SummaryPI[[#This Row],[kWhSavings]]),0)","v":""},{"$f":"IFERROR(IF(Table_SummaryPI[[#This Row],[kWhSavings]]=\"\",\"\",$BH$22*Table_SummaryPI[[#This Row],[kWhSavings]]),0)","v":""}]
[{"$f":"Table_PI[[#This Row],[Line No.]]","v":""},{"$f":"IF(Table_SummaryPI[[#This Row],[MeasureName]]<>\"\",NOT(ISTEXT(Table_PI[[#This Row],[Rebate]])),\"\")","v":""},{"$f":"IF(Table_SummaryPI[[#This Row],[MeassureCategory]]<>\"\",CONCATENATE(Table_SummaryPI[[#This Row],[MeassureCategory]],  \" - \", Table_SummaryPI[[#This Row],[ProposedMeasureCategory]],  \" - \", TEXT(Table_SummaryPI[[#This Row],[Size]],\"#,##0.00\"),\" \",Table_SummaryPI[[#This Row],[SizeUnit]]),\"\")","v":""},{"$f":"SUBSTITUTE(Table_PI[[#This Row],[Measure]],\"     \",\"\",1)","v":""},{"$f":"IF(Table_PI[[#This Row],[List 1]]<>\"\",Table_PI[[#This Row],[List 1]],\"\")","v":""},{"$f":"IF(Table_PI[[#This Row],[List 2]]<>\"\",Table_PI[[#This Row],[List 2]],\"\")","v":""},{"$f":"IF(Table_PI[[#This Row],[List 3]]<>\"\",Table_PI[[#This Row],[List 3]],\"\")","v":""},{"$f":"IF(Table_PI[[#This Row],[Manufacturer]]=\"\",\"\",Table_PI[[#This Row],[Manufacturer]])","v":""},{"$f":"IF(Table_PI[[#This Row],[Model Number]]=\"\",\"\",Table_PI[[#This Row],[Model Number]])","v":""},{"$f":"IF(Table_PI[[#This Row],[Serial Number(s)]]=\"\",\"\",Table_PI[[#This Row],[Serial Number(s)]])","v":""},null,{"$f":"IF(Table_PI[[#This Row],[Size]]=\"\",\"\",Table_PI[[#This Row],[Size]])","v":""},null,null,{"$f":"IF(Table_PI[[#This Row],[Input 1]]<>\"\",Table_PI[[#This Row],[Input 1]],\"\")","v":""},null,null,{"$f":"IF(Table_PI[[#This Row],[Input 2]]<>\"\",Table_PI[[#This Row],[Input 2]],\"\")","v":""},null,null,{"$f":"IF(Table_PI[[#This Row],[Input 3]]<>\"\",Table_PI[[#This Row],[Input 3]],\"\")","v":""},null,null,{"$f":"IF(Table_PI[[#This Row],[Input 4]]<>\"\",Table_PI[[#This Row],[Input 4]],\"\")","v":""},null,null,{"$f":"IF(Table_PI[[#This Row],[Input 4]]<>\"\",Table_PI[[#This Row],[Input 4]],\"\")","v":""},null,null,{"$f":"IF(Table_PI[[#This Row],[Input 4]]<>\"\",Table_PI[[#This Row],[Input 4]],\"\")","v":""},{"$f":"IF(Table_PI[[#This Row],[Quantity]]=\"\",\"\",Table_PI[[#This Row],[Quantity]])","v":""},{"$f":"IF(Table_PI[[#This Row],[Notes]]=\"\",\"\",Table_PI[[#This Row],[Notes]])","v":""},{"$f":"IF(OR(Table_PI[[#This Row],[Hide: Baseline kWh]]=\"\",Table_PI[[#This Row],[Hide: Baseline kWh]]=0,ISTEXT(Table_PI[[#This Row],[Hide: Baseline kWh]])),\"\",Table_PI[[#This Row],[Hide: Baseline kWh]])","v":""},{"$f":"IF(OR(Table_PI[[#This Row],[Hide: Baseline kW]]=\"\",Table_PI[[#This Row],[Hide: Baseline kW]]=0,ISTEXT(Table_PI[[#This Row],[Hide: Baseline kW]])),\"\",Table_PI[[#This Row],[Hide: Baseline kW]])","v":""},{"$f":"IF(OR(Table_PI[[#This Row],[Hide: Proposed kWh]]=\"\",Table_PI[[#This Row],[Hide: Proposed kWh]]=0,ISTEXT(Table_PI[[#This Row],[Hide: Proposed kWh]])),\"\",Table_PI[[#This Row],[Hide: Proposed kWh]])","v":""},{"$f":"IF(OR(Table_PI[[#This Row],[Hide: Proposed kW]]=\"\",Table_PI[[#This Row],[Hide: Proposed kW]]=0,ISTEXT(Table_PI[[#This Row],[Hide: Proposed kW]])),\"\",Table_PI[[#This Row],[Hide: Proposed kW]])","v":""},null,null,{"$f":"IF(OR(Table_PI[[#This Row],[Hide: Rebate]]=\"\",Table_PI[[#This Row],[Hide: Rebate]]=0,ISTEXT(Table_PI[[#This Row],[Hide: Rebate]])),\"\",Table_PI[[#This Row],[Hide: Rebate]])","v":""},null,{"$f":"IF(OR(Table_PI[[#This Row],[Hide: Incremental Cost]]=\"\",Table_PI[[#This Row],[Hide: Incremental Cost]]=0,ISTEXT(Table_PI[[#This Row],[Hide: Incremental Cost]])),\"\",Table_PI[[#This Row],[Hide: Incremental Cost]])","v":""},{"$f":"IFERROR(IF(Table_SummaryPI[[#This Row],[Incentive_Customer]]=\"\",\"\",ROUND(Table_SummaryPI[[#This Row],[Incentive_Customer]]/$AM$401*'Customer Information'!$BC$21,2)),0)","v":""},{"$f":"IF(OR(Table_PI[[#This Row],[Annual kWh]]=\"\",Table_PI[[#This Row],[Annual kWh]]=0,ISTEXT(Table_PI[[#This Row],[Annual kWh]])),\"\",Table_PI[[#This Row],[Annual kWh]])","v":""},{"$f":"IF(OR(Table_PI[[#This Row],[Peak kW]]=\"\",Table_PI[[#This Row],[Peak kW]]=0,ISTEXT(Table_PI[[#This Row],[Peak kW]])),\"\",Table_PI[[#This Row],[Peak kW]])","v":""},{"$f":"IF(Table_SummaryPI[[#This Row],[Line No.]]<>\"\",IF(AND(ISNUMBER(FIND(\"Chiller\",Table_SummaryPI[[#This Row],[P_MeasureOption1]],1)),Table_SummaryPI[[#This Row],[ProposedMeasureCategory]]=\"Air-Cooled (Water-Cooled Replacement)\"),$BD$29*Table_SummaryPI[[#This Row],[Size]]*Table_SummaryPI[[#This Row],[Quantity]]*Table_SummaryPI[[#This Row],[EFLHCooling]],\nIF(ISNUMBER(FIND(\"Dishwasher\",Table_SummaryPI[[#This Row],[ProposedMeasureCategory]],1)),$BH$29*Table_SummaryPI[[#This Row],[Quantity]],\nIF(ISNUMBER(FIND(\"Ice Maker\",Table_SummaryPI[[#This Row],[ProposedMeasureCategory]],1)),$BD$31*Table_SummaryPI[[#This Row],[Quantity]],\nIF(ISNUMBER(FIND(\"Spray Valve\",Table_SummaryPI[[#This Row],[ProposedMeasureCategory]],1)),$BH$31*Table_SummaryPI[[#This Row],[Quantity]],\n0)))),\"\")","v":""},{"$f":"IF(OR(Table_PI[[#This Row],[Hide: Electrification kWh]]=\"\",Table_PI[[#This Row],[Hide: Electrification kWh]]=0,ISTEXT(Table_PI[[#This Row],[Hide: Electrification kWh]])),\"\",Table_PI[[#This Row],[Hide: Electrification kWh]])","v":""},{"$f":"IF(OR(Table_PI[[#This Row],[Hide: Electrification GHG]]=\"\",Table_PI[[#This Row],[Hide: Electrification GHG]]=0,ISTEXT(Table_PI[[#This Row],[Hide: Electrification GHG]])),\"\",Table_PI[[#This Row],[Hide: Electrification GHG]])","v":""},{"$f":"IFERROR(IF(Table_SummaryPI[[#This Row],[kWhSavings]]=\"\",\"\",$BH$9*Table_SummaryPI[[#This Row],[kWhSavings]]),0)","v":""},{"$f":"IFERROR(IF(Table_SummaryPI[[#This Row],[kWhSavings]]=\"\",\"\",$BH$14*Table_SummaryPI[[#This Row],[kWhSavings]]),0)","v":""},{"$f":"IFERROR(IF(Table_SummaryPI[[#This Row],[kWhSavings]]=\"\",\"\",$BH$18*Table_SummaryPI[[#This Row],[kWhSavings]]),0)","v":""},{"$f":"IFERROR(IF(Table_SummaryPI[[#This Row],[kWhSavings]]=\"\",\"\",$BH$22*Table_SummaryPI[[#This Row],[kWhSavings]]),0)","v":""}]
[{"$f":"Table_PI[[#This Row],[Line No.]]","v":""},{"$f":"IF(Table_SummaryPI[[#This Row],[MeasureName]]<>\"\",NOT(ISTEXT(Table_PI[[#This Row],[Rebate]])),\"\")","v":""},{"$f":"IF(Table_SummaryPI[[#This Row],[MeassureCategory]]<>\"\",CONCATENATE(Table_SummaryPI[[#This Row],[MeassureCategory]],  \" - \", Table_SummaryPI[[#This Row],[ProposedMeasureCategory]],  \" - \", TEXT(Table_SummaryPI[[#This Row],[Size]],\"#,##0.00\"),\" \",Table_SummaryPI[[#This Row],[SizeUnit]]),\"\")","v":""},{"$f":"SUBSTITUTE(Table_PI[[#This Row],[Measure]],\"     \",\"\",1)","v":""},{"$f":"IF(Table_PI[[#This Row],[List 1]]<>\"\",Table_PI[[#This Row],[List 1]],\"\")","v":""},{"$f":"IF(Table_PI[[#This Row],[List 2]]<>\"\",Table_PI[[#This Row],[List 2]],\"\")","v":""},{"$f":"IF(Table_PI[[#This Row],[List 3]]<>\"\",Table_PI[[#This Row],[List 3]],\"\")","v":""},{"$f":"IF(Table_PI[[#This Row],[Manufacturer]]=\"\",\"\",Table_PI[[#This Row],[Manufacturer]])","v":""},{"$f":"IF(Table_PI[[#This Row],[Model Number]]=\"\",\"\",Table_PI[[#This Row],[Model Number]])","v":""},{"$f":"IF(Table_PI[[#This Row],[Serial Number(s)]]=\"\",\"\",Table_PI[[#This Row],[Serial Number(s)]])","v":""},null,{"$f":"IF(Table_PI[[#This Row],[Size]]=\"\",\"\",Table_PI[[#This Row],[Size]])","v":""},null,null,{"$f":"IF(Table_PI[[#This Row],[Input 1]]<>\"\",Table_PI[[#This Row],[Input 1]],\"\")","v":""},null,null,{"$f":"IF(Table_PI[[#This Row],[Input 2]]<>\"\",Table_PI[[#This Row],[Input 2]],\"\")","v":""},null,null,{"$f":"IF(Table_PI[[#This Row],[Input 3]]<>\"\",Table_PI[[#This Row],[Input 3]],\"\")","v":""},null,null,{"$f":"IF(Table_PI[[#This Row],[Input 4]]<>\"\",Table_PI[[#This Row],[Input 4]],\"\")","v":""},null,null,{"$f":"IF(Table_PI[[#This Row],[Input 4]]<>\"\",Table_PI[[#This Row],[Input 4]],\"\")","v":""},null,null,{"$f":"IF(Table_PI[[#This Row],[Input 4]]<>\"\",Table_PI[[#This Row],[Input 4]],\"\")","v":""},{"$f":"IF(Table_PI[[#This Row],[Quantity]]=\"\",\"\",Table_PI[[#This Row],[Quantity]])","v":""},{"$f":"IF(Table_PI[[#This Row],[Notes]]=\"\",\"\",Table_PI[[#This Row],[Notes]])","v":""},{"$f":"IF(OR(Table_PI[[#This Row],[Hide: Baseline kWh]]=\"\",Table_PI[[#This Row],[Hide: Baseline kWh]]=0,ISTEXT(Table_PI[[#This Row],[Hide: Baseline kWh]])),\"\",Table_PI[[#This Row],[Hide: Baseline kWh]])","v":""},{"$f":"IF(OR(Table_PI[[#This Row],[Hide: Baseline kW]]=\"\",Table_PI[[#This Row],[Hide: Baseline kW]]=0,ISTEXT(Table_PI[[#This Row],[Hide: Baseline kW]])),\"\",Table_PI[[#This Row],[Hide: Baseline kW]])","v":""},{"$f":"IF(OR(Table_PI[[#This Row],[Hide: Proposed kWh]]=\"\",Table_PI[[#This Row],[Hide: Proposed kWh]]=0,ISTEXT(Table_PI[[#This Row],[Hide: Proposed kWh]])),\"\",Table_PI[[#This Row],[Hide: Proposed kWh]])","v":""},{"$f":"IF(OR(Table_PI[[#This Row],[Hide: Proposed kW]]=\"\",Table_PI[[#This Row],[Hide: Proposed kW]]=0,ISTEXT(Table_PI[[#This Row],[Hide: Proposed kW]])),\"\",Table_PI[[#This Row],[Hide: Proposed kW]])","v":""},null,null,{"$f":"IF(OR(Table_PI[[#This Row],[Hide: Rebate]]=\"\",Table_PI[[#This Row],[Hide: Rebate]]=0,ISTEXT(Table_PI[[#This Row],[Hide: Rebate]])),\"\",Table_PI[[#This Row],[Hide: Rebate]])","v":""},null,{"$f":"IF(OR(Table_PI[[#This Row],[Hide: Incremental Cost]]=\"\",Table_PI[[#This Row],[Hide: Incremental Cost]]=0,ISTEXT(Table_PI[[#This Row],[Hide: Incremental Cost]])),\"\",Table_PI[[#This Row],[Hide: Incremental Cost]])","v":""},{"$f":"IFERROR(IF(Table_SummaryPI[[#This Row],[Incentive_Customer]]=\"\",\"\",ROUND(Table_SummaryPI[[#This Row],[Incentive_Customer]]/$AM$401*'Customer Information'!$BC$21,2)),0)","v":""},{"$f":"IF(OR(Table_PI[[#This Row],[Annual kWh]]=\"\",Table_PI[[#This Row],[Annual kWh]]=0,ISTEXT(Table_PI[[#This Row],[Annual kWh]])),\"\",Table_PI[[#This Row],[Annual kWh]])","v":""},{"$f":"IF(OR(Table_PI[[#This Row],[Peak kW]]=\"\",Table_PI[[#This Row],[Peak kW]]=0,ISTEXT(Table_PI[[#This Row],[Peak kW]])),\"\",Table_PI[[#This Row],[Peak kW]])","v":""},{"$f":"IF(Table_SummaryPI[[#This Row],[Line No.]]<>\"\",IF(AND(ISNUMBER(FIND(\"Chiller\",Table_SummaryPI[[#This Row],[P_MeasureOption1]],1)),Table_SummaryPI[[#This Row],[ProposedMeasureCategory]]=\"Air-Cooled (Water-Cooled Replacement)\"),$BD$29*Table_SummaryPI[[#This Row],[Size]]*Table_SummaryPI[[#This Row],[Quantity]]*Table_SummaryPI[[#This Row],[EFLHCooling]],\nIF(ISNUMBER(FIND(\"Dishwasher\",Table_SummaryPI[[#This Row],[ProposedMeasureCategory]],1)),$BH$29*Table_SummaryPI[[#This Row],[Quantity]],\nIF(ISNUMBER(FIND(\"Ice Maker\",Table_SummaryPI[[#This Row],[ProposedMeasureCategory]],1)),$BD$31*Table_SummaryPI[[#This Row],[Quantity]],\nIF(ISNUMBER(FIND(\"Spray Valve\",Table_SummaryPI[[#This Row],[ProposedMeasureCategory]],1)),$BH$31*Table_SummaryPI[[#This Row],[Quantity]],\n0)))),\"\")","v":""},{"$f":"IF(OR(Table_PI[[#This Row],[Hide: Electrification kWh]]=\"\",Table_PI[[#This Row],[Hide: Electrification kWh]]=0,ISTEXT(Table_PI[[#This Row],[Hide: Electrification kWh]])),\"\",Table_PI[[#This Row],[Hide: Electrification kWh]])","v":""},{"$f":"IF(OR(Table_PI[[#This Row],[Hide: Electrification GHG]]=\"\",Table_PI[[#This Row],[Hide: Electrification GHG]]=0,ISTEXT(Table_PI[[#This Row],[Hide: Electrification GHG]])),\"\",Table_PI[[#This Row],[Hide: Electrification GHG]])","v":""},{"$f":"IFERROR(IF(Table_SummaryPI[[#This Row],[kWhSavings]]=\"\",\"\",$BH$9*Table_SummaryPI[[#This Row],[kWhSavings]]),0)","v":""},{"$f":"IFERROR(IF(Table_SummaryPI[[#This Row],[kWhSavings]]=\"\",\"\",$BH$14*Table_SummaryPI[[#This Row],[kWhSavings]]),0)","v":""},{"$f":"IFERROR(IF(Table_SummaryPI[[#This Row],[kWhSavings]]=\"\",\"\",$BH$18*Table_SummaryPI[[#This Row],[kWhSavings]]),0)","v":""},{"$f":"IFERROR(IF(Table_SummaryPI[[#This Row],[kWhSavings]]=\"\",\"\",$BH$22*Table_SummaryPI[[#This Row],[kWhSavings]]),0)","v":""}]
[{"$f":"Table_PI[[#This Row],[Line No.]]","v":""},{"$f":"IF(Table_SummaryPI[[#This Row],[MeasureName]]<>\"\",NOT(ISTEXT(Table_PI[[#This Row],[Rebate]])),\"\")","v":""},{"$f":"IF(Table_SummaryPI[[#This Row],[MeassureCategory]]<>\"\",CONCATENATE(Table_SummaryPI[[#This Row],[MeassureCategory]],  \" - \", Table_SummaryPI[[#This Row],[ProposedMeasureCategory]],  \" - \", TEXT(Table_SummaryPI[[#This Row],[Size]],\"#,##0.00\"),\" \",Table_SummaryPI[[#This Row],[SizeUnit]]),\"\")","v":""},{"$f":"SUBSTITUTE(Table_PI[[#This Row],[Measure]],\"     \",\"\",1)","v":""},{"$f":"IF(Table_PI[[#This Row],[List 1]]<>\"\",Table_PI[[#This Row],[List 1]],\"\")","v":""},{"$f":"IF(Table_PI[[#This Row],[List 2]]<>\"\",Table_PI[[#This Row],[List 2]],\"\")","v":""},{"$f":"IF(Table_PI[[#This Row],[List 3]]<>\"\",Table_PI[[#This Row],[List 3]],\"\")","v":""},{"$f":"IF(Table_PI[[#This Row],[Manufacturer]]=\"\",\"\",Table_PI[[#This Row],[Manufacturer]])","v":""},{"$f":"IF(Table_PI[[#This Row],[Model Number]]=\"\",\"\",Table_PI[[#This Row],[Model Number]])","v":""},{"$f":"IF(Table_PI[[#This Row],[Serial Number(s)]]=\"\",\"\",Table_PI[[#This Row],[Serial Number(s)]])","v":""},null,{"$f":"IF(Table_PI[[#This Row],[Size]]=\"\",\"\",Table_PI[[#This Row],[Size]])","v":""},null,null,{"$f":"IF(Table_PI[[#This Row],[Input 1]]<>\"\",Table_PI[[#This Row],[Input 1]],\"\")","v":""},null,null,{"$f":"IF(Table_PI[[#This Row],[Input 2]]<>\"\",Table_PI[[#This Row],[Input 2]],\"\")","v":""},null,null,{"$f":"IF(Table_PI[[#This Row],[Input 3]]<>\"\",Table_PI[[#This Row],[Input 3]],\"\")","v":""},null,null,{"$f":"IF(Table_PI[[#This Row],[Input 4]]<>\"\",Table_PI[[#This Row],[Input 4]],\"\")","v":""},null,null,{"$f":"IF(Table_PI[[#This Row],[Input 4]]<>\"\",Table_PI[[#This Row],[Input 4]],\"\")","v":""},null,null,{"$f":"IF(Table_PI[[#This Row],[Input 4]]<>\"\",Table_PI[[#This Row],[Input 4]],\"\")","v":""},{"$f":"IF(Table_PI[[#This Row],[Quantity]]=\"\",\"\",Table_PI[[#This Row],[Quantity]])","v":""},{"$f":"IF(Table_PI[[#This Row],[Notes]]=\"\",\"\",Table_PI[[#This Row],[Notes]])","v":""},{"$f":"IF(OR(Table_PI[[#This Row],[Hide: Baseline kWh]]=\"\",Table_PI[[#This Row],[Hide: Baseline kWh]]=0,ISTEXT(Table_PI[[#This Row],[Hide: Baseline kWh]])),\"\",Table_PI[[#This Row],[Hide: Baseline kWh]])","v":""},{"$f":"IF(OR(Table_PI[[#This Row],[Hide: Baseline kW]]=\"\",Table_PI[[#This Row],[Hide: Baseline kW]]=0,ISTEXT(Table_PI[[#This Row],[Hide: Baseline kW]])),\"\",Table_PI[[#This Row],[Hide: Baseline kW]])","v":""},{"$f":"IF(OR(Table_PI[[#This Row],[Hide: Proposed kWh]]=\"\",Table_PI[[#This Row],[Hide: Proposed kWh]]=0,ISTEXT(Table_PI[[#This Row],[Hide: Proposed kWh]])),\"\",Table_PI[[#This Row],[Hide: Proposed kWh]])","v":""},{"$f":"IF(OR(Table_PI[[#This Row],[Hide: Proposed kW]]=\"\",Table_PI[[#This Row],[Hide: Proposed kW]]=0,ISTEXT(Table_PI[[#This Row],[Hide: Proposed kW]])),\"\",Table_PI[[#This Row],[Hide: Proposed kW]])","v":""},null,null,{"$f":"IF(OR(Table_PI[[#This Row],[Hide: Rebate]]=\"\",Table_PI[[#This Row],[Hide: Rebate]]=0,ISTEXT(Table_PI[[#This Row],[Hide: Rebate]])),\"\",Table_PI[[#This Row],[Hide: Rebate]])","v":""},null,{"$f":"IF(OR(Table_PI[[#This Row],[Hide: Incremental Cost]]=\"\",Table_PI[[#This Row],[Hide: Incremental Cost]]=0,ISTEXT(Table_PI[[#This Row],[Hide: Incremental Cost]])),\"\",Table_PI[[#This Row],[Hide: Incremental Cost]])","v":""},{"$f":"IFERROR(IF(Table_SummaryPI[[#This Row],[Incentive_Customer]]=\"\",\"\",ROUND(Table_SummaryPI[[#This Row],[Incentive_Customer]]/$AM$401*'Customer Information'!$BC$21,2)),0)","v":""},{"$f":"IF(OR(Table_PI[[#This Row],[Annual kWh]]=\"\",Table_PI[[#This Row],[Annual kWh]]=0,ISTEXT(Table_PI[[#This Row],[Annual kWh]])),\"\",Table_PI[[#This Row],[Annual kWh]])","v":""},{"$f":"IF(OR(Table_PI[[#This Row],[Peak kW]]=\"\",Table_PI[[#This Row],[Peak kW]]=0,ISTEXT(Table_PI[[#This Row],[Peak kW]])),\"\",Table_PI[[#This Row],[Peak kW]])","v":""},{"$f":"IF(Table_SummaryPI[[#This Row],[Line No.]]<>\"\",IF(AND(ISNUMBER(FIND(\"Chiller\",Table_SummaryPI[[#This Row],[P_MeasureOption1]],1)),Table_SummaryPI[[#This Row],[ProposedMeasureCategory]]=\"Air-Cooled (Water-Cooled Replacement)\"),$BD$29*Table_SummaryPI[[#This Row],[Size]]*Table_SummaryPI[[#This Row],[Quantity]]*Table_SummaryPI[[#This Row],[EFLHCooling]],\nIF(ISNUMBER(FIND(\"Dishwasher\",Table_SummaryPI[[#This Row],[ProposedMeasureCategory]],1)),$BH$29*Table_SummaryPI[[#This Row],[Quantity]],\nIF(ISNUMBER(FIND(\"Ice Maker\",Table_SummaryPI[[#This Row],[ProposedMeasureCategory]],1)),$BD$31*Table_SummaryPI[[#This Row],[Quantity]],\nIF(ISNUMBER(FIND(\"Spray Valve\",Table_SummaryPI[[#This Row],[ProposedMeasureCategory]],1)),$BH$31*Table_SummaryPI[[#This Row],[Quantity]],\n0)))),\"\")","v":""},{"$f":"IF(OR(Table_PI[[#This Row],[Hide: Electrification kWh]]=\"\",Table_PI[[#This Row],[Hide: Electrification kWh]]=0,ISTEXT(Table_PI[[#This Row],[Hide: Electrification kWh]])),\"\",Table_PI[[#This Row],[Hide: Electrification kWh]])","v":""},{"$f":"IF(OR(Table_PI[[#This Row],[Hide: Electrification GHG]]=\"\",Table_PI[[#This Row],[Hide: Electrification GHG]]=0,ISTEXT(Table_PI[[#This Row],[Hide: Electrification GHG]])),\"\",Table_PI[[#This Row],[Hide: Electrification GHG]])","v":""},{"$f":"IFERROR(IF(Table_SummaryPI[[#This Row],[kWhSavings]]=\"\",\"\",$BH$9*Table_SummaryPI[[#This Row],[kWhSavings]]),0)","v":""},{"$f":"IFERROR(IF(Table_SummaryPI[[#This Row],[kWhSavings]]=\"\",\"\",$BH$14*Table_SummaryPI[[#This Row],[kWhSavings]]),0)","v":""},{"$f":"IFERROR(IF(Table_SummaryPI[[#This Row],[kWhSavings]]=\"\",\"\",$BH$18*Table_SummaryPI[[#This Row],[kWhSavings]]),0)","v":""},{"$f":"IFERROR(IF(Table_SummaryPI[[#This Row],[kWhSavings]]=\"\",\"\",$BH$22*Table_SummaryPI[[#This Row],[kWhSavings]]),0)","v":""}]
[{"$f":"Table_PI[[#This Row],[Line No.]]","v":""},{"$f":"IF(Table_SummaryPI[[#This Row],[MeasureName]]<>\"\",NOT(ISTEXT(Table_PI[[#This Row],[Rebate]])),\"\")","v":""},{"$f":"IF(Table_SummaryPI[[#This Row],[MeassureCategory]]<>\"\",CONCATENATE(Table_SummaryPI[[#This Row],[MeassureCategory]],  \" - \", Table_SummaryPI[[#This Row],[ProposedMeasureCategory]],  \" - \", TEXT(Table_SummaryPI[[#This Row],[Size]],\"#,##0.00\"),\" \",Table_SummaryPI[[#This Row],[SizeUnit]]),\"\")","v":""},{"$f":"SUBSTITUTE(Table_PI[[#This Row],[Measure]],\"     \",\"\",1)","v":""},{"$f":"IF(Table_PI[[#This Row],[List 1]]<>\"\",Table_PI[[#This Row],[List 1]],\"\")","v":""},{"$f":"IF(Table_PI[[#This Row],[List 2]]<>\"\",Table_PI[[#This Row],[List 2]],\"\")","v":""},{"$f":"IF(Table_PI[[#This Row],[List 3]]<>\"\",Table_PI[[#This Row],[List 3]],\"\")","v":""},{"$f":"IF(Table_PI[[#This Row],[Manufacturer]]=\"\",\"\",Table_PI[[#This Row],[Manufacturer]])","v":""},{"$f":"IF(Table_PI[[#This Row],[Model Number]]=\"\",\"\",Table_PI[[#This Row],[Model Number]])","v":""},{"$f":"IF(Table_PI[[#This Row],[Serial Number(s)]]=\"\",\"\",Table_PI[[#This Row],[Serial Number(s)]])","v":""},null,{"$f":"IF(Table_PI[[#This Row],[Size]]=\"\",\"\",Table_PI[[#This Row],[Size]])","v":""},null,null,{"$f":"IF(Table_PI[[#This Row],[Input 1]]<>\"\",Table_PI[[#This Row],[Input 1]],\"\")","v":""},null,null,{"$f":"IF(Table_PI[[#This Row],[Input 2]]<>\"\",Table_PI[[#This Row],[Input 2]],\"\")","v":""},null,null,{"$f":"IF(Table_PI[[#This Row],[Input 3]]<>\"\",Table_PI[[#This Row],[Input 3]],\"\")","v":""},null,null,{"$f":"IF(Table_PI[[#This Row],[Input 4]]<>\"\",Table_PI[[#This Row],[Input 4]],\"\")","v":""},null,null,{"$f":"IF(Table_PI[[#This Row],[Input 4]]<>\"\",Table_PI[[#This Row],[Input 4]],\"\")","v":""},null,null,{"$f":"IF(Table_PI[[#This Row],[Input 4]]<>\"\",Table_PI[[#This Row],[Input 4]],\"\")","v":""},{"$f":"IF(Table_PI[[#This Row],[Quantity]]=\"\",\"\",Table_PI[[#This Row],[Quantity]])","v":""},{"$f":"IF(Table_PI[[#This Row],[Notes]]=\"\",\"\",Table_PI[[#This Row],[Notes]])","v":""},{"$f":"IF(OR(Table_PI[[#This Row],[Hide: Baseline kWh]]=\"\",Table_PI[[#This Row],[Hide: Baseline kWh]]=0,ISTEXT(Table_PI[[#This Row],[Hide: Baseline kWh]])),\"\",Table_PI[[#This Row],[Hide: Baseline kWh]])","v":""},{"$f":"IF(OR(Table_PI[[#This Row],[Hide: Baseline kW]]=\"\",Table_PI[[#This Row],[Hide: Baseline kW]]=0,ISTEXT(Table_PI[[#This Row],[Hide: Baseline kW]])),\"\",Table_PI[[#This Row],[Hide: Baseline kW]])","v":""},{"$f":"IF(OR(Table_PI[[#This Row],[Hide: Proposed kWh]]=\"\",Table_PI[[#This Row],[Hide: Proposed kWh]]=0,ISTEXT(Table_PI[[#This Row],[Hide: Proposed kWh]])),\"\",Table_PI[[#This Row],[Hide: Proposed kWh]])","v":""},{"$f":"IF(OR(Table_PI[[#This Row],[Hide: Proposed kW]]=\"\",Table_PI[[#This Row],[Hide: Proposed kW]]=0,ISTEXT(Table_PI[[#This Row],[Hide: Proposed kW]])),\"\",Table_PI[[#This Row],[Hide: Proposed kW]])","v":""},null,null,{"$f":"IF(OR(Table_PI[[#This Row],[Hide: Rebate]]=\"\",Table_PI[[#This Row],[Hide: Rebate]]=0,ISTEXT(Table_PI[[#This Row],[Hide: Rebate]])),\"\",Table_PI[[#This Row],[Hide: Rebate]])","v":""},null,{"$f":"IF(OR(Table_PI[[#This Row],[Hide: Incremental Cost]]=\"\",Table_PI[[#This Row],[Hide: Incremental Cost]]=0,ISTEXT(Table_PI[[#This Row],[Hide: Incremental Cost]])),\"\",Table_PI[[#This Row],[Hide: Incremental Cost]])","v":""},{"$f":"IFERROR(IF(Table_SummaryPI[[#This Row],[Incentive_Customer]]=\"\",\"\",ROUND(Table_SummaryPI[[#This Row],[Incentive_Customer]]/$AM$401*'Customer Information'!$BC$21,2)),0)","v":""},{"$f":"IF(OR(Table_PI[[#This Row],[Annual kWh]]=\"\",Table_PI[[#This Row],[Annual kWh]]=0,ISTEXT(Table_PI[[#This Row],[Annual kWh]])),\"\",Table_PI[[#This Row],[Annual kWh]])","v":""},{"$f":"IF(OR(Table_PI[[#This Row],[Peak kW]]=\"\",Table_PI[[#This Row],[Peak kW]]=0,ISTEXT(Table_PI[[#This Row],[Peak kW]])),\"\",Table_PI[[#This Row],[Peak kW]])","v":""},{"$f":"IF(Table_SummaryPI[[#This Row],[Line No.]]<>\"\",IF(AND(ISNUMBER(FIND(\"Chiller\",Table_SummaryPI[[#This Row],[P_MeasureOption1]],1)),Table_SummaryPI[[#This Row],[ProposedMeasureCategory]]=\"Air-Cooled (Water-Cooled Replacement)\"),$BD$29*Table_SummaryPI[[#This Row],[Size]]*Table_SummaryPI[[#This Row],[Quantity]]*Table_SummaryPI[[#This Row],[EFLHCooling]],\nIF(ISNUMBER(FIND(\"Dishwasher\",Table_SummaryPI[[#This Row],[ProposedMeasureCategory]],1)),$BH$29*Table_SummaryPI[[#This Row],[Quantity]],\nIF(ISNUMBER(FIND(\"Ice Maker\",Table_SummaryPI[[#This Row],[ProposedMeasureCategory]],1)),$BD$31*Table_SummaryPI[[#This Row],[Quantity]],\nIF(ISNUMBER(FIND(\"Spray Valve\",Table_SummaryPI[[#This Row],[ProposedMeasureCategory]],1)),$BH$31*Table_SummaryPI[[#This Row],[Quantity]],\n0)))),\"\")","v":""},{"$f":"IF(OR(Table_PI[[#This Row],[Hide: Electrification kWh]]=\"\",Table_PI[[#This Row],[Hide: Electrification kWh]]=0,ISTEXT(Table_PI[[#This Row],[Hide: Electrification kWh]])),\"\",Table_PI[[#This Row],[Hide: Electrification kWh]])","v":""},{"$f":"IF(OR(Table_PI[[#This Row],[Hide: Electrification GHG]]=\"\",Table_PI[[#This Row],[Hide: Electrification GHG]]=0,ISTEXT(Table_PI[[#This Row],[Hide: Electrification GHG]])),\"\",Table_PI[[#This Row],[Hide: Electrification GHG]])","v":""},{"$f":"IFERROR(IF(Table_SummaryPI[[#This Row],[kWhSavings]]=\"\",\"\",$BH$9*Table_SummaryPI[[#This Row],[kWhSavings]]),0)","v":""},{"$f":"IFERROR(IF(Table_SummaryPI[[#This Row],[kWhSavings]]=\"\",\"\",$BH$14*Table_SummaryPI[[#This Row],[kWhSavings]]),0)","v":""},{"$f":"IFERROR(IF(Table_SummaryPI[[#This Row],[kWhSavings]]=\"\",\"\",$BH$18*Table_SummaryPI[[#This Row],[kWhSavings]]),0)","v":""},{"$f":"IFERROR(IF(Table_SummaryPI[[#This Row],[kWhSavings]]=\"\",\"\",$BH$22*Table_SummaryPI[[#This Row],[kWhSavings]]),0)","v":""}]
[{"$f":"Table_PI[[#This Row],[Line No.]]","v":""},{"$f":"IF(Table_SummaryPI[[#This Row],[MeasureName]]<>\"\",NOT(ISTEXT(Table_PI[[#This Row],[Rebate]])),\"\")","v":""},{"$f":"IF(Table_SummaryPI[[#This Row],[MeassureCategory]]<>\"\",CONCATENATE(Table_SummaryPI[[#This Row],[MeassureCategory]],  \" - \", Table_SummaryPI[[#This Row],[ProposedMeasureCategory]],  \" - \", TEXT(Table_SummaryPI[[#This Row],[Size]],\"#,##0.00\"),\" \",Table_SummaryPI[[#This Row],[SizeUnit]]),\"\")","v":""},{"$f":"SUBSTITUTE(Table_PI[[#This Row],[Measure]],\"     \",\"\",1)","v":""},{"$f":"IF(Table_PI[[#This Row],[List 1]]<>\"\",Table_PI[[#This Row],[List 1]],\"\")","v":""},{"$f":"IF(Table_PI[[#This Row],[List 2]]<>\"\",Table_PI[[#This Row],[List 2]],\"\")","v":""},{"$f":"IF(Table_PI[[#This Row],[List 3]]<>\"\",Table_PI[[#This Row],[List 3]],\"\")","v":""},{"$f":"IF(Table_PI[[#This Row],[Manufacturer]]=\"\",\"\",Table_PI[[#This Row],[Manufacturer]])","v":""},{"$f":"IF(Table_PI[[#This Row],[Model Number]]=\"\",\"\",Table_PI[[#This Row],[Model Number]])","v":""},{"$f":"IF(Table_PI[[#This Row],[Serial Number(s)]]=\"\",\"\",Table_PI[[#This Row],[Serial Number(s)]])","v":""},null,{"$f":"IF(Table_PI[[#This Row],[Size]]=\"\",\"\",Table_PI[[#This Row],[Size]])","v":""},null,null,{"$f":"IF(Table_PI[[#This Row],[Input 1]]<>\"\",Table_PI[[#This Row],[Input 1]],\"\")","v":""},null,null,{"$f":"IF(Table_PI[[#This Row],[Input 2]]<>\"\",Table_PI[[#This Row],[Input 2]],\"\")","v":""},null,null,{"$f":"IF(Table_PI[[#This Row],[Input 3]]<>\"\",Table_PI[[#This Row],[Input 3]],\"\")","v":""},null,null,{"$f":"IF(Table_PI[[#This Row],[Input 4]]<>\"\",Table_PI[[#This Row],[Input 4]],\"\")","v":""},null,null,{"$f":"IF(Table_PI[[#This Row],[Input 4]]<>\"\",Table_PI[[#This Row],[Input 4]],\"\")","v":""},null,null,{"$f":"IF(Table_PI[[#This Row],[Input 4]]<>\"\",Table_PI[[#This Row],[Input 4]],\"\")","v":""},{"$f":"IF(Table_PI[[#This Row],[Quantity]]=\"\",\"\",Table_PI[[#This Row],[Quantity]])","v":""},{"$f":"IF(Table_PI[[#This Row],[Notes]]=\"\",\"\",Table_PI[[#This Row],[Notes]])","v":""},{"$f":"IF(OR(Table_PI[[#This Row],[Hide: Baseline kWh]]=\"\",Table_PI[[#This Row],[Hide: Baseline kWh]]=0,ISTEXT(Table_PI[[#This Row],[Hide: Baseline kWh]])),\"\",Table_PI[[#This Row],[Hide: Baseline kWh]])","v":""},{"$f":"IF(OR(Table_PI[[#This Row],[Hide: Baseline kW]]=\"\",Table_PI[[#This Row],[Hide: Baseline kW]]=0,ISTEXT(Table_PI[[#This Row],[Hide: Baseline kW]])),\"\",Table_PI[[#This Row],[Hide: Baseline kW]])","v":""},{"$f":"IF(OR(Table_PI[[#This Row],[Hide: Proposed kWh]]=\"\",Table_PI[[#This Row],[Hide: Proposed kWh]]=0,ISTEXT(Table_PI[[#This Row],[Hide: Proposed kWh]])),\"\",Table_PI[[#This Row],[Hide: Proposed kWh]])","v":""},{"$f":"IF(OR(Table_PI[[#This Row],[Hide: Proposed kW]]=\"\",Table_PI[[#This Row],[Hide: Proposed kW]]=0,ISTEXT(Table_PI[[#This Row],[Hide: Proposed kW]])),\"\",Table_PI[[#This Row],[Hide: Proposed kW]])","v":""},null,null,{"$f":"IF(OR(Table_PI[[#This Row],[Hide: Rebate]]=\"\",Table_PI[[#This Row],[Hide: Rebate]]=0,ISTEXT(Table_PI[[#This Row],[Hide: Rebate]])),\"\",Table_PI[[#This Row],[Hide: Rebate]])","v":""},null,{"$f":"IF(OR(Table_PI[[#This Row],[Hide: Incremental Cost]]=\"\",Table_PI[[#This Row],[Hide: Incremental Cost]]=0,ISTEXT(Table_PI[[#This Row],[Hide: Incremental Cost]])),\"\",Table_PI[[#This Row],[Hide: Incremental Cost]])","v":""},{"$f":"IFERROR(IF(Table_SummaryPI[[#This Row],[Incentive_Customer]]=\"\",\"\",ROUND(Table_SummaryPI[[#This Row],[Incentive_Customer]]/$AM$401*'Customer Information'!$BC$21,2)),0)","v":""},{"$f":"IF(OR(Table_PI[[#This Row],[Annual kWh]]=\"\",Table_PI[[#This Row],[Annual kWh]]=0,ISTEXT(Table_PI[[#This Row],[Annual kWh]])),\"\",Table_PI[[#This Row],[Annual kWh]])","v":""},{"$f":"IF(OR(Table_PI[[#This Row],[Peak kW]]=\"\",Table_PI[[#This Row],[Peak kW]]=0,ISTEXT(Table_PI[[#This Row],[Peak kW]])),\"\",Table_PI[[#This Row],[Peak kW]])","v":""},{"$f":"IF(Table_SummaryPI[[#This Row],[Line No.]]<>\"\",IF(AND(ISNUMBER(FIND(\"Chiller\",Table_SummaryPI[[#This Row],[P_MeasureOption1]],1)),Table_SummaryPI[[#This Row],[ProposedMeasureCategory]]=\"Air-Cooled (Water-Cooled Replacement)\"),$BD$29*Table_SummaryPI[[#This Row],[Size]]*Table_SummaryPI[[#This Row],[Quantity]]*Table_SummaryPI[[#This Row],[EFLHCooling]],\nIF(ISNUMBER(FIND(\"Dishwasher\",Table_SummaryPI[[#This Row],[ProposedMeasureCategory]],1)),$BH$29*Table_SummaryPI[[#This Row],[Quantity]],\nIF(ISNUMBER(FIND(\"Ice Maker\",Table_SummaryPI[[#This Row],[ProposedMeasureCategory]],1)),$BD$31*Table_SummaryPI[[#This Row],[Quantity]],\nIF(ISNUMBER(FIND(\"Spray Valve\",Table_SummaryPI[[#This Row],[ProposedMeasureCategory]],1)),$BH$31*Table_SummaryPI[[#This Row],[Quantity]],\n0)))),\"\")","v":""},{"$f":"IF(OR(Table_PI[[#This Row],[Hide: Electrification kWh]]=\"\",Table_PI[[#This Row],[Hide: Electrification kWh]]=0,ISTEXT(Table_PI[[#This Row],[Hide: Electrification kWh]])),\"\",Table_PI[[#This Row],[Hide: Electrification kWh]])","v":""},{"$f":"IF(OR(Table_PI[[#This Row],[Hide: Electrification GHG]]=\"\",Table_PI[[#This Row],[Hide: Electrification GHG]]=0,ISTEXT(Table_PI[[#This Row],[Hide: Electrification GHG]])),\"\",Table_PI[[#This Row],[Hide: Electrification GHG]])","v":""},{"$f":"IFERROR(IF(Table_SummaryPI[[#This Row],[kWhSavings]]=\"\",\"\",$BH$9*Table_SummaryPI[[#This Row],[kWhSavings]]),0)","v":""},{"$f":"IFERROR(IF(Table_SummaryPI[[#This Row],[kWhSavings]]=\"\",\"\",$BH$14*Table_SummaryPI[[#This Row],[kWhSavings]]),0)","v":""},{"$f":"IFERROR(IF(Table_SummaryPI[[#This Row],[kWhSavings]]=\"\",\"\",$BH$18*Table_SummaryPI[[#This Row],[kWhSavings]]),0)","v":""},{"$f":"IFERROR(IF(Table_SummaryPI[[#This Row],[kWhSavings]]=\"\",\"\",$BH$22*Table_SummaryPI[[#This Row],[kWhSavings]]),0)","v":""}]
[{"$f":"Table_PI[[#This Row],[Line No.]]","v":""},{"$f":"IF(Table_SummaryPI[[#This Row],[MeasureName]]<>\"\",NOT(ISTEXT(Table_PI[[#This Row],[Rebate]])),\"\")","v":""},{"$f":"IF(Table_SummaryPI[[#This Row],[MeassureCategory]]<>\"\",CONCATENATE(Table_SummaryPI[[#This Row],[MeassureCategory]],  \" - \", Table_SummaryPI[[#This Row],[ProposedMeasureCategory]],  \" - \", TEXT(Table_SummaryPI[[#This Row],[Size]],\"#,##0.00\"),\" \",Table_SummaryPI[[#This Row],[SizeUnit]]),\"\")","v":""},{"$f":"SUBSTITUTE(Table_PI[[#This Row],[Measure]],\"     \",\"\",1)","v":""},{"$f":"IF(Table_PI[[#This Row],[List 1]]<>\"\",Table_PI[[#This Row],[List 1]],\"\")","v":""},{"$f":"IF(Table_PI[[#This Row],[List 2]]<>\"\",Table_PI[[#This Row],[List 2]],\"\")","v":""},{"$f":"IF(Table_PI[[#This Row],[List 3]]<>\"\",Table_PI[[#This Row],[List 3]],\"\")","v":""},{"$f":"IF(Table_PI[[#This Row],[Manufacturer]]=\"\",\"\",Table_PI[[#This Row],[Manufacturer]])","v":""},{"$f":"IF(Table_PI[[#This Row],[Model Number]]=\"\",\"\",Table_PI[[#This Row],[Model Number]])","v":""},{"$f":"IF(Table_PI[[#This Row],[Serial Number(s)]]=\"\",\"\",Table_PI[[#This Row],[Serial Number(s)]])","v":""},null,{"$f":"IF(Table_PI[[#This Row],[Size]]=\"\",\"\",Table_PI[[#This Row],[Size]])","v":""},null,null,{"$f":"IF(Table_PI[[#This Row],[Input 1]]<>\"\",Table_PI[[#This Row],[Input 1]],\"\")","v":""},null,null,{"$f":"IF(Table_PI[[#This Row],[Input 2]]<>\"\",Table_PI[[#This Row],[Input 2]],\"\")","v":""},null,null,{"$f":"IF(Table_PI[[#This Row],[Input 3]]<>\"\",Table_PI[[#This Row],[Input 3]],\"\")","v":""},null,null,{"$f":"IF(Table_PI[[#This Row],[Input 4]]<>\"\",Table_PI[[#This Row],[Input 4]],\"\")","v":""},null,null,{"$f":"IF(Table_PI[[#This Row],[Input 4]]<>\"\",Table_PI[[#This Row],[Input 4]],\"\")","v":""},null,null,{"$f":"IF(Table_PI[[#This Row],[Input 4]]<>\"\",Table_PI[[#This Row],[Input 4]],\"\")","v":""},{"$f":"IF(Table_PI[[#This Row],[Quantity]]=\"\",\"\",Table_PI[[#This Row],[Quantity]])","v":""},{"$f":"IF(Table_PI[[#This Row],[Notes]]=\"\",\"\",Table_PI[[#This Row],[Notes]])","v":""},{"$f":"IF(OR(Table_PI[[#This Row],[Hide: Baseline kWh]]=\"\",Table_PI[[#This Row],[Hide: Baseline kWh]]=0,ISTEXT(Table_PI[[#This Row],[Hide: Baseline kWh]])),\"\",Table_PI[[#This Row],[Hide: Baseline kWh]])","v":""},{"$f":"IF(OR(Table_PI[[#This Row],[Hide: Baseline kW]]=\"\",Table_PI[[#This Row],[Hide: Baseline kW]]=0,ISTEXT(Table_PI[[#This Row],[Hide: Baseline kW]])),\"\",Table_PI[[#This Row],[Hide: Baseline kW]])","v":""},{"$f":"IF(OR(Table_PI[[#This Row],[Hide: Proposed kWh]]=\"\",Table_PI[[#This Row],[Hide: Proposed kWh]]=0,ISTEXT(Table_PI[[#This Row],[Hide: Proposed kWh]])),\"\",Table_PI[[#This Row],[Hide: Proposed kWh]])","v":""},{"$f":"IF(OR(Table_PI[[#This Row],[Hide: Proposed kW]]=\"\",Table_PI[[#This Row],[Hide: Proposed kW]]=0,ISTEXT(Table_PI[[#This Row],[Hide: Proposed kW]])),\"\",Table_PI[[#This Row],[Hide: Proposed kW]])","v":""},null,null,{"$f":"IF(OR(Table_PI[[#This Row],[Hide: Rebate]]=\"\",Table_PI[[#This Row],[Hide: Rebate]]=0,ISTEXT(Table_PI[[#This Row],[Hide: Rebate]])),\"\",Table_PI[[#This Row],[Hide: Rebate]])","v":""},null,{"$f":"IF(OR(Table_PI[[#This Row],[Hide: Incremental Cost]]=\"\",Table_PI[[#This Row],[Hide: Incremental Cost]]=0,ISTEXT(Table_PI[[#This Row],[Hide: Incremental Cost]])),\"\",Table_PI[[#This Row],[Hide: Incremental Cost]])","v":""},{"$f":"IFERROR(IF(Table_SummaryPI[[#This Row],[Incentive_Customer]]=\"\",\"\",ROUND(Table_SummaryPI[[#This Row],[Incentive_Customer]]/$AM$401*'Customer Information'!$BC$21,2)),0)","v":""},{"$f":"IF(OR(Table_PI[[#This Row],[Annual kWh]]=\"\",Table_PI[[#This Row],[Annual kWh]]=0,ISTEXT(Table_PI[[#This Row],[Annual kWh]])),\"\",Table_PI[[#This Row],[Annual kWh]])","v":""},{"$f":"IF(OR(Table_PI[[#This Row],[Peak kW]]=\"\",Table_PI[[#This Row],[Peak kW]]=0,ISTEXT(Table_PI[[#This Row],[Peak kW]])),\"\",Table_PI[[#This Row],[Peak kW]])","v":""},{"$f":"IF(Table_SummaryPI[[#This Row],[Line No.]]<>\"\",IF(AND(ISNUMBER(FIND(\"Chiller\",Table_SummaryPI[[#This Row],[P_MeasureOption1]],1)),Table_SummaryPI[[#This Row],[ProposedMeasureCategory]]=\"Air-Cooled (Water-Cooled Replacement)\"),$BD$29*Table_SummaryPI[[#This Row],[Size]]*Table_SummaryPI[[#This Row],[Quantity]]*Table_SummaryPI[[#This Row],[EFLHCooling]],\nIF(ISNUMBER(FIND(\"Dishwasher\",Table_SummaryPI[[#This Row],[ProposedMeasureCategory]],1)),$BH$29*Table_SummaryPI[[#This Row],[Quantity]],\nIF(ISNUMBER(FIND(\"Ice Maker\",Table_SummaryPI[[#This Row],[ProposedMeasureCategory]],1)),$BD$31*Table_SummaryPI[[#This Row],[Quantity]],\nIF(ISNUMBER(FIND(\"Spray Valve\",Table_SummaryPI[[#This Row],[ProposedMeasureCategory]],1)),$BH$31*Table_SummaryPI[[#This Row],[Quantity]],\n0)))),\"\")","v":""},{"$f":"IF(OR(Table_PI[[#This Row],[Hide: Electrification kWh]]=\"\",Table_PI[[#This Row],[Hide: Electrification kWh]]=0,ISTEXT(Table_PI[[#This Row],[Hide: Electrification kWh]])),\"\",Table_PI[[#This Row],[Hide: Electrification kWh]])","v":""},{"$f":"IF(OR(Table_PI[[#This Row],[Hide: Electrification GHG]]=\"\",Table_PI[[#This Row],[Hide: Electrification GHG]]=0,ISTEXT(Table_PI[[#This Row],[Hide: Electrification GHG]])),\"\",Table_PI[[#This Row],[Hide: Electrification GHG]])","v":""},{"$f":"IFERROR(IF(Table_SummaryPI[[#This Row],[kWhSavings]]=\"\",\"\",$BH$9*Table_SummaryPI[[#This Row],[kWhSavings]]),0)","v":""},{"$f":"IFERROR(IF(Table_SummaryPI[[#This Row],[kWhSavings]]=\"\",\"\",$BH$14*Table_SummaryPI[[#This Row],[kWhSavings]]),0)","v":""},{"$f":"IFERROR(IF(Table_SummaryPI[[#This Row],[kWhSavings]]=\"\",\"\",$BH$18*Table_SummaryPI[[#This Row],[kWhSavings]]),0)","v":""},{"$f":"IFERROR(IF(Table_SummaryPI[[#This Row],[kWhSavings]]=\"\",\"\",$BH$22*Table_SummaryPI[[#This Row],[kWhSavings]]),0)","v":""}]
[{"$f":"Table_PI[[#This Row],[Line No.]]","v":""},{"$f":"IF(Table_SummaryPI[[#This Row],[MeasureName]]<>\"\",NOT(ISTEXT(Table_PI[[#This Row],[Rebate]])),\"\")","v":""},{"$f":"IF(Table_SummaryPI[[#This Row],[MeassureCategory]]<>\"\",CONCATENATE(Table_SummaryPI[[#This Row],[MeassureCategory]],  \" - \", Table_SummaryPI[[#This Row],[ProposedMeasureCategory]],  \" - \", TEXT(Table_SummaryPI[[#This Row],[Size]],\"#,##0.00\"),\" \",Table_SummaryPI[[#This Row],[SizeUnit]]),\"\")","v":""},{"$f":"SUBSTITUTE(Table_PI[[#This Row],[Measure]],\"     \",\"\",1)","v":""},{"$f":"IF(Table_PI[[#This Row],[List 1]]<>\"\",Table_PI[[#This Row],[List 1]],\"\")","v":""},{"$f":"IF(Table_PI[[#This Row],[List 2]]<>\"\",Table_PI[[#This Row],[List 2]],\"\")","v":""},{"$f":"IF(Table_PI[[#This Row],[List 3]]<>\"\",Table_PI[[#This Row],[List 3]],\"\")","v":""},{"$f":"IF(Table_PI[[#This Row],[Manufacturer]]=\"\",\"\",Table_PI[[#This Row],[Manufacturer]])","v":""},{"$f":"IF(Table_PI[[#This Row],[Model Number]]=\"\",\"\",Table_PI[[#This Row],[Model Number]])","v":""},{"$f":"IF(Table_PI[[#This Row],[Serial Number(s)]]=\"\",\"\",Table_PI[[#This Row],[Serial Number(s)]])","v":""},null,{"$f":"IF(Table_PI[[#This Row],[Size]]=\"\",\"\",Table_PI[[#This Row],[Size]])","v":""},null,null,{"$f":"IF(Table_PI[[#This Row],[Input 1]]<>\"\",Table_PI[[#This Row],[Input 1]],\"\")","v":""},null,null,{"$f":"IF(Table_PI[[#This Row],[Input 2]]<>\"\",Table_PI[[#This Row],[Input 2]],\"\")","v":""},null,null,{"$f":"IF(Table_PI[[#This Row],[Input 3]]<>\"\",Table_PI[[#This Row],[Input 3]],\"\")","v":""},null,null,{"$f":"IF(Table_PI[[#This Row],[Input 4]]<>\"\",Table_PI[[#This Row],[Input 4]],\"\")","v":""},null,null,{"$f":"IF(Table_PI[[#This Row],[Input 4]]<>\"\",Table_PI[[#This Row],[Input 4]],\"\")","v":""},null,null,{"$f":"IF(Table_PI[[#This Row],[Input 4]]<>\"\",Table_PI[[#This Row],[Input 4]],\"\")","v":""},{"$f":"IF(Table_PI[[#This Row],[Quantity]]=\"\",\"\",Table_PI[[#This Row],[Quantity]])","v":""},{"$f":"IF(Table_PI[[#This Row],[Notes]]=\"\",\"\",Table_PI[[#This Row],[Notes]])","v":""},{"$f":"IF(OR(Table_PI[[#This Row],[Hide: Baseline kWh]]=\"\",Table_PI[[#This Row],[Hide: Baseline kWh]]=0,ISTEXT(Table_PI[[#This Row],[Hide: Baseline kWh]])),\"\",Table_PI[[#This Row],[Hide: Baseline kWh]])","v":""},{"$f":"IF(OR(Table_PI[[#This Row],[Hide: Baseline kW]]=\"\",Table_PI[[#This Row],[Hide: Baseline kW]]=0,ISTEXT(Table_PI[[#This Row],[Hide: Baseline kW]])),\"\",Table_PI[[#This Row],[Hide: Baseline kW]])","v":""},{"$f":"IF(OR(Table_PI[[#This Row],[Hide: Proposed kWh]]=\"\",Table_PI[[#This Row],[Hide: Proposed kWh]]=0,ISTEXT(Table_PI[[#This Row],[Hide: Proposed kWh]])),\"\",Table_PI[[#This Row],[Hide: Proposed kWh]])","v":""},{"$f":"IF(OR(Table_PI[[#This Row],[Hide: Proposed kW]]=\"\",Table_PI[[#This Row],[Hide: Proposed kW]]=0,ISTEXT(Table_PI[[#This Row],[Hide: Proposed kW]])),\"\",Table_PI[[#This Row],[Hide: Proposed kW]])","v":""},null,null,{"$f":"IF(OR(Table_PI[[#This Row],[Hide: Rebate]]=\"\",Table_PI[[#This Row],[Hide: Rebate]]=0,ISTEXT(Table_PI[[#This Row],[Hide: Rebate]])),\"\",Table_PI[[#This Row],[Hide: Rebate]])","v":""},null,{"$f":"IF(OR(Table_PI[[#This Row],[Hide: Incremental Cost]]=\"\",Table_PI[[#This Row],[Hide: Incremental Cost]]=0,ISTEXT(Table_PI[[#This Row],[Hide: Incremental Cost]])),\"\",Table_PI[[#This Row],[Hide: Incremental Cost]])","v":""},{"$f":"IFERROR(IF(Table_SummaryPI[[#This Row],[Incentive_Customer]]=\"\",\"\",ROUND(Table_SummaryPI[[#This Row],[Incentive_Customer]]/$AM$401*'Customer Information'!$BC$21,2)),0)","v":""},{"$f":"IF(OR(Table_PI[[#This Row],[Annual kWh]]=\"\",Table_PI[[#This Row],[Annual kWh]]=0,ISTEXT(Table_PI[[#This Row],[Annual kWh]])),\"\",Table_PI[[#This Row],[Annual kWh]])","v":""},{"$f":"IF(OR(Table_PI[[#This Row],[Peak kW]]=\"\",Table_PI[[#This Row],[Peak kW]]=0,ISTEXT(Table_PI[[#This Row],[Peak kW]])),\"\",Table_PI[[#This Row],[Peak kW]])","v":""},{"$f":"IF(Table_SummaryPI[[#This Row],[Line No.]]<>\"\",IF(AND(ISNUMBER(FIND(\"Chiller\",Table_SummaryPI[[#This Row],[P_MeasureOption1]],1)),Table_SummaryPI[[#This Row],[ProposedMeasureCategory]]=\"Air-Cooled (Water-Cooled Replacement)\"),$BD$29*Table_SummaryPI[[#This Row],[Size]]*Table_SummaryPI[[#This Row],[Quantity]]*Table_SummaryPI[[#This Row],[EFLHCooling]],\nIF(ISNUMBER(FIND(\"Dishwasher\",Table_SummaryPI[[#This Row],[ProposedMeasureCategory]],1)),$BH$29*Table_SummaryPI[[#This Row],[Quantity]],\nIF(ISNUMBER(FIND(\"Ice Maker\",Table_SummaryPI[[#This Row],[ProposedMeasureCategory]],1)),$BD$31*Table_SummaryPI[[#This Row],[Quantity]],\nIF(ISNUMBER(FIND(\"Spray Valve\",Table_SummaryPI[[#This Row],[ProposedMeasureCategory]],1)),$BH$31*Table_SummaryPI[[#This Row],[Quantity]],\n0)))),\"\")","v":""},{"$f":"IF(OR(Table_PI[[#This Row],[Hide: Electrification kWh]]=\"\",Table_PI[[#This Row],[Hide: Electrification kWh]]=0,ISTEXT(Table_PI[[#This Row],[Hide: Electrification kWh]])),\"\",Table_PI[[#This Row],[Hide: Electrification kWh]])","v":""},{"$f":"IF(OR(Table_PI[[#This Row],[Hide: Electrification GHG]]=\"\",Table_PI[[#This Row],[Hide: Electrification GHG]]=0,ISTEXT(Table_PI[[#This Row],[Hide: Electrification GHG]])),\"\",Table_PI[[#This Row],[Hide: Electrification GHG]])","v":""},{"$f":"IFERROR(IF(Table_SummaryPI[[#This Row],[kWhSavings]]=\"\",\"\",$BH$9*Table_SummaryPI[[#This Row],[kWhSavings]]),0)","v":""},{"$f":"IFERROR(IF(Table_SummaryPI[[#This Row],[kWhSavings]]=\"\",\"\",$BH$14*Table_SummaryPI[[#This Row],[kWhSavings]]),0)","v":""},{"$f":"IFERROR(IF(Table_SummaryPI[[#This Row],[kWhSavings]]=\"\",\"\",$BH$18*Table_SummaryPI[[#This Row],[kWhSavings]]),0)","v":""},{"$f":"IFERROR(IF(Table_SummaryPI[[#This Row],[kWhSavings]]=\"\",\"\",$BH$22*Table_SummaryPI[[#This Row],[kWhSavings]]),0)","v":""}]
[{"$f":"Table_PI[[#This Row],[Line No.]]","v":""},{"$f":"IF(Table_SummaryPI[[#This Row],[MeasureName]]<>\"\",NOT(ISTEXT(Table_PI[[#This Row],[Rebate]])),\"\")","v":""},{"$f":"IF(Table_SummaryPI[[#This Row],[MeassureCategory]]<>\"\",CONCATENATE(Table_SummaryPI[[#This Row],[MeassureCategory]],  \" - \", Table_SummaryPI[[#This Row],[ProposedMeasureCategory]],  \" - \", TEXT(Table_SummaryPI[[#This Row],[Size]],\"#,##0.00\"),\" \",Table_SummaryPI[[#This Row],[SizeUnit]]),\"\")","v":""},{"$f":"SUBSTITUTE(Table_PI[[#This Row],[Measure]],\"     \",\"\",1)","v":""},{"$f":"IF(Table_PI[[#This Row],[List 1]]<>\"\",Table_PI[[#This Row],[List 1]],\"\")","v":""},{"$f":"IF(Table_PI[[#This Row],[List 2]]<>\"\",Table_PI[[#This Row],[List 2]],\"\")","v":""},{"$f":"IF(Table_PI[[#This Row],[List 3]]<>\"\",Table_PI[[#This Row],[List 3]],\"\")","v":""},{"$f":"IF(Table_PI[[#This Row],[Manufacturer]]=\"\",\"\",Table_PI[[#This Row],[Manufacturer]])","v":""},{"$f":"IF(Table_PI[[#This Row],[Model Number]]=\"\",\"\",Table_PI[[#This Row],[Model Number]])","v":""},{"$f":"IF(Table_PI[[#This Row],[Serial Number(s)]]=\"\",\"\",Table_PI[[#This Row],[Serial Number(s)]])","v":""},null,{"$f":"IF(Table_PI[[#This Row],[Size]]=\"\",\"\",Table_PI[[#This Row],[Size]])","v":""},null,null,{"$f":"IF(Table_PI[[#This Row],[Input 1]]<>\"\",Table_PI[[#This Row],[Input 1]],\"\")","v":""},null,null,{"$f":"IF(Table_PI[[#This Row],[Input 2]]<>\"\",Table_PI[[#This Row],[Input 2]],\"\")","v":""},null,null,{"$f":"IF(Table_PI[[#This Row],[Input 3]]<>\"\",Table_PI[[#This Row],[Input 3]],\"\")","v":""},null,null,{"$f":"IF(Table_PI[[#This Row],[Input 4]]<>\"\",Table_PI[[#This Row],[Input 4]],\"\")","v":""},null,null,{"$f":"IF(Table_PI[[#This Row],[Input 4]]<>\"\",Table_PI[[#This Row],[Input 4]],\"\")","v":""},null,null,{"$f":"IF(Table_PI[[#This Row],[Input 4]]<>\"\",Table_PI[[#This Row],[Input 4]],\"\")","v":""},{"$f":"IF(Table_PI[[#This Row],[Quantity]]=\"\",\"\",Table_PI[[#This Row],[Quantity]])","v":""},{"$f":"IF(Table_PI[[#This Row],[Notes]]=\"\",\"\",Table_PI[[#This Row],[Notes]])","v":""},{"$f":"IF(OR(Table_PI[[#This Row],[Hide: Baseline kWh]]=\"\",Table_PI[[#This Row],[Hide: Baseline kWh]]=0,ISTEXT(Table_PI[[#This Row],[Hide: Baseline kWh]])),\"\",Table_PI[[#This Row],[Hide: Baseline kWh]])","v":""},{"$f":"IF(OR(Table_PI[[#This Row],[Hide: Baseline kW]]=\"\",Table_PI[[#This Row],[Hide: Baseline kW]]=0,ISTEXT(Table_PI[[#This Row],[Hide: Baseline kW]])),\"\",Table_PI[[#This Row],[Hide: Baseline kW]])","v":""},{"$f":"IF(OR(Table_PI[[#This Row],[Hide: Proposed kWh]]=\"\",Table_PI[[#This Row],[Hide: Proposed kWh]]=0,ISTEXT(Table_PI[[#This Row],[Hide: Proposed kWh]])),\"\",Table_PI[[#This Row],[Hide: Proposed kWh]])","v":""},{"$f":"IF(OR(Table_PI[[#This Row],[Hide: Proposed kW]]=\"\",Table_PI[[#This Row],[Hide: Proposed kW]]=0,ISTEXT(Table_PI[[#This Row],[Hide: Proposed kW]])),\"\",Table_PI[[#This Row],[Hide: Proposed kW]])","v":""},null,null,{"$f":"IF(OR(Table_PI[[#This Row],[Hide: Rebate]]=\"\",Table_PI[[#This Row],[Hide: Rebate]]=0,ISTEXT(Table_PI[[#This Row],[Hide: Rebate]])),\"\",Table_PI[[#This Row],[Hide: Rebate]])","v":""},null,{"$f":"IF(OR(Table_PI[[#This Row],[Hide: Incremental Cost]]=\"\",Table_PI[[#This Row],[Hide: Incremental Cost]]=0,ISTEXT(Table_PI[[#This Row],[Hide: Incremental Cost]])),\"\",Table_PI[[#This Row],[Hide: Incremental Cost]])","v":""},{"$f":"IFERROR(IF(Table_SummaryPI[[#This Row],[Incentive_Customer]]=\"\",\"\",ROUND(Table_SummaryPI[[#This Row],[Incentive_Customer]]/$AM$401*'Customer Information'!$BC$21,2)),0)","v":""},{"$f":"IF(OR(Table_PI[[#This Row],[Annual kWh]]=\"\",Table_PI[[#This Row],[Annual kWh]]=0,ISTEXT(Table_PI[[#This Row],[Annual kWh]])),\"\",Table_PI[[#This Row],[Annual kWh]])","v":""},{"$f":"IF(OR(Table_PI[[#This Row],[Peak kW]]=\"\",Table_PI[[#This Row],[Peak kW]]=0,ISTEXT(Table_PI[[#This Row],[Peak kW]])),\"\",Table_PI[[#This Row],[Peak kW]])","v":""},{"$f":"IF(Table_SummaryPI[[#This Row],[Line No.]]<>\"\",IF(AND(ISNUMBER(FIND(\"Chiller\",Table_SummaryPI[[#This Row],[P_MeasureOption1]],1)),Table_SummaryPI[[#This Row],[ProposedMeasureCategory]]=\"Air-Cooled (Water-Cooled Replacement)\"),$BD$29*Table_SummaryPI[[#This Row],[Size]]*Table_SummaryPI[[#This Row],[Quantity]]*Table_SummaryPI[[#This Row],[EFLHCooling]],\nIF(ISNUMBER(FIND(\"Dishwasher\",Table_SummaryPI[[#This Row],[ProposedMeasureCategory]],1)),$BH$29*Table_SummaryPI[[#This Row],[Quantity]],\nIF(ISNUMBER(FIND(\"Ice Maker\",Table_SummaryPI[[#This Row],[ProposedMeasureCategory]],1)),$BD$31*Table_SummaryPI[[#This Row],[Quantity]],\nIF(ISNUMBER(FIND(\"Spray Valve\",Table_SummaryPI[[#This Row],[ProposedMeasureCategory]],1)),$BH$31*Table_SummaryPI[[#This Row],[Quantity]],\n0)))),\"\")","v":""},{"$f":"IF(OR(Table_PI[[#This Row],[Hide: Electrification kWh]]=\"\",Table_PI[[#This Row],[Hide: Electrification kWh]]=0,ISTEXT(Table_PI[[#This Row],[Hide: Electrification kWh]])),\"\",Table_PI[[#This Row],[Hide: Electrification kWh]])","v":""},{"$f":"IF(OR(Table_PI[[#This Row],[Hide: Electrification GHG]]=\"\",Table_PI[[#This Row],[Hide: Electrification GHG]]=0,ISTEXT(Table_PI[[#This Row],[Hide: Electrification GHG]])),\"\",Table_PI[[#This Row],[Hide: Electrification GHG]])","v":""},{"$f":"IFERROR(IF(Table_SummaryPI[[#This Row],[kWhSavings]]=\"\",\"\",$BH$9*Table_SummaryPI[[#This Row],[kWhSavings]]),0)","v":""},{"$f":"IFERROR(IF(Table_SummaryPI[[#This Row],[kWhSavings]]=\"\",\"\",$BH$14*Table_SummaryPI[[#This Row],[kWhSavings]]),0)","v":""},{"$f":"IFERROR(IF(Table_SummaryPI[[#This Row],[kWhSavings]]=\"\",\"\",$BH$18*Table_SummaryPI[[#This Row],[kWhSavings]]),0)","v":""},{"$f":"IFERROR(IF(Table_SummaryPI[[#This Row],[kWhSavings]]=\"\",\"\",$BH$22*Table_SummaryPI[[#This Row],[kWhSavings]]),0)","v":""}]
[{"$f":"Table_PI[[#This Row],[Line No.]]","v":""},{"$f":"IF(Table_SummaryPI[[#This Row],[MeasureName]]<>\"\",NOT(ISTEXT(Table_PI[[#This Row],[Rebate]])),\"\")","v":""},{"$f":"IF(Table_SummaryPI[[#This Row],[MeassureCategory]]<>\"\",CONCATENATE(Table_SummaryPI[[#This Row],[MeassureCategory]],  \" - \", Table_SummaryPI[[#This Row],[ProposedMeasureCategory]],  \" - \", TEXT(Table_SummaryPI[[#This Row],[Size]],\"#,##0.00\"),\" \",Table_SummaryPI[[#This Row],[SizeUnit]]),\"\")","v":""},{"$f":"SUBSTITUTE(Table_PI[[#This Row],[Measure]],\"     \",\"\",1)","v":""},{"$f":"IF(Table_PI[[#This Row],[List 1]]<>\"\",Table_PI[[#This Row],[List 1]],\"\")","v":""},{"$f":"IF(Table_PI[[#This Row],[List 2]]<>\"\",Table_PI[[#This Row],[List 2]],\"\")","v":""},{"$f":"IF(Table_PI[[#This Row],[List 3]]<>\"\",Table_PI[[#This Row],[List 3]],\"\")","v":""},{"$f":"IF(Table_PI[[#This Row],[Manufacturer]]=\"\",\"\",Table_PI[[#This Row],[Manufacturer]])","v":""},{"$f":"IF(Table_PI[[#This Row],[Model Number]]=\"\",\"\",Table_PI[[#This Row],[Model Number]])","v":""},{"$f":"IF(Table_PI[[#This Row],[Serial Number(s)]]=\"\",\"\",Table_PI[[#This Row],[Serial Number(s)]])","v":""},null,{"$f":"IF(Table_PI[[#This Row],[Size]]=\"\",\"\",Table_PI[[#This Row],[Size]])","v":""},null,null,{"$f":"IF(Table_PI[[#This Row],[Input 1]]<>\"\",Table_PI[[#This Row],[Input 1]],\"\")","v":""},null,null,{"$f":"IF(Table_PI[[#This Row],[Input 2]]<>\"\",Table_PI[[#This Row],[Input 2]],\"\")","v":""},null,null,{"$f":"IF(Table_PI[[#This Row],[Input 3]]<>\"\",Table_PI[[#This Row],[Input 3]],\"\")","v":""},null,null,{"$f":"IF(Table_PI[[#This Row],[Input 4]]<>\"\",Table_PI[[#This Row],[Input 4]],\"\")","v":""},null,null,{"$f":"IF(Table_PI[[#This Row],[Input 4]]<>\"\",Table_PI[[#This Row],[Input 4]],\"\")","v":""},null,null,{"$f":"IF(Table_PI[[#This Row],[Input 4]]<>\"\",Table_PI[[#This Row],[Input 4]],\"\")","v":""},{"$f":"IF(Table_PI[[#This Row],[Quantity]]=\"\",\"\",Table_PI[[#This Row],[Quantity]])","v":""},{"$f":"IF(Table_PI[[#This Row],[Notes]]=\"\",\"\",Table_PI[[#This Row],[Notes]])","v":""},{"$f":"IF(OR(Table_PI[[#This Row],[Hide: Baseline kWh]]=\"\",Table_PI[[#This Row],[Hide: Baseline kWh]]=0,ISTEXT(Table_PI[[#This Row],[Hide: Baseline kWh]])),\"\",Table_PI[[#This Row],[Hide: Baseline kWh]])","v":""},{"$f":"IF(OR(Table_PI[[#This Row],[Hide: Baseline kW]]=\"\",Table_PI[[#This Row],[Hide: Baseline kW]]=0,ISTEXT(Table_PI[[#This Row],[Hide: Baseline kW]])),\"\",Table_PI[[#This Row],[Hide: Baseline kW]])","v":""},{"$f":"IF(OR(Table_PI[[#This Row],[Hide: Proposed kWh]]=\"\",Table_PI[[#This Row],[Hide: Proposed kWh]]=0,ISTEXT(Table_PI[[#This Row],[Hide: Proposed kWh]])),\"\",Table_PI[[#This Row],[Hide: Proposed kWh]])","v":""},{"$f":"IF(OR(Table_PI[[#This Row],[Hide: Proposed kW]]=\"\",Table_PI[[#This Row],[Hide: Proposed kW]]=0,ISTEXT(Table_PI[[#This Row],[Hide: Proposed kW]])),\"\",Table_PI[[#This Row],[Hide: Proposed kW]])","v":""},null,null,{"$f":"IF(OR(Table_PI[[#This Row],[Hide: Rebate]]=\"\",Table_PI[[#This Row],[Hide: Rebate]]=0,ISTEXT(Table_PI[[#This Row],[Hide: Rebate]])),\"\",Table_PI[[#This Row],[Hide: Rebate]])","v":""},null,{"$f":"IF(OR(Table_PI[[#This Row],[Hide: Incremental Cost]]=\"\",Table_PI[[#This Row],[Hide: Incremental Cost]]=0,ISTEXT(Table_PI[[#This Row],[Hide: Incremental Cost]])),\"\",Table_PI[[#This Row],[Hide: Incremental Cost]])","v":""},{"$f":"IFERROR(IF(Table_SummaryPI[[#This Row],[Incentive_Customer]]=\"\",\"\",ROUND(Table_SummaryPI[[#This Row],[Incentive_Customer]]/$AM$401*'Customer Information'!$BC$21,2)),0)","v":""},{"$f":"IF(OR(Table_PI[[#This Row],[Annual kWh]]=\"\",Table_PI[[#This Row],[Annual kWh]]=0,ISTEXT(Table_PI[[#This Row],[Annual kWh]])),\"\",Table_PI[[#This Row],[Annual kWh]])","v":""},{"$f":"IF(OR(Table_PI[[#This Row],[Peak kW]]=\"\",Table_PI[[#This Row],[Peak kW]]=0,ISTEXT(Table_PI[[#This Row],[Peak kW]])),\"\",Table_PI[[#This Row],[Peak kW]])","v":""},{"$f":"IF(Table_SummaryPI[[#This Row],[Line No.]]<>\"\",IF(AND(ISNUMBER(FIND(\"Chiller\",Table_SummaryPI[[#This Row],[P_MeasureOption1]],1)),Table_SummaryPI[[#This Row],[ProposedMeasureCategory]]=\"Air-Cooled (Water-Cooled Replacement)\"),$BD$29*Table_SummaryPI[[#This Row],[Size]]*Table_SummaryPI[[#This Row],[Quantity]]*Table_SummaryPI[[#This Row],[EFLHCooling]],\nIF(ISNUMBER(FIND(\"Dishwasher\",Table_SummaryPI[[#This Row],[ProposedMeasureCategory]],1)),$BH$29*Table_SummaryPI[[#This Row],[Quantity]],\nIF(ISNUMBER(FIND(\"Ice Maker\",Table_SummaryPI[[#This Row],[ProposedMeasureCategory]],1)),$BD$31*Table_SummaryPI[[#This Row],[Quantity]],\nIF(ISNUMBER(FIND(\"Spray Valve\",Table_SummaryPI[[#This Row],[ProposedMeasureCategory]],1)),$BH$31*Table_SummaryPI[[#This Row],[Quantity]],\n0)))),\"\")","v":""},{"$f":"IF(OR(Table_PI[[#This Row],[Hide: Electrification kWh]]=\"\",Table_PI[[#This Row],[Hide: Electrification kWh]]=0,ISTEXT(Table_PI[[#This Row],[Hide: Electrification kWh]])),\"\",Table_PI[[#This Row],[Hide: Electrification kWh]])","v":""},{"$f":"IF(OR(Table_PI[[#This Row],[Hide: Electrification GHG]]=\"\",Table_PI[[#This Row],[Hide: Electrification GHG]]=0,ISTEXT(Table_PI[[#This Row],[Hide: Electrification GHG]])),\"\",Table_PI[[#This Row],[Hide: Electrification GHG]])","v":""},{"$f":"IFERROR(IF(Table_SummaryPI[[#This Row],[kWhSavings]]=\"\",\"\",$BH$9*Table_SummaryPI[[#This Row],[kWhSavings]]),0)","v":""},{"$f":"IFERROR(IF(Table_SummaryPI[[#This Row],[kWhSavings]]=\"\",\"\",$BH$14*Table_SummaryPI[[#This Row],[kWhSavings]]),0)","v":""},{"$f":"IFERROR(IF(Table_SummaryPI[[#This Row],[kWhSavings]]=\"\",\"\",$BH$18*Table_SummaryPI[[#This Row],[kWhSavings]]),0)","v":""},{"$f":"IFERROR(IF(Table_SummaryPI[[#This Row],[kWhSavings]]=\"\",\"\",$BH$22*Table_SummaryPI[[#This Row],[kWhSavings]]),0)","v":""}]
[{"$f":"Table_PI[[#This Row],[Line No.]]","v":""},{"$f":"IF(Table_SummaryPI[[#This Row],[MeasureName]]<>\"\",NOT(ISTEXT(Table_PI[[#This Row],[Rebate]])),\"\")","v":""},{"$f":"IF(Table_SummaryPI[[#This Row],[MeassureCategory]]<>\"\",CONCATENATE(Table_SummaryPI[[#This Row],[MeassureCategory]],  \" - \", Table_SummaryPI[[#This Row],[ProposedMeasureCategory]],  \" - \", TEXT(Table_SummaryPI[[#This Row],[Size]],\"#,##0.00\"),\" \",Table_SummaryPI[[#This Row],[SizeUnit]]),\"\")","v":""},{"$f":"SUBSTITUTE(Table_PI[[#This Row],[Measure]],\"     \",\"\",1)","v":""},{"$f":"IF(Table_PI[[#This Row],[List 1]]<>\"\",Table_PI[[#This Row],[List 1]],\"\")","v":""},{"$f":"IF(Table_PI[[#This Row],[List 2]]<>\"\",Table_PI[[#This Row],[List 2]],\"\")","v":""},{"$f":"IF(Table_PI[[#This Row],[List 3]]<>\"\",Table_PI[[#This Row],[List 3]],\"\")","v":""},{"$f":"IF(Table_PI[[#This Row],[Manufacturer]]=\"\",\"\",Table_PI[[#This Row],[Manufacturer]])","v":""},{"$f":"IF(Table_PI[[#This Row],[Model Number]]=\"\",\"\",Table_PI[[#This Row],[Model Number]])","v":""},{"$f":"IF(Table_PI[[#This Row],[Serial Number(s)]]=\"\",\"\",Table_PI[[#This Row],[Serial Number(s)]])","v":""},null,{"$f":"IF(Table_PI[[#This Row],[Size]]=\"\",\"\",Table_PI[[#This Row],[Size]])","v":""},null,null,{"$f":"IF(Table_PI[[#This Row],[Input 1]]<>\"\",Table_PI[[#This Row],[Input 1]],\"\")","v":""},null,null,{"$f":"IF(Table_PI[[#This Row],[Input 2]]<>\"\",Table_PI[[#This Row],[Input 2]],\"\")","v":""},null,null,{"$f":"IF(Table_PI[[#This Row],[Input 3]]<>\"\",Table_PI[[#This Row],[Input 3]],\"\")","v":""},null,null,{"$f":"IF(Table_PI[[#This Row],[Input 4]]<>\"\",Table_PI[[#This Row],[Input 4]],\"\")","v":""},null,null,{"$f":"IF(Table_PI[[#This Row],[Input 4]]<>\"\",Table_PI[[#This Row],[Input 4]],\"\")","v":""},null,null,{"$f":"IF(Table_PI[[#This Row],[Input 4]]<>\"\",Table_PI[[#This Row],[Input 4]],\"\")","v":""},{"$f":"IF(Table_PI[[#This Row],[Quantity]]=\"\",\"\",Table_PI[[#This Row],[Quantity]])","v":""},{"$f":"IF(Table_PI[[#This Row],[Notes]]=\"\",\"\",Table_PI[[#This Row],[Notes]])","v":""},{"$f":"IF(OR(Table_PI[[#This Row],[Hide: Baseline kWh]]=\"\",Table_PI[[#This Row],[Hide: Baseline kWh]]=0,ISTEXT(Table_PI[[#This Row],[Hide: Baseline kWh]])),\"\",Table_PI[[#This Row],[Hide: Baseline kWh]])","v":""},{"$f":"IF(OR(Table_PI[[#This Row],[Hide: Baseline kW]]=\"\",Table_PI[[#This Row],[Hide: Baseline kW]]=0,ISTEXT(Table_PI[[#This Row],[Hide: Baseline kW]])),\"\",Table_PI[[#This Row],[Hide: Baseline kW]])","v":""},{"$f":"IF(OR(Table_PI[[#This Row],[Hide: Proposed kWh]]=\"\",Table_PI[[#This Row],[Hide: Proposed kWh]]=0,ISTEXT(Table_PI[[#This Row],[Hide: Proposed kWh]])),\"\",Table_PI[[#This Row],[Hide: Proposed kWh]])","v":""},{"$f":"IF(OR(Table_PI[[#This Row],[Hide: Proposed kW]]=\"\",Table_PI[[#This Row],[Hide: Proposed kW]]=0,ISTEXT(Table_PI[[#This Row],[Hide: Proposed kW]])),\"\",Table_PI[[#This Row],[Hide: Proposed kW]])","v":""},null,null,{"$f":"IF(OR(Table_PI[[#This Row],[Hide: Rebate]]=\"\",Table_PI[[#This Row],[Hide: Rebate]]=0,ISTEXT(Table_PI[[#This Row],[Hide: Rebate]])),\"\",Table_PI[[#This Row],[Hide: Rebate]])","v":""},null,{"$f":"IF(OR(Table_PI[[#This Row],[Hide: Incremental Cost]]=\"\",Table_PI[[#This Row],[Hide: Incremental Cost]]=0,ISTEXT(Table_PI[[#This Row],[Hide: Incremental Cost]])),\"\",Table_PI[[#This Row],[Hide: Incremental Cost]])","v":""},{"$f":"IFERROR(IF(Table_SummaryPI[[#This Row],[Incentive_Customer]]=\"\",\"\",ROUND(Table_SummaryPI[[#This Row],[Incentive_Customer]]/$AM$401*'Customer Information'!$BC$21,2)),0)","v":""},{"$f":"IF(OR(Table_PI[[#This Row],[Annual kWh]]=\"\",Table_PI[[#This Row],[Annual kWh]]=0,ISTEXT(Table_PI[[#This Row],[Annual kWh]])),\"\",Table_PI[[#This Row],[Annual kWh]])","v":""},{"$f":"IF(OR(Table_PI[[#This Row],[Peak kW]]=\"\",Table_PI[[#This Row],[Peak kW]]=0,ISTEXT(Table_PI[[#This Row],[Peak kW]])),\"\",Table_PI[[#This Row],[Peak kW]])","v":""},{"$f":"IF(Table_SummaryPI[[#This Row],[Line No.]]<>\"\",IF(AND(ISNUMBER(FIND(\"Chiller\",Table_SummaryPI[[#This Row],[P_MeasureOption1]],1)),Table_SummaryPI[[#This Row],[ProposedMeasureCategory]]=\"Air-Cooled (Water-Cooled Replacement)\"),$BD$29*Table_SummaryPI[[#This Row],[Size]]*Table_SummaryPI[[#This Row],[Quantity]]*Table_SummaryPI[[#This Row],[EFLHCooling]],\nIF(ISNUMBER(FIND(\"Dishwasher\",Table_SummaryPI[[#This Row],[ProposedMeasureCategory]],1)),$BH$29*Table_SummaryPI[[#This Row],[Quantity]],\nIF(ISNUMBER(FIND(\"Ice Maker\",Table_SummaryPI[[#This Row],[ProposedMeasureCategory]],1)),$BD$31*Table_SummaryPI[[#This Row],[Quantity]],\nIF(ISNUMBER(FIND(\"Spray Valve\",Table_SummaryPI[[#This Row],[ProposedMeasureCategory]],1)),$BH$31*Table_SummaryPI[[#This Row],[Quantity]],\n0)))),\"\")","v":""},{"$f":"IF(OR(Table_PI[[#This Row],[Hide: Electrification kWh]]=\"\",Table_PI[[#This Row],[Hide: Electrification kWh]]=0,ISTEXT(Table_PI[[#This Row],[Hide: Electrification kWh]])),\"\",Table_PI[[#This Row],[Hide: Electrification kWh]])","v":""},{"$f":"IF(OR(Table_PI[[#This Row],[Hide: Electrification GHG]]=\"\",Table_PI[[#This Row],[Hide: Electrification GHG]]=0,ISTEXT(Table_PI[[#This Row],[Hide: Electrification GHG]])),\"\",Table_PI[[#This Row],[Hide: Electrification GHG]])","v":""},{"$f":"IFERROR(IF(Table_SummaryPI[[#This Row],[kWhSavings]]=\"\",\"\",$BH$9*Table_SummaryPI[[#This Row],[kWhSavings]]),0)","v":""},{"$f":"IFERROR(IF(Table_SummaryPI[[#This Row],[kWhSavings]]=\"\",\"\",$BH$14*Table_SummaryPI[[#This Row],[kWhSavings]]),0)","v":""},{"$f":"IFERROR(IF(Table_SummaryPI[[#This Row],[kWhSavings]]=\"\",\"\",$BH$18*Table_SummaryPI[[#This Row],[kWhSavings]]),0)","v":""},{"$f":"IFERROR(IF(Table_SummaryPI[[#This Row],[kWhSavings]]=\"\",\"\",$BH$22*Table_SummaryPI[[#This Row],[kWhSavings]]),0)","v":""}]
[{"$f":"Table_PI[[#This Row],[Line No.]]","v":""},{"$f":"IF(Table_SummaryPI[[#This Row],[MeasureName]]<>\"\",NOT(ISTEXT(Table_PI[[#This Row],[Rebate]])),\"\")","v":""},{"$f":"IF(Table_SummaryPI[[#This Row],[MeassureCategory]]<>\"\",CONCATENATE(Table_SummaryPI[[#This Row],[MeassureCategory]],  \" - \", Table_SummaryPI[[#This Row],[ProposedMeasureCategory]],  \" - \", TEXT(Table_SummaryPI[[#This Row],[Size]],\"#,##0.00\"),\" \",Table_SummaryPI[[#This Row],[SizeUnit]]),\"\")","v":""},{"$f":"SUBSTITUTE(Table_PI[[#This Row],[Measure]],\"     \",\"\",1)","v":""},{"$f":"IF(Table_PI[[#This Row],[List 1]]<>\"\",Table_PI[[#This Row],[List 1]],\"\")","v":""},{"$f":"IF(Table_PI[[#This Row],[List 2]]<>\"\",Table_PI[[#This Row],[List 2]],\"\")","v":""},{"$f":"IF(Table_PI[[#This Row],[List 3]]<>\"\",Table_PI[[#This Row],[List 3]],\"\")","v":""},{"$f":"IF(Table_PI[[#This Row],[Manufacturer]]=\"\",\"\",Table_PI[[#This Row],[Manufacturer]])","v":""},{"$f":"IF(Table_PI[[#This Row],[Model Number]]=\"\",\"\",Table_PI[[#This Row],[Model Number]])","v":""},{"$f":"IF(Table_PI[[#This Row],[Serial Number(s)]]=\"\",\"\",Table_PI[[#This Row],[Serial Number(s)]])","v":""},null,{"$f":"IF(Table_PI[[#This Row],[Size]]=\"\",\"\",Table_PI[[#This Row],[Size]])","v":""},null,null,{"$f":"IF(Table_PI[[#This Row],[Input 1]]<>\"\",Table_PI[[#This Row],[Input 1]],\"\")","v":""},null,null,{"$f":"IF(Table_PI[[#This Row],[Input 2]]<>\"\",Table_PI[[#This Row],[Input 2]],\"\")","v":""},null,null,{"$f":"IF(Table_PI[[#This Row],[Input 3]]<>\"\",Table_PI[[#This Row],[Input 3]],\"\")","v":""},null,null,{"$f":"IF(Table_PI[[#This Row],[Input 4]]<>\"\",Table_PI[[#This Row],[Input 4]],\"\")","v":""},null,null,{"$f":"IF(Table_PI[[#This Row],[Input 4]]<>\"\",Table_PI[[#This Row],[Input 4]],\"\")","v":""},null,null,{"$f":"IF(Table_PI[[#This Row],[Input 4]]<>\"\",Table_PI[[#This Row],[Input 4]],\"\")","v":""},{"$f":"IF(Table_PI[[#This Row],[Quantity]]=\"\",\"\",Table_PI[[#This Row],[Quantity]])","v":""},{"$f":"IF(Table_PI[[#This Row],[Notes]]=\"\",\"\",Table_PI[[#This Row],[Notes]])","v":""},{"$f":"IF(OR(Table_PI[[#This Row],[Hide: Baseline kWh]]=\"\",Table_PI[[#This Row],[Hide: Baseline kWh]]=0,ISTEXT(Table_PI[[#This Row],[Hide: Baseline kWh]])),\"\",Table_PI[[#This Row],[Hide: Baseline kWh]])","v":""},{"$f":"IF(OR(Table_PI[[#This Row],[Hide: Baseline kW]]=\"\",Table_PI[[#This Row],[Hide: Baseline kW]]=0,ISTEXT(Table_PI[[#This Row],[Hide: Baseline kW]])),\"\",Table_PI[[#This Row],[Hide: Baseline kW]])","v":""},{"$f":"IF(OR(Table_PI[[#This Row],[Hide: Proposed kWh]]=\"\",Table_PI[[#This Row],[Hide: Proposed kWh]]=0,ISTEXT(Table_PI[[#This Row],[Hide: Proposed kWh]])),\"\",Table_PI[[#This Row],[Hide: Proposed kWh]])","v":""},{"$f":"IF(OR(Table_PI[[#This Row],[Hide: Proposed kW]]=\"\",Table_PI[[#This Row],[Hide: Proposed kW]]=0,ISTEXT(Table_PI[[#This Row],[Hide: Proposed kW]])),\"\",Table_PI[[#This Row],[Hide: Proposed kW]])","v":""},null,null,{"$f":"IF(OR(Table_PI[[#This Row],[Hide: Rebate]]=\"\",Table_PI[[#This Row],[Hide: Rebate]]=0,ISTEXT(Table_PI[[#This Row],[Hide: Rebate]])),\"\",Table_PI[[#This Row],[Hide: Rebate]])","v":""},null,{"$f":"IF(OR(Table_PI[[#This Row],[Hide: Incremental Cost]]=\"\",Table_PI[[#This Row],[Hide: Incremental Cost]]=0,ISTEXT(Table_PI[[#This Row],[Hide: Incremental Cost]])),\"\",Table_PI[[#This Row],[Hide: Incremental Cost]])","v":""},{"$f":"IFERROR(IF(Table_SummaryPI[[#This Row],[Incentive_Customer]]=\"\",\"\",ROUND(Table_SummaryPI[[#This Row],[Incentive_Customer]]/$AM$401*'Customer Information'!$BC$21,2)),0)","v":""},{"$f":"IF(OR(Table_PI[[#This Row],[Annual kWh]]=\"\",Table_PI[[#This Row],[Annual kWh]]=0,ISTEXT(Table_PI[[#This Row],[Annual kWh]])),\"\",Table_PI[[#This Row],[Annual kWh]])","v":""},{"$f":"IF(OR(Table_PI[[#This Row],[Peak kW]]=\"\",Table_PI[[#This Row],[Peak kW]]=0,ISTEXT(Table_PI[[#This Row],[Peak kW]])),\"\",Table_PI[[#This Row],[Peak kW]])","v":""},{"$f":"IF(Table_SummaryPI[[#This Row],[Line No.]]<>\"\",IF(AND(ISNUMBER(FIND(\"Chiller\",Table_SummaryPI[[#This Row],[P_MeasureOption1]],1)),Table_SummaryPI[[#This Row],[ProposedMeasureCategory]]=\"Air-Cooled (Water-Cooled Replacement)\"),$BD$29*Table_SummaryPI[[#This Row],[Size]]*Table_SummaryPI[[#This Row],[Quantity]]*Table_SummaryPI[[#This Row],[EFLHCooling]],\nIF(ISNUMBER(FIND(\"Dishwasher\",Table_SummaryPI[[#This Row],[ProposedMeasureCategory]],1)),$BH$29*Table_SummaryPI[[#This Row],[Quantity]],\nIF(ISNUMBER(FIND(\"Ice Maker\",Table_SummaryPI[[#This Row],[ProposedMeasureCategory]],1)),$BD$31*Table_SummaryPI[[#This Row],[Quantity]],\nIF(ISNUMBER(FIND(\"Spray Valve\",Table_SummaryPI[[#This Row],[ProposedMeasureCategory]],1)),$BH$31*Table_SummaryPI[[#This Row],[Quantity]],\n0)))),\"\")","v":""},{"$f":"IF(OR(Table_PI[[#This Row],[Hide: Electrification kWh]]=\"\",Table_PI[[#This Row],[Hide: Electrification kWh]]=0,ISTEXT(Table_PI[[#This Row],[Hide: Electrification kWh]])),\"\",Table_PI[[#This Row],[Hide: Electrification kWh]])","v":""},{"$f":"IF(OR(Table_PI[[#This Row],[Hide: Electrification GHG]]=\"\",Table_PI[[#This Row],[Hide: Electrification GHG]]=0,ISTEXT(Table_PI[[#This Row],[Hide: Electrification GHG]])),\"\",Table_PI[[#This Row],[Hide: Electrification GHG]])","v":""},{"$f":"IFERROR(IF(Table_SummaryPI[[#This Row],[kWhSavings]]=\"\",\"\",$BH$9*Table_SummaryPI[[#This Row],[kWhSavings]]),0)","v":""},{"$f":"IFERROR(IF(Table_SummaryPI[[#This Row],[kWhSavings]]=\"\",\"\",$BH$14*Table_SummaryPI[[#This Row],[kWhSavings]]),0)","v":""},{"$f":"IFERROR(IF(Table_SummaryPI[[#This Row],[kWhSavings]]=\"\",\"\",$BH$18*Table_SummaryPI[[#This Row],[kWhSavings]]),0)","v":""},{"$f":"IFERROR(IF(Table_SummaryPI[[#This Row],[kWhSavings]]=\"\",\"\",$BH$22*Table_SummaryPI[[#This Row],[kWhSavings]]),0)","v":""}]
[{"$f":"Table_PI[[#This Row],[Line No.]]","v":""},{"$f":"IF(Table_SummaryPI[[#This Row],[MeasureName]]<>\"\",NOT(ISTEXT(Table_PI[[#This Row],[Rebate]])),\"\")","v":""},{"$f":"IF(Table_SummaryPI[[#This Row],[MeassureCategory]]<>\"\",CONCATENATE(Table_SummaryPI[[#This Row],[MeassureCategory]],  \" - \", Table_SummaryPI[[#This Row],[ProposedMeasureCategory]],  \" - \", TEXT(Table_SummaryPI[[#This Row],[Size]],\"#,##0.00\"),\" \",Table_SummaryPI[[#This Row],[SizeUnit]]),\"\")","v":""},{"$f":"SUBSTITUTE(Table_PI[[#This Row],[Measure]],\"     \",\"\",1)","v":""},{"$f":"IF(Table_PI[[#This Row],[List 1]]<>\"\",Table_PI[[#This Row],[List 1]],\"\")","v":""},{"$f":"IF(Table_PI[[#This Row],[List 2]]<>\"\",Table_PI[[#This Row],[List 2]],\"\")","v":""},{"$f":"IF(Table_PI[[#This Row],[List 3]]<>\"\",Table_PI[[#This Row],[List 3]],\"\")","v":""},{"$f":"IF(Table_PI[[#This Row],[Manufacturer]]=\"\",\"\",Table_PI[[#This Row],[Manufacturer]])","v":""},{"$f":"IF(Table_PI[[#This Row],[Model Number]]=\"\",\"\",Table_PI[[#This Row],[Model Number]])","v":""},{"$f":"IF(Table_PI[[#This Row],[Serial Number(s)]]=\"\",\"\",Table_PI[[#This Row],[Serial Number(s)]])","v":""},null,{"$f":"IF(Table_PI[[#This Row],[Size]]=\"\",\"\",Table_PI[[#This Row],[Size]])","v":""},null,null,{"$f":"IF(Table_PI[[#This Row],[Input 1]]<>\"\",Table_PI[[#This Row],[Input 1]],\"\")","v":""},null,null,{"$f":"IF(Table_PI[[#This Row],[Input 2]]<>\"\",Table_PI[[#This Row],[Input 2]],\"\")","v":""},null,null,{"$f":"IF(Table_PI[[#This Row],[Input 3]]<>\"\",Table_PI[[#This Row],[Input 3]],\"\")","v":""},null,null,{"$f":"IF(Table_PI[[#This Row],[Input 4]]<>\"\",Table_PI[[#This Row],[Input 4]],\"\")","v":""},null,null,{"$f":"IF(Table_PI[[#This Row],[Input 4]]<>\"\",Table_PI[[#This Row],[Input 4]],\"\")","v":""},null,null,{"$f":"IF(Table_PI[[#This Row],[Input 4]]<>\"\",Table_PI[[#This Row],[Input 4]],\"\")","v":""},{"$f":"IF(Table_PI[[#This Row],[Quantity]]=\"\",\"\",Table_PI[[#This Row],[Quantity]])","v":""},{"$f":"IF(Table_PI[[#This Row],[Notes]]=\"\",\"\",Table_PI[[#This Row],[Notes]])","v":""},{"$f":"IF(OR(Table_PI[[#This Row],[Hide: Baseline kWh]]=\"\",Table_PI[[#This Row],[Hide: Baseline kWh]]=0,ISTEXT(Table_PI[[#This Row],[Hide: Baseline kWh]])),\"\",Table_PI[[#This Row],[Hide: Baseline kWh]])","v":""},{"$f":"IF(OR(Table_PI[[#This Row],[Hide: Baseline kW]]=\"\",Table_PI[[#This Row],[Hide: Baseline kW]]=0,ISTEXT(Table_PI[[#This Row],[Hide: Baseline kW]])),\"\",Table_PI[[#This Row],[Hide: Baseline kW]])","v":""},{"$f":"IF(OR(Table_PI[[#This Row],[Hide: Proposed kWh]]=\"\",Table_PI[[#This Row],[Hide: Proposed kWh]]=0,ISTEXT(Table_PI[[#This Row],[Hide: Proposed kWh]])),\"\",Table_PI[[#This Row],[Hide: Proposed kWh]])","v":""},{"$f":"IF(OR(Table_PI[[#This Row],[Hide: Proposed kW]]=\"\",Table_PI[[#This Row],[Hide: Proposed kW]]=0,ISTEXT(Table_PI[[#This Row],[Hide: Proposed kW]])),\"\",Table_PI[[#This Row],[Hide: Proposed kW]])","v":""},null,null,{"$f":"IF(OR(Table_PI[[#This Row],[Hide: Rebate]]=\"\",Table_PI[[#This Row],[Hide: Rebate]]=0,ISTEXT(Table_PI[[#This Row],[Hide: Rebate]])),\"\",Table_PI[[#This Row],[Hide: Rebate]])","v":""},null,{"$f":"IF(OR(Table_PI[[#This Row],[Hide: Incremental Cost]]=\"\",Table_PI[[#This Row],[Hide: Incremental Cost]]=0,ISTEXT(Table_PI[[#This Row],[Hide: Incremental Cost]])),\"\",Table_PI[[#This Row],[Hide: Incremental Cost]])","v":""},{"$f":"IFERROR(IF(Table_SummaryPI[[#This Row],[Incentive_Customer]]=\"\",\"\",ROUND(Table_SummaryPI[[#This Row],[Incentive_Customer]]/$AM$401*'Customer Information'!$BC$21,2)),0)","v":""},{"$f":"IF(OR(Table_PI[[#This Row],[Annual kWh]]=\"\",Table_PI[[#This Row],[Annual kWh]]=0,ISTEXT(Table_PI[[#This Row],[Annual kWh]])),\"\",Table_PI[[#This Row],[Annual kWh]])","v":""},{"$f":"IF(OR(Table_PI[[#This Row],[Peak kW]]=\"\",Table_PI[[#This Row],[Peak kW]]=0,ISTEXT(Table_PI[[#This Row],[Peak kW]])),\"\",Table_PI[[#This Row],[Peak kW]])","v":""},{"$f":"IF(Table_SummaryPI[[#This Row],[Line No.]]<>\"\",IF(AND(ISNUMBER(FIND(\"Chiller\",Table_SummaryPI[[#This Row],[P_MeasureOption1]],1)),Table_SummaryPI[[#This Row],[ProposedMeasureCategory]]=\"Air-Cooled (Water-Cooled Replacement)\"),$BD$29*Table_SummaryPI[[#This Row],[Size]]*Table_SummaryPI[[#This Row],[Quantity]]*Table_SummaryPI[[#This Row],[EFLHCooling]],\nIF(ISNUMBER(FIND(\"Dishwasher\",Table_SummaryPI[[#This Row],[ProposedMeasureCategory]],1)),$BH$29*Table_SummaryPI[[#This Row],[Quantity]],\nIF(ISNUMBER(FIND(\"Ice Maker\",Table_SummaryPI[[#This Row],[ProposedMeasureCategory]],1)),$BD$31*Table_SummaryPI[[#This Row],[Quantity]],\nIF(ISNUMBER(FIND(\"Spray Valve\",Table_SummaryPI[[#This Row],[ProposedMeasureCategory]],1)),$BH$31*Table_SummaryPI[[#This Row],[Quantity]],\n0)))),\"\")","v":""},{"$f":"IF(OR(Table_PI[[#This Row],[Hide: Electrification kWh]]=\"\",Table_PI[[#This Row],[Hide: Electrification kWh]]=0,ISTEXT(Table_PI[[#This Row],[Hide: Electrification kWh]])),\"\",Table_PI[[#This Row],[Hide: Electrification kWh]])","v":""},{"$f":"IF(OR(Table_PI[[#This Row],[Hide: Electrification GHG]]=\"\",Table_PI[[#This Row],[Hide: Electrification GHG]]=0,ISTEXT(Table_PI[[#This Row],[Hide: Electrification GHG]])),\"\",Table_PI[[#This Row],[Hide: Electrification GHG]])","v":""},{"$f":"IFERROR(IF(Table_SummaryPI[[#This Row],[kWhSavings]]=\"\",\"\",$BH$9*Table_SummaryPI[[#This Row],[kWhSavings]]),0)","v":""},{"$f":"IFERROR(IF(Table_SummaryPI[[#This Row],[kWhSavings]]=\"\",\"\",$BH$14*Table_SummaryPI[[#This Row],[kWhSavings]]),0)","v":""},{"$f":"IFERROR(IF(Table_SummaryPI[[#This Row],[kWhSavings]]=\"\",\"\",$BH$18*Table_SummaryPI[[#This Row],[kWhSavings]]),0)","v":""},{"$f":"IFERROR(IF(Table_SummaryPI[[#This Row],[kWhSavings]]=\"\",\"\",$BH$22*Table_SummaryPI[[#This Row],[kWhSavings]]),0)","v":""}]
[{"$f":"Table_PI[[#This Row],[Line No.]]","v":""},{"$f":"IF(Table_SummaryPI[[#This Row],[MeasureName]]<>\"\",NOT(ISTEXT(Table_PI[[#This Row],[Rebate]])),\"\")","v":""},{"$f":"IF(Table_SummaryPI[[#This Row],[MeassureCategory]]<>\"\",CONCATENATE(Table_SummaryPI[[#This Row],[MeassureCategory]],  \" - \", Table_SummaryPI[[#This Row],[ProposedMeasureCategory]],  \" - \", TEXT(Table_SummaryPI[[#This Row],[Size]],\"#,##0.00\"),\" \",Table_SummaryPI[[#This Row],[SizeUnit]]),\"\")","v":""},{"$f":"SUBSTITUTE(Table_PI[[#This Row],[Measure]],\"     \",\"\",1)","v":""},{"$f":"IF(Table_PI[[#This Row],[List 1]]<>\"\",Table_PI[[#This Row],[List 1]],\"\")","v":""},{"$f":"IF(Table_PI[[#This Row],[List 2]]<>\"\",Table_PI[[#This Row],[List 2]],\"\")","v":""},{"$f":"IF(Table_PI[[#This Row],[List 3]]<>\"\",Table_PI[[#This Row],[List 3]],\"\")","v":""},{"$f":"IF(Table_PI[[#This Row],[Manufacturer]]=\"\",\"\",Table_PI[[#This Row],[Manufacturer]])","v":""},{"$f":"IF(Table_PI[[#This Row],[Model Number]]=\"\",\"\",Table_PI[[#This Row],[Model Number]])","v":""},{"$f":"IF(Table_PI[[#This Row],[Serial Number(s)]]=\"\",\"\",Table_PI[[#This Row],[Serial Number(s)]])","v":""},null,{"$f":"IF(Table_PI[[#This Row],[Size]]=\"\",\"\",Table_PI[[#This Row],[Size]])","v":""},null,null,{"$f":"IF(Table_PI[[#This Row],[Input 1]]<>\"\",Table_PI[[#This Row],[Input 1]],\"\")","v":""},null,null,{"$f":"IF(Table_PI[[#This Row],[Input 2]]<>\"\",Table_PI[[#This Row],[Input 2]],\"\")","v":""},null,null,{"$f":"IF(Table_PI[[#This Row],[Input 3]]<>\"\",Table_PI[[#This Row],[Input 3]],\"\")","v":""},null,null,{"$f":"IF(Table_PI[[#This Row],[Input 4]]<>\"\",Table_PI[[#This Row],[Input 4]],\"\")","v":""},null,null,{"$f":"IF(Table_PI[[#This Row],[Input 4]]<>\"\",Table_PI[[#This Row],[Input 4]],\"\")","v":""},null,null,{"$f":"IF(Table_PI[[#This Row],[Input 4]]<>\"\",Table_PI[[#This Row],[Input 4]],\"\")","v":""},{"$f":"IF(Table_PI[[#This Row],[Quantity]]=\"\",\"\",Table_PI[[#This Row],[Quantity]])","v":""},{"$f":"IF(Table_PI[[#This Row],[Notes]]=\"\",\"\",Table_PI[[#This Row],[Notes]])","v":""},{"$f":"IF(OR(Table_PI[[#This Row],[Hide: Baseline kWh]]=\"\",Table_PI[[#This Row],[Hide: Baseline kWh]]=0,ISTEXT(Table_PI[[#This Row],[Hide: Baseline kWh]])),\"\",Table_PI[[#This Row],[Hide: Baseline kWh]])","v":""},{"$f":"IF(OR(Table_PI[[#This Row],[Hide: Baseline kW]]=\"\",Table_PI[[#This Row],[Hide: Baseline kW]]=0,ISTEXT(Table_PI[[#This Row],[Hide: Baseline kW]])),\"\",Table_PI[[#This Row],[Hide: Baseline kW]])","v":""},{"$f":"IF(OR(Table_PI[[#This Row],[Hide: Proposed kWh]]=\"\",Table_PI[[#This Row],[Hide: Proposed kWh]]=0,ISTEXT(Table_PI[[#This Row],[Hide: Proposed kWh]])),\"\",Table_PI[[#This Row],[Hide: Proposed kWh]])","v":""},{"$f":"IF(OR(Table_PI[[#This Row],[Hide: Proposed kW]]=\"\",Table_PI[[#This Row],[Hide: Proposed kW]]=0,ISTEXT(Table_PI[[#This Row],[Hide: Proposed kW]])),\"\",Table_PI[[#This Row],[Hide: Proposed kW]])","v":""},null,null,{"$f":"IF(OR(Table_PI[[#This Row],[Hide: Rebate]]=\"\",Table_PI[[#This Row],[Hide: Rebate]]=0,ISTEXT(Table_PI[[#This Row],[Hide: Rebate]])),\"\",Table_PI[[#This Row],[Hide: Rebate]])","v":""},null,{"$f":"IF(OR(Table_PI[[#This Row],[Hide: Incremental Cost]]=\"\",Table_PI[[#This Row],[Hide: Incremental Cost]]=0,ISTEXT(Table_PI[[#This Row],[Hide: Incremental Cost]])),\"\",Table_PI[[#This Row],[Hide: Incremental Cost]])","v":""},{"$f":"IFERROR(IF(Table_SummaryPI[[#This Row],[Incentive_Customer]]=\"\",\"\",ROUND(Table_SummaryPI[[#This Row],[Incentive_Customer]]/$AM$401*'Customer Information'!$BC$21,2)),0)","v":""},{"$f":"IF(OR(Table_PI[[#This Row],[Annual kWh]]=\"\",Table_PI[[#This Row],[Annual kWh]]=0,ISTEXT(Table_PI[[#This Row],[Annual kWh]])),\"\",Table_PI[[#This Row],[Annual kWh]])","v":""},{"$f":"IF(OR(Table_PI[[#This Row],[Peak kW]]=\"\",Table_PI[[#This Row],[Peak kW]]=0,ISTEXT(Table_PI[[#This Row],[Peak kW]])),\"\",Table_PI[[#This Row],[Peak kW]])","v":""},{"$f":"IF(Table_SummaryPI[[#This Row],[Line No.]]<>\"\",IF(AND(ISNUMBER(FIND(\"Chiller\",Table_SummaryPI[[#This Row],[P_MeasureOption1]],1)),Table_SummaryPI[[#This Row],[ProposedMeasureCategory]]=\"Air-Cooled (Water-Cooled Replacement)\"),$BD$29*Table_SummaryPI[[#This Row],[Size]]*Table_SummaryPI[[#This Row],[Quantity]]*Table_SummaryPI[[#This Row],[EFLHCooling]],\nIF(ISNUMBER(FIND(\"Dishwasher\",Table_SummaryPI[[#This Row],[ProposedMeasureCategory]],1)),$BH$29*Table_SummaryPI[[#This Row],[Quantity]],\nIF(ISNUMBER(FIND(\"Ice Maker\",Table_SummaryPI[[#This Row],[ProposedMeasureCategory]],1)),$BD$31*Table_SummaryPI[[#This Row],[Quantity]],\nIF(ISNUMBER(FIND(\"Spray Valve\",Table_SummaryPI[[#This Row],[ProposedMeasureCategory]],1)),$BH$31*Table_SummaryPI[[#This Row],[Quantity]],\n0)))),\"\")","v":""},{"$f":"IF(OR(Table_PI[[#This Row],[Hide: Electrification kWh]]=\"\",Table_PI[[#This Row],[Hide: Electrification kWh]]=0,ISTEXT(Table_PI[[#This Row],[Hide: Electrification kWh]])),\"\",Table_PI[[#This Row],[Hide: Electrification kWh]])","v":""},{"$f":"IF(OR(Table_PI[[#This Row],[Hide: Electrification GHG]]=\"\",Table_PI[[#This Row],[Hide: Electrification GHG]]=0,ISTEXT(Table_PI[[#This Row],[Hide: Electrification GHG]])),\"\",Table_PI[[#This Row],[Hide: Electrification GHG]])","v":""},{"$f":"IFERROR(IF(Table_SummaryPI[[#This Row],[kWhSavings]]=\"\",\"\",$BH$9*Table_SummaryPI[[#This Row],[kWhSavings]]),0)","v":""},{"$f":"IFERROR(IF(Table_SummaryPI[[#This Row],[kWhSavings]]=\"\",\"\",$BH$14*Table_SummaryPI[[#This Row],[kWhSavings]]),0)","v":""},{"$f":"IFERROR(IF(Table_SummaryPI[[#This Row],[kWhSavings]]=\"\",\"\",$BH$18*Table_SummaryPI[[#This Row],[kWhSavings]]),0)","v":""},{"$f":"IFERROR(IF(Table_SummaryPI[[#This Row],[kWhSavings]]=\"\",\"\",$BH$22*Table_SummaryPI[[#This Row],[kWhSavings]]),0)","v":""}]
[{"$f":"Table_PI[[#This Row],[Line No.]]","v":""},{"$f":"IF(Table_SummaryPI[[#This Row],[MeasureName]]<>\"\",NOT(ISTEXT(Table_PI[[#This Row],[Rebate]])),\"\")","v":""},{"$f":"IF(Table_SummaryPI[[#This Row],[MeassureCategory]]<>\"\",CONCATENATE(Table_SummaryPI[[#This Row],[MeassureCategory]],  \" - \", Table_SummaryPI[[#This Row],[ProposedMeasureCategory]],  \" - \", TEXT(Table_SummaryPI[[#This Row],[Size]],\"#,##0.00\"),\" \",Table_SummaryPI[[#This Row],[SizeUnit]]),\"\")","v":""},{"$f":"SUBSTITUTE(Table_PI[[#This Row],[Measure]],\"     \",\"\",1)","v":""},{"$f":"IF(Table_PI[[#This Row],[List 1]]<>\"\",Table_PI[[#This Row],[List 1]],\"\")","v":""},{"$f":"IF(Table_PI[[#This Row],[List 2]]<>\"\",Table_PI[[#This Row],[List 2]],\"\")","v":""},{"$f":"IF(Table_PI[[#This Row],[List 3]]<>\"\",Table_PI[[#This Row],[List 3]],\"\")","v":""},{"$f":"IF(Table_PI[[#This Row],[Manufacturer]]=\"\",\"\",Table_PI[[#This Row],[Manufacturer]])","v":""},{"$f":"IF(Table_PI[[#This Row],[Model Number]]=\"\",\"\",Table_PI[[#This Row],[Model Number]])","v":""},{"$f":"IF(Table_PI[[#This Row],[Serial Number(s)]]=\"\",\"\",Table_PI[[#This Row],[Serial Number(s)]])","v":""},null,{"$f":"IF(Table_PI[[#This Row],[Size]]=\"\",\"\",Table_PI[[#This Row],[Size]])","v":""},null,null,{"$f":"IF(Table_PI[[#This Row],[Input 1]]<>\"\",Table_PI[[#This Row],[Input 1]],\"\")","v":""},null,null,{"$f":"IF(Table_PI[[#This Row],[Input 2]]<>\"\",Table_PI[[#This Row],[Input 2]],\"\")","v":""},null,null,{"$f":"IF(Table_PI[[#This Row],[Input 3]]<>\"\",Table_PI[[#This Row],[Input 3]],\"\")","v":""},null,null,{"$f":"IF(Table_PI[[#This Row],[Input 4]]<>\"\",Table_PI[[#This Row],[Input 4]],\"\")","v":""},null,null,{"$f":"IF(Table_PI[[#This Row],[Input 4]]<>\"\",Table_PI[[#This Row],[Input 4]],\"\")","v":""},null,null,{"$f":"IF(Table_PI[[#This Row],[Input 4]]<>\"\",Table_PI[[#This Row],[Input 4]],\"\")","v":""},{"$f":"IF(Table_PI[[#This Row],[Quantity]]=\"\",\"\",Table_PI[[#This Row],[Quantity]])","v":""},{"$f":"IF(Table_PI[[#This Row],[Notes]]=\"\",\"\",Table_PI[[#This Row],[Notes]])","v":""},{"$f":"IF(OR(Table_PI[[#This Row],[Hide: Baseline kWh]]=\"\",Table_PI[[#This Row],[Hide: Baseline kWh]]=0,ISTEXT(Table_PI[[#This Row],[Hide: Baseline kWh]])),\"\",Table_PI[[#This Row],[Hide: Baseline kWh]])","v":""},{"$f":"IF(OR(Table_PI[[#This Row],[Hide: Baseline kW]]=\"\",Table_PI[[#This Row],[Hide: Baseline kW]]=0,ISTEXT(Table_PI[[#This Row],[Hide: Baseline kW]])),\"\",Table_PI[[#This Row],[Hide: Baseline kW]])","v":""},{"$f":"IF(OR(Table_PI[[#This Row],[Hide: Proposed kWh]]=\"\",Table_PI[[#This Row],[Hide: Proposed kWh]]=0,ISTEXT(Table_PI[[#This Row],[Hide: Proposed kWh]])),\"\",Table_PI[[#This Row],[Hide: Proposed kWh]])","v":""},{"$f":"IF(OR(Table_PI[[#This Row],[Hide: Proposed kW]]=\"\",Table_PI[[#This Row],[Hide: Proposed kW]]=0,ISTEXT(Table_PI[[#This Row],[Hide: Proposed kW]])),\"\",Table_PI[[#This Row],[Hide: Proposed kW]])","v":""},null,null,{"$f":"IF(OR(Table_PI[[#This Row],[Hide: Rebate]]=\"\",Table_PI[[#This Row],[Hide: Rebate]]=0,ISTEXT(Table_PI[[#This Row],[Hide: Rebate]])),\"\",Table_PI[[#This Row],[Hide: Rebate]])","v":""},null,{"$f":"IF(OR(Table_PI[[#This Row],[Hide: Incremental Cost]]=\"\",Table_PI[[#This Row],[Hide: Incremental Cost]]=0,ISTEXT(Table_PI[[#This Row],[Hide: Incremental Cost]])),\"\",Table_PI[[#This Row],[Hide: Incremental Cost]])","v":""},{"$f":"IFERROR(IF(Table_SummaryPI[[#This Row],[Incentive_Customer]]=\"\",\"\",ROUND(Table_SummaryPI[[#This Row],[Incentive_Customer]]/$AM$401*'Customer Information'!$BC$21,2)),0)","v":""},{"$f":"IF(OR(Table_PI[[#This Row],[Annual kWh]]=\"\",Table_PI[[#This Row],[Annual kWh]]=0,ISTEXT(Table_PI[[#This Row],[Annual kWh]])),\"\",Table_PI[[#This Row],[Annual kWh]])","v":""},{"$f":"IF(OR(Table_PI[[#This Row],[Peak kW]]=\"\",Table_PI[[#This Row],[Peak kW]]=0,ISTEXT(Table_PI[[#This Row],[Peak kW]])),\"\",Table_PI[[#This Row],[Peak kW]])","v":""},{"$f":"IF(Table_SummaryPI[[#This Row],[Line No.]]<>\"\",IF(AND(ISNUMBER(FIND(\"Chiller\",Table_SummaryPI[[#This Row],[P_MeasureOption1]],1)),Table_SummaryPI[[#This Row],[ProposedMeasureCategory]]=\"Air-Cooled (Water-Cooled Replacement)\"),$BD$29*Table_SummaryPI[[#This Row],[Size]]*Table_SummaryPI[[#This Row],[Quantity]]*Table_SummaryPI[[#This Row],[EFLHCooling]],\nIF(ISNUMBER(FIND(\"Dishwasher\",Table_SummaryPI[[#This Row],[ProposedMeasureCategory]],1)),$BH$29*Table_SummaryPI[[#This Row],[Quantity]],\nIF(ISNUMBER(FIND(\"Ice Maker\",Table_SummaryPI[[#This Row],[ProposedMeasureCategory]],1)),$BD$31*Table_SummaryPI[[#This Row],[Quantity]],\nIF(ISNUMBER(FIND(\"Spray Valve\",Table_SummaryPI[[#This Row],[ProposedMeasureCategory]],1)),$BH$31*Table_SummaryPI[[#This Row],[Quantity]],\n0)))),\"\")","v":""},{"$f":"IF(OR(Table_PI[[#This Row],[Hide: Electrification kWh]]=\"\",Table_PI[[#This Row],[Hide: Electrification kWh]]=0,ISTEXT(Table_PI[[#This Row],[Hide: Electrification kWh]])),\"\",Table_PI[[#This Row],[Hide: Electrification kWh]])","v":""},{"$f":"IF(OR(Table_PI[[#This Row],[Hide: Electrification GHG]]=\"\",Table_PI[[#This Row],[Hide: Electrification GHG]]=0,ISTEXT(Table_PI[[#This Row],[Hide: Electrification GHG]])),\"\",Table_PI[[#This Row],[Hide: Electrification GHG]])","v":""},{"$f":"IFERROR(IF(Table_SummaryPI[[#This Row],[kWhSavings]]=\"\",\"\",$BH$9*Table_SummaryPI[[#This Row],[kWhSavings]]),0)","v":""},{"$f":"IFERROR(IF(Table_SummaryPI[[#This Row],[kWhSavings]]=\"\",\"\",$BH$14*Table_SummaryPI[[#This Row],[kWhSavings]]),0)","v":""},{"$f":"IFERROR(IF(Table_SummaryPI[[#This Row],[kWhSavings]]=\"\",\"\",$BH$18*Table_SummaryPI[[#This Row],[kWhSavings]]),0)","v":""},{"$f":"IFERROR(IF(Table_SummaryPI[[#This Row],[kWhSavings]]=\"\",\"\",$BH$22*Table_SummaryPI[[#This Row],[kWhSavings]]),0)","v":""}]
[{"$f":"Table_PI[[#This Row],[Line No.]]","v":""},{"$f":"IF(Table_SummaryPI[[#This Row],[MeasureName]]<>\"\",NOT(ISTEXT(Table_PI[[#This Row],[Rebate]])),\"\")","v":""},{"$f":"IF(Table_SummaryPI[[#This Row],[MeassureCategory]]<>\"\",CONCATENATE(Table_SummaryPI[[#This Row],[MeassureCategory]],  \" - \", Table_SummaryPI[[#This Row],[ProposedMeasureCategory]],  \" - \", TEXT(Table_SummaryPI[[#This Row],[Size]],\"#,##0.00\"),\" \",Table_SummaryPI[[#This Row],[SizeUnit]]),\"\")","v":""},{"$f":"SUBSTITUTE(Table_PI[[#This Row],[Measure]],\"     \",\"\",1)","v":""},{"$f":"IF(Table_PI[[#This Row],[List 1]]<>\"\",Table_PI[[#This Row],[List 1]],\"\")","v":""},{"$f":"IF(Table_PI[[#This Row],[List 2]]<>\"\",Table_PI[[#This Row],[List 2]],\"\")","v":""},{"$f":"IF(Table_PI[[#This Row],[List 3]]<>\"\",Table_PI[[#This Row],[List 3]],\"\")","v":""},{"$f":"IF(Table_PI[[#This Row],[Manufacturer]]=\"\",\"\",Table_PI[[#This Row],[Manufacturer]])","v":""},{"$f":"IF(Table_PI[[#This Row],[Model Number]]=\"\",\"\",Table_PI[[#This Row],[Model Number]])","v":""},{"$f":"IF(Table_PI[[#This Row],[Serial Number(s)]]=\"\",\"\",Table_PI[[#This Row],[Serial Number(s)]])","v":""},null,{"$f":"IF(Table_PI[[#This Row],[Size]]=\"\",\"\",Table_PI[[#This Row],[Size]])","v":""},null,null,{"$f":"IF(Table_PI[[#This Row],[Input 1]]<>\"\",Table_PI[[#This Row],[Input 1]],\"\")","v":""},null,null,{"$f":"IF(Table_PI[[#This Row],[Input 2]]<>\"\",Table_PI[[#This Row],[Input 2]],\"\")","v":""},null,null,{"$f":"IF(Table_PI[[#This Row],[Input 3]]<>\"\",Table_PI[[#This Row],[Input 3]],\"\")","v":""},null,null,{"$f":"IF(Table_PI[[#This Row],[Input 4]]<>\"\",Table_PI[[#This Row],[Input 4]],\"\")","v":""},null,null,{"$f":"IF(Table_PI[[#This Row],[Input 4]]<>\"\",Table_PI[[#This Row],[Input 4]],\"\")","v":""},null,null,{"$f":"IF(Table_PI[[#This Row],[Input 4]]<>\"\",Table_PI[[#This Row],[Input 4]],\"\")","v":""},{"$f":"IF(Table_PI[[#This Row],[Quantity]]=\"\",\"\",Table_PI[[#This Row],[Quantity]])","v":""},{"$f":"IF(Table_PI[[#This Row],[Notes]]=\"\",\"\",Table_PI[[#This Row],[Notes]])","v":""},{"$f":"IF(OR(Table_PI[[#This Row],[Hide: Baseline kWh]]=\"\",Table_PI[[#This Row],[Hide: Baseline kWh]]=0,ISTEXT(Table_PI[[#This Row],[Hide: Baseline kWh]])),\"\",Table_PI[[#This Row],[Hide: Baseline kWh]])","v":""},{"$f":"IF(OR(Table_PI[[#This Row],[Hide: Baseline kW]]=\"\",Table_PI[[#This Row],[Hide: Baseline kW]]=0,ISTEXT(Table_PI[[#This Row],[Hide: Baseline kW]])),\"\",Table_PI[[#This Row],[Hide: Baseline kW]])","v":""},{"$f":"IF(OR(Table_PI[[#This Row],[Hide: Proposed kWh]]=\"\",Table_PI[[#This Row],[Hide: Proposed kWh]]=0,ISTEXT(Table_PI[[#This Row],[Hide: Proposed kWh]])),\"\",Table_PI[[#This Row],[Hide: Proposed kWh]])","v":""},{"$f":"IF(OR(Table_PI[[#This Row],[Hide: Proposed kW]]=\"\",Table_PI[[#This Row],[Hide: Proposed kW]]=0,ISTEXT(Table_PI[[#This Row],[Hide: Proposed kW]])),\"\",Table_PI[[#This Row],[Hide: Proposed kW]])","v":""},null,null,{"$f":"IF(OR(Table_PI[[#This Row],[Hide: Rebate]]=\"\",Table_PI[[#This Row],[Hide: Rebate]]=0,ISTEXT(Table_PI[[#This Row],[Hide: Rebate]])),\"\",Table_PI[[#This Row],[Hide: Rebate]])","v":""},null,{"$f":"IF(OR(Table_PI[[#This Row],[Hide: Incremental Cost]]=\"\",Table_PI[[#This Row],[Hide: Incremental Cost]]=0,ISTEXT(Table_PI[[#This Row],[Hide: Incremental Cost]])),\"\",Table_PI[[#This Row],[Hide: Incremental Cost]])","v":""},{"$f":"IFERROR(IF(Table_SummaryPI[[#This Row],[Incentive_Customer]]=\"\",\"\",ROUND(Table_SummaryPI[[#This Row],[Incentive_Customer]]/$AM$401*'Customer Information'!$BC$21,2)),0)","v":""},{"$f":"IF(OR(Table_PI[[#This Row],[Annual kWh]]=\"\",Table_PI[[#This Row],[Annual kWh]]=0,ISTEXT(Table_PI[[#This Row],[Annual kWh]])),\"\",Table_PI[[#This Row],[Annual kWh]])","v":""},{"$f":"IF(OR(Table_PI[[#This Row],[Peak kW]]=\"\",Table_PI[[#This Row],[Peak kW]]=0,ISTEXT(Table_PI[[#This Row],[Peak kW]])),\"\",Table_PI[[#This Row],[Peak kW]])","v":""},{"$f":"IF(Table_SummaryPI[[#This Row],[Line No.]]<>\"\",IF(AND(ISNUMBER(FIND(\"Chiller\",Table_SummaryPI[[#This Row],[P_MeasureOption1]],1)),Table_SummaryPI[[#This Row],[ProposedMeasureCategory]]=\"Air-Cooled (Water-Cooled Replacement)\"),$BD$29*Table_SummaryPI[[#This Row],[Size]]*Table_SummaryPI[[#This Row],[Quantity]]*Table_SummaryPI[[#This Row],[EFLHCooling]],\nIF(ISNUMBER(FIND(\"Dishwasher\",Table_SummaryPI[[#This Row],[ProposedMeasureCategory]],1)),$BH$29*Table_SummaryPI[[#This Row],[Quantity]],\nIF(ISNUMBER(FIND(\"Ice Maker\",Table_SummaryPI[[#This Row],[ProposedMeasureCategory]],1)),$BD$31*Table_SummaryPI[[#This Row],[Quantity]],\nIF(ISNUMBER(FIND(\"Spray Valve\",Table_SummaryPI[[#This Row],[ProposedMeasureCategory]],1)),$BH$31*Table_SummaryPI[[#This Row],[Quantity]],\n0)))),\"\")","v":""},{"$f":"IF(OR(Table_PI[[#This Row],[Hide: Electrification kWh]]=\"\",Table_PI[[#This Row],[Hide: Electrification kWh]]=0,ISTEXT(Table_PI[[#This Row],[Hide: Electrification kWh]])),\"\",Table_PI[[#This Row],[Hide: Electrification kWh]])","v":""},{"$f":"IF(OR(Table_PI[[#This Row],[Hide: Electrification GHG]]=\"\",Table_PI[[#This Row],[Hide: Electrification GHG]]=0,ISTEXT(Table_PI[[#This Row],[Hide: Electrification GHG]])),\"\",Table_PI[[#This Row],[Hide: Electrification GHG]])","v":""},{"$f":"IFERROR(IF(Table_SummaryPI[[#This Row],[kWhSavings]]=\"\",\"\",$BH$9*Table_SummaryPI[[#This Row],[kWhSavings]]),0)","v":""},{"$f":"IFERROR(IF(Table_SummaryPI[[#This Row],[kWhSavings]]=\"\",\"\",$BH$14*Table_SummaryPI[[#This Row],[kWhSavings]]),0)","v":""},{"$f":"IFERROR(IF(Table_SummaryPI[[#This Row],[kWhSavings]]=\"\",\"\",$BH$18*Table_SummaryPI[[#This Row],[kWhSavings]]),0)","v":""},{"$f":"IFERROR(IF(Table_SummaryPI[[#This Row],[kWhSavings]]=\"\",\"\",$BH$22*Table_SummaryPI[[#This Row],[kWhSavings]]),0)","v":""}]
[{"$f":"Table_PI[[#This Row],[Line No.]]","v":""},{"$f":"IF(Table_SummaryPI[[#This Row],[MeasureName]]<>\"\",NOT(ISTEXT(Table_PI[[#This Row],[Rebate]])),\"\")","v":""},{"$f":"IF(Table_SummaryPI[[#This Row],[MeassureCategory]]<>\"\",CONCATENATE(Table_SummaryPI[[#This Row],[MeassureCategory]],  \" - \", Table_SummaryPI[[#This Row],[ProposedMeasureCategory]],  \" - \", TEXT(Table_SummaryPI[[#This Row],[Size]],\"#,##0.00\"),\" \",Table_SummaryPI[[#This Row],[SizeUnit]]),\"\")","v":""},{"$f":"SUBSTITUTE(Table_PI[[#This Row],[Measure]],\"     \",\"\",1)","v":""},{"$f":"IF(Table_PI[[#This Row],[List 1]]<>\"\",Table_PI[[#This Row],[List 1]],\"\")","v":""},{"$f":"IF(Table_PI[[#This Row],[List 2]]<>\"\",Table_PI[[#This Row],[List 2]],\"\")","v":""},{"$f":"IF(Table_PI[[#This Row],[List 3]]<>\"\",Table_PI[[#This Row],[List 3]],\"\")","v":""},{"$f":"IF(Table_PI[[#This Row],[Manufacturer]]=\"\",\"\",Table_PI[[#This Row],[Manufacturer]])","v":""},{"$f":"IF(Table_PI[[#This Row],[Model Number]]=\"\",\"\",Table_PI[[#This Row],[Model Number]])","v":""},{"$f":"IF(Table_PI[[#This Row],[Serial Number(s)]]=\"\",\"\",Table_PI[[#This Row],[Serial Number(s)]])","v":""},null,{"$f":"IF(Table_PI[[#This Row],[Size]]=\"\",\"\",Table_PI[[#This Row],[Size]])","v":""},null,null,{"$f":"IF(Table_PI[[#This Row],[Input 1]]<>\"\",Table_PI[[#This Row],[Input 1]],\"\")","v":""},null,null,{"$f":"IF(Table_PI[[#This Row],[Input 2]]<>\"\",Table_PI[[#This Row],[Input 2]],\"\")","v":""},null,null,{"$f":"IF(Table_PI[[#This Row],[Input 3]]<>\"\",Table_PI[[#This Row],[Input 3]],\"\")","v":""},null,null,{"$f":"IF(Table_PI[[#This Row],[Input 4]]<>\"\",Table_PI[[#This Row],[Input 4]],\"\")","v":""},null,null,{"$f":"IF(Table_PI[[#This Row],[Input 4]]<>\"\",Table_PI[[#This Row],[Input 4]],\"\")","v":""},null,null,{"$f":"IF(Table_PI[[#This Row],[Input 4]]<>\"\",Table_PI[[#This Row],[Input 4]],\"\")","v":""},{"$f":"IF(Table_PI[[#This Row],[Quantity]]=\"\",\"\",Table_PI[[#This Row],[Quantity]])","v":""},{"$f":"IF(Table_PI[[#This Row],[Notes]]=\"\",\"\",Table_PI[[#This Row],[Notes]])","v":""},{"$f":"IF(OR(Table_PI[[#This Row],[Hide: Baseline kWh]]=\"\",Table_PI[[#This Row],[Hide: Baseline kWh]]=0,ISTEXT(Table_PI[[#This Row],[Hide: Baseline kWh]])),\"\",Table_PI[[#This Row],[Hide: Baseline kWh]])","v":""},{"$f":"IF(OR(Table_PI[[#This Row],[Hide: Baseline kW]]=\"\",Table_PI[[#This Row],[Hide: Baseline kW]]=0,ISTEXT(Table_PI[[#This Row],[Hide: Baseline kW]])),\"\",Table_PI[[#This Row],[Hide: Baseline kW]])","v":""},{"$f":"IF(OR(Table_PI[[#This Row],[Hide: Proposed kWh]]=\"\",Table_PI[[#This Row],[Hide: Proposed kWh]]=0,ISTEXT(Table_PI[[#This Row],[Hide: Proposed kWh]])),\"\",Table_PI[[#This Row],[Hide: Proposed kWh]])","v":""},{"$f":"IF(OR(Table_PI[[#This Row],[Hide: Proposed kW]]=\"\",Table_PI[[#This Row],[Hide: Proposed kW]]=0,ISTEXT(Table_PI[[#This Row],[Hide: Proposed kW]])),\"\",Table_PI[[#This Row],[Hide: Proposed kW]])","v":""},null,null,{"$f":"IF(OR(Table_PI[[#This Row],[Hide: Rebate]]=\"\",Table_PI[[#This Row],[Hide: Rebate]]=0,ISTEXT(Table_PI[[#This Row],[Hide: Rebate]])),\"\",Table_PI[[#This Row],[Hide: Rebate]])","v":""},null,{"$f":"IF(OR(Table_PI[[#This Row],[Hide: Incremental Cost]]=\"\",Table_PI[[#This Row],[Hide: Incremental Cost]]=0,ISTEXT(Table_PI[[#This Row],[Hide: Incremental Cost]])),\"\",Table_PI[[#This Row],[Hide: Incremental Cost]])","v":""},{"$f":"IFERROR(IF(Table_SummaryPI[[#This Row],[Incentive_Customer]]=\"\",\"\",ROUND(Table_SummaryPI[[#This Row],[Incentive_Customer]]/$AM$401*'Customer Information'!$BC$21,2)),0)","v":""},{"$f":"IF(OR(Table_PI[[#This Row],[Annual kWh]]=\"\",Table_PI[[#This Row],[Annual kWh]]=0,ISTEXT(Table_PI[[#This Row],[Annual kWh]])),\"\",Table_PI[[#This Row],[Annual kWh]])","v":""},{"$f":"IF(OR(Table_PI[[#This Row],[Peak kW]]=\"\",Table_PI[[#This Row],[Peak kW]]=0,ISTEXT(Table_PI[[#This Row],[Peak kW]])),\"\",Table_PI[[#This Row],[Peak kW]])","v":""},{"$f":"IF(Table_SummaryPI[[#This Row],[Line No.]]<>\"\",IF(AND(ISNUMBER(FIND(\"Chiller\",Table_SummaryPI[[#This Row],[P_MeasureOption1]],1)),Table_SummaryPI[[#This Row],[ProposedMeasureCategory]]=\"Air-Cooled (Water-Cooled Replacement)\"),$BD$29*Table_SummaryPI[[#This Row],[Size]]*Table_SummaryPI[[#This Row],[Quantity]]*Table_SummaryPI[[#This Row],[EFLHCooling]],\nIF(ISNUMBER(FIND(\"Dishwasher\",Table_SummaryPI[[#This Row],[ProposedMeasureCategory]],1)),$BH$29*Table_SummaryPI[[#This Row],[Quantity]],\nIF(ISNUMBER(FIND(\"Ice Maker\",Table_SummaryPI[[#This Row],[ProposedMeasureCategory]],1)),$BD$31*Table_SummaryPI[[#This Row],[Quantity]],\nIF(ISNUMBER(FIND(\"Spray Valve\",Table_SummaryPI[[#This Row],[ProposedMeasureCategory]],1)),$BH$31*Table_SummaryPI[[#This Row],[Quantity]],\n0)))),\"\")","v":""},{"$f":"IF(OR(Table_PI[[#This Row],[Hide: Electrification kWh]]=\"\",Table_PI[[#This Row],[Hide: Electrification kWh]]=0,ISTEXT(Table_PI[[#This Row],[Hide: Electrification kWh]])),\"\",Table_PI[[#This Row],[Hide: Electrification kWh]])","v":""},{"$f":"IF(OR(Table_PI[[#This Row],[Hide: Electrification GHG]]=\"\",Table_PI[[#This Row],[Hide: Electrification GHG]]=0,ISTEXT(Table_PI[[#This Row],[Hide: Electrification GHG]])),\"\",Table_PI[[#This Row],[Hide: Electrification GHG]])","v":""},{"$f":"IFERROR(IF(Table_SummaryPI[[#This Row],[kWhSavings]]=\"\",\"\",$BH$9*Table_SummaryPI[[#This Row],[kWhSavings]]),0)","v":""},{"$f":"IFERROR(IF(Table_SummaryPI[[#This Row],[kWhSavings]]=\"\",\"\",$BH$14*Table_SummaryPI[[#This Row],[kWhSavings]]),0)","v":""},{"$f":"IFERROR(IF(Table_SummaryPI[[#This Row],[kWhSavings]]=\"\",\"\",$BH$18*Table_SummaryPI[[#This Row],[kWhSavings]]),0)","v":""},{"$f":"IFERROR(IF(Table_SummaryPI[[#This Row],[kWhSavings]]=\"\",\"\",$BH$22*Table_SummaryPI[[#This Row],[kWhSavings]]),0)","v":""}]
[{"$f":"Table_PI[[#This Row],[Line No.]]","v":""},{"$f":"IF(Table_SummaryPI[[#This Row],[MeasureName]]<>\"\",NOT(ISTEXT(Table_PI[[#This Row],[Rebate]])),\"\")","v":""},{"$f":"IF(Table_SummaryPI[[#This Row],[MeassureCategory]]<>\"\",CONCATENATE(Table_SummaryPI[[#This Row],[MeassureCategory]],  \" - \", Table_SummaryPI[[#This Row],[ProposedMeasureCategory]],  \" - \", TEXT(Table_SummaryPI[[#This Row],[Size]],\"#,##0.00\"),\" \",Table_SummaryPI[[#This Row],[SizeUnit]]),\"\")","v":""},{"$f":"SUBSTITUTE(Table_PI[[#This Row],[Measure]],\"     \",\"\",1)","v":""},{"$f":"IF(Table_PI[[#This Row],[List 1]]<>\"\",Table_PI[[#This Row],[List 1]],\"\")","v":""},{"$f":"IF(Table_PI[[#This Row],[List 2]]<>\"\",Table_PI[[#This Row],[List 2]],\"\")","v":""},{"$f":"IF(Table_PI[[#This Row],[List 3]]<>\"\",Table_PI[[#This Row],[List 3]],\"\")","v":""},{"$f":"IF(Table_PI[[#This Row],[Manufacturer]]=\"\",\"\",Table_PI[[#This Row],[Manufacturer]])","v":""},{"$f":"IF(Table_PI[[#This Row],[Model Number]]=\"\",\"\",Table_PI[[#This Row],[Model Number]])","v":""},{"$f":"IF(Table_PI[[#This Row],[Serial Number(s)]]=\"\",\"\",Table_PI[[#This Row],[Serial Number(s)]])","v":""},null,{"$f":"IF(Table_PI[[#This Row],[Size]]=\"\",\"\",Table_PI[[#This Row],[Size]])","v":""},null,null,{"$f":"IF(Table_PI[[#This Row],[Input 1]]<>\"\",Table_PI[[#This Row],[Input 1]],\"\")","v":""},null,null,{"$f":"IF(Table_PI[[#This Row],[Input 2]]<>\"\",Table_PI[[#This Row],[Input 2]],\"\")","v":""},null,null,{"$f":"IF(Table_PI[[#This Row],[Input 3]]<>\"\",Table_PI[[#This Row],[Input 3]],\"\")","v":""},null,null,{"$f":"IF(Table_PI[[#This Row],[Input 4]]<>\"\",Table_PI[[#This Row],[Input 4]],\"\")","v":""},null,null,{"$f":"IF(Table_PI[[#This Row],[Input 4]]<>\"\",Table_PI[[#This Row],[Input 4]],\"\")","v":""},null,null,{"$f":"IF(Table_PI[[#This Row],[Input 4]]<>\"\",Table_PI[[#This Row],[Input 4]],\"\")","v":""},{"$f":"IF(Table_PI[[#This Row],[Quantity]]=\"\",\"\",Table_PI[[#This Row],[Quantity]])","v":""},{"$f":"IF(Table_PI[[#This Row],[Notes]]=\"\",\"\",Table_PI[[#This Row],[Notes]])","v":""},{"$f":"IF(OR(Table_PI[[#This Row],[Hide: Baseline kWh]]=\"\",Table_PI[[#This Row],[Hide: Baseline kWh]]=0,ISTEXT(Table_PI[[#This Row],[Hide: Baseline kWh]])),\"\",Table_PI[[#This Row],[Hide: Baseline kWh]])","v":""},{"$f":"IF(OR(Table_PI[[#This Row],[Hide: Baseline kW]]=\"\",Table_PI[[#This Row],[Hide: Baseline kW]]=0,ISTEXT(Table_PI[[#This Row],[Hide: Baseline kW]])),\"\",Table_PI[[#This Row],[Hide: Baseline kW]])","v":""},{"$f":"IF(OR(Table_PI[[#This Row],[Hide: Proposed kWh]]=\"\",Table_PI[[#This Row],[Hide: Proposed kWh]]=0,ISTEXT(Table_PI[[#This Row],[Hide: Proposed kWh]])),\"\",Table_PI[[#This Row],[Hide: Proposed kWh]])","v":""},{"$f":"IF(OR(Table_PI[[#This Row],[Hide: Proposed kW]]=\"\",Table_PI[[#This Row],[Hide: Proposed kW]]=0,ISTEXT(Table_PI[[#This Row],[Hide: Proposed kW]])),\"\",Table_PI[[#This Row],[Hide: Proposed kW]])","v":""},null,null,{"$f":"IF(OR(Table_PI[[#This Row],[Hide: Rebate]]=\"\",Table_PI[[#This Row],[Hide: Rebate]]=0,ISTEXT(Table_PI[[#This Row],[Hide: Rebate]])),\"\",Table_PI[[#This Row],[Hide: Rebate]])","v":""},null,{"$f":"IF(OR(Table_PI[[#This Row],[Hide: Incremental Cost]]=\"\",Table_PI[[#This Row],[Hide: Incremental Cost]]=0,ISTEXT(Table_PI[[#This Row],[Hide: Incremental Cost]])),\"\",Table_PI[[#This Row],[Hide: Incremental Cost]])","v":""},{"$f":"IFERROR(IF(Table_SummaryPI[[#This Row],[Incentive_Customer]]=\"\",\"\",ROUND(Table_SummaryPI[[#This Row],[Incentive_Customer]]/$AM$401*'Customer Information'!$BC$21,2)),0)","v":""},{"$f":"IF(OR(Table_PI[[#This Row],[Annual kWh]]=\"\",Table_PI[[#This Row],[Annual kWh]]=0,ISTEXT(Table_PI[[#This Row],[Annual kWh]])),\"\",Table_PI[[#This Row],[Annual kWh]])","v":""},{"$f":"IF(OR(Table_PI[[#This Row],[Peak kW]]=\"\",Table_PI[[#This Row],[Peak kW]]=0,ISTEXT(Table_PI[[#This Row],[Peak kW]])),\"\",Table_PI[[#This Row],[Peak kW]])","v":""},{"$f":"IF(Table_SummaryPI[[#This Row],[Line No.]]<>\"\",IF(AND(ISNUMBER(FIND(\"Chiller\",Table_SummaryPI[[#This Row],[P_MeasureOption1]],1)),Table_SummaryPI[[#This Row],[ProposedMeasureCategory]]=\"Air-Cooled (Water-Cooled Replacement)\"),$BD$29*Table_SummaryPI[[#This Row],[Size]]*Table_SummaryPI[[#This Row],[Quantity]]*Table_SummaryPI[[#This Row],[EFLHCooling]],\nIF(ISNUMBER(FIND(\"Dishwasher\",Table_SummaryPI[[#This Row],[ProposedMeasureCategory]],1)),$BH$29*Table_SummaryPI[[#This Row],[Quantity]],\nIF(ISNUMBER(FIND(\"Ice Maker\",Table_SummaryPI[[#This Row],[ProposedMeasureCategory]],1)),$BD$31*Table_SummaryPI[[#This Row],[Quantity]],\nIF(ISNUMBER(FIND(\"Spray Valve\",Table_SummaryPI[[#This Row],[ProposedMeasureCategory]],1)),$BH$31*Table_SummaryPI[[#This Row],[Quantity]],\n0)))),\"\")","v":""},{"$f":"IF(OR(Table_PI[[#This Row],[Hide: Electrification kWh]]=\"\",Table_PI[[#This Row],[Hide: Electrification kWh]]=0,ISTEXT(Table_PI[[#This Row],[Hide: Electrification kWh]])),\"\",Table_PI[[#This Row],[Hide: Electrification kWh]])","v":""},{"$f":"IF(OR(Table_PI[[#This Row],[Hide: Electrification GHG]]=\"\",Table_PI[[#This Row],[Hide: Electrification GHG]]=0,ISTEXT(Table_PI[[#This Row],[Hide: Electrification GHG]])),\"\",Table_PI[[#This Row],[Hide: Electrification GHG]])","v":""},{"$f":"IFERROR(IF(Table_SummaryPI[[#This Row],[kWhSavings]]=\"\",\"\",$BH$9*Table_SummaryPI[[#This Row],[kWhSavings]]),0)","v":""},{"$f":"IFERROR(IF(Table_SummaryPI[[#This Row],[kWhSavings]]=\"\",\"\",$BH$14*Table_SummaryPI[[#This Row],[kWhSavings]]),0)","v":""},{"$f":"IFERROR(IF(Table_SummaryPI[[#This Row],[kWhSavings]]=\"\",\"\",$BH$18*Table_SummaryPI[[#This Row],[kWhSavings]]),0)","v":""},{"$f":"IFERROR(IF(Table_SummaryPI[[#This Row],[kWhSavings]]=\"\",\"\",$BH$22*Table_SummaryPI[[#This Row],[kWhSavings]]),0)","v":""}]
[{"$f":"Table_PI[[#This Row],[Line No.]]","v":""},{"$f":"IF(Table_SummaryPI[[#This Row],[MeasureName]]<>\"\",NOT(ISTEXT(Table_PI[[#This Row],[Rebate]])),\"\")","v":""},{"$f":"IF(Table_SummaryPI[[#This Row],[MeassureCategory]]<>\"\",CONCATENATE(Table_SummaryPI[[#This Row],[MeassureCategory]],  \" - \", Table_SummaryPI[[#This Row],[ProposedMeasureCategory]],  \" - \", TEXT(Table_SummaryPI[[#This Row],[Size]],\"#,##0.00\"),\" \",Table_SummaryPI[[#This Row],[SizeUnit]]),\"\")","v":""},{"$f":"SUBSTITUTE(Table_PI[[#This Row],[Measure]],\"     \",\"\",1)","v":""},{"$f":"IF(Table_PI[[#This Row],[List 1]]<>\"\",Table_PI[[#This Row],[List 1]],\"\")","v":""},{"$f":"IF(Table_PI[[#This Row],[List 2]]<>\"\",Table_PI[[#This Row],[List 2]],\"\")","v":""},{"$f":"IF(Table_PI[[#This Row],[List 3]]<>\"\",Table_PI[[#This Row],[List 3]],\"\")","v":""},{"$f":"IF(Table_PI[[#This Row],[Manufacturer]]=\"\",\"\",Table_PI[[#This Row],[Manufacturer]])","v":""},{"$f":"IF(Table_PI[[#This Row],[Model Number]]=\"\",\"\",Table_PI[[#This Row],[Model Number]])","v":""},{"$f":"IF(Table_PI[[#This Row],[Serial Number(s)]]=\"\",\"\",Table_PI[[#This Row],[Serial Number(s)]])","v":""},null,{"$f":"IF(Table_PI[[#This Row],[Size]]=\"\",\"\",Table_PI[[#This Row],[Size]])","v":""},null,null,{"$f":"IF(Table_PI[[#This Row],[Input 1]]<>\"\",Table_PI[[#This Row],[Input 1]],\"\")","v":""},null,null,{"$f":"IF(Table_PI[[#This Row],[Input 2]]<>\"\",Table_PI[[#This Row],[Input 2]],\"\")","v":""},null,null,{"$f":"IF(Table_PI[[#This Row],[Input 3]]<>\"\",Table_PI[[#This Row],[Input 3]],\"\")","v":""},null,null,{"$f":"IF(Table_PI[[#This Row],[Input 4]]<>\"\",Table_PI[[#This Row],[Input 4]],\"\")","v":""},null,null,{"$f":"IF(Table_PI[[#This Row],[Input 4]]<>\"\",Table_PI[[#This Row],[Input 4]],\"\")","v":""},null,null,{"$f":"IF(Table_PI[[#This Row],[Input 4]]<>\"\",Table_PI[[#This Row],[Input 4]],\"\")","v":""},{"$f":"IF(Table_PI[[#This Row],[Quantity]]=\"\",\"\",Table_PI[[#This Row],[Quantity]])","v":""},{"$f":"IF(Table_PI[[#This Row],[Notes]]=\"\",\"\",Table_PI[[#This Row],[Notes]])","v":""},{"$f":"IF(OR(Table_PI[[#This Row],[Hide: Baseline kWh]]=\"\",Table_PI[[#This Row],[Hide: Baseline kWh]]=0,ISTEXT(Table_PI[[#This Row],[Hide: Baseline kWh]])),\"\",Table_PI[[#This Row],[Hide: Baseline kWh]])","v":""},{"$f":"IF(OR(Table_PI[[#This Row],[Hide: Baseline kW]]=\"\",Table_PI[[#This Row],[Hide: Baseline kW]]=0,ISTEXT(Table_PI[[#This Row],[Hide: Baseline kW]])),\"\",Table_PI[[#This Row],[Hide: Baseline kW]])","v":""},{"$f":"IF(OR(Table_PI[[#This Row],[Hide: Proposed kWh]]=\"\",Table_PI[[#This Row],[Hide: Proposed kWh]]=0,ISTEXT(Table_PI[[#This Row],[Hide: Proposed kWh]])),\"\",Table_PI[[#This Row],[Hide: Proposed kWh]])","v":""},{"$f":"IF(OR(Table_PI[[#This Row],[Hide: Proposed kW]]=\"\",Table_PI[[#This Row],[Hide: Proposed kW]]=0,ISTEXT(Table_PI[[#This Row],[Hide: Proposed kW]])),\"\",Table_PI[[#This Row],[Hide: Proposed kW]])","v":""},null,null,{"$f":"IF(OR(Table_PI[[#This Row],[Hide: Rebate]]=\"\",Table_PI[[#This Row],[Hide: Rebate]]=0,ISTEXT(Table_PI[[#This Row],[Hide: Rebate]])),\"\",Table_PI[[#This Row],[Hide: Rebate]])","v":""},null,{"$f":"IF(OR(Table_PI[[#This Row],[Hide: Incremental Cost]]=\"\",Table_PI[[#This Row],[Hide: Incremental Cost]]=0,ISTEXT(Table_PI[[#This Row],[Hide: Incremental Cost]])),\"\",Table_PI[[#This Row],[Hide: Incremental Cost]])","v":""},{"$f":"IFERROR(IF(Table_SummaryPI[[#This Row],[Incentive_Customer]]=\"\",\"\",ROUND(Table_SummaryPI[[#This Row],[Incentive_Customer]]/$AM$401*'Customer Information'!$BC$21,2)),0)","v":""},{"$f":"IF(OR(Table_PI[[#This Row],[Annual kWh]]=\"\",Table_PI[[#This Row],[Annual kWh]]=0,ISTEXT(Table_PI[[#This Row],[Annual kWh]])),\"\",Table_PI[[#This Row],[Annual kWh]])","v":""},{"$f":"IF(OR(Table_PI[[#This Row],[Peak kW]]=\"\",Table_PI[[#This Row],[Peak kW]]=0,ISTEXT(Table_PI[[#This Row],[Peak kW]])),\"\",Table_PI[[#This Row],[Peak kW]])","v":""},{"$f":"IF(Table_SummaryPI[[#This Row],[Line No.]]<>\"\",IF(AND(ISNUMBER(FIND(\"Chiller\",Table_SummaryPI[[#This Row],[P_MeasureOption1]],1)),Table_SummaryPI[[#This Row],[ProposedMeasureCategory]]=\"Air-Cooled (Water-Cooled Replacement)\"),$BD$29*Table_SummaryPI[[#This Row],[Size]]*Table_SummaryPI[[#This Row],[Quantity]]*Table_SummaryPI[[#This Row],[EFLHCooling]],\nIF(ISNUMBER(FIND(\"Dishwasher\",Table_SummaryPI[[#This Row],[ProposedMeasureCategory]],1)),$BH$29*Table_SummaryPI[[#This Row],[Quantity]],\nIF(ISNUMBER(FIND(\"Ice Maker\",Table_SummaryPI[[#This Row],[ProposedMeasureCategory]],1)),$BD$31*Table_SummaryPI[[#This Row],[Quantity]],\nIF(ISNUMBER(FIND(\"Spray Valve\",Table_SummaryPI[[#This Row],[ProposedMeasureCategory]],1)),$BH$31*Table_SummaryPI[[#This Row],[Quantity]],\n0)))),\"\")","v":""},{"$f":"IF(OR(Table_PI[[#This Row],[Hide: Electrification kWh]]=\"\",Table_PI[[#This Row],[Hide: Electrification kWh]]=0,ISTEXT(Table_PI[[#This Row],[Hide: Electrification kWh]])),\"\",Table_PI[[#This Row],[Hide: Electrification kWh]])","v":""},{"$f":"IF(OR(Table_PI[[#This Row],[Hide: Electrification GHG]]=\"\",Table_PI[[#This Row],[Hide: Electrification GHG]]=0,ISTEXT(Table_PI[[#This Row],[Hide: Electrification GHG]])),\"\",Table_PI[[#This Row],[Hide: Electrification GHG]])","v":""},{"$f":"IFERROR(IF(Table_SummaryPI[[#This Row],[kWhSavings]]=\"\",\"\",$BH$9*Table_SummaryPI[[#This Row],[kWhSavings]]),0)","v":""},{"$f":"IFERROR(IF(Table_SummaryPI[[#This Row],[kWhSavings]]=\"\",\"\",$BH$14*Table_SummaryPI[[#This Row],[kWhSavings]]),0)","v":""},{"$f":"IFERROR(IF(Table_SummaryPI[[#This Row],[kWhSavings]]=\"\",\"\",$BH$18*Table_SummaryPI[[#This Row],[kWhSavings]]),0)","v":""},{"$f":"IFERROR(IF(Table_SummaryPI[[#This Row],[kWhSavings]]=\"\",\"\",$BH$22*Table_SummaryPI[[#This Row],[kWhSavings]]),0)","v":""}]
[{"$f":"Table_PI[[#This Row],[Line No.]]","v":""},{"$f":"IF(Table_SummaryPI[[#This Row],[MeasureName]]<>\"\",NOT(ISTEXT(Table_PI[[#This Row],[Rebate]])),\"\")","v":""},{"$f":"IF(Table_SummaryPI[[#This Row],[MeassureCategory]]<>\"\",CONCATENATE(Table_SummaryPI[[#This Row],[MeassureCategory]],  \" - \", Table_SummaryPI[[#This Row],[ProposedMeasureCategory]],  \" - \", TEXT(Table_SummaryPI[[#This Row],[Size]],\"#,##0.00\"),\" \",Table_SummaryPI[[#This Row],[SizeUnit]]),\"\")","v":""},{"$f":"SUBSTITUTE(Table_PI[[#This Row],[Measure]],\"     \",\"\",1)","v":""},{"$f":"IF(Table_PI[[#This Row],[List 1]]<>\"\",Table_PI[[#This Row],[List 1]],\"\")","v":""},{"$f":"IF(Table_PI[[#This Row],[List 2]]<>\"\",Table_PI[[#This Row],[List 2]],\"\")","v":""},{"$f":"IF(Table_PI[[#This Row],[List 3]]<>\"\",Table_PI[[#This Row],[List 3]],\"\")","v":""},{"$f":"IF(Table_PI[[#This Row],[Manufacturer]]=\"\",\"\",Table_PI[[#This Row],[Manufacturer]])","v":""},{"$f":"IF(Table_PI[[#This Row],[Model Number]]=\"\",\"\",Table_PI[[#This Row],[Model Number]])","v":""},{"$f":"IF(Table_PI[[#This Row],[Serial Number(s)]]=\"\",\"\",Table_PI[[#This Row],[Serial Number(s)]])","v":""},null,{"$f":"IF(Table_PI[[#This Row],[Size]]=\"\",\"\",Table_PI[[#This Row],[Size]])","v":""},null,null,{"$f":"IF(Table_PI[[#This Row],[Input 1]]<>\"\",Table_PI[[#This Row],[Input 1]],\"\")","v":""},null,null,{"$f":"IF(Table_PI[[#This Row],[Input 2]]<>\"\",Table_PI[[#This Row],[Input 2]],\"\")","v":""},null,null,{"$f":"IF(Table_PI[[#This Row],[Input 3]]<>\"\",Table_PI[[#This Row],[Input 3]],\"\")","v":""},null,null,{"$f":"IF(Table_PI[[#This Row],[Input 4]]<>\"\",Table_PI[[#This Row],[Input 4]],\"\")","v":""},null,null,{"$f":"IF(Table_PI[[#This Row],[Input 4]]<>\"\",Table_PI[[#This Row],[Input 4]],\"\")","v":""},null,null,{"$f":"IF(Table_PI[[#This Row],[Input 4]]<>\"\",Table_PI[[#This Row],[Input 4]],\"\")","v":""},{"$f":"IF(Table_PI[[#This Row],[Quantity]]=\"\",\"\",Table_PI[[#This Row],[Quantity]])","v":""},{"$f":"IF(Table_PI[[#This Row],[Notes]]=\"\",\"\",Table_PI[[#This Row],[Notes]])","v":""},{"$f":"IF(OR(Table_PI[[#This Row],[Hide: Baseline kWh]]=\"\",Table_PI[[#This Row],[Hide: Baseline kWh]]=0,ISTEXT(Table_PI[[#This Row],[Hide: Baseline kWh]])),\"\",Table_PI[[#This Row],[Hide: Baseline kWh]])","v":""},{"$f":"IF(OR(Table_PI[[#This Row],[Hide: Baseline kW]]=\"\",Table_PI[[#This Row],[Hide: Baseline kW]]=0,ISTEXT(Table_PI[[#This Row],[Hide: Baseline kW]])),\"\",Table_PI[[#This Row],[Hide: Baseline kW]])","v":""},{"$f":"IF(OR(Table_PI[[#This Row],[Hide: Proposed kWh]]=\"\",Table_PI[[#This Row],[Hide: Proposed kWh]]=0,ISTEXT(Table_PI[[#This Row],[Hide: Proposed kWh]])),\"\",Table_PI[[#This Row],[Hide: Proposed kWh]])","v":""},{"$f":"IF(OR(Table_PI[[#This Row],[Hide: Proposed kW]]=\"\",Table_PI[[#This Row],[Hide: Proposed kW]]=0,ISTEXT(Table_PI[[#This Row],[Hide: Proposed kW]])),\"\",Table_PI[[#This Row],[Hide: Proposed kW]])","v":""},null,null,{"$f":"IF(OR(Table_PI[[#This Row],[Hide: Rebate]]=\"\",Table_PI[[#This Row],[Hide: Rebate]]=0,ISTEXT(Table_PI[[#This Row],[Hide: Rebate]])),\"\",Table_PI[[#This Row],[Hide: Rebate]])","v":""},null,{"$f":"IF(OR(Table_PI[[#This Row],[Hide: Incremental Cost]]=\"\",Table_PI[[#This Row],[Hide: Incremental Cost]]=0,ISTEXT(Table_PI[[#This Row],[Hide: Incremental Cost]])),\"\",Table_PI[[#This Row],[Hide: Incremental Cost]])","v":""},{"$f":"IFERROR(IF(Table_SummaryPI[[#This Row],[Incentive_Customer]]=\"\",\"\",ROUND(Table_SummaryPI[[#This Row],[Incentive_Customer]]/$AM$401*'Customer Information'!$BC$21,2)),0)","v":""},{"$f":"IF(OR(Table_PI[[#This Row],[Annual kWh]]=\"\",Table_PI[[#This Row],[Annual kWh]]=0,ISTEXT(Table_PI[[#This Row],[Annual kWh]])),\"\",Table_PI[[#This Row],[Annual kWh]])","v":""},{"$f":"IF(OR(Table_PI[[#This Row],[Peak kW]]=\"\",Table_PI[[#This Row],[Peak kW]]=0,ISTEXT(Table_PI[[#This Row],[Peak kW]])),\"\",Table_PI[[#This Row],[Peak kW]])","v":""},{"$f":"IF(Table_SummaryPI[[#This Row],[Line No.]]<>\"\",IF(AND(ISNUMBER(FIND(\"Chiller\",Table_SummaryPI[[#This Row],[P_MeasureOption1]],1)),Table_SummaryPI[[#This Row],[ProposedMeasureCategory]]=\"Air-Cooled (Water-Cooled Replacement)\"),$BD$29*Table_SummaryPI[[#This Row],[Size]]*Table_SummaryPI[[#This Row],[Quantity]]*Table_SummaryPI[[#This Row],[EFLHCooling]],\nIF(ISNUMBER(FIND(\"Dishwasher\",Table_SummaryPI[[#This Row],[ProposedMeasureCategory]],1)),$BH$29*Table_SummaryPI[[#This Row],[Quantity]],\nIF(ISNUMBER(FIND(\"Ice Maker\",Table_SummaryPI[[#This Row],[ProposedMeasureCategory]],1)),$BD$31*Table_SummaryPI[[#This Row],[Quantity]],\nIF(ISNUMBER(FIND(\"Spray Valve\",Table_SummaryPI[[#This Row],[ProposedMeasureCategory]],1)),$BH$31*Table_SummaryPI[[#This Row],[Quantity]],\n0)))),\"\")","v":""},{"$f":"IF(OR(Table_PI[[#This Row],[Hide: Electrification kWh]]=\"\",Table_PI[[#This Row],[Hide: Electrification kWh]]=0,ISTEXT(Table_PI[[#This Row],[Hide: Electrification kWh]])),\"\",Table_PI[[#This Row],[Hide: Electrification kWh]])","v":""},{"$f":"IF(OR(Table_PI[[#This Row],[Hide: Electrification GHG]]=\"\",Table_PI[[#This Row],[Hide: Electrification GHG]]=0,ISTEXT(Table_PI[[#This Row],[Hide: Electrification GHG]])),\"\",Table_PI[[#This Row],[Hide: Electrification GHG]])","v":""},{"$f":"IFERROR(IF(Table_SummaryPI[[#This Row],[kWhSavings]]=\"\",\"\",$BH$9*Table_SummaryPI[[#This Row],[kWhSavings]]),0)","v":""},{"$f":"IFERROR(IF(Table_SummaryPI[[#This Row],[kWhSavings]]=\"\",\"\",$BH$14*Table_SummaryPI[[#This Row],[kWhSavings]]),0)","v":""},{"$f":"IFERROR(IF(Table_SummaryPI[[#This Row],[kWhSavings]]=\"\",\"\",$BH$18*Table_SummaryPI[[#This Row],[kWhSavings]]),0)","v":""},{"$f":"IFERROR(IF(Table_SummaryPI[[#This Row],[kWhSavings]]=\"\",\"\",$BH$22*Table_SummaryPI[[#This Row],[kWhSavings]]),0)","v":""}]
[{"$f":"Table_PI[[#This Row],[Line No.]]","v":""},{"$f":"IF(Table_SummaryPI[[#This Row],[MeasureName]]<>\"\",NOT(ISTEXT(Table_PI[[#This Row],[Rebate]])),\"\")","v":""},{"$f":"IF(Table_SummaryPI[[#This Row],[MeassureCategory]]<>\"\",CONCATENATE(Table_SummaryPI[[#This Row],[MeassureCategory]],  \" - \", Table_SummaryPI[[#This Row],[ProposedMeasureCategory]],  \" - \", TEXT(Table_SummaryPI[[#This Row],[Size]],\"#,##0.00\"),\" \",Table_SummaryPI[[#This Row],[SizeUnit]]),\"\")","v":""},{"$f":"SUBSTITUTE(Table_PI[[#This Row],[Measure]],\"     \",\"\",1)","v":""},{"$f":"IF(Table_PI[[#This Row],[List 1]]<>\"\",Table_PI[[#This Row],[List 1]],\"\")","v":""},{"$f":"IF(Table_PI[[#This Row],[List 2]]<>\"\",Table_PI[[#This Row],[List 2]],\"\")","v":""},{"$f":"IF(Table_PI[[#This Row],[List 3]]<>\"\",Table_PI[[#This Row],[List 3]],\"\")","v":""},{"$f":"IF(Table_PI[[#This Row],[Manufacturer]]=\"\",\"\",Table_PI[[#This Row],[Manufacturer]])","v":""},{"$f":"IF(Table_PI[[#This Row],[Model Number]]=\"\",\"\",Table_PI[[#This Row],[Model Number]])","v":""},{"$f":"IF(Table_PI[[#This Row],[Serial Number(s)]]=\"\",\"\",Table_PI[[#This Row],[Serial Number(s)]])","v":""},null,{"$f":"IF(Table_PI[[#This Row],[Size]]=\"\",\"\",Table_PI[[#This Row],[Size]])","v":""},null,null,{"$f":"IF(Table_PI[[#This Row],[Input 1]]<>\"\",Table_PI[[#This Row],[Input 1]],\"\")","v":""},null,null,{"$f":"IF(Table_PI[[#This Row],[Input 2]]<>\"\",Table_PI[[#This Row],[Input 2]],\"\")","v":""},null,null,{"$f":"IF(Table_PI[[#This Row],[Input 3]]<>\"\",Table_PI[[#This Row],[Input 3]],\"\")","v":""},null,null,{"$f":"IF(Table_PI[[#This Row],[Input 4]]<>\"\",Table_PI[[#This Row],[Input 4]],\"\")","v":""},null,null,{"$f":"IF(Table_PI[[#This Row],[Input 4]]<>\"\",Table_PI[[#This Row],[Input 4]],\"\")","v":""},null,null,{"$f":"IF(Table_PI[[#This Row],[Input 4]]<>\"\",Table_PI[[#This Row],[Input 4]],\"\")","v":""},{"$f":"IF(Table_PI[[#This Row],[Quantity]]=\"\",\"\",Table_PI[[#This Row],[Quantity]])","v":""},{"$f":"IF(Table_PI[[#This Row],[Notes]]=\"\",\"\",Table_PI[[#This Row],[Notes]])","v":""},{"$f":"IF(OR(Table_PI[[#This Row],[Hide: Baseline kWh]]=\"\",Table_PI[[#This Row],[Hide: Baseline kWh]]=0,ISTEXT(Table_PI[[#This Row],[Hide: Baseline kWh]])),\"\",Table_PI[[#This Row],[Hide: Baseline kWh]])","v":""},{"$f":"IF(OR(Table_PI[[#This Row],[Hide: Baseline kW]]=\"\",Table_PI[[#This Row],[Hide: Baseline kW]]=0,ISTEXT(Table_PI[[#This Row],[Hide: Baseline kW]])),\"\",Table_PI[[#This Row],[Hide: Baseline kW]])","v":""},{"$f":"IF(OR(Table_PI[[#This Row],[Hide: Proposed kWh]]=\"\",Table_PI[[#This Row],[Hide: Proposed kWh]]=0,ISTEXT(Table_PI[[#This Row],[Hide: Proposed kWh]])),\"\",Table_PI[[#This Row],[Hide: Proposed kWh]])","v":""},{"$f":"IF(OR(Table_PI[[#This Row],[Hide: Proposed kW]]=\"\",Table_PI[[#This Row],[Hide: Proposed kW]]=0,ISTEXT(Table_PI[[#This Row],[Hide: Proposed kW]])),\"\",Table_PI[[#This Row],[Hide: Proposed kW]])","v":""},null,null,{"$f":"IF(OR(Table_PI[[#This Row],[Hide: Rebate]]=\"\",Table_PI[[#This Row],[Hide: Rebate]]=0,ISTEXT(Table_PI[[#This Row],[Hide: Rebate]])),\"\",Table_PI[[#This Row],[Hide: Rebate]])","v":""},null,{"$f":"IF(OR(Table_PI[[#This Row],[Hide: Incremental Cost]]=\"\",Table_PI[[#This Row],[Hide: Incremental Cost]]=0,ISTEXT(Table_PI[[#This Row],[Hide: Incremental Cost]])),\"\",Table_PI[[#This Row],[Hide: Incremental Cost]])","v":""},{"$f":"IFERROR(IF(Table_SummaryPI[[#This Row],[Incentive_Customer]]=\"\",\"\",ROUND(Table_SummaryPI[[#This Row],[Incentive_Customer]]/$AM$401*'Customer Information'!$BC$21,2)),0)","v":""},{"$f":"IF(OR(Table_PI[[#This Row],[Annual kWh]]=\"\",Table_PI[[#This Row],[Annual kWh]]=0,ISTEXT(Table_PI[[#This Row],[Annual kWh]])),\"\",Table_PI[[#This Row],[Annual kWh]])","v":""},{"$f":"IF(OR(Table_PI[[#This Row],[Peak kW]]=\"\",Table_PI[[#This Row],[Peak kW]]=0,ISTEXT(Table_PI[[#This Row],[Peak kW]])),\"\",Table_PI[[#This Row],[Peak kW]])","v":""},{"$f":"IF(Table_SummaryPI[[#This Row],[Line No.]]<>\"\",IF(AND(ISNUMBER(FIND(\"Chiller\",Table_SummaryPI[[#This Row],[P_MeasureOption1]],1)),Table_SummaryPI[[#This Row],[ProposedMeasureCategory]]=\"Air-Cooled (Water-Cooled Replacement)\"),$BD$29*Table_SummaryPI[[#This Row],[Size]]*Table_SummaryPI[[#This Row],[Quantity]]*Table_SummaryPI[[#This Row],[EFLHCooling]],\nIF(ISNUMBER(FIND(\"Dishwasher\",Table_SummaryPI[[#This Row],[ProposedMeasureCategory]],1)),$BH$29*Table_SummaryPI[[#This Row],[Quantity]],\nIF(ISNUMBER(FIND(\"Ice Maker\",Table_SummaryPI[[#This Row],[ProposedMeasureCategory]],1)),$BD$31*Table_SummaryPI[[#This Row],[Quantity]],\nIF(ISNUMBER(FIND(\"Spray Valve\",Table_SummaryPI[[#This Row],[ProposedMeasureCategory]],1)),$BH$31*Table_SummaryPI[[#This Row],[Quantity]],\n0)))),\"\")","v":""},{"$f":"IF(OR(Table_PI[[#This Row],[Hide: Electrification kWh]]=\"\",Table_PI[[#This Row],[Hide: Electrification kWh]]=0,ISTEXT(Table_PI[[#This Row],[Hide: Electrification kWh]])),\"\",Table_PI[[#This Row],[Hide: Electrification kWh]])","v":""},{"$f":"IF(OR(Table_PI[[#This Row],[Hide: Electrification GHG]]=\"\",Table_PI[[#This Row],[Hide: Electrification GHG]]=0,ISTEXT(Table_PI[[#This Row],[Hide: Electrification GHG]])),\"\",Table_PI[[#This Row],[Hide: Electrification GHG]])","v":""},{"$f":"IFERROR(IF(Table_SummaryPI[[#This Row],[kWhSavings]]=\"\",\"\",$BH$9*Table_SummaryPI[[#This Row],[kWhSavings]]),0)","v":""},{"$f":"IFERROR(IF(Table_SummaryPI[[#This Row],[kWhSavings]]=\"\",\"\",$BH$14*Table_SummaryPI[[#This Row],[kWhSavings]]),0)","v":""},{"$f":"IFERROR(IF(Table_SummaryPI[[#This Row],[kWhSavings]]=\"\",\"\",$BH$18*Table_SummaryPI[[#This Row],[kWhSavings]]),0)","v":""},{"$f":"IFERROR(IF(Table_SummaryPI[[#This Row],[kWhSavings]]=\"\",\"\",$BH$22*Table_SummaryPI[[#This Row],[kWhSavings]]),0)","v":""}]
[{"$f":"Table_PI[[#This Row],[Line No.]]","v":""},{"$f":"IF(Table_SummaryPI[[#This Row],[MeasureName]]<>\"\",NOT(ISTEXT(Table_PI[[#This Row],[Rebate]])),\"\")","v":""},{"$f":"IF(Table_SummaryPI[[#This Row],[MeassureCategory]]<>\"\",CONCATENATE(Table_SummaryPI[[#This Row],[MeassureCategory]],  \" - \", Table_SummaryPI[[#This Row],[ProposedMeasureCategory]],  \" - \", TEXT(Table_SummaryPI[[#This Row],[Size]],\"#,##0.00\"),\" \",Table_SummaryPI[[#This Row],[SizeUnit]]),\"\")","v":""},{"$f":"SUBSTITUTE(Table_PI[[#This Row],[Measure]],\"     \",\"\",1)","v":""},{"$f":"IF(Table_PI[[#This Row],[List 1]]<>\"\",Table_PI[[#This Row],[List 1]],\"\")","v":""},{"$f":"IF(Table_PI[[#This Row],[List 2]]<>\"\",Table_PI[[#This Row],[List 2]],\"\")","v":""},{"$f":"IF(Table_PI[[#This Row],[List 3]]<>\"\",Table_PI[[#This Row],[List 3]],\"\")","v":""},{"$f":"IF(Table_PI[[#This Row],[Manufacturer]]=\"\",\"\",Table_PI[[#This Row],[Manufacturer]])","v":""},{"$f":"IF(Table_PI[[#This Row],[Model Number]]=\"\",\"\",Table_PI[[#This Row],[Model Number]])","v":""},{"$f":"IF(Table_PI[[#This Row],[Serial Number(s)]]=\"\",\"\",Table_PI[[#This Row],[Serial Number(s)]])","v":""},null,{"$f":"IF(Table_PI[[#This Row],[Size]]=\"\",\"\",Table_PI[[#This Row],[Size]])","v":""},null,null,{"$f":"IF(Table_PI[[#This Row],[Input 1]]<>\"\",Table_PI[[#This Row],[Input 1]],\"\")","v":""},null,null,{"$f":"IF(Table_PI[[#This Row],[Input 2]]<>\"\",Table_PI[[#This Row],[Input 2]],\"\")","v":""},null,null,{"$f":"IF(Table_PI[[#This Row],[Input 3]]<>\"\",Table_PI[[#This Row],[Input 3]],\"\")","v":""},null,null,{"$f":"IF(Table_PI[[#This Row],[Input 4]]<>\"\",Table_PI[[#This Row],[Input 4]],\"\")","v":""},null,null,{"$f":"IF(Table_PI[[#This Row],[Input 4]]<>\"\",Table_PI[[#This Row],[Input 4]],\"\")","v":""},null,null,{"$f":"IF(Table_PI[[#This Row],[Input 4]]<>\"\",Table_PI[[#This Row],[Input 4]],\"\")","v":""},{"$f":"IF(Table_PI[[#This Row],[Quantity]]=\"\",\"\",Table_PI[[#This Row],[Quantity]])","v":""},{"$f":"IF(Table_PI[[#This Row],[Notes]]=\"\",\"\",Table_PI[[#This Row],[Notes]])","v":""},{"$f":"IF(OR(Table_PI[[#This Row],[Hide: Baseline kWh]]=\"\",Table_PI[[#This Row],[Hide: Baseline kWh]]=0,ISTEXT(Table_PI[[#This Row],[Hide: Baseline kWh]])),\"\",Table_PI[[#This Row],[Hide: Baseline kWh]])","v":""},{"$f":"IF(OR(Table_PI[[#This Row],[Hide: Baseline kW]]=\"\",Table_PI[[#This Row],[Hide: Baseline kW]]=0,ISTEXT(Table_PI[[#This Row],[Hide: Baseline kW]])),\"\",Table_PI[[#This Row],[Hide: Baseline kW]])","v":""},{"$f":"IF(OR(Table_PI[[#This Row],[Hide: Proposed kWh]]=\"\",Table_PI[[#This Row],[Hide: Proposed kWh]]=0,ISTEXT(Table_PI[[#This Row],[Hide: Proposed kWh]])),\"\",Table_PI[[#This Row],[Hide: Proposed kWh]])","v":""},{"$f":"IF(OR(Table_PI[[#This Row],[Hide: Proposed kW]]=\"\",Table_PI[[#This Row],[Hide: Proposed kW]]=0,ISTEXT(Table_PI[[#This Row],[Hide: Proposed kW]])),\"\",Table_PI[[#This Row],[Hide: Proposed kW]])","v":""},null,null,{"$f":"IF(OR(Table_PI[[#This Row],[Hide: Rebate]]=\"\",Table_PI[[#This Row],[Hide: Rebate]]=0,ISTEXT(Table_PI[[#This Row],[Hide: Rebate]])),\"\",Table_PI[[#This Row],[Hide: Rebate]])","v":""},null,{"$f":"IF(OR(Table_PI[[#This Row],[Hide: Incremental Cost]]=\"\",Table_PI[[#This Row],[Hide: Incremental Cost]]=0,ISTEXT(Table_PI[[#This Row],[Hide: Incremental Cost]])),\"\",Table_PI[[#This Row],[Hide: Incremental Cost]])","v":""},{"$f":"IFERROR(IF(Table_SummaryPI[[#This Row],[Incentive_Customer]]=\"\",\"\",ROUND(Table_SummaryPI[[#This Row],[Incentive_Customer]]/$AM$401*'Customer Information'!$BC$21,2)),0)","v":""},{"$f":"IF(OR(Table_PI[[#This Row],[Annual kWh]]=\"\",Table_PI[[#This Row],[Annual kWh]]=0,ISTEXT(Table_PI[[#This Row],[Annual kWh]])),\"\",Table_PI[[#This Row],[Annual kWh]])","v":""},{"$f":"IF(OR(Table_PI[[#This Row],[Peak kW]]=\"\",Table_PI[[#This Row],[Peak kW]]=0,ISTEXT(Table_PI[[#This Row],[Peak kW]])),\"\",Table_PI[[#This Row],[Peak kW]])","v":""},{"$f":"IF(Table_SummaryPI[[#This Row],[Line No.]]<>\"\",IF(AND(ISNUMBER(FIND(\"Chiller\",Table_SummaryPI[[#This Row],[P_MeasureOption1]],1)),Table_SummaryPI[[#This Row],[ProposedMeasureCategory]]=\"Air-Cooled (Water-Cooled Replacement)\"),$BD$29*Table_SummaryPI[[#This Row],[Size]]*Table_SummaryPI[[#This Row],[Quantity]]*Table_SummaryPI[[#This Row],[EFLHCooling]],\nIF(ISNUMBER(FIND(\"Dishwasher\",Table_SummaryPI[[#This Row],[ProposedMeasureCategory]],1)),$BH$29*Table_SummaryPI[[#This Row],[Quantity]],\nIF(ISNUMBER(FIND(\"Ice Maker\",Table_SummaryPI[[#This Row],[ProposedMeasureCategory]],1)),$BD$31*Table_SummaryPI[[#This Row],[Quantity]],\nIF(ISNUMBER(FIND(\"Spray Valve\",Table_SummaryPI[[#This Row],[ProposedMeasureCategory]],1)),$BH$31*Table_SummaryPI[[#This Row],[Quantity]],\n0)))),\"\")","v":""},{"$f":"IF(OR(Table_PI[[#This Row],[Hide: Electrification kWh]]=\"\",Table_PI[[#This Row],[Hide: Electrification kWh]]=0,ISTEXT(Table_PI[[#This Row],[Hide: Electrification kWh]])),\"\",Table_PI[[#This Row],[Hide: Electrification kWh]])","v":""},{"$f":"IF(OR(Table_PI[[#This Row],[Hide: Electrification GHG]]=\"\",Table_PI[[#This Row],[Hide: Electrification GHG]]=0,ISTEXT(Table_PI[[#This Row],[Hide: Electrification GHG]])),\"\",Table_PI[[#This Row],[Hide: Electrification GHG]])","v":""},{"$f":"IFERROR(IF(Table_SummaryPI[[#This Row],[kWhSavings]]=\"\",\"\",$BH$9*Table_SummaryPI[[#This Row],[kWhSavings]]),0)","v":""},{"$f":"IFERROR(IF(Table_SummaryPI[[#This Row],[kWhSavings]]=\"\",\"\",$BH$14*Table_SummaryPI[[#This Row],[kWhSavings]]),0)","v":""},{"$f":"IFERROR(IF(Table_SummaryPI[[#This Row],[kWhSavings]]=\"\",\"\",$BH$18*Table_SummaryPI[[#This Row],[kWhSavings]]),0)","v":""},{"$f":"IFERROR(IF(Table_SummaryPI[[#This Row],[kWhSavings]]=\"\",\"\",$BH$22*Table_SummaryPI[[#This Row],[kWhSavings]]),0)","v":""}]
[{"$f":"Table_PI[[#This Row],[Line No.]]","v":""},{"$f":"IF(Table_SummaryPI[[#This Row],[MeasureName]]<>\"\",NOT(ISTEXT(Table_PI[[#This Row],[Rebate]])),\"\")","v":""},{"$f":"IF(Table_SummaryPI[[#This Row],[MeassureCategory]]<>\"\",CONCATENATE(Table_SummaryPI[[#This Row],[MeassureCategory]],  \" - \", Table_SummaryPI[[#This Row],[ProposedMeasureCategory]],  \" - \", TEXT(Table_SummaryPI[[#This Row],[Size]],\"#,##0.00\"),\" \",Table_SummaryPI[[#This Row],[SizeUnit]]),\"\")","v":""},{"$f":"SUBSTITUTE(Table_PI[[#This Row],[Measure]],\"     \",\"\",1)","v":""},{"$f":"IF(Table_PI[[#This Row],[List 1]]<>\"\",Table_PI[[#This Row],[List 1]],\"\")","v":""},{"$f":"IF(Table_PI[[#This Row],[List 2]]<>\"\",Table_PI[[#This Row],[List 2]],\"\")","v":""},{"$f":"IF(Table_PI[[#This Row],[List 3]]<>\"\",Table_PI[[#This Row],[List 3]],\"\")","v":""},{"$f":"IF(Table_PI[[#This Row],[Manufacturer]]=\"\",\"\",Table_PI[[#This Row],[Manufacturer]])","v":""},{"$f":"IF(Table_PI[[#This Row],[Model Number]]=\"\",\"\",Table_PI[[#This Row],[Model Number]])","v":""},{"$f":"IF(Table_PI[[#This Row],[Serial Number(s)]]=\"\",\"\",Table_PI[[#This Row],[Serial Number(s)]])","v":""},null,{"$f":"IF(Table_PI[[#This Row],[Size]]=\"\",\"\",Table_PI[[#This Row],[Size]])","v":""},null,null,{"$f":"IF(Table_PI[[#This Row],[Input 1]]<>\"\",Table_PI[[#This Row],[Input 1]],\"\")","v":""},null,null,{"$f":"IF(Table_PI[[#This Row],[Input 2]]<>\"\",Table_PI[[#This Row],[Input 2]],\"\")","v":""},null,null,{"$f":"IF(Table_PI[[#This Row],[Input 3]]<>\"\",Table_PI[[#This Row],[Input 3]],\"\")","v":""},null,null,{"$f":"IF(Table_PI[[#This Row],[Input 4]]<>\"\",Table_PI[[#This Row],[Input 4]],\"\")","v":""},null,null,{"$f":"IF(Table_PI[[#This Row],[Input 4]]<>\"\",Table_PI[[#This Row],[Input 4]],\"\")","v":""},null,null,{"$f":"IF(Table_PI[[#This Row],[Input 4]]<>\"\",Table_PI[[#This Row],[Input 4]],\"\")","v":""},{"$f":"IF(Table_PI[[#This Row],[Quantity]]=\"\",\"\",Table_PI[[#This Row],[Quantity]])","v":""},{"$f":"IF(Table_PI[[#This Row],[Notes]]=\"\",\"\",Table_PI[[#This Row],[Notes]])","v":""},{"$f":"IF(OR(Table_PI[[#This Row],[Hide: Baseline kWh]]=\"\",Table_PI[[#This Row],[Hide: Baseline kWh]]=0,ISTEXT(Table_PI[[#This Row],[Hide: Baseline kWh]])),\"\",Table_PI[[#This Row],[Hide: Baseline kWh]])","v":""},{"$f":"IF(OR(Table_PI[[#This Row],[Hide: Baseline kW]]=\"\",Table_PI[[#This Row],[Hide: Baseline kW]]=0,ISTEXT(Table_PI[[#This Row],[Hide: Baseline kW]])),\"\",Table_PI[[#This Row],[Hide: Baseline kW]])","v":""},{"$f":"IF(OR(Table_PI[[#This Row],[Hide: Proposed kWh]]=\"\",Table_PI[[#This Row],[Hide: Proposed kWh]]=0,ISTEXT(Table_PI[[#This Row],[Hide: Proposed kWh]])),\"\",Table_PI[[#This Row],[Hide: Proposed kWh]])","v":""},{"$f":"IF(OR(Table_PI[[#This Row],[Hide: Proposed kW]]=\"\",Table_PI[[#This Row],[Hide: Proposed kW]]=0,ISTEXT(Table_PI[[#This Row],[Hide: Proposed kW]])),\"\",Table_PI[[#This Row],[Hide: Proposed kW]])","v":""},null,null,{"$f":"IF(OR(Table_PI[[#This Row],[Hide: Rebate]]=\"\",Table_PI[[#This Row],[Hide: Rebate]]=0,ISTEXT(Table_PI[[#This Row],[Hide: Rebate]])),\"\",Table_PI[[#This Row],[Hide: Rebate]])","v":""},null,{"$f":"IF(OR(Table_PI[[#This Row],[Hide: Incremental Cost]]=\"\",Table_PI[[#This Row],[Hide: Incremental Cost]]=0,ISTEXT(Table_PI[[#This Row],[Hide: Incremental Cost]])),\"\",Table_PI[[#This Row],[Hide: Incremental Cost]])","v":""},{"$f":"IFERROR(IF(Table_SummaryPI[[#This Row],[Incentive_Customer]]=\"\",\"\",ROUND(Table_SummaryPI[[#This Row],[Incentive_Customer]]/$AM$401*'Customer Information'!$BC$21,2)),0)","v":""},{"$f":"IF(OR(Table_PI[[#This Row],[Annual kWh]]=\"\",Table_PI[[#This Row],[Annual kWh]]=0,ISTEXT(Table_PI[[#This Row],[Annual kWh]])),\"\",Table_PI[[#This Row],[Annual kWh]])","v":""},{"$f":"IF(OR(Table_PI[[#This Row],[Peak kW]]=\"\",Table_PI[[#This Row],[Peak kW]]=0,ISTEXT(Table_PI[[#This Row],[Peak kW]])),\"\",Table_PI[[#This Row],[Peak kW]])","v":""},{"$f":"IF(Table_SummaryPI[[#This Row],[Line No.]]<>\"\",IF(AND(ISNUMBER(FIND(\"Chiller\",Table_SummaryPI[[#This Row],[P_MeasureOption1]],1)),Table_SummaryPI[[#This Row],[ProposedMeasureCategory]]=\"Air-Cooled (Water-Cooled Replacement)\"),$BD$29*Table_SummaryPI[[#This Row],[Size]]*Table_SummaryPI[[#This Row],[Quantity]]*Table_SummaryPI[[#This Row],[EFLHCooling]],\nIF(ISNUMBER(FIND(\"Dishwasher\",Table_SummaryPI[[#This Row],[ProposedMeasureCategory]],1)),$BH$29*Table_SummaryPI[[#This Row],[Quantity]],\nIF(ISNUMBER(FIND(\"Ice Maker\",Table_SummaryPI[[#This Row],[ProposedMeasureCategory]],1)),$BD$31*Table_SummaryPI[[#This Row],[Quantity]],\nIF(ISNUMBER(FIND(\"Spray Valve\",Table_SummaryPI[[#This Row],[ProposedMeasureCategory]],1)),$BH$31*Table_SummaryPI[[#This Row],[Quantity]],\n0)))),\"\")","v":""},{"$f":"IF(OR(Table_PI[[#This Row],[Hide: Electrification kWh]]=\"\",Table_PI[[#This Row],[Hide: Electrification kWh]]=0,ISTEXT(Table_PI[[#This Row],[Hide: Electrification kWh]])),\"\",Table_PI[[#This Row],[Hide: Electrification kWh]])","v":""},{"$f":"IF(OR(Table_PI[[#This Row],[Hide: Electrification GHG]]=\"\",Table_PI[[#This Row],[Hide: Electrification GHG]]=0,ISTEXT(Table_PI[[#This Row],[Hide: Electrification GHG]])),\"\",Table_PI[[#This Row],[Hide: Electrification GHG]])","v":""},{"$f":"IFERROR(IF(Table_SummaryPI[[#This Row],[kWhSavings]]=\"\",\"\",$BH$9*Table_SummaryPI[[#This Row],[kWhSavings]]),0)","v":""},{"$f":"IFERROR(IF(Table_SummaryPI[[#This Row],[kWhSavings]]=\"\",\"\",$BH$14*Table_SummaryPI[[#This Row],[kWhSavings]]),0)","v":""},{"$f":"IFERROR(IF(Table_SummaryPI[[#This Row],[kWhSavings]]=\"\",\"\",$BH$18*Table_SummaryPI[[#This Row],[kWhSavings]]),0)","v":""},{"$f":"IFERROR(IF(Table_SummaryPI[[#This Row],[kWhSavings]]=\"\",\"\",$BH$22*Table_SummaryPI[[#This Row],[kWhSavings]]),0)","v":""}]
[{"$f":"Table_PI[[#This Row],[Line No.]]","v":""},{"$f":"IF(Table_SummaryPI[[#This Row],[MeasureName]]<>\"\",NOT(ISTEXT(Table_PI[[#This Row],[Rebate]])),\"\")","v":""},{"$f":"IF(Table_SummaryPI[[#This Row],[MeassureCategory]]<>\"\",CONCATENATE(Table_SummaryPI[[#This Row],[MeassureCategory]],  \" - \", Table_SummaryPI[[#This Row],[ProposedMeasureCategory]],  \" - \", TEXT(Table_SummaryPI[[#This Row],[Size]],\"#,##0.00\"),\" \",Table_SummaryPI[[#This Row],[SizeUnit]]),\"\")","v":""},{"$f":"SUBSTITUTE(Table_PI[[#This Row],[Measure]],\"     \",\"\",1)","v":""},{"$f":"IF(Table_PI[[#This Row],[List 1]]<>\"\",Table_PI[[#This Row],[List 1]],\"\")","v":""},{"$f":"IF(Table_PI[[#This Row],[List 2]]<>\"\",Table_PI[[#This Row],[List 2]],\"\")","v":""},{"$f":"IF(Table_PI[[#This Row],[List 3]]<>\"\",Table_PI[[#This Row],[List 3]],\"\")","v":""},{"$f":"IF(Table_PI[[#This Row],[Manufacturer]]=\"\",\"\",Table_PI[[#This Row],[Manufacturer]])","v":""},{"$f":"IF(Table_PI[[#This Row],[Model Number]]=\"\",\"\",Table_PI[[#This Row],[Model Number]])","v":""},{"$f":"IF(Table_PI[[#This Row],[Serial Number(s)]]=\"\",\"\",Table_PI[[#This Row],[Serial Number(s)]])","v":""},null,{"$f":"IF(Table_PI[[#This Row],[Size]]=\"\",\"\",Table_PI[[#This Row],[Size]])","v":""},null,null,{"$f":"IF(Table_PI[[#This Row],[Input 1]]<>\"\",Table_PI[[#This Row],[Input 1]],\"\")","v":""},null,null,{"$f":"IF(Table_PI[[#This Row],[Input 2]]<>\"\",Table_PI[[#This Row],[Input 2]],\"\")","v":""},null,null,{"$f":"IF(Table_PI[[#This Row],[Input 3]]<>\"\",Table_PI[[#This Row],[Input 3]],\"\")","v":""},null,null,{"$f":"IF(Table_PI[[#This Row],[Input 4]]<>\"\",Table_PI[[#This Row],[Input 4]],\"\")","v":""},null,null,{"$f":"IF(Table_PI[[#This Row],[Input 4]]<>\"\",Table_PI[[#This Row],[Input 4]],\"\")","v":""},null,null,{"$f":"IF(Table_PI[[#This Row],[Input 4]]<>\"\",Table_PI[[#This Row],[Input 4]],\"\")","v":""},{"$f":"IF(Table_PI[[#This Row],[Quantity]]=\"\",\"\",Table_PI[[#This Row],[Quantity]])","v":""},{"$f":"IF(Table_PI[[#This Row],[Notes]]=\"\",\"\",Table_PI[[#This Row],[Notes]])","v":""},{"$f":"IF(OR(Table_PI[[#This Row],[Hide: Baseline kWh]]=\"\",Table_PI[[#This Row],[Hide: Baseline kWh]]=0,ISTEXT(Table_PI[[#This Row],[Hide: Baseline kWh]])),\"\",Table_PI[[#This Row],[Hide: Baseline kWh]])","v":""},{"$f":"IF(OR(Table_PI[[#This Row],[Hide: Baseline kW]]=\"\",Table_PI[[#This Row],[Hide: Baseline kW]]=0,ISTEXT(Table_PI[[#This Row],[Hide: Baseline kW]])),\"\",Table_PI[[#This Row],[Hide: Baseline kW]])","v":""},{"$f":"IF(OR(Table_PI[[#This Row],[Hide: Proposed kWh]]=\"\",Table_PI[[#This Row],[Hide: Proposed kWh]]=0,ISTEXT(Table_PI[[#This Row],[Hide: Proposed kWh]])),\"\",Table_PI[[#This Row],[Hide: Proposed kWh]])","v":""},{"$f":"IF(OR(Table_PI[[#This Row],[Hide: Proposed kW]]=\"\",Table_PI[[#This Row],[Hide: Proposed kW]]=0,ISTEXT(Table_PI[[#This Row],[Hide: Proposed kW]])),\"\",Table_PI[[#This Row],[Hide: Proposed kW]])","v":""},null,null,{"$f":"IF(OR(Table_PI[[#This Row],[Hide: Rebate]]=\"\",Table_PI[[#This Row],[Hide: Rebate]]=0,ISTEXT(Table_PI[[#This Row],[Hide: Rebate]])),\"\",Table_PI[[#This Row],[Hide: Rebate]])","v":""},null,{"$f":"IF(OR(Table_PI[[#This Row],[Hide: Incremental Cost]]=\"\",Table_PI[[#This Row],[Hide: Incremental Cost]]=0,ISTEXT(Table_PI[[#This Row],[Hide: Incremental Cost]])),\"\",Table_PI[[#This Row],[Hide: Incremental Cost]])","v":""},{"$f":"IFERROR(IF(Table_SummaryPI[[#This Row],[Incentive_Customer]]=\"\",\"\",ROUND(Table_SummaryPI[[#This Row],[Incentive_Customer]]/$AM$401*'Customer Information'!$BC$21,2)),0)","v":""},{"$f":"IF(OR(Table_PI[[#This Row],[Annual kWh]]=\"\",Table_PI[[#This Row],[Annual kWh]]=0,ISTEXT(Table_PI[[#This Row],[Annual kWh]])),\"\",Table_PI[[#This Row],[Annual kWh]])","v":""},{"$f":"IF(OR(Table_PI[[#This Row],[Peak kW]]=\"\",Table_PI[[#This Row],[Peak kW]]=0,ISTEXT(Table_PI[[#This Row],[Peak kW]])),\"\",Table_PI[[#This Row],[Peak kW]])","v":""},{"$f":"IF(Table_SummaryPI[[#This Row],[Line No.]]<>\"\",IF(AND(ISNUMBER(FIND(\"Chiller\",Table_SummaryPI[[#This Row],[P_MeasureOption1]],1)),Table_SummaryPI[[#This Row],[ProposedMeasureCategory]]=\"Air-Cooled (Water-Cooled Replacement)\"),$BD$29*Table_SummaryPI[[#This Row],[Size]]*Table_SummaryPI[[#This Row],[Quantity]]*Table_SummaryPI[[#This Row],[EFLHCooling]],\nIF(ISNUMBER(FIND(\"Dishwasher\",Table_SummaryPI[[#This Row],[ProposedMeasureCategory]],1)),$BH$29*Table_SummaryPI[[#This Row],[Quantity]],\nIF(ISNUMBER(FIND(\"Ice Maker\",Table_SummaryPI[[#This Row],[ProposedMeasureCategory]],1)),$BD$31*Table_SummaryPI[[#This Row],[Quantity]],\nIF(ISNUMBER(FIND(\"Spray Valve\",Table_SummaryPI[[#This Row],[ProposedMeasureCategory]],1)),$BH$31*Table_SummaryPI[[#This Row],[Quantity]],\n0)))),\"\")","v":""},{"$f":"IF(OR(Table_PI[[#This Row],[Hide: Electrification kWh]]=\"\",Table_PI[[#This Row],[Hide: Electrification kWh]]=0,ISTEXT(Table_PI[[#This Row],[Hide: Electrification kWh]])),\"\",Table_PI[[#This Row],[Hide: Electrification kWh]])","v":""},{"$f":"IF(OR(Table_PI[[#This Row],[Hide: Electrification GHG]]=\"\",Table_PI[[#This Row],[Hide: Electrification GHG]]=0,ISTEXT(Table_PI[[#This Row],[Hide: Electrification GHG]])),\"\",Table_PI[[#This Row],[Hide: Electrification GHG]])","v":""},{"$f":"IFERROR(IF(Table_SummaryPI[[#This Row],[kWhSavings]]=\"\",\"\",$BH$9*Table_SummaryPI[[#This Row],[kWhSavings]]),0)","v":""},{"$f":"IFERROR(IF(Table_SummaryPI[[#This Row],[kWhSavings]]=\"\",\"\",$BH$14*Table_SummaryPI[[#This Row],[kWhSavings]]),0)","v":""},{"$f":"IFERROR(IF(Table_SummaryPI[[#This Row],[kWhSavings]]=\"\",\"\",$BH$18*Table_SummaryPI[[#This Row],[kWhSavings]]),0)","v":""},{"$f":"IFERROR(IF(Table_SummaryPI[[#This Row],[kWhSavings]]=\"\",\"\",$BH$22*Table_SummaryPI[[#This Row],[kWhSavings]]),0)","v":""}]
[{"$f":"Table_PI[[#This Row],[Line No.]]","v":""},{"$f":"IF(Table_SummaryPI[[#This Row],[MeasureName]]<>\"\",NOT(ISTEXT(Table_PI[[#This Row],[Rebate]])),\"\")","v":""},{"$f":"IF(Table_SummaryPI[[#This Row],[MeassureCategory]]<>\"\",CONCATENATE(Table_SummaryPI[[#This Row],[MeassureCategory]],  \" - \", Table_SummaryPI[[#This Row],[ProposedMeasureCategory]],  \" - \", TEXT(Table_SummaryPI[[#This Row],[Size]],\"#,##0.00\"),\" \",Table_SummaryPI[[#This Row],[SizeUnit]]),\"\")","v":""},{"$f":"SUBSTITUTE(Table_PI[[#This Row],[Measure]],\"     \",\"\",1)","v":""},{"$f":"IF(Table_PI[[#This Row],[List 1]]<>\"\",Table_PI[[#This Row],[List 1]],\"\")","v":""},{"$f":"IF(Table_PI[[#This Row],[List 2]]<>\"\",Table_PI[[#This Row],[List 2]],\"\")","v":""},{"$f":"IF(Table_PI[[#This Row],[List 3]]<>\"\",Table_PI[[#This Row],[List 3]],\"\")","v":""},{"$f":"IF(Table_PI[[#This Row],[Manufacturer]]=\"\",\"\",Table_PI[[#This Row],[Manufacturer]])","v":""},{"$f":"IF(Table_PI[[#This Row],[Model Number]]=\"\",\"\",Table_PI[[#This Row],[Model Number]])","v":""},{"$f":"IF(Table_PI[[#This Row],[Serial Number(s)]]=\"\",\"\",Table_PI[[#This Row],[Serial Number(s)]])","v":""},null,{"$f":"IF(Table_PI[[#This Row],[Size]]=\"\",\"\",Table_PI[[#This Row],[Size]])","v":""},null,null,{"$f":"IF(Table_PI[[#This Row],[Input 1]]<>\"\",Table_PI[[#This Row],[Input 1]],\"\")","v":""},null,null,{"$f":"IF(Table_PI[[#This Row],[Input 2]]<>\"\",Table_PI[[#This Row],[Input 2]],\"\")","v":""},null,null,{"$f":"IF(Table_PI[[#This Row],[Input 3]]<>\"\",Table_PI[[#This Row],[Input 3]],\"\")","v":""},null,null,{"$f":"IF(Table_PI[[#This Row],[Input 4]]<>\"\",Table_PI[[#This Row],[Input 4]],\"\")","v":""},null,null,{"$f":"IF(Table_PI[[#This Row],[Input 4]]<>\"\",Table_PI[[#This Row],[Input 4]],\"\")","v":""},null,null,{"$f":"IF(Table_PI[[#This Row],[Input 4]]<>\"\",Table_PI[[#This Row],[Input 4]],\"\")","v":""},{"$f":"IF(Table_PI[[#This Row],[Quantity]]=\"\",\"\",Table_PI[[#This Row],[Quantity]])","v":""},{"$f":"IF(Table_PI[[#This Row],[Notes]]=\"\",\"\",Table_PI[[#This Row],[Notes]])","v":""},{"$f":"IF(OR(Table_PI[[#This Row],[Hide: Baseline kWh]]=\"\",Table_PI[[#This Row],[Hide: Baseline kWh]]=0,ISTEXT(Table_PI[[#This Row],[Hide: Baseline kWh]])),\"\",Table_PI[[#This Row],[Hide: Baseline kWh]])","v":""},{"$f":"IF(OR(Table_PI[[#This Row],[Hide: Baseline kW]]=\"\",Table_PI[[#This Row],[Hide: Baseline kW]]=0,ISTEXT(Table_PI[[#This Row],[Hide: Baseline kW]])),\"\",Table_PI[[#This Row],[Hide: Baseline kW]])","v":""},{"$f":"IF(OR(Table_PI[[#This Row],[Hide: Proposed kWh]]=\"\",Table_PI[[#This Row],[Hide: Proposed kWh]]=0,ISTEXT(Table_PI[[#This Row],[Hide: Proposed kWh]])),\"\",Table_PI[[#This Row],[Hide: Proposed kWh]])","v":""},{"$f":"IF(OR(Table_PI[[#This Row],[Hide: Proposed kW]]=\"\",Table_PI[[#This Row],[Hide: Proposed kW]]=0,ISTEXT(Table_PI[[#This Row],[Hide: Proposed kW]])),\"\",Table_PI[[#This Row],[Hide: Proposed kW]])","v":""},null,null,{"$f":"IF(OR(Table_PI[[#This Row],[Hide: Rebate]]=\"\",Table_PI[[#This Row],[Hide: Rebate]]=0,ISTEXT(Table_PI[[#This Row],[Hide: Rebate]])),\"\",Table_PI[[#This Row],[Hide: Rebate]])","v":""},null,{"$f":"IF(OR(Table_PI[[#This Row],[Hide: Incremental Cost]]=\"\",Table_PI[[#This Row],[Hide: Incremental Cost]]=0,ISTEXT(Table_PI[[#This Row],[Hide: Incremental Cost]])),\"\",Table_PI[[#This Row],[Hide: Incremental Cost]])","v":""},{"$f":"IFERROR(IF(Table_SummaryPI[[#This Row],[Incentive_Customer]]=\"\",\"\",ROUND(Table_SummaryPI[[#This Row],[Incentive_Customer]]/$AM$401*'Customer Information'!$BC$21,2)),0)","v":""},{"$f":"IF(OR(Table_PI[[#This Row],[Annual kWh]]=\"\",Table_PI[[#This Row],[Annual kWh]]=0,ISTEXT(Table_PI[[#This Row],[Annual kWh]])),\"\",Table_PI[[#This Row],[Annual kWh]])","v":""},{"$f":"IF(OR(Table_PI[[#This Row],[Peak kW]]=\"\",Table_PI[[#This Row],[Peak kW]]=0,ISTEXT(Table_PI[[#This Row],[Peak kW]])),\"\",Table_PI[[#This Row],[Peak kW]])","v":""},{"$f":"IF(Table_SummaryPI[[#This Row],[Line No.]]<>\"\",IF(AND(ISNUMBER(FIND(\"Chiller\",Table_SummaryPI[[#This Row],[P_MeasureOption1]],1)),Table_SummaryPI[[#This Row],[ProposedMeasureCategory]]=\"Air-Cooled (Water-Cooled Replacement)\"),$BD$29*Table_SummaryPI[[#This Row],[Size]]*Table_SummaryPI[[#This Row],[Quantity]]*Table_SummaryPI[[#This Row],[EFLHCooling]],\nIF(ISNUMBER(FIND(\"Dishwasher\",Table_SummaryPI[[#This Row],[ProposedMeasureCategory]],1)),$BH$29*Table_SummaryPI[[#This Row],[Quantity]],\nIF(ISNUMBER(FIND(\"Ice Maker\",Table_SummaryPI[[#This Row],[ProposedMeasureCategory]],1)),$BD$31*Table_SummaryPI[[#This Row],[Quantity]],\nIF(ISNUMBER(FIND(\"Spray Valve\",Table_SummaryPI[[#This Row],[ProposedMeasureCategory]],1)),$BH$31*Table_SummaryPI[[#This Row],[Quantity]],\n0)))),\"\")","v":""},{"$f":"IF(OR(Table_PI[[#This Row],[Hide: Electrification kWh]]=\"\",Table_PI[[#This Row],[Hide: Electrification kWh]]=0,ISTEXT(Table_PI[[#This Row],[Hide: Electrification kWh]])),\"\",Table_PI[[#This Row],[Hide: Electrification kWh]])","v":""},{"$f":"IF(OR(Table_PI[[#This Row],[Hide: Electrification GHG]]=\"\",Table_PI[[#This Row],[Hide: Electrification GHG]]=0,ISTEXT(Table_PI[[#This Row],[Hide: Electrification GHG]])),\"\",Table_PI[[#This Row],[Hide: Electrification GHG]])","v":""},{"$f":"IFERROR(IF(Table_SummaryPI[[#This Row],[kWhSavings]]=\"\",\"\",$BH$9*Table_SummaryPI[[#This Row],[kWhSavings]]),0)","v":""},{"$f":"IFERROR(IF(Table_SummaryPI[[#This Row],[kWhSavings]]=\"\",\"\",$BH$14*Table_SummaryPI[[#This Row],[kWhSavings]]),0)","v":""},{"$f":"IFERROR(IF(Table_SummaryPI[[#This Row],[kWhSavings]]=\"\",\"\",$BH$18*Table_SummaryPI[[#This Row],[kWhSavings]]),0)","v":""},{"$f":"IFERROR(IF(Table_SummaryPI[[#This Row],[kWhSavings]]=\"\",\"\",$BH$22*Table_SummaryPI[[#This Row],[kWhSavings]]),0)","v":""}]
[{"$f":"Table_PI[[#This Row],[Line No.]]","v":""},{"$f":"IF(Table_SummaryPI[[#This Row],[MeasureName]]<>\"\",NOT(ISTEXT(Table_PI[[#This Row],[Rebate]])),\"\")","v":""},{"$f":"IF(Table_SummaryPI[[#This Row],[MeassureCategory]]<>\"\",CONCATENATE(Table_SummaryPI[[#This Row],[MeassureCategory]],  \" - \", Table_SummaryPI[[#This Row],[ProposedMeasureCategory]],  \" - \", TEXT(Table_SummaryPI[[#This Row],[Size]],\"#,##0.00\"),\" \",Table_SummaryPI[[#This Row],[SizeUnit]]),\"\")","v":""},{"$f":"SUBSTITUTE(Table_PI[[#This Row],[Measure]],\"     \",\"\",1)","v":""},{"$f":"IF(Table_PI[[#This Row],[List 1]]<>\"\",Table_PI[[#This Row],[List 1]],\"\")","v":""},{"$f":"IF(Table_PI[[#This Row],[List 2]]<>\"\",Table_PI[[#This Row],[List 2]],\"\")","v":""},{"$f":"IF(Table_PI[[#This Row],[List 3]]<>\"\",Table_PI[[#This Row],[List 3]],\"\")","v":""},{"$f":"IF(Table_PI[[#This Row],[Manufacturer]]=\"\",\"\",Table_PI[[#This Row],[Manufacturer]])","v":""},{"$f":"IF(Table_PI[[#This Row],[Model Number]]=\"\",\"\",Table_PI[[#This Row],[Model Number]])","v":""},{"$f":"IF(Table_PI[[#This Row],[Serial Number(s)]]=\"\",\"\",Table_PI[[#This Row],[Serial Number(s)]])","v":""},null,{"$f":"IF(Table_PI[[#This Row],[Size]]=\"\",\"\",Table_PI[[#This Row],[Size]])","v":""},null,null,{"$f":"IF(Table_PI[[#This Row],[Input 1]]<>\"\",Table_PI[[#This Row],[Input 1]],\"\")","v":""},null,null,{"$f":"IF(Table_PI[[#This Row],[Input 2]]<>\"\",Table_PI[[#This Row],[Input 2]],\"\")","v":""},null,null,{"$f":"IF(Table_PI[[#This Row],[Input 3]]<>\"\",Table_PI[[#This Row],[Input 3]],\"\")","v":""},null,null,{"$f":"IF(Table_PI[[#This Row],[Input 4]]<>\"\",Table_PI[[#This Row],[Input 4]],\"\")","v":""},null,null,{"$f":"IF(Table_PI[[#This Row],[Input 4]]<>\"\",Table_PI[[#This Row],[Input 4]],\"\")","v":""},null,null,{"$f":"IF(Table_PI[[#This Row],[Input 4]]<>\"\",Table_PI[[#This Row],[Input 4]],\"\")","v":""},{"$f":"IF(Table_PI[[#This Row],[Quantity]]=\"\",\"\",Table_PI[[#This Row],[Quantity]])","v":""},{"$f":"IF(Table_PI[[#This Row],[Notes]]=\"\",\"\",Table_PI[[#This Row],[Notes]])","v":""},{"$f":"IF(OR(Table_PI[[#This Row],[Hide: Baseline kWh]]=\"\",Table_PI[[#This Row],[Hide: Baseline kWh]]=0,ISTEXT(Table_PI[[#This Row],[Hide: Baseline kWh]])),\"\",Table_PI[[#This Row],[Hide: Baseline kWh]])","v":""},{"$f":"IF(OR(Table_PI[[#This Row],[Hide: Baseline kW]]=\"\",Table_PI[[#This Row],[Hide: Baseline kW]]=0,ISTEXT(Table_PI[[#This Row],[Hide: Baseline kW]])),\"\",Table_PI[[#This Row],[Hide: Baseline kW]])","v":""},{"$f":"IF(OR(Table_PI[[#This Row],[Hide: Proposed kWh]]=\"\",Table_PI[[#This Row],[Hide: Proposed kWh]]=0,ISTEXT(Table_PI[[#This Row],[Hide: Proposed kWh]])),\"\",Table_PI[[#This Row],[Hide: Proposed kWh]])","v":""},{"$f":"IF(OR(Table_PI[[#This Row],[Hide: Proposed kW]]=\"\",Table_PI[[#This Row],[Hide: Proposed kW]]=0,ISTEXT(Table_PI[[#This Row],[Hide: Proposed kW]])),\"\",Table_PI[[#This Row],[Hide: Proposed kW]])","v":""},null,null,{"$f":"IF(OR(Table_PI[[#This Row],[Hide: Rebate]]=\"\",Table_PI[[#This Row],[Hide: Rebate]]=0,ISTEXT(Table_PI[[#This Row],[Hide: Rebate]])),\"\",Table_PI[[#This Row],[Hide: Rebate]])","v":""},null,{"$f":"IF(OR(Table_PI[[#This Row],[Hide: Incremental Cost]]=\"\",Table_PI[[#This Row],[Hide: Incremental Cost]]=0,ISTEXT(Table_PI[[#This Row],[Hide: Incremental Cost]])),\"\",Table_PI[[#This Row],[Hide: Incremental Cost]])","v":""},{"$f":"IFERROR(IF(Table_SummaryPI[[#This Row],[Incentive_Customer]]=\"\",\"\",ROUND(Table_SummaryPI[[#This Row],[Incentive_Customer]]/$AM$401*'Customer Information'!$BC$21,2)),0)","v":""},{"$f":"IF(OR(Table_PI[[#This Row],[Annual kWh]]=\"\",Table_PI[[#This Row],[Annual kWh]]=0,ISTEXT(Table_PI[[#This Row],[Annual kWh]])),\"\",Table_PI[[#This Row],[Annual kWh]])","v":""},{"$f":"IF(OR(Table_PI[[#This Row],[Peak kW]]=\"\",Table_PI[[#This Row],[Peak kW]]=0,ISTEXT(Table_PI[[#This Row],[Peak kW]])),\"\",Table_PI[[#This Row],[Peak kW]])","v":""},{"$f":"IF(Table_SummaryPI[[#This Row],[Line No.]]<>\"\",IF(AND(ISNUMBER(FIND(\"Chiller\",Table_SummaryPI[[#This Row],[P_MeasureOption1]],1)),Table_SummaryPI[[#This Row],[ProposedMeasureCategory]]=\"Air-Cooled (Water-Cooled Replacement)\"),$BD$29*Table_SummaryPI[[#This Row],[Size]]*Table_SummaryPI[[#This Row],[Quantity]]*Table_SummaryPI[[#This Row],[EFLHCooling]],\nIF(ISNUMBER(FIND(\"Dishwasher\",Table_SummaryPI[[#This Row],[ProposedMeasureCategory]],1)),$BH$29*Table_SummaryPI[[#This Row],[Quantity]],\nIF(ISNUMBER(FIND(\"Ice Maker\",Table_SummaryPI[[#This Row],[ProposedMeasureCategory]],1)),$BD$31*Table_SummaryPI[[#This Row],[Quantity]],\nIF(ISNUMBER(FIND(\"Spray Valve\",Table_SummaryPI[[#This Row],[ProposedMeasureCategory]],1)),$BH$31*Table_SummaryPI[[#This Row],[Quantity]],\n0)))),\"\")","v":""},{"$f":"IF(OR(Table_PI[[#This Row],[Hide: Electrification kWh]]=\"\",Table_PI[[#This Row],[Hide: Electrification kWh]]=0,ISTEXT(Table_PI[[#This Row],[Hide: Electrification kWh]])),\"\",Table_PI[[#This Row],[Hide: Electrification kWh]])","v":""},{"$f":"IF(OR(Table_PI[[#This Row],[Hide: Electrification GHG]]=\"\",Table_PI[[#This Row],[Hide: Electrification GHG]]=0,ISTEXT(Table_PI[[#This Row],[Hide: Electrification GHG]])),\"\",Table_PI[[#This Row],[Hide: Electrification GHG]])","v":""},{"$f":"IFERROR(IF(Table_SummaryPI[[#This Row],[kWhSavings]]=\"\",\"\",$BH$9*Table_SummaryPI[[#This Row],[kWhSavings]]),0)","v":""},{"$f":"IFERROR(IF(Table_SummaryPI[[#This Row],[kWhSavings]]=\"\",\"\",$BH$14*Table_SummaryPI[[#This Row],[kWhSavings]]),0)","v":""},{"$f":"IFERROR(IF(Table_SummaryPI[[#This Row],[kWhSavings]]=\"\",\"\",$BH$18*Table_SummaryPI[[#This Row],[kWhSavings]]),0)","v":""},{"$f":"IFERROR(IF(Table_SummaryPI[[#This Row],[kWhSavings]]=\"\",\"\",$BH$22*Table_SummaryPI[[#This Row],[kWhSavings]]),0)","v":""}]
[{"$f":"Table_PI[[#This Row],[Line No.]]","v":""},{"$f":"IF(Table_SummaryPI[[#This Row],[MeasureName]]<>\"\",NOT(ISTEXT(Table_PI[[#This Row],[Rebate]])),\"\")","v":""},{"$f":"IF(Table_SummaryPI[[#This Row],[MeassureCategory]]<>\"\",CONCATENATE(Table_SummaryPI[[#This Row],[MeassureCategory]],  \" - \", Table_SummaryPI[[#This Row],[ProposedMeasureCategory]],  \" - \", TEXT(Table_SummaryPI[[#This Row],[Size]],\"#,##0.00\"),\" \",Table_SummaryPI[[#This Row],[SizeUnit]]),\"\")","v":""},{"$f":"SUBSTITUTE(Table_PI[[#This Row],[Measure]],\"     \",\"\",1)","v":""},{"$f":"IF(Table_PI[[#This Row],[List 1]]<>\"\",Table_PI[[#This Row],[List 1]],\"\")","v":""},{"$f":"IF(Table_PI[[#This Row],[List 2]]<>\"\",Table_PI[[#This Row],[List 2]],\"\")","v":""},{"$f":"IF(Table_PI[[#This Row],[List 3]]<>\"\",Table_PI[[#This Row],[List 3]],\"\")","v":""},{"$f":"IF(Table_PI[[#This Row],[Manufacturer]]=\"\",\"\",Table_PI[[#This Row],[Manufacturer]])","v":""},{"$f":"IF(Table_PI[[#This Row],[Model Number]]=\"\",\"\",Table_PI[[#This Row],[Model Number]])","v":""},{"$f":"IF(Table_PI[[#This Row],[Serial Number(s)]]=\"\",\"\",Table_PI[[#This Row],[Serial Number(s)]])","v":""},null,{"$f":"IF(Table_PI[[#This Row],[Size]]=\"\",\"\",Table_PI[[#This Row],[Size]])","v":""},null,null,{"$f":"IF(Table_PI[[#This Row],[Input 1]]<>\"\",Table_PI[[#This Row],[Input 1]],\"\")","v":""},null,null,{"$f":"IF(Table_PI[[#This Row],[Input 2]]<>\"\",Table_PI[[#This Row],[Input 2]],\"\")","v":""},null,null,{"$f":"IF(Table_PI[[#This Row],[Input 3]]<>\"\",Table_PI[[#This Row],[Input 3]],\"\")","v":""},null,null,{"$f":"IF(Table_PI[[#This Row],[Input 4]]<>\"\",Table_PI[[#This Row],[Input 4]],\"\")","v":""},null,null,{"$f":"IF(Table_PI[[#This Row],[Input 4]]<>\"\",Table_PI[[#This Row],[Input 4]],\"\")","v":""},null,null,{"$f":"IF(Table_PI[[#This Row],[Input 4]]<>\"\",Table_PI[[#This Row],[Input 4]],\"\")","v":""},{"$f":"IF(Table_PI[[#This Row],[Quantity]]=\"\",\"\",Table_PI[[#This Row],[Quantity]])","v":""},{"$f":"IF(Table_PI[[#This Row],[Notes]]=\"\",\"\",Table_PI[[#This Row],[Notes]])","v":""},{"$f":"IF(OR(Table_PI[[#This Row],[Hide: Baseline kWh]]=\"\",Table_PI[[#This Row],[Hide: Baseline kWh]]=0,ISTEXT(Table_PI[[#This Row],[Hide: Baseline kWh]])),\"\",Table_PI[[#This Row],[Hide: Baseline kWh]])","v":""},{"$f":"IF(OR(Table_PI[[#This Row],[Hide: Baseline kW]]=\"\",Table_PI[[#This Row],[Hide: Baseline kW]]=0,ISTEXT(Table_PI[[#This Row],[Hide: Baseline kW]])),\"\",Table_PI[[#This Row],[Hide: Baseline kW]])","v":""},{"$f":"IF(OR(Table_PI[[#This Row],[Hide: Proposed kWh]]=\"\",Table_PI[[#This Row],[Hide: Proposed kWh]]=0,ISTEXT(Table_PI[[#This Row],[Hide: Proposed kWh]])),\"\",Table_PI[[#This Row],[Hide: Proposed kWh]])","v":""},{"$f":"IF(OR(Table_PI[[#This Row],[Hide: Proposed kW]]=\"\",Table_PI[[#This Row],[Hide: Proposed kW]]=0,ISTEXT(Table_PI[[#This Row],[Hide: Proposed kW]])),\"\",Table_PI[[#This Row],[Hide: Proposed kW]])","v":""},null,null,{"$f":"IF(OR(Table_PI[[#This Row],[Hide: Rebate]]=\"\",Table_PI[[#This Row],[Hide: Rebate]]=0,ISTEXT(Table_PI[[#This Row],[Hide: Rebate]])),\"\",Table_PI[[#This Row],[Hide: Rebate]])","v":""},null,{"$f":"IF(OR(Table_PI[[#This Row],[Hide: Incremental Cost]]=\"\",Table_PI[[#This Row],[Hide: Incremental Cost]]=0,ISTEXT(Table_PI[[#This Row],[Hide: Incremental Cost]])),\"\",Table_PI[[#This Row],[Hide: Incremental Cost]])","v":""},{"$f":"IFERROR(IF(Table_SummaryPI[[#This Row],[Incentive_Customer]]=\"\",\"\",ROUND(Table_SummaryPI[[#This Row],[Incentive_Customer]]/$AM$401*'Customer Information'!$BC$21,2)),0)","v":""},{"$f":"IF(OR(Table_PI[[#This Row],[Annual kWh]]=\"\",Table_PI[[#This Row],[Annual kWh]]=0,ISTEXT(Table_PI[[#This Row],[Annual kWh]])),\"\",Table_PI[[#This Row],[Annual kWh]])","v":""},{"$f":"IF(OR(Table_PI[[#This Row],[Peak kW]]=\"\",Table_PI[[#This Row],[Peak kW]]=0,ISTEXT(Table_PI[[#This Row],[Peak kW]])),\"\",Table_PI[[#This Row],[Peak kW]])","v":""},{"$f":"IF(Table_SummaryPI[[#This Row],[Line No.]]<>\"\",IF(AND(ISNUMBER(FIND(\"Chiller\",Table_SummaryPI[[#This Row],[P_MeasureOption1]],1)),Table_SummaryPI[[#This Row],[ProposedMeasureCategory]]=\"Air-Cooled (Water-Cooled Replacement)\"),$BD$29*Table_SummaryPI[[#This Row],[Size]]*Table_SummaryPI[[#This Row],[Quantity]]*Table_SummaryPI[[#This Row],[EFLHCooling]],\nIF(ISNUMBER(FIND(\"Dishwasher\",Table_SummaryPI[[#This Row],[ProposedMeasureCategory]],1)),$BH$29*Table_SummaryPI[[#This Row],[Quantity]],\nIF(ISNUMBER(FIND(\"Ice Maker\",Table_SummaryPI[[#This Row],[ProposedMeasureCategory]],1)),$BD$31*Table_SummaryPI[[#This Row],[Quantity]],\nIF(ISNUMBER(FIND(\"Spray Valve\",Table_SummaryPI[[#This Row],[ProposedMeasureCategory]],1)),$BH$31*Table_SummaryPI[[#This Row],[Quantity]],\n0)))),\"\")","v":""},{"$f":"IF(OR(Table_PI[[#This Row],[Hide: Electrification kWh]]=\"\",Table_PI[[#This Row],[Hide: Electrification kWh]]=0,ISTEXT(Table_PI[[#This Row],[Hide: Electrification kWh]])),\"\",Table_PI[[#This Row],[Hide: Electrification kWh]])","v":""},{"$f":"IF(OR(Table_PI[[#This Row],[Hide: Electrification GHG]]=\"\",Table_PI[[#This Row],[Hide: Electrification GHG]]=0,ISTEXT(Table_PI[[#This Row],[Hide: Electrification GHG]])),\"\",Table_PI[[#This Row],[Hide: Electrification GHG]])","v":""},{"$f":"IFERROR(IF(Table_SummaryPI[[#This Row],[kWhSavings]]=\"\",\"\",$BH$9*Table_SummaryPI[[#This Row],[kWhSavings]]),0)","v":""},{"$f":"IFERROR(IF(Table_SummaryPI[[#This Row],[kWhSavings]]=\"\",\"\",$BH$14*Table_SummaryPI[[#This Row],[kWhSavings]]),0)","v":""},{"$f":"IFERROR(IF(Table_SummaryPI[[#This Row],[kWhSavings]]=\"\",\"\",$BH$18*Table_SummaryPI[[#This Row],[kWhSavings]]),0)","v":""},{"$f":"IFERROR(IF(Table_SummaryPI[[#This Row],[kWhSavings]]=\"\",\"\",$BH$22*Table_SummaryPI[[#This Row],[kWhSavings]]),0)","v":""}]
[{"$f":"Table_PI[[#This Row],[Line No.]]","v":""},{"$f":"IF(Table_SummaryPI[[#This Row],[MeasureName]]<>\"\",NOT(ISTEXT(Table_PI[[#This Row],[Rebate]])),\"\")","v":""},{"$f":"IF(Table_SummaryPI[[#This Row],[MeassureCategory]]<>\"\",CONCATENATE(Table_SummaryPI[[#This Row],[MeassureCategory]],  \" - \", Table_SummaryPI[[#This Row],[ProposedMeasureCategory]],  \" - \", TEXT(Table_SummaryPI[[#This Row],[Size]],\"#,##0.00\"),\" \",Table_SummaryPI[[#This Row],[SizeUnit]]),\"\")","v":""},{"$f":"SUBSTITUTE(Table_PI[[#This Row],[Measure]],\"     \",\"\",1)","v":""},{"$f":"IF(Table_PI[[#This Row],[List 1]]<>\"\",Table_PI[[#This Row],[List 1]],\"\")","v":""},{"$f":"IF(Table_PI[[#This Row],[List 2]]<>\"\",Table_PI[[#This Row],[List 2]],\"\")","v":""},{"$f":"IF(Table_PI[[#This Row],[List 3]]<>\"\",Table_PI[[#This Row],[List 3]],\"\")","v":""},{"$f":"IF(Table_PI[[#This Row],[Manufacturer]]=\"\",\"\",Table_PI[[#This Row],[Manufacturer]])","v":""},{"$f":"IF(Table_PI[[#This Row],[Model Number]]=\"\",\"\",Table_PI[[#This Row],[Model Number]])","v":""},{"$f":"IF(Table_PI[[#This Row],[Serial Number(s)]]=\"\",\"\",Table_PI[[#This Row],[Serial Number(s)]])","v":""},null,{"$f":"IF(Table_PI[[#This Row],[Size]]=\"\",\"\",Table_PI[[#This Row],[Size]])","v":""},null,null,{"$f":"IF(Table_PI[[#This Row],[Input 1]]<>\"\",Table_PI[[#This Row],[Input 1]],\"\")","v":""},null,null,{"$f":"IF(Table_PI[[#This Row],[Input 2]]<>\"\",Table_PI[[#This Row],[Input 2]],\"\")","v":""},null,null,{"$f":"IF(Table_PI[[#This Row],[Input 3]]<>\"\",Table_PI[[#This Row],[Input 3]],\"\")","v":""},null,null,{"$f":"IF(Table_PI[[#This Row],[Input 4]]<>\"\",Table_PI[[#This Row],[Input 4]],\"\")","v":""},null,null,{"$f":"IF(Table_PI[[#This Row],[Input 4]]<>\"\",Table_PI[[#This Row],[Input 4]],\"\")","v":""},null,null,{"$f":"IF(Table_PI[[#This Row],[Input 4]]<>\"\",Table_PI[[#This Row],[Input 4]],\"\")","v":""},{"$f":"IF(Table_PI[[#This Row],[Quantity]]=\"\",\"\",Table_PI[[#This Row],[Quantity]])","v":""},{"$f":"IF(Table_PI[[#This Row],[Notes]]=\"\",\"\",Table_PI[[#This Row],[Notes]])","v":""},{"$f":"IF(OR(Table_PI[[#This Row],[Hide: Baseline kWh]]=\"\",Table_PI[[#This Row],[Hide: Baseline kWh]]=0,ISTEXT(Table_PI[[#This Row],[Hide: Baseline kWh]])),\"\",Table_PI[[#This Row],[Hide: Baseline kWh]])","v":""},{"$f":"IF(OR(Table_PI[[#This Row],[Hide: Baseline kW]]=\"\",Table_PI[[#This Row],[Hide: Baseline kW]]=0,ISTEXT(Table_PI[[#This Row],[Hide: Baseline kW]])),\"\",Table_PI[[#This Row],[Hide: Baseline kW]])","v":""},{"$f":"IF(OR(Table_PI[[#This Row],[Hide: Proposed kWh]]=\"\",Table_PI[[#This Row],[Hide: Proposed kWh]]=0,ISTEXT(Table_PI[[#This Row],[Hide: Proposed kWh]])),\"\",Table_PI[[#This Row],[Hide: Proposed kWh]])","v":""},{"$f":"IF(OR(Table_PI[[#This Row],[Hide: Proposed kW]]=\"\",Table_PI[[#This Row],[Hide: Proposed kW]]=0,ISTEXT(Table_PI[[#This Row],[Hide: Proposed kW]])),\"\",Table_PI[[#This Row],[Hide: Proposed kW]])","v":""},null,null,{"$f":"IF(OR(Table_PI[[#This Row],[Hide: Rebate]]=\"\",Table_PI[[#This Row],[Hide: Rebate]]=0,ISTEXT(Table_PI[[#This Row],[Hide: Rebate]])),\"\",Table_PI[[#This Row],[Hide: Rebate]])","v":""},null,{"$f":"IF(OR(Table_PI[[#This Row],[Hide: Incremental Cost]]=\"\",Table_PI[[#This Row],[Hide: Incremental Cost]]=0,ISTEXT(Table_PI[[#This Row],[Hide: Incremental Cost]])),\"\",Table_PI[[#This Row],[Hide: Incremental Cost]])","v":""},{"$f":"IFERROR(IF(Table_SummaryPI[[#This Row],[Incentive_Customer]]=\"\",\"\",ROUND(Table_SummaryPI[[#This Row],[Incentive_Customer]]/$AM$401*'Customer Information'!$BC$21,2)),0)","v":""},{"$f":"IF(OR(Table_PI[[#This Row],[Annual kWh]]=\"\",Table_PI[[#This Row],[Annual kWh]]=0,ISTEXT(Table_PI[[#This Row],[Annual kWh]])),\"\",Table_PI[[#This Row],[Annual kWh]])","v":""},{"$f":"IF(OR(Table_PI[[#This Row],[Peak kW]]=\"\",Table_PI[[#This Row],[Peak kW]]=0,ISTEXT(Table_PI[[#This Row],[Peak kW]])),\"\",Table_PI[[#This Row],[Peak kW]])","v":""},{"$f":"IF(Table_SummaryPI[[#This Row],[Line No.]]<>\"\",IF(AND(ISNUMBER(FIND(\"Chiller\",Table_SummaryPI[[#This Row],[P_MeasureOption1]],1)),Table_SummaryPI[[#This Row],[ProposedMeasureCategory]]=\"Air-Cooled (Water-Cooled Replacement)\"),$BD$29*Table_SummaryPI[[#This Row],[Size]]*Table_SummaryPI[[#This Row],[Quantity]]*Table_SummaryPI[[#This Row],[EFLHCooling]],\nIF(ISNUMBER(FIND(\"Dishwasher\",Table_SummaryPI[[#This Row],[ProposedMeasureCategory]],1)),$BH$29*Table_SummaryPI[[#This Row],[Quantity]],\nIF(ISNUMBER(FIND(\"Ice Maker\",Table_SummaryPI[[#This Row],[ProposedMeasureCategory]],1)),$BD$31*Table_SummaryPI[[#This Row],[Quantity]],\nIF(ISNUMBER(FIND(\"Spray Valve\",Table_SummaryPI[[#This Row],[ProposedMeasureCategory]],1)),$BH$31*Table_SummaryPI[[#This Row],[Quantity]],\n0)))),\"\")","v":""},{"$f":"IF(OR(Table_PI[[#This Row],[Hide: Electrification kWh]]=\"\",Table_PI[[#This Row],[Hide: Electrification kWh]]=0,ISTEXT(Table_PI[[#This Row],[Hide: Electrification kWh]])),\"\",Table_PI[[#This Row],[Hide: Electrification kWh]])","v":""},{"$f":"IF(OR(Table_PI[[#This Row],[Hide: Electrification GHG]]=\"\",Table_PI[[#This Row],[Hide: Electrification GHG]]=0,ISTEXT(Table_PI[[#This Row],[Hide: Electrification GHG]])),\"\",Table_PI[[#This Row],[Hide: Electrification GHG]])","v":""},{"$f":"IFERROR(IF(Table_SummaryPI[[#This Row],[kWhSavings]]=\"\",\"\",$BH$9*Table_SummaryPI[[#This Row],[kWhSavings]]),0)","v":""},{"$f":"IFERROR(IF(Table_SummaryPI[[#This Row],[kWhSavings]]=\"\",\"\",$BH$14*Table_SummaryPI[[#This Row],[kWhSavings]]),0)","v":""},{"$f":"IFERROR(IF(Table_SummaryPI[[#This Row],[kWhSavings]]=\"\",\"\",$BH$18*Table_SummaryPI[[#This Row],[kWhSavings]]),0)","v":""},{"$f":"IFERROR(IF(Table_SummaryPI[[#This Row],[kWhSavings]]=\"\",\"\",$BH$22*Table_SummaryPI[[#This Row],[kWhSavings]]),0)","v":""}]
[{"$f":"Table_PI[[#This Row],[Line No.]]","v":""},{"$f":"IF(Table_SummaryPI[[#This Row],[MeasureName]]<>\"\",NOT(ISTEXT(Table_PI[[#This Row],[Rebate]])),\"\")","v":""},{"$f":"IF(Table_SummaryPI[[#This Row],[MeassureCategory]]<>\"\",CONCATENATE(Table_SummaryPI[[#This Row],[MeassureCategory]],  \" - \", Table_SummaryPI[[#This Row],[ProposedMeasureCategory]],  \" - \", TEXT(Table_SummaryPI[[#This Row],[Size]],\"#,##0.00\"),\" \",Table_SummaryPI[[#This Row],[SizeUnit]]),\"\")","v":""},{"$f":"SUBSTITUTE(Table_PI[[#This Row],[Measure]],\"     \",\"\",1)","v":""},{"$f":"IF(Table_PI[[#This Row],[List 1]]<>\"\",Table_PI[[#This Row],[List 1]],\"\")","v":""},{"$f":"IF(Table_PI[[#This Row],[List 2]]<>\"\",Table_PI[[#This Row],[List 2]],\"\")","v":""},{"$f":"IF(Table_PI[[#This Row],[List 3]]<>\"\",Table_PI[[#This Row],[List 3]],\"\")","v":""},{"$f":"IF(Table_PI[[#This Row],[Manufacturer]]=\"\",\"\",Table_PI[[#This Row],[Manufacturer]])","v":""},{"$f":"IF(Table_PI[[#This Row],[Model Number]]=\"\",\"\",Table_PI[[#This Row],[Model Number]])","v":""},{"$f":"IF(Table_PI[[#This Row],[Serial Number(s)]]=\"\",\"\",Table_PI[[#This Row],[Serial Number(s)]])","v":""},null,{"$f":"IF(Table_PI[[#This Row],[Size]]=\"\",\"\",Table_PI[[#This Row],[Size]])","v":""},null,null,{"$f":"IF(Table_PI[[#This Row],[Input 1]]<>\"\",Table_PI[[#This Row],[Input 1]],\"\")","v":""},null,null,{"$f":"IF(Table_PI[[#This Row],[Input 2]]<>\"\",Table_PI[[#This Row],[Input 2]],\"\")","v":""},null,null,{"$f":"IF(Table_PI[[#This Row],[Input 3]]<>\"\",Table_PI[[#This Row],[Input 3]],\"\")","v":""},null,null,{"$f":"IF(Table_PI[[#This Row],[Input 4]]<>\"\",Table_PI[[#This Row],[Input 4]],\"\")","v":""},null,null,{"$f":"IF(Table_PI[[#This Row],[Input 4]]<>\"\",Table_PI[[#This Row],[Input 4]],\"\")","v":""},null,null,{"$f":"IF(Table_PI[[#This Row],[Input 4]]<>\"\",Table_PI[[#This Row],[Input 4]],\"\")","v":""},{"$f":"IF(Table_PI[[#This Row],[Quantity]]=\"\",\"\",Table_PI[[#This Row],[Quantity]])","v":""},{"$f":"IF(Table_PI[[#This Row],[Notes]]=\"\",\"\",Table_PI[[#This Row],[Notes]])","v":""},{"$f":"IF(OR(Table_PI[[#This Row],[Hide: Baseline kWh]]=\"\",Table_PI[[#This Row],[Hide: Baseline kWh]]=0,ISTEXT(Table_PI[[#This Row],[Hide: Baseline kWh]])),\"\",Table_PI[[#This Row],[Hide: Baseline kWh]])","v":""},{"$f":"IF(OR(Table_PI[[#This Row],[Hide: Baseline kW]]=\"\",Table_PI[[#This Row],[Hide: Baseline kW]]=0,ISTEXT(Table_PI[[#This Row],[Hide: Baseline kW]])),\"\",Table_PI[[#This Row],[Hide: Baseline kW]])","v":""},{"$f":"IF(OR(Table_PI[[#This Row],[Hide: Proposed kWh]]=\"\",Table_PI[[#This Row],[Hide: Proposed kWh]]=0,ISTEXT(Table_PI[[#This Row],[Hide: Proposed kWh]])),\"\",Table_PI[[#This Row],[Hide: Proposed kWh]])","v":""},{"$f":"IF(OR(Table_PI[[#This Row],[Hide: Proposed kW]]=\"\",Table_PI[[#This Row],[Hide: Proposed kW]]=0,ISTEXT(Table_PI[[#This Row],[Hide: Proposed kW]])),\"\",Table_PI[[#This Row],[Hide: Proposed kW]])","v":""},null,null,{"$f":"IF(OR(Table_PI[[#This Row],[Hide: Rebate]]=\"\",Table_PI[[#This Row],[Hide: Rebate]]=0,ISTEXT(Table_PI[[#This Row],[Hide: Rebate]])),\"\",Table_PI[[#This Row],[Hide: Rebate]])","v":""},null,{"$f":"IF(OR(Table_PI[[#This Row],[Hide: Incremental Cost]]=\"\",Table_PI[[#This Row],[Hide: Incremental Cost]]=0,ISTEXT(Table_PI[[#This Row],[Hide: Incremental Cost]])),\"\",Table_PI[[#This Row],[Hide: Incremental Cost]])","v":""},{"$f":"IFERROR(IF(Table_SummaryPI[[#This Row],[Incentive_Customer]]=\"\",\"\",ROUND(Table_SummaryPI[[#This Row],[Incentive_Customer]]/$AM$401*'Customer Information'!$BC$21,2)),0)","v":""},{"$f":"IF(OR(Table_PI[[#This Row],[Annual kWh]]=\"\",Table_PI[[#This Row],[Annual kWh]]=0,ISTEXT(Table_PI[[#This Row],[Annual kWh]])),\"\",Table_PI[[#This Row],[Annual kWh]])","v":""},{"$f":"IF(OR(Table_PI[[#This Row],[Peak kW]]=\"\",Table_PI[[#This Row],[Peak kW]]=0,ISTEXT(Table_PI[[#This Row],[Peak kW]])),\"\",Table_PI[[#This Row],[Peak kW]])","v":""},{"$f":"IF(Table_SummaryPI[[#This Row],[Line No.]]<>\"\",IF(AND(ISNUMBER(FIND(\"Chiller\",Table_SummaryPI[[#This Row],[P_MeasureOption1]],1)),Table_SummaryPI[[#This Row],[ProposedMeasureCategory]]=\"Air-Cooled (Water-Cooled Replacement)\"),$BD$29*Table_SummaryPI[[#This Row],[Size]]*Table_SummaryPI[[#This Row],[Quantity]]*Table_SummaryPI[[#This Row],[EFLHCooling]],\nIF(ISNUMBER(FIND(\"Dishwasher\",Table_SummaryPI[[#This Row],[ProposedMeasureCategory]],1)),$BH$29*Table_SummaryPI[[#This Row],[Quantity]],\nIF(ISNUMBER(FIND(\"Ice Maker\",Table_SummaryPI[[#This Row],[ProposedMeasureCategory]],1)),$BD$31*Table_SummaryPI[[#This Row],[Quantity]],\nIF(ISNUMBER(FIND(\"Spray Valve\",Table_SummaryPI[[#This Row],[ProposedMeasureCategory]],1)),$BH$31*Table_SummaryPI[[#This Row],[Quantity]],\n0)))),\"\")","v":""},{"$f":"IF(OR(Table_PI[[#This Row],[Hide: Electrification kWh]]=\"\",Table_PI[[#This Row],[Hide: Electrification kWh]]=0,ISTEXT(Table_PI[[#This Row],[Hide: Electrification kWh]])),\"\",Table_PI[[#This Row],[Hide: Electrification kWh]])","v":""},{"$f":"IF(OR(Table_PI[[#This Row],[Hide: Electrification GHG]]=\"\",Table_PI[[#This Row],[Hide: Electrification GHG]]=0,ISTEXT(Table_PI[[#This Row],[Hide: Electrification GHG]])),\"\",Table_PI[[#This Row],[Hide: Electrification GHG]])","v":""},{"$f":"IFERROR(IF(Table_SummaryPI[[#This Row],[kWhSavings]]=\"\",\"\",$BH$9*Table_SummaryPI[[#This Row],[kWhSavings]]),0)","v":""},{"$f":"IFERROR(IF(Table_SummaryPI[[#This Row],[kWhSavings]]=\"\",\"\",$BH$14*Table_SummaryPI[[#This Row],[kWhSavings]]),0)","v":""},{"$f":"IFERROR(IF(Table_SummaryPI[[#This Row],[kWhSavings]]=\"\",\"\",$BH$18*Table_SummaryPI[[#This Row],[kWhSavings]]),0)","v":""},{"$f":"IFERROR(IF(Table_SummaryPI[[#This Row],[kWhSavings]]=\"\",\"\",$BH$22*Table_SummaryPI[[#This Row],[kWhSavings]]),0)","v":""}]
[{"$f":"Table_PI[[#This Row],[Line No.]]","v":""},{"$f":"IF(Table_SummaryPI[[#This Row],[MeasureName]]<>\"\",NOT(ISTEXT(Table_PI[[#This Row],[Rebate]])),\"\")","v":""},{"$f":"IF(Table_SummaryPI[[#This Row],[MeassureCategory]]<>\"\",CONCATENATE(Table_SummaryPI[[#This Row],[MeassureCategory]],  \" - \", Table_SummaryPI[[#This Row],[ProposedMeasureCategory]],  \" - \", TEXT(Table_SummaryPI[[#This Row],[Size]],\"#,##0.00\"),\" \",Table_SummaryPI[[#This Row],[SizeUnit]]),\"\")","v":""},{"$f":"SUBSTITUTE(Table_PI[[#This Row],[Measure]],\"     \",\"\",1)","v":""},{"$f":"IF(Table_PI[[#This Row],[List 1]]<>\"\",Table_PI[[#This Row],[List 1]],\"\")","v":""},{"$f":"IF(Table_PI[[#This Row],[List 2]]<>\"\",Table_PI[[#This Row],[List 2]],\"\")","v":""},{"$f":"IF(Table_PI[[#This Row],[List 3]]<>\"\",Table_PI[[#This Row],[List 3]],\"\")","v":""},{"$f":"IF(Table_PI[[#This Row],[Manufacturer]]=\"\",\"\",Table_PI[[#This Row],[Manufacturer]])","v":""},{"$f":"IF(Table_PI[[#This Row],[Model Number]]=\"\",\"\",Table_PI[[#This Row],[Model Number]])","v":""},{"$f":"IF(Table_PI[[#This Row],[Serial Number(s)]]=\"\",\"\",Table_PI[[#This Row],[Serial Number(s)]])","v":""},null,{"$f":"IF(Table_PI[[#This Row],[Size]]=\"\",\"\",Table_PI[[#This Row],[Size]])","v":""},null,null,{"$f":"IF(Table_PI[[#This Row],[Input 1]]<>\"\",Table_PI[[#This Row],[Input 1]],\"\")","v":""},null,null,{"$f":"IF(Table_PI[[#This Row],[Input 2]]<>\"\",Table_PI[[#This Row],[Input 2]],\"\")","v":""},null,null,{"$f":"IF(Table_PI[[#This Row],[Input 3]]<>\"\",Table_PI[[#This Row],[Input 3]],\"\")","v":""},null,null,{"$f":"IF(Table_PI[[#This Row],[Input 4]]<>\"\",Table_PI[[#This Row],[Input 4]],\"\")","v":""},null,null,{"$f":"IF(Table_PI[[#This Row],[Input 4]]<>\"\",Table_PI[[#This Row],[Input 4]],\"\")","v":""},null,null,{"$f":"IF(Table_PI[[#This Row],[Input 4]]<>\"\",Table_PI[[#This Row],[Input 4]],\"\")","v":""},{"$f":"IF(Table_PI[[#This Row],[Quantity]]=\"\",\"\",Table_PI[[#This Row],[Quantity]])","v":""},{"$f":"IF(Table_PI[[#This Row],[Notes]]=\"\",\"\",Table_PI[[#This Row],[Notes]])","v":""},{"$f":"IF(OR(Table_PI[[#This Row],[Hide: Baseline kWh]]=\"\",Table_PI[[#This Row],[Hide: Baseline kWh]]=0,ISTEXT(Table_PI[[#This Row],[Hide: Baseline kWh]])),\"\",Table_PI[[#This Row],[Hide: Baseline kWh]])","v":""},{"$f":"IF(OR(Table_PI[[#This Row],[Hide: Baseline kW]]=\"\",Table_PI[[#This Row],[Hide: Baseline kW]]=0,ISTEXT(Table_PI[[#This Row],[Hide: Baseline kW]])),\"\",Table_PI[[#This Row],[Hide: Baseline kW]])","v":""},{"$f":"IF(OR(Table_PI[[#This Row],[Hide: Proposed kWh]]=\"\",Table_PI[[#This Row],[Hide: Proposed kWh]]=0,ISTEXT(Table_PI[[#This Row],[Hide: Proposed kWh]])),\"\",Table_PI[[#This Row],[Hide: Proposed kWh]])","v":""},{"$f":"IF(OR(Table_PI[[#This Row],[Hide: Proposed kW]]=\"\",Table_PI[[#This Row],[Hide: Proposed kW]]=0,ISTEXT(Table_PI[[#This Row],[Hide: Proposed kW]])),\"\",Table_PI[[#This Row],[Hide: Proposed kW]])","v":""},null,null,{"$f":"IF(OR(Table_PI[[#This Row],[Hide: Rebate]]=\"\",Table_PI[[#This Row],[Hide: Rebate]]=0,ISTEXT(Table_PI[[#This Row],[Hide: Rebate]])),\"\",Table_PI[[#This Row],[Hide: Rebate]])","v":""},null,{"$f":"IF(OR(Table_PI[[#This Row],[Hide: Incremental Cost]]=\"\",Table_PI[[#This Row],[Hide: Incremental Cost]]=0,ISTEXT(Table_PI[[#This Row],[Hide: Incremental Cost]])),\"\",Table_PI[[#This Row],[Hide: Incremental Cost]])","v":""},{"$f":"IFERROR(IF(Table_SummaryPI[[#This Row],[Incentive_Customer]]=\"\",\"\",ROUND(Table_SummaryPI[[#This Row],[Incentive_Customer]]/$AM$401*'Customer Information'!$BC$21,2)),0)","v":""},{"$f":"IF(OR(Table_PI[[#This Row],[Annual kWh]]=\"\",Table_PI[[#This Row],[Annual kWh]]=0,ISTEXT(Table_PI[[#This Row],[Annual kWh]])),\"\",Table_PI[[#This Row],[Annual kWh]])","v":""},{"$f":"IF(OR(Table_PI[[#This Row],[Peak kW]]=\"\",Table_PI[[#This Row],[Peak kW]]=0,ISTEXT(Table_PI[[#This Row],[Peak kW]])),\"\",Table_PI[[#This Row],[Peak kW]])","v":""},{"$f":"IF(Table_SummaryPI[[#This Row],[Line No.]]<>\"\",IF(AND(ISNUMBER(FIND(\"Chiller\",Table_SummaryPI[[#This Row],[P_MeasureOption1]],1)),Table_SummaryPI[[#This Row],[ProposedMeasureCategory]]=\"Air-Cooled (Water-Cooled Replacement)\"),$BD$29*Table_SummaryPI[[#This Row],[Size]]*Table_SummaryPI[[#This Row],[Quantity]]*Table_SummaryPI[[#This Row],[EFLHCooling]],\nIF(ISNUMBER(FIND(\"Dishwasher\",Table_SummaryPI[[#This Row],[ProposedMeasureCategory]],1)),$BH$29*Table_SummaryPI[[#This Row],[Quantity]],\nIF(ISNUMBER(FIND(\"Ice Maker\",Table_SummaryPI[[#This Row],[ProposedMeasureCategory]],1)),$BD$31*Table_SummaryPI[[#This Row],[Quantity]],\nIF(ISNUMBER(FIND(\"Spray Valve\",Table_SummaryPI[[#This Row],[ProposedMeasureCategory]],1)),$BH$31*Table_SummaryPI[[#This Row],[Quantity]],\n0)))),\"\")","v":""},{"$f":"IF(OR(Table_PI[[#This Row],[Hide: Electrification kWh]]=\"\",Table_PI[[#This Row],[Hide: Electrification kWh]]=0,ISTEXT(Table_PI[[#This Row],[Hide: Electrification kWh]])),\"\",Table_PI[[#This Row],[Hide: Electrification kWh]])","v":""},{"$f":"IF(OR(Table_PI[[#This Row],[Hide: Electrification GHG]]=\"\",Table_PI[[#This Row],[Hide: Electrification GHG]]=0,ISTEXT(Table_PI[[#This Row],[Hide: Electrification GHG]])),\"\",Table_PI[[#This Row],[Hide: Electrification GHG]])","v":""},{"$f":"IFERROR(IF(Table_SummaryPI[[#This Row],[kWhSavings]]=\"\",\"\",$BH$9*Table_SummaryPI[[#This Row],[kWhSavings]]),0)","v":""},{"$f":"IFERROR(IF(Table_SummaryPI[[#This Row],[kWhSavings]]=\"\",\"\",$BH$14*Table_SummaryPI[[#This Row],[kWhSavings]]),0)","v":""},{"$f":"IFERROR(IF(Table_SummaryPI[[#This Row],[kWhSavings]]=\"\",\"\",$BH$18*Table_SummaryPI[[#This Row],[kWhSavings]]),0)","v":""},{"$f":"IFERROR(IF(Table_SummaryPI[[#This Row],[kWhSavings]]=\"\",\"\",$BH$22*Table_SummaryPI[[#This Row],[kWhSavings]]),0)","v":""}]
[{"$f":"Table_PI[[#This Row],[Line No.]]","v":""},{"$f":"IF(Table_SummaryPI[[#This Row],[MeasureName]]<>\"\",NOT(ISTEXT(Table_PI[[#This Row],[Rebate]])),\"\")","v":""},{"$f":"IF(Table_SummaryPI[[#This Row],[MeassureCategory]]<>\"\",CONCATENATE(Table_SummaryPI[[#This Row],[MeassureCategory]],  \" - \", Table_SummaryPI[[#This Row],[ProposedMeasureCategory]],  \" - \", TEXT(Table_SummaryPI[[#This Row],[Size]],\"#,##0.00\"),\" \",Table_SummaryPI[[#This Row],[SizeUnit]]),\"\")","v":""},{"$f":"SUBSTITUTE(Table_PI[[#This Row],[Measure]],\"     \",\"\",1)","v":""},{"$f":"IF(Table_PI[[#This Row],[List 1]]<>\"\",Table_PI[[#This Row],[List 1]],\"\")","v":""},{"$f":"IF(Table_PI[[#This Row],[List 2]]<>\"\",Table_PI[[#This Row],[List 2]],\"\")","v":""},{"$f":"IF(Table_PI[[#This Row],[List 3]]<>\"\",Table_PI[[#This Row],[List 3]],\"\")","v":""},{"$f":"IF(Table_PI[[#This Row],[Manufacturer]]=\"\",\"\",Table_PI[[#This Row],[Manufacturer]])","v":""},{"$f":"IF(Table_PI[[#This Row],[Model Number]]=\"\",\"\",Table_PI[[#This Row],[Model Number]])","v":""},{"$f":"IF(Table_PI[[#This Row],[Serial Number(s)]]=\"\",\"\",Table_PI[[#This Row],[Serial Number(s)]])","v":""},null,{"$f":"IF(Table_PI[[#This Row],[Size]]=\"\",\"\",Table_PI[[#This Row],[Size]])","v":""},null,null,{"$f":"IF(Table_PI[[#This Row],[Input 1]]<>\"\",Table_PI[[#This Row],[Input 1]],\"\")","v":""},null,null,{"$f":"IF(Table_PI[[#This Row],[Input 2]]<>\"\",Table_PI[[#This Row],[Input 2]],\"\")","v":""},null,null,{"$f":"IF(Table_PI[[#This Row],[Input 3]]<>\"\",Table_PI[[#This Row],[Input 3]],\"\")","v":""},null,null,{"$f":"IF(Table_PI[[#This Row],[Input 4]]<>\"\",Table_PI[[#This Row],[Input 4]],\"\")","v":""},null,null,{"$f":"IF(Table_PI[[#This Row],[Input 4]]<>\"\",Table_PI[[#This Row],[Input 4]],\"\")","v":""},null,null,{"$f":"IF(Table_PI[[#This Row],[Input 4]]<>\"\",Table_PI[[#This Row],[Input 4]],\"\")","v":""},{"$f":"IF(Table_PI[[#This Row],[Quantity]]=\"\",\"\",Table_PI[[#This Row],[Quantity]])","v":""},{"$f":"IF(Table_PI[[#This Row],[Notes]]=\"\",\"\",Table_PI[[#This Row],[Notes]])","v":""},{"$f":"IF(OR(Table_PI[[#This Row],[Hide: Baseline kWh]]=\"\",Table_PI[[#This Row],[Hide: Baseline kWh]]=0,ISTEXT(Table_PI[[#This Row],[Hide: Baseline kWh]])),\"\",Table_PI[[#This Row],[Hide: Baseline kWh]])","v":""},{"$f":"IF(OR(Table_PI[[#This Row],[Hide: Baseline kW]]=\"\",Table_PI[[#This Row],[Hide: Baseline kW]]=0,ISTEXT(Table_PI[[#This Row],[Hide: Baseline kW]])),\"\",Table_PI[[#This Row],[Hide: Baseline kW]])","v":""},{"$f":"IF(OR(Table_PI[[#This Row],[Hide: Proposed kWh]]=\"\",Table_PI[[#This Row],[Hide: Proposed kWh]]=0,ISTEXT(Table_PI[[#This Row],[Hide: Proposed kWh]])),\"\",Table_PI[[#This Row],[Hide: Proposed kWh]])","v":""},{"$f":"IF(OR(Table_PI[[#This Row],[Hide: Proposed kW]]=\"\",Table_PI[[#This Row],[Hide: Proposed kW]]=0,ISTEXT(Table_PI[[#This Row],[Hide: Proposed kW]])),\"\",Table_PI[[#This Row],[Hide: Proposed kW]])","v":""},null,null,{"$f":"IF(OR(Table_PI[[#This Row],[Hide: Rebate]]=\"\",Table_PI[[#This Row],[Hide: Rebate]]=0,ISTEXT(Table_PI[[#This Row],[Hide: Rebate]])),\"\",Table_PI[[#This Row],[Hide: Rebate]])","v":""},null,{"$f":"IF(OR(Table_PI[[#This Row],[Hide: Incremental Cost]]=\"\",Table_PI[[#This Row],[Hide: Incremental Cost]]=0,ISTEXT(Table_PI[[#This Row],[Hide: Incremental Cost]])),\"\",Table_PI[[#This Row],[Hide: Incremental Cost]])","v":""},{"$f":"IFERROR(IF(Table_SummaryPI[[#This Row],[Incentive_Customer]]=\"\",\"\",ROUND(Table_SummaryPI[[#This Row],[Incentive_Customer]]/$AM$401*'Customer Information'!$BC$21,2)),0)","v":""},{"$f":"IF(OR(Table_PI[[#This Row],[Annual kWh]]=\"\",Table_PI[[#This Row],[Annual kWh]]=0,ISTEXT(Table_PI[[#This Row],[Annual kWh]])),\"\",Table_PI[[#This Row],[Annual kWh]])","v":""},{"$f":"IF(OR(Table_PI[[#This Row],[Peak kW]]=\"\",Table_PI[[#This Row],[Peak kW]]=0,ISTEXT(Table_PI[[#This Row],[Peak kW]])),\"\",Table_PI[[#This Row],[Peak kW]])","v":""},{"$f":"IF(Table_SummaryPI[[#This Row],[Line No.]]<>\"\",IF(AND(ISNUMBER(FIND(\"Chiller\",Table_SummaryPI[[#This Row],[P_MeasureOption1]],1)),Table_SummaryPI[[#This Row],[ProposedMeasureCategory]]=\"Air-Cooled (Water-Cooled Replacement)\"),$BD$29*Table_SummaryPI[[#This Row],[Size]]*Table_SummaryPI[[#This Row],[Quantity]]*Table_SummaryPI[[#This Row],[EFLHCooling]],\nIF(ISNUMBER(FIND(\"Dishwasher\",Table_SummaryPI[[#This Row],[ProposedMeasureCategory]],1)),$BH$29*Table_SummaryPI[[#This Row],[Quantity]],\nIF(ISNUMBER(FIND(\"Ice Maker\",Table_SummaryPI[[#This Row],[ProposedMeasureCategory]],1)),$BD$31*Table_SummaryPI[[#This Row],[Quantity]],\nIF(ISNUMBER(FIND(\"Spray Valve\",Table_SummaryPI[[#This Row],[ProposedMeasureCategory]],1)),$BH$31*Table_SummaryPI[[#This Row],[Quantity]],\n0)))),\"\")","v":""},{"$f":"IF(OR(Table_PI[[#This Row],[Hide: Electrification kWh]]=\"\",Table_PI[[#This Row],[Hide: Electrification kWh]]=0,ISTEXT(Table_PI[[#This Row],[Hide: Electrification kWh]])),\"\",Table_PI[[#This Row],[Hide: Electrification kWh]])","v":""},{"$f":"IF(OR(Table_PI[[#This Row],[Hide: Electrification GHG]]=\"\",Table_PI[[#This Row],[Hide: Electrification GHG]]=0,ISTEXT(Table_PI[[#This Row],[Hide: Electrification GHG]])),\"\",Table_PI[[#This Row],[Hide: Electrification GHG]])","v":""},{"$f":"IFERROR(IF(Table_SummaryPI[[#This Row],[kWhSavings]]=\"\",\"\",$BH$9*Table_SummaryPI[[#This Row],[kWhSavings]]),0)","v":""},{"$f":"IFERROR(IF(Table_SummaryPI[[#This Row],[kWhSavings]]=\"\",\"\",$BH$14*Table_SummaryPI[[#This Row],[kWhSavings]]),0)","v":""},{"$f":"IFERROR(IF(Table_SummaryPI[[#This Row],[kWhSavings]]=\"\",\"\",$BH$18*Table_SummaryPI[[#This Row],[kWhSavings]]),0)","v":""},{"$f":"IFERROR(IF(Table_SummaryPI[[#This Row],[kWhSavings]]=\"\",\"\",$BH$22*Table_SummaryPI[[#This Row],[kWhSavings]]),0)","v":""}]
[{"$f":"Table_PI[[#This Row],[Line No.]]","v":""},{"$f":"IF(Table_SummaryPI[[#This Row],[MeasureName]]<>\"\",NOT(ISTEXT(Table_PI[[#This Row],[Rebate]])),\"\")","v":""},{"$f":"IF(Table_SummaryPI[[#This Row],[MeassureCategory]]<>\"\",CONCATENATE(Table_SummaryPI[[#This Row],[MeassureCategory]],  \" - \", Table_SummaryPI[[#This Row],[ProposedMeasureCategory]],  \" - \", TEXT(Table_SummaryPI[[#This Row],[Size]],\"#,##0.00\"),\" \",Table_SummaryPI[[#This Row],[SizeUnit]]),\"\")","v":""},{"$f":"SUBSTITUTE(Table_PI[[#This Row],[Measure]],\"     \",\"\",1)","v":""},{"$f":"IF(Table_PI[[#This Row],[List 1]]<>\"\",Table_PI[[#This Row],[List 1]],\"\")","v":""},{"$f":"IF(Table_PI[[#This Row],[List 2]]<>\"\",Table_PI[[#This Row],[List 2]],\"\")","v":""},{"$f":"IF(Table_PI[[#This Row],[List 3]]<>\"\",Table_PI[[#This Row],[List 3]],\"\")","v":""},{"$f":"IF(Table_PI[[#This Row],[Manufacturer]]=\"\",\"\",Table_PI[[#This Row],[Manufacturer]])","v":""},{"$f":"IF(Table_PI[[#This Row],[Model Number]]=\"\",\"\",Table_PI[[#This Row],[Model Number]])","v":""},{"$f":"IF(Table_PI[[#This Row],[Serial Number(s)]]=\"\",\"\",Table_PI[[#This Row],[Serial Number(s)]])","v":""},null,{"$f":"IF(Table_PI[[#This Row],[Size]]=\"\",\"\",Table_PI[[#This Row],[Size]])","v":""},null,null,{"$f":"IF(Table_PI[[#This Row],[Input 1]]<>\"\",Table_PI[[#This Row],[Input 1]],\"\")","v":""},null,null,{"$f":"IF(Table_PI[[#This Row],[Input 2]]<>\"\",Table_PI[[#This Row],[Input 2]],\"\")","v":""},null,null,{"$f":"IF(Table_PI[[#This Row],[Input 3]]<>\"\",Table_PI[[#This Row],[Input 3]],\"\")","v":""},null,null,{"$f":"IF(Table_PI[[#This Row],[Input 4]]<>\"\",Table_PI[[#This Row],[Input 4]],\"\")","v":""},null,null,{"$f":"IF(Table_PI[[#This Row],[Input 4]]<>\"\",Table_PI[[#This Row],[Input 4]],\"\")","v":""},null,null,{"$f":"IF(Table_PI[[#This Row],[Input 4]]<>\"\",Table_PI[[#This Row],[Input 4]],\"\")","v":""},{"$f":"IF(Table_PI[[#This Row],[Quantity]]=\"\",\"\",Table_PI[[#This Row],[Quantity]])","v":""},{"$f":"IF(Table_PI[[#This Row],[Notes]]=\"\",\"\",Table_PI[[#This Row],[Notes]])","v":""},{"$f":"IF(OR(Table_PI[[#This Row],[Hide: Baseline kWh]]=\"\",Table_PI[[#This Row],[Hide: Baseline kWh]]=0,ISTEXT(Table_PI[[#This Row],[Hide: Baseline kWh]])),\"\",Table_PI[[#This Row],[Hide: Baseline kWh]])","v":""},{"$f":"IF(OR(Table_PI[[#This Row],[Hide: Baseline kW]]=\"\",Table_PI[[#This Row],[Hide: Baseline kW]]=0,ISTEXT(Table_PI[[#This Row],[Hide: Baseline kW]])),\"\",Table_PI[[#This Row],[Hide: Baseline kW]])","v":""},{"$f":"IF(OR(Table_PI[[#This Row],[Hide: Proposed kWh]]=\"\",Table_PI[[#This Row],[Hide: Proposed kWh]]=0,ISTEXT(Table_PI[[#This Row],[Hide: Proposed kWh]])),\"\",Table_PI[[#This Row],[Hide: Proposed kWh]])","v":""},{"$f":"IF(OR(Table_PI[[#This Row],[Hide: Proposed kW]]=\"\",Table_PI[[#This Row],[Hide: Proposed kW]]=0,ISTEXT(Table_PI[[#This Row],[Hide: Proposed kW]])),\"\",Table_PI[[#This Row],[Hide: Proposed kW]])","v":""},null,null,{"$f":"IF(OR(Table_PI[[#This Row],[Hide: Rebate]]=\"\",Table_PI[[#This Row],[Hide: Rebate]]=0,ISTEXT(Table_PI[[#This Row],[Hide: Rebate]])),\"\",Table_PI[[#This Row],[Hide: Rebate]])","v":""},null,{"$f":"IF(OR(Table_PI[[#This Row],[Hide: Incremental Cost]]=\"\",Table_PI[[#This Row],[Hide: Incremental Cost]]=0,ISTEXT(Table_PI[[#This Row],[Hide: Incremental Cost]])),\"\",Table_PI[[#This Row],[Hide: Incremental Cost]])","v":""},{"$f":"IFERROR(IF(Table_SummaryPI[[#This Row],[Incentive_Customer]]=\"\",\"\",ROUND(Table_SummaryPI[[#This Row],[Incentive_Customer]]/$AM$401*'Customer Information'!$BC$21,2)),0)","v":""},{"$f":"IF(OR(Table_PI[[#This Row],[Annual kWh]]=\"\",Table_PI[[#This Row],[Annual kWh]]=0,ISTEXT(Table_PI[[#This Row],[Annual kWh]])),\"\",Table_PI[[#This Row],[Annual kWh]])","v":""},{"$f":"IF(OR(Table_PI[[#This Row],[Peak kW]]=\"\",Table_PI[[#This Row],[Peak kW]]=0,ISTEXT(Table_PI[[#This Row],[Peak kW]])),\"\",Table_PI[[#This Row],[Peak kW]])","v":""},{"$f":"IF(Table_SummaryPI[[#This Row],[Line No.]]<>\"\",IF(AND(ISNUMBER(FIND(\"Chiller\",Table_SummaryPI[[#This Row],[P_MeasureOption1]],1)),Table_SummaryPI[[#This Row],[ProposedMeasureCategory]]=\"Air-Cooled (Water-Cooled Replacement)\"),$BD$29*Table_SummaryPI[[#This Row],[Size]]*Table_SummaryPI[[#This Row],[Quantity]]*Table_SummaryPI[[#This Row],[EFLHCooling]],\nIF(ISNUMBER(FIND(\"Dishwasher\",Table_SummaryPI[[#This Row],[ProposedMeasureCategory]],1)),$BH$29*Table_SummaryPI[[#This Row],[Quantity]],\nIF(ISNUMBER(FIND(\"Ice Maker\",Table_SummaryPI[[#This Row],[ProposedMeasureCategory]],1)),$BD$31*Table_SummaryPI[[#This Row],[Quantity]],\nIF(ISNUMBER(FIND(\"Spray Valve\",Table_SummaryPI[[#This Row],[ProposedMeasureCategory]],1)),$BH$31*Table_SummaryPI[[#This Row],[Quantity]],\n0)))),\"\")","v":""},{"$f":"IF(OR(Table_PI[[#This Row],[Hide: Electrification kWh]]=\"\",Table_PI[[#This Row],[Hide: Electrification kWh]]=0,ISTEXT(Table_PI[[#This Row],[Hide: Electrification kWh]])),\"\",Table_PI[[#This Row],[Hide: Electrification kWh]])","v":""},{"$f":"IF(OR(Table_PI[[#This Row],[Hide: Electrification GHG]]=\"\",Table_PI[[#This Row],[Hide: Electrification GHG]]=0,ISTEXT(Table_PI[[#This Row],[Hide: Electrification GHG]])),\"\",Table_PI[[#This Row],[Hide: Electrification GHG]])","v":""},{"$f":"IFERROR(IF(Table_SummaryPI[[#This Row],[kWhSavings]]=\"\",\"\",$BH$9*Table_SummaryPI[[#This Row],[kWhSavings]]),0)","v":""},{"$f":"IFERROR(IF(Table_SummaryPI[[#This Row],[kWhSavings]]=\"\",\"\",$BH$14*Table_SummaryPI[[#This Row],[kWhSavings]]),0)","v":""},{"$f":"IFERROR(IF(Table_SummaryPI[[#This Row],[kWhSavings]]=\"\",\"\",$BH$18*Table_SummaryPI[[#This Row],[kWhSavings]]),0)","v":""},{"$f":"IFERROR(IF(Table_SummaryPI[[#This Row],[kWhSavings]]=\"\",\"\",$BH$22*Table_SummaryPI[[#This Row],[kWhSavings]]),0)","v":""}]
[{"$f":"Table_PI[[#This Row],[Line No.]]","v":""},{"$f":"IF(Table_SummaryPI[[#This Row],[MeasureName]]<>\"\",NOT(ISTEXT(Table_PI[[#This Row],[Rebate]])),\"\")","v":""},{"$f":"IF(Table_SummaryPI[[#This Row],[MeassureCategory]]<>\"\",CONCATENATE(Table_SummaryPI[[#This Row],[MeassureCategory]],  \" - \", Table_SummaryPI[[#This Row],[ProposedMeasureCategory]],  \" - \", TEXT(Table_SummaryPI[[#This Row],[Size]],\"#,##0.00\"),\" \",Table_SummaryPI[[#This Row],[SizeUnit]]),\"\")","v":""},{"$f":"SUBSTITUTE(Table_PI[[#This Row],[Measure]],\"     \",\"\",1)","v":""},{"$f":"IF(Table_PI[[#This Row],[List 1]]<>\"\",Table_PI[[#This Row],[List 1]],\"\")","v":""},{"$f":"IF(Table_PI[[#This Row],[List 2]]<>\"\",Table_PI[[#This Row],[List 2]],\"\")","v":""},{"$f":"IF(Table_PI[[#This Row],[List 3]]<>\"\",Table_PI[[#This Row],[List 3]],\"\")","v":""},{"$f":"IF(Table_PI[[#This Row],[Manufacturer]]=\"\",\"\",Table_PI[[#This Row],[Manufacturer]])","v":""},{"$f":"IF(Table_PI[[#This Row],[Model Number]]=\"\",\"\",Table_PI[[#This Row],[Model Number]])","v":""},{"$f":"IF(Table_PI[[#This Row],[Serial Number(s)]]=\"\",\"\",Table_PI[[#This Row],[Serial Number(s)]])","v":""},null,{"$f":"IF(Table_PI[[#This Row],[Size]]=\"\",\"\",Table_PI[[#This Row],[Size]])","v":""},null,null,{"$f":"IF(Table_PI[[#This Row],[Input 1]]<>\"\",Table_PI[[#This Row],[Input 1]],\"\")","v":""},null,null,{"$f":"IF(Table_PI[[#This Row],[Input 2]]<>\"\",Table_PI[[#This Row],[Input 2]],\"\")","v":""},null,null,{"$f":"IF(Table_PI[[#This Row],[Input 3]]<>\"\",Table_PI[[#This Row],[Input 3]],\"\")","v":""},null,null,{"$f":"IF(Table_PI[[#This Row],[Input 4]]<>\"\",Table_PI[[#This Row],[Input 4]],\"\")","v":""},null,null,{"$f":"IF(Table_PI[[#This Row],[Input 4]]<>\"\",Table_PI[[#This Row],[Input 4]],\"\")","v":""},null,null,{"$f":"IF(Table_PI[[#This Row],[Input 4]]<>\"\",Table_PI[[#This Row],[Input 4]],\"\")","v":""},{"$f":"IF(Table_PI[[#This Row],[Quantity]]=\"\",\"\",Table_PI[[#This Row],[Quantity]])","v":""},{"$f":"IF(Table_PI[[#This Row],[Notes]]=\"\",\"\",Table_PI[[#This Row],[Notes]])","v":""},{"$f":"IF(OR(Table_PI[[#This Row],[Hide: Baseline kWh]]=\"\",Table_PI[[#This Row],[Hide: Baseline kWh]]=0,ISTEXT(Table_PI[[#This Row],[Hide: Baseline kWh]])),\"\",Table_PI[[#This Row],[Hide: Baseline kWh]])","v":""},{"$f":"IF(OR(Table_PI[[#This Row],[Hide: Baseline kW]]=\"\",Table_PI[[#This Row],[Hide: Baseline kW]]=0,ISTEXT(Table_PI[[#This Row],[Hide: Baseline kW]])),\"\",Table_PI[[#This Row],[Hide: Baseline kW]])","v":""},{"$f":"IF(OR(Table_PI[[#This Row],[Hide: Proposed kWh]]=\"\",Table_PI[[#This Row],[Hide: Proposed kWh]]=0,ISTEXT(Table_PI[[#This Row],[Hide: Proposed kWh]])),\"\",Table_PI[[#This Row],[Hide: Proposed kWh]])","v":""},{"$f":"IF(OR(Table_PI[[#This Row],[Hide: Proposed kW]]=\"\",Table_PI[[#This Row],[Hide: Proposed kW]]=0,ISTEXT(Table_PI[[#This Row],[Hide: Proposed kW]])),\"\",Table_PI[[#This Row],[Hide: Proposed kW]])","v":""},null,null,{"$f":"IF(OR(Table_PI[[#This Row],[Hide: Rebate]]=\"\",Table_PI[[#This Row],[Hide: Rebate]]=0,ISTEXT(Table_PI[[#This Row],[Hide: Rebate]])),\"\",Table_PI[[#This Row],[Hide: Rebate]])","v":""},null,{"$f":"IF(OR(Table_PI[[#This Row],[Hide: Incremental Cost]]=\"\",Table_PI[[#This Row],[Hide: Incremental Cost]]=0,ISTEXT(Table_PI[[#This Row],[Hide: Incremental Cost]])),\"\",Table_PI[[#This Row],[Hide: Incremental Cost]])","v":""},{"$f":"IFERROR(IF(Table_SummaryPI[[#This Row],[Incentive_Customer]]=\"\",\"\",ROUND(Table_SummaryPI[[#This Row],[Incentive_Customer]]/$AM$401*'Customer Information'!$BC$21,2)),0)","v":""},{"$f":"IF(OR(Table_PI[[#This Row],[Annual kWh]]=\"\",Table_PI[[#This Row],[Annual kWh]]=0,ISTEXT(Table_PI[[#This Row],[Annual kWh]])),\"\",Table_PI[[#This Row],[Annual kWh]])","v":""},{"$f":"IF(OR(Table_PI[[#This Row],[Peak kW]]=\"\",Table_PI[[#This Row],[Peak kW]]=0,ISTEXT(Table_PI[[#This Row],[Peak kW]])),\"\",Table_PI[[#This Row],[Peak kW]])","v":""},{"$f":"IF(Table_SummaryPI[[#This Row],[Line No.]]<>\"\",IF(AND(ISNUMBER(FIND(\"Chiller\",Table_SummaryPI[[#This Row],[P_MeasureOption1]],1)),Table_SummaryPI[[#This Row],[ProposedMeasureCategory]]=\"Air-Cooled (Water-Cooled Replacement)\"),$BD$29*Table_SummaryPI[[#This Row],[Size]]*Table_SummaryPI[[#This Row],[Quantity]]*Table_SummaryPI[[#This Row],[EFLHCooling]],\nIF(ISNUMBER(FIND(\"Dishwasher\",Table_SummaryPI[[#This Row],[ProposedMeasureCategory]],1)),$BH$29*Table_SummaryPI[[#This Row],[Quantity]],\nIF(ISNUMBER(FIND(\"Ice Maker\",Table_SummaryPI[[#This Row],[ProposedMeasureCategory]],1)),$BD$31*Table_SummaryPI[[#This Row],[Quantity]],\nIF(ISNUMBER(FIND(\"Spray Valve\",Table_SummaryPI[[#This Row],[ProposedMeasureCategory]],1)),$BH$31*Table_SummaryPI[[#This Row],[Quantity]],\n0)))),\"\")","v":""},{"$f":"IF(OR(Table_PI[[#This Row],[Hide: Electrification kWh]]=\"\",Table_PI[[#This Row],[Hide: Electrification kWh]]=0,ISTEXT(Table_PI[[#This Row],[Hide: Electrification kWh]])),\"\",Table_PI[[#This Row],[Hide: Electrification kWh]])","v":""},{"$f":"IF(OR(Table_PI[[#This Row],[Hide: Electrification GHG]]=\"\",Table_PI[[#This Row],[Hide: Electrification GHG]]=0,ISTEXT(Table_PI[[#This Row],[Hide: Electrification GHG]])),\"\",Table_PI[[#This Row],[Hide: Electrification GHG]])","v":""},{"$f":"IFERROR(IF(Table_SummaryPI[[#This Row],[kWhSavings]]=\"\",\"\",$BH$9*Table_SummaryPI[[#This Row],[kWhSavings]]),0)","v":""},{"$f":"IFERROR(IF(Table_SummaryPI[[#This Row],[kWhSavings]]=\"\",\"\",$BH$14*Table_SummaryPI[[#This Row],[kWhSavings]]),0)","v":""},{"$f":"IFERROR(IF(Table_SummaryPI[[#This Row],[kWhSavings]]=\"\",\"\",$BH$18*Table_SummaryPI[[#This Row],[kWhSavings]]),0)","v":""},{"$f":"IFERROR(IF(Table_SummaryPI[[#This Row],[kWhSavings]]=\"\",\"\",$BH$22*Table_SummaryPI[[#This Row],[kWhSavings]]),0)","v":""}]
[{"$f":"Table_PI[[#This Row],[Line No.]]","v":""},{"$f":"IF(Table_SummaryPI[[#This Row],[MeasureName]]<>\"\",NOT(ISTEXT(Table_PI[[#This Row],[Rebate]])),\"\")","v":""},{"$f":"IF(Table_SummaryPI[[#This Row],[MeassureCategory]]<>\"\",CONCATENATE(Table_SummaryPI[[#This Row],[MeassureCategory]],  \" - \", Table_SummaryPI[[#This Row],[ProposedMeasureCategory]],  \" - \", TEXT(Table_SummaryPI[[#This Row],[Size]],\"#,##0.00\"),\" \",Table_SummaryPI[[#This Row],[SizeUnit]]),\"\")","v":""},{"$f":"SUBSTITUTE(Table_PI[[#This Row],[Measure]],\"     \",\"\",1)","v":""},{"$f":"IF(Table_PI[[#This Row],[List 1]]<>\"\",Table_PI[[#This Row],[List 1]],\"\")","v":""},{"$f":"IF(Table_PI[[#This Row],[List 2]]<>\"\",Table_PI[[#This Row],[List 2]],\"\")","v":""},{"$f":"IF(Table_PI[[#This Row],[List 3]]<>\"\",Table_PI[[#This Row],[List 3]],\"\")","v":""},{"$f":"IF(Table_PI[[#This Row],[Manufacturer]]=\"\",\"\",Table_PI[[#This Row],[Manufacturer]])","v":""},{"$f":"IF(Table_PI[[#This Row],[Model Number]]=\"\",\"\",Table_PI[[#This Row],[Model Number]])","v":""},{"$f":"IF(Table_PI[[#This Row],[Serial Number(s)]]=\"\",\"\",Table_PI[[#This Row],[Serial Number(s)]])","v":""},null,{"$f":"IF(Table_PI[[#This Row],[Size]]=\"\",\"\",Table_PI[[#This Row],[Size]])","v":""},null,null,{"$f":"IF(Table_PI[[#This Row],[Input 1]]<>\"\",Table_PI[[#This Row],[Input 1]],\"\")","v":""},null,null,{"$f":"IF(Table_PI[[#This Row],[Input 2]]<>\"\",Table_PI[[#This Row],[Input 2]],\"\")","v":""},null,null,{"$f":"IF(Table_PI[[#This Row],[Input 3]]<>\"\",Table_PI[[#This Row],[Input 3]],\"\")","v":""},null,null,{"$f":"IF(Table_PI[[#This Row],[Input 4]]<>\"\",Table_PI[[#This Row],[Input 4]],\"\")","v":""},null,null,{"$f":"IF(Table_PI[[#This Row],[Input 4]]<>\"\",Table_PI[[#This Row],[Input 4]],\"\")","v":""},null,null,{"$f":"IF(Table_PI[[#This Row],[Input 4]]<>\"\",Table_PI[[#This Row],[Input 4]],\"\")","v":""},{"$f":"IF(Table_PI[[#This Row],[Quantity]]=\"\",\"\",Table_PI[[#This Row],[Quantity]])","v":""},{"$f":"IF(Table_PI[[#This Row],[Notes]]=\"\",\"\",Table_PI[[#This Row],[Notes]])","v":""},{"$f":"IF(OR(Table_PI[[#This Row],[Hide: Baseline kWh]]=\"\",Table_PI[[#This Row],[Hide: Baseline kWh]]=0,ISTEXT(Table_PI[[#This Row],[Hide: Baseline kWh]])),\"\",Table_PI[[#This Row],[Hide: Baseline kWh]])","v":""},{"$f":"IF(OR(Table_PI[[#This Row],[Hide: Baseline kW]]=\"\",Table_PI[[#This Row],[Hide: Baseline kW]]=0,ISTEXT(Table_PI[[#This Row],[Hide: Baseline kW]])),\"\",Table_PI[[#This Row],[Hide: Baseline kW]])","v":""},{"$f":"IF(OR(Table_PI[[#This Row],[Hide: Proposed kWh]]=\"\",Table_PI[[#This Row],[Hide: Proposed kWh]]=0,ISTEXT(Table_PI[[#This Row],[Hide: Proposed kWh]])),\"\",Table_PI[[#This Row],[Hide: Proposed kWh]])","v":""},{"$f":"IF(OR(Table_PI[[#This Row],[Hide: Proposed kW]]=\"\",Table_PI[[#This Row],[Hide: Proposed kW]]=0,ISTEXT(Table_PI[[#This Row],[Hide: Proposed kW]])),\"\",Table_PI[[#This Row],[Hide: Proposed kW]])","v":""},null,null,{"$f":"IF(OR(Table_PI[[#This Row],[Hide: Rebate]]=\"\",Table_PI[[#This Row],[Hide: Rebate]]=0,ISTEXT(Table_PI[[#This Row],[Hide: Rebate]])),\"\",Table_PI[[#This Row],[Hide: Rebate]])","v":""},null,{"$f":"IF(OR(Table_PI[[#This Row],[Hide: Incremental Cost]]=\"\",Table_PI[[#This Row],[Hide: Incremental Cost]]=0,ISTEXT(Table_PI[[#This Row],[Hide: Incremental Cost]])),\"\",Table_PI[[#This Row],[Hide: Incremental Cost]])","v":""},{"$f":"IFERROR(IF(Table_SummaryPI[[#This Row],[Incentive_Customer]]=\"\",\"\",ROUND(Table_SummaryPI[[#This Row],[Incentive_Customer]]/$AM$401*'Customer Information'!$BC$21,2)),0)","v":""},{"$f":"IF(OR(Table_PI[[#This Row],[Annual kWh]]=\"\",Table_PI[[#This Row],[Annual kWh]]=0,ISTEXT(Table_PI[[#This Row],[Annual kWh]])),\"\",Table_PI[[#This Row],[Annual kWh]])","v":""},{"$f":"IF(OR(Table_PI[[#This Row],[Peak kW]]=\"\",Table_PI[[#This Row],[Peak kW]]=0,ISTEXT(Table_PI[[#This Row],[Peak kW]])),\"\",Table_PI[[#This Row],[Peak kW]])","v":""},{"$f":"IF(Table_SummaryPI[[#This Row],[Line No.]]<>\"\",IF(AND(ISNUMBER(FIND(\"Chiller\",Table_SummaryPI[[#This Row],[P_MeasureOption1]],1)),Table_SummaryPI[[#This Row],[ProposedMeasureCategory]]=\"Air-Cooled (Water-Cooled Replacement)\"),$BD$29*Table_SummaryPI[[#This Row],[Size]]*Table_SummaryPI[[#This Row],[Quantity]]*Table_SummaryPI[[#This Row],[EFLHCooling]],\nIF(ISNUMBER(FIND(\"Dishwasher\",Table_SummaryPI[[#This Row],[ProposedMeasureCategory]],1)),$BH$29*Table_SummaryPI[[#This Row],[Quantity]],\nIF(ISNUMBER(FIND(\"Ice Maker\",Table_SummaryPI[[#This Row],[ProposedMeasureCategory]],1)),$BD$31*Table_SummaryPI[[#This Row],[Quantity]],\nIF(ISNUMBER(FIND(\"Spray Valve\",Table_SummaryPI[[#This Row],[ProposedMeasureCategory]],1)),$BH$31*Table_SummaryPI[[#This Row],[Quantity]],\n0)))),\"\")","v":""},{"$f":"IF(OR(Table_PI[[#This Row],[Hide: Electrification kWh]]=\"\",Table_PI[[#This Row],[Hide: Electrification kWh]]=0,ISTEXT(Table_PI[[#This Row],[Hide: Electrification kWh]])),\"\",Table_PI[[#This Row],[Hide: Electrification kWh]])","v":""},{"$f":"IF(OR(Table_PI[[#This Row],[Hide: Electrification GHG]]=\"\",Table_PI[[#This Row],[Hide: Electrification GHG]]=0,ISTEXT(Table_PI[[#This Row],[Hide: Electrification GHG]])),\"\",Table_PI[[#This Row],[Hide: Electrification GHG]])","v":""},{"$f":"IFERROR(IF(Table_SummaryPI[[#This Row],[kWhSavings]]=\"\",\"\",$BH$9*Table_SummaryPI[[#This Row],[kWhSavings]]),0)","v":""},{"$f":"IFERROR(IF(Table_SummaryPI[[#This Row],[kWhSavings]]=\"\",\"\",$BH$14*Table_SummaryPI[[#This Row],[kWhSavings]]),0)","v":""},{"$f":"IFERROR(IF(Table_SummaryPI[[#This Row],[kWhSavings]]=\"\",\"\",$BH$18*Table_SummaryPI[[#This Row],[kWhSavings]]),0)","v":""},{"$f":"IFERROR(IF(Table_SummaryPI[[#This Row],[kWhSavings]]=\"\",\"\",$BH$22*Table_SummaryPI[[#This Row],[kWhSavings]]),0)","v":""}]
[{"$f":"Table_PI[[#This Row],[Line No.]]","v":""},{"$f":"IF(Table_SummaryPI[[#This Row],[MeasureName]]<>\"\",NOT(ISTEXT(Table_PI[[#This Row],[Rebate]])),\"\")","v":""},{"$f":"IF(Table_SummaryPI[[#This Row],[MeassureCategory]]<>\"\",CONCATENATE(Table_SummaryPI[[#This Row],[MeassureCategory]],  \" - \", Table_SummaryPI[[#This Row],[ProposedMeasureCategory]],  \" - \", TEXT(Table_SummaryPI[[#This Row],[Size]],\"#,##0.00\"),\" \",Table_SummaryPI[[#This Row],[SizeUnit]]),\"\")","v":""},{"$f":"SUBSTITUTE(Table_PI[[#This Row],[Measure]],\"     \",\"\",1)","v":""},{"$f":"IF(Table_PI[[#This Row],[List 1]]<>\"\",Table_PI[[#This Row],[List 1]],\"\")","v":""},{"$f":"IF(Table_PI[[#This Row],[List 2]]<>\"\",Table_PI[[#This Row],[List 2]],\"\")","v":""},{"$f":"IF(Table_PI[[#This Row],[List 3]]<>\"\",Table_PI[[#This Row],[List 3]],\"\")","v":""},{"$f":"IF(Table_PI[[#This Row],[Manufacturer]]=\"\",\"\",Table_PI[[#This Row],[Manufacturer]])","v":""},{"$f":"IF(Table_PI[[#This Row],[Model Number]]=\"\",\"\",Table_PI[[#This Row],[Model Number]])","v":""},{"$f":"IF(Table_PI[[#This Row],[Serial Number(s)]]=\"\",\"\",Table_PI[[#This Row],[Serial Number(s)]])","v":""},null,{"$f":"IF(Table_PI[[#This Row],[Size]]=\"\",\"\",Table_PI[[#This Row],[Size]])","v":""},null,null,{"$f":"IF(Table_PI[[#This Row],[Input 1]]<>\"\",Table_PI[[#This Row],[Input 1]],\"\")","v":""},null,null,{"$f":"IF(Table_PI[[#This Row],[Input 2]]<>\"\",Table_PI[[#This Row],[Input 2]],\"\")","v":""},null,null,{"$f":"IF(Table_PI[[#This Row],[Input 3]]<>\"\",Table_PI[[#This Row],[Input 3]],\"\")","v":""},null,null,{"$f":"IF(Table_PI[[#This Row],[Input 4]]<>\"\",Table_PI[[#This Row],[Input 4]],\"\")","v":""},null,null,{"$f":"IF(Table_PI[[#This Row],[Input 4]]<>\"\",Table_PI[[#This Row],[Input 4]],\"\")","v":""},null,null,{"$f":"IF(Table_PI[[#This Row],[Input 4]]<>\"\",Table_PI[[#This Row],[Input 4]],\"\")","v":""},{"$f":"IF(Table_PI[[#This Row],[Quantity]]=\"\",\"\",Table_PI[[#This Row],[Quantity]])","v":""},{"$f":"IF(Table_PI[[#This Row],[Notes]]=\"\",\"\",Table_PI[[#This Row],[Notes]])","v":""},{"$f":"IF(OR(Table_PI[[#This Row],[Hide: Baseline kWh]]=\"\",Table_PI[[#This Row],[Hide: Baseline kWh]]=0,ISTEXT(Table_PI[[#This Row],[Hide: Baseline kWh]])),\"\",Table_PI[[#This Row],[Hide: Baseline kWh]])","v":""},{"$f":"IF(OR(Table_PI[[#This Row],[Hide: Baseline kW]]=\"\",Table_PI[[#This Row],[Hide: Baseline kW]]=0,ISTEXT(Table_PI[[#This Row],[Hide: Baseline kW]])),\"\",Table_PI[[#This Row],[Hide: Baseline kW]])","v":""},{"$f":"IF(OR(Table_PI[[#This Row],[Hide: Proposed kWh]]=\"\",Table_PI[[#This Row],[Hide: Proposed kWh]]=0,ISTEXT(Table_PI[[#This Row],[Hide: Proposed kWh]])),\"\",Table_PI[[#This Row],[Hide: Proposed kWh]])","v":""},{"$f":"IF(OR(Table_PI[[#This Row],[Hide: Proposed kW]]=\"\",Table_PI[[#This Row],[Hide: Proposed kW]]=0,ISTEXT(Table_PI[[#This Row],[Hide: Proposed kW]])),\"\",Table_PI[[#This Row],[Hide: Proposed kW]])","v":""},null,null,{"$f":"IF(OR(Table_PI[[#This Row],[Hide: Rebate]]=\"\",Table_PI[[#This Row],[Hide: Rebate]]=0,ISTEXT(Table_PI[[#This Row],[Hide: Rebate]])),\"\",Table_PI[[#This Row],[Hide: Rebate]])","v":""},null,{"$f":"IF(OR(Table_PI[[#This Row],[Hide: Incremental Cost]]=\"\",Table_PI[[#This Row],[Hide: Incremental Cost]]=0,ISTEXT(Table_PI[[#This Row],[Hide: Incremental Cost]])),\"\",Table_PI[[#This Row],[Hide: Incremental Cost]])","v":""},{"$f":"IFERROR(IF(Table_SummaryPI[[#This Row],[Incentive_Customer]]=\"\",\"\",ROUND(Table_SummaryPI[[#This Row],[Incentive_Customer]]/$AM$401*'Customer Information'!$BC$21,2)),0)","v":""},{"$f":"IF(OR(Table_PI[[#This Row],[Annual kWh]]=\"\",Table_PI[[#This Row],[Annual kWh]]=0,ISTEXT(Table_PI[[#This Row],[Annual kWh]])),\"\",Table_PI[[#This Row],[Annual kWh]])","v":""},{"$f":"IF(OR(Table_PI[[#This Row],[Peak kW]]=\"\",Table_PI[[#This Row],[Peak kW]]=0,ISTEXT(Table_PI[[#This Row],[Peak kW]])),\"\",Table_PI[[#This Row],[Peak kW]])","v":""},{"$f":"IF(Table_SummaryPI[[#This Row],[Line No.]]<>\"\",IF(AND(ISNUMBER(FIND(\"Chiller\",Table_SummaryPI[[#This Row],[P_MeasureOption1]],1)),Table_SummaryPI[[#This Row],[ProposedMeasureCategory]]=\"Air-Cooled (Water-Cooled Replacement)\"),$BD$29*Table_SummaryPI[[#This Row],[Size]]*Table_SummaryPI[[#This Row],[Quantity]]*Table_SummaryPI[[#This Row],[EFLHCooling]],\nIF(ISNUMBER(FIND(\"Dishwasher\",Table_SummaryPI[[#This Row],[ProposedMeasureCategory]],1)),$BH$29*Table_SummaryPI[[#This Row],[Quantity]],\nIF(ISNUMBER(FIND(\"Ice Maker\",Table_SummaryPI[[#This Row],[ProposedMeasureCategory]],1)),$BD$31*Table_SummaryPI[[#This Row],[Quantity]],\nIF(ISNUMBER(FIND(\"Spray Valve\",Table_SummaryPI[[#This Row],[ProposedMeasureCategory]],1)),$BH$31*Table_SummaryPI[[#This Row],[Quantity]],\n0)))),\"\")","v":""},{"$f":"IF(OR(Table_PI[[#This Row],[Hide: Electrification kWh]]=\"\",Table_PI[[#This Row],[Hide: Electrification kWh]]=0,ISTEXT(Table_PI[[#This Row],[Hide: Electrification kWh]])),\"\",Table_PI[[#This Row],[Hide: Electrification kWh]])","v":""},{"$f":"IF(OR(Table_PI[[#This Row],[Hide: Electrification GHG]]=\"\",Table_PI[[#This Row],[Hide: Electrification GHG]]=0,ISTEXT(Table_PI[[#This Row],[Hide: Electrification GHG]])),\"\",Table_PI[[#This Row],[Hide: Electrification GHG]])","v":""},{"$f":"IFERROR(IF(Table_SummaryPI[[#This Row],[kWhSavings]]=\"\",\"\",$BH$9*Table_SummaryPI[[#This Row],[kWhSavings]]),0)","v":""},{"$f":"IFERROR(IF(Table_SummaryPI[[#This Row],[kWhSavings]]=\"\",\"\",$BH$14*Table_SummaryPI[[#This Row],[kWhSavings]]),0)","v":""},{"$f":"IFERROR(IF(Table_SummaryPI[[#This Row],[kWhSavings]]=\"\",\"\",$BH$18*Table_SummaryPI[[#This Row],[kWhSavings]]),0)","v":""},{"$f":"IFERROR(IF(Table_SummaryPI[[#This Row],[kWhSavings]]=\"\",\"\",$BH$22*Table_SummaryPI[[#This Row],[kWhSavings]]),0)","v":""}]
[{"$f":"Table_PI[[#This Row],[Line No.]]","v":""},{"$f":"IF(Table_SummaryPI[[#This Row],[MeasureName]]<>\"\",NOT(ISTEXT(Table_PI[[#This Row],[Rebate]])),\"\")","v":""},{"$f":"IF(Table_SummaryPI[[#This Row],[MeassureCategory]]<>\"\",CONCATENATE(Table_SummaryPI[[#This Row],[MeassureCategory]],  \" - \", Table_SummaryPI[[#This Row],[ProposedMeasureCategory]],  \" - \", TEXT(Table_SummaryPI[[#This Row],[Size]],\"#,##0.00\"),\" \",Table_SummaryPI[[#This Row],[SizeUnit]]),\"\")","v":""},{"$f":"SUBSTITUTE(Table_PI[[#This Row],[Measure]],\"     \",\"\",1)","v":""},{"$f":"IF(Table_PI[[#This Row],[List 1]]<>\"\",Table_PI[[#This Row],[List 1]],\"\")","v":""},{"$f":"IF(Table_PI[[#This Row],[List 2]]<>\"\",Table_PI[[#This Row],[List 2]],\"\")","v":""},{"$f":"IF(Table_PI[[#This Row],[List 3]]<>\"\",Table_PI[[#This Row],[List 3]],\"\")","v":""},{"$f":"IF(Table_PI[[#This Row],[Manufacturer]]=\"\",\"\",Table_PI[[#This Row],[Manufacturer]])","v":""},{"$f":"IF(Table_PI[[#This Row],[Model Number]]=\"\",\"\",Table_PI[[#This Row],[Model Number]])","v":""},{"$f":"IF(Table_PI[[#This Row],[Serial Number(s)]]=\"\",\"\",Table_PI[[#This Row],[Serial Number(s)]])","v":""},null,{"$f":"IF(Table_PI[[#This Row],[Size]]=\"\",\"\",Table_PI[[#This Row],[Size]])","v":""},null,null,{"$f":"IF(Table_PI[[#This Row],[Input 1]]<>\"\",Table_PI[[#This Row],[Input 1]],\"\")","v":""},null,null,{"$f":"IF(Table_PI[[#This Row],[Input 2]]<>\"\",Table_PI[[#This Row],[Input 2]],\"\")","v":""},null,null,{"$f":"IF(Table_PI[[#This Row],[Input 3]]<>\"\",Table_PI[[#This Row],[Input 3]],\"\")","v":""},null,null,{"$f":"IF(Table_PI[[#This Row],[Input 4]]<>\"\",Table_PI[[#This Row],[Input 4]],\"\")","v":""},null,null,{"$f":"IF(Table_PI[[#This Row],[Input 4]]<>\"\",Table_PI[[#This Row],[Input 4]],\"\")","v":""},null,null,{"$f":"IF(Table_PI[[#This Row],[Input 4]]<>\"\",Table_PI[[#This Row],[Input 4]],\"\")","v":""},{"$f":"IF(Table_PI[[#This Row],[Quantity]]=\"\",\"\",Table_PI[[#This Row],[Quantity]])","v":""},{"$f":"IF(Table_PI[[#This Row],[Notes]]=\"\",\"\",Table_PI[[#This Row],[Notes]])","v":""},{"$f":"IF(OR(Table_PI[[#This Row],[Hide: Baseline kWh]]=\"\",Table_PI[[#This Row],[Hide: Baseline kWh]]=0,ISTEXT(Table_PI[[#This Row],[Hide: Baseline kWh]])),\"\",Table_PI[[#This Row],[Hide: Baseline kWh]])","v":""},{"$f":"IF(OR(Table_PI[[#This Row],[Hide: Baseline kW]]=\"\",Table_PI[[#This Row],[Hide: Baseline kW]]=0,ISTEXT(Table_PI[[#This Row],[Hide: Baseline kW]])),\"\",Table_PI[[#This Row],[Hide: Baseline kW]])","v":""},{"$f":"IF(OR(Table_PI[[#This Row],[Hide: Proposed kWh]]=\"\",Table_PI[[#This Row],[Hide: Proposed kWh]]=0,ISTEXT(Table_PI[[#This Row],[Hide: Proposed kWh]])),\"\",Table_PI[[#This Row],[Hide: Proposed kWh]])","v":""},{"$f":"IF(OR(Table_PI[[#This Row],[Hide: Proposed kW]]=\"\",Table_PI[[#This Row],[Hide: Proposed kW]]=0,ISTEXT(Table_PI[[#This Row],[Hide: Proposed kW]])),\"\",Table_PI[[#This Row],[Hide: Proposed kW]])","v":""},null,null,{"$f":"IF(OR(Table_PI[[#This Row],[Hide: Rebate]]=\"\",Table_PI[[#This Row],[Hide: Rebate]]=0,ISTEXT(Table_PI[[#This Row],[Hide: Rebate]])),\"\",Table_PI[[#This Row],[Hide: Rebate]])","v":""},null,{"$f":"IF(OR(Table_PI[[#This Row],[Hide: Incremental Cost]]=\"\",Table_PI[[#This Row],[Hide: Incremental Cost]]=0,ISTEXT(Table_PI[[#This Row],[Hide: Incremental Cost]])),\"\",Table_PI[[#This Row],[Hide: Incremental Cost]])","v":""},{"$f":"IFERROR(IF(Table_SummaryPI[[#This Row],[Incentive_Customer]]=\"\",\"\",ROUND(Table_SummaryPI[[#This Row],[Incentive_Customer]]/$AM$401*'Customer Information'!$BC$21,2)),0)","v":""},{"$f":"IF(OR(Table_PI[[#This Row],[Annual kWh]]=\"\",Table_PI[[#This Row],[Annual kWh]]=0,ISTEXT(Table_PI[[#This Row],[Annual kWh]])),\"\",Table_PI[[#This Row],[Annual kWh]])","v":""},{"$f":"IF(OR(Table_PI[[#This Row],[Peak kW]]=\"\",Table_PI[[#This Row],[Peak kW]]=0,ISTEXT(Table_PI[[#This Row],[Peak kW]])),\"\",Table_PI[[#This Row],[Peak kW]])","v":""},{"$f":"IF(Table_SummaryPI[[#This Row],[Line No.]]<>\"\",IF(AND(ISNUMBER(FIND(\"Chiller\",Table_SummaryPI[[#This Row],[P_MeasureOption1]],1)),Table_SummaryPI[[#This Row],[ProposedMeasureCategory]]=\"Air-Cooled (Water-Cooled Replacement)\"),$BD$29*Table_SummaryPI[[#This Row],[Size]]*Table_SummaryPI[[#This Row],[Quantity]]*Table_SummaryPI[[#This Row],[EFLHCooling]],\nIF(ISNUMBER(FIND(\"Dishwasher\",Table_SummaryPI[[#This Row],[ProposedMeasureCategory]],1)),$BH$29*Table_SummaryPI[[#This Row],[Quantity]],\nIF(ISNUMBER(FIND(\"Ice Maker\",Table_SummaryPI[[#This Row],[ProposedMeasureCategory]],1)),$BD$31*Table_SummaryPI[[#This Row],[Quantity]],\nIF(ISNUMBER(FIND(\"Spray Valve\",Table_SummaryPI[[#This Row],[ProposedMeasureCategory]],1)),$BH$31*Table_SummaryPI[[#This Row],[Quantity]],\n0)))),\"\")","v":""},{"$f":"IF(OR(Table_PI[[#This Row],[Hide: Electrification kWh]]=\"\",Table_PI[[#This Row],[Hide: Electrification kWh]]=0,ISTEXT(Table_PI[[#This Row],[Hide: Electrification kWh]])),\"\",Table_PI[[#This Row],[Hide: Electrification kWh]])","v":""},{"$f":"IF(OR(Table_PI[[#This Row],[Hide: Electrification GHG]]=\"\",Table_PI[[#This Row],[Hide: Electrification GHG]]=0,ISTEXT(Table_PI[[#This Row],[Hide: Electrification GHG]])),\"\",Table_PI[[#This Row],[Hide: Electrification GHG]])","v":""},{"$f":"IFERROR(IF(Table_SummaryPI[[#This Row],[kWhSavings]]=\"\",\"\",$BH$9*Table_SummaryPI[[#This Row],[kWhSavings]]),0)","v":""},{"$f":"IFERROR(IF(Table_SummaryPI[[#This Row],[kWhSavings]]=\"\",\"\",$BH$14*Table_SummaryPI[[#This Row],[kWhSavings]]),0)","v":""},{"$f":"IFERROR(IF(Table_SummaryPI[[#This Row],[kWhSavings]]=\"\",\"\",$BH$18*Table_SummaryPI[[#This Row],[kWhSavings]]),0)","v":""},{"$f":"IFERROR(IF(Table_SummaryPI[[#This Row],[kWhSavings]]=\"\",\"\",$BH$22*Table_SummaryPI[[#This Row],[kWhSavings]]),0)","v":""}]
[{"$f":"Table_PI[[#This Row],[Line No.]]","v":""},{"$f":"IF(Table_SummaryPI[[#This Row],[MeasureName]]<>\"\",NOT(ISTEXT(Table_PI[[#This Row],[Rebate]])),\"\")","v":""},{"$f":"IF(Table_SummaryPI[[#This Row],[MeassureCategory]]<>\"\",CONCATENATE(Table_SummaryPI[[#This Row],[MeassureCategory]],  \" - \", Table_SummaryPI[[#This Row],[ProposedMeasureCategory]],  \" - \", TEXT(Table_SummaryPI[[#This Row],[Size]],\"#,##0.00\"),\" \",Table_SummaryPI[[#This Row],[SizeUnit]]),\"\")","v":""},{"$f":"SUBSTITUTE(Table_PI[[#This Row],[Measure]],\"     \",\"\",1)","v":""},{"$f":"IF(Table_PI[[#This Row],[List 1]]<>\"\",Table_PI[[#This Row],[List 1]],\"\")","v":""},{"$f":"IF(Table_PI[[#This Row],[List 2]]<>\"\",Table_PI[[#This Row],[List 2]],\"\")","v":""},{"$f":"IF(Table_PI[[#This Row],[List 3]]<>\"\",Table_PI[[#This Row],[List 3]],\"\")","v":""},{"$f":"IF(Table_PI[[#This Row],[Manufacturer]]=\"\",\"\",Table_PI[[#This Row],[Manufacturer]])","v":""},{"$f":"IF(Table_PI[[#This Row],[Model Number]]=\"\",\"\",Table_PI[[#This Row],[Model Number]])","v":""},{"$f":"IF(Table_PI[[#This Row],[Serial Number(s)]]=\"\",\"\",Table_PI[[#This Row],[Serial Number(s)]])","v":""},null,{"$f":"IF(Table_PI[[#This Row],[Size]]=\"\",\"\",Table_PI[[#This Row],[Size]])","v":""},null,null,{"$f":"IF(Table_PI[[#This Row],[Input 1]]<>\"\",Table_PI[[#This Row],[Input 1]],\"\")","v":""},null,null,{"$f":"IF(Table_PI[[#This Row],[Input 2]]<>\"\",Table_PI[[#This Row],[Input 2]],\"\")","v":""},null,null,{"$f":"IF(Table_PI[[#This Row],[Input 3]]<>\"\",Table_PI[[#This Row],[Input 3]],\"\")","v":""},null,null,{"$f":"IF(Table_PI[[#This Row],[Input 4]]<>\"\",Table_PI[[#This Row],[Input 4]],\"\")","v":""},null,null,{"$f":"IF(Table_PI[[#This Row],[Input 4]]<>\"\",Table_PI[[#This Row],[Input 4]],\"\")","v":""},null,null,{"$f":"IF(Table_PI[[#This Row],[Input 4]]<>\"\",Table_PI[[#This Row],[Input 4]],\"\")","v":""},{"$f":"IF(Table_PI[[#This Row],[Quantity]]=\"\",\"\",Table_PI[[#This Row],[Quantity]])","v":""},{"$f":"IF(Table_PI[[#This Row],[Notes]]=\"\",\"\",Table_PI[[#This Row],[Notes]])","v":""},{"$f":"IF(OR(Table_PI[[#This Row],[Hide: Baseline kWh]]=\"\",Table_PI[[#This Row],[Hide: Baseline kWh]]=0,ISTEXT(Table_PI[[#This Row],[Hide: Baseline kWh]])),\"\",Table_PI[[#This Row],[Hide: Baseline kWh]])","v":""},{"$f":"IF(OR(Table_PI[[#This Row],[Hide: Baseline kW]]=\"\",Table_PI[[#This Row],[Hide: Baseline kW]]=0,ISTEXT(Table_PI[[#This Row],[Hide: Baseline kW]])),\"\",Table_PI[[#This Row],[Hide: Baseline kW]])","v":""},{"$f":"IF(OR(Table_PI[[#This Row],[Hide: Proposed kWh]]=\"\",Table_PI[[#This Row],[Hide: Proposed kWh]]=0,ISTEXT(Table_PI[[#This Row],[Hide: Proposed kWh]])),\"\",Table_PI[[#This Row],[Hide: Proposed kWh]])","v":""},{"$f":"IF(OR(Table_PI[[#This Row],[Hide: Proposed kW]]=\"\",Table_PI[[#This Row],[Hide: Proposed kW]]=0,ISTEXT(Table_PI[[#This Row],[Hide: Proposed kW]])),\"\",Table_PI[[#This Row],[Hide: Proposed kW]])","v":""},null,null,{"$f":"IF(OR(Table_PI[[#This Row],[Hide: Rebate]]=\"\",Table_PI[[#This Row],[Hide: Rebate]]=0,ISTEXT(Table_PI[[#This Row],[Hide: Rebate]])),\"\",Table_PI[[#This Row],[Hide: Rebate]])","v":""},null,{"$f":"IF(OR(Table_PI[[#This Row],[Hide: Incremental Cost]]=\"\",Table_PI[[#This Row],[Hide: Incremental Cost]]=0,ISTEXT(Table_PI[[#This Row],[Hide: Incremental Cost]])),\"\",Table_PI[[#This Row],[Hide: Incremental Cost]])","v":""},{"$f":"IFERROR(IF(Table_SummaryPI[[#This Row],[Incentive_Customer]]=\"\",\"\",ROUND(Table_SummaryPI[[#This Row],[Incentive_Customer]]/$AM$401*'Customer Information'!$BC$21,2)),0)","v":""},{"$f":"IF(OR(Table_PI[[#This Row],[Annual kWh]]=\"\",Table_PI[[#This Row],[Annual kWh]]=0,ISTEXT(Table_PI[[#This Row],[Annual kWh]])),\"\",Table_PI[[#This Row],[Annual kWh]])","v":""},{"$f":"IF(OR(Table_PI[[#This Row],[Peak kW]]=\"\",Table_PI[[#This Row],[Peak kW]]=0,ISTEXT(Table_PI[[#This Row],[Peak kW]])),\"\",Table_PI[[#This Row],[Peak kW]])","v":""},{"$f":"IF(Table_SummaryPI[[#This Row],[Line No.]]<>\"\",IF(AND(ISNUMBER(FIND(\"Chiller\",Table_SummaryPI[[#This Row],[P_MeasureOption1]],1)),Table_SummaryPI[[#This Row],[ProposedMeasureCategory]]=\"Air-Cooled (Water-Cooled Replacement)\"),$BD$29*Table_SummaryPI[[#This Row],[Size]]*Table_SummaryPI[[#This Row],[Quantity]]*Table_SummaryPI[[#This Row],[EFLHCooling]],\nIF(ISNUMBER(FIND(\"Dishwasher\",Table_SummaryPI[[#This Row],[ProposedMeasureCategory]],1)),$BH$29*Table_SummaryPI[[#This Row],[Quantity]],\nIF(ISNUMBER(FIND(\"Ice Maker\",Table_SummaryPI[[#This Row],[ProposedMeasureCategory]],1)),$BD$31*Table_SummaryPI[[#This Row],[Quantity]],\nIF(ISNUMBER(FIND(\"Spray Valve\",Table_SummaryPI[[#This Row],[ProposedMeasureCategory]],1)),$BH$31*Table_SummaryPI[[#This Row],[Quantity]],\n0)))),\"\")","v":""},{"$f":"IF(OR(Table_PI[[#This Row],[Hide: Electrification kWh]]=\"\",Table_PI[[#This Row],[Hide: Electrification kWh]]=0,ISTEXT(Table_PI[[#This Row],[Hide: Electrification kWh]])),\"\",Table_PI[[#This Row],[Hide: Electrification kWh]])","v":""},{"$f":"IF(OR(Table_PI[[#This Row],[Hide: Electrification GHG]]=\"\",Table_PI[[#This Row],[Hide: Electrification GHG]]=0,ISTEXT(Table_PI[[#This Row],[Hide: Electrification GHG]])),\"\",Table_PI[[#This Row],[Hide: Electrification GHG]])","v":""},{"$f":"IFERROR(IF(Table_SummaryPI[[#This Row],[kWhSavings]]=\"\",\"\",$BH$9*Table_SummaryPI[[#This Row],[kWhSavings]]),0)","v":""},{"$f":"IFERROR(IF(Table_SummaryPI[[#This Row],[kWhSavings]]=\"\",\"\",$BH$14*Table_SummaryPI[[#This Row],[kWhSavings]]),0)","v":""},{"$f":"IFERROR(IF(Table_SummaryPI[[#This Row],[kWhSavings]]=\"\",\"\",$BH$18*Table_SummaryPI[[#This Row],[kWhSavings]]),0)","v":""},{"$f":"IFERROR(IF(Table_SummaryPI[[#This Row],[kWhSavings]]=\"\",\"\",$BH$22*Table_SummaryPI[[#This Row],[kWhSavings]]),0)","v":""}]
[{"$f":"Table_PI[[#This Row],[Line No.]]","v":""},{"$f":"IF(Table_SummaryPI[[#This Row],[MeasureName]]<>\"\",NOT(ISTEXT(Table_PI[[#This Row],[Rebate]])),\"\")","v":""},{"$f":"IF(Table_SummaryPI[[#This Row],[MeassureCategory]]<>\"\",CONCATENATE(Table_SummaryPI[[#This Row],[MeassureCategory]],  \" - \", Table_SummaryPI[[#This Row],[ProposedMeasureCategory]],  \" - \", TEXT(Table_SummaryPI[[#This Row],[Size]],\"#,##0.00\"),\" \",Table_SummaryPI[[#This Row],[SizeUnit]]),\"\")","v":""},{"$f":"SUBSTITUTE(Table_PI[[#This Row],[Measure]],\"     \",\"\",1)","v":""},{"$f":"IF(Table_PI[[#This Row],[List 1]]<>\"\",Table_PI[[#This Row],[List 1]],\"\")","v":""},{"$f":"IF(Table_PI[[#This Row],[List 2]]<>\"\",Table_PI[[#This Row],[List 2]],\"\")","v":""},{"$f":"IF(Table_PI[[#This Row],[List 3]]<>\"\",Table_PI[[#This Row],[List 3]],\"\")","v":""},{"$f":"IF(Table_PI[[#This Row],[Manufacturer]]=\"\",\"\",Table_PI[[#This Row],[Manufacturer]])","v":""},{"$f":"IF(Table_PI[[#This Row],[Model Number]]=\"\",\"\",Table_PI[[#This Row],[Model Number]])","v":""},{"$f":"IF(Table_PI[[#This Row],[Serial Number(s)]]=\"\",\"\",Table_PI[[#This Row],[Serial Number(s)]])","v":""},null,{"$f":"IF(Table_PI[[#This Row],[Size]]=\"\",\"\",Table_PI[[#This Row],[Size]])","v":""},null,null,{"$f":"IF(Table_PI[[#This Row],[Input 1]]<>\"\",Table_PI[[#This Row],[Input 1]],\"\")","v":""},null,null,{"$f":"IF(Table_PI[[#This Row],[Input 2]]<>\"\",Table_PI[[#This Row],[Input 2]],\"\")","v":""},null,null,{"$f":"IF(Table_PI[[#This Row],[Input 3]]<>\"\",Table_PI[[#This Row],[Input 3]],\"\")","v":""},null,null,{"$f":"IF(Table_PI[[#This Row],[Input 4]]<>\"\",Table_PI[[#This Row],[Input 4]],\"\")","v":""},null,null,{"$f":"IF(Table_PI[[#This Row],[Input 4]]<>\"\",Table_PI[[#This Row],[Input 4]],\"\")","v":""},null,null,{"$f":"IF(Table_PI[[#This Row],[Input 4]]<>\"\",Table_PI[[#This Row],[Input 4]],\"\")","v":""},{"$f":"IF(Table_PI[[#This Row],[Quantity]]=\"\",\"\",Table_PI[[#This Row],[Quantity]])","v":""},{"$f":"IF(Table_PI[[#This Row],[Notes]]=\"\",\"\",Table_PI[[#This Row],[Notes]])","v":""},{"$f":"IF(OR(Table_PI[[#This Row],[Hide: Baseline kWh]]=\"\",Table_PI[[#This Row],[Hide: Baseline kWh]]=0,ISTEXT(Table_PI[[#This Row],[Hide: Baseline kWh]])),\"\",Table_PI[[#This Row],[Hide: Baseline kWh]])","v":""},{"$f":"IF(OR(Table_PI[[#This Row],[Hide: Baseline kW]]=\"\",Table_PI[[#This Row],[Hide: Baseline kW]]=0,ISTEXT(Table_PI[[#This Row],[Hide: Baseline kW]])),\"\",Table_PI[[#This Row],[Hide: Baseline kW]])","v":""},{"$f":"IF(OR(Table_PI[[#This Row],[Hide: Proposed kWh]]=\"\",Table_PI[[#This Row],[Hide: Proposed kWh]]=0,ISTEXT(Table_PI[[#This Row],[Hide: Proposed kWh]])),\"\",Table_PI[[#This Row],[Hide: Proposed kWh]])","v":""},{"$f":"IF(OR(Table_PI[[#This Row],[Hide: Proposed kW]]=\"\",Table_PI[[#This Row],[Hide: Proposed kW]]=0,ISTEXT(Table_PI[[#This Row],[Hide: Proposed kW]])),\"\",Table_PI[[#This Row],[Hide: Proposed kW]])","v":""},null,null,{"$f":"IF(OR(Table_PI[[#This Row],[Hide: Rebate]]=\"\",Table_PI[[#This Row],[Hide: Rebate]]=0,ISTEXT(Table_PI[[#This Row],[Hide: Rebate]])),\"\",Table_PI[[#This Row],[Hide: Rebate]])","v":""},null,{"$f":"IF(OR(Table_PI[[#This Row],[Hide: Incremental Cost]]=\"\",Table_PI[[#This Row],[Hide: Incremental Cost]]=0,ISTEXT(Table_PI[[#This Row],[Hide: Incremental Cost]])),\"\",Table_PI[[#This Row],[Hide: Incremental Cost]])","v":""},{"$f":"IFERROR(IF(Table_SummaryPI[[#This Row],[Incentive_Customer]]=\"\",\"\",ROUND(Table_SummaryPI[[#This Row],[Incentive_Customer]]/$AM$401*'Customer Information'!$BC$21,2)),0)","v":""},{"$f":"IF(OR(Table_PI[[#This Row],[Annual kWh]]=\"\",Table_PI[[#This Row],[Annual kWh]]=0,ISTEXT(Table_PI[[#This Row],[Annual kWh]])),\"\",Table_PI[[#This Row],[Annual kWh]])","v":""},{"$f":"IF(OR(Table_PI[[#This Row],[Peak kW]]=\"\",Table_PI[[#This Row],[Peak kW]]=0,ISTEXT(Table_PI[[#This Row],[Peak kW]])),\"\",Table_PI[[#This Row],[Peak kW]])","v":""},{"$f":"IF(Table_SummaryPI[[#This Row],[Line No.]]<>\"\",IF(AND(ISNUMBER(FIND(\"Chiller\",Table_SummaryPI[[#This Row],[P_MeasureOption1]],1)),Table_SummaryPI[[#This Row],[ProposedMeasureCategory]]=\"Air-Cooled (Water-Cooled Replacement)\"),$BD$29*Table_SummaryPI[[#This Row],[Size]]*Table_SummaryPI[[#This Row],[Quantity]]*Table_SummaryPI[[#This Row],[EFLHCooling]],\nIF(ISNUMBER(FIND(\"Dishwasher\",Table_SummaryPI[[#This Row],[ProposedMeasureCategory]],1)),$BH$29*Table_SummaryPI[[#This Row],[Quantity]],\nIF(ISNUMBER(FIND(\"Ice Maker\",Table_SummaryPI[[#This Row],[ProposedMeasureCategory]],1)),$BD$31*Table_SummaryPI[[#This Row],[Quantity]],\nIF(ISNUMBER(FIND(\"Spray Valve\",Table_SummaryPI[[#This Row],[ProposedMeasureCategory]],1)),$BH$31*Table_SummaryPI[[#This Row],[Quantity]],\n0)))),\"\")","v":""},{"$f":"IF(OR(Table_PI[[#This Row],[Hide: Electrification kWh]]=\"\",Table_PI[[#This Row],[Hide: Electrification kWh]]=0,ISTEXT(Table_PI[[#This Row],[Hide: Electrification kWh]])),\"\",Table_PI[[#This Row],[Hide: Electrification kWh]])","v":""},{"$f":"IF(OR(Table_PI[[#This Row],[Hide: Electrification GHG]]=\"\",Table_PI[[#This Row],[Hide: Electrification GHG]]=0,ISTEXT(Table_PI[[#This Row],[Hide: Electrification GHG]])),\"\",Table_PI[[#This Row],[Hide: Electrification GHG]])","v":""},{"$f":"IFERROR(IF(Table_SummaryPI[[#This Row],[kWhSavings]]=\"\",\"\",$BH$9*Table_SummaryPI[[#This Row],[kWhSavings]]),0)","v":""},{"$f":"IFERROR(IF(Table_SummaryPI[[#This Row],[kWhSavings]]=\"\",\"\",$BH$14*Table_SummaryPI[[#This Row],[kWhSavings]]),0)","v":""},{"$f":"IFERROR(IF(Table_SummaryPI[[#This Row],[kWhSavings]]=\"\",\"\",$BH$18*Table_SummaryPI[[#This Row],[kWhSavings]]),0)","v":""},{"$f":"IFERROR(IF(Table_SummaryPI[[#This Row],[kWhSavings]]=\"\",\"\",$BH$22*Table_SummaryPI[[#This Row],[kWhSavings]]),0)","v":""}]
[{"$f":"Table_PI[[#This Row],[Line No.]]","v":""},{"$f":"IF(Table_SummaryPI[[#This Row],[MeasureName]]<>\"\",NOT(ISTEXT(Table_PI[[#This Row],[Rebate]])),\"\")","v":""},{"$f":"IF(Table_SummaryPI[[#This Row],[MeassureCategory]]<>\"\",CONCATENATE(Table_SummaryPI[[#This Row],[MeassureCategory]],  \" - \", Table_SummaryPI[[#This Row],[ProposedMeasureCategory]],  \" - \", TEXT(Table_SummaryPI[[#This Row],[Size]],\"#,##0.00\"),\" \",Table_SummaryPI[[#This Row],[SizeUnit]]),\"\")","v":""},{"$f":"SUBSTITUTE(Table_PI[[#This Row],[Measure]],\"     \",\"\",1)","v":""},{"$f":"IF(Table_PI[[#This Row],[List 1]]<>\"\",Table_PI[[#This Row],[List 1]],\"\")","v":""},{"$f":"IF(Table_PI[[#This Row],[List 2]]<>\"\",Table_PI[[#This Row],[List 2]],\"\")","v":""},{"$f":"IF(Table_PI[[#This Row],[List 3]]<>\"\",Table_PI[[#This Row],[List 3]],\"\")","v":""},{"$f":"IF(Table_PI[[#This Row],[Manufacturer]]=\"\",\"\",Table_PI[[#This Row],[Manufacturer]])","v":""},{"$f":"IF(Table_PI[[#This Row],[Model Number]]=\"\",\"\",Table_PI[[#This Row],[Model Number]])","v":""},{"$f":"IF(Table_PI[[#This Row],[Serial Number(s)]]=\"\",\"\",Table_PI[[#This Row],[Serial Number(s)]])","v":""},null,{"$f":"IF(Table_PI[[#This Row],[Size]]=\"\",\"\",Table_PI[[#This Row],[Size]])","v":""},null,null,{"$f":"IF(Table_PI[[#This Row],[Input 1]]<>\"\",Table_PI[[#This Row],[Input 1]],\"\")","v":""},null,null,{"$f":"IF(Table_PI[[#This Row],[Input 2]]<>\"\",Table_PI[[#This Row],[Input 2]],\"\")","v":""},null,null,{"$f":"IF(Table_PI[[#This Row],[Input 3]]<>\"\",Table_PI[[#This Row],[Input 3]],\"\")","v":""},null,null,{"$f":"IF(Table_PI[[#This Row],[Input 4]]<>\"\",Table_PI[[#This Row],[Input 4]],\"\")","v":""},null,null,{"$f":"IF(Table_PI[[#This Row],[Input 4]]<>\"\",Table_PI[[#This Row],[Input 4]],\"\")","v":""},null,null,{"$f":"IF(Table_PI[[#This Row],[Input 4]]<>\"\",Table_PI[[#This Row],[Input 4]],\"\")","v":""},{"$f":"IF(Table_PI[[#This Row],[Quantity]]=\"\",\"\",Table_PI[[#This Row],[Quantity]])","v":""},{"$f":"IF(Table_PI[[#This Row],[Notes]]=\"\",\"\",Table_PI[[#This Row],[Notes]])","v":""},{"$f":"IF(OR(Table_PI[[#This Row],[Hide: Baseline kWh]]=\"\",Table_PI[[#This Row],[Hide: Baseline kWh]]=0,ISTEXT(Table_PI[[#This Row],[Hide: Baseline kWh]])),\"\",Table_PI[[#This Row],[Hide: Baseline kWh]])","v":""},{"$f":"IF(OR(Table_PI[[#This Row],[Hide: Baseline kW]]=\"\",Table_PI[[#This Row],[Hide: Baseline kW]]=0,ISTEXT(Table_PI[[#This Row],[Hide: Baseline kW]])),\"\",Table_PI[[#This Row],[Hide: Baseline kW]])","v":""},{"$f":"IF(OR(Table_PI[[#This Row],[Hide: Proposed kWh]]=\"\",Table_PI[[#This Row],[Hide: Proposed kWh]]=0,ISTEXT(Table_PI[[#This Row],[Hide: Proposed kWh]])),\"\",Table_PI[[#This Row],[Hide: Proposed kWh]])","v":""},{"$f":"IF(OR(Table_PI[[#This Row],[Hide: Proposed kW]]=\"\",Table_PI[[#This Row],[Hide: Proposed kW]]=0,ISTEXT(Table_PI[[#This Row],[Hide: Proposed kW]])),\"\",Table_PI[[#This Row],[Hide: Proposed kW]])","v":""},null,null,{"$f":"IF(OR(Table_PI[[#This Row],[Hide: Rebate]]=\"\",Table_PI[[#This Row],[Hide: Rebate]]=0,ISTEXT(Table_PI[[#This Row],[Hide: Rebate]])),\"\",Table_PI[[#This Row],[Hide: Rebate]])","v":""},null,{"$f":"IF(OR(Table_PI[[#This Row],[Hide: Incremental Cost]]=\"\",Table_PI[[#This Row],[Hide: Incremental Cost]]=0,ISTEXT(Table_PI[[#This Row],[Hide: Incremental Cost]])),\"\",Table_PI[[#This Row],[Hide: Incremental Cost]])","v":""},{"$f":"IFERROR(IF(Table_SummaryPI[[#This Row],[Incentive_Customer]]=\"\",\"\",ROUND(Table_SummaryPI[[#This Row],[Incentive_Customer]]/$AM$401*'Customer Information'!$BC$21,2)),0)","v":""},{"$f":"IF(OR(Table_PI[[#This Row],[Annual kWh]]=\"\",Table_PI[[#This Row],[Annual kWh]]=0,ISTEXT(Table_PI[[#This Row],[Annual kWh]])),\"\",Table_PI[[#This Row],[Annual kWh]])","v":""},{"$f":"IF(OR(Table_PI[[#This Row],[Peak kW]]=\"\",Table_PI[[#This Row],[Peak kW]]=0,ISTEXT(Table_PI[[#This Row],[Peak kW]])),\"\",Table_PI[[#This Row],[Peak kW]])","v":""},{"$f":"IF(Table_SummaryPI[[#This Row],[Line No.]]<>\"\",IF(AND(ISNUMBER(FIND(\"Chiller\",Table_SummaryPI[[#This Row],[P_MeasureOption1]],1)),Table_SummaryPI[[#This Row],[ProposedMeasureCategory]]=\"Air-Cooled (Water-Cooled Replacement)\"),$BD$29*Table_SummaryPI[[#This Row],[Size]]*Table_SummaryPI[[#This Row],[Quantity]]*Table_SummaryPI[[#This Row],[EFLHCooling]],\nIF(ISNUMBER(FIND(\"Dishwasher\",Table_SummaryPI[[#This Row],[ProposedMeasureCategory]],1)),$BH$29*Table_SummaryPI[[#This Row],[Quantity]],\nIF(ISNUMBER(FIND(\"Ice Maker\",Table_SummaryPI[[#This Row],[ProposedMeasureCategory]],1)),$BD$31*Table_SummaryPI[[#This Row],[Quantity]],\nIF(ISNUMBER(FIND(\"Spray Valve\",Table_SummaryPI[[#This Row],[ProposedMeasureCategory]],1)),$BH$31*Table_SummaryPI[[#This Row],[Quantity]],\n0)))),\"\")","v":""},{"$f":"IF(OR(Table_PI[[#This Row],[Hide: Electrification kWh]]=\"\",Table_PI[[#This Row],[Hide: Electrification kWh]]=0,ISTEXT(Table_PI[[#This Row],[Hide: Electrification kWh]])),\"\",Table_PI[[#This Row],[Hide: Electrification kWh]])","v":""},{"$f":"IF(OR(Table_PI[[#This Row],[Hide: Electrification GHG]]=\"\",Table_PI[[#This Row],[Hide: Electrification GHG]]=0,ISTEXT(Table_PI[[#This Row],[Hide: Electrification GHG]])),\"\",Table_PI[[#This Row],[Hide: Electrification GHG]])","v":""},{"$f":"IFERROR(IF(Table_SummaryPI[[#This Row],[kWhSavings]]=\"\",\"\",$BH$9*Table_SummaryPI[[#This Row],[kWhSavings]]),0)","v":""},{"$f":"IFERROR(IF(Table_SummaryPI[[#This Row],[kWhSavings]]=\"\",\"\",$BH$14*Table_SummaryPI[[#This Row],[kWhSavings]]),0)","v":""},{"$f":"IFERROR(IF(Table_SummaryPI[[#This Row],[kWhSavings]]=\"\",\"\",$BH$18*Table_SummaryPI[[#This Row],[kWhSavings]]),0)","v":""},{"$f":"IFERROR(IF(Table_SummaryPI[[#This Row],[kWhSavings]]=\"\",\"\",$BH$22*Table_SummaryPI[[#This Row],[kWhSavings]]),0)","v":""}]
[{"$f":"Table_PI[[#This Row],[Line No.]]","v":""},{"$f":"IF(Table_SummaryPI[[#This Row],[MeasureName]]<>\"\",NOT(ISTEXT(Table_PI[[#This Row],[Rebate]])),\"\")","v":""},{"$f":"IF(Table_SummaryPI[[#This Row],[MeassureCategory]]<>\"\",CONCATENATE(Table_SummaryPI[[#This Row],[MeassureCategory]],  \" - \", Table_SummaryPI[[#This Row],[ProposedMeasureCategory]],  \" - \", TEXT(Table_SummaryPI[[#This Row],[Size]],\"#,##0.00\"),\" \",Table_SummaryPI[[#This Row],[SizeUnit]]),\"\")","v":""},{"$f":"SUBSTITUTE(Table_PI[[#This Row],[Measure]],\"     \",\"\",1)","v":""},{"$f":"IF(Table_PI[[#This Row],[List 1]]<>\"\",Table_PI[[#This Row],[List 1]],\"\")","v":""},{"$f":"IF(Table_PI[[#This Row],[List 2]]<>\"\",Table_PI[[#This Row],[List 2]],\"\")","v":""},{"$f":"IF(Table_PI[[#This Row],[List 3]]<>\"\",Table_PI[[#This Row],[List 3]],\"\")","v":""},{"$f":"IF(Table_PI[[#This Row],[Manufacturer]]=\"\",\"\",Table_PI[[#This Row],[Manufacturer]])","v":""},{"$f":"IF(Table_PI[[#This Row],[Model Number]]=\"\",\"\",Table_PI[[#This Row],[Model Number]])","v":""},{"$f":"IF(Table_PI[[#This Row],[Serial Number(s)]]=\"\",\"\",Table_PI[[#This Row],[Serial Number(s)]])","v":""},null,{"$f":"IF(Table_PI[[#This Row],[Size]]=\"\",\"\",Table_PI[[#This Row],[Size]])","v":""},null,null,{"$f":"IF(Table_PI[[#This Row],[Input 1]]<>\"\",Table_PI[[#This Row],[Input 1]],\"\")","v":""},null,null,{"$f":"IF(Table_PI[[#This Row],[Input 2]]<>\"\",Table_PI[[#This Row],[Input 2]],\"\")","v":""},null,null,{"$f":"IF(Table_PI[[#This Row],[Input 3]]<>\"\",Table_PI[[#This Row],[Input 3]],\"\")","v":""},null,null,{"$f":"IF(Table_PI[[#This Row],[Input 4]]<>\"\",Table_PI[[#This Row],[Input 4]],\"\")","v":""},null,null,{"$f":"IF(Table_PI[[#This Row],[Input 4]]<>\"\",Table_PI[[#This Row],[Input 4]],\"\")","v":""},null,null,{"$f":"IF(Table_PI[[#This Row],[Input 4]]<>\"\",Table_PI[[#This Row],[Input 4]],\"\")","v":""},{"$f":"IF(Table_PI[[#This Row],[Quantity]]=\"\",\"\",Table_PI[[#This Row],[Quantity]])","v":""},{"$f":"IF(Table_PI[[#This Row],[Notes]]=\"\",\"\",Table_PI[[#This Row],[Notes]])","v":""},{"$f":"IF(OR(Table_PI[[#This Row],[Hide: Baseline kWh]]=\"\",Table_PI[[#This Row],[Hide: Baseline kWh]]=0,ISTEXT(Table_PI[[#This Row],[Hide: Baseline kWh]])),\"\",Table_PI[[#This Row],[Hide: Baseline kWh]])","v":""},{"$f":"IF(OR(Table_PI[[#This Row],[Hide: Baseline kW]]=\"\",Table_PI[[#This Row],[Hide: Baseline kW]]=0,ISTEXT(Table_PI[[#This Row],[Hide: Baseline kW]])),\"\",Table_PI[[#This Row],[Hide: Baseline kW]])","v":""},{"$f":"IF(OR(Table_PI[[#This Row],[Hide: Proposed kWh]]=\"\",Table_PI[[#This Row],[Hide: Proposed kWh]]=0,ISTEXT(Table_PI[[#This Row],[Hide: Proposed kWh]])),\"\",Table_PI[[#This Row],[Hide: Proposed kWh]])","v":""},{"$f":"IF(OR(Table_PI[[#This Row],[Hide: Proposed kW]]=\"\",Table_PI[[#This Row],[Hide: Proposed kW]]=0,ISTEXT(Table_PI[[#This Row],[Hide: Proposed kW]])),\"\",Table_PI[[#This Row],[Hide: Proposed kW]])","v":""},null,null,{"$f":"IF(OR(Table_PI[[#This Row],[Hide: Rebate]]=\"\",Table_PI[[#This Row],[Hide: Rebate]]=0,ISTEXT(Table_PI[[#This Row],[Hide: Rebate]])),\"\",Table_PI[[#This Row],[Hide: Rebate]])","v":""},null,{"$f":"IF(OR(Table_PI[[#This Row],[Hide: Incremental Cost]]=\"\",Table_PI[[#This Row],[Hide: Incremental Cost]]=0,ISTEXT(Table_PI[[#This Row],[Hide: Incremental Cost]])),\"\",Table_PI[[#This Row],[Hide: Incremental Cost]])","v":""},{"$f":"IFERROR(IF(Table_SummaryPI[[#This Row],[Incentive_Customer]]=\"\",\"\",ROUND(Table_SummaryPI[[#This Row],[Incentive_Customer]]/$AM$401*'Customer Information'!$BC$21,2)),0)","v":""},{"$f":"IF(OR(Table_PI[[#This Row],[Annual kWh]]=\"\",Table_PI[[#This Row],[Annual kWh]]=0,ISTEXT(Table_PI[[#This Row],[Annual kWh]])),\"\",Table_PI[[#This Row],[Annual kWh]])","v":""},{"$f":"IF(OR(Table_PI[[#This Row],[Peak kW]]=\"\",Table_PI[[#This Row],[Peak kW]]=0,ISTEXT(Table_PI[[#This Row],[Peak kW]])),\"\",Table_PI[[#This Row],[Peak kW]])","v":""},{"$f":"IF(Table_SummaryPI[[#This Row],[Line No.]]<>\"\",IF(AND(ISNUMBER(FIND(\"Chiller\",Table_SummaryPI[[#This Row],[P_MeasureOption1]],1)),Table_SummaryPI[[#This Row],[ProposedMeasureCategory]]=\"Air-Cooled (Water-Cooled Replacement)\"),$BD$29*Table_SummaryPI[[#This Row],[Size]]*Table_SummaryPI[[#This Row],[Quantity]]*Table_SummaryPI[[#This Row],[EFLHCooling]],\nIF(ISNUMBER(FIND(\"Dishwasher\",Table_SummaryPI[[#This Row],[ProposedMeasureCategory]],1)),$BH$29*Table_SummaryPI[[#This Row],[Quantity]],\nIF(ISNUMBER(FIND(\"Ice Maker\",Table_SummaryPI[[#This Row],[ProposedMeasureCategory]],1)),$BD$31*Table_SummaryPI[[#This Row],[Quantity]],\nIF(ISNUMBER(FIND(\"Spray Valve\",Table_SummaryPI[[#This Row],[ProposedMeasureCategory]],1)),$BH$31*Table_SummaryPI[[#This Row],[Quantity]],\n0)))),\"\")","v":""},{"$f":"IF(OR(Table_PI[[#This Row],[Hide: Electrification kWh]]=\"\",Table_PI[[#This Row],[Hide: Electrification kWh]]=0,ISTEXT(Table_PI[[#This Row],[Hide: Electrification kWh]])),\"\",Table_PI[[#This Row],[Hide: Electrification kWh]])","v":""},{"$f":"IF(OR(Table_PI[[#This Row],[Hide: Electrification GHG]]=\"\",Table_PI[[#This Row],[Hide: Electrification GHG]]=0,ISTEXT(Table_PI[[#This Row],[Hide: Electrification GHG]])),\"\",Table_PI[[#This Row],[Hide: Electrification GHG]])","v":""},{"$f":"IFERROR(IF(Table_SummaryPI[[#This Row],[kWhSavings]]=\"\",\"\",$BH$9*Table_SummaryPI[[#This Row],[kWhSavings]]),0)","v":""},{"$f":"IFERROR(IF(Table_SummaryPI[[#This Row],[kWhSavings]]=\"\",\"\",$BH$14*Table_SummaryPI[[#This Row],[kWhSavings]]),0)","v":""},{"$f":"IFERROR(IF(Table_SummaryPI[[#This Row],[kWhSavings]]=\"\",\"\",$BH$18*Table_SummaryPI[[#This Row],[kWhSavings]]),0)","v":""},{"$f":"IFERROR(IF(Table_SummaryPI[[#This Row],[kWhSavings]]=\"\",\"\",$BH$22*Table_SummaryPI[[#This Row],[kWhSavings]]),0)","v":""}]
[{"$f":"Table_PI[[#This Row],[Line No.]]","v":""},{"$f":"IF(Table_SummaryPI[[#This Row],[MeasureName]]<>\"\",NOT(ISTEXT(Table_PI[[#This Row],[Rebate]])),\"\")","v":""},{"$f":"IF(Table_SummaryPI[[#This Row],[MeassureCategory]]<>\"\",CONCATENATE(Table_SummaryPI[[#This Row],[MeassureCategory]],  \" - \", Table_SummaryPI[[#This Row],[ProposedMeasureCategory]],  \" - \", TEXT(Table_SummaryPI[[#This Row],[Size]],\"#,##0.00\"),\" \",Table_SummaryPI[[#This Row],[SizeUnit]]),\"\")","v":""},{"$f":"SUBSTITUTE(Table_PI[[#This Row],[Measure]],\"     \",\"\",1)","v":""},{"$f":"IF(Table_PI[[#This Row],[List 1]]<>\"\",Table_PI[[#This Row],[List 1]],\"\")","v":""},{"$f":"IF(Table_PI[[#This Row],[List 2]]<>\"\",Table_PI[[#This Row],[List 2]],\"\")","v":""},{"$f":"IF(Table_PI[[#This Row],[List 3]]<>\"\",Table_PI[[#This Row],[List 3]],\"\")","v":""},{"$f":"IF(Table_PI[[#This Row],[Manufacturer]]=\"\",\"\",Table_PI[[#This Row],[Manufacturer]])","v":""},{"$f":"IF(Table_PI[[#This Row],[Model Number]]=\"\",\"\",Table_PI[[#This Row],[Model Number]])","v":""},{"$f":"IF(Table_PI[[#This Row],[Serial Number(s)]]=\"\",\"\",Table_PI[[#This Row],[Serial Number(s)]])","v":""},null,{"$f":"IF(Table_PI[[#This Row],[Size]]=\"\",\"\",Table_PI[[#This Row],[Size]])","v":""},null,null,{"$f":"IF(Table_PI[[#This Row],[Input 1]]<>\"\",Table_PI[[#This Row],[Input 1]],\"\")","v":""},null,null,{"$f":"IF(Table_PI[[#This Row],[Input 2]]<>\"\",Table_PI[[#This Row],[Input 2]],\"\")","v":""},null,null,{"$f":"IF(Table_PI[[#This Row],[Input 3]]<>\"\",Table_PI[[#This Row],[Input 3]],\"\")","v":""},null,null,{"$f":"IF(Table_PI[[#This Row],[Input 4]]<>\"\",Table_PI[[#This Row],[Input 4]],\"\")","v":""},null,null,{"$f":"IF(Table_PI[[#This Row],[Input 4]]<>\"\",Table_PI[[#This Row],[Input 4]],\"\")","v":""},null,null,{"$f":"IF(Table_PI[[#This Row],[Input 4]]<>\"\",Table_PI[[#This Row],[Input 4]],\"\")","v":""},{"$f":"IF(Table_PI[[#This Row],[Quantity]]=\"\",\"\",Table_PI[[#This Row],[Quantity]])","v":""},{"$f":"IF(Table_PI[[#This Row],[Notes]]=\"\",\"\",Table_PI[[#This Row],[Notes]])","v":""},{"$f":"IF(OR(Table_PI[[#This Row],[Hide: Baseline kWh]]=\"\",Table_PI[[#This Row],[Hide: Baseline kWh]]=0,ISTEXT(Table_PI[[#This Row],[Hide: Baseline kWh]])),\"\",Table_PI[[#This Row],[Hide: Baseline kWh]])","v":""},{"$f":"IF(OR(Table_PI[[#This Row],[Hide: Baseline kW]]=\"\",Table_PI[[#This Row],[Hide: Baseline kW]]=0,ISTEXT(Table_PI[[#This Row],[Hide: Baseline kW]])),\"\",Table_PI[[#This Row],[Hide: Baseline kW]])","v":""},{"$f":"IF(OR(Table_PI[[#This Row],[Hide: Proposed kWh]]=\"\",Table_PI[[#This Row],[Hide: Proposed kWh]]=0,ISTEXT(Table_PI[[#This Row],[Hide: Proposed kWh]])),\"\",Table_PI[[#This Row],[Hide: Proposed kWh]])","v":""},{"$f":"IF(OR(Table_PI[[#This Row],[Hide: Proposed kW]]=\"\",Table_PI[[#This Row],[Hide: Proposed kW]]=0,ISTEXT(Table_PI[[#This Row],[Hide: Proposed kW]])),\"\",Table_PI[[#This Row],[Hide: Proposed kW]])","v":""},null,null,{"$f":"IF(OR(Table_PI[[#This Row],[Hide: Rebate]]=\"\",Table_PI[[#This Row],[Hide: Rebate]]=0,ISTEXT(Table_PI[[#This Row],[Hide: Rebate]])),\"\",Table_PI[[#This Row],[Hide: Rebate]])","v":""},null,{"$f":"IF(OR(Table_PI[[#This Row],[Hide: Incremental Cost]]=\"\",Table_PI[[#This Row],[Hide: Incremental Cost]]=0,ISTEXT(Table_PI[[#This Row],[Hide: Incremental Cost]])),\"\",Table_PI[[#This Row],[Hide: Incremental Cost]])","v":""},{"$f":"IFERROR(IF(Table_SummaryPI[[#This Row],[Incentive_Customer]]=\"\",\"\",ROUND(Table_SummaryPI[[#This Row],[Incentive_Customer]]/$AM$401*'Customer Information'!$BC$21,2)),0)","v":""},{"$f":"IF(OR(Table_PI[[#This Row],[Annual kWh]]=\"\",Table_PI[[#This Row],[Annual kWh]]=0,ISTEXT(Table_PI[[#This Row],[Annual kWh]])),\"\",Table_PI[[#This Row],[Annual kWh]])","v":""},{"$f":"IF(OR(Table_PI[[#This Row],[Peak kW]]=\"\",Table_PI[[#This Row],[Peak kW]]=0,ISTEXT(Table_PI[[#This Row],[Peak kW]])),\"\",Table_PI[[#This Row],[Peak kW]])","v":""},{"$f":"IF(Table_SummaryPI[[#This Row],[Line No.]]<>\"\",IF(AND(ISNUMBER(FIND(\"Chiller\",Table_SummaryPI[[#This Row],[P_MeasureOption1]],1)),Table_SummaryPI[[#This Row],[ProposedMeasureCategory]]=\"Air-Cooled (Water-Cooled Replacement)\"),$BD$29*Table_SummaryPI[[#This Row],[Size]]*Table_SummaryPI[[#This Row],[Quantity]]*Table_SummaryPI[[#This Row],[EFLHCooling]],\nIF(ISNUMBER(FIND(\"Dishwasher\",Table_SummaryPI[[#This Row],[ProposedMeasureCategory]],1)),$BH$29*Table_SummaryPI[[#This Row],[Quantity]],\nIF(ISNUMBER(FIND(\"Ice Maker\",Table_SummaryPI[[#This Row],[ProposedMeasureCategory]],1)),$BD$31*Table_SummaryPI[[#This Row],[Quantity]],\nIF(ISNUMBER(FIND(\"Spray Valve\",Table_SummaryPI[[#This Row],[ProposedMeasureCategory]],1)),$BH$31*Table_SummaryPI[[#This Row],[Quantity]],\n0)))),\"\")","v":""},{"$f":"IF(OR(Table_PI[[#This Row],[Hide: Electrification kWh]]=\"\",Table_PI[[#This Row],[Hide: Electrification kWh]]=0,ISTEXT(Table_PI[[#This Row],[Hide: Electrification kWh]])),\"\",Table_PI[[#This Row],[Hide: Electrification kWh]])","v":""},{"$f":"IF(OR(Table_PI[[#This Row],[Hide: Electrification GHG]]=\"\",Table_PI[[#This Row],[Hide: Electrification GHG]]=0,ISTEXT(Table_PI[[#This Row],[Hide: Electrification GHG]])),\"\",Table_PI[[#This Row],[Hide: Electrification GHG]])","v":""},{"$f":"IFERROR(IF(Table_SummaryPI[[#This Row],[kWhSavings]]=\"\",\"\",$BH$9*Table_SummaryPI[[#This Row],[kWhSavings]]),0)","v":""},{"$f":"IFERROR(IF(Table_SummaryPI[[#This Row],[kWhSavings]]=\"\",\"\",$BH$14*Table_SummaryPI[[#This Row],[kWhSavings]]),0)","v":""},{"$f":"IFERROR(IF(Table_SummaryPI[[#This Row],[kWhSavings]]=\"\",\"\",$BH$18*Table_SummaryPI[[#This Row],[kWhSavings]]),0)","v":""},{"$f":"IFERROR(IF(Table_SummaryPI[[#This Row],[kWhSavings]]=\"\",\"\",$BH$22*Table_SummaryPI[[#This Row],[kWhSavings]]),0)","v":""}]
[{"$f":"Table_PI[[#This Row],[Line No.]]","v":""},{"$f":"IF(Table_SummaryPI[[#This Row],[MeasureName]]<>\"\",NOT(ISTEXT(Table_PI[[#This Row],[Rebate]])),\"\")","v":""},{"$f":"IF(Table_SummaryPI[[#This Row],[MeassureCategory]]<>\"\",CONCATENATE(Table_SummaryPI[[#This Row],[MeassureCategory]],  \" - \", Table_SummaryPI[[#This Row],[ProposedMeasureCategory]],  \" - \", TEXT(Table_SummaryPI[[#This Row],[Size]],\"#,##0.00\"),\" \",Table_SummaryPI[[#This Row],[SizeUnit]]),\"\")","v":""},{"$f":"SUBSTITUTE(Table_PI[[#This Row],[Measure]],\"     \",\"\",1)","v":""},{"$f":"IF(Table_PI[[#This Row],[List 1]]<>\"\",Table_PI[[#This Row],[List 1]],\"\")","v":""},{"$f":"IF(Table_PI[[#This Row],[List 2]]<>\"\",Table_PI[[#This Row],[List 2]],\"\")","v":""},{"$f":"IF(Table_PI[[#This Row],[List 3]]<>\"\",Table_PI[[#This Row],[List 3]],\"\")","v":""},{"$f":"IF(Table_PI[[#This Row],[Manufacturer]]=\"\",\"\",Table_PI[[#This Row],[Manufacturer]])","v":""},{"$f":"IF(Table_PI[[#This Row],[Model Number]]=\"\",\"\",Table_PI[[#This Row],[Model Number]])","v":""},{"$f":"IF(Table_PI[[#This Row],[Serial Number(s)]]=\"\",\"\",Table_PI[[#This Row],[Serial Number(s)]])","v":""},null,{"$f":"IF(Table_PI[[#This Row],[Size]]=\"\",\"\",Table_PI[[#This Row],[Size]])","v":""},null,null,{"$f":"IF(Table_PI[[#This Row],[Input 1]]<>\"\",Table_PI[[#This Row],[Input 1]],\"\")","v":""},null,null,{"$f":"IF(Table_PI[[#This Row],[Input 2]]<>\"\",Table_PI[[#This Row],[Input 2]],\"\")","v":""},null,null,{"$f":"IF(Table_PI[[#This Row],[Input 3]]<>\"\",Table_PI[[#This Row],[Input 3]],\"\")","v":""},null,null,{"$f":"IF(Table_PI[[#This Row],[Input 4]]<>\"\",Table_PI[[#This Row],[Input 4]],\"\")","v":""},null,null,{"$f":"IF(Table_PI[[#This Row],[Input 4]]<>\"\",Table_PI[[#This Row],[Input 4]],\"\")","v":""},null,null,{"$f":"IF(Table_PI[[#This Row],[Input 4]]<>\"\",Table_PI[[#This Row],[Input 4]],\"\")","v":""},{"$f":"IF(Table_PI[[#This Row],[Quantity]]=\"\",\"\",Table_PI[[#This Row],[Quantity]])","v":""},{"$f":"IF(Table_PI[[#This Row],[Notes]]=\"\",\"\",Table_PI[[#This Row],[Notes]])","v":""},{"$f":"IF(OR(Table_PI[[#This Row],[Hide: Baseline kWh]]=\"\",Table_PI[[#This Row],[Hide: Baseline kWh]]=0,ISTEXT(Table_PI[[#This Row],[Hide: Baseline kWh]])),\"\",Table_PI[[#This Row],[Hide: Baseline kWh]])","v":""},{"$f":"IF(OR(Table_PI[[#This Row],[Hide: Baseline kW]]=\"\",Table_PI[[#This Row],[Hide: Baseline kW]]=0,ISTEXT(Table_PI[[#This Row],[Hide: Baseline kW]])),\"\",Table_PI[[#This Row],[Hide: Baseline kW]])","v":""},{"$f":"IF(OR(Table_PI[[#This Row],[Hide: Proposed kWh]]=\"\",Table_PI[[#This Row],[Hide: Proposed kWh]]=0,ISTEXT(Table_PI[[#This Row],[Hide: Proposed kWh]])),\"\",Table_PI[[#This Row],[Hide: Proposed kWh]])","v":""},{"$f":"IF(OR(Table_PI[[#This Row],[Hide: Proposed kW]]=\"\",Table_PI[[#This Row],[Hide: Proposed kW]]=0,ISTEXT(Table_PI[[#This Row],[Hide: Proposed kW]])),\"\",Table_PI[[#This Row],[Hide: Proposed kW]])","v":""},null,null,{"$f":"IF(OR(Table_PI[[#This Row],[Hide: Rebate]]=\"\",Table_PI[[#This Row],[Hide: Rebate]]=0,ISTEXT(Table_PI[[#This Row],[Hide: Rebate]])),\"\",Table_PI[[#This Row],[Hide: Rebate]])","v":""},null,{"$f":"IF(OR(Table_PI[[#This Row],[Hide: Incremental Cost]]=\"\",Table_PI[[#This Row],[Hide: Incremental Cost]]=0,ISTEXT(Table_PI[[#This Row],[Hide: Incremental Cost]])),\"\",Table_PI[[#This Row],[Hide: Incremental Cost]])","v":""},{"$f":"IFERROR(IF(Table_SummaryPI[[#This Row],[Incentive_Customer]]=\"\",\"\",ROUND(Table_SummaryPI[[#This Row],[Incentive_Customer]]/$AM$401*'Customer Information'!$BC$21,2)),0)","v":""},{"$f":"IF(OR(Table_PI[[#This Row],[Annual kWh]]=\"\",Table_PI[[#This Row],[Annual kWh]]=0,ISTEXT(Table_PI[[#This Row],[Annual kWh]])),\"\",Table_PI[[#This Row],[Annual kWh]])","v":""},{"$f":"IF(OR(Table_PI[[#This Row],[Peak kW]]=\"\",Table_PI[[#This Row],[Peak kW]]=0,ISTEXT(Table_PI[[#This Row],[Peak kW]])),\"\",Table_PI[[#This Row],[Peak kW]])","v":""},{"$f":"IF(Table_SummaryPI[[#This Row],[Line No.]]<>\"\",IF(AND(ISNUMBER(FIND(\"Chiller\",Table_SummaryPI[[#This Row],[P_MeasureOption1]],1)),Table_SummaryPI[[#This Row],[ProposedMeasureCategory]]=\"Air-Cooled (Water-Cooled Replacement)\"),$BD$29*Table_SummaryPI[[#This Row],[Size]]*Table_SummaryPI[[#This Row],[Quantity]]*Table_SummaryPI[[#This Row],[EFLHCooling]],\nIF(ISNUMBER(FIND(\"Dishwasher\",Table_SummaryPI[[#This Row],[ProposedMeasureCategory]],1)),$BH$29*Table_SummaryPI[[#This Row],[Quantity]],\nIF(ISNUMBER(FIND(\"Ice Maker\",Table_SummaryPI[[#This Row],[ProposedMeasureCategory]],1)),$BD$31*Table_SummaryPI[[#This Row],[Quantity]],\nIF(ISNUMBER(FIND(\"Spray Valve\",Table_SummaryPI[[#This Row],[ProposedMeasureCategory]],1)),$BH$31*Table_SummaryPI[[#This Row],[Quantity]],\n0)))),\"\")","v":""},{"$f":"IF(OR(Table_PI[[#This Row],[Hide: Electrification kWh]]=\"\",Table_PI[[#This Row],[Hide: Electrification kWh]]=0,ISTEXT(Table_PI[[#This Row],[Hide: Electrification kWh]])),\"\",Table_PI[[#This Row],[Hide: Electrification kWh]])","v":""},{"$f":"IF(OR(Table_PI[[#This Row],[Hide: Electrification GHG]]=\"\",Table_PI[[#This Row],[Hide: Electrification GHG]]=0,ISTEXT(Table_PI[[#This Row],[Hide: Electrification GHG]])),\"\",Table_PI[[#This Row],[Hide: Electrification GHG]])","v":""},{"$f":"IFERROR(IF(Table_SummaryPI[[#This Row],[kWhSavings]]=\"\",\"\",$BH$9*Table_SummaryPI[[#This Row],[kWhSavings]]),0)","v":""},{"$f":"IFERROR(IF(Table_SummaryPI[[#This Row],[kWhSavings]]=\"\",\"\",$BH$14*Table_SummaryPI[[#This Row],[kWhSavings]]),0)","v":""},{"$f":"IFERROR(IF(Table_SummaryPI[[#This Row],[kWhSavings]]=\"\",\"\",$BH$18*Table_SummaryPI[[#This Row],[kWhSavings]]),0)","v":""},{"$f":"IFERROR(IF(Table_SummaryPI[[#This Row],[kWhSavings]]=\"\",\"\",$BH$22*Table_SummaryPI[[#This Row],[kWhSavings]]),0)","v":""}]
[{"$f":"Table_PI[[#This Row],[Line No.]]","v":""},{"$f":"IF(Table_SummaryPI[[#This Row],[MeasureName]]<>\"\",NOT(ISTEXT(Table_PI[[#This Row],[Rebate]])),\"\")","v":""},{"$f":"IF(Table_SummaryPI[[#This Row],[MeassureCategory]]<>\"\",CONCATENATE(Table_SummaryPI[[#This Row],[MeassureCategory]],  \" - \", Table_SummaryPI[[#This Row],[ProposedMeasureCategory]],  \" - \", TEXT(Table_SummaryPI[[#This Row],[Size]],\"#,##0.00\"),\" \",Table_SummaryPI[[#This Row],[SizeUnit]]),\"\")","v":""},{"$f":"SUBSTITUTE(Table_PI[[#This Row],[Measure]],\"     \",\"\",1)","v":""},{"$f":"IF(Table_PI[[#This Row],[List 1]]<>\"\",Table_PI[[#This Row],[List 1]],\"\")","v":""},{"$f":"IF(Table_PI[[#This Row],[List 2]]<>\"\",Table_PI[[#This Row],[List 2]],\"\")","v":""},{"$f":"IF(Table_PI[[#This Row],[List 3]]<>\"\",Table_PI[[#This Row],[List 3]],\"\")","v":""},{"$f":"IF(Table_PI[[#This Row],[Manufacturer]]=\"\",\"\",Table_PI[[#This Row],[Manufacturer]])","v":""},{"$f":"IF(Table_PI[[#This Row],[Model Number]]=\"\",\"\",Table_PI[[#This Row],[Model Number]])","v":""},{"$f":"IF(Table_PI[[#This Row],[Serial Number(s)]]=\"\",\"\",Table_PI[[#This Row],[Serial Number(s)]])","v":""},null,{"$f":"IF(Table_PI[[#This Row],[Size]]=\"\",\"\",Table_PI[[#This Row],[Size]])","v":""},null,null,{"$f":"IF(Table_PI[[#This Row],[Input 1]]<>\"\",Table_PI[[#This Row],[Input 1]],\"\")","v":""},null,null,{"$f":"IF(Table_PI[[#This Row],[Input 2]]<>\"\",Table_PI[[#This Row],[Input 2]],\"\")","v":""},null,null,{"$f":"IF(Table_PI[[#This Row],[Input 3]]<>\"\",Table_PI[[#This Row],[Input 3]],\"\")","v":""},null,null,{"$f":"IF(Table_PI[[#This Row],[Input 4]]<>\"\",Table_PI[[#This Row],[Input 4]],\"\")","v":""},null,null,{"$f":"IF(Table_PI[[#This Row],[Input 4]]<>\"\",Table_PI[[#This Row],[Input 4]],\"\")","v":""},null,null,{"$f":"IF(Table_PI[[#This Row],[Input 4]]<>\"\",Table_PI[[#This Row],[Input 4]],\"\")","v":""},{"$f":"IF(Table_PI[[#This Row],[Quantity]]=\"\",\"\",Table_PI[[#This Row],[Quantity]])","v":""},{"$f":"IF(Table_PI[[#This Row],[Notes]]=\"\",\"\",Table_PI[[#This Row],[Notes]])","v":""},{"$f":"IF(OR(Table_PI[[#This Row],[Hide: Baseline kWh]]=\"\",Table_PI[[#This Row],[Hide: Baseline kWh]]=0,ISTEXT(Table_PI[[#This Row],[Hide: Baseline kWh]])),\"\",Table_PI[[#This Row],[Hide: Baseline kWh]])","v":""},{"$f":"IF(OR(Table_PI[[#This Row],[Hide: Baseline kW]]=\"\",Table_PI[[#This Row],[Hide: Baseline kW]]=0,ISTEXT(Table_PI[[#This Row],[Hide: Baseline kW]])),\"\",Table_PI[[#This Row],[Hide: Baseline kW]])","v":""},{"$f":"IF(OR(Table_PI[[#This Row],[Hide: Proposed kWh]]=\"\",Table_PI[[#This Row],[Hide: Proposed kWh]]=0,ISTEXT(Table_PI[[#This Row],[Hide: Proposed kWh]])),\"\",Table_PI[[#This Row],[Hide: Proposed kWh]])","v":""},{"$f":"IF(OR(Table_PI[[#This Row],[Hide: Proposed kW]]=\"\",Table_PI[[#This Row],[Hide: Proposed kW]]=0,ISTEXT(Table_PI[[#This Row],[Hide: Proposed kW]])),\"\",Table_PI[[#This Row],[Hide: Proposed kW]])","v":""},null,null,{"$f":"IF(OR(Table_PI[[#This Row],[Hide: Rebate]]=\"\",Table_PI[[#This Row],[Hide: Rebate]]=0,ISTEXT(Table_PI[[#This Row],[Hide: Rebate]])),\"\",Table_PI[[#This Row],[Hide: Rebate]])","v":""},null,{"$f":"IF(OR(Table_PI[[#This Row],[Hide: Incremental Cost]]=\"\",Table_PI[[#This Row],[Hide: Incremental Cost]]=0,ISTEXT(Table_PI[[#This Row],[Hide: Incremental Cost]])),\"\",Table_PI[[#This Row],[Hide: Incremental Cost]])","v":""},{"$f":"IFERROR(IF(Table_SummaryPI[[#This Row],[Incentive_Customer]]=\"\",\"\",ROUND(Table_SummaryPI[[#This Row],[Incentive_Customer]]/$AM$401*'Customer Information'!$BC$21,2)),0)","v":""},{"$f":"IF(OR(Table_PI[[#This Row],[Annual kWh]]=\"\",Table_PI[[#This Row],[Annual kWh]]=0,ISTEXT(Table_PI[[#This Row],[Annual kWh]])),\"\",Table_PI[[#This Row],[Annual kWh]])","v":""},{"$f":"IF(OR(Table_PI[[#This Row],[Peak kW]]=\"\",Table_PI[[#This Row],[Peak kW]]=0,ISTEXT(Table_PI[[#This Row],[Peak kW]])),\"\",Table_PI[[#This Row],[Peak kW]])","v":""},{"$f":"IF(Table_SummaryPI[[#This Row],[Line No.]]<>\"\",IF(AND(ISNUMBER(FIND(\"Chiller\",Table_SummaryPI[[#This Row],[P_MeasureOption1]],1)),Table_SummaryPI[[#This Row],[ProposedMeasureCategory]]=\"Air-Cooled (Water-Cooled Replacement)\"),$BD$29*Table_SummaryPI[[#This Row],[Size]]*Table_SummaryPI[[#This Row],[Quantity]]*Table_SummaryPI[[#This Row],[EFLHCooling]],\nIF(ISNUMBER(FIND(\"Dishwasher\",Table_SummaryPI[[#This Row],[ProposedMeasureCategory]],1)),$BH$29*Table_SummaryPI[[#This Row],[Quantity]],\nIF(ISNUMBER(FIND(\"Ice Maker\",Table_SummaryPI[[#This Row],[ProposedMeasureCategory]],1)),$BD$31*Table_SummaryPI[[#This Row],[Quantity]],\nIF(ISNUMBER(FIND(\"Spray Valve\",Table_SummaryPI[[#This Row],[ProposedMeasureCategory]],1)),$BH$31*Table_SummaryPI[[#This Row],[Quantity]],\n0)))),\"\")","v":""},{"$f":"IF(OR(Table_PI[[#This Row],[Hide: Electrification kWh]]=\"\",Table_PI[[#This Row],[Hide: Electrification kWh]]=0,ISTEXT(Table_PI[[#This Row],[Hide: Electrification kWh]])),\"\",Table_PI[[#This Row],[Hide: Electrification kWh]])","v":""},{"$f":"IF(OR(Table_PI[[#This Row],[Hide: Electrification GHG]]=\"\",Table_PI[[#This Row],[Hide: Electrification GHG]]=0,ISTEXT(Table_PI[[#This Row],[Hide: Electrification GHG]])),\"\",Table_PI[[#This Row],[Hide: Electrification GHG]])","v":""},{"$f":"IFERROR(IF(Table_SummaryPI[[#This Row],[kWhSavings]]=\"\",\"\",$BH$9*Table_SummaryPI[[#This Row],[kWhSavings]]),0)","v":""},{"$f":"IFERROR(IF(Table_SummaryPI[[#This Row],[kWhSavings]]=\"\",\"\",$BH$14*Table_SummaryPI[[#This Row],[kWhSavings]]),0)","v":""},{"$f":"IFERROR(IF(Table_SummaryPI[[#This Row],[kWhSavings]]=\"\",\"\",$BH$18*Table_SummaryPI[[#This Row],[kWhSavings]]),0)","v":""},{"$f":"IFERROR(IF(Table_SummaryPI[[#This Row],[kWhSavings]]=\"\",\"\",$BH$22*Table_SummaryPI[[#This Row],[kWhSavings]]),0)","v":""}]
[{"$f":"Table_PI[[#This Row],[Line No.]]","v":""},{"$f":"IF(Table_SummaryPI[[#This Row],[MeasureName]]<>\"\",NOT(ISTEXT(Table_PI[[#This Row],[Rebate]])),\"\")","v":""},{"$f":"IF(Table_SummaryPI[[#This Row],[MeassureCategory]]<>\"\",CONCATENATE(Table_SummaryPI[[#This Row],[MeassureCategory]],  \" - \", Table_SummaryPI[[#This Row],[ProposedMeasureCategory]],  \" - \", TEXT(Table_SummaryPI[[#This Row],[Size]],\"#,##0.00\"),\" \",Table_SummaryPI[[#This Row],[SizeUnit]]),\"\")","v":""},{"$f":"SUBSTITUTE(Table_PI[[#This Row],[Measure]],\"     \",\"\",1)","v":""},{"$f":"IF(Table_PI[[#This Row],[List 1]]<>\"\",Table_PI[[#This Row],[List 1]],\"\")","v":""},{"$f":"IF(Table_PI[[#This Row],[List 2]]<>\"\",Table_PI[[#This Row],[List 2]],\"\")","v":""},{"$f":"IF(Table_PI[[#This Row],[List 3]]<>\"\",Table_PI[[#This Row],[List 3]],\"\")","v":""},{"$f":"IF(Table_PI[[#This Row],[Manufacturer]]=\"\",\"\",Table_PI[[#This Row],[Manufacturer]])","v":""},{"$f":"IF(Table_PI[[#This Row],[Model Number]]=\"\",\"\",Table_PI[[#This Row],[Model Number]])","v":""},{"$f":"IF(Table_PI[[#This Row],[Serial Number(s)]]=\"\",\"\",Table_PI[[#This Row],[Serial Number(s)]])","v":""},null,{"$f":"IF(Table_PI[[#This Row],[Size]]=\"\",\"\",Table_PI[[#This Row],[Size]])","v":""},null,null,{"$f":"IF(Table_PI[[#This Row],[Input 1]]<>\"\",Table_PI[[#This Row],[Input 1]],\"\")","v":""},null,null,{"$f":"IF(Table_PI[[#This Row],[Input 2]]<>\"\",Table_PI[[#This Row],[Input 2]],\"\")","v":""},null,null,{"$f":"IF(Table_PI[[#This Row],[Input 3]]<>\"\",Table_PI[[#This Row],[Input 3]],\"\")","v":""},null,null,{"$f":"IF(Table_PI[[#This Row],[Input 4]]<>\"\",Table_PI[[#This Row],[Input 4]],\"\")","v":""},null,null,{"$f":"IF(Table_PI[[#This Row],[Input 4]]<>\"\",Table_PI[[#This Row],[Input 4]],\"\")","v":""},null,null,{"$f":"IF(Table_PI[[#This Row],[Input 4]]<>\"\",Table_PI[[#This Row],[Input 4]],\"\")","v":""},{"$f":"IF(Table_PI[[#This Row],[Quantity]]=\"\",\"\",Table_PI[[#This Row],[Quantity]])","v":""},{"$f":"IF(Table_PI[[#This Row],[Notes]]=\"\",\"\",Table_PI[[#This Row],[Notes]])","v":""},{"$f":"IF(OR(Table_PI[[#This Row],[Hide: Baseline kWh]]=\"\",Table_PI[[#This Row],[Hide: Baseline kWh]]=0,ISTEXT(Table_PI[[#This Row],[Hide: Baseline kWh]])),\"\",Table_PI[[#This Row],[Hide: Baseline kWh]])","v":""},{"$f":"IF(OR(Table_PI[[#This Row],[Hide: Baseline kW]]=\"\",Table_PI[[#This Row],[Hide: Baseline kW]]=0,ISTEXT(Table_PI[[#This Row],[Hide: Baseline kW]])),\"\",Table_PI[[#This Row],[Hide: Baseline kW]])","v":""},{"$f":"IF(OR(Table_PI[[#This Row],[Hide: Proposed kWh]]=\"\",Table_PI[[#This Row],[Hide: Proposed kWh]]=0,ISTEXT(Table_PI[[#This Row],[Hide: Proposed kWh]])),\"\",Table_PI[[#This Row],[Hide: Proposed kWh]])","v":""},{"$f":"IF(OR(Table_PI[[#This Row],[Hide: Proposed kW]]=\"\",Table_PI[[#This Row],[Hide: Proposed kW]]=0,ISTEXT(Table_PI[[#This Row],[Hide: Proposed kW]])),\"\",Table_PI[[#This Row],[Hide: Proposed kW]])","v":""},null,null,{"$f":"IF(OR(Table_PI[[#This Row],[Hide: Rebate]]=\"\",Table_PI[[#This Row],[Hide: Rebate]]=0,ISTEXT(Table_PI[[#This Row],[Hide: Rebate]])),\"\",Table_PI[[#This Row],[Hide: Rebate]])","v":""},null,{"$f":"IF(OR(Table_PI[[#This Row],[Hide: Incremental Cost]]=\"\",Table_PI[[#This Row],[Hide: Incremental Cost]]=0,ISTEXT(Table_PI[[#This Row],[Hide: Incremental Cost]])),\"\",Table_PI[[#This Row],[Hide: Incremental Cost]])","v":""},{"$f":"IFERROR(IF(Table_SummaryPI[[#This Row],[Incentive_Customer]]=\"\",\"\",ROUND(Table_SummaryPI[[#This Row],[Incentive_Customer]]/$AM$401*'Customer Information'!$BC$21,2)),0)","v":""},{"$f":"IF(OR(Table_PI[[#This Row],[Annual kWh]]=\"\",Table_PI[[#This Row],[Annual kWh]]=0,ISTEXT(Table_PI[[#This Row],[Annual kWh]])),\"\",Table_PI[[#This Row],[Annual kWh]])","v":""},{"$f":"IF(OR(Table_PI[[#This Row],[Peak kW]]=\"\",Table_PI[[#This Row],[Peak kW]]=0,ISTEXT(Table_PI[[#This Row],[Peak kW]])),\"\",Table_PI[[#This Row],[Peak kW]])","v":""},{"$f":"IF(Table_SummaryPI[[#This Row],[Line No.]]<>\"\",IF(AND(ISNUMBER(FIND(\"Chiller\",Table_SummaryPI[[#This Row],[P_MeasureOption1]],1)),Table_SummaryPI[[#This Row],[ProposedMeasureCategory]]=\"Air-Cooled (Water-Cooled Replacement)\"),$BD$29*Table_SummaryPI[[#This Row],[Size]]*Table_SummaryPI[[#This Row],[Quantity]]*Table_SummaryPI[[#This Row],[EFLHCooling]],\nIF(ISNUMBER(FIND(\"Dishwasher\",Table_SummaryPI[[#This Row],[ProposedMeasureCategory]],1)),$BH$29*Table_SummaryPI[[#This Row],[Quantity]],\nIF(ISNUMBER(FIND(\"Ice Maker\",Table_SummaryPI[[#This Row],[ProposedMeasureCategory]],1)),$BD$31*Table_SummaryPI[[#This Row],[Quantity]],\nIF(ISNUMBER(FIND(\"Spray Valve\",Table_SummaryPI[[#This Row],[ProposedMeasureCategory]],1)),$BH$31*Table_SummaryPI[[#This Row],[Quantity]],\n0)))),\"\")","v":""},{"$f":"IF(OR(Table_PI[[#This Row],[Hide: Electrification kWh]]=\"\",Table_PI[[#This Row],[Hide: Electrification kWh]]=0,ISTEXT(Table_PI[[#This Row],[Hide: Electrification kWh]])),\"\",Table_PI[[#This Row],[Hide: Electrification kWh]])","v":""},{"$f":"IF(OR(Table_PI[[#This Row],[Hide: Electrification GHG]]=\"\",Table_PI[[#This Row],[Hide: Electrification GHG]]=0,ISTEXT(Table_PI[[#This Row],[Hide: Electrification GHG]])),\"\",Table_PI[[#This Row],[Hide: Electrification GHG]])","v":""},{"$f":"IFERROR(IF(Table_SummaryPI[[#This Row],[kWhSavings]]=\"\",\"\",$BH$9*Table_SummaryPI[[#This Row],[kWhSavings]]),0)","v":""},{"$f":"IFERROR(IF(Table_SummaryPI[[#This Row],[kWhSavings]]=\"\",\"\",$BH$14*Table_SummaryPI[[#This Row],[kWhSavings]]),0)","v":""},{"$f":"IFERROR(IF(Table_SummaryPI[[#This Row],[kWhSavings]]=\"\",\"\",$BH$18*Table_SummaryPI[[#This Row],[kWhSavings]]),0)","v":""},{"$f":"IFERROR(IF(Table_SummaryPI[[#This Row],[kWhSavings]]=\"\",\"\",$BH$22*Table_SummaryPI[[#This Row],[kWhSavings]]),0)","v":""}]
[{"$f":"Table_PI[[#This Row],[Line No.]]","v":""},{"$f":"IF(Table_SummaryPI[[#This Row],[MeasureName]]<>\"\",NOT(ISTEXT(Table_PI[[#This Row],[Rebate]])),\"\")","v":""},{"$f":"IF(Table_SummaryPI[[#This Row],[MeassureCategory]]<>\"\",CONCATENATE(Table_SummaryPI[[#This Row],[MeassureCategory]],  \" - \", Table_SummaryPI[[#This Row],[ProposedMeasureCategory]],  \" - \", TEXT(Table_SummaryPI[[#This Row],[Size]],\"#,##0.00\"),\" \",Table_SummaryPI[[#This Row],[SizeUnit]]),\"\")","v":""},{"$f":"SUBSTITUTE(Table_PI[[#This Row],[Measure]],\"     \",\"\",1)","v":""},{"$f":"IF(Table_PI[[#This Row],[List 1]]<>\"\",Table_PI[[#This Row],[List 1]],\"\")","v":""},{"$f":"IF(Table_PI[[#This Row],[List 2]]<>\"\",Table_PI[[#This Row],[List 2]],\"\")","v":""},{"$f":"IF(Table_PI[[#This Row],[List 3]]<>\"\",Table_PI[[#This Row],[List 3]],\"\")","v":""},{"$f":"IF(Table_PI[[#This Row],[Manufacturer]]=\"\",\"\",Table_PI[[#This Row],[Manufacturer]])","v":""},{"$f":"IF(Table_PI[[#This Row],[Model Number]]=\"\",\"\",Table_PI[[#This Row],[Model Number]])","v":""},{"$f":"IF(Table_PI[[#This Row],[Serial Number(s)]]=\"\",\"\",Table_PI[[#This Row],[Serial Number(s)]])","v":""},null,{"$f":"IF(Table_PI[[#This Row],[Size]]=\"\",\"\",Table_PI[[#This Row],[Size]])","v":""},null,null,{"$f":"IF(Table_PI[[#This Row],[Input 1]]<>\"\",Table_PI[[#This Row],[Input 1]],\"\")","v":""},null,null,{"$f":"IF(Table_PI[[#This Row],[Input 2]]<>\"\",Table_PI[[#This Row],[Input 2]],\"\")","v":""},null,null,{"$f":"IF(Table_PI[[#This Row],[Input 3]]<>\"\",Table_PI[[#This Row],[Input 3]],\"\")","v":""},null,null,{"$f":"IF(Table_PI[[#This Row],[Input 4]]<>\"\",Table_PI[[#This Row],[Input 4]],\"\")","v":""},null,null,{"$f":"IF(Table_PI[[#This Row],[Input 4]]<>\"\",Table_PI[[#This Row],[Input 4]],\"\")","v":""},null,null,{"$f":"IF(Table_PI[[#This Row],[Input 4]]<>\"\",Table_PI[[#This Row],[Input 4]],\"\")","v":""},{"$f":"IF(Table_PI[[#This Row],[Quantity]]=\"\",\"\",Table_PI[[#This Row],[Quantity]])","v":""},{"$f":"IF(Table_PI[[#This Row],[Notes]]=\"\",\"\",Table_PI[[#This Row],[Notes]])","v":""},{"$f":"IF(OR(Table_PI[[#This Row],[Hide: Baseline kWh]]=\"\",Table_PI[[#This Row],[Hide: Baseline kWh]]=0,ISTEXT(Table_PI[[#This Row],[Hide: Baseline kWh]])),\"\",Table_PI[[#This Row],[Hide: Baseline kWh]])","v":""},{"$f":"IF(OR(Table_PI[[#This Row],[Hide: Baseline kW]]=\"\",Table_PI[[#This Row],[Hide: Baseline kW]]=0,ISTEXT(Table_PI[[#This Row],[Hide: Baseline kW]])),\"\",Table_PI[[#This Row],[Hide: Baseline kW]])","v":""},{"$f":"IF(OR(Table_PI[[#This Row],[Hide: Proposed kWh]]=\"\",Table_PI[[#This Row],[Hide: Proposed kWh]]=0,ISTEXT(Table_PI[[#This Row],[Hide: Proposed kWh]])),\"\",Table_PI[[#This Row],[Hide: Proposed kWh]])","v":""},{"$f":"IF(OR(Table_PI[[#This Row],[Hide: Proposed kW]]=\"\",Table_PI[[#This Row],[Hide: Proposed kW]]=0,ISTEXT(Table_PI[[#This Row],[Hide: Proposed kW]])),\"\",Table_PI[[#This Row],[Hide: Proposed kW]])","v":""},null,null,{"$f":"IF(OR(Table_PI[[#This Row],[Hide: Rebate]]=\"\",Table_PI[[#This Row],[Hide: Rebate]]=0,ISTEXT(Table_PI[[#This Row],[Hide: Rebate]])),\"\",Table_PI[[#This Row],[Hide: Rebate]])","v":""},null,{"$f":"IF(OR(Table_PI[[#This Row],[Hide: Incremental Cost]]=\"\",Table_PI[[#This Row],[Hide: Incremental Cost]]=0,ISTEXT(Table_PI[[#This Row],[Hide: Incremental Cost]])),\"\",Table_PI[[#This Row],[Hide: Incremental Cost]])","v":""},{"$f":"IFERROR(IF(Table_SummaryPI[[#This Row],[Incentive_Customer]]=\"\",\"\",ROUND(Table_SummaryPI[[#This Row],[Incentive_Customer]]/$AM$401*'Customer Information'!$BC$21,2)),0)","v":""},{"$f":"IF(OR(Table_PI[[#This Row],[Annual kWh]]=\"\",Table_PI[[#This Row],[Annual kWh]]=0,ISTEXT(Table_PI[[#This Row],[Annual kWh]])),\"\",Table_PI[[#This Row],[Annual kWh]])","v":""},{"$f":"IF(OR(Table_PI[[#This Row],[Peak kW]]=\"\",Table_PI[[#This Row],[Peak kW]]=0,ISTEXT(Table_PI[[#This Row],[Peak kW]])),\"\",Table_PI[[#This Row],[Peak kW]])","v":""},{"$f":"IF(Table_SummaryPI[[#This Row],[Line No.]]<>\"\",IF(AND(ISNUMBER(FIND(\"Chiller\",Table_SummaryPI[[#This Row],[P_MeasureOption1]],1)),Table_SummaryPI[[#This Row],[ProposedMeasureCategory]]=\"Air-Cooled (Water-Cooled Replacement)\"),$BD$29*Table_SummaryPI[[#This Row],[Size]]*Table_SummaryPI[[#This Row],[Quantity]]*Table_SummaryPI[[#This Row],[EFLHCooling]],\nIF(ISNUMBER(FIND(\"Dishwasher\",Table_SummaryPI[[#This Row],[ProposedMeasureCategory]],1)),$BH$29*Table_SummaryPI[[#This Row],[Quantity]],\nIF(ISNUMBER(FIND(\"Ice Maker\",Table_SummaryPI[[#This Row],[ProposedMeasureCategory]],1)),$BD$31*Table_SummaryPI[[#This Row],[Quantity]],\nIF(ISNUMBER(FIND(\"Spray Valve\",Table_SummaryPI[[#This Row],[ProposedMeasureCategory]],1)),$BH$31*Table_SummaryPI[[#This Row],[Quantity]],\n0)))),\"\")","v":""},{"$f":"IF(OR(Table_PI[[#This Row],[Hide: Electrification kWh]]=\"\",Table_PI[[#This Row],[Hide: Electrification kWh]]=0,ISTEXT(Table_PI[[#This Row],[Hide: Electrification kWh]])),\"\",Table_PI[[#This Row],[Hide: Electrification kWh]])","v":""},{"$f":"IF(OR(Table_PI[[#This Row],[Hide: Electrification GHG]]=\"\",Table_PI[[#This Row],[Hide: Electrification GHG]]=0,ISTEXT(Table_PI[[#This Row],[Hide: Electrification GHG]])),\"\",Table_PI[[#This Row],[Hide: Electrification GHG]])","v":""},{"$f":"IFERROR(IF(Table_SummaryPI[[#This Row],[kWhSavings]]=\"\",\"\",$BH$9*Table_SummaryPI[[#This Row],[kWhSavings]]),0)","v":""},{"$f":"IFERROR(IF(Table_SummaryPI[[#This Row],[kWhSavings]]=\"\",\"\",$BH$14*Table_SummaryPI[[#This Row],[kWhSavings]]),0)","v":""},{"$f":"IFERROR(IF(Table_SummaryPI[[#This Row],[kWhSavings]]=\"\",\"\",$BH$18*Table_SummaryPI[[#This Row],[kWhSavings]]),0)","v":""},{"$f":"IFERROR(IF(Table_SummaryPI[[#This Row],[kWhSavings]]=\"\",\"\",$BH$22*Table_SummaryPI[[#This Row],[kWhSavings]]),0)","v":""}]
[{"$f":"Table_PI[[#This Row],[Line No.]]","v":""},{"$f":"IF(Table_SummaryPI[[#This Row],[MeasureName]]<>\"\",NOT(ISTEXT(Table_PI[[#This Row],[Rebate]])),\"\")","v":""},{"$f":"IF(Table_SummaryPI[[#This Row],[MeassureCategory]]<>\"\",CONCATENATE(Table_SummaryPI[[#This Row],[MeassureCategory]],  \" - \", Table_SummaryPI[[#This Row],[ProposedMeasureCategory]],  \" - \", TEXT(Table_SummaryPI[[#This Row],[Size]],\"#,##0.00\"),\" \",Table_SummaryPI[[#This Row],[SizeUnit]]),\"\")","v":""},{"$f":"SUBSTITUTE(Table_PI[[#This Row],[Measure]],\"     \",\"\",1)","v":""},{"$f":"IF(Table_PI[[#This Row],[List 1]]<>\"\",Table_PI[[#This Row],[List 1]],\"\")","v":""},{"$f":"IF(Table_PI[[#This Row],[List 2]]<>\"\",Table_PI[[#This Row],[List 2]],\"\")","v":""},{"$f":"IF(Table_PI[[#This Row],[List 3]]<>\"\",Table_PI[[#This Row],[List 3]],\"\")","v":""},{"$f":"IF(Table_PI[[#This Row],[Manufacturer]]=\"\",\"\",Table_PI[[#This Row],[Manufacturer]])","v":""},{"$f":"IF(Table_PI[[#This Row],[Model Number]]=\"\",\"\",Table_PI[[#This Row],[Model Number]])","v":""},{"$f":"IF(Table_PI[[#This Row],[Serial Number(s)]]=\"\",\"\",Table_PI[[#This Row],[Serial Number(s)]])","v":""},null,{"$f":"IF(Table_PI[[#This Row],[Size]]=\"\",\"\",Table_PI[[#This Row],[Size]])","v":""},null,null,{"$f":"IF(Table_PI[[#This Row],[Input 1]]<>\"\",Table_PI[[#This Row],[Input 1]],\"\")","v":""},null,null,{"$f":"IF(Table_PI[[#This Row],[Input 2]]<>\"\",Table_PI[[#This Row],[Input 2]],\"\")","v":""},null,null,{"$f":"IF(Table_PI[[#This Row],[Input 3]]<>\"\",Table_PI[[#This Row],[Input 3]],\"\")","v":""},null,null,{"$f":"IF(Table_PI[[#This Row],[Input 4]]<>\"\",Table_PI[[#This Row],[Input 4]],\"\")","v":""},null,null,{"$f":"IF(Table_PI[[#This Row],[Input 4]]<>\"\",Table_PI[[#This Row],[Input 4]],\"\")","v":""},null,null,{"$f":"IF(Table_PI[[#This Row],[Input 4]]<>\"\",Table_PI[[#This Row],[Input 4]],\"\")","v":""},{"$f":"IF(Table_PI[[#This Row],[Quantity]]=\"\",\"\",Table_PI[[#This Row],[Quantity]])","v":""},{"$f":"IF(Table_PI[[#This Row],[Notes]]=\"\",\"\",Table_PI[[#This Row],[Notes]])","v":""},{"$f":"IF(OR(Table_PI[[#This Row],[Hide: Baseline kWh]]=\"\",Table_PI[[#This Row],[Hide: Baseline kWh]]=0,ISTEXT(Table_PI[[#This Row],[Hide: Baseline kWh]])),\"\",Table_PI[[#This Row],[Hide: Baseline kWh]])","v":""},{"$f":"IF(OR(Table_PI[[#This Row],[Hide: Baseline kW]]=\"\",Table_PI[[#This Row],[Hide: Baseline kW]]=0,ISTEXT(Table_PI[[#This Row],[Hide: Baseline kW]])),\"\",Table_PI[[#This Row],[Hide: Baseline kW]])","v":""},{"$f":"IF(OR(Table_PI[[#This Row],[Hide: Proposed kWh]]=\"\",Table_PI[[#This Row],[Hide: Proposed kWh]]=0,ISTEXT(Table_PI[[#This Row],[Hide: Proposed kWh]])),\"\",Table_PI[[#This Row],[Hide: Proposed kWh]])","v":""},{"$f":"IF(OR(Table_PI[[#This Row],[Hide: Proposed kW]]=\"\",Table_PI[[#This Row],[Hide: Proposed kW]]=0,ISTEXT(Table_PI[[#This Row],[Hide: Proposed kW]])),\"\",Table_PI[[#This Row],[Hide: Proposed kW]])","v":""},null,null,{"$f":"IF(OR(Table_PI[[#This Row],[Hide: Rebate]]=\"\",Table_PI[[#This Row],[Hide: Rebate]]=0,ISTEXT(Table_PI[[#This Row],[Hide: Rebate]])),\"\",Table_PI[[#This Row],[Hide: Rebate]])","v":""},null,{"$f":"IF(OR(Table_PI[[#This Row],[Hide: Incremental Cost]]=\"\",Table_PI[[#This Row],[Hide: Incremental Cost]]=0,ISTEXT(Table_PI[[#This Row],[Hide: Incremental Cost]])),\"\",Table_PI[[#This Row],[Hide: Incremental Cost]])","v":""},{"$f":"IFERROR(IF(Table_SummaryPI[[#This Row],[Incentive_Customer]]=\"\",\"\",ROUND(Table_SummaryPI[[#This Row],[Incentive_Customer]]/$AM$401*'Customer Information'!$BC$21,2)),0)","v":""},{"$f":"IF(OR(Table_PI[[#This Row],[Annual kWh]]=\"\",Table_PI[[#This Row],[Annual kWh]]=0,ISTEXT(Table_PI[[#This Row],[Annual kWh]])),\"\",Table_PI[[#This Row],[Annual kWh]])","v":""},{"$f":"IF(OR(Table_PI[[#This Row],[Peak kW]]=\"\",Table_PI[[#This Row],[Peak kW]]=0,ISTEXT(Table_PI[[#This Row],[Peak kW]])),\"\",Table_PI[[#This Row],[Peak kW]])","v":""},{"$f":"IF(Table_SummaryPI[[#This Row],[Line No.]]<>\"\",IF(AND(ISNUMBER(FIND(\"Chiller\",Table_SummaryPI[[#This Row],[P_MeasureOption1]],1)),Table_SummaryPI[[#This Row],[ProposedMeasureCategory]]=\"Air-Cooled (Water-Cooled Replacement)\"),$BD$29*Table_SummaryPI[[#This Row],[Size]]*Table_SummaryPI[[#This Row],[Quantity]]*Table_SummaryPI[[#This Row],[EFLHCooling]],\nIF(ISNUMBER(FIND(\"Dishwasher\",Table_SummaryPI[[#This Row],[ProposedMeasureCategory]],1)),$BH$29*Table_SummaryPI[[#This Row],[Quantity]],\nIF(ISNUMBER(FIND(\"Ice Maker\",Table_SummaryPI[[#This Row],[ProposedMeasureCategory]],1)),$BD$31*Table_SummaryPI[[#This Row],[Quantity]],\nIF(ISNUMBER(FIND(\"Spray Valve\",Table_SummaryPI[[#This Row],[ProposedMeasureCategory]],1)),$BH$31*Table_SummaryPI[[#This Row],[Quantity]],\n0)))),\"\")","v":""},{"$f":"IF(OR(Table_PI[[#This Row],[Hide: Electrification kWh]]=\"\",Table_PI[[#This Row],[Hide: Electrification kWh]]=0,ISTEXT(Table_PI[[#This Row],[Hide: Electrification kWh]])),\"\",Table_PI[[#This Row],[Hide: Electrification kWh]])","v":""},{"$f":"IF(OR(Table_PI[[#This Row],[Hide: Electrification GHG]]=\"\",Table_PI[[#This Row],[Hide: Electrification GHG]]=0,ISTEXT(Table_PI[[#This Row],[Hide: Electrification GHG]])),\"\",Table_PI[[#This Row],[Hide: Electrification GHG]])","v":""},{"$f":"IFERROR(IF(Table_SummaryPI[[#This Row],[kWhSavings]]=\"\",\"\",$BH$9*Table_SummaryPI[[#This Row],[kWhSavings]]),0)","v":""},{"$f":"IFERROR(IF(Table_SummaryPI[[#This Row],[kWhSavings]]=\"\",\"\",$BH$14*Table_SummaryPI[[#This Row],[kWhSavings]]),0)","v":""},{"$f":"IFERROR(IF(Table_SummaryPI[[#This Row],[kWhSavings]]=\"\",\"\",$BH$18*Table_SummaryPI[[#This Row],[kWhSavings]]),0)","v":""},{"$f":"IFERROR(IF(Table_SummaryPI[[#This Row],[kWhSavings]]=\"\",\"\",$BH$22*Table_SummaryPI[[#This Row],[kWhSavings]]),0)","v":""}]
[{"$f":"Table_PI[[#This Row],[Line No.]]","v":""},{"$f":"IF(Table_SummaryPI[[#This Row],[MeasureName]]<>\"\",NOT(ISTEXT(Table_PI[[#This Row],[Rebate]])),\"\")","v":""},{"$f":"IF(Table_SummaryPI[[#This Row],[MeassureCategory]]<>\"\",CONCATENATE(Table_SummaryPI[[#This Row],[MeassureCategory]],  \" - \", Table_SummaryPI[[#This Row],[ProposedMeasureCategory]],  \" - \", TEXT(Table_SummaryPI[[#This Row],[Size]],\"#,##0.00\"),\" \",Table_SummaryPI[[#This Row],[SizeUnit]]),\"\")","v":""},{"$f":"SUBSTITUTE(Table_PI[[#This Row],[Measure]],\"     \",\"\",1)","v":""},{"$f":"IF(Table_PI[[#This Row],[List 1]]<>\"\",Table_PI[[#This Row],[List 1]],\"\")","v":""},{"$f":"IF(Table_PI[[#This Row],[List 2]]<>\"\",Table_PI[[#This Row],[List 2]],\"\")","v":""},{"$f":"IF(Table_PI[[#This Row],[List 3]]<>\"\",Table_PI[[#This Row],[List 3]],\"\")","v":""},{"$f":"IF(Table_PI[[#This Row],[Manufacturer]]=\"\",\"\",Table_PI[[#This Row],[Manufacturer]])","v":""},{"$f":"IF(Table_PI[[#This Row],[Model Number]]=\"\",\"\",Table_PI[[#This Row],[Model Number]])","v":""},{"$f":"IF(Table_PI[[#This Row],[Serial Number(s)]]=\"\",\"\",Table_PI[[#This Row],[Serial Number(s)]])","v":""},null,{"$f":"IF(Table_PI[[#This Row],[Size]]=\"\",\"\",Table_PI[[#This Row],[Size]])","v":""},null,null,{"$f":"IF(Table_PI[[#This Row],[Input 1]]<>\"\",Table_PI[[#This Row],[Input 1]],\"\")","v":""},null,null,{"$f":"IF(Table_PI[[#This Row],[Input 2]]<>\"\",Table_PI[[#This Row],[Input 2]],\"\")","v":""},null,null,{"$f":"IF(Table_PI[[#This Row],[Input 3]]<>\"\",Table_PI[[#This Row],[Input 3]],\"\")","v":""},null,null,{"$f":"IF(Table_PI[[#This Row],[Input 4]]<>\"\",Table_PI[[#This Row],[Input 4]],\"\")","v":""},null,null,{"$f":"IF(Table_PI[[#This Row],[Input 4]]<>\"\",Table_PI[[#This Row],[Input 4]],\"\")","v":""},null,null,{"$f":"IF(Table_PI[[#This Row],[Input 4]]<>\"\",Table_PI[[#This Row],[Input 4]],\"\")","v":""},{"$f":"IF(Table_PI[[#This Row],[Quantity]]=\"\",\"\",Table_PI[[#This Row],[Quantity]])","v":""},{"$f":"IF(Table_PI[[#This Row],[Notes]]=\"\",\"\",Table_PI[[#This Row],[Notes]])","v":""},{"$f":"IF(OR(Table_PI[[#This Row],[Hide: Baseline kWh]]=\"\",Table_PI[[#This Row],[Hide: Baseline kWh]]=0,ISTEXT(Table_PI[[#This Row],[Hide: Baseline kWh]])),\"\",Table_PI[[#This Row],[Hide: Baseline kWh]])","v":""},{"$f":"IF(OR(Table_PI[[#This Row],[Hide: Baseline kW]]=\"\",Table_PI[[#This Row],[Hide: Baseline kW]]=0,ISTEXT(Table_PI[[#This Row],[Hide: Baseline kW]])),\"\",Table_PI[[#This Row],[Hide: Baseline kW]])","v":""},{"$f":"IF(OR(Table_PI[[#This Row],[Hide: Proposed kWh]]=\"\",Table_PI[[#This Row],[Hide: Proposed kWh]]=0,ISTEXT(Table_PI[[#This Row],[Hide: Proposed kWh]])),\"\",Table_PI[[#This Row],[Hide: Proposed kWh]])","v":""},{"$f":"IF(OR(Table_PI[[#This Row],[Hide: Proposed kW]]=\"\",Table_PI[[#This Row],[Hide: Proposed kW]]=0,ISTEXT(Table_PI[[#This Row],[Hide: Proposed kW]])),\"\",Table_PI[[#This Row],[Hide: Proposed kW]])","v":""},null,null,{"$f":"IF(OR(Table_PI[[#This Row],[Hide: Rebate]]=\"\",Table_PI[[#This Row],[Hide: Rebate]]=0,ISTEXT(Table_PI[[#This Row],[Hide: Rebate]])),\"\",Table_PI[[#This Row],[Hide: Rebate]])","v":""},null,{"$f":"IF(OR(Table_PI[[#This Row],[Hide: Incremental Cost]]=\"\",Table_PI[[#This Row],[Hide: Incremental Cost]]=0,ISTEXT(Table_PI[[#This Row],[Hide: Incremental Cost]])),\"\",Table_PI[[#This Row],[Hide: Incremental Cost]])","v":""},{"$f":"IFERROR(IF(Table_SummaryPI[[#This Row],[Incentive_Customer]]=\"\",\"\",ROUND(Table_SummaryPI[[#This Row],[Incentive_Customer]]/$AM$401*'Customer Information'!$BC$21,2)),0)","v":""},{"$f":"IF(OR(Table_PI[[#This Row],[Annual kWh]]=\"\",Table_PI[[#This Row],[Annual kWh]]=0,ISTEXT(Table_PI[[#This Row],[Annual kWh]])),\"\",Table_PI[[#This Row],[Annual kWh]])","v":""},{"$f":"IF(OR(Table_PI[[#This Row],[Peak kW]]=\"\",Table_PI[[#This Row],[Peak kW]]=0,ISTEXT(Table_PI[[#This Row],[Peak kW]])),\"\",Table_PI[[#This Row],[Peak kW]])","v":""},{"$f":"IF(Table_SummaryPI[[#This Row],[Line No.]]<>\"\",IF(AND(ISNUMBER(FIND(\"Chiller\",Table_SummaryPI[[#This Row],[P_MeasureOption1]],1)),Table_SummaryPI[[#This Row],[ProposedMeasureCategory]]=\"Air-Cooled (Water-Cooled Replacement)\"),$BD$29*Table_SummaryPI[[#This Row],[Size]]*Table_SummaryPI[[#This Row],[Quantity]]*Table_SummaryPI[[#This Row],[EFLHCooling]],\nIF(ISNUMBER(FIND(\"Dishwasher\",Table_SummaryPI[[#This Row],[ProposedMeasureCategory]],1)),$BH$29*Table_SummaryPI[[#This Row],[Quantity]],\nIF(ISNUMBER(FIND(\"Ice Maker\",Table_SummaryPI[[#This Row],[ProposedMeasureCategory]],1)),$BD$31*Table_SummaryPI[[#This Row],[Quantity]],\nIF(ISNUMBER(FIND(\"Spray Valve\",Table_SummaryPI[[#This Row],[ProposedMeasureCategory]],1)),$BH$31*Table_SummaryPI[[#This Row],[Quantity]],\n0)))),\"\")","v":""},{"$f":"IF(OR(Table_PI[[#This Row],[Hide: Electrification kWh]]=\"\",Table_PI[[#This Row],[Hide: Electrification kWh]]=0,ISTEXT(Table_PI[[#This Row],[Hide: Electrification kWh]])),\"\",Table_PI[[#This Row],[Hide: Electrification kWh]])","v":""},{"$f":"IF(OR(Table_PI[[#This Row],[Hide: Electrification GHG]]=\"\",Table_PI[[#This Row],[Hide: Electrification GHG]]=0,ISTEXT(Table_PI[[#This Row],[Hide: Electrification GHG]])),\"\",Table_PI[[#This Row],[Hide: Electrification GHG]])","v":""},{"$f":"IFERROR(IF(Table_SummaryPI[[#This Row],[kWhSavings]]=\"\",\"\",$BH$9*Table_SummaryPI[[#This Row],[kWhSavings]]),0)","v":""},{"$f":"IFERROR(IF(Table_SummaryPI[[#This Row],[kWhSavings]]=\"\",\"\",$BH$14*Table_SummaryPI[[#This Row],[kWhSavings]]),0)","v":""},{"$f":"IFERROR(IF(Table_SummaryPI[[#This Row],[kWhSavings]]=\"\",\"\",$BH$18*Table_SummaryPI[[#This Row],[kWhSavings]]),0)","v":""},{"$f":"IFERROR(IF(Table_SummaryPI[[#This Row],[kWhSavings]]=\"\",\"\",$BH$22*Table_SummaryPI[[#This Row],[kWhSavings]]),0)","v":""}]
[{"$f":"Table_PI[[#This Row],[Line No.]]","v":""},{"$f":"IF(Table_SummaryPI[[#This Row],[MeasureName]]<>\"\",NOT(ISTEXT(Table_PI[[#This Row],[Rebate]])),\"\")","v":""},{"$f":"IF(Table_SummaryPI[[#This Row],[MeassureCategory]]<>\"\",CONCATENATE(Table_SummaryPI[[#This Row],[MeassureCategory]],  \" - \", Table_SummaryPI[[#This Row],[ProposedMeasureCategory]],  \" - \", TEXT(Table_SummaryPI[[#This Row],[Size]],\"#,##0.00\"),\" \",Table_SummaryPI[[#This Row],[SizeUnit]]),\"\")","v":""},{"$f":"SUBSTITUTE(Table_PI[[#This Row],[Measure]],\"     \",\"\",1)","v":""},{"$f":"IF(Table_PI[[#This Row],[List 1]]<>\"\",Table_PI[[#This Row],[List 1]],\"\")","v":""},{"$f":"IF(Table_PI[[#This Row],[List 2]]<>\"\",Table_PI[[#This Row],[List 2]],\"\")","v":""},{"$f":"IF(Table_PI[[#This Row],[List 3]]<>\"\",Table_PI[[#This Row],[List 3]],\"\")","v":""},{"$f":"IF(Table_PI[[#This Row],[Manufacturer]]=\"\",\"\",Table_PI[[#This Row],[Manufacturer]])","v":""},{"$f":"IF(Table_PI[[#This Row],[Model Number]]=\"\",\"\",Table_PI[[#This Row],[Model Number]])","v":""},{"$f":"IF(Table_PI[[#This Row],[Serial Number(s)]]=\"\",\"\",Table_PI[[#This Row],[Serial Number(s)]])","v":""},null,{"$f":"IF(Table_PI[[#This Row],[Size]]=\"\",\"\",Table_PI[[#This Row],[Size]])","v":""},null,null,{"$f":"IF(Table_PI[[#This Row],[Input 1]]<>\"\",Table_PI[[#This Row],[Input 1]],\"\")","v":""},null,null,{"$f":"IF(Table_PI[[#This Row],[Input 2]]<>\"\",Table_PI[[#This Row],[Input 2]],\"\")","v":""},null,null,{"$f":"IF(Table_PI[[#This Row],[Input 3]]<>\"\",Table_PI[[#This Row],[Input 3]],\"\")","v":""},null,null,{"$f":"IF(Table_PI[[#This Row],[Input 4]]<>\"\",Table_PI[[#This Row],[Input 4]],\"\")","v":""},null,null,{"$f":"IF(Table_PI[[#This Row],[Input 4]]<>\"\",Table_PI[[#This Row],[Input 4]],\"\")","v":""},null,null,{"$f":"IF(Table_PI[[#This Row],[Input 4]]<>\"\",Table_PI[[#This Row],[Input 4]],\"\")","v":""},{"$f":"IF(Table_PI[[#This Row],[Quantity]]=\"\",\"\",Table_PI[[#This Row],[Quantity]])","v":""},{"$f":"IF(Table_PI[[#This Row],[Notes]]=\"\",\"\",Table_PI[[#This Row],[Notes]])","v":""},{"$f":"IF(OR(Table_PI[[#This Row],[Hide: Baseline kWh]]=\"\",Table_PI[[#This Row],[Hide: Baseline kWh]]=0,ISTEXT(Table_PI[[#This Row],[Hide: Baseline kWh]])),\"\",Table_PI[[#This Row],[Hide: Baseline kWh]])","v":""},{"$f":"IF(OR(Table_PI[[#This Row],[Hide: Baseline kW]]=\"\",Table_PI[[#This Row],[Hide: Baseline kW]]=0,ISTEXT(Table_PI[[#This Row],[Hide: Baseline kW]])),\"\",Table_PI[[#This Row],[Hide: Baseline kW]])","v":""},{"$f":"IF(OR(Table_PI[[#This Row],[Hide: Proposed kWh]]=\"\",Table_PI[[#This Row],[Hide: Proposed kWh]]=0,ISTEXT(Table_PI[[#This Row],[Hide: Proposed kWh]])),\"\",Table_PI[[#This Row],[Hide: Proposed kWh]])","v":""},{"$f":"IF(OR(Table_PI[[#This Row],[Hide: Proposed kW]]=\"\",Table_PI[[#This Row],[Hide: Proposed kW]]=0,ISTEXT(Table_PI[[#This Row],[Hide: Proposed kW]])),\"\",Table_PI[[#This Row],[Hide: Proposed kW]])","v":""},null,null,{"$f":"IF(OR(Table_PI[[#This Row],[Hide: Rebate]]=\"\",Table_PI[[#This Row],[Hide: Rebate]]=0,ISTEXT(Table_PI[[#This Row],[Hide: Rebate]])),\"\",Table_PI[[#This Row],[Hide: Rebate]])","v":""},null,{"$f":"IF(OR(Table_PI[[#This Row],[Hide: Incremental Cost]]=\"\",Table_PI[[#This Row],[Hide: Incremental Cost]]=0,ISTEXT(Table_PI[[#This Row],[Hide: Incremental Cost]])),\"\",Table_PI[[#This Row],[Hide: Incremental Cost]])","v":""},{"$f":"IFERROR(IF(Table_SummaryPI[[#This Row],[Incentive_Customer]]=\"\",\"\",ROUND(Table_SummaryPI[[#This Row],[Incentive_Customer]]/$AM$401*'Customer Information'!$BC$21,2)),0)","v":""},{"$f":"IF(OR(Table_PI[[#This Row],[Annual kWh]]=\"\",Table_PI[[#This Row],[Annual kWh]]=0,ISTEXT(Table_PI[[#This Row],[Annual kWh]])),\"\",Table_PI[[#This Row],[Annual kWh]])","v":""},{"$f":"IF(OR(Table_PI[[#This Row],[Peak kW]]=\"\",Table_PI[[#This Row],[Peak kW]]=0,ISTEXT(Table_PI[[#This Row],[Peak kW]])),\"\",Table_PI[[#This Row],[Peak kW]])","v":""},{"$f":"IF(Table_SummaryPI[[#This Row],[Line No.]]<>\"\",IF(AND(ISNUMBER(FIND(\"Chiller\",Table_SummaryPI[[#This Row],[P_MeasureOption1]],1)),Table_SummaryPI[[#This Row],[ProposedMeasureCategory]]=\"Air-Cooled (Water-Cooled Replacement)\"),$BD$29*Table_SummaryPI[[#This Row],[Size]]*Table_SummaryPI[[#This Row],[Quantity]]*Table_SummaryPI[[#This Row],[EFLHCooling]],\nIF(ISNUMBER(FIND(\"Dishwasher\",Table_SummaryPI[[#This Row],[ProposedMeasureCategory]],1)),$BH$29*Table_SummaryPI[[#This Row],[Quantity]],\nIF(ISNUMBER(FIND(\"Ice Maker\",Table_SummaryPI[[#This Row],[ProposedMeasureCategory]],1)),$BD$31*Table_SummaryPI[[#This Row],[Quantity]],\nIF(ISNUMBER(FIND(\"Spray Valve\",Table_SummaryPI[[#This Row],[ProposedMeasureCategory]],1)),$BH$31*Table_SummaryPI[[#This Row],[Quantity]],\n0)))),\"\")","v":""},{"$f":"IF(OR(Table_PI[[#This Row],[Hide: Electrification kWh]]=\"\",Table_PI[[#This Row],[Hide: Electrification kWh]]=0,ISTEXT(Table_PI[[#This Row],[Hide: Electrification kWh]])),\"\",Table_PI[[#This Row],[Hide: Electrification kWh]])","v":""},{"$f":"IF(OR(Table_PI[[#This Row],[Hide: Electrification GHG]]=\"\",Table_PI[[#This Row],[Hide: Electrification GHG]]=0,ISTEXT(Table_PI[[#This Row],[Hide: Electrification GHG]])),\"\",Table_PI[[#This Row],[Hide: Electrification GHG]])","v":""},{"$f":"IFERROR(IF(Table_SummaryPI[[#This Row],[kWhSavings]]=\"\",\"\",$BH$9*Table_SummaryPI[[#This Row],[kWhSavings]]),0)","v":""},{"$f":"IFERROR(IF(Table_SummaryPI[[#This Row],[kWhSavings]]=\"\",\"\",$BH$14*Table_SummaryPI[[#This Row],[kWhSavings]]),0)","v":""},{"$f":"IFERROR(IF(Table_SummaryPI[[#This Row],[kWhSavings]]=\"\",\"\",$BH$18*Table_SummaryPI[[#This Row],[kWhSavings]]),0)","v":""},{"$f":"IFERROR(IF(Table_SummaryPI[[#This Row],[kWhSavings]]=\"\",\"\",$BH$22*Table_SummaryPI[[#This Row],[kWhSavings]]),0)","v":""}]
[{"$f":"Table_PI[[#This Row],[Line No.]]","v":""},{"$f":"IF(Table_SummaryPI[[#This Row],[MeasureName]]<>\"\",NOT(ISTEXT(Table_PI[[#This Row],[Rebate]])),\"\")","v":""},{"$f":"IF(Table_SummaryPI[[#This Row],[MeassureCategory]]<>\"\",CONCATENATE(Table_SummaryPI[[#This Row],[MeassureCategory]],  \" - \", Table_SummaryPI[[#This Row],[ProposedMeasureCategory]],  \" - \", TEXT(Table_SummaryPI[[#This Row],[Size]],\"#,##0.00\"),\" \",Table_SummaryPI[[#This Row],[SizeUnit]]),\"\")","v":""},{"$f":"SUBSTITUTE(Table_PI[[#This Row],[Measure]],\"     \",\"\",1)","v":""},{"$f":"IF(Table_PI[[#This Row],[List 1]]<>\"\",Table_PI[[#This Row],[List 1]],\"\")","v":""},{"$f":"IF(Table_PI[[#This Row],[List 2]]<>\"\",Table_PI[[#This Row],[List 2]],\"\")","v":""},{"$f":"IF(Table_PI[[#This Row],[List 3]]<>\"\",Table_PI[[#This Row],[List 3]],\"\")","v":""},{"$f":"IF(Table_PI[[#This Row],[Manufacturer]]=\"\",\"\",Table_PI[[#This Row],[Manufacturer]])","v":""},{"$f":"IF(Table_PI[[#This Row],[Model Number]]=\"\",\"\",Table_PI[[#This Row],[Model Number]])","v":""},{"$f":"IF(Table_PI[[#This Row],[Serial Number(s)]]=\"\",\"\",Table_PI[[#This Row],[Serial Number(s)]])","v":""},null,{"$f":"IF(Table_PI[[#This Row],[Size]]=\"\",\"\",Table_PI[[#This Row],[Size]])","v":""},null,null,{"$f":"IF(Table_PI[[#This Row],[Input 1]]<>\"\",Table_PI[[#This Row],[Input 1]],\"\")","v":""},null,null,{"$f":"IF(Table_PI[[#This Row],[Input 2]]<>\"\",Table_PI[[#This Row],[Input 2]],\"\")","v":""},null,null,{"$f":"IF(Table_PI[[#This Row],[Input 3]]<>\"\",Table_PI[[#This Row],[Input 3]],\"\")","v":""},null,null,{"$f":"IF(Table_PI[[#This Row],[Input 4]]<>\"\",Table_PI[[#This Row],[Input 4]],\"\")","v":""},null,null,{"$f":"IF(Table_PI[[#This Row],[Input 4]]<>\"\",Table_PI[[#This Row],[Input 4]],\"\")","v":""},null,null,{"$f":"IF(Table_PI[[#This Row],[Input 4]]<>\"\",Table_PI[[#This Row],[Input 4]],\"\")","v":""},{"$f":"IF(Table_PI[[#This Row],[Quantity]]=\"\",\"\",Table_PI[[#This Row],[Quantity]])","v":""},{"$f":"IF(Table_PI[[#This Row],[Notes]]=\"\",\"\",Table_PI[[#This Row],[Notes]])","v":""},{"$f":"IF(OR(Table_PI[[#This Row],[Hide: Baseline kWh]]=\"\",Table_PI[[#This Row],[Hide: Baseline kWh]]=0,ISTEXT(Table_PI[[#This Row],[Hide: Baseline kWh]])),\"\",Table_PI[[#This Row],[Hide: Baseline kWh]])","v":""},{"$f":"IF(OR(Table_PI[[#This Row],[Hide: Baseline kW]]=\"\",Table_PI[[#This Row],[Hide: Baseline kW]]=0,ISTEXT(Table_PI[[#This Row],[Hide: Baseline kW]])),\"\",Table_PI[[#This Row],[Hide: Baseline kW]])","v":""},{"$f":"IF(OR(Table_PI[[#This Row],[Hide: Proposed kWh]]=\"\",Table_PI[[#This Row],[Hide: Proposed kWh]]=0,ISTEXT(Table_PI[[#This Row],[Hide: Proposed kWh]])),\"\",Table_PI[[#This Row],[Hide: Proposed kWh]])","v":""},{"$f":"IF(OR(Table_PI[[#This Row],[Hide: Proposed kW]]=\"\",Table_PI[[#This Row],[Hide: Proposed kW]]=0,ISTEXT(Table_PI[[#This Row],[Hide: Proposed kW]])),\"\",Table_PI[[#This Row],[Hide: Proposed kW]])","v":""},null,null,{"$f":"IF(OR(Table_PI[[#This Row],[Hide: Rebate]]=\"\",Table_PI[[#This Row],[Hide: Rebate]]=0,ISTEXT(Table_PI[[#This Row],[Hide: Rebate]])),\"\",Table_PI[[#This Row],[Hide: Rebate]])","v":""},null,{"$f":"IF(OR(Table_PI[[#This Row],[Hide: Incremental Cost]]=\"\",Table_PI[[#This Row],[Hide: Incremental Cost]]=0,ISTEXT(Table_PI[[#This Row],[Hide: Incremental Cost]])),\"\",Table_PI[[#This Row],[Hide: Incremental Cost]])","v":""},{"$f":"IFERROR(IF(Table_SummaryPI[[#This Row],[Incentive_Customer]]=\"\",\"\",ROUND(Table_SummaryPI[[#This Row],[Incentive_Customer]]/$AM$401*'Customer Information'!$BC$21,2)),0)","v":""},{"$f":"IF(OR(Table_PI[[#This Row],[Annual kWh]]=\"\",Table_PI[[#This Row],[Annual kWh]]=0,ISTEXT(Table_PI[[#This Row],[Annual kWh]])),\"\",Table_PI[[#This Row],[Annual kWh]])","v":""},{"$f":"IF(OR(Table_PI[[#This Row],[Peak kW]]=\"\",Table_PI[[#This Row],[Peak kW]]=0,ISTEXT(Table_PI[[#This Row],[Peak kW]])),\"\",Table_PI[[#This Row],[Peak kW]])","v":""},{"$f":"IF(Table_SummaryPI[[#This Row],[Line No.]]<>\"\",IF(AND(ISNUMBER(FIND(\"Chiller\",Table_SummaryPI[[#This Row],[P_MeasureOption1]],1)),Table_SummaryPI[[#This Row],[ProposedMeasureCategory]]=\"Air-Cooled (Water-Cooled Replacement)\"),$BD$29*Table_SummaryPI[[#This Row],[Size]]*Table_SummaryPI[[#This Row],[Quantity]]*Table_SummaryPI[[#This Row],[EFLHCooling]],\nIF(ISNUMBER(FIND(\"Dishwasher\",Table_SummaryPI[[#This Row],[ProposedMeasureCategory]],1)),$BH$29*Table_SummaryPI[[#This Row],[Quantity]],\nIF(ISNUMBER(FIND(\"Ice Maker\",Table_SummaryPI[[#This Row],[ProposedMeasureCategory]],1)),$BD$31*Table_SummaryPI[[#This Row],[Quantity]],\nIF(ISNUMBER(FIND(\"Spray Valve\",Table_SummaryPI[[#This Row],[ProposedMeasureCategory]],1)),$BH$31*Table_SummaryPI[[#This Row],[Quantity]],\n0)))),\"\")","v":""},{"$f":"IF(OR(Table_PI[[#This Row],[Hide: Electrification kWh]]=\"\",Table_PI[[#This Row],[Hide: Electrification kWh]]=0,ISTEXT(Table_PI[[#This Row],[Hide: Electrification kWh]])),\"\",Table_PI[[#This Row],[Hide: Electrification kWh]])","v":""},{"$f":"IF(OR(Table_PI[[#This Row],[Hide: Electrification GHG]]=\"\",Table_PI[[#This Row],[Hide: Electrification GHG]]=0,ISTEXT(Table_PI[[#This Row],[Hide: Electrification GHG]])),\"\",Table_PI[[#This Row],[Hide: Electrification GHG]])","v":""},{"$f":"IFERROR(IF(Table_SummaryPI[[#This Row],[kWhSavings]]=\"\",\"\",$BH$9*Table_SummaryPI[[#This Row],[kWhSavings]]),0)","v":""},{"$f":"IFERROR(IF(Table_SummaryPI[[#This Row],[kWhSavings]]=\"\",\"\",$BH$14*Table_SummaryPI[[#This Row],[kWhSavings]]),0)","v":""},{"$f":"IFERROR(IF(Table_SummaryPI[[#This Row],[kWhSavings]]=\"\",\"\",$BH$18*Table_SummaryPI[[#This Row],[kWhSavings]]),0)","v":""},{"$f":"IFERROR(IF(Table_SummaryPI[[#This Row],[kWhSavings]]=\"\",\"\",$BH$22*Table_SummaryPI[[#This Row],[kWhSavings]]),0)","v":""}]
[{"$f":"Table_PI[[#This Row],[Line No.]]","v":""},{"$f":"IF(Table_SummaryPI[[#This Row],[MeasureName]]<>\"\",NOT(ISTEXT(Table_PI[[#This Row],[Rebate]])),\"\")","v":""},{"$f":"IF(Table_SummaryPI[[#This Row],[MeassureCategory]]<>\"\",CONCATENATE(Table_SummaryPI[[#This Row],[MeassureCategory]],  \" - \", Table_SummaryPI[[#This Row],[ProposedMeasureCategory]],  \" - \", TEXT(Table_SummaryPI[[#This Row],[Size]],\"#,##0.00\"),\" \",Table_SummaryPI[[#This Row],[SizeUnit]]),\"\")","v":""},{"$f":"SUBSTITUTE(Table_PI[[#This Row],[Measure]],\"     \",\"\",1)","v":""},{"$f":"IF(Table_PI[[#This Row],[List 1]]<>\"\",Table_PI[[#This Row],[List 1]],\"\")","v":""},{"$f":"IF(Table_PI[[#This Row],[List 2]]<>\"\",Table_PI[[#This Row],[List 2]],\"\")","v":""},{"$f":"IF(Table_PI[[#This Row],[List 3]]<>\"\",Table_PI[[#This Row],[List 3]],\"\")","v":""},{"$f":"IF(Table_PI[[#This Row],[Manufacturer]]=\"\",\"\",Table_PI[[#This Row],[Manufacturer]])","v":""},{"$f":"IF(Table_PI[[#This Row],[Model Number]]=\"\",\"\",Table_PI[[#This Row],[Model Number]])","v":""},{"$f":"IF(Table_PI[[#This Row],[Serial Number(s)]]=\"\",\"\",Table_PI[[#This Row],[Serial Number(s)]])","v":""},null,{"$f":"IF(Table_PI[[#This Row],[Size]]=\"\",\"\",Table_PI[[#This Row],[Size]])","v":""},null,null,{"$f":"IF(Table_PI[[#This Row],[Input 1]]<>\"\",Table_PI[[#This Row],[Input 1]],\"\")","v":""},null,null,{"$f":"IF(Table_PI[[#This Row],[Input 2]]<>\"\",Table_PI[[#This Row],[Input 2]],\"\")","v":""},null,null,{"$f":"IF(Table_PI[[#This Row],[Input 3]]<>\"\",Table_PI[[#This Row],[Input 3]],\"\")","v":""},null,null,{"$f":"IF(Table_PI[[#This Row],[Input 4]]<>\"\",Table_PI[[#This Row],[Input 4]],\"\")","v":""},null,null,{"$f":"IF(Table_PI[[#This Row],[Input 4]]<>\"\",Table_PI[[#This Row],[Input 4]],\"\")","v":""},null,null,{"$f":"IF(Table_PI[[#This Row],[Input 4]]<>\"\",Table_PI[[#This Row],[Input 4]],\"\")","v":""},{"$f":"IF(Table_PI[[#This Row],[Quantity]]=\"\",\"\",Table_PI[[#This Row],[Quantity]])","v":""},{"$f":"IF(Table_PI[[#This Row],[Notes]]=\"\",\"\",Table_PI[[#This Row],[Notes]])","v":""},{"$f":"IF(OR(Table_PI[[#This Row],[Hide: Baseline kWh]]=\"\",Table_PI[[#This Row],[Hide: Baseline kWh]]=0,ISTEXT(Table_PI[[#This Row],[Hide: Baseline kWh]])),\"\",Table_PI[[#This Row],[Hide: Baseline kWh]])","v":""},{"$f":"IF(OR(Table_PI[[#This Row],[Hide: Baseline kW]]=\"\",Table_PI[[#This Row],[Hide: Baseline kW]]=0,ISTEXT(Table_PI[[#This Row],[Hide: Baseline kW]])),\"\",Table_PI[[#This Row],[Hide: Baseline kW]])","v":""},{"$f":"IF(OR(Table_PI[[#This Row],[Hide: Proposed kWh]]=\"\",Table_PI[[#This Row],[Hide: Proposed kWh]]=0,ISTEXT(Table_PI[[#This Row],[Hide: Proposed kWh]])),\"\",Table_PI[[#This Row],[Hide: Proposed kWh]])","v":""},{"$f":"IF(OR(Table_PI[[#This Row],[Hide: Proposed kW]]=\"\",Table_PI[[#This Row],[Hide: Proposed kW]]=0,ISTEXT(Table_PI[[#This Row],[Hide: Proposed kW]])),\"\",Table_PI[[#This Row],[Hide: Proposed kW]])","v":""},null,null,{"$f":"IF(OR(Table_PI[[#This Row],[Hide: Rebate]]=\"\",Table_PI[[#This Row],[Hide: Rebate]]=0,ISTEXT(Table_PI[[#This Row],[Hide: Rebate]])),\"\",Table_PI[[#This Row],[Hide: Rebate]])","v":""},null,{"$f":"IF(OR(Table_PI[[#This Row],[Hide: Incremental Cost]]=\"\",Table_PI[[#This Row],[Hide: Incremental Cost]]=0,ISTEXT(Table_PI[[#This Row],[Hide: Incremental Cost]])),\"\",Table_PI[[#This Row],[Hide: Incremental Cost]])","v":""},{"$f":"IFERROR(IF(Table_SummaryPI[[#This Row],[Incentive_Customer]]=\"\",\"\",ROUND(Table_SummaryPI[[#This Row],[Incentive_Customer]]/$AM$401*'Customer Information'!$BC$21,2)),0)","v":""},{"$f":"IF(OR(Table_PI[[#This Row],[Annual kWh]]=\"\",Table_PI[[#This Row],[Annual kWh]]=0,ISTEXT(Table_PI[[#This Row],[Annual kWh]])),\"\",Table_PI[[#This Row],[Annual kWh]])","v":""},{"$f":"IF(OR(Table_PI[[#This Row],[Peak kW]]=\"\",Table_PI[[#This Row],[Peak kW]]=0,ISTEXT(Table_PI[[#This Row],[Peak kW]])),\"\",Table_PI[[#This Row],[Peak kW]])","v":""},{"$f":"IF(Table_SummaryPI[[#This Row],[Line No.]]<>\"\",IF(AND(ISNUMBER(FIND(\"Chiller\",Table_SummaryPI[[#This Row],[P_MeasureOption1]],1)),Table_SummaryPI[[#This Row],[ProposedMeasureCategory]]=\"Air-Cooled (Water-Cooled Replacement)\"),$BD$29*Table_SummaryPI[[#This Row],[Size]]*Table_SummaryPI[[#This Row],[Quantity]]*Table_SummaryPI[[#This Row],[EFLHCooling]],\nIF(ISNUMBER(FIND(\"Dishwasher\",Table_SummaryPI[[#This Row],[ProposedMeasureCategory]],1)),$BH$29*Table_SummaryPI[[#This Row],[Quantity]],\nIF(ISNUMBER(FIND(\"Ice Maker\",Table_SummaryPI[[#This Row],[ProposedMeasureCategory]],1)),$BD$31*Table_SummaryPI[[#This Row],[Quantity]],\nIF(ISNUMBER(FIND(\"Spray Valve\",Table_SummaryPI[[#This Row],[ProposedMeasureCategory]],1)),$BH$31*Table_SummaryPI[[#This Row],[Quantity]],\n0)))),\"\")","v":""},{"$f":"IF(OR(Table_PI[[#This Row],[Hide: Electrification kWh]]=\"\",Table_PI[[#This Row],[Hide: Electrification kWh]]=0,ISTEXT(Table_PI[[#This Row],[Hide: Electrification kWh]])),\"\",Table_PI[[#This Row],[Hide: Electrification kWh]])","v":""},{"$f":"IF(OR(Table_PI[[#This Row],[Hide: Electrification GHG]]=\"\",Table_PI[[#This Row],[Hide: Electrification GHG]]=0,ISTEXT(Table_PI[[#This Row],[Hide: Electrification GHG]])),\"\",Table_PI[[#This Row],[Hide: Electrification GHG]])","v":""},{"$f":"IFERROR(IF(Table_SummaryPI[[#This Row],[kWhSavings]]=\"\",\"\",$BH$9*Table_SummaryPI[[#This Row],[kWhSavings]]),0)","v":""},{"$f":"IFERROR(IF(Table_SummaryPI[[#This Row],[kWhSavings]]=\"\",\"\",$BH$14*Table_SummaryPI[[#This Row],[kWhSavings]]),0)","v":""},{"$f":"IFERROR(IF(Table_SummaryPI[[#This Row],[kWhSavings]]=\"\",\"\",$BH$18*Table_SummaryPI[[#This Row],[kWhSavings]]),0)","v":""},{"$f":"IFERROR(IF(Table_SummaryPI[[#This Row],[kWhSavings]]=\"\",\"\",$BH$22*Table_SummaryPI[[#This Row],[kWhSavings]]),0)","v":""}]
[{"$f":"Table_PI[[#This Row],[Line No.]]","v":""},{"$f":"IF(Table_SummaryPI[[#This Row],[MeasureName]]<>\"\",NOT(ISTEXT(Table_PI[[#This Row],[Rebate]])),\"\")","v":""},{"$f":"IF(Table_SummaryPI[[#This Row],[MeassureCategory]]<>\"\",CONCATENATE(Table_SummaryPI[[#This Row],[MeassureCategory]],  \" - \", Table_SummaryPI[[#This Row],[ProposedMeasureCategory]],  \" - \", TEXT(Table_SummaryPI[[#This Row],[Size]],\"#,##0.00\"),\" \",Table_SummaryPI[[#This Row],[SizeUnit]]),\"\")","v":""},{"$f":"SUBSTITUTE(Table_PI[[#This Row],[Measure]],\"     \",\"\",1)","v":""},{"$f":"IF(Table_PI[[#This Row],[List 1]]<>\"\",Table_PI[[#This Row],[List 1]],\"\")","v":""},{"$f":"IF(Table_PI[[#This Row],[List 2]]<>\"\",Table_PI[[#This Row],[List 2]],\"\")","v":""},{"$f":"IF(Table_PI[[#This Row],[List 3]]<>\"\",Table_PI[[#This Row],[List 3]],\"\")","v":""},{"$f":"IF(Table_PI[[#This Row],[Manufacturer]]=\"\",\"\",Table_PI[[#This Row],[Manufacturer]])","v":""},{"$f":"IF(Table_PI[[#This Row],[Model Number]]=\"\",\"\",Table_PI[[#This Row],[Model Number]])","v":""},{"$f":"IF(Table_PI[[#This Row],[Serial Number(s)]]=\"\",\"\",Table_PI[[#This Row],[Serial Number(s)]])","v":""},null,{"$f":"IF(Table_PI[[#This Row],[Size]]=\"\",\"\",Table_PI[[#This Row],[Size]])","v":""},null,null,{"$f":"IF(Table_PI[[#This Row],[Input 1]]<>\"\",Table_PI[[#This Row],[Input 1]],\"\")","v":""},null,null,{"$f":"IF(Table_PI[[#This Row],[Input 2]]<>\"\",Table_PI[[#This Row],[Input 2]],\"\")","v":""},null,null,{"$f":"IF(Table_PI[[#This Row],[Input 3]]<>\"\",Table_PI[[#This Row],[Input 3]],\"\")","v":""},null,null,{"$f":"IF(Table_PI[[#This Row],[Input 4]]<>\"\",Table_PI[[#This Row],[Input 4]],\"\")","v":""},null,null,{"$f":"IF(Table_PI[[#This Row],[Input 4]]<>\"\",Table_PI[[#This Row],[Input 4]],\"\")","v":""},null,null,{"$f":"IF(Table_PI[[#This Row],[Input 4]]<>\"\",Table_PI[[#This Row],[Input 4]],\"\")","v":""},{"$f":"IF(Table_PI[[#This Row],[Quantity]]=\"\",\"\",Table_PI[[#This Row],[Quantity]])","v":""},{"$f":"IF(Table_PI[[#This Row],[Notes]]=\"\",\"\",Table_PI[[#This Row],[Notes]])","v":""},{"$f":"IF(OR(Table_PI[[#This Row],[Hide: Baseline kWh]]=\"\",Table_PI[[#This Row],[Hide: Baseline kWh]]=0,ISTEXT(Table_PI[[#This Row],[Hide: Baseline kWh]])),\"\",Table_PI[[#This Row],[Hide: Baseline kWh]])","v":""},{"$f":"IF(OR(Table_PI[[#This Row],[Hide: Baseline kW]]=\"\",Table_PI[[#This Row],[Hide: Baseline kW]]=0,ISTEXT(Table_PI[[#This Row],[Hide: Baseline kW]])),\"\",Table_PI[[#This Row],[Hide: Baseline kW]])","v":""},{"$f":"IF(OR(Table_PI[[#This Row],[Hide: Proposed kWh]]=\"\",Table_PI[[#This Row],[Hide: Proposed kWh]]=0,ISTEXT(Table_PI[[#This Row],[Hide: Proposed kWh]])),\"\",Table_PI[[#This Row],[Hide: Proposed kWh]])","v":""},{"$f":"IF(OR(Table_PI[[#This Row],[Hide: Proposed kW]]=\"\",Table_PI[[#This Row],[Hide: Proposed kW]]=0,ISTEXT(Table_PI[[#This Row],[Hide: Proposed kW]])),\"\",Table_PI[[#This Row],[Hide: Proposed kW]])","v":""},null,null,{"$f":"IF(OR(Table_PI[[#This Row],[Hide: Rebate]]=\"\",Table_PI[[#This Row],[Hide: Rebate]]=0,ISTEXT(Table_PI[[#This Row],[Hide: Rebate]])),\"\",Table_PI[[#This Row],[Hide: Rebate]])","v":""},null,{"$f":"IF(OR(Table_PI[[#This Row],[Hide: Incremental Cost]]=\"\",Table_PI[[#This Row],[Hide: Incremental Cost]]=0,ISTEXT(Table_PI[[#This Row],[Hide: Incremental Cost]])),\"\",Table_PI[[#This Row],[Hide: Incremental Cost]])","v":""},{"$f":"IFERROR(IF(Table_SummaryPI[[#This Row],[Incentive_Customer]]=\"\",\"\",ROUND(Table_SummaryPI[[#This Row],[Incentive_Customer]]/$AM$401*'Customer Information'!$BC$21,2)),0)","v":""},{"$f":"IF(OR(Table_PI[[#This Row],[Annual kWh]]=\"\",Table_PI[[#This Row],[Annual kWh]]=0,ISTEXT(Table_PI[[#This Row],[Annual kWh]])),\"\",Table_PI[[#This Row],[Annual kWh]])","v":""},{"$f":"IF(OR(Table_PI[[#This Row],[Peak kW]]=\"\",Table_PI[[#This Row],[Peak kW]]=0,ISTEXT(Table_PI[[#This Row],[Peak kW]])),\"\",Table_PI[[#This Row],[Peak kW]])","v":""},{"$f":"IF(Table_SummaryPI[[#This Row],[Line No.]]<>\"\",IF(AND(ISNUMBER(FIND(\"Chiller\",Table_SummaryPI[[#This Row],[P_MeasureOption1]],1)),Table_SummaryPI[[#This Row],[ProposedMeasureCategory]]=\"Air-Cooled (Water-Cooled Replacement)\"),$BD$29*Table_SummaryPI[[#This Row],[Size]]*Table_SummaryPI[[#This Row],[Quantity]]*Table_SummaryPI[[#This Row],[EFLHCooling]],\nIF(ISNUMBER(FIND(\"Dishwasher\",Table_SummaryPI[[#This Row],[ProposedMeasureCategory]],1)),$BH$29*Table_SummaryPI[[#This Row],[Quantity]],\nIF(ISNUMBER(FIND(\"Ice Maker\",Table_SummaryPI[[#This Row],[ProposedMeasureCategory]],1)),$BD$31*Table_SummaryPI[[#This Row],[Quantity]],\nIF(ISNUMBER(FIND(\"Spray Valve\",Table_SummaryPI[[#This Row],[ProposedMeasureCategory]],1)),$BH$31*Table_SummaryPI[[#This Row],[Quantity]],\n0)))),\"\")","v":""},{"$f":"IF(OR(Table_PI[[#This Row],[Hide: Electrification kWh]]=\"\",Table_PI[[#This Row],[Hide: Electrification kWh]]=0,ISTEXT(Table_PI[[#This Row],[Hide: Electrification kWh]])),\"\",Table_PI[[#This Row],[Hide: Electrification kWh]])","v":""},{"$f":"IF(OR(Table_PI[[#This Row],[Hide: Electrification GHG]]=\"\",Table_PI[[#This Row],[Hide: Electrification GHG]]=0,ISTEXT(Table_PI[[#This Row],[Hide: Electrification GHG]])),\"\",Table_PI[[#This Row],[Hide: Electrification GHG]])","v":""},{"$f":"IFERROR(IF(Table_SummaryPI[[#This Row],[kWhSavings]]=\"\",\"\",$BH$9*Table_SummaryPI[[#This Row],[kWhSavings]]),0)","v":""},{"$f":"IFERROR(IF(Table_SummaryPI[[#This Row],[kWhSavings]]=\"\",\"\",$BH$14*Table_SummaryPI[[#This Row],[kWhSavings]]),0)","v":""},{"$f":"IFERROR(IF(Table_SummaryPI[[#This Row],[kWhSavings]]=\"\",\"\",$BH$18*Table_SummaryPI[[#This Row],[kWhSavings]]),0)","v":""},{"$f":"IFERROR(IF(Table_SummaryPI[[#This Row],[kWhSavings]]=\"\",\"\",$BH$22*Table_SummaryPI[[#This Row],[kWhSavings]]),0)","v":""}]
[{"$f":"Table_PI[[#This Row],[Line No.]]","v":""},{"$f":"IF(Table_SummaryPI[[#This Row],[MeasureName]]<>\"\",NOT(ISTEXT(Table_PI[[#This Row],[Rebate]])),\"\")","v":""},{"$f":"IF(Table_SummaryPI[[#This Row],[MeassureCategory]]<>\"\",CONCATENATE(Table_SummaryPI[[#This Row],[MeassureCategory]],  \" - \", Table_SummaryPI[[#This Row],[ProposedMeasureCategory]],  \" - \", TEXT(Table_SummaryPI[[#This Row],[Size]],\"#,##0.00\"),\" \",Table_SummaryPI[[#This Row],[SizeUnit]]),\"\")","v":""},{"$f":"SUBSTITUTE(Table_PI[[#This Row],[Measure]],\"     \",\"\",1)","v":""},{"$f":"IF(Table_PI[[#This Row],[List 1]]<>\"\",Table_PI[[#This Row],[List 1]],\"\")","v":""},{"$f":"IF(Table_PI[[#This Row],[List 2]]<>\"\",Table_PI[[#This Row],[List 2]],\"\")","v":""},{"$f":"IF(Table_PI[[#This Row],[List 3]]<>\"\",Table_PI[[#This Row],[List 3]],\"\")","v":""},{"$f":"IF(Table_PI[[#This Row],[Manufacturer]]=\"\",\"\",Table_PI[[#This Row],[Manufacturer]])","v":""},{"$f":"IF(Table_PI[[#This Row],[Model Number]]=\"\",\"\",Table_PI[[#This Row],[Model Number]])","v":""},{"$f":"IF(Table_PI[[#This Row],[Serial Number(s)]]=\"\",\"\",Table_PI[[#This Row],[Serial Number(s)]])","v":""},null,{"$f":"IF(Table_PI[[#This Row],[Size]]=\"\",\"\",Table_PI[[#This Row],[Size]])","v":""},null,null,{"$f":"IF(Table_PI[[#This Row],[Input 1]]<>\"\",Table_PI[[#This Row],[Input 1]],\"\")","v":""},null,null,{"$f":"IF(Table_PI[[#This Row],[Input 2]]<>\"\",Table_PI[[#This Row],[Input 2]],\"\")","v":""},null,null,{"$f":"IF(Table_PI[[#This Row],[Input 3]]<>\"\",Table_PI[[#This Row],[Input 3]],\"\")","v":""},null,null,{"$f":"IF(Table_PI[[#This Row],[Input 4]]<>\"\",Table_PI[[#This Row],[Input 4]],\"\")","v":""},null,null,{"$f":"IF(Table_PI[[#This Row],[Input 4]]<>\"\",Table_PI[[#This Row],[Input 4]],\"\")","v":""},null,null,{"$f":"IF(Table_PI[[#This Row],[Input 4]]<>\"\",Table_PI[[#This Row],[Input 4]],\"\")","v":""},{"$f":"IF(Table_PI[[#This Row],[Quantity]]=\"\",\"\",Table_PI[[#This Row],[Quantity]])","v":""},{"$f":"IF(Table_PI[[#This Row],[Notes]]=\"\",\"\",Table_PI[[#This Row],[Notes]])","v":""},{"$f":"IF(OR(Table_PI[[#This Row],[Hide: Baseline kWh]]=\"\",Table_PI[[#This Row],[Hide: Baseline kWh]]=0,ISTEXT(Table_PI[[#This Row],[Hide: Baseline kWh]])),\"\",Table_PI[[#This Row],[Hide: Baseline kWh]])","v":""},{"$f":"IF(OR(Table_PI[[#This Row],[Hide: Baseline kW]]=\"\",Table_PI[[#This Row],[Hide: Baseline kW]]=0,ISTEXT(Table_PI[[#This Row],[Hide: Baseline kW]])),\"\",Table_PI[[#This Row],[Hide: Baseline kW]])","v":""},{"$f":"IF(OR(Table_PI[[#This Row],[Hide: Proposed kWh]]=\"\",Table_PI[[#This Row],[Hide: Proposed kWh]]=0,ISTEXT(Table_PI[[#This Row],[Hide: Proposed kWh]])),\"\",Table_PI[[#This Row],[Hide: Proposed kWh]])","v":""},{"$f":"IF(OR(Table_PI[[#This Row],[Hide: Proposed kW]]=\"\",Table_PI[[#This Row],[Hide: Proposed kW]]=0,ISTEXT(Table_PI[[#This Row],[Hide: Proposed kW]])),\"\",Table_PI[[#This Row],[Hide: Proposed kW]])","v":""},null,null,{"$f":"IF(OR(Table_PI[[#This Row],[Hide: Rebate]]=\"\",Table_PI[[#This Row],[Hide: Rebate]]=0,ISTEXT(Table_PI[[#This Row],[Hide: Rebate]])),\"\",Table_PI[[#This Row],[Hide: Rebate]])","v":""},null,{"$f":"IF(OR(Table_PI[[#This Row],[Hide: Incremental Cost]]=\"\",Table_PI[[#This Row],[Hide: Incremental Cost]]=0,ISTEXT(Table_PI[[#This Row],[Hide: Incremental Cost]])),\"\",Table_PI[[#This Row],[Hide: Incremental Cost]])","v":""},{"$f":"IFERROR(IF(Table_SummaryPI[[#This Row],[Incentive_Customer]]=\"\",\"\",ROUND(Table_SummaryPI[[#This Row],[Incentive_Customer]]/$AM$401*'Customer Information'!$BC$21,2)),0)","v":""},{"$f":"IF(OR(Table_PI[[#This Row],[Annual kWh]]=\"\",Table_PI[[#This Row],[Annual kWh]]=0,ISTEXT(Table_PI[[#This Row],[Annual kWh]])),\"\",Table_PI[[#This Row],[Annual kWh]])","v":""},{"$f":"IF(OR(Table_PI[[#This Row],[Peak kW]]=\"\",Table_PI[[#This Row],[Peak kW]]=0,ISTEXT(Table_PI[[#This Row],[Peak kW]])),\"\",Table_PI[[#This Row],[Peak kW]])","v":""},{"$f":"IF(Table_SummaryPI[[#This Row],[Line No.]]<>\"\",IF(AND(ISNUMBER(FIND(\"Chiller\",Table_SummaryPI[[#This Row],[P_MeasureOption1]],1)),Table_SummaryPI[[#This Row],[ProposedMeasureCategory]]=\"Air-Cooled (Water-Cooled Replacement)\"),$BD$29*Table_SummaryPI[[#This Row],[Size]]*Table_SummaryPI[[#This Row],[Quantity]]*Table_SummaryPI[[#This Row],[EFLHCooling]],\nIF(ISNUMBER(FIND(\"Dishwasher\",Table_SummaryPI[[#This Row],[ProposedMeasureCategory]],1)),$BH$29*Table_SummaryPI[[#This Row],[Quantity]],\nIF(ISNUMBER(FIND(\"Ice Maker\",Table_SummaryPI[[#This Row],[ProposedMeasureCategory]],1)),$BD$31*Table_SummaryPI[[#This Row],[Quantity]],\nIF(ISNUMBER(FIND(\"Spray Valve\",Table_SummaryPI[[#This Row],[ProposedMeasureCategory]],1)),$BH$31*Table_SummaryPI[[#This Row],[Quantity]],\n0)))),\"\")","v":""},{"$f":"IF(OR(Table_PI[[#This Row],[Hide: Electrification kWh]]=\"\",Table_PI[[#This Row],[Hide: Electrification kWh]]=0,ISTEXT(Table_PI[[#This Row],[Hide: Electrification kWh]])),\"\",Table_PI[[#This Row],[Hide: Electrification kWh]])","v":""},{"$f":"IF(OR(Table_PI[[#This Row],[Hide: Electrification GHG]]=\"\",Table_PI[[#This Row],[Hide: Electrification GHG]]=0,ISTEXT(Table_PI[[#This Row],[Hide: Electrification GHG]])),\"\",Table_PI[[#This Row],[Hide: Electrification GHG]])","v":""},{"$f":"IFERROR(IF(Table_SummaryPI[[#This Row],[kWhSavings]]=\"\",\"\",$BH$9*Table_SummaryPI[[#This Row],[kWhSavings]]),0)","v":""},{"$f":"IFERROR(IF(Table_SummaryPI[[#This Row],[kWhSavings]]=\"\",\"\",$BH$14*Table_SummaryPI[[#This Row],[kWhSavings]]),0)","v":""},{"$f":"IFERROR(IF(Table_SummaryPI[[#This Row],[kWhSavings]]=\"\",\"\",$BH$18*Table_SummaryPI[[#This Row],[kWhSavings]]),0)","v":""},{"$f":"IFERROR(IF(Table_SummaryPI[[#This Row],[kWhSavings]]=\"\",\"\",$BH$22*Table_SummaryPI[[#This Row],[kWhSavings]]),0)","v":""}]
[{"$f":"Table_PI[[#This Row],[Line No.]]","v":""},{"$f":"IF(Table_SummaryPI[[#This Row],[MeasureName]]<>\"\",NOT(ISTEXT(Table_PI[[#This Row],[Rebate]])),\"\")","v":""},{"$f":"IF(Table_SummaryPI[[#This Row],[MeassureCategory]]<>\"\",CONCATENATE(Table_SummaryPI[[#This Row],[MeassureCategory]],  \" - \", Table_SummaryPI[[#This Row],[ProposedMeasureCategory]],  \" - \", TEXT(Table_SummaryPI[[#This Row],[Size]],\"#,##0.00\"),\" \",Table_SummaryPI[[#This Row],[SizeUnit]]),\"\")","v":""},{"$f":"SUBSTITUTE(Table_PI[[#This Row],[Measure]],\"     \",\"\",1)","v":""},{"$f":"IF(Table_PI[[#This Row],[List 1]]<>\"\",Table_PI[[#This Row],[List 1]],\"\")","v":""},{"$f":"IF(Table_PI[[#This Row],[List 2]]<>\"\",Table_PI[[#This Row],[List 2]],\"\")","v":""},{"$f":"IF(Table_PI[[#This Row],[List 3]]<>\"\",Table_PI[[#This Row],[List 3]],\"\")","v":""},{"$f":"IF(Table_PI[[#This Row],[Manufacturer]]=\"\",\"\",Table_PI[[#This Row],[Manufacturer]])","v":""},{"$f":"IF(Table_PI[[#This Row],[Model Number]]=\"\",\"\",Table_PI[[#This Row],[Model Number]])","v":""},{"$f":"IF(Table_PI[[#This Row],[Serial Number(s)]]=\"\",\"\",Table_PI[[#This Row],[Serial Number(s)]])","v":""},null,{"$f":"IF(Table_PI[[#This Row],[Size]]=\"\",\"\",Table_PI[[#This Row],[Size]])","v":""},null,null,{"$f":"IF(Table_PI[[#This Row],[Input 1]]<>\"\",Table_PI[[#This Row],[Input 1]],\"\")","v":""},null,null,{"$f":"IF(Table_PI[[#This Row],[Input 2]]<>\"\",Table_PI[[#This Row],[Input 2]],\"\")","v":""},null,null,{"$f":"IF(Table_PI[[#This Row],[Input 3]]<>\"\",Table_PI[[#This Row],[Input 3]],\"\")","v":""},null,null,{"$f":"IF(Table_PI[[#This Row],[Input 4]]<>\"\",Table_PI[[#This Row],[Input 4]],\"\")","v":""},null,null,{"$f":"IF(Table_PI[[#This Row],[Input 4]]<>\"\",Table_PI[[#This Row],[Input 4]],\"\")","v":""},null,null,{"$f":"IF(Table_PI[[#This Row],[Input 4]]<>\"\",Table_PI[[#This Row],[Input 4]],\"\")","v":""},{"$f":"IF(Table_PI[[#This Row],[Quantity]]=\"\",\"\",Table_PI[[#This Row],[Quantity]])","v":""},{"$f":"IF(Table_PI[[#This Row],[Notes]]=\"\",\"\",Table_PI[[#This Row],[Notes]])","v":""},{"$f":"IF(OR(Table_PI[[#This Row],[Hide: Baseline kWh]]=\"\",Table_PI[[#This Row],[Hide: Baseline kWh]]=0,ISTEXT(Table_PI[[#This Row],[Hide: Baseline kWh]])),\"\",Table_PI[[#This Row],[Hide: Baseline kWh]])","v":""},{"$f":"IF(OR(Table_PI[[#This Row],[Hide: Baseline kW]]=\"\",Table_PI[[#This Row],[Hide: Baseline kW]]=0,ISTEXT(Table_PI[[#This Row],[Hide: Baseline kW]])),\"\",Table_PI[[#This Row],[Hide: Baseline kW]])","v":""},{"$f":"IF(OR(Table_PI[[#This Row],[Hide: Proposed kWh]]=\"\",Table_PI[[#This Row],[Hide: Proposed kWh]]=0,ISTEXT(Table_PI[[#This Row],[Hide: Proposed kWh]])),\"\",Table_PI[[#This Row],[Hide: Proposed kWh]])","v":""},{"$f":"IF(OR(Table_PI[[#This Row],[Hide: Proposed kW]]=\"\",Table_PI[[#This Row],[Hide: Proposed kW]]=0,ISTEXT(Table_PI[[#This Row],[Hide: Proposed kW]])),\"\",Table_PI[[#This Row],[Hide: Proposed kW]])","v":""},null,null,{"$f":"IF(OR(Table_PI[[#This Row],[Hide: Rebate]]=\"\",Table_PI[[#This Row],[Hide: Rebate]]=0,ISTEXT(Table_PI[[#This Row],[Hide: Rebate]])),\"\",Table_PI[[#This Row],[Hide: Rebate]])","v":""},null,{"$f":"IF(OR(Table_PI[[#This Row],[Hide: Incremental Cost]]=\"\",Table_PI[[#This Row],[Hide: Incremental Cost]]=0,ISTEXT(Table_PI[[#This Row],[Hide: Incremental Cost]])),\"\",Table_PI[[#This Row],[Hide: Incremental Cost]])","v":""},{"$f":"IFERROR(IF(Table_SummaryPI[[#This Row],[Incentive_Customer]]=\"\",\"\",ROUND(Table_SummaryPI[[#This Row],[Incentive_Customer]]/$AM$401*'Customer Information'!$BC$21,2)),0)","v":""},{"$f":"IF(OR(Table_PI[[#This Row],[Annual kWh]]=\"\",Table_PI[[#This Row],[Annual kWh]]=0,ISTEXT(Table_PI[[#This Row],[Annual kWh]])),\"\",Table_PI[[#This Row],[Annual kWh]])","v":""},{"$f":"IF(OR(Table_PI[[#This Row],[Peak kW]]=\"\",Table_PI[[#This Row],[Peak kW]]=0,ISTEXT(Table_PI[[#This Row],[Peak kW]])),\"\",Table_PI[[#This Row],[Peak kW]])","v":""},{"$f":"IF(Table_SummaryPI[[#This Row],[Line No.]]<>\"\",IF(AND(ISNUMBER(FIND(\"Chiller\",Table_SummaryPI[[#This Row],[P_MeasureOption1]],1)),Table_SummaryPI[[#This Row],[ProposedMeasureCategory]]=\"Air-Cooled (Water-Cooled Replacement)\"),$BD$29*Table_SummaryPI[[#This Row],[Size]]*Table_SummaryPI[[#This Row],[Quantity]]*Table_SummaryPI[[#This Row],[EFLHCooling]],\nIF(ISNUMBER(FIND(\"Dishwasher\",Table_SummaryPI[[#This Row],[ProposedMeasureCategory]],1)),$BH$29*Table_SummaryPI[[#This Row],[Quantity]],\nIF(ISNUMBER(FIND(\"Ice Maker\",Table_SummaryPI[[#This Row],[ProposedMeasureCategory]],1)),$BD$31*Table_SummaryPI[[#This Row],[Quantity]],\nIF(ISNUMBER(FIND(\"Spray Valve\",Table_SummaryPI[[#This Row],[ProposedMeasureCategory]],1)),$BH$31*Table_SummaryPI[[#This Row],[Quantity]],\n0)))),\"\")","v":""},{"$f":"IF(OR(Table_PI[[#This Row],[Hide: Electrification kWh]]=\"\",Table_PI[[#This Row],[Hide: Electrification kWh]]=0,ISTEXT(Table_PI[[#This Row],[Hide: Electrification kWh]])),\"\",Table_PI[[#This Row],[Hide: Electrification kWh]])","v":""},{"$f":"IF(OR(Table_PI[[#This Row],[Hide: Electrification GHG]]=\"\",Table_PI[[#This Row],[Hide: Electrification GHG]]=0,ISTEXT(Table_PI[[#This Row],[Hide: Electrification GHG]])),\"\",Table_PI[[#This Row],[Hide: Electrification GHG]])","v":""},{"$f":"IFERROR(IF(Table_SummaryPI[[#This Row],[kWhSavings]]=\"\",\"\",$BH$9*Table_SummaryPI[[#This Row],[kWhSavings]]),0)","v":""},{"$f":"IFERROR(IF(Table_SummaryPI[[#This Row],[kWhSavings]]=\"\",\"\",$BH$14*Table_SummaryPI[[#This Row],[kWhSavings]]),0)","v":""},{"$f":"IFERROR(IF(Table_SummaryPI[[#This Row],[kWhSavings]]=\"\",\"\",$BH$18*Table_SummaryPI[[#This Row],[kWhSavings]]),0)","v":""},{"$f":"IFERROR(IF(Table_SummaryPI[[#This Row],[kWhSavings]]=\"\",\"\",$BH$22*Table_SummaryPI[[#This Row],[kWhSavings]]),0)","v":""}]
[{"$f":"Table_PI[[#This Row],[Line No.]]","v":""},{"$f":"IF(Table_SummaryPI[[#This Row],[MeasureName]]<>\"\",NOT(ISTEXT(Table_PI[[#This Row],[Rebate]])),\"\")","v":""},{"$f":"IF(Table_SummaryPI[[#This Row],[MeassureCategory]]<>\"\",CONCATENATE(Table_SummaryPI[[#This Row],[MeassureCategory]],  \" - \", Table_SummaryPI[[#This Row],[ProposedMeasureCategory]],  \" - \", TEXT(Table_SummaryPI[[#This Row],[Size]],\"#,##0.00\"),\" \",Table_SummaryPI[[#This Row],[SizeUnit]]),\"\")","v":""},{"$f":"SUBSTITUTE(Table_PI[[#This Row],[Measure]],\"     \",\"\",1)","v":""},{"$f":"IF(Table_PI[[#This Row],[List 1]]<>\"\",Table_PI[[#This Row],[List 1]],\"\")","v":""},{"$f":"IF(Table_PI[[#This Row],[List 2]]<>\"\",Table_PI[[#This Row],[List 2]],\"\")","v":""},{"$f":"IF(Table_PI[[#This Row],[List 3]]<>\"\",Table_PI[[#This Row],[List 3]],\"\")","v":""},{"$f":"IF(Table_PI[[#This Row],[Manufacturer]]=\"\",\"\",Table_PI[[#This Row],[Manufacturer]])","v":""},{"$f":"IF(Table_PI[[#This Row],[Model Number]]=\"\",\"\",Table_PI[[#This Row],[Model Number]])","v":""},{"$f":"IF(Table_PI[[#This Row],[Serial Number(s)]]=\"\",\"\",Table_PI[[#This Row],[Serial Number(s)]])","v":""},null,{"$f":"IF(Table_PI[[#This Row],[Size]]=\"\",\"\",Table_PI[[#This Row],[Size]])","v":""},null,null,{"$f":"IF(Table_PI[[#This Row],[Input 1]]<>\"\",Table_PI[[#This Row],[Input 1]],\"\")","v":""},null,null,{"$f":"IF(Table_PI[[#This Row],[Input 2]]<>\"\",Table_PI[[#This Row],[Input 2]],\"\")","v":""},null,null,{"$f":"IF(Table_PI[[#This Row],[Input 3]]<>\"\",Table_PI[[#This Row],[Input 3]],\"\")","v":""},null,null,{"$f":"IF(Table_PI[[#This Row],[Input 4]]<>\"\",Table_PI[[#This Row],[Input 4]],\"\")","v":""},null,null,{"$f":"IF(Table_PI[[#This Row],[Input 4]]<>\"\",Table_PI[[#This Row],[Input 4]],\"\")","v":""},null,null,{"$f":"IF(Table_PI[[#This Row],[Input 4]]<>\"\",Table_PI[[#This Row],[Input 4]],\"\")","v":""},{"$f":"IF(Table_PI[[#This Row],[Quantity]]=\"\",\"\",Table_PI[[#This Row],[Quantity]])","v":""},{"$f":"IF(Table_PI[[#This Row],[Notes]]=\"\",\"\",Table_PI[[#This Row],[Notes]])","v":""},{"$f":"IF(OR(Table_PI[[#This Row],[Hide: Baseline kWh]]=\"\",Table_PI[[#This Row],[Hide: Baseline kWh]]=0,ISTEXT(Table_PI[[#This Row],[Hide: Baseline kWh]])),\"\",Table_PI[[#This Row],[Hide: Baseline kWh]])","v":""},{"$f":"IF(OR(Table_PI[[#This Row],[Hide: Baseline kW]]=\"\",Table_PI[[#This Row],[Hide: Baseline kW]]=0,ISTEXT(Table_PI[[#This Row],[Hide: Baseline kW]])),\"\",Table_PI[[#This Row],[Hide: Baseline kW]])","v":""},{"$f":"IF(OR(Table_PI[[#This Row],[Hide: Proposed kWh]]=\"\",Table_PI[[#This Row],[Hide: Proposed kWh]]=0,ISTEXT(Table_PI[[#This Row],[Hide: Proposed kWh]])),\"\",Table_PI[[#This Row],[Hide: Proposed kWh]])","v":""},{"$f":"IF(OR(Table_PI[[#This Row],[Hide: Proposed kW]]=\"\",Table_PI[[#This Row],[Hide: Proposed kW]]=0,ISTEXT(Table_PI[[#This Row],[Hide: Proposed kW]])),\"\",Table_PI[[#This Row],[Hide: Proposed kW]])","v":""},null,null,{"$f":"IF(OR(Table_PI[[#This Row],[Hide: Rebate]]=\"\",Table_PI[[#This Row],[Hide: Rebate]]=0,ISTEXT(Table_PI[[#This Row],[Hide: Rebate]])),\"\",Table_PI[[#This Row],[Hide: Rebate]])","v":""},null,{"$f":"IF(OR(Table_PI[[#This Row],[Hide: Incremental Cost]]=\"\",Table_PI[[#This Row],[Hide: Incremental Cost]]=0,ISTEXT(Table_PI[[#This Row],[Hide: Incremental Cost]])),\"\",Table_PI[[#This Row],[Hide: Incremental Cost]])","v":""},{"$f":"IFERROR(IF(Table_SummaryPI[[#This Row],[Incentive_Customer]]=\"\",\"\",ROUND(Table_SummaryPI[[#This Row],[Incentive_Customer]]/$AM$401*'Customer Information'!$BC$21,2)),0)","v":""},{"$f":"IF(OR(Table_PI[[#This Row],[Annual kWh]]=\"\",Table_PI[[#This Row],[Annual kWh]]=0,ISTEXT(Table_PI[[#This Row],[Annual kWh]])),\"\",Table_PI[[#This Row],[Annual kWh]])","v":""},{"$f":"IF(OR(Table_PI[[#This Row],[Peak kW]]=\"\",Table_PI[[#This Row],[Peak kW]]=0,ISTEXT(Table_PI[[#This Row],[Peak kW]])),\"\",Table_PI[[#This Row],[Peak kW]])","v":""},{"$f":"IF(Table_SummaryPI[[#This Row],[Line No.]]<>\"\",IF(AND(ISNUMBER(FIND(\"Chiller\",Table_SummaryPI[[#This Row],[P_MeasureOption1]],1)),Table_SummaryPI[[#This Row],[ProposedMeasureCategory]]=\"Air-Cooled (Water-Cooled Replacement)\"),$BD$29*Table_SummaryPI[[#This Row],[Size]]*Table_SummaryPI[[#This Row],[Quantity]]*Table_SummaryPI[[#This Row],[EFLHCooling]],\nIF(ISNUMBER(FIND(\"Dishwasher\",Table_SummaryPI[[#This Row],[ProposedMeasureCategory]],1)),$BH$29*Table_SummaryPI[[#This Row],[Quantity]],\nIF(ISNUMBER(FIND(\"Ice Maker\",Table_SummaryPI[[#This Row],[ProposedMeasureCategory]],1)),$BD$31*Table_SummaryPI[[#This Row],[Quantity]],\nIF(ISNUMBER(FIND(\"Spray Valve\",Table_SummaryPI[[#This Row],[ProposedMeasureCategory]],1)),$BH$31*Table_SummaryPI[[#This Row],[Quantity]],\n0)))),\"\")","v":""},{"$f":"IF(OR(Table_PI[[#This Row],[Hide: Electrification kWh]]=\"\",Table_PI[[#This Row],[Hide: Electrification kWh]]=0,ISTEXT(Table_PI[[#This Row],[Hide: Electrification kWh]])),\"\",Table_PI[[#This Row],[Hide: Electrification kWh]])","v":""},{"$f":"IF(OR(Table_PI[[#This Row],[Hide: Electrification GHG]]=\"\",Table_PI[[#This Row],[Hide: Electrification GHG]]=0,ISTEXT(Table_PI[[#This Row],[Hide: Electrification GHG]])),\"\",Table_PI[[#This Row],[Hide: Electrification GHG]])","v":""},{"$f":"IFERROR(IF(Table_SummaryPI[[#This Row],[kWhSavings]]=\"\",\"\",$BH$9*Table_SummaryPI[[#This Row],[kWhSavings]]),0)","v":""},{"$f":"IFERROR(IF(Table_SummaryPI[[#This Row],[kWhSavings]]=\"\",\"\",$BH$14*Table_SummaryPI[[#This Row],[kWhSavings]]),0)","v":""},{"$f":"IFERROR(IF(Table_SummaryPI[[#This Row],[kWhSavings]]=\"\",\"\",$BH$18*Table_SummaryPI[[#This Row],[kWhSavings]]),0)","v":""},{"$f":"IFERROR(IF(Table_SummaryPI[[#This Row],[kWhSavings]]=\"\",\"\",$BH$22*Table_SummaryPI[[#This Row],[kWhSavings]]),0)","v":""}]
[{"$f":"Table_PI[[#This Row],[Line No.]]","v":""},{"$f":"IF(Table_SummaryPI[[#This Row],[MeasureName]]<>\"\",NOT(ISTEXT(Table_PI[[#This Row],[Rebate]])),\"\")","v":""},{"$f":"IF(Table_SummaryPI[[#This Row],[MeassureCategory]]<>\"\",CONCATENATE(Table_SummaryPI[[#This Row],[MeassureCategory]],  \" - \", Table_SummaryPI[[#This Row],[ProposedMeasureCategory]],  \" - \", TEXT(Table_SummaryPI[[#This Row],[Size]],\"#,##0.00\"),\" \",Table_SummaryPI[[#This Row],[SizeUnit]]),\"\")","v":""},{"$f":"SUBSTITUTE(Table_PI[[#This Row],[Measure]],\"     \",\"\",1)","v":""},{"$f":"IF(Table_PI[[#This Row],[List 1]]<>\"\",Table_PI[[#This Row],[List 1]],\"\")","v":""},{"$f":"IF(Table_PI[[#This Row],[List 2]]<>\"\",Table_PI[[#This Row],[List 2]],\"\")","v":""},{"$f":"IF(Table_PI[[#This Row],[List 3]]<>\"\",Table_PI[[#This Row],[List 3]],\"\")","v":""},{"$f":"IF(Table_PI[[#This Row],[Manufacturer]]=\"\",\"\",Table_PI[[#This Row],[Manufacturer]])","v":""},{"$f":"IF(Table_PI[[#This Row],[Model Number]]=\"\",\"\",Table_PI[[#This Row],[Model Number]])","v":""},{"$f":"IF(Table_PI[[#This Row],[Serial Number(s)]]=\"\",\"\",Table_PI[[#This Row],[Serial Number(s)]])","v":""},null,{"$f":"IF(Table_PI[[#This Row],[Size]]=\"\",\"\",Table_PI[[#This Row],[Size]])","v":""},null,null,{"$f":"IF(Table_PI[[#This Row],[Input 1]]<>\"\",Table_PI[[#This Row],[Input 1]],\"\")","v":""},null,null,{"$f":"IF(Table_PI[[#This Row],[Input 2]]<>\"\",Table_PI[[#This Row],[Input 2]],\"\")","v":""},null,null,{"$f":"IF(Table_PI[[#This Row],[Input 3]]<>\"\",Table_PI[[#This Row],[Input 3]],\"\")","v":""},null,null,{"$f":"IF(Table_PI[[#This Row],[Input 4]]<>\"\",Table_PI[[#This Row],[Input 4]],\"\")","v":""},null,null,{"$f":"IF(Table_PI[[#This Row],[Input 4]]<>\"\",Table_PI[[#This Row],[Input 4]],\"\")","v":""},null,null,{"$f":"IF(Table_PI[[#This Row],[Input 4]]<>\"\",Table_PI[[#This Row],[Input 4]],\"\")","v":""},{"$f":"IF(Table_PI[[#This Row],[Quantity]]=\"\",\"\",Table_PI[[#This Row],[Quantity]])","v":""},{"$f":"IF(Table_PI[[#This Row],[Notes]]=\"\",\"\",Table_PI[[#This Row],[Notes]])","v":""},{"$f":"IF(OR(Table_PI[[#This Row],[Hide: Baseline kWh]]=\"\",Table_PI[[#This Row],[Hide: Baseline kWh]]=0,ISTEXT(Table_PI[[#This Row],[Hide: Baseline kWh]])),\"\",Table_PI[[#This Row],[Hide: Baseline kWh]])","v":""},{"$f":"IF(OR(Table_PI[[#This Row],[Hide: Baseline kW]]=\"\",Table_PI[[#This Row],[Hide: Baseline kW]]=0,ISTEXT(Table_PI[[#This Row],[Hide: Baseline kW]])),\"\",Table_PI[[#This Row],[Hide: Baseline kW]])","v":""},{"$f":"IF(OR(Table_PI[[#This Row],[Hide: Proposed kWh]]=\"\",Table_PI[[#This Row],[Hide: Proposed kWh]]=0,ISTEXT(Table_PI[[#This Row],[Hide: Proposed kWh]])),\"\",Table_PI[[#This Row],[Hide: Proposed kWh]])","v":""},{"$f":"IF(OR(Table_PI[[#This Row],[Hide: Proposed kW]]=\"\",Table_PI[[#This Row],[Hide: Proposed kW]]=0,ISTEXT(Table_PI[[#This Row],[Hide: Proposed kW]])),\"\",Table_PI[[#This Row],[Hide: Proposed kW]])","v":""},null,null,{"$f":"IF(OR(Table_PI[[#This Row],[Hide: Rebate]]=\"\",Table_PI[[#This Row],[Hide: Rebate]]=0,ISTEXT(Table_PI[[#This Row],[Hide: Rebate]])),\"\",Table_PI[[#This Row],[Hide: Rebate]])","v":""},null,{"$f":"IF(OR(Table_PI[[#This Row],[Hide: Incremental Cost]]=\"\",Table_PI[[#This Row],[Hide: Incremental Cost]]=0,ISTEXT(Table_PI[[#This Row],[Hide: Incremental Cost]])),\"\",Table_PI[[#This Row],[Hide: Incremental Cost]])","v":""},{"$f":"IFERROR(IF(Table_SummaryPI[[#This Row],[Incentive_Customer]]=\"\",\"\",ROUND(Table_SummaryPI[[#This Row],[Incentive_Customer]]/$AM$401*'Customer Information'!$BC$21,2)),0)","v":""},{"$f":"IF(OR(Table_PI[[#This Row],[Annual kWh]]=\"\",Table_PI[[#This Row],[Annual kWh]]=0,ISTEXT(Table_PI[[#This Row],[Annual kWh]])),\"\",Table_PI[[#This Row],[Annual kWh]])","v":""},{"$f":"IF(OR(Table_PI[[#This Row],[Peak kW]]=\"\",Table_PI[[#This Row],[Peak kW]]=0,ISTEXT(Table_PI[[#This Row],[Peak kW]])),\"\",Table_PI[[#This Row],[Peak kW]])","v":""},{"$f":"IF(Table_SummaryPI[[#This Row],[Line No.]]<>\"\",IF(AND(ISNUMBER(FIND(\"Chiller\",Table_SummaryPI[[#This Row],[P_MeasureOption1]],1)),Table_SummaryPI[[#This Row],[ProposedMeasureCategory]]=\"Air-Cooled (Water-Cooled Replacement)\"),$BD$29*Table_SummaryPI[[#This Row],[Size]]*Table_SummaryPI[[#This Row],[Quantity]]*Table_SummaryPI[[#This Row],[EFLHCooling]],\nIF(ISNUMBER(FIND(\"Dishwasher\",Table_SummaryPI[[#This Row],[ProposedMeasureCategory]],1)),$BH$29*Table_SummaryPI[[#This Row],[Quantity]],\nIF(ISNUMBER(FIND(\"Ice Maker\",Table_SummaryPI[[#This Row],[ProposedMeasureCategory]],1)),$BD$31*Table_SummaryPI[[#This Row],[Quantity]],\nIF(ISNUMBER(FIND(\"Spray Valve\",Table_SummaryPI[[#This Row],[ProposedMeasureCategory]],1)),$BH$31*Table_SummaryPI[[#This Row],[Quantity]],\n0)))),\"\")","v":""},{"$f":"IF(OR(Table_PI[[#This Row],[Hide: Electrification kWh]]=\"\",Table_PI[[#This Row],[Hide: Electrification kWh]]=0,ISTEXT(Table_PI[[#This Row],[Hide: Electrification kWh]])),\"\",Table_PI[[#This Row],[Hide: Electrification kWh]])","v":""},{"$f":"IF(OR(Table_PI[[#This Row],[Hide: Electrification GHG]]=\"\",Table_PI[[#This Row],[Hide: Electrification GHG]]=0,ISTEXT(Table_PI[[#This Row],[Hide: Electrification GHG]])),\"\",Table_PI[[#This Row],[Hide: Electrification GHG]])","v":""},{"$f":"IFERROR(IF(Table_SummaryPI[[#This Row],[kWhSavings]]=\"\",\"\",$BH$9*Table_SummaryPI[[#This Row],[kWhSavings]]),0)","v":""},{"$f":"IFERROR(IF(Table_SummaryPI[[#This Row],[kWhSavings]]=\"\",\"\",$BH$14*Table_SummaryPI[[#This Row],[kWhSavings]]),0)","v":""},{"$f":"IFERROR(IF(Table_SummaryPI[[#This Row],[kWhSavings]]=\"\",\"\",$BH$18*Table_SummaryPI[[#This Row],[kWhSavings]]),0)","v":""},{"$f":"IFERROR(IF(Table_SummaryPI[[#This Row],[kWhSavings]]=\"\",\"\",$BH$22*Table_SummaryPI[[#This Row],[kWhSavings]]),0)","v":""}]
[{"$f":"Table_PI[[#This Row],[Line No.]]","v":""},{"$f":"IF(Table_SummaryPI[[#This Row],[MeasureName]]<>\"\",NOT(ISTEXT(Table_PI[[#This Row],[Rebate]])),\"\")","v":""},{"$f":"IF(Table_SummaryPI[[#This Row],[MeassureCategory]]<>\"\",CONCATENATE(Table_SummaryPI[[#This Row],[MeassureCategory]],  \" - \", Table_SummaryPI[[#This Row],[ProposedMeasureCategory]],  \" - \", TEXT(Table_SummaryPI[[#This Row],[Size]],\"#,##0.00\"),\" \",Table_SummaryPI[[#This Row],[SizeUnit]]),\"\")","v":""},{"$f":"SUBSTITUTE(Table_PI[[#This Row],[Measure]],\"     \",\"\",1)","v":""},{"$f":"IF(Table_PI[[#This Row],[List 1]]<>\"\",Table_PI[[#This Row],[List 1]],\"\")","v":""},{"$f":"IF(Table_PI[[#This Row],[List 2]]<>\"\",Table_PI[[#This Row],[List 2]],\"\")","v":""},{"$f":"IF(Table_PI[[#This Row],[List 3]]<>\"\",Table_PI[[#This Row],[List 3]],\"\")","v":""},{"$f":"IF(Table_PI[[#This Row],[Manufacturer]]=\"\",\"\",Table_PI[[#This Row],[Manufacturer]])","v":""},{"$f":"IF(Table_PI[[#This Row],[Model Number]]=\"\",\"\",Table_PI[[#This Row],[Model Number]])","v":""},{"$f":"IF(Table_PI[[#This Row],[Serial Number(s)]]=\"\",\"\",Table_PI[[#This Row],[Serial Number(s)]])","v":""},null,{"$f":"IF(Table_PI[[#This Row],[Size]]=\"\",\"\",Table_PI[[#This Row],[Size]])","v":""},null,null,{"$f":"IF(Table_PI[[#This Row],[Input 1]]<>\"\",Table_PI[[#This Row],[Input 1]],\"\")","v":""},null,null,{"$f":"IF(Table_PI[[#This Row],[Input 2]]<>\"\",Table_PI[[#This Row],[Input 2]],\"\")","v":""},null,null,{"$f":"IF(Table_PI[[#This Row],[Input 3]]<>\"\",Table_PI[[#This Row],[Input 3]],\"\")","v":""},null,null,{"$f":"IF(Table_PI[[#This Row],[Input 4]]<>\"\",Table_PI[[#This Row],[Input 4]],\"\")","v":""},null,null,{"$f":"IF(Table_PI[[#This Row],[Input 4]]<>\"\",Table_PI[[#This Row],[Input 4]],\"\")","v":""},null,null,{"$f":"IF(Table_PI[[#This Row],[Input 4]]<>\"\",Table_PI[[#This Row],[Input 4]],\"\")","v":""},{"$f":"IF(Table_PI[[#This Row],[Quantity]]=\"\",\"\",Table_PI[[#This Row],[Quantity]])","v":""},{"$f":"IF(Table_PI[[#This Row],[Notes]]=\"\",\"\",Table_PI[[#This Row],[Notes]])","v":""},{"$f":"IF(OR(Table_PI[[#This Row],[Hide: Baseline kWh]]=\"\",Table_PI[[#This Row],[Hide: Baseline kWh]]=0,ISTEXT(Table_PI[[#This Row],[Hide: Baseline kWh]])),\"\",Table_PI[[#This Row],[Hide: Baseline kWh]])","v":""},{"$f":"IF(OR(Table_PI[[#This Row],[Hide: Baseline kW]]=\"\",Table_PI[[#This Row],[Hide: Baseline kW]]=0,ISTEXT(Table_PI[[#This Row],[Hide: Baseline kW]])),\"\",Table_PI[[#This Row],[Hide: Baseline kW]])","v":""},{"$f":"IF(OR(Table_PI[[#This Row],[Hide: Proposed kWh]]=\"\",Table_PI[[#This Row],[Hide: Proposed kWh]]=0,ISTEXT(Table_PI[[#This Row],[Hide: Proposed kWh]])),\"\",Table_PI[[#This Row],[Hide: Proposed kWh]])","v":""},{"$f":"IF(OR(Table_PI[[#This Row],[Hide: Proposed kW]]=\"\",Table_PI[[#This Row],[Hide: Proposed kW]]=0,ISTEXT(Table_PI[[#This Row],[Hide: Proposed kW]])),\"\",Table_PI[[#This Row],[Hide: Proposed kW]])","v":""},null,null,{"$f":"IF(OR(Table_PI[[#This Row],[Hide: Rebate]]=\"\",Table_PI[[#This Row],[Hide: Rebate]]=0,ISTEXT(Table_PI[[#This Row],[Hide: Rebate]])),\"\",Table_PI[[#This Row],[Hide: Rebate]])","v":""},null,{"$f":"IF(OR(Table_PI[[#This Row],[Hide: Incremental Cost]]=\"\",Table_PI[[#This Row],[Hide: Incremental Cost]]=0,ISTEXT(Table_PI[[#This Row],[Hide: Incremental Cost]])),\"\",Table_PI[[#This Row],[Hide: Incremental Cost]])","v":""},{"$f":"IFERROR(IF(Table_SummaryPI[[#This Row],[Incentive_Customer]]=\"\",\"\",ROUND(Table_SummaryPI[[#This Row],[Incentive_Customer]]/$AM$401*'Customer Information'!$BC$21,2)),0)","v":""},{"$f":"IF(OR(Table_PI[[#This Row],[Annual kWh]]=\"\",Table_PI[[#This Row],[Annual kWh]]=0,ISTEXT(Table_PI[[#This Row],[Annual kWh]])),\"\",Table_PI[[#This Row],[Annual kWh]])","v":""},{"$f":"IF(OR(Table_PI[[#This Row],[Peak kW]]=\"\",Table_PI[[#This Row],[Peak kW]]=0,ISTEXT(Table_PI[[#This Row],[Peak kW]])),\"\",Table_PI[[#This Row],[Peak kW]])","v":""},{"$f":"IF(Table_SummaryPI[[#This Row],[Line No.]]<>\"\",IF(AND(ISNUMBER(FIND(\"Chiller\",Table_SummaryPI[[#This Row],[P_MeasureOption1]],1)),Table_SummaryPI[[#This Row],[ProposedMeasureCategory]]=\"Air-Cooled (Water-Cooled Replacement)\"),$BD$29*Table_SummaryPI[[#This Row],[Size]]*Table_SummaryPI[[#This Row],[Quantity]]*Table_SummaryPI[[#This Row],[EFLHCooling]],\nIF(ISNUMBER(FIND(\"Dishwasher\",Table_SummaryPI[[#This Row],[ProposedMeasureCategory]],1)),$BH$29*Table_SummaryPI[[#This Row],[Quantity]],\nIF(ISNUMBER(FIND(\"Ice Maker\",Table_SummaryPI[[#This Row],[ProposedMeasureCategory]],1)),$BD$31*Table_SummaryPI[[#This Row],[Quantity]],\nIF(ISNUMBER(FIND(\"Spray Valve\",Table_SummaryPI[[#This Row],[ProposedMeasureCategory]],1)),$BH$31*Table_SummaryPI[[#This Row],[Quantity]],\n0)))),\"\")","v":""},{"$f":"IF(OR(Table_PI[[#This Row],[Hide: Electrification kWh]]=\"\",Table_PI[[#This Row],[Hide: Electrification kWh]]=0,ISTEXT(Table_PI[[#This Row],[Hide: Electrification kWh]])),\"\",Table_PI[[#This Row],[Hide: Electrification kWh]])","v":""},{"$f":"IF(OR(Table_PI[[#This Row],[Hide: Electrification GHG]]=\"\",Table_PI[[#This Row],[Hide: Electrification GHG]]=0,ISTEXT(Table_PI[[#This Row],[Hide: Electrification GHG]])),\"\",Table_PI[[#This Row],[Hide: Electrification GHG]])","v":""},{"$f":"IFERROR(IF(Table_SummaryPI[[#This Row],[kWhSavings]]=\"\",\"\",$BH$9*Table_SummaryPI[[#This Row],[kWhSavings]]),0)","v":""},{"$f":"IFERROR(IF(Table_SummaryPI[[#This Row],[kWhSavings]]=\"\",\"\",$BH$14*Table_SummaryPI[[#This Row],[kWhSavings]]),0)","v":""},{"$f":"IFERROR(IF(Table_SummaryPI[[#This Row],[kWhSavings]]=\"\",\"\",$BH$18*Table_SummaryPI[[#This Row],[kWhSavings]]),0)","v":""},{"$f":"IFERROR(IF(Table_SummaryPI[[#This Row],[kWhSavings]]=\"\",\"\",$BH$22*Table_SummaryPI[[#This Row],[kWhSavings]]),0)","v":""}]
[{"$f":"Table_PI[[#This Row],[Line No.]]","v":""},{"$f":"IF(Table_SummaryPI[[#This Row],[MeasureName]]<>\"\",NOT(ISTEXT(Table_PI[[#This Row],[Rebate]])),\"\")","v":""},{"$f":"IF(Table_SummaryPI[[#This Row],[MeassureCategory]]<>\"\",CONCATENATE(Table_SummaryPI[[#This Row],[MeassureCategory]],  \" - \", Table_SummaryPI[[#This Row],[ProposedMeasureCategory]],  \" - \", TEXT(Table_SummaryPI[[#This Row],[Size]],\"#,##0.00\"),\" \",Table_SummaryPI[[#This Row],[SizeUnit]]),\"\")","v":""},{"$f":"SUBSTITUTE(Table_PI[[#This Row],[Measure]],\"     \",\"\",1)","v":""},{"$f":"IF(Table_PI[[#This Row],[List 1]]<>\"\",Table_PI[[#This Row],[List 1]],\"\")","v":""},{"$f":"IF(Table_PI[[#This Row],[List 2]]<>\"\",Table_PI[[#This Row],[List 2]],\"\")","v":""},{"$f":"IF(Table_PI[[#This Row],[List 3]]<>\"\",Table_PI[[#This Row],[List 3]],\"\")","v":""},{"$f":"IF(Table_PI[[#This Row],[Manufacturer]]=\"\",\"\",Table_PI[[#This Row],[Manufacturer]])","v":""},{"$f":"IF(Table_PI[[#This Row],[Model Number]]=\"\",\"\",Table_PI[[#This Row],[Model Number]])","v":""},{"$f":"IF(Table_PI[[#This Row],[Serial Number(s)]]=\"\",\"\",Table_PI[[#This Row],[Serial Number(s)]])","v":""},null,{"$f":"IF(Table_PI[[#This Row],[Size]]=\"\",\"\",Table_PI[[#This Row],[Size]])","v":""},null,null,{"$f":"IF(Table_PI[[#This Row],[Input 1]]<>\"\",Table_PI[[#This Row],[Input 1]],\"\")","v":""},null,null,{"$f":"IF(Table_PI[[#This Row],[Input 2]]<>\"\",Table_PI[[#This Row],[Input 2]],\"\")","v":""},null,null,{"$f":"IF(Table_PI[[#This Row],[Input 3]]<>\"\",Table_PI[[#This Row],[Input 3]],\"\")","v":""},null,null,{"$f":"IF(Table_PI[[#This Row],[Input 4]]<>\"\",Table_PI[[#This Row],[Input 4]],\"\")","v":""},null,null,{"$f":"IF(Table_PI[[#This Row],[Input 4]]<>\"\",Table_PI[[#This Row],[Input 4]],\"\")","v":""},null,null,{"$f":"IF(Table_PI[[#This Row],[Input 4]]<>\"\",Table_PI[[#This Row],[Input 4]],\"\")","v":""},{"$f":"IF(Table_PI[[#This Row],[Quantity]]=\"\",\"\",Table_PI[[#This Row],[Quantity]])","v":""},{"$f":"IF(Table_PI[[#This Row],[Notes]]=\"\",\"\",Table_PI[[#This Row],[Notes]])","v":""},{"$f":"IF(OR(Table_PI[[#This Row],[Hide: Baseline kWh]]=\"\",Table_PI[[#This Row],[Hide: Baseline kWh]]=0,ISTEXT(Table_PI[[#This Row],[Hide: Baseline kWh]])),\"\",Table_PI[[#This Row],[Hide: Baseline kWh]])","v":""},{"$f":"IF(OR(Table_PI[[#This Row],[Hide: Baseline kW]]=\"\",Table_PI[[#This Row],[Hide: Baseline kW]]=0,ISTEXT(Table_PI[[#This Row],[Hide: Baseline kW]])),\"\",Table_PI[[#This Row],[Hide: Baseline kW]])","v":""},{"$f":"IF(OR(Table_PI[[#This Row],[Hide: Proposed kWh]]=\"\",Table_PI[[#This Row],[Hide: Proposed kWh]]=0,ISTEXT(Table_PI[[#This Row],[Hide: Proposed kWh]])),\"\",Table_PI[[#This Row],[Hide: Proposed kWh]])","v":""},{"$f":"IF(OR(Table_PI[[#This Row],[Hide: Proposed kW]]=\"\",Table_PI[[#This Row],[Hide: Proposed kW]]=0,ISTEXT(Table_PI[[#This Row],[Hide: Proposed kW]])),\"\",Table_PI[[#This Row],[Hide: Proposed kW]])","v":""},null,null,{"$f":"IF(OR(Table_PI[[#This Row],[Hide: Rebate]]=\"\",Table_PI[[#This Row],[Hide: Rebate]]=0,ISTEXT(Table_PI[[#This Row],[Hide: Rebate]])),\"\",Table_PI[[#This Row],[Hide: Rebate]])","v":""},null,{"$f":"IF(OR(Table_PI[[#This Row],[Hide: Incremental Cost]]=\"\",Table_PI[[#This Row],[Hide: Incremental Cost]]=0,ISTEXT(Table_PI[[#This Row],[Hide: Incremental Cost]])),\"\",Table_PI[[#This Row],[Hide: Incremental Cost]])","v":""},{"$f":"IFERROR(IF(Table_SummaryPI[[#This Row],[Incentive_Customer]]=\"\",\"\",ROUND(Table_SummaryPI[[#This Row],[Incentive_Customer]]/$AM$401*'Customer Information'!$BC$21,2)),0)","v":""},{"$f":"IF(OR(Table_PI[[#This Row],[Annual kWh]]=\"\",Table_PI[[#This Row],[Annual kWh]]=0,ISTEXT(Table_PI[[#This Row],[Annual kWh]])),\"\",Table_PI[[#This Row],[Annual kWh]])","v":""},{"$f":"IF(OR(Table_PI[[#This Row],[Peak kW]]=\"\",Table_PI[[#This Row],[Peak kW]]=0,ISTEXT(Table_PI[[#This Row],[Peak kW]])),\"\",Table_PI[[#This Row],[Peak kW]])","v":""},{"$f":"IF(Table_SummaryPI[[#This Row],[Line No.]]<>\"\",IF(AND(ISNUMBER(FIND(\"Chiller\",Table_SummaryPI[[#This Row],[P_MeasureOption1]],1)),Table_SummaryPI[[#This Row],[ProposedMeasureCategory]]=\"Air-Cooled (Water-Cooled Replacement)\"),$BD$29*Table_SummaryPI[[#This Row],[Size]]*Table_SummaryPI[[#This Row],[Quantity]]*Table_SummaryPI[[#This Row],[EFLHCooling]],\nIF(ISNUMBER(FIND(\"Dishwasher\",Table_SummaryPI[[#This Row],[ProposedMeasureCategory]],1)),$BH$29*Table_SummaryPI[[#This Row],[Quantity]],\nIF(ISNUMBER(FIND(\"Ice Maker\",Table_SummaryPI[[#This Row],[ProposedMeasureCategory]],1)),$BD$31*Table_SummaryPI[[#This Row],[Quantity]],\nIF(ISNUMBER(FIND(\"Spray Valve\",Table_SummaryPI[[#This Row],[ProposedMeasureCategory]],1)),$BH$31*Table_SummaryPI[[#This Row],[Quantity]],\n0)))),\"\")","v":""},{"$f":"IF(OR(Table_PI[[#This Row],[Hide: Electrification kWh]]=\"\",Table_PI[[#This Row],[Hide: Electrification kWh]]=0,ISTEXT(Table_PI[[#This Row],[Hide: Electrification kWh]])),\"\",Table_PI[[#This Row],[Hide: Electrification kWh]])","v":""},{"$f":"IF(OR(Table_PI[[#This Row],[Hide: Electrification GHG]]=\"\",Table_PI[[#This Row],[Hide: Electrification GHG]]=0,ISTEXT(Table_PI[[#This Row],[Hide: Electrification GHG]])),\"\",Table_PI[[#This Row],[Hide: Electrification GHG]])","v":""},{"$f":"IFERROR(IF(Table_SummaryPI[[#This Row],[kWhSavings]]=\"\",\"\",$BH$9*Table_SummaryPI[[#This Row],[kWhSavings]]),0)","v":""},{"$f":"IFERROR(IF(Table_SummaryPI[[#This Row],[kWhSavings]]=\"\",\"\",$BH$14*Table_SummaryPI[[#This Row],[kWhSavings]]),0)","v":""},{"$f":"IFERROR(IF(Table_SummaryPI[[#This Row],[kWhSavings]]=\"\",\"\",$BH$18*Table_SummaryPI[[#This Row],[kWhSavings]]),0)","v":""},{"$f":"IFERROR(IF(Table_SummaryPI[[#This Row],[kWhSavings]]=\"\",\"\",$BH$22*Table_SummaryPI[[#This Row],[kWhSavings]]),0)","v":""}]
[{"$f":"Table_PI[[#This Row],[Line No.]]","v":""},{"$f":"IF(Table_SummaryPI[[#This Row],[MeasureName]]<>\"\",NOT(ISTEXT(Table_PI[[#This Row],[Rebate]])),\"\")","v":""},{"$f":"IF(Table_SummaryPI[[#This Row],[MeassureCategory]]<>\"\",CONCATENATE(Table_SummaryPI[[#This Row],[MeassureCategory]],  \" - \", Table_SummaryPI[[#This Row],[ProposedMeasureCategory]],  \" - \", TEXT(Table_SummaryPI[[#This Row],[Size]],\"#,##0.00\"),\" \",Table_SummaryPI[[#This Row],[SizeUnit]]),\"\")","v":""},{"$f":"SUBSTITUTE(Table_PI[[#This Row],[Measure]],\"     \",\"\",1)","v":""},{"$f":"IF(Table_PI[[#This Row],[List 1]]<>\"\",Table_PI[[#This Row],[List 1]],\"\")","v":""},{"$f":"IF(Table_PI[[#This Row],[List 2]]<>\"\",Table_PI[[#This Row],[List 2]],\"\")","v":""},{"$f":"IF(Table_PI[[#This Row],[List 3]]<>\"\",Table_PI[[#This Row],[List 3]],\"\")","v":""},{"$f":"IF(Table_PI[[#This Row],[Manufacturer]]=\"\",\"\",Table_PI[[#This Row],[Manufacturer]])","v":""},{"$f":"IF(Table_PI[[#This Row],[Model Number]]=\"\",\"\",Table_PI[[#This Row],[Model Number]])","v":""},{"$f":"IF(Table_PI[[#This Row],[Serial Number(s)]]=\"\",\"\",Table_PI[[#This Row],[Serial Number(s)]])","v":""},null,{"$f":"IF(Table_PI[[#This Row],[Size]]=\"\",\"\",Table_PI[[#This Row],[Size]])","v":""},null,null,{"$f":"IF(Table_PI[[#This Row],[Input 1]]<>\"\",Table_PI[[#This Row],[Input 1]],\"\")","v":""},null,null,{"$f":"IF(Table_PI[[#This Row],[Input 2]]<>\"\",Table_PI[[#This Row],[Input 2]],\"\")","v":""},null,null,{"$f":"IF(Table_PI[[#This Row],[Input 3]]<>\"\",Table_PI[[#This Row],[Input 3]],\"\")","v":""},null,null,{"$f":"IF(Table_PI[[#This Row],[Input 4]]<>\"\",Table_PI[[#This Row],[Input 4]],\"\")","v":""},null,null,{"$f":"IF(Table_PI[[#This Row],[Input 4]]<>\"\",Table_PI[[#This Row],[Input 4]],\"\")","v":""},null,null,{"$f":"IF(Table_PI[[#This Row],[Input 4]]<>\"\",Table_PI[[#This Row],[Input 4]],\"\")","v":""},{"$f":"IF(Table_PI[[#This Row],[Quantity]]=\"\",\"\",Table_PI[[#This Row],[Quantity]])","v":""},{"$f":"IF(Table_PI[[#This Row],[Notes]]=\"\",\"\",Table_PI[[#This Row],[Notes]])","v":""},{"$f":"IF(OR(Table_PI[[#This Row],[Hide: Baseline kWh]]=\"\",Table_PI[[#This Row],[Hide: Baseline kWh]]=0,ISTEXT(Table_PI[[#This Row],[Hide: Baseline kWh]])),\"\",Table_PI[[#This Row],[Hide: Baseline kWh]])","v":""},{"$f":"IF(OR(Table_PI[[#This Row],[Hide: Baseline kW]]=\"\",Table_PI[[#This Row],[Hide: Baseline kW]]=0,ISTEXT(Table_PI[[#This Row],[Hide: Baseline kW]])),\"\",Table_PI[[#This Row],[Hide: Baseline kW]])","v":""},{"$f":"IF(OR(Table_PI[[#This Row],[Hide: Proposed kWh]]=\"\",Table_PI[[#This Row],[Hide: Proposed kWh]]=0,ISTEXT(Table_PI[[#This Row],[Hide: Proposed kWh]])),\"\",Table_PI[[#This Row],[Hide: Proposed kWh]])","v":""},{"$f":"IF(OR(Table_PI[[#This Row],[Hide: Proposed kW]]=\"\",Table_PI[[#This Row],[Hide: Proposed kW]]=0,ISTEXT(Table_PI[[#This Row],[Hide: Proposed kW]])),\"\",Table_PI[[#This Row],[Hide: Proposed kW]])","v":""},null,null,{"$f":"IF(OR(Table_PI[[#This Row],[Hide: Rebate]]=\"\",Table_PI[[#This Row],[Hide: Rebate]]=0,ISTEXT(Table_PI[[#This Row],[Hide: Rebate]])),\"\",Table_PI[[#This Row],[Hide: Rebate]])","v":""},null,{"$f":"IF(OR(Table_PI[[#This Row],[Hide: Incremental Cost]]=\"\",Table_PI[[#This Row],[Hide: Incremental Cost]]=0,ISTEXT(Table_PI[[#This Row],[Hide: Incremental Cost]])),\"\",Table_PI[[#This Row],[Hide: Incremental Cost]])","v":""},{"$f":"IFERROR(IF(Table_SummaryPI[[#This Row],[Incentive_Customer]]=\"\",\"\",ROUND(Table_SummaryPI[[#This Row],[Incentive_Customer]]/$AM$401*'Customer Information'!$BC$21,2)),0)","v":""},{"$f":"IF(OR(Table_PI[[#This Row],[Annual kWh]]=\"\",Table_PI[[#This Row],[Annual kWh]]=0,ISTEXT(Table_PI[[#This Row],[Annual kWh]])),\"\",Table_PI[[#This Row],[Annual kWh]])","v":""},{"$f":"IF(OR(Table_PI[[#This Row],[Peak kW]]=\"\",Table_PI[[#This Row],[Peak kW]]=0,ISTEXT(Table_PI[[#This Row],[Peak kW]])),\"\",Table_PI[[#This Row],[Peak kW]])","v":""},{"$f":"IF(Table_SummaryPI[[#This Row],[Line No.]]<>\"\",IF(AND(ISNUMBER(FIND(\"Chiller\",Table_SummaryPI[[#This Row],[P_MeasureOption1]],1)),Table_SummaryPI[[#This Row],[ProposedMeasureCategory]]=\"Air-Cooled (Water-Cooled Replacement)\"),$BD$29*Table_SummaryPI[[#This Row],[Size]]*Table_SummaryPI[[#This Row],[Quantity]]*Table_SummaryPI[[#This Row],[EFLHCooling]],\nIF(ISNUMBER(FIND(\"Dishwasher\",Table_SummaryPI[[#This Row],[ProposedMeasureCategory]],1)),$BH$29*Table_SummaryPI[[#This Row],[Quantity]],\nIF(ISNUMBER(FIND(\"Ice Maker\",Table_SummaryPI[[#This Row],[ProposedMeasureCategory]],1)),$BD$31*Table_SummaryPI[[#This Row],[Quantity]],\nIF(ISNUMBER(FIND(\"Spray Valve\",Table_SummaryPI[[#This Row],[ProposedMeasureCategory]],1)),$BH$31*Table_SummaryPI[[#This Row],[Quantity]],\n0)))),\"\")","v":""},{"$f":"IF(OR(Table_PI[[#This Row],[Hide: Electrification kWh]]=\"\",Table_PI[[#This Row],[Hide: Electrification kWh]]=0,ISTEXT(Table_PI[[#This Row],[Hide: Electrification kWh]])),\"\",Table_PI[[#This Row],[Hide: Electrification kWh]])","v":""},{"$f":"IF(OR(Table_PI[[#This Row],[Hide: Electrification GHG]]=\"\",Table_PI[[#This Row],[Hide: Electrification GHG]]=0,ISTEXT(Table_PI[[#This Row],[Hide: Electrification GHG]])),\"\",Table_PI[[#This Row],[Hide: Electrification GHG]])","v":""},{"$f":"IFERROR(IF(Table_SummaryPI[[#This Row],[kWhSavings]]=\"\",\"\",$BH$9*Table_SummaryPI[[#This Row],[kWhSavings]]),0)","v":""},{"$f":"IFERROR(IF(Table_SummaryPI[[#This Row],[kWhSavings]]=\"\",\"\",$BH$14*Table_SummaryPI[[#This Row],[kWhSavings]]),0)","v":""},{"$f":"IFERROR(IF(Table_SummaryPI[[#This Row],[kWhSavings]]=\"\",\"\",$BH$18*Table_SummaryPI[[#This Row],[kWhSavings]]),0)","v":""},{"$f":"IFERROR(IF(Table_SummaryPI[[#This Row],[kWhSavings]]=\"\",\"\",$BH$22*Table_SummaryPI[[#This Row],[kWhSavings]]),0)","v":""}]
[{"$f":"Table_PI[[#This Row],[Line No.]]","v":""},{"$f":"IF(Table_SummaryPI[[#This Row],[MeasureName]]<>\"\",NOT(ISTEXT(Table_PI[[#This Row],[Rebate]])),\"\")","v":""},{"$f":"IF(Table_SummaryPI[[#This Row],[MeassureCategory]]<>\"\",CONCATENATE(Table_SummaryPI[[#This Row],[MeassureCategory]],  \" - \", Table_SummaryPI[[#This Row],[ProposedMeasureCategory]],  \" - \", TEXT(Table_SummaryPI[[#This Row],[Size]],\"#,##0.00\"),\" \",Table_SummaryPI[[#This Row],[SizeUnit]]),\"\")","v":""},{"$f":"SUBSTITUTE(Table_PI[[#This Row],[Measure]],\"     \",\"\",1)","v":""},{"$f":"IF(Table_PI[[#This Row],[List 1]]<>\"\",Table_PI[[#This Row],[List 1]],\"\")","v":""},{"$f":"IF(Table_PI[[#This Row],[List 2]]<>\"\",Table_PI[[#This Row],[List 2]],\"\")","v":""},{"$f":"IF(Table_PI[[#This Row],[List 3]]<>\"\",Table_PI[[#This Row],[List 3]],\"\")","v":""},{"$f":"IF(Table_PI[[#This Row],[Manufacturer]]=\"\",\"\",Table_PI[[#This Row],[Manufacturer]])","v":""},{"$f":"IF(Table_PI[[#This Row],[Model Number]]=\"\",\"\",Table_PI[[#This Row],[Model Number]])","v":""},{"$f":"IF(Table_PI[[#This Row],[Serial Number(s)]]=\"\",\"\",Table_PI[[#This Row],[Serial Number(s)]])","v":""},null,{"$f":"IF(Table_PI[[#This Row],[Size]]=\"\",\"\",Table_PI[[#This Row],[Size]])","v":""},null,null,{"$f":"IF(Table_PI[[#This Row],[Input 1]]<>\"\",Table_PI[[#This Row],[Input 1]],\"\")","v":""},null,null,{"$f":"IF(Table_PI[[#This Row],[Input 2]]<>\"\",Table_PI[[#This Row],[Input 2]],\"\")","v":""},null,null,{"$f":"IF(Table_PI[[#This Row],[Input 3]]<>\"\",Table_PI[[#This Row],[Input 3]],\"\")","v":""},null,null,{"$f":"IF(Table_PI[[#This Row],[Input 4]]<>\"\",Table_PI[[#This Row],[Input 4]],\"\")","v":""},null,null,{"$f":"IF(Table_PI[[#This Row],[Input 4]]<>\"\",Table_PI[[#This Row],[Input 4]],\"\")","v":""},null,null,{"$f":"IF(Table_PI[[#This Row],[Input 4]]<>\"\",Table_PI[[#This Row],[Input 4]],\"\")","v":""},{"$f":"IF(Table_PI[[#This Row],[Quantity]]=\"\",\"\",Table_PI[[#This Row],[Quantity]])","v":""},{"$f":"IF(Table_PI[[#This Row],[Notes]]=\"\",\"\",Table_PI[[#This Row],[Notes]])","v":""},{"$f":"IF(OR(Table_PI[[#This Row],[Hide: Baseline kWh]]=\"\",Table_PI[[#This Row],[Hide: Baseline kWh]]=0,ISTEXT(Table_PI[[#This Row],[Hide: Baseline kWh]])),\"\",Table_PI[[#This Row],[Hide: Baseline kWh]])","v":""},{"$f":"IF(OR(Table_PI[[#This Row],[Hide: Baseline kW]]=\"\",Table_PI[[#This Row],[Hide: Baseline kW]]=0,ISTEXT(Table_PI[[#This Row],[Hide: Baseline kW]])),\"\",Table_PI[[#This Row],[Hide: Baseline kW]])","v":""},{"$f":"IF(OR(Table_PI[[#This Row],[Hide: Proposed kWh]]=\"\",Table_PI[[#This Row],[Hide: Proposed kWh]]=0,ISTEXT(Table_PI[[#This Row],[Hide: Proposed kWh]])),\"\",Table_PI[[#This Row],[Hide: Proposed kWh]])","v":""},{"$f":"IF(OR(Table_PI[[#This Row],[Hide: Proposed kW]]=\"\",Table_PI[[#This Row],[Hide: Proposed kW]]=0,ISTEXT(Table_PI[[#This Row],[Hide: Proposed kW]])),\"\",Table_PI[[#This Row],[Hide: Proposed kW]])","v":""},null,null,{"$f":"IF(OR(Table_PI[[#This Row],[Hide: Rebate]]=\"\",Table_PI[[#This Row],[Hide: Rebate]]=0,ISTEXT(Table_PI[[#This Row],[Hide: Rebate]])),\"\",Table_PI[[#This Row],[Hide: Rebate]])","v":""},null,{"$f":"IF(OR(Table_PI[[#This Row],[Hide: Incremental Cost]]=\"\",Table_PI[[#This Row],[Hide: Incremental Cost]]=0,ISTEXT(Table_PI[[#This Row],[Hide: Incremental Cost]])),\"\",Table_PI[[#This Row],[Hide: Incremental Cost]])","v":""},{"$f":"IFERROR(IF(Table_SummaryPI[[#This Row],[Incentive_Customer]]=\"\",\"\",ROUND(Table_SummaryPI[[#This Row],[Incentive_Customer]]/$AM$401*'Customer Information'!$BC$21,2)),0)","v":""},{"$f":"IF(OR(Table_PI[[#This Row],[Annual kWh]]=\"\",Table_PI[[#This Row],[Annual kWh]]=0,ISTEXT(Table_PI[[#This Row],[Annual kWh]])),\"\",Table_PI[[#This Row],[Annual kWh]])","v":""},{"$f":"IF(OR(Table_PI[[#This Row],[Peak kW]]=\"\",Table_PI[[#This Row],[Peak kW]]=0,ISTEXT(Table_PI[[#This Row],[Peak kW]])),\"\",Table_PI[[#This Row],[Peak kW]])","v":""},{"$f":"IF(Table_SummaryPI[[#This Row],[Line No.]]<>\"\",IF(AND(ISNUMBER(FIND(\"Chiller\",Table_SummaryPI[[#This Row],[P_MeasureOption1]],1)),Table_SummaryPI[[#This Row],[ProposedMeasureCategory]]=\"Air-Cooled (Water-Cooled Replacement)\"),$BD$29*Table_SummaryPI[[#This Row],[Size]]*Table_SummaryPI[[#This Row],[Quantity]]*Table_SummaryPI[[#This Row],[EFLHCooling]],\nIF(ISNUMBER(FIND(\"Dishwasher\",Table_SummaryPI[[#This Row],[ProposedMeasureCategory]],1)),$BH$29*Table_SummaryPI[[#This Row],[Quantity]],\nIF(ISNUMBER(FIND(\"Ice Maker\",Table_SummaryPI[[#This Row],[ProposedMeasureCategory]],1)),$BD$31*Table_SummaryPI[[#This Row],[Quantity]],\nIF(ISNUMBER(FIND(\"Spray Valve\",Table_SummaryPI[[#This Row],[ProposedMeasureCategory]],1)),$BH$31*Table_SummaryPI[[#This Row],[Quantity]],\n0)))),\"\")","v":""},{"$f":"IF(OR(Table_PI[[#This Row],[Hide: Electrification kWh]]=\"\",Table_PI[[#This Row],[Hide: Electrification kWh]]=0,ISTEXT(Table_PI[[#This Row],[Hide: Electrification kWh]])),\"\",Table_PI[[#This Row],[Hide: Electrification kWh]])","v":""},{"$f":"IF(OR(Table_PI[[#This Row],[Hide: Electrification GHG]]=\"\",Table_PI[[#This Row],[Hide: Electrification GHG]]=0,ISTEXT(Table_PI[[#This Row],[Hide: Electrification GHG]])),\"\",Table_PI[[#This Row],[Hide: Electrification GHG]])","v":""},{"$f":"IFERROR(IF(Table_SummaryPI[[#This Row],[kWhSavings]]=\"\",\"\",$BH$9*Table_SummaryPI[[#This Row],[kWhSavings]]),0)","v":""},{"$f":"IFERROR(IF(Table_SummaryPI[[#This Row],[kWhSavings]]=\"\",\"\",$BH$14*Table_SummaryPI[[#This Row],[kWhSavings]]),0)","v":""},{"$f":"IFERROR(IF(Table_SummaryPI[[#This Row],[kWhSavings]]=\"\",\"\",$BH$18*Table_SummaryPI[[#This Row],[kWhSavings]]),0)","v":""},{"$f":"IFERROR(IF(Table_SummaryPI[[#This Row],[kWhSavings]]=\"\",\"\",$BH$22*Table_SummaryPI[[#This Row],[kWhSavings]]),0)","v":""}]
[{"$f":"Table_PI[[#This Row],[Line No.]]","v":""},{"$f":"IF(Table_SummaryPI[[#This Row],[MeasureName]]<>\"\",NOT(ISTEXT(Table_PI[[#This Row],[Rebate]])),\"\")","v":""},{"$f":"IF(Table_SummaryPI[[#This Row],[MeassureCategory]]<>\"\",CONCATENATE(Table_SummaryPI[[#This Row],[MeassureCategory]],  \" - \", Table_SummaryPI[[#This Row],[ProposedMeasureCategory]],  \" - \", TEXT(Table_SummaryPI[[#This Row],[Size]],\"#,##0.00\"),\" \",Table_SummaryPI[[#This Row],[SizeUnit]]),\"\")","v":""},{"$f":"SUBSTITUTE(Table_PI[[#This Row],[Measure]],\"     \",\"\",1)","v":""},{"$f":"IF(Table_PI[[#This Row],[List 1]]<>\"\",Table_PI[[#This Row],[List 1]],\"\")","v":""},{"$f":"IF(Table_PI[[#This Row],[List 2]]<>\"\",Table_PI[[#This Row],[List 2]],\"\")","v":""},{"$f":"IF(Table_PI[[#This Row],[List 3]]<>\"\",Table_PI[[#This Row],[List 3]],\"\")","v":""},{"$f":"IF(Table_PI[[#This Row],[Manufacturer]]=\"\",\"\",Table_PI[[#This Row],[Manufacturer]])","v":""},{"$f":"IF(Table_PI[[#This Row],[Model Number]]=\"\",\"\",Table_PI[[#This Row],[Model Number]])","v":""},{"$f":"IF(Table_PI[[#This Row],[Serial Number(s)]]=\"\",\"\",Table_PI[[#This Row],[Serial Number(s)]])","v":""},null,{"$f":"IF(Table_PI[[#This Row],[Size]]=\"\",\"\",Table_PI[[#This Row],[Size]])","v":""},null,null,{"$f":"IF(Table_PI[[#This Row],[Input 1]]<>\"\",Table_PI[[#This Row],[Input 1]],\"\")","v":""},null,null,{"$f":"IF(Table_PI[[#This Row],[Input 2]]<>\"\",Table_PI[[#This Row],[Input 2]],\"\")","v":""},null,null,{"$f":"IF(Table_PI[[#This Row],[Input 3]]<>\"\",Table_PI[[#This Row],[Input 3]],\"\")","v":""},null,null,{"$f":"IF(Table_PI[[#This Row],[Input 4]]<>\"\",Table_PI[[#This Row],[Input 4]],\"\")","v":""},null,null,{"$f":"IF(Table_PI[[#This Row],[Input 4]]<>\"\",Table_PI[[#This Row],[Input 4]],\"\")","v":""},null,null,{"$f":"IF(Table_PI[[#This Row],[Input 4]]<>\"\",Table_PI[[#This Row],[Input 4]],\"\")","v":""},{"$f":"IF(Table_PI[[#This Row],[Quantity]]=\"\",\"\",Table_PI[[#This Row],[Quantity]])","v":""},{"$f":"IF(Table_PI[[#This Row],[Notes]]=\"\",\"\",Table_PI[[#This Row],[Notes]])","v":""},{"$f":"IF(OR(Table_PI[[#This Row],[Hide: Baseline kWh]]=\"\",Table_PI[[#This Row],[Hide: Baseline kWh]]=0,ISTEXT(Table_PI[[#This Row],[Hide: Baseline kWh]])),\"\",Table_PI[[#This Row],[Hide: Baseline kWh]])","v":""},{"$f":"IF(OR(Table_PI[[#This Row],[Hide: Baseline kW]]=\"\",Table_PI[[#This Row],[Hide: Baseline kW]]=0,ISTEXT(Table_PI[[#This Row],[Hide: Baseline kW]])),\"\",Table_PI[[#This Row],[Hide: Baseline kW]])","v":""},{"$f":"IF(OR(Table_PI[[#This Row],[Hide: Proposed kWh]]=\"\",Table_PI[[#This Row],[Hide: Proposed kWh]]=0,ISTEXT(Table_PI[[#This Row],[Hide: Proposed kWh]])),\"\",Table_PI[[#This Row],[Hide: Proposed kWh]])","v":""},{"$f":"IF(OR(Table_PI[[#This Row],[Hide: Proposed kW]]=\"\",Table_PI[[#This Row],[Hide: Proposed kW]]=0,ISTEXT(Table_PI[[#This Row],[Hide: Proposed kW]])),\"\",Table_PI[[#This Row],[Hide: Proposed kW]])","v":""},null,null,{"$f":"IF(OR(Table_PI[[#This Row],[Hide: Rebate]]=\"\",Table_PI[[#This Row],[Hide: Rebate]]=0,ISTEXT(Table_PI[[#This Row],[Hide: Rebate]])),\"\",Table_PI[[#This Row],[Hide: Rebate]])","v":""},null,{"$f":"IF(OR(Table_PI[[#This Row],[Hide: Incremental Cost]]=\"\",Table_PI[[#This Row],[Hide: Incremental Cost]]=0,ISTEXT(Table_PI[[#This Row],[Hide: Incremental Cost]])),\"\",Table_PI[[#This Row],[Hide: Incremental Cost]])","v":""},{"$f":"IFERROR(IF(Table_SummaryPI[[#This Row],[Incentive_Customer]]=\"\",\"\",ROUND(Table_SummaryPI[[#This Row],[Incentive_Customer]]/$AM$401*'Customer Information'!$BC$21,2)),0)","v":""},{"$f":"IF(OR(Table_PI[[#This Row],[Annual kWh]]=\"\",Table_PI[[#This Row],[Annual kWh]]=0,ISTEXT(Table_PI[[#This Row],[Annual kWh]])),\"\",Table_PI[[#This Row],[Annual kWh]])","v":""},{"$f":"IF(OR(Table_PI[[#This Row],[Peak kW]]=\"\",Table_PI[[#This Row],[Peak kW]]=0,ISTEXT(Table_PI[[#This Row],[Peak kW]])),\"\",Table_PI[[#This Row],[Peak kW]])","v":""},{"$f":"IF(Table_SummaryPI[[#This Row],[Line No.]]<>\"\",IF(AND(ISNUMBER(FIND(\"Chiller\",Table_SummaryPI[[#This Row],[P_MeasureOption1]],1)),Table_SummaryPI[[#This Row],[ProposedMeasureCategory]]=\"Air-Cooled (Water-Cooled Replacement)\"),$BD$29*Table_SummaryPI[[#This Row],[Size]]*Table_SummaryPI[[#This Row],[Quantity]]*Table_SummaryPI[[#This Row],[EFLHCooling]],\nIF(ISNUMBER(FIND(\"Dishwasher\",Table_SummaryPI[[#This Row],[ProposedMeasureCategory]],1)),$BH$29*Table_SummaryPI[[#This Row],[Quantity]],\nIF(ISNUMBER(FIND(\"Ice Maker\",Table_SummaryPI[[#This Row],[ProposedMeasureCategory]],1)),$BD$31*Table_SummaryPI[[#This Row],[Quantity]],\nIF(ISNUMBER(FIND(\"Spray Valve\",Table_SummaryPI[[#This Row],[ProposedMeasureCategory]],1)),$BH$31*Table_SummaryPI[[#This Row],[Quantity]],\n0)))),\"\")","v":""},{"$f":"IF(OR(Table_PI[[#This Row],[Hide: Electrification kWh]]=\"\",Table_PI[[#This Row],[Hide: Electrification kWh]]=0,ISTEXT(Table_PI[[#This Row],[Hide: Electrification kWh]])),\"\",Table_PI[[#This Row],[Hide: Electrification kWh]])","v":""},{"$f":"IF(OR(Table_PI[[#This Row],[Hide: Electrification GHG]]=\"\",Table_PI[[#This Row],[Hide: Electrification GHG]]=0,ISTEXT(Table_PI[[#This Row],[Hide: Electrification GHG]])),\"\",Table_PI[[#This Row],[Hide: Electrification GHG]])","v":""},{"$f":"IFERROR(IF(Table_SummaryPI[[#This Row],[kWhSavings]]=\"\",\"\",$BH$9*Table_SummaryPI[[#This Row],[kWhSavings]]),0)","v":""},{"$f":"IFERROR(IF(Table_SummaryPI[[#This Row],[kWhSavings]]=\"\",\"\",$BH$14*Table_SummaryPI[[#This Row],[kWhSavings]]),0)","v":""},{"$f":"IFERROR(IF(Table_SummaryPI[[#This Row],[kWhSavings]]=\"\",\"\",$BH$18*Table_SummaryPI[[#This Row],[kWhSavings]]),0)","v":""},{"$f":"IFERROR(IF(Table_SummaryPI[[#This Row],[kWhSavings]]=\"\",\"\",$BH$22*Table_SummaryPI[[#This Row],[kWhSavings]]),0)","v":""}]
[{"$f":"Table_PI[[#This Row],[Line No.]]","v":""},{"$f":"IF(Table_SummaryPI[[#This Row],[MeasureName]]<>\"\",NOT(ISTEXT(Table_PI[[#This Row],[Rebate]])),\"\")","v":""},{"$f":"IF(Table_SummaryPI[[#This Row],[MeassureCategory]]<>\"\",CONCATENATE(Table_SummaryPI[[#This Row],[MeassureCategory]],  \" - \", Table_SummaryPI[[#This Row],[ProposedMeasureCategory]],  \" - \", TEXT(Table_SummaryPI[[#This Row],[Size]],\"#,##0.00\"),\" \",Table_SummaryPI[[#This Row],[SizeUnit]]),\"\")","v":""},{"$f":"SUBSTITUTE(Table_PI[[#This Row],[Measure]],\"     \",\"\",1)","v":""},{"$f":"IF(Table_PI[[#This Row],[List 1]]<>\"\",Table_PI[[#This Row],[List 1]],\"\")","v":""},{"$f":"IF(Table_PI[[#This Row],[List 2]]<>\"\",Table_PI[[#This Row],[List 2]],\"\")","v":""},{"$f":"IF(Table_PI[[#This Row],[List 3]]<>\"\",Table_PI[[#This Row],[List 3]],\"\")","v":""},{"$f":"IF(Table_PI[[#This Row],[Manufacturer]]=\"\",\"\",Table_PI[[#This Row],[Manufacturer]])","v":""},{"$f":"IF(Table_PI[[#This Row],[Model Number]]=\"\",\"\",Table_PI[[#This Row],[Model Number]])","v":""},{"$f":"IF(Table_PI[[#This Row],[Serial Number(s)]]=\"\",\"\",Table_PI[[#This Row],[Serial Number(s)]])","v":""},null,{"$f":"IF(Table_PI[[#This Row],[Size]]=\"\",\"\",Table_PI[[#This Row],[Size]])","v":""},null,null,{"$f":"IF(Table_PI[[#This Row],[Input 1]]<>\"\",Table_PI[[#This Row],[Input 1]],\"\")","v":""},null,null,{"$f":"IF(Table_PI[[#This Row],[Input 2]]<>\"\",Table_PI[[#This Row],[Input 2]],\"\")","v":""},null,null,{"$f":"IF(Table_PI[[#This Row],[Input 3]]<>\"\",Table_PI[[#This Row],[Input 3]],\"\")","v":""},null,null,{"$f":"IF(Table_PI[[#This Row],[Input 4]]<>\"\",Table_PI[[#This Row],[Input 4]],\"\")","v":""},null,null,{"$f":"IF(Table_PI[[#This Row],[Input 4]]<>\"\",Table_PI[[#This Row],[Input 4]],\"\")","v":""},null,null,{"$f":"IF(Table_PI[[#This Row],[Input 4]]<>\"\",Table_PI[[#This Row],[Input 4]],\"\")","v":""},{"$f":"IF(Table_PI[[#This Row],[Quantity]]=\"\",\"\",Table_PI[[#This Row],[Quantity]])","v":""},{"$f":"IF(Table_PI[[#This Row],[Notes]]=\"\",\"\",Table_PI[[#This Row],[Notes]])","v":""},{"$f":"IF(OR(Table_PI[[#This Row],[Hide: Baseline kWh]]=\"\",Table_PI[[#This Row],[Hide: Baseline kWh]]=0,ISTEXT(Table_PI[[#This Row],[Hide: Baseline kWh]])),\"\",Table_PI[[#This Row],[Hide: Baseline kWh]])","v":""},{"$f":"IF(OR(Table_PI[[#This Row],[Hide: Baseline kW]]=\"\",Table_PI[[#This Row],[Hide: Baseline kW]]=0,ISTEXT(Table_PI[[#This Row],[Hide: Baseline kW]])),\"\",Table_PI[[#This Row],[Hide: Baseline kW]])","v":""},{"$f":"IF(OR(Table_PI[[#This Row],[Hide: Proposed kWh]]=\"\",Table_PI[[#This Row],[Hide: Proposed kWh]]=0,ISTEXT(Table_PI[[#This Row],[Hide: Proposed kWh]])),\"\",Table_PI[[#This Row],[Hide: Proposed kWh]])","v":""},{"$f":"IF(OR(Table_PI[[#This Row],[Hide: Proposed kW]]=\"\",Table_PI[[#This Row],[Hide: Proposed kW]]=0,ISTEXT(Table_PI[[#This Row],[Hide: Proposed kW]])),\"\",Table_PI[[#This Row],[Hide: Proposed kW]])","v":""},null,null,{"$f":"IF(OR(Table_PI[[#This Row],[Hide: Rebate]]=\"\",Table_PI[[#This Row],[Hide: Rebate]]=0,ISTEXT(Table_PI[[#This Row],[Hide: Rebate]])),\"\",Table_PI[[#This Row],[Hide: Rebate]])","v":""},null,{"$f":"IF(OR(Table_PI[[#This Row],[Hide: Incremental Cost]]=\"\",Table_PI[[#This Row],[Hide: Incremental Cost]]=0,ISTEXT(Table_PI[[#This Row],[Hide: Incremental Cost]])),\"\",Table_PI[[#This Row],[Hide: Incremental Cost]])","v":""},{"$f":"IFERROR(IF(Table_SummaryPI[[#This Row],[Incentive_Customer]]=\"\",\"\",ROUND(Table_SummaryPI[[#This Row],[Incentive_Customer]]/$AM$401*'Customer Information'!$BC$21,2)),0)","v":""},{"$f":"IF(OR(Table_PI[[#This Row],[Annual kWh]]=\"\",Table_PI[[#This Row],[Annual kWh]]=0,ISTEXT(Table_PI[[#This Row],[Annual kWh]])),\"\",Table_PI[[#This Row],[Annual kWh]])","v":""},{"$f":"IF(OR(Table_PI[[#This Row],[Peak kW]]=\"\",Table_PI[[#This Row],[Peak kW]]=0,ISTEXT(Table_PI[[#This Row],[Peak kW]])),\"\",Table_PI[[#This Row],[Peak kW]])","v":""},{"$f":"IF(Table_SummaryPI[[#This Row],[Line No.]]<>\"\",IF(AND(ISNUMBER(FIND(\"Chiller\",Table_SummaryPI[[#This Row],[P_MeasureOption1]],1)),Table_SummaryPI[[#This Row],[ProposedMeasureCategory]]=\"Air-Cooled (Water-Cooled Replacement)\"),$BD$29*Table_SummaryPI[[#This Row],[Size]]*Table_SummaryPI[[#This Row],[Quantity]]*Table_SummaryPI[[#This Row],[EFLHCooling]],\nIF(ISNUMBER(FIND(\"Dishwasher\",Table_SummaryPI[[#This Row],[ProposedMeasureCategory]],1)),$BH$29*Table_SummaryPI[[#This Row],[Quantity]],\nIF(ISNUMBER(FIND(\"Ice Maker\",Table_SummaryPI[[#This Row],[ProposedMeasureCategory]],1)),$BD$31*Table_SummaryPI[[#This Row],[Quantity]],\nIF(ISNUMBER(FIND(\"Spray Valve\",Table_SummaryPI[[#This Row],[ProposedMeasureCategory]],1)),$BH$31*Table_SummaryPI[[#This Row],[Quantity]],\n0)))),\"\")","v":""},{"$f":"IF(OR(Table_PI[[#This Row],[Hide: Electrification kWh]]=\"\",Table_PI[[#This Row],[Hide: Electrification kWh]]=0,ISTEXT(Table_PI[[#This Row],[Hide: Electrification kWh]])),\"\",Table_PI[[#This Row],[Hide: Electrification kWh]])","v":""},{"$f":"IF(OR(Table_PI[[#This Row],[Hide: Electrification GHG]]=\"\",Table_PI[[#This Row],[Hide: Electrification GHG]]=0,ISTEXT(Table_PI[[#This Row],[Hide: Electrification GHG]])),\"\",Table_PI[[#This Row],[Hide: Electrification GHG]])","v":""},{"$f":"IFERROR(IF(Table_SummaryPI[[#This Row],[kWhSavings]]=\"\",\"\",$BH$9*Table_SummaryPI[[#This Row],[kWhSavings]]),0)","v":""},{"$f":"IFERROR(IF(Table_SummaryPI[[#This Row],[kWhSavings]]=\"\",\"\",$BH$14*Table_SummaryPI[[#This Row],[kWhSavings]]),0)","v":""},{"$f":"IFERROR(IF(Table_SummaryPI[[#This Row],[kWhSavings]]=\"\",\"\",$BH$18*Table_SummaryPI[[#This Row],[kWhSavings]]),0)","v":""},{"$f":"IFERROR(IF(Table_SummaryPI[[#This Row],[kWhSavings]]=\"\",\"\",$BH$22*Table_SummaryPI[[#This Row],[kWhSavings]]),0)","v":""}]
[{"$f":"Table_PI[[#This Row],[Line No.]]","v":""},{"$f":"IF(Table_SummaryPI[[#This Row],[MeasureName]]<>\"\",NOT(ISTEXT(Table_PI[[#This Row],[Rebate]])),\"\")","v":""},{"$f":"IF(Table_SummaryPI[[#This Row],[MeassureCategory]]<>\"\",CONCATENATE(Table_SummaryPI[[#This Row],[MeassureCategory]],  \" - \", Table_SummaryPI[[#This Row],[ProposedMeasureCategory]],  \" - \", TEXT(Table_SummaryPI[[#This Row],[Size]],\"#,##0.00\"),\" \",Table_SummaryPI[[#This Row],[SizeUnit]]),\"\")","v":""},{"$f":"SUBSTITUTE(Table_PI[[#This Row],[Measure]],\"     \",\"\",1)","v":""},{"$f":"IF(Table_PI[[#This Row],[List 1]]<>\"\",Table_PI[[#This Row],[List 1]],\"\")","v":""},{"$f":"IF(Table_PI[[#This Row],[List 2]]<>\"\",Table_PI[[#This Row],[List 2]],\"\")","v":""},{"$f":"IF(Table_PI[[#This Row],[List 3]]<>\"\",Table_PI[[#This Row],[List 3]],\"\")","v":""},{"$f":"IF(Table_PI[[#This Row],[Manufacturer]]=\"\",\"\",Table_PI[[#This Row],[Manufacturer]])","v":""},{"$f":"IF(Table_PI[[#This Row],[Model Number]]=\"\",\"\",Table_PI[[#This Row],[Model Number]])","v":""},{"$f":"IF(Table_PI[[#This Row],[Serial Number(s)]]=\"\",\"\",Table_PI[[#This Row],[Serial Number(s)]])","v":""},null,{"$f":"IF(Table_PI[[#This Row],[Size]]=\"\",\"\",Table_PI[[#This Row],[Size]])","v":""},null,null,{"$f":"IF(Table_PI[[#This Row],[Input 1]]<>\"\",Table_PI[[#This Row],[Input 1]],\"\")","v":""},null,null,{"$f":"IF(Table_PI[[#This Row],[Input 2]]<>\"\",Table_PI[[#This Row],[Input 2]],\"\")","v":""},null,null,{"$f":"IF(Table_PI[[#This Row],[Input 3]]<>\"\",Table_PI[[#This Row],[Input 3]],\"\")","v":""},null,null,{"$f":"IF(Table_PI[[#This Row],[Input 4]]<>\"\",Table_PI[[#This Row],[Input 4]],\"\")","v":""},null,null,{"$f":"IF(Table_PI[[#This Row],[Input 4]]<>\"\",Table_PI[[#This Row],[Input 4]],\"\")","v":""},null,null,{"$f":"IF(Table_PI[[#This Row],[Input 4]]<>\"\",Table_PI[[#This Row],[Input 4]],\"\")","v":""},{"$f":"IF(Table_PI[[#This Row],[Quantity]]=\"\",\"\",Table_PI[[#This Row],[Quantity]])","v":""},{"$f":"IF(Table_PI[[#This Row],[Notes]]=\"\",\"\",Table_PI[[#This Row],[Notes]])","v":""},{"$f":"IF(OR(Table_PI[[#This Row],[Hide: Baseline kWh]]=\"\",Table_PI[[#This Row],[Hide: Baseline kWh]]=0,ISTEXT(Table_PI[[#This Row],[Hide: Baseline kWh]])),\"\",Table_PI[[#This Row],[Hide: Baseline kWh]])","v":""},{"$f":"IF(OR(Table_PI[[#This Row],[Hide: Baseline kW]]=\"\",Table_PI[[#This Row],[Hide: Baseline kW]]=0,ISTEXT(Table_PI[[#This Row],[Hide: Baseline kW]])),\"\",Table_PI[[#This Row],[Hide: Baseline kW]])","v":""},{"$f":"IF(OR(Table_PI[[#This Row],[Hide: Proposed kWh]]=\"\",Table_PI[[#This Row],[Hide: Proposed kWh]]=0,ISTEXT(Table_PI[[#This Row],[Hide: Proposed kWh]])),\"\",Table_PI[[#This Row],[Hide: Proposed kWh]])","v":""},{"$f":"IF(OR(Table_PI[[#This Row],[Hide: Proposed kW]]=\"\",Table_PI[[#This Row],[Hide: Proposed kW]]=0,ISTEXT(Table_PI[[#This Row],[Hide: Proposed kW]])),\"\",Table_PI[[#This Row],[Hide: Proposed kW]])","v":""},null,null,{"$f":"IF(OR(Table_PI[[#This Row],[Hide: Rebate]]=\"\",Table_PI[[#This Row],[Hide: Rebate]]=0,ISTEXT(Table_PI[[#This Row],[Hide: Rebate]])),\"\",Table_PI[[#This Row],[Hide: Rebate]])","v":""},null,{"$f":"IF(OR(Table_PI[[#This Row],[Hide: Incremental Cost]]=\"\",Table_PI[[#This Row],[Hide: Incremental Cost]]=0,ISTEXT(Table_PI[[#This Row],[Hide: Incremental Cost]])),\"\",Table_PI[[#This Row],[Hide: Incremental Cost]])","v":""},{"$f":"IFERROR(IF(Table_SummaryPI[[#This Row],[Incentive_Customer]]=\"\",\"\",ROUND(Table_SummaryPI[[#This Row],[Incentive_Customer]]/$AM$401*'Customer Information'!$BC$21,2)),0)","v":""},{"$f":"IF(OR(Table_PI[[#This Row],[Annual kWh]]=\"\",Table_PI[[#This Row],[Annual kWh]]=0,ISTEXT(Table_PI[[#This Row],[Annual kWh]])),\"\",Table_PI[[#This Row],[Annual kWh]])","v":""},{"$f":"IF(OR(Table_PI[[#This Row],[Peak kW]]=\"\",Table_PI[[#This Row],[Peak kW]]=0,ISTEXT(Table_PI[[#This Row],[Peak kW]])),\"\",Table_PI[[#This Row],[Peak kW]])","v":""},{"$f":"IF(Table_SummaryPI[[#This Row],[Line No.]]<>\"\",IF(AND(ISNUMBER(FIND(\"Chiller\",Table_SummaryPI[[#This Row],[P_MeasureOption1]],1)),Table_SummaryPI[[#This Row],[ProposedMeasureCategory]]=\"Air-Cooled (Water-Cooled Replacement)\"),$BD$29*Table_SummaryPI[[#This Row],[Size]]*Table_SummaryPI[[#This Row],[Quantity]]*Table_SummaryPI[[#This Row],[EFLHCooling]],\nIF(ISNUMBER(FIND(\"Dishwasher\",Table_SummaryPI[[#This Row],[ProposedMeasureCategory]],1)),$BH$29*Table_SummaryPI[[#This Row],[Quantity]],\nIF(ISNUMBER(FIND(\"Ice Maker\",Table_SummaryPI[[#This Row],[ProposedMeasureCategory]],1)),$BD$31*Table_SummaryPI[[#This Row],[Quantity]],\nIF(ISNUMBER(FIND(\"Spray Valve\",Table_SummaryPI[[#This Row],[ProposedMeasureCategory]],1)),$BH$31*Table_SummaryPI[[#This Row],[Quantity]],\n0)))),\"\")","v":""},{"$f":"IF(OR(Table_PI[[#This Row],[Hide: Electrification kWh]]=\"\",Table_PI[[#This Row],[Hide: Electrification kWh]]=0,ISTEXT(Table_PI[[#This Row],[Hide: Electrification kWh]])),\"\",Table_PI[[#This Row],[Hide: Electrification kWh]])","v":""},{"$f":"IF(OR(Table_PI[[#This Row],[Hide: Electrification GHG]]=\"\",Table_PI[[#This Row],[Hide: Electrification GHG]]=0,ISTEXT(Table_PI[[#This Row],[Hide: Electrification GHG]])),\"\",Table_PI[[#This Row],[Hide: Electrification GHG]])","v":""},{"$f":"IFERROR(IF(Table_SummaryPI[[#This Row],[kWhSavings]]=\"\",\"\",$BH$9*Table_SummaryPI[[#This Row],[kWhSavings]]),0)","v":""},{"$f":"IFERROR(IF(Table_SummaryPI[[#This Row],[kWhSavings]]=\"\",\"\",$BH$14*Table_SummaryPI[[#This Row],[kWhSavings]]),0)","v":""},{"$f":"IFERROR(IF(Table_SummaryPI[[#This Row],[kWhSavings]]=\"\",\"\",$BH$18*Table_SummaryPI[[#This Row],[kWhSavings]]),0)","v":""},{"$f":"IFERROR(IF(Table_SummaryPI[[#This Row],[kWhSavings]]=\"\",\"\",$BH$22*Table_SummaryPI[[#This Row],[kWhSavings]]),0)","v":""}]
[{"$f":"Table_PI[[#This Row],[Line No.]]","v":""},{"$f":"IF(Table_SummaryPI[[#This Row],[MeasureName]]<>\"\",NOT(ISTEXT(Table_PI[[#This Row],[Rebate]])),\"\")","v":""},{"$f":"IF(Table_SummaryPI[[#This Row],[MeassureCategory]]<>\"\",CONCATENATE(Table_SummaryPI[[#This Row],[MeassureCategory]],  \" - \", Table_SummaryPI[[#This Row],[ProposedMeasureCategory]],  \" - \", TEXT(Table_SummaryPI[[#This Row],[Size]],\"#,##0.00\"),\" \",Table_SummaryPI[[#This Row],[SizeUnit]]),\"\")","v":""},{"$f":"SUBSTITUTE(Table_PI[[#This Row],[Measure]],\"     \",\"\",1)","v":""},{"$f":"IF(Table_PI[[#This Row],[List 1]]<>\"\",Table_PI[[#This Row],[List 1]],\"\")","v":""},{"$f":"IF(Table_PI[[#This Row],[List 2]]<>\"\",Table_PI[[#This Row],[List 2]],\"\")","v":""},{"$f":"IF(Table_PI[[#This Row],[List 3]]<>\"\",Table_PI[[#This Row],[List 3]],\"\")","v":""},{"$f":"IF(Table_PI[[#This Row],[Manufacturer]]=\"\",\"\",Table_PI[[#This Row],[Manufacturer]])","v":""},{"$f":"IF(Table_PI[[#This Row],[Model Number]]=\"\",\"\",Table_PI[[#This Row],[Model Number]])","v":""},{"$f":"IF(Table_PI[[#This Row],[Serial Number(s)]]=\"\",\"\",Table_PI[[#This Row],[Serial Number(s)]])","v":""},null,{"$f":"IF(Table_PI[[#This Row],[Size]]=\"\",\"\",Table_PI[[#This Row],[Size]])","v":""},null,null,{"$f":"IF(Table_PI[[#This Row],[Input 1]]<>\"\",Table_PI[[#This Row],[Input 1]],\"\")","v":""},null,null,{"$f":"IF(Table_PI[[#This Row],[Input 2]]<>\"\",Table_PI[[#This Row],[Input 2]],\"\")","v":""},null,null,{"$f":"IF(Table_PI[[#This Row],[Input 3]]<>\"\",Table_PI[[#This Row],[Input 3]],\"\")","v":""},null,null,{"$f":"IF(Table_PI[[#This Row],[Input 4]]<>\"\",Table_PI[[#This Row],[Input 4]],\"\")","v":""},null,null,{"$f":"IF(Table_PI[[#This Row],[Input 4]]<>\"\",Table_PI[[#This Row],[Input 4]],\"\")","v":""},null,null,{"$f":"IF(Table_PI[[#This Row],[Input 4]]<>\"\",Table_PI[[#This Row],[Input 4]],\"\")","v":""},{"$f":"IF(Table_PI[[#This Row],[Quantity]]=\"\",\"\",Table_PI[[#This Row],[Quantity]])","v":""},{"$f":"IF(Table_PI[[#This Row],[Notes]]=\"\",\"\",Table_PI[[#This Row],[Notes]])","v":""},{"$f":"IF(OR(Table_PI[[#This Row],[Hide: Baseline kWh]]=\"\",Table_PI[[#This Row],[Hide: Baseline kWh]]=0,ISTEXT(Table_PI[[#This Row],[Hide: Baseline kWh]])),\"\",Table_PI[[#This Row],[Hide: Baseline kWh]])","v":""},{"$f":"IF(OR(Table_PI[[#This Row],[Hide: Baseline kW]]=\"\",Table_PI[[#This Row],[Hide: Baseline kW]]=0,ISTEXT(Table_PI[[#This Row],[Hide: Baseline kW]])),\"\",Table_PI[[#This Row],[Hide: Baseline kW]])","v":""},{"$f":"IF(OR(Table_PI[[#This Row],[Hide: Proposed kWh]]=\"\",Table_PI[[#This Row],[Hide: Proposed kWh]]=0,ISTEXT(Table_PI[[#This Row],[Hide: Proposed kWh]])),\"\",Table_PI[[#This Row],[Hide: Proposed kWh]])","v":""},{"$f":"IF(OR(Table_PI[[#This Row],[Hide: Proposed kW]]=\"\",Table_PI[[#This Row],[Hide: Proposed kW]]=0,ISTEXT(Table_PI[[#This Row],[Hide: Proposed kW]])),\"\",Table_PI[[#This Row],[Hide: Proposed kW]])","v":""},null,null,{"$f":"IF(OR(Table_PI[[#This Row],[Hide: Rebate]]=\"\",Table_PI[[#This Row],[Hide: Rebate]]=0,ISTEXT(Table_PI[[#This Row],[Hide: Rebate]])),\"\",Table_PI[[#This Row],[Hide: Rebate]])","v":""},null,{"$f":"IF(OR(Table_PI[[#This Row],[Hide: Incremental Cost]]=\"\",Table_PI[[#This Row],[Hide: Incremental Cost]]=0,ISTEXT(Table_PI[[#This Row],[Hide: Incremental Cost]])),\"\",Table_PI[[#This Row],[Hide: Incremental Cost]])","v":""},{"$f":"IFERROR(IF(Table_SummaryPI[[#This Row],[Incentive_Customer]]=\"\",\"\",ROUND(Table_SummaryPI[[#This Row],[Incentive_Customer]]/$AM$401*'Customer Information'!$BC$21,2)),0)","v":""},{"$f":"IF(OR(Table_PI[[#This Row],[Annual kWh]]=\"\",Table_PI[[#This Row],[Annual kWh]]=0,ISTEXT(Table_PI[[#This Row],[Annual kWh]])),\"\",Table_PI[[#This Row],[Annual kWh]])","v":""},{"$f":"IF(OR(Table_PI[[#This Row],[Peak kW]]=\"\",Table_PI[[#This Row],[Peak kW]]=0,ISTEXT(Table_PI[[#This Row],[Peak kW]])),\"\",Table_PI[[#This Row],[Peak kW]])","v":""},{"$f":"IF(Table_SummaryPI[[#This Row],[Line No.]]<>\"\",IF(AND(ISNUMBER(FIND(\"Chiller\",Table_SummaryPI[[#This Row],[P_MeasureOption1]],1)),Table_SummaryPI[[#This Row],[ProposedMeasureCategory]]=\"Air-Cooled (Water-Cooled Replacement)\"),$BD$29*Table_SummaryPI[[#This Row],[Size]]*Table_SummaryPI[[#This Row],[Quantity]]*Table_SummaryPI[[#This Row],[EFLHCooling]],\nIF(ISNUMBER(FIND(\"Dishwasher\",Table_SummaryPI[[#This Row],[ProposedMeasureCategory]],1)),$BH$29*Table_SummaryPI[[#This Row],[Quantity]],\nIF(ISNUMBER(FIND(\"Ice Maker\",Table_SummaryPI[[#This Row],[ProposedMeasureCategory]],1)),$BD$31*Table_SummaryPI[[#This Row],[Quantity]],\nIF(ISNUMBER(FIND(\"Spray Valve\",Table_SummaryPI[[#This Row],[ProposedMeasureCategory]],1)),$BH$31*Table_SummaryPI[[#This Row],[Quantity]],\n0)))),\"\")","v":""},{"$f":"IF(OR(Table_PI[[#This Row],[Hide: Electrification kWh]]=\"\",Table_PI[[#This Row],[Hide: Electrification kWh]]=0,ISTEXT(Table_PI[[#This Row],[Hide: Electrification kWh]])),\"\",Table_PI[[#This Row],[Hide: Electrification kWh]])","v":""},{"$f":"IF(OR(Table_PI[[#This Row],[Hide: Electrification GHG]]=\"\",Table_PI[[#This Row],[Hide: Electrification GHG]]=0,ISTEXT(Table_PI[[#This Row],[Hide: Electrification GHG]])),\"\",Table_PI[[#This Row],[Hide: Electrification GHG]])","v":""},{"$f":"IFERROR(IF(Table_SummaryPI[[#This Row],[kWhSavings]]=\"\",\"\",$BH$9*Table_SummaryPI[[#This Row],[kWhSavings]]),0)","v":""},{"$f":"IFERROR(IF(Table_SummaryPI[[#This Row],[kWhSavings]]=\"\",\"\",$BH$14*Table_SummaryPI[[#This Row],[kWhSavings]]),0)","v":""},{"$f":"IFERROR(IF(Table_SummaryPI[[#This Row],[kWhSavings]]=\"\",\"\",$BH$18*Table_SummaryPI[[#This Row],[kWhSavings]]),0)","v":""},{"$f":"IFERROR(IF(Table_SummaryPI[[#This Row],[kWhSavings]]=\"\",\"\",$BH$22*Table_SummaryPI[[#This Row],[kWhSavings]]),0)","v":""}]
[{"$f":"Table_PI[[#This Row],[Line No.]]","v":""},{"$f":"IF(Table_SummaryPI[[#This Row],[MeasureName]]<>\"\",NOT(ISTEXT(Table_PI[[#This Row],[Rebate]])),\"\")","v":""},{"$f":"IF(Table_SummaryPI[[#This Row],[MeassureCategory]]<>\"\",CONCATENATE(Table_SummaryPI[[#This Row],[MeassureCategory]],  \" - \", Table_SummaryPI[[#This Row],[ProposedMeasureCategory]],  \" - \", TEXT(Table_SummaryPI[[#This Row],[Size]],\"#,##0.00\"),\" \",Table_SummaryPI[[#This Row],[SizeUnit]]),\"\")","v":""},{"$f":"SUBSTITUTE(Table_PI[[#This Row],[Measure]],\"     \",\"\",1)","v":""},{"$f":"IF(Table_PI[[#This Row],[List 1]]<>\"\",Table_PI[[#This Row],[List 1]],\"\")","v":""},{"$f":"IF(Table_PI[[#This Row],[List 2]]<>\"\",Table_PI[[#This Row],[List 2]],\"\")","v":""},{"$f":"IF(Table_PI[[#This Row],[List 3]]<>\"\",Table_PI[[#This Row],[List 3]],\"\")","v":""},{"$f":"IF(Table_PI[[#This Row],[Manufacturer]]=\"\",\"\",Table_PI[[#This Row],[Manufacturer]])","v":""},{"$f":"IF(Table_PI[[#This Row],[Model Number]]=\"\",\"\",Table_PI[[#This Row],[Model Number]])","v":""},{"$f":"IF(Table_PI[[#This Row],[Serial Number(s)]]=\"\",\"\",Table_PI[[#This Row],[Serial Number(s)]])","v":""},null,{"$f":"IF(Table_PI[[#This Row],[Size]]=\"\",\"\",Table_PI[[#This Row],[Size]])","v":""},null,null,{"$f":"IF(Table_PI[[#This Row],[Input 1]]<>\"\",Table_PI[[#This Row],[Input 1]],\"\")","v":""},null,null,{"$f":"IF(Table_PI[[#This Row],[Input 2]]<>\"\",Table_PI[[#This Row],[Input 2]],\"\")","v":""},null,null,{"$f":"IF(Table_PI[[#This Row],[Input 3]]<>\"\",Table_PI[[#This Row],[Input 3]],\"\")","v":""},null,null,{"$f":"IF(Table_PI[[#This Row],[Input 4]]<>\"\",Table_PI[[#This Row],[Input 4]],\"\")","v":""},null,null,{"$f":"IF(Table_PI[[#This Row],[Input 4]]<>\"\",Table_PI[[#This Row],[Input 4]],\"\")","v":""},null,null,{"$f":"IF(Table_PI[[#This Row],[Input 4]]<>\"\",Table_PI[[#This Row],[Input 4]],\"\")","v":""},{"$f":"IF(Table_PI[[#This Row],[Quantity]]=\"\",\"\",Table_PI[[#This Row],[Quantity]])","v":""},{"$f":"IF(Table_PI[[#This Row],[Notes]]=\"\",\"\",Table_PI[[#This Row],[Notes]])","v":""},{"$f":"IF(OR(Table_PI[[#This Row],[Hide: Baseline kWh]]=\"\",Table_PI[[#This Row],[Hide: Baseline kWh]]=0,ISTEXT(Table_PI[[#This Row],[Hide: Baseline kWh]])),\"\",Table_PI[[#This Row],[Hide: Baseline kWh]])","v":""},{"$f":"IF(OR(Table_PI[[#This Row],[Hide: Baseline kW]]=\"\",Table_PI[[#This Row],[Hide: Baseline kW]]=0,ISTEXT(Table_PI[[#This Row],[Hide: Baseline kW]])),\"\",Table_PI[[#This Row],[Hide: Baseline kW]])","v":""},{"$f":"IF(OR(Table_PI[[#This Row],[Hide: Proposed kWh]]=\"\",Table_PI[[#This Row],[Hide: Proposed kWh]]=0,ISTEXT(Table_PI[[#This Row],[Hide: Proposed kWh]])),\"\",Table_PI[[#This Row],[Hide: Proposed kWh]])","v":""},{"$f":"IF(OR(Table_PI[[#This Row],[Hide: Proposed kW]]=\"\",Table_PI[[#This Row],[Hide: Proposed kW]]=0,ISTEXT(Table_PI[[#This Row],[Hide: Proposed kW]])),\"\",Table_PI[[#This Row],[Hide: Proposed kW]])","v":""},null,null,{"$f":"IF(OR(Table_PI[[#This Row],[Hide: Rebate]]=\"\",Table_PI[[#This Row],[Hide: Rebate]]=0,ISTEXT(Table_PI[[#This Row],[Hide: Rebate]])),\"\",Table_PI[[#This Row],[Hide: Rebate]])","v":""},null,{"$f":"IF(OR(Table_PI[[#This Row],[Hide: Incremental Cost]]=\"\",Table_PI[[#This Row],[Hide: Incremental Cost]]=0,ISTEXT(Table_PI[[#This Row],[Hide: Incremental Cost]])),\"\",Table_PI[[#This Row],[Hide: Incremental Cost]])","v":""},{"$f":"IFERROR(IF(Table_SummaryPI[[#This Row],[Incentive_Customer]]=\"\",\"\",ROUND(Table_SummaryPI[[#This Row],[Incentive_Customer]]/$AM$401*'Customer Information'!$BC$21,2)),0)","v":""},{"$f":"IF(OR(Table_PI[[#This Row],[Annual kWh]]=\"\",Table_PI[[#This Row],[Annual kWh]]=0,ISTEXT(Table_PI[[#This Row],[Annual kWh]])),\"\",Table_PI[[#This Row],[Annual kWh]])","v":""},{"$f":"IF(OR(Table_PI[[#This Row],[Peak kW]]=\"\",Table_PI[[#This Row],[Peak kW]]=0,ISTEXT(Table_PI[[#This Row],[Peak kW]])),\"\",Table_PI[[#This Row],[Peak kW]])","v":""},{"$f":"IF(Table_SummaryPI[[#This Row],[Line No.]]<>\"\",IF(AND(ISNUMBER(FIND(\"Chiller\",Table_SummaryPI[[#This Row],[P_MeasureOption1]],1)),Table_SummaryPI[[#This Row],[ProposedMeasureCategory]]=\"Air-Cooled (Water-Cooled Replacement)\"),$BD$29*Table_SummaryPI[[#This Row],[Size]]*Table_SummaryPI[[#This Row],[Quantity]]*Table_SummaryPI[[#This Row],[EFLHCooling]],\nIF(ISNUMBER(FIND(\"Dishwasher\",Table_SummaryPI[[#This Row],[ProposedMeasureCategory]],1)),$BH$29*Table_SummaryPI[[#This Row],[Quantity]],\nIF(ISNUMBER(FIND(\"Ice Maker\",Table_SummaryPI[[#This Row],[ProposedMeasureCategory]],1)),$BD$31*Table_SummaryPI[[#This Row],[Quantity]],\nIF(ISNUMBER(FIND(\"Spray Valve\",Table_SummaryPI[[#This Row],[ProposedMeasureCategory]],1)),$BH$31*Table_SummaryPI[[#This Row],[Quantity]],\n0)))),\"\")","v":""},{"$f":"IF(OR(Table_PI[[#This Row],[Hide: Electrification kWh]]=\"\",Table_PI[[#This Row],[Hide: Electrification kWh]]=0,ISTEXT(Table_PI[[#This Row],[Hide: Electrification kWh]])),\"\",Table_PI[[#This Row],[Hide: Electrification kWh]])","v":""},{"$f":"IF(OR(Table_PI[[#This Row],[Hide: Electrification GHG]]=\"\",Table_PI[[#This Row],[Hide: Electrification GHG]]=0,ISTEXT(Table_PI[[#This Row],[Hide: Electrification GHG]])),\"\",Table_PI[[#This Row],[Hide: Electrification GHG]])","v":""},{"$f":"IFERROR(IF(Table_SummaryPI[[#This Row],[kWhSavings]]=\"\",\"\",$BH$9*Table_SummaryPI[[#This Row],[kWhSavings]]),0)","v":""},{"$f":"IFERROR(IF(Table_SummaryPI[[#This Row],[kWhSavings]]=\"\",\"\",$BH$14*Table_SummaryPI[[#This Row],[kWhSavings]]),0)","v":""},{"$f":"IFERROR(IF(Table_SummaryPI[[#This Row],[kWhSavings]]=\"\",\"\",$BH$18*Table_SummaryPI[[#This Row],[kWhSavings]]),0)","v":""},{"$f":"IFERROR(IF(Table_SummaryPI[[#This Row],[kWhSavings]]=\"\",\"\",$BH$22*Table_SummaryPI[[#This Row],[kWhSavings]]),0)","v":""}]
[{"$f":"Table_PI[[#This Row],[Line No.]]","v":""},{"$f":"IF(Table_SummaryPI[[#This Row],[MeasureName]]<>\"\",NOT(ISTEXT(Table_PI[[#This Row],[Rebate]])),\"\")","v":""},{"$f":"IF(Table_SummaryPI[[#This Row],[MeassureCategory]]<>\"\",CONCATENATE(Table_SummaryPI[[#This Row],[MeassureCategory]],  \" - \", Table_SummaryPI[[#This Row],[ProposedMeasureCategory]],  \" - \", TEXT(Table_SummaryPI[[#This Row],[Size]],\"#,##0.00\"),\" \",Table_SummaryPI[[#This Row],[SizeUnit]]),\"\")","v":""},{"$f":"SUBSTITUTE(Table_PI[[#This Row],[Measure]],\"     \",\"\",1)","v":""},{"$f":"IF(Table_PI[[#This Row],[List 1]]<>\"\",Table_PI[[#This Row],[List 1]],\"\")","v":""},{"$f":"IF(Table_PI[[#This Row],[List 2]]<>\"\",Table_PI[[#This Row],[List 2]],\"\")","v":""},{"$f":"IF(Table_PI[[#This Row],[List 3]]<>\"\",Table_PI[[#This Row],[List 3]],\"\")","v":""},{"$f":"IF(Table_PI[[#This Row],[Manufacturer]]=\"\",\"\",Table_PI[[#This Row],[Manufacturer]])","v":""},{"$f":"IF(Table_PI[[#This Row],[Model Number]]=\"\",\"\",Table_PI[[#This Row],[Model Number]])","v":""},{"$f":"IF(Table_PI[[#This Row],[Serial Number(s)]]=\"\",\"\",Table_PI[[#This Row],[Serial Number(s)]])","v":""},null,{"$f":"IF(Table_PI[[#This Row],[Size]]=\"\",\"\",Table_PI[[#This Row],[Size]])","v":""},null,null,{"$f":"IF(Table_PI[[#This Row],[Input 1]]<>\"\",Table_PI[[#This Row],[Input 1]],\"\")","v":""},null,null,{"$f":"IF(Table_PI[[#This Row],[Input 2]]<>\"\",Table_PI[[#This Row],[Input 2]],\"\")","v":""},null,null,{"$f":"IF(Table_PI[[#This Row],[Input 3]]<>\"\",Table_PI[[#This Row],[Input 3]],\"\")","v":""},null,null,{"$f":"IF(Table_PI[[#This Row],[Input 4]]<>\"\",Table_PI[[#This Row],[Input 4]],\"\")","v":""},null,null,{"$f":"IF(Table_PI[[#This Row],[Input 4]]<>\"\",Table_PI[[#This Row],[Input 4]],\"\")","v":""},null,null,{"$f":"IF(Table_PI[[#This Row],[Input 4]]<>\"\",Table_PI[[#This Row],[Input 4]],\"\")","v":""},{"$f":"IF(Table_PI[[#This Row],[Quantity]]=\"\",\"\",Table_PI[[#This Row],[Quantity]])","v":""},{"$f":"IF(Table_PI[[#This Row],[Notes]]=\"\",\"\",Table_PI[[#This Row],[Notes]])","v":""},{"$f":"IF(OR(Table_PI[[#This Row],[Hide: Baseline kWh]]=\"\",Table_PI[[#This Row],[Hide: Baseline kWh]]=0,ISTEXT(Table_PI[[#This Row],[Hide: Baseline kWh]])),\"\",Table_PI[[#This Row],[Hide: Baseline kWh]])","v":""},{"$f":"IF(OR(Table_PI[[#This Row],[Hide: Baseline kW]]=\"\",Table_PI[[#This Row],[Hide: Baseline kW]]=0,ISTEXT(Table_PI[[#This Row],[Hide: Baseline kW]])),\"\",Table_PI[[#This Row],[Hide: Baseline kW]])","v":""},{"$f":"IF(OR(Table_PI[[#This Row],[Hide: Proposed kWh]]=\"\",Table_PI[[#This Row],[Hide: Proposed kWh]]=0,ISTEXT(Table_PI[[#This Row],[Hide: Proposed kWh]])),\"\",Table_PI[[#This Row],[Hide: Proposed kWh]])","v":""},{"$f":"IF(OR(Table_PI[[#This Row],[Hide: Proposed kW]]=\"\",Table_PI[[#This Row],[Hide: Proposed kW]]=0,ISTEXT(Table_PI[[#This Row],[Hide: Proposed kW]])),\"\",Table_PI[[#This Row],[Hide: Proposed kW]])","v":""},null,null,{"$f":"IF(OR(Table_PI[[#This Row],[Hide: Rebate]]=\"\",Table_PI[[#This Row],[Hide: Rebate]]=0,ISTEXT(Table_PI[[#This Row],[Hide: Rebate]])),\"\",Table_PI[[#This Row],[Hide: Rebate]])","v":""},null,{"$f":"IF(OR(Table_PI[[#This Row],[Hide: Incremental Cost]]=\"\",Table_PI[[#This Row],[Hide: Incremental Cost]]=0,ISTEXT(Table_PI[[#This Row],[Hide: Incremental Cost]])),\"\",Table_PI[[#This Row],[Hide: Incremental Cost]])","v":""},{"$f":"IFERROR(IF(Table_SummaryPI[[#This Row],[Incentive_Customer]]=\"\",\"\",ROUND(Table_SummaryPI[[#This Row],[Incentive_Customer]]/$AM$401*'Customer Information'!$BC$21,2)),0)","v":""},{"$f":"IF(OR(Table_PI[[#This Row],[Annual kWh]]=\"\",Table_PI[[#This Row],[Annual kWh]]=0,ISTEXT(Table_PI[[#This Row],[Annual kWh]])),\"\",Table_PI[[#This Row],[Annual kWh]])","v":""},{"$f":"IF(OR(Table_PI[[#This Row],[Peak kW]]=\"\",Table_PI[[#This Row],[Peak kW]]=0,ISTEXT(Table_PI[[#This Row],[Peak kW]])),\"\",Table_PI[[#This Row],[Peak kW]])","v":""},{"$f":"IF(Table_SummaryPI[[#This Row],[Line No.]]<>\"\",IF(AND(ISNUMBER(FIND(\"Chiller\",Table_SummaryPI[[#This Row],[P_MeasureOption1]],1)),Table_SummaryPI[[#This Row],[ProposedMeasureCategory]]=\"Air-Cooled (Water-Cooled Replacement)\"),$BD$29*Table_SummaryPI[[#This Row],[Size]]*Table_SummaryPI[[#This Row],[Quantity]]*Table_SummaryPI[[#This Row],[EFLHCooling]],\nIF(ISNUMBER(FIND(\"Dishwasher\",Table_SummaryPI[[#This Row],[ProposedMeasureCategory]],1)),$BH$29*Table_SummaryPI[[#This Row],[Quantity]],\nIF(ISNUMBER(FIND(\"Ice Maker\",Table_SummaryPI[[#This Row],[ProposedMeasureCategory]],1)),$BD$31*Table_SummaryPI[[#This Row],[Quantity]],\nIF(ISNUMBER(FIND(\"Spray Valve\",Table_SummaryPI[[#This Row],[ProposedMeasureCategory]],1)),$BH$31*Table_SummaryPI[[#This Row],[Quantity]],\n0)))),\"\")","v":""},{"$f":"IF(OR(Table_PI[[#This Row],[Hide: Electrification kWh]]=\"\",Table_PI[[#This Row],[Hide: Electrification kWh]]=0,ISTEXT(Table_PI[[#This Row],[Hide: Electrification kWh]])),\"\",Table_PI[[#This Row],[Hide: Electrification kWh]])","v":""},{"$f":"IF(OR(Table_PI[[#This Row],[Hide: Electrification GHG]]=\"\",Table_PI[[#This Row],[Hide: Electrification GHG]]=0,ISTEXT(Table_PI[[#This Row],[Hide: Electrification GHG]])),\"\",Table_PI[[#This Row],[Hide: Electrification GHG]])","v":""},{"$f":"IFERROR(IF(Table_SummaryPI[[#This Row],[kWhSavings]]=\"\",\"\",$BH$9*Table_SummaryPI[[#This Row],[kWhSavings]]),0)","v":""},{"$f":"IFERROR(IF(Table_SummaryPI[[#This Row],[kWhSavings]]=\"\",\"\",$BH$14*Table_SummaryPI[[#This Row],[kWhSavings]]),0)","v":""},{"$f":"IFERROR(IF(Table_SummaryPI[[#This Row],[kWhSavings]]=\"\",\"\",$BH$18*Table_SummaryPI[[#This Row],[kWhSavings]]),0)","v":""},{"$f":"IFERROR(IF(Table_SummaryPI[[#This Row],[kWhSavings]]=\"\",\"\",$BH$22*Table_SummaryPI[[#This Row],[kWhSavings]]),0)","v":""}]
[{"$f":"Table_PI[[#This Row],[Line No.]]","v":""},{"$f":"IF(Table_SummaryPI[[#This Row],[MeasureName]]<>\"\",NOT(ISTEXT(Table_PI[[#This Row],[Rebate]])),\"\")","v":""},{"$f":"IF(Table_SummaryPI[[#This Row],[MeassureCategory]]<>\"\",CONCATENATE(Table_SummaryPI[[#This Row],[MeassureCategory]],  \" - \", Table_SummaryPI[[#This Row],[ProposedMeasureCategory]],  \" - \", TEXT(Table_SummaryPI[[#This Row],[Size]],\"#,##0.00\"),\" \",Table_SummaryPI[[#This Row],[SizeUnit]]),\"\")","v":""},{"$f":"SUBSTITUTE(Table_PI[[#This Row],[Measure]],\"     \",\"\",1)","v":""},{"$f":"IF(Table_PI[[#This Row],[List 1]]<>\"\",Table_PI[[#This Row],[List 1]],\"\")","v":""},{"$f":"IF(Table_PI[[#This Row],[List 2]]<>\"\",Table_PI[[#This Row],[List 2]],\"\")","v":""},{"$f":"IF(Table_PI[[#This Row],[List 3]]<>\"\",Table_PI[[#This Row],[List 3]],\"\")","v":""},{"$f":"IF(Table_PI[[#This Row],[Manufacturer]]=\"\",\"\",Table_PI[[#This Row],[Manufacturer]])","v":""},{"$f":"IF(Table_PI[[#This Row],[Model Number]]=\"\",\"\",Table_PI[[#This Row],[Model Number]])","v":""},{"$f":"IF(Table_PI[[#This Row],[Serial Number(s)]]=\"\",\"\",Table_PI[[#This Row],[Serial Number(s)]])","v":""},null,{"$f":"IF(Table_PI[[#This Row],[Size]]=\"\",\"\",Table_PI[[#This Row],[Size]])","v":""},null,null,{"$f":"IF(Table_PI[[#This Row],[Input 1]]<>\"\",Table_PI[[#This Row],[Input 1]],\"\")","v":""},null,null,{"$f":"IF(Table_PI[[#This Row],[Input 2]]<>\"\",Table_PI[[#This Row],[Input 2]],\"\")","v":""},null,null,{"$f":"IF(Table_PI[[#This Row],[Input 3]]<>\"\",Table_PI[[#This Row],[Input 3]],\"\")","v":""},null,null,{"$f":"IF(Table_PI[[#This Row],[Input 4]]<>\"\",Table_PI[[#This Row],[Input 4]],\"\")","v":""},null,null,{"$f":"IF(Table_PI[[#This Row],[Input 4]]<>\"\",Table_PI[[#This Row],[Input 4]],\"\")","v":""},null,null,{"$f":"IF(Table_PI[[#This Row],[Input 4]]<>\"\",Table_PI[[#This Row],[Input 4]],\"\")","v":""},{"$f":"IF(Table_PI[[#This Row],[Quantity]]=\"\",\"\",Table_PI[[#This Row],[Quantity]])","v":""},{"$f":"IF(Table_PI[[#This Row],[Notes]]=\"\",\"\",Table_PI[[#This Row],[Notes]])","v":""},{"$f":"IF(OR(Table_PI[[#This Row],[Hide: Baseline kWh]]=\"\",Table_PI[[#This Row],[Hide: Baseline kWh]]=0,ISTEXT(Table_PI[[#This Row],[Hide: Baseline kWh]])),\"\",Table_PI[[#This Row],[Hide: Baseline kWh]])","v":""},{"$f":"IF(OR(Table_PI[[#This Row],[Hide: Baseline kW]]=\"\",Table_PI[[#This Row],[Hide: Baseline kW]]=0,ISTEXT(Table_PI[[#This Row],[Hide: Baseline kW]])),\"\",Table_PI[[#This Row],[Hide: Baseline kW]])","v":""},{"$f":"IF(OR(Table_PI[[#This Row],[Hide: Proposed kWh]]=\"\",Table_PI[[#This Row],[Hide: Proposed kWh]]=0,ISTEXT(Table_PI[[#This Row],[Hide: Proposed kWh]])),\"\",Table_PI[[#This Row],[Hide: Proposed kWh]])","v":""},{"$f":"IF(OR(Table_PI[[#This Row],[Hide: Proposed kW]]=\"\",Table_PI[[#This Row],[Hide: Proposed kW]]=0,ISTEXT(Table_PI[[#This Row],[Hide: Proposed kW]])),\"\",Table_PI[[#This Row],[Hide: Proposed kW]])","v":""},null,null,{"$f":"IF(OR(Table_PI[[#This Row],[Hide: Rebate]]=\"\",Table_PI[[#This Row],[Hide: Rebate]]=0,ISTEXT(Table_PI[[#This Row],[Hide: Rebate]])),\"\",Table_PI[[#This Row],[Hide: Rebate]])","v":""},null,{"$f":"IF(OR(Table_PI[[#This Row],[Hide: Incremental Cost]]=\"\",Table_PI[[#This Row],[Hide: Incremental Cost]]=0,ISTEXT(Table_PI[[#This Row],[Hide: Incremental Cost]])),\"\",Table_PI[[#This Row],[Hide: Incremental Cost]])","v":""},{"$f":"IFERROR(IF(Table_SummaryPI[[#This Row],[Incentive_Customer]]=\"\",\"\",ROUND(Table_SummaryPI[[#This Row],[Incentive_Customer]]/$AM$401*'Customer Information'!$BC$21,2)),0)","v":""},{"$f":"IF(OR(Table_PI[[#This Row],[Annual kWh]]=\"\",Table_PI[[#This Row],[Annual kWh]]=0,ISTEXT(Table_PI[[#This Row],[Annual kWh]])),\"\",Table_PI[[#This Row],[Annual kWh]])","v":""},{"$f":"IF(OR(Table_PI[[#This Row],[Peak kW]]=\"\",Table_PI[[#This Row],[Peak kW]]=0,ISTEXT(Table_PI[[#This Row],[Peak kW]])),\"\",Table_PI[[#This Row],[Peak kW]])","v":""},{"$f":"IF(Table_SummaryPI[[#This Row],[Line No.]]<>\"\",IF(AND(ISNUMBER(FIND(\"Chiller\",Table_SummaryPI[[#This Row],[P_MeasureOption1]],1)),Table_SummaryPI[[#This Row],[ProposedMeasureCategory]]=\"Air-Cooled (Water-Cooled Replacement)\"),$BD$29*Table_SummaryPI[[#This Row],[Size]]*Table_SummaryPI[[#This Row],[Quantity]]*Table_SummaryPI[[#This Row],[EFLHCooling]],\nIF(ISNUMBER(FIND(\"Dishwasher\",Table_SummaryPI[[#This Row],[ProposedMeasureCategory]],1)),$BH$29*Table_SummaryPI[[#This Row],[Quantity]],\nIF(ISNUMBER(FIND(\"Ice Maker\",Table_SummaryPI[[#This Row],[ProposedMeasureCategory]],1)),$BD$31*Table_SummaryPI[[#This Row],[Quantity]],\nIF(ISNUMBER(FIND(\"Spray Valve\",Table_SummaryPI[[#This Row],[ProposedMeasureCategory]],1)),$BH$31*Table_SummaryPI[[#This Row],[Quantity]],\n0)))),\"\")","v":""},{"$f":"IF(OR(Table_PI[[#This Row],[Hide: Electrification kWh]]=\"\",Table_PI[[#This Row],[Hide: Electrification kWh]]=0,ISTEXT(Table_PI[[#This Row],[Hide: Electrification kWh]])),\"\",Table_PI[[#This Row],[Hide: Electrification kWh]])","v":""},{"$f":"IF(OR(Table_PI[[#This Row],[Hide: Electrification GHG]]=\"\",Table_PI[[#This Row],[Hide: Electrification GHG]]=0,ISTEXT(Table_PI[[#This Row],[Hide: Electrification GHG]])),\"\",Table_PI[[#This Row],[Hide: Electrification GHG]])","v":""},{"$f":"IFERROR(IF(Table_SummaryPI[[#This Row],[kWhSavings]]=\"\",\"\",$BH$9*Table_SummaryPI[[#This Row],[kWhSavings]]),0)","v":""},{"$f":"IFERROR(IF(Table_SummaryPI[[#This Row],[kWhSavings]]=\"\",\"\",$BH$14*Table_SummaryPI[[#This Row],[kWhSavings]]),0)","v":""},{"$f":"IFERROR(IF(Table_SummaryPI[[#This Row],[kWhSavings]]=\"\",\"\",$BH$18*Table_SummaryPI[[#This Row],[kWhSavings]]),0)","v":""},{"$f":"IFERROR(IF(Table_SummaryPI[[#This Row],[kWhSavings]]=\"\",\"\",$BH$22*Table_SummaryPI[[#This Row],[kWhSavings]]),0)","v":""}]
[{"$f":"Table_PI[[#This Row],[Line No.]]","v":""},{"$f":"IF(Table_SummaryPI[[#This Row],[MeasureName]]<>\"\",NOT(ISTEXT(Table_PI[[#This Row],[Rebate]])),\"\")","v":""},{"$f":"IF(Table_SummaryPI[[#This Row],[MeassureCategory]]<>\"\",CONCATENATE(Table_SummaryPI[[#This Row],[MeassureCategory]],  \" - \", Table_SummaryPI[[#This Row],[ProposedMeasureCategory]],  \" - \", TEXT(Table_SummaryPI[[#This Row],[Size]],\"#,##0.00\"),\" \",Table_SummaryPI[[#This Row],[SizeUnit]]),\"\")","v":""},{"$f":"SUBSTITUTE(Table_PI[[#This Row],[Measure]],\"     \",\"\",1)","v":""},{"$f":"IF(Table_PI[[#This Row],[List 1]]<>\"\",Table_PI[[#This Row],[List 1]],\"\")","v":""},{"$f":"IF(Table_PI[[#This Row],[List 2]]<>\"\",Table_PI[[#This Row],[List 2]],\"\")","v":""},{"$f":"IF(Table_PI[[#This Row],[List 3]]<>\"\",Table_PI[[#This Row],[List 3]],\"\")","v":""},{"$f":"IF(Table_PI[[#This Row],[Manufacturer]]=\"\",\"\",Table_PI[[#This Row],[Manufacturer]])","v":""},{"$f":"IF(Table_PI[[#This Row],[Model Number]]=\"\",\"\",Table_PI[[#This Row],[Model Number]])","v":""},{"$f":"IF(Table_PI[[#This Row],[Serial Number(s)]]=\"\",\"\",Table_PI[[#This Row],[Serial Number(s)]])","v":""},null,{"$f":"IF(Table_PI[[#This Row],[Size]]=\"\",\"\",Table_PI[[#This Row],[Size]])","v":""},null,null,{"$f":"IF(Table_PI[[#This Row],[Input 1]]<>\"\",Table_PI[[#This Row],[Input 1]],\"\")","v":""},null,null,{"$f":"IF(Table_PI[[#This Row],[Input 2]]<>\"\",Table_PI[[#This Row],[Input 2]],\"\")","v":""},null,null,{"$f":"IF(Table_PI[[#This Row],[Input 3]]<>\"\",Table_PI[[#This Row],[Input 3]],\"\")","v":""},null,null,{"$f":"IF(Table_PI[[#This Row],[Input 4]]<>\"\",Table_PI[[#This Row],[Input 4]],\"\")","v":""},null,null,{"$f":"IF(Table_PI[[#This Row],[Input 4]]<>\"\",Table_PI[[#This Row],[Input 4]],\"\")","v":""},null,null,{"$f":"IF(Table_PI[[#This Row],[Input 4]]<>\"\",Table_PI[[#This Row],[Input 4]],\"\")","v":""},{"$f":"IF(Table_PI[[#This Row],[Quantity]]=\"\",\"\",Table_PI[[#This Row],[Quantity]])","v":""},{"$f":"IF(Table_PI[[#This Row],[Notes]]=\"\",\"\",Table_PI[[#This Row],[Notes]])","v":""},{"$f":"IF(OR(Table_PI[[#This Row],[Hide: Baseline kWh]]=\"\",Table_PI[[#This Row],[Hide: Baseline kWh]]=0,ISTEXT(Table_PI[[#This Row],[Hide: Baseline kWh]])),\"\",Table_PI[[#This Row],[Hide: Baseline kWh]])","v":""},{"$f":"IF(OR(Table_PI[[#This Row],[Hide: Baseline kW]]=\"\",Table_PI[[#This Row],[Hide: Baseline kW]]=0,ISTEXT(Table_PI[[#This Row],[Hide: Baseline kW]])),\"\",Table_PI[[#This Row],[Hide: Baseline kW]])","v":""},{"$f":"IF(OR(Table_PI[[#This Row],[Hide: Proposed kWh]]=\"\",Table_PI[[#This Row],[Hide: Proposed kWh]]=0,ISTEXT(Table_PI[[#This Row],[Hide: Proposed kWh]])),\"\",Table_PI[[#This Row],[Hide: Proposed kWh]])","v":""},{"$f":"IF(OR(Table_PI[[#This Row],[Hide: Proposed kW]]=\"\",Table_PI[[#This Row],[Hide: Proposed kW]]=0,ISTEXT(Table_PI[[#This Row],[Hide: Proposed kW]])),\"\",Table_PI[[#This Row],[Hide: Proposed kW]])","v":""},null,null,{"$f":"IF(OR(Table_PI[[#This Row],[Hide: Rebate]]=\"\",Table_PI[[#This Row],[Hide: Rebate]]=0,ISTEXT(Table_PI[[#This Row],[Hide: Rebate]])),\"\",Table_PI[[#This Row],[Hide: Rebate]])","v":""},null,{"$f":"IF(OR(Table_PI[[#This Row],[Hide: Incremental Cost]]=\"\",Table_PI[[#This Row],[Hide: Incremental Cost]]=0,ISTEXT(Table_PI[[#This Row],[Hide: Incremental Cost]])),\"\",Table_PI[[#This Row],[Hide: Incremental Cost]])","v":""},{"$f":"IFERROR(IF(Table_SummaryPI[[#This Row],[Incentive_Customer]]=\"\",\"\",ROUND(Table_SummaryPI[[#This Row],[Incentive_Customer]]/$AM$401*'Customer Information'!$BC$21,2)),0)","v":""},{"$f":"IF(OR(Table_PI[[#This Row],[Annual kWh]]=\"\",Table_PI[[#This Row],[Annual kWh]]=0,ISTEXT(Table_PI[[#This Row],[Annual kWh]])),\"\",Table_PI[[#This Row],[Annual kWh]])","v":""},{"$f":"IF(OR(Table_PI[[#This Row],[Peak kW]]=\"\",Table_PI[[#This Row],[Peak kW]]=0,ISTEXT(Table_PI[[#This Row],[Peak kW]])),\"\",Table_PI[[#This Row],[Peak kW]])","v":""},{"$f":"IF(Table_SummaryPI[[#This Row],[Line No.]]<>\"\",IF(AND(ISNUMBER(FIND(\"Chiller\",Table_SummaryPI[[#This Row],[P_MeasureOption1]],1)),Table_SummaryPI[[#This Row],[ProposedMeasureCategory]]=\"Air-Cooled (Water-Cooled Replacement)\"),$BD$29*Table_SummaryPI[[#This Row],[Size]]*Table_SummaryPI[[#This Row],[Quantity]]*Table_SummaryPI[[#This Row],[EFLHCooling]],\nIF(ISNUMBER(FIND(\"Dishwasher\",Table_SummaryPI[[#This Row],[ProposedMeasureCategory]],1)),$BH$29*Table_SummaryPI[[#This Row],[Quantity]],\nIF(ISNUMBER(FIND(\"Ice Maker\",Table_SummaryPI[[#This Row],[ProposedMeasureCategory]],1)),$BD$31*Table_SummaryPI[[#This Row],[Quantity]],\nIF(ISNUMBER(FIND(\"Spray Valve\",Table_SummaryPI[[#This Row],[ProposedMeasureCategory]],1)),$BH$31*Table_SummaryPI[[#This Row],[Quantity]],\n0)))),\"\")","v":""},{"$f":"IF(OR(Table_PI[[#This Row],[Hide: Electrification kWh]]=\"\",Table_PI[[#This Row],[Hide: Electrification kWh]]=0,ISTEXT(Table_PI[[#This Row],[Hide: Electrification kWh]])),\"\",Table_PI[[#This Row],[Hide: Electrification kWh]])","v":""},{"$f":"IF(OR(Table_PI[[#This Row],[Hide: Electrification GHG]]=\"\",Table_PI[[#This Row],[Hide: Electrification GHG]]=0,ISTEXT(Table_PI[[#This Row],[Hide: Electrification GHG]])),\"\",Table_PI[[#This Row],[Hide: Electrification GHG]])","v":""},{"$f":"IFERROR(IF(Table_SummaryPI[[#This Row],[kWhSavings]]=\"\",\"\",$BH$9*Table_SummaryPI[[#This Row],[kWhSavings]]),0)","v":""},{"$f":"IFERROR(IF(Table_SummaryPI[[#This Row],[kWhSavings]]=\"\",\"\",$BH$14*Table_SummaryPI[[#This Row],[kWhSavings]]),0)","v":""},{"$f":"IFERROR(IF(Table_SummaryPI[[#This Row],[kWhSavings]]=\"\",\"\",$BH$18*Table_SummaryPI[[#This Row],[kWhSavings]]),0)","v":""},{"$f":"IFERROR(IF(Table_SummaryPI[[#This Row],[kWhSavings]]=\"\",\"\",$BH$22*Table_SummaryPI[[#This Row],[kWhSavings]]),0)","v":""}]
[{"$f":"Table_PI[[#This Row],[Line No.]]","v":""},{"$f":"IF(Table_SummaryPI[[#This Row],[MeasureName]]<>\"\",NOT(ISTEXT(Table_PI[[#This Row],[Rebate]])),\"\")","v":""},{"$f":"IF(Table_SummaryPI[[#This Row],[MeassureCategory]]<>\"\",CONCATENATE(Table_SummaryPI[[#This Row],[MeassureCategory]],  \" - \", Table_SummaryPI[[#This Row],[ProposedMeasureCategory]],  \" - \", TEXT(Table_SummaryPI[[#This Row],[Size]],\"#,##0.00\"),\" \",Table_SummaryPI[[#This Row],[SizeUnit]]),\"\")","v":""},{"$f":"SUBSTITUTE(Table_PI[[#This Row],[Measure]],\"     \",\"\",1)","v":""},{"$f":"IF(Table_PI[[#This Row],[List 1]]<>\"\",Table_PI[[#This Row],[List 1]],\"\")","v":""},{"$f":"IF(Table_PI[[#This Row],[List 2]]<>\"\",Table_PI[[#This Row],[List 2]],\"\")","v":""},{"$f":"IF(Table_PI[[#This Row],[List 3]]<>\"\",Table_PI[[#This Row],[List 3]],\"\")","v":""},{"$f":"IF(Table_PI[[#This Row],[Manufacturer]]=\"\",\"\",Table_PI[[#This Row],[Manufacturer]])","v":""},{"$f":"IF(Table_PI[[#This Row],[Model Number]]=\"\",\"\",Table_PI[[#This Row],[Model Number]])","v":""},{"$f":"IF(Table_PI[[#This Row],[Serial Number(s)]]=\"\",\"\",Table_PI[[#This Row],[Serial Number(s)]])","v":""},null,{"$f":"IF(Table_PI[[#This Row],[Size]]=\"\",\"\",Table_PI[[#This Row],[Size]])","v":""},null,null,{"$f":"IF(Table_PI[[#This Row],[Input 1]]<>\"\",Table_PI[[#This Row],[Input 1]],\"\")","v":""},null,null,{"$f":"IF(Table_PI[[#This Row],[Input 2]]<>\"\",Table_PI[[#This Row],[Input 2]],\"\")","v":""},null,null,{"$f":"IF(Table_PI[[#This Row],[Input 3]]<>\"\",Table_PI[[#This Row],[Input 3]],\"\")","v":""},null,null,{"$f":"IF(Table_PI[[#This Row],[Input 4]]<>\"\",Table_PI[[#This Row],[Input 4]],\"\")","v":""},null,null,{"$f":"IF(Table_PI[[#This Row],[Input 4]]<>\"\",Table_PI[[#This Row],[Input 4]],\"\")","v":""},null,null,{"$f":"IF(Table_PI[[#This Row],[Input 4]]<>\"\",Table_PI[[#This Row],[Input 4]],\"\")","v":""},{"$f":"IF(Table_PI[[#This Row],[Quantity]]=\"\",\"\",Table_PI[[#This Row],[Quantity]])","v":""},{"$f":"IF(Table_PI[[#This Row],[Notes]]=\"\",\"\",Table_PI[[#This Row],[Notes]])","v":""},{"$f":"IF(OR(Table_PI[[#This Row],[Hide: Baseline kWh]]=\"\",Table_PI[[#This Row],[Hide: Baseline kWh]]=0,ISTEXT(Table_PI[[#This Row],[Hide: Baseline kWh]])),\"\",Table_PI[[#This Row],[Hide: Baseline kWh]])","v":""},{"$f":"IF(OR(Table_PI[[#This Row],[Hide: Baseline kW]]=\"\",Table_PI[[#This Row],[Hide: Baseline kW]]=0,ISTEXT(Table_PI[[#This Row],[Hide: Baseline kW]])),\"\",Table_PI[[#This Row],[Hide: Baseline kW]])","v":""},{"$f":"IF(OR(Table_PI[[#This Row],[Hide: Proposed kWh]]=\"\",Table_PI[[#This Row],[Hide: Proposed kWh]]=0,ISTEXT(Table_PI[[#This Row],[Hide: Proposed kWh]])),\"\",Table_PI[[#This Row],[Hide: Proposed kWh]])","v":""},{"$f":"IF(OR(Table_PI[[#This Row],[Hide: Proposed kW]]=\"\",Table_PI[[#This Row],[Hide: Proposed kW]]=0,ISTEXT(Table_PI[[#This Row],[Hide: Proposed kW]])),\"\",Table_PI[[#This Row],[Hide: Proposed kW]])","v":""},null,null,{"$f":"IF(OR(Table_PI[[#This Row],[Hide: Rebate]]=\"\",Table_PI[[#This Row],[Hide: Rebate]]=0,ISTEXT(Table_PI[[#This Row],[Hide: Rebate]])),\"\",Table_PI[[#This Row],[Hide: Rebate]])","v":""},null,{"$f":"IF(OR(Table_PI[[#This Row],[Hide: Incremental Cost]]=\"\",Table_PI[[#This Row],[Hide: Incremental Cost]]=0,ISTEXT(Table_PI[[#This Row],[Hide: Incremental Cost]])),\"\",Table_PI[[#This Row],[Hide: Incremental Cost]])","v":""},{"$f":"IFERROR(IF(Table_SummaryPI[[#This Row],[Incentive_Customer]]=\"\",\"\",ROUND(Table_SummaryPI[[#This Row],[Incentive_Customer]]/$AM$401*'Customer Information'!$BC$21,2)),0)","v":""},{"$f":"IF(OR(Table_PI[[#This Row],[Annual kWh]]=\"\",Table_PI[[#This Row],[Annual kWh]]=0,ISTEXT(Table_PI[[#This Row],[Annual kWh]])),\"\",Table_PI[[#This Row],[Annual kWh]])","v":""},{"$f":"IF(OR(Table_PI[[#This Row],[Peak kW]]=\"\",Table_PI[[#This Row],[Peak kW]]=0,ISTEXT(Table_PI[[#This Row],[Peak kW]])),\"\",Table_PI[[#This Row],[Peak kW]])","v":""},{"$f":"IF(Table_SummaryPI[[#This Row],[Line No.]]<>\"\",IF(AND(ISNUMBER(FIND(\"Chiller\",Table_SummaryPI[[#This Row],[P_MeasureOption1]],1)),Table_SummaryPI[[#This Row],[ProposedMeasureCategory]]=\"Air-Cooled (Water-Cooled Replacement)\"),$BD$29*Table_SummaryPI[[#This Row],[Size]]*Table_SummaryPI[[#This Row],[Quantity]]*Table_SummaryPI[[#This Row],[EFLHCooling]],\nIF(ISNUMBER(FIND(\"Dishwasher\",Table_SummaryPI[[#This Row],[ProposedMeasureCategory]],1)),$BH$29*Table_SummaryPI[[#This Row],[Quantity]],\nIF(ISNUMBER(FIND(\"Ice Maker\",Table_SummaryPI[[#This Row],[ProposedMeasureCategory]],1)),$BD$31*Table_SummaryPI[[#This Row],[Quantity]],\nIF(ISNUMBER(FIND(\"Spray Valve\",Table_SummaryPI[[#This Row],[ProposedMeasureCategory]],1)),$BH$31*Table_SummaryPI[[#This Row],[Quantity]],\n0)))),\"\")","v":""},{"$f":"IF(OR(Table_PI[[#This Row],[Hide: Electrification kWh]]=\"\",Table_PI[[#This Row],[Hide: Electrification kWh]]=0,ISTEXT(Table_PI[[#This Row],[Hide: Electrification kWh]])),\"\",Table_PI[[#This Row],[Hide: Electrification kWh]])","v":""},{"$f":"IF(OR(Table_PI[[#This Row],[Hide: Electrification GHG]]=\"\",Table_PI[[#This Row],[Hide: Electrification GHG]]=0,ISTEXT(Table_PI[[#This Row],[Hide: Electrification GHG]])),\"\",Table_PI[[#This Row],[Hide: Electrification GHG]])","v":""},{"$f":"IFERROR(IF(Table_SummaryPI[[#This Row],[kWhSavings]]=\"\",\"\",$BH$9*Table_SummaryPI[[#This Row],[kWhSavings]]),0)","v":""},{"$f":"IFERROR(IF(Table_SummaryPI[[#This Row],[kWhSavings]]=\"\",\"\",$BH$14*Table_SummaryPI[[#This Row],[kWhSavings]]),0)","v":""},{"$f":"IFERROR(IF(Table_SummaryPI[[#This Row],[kWhSavings]]=\"\",\"\",$BH$18*Table_SummaryPI[[#This Row],[kWhSavings]]),0)","v":""},{"$f":"IFERROR(IF(Table_SummaryPI[[#This Row],[kWhSavings]]=\"\",\"\",$BH$22*Table_SummaryPI[[#This Row],[kWhSavings]]),0)","v":""}]
[{"$f":"Table_PI[[#This Row],[Line No.]]","v":""},{"$f":"IF(Table_SummaryPI[[#This Row],[MeasureName]]<>\"\",NOT(ISTEXT(Table_PI[[#This Row],[Rebate]])),\"\")","v":""},{"$f":"IF(Table_SummaryPI[[#This Row],[MeassureCategory]]<>\"\",CONCATENATE(Table_SummaryPI[[#This Row],[MeassureCategory]],  \" - \", Table_SummaryPI[[#This Row],[ProposedMeasureCategory]],  \" - \", TEXT(Table_SummaryPI[[#This Row],[Size]],\"#,##0.00\"),\" \",Table_SummaryPI[[#This Row],[SizeUnit]]),\"\")","v":""},{"$f":"SUBSTITUTE(Table_PI[[#This Row],[Measure]],\"     \",\"\",1)","v":""},{"$f":"IF(Table_PI[[#This Row],[List 1]]<>\"\",Table_PI[[#This Row],[List 1]],\"\")","v":""},{"$f":"IF(Table_PI[[#This Row],[List 2]]<>\"\",Table_PI[[#This Row],[List 2]],\"\")","v":""},{"$f":"IF(Table_PI[[#This Row],[List 3]]<>\"\",Table_PI[[#This Row],[List 3]],\"\")","v":""},{"$f":"IF(Table_PI[[#This Row],[Manufacturer]]=\"\",\"\",Table_PI[[#This Row],[Manufacturer]])","v":""},{"$f":"IF(Table_PI[[#This Row],[Model Number]]=\"\",\"\",Table_PI[[#This Row],[Model Number]])","v":""},{"$f":"IF(Table_PI[[#This Row],[Serial Number(s)]]=\"\",\"\",Table_PI[[#This Row],[Serial Number(s)]])","v":""},null,{"$f":"IF(Table_PI[[#This Row],[Size]]=\"\",\"\",Table_PI[[#This Row],[Size]])","v":""},null,null,{"$f":"IF(Table_PI[[#This Row],[Input 1]]<>\"\",Table_PI[[#This Row],[Input 1]],\"\")","v":""},null,null,{"$f":"IF(Table_PI[[#This Row],[Input 2]]<>\"\",Table_PI[[#This Row],[Input 2]],\"\")","v":""},null,null,{"$f":"IF(Table_PI[[#This Row],[Input 3]]<>\"\",Table_PI[[#This Row],[Input 3]],\"\")","v":""},null,null,{"$f":"IF(Table_PI[[#This Row],[Input 4]]<>\"\",Table_PI[[#This Row],[Input 4]],\"\")","v":""},null,null,{"$f":"IF(Table_PI[[#This Row],[Input 4]]<>\"\",Table_PI[[#This Row],[Input 4]],\"\")","v":""},null,null,{"$f":"IF(Table_PI[[#This Row],[Input 4]]<>\"\",Table_PI[[#This Row],[Input 4]],\"\")","v":""},{"$f":"IF(Table_PI[[#This Row],[Quantity]]=\"\",\"\",Table_PI[[#This Row],[Quantity]])","v":""},{"$f":"IF(Table_PI[[#This Row],[Notes]]=\"\",\"\",Table_PI[[#This Row],[Notes]])","v":""},{"$f":"IF(OR(Table_PI[[#This Row],[Hide: Baseline kWh]]=\"\",Table_PI[[#This Row],[Hide: Baseline kWh]]=0,ISTEXT(Table_PI[[#This Row],[Hide: Baseline kWh]])),\"\",Table_PI[[#This Row],[Hide: Baseline kWh]])","v":""},{"$f":"IF(OR(Table_PI[[#This Row],[Hide: Baseline kW]]=\"\",Table_PI[[#This Row],[Hide: Baseline kW]]=0,ISTEXT(Table_PI[[#This Row],[Hide: Baseline kW]])),\"\",Table_PI[[#This Row],[Hide: Baseline kW]])","v":""},{"$f":"IF(OR(Table_PI[[#This Row],[Hide: Proposed kWh]]=\"\",Table_PI[[#This Row],[Hide: Proposed kWh]]=0,ISTEXT(Table_PI[[#This Row],[Hide: Proposed kWh]])),\"\",Table_PI[[#This Row],[Hide: Proposed kWh]])","v":""},{"$f":"IF(OR(Table_PI[[#This Row],[Hide: Proposed kW]]=\"\",Table_PI[[#This Row],[Hide: Proposed kW]]=0,ISTEXT(Table_PI[[#This Row],[Hide: Proposed kW]])),\"\",Table_PI[[#This Row],[Hide: Proposed kW]])","v":""},null,null,{"$f":"IF(OR(Table_PI[[#This Row],[Hide: Rebate]]=\"\",Table_PI[[#This Row],[Hide: Rebate]]=0,ISTEXT(Table_PI[[#This Row],[Hide: Rebate]])),\"\",Table_PI[[#This Row],[Hide: Rebate]])","v":""},null,{"$f":"IF(OR(Table_PI[[#This Row],[Hide: Incremental Cost]]=\"\",Table_PI[[#This Row],[Hide: Incremental Cost]]=0,ISTEXT(Table_PI[[#This Row],[Hide: Incremental Cost]])),\"\",Table_PI[[#This Row],[Hide: Incremental Cost]])","v":""},{"$f":"IFERROR(IF(Table_SummaryPI[[#This Row],[Incentive_Customer]]=\"\",\"\",ROUND(Table_SummaryPI[[#This Row],[Incentive_Customer]]/$AM$401*'Customer Information'!$BC$21,2)),0)","v":""},{"$f":"IF(OR(Table_PI[[#This Row],[Annual kWh]]=\"\",Table_PI[[#This Row],[Annual kWh]]=0,ISTEXT(Table_PI[[#This Row],[Annual kWh]])),\"\",Table_PI[[#This Row],[Annual kWh]])","v":""},{"$f":"IF(OR(Table_PI[[#This Row],[Peak kW]]=\"\",Table_PI[[#This Row],[Peak kW]]=0,ISTEXT(Table_PI[[#This Row],[Peak kW]])),\"\",Table_PI[[#This Row],[Peak kW]])","v":""},{"$f":"IF(Table_SummaryPI[[#This Row],[Line No.]]<>\"\",IF(AND(ISNUMBER(FIND(\"Chiller\",Table_SummaryPI[[#This Row],[P_MeasureOption1]],1)),Table_SummaryPI[[#This Row],[ProposedMeasureCategory]]=\"Air-Cooled (Water-Cooled Replacement)\"),$BD$29*Table_SummaryPI[[#This Row],[Size]]*Table_SummaryPI[[#This Row],[Quantity]]*Table_SummaryPI[[#This Row],[EFLHCooling]],\nIF(ISNUMBER(FIND(\"Dishwasher\",Table_SummaryPI[[#This Row],[ProposedMeasureCategory]],1)),$BH$29*Table_SummaryPI[[#This Row],[Quantity]],\nIF(ISNUMBER(FIND(\"Ice Maker\",Table_SummaryPI[[#This Row],[ProposedMeasureCategory]],1)),$BD$31*Table_SummaryPI[[#This Row],[Quantity]],\nIF(ISNUMBER(FIND(\"Spray Valve\",Table_SummaryPI[[#This Row],[ProposedMeasureCategory]],1)),$BH$31*Table_SummaryPI[[#This Row],[Quantity]],\n0)))),\"\")","v":""},{"$f":"IF(OR(Table_PI[[#This Row],[Hide: Electrification kWh]]=\"\",Table_PI[[#This Row],[Hide: Electrification kWh]]=0,ISTEXT(Table_PI[[#This Row],[Hide: Electrification kWh]])),\"\",Table_PI[[#This Row],[Hide: Electrification kWh]])","v":""},{"$f":"IF(OR(Table_PI[[#This Row],[Hide: Electrification GHG]]=\"\",Table_PI[[#This Row],[Hide: Electrification GHG]]=0,ISTEXT(Table_PI[[#This Row],[Hide: Electrification GHG]])),\"\",Table_PI[[#This Row],[Hide: Electrification GHG]])","v":""},{"$f":"IFERROR(IF(Table_SummaryPI[[#This Row],[kWhSavings]]=\"\",\"\",$BH$9*Table_SummaryPI[[#This Row],[kWhSavings]]),0)","v":""},{"$f":"IFERROR(IF(Table_SummaryPI[[#This Row],[kWhSavings]]=\"\",\"\",$BH$14*Table_SummaryPI[[#This Row],[kWhSavings]]),0)","v":""},{"$f":"IFERROR(IF(Table_SummaryPI[[#This Row],[kWhSavings]]=\"\",\"\",$BH$18*Table_SummaryPI[[#This Row],[kWhSavings]]),0)","v":""},{"$f":"IFERROR(IF(Table_SummaryPI[[#This Row],[kWhSavings]]=\"\",\"\",$BH$22*Table_SummaryPI[[#This Row],[kWhSavings]]),0)","v":""}]
[{"$f":"Table_PI[[#This Row],[Line No.]]","v":""},{"$f":"IF(Table_SummaryPI[[#This Row],[MeasureName]]<>\"\",NOT(ISTEXT(Table_PI[[#This Row],[Rebate]])),\"\")","v":""},{"$f":"IF(Table_SummaryPI[[#This Row],[MeassureCategory]]<>\"\",CONCATENATE(Table_SummaryPI[[#This Row],[MeassureCategory]],  \" - \", Table_SummaryPI[[#This Row],[ProposedMeasureCategory]],  \" - \", TEXT(Table_SummaryPI[[#This Row],[Size]],\"#,##0.00\"),\" \",Table_SummaryPI[[#This Row],[SizeUnit]]),\"\")","v":""},{"$f":"SUBSTITUTE(Table_PI[[#This Row],[Measure]],\"     \",\"\",1)","v":""},{"$f":"IF(Table_PI[[#This Row],[List 1]]<>\"\",Table_PI[[#This Row],[List 1]],\"\")","v":""},{"$f":"IF(Table_PI[[#This Row],[List 2]]<>\"\",Table_PI[[#This Row],[List 2]],\"\")","v":""},{"$f":"IF(Table_PI[[#This Row],[List 3]]<>\"\",Table_PI[[#This Row],[List 3]],\"\")","v":""},{"$f":"IF(Table_PI[[#This Row],[Manufacturer]]=\"\",\"\",Table_PI[[#This Row],[Manufacturer]])","v":""},{"$f":"IF(Table_PI[[#This Row],[Model Number]]=\"\",\"\",Table_PI[[#This Row],[Model Number]])","v":""},{"$f":"IF(Table_PI[[#This Row],[Serial Number(s)]]=\"\",\"\",Table_PI[[#This Row],[Serial Number(s)]])","v":""},null,{"$f":"IF(Table_PI[[#This Row],[Size]]=\"\",\"\",Table_PI[[#This Row],[Size]])","v":""},null,null,{"$f":"IF(Table_PI[[#This Row],[Input 1]]<>\"\",Table_PI[[#This Row],[Input 1]],\"\")","v":""},null,null,{"$f":"IF(Table_PI[[#This Row],[Input 2]]<>\"\",Table_PI[[#This Row],[Input 2]],\"\")","v":""},null,null,{"$f":"IF(Table_PI[[#This Row],[Input 3]]<>\"\",Table_PI[[#This Row],[Input 3]],\"\")","v":""},null,null,{"$f":"IF(Table_PI[[#This Row],[Input 4]]<>\"\",Table_PI[[#This Row],[Input 4]],\"\")","v":""},null,null,{"$f":"IF(Table_PI[[#This Row],[Input 4]]<>\"\",Table_PI[[#This Row],[Input 4]],\"\")","v":""},null,null,{"$f":"IF(Table_PI[[#This Row],[Input 4]]<>\"\",Table_PI[[#This Row],[Input 4]],\"\")","v":""},{"$f":"IF(Table_PI[[#This Row],[Quantity]]=\"\",\"\",Table_PI[[#This Row],[Quantity]])","v":""},{"$f":"IF(Table_PI[[#This Row],[Notes]]=\"\",\"\",Table_PI[[#This Row],[Notes]])","v":""},{"$f":"IF(OR(Table_PI[[#This Row],[Hide: Baseline kWh]]=\"\",Table_PI[[#This Row],[Hide: Baseline kWh]]=0,ISTEXT(Table_PI[[#This Row],[Hide: Baseline kWh]])),\"\",Table_PI[[#This Row],[Hide: Baseline kWh]])","v":""},{"$f":"IF(OR(Table_PI[[#This Row],[Hide: Baseline kW]]=\"\",Table_PI[[#This Row],[Hide: Baseline kW]]=0,ISTEXT(Table_PI[[#This Row],[Hide: Baseline kW]])),\"\",Table_PI[[#This Row],[Hide: Baseline kW]])","v":""},{"$f":"IF(OR(Table_PI[[#This Row],[Hide: Proposed kWh]]=\"\",Table_PI[[#This Row],[Hide: Proposed kWh]]=0,ISTEXT(Table_PI[[#This Row],[Hide: Proposed kWh]])),\"\",Table_PI[[#This Row],[Hide: Proposed kWh]])","v":""},{"$f":"IF(OR(Table_PI[[#This Row],[Hide: Proposed kW]]=\"\",Table_PI[[#This Row],[Hide: Proposed kW]]=0,ISTEXT(Table_PI[[#This Row],[Hide: Proposed kW]])),\"\",Table_PI[[#This Row],[Hide: Proposed kW]])","v":""},null,null,{"$f":"IF(OR(Table_PI[[#This Row],[Hide: Rebate]]=\"\",Table_PI[[#This Row],[Hide: Rebate]]=0,ISTEXT(Table_PI[[#This Row],[Hide: Rebate]])),\"\",Table_PI[[#This Row],[Hide: Rebate]])","v":""},null,{"$f":"IF(OR(Table_PI[[#This Row],[Hide: Incremental Cost]]=\"\",Table_PI[[#This Row],[Hide: Incremental Cost]]=0,ISTEXT(Table_PI[[#This Row],[Hide: Incremental Cost]])),\"\",Table_PI[[#This Row],[Hide: Incremental Cost]])","v":""},{"$f":"IFERROR(IF(Table_SummaryPI[[#This Row],[Incentive_Customer]]=\"\",\"\",ROUND(Table_SummaryPI[[#This Row],[Incentive_Customer]]/$AM$401*'Customer Information'!$BC$21,2)),0)","v":""},{"$f":"IF(OR(Table_PI[[#This Row],[Annual kWh]]=\"\",Table_PI[[#This Row],[Annual kWh]]=0,ISTEXT(Table_PI[[#This Row],[Annual kWh]])),\"\",Table_PI[[#This Row],[Annual kWh]])","v":""},{"$f":"IF(OR(Table_PI[[#This Row],[Peak kW]]=\"\",Table_PI[[#This Row],[Peak kW]]=0,ISTEXT(Table_PI[[#This Row],[Peak kW]])),\"\",Table_PI[[#This Row],[Peak kW]])","v":""},{"$f":"IF(Table_SummaryPI[[#This Row],[Line No.]]<>\"\",IF(AND(ISNUMBER(FIND(\"Chiller\",Table_SummaryPI[[#This Row],[P_MeasureOption1]],1)),Table_SummaryPI[[#This Row],[ProposedMeasureCategory]]=\"Air-Cooled (Water-Cooled Replacement)\"),$BD$29*Table_SummaryPI[[#This Row],[Size]]*Table_SummaryPI[[#This Row],[Quantity]]*Table_SummaryPI[[#This Row],[EFLHCooling]],\nIF(ISNUMBER(FIND(\"Dishwasher\",Table_SummaryPI[[#This Row],[ProposedMeasureCategory]],1)),$BH$29*Table_SummaryPI[[#This Row],[Quantity]],\nIF(ISNUMBER(FIND(\"Ice Maker\",Table_SummaryPI[[#This Row],[ProposedMeasureCategory]],1)),$BD$31*Table_SummaryPI[[#This Row],[Quantity]],\nIF(ISNUMBER(FIND(\"Spray Valve\",Table_SummaryPI[[#This Row],[ProposedMeasureCategory]],1)),$BH$31*Table_SummaryPI[[#This Row],[Quantity]],\n0)))),\"\")","v":""},{"$f":"IF(OR(Table_PI[[#This Row],[Hide: Electrification kWh]]=\"\",Table_PI[[#This Row],[Hide: Electrification kWh]]=0,ISTEXT(Table_PI[[#This Row],[Hide: Electrification kWh]])),\"\",Table_PI[[#This Row],[Hide: Electrification kWh]])","v":""},{"$f":"IF(OR(Table_PI[[#This Row],[Hide: Electrification GHG]]=\"\",Table_PI[[#This Row],[Hide: Electrification GHG]]=0,ISTEXT(Table_PI[[#This Row],[Hide: Electrification GHG]])),\"\",Table_PI[[#This Row],[Hide: Electrification GHG]])","v":""},{"$f":"IFERROR(IF(Table_SummaryPI[[#This Row],[kWhSavings]]=\"\",\"\",$BH$9*Table_SummaryPI[[#This Row],[kWhSavings]]),0)","v":""},{"$f":"IFERROR(IF(Table_SummaryPI[[#This Row],[kWhSavings]]=\"\",\"\",$BH$14*Table_SummaryPI[[#This Row],[kWhSavings]]),0)","v":""},{"$f":"IFERROR(IF(Table_SummaryPI[[#This Row],[kWhSavings]]=\"\",\"\",$BH$18*Table_SummaryPI[[#This Row],[kWhSavings]]),0)","v":""},{"$f":"IFERROR(IF(Table_SummaryPI[[#This Row],[kWhSavings]]=\"\",\"\",$BH$22*Table_SummaryPI[[#This Row],[kWhSavings]]),0)","v":""}]
[{"$f":"Table_PI[[#This Row],[Line No.]]","v":""},{"$f":"IF(Table_SummaryPI[[#This Row],[MeasureName]]<>\"\",NOT(ISTEXT(Table_PI[[#This Row],[Rebate]])),\"\")","v":""},{"$f":"IF(Table_SummaryPI[[#This Row],[MeassureCategory]]<>\"\",CONCATENATE(Table_SummaryPI[[#This Row],[MeassureCategory]],  \" - \", Table_SummaryPI[[#This Row],[ProposedMeasureCategory]],  \" - \", TEXT(Table_SummaryPI[[#This Row],[Size]],\"#,##0.00\"),\" \",Table_SummaryPI[[#This Row],[SizeUnit]]),\"\")","v":""},{"$f":"SUBSTITUTE(Table_PI[[#This Row],[Measure]],\"     \",\"\",1)","v":""},{"$f":"IF(Table_PI[[#This Row],[List 1]]<>\"\",Table_PI[[#This Row],[List 1]],\"\")","v":""},{"$f":"IF(Table_PI[[#This Row],[List 2]]<>\"\",Table_PI[[#This Row],[List 2]],\"\")","v":""},{"$f":"IF(Table_PI[[#This Row],[List 3]]<>\"\",Table_PI[[#This Row],[List 3]],\"\")","v":""},{"$f":"IF(Table_PI[[#This Row],[Manufacturer]]=\"\",\"\",Table_PI[[#This Row],[Manufacturer]])","v":""},{"$f":"IF(Table_PI[[#This Row],[Model Number]]=\"\",\"\",Table_PI[[#This Row],[Model Number]])","v":""},{"$f":"IF(Table_PI[[#This Row],[Serial Number(s)]]=\"\",\"\",Table_PI[[#This Row],[Serial Number(s)]])","v":""},null,{"$f":"IF(Table_PI[[#This Row],[Size]]=\"\",\"\",Table_PI[[#This Row],[Size]])","v":""},null,null,{"$f":"IF(Table_PI[[#This Row],[Input 1]]<>\"\",Table_PI[[#This Row],[Input 1]],\"\")","v":""},null,null,{"$f":"IF(Table_PI[[#This Row],[Input 2]]<>\"\",Table_PI[[#This Row],[Input 2]],\"\")","v":""},null,null,{"$f":"IF(Table_PI[[#This Row],[Input 3]]<>\"\",Table_PI[[#This Row],[Input 3]],\"\")","v":""},null,null,{"$f":"IF(Table_PI[[#This Row],[Input 4]]<>\"\",Table_PI[[#This Row],[Input 4]],\"\")","v":""},null,null,{"$f":"IF(Table_PI[[#This Row],[Input 4]]<>\"\",Table_PI[[#This Row],[Input 4]],\"\")","v":""},null,null,{"$f":"IF(Table_PI[[#This Row],[Input 4]]<>\"\",Table_PI[[#This Row],[Input 4]],\"\")","v":""},{"$f":"IF(Table_PI[[#This Row],[Quantity]]=\"\",\"\",Table_PI[[#This Row],[Quantity]])","v":""},{"$f":"IF(Table_PI[[#This Row],[Notes]]=\"\",\"\",Table_PI[[#This Row],[Notes]])","v":""},{"$f":"IF(OR(Table_PI[[#This Row],[Hide: Baseline kWh]]=\"\",Table_PI[[#This Row],[Hide: Baseline kWh]]=0,ISTEXT(Table_PI[[#This Row],[Hide: Baseline kWh]])),\"\",Table_PI[[#This Row],[Hide: Baseline kWh]])","v":""},{"$f":"IF(OR(Table_PI[[#This Row],[Hide: Baseline kW]]=\"\",Table_PI[[#This Row],[Hide: Baseline kW]]=0,ISTEXT(Table_PI[[#This Row],[Hide: Baseline kW]])),\"\",Table_PI[[#This Row],[Hide: Baseline kW]])","v":""},{"$f":"IF(OR(Table_PI[[#This Row],[Hide: Proposed kWh]]=\"\",Table_PI[[#This Row],[Hide: Proposed kWh]]=0,ISTEXT(Table_PI[[#This Row],[Hide: Proposed kWh]])),\"\",Table_PI[[#This Row],[Hide: Proposed kWh]])","v":""},{"$f":"IF(OR(Table_PI[[#This Row],[Hide: Proposed kW]]=\"\",Table_PI[[#This Row],[Hide: Proposed kW]]=0,ISTEXT(Table_PI[[#This Row],[Hide: Proposed kW]])),\"\",Table_PI[[#This Row],[Hide: Proposed kW]])","v":""},null,null,{"$f":"IF(OR(Table_PI[[#This Row],[Hide: Rebate]]=\"\",Table_PI[[#This Row],[Hide: Rebate]]=0,ISTEXT(Table_PI[[#This Row],[Hide: Rebate]])),\"\",Table_PI[[#This Row],[Hide: Rebate]])","v":""},null,{"$f":"IF(OR(Table_PI[[#This Row],[Hide: Incremental Cost]]=\"\",Table_PI[[#This Row],[Hide: Incremental Cost]]=0,ISTEXT(Table_PI[[#This Row],[Hide: Incremental Cost]])),\"\",Table_PI[[#This Row],[Hide: Incremental Cost]])","v":""},{"$f":"IFERROR(IF(Table_SummaryPI[[#This Row],[Incentive_Customer]]=\"\",\"\",ROUND(Table_SummaryPI[[#This Row],[Incentive_Customer]]/$AM$401*'Customer Information'!$BC$21,2)),0)","v":""},{"$f":"IF(OR(Table_PI[[#This Row],[Annual kWh]]=\"\",Table_PI[[#This Row],[Annual kWh]]=0,ISTEXT(Table_PI[[#This Row],[Annual kWh]])),\"\",Table_PI[[#This Row],[Annual kWh]])","v":""},{"$f":"IF(OR(Table_PI[[#This Row],[Peak kW]]=\"\",Table_PI[[#This Row],[Peak kW]]=0,ISTEXT(Table_PI[[#This Row],[Peak kW]])),\"\",Table_PI[[#This Row],[Peak kW]])","v":""},{"$f":"IF(Table_SummaryPI[[#This Row],[Line No.]]<>\"\",IF(AND(ISNUMBER(FIND(\"Chiller\",Table_SummaryPI[[#This Row],[P_MeasureOption1]],1)),Table_SummaryPI[[#This Row],[ProposedMeasureCategory]]=\"Air-Cooled (Water-Cooled Replacement)\"),$BD$29*Table_SummaryPI[[#This Row],[Size]]*Table_SummaryPI[[#This Row],[Quantity]]*Table_SummaryPI[[#This Row],[EFLHCooling]],\nIF(ISNUMBER(FIND(\"Dishwasher\",Table_SummaryPI[[#This Row],[ProposedMeasureCategory]],1)),$BH$29*Table_SummaryPI[[#This Row],[Quantity]],\nIF(ISNUMBER(FIND(\"Ice Maker\",Table_SummaryPI[[#This Row],[ProposedMeasureCategory]],1)),$BD$31*Table_SummaryPI[[#This Row],[Quantity]],\nIF(ISNUMBER(FIND(\"Spray Valve\",Table_SummaryPI[[#This Row],[ProposedMeasureCategory]],1)),$BH$31*Table_SummaryPI[[#This Row],[Quantity]],\n0)))),\"\")","v":""},{"$f":"IF(OR(Table_PI[[#This Row],[Hide: Electrification kWh]]=\"\",Table_PI[[#This Row],[Hide: Electrification kWh]]=0,ISTEXT(Table_PI[[#This Row],[Hide: Electrification kWh]])),\"\",Table_PI[[#This Row],[Hide: Electrification kWh]])","v":""},{"$f":"IF(OR(Table_PI[[#This Row],[Hide: Electrification GHG]]=\"\",Table_PI[[#This Row],[Hide: Electrification GHG]]=0,ISTEXT(Table_PI[[#This Row],[Hide: Electrification GHG]])),\"\",Table_PI[[#This Row],[Hide: Electrification GHG]])","v":""},{"$f":"IFERROR(IF(Table_SummaryPI[[#This Row],[kWhSavings]]=\"\",\"\",$BH$9*Table_SummaryPI[[#This Row],[kWhSavings]]),0)","v":""},{"$f":"IFERROR(IF(Table_SummaryPI[[#This Row],[kWhSavings]]=\"\",\"\",$BH$14*Table_SummaryPI[[#This Row],[kWhSavings]]),0)","v":""},{"$f":"IFERROR(IF(Table_SummaryPI[[#This Row],[kWhSavings]]=\"\",\"\",$BH$18*Table_SummaryPI[[#This Row],[kWhSavings]]),0)","v":""},{"$f":"IFERROR(IF(Table_SummaryPI[[#This Row],[kWhSavings]]=\"\",\"\",$BH$22*Table_SummaryPI[[#This Row],[kWhSavings]]),0)","v":""}]
[{"$f":"Table_PI[[#This Row],[Line No.]]","v":""},{"$f":"IF(Table_SummaryPI[[#This Row],[MeasureName]]<>\"\",NOT(ISTEXT(Table_PI[[#This Row],[Rebate]])),\"\")","v":""},{"$f":"IF(Table_SummaryPI[[#This Row],[MeassureCategory]]<>\"\",CONCATENATE(Table_SummaryPI[[#This Row],[MeassureCategory]],  \" - \", Table_SummaryPI[[#This Row],[ProposedMeasureCategory]],  \" - \", TEXT(Table_SummaryPI[[#This Row],[Size]],\"#,##0.00\"),\" \",Table_SummaryPI[[#This Row],[SizeUnit]]),\"\")","v":""},{"$f":"SUBSTITUTE(Table_PI[[#This Row],[Measure]],\"     \",\"\",1)","v":""},{"$f":"IF(Table_PI[[#This Row],[List 1]]<>\"\",Table_PI[[#This Row],[List 1]],\"\")","v":""},{"$f":"IF(Table_PI[[#This Row],[List 2]]<>\"\",Table_PI[[#This Row],[List 2]],\"\")","v":""},{"$f":"IF(Table_PI[[#This Row],[List 3]]<>\"\",Table_PI[[#This Row],[List 3]],\"\")","v":""},{"$f":"IF(Table_PI[[#This Row],[Manufacturer]]=\"\",\"\",Table_PI[[#This Row],[Manufacturer]])","v":""},{"$f":"IF(Table_PI[[#This Row],[Model Number]]=\"\",\"\",Table_PI[[#This Row],[Model Number]])","v":""},{"$f":"IF(Table_PI[[#This Row],[Serial Number(s)]]=\"\",\"\",Table_PI[[#This Row],[Serial Number(s)]])","v":""},null,{"$f":"IF(Table_PI[[#This Row],[Size]]=\"\",\"\",Table_PI[[#This Row],[Size]])","v":""},null,null,{"$f":"IF(Table_PI[[#This Row],[Input 1]]<>\"\",Table_PI[[#This Row],[Input 1]],\"\")","v":""},null,null,{"$f":"IF(Table_PI[[#This Row],[Input 2]]<>\"\",Table_PI[[#This Row],[Input 2]],\"\")","v":""},null,null,{"$f":"IF(Table_PI[[#This Row],[Input 3]]<>\"\",Table_PI[[#This Row],[Input 3]],\"\")","v":""},null,null,{"$f":"IF(Table_PI[[#This Row],[Input 4]]<>\"\",Table_PI[[#This Row],[Input 4]],\"\")","v":""},null,null,{"$f":"IF(Table_PI[[#This Row],[Input 4]]<>\"\",Table_PI[[#This Row],[Input 4]],\"\")","v":""},null,null,{"$f":"IF(Table_PI[[#This Row],[Input 4]]<>\"\",Table_PI[[#This Row],[Input 4]],\"\")","v":""},{"$f":"IF(Table_PI[[#This Row],[Quantity]]=\"\",\"\",Table_PI[[#This Row],[Quantity]])","v":""},{"$f":"IF(Table_PI[[#This Row],[Notes]]=\"\",\"\",Table_PI[[#This Row],[Notes]])","v":""},{"$f":"IF(OR(Table_PI[[#This Row],[Hide: Baseline kWh]]=\"\",Table_PI[[#This Row],[Hide: Baseline kWh]]=0,ISTEXT(Table_PI[[#This Row],[Hide: Baseline kWh]])),\"\",Table_PI[[#This Row],[Hide: Baseline kWh]])","v":""},{"$f":"IF(OR(Table_PI[[#This Row],[Hide: Baseline kW]]=\"\",Table_PI[[#This Row],[Hide: Baseline kW]]=0,ISTEXT(Table_PI[[#This Row],[Hide: Baseline kW]])),\"\",Table_PI[[#This Row],[Hide: Baseline kW]])","v":""},{"$f":"IF(OR(Table_PI[[#This Row],[Hide: Proposed kWh]]=\"\",Table_PI[[#This Row],[Hide: Proposed kWh]]=0,ISTEXT(Table_PI[[#This Row],[Hide: Proposed kWh]])),\"\",Table_PI[[#This Row],[Hide: Proposed kWh]])","v":""},{"$f":"IF(OR(Table_PI[[#This Row],[Hide: Proposed kW]]=\"\",Table_PI[[#This Row],[Hide: Proposed kW]]=0,ISTEXT(Table_PI[[#This Row],[Hide: Proposed kW]])),\"\",Table_PI[[#This Row],[Hide: Proposed kW]])","v":""},null,null,{"$f":"IF(OR(Table_PI[[#This Row],[Hide: Rebate]]=\"\",Table_PI[[#This Row],[Hide: Rebate]]=0,ISTEXT(Table_PI[[#This Row],[Hide: Rebate]])),\"\",Table_PI[[#This Row],[Hide: Rebate]])","v":""},null,{"$f":"IF(OR(Table_PI[[#This Row],[Hide: Incremental Cost]]=\"\",Table_PI[[#This Row],[Hide: Incremental Cost]]=0,ISTEXT(Table_PI[[#This Row],[Hide: Incremental Cost]])),\"\",Table_PI[[#This Row],[Hide: Incremental Cost]])","v":""},{"$f":"IFERROR(IF(Table_SummaryPI[[#This Row],[Incentive_Customer]]=\"\",\"\",ROUND(Table_SummaryPI[[#This Row],[Incentive_Customer]]/$AM$401*'Customer Information'!$BC$21,2)),0)","v":""},{"$f":"IF(OR(Table_PI[[#This Row],[Annual kWh]]=\"\",Table_PI[[#This Row],[Annual kWh]]=0,ISTEXT(Table_PI[[#This Row],[Annual kWh]])),\"\",Table_PI[[#This Row],[Annual kWh]])","v":""},{"$f":"IF(OR(Table_PI[[#This Row],[Peak kW]]=\"\",Table_PI[[#This Row],[Peak kW]]=0,ISTEXT(Table_PI[[#This Row],[Peak kW]])),\"\",Table_PI[[#This Row],[Peak kW]])","v":""},{"$f":"IF(Table_SummaryPI[[#This Row],[Line No.]]<>\"\",IF(AND(ISNUMBER(FIND(\"Chiller\",Table_SummaryPI[[#This Row],[P_MeasureOption1]],1)),Table_SummaryPI[[#This Row],[ProposedMeasureCategory]]=\"Air-Cooled (Water-Cooled Replacement)\"),$BD$29*Table_SummaryPI[[#This Row],[Size]]*Table_SummaryPI[[#This Row],[Quantity]]*Table_SummaryPI[[#This Row],[EFLHCooling]],\nIF(ISNUMBER(FIND(\"Dishwasher\",Table_SummaryPI[[#This Row],[ProposedMeasureCategory]],1)),$BH$29*Table_SummaryPI[[#This Row],[Quantity]],\nIF(ISNUMBER(FIND(\"Ice Maker\",Table_SummaryPI[[#This Row],[ProposedMeasureCategory]],1)),$BD$31*Table_SummaryPI[[#This Row],[Quantity]],\nIF(ISNUMBER(FIND(\"Spray Valve\",Table_SummaryPI[[#This Row],[ProposedMeasureCategory]],1)),$BH$31*Table_SummaryPI[[#This Row],[Quantity]],\n0)))),\"\")","v":""},{"$f":"IF(OR(Table_PI[[#This Row],[Hide: Electrification kWh]]=\"\",Table_PI[[#This Row],[Hide: Electrification kWh]]=0,ISTEXT(Table_PI[[#This Row],[Hide: Electrification kWh]])),\"\",Table_PI[[#This Row],[Hide: Electrification kWh]])","v":""},{"$f":"IF(OR(Table_PI[[#This Row],[Hide: Electrification GHG]]=\"\",Table_PI[[#This Row],[Hide: Electrification GHG]]=0,ISTEXT(Table_PI[[#This Row],[Hide: Electrification GHG]])),\"\",Table_PI[[#This Row],[Hide: Electrification GHG]])","v":""},{"$f":"IFERROR(IF(Table_SummaryPI[[#This Row],[kWhSavings]]=\"\",\"\",$BH$9*Table_SummaryPI[[#This Row],[kWhSavings]]),0)","v":""},{"$f":"IFERROR(IF(Table_SummaryPI[[#This Row],[kWhSavings]]=\"\",\"\",$BH$14*Table_SummaryPI[[#This Row],[kWhSavings]]),0)","v":""},{"$f":"IFERROR(IF(Table_SummaryPI[[#This Row],[kWhSavings]]=\"\",\"\",$BH$18*Table_SummaryPI[[#This Row],[kWhSavings]]),0)","v":""},{"$f":"IFERROR(IF(Table_SummaryPI[[#This Row],[kWhSavings]]=\"\",\"\",$BH$22*Table_SummaryPI[[#This Row],[kWhSavings]]),0)","v":""}]
[{"$f":"Table_PI[[#This Row],[Line No.]]","v":""},{"$f":"IF(Table_SummaryPI[[#This Row],[MeasureName]]<>\"\",NOT(ISTEXT(Table_PI[[#This Row],[Rebate]])),\"\")","v":""},{"$f":"IF(Table_SummaryPI[[#This Row],[MeassureCategory]]<>\"\",CONCATENATE(Table_SummaryPI[[#This Row],[MeassureCategory]],  \" - \", Table_SummaryPI[[#This Row],[ProposedMeasureCategory]],  \" - \", TEXT(Table_SummaryPI[[#This Row],[Size]],\"#,##0.00\"),\" \",Table_SummaryPI[[#This Row],[SizeUnit]]),\"\")","v":""},{"$f":"SUBSTITUTE(Table_PI[[#This Row],[Measure]],\"     \",\"\",1)","v":""},{"$f":"IF(Table_PI[[#This Row],[List 1]]<>\"\",Table_PI[[#This Row],[List 1]],\"\")","v":""},{"$f":"IF(Table_PI[[#This Row],[List 2]]<>\"\",Table_PI[[#This Row],[List 2]],\"\")","v":""},{"$f":"IF(Table_PI[[#This Row],[List 3]]<>\"\",Table_PI[[#This Row],[List 3]],\"\")","v":""},{"$f":"IF(Table_PI[[#This Row],[Manufacturer]]=\"\",\"\",Table_PI[[#This Row],[Manufacturer]])","v":""},{"$f":"IF(Table_PI[[#This Row],[Model Number]]=\"\",\"\",Table_PI[[#This Row],[Model Number]])","v":""},{"$f":"IF(Table_PI[[#This Row],[Serial Number(s)]]=\"\",\"\",Table_PI[[#This Row],[Serial Number(s)]])","v":""},null,{"$f":"IF(Table_PI[[#This Row],[Size]]=\"\",\"\",Table_PI[[#This Row],[Size]])","v":""},null,null,{"$f":"IF(Table_PI[[#This Row],[Input 1]]<>\"\",Table_PI[[#This Row],[Input 1]],\"\")","v":""},null,null,{"$f":"IF(Table_PI[[#This Row],[Input 2]]<>\"\",Table_PI[[#This Row],[Input 2]],\"\")","v":""},null,null,{"$f":"IF(Table_PI[[#This Row],[Input 3]]<>\"\",Table_PI[[#This Row],[Input 3]],\"\")","v":""},null,null,{"$f":"IF(Table_PI[[#This Row],[Input 4]]<>\"\",Table_PI[[#This Row],[Input 4]],\"\")","v":""},null,null,{"$f":"IF(Table_PI[[#This Row],[Input 4]]<>\"\",Table_PI[[#This Row],[Input 4]],\"\")","v":""},null,null,{"$f":"IF(Table_PI[[#This Row],[Input 4]]<>\"\",Table_PI[[#This Row],[Input 4]],\"\")","v":""},{"$f":"IF(Table_PI[[#This Row],[Quantity]]=\"\",\"\",Table_PI[[#This Row],[Quantity]])","v":""},{"$f":"IF(Table_PI[[#This Row],[Notes]]=\"\",\"\",Table_PI[[#This Row],[Notes]])","v":""},{"$f":"IF(OR(Table_PI[[#This Row],[Hide: Baseline kWh]]=\"\",Table_PI[[#This Row],[Hide: Baseline kWh]]=0,ISTEXT(Table_PI[[#This Row],[Hide: Baseline kWh]])),\"\",Table_PI[[#This Row],[Hide: Baseline kWh]])","v":""},{"$f":"IF(OR(Table_PI[[#This Row],[Hide: Baseline kW]]=\"\",Table_PI[[#This Row],[Hide: Baseline kW]]=0,ISTEXT(Table_PI[[#This Row],[Hide: Baseline kW]])),\"\",Table_PI[[#This Row],[Hide: Baseline kW]])","v":""},{"$f":"IF(OR(Table_PI[[#This Row],[Hide: Proposed kWh]]=\"\",Table_PI[[#This Row],[Hide: Proposed kWh]]=0,ISTEXT(Table_PI[[#This Row],[Hide: Proposed kWh]])),\"\",Table_PI[[#This Row],[Hide: Proposed kWh]])","v":""},{"$f":"IF(OR(Table_PI[[#This Row],[Hide: Proposed kW]]=\"\",Table_PI[[#This Row],[Hide: Proposed kW]]=0,ISTEXT(Table_PI[[#This Row],[Hide: Proposed kW]])),\"\",Table_PI[[#This Row],[Hide: Proposed kW]])","v":""},null,null,{"$f":"IF(OR(Table_PI[[#This Row],[Hide: Rebate]]=\"\",Table_PI[[#This Row],[Hide: Rebate]]=0,ISTEXT(Table_PI[[#This Row],[Hide: Rebate]])),\"\",Table_PI[[#This Row],[Hide: Rebate]])","v":""},null,{"$f":"IF(OR(Table_PI[[#This Row],[Hide: Incremental Cost]]=\"\",Table_PI[[#This Row],[Hide: Incremental Cost]]=0,ISTEXT(Table_PI[[#This Row],[Hide: Incremental Cost]])),\"\",Table_PI[[#This Row],[Hide: Incremental Cost]])","v":""},{"$f":"IFERROR(IF(Table_SummaryPI[[#This Row],[Incentive_Customer]]=\"\",\"\",ROUND(Table_SummaryPI[[#This Row],[Incentive_Customer]]/$AM$401*'Customer Information'!$BC$21,2)),0)","v":""},{"$f":"IF(OR(Table_PI[[#This Row],[Annual kWh]]=\"\",Table_PI[[#This Row],[Annual kWh]]=0,ISTEXT(Table_PI[[#This Row],[Annual kWh]])),\"\",Table_PI[[#This Row],[Annual kWh]])","v":""},{"$f":"IF(OR(Table_PI[[#This Row],[Peak kW]]=\"\",Table_PI[[#This Row],[Peak kW]]=0,ISTEXT(Table_PI[[#This Row],[Peak kW]])),\"\",Table_PI[[#This Row],[Peak kW]])","v":""},{"$f":"IF(Table_SummaryPI[[#This Row],[Line No.]]<>\"\",IF(AND(ISNUMBER(FIND(\"Chiller\",Table_SummaryPI[[#This Row],[P_MeasureOption1]],1)),Table_SummaryPI[[#This Row],[ProposedMeasureCategory]]=\"Air-Cooled (Water-Cooled Replacement)\"),$BD$29*Table_SummaryPI[[#This Row],[Size]]*Table_SummaryPI[[#This Row],[Quantity]]*Table_SummaryPI[[#This Row],[EFLHCooling]],\nIF(ISNUMBER(FIND(\"Dishwasher\",Table_SummaryPI[[#This Row],[ProposedMeasureCategory]],1)),$BH$29*Table_SummaryPI[[#This Row],[Quantity]],\nIF(ISNUMBER(FIND(\"Ice Maker\",Table_SummaryPI[[#This Row],[ProposedMeasureCategory]],1)),$BD$31*Table_SummaryPI[[#This Row],[Quantity]],\nIF(ISNUMBER(FIND(\"Spray Valve\",Table_SummaryPI[[#This Row],[ProposedMeasureCategory]],1)),$BH$31*Table_SummaryPI[[#This Row],[Quantity]],\n0)))),\"\")","v":""},{"$f":"IF(OR(Table_PI[[#This Row],[Hide: Electrification kWh]]=\"\",Table_PI[[#This Row],[Hide: Electrification kWh]]=0,ISTEXT(Table_PI[[#This Row],[Hide: Electrification kWh]])),\"\",Table_PI[[#This Row],[Hide: Electrification kWh]])","v":""},{"$f":"IF(OR(Table_PI[[#This Row],[Hide: Electrification GHG]]=\"\",Table_PI[[#This Row],[Hide: Electrification GHG]]=0,ISTEXT(Table_PI[[#This Row],[Hide: Electrification GHG]])),\"\",Table_PI[[#This Row],[Hide: Electrification GHG]])","v":""},{"$f":"IFERROR(IF(Table_SummaryPI[[#This Row],[kWhSavings]]=\"\",\"\",$BH$9*Table_SummaryPI[[#This Row],[kWhSavings]]),0)","v":""},{"$f":"IFERROR(IF(Table_SummaryPI[[#This Row],[kWhSavings]]=\"\",\"\",$BH$14*Table_SummaryPI[[#This Row],[kWhSavings]]),0)","v":""},{"$f":"IFERROR(IF(Table_SummaryPI[[#This Row],[kWhSavings]]=\"\",\"\",$BH$18*Table_SummaryPI[[#This Row],[kWhSavings]]),0)","v":""},{"$f":"IFERROR(IF(Table_SummaryPI[[#This Row],[kWhSavings]]=\"\",\"\",$BH$22*Table_SummaryPI[[#This Row],[kWhSavings]]),0)","v":""}]
[{"$f":"Table_PI[[#This Row],[Line No.]]","v":""},{"$f":"IF(Table_SummaryPI[[#This Row],[MeasureName]]<>\"\",NOT(ISTEXT(Table_PI[[#This Row],[Rebate]])),\"\")","v":""},{"$f":"IF(Table_SummaryPI[[#This Row],[MeassureCategory]]<>\"\",CONCATENATE(Table_SummaryPI[[#This Row],[MeassureCategory]],  \" - \", Table_SummaryPI[[#This Row],[ProposedMeasureCategory]],  \" - \", TEXT(Table_SummaryPI[[#This Row],[Size]],\"#,##0.00\"),\" \",Table_SummaryPI[[#This Row],[SizeUnit]]),\"\")","v":""},{"$f":"SUBSTITUTE(Table_PI[[#This Row],[Measure]],\"     \",\"\",1)","v":""},{"$f":"IF(Table_PI[[#This Row],[List 1]]<>\"\",Table_PI[[#This Row],[List 1]],\"\")","v":""},{"$f":"IF(Table_PI[[#This Row],[List 2]]<>\"\",Table_PI[[#This Row],[List 2]],\"\")","v":""},{"$f":"IF(Table_PI[[#This Row],[List 3]]<>\"\",Table_PI[[#This Row],[List 3]],\"\")","v":""},{"$f":"IF(Table_PI[[#This Row],[Manufacturer]]=\"\",\"\",Table_PI[[#This Row],[Manufacturer]])","v":""},{"$f":"IF(Table_PI[[#This Row],[Model Number]]=\"\",\"\",Table_PI[[#This Row],[Model Number]])","v":""},{"$f":"IF(Table_PI[[#This Row],[Serial Number(s)]]=\"\",\"\",Table_PI[[#This Row],[Serial Number(s)]])","v":""},null,{"$f":"IF(Table_PI[[#This Row],[Size]]=\"\",\"\",Table_PI[[#This Row],[Size]])","v":""},null,null,{"$f":"IF(Table_PI[[#This Row],[Input 1]]<>\"\",Table_PI[[#This Row],[Input 1]],\"\")","v":""},null,null,{"$f":"IF(Table_PI[[#This Row],[Input 2]]<>\"\",Table_PI[[#This Row],[Input 2]],\"\")","v":""},null,null,{"$f":"IF(Table_PI[[#This Row],[Input 3]]<>\"\",Table_PI[[#This Row],[Input 3]],\"\")","v":""},null,null,{"$f":"IF(Table_PI[[#This Row],[Input 4]]<>\"\",Table_PI[[#This Row],[Input 4]],\"\")","v":""},null,null,{"$f":"IF(Table_PI[[#This Row],[Input 4]]<>\"\",Table_PI[[#This Row],[Input 4]],\"\")","v":""},null,null,{"$f":"IF(Table_PI[[#This Row],[Input 4]]<>\"\",Table_PI[[#This Row],[Input 4]],\"\")","v":""},{"$f":"IF(Table_PI[[#This Row],[Quantity]]=\"\",\"\",Table_PI[[#This Row],[Quantity]])","v":""},{"$f":"IF(Table_PI[[#This Row],[Notes]]=\"\",\"\",Table_PI[[#This Row],[Notes]])","v":""},{"$f":"IF(OR(Table_PI[[#This Row],[Hide: Baseline kWh]]=\"\",Table_PI[[#This Row],[Hide: Baseline kWh]]=0,ISTEXT(Table_PI[[#This Row],[Hide: Baseline kWh]])),\"\",Table_PI[[#This Row],[Hide: Baseline kWh]])","v":""},{"$f":"IF(OR(Table_PI[[#This Row],[Hide: Baseline kW]]=\"\",Table_PI[[#This Row],[Hide: Baseline kW]]=0,ISTEXT(Table_PI[[#This Row],[Hide: Baseline kW]])),\"\",Table_PI[[#This Row],[Hide: Baseline kW]])","v":""},{"$f":"IF(OR(Table_PI[[#This Row],[Hide: Proposed kWh]]=\"\",Table_PI[[#This Row],[Hide: Proposed kWh]]=0,ISTEXT(Table_PI[[#This Row],[Hide: Proposed kWh]])),\"\",Table_PI[[#This Row],[Hide: Proposed kWh]])","v":""},{"$f":"IF(OR(Table_PI[[#This Row],[Hide: Proposed kW]]=\"\",Table_PI[[#This Row],[Hide: Proposed kW]]=0,ISTEXT(Table_PI[[#This Row],[Hide: Proposed kW]])),\"\",Table_PI[[#This Row],[Hide: Proposed kW]])","v":""},null,null,{"$f":"IF(OR(Table_PI[[#This Row],[Hide: Rebate]]=\"\",Table_PI[[#This Row],[Hide: Rebate]]=0,ISTEXT(Table_PI[[#This Row],[Hide: Rebate]])),\"\",Table_PI[[#This Row],[Hide: Rebate]])","v":""},null,{"$f":"IF(OR(Table_PI[[#This Row],[Hide: Incremental Cost]]=\"\",Table_PI[[#This Row],[Hide: Incremental Cost]]=0,ISTEXT(Table_PI[[#This Row],[Hide: Incremental Cost]])),\"\",Table_PI[[#This Row],[Hide: Incremental Cost]])","v":""},{"$f":"IFERROR(IF(Table_SummaryPI[[#This Row],[Incentive_Customer]]=\"\",\"\",ROUND(Table_SummaryPI[[#This Row],[Incentive_Customer]]/$AM$401*'Customer Information'!$BC$21,2)),0)","v":""},{"$f":"IF(OR(Table_PI[[#This Row],[Annual kWh]]=\"\",Table_PI[[#This Row],[Annual kWh]]=0,ISTEXT(Table_PI[[#This Row],[Annual kWh]])),\"\",Table_PI[[#This Row],[Annual kWh]])","v":""},{"$f":"IF(OR(Table_PI[[#This Row],[Peak kW]]=\"\",Table_PI[[#This Row],[Peak kW]]=0,ISTEXT(Table_PI[[#This Row],[Peak kW]])),\"\",Table_PI[[#This Row],[Peak kW]])","v":""},{"$f":"IF(Table_SummaryPI[[#This Row],[Line No.]]<>\"\",IF(AND(ISNUMBER(FIND(\"Chiller\",Table_SummaryPI[[#This Row],[P_MeasureOption1]],1)),Table_SummaryPI[[#This Row],[ProposedMeasureCategory]]=\"Air-Cooled (Water-Cooled Replacement)\"),$BD$29*Table_SummaryPI[[#This Row],[Size]]*Table_SummaryPI[[#This Row],[Quantity]]*Table_SummaryPI[[#This Row],[EFLHCooling]],\nIF(ISNUMBER(FIND(\"Dishwasher\",Table_SummaryPI[[#This Row],[ProposedMeasureCategory]],1)),$BH$29*Table_SummaryPI[[#This Row],[Quantity]],\nIF(ISNUMBER(FIND(\"Ice Maker\",Table_SummaryPI[[#This Row],[ProposedMeasureCategory]],1)),$BD$31*Table_SummaryPI[[#This Row],[Quantity]],\nIF(ISNUMBER(FIND(\"Spray Valve\",Table_SummaryPI[[#This Row],[ProposedMeasureCategory]],1)),$BH$31*Table_SummaryPI[[#This Row],[Quantity]],\n0)))),\"\")","v":""},{"$f":"IF(OR(Table_PI[[#This Row],[Hide: Electrification kWh]]=\"\",Table_PI[[#This Row],[Hide: Electrification kWh]]=0,ISTEXT(Table_PI[[#This Row],[Hide: Electrification kWh]])),\"\",Table_PI[[#This Row],[Hide: Electrification kWh]])","v":""},{"$f":"IF(OR(Table_PI[[#This Row],[Hide: Electrification GHG]]=\"\",Table_PI[[#This Row],[Hide: Electrification GHG]]=0,ISTEXT(Table_PI[[#This Row],[Hide: Electrification GHG]])),\"\",Table_PI[[#This Row],[Hide: Electrification GHG]])","v":""},{"$f":"IFERROR(IF(Table_SummaryPI[[#This Row],[kWhSavings]]=\"\",\"\",$BH$9*Table_SummaryPI[[#This Row],[kWhSavings]]),0)","v":""},{"$f":"IFERROR(IF(Table_SummaryPI[[#This Row],[kWhSavings]]=\"\",\"\",$BH$14*Table_SummaryPI[[#This Row],[kWhSavings]]),0)","v":""},{"$f":"IFERROR(IF(Table_SummaryPI[[#This Row],[kWhSavings]]=\"\",\"\",$BH$18*Table_SummaryPI[[#This Row],[kWhSavings]]),0)","v":""},{"$f":"IFERROR(IF(Table_SummaryPI[[#This Row],[kWhSavings]]=\"\",\"\",$BH$22*Table_SummaryPI[[#This Row],[kWhSavings]]),0)","v":""}]
[{"$f":"Table_PI[[#This Row],[Line No.]]","v":""},{"$f":"IF(Table_SummaryPI[[#This Row],[MeasureName]]<>\"\",NOT(ISTEXT(Table_PI[[#This Row],[Rebate]])),\"\")","v":""},{"$f":"IF(Table_SummaryPI[[#This Row],[MeassureCategory]]<>\"\",CONCATENATE(Table_SummaryPI[[#This Row],[MeassureCategory]],  \" - \", Table_SummaryPI[[#This Row],[ProposedMeasureCategory]],  \" - \", TEXT(Table_SummaryPI[[#This Row],[Size]],\"#,##0.00\"),\" \",Table_SummaryPI[[#This Row],[SizeUnit]]),\"\")","v":""},{"$f":"SUBSTITUTE(Table_PI[[#This Row],[Measure]],\"     \",\"\",1)","v":""},{"$f":"IF(Table_PI[[#This Row],[List 1]]<>\"\",Table_PI[[#This Row],[List 1]],\"\")","v":""},{"$f":"IF(Table_PI[[#This Row],[List 2]]<>\"\",Table_PI[[#This Row],[List 2]],\"\")","v":""},{"$f":"IF(Table_PI[[#This Row],[List 3]]<>\"\",Table_PI[[#This Row],[List 3]],\"\")","v":""},{"$f":"IF(Table_PI[[#This Row],[Manufacturer]]=\"\",\"\",Table_PI[[#This Row],[Manufacturer]])","v":""},{"$f":"IF(Table_PI[[#This Row],[Model Number]]=\"\",\"\",Table_PI[[#This Row],[Model Number]])","v":""},{"$f":"IF(Table_PI[[#This Row],[Serial Number(s)]]=\"\",\"\",Table_PI[[#This Row],[Serial Number(s)]])","v":""},null,{"$f":"IF(Table_PI[[#This Row],[Size]]=\"\",\"\",Table_PI[[#This Row],[Size]])","v":""},null,null,{"$f":"IF(Table_PI[[#This Row],[Input 1]]<>\"\",Table_PI[[#This Row],[Input 1]],\"\")","v":""},null,null,{"$f":"IF(Table_PI[[#This Row],[Input 2]]<>\"\",Table_PI[[#This Row],[Input 2]],\"\")","v":""},null,null,{"$f":"IF(Table_PI[[#This Row],[Input 3]]<>\"\",Table_PI[[#This Row],[Input 3]],\"\")","v":""},null,null,{"$f":"IF(Table_PI[[#This Row],[Input 4]]<>\"\",Table_PI[[#This Row],[Input 4]],\"\")","v":""},null,null,{"$f":"IF(Table_PI[[#This Row],[Input 4]]<>\"\",Table_PI[[#This Row],[Input 4]],\"\")","v":""},null,null,{"$f":"IF(Table_PI[[#This Row],[Input 4]]<>\"\",Table_PI[[#This Row],[Input 4]],\"\")","v":""},{"$f":"IF(Table_PI[[#This Row],[Quantity]]=\"\",\"\",Table_PI[[#This Row],[Quantity]])","v":""},{"$f":"IF(Table_PI[[#This Row],[Notes]]=\"\",\"\",Table_PI[[#This Row],[Notes]])","v":""},{"$f":"IF(OR(Table_PI[[#This Row],[Hide: Baseline kWh]]=\"\",Table_PI[[#This Row],[Hide: Baseline kWh]]=0,ISTEXT(Table_PI[[#This Row],[Hide: Baseline kWh]])),\"\",Table_PI[[#This Row],[Hide: Baseline kWh]])","v":""},{"$f":"IF(OR(Table_PI[[#This Row],[Hide: Baseline kW]]=\"\",Table_PI[[#This Row],[Hide: Baseline kW]]=0,ISTEXT(Table_PI[[#This Row],[Hide: Baseline kW]])),\"\",Table_PI[[#This Row],[Hide: Baseline kW]])","v":""},{"$f":"IF(OR(Table_PI[[#This Row],[Hide: Proposed kWh]]=\"\",Table_PI[[#This Row],[Hide: Proposed kWh]]=0,ISTEXT(Table_PI[[#This Row],[Hide: Proposed kWh]])),\"\",Table_PI[[#This Row],[Hide: Proposed kWh]])","v":""},{"$f":"IF(OR(Table_PI[[#This Row],[Hide: Proposed kW]]=\"\",Table_PI[[#This Row],[Hide: Proposed kW]]=0,ISTEXT(Table_PI[[#This Row],[Hide: Proposed kW]])),\"\",Table_PI[[#This Row],[Hide: Proposed kW]])","v":""},null,null,{"$f":"IF(OR(Table_PI[[#This Row],[Hide: Rebate]]=\"\",Table_PI[[#This Row],[Hide: Rebate]]=0,ISTEXT(Table_PI[[#This Row],[Hide: Rebate]])),\"\",Table_PI[[#This Row],[Hide: Rebate]])","v":""},null,{"$f":"IF(OR(Table_PI[[#This Row],[Hide: Incremental Cost]]=\"\",Table_PI[[#This Row],[Hide: Incremental Cost]]=0,ISTEXT(Table_PI[[#This Row],[Hide: Incremental Cost]])),\"\",Table_PI[[#This Row],[Hide: Incremental Cost]])","v":""},{"$f":"IFERROR(IF(Table_SummaryPI[[#This Row],[Incentive_Customer]]=\"\",\"\",ROUND(Table_SummaryPI[[#This Row],[Incentive_Customer]]/$AM$401*'Customer Information'!$BC$21,2)),0)","v":""},{"$f":"IF(OR(Table_PI[[#This Row],[Annual kWh]]=\"\",Table_PI[[#This Row],[Annual kWh]]=0,ISTEXT(Table_PI[[#This Row],[Annual kWh]])),\"\",Table_PI[[#This Row],[Annual kWh]])","v":""},{"$f":"IF(OR(Table_PI[[#This Row],[Peak kW]]=\"\",Table_PI[[#This Row],[Peak kW]]=0,ISTEXT(Table_PI[[#This Row],[Peak kW]])),\"\",Table_PI[[#This Row],[Peak kW]])","v":""},{"$f":"IF(Table_SummaryPI[[#This Row],[Line No.]]<>\"\",IF(AND(ISNUMBER(FIND(\"Chiller\",Table_SummaryPI[[#This Row],[P_MeasureOption1]],1)),Table_SummaryPI[[#This Row],[ProposedMeasureCategory]]=\"Air-Cooled (Water-Cooled Replacement)\"),$BD$29*Table_SummaryPI[[#This Row],[Size]]*Table_SummaryPI[[#This Row],[Quantity]]*Table_SummaryPI[[#This Row],[EFLHCooling]],\nIF(ISNUMBER(FIND(\"Dishwasher\",Table_SummaryPI[[#This Row],[ProposedMeasureCategory]],1)),$BH$29*Table_SummaryPI[[#This Row],[Quantity]],\nIF(ISNUMBER(FIND(\"Ice Maker\",Table_SummaryPI[[#This Row],[ProposedMeasureCategory]],1)),$BD$31*Table_SummaryPI[[#This Row],[Quantity]],\nIF(ISNUMBER(FIND(\"Spray Valve\",Table_SummaryPI[[#This Row],[ProposedMeasureCategory]],1)),$BH$31*Table_SummaryPI[[#This Row],[Quantity]],\n0)))),\"\")","v":""},{"$f":"IF(OR(Table_PI[[#This Row],[Hide: Electrification kWh]]=\"\",Table_PI[[#This Row],[Hide: Electrification kWh]]=0,ISTEXT(Table_PI[[#This Row],[Hide: Electrification kWh]])),\"\",Table_PI[[#This Row],[Hide: Electrification kWh]])","v":""},{"$f":"IF(OR(Table_PI[[#This Row],[Hide: Electrification GHG]]=\"\",Table_PI[[#This Row],[Hide: Electrification GHG]]=0,ISTEXT(Table_PI[[#This Row],[Hide: Electrification GHG]])),\"\",Table_PI[[#This Row],[Hide: Electrification GHG]])","v":""},{"$f":"IFERROR(IF(Table_SummaryPI[[#This Row],[kWhSavings]]=\"\",\"\",$BH$9*Table_SummaryPI[[#This Row],[kWhSavings]]),0)","v":""},{"$f":"IFERROR(IF(Table_SummaryPI[[#This Row],[kWhSavings]]=\"\",\"\",$BH$14*Table_SummaryPI[[#This Row],[kWhSavings]]),0)","v":""},{"$f":"IFERROR(IF(Table_SummaryPI[[#This Row],[kWhSavings]]=\"\",\"\",$BH$18*Table_SummaryPI[[#This Row],[kWhSavings]]),0)","v":""},{"$f":"IFERROR(IF(Table_SummaryPI[[#This Row],[kWhSavings]]=\"\",\"\",$BH$22*Table_SummaryPI[[#This Row],[kWhSavings]]),0)","v":""}]
[{"$f":"Table_PI[[#This Row],[Line No.]]","v":""},{"$f":"IF(Table_SummaryPI[[#This Row],[MeasureName]]<>\"\",NOT(ISTEXT(Table_PI[[#This Row],[Rebate]])),\"\")","v":""},{"$f":"IF(Table_SummaryPI[[#This Row],[MeassureCategory]]<>\"\",CONCATENATE(Table_SummaryPI[[#This Row],[MeassureCategory]],  \" - \", Table_SummaryPI[[#This Row],[ProposedMeasureCategory]],  \" - \", TEXT(Table_SummaryPI[[#This Row],[Size]],\"#,##0.00\"),\" \",Table_SummaryPI[[#This Row],[SizeUnit]]),\"\")","v":""},{"$f":"SUBSTITUTE(Table_PI[[#This Row],[Measure]],\"     \",\"\",1)","v":""},{"$f":"IF(Table_PI[[#This Row],[List 1]]<>\"\",Table_PI[[#This Row],[List 1]],\"\")","v":""},{"$f":"IF(Table_PI[[#This Row],[List 2]]<>\"\",Table_PI[[#This Row],[List 2]],\"\")","v":""},{"$f":"IF(Table_PI[[#This Row],[List 3]]<>\"\",Table_PI[[#This Row],[List 3]],\"\")","v":""},{"$f":"IF(Table_PI[[#This Row],[Manufacturer]]=\"\",\"\",Table_PI[[#This Row],[Manufacturer]])","v":""},{"$f":"IF(Table_PI[[#This Row],[Model Number]]=\"\",\"\",Table_PI[[#This Row],[Model Number]])","v":""},{"$f":"IF(Table_PI[[#This Row],[Serial Number(s)]]=\"\",\"\",Table_PI[[#This Row],[Serial Number(s)]])","v":""},null,{"$f":"IF(Table_PI[[#This Row],[Size]]=\"\",\"\",Table_PI[[#This Row],[Size]])","v":""},null,null,{"$f":"IF(Table_PI[[#This Row],[Input 1]]<>\"\",Table_PI[[#This Row],[Input 1]],\"\")","v":""},null,null,{"$f":"IF(Table_PI[[#This Row],[Input 2]]<>\"\",Table_PI[[#This Row],[Input 2]],\"\")","v":""},null,null,{"$f":"IF(Table_PI[[#This Row],[Input 3]]<>\"\",Table_PI[[#This Row],[Input 3]],\"\")","v":""},null,null,{"$f":"IF(Table_PI[[#This Row],[Input 4]]<>\"\",Table_PI[[#This Row],[Input 4]],\"\")","v":""},null,null,{"$f":"IF(Table_PI[[#This Row],[Input 4]]<>\"\",Table_PI[[#This Row],[Input 4]],\"\")","v":""},null,null,{"$f":"IF(Table_PI[[#This Row],[Input 4]]<>\"\",Table_PI[[#This Row],[Input 4]],\"\")","v":""},{"$f":"IF(Table_PI[[#This Row],[Quantity]]=\"\",\"\",Table_PI[[#This Row],[Quantity]])","v":""},{"$f":"IF(Table_PI[[#This Row],[Notes]]=\"\",\"\",Table_PI[[#This Row],[Notes]])","v":""},{"$f":"IF(OR(Table_PI[[#This Row],[Hide: Baseline kWh]]=\"\",Table_PI[[#This Row],[Hide: Baseline kWh]]=0,ISTEXT(Table_PI[[#This Row],[Hide: Baseline kWh]])),\"\",Table_PI[[#This Row],[Hide: Baseline kWh]])","v":""},{"$f":"IF(OR(Table_PI[[#This Row],[Hide: Baseline kW]]=\"\",Table_PI[[#This Row],[Hide: Baseline kW]]=0,ISTEXT(Table_PI[[#This Row],[Hide: Baseline kW]])),\"\",Table_PI[[#This Row],[Hide: Baseline kW]])","v":""},{"$f":"IF(OR(Table_PI[[#This Row],[Hide: Proposed kWh]]=\"\",Table_PI[[#This Row],[Hide: Proposed kWh]]=0,ISTEXT(Table_PI[[#This Row],[Hide: Proposed kWh]])),\"\",Table_PI[[#This Row],[Hide: Proposed kWh]])","v":""},{"$f":"IF(OR(Table_PI[[#This Row],[Hide: Proposed kW]]=\"\",Table_PI[[#This Row],[Hide: Proposed kW]]=0,ISTEXT(Table_PI[[#This Row],[Hide: Proposed kW]])),\"\",Table_PI[[#This Row],[Hide: Proposed kW]])","v":""},null,null,{"$f":"IF(OR(Table_PI[[#This Row],[Hide: Rebate]]=\"\",Table_PI[[#This Row],[Hide: Rebate]]=0,ISTEXT(Table_PI[[#This Row],[Hide: Rebate]])),\"\",Table_PI[[#This Row],[Hide: Rebate]])","v":""},null,{"$f":"IF(OR(Table_PI[[#This Row],[Hide: Incremental Cost]]=\"\",Table_PI[[#This Row],[Hide: Incremental Cost]]=0,ISTEXT(Table_PI[[#This Row],[Hide: Incremental Cost]])),\"\",Table_PI[[#This Row],[Hide: Incremental Cost]])","v":""},{"$f":"IFERROR(IF(Table_SummaryPI[[#This Row],[Incentive_Customer]]=\"\",\"\",ROUND(Table_SummaryPI[[#This Row],[Incentive_Customer]]/$AM$401*'Customer Information'!$BC$21,2)),0)","v":""},{"$f":"IF(OR(Table_PI[[#This Row],[Annual kWh]]=\"\",Table_PI[[#This Row],[Annual kWh]]=0,ISTEXT(Table_PI[[#This Row],[Annual kWh]])),\"\",Table_PI[[#This Row],[Annual kWh]])","v":""},{"$f":"IF(OR(Table_PI[[#This Row],[Peak kW]]=\"\",Table_PI[[#This Row],[Peak kW]]=0,ISTEXT(Table_PI[[#This Row],[Peak kW]])),\"\",Table_PI[[#This Row],[Peak kW]])","v":""},{"$f":"IF(Table_SummaryPI[[#This Row],[Line No.]]<>\"\",IF(AND(ISNUMBER(FIND(\"Chiller\",Table_SummaryPI[[#This Row],[P_MeasureOption1]],1)),Table_SummaryPI[[#This Row],[ProposedMeasureCategory]]=\"Air-Cooled (Water-Cooled Replacement)\"),$BD$29*Table_SummaryPI[[#This Row],[Size]]*Table_SummaryPI[[#This Row],[Quantity]]*Table_SummaryPI[[#This Row],[EFLHCooling]],\nIF(ISNUMBER(FIND(\"Dishwasher\",Table_SummaryPI[[#This Row],[ProposedMeasureCategory]],1)),$BH$29*Table_SummaryPI[[#This Row],[Quantity]],\nIF(ISNUMBER(FIND(\"Ice Maker\",Table_SummaryPI[[#This Row],[ProposedMeasureCategory]],1)),$BD$31*Table_SummaryPI[[#This Row],[Quantity]],\nIF(ISNUMBER(FIND(\"Spray Valve\",Table_SummaryPI[[#This Row],[ProposedMeasureCategory]],1)),$BH$31*Table_SummaryPI[[#This Row],[Quantity]],\n0)))),\"\")","v":""},{"$f":"IF(OR(Table_PI[[#This Row],[Hide: Electrification kWh]]=\"\",Table_PI[[#This Row],[Hide: Electrification kWh]]=0,ISTEXT(Table_PI[[#This Row],[Hide: Electrification kWh]])),\"\",Table_PI[[#This Row],[Hide: Electrification kWh]])","v":""},{"$f":"IF(OR(Table_PI[[#This Row],[Hide: Electrification GHG]]=\"\",Table_PI[[#This Row],[Hide: Electrification GHG]]=0,ISTEXT(Table_PI[[#This Row],[Hide: Electrification GHG]])),\"\",Table_PI[[#This Row],[Hide: Electrification GHG]])","v":""},{"$f":"IFERROR(IF(Table_SummaryPI[[#This Row],[kWhSavings]]=\"\",\"\",$BH$9*Table_SummaryPI[[#This Row],[kWhSavings]]),0)","v":""},{"$f":"IFERROR(IF(Table_SummaryPI[[#This Row],[kWhSavings]]=\"\",\"\",$BH$14*Table_SummaryPI[[#This Row],[kWhSavings]]),0)","v":""},{"$f":"IFERROR(IF(Table_SummaryPI[[#This Row],[kWhSavings]]=\"\",\"\",$BH$18*Table_SummaryPI[[#This Row],[kWhSavings]]),0)","v":""},{"$f":"IFERROR(IF(Table_SummaryPI[[#This Row],[kWhSavings]]=\"\",\"\",$BH$22*Table_SummaryPI[[#This Row],[kWhSavings]]),0)","v":""}]
[{"$f":"Table_PI[[#This Row],[Line No.]]","v":""},{"$f":"IF(Table_SummaryPI[[#This Row],[MeasureName]]<>\"\",NOT(ISTEXT(Table_PI[[#This Row],[Rebate]])),\"\")","v":""},{"$f":"IF(Table_SummaryPI[[#This Row],[MeassureCategory]]<>\"\",CONCATENATE(Table_SummaryPI[[#This Row],[MeassureCategory]],  \" - \", Table_SummaryPI[[#This Row],[ProposedMeasureCategory]],  \" - \", TEXT(Table_SummaryPI[[#This Row],[Size]],\"#,##0.00\"),\" \",Table_SummaryPI[[#This Row],[SizeUnit]]),\"\")","v":""},{"$f":"SUBSTITUTE(Table_PI[[#This Row],[Measure]],\"     \",\"\",1)","v":""},{"$f":"IF(Table_PI[[#This Row],[List 1]]<>\"\",Table_PI[[#This Row],[List 1]],\"\")","v":""},{"$f":"IF(Table_PI[[#This Row],[List 2]]<>\"\",Table_PI[[#This Row],[List 2]],\"\")","v":""},{"$f":"IF(Table_PI[[#This Row],[List 3]]<>\"\",Table_PI[[#This Row],[List 3]],\"\")","v":""},{"$f":"IF(Table_PI[[#This Row],[Manufacturer]]=\"\",\"\",Table_PI[[#This Row],[Manufacturer]])","v":""},{"$f":"IF(Table_PI[[#This Row],[Model Number]]=\"\",\"\",Table_PI[[#This Row],[Model Number]])","v":""},{"$f":"IF(Table_PI[[#This Row],[Serial Number(s)]]=\"\",\"\",Table_PI[[#This Row],[Serial Number(s)]])","v":""},null,{"$f":"IF(Table_PI[[#This Row],[Size]]=\"\",\"\",Table_PI[[#This Row],[Size]])","v":""},null,null,{"$f":"IF(Table_PI[[#This Row],[Input 1]]<>\"\",Table_PI[[#This Row],[Input 1]],\"\")","v":""},null,null,{"$f":"IF(Table_PI[[#This Row],[Input 2]]<>\"\",Table_PI[[#This Row],[Input 2]],\"\")","v":""},null,null,{"$f":"IF(Table_PI[[#This Row],[Input 3]]<>\"\",Table_PI[[#This Row],[Input 3]],\"\")","v":""},null,null,{"$f":"IF(Table_PI[[#This Row],[Input 4]]<>\"\",Table_PI[[#This Row],[Input 4]],\"\")","v":""},null,null,{"$f":"IF(Table_PI[[#This Row],[Input 4]]<>\"\",Table_PI[[#This Row],[Input 4]],\"\")","v":""},null,null,{"$f":"IF(Table_PI[[#This Row],[Input 4]]<>\"\",Table_PI[[#This Row],[Input 4]],\"\")","v":""},{"$f":"IF(Table_PI[[#This Row],[Quantity]]=\"\",\"\",Table_PI[[#This Row],[Quantity]])","v":""},{"$f":"IF(Table_PI[[#This Row],[Notes]]=\"\",\"\",Table_PI[[#This Row],[Notes]])","v":""},{"$f":"IF(OR(Table_PI[[#This Row],[Hide: Baseline kWh]]=\"\",Table_PI[[#This Row],[Hide: Baseline kWh]]=0,ISTEXT(Table_PI[[#This Row],[Hide: Baseline kWh]])),\"\",Table_PI[[#This Row],[Hide: Baseline kWh]])","v":""},{"$f":"IF(OR(Table_PI[[#This Row],[Hide: Baseline kW]]=\"\",Table_PI[[#This Row],[Hide: Baseline kW]]=0,ISTEXT(Table_PI[[#This Row],[Hide: Baseline kW]])),\"\",Table_PI[[#This Row],[Hide: Baseline kW]])","v":""},{"$f":"IF(OR(Table_PI[[#This Row],[Hide: Proposed kWh]]=\"\",Table_PI[[#This Row],[Hide: Proposed kWh]]=0,ISTEXT(Table_PI[[#This Row],[Hide: Proposed kWh]])),\"\",Table_PI[[#This Row],[Hide: Proposed kWh]])","v":""},{"$f":"IF(OR(Table_PI[[#This Row],[Hide: Proposed kW]]=\"\",Table_PI[[#This Row],[Hide: Proposed kW]]=0,ISTEXT(Table_PI[[#This Row],[Hide: Proposed kW]])),\"\",Table_PI[[#This Row],[Hide: Proposed kW]])","v":""},null,null,{"$f":"IF(OR(Table_PI[[#This Row],[Hide: Rebate]]=\"\",Table_PI[[#This Row],[Hide: Rebate]]=0,ISTEXT(Table_PI[[#This Row],[Hide: Rebate]])),\"\",Table_PI[[#This Row],[Hide: Rebate]])","v":""},null,{"$f":"IF(OR(Table_PI[[#This Row],[Hide: Incremental Cost]]=\"\",Table_PI[[#This Row],[Hide: Incremental Cost]]=0,ISTEXT(Table_PI[[#This Row],[Hide: Incremental Cost]])),\"\",Table_PI[[#This Row],[Hide: Incremental Cost]])","v":""},{"$f":"IFERROR(IF(Table_SummaryPI[[#This Row],[Incentive_Customer]]=\"\",\"\",ROUND(Table_SummaryPI[[#This Row],[Incentive_Customer]]/$AM$401*'Customer Information'!$BC$21,2)),0)","v":""},{"$f":"IF(OR(Table_PI[[#This Row],[Annual kWh]]=\"\",Table_PI[[#This Row],[Annual kWh]]=0,ISTEXT(Table_PI[[#This Row],[Annual kWh]])),\"\",Table_PI[[#This Row],[Annual kWh]])","v":""},{"$f":"IF(OR(Table_PI[[#This Row],[Peak kW]]=\"\",Table_PI[[#This Row],[Peak kW]]=0,ISTEXT(Table_PI[[#This Row],[Peak kW]])),\"\",Table_PI[[#This Row],[Peak kW]])","v":""},{"$f":"IF(Table_SummaryPI[[#This Row],[Line No.]]<>\"\",IF(AND(ISNUMBER(FIND(\"Chiller\",Table_SummaryPI[[#This Row],[P_MeasureOption1]],1)),Table_SummaryPI[[#This Row],[ProposedMeasureCategory]]=\"Air-Cooled (Water-Cooled Replacement)\"),$BD$29*Table_SummaryPI[[#This Row],[Size]]*Table_SummaryPI[[#This Row],[Quantity]]*Table_SummaryPI[[#This Row],[EFLHCooling]],\nIF(ISNUMBER(FIND(\"Dishwasher\",Table_SummaryPI[[#This Row],[ProposedMeasureCategory]],1)),$BH$29*Table_SummaryPI[[#This Row],[Quantity]],\nIF(ISNUMBER(FIND(\"Ice Maker\",Table_SummaryPI[[#This Row],[ProposedMeasureCategory]],1)),$BD$31*Table_SummaryPI[[#This Row],[Quantity]],\nIF(ISNUMBER(FIND(\"Spray Valve\",Table_SummaryPI[[#This Row],[ProposedMeasureCategory]],1)),$BH$31*Table_SummaryPI[[#This Row],[Quantity]],\n0)))),\"\")","v":""},{"$f":"IF(OR(Table_PI[[#This Row],[Hide: Electrification kWh]]=\"\",Table_PI[[#This Row],[Hide: Electrification kWh]]=0,ISTEXT(Table_PI[[#This Row],[Hide: Electrification kWh]])),\"\",Table_PI[[#This Row],[Hide: Electrification kWh]])","v":""},{"$f":"IF(OR(Table_PI[[#This Row],[Hide: Electrification GHG]]=\"\",Table_PI[[#This Row],[Hide: Electrification GHG]]=0,ISTEXT(Table_PI[[#This Row],[Hide: Electrification GHG]])),\"\",Table_PI[[#This Row],[Hide: Electrification GHG]])","v":""},{"$f":"IFERROR(IF(Table_SummaryPI[[#This Row],[kWhSavings]]=\"\",\"\",$BH$9*Table_SummaryPI[[#This Row],[kWhSavings]]),0)","v":""},{"$f":"IFERROR(IF(Table_SummaryPI[[#This Row],[kWhSavings]]=\"\",\"\",$BH$14*Table_SummaryPI[[#This Row],[kWhSavings]]),0)","v":""},{"$f":"IFERROR(IF(Table_SummaryPI[[#This Row],[kWhSavings]]=\"\",\"\",$BH$18*Table_SummaryPI[[#This Row],[kWhSavings]]),0)","v":""},{"$f":"IFERROR(IF(Table_SummaryPI[[#This Row],[kWhSavings]]=\"\",\"\",$BH$22*Table_SummaryPI[[#This Row],[kWhSavings]]),0)","v":""}]
[{"$f":"Table_PI[[#This Row],[Line No.]]","v":""},{"$f":"IF(Table_SummaryPI[[#This Row],[MeasureName]]<>\"\",NOT(ISTEXT(Table_PI[[#This Row],[Rebate]])),\"\")","v":""},{"$f":"IF(Table_SummaryPI[[#This Row],[MeassureCategory]]<>\"\",CONCATENATE(Table_SummaryPI[[#This Row],[MeassureCategory]],  \" - \", Table_SummaryPI[[#This Row],[ProposedMeasureCategory]],  \" - \", TEXT(Table_SummaryPI[[#This Row],[Size]],\"#,##0.00\"),\" \",Table_SummaryPI[[#This Row],[SizeUnit]]),\"\")","v":""},{"$f":"SUBSTITUTE(Table_PI[[#This Row],[Measure]],\"     \",\"\",1)","v":""},{"$f":"IF(Table_PI[[#This Row],[List 1]]<>\"\",Table_PI[[#This Row],[List 1]],\"\")","v":""},{"$f":"IF(Table_PI[[#This Row],[List 2]]<>\"\",Table_PI[[#This Row],[List 2]],\"\")","v":""},{"$f":"IF(Table_PI[[#This Row],[List 3]]<>\"\",Table_PI[[#This Row],[List 3]],\"\")","v":""},{"$f":"IF(Table_PI[[#This Row],[Manufacturer]]=\"\",\"\",Table_PI[[#This Row],[Manufacturer]])","v":""},{"$f":"IF(Table_PI[[#This Row],[Model Number]]=\"\",\"\",Table_PI[[#This Row],[Model Number]])","v":""},{"$f":"IF(Table_PI[[#This Row],[Serial Number(s)]]=\"\",\"\",Table_PI[[#This Row],[Serial Number(s)]])","v":""},null,{"$f":"IF(Table_PI[[#This Row],[Size]]=\"\",\"\",Table_PI[[#This Row],[Size]])","v":""},null,null,{"$f":"IF(Table_PI[[#This Row],[Input 1]]<>\"\",Table_PI[[#This Row],[Input 1]],\"\")","v":""},null,null,{"$f":"IF(Table_PI[[#This Row],[Input 2]]<>\"\",Table_PI[[#This Row],[Input 2]],\"\")","v":""},null,null,{"$f":"IF(Table_PI[[#This Row],[Input 3]]<>\"\",Table_PI[[#This Row],[Input 3]],\"\")","v":""},null,null,{"$f":"IF(Table_PI[[#This Row],[Input 4]]<>\"\",Table_PI[[#This Row],[Input 4]],\"\")","v":""},null,null,{"$f":"IF(Table_PI[[#This Row],[Input 4]]<>\"\",Table_PI[[#This Row],[Input 4]],\"\")","v":""},null,null,{"$f":"IF(Table_PI[[#This Row],[Input 4]]<>\"\",Table_PI[[#This Row],[Input 4]],\"\")","v":""},{"$f":"IF(Table_PI[[#This Row],[Quantity]]=\"\",\"\",Table_PI[[#This Row],[Quantity]])","v":""},{"$f":"IF(Table_PI[[#This Row],[Notes]]=\"\",\"\",Table_PI[[#This Row],[Notes]])","v":""},{"$f":"IF(OR(Table_PI[[#This Row],[Hide: Baseline kWh]]=\"\",Table_PI[[#This Row],[Hide: Baseline kWh]]=0,ISTEXT(Table_PI[[#This Row],[Hide: Baseline kWh]])),\"\",Table_PI[[#This Row],[Hide: Baseline kWh]])","v":""},{"$f":"IF(OR(Table_PI[[#This Row],[Hide: Baseline kW]]=\"\",Table_PI[[#This Row],[Hide: Baseline kW]]=0,ISTEXT(Table_PI[[#This Row],[Hide: Baseline kW]])),\"\",Table_PI[[#This Row],[Hide: Baseline kW]])","v":""},{"$f":"IF(OR(Table_PI[[#This Row],[Hide: Proposed kWh]]=\"\",Table_PI[[#This Row],[Hide: Proposed kWh]]=0,ISTEXT(Table_PI[[#This Row],[Hide: Proposed kWh]])),\"\",Table_PI[[#This Row],[Hide: Proposed kWh]])","v":""},{"$f":"IF(OR(Table_PI[[#This Row],[Hide: Proposed kW]]=\"\",Table_PI[[#This Row],[Hide: Proposed kW]]=0,ISTEXT(Table_PI[[#This Row],[Hide: Proposed kW]])),\"\",Table_PI[[#This Row],[Hide: Proposed kW]])","v":""},null,null,{"$f":"IF(OR(Table_PI[[#This Row],[Hide: Rebate]]=\"\",Table_PI[[#This Row],[Hide: Rebate]]=0,ISTEXT(Table_PI[[#This Row],[Hide: Rebate]])),\"\",Table_PI[[#This Row],[Hide: Rebate]])","v":""},null,{"$f":"IF(OR(Table_PI[[#This Row],[Hide: Incremental Cost]]=\"\",Table_PI[[#This Row],[Hide: Incremental Cost]]=0,ISTEXT(Table_PI[[#This Row],[Hide: Incremental Cost]])),\"\",Table_PI[[#This Row],[Hide: Incremental Cost]])","v":""},{"$f":"IFERROR(IF(Table_SummaryPI[[#This Row],[Incentive_Customer]]=\"\",\"\",ROUND(Table_SummaryPI[[#This Row],[Incentive_Customer]]/$AM$401*'Customer Information'!$BC$21,2)),0)","v":""},{"$f":"IF(OR(Table_PI[[#This Row],[Annual kWh]]=\"\",Table_PI[[#This Row],[Annual kWh]]=0,ISTEXT(Table_PI[[#This Row],[Annual kWh]])),\"\",Table_PI[[#This Row],[Annual kWh]])","v":""},{"$f":"IF(OR(Table_PI[[#This Row],[Peak kW]]=\"\",Table_PI[[#This Row],[Peak kW]]=0,ISTEXT(Table_PI[[#This Row],[Peak kW]])),\"\",Table_PI[[#This Row],[Peak kW]])","v":""},{"$f":"IF(Table_SummaryPI[[#This Row],[Line No.]]<>\"\",IF(AND(ISNUMBER(FIND(\"Chiller\",Table_SummaryPI[[#This Row],[P_MeasureOption1]],1)),Table_SummaryPI[[#This Row],[ProposedMeasureCategory]]=\"Air-Cooled (Water-Cooled Replacement)\"),$BD$29*Table_SummaryPI[[#This Row],[Size]]*Table_SummaryPI[[#This Row],[Quantity]]*Table_SummaryPI[[#This Row],[EFLHCooling]],\nIF(ISNUMBER(FIND(\"Dishwasher\",Table_SummaryPI[[#This Row],[ProposedMeasureCategory]],1)),$BH$29*Table_SummaryPI[[#This Row],[Quantity]],\nIF(ISNUMBER(FIND(\"Ice Maker\",Table_SummaryPI[[#This Row],[ProposedMeasureCategory]],1)),$BD$31*Table_SummaryPI[[#This Row],[Quantity]],\nIF(ISNUMBER(FIND(\"Spray Valve\",Table_SummaryPI[[#This Row],[ProposedMeasureCategory]],1)),$BH$31*Table_SummaryPI[[#This Row],[Quantity]],\n0)))),\"\")","v":""},{"$f":"IF(OR(Table_PI[[#This Row],[Hide: Electrification kWh]]=\"\",Table_PI[[#This Row],[Hide: Electrification kWh]]=0,ISTEXT(Table_PI[[#This Row],[Hide: Electrification kWh]])),\"\",Table_PI[[#This Row],[Hide: Electrification kWh]])","v":""},{"$f":"IF(OR(Table_PI[[#This Row],[Hide: Electrification GHG]]=\"\",Table_PI[[#This Row],[Hide: Electrification GHG]]=0,ISTEXT(Table_PI[[#This Row],[Hide: Electrification GHG]])),\"\",Table_PI[[#This Row],[Hide: Electrification GHG]])","v":""},{"$f":"IFERROR(IF(Table_SummaryPI[[#This Row],[kWhSavings]]=\"\",\"\",$BH$9*Table_SummaryPI[[#This Row],[kWhSavings]]),0)","v":""},{"$f":"IFERROR(IF(Table_SummaryPI[[#This Row],[kWhSavings]]=\"\",\"\",$BH$14*Table_SummaryPI[[#This Row],[kWhSavings]]),0)","v":""},{"$f":"IFERROR(IF(Table_SummaryPI[[#This Row],[kWhSavings]]=\"\",\"\",$BH$18*Table_SummaryPI[[#This Row],[kWhSavings]]),0)","v":""},{"$f":"IFERROR(IF(Table_SummaryPI[[#This Row],[kWhSavings]]=\"\",\"\",$BH$22*Table_SummaryPI[[#This Row],[kWhSavings]]),0)","v":""}]
[{"$f":"Table_PI[[#This Row],[Line No.]]","v":""},{"$f":"IF(Table_SummaryPI[[#This Row],[MeasureName]]<>\"\",NOT(ISTEXT(Table_PI[[#This Row],[Rebate]])),\"\")","v":""},{"$f":"IF(Table_SummaryPI[[#This Row],[MeassureCategory]]<>\"\",CONCATENATE(Table_SummaryPI[[#This Row],[MeassureCategory]],  \" - \", Table_SummaryPI[[#This Row],[ProposedMeasureCategory]],  \" - \", TEXT(Table_SummaryPI[[#This Row],[Size]],\"#,##0.00\"),\" \",Table_SummaryPI[[#This Row],[SizeUnit]]),\"\")","v":""},{"$f":"SUBSTITUTE(Table_PI[[#This Row],[Measure]],\"     \",\"\",1)","v":""},{"$f":"IF(Table_PI[[#This Row],[List 1]]<>\"\",Table_PI[[#This Row],[List 1]],\"\")","v":""},{"$f":"IF(Table_PI[[#This Row],[List 2]]<>\"\",Table_PI[[#This Row],[List 2]],\"\")","v":""},{"$f":"IF(Table_PI[[#This Row],[List 3]]<>\"\",Table_PI[[#This Row],[List 3]],\"\")","v":""},{"$f":"IF(Table_PI[[#This Row],[Manufacturer]]=\"\",\"\",Table_PI[[#This Row],[Manufacturer]])","v":""},{"$f":"IF(Table_PI[[#This Row],[Model Number]]=\"\",\"\",Table_PI[[#This Row],[Model Number]])","v":""},{"$f":"IF(Table_PI[[#This Row],[Serial Number(s)]]=\"\",\"\",Table_PI[[#This Row],[Serial Number(s)]])","v":""},null,{"$f":"IF(Table_PI[[#This Row],[Size]]=\"\",\"\",Table_PI[[#This Row],[Size]])","v":""},null,null,{"$f":"IF(Table_PI[[#This Row],[Input 1]]<>\"\",Table_PI[[#This Row],[Input 1]],\"\")","v":""},null,null,{"$f":"IF(Table_PI[[#This Row],[Input 2]]<>\"\",Table_PI[[#This Row],[Input 2]],\"\")","v":""},null,null,{"$f":"IF(Table_PI[[#This Row],[Input 3]]<>\"\",Table_PI[[#This Row],[Input 3]],\"\")","v":""},null,null,{"$f":"IF(Table_PI[[#This Row],[Input 4]]<>\"\",Table_PI[[#This Row],[Input 4]],\"\")","v":""},null,null,{"$f":"IF(Table_PI[[#This Row],[Input 4]]<>\"\",Table_PI[[#This Row],[Input 4]],\"\")","v":""},null,null,{"$f":"IF(Table_PI[[#This Row],[Input 4]]<>\"\",Table_PI[[#This Row],[Input 4]],\"\")","v":""},{"$f":"IF(Table_PI[[#This Row],[Quantity]]=\"\",\"\",Table_PI[[#This Row],[Quantity]])","v":""},{"$f":"IF(Table_PI[[#This Row],[Notes]]=\"\",\"\",Table_PI[[#This Row],[Notes]])","v":""},{"$f":"IF(OR(Table_PI[[#This Row],[Hide: Baseline kWh]]=\"\",Table_PI[[#This Row],[Hide: Baseline kWh]]=0,ISTEXT(Table_PI[[#This Row],[Hide: Baseline kWh]])),\"\",Table_PI[[#This Row],[Hide: Baseline kWh]])","v":""},{"$f":"IF(OR(Table_PI[[#This Row],[Hide: Baseline kW]]=\"\",Table_PI[[#This Row],[Hide: Baseline kW]]=0,ISTEXT(Table_PI[[#This Row],[Hide: Baseline kW]])),\"\",Table_PI[[#This Row],[Hide: Baseline kW]])","v":""},{"$f":"IF(OR(Table_PI[[#This Row],[Hide: Proposed kWh]]=\"\",Table_PI[[#This Row],[Hide: Proposed kWh]]=0,ISTEXT(Table_PI[[#This Row],[Hide: Proposed kWh]])),\"\",Table_PI[[#This Row],[Hide: Proposed kWh]])","v":""},{"$f":"IF(OR(Table_PI[[#This Row],[Hide: Proposed kW]]=\"\",Table_PI[[#This Row],[Hide: Proposed kW]]=0,ISTEXT(Table_PI[[#This Row],[Hide: Proposed kW]])),\"\",Table_PI[[#This Row],[Hide: Proposed kW]])","v":""},null,null,{"$f":"IF(OR(Table_PI[[#This Row],[Hide: Rebate]]=\"\",Table_PI[[#This Row],[Hide: Rebate]]=0,ISTEXT(Table_PI[[#This Row],[Hide: Rebate]])),\"\",Table_PI[[#This Row],[Hide: Rebate]])","v":""},null,{"$f":"IF(OR(Table_PI[[#This Row],[Hide: Incremental Cost]]=\"\",Table_PI[[#This Row],[Hide: Incremental Cost]]=0,ISTEXT(Table_PI[[#This Row],[Hide: Incremental Cost]])),\"\",Table_PI[[#This Row],[Hide: Incremental Cost]])","v":""},{"$f":"IFERROR(IF(Table_SummaryPI[[#This Row],[Incentive_Customer]]=\"\",\"\",ROUND(Table_SummaryPI[[#This Row],[Incentive_Customer]]/$AM$401*'Customer Information'!$BC$21,2)),0)","v":""},{"$f":"IF(OR(Table_PI[[#This Row],[Annual kWh]]=\"\",Table_PI[[#This Row],[Annual kWh]]=0,ISTEXT(Table_PI[[#This Row],[Annual kWh]])),\"\",Table_PI[[#This Row],[Annual kWh]])","v":""},{"$f":"IF(OR(Table_PI[[#This Row],[Peak kW]]=\"\",Table_PI[[#This Row],[Peak kW]]=0,ISTEXT(Table_PI[[#This Row],[Peak kW]])),\"\",Table_PI[[#This Row],[Peak kW]])","v":""},{"$f":"IF(Table_SummaryPI[[#This Row],[Line No.]]<>\"\",IF(AND(ISNUMBER(FIND(\"Chiller\",Table_SummaryPI[[#This Row],[P_MeasureOption1]],1)),Table_SummaryPI[[#This Row],[ProposedMeasureCategory]]=\"Air-Cooled (Water-Cooled Replacement)\"),$BD$29*Table_SummaryPI[[#This Row],[Size]]*Table_SummaryPI[[#This Row],[Quantity]]*Table_SummaryPI[[#This Row],[EFLHCooling]],\nIF(ISNUMBER(FIND(\"Dishwasher\",Table_SummaryPI[[#This Row],[ProposedMeasureCategory]],1)),$BH$29*Table_SummaryPI[[#This Row],[Quantity]],\nIF(ISNUMBER(FIND(\"Ice Maker\",Table_SummaryPI[[#This Row],[ProposedMeasureCategory]],1)),$BD$31*Table_SummaryPI[[#This Row],[Quantity]],\nIF(ISNUMBER(FIND(\"Spray Valve\",Table_SummaryPI[[#This Row],[ProposedMeasureCategory]],1)),$BH$31*Table_SummaryPI[[#This Row],[Quantity]],\n0)))),\"\")","v":""},{"$f":"IF(OR(Table_PI[[#This Row],[Hide: Electrification kWh]]=\"\",Table_PI[[#This Row],[Hide: Electrification kWh]]=0,ISTEXT(Table_PI[[#This Row],[Hide: Electrification kWh]])),\"\",Table_PI[[#This Row],[Hide: Electrification kWh]])","v":""},{"$f":"IF(OR(Table_PI[[#This Row],[Hide: Electrification GHG]]=\"\",Table_PI[[#This Row],[Hide: Electrification GHG]]=0,ISTEXT(Table_PI[[#This Row],[Hide: Electrification GHG]])),\"\",Table_PI[[#This Row],[Hide: Electrification GHG]])","v":""},{"$f":"IFERROR(IF(Table_SummaryPI[[#This Row],[kWhSavings]]=\"\",\"\",$BH$9*Table_SummaryPI[[#This Row],[kWhSavings]]),0)","v":""},{"$f":"IFERROR(IF(Table_SummaryPI[[#This Row],[kWhSavings]]=\"\",\"\",$BH$14*Table_SummaryPI[[#This Row],[kWhSavings]]),0)","v":""},{"$f":"IFERROR(IF(Table_SummaryPI[[#This Row],[kWhSavings]]=\"\",\"\",$BH$18*Table_SummaryPI[[#This Row],[kWhSavings]]),0)","v":""},{"$f":"IFERROR(IF(Table_SummaryPI[[#This Row],[kWhSavings]]=\"\",\"\",$BH$22*Table_SummaryPI[[#This Row],[kWhSavings]]),0)","v":""}]
[{"$f":"Table_PI[[#This Row],[Line No.]]","v":""},{"$f":"IF(Table_SummaryPI[[#This Row],[MeasureName]]<>\"\",NOT(ISTEXT(Table_PI[[#This Row],[Rebate]])),\"\")","v":""},{"$f":"IF(Table_SummaryPI[[#This Row],[MeassureCategory]]<>\"\",CONCATENATE(Table_SummaryPI[[#This Row],[MeassureCategory]],  \" - \", Table_SummaryPI[[#This Row],[ProposedMeasureCategory]],  \" - \", TEXT(Table_SummaryPI[[#This Row],[Size]],\"#,##0.00\"),\" \",Table_SummaryPI[[#This Row],[SizeUnit]]),\"\")","v":""},{"$f":"SUBSTITUTE(Table_PI[[#This Row],[Measure]],\"     \",\"\",1)","v":""},{"$f":"IF(Table_PI[[#This Row],[List 1]]<>\"\",Table_PI[[#This Row],[List 1]],\"\")","v":""},{"$f":"IF(Table_PI[[#This Row],[List 2]]<>\"\",Table_PI[[#This Row],[List 2]],\"\")","v":""},{"$f":"IF(Table_PI[[#This Row],[List 3]]<>\"\",Table_PI[[#This Row],[List 3]],\"\")","v":""},{"$f":"IF(Table_PI[[#This Row],[Manufacturer]]=\"\",\"\",Table_PI[[#This Row],[Manufacturer]])","v":""},{"$f":"IF(Table_PI[[#This Row],[Model Number]]=\"\",\"\",Table_PI[[#This Row],[Model Number]])","v":""},{"$f":"IF(Table_PI[[#This Row],[Serial Number(s)]]=\"\",\"\",Table_PI[[#This Row],[Serial Number(s)]])","v":""},null,{"$f":"IF(Table_PI[[#This Row],[Size]]=\"\",\"\",Table_PI[[#This Row],[Size]])","v":""},null,null,{"$f":"IF(Table_PI[[#This Row],[Input 1]]<>\"\",Table_PI[[#This Row],[Input 1]],\"\")","v":""},null,null,{"$f":"IF(Table_PI[[#This Row],[Input 2]]<>\"\",Table_PI[[#This Row],[Input 2]],\"\")","v":""},null,null,{"$f":"IF(Table_PI[[#This Row],[Input 3]]<>\"\",Table_PI[[#This Row],[Input 3]],\"\")","v":""},null,null,{"$f":"IF(Table_PI[[#This Row],[Input 4]]<>\"\",Table_PI[[#This Row],[Input 4]],\"\")","v":""},null,null,{"$f":"IF(Table_PI[[#This Row],[Input 4]]<>\"\",Table_PI[[#This Row],[Input 4]],\"\")","v":""},null,null,{"$f":"IF(Table_PI[[#This Row],[Input 4]]<>\"\",Table_PI[[#This Row],[Input 4]],\"\")","v":""},{"$f":"IF(Table_PI[[#This Row],[Quantity]]=\"\",\"\",Table_PI[[#This Row],[Quantity]])","v":""},{"$f":"IF(Table_PI[[#This Row],[Notes]]=\"\",\"\",Table_PI[[#This Row],[Notes]])","v":""},{"$f":"IF(OR(Table_PI[[#This Row],[Hide: Baseline kWh]]=\"\",Table_PI[[#This Row],[Hide: Baseline kWh]]=0,ISTEXT(Table_PI[[#This Row],[Hide: Baseline kWh]])),\"\",Table_PI[[#This Row],[Hide: Baseline kWh]])","v":""},{"$f":"IF(OR(Table_PI[[#This Row],[Hide: Baseline kW]]=\"\",Table_PI[[#This Row],[Hide: Baseline kW]]=0,ISTEXT(Table_PI[[#This Row],[Hide: Baseline kW]])),\"\",Table_PI[[#This Row],[Hide: Baseline kW]])","v":""},{"$f":"IF(OR(Table_PI[[#This Row],[Hide: Proposed kWh]]=\"\",Table_PI[[#This Row],[Hide: Proposed kWh]]=0,ISTEXT(Table_PI[[#This Row],[Hide: Proposed kWh]])),\"\",Table_PI[[#This Row],[Hide: Proposed kWh]])","v":""},{"$f":"IF(OR(Table_PI[[#This Row],[Hide: Proposed kW]]=\"\",Table_PI[[#This Row],[Hide: Proposed kW]]=0,ISTEXT(Table_PI[[#This Row],[Hide: Proposed kW]])),\"\",Table_PI[[#This Row],[Hide: Proposed kW]])","v":""},null,null,{"$f":"IF(OR(Table_PI[[#This Row],[Hide: Rebate]]=\"\",Table_PI[[#This Row],[Hide: Rebate]]=0,ISTEXT(Table_PI[[#This Row],[Hide: Rebate]])),\"\",Table_PI[[#This Row],[Hide: Rebate]])","v":""},null,{"$f":"IF(OR(Table_PI[[#This Row],[Hide: Incremental Cost]]=\"\",Table_PI[[#This Row],[Hide: Incremental Cost]]=0,ISTEXT(Table_PI[[#This Row],[Hide: Incremental Cost]])),\"\",Table_PI[[#This Row],[Hide: Incremental Cost]])","v":""},{"$f":"IFERROR(IF(Table_SummaryPI[[#This Row],[Incentive_Customer]]=\"\",\"\",ROUND(Table_SummaryPI[[#This Row],[Incentive_Customer]]/$AM$401*'Customer Information'!$BC$21,2)),0)","v":""},{"$f":"IF(OR(Table_PI[[#This Row],[Annual kWh]]=\"\",Table_PI[[#This Row],[Annual kWh]]=0,ISTEXT(Table_PI[[#This Row],[Annual kWh]])),\"\",Table_PI[[#This Row],[Annual kWh]])","v":""},{"$f":"IF(OR(Table_PI[[#This Row],[Peak kW]]=\"\",Table_PI[[#This Row],[Peak kW]]=0,ISTEXT(Table_PI[[#This Row],[Peak kW]])),\"\",Table_PI[[#This Row],[Peak kW]])","v":""},{"$f":"IF(Table_SummaryPI[[#This Row],[Line No.]]<>\"\",IF(AND(ISNUMBER(FIND(\"Chiller\",Table_SummaryPI[[#This Row],[P_MeasureOption1]],1)),Table_SummaryPI[[#This Row],[ProposedMeasureCategory]]=\"Air-Cooled (Water-Cooled Replacement)\"),$BD$29*Table_SummaryPI[[#This Row],[Size]]*Table_SummaryPI[[#This Row],[Quantity]]*Table_SummaryPI[[#This Row],[EFLHCooling]],\nIF(ISNUMBER(FIND(\"Dishwasher\",Table_SummaryPI[[#This Row],[ProposedMeasureCategory]],1)),$BH$29*Table_SummaryPI[[#This Row],[Quantity]],\nIF(ISNUMBER(FIND(\"Ice Maker\",Table_SummaryPI[[#This Row],[ProposedMeasureCategory]],1)),$BD$31*Table_SummaryPI[[#This Row],[Quantity]],\nIF(ISNUMBER(FIND(\"Spray Valve\",Table_SummaryPI[[#This Row],[ProposedMeasureCategory]],1)),$BH$31*Table_SummaryPI[[#This Row],[Quantity]],\n0)))),\"\")","v":""},{"$f":"IF(OR(Table_PI[[#This Row],[Hide: Electrification kWh]]=\"\",Table_PI[[#This Row],[Hide: Electrification kWh]]=0,ISTEXT(Table_PI[[#This Row],[Hide: Electrification kWh]])),\"\",Table_PI[[#This Row],[Hide: Electrification kWh]])","v":""},{"$f":"IF(OR(Table_PI[[#This Row],[Hide: Electrification GHG]]=\"\",Table_PI[[#This Row],[Hide: Electrification GHG]]=0,ISTEXT(Table_PI[[#This Row],[Hide: Electrification GHG]])),\"\",Table_PI[[#This Row],[Hide: Electrification GHG]])","v":""},{"$f":"IFERROR(IF(Table_SummaryPI[[#This Row],[kWhSavings]]=\"\",\"\",$BH$9*Table_SummaryPI[[#This Row],[kWhSavings]]),0)","v":""},{"$f":"IFERROR(IF(Table_SummaryPI[[#This Row],[kWhSavings]]=\"\",\"\",$BH$14*Table_SummaryPI[[#This Row],[kWhSavings]]),0)","v":""},{"$f":"IFERROR(IF(Table_SummaryPI[[#This Row],[kWhSavings]]=\"\",\"\",$BH$18*Table_SummaryPI[[#This Row],[kWhSavings]]),0)","v":""},{"$f":"IFERROR(IF(Table_SummaryPI[[#This Row],[kWhSavings]]=\"\",\"\",$BH$22*Table_SummaryPI[[#This Row],[kWhSavings]]),0)","v":""}]
[{"$f":"Table_PI[[#This Row],[Line No.]]","v":""},{"$f":"IF(Table_SummaryPI[[#This Row],[MeasureName]]<>\"\",NOT(ISTEXT(Table_PI[[#This Row],[Rebate]])),\"\")","v":""},{"$f":"IF(Table_SummaryPI[[#This Row],[MeassureCategory]]<>\"\",CONCATENATE(Table_SummaryPI[[#This Row],[MeassureCategory]],  \" - \", Table_SummaryPI[[#This Row],[ProposedMeasureCategory]],  \" - \", TEXT(Table_SummaryPI[[#This Row],[Size]],\"#,##0.00\"),\" \",Table_SummaryPI[[#This Row],[SizeUnit]]),\"\")","v":""},{"$f":"SUBSTITUTE(Table_PI[[#This Row],[Measure]],\"     \",\"\",1)","v":""},{"$f":"IF(Table_PI[[#This Row],[List 1]]<>\"\",Table_PI[[#This Row],[List 1]],\"\")","v":""},{"$f":"IF(Table_PI[[#This Row],[List 2]]<>\"\",Table_PI[[#This Row],[List 2]],\"\")","v":""},{"$f":"IF(Table_PI[[#This Row],[List 3]]<>\"\",Table_PI[[#This Row],[List 3]],\"\")","v":""},{"$f":"IF(Table_PI[[#This Row],[Manufacturer]]=\"\",\"\",Table_PI[[#This Row],[Manufacturer]])","v":""},{"$f":"IF(Table_PI[[#This Row],[Model Number]]=\"\",\"\",Table_PI[[#This Row],[Model Number]])","v":""},{"$f":"IF(Table_PI[[#This Row],[Serial Number(s)]]=\"\",\"\",Table_PI[[#This Row],[Serial Number(s)]])","v":""},null,{"$f":"IF(Table_PI[[#This Row],[Size]]=\"\",\"\",Table_PI[[#This Row],[Size]])","v":""},null,null,{"$f":"IF(Table_PI[[#This Row],[Input 1]]<>\"\",Table_PI[[#This Row],[Input 1]],\"\")","v":""},null,null,{"$f":"IF(Table_PI[[#This Row],[Input 2]]<>\"\",Table_PI[[#This Row],[Input 2]],\"\")","v":""},null,null,{"$f":"IF(Table_PI[[#This Row],[Input 3]]<>\"\",Table_PI[[#This Row],[Input 3]],\"\")","v":""},null,null,{"$f":"IF(Table_PI[[#This Row],[Input 4]]<>\"\",Table_PI[[#This Row],[Input 4]],\"\")","v":""},null,null,{"$f":"IF(Table_PI[[#This Row],[Input 4]]<>\"\",Table_PI[[#This Row],[Input 4]],\"\")","v":""},null,null,{"$f":"IF(Table_PI[[#This Row],[Input 4]]<>\"\",Table_PI[[#This Row],[Input 4]],\"\")","v":""},{"$f":"IF(Table_PI[[#This Row],[Quantity]]=\"\",\"\",Table_PI[[#This Row],[Quantity]])","v":""},{"$f":"IF(Table_PI[[#This Row],[Notes]]=\"\",\"\",Table_PI[[#This Row],[Notes]])","v":""},{"$f":"IF(OR(Table_PI[[#This Row],[Hide: Baseline kWh]]=\"\",Table_PI[[#This Row],[Hide: Baseline kWh]]=0,ISTEXT(Table_PI[[#This Row],[Hide: Baseline kWh]])),\"\",Table_PI[[#This Row],[Hide: Baseline kWh]])","v":""},{"$f":"IF(OR(Table_PI[[#This Row],[Hide: Baseline kW]]=\"\",Table_PI[[#This Row],[Hide: Baseline kW]]=0,ISTEXT(Table_PI[[#This Row],[Hide: Baseline kW]])),\"\",Table_PI[[#This Row],[Hide: Baseline kW]])","v":""},{"$f":"IF(OR(Table_PI[[#This Row],[Hide: Proposed kWh]]=\"\",Table_PI[[#This Row],[Hide: Proposed kWh]]=0,ISTEXT(Table_PI[[#This Row],[Hide: Proposed kWh]])),\"\",Table_PI[[#This Row],[Hide: Proposed kWh]])","v":""},{"$f":"IF(OR(Table_PI[[#This Row],[Hide: Proposed kW]]=\"\",Table_PI[[#This Row],[Hide: Proposed kW]]=0,ISTEXT(Table_PI[[#This Row],[Hide: Proposed kW]])),\"\",Table_PI[[#This Row],[Hide: Proposed kW]])","v":""},null,null,{"$f":"IF(OR(Table_PI[[#This Row],[Hide: Rebate]]=\"\",Table_PI[[#This Row],[Hide: Rebate]]=0,ISTEXT(Table_PI[[#This Row],[Hide: Rebate]])),\"\",Table_PI[[#This Row],[Hide: Rebate]])","v":""},null,{"$f":"IF(OR(Table_PI[[#This Row],[Hide: Incremental Cost]]=\"\",Table_PI[[#This Row],[Hide: Incremental Cost]]=0,ISTEXT(Table_PI[[#This Row],[Hide: Incremental Cost]])),\"\",Table_PI[[#This Row],[Hide: Incremental Cost]])","v":""},{"$f":"IFERROR(IF(Table_SummaryPI[[#This Row],[Incentive_Customer]]=\"\",\"\",ROUND(Table_SummaryPI[[#This Row],[Incentive_Customer]]/$AM$401*'Customer Information'!$BC$21,2)),0)","v":""},{"$f":"IF(OR(Table_PI[[#This Row],[Annual kWh]]=\"\",Table_PI[[#This Row],[Annual kWh]]=0,ISTEXT(Table_PI[[#This Row],[Annual kWh]])),\"\",Table_PI[[#This Row],[Annual kWh]])","v":""},{"$f":"IF(OR(Table_PI[[#This Row],[Peak kW]]=\"\",Table_PI[[#This Row],[Peak kW]]=0,ISTEXT(Table_PI[[#This Row],[Peak kW]])),\"\",Table_PI[[#This Row],[Peak kW]])","v":""},{"$f":"IF(Table_SummaryPI[[#This Row],[Line No.]]<>\"\",IF(AND(ISNUMBER(FIND(\"Chiller\",Table_SummaryPI[[#This Row],[P_MeasureOption1]],1)),Table_SummaryPI[[#This Row],[ProposedMeasureCategory]]=\"Air-Cooled (Water-Cooled Replacement)\"),$BD$29*Table_SummaryPI[[#This Row],[Size]]*Table_SummaryPI[[#This Row],[Quantity]]*Table_SummaryPI[[#This Row],[EFLHCooling]],\nIF(ISNUMBER(FIND(\"Dishwasher\",Table_SummaryPI[[#This Row],[ProposedMeasureCategory]],1)),$BH$29*Table_SummaryPI[[#This Row],[Quantity]],\nIF(ISNUMBER(FIND(\"Ice Maker\",Table_SummaryPI[[#This Row],[ProposedMeasureCategory]],1)),$BD$31*Table_SummaryPI[[#This Row],[Quantity]],\nIF(ISNUMBER(FIND(\"Spray Valve\",Table_SummaryPI[[#This Row],[ProposedMeasureCategory]],1)),$BH$31*Table_SummaryPI[[#This Row],[Quantity]],\n0)))),\"\")","v":""},{"$f":"IF(OR(Table_PI[[#This Row],[Hide: Electrification kWh]]=\"\",Table_PI[[#This Row],[Hide: Electrification kWh]]=0,ISTEXT(Table_PI[[#This Row],[Hide: Electrification kWh]])),\"\",Table_PI[[#This Row],[Hide: Electrification kWh]])","v":""},{"$f":"IF(OR(Table_PI[[#This Row],[Hide: Electrification GHG]]=\"\",Table_PI[[#This Row],[Hide: Electrification GHG]]=0,ISTEXT(Table_PI[[#This Row],[Hide: Electrification GHG]])),\"\",Table_PI[[#This Row],[Hide: Electrification GHG]])","v":""},{"$f":"IFERROR(IF(Table_SummaryPI[[#This Row],[kWhSavings]]=\"\",\"\",$BH$9*Table_SummaryPI[[#This Row],[kWhSavings]]),0)","v":""},{"$f":"IFERROR(IF(Table_SummaryPI[[#This Row],[kWhSavings]]=\"\",\"\",$BH$14*Table_SummaryPI[[#This Row],[kWhSavings]]),0)","v":""},{"$f":"IFERROR(IF(Table_SummaryPI[[#This Row],[kWhSavings]]=\"\",\"\",$BH$18*Table_SummaryPI[[#This Row],[kWhSavings]]),0)","v":""},{"$f":"IFERROR(IF(Table_SummaryPI[[#This Row],[kWhSavings]]=\"\",\"\",$BH$22*Table_SummaryPI[[#This Row],[kWhSavings]]),0)","v":""}]
[{"$f":"Table_PI[[#This Row],[Line No.]]","v":""},{"$f":"IF(Table_SummaryPI[[#This Row],[MeasureName]]<>\"\",NOT(ISTEXT(Table_PI[[#This Row],[Rebate]])),\"\")","v":""},{"$f":"IF(Table_SummaryPI[[#This Row],[MeassureCategory]]<>\"\",CONCATENATE(Table_SummaryPI[[#This Row],[MeassureCategory]],  \" - \", Table_SummaryPI[[#This Row],[ProposedMeasureCategory]],  \" - \", TEXT(Table_SummaryPI[[#This Row],[Size]],\"#,##0.00\"),\" \",Table_SummaryPI[[#This Row],[SizeUnit]]),\"\")","v":""},{"$f":"SUBSTITUTE(Table_PI[[#This Row],[Measure]],\"     \",\"\",1)","v":""},{"$f":"IF(Table_PI[[#This Row],[List 1]]<>\"\",Table_PI[[#This Row],[List 1]],\"\")","v":""},{"$f":"IF(Table_PI[[#This Row],[List 2]]<>\"\",Table_PI[[#This Row],[List 2]],\"\")","v":""},{"$f":"IF(Table_PI[[#This Row],[List 3]]<>\"\",Table_PI[[#This Row],[List 3]],\"\")","v":""},{"$f":"IF(Table_PI[[#This Row],[Manufacturer]]=\"\",\"\",Table_PI[[#This Row],[Manufacturer]])","v":""},{"$f":"IF(Table_PI[[#This Row],[Model Number]]=\"\",\"\",Table_PI[[#This Row],[Model Number]])","v":""},{"$f":"IF(Table_PI[[#This Row],[Serial Number(s)]]=\"\",\"\",Table_PI[[#This Row],[Serial Number(s)]])","v":""},null,{"$f":"IF(Table_PI[[#This Row],[Size]]=\"\",\"\",Table_PI[[#This Row],[Size]])","v":""},null,null,{"$f":"IF(Table_PI[[#This Row],[Input 1]]<>\"\",Table_PI[[#This Row],[Input 1]],\"\")","v":""},null,null,{"$f":"IF(Table_PI[[#This Row],[Input 2]]<>\"\",Table_PI[[#This Row],[Input 2]],\"\")","v":""},null,null,{"$f":"IF(Table_PI[[#This Row],[Input 3]]<>\"\",Table_PI[[#This Row],[Input 3]],\"\")","v":""},null,null,{"$f":"IF(Table_PI[[#This Row],[Input 4]]<>\"\",Table_PI[[#This Row],[Input 4]],\"\")","v":""},null,null,{"$f":"IF(Table_PI[[#This Row],[Input 4]]<>\"\",Table_PI[[#This Row],[Input 4]],\"\")","v":""},null,null,{"$f":"IF(Table_PI[[#This Row],[Input 4]]<>\"\",Table_PI[[#This Row],[Input 4]],\"\")","v":""},{"$f":"IF(Table_PI[[#This Row],[Quantity]]=\"\",\"\",Table_PI[[#This Row],[Quantity]])","v":""},{"$f":"IF(Table_PI[[#This Row],[Notes]]=\"\",\"\",Table_PI[[#This Row],[Notes]])","v":""},{"$f":"IF(OR(Table_PI[[#This Row],[Hide: Baseline kWh]]=\"\",Table_PI[[#This Row],[Hide: Baseline kWh]]=0,ISTEXT(Table_PI[[#This Row],[Hide: Baseline kWh]])),\"\",Table_PI[[#This Row],[Hide: Baseline kWh]])","v":""},{"$f":"IF(OR(Table_PI[[#This Row],[Hide: Baseline kW]]=\"\",Table_PI[[#This Row],[Hide: Baseline kW]]=0,ISTEXT(Table_PI[[#This Row],[Hide: Baseline kW]])),\"\",Table_PI[[#This Row],[Hide: Baseline kW]])","v":""},{"$f":"IF(OR(Table_PI[[#This Row],[Hide: Proposed kWh]]=\"\",Table_PI[[#This Row],[Hide: Proposed kWh]]=0,ISTEXT(Table_PI[[#This Row],[Hide: Proposed kWh]])),\"\",Table_PI[[#This Row],[Hide: Proposed kWh]])","v":""},{"$f":"IF(OR(Table_PI[[#This Row],[Hide: Proposed kW]]=\"\",Table_PI[[#This Row],[Hide: Proposed kW]]=0,ISTEXT(Table_PI[[#This Row],[Hide: Proposed kW]])),\"\",Table_PI[[#This Row],[Hide: Proposed kW]])","v":""},null,null,{"$f":"IF(OR(Table_PI[[#This Row],[Hide: Rebate]]=\"\",Table_PI[[#This Row],[Hide: Rebate]]=0,ISTEXT(Table_PI[[#This Row],[Hide: Rebate]])),\"\",Table_PI[[#This Row],[Hide: Rebate]])","v":""},null,{"$f":"IF(OR(Table_PI[[#This Row],[Hide: Incremental Cost]]=\"\",Table_PI[[#This Row],[Hide: Incremental Cost]]=0,ISTEXT(Table_PI[[#This Row],[Hide: Incremental Cost]])),\"\",Table_PI[[#This Row],[Hide: Incremental Cost]])","v":""},{"$f":"IFERROR(IF(Table_SummaryPI[[#This Row],[Incentive_Customer]]=\"\",\"\",ROUND(Table_SummaryPI[[#This Row],[Incentive_Customer]]/$AM$401*'Customer Information'!$BC$21,2)),0)","v":""},{"$f":"IF(OR(Table_PI[[#This Row],[Annual kWh]]=\"\",Table_PI[[#This Row],[Annual kWh]]=0,ISTEXT(Table_PI[[#This Row],[Annual kWh]])),\"\",Table_PI[[#This Row],[Annual kWh]])","v":""},{"$f":"IF(OR(Table_PI[[#This Row],[Peak kW]]=\"\",Table_PI[[#This Row],[Peak kW]]=0,ISTEXT(Table_PI[[#This Row],[Peak kW]])),\"\",Table_PI[[#This Row],[Peak kW]])","v":""},{"$f":"IF(Table_SummaryPI[[#This Row],[Line No.]]<>\"\",IF(AND(ISNUMBER(FIND(\"Chiller\",Table_SummaryPI[[#This Row],[P_MeasureOption1]],1)),Table_SummaryPI[[#This Row],[ProposedMeasureCategory]]=\"Air-Cooled (Water-Cooled Replacement)\"),$BD$29*Table_SummaryPI[[#This Row],[Size]]*Table_SummaryPI[[#This Row],[Quantity]]*Table_SummaryPI[[#This Row],[EFLHCooling]],\nIF(ISNUMBER(FIND(\"Dishwasher\",Table_SummaryPI[[#This Row],[ProposedMeasureCategory]],1)),$BH$29*Table_SummaryPI[[#This Row],[Quantity]],\nIF(ISNUMBER(FIND(\"Ice Maker\",Table_SummaryPI[[#This Row],[ProposedMeasureCategory]],1)),$BD$31*Table_SummaryPI[[#This Row],[Quantity]],\nIF(ISNUMBER(FIND(\"Spray Valve\",Table_SummaryPI[[#This Row],[ProposedMeasureCategory]],1)),$BH$31*Table_SummaryPI[[#This Row],[Quantity]],\n0)))),\"\")","v":""},{"$f":"IF(OR(Table_PI[[#This Row],[Hide: Electrification kWh]]=\"\",Table_PI[[#This Row],[Hide: Electrification kWh]]=0,ISTEXT(Table_PI[[#This Row],[Hide: Electrification kWh]])),\"\",Table_PI[[#This Row],[Hide: Electrification kWh]])","v":""},{"$f":"IF(OR(Table_PI[[#This Row],[Hide: Electrification GHG]]=\"\",Table_PI[[#This Row],[Hide: Electrification GHG]]=0,ISTEXT(Table_PI[[#This Row],[Hide: Electrification GHG]])),\"\",Table_PI[[#This Row],[Hide: Electrification GHG]])","v":""},{"$f":"IFERROR(IF(Table_SummaryPI[[#This Row],[kWhSavings]]=\"\",\"\",$BH$9*Table_SummaryPI[[#This Row],[kWhSavings]]),0)","v":""},{"$f":"IFERROR(IF(Table_SummaryPI[[#This Row],[kWhSavings]]=\"\",\"\",$BH$14*Table_SummaryPI[[#This Row],[kWhSavings]]),0)","v":""},{"$f":"IFERROR(IF(Table_SummaryPI[[#This Row],[kWhSavings]]=\"\",\"\",$BH$18*Table_SummaryPI[[#This Row],[kWhSavings]]),0)","v":""},{"$f":"IFERROR(IF(Table_SummaryPI[[#This Row],[kWhSavings]]=\"\",\"\",$BH$22*Table_SummaryPI[[#This Row],[kWhSavings]]),0)","v":""}]
[{"$f":"Table_PI[[#This Row],[Line No.]]","v":""},{"$f":"IF(Table_SummaryPI[[#This Row],[MeasureName]]<>\"\",NOT(ISTEXT(Table_PI[[#This Row],[Rebate]])),\"\")","v":""},{"$f":"IF(Table_SummaryPI[[#This Row],[MeassureCategory]]<>\"\",CONCATENATE(Table_SummaryPI[[#This Row],[MeassureCategory]],  \" - \", Table_SummaryPI[[#This Row],[ProposedMeasureCategory]],  \" - \", TEXT(Table_SummaryPI[[#This Row],[Size]],\"#,##0.00\"),\" \",Table_SummaryPI[[#This Row],[SizeUnit]]),\"\")","v":""},{"$f":"SUBSTITUTE(Table_PI[[#This Row],[Measure]],\"     \",\"\",1)","v":""},{"$f":"IF(Table_PI[[#This Row],[List 1]]<>\"\",Table_PI[[#This Row],[List 1]],\"\")","v":""},{"$f":"IF(Table_PI[[#This Row],[List 2]]<>\"\",Table_PI[[#This Row],[List 2]],\"\")","v":""},{"$f":"IF(Table_PI[[#This Row],[List 3]]<>\"\",Table_PI[[#This Row],[List 3]],\"\")","v":""},{"$f":"IF(Table_PI[[#This Row],[Manufacturer]]=\"\",\"\",Table_PI[[#This Row],[Manufacturer]])","v":""},{"$f":"IF(Table_PI[[#This Row],[Model Number]]=\"\",\"\",Table_PI[[#This Row],[Model Number]])","v":""},{"$f":"IF(Table_PI[[#This Row],[Serial Number(s)]]=\"\",\"\",Table_PI[[#This Row],[Serial Number(s)]])","v":""},null,{"$f":"IF(Table_PI[[#This Row],[Size]]=\"\",\"\",Table_PI[[#This Row],[Size]])","v":""},null,null,{"$f":"IF(Table_PI[[#This Row],[Input 1]]<>\"\",Table_PI[[#This Row],[Input 1]],\"\")","v":""},null,null,{"$f":"IF(Table_PI[[#This Row],[Input 2]]<>\"\",Table_PI[[#This Row],[Input 2]],\"\")","v":""},null,null,{"$f":"IF(Table_PI[[#This Row],[Input 3]]<>\"\",Table_PI[[#This Row],[Input 3]],\"\")","v":""},null,null,{"$f":"IF(Table_PI[[#This Row],[Input 4]]<>\"\",Table_PI[[#This Row],[Input 4]],\"\")","v":""},null,null,{"$f":"IF(Table_PI[[#This Row],[Input 4]]<>\"\",Table_PI[[#This Row],[Input 4]],\"\")","v":""},null,null,{"$f":"IF(Table_PI[[#This Row],[Input 4]]<>\"\",Table_PI[[#This Row],[Input 4]],\"\")","v":""},{"$f":"IF(Table_PI[[#This Row],[Quantity]]=\"\",\"\",Table_PI[[#This Row],[Quantity]])","v":""},{"$f":"IF(Table_PI[[#This Row],[Notes]]=\"\",\"\",Table_PI[[#This Row],[Notes]])","v":""},{"$f":"IF(OR(Table_PI[[#This Row],[Hide: Baseline kWh]]=\"\",Table_PI[[#This Row],[Hide: Baseline kWh]]=0,ISTEXT(Table_PI[[#This Row],[Hide: Baseline kWh]])),\"\",Table_PI[[#This Row],[Hide: Baseline kWh]])","v":""},{"$f":"IF(OR(Table_PI[[#This Row],[Hide: Baseline kW]]=\"\",Table_PI[[#This Row],[Hide: Baseline kW]]=0,ISTEXT(Table_PI[[#This Row],[Hide: Baseline kW]])),\"\",Table_PI[[#This Row],[Hide: Baseline kW]])","v":""},{"$f":"IF(OR(Table_PI[[#This Row],[Hide: Proposed kWh]]=\"\",Table_PI[[#This Row],[Hide: Proposed kWh]]=0,ISTEXT(Table_PI[[#This Row],[Hide: Proposed kWh]])),\"\",Table_PI[[#This Row],[Hide: Proposed kWh]])","v":""},{"$f":"IF(OR(Table_PI[[#This Row],[Hide: Proposed kW]]=\"\",Table_PI[[#This Row],[Hide: Proposed kW]]=0,ISTEXT(Table_PI[[#This Row],[Hide: Proposed kW]])),\"\",Table_PI[[#This Row],[Hide: Proposed kW]])","v":""},null,null,{"$f":"IF(OR(Table_PI[[#This Row],[Hide: Rebate]]=\"\",Table_PI[[#This Row],[Hide: Rebate]]=0,ISTEXT(Table_PI[[#This Row],[Hide: Rebate]])),\"\",Table_PI[[#This Row],[Hide: Rebate]])","v":""},null,{"$f":"IF(OR(Table_PI[[#This Row],[Hide: Incremental Cost]]=\"\",Table_PI[[#This Row],[Hide: Incremental Cost]]=0,ISTEXT(Table_PI[[#This Row],[Hide: Incremental Cost]])),\"\",Table_PI[[#This Row],[Hide: Incremental Cost]])","v":""},{"$f":"IFERROR(IF(Table_SummaryPI[[#This Row],[Incentive_Customer]]=\"\",\"\",ROUND(Table_SummaryPI[[#This Row],[Incentive_Customer]]/$AM$401*'Customer Information'!$BC$21,2)),0)","v":""},{"$f":"IF(OR(Table_PI[[#This Row],[Annual kWh]]=\"\",Table_PI[[#This Row],[Annual kWh]]=0,ISTEXT(Table_PI[[#This Row],[Annual kWh]])),\"\",Table_PI[[#This Row],[Annual kWh]])","v":""},{"$f":"IF(OR(Table_PI[[#This Row],[Peak kW]]=\"\",Table_PI[[#This Row],[Peak kW]]=0,ISTEXT(Table_PI[[#This Row],[Peak kW]])),\"\",Table_PI[[#This Row],[Peak kW]])","v":""},{"$f":"IF(Table_SummaryPI[[#This Row],[Line No.]]<>\"\",IF(AND(ISNUMBER(FIND(\"Chiller\",Table_SummaryPI[[#This Row],[P_MeasureOption1]],1)),Table_SummaryPI[[#This Row],[ProposedMeasureCategory]]=\"Air-Cooled (Water-Cooled Replacement)\"),$BD$29*Table_SummaryPI[[#This Row],[Size]]*Table_SummaryPI[[#This Row],[Quantity]]*Table_SummaryPI[[#This Row],[EFLHCooling]],\nIF(ISNUMBER(FIND(\"Dishwasher\",Table_SummaryPI[[#This Row],[ProposedMeasureCategory]],1)),$BH$29*Table_SummaryPI[[#This Row],[Quantity]],\nIF(ISNUMBER(FIND(\"Ice Maker\",Table_SummaryPI[[#This Row],[ProposedMeasureCategory]],1)),$BD$31*Table_SummaryPI[[#This Row],[Quantity]],\nIF(ISNUMBER(FIND(\"Spray Valve\",Table_SummaryPI[[#This Row],[ProposedMeasureCategory]],1)),$BH$31*Table_SummaryPI[[#This Row],[Quantity]],\n0)))),\"\")","v":""},{"$f":"IF(OR(Table_PI[[#This Row],[Hide: Electrification kWh]]=\"\",Table_PI[[#This Row],[Hide: Electrification kWh]]=0,ISTEXT(Table_PI[[#This Row],[Hide: Electrification kWh]])),\"\",Table_PI[[#This Row],[Hide: Electrification kWh]])","v":""},{"$f":"IF(OR(Table_PI[[#This Row],[Hide: Electrification GHG]]=\"\",Table_PI[[#This Row],[Hide: Electrification GHG]]=0,ISTEXT(Table_PI[[#This Row],[Hide: Electrification GHG]])),\"\",Table_PI[[#This Row],[Hide: Electrification GHG]])","v":""},{"$f":"IFERROR(IF(Table_SummaryPI[[#This Row],[kWhSavings]]=\"\",\"\",$BH$9*Table_SummaryPI[[#This Row],[kWhSavings]]),0)","v":""},{"$f":"IFERROR(IF(Table_SummaryPI[[#This Row],[kWhSavings]]=\"\",\"\",$BH$14*Table_SummaryPI[[#This Row],[kWhSavings]]),0)","v":""},{"$f":"IFERROR(IF(Table_SummaryPI[[#This Row],[kWhSavings]]=\"\",\"\",$BH$18*Table_SummaryPI[[#This Row],[kWhSavings]]),0)","v":""},{"$f":"IFERROR(IF(Table_SummaryPI[[#This Row],[kWhSavings]]=\"\",\"\",$BH$22*Table_SummaryPI[[#This Row],[kWhSavings]]),0)","v":""}]
[{"$f":"Table_PI[[#This Row],[Line No.]]","v":""},{"$f":"IF(Table_SummaryPI[[#This Row],[MeasureName]]<>\"\",NOT(ISTEXT(Table_PI[[#This Row],[Rebate]])),\"\")","v":""},{"$f":"IF(Table_SummaryPI[[#This Row],[MeassureCategory]]<>\"\",CONCATENATE(Table_SummaryPI[[#This Row],[MeassureCategory]],  \" - \", Table_SummaryPI[[#This Row],[ProposedMeasureCategory]],  \" - \", TEXT(Table_SummaryPI[[#This Row],[Size]],\"#,##0.00\"),\" \",Table_SummaryPI[[#This Row],[SizeUnit]]),\"\")","v":""},{"$f":"SUBSTITUTE(Table_PI[[#This Row],[Measure]],\"     \",\"\",1)","v":""},{"$f":"IF(Table_PI[[#This Row],[List 1]]<>\"\",Table_PI[[#This Row],[List 1]],\"\")","v":""},{"$f":"IF(Table_PI[[#This Row],[List 2]]<>\"\",Table_PI[[#This Row],[List 2]],\"\")","v":""},{"$f":"IF(Table_PI[[#This Row],[List 3]]<>\"\",Table_PI[[#This Row],[List 3]],\"\")","v":""},{"$f":"IF(Table_PI[[#This Row],[Manufacturer]]=\"\",\"\",Table_PI[[#This Row],[Manufacturer]])","v":""},{"$f":"IF(Table_PI[[#This Row],[Model Number]]=\"\",\"\",Table_PI[[#This Row],[Model Number]])","v":""},{"$f":"IF(Table_PI[[#This Row],[Serial Number(s)]]=\"\",\"\",Table_PI[[#This Row],[Serial Number(s)]])","v":""},null,{"$f":"IF(Table_PI[[#This Row],[Size]]=\"\",\"\",Table_PI[[#This Row],[Size]])","v":""},null,null,{"$f":"IF(Table_PI[[#This Row],[Input 1]]<>\"\",Table_PI[[#This Row],[Input 1]],\"\")","v":""},null,null,{"$f":"IF(Table_PI[[#This Row],[Input 2]]<>\"\",Table_PI[[#This Row],[Input 2]],\"\")","v":""},null,null,{"$f":"IF(Table_PI[[#This Row],[Input 3]]<>\"\",Table_PI[[#This Row],[Input 3]],\"\")","v":""},null,null,{"$f":"IF(Table_PI[[#This Row],[Input 4]]<>\"\",Table_PI[[#This Row],[Input 4]],\"\")","v":""},null,null,{"$f":"IF(Table_PI[[#This Row],[Input 4]]<>\"\",Table_PI[[#This Row],[Input 4]],\"\")","v":""},null,null,{"$f":"IF(Table_PI[[#This Row],[Input 4]]<>\"\",Table_PI[[#This Row],[Input 4]],\"\")","v":""},{"$f":"IF(Table_PI[[#This Row],[Quantity]]=\"\",\"\",Table_PI[[#This Row],[Quantity]])","v":""},{"$f":"IF(Table_PI[[#This Row],[Notes]]=\"\",\"\",Table_PI[[#This Row],[Notes]])","v":""},{"$f":"IF(OR(Table_PI[[#This Row],[Hide: Baseline kWh]]=\"\",Table_PI[[#This Row],[Hide: Baseline kWh]]=0,ISTEXT(Table_PI[[#This Row],[Hide: Baseline kWh]])),\"\",Table_PI[[#This Row],[Hide: Baseline kWh]])","v":""},{"$f":"IF(OR(Table_PI[[#This Row],[Hide: Baseline kW]]=\"\",Table_PI[[#This Row],[Hide: Baseline kW]]=0,ISTEXT(Table_PI[[#This Row],[Hide: Baseline kW]])),\"\",Table_PI[[#This Row],[Hide: Baseline kW]])","v":""},{"$f":"IF(OR(Table_PI[[#This Row],[Hide: Proposed kWh]]=\"\",Table_PI[[#This Row],[Hide: Proposed kWh]]=0,ISTEXT(Table_PI[[#This Row],[Hide: Proposed kWh]])),\"\",Table_PI[[#This Row],[Hide: Proposed kWh]])","v":""},{"$f":"IF(OR(Table_PI[[#This Row],[Hide: Proposed kW]]=\"\",Table_PI[[#This Row],[Hide: Proposed kW]]=0,ISTEXT(Table_PI[[#This Row],[Hide: Proposed kW]])),\"\",Table_PI[[#This Row],[Hide: Proposed kW]])","v":""},null,null,{"$f":"IF(OR(Table_PI[[#This Row],[Hide: Rebate]]=\"\",Table_PI[[#This Row],[Hide: Rebate]]=0,ISTEXT(Table_PI[[#This Row],[Hide: Rebate]])),\"\",Table_PI[[#This Row],[Hide: Rebate]])","v":""},null,{"$f":"IF(OR(Table_PI[[#This Row],[Hide: Incremental Cost]]=\"\",Table_PI[[#This Row],[Hide: Incremental Cost]]=0,ISTEXT(Table_PI[[#This Row],[Hide: Incremental Cost]])),\"\",Table_PI[[#This Row],[Hide: Incremental Cost]])","v":""},{"$f":"IFERROR(IF(Table_SummaryPI[[#This Row],[Incentive_Customer]]=\"\",\"\",ROUND(Table_SummaryPI[[#This Row],[Incentive_Customer]]/$AM$401*'Customer Information'!$BC$21,2)),0)","v":""},{"$f":"IF(OR(Table_PI[[#This Row],[Annual kWh]]=\"\",Table_PI[[#This Row],[Annual kWh]]=0,ISTEXT(Table_PI[[#This Row],[Annual kWh]])),\"\",Table_PI[[#This Row],[Annual kWh]])","v":""},{"$f":"IF(OR(Table_PI[[#This Row],[Peak kW]]=\"\",Table_PI[[#This Row],[Peak kW]]=0,ISTEXT(Table_PI[[#This Row],[Peak kW]])),\"\",Table_PI[[#This Row],[Peak kW]])","v":""},{"$f":"IF(Table_SummaryPI[[#This Row],[Line No.]]<>\"\",IF(AND(ISNUMBER(FIND(\"Chiller\",Table_SummaryPI[[#This Row],[P_MeasureOption1]],1)),Table_SummaryPI[[#This Row],[ProposedMeasureCategory]]=\"Air-Cooled (Water-Cooled Replacement)\"),$BD$29*Table_SummaryPI[[#This Row],[Size]]*Table_SummaryPI[[#This Row],[Quantity]]*Table_SummaryPI[[#This Row],[EFLHCooling]],\nIF(ISNUMBER(FIND(\"Dishwasher\",Table_SummaryPI[[#This Row],[ProposedMeasureCategory]],1)),$BH$29*Table_SummaryPI[[#This Row],[Quantity]],\nIF(ISNUMBER(FIND(\"Ice Maker\",Table_SummaryPI[[#This Row],[ProposedMeasureCategory]],1)),$BD$31*Table_SummaryPI[[#This Row],[Quantity]],\nIF(ISNUMBER(FIND(\"Spray Valve\",Table_SummaryPI[[#This Row],[ProposedMeasureCategory]],1)),$BH$31*Table_SummaryPI[[#This Row],[Quantity]],\n0)))),\"\")","v":""},{"$f":"IF(OR(Table_PI[[#This Row],[Hide: Electrification kWh]]=\"\",Table_PI[[#This Row],[Hide: Electrification kWh]]=0,ISTEXT(Table_PI[[#This Row],[Hide: Electrification kWh]])),\"\",Table_PI[[#This Row],[Hide: Electrification kWh]])","v":""},{"$f":"IF(OR(Table_PI[[#This Row],[Hide: Electrification GHG]]=\"\",Table_PI[[#This Row],[Hide: Electrification GHG]]=0,ISTEXT(Table_PI[[#This Row],[Hide: Electrification GHG]])),\"\",Table_PI[[#This Row],[Hide: Electrification GHG]])","v":""},{"$f":"IFERROR(IF(Table_SummaryPI[[#This Row],[kWhSavings]]=\"\",\"\",$BH$9*Table_SummaryPI[[#This Row],[kWhSavings]]),0)","v":""},{"$f":"IFERROR(IF(Table_SummaryPI[[#This Row],[kWhSavings]]=\"\",\"\",$BH$14*Table_SummaryPI[[#This Row],[kWhSavings]]),0)","v":""},{"$f":"IFERROR(IF(Table_SummaryPI[[#This Row],[kWhSavings]]=\"\",\"\",$BH$18*Table_SummaryPI[[#This Row],[kWhSavings]]),0)","v":""},{"$f":"IFERROR(IF(Table_SummaryPI[[#This Row],[kWhSavings]]=\"\",\"\",$BH$22*Table_SummaryPI[[#This Row],[kWhSavings]]),0)","v":""}]
[{"$f":"Table_PI[[#This Row],[Line No.]]","v":""},{"$f":"IF(Table_SummaryPI[[#This Row],[MeasureName]]<>\"\",NOT(ISTEXT(Table_PI[[#This Row],[Rebate]])),\"\")","v":""},{"$f":"IF(Table_SummaryPI[[#This Row],[MeassureCategory]]<>\"\",CONCATENATE(Table_SummaryPI[[#This Row],[MeassureCategory]],  \" - \", Table_SummaryPI[[#This Row],[ProposedMeasureCategory]],  \" - \", TEXT(Table_SummaryPI[[#This Row],[Size]],\"#,##0.00\"),\" \",Table_SummaryPI[[#This Row],[SizeUnit]]),\"\")","v":""},{"$f":"SUBSTITUTE(Table_PI[[#This Row],[Measure]],\"     \",\"\",1)","v":""},{"$f":"IF(Table_PI[[#This Row],[List 1]]<>\"\",Table_PI[[#This Row],[List 1]],\"\")","v":""},{"$f":"IF(Table_PI[[#This Row],[List 2]]<>\"\",Table_PI[[#This Row],[List 2]],\"\")","v":""},{"$f":"IF(Table_PI[[#This Row],[List 3]]<>\"\",Table_PI[[#This Row],[List 3]],\"\")","v":""},{"$f":"IF(Table_PI[[#This Row],[Manufacturer]]=\"\",\"\",Table_PI[[#This Row],[Manufacturer]])","v":""},{"$f":"IF(Table_PI[[#This Row],[Model Number]]=\"\",\"\",Table_PI[[#This Row],[Model Number]])","v":""},{"$f":"IF(Table_PI[[#This Row],[Serial Number(s)]]=\"\",\"\",Table_PI[[#This Row],[Serial Number(s)]])","v":""},null,{"$f":"IF(Table_PI[[#This Row],[Size]]=\"\",\"\",Table_PI[[#This Row],[Size]])","v":""},null,null,{"$f":"IF(Table_PI[[#This Row],[Input 1]]<>\"\",Table_PI[[#This Row],[Input 1]],\"\")","v":""},null,null,{"$f":"IF(Table_PI[[#This Row],[Input 2]]<>\"\",Table_PI[[#This Row],[Input 2]],\"\")","v":""},null,null,{"$f":"IF(Table_PI[[#This Row],[Input 3]]<>\"\",Table_PI[[#This Row],[Input 3]],\"\")","v":""},null,null,{"$f":"IF(Table_PI[[#This Row],[Input 4]]<>\"\",Table_PI[[#This Row],[Input 4]],\"\")","v":""},null,null,{"$f":"IF(Table_PI[[#This Row],[Input 4]]<>\"\",Table_PI[[#This Row],[Input 4]],\"\")","v":""},null,null,{"$f":"IF(Table_PI[[#This Row],[Input 4]]<>\"\",Table_PI[[#This Row],[Input 4]],\"\")","v":""},{"$f":"IF(Table_PI[[#This Row],[Quantity]]=\"\",\"\",Table_PI[[#This Row],[Quantity]])","v":""},{"$f":"IF(Table_PI[[#This Row],[Notes]]=\"\",\"\",Table_PI[[#This Row],[Notes]])","v":""},{"$f":"IF(OR(Table_PI[[#This Row],[Hide: Baseline kWh]]=\"\",Table_PI[[#This Row],[Hide: Baseline kWh]]=0,ISTEXT(Table_PI[[#This Row],[Hide: Baseline kWh]])),\"\",Table_PI[[#This Row],[Hide: Baseline kWh]])","v":""},{"$f":"IF(OR(Table_PI[[#This Row],[Hide: Baseline kW]]=\"\",Table_PI[[#This Row],[Hide: Baseline kW]]=0,ISTEXT(Table_PI[[#This Row],[Hide: Baseline kW]])),\"\",Table_PI[[#This Row],[Hide: Baseline kW]])","v":""},{"$f":"IF(OR(Table_PI[[#This Row],[Hide: Proposed kWh]]=\"\",Table_PI[[#This Row],[Hide: Proposed kWh]]=0,ISTEXT(Table_PI[[#This Row],[Hide: Proposed kWh]])),\"\",Table_PI[[#This Row],[Hide: Proposed kWh]])","v":""},{"$f":"IF(OR(Table_PI[[#This Row],[Hide: Proposed kW]]=\"\",Table_PI[[#This Row],[Hide: Proposed kW]]=0,ISTEXT(Table_PI[[#This Row],[Hide: Proposed kW]])),\"\",Table_PI[[#This Row],[Hide: Proposed kW]])","v":""},null,null,{"$f":"IF(OR(Table_PI[[#This Row],[Hide: Rebate]]=\"\",Table_PI[[#This Row],[Hide: Rebate]]=0,ISTEXT(Table_PI[[#This Row],[Hide: Rebate]])),\"\",Table_PI[[#This Row],[Hide: Rebate]])","v":""},null,{"$f":"IF(OR(Table_PI[[#This Row],[Hide: Incremental Cost]]=\"\",Table_PI[[#This Row],[Hide: Incremental Cost]]=0,ISTEXT(Table_PI[[#This Row],[Hide: Incremental Cost]])),\"\",Table_PI[[#This Row],[Hide: Incremental Cost]])","v":""},{"$f":"IFERROR(IF(Table_SummaryPI[[#This Row],[Incentive_Customer]]=\"\",\"\",ROUND(Table_SummaryPI[[#This Row],[Incentive_Customer]]/$AM$401*'Customer Information'!$BC$21,2)),0)","v":""},{"$f":"IF(OR(Table_PI[[#This Row],[Annual kWh]]=\"\",Table_PI[[#This Row],[Annual kWh]]=0,ISTEXT(Table_PI[[#This Row],[Annual kWh]])),\"\",Table_PI[[#This Row],[Annual kWh]])","v":""},{"$f":"IF(OR(Table_PI[[#This Row],[Peak kW]]=\"\",Table_PI[[#This Row],[Peak kW]]=0,ISTEXT(Table_PI[[#This Row],[Peak kW]])),\"\",Table_PI[[#This Row],[Peak kW]])","v":""},{"$f":"IF(Table_SummaryPI[[#This Row],[Line No.]]<>\"\",IF(AND(ISNUMBER(FIND(\"Chiller\",Table_SummaryPI[[#This Row],[P_MeasureOption1]],1)),Table_SummaryPI[[#This Row],[ProposedMeasureCategory]]=\"Air-Cooled (Water-Cooled Replacement)\"),$BD$29*Table_SummaryPI[[#This Row],[Size]]*Table_SummaryPI[[#This Row],[Quantity]]*Table_SummaryPI[[#This Row],[EFLHCooling]],\nIF(ISNUMBER(FIND(\"Dishwasher\",Table_SummaryPI[[#This Row],[ProposedMeasureCategory]],1)),$BH$29*Table_SummaryPI[[#This Row],[Quantity]],\nIF(ISNUMBER(FIND(\"Ice Maker\",Table_SummaryPI[[#This Row],[ProposedMeasureCategory]],1)),$BD$31*Table_SummaryPI[[#This Row],[Quantity]],\nIF(ISNUMBER(FIND(\"Spray Valve\",Table_SummaryPI[[#This Row],[ProposedMeasureCategory]],1)),$BH$31*Table_SummaryPI[[#This Row],[Quantity]],\n0)))),\"\")","v":""},{"$f":"IF(OR(Table_PI[[#This Row],[Hide: Electrification kWh]]=\"\",Table_PI[[#This Row],[Hide: Electrification kWh]]=0,ISTEXT(Table_PI[[#This Row],[Hide: Electrification kWh]])),\"\",Table_PI[[#This Row],[Hide: Electrification kWh]])","v":""},{"$f":"IF(OR(Table_PI[[#This Row],[Hide: Electrification GHG]]=\"\",Table_PI[[#This Row],[Hide: Electrification GHG]]=0,ISTEXT(Table_PI[[#This Row],[Hide: Electrification GHG]])),\"\",Table_PI[[#This Row],[Hide: Electrification GHG]])","v":""},{"$f":"IFERROR(IF(Table_SummaryPI[[#This Row],[kWhSavings]]=\"\",\"\",$BH$9*Table_SummaryPI[[#This Row],[kWhSavings]]),0)","v":""},{"$f":"IFERROR(IF(Table_SummaryPI[[#This Row],[kWhSavings]]=\"\",\"\",$BH$14*Table_SummaryPI[[#This Row],[kWhSavings]]),0)","v":""},{"$f":"IFERROR(IF(Table_SummaryPI[[#This Row],[kWhSavings]]=\"\",\"\",$BH$18*Table_SummaryPI[[#This Row],[kWhSavings]]),0)","v":""},{"$f":"IFERROR(IF(Table_SummaryPI[[#This Row],[kWhSavings]]=\"\",\"\",$BH$22*Table_SummaryPI[[#This Row],[kWhSavings]]),0)","v":""}]
[{"$f":"Table_PI[[#This Row],[Line No.]]","v":""},{"$f":"IF(Table_SummaryPI[[#This Row],[MeasureName]]<>\"\",NOT(ISTEXT(Table_PI[[#This Row],[Rebate]])),\"\")","v":""},{"$f":"IF(Table_SummaryPI[[#This Row],[MeassureCategory]]<>\"\",CONCATENATE(Table_SummaryPI[[#This Row],[MeassureCategory]],  \" - \", Table_SummaryPI[[#This Row],[ProposedMeasureCategory]],  \" - \", TEXT(Table_SummaryPI[[#This Row],[Size]],\"#,##0.00\"),\" \",Table_SummaryPI[[#This Row],[SizeUnit]]),\"\")","v":""},{"$f":"SUBSTITUTE(Table_PI[[#This Row],[Measure]],\"     \",\"\",1)","v":""},{"$f":"IF(Table_PI[[#This Row],[List 1]]<>\"\",Table_PI[[#This Row],[List 1]],\"\")","v":""},{"$f":"IF(Table_PI[[#This Row],[List 2]]<>\"\",Table_PI[[#This Row],[List 2]],\"\")","v":""},{"$f":"IF(Table_PI[[#This Row],[List 3]]<>\"\",Table_PI[[#This Row],[List 3]],\"\")","v":""},{"$f":"IF(Table_PI[[#This Row],[Manufacturer]]=\"\",\"\",Table_PI[[#This Row],[Manufacturer]])","v":""},{"$f":"IF(Table_PI[[#This Row],[Model Number]]=\"\",\"\",Table_PI[[#This Row],[Model Number]])","v":""},{"$f":"IF(Table_PI[[#This Row],[Serial Number(s)]]=\"\",\"\",Table_PI[[#This Row],[Serial Number(s)]])","v":""},null,{"$f":"IF(Table_PI[[#This Row],[Size]]=\"\",\"\",Table_PI[[#This Row],[Size]])","v":""},null,null,{"$f":"IF(Table_PI[[#This Row],[Input 1]]<>\"\",Table_PI[[#This Row],[Input 1]],\"\")","v":""},null,null,{"$f":"IF(Table_PI[[#This Row],[Input 2]]<>\"\",Table_PI[[#This Row],[Input 2]],\"\")","v":""},null,null,{"$f":"IF(Table_PI[[#This Row],[Input 3]]<>\"\",Table_PI[[#This Row],[Input 3]],\"\")","v":""},null,null,{"$f":"IF(Table_PI[[#This Row],[Input 4]]<>\"\",Table_PI[[#This Row],[Input 4]],\"\")","v":""},null,null,{"$f":"IF(Table_PI[[#This Row],[Input 4]]<>\"\",Table_PI[[#This Row],[Input 4]],\"\")","v":""},null,null,{"$f":"IF(Table_PI[[#This Row],[Input 4]]<>\"\",Table_PI[[#This Row],[Input 4]],\"\")","v":""},{"$f":"IF(Table_PI[[#This Row],[Quantity]]=\"\",\"\",Table_PI[[#This Row],[Quantity]])","v":""},{"$f":"IF(Table_PI[[#This Row],[Notes]]=\"\",\"\",Table_PI[[#This Row],[Notes]])","v":""},{"$f":"IF(OR(Table_PI[[#This Row],[Hide: Baseline kWh]]=\"\",Table_PI[[#This Row],[Hide: Baseline kWh]]=0,ISTEXT(Table_PI[[#This Row],[Hide: Baseline kWh]])),\"\",Table_PI[[#This Row],[Hide: Baseline kWh]])","v":""},{"$f":"IF(OR(Table_PI[[#This Row],[Hide: Baseline kW]]=\"\",Table_PI[[#This Row],[Hide: Baseline kW]]=0,ISTEXT(Table_PI[[#This Row],[Hide: Baseline kW]])),\"\",Table_PI[[#This Row],[Hide: Baseline kW]])","v":""},{"$f":"IF(OR(Table_PI[[#This Row],[Hide: Proposed kWh]]=\"\",Table_PI[[#This Row],[Hide: Proposed kWh]]=0,ISTEXT(Table_PI[[#This Row],[Hide: Proposed kWh]])),\"\",Table_PI[[#This Row],[Hide: Proposed kWh]])","v":""},{"$f":"IF(OR(Table_PI[[#This Row],[Hide: Proposed kW]]=\"\",Table_PI[[#This Row],[Hide: Proposed kW]]=0,ISTEXT(Table_PI[[#This Row],[Hide: Proposed kW]])),\"\",Table_PI[[#This Row],[Hide: Proposed kW]])","v":""},null,null,{"$f":"IF(OR(Table_PI[[#This Row],[Hide: Rebate]]=\"\",Table_PI[[#This Row],[Hide: Rebate]]=0,ISTEXT(Table_PI[[#This Row],[Hide: Rebate]])),\"\",Table_PI[[#This Row],[Hide: Rebate]])","v":""},null,{"$f":"IF(OR(Table_PI[[#This Row],[Hide: Incremental Cost]]=\"\",Table_PI[[#This Row],[Hide: Incremental Cost]]=0,ISTEXT(Table_PI[[#This Row],[Hide: Incremental Cost]])),\"\",Table_PI[[#This Row],[Hide: Incremental Cost]])","v":""},{"$f":"IFERROR(IF(Table_SummaryPI[[#This Row],[Incentive_Customer]]=\"\",\"\",ROUND(Table_SummaryPI[[#This Row],[Incentive_Customer]]/$AM$401*'Customer Information'!$BC$21,2)),0)","v":""},{"$f":"IF(OR(Table_PI[[#This Row],[Annual kWh]]=\"\",Table_PI[[#This Row],[Annual kWh]]=0,ISTEXT(Table_PI[[#This Row],[Annual kWh]])),\"\",Table_PI[[#This Row],[Annual kWh]])","v":""},{"$f":"IF(OR(Table_PI[[#This Row],[Peak kW]]=\"\",Table_PI[[#This Row],[Peak kW]]=0,ISTEXT(Table_PI[[#This Row],[Peak kW]])),\"\",Table_PI[[#This Row],[Peak kW]])","v":""},{"$f":"IF(Table_SummaryPI[[#This Row],[Line No.]]<>\"\",IF(AND(ISNUMBER(FIND(\"Chiller\",Table_SummaryPI[[#This Row],[P_MeasureOption1]],1)),Table_SummaryPI[[#This Row],[ProposedMeasureCategory]]=\"Air-Cooled (Water-Cooled Replacement)\"),$BD$29*Table_SummaryPI[[#This Row],[Size]]*Table_SummaryPI[[#This Row],[Quantity]]*Table_SummaryPI[[#This Row],[EFLHCooling]],\nIF(ISNUMBER(FIND(\"Dishwasher\",Table_SummaryPI[[#This Row],[ProposedMeasureCategory]],1)),$BH$29*Table_SummaryPI[[#This Row],[Quantity]],\nIF(ISNUMBER(FIND(\"Ice Maker\",Table_SummaryPI[[#This Row],[ProposedMeasureCategory]],1)),$BD$31*Table_SummaryPI[[#This Row],[Quantity]],\nIF(ISNUMBER(FIND(\"Spray Valve\",Table_SummaryPI[[#This Row],[ProposedMeasureCategory]],1)),$BH$31*Table_SummaryPI[[#This Row],[Quantity]],\n0)))),\"\")","v":""},{"$f":"IF(OR(Table_PI[[#This Row],[Hide: Electrification kWh]]=\"\",Table_PI[[#This Row],[Hide: Electrification kWh]]=0,ISTEXT(Table_PI[[#This Row],[Hide: Electrification kWh]])),\"\",Table_PI[[#This Row],[Hide: Electrification kWh]])","v":""},{"$f":"IF(OR(Table_PI[[#This Row],[Hide: Electrification GHG]]=\"\",Table_PI[[#This Row],[Hide: Electrification GHG]]=0,ISTEXT(Table_PI[[#This Row],[Hide: Electrification GHG]])),\"\",Table_PI[[#This Row],[Hide: Electrification GHG]])","v":""},{"$f":"IFERROR(IF(Table_SummaryPI[[#This Row],[kWhSavings]]=\"\",\"\",$BH$9*Table_SummaryPI[[#This Row],[kWhSavings]]),0)","v":""},{"$f":"IFERROR(IF(Table_SummaryPI[[#This Row],[kWhSavings]]=\"\",\"\",$BH$14*Table_SummaryPI[[#This Row],[kWhSavings]]),0)","v":""},{"$f":"IFERROR(IF(Table_SummaryPI[[#This Row],[kWhSavings]]=\"\",\"\",$BH$18*Table_SummaryPI[[#This Row],[kWhSavings]]),0)","v":""},{"$f":"IFERROR(IF(Table_SummaryPI[[#This Row],[kWhSavings]]=\"\",\"\",$BH$22*Table_SummaryPI[[#This Row],[kWhSavings]]),0)","v":""}]
[{"$f":"Table_PI[[#This Row],[Line No.]]","v":""},{"$f":"IF(Table_SummaryPI[[#This Row],[MeasureName]]<>\"\",NOT(ISTEXT(Table_PI[[#This Row],[Rebate]])),\"\")","v":""},{"$f":"IF(Table_SummaryPI[[#This Row],[MeassureCategory]]<>\"\",CONCATENATE(Table_SummaryPI[[#This Row],[MeassureCategory]],  \" - \", Table_SummaryPI[[#This Row],[ProposedMeasureCategory]],  \" - \", TEXT(Table_SummaryPI[[#This Row],[Size]],\"#,##0.00\"),\" \",Table_SummaryPI[[#This Row],[SizeUnit]]),\"\")","v":""},{"$f":"SUBSTITUTE(Table_PI[[#This Row],[Measure]],\"     \",\"\",1)","v":""},{"$f":"IF(Table_PI[[#This Row],[List 1]]<>\"\",Table_PI[[#This Row],[List 1]],\"\")","v":""},{"$f":"IF(Table_PI[[#This Row],[List 2]]<>\"\",Table_PI[[#This Row],[List 2]],\"\")","v":""},{"$f":"IF(Table_PI[[#This Row],[List 3]]<>\"\",Table_PI[[#This Row],[List 3]],\"\")","v":""},{"$f":"IF(Table_PI[[#This Row],[Manufacturer]]=\"\",\"\",Table_PI[[#This Row],[Manufacturer]])","v":""},{"$f":"IF(Table_PI[[#This Row],[Model Number]]=\"\",\"\",Table_PI[[#This Row],[Model Number]])","v":""},{"$f":"IF(Table_PI[[#This Row],[Serial Number(s)]]=\"\",\"\",Table_PI[[#This Row],[Serial Number(s)]])","v":""},null,{"$f":"IF(Table_PI[[#This Row],[Size]]=\"\",\"\",Table_PI[[#This Row],[Size]])","v":""},null,null,{"$f":"IF(Table_PI[[#This Row],[Input 1]]<>\"\",Table_PI[[#This Row],[Input 1]],\"\")","v":""},null,null,{"$f":"IF(Table_PI[[#This Row],[Input 2]]<>\"\",Table_PI[[#This Row],[Input 2]],\"\")","v":""},null,null,{"$f":"IF(Table_PI[[#This Row],[Input 3]]<>\"\",Table_PI[[#This Row],[Input 3]],\"\")","v":""},null,null,{"$f":"IF(Table_PI[[#This Row],[Input 4]]<>\"\",Table_PI[[#This Row],[Input 4]],\"\")","v":""},null,null,{"$f":"IF(Table_PI[[#This Row],[Input 4]]<>\"\",Table_PI[[#This Row],[Input 4]],\"\")","v":""},null,null,{"$f":"IF(Table_PI[[#This Row],[Input 4]]<>\"\",Table_PI[[#This Row],[Input 4]],\"\")","v":""},{"$f":"IF(Table_PI[[#This Row],[Quantity]]=\"\",\"\",Table_PI[[#This Row],[Quantity]])","v":""},{"$f":"IF(Table_PI[[#This Row],[Notes]]=\"\",\"\",Table_PI[[#This Row],[Notes]])","v":""},{"$f":"IF(OR(Table_PI[[#This Row],[Hide: Baseline kWh]]=\"\",Table_PI[[#This Row],[Hide: Baseline kWh]]=0,ISTEXT(Table_PI[[#This Row],[Hide: Baseline kWh]])),\"\",Table_PI[[#This Row],[Hide: Baseline kWh]])","v":""},{"$f":"IF(OR(Table_PI[[#This Row],[Hide: Baseline kW]]=\"\",Table_PI[[#This Row],[Hide: Baseline kW]]=0,ISTEXT(Table_PI[[#This Row],[Hide: Baseline kW]])),\"\",Table_PI[[#This Row],[Hide: Baseline kW]])","v":""},{"$f":"IF(OR(Table_PI[[#This Row],[Hide: Proposed kWh]]=\"\",Table_PI[[#This Row],[Hide: Proposed kWh]]=0,ISTEXT(Table_PI[[#This Row],[Hide: Proposed kWh]])),\"\",Table_PI[[#This Row],[Hide: Proposed kWh]])","v":""},{"$f":"IF(OR(Table_PI[[#This Row],[Hide: Proposed kW]]=\"\",Table_PI[[#This Row],[Hide: Proposed kW]]=0,ISTEXT(Table_PI[[#This Row],[Hide: Proposed kW]])),\"\",Table_PI[[#This Row],[Hide: Proposed kW]])","v":""},null,null,{"$f":"IF(OR(Table_PI[[#This Row],[Hide: Rebate]]=\"\",Table_PI[[#This Row],[Hide: Rebate]]=0,ISTEXT(Table_PI[[#This Row],[Hide: Rebate]])),\"\",Table_PI[[#This Row],[Hide: Rebate]])","v":""},null,{"$f":"IF(OR(Table_PI[[#This Row],[Hide: Incremental Cost]]=\"\",Table_PI[[#This Row],[Hide: Incremental Cost]]=0,ISTEXT(Table_PI[[#This Row],[Hide: Incremental Cost]])),\"\",Table_PI[[#This Row],[Hide: Incremental Cost]])","v":""},{"$f":"IFERROR(IF(Table_SummaryPI[[#This Row],[Incentive_Customer]]=\"\",\"\",ROUND(Table_SummaryPI[[#This Row],[Incentive_Customer]]/$AM$401*'Customer Information'!$BC$21,2)),0)","v":""},{"$f":"IF(OR(Table_PI[[#This Row],[Annual kWh]]=\"\",Table_PI[[#This Row],[Annual kWh]]=0,ISTEXT(Table_PI[[#This Row],[Annual kWh]])),\"\",Table_PI[[#This Row],[Annual kWh]])","v":""},{"$f":"IF(OR(Table_PI[[#This Row],[Peak kW]]=\"\",Table_PI[[#This Row],[Peak kW]]=0,ISTEXT(Table_PI[[#This Row],[Peak kW]])),\"\",Table_PI[[#This Row],[Peak kW]])","v":""},{"$f":"IF(Table_SummaryPI[[#This Row],[Line No.]]<>\"\",IF(AND(ISNUMBER(FIND(\"Chiller\",Table_SummaryPI[[#This Row],[P_MeasureOption1]],1)),Table_SummaryPI[[#This Row],[ProposedMeasureCategory]]=\"Air-Cooled (Water-Cooled Replacement)\"),$BD$29*Table_SummaryPI[[#This Row],[Size]]*Table_SummaryPI[[#This Row],[Quantity]]*Table_SummaryPI[[#This Row],[EFLHCooling]],\nIF(ISNUMBER(FIND(\"Dishwasher\",Table_SummaryPI[[#This Row],[ProposedMeasureCategory]],1)),$BH$29*Table_SummaryPI[[#This Row],[Quantity]],\nIF(ISNUMBER(FIND(\"Ice Maker\",Table_SummaryPI[[#This Row],[ProposedMeasureCategory]],1)),$BD$31*Table_SummaryPI[[#This Row],[Quantity]],\nIF(ISNUMBER(FIND(\"Spray Valve\",Table_SummaryPI[[#This Row],[ProposedMeasureCategory]],1)),$BH$31*Table_SummaryPI[[#This Row],[Quantity]],\n0)))),\"\")","v":""},{"$f":"IF(OR(Table_PI[[#This Row],[Hide: Electrification kWh]]=\"\",Table_PI[[#This Row],[Hide: Electrification kWh]]=0,ISTEXT(Table_PI[[#This Row],[Hide: Electrification kWh]])),\"\",Table_PI[[#This Row],[Hide: Electrification kWh]])","v":""},{"$f":"IF(OR(Table_PI[[#This Row],[Hide: Electrification GHG]]=\"\",Table_PI[[#This Row],[Hide: Electrification GHG]]=0,ISTEXT(Table_PI[[#This Row],[Hide: Electrification GHG]])),\"\",Table_PI[[#This Row],[Hide: Electrification GHG]])","v":""},{"$f":"IFERROR(IF(Table_SummaryPI[[#This Row],[kWhSavings]]=\"\",\"\",$BH$9*Table_SummaryPI[[#This Row],[kWhSavings]]),0)","v":""},{"$f":"IFERROR(IF(Table_SummaryPI[[#This Row],[kWhSavings]]=\"\",\"\",$BH$14*Table_SummaryPI[[#This Row],[kWhSavings]]),0)","v":""},{"$f":"IFERROR(IF(Table_SummaryPI[[#This Row],[kWhSavings]]=\"\",\"\",$BH$18*Table_SummaryPI[[#This Row],[kWhSavings]]),0)","v":""},{"$f":"IFERROR(IF(Table_SummaryPI[[#This Row],[kWhSavings]]=\"\",\"\",$BH$22*Table_SummaryPI[[#This Row],[kWhSavings]]),0)","v":""}]
[{"$f":"Table_PI[[#This Row],[Line No.]]","v":""},{"$f":"IF(Table_SummaryPI[[#This Row],[MeasureName]]<>\"\",NOT(ISTEXT(Table_PI[[#This Row],[Rebate]])),\"\")","v":""},{"$f":"IF(Table_SummaryPI[[#This Row],[MeassureCategory]]<>\"\",CONCATENATE(Table_SummaryPI[[#This Row],[MeassureCategory]],  \" - \", Table_SummaryPI[[#This Row],[ProposedMeasureCategory]],  \" - \", TEXT(Table_SummaryPI[[#This Row],[Size]],\"#,##0.00\"),\" \",Table_SummaryPI[[#This Row],[SizeUnit]]),\"\")","v":""},{"$f":"SUBSTITUTE(Table_PI[[#This Row],[Measure]],\"     \",\"\",1)","v":""},{"$f":"IF(Table_PI[[#This Row],[List 1]]<>\"\",Table_PI[[#This Row],[List 1]],\"\")","v":""},{"$f":"IF(Table_PI[[#This Row],[List 2]]<>\"\",Table_PI[[#This Row],[List 2]],\"\")","v":""},{"$f":"IF(Table_PI[[#This Row],[List 3]]<>\"\",Table_PI[[#This Row],[List 3]],\"\")","v":""},{"$f":"IF(Table_PI[[#This Row],[Manufacturer]]=\"\",\"\",Table_PI[[#This Row],[Manufacturer]])","v":""},{"$f":"IF(Table_PI[[#This Row],[Model Number]]=\"\",\"\",Table_PI[[#This Row],[Model Number]])","v":""},{"$f":"IF(Table_PI[[#This Row],[Serial Number(s)]]=\"\",\"\",Table_PI[[#This Row],[Serial Number(s)]])","v":""},null,{"$f":"IF(Table_PI[[#This Row],[Size]]=\"\",\"\",Table_PI[[#This Row],[Size]])","v":""},null,null,{"$f":"IF(Table_PI[[#This Row],[Input 1]]<>\"\",Table_PI[[#This Row],[Input 1]],\"\")","v":""},null,null,{"$f":"IF(Table_PI[[#This Row],[Input 2]]<>\"\",Table_PI[[#This Row],[Input 2]],\"\")","v":""},null,null,{"$f":"IF(Table_PI[[#This Row],[Input 3]]<>\"\",Table_PI[[#This Row],[Input 3]],\"\")","v":""},null,null,{"$f":"IF(Table_PI[[#This Row],[Input 4]]<>\"\",Table_PI[[#This Row],[Input 4]],\"\")","v":""},null,null,{"$f":"IF(Table_PI[[#This Row],[Input 4]]<>\"\",Table_PI[[#This Row],[Input 4]],\"\")","v":""},null,null,{"$f":"IF(Table_PI[[#This Row],[Input 4]]<>\"\",Table_PI[[#This Row],[Input 4]],\"\")","v":""},{"$f":"IF(Table_PI[[#This Row],[Quantity]]=\"\",\"\",Table_PI[[#This Row],[Quantity]])","v":""},{"$f":"IF(Table_PI[[#This Row],[Notes]]=\"\",\"\",Table_PI[[#This Row],[Notes]])","v":""},{"$f":"IF(OR(Table_PI[[#This Row],[Hide: Baseline kWh]]=\"\",Table_PI[[#This Row],[Hide: Baseline kWh]]=0,ISTEXT(Table_PI[[#This Row],[Hide: Baseline kWh]])),\"\",Table_PI[[#This Row],[Hide: Baseline kWh]])","v":""},{"$f":"IF(OR(Table_PI[[#This Row],[Hide: Baseline kW]]=\"\",Table_PI[[#This Row],[Hide: Baseline kW]]=0,ISTEXT(Table_PI[[#This Row],[Hide: Baseline kW]])),\"\",Table_PI[[#This Row],[Hide: Baseline kW]])","v":""},{"$f":"IF(OR(Table_PI[[#This Row],[Hide: Proposed kWh]]=\"\",Table_PI[[#This Row],[Hide: Proposed kWh]]=0,ISTEXT(Table_PI[[#This Row],[Hide: Proposed kWh]])),\"\",Table_PI[[#This Row],[Hide: Proposed kWh]])","v":""},{"$f":"IF(OR(Table_PI[[#This Row],[Hide: Proposed kW]]=\"\",Table_PI[[#This Row],[Hide: Proposed kW]]=0,ISTEXT(Table_PI[[#This Row],[Hide: Proposed kW]])),\"\",Table_PI[[#This Row],[Hide: Proposed kW]])","v":""},null,null,{"$f":"IF(OR(Table_PI[[#This Row],[Hide: Rebate]]=\"\",Table_PI[[#This Row],[Hide: Rebate]]=0,ISTEXT(Table_PI[[#This Row],[Hide: Rebate]])),\"\",Table_PI[[#This Row],[Hide: Rebate]])","v":""},null,{"$f":"IF(OR(Table_PI[[#This Row],[Hide: Incremental Cost]]=\"\",Table_PI[[#This Row],[Hide: Incremental Cost]]=0,ISTEXT(Table_PI[[#This Row],[Hide: Incremental Cost]])),\"\",Table_PI[[#This Row],[Hide: Incremental Cost]])","v":""},{"$f":"IFERROR(IF(Table_SummaryPI[[#This Row],[Incentive_Customer]]=\"\",\"\",ROUND(Table_SummaryPI[[#This Row],[Incentive_Customer]]/$AM$401*'Customer Information'!$BC$21,2)),0)","v":""},{"$f":"IF(OR(Table_PI[[#This Row],[Annual kWh]]=\"\",Table_PI[[#This Row],[Annual kWh]]=0,ISTEXT(Table_PI[[#This Row],[Annual kWh]])),\"\",Table_PI[[#This Row],[Annual kWh]])","v":""},{"$f":"IF(OR(Table_PI[[#This Row],[Peak kW]]=\"\",Table_PI[[#This Row],[Peak kW]]=0,ISTEXT(Table_PI[[#This Row],[Peak kW]])),\"\",Table_PI[[#This Row],[Peak kW]])","v":""},{"$f":"IF(Table_SummaryPI[[#This Row],[Line No.]]<>\"\",IF(AND(ISNUMBER(FIND(\"Chiller\",Table_SummaryPI[[#This Row],[P_MeasureOption1]],1)),Table_SummaryPI[[#This Row],[ProposedMeasureCategory]]=\"Air-Cooled (Water-Cooled Replacement)\"),$BD$29*Table_SummaryPI[[#This Row],[Size]]*Table_SummaryPI[[#This Row],[Quantity]]*Table_SummaryPI[[#This Row],[EFLHCooling]],\nIF(ISNUMBER(FIND(\"Dishwasher\",Table_SummaryPI[[#This Row],[ProposedMeasureCategory]],1)),$BH$29*Table_SummaryPI[[#This Row],[Quantity]],\nIF(ISNUMBER(FIND(\"Ice Maker\",Table_SummaryPI[[#This Row],[ProposedMeasureCategory]],1)),$BD$31*Table_SummaryPI[[#This Row],[Quantity]],\nIF(ISNUMBER(FIND(\"Spray Valve\",Table_SummaryPI[[#This Row],[ProposedMeasureCategory]],1)),$BH$31*Table_SummaryPI[[#This Row],[Quantity]],\n0)))),\"\")","v":""},{"$f":"IF(OR(Table_PI[[#This Row],[Hide: Electrification kWh]]=\"\",Table_PI[[#This Row],[Hide: Electrification kWh]]=0,ISTEXT(Table_PI[[#This Row],[Hide: Electrification kWh]])),\"\",Table_PI[[#This Row],[Hide: Electrification kWh]])","v":""},{"$f":"IF(OR(Table_PI[[#This Row],[Hide: Electrification GHG]]=\"\",Table_PI[[#This Row],[Hide: Electrification GHG]]=0,ISTEXT(Table_PI[[#This Row],[Hide: Electrification GHG]])),\"\",Table_PI[[#This Row],[Hide: Electrification GHG]])","v":""},{"$f":"IFERROR(IF(Table_SummaryPI[[#This Row],[kWhSavings]]=\"\",\"\",$BH$9*Table_SummaryPI[[#This Row],[kWhSavings]]),0)","v":""},{"$f":"IFERROR(IF(Table_SummaryPI[[#This Row],[kWhSavings]]=\"\",\"\",$BH$14*Table_SummaryPI[[#This Row],[kWhSavings]]),0)","v":""},{"$f":"IFERROR(IF(Table_SummaryPI[[#This Row],[kWhSavings]]=\"\",\"\",$BH$18*Table_SummaryPI[[#This Row],[kWhSavings]]),0)","v":""},{"$f":"IFERROR(IF(Table_SummaryPI[[#This Row],[kWhSavings]]=\"\",\"\",$BH$22*Table_SummaryPI[[#This Row],[kWhSavings]]),0)","v":""}]
[{"$f":"Table_PI[[#This Row],[Line No.]]","v":""},{"$f":"IF(Table_SummaryPI[[#This Row],[MeasureName]]<>\"\",NOT(ISTEXT(Table_PI[[#This Row],[Rebate]])),\"\")","v":""},{"$f":"IF(Table_SummaryPI[[#This Row],[MeassureCategory]]<>\"\",CONCATENATE(Table_SummaryPI[[#This Row],[MeassureCategory]],  \" - \", Table_SummaryPI[[#This Row],[ProposedMeasureCategory]],  \" - \", TEXT(Table_SummaryPI[[#This Row],[Size]],\"#,##0.00\"),\" \",Table_SummaryPI[[#This Row],[SizeUnit]]),\"\")","v":""},{"$f":"SUBSTITUTE(Table_PI[[#This Row],[Measure]],\"     \",\"\",1)","v":""},{"$f":"IF(Table_PI[[#This Row],[List 1]]<>\"\",Table_PI[[#This Row],[List 1]],\"\")","v":""},{"$f":"IF(Table_PI[[#This Row],[List 2]]<>\"\",Table_PI[[#This Row],[List 2]],\"\")","v":""},{"$f":"IF(Table_PI[[#This Row],[List 3]]<>\"\",Table_PI[[#This Row],[List 3]],\"\")","v":""},{"$f":"IF(Table_PI[[#This Row],[Manufacturer]]=\"\",\"\",Table_PI[[#This Row],[Manufacturer]])","v":""},{"$f":"IF(Table_PI[[#This Row],[Model Number]]=\"\",\"\",Table_PI[[#This Row],[Model Number]])","v":""},{"$f":"IF(Table_PI[[#This Row],[Serial Number(s)]]=\"\",\"\",Table_PI[[#This Row],[Serial Number(s)]])","v":""},null,{"$f":"IF(Table_PI[[#This Row],[Size]]=\"\",\"\",Table_PI[[#This Row],[Size]])","v":""},null,null,{"$f":"IF(Table_PI[[#This Row],[Input 1]]<>\"\",Table_PI[[#This Row],[Input 1]],\"\")","v":""},null,null,{"$f":"IF(Table_PI[[#This Row],[Input 2]]<>\"\",Table_PI[[#This Row],[Input 2]],\"\")","v":""},null,null,{"$f":"IF(Table_PI[[#This Row],[Input 3]]<>\"\",Table_PI[[#This Row],[Input 3]],\"\")","v":""},null,null,{"$f":"IF(Table_PI[[#This Row],[Input 4]]<>\"\",Table_PI[[#This Row],[Input 4]],\"\")","v":""},null,null,{"$f":"IF(Table_PI[[#This Row],[Input 4]]<>\"\",Table_PI[[#This Row],[Input 4]],\"\")","v":""},null,null,{"$f":"IF(Table_PI[[#This Row],[Input 4]]<>\"\",Table_PI[[#This Row],[Input 4]],\"\")","v":""},{"$f":"IF(Table_PI[[#This Row],[Quantity]]=\"\",\"\",Table_PI[[#This Row],[Quantity]])","v":""},{"$f":"IF(Table_PI[[#This Row],[Notes]]=\"\",\"\",Table_PI[[#This Row],[Notes]])","v":""},{"$f":"IF(OR(Table_PI[[#This Row],[Hide: Baseline kWh]]=\"\",Table_PI[[#This Row],[Hide: Baseline kWh]]=0,ISTEXT(Table_PI[[#This Row],[Hide: Baseline kWh]])),\"\",Table_PI[[#This Row],[Hide: Baseline kWh]])","v":""},{"$f":"IF(OR(Table_PI[[#This Row],[Hide: Baseline kW]]=\"\",Table_PI[[#This Row],[Hide: Baseline kW]]=0,ISTEXT(Table_PI[[#This Row],[Hide: Baseline kW]])),\"\",Table_PI[[#This Row],[Hide: Baseline kW]])","v":""},{"$f":"IF(OR(Table_PI[[#This Row],[Hide: Proposed kWh]]=\"\",Table_PI[[#This Row],[Hide: Proposed kWh]]=0,ISTEXT(Table_PI[[#This Row],[Hide: Proposed kWh]])),\"\",Table_PI[[#This Row],[Hide: Proposed kWh]])","v":""},{"$f":"IF(OR(Table_PI[[#This Row],[Hide: Proposed kW]]=\"\",Table_PI[[#This Row],[Hide: Proposed kW]]=0,ISTEXT(Table_PI[[#This Row],[Hide: Proposed kW]])),\"\",Table_PI[[#This Row],[Hide: Proposed kW]])","v":""},null,null,{"$f":"IF(OR(Table_PI[[#This Row],[Hide: Rebate]]=\"\",Table_PI[[#This Row],[Hide: Rebate]]=0,ISTEXT(Table_PI[[#This Row],[Hide: Rebate]])),\"\",Table_PI[[#This Row],[Hide: Rebate]])","v":""},null,{"$f":"IF(OR(Table_PI[[#This Row],[Hide: Incremental Cost]]=\"\",Table_PI[[#This Row],[Hide: Incremental Cost]]=0,ISTEXT(Table_PI[[#This Row],[Hide: Incremental Cost]])),\"\",Table_PI[[#This Row],[Hide: Incremental Cost]])","v":""},{"$f":"IFERROR(IF(Table_SummaryPI[[#This Row],[Incentive_Customer]]=\"\",\"\",ROUND(Table_SummaryPI[[#This Row],[Incentive_Customer]]/$AM$401*'Customer Information'!$BC$21,2)),0)","v":""},{"$f":"IF(OR(Table_PI[[#This Row],[Annual kWh]]=\"\",Table_PI[[#This Row],[Annual kWh]]=0,ISTEXT(Table_PI[[#This Row],[Annual kWh]])),\"\",Table_PI[[#This Row],[Annual kWh]])","v":""},{"$f":"IF(OR(Table_PI[[#This Row],[Peak kW]]=\"\",Table_PI[[#This Row],[Peak kW]]=0,ISTEXT(Table_PI[[#This Row],[Peak kW]])),\"\",Table_PI[[#This Row],[Peak kW]])","v":""},{"$f":"IF(Table_SummaryPI[[#This Row],[Line No.]]<>\"\",IF(AND(ISNUMBER(FIND(\"Chiller\",Table_SummaryPI[[#This Row],[P_MeasureOption1]],1)),Table_SummaryPI[[#This Row],[ProposedMeasureCategory]]=\"Air-Cooled (Water-Cooled Replacement)\"),$BD$29*Table_SummaryPI[[#This Row],[Size]]*Table_SummaryPI[[#This Row],[Quantity]]*Table_SummaryPI[[#This Row],[EFLHCooling]],\nIF(ISNUMBER(FIND(\"Dishwasher\",Table_SummaryPI[[#This Row],[ProposedMeasureCategory]],1)),$BH$29*Table_SummaryPI[[#This Row],[Quantity]],\nIF(ISNUMBER(FIND(\"Ice Maker\",Table_SummaryPI[[#This Row],[ProposedMeasureCategory]],1)),$BD$31*Table_SummaryPI[[#This Row],[Quantity]],\nIF(ISNUMBER(FIND(\"Spray Valve\",Table_SummaryPI[[#This Row],[ProposedMeasureCategory]],1)),$BH$31*Table_SummaryPI[[#This Row],[Quantity]],\n0)))),\"\")","v":""},{"$f":"IF(OR(Table_PI[[#This Row],[Hide: Electrification kWh]]=\"\",Table_PI[[#This Row],[Hide: Electrification kWh]]=0,ISTEXT(Table_PI[[#This Row],[Hide: Electrification kWh]])),\"\",Table_PI[[#This Row],[Hide: Electrification kWh]])","v":""},{"$f":"IF(OR(Table_PI[[#This Row],[Hide: Electrification GHG]]=\"\",Table_PI[[#This Row],[Hide: Electrification GHG]]=0,ISTEXT(Table_PI[[#This Row],[Hide: Electrification GHG]])),\"\",Table_PI[[#This Row],[Hide: Electrification GHG]])","v":""},{"$f":"IFERROR(IF(Table_SummaryPI[[#This Row],[kWhSavings]]=\"\",\"\",$BH$9*Table_SummaryPI[[#This Row],[kWhSavings]]),0)","v":""},{"$f":"IFERROR(IF(Table_SummaryPI[[#This Row],[kWhSavings]]=\"\",\"\",$BH$14*Table_SummaryPI[[#This Row],[kWhSavings]]),0)","v":""},{"$f":"IFERROR(IF(Table_SummaryPI[[#This Row],[kWhSavings]]=\"\",\"\",$BH$18*Table_SummaryPI[[#This Row],[kWhSavings]]),0)","v":""},{"$f":"IFERROR(IF(Table_SummaryPI[[#This Row],[kWhSavings]]=\"\",\"\",$BH$22*Table_SummaryPI[[#This Row],[kWhSavings]]),0)","v":""}]
[{"$f":"Table_PI[[#This Row],[Line No.]]","v":""},{"$f":"IF(Table_SummaryPI[[#This Row],[MeasureName]]<>\"\",NOT(ISTEXT(Table_PI[[#This Row],[Rebate]])),\"\")","v":""},{"$f":"IF(Table_SummaryPI[[#This Row],[MeassureCategory]]<>\"\",CONCATENATE(Table_SummaryPI[[#This Row],[MeassureCategory]],  \" - \", Table_SummaryPI[[#This Row],[ProposedMeasureCategory]],  \" - \", TEXT(Table_SummaryPI[[#This Row],[Size]],\"#,##0.00\"),\" \",Table_SummaryPI[[#This Row],[SizeUnit]]),\"\")","v":""},{"$f":"SUBSTITUTE(Table_PI[[#This Row],[Measure]],\"     \",\"\",1)","v":""},{"$f":"IF(Table_PI[[#This Row],[List 1]]<>\"\",Table_PI[[#This Row],[List 1]],\"\")","v":""},{"$f":"IF(Table_PI[[#This Row],[List 2]]<>\"\",Table_PI[[#This Row],[List 2]],\"\")","v":""},{"$f":"IF(Table_PI[[#This Row],[List 3]]<>\"\",Table_PI[[#This Row],[List 3]],\"\")","v":""},{"$f":"IF(Table_PI[[#This Row],[Manufacturer]]=\"\",\"\",Table_PI[[#This Row],[Manufacturer]])","v":""},{"$f":"IF(Table_PI[[#This Row],[Model Number]]=\"\",\"\",Table_PI[[#This Row],[Model Number]])","v":""},{"$f":"IF(Table_PI[[#This Row],[Serial Number(s)]]=\"\",\"\",Table_PI[[#This Row],[Serial Number(s)]])","v":""},null,{"$f":"IF(Table_PI[[#This Row],[Size]]=\"\",\"\",Table_PI[[#This Row],[Size]])","v":""},null,null,{"$f":"IF(Table_PI[[#This Row],[Input 1]]<>\"\",Table_PI[[#This Row],[Input 1]],\"\")","v":""},null,null,{"$f":"IF(Table_PI[[#This Row],[Input 2]]<>\"\",Table_PI[[#This Row],[Input 2]],\"\")","v":""},null,null,{"$f":"IF(Table_PI[[#This Row],[Input 3]]<>\"\",Table_PI[[#This Row],[Input 3]],\"\")","v":""},null,null,{"$f":"IF(Table_PI[[#This Row],[Input 4]]<>\"\",Table_PI[[#This Row],[Input 4]],\"\")","v":""},null,null,{"$f":"IF(Table_PI[[#This Row],[Input 4]]<>\"\",Table_PI[[#This Row],[Input 4]],\"\")","v":""},null,null,{"$f":"IF(Table_PI[[#This Row],[Input 4]]<>\"\",Table_PI[[#This Row],[Input 4]],\"\")","v":""},{"$f":"IF(Table_PI[[#This Row],[Quantity]]=\"\",\"\",Table_PI[[#This Row],[Quantity]])","v":""},{"$f":"IF(Table_PI[[#This Row],[Notes]]=\"\",\"\",Table_PI[[#This Row],[Notes]])","v":""},{"$f":"IF(OR(Table_PI[[#This Row],[Hide: Baseline kWh]]=\"\",Table_PI[[#This Row],[Hide: Baseline kWh]]=0,ISTEXT(Table_PI[[#This Row],[Hide: Baseline kWh]])),\"\",Table_PI[[#This Row],[Hide: Baseline kWh]])","v":""},{"$f":"IF(OR(Table_PI[[#This Row],[Hide: Baseline kW]]=\"\",Table_PI[[#This Row],[Hide: Baseline kW]]=0,ISTEXT(Table_PI[[#This Row],[Hide: Baseline kW]])),\"\",Table_PI[[#This Row],[Hide: Baseline kW]])","v":""},{"$f":"IF(OR(Table_PI[[#This Row],[Hide: Proposed kWh]]=\"\",Table_PI[[#This Row],[Hide: Proposed kWh]]=0,ISTEXT(Table_PI[[#This Row],[Hide: Proposed kWh]])),\"\",Table_PI[[#This Row],[Hide: Proposed kWh]])","v":""},{"$f":"IF(OR(Table_PI[[#This Row],[Hide: Proposed kW]]=\"\",Table_PI[[#This Row],[Hide: Proposed kW]]=0,ISTEXT(Table_PI[[#This Row],[Hide: Proposed kW]])),\"\",Table_PI[[#This Row],[Hide: Proposed kW]])","v":""},null,null,{"$f":"IF(OR(Table_PI[[#This Row],[Hide: Rebate]]=\"\",Table_PI[[#This Row],[Hide: Rebate]]=0,ISTEXT(Table_PI[[#This Row],[Hide: Rebate]])),\"\",Table_PI[[#This Row],[Hide: Rebate]])","v":""},null,{"$f":"IF(OR(Table_PI[[#This Row],[Hide: Incremental Cost]]=\"\",Table_PI[[#This Row],[Hide: Incremental Cost]]=0,ISTEXT(Table_PI[[#This Row],[Hide: Incremental Cost]])),\"\",Table_PI[[#This Row],[Hide: Incremental Cost]])","v":""},{"$f":"IFERROR(IF(Table_SummaryPI[[#This Row],[Incentive_Customer]]=\"\",\"\",ROUND(Table_SummaryPI[[#This Row],[Incentive_Customer]]/$AM$401*'Customer Information'!$BC$21,2)),0)","v":""},{"$f":"IF(OR(Table_PI[[#This Row],[Annual kWh]]=\"\",Table_PI[[#This Row],[Annual kWh]]=0,ISTEXT(Table_PI[[#This Row],[Annual kWh]])),\"\",Table_PI[[#This Row],[Annual kWh]])","v":""},{"$f":"IF(OR(Table_PI[[#This Row],[Peak kW]]=\"\",Table_PI[[#This Row],[Peak kW]]=0,ISTEXT(Table_PI[[#This Row],[Peak kW]])),\"\",Table_PI[[#This Row],[Peak kW]])","v":""},{"$f":"IF(Table_SummaryPI[[#This Row],[Line No.]]<>\"\",IF(AND(ISNUMBER(FIND(\"Chiller\",Table_SummaryPI[[#This Row],[P_MeasureOption1]],1)),Table_SummaryPI[[#This Row],[ProposedMeasureCategory]]=\"Air-Cooled (Water-Cooled Replacement)\"),$BD$29*Table_SummaryPI[[#This Row],[Size]]*Table_SummaryPI[[#This Row],[Quantity]]*Table_SummaryPI[[#This Row],[EFLHCooling]],\nIF(ISNUMBER(FIND(\"Dishwasher\",Table_SummaryPI[[#This Row],[ProposedMeasureCategory]],1)),$BH$29*Table_SummaryPI[[#This Row],[Quantity]],\nIF(ISNUMBER(FIND(\"Ice Maker\",Table_SummaryPI[[#This Row],[ProposedMeasureCategory]],1)),$BD$31*Table_SummaryPI[[#This Row],[Quantity]],\nIF(ISNUMBER(FIND(\"Spray Valve\",Table_SummaryPI[[#This Row],[ProposedMeasureCategory]],1)),$BH$31*Table_SummaryPI[[#This Row],[Quantity]],\n0)))),\"\")","v":""},{"$f":"IF(OR(Table_PI[[#This Row],[Hide: Electrification kWh]]=\"\",Table_PI[[#This Row],[Hide: Electrification kWh]]=0,ISTEXT(Table_PI[[#This Row],[Hide: Electrification kWh]])),\"\",Table_PI[[#This Row],[Hide: Electrification kWh]])","v":""},{"$f":"IF(OR(Table_PI[[#This Row],[Hide: Electrification GHG]]=\"\",Table_PI[[#This Row],[Hide: Electrification GHG]]=0,ISTEXT(Table_PI[[#This Row],[Hide: Electrification GHG]])),\"\",Table_PI[[#This Row],[Hide: Electrification GHG]])","v":""},{"$f":"IFERROR(IF(Table_SummaryPI[[#This Row],[kWhSavings]]=\"\",\"\",$BH$9*Table_SummaryPI[[#This Row],[kWhSavings]]),0)","v":""},{"$f":"IFERROR(IF(Table_SummaryPI[[#This Row],[kWhSavings]]=\"\",\"\",$BH$14*Table_SummaryPI[[#This Row],[kWhSavings]]),0)","v":""},{"$f":"IFERROR(IF(Table_SummaryPI[[#This Row],[kWhSavings]]=\"\",\"\",$BH$18*Table_SummaryPI[[#This Row],[kWhSavings]]),0)","v":""},{"$f":"IFERROR(IF(Table_SummaryPI[[#This Row],[kWhSavings]]=\"\",\"\",$BH$22*Table_SummaryPI[[#This Row],[kWhSavings]]),0)","v":""}]
[{"$f":"Table_PI[[#This Row],[Line No.]]","v":""},{"$f":"IF(Table_SummaryPI[[#This Row],[MeasureName]]<>\"\",NOT(ISTEXT(Table_PI[[#This Row],[Rebate]])),\"\")","v":""},{"$f":"IF(Table_SummaryPI[[#This Row],[MeassureCategory]]<>\"\",CONCATENATE(Table_SummaryPI[[#This Row],[MeassureCategory]],  \" - \", Table_SummaryPI[[#This Row],[ProposedMeasureCategory]],  \" - \", TEXT(Table_SummaryPI[[#This Row],[Size]],\"#,##0.00\"),\" \",Table_SummaryPI[[#This Row],[SizeUnit]]),\"\")","v":""},{"$f":"SUBSTITUTE(Table_PI[[#This Row],[Measure]],\"     \",\"\",1)","v":""},{"$f":"IF(Table_PI[[#This Row],[List 1]]<>\"\",Table_PI[[#This Row],[List 1]],\"\")","v":""},{"$f":"IF(Table_PI[[#This Row],[List 2]]<>\"\",Table_PI[[#This Row],[List 2]],\"\")","v":""},{"$f":"IF(Table_PI[[#This Row],[List 3]]<>\"\",Table_PI[[#This Row],[List 3]],\"\")","v":""},{"$f":"IF(Table_PI[[#This Row],[Manufacturer]]=\"\",\"\",Table_PI[[#This Row],[Manufacturer]])","v":""},{"$f":"IF(Table_PI[[#This Row],[Model Number]]=\"\",\"\",Table_PI[[#This Row],[Model Number]])","v":""},{"$f":"IF(Table_PI[[#This Row],[Serial Number(s)]]=\"\",\"\",Table_PI[[#This Row],[Serial Number(s)]])","v":""},null,{"$f":"IF(Table_PI[[#This Row],[Size]]=\"\",\"\",Table_PI[[#This Row],[Size]])","v":""},null,null,{"$f":"IF(Table_PI[[#This Row],[Input 1]]<>\"\",Table_PI[[#This Row],[Input 1]],\"\")","v":""},null,null,{"$f":"IF(Table_PI[[#This Row],[Input 2]]<>\"\",Table_PI[[#This Row],[Input 2]],\"\")","v":""},null,null,{"$f":"IF(Table_PI[[#This Row],[Input 3]]<>\"\",Table_PI[[#This Row],[Input 3]],\"\")","v":""},null,null,{"$f":"IF(Table_PI[[#This Row],[Input 4]]<>\"\",Table_PI[[#This Row],[Input 4]],\"\")","v":""},null,null,{"$f":"IF(Table_PI[[#This Row],[Input 4]]<>\"\",Table_PI[[#This Row],[Input 4]],\"\")","v":""},null,null,{"$f":"IF(Table_PI[[#This Row],[Input 4]]<>\"\",Table_PI[[#This Row],[Input 4]],\"\")","v":""},{"$f":"IF(Table_PI[[#This Row],[Quantity]]=\"\",\"\",Table_PI[[#This Row],[Quantity]])","v":""},{"$f":"IF(Table_PI[[#This Row],[Notes]]=\"\",\"\",Table_PI[[#This Row],[Notes]])","v":""},{"$f":"IF(OR(Table_PI[[#This Row],[Hide: Baseline kWh]]=\"\",Table_PI[[#This Row],[Hide: Baseline kWh]]=0,ISTEXT(Table_PI[[#This Row],[Hide: Baseline kWh]])),\"\",Table_PI[[#This Row],[Hide: Baseline kWh]])","v":""},{"$f":"IF(OR(Table_PI[[#This Row],[Hide: Baseline kW]]=\"\",Table_PI[[#This Row],[Hide: Baseline kW]]=0,ISTEXT(Table_PI[[#This Row],[Hide: Baseline kW]])),\"\",Table_PI[[#This Row],[Hide: Baseline kW]])","v":""},{"$f":"IF(OR(Table_PI[[#This Row],[Hide: Proposed kWh]]=\"\",Table_PI[[#This Row],[Hide: Proposed kWh]]=0,ISTEXT(Table_PI[[#This Row],[Hide: Proposed kWh]])),\"\",Table_PI[[#This Row],[Hide: Proposed kWh]])","v":""},{"$f":"IF(OR(Table_PI[[#This Row],[Hide: Proposed kW]]=\"\",Table_PI[[#This Row],[Hide: Proposed kW]]=0,ISTEXT(Table_PI[[#This Row],[Hide: Proposed kW]])),\"\",Table_PI[[#This Row],[Hide: Proposed kW]])","v":""},null,null,{"$f":"IF(OR(Table_PI[[#This Row],[Hide: Rebate]]=\"\",Table_PI[[#This Row],[Hide: Rebate]]=0,ISTEXT(Table_PI[[#This Row],[Hide: Rebate]])),\"\",Table_PI[[#This Row],[Hide: Rebate]])","v":""},null,{"$f":"IF(OR(Table_PI[[#This Row],[Hide: Incremental Cost]]=\"\",Table_PI[[#This Row],[Hide: Incremental Cost]]=0,ISTEXT(Table_PI[[#This Row],[Hide: Incremental Cost]])),\"\",Table_PI[[#This Row],[Hide: Incremental Cost]])","v":""},{"$f":"IFERROR(IF(Table_SummaryPI[[#This Row],[Incentive_Customer]]=\"\",\"\",ROUND(Table_SummaryPI[[#This Row],[Incentive_Customer]]/$AM$401*'Customer Information'!$BC$21,2)),0)","v":""},{"$f":"IF(OR(Table_PI[[#This Row],[Annual kWh]]=\"\",Table_PI[[#This Row],[Annual kWh]]=0,ISTEXT(Table_PI[[#This Row],[Annual kWh]])),\"\",Table_PI[[#This Row],[Annual kWh]])","v":""},{"$f":"IF(OR(Table_PI[[#This Row],[Peak kW]]=\"\",Table_PI[[#This Row],[Peak kW]]=0,ISTEXT(Table_PI[[#This Row],[Peak kW]])),\"\",Table_PI[[#This Row],[Peak kW]])","v":""},{"$f":"IF(Table_SummaryPI[[#This Row],[Line No.]]<>\"\",IF(AND(ISNUMBER(FIND(\"Chiller\",Table_SummaryPI[[#This Row],[P_MeasureOption1]],1)),Table_SummaryPI[[#This Row],[ProposedMeasureCategory]]=\"Air-Cooled (Water-Cooled Replacement)\"),$BD$29*Table_SummaryPI[[#This Row],[Size]]*Table_SummaryPI[[#This Row],[Quantity]]*Table_SummaryPI[[#This Row],[EFLHCooling]],\nIF(ISNUMBER(FIND(\"Dishwasher\",Table_SummaryPI[[#This Row],[ProposedMeasureCategory]],1)),$BH$29*Table_SummaryPI[[#This Row],[Quantity]],\nIF(ISNUMBER(FIND(\"Ice Maker\",Table_SummaryPI[[#This Row],[ProposedMeasureCategory]],1)),$BD$31*Table_SummaryPI[[#This Row],[Quantity]],\nIF(ISNUMBER(FIND(\"Spray Valve\",Table_SummaryPI[[#This Row],[ProposedMeasureCategory]],1)),$BH$31*Table_SummaryPI[[#This Row],[Quantity]],\n0)))),\"\")","v":""},{"$f":"IF(OR(Table_PI[[#This Row],[Hide: Electrification kWh]]=\"\",Table_PI[[#This Row],[Hide: Electrification kWh]]=0,ISTEXT(Table_PI[[#This Row],[Hide: Electrification kWh]])),\"\",Table_PI[[#This Row],[Hide: Electrification kWh]])","v":""},{"$f":"IF(OR(Table_PI[[#This Row],[Hide: Electrification GHG]]=\"\",Table_PI[[#This Row],[Hide: Electrification GHG]]=0,ISTEXT(Table_PI[[#This Row],[Hide: Electrification GHG]])),\"\",Table_PI[[#This Row],[Hide: Electrification GHG]])","v":""},{"$f":"IFERROR(IF(Table_SummaryPI[[#This Row],[kWhSavings]]=\"\",\"\",$BH$9*Table_SummaryPI[[#This Row],[kWhSavings]]),0)","v":""},{"$f":"IFERROR(IF(Table_SummaryPI[[#This Row],[kWhSavings]]=\"\",\"\",$BH$14*Table_SummaryPI[[#This Row],[kWhSavings]]),0)","v":""},{"$f":"IFERROR(IF(Table_SummaryPI[[#This Row],[kWhSavings]]=\"\",\"\",$BH$18*Table_SummaryPI[[#This Row],[kWhSavings]]),0)","v":""},{"$f":"IFERROR(IF(Table_SummaryPI[[#This Row],[kWhSavings]]=\"\",\"\",$BH$22*Table_SummaryPI[[#This Row],[kWhSavings]]),0)","v":""}]
[{"$f":"Table_PI[[#This Row],[Line No.]]","v":""},{"$f":"IF(Table_SummaryPI[[#This Row],[MeasureName]]<>\"\",NOT(ISTEXT(Table_PI[[#This Row],[Rebate]])),\"\")","v":""},{"$f":"IF(Table_SummaryPI[[#This Row],[MeassureCategory]]<>\"\",CONCATENATE(Table_SummaryPI[[#This Row],[MeassureCategory]],  \" - \", Table_SummaryPI[[#This Row],[ProposedMeasureCategory]],  \" - \", TEXT(Table_SummaryPI[[#This Row],[Size]],\"#,##0.00\"),\" \",Table_SummaryPI[[#This Row],[SizeUnit]]),\"\")","v":""},{"$f":"SUBSTITUTE(Table_PI[[#This Row],[Measure]],\"     \",\"\",1)","v":""},{"$f":"IF(Table_PI[[#This Row],[List 1]]<>\"\",Table_PI[[#This Row],[List 1]],\"\")","v":""},{"$f":"IF(Table_PI[[#This Row],[List 2]]<>\"\",Table_PI[[#This Row],[List 2]],\"\")","v":""},{"$f":"IF(Table_PI[[#This Row],[List 3]]<>\"\",Table_PI[[#This Row],[List 3]],\"\")","v":""},{"$f":"IF(Table_PI[[#This Row],[Manufacturer]]=\"\",\"\",Table_PI[[#This Row],[Manufacturer]])","v":""},{"$f":"IF(Table_PI[[#This Row],[Model Number]]=\"\",\"\",Table_PI[[#This Row],[Model Number]])","v":""},{"$f":"IF(Table_PI[[#This Row],[Serial Number(s)]]=\"\",\"\",Table_PI[[#This Row],[Serial Number(s)]])","v":""},null,{"$f":"IF(Table_PI[[#This Row],[Size]]=\"\",\"\",Table_PI[[#This Row],[Size]])","v":""},null,null,{"$f":"IF(Table_PI[[#This Row],[Input 1]]<>\"\",Table_PI[[#This Row],[Input 1]],\"\")","v":""},null,null,{"$f":"IF(Table_PI[[#This Row],[Input 2]]<>\"\",Table_PI[[#This Row],[Input 2]],\"\")","v":""},null,null,{"$f":"IF(Table_PI[[#This Row],[Input 3]]<>\"\",Table_PI[[#This Row],[Input 3]],\"\")","v":""},null,null,{"$f":"IF(Table_PI[[#This Row],[Input 4]]<>\"\",Table_PI[[#This Row],[Input 4]],\"\")","v":""},null,null,{"$f":"IF(Table_PI[[#This Row],[Input 4]]<>\"\",Table_PI[[#This Row],[Input 4]],\"\")","v":""},null,null,{"$f":"IF(Table_PI[[#This Row],[Input 4]]<>\"\",Table_PI[[#This Row],[Input 4]],\"\")","v":""},{"$f":"IF(Table_PI[[#This Row],[Quantity]]=\"\",\"\",Table_PI[[#This Row],[Quantity]])","v":""},{"$f":"IF(Table_PI[[#This Row],[Notes]]=\"\",\"\",Table_PI[[#This Row],[Notes]])","v":""},{"$f":"IF(OR(Table_PI[[#This Row],[Hide: Baseline kWh]]=\"\",Table_PI[[#This Row],[Hide: Baseline kWh]]=0,ISTEXT(Table_PI[[#This Row],[Hide: Baseline kWh]])),\"\",Table_PI[[#This Row],[Hide: Baseline kWh]])","v":""},{"$f":"IF(OR(Table_PI[[#This Row],[Hide: Baseline kW]]=\"\",Table_PI[[#This Row],[Hide: Baseline kW]]=0,ISTEXT(Table_PI[[#This Row],[Hide: Baseline kW]])),\"\",Table_PI[[#This Row],[Hide: Baseline kW]])","v":""},{"$f":"IF(OR(Table_PI[[#This Row],[Hide: Proposed kWh]]=\"\",Table_PI[[#This Row],[Hide: Proposed kWh]]=0,ISTEXT(Table_PI[[#This Row],[Hide: Proposed kWh]])),\"\",Table_PI[[#This Row],[Hide: Proposed kWh]])","v":""},{"$f":"IF(OR(Table_PI[[#This Row],[Hide: Proposed kW]]=\"\",Table_PI[[#This Row],[Hide: Proposed kW]]=0,ISTEXT(Table_PI[[#This Row],[Hide: Proposed kW]])),\"\",Table_PI[[#This Row],[Hide: Proposed kW]])","v":""},null,null,{"$f":"IF(OR(Table_PI[[#This Row],[Hide: Rebate]]=\"\",Table_PI[[#This Row],[Hide: Rebate]]=0,ISTEXT(Table_PI[[#This Row],[Hide: Rebate]])),\"\",Table_PI[[#This Row],[Hide: Rebate]])","v":""},null,{"$f":"IF(OR(Table_PI[[#This Row],[Hide: Incremental Cost]]=\"\",Table_PI[[#This Row],[Hide: Incremental Cost]]=0,ISTEXT(Table_PI[[#This Row],[Hide: Incremental Cost]])),\"\",Table_PI[[#This Row],[Hide: Incremental Cost]])","v":""},{"$f":"IFERROR(IF(Table_SummaryPI[[#This Row],[Incentive_Customer]]=\"\",\"\",ROUND(Table_SummaryPI[[#This Row],[Incentive_Customer]]/$AM$401*'Customer Information'!$BC$21,2)),0)","v":""},{"$f":"IF(OR(Table_PI[[#This Row],[Annual kWh]]=\"\",Table_PI[[#This Row],[Annual kWh]]=0,ISTEXT(Table_PI[[#This Row],[Annual kWh]])),\"\",Table_PI[[#This Row],[Annual kWh]])","v":""},{"$f":"IF(OR(Table_PI[[#This Row],[Peak kW]]=\"\",Table_PI[[#This Row],[Peak kW]]=0,ISTEXT(Table_PI[[#This Row],[Peak kW]])),\"\",Table_PI[[#This Row],[Peak kW]])","v":""},{"$f":"IF(Table_SummaryPI[[#This Row],[Line No.]]<>\"\",IF(AND(ISNUMBER(FIND(\"Chiller\",Table_SummaryPI[[#This Row],[P_MeasureOption1]],1)),Table_SummaryPI[[#This Row],[ProposedMeasureCategory]]=\"Air-Cooled (Water-Cooled Replacement)\"),$BD$29*Table_SummaryPI[[#This Row],[Size]]*Table_SummaryPI[[#This Row],[Quantity]]*Table_SummaryPI[[#This Row],[EFLHCooling]],\nIF(ISNUMBER(FIND(\"Dishwasher\",Table_SummaryPI[[#This Row],[ProposedMeasureCategory]],1)),$BH$29*Table_SummaryPI[[#This Row],[Quantity]],\nIF(ISNUMBER(FIND(\"Ice Maker\",Table_SummaryPI[[#This Row],[ProposedMeasureCategory]],1)),$BD$31*Table_SummaryPI[[#This Row],[Quantity]],\nIF(ISNUMBER(FIND(\"Spray Valve\",Table_SummaryPI[[#This Row],[ProposedMeasureCategory]],1)),$BH$31*Table_SummaryPI[[#This Row],[Quantity]],\n0)))),\"\")","v":""},{"$f":"IF(OR(Table_PI[[#This Row],[Hide: Electrification kWh]]=\"\",Table_PI[[#This Row],[Hide: Electrification kWh]]=0,ISTEXT(Table_PI[[#This Row],[Hide: Electrification kWh]])),\"\",Table_PI[[#This Row],[Hide: Electrification kWh]])","v":""},{"$f":"IF(OR(Table_PI[[#This Row],[Hide: Electrification GHG]]=\"\",Table_PI[[#This Row],[Hide: Electrification GHG]]=0,ISTEXT(Table_PI[[#This Row],[Hide: Electrification GHG]])),\"\",Table_PI[[#This Row],[Hide: Electrification GHG]])","v":""},{"$f":"IFERROR(IF(Table_SummaryPI[[#This Row],[kWhSavings]]=\"\",\"\",$BH$9*Table_SummaryPI[[#This Row],[kWhSavings]]),0)","v":""},{"$f":"IFERROR(IF(Table_SummaryPI[[#This Row],[kWhSavings]]=\"\",\"\",$BH$14*Table_SummaryPI[[#This Row],[kWhSavings]]),0)","v":""},{"$f":"IFERROR(IF(Table_SummaryPI[[#This Row],[kWhSavings]]=\"\",\"\",$BH$18*Table_SummaryPI[[#This Row],[kWhSavings]]),0)","v":""},{"$f":"IFERROR(IF(Table_SummaryPI[[#This Row],[kWhSavings]]=\"\",\"\",$BH$22*Table_SummaryPI[[#This Row],[kWhSavings]]),0)","v":""}]
[{"$f":"Table_PI[[#This Row],[Line No.]]","v":""},{"$f":"IF(Table_SummaryPI[[#This Row],[MeasureName]]<>\"\",NOT(ISTEXT(Table_PI[[#This Row],[Rebate]])),\"\")","v":""},{"$f":"IF(Table_SummaryPI[[#This Row],[MeassureCategory]]<>\"\",CONCATENATE(Table_SummaryPI[[#This Row],[MeassureCategory]],  \" - \", Table_SummaryPI[[#This Row],[ProposedMeasureCategory]],  \" - \", TEXT(Table_SummaryPI[[#This Row],[Size]],\"#,##0.00\"),\" \",Table_SummaryPI[[#This Row],[SizeUnit]]),\"\")","v":""},{"$f":"SUBSTITUTE(Table_PI[[#This Row],[Measure]],\"     \",\"\",1)","v":""},{"$f":"IF(Table_PI[[#This Row],[List 1]]<>\"\",Table_PI[[#This Row],[List 1]],\"\")","v":""},{"$f":"IF(Table_PI[[#This Row],[List 2]]<>\"\",Table_PI[[#This Row],[List 2]],\"\")","v":""},{"$f":"IF(Table_PI[[#This Row],[List 3]]<>\"\",Table_PI[[#This Row],[List 3]],\"\")","v":""},{"$f":"IF(Table_PI[[#This Row],[Manufacturer]]=\"\",\"\",Table_PI[[#This Row],[Manufacturer]])","v":""},{"$f":"IF(Table_PI[[#This Row],[Model Number]]=\"\",\"\",Table_PI[[#This Row],[Model Number]])","v":""},{"$f":"IF(Table_PI[[#This Row],[Serial Number(s)]]=\"\",\"\",Table_PI[[#This Row],[Serial Number(s)]])","v":""},null,{"$f":"IF(Table_PI[[#This Row],[Size]]=\"\",\"\",Table_PI[[#This Row],[Size]])","v":""},null,null,{"$f":"IF(Table_PI[[#This Row],[Input 1]]<>\"\",Table_PI[[#This Row],[Input 1]],\"\")","v":""},null,null,{"$f":"IF(Table_PI[[#This Row],[Input 2]]<>\"\",Table_PI[[#This Row],[Input 2]],\"\")","v":""},null,null,{"$f":"IF(Table_PI[[#This Row],[Input 3]]<>\"\",Table_PI[[#This Row],[Input 3]],\"\")","v":""},null,null,{"$f":"IF(Table_PI[[#This Row],[Input 4]]<>\"\",Table_PI[[#This Row],[Input 4]],\"\")","v":""},null,null,{"$f":"IF(Table_PI[[#This Row],[Input 4]]<>\"\",Table_PI[[#This Row],[Input 4]],\"\")","v":""},null,null,{"$f":"IF(Table_PI[[#This Row],[Input 4]]<>\"\",Table_PI[[#This Row],[Input 4]],\"\")","v":""},{"$f":"IF(Table_PI[[#This Row],[Quantity]]=\"\",\"\",Table_PI[[#This Row],[Quantity]])","v":""},{"$f":"IF(Table_PI[[#This Row],[Notes]]=\"\",\"\",Table_PI[[#This Row],[Notes]])","v":""},{"$f":"IF(OR(Table_PI[[#This Row],[Hide: Baseline kWh]]=\"\",Table_PI[[#This Row],[Hide: Baseline kWh]]=0,ISTEXT(Table_PI[[#This Row],[Hide: Baseline kWh]])),\"\",Table_PI[[#This Row],[Hide: Baseline kWh]])","v":""},{"$f":"IF(OR(Table_PI[[#This Row],[Hide: Baseline kW]]=\"\",Table_PI[[#This Row],[Hide: Baseline kW]]=0,ISTEXT(Table_PI[[#This Row],[Hide: Baseline kW]])),\"\",Table_PI[[#This Row],[Hide: Baseline kW]])","v":""},{"$f":"IF(OR(Table_PI[[#This Row],[Hide: Proposed kWh]]=\"\",Table_PI[[#This Row],[Hide: Proposed kWh]]=0,ISTEXT(Table_PI[[#This Row],[Hide: Proposed kWh]])),\"\",Table_PI[[#This Row],[Hide: Proposed kWh]])","v":""},{"$f":"IF(OR(Table_PI[[#This Row],[Hide: Proposed kW]]=\"\",Table_PI[[#This Row],[Hide: Proposed kW]]=0,ISTEXT(Table_PI[[#This Row],[Hide: Proposed kW]])),\"\",Table_PI[[#This Row],[Hide: Proposed kW]])","v":""},null,null,{"$f":"IF(OR(Table_PI[[#This Row],[Hide: Rebate]]=\"\",Table_PI[[#This Row],[Hide: Rebate]]=0,ISTEXT(Table_PI[[#This Row],[Hide: Rebate]])),\"\",Table_PI[[#This Row],[Hide: Rebate]])","v":""},null,{"$f":"IF(OR(Table_PI[[#This Row],[Hide: Incremental Cost]]=\"\",Table_PI[[#This Row],[Hide: Incremental Cost]]=0,ISTEXT(Table_PI[[#This Row],[Hide: Incremental Cost]])),\"\",Table_PI[[#This Row],[Hide: Incremental Cost]])","v":""},{"$f":"IFERROR(IF(Table_SummaryPI[[#This Row],[Incentive_Customer]]=\"\",\"\",ROUND(Table_SummaryPI[[#This Row],[Incentive_Customer]]/$AM$401*'Customer Information'!$BC$21,2)),0)","v":""},{"$f":"IF(OR(Table_PI[[#This Row],[Annual kWh]]=\"\",Table_PI[[#This Row],[Annual kWh]]=0,ISTEXT(Table_PI[[#This Row],[Annual kWh]])),\"\",Table_PI[[#This Row],[Annual kWh]])","v":""},{"$f":"IF(OR(Table_PI[[#This Row],[Peak kW]]=\"\",Table_PI[[#This Row],[Peak kW]]=0,ISTEXT(Table_PI[[#This Row],[Peak kW]])),\"\",Table_PI[[#This Row],[Peak kW]])","v":""},{"$f":"IF(Table_SummaryPI[[#This Row],[Line No.]]<>\"\",IF(AND(ISNUMBER(FIND(\"Chiller\",Table_SummaryPI[[#This Row],[P_MeasureOption1]],1)),Table_SummaryPI[[#This Row],[ProposedMeasureCategory]]=\"Air-Cooled (Water-Cooled Replacement)\"),$BD$29*Table_SummaryPI[[#This Row],[Size]]*Table_SummaryPI[[#This Row],[Quantity]]*Table_SummaryPI[[#This Row],[EFLHCooling]],\nIF(ISNUMBER(FIND(\"Dishwasher\",Table_SummaryPI[[#This Row],[ProposedMeasureCategory]],1)),$BH$29*Table_SummaryPI[[#This Row],[Quantity]],\nIF(ISNUMBER(FIND(\"Ice Maker\",Table_SummaryPI[[#This Row],[ProposedMeasureCategory]],1)),$BD$31*Table_SummaryPI[[#This Row],[Quantity]],\nIF(ISNUMBER(FIND(\"Spray Valve\",Table_SummaryPI[[#This Row],[ProposedMeasureCategory]],1)),$BH$31*Table_SummaryPI[[#This Row],[Quantity]],\n0)))),\"\")","v":""},{"$f":"IF(OR(Table_PI[[#This Row],[Hide: Electrification kWh]]=\"\",Table_PI[[#This Row],[Hide: Electrification kWh]]=0,ISTEXT(Table_PI[[#This Row],[Hide: Electrification kWh]])),\"\",Table_PI[[#This Row],[Hide: Electrification kWh]])","v":""},{"$f":"IF(OR(Table_PI[[#This Row],[Hide: Electrification GHG]]=\"\",Table_PI[[#This Row],[Hide: Electrification GHG]]=0,ISTEXT(Table_PI[[#This Row],[Hide: Electrification GHG]])),\"\",Table_PI[[#This Row],[Hide: Electrification GHG]])","v":""},{"$f":"IFERROR(IF(Table_SummaryPI[[#This Row],[kWhSavings]]=\"\",\"\",$BH$9*Table_SummaryPI[[#This Row],[kWhSavings]]),0)","v":""},{"$f":"IFERROR(IF(Table_SummaryPI[[#This Row],[kWhSavings]]=\"\",\"\",$BH$14*Table_SummaryPI[[#This Row],[kWhSavings]]),0)","v":""},{"$f":"IFERROR(IF(Table_SummaryPI[[#This Row],[kWhSavings]]=\"\",\"\",$BH$18*Table_SummaryPI[[#This Row],[kWhSavings]]),0)","v":""},{"$f":"IFERROR(IF(Table_SummaryPI[[#This Row],[kWhSavings]]=\"\",\"\",$BH$22*Table_SummaryPI[[#This Row],[kWhSavings]]),0)","v":""}]
[{"$f":"Table_PI[[#This Row],[Line No.]]","v":""},{"$f":"IF(Table_SummaryPI[[#This Row],[MeasureName]]<>\"\",NOT(ISTEXT(Table_PI[[#This Row],[Rebate]])),\"\")","v":""},{"$f":"IF(Table_SummaryPI[[#This Row],[MeassureCategory]]<>\"\",CONCATENATE(Table_SummaryPI[[#This Row],[MeassureCategory]],  \" - \", Table_SummaryPI[[#This Row],[ProposedMeasureCategory]],  \" - \", TEXT(Table_SummaryPI[[#This Row],[Size]],\"#,##0.00\"),\" \",Table_SummaryPI[[#This Row],[SizeUnit]]),\"\")","v":""},{"$f":"SUBSTITUTE(Table_PI[[#This Row],[Measure]],\"     \",\"\",1)","v":""},{"$f":"IF(Table_PI[[#This Row],[List 1]]<>\"\",Table_PI[[#This Row],[List 1]],\"\")","v":""},{"$f":"IF(Table_PI[[#This Row],[List 2]]<>\"\",Table_PI[[#This Row],[List 2]],\"\")","v":""},{"$f":"IF(Table_PI[[#This Row],[List 3]]<>\"\",Table_PI[[#This Row],[List 3]],\"\")","v":""},{"$f":"IF(Table_PI[[#This Row],[Manufacturer]]=\"\",\"\",Table_PI[[#This Row],[Manufacturer]])","v":""},{"$f":"IF(Table_PI[[#This Row],[Model Number]]=\"\",\"\",Table_PI[[#This Row],[Model Number]])","v":""},{"$f":"IF(Table_PI[[#This Row],[Serial Number(s)]]=\"\",\"\",Table_PI[[#This Row],[Serial Number(s)]])","v":""},null,{"$f":"IF(Table_PI[[#This Row],[Size]]=\"\",\"\",Table_PI[[#This Row],[Size]])","v":""},null,null,{"$f":"IF(Table_PI[[#This Row],[Input 1]]<>\"\",Table_PI[[#This Row],[Input 1]],\"\")","v":""},null,null,{"$f":"IF(Table_PI[[#This Row],[Input 2]]<>\"\",Table_PI[[#This Row],[Input 2]],\"\")","v":""},null,null,{"$f":"IF(Table_PI[[#This Row],[Input 3]]<>\"\",Table_PI[[#This Row],[Input 3]],\"\")","v":""},null,null,{"$f":"IF(Table_PI[[#This Row],[Input 4]]<>\"\",Table_PI[[#This Row],[Input 4]],\"\")","v":""},null,null,{"$f":"IF(Table_PI[[#This Row],[Input 4]]<>\"\",Table_PI[[#This Row],[Input 4]],\"\")","v":""},null,null,{"$f":"IF(Table_PI[[#This Row],[Input 4]]<>\"\",Table_PI[[#This Row],[Input 4]],\"\")","v":""},{"$f":"IF(Table_PI[[#This Row],[Quantity]]=\"\",\"\",Table_PI[[#This Row],[Quantity]])","v":""},{"$f":"IF(Table_PI[[#This Row],[Notes]]=\"\",\"\",Table_PI[[#This Row],[Notes]])","v":""},{"$f":"IF(OR(Table_PI[[#This Row],[Hide: Baseline kWh]]=\"\",Table_PI[[#This Row],[Hide: Baseline kWh]]=0,ISTEXT(Table_PI[[#This Row],[Hide: Baseline kWh]])),\"\",Table_PI[[#This Row],[Hide: Baseline kWh]])","v":""},{"$f":"IF(OR(Table_PI[[#This Row],[Hide: Baseline kW]]=\"\",Table_PI[[#This Row],[Hide: Baseline kW]]=0,ISTEXT(Table_PI[[#This Row],[Hide: Baseline kW]])),\"\",Table_PI[[#This Row],[Hide: Baseline kW]])","v":""},{"$f":"IF(OR(Table_PI[[#This Row],[Hide: Proposed kWh]]=\"\",Table_PI[[#This Row],[Hide: Proposed kWh]]=0,ISTEXT(Table_PI[[#This Row],[Hide: Proposed kWh]])),\"\",Table_PI[[#This Row],[Hide: Proposed kWh]])","v":""},{"$f":"IF(OR(Table_PI[[#This Row],[Hide: Proposed kW]]=\"\",Table_PI[[#This Row],[Hide: Proposed kW]]=0,ISTEXT(Table_PI[[#This Row],[Hide: Proposed kW]])),\"\",Table_PI[[#This Row],[Hide: Proposed kW]])","v":""},null,null,{"$f":"IF(OR(Table_PI[[#This Row],[Hide: Rebate]]=\"\",Table_PI[[#This Row],[Hide: Rebate]]=0,ISTEXT(Table_PI[[#This Row],[Hide: Rebate]])),\"\",Table_PI[[#This Row],[Hide: Rebate]])","v":""},null,{"$f":"IF(OR(Table_PI[[#This Row],[Hide: Incremental Cost]]=\"\",Table_PI[[#This Row],[Hide: Incremental Cost]]=0,ISTEXT(Table_PI[[#This Row],[Hide: Incremental Cost]])),\"\",Table_PI[[#This Row],[Hide: Incremental Cost]])","v":""},{"$f":"IFERROR(IF(Table_SummaryPI[[#This Row],[Incentive_Customer]]=\"\",\"\",ROUND(Table_SummaryPI[[#This Row],[Incentive_Customer]]/$AM$401*'Customer Information'!$BC$21,2)),0)","v":""},{"$f":"IF(OR(Table_PI[[#This Row],[Annual kWh]]=\"\",Table_PI[[#This Row],[Annual kWh]]=0,ISTEXT(Table_PI[[#This Row],[Annual kWh]])),\"\",Table_PI[[#This Row],[Annual kWh]])","v":""},{"$f":"IF(OR(Table_PI[[#This Row],[Peak kW]]=\"\",Table_PI[[#This Row],[Peak kW]]=0,ISTEXT(Table_PI[[#This Row],[Peak kW]])),\"\",Table_PI[[#This Row],[Peak kW]])","v":""},{"$f":"IF(Table_SummaryPI[[#This Row],[Line No.]]<>\"\",IF(AND(ISNUMBER(FIND(\"Chiller\",Table_SummaryPI[[#This Row],[P_MeasureOption1]],1)),Table_SummaryPI[[#This Row],[ProposedMeasureCategory]]=\"Air-Cooled (Water-Cooled Replacement)\"),$BD$29*Table_SummaryPI[[#This Row],[Size]]*Table_SummaryPI[[#This Row],[Quantity]]*Table_SummaryPI[[#This Row],[EFLHCooling]],\nIF(ISNUMBER(FIND(\"Dishwasher\",Table_SummaryPI[[#This Row],[ProposedMeasureCategory]],1)),$BH$29*Table_SummaryPI[[#This Row],[Quantity]],\nIF(ISNUMBER(FIND(\"Ice Maker\",Table_SummaryPI[[#This Row],[ProposedMeasureCategory]],1)),$BD$31*Table_SummaryPI[[#This Row],[Quantity]],\nIF(ISNUMBER(FIND(\"Spray Valve\",Table_SummaryPI[[#This Row],[ProposedMeasureCategory]],1)),$BH$31*Table_SummaryPI[[#This Row],[Quantity]],\n0)))),\"\")","v":""},{"$f":"IF(OR(Table_PI[[#This Row],[Hide: Electrification kWh]]=\"\",Table_PI[[#This Row],[Hide: Electrification kWh]]=0,ISTEXT(Table_PI[[#This Row],[Hide: Electrification kWh]])),\"\",Table_PI[[#This Row],[Hide: Electrification kWh]])","v":""},{"$f":"IF(OR(Table_PI[[#This Row],[Hide: Electrification GHG]]=\"\",Table_PI[[#This Row],[Hide: Electrification GHG]]=0,ISTEXT(Table_PI[[#This Row],[Hide: Electrification GHG]])),\"\",Table_PI[[#This Row],[Hide: Electrification GHG]])","v":""},{"$f":"IFERROR(IF(Table_SummaryPI[[#This Row],[kWhSavings]]=\"\",\"\",$BH$9*Table_SummaryPI[[#This Row],[kWhSavings]]),0)","v":""},{"$f":"IFERROR(IF(Table_SummaryPI[[#This Row],[kWhSavings]]=\"\",\"\",$BH$14*Table_SummaryPI[[#This Row],[kWhSavings]]),0)","v":""},{"$f":"IFERROR(IF(Table_SummaryPI[[#This Row],[kWhSavings]]=\"\",\"\",$BH$18*Table_SummaryPI[[#This Row],[kWhSavings]]),0)","v":""},{"$f":"IFERROR(IF(Table_SummaryPI[[#This Row],[kWhSavings]]=\"\",\"\",$BH$22*Table_SummaryPI[[#This Row],[kWhSavings]]),0)","v":""}]
[{"$f":"Table_PI[[#This Row],[Line No.]]","v":""},{"$f":"IF(Table_SummaryPI[[#This Row],[MeasureName]]<>\"\",NOT(ISTEXT(Table_PI[[#This Row],[Rebate]])),\"\")","v":""},{"$f":"IF(Table_SummaryPI[[#This Row],[MeassureCategory]]<>\"\",CONCATENATE(Table_SummaryPI[[#This Row],[MeassureCategory]],  \" - \", Table_SummaryPI[[#This Row],[ProposedMeasureCategory]],  \" - \", TEXT(Table_SummaryPI[[#This Row],[Size]],\"#,##0.00\"),\" \",Table_SummaryPI[[#This Row],[SizeUnit]]),\"\")","v":""},{"$f":"SUBSTITUTE(Table_PI[[#This Row],[Measure]],\"     \",\"\",1)","v":""},{"$f":"IF(Table_PI[[#This Row],[List 1]]<>\"\",Table_PI[[#This Row],[List 1]],\"\")","v":""},{"$f":"IF(Table_PI[[#This Row],[List 2]]<>\"\",Table_PI[[#This Row],[List 2]],\"\")","v":""},{"$f":"IF(Table_PI[[#This Row],[List 3]]<>\"\",Table_PI[[#This Row],[List 3]],\"\")","v":""},{"$f":"IF(Table_PI[[#This Row],[Manufacturer]]=\"\",\"\",Table_PI[[#This Row],[Manufacturer]])","v":""},{"$f":"IF(Table_PI[[#This Row],[Model Number]]=\"\",\"\",Table_PI[[#This Row],[Model Number]])","v":""},{"$f":"IF(Table_PI[[#This Row],[Serial Number(s)]]=\"\",\"\",Table_PI[[#This Row],[Serial Number(s)]])","v":""},null,{"$f":"IF(Table_PI[[#This Row],[Size]]=\"\",\"\",Table_PI[[#This Row],[Size]])","v":""},null,null,{"$f":"IF(Table_PI[[#This Row],[Input 1]]<>\"\",Table_PI[[#This Row],[Input 1]],\"\")","v":""},null,null,{"$f":"IF(Table_PI[[#This Row],[Input 2]]<>\"\",Table_PI[[#This Row],[Input 2]],\"\")","v":""},null,null,{"$f":"IF(Table_PI[[#This Row],[Input 3]]<>\"\",Table_PI[[#This Row],[Input 3]],\"\")","v":""},null,null,{"$f":"IF(Table_PI[[#This Row],[Input 4]]<>\"\",Table_PI[[#This Row],[Input 4]],\"\")","v":""},null,null,{"$f":"IF(Table_PI[[#This Row],[Input 4]]<>\"\",Table_PI[[#This Row],[Input 4]],\"\")","v":""},null,null,{"$f":"IF(Table_PI[[#This Row],[Input 4]]<>\"\",Table_PI[[#This Row],[Input 4]],\"\")","v":""},{"$f":"IF(Table_PI[[#This Row],[Quantity]]=\"\",\"\",Table_PI[[#This Row],[Quantity]])","v":""},{"$f":"IF(Table_PI[[#This Row],[Notes]]=\"\",\"\",Table_PI[[#This Row],[Notes]])","v":""},{"$f":"IF(OR(Table_PI[[#This Row],[Hide: Baseline kWh]]=\"\",Table_PI[[#This Row],[Hide: Baseline kWh]]=0,ISTEXT(Table_PI[[#This Row],[Hide: Baseline kWh]])),\"\",Table_PI[[#This Row],[Hide: Baseline kWh]])","v":""},{"$f":"IF(OR(Table_PI[[#This Row],[Hide: Baseline kW]]=\"\",Table_PI[[#This Row],[Hide: Baseline kW]]=0,ISTEXT(Table_PI[[#This Row],[Hide: Baseline kW]])),\"\",Table_PI[[#This Row],[Hide: Baseline kW]])","v":""},{"$f":"IF(OR(Table_PI[[#This Row],[Hide: Proposed kWh]]=\"\",Table_PI[[#This Row],[Hide: Proposed kWh]]=0,ISTEXT(Table_PI[[#This Row],[Hide: Proposed kWh]])),\"\",Table_PI[[#This Row],[Hide: Proposed kWh]])","v":""},{"$f":"IF(OR(Table_PI[[#This Row],[Hide: Proposed kW]]=\"\",Table_PI[[#This Row],[Hide: Proposed kW]]=0,ISTEXT(Table_PI[[#This Row],[Hide: Proposed kW]])),\"\",Table_PI[[#This Row],[Hide: Proposed kW]])","v":""},null,null,{"$f":"IF(OR(Table_PI[[#This Row],[Hide: Rebate]]=\"\",Table_PI[[#This Row],[Hide: Rebate]]=0,ISTEXT(Table_PI[[#This Row],[Hide: Rebate]])),\"\",Table_PI[[#This Row],[Hide: Rebate]])","v":""},null,{"$f":"IF(OR(Table_PI[[#This Row],[Hide: Incremental Cost]]=\"\",Table_PI[[#This Row],[Hide: Incremental Cost]]=0,ISTEXT(Table_PI[[#This Row],[Hide: Incremental Cost]])),\"\",Table_PI[[#This Row],[Hide: Incremental Cost]])","v":""},{"$f":"IFERROR(IF(Table_SummaryPI[[#This Row],[Incentive_Customer]]=\"\",\"\",ROUND(Table_SummaryPI[[#This Row],[Incentive_Customer]]/$AM$401*'Customer Information'!$BC$21,2)),0)","v":""},{"$f":"IF(OR(Table_PI[[#This Row],[Annual kWh]]=\"\",Table_PI[[#This Row],[Annual kWh]]=0,ISTEXT(Table_PI[[#This Row],[Annual kWh]])),\"\",Table_PI[[#This Row],[Annual kWh]])","v":""},{"$f":"IF(OR(Table_PI[[#This Row],[Peak kW]]=\"\",Table_PI[[#This Row],[Peak kW]]=0,ISTEXT(Table_PI[[#This Row],[Peak kW]])),\"\",Table_PI[[#This Row],[Peak kW]])","v":""},{"$f":"IF(Table_SummaryPI[[#This Row],[Line No.]]<>\"\",IF(AND(ISNUMBER(FIND(\"Chiller\",Table_SummaryPI[[#This Row],[P_MeasureOption1]],1)),Table_SummaryPI[[#This Row],[ProposedMeasureCategory]]=\"Air-Cooled (Water-Cooled Replacement)\"),$BD$29*Table_SummaryPI[[#This Row],[Size]]*Table_SummaryPI[[#This Row],[Quantity]]*Table_SummaryPI[[#This Row],[EFLHCooling]],\nIF(ISNUMBER(FIND(\"Dishwasher\",Table_SummaryPI[[#This Row],[ProposedMeasureCategory]],1)),$BH$29*Table_SummaryPI[[#This Row],[Quantity]],\nIF(ISNUMBER(FIND(\"Ice Maker\",Table_SummaryPI[[#This Row],[ProposedMeasureCategory]],1)),$BD$31*Table_SummaryPI[[#This Row],[Quantity]],\nIF(ISNUMBER(FIND(\"Spray Valve\",Table_SummaryPI[[#This Row],[ProposedMeasureCategory]],1)),$BH$31*Table_SummaryPI[[#This Row],[Quantity]],\n0)))),\"\")","v":""},{"$f":"IF(OR(Table_PI[[#This Row],[Hide: Electrification kWh]]=\"\",Table_PI[[#This Row],[Hide: Electrification kWh]]=0,ISTEXT(Table_PI[[#This Row],[Hide: Electrification kWh]])),\"\",Table_PI[[#This Row],[Hide: Electrification kWh]])","v":""},{"$f":"IF(OR(Table_PI[[#This Row],[Hide: Electrification GHG]]=\"\",Table_PI[[#This Row],[Hide: Electrification GHG]]=0,ISTEXT(Table_PI[[#This Row],[Hide: Electrification GHG]])),\"\",Table_PI[[#This Row],[Hide: Electrification GHG]])","v":""},{"$f":"IFERROR(IF(Table_SummaryPI[[#This Row],[kWhSavings]]=\"\",\"\",$BH$9*Table_SummaryPI[[#This Row],[kWhSavings]]),0)","v":""},{"$f":"IFERROR(IF(Table_SummaryPI[[#This Row],[kWhSavings]]=\"\",\"\",$BH$14*Table_SummaryPI[[#This Row],[kWhSavings]]),0)","v":""},{"$f":"IFERROR(IF(Table_SummaryPI[[#This Row],[kWhSavings]]=\"\",\"\",$BH$18*Table_SummaryPI[[#This Row],[kWhSavings]]),0)","v":""},{"$f":"IFERROR(IF(Table_SummaryPI[[#This Row],[kWhSavings]]=\"\",\"\",$BH$22*Table_SummaryPI[[#This Row],[kWhSavings]]),0)","v":""}]
[{"$f":"Table_PI[[#This Row],[Line No.]]","v":""},{"$f":"IF(Table_SummaryPI[[#This Row],[MeasureName]]<>\"\",NOT(ISTEXT(Table_PI[[#This Row],[Rebate]])),\"\")","v":""},{"$f":"IF(Table_SummaryPI[[#This Row],[MeassureCategory]]<>\"\",CONCATENATE(Table_SummaryPI[[#This Row],[MeassureCategory]],  \" - \", Table_SummaryPI[[#This Row],[ProposedMeasureCategory]],  \" - \", TEXT(Table_SummaryPI[[#This Row],[Size]],\"#,##0.00\"),\" \",Table_SummaryPI[[#This Row],[SizeUnit]]),\"\")","v":""},{"$f":"SUBSTITUTE(Table_PI[[#This Row],[Measure]],\"     \",\"\",1)","v":""},{"$f":"IF(Table_PI[[#This Row],[List 1]]<>\"\",Table_PI[[#This Row],[List 1]],\"\")","v":""},{"$f":"IF(Table_PI[[#This Row],[List 2]]<>\"\",Table_PI[[#This Row],[List 2]],\"\")","v":""},{"$f":"IF(Table_PI[[#This Row],[List 3]]<>\"\",Table_PI[[#This Row],[List 3]],\"\")","v":""},{"$f":"IF(Table_PI[[#This Row],[Manufacturer]]=\"\",\"\",Table_PI[[#This Row],[Manufacturer]])","v":""},{"$f":"IF(Table_PI[[#This Row],[Model Number]]=\"\",\"\",Table_PI[[#This Row],[Model Number]])","v":""},{"$f":"IF(Table_PI[[#This Row],[Serial Number(s)]]=\"\",\"\",Table_PI[[#This Row],[Serial Number(s)]])","v":""},null,{"$f":"IF(Table_PI[[#This Row],[Size]]=\"\",\"\",Table_PI[[#This Row],[Size]])","v":""},null,null,{"$f":"IF(Table_PI[[#This Row],[Input 1]]<>\"\",Table_PI[[#This Row],[Input 1]],\"\")","v":""},null,null,{"$f":"IF(Table_PI[[#This Row],[Input 2]]<>\"\",Table_PI[[#This Row],[Input 2]],\"\")","v":""},null,null,{"$f":"IF(Table_PI[[#This Row],[Input 3]]<>\"\",Table_PI[[#This Row],[Input 3]],\"\")","v":""},null,null,{"$f":"IF(Table_PI[[#This Row],[Input 4]]<>\"\",Table_PI[[#This Row],[Input 4]],\"\")","v":""},null,null,{"$f":"IF(Table_PI[[#This Row],[Input 4]]<>\"\",Table_PI[[#This Row],[Input 4]],\"\")","v":""},null,null,{"$f":"IF(Table_PI[[#This Row],[Input 4]]<>\"\",Table_PI[[#This Row],[Input 4]],\"\")","v":""},{"$f":"IF(Table_PI[[#This Row],[Quantity]]=\"\",\"\",Table_PI[[#This Row],[Quantity]])","v":""},{"$f":"IF(Table_PI[[#This Row],[Notes]]=\"\",\"\",Table_PI[[#This Row],[Notes]])","v":""},{"$f":"IF(OR(Table_PI[[#This Row],[Hide: Baseline kWh]]=\"\",Table_PI[[#This Row],[Hide: Baseline kWh]]=0,ISTEXT(Table_PI[[#This Row],[Hide: Baseline kWh]])),\"\",Table_PI[[#This Row],[Hide: Baseline kWh]])","v":""},{"$f":"IF(OR(Table_PI[[#This Row],[Hide: Baseline kW]]=\"\",Table_PI[[#This Row],[Hide: Baseline kW]]=0,ISTEXT(Table_PI[[#This Row],[Hide: Baseline kW]])),\"\",Table_PI[[#This Row],[Hide: Baseline kW]])","v":""},{"$f":"IF(OR(Table_PI[[#This Row],[Hide: Proposed kWh]]=\"\",Table_PI[[#This Row],[Hide: Proposed kWh]]=0,ISTEXT(Table_PI[[#This Row],[Hide: Proposed kWh]])),\"\",Table_PI[[#This Row],[Hide: Proposed kWh]])","v":""},{"$f":"IF(OR(Table_PI[[#This Row],[Hide: Proposed kW]]=\"\",Table_PI[[#This Row],[Hide: Proposed kW]]=0,ISTEXT(Table_PI[[#This Row],[Hide: Proposed kW]])),\"\",Table_PI[[#This Row],[Hide: Proposed kW]])","v":""},null,null,{"$f":"IF(OR(Table_PI[[#This Row],[Hide: Rebate]]=\"\",Table_PI[[#This Row],[Hide: Rebate]]=0,ISTEXT(Table_PI[[#This Row],[Hide: Rebate]])),\"\",Table_PI[[#This Row],[Hide: Rebate]])","v":""},null,{"$f":"IF(OR(Table_PI[[#This Row],[Hide: Incremental Cost]]=\"\",Table_PI[[#This Row],[Hide: Incremental Cost]]=0,ISTEXT(Table_PI[[#This Row],[Hide: Incremental Cost]])),\"\",Table_PI[[#This Row],[Hide: Incremental Cost]])","v":""},{"$f":"IFERROR(IF(Table_SummaryPI[[#This Row],[Incentive_Customer]]=\"\",\"\",ROUND(Table_SummaryPI[[#This Row],[Incentive_Customer]]/$AM$401*'Customer Information'!$BC$21,2)),0)","v":""},{"$f":"IF(OR(Table_PI[[#This Row],[Annual kWh]]=\"\",Table_PI[[#This Row],[Annual kWh]]=0,ISTEXT(Table_PI[[#This Row],[Annual kWh]])),\"\",Table_PI[[#This Row],[Annual kWh]])","v":""},{"$f":"IF(OR(Table_PI[[#This Row],[Peak kW]]=\"\",Table_PI[[#This Row],[Peak kW]]=0,ISTEXT(Table_PI[[#This Row],[Peak kW]])),\"\",Table_PI[[#This Row],[Peak kW]])","v":""},{"$f":"IF(Table_SummaryPI[[#This Row],[Line No.]]<>\"\",IF(AND(ISNUMBER(FIND(\"Chiller\",Table_SummaryPI[[#This Row],[P_MeasureOption1]],1)),Table_SummaryPI[[#This Row],[ProposedMeasureCategory]]=\"Air-Cooled (Water-Cooled Replacement)\"),$BD$29*Table_SummaryPI[[#This Row],[Size]]*Table_SummaryPI[[#This Row],[Quantity]]*Table_SummaryPI[[#This Row],[EFLHCooling]],\nIF(ISNUMBER(FIND(\"Dishwasher\",Table_SummaryPI[[#This Row],[ProposedMeasureCategory]],1)),$BH$29*Table_SummaryPI[[#This Row],[Quantity]],\nIF(ISNUMBER(FIND(\"Ice Maker\",Table_SummaryPI[[#This Row],[ProposedMeasureCategory]],1)),$BD$31*Table_SummaryPI[[#This Row],[Quantity]],\nIF(ISNUMBER(FIND(\"Spray Valve\",Table_SummaryPI[[#This Row],[ProposedMeasureCategory]],1)),$BH$31*Table_SummaryPI[[#This Row],[Quantity]],\n0)))),\"\")","v":""},{"$f":"IF(OR(Table_PI[[#This Row],[Hide: Electrification kWh]]=\"\",Table_PI[[#This Row],[Hide: Electrification kWh]]=0,ISTEXT(Table_PI[[#This Row],[Hide: Electrification kWh]])),\"\",Table_PI[[#This Row],[Hide: Electrification kWh]])","v":""},{"$f":"IF(OR(Table_PI[[#This Row],[Hide: Electrification GHG]]=\"\",Table_PI[[#This Row],[Hide: Electrification GHG]]=0,ISTEXT(Table_PI[[#This Row],[Hide: Electrification GHG]])),\"\",Table_PI[[#This Row],[Hide: Electrification GHG]])","v":""},{"$f":"IFERROR(IF(Table_SummaryPI[[#This Row],[kWhSavings]]=\"\",\"\",$BH$9*Table_SummaryPI[[#This Row],[kWhSavings]]),0)","v":""},{"$f":"IFERROR(IF(Table_SummaryPI[[#This Row],[kWhSavings]]=\"\",\"\",$BH$14*Table_SummaryPI[[#This Row],[kWhSavings]]),0)","v":""},{"$f":"IFERROR(IF(Table_SummaryPI[[#This Row],[kWhSavings]]=\"\",\"\",$BH$18*Table_SummaryPI[[#This Row],[kWhSavings]]),0)","v":""},{"$f":"IFERROR(IF(Table_SummaryPI[[#This Row],[kWhSavings]]=\"\",\"\",$BH$22*Table_SummaryPI[[#This Row],[kWhSavings]]),0)","v":""}]
[{"$f":"Table_PI[[#This Row],[Line No.]]","v":""},{"$f":"IF(Table_SummaryPI[[#This Row],[MeasureName]]<>\"\",NOT(ISTEXT(Table_PI[[#This Row],[Rebate]])),\"\")","v":""},{"$f":"IF(Table_SummaryPI[[#This Row],[MeassureCategory]]<>\"\",CONCATENATE(Table_SummaryPI[[#This Row],[MeassureCategory]],  \" - \", Table_SummaryPI[[#This Row],[ProposedMeasureCategory]],  \" - \", TEXT(Table_SummaryPI[[#This Row],[Size]],\"#,##0.00\"),\" \",Table_SummaryPI[[#This Row],[SizeUnit]]),\"\")","v":""},{"$f":"SUBSTITUTE(Table_PI[[#This Row],[Measure]],\"     \",\"\",1)","v":""},{"$f":"IF(Table_PI[[#This Row],[List 1]]<>\"\",Table_PI[[#This Row],[List 1]],\"\")","v":""},{"$f":"IF(Table_PI[[#This Row],[List 2]]<>\"\",Table_PI[[#This Row],[List 2]],\"\")","v":""},{"$f":"IF(Table_PI[[#This Row],[List 3]]<>\"\",Table_PI[[#This Row],[List 3]],\"\")","v":""},{"$f":"IF(Table_PI[[#This Row],[Manufacturer]]=\"\",\"\",Table_PI[[#This Row],[Manufacturer]])","v":""},{"$f":"IF(Table_PI[[#This Row],[Model Number]]=\"\",\"\",Table_PI[[#This Row],[Model Number]])","v":""},{"$f":"IF(Table_PI[[#This Row],[Serial Number(s)]]=\"\",\"\",Table_PI[[#This Row],[Serial Number(s)]])","v":""},null,{"$f":"IF(Table_PI[[#This Row],[Size]]=\"\",\"\",Table_PI[[#This Row],[Size]])","v":""},null,null,{"$f":"IF(Table_PI[[#This Row],[Input 1]]<>\"\",Table_PI[[#This Row],[Input 1]],\"\")","v":""},null,null,{"$f":"IF(Table_PI[[#This Row],[Input 2]]<>\"\",Table_PI[[#This Row],[Input 2]],\"\")","v":""},null,null,{"$f":"IF(Table_PI[[#This Row],[Input 3]]<>\"\",Table_PI[[#This Row],[Input 3]],\"\")","v":""},null,null,{"$f":"IF(Table_PI[[#This Row],[Input 4]]<>\"\",Table_PI[[#This Row],[Input 4]],\"\")","v":""},null,null,{"$f":"IF(Table_PI[[#This Row],[Input 4]]<>\"\",Table_PI[[#This Row],[Input 4]],\"\")","v":""},null,null,{"$f":"IF(Table_PI[[#This Row],[Input 4]]<>\"\",Table_PI[[#This Row],[Input 4]],\"\")","v":""},{"$f":"IF(Table_PI[[#This Row],[Quantity]]=\"\",\"\",Table_PI[[#This Row],[Quantity]])","v":""},{"$f":"IF(Table_PI[[#This Row],[Notes]]=\"\",\"\",Table_PI[[#This Row],[Notes]])","v":""},{"$f":"IF(OR(Table_PI[[#This Row],[Hide: Baseline kWh]]=\"\",Table_PI[[#This Row],[Hide: Baseline kWh]]=0,ISTEXT(Table_PI[[#This Row],[Hide: Baseline kWh]])),\"\",Table_PI[[#This Row],[Hide: Baseline kWh]])","v":""},{"$f":"IF(OR(Table_PI[[#This Row],[Hide: Baseline kW]]=\"\",Table_PI[[#This Row],[Hide: Baseline kW]]=0,ISTEXT(Table_PI[[#This Row],[Hide: Baseline kW]])),\"\",Table_PI[[#This Row],[Hide: Baseline kW]])","v":""},{"$f":"IF(OR(Table_PI[[#This Row],[Hide: Proposed kWh]]=\"\",Table_PI[[#This Row],[Hide: Proposed kWh]]=0,ISTEXT(Table_PI[[#This Row],[Hide: Proposed kWh]])),\"\",Table_PI[[#This Row],[Hide: Proposed kWh]])","v":""},{"$f":"IF(OR(Table_PI[[#This Row],[Hide: Proposed kW]]=\"\",Table_PI[[#This Row],[Hide: Proposed kW]]=0,ISTEXT(Table_PI[[#This Row],[Hide: Proposed kW]])),\"\",Table_PI[[#This Row],[Hide: Proposed kW]])","v":""},null,null,{"$f":"IF(OR(Table_PI[[#This Row],[Hide: Rebate]]=\"\",Table_PI[[#This Row],[Hide: Rebate]]=0,ISTEXT(Table_PI[[#This Row],[Hide: Rebate]])),\"\",Table_PI[[#This Row],[Hide: Rebate]])","v":""},null,{"$f":"IF(OR(Table_PI[[#This Row],[Hide: Incremental Cost]]=\"\",Table_PI[[#This Row],[Hide: Incremental Cost]]=0,ISTEXT(Table_PI[[#This Row],[Hide: Incremental Cost]])),\"\",Table_PI[[#This Row],[Hide: Incremental Cost]])","v":""},{"$f":"IFERROR(IF(Table_SummaryPI[[#This Row],[Incentive_Customer]]=\"\",\"\",ROUND(Table_SummaryPI[[#This Row],[Incentive_Customer]]/$AM$401*'Customer Information'!$BC$21,2)),0)","v":""},{"$f":"IF(OR(Table_PI[[#This Row],[Annual kWh]]=\"\",Table_PI[[#This Row],[Annual kWh]]=0,ISTEXT(Table_PI[[#This Row],[Annual kWh]])),\"\",Table_PI[[#This Row],[Annual kWh]])","v":""},{"$f":"IF(OR(Table_PI[[#This Row],[Peak kW]]=\"\",Table_PI[[#This Row],[Peak kW]]=0,ISTEXT(Table_PI[[#This Row],[Peak kW]])),\"\",Table_PI[[#This Row],[Peak kW]])","v":""},{"$f":"IF(Table_SummaryPI[[#This Row],[Line No.]]<>\"\",IF(AND(ISNUMBER(FIND(\"Chiller\",Table_SummaryPI[[#This Row],[P_MeasureOption1]],1)),Table_SummaryPI[[#This Row],[ProposedMeasureCategory]]=\"Air-Cooled (Water-Cooled Replacement)\"),$BD$29*Table_SummaryPI[[#This Row],[Size]]*Table_SummaryPI[[#This Row],[Quantity]]*Table_SummaryPI[[#This Row],[EFLHCooling]],\nIF(ISNUMBER(FIND(\"Dishwasher\",Table_SummaryPI[[#This Row],[ProposedMeasureCategory]],1)),$BH$29*Table_SummaryPI[[#This Row],[Quantity]],\nIF(ISNUMBER(FIND(\"Ice Maker\",Table_SummaryPI[[#This Row],[ProposedMeasureCategory]],1)),$BD$31*Table_SummaryPI[[#This Row],[Quantity]],\nIF(ISNUMBER(FIND(\"Spray Valve\",Table_SummaryPI[[#This Row],[ProposedMeasureCategory]],1)),$BH$31*Table_SummaryPI[[#This Row],[Quantity]],\n0)))),\"\")","v":""},{"$f":"IF(OR(Table_PI[[#This Row],[Hide: Electrification kWh]]=\"\",Table_PI[[#This Row],[Hide: Electrification kWh]]=0,ISTEXT(Table_PI[[#This Row],[Hide: Electrification kWh]])),\"\",Table_PI[[#This Row],[Hide: Electrification kWh]])","v":""},{"$f":"IF(OR(Table_PI[[#This Row],[Hide: Electrification GHG]]=\"\",Table_PI[[#This Row],[Hide: Electrification GHG]]=0,ISTEXT(Table_PI[[#This Row],[Hide: Electrification GHG]])),\"\",Table_PI[[#This Row],[Hide: Electrification GHG]])","v":""},{"$f":"IFERROR(IF(Table_SummaryPI[[#This Row],[kWhSavings]]=\"\",\"\",$BH$9*Table_SummaryPI[[#This Row],[kWhSavings]]),0)","v":""},{"$f":"IFERROR(IF(Table_SummaryPI[[#This Row],[kWhSavings]]=\"\",\"\",$BH$14*Table_SummaryPI[[#This Row],[kWhSavings]]),0)","v":""},{"$f":"IFERROR(IF(Table_SummaryPI[[#This Row],[kWhSavings]]=\"\",\"\",$BH$18*Table_SummaryPI[[#This Row],[kWhSavings]]),0)","v":""},{"$f":"IFERROR(IF(Table_SummaryPI[[#This Row],[kWhSavings]]=\"\",\"\",$BH$22*Table_SummaryPI[[#This Row],[kWhSavings]]),0)","v":""}]
[{"$f":"Table_PI[[#This Row],[Line No.]]","v":""},{"$f":"IF(Table_SummaryPI[[#This Row],[MeasureName]]<>\"\",NOT(ISTEXT(Table_PI[[#This Row],[Rebate]])),\"\")","v":""},{"$f":"IF(Table_SummaryPI[[#This Row],[MeassureCategory]]<>\"\",CONCATENATE(Table_SummaryPI[[#This Row],[MeassureCategory]],  \" - \", Table_SummaryPI[[#This Row],[ProposedMeasureCategory]],  \" - \", TEXT(Table_SummaryPI[[#This Row],[Size]],\"#,##0.00\"),\" \",Table_SummaryPI[[#This Row],[SizeUnit]]),\"\")","v":""},{"$f":"SUBSTITUTE(Table_PI[[#This Row],[Measure]],\"     \",\"\",1)","v":""},{"$f":"IF(Table_PI[[#This Row],[List 1]]<>\"\",Table_PI[[#This Row],[List 1]],\"\")","v":""},{"$f":"IF(Table_PI[[#This Row],[List 2]]<>\"\",Table_PI[[#This Row],[List 2]],\"\")","v":""},{"$f":"IF(Table_PI[[#This Row],[List 3]]<>\"\",Table_PI[[#This Row],[List 3]],\"\")","v":""},{"$f":"IF(Table_PI[[#This Row],[Manufacturer]]=\"\",\"\",Table_PI[[#This Row],[Manufacturer]])","v":""},{"$f":"IF(Table_PI[[#This Row],[Model Number]]=\"\",\"\",Table_PI[[#This Row],[Model Number]])","v":""},{"$f":"IF(Table_PI[[#This Row],[Serial Number(s)]]=\"\",\"\",Table_PI[[#This Row],[Serial Number(s)]])","v":""},null,{"$f":"IF(Table_PI[[#This Row],[Size]]=\"\",\"\",Table_PI[[#This Row],[Size]])","v":""},null,null,{"$f":"IF(Table_PI[[#This Row],[Input 1]]<>\"\",Table_PI[[#This Row],[Input 1]],\"\")","v":""},null,null,{"$f":"IF(Table_PI[[#This Row],[Input 2]]<>\"\",Table_PI[[#This Row],[Input 2]],\"\")","v":""},null,null,{"$f":"IF(Table_PI[[#This Row],[Input 3]]<>\"\",Table_PI[[#This Row],[Input 3]],\"\")","v":""},null,null,{"$f":"IF(Table_PI[[#This Row],[Input 4]]<>\"\",Table_PI[[#This Row],[Input 4]],\"\")","v":""},null,null,{"$f":"IF(Table_PI[[#This Row],[Input 4]]<>\"\",Table_PI[[#This Row],[Input 4]],\"\")","v":""},null,null,{"$f":"IF(Table_PI[[#This Row],[Input 4]]<>\"\",Table_PI[[#This Row],[Input 4]],\"\")","v":""},{"$f":"IF(Table_PI[[#This Row],[Quantity]]=\"\",\"\",Table_PI[[#This Row],[Quantity]])","v":""},{"$f":"IF(Table_PI[[#This Row],[Notes]]=\"\",\"\",Table_PI[[#This Row],[Notes]])","v":""},{"$f":"IF(OR(Table_PI[[#This Row],[Hide: Baseline kWh]]=\"\",Table_PI[[#This Row],[Hide: Baseline kWh]]=0,ISTEXT(Table_PI[[#This Row],[Hide: Baseline kWh]])),\"\",Table_PI[[#This Row],[Hide: Baseline kWh]])","v":""},{"$f":"IF(OR(Table_PI[[#This Row],[Hide: Baseline kW]]=\"\",Table_PI[[#This Row],[Hide: Baseline kW]]=0,ISTEXT(Table_PI[[#This Row],[Hide: Baseline kW]])),\"\",Table_PI[[#This Row],[Hide: Baseline kW]])","v":""},{"$f":"IF(OR(Table_PI[[#This Row],[Hide: Proposed kWh]]=\"\",Table_PI[[#This Row],[Hide: Proposed kWh]]=0,ISTEXT(Table_PI[[#This Row],[Hide: Proposed kWh]])),\"\",Table_PI[[#This Row],[Hide: Proposed kWh]])","v":""},{"$f":"IF(OR(Table_PI[[#This Row],[Hide: Proposed kW]]=\"\",Table_PI[[#This Row],[Hide: Proposed kW]]=0,ISTEXT(Table_PI[[#This Row],[Hide: Proposed kW]])),\"\",Table_PI[[#This Row],[Hide: Proposed kW]])","v":""},null,null,{"$f":"IF(OR(Table_PI[[#This Row],[Hide: Rebate]]=\"\",Table_PI[[#This Row],[Hide: Rebate]]=0,ISTEXT(Table_PI[[#This Row],[Hide: Rebate]])),\"\",Table_PI[[#This Row],[Hide: Rebate]])","v":""},null,{"$f":"IF(OR(Table_PI[[#This Row],[Hide: Incremental Cost]]=\"\",Table_PI[[#This Row],[Hide: Incremental Cost]]=0,ISTEXT(Table_PI[[#This Row],[Hide: Incremental Cost]])),\"\",Table_PI[[#This Row],[Hide: Incremental Cost]])","v":""},{"$f":"IFERROR(IF(Table_SummaryPI[[#This Row],[Incentive_Customer]]=\"\",\"\",ROUND(Table_SummaryPI[[#This Row],[Incentive_Customer]]/$AM$401*'Customer Information'!$BC$21,2)),0)","v":""},{"$f":"IF(OR(Table_PI[[#This Row],[Annual kWh]]=\"\",Table_PI[[#This Row],[Annual kWh]]=0,ISTEXT(Table_PI[[#This Row],[Annual kWh]])),\"\",Table_PI[[#This Row],[Annual kWh]])","v":""},{"$f":"IF(OR(Table_PI[[#This Row],[Peak kW]]=\"\",Table_PI[[#This Row],[Peak kW]]=0,ISTEXT(Table_PI[[#This Row],[Peak kW]])),\"\",Table_PI[[#This Row],[Peak kW]])","v":""},{"$f":"IF(Table_SummaryPI[[#This Row],[Line No.]]<>\"\",IF(AND(ISNUMBER(FIND(\"Chiller\",Table_SummaryPI[[#This Row],[P_MeasureOption1]],1)),Table_SummaryPI[[#This Row],[ProposedMeasureCategory]]=\"Air-Cooled (Water-Cooled Replacement)\"),$BD$29*Table_SummaryPI[[#This Row],[Size]]*Table_SummaryPI[[#This Row],[Quantity]]*Table_SummaryPI[[#This Row],[EFLHCooling]],\nIF(ISNUMBER(FIND(\"Dishwasher\",Table_SummaryPI[[#This Row],[ProposedMeasureCategory]],1)),$BH$29*Table_SummaryPI[[#This Row],[Quantity]],\nIF(ISNUMBER(FIND(\"Ice Maker\",Table_SummaryPI[[#This Row],[ProposedMeasureCategory]],1)),$BD$31*Table_SummaryPI[[#This Row],[Quantity]],\nIF(ISNUMBER(FIND(\"Spray Valve\",Table_SummaryPI[[#This Row],[ProposedMeasureCategory]],1)),$BH$31*Table_SummaryPI[[#This Row],[Quantity]],\n0)))),\"\")","v":""},{"$f":"IF(OR(Table_PI[[#This Row],[Hide: Electrification kWh]]=\"\",Table_PI[[#This Row],[Hide: Electrification kWh]]=0,ISTEXT(Table_PI[[#This Row],[Hide: Electrification kWh]])),\"\",Table_PI[[#This Row],[Hide: Electrification kWh]])","v":""},{"$f":"IF(OR(Table_PI[[#This Row],[Hide: Electrification GHG]]=\"\",Table_PI[[#This Row],[Hide: Electrification GHG]]=0,ISTEXT(Table_PI[[#This Row],[Hide: Electrification GHG]])),\"\",Table_PI[[#This Row],[Hide: Electrification GHG]])","v":""},{"$f":"IFERROR(IF(Table_SummaryPI[[#This Row],[kWhSavings]]=\"\",\"\",$BH$9*Table_SummaryPI[[#This Row],[kWhSavings]]),0)","v":""},{"$f":"IFERROR(IF(Table_SummaryPI[[#This Row],[kWhSavings]]=\"\",\"\",$BH$14*Table_SummaryPI[[#This Row],[kWhSavings]]),0)","v":""},{"$f":"IFERROR(IF(Table_SummaryPI[[#This Row],[kWhSavings]]=\"\",\"\",$BH$18*Table_SummaryPI[[#This Row],[kWhSavings]]),0)","v":""},{"$f":"IFERROR(IF(Table_SummaryPI[[#This Row],[kWhSavings]]=\"\",\"\",$BH$22*Table_SummaryPI[[#This Row],[kWhSavings]]),0)","v":""}]
[{"$f":"Table_PI[[#This Row],[Line No.]]","v":""},{"$f":"IF(Table_SummaryPI[[#This Row],[MeasureName]]<>\"\",NOT(ISTEXT(Table_PI[[#This Row],[Rebate]])),\"\")","v":""},{"$f":"IF(Table_SummaryPI[[#This Row],[MeassureCategory]]<>\"\",CONCATENATE(Table_SummaryPI[[#This Row],[MeassureCategory]],  \" - \", Table_SummaryPI[[#This Row],[ProposedMeasureCategory]],  \" - \", TEXT(Table_SummaryPI[[#This Row],[Size]],\"#,##0.00\"),\" \",Table_SummaryPI[[#This Row],[SizeUnit]]),\"\")","v":""},{"$f":"SUBSTITUTE(Table_PI[[#This Row],[Measure]],\"     \",\"\",1)","v":""},{"$f":"IF(Table_PI[[#This Row],[List 1]]<>\"\",Table_PI[[#This Row],[List 1]],\"\")","v":""},{"$f":"IF(Table_PI[[#This Row],[List 2]]<>\"\",Table_PI[[#This Row],[List 2]],\"\")","v":""},{"$f":"IF(Table_PI[[#This Row],[List 3]]<>\"\",Table_PI[[#This Row],[List 3]],\"\")","v":""},{"$f":"IF(Table_PI[[#This Row],[Manufacturer]]=\"\",\"\",Table_PI[[#This Row],[Manufacturer]])","v":""},{"$f":"IF(Table_PI[[#This Row],[Model Number]]=\"\",\"\",Table_PI[[#This Row],[Model Number]])","v":""},{"$f":"IF(Table_PI[[#This Row],[Serial Number(s)]]=\"\",\"\",Table_PI[[#This Row],[Serial Number(s)]])","v":""},null,{"$f":"IF(Table_PI[[#This Row],[Size]]=\"\",\"\",Table_PI[[#This Row],[Size]])","v":""},null,null,{"$f":"IF(Table_PI[[#This Row],[Input 1]]<>\"\",Table_PI[[#This Row],[Input 1]],\"\")","v":""},null,null,{"$f":"IF(Table_PI[[#This Row],[Input 2]]<>\"\",Table_PI[[#This Row],[Input 2]],\"\")","v":""},null,null,{"$f":"IF(Table_PI[[#This Row],[Input 3]]<>\"\",Table_PI[[#This Row],[Input 3]],\"\")","v":""},null,null,{"$f":"IF(Table_PI[[#This Row],[Input 4]]<>\"\",Table_PI[[#This Row],[Input 4]],\"\")","v":""},null,null,{"$f":"IF(Table_PI[[#This Row],[Input 4]]<>\"\",Table_PI[[#This Row],[Input 4]],\"\")","v":""},null,null,{"$f":"IF(Table_PI[[#This Row],[Input 4]]<>\"\",Table_PI[[#This Row],[Input 4]],\"\")","v":""},{"$f":"IF(Table_PI[[#This Row],[Quantity]]=\"\",\"\",Table_PI[[#This Row],[Quantity]])","v":""},{"$f":"IF(Table_PI[[#This Row],[Notes]]=\"\",\"\",Table_PI[[#This Row],[Notes]])","v":""},{"$f":"IF(OR(Table_PI[[#This Row],[Hide: Baseline kWh]]=\"\",Table_PI[[#This Row],[Hide: Baseline kWh]]=0,ISTEXT(Table_PI[[#This Row],[Hide: Baseline kWh]])),\"\",Table_PI[[#This Row],[Hide: Baseline kWh]])","v":""},{"$f":"IF(OR(Table_PI[[#This Row],[Hide: Baseline kW]]=\"\",Table_PI[[#This Row],[Hide: Baseline kW]]=0,ISTEXT(Table_PI[[#This Row],[Hide: Baseline kW]])),\"\",Table_PI[[#This Row],[Hide: Baseline kW]])","v":""},{"$f":"IF(OR(Table_PI[[#This Row],[Hide: Proposed kWh]]=\"\",Table_PI[[#This Row],[Hide: Proposed kWh]]=0,ISTEXT(Table_PI[[#This Row],[Hide: Proposed kWh]])),\"\",Table_PI[[#This Row],[Hide: Proposed kWh]])","v":""},{"$f":"IF(OR(Table_PI[[#This Row],[Hide: Proposed kW]]=\"\",Table_PI[[#This Row],[Hide: Proposed kW]]=0,ISTEXT(Table_PI[[#This Row],[Hide: Proposed kW]])),\"\",Table_PI[[#This Row],[Hide: Proposed kW]])","v":""},null,null,{"$f":"IF(OR(Table_PI[[#This Row],[Hide: Rebate]]=\"\",Table_PI[[#This Row],[Hide: Rebate]]=0,ISTEXT(Table_PI[[#This Row],[Hide: Rebate]])),\"\",Table_PI[[#This Row],[Hide: Rebate]])","v":""},null,{"$f":"IF(OR(Table_PI[[#This Row],[Hide: Incremental Cost]]=\"\",Table_PI[[#This Row],[Hide: Incremental Cost]]=0,ISTEXT(Table_PI[[#This Row],[Hide: Incremental Cost]])),\"\",Table_PI[[#This Row],[Hide: Incremental Cost]])","v":""},{"$f":"IFERROR(IF(Table_SummaryPI[[#This Row],[Incentive_Customer]]=\"\",\"\",ROUND(Table_SummaryPI[[#This Row],[Incentive_Customer]]/$AM$401*'Customer Information'!$BC$21,2)),0)","v":""},{"$f":"IF(OR(Table_PI[[#This Row],[Annual kWh]]=\"\",Table_PI[[#This Row],[Annual kWh]]=0,ISTEXT(Table_PI[[#This Row],[Annual kWh]])),\"\",Table_PI[[#This Row],[Annual kWh]])","v":""},{"$f":"IF(OR(Table_PI[[#This Row],[Peak kW]]=\"\",Table_PI[[#This Row],[Peak kW]]=0,ISTEXT(Table_PI[[#This Row],[Peak kW]])),\"\",Table_PI[[#This Row],[Peak kW]])","v":""},{"$f":"IF(Table_SummaryPI[[#This Row],[Line No.]]<>\"\",IF(AND(ISNUMBER(FIND(\"Chiller\",Table_SummaryPI[[#This Row],[P_MeasureOption1]],1)),Table_SummaryPI[[#This Row],[ProposedMeasureCategory]]=\"Air-Cooled (Water-Cooled Replacement)\"),$BD$29*Table_SummaryPI[[#This Row],[Size]]*Table_SummaryPI[[#This Row],[Quantity]]*Table_SummaryPI[[#This Row],[EFLHCooling]],\nIF(ISNUMBER(FIND(\"Dishwasher\",Table_SummaryPI[[#This Row],[ProposedMeasureCategory]],1)),$BH$29*Table_SummaryPI[[#This Row],[Quantity]],\nIF(ISNUMBER(FIND(\"Ice Maker\",Table_SummaryPI[[#This Row],[ProposedMeasureCategory]],1)),$BD$31*Table_SummaryPI[[#This Row],[Quantity]],\nIF(ISNUMBER(FIND(\"Spray Valve\",Table_SummaryPI[[#This Row],[ProposedMeasureCategory]],1)),$BH$31*Table_SummaryPI[[#This Row],[Quantity]],\n0)))),\"\")","v":""},{"$f":"IF(OR(Table_PI[[#This Row],[Hide: Electrification kWh]]=\"\",Table_PI[[#This Row],[Hide: Electrification kWh]]=0,ISTEXT(Table_PI[[#This Row],[Hide: Electrification kWh]])),\"\",Table_PI[[#This Row],[Hide: Electrification kWh]])","v":""},{"$f":"IF(OR(Table_PI[[#This Row],[Hide: Electrification GHG]]=\"\",Table_PI[[#This Row],[Hide: Electrification GHG]]=0,ISTEXT(Table_PI[[#This Row],[Hide: Electrification GHG]])),\"\",Table_PI[[#This Row],[Hide: Electrification GHG]])","v":""},{"$f":"IFERROR(IF(Table_SummaryPI[[#This Row],[kWhSavings]]=\"\",\"\",$BH$9*Table_SummaryPI[[#This Row],[kWhSavings]]),0)","v":""},{"$f":"IFERROR(IF(Table_SummaryPI[[#This Row],[kWhSavings]]=\"\",\"\",$BH$14*Table_SummaryPI[[#This Row],[kWhSavings]]),0)","v":""},{"$f":"IFERROR(IF(Table_SummaryPI[[#This Row],[kWhSavings]]=\"\",\"\",$BH$18*Table_SummaryPI[[#This Row],[kWhSavings]]),0)","v":""},{"$f":"IFERROR(IF(Table_SummaryPI[[#This Row],[kWhSavings]]=\"\",\"\",$BH$22*Table_SummaryPI[[#This Row],[kWhSavings]]),0)","v":""}]
[{"$f":"Table_PI[[#This Row],[Line No.]]","v":""},{"$f":"IF(Table_SummaryPI[[#This Row],[MeasureName]]<>\"\",NOT(ISTEXT(Table_PI[[#This Row],[Rebate]])),\"\")","v":""},{"$f":"IF(Table_SummaryPI[[#This Row],[MeassureCategory]]<>\"\",CONCATENATE(Table_SummaryPI[[#This Row],[MeassureCategory]],  \" - \", Table_SummaryPI[[#This Row],[ProposedMeasureCategory]],  \" - \", TEXT(Table_SummaryPI[[#This Row],[Size]],\"#,##0.00\"),\" \",Table_SummaryPI[[#This Row],[SizeUnit]]),\"\")","v":""},{"$f":"SUBSTITUTE(Table_PI[[#This Row],[Measure]],\"     \",\"\",1)","v":""},{"$f":"IF(Table_PI[[#This Row],[List 1]]<>\"\",Table_PI[[#This Row],[List 1]],\"\")","v":""},{"$f":"IF(Table_PI[[#This Row],[List 2]]<>\"\",Table_PI[[#This Row],[List 2]],\"\")","v":""},{"$f":"IF(Table_PI[[#This Row],[List 3]]<>\"\",Table_PI[[#This Row],[List 3]],\"\")","v":""},{"$f":"IF(Table_PI[[#This Row],[Manufacturer]]=\"\",\"\",Table_PI[[#This Row],[Manufacturer]])","v":""},{"$f":"IF(Table_PI[[#This Row],[Model Number]]=\"\",\"\",Table_PI[[#This Row],[Model Number]])","v":""},{"$f":"IF(Table_PI[[#This Row],[Serial Number(s)]]=\"\",\"\",Table_PI[[#This Row],[Serial Number(s)]])","v":""},null,{"$f":"IF(Table_PI[[#This Row],[Size]]=\"\",\"\",Table_PI[[#This Row],[Size]])","v":""},null,null,{"$f":"IF(Table_PI[[#This Row],[Input 1]]<>\"\",Table_PI[[#This Row],[Input 1]],\"\")","v":""},null,null,{"$f":"IF(Table_PI[[#This Row],[Input 2]]<>\"\",Table_PI[[#This Row],[Input 2]],\"\")","v":""},null,null,{"$f":"IF(Table_PI[[#This Row],[Input 3]]<>\"\",Table_PI[[#This Row],[Input 3]],\"\")","v":""},null,null,{"$f":"IF(Table_PI[[#This Row],[Input 4]]<>\"\",Table_PI[[#This Row],[Input 4]],\"\")","v":""},null,null,{"$f":"IF(Table_PI[[#This Row],[Input 4]]<>\"\",Table_PI[[#This Row],[Input 4]],\"\")","v":""},null,null,{"$f":"IF(Table_PI[[#This Row],[Input 4]]<>\"\",Table_PI[[#This Row],[Input 4]],\"\")","v":""},{"$f":"IF(Table_PI[[#This Row],[Quantity]]=\"\",\"\",Table_PI[[#This Row],[Quantity]])","v":""},{"$f":"IF(Table_PI[[#This Row],[Notes]]=\"\",\"\",Table_PI[[#This Row],[Notes]])","v":""},{"$f":"IF(OR(Table_PI[[#This Row],[Hide: Baseline kWh]]=\"\",Table_PI[[#This Row],[Hide: Baseline kWh]]=0,ISTEXT(Table_PI[[#This Row],[Hide: Baseline kWh]])),\"\",Table_PI[[#This Row],[Hide: Baseline kWh]])","v":""},{"$f":"IF(OR(Table_PI[[#This Row],[Hide: Baseline kW]]=\"\",Table_PI[[#This Row],[Hide: Baseline kW]]=0,ISTEXT(Table_PI[[#This Row],[Hide: Baseline kW]])),\"\",Table_PI[[#This Row],[Hide: Baseline kW]])","v":""},{"$f":"IF(OR(Table_PI[[#This Row],[Hide: Proposed kWh]]=\"\",Table_PI[[#This Row],[Hide: Proposed kWh]]=0,ISTEXT(Table_PI[[#This Row],[Hide: Proposed kWh]])),\"\",Table_PI[[#This Row],[Hide: Proposed kWh]])","v":""},{"$f":"IF(OR(Table_PI[[#This Row],[Hide: Proposed kW]]=\"\",Table_PI[[#This Row],[Hide: Proposed kW]]=0,ISTEXT(Table_PI[[#This Row],[Hide: Proposed kW]])),\"\",Table_PI[[#This Row],[Hide: Proposed kW]])","v":""},null,null,{"$f":"IF(OR(Table_PI[[#This Row],[Hide: Rebate]]=\"\",Table_PI[[#This Row],[Hide: Rebate]]=0,ISTEXT(Table_PI[[#This Row],[Hide: Rebate]])),\"\",Table_PI[[#This Row],[Hide: Rebate]])","v":""},null,{"$f":"IF(OR(Table_PI[[#This Row],[Hide: Incremental Cost]]=\"\",Table_PI[[#This Row],[Hide: Incremental Cost]]=0,ISTEXT(Table_PI[[#This Row],[Hide: Incremental Cost]])),\"\",Table_PI[[#This Row],[Hide: Incremental Cost]])","v":""},{"$f":"IFERROR(IF(Table_SummaryPI[[#This Row],[Incentive_Customer]]=\"\",\"\",ROUND(Table_SummaryPI[[#This Row],[Incentive_Customer]]/$AM$401*'Customer Information'!$BC$21,2)),0)","v":""},{"$f":"IF(OR(Table_PI[[#This Row],[Annual kWh]]=\"\",Table_PI[[#This Row],[Annual kWh]]=0,ISTEXT(Table_PI[[#This Row],[Annual kWh]])),\"\",Table_PI[[#This Row],[Annual kWh]])","v":""},{"$f":"IF(OR(Table_PI[[#This Row],[Peak kW]]=\"\",Table_PI[[#This Row],[Peak kW]]=0,ISTEXT(Table_PI[[#This Row],[Peak kW]])),\"\",Table_PI[[#This Row],[Peak kW]])","v":""},{"$f":"IF(Table_SummaryPI[[#This Row],[Line No.]]<>\"\",IF(AND(ISNUMBER(FIND(\"Chiller\",Table_SummaryPI[[#This Row],[P_MeasureOption1]],1)),Table_SummaryPI[[#This Row],[ProposedMeasureCategory]]=\"Air-Cooled (Water-Cooled Replacement)\"),$BD$29*Table_SummaryPI[[#This Row],[Size]]*Table_SummaryPI[[#This Row],[Quantity]]*Table_SummaryPI[[#This Row],[EFLHCooling]],\nIF(ISNUMBER(FIND(\"Dishwasher\",Table_SummaryPI[[#This Row],[ProposedMeasureCategory]],1)),$BH$29*Table_SummaryPI[[#This Row],[Quantity]],\nIF(ISNUMBER(FIND(\"Ice Maker\",Table_SummaryPI[[#This Row],[ProposedMeasureCategory]],1)),$BD$31*Table_SummaryPI[[#This Row],[Quantity]],\nIF(ISNUMBER(FIND(\"Spray Valve\",Table_SummaryPI[[#This Row],[ProposedMeasureCategory]],1)),$BH$31*Table_SummaryPI[[#This Row],[Quantity]],\n0)))),\"\")","v":""},{"$f":"IF(OR(Table_PI[[#This Row],[Hide: Electrification kWh]]=\"\",Table_PI[[#This Row],[Hide: Electrification kWh]]=0,ISTEXT(Table_PI[[#This Row],[Hide: Electrification kWh]])),\"\",Table_PI[[#This Row],[Hide: Electrification kWh]])","v":""},{"$f":"IF(OR(Table_PI[[#This Row],[Hide: Electrification GHG]]=\"\",Table_PI[[#This Row],[Hide: Electrification GHG]]=0,ISTEXT(Table_PI[[#This Row],[Hide: Electrification GHG]])),\"\",Table_PI[[#This Row],[Hide: Electrification GHG]])","v":""},{"$f":"IFERROR(IF(Table_SummaryPI[[#This Row],[kWhSavings]]=\"\",\"\",$BH$9*Table_SummaryPI[[#This Row],[kWhSavings]]),0)","v":""},{"$f":"IFERROR(IF(Table_SummaryPI[[#This Row],[kWhSavings]]=\"\",\"\",$BH$14*Table_SummaryPI[[#This Row],[kWhSavings]]),0)","v":""},{"$f":"IFERROR(IF(Table_SummaryPI[[#This Row],[kWhSavings]]=\"\",\"\",$BH$18*Table_SummaryPI[[#This Row],[kWhSavings]]),0)","v":""},{"$f":"IFERROR(IF(Table_SummaryPI[[#This Row],[kWhSavings]]=\"\",\"\",$BH$22*Table_SummaryPI[[#This Row],[kWhSavings]]),0)","v":""}]
[{"$f":"Table_PI[[#This Row],[Line No.]]","v":""},{"$f":"IF(Table_SummaryPI[[#This Row],[MeasureName]]<>\"\",NOT(ISTEXT(Table_PI[[#This Row],[Rebate]])),\"\")","v":""},{"$f":"IF(Table_SummaryPI[[#This Row],[MeassureCategory]]<>\"\",CONCATENATE(Table_SummaryPI[[#This Row],[MeassureCategory]],  \" - \", Table_SummaryPI[[#This Row],[ProposedMeasureCategory]],  \" - \", TEXT(Table_SummaryPI[[#This Row],[Size]],\"#,##0.00\"),\" \",Table_SummaryPI[[#This Row],[SizeUnit]]),\"\")","v":""},{"$f":"SUBSTITUTE(Table_PI[[#This Row],[Measure]],\"     \",\"\",1)","v":""},{"$f":"IF(Table_PI[[#This Row],[List 1]]<>\"\",Table_PI[[#This Row],[List 1]],\"\")","v":""},{"$f":"IF(Table_PI[[#This Row],[List 2]]<>\"\",Table_PI[[#This Row],[List 2]],\"\")","v":""},{"$f":"IF(Table_PI[[#This Row],[List 3]]<>\"\",Table_PI[[#This Row],[List 3]],\"\")","v":""},{"$f":"IF(Table_PI[[#This Row],[Manufacturer]]=\"\",\"\",Table_PI[[#This Row],[Manufacturer]])","v":""},{"$f":"IF(Table_PI[[#This Row],[Model Number]]=\"\",\"\",Table_PI[[#This Row],[Model Number]])","v":""},{"$f":"IF(Table_PI[[#This Row],[Serial Number(s)]]=\"\",\"\",Table_PI[[#This Row],[Serial Number(s)]])","v":""},null,{"$f":"IF(Table_PI[[#This Row],[Size]]=\"\",\"\",Table_PI[[#This Row],[Size]])","v":""},null,null,{"$f":"IF(Table_PI[[#This Row],[Input 1]]<>\"\",Table_PI[[#This Row],[Input 1]],\"\")","v":""},null,null,{"$f":"IF(Table_PI[[#This Row],[Input 2]]<>\"\",Table_PI[[#This Row],[Input 2]],\"\")","v":""},null,null,{"$f":"IF(Table_PI[[#This Row],[Input 3]]<>\"\",Table_PI[[#This Row],[Input 3]],\"\")","v":""},null,null,{"$f":"IF(Table_PI[[#This Row],[Input 4]]<>\"\",Table_PI[[#This Row],[Input 4]],\"\")","v":""},null,null,{"$f":"IF(Table_PI[[#This Row],[Input 4]]<>\"\",Table_PI[[#This Row],[Input 4]],\"\")","v":""},null,null,{"$f":"IF(Table_PI[[#This Row],[Input 4]]<>\"\",Table_PI[[#This Row],[Input 4]],\"\")","v":""},{"$f":"IF(Table_PI[[#This Row],[Quantity]]=\"\",\"\",Table_PI[[#This Row],[Quantity]])","v":""},{"$f":"IF(Table_PI[[#This Row],[Notes]]=\"\",\"\",Table_PI[[#This Row],[Notes]])","v":""},{"$f":"IF(OR(Table_PI[[#This Row],[Hide: Baseline kWh]]=\"\",Table_PI[[#This Row],[Hide: Baseline kWh]]=0,ISTEXT(Table_PI[[#This Row],[Hide: Baseline kWh]])),\"\",Table_PI[[#This Row],[Hide: Baseline kWh]])","v":""},{"$f":"IF(OR(Table_PI[[#This Row],[Hide: Baseline kW]]=\"\",Table_PI[[#This Row],[Hide: Baseline kW]]=0,ISTEXT(Table_PI[[#This Row],[Hide: Baseline kW]])),\"\",Table_PI[[#This Row],[Hide: Baseline kW]])","v":""},{"$f":"IF(OR(Table_PI[[#This Row],[Hide: Proposed kWh]]=\"\",Table_PI[[#This Row],[Hide: Proposed kWh]]=0,ISTEXT(Table_PI[[#This Row],[Hide: Proposed kWh]])),\"\",Table_PI[[#This Row],[Hide: Proposed kWh]])","v":""},{"$f":"IF(OR(Table_PI[[#This Row],[Hide: Proposed kW]]=\"\",Table_PI[[#This Row],[Hide: Proposed kW]]=0,ISTEXT(Table_PI[[#This Row],[Hide: Proposed kW]])),\"\",Table_PI[[#This Row],[Hide: Proposed kW]])","v":""},null,null,{"$f":"IF(OR(Table_PI[[#This Row],[Hide: Rebate]]=\"\",Table_PI[[#This Row],[Hide: Rebate]]=0,ISTEXT(Table_PI[[#This Row],[Hide: Rebate]])),\"\",Table_PI[[#This Row],[Hide: Rebate]])","v":""},null,{"$f":"IF(OR(Table_PI[[#This Row],[Hide: Incremental Cost]]=\"\",Table_PI[[#This Row],[Hide: Incremental Cost]]=0,ISTEXT(Table_PI[[#This Row],[Hide: Incremental Cost]])),\"\",Table_PI[[#This Row],[Hide: Incremental Cost]])","v":""},{"$f":"IFERROR(IF(Table_SummaryPI[[#This Row],[Incentive_Customer]]=\"\",\"\",ROUND(Table_SummaryPI[[#This Row],[Incentive_Customer]]/$AM$401*'Customer Information'!$BC$21,2)),0)","v":""},{"$f":"IF(OR(Table_PI[[#This Row],[Annual kWh]]=\"\",Table_PI[[#This Row],[Annual kWh]]=0,ISTEXT(Table_PI[[#This Row],[Annual kWh]])),\"\",Table_PI[[#This Row],[Annual kWh]])","v":""},{"$f":"IF(OR(Table_PI[[#This Row],[Peak kW]]=\"\",Table_PI[[#This Row],[Peak kW]]=0,ISTEXT(Table_PI[[#This Row],[Peak kW]])),\"\",Table_PI[[#This Row],[Peak kW]])","v":""},{"$f":"IF(Table_SummaryPI[[#This Row],[Line No.]]<>\"\",IF(AND(ISNUMBER(FIND(\"Chiller\",Table_SummaryPI[[#This Row],[P_MeasureOption1]],1)),Table_SummaryPI[[#This Row],[ProposedMeasureCategory]]=\"Air-Cooled (Water-Cooled Replacement)\"),$BD$29*Table_SummaryPI[[#This Row],[Size]]*Table_SummaryPI[[#This Row],[Quantity]]*Table_SummaryPI[[#This Row],[EFLHCooling]],\nIF(ISNUMBER(FIND(\"Dishwasher\",Table_SummaryPI[[#This Row],[ProposedMeasureCategory]],1)),$BH$29*Table_SummaryPI[[#This Row],[Quantity]],\nIF(ISNUMBER(FIND(\"Ice Maker\",Table_SummaryPI[[#This Row],[ProposedMeasureCategory]],1)),$BD$31*Table_SummaryPI[[#This Row],[Quantity]],\nIF(ISNUMBER(FIND(\"Spray Valve\",Table_SummaryPI[[#This Row],[ProposedMeasureCategory]],1)),$BH$31*Table_SummaryPI[[#This Row],[Quantity]],\n0)))),\"\")","v":""},{"$f":"IF(OR(Table_PI[[#This Row],[Hide: Electrification kWh]]=\"\",Table_PI[[#This Row],[Hide: Electrification kWh]]=0,ISTEXT(Table_PI[[#This Row],[Hide: Electrification kWh]])),\"\",Table_PI[[#This Row],[Hide: Electrification kWh]])","v":""},{"$f":"IF(OR(Table_PI[[#This Row],[Hide: Electrification GHG]]=\"\",Table_PI[[#This Row],[Hide: Electrification GHG]]=0,ISTEXT(Table_PI[[#This Row],[Hide: Electrification GHG]])),\"\",Table_PI[[#This Row],[Hide: Electrification GHG]])","v":""},{"$f":"IFERROR(IF(Table_SummaryPI[[#This Row],[kWhSavings]]=\"\",\"\",$BH$9*Table_SummaryPI[[#This Row],[kWhSavings]]),0)","v":""},{"$f":"IFERROR(IF(Table_SummaryPI[[#This Row],[kWhSavings]]=\"\",\"\",$BH$14*Table_SummaryPI[[#This Row],[kWhSavings]]),0)","v":""},{"$f":"IFERROR(IF(Table_SummaryPI[[#This Row],[kWhSavings]]=\"\",\"\",$BH$18*Table_SummaryPI[[#This Row],[kWhSavings]]),0)","v":""},{"$f":"IFERROR(IF(Table_SummaryPI[[#This Row],[kWhSavings]]=\"\",\"\",$BH$22*Table_SummaryPI[[#This Row],[kWhSavings]]),0)","v":""}]
[{"$f":"Table_PI[[#This Row],[Line No.]]","v":""},{"$f":"IF(Table_SummaryPI[[#This Row],[MeasureName]]<>\"\",NOT(ISTEXT(Table_PI[[#This Row],[Rebate]])),\"\")","v":""},{"$f":"IF(Table_SummaryPI[[#This Row],[MeassureCategory]]<>\"\",CONCATENATE(Table_SummaryPI[[#This Row],[MeassureCategory]],  \" - \", Table_SummaryPI[[#This Row],[ProposedMeasureCategory]],  \" - \", TEXT(Table_SummaryPI[[#This Row],[Size]],\"#,##0.00\"),\" \",Table_SummaryPI[[#This Row],[SizeUnit]]),\"\")","v":""},{"$f":"SUBSTITUTE(Table_PI[[#This Row],[Measure]],\"     \",\"\",1)","v":""},{"$f":"IF(Table_PI[[#This Row],[List 1]]<>\"\",Table_PI[[#This Row],[List 1]],\"\")","v":""},{"$f":"IF(Table_PI[[#This Row],[List 2]]<>\"\",Table_PI[[#This Row],[List 2]],\"\")","v":""},{"$f":"IF(Table_PI[[#This Row],[List 3]]<>\"\",Table_PI[[#This Row],[List 3]],\"\")","v":""},{"$f":"IF(Table_PI[[#This Row],[Manufacturer]]=\"\",\"\",Table_PI[[#This Row],[Manufacturer]])","v":""},{"$f":"IF(Table_PI[[#This Row],[Model Number]]=\"\",\"\",Table_PI[[#This Row],[Model Number]])","v":""},{"$f":"IF(Table_PI[[#This Row],[Serial Number(s)]]=\"\",\"\",Table_PI[[#This Row],[Serial Number(s)]])","v":""},null,{"$f":"IF(Table_PI[[#This Row],[Size]]=\"\",\"\",Table_PI[[#This Row],[Size]])","v":""},null,null,{"$f":"IF(Table_PI[[#This Row],[Input 1]]<>\"\",Table_PI[[#This Row],[Input 1]],\"\")","v":""},null,null,{"$f":"IF(Table_PI[[#This Row],[Input 2]]<>\"\",Table_PI[[#This Row],[Input 2]],\"\")","v":""},null,null,{"$f":"IF(Table_PI[[#This Row],[Input 3]]<>\"\",Table_PI[[#This Row],[Input 3]],\"\")","v":""},null,null,{"$f":"IF(Table_PI[[#This Row],[Input 4]]<>\"\",Table_PI[[#This Row],[Input 4]],\"\")","v":""},null,null,{"$f":"IF(Table_PI[[#This Row],[Input 4]]<>\"\",Table_PI[[#This Row],[Input 4]],\"\")","v":""},null,null,{"$f":"IF(Table_PI[[#This Row],[Input 4]]<>\"\",Table_PI[[#This Row],[Input 4]],\"\")","v":""},{"$f":"IF(Table_PI[[#This Row],[Quantity]]=\"\",\"\",Table_PI[[#This Row],[Quantity]])","v":""},{"$f":"IF(Table_PI[[#This Row],[Notes]]=\"\",\"\",Table_PI[[#This Row],[Notes]])","v":""},{"$f":"IF(OR(Table_PI[[#This Row],[Hide: Baseline kWh]]=\"\",Table_PI[[#This Row],[Hide: Baseline kWh]]=0,ISTEXT(Table_PI[[#This Row],[Hide: Baseline kWh]])),\"\",Table_PI[[#This Row],[Hide: Baseline kWh]])","v":""},{"$f":"IF(OR(Table_PI[[#This Row],[Hide: Baseline kW]]=\"\",Table_PI[[#This Row],[Hide: Baseline kW]]=0,ISTEXT(Table_PI[[#This Row],[Hide: Baseline kW]])),\"\",Table_PI[[#This Row],[Hide: Baseline kW]])","v":""},{"$f":"IF(OR(Table_PI[[#This Row],[Hide: Proposed kWh]]=\"\",Table_PI[[#This Row],[Hide: Proposed kWh]]=0,ISTEXT(Table_PI[[#This Row],[Hide: Proposed kWh]])),\"\",Table_PI[[#This Row],[Hide: Proposed kWh]])","v":""},{"$f":"IF(OR(Table_PI[[#This Row],[Hide: Proposed kW]]=\"\",Table_PI[[#This Row],[Hide: Proposed kW]]=0,ISTEXT(Table_PI[[#This Row],[Hide: Proposed kW]])),\"\",Table_PI[[#This Row],[Hide: Proposed kW]])","v":""},null,null,{"$f":"IF(OR(Table_PI[[#This Row],[Hide: Rebate]]=\"\",Table_PI[[#This Row],[Hide: Rebate]]=0,ISTEXT(Table_PI[[#This Row],[Hide: Rebate]])),\"\",Table_PI[[#This Row],[Hide: Rebate]])","v":""},null,{"$f":"IF(OR(Table_PI[[#This Row],[Hide: Incremental Cost]]=\"\",Table_PI[[#This Row],[Hide: Incremental Cost]]=0,ISTEXT(Table_PI[[#This Row],[Hide: Incremental Cost]])),\"\",Table_PI[[#This Row],[Hide: Incremental Cost]])","v":""},{"$f":"IFERROR(IF(Table_SummaryPI[[#This Row],[Incentive_Customer]]=\"\",\"\",ROUND(Table_SummaryPI[[#This Row],[Incentive_Customer]]/$AM$401*'Customer Information'!$BC$21,2)),0)","v":""},{"$f":"IF(OR(Table_PI[[#This Row],[Annual kWh]]=\"\",Table_PI[[#This Row],[Annual kWh]]=0,ISTEXT(Table_PI[[#This Row],[Annual kWh]])),\"\",Table_PI[[#This Row],[Annual kWh]])","v":""},{"$f":"IF(OR(Table_PI[[#This Row],[Peak kW]]=\"\",Table_PI[[#This Row],[Peak kW]]=0,ISTEXT(Table_PI[[#This Row],[Peak kW]])),\"\",Table_PI[[#This Row],[Peak kW]])","v":""},{"$f":"IF(Table_SummaryPI[[#This Row],[Line No.]]<>\"\",IF(AND(ISNUMBER(FIND(\"Chiller\",Table_SummaryPI[[#This Row],[P_MeasureOption1]],1)),Table_SummaryPI[[#This Row],[ProposedMeasureCategory]]=\"Air-Cooled (Water-Cooled Replacement)\"),$BD$29*Table_SummaryPI[[#This Row],[Size]]*Table_SummaryPI[[#This Row],[Quantity]]*Table_SummaryPI[[#This Row],[EFLHCooling]],\nIF(ISNUMBER(FIND(\"Dishwasher\",Table_SummaryPI[[#This Row],[ProposedMeasureCategory]],1)),$BH$29*Table_SummaryPI[[#This Row],[Quantity]],\nIF(ISNUMBER(FIND(\"Ice Maker\",Table_SummaryPI[[#This Row],[ProposedMeasureCategory]],1)),$BD$31*Table_SummaryPI[[#This Row],[Quantity]],\nIF(ISNUMBER(FIND(\"Spray Valve\",Table_SummaryPI[[#This Row],[ProposedMeasureCategory]],1)),$BH$31*Table_SummaryPI[[#This Row],[Quantity]],\n0)))),\"\")","v":""},{"$f":"IF(OR(Table_PI[[#This Row],[Hide: Electrification kWh]]=\"\",Table_PI[[#This Row],[Hide: Electrification kWh]]=0,ISTEXT(Table_PI[[#This Row],[Hide: Electrification kWh]])),\"\",Table_PI[[#This Row],[Hide: Electrification kWh]])","v":""},{"$f":"IF(OR(Table_PI[[#This Row],[Hide: Electrification GHG]]=\"\",Table_PI[[#This Row],[Hide: Electrification GHG]]=0,ISTEXT(Table_PI[[#This Row],[Hide: Electrification GHG]])),\"\",Table_PI[[#This Row],[Hide: Electrification GHG]])","v":""},{"$f":"IFERROR(IF(Table_SummaryPI[[#This Row],[kWhSavings]]=\"\",\"\",$BH$9*Table_SummaryPI[[#This Row],[kWhSavings]]),0)","v":""},{"$f":"IFERROR(IF(Table_SummaryPI[[#This Row],[kWhSavings]]=\"\",\"\",$BH$14*Table_SummaryPI[[#This Row],[kWhSavings]]),0)","v":""},{"$f":"IFERROR(IF(Table_SummaryPI[[#This Row],[kWhSavings]]=\"\",\"\",$BH$18*Table_SummaryPI[[#This Row],[kWhSavings]]),0)","v":""},{"$f":"IFERROR(IF(Table_SummaryPI[[#This Row],[kWhSavings]]=\"\",\"\",$BH$22*Table_SummaryPI[[#This Row],[kWhSavings]]),0)","v":""}]
[{"$f":"Table_PI[[#This Row],[Line No.]]","v":""},{"$f":"IF(Table_SummaryPI[[#This Row],[MeasureName]]<>\"\",NOT(ISTEXT(Table_PI[[#This Row],[Rebate]])),\"\")","v":""},{"$f":"IF(Table_SummaryPI[[#This Row],[MeassureCategory]]<>\"\",CONCATENATE(Table_SummaryPI[[#This Row],[MeassureCategory]],  \" - \", Table_SummaryPI[[#This Row],[ProposedMeasureCategory]],  \" - \", TEXT(Table_SummaryPI[[#This Row],[Size]],\"#,##0.00\"),\" \",Table_SummaryPI[[#This Row],[SizeUnit]]),\"\")","v":""},{"$f":"SUBSTITUTE(Table_PI[[#This Row],[Measure]],\"     \",\"\",1)","v":""},{"$f":"IF(Table_PI[[#This Row],[List 1]]<>\"\",Table_PI[[#This Row],[List 1]],\"\")","v":""},{"$f":"IF(Table_PI[[#This Row],[List 2]]<>\"\",Table_PI[[#This Row],[List 2]],\"\")","v":""},{"$f":"IF(Table_PI[[#This Row],[List 3]]<>\"\",Table_PI[[#This Row],[List 3]],\"\")","v":""},{"$f":"IF(Table_PI[[#This Row],[Manufacturer]]=\"\",\"\",Table_PI[[#This Row],[Manufacturer]])","v":""},{"$f":"IF(Table_PI[[#This Row],[Model Number]]=\"\",\"\",Table_PI[[#This Row],[Model Number]])","v":""},{"$f":"IF(Table_PI[[#This Row],[Serial Number(s)]]=\"\",\"\",Table_PI[[#This Row],[Serial Number(s)]])","v":""},null,{"$f":"IF(Table_PI[[#This Row],[Size]]=\"\",\"\",Table_PI[[#This Row],[Size]])","v":""},null,null,{"$f":"IF(Table_PI[[#This Row],[Input 1]]<>\"\",Table_PI[[#This Row],[Input 1]],\"\")","v":""},null,null,{"$f":"IF(Table_PI[[#This Row],[Input 2]]<>\"\",Table_PI[[#This Row],[Input 2]],\"\")","v":""},null,null,{"$f":"IF(Table_PI[[#This Row],[Input 3]]<>\"\",Table_PI[[#This Row],[Input 3]],\"\")","v":""},null,null,{"$f":"IF(Table_PI[[#This Row],[Input 4]]<>\"\",Table_PI[[#This Row],[Input 4]],\"\")","v":""},null,null,{"$f":"IF(Table_PI[[#This Row],[Input 4]]<>\"\",Table_PI[[#This Row],[Input 4]],\"\")","v":""},null,null,{"$f":"IF(Table_PI[[#This Row],[Input 4]]<>\"\",Table_PI[[#This Row],[Input 4]],\"\")","v":""},{"$f":"IF(Table_PI[[#This Row],[Quantity]]=\"\",\"\",Table_PI[[#This Row],[Quantity]])","v":""},{"$f":"IF(Table_PI[[#This Row],[Notes]]=\"\",\"\",Table_PI[[#This Row],[Notes]])","v":""},{"$f":"IF(OR(Table_PI[[#This Row],[Hide: Baseline kWh]]=\"\",Table_PI[[#This Row],[Hide: Baseline kWh]]=0,ISTEXT(Table_PI[[#This Row],[Hide: Baseline kWh]])),\"\",Table_PI[[#This Row],[Hide: Baseline kWh]])","v":""},{"$f":"IF(OR(Table_PI[[#This Row],[Hide: Baseline kW]]=\"\",Table_PI[[#This Row],[Hide: Baseline kW]]=0,ISTEXT(Table_PI[[#This Row],[Hide: Baseline kW]])),\"\",Table_PI[[#This Row],[Hide: Baseline kW]])","v":""},{"$f":"IF(OR(Table_PI[[#This Row],[Hide: Proposed kWh]]=\"\",Table_PI[[#This Row],[Hide: Proposed kWh]]=0,ISTEXT(Table_PI[[#This Row],[Hide: Proposed kWh]])),\"\",Table_PI[[#This Row],[Hide: Proposed kWh]])","v":""},{"$f":"IF(OR(Table_PI[[#This Row],[Hide: Proposed kW]]=\"\",Table_PI[[#This Row],[Hide: Proposed kW]]=0,ISTEXT(Table_PI[[#This Row],[Hide: Proposed kW]])),\"\",Table_PI[[#This Row],[Hide: Proposed kW]])","v":""},null,null,{"$f":"IF(OR(Table_PI[[#This Row],[Hide: Rebate]]=\"\",Table_PI[[#This Row],[Hide: Rebate]]=0,ISTEXT(Table_PI[[#This Row],[Hide: Rebate]])),\"\",Table_PI[[#This Row],[Hide: Rebate]])","v":""},null,{"$f":"IF(OR(Table_PI[[#This Row],[Hide: Incremental Cost]]=\"\",Table_PI[[#This Row],[Hide: Incremental Cost]]=0,ISTEXT(Table_PI[[#This Row],[Hide: Incremental Cost]])),\"\",Table_PI[[#This Row],[Hide: Incremental Cost]])","v":""},{"$f":"IFERROR(IF(Table_SummaryPI[[#This Row],[Incentive_Customer]]=\"\",\"\",ROUND(Table_SummaryPI[[#This Row],[Incentive_Customer]]/$AM$401*'Customer Information'!$BC$21,2)),0)","v":""},{"$f":"IF(OR(Table_PI[[#This Row],[Annual kWh]]=\"\",Table_PI[[#This Row],[Annual kWh]]=0,ISTEXT(Table_PI[[#This Row],[Annual kWh]])),\"\",Table_PI[[#This Row],[Annual kWh]])","v":""},{"$f":"IF(OR(Table_PI[[#This Row],[Peak kW]]=\"\",Table_PI[[#This Row],[Peak kW]]=0,ISTEXT(Table_PI[[#This Row],[Peak kW]])),\"\",Table_PI[[#This Row],[Peak kW]])","v":""},{"$f":"IF(Table_SummaryPI[[#This Row],[Line No.]]<>\"\",IF(AND(ISNUMBER(FIND(\"Chiller\",Table_SummaryPI[[#This Row],[P_MeasureOption1]],1)),Table_SummaryPI[[#This Row],[ProposedMeasureCategory]]=\"Air-Cooled (Water-Cooled Replacement)\"),$BD$29*Table_SummaryPI[[#This Row],[Size]]*Table_SummaryPI[[#This Row],[Quantity]]*Table_SummaryPI[[#This Row],[EFLHCooling]],\nIF(ISNUMBER(FIND(\"Dishwasher\",Table_SummaryPI[[#This Row],[ProposedMeasureCategory]],1)),$BH$29*Table_SummaryPI[[#This Row],[Quantity]],\nIF(ISNUMBER(FIND(\"Ice Maker\",Table_SummaryPI[[#This Row],[ProposedMeasureCategory]],1)),$BD$31*Table_SummaryPI[[#This Row],[Quantity]],\nIF(ISNUMBER(FIND(\"Spray Valve\",Table_SummaryPI[[#This Row],[ProposedMeasureCategory]],1)),$BH$31*Table_SummaryPI[[#This Row],[Quantity]],\n0)))),\"\")","v":""},{"$f":"IF(OR(Table_PI[[#This Row],[Hide: Electrification kWh]]=\"\",Table_PI[[#This Row],[Hide: Electrification kWh]]=0,ISTEXT(Table_PI[[#This Row],[Hide: Electrification kWh]])),\"\",Table_PI[[#This Row],[Hide: Electrification kWh]])","v":""},{"$f":"IF(OR(Table_PI[[#This Row],[Hide: Electrification GHG]]=\"\",Table_PI[[#This Row],[Hide: Electrification GHG]]=0,ISTEXT(Table_PI[[#This Row],[Hide: Electrification GHG]])),\"\",Table_PI[[#This Row],[Hide: Electrification GHG]])","v":""},{"$f":"IFERROR(IF(Table_SummaryPI[[#This Row],[kWhSavings]]=\"\",\"\",$BH$9*Table_SummaryPI[[#This Row],[kWhSavings]]),0)","v":""},{"$f":"IFERROR(IF(Table_SummaryPI[[#This Row],[kWhSavings]]=\"\",\"\",$BH$14*Table_SummaryPI[[#This Row],[kWhSavings]]),0)","v":""},{"$f":"IFERROR(IF(Table_SummaryPI[[#This Row],[kWhSavings]]=\"\",\"\",$BH$18*Table_SummaryPI[[#This Row],[kWhSavings]]),0)","v":""},{"$f":"IFERROR(IF(Table_SummaryPI[[#This Row],[kWhSavings]]=\"\",\"\",$BH$22*Table_SummaryPI[[#This Row],[kWhSavings]]),0)","v":""}]
[{"$f":"Table_PI[[#This Row],[Line No.]]","v":""},{"$f":"IF(Table_SummaryPI[[#This Row],[MeasureName]]<>\"\",NOT(ISTEXT(Table_PI[[#This Row],[Rebate]])),\"\")","v":""},{"$f":"IF(Table_SummaryPI[[#This Row],[MeassureCategory]]<>\"\",CONCATENATE(Table_SummaryPI[[#This Row],[MeassureCategory]],  \" - \", Table_SummaryPI[[#This Row],[ProposedMeasureCategory]],  \" - \", TEXT(Table_SummaryPI[[#This Row],[Size]],\"#,##0.00\"),\" \",Table_SummaryPI[[#This Row],[SizeUnit]]),\"\")","v":""},{"$f":"SUBSTITUTE(Table_PI[[#This Row],[Measure]],\"     \",\"\",1)","v":""},{"$f":"IF(Table_PI[[#This Row],[List 1]]<>\"\",Table_PI[[#This Row],[List 1]],\"\")","v":""},{"$f":"IF(Table_PI[[#This Row],[List 2]]<>\"\",Table_PI[[#This Row],[List 2]],\"\")","v":""},{"$f":"IF(Table_PI[[#This Row],[List 3]]<>\"\",Table_PI[[#This Row],[List 3]],\"\")","v":""},{"$f":"IF(Table_PI[[#This Row],[Manufacturer]]=\"\",\"\",Table_PI[[#This Row],[Manufacturer]])","v":""},{"$f":"IF(Table_PI[[#This Row],[Model Number]]=\"\",\"\",Table_PI[[#This Row],[Model Number]])","v":""},{"$f":"IF(Table_PI[[#This Row],[Serial Number(s)]]=\"\",\"\",Table_PI[[#This Row],[Serial Number(s)]])","v":""},null,{"$f":"IF(Table_PI[[#This Row],[Size]]=\"\",\"\",Table_PI[[#This Row],[Size]])","v":""},null,null,{"$f":"IF(Table_PI[[#This Row],[Input 1]]<>\"\",Table_PI[[#This Row],[Input 1]],\"\")","v":""},null,null,{"$f":"IF(Table_PI[[#This Row],[Input 2]]<>\"\",Table_PI[[#This Row],[Input 2]],\"\")","v":""},null,null,{"$f":"IF(Table_PI[[#This Row],[Input 3]]<>\"\",Table_PI[[#This Row],[Input 3]],\"\")","v":""},null,null,{"$f":"IF(Table_PI[[#This Row],[Input 4]]<>\"\",Table_PI[[#This Row],[Input 4]],\"\")","v":""},null,null,{"$f":"IF(Table_PI[[#This Row],[Input 4]]<>\"\",Table_PI[[#This Row],[Input 4]],\"\")","v":""},null,null,{"$f":"IF(Table_PI[[#This Row],[Input 4]]<>\"\",Table_PI[[#This Row],[Input 4]],\"\")","v":""},{"$f":"IF(Table_PI[[#This Row],[Quantity]]=\"\",\"\",Table_PI[[#This Row],[Quantity]])","v":""},{"$f":"IF(Table_PI[[#This Row],[Notes]]=\"\",\"\",Table_PI[[#This Row],[Notes]])","v":""},{"$f":"IF(OR(Table_PI[[#This Row],[Hide: Baseline kWh]]=\"\",Table_PI[[#This Row],[Hide: Baseline kWh]]=0,ISTEXT(Table_PI[[#This Row],[Hide: Baseline kWh]])),\"\",Table_PI[[#This Row],[Hide: Baseline kWh]])","v":""},{"$f":"IF(OR(Table_PI[[#This Row],[Hide: Baseline kW]]=\"\",Table_PI[[#This Row],[Hide: Baseline kW]]=0,ISTEXT(Table_PI[[#This Row],[Hide: Baseline kW]])),\"\",Table_PI[[#This Row],[Hide: Baseline kW]])","v":""},{"$f":"IF(OR(Table_PI[[#This Row],[Hide: Proposed kWh]]=\"\",Table_PI[[#This Row],[Hide: Proposed kWh]]=0,ISTEXT(Table_PI[[#This Row],[Hide: Proposed kWh]])),\"\",Table_PI[[#This Row],[Hide: Proposed kWh]])","v":""},{"$f":"IF(OR(Table_PI[[#This Row],[Hide: Proposed kW]]=\"\",Table_PI[[#This Row],[Hide: Proposed kW]]=0,ISTEXT(Table_PI[[#This Row],[Hide: Proposed kW]])),\"\",Table_PI[[#This Row],[Hide: Proposed kW]])","v":""},null,null,{"$f":"IF(OR(Table_PI[[#This Row],[Hide: Rebate]]=\"\",Table_PI[[#This Row],[Hide: Rebate]]=0,ISTEXT(Table_PI[[#This Row],[Hide: Rebate]])),\"\",Table_PI[[#This Row],[Hide: Rebate]])","v":""},null,{"$f":"IF(OR(Table_PI[[#This Row],[Hide: Incremental Cost]]=\"\",Table_PI[[#This Row],[Hide: Incremental Cost]]=0,ISTEXT(Table_PI[[#This Row],[Hide: Incremental Cost]])),\"\",Table_PI[[#This Row],[Hide: Incremental Cost]])","v":""},{"$f":"IFERROR(IF(Table_SummaryPI[[#This Row],[Incentive_Customer]]=\"\",\"\",ROUND(Table_SummaryPI[[#This Row],[Incentive_Customer]]/$AM$401*'Customer Information'!$BC$21,2)),0)","v":""},{"$f":"IF(OR(Table_PI[[#This Row],[Annual kWh]]=\"\",Table_PI[[#This Row],[Annual kWh]]=0,ISTEXT(Table_PI[[#This Row],[Annual kWh]])),\"\",Table_PI[[#This Row],[Annual kWh]])","v":""},{"$f":"IF(OR(Table_PI[[#This Row],[Peak kW]]=\"\",Table_PI[[#This Row],[Peak kW]]=0,ISTEXT(Table_PI[[#This Row],[Peak kW]])),\"\",Table_PI[[#This Row],[Peak kW]])","v":""},{"$f":"IF(Table_SummaryPI[[#This Row],[Line No.]]<>\"\",IF(AND(ISNUMBER(FIND(\"Chiller\",Table_SummaryPI[[#This Row],[P_MeasureOption1]],1)),Table_SummaryPI[[#This Row],[ProposedMeasureCategory]]=\"Air-Cooled (Water-Cooled Replacement)\"),$BD$29*Table_SummaryPI[[#This Row],[Size]]*Table_SummaryPI[[#This Row],[Quantity]]*Table_SummaryPI[[#This Row],[EFLHCooling]],\nIF(ISNUMBER(FIND(\"Dishwasher\",Table_SummaryPI[[#This Row],[ProposedMeasureCategory]],1)),$BH$29*Table_SummaryPI[[#This Row],[Quantity]],\nIF(ISNUMBER(FIND(\"Ice Maker\",Table_SummaryPI[[#This Row],[ProposedMeasureCategory]],1)),$BD$31*Table_SummaryPI[[#This Row],[Quantity]],\nIF(ISNUMBER(FIND(\"Spray Valve\",Table_SummaryPI[[#This Row],[ProposedMeasureCategory]],1)),$BH$31*Table_SummaryPI[[#This Row],[Quantity]],\n0)))),\"\")","v":""},{"$f":"IF(OR(Table_PI[[#This Row],[Hide: Electrification kWh]]=\"\",Table_PI[[#This Row],[Hide: Electrification kWh]]=0,ISTEXT(Table_PI[[#This Row],[Hide: Electrification kWh]])),\"\",Table_PI[[#This Row],[Hide: Electrification kWh]])","v":""},{"$f":"IF(OR(Table_PI[[#This Row],[Hide: Electrification GHG]]=\"\",Table_PI[[#This Row],[Hide: Electrification GHG]]=0,ISTEXT(Table_PI[[#This Row],[Hide: Electrification GHG]])),\"\",Table_PI[[#This Row],[Hide: Electrification GHG]])","v":""},{"$f":"IFERROR(IF(Table_SummaryPI[[#This Row],[kWhSavings]]=\"\",\"\",$BH$9*Table_SummaryPI[[#This Row],[kWhSavings]]),0)","v":""},{"$f":"IFERROR(IF(Table_SummaryPI[[#This Row],[kWhSavings]]=\"\",\"\",$BH$14*Table_SummaryPI[[#This Row],[kWhSavings]]),0)","v":""},{"$f":"IFERROR(IF(Table_SummaryPI[[#This Row],[kWhSavings]]=\"\",\"\",$BH$18*Table_SummaryPI[[#This Row],[kWhSavings]]),0)","v":""},{"$f":"IFERROR(IF(Table_SummaryPI[[#This Row],[kWhSavings]]=\"\",\"\",$BH$22*Table_SummaryPI[[#This Row],[kWhSavings]]),0)","v":""}]
[{"$f":"Table_PI[[#This Row],[Line No.]]","v":""},{"$f":"IF(Table_SummaryPI[[#This Row],[MeasureName]]<>\"\",NOT(ISTEXT(Table_PI[[#This Row],[Rebate]])),\"\")","v":""},{"$f":"IF(Table_SummaryPI[[#This Row],[MeassureCategory]]<>\"\",CONCATENATE(Table_SummaryPI[[#This Row],[MeassureCategory]],  \" - \", Table_SummaryPI[[#This Row],[ProposedMeasureCategory]],  \" - \", TEXT(Table_SummaryPI[[#This Row],[Size]],\"#,##0.00\"),\" \",Table_SummaryPI[[#This Row],[SizeUnit]]),\"\")","v":""},{"$f":"SUBSTITUTE(Table_PI[[#This Row],[Measure]],\"     \",\"\",1)","v":""},{"$f":"IF(Table_PI[[#This Row],[List 1]]<>\"\",Table_PI[[#This Row],[List 1]],\"\")","v":""},{"$f":"IF(Table_PI[[#This Row],[List 2]]<>\"\",Table_PI[[#This Row],[List 2]],\"\")","v":""},{"$f":"IF(Table_PI[[#This Row],[List 3]]<>\"\",Table_PI[[#This Row],[List 3]],\"\")","v":""},{"$f":"IF(Table_PI[[#This Row],[Manufacturer]]=\"\",\"\",Table_PI[[#This Row],[Manufacturer]])","v":""},{"$f":"IF(Table_PI[[#This Row],[Model Number]]=\"\",\"\",Table_PI[[#This Row],[Model Number]])","v":""},{"$f":"IF(Table_PI[[#This Row],[Serial Number(s)]]=\"\",\"\",Table_PI[[#This Row],[Serial Number(s)]])","v":""},null,{"$f":"IF(Table_PI[[#This Row],[Size]]=\"\",\"\",Table_PI[[#This Row],[Size]])","v":""},null,null,{"$f":"IF(Table_PI[[#This Row],[Input 1]]<>\"\",Table_PI[[#This Row],[Input 1]],\"\")","v":""},null,null,{"$f":"IF(Table_PI[[#This Row],[Input 2]]<>\"\",Table_PI[[#This Row],[Input 2]],\"\")","v":""},null,null,{"$f":"IF(Table_PI[[#This Row],[Input 3]]<>\"\",Table_PI[[#This Row],[Input 3]],\"\")","v":""},null,null,{"$f":"IF(Table_PI[[#This Row],[Input 4]]<>\"\",Table_PI[[#This Row],[Input 4]],\"\")","v":""},null,null,{"$f":"IF(Table_PI[[#This Row],[Input 4]]<>\"\",Table_PI[[#This Row],[Input 4]],\"\")","v":""},null,null,{"$f":"IF(Table_PI[[#This Row],[Input 4]]<>\"\",Table_PI[[#This Row],[Input 4]],\"\")","v":""},{"$f":"IF(Table_PI[[#This Row],[Quantity]]=\"\",\"\",Table_PI[[#This Row],[Quantity]])","v":""},{"$f":"IF(Table_PI[[#This Row],[Notes]]=\"\",\"\",Table_PI[[#This Row],[Notes]])","v":""},{"$f":"IF(OR(Table_PI[[#This Row],[Hide: Baseline kWh]]=\"\",Table_PI[[#This Row],[Hide: Baseline kWh]]=0,ISTEXT(Table_PI[[#This Row],[Hide: Baseline kWh]])),\"\",Table_PI[[#This Row],[Hide: Baseline kWh]])","v":""},{"$f":"IF(OR(Table_PI[[#This Row],[Hide: Baseline kW]]=\"\",Table_PI[[#This Row],[Hide: Baseline kW]]=0,ISTEXT(Table_PI[[#This Row],[Hide: Baseline kW]])),\"\",Table_PI[[#This Row],[Hide: Baseline kW]])","v":""},{"$f":"IF(OR(Table_PI[[#This Row],[Hide: Proposed kWh]]=\"\",Table_PI[[#This Row],[Hide: Proposed kWh]]=0,ISTEXT(Table_PI[[#This Row],[Hide: Proposed kWh]])),\"\",Table_PI[[#This Row],[Hide: Proposed kWh]])","v":""},{"$f":"IF(OR(Table_PI[[#This Row],[Hide: Proposed kW]]=\"\",Table_PI[[#This Row],[Hide: Proposed kW]]=0,ISTEXT(Table_PI[[#This Row],[Hide: Proposed kW]])),\"\",Table_PI[[#This Row],[Hide: Proposed kW]])","v":""},null,null,{"$f":"IF(OR(Table_PI[[#This Row],[Hide: Rebate]]=\"\",Table_PI[[#This Row],[Hide: Rebate]]=0,ISTEXT(Table_PI[[#This Row],[Hide: Rebate]])),\"\",Table_PI[[#This Row],[Hide: Rebate]])","v":""},null,{"$f":"IF(OR(Table_PI[[#This Row],[Hide: Incremental Cost]]=\"\",Table_PI[[#This Row],[Hide: Incremental Cost]]=0,ISTEXT(Table_PI[[#This Row],[Hide: Incremental Cost]])),\"\",Table_PI[[#This Row],[Hide: Incremental Cost]])","v":""},{"$f":"IFERROR(IF(Table_SummaryPI[[#This Row],[Incentive_Customer]]=\"\",\"\",ROUND(Table_SummaryPI[[#This Row],[Incentive_Customer]]/$AM$401*'Customer Information'!$BC$21,2)),0)","v":""},{"$f":"IF(OR(Table_PI[[#This Row],[Annual kWh]]=\"\",Table_PI[[#This Row],[Annual kWh]]=0,ISTEXT(Table_PI[[#This Row],[Annual kWh]])),\"\",Table_PI[[#This Row],[Annual kWh]])","v":""},{"$f":"IF(OR(Table_PI[[#This Row],[Peak kW]]=\"\",Table_PI[[#This Row],[Peak kW]]=0,ISTEXT(Table_PI[[#This Row],[Peak kW]])),\"\",Table_PI[[#This Row],[Peak kW]])","v":""},{"$f":"IF(Table_SummaryPI[[#This Row],[Line No.]]<>\"\",IF(AND(ISNUMBER(FIND(\"Chiller\",Table_SummaryPI[[#This Row],[P_MeasureOption1]],1)),Table_SummaryPI[[#This Row],[ProposedMeasureCategory]]=\"Air-Cooled (Water-Cooled Replacement)\"),$BD$29*Table_SummaryPI[[#This Row],[Size]]*Table_SummaryPI[[#This Row],[Quantity]]*Table_SummaryPI[[#This Row],[EFLHCooling]],\nIF(ISNUMBER(FIND(\"Dishwasher\",Table_SummaryPI[[#This Row],[ProposedMeasureCategory]],1)),$BH$29*Table_SummaryPI[[#This Row],[Quantity]],\nIF(ISNUMBER(FIND(\"Ice Maker\",Table_SummaryPI[[#This Row],[ProposedMeasureCategory]],1)),$BD$31*Table_SummaryPI[[#This Row],[Quantity]],\nIF(ISNUMBER(FIND(\"Spray Valve\",Table_SummaryPI[[#This Row],[ProposedMeasureCategory]],1)),$BH$31*Table_SummaryPI[[#This Row],[Quantity]],\n0)))),\"\")","v":""},{"$f":"IF(OR(Table_PI[[#This Row],[Hide: Electrification kWh]]=\"\",Table_PI[[#This Row],[Hide: Electrification kWh]]=0,ISTEXT(Table_PI[[#This Row],[Hide: Electrification kWh]])),\"\",Table_PI[[#This Row],[Hide: Electrification kWh]])","v":""},{"$f":"IF(OR(Table_PI[[#This Row],[Hide: Electrification GHG]]=\"\",Table_PI[[#This Row],[Hide: Electrification GHG]]=0,ISTEXT(Table_PI[[#This Row],[Hide: Electrification GHG]])),\"\",Table_PI[[#This Row],[Hide: Electrification GHG]])","v":""},{"$f":"IFERROR(IF(Table_SummaryPI[[#This Row],[kWhSavings]]=\"\",\"\",$BH$9*Table_SummaryPI[[#This Row],[kWhSavings]]),0)","v":""},{"$f":"IFERROR(IF(Table_SummaryPI[[#This Row],[kWhSavings]]=\"\",\"\",$BH$14*Table_SummaryPI[[#This Row],[kWhSavings]]),0)","v":""},{"$f":"IFERROR(IF(Table_SummaryPI[[#This Row],[kWhSavings]]=\"\",\"\",$BH$18*Table_SummaryPI[[#This Row],[kWhSavings]]),0)","v":""},{"$f":"IFERROR(IF(Table_SummaryPI[[#This Row],[kWhSavings]]=\"\",\"\",$BH$22*Table_SummaryPI[[#This Row],[kWhSavings]]),0)","v":""}]
[{"$f":"Table_PI[[#This Row],[Line No.]]","v":""},{"$f":"IF(Table_SummaryPI[[#This Row],[MeasureName]]<>\"\",NOT(ISTEXT(Table_PI[[#This Row],[Rebate]])),\"\")","v":""},{"$f":"IF(Table_SummaryPI[[#This Row],[MeassureCategory]]<>\"\",CONCATENATE(Table_SummaryPI[[#This Row],[MeassureCategory]],  \" - \", Table_SummaryPI[[#This Row],[ProposedMeasureCategory]],  \" - \", TEXT(Table_SummaryPI[[#This Row],[Size]],\"#,##0.00\"),\" \",Table_SummaryPI[[#This Row],[SizeUnit]]),\"\")","v":""},{"$f":"SUBSTITUTE(Table_PI[[#This Row],[Measure]],\"     \",\"\",1)","v":""},{"$f":"IF(Table_PI[[#This Row],[List 1]]<>\"\",Table_PI[[#This Row],[List 1]],\"\")","v":""},{"$f":"IF(Table_PI[[#This Row],[List 2]]<>\"\",Table_PI[[#This Row],[List 2]],\"\")","v":""},{"$f":"IF(Table_PI[[#This Row],[List 3]]<>\"\",Table_PI[[#This Row],[List 3]],\"\")","v":""},{"$f":"IF(Table_PI[[#This Row],[Manufacturer]]=\"\",\"\",Table_PI[[#This Row],[Manufacturer]])","v":""},{"$f":"IF(Table_PI[[#This Row],[Model Number]]=\"\",\"\",Table_PI[[#This Row],[Model Number]])","v":""},{"$f":"IF(Table_PI[[#This Row],[Serial Number(s)]]=\"\",\"\",Table_PI[[#This Row],[Serial Number(s)]])","v":""},null,{"$f":"IF(Table_PI[[#This Row],[Size]]=\"\",\"\",Table_PI[[#This Row],[Size]])","v":""},null,null,{"$f":"IF(Table_PI[[#This Row],[Input 1]]<>\"\",Table_PI[[#This Row],[Input 1]],\"\")","v":""},null,null,{"$f":"IF(Table_PI[[#This Row],[Input 2]]<>\"\",Table_PI[[#This Row],[Input 2]],\"\")","v":""},null,null,{"$f":"IF(Table_PI[[#This Row],[Input 3]]<>\"\",Table_PI[[#This Row],[Input 3]],\"\")","v":""},null,null,{"$f":"IF(Table_PI[[#This Row],[Input 4]]<>\"\",Table_PI[[#This Row],[Input 4]],\"\")","v":""},null,null,{"$f":"IF(Table_PI[[#This Row],[Input 4]]<>\"\",Table_PI[[#This Row],[Input 4]],\"\")","v":""},null,null,{"$f":"IF(Table_PI[[#This Row],[Input 4]]<>\"\",Table_PI[[#This Row],[Input 4]],\"\")","v":""},{"$f":"IF(Table_PI[[#This Row],[Quantity]]=\"\",\"\",Table_PI[[#This Row],[Quantity]])","v":""},{"$f":"IF(Table_PI[[#This Row],[Notes]]=\"\",\"\",Table_PI[[#This Row],[Notes]])","v":""},{"$f":"IF(OR(Table_PI[[#This Row],[Hide: Baseline kWh]]=\"\",Table_PI[[#This Row],[Hide: Baseline kWh]]=0,ISTEXT(Table_PI[[#This Row],[Hide: Baseline kWh]])),\"\",Table_PI[[#This Row],[Hide: Baseline kWh]])","v":""},{"$f":"IF(OR(Table_PI[[#This Row],[Hide: Baseline kW]]=\"\",Table_PI[[#This Row],[Hide: Baseline kW]]=0,ISTEXT(Table_PI[[#This Row],[Hide: Baseline kW]])),\"\",Table_PI[[#This Row],[Hide: Baseline kW]])","v":""},{"$f":"IF(OR(Table_PI[[#This Row],[Hide: Proposed kWh]]=\"\",Table_PI[[#This Row],[Hide: Proposed kWh]]=0,ISTEXT(Table_PI[[#This Row],[Hide: Proposed kWh]])),\"\",Table_PI[[#This Row],[Hide: Proposed kWh]])","v":""},{"$f":"IF(OR(Table_PI[[#This Row],[Hide: Proposed kW]]=\"\",Table_PI[[#This Row],[Hide: Proposed kW]]=0,ISTEXT(Table_PI[[#This Row],[Hide: Proposed kW]])),\"\",Table_PI[[#This Row],[Hide: Proposed kW]])","v":""},null,null,{"$f":"IF(OR(Table_PI[[#This Row],[Hide: Rebate]]=\"\",Table_PI[[#This Row],[Hide: Rebate]]=0,ISTEXT(Table_PI[[#This Row],[Hide: Rebate]])),\"\",Table_PI[[#This Row],[Hide: Rebate]])","v":""},null,{"$f":"IF(OR(Table_PI[[#This Row],[Hide: Incremental Cost]]=\"\",Table_PI[[#This Row],[Hide: Incremental Cost]]=0,ISTEXT(Table_PI[[#This Row],[Hide: Incremental Cost]])),\"\",Table_PI[[#This Row],[Hide: Incremental Cost]])","v":""},{"$f":"IFERROR(IF(Table_SummaryPI[[#This Row],[Incentive_Customer]]=\"\",\"\",ROUND(Table_SummaryPI[[#This Row],[Incentive_Customer]]/$AM$401*'Customer Information'!$BC$21,2)),0)","v":""},{"$f":"IF(OR(Table_PI[[#This Row],[Annual kWh]]=\"\",Table_PI[[#This Row],[Annual kWh]]=0,ISTEXT(Table_PI[[#This Row],[Annual kWh]])),\"\",Table_PI[[#This Row],[Annual kWh]])","v":""},{"$f":"IF(OR(Table_PI[[#This Row],[Peak kW]]=\"\",Table_PI[[#This Row],[Peak kW]]=0,ISTEXT(Table_PI[[#This Row],[Peak kW]])),\"\",Table_PI[[#This Row],[Peak kW]])","v":""},{"$f":"IF(Table_SummaryPI[[#This Row],[Line No.]]<>\"\",IF(AND(ISNUMBER(FIND(\"Chiller\",Table_SummaryPI[[#This Row],[P_MeasureOption1]],1)),Table_SummaryPI[[#This Row],[ProposedMeasureCategory]]=\"Air-Cooled (Water-Cooled Replacement)\"),$BD$29*Table_SummaryPI[[#This Row],[Size]]*Table_SummaryPI[[#This Row],[Quantity]]*Table_SummaryPI[[#This Row],[EFLHCooling]],\nIF(ISNUMBER(FIND(\"Dishwasher\",Table_SummaryPI[[#This Row],[ProposedMeasureCategory]],1)),$BH$29*Table_SummaryPI[[#This Row],[Quantity]],\nIF(ISNUMBER(FIND(\"Ice Maker\",Table_SummaryPI[[#This Row],[ProposedMeasureCategory]],1)),$BD$31*Table_SummaryPI[[#This Row],[Quantity]],\nIF(ISNUMBER(FIND(\"Spray Valve\",Table_SummaryPI[[#This Row],[ProposedMeasureCategory]],1)),$BH$31*Table_SummaryPI[[#This Row],[Quantity]],\n0)))),\"\")","v":""},{"$f":"IF(OR(Table_PI[[#This Row],[Hide: Electrification kWh]]=\"\",Table_PI[[#This Row],[Hide: Electrification kWh]]=0,ISTEXT(Table_PI[[#This Row],[Hide: Electrification kWh]])),\"\",Table_PI[[#This Row],[Hide: Electrification kWh]])","v":""},{"$f":"IF(OR(Table_PI[[#This Row],[Hide: Electrification GHG]]=\"\",Table_PI[[#This Row],[Hide: Electrification GHG]]=0,ISTEXT(Table_PI[[#This Row],[Hide: Electrification GHG]])),\"\",Table_PI[[#This Row],[Hide: Electrification GHG]])","v":""},{"$f":"IFERROR(IF(Table_SummaryPI[[#This Row],[kWhSavings]]=\"\",\"\",$BH$9*Table_SummaryPI[[#This Row],[kWhSavings]]),0)","v":""},{"$f":"IFERROR(IF(Table_SummaryPI[[#This Row],[kWhSavings]]=\"\",\"\",$BH$14*Table_SummaryPI[[#This Row],[kWhSavings]]),0)","v":""},{"$f":"IFERROR(IF(Table_SummaryPI[[#This Row],[kWhSavings]]=\"\",\"\",$BH$18*Table_SummaryPI[[#This Row],[kWhSavings]]),0)","v":""},{"$f":"IFERROR(IF(Table_SummaryPI[[#This Row],[kWhSavings]]=\"\",\"\",$BH$22*Table_SummaryPI[[#This Row],[kWhSavings]]),0)","v":""}]
[{"$f":"Table_PI[[#This Row],[Line No.]]","v":""},{"$f":"IF(Table_SummaryPI[[#This Row],[MeasureName]]<>\"\",NOT(ISTEXT(Table_PI[[#This Row],[Rebate]])),\"\")","v":""},{"$f":"IF(Table_SummaryPI[[#This Row],[MeassureCategory]]<>\"\",CONCATENATE(Table_SummaryPI[[#This Row],[MeassureCategory]],  \" - \", Table_SummaryPI[[#This Row],[ProposedMeasureCategory]],  \" - \", TEXT(Table_SummaryPI[[#This Row],[Size]],\"#,##0.00\"),\" \",Table_SummaryPI[[#This Row],[SizeUnit]]),\"\")","v":""},{"$f":"SUBSTITUTE(Table_PI[[#This Row],[Measure]],\"     \",\"\",1)","v":""},{"$f":"IF(Table_PI[[#This Row],[List 1]]<>\"\",Table_PI[[#This Row],[List 1]],\"\")","v":""},{"$f":"IF(Table_PI[[#This Row],[List 2]]<>\"\",Table_PI[[#This Row],[List 2]],\"\")","v":""},{"$f":"IF(Table_PI[[#This Row],[List 3]]<>\"\",Table_PI[[#This Row],[List 3]],\"\")","v":""},{"$f":"IF(Table_PI[[#This Row],[Manufacturer]]=\"\",\"\",Table_PI[[#This Row],[Manufacturer]])","v":""},{"$f":"IF(Table_PI[[#This Row],[Model Number]]=\"\",\"\",Table_PI[[#This Row],[Model Number]])","v":""},{"$f":"IF(Table_PI[[#This Row],[Serial Number(s)]]=\"\",\"\",Table_PI[[#This Row],[Serial Number(s)]])","v":""},null,{"$f":"IF(Table_PI[[#This Row],[Size]]=\"\",\"\",Table_PI[[#This Row],[Size]])","v":""},null,null,{"$f":"IF(Table_PI[[#This Row],[Input 1]]<>\"\",Table_PI[[#This Row],[Input 1]],\"\")","v":""},null,null,{"$f":"IF(Table_PI[[#This Row],[Input 2]]<>\"\",Table_PI[[#This Row],[Input 2]],\"\")","v":""},null,null,{"$f":"IF(Table_PI[[#This Row],[Input 3]]<>\"\",Table_PI[[#This Row],[Input 3]],\"\")","v":""},null,null,{"$f":"IF(Table_PI[[#This Row],[Input 4]]<>\"\",Table_PI[[#This Row],[Input 4]],\"\")","v":""},null,null,{"$f":"IF(Table_PI[[#This Row],[Input 4]]<>\"\",Table_PI[[#This Row],[Input 4]],\"\")","v":""},null,null,{"$f":"IF(Table_PI[[#This Row],[Input 4]]<>\"\",Table_PI[[#This Row],[Input 4]],\"\")","v":""},{"$f":"IF(Table_PI[[#This Row],[Quantity]]=\"\",\"\",Table_PI[[#This Row],[Quantity]])","v":""},{"$f":"IF(Table_PI[[#This Row],[Notes]]=\"\",\"\",Table_PI[[#This Row],[Notes]])","v":""},{"$f":"IF(OR(Table_PI[[#This Row],[Hide: Baseline kWh]]=\"\",Table_PI[[#This Row],[Hide: Baseline kWh]]=0,ISTEXT(Table_PI[[#This Row],[Hide: Baseline kWh]])),\"\",Table_PI[[#This Row],[Hide: Baseline kWh]])","v":""},{"$f":"IF(OR(Table_PI[[#This Row],[Hide: Baseline kW]]=\"\",Table_PI[[#This Row],[Hide: Baseline kW]]=0,ISTEXT(Table_PI[[#This Row],[Hide: Baseline kW]])),\"\",Table_PI[[#This Row],[Hide: Baseline kW]])","v":""},{"$f":"IF(OR(Table_PI[[#This Row],[Hide: Proposed kWh]]=\"\",Table_PI[[#This Row],[Hide: Proposed kWh]]=0,ISTEXT(Table_PI[[#This Row],[Hide: Proposed kWh]])),\"\",Table_PI[[#This Row],[Hide: Proposed kWh]])","v":""},{"$f":"IF(OR(Table_PI[[#This Row],[Hide: Proposed kW]]=\"\",Table_PI[[#This Row],[Hide: Proposed kW]]=0,ISTEXT(Table_PI[[#This Row],[Hide: Proposed kW]])),\"\",Table_PI[[#This Row],[Hide: Proposed kW]])","v":""},null,null,{"$f":"IF(OR(Table_PI[[#This Row],[Hide: Rebate]]=\"\",Table_PI[[#This Row],[Hide: Rebate]]=0,ISTEXT(Table_PI[[#This Row],[Hide: Rebate]])),\"\",Table_PI[[#This Row],[Hide: Rebate]])","v":""},null,{"$f":"IF(OR(Table_PI[[#This Row],[Hide: Incremental Cost]]=\"\",Table_PI[[#This Row],[Hide: Incremental Cost]]=0,ISTEXT(Table_PI[[#This Row],[Hide: Incremental Cost]])),\"\",Table_PI[[#This Row],[Hide: Incremental Cost]])","v":""},{"$f":"IFERROR(IF(Table_SummaryPI[[#This Row],[Incentive_Customer]]=\"\",\"\",ROUND(Table_SummaryPI[[#This Row],[Incentive_Customer]]/$AM$401*'Customer Information'!$BC$21,2)),0)","v":""},{"$f":"IF(OR(Table_PI[[#This Row],[Annual kWh]]=\"\",Table_PI[[#This Row],[Annual kWh]]=0,ISTEXT(Table_PI[[#This Row],[Annual kWh]])),\"\",Table_PI[[#This Row],[Annual kWh]])","v":""},{"$f":"IF(OR(Table_PI[[#This Row],[Peak kW]]=\"\",Table_PI[[#This Row],[Peak kW]]=0,ISTEXT(Table_PI[[#This Row],[Peak kW]])),\"\",Table_PI[[#This Row],[Peak kW]])","v":""},{"$f":"IF(Table_SummaryPI[[#This Row],[Line No.]]<>\"\",IF(AND(ISNUMBER(FIND(\"Chiller\",Table_SummaryPI[[#This Row],[P_MeasureOption1]],1)),Table_SummaryPI[[#This Row],[ProposedMeasureCategory]]=\"Air-Cooled (Water-Cooled Replacement)\"),$BD$29*Table_SummaryPI[[#This Row],[Size]]*Table_SummaryPI[[#This Row],[Quantity]]*Table_SummaryPI[[#This Row],[EFLHCooling]],\nIF(ISNUMBER(FIND(\"Dishwasher\",Table_SummaryPI[[#This Row],[ProposedMeasureCategory]],1)),$BH$29*Table_SummaryPI[[#This Row],[Quantity]],\nIF(ISNUMBER(FIND(\"Ice Maker\",Table_SummaryPI[[#This Row],[ProposedMeasureCategory]],1)),$BD$31*Table_SummaryPI[[#This Row],[Quantity]],\nIF(ISNUMBER(FIND(\"Spray Valve\",Table_SummaryPI[[#This Row],[ProposedMeasureCategory]],1)),$BH$31*Table_SummaryPI[[#This Row],[Quantity]],\n0)))),\"\")","v":""},{"$f":"IF(OR(Table_PI[[#This Row],[Hide: Electrification kWh]]=\"\",Table_PI[[#This Row],[Hide: Electrification kWh]]=0,ISTEXT(Table_PI[[#This Row],[Hide: Electrification kWh]])),\"\",Table_PI[[#This Row],[Hide: Electrification kWh]])","v":""},{"$f":"IF(OR(Table_PI[[#This Row],[Hide: Electrification GHG]]=\"\",Table_PI[[#This Row],[Hide: Electrification GHG]]=0,ISTEXT(Table_PI[[#This Row],[Hide: Electrification GHG]])),\"\",Table_PI[[#This Row],[Hide: Electrification GHG]])","v":""},{"$f":"IFERROR(IF(Table_SummaryPI[[#This Row],[kWhSavings]]=\"\",\"\",$BH$9*Table_SummaryPI[[#This Row],[kWhSavings]]),0)","v":""},{"$f":"IFERROR(IF(Table_SummaryPI[[#This Row],[kWhSavings]]=\"\",\"\",$BH$14*Table_SummaryPI[[#This Row],[kWhSavings]]),0)","v":""},{"$f":"IFERROR(IF(Table_SummaryPI[[#This Row],[kWhSavings]]=\"\",\"\",$BH$18*Table_SummaryPI[[#This Row],[kWhSavings]]),0)","v":""},{"$f":"IFERROR(IF(Table_SummaryPI[[#This Row],[kWhSavings]]=\"\",\"\",$BH$22*Table_SummaryPI[[#This Row],[kWhSavings]]),0)","v":""}]
[{"$f":"Table_PI[[#This Row],[Line No.]]","v":""},{"$f":"IF(Table_SummaryPI[[#This Row],[MeasureName]]<>\"\",NOT(ISTEXT(Table_PI[[#This Row],[Rebate]])),\"\")","v":""},{"$f":"IF(Table_SummaryPI[[#This Row],[MeassureCategory]]<>\"\",CONCATENATE(Table_SummaryPI[[#This Row],[MeassureCategory]],  \" - \", Table_SummaryPI[[#This Row],[ProposedMeasureCategory]],  \" - \", TEXT(Table_SummaryPI[[#This Row],[Size]],\"#,##0.00\"),\" \",Table_SummaryPI[[#This Row],[SizeUnit]]),\"\")","v":""},{"$f":"SUBSTITUTE(Table_PI[[#This Row],[Measure]],\"     \",\"\",1)","v":""},{"$f":"IF(Table_PI[[#This Row],[List 1]]<>\"\",Table_PI[[#This Row],[List 1]],\"\")","v":""},{"$f":"IF(Table_PI[[#This Row],[List 2]]<>\"\",Table_PI[[#This Row],[List 2]],\"\")","v":""},{"$f":"IF(Table_PI[[#This Row],[List 3]]<>\"\",Table_PI[[#This Row],[List 3]],\"\")","v":""},{"$f":"IF(Table_PI[[#This Row],[Manufacturer]]=\"\",\"\",Table_PI[[#This Row],[Manufacturer]])","v":""},{"$f":"IF(Table_PI[[#This Row],[Model Number]]=\"\",\"\",Table_PI[[#This Row],[Model Number]])","v":""},{"$f":"IF(Table_PI[[#This Row],[Serial Number(s)]]=\"\",\"\",Table_PI[[#This Row],[Serial Number(s)]])","v":""},null,{"$f":"IF(Table_PI[[#This Row],[Size]]=\"\",\"\",Table_PI[[#This Row],[Size]])","v":""},null,null,{"$f":"IF(Table_PI[[#This Row],[Input 1]]<>\"\",Table_PI[[#This Row],[Input 1]],\"\")","v":""},null,null,{"$f":"IF(Table_PI[[#This Row],[Input 2]]<>\"\",Table_PI[[#This Row],[Input 2]],\"\")","v":""},null,null,{"$f":"IF(Table_PI[[#This Row],[Input 3]]<>\"\",Table_PI[[#This Row],[Input 3]],\"\")","v":""},null,null,{"$f":"IF(Table_PI[[#This Row],[Input 4]]<>\"\",Table_PI[[#This Row],[Input 4]],\"\")","v":""},null,null,{"$f":"IF(Table_PI[[#This Row],[Input 4]]<>\"\",Table_PI[[#This Row],[Input 4]],\"\")","v":""},null,null,{"$f":"IF(Table_PI[[#This Row],[Input 4]]<>\"\",Table_PI[[#This Row],[Input 4]],\"\")","v":""},{"$f":"IF(Table_PI[[#This Row],[Quantity]]=\"\",\"\",Table_PI[[#This Row],[Quantity]])","v":""},{"$f":"IF(Table_PI[[#This Row],[Notes]]=\"\",\"\",Table_PI[[#This Row],[Notes]])","v":""},{"$f":"IF(OR(Table_PI[[#This Row],[Hide: Baseline kWh]]=\"\",Table_PI[[#This Row],[Hide: Baseline kWh]]=0,ISTEXT(Table_PI[[#This Row],[Hide: Baseline kWh]])),\"\",Table_PI[[#This Row],[Hide: Baseline kWh]])","v":""},{"$f":"IF(OR(Table_PI[[#This Row],[Hide: Baseline kW]]=\"\",Table_PI[[#This Row],[Hide: Baseline kW]]=0,ISTEXT(Table_PI[[#This Row],[Hide: Baseline kW]])),\"\",Table_PI[[#This Row],[Hide: Baseline kW]])","v":""},{"$f":"IF(OR(Table_PI[[#This Row],[Hide: Proposed kWh]]=\"\",Table_PI[[#This Row],[Hide: Proposed kWh]]=0,ISTEXT(Table_PI[[#This Row],[Hide: Proposed kWh]])),\"\",Table_PI[[#This Row],[Hide: Proposed kWh]])","v":""},{"$f":"IF(OR(Table_PI[[#This Row],[Hide: Proposed kW]]=\"\",Table_PI[[#This Row],[Hide: Proposed kW]]=0,ISTEXT(Table_PI[[#This Row],[Hide: Proposed kW]])),\"\",Table_PI[[#This Row],[Hide: Proposed kW]])","v":""},null,null,{"$f":"IF(OR(Table_PI[[#This Row],[Hide: Rebate]]=\"\",Table_PI[[#This Row],[Hide: Rebate]]=0,ISTEXT(Table_PI[[#This Row],[Hide: Rebate]])),\"\",Table_PI[[#This Row],[Hide: Rebate]])","v":""},null,{"$f":"IF(OR(Table_PI[[#This Row],[Hide: Incremental Cost]]=\"\",Table_PI[[#This Row],[Hide: Incremental Cost]]=0,ISTEXT(Table_PI[[#This Row],[Hide: Incremental Cost]])),\"\",Table_PI[[#This Row],[Hide: Incremental Cost]])","v":""},{"$f":"IFERROR(IF(Table_SummaryPI[[#This Row],[Incentive_Customer]]=\"\",\"\",ROUND(Table_SummaryPI[[#This Row],[Incentive_Customer]]/$AM$401*'Customer Information'!$BC$21,2)),0)","v":""},{"$f":"IF(OR(Table_PI[[#This Row],[Annual kWh]]=\"\",Table_PI[[#This Row],[Annual kWh]]=0,ISTEXT(Table_PI[[#This Row],[Annual kWh]])),\"\",Table_PI[[#This Row],[Annual kWh]])","v":""},{"$f":"IF(OR(Table_PI[[#This Row],[Peak kW]]=\"\",Table_PI[[#This Row],[Peak kW]]=0,ISTEXT(Table_PI[[#This Row],[Peak kW]])),\"\",Table_PI[[#This Row],[Peak kW]])","v":""},{"$f":"IF(Table_SummaryPI[[#This Row],[Line No.]]<>\"\",IF(AND(ISNUMBER(FIND(\"Chiller\",Table_SummaryPI[[#This Row],[P_MeasureOption1]],1)),Table_SummaryPI[[#This Row],[ProposedMeasureCategory]]=\"Air-Cooled (Water-Cooled Replacement)\"),$BD$29*Table_SummaryPI[[#This Row],[Size]]*Table_SummaryPI[[#This Row],[Quantity]]*Table_SummaryPI[[#This Row],[EFLHCooling]],\nIF(ISNUMBER(FIND(\"Dishwasher\",Table_SummaryPI[[#This Row],[ProposedMeasureCategory]],1)),$BH$29*Table_SummaryPI[[#This Row],[Quantity]],\nIF(ISNUMBER(FIND(\"Ice Maker\",Table_SummaryPI[[#This Row],[ProposedMeasureCategory]],1)),$BD$31*Table_SummaryPI[[#This Row],[Quantity]],\nIF(ISNUMBER(FIND(\"Spray Valve\",Table_SummaryPI[[#This Row],[ProposedMeasureCategory]],1)),$BH$31*Table_SummaryPI[[#This Row],[Quantity]],\n0)))),\"\")","v":""},{"$f":"IF(OR(Table_PI[[#This Row],[Hide: Electrification kWh]]=\"\",Table_PI[[#This Row],[Hide: Electrification kWh]]=0,ISTEXT(Table_PI[[#This Row],[Hide: Electrification kWh]])),\"\",Table_PI[[#This Row],[Hide: Electrification kWh]])","v":""},{"$f":"IF(OR(Table_PI[[#This Row],[Hide: Electrification GHG]]=\"\",Table_PI[[#This Row],[Hide: Electrification GHG]]=0,ISTEXT(Table_PI[[#This Row],[Hide: Electrification GHG]])),\"\",Table_PI[[#This Row],[Hide: Electrification GHG]])","v":""},{"$f":"IFERROR(IF(Table_SummaryPI[[#This Row],[kWhSavings]]=\"\",\"\",$BH$9*Table_SummaryPI[[#This Row],[kWhSavings]]),0)","v":""},{"$f":"IFERROR(IF(Table_SummaryPI[[#This Row],[kWhSavings]]=\"\",\"\",$BH$14*Table_SummaryPI[[#This Row],[kWhSavings]]),0)","v":""},{"$f":"IFERROR(IF(Table_SummaryPI[[#This Row],[kWhSavings]]=\"\",\"\",$BH$18*Table_SummaryPI[[#This Row],[kWhSavings]]),0)","v":""},{"$f":"IFERROR(IF(Table_SummaryPI[[#This Row],[kWhSavings]]=\"\",\"\",$BH$22*Table_SummaryPI[[#This Row],[kWhSavings]]),0)","v":""}]
[{"$f":"Table_PI[[#This Row],[Line No.]]","v":""},{"$f":"IF(Table_SummaryPI[[#This Row],[MeasureName]]<>\"\",NOT(ISTEXT(Table_PI[[#This Row],[Rebate]])),\"\")","v":""},{"$f":"IF(Table_SummaryPI[[#This Row],[MeassureCategory]]<>\"\",CONCATENATE(Table_SummaryPI[[#This Row],[MeassureCategory]],  \" - \", Table_SummaryPI[[#This Row],[ProposedMeasureCategory]],  \" - \", TEXT(Table_SummaryPI[[#This Row],[Size]],\"#,##0.00\"),\" \",Table_SummaryPI[[#This Row],[SizeUnit]]),\"\")","v":""},{"$f":"SUBSTITUTE(Table_PI[[#This Row],[Measure]],\"     \",\"\",1)","v":""},{"$f":"IF(Table_PI[[#This Row],[List 1]]<>\"\",Table_PI[[#This Row],[List 1]],\"\")","v":""},{"$f":"IF(Table_PI[[#This Row],[List 2]]<>\"\",Table_PI[[#This Row],[List 2]],\"\")","v":""},{"$f":"IF(Table_PI[[#This Row],[List 3]]<>\"\",Table_PI[[#This Row],[List 3]],\"\")","v":""},{"$f":"IF(Table_PI[[#This Row],[Manufacturer]]=\"\",\"\",Table_PI[[#This Row],[Manufacturer]])","v":""},{"$f":"IF(Table_PI[[#This Row],[Model Number]]=\"\",\"\",Table_PI[[#This Row],[Model Number]])","v":""},{"$f":"IF(Table_PI[[#This Row],[Serial Number(s)]]=\"\",\"\",Table_PI[[#This Row],[Serial Number(s)]])","v":""},null,{"$f":"IF(Table_PI[[#This Row],[Size]]=\"\",\"\",Table_PI[[#This Row],[Size]])","v":""},null,null,{"$f":"IF(Table_PI[[#This Row],[Input 1]]<>\"\",Table_PI[[#This Row],[Input 1]],\"\")","v":""},null,null,{"$f":"IF(Table_PI[[#This Row],[Input 2]]<>\"\",Table_PI[[#This Row],[Input 2]],\"\")","v":""},null,null,{"$f":"IF(Table_PI[[#This Row],[Input 3]]<>\"\",Table_PI[[#This Row],[Input 3]],\"\")","v":""},null,null,{"$f":"IF(Table_PI[[#This Row],[Input 4]]<>\"\",Table_PI[[#This Row],[Input 4]],\"\")","v":""},null,null,{"$f":"IF(Table_PI[[#This Row],[Input 4]]<>\"\",Table_PI[[#This Row],[Input 4]],\"\")","v":""},null,null,{"$f":"IF(Table_PI[[#This Row],[Input 4]]<>\"\",Table_PI[[#This Row],[Input 4]],\"\")","v":""},{"$f":"IF(Table_PI[[#This Row],[Quantity]]=\"\",\"\",Table_PI[[#This Row],[Quantity]])","v":""},{"$f":"IF(Table_PI[[#This Row],[Notes]]=\"\",\"\",Table_PI[[#This Row],[Notes]])","v":""},{"$f":"IF(OR(Table_PI[[#This Row],[Hide: Baseline kWh]]=\"\",Table_PI[[#This Row],[Hide: Baseline kWh]]=0,ISTEXT(Table_PI[[#This Row],[Hide: Baseline kWh]])),\"\",Table_PI[[#This Row],[Hide: Baseline kWh]])","v":""},{"$f":"IF(OR(Table_PI[[#This Row],[Hide: Baseline kW]]=\"\",Table_PI[[#This Row],[Hide: Baseline kW]]=0,ISTEXT(Table_PI[[#This Row],[Hide: Baseline kW]])),\"\",Table_PI[[#This Row],[Hide: Baseline kW]])","v":""},{"$f":"IF(OR(Table_PI[[#This Row],[Hide: Proposed kWh]]=\"\",Table_PI[[#This Row],[Hide: Proposed kWh]]=0,ISTEXT(Table_PI[[#This Row],[Hide: Proposed kWh]])),\"\",Table_PI[[#This Row],[Hide: Proposed kWh]])","v":""},{"$f":"IF(OR(Table_PI[[#This Row],[Hide: Proposed kW]]=\"\",Table_PI[[#This Row],[Hide: Proposed kW]]=0,ISTEXT(Table_PI[[#This Row],[Hide: Proposed kW]])),\"\",Table_PI[[#This Row],[Hide: Proposed kW]])","v":""},null,null,{"$f":"IF(OR(Table_PI[[#This Row],[Hide: Rebate]]=\"\",Table_PI[[#This Row],[Hide: Rebate]]=0,ISTEXT(Table_PI[[#This Row],[Hide: Rebate]])),\"\",Table_PI[[#This Row],[Hide: Rebate]])","v":""},null,{"$f":"IF(OR(Table_PI[[#This Row],[Hide: Incremental Cost]]=\"\",Table_PI[[#This Row],[Hide: Incremental Cost]]=0,ISTEXT(Table_PI[[#This Row],[Hide: Incremental Cost]])),\"\",Table_PI[[#This Row],[Hide: Incremental Cost]])","v":""},{"$f":"IFERROR(IF(Table_SummaryPI[[#This Row],[Incentive_Customer]]=\"\",\"\",ROUND(Table_SummaryPI[[#This Row],[Incentive_Customer]]/$AM$401*'Customer Information'!$BC$21,2)),0)","v":""},{"$f":"IF(OR(Table_PI[[#This Row],[Annual kWh]]=\"\",Table_PI[[#This Row],[Annual kWh]]=0,ISTEXT(Table_PI[[#This Row],[Annual kWh]])),\"\",Table_PI[[#This Row],[Annual kWh]])","v":""},{"$f":"IF(OR(Table_PI[[#This Row],[Peak kW]]=\"\",Table_PI[[#This Row],[Peak kW]]=0,ISTEXT(Table_PI[[#This Row],[Peak kW]])),\"\",Table_PI[[#This Row],[Peak kW]])","v":""},{"$f":"IF(Table_SummaryPI[[#This Row],[Line No.]]<>\"\",IF(AND(ISNUMBER(FIND(\"Chiller\",Table_SummaryPI[[#This Row],[P_MeasureOption1]],1)),Table_SummaryPI[[#This Row],[ProposedMeasureCategory]]=\"Air-Cooled (Water-Cooled Replacement)\"),$BD$29*Table_SummaryPI[[#This Row],[Size]]*Table_SummaryPI[[#This Row],[Quantity]]*Table_SummaryPI[[#This Row],[EFLHCooling]],\nIF(ISNUMBER(FIND(\"Dishwasher\",Table_SummaryPI[[#This Row],[ProposedMeasureCategory]],1)),$BH$29*Table_SummaryPI[[#This Row],[Quantity]],\nIF(ISNUMBER(FIND(\"Ice Maker\",Table_SummaryPI[[#This Row],[ProposedMeasureCategory]],1)),$BD$31*Table_SummaryPI[[#This Row],[Quantity]],\nIF(ISNUMBER(FIND(\"Spray Valve\",Table_SummaryPI[[#This Row],[ProposedMeasureCategory]],1)),$BH$31*Table_SummaryPI[[#This Row],[Quantity]],\n0)))),\"\")","v":""},{"$f":"IF(OR(Table_PI[[#This Row],[Hide: Electrification kWh]]=\"\",Table_PI[[#This Row],[Hide: Electrification kWh]]=0,ISTEXT(Table_PI[[#This Row],[Hide: Electrification kWh]])),\"\",Table_PI[[#This Row],[Hide: Electrification kWh]])","v":""},{"$f":"IF(OR(Table_PI[[#This Row],[Hide: Electrification GHG]]=\"\",Table_PI[[#This Row],[Hide: Electrification GHG]]=0,ISTEXT(Table_PI[[#This Row],[Hide: Electrification GHG]])),\"\",Table_PI[[#This Row],[Hide: Electrification GHG]])","v":""},{"$f":"IFERROR(IF(Table_SummaryPI[[#This Row],[kWhSavings]]=\"\",\"\",$BH$9*Table_SummaryPI[[#This Row],[kWhSavings]]),0)","v":""},{"$f":"IFERROR(IF(Table_SummaryPI[[#This Row],[kWhSavings]]=\"\",\"\",$BH$14*Table_SummaryPI[[#This Row],[kWhSavings]]),0)","v":""},{"$f":"IFERROR(IF(Table_SummaryPI[[#This Row],[kWhSavings]]=\"\",\"\",$BH$18*Table_SummaryPI[[#This Row],[kWhSavings]]),0)","v":""},{"$f":"IFERROR(IF(Table_SummaryPI[[#This Row],[kWhSavings]]=\"\",\"\",$BH$22*Table_SummaryPI[[#This Row],[kWhSavings]]),0)","v":""}]
[{"$f":"Table_PI[[#This Row],[Line No.]]","v":""},{"$f":"IF(Table_SummaryPI[[#This Row],[MeasureName]]<>\"\",NOT(ISTEXT(Table_PI[[#This Row],[Rebate]])),\"\")","v":""},{"$f":"IF(Table_SummaryPI[[#This Row],[MeassureCategory]]<>\"\",CONCATENATE(Table_SummaryPI[[#This Row],[MeassureCategory]],  \" - \", Table_SummaryPI[[#This Row],[ProposedMeasureCategory]],  \" - \", TEXT(Table_SummaryPI[[#This Row],[Size]],\"#,##0.00\"),\" \",Table_SummaryPI[[#This Row],[SizeUnit]]),\"\")","v":""},{"$f":"SUBSTITUTE(Table_PI[[#This Row],[Measure]],\"     \",\"\",1)","v":""},{"$f":"IF(Table_PI[[#This Row],[List 1]]<>\"\",Table_PI[[#This Row],[List 1]],\"\")","v":""},{"$f":"IF(Table_PI[[#This Row],[List 2]]<>\"\",Table_PI[[#This Row],[List 2]],\"\")","v":""},{"$f":"IF(Table_PI[[#This Row],[List 3]]<>\"\",Table_PI[[#This Row],[List 3]],\"\")","v":""},{"$f":"IF(Table_PI[[#This Row],[Manufacturer]]=\"\",\"\",Table_PI[[#This Row],[Manufacturer]])","v":""},{"$f":"IF(Table_PI[[#This Row],[Model Number]]=\"\",\"\",Table_PI[[#This Row],[Model Number]])","v":""},{"$f":"IF(Table_PI[[#This Row],[Serial Number(s)]]=\"\",\"\",Table_PI[[#This Row],[Serial Number(s)]])","v":""},null,{"$f":"IF(Table_PI[[#This Row],[Size]]=\"\",\"\",Table_PI[[#This Row],[Size]])","v":""},null,null,{"$f":"IF(Table_PI[[#This Row],[Input 1]]<>\"\",Table_PI[[#This Row],[Input 1]],\"\")","v":""},null,null,{"$f":"IF(Table_PI[[#This Row],[Input 2]]<>\"\",Table_PI[[#This Row],[Input 2]],\"\")","v":""},null,null,{"$f":"IF(Table_PI[[#This Row],[Input 3]]<>\"\",Table_PI[[#This Row],[Input 3]],\"\")","v":""},null,null,{"$f":"IF(Table_PI[[#This Row],[Input 4]]<>\"\",Table_PI[[#This Row],[Input 4]],\"\")","v":""},null,null,{"$f":"IF(Table_PI[[#This Row],[Input 4]]<>\"\",Table_PI[[#This Row],[Input 4]],\"\")","v":""},null,null,{"$f":"IF(Table_PI[[#This Row],[Input 4]]<>\"\",Table_PI[[#This Row],[Input 4]],\"\")","v":""},{"$f":"IF(Table_PI[[#This Row],[Quantity]]=\"\",\"\",Table_PI[[#This Row],[Quantity]])","v":""},{"$f":"IF(Table_PI[[#This Row],[Notes]]=\"\",\"\",Table_PI[[#This Row],[Notes]])","v":""},{"$f":"IF(OR(Table_PI[[#This Row],[Hide: Baseline kWh]]=\"\",Table_PI[[#This Row],[Hide: Baseline kWh]]=0,ISTEXT(Table_PI[[#This Row],[Hide: Baseline kWh]])),\"\",Table_PI[[#This Row],[Hide: Baseline kWh]])","v":""},{"$f":"IF(OR(Table_PI[[#This Row],[Hide: Baseline kW]]=\"\",Table_PI[[#This Row],[Hide: Baseline kW]]=0,ISTEXT(Table_PI[[#This Row],[Hide: Baseline kW]])),\"\",Table_PI[[#This Row],[Hide: Baseline kW]])","v":""},{"$f":"IF(OR(Table_PI[[#This Row],[Hide: Proposed kWh]]=\"\",Table_PI[[#This Row],[Hide: Proposed kWh]]=0,ISTEXT(Table_PI[[#This Row],[Hide: Proposed kWh]])),\"\",Table_PI[[#This Row],[Hide: Proposed kWh]])","v":""},{"$f":"IF(OR(Table_PI[[#This Row],[Hide: Proposed kW]]=\"\",Table_PI[[#This Row],[Hide: Proposed kW]]=0,ISTEXT(Table_PI[[#This Row],[Hide: Proposed kW]])),\"\",Table_PI[[#This Row],[Hide: Proposed kW]])","v":""},null,null,{"$f":"IF(OR(Table_PI[[#This Row],[Hide: Rebate]]=\"\",Table_PI[[#This Row],[Hide: Rebate]]=0,ISTEXT(Table_PI[[#This Row],[Hide: Rebate]])),\"\",Table_PI[[#This Row],[Hide: Rebate]])","v":""},null,{"$f":"IF(OR(Table_PI[[#This Row],[Hide: Incremental Cost]]=\"\",Table_PI[[#This Row],[Hide: Incremental Cost]]=0,ISTEXT(Table_PI[[#This Row],[Hide: Incremental Cost]])),\"\",Table_PI[[#This Row],[Hide: Incremental Cost]])","v":""},{"$f":"IFERROR(IF(Table_SummaryPI[[#This Row],[Incentive_Customer]]=\"\",\"\",ROUND(Table_SummaryPI[[#This Row],[Incentive_Customer]]/$AM$401*'Customer Information'!$BC$21,2)),0)","v":""},{"$f":"IF(OR(Table_PI[[#This Row],[Annual kWh]]=\"\",Table_PI[[#This Row],[Annual kWh]]=0,ISTEXT(Table_PI[[#This Row],[Annual kWh]])),\"\",Table_PI[[#This Row],[Annual kWh]])","v":""},{"$f":"IF(OR(Table_PI[[#This Row],[Peak kW]]=\"\",Table_PI[[#This Row],[Peak kW]]=0,ISTEXT(Table_PI[[#This Row],[Peak kW]])),\"\",Table_PI[[#This Row],[Peak kW]])","v":""},{"$f":"IF(Table_SummaryPI[[#This Row],[Line No.]]<>\"\",IF(AND(ISNUMBER(FIND(\"Chiller\",Table_SummaryPI[[#This Row],[P_MeasureOption1]],1)),Table_SummaryPI[[#This Row],[ProposedMeasureCategory]]=\"Air-Cooled (Water-Cooled Replacement)\"),$BD$29*Table_SummaryPI[[#This Row],[Size]]*Table_SummaryPI[[#This Row],[Quantity]]*Table_SummaryPI[[#This Row],[EFLHCooling]],\nIF(ISNUMBER(FIND(\"Dishwasher\",Table_SummaryPI[[#This Row],[ProposedMeasureCategory]],1)),$BH$29*Table_SummaryPI[[#This Row],[Quantity]],\nIF(ISNUMBER(FIND(\"Ice Maker\",Table_SummaryPI[[#This Row],[ProposedMeasureCategory]],1)),$BD$31*Table_SummaryPI[[#This Row],[Quantity]],\nIF(ISNUMBER(FIND(\"Spray Valve\",Table_SummaryPI[[#This Row],[ProposedMeasureCategory]],1)),$BH$31*Table_SummaryPI[[#This Row],[Quantity]],\n0)))),\"\")","v":""},{"$f":"IF(OR(Table_PI[[#This Row],[Hide: Electrification kWh]]=\"\",Table_PI[[#This Row],[Hide: Electrification kWh]]=0,ISTEXT(Table_PI[[#This Row],[Hide: Electrification kWh]])),\"\",Table_PI[[#This Row],[Hide: Electrification kWh]])","v":""},{"$f":"IF(OR(Table_PI[[#This Row],[Hide: Electrification GHG]]=\"\",Table_PI[[#This Row],[Hide: Electrification GHG]]=0,ISTEXT(Table_PI[[#This Row],[Hide: Electrification GHG]])),\"\",Table_PI[[#This Row],[Hide: Electrification GHG]])","v":""},{"$f":"IFERROR(IF(Table_SummaryPI[[#This Row],[kWhSavings]]=\"\",\"\",$BH$9*Table_SummaryPI[[#This Row],[kWhSavings]]),0)","v":""},{"$f":"IFERROR(IF(Table_SummaryPI[[#This Row],[kWhSavings]]=\"\",\"\",$BH$14*Table_SummaryPI[[#This Row],[kWhSavings]]),0)","v":""},{"$f":"IFERROR(IF(Table_SummaryPI[[#This Row],[kWhSavings]]=\"\",\"\",$BH$18*Table_SummaryPI[[#This Row],[kWhSavings]]),0)","v":""},{"$f":"IFERROR(IF(Table_SummaryPI[[#This Row],[kWhSavings]]=\"\",\"\",$BH$22*Table_SummaryPI[[#This Row],[kWhSavings]]),0)","v":""}]
[{"$f":"Table_PI[[#This Row],[Line No.]]","v":""},{"$f":"IF(Table_SummaryPI[[#This Row],[MeasureName]]<>\"\",NOT(ISTEXT(Table_PI[[#This Row],[Rebate]])),\"\")","v":""},{"$f":"IF(Table_SummaryPI[[#This Row],[MeassureCategory]]<>\"\",CONCATENATE(Table_SummaryPI[[#This Row],[MeassureCategory]],  \" - \", Table_SummaryPI[[#This Row],[ProposedMeasureCategory]],  \" - \", TEXT(Table_SummaryPI[[#This Row],[Size]],\"#,##0.00\"),\" \",Table_SummaryPI[[#This Row],[SizeUnit]]),\"\")","v":""},{"$f":"SUBSTITUTE(Table_PI[[#This Row],[Measure]],\"     \",\"\",1)","v":""},{"$f":"IF(Table_PI[[#This Row],[List 1]]<>\"\",Table_PI[[#This Row],[List 1]],\"\")","v":""},{"$f":"IF(Table_PI[[#This Row],[List 2]]<>\"\",Table_PI[[#This Row],[List 2]],\"\")","v":""},{"$f":"IF(Table_PI[[#This Row],[List 3]]<>\"\",Table_PI[[#This Row],[List 3]],\"\")","v":""},{"$f":"IF(Table_PI[[#This Row],[Manufacturer]]=\"\",\"\",Table_PI[[#This Row],[Manufacturer]])","v":""},{"$f":"IF(Table_PI[[#This Row],[Model Number]]=\"\",\"\",Table_PI[[#This Row],[Model Number]])","v":""},{"$f":"IF(Table_PI[[#This Row],[Serial Number(s)]]=\"\",\"\",Table_PI[[#This Row],[Serial Number(s)]])","v":""},null,{"$f":"IF(Table_PI[[#This Row],[Size]]=\"\",\"\",Table_PI[[#This Row],[Size]])","v":""},null,null,{"$f":"IF(Table_PI[[#This Row],[Input 1]]<>\"\",Table_PI[[#This Row],[Input 1]],\"\")","v":""},null,null,{"$f":"IF(Table_PI[[#This Row],[Input 2]]<>\"\",Table_PI[[#This Row],[Input 2]],\"\")","v":""},null,null,{"$f":"IF(Table_PI[[#This Row],[Input 3]]<>\"\",Table_PI[[#This Row],[Input 3]],\"\")","v":""},null,null,{"$f":"IF(Table_PI[[#This Row],[Input 4]]<>\"\",Table_PI[[#This Row],[Input 4]],\"\")","v":""},null,null,{"$f":"IF(Table_PI[[#This Row],[Input 4]]<>\"\",Table_PI[[#This Row],[Input 4]],\"\")","v":""},null,null,{"$f":"IF(Table_PI[[#This Row],[Input 4]]<>\"\",Table_PI[[#This Row],[Input 4]],\"\")","v":""},{"$f":"IF(Table_PI[[#This Row],[Quantity]]=\"\",\"\",Table_PI[[#This Row],[Quantity]])","v":""},{"$f":"IF(Table_PI[[#This Row],[Notes]]=\"\",\"\",Table_PI[[#This Row],[Notes]])","v":""},{"$f":"IF(OR(Table_PI[[#This Row],[Hide: Baseline kWh]]=\"\",Table_PI[[#This Row],[Hide: Baseline kWh]]=0,ISTEXT(Table_PI[[#This Row],[Hide: Baseline kWh]])),\"\",Table_PI[[#This Row],[Hide: Baseline kWh]])","v":""},{"$f":"IF(OR(Table_PI[[#This Row],[Hide: Baseline kW]]=\"\",Table_PI[[#This Row],[Hide: Baseline kW]]=0,ISTEXT(Table_PI[[#This Row],[Hide: Baseline kW]])),\"\",Table_PI[[#This Row],[Hide: Baseline kW]])","v":""},{"$f":"IF(OR(Table_PI[[#This Row],[Hide: Proposed kWh]]=\"\",Table_PI[[#This Row],[Hide: Proposed kWh]]=0,ISTEXT(Table_PI[[#This Row],[Hide: Proposed kWh]])),\"\",Table_PI[[#This Row],[Hide: Proposed kWh]])","v":""},{"$f":"IF(OR(Table_PI[[#This Row],[Hide: Proposed kW]]=\"\",Table_PI[[#This Row],[Hide: Proposed kW]]=0,ISTEXT(Table_PI[[#This Row],[Hide: Proposed kW]])),\"\",Table_PI[[#This Row],[Hide: Proposed kW]])","v":""},null,null,{"$f":"IF(OR(Table_PI[[#This Row],[Hide: Rebate]]=\"\",Table_PI[[#This Row],[Hide: Rebate]]=0,ISTEXT(Table_PI[[#This Row],[Hide: Rebate]])),\"\",Table_PI[[#This Row],[Hide: Rebate]])","v":""},null,{"$f":"IF(OR(Table_PI[[#This Row],[Hide: Incremental Cost]]=\"\",Table_PI[[#This Row],[Hide: Incremental Cost]]=0,ISTEXT(Table_PI[[#This Row],[Hide: Incremental Cost]])),\"\",Table_PI[[#This Row],[Hide: Incremental Cost]])","v":""},{"$f":"IFERROR(IF(Table_SummaryPI[[#This Row],[Incentive_Customer]]=\"\",\"\",ROUND(Table_SummaryPI[[#This Row],[Incentive_Customer]]/$AM$401*'Customer Information'!$BC$21,2)),0)","v":""},{"$f":"IF(OR(Table_PI[[#This Row],[Annual kWh]]=\"\",Table_PI[[#This Row],[Annual kWh]]=0,ISTEXT(Table_PI[[#This Row],[Annual kWh]])),\"\",Table_PI[[#This Row],[Annual kWh]])","v":""},{"$f":"IF(OR(Table_PI[[#This Row],[Peak kW]]=\"\",Table_PI[[#This Row],[Peak kW]]=0,ISTEXT(Table_PI[[#This Row],[Peak kW]])),\"\",Table_PI[[#This Row],[Peak kW]])","v":""},{"$f":"IF(Table_SummaryPI[[#This Row],[Line No.]]<>\"\",IF(AND(ISNUMBER(FIND(\"Chiller\",Table_SummaryPI[[#This Row],[P_MeasureOption1]],1)),Table_SummaryPI[[#This Row],[ProposedMeasureCategory]]=\"Air-Cooled (Water-Cooled Replacement)\"),$BD$29*Table_SummaryPI[[#This Row],[Size]]*Table_SummaryPI[[#This Row],[Quantity]]*Table_SummaryPI[[#This Row],[EFLHCooling]],\nIF(ISNUMBER(FIND(\"Dishwasher\",Table_SummaryPI[[#This Row],[ProposedMeasureCategory]],1)),$BH$29*Table_SummaryPI[[#This Row],[Quantity]],\nIF(ISNUMBER(FIND(\"Ice Maker\",Table_SummaryPI[[#This Row],[ProposedMeasureCategory]],1)),$BD$31*Table_SummaryPI[[#This Row],[Quantity]],\nIF(ISNUMBER(FIND(\"Spray Valve\",Table_SummaryPI[[#This Row],[ProposedMeasureCategory]],1)),$BH$31*Table_SummaryPI[[#This Row],[Quantity]],\n0)))),\"\")","v":""},{"$f":"IF(OR(Table_PI[[#This Row],[Hide: Electrification kWh]]=\"\",Table_PI[[#This Row],[Hide: Electrification kWh]]=0,ISTEXT(Table_PI[[#This Row],[Hide: Electrification kWh]])),\"\",Table_PI[[#This Row],[Hide: Electrification kWh]])","v":""},{"$f":"IF(OR(Table_PI[[#This Row],[Hide: Electrification GHG]]=\"\",Table_PI[[#This Row],[Hide: Electrification GHG]]=0,ISTEXT(Table_PI[[#This Row],[Hide: Electrification GHG]])),\"\",Table_PI[[#This Row],[Hide: Electrification GHG]])","v":""},{"$f":"IFERROR(IF(Table_SummaryPI[[#This Row],[kWhSavings]]=\"\",\"\",$BH$9*Table_SummaryPI[[#This Row],[kWhSavings]]),0)","v":""},{"$f":"IFERROR(IF(Table_SummaryPI[[#This Row],[kWhSavings]]=\"\",\"\",$BH$14*Table_SummaryPI[[#This Row],[kWhSavings]]),0)","v":""},{"$f":"IFERROR(IF(Table_SummaryPI[[#This Row],[kWhSavings]]=\"\",\"\",$BH$18*Table_SummaryPI[[#This Row],[kWhSavings]]),0)","v":""},{"$f":"IFERROR(IF(Table_SummaryPI[[#This Row],[kWhSavings]]=\"\",\"\",$BH$22*Table_SummaryPI[[#This Row],[kWhSavings]]),0)","v":""}]
[{"$f":"Table_PI[[#This Row],[Line No.]]","v":""},{"$f":"IF(Table_SummaryPI[[#This Row],[MeasureName]]<>\"\",NOT(ISTEXT(Table_PI[[#This Row],[Rebate]])),\"\")","v":""},{"$f":"IF(Table_SummaryPI[[#This Row],[MeassureCategory]]<>\"\",CONCATENATE(Table_SummaryPI[[#This Row],[MeassureCategory]],  \" - \", Table_SummaryPI[[#This Row],[ProposedMeasureCategory]],  \" - \", TEXT(Table_SummaryPI[[#This Row],[Size]],\"#,##0.00\"),\" \",Table_SummaryPI[[#This Row],[SizeUnit]]),\"\")","v":""},{"$f":"SUBSTITUTE(Table_PI[[#This Row],[Measure]],\"     \",\"\",1)","v":""},{"$f":"IF(Table_PI[[#This Row],[List 1]]<>\"\",Table_PI[[#This Row],[List 1]],\"\")","v":""},{"$f":"IF(Table_PI[[#This Row],[List 2]]<>\"\",Table_PI[[#This Row],[List 2]],\"\")","v":""},{"$f":"IF(Table_PI[[#This Row],[List 3]]<>\"\",Table_PI[[#This Row],[List 3]],\"\")","v":""},{"$f":"IF(Table_PI[[#This Row],[Manufacturer]]=\"\",\"\",Table_PI[[#This Row],[Manufacturer]])","v":""},{"$f":"IF(Table_PI[[#This Row],[Model Number]]=\"\",\"\",Table_PI[[#This Row],[Model Number]])","v":""},{"$f":"IF(Table_PI[[#This Row],[Serial Number(s)]]=\"\",\"\",Table_PI[[#This Row],[Serial Number(s)]])","v":""},null,{"$f":"IF(Table_PI[[#This Row],[Size]]=\"\",\"\",Table_PI[[#This Row],[Size]])","v":""},null,null,{"$f":"IF(Table_PI[[#This Row],[Input 1]]<>\"\",Table_PI[[#This Row],[Input 1]],\"\")","v":""},null,null,{"$f":"IF(Table_PI[[#This Row],[Input 2]]<>\"\",Table_PI[[#This Row],[Input 2]],\"\")","v":""},null,null,{"$f":"IF(Table_PI[[#This Row],[Input 3]]<>\"\",Table_PI[[#This Row],[Input 3]],\"\")","v":""},null,null,{"$f":"IF(Table_PI[[#This Row],[Input 4]]<>\"\",Table_PI[[#This Row],[Input 4]],\"\")","v":""},null,null,{"$f":"IF(Table_PI[[#This Row],[Input 4]]<>\"\",Table_PI[[#This Row],[Input 4]],\"\")","v":""},null,null,{"$f":"IF(Table_PI[[#This Row],[Input 4]]<>\"\",Table_PI[[#This Row],[Input 4]],\"\")","v":""},{"$f":"IF(Table_PI[[#This Row],[Quantity]]=\"\",\"\",Table_PI[[#This Row],[Quantity]])","v":""},{"$f":"IF(Table_PI[[#This Row],[Notes]]=\"\",\"\",Table_PI[[#This Row],[Notes]])","v":""},{"$f":"IF(OR(Table_PI[[#This Row],[Hide: Baseline kWh]]=\"\",Table_PI[[#This Row],[Hide: Baseline kWh]]=0,ISTEXT(Table_PI[[#This Row],[Hide: Baseline kWh]])),\"\",Table_PI[[#This Row],[Hide: Baseline kWh]])","v":""},{"$f":"IF(OR(Table_PI[[#This Row],[Hide: Baseline kW]]=\"\",Table_PI[[#This Row],[Hide: Baseline kW]]=0,ISTEXT(Table_PI[[#This Row],[Hide: Baseline kW]])),\"\",Table_PI[[#This Row],[Hide: Baseline kW]])","v":""},{"$f":"IF(OR(Table_PI[[#This Row],[Hide: Proposed kWh]]=\"\",Table_PI[[#This Row],[Hide: Proposed kWh]]=0,ISTEXT(Table_PI[[#This Row],[Hide: Proposed kWh]])),\"\",Table_PI[[#This Row],[Hide: Proposed kWh]])","v":""},{"$f":"IF(OR(Table_PI[[#This Row],[Hide: Proposed kW]]=\"\",Table_PI[[#This Row],[Hide: Proposed kW]]=0,ISTEXT(Table_PI[[#This Row],[Hide: Proposed kW]])),\"\",Table_PI[[#This Row],[Hide: Proposed kW]])","v":""},null,null,{"$f":"IF(OR(Table_PI[[#This Row],[Hide: Rebate]]=\"\",Table_PI[[#This Row],[Hide: Rebate]]=0,ISTEXT(Table_PI[[#This Row],[Hide: Rebate]])),\"\",Table_PI[[#This Row],[Hide: Rebate]])","v":""},null,{"$f":"IF(OR(Table_PI[[#This Row],[Hide: Incremental Cost]]=\"\",Table_PI[[#This Row],[Hide: Incremental Cost]]=0,ISTEXT(Table_PI[[#This Row],[Hide: Incremental Cost]])),\"\",Table_PI[[#This Row],[Hide: Incremental Cost]])","v":""},{"$f":"IFERROR(IF(Table_SummaryPI[[#This Row],[Incentive_Customer]]=\"\",\"\",ROUND(Table_SummaryPI[[#This Row],[Incentive_Customer]]/$AM$401*'Customer Information'!$BC$21,2)),0)","v":""},{"$f":"IF(OR(Table_PI[[#This Row],[Annual kWh]]=\"\",Table_PI[[#This Row],[Annual kWh]]=0,ISTEXT(Table_PI[[#This Row],[Annual kWh]])),\"\",Table_PI[[#This Row],[Annual kWh]])","v":""},{"$f":"IF(OR(Table_PI[[#This Row],[Peak kW]]=\"\",Table_PI[[#This Row],[Peak kW]]=0,ISTEXT(Table_PI[[#This Row],[Peak kW]])),\"\",Table_PI[[#This Row],[Peak kW]])","v":""},{"$f":"IF(Table_SummaryPI[[#This Row],[Line No.]]<>\"\",IF(AND(ISNUMBER(FIND(\"Chiller\",Table_SummaryPI[[#This Row],[P_MeasureOption1]],1)),Table_SummaryPI[[#This Row],[ProposedMeasureCategory]]=\"Air-Cooled (Water-Cooled Replacement)\"),$BD$29*Table_SummaryPI[[#This Row],[Size]]*Table_SummaryPI[[#This Row],[Quantity]]*Table_SummaryPI[[#This Row],[EFLHCooling]],\nIF(ISNUMBER(FIND(\"Dishwasher\",Table_SummaryPI[[#This Row],[ProposedMeasureCategory]],1)),$BH$29*Table_SummaryPI[[#This Row],[Quantity]],\nIF(ISNUMBER(FIND(\"Ice Maker\",Table_SummaryPI[[#This Row],[ProposedMeasureCategory]],1)),$BD$31*Table_SummaryPI[[#This Row],[Quantity]],\nIF(ISNUMBER(FIND(\"Spray Valve\",Table_SummaryPI[[#This Row],[ProposedMeasureCategory]],1)),$BH$31*Table_SummaryPI[[#This Row],[Quantity]],\n0)))),\"\")","v":""},{"$f":"IF(OR(Table_PI[[#This Row],[Hide: Electrification kWh]]=\"\",Table_PI[[#This Row],[Hide: Electrification kWh]]=0,ISTEXT(Table_PI[[#This Row],[Hide: Electrification kWh]])),\"\",Table_PI[[#This Row],[Hide: Electrification kWh]])","v":""},{"$f":"IF(OR(Table_PI[[#This Row],[Hide: Electrification GHG]]=\"\",Table_PI[[#This Row],[Hide: Electrification GHG]]=0,ISTEXT(Table_PI[[#This Row],[Hide: Electrification GHG]])),\"\",Table_PI[[#This Row],[Hide: Electrification GHG]])","v":""},{"$f":"IFERROR(IF(Table_SummaryPI[[#This Row],[kWhSavings]]=\"\",\"\",$BH$9*Table_SummaryPI[[#This Row],[kWhSavings]]),0)","v":""},{"$f":"IFERROR(IF(Table_SummaryPI[[#This Row],[kWhSavings]]=\"\",\"\",$BH$14*Table_SummaryPI[[#This Row],[kWhSavings]]),0)","v":""},{"$f":"IFERROR(IF(Table_SummaryPI[[#This Row],[kWhSavings]]=\"\",\"\",$BH$18*Table_SummaryPI[[#This Row],[kWhSavings]]),0)","v":""},{"$f":"IFERROR(IF(Table_SummaryPI[[#This Row],[kWhSavings]]=\"\",\"\",$BH$22*Table_SummaryPI[[#This Row],[kWhSavings]]),0)","v":""}]
[{"$f":"Table_PI[[#This Row],[Line No.]]","v":""},{"$f":"IF(Table_SummaryPI[[#This Row],[MeasureName]]<>\"\",NOT(ISTEXT(Table_PI[[#This Row],[Rebate]])),\"\")","v":""},{"$f":"IF(Table_SummaryPI[[#This Row],[MeassureCategory]]<>\"\",CONCATENATE(Table_SummaryPI[[#This Row],[MeassureCategory]],  \" - \", Table_SummaryPI[[#This Row],[ProposedMeasureCategory]],  \" - \", TEXT(Table_SummaryPI[[#This Row],[Size]],\"#,##0.00\"),\" \",Table_SummaryPI[[#This Row],[SizeUnit]]),\"\")","v":""},{"$f":"SUBSTITUTE(Table_PI[[#This Row],[Measure]],\"     \",\"\",1)","v":""},{"$f":"IF(Table_PI[[#This Row],[List 1]]<>\"\",Table_PI[[#This Row],[List 1]],\"\")","v":""},{"$f":"IF(Table_PI[[#This Row],[List 2]]<>\"\",Table_PI[[#This Row],[List 2]],\"\")","v":""},{"$f":"IF(Table_PI[[#This Row],[List 3]]<>\"\",Table_PI[[#This Row],[List 3]],\"\")","v":""},{"$f":"IF(Table_PI[[#This Row],[Manufacturer]]=\"\",\"\",Table_PI[[#This Row],[Manufacturer]])","v":""},{"$f":"IF(Table_PI[[#This Row],[Model Number]]=\"\",\"\",Table_PI[[#This Row],[Model Number]])","v":""},{"$f":"IF(Table_PI[[#This Row],[Serial Number(s)]]=\"\",\"\",Table_PI[[#This Row],[Serial Number(s)]])","v":""},null,{"$f":"IF(Table_PI[[#This Row],[Size]]=\"\",\"\",Table_PI[[#This Row],[Size]])","v":""},null,null,{"$f":"IF(Table_PI[[#This Row],[Input 1]]<>\"\",Table_PI[[#This Row],[Input 1]],\"\")","v":""},null,null,{"$f":"IF(Table_PI[[#This Row],[Input 2]]<>\"\",Table_PI[[#This Row],[Input 2]],\"\")","v":""},null,null,{"$f":"IF(Table_PI[[#This Row],[Input 3]]<>\"\",Table_PI[[#This Row],[Input 3]],\"\")","v":""},null,null,{"$f":"IF(Table_PI[[#This Row],[Input 4]]<>\"\",Table_PI[[#This Row],[Input 4]],\"\")","v":""},null,null,{"$f":"IF(Table_PI[[#This Row],[Input 4]]<>\"\",Table_PI[[#This Row],[Input 4]],\"\")","v":""},null,null,{"$f":"IF(Table_PI[[#This Row],[Input 4]]<>\"\",Table_PI[[#This Row],[Input 4]],\"\")","v":""},{"$f":"IF(Table_PI[[#This Row],[Quantity]]=\"\",\"\",Table_PI[[#This Row],[Quantity]])","v":""},{"$f":"IF(Table_PI[[#This Row],[Notes]]=\"\",\"\",Table_PI[[#This Row],[Notes]])","v":""},{"$f":"IF(OR(Table_PI[[#This Row],[Hide: Baseline kWh]]=\"\",Table_PI[[#This Row],[Hide: Baseline kWh]]=0,ISTEXT(Table_PI[[#This Row],[Hide: Baseline kWh]])),\"\",Table_PI[[#This Row],[Hide: Baseline kWh]])","v":""},{"$f":"IF(OR(Table_PI[[#This Row],[Hide: Baseline kW]]=\"\",Table_PI[[#This Row],[Hide: Baseline kW]]=0,ISTEXT(Table_PI[[#This Row],[Hide: Baseline kW]])),\"\",Table_PI[[#This Row],[Hide: Baseline kW]])","v":""},{"$f":"IF(OR(Table_PI[[#This Row],[Hide: Proposed kWh]]=\"\",Table_PI[[#This Row],[Hide: Proposed kWh]]=0,ISTEXT(Table_PI[[#This Row],[Hide: Proposed kWh]])),\"\",Table_PI[[#This Row],[Hide: Proposed kWh]])","v":""},{"$f":"IF(OR(Table_PI[[#This Row],[Hide: Proposed kW]]=\"\",Table_PI[[#This Row],[Hide: Proposed kW]]=0,ISTEXT(Table_PI[[#This Row],[Hide: Proposed kW]])),\"\",Table_PI[[#This Row],[Hide: Proposed kW]])","v":""},null,null,{"$f":"IF(OR(Table_PI[[#This Row],[Hide: Rebate]]=\"\",Table_PI[[#This Row],[Hide: Rebate]]=0,ISTEXT(Table_PI[[#This Row],[Hide: Rebate]])),\"\",Table_PI[[#This Row],[Hide: Rebate]])","v":""},null,{"$f":"IF(OR(Table_PI[[#This Row],[Hide: Incremental Cost]]=\"\",Table_PI[[#This Row],[Hide: Incremental Cost]]=0,ISTEXT(Table_PI[[#This Row],[Hide: Incremental Cost]])),\"\",Table_PI[[#This Row],[Hide: Incremental Cost]])","v":""},{"$f":"IFERROR(IF(Table_SummaryPI[[#This Row],[Incentive_Customer]]=\"\",\"\",ROUND(Table_SummaryPI[[#This Row],[Incentive_Customer]]/$AM$401*'Customer Information'!$BC$21,2)),0)","v":""},{"$f":"IF(OR(Table_PI[[#This Row],[Annual kWh]]=\"\",Table_PI[[#This Row],[Annual kWh]]=0,ISTEXT(Table_PI[[#This Row],[Annual kWh]])),\"\",Table_PI[[#This Row],[Annual kWh]])","v":""},{"$f":"IF(OR(Table_PI[[#This Row],[Peak kW]]=\"\",Table_PI[[#This Row],[Peak kW]]=0,ISTEXT(Table_PI[[#This Row],[Peak kW]])),\"\",Table_PI[[#This Row],[Peak kW]])","v":""},{"$f":"IF(Table_SummaryPI[[#This Row],[Line No.]]<>\"\",IF(AND(ISNUMBER(FIND(\"Chiller\",Table_SummaryPI[[#This Row],[P_MeasureOption1]],1)),Table_SummaryPI[[#This Row],[ProposedMeasureCategory]]=\"Air-Cooled (Water-Cooled Replacement)\"),$BD$29*Table_SummaryPI[[#This Row],[Size]]*Table_SummaryPI[[#This Row],[Quantity]]*Table_SummaryPI[[#This Row],[EFLHCooling]],\nIF(ISNUMBER(FIND(\"Dishwasher\",Table_SummaryPI[[#This Row],[ProposedMeasureCategory]],1)),$BH$29*Table_SummaryPI[[#This Row],[Quantity]],\nIF(ISNUMBER(FIND(\"Ice Maker\",Table_SummaryPI[[#This Row],[ProposedMeasureCategory]],1)),$BD$31*Table_SummaryPI[[#This Row],[Quantity]],\nIF(ISNUMBER(FIND(\"Spray Valve\",Table_SummaryPI[[#This Row],[ProposedMeasureCategory]],1)),$BH$31*Table_SummaryPI[[#This Row],[Quantity]],\n0)))),\"\")","v":""},{"$f":"IF(OR(Table_PI[[#This Row],[Hide: Electrification kWh]]=\"\",Table_PI[[#This Row],[Hide: Electrification kWh]]=0,ISTEXT(Table_PI[[#This Row],[Hide: Electrification kWh]])),\"\",Table_PI[[#This Row],[Hide: Electrification kWh]])","v":""},{"$f":"IF(OR(Table_PI[[#This Row],[Hide: Electrification GHG]]=\"\",Table_PI[[#This Row],[Hide: Electrification GHG]]=0,ISTEXT(Table_PI[[#This Row],[Hide: Electrification GHG]])),\"\",Table_PI[[#This Row],[Hide: Electrification GHG]])","v":""},{"$f":"IFERROR(IF(Table_SummaryPI[[#This Row],[kWhSavings]]=\"\",\"\",$BH$9*Table_SummaryPI[[#This Row],[kWhSavings]]),0)","v":""},{"$f":"IFERROR(IF(Table_SummaryPI[[#This Row],[kWhSavings]]=\"\",\"\",$BH$14*Table_SummaryPI[[#This Row],[kWhSavings]]),0)","v":""},{"$f":"IFERROR(IF(Table_SummaryPI[[#This Row],[kWhSavings]]=\"\",\"\",$BH$18*Table_SummaryPI[[#This Row],[kWhSavings]]),0)","v":""},{"$f":"IFERROR(IF(Table_SummaryPI[[#This Row],[kWhSavings]]=\"\",\"\",$BH$22*Table_SummaryPI[[#This Row],[kWhSavings]]),0)","v":""}]
[{"$f":"Table_PI[[#This Row],[Line No.]]","v":""},{"$f":"IF(Table_SummaryPI[[#This Row],[MeasureName]]<>\"\",NOT(ISTEXT(Table_PI[[#This Row],[Rebate]])),\"\")","v":""},{"$f":"IF(Table_SummaryPI[[#This Row],[MeassureCategory]]<>\"\",CONCATENATE(Table_SummaryPI[[#This Row],[MeassureCategory]],  \" - \", Table_SummaryPI[[#This Row],[ProposedMeasureCategory]],  \" - \", TEXT(Table_SummaryPI[[#This Row],[Size]],\"#,##0.00\"),\" \",Table_SummaryPI[[#This Row],[SizeUnit]]),\"\")","v":""},{"$f":"SUBSTITUTE(Table_PI[[#This Row],[Measure]],\"     \",\"\",1)","v":""},{"$f":"IF(Table_PI[[#This Row],[List 1]]<>\"\",Table_PI[[#This Row],[List 1]],\"\")","v":""},{"$f":"IF(Table_PI[[#This Row],[List 2]]<>\"\",Table_PI[[#This Row],[List 2]],\"\")","v":""},{"$f":"IF(Table_PI[[#This Row],[List 3]]<>\"\",Table_PI[[#This Row],[List 3]],\"\")","v":""},{"$f":"IF(Table_PI[[#This Row],[Manufacturer]]=\"\",\"\",Table_PI[[#This Row],[Manufacturer]])","v":""},{"$f":"IF(Table_PI[[#This Row],[Model Number]]=\"\",\"\",Table_PI[[#This Row],[Model Number]])","v":""},{"$f":"IF(Table_PI[[#This Row],[Serial Number(s)]]=\"\",\"\",Table_PI[[#This Row],[Serial Number(s)]])","v":""},null,{"$f":"IF(Table_PI[[#This Row],[Size]]=\"\",\"\",Table_PI[[#This Row],[Size]])","v":""},null,null,{"$f":"IF(Table_PI[[#This Row],[Input 1]]<>\"\",Table_PI[[#This Row],[Input 1]],\"\")","v":""},null,null,{"$f":"IF(Table_PI[[#This Row],[Input 2]]<>\"\",Table_PI[[#This Row],[Input 2]],\"\")","v":""},null,null,{"$f":"IF(Table_PI[[#This Row],[Input 3]]<>\"\",Table_PI[[#This Row],[Input 3]],\"\")","v":""},null,null,{"$f":"IF(Table_PI[[#This Row],[Input 4]]<>\"\",Table_PI[[#This Row],[Input 4]],\"\")","v":""},null,null,{"$f":"IF(Table_PI[[#This Row],[Input 4]]<>\"\",Table_PI[[#This Row],[Input 4]],\"\")","v":""},null,null,{"$f":"IF(Table_PI[[#This Row],[Input 4]]<>\"\",Table_PI[[#This Row],[Input 4]],\"\")","v":""},{"$f":"IF(Table_PI[[#This Row],[Quantity]]=\"\",\"\",Table_PI[[#This Row],[Quantity]])","v":""},{"$f":"IF(Table_PI[[#This Row],[Notes]]=\"\",\"\",Table_PI[[#This Row],[Notes]])","v":""},{"$f":"IF(OR(Table_PI[[#This Row],[Hide: Baseline kWh]]=\"\",Table_PI[[#This Row],[Hide: Baseline kWh]]=0,ISTEXT(Table_PI[[#This Row],[Hide: Baseline kWh]])),\"\",Table_PI[[#This Row],[Hide: Baseline kWh]])","v":""},{"$f":"IF(OR(Table_PI[[#This Row],[Hide: Baseline kW]]=\"\",Table_PI[[#This Row],[Hide: Baseline kW]]=0,ISTEXT(Table_PI[[#This Row],[Hide: Baseline kW]])),\"\",Table_PI[[#This Row],[Hide: Baseline kW]])","v":""},{"$f":"IF(OR(Table_PI[[#This Row],[Hide: Proposed kWh]]=\"\",Table_PI[[#This Row],[Hide: Proposed kWh]]=0,ISTEXT(Table_PI[[#This Row],[Hide: Proposed kWh]])),\"\",Table_PI[[#This Row],[Hide: Proposed kWh]])","v":""},{"$f":"IF(OR(Table_PI[[#This Row],[Hide: Proposed kW]]=\"\",Table_PI[[#This Row],[Hide: Proposed kW]]=0,ISTEXT(Table_PI[[#This Row],[Hide: Proposed kW]])),\"\",Table_PI[[#This Row],[Hide: Proposed kW]])","v":""},null,null,{"$f":"IF(OR(Table_PI[[#This Row],[Hide: Rebate]]=\"\",Table_PI[[#This Row],[Hide: Rebate]]=0,ISTEXT(Table_PI[[#This Row],[Hide: Rebate]])),\"\",Table_PI[[#This Row],[Hide: Rebate]])","v":""},null,{"$f":"IF(OR(Table_PI[[#This Row],[Hide: Incremental Cost]]=\"\",Table_PI[[#This Row],[Hide: Incremental Cost]]=0,ISTEXT(Table_PI[[#This Row],[Hide: Incremental Cost]])),\"\",Table_PI[[#This Row],[Hide: Incremental Cost]])","v":""},{"$f":"IFERROR(IF(Table_SummaryPI[[#This Row],[Incentive_Customer]]=\"\",\"\",ROUND(Table_SummaryPI[[#This Row],[Incentive_Customer]]/$AM$401*'Customer Information'!$BC$21,2)),0)","v":""},{"$f":"IF(OR(Table_PI[[#This Row],[Annual kWh]]=\"\",Table_PI[[#This Row],[Annual kWh]]=0,ISTEXT(Table_PI[[#This Row],[Annual kWh]])),\"\",Table_PI[[#This Row],[Annual kWh]])","v":""},{"$f":"IF(OR(Table_PI[[#This Row],[Peak kW]]=\"\",Table_PI[[#This Row],[Peak kW]]=0,ISTEXT(Table_PI[[#This Row],[Peak kW]])),\"\",Table_PI[[#This Row],[Peak kW]])","v":""},{"$f":"IF(Table_SummaryPI[[#This Row],[Line No.]]<>\"\",IF(AND(ISNUMBER(FIND(\"Chiller\",Table_SummaryPI[[#This Row],[P_MeasureOption1]],1)),Table_SummaryPI[[#This Row],[ProposedMeasureCategory]]=\"Air-Cooled (Water-Cooled Replacement)\"),$BD$29*Table_SummaryPI[[#This Row],[Size]]*Table_SummaryPI[[#This Row],[Quantity]]*Table_SummaryPI[[#This Row],[EFLHCooling]],\nIF(ISNUMBER(FIND(\"Dishwasher\",Table_SummaryPI[[#This Row],[ProposedMeasureCategory]],1)),$BH$29*Table_SummaryPI[[#This Row],[Quantity]],\nIF(ISNUMBER(FIND(\"Ice Maker\",Table_SummaryPI[[#This Row],[ProposedMeasureCategory]],1)),$BD$31*Table_SummaryPI[[#This Row],[Quantity]],\nIF(ISNUMBER(FIND(\"Spray Valve\",Table_SummaryPI[[#This Row],[ProposedMeasureCategory]],1)),$BH$31*Table_SummaryPI[[#This Row],[Quantity]],\n0)))),\"\")","v":""},{"$f":"IF(OR(Table_PI[[#This Row],[Hide: Electrification kWh]]=\"\",Table_PI[[#This Row],[Hide: Electrification kWh]]=0,ISTEXT(Table_PI[[#This Row],[Hide: Electrification kWh]])),\"\",Table_PI[[#This Row],[Hide: Electrification kWh]])","v":""},{"$f":"IF(OR(Table_PI[[#This Row],[Hide: Electrification GHG]]=\"\",Table_PI[[#This Row],[Hide: Electrification GHG]]=0,ISTEXT(Table_PI[[#This Row],[Hide: Electrification GHG]])),\"\",Table_PI[[#This Row],[Hide: Electrification GHG]])","v":""},{"$f":"IFERROR(IF(Table_SummaryPI[[#This Row],[kWhSavings]]=\"\",\"\",$BH$9*Table_SummaryPI[[#This Row],[kWhSavings]]),0)","v":""},{"$f":"IFERROR(IF(Table_SummaryPI[[#This Row],[kWhSavings]]=\"\",\"\",$BH$14*Table_SummaryPI[[#This Row],[kWhSavings]]),0)","v":""},{"$f":"IFERROR(IF(Table_SummaryPI[[#This Row],[kWhSavings]]=\"\",\"\",$BH$18*Table_SummaryPI[[#This Row],[kWhSavings]]),0)","v":""},{"$f":"IFERROR(IF(Table_SummaryPI[[#This Row],[kWhSavings]]=\"\",\"\",$BH$22*Table_SummaryPI[[#This Row],[kWhSavings]]),0)","v":""}]
[{"$f":"Table_PI[[#This Row],[Line No.]]","v":""},{"$f":"IF(Table_SummaryPI[[#This Row],[MeasureName]]<>\"\",NOT(ISTEXT(Table_PI[[#This Row],[Rebate]])),\"\")","v":""},{"$f":"IF(Table_SummaryPI[[#This Row],[MeassureCategory]]<>\"\",CONCATENATE(Table_SummaryPI[[#This Row],[MeassureCategory]],  \" - \", Table_SummaryPI[[#This Row],[ProposedMeasureCategory]],  \" - \", TEXT(Table_SummaryPI[[#This Row],[Size]],\"#,##0.00\"),\" \",Table_SummaryPI[[#This Row],[SizeUnit]]),\"\")","v":""},{"$f":"SUBSTITUTE(Table_PI[[#This Row],[Measure]],\"     \",\"\",1)","v":""},{"$f":"IF(Table_PI[[#This Row],[List 1]]<>\"\",Table_PI[[#This Row],[List 1]],\"\")","v":""},{"$f":"IF(Table_PI[[#This Row],[List 2]]<>\"\",Table_PI[[#This Row],[List 2]],\"\")","v":""},{"$f":"IF(Table_PI[[#This Row],[List 3]]<>\"\",Table_PI[[#This Row],[List 3]],\"\")","v":""},{"$f":"IF(Table_PI[[#This Row],[Manufacturer]]=\"\",\"\",Table_PI[[#This Row],[Manufacturer]])","v":""},{"$f":"IF(Table_PI[[#This Row],[Model Number]]=\"\",\"\",Table_PI[[#This Row],[Model Number]])","v":""},{"$f":"IF(Table_PI[[#This Row],[Serial Number(s)]]=\"\",\"\",Table_PI[[#This Row],[Serial Number(s)]])","v":""},null,{"$f":"IF(Table_PI[[#This Row],[Size]]=\"\",\"\",Table_PI[[#This Row],[Size]])","v":""},null,null,{"$f":"IF(Table_PI[[#This Row],[Input 1]]<>\"\",Table_PI[[#This Row],[Input 1]],\"\")","v":""},null,null,{"$f":"IF(Table_PI[[#This Row],[Input 2]]<>\"\",Table_PI[[#This Row],[Input 2]],\"\")","v":""},null,null,{"$f":"IF(Table_PI[[#This Row],[Input 3]]<>\"\",Table_PI[[#This Row],[Input 3]],\"\")","v":""},null,null,{"$f":"IF(Table_PI[[#This Row],[Input 4]]<>\"\",Table_PI[[#This Row],[Input 4]],\"\")","v":""},null,null,{"$f":"IF(Table_PI[[#This Row],[Input 4]]<>\"\",Table_PI[[#This Row],[Input 4]],\"\")","v":""},null,null,{"$f":"IF(Table_PI[[#This Row],[Input 4]]<>\"\",Table_PI[[#This Row],[Input 4]],\"\")","v":""},{"$f":"IF(Table_PI[[#This Row],[Quantity]]=\"\",\"\",Table_PI[[#This Row],[Quantity]])","v":""},{"$f":"IF(Table_PI[[#This Row],[Notes]]=\"\",\"\",Table_PI[[#This Row],[Notes]])","v":""},{"$f":"IF(OR(Table_PI[[#This Row],[Hide: Baseline kWh]]=\"\",Table_PI[[#This Row],[Hide: Baseline kWh]]=0,ISTEXT(Table_PI[[#This Row],[Hide: Baseline kWh]])),\"\",Table_PI[[#This Row],[Hide: Baseline kWh]])","v":""},{"$f":"IF(OR(Table_PI[[#This Row],[Hide: Baseline kW]]=\"\",Table_PI[[#This Row],[Hide: Baseline kW]]=0,ISTEXT(Table_PI[[#This Row],[Hide: Baseline kW]])),\"\",Table_PI[[#This Row],[Hide: Baseline kW]])","v":""},{"$f":"IF(OR(Table_PI[[#This Row],[Hide: Proposed kWh]]=\"\",Table_PI[[#This Row],[Hide: Proposed kWh]]=0,ISTEXT(Table_PI[[#This Row],[Hide: Proposed kWh]])),\"\",Table_PI[[#This Row],[Hide: Proposed kWh]])","v":""},{"$f":"IF(OR(Table_PI[[#This Row],[Hide: Proposed kW]]=\"\",Table_PI[[#This Row],[Hide: Proposed kW]]=0,ISTEXT(Table_PI[[#This Row],[Hide: Proposed kW]])),\"\",Table_PI[[#This Row],[Hide: Proposed kW]])","v":""},null,null,{"$f":"IF(OR(Table_PI[[#This Row],[Hide: Rebate]]=\"\",Table_PI[[#This Row],[Hide: Rebate]]=0,ISTEXT(Table_PI[[#This Row],[Hide: Rebate]])),\"\",Table_PI[[#This Row],[Hide: Rebate]])","v":""},null,{"$f":"IF(OR(Table_PI[[#This Row],[Hide: Incremental Cost]]=\"\",Table_PI[[#This Row],[Hide: Incremental Cost]]=0,ISTEXT(Table_PI[[#This Row],[Hide: Incremental Cost]])),\"\",Table_PI[[#This Row],[Hide: Incremental Cost]])","v":""},{"$f":"IFERROR(IF(Table_SummaryPI[[#This Row],[Incentive_Customer]]=\"\",\"\",ROUND(Table_SummaryPI[[#This Row],[Incentive_Customer]]/$AM$401*'Customer Information'!$BC$21,2)),0)","v":""},{"$f":"IF(OR(Table_PI[[#This Row],[Annual kWh]]=\"\",Table_PI[[#This Row],[Annual kWh]]=0,ISTEXT(Table_PI[[#This Row],[Annual kWh]])),\"\",Table_PI[[#This Row],[Annual kWh]])","v":""},{"$f":"IF(OR(Table_PI[[#This Row],[Peak kW]]=\"\",Table_PI[[#This Row],[Peak kW]]=0,ISTEXT(Table_PI[[#This Row],[Peak kW]])),\"\",Table_PI[[#This Row],[Peak kW]])","v":""},{"$f":"IF(Table_SummaryPI[[#This Row],[Line No.]]<>\"\",IF(AND(ISNUMBER(FIND(\"Chiller\",Table_SummaryPI[[#This Row],[P_MeasureOption1]],1)),Table_SummaryPI[[#This Row],[ProposedMeasureCategory]]=\"Air-Cooled (Water-Cooled Replacement)\"),$BD$29*Table_SummaryPI[[#This Row],[Size]]*Table_SummaryPI[[#This Row],[Quantity]]*Table_SummaryPI[[#This Row],[EFLHCooling]],\nIF(ISNUMBER(FIND(\"Dishwasher\",Table_SummaryPI[[#This Row],[ProposedMeasureCategory]],1)),$BH$29*Table_SummaryPI[[#This Row],[Quantity]],\nIF(ISNUMBER(FIND(\"Ice Maker\",Table_SummaryPI[[#This Row],[ProposedMeasureCategory]],1)),$BD$31*Table_SummaryPI[[#This Row],[Quantity]],\nIF(ISNUMBER(FIND(\"Spray Valve\",Table_SummaryPI[[#This Row],[ProposedMeasureCategory]],1)),$BH$31*Table_SummaryPI[[#This Row],[Quantity]],\n0)))),\"\")","v":""},{"$f":"IF(OR(Table_PI[[#This Row],[Hide: Electrification kWh]]=\"\",Table_PI[[#This Row],[Hide: Electrification kWh]]=0,ISTEXT(Table_PI[[#This Row],[Hide: Electrification kWh]])),\"\",Table_PI[[#This Row],[Hide: Electrification kWh]])","v":""},{"$f":"IF(OR(Table_PI[[#This Row],[Hide: Electrification GHG]]=\"\",Table_PI[[#This Row],[Hide: Electrification GHG]]=0,ISTEXT(Table_PI[[#This Row],[Hide: Electrification GHG]])),\"\",Table_PI[[#This Row],[Hide: Electrification GHG]])","v":""},{"$f":"IFERROR(IF(Table_SummaryPI[[#This Row],[kWhSavings]]=\"\",\"\",$BH$9*Table_SummaryPI[[#This Row],[kWhSavings]]),0)","v":""},{"$f":"IFERROR(IF(Table_SummaryPI[[#This Row],[kWhSavings]]=\"\",\"\",$BH$14*Table_SummaryPI[[#This Row],[kWhSavings]]),0)","v":""},{"$f":"IFERROR(IF(Table_SummaryPI[[#This Row],[kWhSavings]]=\"\",\"\",$BH$18*Table_SummaryPI[[#This Row],[kWhSavings]]),0)","v":""},{"$f":"IFERROR(IF(Table_SummaryPI[[#This Row],[kWhSavings]]=\"\",\"\",$BH$22*Table_SummaryPI[[#This Row],[kWhSavings]]),0)","v":""}]
[{"$f":"Table_PI[[#This Row],[Line No.]]","v":""},{"$f":"IF(Table_SummaryPI[[#This Row],[MeasureName]]<>\"\",NOT(ISTEXT(Table_PI[[#This Row],[Rebate]])),\"\")","v":""},{"$f":"IF(Table_SummaryPI[[#This Row],[MeassureCategory]]<>\"\",CONCATENATE(Table_SummaryPI[[#This Row],[MeassureCategory]],  \" - \", Table_SummaryPI[[#This Row],[ProposedMeasureCategory]],  \" - \", TEXT(Table_SummaryPI[[#This Row],[Size]],\"#,##0.00\"),\" \",Table_SummaryPI[[#This Row],[SizeUnit]]),\"\")","v":""},{"$f":"SUBSTITUTE(Table_PI[[#This Row],[Measure]],\"     \",\"\",1)","v":""},{"$f":"IF(Table_PI[[#This Row],[List 1]]<>\"\",Table_PI[[#This Row],[List 1]],\"\")","v":""},{"$f":"IF(Table_PI[[#This Row],[List 2]]<>\"\",Table_PI[[#This Row],[List 2]],\"\")","v":""},{"$f":"IF(Table_PI[[#This Row],[List 3]]<>\"\",Table_PI[[#This Row],[List 3]],\"\")","v":""},{"$f":"IF(Table_PI[[#This Row],[Manufacturer]]=\"\",\"\",Table_PI[[#This Row],[Manufacturer]])","v":""},{"$f":"IF(Table_PI[[#This Row],[Model Number]]=\"\",\"\",Table_PI[[#This Row],[Model Number]])","v":""},{"$f":"IF(Table_PI[[#This Row],[Serial Number(s)]]=\"\",\"\",Table_PI[[#This Row],[Serial Number(s)]])","v":""},null,{"$f":"IF(Table_PI[[#This Row],[Size]]=\"\",\"\",Table_PI[[#This Row],[Size]])","v":""},null,null,{"$f":"IF(Table_PI[[#This Row],[Input 1]]<>\"\",Table_PI[[#This Row],[Input 1]],\"\")","v":""},null,null,{"$f":"IF(Table_PI[[#This Row],[Input 2]]<>\"\",Table_PI[[#This Row],[Input 2]],\"\")","v":""},null,null,{"$f":"IF(Table_PI[[#This Row],[Input 3]]<>\"\",Table_PI[[#This Row],[Input 3]],\"\")","v":""},null,null,{"$f":"IF(Table_PI[[#This Row],[Input 4]]<>\"\",Table_PI[[#This Row],[Input 4]],\"\")","v":""},null,null,{"$f":"IF(Table_PI[[#This Row],[Input 4]]<>\"\",Table_PI[[#This Row],[Input 4]],\"\")","v":""},null,null,{"$f":"IF(Table_PI[[#This Row],[Input 4]]<>\"\",Table_PI[[#This Row],[Input 4]],\"\")","v":""},{"$f":"IF(Table_PI[[#This Row],[Quantity]]=\"\",\"\",Table_PI[[#This Row],[Quantity]])","v":""},{"$f":"IF(Table_PI[[#This Row],[Notes]]=\"\",\"\",Table_PI[[#This Row],[Notes]])","v":""},{"$f":"IF(OR(Table_PI[[#This Row],[Hide: Baseline kWh]]=\"\",Table_PI[[#This Row],[Hide: Baseline kWh]]=0,ISTEXT(Table_PI[[#This Row],[Hide: Baseline kWh]])),\"\",Table_PI[[#This Row],[Hide: Baseline kWh]])","v":""},{"$f":"IF(OR(Table_PI[[#This Row],[Hide: Baseline kW]]=\"\",Table_PI[[#This Row],[Hide: Baseline kW]]=0,ISTEXT(Table_PI[[#This Row],[Hide: Baseline kW]])),\"\",Table_PI[[#This Row],[Hide: Baseline kW]])","v":""},{"$f":"IF(OR(Table_PI[[#This Row],[Hide: Proposed kWh]]=\"\",Table_PI[[#This Row],[Hide: Proposed kWh]]=0,ISTEXT(Table_PI[[#This Row],[Hide: Proposed kWh]])),\"\",Table_PI[[#This Row],[Hide: Proposed kWh]])","v":""},{"$f":"IF(OR(Table_PI[[#This Row],[Hide: Proposed kW]]=\"\",Table_PI[[#This Row],[Hide: Proposed kW]]=0,ISTEXT(Table_PI[[#This Row],[Hide: Proposed kW]])),\"\",Table_PI[[#This Row],[Hide: Proposed kW]])","v":""},null,null,{"$f":"IF(OR(Table_PI[[#This Row],[Hide: Rebate]]=\"\",Table_PI[[#This Row],[Hide: Rebate]]=0,ISTEXT(Table_PI[[#This Row],[Hide: Rebate]])),\"\",Table_PI[[#This Row],[Hide: Rebate]])","v":""},null,{"$f":"IF(OR(Table_PI[[#This Row],[Hide: Incremental Cost]]=\"\",Table_PI[[#This Row],[Hide: Incremental Cost]]=0,ISTEXT(Table_PI[[#This Row],[Hide: Incremental Cost]])),\"\",Table_PI[[#This Row],[Hide: Incremental Cost]])","v":""},{"$f":"IFERROR(IF(Table_SummaryPI[[#This Row],[Incentive_Customer]]=\"\",\"\",ROUND(Table_SummaryPI[[#This Row],[Incentive_Customer]]/$AM$401*'Customer Information'!$BC$21,2)),0)","v":""},{"$f":"IF(OR(Table_PI[[#This Row],[Annual kWh]]=\"\",Table_PI[[#This Row],[Annual kWh]]=0,ISTEXT(Table_PI[[#This Row],[Annual kWh]])),\"\",Table_PI[[#This Row],[Annual kWh]])","v":""},{"$f":"IF(OR(Table_PI[[#This Row],[Peak kW]]=\"\",Table_PI[[#This Row],[Peak kW]]=0,ISTEXT(Table_PI[[#This Row],[Peak kW]])),\"\",Table_PI[[#This Row],[Peak kW]])","v":""},{"$f":"IF(Table_SummaryPI[[#This Row],[Line No.]]<>\"\",IF(AND(ISNUMBER(FIND(\"Chiller\",Table_SummaryPI[[#This Row],[P_MeasureOption1]],1)),Table_SummaryPI[[#This Row],[ProposedMeasureCategory]]=\"Air-Cooled (Water-Cooled Replacement)\"),$BD$29*Table_SummaryPI[[#This Row],[Size]]*Table_SummaryPI[[#This Row],[Quantity]]*Table_SummaryPI[[#This Row],[EFLHCooling]],\nIF(ISNUMBER(FIND(\"Dishwasher\",Table_SummaryPI[[#This Row],[ProposedMeasureCategory]],1)),$BH$29*Table_SummaryPI[[#This Row],[Quantity]],\nIF(ISNUMBER(FIND(\"Ice Maker\",Table_SummaryPI[[#This Row],[ProposedMeasureCategory]],1)),$BD$31*Table_SummaryPI[[#This Row],[Quantity]],\nIF(ISNUMBER(FIND(\"Spray Valve\",Table_SummaryPI[[#This Row],[ProposedMeasureCategory]],1)),$BH$31*Table_SummaryPI[[#This Row],[Quantity]],\n0)))),\"\")","v":""},{"$f":"IF(OR(Table_PI[[#This Row],[Hide: Electrification kWh]]=\"\",Table_PI[[#This Row],[Hide: Electrification kWh]]=0,ISTEXT(Table_PI[[#This Row],[Hide: Electrification kWh]])),\"\",Table_PI[[#This Row],[Hide: Electrification kWh]])","v":""},{"$f":"IF(OR(Table_PI[[#This Row],[Hide: Electrification GHG]]=\"\",Table_PI[[#This Row],[Hide: Electrification GHG]]=0,ISTEXT(Table_PI[[#This Row],[Hide: Electrification GHG]])),\"\",Table_PI[[#This Row],[Hide: Electrification GHG]])","v":""},{"$f":"IFERROR(IF(Table_SummaryPI[[#This Row],[kWhSavings]]=\"\",\"\",$BH$9*Table_SummaryPI[[#This Row],[kWhSavings]]),0)","v":""},{"$f":"IFERROR(IF(Table_SummaryPI[[#This Row],[kWhSavings]]=\"\",\"\",$BH$14*Table_SummaryPI[[#This Row],[kWhSavings]]),0)","v":""},{"$f":"IFERROR(IF(Table_SummaryPI[[#This Row],[kWhSavings]]=\"\",\"\",$BH$18*Table_SummaryPI[[#This Row],[kWhSavings]]),0)","v":""},{"$f":"IFERROR(IF(Table_SummaryPI[[#This Row],[kWhSavings]]=\"\",\"\",$BH$22*Table_SummaryPI[[#This Row],[kWhSavings]]),0)","v":""}]
[{"$f":"Table_PI[[#This Row],[Line No.]]","v":""},{"$f":"IF(Table_SummaryPI[[#This Row],[MeasureName]]<>\"\",NOT(ISTEXT(Table_PI[[#This Row],[Rebate]])),\"\")","v":""},{"$f":"IF(Table_SummaryPI[[#This Row],[MeassureCategory]]<>\"\",CONCATENATE(Table_SummaryPI[[#This Row],[MeassureCategory]],  \" - \", Table_SummaryPI[[#This Row],[ProposedMeasureCategory]],  \" - \", TEXT(Table_SummaryPI[[#This Row],[Size]],\"#,##0.00\"),\" \",Table_SummaryPI[[#This Row],[SizeUnit]]),\"\")","v":""},{"$f":"SUBSTITUTE(Table_PI[[#This Row],[Measure]],\"     \",\"\",1)","v":""},{"$f":"IF(Table_PI[[#This Row],[List 1]]<>\"\",Table_PI[[#This Row],[List 1]],\"\")","v":""},{"$f":"IF(Table_PI[[#This Row],[List 2]]<>\"\",Table_PI[[#This Row],[List 2]],\"\")","v":""},{"$f":"IF(Table_PI[[#This Row],[List 3]]<>\"\",Table_PI[[#This Row],[List 3]],\"\")","v":""},{"$f":"IF(Table_PI[[#This Row],[Manufacturer]]=\"\",\"\",Table_PI[[#This Row],[Manufacturer]])","v":""},{"$f":"IF(Table_PI[[#This Row],[Model Number]]=\"\",\"\",Table_PI[[#This Row],[Model Number]])","v":""},{"$f":"IF(Table_PI[[#This Row],[Serial Number(s)]]=\"\",\"\",Table_PI[[#This Row],[Serial Number(s)]])","v":""},null,{"$f":"IF(Table_PI[[#This Row],[Size]]=\"\",\"\",Table_PI[[#This Row],[Size]])","v":""},null,null,{"$f":"IF(Table_PI[[#This Row],[Input 1]]<>\"\",Table_PI[[#This Row],[Input 1]],\"\")","v":""},null,null,{"$f":"IF(Table_PI[[#This Row],[Input 2]]<>\"\",Table_PI[[#This Row],[Input 2]],\"\")","v":""},null,null,{"$f":"IF(Table_PI[[#This Row],[Input 3]]<>\"\",Table_PI[[#This Row],[Input 3]],\"\")","v":""},null,null,{"$f":"IF(Table_PI[[#This Row],[Input 4]]<>\"\",Table_PI[[#This Row],[Input 4]],\"\")","v":""},null,null,{"$f":"IF(Table_PI[[#This Row],[Input 4]]<>\"\",Table_PI[[#This Row],[Input 4]],\"\")","v":""},null,null,{"$f":"IF(Table_PI[[#This Row],[Input 4]]<>\"\",Table_PI[[#This Row],[Input 4]],\"\")","v":""},{"$f":"IF(Table_PI[[#This Row],[Quantity]]=\"\",\"\",Table_PI[[#This Row],[Quantity]])","v":""},{"$f":"IF(Table_PI[[#This Row],[Notes]]=\"\",\"\",Table_PI[[#This Row],[Notes]])","v":""},{"$f":"IF(OR(Table_PI[[#This Row],[Hide: Baseline kWh]]=\"\",Table_PI[[#This Row],[Hide: Baseline kWh]]=0,ISTEXT(Table_PI[[#This Row],[Hide: Baseline kWh]])),\"\",Table_PI[[#This Row],[Hide: Baseline kWh]])","v":""},{"$f":"IF(OR(Table_PI[[#This Row],[Hide: Baseline kW]]=\"\",Table_PI[[#This Row],[Hide: Baseline kW]]=0,ISTEXT(Table_PI[[#This Row],[Hide: Baseline kW]])),\"\",Table_PI[[#This Row],[Hide: Baseline kW]])","v":""},{"$f":"IF(OR(Table_PI[[#This Row],[Hide: Proposed kWh]]=\"\",Table_PI[[#This Row],[Hide: Proposed kWh]]=0,ISTEXT(Table_PI[[#This Row],[Hide: Proposed kWh]])),\"\",Table_PI[[#This Row],[Hide: Proposed kWh]])","v":""},{"$f":"IF(OR(Table_PI[[#This Row],[Hide: Proposed kW]]=\"\",Table_PI[[#This Row],[Hide: Proposed kW]]=0,ISTEXT(Table_PI[[#This Row],[Hide: Proposed kW]])),\"\",Table_PI[[#This Row],[Hide: Proposed kW]])","v":""},null,null,{"$f":"IF(OR(Table_PI[[#This Row],[Hide: Rebate]]=\"\",Table_PI[[#This Row],[Hide: Rebate]]=0,ISTEXT(Table_PI[[#This Row],[Hide: Rebate]])),\"\",Table_PI[[#This Row],[Hide: Rebate]])","v":""},null,{"$f":"IF(OR(Table_PI[[#This Row],[Hide: Incremental Cost]]=\"\",Table_PI[[#This Row],[Hide: Incremental Cost]]=0,ISTEXT(Table_PI[[#This Row],[Hide: Incremental Cost]])),\"\",Table_PI[[#This Row],[Hide: Incremental Cost]])","v":""},{"$f":"IFERROR(IF(Table_SummaryPI[[#This Row],[Incentive_Customer]]=\"\",\"\",ROUND(Table_SummaryPI[[#This Row],[Incentive_Customer]]/$AM$401*'Customer Information'!$BC$21,2)),0)","v":""},{"$f":"IF(OR(Table_PI[[#This Row],[Annual kWh]]=\"\",Table_PI[[#This Row],[Annual kWh]]=0,ISTEXT(Table_PI[[#This Row],[Annual kWh]])),\"\",Table_PI[[#This Row],[Annual kWh]])","v":""},{"$f":"IF(OR(Table_PI[[#This Row],[Peak kW]]=\"\",Table_PI[[#This Row],[Peak kW]]=0,ISTEXT(Table_PI[[#This Row],[Peak kW]])),\"\",Table_PI[[#This Row],[Peak kW]])","v":""},{"$f":"IF(Table_SummaryPI[[#This Row],[Line No.]]<>\"\",IF(AND(ISNUMBER(FIND(\"Chiller\",Table_SummaryPI[[#This Row],[P_MeasureOption1]],1)),Table_SummaryPI[[#This Row],[ProposedMeasureCategory]]=\"Air-Cooled (Water-Cooled Replacement)\"),$BD$29*Table_SummaryPI[[#This Row],[Size]]*Table_SummaryPI[[#This Row],[Quantity]]*Table_SummaryPI[[#This Row],[EFLHCooling]],\nIF(ISNUMBER(FIND(\"Dishwasher\",Table_SummaryPI[[#This Row],[ProposedMeasureCategory]],1)),$BH$29*Table_SummaryPI[[#This Row],[Quantity]],\nIF(ISNUMBER(FIND(\"Ice Maker\",Table_SummaryPI[[#This Row],[ProposedMeasureCategory]],1)),$BD$31*Table_SummaryPI[[#This Row],[Quantity]],\nIF(ISNUMBER(FIND(\"Spray Valve\",Table_SummaryPI[[#This Row],[ProposedMeasureCategory]],1)),$BH$31*Table_SummaryPI[[#This Row],[Quantity]],\n0)))),\"\")","v":""},{"$f":"IF(OR(Table_PI[[#This Row],[Hide: Electrification kWh]]=\"\",Table_PI[[#This Row],[Hide: Electrification kWh]]=0,ISTEXT(Table_PI[[#This Row],[Hide: Electrification kWh]])),\"\",Table_PI[[#This Row],[Hide: Electrification kWh]])","v":""},{"$f":"IF(OR(Table_PI[[#This Row],[Hide: Electrification GHG]]=\"\",Table_PI[[#This Row],[Hide: Electrification GHG]]=0,ISTEXT(Table_PI[[#This Row],[Hide: Electrification GHG]])),\"\",Table_PI[[#This Row],[Hide: Electrification GHG]])","v":""},{"$f":"IFERROR(IF(Table_SummaryPI[[#This Row],[kWhSavings]]=\"\",\"\",$BH$9*Table_SummaryPI[[#This Row],[kWhSavings]]),0)","v":""},{"$f":"IFERROR(IF(Table_SummaryPI[[#This Row],[kWhSavings]]=\"\",\"\",$BH$14*Table_SummaryPI[[#This Row],[kWhSavings]]),0)","v":""},{"$f":"IFERROR(IF(Table_SummaryPI[[#This Row],[kWhSavings]]=\"\",\"\",$BH$18*Table_SummaryPI[[#This Row],[kWhSavings]]),0)","v":""},{"$f":"IFERROR(IF(Table_SummaryPI[[#This Row],[kWhSavings]]=\"\",\"\",$BH$22*Table_SummaryPI[[#This Row],[kWhSavings]]),0)","v":""}]
[{"$f":"Table_PI[[#This Row],[Line No.]]","v":""},{"$f":"IF(Table_SummaryPI[[#This Row],[MeasureName]]<>\"\",NOT(ISTEXT(Table_PI[[#This Row],[Rebate]])),\"\")","v":""},{"$f":"IF(Table_SummaryPI[[#This Row],[MeassureCategory]]<>\"\",CONCATENATE(Table_SummaryPI[[#This Row],[MeassureCategory]],  \" - \", Table_SummaryPI[[#This Row],[ProposedMeasureCategory]],  \" - \", TEXT(Table_SummaryPI[[#This Row],[Size]],\"#,##0.00\"),\" \",Table_SummaryPI[[#This Row],[SizeUnit]]),\"\")","v":""},{"$f":"SUBSTITUTE(Table_PI[[#This Row],[Measure]],\"     \",\"\",1)","v":""},{"$f":"IF(Table_PI[[#This Row],[List 1]]<>\"\",Table_PI[[#This Row],[List 1]],\"\")","v":""},{"$f":"IF(Table_PI[[#This Row],[List 2]]<>\"\",Table_PI[[#This Row],[List 2]],\"\")","v":""},{"$f":"IF(Table_PI[[#This Row],[List 3]]<>\"\",Table_PI[[#This Row],[List 3]],\"\")","v":""},{"$f":"IF(Table_PI[[#This Row],[Manufacturer]]=\"\",\"\",Table_PI[[#This Row],[Manufacturer]])","v":""},{"$f":"IF(Table_PI[[#This Row],[Model Number]]=\"\",\"\",Table_PI[[#This Row],[Model Number]])","v":""},{"$f":"IF(Table_PI[[#This Row],[Serial Number(s)]]=\"\",\"\",Table_PI[[#This Row],[Serial Number(s)]])","v":""},null,{"$f":"IF(Table_PI[[#This Row],[Size]]=\"\",\"\",Table_PI[[#This Row],[Size]])","v":""},null,null,{"$f":"IF(Table_PI[[#This Row],[Input 1]]<>\"\",Table_PI[[#This Row],[Input 1]],\"\")","v":""},null,null,{"$f":"IF(Table_PI[[#This Row],[Input 2]]<>\"\",Table_PI[[#This Row],[Input 2]],\"\")","v":""},null,null,{"$f":"IF(Table_PI[[#This Row],[Input 3]]<>\"\",Table_PI[[#This Row],[Input 3]],\"\")","v":""},null,null,{"$f":"IF(Table_PI[[#This Row],[Input 4]]<>\"\",Table_PI[[#This Row],[Input 4]],\"\")","v":""},null,null,{"$f":"IF(Table_PI[[#This Row],[Input 4]]<>\"\",Table_PI[[#This Row],[Input 4]],\"\")","v":""},null,null,{"$f":"IF(Table_PI[[#This Row],[Input 4]]<>\"\",Table_PI[[#This Row],[Input 4]],\"\")","v":""},{"$f":"IF(Table_PI[[#This Row],[Quantity]]=\"\",\"\",Table_PI[[#This Row],[Quantity]])","v":""},{"$f":"IF(Table_PI[[#This Row],[Notes]]=\"\",\"\",Table_PI[[#This Row],[Notes]])","v":""},{"$f":"IF(OR(Table_PI[[#This Row],[Hide: Baseline kWh]]=\"\",Table_PI[[#This Row],[Hide: Baseline kWh]]=0,ISTEXT(Table_PI[[#This Row],[Hide: Baseline kWh]])),\"\",Table_PI[[#This Row],[Hide: Baseline kWh]])","v":""},{"$f":"IF(OR(Table_PI[[#This Row],[Hide: Baseline kW]]=\"\",Table_PI[[#This Row],[Hide: Baseline kW]]=0,ISTEXT(Table_PI[[#This Row],[Hide: Baseline kW]])),\"\",Table_PI[[#This Row],[Hide: Baseline kW]])","v":""},{"$f":"IF(OR(Table_PI[[#This Row],[Hide: Proposed kWh]]=\"\",Table_PI[[#This Row],[Hide: Proposed kWh]]=0,ISTEXT(Table_PI[[#This Row],[Hide: Proposed kWh]])),\"\",Table_PI[[#This Row],[Hide: Proposed kWh]])","v":""},{"$f":"IF(OR(Table_PI[[#This Row],[Hide: Proposed kW]]=\"\",Table_PI[[#This Row],[Hide: Proposed kW]]=0,ISTEXT(Table_PI[[#This Row],[Hide: Proposed kW]])),\"\",Table_PI[[#This Row],[Hide: Proposed kW]])","v":""},null,null,{"$f":"IF(OR(Table_PI[[#This Row],[Hide: Rebate]]=\"\",Table_PI[[#This Row],[Hide: Rebate]]=0,ISTEXT(Table_PI[[#This Row],[Hide: Rebate]])),\"\",Table_PI[[#This Row],[Hide: Rebate]])","v":""},null,{"$f":"IF(OR(Table_PI[[#This Row],[Hide: Incremental Cost]]=\"\",Table_PI[[#This Row],[Hide: Incremental Cost]]=0,ISTEXT(Table_PI[[#This Row],[Hide: Incremental Cost]])),\"\",Table_PI[[#This Row],[Hide: Incremental Cost]])","v":""},{"$f":"IFERROR(IF(Table_SummaryPI[[#This Row],[Incentive_Customer]]=\"\",\"\",ROUND(Table_SummaryPI[[#This Row],[Incentive_Customer]]/$AM$401*'Customer Information'!$BC$21,2)),0)","v":""},{"$f":"IF(OR(Table_PI[[#This Row],[Annual kWh]]=\"\",Table_PI[[#This Row],[Annual kWh]]=0,ISTEXT(Table_PI[[#This Row],[Annual kWh]])),\"\",Table_PI[[#This Row],[Annual kWh]])","v":""},{"$f":"IF(OR(Table_PI[[#This Row],[Peak kW]]=\"\",Table_PI[[#This Row],[Peak kW]]=0,ISTEXT(Table_PI[[#This Row],[Peak kW]])),\"\",Table_PI[[#This Row],[Peak kW]])","v":""},{"$f":"IF(Table_SummaryPI[[#This Row],[Line No.]]<>\"\",IF(AND(ISNUMBER(FIND(\"Chiller\",Table_SummaryPI[[#This Row],[P_MeasureOption1]],1)),Table_SummaryPI[[#This Row],[ProposedMeasureCategory]]=\"Air-Cooled (Water-Cooled Replacement)\"),$BD$29*Table_SummaryPI[[#This Row],[Size]]*Table_SummaryPI[[#This Row],[Quantity]]*Table_SummaryPI[[#This Row],[EFLHCooling]],\nIF(ISNUMBER(FIND(\"Dishwasher\",Table_SummaryPI[[#This Row],[ProposedMeasureCategory]],1)),$BH$29*Table_SummaryPI[[#This Row],[Quantity]],\nIF(ISNUMBER(FIND(\"Ice Maker\",Table_SummaryPI[[#This Row],[ProposedMeasureCategory]],1)),$BD$31*Table_SummaryPI[[#This Row],[Quantity]],\nIF(ISNUMBER(FIND(\"Spray Valve\",Table_SummaryPI[[#This Row],[ProposedMeasureCategory]],1)),$BH$31*Table_SummaryPI[[#This Row],[Quantity]],\n0)))),\"\")","v":""},{"$f":"IF(OR(Table_PI[[#This Row],[Hide: Electrification kWh]]=\"\",Table_PI[[#This Row],[Hide: Electrification kWh]]=0,ISTEXT(Table_PI[[#This Row],[Hide: Electrification kWh]])),\"\",Table_PI[[#This Row],[Hide: Electrification kWh]])","v":""},{"$f":"IF(OR(Table_PI[[#This Row],[Hide: Electrification GHG]]=\"\",Table_PI[[#This Row],[Hide: Electrification GHG]]=0,ISTEXT(Table_PI[[#This Row],[Hide: Electrification GHG]])),\"\",Table_PI[[#This Row],[Hide: Electrification GHG]])","v":""},{"$f":"IFERROR(IF(Table_SummaryPI[[#This Row],[kWhSavings]]=\"\",\"\",$BH$9*Table_SummaryPI[[#This Row],[kWhSavings]]),0)","v":""},{"$f":"IFERROR(IF(Table_SummaryPI[[#This Row],[kWhSavings]]=\"\",\"\",$BH$14*Table_SummaryPI[[#This Row],[kWhSavings]]),0)","v":""},{"$f":"IFERROR(IF(Table_SummaryPI[[#This Row],[kWhSavings]]=\"\",\"\",$BH$18*Table_SummaryPI[[#This Row],[kWhSavings]]),0)","v":""},{"$f":"IFERROR(IF(Table_SummaryPI[[#This Row],[kWhSavings]]=\"\",\"\",$BH$22*Table_SummaryPI[[#This Row],[kWhSavings]]),0)","v":""}]
[{"$f":"Table_PI[[#This Row],[Line No.]]","v":""},{"$f":"IF(Table_SummaryPI[[#This Row],[MeasureName]]<>\"\",NOT(ISTEXT(Table_PI[[#This Row],[Rebate]])),\"\")","v":""},{"$f":"IF(Table_SummaryPI[[#This Row],[MeassureCategory]]<>\"\",CONCATENATE(Table_SummaryPI[[#This Row],[MeassureCategory]],  \" - \", Table_SummaryPI[[#This Row],[ProposedMeasureCategory]],  \" - \", TEXT(Table_SummaryPI[[#This Row],[Size]],\"#,##0.00\"),\" \",Table_SummaryPI[[#This Row],[SizeUnit]]),\"\")","v":""},{"$f":"SUBSTITUTE(Table_PI[[#This Row],[Measure]],\"     \",\"\",1)","v":""},{"$f":"IF(Table_PI[[#This Row],[List 1]]<>\"\",Table_PI[[#This Row],[List 1]],\"\")","v":""},{"$f":"IF(Table_PI[[#This Row],[List 2]]<>\"\",Table_PI[[#This Row],[List 2]],\"\")","v":""},{"$f":"IF(Table_PI[[#This Row],[List 3]]<>\"\",Table_PI[[#This Row],[List 3]],\"\")","v":""},{"$f":"IF(Table_PI[[#This Row],[Manufacturer]]=\"\",\"\",Table_PI[[#This Row],[Manufacturer]])","v":""},{"$f":"IF(Table_PI[[#This Row],[Model Number]]=\"\",\"\",Table_PI[[#This Row],[Model Number]])","v":""},{"$f":"IF(Table_PI[[#This Row],[Serial Number(s)]]=\"\",\"\",Table_PI[[#This Row],[Serial Number(s)]])","v":""},null,{"$f":"IF(Table_PI[[#This Row],[Size]]=\"\",\"\",Table_PI[[#This Row],[Size]])","v":""},null,null,{"$f":"IF(Table_PI[[#This Row],[Input 1]]<>\"\",Table_PI[[#This Row],[Input 1]],\"\")","v":""},null,null,{"$f":"IF(Table_PI[[#This Row],[Input 2]]<>\"\",Table_PI[[#This Row],[Input 2]],\"\")","v":""},null,null,{"$f":"IF(Table_PI[[#This Row],[Input 3]]<>\"\",Table_PI[[#This Row],[Input 3]],\"\")","v":""},null,null,{"$f":"IF(Table_PI[[#This Row],[Input 4]]<>\"\",Table_PI[[#This Row],[Input 4]],\"\")","v":""},null,null,{"$f":"IF(Table_PI[[#This Row],[Input 4]]<>\"\",Table_PI[[#This Row],[Input 4]],\"\")","v":""},null,null,{"$f":"IF(Table_PI[[#This Row],[Input 4]]<>\"\",Table_PI[[#This Row],[Input 4]],\"\")","v":""},{"$f":"IF(Table_PI[[#This Row],[Quantity]]=\"\",\"\",Table_PI[[#This Row],[Quantity]])","v":""},{"$f":"IF(Table_PI[[#This Row],[Notes]]=\"\",\"\",Table_PI[[#This Row],[Notes]])","v":""},{"$f":"IF(OR(Table_PI[[#This Row],[Hide: Baseline kWh]]=\"\",Table_PI[[#This Row],[Hide: Baseline kWh]]=0,ISTEXT(Table_PI[[#This Row],[Hide: Baseline kWh]])),\"\",Table_PI[[#This Row],[Hide: Baseline kWh]])","v":""},{"$f":"IF(OR(Table_PI[[#This Row],[Hide: Baseline kW]]=\"\",Table_PI[[#This Row],[Hide: Baseline kW]]=0,ISTEXT(Table_PI[[#This Row],[Hide: Baseline kW]])),\"\",Table_PI[[#This Row],[Hide: Baseline kW]])","v":""},{"$f":"IF(OR(Table_PI[[#This Row],[Hide: Proposed kWh]]=\"\",Table_PI[[#This Row],[Hide: Proposed kWh]]=0,ISTEXT(Table_PI[[#This Row],[Hide: Proposed kWh]])),\"\",Table_PI[[#This Row],[Hide: Proposed kWh]])","v":""},{"$f":"IF(OR(Table_PI[[#This Row],[Hide: Proposed kW]]=\"\",Table_PI[[#This Row],[Hide: Proposed kW]]=0,ISTEXT(Table_PI[[#This Row],[Hide: Proposed kW]])),\"\",Table_PI[[#This Row],[Hide: Proposed kW]])","v":""},null,null,{"$f":"IF(OR(Table_PI[[#This Row],[Hide: Rebate]]=\"\",Table_PI[[#This Row],[Hide: Rebate]]=0,ISTEXT(Table_PI[[#This Row],[Hide: Rebate]])),\"\",Table_PI[[#This Row],[Hide: Rebate]])","v":""},null,{"$f":"IF(OR(Table_PI[[#This Row],[Hide: Incremental Cost]]=\"\",Table_PI[[#This Row],[Hide: Incremental Cost]]=0,ISTEXT(Table_PI[[#This Row],[Hide: Incremental Cost]])),\"\",Table_PI[[#This Row],[Hide: Incremental Cost]])","v":""},{"$f":"IFERROR(IF(Table_SummaryPI[[#This Row],[Incentive_Customer]]=\"\",\"\",ROUND(Table_SummaryPI[[#This Row],[Incentive_Customer]]/$AM$401*'Customer Information'!$BC$21,2)),0)","v":""},{"$f":"IF(OR(Table_PI[[#This Row],[Annual kWh]]=\"\",Table_PI[[#This Row],[Annual kWh]]=0,ISTEXT(Table_PI[[#This Row],[Annual kWh]])),\"\",Table_PI[[#This Row],[Annual kWh]])","v":""},{"$f":"IF(OR(Table_PI[[#This Row],[Peak kW]]=\"\",Table_PI[[#This Row],[Peak kW]]=0,ISTEXT(Table_PI[[#This Row],[Peak kW]])),\"\",Table_PI[[#This Row],[Peak kW]])","v":""},{"$f":"IF(Table_SummaryPI[[#This Row],[Line No.]]<>\"\",IF(AND(ISNUMBER(FIND(\"Chiller\",Table_SummaryPI[[#This Row],[P_MeasureOption1]],1)),Table_SummaryPI[[#This Row],[ProposedMeasureCategory]]=\"Air-Cooled (Water-Cooled Replacement)\"),$BD$29*Table_SummaryPI[[#This Row],[Size]]*Table_SummaryPI[[#This Row],[Quantity]]*Table_SummaryPI[[#This Row],[EFLHCooling]],\nIF(ISNUMBER(FIND(\"Dishwasher\",Table_SummaryPI[[#This Row],[ProposedMeasureCategory]],1)),$BH$29*Table_SummaryPI[[#This Row],[Quantity]],\nIF(ISNUMBER(FIND(\"Ice Maker\",Table_SummaryPI[[#This Row],[ProposedMeasureCategory]],1)),$BD$31*Table_SummaryPI[[#This Row],[Quantity]],\nIF(ISNUMBER(FIND(\"Spray Valve\",Table_SummaryPI[[#This Row],[ProposedMeasureCategory]],1)),$BH$31*Table_SummaryPI[[#This Row],[Quantity]],\n0)))),\"\")","v":""},{"$f":"IF(OR(Table_PI[[#This Row],[Hide: Electrification kWh]]=\"\",Table_PI[[#This Row],[Hide: Electrification kWh]]=0,ISTEXT(Table_PI[[#This Row],[Hide: Electrification kWh]])),\"\",Table_PI[[#This Row],[Hide: Electrification kWh]])","v":""},{"$f":"IF(OR(Table_PI[[#This Row],[Hide: Electrification GHG]]=\"\",Table_PI[[#This Row],[Hide: Electrification GHG]]=0,ISTEXT(Table_PI[[#This Row],[Hide: Electrification GHG]])),\"\",Table_PI[[#This Row],[Hide: Electrification GHG]])","v":""},{"$f":"IFERROR(IF(Table_SummaryPI[[#This Row],[kWhSavings]]=\"\",\"\",$BH$9*Table_SummaryPI[[#This Row],[kWhSavings]]),0)","v":""},{"$f":"IFERROR(IF(Table_SummaryPI[[#This Row],[kWhSavings]]=\"\",\"\",$BH$14*Table_SummaryPI[[#This Row],[kWhSavings]]),0)","v":""},{"$f":"IFERROR(IF(Table_SummaryPI[[#This Row],[kWhSavings]]=\"\",\"\",$BH$18*Table_SummaryPI[[#This Row],[kWhSavings]]),0)","v":""},{"$f":"IFERROR(IF(Table_SummaryPI[[#This Row],[kWhSavings]]=\"\",\"\",$BH$22*Table_SummaryPI[[#This Row],[kWhSavings]]),0)","v":""}]
[{"$f":"Table_PI[[#This Row],[Line No.]]","v":""},{"$f":"IF(Table_SummaryPI[[#This Row],[MeasureName]]<>\"\",NOT(ISTEXT(Table_PI[[#This Row],[Rebate]])),\"\")","v":""},{"$f":"IF(Table_SummaryPI[[#This Row],[MeassureCategory]]<>\"\",CONCATENATE(Table_SummaryPI[[#This Row],[MeassureCategory]],  \" - \", Table_SummaryPI[[#This Row],[ProposedMeasureCategory]],  \" - \", TEXT(Table_SummaryPI[[#This Row],[Size]],\"#,##0.00\"),\" \",Table_SummaryPI[[#This Row],[SizeUnit]]),\"\")","v":""},{"$f":"SUBSTITUTE(Table_PI[[#This Row],[Measure]],\"     \",\"\",1)","v":""},{"$f":"IF(Table_PI[[#This Row],[List 1]]<>\"\",Table_PI[[#This Row],[List 1]],\"\")","v":""},{"$f":"IF(Table_PI[[#This Row],[List 2]]<>\"\",Table_PI[[#This Row],[List 2]],\"\")","v":""},{"$f":"IF(Table_PI[[#This Row],[List 3]]<>\"\",Table_PI[[#This Row],[List 3]],\"\")","v":""},{"$f":"IF(Table_PI[[#This Row],[Manufacturer]]=\"\",\"\",Table_PI[[#This Row],[Manufacturer]])","v":""},{"$f":"IF(Table_PI[[#This Row],[Model Number]]=\"\",\"\",Table_PI[[#This Row],[Model Number]])","v":""},{"$f":"IF(Table_PI[[#This Row],[Serial Number(s)]]=\"\",\"\",Table_PI[[#This Row],[Serial Number(s)]])","v":""},null,{"$f":"IF(Table_PI[[#This Row],[Size]]=\"\",\"\",Table_PI[[#This Row],[Size]])","v":""},null,null,{"$f":"IF(Table_PI[[#This Row],[Input 1]]<>\"\",Table_PI[[#This Row],[Input 1]],\"\")","v":""},null,null,{"$f":"IF(Table_PI[[#This Row],[Input 2]]<>\"\",Table_PI[[#This Row],[Input 2]],\"\")","v":""},null,null,{"$f":"IF(Table_PI[[#This Row],[Input 3]]<>\"\",Table_PI[[#This Row],[Input 3]],\"\")","v":""},null,null,{"$f":"IF(Table_PI[[#This Row],[Input 4]]<>\"\",Table_PI[[#This Row],[Input 4]],\"\")","v":""},null,null,{"$f":"IF(Table_PI[[#This Row],[Input 4]]<>\"\",Table_PI[[#This Row],[Input 4]],\"\")","v":""},null,null,{"$f":"IF(Table_PI[[#This Row],[Input 4]]<>\"\",Table_PI[[#This Row],[Input 4]],\"\")","v":""},{"$f":"IF(Table_PI[[#This Row],[Quantity]]=\"\",\"\",Table_PI[[#This Row],[Quantity]])","v":""},{"$f":"IF(Table_PI[[#This Row],[Notes]]=\"\",\"\",Table_PI[[#This Row],[Notes]])","v":""},{"$f":"IF(OR(Table_PI[[#This Row],[Hide: Baseline kWh]]=\"\",Table_PI[[#This Row],[Hide: Baseline kWh]]=0,ISTEXT(Table_PI[[#This Row],[Hide: Baseline kWh]])),\"\",Table_PI[[#This Row],[Hide: Baseline kWh]])","v":""},{"$f":"IF(OR(Table_PI[[#This Row],[Hide: Baseline kW]]=\"\",Table_PI[[#This Row],[Hide: Baseline kW]]=0,ISTEXT(Table_PI[[#This Row],[Hide: Baseline kW]])),\"\",Table_PI[[#This Row],[Hide: Baseline kW]])","v":""},{"$f":"IF(OR(Table_PI[[#This Row],[Hide: Proposed kWh]]=\"\",Table_PI[[#This Row],[Hide: Proposed kWh]]=0,ISTEXT(Table_PI[[#This Row],[Hide: Proposed kWh]])),\"\",Table_PI[[#This Row],[Hide: Proposed kWh]])","v":""},{"$f":"IF(OR(Table_PI[[#This Row],[Hide: Proposed kW]]=\"\",Table_PI[[#This Row],[Hide: Proposed kW]]=0,ISTEXT(Table_PI[[#This Row],[Hide: Proposed kW]])),\"\",Table_PI[[#This Row],[Hide: Proposed kW]])","v":""},null,null,{"$f":"IF(OR(Table_PI[[#This Row],[Hide: Rebate]]=\"\",Table_PI[[#This Row],[Hide: Rebate]]=0,ISTEXT(Table_PI[[#This Row],[Hide: Rebate]])),\"\",Table_PI[[#This Row],[Hide: Rebate]])","v":""},null,{"$f":"IF(OR(Table_PI[[#This Row],[Hide: Incremental Cost]]=\"\",Table_PI[[#This Row],[Hide: Incremental Cost]]=0,ISTEXT(Table_PI[[#This Row],[Hide: Incremental Cost]])),\"\",Table_PI[[#This Row],[Hide: Incremental Cost]])","v":""},{"$f":"IFERROR(IF(Table_SummaryPI[[#This Row],[Incentive_Customer]]=\"\",\"\",ROUND(Table_SummaryPI[[#This Row],[Incentive_Customer]]/$AM$401*'Customer Information'!$BC$21,2)),0)","v":""},{"$f":"IF(OR(Table_PI[[#This Row],[Annual kWh]]=\"\",Table_PI[[#This Row],[Annual kWh]]=0,ISTEXT(Table_PI[[#This Row],[Annual kWh]])),\"\",Table_PI[[#This Row],[Annual kWh]])","v":""},{"$f":"IF(OR(Table_PI[[#This Row],[Peak kW]]=\"\",Table_PI[[#This Row],[Peak kW]]=0,ISTEXT(Table_PI[[#This Row],[Peak kW]])),\"\",Table_PI[[#This Row],[Peak kW]])","v":""},{"$f":"IF(Table_SummaryPI[[#This Row],[Line No.]]<>\"\",IF(AND(ISNUMBER(FIND(\"Chiller\",Table_SummaryPI[[#This Row],[P_MeasureOption1]],1)),Table_SummaryPI[[#This Row],[ProposedMeasureCategory]]=\"Air-Cooled (Water-Cooled Replacement)\"),$BD$29*Table_SummaryPI[[#This Row],[Size]]*Table_SummaryPI[[#This Row],[Quantity]]*Table_SummaryPI[[#This Row],[EFLHCooling]],\nIF(ISNUMBER(FIND(\"Dishwasher\",Table_SummaryPI[[#This Row],[ProposedMeasureCategory]],1)),$BH$29*Table_SummaryPI[[#This Row],[Quantity]],\nIF(ISNUMBER(FIND(\"Ice Maker\",Table_SummaryPI[[#This Row],[ProposedMeasureCategory]],1)),$BD$31*Table_SummaryPI[[#This Row],[Quantity]],\nIF(ISNUMBER(FIND(\"Spray Valve\",Table_SummaryPI[[#This Row],[ProposedMeasureCategory]],1)),$BH$31*Table_SummaryPI[[#This Row],[Quantity]],\n0)))),\"\")","v":""},{"$f":"IF(OR(Table_PI[[#This Row],[Hide: Electrification kWh]]=\"\",Table_PI[[#This Row],[Hide: Electrification kWh]]=0,ISTEXT(Table_PI[[#This Row],[Hide: Electrification kWh]])),\"\",Table_PI[[#This Row],[Hide: Electrification kWh]])","v":""},{"$f":"IF(OR(Table_PI[[#This Row],[Hide: Electrification GHG]]=\"\",Table_PI[[#This Row],[Hide: Electrification GHG]]=0,ISTEXT(Table_PI[[#This Row],[Hide: Electrification GHG]])),\"\",Table_PI[[#This Row],[Hide: Electrification GHG]])","v":""},{"$f":"IFERROR(IF(Table_SummaryPI[[#This Row],[kWhSavings]]=\"\",\"\",$BH$9*Table_SummaryPI[[#This Row],[kWhSavings]]),0)","v":""},{"$f":"IFERROR(IF(Table_SummaryPI[[#This Row],[kWhSavings]]=\"\",\"\",$BH$14*Table_SummaryPI[[#This Row],[kWhSavings]]),0)","v":""},{"$f":"IFERROR(IF(Table_SummaryPI[[#This Row],[kWhSavings]]=\"\",\"\",$BH$18*Table_SummaryPI[[#This Row],[kWhSavings]]),0)","v":""},{"$f":"IFERROR(IF(Table_SummaryPI[[#This Row],[kWhSavings]]=\"\",\"\",$BH$22*Table_SummaryPI[[#This Row],[kWhSavings]]),0)","v":""}]
[{"$f":"Table_PI[[#This Row],[Line No.]]","v":""},{"$f":"IF(Table_SummaryPI[[#This Row],[MeasureName]]<>\"\",NOT(ISTEXT(Table_PI[[#This Row],[Rebate]])),\"\")","v":""},{"$f":"IF(Table_SummaryPI[[#This Row],[MeassureCategory]]<>\"\",CONCATENATE(Table_SummaryPI[[#This Row],[MeassureCategory]],  \" - \", Table_SummaryPI[[#This Row],[ProposedMeasureCategory]],  \" - \", TEXT(Table_SummaryPI[[#This Row],[Size]],\"#,##0.00\"),\" \",Table_SummaryPI[[#This Row],[SizeUnit]]),\"\")","v":""},{"$f":"SUBSTITUTE(Table_PI[[#This Row],[Measure]],\"     \",\"\",1)","v":""},{"$f":"IF(Table_PI[[#This Row],[List 1]]<>\"\",Table_PI[[#This Row],[List 1]],\"\")","v":""},{"$f":"IF(Table_PI[[#This Row],[List 2]]<>\"\",Table_PI[[#This Row],[List 2]],\"\")","v":""},{"$f":"IF(Table_PI[[#This Row],[List 3]]<>\"\",Table_PI[[#This Row],[List 3]],\"\")","v":""},{"$f":"IF(Table_PI[[#This Row],[Manufacturer]]=\"\",\"\",Table_PI[[#This Row],[Manufacturer]])","v":""},{"$f":"IF(Table_PI[[#This Row],[Model Number]]=\"\",\"\",Table_PI[[#This Row],[Model Number]])","v":""},{"$f":"IF(Table_PI[[#This Row],[Serial Number(s)]]=\"\",\"\",Table_PI[[#This Row],[Serial Number(s)]])","v":""},null,{"$f":"IF(Table_PI[[#This Row],[Size]]=\"\",\"\",Table_PI[[#This Row],[Size]])","v":""},null,null,{"$f":"IF(Table_PI[[#This Row],[Input 1]]<>\"\",Table_PI[[#This Row],[Input 1]],\"\")","v":""},null,null,{"$f":"IF(Table_PI[[#This Row],[Input 2]]<>\"\",Table_PI[[#This Row],[Input 2]],\"\")","v":""},null,null,{"$f":"IF(Table_PI[[#This Row],[Input 3]]<>\"\",Table_PI[[#This Row],[Input 3]],\"\")","v":""},null,null,{"$f":"IF(Table_PI[[#This Row],[Input 4]]<>\"\",Table_PI[[#This Row],[Input 4]],\"\")","v":""},null,null,{"$f":"IF(Table_PI[[#This Row],[Input 4]]<>\"\",Table_PI[[#This Row],[Input 4]],\"\")","v":""},null,null,{"$f":"IF(Table_PI[[#This Row],[Input 4]]<>\"\",Table_PI[[#This Row],[Input 4]],\"\")","v":""},{"$f":"IF(Table_PI[[#This Row],[Quantity]]=\"\",\"\",Table_PI[[#This Row],[Quantity]])","v":""},{"$f":"IF(Table_PI[[#This Row],[Notes]]=\"\",\"\",Table_PI[[#This Row],[Notes]])","v":""},{"$f":"IF(OR(Table_PI[[#This Row],[Hide: Baseline kWh]]=\"\",Table_PI[[#This Row],[Hide: Baseline kWh]]=0,ISTEXT(Table_PI[[#This Row],[Hide: Baseline kWh]])),\"\",Table_PI[[#This Row],[Hide: Baseline kWh]])","v":""},{"$f":"IF(OR(Table_PI[[#This Row],[Hide: Baseline kW]]=\"\",Table_PI[[#This Row],[Hide: Baseline kW]]=0,ISTEXT(Table_PI[[#This Row],[Hide: Baseline kW]])),\"\",Table_PI[[#This Row],[Hide: Baseline kW]])","v":""},{"$f":"IF(OR(Table_PI[[#This Row],[Hide: Proposed kWh]]=\"\",Table_PI[[#This Row],[Hide: Proposed kWh]]=0,ISTEXT(Table_PI[[#This Row],[Hide: Proposed kWh]])),\"\",Table_PI[[#This Row],[Hide: Proposed kWh]])","v":""},{"$f":"IF(OR(Table_PI[[#This Row],[Hide: Proposed kW]]=\"\",Table_PI[[#This Row],[Hide: Proposed kW]]=0,ISTEXT(Table_PI[[#This Row],[Hide: Proposed kW]])),\"\",Table_PI[[#This Row],[Hide: Proposed kW]])","v":""},null,null,{"$f":"IF(OR(Table_PI[[#This Row],[Hide: Rebate]]=\"\",Table_PI[[#This Row],[Hide: Rebate]]=0,ISTEXT(Table_PI[[#This Row],[Hide: Rebate]])),\"\",Table_PI[[#This Row],[Hide: Rebate]])","v":""},null,{"$f":"IF(OR(Table_PI[[#This Row],[Hide: Incremental Cost]]=\"\",Table_PI[[#This Row],[Hide: Incremental Cost]]=0,ISTEXT(Table_PI[[#This Row],[Hide: Incremental Cost]])),\"\",Table_PI[[#This Row],[Hide: Incremental Cost]])","v":""},{"$f":"IFERROR(IF(Table_SummaryPI[[#This Row],[Incentive_Customer]]=\"\",\"\",ROUND(Table_SummaryPI[[#This Row],[Incentive_Customer]]/$AM$401*'Customer Information'!$BC$21,2)),0)","v":""},{"$f":"IF(OR(Table_PI[[#This Row],[Annual kWh]]=\"\",Table_PI[[#This Row],[Annual kWh]]=0,ISTEXT(Table_PI[[#This Row],[Annual kWh]])),\"\",Table_PI[[#This Row],[Annual kWh]])","v":""},{"$f":"IF(OR(Table_PI[[#This Row],[Peak kW]]=\"\",Table_PI[[#This Row],[Peak kW]]=0,ISTEXT(Table_PI[[#This Row],[Peak kW]])),\"\",Table_PI[[#This Row],[Peak kW]])","v":""},{"$f":"IF(Table_SummaryPI[[#This Row],[Line No.]]<>\"\",IF(AND(ISNUMBER(FIND(\"Chiller\",Table_SummaryPI[[#This Row],[P_MeasureOption1]],1)),Table_SummaryPI[[#This Row],[ProposedMeasureCategory]]=\"Air-Cooled (Water-Cooled Replacement)\"),$BD$29*Table_SummaryPI[[#This Row],[Size]]*Table_SummaryPI[[#This Row],[Quantity]]*Table_SummaryPI[[#This Row],[EFLHCooling]],\nIF(ISNUMBER(FIND(\"Dishwasher\",Table_SummaryPI[[#This Row],[ProposedMeasureCategory]],1)),$BH$29*Table_SummaryPI[[#This Row],[Quantity]],\nIF(ISNUMBER(FIND(\"Ice Maker\",Table_SummaryPI[[#This Row],[ProposedMeasureCategory]],1)),$BD$31*Table_SummaryPI[[#This Row],[Quantity]],\nIF(ISNUMBER(FIND(\"Spray Valve\",Table_SummaryPI[[#This Row],[ProposedMeasureCategory]],1)),$BH$31*Table_SummaryPI[[#This Row],[Quantity]],\n0)))),\"\")","v":""},{"$f":"IF(OR(Table_PI[[#This Row],[Hide: Electrification kWh]]=\"\",Table_PI[[#This Row],[Hide: Electrification kWh]]=0,ISTEXT(Table_PI[[#This Row],[Hide: Electrification kWh]])),\"\",Table_PI[[#This Row],[Hide: Electrification kWh]])","v":""},{"$f":"IF(OR(Table_PI[[#This Row],[Hide: Electrification GHG]]=\"\",Table_PI[[#This Row],[Hide: Electrification GHG]]=0,ISTEXT(Table_PI[[#This Row],[Hide: Electrification GHG]])),\"\",Table_PI[[#This Row],[Hide: Electrification GHG]])","v":""},{"$f":"IFERROR(IF(Table_SummaryPI[[#This Row],[kWhSavings]]=\"\",\"\",$BH$9*Table_SummaryPI[[#This Row],[kWhSavings]]),0)","v":""},{"$f":"IFERROR(IF(Table_SummaryPI[[#This Row],[kWhSavings]]=\"\",\"\",$BH$14*Table_SummaryPI[[#This Row],[kWhSavings]]),0)","v":""},{"$f":"IFERROR(IF(Table_SummaryPI[[#This Row],[kWhSavings]]=\"\",\"\",$BH$18*Table_SummaryPI[[#This Row],[kWhSavings]]),0)","v":""},{"$f":"IFERROR(IF(Table_SummaryPI[[#This Row],[kWhSavings]]=\"\",\"\",$BH$22*Table_SummaryPI[[#This Row],[kWhSavings]]),0)","v":""}]
[{"$f":"Table_PI[[#This Row],[Line No.]]","v":""},{"$f":"IF(Table_SummaryPI[[#This Row],[MeasureName]]<>\"\",NOT(ISTEXT(Table_PI[[#This Row],[Rebate]])),\"\")","v":""},{"$f":"IF(Table_SummaryPI[[#This Row],[MeassureCategory]]<>\"\",CONCATENATE(Table_SummaryPI[[#This Row],[MeassureCategory]],  \" - \", Table_SummaryPI[[#This Row],[ProposedMeasureCategory]],  \" - \", TEXT(Table_SummaryPI[[#This Row],[Size]],\"#,##0.00\"),\" \",Table_SummaryPI[[#This Row],[SizeUnit]]),\"\")","v":""},{"$f":"SUBSTITUTE(Table_PI[[#This Row],[Measure]],\"     \",\"\",1)","v":""},{"$f":"IF(Table_PI[[#This Row],[List 1]]<>\"\",Table_PI[[#This Row],[List 1]],\"\")","v":""},{"$f":"IF(Table_PI[[#This Row],[List 2]]<>\"\",Table_PI[[#This Row],[List 2]],\"\")","v":""},{"$f":"IF(Table_PI[[#This Row],[List 3]]<>\"\",Table_PI[[#This Row],[List 3]],\"\")","v":""},{"$f":"IF(Table_PI[[#This Row],[Manufacturer]]=\"\",\"\",Table_PI[[#This Row],[Manufacturer]])","v":""},{"$f":"IF(Table_PI[[#This Row],[Model Number]]=\"\",\"\",Table_PI[[#This Row],[Model Number]])","v":""},{"$f":"IF(Table_PI[[#This Row],[Serial Number(s)]]=\"\",\"\",Table_PI[[#This Row],[Serial Number(s)]])","v":""},null,{"$f":"IF(Table_PI[[#This Row],[Size]]=\"\",\"\",Table_PI[[#This Row],[Size]])","v":""},null,null,{"$f":"IF(Table_PI[[#This Row],[Input 1]]<>\"\",Table_PI[[#This Row],[Input 1]],\"\")","v":""},null,null,{"$f":"IF(Table_PI[[#This Row],[Input 2]]<>\"\",Table_PI[[#This Row],[Input 2]],\"\")","v":""},null,null,{"$f":"IF(Table_PI[[#This Row],[Input 3]]<>\"\",Table_PI[[#This Row],[Input 3]],\"\")","v":""},null,null,{"$f":"IF(Table_PI[[#This Row],[Input 4]]<>\"\",Table_PI[[#This Row],[Input 4]],\"\")","v":""},null,null,{"$f":"IF(Table_PI[[#This Row],[Input 4]]<>\"\",Table_PI[[#This Row],[Input 4]],\"\")","v":""},null,null,{"$f":"IF(Table_PI[[#This Row],[Input 4]]<>\"\",Table_PI[[#This Row],[Input 4]],\"\")","v":""},{"$f":"IF(Table_PI[[#This Row],[Quantity]]=\"\",\"\",Table_PI[[#This Row],[Quantity]])","v":""},{"$f":"IF(Table_PI[[#This Row],[Notes]]=\"\",\"\",Table_PI[[#This Row],[Notes]])","v":""},{"$f":"IF(OR(Table_PI[[#This Row],[Hide: Baseline kWh]]=\"\",Table_PI[[#This Row],[Hide: Baseline kWh]]=0,ISTEXT(Table_PI[[#This Row],[Hide: Baseline kWh]])),\"\",Table_PI[[#This Row],[Hide: Baseline kWh]])","v":""},{"$f":"IF(OR(Table_PI[[#This Row],[Hide: Baseline kW]]=\"\",Table_PI[[#This Row],[Hide: Baseline kW]]=0,ISTEXT(Table_PI[[#This Row],[Hide: Baseline kW]])),\"\",Table_PI[[#This Row],[Hide: Baseline kW]])","v":""},{"$f":"IF(OR(Table_PI[[#This Row],[Hide: Proposed kWh]]=\"\",Table_PI[[#This Row],[Hide: Proposed kWh]]=0,ISTEXT(Table_PI[[#This Row],[Hide: Proposed kWh]])),\"\",Table_PI[[#This Row],[Hide: Proposed kWh]])","v":""},{"$f":"IF(OR(Table_PI[[#This Row],[Hide: Proposed kW]]=\"\",Table_PI[[#This Row],[Hide: Proposed kW]]=0,ISTEXT(Table_PI[[#This Row],[Hide: Proposed kW]])),\"\",Table_PI[[#This Row],[Hide: Proposed kW]])","v":""},null,null,{"$f":"IF(OR(Table_PI[[#This Row],[Hide: Rebate]]=\"\",Table_PI[[#This Row],[Hide: Rebate]]=0,ISTEXT(Table_PI[[#This Row],[Hide: Rebate]])),\"\",Table_PI[[#This Row],[Hide: Rebate]])","v":""},null,{"$f":"IF(OR(Table_PI[[#This Row],[Hide: Incremental Cost]]=\"\",Table_PI[[#This Row],[Hide: Incremental Cost]]=0,ISTEXT(Table_PI[[#This Row],[Hide: Incremental Cost]])),\"\",Table_PI[[#This Row],[Hide: Incremental Cost]])","v":""},{"$f":"IFERROR(IF(Table_SummaryPI[[#This Row],[Incentive_Customer]]=\"\",\"\",ROUND(Table_SummaryPI[[#This Row],[Incentive_Customer]]/$AM$401*'Customer Information'!$BC$21,2)),0)","v":""},{"$f":"IF(OR(Table_PI[[#This Row],[Annual kWh]]=\"\",Table_PI[[#This Row],[Annual kWh]]=0,ISTEXT(Table_PI[[#This Row],[Annual kWh]])),\"\",Table_PI[[#This Row],[Annual kWh]])","v":""},{"$f":"IF(OR(Table_PI[[#This Row],[Peak kW]]=\"\",Table_PI[[#This Row],[Peak kW]]=0,ISTEXT(Table_PI[[#This Row],[Peak kW]])),\"\",Table_PI[[#This Row],[Peak kW]])","v":""},{"$f":"IF(Table_SummaryPI[[#This Row],[Line No.]]<>\"\",IF(AND(ISNUMBER(FIND(\"Chiller\",Table_SummaryPI[[#This Row],[P_MeasureOption1]],1)),Table_SummaryPI[[#This Row],[ProposedMeasureCategory]]=\"Air-Cooled (Water-Cooled Replacement)\"),$BD$29*Table_SummaryPI[[#This Row],[Size]]*Table_SummaryPI[[#This Row],[Quantity]]*Table_SummaryPI[[#This Row],[EFLHCooling]],\nIF(ISNUMBER(FIND(\"Dishwasher\",Table_SummaryPI[[#This Row],[ProposedMeasureCategory]],1)),$BH$29*Table_SummaryPI[[#This Row],[Quantity]],\nIF(ISNUMBER(FIND(\"Ice Maker\",Table_SummaryPI[[#This Row],[ProposedMeasureCategory]],1)),$BD$31*Table_SummaryPI[[#This Row],[Quantity]],\nIF(ISNUMBER(FIND(\"Spray Valve\",Table_SummaryPI[[#This Row],[ProposedMeasureCategory]],1)),$BH$31*Table_SummaryPI[[#This Row],[Quantity]],\n0)))),\"\")","v":""},{"$f":"IF(OR(Table_PI[[#This Row],[Hide: Electrification kWh]]=\"\",Table_PI[[#This Row],[Hide: Electrification kWh]]=0,ISTEXT(Table_PI[[#This Row],[Hide: Electrification kWh]])),\"\",Table_PI[[#This Row],[Hide: Electrification kWh]])","v":""},{"$f":"IF(OR(Table_PI[[#This Row],[Hide: Electrification GHG]]=\"\",Table_PI[[#This Row],[Hide: Electrification GHG]]=0,ISTEXT(Table_PI[[#This Row],[Hide: Electrification GHG]])),\"\",Table_PI[[#This Row],[Hide: Electrification GHG]])","v":""},{"$f":"IFERROR(IF(Table_SummaryPI[[#This Row],[kWhSavings]]=\"\",\"\",$BH$9*Table_SummaryPI[[#This Row],[kWhSavings]]),0)","v":""},{"$f":"IFERROR(IF(Table_SummaryPI[[#This Row],[kWhSavings]]=\"\",\"\",$BH$14*Table_SummaryPI[[#This Row],[kWhSavings]]),0)","v":""},{"$f":"IFERROR(IF(Table_SummaryPI[[#This Row],[kWhSavings]]=\"\",\"\",$BH$18*Table_SummaryPI[[#This Row],[kWhSavings]]),0)","v":""},{"$f":"IFERROR(IF(Table_SummaryPI[[#This Row],[kWhSavings]]=\"\",\"\",$BH$22*Table_SummaryPI[[#This Row],[kWhSavings]]),0)","v":""}]
[{"$f":"Table_PI[[#This Row],[Line No.]]","v":""},{"$f":"IF(Table_SummaryPI[[#This Row],[MeasureName]]<>\"\",NOT(ISTEXT(Table_PI[[#This Row],[Rebate]])),\"\")","v":""},{"$f":"IF(Table_SummaryPI[[#This Row],[MeassureCategory]]<>\"\",CONCATENATE(Table_SummaryPI[[#This Row],[MeassureCategory]],  \" - \", Table_SummaryPI[[#This Row],[ProposedMeasureCategory]],  \" - \", TEXT(Table_SummaryPI[[#This Row],[Size]],\"#,##0.00\"),\" \",Table_SummaryPI[[#This Row],[SizeUnit]]),\"\")","v":""},{"$f":"SUBSTITUTE(Table_PI[[#This Row],[Measure]],\"     \",\"\",1)","v":""},{"$f":"IF(Table_PI[[#This Row],[List 1]]<>\"\",Table_PI[[#This Row],[List 1]],\"\")","v":""},{"$f":"IF(Table_PI[[#This Row],[List 2]]<>\"\",Table_PI[[#This Row],[List 2]],\"\")","v":""},{"$f":"IF(Table_PI[[#This Row],[List 3]]<>\"\",Table_PI[[#This Row],[List 3]],\"\")","v":""},{"$f":"IF(Table_PI[[#This Row],[Manufacturer]]=\"\",\"\",Table_PI[[#This Row],[Manufacturer]])","v":""},{"$f":"IF(Table_PI[[#This Row],[Model Number]]=\"\",\"\",Table_PI[[#This Row],[Model Number]])","v":""},{"$f":"IF(Table_PI[[#This Row],[Serial Number(s)]]=\"\",\"\",Table_PI[[#This Row],[Serial Number(s)]])","v":""},null,{"$f":"IF(Table_PI[[#This Row],[Size]]=\"\",\"\",Table_PI[[#This Row],[Size]])","v":""},null,null,{"$f":"IF(Table_PI[[#This Row],[Input 1]]<>\"\",Table_PI[[#This Row],[Input 1]],\"\")","v":""},null,null,{"$f":"IF(Table_PI[[#This Row],[Input 2]]<>\"\",Table_PI[[#This Row],[Input 2]],\"\")","v":""},null,null,{"$f":"IF(Table_PI[[#This Row],[Input 3]]<>\"\",Table_PI[[#This Row],[Input 3]],\"\")","v":""},null,null,{"$f":"IF(Table_PI[[#This Row],[Input 4]]<>\"\",Table_PI[[#This Row],[Input 4]],\"\")","v":""},null,null,{"$f":"IF(Table_PI[[#This Row],[Input 4]]<>\"\",Table_PI[[#This Row],[Input 4]],\"\")","v":""},null,null,{"$f":"IF(Table_PI[[#This Row],[Input 4]]<>\"\",Table_PI[[#This Row],[Input 4]],\"\")","v":""},{"$f":"IF(Table_PI[[#This Row],[Quantity]]=\"\",\"\",Table_PI[[#This Row],[Quantity]])","v":""},{"$f":"IF(Table_PI[[#This Row],[Notes]]=\"\",\"\",Table_PI[[#This Row],[Notes]])","v":""},{"$f":"IF(OR(Table_PI[[#This Row],[Hide: Baseline kWh]]=\"\",Table_PI[[#This Row],[Hide: Baseline kWh]]=0,ISTEXT(Table_PI[[#This Row],[Hide: Baseline kWh]])),\"\",Table_PI[[#This Row],[Hide: Baseline kWh]])","v":""},{"$f":"IF(OR(Table_PI[[#This Row],[Hide: Baseline kW]]=\"\",Table_PI[[#This Row],[Hide: Baseline kW]]=0,ISTEXT(Table_PI[[#This Row],[Hide: Baseline kW]])),\"\",Table_PI[[#This Row],[Hide: Baseline kW]])","v":""},{"$f":"IF(OR(Table_PI[[#This Row],[Hide: Proposed kWh]]=\"\",Table_PI[[#This Row],[Hide: Proposed kWh]]=0,ISTEXT(Table_PI[[#This Row],[Hide: Proposed kWh]])),\"\",Table_PI[[#This Row],[Hide: Proposed kWh]])","v":""},{"$f":"IF(OR(Table_PI[[#This Row],[Hide: Proposed kW]]=\"\",Table_PI[[#This Row],[Hide: Proposed kW]]=0,ISTEXT(Table_PI[[#This Row],[Hide: Proposed kW]])),\"\",Table_PI[[#This Row],[Hide: Proposed kW]])","v":""},null,null,{"$f":"IF(OR(Table_PI[[#This Row],[Hide: Rebate]]=\"\",Table_PI[[#This Row],[Hide: Rebate]]=0,ISTEXT(Table_PI[[#This Row],[Hide: Rebate]])),\"\",Table_PI[[#This Row],[Hide: Rebate]])","v":""},null,{"$f":"IF(OR(Table_PI[[#This Row],[Hide: Incremental Cost]]=\"\",Table_PI[[#This Row],[Hide: Incremental Cost]]=0,ISTEXT(Table_PI[[#This Row],[Hide: Incremental Cost]])),\"\",Table_PI[[#This Row],[Hide: Incremental Cost]])","v":""},{"$f":"IFERROR(IF(Table_SummaryPI[[#This Row],[Incentive_Customer]]=\"\",\"\",ROUND(Table_SummaryPI[[#This Row],[Incentive_Customer]]/$AM$401*'Customer Information'!$BC$21,2)),0)","v":""},{"$f":"IF(OR(Table_PI[[#This Row],[Annual kWh]]=\"\",Table_PI[[#This Row],[Annual kWh]]=0,ISTEXT(Table_PI[[#This Row],[Annual kWh]])),\"\",Table_PI[[#This Row],[Annual kWh]])","v":""},{"$f":"IF(OR(Table_PI[[#This Row],[Peak kW]]=\"\",Table_PI[[#This Row],[Peak kW]]=0,ISTEXT(Table_PI[[#This Row],[Peak kW]])),\"\",Table_PI[[#This Row],[Peak kW]])","v":""},{"$f":"IF(Table_SummaryPI[[#This Row],[Line No.]]<>\"\",IF(AND(ISNUMBER(FIND(\"Chiller\",Table_SummaryPI[[#This Row],[P_MeasureOption1]],1)),Table_SummaryPI[[#This Row],[ProposedMeasureCategory]]=\"Air-Cooled (Water-Cooled Replacement)\"),$BD$29*Table_SummaryPI[[#This Row],[Size]]*Table_SummaryPI[[#This Row],[Quantity]]*Table_SummaryPI[[#This Row],[EFLHCooling]],\nIF(ISNUMBER(FIND(\"Dishwasher\",Table_SummaryPI[[#This Row],[ProposedMeasureCategory]],1)),$BH$29*Table_SummaryPI[[#This Row],[Quantity]],\nIF(ISNUMBER(FIND(\"Ice Maker\",Table_SummaryPI[[#This Row],[ProposedMeasureCategory]],1)),$BD$31*Table_SummaryPI[[#This Row],[Quantity]],\nIF(ISNUMBER(FIND(\"Spray Valve\",Table_SummaryPI[[#This Row],[ProposedMeasureCategory]],1)),$BH$31*Table_SummaryPI[[#This Row],[Quantity]],\n0)))),\"\")","v":""},{"$f":"IF(OR(Table_PI[[#This Row],[Hide: Electrification kWh]]=\"\",Table_PI[[#This Row],[Hide: Electrification kWh]]=0,ISTEXT(Table_PI[[#This Row],[Hide: Electrification kWh]])),\"\",Table_PI[[#This Row],[Hide: Electrification kWh]])","v":""},{"$f":"IF(OR(Table_PI[[#This Row],[Hide: Electrification GHG]]=\"\",Table_PI[[#This Row],[Hide: Electrification GHG]]=0,ISTEXT(Table_PI[[#This Row],[Hide: Electrification GHG]])),\"\",Table_PI[[#This Row],[Hide: Electrification GHG]])","v":""},{"$f":"IFERROR(IF(Table_SummaryPI[[#This Row],[kWhSavings]]=\"\",\"\",$BH$9*Table_SummaryPI[[#This Row],[kWhSavings]]),0)","v":""},{"$f":"IFERROR(IF(Table_SummaryPI[[#This Row],[kWhSavings]]=\"\",\"\",$BH$14*Table_SummaryPI[[#This Row],[kWhSavings]]),0)","v":""},{"$f":"IFERROR(IF(Table_SummaryPI[[#This Row],[kWhSavings]]=\"\",\"\",$BH$18*Table_SummaryPI[[#This Row],[kWhSavings]]),0)","v":""},{"$f":"IFERROR(IF(Table_SummaryPI[[#This Row],[kWhSavings]]=\"\",\"\",$BH$22*Table_SummaryPI[[#This Row],[kWhSavings]]),0)","v":""}]
["Totals",null,null,null,null,null,null,null,null,null,null,null,null,null,null,null,null,null,null,null,null,null,null,null,null,null,null,null,null,null,null,null,{"$f":"SUM(Table_SummaryPI[BaselinekWh])","v":0},{"$f":"SUM(Table_SummaryPI[BaselinekW])","v":0},{"$f":"SUM(Table_SummaryPI[ProposedkWh])","v":0},{"$f":"SUM(Table_SummaryPI[ProposedkW])","v":0},null,{"$f":"SUM(Table_SummaryPI[IncentiveRate])","v":0},{"$f":"SUM(Table_SummaryPI[Incentive_Customer])","v":0},{"$f":"SUM(Table_SummaryPI[CostRate])","v":0},{"$f":"SUM(Table_SummaryPI[IncrementalCost])","v":0},{"$f":"SUM(Table_SummaryPI[MeasureCost])","v":0},{"$f":"SUM(Table_SummaryPI[kWhSavings])","v":0},{"$f":"SUM(Table_SummaryPI[DemandSavingskW])","v":0},{"$f":"SUM(Table_SummaryPI[WaterSavings])","v":0},{"$f":"SUM(Table_SummaryPI[ElectrificationSavings])","v":0},null,{"$f":"SUM(Table_SummaryPI[AnnualCO2Savings])","v":0},{"$f":"SUM(Table_SummaryPI[AnnualVehicleSavings])","v":0},{"$f":"SUM(Table_SummaryPI[AnnualCarbonSavings])","v":0},{"$f":"SUM(Table_SummaryPI[AnnualNoxSavings])","v":0}]

{"sheet":"PI_Print","index":6,"n_rows":401,"n_cols":14,"rows_kept":401,"cut":false,"hidden":true,"merged":[]}
[1,2,3,4,5,6,7,8,9,10,11,12,13,14]
["Line No.","Proposed Equipment","Manufacturer/Model Number","Serial Number(s)","Quantity","Existing kWh","Existing kW","Proposed kWh","Proposed kW","Notes","Rebate","Measure Cost","Annual kWh","Peak kW"]
[{"$f":"Table_SummaryPI[[#This Row],[Line No.]]","v":""},{"$f":"IF(Table_PrintPI[[#This Row],[Line No.]]=\"\",\"\",CONCATENATE(Table_PrintPI[[#This Row],[Line No.]],\" - \",Table_SummaryPI[[#This Row],[MeasureName]]))","v":""},{"$f":"IF(Table_SummaryPI[[#This Row],[Manufacturer]]<>\"\",CONCATENATE(Table_SummaryPI[[#This Row],[Manufacturer]],\"/\",Table_SummaryPI[[#This Row],[Model'#]]),\"\")","v":""},{"$f":"IF(Table_SummaryPI[[#This Row],[Serial'#]]<>\"\",Table_SummaryPI[[#This Row],[Serial'#]],\"\")","v":""},{"$f":"IF(Table_SummaryPI[[#This Row],[Quantity]]<>\"\",Table_SummaryPI[[#This Row],[Quantity]],\"\")","v":""},{"$f":"IF(Table_SummaryPI[[#This Row],[BaselinekWh]]<>\"\",Table_SummaryPI[[#This Row],[BaselinekWh]],\"\")","v":""},{"$f":"IF(Table_SummaryPI[[#This Row],[BaselinekW]]<>\"\",Table_SummaryPI[[#This Row],[BaselinekW]],\"\")","v":""},{"$f":"IF(Table_SummaryPI[[#This Row],[ProposedkWh]]<>\"\",Table_SummaryPI[[#This Row],[ProposedkWh]],\"\")","v":""},{"$f":"IF(Table_SummaryPI[[#This Row],[ProposedkW]]<>\"\",Table_SummaryPI[[#This Row],[ProposedkW]],\"\")","v":""},{"$f":"IF(Table_SummaryPI[[#This Row],[Notes]]<>\"\",Table_SummaryPI[[#This Row],[Notes]],\"\")","v":""},{"$f":"IF(Table_SummaryPI[[#This Row],[Incentive_Customer]]<>\"\",Table_SummaryPI[[#This Row],[Incentive_Customer]],0)","v":0},{"$f":"IF(Table_SummaryPI[[#This Row],[MeasureCost]]<>\"\",Table_SummaryPI[[#This Row],[MeasureCost]],0)","v":0},{"$f":"IF(Table_SummaryPI[[#This Row],[kWhSavings]]<>\"\",Table_SummaryPI[[#This Row],[kWhSavings]],0)","v":0},{"$f":"IF(Table_SummaryPI[[#This Row],[DemandSavingskW]]<>\"\",Table_SummaryPI[[#This Row],[DemandSavingskW]],0)","v":0}]
[{"$f":"Table_SummaryPI[[#This Row],[Line No.]]","v":""},{"$f":"IF(Table_PrintPI[[#This Row],[Line No.]]=\"\",\"\",CONCATENATE(Table_PrintPI[[#This Row],[Line No.]],\" - \",Table_SummaryPI[[#This Row],[MeasureName]]))","v":""},{"$f":"IF(Table_SummaryPI[[#This Row],[Manufacturer]]<>\"\",CONCATENATE(Table_SummaryPI[[#This Row],[Manufacturer]],\"/\",Table_SummaryPI[[#This Row],[Model'#]]),\"\")","v":""},{"$f":"IF(Table_SummaryPI[[#This Row],[Serial'#]]<>\"\",Table_SummaryPI[[#This Row],[Serial'#]],\"\")","v":""},{"$f":"IF(Table_SummaryPI[[#This Row],[Quantity]]<>\"\",Table_SummaryPI[[#This Row],[Quantity]],\"\")","v":""},{"$f":"IF(Table_SummaryPI[[#This Row],[BaselinekWh]]<>\"\",Table_SummaryPI[[#This Row],[BaselinekWh]],\"\")","v":""},{"$f":"IF(Table_SummaryPI[[#This Row],[BaselinekW]]<>\"\",Table_SummaryPI[[#This Row],[BaselinekW]],\"\")","v":""},{"$f":"IF(Table_SummaryPI[[#This Row],[ProposedkWh]]<>\"\",Table_SummaryPI[[#This Row],[ProposedkWh]],\"\")","v":""},{"$f":"IF(Table_SummaryPI[[#This Row],[ProposedkW]]<>\"\",Table_SummaryPI[[#This Row],[ProposedkW]],\"\")","v":""},{"$f":"IF(Table_SummaryPI[[#This Row],[Notes]]<>\"\",Table_SummaryPI[[#This Row],[Notes]],\"\")","v":""},{"$f":"IF(Table_SummaryPI[[#This Row],[Incentive_Customer]]<>\"\",Table_SummaryPI[[#This Row],[Incentive_Customer]],0)","v":0},{"$f":"IF(Table_SummaryPI[[#This Row],[MeasureCost]]<>\"\",Table_SummaryPI[[#This Row],[MeasureCost]],0)","v":0},{"$f":"IF(Table_SummaryPI[[#This Row],[kWhSavings]]<>\"\",Table_SummaryPI[[#This Row],[kWhSavings]],0)","v":0},{"$f":"IF(Table_SummaryPI[[#This Row],[DemandSavingskW]]<>\"\",Table_SummaryPI[[#This Row],[DemandSavingskW]],0)","v":0}]
[{"$f":"Table_SummaryPI[[#This Row],[Line No.]]","v":""},{"$f":"IF(Table_PrintPI[[#This Row],[Line No.]]=\"\",\"\",CONCATENATE(Table_PrintPI[[#This Row],[Line No.]],\" - \",Table_SummaryPI[[#This Row],[MeasureName]]))","v":""},{"$f":"IF(Table_SummaryPI[[#This Row],[Manufacturer]]<>\"\",CONCATENATE(Table_SummaryPI[[#This Row],[Manufacturer]],\"/\",Table_SummaryPI[[#This Row],[Model'#]]),\"\")","v":""},{"$f":"IF(Table_SummaryPI[[#This Row],[Serial'#]]<>\"\",Table_SummaryPI[[#This Row],[Serial'#]],\"\")","v":""},{"$f":"IF(Table_SummaryPI[[#This Row],[Quantity]]<>\"\",Table_SummaryPI[[#This Row],[Quantity]],\"\")","v":""},{"$f":"IF(Table_SummaryPI[[#This Row],[BaselinekWh]]<>\"\",Table_SummaryPI[[#This Row],[BaselinekWh]],\"\")","v":""},{"$f":"IF(Table_SummaryPI[[#This Row],[BaselinekW]]<>\"\",Table_SummaryPI[[#This Row],[BaselinekW]],\"\")","v":""},{"$f":"IF(Table_SummaryPI[[#This Row],[ProposedkWh]]<>\"\",Table_SummaryPI[[#This Row],[ProposedkWh]],\"\")","v":""},{"$f":"IF(Table_SummaryPI[[#This Row],[ProposedkW]]<>\"\",Table_SummaryPI[[#This Row],[ProposedkW]],\"\")","v":""},{"$f":"IF(Table_SummaryPI[[#This Row],[Notes]]<>\"\",Table_SummaryPI[[#This Row],[Notes]],\"\")","v":6.7},{"$f":"IF(Table_SummaryPI[[#This Row],[Incentive_Customer]]<>\"\",Table_SummaryPI[[#This Row],[Incentive_Customer]],0)","v":0},{"$f":"IF(Table_SummaryPI[[#This Row],[MeasureCost]]<>\"\",Table_SummaryPI[[#This Row],[MeasureCost]],0)","v":0},{"$f":"IF(Table_SummaryPI[[#This Row],[kWhSavings]]<>\"\",Table_SummaryPI[[#This Row],[kWhSavings]],0)","v":0},{"$f":"IF(Table_SummaryPI[[#This Row],[DemandSavingskW]]<>\"\",Table_SummaryPI[[#This Row],[DemandSavingskW]],0)","v":0}]
[{"$f":"Table_SummaryPI[[#This Row],[Line No.]]","v":""},{"$f":"IF(Table_PrintPI[[#This Row],[Line No.]]=\"\",\"\",CONCATENATE(Table_PrintPI[[#This Row],[Line No.]],\" - \",Table_SummaryPI[[#This Row],[MeasureName]]))","v":""},{"$f":"IF(Table_SummaryPI[[#This Row],[Manufacturer]]<>\"\",CONCATENATE(Table_SummaryPI[[#This Row],[Manufacturer]],\"/\",Table_SummaryPI[[#This Row],[Model'#]]),\"\")","v":""},{"$f":"IF(Table_SummaryPI[[#This Row],[Serial'#]]<>\"\",Table_SummaryPI[[#This Row],[Serial'#]],\"\")","v":""},{"$f":"IF(Table_SummaryPI[[#This Row],[Quantity]]<>\"\",Table_SummaryPI[[#This Row],[Quantity]],\"\")","v":""},{"$f":"IF(Table_SummaryPI[[#This Row],[BaselinekWh]]<>\"\",Table_SummaryPI[[#This Row],[BaselinekWh]],\"\")","v":""},{"$f":"IF(Table_SummaryPI[[#This Row],[BaselinekW]]<>\"\",Table_SummaryPI[[#This Row],[BaselinekW]],\"\")","v":""},{"$f":"IF(Table_SummaryPI[[#This Row],[ProposedkWh]]<>\"\",Table_SummaryPI[[#This Row],[ProposedkWh]],\"\")","v":""},{"$f":"IF(Table_SummaryPI[[#This Row],[ProposedkW]]<>\"\",Table_SummaryPI[[#This Row],[ProposedkW]],\"\")","v":""},{"$f":"IF(Table_SummaryPI[[#This Row],[Notes]]<>\"\",Table_SummaryPI[[#This Row],[Notes]],\"\")","v":""},{"$f":"IF(Table_SummaryPI[[#This Row],[Incentive_Customer]]<>\"\",Table_SummaryPI[[#This Row],[Incentive_Customer]],0)","v":0},{"$f":"IF(Table_SummaryPI[[#This Row],[MeasureCost]]<>\"\",Table_SummaryPI[[#This Row],[MeasureCost]],0)","v":0},{"$f":"IF(Table_SummaryPI[[#This Row],[kWhSavings]]<>\"\",Table_SummaryPI[[#This Row],[kWhSavings]],0)","v":0},{"$f":"IF(Table_SummaryPI[[#This Row],[DemandSavingskW]]<>\"\",Table_SummaryPI[[#This Row],[DemandSavingskW]],0)","v":0}]
[{"$f":"Table_SummaryPI[[#This Row],[Line No.]]","v":""},{"$f":"IF(Table_PrintPI[[#This Row],[Line No.]]=\"\",\"\",CONCATENATE(Table_PrintPI[[#This Row],[Line No.]],\" - \",Table_SummaryPI[[#This Row],[MeasureName]]))","v":""},{"$f":"IF(Table_SummaryPI[[#This Row],[Manufacturer]]<>\"\",CONCATENATE(Table_SummaryPI[[#This Row],[Manufacturer]],\"/\",Table_SummaryPI[[#This Row],[Model'#]]),\"\")","v":""},{"$f":"IF(Table_SummaryPI[[#This Row],[Serial'#]]<>\"\",Table_SummaryPI[[#This Row],[Serial'#]],\"\")","v":""},{"$f":"IF(Table_SummaryPI[[#This Row],[Quantity]]<>\"\",Table_SummaryPI[[#This Row],[Quantity]],\"\")","v":""},{"$f":"IF(Table_SummaryPI[[#This Row],[BaselinekWh]]<>\"\",Table_SummaryPI[[#This Row],[BaselinekWh]],\"\")","v":""},{"$f":"IF(Table_SummaryPI[[#This Row],[BaselinekW]]<>\"\",Table_SummaryPI[[#This Row],[BaselinekW]],\"\")","v":""},{"$f":"IF(Table_SummaryPI[[#This Row],[ProposedkWh]]<>\"\",Table_SummaryPI[[#This Row],[ProposedkWh]],\"\")","v":""},{"$f":"IF(Table_SummaryPI[[#This Row],[ProposedkW]]<>\"\",Table_SummaryPI[[#This Row],[ProposedkW]],\"\")","v":""},{"$f":"IF(Table_SummaryPI[[#This Row],[Notes]]<>\"\",Table_SummaryPI[[#This Row],[Notes]],\"\")","v":7.5},{"$f":"IF(Table_SummaryPI[[#This Row],[Incentive_Customer]]<>\"\",Table_SummaryPI[[#This Row],[Incentive_Customer]],0)","v":0},{"$f":"IF(Table_SummaryPI[[#This Row],[MeasureCost]]<>\"\",Table_SummaryPI[[#This Row],[MeasureCost]],0)","v":0},{"$f":"IF(Table_SummaryPI[[#This Row],[kWhSavings]]<>\"\",Table_SummaryPI[[#This Row],[kWhSavings]],0)","v":0},{"$f":"IF(Table_SummaryPI[[#This Row],[DemandSavingskW]]<>\"\",Table_SummaryPI[[#This Row],[DemandSavingskW]],0)","v":0}]
[{"$f":"Table_SummaryPI[[#This Row],[Line No.]]","v":""},{"$f":"IF(Table_PrintPI[[#This Row],[Line No.]]=\"\",\"\",CONCATENATE(Table_PrintPI[[#This Row],[Line No.]],\" - \",Table_SummaryPI[[#This Row],[MeasureName]]))","v":""},{"$f":"IF(Table_SummaryPI[[#This Row],[Manufacturer]]<>\"\",CONCATENATE(Table_SummaryPI[[#This Row],[Manufacturer]],\"/\",Table_SummaryPI[[#This Row],[Model'#]]),\"\")","v":""},{"$f":"IF(Table_SummaryPI[[#This Row],[Serial'#]]<>\"\",Table_SummaryPI[[#This Row],[Serial'#]],\"\")","v":""},{"$f":"IF(Table_SummaryPI[[#This Row],[Quantity]]<>\"\",Table_SummaryPI[[#This Row],[Quantity]],\"\")","v":""},{"$f":"IF(Table_SummaryPI[[#This Row],[BaselinekWh]]<>\"\",Table_SummaryPI[[#This Row],[BaselinekWh]],\"\")","v":""},{"$f":"IF(Table_SummaryPI[[#This Row],[BaselinekW]]<>\"\",Table_SummaryPI[[#This Row],[BaselinekW]],\"\")","v":""},{"$f":"IF(Table_SummaryPI[[#This Row],[ProposedkWh]]<>\"\",Table_SummaryPI[[#This Row],[ProposedkWh]],\"\")","v":""},{"$f":"IF(Table_SummaryPI[[#This Row],[ProposedkW]]<>\"\",Table_SummaryPI[[#This Row],[ProposedkW]],\"\")","v":""},{"$f":"IF(Table_SummaryPI[[#This Row],[Notes]]<>\"\",Table_SummaryPI[[#This Row],[Notes]],\"\")","v":7.5},{"$f":"IF(Table_SummaryPI[[#This Row],[Incentive_Customer]]<>\"\",Table_SummaryPI[[#This Row],[Incentive_Customer]],0)","v":0},{"$f":"IF(Table_SummaryPI[[#This Row],[MeasureCost]]<>\"\",Table_SummaryPI[[#This Row],[MeasureCost]],0)","v":0},{"$f":"IF(Table_SummaryPI[[#This Row],[kWhSavings]]<>\"\",Table_SummaryPI[[#This Row],[kWhSavings]],0)","v":0},{"$f":"IF(Table_SummaryPI[[#This Row],[DemandSavingskW]]<>\"\",Table_SummaryPI[[#This Row],[DemandSavingskW]],0)","v":0}]
[{"$f":"Table_SummaryPI[[#This Row],[Line No.]]","v":""},{"$f":"IF(Table_PrintPI[[#This Row],[Line No.]]=\"\",\"\",CONCATENATE(Table_PrintPI[[#This Row],[Line No.]],\" - \",Table_SummaryPI[[#This Row],[MeasureName]]))","v":""},{"$f":"IF(Table_SummaryPI[[#This Row],[Manufacturer]]<>\"\",CONCATENATE(Table_SummaryPI[[#This Row],[Manufacturer]],\"/\",Table_SummaryPI[[#This Row],[Model'#]]),\"\")","v":""},{"$f":"IF(Table_SummaryPI[[#This Row],[Serial'#]]<>\"\",Table_SummaryPI[[#This Row],[Serial'#]],\"\")","v":""},{"$f":"IF(Table_SummaryPI[[#This Row],[Quantity]]<>\"\",Table_SummaryPI[[#This Row],[Quantity]],\"\")","v":""},{"$f":"IF(Table_SummaryPI[[#This Row],[BaselinekWh]]<>\"\",Table_SummaryPI[[#This Row],[BaselinekWh]],\"\")","v":""},{"$f":"IF(Table_SummaryPI[[#This Row],[BaselinekW]]<>\"\",Table_SummaryPI[[#This Row],[BaselinekW]],\"\")","v":""},{"$f":"IF(Table_SummaryPI[[#This Row],[ProposedkWh]]<>\"\",Table_SummaryPI[[#This Row],[ProposedkWh]],\"\")","v":""},{"$f":"IF(Table_SummaryPI[[#This Row],[ProposedkW]]<>\"\",Table_SummaryPI[[#This Row],[ProposedkW]],\"\")","v":""},{"$f":"IF(Table_SummaryPI[[#This Row],[Notes]]<>\"\",Table_SummaryPI[[#This Row],[Notes]],\"\")","v":7.5},{"$f":"IF(Table_SummaryPI[[#This Row],[Incentive_Customer]]<>\"\",Table_SummaryPI[[#This Row],[Incentive_Customer]],0)","v":0},{"$f":"IF(Table_SummaryPI[[#This Row],[MeasureCost]]<>\"\",Table_SummaryPI[[#This Row],[MeasureCost]],0)","v":0},{"$f":"IF(Table_SummaryPI[[#This Row],[kWhSavings]]<>\"\",Table_SummaryPI[[#This Row],[kWhSavings]],0)","v":0},{"$f":"IF(Table_SummaryPI[[#This Row],[DemandSavingskW]]<>\"\",Table_SummaryPI[[#This Row],[DemandSavingskW]],0)","v":0}]
[{"$f":"Table_SummaryPI[[#This Row],[Line No.]]","v":""},{"$f":"IF(Table_PrintPI[[#This Row],[Line No.]]=\"\",\"\",CONCATENATE(Table_PrintPI[[#This Row],[Line No.]],\" - \",Table_SummaryPI[[#This Row],[MeasureName]]))","v":""},{"$f":"IF(Table_SummaryPI[[#This Row],[Manufacturer]]<>\"\",CONCATENATE(Table_SummaryPI[[#This Row],[Manufacturer]],\"/\",Table_SummaryPI[[#This Row],[Model'#]]),\"\")","v":""},{"$f":"IF(Table_SummaryPI[[#This Row],[Serial'#]]<>\"\",Table_SummaryPI[[#This Row],[Serial'#]],\"\")","v":""},{"$f":"IF(Table_SummaryPI[[#This Row],[Quantity]]<>\"\",Table_SummaryPI[[#This Row],[Quantity]],\"\")","v":""},{"$f":"IF(Table_SummaryPI[[#This Row],[BaselinekWh]]<>\"\",Table_SummaryPI[[#This Row],[BaselinekWh]],\"\")","v":""},{"$f":"IF(Table_SummaryPI[[#This Row],[BaselinekW]]<>\"\",Table_SummaryPI[[#This Row],[BaselinekW]],\"\")","v":""},{"$f":"IF(Table_SummaryPI[[#This Row],[ProposedkWh]]<>\"\",Table_SummaryPI[[#This Row],[ProposedkWh]],\"\")","v":""},{"$f":"IF(Table_SummaryPI[[#This Row],[ProposedkW]]<>\"\",Table_SummaryPI[[#This Row],[ProposedkW]],\"\")","v":""},{"$f":"IF(Table_SummaryPI[[#This Row],[Notes]]<>\"\",Table_SummaryPI[[#This Row],[Notes]],\"\")","v":""},{"$f":"IF(Table_SummaryPI[[#This Row],[Incentive_Customer]]<>\"\",Table_SummaryPI[[#This Row],[Incentive_Customer]],0)","v":0},{"$f":"IF(Table_SummaryPI[[#This Row],[MeasureCost]]<>\"\",Table_SummaryPI[[#This Row],[MeasureCost]],0)","v":0},{"$f":"IF(Table_SummaryPI[[#This Row],[kWhSavings]]<>\"\",Table_SummaryPI[[#This Row],[kWhSavings]],0)","v":0},{"$f":"IF(Table_SummaryPI[[#This Row],[DemandSavingskW]]<>\"\",Table_SummaryPI[[#This Row],[DemandSavingskW]],0)","v":0}]
[{"$f":"Table_SummaryPI[[#This Row],[Line No.]]","v":""},{"$f":"IF(Table_PrintPI[[#This Row],[Line No.]]=\"\",\"\",CONCATENATE(Table_PrintPI[[#This Row],[Line No.]],\" - \",Table_SummaryPI[[#This Row],[MeasureName]]))","v":""},{"$f":"IF(Table_SummaryPI[[#This Row],[Manufacturer]]<>\"\",CONCATENATE(Table_SummaryPI[[#This Row],[Manufacturer]],\"/\",Table_SummaryPI[[#This Row],[Model'#]]),\"\")","v":""},{"$f":"IF(Table_SummaryPI[[#This Row],[Serial'#]]<>\"\",Table_SummaryPI[[#This Row],[Serial'#]],\"\")","v":""},{"$f":"IF(Table_SummaryPI[[#This Row],[Quantity]]<>\"\",Table_SummaryPI[[#This Row],[Quantity]],\"\")","v":""},{"$f":"IF(Table_SummaryPI[[#This Row],[BaselinekWh]]<>\"\",Table_SummaryPI[[#This Row],[BaselinekWh]],\"\")","v":""},{"$f":"IF(Table_SummaryPI[[#This Row],[BaselinekW]]<>\"\",Table_SummaryPI[[#This Row],[BaselinekW]],\"\")","v":""},{"$f":"IF(Table_SummaryPI[[#This Row],[ProposedkWh]]<>\"\",Table_SummaryPI[[#This Row],[ProposedkWh]],\"\")","v":""},{"$f":"IF(Table_SummaryPI[[#This Row],[ProposedkW]]<>\"\",Table_SummaryPI[[#This Row],[ProposedkW]],\"\")","v":""},{"$f":"IF(Table_SummaryPI[[#This Row],[Notes]]<>\"\",Table_SummaryPI[[#This Row],[Notes]],\"\")","v":7.5},{"$f":"IF(Table_SummaryPI[[#This Row],[Incentive_Customer]]<>\"\",Table_SummaryPI[[#This Row],[Incentive_Customer]],0)","v":0},{"$f":"IF(Table_SummaryPI[[#This Row],[MeasureCost]]<>\"\",Table_SummaryPI[[#This Row],[MeasureCost]],0)","v":0},{"$f":"IF(Table_SummaryPI[[#This Row],[kWhSavings]]<>\"\",Table_SummaryPI[[#This Row],[kWhSavings]],0)","v":0},{"$f":"IF(Table_SummaryPI[[#This Row],[DemandSavingskW]]<>\"\",Table_SummaryPI[[#This Row],[DemandSavingskW]],0)","v":0}]
[{"$f":"Table_SummaryPI[[#This Row],[Line No.]]","v":""},{"$f":"IF(Table_PrintPI[[#This Row],[Line No.]]=\"\",\"\",CONCATENATE(Table_PrintPI[[#This Row],[Line No.]],\" - \",Table_SummaryPI[[#This Row],[MeasureName]]))","v":""},{"$f":"IF(Table_SummaryPI[[#This Row],[Manufacturer]]<>\"\",CONCATENATE(Table_SummaryPI[[#This Row],[Manufacturer]],\"/\",Table_SummaryPI[[#This Row],[Model'#]]),\"\")","v":""},{"$f":"IF(Table_SummaryPI[[#This Row],[Serial'#]]<>\"\",Table_SummaryPI[[#This Row],[Serial'#]],\"\")","v":""},{"$f":"IF(Table_SummaryPI[[#This Row],[Quantity]]<>\"\",Table_SummaryPI[[#This Row],[Quantity]],\"\")","v":""},{"$f":"IF(Table_SummaryPI[[#This Row],[BaselinekWh]]<>\"\",Table_SummaryPI[[#This Row],[BaselinekWh]],\"\")","v":""},{"$f":"IF(Table_SummaryPI[[#This Row],[BaselinekW]]<>\"\",Table_SummaryPI[[#This Row],[BaselinekW]],\"\")","v":""},{"$f":"IF(Table_SummaryPI[[#This Row],[ProposedkWh]]<>\"\",Table_SummaryPI[[#This Row],[ProposedkWh]],\"\")","v":""},{"$f":"IF(Table_SummaryPI[[#This Row],[ProposedkW]]<>\"\",Table_SummaryPI[[#This Row],[ProposedkW]],\"\")","v":""},{"$f":"IF(Table_SummaryPI[[#This Row],[Notes]]<>\"\",Table_SummaryPI[[#This Row],[Notes]],\"\")","v":""},{"$f":"IF(Table_SummaryPI[[#This Row],[Incentive_Customer]]<>\"\",Table_SummaryPI[[#This Row],[Incentive_Customer]],0)","v":0},{"$f":"IF(Table_SummaryPI[[#This Row],[MeasureCost]]<>\"\",Table_SummaryPI[[#This Row],[MeasureCost]],0)","v":0},{"$f":"IF(Table_SummaryPI[[#This Row],[kWhSavings]]<>\"\",Table_SummaryPI[[#This Row],[kWhSavings]],0)","v":0},{"$f":"IF(Table_SummaryPI[[#This Row],[DemandSavingskW]]<>\"\",Table_SummaryPI[[#This Row],[DemandSavingskW]],0)","v":0}]
[{"$f":"Table_SummaryPI[[#This Row],[Line No.]]","v":""},{"$f":"IF(Table_PrintPI[[#This Row],[Line No.]]=\"\",\"\",CONCATENATE(Table_PrintPI[[#This Row],[Line No.]],\" - \",Table_SummaryPI[[#This Row],[MeasureName]]))","v":""},{"$f":"IF(Table_SummaryPI[[#This Row],[Manufacturer]]<>\"\",CONCATENATE(Table_SummaryPI[[#This Row],[Manufacturer]],\"/\",Table_SummaryPI[[#This Row],[Model'#]]),\"\")","v":""},{"$f":"IF(Table_SummaryPI[[#This Row],[Serial'#]]<>\"\",Table_SummaryPI[[#This Row],[Serial'#]],\"\")","v":""},{"$f":"IF(Table_SummaryPI[[#This Row],[Quantity]]<>\"\",Table_SummaryPI[[#This Row],[Quantity]],\"\")","v":""},{"$f":"IF(Table_SummaryPI[[#This Row],[BaselinekWh]]<>\"\",Table_SummaryPI[[#This Row],[BaselinekWh]],\"\")","v":""},{"$f":"IF(Table_SummaryPI[[#This Row],[BaselinekW]]<>\"\",Table_SummaryPI[[#This Row],[BaselinekW]],\"\")","v":""},{"$f":"IF(Table_SummaryPI[[#This Row],[ProposedkWh]]<>\"\",Table_SummaryPI[[#This Row],[ProposedkWh]],\"\")","v":""},{"$f":"IF(Table_SummaryPI[[#This Row],[ProposedkW]]<>\"\",Table_SummaryPI[[#This Row],[ProposedkW]],\"\")","v":""},{"$f":"IF(Table_SummaryPI[[#This Row],[Notes]]<>\"\",Table_SummaryPI[[#This Row],[Notes]],\"\")","v":""},{"$f":"IF(Table_SummaryPI[[#This Row],[Incentive_Customer]]<>\"\",Table_SummaryPI[[#This Row],[Incentive_Customer]],0)","v":0},{"$f":"IF(Table_SummaryPI[[#This Row],[MeasureCost]]<>\"\",Table_SummaryPI[[#This Row],[MeasureCost]],0)","v":0},{"$f":"IF(Table_SummaryPI[[#This Row],[kWhSavings]]<>\"\",Table_SummaryPI[[#This Row],[kWhSavings]],0)","v":0},{"$f":"IF(Table_SummaryPI[[#This Row],[DemandSavingskW]]<>\"\",Table_SummaryPI[[#This Row],[DemandSavingskW]],0)","v":0}]
[{"$f":"Table_SummaryPI[[#This Row],[Line No.]]","v":""},{"$f":"IF(Table_PrintPI[[#This Row],[Line No.]]=\"\",\"\",CONCATENATE(Table_PrintPI[[#This Row],[Line No.]],\" - \",Table_SummaryPI[[#This Row],[MeasureName]]))","v":""},{"$f":"IF(Table_SummaryPI[[#This Row],[Manufacturer]]<>\"\",CONCATENATE(Table_SummaryPI[[#This Row],[Manufacturer]],\"/\",Table_SummaryPI[[#This Row],[Model'#]]),\"\")","v":""},{"$f":"IF(Table_SummaryPI[[#This Row],[Serial'#]]<>\"\",Table_SummaryPI[[#This Row],[Serial'#]],\"\")","v":""},{"$f":"IF(Table_SummaryPI[[#This Row],[Quantity]]<>\"\",Table_SummaryPI[[#This Row],[Quantity]],\"\")","v":""},{"$f":"IF(Table_SummaryPI[[#This Row],[BaselinekWh]]<>\"\",Table_SummaryPI[[#This Row],[BaselinekWh]],\"\")","v":""},{"$f":"IF(Table_SummaryPI[[#This Row],[BaselinekW]]<>\"\",Table_SummaryPI[[#This Row],[BaselinekW]],\"\")","v":""},{"$f":"IF(Table_SummaryPI[[#This Row],[ProposedkWh]]<>\"\",Table_SummaryPI[[#This Row],[ProposedkWh]],\"\")","v":""},{"$f":"IF(Table_SummaryPI[[#This Row],[ProposedkW]]<>\"\",Table_SummaryPI[[#This Row],[ProposedkW]],\"\")","v":""},{"$f":"IF(Table_SummaryPI[[#This Row],[Notes]]<>\"\",Table_SummaryPI[[#This Row],[Notes]],\"\")","v":""},{"$f":"IF(Table_SummaryPI[[#This Row],[Incentive_Customer]]<>\"\",Table_SummaryPI[[#This Row],[Incentive_Customer]],0)","v":0},{"$f":"IF(Table_SummaryPI[[#This Row],[MeasureCost]]<>\"\",Table_SummaryPI[[#This Row],[MeasureCost]],0)","v":0},{"$f":"IF(Table_SummaryPI[[#This Row],[kWhSavings]]<>\"\",Table_SummaryPI[[#This Row],[kWhSavings]],0)","v":0},{"$f":"IF(Table_SummaryPI[[#This Row],[DemandSavingskW]]<>\"\",Table_SummaryPI[[#This Row],[DemandSavingskW]],0)","v":0}]
[{"$f":"Table_SummaryPI[[#This Row],[Line No.]]","v":""},{"$f":"IF(Table_PrintPI[[#This Row],[Line No.]]=\"\",\"\",CONCATENATE(Table_PrintPI[[#This Row],[Line No.]],\" - \",Table_SummaryPI[[#This Row],[MeasureName]]))","v":""},{"$f":"IF(Table_SummaryPI[[#This Row],[Manufacturer]]<>\"\",CONCATENATE(Table_SummaryPI[[#This Row],[Manufacturer]],\"/\",Table_SummaryPI[[#This Row],[Model'#]]),\"\")","v":""},{"$f":"IF(Table_SummaryPI[[#This Row],[Serial'#]]<>\"\",Table_SummaryPI[[#This Row],[Serial'#]],\"\")","v":""},{"$f":"IF(Table_SummaryPI[[#This Row],[Quantity]]<>\"\",Table_SummaryPI[[#This Row],[Quantity]],\"\")","v":""},{"$f":"IF(Table_SummaryPI[[#This Row],[BaselinekWh]]<>\"\",Table_SummaryPI[[#This Row],[BaselinekWh]],\"\")","v":""},{"$f":"IF(Table_SummaryPI[[#This Row],[BaselinekW]]<>\"\",Table_SummaryPI[[#This Row],[BaselinekW]],\"\")","v":""},{"$f":"IF(Table_SummaryPI[[#This Row],[ProposedkWh]]<>\"\",Table_SummaryPI[[#This Row],[ProposedkWh]],\"\")","v":""},{"$f":"IF(Table_SummaryPI[[#This Row],[ProposedkW]]<>\"\",Table_SummaryPI[[#This Row],[ProposedkW]],\"\")","v":""},{"$f":"IF(Table_SummaryPI[[#This Row],[Notes]]<>\"\",Table_SummaryPI[[#This Row],[Notes]],\"\")","v":""},{"$f":"IF(Table_SummaryPI[[#This Row],[Incentive_Customer]]<>\"\",Table_SummaryPI[[#This Row],[Incentive_Customer]],0)","v":0},{"$f":"IF(Table_SummaryPI[[#This Row],[MeasureCost]]<>\"\",Table_SummaryPI[[#This Row],[MeasureCost]],0)","v":0},{"$f":"IF(Table_SummaryPI[[#This Row],[kWhSavings]]<>\"\",Table_SummaryPI[[#This Row],[kWhSavings]],0)","v":0},{"$f":"IF(Table_SummaryPI[[#This Row],[DemandSavingskW]]<>\"\",Table_SummaryPI[[#This Row],[DemandSavingskW]],0)","v":0}]
[{"$f":"Table_SummaryPI[[#This Row],[Line No.]]","v":""},{"$f":"IF(Table_PrintPI[[#This Row],[Line No.]]=\"\",\"\",CONCATENATE(Table_PrintPI[[#This Row],[Line No.]],\" - \",Table_SummaryPI[[#This Row],[MeasureName]]))","v":""},{"$f":"IF(Table_SummaryPI[[#This Row],[Manufacturer]]<>\"\",CONCATENATE(Table_SummaryPI[[#This Row],[Manufacturer]],\"/\",Table_SummaryPI[[#This Row],[Model'#]]),\"\")","v":""},{"$f":"IF(Table_SummaryPI[[#This Row],[Serial'#]]<>\"\",Table_SummaryPI[[#This Row],[Serial'#]],\"\")","v":""},{"$f":"IF(Table_SummaryPI[[#This Row],[Quantity]]<>\"\",Table_SummaryPI[[#This Row],[Quantity]],\"\")","v":""},{"$f":"IF(Table_SummaryPI[[#This Row],[BaselinekWh]]<>\"\",Table_SummaryPI[[#This Row],[BaselinekWh]],\"\")","v":""},{"$f":"IF(Table_SummaryPI[[#This Row],[BaselinekW]]<>\"\",Table_SummaryPI[[#This Row],[BaselinekW]],\"\")","v":""},{"$f":"IF(Table_SummaryPI[[#This Row],[ProposedkWh]]<>\"\",Table_SummaryPI[[#This Row],[ProposedkWh]],\"\")","v":""},{"$f":"IF(Table_SummaryPI[[#This Row],[ProposedkW]]<>\"\",Table_SummaryPI[[#This Row],[ProposedkW]],\"\")","v":""},{"$f":"IF(Table_SummaryPI[[#This Row],[Notes]]<>\"\",Table_SummaryPI[[#This Row],[Notes]],\"\")","v":""},{"$f":"IF(Table_SummaryPI[[#This Row],[Incentive_Customer]]<>\"\",Table_SummaryPI[[#This Row],[Incentive_Customer]],0)","v":0},{"$f":"IF(Table_SummaryPI[[#This Row],[MeasureCost]]<>\"\",Table_SummaryPI[[#This Row],[MeasureCost]],0)","v":0},{"$f":"IF(Table_SummaryPI[[#This Row],[kWhSavings]]<>\"\",Table_SummaryPI[[#This Row],[kWhSavings]],0)","v":0},{"$f":"IF(Table_SummaryPI[[#This Row],[DemandSavingskW]]<>\"\",Table_SummaryPI[[#This Row],[DemandSavingskW]],0)","v":0}]
[{"$f":"Table_SummaryPI[[#This Row],[Line No.]]","v":""},{"$f":"IF(Table_PrintPI[[#This Row],[Line No.]]=\"\",\"\",CONCATENATE(Table_PrintPI[[#This Row],[Line No.]],\" - \",Table_SummaryPI[[#This Row],[MeasureName]]))","v":""},{"$f":"IF(Table_SummaryPI[[#This Row],[Manufacturer]]<>\"\",CONCATENATE(Table_SummaryPI[[#This Row],[Manufacturer]],\"/\",Table_SummaryPI[[#This Row],[Model'#]]),\"\")","v":""},{"$f":"IF(Table_SummaryPI[[#This Row],[Serial'#]]<>\"\",Table_SummaryPI[[#This Row],[Serial'#]],\"\")","v":""},{"$f":"IF(Table_SummaryPI[[#This Row],[Quantity]]<>\"\",Table_SummaryPI[[#This Row],[Quantity]],\"\")","v":""},{"$f":"IF(Table_SummaryPI[[#This Row],[BaselinekWh]]<>\"\",Table_SummaryPI[[#This Row],[BaselinekWh]],\"\")","v":""},{"$f":"IF(Table_SummaryPI[[#This Row],[BaselinekW]]<>\"\",Table_SummaryPI[[#This Row],[BaselinekW]],\"\")","v":""},{"$f":"IF(Table_SummaryPI[[#This Row],[ProposedkWh]]<>\"\",Table_SummaryPI[[#This Row],[ProposedkWh]],\"\")","v":""},{"$f":"IF(Table_SummaryPI[[#This Row],[ProposedkW]]<>\"\",Table_SummaryPI[[#This Row],[ProposedkW]],\"\")","v":""},{"$f":"IF(Table_SummaryPI[[#This Row],[Notes]]<>\"\",Table_SummaryPI[[#This Row],[Notes]],\"\")","v":""},{"$f":"IF(Table_SummaryPI[[#This Row],[Incentive_Customer]]<>\"\",Table_SummaryPI[[#This Row],[Incentive_Customer]],0)","v":0},{"$f":"IF(Table_SummaryPI[[#This Row],[MeasureCost]]<>\"\",Table_SummaryPI[[#This Row],[MeasureCost]],0)","v":0},{"$f":"IF(Table_SummaryPI[[#This Row],[kWhSavings]]<>\"\",Table_SummaryPI[[#This Row],[kWhSavings]],0)","v":0},{"$f":"IF(Table_SummaryPI[[#This Row],[DemandSavingskW]]<>\"\",Table_SummaryPI[[#This Row],[DemandSavingskW]],0)","v":0}]
[{"$f":"Table_SummaryPI[[#This Row],[Line No.]]","v":""},{"$f":"IF(Table_PrintPI[[#This Row],[Line No.]]=\"\",\"\",CONCATENATE(Table_PrintPI[[#This Row],[Line No.]],\" - \",Table_SummaryPI[[#This Row],[MeasureName]]))","v":""},{"$f":"IF(Table_SummaryPI[[#This Row],[Manufacturer]]<>\"\",CONCATENATE(Table_SummaryPI[[#This Row],[Manufacturer]],\"/\",Table_SummaryPI[[#This Row],[Model'#]]),\"\")","v":""},{"$f":"IF(Table_SummaryPI[[#This Row],[Serial'#]]<>\"\",Table_SummaryPI[[#This Row],[Serial'#]],\"\")","v":""},{"$f":"IF(Table_SummaryPI[[#This Row],[Quantity]]<>\"\",Table_SummaryPI[[#This Row],[Quantity]],\"\")","v":""},{"$f":"IF(Table_SummaryPI[[#This Row],[BaselinekWh]]<>\"\",Table_SummaryPI[[#This Row],[BaselinekWh]],\"\")","v":""},{"$f":"IF(Table_SummaryPI[[#This Row],[BaselinekW]]<>\"\",Table_SummaryPI[[#This Row],[BaselinekW]],\"\")","v":""},{"$f":"IF(Table_SummaryPI[[#This Row],[ProposedkWh]]<>\"\",Table_SummaryPI[[#This Row],[ProposedkWh]],\"\")","v":""},{"$f":"IF(Table_SummaryPI[[#This Row],[ProposedkW]]<>\"\",Table_SummaryPI[[#This Row],[ProposedkW]],\"\")","v":""},{"$f":"IF(Table_SummaryPI[[#This Row],[Notes]]<>\"\",Table_SummaryPI[[#This Row],[Notes]],\"\")","v":""},{"$f":"IF(Table_SummaryPI[[#This Row],[Incentive_Customer]]<>\"\",Table_SummaryPI[[#This Row],[Incentive_Customer]],0)","v":0},{"$f":"IF(Table_SummaryPI[[#This Row],[MeasureCost]]<>\"\",Table_SummaryPI[[#This Row],[MeasureCost]],0)","v":0},{"$f":"IF(Table_SummaryPI[[#This Row],[kWhSavings]]<>\"\",Table_SummaryPI[[#This Row],[kWhSavings]],0)","v":0},{"$f":"IF(Table_SummaryPI[[#This Row],[DemandSavingskW]]<>\"\",Table_SummaryPI[[#This Row],[DemandSavingskW]],0)","v":0}]
[{"$f":"Table_SummaryPI[[#This Row],[Line No.]]","v":""},{"$f":"IF(Table_PrintPI[[#This Row],[Line No.]]=\"\",\"\",CONCATENATE(Table_PrintPI[[#This Row],[Line No.]],\" - \",Table_SummaryPI[[#This Row],[MeasureName]]))","v":""},{"$f":"IF(Table_SummaryPI[[#This Row],[Manufacturer]]<>\"\",CONCATENATE(Table_SummaryPI[[#This Row],[Manufacturer]],\"/\",Table_SummaryPI[[#This Row],[Model'#]]),\"\")","v":""},{"$f":"IF(Table_SummaryPI[[#This Row],[Serial'#]]<>\"\",Table_SummaryPI[[#This Row],[Serial'#]],\"\")","v":""},{"$f":"IF(Table_SummaryPI[[#This Row],[Quantity]]<>\"\",Table_SummaryPI[[#This Row],[Quantity]],\"\")","v":""},{"$f":"IF(Table_SummaryPI[[#This Row],[BaselinekWh]]<>\"\",Table_SummaryPI[[#This Row],[BaselinekWh]],\"\")","v":""},{"$f":"IF(Table_SummaryPI[[#This Row],[BaselinekW]]<>\"\",Table_SummaryPI[[#This Row],[BaselinekW]],\"\")","v":""},{"$f":"IF(Table_SummaryPI[[#This Row],[ProposedkWh]]<>\"\",Table_SummaryPI[[#This Row],[ProposedkWh]],\"\")","v":""},{"$f":"IF(Table_SummaryPI[[#This Row],[ProposedkW]]<>\"\",Table_SummaryPI[[#This Row],[ProposedkW]],\"\")","v":""},{"$f":"IF(Table_SummaryPI[[#This Row],[Notes]]<>\"\",Table_SummaryPI[[#This Row],[Notes]],\"\")","v":""},{"$f":"IF(Table_SummaryPI[[#This Row],[Incentive_Customer]]<>\"\",Table_SummaryPI[[#This Row],[Incentive_Customer]],0)","v":0},{"$f":"IF(Table_SummaryPI[[#This Row],[MeasureCost]]<>\"\",Table_SummaryPI[[#This Row],[MeasureCost]],0)","v":0},{"$f":"IF(Table_SummaryPI[[#This Row],[kWhSavings]]<>\"\",Table_SummaryPI[[#This Row],[kWhSavings]],0)","v":0},{"$f":"IF(Table_SummaryPI[[#This Row],[DemandSavingskW]]<>\"\",Table_SummaryPI[[#This Row],[DemandSavingskW]],0)","v":0}]
[{"$f":"Table_SummaryPI[[#This Row],[Line No.]]","v":""},{"$f":"IF(Table_PrintPI[[#This Row],[Line No.]]=\"\",\"\",CONCATENATE(Table_PrintPI[[#This Row],[Line No.]],\" - \",Table_SummaryPI[[#This Row],[MeasureName]]))","v":""},{"$f":"IF(Table_SummaryPI[[#This Row],[Manufacturer]]<>\"\",CONCATENATE(Table_SummaryPI[[#This Row],[Manufacturer]],\"/\",Table_SummaryPI[[#This Row],[Model'#]]),\"\")","v":""},{"$f":"IF(Table_SummaryPI[[#This Row],[Serial'#]]<>\"\",Table_SummaryPI[[#This Row],[Serial'#]],\"\")","v":""},{"$f":"IF(Table_SummaryPI[[#This Row],[Quantity]]<>\"\",Table_SummaryPI[[#This Row],[Quantity]],\"\")","v":""},{"$f":"IF(Table_SummaryPI[[#This Row],[BaselinekWh]]<>\"\",Table_SummaryPI[[#This Row],[BaselinekWh]],\"\")","v":""},{"$f":"IF(Table_SummaryPI[[#This Row],[BaselinekW]]<>\"\",Table_SummaryPI[[#This Row],[BaselinekW]],\"\")","v":""},{"$f":"IF(Table_SummaryPI[[#This Row],[ProposedkWh]]<>\"\",Table_SummaryPI[[#This Row],[ProposedkWh]],\"\")","v":""},{"$f":"IF(Table_SummaryPI[[#This Row],[ProposedkW]]<>\"\",Table_SummaryPI[[#This Row],[ProposedkW]],\"\")","v":""},{"$f":"IF(Table_SummaryPI[[#This Row],[Notes]]<>\"\",Table_SummaryPI[[#This Row],[Notes]],\"\")","v":""},{"$f":"IF(Table_SummaryPI[[#This Row],[Incentive_Customer]]<>\"\",Table_SummaryPI[[#This Row],[Incentive_Customer]],0)","v":0},{"$f":"IF(Table_SummaryPI[[#This Row],[MeasureCost]]<>\"\",Table_SummaryPI[[#This Row],[MeasureCost]],0)","v":0},{"$f":"IF(Table_SummaryPI[[#This Row],[kWhSavings]]<>\"\",Table_SummaryPI[[#This Row],[kWhSavings]],0)","v":0},{"$f":"IF(Table_SummaryPI[[#This Row],[DemandSavingskW]]<>\"\",Table_SummaryPI[[#This Row],[DemandSavingskW]],0)","v":0}]
[{"$f":"Table_SummaryPI[[#This Row],[Line No.]]","v":""},{"$f":"IF(Table_PrintPI[[#This Row],[Line No.]]=\"\",\"\",CONCATENATE(Table_PrintPI[[#This Row],[Line No.]],\" - \",Table_SummaryPI[[#This Row],[MeasureName]]))","v":""},{"$f":"IF(Table_SummaryPI[[#This Row],[Manufacturer]]<>\"\",CONCATENATE(Table_SummaryPI[[#This Row],[Manufacturer]],\"/\",Table_SummaryPI[[#This Row],[Model'#]]),\"\")","v":""},{"$f":"IF(Table_SummaryPI[[#This Row],[Serial'#]]<>\"\",Table_SummaryPI[[#This Row],[Serial'#]],\"\")","v":""},{"$f":"IF(Table_SummaryPI[[#This Row],[Quantity]]<>\"\",Table_SummaryPI[[#This Row],[Quantity]],\"\")","v":""},{"$f":"IF(Table_SummaryPI[[#This Row],[BaselinekWh]]<>\"\",Table_SummaryPI[[#This Row],[BaselinekWh]],\"\")","v":""},{"$f":"IF(Table_SummaryPI[[#This Row],[BaselinekW]]<>\"\",Table_SummaryPI[[#This Row],[BaselinekW]],\"\")","v":""},{"$f":"IF(Table_SummaryPI[[#This Row],[ProposedkWh]]<>\"\",Table_SummaryPI[[#This Row],[ProposedkWh]],\"\")","v":""},{"$f":"IF(Table_SummaryPI[[#This Row],[ProposedkW]]<>\"\",Table_SummaryPI[[#This Row],[ProposedkW]],\"\")","v":""},{"$f":"IF(Table_SummaryPI[[#This Row],[Notes]]<>\"\",Table_SummaryPI[[#This Row],[Notes]],\"\")","v":""},{"$f":"IF(Table_SummaryPI[[#This Row],[Incentive_Customer]]<>\"\",Table_SummaryPI[[#This Row],[Incentive_Customer]],0)","v":0},{"$f":"IF(Table_SummaryPI[[#This Row],[MeasureCost]]<>\"\",Table_SummaryPI[[#This Row],[MeasureCost]],0)","v":0},{"$f":"IF(Table_SummaryPI[[#This Row],[kWhSavings]]<>\"\",Table_SummaryPI[[#This Row],[kWhSavings]],0)","v":0},{"$f":"IF(Table_SummaryPI[[#This Row],[DemandSavingskW]]<>\"\",Table_SummaryPI[[#This Row],[DemandSavingskW]],0)","v":0}]
[{"$f":"Table_SummaryPI[[#This Row],[Line No.]]","v":""},{"$f":"IF(Table_PrintPI[[#This Row],[Line No.]]=\"\",\"\",CONCATENATE(Table_PrintPI[[#This Row],[Line No.]],\" - \",Table_SummaryPI[[#This Row],[MeasureName]]))","v":""},{"$f":"IF(Table_SummaryPI[[#This Row],[Manufacturer]]<>\"\",CONCATENATE(Table_SummaryPI[[#This Row],[Manufacturer]],\"/\",Table_SummaryPI[[#This Row],[Model'#]]),\"\")","v":""},{"$f":"IF(Table_SummaryPI[[#This Row],[Serial'#]]<>\"\",Table_SummaryPI[[#This Row],[Serial'#]],\"\")","v":""},{"$f":"IF(Table_SummaryPI[[#This Row],[Quantity]]<>\"\",Table_SummaryPI[[#This Row],[Quantity]],\"\")","v":""},{"$f":"IF(Table_SummaryPI[[#This Row],[BaselinekWh]]<>\"\",Table_SummaryPI[[#This Row],[BaselinekWh]],\"\")","v":""},{"$f":"IF(Table_SummaryPI[[#This Row],[BaselinekW]]<>\"\",Table_SummaryPI[[#This Row],[BaselinekW]],\"\")","v":""},{"$f":"IF(Table_SummaryPI[[#This Row],[ProposedkWh]]<>\"\",Table_SummaryPI[[#This Row],[ProposedkWh]],\"\")","v":""},{"$f":"IF(Table_SummaryPI[[#This Row],[ProposedkW]]<>\"\",Table_SummaryPI[[#This Row],[ProposedkW]],\"\")","v":""},{"$f":"IF(Table_SummaryPI[[#This Row],[Notes]]<>\"\",Table_SummaryPI[[#This Row],[Notes]],\"\")","v":""},{"$f":"IF(Table_SummaryPI[[#This Row],[Incentive_Customer]]<>\"\",Table_SummaryPI[[#This Row],[Incentive_Customer]],0)","v":0},{"$f":"IF(Table_SummaryPI[[#This Row],[MeasureCost]]<>\"\",Table_SummaryPI[[#This Row],[MeasureCost]],0)","v":0},{"$f":"IF(Table_SummaryPI[[#This Row],[kWhSavings]]<>\"\",Table_SummaryPI[[#This Row],[kWhSavings]],0)","v":0},{"$f":"IF(Table_SummaryPI[[#This Row],[DemandSavingskW]]<>\"\",Table_SummaryPI[[#This Row],[DemandSavingskW]],0)","v":0}]
[{"$f":"Table_SummaryPI[[#This Row],[Line No.]]","v":""},{"$f":"IF(Table_PrintPI[[#This Row],[Line No.]]=\"\",\"\",CONCATENATE(Table_PrintPI[[#This Row],[Line No.]],\" - \",Table_SummaryPI[[#This Row],[MeasureName]]))","v":""},{"$f":"IF(Table_SummaryPI[[#This Row],[Manufacturer]]<>\"\",CONCATENATE(Table_SummaryPI[[#This Row],[Manufacturer]],\"/\",Table_SummaryPI[[#This Row],[Model'#]]),\"\")","v":""},{"$f":"IF(Table_SummaryPI[[#This Row],[Serial'#]]<>\"\",Table_SummaryPI[[#This Row],[Serial'#]],\"\")","v":""},{"$f":"IF(Table_SummaryPI[[#This Row],[Quantity]]<>\"\",Table_SummaryPI[[#This Row],[Quantity]],\"\")","v":""},{"$f":"IF(Table_SummaryPI[[#This Row],[BaselinekWh]]<>\"\",Table_SummaryPI[[#This Row],[BaselinekWh]],\"\")","v":""},{"$f":"IF(Table_SummaryPI[[#This Row],[BaselinekW]]<>\"\",Table_SummaryPI[[#This Row],[BaselinekW]],\"\")","v":""},{"$f":"IF(Table_SummaryPI[[#This Row],[ProposedkWh]]<>\"\",Table_SummaryPI[[#This Row],[ProposedkWh]],\"\")","v":""},{"$f":"IF(Table_SummaryPI[[#This Row],[ProposedkW]]<>\"\",Table_SummaryPI[[#This Row],[ProposedkW]],\"\")","v":""},{"$f":"IF(Table_SummaryPI[[#This Row],[Notes]]<>\"\",Table_SummaryPI[[#This Row],[Notes]],\"\")","v":""},{"$f":"IF(Table_SummaryPI[[#This Row],[Incentive_Customer]]<>\"\",Table_SummaryPI[[#This Row],[Incentive_Customer]],0)","v":0},{"$f":"IF(Table_SummaryPI[[#This Row],[MeasureCost]]<>\"\",Table_SummaryPI[[#This Row],[MeasureCost]],0)","v":0},{"$f":"IF(Table_SummaryPI[[#This Row],[kWhSavings]]<>\"\",Table_SummaryPI[[#This Row],[kWhSavings]],0)","v":0},{"$f":"IF(Table_SummaryPI[[#This Row],[DemandSavingskW]]<>\"\",Table_SummaryPI[[#This Row],[DemandSavingskW]],0)","v":0}]
[{"$f":"Table_SummaryPI[[#This Row],[Line No.]]","v":""},{"$f":"IF(Table_PrintPI[[#This Row],[Line No.]]=\"\",\"\",CONCATENATE(Table_PrintPI[[#This Row],[Line No.]],\" - \",Table_SummaryPI[[#This Row],[MeasureName]]))","v":""},{"$f":"IF(Table_SummaryPI[[#This Row],[Manufacturer]]<>\"\",CONCATENATE(Table_SummaryPI[[#This Row],[Manufacturer]],\"/\",Table_SummaryPI[[#This Row],[Model'#]]),\"\")","v":""},{"$f":"IF(Table_SummaryPI[[#This Row],[Serial'#]]<>\"\",Table_SummaryPI[[#This Row],[Serial'#]],\"\")","v":""},{"$f":"IF(Table_SummaryPI[[#This Row],[Quantity]]<>\"\",Table_SummaryPI[[#This Row],[Quantity]],\"\")","v":""},{"$f":"IF(Table_SummaryPI[[#This Row],[BaselinekWh]]<>\"\",Table_SummaryPI[[#This Row],[BaselinekWh]],\"\")","v":""},{"$f":"IF(Table_SummaryPI[[#This Row],[BaselinekW]]<>\"\",Table_SummaryPI[[#This Row],[BaselinekW]],\"\")","v":""},{"$f":"IF(Table_SummaryPI[[#This Row],[ProposedkWh]]<>\"\",Table_SummaryPI[[#This Row],[ProposedkWh]],\"\")","v":""},{"$f":"IF(Table_SummaryPI[[#This Row],[ProposedkW]]<>\"\",Table_SummaryPI[[#This Row],[ProposedkW]],\"\")","v":""},{"$f":"IF(Table_SummaryPI[[#This Row],[Notes]]<>\"\",Table_SummaryPI[[#This Row],[Notes]],\"\")","v":""},{"$f":"IF(Table_SummaryPI[[#This Row],[Incentive_Customer]]<>\"\",Table_SummaryPI[[#This Row],[Incentive_Customer]],0)","v":0},{"$f":"IF(Table_SummaryPI[[#This Row],[MeasureCost]]<>\"\",Table_SummaryPI[[#This Row],[MeasureCost]],0)","v":0},{"$f":"IF(Table_SummaryPI[[#This Row],[kWhSavings]]<>\"\",Table_SummaryPI[[#This Row],[kWhSavings]],0)","v":0},{"$f":"IF(Table_SummaryPI[[#This Row],[DemandSavingskW]]<>\"\",Table_SummaryPI[[#This Row],[DemandSavingskW]],0)","v":0}]
[{"$f":"Table_SummaryPI[[#This Row],[Line No.]]","v":""},{"$f":"IF(Table_PrintPI[[#This Row],[Line No.]]=\"\",\"\",CONCATENATE(Table_PrintPI[[#This Row],[Line No.]],\" - \",Table_SummaryPI[[#This Row],[MeasureName]]))","v":""},{"$f":"IF(Table_SummaryPI[[#This Row],[Manufacturer]]<>\"\",CONCATENATE(Table_SummaryPI[[#This Row],[Manufacturer]],\"/\",Table_SummaryPI[[#This Row],[Model'#]]),\"\")","v":""},{"$f":"IF(Table_SummaryPI[[#This Row],[Serial'#]]<>\"\",Table_SummaryPI[[#This Row],[Serial'#]],\"\")","v":""},{"$f":"IF(Table_SummaryPI[[#This Row],[Quantity]]<>\"\",Table_SummaryPI[[#This Row],[Quantity]],\"\")","v":""},{"$f":"IF(Table_SummaryPI[[#This Row],[BaselinekWh]]<>\"\",Table_SummaryPI[[#This Row],[BaselinekWh]],\"\")","v":""},{"$f":"IF(Table_SummaryPI[[#This Row],[BaselinekW]]<>\"\",Table_SummaryPI[[#This Row],[BaselinekW]],\"\")","v":""},{"$f":"IF(Table_SummaryPI[[#This Row],[ProposedkWh]]<>\"\",Table_SummaryPI[[#This Row],[ProposedkWh]],\"\")","v":""},{"$f":"IF(Table_SummaryPI[[#This Row],[ProposedkW]]<>\"\",Table_SummaryPI[[#This Row],[ProposedkW]],\"\")","v":""},{"$f":"IF(Table_SummaryPI[[#This Row],[Notes]]<>\"\",Table_SummaryPI[[#This Row],[Notes]],\"\")","v":""},{"$f":"IF(Table_SummaryPI[[#This Row],[Incentive_Customer]]<>\"\",Table_SummaryPI[[#This Row],[Incentive_Customer]],0)","v":0},{"$f":"IF(Table_SummaryPI[[#This Row],[MeasureCost]]<>\"\",Table_SummaryPI[[#This Row],[MeasureCost]],0)","v":0},{"$f":"IF(Table_SummaryPI[[#This Row],[kWhSavings]]<>\"\",Table_SummaryPI[[#This Row],[kWhSavings]],0)","v":0},{"$f":"IF(Table_SummaryPI[[#This Row],[DemandSavingskW]]<>\"\",Table_SummaryPI[[#This Row],[DemandSavingskW]],0)","v":0}]
[{"$f":"Table_SummaryPI[[#This Row],[Line No.]]","v":""},{"$f":"IF(Table_PrintPI[[#This Row],[Line No.]]=\"\",\"\",CONCATENATE(Table_PrintPI[[#This Row],[Line No.]],\" - \",Table_SummaryPI[[#This Row],[MeasureName]]))","v":""},{"$f":"IF(Table_SummaryPI[[#This Row],[Manufacturer]]<>\"\",CONCATENATE(Table_SummaryPI[[#This Row],[Manufacturer]],\"/\",Table_SummaryPI[[#This Row],[Model'#]]),\"\")","v":""},{"$f":"IF(Table_SummaryPI[[#This Row],[Serial'#]]<>\"\",Table_SummaryPI[[#This Row],[Serial'#]],\"\")","v":""},{"$f":"IF(Table_SummaryPI[[#This Row],[Quantity]]<>\"\",Table_SummaryPI[[#This Row],[Quantity]],\"\")","v":""},{"$f":"IF(Table_SummaryPI[[#This Row],[BaselinekWh]]<>\"\",Table_SummaryPI[[#This Row],[BaselinekWh]],\"\")","v":""},{"$f":"IF(Table_SummaryPI[[#This Row],[BaselinekW]]<>\"\",Table_SummaryPI[[#This Row],[BaselinekW]],\"\")","v":""},{"$f":"IF(Table_SummaryPI[[#This Row],[ProposedkWh]]<>\"\",Table_SummaryPI[[#This Row],[ProposedkWh]],\"\")","v":""},{"$f":"IF(Table_SummaryPI[[#This Row],[ProposedkW]]<>\"\",Table_SummaryPI[[#This Row],[ProposedkW]],\"\")","v":""},{"$f":"IF(Table_SummaryPI[[#This Row],[Notes]]<>\"\",Table_SummaryPI[[#This Row],[Notes]],\"\")","v":""},{"$f":"IF(Table_SummaryPI[[#This Row],[Incentive_Customer]]<>\"\",Table_SummaryPI[[#This Row],[Incentive_Customer]],0)","v":0},{"$f":"IF(Table_SummaryPI[[#This Row],[MeasureCost]]<>\"\",Table_SummaryPI[[#This Row],[MeasureCost]],0)","v":0},{"$f":"IF(Table_SummaryPI[[#This Row],[kWhSavings]]<>\"\",Table_SummaryPI[[#This Row],[kWhSavings]],0)","v":0},{"$f":"IF(Table_SummaryPI[[#This Row],[DemandSavingskW]]<>\"\",Table_SummaryPI[[#This Row],[DemandSavingskW]],0)","v":0}]
[{"$f":"Table_SummaryPI[[#This Row],[Line No.]]","v":""},{"$f":"IF(Table_PrintPI[[#This Row],[Line No.]]=\"\",\"\",CONCATENATE(Table_PrintPI[[#This Row],[Line No.]],\" - \",Table_SummaryPI[[#This Row],[MeasureName]]))","v":""},{"$f":"IF(Table_SummaryPI[[#This Row],[Manufacturer]]<>\"\",CONCATENATE(Table_SummaryPI[[#This Row],[Manufacturer]],\"/\",Table_SummaryPI[[#This Row],[Model'#]]),\"\")","v":""},{"$f":"IF(Table_SummaryPI[[#This Row],[Serial'#]]<>\"\",Table_SummaryPI[[#This Row],[Serial'#]],\"\")","v":""},{"$f":"IF(Table_SummaryPI[[#This Row],[Quantity]]<>\"\",Table_SummaryPI[[#This Row],[Quantity]],\"\")","v":""},{"$f":"IF(Table_SummaryPI[[#This Row],[BaselinekWh]]<>\"\",Table_SummaryPI[[#This Row],[BaselinekWh]],\"\")","v":""},{"$f":"IF(Table_SummaryPI[[#This Row],[BaselinekW]]<>\"\",Table_SummaryPI[[#This Row],[BaselinekW]],\"\")","v":""},{"$f":"IF(Table_SummaryPI[[#This Row],[ProposedkWh]]<>\"\",Table_SummaryPI[[#This Row],[ProposedkWh]],\"\")","v":""},{"$f":"IF(Table_SummaryPI[[#This Row],[ProposedkW]]<>\"\",Table_SummaryPI[[#This Row],[ProposedkW]],\"\")","v":""},{"$f":"IF(Table_SummaryPI[[#This Row],[Notes]]<>\"\",Table_SummaryPI[[#This Row],[Notes]],\"\")","v":""},{"$f":"IF(Table_SummaryPI[[#This Row],[Incentive_Customer]]<>\"\",Table_SummaryPI[[#This Row],[Incentive_Customer]],0)","v":0},{"$f":"IF(Table_SummaryPI[[#This Row],[MeasureCost]]<>\"\",Table_SummaryPI[[#This Row],[MeasureCost]],0)","v":0},{"$f":"IF(Table_SummaryPI[[#This Row],[kWhSavings]]<>\"\",Table_SummaryPI[[#This Row],[kWhSavings]],0)","v":0},{"$f":"IF(Table_SummaryPI[[#This Row],[DemandSavingskW]]<>\"\",Table_SummaryPI[[#This Row],[DemandSavingskW]],0)","v":0}]
[{"$f":"Table_SummaryPI[[#This Row],[Line No.]]","v":""},{"$f":"IF(Table_PrintPI[[#This Row],[Line No.]]=\"\",\"\",CONCATENATE(Table_PrintPI[[#This Row],[Line No.]],\" - \",Table_SummaryPI[[#This Row],[MeasureName]]))","v":""},{"$f":"IF(Table_SummaryPI[[#This Row],[Manufacturer]]<>\"\",CONCATENATE(Table_SummaryPI[[#This Row],[Manufacturer]],\"/\",Table_SummaryPI[[#This Row],[Model'#]]),\"\")","v":""},{"$f":"IF(Table_SummaryPI[[#This Row],[Serial'#]]<>\"\",Table_SummaryPI[[#This Row],[Serial'#]],\"\")","v":""},{"$f":"IF(Table_SummaryPI[[#This Row],[Quantity]]<>\"\",Table_SummaryPI[[#This Row],[Quantity]],\"\")","v":""},{"$f":"IF(Table_SummaryPI[[#This Row],[BaselinekWh]]<>\"\",Table_SummaryPI[[#This Row],[BaselinekWh]],\"\")","v":""},{"$f":"IF(Table_SummaryPI[[#This Row],[BaselinekW]]<>\"\",Table_SummaryPI[[#This Row],[BaselinekW]],\"\")","v":""},{"$f":"IF(Table_SummaryPI[[#This Row],[ProposedkWh]]<>\"\",Table_SummaryPI[[#This Row],[ProposedkWh]],\"\")","v":""},{"$f":"IF(Table_SummaryPI[[#This Row],[ProposedkW]]<>\"\",Table_SummaryPI[[#This Row],[ProposedkW]],\"\")","v":""},{"$f":"IF(Table_SummaryPI[[#This Row],[Notes]]<>\"\",Table_SummaryPI[[#This Row],[Notes]],\"\")","v":""},{"$f":"IF(Table_SummaryPI[[#This Row],[Incentive_Customer]]<>\"\",Table_SummaryPI[[#This Row],[Incentive_Customer]],0)","v":0},{"$f":"IF(Table_SummaryPI[[#This Row],[MeasureCost]]<>\"\",Table_SummaryPI[[#This Row],[MeasureCost]],0)","v":0},{"$f":"IF(Table_SummaryPI[[#This Row],[kWhSavings]]<>\"\",Table_SummaryPI[[#This Row],[kWhSavings]],0)","v":0},{"$f":"IF(Table_SummaryPI[[#This Row],[DemandSavingskW]]<>\"\",Table_SummaryPI[[#This Row],[DemandSavingskW]],0)","v":0}]
[{"$f":"Table_SummaryPI[[#This Row],[Line No.]]","v":""},{"$f":"IF(Table_PrintPI[[#This Row],[Line No.]]=\"\",\"\",CONCATENATE(Table_PrintPI[[#This Row],[Line No.]],\" - \",Table_SummaryPI[[#This Row],[MeasureName]]))","v":""},{"$f":"IF(Table_SummaryPI[[#This Row],[Manufacturer]]<>\"\",CONCATENATE(Table_SummaryPI[[#This Row],[Manufacturer]],\"/\",Table_SummaryPI[[#This Row],[Model'#]]),\"\")","v":""},{"$f":"IF(Table_SummaryPI[[#This Row],[Serial'#]]<>\"\",Table_SummaryPI[[#This Row],[Serial'#]],\"\")","v":""},{"$f":"IF(Table_SummaryPI[[#This Row],[Quantity]]<>\"\",Table_SummaryPI[[#This Row],[Quantity]],\"\")","v":""},{"$f":"IF(Table_SummaryPI[[#This Row],[BaselinekWh]]<>\"\",Table_SummaryPI[[#This Row],[BaselinekWh]],\"\")","v":""},{"$f":"IF(Table_SummaryPI[[#This Row],[BaselinekW]]<>\"\",Table_SummaryPI[[#This Row],[BaselinekW]],\"\")","v":""},{"$f":"IF(Table_SummaryPI[[#This Row],[ProposedkWh]]<>\"\",Table_SummaryPI[[#This Row],[ProposedkWh]],\"\")","v":""},{"$f":"IF(Table_SummaryPI[[#This Row],[ProposedkW]]<>\"\",Table_SummaryPI[[#This Row],[ProposedkW]],\"\")","v":""},{"$f":"IF(Table_SummaryPI[[#This Row],[Notes]]<>\"\",Table_SummaryPI[[#This Row],[Notes]],\"\")","v":""},{"$f":"IF(Table_SummaryPI[[#This Row],[Incentive_Customer]]<>\"\",Table_SummaryPI[[#This Row],[Incentive_Customer]],0)","v":0},{"$f":"IF(Table_SummaryPI[[#This Row],[MeasureCost]]<>\"\",Table_SummaryPI[[#This Row],[MeasureCost]],0)","v":0},{"$f":"IF(Table_SummaryPI[[#This Row],[kWhSavings]]<>\"\",Table_SummaryPI[[#This Row],[kWhSavings]],0)","v":0},{"$f":"IF(Table_SummaryPI[[#This Row],[DemandSavingskW]]<>\"\",Table_SummaryPI[[#This Row],[DemandSavingskW]],0)","v":0}]
[{"$f":"Table_SummaryPI[[#This Row],[Line No.]]","v":""},{"$f":"IF(Table_PrintPI[[#This Row],[Line No.]]=\"\",\"\",CONCATENATE(Table_PrintPI[[#This Row],[Line No.]],\" - \",Table_SummaryPI[[#This Row],[MeasureName]]))","v":""},{"$f":"IF(Table_SummaryPI[[#This Row],[Manufacturer]]<>\"\",CONCATENATE(Table_SummaryPI[[#This Row],[Manufacturer]],\"/\",Table_SummaryPI[[#This Row],[Model'#]]),\"\")","v":""},{"$f":"IF(Table_SummaryPI[[#This Row],[Serial'#]]<>\"\",Table_SummaryPI[[#This Row],[Serial'#]],\"\")","v":""},{"$f":"IF(Table_SummaryPI[[#This Row],[Quantity]]<>\"\",Table_SummaryPI[[#This Row],[Quantity]],\"\")","v":""},{"$f":"IF(Table_SummaryPI[[#This Row],[BaselinekWh]]<>\"\",Table_SummaryPI[[#This Row],[BaselinekWh]],\"\")","v":""},{"$f":"IF(Table_SummaryPI[[#This Row],[BaselinekW]]<>\"\",Table_SummaryPI[[#This Row],[BaselinekW]],\"\")","v":""},{"$f":"IF(Table_SummaryPI[[#This Row],[ProposedkWh]]<>\"\",Table_SummaryPI[[#This Row],[ProposedkWh]],\"\")","v":""},{"$f":"IF(Table_SummaryPI[[#This Row],[ProposedkW]]<>\"\",Table_SummaryPI[[#This Row],[ProposedkW]],\"\")","v":""},{"$f":"IF(Table_SummaryPI[[#This Row],[Notes]]<>\"\",Table_SummaryPI[[#This Row],[Notes]],\"\")","v":""},{"$f":"IF(Table_SummaryPI[[#This Row],[Incentive_Customer]]<>\"\",Table_SummaryPI[[#This Row],[Incentive_Customer]],0)","v":0},{"$f":"IF(Table_SummaryPI[[#This Row],[MeasureCost]]<>\"\",Table_SummaryPI[[#This Row],[MeasureCost]],0)","v":0},{"$f":"IF(Table_SummaryPI[[#This Row],[kWhSavings]]<>\"\",Table_SummaryPI[[#This Row],[kWhSavings]],0)","v":0},{"$f":"IF(Table_SummaryPI[[#This Row],[DemandSavingskW]]<>\"\",Table_SummaryPI[[#This Row],[DemandSavingskW]],0)","v":0}]
[{"$f":"Table_SummaryPI[[#This Row],[Line No.]]","v":""},{"$f":"IF(Table_PrintPI[[#This Row],[Line No.]]=\"\",\"\",CONCATENATE(Table_PrintPI[[#This Row],[Line No.]],\" - \",Table_SummaryPI[[#This Row],[MeasureName]]))","v":""},{"$f":"IF(Table_SummaryPI[[#This Row],[Manufacturer]]<>\"\",CONCATENATE(Table_SummaryPI[[#This Row],[Manufacturer]],\"/\",Table_SummaryPI[[#This Row],[Model'#]]),\"\")","v":""},{"$f":"IF(Table_SummaryPI[[#This Row],[Serial'#]]<>\"\",Table_SummaryPI[[#This Row],[Serial'#]],\"\")","v":""},{"$f":"IF(Table_SummaryPI[[#This Row],[Quantity]]<>\"\",Table_SummaryPI[[#This Row],[Quantity]],\"\")","v":""},{"$f":"IF(Table_SummaryPI[[#This Row],[BaselinekWh]]<>\"\",Table_SummaryPI[[#This Row],[BaselinekWh]],\"\")","v":""},{"$f":"IF(Table_SummaryPI[[#This Row],[BaselinekW]]<>\"\",Table_SummaryPI[[#This Row],[BaselinekW]],\"\")","v":""},{"$f":"IF(Table_SummaryPI[[#This Row],[ProposedkWh]]<>\"\",Table_SummaryPI[[#This Row],[ProposedkWh]],\"\")","v":""},{"$f":"IF(Table_SummaryPI[[#This Row],[ProposedkW]]<>\"\",Table_SummaryPI[[#This Row],[ProposedkW]],\"\")","v":""},{"$f":"IF(Table_SummaryPI[[#This Row],[Notes]]<>\"\",Table_SummaryPI[[#This Row],[Notes]],\"\")","v":""},{"$f":"IF(Table_SummaryPI[[#This Row],[Incentive_Customer]]<>\"\",Table_SummaryPI[[#This Row],[Incentive_Customer]],0)","v":0},{"$f":"IF(Table_SummaryPI[[#This Row],[MeasureCost]]<>\"\",Table_SummaryPI[[#This Row],[MeasureCost]],0)","v":0},{"$f":"IF(Table_SummaryPI[[#This Row],[kWhSavings]]<>\"\",Table_SummaryPI[[#This Row],[kWhSavings]],0)","v":0},{"$f":"IF(Table_SummaryPI[[#This Row],[DemandSavingskW]]<>\"\",Table_SummaryPI[[#This Row],[DemandSavingskW]],0)","v":0}]
[{"$f":"Table_SummaryPI[[#This Row],[Line No.]]","v":""},{"$f":"IF(Table_PrintPI[[#This Row],[Line No.]]=\"\",\"\",CONCATENATE(Table_PrintPI[[#This Row],[Line No.]],\" - \",Table_SummaryPI[[#This Row],[MeasureName]]))","v":""},{"$f":"IF(Table_SummaryPI[[#This Row],[Manufacturer]]<>\"\",CONCATENATE(Table_SummaryPI[[#This Row],[Manufacturer]],\"/\",Table_SummaryPI[[#This Row],[Model'#]]),\"\")","v":""},{"$f":"IF(Table_SummaryPI[[#This Row],[Serial'#]]<>\"\",Table_SummaryPI[[#This Row],[Serial'#]],\"\")","v":""},{"$f":"IF(Table_SummaryPI[[#This Row],[Quantity]]<>\"\",Table_SummaryPI[[#This Row],[Quantity]],\"\")","v":""},{"$f":"IF(Table_SummaryPI[[#This Row],[BaselinekWh]]<>\"\",Table_SummaryPI[[#This Row],[BaselinekWh]],\"\")","v":""},{"$f":"IF(Table_SummaryPI[[#This Row],[BaselinekW]]<>\"\",Table_SummaryPI[[#This Row],[BaselinekW]],\"\")","v":""},{"$f":"IF(Table_SummaryPI[[#This Row],[ProposedkWh]]<>\"\",Table_SummaryPI[[#This Row],[ProposedkWh]],\"\")","v":""},{"$f":"IF(Table_SummaryPI[[#This Row],[ProposedkW]]<>\"\",Table_SummaryPI[[#This Row],[ProposedkW]],\"\")","v":""},{"$f":"IF(Table_SummaryPI[[#This Row],[Notes]]<>\"\",Table_SummaryPI[[#This Row],[Notes]],\"\")","v":""},{"$f":"IF(Table_SummaryPI[[#This Row],[Incentive_Customer]]<>\"\",Table_SummaryPI[[#This Row],[Incentive_Customer]],0)","v":0},{"$f":"IF(Table_SummaryPI[[#This Row],[MeasureCost]]<>\"\",Table_SummaryPI[[#This Row],[MeasureCost]],0)","v":0},{"$f":"IF(Table_SummaryPI[[#This Row],[kWhSavings]]<>\"\",Table_SummaryPI[[#This Row],[kWhSavings]],0)","v":0},{"$f":"IF(Table_SummaryPI[[#This Row],[DemandSavingskW]]<>\"\",Table_SummaryPI[[#This Row],[DemandSavingskW]],0)","v":0}]
[{"$f":"Table_SummaryPI[[#This Row],[Line No.]]","v":""},{"$f":"IF(Table_PrintPI[[#This Row],[Line No.]]=\"\",\"\",CONCATENATE(Table_PrintPI[[#This Row],[Line No.]],\" - \",Table_SummaryPI[[#This Row],[MeasureName]]))","v":""},{"$f":"IF(Table_SummaryPI[[#This Row],[Manufacturer]]<>\"\",CONCATENATE(Table_SummaryPI[[#This Row],[Manufacturer]],\"/\",Table_SummaryPI[[#This Row],[Model'#]]),\"\")","v":""},{"$f":"IF(Table_SummaryPI[[#This Row],[Serial'#]]<>\"\",Table_SummaryPI[[#This Row],[Serial'#]],\"\")","v":""},{"$f":"IF(Table_SummaryPI[[#This Row],[Quantity]]<>\"\",Table_SummaryPI[[#This Row],[Quantity]],\"\")","v":""},{"$f":"IF(Table_SummaryPI[[#This Row],[BaselinekWh]]<>\"\",Table_SummaryPI[[#This Row],[BaselinekWh]],\"\")","v":""},{"$f":"IF(Table_SummaryPI[[#This Row],[BaselinekW]]<>\"\",Table_SummaryPI[[#This Row],[BaselinekW]],\"\")","v":""},{"$f":"IF(Table_SummaryPI[[#This Row],[ProposedkWh]]<>\"\",Table_SummaryPI[[#This Row],[ProposedkWh]],\"\")","v":""},{"$f":"IF(Table_SummaryPI[[#This Row],[ProposedkW]]<>\"\",Table_SummaryPI[[#This Row],[ProposedkW]],\"\")","v":""},{"$f":"IF(Table_SummaryPI[[#This Row],[Notes]]<>\"\",Table_SummaryPI[[#This Row],[Notes]],\"\")","v":""},{"$f":"IF(Table_SummaryPI[[#This Row],[Incentive_Customer]]<>\"\",Table_SummaryPI[[#This Row],[Incentive_Customer]],0)","v":0},{"$f":"IF(Table_SummaryPI[[#This Row],[MeasureCost]]<>\"\",Table_SummaryPI[[#This Row],[MeasureCost]],0)","v":0},{"$f":"IF(Table_SummaryPI[[#This Row],[kWhSavings]]<>\"\",Table_SummaryPI[[#This Row],[kWhSavings]],0)","v":0},{"$f":"IF(Table_SummaryPI[[#This Row],[DemandSavingskW]]<>\"\",Table_SummaryPI[[#This Row],[DemandSavingskW]],0)","v":0}]
[{"$f":"Table_SummaryPI[[#This Row],[Line No.]]","v":""},{"$f":"IF(Table_PrintPI[[#This Row],[Line No.]]=\"\",\"\",CONCATENATE(Table_PrintPI[[#This Row],[Line No.]],\" - \",Table_SummaryPI[[#This Row],[MeasureName]]))","v":""},{"$f":"IF(Table_SummaryPI[[#This Row],[Manufacturer]]<>\"\",CONCATENATE(Table_SummaryPI[[#This Row],[Manufacturer]],\"/\",Table_SummaryPI[[#This Row],[Model'#]]),\"\")","v":""},{"$f":"IF(Table_SummaryPI[[#This Row],[Serial'#]]<>\"\",Table_SummaryPI[[#This Row],[Serial'#]],\"\")","v":""},{"$f":"IF(Table_SummaryPI[[#This Row],[Quantity]]<>\"\",Table_SummaryPI[[#This Row],[Quantity]],\"\")","v":""},{"$f":"IF(Table_SummaryPI[[#This Row],[BaselinekWh]]<>\"\",Table_SummaryPI[[#This Row],[BaselinekWh]],\"\")","v":""},{"$f":"IF(Table_SummaryPI[[#This Row],[BaselinekW]]<>\"\",Table_SummaryPI[[#This Row],[BaselinekW]],\"\")","v":""},{"$f":"IF(Table_SummaryPI[[#This Row],[ProposedkWh]]<>\"\",Table_SummaryPI[[#This Row],[ProposedkWh]],\"\")","v":""},{"$f":"IF(Table_SummaryPI[[#This Row],[ProposedkW]]<>\"\",Table_SummaryPI[[#This Row],[ProposedkW]],\"\")","v":""},{"$f":"IF(Table_SummaryPI[[#This Row],[Notes]]<>\"\",Table_SummaryPI[[#This Row],[Notes]],\"\")","v":""},{"$f":"IF(Table_SummaryPI[[#This Row],[Incentive_Customer]]<>\"\",Table_SummaryPI[[#This Row],[Incentive_Customer]],0)","v":0},{"$f":"IF(Table_SummaryPI[[#This Row],[MeasureCost]]<>\"\",Table_SummaryPI[[#This Row],[MeasureCost]],0)","v":0},{"$f":"IF(Table_SummaryPI[[#This Row],[kWhSavings]]<>\"\",Table_SummaryPI[[#This Row],[kWhSavings]],0)","v":0},{"$f":"IF(Table_SummaryPI[[#This Row],[DemandSavingskW]]<>\"\",Table_SummaryPI[[#This Row],[DemandSavingskW]],0)","v":0}]
[{"$f":"Table_SummaryPI[[#This Row],[Line No.]]","v":""},{"$f":"IF(Table_PrintPI[[#This Row],[Line No.]]=\"\",\"\",CONCATENATE(Table_PrintPI[[#This Row],[Line No.]],\" - \",Table_SummaryPI[[#This Row],[MeasureName]]))","v":""},{"$f":"IF(Table_SummaryPI[[#This Row],[Manufacturer]]<>\"\",CONCATENATE(Table_SummaryPI[[#This Row],[Manufacturer]],\"/\",Table_SummaryPI[[#This Row],[Model'#]]),\"\")","v":""},{"$f":"IF(Table_SummaryPI[[#This Row],[Serial'#]]<>\"\",Table_SummaryPI[[#This Row],[Serial'#]],\"\")","v":""},{"$f":"IF(Table_SummaryPI[[#This Row],[Quantity]]<>\"\",Table_SummaryPI[[#This Row],[Quantity]],\"\")","v":""},{"$f":"IF(Table_SummaryPI[[#This Row],[BaselinekWh]]<>\"\",Table_SummaryPI[[#This Row],[BaselinekWh]],\"\")","v":""},{"$f":"IF(Table_SummaryPI[[#This Row],[BaselinekW]]<>\"\",Table_SummaryPI[[#This Row],[BaselinekW]],\"\")","v":""},{"$f":"IF(Table_SummaryPI[[#This Row],[ProposedkWh]]<>\"\",Table_SummaryPI[[#This Row],[ProposedkWh]],\"\")","v":""},{"$f":"IF(Table_SummaryPI[[#This Row],[ProposedkW]]<>\"\",Table_SummaryPI[[#This Row],[ProposedkW]],\"\")","v":""},{"$f":"IF(Table_SummaryPI[[#This Row],[Notes]]<>\"\",Table_SummaryPI[[#This Row],[Notes]],\"\")","v":""},{"$f":"IF(Table_SummaryPI[[#This Row],[Incentive_Customer]]<>\"\",Table_SummaryPI[[#This Row],[Incentive_Customer]],0)","v":0},{"$f":"IF(Table_SummaryPI[[#This Row],[MeasureCost]]<>\"\",Table_SummaryPI[[#This Row],[MeasureCost]],0)","v":0},{"$f":"IF(Table_SummaryPI[[#This Row],[kWhSavings]]<>\"\",Table_SummaryPI[[#This Row],[kWhSavings]],0)","v":0},{"$f":"IF(Table_SummaryPI[[#This Row],[DemandSavingskW]]<>\"\",Table_SummaryPI[[#This Row],[DemandSavingskW]],0)","v":0}]
[{"$f":"Table_SummaryPI[[#This Row],[Line No.]]","v":""},{"$f":"IF(Table_PrintPI[[#This Row],[Line No.]]=\"\",\"\",CONCATENATE(Table_PrintPI[[#This Row],[Line No.]],\" - \",Table_SummaryPI[[#This Row],[MeasureName]]))","v":""},{"$f":"IF(Table_SummaryPI[[#This Row],[Manufacturer]]<>\"\",CONCATENATE(Table_SummaryPI[[#This Row],[Manufacturer]],\"/\",Table_SummaryPI[[#This Row],[Model'#]]),\"\")","v":""},{"$f":"IF(Table_SummaryPI[[#This Row],[Serial'#]]<>\"\",Table_SummaryPI[[#This Row],[Serial'#]],\"\")","v":""},{"$f":"IF(Table_SummaryPI[[#This Row],[Quantity]]<>\"\",Table_SummaryPI[[#This Row],[Quantity]],\"\")","v":""},{"$f":"IF(Table_SummaryPI[[#This Row],[BaselinekWh]]<>\"\",Table_SummaryPI[[#This Row],[BaselinekWh]],\"\")","v":""},{"$f":"IF(Table_SummaryPI[[#This Row],[BaselinekW]]<>\"\",Table_SummaryPI[[#This Row],[BaselinekW]],\"\")","v":""},{"$f":"IF(Table_SummaryPI[[#This Row],[ProposedkWh]]<>\"\",Table_SummaryPI[[#This Row],[ProposedkWh]],\"\")","v":""},{"$f":"IF(Table_SummaryPI[[#This Row],[ProposedkW]]<>\"\",Table_SummaryPI[[#This Row],[ProposedkW]],\"\")","v":""},{"$f":"IF(Table_SummaryPI[[#This Row],[Notes]]<>\"\",Table_SummaryPI[[#This Row],[Notes]],\"\")","v":""},{"$f":"IF(Table_SummaryPI[[#This Row],[Incentive_Customer]]<>\"\",Table_SummaryPI[[#This Row],[Incentive_Customer]],0)","v":0},{"$f":"IF(Table_SummaryPI[[#This Row],[MeasureCost]]<>\"\",Table_SummaryPI[[#This Row],[MeasureCost]],0)","v":0},{"$f":"IF(Table_SummaryPI[[#This Row],[kWhSavings]]<>\"\",Table_SummaryPI[[#This Row],[kWhSavings]],0)","v":0},{"$f":"IF(Table_SummaryPI[[#This Row],[DemandSavingskW]]<>\"\",Table_SummaryPI[[#This Row],[DemandSavingskW]],0)","v":0}]
[{"$f":"Table_SummaryPI[[#This Row],[Line No.]]","v":""},{"$f":"IF(Table_PrintPI[[#This Row],[Line No.]]=\"\",\"\",CONCATENATE(Table_PrintPI[[#This Row],[Line No.]],\" - \",Table_SummaryPI[[#This Row],[MeasureName]]))","v":""},{"$f":"IF(Table_SummaryPI[[#This Row],[Manufacturer]]<>\"\",CONCATENATE(Table_SummaryPI[[#This Row],[Manufacturer]],\"/\",Table_SummaryPI[[#This Row],[Model'#]]),\"\")","v":""},{"$f":"IF(Table_SummaryPI[[#This Row],[Serial'#]]<>\"\",Table_SummaryPI[[#This Row],[Serial'#]],\"\")","v":""},{"$f":"IF(Table_SummaryPI[[#This Row],[Quantity]]<>\"\",Table_SummaryPI[[#This Row],[Quantity]],\"\")","v":""},{"$f":"IF(Table_SummaryPI[[#This Row],[BaselinekWh]]<>\"\",Table_SummaryPI[[#This Row],[BaselinekWh]],\"\")","v":""},{"$f":"IF(Table_SummaryPI[[#This Row],[BaselinekW]]<>\"\",Table_SummaryPI[[#This Row],[BaselinekW]],\"\")","v":""},{"$f":"IF(Table_SummaryPI[[#This Row],[ProposedkWh]]<>\"\",Table_SummaryPI[[#This Row],[ProposedkWh]],\"\")","v":""},{"$f":"IF(Table_SummaryPI[[#This Row],[ProposedkW]]<>\"\",Table_SummaryPI[[#This Row],[ProposedkW]],\"\")","v":""},{"$f":"IF(Table_SummaryPI[[#This Row],[Notes]]<>\"\",Table_SummaryPI[[#This Row],[Notes]],\"\")","v":""},{"$f":"IF(Table_SummaryPI[[#This Row],[Incentive_Customer]]<>\"\",Table_SummaryPI[[#This Row],[Incentive_Customer]],0)","v":0},{"$f":"IF(Table_SummaryPI[[#This Row],[MeasureCost]]<>\"\",Table_SummaryPI[[#This Row],[MeasureCost]],0)","v":0},{"$f":"IF(Table_SummaryPI[[#This Row],[kWhSavings]]<>\"\",Table_SummaryPI[[#This Row],[kWhSavings]],0)","v":0},{"$f":"IF(Table_SummaryPI[[#This Row],[DemandSavingskW]]<>\"\",Table_SummaryPI[[#This Row],[DemandSavingskW]],0)","v":0}]
[{"$f":"Table_SummaryPI[[#This Row],[Line No.]]","v":""},{"$f":"IF(Table_PrintPI[[#This Row],[Line No.]]=\"\",\"\",CONCATENATE(Table_PrintPI[[#This Row],[Line No.]],\" - \",Table_SummaryPI[[#This Row],[MeasureName]]))","v":""},{"$f":"IF(Table_SummaryPI[[#This Row],[Manufacturer]]<>\"\",CONCATENATE(Table_SummaryPI[[#This Row],[Manufacturer]],\"/\",Table_SummaryPI[[#This Row],[Model'#]]),\"\")","v":""},{"$f":"IF(Table_SummaryPI[[#This Row],[Serial'#]]<>\"\",Table_SummaryPI[[#This Row],[Serial'#]],\"\")","v":""},{"$f":"IF(Table_SummaryPI[[#This Row],[Quantity]]<>\"\",Table_SummaryPI[[#This Row],[Quantity]],\"\")","v":""},{"$f":"IF(Table_SummaryPI[[#This Row],[BaselinekWh]]<>\"\",Table_SummaryPI[[#This Row],[BaselinekWh]],\"\")","v":""},{"$f":"IF(Table_SummaryPI[[#This Row],[BaselinekW]]<>\"\",Table_SummaryPI[[#This Row],[BaselinekW]],\"\")","v":""},{"$f":"IF(Table_SummaryPI[[#This Row],[ProposedkWh]]<>\"\",Table_SummaryPI[[#This Row],[ProposedkWh]],\"\")","v":""},{"$f":"IF(Table_SummaryPI[[#This Row],[ProposedkW]]<>\"\",Table_SummaryPI[[#This Row],[ProposedkW]],\"\")","v":""},{"$f":"IF(Table_SummaryPI[[#This Row],[Notes]]<>\"\",Table_SummaryPI[[#This Row],[Notes]],\"\")","v":""},{"$f":"IF(Table_SummaryPI[[#This Row],[Incentive_Customer]]<>\"\",Table_SummaryPI[[#This Row],[Incentive_Customer]],0)","v":0},{"$f":"IF(Table_SummaryPI[[#This Row],[MeasureCost]]<>\"\",Table_SummaryPI[[#This Row],[MeasureCost]],0)","v":0},{"$f":"IF(Table_SummaryPI[[#This Row],[kWhSavings]]<>\"\",Table_SummaryPI[[#This Row],[kWhSavings]],0)","v":0},{"$f":"IF(Table_SummaryPI[[#This Row],[DemandSavingskW]]<>\"\",Table_SummaryPI[[#This Row],[DemandSavingskW]],0)","v":0}]
[{"$f":"Table_SummaryPI[[#This Row],[Line No.]]","v":""},{"$f":"IF(Table_PrintPI[[#This Row],[Line No.]]=\"\",\"\",CONCATENATE(Table_PrintPI[[#This Row],[Line No.]],\" - \",Table_SummaryPI[[#This Row],[MeasureName]]))","v":""},{"$f":"IF(Table_SummaryPI[[#This Row],[Manufacturer]]<>\"\",CONCATENATE(Table_SummaryPI[[#This Row],[Manufacturer]],\"/\",Table_SummaryPI[[#This Row],[Model'#]]),\"\")","v":""},{"$f":"IF(Table_SummaryPI[[#This Row],[Serial'#]]<>\"\",Table_SummaryPI[[#This Row],[Serial'#]],\"\")","v":""},{"$f":"IF(Table_SummaryPI[[#This Row],[Quantity]]<>\"\",Table_SummaryPI[[#This Row],[Quantity]],\"\")","v":""},{"$f":"IF(Table_SummaryPI[[#This Row],[BaselinekWh]]<>\"\",Table_SummaryPI[[#This Row],[BaselinekWh]],\"\")","v":""},{"$f":"IF(Table_SummaryPI[[#This Row],[BaselinekW]]<>\"\",Table_SummaryPI[[#This Row],[BaselinekW]],\"\")","v":""},{"$f":"IF(Table_SummaryPI[[#This Row],[ProposedkWh]]<>\"\",Table_SummaryPI[[#This Row],[ProposedkWh]],\"\")","v":""},{"$f":"IF(Table_SummaryPI[[#This Row],[ProposedkW]]<>\"\",Table_SummaryPI[[#This Row],[ProposedkW]],\"\")","v":""},{"$f":"IF(Table_SummaryPI[[#This Row],[Notes]]<>\"\",Table_SummaryPI[[#This Row],[Notes]],\"\")","v":""},{"$f":"IF(Table_SummaryPI[[#This Row],[Incentive_Customer]]<>\"\",Table_SummaryPI[[#This Row],[Incentive_Customer]],0)","v":0},{"$f":"IF(Table_SummaryPI[[#This Row],[MeasureCost]]<>\"\",Table_SummaryPI[[#This Row],[MeasureCost]],0)","v":0},{"$f":"IF(Table_SummaryPI[[#This Row],[kWhSavings]]<>\"\",Table_SummaryPI[[#This Row],[kWhSavings]],0)","v":0},{"$f":"IF(Table_SummaryPI[[#This Row],[DemandSavingskW]]<>\"\",Table_SummaryPI[[#This Row],[DemandSavingskW]],0)","v":0}]
[{"$f":"Table_SummaryPI[[#This Row],[Line No.]]","v":""},{"$f":"IF(Table_PrintPI[[#This Row],[Line No.]]=\"\",\"\",CONCATENATE(Table_PrintPI[[#This Row],[Line No.]],\" - \",Table_SummaryPI[[#This Row],[MeasureName]]))","v":""},{"$f":"IF(Table_SummaryPI[[#This Row],[Manufacturer]]<>\"\",CONCATENATE(Table_SummaryPI[[#This Row],[Manufacturer]],\"/\",Table_SummaryPI[[#This Row],[Model'#]]),\"\")","v":""},{"$f":"IF(Table_SummaryPI[[#This Row],[Serial'#]]<>\"\",Table_SummaryPI[[#This Row],[Serial'#]],\"\")","v":""},{"$f":"IF(Table_SummaryPI[[#This Row],[Quantity]]<>\"\",Table_SummaryPI[[#This Row],[Quantity]],\"\")","v":""},{"$f":"IF(Table_SummaryPI[[#This Row],[BaselinekWh]]<>\"\",Table_SummaryPI[[#This Row],[BaselinekWh]],\"\")","v":""},{"$f":"IF(Table_SummaryPI[[#This Row],[BaselinekW]]<>\"\",Table_SummaryPI[[#This Row],[BaselinekW]],\"\")","v":""},{"$f":"IF(Table_SummaryPI[[#This Row],[ProposedkWh]]<>\"\",Table_SummaryPI[[#This Row],[ProposedkWh]],\"\")","v":""},{"$f":"IF(Table_SummaryPI[[#This Row],[ProposedkW]]<>\"\",Table_SummaryPI[[#This Row],[ProposedkW]],\"\")","v":""},{"$f":"IF(Table_SummaryPI[[#This Row],[Notes]]<>\"\",Table_SummaryPI[[#This Row],[Notes]],\"\")","v":""},{"$f":"IF(Table_SummaryPI[[#This Row],[Incentive_Customer]]<>\"\",Table_SummaryPI[[#This Row],[Incentive_Customer]],0)","v":0},{"$f":"IF(Table_SummaryPI[[#This Row],[MeasureCost]]<>\"\",Table_SummaryPI[[#This Row],[MeasureCost]],0)","v":0},{"$f":"IF(Table_SummaryPI[[#This Row],[kWhSavings]]<>\"\",Table_SummaryPI[[#This Row],[kWhSavings]],0)","v":0},{"$f":"IF(Table_SummaryPI[[#This Row],[DemandSavingskW]]<>\"\",Table_SummaryPI[[#This Row],[DemandSavingskW]],0)","v":0}]
[{"$f":"Table_SummaryPI[[#This Row],[Line No.]]","v":""},{"$f":"IF(Table_PrintPI[[#This Row],[Line No.]]=\"\",\"\",CONCATENATE(Table_PrintPI[[#This Row],[Line No.]],\" - \",Table_SummaryPI[[#This Row],[MeasureName]]))","v":""},{"$f":"IF(Table_SummaryPI[[#This Row],[Manufacturer]]<>\"\",CONCATENATE(Table_SummaryPI[[#This Row],[Manufacturer]],\"/\",Table_SummaryPI[[#This Row],[Model'#]]),\"\")","v":""},{"$f":"IF(Table_SummaryPI[[#This Row],[Serial'#]]<>\"\",Table_SummaryPI[[#This Row],[Serial'#]],\"\")","v":""},{"$f":"IF(Table_SummaryPI[[#This Row],[Quantity]]<>\"\",Table_SummaryPI[[#This Row],[Quantity]],\"\")","v":""},{"$f":"IF(Table_SummaryPI[[#This Row],[BaselinekWh]]<>\"\",Table_SummaryPI[[#This Row],[BaselinekWh]],\"\")","v":""},{"$f":"IF(Table_SummaryPI[[#This Row],[BaselinekW]]<>\"\",Table_SummaryPI[[#This Row],[BaselinekW]],\"\")","v":""},{"$f":"IF(Table_SummaryPI[[#This Row],[ProposedkWh]]<>\"\",Table_SummaryPI[[#This Row],[ProposedkWh]],\"\")","v":""},{"$f":"IF(Table_SummaryPI[[#This Row],[ProposedkW]]<>\"\",Table_SummaryPI[[#This Row],[ProposedkW]],\"\")","v":""},{"$f":"IF(Table_SummaryPI[[#This Row],[Notes]]<>\"\",Table_SummaryPI[[#This Row],[Notes]],\"\")","v":""},{"$f":"IF(Table_SummaryPI[[#This Row],[Incentive_Customer]]<>\"\",Table_SummaryPI[[#This Row],[Incentive_Customer]],0)","v":0},{"$f":"IF(Table_SummaryPI[[#This Row],[MeasureCost]]<>\"\",Table_SummaryPI[[#This Row],[MeasureCost]],0)","v":0},{"$f":"IF(Table_SummaryPI[[#This Row],[kWhSavings]]<>\"\",Table_SummaryPI[[#This Row],[kWhSavings]],0)","v":0},{"$f":"IF(Table_SummaryPI[[#This Row],[DemandSavingskW]]<>\"\",Table_SummaryPI[[#This Row],[DemandSavingskW]],0)","v":0}]
[{"$f":"Table_SummaryPI[[#This Row],[Line No.]]","v":""},{"$f":"IF(Table_PrintPI[[#This Row],[Line No.]]=\"\",\"\",CONCATENATE(Table_PrintPI[[#This Row],[Line No.]],\" - \",Table_SummaryPI[[#This Row],[MeasureName]]))","v":""},{"$f":"IF(Table_SummaryPI[[#This Row],[Manufacturer]]<>\"\",CONCATENATE(Table_SummaryPI[[#This Row],[Manufacturer]],\"/\",Table_SummaryPI[[#This Row],[Model'#]]),\"\")","v":""},{"$f":"IF(Table_SummaryPI[[#This Row],[Serial'#]]<>\"\",Table_SummaryPI[[#This Row],[Serial'#]],\"\")","v":""},{"$f":"IF(Table_SummaryPI[[#This Row],[Quantity]]<>\"\",Table_SummaryPI[[#This Row],[Quantity]],\"\")","v":""},{"$f":"IF(Table_SummaryPI[[#This Row],[BaselinekWh]]<>\"\",Table_SummaryPI[[#This Row],[BaselinekWh]],\"\")","v":""},{"$f":"IF(Table_SummaryPI[[#This Row],[BaselinekW]]<>\"\",Table_SummaryPI[[#This Row],[BaselinekW]],\"\")","v":""},{"$f":"IF(Table_SummaryPI[[#This Row],[ProposedkWh]]<>\"\",Table_SummaryPI[[#This Row],[ProposedkWh]],\"\")","v":""},{"$f":"IF(Table_SummaryPI[[#This Row],[ProposedkW]]<>\"\",Table_SummaryPI[[#This Row],[ProposedkW]],\"\")","v":""},{"$f":"IF(Table_SummaryPI[[#This Row],[Notes]]<>\"\",Table_SummaryPI[[#This Row],[Notes]],\"\")","v":""},{"$f":"IF(Table_SummaryPI[[#This Row],[Incentive_Customer]]<>\"\",Table_SummaryPI[[#This Row],[Incentive_Customer]],0)","v":0},{"$f":"IF(Table_SummaryPI[[#This Row],[MeasureCost]]<>\"\",Table_SummaryPI[[#This Row],[MeasureCost]],0)","v":0},{"$f":"IF(Table_SummaryPI[[#This Row],[kWhSavings]]<>\"\",Table_SummaryPI[[#This Row],[kWhSavings]],0)","v":0},{"$f":"IF(Table_SummaryPI[[#This Row],[DemandSavingskW]]<>\"\",Table_SummaryPI[[#This Row],[DemandSavingskW]],0)","v":0}]
[{"$f":"Table_SummaryPI[[#This Row],[Line No.]]","v":""},{"$f":"IF(Table_PrintPI[[#This Row],[Line No.]]=\"\",\"\",CONCATENATE(Table_PrintPI[[#This Row],[Line No.]],\" - \",Table_SummaryPI[[#This Row],[MeasureName]]))","v":""},{"$f":"IF(Table_SummaryPI[[#This Row],[Manufacturer]]<>\"\",CONCATENATE(Table_SummaryPI[[#This Row],[Manufacturer]],\"/\",Table_SummaryPI[[#This Row],[Model'#]]),\"\")","v":""},{"$f":"IF(Table_SummaryPI[[#This Row],[Serial'#]]<>\"\",Table_SummaryPI[[#This Row],[Serial'#]],\"\")","v":""},{"$f":"IF(Table_SummaryPI[[#This Row],[Quantity]]<>\"\",Table_SummaryPI[[#This Row],[Quantity]],\"\")","v":""},{"$f":"IF(Table_SummaryPI[[#This Row],[BaselinekWh]]<>\"\",Table_SummaryPI[[#This Row],[BaselinekWh]],\"\")","v":""},{"$f":"IF(Table_SummaryPI[[#This Row],[BaselinekW]]<>\"\",Table_SummaryPI[[#This Row],[BaselinekW]],\"\")","v":""},{"$f":"IF(Table_SummaryPI[[#This Row],[ProposedkWh]]<>\"\",Table_SummaryPI[[#This Row],[ProposedkWh]],\"\")","v":""},{"$f":"IF(Table_SummaryPI[[#This Row],[ProposedkW]]<>\"\",Table_SummaryPI[[#This Row],[ProposedkW]],\"\")","v":""},{"$f":"IF(Table_SummaryPI[[#This Row],[Notes]]<>\"\",Table_SummaryPI[[#This Row],[Notes]],\"\")","v":""},{"$f":"IF(Table_SummaryPI[[#This Row],[Incentive_Customer]]<>\"\",Table_SummaryPI[[#This Row],[Incentive_Customer]],0)","v":0},{"$f":"IF(Table_SummaryPI[[#This Row],[MeasureCost]]<>\"\",Table_SummaryPI[[#This Row],[MeasureCost]],0)","v":0},{"$f":"IF(Table_SummaryPI[[#This Row],[kWhSavings]]<>\"\",Table_SummaryPI[[#This Row],[kWhSavings]],0)","v":0},{"$f":"IF(Table_SummaryPI[[#This Row],[DemandSavingskW]]<>\"\",Table_SummaryPI[[#This Row],[DemandSavingskW]],0)","v":0}]
[{"$f":"Table_SummaryPI[[#This Row],[Line No.]]","v":""},{"$f":"IF(Table_PrintPI[[#This Row],[Line No.]]=\"\",\"\",CONCATENATE(Table_PrintPI[[#This Row],[Line No.]],\" - \",Table_SummaryPI[[#This Row],[MeasureName]]))","v":""},{"$f":"IF(Table_SummaryPI[[#This Row],[Manufacturer]]<>\"\",CONCATENATE(Table_SummaryPI[[#This Row],[Manufacturer]],\"/\",Table_SummaryPI[[#This Row],[Model'#]]),\"\")","v":""},{"$f":"IF(Table_SummaryPI[[#This Row],[Serial'#]]<>\"\",Table_SummaryPI[[#This Row],[Serial'#]],\"\")","v":""},{"$f":"IF(Table_SummaryPI[[#This Row],[Quantity]]<>\"\",Table_SummaryPI[[#This Row],[Quantity]],\"\")","v":""},{"$f":"IF(Table_SummaryPI[[#This Row],[BaselinekWh]]<>\"\",Table_SummaryPI[[#This Row],[BaselinekWh]],\"\")","v":""},{"$f":"IF(Table_SummaryPI[[#This Row],[BaselinekW]]<>\"\",Table_SummaryPI[[#This Row],[BaselinekW]],\"\")","v":""},{"$f":"IF(Table_SummaryPI[[#This Row],[ProposedkWh]]<>\"\",Table_SummaryPI[[#This Row],[ProposedkWh]],\"\")","v":""},{"$f":"IF(Table_SummaryPI[[#This Row],[ProposedkW]]<>\"\",Table_SummaryPI[[#This Row],[ProposedkW]],\"\")","v":""},{"$f":"IF(Table_SummaryPI[[#This Row],[Notes]]<>\"\",Table_SummaryPI[[#This Row],[Notes]],\"\")","v":""},{"$f":"IF(Table_SummaryPI[[#This Row],[Incentive_Customer]]<>\"\",Table_SummaryPI[[#This Row],[Incentive_Customer]],0)","v":0},{"$f":"IF(Table_SummaryPI[[#This Row],[MeasureCost]]<>\"\",Table_SummaryPI[[#This Row],[MeasureCost]],0)","v":0},{"$f":"IF(Table_SummaryPI[[#This Row],[kWhSavings]]<>\"\",Table_SummaryPI[[#This Row],[kWhSavings]],0)","v":0},{"$f":"IF(Table_SummaryPI[[#This Row],[DemandSavingskW]]<>\"\",Table_SummaryPI[[#This Row],[DemandSavingskW]],0)","v":0}]
[{"$f":"Table_SummaryPI[[#This Row],[Line No.]]","v":""},{"$f":"IF(Table_PrintPI[[#This Row],[Line No.]]=\"\",\"\",CONCATENATE(Table_PrintPI[[#This Row],[Line No.]],\" - \",Table_SummaryPI[[#This Row],[MeasureName]]))","v":""},{"$f":"IF(Table_SummaryPI[[#This Row],[Manufacturer]]<>\"\",CONCATENATE(Table_SummaryPI[[#This Row],[Manufacturer]],\"/\",Table_SummaryPI[[#This Row],[Model'#]]),\"\")","v":""},{"$f":"IF(Table_SummaryPI[[#This Row],[Serial'#]]<>\"\",Table_SummaryPI[[#This Row],[Serial'#]],\"\")","v":""},{"$f":"IF(Table_SummaryPI[[#This Row],[Quantity]]<>\"\",Table_SummaryPI[[#This Row],[Quantity]],\"\")","v":""},{"$f":"IF(Table_SummaryPI[[#This Row],[BaselinekWh]]<>\"\",Table_SummaryPI[[#This Row],[BaselinekWh]],\"\")","v":""},{"$f":"IF(Table_SummaryPI[[#This Row],[BaselinekW]]<>\"\",Table_SummaryPI[[#This Row],[BaselinekW]],\"\")","v":""},{"$f":"IF(Table_SummaryPI[[#This Row],[ProposedkWh]]<>\"\",Table_SummaryPI[[#This Row],[ProposedkWh]],\"\")","v":""},{"$f":"IF(Table_SummaryPI[[#This Row],[ProposedkW]]<>\"\",Table_SummaryPI[[#This Row],[ProposedkW]],\"\")","v":""},{"$f":"IF(Table_SummaryPI[[#This Row],[Notes]]<>\"\",Table_SummaryPI[[#This Row],[Notes]],\"\")","v":""},{"$f":"IF(Table_SummaryPI[[#This Row],[Incentive_Customer]]<>\"\",Table_SummaryPI[[#This Row],[Incentive_Customer]],0)","v":0},{"$f":"IF(Table_SummaryPI[[#This Row],[MeasureCost]]<>\"\",Table_SummaryPI[[#This Row],[MeasureCost]],0)","v":0},{"$f":"IF(Table_SummaryPI[[#This Row],[kWhSavings]]<>\"\",Table_SummaryPI[[#This Row],[kWhSavings]],0)","v":0},{"$f":"IF(Table_SummaryPI[[#This Row],[DemandSavingskW]]<>\"\",Table_SummaryPI[[#This Row],[DemandSavingskW]],0)","v":0}]
[{"$f":"Table_SummaryPI[[#This Row],[Line No.]]","v":""},{"$f":"IF(Table_PrintPI[[#This Row],[Line No.]]=\"\",\"\",CONCATENATE(Table_PrintPI[[#This Row],[Line No.]],\" - \",Table_SummaryPI[[#This Row],[MeasureName]]))","v":""},{"$f":"IF(Table_SummaryPI[[#This Row],[Manufacturer]]<>\"\",CONCATENATE(Table_SummaryPI[[#This Row],[Manufacturer]],\"/\",Table_SummaryPI[[#This Row],[Model'#]]),\"\")","v":""},{"$f":"IF(Table_SummaryPI[[#This Row],[Serial'#]]<>\"\",Table_SummaryPI[[#This Row],[Serial'#]],\"\")","v":""},{"$f":"IF(Table_SummaryPI[[#This Row],[Quantity]]<>\"\",Table_SummaryPI[[#This Row],[Quantity]],\"\")","v":""},{"$f":"IF(Table_SummaryPI[[#This Row],[BaselinekWh]]<>\"\",Table_SummaryPI[[#This Row],[BaselinekWh]],\"\")","v":""},{"$f":"IF(Table_SummaryPI[[#This Row],[BaselinekW]]<>\"\",Table_SummaryPI[[#This Row],[BaselinekW]],\"\")","v":""},{"$f":"IF(Table_SummaryPI[[#This Row],[ProposedkWh]]<>\"\",Table_SummaryPI[[#This Row],[ProposedkWh]],\"\")","v":""},{"$f":"IF(Table_SummaryPI[[#This Row],[ProposedkW]]<>\"\",Table_SummaryPI[[#This Row],[ProposedkW]],\"\")","v":""},{"$f":"IF(Table_SummaryPI[[#This Row],[Notes]]<>\"\",Table_SummaryPI[[#This Row],[Notes]],\"\")","v":""},{"$f":"IF(Table_SummaryPI[[#This Row],[Incentive_Customer]]<>\"\",Table_SummaryPI[[#This Row],[Incentive_Customer]],0)","v":0},{"$f":"IF(Table_SummaryPI[[#This Row],[MeasureCost]]<>\"\",Table_SummaryPI[[#This Row],[MeasureCost]],0)","v":0},{"$f":"IF(Table_SummaryPI[[#This Row],[kWhSavings]]<>\"\",Table_SummaryPI[[#This Row],[kWhSavings]],0)","v":0},{"$f":"IF(Table_SummaryPI[[#This Row],[DemandSavingskW]]<>\"\",Table_SummaryPI[[#This Row],[DemandSavingskW]],0)","v":0}]
[{"$f":"Table_SummaryPI[[#This Row],[Line No.]]","v":""},{"$f":"IF(Table_PrintPI[[#This Row],[Line No.]]=\"\",\"\",CONCATENATE(Table_PrintPI[[#This Row],[Line No.]],\" - \",Table_SummaryPI[[#This Row],[MeasureName]]))","v":""},{"$f":"IF(Table_SummaryPI[[#This Row],[Manufacturer]]<>\"\",CONCATENATE(Table_SummaryPI[[#This Row],[Manufacturer]],\"/\",Table_SummaryPI[[#This Row],[Model'#]]),\"\")","v":""},{"$f":"IF(Table_SummaryPI[[#This Row],[Serial'#]]<>\"\",Table_SummaryPI[[#This Row],[Serial'#]],\"\")","v":""},{"$f":"IF(Table_SummaryPI[[#This Row],[Quantity]]<>\"\",Table_SummaryPI[[#This Row],[Quantity]],\"\")","v":""},{"$f":"IF(Table_SummaryPI[[#This Row],[BaselinekWh]]<>\"\",Table_SummaryPI[[#This Row],[BaselinekWh]],\"\")","v":""},{"$f":"IF(Table_SummaryPI[[#This Row],[BaselinekW]]<>\"\",Table_SummaryPI[[#This Row],[BaselinekW]],\"\")","v":""},{"$f":"IF(Table_SummaryPI[[#This Row],[ProposedkWh]]<>\"\",Table_SummaryPI[[#This Row],[ProposedkWh]],\"\")","v":""},{"$f":"IF(Table_SummaryPI[[#This Row],[ProposedkW]]<>\"\",Table_SummaryPI[[#This Row],[ProposedkW]],\"\")","v":""},{"$f":"IF(Table_SummaryPI[[#This Row],[Notes]]<>\"\",Table_SummaryPI[[#This Row],[Notes]],\"\")","v":""},{"$f":"IF(Table_SummaryPI[[#This Row],[Incentive_Customer]]<>\"\",Table_SummaryPI[[#This Row],[Incentive_Customer]],0)","v":0},{"$f":"IF(Table_SummaryPI[[#This Row],[MeasureCost]]<>\"\",Table_SummaryPI[[#This Row],[MeasureCost]],0)","v":0},{"$f":"IF(Table_SummaryPI[[#This Row],[kWhSavings]]<>\"\",Table_SummaryPI[[#This Row],[kWhSavings]],0)","v":0},{"$f":"IF(Table_SummaryPI[[#This Row],[DemandSavingskW]]<>\"\",Table_SummaryPI[[#This Row],[DemandSavingskW]],0)","v":0}]
[{"$f":"Table_SummaryPI[[#This Row],[Line No.]]","v":""},{"$f":"IF(Table_PrintPI[[#This Row],[Line No.]]=\"\",\"\",CONCATENATE(Table_PrintPI[[#This Row],[Line No.]],\" - \",Table_SummaryPI[[#This Row],[MeasureName]]))","v":""},{"$f":"IF(Table_SummaryPI[[#This Row],[Manufacturer]]<>\"\",CONCATENATE(Table_SummaryPI[[#This Row],[Manufacturer]],\"/\",Table_SummaryPI[[#This Row],[Model'#]]),\"\")","v":""},{"$f":"IF(Table_SummaryPI[[#This Row],[Serial'#]]<>\"\",Table_SummaryPI[[#This Row],[Serial'#]],\"\")","v":""},{"$f":"IF(Table_SummaryPI[[#This Row],[Quantity]]<>\"\",Table_SummaryPI[[#This Row],[Quantity]],\"\")","v":""},{"$f":"IF(Table_SummaryPI[[#This Row],[BaselinekWh]]<>\"\",Table_SummaryPI[[#This Row],[BaselinekWh]],\"\")","v":""},{"$f":"IF(Table_SummaryPI[[#This Row],[BaselinekW]]<>\"\",Table_SummaryPI[[#This Row],[BaselinekW]],\"\")","v":""},{"$f":"IF(Table_SummaryPI[[#This Row],[ProposedkWh]]<>\"\",Table_SummaryPI[[#This Row],[ProposedkWh]],\"\")","v":""},{"$f":"IF(Table_SummaryPI[[#This Row],[ProposedkW]]<>\"\",Table_SummaryPI[[#This Row],[ProposedkW]],\"\")","v":""},{"$f":"IF(Table_SummaryPI[[#This Row],[Notes]]<>\"\",Table_SummaryPI[[#This Row],[Notes]],\"\")","v":""},{"$f":"IF(Table_SummaryPI[[#This Row],[Incentive_Customer]]<>\"\",Table_SummaryPI[[#This Row],[Incentive_Customer]],0)","v":0},{"$f":"IF(Table_SummaryPI[[#This Row],[MeasureCost]]<>\"\",Table_SummaryPI[[#This Row],[MeasureCost]],0)","v":0},{"$f":"IF(Table_SummaryPI[[#This Row],[kWhSavings]]<>\"\",Table_SummaryPI[[#This Row],[kWhSavings]],0)","v":0},{"$f":"IF(Table_SummaryPI[[#This Row],[DemandSavingskW]]<>\"\",Table_SummaryPI[[#This Row],[DemandSavingskW]],0)","v":0}]
[{"$f":"Table_SummaryPI[[#This Row],[Line No.]]","v":""},{"$f":"IF(Table_PrintPI[[#This Row],[Line No.]]=\"\",\"\",CONCATENATE(Table_PrintPI[[#This Row],[Line No.]],\" - \",Table_SummaryPI[[#This Row],[MeasureName]]))","v":""},{"$f":"IF(Table_SummaryPI[[#This Row],[Manufacturer]]<>\"\",CONCATENATE(Table_SummaryPI[[#This Row],[Manufacturer]],\"/\",Table_SummaryPI[[#This Row],[Model'#]]),\"\")","v":""},{"$f":"IF(Table_SummaryPI[[#This Row],[Serial'#]]<>\"\",Table_SummaryPI[[#This Row],[Serial'#]],\"\")","v":""},{"$f":"IF(Table_SummaryPI[[#This Row],[Quantity]]<>\"\",Table_SummaryPI[[#This Row],[Quantity]],\"\")","v":""},{"$f":"IF(Table_SummaryPI[[#This Row],[BaselinekWh]]<>\"\",Table_SummaryPI[[#This Row],[BaselinekWh]],\"\")","v":""},{"$f":"IF(Table_SummaryPI[[#This Row],[BaselinekW]]<>\"\",Table_SummaryPI[[#This Row],[BaselinekW]],\"\")","v":""},{"$f":"IF(Table_SummaryPI[[#This Row],[ProposedkWh]]<>\"\",Table_SummaryPI[[#This Row],[ProposedkWh]],\"\")","v":""},{"$f":"IF(Table_SummaryPI[[#This Row],[ProposedkW]]<>\"\",Table_SummaryPI[[#This Row],[ProposedkW]],\"\")","v":""},{"$f":"IF(Table_SummaryPI[[#This Row],[Notes]]<>\"\",Table_SummaryPI[[#This Row],[Notes]],\"\")","v":""},{"$f":"IF(Table_SummaryPI[[#This Row],[Incentive_Customer]]<>\"\",Table_SummaryPI[[#This Row],[Incentive_Customer]],0)","v":0},{"$f":"IF(Table_SummaryPI[[#This Row],[MeasureCost]]<>\"\",Table_SummaryPI[[#This Row],[MeasureCost]],0)","v":0},{"$f":"IF(Table_SummaryPI[[#This Row],[kWhSavings]]<>\"\",Table_SummaryPI[[#This Row],[kWhSavings]],0)","v":0},{"$f":"IF(Table_SummaryPI[[#This Row],[DemandSavingskW]]<>\"\",Table_SummaryPI[[#This Row],[DemandSavingskW]],0)","v":0}]
[{"$f":"Table_SummaryPI[[#This Row],[Line No.]]","v":""},{"$f":"IF(Table_PrintPI[[#This Row],[Line No.]]=\"\",\"\",CONCATENATE(Table_PrintPI[[#This Row],[Line No.]],\" - \",Table_SummaryPI[[#This Row],[MeasureName]]))","v":""},{"$f":"IF(Table_SummaryPI[[#This Row],[Manufacturer]]<>\"\",CONCATENATE(Table_SummaryPI[[#This Row],[Manufacturer]],\"/\",Table_SummaryPI[[#This Row],[Model'#]]),\"\")","v":""},{"$f":"IF(Table_SummaryPI[[#This Row],[Serial'#]]<>\"\",Table_SummaryPI[[#This Row],[Serial'#]],\"\")","v":""},{"$f":"IF(Table_SummaryPI[[#This Row],[Quantity]]<>\"\",Table_SummaryPI[[#This Row],[Quantity]],\"\")","v":""},{"$f":"IF(Table_SummaryPI[[#This Row],[BaselinekWh]]<>\"\",Table_SummaryPI[[#This Row],[BaselinekWh]],\"\")","v":""},{"$f":"IF(Table_SummaryPI[[#This Row],[BaselinekW]]<>\"\",Table_SummaryPI[[#This Row],[BaselinekW]],\"\")","v":""},{"$f":"IF(Table_SummaryPI[[#This Row],[ProposedkWh]]<>\"\",Table_SummaryPI[[#This Row],[ProposedkWh]],\"\")","v":""},{"$f":"IF(Table_SummaryPI[[#This Row],[ProposedkW]]<>\"\",Table_SummaryPI[[#This Row],[ProposedkW]],\"\")","v":""},{"$f":"IF(Table_SummaryPI[[#This Row],[Notes]]<>\"\",Table_SummaryPI[[#This Row],[Notes]],\"\")","v":""},{"$f":"IF(Table_SummaryPI[[#This Row],[Incentive_Customer]]<>\"\",Table_SummaryPI[[#This Row],[Incentive_Customer]],0)","v":0},{"$f":"IF(Table_SummaryPI[[#This Row],[MeasureCost]]<>\"\",Table_SummaryPI[[#This Row],[MeasureCost]],0)","v":0},{"$f":"IF(Table_SummaryPI[[#This Row],[kWhSavings]]<>\"\",Table_SummaryPI[[#This Row],[kWhSavings]],0)","v":0},{"$f":"IF(Table_SummaryPI[[#This Row],[DemandSavingskW]]<>\"\",Table_SummaryPI[[#This Row],[DemandSavingskW]],0)","v":0}]
[{"$f":"Table_SummaryPI[[#This Row],[Line No.]]","v":""},{"$f":"IF(Table_PrintPI[[#This Row],[Line No.]]=\"\",\"\",CONCATENATE(Table_PrintPI[[#This Row],[Line No.]],\" - \",Table_SummaryPI[[#This Row],[MeasureName]]))","v":""},{"$f":"IF(Table_SummaryPI[[#This Row],[Manufacturer]]<>\"\",CONCATENATE(Table_SummaryPI[[#This Row],[Manufacturer]],\"/\",Table_SummaryPI[[#This Row],[Model'#]]),\"\")","v":""},{"$f":"IF(Table_SummaryPI[[#This Row],[Serial'#]]<>\"\",Table_SummaryPI[[#This Row],[Serial'#]],\"\")","v":""},{"$f":"IF(Table_SummaryPI[[#This Row],[Quantity]]<>\"\",Table_SummaryPI[[#This Row],[Quantity]],\"\")","v":""},{"$f":"IF(Table_SummaryPI[[#This Row],[BaselinekWh]]<>\"\",Table_SummaryPI[[#This Row],[BaselinekWh]],\"\")","v":""},{"$f":"IF(Table_SummaryPI[[#This Row],[BaselinekW]]<>\"\",Table_SummaryPI[[#This Row],[BaselinekW]],\"\")","v":""},{"$f":"IF(Table_SummaryPI[[#This Row],[ProposedkWh]]<>\"\",Table_SummaryPI[[#This Row],[ProposedkWh]],\"\")","v":""},{"$f":"IF(Table_SummaryPI[[#This Row],[ProposedkW]]<>\"\",Table_SummaryPI[[#This Row],[ProposedkW]],\"\")","v":""},{"$f":"IF(Table_SummaryPI[[#This Row],[Notes]]<>\"\",Table_SummaryPI[[#This Row],[Notes]],\"\")","v":""},{"$f":"IF(Table_SummaryPI[[#This Row],[Incentive_Customer]]<>\"\",Table_SummaryPI[[#This Row],[Incentive_Customer]],0)","v":0},{"$f":"IF(Table_SummaryPI[[#This Row],[MeasureCost]]<>\"\",Table_SummaryPI[[#This Row],[MeasureCost]],0)","v":0},{"$f":"IF(Table_SummaryPI[[#This Row],[kWhSavings]]<>\"\",Table_SummaryPI[[#This Row],[kWhSavings]],0)","v":0},{"$f":"IF(Table_SummaryPI[[#This Row],[DemandSavingskW]]<>\"\",Table_SummaryPI[[#This Row],[DemandSavingskW]],0)","v":0}]
[{"$f":"Table_SummaryPI[[#This Row],[Line No.]]","v":""},{"$f":"IF(Table_PrintPI[[#This Row],[Line No.]]=\"\",\"\",CONCATENATE(Table_PrintPI[[#This Row],[Line No.]],\" - \",Table_SummaryPI[[#This Row],[MeasureName]]))","v":""},{"$f":"IF(Table_SummaryPI[[#This Row],[Manufacturer]]<>\"\",CONCATENATE(Table_SummaryPI[[#This Row],[Manufacturer]],\"/\",Table_SummaryPI[[#This Row],[Model'#]]),\"\")","v":""},{"$f":"IF(Table_SummaryPI[[#This Row],[Serial'#]]<>\"\",Table_SummaryPI[[#This Row],[Serial'#]],\"\")","v":""},{"$f":"IF(Table_SummaryPI[[#This Row],[Quantity]]<>\"\",Table_SummaryPI[[#This Row],[Quantity]],\"\")","v":""},{"$f":"IF(Table_SummaryPI[[#This Row],[BaselinekWh]]<>\"\",Table_SummaryPI[[#This Row],[BaselinekWh]],\"\")","v":""},{"$f":"IF(Table_SummaryPI[[#This Row],[BaselinekW]]<>\"\",Table_SummaryPI[[#This Row],[BaselinekW]],\"\")","v":""},{"$f":"IF(Table_SummaryPI[[#This Row],[ProposedkWh]]<>\"\",Table_SummaryPI[[#This Row],[ProposedkWh]],\"\")","v":""},{"$f":"IF(Table_SummaryPI[[#This Row],[ProposedkW]]<>\"\",Table_SummaryPI[[#This Row],[ProposedkW]],\"\")","v":""},{"$f":"IF(Table_SummaryPI[[#This Row],[Notes]]<>\"\",Table_SummaryPI[[#This Row],[Notes]],\"\")","v":""},{"$f":"IF(Table_SummaryPI[[#This Row],[Incentive_Customer]]<>\"\",Table_SummaryPI[[#This Row],[Incentive_Customer]],0)","v":0},{"$f":"IF(Table_SummaryPI[[#This Row],[MeasureCost]]<>\"\",Table_SummaryPI[[#This Row],[MeasureCost]],0)","v":0},{"$f":"IF(Table_SummaryPI[[#This Row],[kWhSavings]]<>\"\",Table_SummaryPI[[#This Row],[kWhSavings]],0)","v":0},{"$f":"IF(Table_SummaryPI[[#This Row],[DemandSavingskW]]<>\"\",Table_SummaryPI[[#This Row],[DemandSavingskW]],0)","v":0}]
[{"$f":"Table_SummaryPI[[#This Row],[Line No.]]","v":""},{"$f":"IF(Table_PrintPI[[#This Row],[Line No.]]=\"\",\"\",CONCATENATE(Table_PrintPI[[#This Row],[Line No.]],\" - \",Table_SummaryPI[[#This Row],[MeasureName]]))","v":""},{"$f":"IF(Table_SummaryPI[[#This Row],[Manufacturer]]<>\"\",CONCATENATE(Table_SummaryPI[[#This Row],[Manufacturer]],\"/\",Table_SummaryPI[[#This Row],[Model'#]]),\"\")","v":""},{"$f":"IF(Table_SummaryPI[[#This Row],[Serial'#]]<>\"\",Table_SummaryPI[[#This Row],[Serial'#]],\"\")","v":""},{"$f":"IF(Table_SummaryPI[[#This Row],[Quantity]]<>\"\",Table_SummaryPI[[#This Row],[Quantity]],\"\")","v":""},{"$f":"IF(Table_SummaryPI[[#This Row],[BaselinekWh]]<>\"\",Table_SummaryPI[[#This Row],[BaselinekWh]],\"\")","v":""},{"$f":"IF(Table_SummaryPI[[#This Row],[BaselinekW]]<>\"\",Table_SummaryPI[[#This Row],[BaselinekW]],\"\")","v":""},{"$f":"IF(Table_SummaryPI[[#This Row],[ProposedkWh]]<>\"\",Table_SummaryPI[[#This Row],[ProposedkWh]],\"\")","v":""},{"$f":"IF(Table_SummaryPI[[#This Row],[ProposedkW]]<>\"\",Table_SummaryPI[[#This Row],[ProposedkW]],\"\")","v":""},{"$f":"IF(Table_SummaryPI[[#This Row],[Notes]]<>\"\",Table_SummaryPI[[#This Row],[Notes]],\"\")","v":""},{"$f":"IF(Table_SummaryPI[[#This Row],[Incentive_Customer]]<>\"\",Table_SummaryPI[[#This Row],[Incentive_Customer]],0)","v":0},{"$f":"IF(Table_SummaryPI[[#This Row],[MeasureCost]]<>\"\",Table_SummaryPI[[#This Row],[MeasureCost]],0)","v":0},{"$f":"IF(Table_SummaryPI[[#This Row],[kWhSavings]]<>\"\",Table_SummaryPI[[#This Row],[kWhSavings]],0)","v":0},{"$f":"IF(Table_SummaryPI[[#This Row],[DemandSavingskW]]<>\"\",Table_SummaryPI[[#This Row],[DemandSavingskW]],0)","v":0}]
[{"$f":"Table_SummaryPI[[#This Row],[Line No.]]","v":""},{"$f":"IF(Table_PrintPI[[#This Row],[Line No.]]=\"\",\"\",CONCATENATE(Table_PrintPI[[#This Row],[Line No.]],\" - \",Table_SummaryPI[[#This Row],[MeasureName]]))","v":""},{"$f":"IF(Table_SummaryPI[[#This Row],[Manufacturer]]<>\"\",CONCATENATE(Table_SummaryPI[[#This Row],[Manufacturer]],\"/\",Table_SummaryPI[[#This Row],[Model'#]]),\"\")","v":""},{"$f":"IF(Table_SummaryPI[[#This Row],[Serial'#]]<>\"\",Table_SummaryPI[[#This Row],[Serial'#]],\"\")","v":""},{"$f":"IF(Table_SummaryPI[[#This Row],[Quantity]]<>\"\",Table_SummaryPI[[#This Row],[Quantity]],\"\")","v":""},{"$f":"IF(Table_SummaryPI[[#This Row],[BaselinekWh]]<>\"\",Table_SummaryPI[[#This Row],[BaselinekWh]],\"\")","v":""},{"$f":"IF(Table_SummaryPI[[#This Row],[BaselinekW]]<>\"\",Table_SummaryPI[[#This Row],[BaselinekW]],\"\")","v":""},{"$f":"IF(Table_SummaryPI[[#This Row],[ProposedkWh]]<>\"\",Table_SummaryPI[[#This Row],[ProposedkWh]],\"\")","v":""},{"$f":"IF(Table_SummaryPI[[#This Row],[ProposedkW]]<>\"\",Table_SummaryPI[[#This Row],[ProposedkW]],\"\")","v":""},{"$f":"IF(Table_SummaryPI[[#This Row],[Notes]]<>\"\",Table_SummaryPI[[#This Row],[Notes]],\"\")","v":""},{"$f":"IF(Table_SummaryPI[[#This Row],[Incentive_Customer]]<>\"\",Table_SummaryPI[[#This Row],[Incentive_Customer]],0)","v":0},{"$f":"IF(Table_SummaryPI[[#This Row],[MeasureCost]]<>\"\",Table_SummaryPI[[#This Row],[MeasureCost]],0)","v":0},{"$f":"IF(Table_SummaryPI[[#This Row],[kWhSavings]]<>\"\",Table_SummaryPI[[#This Row],[kWhSavings]],0)","v":0},{"$f":"IF(Table_SummaryPI[[#This Row],[DemandSavingskW]]<>\"\",Table_SummaryPI[[#This Row],[DemandSavingskW]],0)","v":0}]
[{"$f":"Table_SummaryPI[[#This Row],[Line No.]]","v":""},{"$f":"IF(Table_PrintPI[[#This Row],[Line No.]]=\"\",\"\",CONCATENATE(Table_PrintPI[[#This Row],[Line No.]],\" - \",Table_SummaryPI[[#This Row],[MeasureName]]))","v":""},{"$f":"IF(Table_SummaryPI[[#This Row],[Manufacturer]]<>\"\",CONCATENATE(Table_SummaryPI[[#This Row],[Manufacturer]],\"/\",Table_SummaryPI[[#This Row],[Model'#]]),\"\")","v":""},{"$f":"IF(Table_SummaryPI[[#This Row],[Serial'#]]<>\"\",Table_SummaryPI[[#This Row],[Serial'#]],\"\")","v":""},{"$f":"IF(Table_SummaryPI[[#This Row],[Quantity]]<>\"\",Table_SummaryPI[[#This Row],[Quantity]],\"\")","v":""},{"$f":"IF(Table_SummaryPI[[#This Row],[BaselinekWh]]<>\"\",Table_SummaryPI[[#This Row],[BaselinekWh]],\"\")","v":""},{"$f":"IF(Table_SummaryPI[[#This Row],[BaselinekW]]<>\"\",Table_SummaryPI[[#This Row],[BaselinekW]],\"\")","v":""},{"$f":"IF(Table_SummaryPI[[#This Row],[ProposedkWh]]<>\"\",Table_SummaryPI[[#This Row],[ProposedkWh]],\"\")","v":""},{"$f":"IF(Table_SummaryPI[[#This Row],[ProposedkW]]<>\"\",Table_SummaryPI[[#This Row],[ProposedkW]],\"\")","v":""},{"$f":"IF(Table_SummaryPI[[#This Row],[Notes]]<>\"\",Table_SummaryPI[[#This Row],[Notes]],\"\")","v":""},{"$f":"IF(Table_SummaryPI[[#This Row],[Incentive_Customer]]<>\"\",Table_SummaryPI[[#This Row],[Incentive_Customer]],0)","v":0},{"$f":"IF(Table_SummaryPI[[#This Row],[MeasureCost]]<>\"\",Table_SummaryPI[[#This Row],[MeasureCost]],0)","v":0},{"$f":"IF(Table_SummaryPI[[#This Row],[kWhSavings]]<>\"\",Table_SummaryPI[[#This Row],[kWhSavings]],0)","v":0},{"$f":"IF(Table_SummaryPI[[#This Row],[DemandSavingskW]]<>\"\",Table_SummaryPI[[#This Row],[DemandSavingskW]],0)","v":0}]
[{"$f":"Table_SummaryPI[[#This Row],[Line No.]]","v":""},{"$f":"IF(Table_PrintPI[[#This Row],[Line No.]]=\"\",\"\",CONCATENATE(Table_PrintPI[[#This Row],[Line No.]],\" - \",Table_SummaryPI[[#This Row],[MeasureName]]))","v":""},{"$f":"IF(Table_SummaryPI[[#This Row],[Manufacturer]]<>\"\",CONCATENATE(Table_SummaryPI[[#This Row],[Manufacturer]],\"/\",Table_SummaryPI[[#This Row],[Model'#]]),\"\")","v":""},{"$f":"IF(Table_SummaryPI[[#This Row],[Serial'#]]<>\"\",Table_SummaryPI[[#This Row],[Serial'#]],\"\")","v":""},{"$f":"IF(Table_SummaryPI[[#This Row],[Quantity]]<>\"\",Table_SummaryPI[[#This Row],[Quantity]],\"\")","v":""},{"$f":"IF(Table_SummaryPI[[#This Row],[BaselinekWh]]<>\"\",Table_SummaryPI[[#This Row],[BaselinekWh]],\"\")","v":""},{"$f":"IF(Table_SummaryPI[[#This Row],[BaselinekW]]<>\"\",Table_SummaryPI[[#This Row],[BaselinekW]],\"\")","v":""},{"$f":"IF(Table_SummaryPI[[#This Row],[ProposedkWh]]<>\"\",Table_SummaryPI[[#This Row],[ProposedkWh]],\"\")","v":""},{"$f":"IF(Table_SummaryPI[[#This Row],[ProposedkW]]<>\"\",Table_SummaryPI[[#This Row],[ProposedkW]],\"\")","v":""},{"$f":"IF(Table_SummaryPI[[#This Row],[Notes]]<>\"\",Table_SummaryPI[[#This Row],[Notes]],\"\")","v":""},{"$f":"IF(Table_SummaryPI[[#This Row],[Incentive_Customer]]<>\"\",Table_SummaryPI[[#This Row],[Incentive_Customer]],0)","v":0},{"$f":"IF(Table_SummaryPI[[#This Row],[MeasureCost]]<>\"\",Table_SummaryPI[[#This Row],[MeasureCost]],0)","v":0},{"$f":"IF(Table_SummaryPI[[#This Row],[kWhSavings]]<>\"\",Table_SummaryPI[[#This Row],[kWhSavings]],0)","v":0},{"$f":"IF(Table_SummaryPI[[#This Row],[DemandSavingskW]]<>\"\",Table_SummaryPI[[#This Row],[DemandSavingskW]],0)","v":0}]
[{"$f":"Table_SummaryPI[[#This Row],[Line No.]]","v":""},{"$f":"IF(Table_PrintPI[[#This Row],[Line No.]]=\"\",\"\",CONCATENATE(Table_PrintPI[[#This Row],[Line No.]],\" - \",Table_SummaryPI[[#This Row],[MeasureName]]))","v":""},{"$f":"IF(Table_SummaryPI[[#This Row],[Manufacturer]]<>\"\",CONCATENATE(Table_SummaryPI[[#This Row],[Manufacturer]],\"/\",Table_SummaryPI[[#This Row],[Model'#]]),\"\")","v":""},{"$f":"IF(Table_SummaryPI[[#This Row],[Serial'#]]<>\"\",Table_SummaryPI[[#This Row],[Serial'#]],\"\")","v":""},{"$f":"IF(Table_SummaryPI[[#This Row],[Quantity]]<>\"\",Table_SummaryPI[[#This Row],[Quantity]],\"\")","v":""},{"$f":"IF(Table_SummaryPI[[#This Row],[BaselinekWh]]<>\"\",Table_SummaryPI[[#This Row],[BaselinekWh]],\"\")","v":""},{"$f":"IF(Table_SummaryPI[[#This Row],[BaselinekW]]<>\"\",Table_SummaryPI[[#This Row],[BaselinekW]],\"\")","v":""},{"$f":"IF(Table_SummaryPI[[#This Row],[ProposedkWh]]<>\"\",Table_SummaryPI[[#This Row],[ProposedkWh]],\"\")","v":""},{"$f":"IF(Table_SummaryPI[[#This Row],[ProposedkW]]<>\"\",Table_SummaryPI[[#This Row],[ProposedkW]],\"\")","v":""},{"$f":"IF(Table_SummaryPI[[#This Row],[Notes]]<>\"\",Table_SummaryPI[[#This Row],[Notes]],\"\")","v":""},{"$f":"IF(Table_SummaryPI[[#This Row],[Incentive_Customer]]<>\"\",Table_SummaryPI[[#This Row],[Incentive_Customer]],0)","v":0},{"$f":"IF(Table_SummaryPI[[#This Row],[MeasureCost]]<>\"\",Table_SummaryPI[[#This Row],[MeasureCost]],0)","v":0},{"$f":"IF(Table_SummaryPI[[#This Row],[kWhSavings]]<>\"\",Table_SummaryPI[[#This Row],[kWhSavings]],0)","v":0},{"$f":"IF(Table_SummaryPI[[#This Row],[DemandSavingskW]]<>\"\",Table_SummaryPI[[#This Row],[DemandSavingskW]],0)","v":0}]
[{"$f":"Table_SummaryPI[[#This Row],[Line No.]]","v":""},{"$f":"IF(Table_PrintPI[[#This Row],[Line No.]]=\"\",\"\",CONCATENATE(Table_PrintPI[[#This Row],[Line No.]],\" - \",Table_SummaryPI[[#This Row],[MeasureName]]))","v":""},{"$f":"IF(Table_SummaryPI[[#This Row],[Manufacturer]]<>\"\",CONCATENATE(Table_SummaryPI[[#This Row],[Manufacturer]],\"/\",Table_SummaryPI[[#This Row],[Model'#]]),\"\")","v":""},{"$f":"IF(Table_SummaryPI[[#This Row],[Serial'#]]<>\"\",Table_SummaryPI[[#This Row],[Serial'#]],\"\")","v":""},{"$f":"IF(Table_SummaryPI[[#This Row],[Quantity]]<>\"\",Table_SummaryPI[[#This Row],[Quantity]],\"\")","v":""},{"$f":"IF(Table_SummaryPI[[#This Row],[BaselinekWh]]<>\"\",Table_SummaryPI[[#This Row],[BaselinekWh]],\"\")","v":""},{"$f":"IF(Table_SummaryPI[[#This Row],[BaselinekW]]<>\"\",Table_SummaryPI[[#This Row],[BaselinekW]],\"\")","v":""},{"$f":"IF(Table_SummaryPI[[#This Row],[ProposedkWh]]<>\"\",Table_SummaryPI[[#This Row],[ProposedkWh]],\"\")","v":""},{"$f":"IF(Table_SummaryPI[[#This Row],[ProposedkW]]<>\"\",Table_SummaryPI[[#This Row],[ProposedkW]],\"\")","v":""},{"$f":"IF(Table_SummaryPI[[#This Row],[Notes]]<>\"\",Table_SummaryPI[[#This Row],[Notes]],\"\")","v":""},{"$f":"IF(Table_SummaryPI[[#This Row],[Incentive_Customer]]<>\"\",Table_SummaryPI[[#This Row],[Incentive_Customer]],0)","v":0},{"$f":"IF(Table_SummaryPI[[#This Row],[MeasureCost]]<>\"\",Table_SummaryPI[[#This Row],[MeasureCost]],0)","v":0},{"$f":"IF(Table_SummaryPI[[#This Row],[kWhSavings]]<>\"\",Table_SummaryPI[[#This Row],[kWhSavings]],0)","v":0},{"$f":"IF(Table_SummaryPI[[#This Row],[DemandSavingskW]]<>\"\",Table_SummaryPI[[#This Row],[DemandSavingskW]],0)","v":0}]
[{"$f":"Table_SummaryPI[[#This Row],[Line No.]]","v":""},{"$f":"IF(Table_PrintPI[[#This Row],[Line No.]]=\"\",\"\",CONCATENATE(Table_PrintPI[[#This Row],[Line No.]],\" - \",Table_SummaryPI[[#This Row],[MeasureName]]))","v":""},{"$f":"IF(Table_SummaryPI[[#This Row],[Manufacturer]]<>\"\",CONCATENATE(Table_SummaryPI[[#This Row],[Manufacturer]],\"/\",Table_SummaryPI[[#This Row],[Model'#]]),\"\")","v":""},{"$f":"IF(Table_SummaryPI[[#This Row],[Serial'#]]<>\"\",Table_SummaryPI[[#This Row],[Serial'#]],\"\")","v":""},{"$f":"IF(Table_SummaryPI[[#This Row],[Quantity]]<>\"\",Table_SummaryPI[[#This Row],[Quantity]],\"\")","v":""},{"$f":"IF(Table_SummaryPI[[#This Row],[BaselinekWh]]<>\"\",Table_SummaryPI[[#This Row],[BaselinekWh]],\"\")","v":""},{"$f":"IF(Table_SummaryPI[[#This Row],[BaselinekW]]<>\"\",Table_SummaryPI[[#This Row],[BaselinekW]],\"\")","v":""},{"$f":"IF(Table_SummaryPI[[#This Row],[ProposedkWh]]<>\"\",Table_SummaryPI[[#This Row],[ProposedkWh]],\"\")","v":""},{"$f":"IF(Table_SummaryPI[[#This Row],[ProposedkW]]<>\"\",Table_SummaryPI[[#This Row],[ProposedkW]],\"\")","v":""},{"$f":"IF(Table_SummaryPI[[#This Row],[Notes]]<>\"\",Table_SummaryPI[[#This Row],[Notes]],\"\")","v":""},{"$f":"IF(Table_SummaryPI[[#This Row],[Incentive_Customer]]<>\"\",Table_SummaryPI[[#This Row],[Incentive_Customer]],0)","v":0},{"$f":"IF(Table_SummaryPI[[#This Row],[MeasureCost]]<>\"\",Table_SummaryPI[[#This Row],[MeasureCost]],0)","v":0},{"$f":"IF(Table_SummaryPI[[#This Row],[kWhSavings]]<>\"\",Table_SummaryPI[[#This Row],[kWhSavings]],0)","v":0},{"$f":"IF(Table_SummaryPI[[#This Row],[DemandSavingskW]]<>\"\",Table_SummaryPI[[#This Row],[DemandSavingskW]],0)","v":0}]
[{"$f":"Table_SummaryPI[[#This Row],[Line No.]]","v":""},{"$f":"IF(Table_PrintPI[[#This Row],[Line No.]]=\"\",\"\",CONCATENATE(Table_PrintPI[[#This Row],[Line No.]],\" - \",Table_SummaryPI[[#This Row],[MeasureName]]))","v":""},{"$f":"IF(Table_SummaryPI[[#This Row],[Manufacturer]]<>\"\",CONCATENATE(Table_SummaryPI[[#This Row],[Manufacturer]],\"/\",Table_SummaryPI[[#This Row],[Model'#]]),\"\")","v":""},{"$f":"IF(Table_SummaryPI[[#This Row],[Serial'#]]<>\"\",Table_SummaryPI[[#This Row],[Serial'#]],\"\")","v":""},{"$f":"IF(Table_SummaryPI[[#This Row],[Quantity]]<>\"\",Table_SummaryPI[[#This Row],[Quantity]],\"\")","v":""},{"$f":"IF(Table_SummaryPI[[#This Row],[BaselinekWh]]<>\"\",Table_SummaryPI[[#This Row],[BaselinekWh]],\"\")","v":""},{"$f":"IF(Table_SummaryPI[[#This Row],[BaselinekW]]<>\"\",Table_SummaryPI[[#This Row],[BaselinekW]],\"\")","v":""},{"$f":"IF(Table_SummaryPI[[#This Row],[ProposedkWh]]<>\"\",Table_SummaryPI[[#This Row],[ProposedkWh]],\"\")","v":""},{"$f":"IF(Table_SummaryPI[[#This Row],[ProposedkW]]<>\"\",Table_SummaryPI[[#This Row],[ProposedkW]],\"\")","v":""},{"$f":"IF(Table_SummaryPI[[#This Row],[Notes]]<>\"\",Table_SummaryPI[[#This Row],[Notes]],\"\")","v":""},{"$f":"IF(Table_SummaryPI[[#This Row],[Incentive_Customer]]<>\"\",Table_SummaryPI[[#This Row],[Incentive_Customer]],0)","v":0},{"$f":"IF(Table_SummaryPI[[#This Row],[MeasureCost]]<>\"\",Table_SummaryPI[[#This Row],[MeasureCost]],0)","v":0},{"$f":"IF(Table_SummaryPI[[#This Row],[kWhSavings]]<>\"\",Table_SummaryPI[[#This Row],[kWhSavings]],0)","v":0},{"$f":"IF(Table_SummaryPI[[#This Row],[DemandSavingskW]]<>\"\",Table_SummaryPI[[#This Row],[DemandSavingskW]],0)","v":0}]
[{"$f":"Table_SummaryPI[[#This Row],[Line No.]]","v":""},{"$f":"IF(Table_PrintPI[[#This Row],[Line No.]]=\"\",\"\",CONCATENATE(Table_PrintPI[[#This Row],[Line No.]],\" - \",Table_SummaryPI[[#This Row],[MeasureName]]))","v":""},{"$f":"IF(Table_SummaryPI[[#This Row],[Manufacturer]]<>\"\",CONCATENATE(Table_SummaryPI[[#This Row],[Manufacturer]],\"/\",Table_SummaryPI[[#This Row],[Model'#]]),\"\")","v":""},{"$f":"IF(Table_SummaryPI[[#This Row],[Serial'#]]<>\"\",Table_SummaryPI[[#This Row],[Serial'#]],\"\")","v":""},{"$f":"IF(Table_SummaryPI[[#This Row],[Quantity]]<>\"\",Table_SummaryPI[[#This Row],[Quantity]],\"\")","v":""},{"$f":"IF(Table_SummaryPI[[#This Row],[BaselinekWh]]<>\"\",Table_SummaryPI[[#This Row],[BaselinekWh]],\"\")","v":""},{"$f":"IF(Table_SummaryPI[[#This Row],[BaselinekW]]<>\"\",Table_SummaryPI[[#This Row],[BaselinekW]],\"\")","v":""},{"$f":"IF(Table_SummaryPI[[#This Row],[ProposedkWh]]<>\"\",Table_SummaryPI[[#This Row],[ProposedkWh]],\"\")","v":""},{"$f":"IF(Table_SummaryPI[[#This Row],[ProposedkW]]<>\"\",Table_SummaryPI[[#This Row],[ProposedkW]],\"\")","v":""},{"$f":"IF(Table_SummaryPI[[#This Row],[Notes]]<>\"\",Table_SummaryPI[[#This Row],[Notes]],\"\")","v":""},{"$f":"IF(Table_SummaryPI[[#This Row],[Incentive_Customer]]<>\"\",Table_SummaryPI[[#This Row],[Incentive_Customer]],0)","v":0},{"$f":"IF(Table_SummaryPI[[#This Row],[MeasureCost]]<>\"\",Table_SummaryPI[[#This Row],[MeasureCost]],0)","v":0},{"$f":"IF(Table_SummaryPI[[#This Row],[kWhSavings]]<>\"\",Table_SummaryPI[[#This Row],[kWhSavings]],0)","v":0},{"$f":"IF(Table_SummaryPI[[#This Row],[DemandSavingskW]]<>\"\",Table_SummaryPI[[#This Row],[DemandSavingskW]],0)","v":0}]
[{"$f":"Table_SummaryPI[[#This Row],[Line No.]]","v":""},{"$f":"IF(Table_PrintPI[[#This Row],[Line No.]]=\"\",\"\",CONCATENATE(Table_PrintPI[[#This Row],[Line No.]],\" - \",Table_SummaryPI[[#This Row],[MeasureName]]))","v":""},{"$f":"IF(Table_SummaryPI[[#This Row],[Manufacturer]]<>\"\",CONCATENATE(Table_SummaryPI[[#This Row],[Manufacturer]],\"/\",Table_SummaryPI[[#This Row],[Model'#]]),\"\")","v":""},{"$f":"IF(Table_SummaryPI[[#This Row],[Serial'#]]<>\"\",Table_SummaryPI[[#This Row],[Serial'#]],\"\")","v":""},{"$f":"IF(Table_SummaryPI[[#This Row],[Quantity]]<>\"\",Table_SummaryPI[[#This Row],[Quantity]],\"\")","v":""},{"$f":"IF(Table_SummaryPI[[#This Row],[BaselinekWh]]<>\"\",Table_SummaryPI[[#This Row],[BaselinekWh]],\"\")","v":""},{"$f":"IF(Table_SummaryPI[[#This Row],[BaselinekW]]<>\"\",Table_SummaryPI[[#This Row],[BaselinekW]],\"\")","v":""},{"$f":"IF(Table_SummaryPI[[#This Row],[ProposedkWh]]<>\"\",Table_SummaryPI[[#This Row],[ProposedkWh]],\"\")","v":""},{"$f":"IF(Table_SummaryPI[[#This Row],[ProposedkW]]<>\"\",Table_SummaryPI[[#This Row],[ProposedkW]],\"\")","v":""},{"$f":"IF(Table_SummaryPI[[#This Row],[Notes]]<>\"\",Table_SummaryPI[[#This Row],[Notes]],\"\")","v":""},{"$f":"IF(Table_SummaryPI[[#This Row],[Incentive_Customer]]<>\"\",Table_SummaryPI[[#This Row],[Incentive_Customer]],0)","v":0},{"$f":"IF(Table_SummaryPI[[#This Row],[MeasureCost]]<>\"\",Table_SummaryPI[[#This Row],[MeasureCost]],0)","v":0},{"$f":"IF(Table_SummaryPI[[#This Row],[kWhSavings]]<>\"\",Table_SummaryPI[[#This Row],[kWhSavings]],0)","v":0},{"$f":"IF(Table_SummaryPI[[#This Row],[DemandSavingskW]]<>\"\",Table_SummaryPI[[#This Row],[DemandSavingskW]],0)","v":0}]
[{"$f":"Table_SummaryPI[[#This Row],[Line No.]]","v":""},{"$f":"IF(Table_PrintPI[[#This Row],[Line No.]]=\"\",\"\",CONCATENATE(Table_PrintPI[[#This Row],[Line No.]],\" - \",Table_SummaryPI[[#This Row],[MeasureName]]))","v":""},{"$f":"IF(Table_SummaryPI[[#This Row],[Manufacturer]]<>\"\",CONCATENATE(Table_SummaryPI[[#This Row],[Manufacturer]],\"/\",Table_SummaryPI[[#This Row],[Model'#]]),\"\")","v":""},{"$f":"IF(Table_SummaryPI[[#This Row],[Serial'#]]<>\"\",Table_SummaryPI[[#This Row],[Serial'#]],\"\")","v":""},{"$f":"IF(Table_SummaryPI[[#This Row],[Quantity]]<>\"\",Table_SummaryPI[[#This Row],[Quantity]],\"\")","v":""},{"$f":"IF(Table_SummaryPI[[#This Row],[BaselinekWh]]<>\"\",Table_SummaryPI[[#This Row],[BaselinekWh]],\"\")","v":""},{"$f":"IF(Table_SummaryPI[[#This Row],[BaselinekW]]<>\"\",Table_SummaryPI[[#This Row],[BaselinekW]],\"\")","v":""},{"$f":"IF(Table_SummaryPI[[#This Row],[ProposedkWh]]<>\"\",Table_SummaryPI[[#This Row],[ProposedkWh]],\"\")","v":""},{"$f":"IF(Table_SummaryPI[[#This Row],[ProposedkW]]<>\"\",Table_SummaryPI[[#This Row],[ProposedkW]],\"\")","v":""},{"$f":"IF(Table_SummaryPI[[#This Row],[Notes]]<>\"\",Table_SummaryPI[[#This Row],[Notes]],\"\")","v":""},{"$f":"IF(Table_SummaryPI[[#This Row],[Incentive_Customer]]<>\"\",Table_SummaryPI[[#This Row],[Incentive_Customer]],0)","v":0},{"$f":"IF(Table_SummaryPI[[#This Row],[MeasureCost]]<>\"\",Table_SummaryPI[[#This Row],[MeasureCost]],0)","v":0},{"$f":"IF(Table_SummaryPI[[#This Row],[kWhSavings]]<>\"\",Table_SummaryPI[[#This Row],[kWhSavings]],0)","v":0},{"$f":"IF(Table_SummaryPI[[#This Row],[DemandSavingskW]]<>\"\",Table_SummaryPI[[#This Row],[DemandSavingskW]],0)","v":0}]
[{"$f":"Table_SummaryPI[[#This Row],[Line No.]]","v":""},{"$f":"IF(Table_PrintPI[[#This Row],[Line No.]]=\"\",\"\",CONCATENATE(Table_PrintPI[[#This Row],[Line No.]],\" - \",Table_SummaryPI[[#This Row],[MeasureName]]))","v":""},{"$f":"IF(Table_SummaryPI[[#This Row],[Manufacturer]]<>\"\",CONCATENATE(Table_SummaryPI[[#This Row],[Manufacturer]],\"/\",Table_SummaryPI[[#This Row],[Model'#]]),\"\")","v":""},{"$f":"IF(Table_SummaryPI[[#This Row],[Serial'#]]<>\"\",Table_SummaryPI[[#This Row],[Serial'#]],\"\")","v":""},{"$f":"IF(Table_SummaryPI[[#This Row],[Quantity]]<>\"\",Table_SummaryPI[[#This Row],[Quantity]],\"\")","v":""},{"$f":"IF(Table_SummaryPI[[#This Row],[BaselinekWh]]<>\"\",Table_SummaryPI[[#This Row],[BaselinekWh]],\"\")","v":""},{"$f":"IF(Table_SummaryPI[[#This Row],[BaselinekW]]<>\"\",Table_SummaryPI[[#This Row],[BaselinekW]],\"\")","v":""},{"$f":"IF(Table_SummaryPI[[#This Row],[ProposedkWh]]<>\"\",Table_SummaryPI[[#This Row],[ProposedkWh]],\"\")","v":""},{"$f":"IF(Table_SummaryPI[[#This Row],[ProposedkW]]<>\"\",Table_SummaryPI[[#This Row],[ProposedkW]],\"\")","v":""},{"$f":"IF(Table_SummaryPI[[#This Row],[Notes]]<>\"\",Table_SummaryPI[[#This Row],[Notes]],\"\")","v":""},{"$f":"IF(Table_SummaryPI[[#This Row],[Incentive_Customer]]<>\"\",Table_SummaryPI[[#This Row],[Incentive_Customer]],0)","v":0},{"$f":"IF(Table_SummaryPI[[#This Row],[MeasureCost]]<>\"\",Table_SummaryPI[[#This Row],[MeasureCost]],0)","v":0},{"$f":"IF(Table_SummaryPI[[#This Row],[kWhSavings]]<>\"\",Table_SummaryPI[[#This Row],[kWhSavings]],0)","v":0},{"$f":"IF(Table_SummaryPI[[#This Row],[DemandSavingskW]]<>\"\",Table_SummaryPI[[#This Row],[DemandSavingskW]],0)","v":0}]
[{"$f":"Table_SummaryPI[[#This Row],[Line No.]]","v":""},{"$f":"IF(Table_PrintPI[[#This Row],[Line No.]]=\"\",\"\",CONCATENATE(Table_PrintPI[[#This Row],[Line No.]],\" - \",Table_SummaryPI[[#This Row],[MeasureName]]))","v":""},{"$f":"IF(Table_SummaryPI[[#This Row],[Manufacturer]]<>\"\",CONCATENATE(Table_SummaryPI[[#This Row],[Manufacturer]],\"/\",Table_SummaryPI[[#This Row],[Model'#]]),\"\")","v":""},{"$f":"IF(Table_SummaryPI[[#This Row],[Serial'#]]<>\"\",Table_SummaryPI[[#This Row],[Serial'#]],\"\")","v":""},{"$f":"IF(Table_SummaryPI[[#This Row],[Quantity]]<>\"\",Table_SummaryPI[[#This Row],[Quantity]],\"\")","v":""},{"$f":"IF(Table_SummaryPI[[#This Row],[BaselinekWh]]<>\"\",Table_SummaryPI[[#This Row],[BaselinekWh]],\"\")","v":""},{"$f":"IF(Table_SummaryPI[[#This Row],[BaselinekW]]<>\"\",Table_SummaryPI[[#This Row],[BaselinekW]],\"\")","v":""},{"$f":"IF(Table_SummaryPI[[#This Row],[ProposedkWh]]<>\"\",Table_SummaryPI[[#This Row],[ProposedkWh]],\"\")","v":""},{"$f":"IF(Table_SummaryPI[[#This Row],[ProposedkW]]<>\"\",Table_SummaryPI[[#This Row],[ProposedkW]],\"\")","v":""},{"$f":"IF(Table_SummaryPI[[#This Row],[Notes]]<>\"\",Table_SummaryPI[[#This Row],[Notes]],\"\")","v":""},{"$f":"IF(Table_SummaryPI[[#This Row],[Incentive_Customer]]<>\"\",Table_SummaryPI[[#This Row],[Incentive_Customer]],0)","v":0},{"$f":"IF(Table_SummaryPI[[#This Row],[MeasureCost]]<>\"\",Table_SummaryPI[[#This Row],[MeasureCost]],0)","v":0},{"$f":"IF(Table_SummaryPI[[#This Row],[kWhSavings]]<>\"\",Table_SummaryPI[[#This Row],[kWhSavings]],0)","v":0},{"$f":"IF(Table_SummaryPI[[#This Row],[DemandSavingskW]]<>\"\",Table_SummaryPI[[#This Row],[DemandSavingskW]],0)","v":0}]
[{"$f":"Table_SummaryPI[[#This Row],[Line No.]]","v":""},{"$f":"IF(Table_PrintPI[[#This Row],[Line No.]]=\"\",\"\",CONCATENATE(Table_PrintPI[[#This Row],[Line No.]],\" - \",Table_SummaryPI[[#This Row],[MeasureName]]))","v":""},{"$f":"IF(Table_SummaryPI[[#This Row],[Manufacturer]]<>\"\",CONCATENATE(Table_SummaryPI[[#This Row],[Manufacturer]],\"/\",Table_SummaryPI[[#This Row],[Model'#]]),\"\")","v":""},{"$f":"IF(Table_SummaryPI[[#This Row],[Serial'#]]<>\"\",Table_SummaryPI[[#This Row],[Serial'#]],\"\")","v":""},{"$f":"IF(Table_SummaryPI[[#This Row],[Quantity]]<>\"\",Table_SummaryPI[[#This Row],[Quantity]],\"\")","v":""},{"$f":"IF(Table_SummaryPI[[#This Row],[BaselinekWh]]<>\"\",Table_SummaryPI[[#This Row],[BaselinekWh]],\"\")","v":""},{"$f":"IF(Table_SummaryPI[[#This Row],[BaselinekW]]<>\"\",Table_SummaryPI[[#This Row],[BaselinekW]],\"\")","v":""},{"$f":"IF(Table_SummaryPI[[#This Row],[ProposedkWh]]<>\"\",Table_SummaryPI[[#This Row],[ProposedkWh]],\"\")","v":""},{"$f":"IF(Table_SummaryPI[[#This Row],[ProposedkW]]<>\"\",Table_SummaryPI[[#This Row],[ProposedkW]],\"\")","v":""},{"$f":"IF(Table_SummaryPI[[#This Row],[Notes]]<>\"\",Table_SummaryPI[[#This Row],[Notes]],\"\")","v":""},{"$f":"IF(Table_SummaryPI[[#This Row],[Incentive_Customer]]<>\"\",Table_SummaryPI[[#This Row],[Incentive_Customer]],0)","v":0},{"$f":"IF(Table_SummaryPI[[#This Row],[MeasureCost]]<>\"\",Table_SummaryPI[[#This Row],[MeasureCost]],0)","v":0},{"$f":"IF(Table_SummaryPI[[#This Row],[kWhSavings]]<>\"\",Table_SummaryPI[[#This Row],[kWhSavings]],0)","v":0},{"$f":"IF(Table_SummaryPI[[#This Row],[DemandSavingskW]]<>\"\",Table_SummaryPI[[#This Row],[DemandSavingskW]],0)","v":0}]
[{"$f":"Table_SummaryPI[[#This Row],[Line No.]]","v":""},{"$f":"IF(Table_PrintPI[[#This Row],[Line No.]]=\"\",\"\",CONCATENATE(Table_PrintPI[[#This Row],[Line No.]],\" - \",Table_SummaryPI[[#This Row],[MeasureName]]))","v":""},{"$f":"IF(Table_SummaryPI[[#This Row],[Manufacturer]]<>\"\",CONCATENATE(Table_SummaryPI[[#This Row],[Manufacturer]],\"/\",Table_SummaryPI[[#This Row],[Model'#]]),\"\")","v":""},{"$f":"IF(Table_SummaryPI[[#This Row],[Serial'#]]<>\"\",Table_SummaryPI[[#This Row],[Serial'#]],\"\")","v":""},{"$f":"IF(Table_SummaryPI[[#This Row],[Quantity]]<>\"\",Table_SummaryPI[[#This Row],[Quantity]],\"\")","v":""},{"$f":"IF(Table_SummaryPI[[#This Row],[BaselinekWh]]<>\"\",Table_SummaryPI[[#This Row],[BaselinekWh]],\"\")","v":""},{"$f":"IF(Table_SummaryPI[[#This Row],[BaselinekW]]<>\"\",Table_SummaryPI[[#This Row],[BaselinekW]],\"\")","v":""},{"$f":"IF(Table_SummaryPI[[#This Row],[ProposedkWh]]<>\"\",Table_SummaryPI[[#This Row],[ProposedkWh]],\"\")","v":""},{"$f":"IF(Table_SummaryPI[[#This Row],[ProposedkW]]<>\"\",Table_SummaryPI[[#This Row],[ProposedkW]],\"\")","v":""},{"$f":"IF(Table_SummaryPI[[#This Row],[Notes]]<>\"\",Table_SummaryPI[[#This Row],[Notes]],\"\")","v":""},{"$f":"IF(Table_SummaryPI[[#This Row],[Incentive_Customer]]<>\"\",Table_SummaryPI[[#This Row],[Incentive_Customer]],0)","v":0},{"$f":"IF(Table_SummaryPI[[#This Row],[MeasureCost]]<>\"\",Table_SummaryPI[[#This Row],[MeasureCost]],0)","v":0},{"$f":"IF(Table_SummaryPI[[#This Row],[kWhSavings]]<>\"\",Table_SummaryPI[[#This Row],[kWhSavings]],0)","v":0},{"$f":"IF(Table_SummaryPI[[#This Row],[DemandSavingskW]]<>\"\",Table_SummaryPI[[#This Row],[DemandSavingskW]],0)","v":0}]
[{"$f":"Table_SummaryPI[[#This Row],[Line No.]]","v":""},{"$f":"IF(Table_PrintPI[[#This Row],[Line No.]]=\"\",\"\",CONCATENATE(Table_PrintPI[[#This Row],[Line No.]],\" - \",Table_SummaryPI[[#This Row],[MeasureName]]))","v":""},{"$f":"IF(Table_SummaryPI[[#This Row],[Manufacturer]]<>\"\",CONCATENATE(Table_SummaryPI[[#This Row],[Manufacturer]],\"/\",Table_SummaryPI[[#This Row],[Model'#]]),\"\")","v":""},{"$f":"IF(Table_SummaryPI[[#This Row],[Serial'#]]<>\"\",Table_SummaryPI[[#This Row],[Serial'#]],\"\")","v":""},{"$f":"IF(Table_SummaryPI[[#This Row],[Quantity]]<>\"\",Table_SummaryPI[[#This Row],[Quantity]],\"\")","v":""},{"$f":"IF(Table_SummaryPI[[#This Row],[BaselinekWh]]<>\"\",Table_SummaryPI[[#This Row],[BaselinekWh]],\"\")","v":""},{"$f":"IF(Table_SummaryPI[[#This Row],[BaselinekW]]<>\"\",Table_SummaryPI[[#This Row],[BaselinekW]],\"\")","v":""},{"$f":"IF(Table_SummaryPI[[#This Row],[ProposedkWh]]<>\"\",Table_SummaryPI[[#This Row],[ProposedkWh]],\"\")","v":""},{"$f":"IF(Table_SummaryPI[[#This Row],[ProposedkW]]<>\"\",Table_SummaryPI[[#This Row],[ProposedkW]],\"\")","v":""},{"$f":"IF(Table_SummaryPI[[#This Row],[Notes]]<>\"\",Table_SummaryPI[[#This Row],[Notes]],\"\")","v":""},{"$f":"IF(Table_SummaryPI[[#This Row],[Incentive_Customer]]<>\"\",Table_SummaryPI[[#This Row],[Incentive_Customer]],0)","v":0},{"$f":"IF(Table_SummaryPI[[#This Row],[MeasureCost]]<>\"\",Table_SummaryPI[[#This Row],[MeasureCost]],0)","v":0},{"$f":"IF(Table_SummaryPI[[#This Row],[kWhSavings]]<>\"\",Table_SummaryPI[[#This Row],[kWhSavings]],0)","v":0},{"$f":"IF(Table_SummaryPI[[#This Row],[DemandSavingskW]]<>\"\",Table_SummaryPI[[#This Row],[DemandSavingskW]],0)","v":0}]
[{"$f":"Table_SummaryPI[[#This Row],[Line No.]]","v":""},{"$f":"IF(Table_PrintPI[[#This Row],[Line No.]]=\"\",\"\",CONCATENATE(Table_PrintPI[[#This Row],[Line No.]],\" - \",Table_SummaryPI[[#This Row],[MeasureName]]))","v":""},{"$f":"IF(Table_SummaryPI[[#This Row],[Manufacturer]]<>\"\",CONCATENATE(Table_SummaryPI[[#This Row],[Manufacturer]],\"/\",Table_SummaryPI[[#This Row],[Model'#]]),\"\")","v":""},{"$f":"IF(Table_SummaryPI[[#This Row],[Serial'#]]<>\"\",Table_SummaryPI[[#This Row],[Serial'#]],\"\")","v":""},{"$f":"IF(Table_SummaryPI[[#This Row],[Quantity]]<>\"\",Table_SummaryPI[[#This Row],[Quantity]],\"\")","v":""},{"$f":"IF(Table_SummaryPI[[#This Row],[BaselinekWh]]<>\"\",Table_SummaryPI[[#This Row],[BaselinekWh]],\"\")","v":""},{"$f":"IF(Table_SummaryPI[[#This Row],[BaselinekW]]<>\"\",Table_SummaryPI[[#This Row],[BaselinekW]],\"\")","v":""},{"$f":"IF(Table_SummaryPI[[#This Row],[ProposedkWh]]<>\"\",Table_SummaryPI[[#This Row],[ProposedkWh]],\"\")","v":""},{"$f":"IF(Table_SummaryPI[[#This Row],[ProposedkW]]<>\"\",Table_SummaryPI[[#This Row],[ProposedkW]],\"\")","v":""},{"$f":"IF(Table_SummaryPI[[#This Row],[Notes]]<>\"\",Table_SummaryPI[[#This Row],[Notes]],\"\")","v":""},{"$f":"IF(Table_SummaryPI[[#This Row],[Incentive_Customer]]<>\"\",Table_SummaryPI[[#This Row],[Incentive_Customer]],0)","v":0},{"$f":"IF(Table_SummaryPI[[#This Row],[MeasureCost]]<>\"\",Table_SummaryPI[[#This Row],[MeasureCost]],0)","v":0},{"$f":"IF(Table_SummaryPI[[#This Row],[kWhSavings]]<>\"\",Table_SummaryPI[[#This Row],[kWhSavings]],0)","v":0},{"$f":"IF(Table_SummaryPI[[#This Row],[DemandSavingskW]]<>\"\",Table_SummaryPI[[#This Row],[DemandSavingskW]],0)","v":0}]
[{"$f":"Table_SummaryPI[[#This Row],[Line No.]]","v":""},{"$f":"IF(Table_PrintPI[[#This Row],[Line No.]]=\"\",\"\",CONCATENATE(Table_PrintPI[[#This Row],[Line No.]],\" - \",Table_SummaryPI[[#This Row],[MeasureName]]))","v":""},{"$f":"IF(Table_SummaryPI[[#This Row],[Manufacturer]]<>\"\",CONCATENATE(Table_SummaryPI[[#This Row],[Manufacturer]],\"/\",Table_SummaryPI[[#This Row],[Model'#]]),\"\")","v":""},{"$f":"IF(Table_SummaryPI[[#This Row],[Serial'#]]<>\"\",Table_SummaryPI[[#This Row],[Serial'#]],\"\")","v":""},{"$f":"IF(Table_SummaryPI[[#This Row],[Quantity]]<>\"\",Table_SummaryPI[[#This Row],[Quantity]],\"\")","v":""},{"$f":"IF(Table_SummaryPI[[#This Row],[BaselinekWh]]<>\"\",Table_SummaryPI[[#This Row],[BaselinekWh]],\"\")","v":""},{"$f":"IF(Table_SummaryPI[[#This Row],[BaselinekW]]<>\"\",Table_SummaryPI[[#This Row],[BaselinekW]],\"\")","v":""},{"$f":"IF(Table_SummaryPI[[#This Row],[ProposedkWh]]<>\"\",Table_SummaryPI[[#This Row],[ProposedkWh]],\"\")","v":""},{"$f":"IF(Table_SummaryPI[[#This Row],[ProposedkW]]<>\"\",Table_SummaryPI[[#This Row],[ProposedkW]],\"\")","v":""},{"$f":"IF(Table_SummaryPI[[#This Row],[Notes]]<>\"\",Table_SummaryPI[[#This Row],[Notes]],\"\")","v":""},{"$f":"IF(Table_SummaryPI[[#This Row],[Incentive_Customer]]<>\"\",Table_SummaryPI[[#This Row],[Incentive_Customer]],0)","v":0},{"$f":"IF(Table_SummaryPI[[#This Row],[MeasureCost]]<>\"\",Table_SummaryPI[[#This Row],[MeasureCost]],0)","v":0},{"$f":"IF(Table_SummaryPI[[#This Row],[kWhSavings]]<>\"\",Table_SummaryPI[[#This Row],[kWhSavings]],0)","v":0},{"$f":"IF(Table_SummaryPI[[#This Row],[DemandSavingskW]]<>\"\",Table_SummaryPI[[#This Row],[DemandSavingskW]],0)","v":0}]
[{"$f":"Table_SummaryPI[[#This Row],[Line No.]]","v":""},{"$f":"IF(Table_PrintPI[[#This Row],[Line No.]]=\"\",\"\",CONCATENATE(Table_PrintPI[[#This Row],[Line No.]],\" - \",Table_SummaryPI[[#This Row],[MeasureName]]))","v":""},{"$f":"IF(Table_SummaryPI[[#This Row],[Manufacturer]]<>\"\",CONCATENATE(Table_SummaryPI[[#This Row],[Manufacturer]],\"/\",Table_SummaryPI[[#This Row],[Model'#]]),\"\")","v":""},{"$f":"IF(Table_SummaryPI[[#This Row],[Serial'#]]<>\"\",Table_SummaryPI[[#This Row],[Serial'#]],\"\")","v":""},{"$f":"IF(Table_SummaryPI[[#This Row],[Quantity]]<>\"\",Table_SummaryPI[[#This Row],[Quantity]],\"\")","v":""},{"$f":"IF(Table_SummaryPI[[#This Row],[BaselinekWh]]<>\"\",Table_SummaryPI[[#This Row],[BaselinekWh]],\"\")","v":""},{"$f":"IF(Table_SummaryPI[[#This Row],[BaselinekW]]<>\"\",Table_SummaryPI[[#This Row],[BaselinekW]],\"\")","v":""},{"$f":"IF(Table_SummaryPI[[#This Row],[ProposedkWh]]<>\"\",Table_SummaryPI[[#This Row],[ProposedkWh]],\"\")","v":""},{"$f":"IF(Table_SummaryPI[[#This Row],[ProposedkW]]<>\"\",Table_SummaryPI[[#This Row],[ProposedkW]],\"\")","v":""},{"$f":"IF(Table_SummaryPI[[#This Row],[Notes]]<>\"\",Table_SummaryPI[[#This Row],[Notes]],\"\")","v":""},{"$f":"IF(Table_SummaryPI[[#This Row],[Incentive_Customer]]<>\"\",Table_SummaryPI[[#This Row],[Incentive_Customer]],0)","v":0},{"$f":"IF(Table_SummaryPI[[#This Row],[MeasureCost]]<>\"\",Table_SummaryPI[[#This Row],[MeasureCost]],0)","v":0},{"$f":"IF(Table_SummaryPI[[#This Row],[kWhSavings]]<>\"\",Table_SummaryPI[[#This Row],[kWhSavings]],0)","v":0},{"$f":"IF(Table_SummaryPI[[#This Row],[DemandSavingskW]]<>\"\",Table_SummaryPI[[#This Row],[DemandSavingskW]],0)","v":0}]
[{"$f":"Table_SummaryPI[[#This Row],[Line No.]]","v":""},{"$f":"IF(Table_PrintPI[[#This Row],[Line No.]]=\"\",\"\",CONCATENATE(Table_PrintPI[[#This Row],[Line No.]],\" - \",Table_SummaryPI[[#This Row],[MeasureName]]))","v":""},{"$f":"IF(Table_SummaryPI[[#This Row],[Manufacturer]]<>\"\",CONCATENATE(Table_SummaryPI[[#This Row],[Manufacturer]],\"/\",Table_SummaryPI[[#This Row],[Model'#]]),\"\")","v":""},{"$f":"IF(Table_SummaryPI[[#This Row],[Serial'#]]<>\"\",Table_SummaryPI[[#This Row],[Serial'#]],\"\")","v":""},{"$f":"IF(Table_SummaryPI[[#This Row],[Quantity]]<>\"\",Table_SummaryPI[[#This Row],[Quantity]],\"\")","v":""},{"$f":"IF(Table_SummaryPI[[#This Row],[BaselinekWh]]<>\"\",Table_SummaryPI[[#This Row],[BaselinekWh]],\"\")","v":""},{"$f":"IF(Table_SummaryPI[[#This Row],[BaselinekW]]<>\"\",Table_SummaryPI[[#This Row],[BaselinekW]],\"\")","v":""},{"$f":"IF(Table_SummaryPI[[#This Row],[ProposedkWh]]<>\"\",Table_SummaryPI[[#This Row],[ProposedkWh]],\"\")","v":""},{"$f":"IF(Table_SummaryPI[[#This Row],[ProposedkW]]<>\"\",Table_SummaryPI[[#This Row],[ProposedkW]],\"\")","v":""},{"$f":"IF(Table_SummaryPI[[#This Row],[Notes]]<>\"\",Table_SummaryPI[[#This Row],[Notes]],\"\")","v":""},{"$f":"IF(Table_SummaryPI[[#This Row],[Incentive_Customer]]<>\"\",Table_SummaryPI[[#This Row],[Incentive_Customer]],0)","v":0},{"$f":"IF(Table_SummaryPI[[#This Row],[MeasureCost]]<>\"\",Table_SummaryPI[[#This Row],[MeasureCost]],0)","v":0},{"$f":"IF(Table_SummaryPI[[#This Row],[kWhSavings]]<>\"\",Table_SummaryPI[[#This Row],[kWhSavings]],0)","v":0},{"$f":"IF(Table_SummaryPI[[#This Row],[DemandSavingskW]]<>\"\",Table_SummaryPI[[#This Row],[DemandSavingskW]],0)","v":0}]
[{"$f":"Table_SummaryPI[[#This Row],[Line No.]]","v":""},{"$f":"IF(Table_PrintPI[[#This Row],[Line No.]]=\"\",\"\",CONCATENATE(Table_PrintPI[[#This Row],[Line No.]],\" - \",Table_SummaryPI[[#This Row],[MeasureName]]))","v":""},{"$f":"IF(Table_SummaryPI[[#This Row],[Manufacturer]]<>\"\",CONCATENATE(Table_SummaryPI[[#This Row],[Manufacturer]],\"/\",Table_SummaryPI[[#This Row],[Model'#]]),\"\")","v":""},{"$f":"IF(Table_SummaryPI[[#This Row],[Serial'#]]<>\"\",Table_SummaryPI[[#This Row],[Serial'#]],\"\")","v":""},{"$f":"IF(Table_SummaryPI[[#This Row],[Quantity]]<>\"\",Table_SummaryPI[[#This Row],[Quantity]],\"\")","v":""},{"$f":"IF(Table_SummaryPI[[#This Row],[BaselinekWh]]<>\"\",Table_SummaryPI[[#This Row],[BaselinekWh]],\"\")","v":""},{"$f":"IF(Table_SummaryPI[[#This Row],[BaselinekW]]<>\"\",Table_SummaryPI[[#This Row],[BaselinekW]],\"\")","v":""},{"$f":"IF(Table_SummaryPI[[#This Row],[ProposedkWh]]<>\"\",Table_SummaryPI[[#This Row],[ProposedkWh]],\"\")","v":""},{"$f":"IF(Table_SummaryPI[[#This Row],[ProposedkW]]<>\"\",Table_SummaryPI[[#This Row],[ProposedkW]],\"\")","v":""},{"$f":"IF(Table_SummaryPI[[#This Row],[Notes]]<>\"\",Table_SummaryPI[[#This Row],[Notes]],\"\")","v":""},{"$f":"IF(Table_SummaryPI[[#This Row],[Incentive_Customer]]<>\"\",Table_SummaryPI[[#This Row],[Incentive_Customer]],0)","v":0},{"$f":"IF(Table_SummaryPI[[#This Row],[MeasureCost]]<>\"\",Table_SummaryPI[[#This Row],[MeasureCost]],0)","v":0},{"$f":"IF(Table_SummaryPI[[#This Row],[kWhSavings]]<>\"\",Table_SummaryPI[[#This Row],[kWhSavings]],0)","v":0},{"$f":"IF(Table_SummaryPI[[#This Row],[DemandSavingskW]]<>\"\",Table_SummaryPI[[#This Row],[DemandSavingskW]],0)","v":0}]
[{"$f":"Table_SummaryPI[[#This Row],[Line No.]]","v":""},{"$f":"IF(Table_PrintPI[[#This Row],[Line No.]]=\"\",\"\",CONCATENATE(Table_PrintPI[[#This Row],[Line No.]],\" - \",Table_SummaryPI[[#This Row],[MeasureName]]))","v":""},{"$f":"IF(Table_SummaryPI[[#This Row],[Manufacturer]]<>\"\",CONCATENATE(Table_SummaryPI[[#This Row],[Manufacturer]],\"/\",Table_SummaryPI[[#This Row],[Model'#]]),\"\")","v":""},{"$f":"IF(Table_SummaryPI[[#This Row],[Serial'#]]<>\"\",Table_SummaryPI[[#This Row],[Serial'#]],\"\")","v":""},{"$f":"IF(Table_SummaryPI[[#This Row],[Quantity]]<>\"\",Table_SummaryPI[[#This Row],[Quantity]],\"\")","v":""},{"$f":"IF(Table_SummaryPI[[#This Row],[BaselinekWh]]<>\"\",Table_SummaryPI[[#This Row],[BaselinekWh]],\"\")","v":""},{"$f":"IF(Table_SummaryPI[[#This Row],[BaselinekW]]<>\"\",Table_SummaryPI[[#This Row],[BaselinekW]],\"\")","v":""},{"$f":"IF(Table_SummaryPI[[#This Row],[ProposedkWh]]<>\"\",Table_SummaryPI[[#This Row],[ProposedkWh]],\"\")","v":""},{"$f":"IF(Table_SummaryPI[[#This Row],[ProposedkW]]<>\"\",Table_SummaryPI[[#This Row],[ProposedkW]],\"\")","v":""},{"$f":"IF(Table_SummaryPI[[#This Row],[Notes]]<>\"\",Table_SummaryPI[[#This Row],[Notes]],\"\")","v":""},{"$f":"IF(Table_SummaryPI[[#This Row],[Incentive_Customer]]<>\"\",Table_SummaryPI[[#This Row],[Incentive_Customer]],0)","v":0},{"$f":"IF(Table_SummaryPI[[#This Row],[MeasureCost]]<>\"\",Table_SummaryPI[[#This Row],[MeasureCost]],0)","v":0},{"$f":"IF(Table_SummaryPI[[#This Row],[kWhSavings]]<>\"\",Table_SummaryPI[[#This Row],[kWhSavings]],0)","v":0},{"$f":"IF(Table_SummaryPI[[#This Row],[DemandSavingskW]]<>\"\",Table_SummaryPI[[#This Row],[DemandSavingskW]],0)","v":0}]
[{"$f":"Table_SummaryPI[[#This Row],[Line No.]]","v":""},{"$f":"IF(Table_PrintPI[[#This Row],[Line No.]]=\"\",\"\",CONCATENATE(Table_PrintPI[[#This Row],[Line No.]],\" - \",Table_SummaryPI[[#This Row],[MeasureName]]))","v":""},{"$f":"IF(Table_SummaryPI[[#This Row],[Manufacturer]]<>\"\",CONCATENATE(Table_SummaryPI[[#This Row],[Manufacturer]],\"/\",Table_SummaryPI[[#This Row],[Model'#]]),\"\")","v":""},{"$f":"IF(Table_SummaryPI[[#This Row],[Serial'#]]<>\"\",Table_SummaryPI[[#This Row],[Serial'#]],\"\")","v":""},{"$f":"IF(Table_SummaryPI[[#This Row],[Quantity]]<>\"\",Table_SummaryPI[[#This Row],[Quantity]],\"\")","v":""},{"$f":"IF(Table_SummaryPI[[#This Row],[BaselinekWh]]<>\"\",Table_SummaryPI[[#This Row],[BaselinekWh]],\"\")","v":""},{"$f":"IF(Table_SummaryPI[[#This Row],[BaselinekW]]<>\"\",Table_SummaryPI[[#This Row],[BaselinekW]],\"\")","v":""},{"$f":"IF(Table_SummaryPI[[#This Row],[ProposedkWh]]<>\"\",Table_SummaryPI[[#This Row],[ProposedkWh]],\"\")","v":""},{"$f":"IF(Table_SummaryPI[[#This Row],[ProposedkW]]<>\"\",Table_SummaryPI[[#This Row],[ProposedkW]],\"\")","v":""},{"$f":"IF(Table_SummaryPI[[#This Row],[Notes]]<>\"\",Table_SummaryPI[[#This Row],[Notes]],\"\")","v":""},{"$f":"IF(Table_SummaryPI[[#This Row],[Incentive_Customer]]<>\"\",Table_SummaryPI[[#This Row],[Incentive_Customer]],0)","v":0},{"$f":"IF(Table_SummaryPI[[#This Row],[MeasureCost]]<>\"\",Table_SummaryPI[[#This Row],[MeasureCost]],0)","v":0},{"$f":"IF(Table_SummaryPI[[#This Row],[kWhSavings]]<>\"\",Table_SummaryPI[[#This Row],[kWhSavings]],0)","v":0},{"$f":"IF(Table_SummaryPI[[#This Row],[DemandSavingskW]]<>\"\",Table_SummaryPI[[#This Row],[DemandSavingskW]],0)","v":0}]
[{"$f":"Table_SummaryPI[[#This Row],[Line No.]]","v":""},{"$f":"IF(Table_PrintPI[[#This Row],[Line No.]]=\"\",\"\",CONCATENATE(Table_PrintPI[[#This Row],[Line No.]],\" - \",Table_SummaryPI[[#This Row],[MeasureName]]))","v":""},{"$f":"IF(Table_SummaryPI[[#This Row],[Manufacturer]]<>\"\",CONCATENATE(Table_SummaryPI[[#This Row],[Manufacturer]],\"/\",Table_SummaryPI[[#This Row],[Model'#]]),\"\")","v":""},{"$f":"IF(Table_SummaryPI[[#This Row],[Serial'#]]<>\"\",Table_SummaryPI[[#This Row],[Serial'#]],\"\")","v":""},{"$f":"IF(Table_SummaryPI[[#This Row],[Quantity]]<>\"\",Table_SummaryPI[[#This Row],[Quantity]],\"\")","v":""},{"$f":"IF(Table_SummaryPI[[#This Row],[BaselinekWh]]<>\"\",Table_SummaryPI[[#This Row],[BaselinekWh]],\"\")","v":""},{"$f":"IF(Table_SummaryPI[[#This Row],[BaselinekW]]<>\"\",Table_SummaryPI[[#This Row],[BaselinekW]],\"\")","v":""},{"$f":"IF(Table_SummaryPI[[#This Row],[ProposedkWh]]<>\"\",Table_SummaryPI[[#This Row],[ProposedkWh]],\"\")","v":""},{"$f":"IF(Table_SummaryPI[[#This Row],[ProposedkW]]<>\"\",Table_SummaryPI[[#This Row],[ProposedkW]],\"\")","v":""},{"$f":"IF(Table_SummaryPI[[#This Row],[Notes]]<>\"\",Table_SummaryPI[[#This Row],[Notes]],\"\")","v":""},{"$f":"IF(Table_SummaryPI[[#This Row],[Incentive_Customer]]<>\"\",Table_SummaryPI[[#This Row],[Incentive_Customer]],0)","v":0},{"$f":"IF(Table_SummaryPI[[#This Row],[MeasureCost]]<>\"\",Table_SummaryPI[[#This Row],[MeasureCost]],0)","v":0},{"$f":"IF(Table_SummaryPI[[#This Row],[kWhSavings]]<>\"\",Table_SummaryPI[[#This Row],[kWhSavings]],0)","v":0},{"$f":"IF(Table_SummaryPI[[#This Row],[DemandSavingskW]]<>\"\",Table_SummaryPI[[#This Row],[DemandSavingskW]],0)","v":0}]
[{"$f":"Table_SummaryPI[[#This Row],[Line No.]]","v":""},{"$f":"IF(Table_PrintPI[[#This Row],[Line No.]]=\"\",\"\",CONCATENATE(Table_PrintPI[[#This Row],[Line No.]],\" - \",Table_SummaryPI[[#This Row],[MeasureName]]))","v":""},{"$f":"IF(Table_SummaryPI[[#This Row],[Manufacturer]]<>\"\",CONCATENATE(Table_SummaryPI[[#This Row],[Manufacturer]],\"/\",Table_SummaryPI[[#This Row],[Model'#]]),\"\")","v":""},{"$f":"IF(Table_SummaryPI[[#This Row],[Serial'#]]<>\"\",Table_SummaryPI[[#This Row],[Serial'#]],\"\")","v":""},{"$f":"IF(Table_SummaryPI[[#This Row],[Quantity]]<>\"\",Table_SummaryPI[[#This Row],[Quantity]],\"\")","v":""},{"$f":"IF(Table_SummaryPI[[#This Row],[BaselinekWh]]<>\"\",Table_SummaryPI[[#This Row],[BaselinekWh]],\"\")","v":""},{"$f":"IF(Table_SummaryPI[[#This Row],[BaselinekW]]<>\"\",Table_SummaryPI[[#This Row],[BaselinekW]],\"\")","v":""},{"$f":"IF(Table_SummaryPI[[#This Row],[ProposedkWh]]<>\"\",Table_SummaryPI[[#This Row],[ProposedkWh]],\"\")","v":""},{"$f":"IF(Table_SummaryPI[[#This Row],[ProposedkW]]<>\"\",Table_SummaryPI[[#This Row],[ProposedkW]],\"\")","v":""},{"$f":"IF(Table_SummaryPI[[#This Row],[Notes]]<>\"\",Table_SummaryPI[[#This Row],[Notes]],\"\")","v":""},{"$f":"IF(Table_SummaryPI[[#This Row],[Incentive_Customer]]<>\"\",Table_SummaryPI[[#This Row],[Incentive_Customer]],0)","v":0},{"$f":"IF(Table_SummaryPI[[#This Row],[MeasureCost]]<>\"\",Table_SummaryPI[[#This Row],[MeasureCost]],0)","v":0},{"$f":"IF(Table_SummaryPI[[#This Row],[kWhSavings]]<>\"\",Table_SummaryPI[[#This Row],[kWhSavings]],0)","v":0},{"$f":"IF(Table_SummaryPI[[#This Row],[DemandSavingskW]]<>\"\",Table_SummaryPI[[#This Row],[DemandSavingskW]],0)","v":0}]
[{"$f":"Table_SummaryPI[[#This Row],[Line No.]]","v":""},{"$f":"IF(Table_PrintPI[[#This Row],[Line No.]]=\"\",\"\",CONCATENATE(Table_PrintPI[[#This Row],[Line No.]],\" - \",Table_SummaryPI[[#This Row],[MeasureName]]))","v":""},{"$f":"IF(Table_SummaryPI[[#This Row],[Manufacturer]]<>\"\",CONCATENATE(Table_SummaryPI[[#This Row],[Manufacturer]],\"/\",Table_SummaryPI[[#This Row],[Model'#]]),\"\")","v":""},{"$f":"IF(Table_SummaryPI[[#This Row],[Serial'#]]<>\"\",Table_SummaryPI[[#This Row],[Serial'#]],\"\")","v":""},{"$f":"IF(Table_SummaryPI[[#This Row],[Quantity]]<>\"\",Table_SummaryPI[[#This Row],[Quantity]],\"\")","v":""},{"$f":"IF(Table_SummaryPI[[#This Row],[BaselinekWh]]<>\"\",Table_SummaryPI[[#This Row],[BaselinekWh]],\"\")","v":""},{"$f":"IF(Table_SummaryPI[[#This Row],[BaselinekW]]<>\"\",Table_SummaryPI[[#This Row],[BaselinekW]],\"\")","v":""},{"$f":"IF(Table_SummaryPI[[#This Row],[ProposedkWh]]<>\"\",Table_SummaryPI[[#This Row],[ProposedkWh]],\"\")","v":""},{"$f":"IF(Table_SummaryPI[[#This Row],[ProposedkW]]<>\"\",Table_SummaryPI[[#This Row],[ProposedkW]],\"\")","v":""},{"$f":"IF(Table_SummaryPI[[#This Row],[Notes]]<>\"\",Table_SummaryPI[[#This Row],[Notes]],\"\")","v":""},{"$f":"IF(Table_SummaryPI[[#This Row],[Incentive_Customer]]<>\"\",Table_SummaryPI[[#This Row],[Incentive_Customer]],0)","v":0},{"$f":"IF(Table_SummaryPI[[#This Row],[MeasureCost]]<>\"\",Table_SummaryPI[[#This Row],[MeasureCost]],0)","v":0},{"$f":"IF(Table_SummaryPI[[#This Row],[kWhSavings]]<>\"\",Table_SummaryPI[[#This Row],[kWhSavings]],0)","v":0},{"$f":"IF(Table_SummaryPI[[#This Row],[DemandSavingskW]]<>\"\",Table_SummaryPI[[#This Row],[DemandSavingskW]],0)","v":0}]
[{"$f":"Table_SummaryPI[[#This Row],[Line No.]]","v":""},{"$f":"IF(Table_PrintPI[[#This Row],[Line No.]]=\"\",\"\",CONCATENATE(Table_PrintPI[[#This Row],[Line No.]],\" - \",Table_SummaryPI[[#This Row],[MeasureName]]))","v":""},{"$f":"IF(Table_SummaryPI[[#This Row],[Manufacturer]]<>\"\",CONCATENATE(Table_SummaryPI[[#This Row],[Manufacturer]],\"/\",Table_SummaryPI[[#This Row],[Model'#]]),\"\")","v":""},{"$f":"IF(Table_SummaryPI[[#This Row],[Serial'#]]<>\"\",Table_SummaryPI[[#This Row],[Serial'#]],\"\")","v":""},{"$f":"IF(Table_SummaryPI[[#This Row],[Quantity]]<>\"\",Table_SummaryPI[[#This Row],[Quantity]],\"\")","v":""},{"$f":"IF(Table_SummaryPI[[#This Row],[BaselinekWh]]<>\"\",Table_SummaryPI[[#This Row],[BaselinekWh]],\"\")","v":""},{"$f":"IF(Table_SummaryPI[[#This Row],[BaselinekW]]<>\"\",Table_SummaryPI[[#This Row],[BaselinekW]],\"\")","v":""},{"$f":"IF(Table_SummaryPI[[#This Row],[ProposedkWh]]<>\"\",Table_SummaryPI[[#This Row],[ProposedkWh]],\"\")","v":""},{"$f":"IF(Table_SummaryPI[[#This Row],[ProposedkW]]<>\"\",Table_SummaryPI[[#This Row],[ProposedkW]],\"\")","v":""},{"$f":"IF(Table_SummaryPI[[#This Row],[Notes]]<>\"\",Table_SummaryPI[[#This Row],[Notes]],\"\")","v":""},{"$f":"IF(Table_SummaryPI[[#This Row],[Incentive_Customer]]<>\"\",Table_SummaryPI[[#This Row],[Incentive_Customer]],0)","v":0},{"$f":"IF(Table_SummaryPI[[#This Row],[MeasureCost]]<>\"\",Table_SummaryPI[[#This Row],[MeasureCost]],0)","v":0},{"$f":"IF(Table_SummaryPI[[#This Row],[kWhSavings]]<>\"\",Table_SummaryPI[[#This Row],[kWhSavings]],0)","v":0},{"$f":"IF(Table_SummaryPI[[#This Row],[DemandSavingskW]]<>\"\",Table_SummaryPI[[#This Row],[DemandSavingskW]],0)","v":0}]
[{"$f":"Table_SummaryPI[[#This Row],[Line No.]]","v":""},{"$f":"IF(Table_PrintPI[[#This Row],[Line No.]]=\"\",\"\",CONCATENATE(Table_PrintPI[[#This Row],[Line No.]],\" - \",Table_SummaryPI[[#This Row],[MeasureName]]))","v":""},{"$f":"IF(Table_SummaryPI[[#This Row],[Manufacturer]]<>\"\",CONCATENATE(Table_SummaryPI[[#This Row],[Manufacturer]],\"/\",Table_SummaryPI[[#This Row],[Model'#]]),\"\")","v":""},{"$f":"IF(Table_SummaryPI[[#This Row],[Serial'#]]<>\"\",Table_SummaryPI[[#This Row],[Serial'#]],\"\")","v":""},{"$f":"IF(Table_SummaryPI[[#This Row],[Quantity]]<>\"\",Table_SummaryPI[[#This Row],[Quantity]],\"\")","v":""},{"$f":"IF(Table_SummaryPI[[#This Row],[BaselinekWh]]<>\"\",Table_SummaryPI[[#This Row],[BaselinekWh]],\"\")","v":""},{"$f":"IF(Table_SummaryPI[[#This Row],[BaselinekW]]<>\"\",Table_SummaryPI[[#This Row],[BaselinekW]],\"\")","v":""},{"$f":"IF(Table_SummaryPI[[#This Row],[ProposedkWh]]<>\"\",Table_SummaryPI[[#This Row],[ProposedkWh]],\"\")","v":""},{"$f":"IF(Table_SummaryPI[[#This Row],[ProposedkW]]<>\"\",Table_SummaryPI[[#This Row],[ProposedkW]],\"\")","v":""},{"$f":"IF(Table_SummaryPI[[#This Row],[Notes]]<>\"\",Table_SummaryPI[[#This Row],[Notes]],\"\")","v":""},{"$f":"IF(Table_SummaryPI[[#This Row],[Incentive_Customer]]<>\"\",Table_SummaryPI[[#This Row],[Incentive_Customer]],0)","v":0},{"$f":"IF(Table_SummaryPI[[#This Row],[MeasureCost]]<>\"\",Table_SummaryPI[[#This Row],[MeasureCost]],0)","v":0},{"$f":"IF(Table_SummaryPI[[#This Row],[kWhSavings]]<>\"\",Table_SummaryPI[[#This Row],[kWhSavings]],0)","v":0},{"$f":"IF(Table_SummaryPI[[#This Row],[DemandSavingskW]]<>\"\",Table_SummaryPI[[#This Row],[DemandSavingskW]],0)","v":0}]
[{"$f":"Table_SummaryPI[[#This Row],[Line No.]]","v":""},{"$f":"IF(Table_PrintPI[[#This Row],[Line No.]]=\"\",\"\",CONCATENATE(Table_PrintPI[[#This Row],[Line No.]],\" - \",Table_SummaryPI[[#This Row],[MeasureName]]))","v":""},{"$f":"IF(Table_SummaryPI[[#This Row],[Manufacturer]]<>\"\",CONCATENATE(Table_SummaryPI[[#This Row],[Manufacturer]],\"/\",Table_SummaryPI[[#This Row],[Model'#]]),\"\")","v":""},{"$f":"IF(Table_SummaryPI[[#This Row],[Serial'#]]<>\"\",Table_SummaryPI[[#This Row],[Serial'#]],\"\")","v":""},{"$f":"IF(Table_SummaryPI[[#This Row],[Quantity]]<>\"\",Table_SummaryPI[[#This Row],[Quantity]],\"\")","v":""},{"$f":"IF(Table_SummaryPI[[#This Row],[BaselinekWh]]<>\"\",Table_SummaryPI[[#This Row],[BaselinekWh]],\"\")","v":""},{"$f":"IF(Table_SummaryPI[[#This Row],[BaselinekW]]<>\"\",Table_SummaryPI[[#This Row],[BaselinekW]],\"\")","v":""},{"$f":"IF(Table_SummaryPI[[#This Row],[ProposedkWh]]<>\"\",Table_SummaryPI[[#This Row],[ProposedkWh]],\"\")","v":""},{"$f":"IF(Table_SummaryPI[[#This Row],[ProposedkW]]<>\"\",Table_SummaryPI[[#This Row],[ProposedkW]],\"\")","v":""},{"$f":"IF(Table_SummaryPI[[#This Row],[Notes]]<>\"\",Table_SummaryPI[[#This Row],[Notes]],\"\")","v":""},{"$f":"IF(Table_SummaryPI[[#This Row],[Incentive_Customer]]<>\"\",Table_SummaryPI[[#This Row],[Incentive_Customer]],0)","v":0},{"$f":"IF(Table_SummaryPI[[#This Row],[MeasureCost]]<>\"\",Table_SummaryPI[[#This Row],[MeasureCost]],0)","v":0},{"$f":"IF(Table_SummaryPI[[#This Row],[kWhSavings]]<>\"\",Table_SummaryPI[[#This Row],[kWhSavings]],0)","v":0},{"$f":"IF(Table_SummaryPI[[#This Row],[DemandSavingskW]]<>\"\",Table_SummaryPI[[#This Row],[DemandSavingskW]],0)","v":0}]
[{"$f":"Table_SummaryPI[[#This Row],[Line No.]]","v":""},{"$f":"IF(Table_PrintPI[[#This Row],[Line No.]]=\"\",\"\",CONCATENATE(Table_PrintPI[[#This Row],[Line No.]],\" - \",Table_SummaryPI[[#This Row],[MeasureName]]))","v":""},{"$f":"IF(Table_SummaryPI[[#This Row],[Manufacturer]]<>\"\",CONCATENATE(Table_SummaryPI[[#This Row],[Manufacturer]],\"/\",Table_SummaryPI[[#This Row],[Model'#]]),\"\")","v":""},{"$f":"IF(Table_SummaryPI[[#This Row],[Serial'#]]<>\"\",Table_SummaryPI[[#This Row],[Serial'#]],\"\")","v":""},{"$f":"IF(Table_SummaryPI[[#This Row],[Quantity]]<>\"\",Table_SummaryPI[[#This Row],[Quantity]],\"\")","v":""},{"$f":"IF(Table_SummaryPI[[#This Row],[BaselinekWh]]<>\"\",Table_SummaryPI[[#This Row],[BaselinekWh]],\"\")","v":""},{"$f":"IF(Table_SummaryPI[[#This Row],[BaselinekW]]<>\"\",Table_SummaryPI[[#This Row],[BaselinekW]],\"\")","v":""},{"$f":"IF(Table_SummaryPI[[#This Row],[ProposedkWh]]<>\"\",Table_SummaryPI[[#This Row],[ProposedkWh]],\"\")","v":""},{"$f":"IF(Table_SummaryPI[[#This Row],[ProposedkW]]<>\"\",Table_SummaryPI[[#This Row],[ProposedkW]],\"\")","v":""},{"$f":"IF(Table_SummaryPI[[#This Row],[Notes]]<>\"\",Table_SummaryPI[[#This Row],[Notes]],\"\")","v":""},{"$f":"IF(Table_SummaryPI[[#This Row],[Incentive_Customer]]<>\"\",Table_SummaryPI[[#This Row],[Incentive_Customer]],0)","v":0},{"$f":"IF(Table_SummaryPI[[#This Row],[MeasureCost]]<>\"\",Table_SummaryPI[[#This Row],[MeasureCost]],0)","v":0},{"$f":"IF(Table_SummaryPI[[#This Row],[kWhSavings]]<>\"\",Table_SummaryPI[[#This Row],[kWhSavings]],0)","v":0},{"$f":"IF(Table_SummaryPI[[#This Row],[DemandSavingskW]]<>\"\",Table_SummaryPI[[#This Row],[DemandSavingskW]],0)","v":0}]
[{"$f":"Table_SummaryPI[[#This Row],[Line No.]]","v":""},{"$f":"IF(Table_PrintPI[[#This Row],[Line No.]]=\"\",\"\",CONCATENATE(Table_PrintPI[[#This Row],[Line No.]],\" - \",Table_SummaryPI[[#This Row],[MeasureName]]))","v":""},{"$f":"IF(Table_SummaryPI[[#This Row],[Manufacturer]]<>\"\",CONCATENATE(Table_SummaryPI[[#This Row],[Manufacturer]],\"/\",Table_SummaryPI[[#This Row],[Model'#]]),\"\")","v":""},{"$f":"IF(Table_SummaryPI[[#This Row],[Serial'#]]<>\"\",Table_SummaryPI[[#This Row],[Serial'#]],\"\")","v":""},{"$f":"IF(Table_SummaryPI[[#This Row],[Quantity]]<>\"\",Table_SummaryPI[[#This Row],[Quantity]],\"\")","v":""},{"$f":"IF(Table_SummaryPI[[#This Row],[BaselinekWh]]<>\"\",Table_SummaryPI[[#This Row],[BaselinekWh]],\"\")","v":""},{"$f":"IF(Table_SummaryPI[[#This Row],[BaselinekW]]<>\"\",Table_SummaryPI[[#This Row],[BaselinekW]],\"\")","v":""},{"$f":"IF(Table_SummaryPI[[#This Row],[ProposedkWh]]<>\"\",Table_SummaryPI[[#This Row],[ProposedkWh]],\"\")","v":""},{"$f":"IF(Table_SummaryPI[[#This Row],[ProposedkW]]<>\"\",Table_SummaryPI[[#This Row],[ProposedkW]],\"\")","v":""},{"$f":"IF(Table_SummaryPI[[#This Row],[Notes]]<>\"\",Table_SummaryPI[[#This Row],[Notes]],\"\")","v":""},{"$f":"IF(Table_SummaryPI[[#This Row],[Incentive_Customer]]<>\"\",Table_SummaryPI[[#This Row],[Incentive_Customer]],0)","v":0},{"$f":"IF(Table_SummaryPI[[#This Row],[MeasureCost]]<>\"\",Table_SummaryPI[[#This Row],[MeasureCost]],0)","v":0},{"$f":"IF(Table_SummaryPI[[#This Row],[kWhSavings]]<>\"\",Table_SummaryPI[[#This Row],[kWhSavings]],0)","v":0},{"$f":"IF(Table_SummaryPI[[#This Row],[DemandSavingskW]]<>\"\",Table_SummaryPI[[#This Row],[DemandSavingskW]],0)","v":0}]
[{"$f":"Table_SummaryPI[[#This Row],[Line No.]]","v":""},{"$f":"IF(Table_PrintPI[[#This Row],[Line No.]]=\"\",\"\",CONCATENATE(Table_PrintPI[[#This Row],[Line No.]],\" - \",Table_SummaryPI[[#This Row],[MeasureName]]))","v":""},{"$f":"IF(Table_SummaryPI[[#This Row],[Manufacturer]]<>\"\",CONCATENATE(Table_SummaryPI[[#This Row],[Manufacturer]],\"/\",Table_SummaryPI[[#This Row],[Model'#]]),\"\")","v":""},{"$f":"IF(Table_SummaryPI[[#This Row],[Serial'#]]<>\"\",Table_SummaryPI[[#This Row],[Serial'#]],\"\")","v":""},{"$f":"IF(Table_SummaryPI[[#This Row],[Quantity]]<>\"\",Table_SummaryPI[[#This Row],[Quantity]],\"\")","v":""},{"$f":"IF(Table_SummaryPI[[#This Row],[BaselinekWh]]<>\"\",Table_SummaryPI[[#This Row],[BaselinekWh]],\"\")","v":""},{"$f":"IF(Table_SummaryPI[[#This Row],[BaselinekW]]<>\"\",Table_SummaryPI[[#This Row],[BaselinekW]],\"\")","v":""},{"$f":"IF(Table_SummaryPI[[#This Row],[ProposedkWh]]<>\"\",Table_SummaryPI[[#This Row],[ProposedkWh]],\"\")","v":""},{"$f":"IF(Table_SummaryPI[[#This Row],[ProposedkW]]<>\"\",Table_SummaryPI[[#This Row],[ProposedkW]],\"\")","v":""},{"$f":"IF(Table_SummaryPI[[#This Row],[Notes]]<>\"\",Table_SummaryPI[[#This Row],[Notes]],\"\")","v":""},{"$f":"IF(Table_SummaryPI[[#This Row],[Incentive_Customer]]<>\"\",Table_SummaryPI[[#This Row],[Incentive_Customer]],0)","v":0},{"$f":"IF(Table_SummaryPI[[#This Row],[MeasureCost]]<>\"\",Table_SummaryPI[[#This Row],[MeasureCost]],0)","v":0},{"$f":"IF(Table_SummaryPI[[#This Row],[kWhSavings]]<>\"\",Table_SummaryPI[[#This Row],[kWhSavings]],0)","v":0},{"$f":"IF(Table_SummaryPI[[#This Row],[DemandSavingskW]]<>\"\",Table_SummaryPI[[#This Row],[DemandSavingskW]],0)","v":0}]
[{"$f":"Table_SummaryPI[[#This Row],[Line No.]]","v":""},{"$f":"IF(Table_PrintPI[[#This Row],[Line No.]]=\"\",\"\",CONCATENATE(Table_PrintPI[[#This Row],[Line No.]],\" - \",Table_SummaryPI[[#This Row],[MeasureName]]))","v":""},{"$f":"IF(Table_SummaryPI[[#This Row],[Manufacturer]]<>\"\",CONCATENATE(Table_SummaryPI[[#This Row],[Manufacturer]],\"/\",Table_SummaryPI[[#This Row],[Model'#]]),\"\")","v":""},{"$f":"IF(Table_SummaryPI[[#This Row],[Serial'#]]<>\"\",Table_SummaryPI[[#This Row],[Serial'#]],\"\")","v":""},{"$f":"IF(Table_SummaryPI[[#This Row],[Quantity]]<>\"\",Table_SummaryPI[[#This Row],[Quantity]],\"\")","v":""},{"$f":"IF(Table_SummaryPI[[#This Row],[BaselinekWh]]<>\"\",Table_SummaryPI[[#This Row],[BaselinekWh]],\"\")","v":""},{"$f":"IF(Table_SummaryPI[[#This Row],[BaselinekW]]<>\"\",Table_SummaryPI[[#This Row],[BaselinekW]],\"\")","v":""},{"$f":"IF(Table_SummaryPI[[#This Row],[ProposedkWh]]<>\"\",Table_SummaryPI[[#This Row],[ProposedkWh]],\"\")","v":""},{"$f":"IF(Table_SummaryPI[[#This Row],[ProposedkW]]<>\"\",Table_SummaryPI[[#This Row],[ProposedkW]],\"\")","v":""},{"$f":"IF(Table_SummaryPI[[#This Row],[Notes]]<>\"\",Table_SummaryPI[[#This Row],[Notes]],\"\")","v":""},{"$f":"IF(Table_SummaryPI[[#This Row],[Incentive_Customer]]<>\"\",Table_SummaryPI[[#This Row],[Incentive_Customer]],0)","v":0},{"$f":"IF(Table_SummaryPI[[#This Row],[MeasureCost]]<>\"\",Table_SummaryPI[[#This Row],[MeasureCost]],0)","v":0},{"$f":"IF(Table_SummaryPI[[#This Row],[kWhSavings]]<>\"\",Table_SummaryPI[[#This Row],[kWhSavings]],0)","v":0},{"$f":"IF(Table_SummaryPI[[#This Row],[DemandSavingskW]]<>\"\",Table_SummaryPI[[#This Row],[DemandSavingskW]],0)","v":0}]
[{"$f":"Table_SummaryPI[[#This Row],[Line No.]]","v":""},{"$f":"IF(Table_PrintPI[[#This Row],[Line No.]]=\"\",\"\",CONCATENATE(Table_PrintPI[[#This Row],[Line No.]],\" - \",Table_SummaryPI[[#This Row],[MeasureName]]))","v":""},{"$f":"IF(Table_SummaryPI[[#This Row],[Manufacturer]]<>\"\",CONCATENATE(Table_SummaryPI[[#This Row],[Manufacturer]],\"/\",Table_SummaryPI[[#This Row],[Model'#]]),\"\")","v":""},{"$f":"IF(Table_SummaryPI[[#This Row],[Serial'#]]<>\"\",Table_SummaryPI[[#This Row],[Serial'#]],\"\")","v":""},{"$f":"IF(Table_SummaryPI[[#This Row],[Quantity]]<>\"\",Table_SummaryPI[[#This Row],[Quantity]],\"\")","v":""},{"$f":"IF(Table_SummaryPI[[#This Row],[BaselinekWh]]<>\"\",Table_SummaryPI[[#This Row],[BaselinekWh]],\"\")","v":""},{"$f":"IF(Table_SummaryPI[[#This Row],[BaselinekW]]<>\"\",Table_SummaryPI[[#This Row],[BaselinekW]],\"\")","v":""},{"$f":"IF(Table_SummaryPI[[#This Row],[ProposedkWh]]<>\"\",Table_SummaryPI[[#This Row],[ProposedkWh]],\"\")","v":""},{"$f":"IF(Table_SummaryPI[[#This Row],[ProposedkW]]<>\"\",Table_SummaryPI[[#This Row],[ProposedkW]],\"\")","v":""},{"$f":"IF(Table_SummaryPI[[#This Row],[Notes]]<>\"\",Table_SummaryPI[[#This Row],[Notes]],\"\")","v":""},{"$f":"IF(Table_SummaryPI[[#This Row],[Incentive_Customer]]<>\"\",Table_SummaryPI[[#This Row],[Incentive_Customer]],0)","v":0},{"$f":"IF(Table_SummaryPI[[#This Row],[MeasureCost]]<>\"\",Table_SummaryPI[[#This Row],[MeasureCost]],0)","v":0},{"$f":"IF(Table_SummaryPI[[#This Row],[kWhSavings]]<>\"\",Table_SummaryPI[[#This Row],[kWhSavings]],0)","v":0},{"$f":"IF(Table_SummaryPI[[#This Row],[DemandSavingskW]]<>\"\",Table_SummaryPI[[#This Row],[DemandSavingskW]],0)","v":0}]
[{"$f":"Table_SummaryPI[[#This Row],[Line No.]]","v":""},{"$f":"IF(Table_PrintPI[[#This Row],[Line No.]]=\"\",\"\",CONCATENATE(Table_PrintPI[[#This Row],[Line No.]],\" - \",Table_SummaryPI[[#This Row],[MeasureName]]))","v":""},{"$f":"IF(Table_SummaryPI[[#This Row],[Manufacturer]]<>\"\",CONCATENATE(Table_SummaryPI[[#This Row],[Manufacturer]],\"/\",Table_SummaryPI[[#This Row],[Model'#]]),\"\")","v":""},{"$f":"IF(Table_SummaryPI[[#This Row],[Serial'#]]<>\"\",Table_SummaryPI[[#This Row],[Serial'#]],\"\")","v":""},{"$f":"IF(Table_SummaryPI[[#This Row],[Quantity]]<>\"\",Table_SummaryPI[[#This Row],[Quantity]],\"\")","v":""},{"$f":"IF(Table_SummaryPI[[#This Row],[BaselinekWh]]<>\"\",Table_SummaryPI[[#This Row],[BaselinekWh]],\"\")","v":""},{"$f":"IF(Table_SummaryPI[[#This Row],[BaselinekW]]<>\"\",Table_SummaryPI[[#This Row],[BaselinekW]],\"\")","v":""},{"$f":"IF(Table_SummaryPI[[#This Row],[ProposedkWh]]<>\"\",Table_SummaryPI[[#This Row],[ProposedkWh]],\"\")","v":""},{"$f":"IF(Table_SummaryPI[[#This Row],[ProposedkW]]<>\"\",Table_SummaryPI[[#This Row],[ProposedkW]],\"\")","v":""},{"$f":"IF(Table_SummaryPI[[#This Row],[Notes]]<>\"\",Table_SummaryPI[[#This Row],[Notes]],\"\")","v":""},{"$f":"IF(Table_SummaryPI[[#This Row],[Incentive_Customer]]<>\"\",Table_SummaryPI[[#This Row],[Incentive_Customer]],0)","v":0},{"$f":"IF(Table_SummaryPI[[#This Row],[MeasureCost]]<>\"\",Table_SummaryPI[[#This Row],[MeasureCost]],0)","v":0},{"$f":"IF(Table_SummaryPI[[#This Row],[kWhSavings]]<>\"\",Table_SummaryPI[[#This Row],[kWhSavings]],0)","v":0},{"$f":"IF(Table_SummaryPI[[#This Row],[DemandSavingskW]]<>\"\",Table_SummaryPI[[#This Row],[DemandSavingskW]],0)","v":0}]
[{"$f":"Table_SummaryPI[[#This Row],[Line No.]]","v":""},{"$f":"IF(Table_PrintPI[[#This Row],[Line No.]]=\"\",\"\",CONCATENATE(Table_PrintPI[[#This Row],[Line No.]],\" - \",Table_SummaryPI[[#This Row],[MeasureName]]))","v":""},{"$f":"IF(Table_SummaryPI[[#This Row],[Manufacturer]]<>\"\",CONCATENATE(Table_SummaryPI[[#This Row],[Manufacturer]],\"/\",Table_SummaryPI[[#This Row],[Model'#]]),\"\")","v":""},{"$f":"IF(Table_SummaryPI[[#This Row],[Serial'#]]<>\"\",Table_SummaryPI[[#This Row],[Serial'#]],\"\")","v":""},{"$f":"IF(Table_SummaryPI[[#This Row],[Quantity]]<>\"\",Table_SummaryPI[[#This Row],[Quantity]],\"\")","v":""},{"$f":"IF(Table_SummaryPI[[#This Row],[BaselinekWh]]<>\"\",Table_SummaryPI[[#This Row],[BaselinekWh]],\"\")","v":""},{"$f":"IF(Table_SummaryPI[[#This Row],[BaselinekW]]<>\"\",Table_SummaryPI[[#This Row],[BaselinekW]],\"\")","v":""},{"$f":"IF(Table_SummaryPI[[#This Row],[ProposedkWh]]<>\"\",Table_SummaryPI[[#This Row],[ProposedkWh]],\"\")","v":""},{"$f":"IF(Table_SummaryPI[[#This Row],[ProposedkW]]<>\"\",Table_SummaryPI[[#This Row],[ProposedkW]],\"\")","v":""},{"$f":"IF(Table_SummaryPI[[#This Row],[Notes]]<>\"\",Table_SummaryPI[[#This Row],[Notes]],\"\")","v":""},{"$f":"IF(Table_SummaryPI[[#This Row],[Incentive_Customer]]<>\"\",Table_SummaryPI[[#This Row],[Incentive_Customer]],0)","v":0},{"$f":"IF(Table_SummaryPI[[#This Row],[MeasureCost]]<>\"\",Table_SummaryPI[[#This Row],[MeasureCost]],0)","v":0},{"$f":"IF(Table_SummaryPI[[#This Row],[kWhSavings]]<>\"\",Table_SummaryPI[[#This Row],[kWhSavings]],0)","v":0},{"$f":"IF(Table_SummaryPI[[#This Row],[DemandSavingskW]]<>\"\",Table_SummaryPI[[#This Row],[DemandSavingskW]],0)","v":0}]
[{"$f":"Table_SummaryPI[[#This Row],[Line No.]]","v":""},{"$f":"IF(Table_PrintPI[[#This Row],[Line No.]]=\"\",\"\",CONCATENATE(Table_PrintPI[[#This Row],[Line No.]],\" - \",Table_SummaryPI[[#This Row],[MeasureName]]))","v":""},{"$f":"IF(Table_SummaryPI[[#This Row],[Manufacturer]]<>\"\",CONCATENATE(Table_SummaryPI[[#This Row],[Manufacturer]],\"/\",Table_SummaryPI[[#This Row],[Model'#]]),\"\")","v":""},{"$f":"IF(Table_SummaryPI[[#This Row],[Serial'#]]<>\"\",Table_SummaryPI[[#This Row],[Serial'#]],\"\")","v":""},{"$f":"IF(Table_SummaryPI[[#This Row],[Quantity]]<>\"\",Table_SummaryPI[[#This Row],[Quantity]],\"\")","v":""},{"$f":"IF(Table_SummaryPI[[#This Row],[BaselinekWh]]<>\"\",Table_SummaryPI[[#This Row],[BaselinekWh]],\"\")","v":""},{"$f":"IF(Table_SummaryPI[[#This Row],[BaselinekW]]<>\"\",Table_SummaryPI[[#This Row],[BaselinekW]],\"\")","v":""},{"$f":"IF(Table_SummaryPI[[#This Row],[ProposedkWh]]<>\"\",Table_SummaryPI[[#This Row],[ProposedkWh]],\"\")","v":""},{"$f":"IF(Table_SummaryPI[[#This Row],[ProposedkW]]<>\"\",Table_SummaryPI[[#This Row],[ProposedkW]],\"\")","v":""},{"$f":"IF(Table_SummaryPI[[#This Row],[Notes]]<>\"\",Table_SummaryPI[[#This Row],[Notes]],\"\")","v":""},{"$f":"IF(Table_SummaryPI[[#This Row],[Incentive_Customer]]<>\"\",Table_SummaryPI[[#This Row],[Incentive_Customer]],0)","v":0},{"$f":"IF(Table_SummaryPI[[#This Row],[MeasureCost]]<>\"\",Table_SummaryPI[[#This Row],[MeasureCost]],0)","v":0},{"$f":"IF(Table_SummaryPI[[#This Row],[kWhSavings]]<>\"\",Table_SummaryPI[[#This Row],[kWhSavings]],0)","v":0},{"$f":"IF(Table_SummaryPI[[#This Row],[DemandSavingskW]]<>\"\",Table_SummaryPI[[#This Row],[DemandSavingskW]],0)","v":0}]
[{"$f":"Table_SummaryPI[[#This Row],[Line No.]]","v":""},{"$f":"IF(Table_PrintPI[[#This Row],[Line No.]]=\"\",\"\",CONCATENATE(Table_PrintPI[[#This Row],[Line No.]],\" - \",Table_SummaryPI[[#This Row],[MeasureName]]))","v":""},{"$f":"IF(Table_SummaryPI[[#This Row],[Manufacturer]]<>\"\",CONCATENATE(Table_SummaryPI[[#This Row],[Manufacturer]],\"/\",Table_SummaryPI[[#This Row],[Model'#]]),\"\")","v":""},{"$f":"IF(Table_SummaryPI[[#This Row],[Serial'#]]<>\"\",Table_SummaryPI[[#This Row],[Serial'#]],\"\")","v":""},{"$f":"IF(Table_SummaryPI[[#This Row],[Quantity]]<>\"\",Table_SummaryPI[[#This Row],[Quantity]],\"\")","v":""},{"$f":"IF(Table_SummaryPI[[#This Row],[BaselinekWh]]<>\"\",Table_SummaryPI[[#This Row],[BaselinekWh]],\"\")","v":""},{"$f":"IF(Table_SummaryPI[[#This Row],[BaselinekW]]<>\"\",Table_SummaryPI[[#This Row],[BaselinekW]],\"\")","v":""},{"$f":"IF(Table_SummaryPI[[#This Row],[ProposedkWh]]<>\"\",Table_SummaryPI[[#This Row],[ProposedkWh]],\"\")","v":""},{"$f":"IF(Table_SummaryPI[[#This Row],[ProposedkW]]<>\"\",Table_SummaryPI[[#This Row],[ProposedkW]],\"\")","v":""},{"$f":"IF(Table_SummaryPI[[#This Row],[Notes]]<>\"\",Table_SummaryPI[[#This Row],[Notes]],\"\")","v":""},{"$f":"IF(Table_SummaryPI[[#This Row],[Incentive_Customer]]<>\"\",Table_SummaryPI[[#This Row],[Incentive_Customer]],0)","v":0},{"$f":"IF(Table_SummaryPI[[#This Row],[MeasureCost]]<>\"\",Table_SummaryPI[[#This Row],[MeasureCost]],0)","v":0},{"$f":"IF(Table_SummaryPI[[#This Row],[kWhSavings]]<>\"\",Table_SummaryPI[[#This Row],[kWhSavings]],0)","v":0},{"$f":"IF(Table_SummaryPI[[#This Row],[DemandSavingskW]]<>\"\",Table_SummaryPI[[#This Row],[DemandSavingskW]],0)","v":0}]
[{"$f":"Table_SummaryPI[[#This Row],[Line No.]]","v":""},{"$f":"IF(Table_PrintPI[[#This Row],[Line No.]]=\"\",\"\",CONCATENATE(Table_PrintPI[[#This Row],[Line No.]],\" - \",Table_SummaryPI[[#This Row],[MeasureName]]))","v":""},{"$f":"IF(Table_SummaryPI[[#This Row],[Manufacturer]]<>\"\",CONCATENATE(Table_SummaryPI[[#This Row],[Manufacturer]],\"/\",Table_SummaryPI[[#This Row],[Model'#]]),\"\")","v":""},{"$f":"IF(Table_SummaryPI[[#This Row],[Serial'#]]<>\"\",Table_SummaryPI[[#This Row],[Serial'#]],\"\")","v":""},{"$f":"IF(Table_SummaryPI[[#This Row],[Quantity]]<>\"\",Table_SummaryPI[[#This Row],[Quantity]],\"\")","v":""},{"$f":"IF(Table_SummaryPI[[#This Row],[BaselinekWh]]<>\"\",Table_SummaryPI[[#This Row],[BaselinekWh]],\"\")","v":""},{"$f":"IF(Table_SummaryPI[[#This Row],[BaselinekW]]<>\"\",Table_SummaryPI[[#This Row],[BaselinekW]],\"\")","v":""},{"$f":"IF(Table_SummaryPI[[#This Row],[ProposedkWh]]<>\"\",Table_SummaryPI[[#This Row],[ProposedkWh]],\"\")","v":""},{"$f":"IF(Table_SummaryPI[[#This Row],[ProposedkW]]<>\"\",Table_SummaryPI[[#This Row],[ProposedkW]],\"\")","v":""},{"$f":"IF(Table_SummaryPI[[#This Row],[Notes]]<>\"\",Table_SummaryPI[[#This Row],[Notes]],\"\")","v":""},{"$f":"IF(Table_SummaryPI[[#This Row],[Incentive_Customer]]<>\"\",Table_SummaryPI[[#This Row],[Incentive_Customer]],0)","v":0},{"$f":"IF(Table_SummaryPI[[#This Row],[MeasureCost]]<>\"\",Table_SummaryPI[[#This Row],[MeasureCost]],0)","v":0},{"$f":"IF(Table_SummaryPI[[#This Row],[kWhSavings]]<>\"\",Table_SummaryPI[[#This Row],[kWhSavings]],0)","v":0},{"$f":"IF(Table_SummaryPI[[#This Row],[DemandSavingskW]]<>\"\",Table_SummaryPI[[#This Row],[DemandSavingskW]],0)","v":0}]
[{"$f":"Table_SummaryPI[[#This Row],[Line No.]]","v":""},{"$f":"IF(Table_PrintPI[[#This Row],[Line No.]]=\"\",\"\",CONCATENATE(Table_PrintPI[[#This Row],[Line No.]],\" - \",Table_SummaryPI[[#This Row],[MeasureName]]))","v":""},{"$f":"IF(Table_SummaryPI[[#This Row],[Manufacturer]]<>\"\",CONCATENATE(Table_SummaryPI[[#This Row],[Manufacturer]],\"/\",Table_SummaryPI[[#This Row],[Model'#]]),\"\")","v":""},{"$f":"IF(Table_SummaryPI[[#This Row],[Serial'#]]<>\"\",Table_SummaryPI[[#This Row],[Serial'#]],\"\")","v":""},{"$f":"IF(Table_SummaryPI[[#This Row],[Quantity]]<>\"\",Table_SummaryPI[[#This Row],[Quantity]],\"\")","v":""},{"$f":"IF(Table_SummaryPI[[#This Row],[BaselinekWh]]<>\"\",Table_SummaryPI[[#This Row],[BaselinekWh]],\"\")","v":""},{"$f":"IF(Table_SummaryPI[[#This Row],[BaselinekW]]<>\"\",Table_SummaryPI[[#This Row],[BaselinekW]],\"\")","v":""},{"$f":"IF(Table_SummaryPI[[#This Row],[ProposedkWh]]<>\"\",Table_SummaryPI[[#This Row],[ProposedkWh]],\"\")","v":""},{"$f":"IF(Table_SummaryPI[[#This Row],[ProposedkW]]<>\"\",Table_SummaryPI[[#This Row],[ProposedkW]],\"\")","v":""},{"$f":"IF(Table_SummaryPI[[#This Row],[Notes]]<>\"\",Table_SummaryPI[[#This Row],[Notes]],\"\")","v":""},{"$f":"IF(Table_SummaryPI[[#This Row],[Incentive_Customer]]<>\"\",Table_SummaryPI[[#This Row],[Incentive_Customer]],0)","v":0},{"$f":"IF(Table_SummaryPI[[#This Row],[MeasureCost]]<>\"\",Table_SummaryPI[[#This Row],[MeasureCost]],0)","v":0},{"$f":"IF(Table_SummaryPI[[#This Row],[kWhSavings]]<>\"\",Table_SummaryPI[[#This Row],[kWhSavings]],0)","v":0},{"$f":"IF(Table_SummaryPI[[#This Row],[DemandSavingskW]]<>\"\",Table_SummaryPI[[#This Row],[DemandSavingskW]],0)","v":0}]
[{"$f":"Table_SummaryPI[[#This Row],[Line No.]]","v":""},{"$f":"IF(Table_PrintPI[[#This Row],[Line No.]]=\"\",\"\",CONCATENATE(Table_PrintPI[[#This Row],[Line No.]],\" - \",Table_SummaryPI[[#This Row],[MeasureName]]))","v":""},{"$f":"IF(Table_SummaryPI[[#This Row],[Manufacturer]]<>\"\",CONCATENATE(Table_SummaryPI[[#This Row],[Manufacturer]],\"/\",Table_SummaryPI[[#This Row],[Model'#]]),\"\")","v":""},{"$f":"IF(Table_SummaryPI[[#This Row],[Serial'#]]<>\"\",Table_SummaryPI[[#This Row],[Serial'#]],\"\")","v":""},{"$f":"IF(Table_SummaryPI[[#This Row],[Quantity]]<>\"\",Table_SummaryPI[[#This Row],[Quantity]],\"\")","v":""},{"$f":"IF(Table_SummaryPI[[#This Row],[BaselinekWh]]<>\"\",Table_SummaryPI[[#This Row],[BaselinekWh]],\"\")","v":""},{"$f":"IF(Table_SummaryPI[[#This Row],[BaselinekW]]<>\"\",Table_SummaryPI[[#This Row],[BaselinekW]],\"\")","v":""},{"$f":"IF(Table_SummaryPI[[#This Row],[ProposedkWh]]<>\"\",Table_SummaryPI[[#This Row],[ProposedkWh]],\"\")","v":""},{"$f":"IF(Table_SummaryPI[[#This Row],[ProposedkW]]<>\"\",Table_SummaryPI[[#This Row],[ProposedkW]],\"\")","v":""},{"$f":"IF(Table_SummaryPI[[#This Row],[Notes]]<>\"\",Table_SummaryPI[[#This Row],[Notes]],\"\")","v":""},{"$f":"IF(Table_SummaryPI[[#This Row],[Incentive_Customer]]<>\"\",Table_SummaryPI[[#This Row],[Incentive_Customer]],0)","v":0},{"$f":"IF(Table_SummaryPI[[#This Row],[MeasureCost]]<>\"\",Table_SummaryPI[[#This Row],[MeasureCost]],0)","v":0},{"$f":"IF(Table_SummaryPI[[#This Row],[kWhSavings]]<>\"\",Table_SummaryPI[[#This Row],[kWhSavings]],0)","v":0},{"$f":"IF(Table_SummaryPI[[#This Row],[DemandSavingskW]]<>\"\",Table_SummaryPI[[#This Row],[DemandSavingskW]],0)","v":0}]
[{"$f":"Table_SummaryPI[[#This Row],[Line No.]]","v":""},{"$f":"IF(Table_PrintPI[[#This Row],[Line No.]]=\"\",\"\",CONCATENATE(Table_PrintPI[[#This Row],[Line No.]],\" - \",Table_SummaryPI[[#This Row],[MeasureName]]))","v":""},{"$f":"IF(Table_SummaryPI[[#This Row],[Manufacturer]]<>\"\",CONCATENATE(Table_SummaryPI[[#This Row],[Manufacturer]],\"/\",Table_SummaryPI[[#This Row],[Model'#]]),\"\")","v":""},{"$f":"IF(Table_SummaryPI[[#This Row],[Serial'#]]<>\"\",Table_SummaryPI[[#This Row],[Serial'#]],\"\")","v":""},{"$f":"IF(Table_SummaryPI[[#This Row],[Quantity]]<>\"\",Table_SummaryPI[[#This Row],[Quantity]],\"\")","v":""},{"$f":"IF(Table_SummaryPI[[#This Row],[BaselinekWh]]<>\"\",Table_SummaryPI[[#This Row],[BaselinekWh]],\"\")","v":""},{"$f":"IF(Table_SummaryPI[[#This Row],[BaselinekW]]<>\"\",Table_SummaryPI[[#This Row],[BaselinekW]],\"\")","v":""},{"$f":"IF(Table_SummaryPI[[#This Row],[ProposedkWh]]<>\"\",Table_SummaryPI[[#This Row],[ProposedkWh]],\"\")","v":""},{"$f":"IF(Table_SummaryPI[[#This Row],[ProposedkW]]<>\"\",Table_SummaryPI[[#This Row],[ProposedkW]],\"\")","v":""},{"$f":"IF(Table_SummaryPI[[#This Row],[Notes]]<>\"\",Table_SummaryPI[[#This Row],[Notes]],\"\")","v":""},{"$f":"IF(Table_SummaryPI[[#This Row],[Incentive_Customer]]<>\"\",Table_SummaryPI[[#This Row],[Incentive_Customer]],0)","v":0},{"$f":"IF(Table_SummaryPI[[#This Row],[MeasureCost]]<>\"\",Table_SummaryPI[[#This Row],[MeasureCost]],0)","v":0},{"$f":"IF(Table_SummaryPI[[#This Row],[kWhSavings]]<>\"\",Table_SummaryPI[[#This Row],[kWhSavings]],0)","v":0},{"$f":"IF(Table_SummaryPI[[#This Row],[DemandSavingskW]]<>\"\",Table_SummaryPI[[#This Row],[DemandSavingskW]],0)","v":0}]
[{"$f":"Table_SummaryPI[[#This Row],[Line No.]]","v":""},{"$f":"IF(Table_PrintPI[[#This Row],[Line No.]]=\"\",\"\",CONCATENATE(Table_PrintPI[[#This Row],[Line No.]],\" - \",Table_SummaryPI[[#This Row],[MeasureName]]))","v":""},{"$f":"IF(Table_SummaryPI[[#This Row],[Manufacturer]]<>\"\",CONCATENATE(Table_SummaryPI[[#This Row],[Manufacturer]],\"/\",Table_SummaryPI[[#This Row],[Model'#]]),\"\")","v":""},{"$f":"IF(Table_SummaryPI[[#This Row],[Serial'#]]<>\"\",Table_SummaryPI[[#This Row],[Serial'#]],\"\")","v":""},{"$f":"IF(Table_SummaryPI[[#This Row],[Quantity]]<>\"\",Table_SummaryPI[[#This Row],[Quantity]],\"\")","v":""},{"$f":"IF(Table_SummaryPI[[#This Row],[BaselinekWh]]<>\"\",Table_SummaryPI[[#This Row],[BaselinekWh]],\"\")","v":""},{"$f":"IF(Table_SummaryPI[[#This Row],[BaselinekW]]<>\"\",Table_SummaryPI[[#This Row],[BaselinekW]],\"\")","v":""},{"$f":"IF(Table_SummaryPI[[#This Row],[ProposedkWh]]<>\"\",Table_SummaryPI[[#This Row],[ProposedkWh]],\"\")","v":""},{"$f":"IF(Table_SummaryPI[[#This Row],[ProposedkW]]<>\"\",Table_SummaryPI[[#This Row],[ProposedkW]],\"\")","v":""},{"$f":"IF(Table_SummaryPI[[#This Row],[Notes]]<>\"\",Table_SummaryPI[[#This Row],[Notes]],\"\")","v":""},{"$f":"IF(Table_SummaryPI[[#This Row],[Incentive_Customer]]<>\"\",Table_SummaryPI[[#This Row],[Incentive_Customer]],0)","v":0},{"$f":"IF(Table_SummaryPI[[#This Row],[MeasureCost]]<>\"\",Table_SummaryPI[[#This Row],[MeasureCost]],0)","v":0},{"$f":"IF(Table_SummaryPI[[#This Row],[kWhSavings]]<>\"\",Table_SummaryPI[[#This Row],[kWhSavings]],0)","v":0},{"$f":"IF(Table_SummaryPI[[#This Row],[DemandSavingskW]]<>\"\",Table_SummaryPI[[#This Row],[DemandSavingskW]],0)","v":0}]
[{"$f":"Table_SummaryPI[[#This Row],[Line No.]]","v":""},{"$f":"IF(Table_PrintPI[[#This Row],[Line No.]]=\"\",\"\",CONCATENATE(Table_PrintPI[[#This Row],[Line No.]],\" - \",Table_SummaryPI[[#This Row],[MeasureName]]))","v":""},{"$f":"IF(Table_SummaryPI[[#This Row],[Manufacturer]]<>\"\",CONCATENATE(Table_SummaryPI[[#This Row],[Manufacturer]],\"/\",Table_SummaryPI[[#This Row],[Model'#]]),\"\")","v":""},{"$f":"IF(Table_SummaryPI[[#This Row],[Serial'#]]<>\"\",Table_SummaryPI[[#This Row],[Serial'#]],\"\")","v":""},{"$f":"IF(Table_SummaryPI[[#This Row],[Quantity]]<>\"\",Table_SummaryPI[[#This Row],[Quantity]],\"\")","v":""},{"$f":"IF(Table_SummaryPI[[#This Row],[BaselinekWh]]<>\"\",Table_SummaryPI[[#This Row],[BaselinekWh]],\"\")","v":""},{"$f":"IF(Table_SummaryPI[[#This Row],[BaselinekW]]<>\"\",Table_SummaryPI[[#This Row],[BaselinekW]],\"\")","v":""},{"$f":"IF(Table_SummaryPI[[#This Row],[ProposedkWh]]<>\"\",Table_SummaryPI[[#This Row],[ProposedkWh]],\"\")","v":""},{"$f":"IF(Table_SummaryPI[[#This Row],[ProposedkW]]<>\"\",Table_SummaryPI[[#This Row],[ProposedkW]],\"\")","v":""},{"$f":"IF(Table_SummaryPI[[#This Row],[Notes]]<>\"\",Table_SummaryPI[[#This Row],[Notes]],\"\")","v":""},{"$f":"IF(Table_SummaryPI[[#This Row],[Incentive_Customer]]<>\"\",Table_SummaryPI[[#This Row],[Incentive_Customer]],0)","v":0},{"$f":"IF(Table_SummaryPI[[#This Row],[MeasureCost]]<>\"\",Table_SummaryPI[[#This Row],[MeasureCost]],0)","v":0},{"$f":"IF(Table_SummaryPI[[#This Row],[kWhSavings]]<>\"\",Table_SummaryPI[[#This Row],[kWhSavings]],0)","v":0},{"$f":"IF(Table_SummaryPI[[#This Row],[DemandSavingskW]]<>\"\",Table_SummaryPI[[#This Row],[DemandSavingskW]],0)","v":0}]
[{"$f":"Table_SummaryPI[[#This Row],[Line No.]]","v":""},{"$f":"IF(Table_PrintPI[[#This Row],[Line No.]]=\"\",\"\",CONCATENATE(Table_PrintPI[[#This Row],[Line No.]],\" - \",Table_SummaryPI[[#This Row],[MeasureName]]))","v":""},{"$f":"IF(Table_SummaryPI[[#This Row],[Manufacturer]]<>\"\",CONCATENATE(Table_SummaryPI[[#This Row],[Manufacturer]],\"/\",Table_SummaryPI[[#This Row],[Model'#]]),\"\")","v":""},{"$f":"IF(Table_SummaryPI[[#This Row],[Serial'#]]<>\"\",Table_SummaryPI[[#This Row],[Serial'#]],\"\")","v":""},{"$f":"IF(Table_SummaryPI[[#This Row],[Quantity]]<>\"\",Table_SummaryPI[[#This Row],[Quantity]],\"\")","v":""},{"$f":"IF(Table_SummaryPI[[#This Row],[BaselinekWh]]<>\"\",Table_SummaryPI[[#This Row],[BaselinekWh]],\"\")","v":""},{"$f":"IF(Table_SummaryPI[[#This Row],[BaselinekW]]<>\"\",Table_SummaryPI[[#This Row],[BaselinekW]],\"\")","v":""},{"$f":"IF(Table_SummaryPI[[#This Row],[ProposedkWh]]<>\"\",Table_SummaryPI[[#This Row],[ProposedkWh]],\"\")","v":""},{"$f":"IF(Table_SummaryPI[[#This Row],[ProposedkW]]<>\"\",Table_SummaryPI[[#This Row],[ProposedkW]],\"\")","v":""},{"$f":"IF(Table_SummaryPI[[#This Row],[Notes]]<>\"\",Table_SummaryPI[[#This Row],[Notes]],\"\")","v":""},{"$f":"IF(Table_SummaryPI[[#This Row],[Incentive_Customer]]<>\"\",Table_SummaryPI[[#This Row],[Incentive_Customer]],0)","v":0},{"$f":"IF(Table_SummaryPI[[#This Row],[MeasureCost]]<>\"\",Table_SummaryPI[[#This Row],[MeasureCost]],0)","v":0},{"$f":"IF(Table_SummaryPI[[#This Row],[kWhSavings]]<>\"\",Table_SummaryPI[[#This Row],[kWhSavings]],0)","v":0},{"$f":"IF(Table_SummaryPI[[#This Row],[DemandSavingskW]]<>\"\",Table_SummaryPI[[#This Row],[DemandSavingskW]],0)","v":0}]
[{"$f":"Table_SummaryPI[[#This Row],[Line No.]]","v":""},{"$f":"IF(Table_PrintPI[[#This Row],[Line No.]]=\"\",\"\",CONCATENATE(Table_PrintPI[[#This Row],[Line No.]],\" - \",Table_SummaryPI[[#This Row],[MeasureName]]))","v":""},{"$f":"IF(Table_SummaryPI[[#This Row],[Manufacturer]]<>\"\",CONCATENATE(Table_SummaryPI[[#This Row],[Manufacturer]],\"/\",Table_SummaryPI[[#This Row],[Model'#]]),\"\")","v":""},{"$f":"IF(Table_SummaryPI[[#This Row],[Serial'#]]<>\"\",Table_SummaryPI[[#This Row],[Serial'#]],\"\")","v":""},{"$f":"IF(Table_SummaryPI[[#This Row],[Quantity]]<>\"\",Table_SummaryPI[[#This Row],[Quantity]],\"\")","v":""},{"$f":"IF(Table_SummaryPI[[#This Row],[BaselinekWh]]<>\"\",Table_SummaryPI[[#This Row],[BaselinekWh]],\"\")","v":""},{"$f":"IF(Table_SummaryPI[[#This Row],[BaselinekW]]<>\"\",Table_SummaryPI[[#This Row],[BaselinekW]],\"\")","v":""},{"$f":"IF(Table_SummaryPI[[#This Row],[ProposedkWh]]<>\"\",Table_SummaryPI[[#This Row],[ProposedkWh]],\"\")","v":""},{"$f":"IF(Table_SummaryPI[[#This Row],[ProposedkW]]<>\"\",Table_SummaryPI[[#This Row],[ProposedkW]],\"\")","v":""},{"$f":"IF(Table_SummaryPI[[#This Row],[Notes]]<>\"\",Table_SummaryPI[[#This Row],[Notes]],\"\")","v":""},{"$f":"IF(Table_SummaryPI[[#This Row],[Incentive_Customer]]<>\"\",Table_SummaryPI[[#This Row],[Incentive_Customer]],0)","v":0},{"$f":"IF(Table_SummaryPI[[#This Row],[MeasureCost]]<>\"\",Table_SummaryPI[[#This Row],[MeasureCost]],0)","v":0},{"$f":"IF(Table_SummaryPI[[#This Row],[kWhSavings]]<>\"\",Table_SummaryPI[[#This Row],[kWhSavings]],0)","v":0},{"$f":"IF(Table_SummaryPI[[#This Row],[DemandSavingskW]]<>\"\",Table_SummaryPI[[#This Row],[DemandSavingskW]],0)","v":0}]
[{"$f":"Table_SummaryPI[[#This Row],[Line No.]]","v":""},{"$f":"IF(Table_PrintPI[[#This Row],[Line No.]]=\"\",\"\",CONCATENATE(Table_PrintPI[[#This Row],[Line No.]],\" - \",Table_SummaryPI[[#This Row],[MeasureName]]))","v":""},{"$f":"IF(Table_SummaryPI[[#This Row],[Manufacturer]]<>\"\",CONCATENATE(Table_SummaryPI[[#This Row],[Manufacturer]],\"/\",Table_SummaryPI[[#This Row],[Model'#]]),\"\")","v":""},{"$f":"IF(Table_SummaryPI[[#This Row],[Serial'#]]<>\"\",Table_SummaryPI[[#This Row],[Serial'#]],\"\")","v":""},{"$f":"IF(Table_SummaryPI[[#This Row],[Quantity]]<>\"\",Table_SummaryPI[[#This Row],[Quantity]],\"\")","v":""},{"$f":"IF(Table_SummaryPI[[#This Row],[BaselinekWh]]<>\"\",Table_SummaryPI[[#This Row],[BaselinekWh]],\"\")","v":""},{"$f":"IF(Table_SummaryPI[[#This Row],[BaselinekW]]<>\"\",Table_SummaryPI[[#This Row],[BaselinekW]],\"\")","v":""},{"$f":"IF(Table_SummaryPI[[#This Row],[ProposedkWh]]<>\"\",Table_SummaryPI[[#This Row],[ProposedkWh]],\"\")","v":""},{"$f":"IF(Table_SummaryPI[[#This Row],[ProposedkW]]<>\"\",Table_SummaryPI[[#This Row],[ProposedkW]],\"\")","v":""},{"$f":"IF(Table_SummaryPI[[#This Row],[Notes]]<>\"\",Table_SummaryPI[[#This Row],[Notes]],\"\")","v":""},{"$f":"IF(Table_SummaryPI[[#This Row],[Incentive_Customer]]<>\"\",Table_SummaryPI[[#This Row],[Incentive_Customer]],0)","v":0},{"$f":"IF(Table_SummaryPI[[#This Row],[MeasureCost]]<>\"\",Table_SummaryPI[[#This Row],[MeasureCost]],0)","v":0},{"$f":"IF(Table_SummaryPI[[#This Row],[kWhSavings]]<>\"\",Table_SummaryPI[[#This Row],[kWhSavings]],0)","v":0},{"$f":"IF(Table_SummaryPI[[#This Row],[DemandSavingskW]]<>\"\",Table_SummaryPI[[#This Row],[DemandSavingskW]],0)","v":0}]
[{"$f":"Table_SummaryPI[[#This Row],[Line No.]]","v":""},{"$f":"IF(Table_PrintPI[[#This Row],[Line No.]]=\"\",\"\",CONCATENATE(Table_PrintPI[[#This Row],[Line No.]],\" - \",Table_SummaryPI[[#This Row],[MeasureName]]))","v":""},{"$f":"IF(Table_SummaryPI[[#This Row],[Manufacturer]]<>\"\",CONCATENATE(Table_SummaryPI[[#This Row],[Manufacturer]],\"/\",Table_SummaryPI[[#This Row],[Model'#]]),\"\")","v":""},{"$f":"IF(Table_SummaryPI[[#This Row],[Serial'#]]<>\"\",Table_SummaryPI[[#This Row],[Serial'#]],\"\")","v":""},{"$f":"IF(Table_SummaryPI[[#This Row],[Quantity]]<>\"\",Table_SummaryPI[[#This Row],[Quantity]],\"\")","v":""},{"$f":"IF(Table_SummaryPI[[#This Row],[BaselinekWh]]<>\"\",Table_SummaryPI[[#This Row],[BaselinekWh]],\"\")","v":""},{"$f":"IF(Table_SummaryPI[[#This Row],[BaselinekW]]<>\"\",Table_SummaryPI[[#This Row],[BaselinekW]],\"\")","v":""},{"$f":"IF(Table_SummaryPI[[#This Row],[ProposedkWh]]<>\"\",Table_SummaryPI[[#This Row],[ProposedkWh]],\"\")","v":""},{"$f":"IF(Table_SummaryPI[[#This Row],[ProposedkW]]<>\"\",Table_SummaryPI[[#This Row],[ProposedkW]],\"\")","v":""},{"$f":"IF(Table_SummaryPI[[#This Row],[Notes]]<>\"\",Table_SummaryPI[[#This Row],[Notes]],\"\")","v":""},{"$f":"IF(Table_SummaryPI[[#This Row],[Incentive_Customer]]<>\"\",Table_SummaryPI[[#This Row],[Incentive_Customer]],0)","v":0},{"$f":"IF(Table_SummaryPI[[#This Row],[MeasureCost]]<>\"\",Table_SummaryPI[[#This Row],[MeasureCost]],0)","v":0},{"$f":"IF(Table_SummaryPI[[#This Row],[kWhSavings]]<>\"\",Table_SummaryPI[[#This Row],[kWhSavings]],0)","v":0},{"$f":"IF(Table_SummaryPI[[#This Row],[DemandSavingskW]]<>\"\",Table_SummaryPI[[#This Row],[DemandSavingskW]],0)","v":0}]
[{"$f":"Table_SummaryPI[[#This Row],[Line No.]]","v":""},{"$f":"IF(Table_PrintPI[[#This Row],[Line No.]]=\"\",\"\",CONCATENATE(Table_PrintPI[[#This Row],[Line No.]],\" - \",Table_SummaryPI[[#This Row],[MeasureName]]))","v":""},{"$f":"IF(Table_SummaryPI[[#This Row],[Manufacturer]]<>\"\",CONCATENATE(Table_SummaryPI[[#This Row],[Manufacturer]],\"/\",Table_SummaryPI[[#This Row],[Model'#]]),\"\")","v":""},{"$f":"IF(Table_SummaryPI[[#This Row],[Serial'#]]<>\"\",Table_SummaryPI[[#This Row],[Serial'#]],\"\")","v":""},{"$f":"IF(Table_SummaryPI[[#This Row],[Quantity]]<>\"\",Table_SummaryPI[[#This Row],[Quantity]],\"\")","v":""},{"$f":"IF(Table_SummaryPI[[#This Row],[BaselinekWh]]<>\"\",Table_SummaryPI[[#This Row],[BaselinekWh]],\"\")","v":""},{"$f":"IF(Table_SummaryPI[[#This Row],[BaselinekW]]<>\"\",Table_SummaryPI[[#This Row],[BaselinekW]],\"\")","v":""},{"$f":"IF(Table_SummaryPI[[#This Row],[ProposedkWh]]<>\"\",Table_SummaryPI[[#This Row],[ProposedkWh]],\"\")","v":""},{"$f":"IF(Table_SummaryPI[[#This Row],[ProposedkW]]<>\"\",Table_SummaryPI[[#This Row],[ProposedkW]],\"\")","v":""},{"$f":"IF(Table_SummaryPI[[#This Row],[Notes]]<>\"\",Table_SummaryPI[[#This Row],[Notes]],\"\")","v":""},{"$f":"IF(Table_SummaryPI[[#This Row],[Incentive_Customer]]<>\"\",Table_SummaryPI[[#This Row],[Incentive_Customer]],0)","v":0},{"$f":"IF(Table_SummaryPI[[#This Row],[MeasureCost]]<>\"\",Table_SummaryPI[[#This Row],[MeasureCost]],0)","v":0},{"$f":"IF(Table_SummaryPI[[#This Row],[kWhSavings]]<>\"\",Table_SummaryPI[[#This Row],[kWhSavings]],0)","v":0},{"$f":"IF(Table_SummaryPI[[#This Row],[DemandSavingskW]]<>\"\",Table_SummaryPI[[#This Row],[DemandSavingskW]],0)","v":0}]
[{"$f":"Table_SummaryPI[[#This Row],[Line No.]]","v":""},{"$f":"IF(Table_PrintPI[[#This Row],[Line No.]]=\"\",\"\",CONCATENATE(Table_PrintPI[[#This Row],[Line No.]],\" - \",Table_SummaryPI[[#This Row],[MeasureName]]))","v":""},{"$f":"IF(Table_SummaryPI[[#This Row],[Manufacturer]]<>\"\",CONCATENATE(Table_SummaryPI[[#This Row],[Manufacturer]],\"/\",Table_SummaryPI[[#This Row],[Model'#]]),\"\")","v":""},{"$f":"IF(Table_SummaryPI[[#This Row],[Serial'#]]<>\"\",Table_SummaryPI[[#This Row],[Serial'#]],\"\")","v":""},{"$f":"IF(Table_SummaryPI[[#This Row],[Quantity]]<>\"\",Table_SummaryPI[[#This Row],[Quantity]],\"\")","v":""},{"$f":"IF(Table_SummaryPI[[#This Row],[BaselinekWh]]<>\"\",Table_SummaryPI[[#This Row],[BaselinekWh]],\"\")","v":""},{"$f":"IF(Table_SummaryPI[[#This Row],[BaselinekW]]<>\"\",Table_SummaryPI[[#This Row],[BaselinekW]],\"\")","v":""},{"$f":"IF(Table_SummaryPI[[#This Row],[ProposedkWh]]<>\"\",Table_SummaryPI[[#This Row],[ProposedkWh]],\"\")","v":""},{"$f":"IF(Table_SummaryPI[[#This Row],[ProposedkW]]<>\"\",Table_SummaryPI[[#This Row],[ProposedkW]],\"\")","v":""},{"$f":"IF(Table_SummaryPI[[#This Row],[Notes]]<>\"\",Table_SummaryPI[[#This Row],[Notes]],\"\")","v":""},{"$f":"IF(Table_SummaryPI[[#This Row],[Incentive_Customer]]<>\"\",Table_SummaryPI[[#This Row],[Incentive_Customer]],0)","v":0},{"$f":"IF(Table_SummaryPI[[#This Row],[MeasureCost]]<>\"\",Table_SummaryPI[[#This Row],[MeasureCost]],0)","v":0},{"$f":"IF(Table_SummaryPI[[#This Row],[kWhSavings]]<>\"\",Table_SummaryPI[[#This Row],[kWhSavings]],0)","v":0},{"$f":"IF(Table_SummaryPI[[#This Row],[DemandSavingskW]]<>\"\",Table_SummaryPI[[#This Row],[DemandSavingskW]],0)","v":0}]
[{"$f":"Table_SummaryPI[[#This Row],[Line No.]]","v":""},{"$f":"IF(Table_PrintPI[[#This Row],[Line No.]]=\"\",\"\",CONCATENATE(Table_PrintPI[[#This Row],[Line No.]],\" - \",Table_SummaryPI[[#This Row],[MeasureName]]))","v":""},{"$f":"IF(Table_SummaryPI[[#This Row],[Manufacturer]]<>\"\",CONCATENATE(Table_SummaryPI[[#This Row],[Manufacturer]],\"/\",Table_SummaryPI[[#This Row],[Model'#]]),\"\")","v":""},{"$f":"IF(Table_SummaryPI[[#This Row],[Serial'#]]<>\"\",Table_SummaryPI[[#This Row],[Serial'#]],\"\")","v":""},{"$f":"IF(Table_SummaryPI[[#This Row],[Quantity]]<>\"\",Table_SummaryPI[[#This Row],[Quantity]],\"\")","v":""},{"$f":"IF(Table_SummaryPI[[#This Row],[BaselinekWh]]<>\"\",Table_SummaryPI[[#This Row],[BaselinekWh]],\"\")","v":""},{"$f":"IF(Table_SummaryPI[[#This Row],[BaselinekW]]<>\"\",Table_SummaryPI[[#This Row],[BaselinekW]],\"\")","v":""},{"$f":"IF(Table_SummaryPI[[#This Row],[ProposedkWh]]<>\"\",Table_SummaryPI[[#This Row],[ProposedkWh]],\"\")","v":""},{"$f":"IF(Table_SummaryPI[[#This Row],[ProposedkW]]<>\"\",Table_SummaryPI[[#This Row],[ProposedkW]],\"\")","v":""},{"$f":"IF(Table_SummaryPI[[#This Row],[Notes]]<>\"\",Table_SummaryPI[[#This Row],[Notes]],\"\")","v":""},{"$f":"IF(Table_SummaryPI[[#This Row],[Incentive_Customer]]<>\"\",Table_SummaryPI[[#This Row],[Incentive_Customer]],0)","v":0},{"$f":"IF(Table_SummaryPI[[#This Row],[MeasureCost]]<>\"\",Table_SummaryPI[[#This Row],[MeasureCost]],0)","v":0},{"$f":"IF(Table_SummaryPI[[#This Row],[kWhSavings]]<>\"\",Table_SummaryPI[[#This Row],[kWhSavings]],0)","v":0},{"$f":"IF(Table_SummaryPI[[#This Row],[DemandSavingskW]]<>\"\",Table_SummaryPI[[#This Row],[DemandSavingskW]],0)","v":0}]
[{"$f":"Table_SummaryPI[[#This Row],[Line No.]]","v":""},{"$f":"IF(Table_PrintPI[[#This Row],[Line No.]]=\"\",\"\",CONCATENATE(Table_PrintPI[[#This Row],[Line No.]],\" - \",Table_SummaryPI[[#This Row],[MeasureName]]))","v":""},{"$f":"IF(Table_SummaryPI[[#This Row],[Manufacturer]]<>\"\",CONCATENATE(Table_SummaryPI[[#This Row],[Manufacturer]],\"/\",Table_SummaryPI[[#This Row],[Model'#]]),\"\")","v":""},{"$f":"IF(Table_SummaryPI[[#This Row],[Serial'#]]<>\"\",Table_SummaryPI[[#This Row],[Serial'#]],\"\")","v":""},{"$f":"IF(Table_SummaryPI[[#This Row],[Quantity]]<>\"\",Table_SummaryPI[[#This Row],[Quantity]],\"\")","v":""},{"$f":"IF(Table_SummaryPI[[#This Row],[BaselinekWh]]<>\"\",Table_SummaryPI[[#This Row],[BaselinekWh]],\"\")","v":""},{"$f":"IF(Table_SummaryPI[[#This Row],[BaselinekW]]<>\"\",Table_SummaryPI[[#This Row],[BaselinekW]],\"\")","v":""},{"$f":"IF(Table_SummaryPI[[#This Row],[ProposedkWh]]<>\"\",Table_SummaryPI[[#This Row],[ProposedkWh]],\"\")","v":""},{"$f":"IF(Table_SummaryPI[[#This Row],[ProposedkW]]<>\"\",Table_SummaryPI[[#This Row],[ProposedkW]],\"\")","v":""},{"$f":"IF(Table_SummaryPI[[#This Row],[Notes]]<>\"\",Table_SummaryPI[[#This Row],[Notes]],\"\")","v":""},{"$f":"IF(Table_SummaryPI[[#This Row],[Incentive_Customer]]<>\"\",Table_SummaryPI[[#This Row],[Incentive_Customer]],0)","v":0},{"$f":"IF(Table_SummaryPI[[#This Row],[MeasureCost]]<>\"\",Table_SummaryPI[[#This Row],[MeasureCost]],0)","v":0},{"$f":"IF(Table_SummaryPI[[#This Row],[kWhSavings]]<>\"\",Table_SummaryPI[[#This Row],[kWhSavings]],0)","v":0},{"$f":"IF(Table_SummaryPI[[#This Row],[DemandSavingskW]]<>\"\",Table_SummaryPI[[#This Row],[DemandSavingskW]],0)","v":0}]
[{"$f":"Table_SummaryPI[[#This Row],[Line No.]]","v":""},{"$f":"IF(Table_PrintPI[[#This Row],[Line No.]]=\"\",\"\",CONCATENATE(Table_PrintPI[[#This Row],[Line No.]],\" - \",Table_SummaryPI[[#This Row],[MeasureName]]))","v":""},{"$f":"IF(Table_SummaryPI[[#This Row],[Manufacturer]]<>\"\",CONCATENATE(Table_SummaryPI[[#This Row],[Manufacturer]],\"/\",Table_SummaryPI[[#This Row],[Model'#]]),\"\")","v":""},{"$f":"IF(Table_SummaryPI[[#This Row],[Serial'#]]<>\"\",Table_SummaryPI[[#This Row],[Serial'#]],\"\")","v":""},{"$f":"IF(Table_SummaryPI[[#This Row],[Quantity]]<>\"\",Table_SummaryPI[[#This Row],[Quantity]],\"\")","v":""},{"$f":"IF(Table_SummaryPI[[#This Row],[BaselinekWh]]<>\"\",Table_SummaryPI[[#This Row],[BaselinekWh]],\"\")","v":""},{"$f":"IF(Table_SummaryPI[[#This Row],[BaselinekW]]<>\"\",Table_SummaryPI[[#This Row],[BaselinekW]],\"\")","v":""},{"$f":"IF(Table_SummaryPI[[#This Row],[ProposedkWh]]<>\"\",Table_SummaryPI[[#This Row],[ProposedkWh]],\"\")","v":""},{"$f":"IF(Table_SummaryPI[[#This Row],[ProposedkW]]<>\"\",Table_SummaryPI[[#This Row],[ProposedkW]],\"\")","v":""},{"$f":"IF(Table_SummaryPI[[#This Row],[Notes]]<>\"\",Table_SummaryPI[[#This Row],[Notes]],\"\")","v":""},{"$f":"IF(Table_SummaryPI[[#This Row],[Incentive_Customer]]<>\"\",Table_SummaryPI[[#This Row],[Incentive_Customer]],0)","v":0},{"$f":"IF(Table_SummaryPI[[#This Row],[MeasureCost]]<>\"\",Table_SummaryPI[[#This Row],[MeasureCost]],0)","v":0},{"$f":"IF(Table_SummaryPI[[#This Row],[kWhSavings]]<>\"\",Table_SummaryPI[[#This Row],[kWhSavings]],0)","v":0},{"$f":"IF(Table_SummaryPI[[#This Row],[DemandSavingskW]]<>\"\",Table_SummaryPI[[#This Row],[DemandSavingskW]],0)","v":0}]
[{"$f":"Table_SummaryPI[[#This Row],[Line No.]]","v":""},{"$f":"IF(Table_PrintPI[[#This Row],[Line No.]]=\"\",\"\",CONCATENATE(Table_PrintPI[[#This Row],[Line No.]],\" - \",Table_SummaryPI[[#This Row],[MeasureName]]))","v":""},{"$f":"IF(Table_SummaryPI[[#This Row],[Manufacturer]]<>\"\",CONCATENATE(Table_SummaryPI[[#This Row],[Manufacturer]],\"/\",Table_SummaryPI[[#This Row],[Model'#]]),\"\")","v":""},{"$f":"IF(Table_SummaryPI[[#This Row],[Serial'#]]<>\"\",Table_SummaryPI[[#This Row],[Serial'#]],\"\")","v":""},{"$f":"IF(Table_SummaryPI[[#This Row],[Quantity]]<>\"\",Table_SummaryPI[[#This Row],[Quantity]],\"\")","v":""},{"$f":"IF(Table_SummaryPI[[#This Row],[BaselinekWh]]<>\"\",Table_SummaryPI[[#This Row],[BaselinekWh]],\"\")","v":""},{"$f":"IF(Table_SummaryPI[[#This Row],[BaselinekW]]<>\"\",Table_SummaryPI[[#This Row],[BaselinekW]],\"\")","v":""},{"$f":"IF(Table_SummaryPI[[#This Row],[ProposedkWh]]<>\"\",Table_SummaryPI[[#This Row],[ProposedkWh]],\"\")","v":""},{"$f":"IF(Table_SummaryPI[[#This Row],[ProposedkW]]<>\"\",Table_SummaryPI[[#This Row],[ProposedkW]],\"\")","v":""},{"$f":"IF(Table_SummaryPI[[#This Row],[Notes]]<>\"\",Table_SummaryPI[[#This Row],[Notes]],\"\")","v":""},{"$f":"IF(Table_SummaryPI[[#This Row],[Incentive_Customer]]<>\"\",Table_SummaryPI[[#This Row],[Incentive_Customer]],0)","v":0},{"$f":"IF(Table_SummaryPI[[#This Row],[MeasureCost]]<>\"\",Table_SummaryPI[[#This Row],[MeasureCost]],0)","v":0},{"$f":"IF(Table_SummaryPI[[#This Row],[kWhSavings]]<>\"\",Table_SummaryPI[[#This Row],[kWhSavings]],0)","v":0},{"$f":"IF(Table_SummaryPI[[#This Row],[DemandSavingskW]]<>\"\",Table_SummaryPI[[#This Row],[DemandSavingskW]],0)","v":0}]
[{"$f":"Table_SummaryPI[[#This Row],[Line No.]]","v":""},{"$f":"IF(Table_PrintPI[[#This Row],[Line No.]]=\"\",\"\",CONCATENATE(Table_PrintPI[[#This Row],[Line No.]],\" - \",Table_SummaryPI[[#This Row],[MeasureName]]))","v":""},{"$f":"IF(Table_SummaryPI[[#This Row],[Manufacturer]]<>\"\",CONCATENATE(Table_SummaryPI[[#This Row],[Manufacturer]],\"/\",Table_SummaryPI[[#This Row],[Model'#]]),\"\")","v":""},{"$f":"IF(Table_SummaryPI[[#This Row],[Serial'#]]<>\"\",Table_SummaryPI[[#This Row],[Serial'#]],\"\")","v":""},{"$f":"IF(Table_SummaryPI[[#This Row],[Quantity]]<>\"\",Table_SummaryPI[[#This Row],[Quantity]],\"\")","v":""},{"$f":"IF(Table_SummaryPI[[#This Row],[BaselinekWh]]<>\"\",Table_SummaryPI[[#This Row],[BaselinekWh]],\"\")","v":""},{"$f":"IF(Table_SummaryPI[[#This Row],[BaselinekW]]<>\"\",Table_SummaryPI[[#This Row],[BaselinekW]],\"\")","v":""},{"$f":"IF(Table_SummaryPI[[#This Row],[ProposedkWh]]<>\"\",Table_SummaryPI[[#This Row],[ProposedkWh]],\"\")","v":""},{"$f":"IF(Table_SummaryPI[[#This Row],[ProposedkW]]<>\"\",Table_SummaryPI[[#This Row],[ProposedkW]],\"\")","v":""},{"$f":"IF(Table_SummaryPI[[#This Row],[Notes]]<>\"\",Table_SummaryPI[[#This Row],[Notes]],\"\")","v":""},{"$f":"IF(Table_SummaryPI[[#This Row],[Incentive_Customer]]<>\"\",Table_SummaryPI[[#This Row],[Incentive_Customer]],0)","v":0},{"$f":"IF(Table_SummaryPI[[#This Row],[MeasureCost]]<>\"\",Table_SummaryPI[[#This Row],[MeasureCost]],0)","v":0},{"$f":"IF(Table_SummaryPI[[#This Row],[kWhSavings]]<>\"\",Table_SummaryPI[[#This Row],[kWhSavings]],0)","v":0},{"$f":"IF(Table_SummaryPI[[#This Row],[DemandSavingskW]]<>\"\",Table_SummaryPI[[#This Row],[DemandSavingskW]],0)","v":0}]
[{"$f":"Table_SummaryPI[[#This Row],[Line No.]]","v":""},{"$f":"IF(Table_PrintPI[[#This Row],[Line No.]]=\"\",\"\",CONCATENATE(Table_PrintPI[[#This Row],[Line No.]],\" - \",Table_SummaryPI[[#This Row],[MeasureName]]))","v":""},{"$f":"IF(Table_SummaryPI[[#This Row],[Manufacturer]]<>\"\",CONCATENATE(Table_SummaryPI[[#This Row],[Manufacturer]],\"/\",Table_SummaryPI[[#This Row],[Model'#]]),\"\")","v":""},{"$f":"IF(Table_SummaryPI[[#This Row],[Serial'#]]<>\"\",Table_SummaryPI[[#This Row],[Serial'#]],\"\")","v":""},{"$f":"IF(Table_SummaryPI[[#This Row],[Quantity]]<>\"\",Table_SummaryPI[[#This Row],[Quantity]],\"\")","v":""},{"$f":"IF(Table_SummaryPI[[#This Row],[BaselinekWh]]<>\"\",Table_SummaryPI[[#This Row],[BaselinekWh]],\"\")","v":""},{"$f":"IF(Table_SummaryPI[[#This Row],[BaselinekW]]<>\"\",Table_SummaryPI[[#This Row],[BaselinekW]],\"\")","v":""},{"$f":"IF(Table_SummaryPI[[#This Row],[ProposedkWh]]<>\"\",Table_SummaryPI[[#This Row],[ProposedkWh]],\"\")","v":""},{"$f":"IF(Table_SummaryPI[[#This Row],[ProposedkW]]<>\"\",Table_SummaryPI[[#This Row],[ProposedkW]],\"\")","v":""},{"$f":"IF(Table_SummaryPI[[#This Row],[Notes]]<>\"\",Table_SummaryPI[[#This Row],[Notes]],\"\")","v":""},{"$f":"IF(Table_SummaryPI[[#This Row],[Incentive_Customer]]<>\"\",Table_SummaryPI[[#This Row],[Incentive_Customer]],0)","v":0},{"$f":"IF(Table_SummaryPI[[#This Row],[MeasureCost]]<>\"\",Table_SummaryPI[[#This Row],[MeasureCost]],0)","v":0},{"$f":"IF(Table_SummaryPI[[#This Row],[kWhSavings]]<>\"\",Table_SummaryPI[[#This Row],[kWhSavings]],0)","v":0},{"$f":"IF(Table_SummaryPI[[#This Row],[DemandSavingskW]]<>\"\",Table_SummaryPI[[#This Row],[DemandSavingskW]],0)","v":0}]
[{"$f":"Table_SummaryPI[[#This Row],[Line No.]]","v":""},{"$f":"IF(Table_PrintPI[[#This Row],[Line No.]]=\"\",\"\",CONCATENATE(Table_PrintPI[[#This Row],[Line No.]],\" - \",Table_SummaryPI[[#This Row],[MeasureName]]))","v":""},{"$f":"IF(Table_SummaryPI[[#This Row],[Manufacturer]]<>\"\",CONCATENATE(Table_SummaryPI[[#This Row],[Manufacturer]],\"/\",Table_SummaryPI[[#This Row],[Model'#]]),\"\")","v":""},{"$f":"IF(Table_SummaryPI[[#This Row],[Serial'#]]<>\"\",Table_SummaryPI[[#This Row],[Serial'#]],\"\")","v":""},{"$f":"IF(Table_SummaryPI[[#This Row],[Quantity]]<>\"\",Table_SummaryPI[[#This Row],[Quantity]],\"\")","v":""},{"$f":"IF(Table_SummaryPI[[#This Row],[BaselinekWh]]<>\"\",Table_SummaryPI[[#This Row],[BaselinekWh]],\"\")","v":""},{"$f":"IF(Table_SummaryPI[[#This Row],[BaselinekW]]<>\"\",Table_SummaryPI[[#This Row],[BaselinekW]],\"\")","v":""},{"$f":"IF(Table_SummaryPI[[#This Row],[ProposedkWh]]<>\"\",Table_SummaryPI[[#This Row],[ProposedkWh]],\"\")","v":""},{"$f":"IF(Table_SummaryPI[[#This Row],[ProposedkW]]<>\"\",Table_SummaryPI[[#This Row],[ProposedkW]],\"\")","v":""},{"$f":"IF(Table_SummaryPI[[#This Row],[Notes]]<>\"\",Table_SummaryPI[[#This Row],[Notes]],\"\")","v":""},{"$f":"IF(Table_SummaryPI[[#This Row],[Incentive_Customer]]<>\"\",Table_SummaryPI[[#This Row],[Incentive_Customer]],0)","v":0},{"$f":"IF(Table_SummaryPI[[#This Row],[MeasureCost]]<>\"\",Table_SummaryPI[[#This Row],[MeasureCost]],0)","v":0},{"$f":"IF(Table_SummaryPI[[#This Row],[kWhSavings]]<>\"\",Table_SummaryPI[[#This Row],[kWhSavings]],0)","v":0},{"$f":"IF(Table_SummaryPI[[#This Row],[DemandSavingskW]]<>\"\",Table_SummaryPI[[#This Row],[DemandSavingskW]],0)","v":0}]
[{"$f":"Table_SummaryPI[[#This Row],[Line No.]]","v":""},{"$f":"IF(Table_PrintPI[[#This Row],[Line No.]]=\"\",\"\",CONCATENATE(Table_PrintPI[[#This Row],[Line No.]],\" - \",Table_SummaryPI[[#This Row],[MeasureName]]))","v":""},{"$f":"IF(Table_SummaryPI[[#This Row],[Manufacturer]]<>\"\",CONCATENATE(Table_SummaryPI[[#This Row],[Manufacturer]],\"/\",Table_SummaryPI[[#This Row],[Model'#]]),\"\")","v":""},{"$f":"IF(Table_SummaryPI[[#This Row],[Serial'#]]<>\"\",Table_SummaryPI[[#This Row],[Serial'#]],\"\")","v":""},{"$f":"IF(Table_SummaryPI[[#This Row],[Quantity]]<>\"\",Table_SummaryPI[[#This Row],[Quantity]],\"\")","v":""},{"$f":"IF(Table_SummaryPI[[#This Row],[BaselinekWh]]<>\"\",Table_SummaryPI[[#This Row],[BaselinekWh]],\"\")","v":""},{"$f":"IF(Table_SummaryPI[[#This Row],[BaselinekW]]<>\"\",Table_SummaryPI[[#This Row],[BaselinekW]],\"\")","v":""},{"$f":"IF(Table_SummaryPI[[#This Row],[ProposedkWh]]<>\"\",Table_SummaryPI[[#This Row],[ProposedkWh]],\"\")","v":""},{"$f":"IF(Table_SummaryPI[[#This Row],[ProposedkW]]<>\"\",Table_SummaryPI[[#This Row],[ProposedkW]],\"\")","v":""},{"$f":"IF(Table_SummaryPI[[#This Row],[Notes]]<>\"\",Table_SummaryPI[[#This Row],[Notes]],\"\")","v":""},{"$f":"IF(Table_SummaryPI[[#This Row],[Incentive_Customer]]<>\"\",Table_SummaryPI[[#This Row],[Incentive_Customer]],0)","v":0},{"$f":"IF(Table_SummaryPI[[#This Row],[MeasureCost]]<>\"\",Table_SummaryPI[[#This Row],[MeasureCost]],0)","v":0},{"$f":"IF(Table_SummaryPI[[#This Row],[kWhSavings]]<>\"\",Table_SummaryPI[[#This Row],[kWhSavings]],0)","v":0},{"$f":"IF(Table_SummaryPI[[#This Row],[DemandSavingskW]]<>\"\",Table_SummaryPI[[#This Row],[DemandSavingskW]],0)","v":0}]
[{"$f":"Table_SummaryPI[[#This Row],[Line No.]]","v":""},{"$f":"IF(Table_PrintPI[[#This Row],[Line No.]]=\"\",\"\",CONCATENATE(Table_PrintPI[[#This Row],[Line No.]],\" - \",Table_SummaryPI[[#This Row],[MeasureName]]))","v":""},{"$f":"IF(Table_SummaryPI[[#This Row],[Manufacturer]]<>\"\",CONCATENATE(Table_SummaryPI[[#This Row],[Manufacturer]],\"/\",Table_SummaryPI[[#This Row],[Model'#]]),\"\")","v":""},{"$f":"IF(Table_SummaryPI[[#This Row],[Serial'#]]<>\"\",Table_SummaryPI[[#This Row],[Serial'#]],\"\")","v":""},{"$f":"IF(Table_SummaryPI[[#This Row],[Quantity]]<>\"\",Table_SummaryPI[[#This Row],[Quantity]],\"\")","v":""},{"$f":"IF(Table_SummaryPI[[#This Row],[BaselinekWh]]<>\"\",Table_SummaryPI[[#This Row],[BaselinekWh]],\"\")","v":""},{"$f":"IF(Table_SummaryPI[[#This Row],[BaselinekW]]<>\"\",Table_SummaryPI[[#This Row],[BaselinekW]],\"\")","v":""},{"$f":"IF(Table_SummaryPI[[#This Row],[ProposedkWh]]<>\"\",Table_SummaryPI[[#This Row],[ProposedkWh]],\"\")","v":""},{"$f":"IF(Table_SummaryPI[[#This Row],[ProposedkW]]<>\"\",Table_SummaryPI[[#This Row],[ProposedkW]],\"\")","v":""},{"$f":"IF(Table_SummaryPI[[#This Row],[Notes]]<>\"\",Table_SummaryPI[[#This Row],[Notes]],\"\")","v":""},{"$f":"IF(Table_SummaryPI[[#This Row],[Incentive_Customer]]<>\"\",Table_SummaryPI[[#This Row],[Incentive_Customer]],0)","v":0},{"$f":"IF(Table_SummaryPI[[#This Row],[MeasureCost]]<>\"\",Table_SummaryPI[[#This Row],[MeasureCost]],0)","v":0},{"$f":"IF(Table_SummaryPI[[#This Row],[kWhSavings]]<>\"\",Table_SummaryPI[[#This Row],[kWhSavings]],0)","v":0},{"$f":"IF(Table_SummaryPI[[#This Row],[DemandSavingskW]]<>\"\",Table_SummaryPI[[#This Row],[DemandSavingskW]],0)","v":0}]
[{"$f":"Table_SummaryPI[[#This Row],[Line No.]]","v":""},{"$f":"IF(Table_PrintPI[[#This Row],[Line No.]]=\"\",\"\",CONCATENATE(Table_PrintPI[[#This Row],[Line No.]],\" - \",Table_SummaryPI[[#This Row],[MeasureName]]))","v":""},{"$f":"IF(Table_SummaryPI[[#This Row],[Manufacturer]]<>\"\",CONCATENATE(Table_SummaryPI[[#This Row],[Manufacturer]],\"/\",Table_SummaryPI[[#This Row],[Model'#]]),\"\")","v":""},{"$f":"IF(Table_SummaryPI[[#This Row],[Serial'#]]<>\"\",Table_SummaryPI[[#This Row],[Serial'#]],\"\")","v":""},{"$f":"IF(Table_SummaryPI[[#This Row],[Quantity]]<>\"\",Table_SummaryPI[[#This Row],[Quantity]],\"\")","v":""},{"$f":"IF(Table_SummaryPI[[#This Row],[BaselinekWh]]<>\"\",Table_SummaryPI[[#This Row],[BaselinekWh]],\"\")","v":""},{"$f":"IF(Table_SummaryPI[[#This Row],[BaselinekW]]<>\"\",Table_SummaryPI[[#This Row],[BaselinekW]],\"\")","v":""},{"$f":"IF(Table_SummaryPI[[#This Row],[ProposedkWh]]<>\"\",Table_SummaryPI[[#This Row],[ProposedkWh]],\"\")","v":""},{"$f":"IF(Table_SummaryPI[[#This Row],[ProposedkW]]<>\"\",Table_SummaryPI[[#This Row],[ProposedkW]],\"\")","v":""},{"$f":"IF(Table_SummaryPI[[#This Row],[Notes]]<>\"\",Table_SummaryPI[[#This Row],[Notes]],\"\")","v":""},{"$f":"IF(Table_SummaryPI[[#This Row],[Incentive_Customer]]<>\"\",Table_SummaryPI[[#This Row],[Incentive_Customer]],0)","v":0},{"$f":"IF(Table_SummaryPI[[#This Row],[MeasureCost]]<>\"\",Table_SummaryPI[[#This Row],[MeasureCost]],0)","v":0},{"$f":"IF(Table_SummaryPI[[#This Row],[kWhSavings]]<>\"\",Table_SummaryPI[[#This Row],[kWhSavings]],0)","v":0},{"$f":"IF(Table_SummaryPI[[#This Row],[DemandSavingskW]]<>\"\",Table_SummaryPI[[#This Row],[DemandSavingskW]],0)","v":0}]
[{"$f":"Table_SummaryPI[[#This Row],[Line No.]]","v":""},{"$f":"IF(Table_PrintPI[[#This Row],[Line No.]]=\"\",\"\",CONCATENATE(Table_PrintPI[[#This Row],[Line No.]],\" - \",Table_SummaryPI[[#This Row],[MeasureName]]))","v":""},{"$f":"IF(Table_SummaryPI[[#This Row],[Manufacturer]]<>\"\",CONCATENATE(Table_SummaryPI[[#This Row],[Manufacturer]],\"/\",Table_SummaryPI[[#This Row],[Model'#]]),\"\")","v":""},{"$f":"IF(Table_SummaryPI[[#This Row],[Serial'#]]<>\"\",Table_SummaryPI[[#This Row],[Serial'#]],\"\")","v":""},{"$f":"IF(Table_SummaryPI[[#This Row],[Quantity]]<>\"\",Table_SummaryPI[[#This Row],[Quantity]],\"\")","v":""},{"$f":"IF(Table_SummaryPI[[#This Row],[BaselinekWh]]<>\"\",Table_SummaryPI[[#This Row],[BaselinekWh]],\"\")","v":""},{"$f":"IF(Table_SummaryPI[[#This Row],[BaselinekW]]<>\"\",Table_SummaryPI[[#This Row],[BaselinekW]],\"\")","v":""},{"$f":"IF(Table_SummaryPI[[#This Row],[ProposedkWh]]<>\"\",Table_SummaryPI[[#This Row],[ProposedkWh]],\"\")","v":""},{"$f":"IF(Table_SummaryPI[[#This Row],[ProposedkW]]<>\"\",Table_SummaryPI[[#This Row],[ProposedkW]],\"\")","v":""},{"$f":"IF(Table_SummaryPI[[#This Row],[Notes]]<>\"\",Table_SummaryPI[[#This Row],[Notes]],\"\")","v":""},{"$f":"IF(Table_SummaryPI[[#This Row],[Incentive_Customer]]<>\"\",Table_SummaryPI[[#This Row],[Incentive_Customer]],0)","v":0},{"$f":"IF(Table_SummaryPI[[#This Row],[MeasureCost]]<>\"\",Table_SummaryPI[[#This Row],[MeasureCost]],0)","v":0},{"$f":"IF(Table_SummaryPI[[#This Row],[kWhSavings]]<>\"\",Table_SummaryPI[[#This Row],[kWhSavings]],0)","v":0},{"$f":"IF(Table_SummaryPI[[#This Row],[DemandSavingskW]]<>\"\",Table_SummaryPI[[#This Row],[DemandSavingskW]],0)","v":0}]
[{"$f":"Table_SummaryPI[[#This Row],[Line No.]]","v":""},{"$f":"IF(Table_PrintPI[[#This Row],[Line No.]]=\"\",\"\",CONCATENATE(Table_PrintPI[[#This Row],[Line No.]],\" - \",Table_SummaryPI[[#This Row],[MeasureName]]))","v":""},{"$f":"IF(Table_SummaryPI[[#This Row],[Manufacturer]]<>\"\",CONCATENATE(Table_SummaryPI[[#This Row],[Manufacturer]],\"/\",Table_SummaryPI[[#This Row],[Model'#]]),\"\")","v":""},{"$f":"IF(Table_SummaryPI[[#This Row],[Serial'#]]<>\"\",Table_SummaryPI[[#This Row],[Serial'#]],\"\")","v":""},{"$f":"IF(Table_SummaryPI[[#This Row],[Quantity]]<>\"\",Table_SummaryPI[[#This Row],[Quantity]],\"\")","v":""},{"$f":"IF(Table_SummaryPI[[#This Row],[BaselinekWh]]<>\"\",Table_SummaryPI[[#This Row],[BaselinekWh]],\"\")","v":""},{"$f":"IF(Table_SummaryPI[[#This Row],[BaselinekW]]<>\"\",Table_SummaryPI[[#This Row],[BaselinekW]],\"\")","v":""},{"$f":"IF(Table_SummaryPI[[#This Row],[ProposedkWh]]<>\"\",Table_SummaryPI[[#This Row],[ProposedkWh]],\"\")","v":""},{"$f":"IF(Table_SummaryPI[[#This Row],[ProposedkW]]<>\"\",Table_SummaryPI[[#This Row],[ProposedkW]],\"\")","v":""},{"$f":"IF(Table_SummaryPI[[#This Row],[Notes]]<>\"\",Table_SummaryPI[[#This Row],[Notes]],\"\")","v":""},{"$f":"IF(Table_SummaryPI[[#This Row],[Incentive_Customer]]<>\"\",Table_SummaryPI[[#This Row],[Incentive_Customer]],0)","v":0},{"$f":"IF(Table_SummaryPI[[#This Row],[MeasureCost]]<>\"\",Table_SummaryPI[[#This Row],[MeasureCost]],0)","v":0},{"$f":"IF(Table_SummaryPI[[#This Row],[kWhSavings]]<>\"\",Table_SummaryPI[[#This Row],[kWhSavings]],0)","v":0},{"$f":"IF(Table_SummaryPI[[#This Row],[DemandSavingskW]]<>\"\",Table_SummaryPI[[#This Row],[DemandSavingskW]],0)","v":0}]
[{"$f":"Table_SummaryPI[[#This Row],[Line No.]]","v":""},{"$f":"IF(Table_PrintPI[[#This Row],[Line No.]]=\"\",\"\",CONCATENATE(Table_PrintPI[[#This Row],[Line No.]],\" - \",Table_SummaryPI[[#This Row],[MeasureName]]))","v":""},{"$f":"IF(Table_SummaryPI[[#This Row],[Manufacturer]]<>\"\",CONCATENATE(Table_SummaryPI[[#This Row],[Manufacturer]],\"/\",Table_SummaryPI[[#This Row],[Model'#]]),\"\")","v":""},{"$f":"IF(Table_SummaryPI[[#This Row],[Serial'#]]<>\"\",Table_SummaryPI[[#This Row],[Serial'#]],\"\")","v":""},{"$f":"IF(Table_SummaryPI[[#This Row],[Quantity]]<>\"\",Table_SummaryPI[[#This Row],[Quantity]],\"\")","v":""},{"$f":"IF(Table_SummaryPI[[#This Row],[BaselinekWh]]<>\"\",Table_SummaryPI[[#This Row],[BaselinekWh]],\"\")","v":""},{"$f":"IF(Table_SummaryPI[[#This Row],[BaselinekW]]<>\"\",Table_SummaryPI[[#This Row],[BaselinekW]],\"\")","v":""},{"$f":"IF(Table_SummaryPI[[#This Row],[ProposedkWh]]<>\"\",Table_SummaryPI[[#This Row],[ProposedkWh]],\"\")","v":""},{"$f":"IF(Table_SummaryPI[[#This Row],[ProposedkW]]<>\"\",Table_SummaryPI[[#This Row],[ProposedkW]],\"\")","v":""},{"$f":"IF(Table_SummaryPI[[#This Row],[Notes]]<>\"\",Table_SummaryPI[[#This Row],[Notes]],\"\")","v":""},{"$f":"IF(Table_SummaryPI[[#This Row],[Incentive_Customer]]<>\"\",Table_SummaryPI[[#This Row],[Incentive_Customer]],0)","v":0},{"$f":"IF(Table_SummaryPI[[#This Row],[MeasureCost]]<>\"\",Table_SummaryPI[[#This Row],[MeasureCost]],0)","v":0},{"$f":"IF(Table_SummaryPI[[#This Row],[kWhSavings]]<>\"\",Table_SummaryPI[[#This Row],[kWhSavings]],0)","v":0},{"$f":"IF(Table_SummaryPI[[#This Row],[DemandSavingskW]]<>\"\",Table_SummaryPI[[#This Row],[DemandSavingskW]],0)","v":0}]
[{"$f":"Table_SummaryPI[[#This Row],[Line No.]]","v":""},{"$f":"IF(Table_PrintPI[[#This Row],[Line No.]]=\"\",\"\",CONCATENATE(Table_PrintPI[[#This Row],[Line No.]],\" - \",Table_SummaryPI[[#This Row],[MeasureName]]))","v":""},{"$f":"IF(Table_SummaryPI[[#This Row],[Manufacturer]]<>\"\",CONCATENATE(Table_SummaryPI[[#This Row],[Manufacturer]],\"/\",Table_SummaryPI[[#This Row],[Model'#]]),\"\")","v":""},{"$f":"IF(Table_SummaryPI[[#This Row],[Serial'#]]<>\"\",Table_SummaryPI[[#This Row],[Serial'#]],\"\")","v":""},{"$f":"IF(Table_SummaryPI[[#This Row],[Quantity]]<>\"\",Table_SummaryPI[[#This Row],[Quantity]],\"\")","v":""},{"$f":"IF(Table_SummaryPI[[#This Row],[BaselinekWh]]<>\"\",Table_SummaryPI[[#This Row],[BaselinekWh]],\"\")","v":""},{"$f":"IF(Table_SummaryPI[[#This Row],[BaselinekW]]<>\"\",Table_SummaryPI[[#This Row],[BaselinekW]],\"\")","v":""},{"$f":"IF(Table_SummaryPI[[#This Row],[ProposedkWh]]<>\"\",Table_SummaryPI[[#This Row],[ProposedkWh]],\"\")","v":""},{"$f":"IF(Table_SummaryPI[[#This Row],[ProposedkW]]<>\"\",Table_SummaryPI[[#This Row],[ProposedkW]],\"\")","v":""},{"$f":"IF(Table_SummaryPI[[#This Row],[Notes]]<>\"\",Table_SummaryPI[[#This Row],[Notes]],\"\")","v":""},{"$f":"IF(Table_SummaryPI[[#This Row],[Incentive_Customer]]<>\"\",Table_SummaryPI[[#This Row],[Incentive_Customer]],0)","v":0},{"$f":"IF(Table_SummaryPI[[#This Row],[MeasureCost]]<>\"\",Table_SummaryPI[[#This Row],[MeasureCost]],0)","v":0},{"$f":"IF(Table_SummaryPI[[#This Row],[kWhSavings]]<>\"\",Table_SummaryPI[[#This Row],[kWhSavings]],0)","v":0},{"$f":"IF(Table_SummaryPI[[#This Row],[DemandSavingskW]]<>\"\",Table_SummaryPI[[#This Row],[DemandSavingskW]],0)","v":0}]
[{"$f":"Table_SummaryPI[[#This Row],[Line No.]]","v":""},{"$f":"IF(Table_PrintPI[[#This Row],[Line No.]]=\"\",\"\",CONCATENATE(Table_PrintPI[[#This Row],[Line No.]],\" - \",Table_SummaryPI[[#This Row],[MeasureName]]))","v":""},{"$f":"IF(Table_SummaryPI[[#This Row],[Manufacturer]]<>\"\",CONCATENATE(Table_SummaryPI[[#This Row],[Manufacturer]],\"/\",Table_SummaryPI[[#This Row],[Model'#]]),\"\")","v":""},{"$f":"IF(Table_SummaryPI[[#This Row],[Serial'#]]<>\"\",Table_SummaryPI[[#This Row],[Serial'#]],\"\")","v":""},{"$f":"IF(Table_SummaryPI[[#This Row],[Quantity]]<>\"\",Table_SummaryPI[[#This Row],[Quantity]],\"\")","v":""},{"$f":"IF(Table_SummaryPI[[#This Row],[BaselinekWh]]<>\"\",Table_SummaryPI[[#This Row],[BaselinekWh]],\"\")","v":""},{"$f":"IF(Table_SummaryPI[[#This Row],[BaselinekW]]<>\"\",Table_SummaryPI[[#This Row],[BaselinekW]],\"\")","v":""},{"$f":"IF(Table_SummaryPI[[#This Row],[ProposedkWh]]<>\"\",Table_SummaryPI[[#This Row],[ProposedkWh]],\"\")","v":""},{"$f":"IF(Table_SummaryPI[[#This Row],[ProposedkW]]<>\"\",Table_SummaryPI[[#This Row],[ProposedkW]],\"\")","v":""},{"$f":"IF(Table_SummaryPI[[#This Row],[Notes]]<>\"\",Table_SummaryPI[[#This Row],[Notes]],\"\")","v":""},{"$f":"IF(Table_SummaryPI[[#This Row],[Incentive_Customer]]<>\"\",Table_SummaryPI[[#This Row],[Incentive_Customer]],0)","v":0},{"$f":"IF(Table_SummaryPI[[#This Row],[MeasureCost]]<>\"\",Table_SummaryPI[[#This Row],[MeasureCost]],0)","v":0},{"$f":"IF(Table_SummaryPI[[#This Row],[kWhSavings]]<>\"\",Table_SummaryPI[[#This Row],[kWhSavings]],0)","v":0},{"$f":"IF(Table_SummaryPI[[#This Row],[DemandSavingskW]]<>\"\",Table_SummaryPI[[#This Row],[DemandSavingskW]],0)","v":0}]
[{"$f":"Table_SummaryPI[[#This Row],[Line No.]]","v":""},{"$f":"IF(Table_PrintPI[[#This Row],[Line No.]]=\"\",\"\",CONCATENATE(Table_PrintPI[[#This Row],[Line No.]],\" - \",Table_SummaryPI[[#This Row],[MeasureName]]))","v":""},{"$f":"IF(Table_SummaryPI[[#This Row],[Manufacturer]]<>\"\",CONCATENATE(Table_SummaryPI[[#This Row],[Manufacturer]],\"/\",Table_SummaryPI[[#This Row],[Model'#]]),\"\")","v":""},{"$f":"IF(Table_SummaryPI[[#This Row],[Serial'#]]<>\"\",Table_SummaryPI[[#This Row],[Serial'#]],\"\")","v":""},{"$f":"IF(Table_SummaryPI[[#This Row],[Quantity]]<>\"\",Table_SummaryPI[[#This Row],[Quantity]],\"\")","v":""},{"$f":"IF(Table_SummaryPI[[#This Row],[BaselinekWh]]<>\"\",Table_SummaryPI[[#This Row],[BaselinekWh]],\"\")","v":""},{"$f":"IF(Table_SummaryPI[[#This Row],[BaselinekW]]<>\"\",Table_SummaryPI[[#This Row],[BaselinekW]],\"\")","v":""},{"$f":"IF(Table_SummaryPI[[#This Row],[ProposedkWh]]<>\"\",Table_SummaryPI[[#This Row],[ProposedkWh]],\"\")","v":""},{"$f":"IF(Table_SummaryPI[[#This Row],[ProposedkW]]<>\"\",Table_SummaryPI[[#This Row],[ProposedkW]],\"\")","v":""},{"$f":"IF(Table_SummaryPI[[#This Row],[Notes]]<>\"\",Table_SummaryPI[[#This Row],[Notes]],\"\")","v":""},{"$f":"IF(Table_SummaryPI[[#This Row],[Incentive_Customer]]<>\"\",Table_SummaryPI[[#This Row],[Incentive_Customer]],0)","v":0},{"$f":"IF(Table_SummaryPI[[#This Row],[MeasureCost]]<>\"\",Table_SummaryPI[[#This Row],[MeasureCost]],0)","v":0},{"$f":"IF(Table_SummaryPI[[#This Row],[kWhSavings]]<>\"\",Table_SummaryPI[[#This Row],[kWhSavings]],0)","v":0},{"$f":"IF(Table_SummaryPI[[#This Row],[DemandSavingskW]]<>\"\",Table_SummaryPI[[#This Row],[DemandSavingskW]],0)","v":0}]
[{"$f":"Table_SummaryPI[[#This Row],[Line No.]]","v":""},{"$f":"IF(Table_PrintPI[[#This Row],[Line No.]]=\"\",\"\",CONCATENATE(Table_PrintPI[[#This Row],[Line No.]],\" - \",Table_SummaryPI[[#This Row],[MeasureName]]))","v":""},{"$f":"IF(Table_SummaryPI[[#This Row],[Manufacturer]]<>\"\",CONCATENATE(Table_SummaryPI[[#This Row],[Manufacturer]],\"/\",Table_SummaryPI[[#This Row],[Model'#]]),\"\")","v":""},{"$f":"IF(Table_SummaryPI[[#This Row],[Serial'#]]<>\"\",Table_SummaryPI[[#This Row],[Serial'#]],\"\")","v":""},{"$f":"IF(Table_SummaryPI[[#This Row],[Quantity]]<>\"\",Table_SummaryPI[[#This Row],[Quantity]],\"\")","v":""},{"$f":"IF(Table_SummaryPI[[#This Row],[BaselinekWh]]<>\"\",Table_SummaryPI[[#This Row],[BaselinekWh]],\"\")","v":""},{"$f":"IF(Table_SummaryPI[[#This Row],[BaselinekW]]<>\"\",Table_SummaryPI[[#This Row],[BaselinekW]],\"\")","v":""},{"$f":"IF(Table_SummaryPI[[#This Row],[ProposedkWh]]<>\"\",Table_SummaryPI[[#This Row],[ProposedkWh]],\"\")","v":""},{"$f":"IF(Table_SummaryPI[[#This Row],[ProposedkW]]<>\"\",Table_SummaryPI[[#This Row],[ProposedkW]],\"\")","v":""},{"$f":"IF(Table_SummaryPI[[#This Row],[Notes]]<>\"\",Table_SummaryPI[[#This Row],[Notes]],\"\")","v":""},{"$f":"IF(Table_SummaryPI[[#This Row],[Incentive_Customer]]<>\"\",Table_SummaryPI[[#This Row],[Incentive_Customer]],0)","v":0},{"$f":"IF(Table_SummaryPI[[#This Row],[MeasureCost]]<>\"\",Table_SummaryPI[[#This Row],[MeasureCost]],0)","v":0},{"$f":"IF(Table_SummaryPI[[#This Row],[kWhSavings]]<>\"\",Table_SummaryPI[[#This Row],[kWhSavings]],0)","v":0},{"$f":"IF(Table_SummaryPI[[#This Row],[DemandSavingskW]]<>\"\",Table_SummaryPI[[#This Row],[DemandSavingskW]],0)","v":0}]
[{"$f":"Table_SummaryPI[[#This Row],[Line No.]]","v":""},{"$f":"IF(Table_PrintPI[[#This Row],[Line No.]]=\"\",\"\",CONCATENATE(Table_PrintPI[[#This Row],[Line No.]],\" - \",Table_SummaryPI[[#This Row],[MeasureName]]))","v":""},{"$f":"IF(Table_SummaryPI[[#This Row],[Manufacturer]]<>\"\",CONCATENATE(Table_SummaryPI[[#This Row],[Manufacturer]],\"/\",Table_SummaryPI[[#This Row],[Model'#]]),\"\")","v":""},{"$f":"IF(Table_SummaryPI[[#This Row],[Serial'#]]<>\"\",Table_SummaryPI[[#This Row],[Serial'#]],\"\")","v":""},{"$f":"IF(Table_SummaryPI[[#This Row],[Quantity]]<>\"\",Table_SummaryPI[[#This Row],[Quantity]],\"\")","v":""},{"$f":"IF(Table_SummaryPI[[#This Row],[BaselinekWh]]<>\"\",Table_SummaryPI[[#This Row],[BaselinekWh]],\"\")","v":""},{"$f":"IF(Table_SummaryPI[[#This Row],[BaselinekW]]<>\"\",Table_SummaryPI[[#This Row],[BaselinekW]],\"\")","v":""},{"$f":"IF(Table_SummaryPI[[#This Row],[ProposedkWh]]<>\"\",Table_SummaryPI[[#This Row],[ProposedkWh]],\"\")","v":""},{"$f":"IF(Table_SummaryPI[[#This Row],[ProposedkW]]<>\"\",Table_SummaryPI[[#This Row],[ProposedkW]],\"\")","v":""},{"$f":"IF(Table_SummaryPI[[#This Row],[Notes]]<>\"\",Table_SummaryPI[[#This Row],[Notes]],\"\")","v":""},{"$f":"IF(Table_SummaryPI[[#This Row],[Incentive_Customer]]<>\"\",Table_SummaryPI[[#This Row],[Incentive_Customer]],0)","v":0},{"$f":"IF(Table_SummaryPI[[#This Row],[MeasureCost]]<>\"\",Table_SummaryPI[[#This Row],[MeasureCost]],0)","v":0},{"$f":"IF(Table_SummaryPI[[#This Row],[kWhSavings]]<>\"\",Table_SummaryPI[[#This Row],[kWhSavings]],0)","v":0},{"$f":"IF(Table_SummaryPI[[#This Row],[DemandSavingskW]]<>\"\",Table_SummaryPI[[#This Row],[DemandSavingskW]],0)","v":0}]
[{"$f":"Table_SummaryPI[[#This Row],[Line No.]]","v":""},{"$f":"IF(Table_PrintPI[[#This Row],[Line No.]]=\"\",\"\",CONCATENATE(Table_PrintPI[[#This Row],[Line No.]],\" - \",Table_SummaryPI[[#This Row],[MeasureName]]))","v":""},{"$f":"IF(Table_SummaryPI[[#This Row],[Manufacturer]]<>\"\",CONCATENATE(Table_SummaryPI[[#This Row],[Manufacturer]],\"/\",Table_SummaryPI[[#This Row],[Model'#]]),\"\")","v":""},{"$f":"IF(Table_SummaryPI[[#This Row],[Serial'#]]<>\"\",Table_SummaryPI[[#This Row],[Serial'#]],\"\")","v":""},{"$f":"IF(Table_SummaryPI[[#This Row],[Quantity]]<>\"\",Table_SummaryPI[[#This Row],[Quantity]],\"\")","v":""},{"$f":"IF(Table_SummaryPI[[#This Row],[BaselinekWh]]<>\"\",Table_SummaryPI[[#This Row],[BaselinekWh]],\"\")","v":""},{"$f":"IF(Table_SummaryPI[[#This Row],[BaselinekW]]<>\"\",Table_SummaryPI[[#This Row],[BaselinekW]],\"\")","v":""},{"$f":"IF(Table_SummaryPI[[#This Row],[ProposedkWh]]<>\"\",Table_SummaryPI[[#This Row],[ProposedkWh]],\"\")","v":""},{"$f":"IF(Table_SummaryPI[[#This Row],[ProposedkW]]<>\"\",Table_SummaryPI[[#This Row],[ProposedkW]],\"\")","v":""},{"$f":"IF(Table_SummaryPI[[#This Row],[Notes]]<>\"\",Table_SummaryPI[[#This Row],[Notes]],\"\")","v":""},{"$f":"IF(Table_SummaryPI[[#This Row],[Incentive_Customer]]<>\"\",Table_SummaryPI[[#This Row],[Incentive_Customer]],0)","v":0},{"$f":"IF(Table_SummaryPI[[#This Row],[MeasureCost]]<>\"\",Table_SummaryPI[[#This Row],[MeasureCost]],0)","v":0},{"$f":"IF(Table_SummaryPI[[#This Row],[kWhSavings]]<>\"\",Table_SummaryPI[[#This Row],[kWhSavings]],0)","v":0},{"$f":"IF(Table_SummaryPI[[#This Row],[DemandSavingskW]]<>\"\",Table_SummaryPI[[#This Row],[DemandSavingskW]],0)","v":0}]
[{"$f":"Table_SummaryPI[[#This Row],[Line No.]]","v":""},{"$f":"IF(Table_PrintPI[[#This Row],[Line No.]]=\"\",\"\",CONCATENATE(Table_PrintPI[[#This Row],[Line No.]],\" - \",Table_SummaryPI[[#This Row],[MeasureName]]))","v":""},{"$f":"IF(Table_SummaryPI[[#This Row],[Manufacturer]]<>\"\",CONCATENATE(Table_SummaryPI[[#This Row],[Manufacturer]],\"/\",Table_SummaryPI[[#This Row],[Model'#]]),\"\")","v":""},{"$f":"IF(Table_SummaryPI[[#This Row],[Serial'#]]<>\"\",Table_SummaryPI[[#This Row],[Serial'#]],\"\")","v":""},{"$f":"IF(Table_SummaryPI[[#This Row],[Quantity]]<>\"\",Table_SummaryPI[[#This Row],[Quantity]],\"\")","v":""},{"$f":"IF(Table_SummaryPI[[#This Row],[BaselinekWh]]<>\"\",Table_SummaryPI[[#This Row],[BaselinekWh]],\"\")","v":""},{"$f":"IF(Table_SummaryPI[[#This Row],[BaselinekW]]<>\"\",Table_SummaryPI[[#This Row],[BaselinekW]],\"\")","v":""},{"$f":"IF(Table_SummaryPI[[#This Row],[ProposedkWh]]<>\"\",Table_SummaryPI[[#This Row],[ProposedkWh]],\"\")","v":""},{"$f":"IF(Table_SummaryPI[[#This Row],[ProposedkW]]<>\"\",Table_SummaryPI[[#This Row],[ProposedkW]],\"\")","v":""},{"$f":"IF(Table_SummaryPI[[#This Row],[Notes]]<>\"\",Table_SummaryPI[[#This Row],[Notes]],\"\")","v":""},{"$f":"IF(Table_SummaryPI[[#This Row],[Incentive_Customer]]<>\"\",Table_SummaryPI[[#This Row],[Incentive_Customer]],0)","v":0},{"$f":"IF(Table_SummaryPI[[#This Row],[MeasureCost]]<>\"\",Table_SummaryPI[[#This Row],[MeasureCost]],0)","v":0},{"$f":"IF(Table_SummaryPI[[#This Row],[kWhSavings]]<>\"\",Table_SummaryPI[[#This Row],[kWhSavings]],0)","v":0},{"$f":"IF(Table_SummaryPI[[#This Row],[DemandSavingskW]]<>\"\",Table_SummaryPI[[#This Row],[DemandSavingskW]],0)","v":0}]
[{"$f":"Table_SummaryPI[[#This Row],[Line No.]]","v":""},{"$f":"IF(Table_PrintPI[[#This Row],[Line No.]]=\"\",\"\",CONCATENATE(Table_PrintPI[[#This Row],[Line No.]],\" - \",Table_SummaryPI[[#This Row],[MeasureName]]))","v":""},{"$f":"IF(Table_SummaryPI[[#This Row],[Manufacturer]]<>\"\",CONCATENATE(Table_SummaryPI[[#This Row],[Manufacturer]],\"/\",Table_SummaryPI[[#This Row],[Model'#]]),\"\")","v":""},{"$f":"IF(Table_SummaryPI[[#This Row],[Serial'#]]<>\"\",Table_SummaryPI[[#This Row],[Serial'#]],\"\")","v":""},{"$f":"IF(Table_SummaryPI[[#This Row],[Quantity]]<>\"\",Table_SummaryPI[[#This Row],[Quantity]],\"\")","v":""},{"$f":"IF(Table_SummaryPI[[#This Row],[BaselinekWh]]<>\"\",Table_SummaryPI[[#This Row],[BaselinekWh]],\"\")","v":""},{"$f":"IF(Table_SummaryPI[[#This Row],[BaselinekW]]<>\"\",Table_SummaryPI[[#This Row],[BaselinekW]],\"\")","v":""},{"$f":"IF(Table_SummaryPI[[#This Row],[ProposedkWh]]<>\"\",Table_SummaryPI[[#This Row],[ProposedkWh]],\"\")","v":""},{"$f":"IF(Table_SummaryPI[[#This Row],[ProposedkW]]<>\"\",Table_SummaryPI[[#This Row],[ProposedkW]],\"\")","v":""},{"$f":"IF(Table_SummaryPI[[#This Row],[Notes]]<>\"\",Table_SummaryPI[[#This Row],[Notes]],\"\")","v":""},{"$f":"IF(Table_SummaryPI[[#This Row],[Incentive_Customer]]<>\"\",Table_SummaryPI[[#This Row],[Incentive_Customer]],0)","v":0},{"$f":"IF(Table_SummaryPI[[#This Row],[MeasureCost]]<>\"\",Table_SummaryPI[[#This Row],[MeasureCost]],0)","v":0},{"$f":"IF(Table_SummaryPI[[#This Row],[kWhSavings]]<>\"\",Table_SummaryPI[[#This Row],[kWhSavings]],0)","v":0},{"$f":"IF(Table_SummaryPI[[#This Row],[DemandSavingskW]]<>\"\",Table_SummaryPI[[#This Row],[DemandSavingskW]],0)","v":0}]
[{"$f":"Table_SummaryPI[[#This Row],[Line No.]]","v":""},{"$f":"IF(Table_PrintPI[[#This Row],[Line No.]]=\"\",\"\",CONCATENATE(Table_PrintPI[[#This Row],[Line No.]],\" - \",Table_SummaryPI[[#This Row],[MeasureName]]))","v":""},{"$f":"IF(Table_SummaryPI[[#This Row],[Manufacturer]]<>\"\",CONCATENATE(Table_SummaryPI[[#This Row],[Manufacturer]],\"/\",Table_SummaryPI[[#This Row],[Model'#]]),\"\")","v":""},{"$f":"IF(Table_SummaryPI[[#This Row],[Serial'#]]<>\"\",Table_SummaryPI[[#This Row],[Serial'#]],\"\")","v":""},{"$f":"IF(Table_SummaryPI[[#This Row],[Quantity]]<>\"\",Table_SummaryPI[[#This Row],[Quantity]],\"\")","v":""},{"$f":"IF(Table_SummaryPI[[#This Row],[BaselinekWh]]<>\"\",Table_SummaryPI[[#This Row],[BaselinekWh]],\"\")","v":""},{"$f":"IF(Table_SummaryPI[[#This Row],[BaselinekW]]<>\"\",Table_SummaryPI[[#This Row],[BaselinekW]],\"\")","v":""},{"$f":"IF(Table_SummaryPI[[#This Row],[ProposedkWh]]<>\"\",Table_SummaryPI[[#This Row],[ProposedkWh]],\"\")","v":""},{"$f":"IF(Table_SummaryPI[[#This Row],[ProposedkW]]<>\"\",Table_SummaryPI[[#This Row],[ProposedkW]],\"\")","v":""},{"$f":"IF(Table_SummaryPI[[#This Row],[Notes]]<>\"\",Table_SummaryPI[[#This Row],[Notes]],\"\")","v":""},{"$f":"IF(Table_SummaryPI[[#This Row],[Incentive_Customer]]<>\"\",Table_SummaryPI[[#This Row],[Incentive_Customer]],0)","v":0},{"$f":"IF(Table_SummaryPI[[#This Row],[MeasureCost]]<>\"\",Table_SummaryPI[[#This Row],[MeasureCost]],0)","v":0},{"$f":"IF(Table_SummaryPI[[#This Row],[kWhSavings]]<>\"\",Table_SummaryPI[[#This Row],[kWhSavings]],0)","v":0},{"$f":"IF(Table_SummaryPI[[#This Row],[DemandSavingskW]]<>\"\",Table_SummaryPI[[#This Row],[DemandSavingskW]],0)","v":0}]
[{"$f":"Table_SummaryPI[[#This Row],[Line No.]]","v":""},{"$f":"IF(Table_PrintPI[[#This Row],[Line No.]]=\"\",\"\",CONCATENATE(Table_PrintPI[[#This Row],[Line No.]],\" - \",Table_SummaryPI[[#This Row],[MeasureName]]))","v":""},{"$f":"IF(Table_SummaryPI[[#This Row],[Manufacturer]]<>\"\",CONCATENATE(Table_SummaryPI[[#This Row],[Manufacturer]],\"/\",Table_SummaryPI[[#This Row],[Model'#]]),\"\")","v":""},{"$f":"IF(Table_SummaryPI[[#This Row],[Serial'#]]<>\"\",Table_SummaryPI[[#This Row],[Serial'#]],\"\")","v":""},{"$f":"IF(Table_SummaryPI[[#This Row],[Quantity]]<>\"\",Table_SummaryPI[[#This Row],[Quantity]],\"\")","v":""},{"$f":"IF(Table_SummaryPI[[#This Row],[BaselinekWh]]<>\"\",Table_SummaryPI[[#This Row],[BaselinekWh]],\"\")","v":""},{"$f":"IF(Table_SummaryPI[[#This Row],[BaselinekW]]<>\"\",Table_SummaryPI[[#This Row],[BaselinekW]],\"\")","v":""},{"$f":"IF(Table_SummaryPI[[#This Row],[ProposedkWh]]<>\"\",Table_SummaryPI[[#This Row],[ProposedkWh]],\"\")","v":""},{"$f":"IF(Table_SummaryPI[[#This Row],[ProposedkW]]<>\"\",Table_SummaryPI[[#This Row],[ProposedkW]],\"\")","v":""},{"$f":"IF(Table_SummaryPI[[#This Row],[Notes]]<>\"\",Table_SummaryPI[[#This Row],[Notes]],\"\")","v":""},{"$f":"IF(Table_SummaryPI[[#This Row],[Incentive_Customer]]<>\"\",Table_SummaryPI[[#This Row],[Incentive_Customer]],0)","v":0},{"$f":"IF(Table_SummaryPI[[#This Row],[MeasureCost]]<>\"\",Table_SummaryPI[[#This Row],[MeasureCost]],0)","v":0},{"$f":"IF(Table_SummaryPI[[#This Row],[kWhSavings]]<>\"\",Table_SummaryPI[[#This Row],[kWhSavings]],0)","v":0},{"$f":"IF(Table_SummaryPI[[#This Row],[DemandSavingskW]]<>\"\",Table_SummaryPI[[#This Row],[DemandSavingskW]],0)","v":0}]
[{"$f":"Table_SummaryPI[[#This Row],[Line No.]]","v":""},{"$f":"IF(Table_PrintPI[[#This Row],[Line No.]]=\"\",\"\",CONCATENATE(Table_PrintPI[[#This Row],[Line No.]],\" - \",Table_SummaryPI[[#This Row],[MeasureName]]))","v":""},{"$f":"IF(Table_SummaryPI[[#This Row],[Manufacturer]]<>\"\",CONCATENATE(Table_SummaryPI[[#This Row],[Manufacturer]],\"/\",Table_SummaryPI[[#This Row],[Model'#]]),\"\")","v":""},{"$f":"IF(Table_SummaryPI[[#This Row],[Serial'#]]<>\"\",Table_SummaryPI[[#This Row],[Serial'#]],\"\")","v":""},{"$f":"IF(Table_SummaryPI[[#This Row],[Quantity]]<>\"\",Table_SummaryPI[[#This Row],[Quantity]],\"\")","v":""},{"$f":"IF(Table_SummaryPI[[#This Row],[BaselinekWh]]<>\"\",Table_SummaryPI[[#This Row],[BaselinekWh]],\"\")","v":""},{"$f":"IF(Table_SummaryPI[[#This Row],[BaselinekW]]<>\"\",Table_SummaryPI[[#This Row],[BaselinekW]],\"\")","v":""},{"$f":"IF(Table_SummaryPI[[#This Row],[ProposedkWh]]<>\"\",Table_SummaryPI[[#This Row],[ProposedkWh]],\"\")","v":""},{"$f":"IF(Table_SummaryPI[[#This Row],[ProposedkW]]<>\"\",Table_SummaryPI[[#This Row],[ProposedkW]],\"\")","v":""},{"$f":"IF(Table_SummaryPI[[#This Row],[Notes]]<>\"\",Table_SummaryPI[[#This Row],[Notes]],\"\")","v":""},{"$f":"IF(Table_SummaryPI[[#This Row],[Incentive_Customer]]<>\"\",Table_SummaryPI[[#This Row],[Incentive_Customer]],0)","v":0},{"$f":"IF(Table_SummaryPI[[#This Row],[MeasureCost]]<>\"\",Table_SummaryPI[[#This Row],[MeasureCost]],0)","v":0},{"$f":"IF(Table_SummaryPI[[#This Row],[kWhSavings]]<>\"\",Table_SummaryPI[[#This Row],[kWhSavings]],0)","v":0},{"$f":"IF(Table_SummaryPI[[#This Row],[DemandSavingskW]]<>\"\",Table_SummaryPI[[#This Row],[DemandSavingskW]],0)","v":0}]
[{"$f":"Table_SummaryPI[[#This Row],[Line No.]]","v":""},{"$f":"IF(Table_PrintPI[[#This Row],[Line No.]]=\"\",\"\",CONCATENATE(Table_PrintPI[[#This Row],[Line No.]],\" - \",Table_SummaryPI[[#This Row],[MeasureName]]))","v":""},{"$f":"IF(Table_SummaryPI[[#This Row],[Manufacturer]]<>\"\",CONCATENATE(Table_SummaryPI[[#This Row],[Manufacturer]],\"/\",Table_SummaryPI[[#This Row],[Model'#]]),\"\")","v":""},{"$f":"IF(Table_SummaryPI[[#This Row],[Serial'#]]<>\"\",Table_SummaryPI[[#This Row],[Serial'#]],\"\")","v":""},{"$f":"IF(Table_SummaryPI[[#This Row],[Quantity]]<>\"\",Table_SummaryPI[[#This Row],[Quantity]],\"\")","v":""},{"$f":"IF(Table_SummaryPI[[#This Row],[BaselinekWh]]<>\"\",Table_SummaryPI[[#This Row],[BaselinekWh]],\"\")","v":""},{"$f":"IF(Table_SummaryPI[[#This Row],[BaselinekW]]<>\"\",Table_SummaryPI[[#This Row],[BaselinekW]],\"\")","v":""},{"$f":"IF(Table_SummaryPI[[#This Row],[ProposedkWh]]<>\"\",Table_SummaryPI[[#This Row],[ProposedkWh]],\"\")","v":""},{"$f":"IF(Table_SummaryPI[[#This Row],[ProposedkW]]<>\"\",Table_SummaryPI[[#This Row],[ProposedkW]],\"\")","v":""},{"$f":"IF(Table_SummaryPI[[#This Row],[Notes]]<>\"\",Table_SummaryPI[[#This Row],[Notes]],\"\")","v":""},{"$f":"IF(Table_SummaryPI[[#This Row],[Incentive_Customer]]<>\"\",Table_SummaryPI[[#This Row],[Incentive_Customer]],0)","v":0},{"$f":"IF(Table_SummaryPI[[#This Row],[MeasureCost]]<>\"\",Table_SummaryPI[[#This Row],[MeasureCost]],0)","v":0},{"$f":"IF(Table_SummaryPI[[#This Row],[kWhSavings]]<>\"\",Table_SummaryPI[[#This Row],[kWhSavings]],0)","v":0},{"$f":"IF(Table_SummaryPI[[#This Row],[DemandSavingskW]]<>\"\",Table_SummaryPI[[#This Row],[DemandSavingskW]],0)","v":0}]
[{"$f":"Table_SummaryPI[[#This Row],[Line No.]]","v":""},{"$f":"IF(Table_PrintPI[[#This Row],[Line No.]]=\"\",\"\",CONCATENATE(Table_PrintPI[[#This Row],[Line No.]],\" - \",Table_SummaryPI[[#This Row],[MeasureName]]))","v":""},{"$f":"IF(Table_SummaryPI[[#This Row],[Manufacturer]]<>\"\",CONCATENATE(Table_SummaryPI[[#This Row],[Manufacturer]],\"/\",Table_SummaryPI[[#This Row],[Model'#]]),\"\")","v":""},{"$f":"IF(Table_SummaryPI[[#This Row],[Serial'#]]<>\"\",Table_SummaryPI[[#This Row],[Serial'#]],\"\")","v":""},{"$f":"IF(Table_SummaryPI[[#This Row],[Quantity]]<>\"\",Table_SummaryPI[[#This Row],[Quantity]],\"\")","v":""},{"$f":"IF(Table_SummaryPI[[#This Row],[BaselinekWh]]<>\"\",Table_SummaryPI[[#This Row],[BaselinekWh]],\"\")","v":""},{"$f":"IF(Table_SummaryPI[[#This Row],[BaselinekW]]<>\"\",Table_SummaryPI[[#This Row],[BaselinekW]],\"\")","v":""},{"$f":"IF(Table_SummaryPI[[#This Row],[ProposedkWh]]<>\"\",Table_SummaryPI[[#This Row],[ProposedkWh]],\"\")","v":""},{"$f":"IF(Table_SummaryPI[[#This Row],[ProposedkW]]<>\"\",Table_SummaryPI[[#This Row],[ProposedkW]],\"\")","v":""},{"$f":"IF(Table_SummaryPI[[#This Row],[Notes]]<>\"\",Table_SummaryPI[[#This Row],[Notes]],\"\")","v":""},{"$f":"IF(Table_SummaryPI[[#This Row],[Incentive_Customer]]<>\"\",Table_SummaryPI[[#This Row],[Incentive_Customer]],0)","v":0},{"$f":"IF(Table_SummaryPI[[#This Row],[MeasureCost]]<>\"\",Table_SummaryPI[[#This Row],[MeasureCost]],0)","v":0},{"$f":"IF(Table_SummaryPI[[#This Row],[kWhSavings]]<>\"\",Table_SummaryPI[[#This Row],[kWhSavings]],0)","v":0},{"$f":"IF(Table_SummaryPI[[#This Row],[DemandSavingskW]]<>\"\",Table_SummaryPI[[#This Row],[DemandSavingskW]],0)","v":0}]
[{"$f":"Table_SummaryPI[[#This Row],[Line No.]]","v":""},{"$f":"IF(Table_PrintPI[[#This Row],[Line No.]]=\"\",\"\",CONCATENATE(Table_PrintPI[[#This Row],[Line No.]],\" - \",Table_SummaryPI[[#This Row],[MeasureName]]))","v":""},{"$f":"IF(Table_SummaryPI[[#This Row],[Manufacturer]]<>\"\",CONCATENATE(Table_SummaryPI[[#This Row],[Manufacturer]],\"/\",Table_SummaryPI[[#This Row],[Model'#]]),\"\")","v":""},{"$f":"IF(Table_SummaryPI[[#This Row],[Serial'#]]<>\"\",Table_SummaryPI[[#This Row],[Serial'#]],\"\")","v":""},{"$f":"IF(Table_SummaryPI[[#This Row],[Quantity]]<>\"\",Table_SummaryPI[[#This Row],[Quantity]],\"\")","v":""},{"$f":"IF(Table_SummaryPI[[#This Row],[BaselinekWh]]<>\"\",Table_SummaryPI[[#This Row],[BaselinekWh]],\"\")","v":""},{"$f":"IF(Table_SummaryPI[[#This Row],[BaselinekW]]<>\"\",Table_SummaryPI[[#This Row],[BaselinekW]],\"\")","v":""},{"$f":"IF(Table_SummaryPI[[#This Row],[ProposedkWh]]<>\"\",Table_SummaryPI[[#This Row],[ProposedkWh]],\"\")","v":""},{"$f":"IF(Table_SummaryPI[[#This Row],[ProposedkW]]<>\"\",Table_SummaryPI[[#This Row],[ProposedkW]],\"\")","v":""},{"$f":"IF(Table_SummaryPI[[#This Row],[Notes]]<>\"\",Table_SummaryPI[[#This Row],[Notes]],\"\")","v":""},{"$f":"IF(Table_SummaryPI[[#This Row],[Incentive_Customer]]<>\"\",Table_SummaryPI[[#This Row],[Incentive_Customer]],0)","v":0},{"$f":"IF(Table_SummaryPI[[#This Row],[MeasureCost]]<>\"\",Table_SummaryPI[[#This Row],[MeasureCost]],0)","v":0},{"$f":"IF(Table_SummaryPI[[#This Row],[kWhSavings]]<>\"\",Table_SummaryPI[[#This Row],[kWhSavings]],0)","v":0},{"$f":"IF(Table_SummaryPI[[#This Row],[DemandSavingskW]]<>\"\",Table_SummaryPI[[#This Row],[DemandSavingskW]],0)","v":0}]
[{"$f":"Table_SummaryPI[[#This Row],[Line No.]]","v":""},{"$f":"IF(Table_PrintPI[[#This Row],[Line No.]]=\"\",\"\",CONCATENATE(Table_PrintPI[[#This Row],[Line No.]],\" - \",Table_SummaryPI[[#This Row],[MeasureName]]))","v":""},{"$f":"IF(Table_SummaryPI[[#This Row],[Manufacturer]]<>\"\",CONCATENATE(Table_SummaryPI[[#This Row],[Manufacturer]],\"/\",Table_SummaryPI[[#This Row],[Model'#]]),\"\")","v":""},{"$f":"IF(Table_SummaryPI[[#This Row],[Serial'#]]<>\"\",Table_SummaryPI[[#This Row],[Serial'#]],\"\")","v":""},{"$f":"IF(Table_SummaryPI[[#This Row],[Quantity]]<>\"\",Table_SummaryPI[[#This Row],[Quantity]],\"\")","v":""},{"$f":"IF(Table_SummaryPI[[#This Row],[BaselinekWh]]<>\"\",Table_SummaryPI[[#This Row],[BaselinekWh]],\"\")","v":""},{"$f":"IF(Table_SummaryPI[[#This Row],[BaselinekW]]<>\"\",Table_SummaryPI[[#This Row],[BaselinekW]],\"\")","v":""},{"$f":"IF(Table_SummaryPI[[#This Row],[ProposedkWh]]<>\"\",Table_SummaryPI[[#This Row],[ProposedkWh]],\"\")","v":""},{"$f":"IF(Table_SummaryPI[[#This Row],[ProposedkW]]<>\"\",Table_SummaryPI[[#This Row],[ProposedkW]],\"\")","v":""},{"$f":"IF(Table_SummaryPI[[#This Row],[Notes]]<>\"\",Table_SummaryPI[[#This Row],[Notes]],\"\")","v":""},{"$f":"IF(Table_SummaryPI[[#This Row],[Incentive_Customer]]<>\"\",Table_SummaryPI[[#This Row],[Incentive_Customer]],0)","v":0},{"$f":"IF(Table_SummaryPI[[#This Row],[MeasureCost]]<>\"\",Table_SummaryPI[[#This Row],[MeasureCost]],0)","v":0},{"$f":"IF(Table_SummaryPI[[#This Row],[kWhSavings]]<>\"\",Table_SummaryPI[[#This Row],[kWhSavings]],0)","v":0},{"$f":"IF(Table_SummaryPI[[#This Row],[DemandSavingskW]]<>\"\",Table_SummaryPI[[#This Row],[DemandSavingskW]],0)","v":0}]
[{"$f":"Table_SummaryPI[[#This Row],[Line No.]]","v":""},{"$f":"IF(Table_PrintPI[[#This Row],[Line No.]]=\"\",\"\",CONCATENATE(Table_PrintPI[[#This Row],[Line No.]],\" - \",Table_SummaryPI[[#This Row],[MeasureName]]))","v":""},{"$f":"IF(Table_SummaryPI[[#This Row],[Manufacturer]]<>\"\",CONCATENATE(Table_SummaryPI[[#This Row],[Manufacturer]],\"/\",Table_SummaryPI[[#This Row],[Model'#]]),\"\")","v":""},{"$f":"IF(Table_SummaryPI[[#This Row],[Serial'#]]<>\"\",Table_SummaryPI[[#This Row],[Serial'#]],\"\")","v":""},{"$f":"IF(Table_SummaryPI[[#This Row],[Quantity]]<>\"\",Table_SummaryPI[[#This Row],[Quantity]],\"\")","v":""},{"$f":"IF(Table_SummaryPI[[#This Row],[BaselinekWh]]<>\"\",Table_SummaryPI[[#This Row],[BaselinekWh]],\"\")","v":""},{"$f":"IF(Table_SummaryPI[[#This Row],[BaselinekW]]<>\"\",Table_SummaryPI[[#This Row],[BaselinekW]],\"\")","v":""},{"$f":"IF(Table_SummaryPI[[#This Row],[ProposedkWh]]<>\"\",Table_SummaryPI[[#This Row],[ProposedkWh]],\"\")","v":""},{"$f":"IF(Table_SummaryPI[[#This Row],[ProposedkW]]<>\"\",Table_SummaryPI[[#This Row],[ProposedkW]],\"\")","v":""},{"$f":"IF(Table_SummaryPI[[#This Row],[Notes]]<>\"\",Table_SummaryPI[[#This Row],[Notes]],\"\")","v":""},{"$f":"IF(Table_SummaryPI[[#This Row],[Incentive_Customer]]<>\"\",Table_SummaryPI[[#This Row],[Incentive_Customer]],0)","v":0},{"$f":"IF(Table_SummaryPI[[#This Row],[MeasureCost]]<>\"\",Table_SummaryPI[[#This Row],[MeasureCost]],0)","v":0},{"$f":"IF(Table_SummaryPI[[#This Row],[kWhSavings]]<>\"\",Table_SummaryPI[[#This Row],[kWhSavings]],0)","v":0},{"$f":"IF(Table_SummaryPI[[#This Row],[DemandSavingskW]]<>\"\",Table_SummaryPI[[#This Row],[DemandSavingskW]],0)","v":0}]
[{"$f":"Table_SummaryPI[[#This Row],[Line No.]]","v":""},{"$f":"IF(Table_PrintPI[[#This Row],[Line No.]]=\"\",\"\",CONCATENATE(Table_PrintPI[[#This Row],[Line No.]],\" - \",Table_SummaryPI[[#This Row],[MeasureName]]))","v":""},{"$f":"IF(Table_SummaryPI[[#This Row],[Manufacturer]]<>\"\",CONCATENATE(Table_SummaryPI[[#This Row],[Manufacturer]],\"/\",Table_SummaryPI[[#This Row],[Model'#]]),\"\")","v":""},{"$f":"IF(Table_SummaryPI[[#This Row],[Serial'#]]<>\"\",Table_SummaryPI[[#This Row],[Serial'#]],\"\")","v":""},{"$f":"IF(Table_SummaryPI[[#This Row],[Quantity]]<>\"\",Table_SummaryPI[[#This Row],[Quantity]],\"\")","v":""},{"$f":"IF(Table_SummaryPI[[#This Row],[BaselinekWh]]<>\"\",Table_SummaryPI[[#This Row],[BaselinekWh]],\"\")","v":""},{"$f":"IF(Table_SummaryPI[[#This Row],[BaselinekW]]<>\"\",Table_SummaryPI[[#This Row],[BaselinekW]],\"\")","v":""},{"$f":"IF(Table_SummaryPI[[#This Row],[ProposedkWh]]<>\"\",Table_SummaryPI[[#This Row],[ProposedkWh]],\"\")","v":""},{"$f":"IF(Table_SummaryPI[[#This Row],[ProposedkW]]<>\"\",Table_SummaryPI[[#This Row],[ProposedkW]],\"\")","v":""},{"$f":"IF(Table_SummaryPI[[#This Row],[Notes]]<>\"\",Table_SummaryPI[[#This Row],[Notes]],\"\")","v":""},{"$f":"IF(Table_SummaryPI[[#This Row],[Incentive_Customer]]<>\"\",Table_SummaryPI[[#This Row],[Incentive_Customer]],0)","v":0},{"$f":"IF(Table_SummaryPI[[#This Row],[MeasureCost]]<>\"\",Table_SummaryPI[[#This Row],[MeasureCost]],0)","v":0},{"$f":"IF(Table_SummaryPI[[#This Row],[kWhSavings]]<>\"\",Table_SummaryPI[[#This Row],[kWhSavings]],0)","v":0},{"$f":"IF(Table_SummaryPI[[#This Row],[DemandSavingskW]]<>\"\",Table_SummaryPI[[#This Row],[DemandSavingskW]],0)","v":0}]
[{"$f":"Table_SummaryPI[[#This Row],[Line No.]]","v":""},{"$f":"IF(Table_PrintPI[[#This Row],[Line No.]]=\"\",\"\",CONCATENATE(Table_PrintPI[[#This Row],[Line No.]],\" - \",Table_SummaryPI[[#This Row],[MeasureName]]))","v":""},{"$f":"IF(Table_SummaryPI[[#This Row],[Manufacturer]]<>\"\",CONCATENATE(Table_SummaryPI[[#This Row],[Manufacturer]],\"/\",Table_SummaryPI[[#This Row],[Model'#]]),\"\")","v":""},{"$f":"IF(Table_SummaryPI[[#This Row],[Serial'#]]<>\"\",Table_SummaryPI[[#This Row],[Serial'#]],\"\")","v":""},{"$f":"IF(Table_SummaryPI[[#This Row],[Quantity]]<>\"\",Table_SummaryPI[[#This Row],[Quantity]],\"\")","v":""},{"$f":"IF(Table_SummaryPI[[#This Row],[BaselinekWh]]<>\"\",Table_SummaryPI[[#This Row],[BaselinekWh]],\"\")","v":""},{"$f":"IF(Table_SummaryPI[[#This Row],[BaselinekW]]<>\"\",Table_SummaryPI[[#This Row],[BaselinekW]],\"\")","v":""},{"$f":"IF(Table_SummaryPI[[#This Row],[ProposedkWh]]<>\"\",Table_SummaryPI[[#This Row],[ProposedkWh]],\"\")","v":""},{"$f":"IF(Table_SummaryPI[[#This Row],[ProposedkW]]<>\"\",Table_SummaryPI[[#This Row],[ProposedkW]],\"\")","v":""},{"$f":"IF(Table_SummaryPI[[#This Row],[Notes]]<>\"\",Table_SummaryPI[[#This Row],[Notes]],\"\")","v":""},{"$f":"IF(Table_SummaryPI[[#This Row],[Incentive_Customer]]<>\"\",Table_SummaryPI[[#This Row],[Incentive_Customer]],0)","v":0},{"$f":"IF(Table_SummaryPI[[#This Row],[MeasureCost]]<>\"\",Table_SummaryPI[[#This Row],[MeasureCost]],0)","v":0},{"$f":"IF(Table_SummaryPI[[#This Row],[kWhSavings]]<>\"\",Table_SummaryPI[[#This Row],[kWhSavings]],0)","v":0},{"$f":"IF(Table_SummaryPI[[#This Row],[DemandSavingskW]]<>\"\",Table_SummaryPI[[#This Row],[DemandSavingskW]],0)","v":0}]
[{"$f":"Table_SummaryPI[[#This Row],[Line No.]]","v":""},{"$f":"IF(Table_PrintPI[[#This Row],[Line No.]]=\"\",\"\",CONCATENATE(Table_PrintPI[[#This Row],[Line No.]],\" - \",Table_SummaryPI[[#This Row],[MeasureName]]))","v":""},{"$f":"IF(Table_SummaryPI[[#This Row],[Manufacturer]]<>\"\",CONCATENATE(Table_SummaryPI[[#This Row],[Manufacturer]],\"/\",Table_SummaryPI[[#This Row],[Model'#]]),\"\")","v":""},{"$f":"IF(Table_SummaryPI[[#This Row],[Serial'#]]<>\"\",Table_SummaryPI[[#This Row],[Serial'#]],\"\")","v":""},{"$f":"IF(Table_SummaryPI[[#This Row],[Quantity]]<>\"\",Table_SummaryPI[[#This Row],[Quantity]],\"\")","v":""},{"$f":"IF(Table_SummaryPI[[#This Row],[BaselinekWh]]<>\"\",Table_SummaryPI[[#This Row],[BaselinekWh]],\"\")","v":""},{"$f":"IF(Table_SummaryPI[[#This Row],[BaselinekW]]<>\"\",Table_SummaryPI[[#This Row],[BaselinekW]],\"\")","v":""},{"$f":"IF(Table_SummaryPI[[#This Row],[ProposedkWh]]<>\"\",Table_SummaryPI[[#This Row],[ProposedkWh]],\"\")","v":""},{"$f":"IF(Table_SummaryPI[[#This Row],[ProposedkW]]<>\"\",Table_SummaryPI[[#This Row],[ProposedkW]],\"\")","v":""},{"$f":"IF(Table_SummaryPI[[#This Row],[Notes]]<>\"\",Table_SummaryPI[[#This Row],[Notes]],\"\")","v":""},{"$f":"IF(Table_SummaryPI[[#This Row],[Incentive_Customer]]<>\"\",Table_SummaryPI[[#This Row],[Incentive_Customer]],0)","v":0},{"$f":"IF(Table_SummaryPI[[#This Row],[MeasureCost]]<>\"\",Table_SummaryPI[[#This Row],[MeasureCost]],0)","v":0},{"$f":"IF(Table_SummaryPI[[#This Row],[kWhSavings]]<>\"\",Table_SummaryPI[[#This Row],[kWhSavings]],0)","v":0},{"$f":"IF(Table_SummaryPI[[#This Row],[DemandSavingskW]]<>\"\",Table_SummaryPI[[#This Row],[DemandSavingskW]],0)","v":0}]
[{"$f":"Table_SummaryPI[[#This Row],[Line No.]]","v":""},{"$f":"IF(Table_PrintPI[[#This Row],[Line No.]]=\"\",\"\",CONCATENATE(Table_PrintPI[[#This Row],[Line No.]],\" - \",Table_SummaryPI[[#This Row],[MeasureName]]))","v":""},{"$f":"IF(Table_SummaryPI[[#This Row],[Manufacturer]]<>\"\",CONCATENATE(Table_SummaryPI[[#This Row],[Manufacturer]],\"/\",Table_SummaryPI[[#This Row],[Model'#]]),\"\")","v":""},{"$f":"IF(Table_SummaryPI[[#This Row],[Serial'#]]<>\"\",Table_SummaryPI[[#This Row],[Serial'#]],\"\")","v":""},{"$f":"IF(Table_SummaryPI[[#This Row],[Quantity]]<>\"\",Table_SummaryPI[[#This Row],[Quantity]],\"\")","v":""},{"$f":"IF(Table_SummaryPI[[#This Row],[BaselinekWh]]<>\"\",Table_SummaryPI[[#This Row],[BaselinekWh]],\"\")","v":""},{"$f":"IF(Table_SummaryPI[[#This Row],[BaselinekW]]<>\"\",Table_SummaryPI[[#This Row],[BaselinekW]],\"\")","v":""},{"$f":"IF(Table_SummaryPI[[#This Row],[ProposedkWh]]<>\"\",Table_SummaryPI[[#This Row],[ProposedkWh]],\"\")","v":""},{"$f":"IF(Table_SummaryPI[[#This Row],[ProposedkW]]<>\"\",Table_SummaryPI[[#This Row],[ProposedkW]],\"\")","v":""},{"$f":"IF(Table_SummaryPI[[#This Row],[Notes]]<>\"\",Table_SummaryPI[[#This Row],[Notes]],\"\")","v":""},{"$f":"IF(Table_SummaryPI[[#This Row],[Incentive_Customer]]<>\"\",Table_SummaryPI[[#This Row],[Incentive_Customer]],0)","v":0},{"$f":"IF(Table_SummaryPI[[#This Row],[MeasureCost]]<>\"\",Table_SummaryPI[[#This Row],[MeasureCost]],0)","v":0},{"$f":"IF(Table_SummaryPI[[#This Row],[kWhSavings]]<>\"\",Table_SummaryPI[[#This Row],[kWhSavings]],0)","v":0},{"$f":"IF(Table_SummaryPI[[#This Row],[DemandSavingskW]]<>\"\",Table_SummaryPI[[#This Row],[DemandSavingskW]],0)","v":0}]
[{"$f":"Table_SummaryPI[[#This Row],[Line No.]]","v":""},{"$f":"IF(Table_PrintPI[[#This Row],[Line No.]]=\"\",\"\",CONCATENATE(Table_PrintPI[[#This Row],[Line No.]],\" - \",Table_SummaryPI[[#This Row],[MeasureName]]))","v":""},{"$f":"IF(Table_SummaryPI[[#This Row],[Manufacturer]]<>\"\",CONCATENATE(Table_SummaryPI[[#This Row],[Manufacturer]],\"/\",Table_SummaryPI[[#This Row],[Model'#]]),\"\")","v":""},{"$f":"IF(Table_SummaryPI[[#This Row],[Serial'#]]<>\"\",Table_SummaryPI[[#This Row],[Serial'#]],\"\")","v":""},{"$f":"IF(Table_SummaryPI[[#This Row],[Quantity]]<>\"\",Table_SummaryPI[[#This Row],[Quantity]],\"\")","v":""},{"$f":"IF(Table_SummaryPI[[#This Row],[BaselinekWh]]<>\"\",Table_SummaryPI[[#This Row],[BaselinekWh]],\"\")","v":""},{"$f":"IF(Table_SummaryPI[[#This Row],[BaselinekW]]<>\"\",Table_SummaryPI[[#This Row],[BaselinekW]],\"\")","v":""},{"$f":"IF(Table_SummaryPI[[#This Row],[ProposedkWh]]<>\"\",Table_SummaryPI[[#This Row],[ProposedkWh]],\"\")","v":""},{"$f":"IF(Table_SummaryPI[[#This Row],[ProposedkW]]<>\"\",Table_SummaryPI[[#This Row],[ProposedkW]],\"\")","v":""},{"$f":"IF(Table_SummaryPI[[#This Row],[Notes]]<>\"\",Table_SummaryPI[[#This Row],[Notes]],\"\")","v":""},{"$f":"IF(Table_SummaryPI[[#This Row],[Incentive_Customer]]<>\"\",Table_SummaryPI[[#This Row],[Incentive_Customer]],0)","v":0},{"$f":"IF(Table_SummaryPI[[#This Row],[MeasureCost]]<>\"\",Table_SummaryPI[[#This Row],[MeasureCost]],0)","v":0},{"$f":"IF(Table_SummaryPI[[#This Row],[kWhSavings]]<>\"\",Table_SummaryPI[[#This Row],[kWhSavings]],0)","v":0},{"$f":"IF(Table_SummaryPI[[#This Row],[DemandSavingskW]]<>\"\",Table_SummaryPI[[#This Row],[DemandSavingskW]],0)","v":0}]
[{"$f":"Table_SummaryPI[[#This Row],[Line No.]]","v":""},{"$f":"IF(Table_PrintPI[[#This Row],[Line No.]]=\"\",\"\",CONCATENATE(Table_PrintPI[[#This Row],[Line No.]],\" - \",Table_SummaryPI[[#This Row],[MeasureName]]))","v":""},{"$f":"IF(Table_SummaryPI[[#This Row],[Manufacturer]]<>\"\",CONCATENATE(Table_SummaryPI[[#This Row],[Manufacturer]],\"/\",Table_SummaryPI[[#This Row],[Model'#]]),\"\")","v":""},{"$f":"IF(Table_SummaryPI[[#This Row],[Serial'#]]<>\"\",Table_SummaryPI[[#This Row],[Serial'#]],\"\")","v":""},{"$f":"IF(Table_SummaryPI[[#This Row],[Quantity]]<>\"\",Table_SummaryPI[[#This Row],[Quantity]],\"\")","v":""},{"$f":"IF(Table_SummaryPI[[#This Row],[BaselinekWh]]<>\"\",Table_SummaryPI[[#This Row],[BaselinekWh]],\"\")","v":""},{"$f":"IF(Table_SummaryPI[[#This Row],[BaselinekW]]<>\"\",Table_SummaryPI[[#This Row],[BaselinekW]],\"\")","v":""},{"$f":"IF(Table_SummaryPI[[#This Row],[ProposedkWh]]<>\"\",Table_SummaryPI[[#This Row],[ProposedkWh]],\"\")","v":""},{"$f":"IF(Table_SummaryPI[[#This Row],[ProposedkW]]<>\"\",Table_SummaryPI[[#This Row],[ProposedkW]],\"\")","v":""},{"$f":"IF(Table_SummaryPI[[#This Row],[Notes]]<>\"\",Table_SummaryPI[[#This Row],[Notes]],\"\")","v":""},{"$f":"IF(Table_SummaryPI[[#This Row],[Incentive_Customer]]<>\"\",Table_SummaryPI[[#This Row],[Incentive_Customer]],0)","v":0},{"$f":"IF(Table_SummaryPI[[#This Row],[MeasureCost]]<>\"\",Table_SummaryPI[[#This Row],[MeasureCost]],0)","v":0},{"$f":"IF(Table_SummaryPI[[#This Row],[kWhSavings]]<>\"\",Table_SummaryPI[[#This Row],[kWhSavings]],0)","v":0},{"$f":"IF(Table_SummaryPI[[#This Row],[DemandSavingskW]]<>\"\",Table_SummaryPI[[#This Row],[DemandSavingskW]],0)","v":0}]
[{"$f":"Table_SummaryPI[[#This Row],[Line No.]]","v":""},{"$f":"IF(Table_PrintPI[[#This Row],[Line No.]]=\"\",\"\",CONCATENATE(Table_PrintPI[[#This Row],[Line No.]],\" - \",Table_SummaryPI[[#This Row],[MeasureName]]))","v":""},{"$f":"IF(Table_SummaryPI[[#This Row],[Manufacturer]]<>\"\",CONCATENATE(Table_SummaryPI[[#This Row],[Manufacturer]],\"/\",Table_SummaryPI[[#This Row],[Model'#]]),\"\")","v":""},{"$f":"IF(Table_SummaryPI[[#This Row],[Serial'#]]<>\"\",Table_SummaryPI[[#This Row],[Serial'#]],\"\")","v":""},{"$f":"IF(Table_SummaryPI[[#This Row],[Quantity]]<>\"\",Table_SummaryPI[[#This Row],[Quantity]],\"\")","v":""},{"$f":"IF(Table_SummaryPI[[#This Row],[BaselinekWh]]<>\"\",Table_SummaryPI[[#This Row],[BaselinekWh]],\"\")","v":""},{"$f":"IF(Table_SummaryPI[[#This Row],[BaselinekW]]<>\"\",Table_SummaryPI[[#This Row],[BaselinekW]],\"\")","v":""},{"$f":"IF(Table_SummaryPI[[#This Row],[ProposedkWh]]<>\"\",Table_SummaryPI[[#This Row],[ProposedkWh]],\"\")","v":""},{"$f":"IF(Table_SummaryPI[[#This Row],[ProposedkW]]<>\"\",Table_SummaryPI[[#This Row],[ProposedkW]],\"\")","v":""},{"$f":"IF(Table_SummaryPI[[#This Row],[Notes]]<>\"\",Table_SummaryPI[[#This Row],[Notes]],\"\")","v":""},{"$f":"IF(Table_SummaryPI[[#This Row],[Incentive_Customer]]<>\"\",Table_SummaryPI[[#This Row],[Incentive_Customer]],0)","v":0},{"$f":"IF(Table_SummaryPI[[#This Row],[MeasureCost]]<>\"\",Table_SummaryPI[[#This Row],[MeasureCost]],0)","v":0},{"$f":"IF(Table_SummaryPI[[#This Row],[kWhSavings]]<>\"\",Table_SummaryPI[[#This Row],[kWhSavings]],0)","v":0},{"$f":"IF(Table_SummaryPI[[#This Row],[DemandSavingskW]]<>\"\",Table_SummaryPI[[#This Row],[DemandSavingskW]],0)","v":0}]
[{"$f":"Table_SummaryPI[[#This Row],[Line No.]]","v":""},{"$f":"IF(Table_PrintPI[[#This Row],[Line No.]]=\"\",\"\",CONCATENATE(Table_PrintPI[[#This Row],[Line No.]],\" - \",Table_SummaryPI[[#This Row],[MeasureName]]))","v":""},{"$f":"IF(Table_SummaryPI[[#This Row],[Manufacturer]]<>\"\",CONCATENATE(Table_SummaryPI[[#This Row],[Manufacturer]],\"/\",Table_SummaryPI[[#This Row],[Model'#]]),\"\")","v":""},{"$f":"IF(Table_SummaryPI[[#This Row],[Serial'#]]<>\"\",Table_SummaryPI[[#This Row],[Serial'#]],\"\")","v":""},{"$f":"IF(Table_SummaryPI[[#This Row],[Quantity]]<>\"\",Table_SummaryPI[[#This Row],[Quantity]],\"\")","v":""},{"$f":"IF(Table_SummaryPI[[#This Row],[BaselinekWh]]<>\"\",Table_SummaryPI[[#This Row],[BaselinekWh]],\"\")","v":""},{"$f":"IF(Table_SummaryPI[[#This Row],[BaselinekW]]<>\"\",Table_SummaryPI[[#This Row],[BaselinekW]],\"\")","v":""},{"$f":"IF(Table_SummaryPI[[#This Row],[ProposedkWh]]<>\"\",Table_SummaryPI[[#This Row],[ProposedkWh]],\"\")","v":""},{"$f":"IF(Table_SummaryPI[[#This Row],[ProposedkW]]<>\"\",Table_SummaryPI[[#This Row],[ProposedkW]],\"\")","v":""},{"$f":"IF(Table_SummaryPI[[#This Row],[Notes]]<>\"\",Table_SummaryPI[[#This Row],[Notes]],\"\")","v":""},{"$f":"IF(Table_SummaryPI[[#This Row],[Incentive_Customer]]<>\"\",Table_SummaryPI[[#This Row],[Incentive_Customer]],0)","v":0},{"$f":"IF(Table_SummaryPI[[#This Row],[MeasureCost]]<>\"\",Table_SummaryPI[[#This Row],[MeasureCost]],0)","v":0},{"$f":"IF(Table_SummaryPI[[#This Row],[kWhSavings]]<>\"\",Table_SummaryPI[[#This Row],[kWhSavings]],0)","v":0},{"$f":"IF(Table_SummaryPI[[#This Row],[DemandSavingskW]]<>\"\",Table_SummaryPI[[#This Row],[DemandSavingskW]],0)","v":0}]
[{"$f":"Table_SummaryPI[[#This Row],[Line No.]]","v":""},{"$f":"IF(Table_PrintPI[[#This Row],[Line No.]]=\"\",\"\",CONCATENATE(Table_PrintPI[[#This Row],[Line No.]],\" - \",Table_SummaryPI[[#This Row],[MeasureName]]))","v":""},{"$f":"IF(Table_SummaryPI[[#This Row],[Manufacturer]]<>\"\",CONCATENATE(Table_SummaryPI[[#This Row],[Manufacturer]],\"/\",Table_SummaryPI[[#This Row],[Model'#]]),\"\")","v":""},{"$f":"IF(Table_SummaryPI[[#This Row],[Serial'#]]<>\"\",Table_SummaryPI[[#This Row],[Serial'#]],\"\")","v":""},{"$f":"IF(Table_SummaryPI[[#This Row],[Quantity]]<>\"\",Table_SummaryPI[[#This Row],[Quantity]],\"\")","v":""},{"$f":"IF(Table_SummaryPI[[#This Row],[BaselinekWh]]<>\"\",Table_SummaryPI[[#This Row],[BaselinekWh]],\"\")","v":""},{"$f":"IF(Table_SummaryPI[[#This Row],[BaselinekW]]<>\"\",Table_SummaryPI[[#This Row],[BaselinekW]],\"\")","v":""},{"$f":"IF(Table_SummaryPI[[#This Row],[ProposedkWh]]<>\"\",Table_SummaryPI[[#This Row],[ProposedkWh]],\"\")","v":""},{"$f":"IF(Table_SummaryPI[[#This Row],[ProposedkW]]<>\"\",Table_SummaryPI[[#This Row],[ProposedkW]],\"\")","v":""},{"$f":"IF(Table_SummaryPI[[#This Row],[Notes]]<>\"\",Table_SummaryPI[[#This Row],[Notes]],\"\")","v":""},{"$f":"IF(Table_SummaryPI[[#This Row],[Incentive_Customer]]<>\"\",Table_SummaryPI[[#This Row],[Incentive_Customer]],0)","v":0},{"$f":"IF(Table_SummaryPI[[#This Row],[MeasureCost]]<>\"\",Table_SummaryPI[[#This Row],[MeasureCost]],0)","v":0},{"$f":"IF(Table_SummaryPI[[#This Row],[kWhSavings]]<>\"\",Table_SummaryPI[[#This Row],[kWhSavings]],0)","v":0},{"$f":"IF(Table_SummaryPI[[#This Row],[DemandSavingskW]]<>\"\",Table_SummaryPI[[#This Row],[DemandSavingskW]],0)","v":0}]
[{"$f":"Table_SummaryPI[[#This Row],[Line No.]]","v":""},{"$f":"IF(Table_PrintPI[[#This Row],[Line No.]]=\"\",\"\",CONCATENATE(Table_PrintPI[[#This Row],[Line No.]],\" - \",Table_SummaryPI[[#This Row],[MeasureName]]))","v":""},{"$f":"IF(Table_SummaryPI[[#This Row],[Manufacturer]]<>\"\",CONCATENATE(Table_SummaryPI[[#This Row],[Manufacturer]],\"/\",Table_SummaryPI[[#This Row],[Model'#]]),\"\")","v":""},{"$f":"IF(Table_SummaryPI[[#This Row],[Serial'#]]<>\"\",Table_SummaryPI[[#This Row],[Serial'#]],\"\")","v":""},{"$f":"IF(Table_SummaryPI[[#This Row],[Quantity]]<>\"\",Table_SummaryPI[[#This Row],[Quantity]],\"\")","v":""},{"$f":"IF(Table_SummaryPI[[#This Row],[BaselinekWh]]<>\"\",Table_SummaryPI[[#This Row],[BaselinekWh]],\"\")","v":""},{"$f":"IF(Table_SummaryPI[[#This Row],[BaselinekW]]<>\"\",Table_SummaryPI[[#This Row],[BaselinekW]],\"\")","v":""},{"$f":"IF(Table_SummaryPI[[#This Row],[ProposedkWh]]<>\"\",Table_SummaryPI[[#This Row],[ProposedkWh]],\"\")","v":""},{"$f":"IF(Table_SummaryPI[[#This Row],[ProposedkW]]<>\"\",Table_SummaryPI[[#This Row],[ProposedkW]],\"\")","v":""},{"$f":"IF(Table_SummaryPI[[#This Row],[Notes]]<>\"\",Table_SummaryPI[[#This Row],[Notes]],\"\")","v":""},{"$f":"IF(Table_SummaryPI[[#This Row],[Incentive_Customer]]<>\"\",Table_SummaryPI[[#This Row],[Incentive_Customer]],0)","v":0},{"$f":"IF(Table_SummaryPI[[#This Row],[MeasureCost]]<>\"\",Table_SummaryPI[[#This Row],[MeasureCost]],0)","v":0},{"$f":"IF(Table_SummaryPI[[#This Row],[kWhSavings]]<>\"\",Table_SummaryPI[[#This Row],[kWhSavings]],0)","v":0},{"$f":"IF(Table_SummaryPI[[#This Row],[DemandSavingskW]]<>\"\",Table_SummaryPI[[#This Row],[DemandSavingskW]],0)","v":0}]
[{"$f":"Table_SummaryPI[[#This Row],[Line No.]]","v":""},{"$f":"IF(Table_PrintPI[[#This Row],[Line No.]]=\"\",\"\",CONCATENATE(Table_PrintPI[[#This Row],[Line No.]],\" - \",Table_SummaryPI[[#This Row],[MeasureName]]))","v":""},{"$f":"IF(Table_SummaryPI[[#This Row],[Manufacturer]]<>\"\",CONCATENATE(Table_SummaryPI[[#This Row],[Manufacturer]],\"/\",Table_SummaryPI[[#This Row],[Model'#]]),\"\")","v":""},{"$f":"IF(Table_SummaryPI[[#This Row],[Serial'#]]<>\"\",Table_SummaryPI[[#This Row],[Serial'#]],\"\")","v":""},{"$f":"IF(Table_SummaryPI[[#This Row],[Quantity]]<>\"\",Table_SummaryPI[[#This Row],[Quantity]],\"\")","v":""},{"$f":"IF(Table_SummaryPI[[#This Row],[BaselinekWh]]<>\"\",Table_SummaryPI[[#This Row],[BaselinekWh]],\"\")","v":""},{"$f":"IF(Table_SummaryPI[[#This Row],[BaselinekW]]<>\"\",Table_SummaryPI[[#This Row],[BaselinekW]],\"\")","v":""},{"$f":"IF(Table_SummaryPI[[#This Row],[ProposedkWh]]<>\"\",Table_SummaryPI[[#This Row],[ProposedkWh]],\"\")","v":""},{"$f":"IF(Table_SummaryPI[[#This Row],[ProposedkW]]<>\"\",Table_SummaryPI[[#This Row],[ProposedkW]],\"\")","v":""},{"$f":"IF(Table_SummaryPI[[#This Row],[Notes]]<>\"\",Table_SummaryPI[[#This Row],[Notes]],\"\")","v":""},{"$f":"IF(Table_SummaryPI[[#This Row],[Incentive_Customer]]<>\"\",Table_SummaryPI[[#This Row],[Incentive_Customer]],0)","v":0},{"$f":"IF(Table_SummaryPI[[#This Row],[MeasureCost]]<>\"\",Table_SummaryPI[[#This Row],[MeasureCost]],0)","v":0},{"$f":"IF(Table_SummaryPI[[#This Row],[kWhSavings]]<>\"\",Table_SummaryPI[[#This Row],[kWhSavings]],0)","v":0},{"$f":"IF(Table_SummaryPI[[#This Row],[DemandSavingskW]]<>\"\",Table_SummaryPI[[#This Row],[DemandSavingskW]],0)","v":0}]
[{"$f":"Table_SummaryPI[[#This Row],[Line No.]]","v":""},{"$f":"IF(Table_PrintPI[[#This Row],[Line No.]]=\"\",\"\",CONCATENATE(Table_PrintPI[[#This Row],[Line No.]],\" - \",Table_SummaryPI[[#This Row],[MeasureName]]))","v":""},{"$f":"IF(Table_SummaryPI[[#This Row],[Manufacturer]]<>\"\",CONCATENATE(Table_SummaryPI[[#This Row],[Manufacturer]],\"/\",Table_SummaryPI[[#This Row],[Model'#]]),\"\")","v":""},{"$f":"IF(Table_SummaryPI[[#This Row],[Serial'#]]<>\"\",Table_SummaryPI[[#This Row],[Serial'#]],\"\")","v":""},{"$f":"IF(Table_SummaryPI[[#This Row],[Quantity]]<>\"\",Table_SummaryPI[[#This Row],[Quantity]],\"\")","v":""},{"$f":"IF(Table_SummaryPI[[#This Row],[BaselinekWh]]<>\"\",Table_SummaryPI[[#This Row],[BaselinekWh]],\"\")","v":""},{"$f":"IF(Table_SummaryPI[[#This Row],[BaselinekW]]<>\"\",Table_SummaryPI[[#This Row],[BaselinekW]],\"\")","v":""},{"$f":"IF(Table_SummaryPI[[#This Row],[ProposedkWh]]<>\"\",Table_SummaryPI[[#This Row],[ProposedkWh]],\"\")","v":""},{"$f":"IF(Table_SummaryPI[[#This Row],[ProposedkW]]<>\"\",Table_SummaryPI[[#This Row],[ProposedkW]],\"\")","v":""},{"$f":"IF(Table_SummaryPI[[#This Row],[Notes]]<>\"\",Table_SummaryPI[[#This Row],[Notes]],\"\")","v":""},{"$f":"IF(Table_SummaryPI[[#This Row],[Incentive_Customer]]<>\"\",Table_SummaryPI[[#This Row],[Incentive_Customer]],0)","v":0},{"$f":"IF(Table_SummaryPI[[#This Row],[MeasureCost]]<>\"\",Table_SummaryPI[[#This Row],[MeasureCost]],0)","v":0},{"$f":"IF(Table_SummaryPI[[#This Row],[kWhSavings]]<>\"\",Table_SummaryPI[[#This Row],[kWhSavings]],0)","v":0},{"$f":"IF(Table_SummaryPI[[#This Row],[DemandSavingskW]]<>\"\",Table_SummaryPI[[#This Row],[DemandSavingskW]],0)","v":0}]
[{"$f":"Table_SummaryPI[[#This Row],[Line No.]]","v":""},{"$f":"IF(Table_PrintPI[[#This Row],[Line No.]]=\"\",\"\",CONCATENATE(Table_PrintPI[[#This Row],[Line No.]],\" - \",Table_SummaryPI[[#This Row],[MeasureName]]))","v":""},{"$f":"IF(Table_SummaryPI[[#This Row],[Manufacturer]]<>\"\",CONCATENATE(Table_SummaryPI[[#This Row],[Manufacturer]],\"/\",Table_SummaryPI[[#This Row],[Model'#]]),\"\")","v":""},{"$f":"IF(Table_SummaryPI[[#This Row],[Serial'#]]<>\"\",Table_SummaryPI[[#This Row],[Serial'#]],\"\")","v":""},{"$f":"IF(Table_SummaryPI[[#This Row],[Quantity]]<>\"\",Table_SummaryPI[[#This Row],[Quantity]],\"\")","v":""},{"$f":"IF(Table_SummaryPI[[#This Row],[BaselinekWh]]<>\"\",Table_SummaryPI[[#This Row],[BaselinekWh]],\"\")","v":""},{"$f":"IF(Table_SummaryPI[[#This Row],[BaselinekW]]<>\"\",Table_SummaryPI[[#This Row],[BaselinekW]],\"\")","v":""},{"$f":"IF(Table_SummaryPI[[#This Row],[ProposedkWh]]<>\"\",Table_SummaryPI[[#This Row],[ProposedkWh]],\"\")","v":""},{"$f":"IF(Table_SummaryPI[[#This Row],[ProposedkW]]<>\"\",Table_SummaryPI[[#This Row],[ProposedkW]],\"\")","v":""},{"$f":"IF(Table_SummaryPI[[#This Row],[Notes]]<>\"\",Table_SummaryPI[[#This Row],[Notes]],\"\")","v":""},{"$f":"IF(Table_SummaryPI[[#This Row],[Incentive_Customer]]<>\"\",Table_SummaryPI[[#This Row],[Incentive_Customer]],0)","v":0},{"$f":"IF(Table_SummaryPI[[#This Row],[MeasureCost]]<>\"\",Table_SummaryPI[[#This Row],[MeasureCost]],0)","v":0},{"$f":"IF(Table_SummaryPI[[#This Row],[kWhSavings]]<>\"\",Table_SummaryPI[[#This Row],[kWhSavings]],0)","v":0},{"$f":"IF(Table_SummaryPI[[#This Row],[DemandSavingskW]]<>\"\",Table_SummaryPI[[#This Row],[DemandSavingskW]],0)","v":0}]
[{"$f":"Table_SummaryPI[[#This Row],[Line No.]]","v":""},{"$f":"IF(Table_PrintPI[[#This Row],[Line No.]]=\"\",\"\",CONCATENATE(Table_PrintPI[[#This Row],[Line No.]],\" - \",Table_SummaryPI[[#This Row],[MeasureName]]))","v":""},{"$f":"IF(Table_SummaryPI[[#This Row],[Manufacturer]]<>\"\",CONCATENATE(Table_SummaryPI[[#This Row],[Manufacturer]],\"/\",Table_SummaryPI[[#This Row],[Model'#]]),\"\")","v":""},{"$f":"IF(Table_SummaryPI[[#This Row],[Serial'#]]<>\"\",Table_SummaryPI[[#This Row],[Serial'#]],\"\")","v":""},{"$f":"IF(Table_SummaryPI[[#This Row],[Quantity]]<>\"\",Table_SummaryPI[[#This Row],[Quantity]],\"\")","v":""},{"$f":"IF(Table_SummaryPI[[#This Row],[BaselinekWh]]<>\"\",Table_SummaryPI[[#This Row],[BaselinekWh]],\"\")","v":""},{"$f":"IF(Table_SummaryPI[[#This Row],[BaselinekW]]<>\"\",Table_SummaryPI[[#This Row],[BaselinekW]],\"\")","v":""},{"$f":"IF(Table_SummaryPI[[#This Row],[ProposedkWh]]<>\"\",Table_SummaryPI[[#This Row],[ProposedkWh]],\"\")","v":""},{"$f":"IF(Table_SummaryPI[[#This Row],[ProposedkW]]<>\"\",Table_SummaryPI[[#This Row],[ProposedkW]],\"\")","v":""},{"$f":"IF(Table_SummaryPI[[#This Row],[Notes]]<>\"\",Table_SummaryPI[[#This Row],[Notes]],\"\")","v":""},{"$f":"IF(Table_SummaryPI[[#This Row],[Incentive_Customer]]<>\"\",Table_SummaryPI[[#This Row],[Incentive_Customer]],0)","v":0},{"$f":"IF(Table_SummaryPI[[#This Row],[MeasureCost]]<>\"\",Table_SummaryPI[[#This Row],[MeasureCost]],0)","v":0},{"$f":"IF(Table_SummaryPI[[#This Row],[kWhSavings]]<>\"\",Table_SummaryPI[[#This Row],[kWhSavings]],0)","v":0},{"$f":"IF(Table_SummaryPI[[#This Row],[DemandSavingskW]]<>\"\",Table_SummaryPI[[#This Row],[DemandSavingskW]],0)","v":0}]
[{"$f":"Table_SummaryPI[[#This Row],[Line No.]]","v":""},{"$f":"IF(Table_PrintPI[[#This Row],[Line No.]]=\"\",\"\",CONCATENATE(Table_PrintPI[[#This Row],[Line No.]],\" - \",Table_SummaryPI[[#This Row],[MeasureName]]))","v":""},{"$f":"IF(Table_SummaryPI[[#This Row],[Manufacturer]]<>\"\",CONCATENATE(Table_SummaryPI[[#This Row],[Manufacturer]],\"/\",Table_SummaryPI[[#This Row],[Model'#]]),\"\")","v":""},{"$f":"IF(Table_SummaryPI[[#This Row],[Serial'#]]<>\"\",Table_SummaryPI[[#This Row],[Serial'#]],\"\")","v":""},{"$f":"IF(Table_SummaryPI[[#This Row],[Quantity]]<>\"\",Table_SummaryPI[[#This Row],[Quantity]],\"\")","v":""},{"$f":"IF(Table_SummaryPI[[#This Row],[BaselinekWh]]<>\"\",Table_SummaryPI[[#This Row],[BaselinekWh]],\"\")","v":""},{"$f":"IF(Table_SummaryPI[[#This Row],[BaselinekW]]<>\"\",Table_SummaryPI[[#This Row],[BaselinekW]],\"\")","v":""},{"$f":"IF(Table_SummaryPI[[#This Row],[ProposedkWh]]<>\"\",Table_SummaryPI[[#This Row],[ProposedkWh]],\"\")","v":""},{"$f":"IF(Table_SummaryPI[[#This Row],[ProposedkW]]<>\"\",Table_SummaryPI[[#This Row],[ProposedkW]],\"\")","v":""},{"$f":"IF(Table_SummaryPI[[#This Row],[Notes]]<>\"\",Table_SummaryPI[[#This Row],[Notes]],\"\")","v":""},{"$f":"IF(Table_SummaryPI[[#This Row],[Incentive_Customer]]<>\"\",Table_SummaryPI[[#This Row],[Incentive_Customer]],0)","v":0},{"$f":"IF(Table_SummaryPI[[#This Row],[MeasureCost]]<>\"\",Table_SummaryPI[[#This Row],[MeasureCost]],0)","v":0},{"$f":"IF(Table_SummaryPI[[#This Row],[kWhSavings]]<>\"\",Table_SummaryPI[[#This Row],[kWhSavings]],0)","v":0},{"$f":"IF(Table_SummaryPI[[#This Row],[DemandSavingskW]]<>\"\",Table_SummaryPI[[#This Row],[DemandSavingskW]],0)","v":0}]
[{"$f":"Table_SummaryPI[[#This Row],[Line No.]]","v":""},{"$f":"IF(Table_PrintPI[[#This Row],[Line No.]]=\"\",\"\",CONCATENATE(Table_PrintPI[[#This Row],[Line No.]],\" - \",Table_SummaryPI[[#This Row],[MeasureName]]))","v":""},{"$f":"IF(Table_SummaryPI[[#This Row],[Manufacturer]]<>\"\",CONCATENATE(Table_SummaryPI[[#This Row],[Manufacturer]],\"/\",Table_SummaryPI[[#This Row],[Model'#]]),\"\")","v":""},{"$f":"IF(Table_SummaryPI[[#This Row],[Serial'#]]<>\"\",Table_SummaryPI[[#This Row],[Serial'#]],\"\")","v":""},{"$f":"IF(Table_SummaryPI[[#This Row],[Quantity]]<>\"\",Table_SummaryPI[[#This Row],[Quantity]],\"\")","v":""},{"$f":"IF(Table_SummaryPI[[#This Row],[BaselinekWh]]<>\"\",Table_SummaryPI[[#This Row],[BaselinekWh]],\"\")","v":""},{"$f":"IF(Table_SummaryPI[[#This Row],[BaselinekW]]<>\"\",Table_SummaryPI[[#This Row],[BaselinekW]],\"\")","v":""},{"$f":"IF(Table_SummaryPI[[#This Row],[ProposedkWh]]<>\"\",Table_SummaryPI[[#This Row],[ProposedkWh]],\"\")","v":""},{"$f":"IF(Table_SummaryPI[[#This Row],[ProposedkW]]<>\"\",Table_SummaryPI[[#This Row],[ProposedkW]],\"\")","v":""},{"$f":"IF(Table_SummaryPI[[#This Row],[Notes]]<>\"\",Table_SummaryPI[[#This Row],[Notes]],\"\")","v":""},{"$f":"IF(Table_SummaryPI[[#This Row],[Incentive_Customer]]<>\"\",Table_SummaryPI[[#This Row],[Incentive_Customer]],0)","v":0},{"$f":"IF(Table_SummaryPI[[#This Row],[MeasureCost]]<>\"\",Table_SummaryPI[[#This Row],[MeasureCost]],0)","v":0},{"$f":"IF(Table_SummaryPI[[#This Row],[kWhSavings]]<>\"\",Table_SummaryPI[[#This Row],[kWhSavings]],0)","v":0},{"$f":"IF(Table_SummaryPI[[#This Row],[DemandSavingskW]]<>\"\",Table_SummaryPI[[#This Row],[DemandSavingskW]],0)","v":0}]
[{"$f":"Table_SummaryPI[[#This Row],[Line No.]]","v":""},{"$f":"IF(Table_PrintPI[[#This Row],[Line No.]]=\"\",\"\",CONCATENATE(Table_PrintPI[[#This Row],[Line No.]],\" - \",Table_SummaryPI[[#This Row],[MeasureName]]))","v":""},{"$f":"IF(Table_SummaryPI[[#This Row],[Manufacturer]]<>\"\",CONCATENATE(Table_SummaryPI[[#This Row],[Manufacturer]],\"/\",Table_SummaryPI[[#This Row],[Model'#]]),\"\")","v":""},{"$f":"IF(Table_SummaryPI[[#This Row],[Serial'#]]<>\"\",Table_SummaryPI[[#This Row],[Serial'#]],\"\")","v":""},{"$f":"IF(Table_SummaryPI[[#This Row],[Quantity]]<>\"\",Table_SummaryPI[[#This Row],[Quantity]],\"\")","v":""},{"$f":"IF(Table_SummaryPI[[#This Row],[BaselinekWh]]<>\"\",Table_SummaryPI[[#This Row],[BaselinekWh]],\"\")","v":""},{"$f":"IF(Table_SummaryPI[[#This Row],[BaselinekW]]<>\"\",Table_SummaryPI[[#This Row],[BaselinekW]],\"\")","v":""},{"$f":"IF(Table_SummaryPI[[#This Row],[ProposedkWh]]<>\"\",Table_SummaryPI[[#This Row],[ProposedkWh]],\"\")","v":""},{"$f":"IF(Table_SummaryPI[[#This Row],[ProposedkW]]<>\"\",Table_SummaryPI[[#This Row],[ProposedkW]],\"\")","v":""},{"$f":"IF(Table_SummaryPI[[#This Row],[Notes]]<>\"\",Table_SummaryPI[[#This Row],[Notes]],\"\")","v":""},{"$f":"IF(Table_SummaryPI[[#This Row],[Incentive_Customer]]<>\"\",Table_SummaryPI[[#This Row],[Incentive_Customer]],0)","v":0},{"$f":"IF(Table_SummaryPI[[#This Row],[MeasureCost]]<>\"\",Table_SummaryPI[[#This Row],[MeasureCost]],0)","v":0},{"$f":"IF(Table_SummaryPI[[#This Row],[kWhSavings]]<>\"\",Table_SummaryPI[[#This Row],[kWhSavings]],0)","v":0},{"$f":"IF(Table_SummaryPI[[#This Row],[DemandSavingskW]]<>\"\",Table_SummaryPI[[#This Row],[DemandSavingskW]],0)","v":0}]
[{"$f":"Table_SummaryPI[[#This Row],[Line No.]]","v":""},{"$f":"IF(Table_PrintPI[[#This Row],[Line No.]]=\"\",\"\",CONCATENATE(Table_PrintPI[[#This Row],[Line No.]],\" - \",Table_SummaryPI[[#This Row],[MeasureName]]))","v":""},{"$f":"IF(Table_SummaryPI[[#This Row],[Manufacturer]]<>\"\",CONCATENATE(Table_SummaryPI[[#This Row],[Manufacturer]],\"/\",Table_SummaryPI[[#This Row],[Model'#]]),\"\")","v":""},{"$f":"IF(Table_SummaryPI[[#This Row],[Serial'#]]<>\"\",Table_SummaryPI[[#This Row],[Serial'#]],\"\")","v":""},{"$f":"IF(Table_SummaryPI[[#This Row],[Quantity]]<>\"\",Table_SummaryPI[[#This Row],[Quantity]],\"\")","v":""},{"$f":"IF(Table_SummaryPI[[#This Row],[BaselinekWh]]<>\"\",Table_SummaryPI[[#This Row],[BaselinekWh]],\"\")","v":""},{"$f":"IF(Table_SummaryPI[[#This Row],[BaselinekW]]<>\"\",Table_SummaryPI[[#This Row],[BaselinekW]],\"\")","v":""},{"$f":"IF(Table_SummaryPI[[#This Row],[ProposedkWh]]<>\"\",Table_SummaryPI[[#This Row],[ProposedkWh]],\"\")","v":""},{"$f":"IF(Table_SummaryPI[[#This Row],[ProposedkW]]<>\"\",Table_SummaryPI[[#This Row],[ProposedkW]],\"\")","v":""},{"$f":"IF(Table_SummaryPI[[#This Row],[Notes]]<>\"\",Table_SummaryPI[[#This Row],[Notes]],\"\")","v":""},{"$f":"IF(Table_SummaryPI[[#This Row],[Incentive_Customer]]<>\"\",Table_SummaryPI[[#This Row],[Incentive_Customer]],0)","v":0},{"$f":"IF(Table_SummaryPI[[#This Row],[MeasureCost]]<>\"\",Table_SummaryPI[[#This Row],[MeasureCost]],0)","v":0},{"$f":"IF(Table_SummaryPI[[#This Row],[kWhSavings]]<>\"\",Table_SummaryPI[[#This Row],[kWhSavings]],0)","v":0},{"$f":"IF(Table_SummaryPI[[#This Row],[DemandSavingskW]]<>\"\",Table_SummaryPI[[#This Row],[DemandSavingskW]],0)","v":0}]
[{"$f":"Table_SummaryPI[[#This Row],[Line No.]]","v":""},{"$f":"IF(Table_PrintPI[[#This Row],[Line No.]]=\"\",\"\",CONCATENATE(Table_PrintPI[[#This Row],[Line No.]],\" - \",Table_SummaryPI[[#This Row],[MeasureName]]))","v":""},{"$f":"IF(Table_SummaryPI[[#This Row],[Manufacturer]]<>\"\",CONCATENATE(Table_SummaryPI[[#This Row],[Manufacturer]],\"/\",Table_SummaryPI[[#This Row],[Model'#]]),\"\")","v":""},{"$f":"IF(Table_SummaryPI[[#This Row],[Serial'#]]<>\"\",Table_SummaryPI[[#This Row],[Serial'#]],\"\")","v":""},{"$f":"IF(Table_SummaryPI[[#This Row],[Quantity]]<>\"\",Table_SummaryPI[[#This Row],[Quantity]],\"\")","v":""},{"$f":"IF(Table_SummaryPI[[#This Row],[BaselinekWh]]<>\"\",Table_SummaryPI[[#This Row],[BaselinekWh]],\"\")","v":""},{"$f":"IF(Table_SummaryPI[[#This Row],[BaselinekW]]<>\"\",Table_SummaryPI[[#This Row],[BaselinekW]],\"\")","v":""},{"$f":"IF(Table_SummaryPI[[#This Row],[ProposedkWh]]<>\"\",Table_SummaryPI[[#This Row],[ProposedkWh]],\"\")","v":""},{"$f":"IF(Table_SummaryPI[[#This Row],[ProposedkW]]<>\"\",Table_SummaryPI[[#This Row],[ProposedkW]],\"\")","v":""},{"$f":"IF(Table_SummaryPI[[#This Row],[Notes]]<>\"\",Table_SummaryPI[[#This Row],[Notes]],\"\")","v":""},{"$f":"IF(Table_SummaryPI[[#This Row],[Incentive_Customer]]<>\"\",Table_SummaryPI[[#This Row],[Incentive_Customer]],0)","v":0},{"$f":"IF(Table_SummaryPI[[#This Row],[MeasureCost]]<>\"\",Table_SummaryPI[[#This Row],[MeasureCost]],0)","v":0},{"$f":"IF(Table_SummaryPI[[#This Row],[kWhSavings]]<>\"\",Table_SummaryPI[[#This Row],[kWhSavings]],0)","v":0},{"$f":"IF(Table_SummaryPI[[#This Row],[DemandSavingskW]]<>\"\",Table_SummaryPI[[#This Row],[DemandSavingskW]],0)","v":0}]
[{"$f":"Table_SummaryPI[[#This Row],[Line No.]]","v":""},{"$f":"IF(Table_PrintPI[[#This Row],[Line No.]]=\"\",\"\",CONCATENATE(Table_PrintPI[[#This Row],[Line No.]],\" - \",Table_SummaryPI[[#This Row],[MeasureName]]))","v":""},{"$f":"IF(Table_SummaryPI[[#This Row],[Manufacturer]]<>\"\",CONCATENATE(Table_SummaryPI[[#This Row],[Manufacturer]],\"/\",Table_SummaryPI[[#This Row],[Model'#]]),\"\")","v":""},{"$f":"IF(Table_SummaryPI[[#This Row],[Serial'#]]<>\"\",Table_SummaryPI[[#This Row],[Serial'#]],\"\")","v":""},{"$f":"IF(Table_SummaryPI[[#This Row],[Quantity]]<>\"\",Table_SummaryPI[[#This Row],[Quantity]],\"\")","v":""},{"$f":"IF(Table_SummaryPI[[#This Row],[BaselinekWh]]<>\"\",Table_SummaryPI[[#This Row],[BaselinekWh]],\"\")","v":""},{"$f":"IF(Table_SummaryPI[[#This Row],[BaselinekW]]<>\"\",Table_SummaryPI[[#This Row],[BaselinekW]],\"\")","v":""},{"$f":"IF(Table_SummaryPI[[#This Row],[ProposedkWh]]<>\"\",Table_SummaryPI[[#This Row],[ProposedkWh]],\"\")","v":""},{"$f":"IF(Table_SummaryPI[[#This Row],[ProposedkW]]<>\"\",Table_SummaryPI[[#This Row],[ProposedkW]],\"\")","v":""},{"$f":"IF(Table_SummaryPI[[#This Row],[Notes]]<>\"\",Table_SummaryPI[[#This Row],[Notes]],\"\")","v":""},{"$f":"IF(Table_SummaryPI[[#This Row],[Incentive_Customer]]<>\"\",Table_SummaryPI[[#This Row],[Incentive_Customer]],0)","v":0},{"$f":"IF(Table_SummaryPI[[#This Row],[MeasureCost]]<>\"\",Table_SummaryPI[[#This Row],[MeasureCost]],0)","v":0},{"$f":"IF(Table_SummaryPI[[#This Row],[kWhSavings]]<>\"\",Table_SummaryPI[[#This Row],[kWhSavings]],0)","v":0},{"$f":"IF(Table_SummaryPI[[#This Row],[DemandSavingskW]]<>\"\",Table_SummaryPI[[#This Row],[DemandSavingskW]],0)","v":0}]
[{"$f":"Table_SummaryPI[[#This Row],[Line No.]]","v":""},{"$f":"IF(Table_PrintPI[[#This Row],[Line No.]]=\"\",\"\",CONCATENATE(Table_PrintPI[[#This Row],[Line No.]],\" - \",Table_SummaryPI[[#This Row],[MeasureName]]))","v":""},{"$f":"IF(Table_SummaryPI[[#This Row],[Manufacturer]]<>\"\",CONCATENATE(Table_SummaryPI[[#This Row],[Manufacturer]],\"/\",Table_SummaryPI[[#This Row],[Model'#]]),\"\")","v":""},{"$f":"IF(Table_SummaryPI[[#This Row],[Serial'#]]<>\"\",Table_SummaryPI[[#This Row],[Serial'#]],\"\")","v":""},{"$f":"IF(Table_SummaryPI[[#This Row],[Quantity]]<>\"\",Table_SummaryPI[[#This Row],[Quantity]],\"\")","v":""},{"$f":"IF(Table_SummaryPI[[#This Row],[BaselinekWh]]<>\"\",Table_SummaryPI[[#This Row],[BaselinekWh]],\"\")","v":""},{"$f":"IF(Table_SummaryPI[[#This Row],[BaselinekW]]<>\"\",Table_SummaryPI[[#This Row],[BaselinekW]],\"\")","v":""},{"$f":"IF(Table_SummaryPI[[#This Row],[ProposedkWh]]<>\"\",Table_SummaryPI[[#This Row],[ProposedkWh]],\"\")","v":""},{"$f":"IF(Table_SummaryPI[[#This Row],[ProposedkW]]<>\"\",Table_SummaryPI[[#This Row],[ProposedkW]],\"\")","v":""},{"$f":"IF(Table_SummaryPI[[#This Row],[Notes]]<>\"\",Table_SummaryPI[[#This Row],[Notes]],\"\")","v":""},{"$f":"IF(Table_SummaryPI[[#This Row],[Incentive_Customer]]<>\"\",Table_SummaryPI[[#This Row],[Incentive_Customer]],0)","v":0},{"$f":"IF(Table_SummaryPI[[#This Row],[MeasureCost]]<>\"\",Table_SummaryPI[[#This Row],[MeasureCost]],0)","v":0},{"$f":"IF(Table_SummaryPI[[#This Row],[kWhSavings]]<>\"\",Table_SummaryPI[[#This Row],[kWhSavings]],0)","v":0},{"$f":"IF(Table_SummaryPI[[#This Row],[DemandSavingskW]]<>\"\",Table_SummaryPI[[#This Row],[DemandSavingskW]],0)","v":0}]
[{"$f":"Table_SummaryPI[[#This Row],[Line No.]]","v":""},{"$f":"IF(Table_PrintPI[[#This Row],[Line No.]]=\"\",\"\",CONCATENATE(Table_PrintPI[[#This Row],[Line No.]],\" - \",Table_SummaryPI[[#This Row],[MeasureName]]))","v":""},{"$f":"IF(Table_SummaryPI[[#This Row],[Manufacturer]]<>\"\",CONCATENATE(Table_SummaryPI[[#This Row],[Manufacturer]],\"/\",Table_SummaryPI[[#This Row],[Model'#]]),\"\")","v":""},{"$f":"IF(Table_SummaryPI[[#This Row],[Serial'#]]<>\"\",Table_SummaryPI[[#This Row],[Serial'#]],\"\")","v":""},{"$f":"IF(Table_SummaryPI[[#This Row],[Quantity]]<>\"\",Table_SummaryPI[[#This Row],[Quantity]],\"\")","v":""},{"$f":"IF(Table_SummaryPI[[#This Row],[BaselinekWh]]<>\"\",Table_SummaryPI[[#This Row],[BaselinekWh]],\"\")","v":""},{"$f":"IF(Table_SummaryPI[[#This Row],[BaselinekW]]<>\"\",Table_SummaryPI[[#This Row],[BaselinekW]],\"\")","v":""},{"$f":"IF(Table_SummaryPI[[#This Row],[ProposedkWh]]<>\"\",Table_SummaryPI[[#This Row],[ProposedkWh]],\"\")","v":""},{"$f":"IF(Table_SummaryPI[[#This Row],[ProposedkW]]<>\"\",Table_SummaryPI[[#This Row],[ProposedkW]],\"\")","v":""},{"$f":"IF(Table_SummaryPI[[#This Row],[Notes]]<>\"\",Table_SummaryPI[[#This Row],[Notes]],\"\")","v":""},{"$f":"IF(Table_SummaryPI[[#This Row],[Incentive_Customer]]<>\"\",Table_SummaryPI[[#This Row],[Incentive_Customer]],0)","v":0},{"$f":"IF(Table_SummaryPI[[#This Row],[MeasureCost]]<>\"\",Table_SummaryPI[[#This Row],[MeasureCost]],0)","v":0},{"$f":"IF(Table_SummaryPI[[#This Row],[kWhSavings]]<>\"\",Table_SummaryPI[[#This Row],[kWhSavings]],0)","v":0},{"$f":"IF(Table_SummaryPI[[#This Row],[DemandSavingskW]]<>\"\",Table_SummaryPI[[#This Row],[DemandSavingskW]],0)","v":0}]
[{"$f":"Table_SummaryPI[[#This Row],[Line No.]]","v":""},{"$f":"IF(Table_PrintPI[[#This Row],[Line No.]]=\"\",\"\",CONCATENATE(Table_PrintPI[[#This Row],[Line No.]],\" - \",Table_SummaryPI[[#This Row],[MeasureName]]))","v":""},{"$f":"IF(Table_SummaryPI[[#This Row],[Manufacturer]]<>\"\",CONCATENATE(Table_SummaryPI[[#This Row],[Manufacturer]],\"/\",Table_SummaryPI[[#This Row],[Model'#]]),\"\")","v":""},{"$f":"IF(Table_SummaryPI[[#This Row],[Serial'#]]<>\"\",Table_SummaryPI[[#This Row],[Serial'#]],\"\")","v":""},{"$f":"IF(Table_SummaryPI[[#This Row],[Quantity]]<>\"\",Table_SummaryPI[[#This Row],[Quantity]],\"\")","v":""},{"$f":"IF(Table_SummaryPI[[#This Row],[BaselinekWh]]<>\"\",Table_SummaryPI[[#This Row],[BaselinekWh]],\"\")","v":""},{"$f":"IF(Table_SummaryPI[[#This Row],[BaselinekW]]<>\"\",Table_SummaryPI[[#This Row],[BaselinekW]],\"\")","v":""},{"$f":"IF(Table_SummaryPI[[#This Row],[ProposedkWh]]<>\"\",Table_SummaryPI[[#This Row],[ProposedkWh]],\"\")","v":""},{"$f":"IF(Table_SummaryPI[[#This Row],[ProposedkW]]<>\"\",Table_SummaryPI[[#This Row],[ProposedkW]],\"\")","v":""},{"$f":"IF(Table_SummaryPI[[#This Row],[Notes]]<>\"\",Table_SummaryPI[[#This Row],[Notes]],\"\")","v":""},{"$f":"IF(Table_SummaryPI[[#This Row],[Incentive_Customer]]<>\"\",Table_SummaryPI[[#This Row],[Incentive_Customer]],0)","v":0},{"$f":"IF(Table_SummaryPI[[#This Row],[MeasureCost]]<>\"\",Table_SummaryPI[[#This Row],[MeasureCost]],0)","v":0},{"$f":"IF(Table_SummaryPI[[#This Row],[kWhSavings]]<>\"\",Table_SummaryPI[[#This Row],[kWhSavings]],0)","v":0},{"$f":"IF(Table_SummaryPI[[#This Row],[DemandSavingskW]]<>\"\",Table_SummaryPI[[#This Row],[DemandSavingskW]],0)","v":0}]
[{"$f":"Table_SummaryPI[[#This Row],[Line No.]]","v":""},{"$f":"IF(Table_PrintPI[[#This Row],[Line No.]]=\"\",\"\",CONCATENATE(Table_PrintPI[[#This Row],[Line No.]],\" - \",Table_SummaryPI[[#This Row],[MeasureName]]))","v":""},{"$f":"IF(Table_SummaryPI[[#This Row],[Manufacturer]]<>\"\",CONCATENATE(Table_SummaryPI[[#This Row],[Manufacturer]],\"/\",Table_SummaryPI[[#This Row],[Model'#]]),\"\")","v":""},{"$f":"IF(Table_SummaryPI[[#This Row],[Serial'#]]<>\"\",Table_SummaryPI[[#This Row],[Serial'#]],\"\")","v":""},{"$f":"IF(Table_SummaryPI[[#This Row],[Quantity]]<>\"\",Table_SummaryPI[[#This Row],[Quantity]],\"\")","v":""},{"$f":"IF(Table_SummaryPI[[#This Row],[BaselinekWh]]<>\"\",Table_SummaryPI[[#This Row],[BaselinekWh]],\"\")","v":""},{"$f":"IF(Table_SummaryPI[[#This Row],[BaselinekW]]<>\"\",Table_SummaryPI[[#This Row],[BaselinekW]],\"\")","v":""},{"$f":"IF(Table_SummaryPI[[#This Row],[ProposedkWh]]<>\"\",Table_SummaryPI[[#This Row],[ProposedkWh]],\"\")","v":""},{"$f":"IF(Table_SummaryPI[[#This Row],[ProposedkW]]<>\"\",Table_SummaryPI[[#This Row],[ProposedkW]],\"\")","v":""},{"$f":"IF(Table_SummaryPI[[#This Row],[Notes]]<>\"\",Table_SummaryPI[[#This Row],[Notes]],\"\")","v":""},{"$f":"IF(Table_SummaryPI[[#This Row],[Incentive_Customer]]<>\"\",Table_SummaryPI[[#This Row],[Incentive_Customer]],0)","v":0},{"$f":"IF(Table_SummaryPI[[#This Row],[MeasureCost]]<>\"\",Table_SummaryPI[[#This Row],[MeasureCost]],0)","v":0},{"$f":"IF(Table_SummaryPI[[#This Row],[kWhSavings]]<>\"\",Table_SummaryPI[[#This Row],[kWhSavings]],0)","v":0},{"$f":"IF(Table_SummaryPI[[#This Row],[DemandSavingskW]]<>\"\",Table_SummaryPI[[#This Row],[DemandSavingskW]],0)","v":0}]
[{"$f":"Table_SummaryPI[[#This Row],[Line No.]]","v":""},{"$f":"IF(Table_PrintPI[[#This Row],[Line No.]]=\"\",\"\",CONCATENATE(Table_PrintPI[[#This Row],[Line No.]],\" - \",Table_SummaryPI[[#This Row],[MeasureName]]))","v":""},{"$f":"IF(Table_SummaryPI[[#This Row],[Manufacturer]]<>\"\",CONCATENATE(Table_SummaryPI[[#This Row],[Manufacturer]],\"/\",Table_SummaryPI[[#This Row],[Model'#]]),\"\")","v":""},{"$f":"IF(Table_SummaryPI[[#This Row],[Serial'#]]<>\"\",Table_SummaryPI[[#This Row],[Serial'#]],\"\")","v":""},{"$f":"IF(Table_SummaryPI[[#This Row],[Quantity]]<>\"\",Table_SummaryPI[[#This Row],[Quantity]],\"\")","v":""},{"$f":"IF(Table_SummaryPI[[#This Row],[BaselinekWh]]<>\"\",Table_SummaryPI[[#This Row],[BaselinekWh]],\"\")","v":""},{"$f":"IF(Table_SummaryPI[[#This Row],[BaselinekW]]<>\"\",Table_SummaryPI[[#This Row],[BaselinekW]],\"\")","v":""},{"$f":"IF(Table_SummaryPI[[#This Row],[ProposedkWh]]<>\"\",Table_SummaryPI[[#This Row],[ProposedkWh]],\"\")","v":""},{"$f":"IF(Table_SummaryPI[[#This Row],[ProposedkW]]<>\"\",Table_SummaryPI[[#This Row],[ProposedkW]],\"\")","v":""},{"$f":"IF(Table_SummaryPI[[#This Row],[Notes]]<>\"\",Table_SummaryPI[[#This Row],[Notes]],\"\")","v":""},{"$f":"IF(Table_SummaryPI[[#This Row],[Incentive_Customer]]<>\"\",Table_SummaryPI[[#This Row],[Incentive_Customer]],0)","v":0},{"$f":"IF(Table_SummaryPI[[#This Row],[MeasureCost]]<>\"\",Table_SummaryPI[[#This Row],[MeasureCost]],0)","v":0},{"$f":"IF(Table_SummaryPI[[#This Row],[kWhSavings]]<>\"\",Table_SummaryPI[[#This Row],[kWhSavings]],0)","v":0},{"$f":"IF(Table_SummaryPI[[#This Row],[DemandSavingskW]]<>\"\",Table_SummaryPI[[#This Row],[DemandSavingskW]],0)","v":0}]
[{"$f":"Table_SummaryPI[[#This Row],[Line No.]]","v":""},{"$f":"IF(Table_PrintPI[[#This Row],[Line No.]]=\"\",\"\",CONCATENATE(Table_PrintPI[[#This Row],[Line No.]],\" - \",Table_SummaryPI[[#This Row],[MeasureName]]))","v":""},{"$f":"IF(Table_SummaryPI[[#This Row],[Manufacturer]]<>\"\",CONCATENATE(Table_SummaryPI[[#This Row],[Manufacturer]],\"/\",Table_SummaryPI[[#This Row],[Model'#]]),\"\")","v":""},{"$f":"IF(Table_SummaryPI[[#This Row],[Serial'#]]<>\"\",Table_SummaryPI[[#This Row],[Serial'#]],\"\")","v":""},{"$f":"IF(Table_SummaryPI[[#This Row],[Quantity]]<>\"\",Table_SummaryPI[[#This Row],[Quantity]],\"\")","v":""},{"$f":"IF(Table_SummaryPI[[#This Row],[BaselinekWh]]<>\"\",Table_SummaryPI[[#This Row],[BaselinekWh]],\"\")","v":""},{"$f":"IF(Table_SummaryPI[[#This Row],[BaselinekW]]<>\"\",Table_SummaryPI[[#This Row],[BaselinekW]],\"\")","v":""},{"$f":"IF(Table_SummaryPI[[#This Row],[ProposedkWh]]<>\"\",Table_SummaryPI[[#This Row],[ProposedkWh]],\"\")","v":""},{"$f":"IF(Table_SummaryPI[[#This Row],[ProposedkW]]<>\"\",Table_SummaryPI[[#This Row],[ProposedkW]],\"\")","v":""},{"$f":"IF(Table_SummaryPI[[#This Row],[Notes]]<>\"\",Table_SummaryPI[[#This Row],[Notes]],\"\")","v":""},{"$f":"IF(Table_SummaryPI[[#This Row],[Incentive_Customer]]<>\"\",Table_SummaryPI[[#This Row],[Incentive_Customer]],0)","v":0},{"$f":"IF(Table_SummaryPI[[#This Row],[MeasureCost]]<>\"\",Table_SummaryPI[[#This Row],[MeasureCost]],0)","v":0},{"$f":"IF(Table_SummaryPI[[#This Row],[kWhSavings]]<>\"\",Table_SummaryPI[[#This Row],[kWhSavings]],0)","v":0},{"$f":"IF(Table_SummaryPI[[#This Row],[DemandSavingskW]]<>\"\",Table_SummaryPI[[#This Row],[DemandSavingskW]],0)","v":0}]
[{"$f":"Table_SummaryPI[[#This Row],[Line No.]]","v":""},{"$f":"IF(Table_PrintPI[[#This Row],[Line No.]]=\"\",\"\",CONCATENATE(Table_PrintPI[[#This Row],[Line No.]],\" - \",Table_SummaryPI[[#This Row],[MeasureName]]))","v":""},{"$f":"IF(Table_SummaryPI[[#This Row],[Manufacturer]]<>\"\",CONCATENATE(Table_SummaryPI[[#This Row],[Manufacturer]],\"/\",Table_SummaryPI[[#This Row],[Model'#]]),\"\")","v":""},{"$f":"IF(Table_SummaryPI[[#This Row],[Serial'#]]<>\"\",Table_SummaryPI[[#This Row],[Serial'#]],\"\")","v":""},{"$f":"IF(Table_SummaryPI[[#This Row],[Quantity]]<>\"\",Table_SummaryPI[[#This Row],[Quantity]],\"\")","v":""},{"$f":"IF(Table_SummaryPI[[#This Row],[BaselinekWh]]<>\"\",Table_SummaryPI[[#This Row],[BaselinekWh]],\"\")","v":""},{"$f":"IF(Table_SummaryPI[[#This Row],[BaselinekW]]<>\"\",Table_SummaryPI[[#This Row],[BaselinekW]],\"\")","v":""},{"$f":"IF(Table_SummaryPI[[#This Row],[ProposedkWh]]<>\"\",Table_SummaryPI[[#This Row],[ProposedkWh]],\"\")","v":""},{"$f":"IF(Table_SummaryPI[[#This Row],[ProposedkW]]<>\"\",Table_SummaryPI[[#This Row],[ProposedkW]],\"\")","v":""},{"$f":"IF(Table_SummaryPI[[#This Row],[Notes]]<>\"\",Table_SummaryPI[[#This Row],[Notes]],\"\")","v":""},{"$f":"IF(Table_SummaryPI[[#This Row],[Incentive_Customer]]<>\"\",Table_SummaryPI[[#This Row],[Incentive_Customer]],0)","v":0},{"$f":"IF(Table_SummaryPI[[#This Row],[MeasureCost]]<>\"\",Table_SummaryPI[[#This Row],[MeasureCost]],0)","v":0},{"$f":"IF(Table_SummaryPI[[#This Row],[kWhSavings]]<>\"\",Table_SummaryPI[[#This Row],[kWhSavings]],0)","v":0},{"$f":"IF(Table_SummaryPI[[#This Row],[DemandSavingskW]]<>\"\",Table_SummaryPI[[#This Row],[DemandSavingskW]],0)","v":0}]
[{"$f":"Table_SummaryPI[[#This Row],[Line No.]]","v":""},{"$f":"IF(Table_PrintPI[[#This Row],[Line No.]]=\"\",\"\",CONCATENATE(Table_PrintPI[[#This Row],[Line No.]],\" - \",Table_SummaryPI[[#This Row],[MeasureName]]))","v":""},{"$f":"IF(Table_SummaryPI[[#This Row],[Manufacturer]]<>\"\",CONCATENATE(Table_SummaryPI[[#This Row],[Manufacturer]],\"/\",Table_SummaryPI[[#This Row],[Model'#]]),\"\")","v":""},{"$f":"IF(Table_SummaryPI[[#This Row],[Serial'#]]<>\"\",Table_SummaryPI[[#This Row],[Serial'#]],\"\")","v":""},{"$f":"IF(Table_SummaryPI[[#This Row],[Quantity]]<>\"\",Table_SummaryPI[[#This Row],[Quantity]],\"\")","v":""},{"$f":"IF(Table_SummaryPI[[#This Row],[BaselinekWh]]<>\"\",Table_SummaryPI[[#This Row],[BaselinekWh]],\"\")","v":""},{"$f":"IF(Table_SummaryPI[[#This Row],[BaselinekW]]<>\"\",Table_SummaryPI[[#This Row],[BaselinekW]],\"\")","v":""},{"$f":"IF(Table_SummaryPI[[#This Row],[ProposedkWh]]<>\"\",Table_SummaryPI[[#This Row],[ProposedkWh]],\"\")","v":""},{"$f":"IF(Table_SummaryPI[[#This Row],[ProposedkW]]<>\"\",Table_SummaryPI[[#This Row],[ProposedkW]],\"\")","v":""},{"$f":"IF(Table_SummaryPI[[#This Row],[Notes]]<>\"\",Table_SummaryPI[[#This Row],[Notes]],\"\")","v":""},{"$f":"IF(Table_SummaryPI[[#This Row],[Incentive_Customer]]<>\"\",Table_SummaryPI[[#This Row],[Incentive_Customer]],0)","v":0},{"$f":"IF(Table_SummaryPI[[#This Row],[MeasureCost]]<>\"\",Table_SummaryPI[[#This Row],[MeasureCost]],0)","v":0},{"$f":"IF(Table_SummaryPI[[#This Row],[kWhSavings]]<>\"\",Table_SummaryPI[[#This Row],[kWhSavings]],0)","v":0},{"$f":"IF(Table_SummaryPI[[#This Row],[DemandSavingskW]]<>\"\",Table_SummaryPI[[#This Row],[DemandSavingskW]],0)","v":0}]
[{"$f":"Table_SummaryPI[[#This Row],[Line No.]]","v":""},{"$f":"IF(Table_PrintPI[[#This Row],[Line No.]]=\"\",\"\",CONCATENATE(Table_PrintPI[[#This Row],[Line No.]],\" - \",Table_SummaryPI[[#This Row],[MeasureName]]))","v":""},{"$f":"IF(Table_SummaryPI[[#This Row],[Manufacturer]]<>\"\",CONCATENATE(Table_SummaryPI[[#This Row],[Manufacturer]],\"/\",Table_SummaryPI[[#This Row],[Model'#]]),\"\")","v":""},{"$f":"IF(Table_SummaryPI[[#This Row],[Serial'#]]<>\"\",Table_SummaryPI[[#This Row],[Serial'#]],\"\")","v":""},{"$f":"IF(Table_SummaryPI[[#This Row],[Quantity]]<>\"\",Table_SummaryPI[[#This Row],[Quantity]],\"\")","v":""},{"$f":"IF(Table_SummaryPI[[#This Row],[BaselinekWh]]<>\"\",Table_SummaryPI[[#This Row],[BaselinekWh]],\"\")","v":""},{"$f":"IF(Table_SummaryPI[[#This Row],[BaselinekW]]<>\"\",Table_SummaryPI[[#This Row],[BaselinekW]],\"\")","v":""},{"$f":"IF(Table_SummaryPI[[#This Row],[ProposedkWh]]<>\"\",Table_SummaryPI[[#This Row],[ProposedkWh]],\"\")","v":""},{"$f":"IF(Table_SummaryPI[[#This Row],[ProposedkW]]<>\"\",Table_SummaryPI[[#This Row],[ProposedkW]],\"\")","v":""},{"$f":"IF(Table_SummaryPI[[#This Row],[Notes]]<>\"\",Table_SummaryPI[[#This Row],[Notes]],\"\")","v":""},{"$f":"IF(Table_SummaryPI[[#This Row],[Incentive_Customer]]<>\"\",Table_SummaryPI[[#This Row],[Incentive_Customer]],0)","v":0},{"$f":"IF(Table_SummaryPI[[#This Row],[MeasureCost]]<>\"\",Table_SummaryPI[[#This Row],[MeasureCost]],0)","v":0},{"$f":"IF(Table_SummaryPI[[#This Row],[kWhSavings]]<>\"\",Table_SummaryPI[[#This Row],[kWhSavings]],0)","v":0},{"$f":"IF(Table_SummaryPI[[#This Row],[DemandSavingskW]]<>\"\",Table_SummaryPI[[#This Row],[DemandSavingskW]],0)","v":0}]
[{"$f":"Table_SummaryPI[[#This Row],[Line No.]]","v":""},{"$f":"IF(Table_PrintPI[[#This Row],[Line No.]]=\"\",\"\",CONCATENATE(Table_PrintPI[[#This Row],[Line No.]],\" - \",Table_SummaryPI[[#This Row],[MeasureName]]))","v":""},{"$f":"IF(Table_SummaryPI[[#This Row],[Manufacturer]]<>\"\",CONCATENATE(Table_SummaryPI[[#This Row],[Manufacturer]],\"/\",Table_SummaryPI[[#This Row],[Model'#]]),\"\")","v":""},{"$f":"IF(Table_SummaryPI[[#This Row],[Serial'#]]<>\"\",Table_SummaryPI[[#This Row],[Serial'#]],\"\")","v":""},{"$f":"IF(Table_SummaryPI[[#This Row],[Quantity]]<>\"\",Table_SummaryPI[[#This Row],[Quantity]],\"\")","v":""},{"$f":"IF(Table_SummaryPI[[#This Row],[BaselinekWh]]<>\"\",Table_SummaryPI[[#This Row],[BaselinekWh]],\"\")","v":""},{"$f":"IF(Table_SummaryPI[[#This Row],[BaselinekW]]<>\"\",Table_SummaryPI[[#This Row],[BaselinekW]],\"\")","v":""},{"$f":"IF(Table_SummaryPI[[#This Row],[ProposedkWh]]<>\"\",Table_SummaryPI[[#This Row],[ProposedkWh]],\"\")","v":""},{"$f":"IF(Table_SummaryPI[[#This Row],[ProposedkW]]<>\"\",Table_SummaryPI[[#This Row],[ProposedkW]],\"\")","v":""},{"$f":"IF(Table_SummaryPI[[#This Row],[Notes]]<>\"\",Table_SummaryPI[[#This Row],[Notes]],\"\")","v":""},{"$f":"IF(Table_SummaryPI[[#This Row],[Incentive_Customer]]<>\"\",Table_SummaryPI[[#This Row],[Incentive_Customer]],0)","v":0},{"$f":"IF(Table_SummaryPI[[#This Row],[MeasureCost]]<>\"\",Table_SummaryPI[[#This Row],[MeasureCost]],0)","v":0},{"$f":"IF(Table_SummaryPI[[#This Row],[kWhSavings]]<>\"\",Table_SummaryPI[[#This Row],[kWhSavings]],0)","v":0},{"$f":"IF(Table_SummaryPI[[#This Row],[DemandSavingskW]]<>\"\",Table_SummaryPI[[#This Row],[DemandSavingskW]],0)","v":0}]
[{"$f":"Table_SummaryPI[[#This Row],[Line No.]]","v":""},{"$f":"IF(Table_PrintPI[[#This Row],[Line No.]]=\"\",\"\",CONCATENATE(Table_PrintPI[[#This Row],[Line No.]],\" - \",Table_SummaryPI[[#This Row],[MeasureName]]))","v":""},{"$f":"IF(Table_SummaryPI[[#This Row],[Manufacturer]]<>\"\",CONCATENATE(Table_SummaryPI[[#This Row],[Manufacturer]],\"/\",Table_SummaryPI[[#This Row],[Model'#]]),\"\")","v":""},{"$f":"IF(Table_SummaryPI[[#This Row],[Serial'#]]<>\"\",Table_SummaryPI[[#This Row],[Serial'#]],\"\")","v":""},{"$f":"IF(Table_SummaryPI[[#This Row],[Quantity]]<>\"\",Table_SummaryPI[[#This Row],[Quantity]],\"\")","v":""},{"$f":"IF(Table_SummaryPI[[#This Row],[BaselinekWh]]<>\"\",Table_SummaryPI[[#This Row],[BaselinekWh]],\"\")","v":""},{"$f":"IF(Table_SummaryPI[[#This Row],[BaselinekW]]<>\"\",Table_SummaryPI[[#This Row],[BaselinekW]],\"\")","v":""},{"$f":"IF(Table_SummaryPI[[#This Row],[ProposedkWh]]<>\"\",Table_SummaryPI[[#This Row],[ProposedkWh]],\"\")","v":""},{"$f":"IF(Table_SummaryPI[[#This Row],[ProposedkW]]<>\"\",Table_SummaryPI[[#This Row],[ProposedkW]],\"\")","v":""},{"$f":"IF(Table_SummaryPI[[#This Row],[Notes]]<>\"\",Table_SummaryPI[[#This Row],[Notes]],\"\")","v":""},{"$f":"IF(Table_SummaryPI[[#This Row],[Incentive_Customer]]<>\"\",Table_SummaryPI[[#This Row],[Incentive_Customer]],0)","v":0},{"$f":"IF(Table_SummaryPI[[#This Row],[MeasureCost]]<>\"\",Table_SummaryPI[[#This Row],[MeasureCost]],0)","v":0},{"$f":"IF(Table_SummaryPI[[#This Row],[kWhSavings]]<>\"\",Table_SummaryPI[[#This Row],[kWhSavings]],0)","v":0},{"$f":"IF(Table_SummaryPI[[#This Row],[DemandSavingskW]]<>\"\",Table_SummaryPI[[#This Row],[DemandSavingskW]],0)","v":0}]
[{"$f":"Table_SummaryPI[[#This Row],[Line No.]]","v":""},{"$f":"IF(Table_PrintPI[[#This Row],[Line No.]]=\"\",\"\",CONCATENATE(Table_PrintPI[[#This Row],[Line No.]],\" - \",Table_SummaryPI[[#This Row],[MeasureName]]))","v":""},{"$f":"IF(Table_SummaryPI[[#This Row],[Manufacturer]]<>\"\",CONCATENATE(Table_SummaryPI[[#This Row],[Manufacturer]],\"/\",Table_SummaryPI[[#This Row],[Model'#]]),\"\")","v":""},{"$f":"IF(Table_SummaryPI[[#This Row],[Serial'#]]<>\"\",Table_SummaryPI[[#This Row],[Serial'#]],\"\")","v":""},{"$f":"IF(Table_SummaryPI[[#This Row],[Quantity]]<>\"\",Table_SummaryPI[[#This Row],[Quantity]],\"\")","v":""},{"$f":"IF(Table_SummaryPI[[#This Row],[BaselinekWh]]<>\"\",Table_SummaryPI[[#This Row],[BaselinekWh]],\"\")","v":""},{"$f":"IF(Table_SummaryPI[[#This Row],[BaselinekW]]<>\"\",Table_SummaryPI[[#This Row],[BaselinekW]],\"\")","v":""},{"$f":"IF(Table_SummaryPI[[#This Row],[ProposedkWh]]<>\"\",Table_SummaryPI[[#This Row],[ProposedkWh]],\"\")","v":""},{"$f":"IF(Table_SummaryPI[[#This Row],[ProposedkW]]<>\"\",Table_SummaryPI[[#This Row],[ProposedkW]],\"\")","v":""},{"$f":"IF(Table_SummaryPI[[#This Row],[Notes]]<>\"\",Table_SummaryPI[[#This Row],[Notes]],\"\")","v":""},{"$f":"IF(Table_SummaryPI[[#This Row],[Incentive_Customer]]<>\"\",Table_SummaryPI[[#This Row],[Incentive_Customer]],0)","v":0},{"$f":"IF(Table_SummaryPI[[#This Row],[MeasureCost]]<>\"\",Table_SummaryPI[[#This Row],[MeasureCost]],0)","v":0},{"$f":"IF(Table_SummaryPI[[#This Row],[kWhSavings]]<>\"\",Table_SummaryPI[[#This Row],[kWhSavings]],0)","v":0},{"$f":"IF(Table_SummaryPI[[#This Row],[DemandSavingskW]]<>\"\",Table_SummaryPI[[#This Row],[DemandSavingskW]],0)","v":0}]
[{"$f":"Table_SummaryPI[[#This Row],[Line No.]]","v":""},{"$f":"IF(Table_PrintPI[[#This Row],[Line No.]]=\"\",\"\",CONCATENATE(Table_PrintPI[[#This Row],[Line No.]],\" - \",Table_SummaryPI[[#This Row],[MeasureName]]))","v":""},{"$f":"IF(Table_SummaryPI[[#This Row],[Manufacturer]]<>\"\",CONCATENATE(Table_SummaryPI[[#This Row],[Manufacturer]],\"/\",Table_SummaryPI[[#This Row],[Model'#]]),\"\")","v":""},{"$f":"IF(Table_SummaryPI[[#This Row],[Serial'#]]<>\"\",Table_SummaryPI[[#This Row],[Serial'#]],\"\")","v":""},{"$f":"IF(Table_SummaryPI[[#This Row],[Quantity]]<>\"\",Table_SummaryPI[[#This Row],[Quantity]],\"\")","v":""},{"$f":"IF(Table_SummaryPI[[#This Row],[BaselinekWh]]<>\"\",Table_SummaryPI[[#This Row],[BaselinekWh]],\"\")","v":""},{"$f":"IF(Table_SummaryPI[[#This Row],[BaselinekW]]<>\"\",Table_SummaryPI[[#This Row],[BaselinekW]],\"\")","v":""},{"$f":"IF(Table_SummaryPI[[#This Row],[ProposedkWh]]<>\"\",Table_SummaryPI[[#This Row],[ProposedkWh]],\"\")","v":""},{"$f":"IF(Table_SummaryPI[[#This Row],[ProposedkW]]<>\"\",Table_SummaryPI[[#This Row],[ProposedkW]],\"\")","v":""},{"$f":"IF(Table_SummaryPI[[#This Row],[Notes]]<>\"\",Table_SummaryPI[[#This Row],[Notes]],\"\")","v":""},{"$f":"IF(Table_SummaryPI[[#This Row],[Incentive_Customer]]<>\"\",Table_SummaryPI[[#This Row],[Incentive_Customer]],0)","v":0},{"$f":"IF(Table_SummaryPI[[#This Row],[MeasureCost]]<>\"\",Table_SummaryPI[[#This Row],[MeasureCost]],0)","v":0},{"$f":"IF(Table_SummaryPI[[#This Row],[kWhSavings]]<>\"\",Table_SummaryPI[[#This Row],[kWhSavings]],0)","v":0},{"$f":"IF(Table_SummaryPI[[#This Row],[DemandSavingskW]]<>\"\",Table_SummaryPI[[#This Row],[DemandSavingskW]],0)","v":0}]
[{"$f":"Table_SummaryPI[[#This Row],[Line No.]]","v":""},{"$f":"IF(Table_PrintPI[[#This Row],[Line No.]]=\"\",\"\",CONCATENATE(Table_PrintPI[[#This Row],[Line No.]],\" - \",Table_SummaryPI[[#This Row],[MeasureName]]))","v":""},{"$f":"IF(Table_SummaryPI[[#This Row],[Manufacturer]]<>\"\",CONCATENATE(Table_SummaryPI[[#This Row],[Manufacturer]],\"/\",Table_SummaryPI[[#This Row],[Model'#]]),\"\")","v":""},{"$f":"IF(Table_SummaryPI[[#This Row],[Serial'#]]<>\"\",Table_SummaryPI[[#This Row],[Serial'#]],\"\")","v":""},{"$f":"IF(Table_SummaryPI[[#This Row],[Quantity]]<>\"\",Table_SummaryPI[[#This Row],[Quantity]],\"\")","v":""},{"$f":"IF(Table_SummaryPI[[#This Row],[BaselinekWh]]<>\"\",Table_SummaryPI[[#This Row],[BaselinekWh]],\"\")","v":""},{"$f":"IF(Table_SummaryPI[[#This Row],[BaselinekW]]<>\"\",Table_SummaryPI[[#This Row],[BaselinekW]],\"\")","v":""},{"$f":"IF(Table_SummaryPI[[#This Row],[ProposedkWh]]<>\"\",Table_SummaryPI[[#This Row],[ProposedkWh]],\"\")","v":""},{"$f":"IF(Table_SummaryPI[[#This Row],[ProposedkW]]<>\"\",Table_SummaryPI[[#This Row],[ProposedkW]],\"\")","v":""},{"$f":"IF(Table_SummaryPI[[#This Row],[Notes]]<>\"\",Table_SummaryPI[[#This Row],[Notes]],\"\")","v":""},{"$f":"IF(Table_SummaryPI[[#This Row],[Incentive_Customer]]<>\"\",Table_SummaryPI[[#This Row],[Incentive_Customer]],0)","v":0},{"$f":"IF(Table_SummaryPI[[#This Row],[MeasureCost]]<>\"\",Table_SummaryPI[[#This Row],[MeasureCost]],0)","v":0},{"$f":"IF(Table_SummaryPI[[#This Row],[kWhSavings]]<>\"\",Table_SummaryPI[[#This Row],[kWhSavings]],0)","v":0},{"$f":"IF(Table_SummaryPI[[#This Row],[DemandSavingskW]]<>\"\",Table_SummaryPI[[#This Row],[DemandSavingskW]],0)","v":0}]
[{"$f":"Table_SummaryPI[[#This Row],[Line No.]]","v":""},{"$f":"IF(Table_PrintPI[[#This Row],[Line No.]]=\"\",\"\",CONCATENATE(Table_PrintPI[[#This Row],[Line No.]],\" - \",Table_SummaryPI[[#This Row],[MeasureName]]))","v":""},{"$f":"IF(Table_SummaryPI[[#This Row],[Manufacturer]]<>\"\",CONCATENATE(Table_SummaryPI[[#This Row],[Manufacturer]],\"/\",Table_SummaryPI[[#This Row],[Model'#]]),\"\")","v":""},{"$f":"IF(Table_SummaryPI[[#This Row],[Serial'#]]<>\"\",Table_SummaryPI[[#This Row],[Serial'#]],\"\")","v":""},{"$f":"IF(Table_SummaryPI[[#This Row],[Quantity]]<>\"\",Table_SummaryPI[[#This Row],[Quantity]],\"\")","v":""},{"$f":"IF(Table_SummaryPI[[#This Row],[BaselinekWh]]<>\"\",Table_SummaryPI[[#This Row],[BaselinekWh]],\"\")","v":""},{"$f":"IF(Table_SummaryPI[[#This Row],[BaselinekW]]<>\"\",Table_SummaryPI[[#This Row],[BaselinekW]],\"\")","v":""},{"$f":"IF(Table_SummaryPI[[#This Row],[ProposedkWh]]<>\"\",Table_SummaryPI[[#This Row],[ProposedkWh]],\"\")","v":""},{"$f":"IF(Table_SummaryPI[[#This Row],[ProposedkW]]<>\"\",Table_SummaryPI[[#This Row],[ProposedkW]],\"\")","v":""},{"$f":"IF(Table_SummaryPI[[#This Row],[Notes]]<>\"\",Table_SummaryPI[[#This Row],[Notes]],\"\")","v":""},{"$f":"IF(Table_SummaryPI[[#This Row],[Incentive_Customer]]<>\"\",Table_SummaryPI[[#This Row],[Incentive_Customer]],0)","v":0},{"$f":"IF(Table_SummaryPI[[#This Row],[MeasureCost]]<>\"\",Table_SummaryPI[[#This Row],[MeasureCost]],0)","v":0},{"$f":"IF(Table_SummaryPI[[#This Row],[kWhSavings]]<>\"\",Table_SummaryPI[[#This Row],[kWhSavings]],0)","v":0},{"$f":"IF(Table_SummaryPI[[#This Row],[DemandSavingskW]]<>\"\",Table_SummaryPI[[#This Row],[DemandSavingskW]],0)","v":0}]
[{"$f":"Table_SummaryPI[[#This Row],[Line No.]]","v":""},{"$f":"IF(Table_PrintPI[[#This Row],[Line No.]]=\"\",\"\",CONCATENATE(Table_PrintPI[[#This Row],[Line No.]],\" - \",Table_SummaryPI[[#This Row],[MeasureName]]))","v":""},{"$f":"IF(Table_SummaryPI[[#This Row],[Manufacturer]]<>\"\",CONCATENATE(Table_SummaryPI[[#This Row],[Manufacturer]],\"/\",Table_SummaryPI[[#This Row],[Model'#]]),\"\")","v":""},{"$f":"IF(Table_SummaryPI[[#This Row],[Serial'#]]<>\"\",Table_SummaryPI[[#This Row],[Serial'#]],\"\")","v":""},{"$f":"IF(Table_SummaryPI[[#This Row],[Quantity]]<>\"\",Table_SummaryPI[[#This Row],[Quantity]],\"\")","v":""},{"$f":"IF(Table_SummaryPI[[#This Row],[BaselinekWh]]<>\"\",Table_SummaryPI[[#This Row],[BaselinekWh]],\"\")","v":""},{"$f":"IF(Table_SummaryPI[[#This Row],[BaselinekW]]<>\"\",Table_SummaryPI[[#This Row],[BaselinekW]],\"\")","v":""},{"$f":"IF(Table_SummaryPI[[#This Row],[ProposedkWh]]<>\"\",Table_SummaryPI[[#This Row],[ProposedkWh]],\"\")","v":""},{"$f":"IF(Table_SummaryPI[[#This Row],[ProposedkW]]<>\"\",Table_SummaryPI[[#This Row],[ProposedkW]],\"\")","v":""},{"$f":"IF(Table_SummaryPI[[#This Row],[Notes]]<>\"\",Table_SummaryPI[[#This Row],[Notes]],\"\")","v":""},{"$f":"IF(Table_SummaryPI[[#This Row],[Incentive_Customer]]<>\"\",Table_SummaryPI[[#This Row],[Incentive_Customer]],0)","v":0},{"$f":"IF(Table_SummaryPI[[#This Row],[MeasureCost]]<>\"\",Table_SummaryPI[[#This Row],[MeasureCost]],0)","v":0},{"$f":"IF(Table_SummaryPI[[#This Row],[kWhSavings]]<>\"\",Table_SummaryPI[[#This Row],[kWhSavings]],0)","v":0},{"$f":"IF(Table_SummaryPI[[#This Row],[DemandSavingskW]]<>\"\",Table_SummaryPI[[#This Row],[DemandSavingskW]],0)","v":0}]
[{"$f":"Table_SummaryPI[[#This Row],[Line No.]]","v":""},{"$f":"IF(Table_PrintPI[[#This Row],[Line No.]]=\"\",\"\",CONCATENATE(Table_PrintPI[[#This Row],[Line No.]],\" - \",Table_SummaryPI[[#This Row],[MeasureName]]))","v":""},{"$f":"IF(Table_SummaryPI[[#This Row],[Manufacturer]]<>\"\",CONCATENATE(Table_SummaryPI[[#This Row],[Manufacturer]],\"/\",Table_SummaryPI[[#This Row],[Model'#]]),\"\")","v":""},{"$f":"IF(Table_SummaryPI[[#This Row],[Serial'#]]<>\"\",Table_SummaryPI[[#This Row],[Serial'#]],\"\")","v":""},{"$f":"IF(Table_SummaryPI[[#This Row],[Quantity]]<>\"\",Table_SummaryPI[[#This Row],[Quantity]],\"\")","v":""},{"$f":"IF(Table_SummaryPI[[#This Row],[BaselinekWh]]<>\"\",Table_SummaryPI[[#This Row],[BaselinekWh]],\"\")","v":""},{"$f":"IF(Table_SummaryPI[[#This Row],[BaselinekW]]<>\"\",Table_SummaryPI[[#This Row],[BaselinekW]],\"\")","v":""},{"$f":"IF(Table_SummaryPI[[#This Row],[ProposedkWh]]<>\"\",Table_SummaryPI[[#This Row],[ProposedkWh]],\"\")","v":""},{"$f":"IF(Table_SummaryPI[[#This Row],[ProposedkW]]<>\"\",Table_SummaryPI[[#This Row],[ProposedkW]],\"\")","v":""},{"$f":"IF(Table_SummaryPI[[#This Row],[Notes]]<>\"\",Table_SummaryPI[[#This Row],[Notes]],\"\")","v":""},{"$f":"IF(Table_SummaryPI[[#This Row],[Incentive_Customer]]<>\"\",Table_SummaryPI[[#This Row],[Incentive_Customer]],0)","v":0},{"$f":"IF(Table_SummaryPI[[#This Row],[MeasureCost]]<>\"\",Table_SummaryPI[[#This Row],[MeasureCost]],0)","v":0},{"$f":"IF(Table_SummaryPI[[#This Row],[kWhSavings]]<>\"\",Table_SummaryPI[[#This Row],[kWhSavings]],0)","v":0},{"$f":"IF(Table_SummaryPI[[#This Row],[DemandSavingskW]]<>\"\",Table_SummaryPI[[#This Row],[DemandSavingskW]],0)","v":0}]
[{"$f":"Table_SummaryPI[[#This Row],[Line No.]]","v":""},{"$f":"IF(Table_PrintPI[[#This Row],[Line No.]]=\"\",\"\",CONCATENATE(Table_PrintPI[[#This Row],[Line No.]],\" - \",Table_SummaryPI[[#This Row],[MeasureName]]))","v":""},{"$f":"IF(Table_SummaryPI[[#This Row],[Manufacturer]]<>\"\",CONCATENATE(Table_SummaryPI[[#This Row],[Manufacturer]],\"/\",Table_SummaryPI[[#This Row],[Model'#]]),\"\")","v":""},{"$f":"IF(Table_SummaryPI[[#This Row],[Serial'#]]<>\"\",Table_SummaryPI[[#This Row],[Serial'#]],\"\")","v":""},{"$f":"IF(Table_SummaryPI[[#This Row],[Quantity]]<>\"\",Table_SummaryPI[[#This Row],[Quantity]],\"\")","v":""},{"$f":"IF(Table_SummaryPI[[#This Row],[BaselinekWh]]<>\"\",Table_SummaryPI[[#This Row],[BaselinekWh]],\"\")","v":""},{"$f":"IF(Table_SummaryPI[[#This Row],[BaselinekW]]<>\"\",Table_SummaryPI[[#This Row],[BaselinekW]],\"\")","v":""},{"$f":"IF(Table_SummaryPI[[#This Row],[ProposedkWh]]<>\"\",Table_SummaryPI[[#This Row],[ProposedkWh]],\"\")","v":""},{"$f":"IF(Table_SummaryPI[[#This Row],[ProposedkW]]<>\"\",Table_SummaryPI[[#This Row],[ProposedkW]],\"\")","v":""},{"$f":"IF(Table_SummaryPI[[#This Row],[Notes]]<>\"\",Table_SummaryPI[[#This Row],[Notes]],\"\")","v":""},{"$f":"IF(Table_SummaryPI[[#This Row],[Incentive_Customer]]<>\"\",Table_SummaryPI[[#This Row],[Incentive_Customer]],0)","v":0},{"$f":"IF(Table_SummaryPI[[#This Row],[MeasureCost]]<>\"\",Table_SummaryPI[[#This Row],[MeasureCost]],0)","v":0},{"$f":"IF(Table_SummaryPI[[#This Row],[kWhSavings]]<>\"\",Table_SummaryPI[[#This Row],[kWhSavings]],0)","v":0},{"$f":"IF(Table_SummaryPI[[#This Row],[DemandSavingskW]]<>\"\",Table_SummaryPI[[#This Row],[DemandSavingskW]],0)","v":0}]
[{"$f":"Table_SummaryPI[[#This Row],[Line No.]]","v":""},{"$f":"IF(Table_PrintPI[[#This Row],[Line No.]]=\"\",\"\",CONCATENATE(Table_PrintPI[[#This Row],[Line No.]],\" - \",Table_SummaryPI[[#This Row],[MeasureName]]))","v":""},{"$f":"IF(Table_SummaryPI[[#This Row],[Manufacturer]]<>\"\",CONCATENATE(Table_SummaryPI[[#This Row],[Manufacturer]],\"/\",Table_SummaryPI[[#This Row],[Model'#]]),\"\")","v":""},{"$f":"IF(Table_SummaryPI[[#This Row],[Serial'#]]<>\"\",Table_SummaryPI[[#This Row],[Serial'#]],\"\")","v":""},{"$f":"IF(Table_SummaryPI[[#This Row],[Quantity]]<>\"\",Table_SummaryPI[[#This Row],[Quantity]],\"\")","v":""},{"$f":"IF(Table_SummaryPI[[#This Row],[BaselinekWh]]<>\"\",Table_SummaryPI[[#This Row],[BaselinekWh]],\"\")","v":""},{"$f":"IF(Table_SummaryPI[[#This Row],[BaselinekW]]<>\"\",Table_SummaryPI[[#This Row],[BaselinekW]],\"\")","v":""},{"$f":"IF(Table_SummaryPI[[#This Row],[ProposedkWh]]<>\"\",Table_SummaryPI[[#This Row],[ProposedkWh]],\"\")","v":""},{"$f":"IF(Table_SummaryPI[[#This Row],[ProposedkW]]<>\"\",Table_SummaryPI[[#This Row],[ProposedkW]],\"\")","v":""},{"$f":"IF(Table_SummaryPI[[#This Row],[Notes]]<>\"\",Table_SummaryPI[[#This Row],[Notes]],\"\")","v":""},{"$f":"IF(Table_SummaryPI[[#This Row],[Incentive_Customer]]<>\"\",Table_SummaryPI[[#This Row],[Incentive_Customer]],0)","v":0},{"$f":"IF(Table_SummaryPI[[#This Row],[MeasureCost]]<>\"\",Table_SummaryPI[[#This Row],[MeasureCost]],0)","v":0},{"$f":"IF(Table_SummaryPI[[#This Row],[kWhSavings]]<>\"\",Table_SummaryPI[[#This Row],[kWhSavings]],0)","v":0},{"$f":"IF(Table_SummaryPI[[#This Row],[DemandSavingskW]]<>\"\",Table_SummaryPI[[#This Row],[DemandSavingskW]],0)","v":0}]
[{"$f":"Table_SummaryPI[[#This Row],[Line No.]]","v":""},{"$f":"IF(Table_PrintPI[[#This Row],[Line No.]]=\"\",\"\",CONCATENATE(Table_PrintPI[[#This Row],[Line No.]],\" - \",Table_SummaryPI[[#This Row],[MeasureName]]))","v":""},{"$f":"IF(Table_SummaryPI[[#This Row],[Manufacturer]]<>\"\",CONCATENATE(Table_SummaryPI[[#This Row],[Manufacturer]],\"/\",Table_SummaryPI[[#This Row],[Model'#]]),\"\")","v":""},{"$f":"IF(Table_SummaryPI[[#This Row],[Serial'#]]<>\"\",Table_SummaryPI[[#This Row],[Serial'#]],\"\")","v":""},{"$f":"IF(Table_SummaryPI[[#This Row],[Quantity]]<>\"\",Table_SummaryPI[[#This Row],[Quantity]],\"\")","v":""},{"$f":"IF(Table_SummaryPI[[#This Row],[BaselinekWh]]<>\"\",Table_SummaryPI[[#This Row],[BaselinekWh]],\"\")","v":""},{"$f":"IF(Table_SummaryPI[[#This Row],[BaselinekW]]<>\"\",Table_SummaryPI[[#This Row],[BaselinekW]],\"\")","v":""},{"$f":"IF(Table_SummaryPI[[#This Row],[ProposedkWh]]<>\"\",Table_SummaryPI[[#This Row],[ProposedkWh]],\"\")","v":""},{"$f":"IF(Table_SummaryPI[[#This Row],[ProposedkW]]<>\"\",Table_SummaryPI[[#This Row],[ProposedkW]],\"\")","v":""},{"$f":"IF(Table_SummaryPI[[#This Row],[Notes]]<>\"\",Table_SummaryPI[[#This Row],[Notes]],\"\")","v":""},{"$f":"IF(Table_SummaryPI[[#This Row],[Incentive_Customer]]<>\"\",Table_SummaryPI[[#This Row],[Incentive_Customer]],0)","v":0},{"$f":"IF(Table_SummaryPI[[#This Row],[MeasureCost]]<>\"\",Table_SummaryPI[[#This Row],[MeasureCost]],0)","v":0},{"$f":"IF(Table_SummaryPI[[#This Row],[kWhSavings]]<>\"\",Table_SummaryPI[[#This Row],[kWhSavings]],0)","v":0},{"$f":"IF(Table_SummaryPI[[#This Row],[DemandSavingskW]]<>\"\",Table_SummaryPI[[#This Row],[DemandSavingskW]],0)","v":0}]
[{"$f":"Table_SummaryPI[[#This Row],[Line No.]]","v":""},{"$f":"IF(Table_PrintPI[[#This Row],[Line No.]]=\"\",\"\",CONCATENATE(Table_PrintPI[[#This Row],[Line No.]],\" - \",Table_SummaryPI[[#This Row],[MeasureName]]))","v":""},{"$f":"IF(Table_SummaryPI[[#This Row],[Manufacturer]]<>\"\",CONCATENATE(Table_SummaryPI[[#This Row],[Manufacturer]],\"/\",Table_SummaryPI[[#This Row],[Model'#]]),\"\")","v":""},{"$f":"IF(Table_SummaryPI[[#This Row],[Serial'#]]<>\"\",Table_SummaryPI[[#This Row],[Serial'#]],\"\")","v":""},{"$f":"IF(Table_SummaryPI[[#This Row],[Quantity]]<>\"\",Table_SummaryPI[[#This Row],[Quantity]],\"\")","v":""},{"$f":"IF(Table_SummaryPI[[#This Row],[BaselinekWh]]<>\"\",Table_SummaryPI[[#This Row],[BaselinekWh]],\"\")","v":""},{"$f":"IF(Table_SummaryPI[[#This Row],[BaselinekW]]<>\"\",Table_SummaryPI[[#This Row],[BaselinekW]],\"\")","v":""},{"$f":"IF(Table_SummaryPI[[#This Row],[ProposedkWh]]<>\"\",Table_SummaryPI[[#This Row],[ProposedkWh]],\"\")","v":""},{"$f":"IF(Table_SummaryPI[[#This Row],[ProposedkW]]<>\"\",Table_SummaryPI[[#This Row],[ProposedkW]],\"\")","v":""},{"$f":"IF(Table_SummaryPI[[#This Row],[Notes]]<>\"\",Table_SummaryPI[[#This Row],[Notes]],\"\")","v":""},{"$f":"IF(Table_SummaryPI[[#This Row],[Incentive_Customer]]<>\"\",Table_SummaryPI[[#This Row],[Incentive_Customer]],0)","v":0},{"$f":"IF(Table_SummaryPI[[#This Row],[MeasureCost]]<>\"\",Table_SummaryPI[[#This Row],[MeasureCost]],0)","v":0},{"$f":"IF(Table_SummaryPI[[#This Row],[kWhSavings]]<>\"\",Table_SummaryPI[[#This Row],[kWhSavings]],0)","v":0},{"$f":"IF(Table_SummaryPI[[#This Row],[DemandSavingskW]]<>\"\",Table_SummaryPI[[#This Row],[DemandSavingskW]],0)","v":0}]
[{"$f":"Table_SummaryPI[[#This Row],[Line No.]]","v":""},{"$f":"IF(Table_PrintPI[[#This Row],[Line No.]]=\"\",\"\",CONCATENATE(Table_PrintPI[[#This Row],[Line No.]],\" - \",Table_SummaryPI[[#This Row],[MeasureName]]))","v":""},{"$f":"IF(Table_SummaryPI[[#This Row],[Manufacturer]]<>\"\",CONCATENATE(Table_SummaryPI[[#This Row],[Manufacturer]],\"/\",Table_SummaryPI[[#This Row],[Model'#]]),\"\")","v":""},{"$f":"IF(Table_SummaryPI[[#This Row],[Serial'#]]<>\"\",Table_SummaryPI[[#This Row],[Serial'#]],\"\")","v":""},{"$f":"IF(Table_SummaryPI[[#This Row],[Quantity]]<>\"\",Table_SummaryPI[[#This Row],[Quantity]],\"\")","v":""},{"$f":"IF(Table_SummaryPI[[#This Row],[BaselinekWh]]<>\"\",Table_SummaryPI[[#This Row],[BaselinekWh]],\"\")","v":""},{"$f":"IF(Table_SummaryPI[[#This Row],[BaselinekW]]<>\"\",Table_SummaryPI[[#This Row],[BaselinekW]],\"\")","v":""},{"$f":"IF(Table_SummaryPI[[#This Row],[ProposedkWh]]<>\"\",Table_SummaryPI[[#This Row],[ProposedkWh]],\"\")","v":""},{"$f":"IF(Table_SummaryPI[[#This Row],[ProposedkW]]<>\"\",Table_SummaryPI[[#This Row],[ProposedkW]],\"\")","v":""},{"$f":"IF(Table_SummaryPI[[#This Row],[Notes]]<>\"\",Table_SummaryPI[[#This Row],[Notes]],\"\")","v":""},{"$f":"IF(Table_SummaryPI[[#This Row],[Incentive_Customer]]<>\"\",Table_SummaryPI[[#This Row],[Incentive_Customer]],0)","v":0},{"$f":"IF(Table_SummaryPI[[#This Row],[MeasureCost]]<>\"\",Table_SummaryPI[[#This Row],[MeasureCost]],0)","v":0},{"$f":"IF(Table_SummaryPI[[#This Row],[kWhSavings]]<>\"\",Table_SummaryPI[[#This Row],[kWhSavings]],0)","v":0},{"$f":"IF(Table_SummaryPI[[#This Row],[DemandSavingskW]]<>\"\",Table_SummaryPI[[#This Row],[DemandSavingskW]],0)","v":0}]
[{"$f":"Table_SummaryPI[[#This Row],[Line No.]]","v":""},{"$f":"IF(Table_PrintPI[[#This Row],[Line No.]]=\"\",\"\",CONCATENATE(Table_PrintPI[[#This Row],[Line No.]],\" - \",Table_SummaryPI[[#This Row],[MeasureName]]))","v":""},{"$f":"IF(Table_SummaryPI[[#This Row],[Manufacturer]]<>\"\",CONCATENATE(Table_SummaryPI[[#This Row],[Manufacturer]],\"/\",Table_SummaryPI[[#This Row],[Model'#]]),\"\")","v":""},{"$f":"IF(Table_SummaryPI[[#This Row],[Serial'#]]<>\"\",Table_SummaryPI[[#This Row],[Serial'#]],\"\")","v":""},{"$f":"IF(Table_SummaryPI[[#This Row],[Quantity]]<>\"\",Table_SummaryPI[[#This Row],[Quantity]],\"\")","v":""},{"$f":"IF(Table_SummaryPI[[#This Row],[BaselinekWh]]<>\"\",Table_SummaryPI[[#This Row],[BaselinekWh]],\"\")","v":""},{"$f":"IF(Table_SummaryPI[[#This Row],[BaselinekW]]<>\"\",Table_SummaryPI[[#This Row],[BaselinekW]],\"\")","v":""},{"$f":"IF(Table_SummaryPI[[#This Row],[ProposedkWh]]<>\"\",Table_SummaryPI[[#This Row],[ProposedkWh]],\"\")","v":""},{"$f":"IF(Table_SummaryPI[[#This Row],[ProposedkW]]<>\"\",Table_SummaryPI[[#This Row],[ProposedkW]],\"\")","v":""},{"$f":"IF(Table_SummaryPI[[#This Row],[Notes]]<>\"\",Table_SummaryPI[[#This Row],[Notes]],\"\")","v":""},{"$f":"IF(Table_SummaryPI[[#This Row],[Incentive_Customer]]<>\"\",Table_SummaryPI[[#This Row],[Incentive_Customer]],0)","v":0},{"$f":"IF(Table_SummaryPI[[#This Row],[MeasureCost]]<>\"\",Table_SummaryPI[[#This Row],[MeasureCost]],0)","v":0},{"$f":"IF(Table_SummaryPI[[#This Row],[kWhSavings]]<>\"\",Table_SummaryPI[[#This Row],[kWhSavings]],0)","v":0},{"$f":"IF(Table_SummaryPI[[#This Row],[DemandSavingskW]]<>\"\",Table_SummaryPI[[#This Row],[DemandSavingskW]],0)","v":0}]
[{"$f":"Table_SummaryPI[[#This Row],[Line No.]]","v":""},{"$f":"IF(Table_PrintPI[[#This Row],[Line No.]]=\"\",\"\",CONCATENATE(Table_PrintPI[[#This Row],[Line No.]],\" - \",Table_SummaryPI[[#This Row],[MeasureName]]))","v":""},{"$f":"IF(Table_SummaryPI[[#This Row],[Manufacturer]]<>\"\",CONCATENATE(Table_SummaryPI[[#This Row],[Manufacturer]],\"/\",Table_SummaryPI[[#This Row],[Model'#]]),\"\")","v":""},{"$f":"IF(Table_SummaryPI[[#This Row],[Serial'#]]<>\"\",Table_SummaryPI[[#This Row],[Serial'#]],\"\")","v":""},{"$f":"IF(Table_SummaryPI[[#This Row],[Quantity]]<>\"\",Table_SummaryPI[[#This Row],[Quantity]],\"\")","v":""},{"$f":"IF(Table_SummaryPI[[#This Row],[BaselinekWh]]<>\"\",Table_SummaryPI[[#This Row],[BaselinekWh]],\"\")","v":""},{"$f":"IF(Table_SummaryPI[[#This Row],[BaselinekW]]<>\"\",Table_SummaryPI[[#This Row],[BaselinekW]],\"\")","v":""},{"$f":"IF(Table_SummaryPI[[#This Row],[ProposedkWh]]<>\"\",Table_SummaryPI[[#This Row],[ProposedkWh]],\"\")","v":""},{"$f":"IF(Table_SummaryPI[[#This Row],[ProposedkW]]<>\"\",Table_SummaryPI[[#This Row],[ProposedkW]],\"\")","v":""},{"$f":"IF(Table_SummaryPI[[#This Row],[Notes]]<>\"\",Table_SummaryPI[[#This Row],[Notes]],\"\")","v":""},{"$f":"IF(Table_SummaryPI[[#This Row],[Incentive_Customer]]<>\"\",Table_SummaryPI[[#This Row],[Incentive_Customer]],0)","v":0},{"$f":"IF(Table_SummaryPI[[#This Row],[MeasureCost]]<>\"\",Table_SummaryPI[[#This Row],[MeasureCost]],0)","v":0},{"$f":"IF(Table_SummaryPI[[#This Row],[kWhSavings]]<>\"\",Table_SummaryPI[[#This Row],[kWhSavings]],0)","v":0},{"$f":"IF(Table_SummaryPI[[#This Row],[DemandSavingskW]]<>\"\",Table_SummaryPI[[#This Row],[DemandSavingskW]],0)","v":0}]
[{"$f":"Table_SummaryPI[[#This Row],[Line No.]]","v":""},{"$f":"IF(Table_PrintPI[[#This Row],[Line No.]]=\"\",\"\",CONCATENATE(Table_PrintPI[[#This Row],[Line No.]],\" - \",Table_SummaryPI[[#This Row],[MeasureName]]))","v":""},{"$f":"IF(Table_SummaryPI[[#This Row],[Manufacturer]]<>\"\",CONCATENATE(Table_SummaryPI[[#This Row],[Manufacturer]],\"/\",Table_SummaryPI[[#This Row],[Model'#]]),\"\")","v":""},{"$f":"IF(Table_SummaryPI[[#This Row],[Serial'#]]<>\"\",Table_SummaryPI[[#This Row],[Serial'#]],\"\")","v":""},{"$f":"IF(Table_SummaryPI[[#This Row],[Quantity]]<>\"\",Table_SummaryPI[[#This Row],[Quantity]],\"\")","v":""},{"$f":"IF(Table_SummaryPI[[#This Row],[BaselinekWh]]<>\"\",Table_SummaryPI[[#This Row],[BaselinekWh]],\"\")","v":""},{"$f":"IF(Table_SummaryPI[[#This Row],[BaselinekW]]<>\"\",Table_SummaryPI[[#This Row],[BaselinekW]],\"\")","v":""},{"$f":"IF(Table_SummaryPI[[#This Row],[ProposedkWh]]<>\"\",Table_SummaryPI[[#This Row],[ProposedkWh]],\"\")","v":""},{"$f":"IF(Table_SummaryPI[[#This Row],[ProposedkW]]<>\"\",Table_SummaryPI[[#This Row],[ProposedkW]],\"\")","v":""},{"$f":"IF(Table_SummaryPI[[#This Row],[Notes]]<>\"\",Table_SummaryPI[[#This Row],[Notes]],\"\")","v":""},{"$f":"IF(Table_SummaryPI[[#This Row],[Incentive_Customer]]<>\"\",Table_SummaryPI[[#This Row],[Incentive_Customer]],0)","v":0},{"$f":"IF(Table_SummaryPI[[#This Row],[MeasureCost]]<>\"\",Table_SummaryPI[[#This Row],[MeasureCost]],0)","v":0},{"$f":"IF(Table_SummaryPI[[#This Row],[kWhSavings]]<>\"\",Table_SummaryPI[[#This Row],[kWhSavings]],0)","v":0},{"$f":"IF(Table_SummaryPI[[#This Row],[DemandSavingskW]]<>\"\",Table_SummaryPI[[#This Row],[DemandSavingskW]],0)","v":0}]
[{"$f":"Table_SummaryPI[[#This Row],[Line No.]]","v":""},{"$f":"IF(Table_PrintPI[[#This Row],[Line No.]]=\"\",\"\",CONCATENATE(Table_PrintPI[[#This Row],[Line No.]],\" - \",Table_SummaryPI[[#This Row],[MeasureName]]))","v":""},{"$f":"IF(Table_SummaryPI[[#This Row],[Manufacturer]]<>\"\",CONCATENATE(Table_SummaryPI[[#This Row],[Manufacturer]],\"/\",Table_SummaryPI[[#This Row],[Model'#]]),\"\")","v":""},{"$f":"IF(Table_SummaryPI[[#This Row],[Serial'#]]<>\"\",Table_SummaryPI[[#This Row],[Serial'#]],\"\")","v":""},{"$f":"IF(Table_SummaryPI[[#This Row],[Quantity]]<>\"\",Table_SummaryPI[[#This Row],[Quantity]],\"\")","v":""},{"$f":"IF(Table_SummaryPI[[#This Row],[BaselinekWh]]<>\"\",Table_SummaryPI[[#This Row],[BaselinekWh]],\"\")","v":""},{"$f":"IF(Table_SummaryPI[[#This Row],[BaselinekW]]<>\"\",Table_SummaryPI[[#This Row],[BaselinekW]],\"\")","v":""},{"$f":"IF(Table_SummaryPI[[#This Row],[ProposedkWh]]<>\"\",Table_SummaryPI[[#This Row],[ProposedkWh]],\"\")","v":""},{"$f":"IF(Table_SummaryPI[[#This Row],[ProposedkW]]<>\"\",Table_SummaryPI[[#This Row],[ProposedkW]],\"\")","v":""},{"$f":"IF(Table_SummaryPI[[#This Row],[Notes]]<>\"\",Table_SummaryPI[[#This Row],[Notes]],\"\")","v":""},{"$f":"IF(Table_SummaryPI[[#This Row],[Incentive_Customer]]<>\"\",Table_SummaryPI[[#This Row],[Incentive_Customer]],0)","v":0},{"$f":"IF(Table_SummaryPI[[#This Row],[MeasureCost]]<>\"\",Table_SummaryPI[[#This Row],[MeasureCost]],0)","v":0},{"$f":"IF(Table_SummaryPI[[#This Row],[kWhSavings]]<>\"\",Table_SummaryPI[[#This Row],[kWhSavings]],0)","v":0},{"$f":"IF(Table_SummaryPI[[#This Row],[DemandSavingskW]]<>\"\",Table_SummaryPI[[#This Row],[DemandSavingskW]],0)","v":0}]
[{"$f":"Table_SummaryPI[[#This Row],[Line No.]]","v":""},{"$f":"IF(Table_PrintPI[[#This Row],[Line No.]]=\"\",\"\",CONCATENATE(Table_PrintPI[[#This Row],[Line No.]],\" - \",Table_SummaryPI[[#This Row],[MeasureName]]))","v":""},{"$f":"IF(Table_SummaryPI[[#This Row],[Manufacturer]]<>\"\",CONCATENATE(Table_SummaryPI[[#This Row],[Manufacturer]],\"/\",Table_SummaryPI[[#This Row],[Model'#]]),\"\")","v":""},{"$f":"IF(Table_SummaryPI[[#This Row],[Serial'#]]<>\"\",Table_SummaryPI[[#This Row],[Serial'#]],\"\")","v":""},{"$f":"IF(Table_SummaryPI[[#This Row],[Quantity]]<>\"\",Table_SummaryPI[[#This Row],[Quantity]],\"\")","v":""},{"$f":"IF(Table_SummaryPI[[#This Row],[BaselinekWh]]<>\"\",Table_SummaryPI[[#This Row],[BaselinekWh]],\"\")","v":""},{"$f":"IF(Table_SummaryPI[[#This Row],[BaselinekW]]<>\"\",Table_SummaryPI[[#This Row],[BaselinekW]],\"\")","v":""},{"$f":"IF(Table_SummaryPI[[#This Row],[ProposedkWh]]<>\"\",Table_SummaryPI[[#This Row],[ProposedkWh]],\"\")","v":""},{"$f":"IF(Table_SummaryPI[[#This Row],[ProposedkW]]<>\"\",Table_SummaryPI[[#This Row],[ProposedkW]],\"\")","v":""},{"$f":"IF(Table_SummaryPI[[#This Row],[Notes]]<>\"\",Table_SummaryPI[[#This Row],[Notes]],\"\")","v":""},{"$f":"IF(Table_SummaryPI[[#This Row],[Incentive_Customer]]<>\"\",Table_SummaryPI[[#This Row],[Incentive_Customer]],0)","v":0},{"$f":"IF(Table_SummaryPI[[#This Row],[MeasureCost]]<>\"\",Table_SummaryPI[[#This Row],[MeasureCost]],0)","v":0},{"$f":"IF(Table_SummaryPI[[#This Row],[kWhSavings]]<>\"\",Table_SummaryPI[[#This Row],[kWhSavings]],0)","v":0},{"$f":"IF(Table_SummaryPI[[#This Row],[DemandSavingskW]]<>\"\",Table_SummaryPI[[#This Row],[DemandSavingskW]],0)","v":0}]
[{"$f":"Table_SummaryPI[[#This Row],[Line No.]]","v":""},{"$f":"IF(Table_PrintPI[[#This Row],[Line No.]]=\"\",\"\",CONCATENATE(Table_PrintPI[[#This Row],[Line No.]],\" - \",Table_SummaryPI[[#This Row],[MeasureName]]))","v":""},{"$f":"IF(Table_SummaryPI[[#This Row],[Manufacturer]]<>\"\",CONCATENATE(Table_SummaryPI[[#This Row],[Manufacturer]],\"/\",Table_SummaryPI[[#This Row],[Model'#]]),\"\")","v":""},{"$f":"IF(Table_SummaryPI[[#This Row],[Serial'#]]<>\"\",Table_SummaryPI[[#This Row],[Serial'#]],\"\")","v":""},{"$f":"IF(Table_SummaryPI[[#This Row],[Quantity]]<>\"\",Table_SummaryPI[[#This Row],[Quantity]],\"\")","v":""},{"$f":"IF(Table_SummaryPI[[#This Row],[BaselinekWh]]<>\"\",Table_SummaryPI[[#This Row],[BaselinekWh]],\"\")","v":""},{"$f":"IF(Table_SummaryPI[[#This Row],[BaselinekW]]<>\"\",Table_SummaryPI[[#This Row],[BaselinekW]],\"\")","v":""},{"$f":"IF(Table_SummaryPI[[#This Row],[ProposedkWh]]<>\"\",Table_SummaryPI[[#This Row],[ProposedkWh]],\"\")","v":""},{"$f":"IF(Table_SummaryPI[[#This Row],[ProposedkW]]<>\"\",Table_SummaryPI[[#This Row],[ProposedkW]],\"\")","v":""},{"$f":"IF(Table_SummaryPI[[#This Row],[Notes]]<>\"\",Table_SummaryPI[[#This Row],[Notes]],\"\")","v":""},{"$f":"IF(Table_SummaryPI[[#This Row],[Incentive_Customer]]<>\"\",Table_SummaryPI[[#This Row],[Incentive_Customer]],0)","v":0},{"$f":"IF(Table_SummaryPI[[#This Row],[MeasureCost]]<>\"\",Table_SummaryPI[[#This Row],[MeasureCost]],0)","v":0},{"$f":"IF(Table_SummaryPI[[#This Row],[kWhSavings]]<>\"\",Table_SummaryPI[[#This Row],[kWhSavings]],0)","v":0},{"$f":"IF(Table_SummaryPI[[#This Row],[DemandSavingskW]]<>\"\",Table_SummaryPI[[#This Row],[DemandSavingskW]],0)","v":0}]
[{"$f":"Table_SummaryPI[[#This Row],[Line No.]]","v":""},{"$f":"IF(Table_PrintPI[[#This Row],[Line No.]]=\"\",\"\",CONCATENATE(Table_PrintPI[[#This Row],[Line No.]],\" - \",Table_SummaryPI[[#This Row],[MeasureName]]))","v":""},{"$f":"IF(Table_SummaryPI[[#This Row],[Manufacturer]]<>\"\",CONCATENATE(Table_SummaryPI[[#This Row],[Manufacturer]],\"/\",Table_SummaryPI[[#This Row],[Model'#]]),\"\")","v":""},{"$f":"IF(Table_SummaryPI[[#This Row],[Serial'#]]<>\"\",Table_SummaryPI[[#This Row],[Serial'#]],\"\")","v":""},{"$f":"IF(Table_SummaryPI[[#This Row],[Quantity]]<>\"\",Table_SummaryPI[[#This Row],[Quantity]],\"\")","v":""},{"$f":"IF(Table_SummaryPI[[#This Row],[BaselinekWh]]<>\"\",Table_SummaryPI[[#This Row],[BaselinekWh]],\"\")","v":""},{"$f":"IF(Table_SummaryPI[[#This Row],[BaselinekW]]<>\"\",Table_SummaryPI[[#This Row],[BaselinekW]],\"\")","v":""},{"$f":"IF(Table_SummaryPI[[#This Row],[ProposedkWh]]<>\"\",Table_SummaryPI[[#This Row],[ProposedkWh]],\"\")","v":""},{"$f":"IF(Table_SummaryPI[[#This Row],[ProposedkW]]<>\"\",Table_SummaryPI[[#This Row],[ProposedkW]],\"\")","v":""},{"$f":"IF(Table_SummaryPI[[#This Row],[Notes]]<>\"\",Table_SummaryPI[[#This Row],[Notes]],\"\")","v":""},{"$f":"IF(Table_SummaryPI[[#This Row],[Incentive_Customer]]<>\"\",Table_SummaryPI[[#This Row],[Incentive_Customer]],0)","v":0},{"$f":"IF(Table_SummaryPI[[#This Row],[MeasureCost]]<>\"\",Table_SummaryPI[[#This Row],[MeasureCost]],0)","v":0},{"$f":"IF(Table_SummaryPI[[#This Row],[kWhSavings]]<>\"\",Table_SummaryPI[[#This Row],[kWhSavings]],0)","v":0},{"$f":"IF(Table_SummaryPI[[#This Row],[DemandSavingskW]]<>\"\",Table_SummaryPI[[#This Row],[DemandSavingskW]],0)","v":0}]
[{"$f":"Table_SummaryPI[[#This Row],[Line No.]]","v":""},{"$f":"IF(Table_PrintPI[[#This Row],[Line No.]]=\"\",\"\",CONCATENATE(Table_PrintPI[[#This Row],[Line No.]],\" - \",Table_SummaryPI[[#This Row],[MeasureName]]))","v":""},{"$f":"IF(Table_SummaryPI[[#This Row],[Manufacturer]]<>\"\",CONCATENATE(Table_SummaryPI[[#This Row],[Manufacturer]],\"/\",Table_SummaryPI[[#This Row],[Model'#]]),\"\")","v":""},{"$f":"IF(Table_SummaryPI[[#This Row],[Serial'#]]<>\"\",Table_SummaryPI[[#This Row],[Serial'#]],\"\")","v":""},{"$f":"IF(Table_SummaryPI[[#This Row],[Quantity]]<>\"\",Table_SummaryPI[[#This Row],[Quantity]],\"\")","v":""},{"$f":"IF(Table_SummaryPI[[#This Row],[BaselinekWh]]<>\"\",Table_SummaryPI[[#This Row],[BaselinekWh]],\"\")","v":""},{"$f":"IF(Table_SummaryPI[[#This Row],[BaselinekW]]<>\"\",Table_SummaryPI[[#This Row],[BaselinekW]],\"\")","v":""},{"$f":"IF(Table_SummaryPI[[#This Row],[ProposedkWh]]<>\"\",Table_SummaryPI[[#This Row],[ProposedkWh]],\"\")","v":""},{"$f":"IF(Table_SummaryPI[[#This Row],[ProposedkW]]<>\"\",Table_SummaryPI[[#This Row],[ProposedkW]],\"\")","v":""},{"$f":"IF(Table_SummaryPI[[#This Row],[Notes]]<>\"\",Table_SummaryPI[[#This Row],[Notes]],\"\")","v":""},{"$f":"IF(Table_SummaryPI[[#This Row],[Incentive_Customer]]<>\"\",Table_SummaryPI[[#This Row],[Incentive_Customer]],0)","v":0},{"$f":"IF(Table_SummaryPI[[#This Row],[MeasureCost]]<>\"\",Table_SummaryPI[[#This Row],[MeasureCost]],0)","v":0},{"$f":"IF(Table_SummaryPI[[#This Row],[kWhSavings]]<>\"\",Table_SummaryPI[[#This Row],[kWhSavings]],0)","v":0},{"$f":"IF(Table_SummaryPI[[#This Row],[DemandSavingskW]]<>\"\",Table_SummaryPI[[#This Row],[DemandSavingskW]],0)","v":0}]
[{"$f":"Table_SummaryPI[[#This Row],[Line No.]]","v":""},{"$f":"IF(Table_PrintPI[[#This Row],[Line No.]]=\"\",\"\",CONCATENATE(Table_PrintPI[[#This Row],[Line No.]],\" - \",Table_SummaryPI[[#This Row],[MeasureName]]))","v":""},{"$f":"IF(Table_SummaryPI[[#This Row],[Manufacturer]]<>\"\",CONCATENATE(Table_SummaryPI[[#This Row],[Manufacturer]],\"/\",Table_SummaryPI[[#This Row],[Model'#]]),\"\")","v":""},{"$f":"IF(Table_SummaryPI[[#This Row],[Serial'#]]<>\"\",Table_SummaryPI[[#This Row],[Serial'#]],\"\")","v":""},{"$f":"IF(Table_SummaryPI[[#This Row],[Quantity]]<>\"\",Table_SummaryPI[[#This Row],[Quantity]],\"\")","v":""},{"$f":"IF(Table_SummaryPI[[#This Row],[BaselinekWh]]<>\"\",Table_SummaryPI[[#This Row],[BaselinekWh]],\"\")","v":""},{"$f":"IF(Table_SummaryPI[[#This Row],[BaselinekW]]<>\"\",Table_SummaryPI[[#This Row],[BaselinekW]],\"\")","v":""},{"$f":"IF(Table_SummaryPI[[#This Row],[ProposedkWh]]<>\"\",Table_SummaryPI[[#This Row],[ProposedkWh]],\"\")","v":""},{"$f":"IF(Table_SummaryPI[[#This Row],[ProposedkW]]<>\"\",Table_SummaryPI[[#This Row],[ProposedkW]],\"\")","v":""},{"$f":"IF(Table_SummaryPI[[#This Row],[Notes]]<>\"\",Table_SummaryPI[[#This Row],[Notes]],\"\")","v":""},{"$f":"IF(Table_SummaryPI[[#This Row],[Incentive_Customer]]<>\"\",Table_SummaryPI[[#This Row],[Incentive_Customer]],0)","v":0},{"$f":"IF(Table_SummaryPI[[#This Row],[MeasureCost]]<>\"\",Table_SummaryPI[[#This Row],[MeasureCost]],0)","v":0},{"$f":"IF(Table_SummaryPI[[#This Row],[kWhSavings]]<>\"\",Table_SummaryPI[[#This Row],[kWhSavings]],0)","v":0},{"$f":"IF(Table_SummaryPI[[#This Row],[DemandSavingskW]]<>\"\",Table_SummaryPI[[#This Row],[DemandSavingskW]],0)","v":0}]
[{"$f":"Table_SummaryPI[[#This Row],[Line No.]]","v":""},{"$f":"IF(Table_PrintPI[[#This Row],[Line No.]]=\"\",\"\",CONCATENATE(Table_PrintPI[[#This Row],[Line No.]],\" - \",Table_SummaryPI[[#This Row],[MeasureName]]))","v":""},{"$f":"IF(Table_SummaryPI[[#This Row],[Manufacturer]]<>\"\",CONCATENATE(Table_SummaryPI[[#This Row],[Manufacturer]],\"/\",Table_SummaryPI[[#This Row],[Model'#]]),\"\")","v":""},{"$f":"IF(Table_SummaryPI[[#This Row],[Serial'#]]<>\"\",Table_SummaryPI[[#This Row],[Serial'#]],\"\")","v":""},{"$f":"IF(Table_SummaryPI[[#This Row],[Quantity]]<>\"\",Table_SummaryPI[[#This Row],[Quantity]],\"\")","v":""},{"$f":"IF(Table_SummaryPI[[#This Row],[BaselinekWh]]<>\"\",Table_SummaryPI[[#This Row],[BaselinekWh]],\"\")","v":""},{"$f":"IF(Table_SummaryPI[[#This Row],[BaselinekW]]<>\"\",Table_SummaryPI[[#This Row],[BaselinekW]],\"\")","v":""},{"$f":"IF(Table_SummaryPI[[#This Row],[ProposedkWh]]<>\"\",Table_SummaryPI[[#This Row],[ProposedkWh]],\"\")","v":""},{"$f":"IF(Table_SummaryPI[[#This Row],[ProposedkW]]<>\"\",Table_SummaryPI[[#This Row],[ProposedkW]],\"\")","v":""},{"$f":"IF(Table_SummaryPI[[#This Row],[Notes]]<>\"\",Table_SummaryPI[[#This Row],[Notes]],\"\")","v":""},{"$f":"IF(Table_SummaryPI[[#This Row],[Incentive_Customer]]<>\"\",Table_SummaryPI[[#This Row],[Incentive_Customer]],0)","v":0},{"$f":"IF(Table_SummaryPI[[#This Row],[MeasureCost]]<>\"\",Table_SummaryPI[[#This Row],[MeasureCost]],0)","v":0},{"$f":"IF(Table_SummaryPI[[#This Row],[kWhSavings]]<>\"\",Table_SummaryPI[[#This Row],[kWhSavings]],0)","v":0},{"$f":"IF(Table_SummaryPI[[#This Row],[DemandSavingskW]]<>\"\",Table_SummaryPI[[#This Row],[DemandSavingskW]],0)","v":0}]
[{"$f":"Table_SummaryPI[[#This Row],[Line No.]]","v":""},{"$f":"IF(Table_PrintPI[[#This Row],[Line No.]]=\"\",\"\",CONCATENATE(Table_PrintPI[[#This Row],[Line No.]],\" - \",Table_SummaryPI[[#This Row],[MeasureName]]))","v":""},{"$f":"IF(Table_SummaryPI[[#This Row],[Manufacturer]]<>\"\",CONCATENATE(Table_SummaryPI[[#This Row],[Manufacturer]],\"/\",Table_SummaryPI[[#This Row],[Model'#]]),\"\")","v":""},{"$f":"IF(Table_SummaryPI[[#This Row],[Serial'#]]<>\"\",Table_SummaryPI[[#This Row],[Serial'#]],\"\")","v":""},{"$f":"IF(Table_SummaryPI[[#This Row],[Quantity]]<>\"\",Table_SummaryPI[[#This Row],[Quantity]],\"\")","v":""},{"$f":"IF(Table_SummaryPI[[#This Row],[BaselinekWh]]<>\"\",Table_SummaryPI[[#This Row],[BaselinekWh]],\"\")","v":""},{"$f":"IF(Table_SummaryPI[[#This Row],[BaselinekW]]<>\"\",Table_SummaryPI[[#This Row],[BaselinekW]],\"\")","v":""},{"$f":"IF(Table_SummaryPI[[#This Row],[ProposedkWh]]<>\"\",Table_SummaryPI[[#This Row],[ProposedkWh]],\"\")","v":""},{"$f":"IF(Table_SummaryPI[[#This Row],[ProposedkW]]<>\"\",Table_SummaryPI[[#This Row],[ProposedkW]],\"\")","v":""},{"$f":"IF(Table_SummaryPI[[#This Row],[Notes]]<>\"\",Table_SummaryPI[[#This Row],[Notes]],\"\")","v":""},{"$f":"IF(Table_SummaryPI[[#This Row],[Incentive_Customer]]<>\"\",Table_SummaryPI[[#This Row],[Incentive_Customer]],0)","v":0},{"$f":"IF(Table_SummaryPI[[#This Row],[MeasureCost]]<>\"\",Table_SummaryPI[[#This Row],[MeasureCost]],0)","v":0},{"$f":"IF(Table_SummaryPI[[#This Row],[kWhSavings]]<>\"\",Table_SummaryPI[[#This Row],[kWhSavings]],0)","v":0},{"$f":"IF(Table_SummaryPI[[#This Row],[DemandSavingskW]]<>\"\",Table_SummaryPI[[#This Row],[DemandSavingskW]],0)","v":0}]
[{"$f":"Table_SummaryPI[[#This Row],[Line No.]]","v":""},{"$f":"IF(Table_PrintPI[[#This Row],[Line No.]]=\"\",\"\",CONCATENATE(Table_PrintPI[[#This Row],[Line No.]],\" - \",Table_SummaryPI[[#This Row],[MeasureName]]))","v":""},{"$f":"IF(Table_SummaryPI[[#This Row],[Manufacturer]]<>\"\",CONCATENATE(Table_SummaryPI[[#This Row],[Manufacturer]],\"/\",Table_SummaryPI[[#This Row],[Model'#]]),\"\")","v":""},{"$f":"IF(Table_SummaryPI[[#This Row],[Serial'#]]<>\"\",Table_SummaryPI[[#This Row],[Serial'#]],\"\")","v":""},{"$f":"IF(Table_SummaryPI[[#This Row],[Quantity]]<>\"\",Table_SummaryPI[[#This Row],[Quantity]],\"\")","v":""},{"$f":"IF(Table_SummaryPI[[#This Row],[BaselinekWh]]<>\"\",Table_SummaryPI[[#This Row],[BaselinekWh]],\"\")","v":""},{"$f":"IF(Table_SummaryPI[[#This Row],[BaselinekW]]<>\"\",Table_SummaryPI[[#This Row],[BaselinekW]],\"\")","v":""},{"$f":"IF(Table_SummaryPI[[#This Row],[ProposedkWh]]<>\"\",Table_SummaryPI[[#This Row],[ProposedkWh]],\"\")","v":""},{"$f":"IF(Table_SummaryPI[[#This Row],[ProposedkW]]<>\"\",Table_SummaryPI[[#This Row],[ProposedkW]],\"\")","v":""},{"$f":"IF(Table_SummaryPI[[#This Row],[Notes]]<>\"\",Table_SummaryPI[[#This Row],[Notes]],\"\")","v":""},{"$f":"IF(Table_SummaryPI[[#This Row],[Incentive_Customer]]<>\"\",Table_SummaryPI[[#This Row],[Incentive_Customer]],0)","v":0},{"$f":"IF(Table_SummaryPI[[#This Row],[MeasureCost]]<>\"\",Table_SummaryPI[[#This Row],[MeasureCost]],0)","v":0},{"$f":"IF(Table_SummaryPI[[#This Row],[kWhSavings]]<>\"\",Table_SummaryPI[[#This Row],[kWhSavings]],0)","v":0},{"$f":"IF(Table_SummaryPI[[#This Row],[DemandSavingskW]]<>\"\",Table_SummaryPI[[#This Row],[DemandSavingskW]],0)","v":0}]
[{"$f":"Table_SummaryPI[[#This Row],[Line No.]]","v":""},{"$f":"IF(Table_PrintPI[[#This Row],[Line No.]]=\"\",\"\",CONCATENATE(Table_PrintPI[[#This Row],[Line No.]],\" - \",Table_SummaryPI[[#This Row],[MeasureName]]))","v":""},{"$f":"IF(Table_SummaryPI[[#This Row],[Manufacturer]]<>\"\",CONCATENATE(Table_SummaryPI[[#This Row],[Manufacturer]],\"/\",Table_SummaryPI[[#This Row],[Model'#]]),\"\")","v":""},{"$f":"IF(Table_SummaryPI[[#This Row],[Serial'#]]<>\"\",Table_SummaryPI[[#This Row],[Serial'#]],\"\")","v":""},{"$f":"IF(Table_SummaryPI[[#This Row],[Quantity]]<>\"\",Table_SummaryPI[[#This Row],[Quantity]],\"\")","v":""},{"$f":"IF(Table_SummaryPI[[#This Row],[BaselinekWh]]<>\"\",Table_SummaryPI[[#This Row],[BaselinekWh]],\"\")","v":""},{"$f":"IF(Table_SummaryPI[[#This Row],[BaselinekW]]<>\"\",Table_SummaryPI[[#This Row],[BaselinekW]],\"\")","v":""},{"$f":"IF(Table_SummaryPI[[#This Row],[ProposedkWh]]<>\"\",Table_SummaryPI[[#This Row],[ProposedkWh]],\"\")","v":""},{"$f":"IF(Table_SummaryPI[[#This Row],[ProposedkW]]<>\"\",Table_SummaryPI[[#This Row],[ProposedkW]],\"\")","v":""},{"$f":"IF(Table_SummaryPI[[#This Row],[Notes]]<>\"\",Table_SummaryPI[[#This Row],[Notes]],\"\")","v":""},{"$f":"IF(Table_SummaryPI[[#This Row],[Incentive_Customer]]<>\"\",Table_SummaryPI[[#This Row],[Incentive_Customer]],0)","v":0},{"$f":"IF(Table_SummaryPI[[#This Row],[MeasureCost]]<>\"\",Table_SummaryPI[[#This Row],[MeasureCost]],0)","v":0},{"$f":"IF(Table_SummaryPI[[#This Row],[kWhSavings]]<>\"\",Table_SummaryPI[[#This Row],[kWhSavings]],0)","v":0},{"$f":"IF(Table_SummaryPI[[#This Row],[DemandSavingskW]]<>\"\",Table_SummaryPI[[#This Row],[DemandSavingskW]],0)","v":0}]
[{"$f":"Table_SummaryPI[[#This Row],[Line No.]]","v":""},{"$f":"IF(Table_PrintPI[[#This Row],[Line No.]]=\"\",\"\",CONCATENATE(Table_PrintPI[[#This Row],[Line No.]],\" - \",Table_SummaryPI[[#This Row],[MeasureName]]))","v":""},{"$f":"IF(Table_SummaryPI[[#This Row],[Manufacturer]]<>\"\",CONCATENATE(Table_SummaryPI[[#This Row],[Manufacturer]],\"/\",Table_SummaryPI[[#This Row],[Model'#]]),\"\")","v":""},{"$f":"IF(Table_SummaryPI[[#This Row],[Serial'#]]<>\"\",Table_SummaryPI[[#This Row],[Serial'#]],\"\")","v":""},{"$f":"IF(Table_SummaryPI[[#This Row],[Quantity]]<>\"\",Table_SummaryPI[[#This Row],[Quantity]],\"\")","v":""},{"$f":"IF(Table_SummaryPI[[#This Row],[BaselinekWh]]<>\"\",Table_SummaryPI[[#This Row],[BaselinekWh]],\"\")","v":""},{"$f":"IF(Table_SummaryPI[[#This Row],[BaselinekW]]<>\"\",Table_SummaryPI[[#This Row],[BaselinekW]],\"\")","v":""},{"$f":"IF(Table_SummaryPI[[#This Row],[ProposedkWh]]<>\"\",Table_SummaryPI[[#This Row],[ProposedkWh]],\"\")","v":""},{"$f":"IF(Table_SummaryPI[[#This Row],[ProposedkW]]<>\"\",Table_SummaryPI[[#This Row],[ProposedkW]],\"\")","v":""},{"$f":"IF(Table_SummaryPI[[#This Row],[Notes]]<>\"\",Table_SummaryPI[[#This Row],[Notes]],\"\")","v":""},{"$f":"IF(Table_SummaryPI[[#This Row],[Incentive_Customer]]<>\"\",Table_SummaryPI[[#This Row],[Incentive_Customer]],0)","v":0},{"$f":"IF(Table_SummaryPI[[#This Row],[MeasureCost]]<>\"\",Table_SummaryPI[[#This Row],[MeasureCost]],0)","v":0},{"$f":"IF(Table_SummaryPI[[#This Row],[kWhSavings]]<>\"\",Table_SummaryPI[[#This Row],[kWhSavings]],0)","v":0},{"$f":"IF(Table_SummaryPI[[#This Row],[DemandSavingskW]]<>\"\",Table_SummaryPI[[#This Row],[DemandSavingskW]],0)","v":0}]
[{"$f":"Table_SummaryPI[[#This Row],[Line No.]]","v":""},{"$f":"IF(Table_PrintPI[[#This Row],[Line No.]]=\"\",\"\",CONCATENATE(Table_PrintPI[[#This Row],[Line No.]],\" - \",Table_SummaryPI[[#This Row],[MeasureName]]))","v":""},{"$f":"IF(Table_SummaryPI[[#This Row],[Manufacturer]]<>\"\",CONCATENATE(Table_SummaryPI[[#This Row],[Manufacturer]],\"/\",Table_SummaryPI[[#This Row],[Model'#]]),\"\")","v":""},{"$f":"IF(Table_SummaryPI[[#This Row],[Serial'#]]<>\"\",Table_SummaryPI[[#This Row],[Serial'#]],\"\")","v":""},{"$f":"IF(Table_SummaryPI[[#This Row],[Quantity]]<>\"\",Table_SummaryPI[[#This Row],[Quantity]],\"\")","v":""},{"$f":"IF(Table_SummaryPI[[#This Row],[BaselinekWh]]<>\"\",Table_SummaryPI[[#This Row],[BaselinekWh]],\"\")","v":""},{"$f":"IF(Table_SummaryPI[[#This Row],[BaselinekW]]<>\"\",Table_SummaryPI[[#This Row],[BaselinekW]],\"\")","v":""},{"$f":"IF(Table_SummaryPI[[#This Row],[ProposedkWh]]<>\"\",Table_SummaryPI[[#This Row],[ProposedkWh]],\"\")","v":""},{"$f":"IF(Table_SummaryPI[[#This Row],[ProposedkW]]<>\"\",Table_SummaryPI[[#This Row],[ProposedkW]],\"\")","v":""},{"$f":"IF(Table_SummaryPI[[#This Row],[Notes]]<>\"\",Table_SummaryPI[[#This Row],[Notes]],\"\")","v":""},{"$f":"IF(Table_SummaryPI[[#This Row],[Incentive_Customer]]<>\"\",Table_SummaryPI[[#This Row],[Incentive_Customer]],0)","v":0},{"$f":"IF(Table_SummaryPI[[#This Row],[MeasureCost]]<>\"\",Table_SummaryPI[[#This Row],[MeasureCost]],0)","v":0},{"$f":"IF(Table_SummaryPI[[#This Row],[kWhSavings]]<>\"\",Table_SummaryPI[[#This Row],[kWhSavings]],0)","v":0},{"$f":"IF(Table_SummaryPI[[#This Row],[DemandSavingskW]]<>\"\",Table_SummaryPI[[#This Row],[DemandSavingskW]],0)","v":0}]
[{"$f":"Table_SummaryPI[[#This Row],[Line No.]]","v":""},{"$f":"IF(Table_PrintPI[[#This Row],[Line No.]]=\"\",\"\",CONCATENATE(Table_PrintPI[[#This Row],[Line No.]],\" - \",Table_SummaryPI[[#This Row],[MeasureName]]))","v":""},{"$f":"IF(Table_SummaryPI[[#This Row],[Manufacturer]]<>\"\",CONCATENATE(Table_SummaryPI[[#This Row],[Manufacturer]],\"/\",Table_SummaryPI[[#This Row],[Model'#]]),\"\")","v":""},{"$f":"IF(Table_SummaryPI[[#This Row],[Serial'#]]<>\"\",Table_SummaryPI[[#This Row],[Serial'#]],\"\")","v":""},{"$f":"IF(Table_SummaryPI[[#This Row],[Quantity]]<>\"\",Table_SummaryPI[[#This Row],[Quantity]],\"\")","v":""},{"$f":"IF(Table_SummaryPI[[#This Row],[BaselinekWh]]<>\"\",Table_SummaryPI[[#This Row],[BaselinekWh]],\"\")","v":""},{"$f":"IF(Table_SummaryPI[[#This Row],[BaselinekW]]<>\"\",Table_SummaryPI[[#This Row],[BaselinekW]],\"\")","v":""},{"$f":"IF(Table_SummaryPI[[#This Row],[ProposedkWh]]<>\"\",Table_SummaryPI[[#This Row],[ProposedkWh]],\"\")","v":""},{"$f":"IF(Table_SummaryPI[[#This Row],[ProposedkW]]<>\"\",Table_SummaryPI[[#This Row],[ProposedkW]],\"\")","v":""},{"$f":"IF(Table_SummaryPI[[#This Row],[Notes]]<>\"\",Table_SummaryPI[[#This Row],[Notes]],\"\")","v":""},{"$f":"IF(Table_SummaryPI[[#This Row],[Incentive_Customer]]<>\"\",Table_SummaryPI[[#This Row],[Incentive_Customer]],0)","v":0},{"$f":"IF(Table_SummaryPI[[#This Row],[MeasureCost]]<>\"\",Table_SummaryPI[[#This Row],[MeasureCost]],0)","v":0},{"$f":"IF(Table_SummaryPI[[#This Row],[kWhSavings]]<>\"\",Table_SummaryPI[[#This Row],[kWhSavings]],0)","v":0},{"$f":"IF(Table_SummaryPI[[#This Row],[DemandSavingskW]]<>\"\",Table_SummaryPI[[#This Row],[DemandSavingskW]],0)","v":0}]
[{"$f":"Table_SummaryPI[[#This Row],[Line No.]]","v":""},{"$f":"IF(Table_PrintPI[[#This Row],[Line No.]]=\"\",\"\",CONCATENATE(Table_PrintPI[[#This Row],[Line No.]],\" - \",Table_SummaryPI[[#This Row],[MeasureName]]))","v":""},{"$f":"IF(Table_SummaryPI[[#This Row],[Manufacturer]]<>\"\",CONCATENATE(Table_SummaryPI[[#This Row],[Manufacturer]],\"/\",Table_SummaryPI[[#This Row],[Model'#]]),\"\")","v":""},{"$f":"IF(Table_SummaryPI[[#This Row],[Serial'#]]<>\"\",Table_SummaryPI[[#This Row],[Serial'#]],\"\")","v":""},{"$f":"IF(Table_SummaryPI[[#This Row],[Quantity]]<>\"\",Table_SummaryPI[[#This Row],[Quantity]],\"\")","v":""},{"$f":"IF(Table_SummaryPI[[#This Row],[BaselinekWh]]<>\"\",Table_SummaryPI[[#This Row],[BaselinekWh]],\"\")","v":""},{"$f":"IF(Table_SummaryPI[[#This Row],[BaselinekW]]<>\"\",Table_SummaryPI[[#This Row],[BaselinekW]],\"\")","v":""},{"$f":"IF(Table_SummaryPI[[#This Row],[ProposedkWh]]<>\"\",Table_SummaryPI[[#This Row],[ProposedkWh]],\"\")","v":""},{"$f":"IF(Table_SummaryPI[[#This Row],[ProposedkW]]<>\"\",Table_SummaryPI[[#This Row],[ProposedkW]],\"\")","v":""},{"$f":"IF(Table_SummaryPI[[#This Row],[Notes]]<>\"\",Table_SummaryPI[[#This Row],[Notes]],\"\")","v":""},{"$f":"IF(Table_SummaryPI[[#This Row],[Incentive_Customer]]<>\"\",Table_SummaryPI[[#This Row],[Incentive_Customer]],0)","v":0},{"$f":"IF(Table_SummaryPI[[#This Row],[MeasureCost]]<>\"\",Table_SummaryPI[[#This Row],[MeasureCost]],0)","v":0},{"$f":"IF(Table_SummaryPI[[#This Row],[kWhSavings]]<>\"\",Table_SummaryPI[[#This Row],[kWhSavings]],0)","v":0},{"$f":"IF(Table_SummaryPI[[#This Row],[DemandSavingskW]]<>\"\",Table_SummaryPI[[#This Row],[DemandSavingskW]],0)","v":0}]
[{"$f":"Table_SummaryPI[[#This Row],[Line No.]]","v":""},{"$f":"IF(Table_PrintPI[[#This Row],[Line No.]]=\"\",\"\",CONCATENATE(Table_PrintPI[[#This Row],[Line No.]],\" - \",Table_SummaryPI[[#This Row],[MeasureName]]))","v":""},{"$f":"IF(Table_SummaryPI[[#This Row],[Manufacturer]]<>\"\",CONCATENATE(Table_SummaryPI[[#This Row],[Manufacturer]],\"/\",Table_SummaryPI[[#This Row],[Model'#]]),\"\")","v":""},{"$f":"IF(Table_SummaryPI[[#This Row],[Serial'#]]<>\"\",Table_SummaryPI[[#This Row],[Serial'#]],\"\")","v":""},{"$f":"IF(Table_SummaryPI[[#This Row],[Quantity]]<>\"\",Table_SummaryPI[[#This Row],[Quantity]],\"\")","v":""},{"$f":"IF(Table_SummaryPI[[#This Row],[BaselinekWh]]<>\"\",Table_SummaryPI[[#This Row],[BaselinekWh]],\"\")","v":""},{"$f":"IF(Table_SummaryPI[[#This Row],[BaselinekW]]<>\"\",Table_SummaryPI[[#This Row],[BaselinekW]],\"\")","v":""},{"$f":"IF(Table_SummaryPI[[#This Row],[ProposedkWh]]<>\"\",Table_SummaryPI[[#This Row],[ProposedkWh]],\"\")","v":""},{"$f":"IF(Table_SummaryPI[[#This Row],[ProposedkW]]<>\"\",Table_SummaryPI[[#This Row],[ProposedkW]],\"\")","v":""},{"$f":"IF(Table_SummaryPI[[#This Row],[Notes]]<>\"\",Table_SummaryPI[[#This Row],[Notes]],\"\")","v":""},{"$f":"IF(Table_SummaryPI[[#This Row],[Incentive_Customer]]<>\"\",Table_SummaryPI[[#This Row],[Incentive_Customer]],0)","v":0},{"$f":"IF(Table_SummaryPI[[#This Row],[MeasureCost]]<>\"\",Table_SummaryPI[[#This Row],[MeasureCost]],0)","v":0},{"$f":"IF(Table_SummaryPI[[#This Row],[kWhSavings]]<>\"\",Table_SummaryPI[[#This Row],[kWhSavings]],0)","v":0},{"$f":"IF(Table_SummaryPI[[#This Row],[DemandSavingskW]]<>\"\",Table_SummaryPI[[#This Row],[DemandSavingskW]],0)","v":0}]
[{"$f":"Table_SummaryPI[[#This Row],[Line No.]]","v":""},{"$f":"IF(Table_PrintPI[[#This Row],[Line No.]]=\"\",\"\",CONCATENATE(Table_PrintPI[[#This Row],[Line No.]],\" - \",Table_SummaryPI[[#This Row],[MeasureName]]))","v":""},{"$f":"IF(Table_SummaryPI[[#This Row],[Manufacturer]]<>\"\",CONCATENATE(Table_SummaryPI[[#This Row],[Manufacturer]],\"/\",Table_SummaryPI[[#This Row],[Model'#]]),\"\")","v":""},{"$f":"IF(Table_SummaryPI[[#This Row],[Serial'#]]<>\"\",Table_SummaryPI[[#This Row],[Serial'#]],\"\")","v":""},{"$f":"IF(Table_SummaryPI[[#This Row],[Quantity]]<>\"\",Table_SummaryPI[[#This Row],[Quantity]],\"\")","v":""},{"$f":"IF(Table_SummaryPI[[#This Row],[BaselinekWh]]<>\"\",Table_SummaryPI[[#This Row],[BaselinekWh]],\"\")","v":""},{"$f":"IF(Table_SummaryPI[[#This Row],[BaselinekW]]<>\"\",Table_SummaryPI[[#This Row],[BaselinekW]],\"\")","v":""},{"$f":"IF(Table_SummaryPI[[#This Row],[ProposedkWh]]<>\"\",Table_SummaryPI[[#This Row],[ProposedkWh]],\"\")","v":""},{"$f":"IF(Table_SummaryPI[[#This Row],[ProposedkW]]<>\"\",Table_SummaryPI[[#This Row],[ProposedkW]],\"\")","v":""},{"$f":"IF(Table_SummaryPI[[#This Row],[Notes]]<>\"\",Table_SummaryPI[[#This Row],[Notes]],\"\")","v":""},{"$f":"IF(Table_SummaryPI[[#This Row],[Incentive_Customer]]<>\"\",Table_SummaryPI[[#This Row],[Incentive_Customer]],0)","v":0},{"$f":"IF(Table_SummaryPI[[#This Row],[MeasureCost]]<>\"\",Table_SummaryPI[[#This Row],[MeasureCost]],0)","v":0},{"$f":"IF(Table_SummaryPI[[#This Row],[kWhSavings]]<>\"\",Table_SummaryPI[[#This Row],[kWhSavings]],0)","v":0},{"$f":"IF(Table_SummaryPI[[#This Row],[DemandSavingskW]]<>\"\",Table_SummaryPI[[#This Row],[DemandSavingskW]],0)","v":0}]
[{"$f":"Table_SummaryPI[[#This Row],[Line No.]]","v":""},{"$f":"IF(Table_PrintPI[[#This Row],[Line No.]]=\"\",\"\",CONCATENATE(Table_PrintPI[[#This Row],[Line No.]],\" - \",Table_SummaryPI[[#This Row],[MeasureName]]))","v":""},{"$f":"IF(Table_SummaryPI[[#This Row],[Manufacturer]]<>\"\",CONCATENATE(Table_SummaryPI[[#This Row],[Manufacturer]],\"/\",Table_SummaryPI[[#This Row],[Model'#]]),\"\")","v":""},{"$f":"IF(Table_SummaryPI[[#This Row],[Serial'#]]<>\"\",Table_SummaryPI[[#This Row],[Serial'#]],\"\")","v":""},{"$f":"IF(Table_SummaryPI[[#This Row],[Quantity]]<>\"\",Table_SummaryPI[[#This Row],[Quantity]],\"\")","v":""},{"$f":"IF(Table_SummaryPI[[#This Row],[BaselinekWh]]<>\"\",Table_SummaryPI[[#This Row],[BaselinekWh]],\"\")","v":""},{"$f":"IF(Table_SummaryPI[[#This Row],[BaselinekW]]<>\"\",Table_SummaryPI[[#This Row],[BaselinekW]],\"\")","v":""},{"$f":"IF(Table_SummaryPI[[#This Row],[ProposedkWh]]<>\"\",Table_SummaryPI[[#This Row],[ProposedkWh]],\"\")","v":""},{"$f":"IF(Table_SummaryPI[[#This Row],[ProposedkW]]<>\"\",Table_SummaryPI[[#This Row],[ProposedkW]],\"\")","v":""},{"$f":"IF(Table_SummaryPI[[#This Row],[Notes]]<>\"\",Table_SummaryPI[[#This Row],[Notes]],\"\")","v":""},{"$f":"IF(Table_SummaryPI[[#This Row],[Incentive_Customer]]<>\"\",Table_SummaryPI[[#This Row],[Incentive_Customer]],0)","v":0},{"$f":"IF(Table_SummaryPI[[#This Row],[MeasureCost]]<>\"\",Table_SummaryPI[[#This Row],[MeasureCost]],0)","v":0},{"$f":"IF(Table_SummaryPI[[#This Row],[kWhSavings]]<>\"\",Table_SummaryPI[[#This Row],[kWhSavings]],0)","v":0},{"$f":"IF(Table_SummaryPI[[#This Row],[DemandSavingskW]]<>\"\",Table_SummaryPI[[#This Row],[DemandSavingskW]],0)","v":0}]
[{"$f":"Table_SummaryPI[[#This Row],[Line No.]]","v":""},{"$f":"IF(Table_PrintPI[[#This Row],[Line No.]]=\"\",\"\",CONCATENATE(Table_PrintPI[[#This Row],[Line No.]],\" - \",Table_SummaryPI[[#This Row],[MeasureName]]))","v":""},{"$f":"IF(Table_SummaryPI[[#This Row],[Manufacturer]]<>\"\",CONCATENATE(Table_SummaryPI[[#This Row],[Manufacturer]],\"/\",Table_SummaryPI[[#This Row],[Model'#]]),\"\")","v":""},{"$f":"IF(Table_SummaryPI[[#This Row],[Serial'#]]<>\"\",Table_SummaryPI[[#This Row],[Serial'#]],\"\")","v":""},{"$f":"IF(Table_SummaryPI[[#This Row],[Quantity]]<>\"\",Table_SummaryPI[[#This Row],[Quantity]],\"\")","v":""},{"$f":"IF(Table_SummaryPI[[#This Row],[BaselinekWh]]<>\"\",Table_SummaryPI[[#This Row],[BaselinekWh]],\"\")","v":""},{"$f":"IF(Table_SummaryPI[[#This Row],[BaselinekW]]<>\"\",Table_SummaryPI[[#This Row],[BaselinekW]],\"\")","v":""},{"$f":"IF(Table_SummaryPI[[#This Row],[ProposedkWh]]<>\"\",Table_SummaryPI[[#This Row],[ProposedkWh]],\"\")","v":""},{"$f":"IF(Table_SummaryPI[[#This Row],[ProposedkW]]<>\"\",Table_SummaryPI[[#This Row],[ProposedkW]],\"\")","v":""},{"$f":"IF(Table_SummaryPI[[#This Row],[Notes]]<>\"\",Table_SummaryPI[[#This Row],[Notes]],\"\")","v":""},{"$f":"IF(Table_SummaryPI[[#This Row],[Incentive_Customer]]<>\"\",Table_SummaryPI[[#This Row],[Incentive_Customer]],0)","v":0},{"$f":"IF(Table_SummaryPI[[#This Row],[MeasureCost]]<>\"\",Table_SummaryPI[[#This Row],[MeasureCost]],0)","v":0},{"$f":"IF(Table_SummaryPI[[#This Row],[kWhSavings]]<>\"\",Table_SummaryPI[[#This Row],[kWhSavings]],0)","v":0},{"$f":"IF(Table_SummaryPI[[#This Row],[DemandSavingskW]]<>\"\",Table_SummaryPI[[#This Row],[DemandSavingskW]],0)","v":0}]
[{"$f":"Table_SummaryPI[[#This Row],[Line No.]]","v":""},{"$f":"IF(Table_PrintPI[[#This Row],[Line No.]]=\"\",\"\",CONCATENATE(Table_PrintPI[[#This Row],[Line No.]],\" - \",Table_SummaryPI[[#This Row],[MeasureName]]))","v":""},{"$f":"IF(Table_SummaryPI[[#This Row],[Manufacturer]]<>\"\",CONCATENATE(Table_SummaryPI[[#This Row],[Manufacturer]],\"/\",Table_SummaryPI[[#This Row],[Model'#]]),\"\")","v":""},{"$f":"IF(Table_SummaryPI[[#This Row],[Serial'#]]<>\"\",Table_SummaryPI[[#This Row],[Serial'#]],\"\")","v":""},{"$f":"IF(Table_SummaryPI[[#This Row],[Quantity]]<>\"\",Table_SummaryPI[[#This Row],[Quantity]],\"\")","v":""},{"$f":"IF(Table_SummaryPI[[#This Row],[BaselinekWh]]<>\"\",Table_SummaryPI[[#This Row],[BaselinekWh]],\"\")","v":""},{"$f":"IF(Table_SummaryPI[[#This Row],[BaselinekW]]<>\"\",Table_SummaryPI[[#This Row],[BaselinekW]],\"\")","v":""},{"$f":"IF(Table_SummaryPI[[#This Row],[ProposedkWh]]<>\"\",Table_SummaryPI[[#This Row],[ProposedkWh]],\"\")","v":""},{"$f":"IF(Table_SummaryPI[[#This Row],[ProposedkW]]<>\"\",Table_SummaryPI[[#This Row],[ProposedkW]],\"\")","v":""},{"$f":"IF(Table_SummaryPI[[#This Row],[Notes]]<>\"\",Table_SummaryPI[[#This Row],[Notes]],\"\")","v":""},{"$f":"IF(Table_SummaryPI[[#This Row],[Incentive_Customer]]<>\"\",Table_SummaryPI[[#This Row],[Incentive_Customer]],0)","v":0},{"$f":"IF(Table_SummaryPI[[#This Row],[MeasureCost]]<>\"\",Table_SummaryPI[[#This Row],[MeasureCost]],0)","v":0},{"$f":"IF(Table_SummaryPI[[#This Row],[kWhSavings]]<>\"\",Table_SummaryPI[[#This Row],[kWhSavings]],0)","v":0},{"$f":"IF(Table_SummaryPI[[#This Row],[DemandSavingskW]]<>\"\",Table_SummaryPI[[#This Row],[DemandSavingskW]],0)","v":0}]
[{"$f":"Table_SummaryPI[[#This Row],[Line No.]]","v":""},{"$f":"IF(Table_PrintPI[[#This Row],[Line No.]]=\"\",\"\",CONCATENATE(Table_PrintPI[[#This Row],[Line No.]],\" - \",Table_SummaryPI[[#This Row],[MeasureName]]))","v":""},{"$f":"IF(Table_SummaryPI[[#This Row],[Manufacturer]]<>\"\",CONCATENATE(Table_SummaryPI[[#This Row],[Manufacturer]],\"/\",Table_SummaryPI[[#This Row],[Model'#]]),\"\")","v":""},{"$f":"IF(Table_SummaryPI[[#This Row],[Serial'#]]<>\"\",Table_SummaryPI[[#This Row],[Serial'#]],\"\")","v":""},{"$f":"IF(Table_SummaryPI[[#This Row],[Quantity]]<>\"\",Table_SummaryPI[[#This Row],[Quantity]],\"\")","v":""},{"$f":"IF(Table_SummaryPI[[#This Row],[BaselinekWh]]<>\"\",Table_SummaryPI[[#This Row],[BaselinekWh]],\"\")","v":""},{"$f":"IF(Table_SummaryPI[[#This Row],[BaselinekW]]<>\"\",Table_SummaryPI[[#This Row],[BaselinekW]],\"\")","v":""},{"$f":"IF(Table_SummaryPI[[#This Row],[ProposedkWh]]<>\"\",Table_SummaryPI[[#This Row],[ProposedkWh]],\"\")","v":""},{"$f":"IF(Table_SummaryPI[[#This Row],[ProposedkW]]<>\"\",Table_SummaryPI[[#This Row],[ProposedkW]],\"\")","v":""},{"$f":"IF(Table_SummaryPI[[#This Row],[Notes]]<>\"\",Table_SummaryPI[[#This Row],[Notes]],\"\")","v":""},{"$f":"IF(Table_SummaryPI[[#This Row],[Incentive_Customer]]<>\"\",Table_SummaryPI[[#This Row],[Incentive_Customer]],0)","v":0},{"$f":"IF(Table_SummaryPI[[#This Row],[MeasureCost]]<>\"\",Table_SummaryPI[[#This Row],[MeasureCost]],0)","v":0},{"$f":"IF(Table_SummaryPI[[#This Row],[kWhSavings]]<>\"\",Table_SummaryPI[[#This Row],[kWhSavings]],0)","v":0},{"$f":"IF(Table_SummaryPI[[#This Row],[DemandSavingskW]]<>\"\",Table_SummaryPI[[#This Row],[DemandSavingskW]],0)","v":0}]
[{"$f":"Table_SummaryPI[[#This Row],[Line No.]]","v":""},{"$f":"IF(Table_PrintPI[[#This Row],[Line No.]]=\"\",\"\",CONCATENATE(Table_PrintPI[[#This Row],[Line No.]],\" - \",Table_SummaryPI[[#This Row],[MeasureName]]))","v":""},{"$f":"IF(Table_SummaryPI[[#This Row],[Manufacturer]]<>\"\",CONCATENATE(Table_SummaryPI[[#This Row],[Manufacturer]],\"/\",Table_SummaryPI[[#This Row],[Model'#]]),\"\")","v":""},{"$f":"IF(Table_SummaryPI[[#This Row],[Serial'#]]<>\"\",Table_SummaryPI[[#This Row],[Serial'#]],\"\")","v":""},{"$f":"IF(Table_SummaryPI[[#This Row],[Quantity]]<>\"\",Table_SummaryPI[[#This Row],[Quantity]],\"\")","v":""},{"$f":"IF(Table_SummaryPI[[#This Row],[BaselinekWh]]<>\"\",Table_SummaryPI[[#This Row],[BaselinekWh]],\"\")","v":""},{"$f":"IF(Table_SummaryPI[[#This Row],[BaselinekW]]<>\"\",Table_SummaryPI[[#This Row],[BaselinekW]],\"\")","v":""},{"$f":"IF(Table_SummaryPI[[#This Row],[ProposedkWh]]<>\"\",Table_SummaryPI[[#This Row],[ProposedkWh]],\"\")","v":""},{"$f":"IF(Table_SummaryPI[[#This Row],[ProposedkW]]<>\"\",Table_SummaryPI[[#This Row],[ProposedkW]],\"\")","v":""},{"$f":"IF(Table_SummaryPI[[#This Row],[Notes]]<>\"\",Table_SummaryPI[[#This Row],[Notes]],\"\")","v":""},{"$f":"IF(Table_SummaryPI[[#This Row],[Incentive_Customer]]<>\"\",Table_SummaryPI[[#This Row],[Incentive_Customer]],0)","v":0},{"$f":"IF(Table_SummaryPI[[#This Row],[MeasureCost]]<>\"\",Table_SummaryPI[[#This Row],[MeasureCost]],0)","v":0},{"$f":"IF(Table_SummaryPI[[#This Row],[kWhSavings]]<>\"\",Table_SummaryPI[[#This Row],[kWhSavings]],0)","v":0},{"$f":"IF(Table_SummaryPI[[#This Row],[DemandSavingskW]]<>\"\",Table_SummaryPI[[#This Row],[DemandSavingskW]],0)","v":0}]
[{"$f":"Table_SummaryPI[[#This Row],[Line No.]]","v":""},{"$f":"IF(Table_PrintPI[[#This Row],[Line No.]]=\"\",\"\",CONCATENATE(Table_PrintPI[[#This Row],[Line No.]],\" - \",Table_SummaryPI[[#This Row],[MeasureName]]))","v":""},{"$f":"IF(Table_SummaryPI[[#This Row],[Manufacturer]]<>\"\",CONCATENATE(Table_SummaryPI[[#This Row],[Manufacturer]],\"/\",Table_SummaryPI[[#This Row],[Model'#]]),\"\")","v":""},{"$f":"IF(Table_SummaryPI[[#This Row],[Serial'#]]<>\"\",Table_SummaryPI[[#This Row],[Serial'#]],\"\")","v":""},{"$f":"IF(Table_SummaryPI[[#This Row],[Quantity]]<>\"\",Table_SummaryPI[[#This Row],[Quantity]],\"\")","v":""},{"$f":"IF(Table_SummaryPI[[#This Row],[BaselinekWh]]<>\"\",Table_SummaryPI[[#This Row],[BaselinekWh]],\"\")","v":""},{"$f":"IF(Table_SummaryPI[[#This Row],[BaselinekW]]<>\"\",Table_SummaryPI[[#This Row],[BaselinekW]],\"\")","v":""},{"$f":"IF(Table_SummaryPI[[#This Row],[ProposedkWh]]<>\"\",Table_SummaryPI[[#This Row],[ProposedkWh]],\"\")","v":""},{"$f":"IF(Table_SummaryPI[[#This Row],[ProposedkW]]<>\"\",Table_SummaryPI[[#This Row],[ProposedkW]],\"\")","v":""},{"$f":"IF(Table_SummaryPI[[#This Row],[Notes]]<>\"\",Table_SummaryPI[[#This Row],[Notes]],\"\")","v":""},{"$f":"IF(Table_SummaryPI[[#This Row],[Incentive_Customer]]<>\"\",Table_SummaryPI[[#This Row],[Incentive_Customer]],0)","v":0},{"$f":"IF(Table_SummaryPI[[#This Row],[MeasureCost]]<>\"\",Table_SummaryPI[[#This Row],[MeasureCost]],0)","v":0},{"$f":"IF(Table_SummaryPI[[#This Row],[kWhSavings]]<>\"\",Table_SummaryPI[[#This Row],[kWhSavings]],0)","v":0},{"$f":"IF(Table_SummaryPI[[#This Row],[DemandSavingskW]]<>\"\",Table_SummaryPI[[#This Row],[DemandSavingskW]],0)","v":0}]
[{"$f":"Table_SummaryPI[[#This Row],[Line No.]]","v":""},{"$f":"IF(Table_PrintPI[[#This Row],[Line No.]]=\"\",\"\",CONCATENATE(Table_PrintPI[[#This Row],[Line No.]],\" - \",Table_SummaryPI[[#This Row],[MeasureName]]))","v":""},{"$f":"IF(Table_SummaryPI[[#This Row],[Manufacturer]]<>\"\",CONCATENATE(Table_SummaryPI[[#This Row],[Manufacturer]],\"/\",Table_SummaryPI[[#This Row],[Model'#]]),\"\")","v":""},{"$f":"IF(Table_SummaryPI[[#This Row],[Serial'#]]<>\"\",Table_SummaryPI[[#This Row],[Serial'#]],\"\")","v":""},{"$f":"IF(Table_SummaryPI[[#This Row],[Quantity]]<>\"\",Table_SummaryPI[[#This Row],[Quantity]],\"\")","v":""},{"$f":"IF(Table_SummaryPI[[#This Row],[BaselinekWh]]<>\"\",Table_SummaryPI[[#This Row],[BaselinekWh]],\"\")","v":""},{"$f":"IF(Table_SummaryPI[[#This Row],[BaselinekW]]<>\"\",Table_SummaryPI[[#This Row],[BaselinekW]],\"\")","v":""},{"$f":"IF(Table_SummaryPI[[#This Row],[ProposedkWh]]<>\"\",Table_SummaryPI[[#This Row],[ProposedkWh]],\"\")","v":""},{"$f":"IF(Table_SummaryPI[[#This Row],[ProposedkW]]<>\"\",Table_SummaryPI[[#This Row],[ProposedkW]],\"\")","v":""},{"$f":"IF(Table_SummaryPI[[#This Row],[Notes]]<>\"\",Table_SummaryPI[[#This Row],[Notes]],\"\")","v":""},{"$f":"IF(Table_SummaryPI[[#This Row],[Incentive_Customer]]<>\"\",Table_SummaryPI[[#This Row],[Incentive_Customer]],0)","v":0},{"$f":"IF(Table_SummaryPI[[#This Row],[MeasureCost]]<>\"\",Table_SummaryPI[[#This Row],[MeasureCost]],0)","v":0},{"$f":"IF(Table_SummaryPI[[#This Row],[kWhSavings]]<>\"\",Table_SummaryPI[[#This Row],[kWhSavings]],0)","v":0},{"$f":"IF(Table_SummaryPI[[#This Row],[DemandSavingskW]]<>\"\",Table_SummaryPI[[#This Row],[DemandSavingskW]],0)","v":0}]
[{"$f":"Table_SummaryPI[[#This Row],[Line No.]]","v":""},{"$f":"IF(Table_PrintPI[[#This Row],[Line No.]]=\"\",\"\",CONCATENATE(Table_PrintPI[[#This Row],[Line No.]],\" - \",Table_SummaryPI[[#This Row],[MeasureName]]))","v":""},{"$f":"IF(Table_SummaryPI[[#This Row],[Manufacturer]]<>\"\",CONCATENATE(Table_SummaryPI[[#This Row],[Manufacturer]],\"/\",Table_SummaryPI[[#This Row],[Model'#]]),\"\")","v":""},{"$f":"IF(Table_SummaryPI[[#This Row],[Serial'#]]<>\"\",Table_SummaryPI[[#This Row],[Serial'#]],\"\")","v":""},{"$f":"IF(Table_SummaryPI[[#This Row],[Quantity]]<>\"\",Table_SummaryPI[[#This Row],[Quantity]],\"\")","v":""},{"$f":"IF(Table_SummaryPI[[#This Row],[BaselinekWh]]<>\"\",Table_SummaryPI[[#This Row],[BaselinekWh]],\"\")","v":""},{"$f":"IF(Table_SummaryPI[[#This Row],[BaselinekW]]<>\"\",Table_SummaryPI[[#This Row],[BaselinekW]],\"\")","v":""},{"$f":"IF(Table_SummaryPI[[#This Row],[ProposedkWh]]<>\"\",Table_SummaryPI[[#This Row],[ProposedkWh]],\"\")","v":""},{"$f":"IF(Table_SummaryPI[[#This Row],[ProposedkW]]<>\"\",Table_SummaryPI[[#This Row],[ProposedkW]],\"\")","v":""},{"$f":"IF(Table_SummaryPI[[#This Row],[Notes]]<>\"\",Table_SummaryPI[[#This Row],[Notes]],\"\")","v":""},{"$f":"IF(Table_SummaryPI[[#This Row],[Incentive_Customer]]<>\"\",Table_SummaryPI[[#This Row],[Incentive_Customer]],0)","v":0},{"$f":"IF(Table_SummaryPI[[#This Row],[MeasureCost]]<>\"\",Table_SummaryPI[[#This Row],[MeasureCost]],0)","v":0},{"$f":"IF(Table_SummaryPI[[#This Row],[kWhSavings]]<>\"\",Table_SummaryPI[[#This Row],[kWhSavings]],0)","v":0},{"$f":"IF(Table_SummaryPI[[#This Row],[DemandSavingskW]]<>\"\",Table_SummaryPI[[#This Row],[DemandSavingskW]],0)","v":0}]
[{"$f":"Table_SummaryPI[[#This Row],[Line No.]]","v":""},{"$f":"IF(Table_PrintPI[[#This Row],[Line No.]]=\"\",\"\",CONCATENATE(Table_PrintPI[[#This Row],[Line No.]],\" - \",Table_SummaryPI[[#This Row],[MeasureName]]))","v":""},{"$f":"IF(Table_SummaryPI[[#This Row],[Manufacturer]]<>\"\",CONCATENATE(Table_SummaryPI[[#This Row],[Manufacturer]],\"/\",Table_SummaryPI[[#This Row],[Model'#]]),\"\")","v":""},{"$f":"IF(Table_SummaryPI[[#This Row],[Serial'#]]<>\"\",Table_SummaryPI[[#This Row],[Serial'#]],\"\")","v":""},{"$f":"IF(Table_SummaryPI[[#This Row],[Quantity]]<>\"\",Table_SummaryPI[[#This Row],[Quantity]],\"\")","v":""},{"$f":"IF(Table_SummaryPI[[#This Row],[BaselinekWh]]<>\"\",Table_SummaryPI[[#This Row],[BaselinekWh]],\"\")","v":""},{"$f":"IF(Table_SummaryPI[[#This Row],[BaselinekW]]<>\"\",Table_SummaryPI[[#This Row],[BaselinekW]],\"\")","v":""},{"$f":"IF(Table_SummaryPI[[#This Row],[ProposedkWh]]<>\"\",Table_SummaryPI[[#This Row],[ProposedkWh]],\"\")","v":""},{"$f":"IF(Table_SummaryPI[[#This Row],[ProposedkW]]<>\"\",Table_SummaryPI[[#This Row],[ProposedkW]],\"\")","v":""},{"$f":"IF(Table_SummaryPI[[#This Row],[Notes]]<>\"\",Table_SummaryPI[[#This Row],[Notes]],\"\")","v":""},{"$f":"IF(Table_SummaryPI[[#This Row],[Incentive_Customer]]<>\"\",Table_SummaryPI[[#This Row],[Incentive_Customer]],0)","v":0},{"$f":"IF(Table_SummaryPI[[#This Row],[MeasureCost]]<>\"\",Table_SummaryPI[[#This Row],[MeasureCost]],0)","v":0},{"$f":"IF(Table_SummaryPI[[#This Row],[kWhSavings]]<>\"\",Table_SummaryPI[[#This Row],[kWhSavings]],0)","v":0},{"$f":"IF(Table_SummaryPI[[#This Row],[DemandSavingskW]]<>\"\",Table_SummaryPI[[#This Row],[DemandSavingskW]],0)","v":0}]
[{"$f":"Table_SummaryPI[[#This Row],[Line No.]]","v":""},{"$f":"IF(Table_PrintPI[[#This Row],[Line No.]]=\"\",\"\",CONCATENATE(Table_PrintPI[[#This Row],[Line No.]],\" - \",Table_SummaryPI[[#This Row],[MeasureName]]))","v":""},{"$f":"IF(Table_SummaryPI[[#This Row],[Manufacturer]]<>\"\",CONCATENATE(Table_SummaryPI[[#This Row],[Manufacturer]],\"/\",Table_SummaryPI[[#This Row],[Model'#]]),\"\")","v":""},{"$f":"IF(Table_SummaryPI[[#This Row],[Serial'#]]<>\"\",Table_SummaryPI[[#This Row],[Serial'#]],\"\")","v":""},{"$f":"IF(Table_SummaryPI[[#This Row],[Quantity]]<>\"\",Table_SummaryPI[[#This Row],[Quantity]],\"\")","v":""},{"$f":"IF(Table_SummaryPI[[#This Row],[BaselinekWh]]<>\"\",Table_SummaryPI[[#This Row],[BaselinekWh]],\"\")","v":""},{"$f":"IF(Table_SummaryPI[[#This Row],[BaselinekW]]<>\"\",Table_SummaryPI[[#This Row],[BaselinekW]],\"\")","v":""},{"$f":"IF(Table_SummaryPI[[#This Row],[ProposedkWh]]<>\"\",Table_SummaryPI[[#This Row],[ProposedkWh]],\"\")","v":""},{"$f":"IF(Table_SummaryPI[[#This Row],[ProposedkW]]<>\"\",Table_SummaryPI[[#This Row],[ProposedkW]],\"\")","v":""},{"$f":"IF(Table_SummaryPI[[#This Row],[Notes]]<>\"\",Table_SummaryPI[[#This Row],[Notes]],\"\")","v":""},{"$f":"IF(Table_SummaryPI[[#This Row],[Incentive_Customer]]<>\"\",Table_SummaryPI[[#This Row],[Incentive_Customer]],0)","v":0},{"$f":"IF(Table_SummaryPI[[#This Row],[MeasureCost]]<>\"\",Table_SummaryPI[[#This Row],[MeasureCost]],0)","v":0},{"$f":"IF(Table_SummaryPI[[#This Row],[kWhSavings]]<>\"\",Table_SummaryPI[[#This Row],[kWhSavings]],0)","v":0},{"$f":"IF(Table_SummaryPI[[#This Row],[DemandSavingskW]]<>\"\",Table_SummaryPI[[#This Row],[DemandSavingskW]],0)","v":0}]
[{"$f":"Table_SummaryPI[[#This Row],[Line No.]]","v":""},{"$f":"IF(Table_PrintPI[[#This Row],[Line No.]]=\"\",\"\",CONCATENATE(Table_PrintPI[[#This Row],[Line No.]],\" - \",Table_SummaryPI[[#This Row],[MeasureName]]))","v":""},{"$f":"IF(Table_SummaryPI[[#This Row],[Manufacturer]]<>\"\",CONCATENATE(Table_SummaryPI[[#This Row],[Manufacturer]],\"/\",Table_SummaryPI[[#This Row],[Model'#]]),\"\")","v":""},{"$f":"IF(Table_SummaryPI[[#This Row],[Serial'#]]<>\"\",Table_SummaryPI[[#This Row],[Serial'#]],\"\")","v":""},{"$f":"IF(Table_SummaryPI[[#This Row],[Quantity]]<>\"\",Table_SummaryPI[[#This Row],[Quantity]],\"\")","v":""},{"$f":"IF(Table_SummaryPI[[#This Row],[BaselinekWh]]<>\"\",Table_SummaryPI[[#This Row],[BaselinekWh]],\"\")","v":""},{"$f":"IF(Table_SummaryPI[[#This Row],[BaselinekW]]<>\"\",Table_SummaryPI[[#This Row],[BaselinekW]],\"\")","v":""},{"$f":"IF(Table_SummaryPI[[#This Row],[ProposedkWh]]<>\"\",Table_SummaryPI[[#This Row],[ProposedkWh]],\"\")","v":""},{"$f":"IF(Table_SummaryPI[[#This Row],[ProposedkW]]<>\"\",Table_SummaryPI[[#This Row],[ProposedkW]],\"\")","v":""},{"$f":"IF(Table_SummaryPI[[#This Row],[Notes]]<>\"\",Table_SummaryPI[[#This Row],[Notes]],\"\")","v":""},{"$f":"IF(Table_SummaryPI[[#This Row],[Incentive_Customer]]<>\"\",Table_SummaryPI[[#This Row],[Incentive_Customer]],0)","v":0},{"$f":"IF(Table_SummaryPI[[#This Row],[MeasureCost]]<>\"\",Table_SummaryPI[[#This Row],[MeasureCost]],0)","v":0},{"$f":"IF(Table_SummaryPI[[#This Row],[kWhSavings]]<>\"\",Table_SummaryPI[[#This Row],[kWhSavings]],0)","v":0},{"$f":"IF(Table_SummaryPI[[#This Row],[DemandSavingskW]]<>\"\",Table_SummaryPI[[#This Row],[DemandSavingskW]],0)","v":0}]
[{"$f":"Table_SummaryPI[[#This Row],[Line No.]]","v":""},{"$f":"IF(Table_PrintPI[[#This Row],[Line No.]]=\"\",\"\",CONCATENATE(Table_PrintPI[[#This Row],[Line No.]],\" - \",Table_SummaryPI[[#This Row],[MeasureName]]))","v":""},{"$f":"IF(Table_SummaryPI[[#This Row],[Manufacturer]]<>\"\",CONCATENATE(Table_SummaryPI[[#This Row],[Manufacturer]],\"/\",Table_SummaryPI[[#This Row],[Model'#]]),\"\")","v":""},{"$f":"IF(Table_SummaryPI[[#This Row],[Serial'#]]<>\"\",Table_SummaryPI[[#This Row],[Serial'#]],\"\")","v":""},{"$f":"IF(Table_SummaryPI[[#This Row],[Quantity]]<>\"\",Table_SummaryPI[[#This Row],[Quantity]],\"\")","v":""},{"$f":"IF(Table_SummaryPI[[#This Row],[BaselinekWh]]<>\"\",Table_SummaryPI[[#This Row],[BaselinekWh]],\"\")","v":""},{"$f":"IF(Table_SummaryPI[[#This Row],[BaselinekW]]<>\"\",Table_SummaryPI[[#This Row],[BaselinekW]],\"\")","v":""},{"$f":"IF(Table_SummaryPI[[#This Row],[ProposedkWh]]<>\"\",Table_SummaryPI[[#This Row],[ProposedkWh]],\"\")","v":""},{"$f":"IF(Table_SummaryPI[[#This Row],[ProposedkW]]<>\"\",Table_SummaryPI[[#This Row],[ProposedkW]],\"\")","v":""},{"$f":"IF(Table_SummaryPI[[#This Row],[Notes]]<>\"\",Table_SummaryPI[[#This Row],[Notes]],\"\")","v":""},{"$f":"IF(Table_SummaryPI[[#This Row],[Incentive_Customer]]<>\"\",Table_SummaryPI[[#This Row],[Incentive_Customer]],0)","v":0},{"$f":"IF(Table_SummaryPI[[#This Row],[MeasureCost]]<>\"\",Table_SummaryPI[[#This Row],[MeasureCost]],0)","v":0},{"$f":"IF(Table_SummaryPI[[#This Row],[kWhSavings]]<>\"\",Table_SummaryPI[[#This Row],[kWhSavings]],0)","v":0},{"$f":"IF(Table_SummaryPI[[#This Row],[DemandSavingskW]]<>\"\",Table_SummaryPI[[#This Row],[DemandSavingskW]],0)","v":0}]
[{"$f":"Table_SummaryPI[[#This Row],[Line No.]]","v":""},{"$f":"IF(Table_PrintPI[[#This Row],[Line No.]]=\"\",\"\",CONCATENATE(Table_PrintPI[[#This Row],[Line No.]],\" - \",Table_SummaryPI[[#This Row],[MeasureName]]))","v":""},{"$f":"IF(Table_SummaryPI[[#This Row],[Manufacturer]]<>\"\",CONCATENATE(Table_SummaryPI[[#This Row],[Manufacturer]],\"/\",Table_SummaryPI[[#This Row],[Model'#]]),\"\")","v":""},{"$f":"IF(Table_SummaryPI[[#This Row],[Serial'#]]<>\"\",Table_SummaryPI[[#This Row],[Serial'#]],\"\")","v":""},{"$f":"IF(Table_SummaryPI[[#This Row],[Quantity]]<>\"\",Table_SummaryPI[[#This Row],[Quantity]],\"\")","v":""},{"$f":"IF(Table_SummaryPI[[#This Row],[BaselinekWh]]<>\"\",Table_SummaryPI[[#This Row],[BaselinekWh]],\"\")","v":""},{"$f":"IF(Table_SummaryPI[[#This Row],[BaselinekW]]<>\"\",Table_SummaryPI[[#This Row],[BaselinekW]],\"\")","v":""},{"$f":"IF(Table_SummaryPI[[#This Row],[ProposedkWh]]<>\"\",Table_SummaryPI[[#This Row],[ProposedkWh]],\"\")","v":""},{"$f":"IF(Table_SummaryPI[[#This Row],[ProposedkW]]<>\"\",Table_SummaryPI[[#This Row],[ProposedkW]],\"\")","v":""},{"$f":"IF(Table_SummaryPI[[#This Row],[Notes]]<>\"\",Table_SummaryPI[[#This Row],[Notes]],\"\")","v":""},{"$f":"IF(Table_SummaryPI[[#This Row],[Incentive_Customer]]<>\"\",Table_SummaryPI[[#This Row],[Incentive_Customer]],0)","v":0},{"$f":"IF(Table_SummaryPI[[#This Row],[MeasureCost]]<>\"\",Table_SummaryPI[[#This Row],[MeasureCost]],0)","v":0},{"$f":"IF(Table_SummaryPI[[#This Row],[kWhSavings]]<>\"\",Table_SummaryPI[[#This Row],[kWhSavings]],0)","v":0},{"$f":"IF(Table_SummaryPI[[#This Row],[DemandSavingskW]]<>\"\",Table_SummaryPI[[#This Row],[DemandSavingskW]],0)","v":0}]
[{"$f":"Table_SummaryPI[[#This Row],[Line No.]]","v":""},{"$f":"IF(Table_PrintPI[[#This Row],[Line No.]]=\"\",\"\",CONCATENATE(Table_PrintPI[[#This Row],[Line No.]],\" - \",Table_SummaryPI[[#This Row],[MeasureName]]))","v":""},{"$f":"IF(Table_SummaryPI[[#This Row],[Manufacturer]]<>\"\",CONCATENATE(Table_SummaryPI[[#This Row],[Manufacturer]],\"/\",Table_SummaryPI[[#This Row],[Model'#]]),\"\")","v":""},{"$f":"IF(Table_SummaryPI[[#This Row],[Serial'#]]<>\"\",Table_SummaryPI[[#This Row],[Serial'#]],\"\")","v":""},{"$f":"IF(Table_SummaryPI[[#This Row],[Quantity]]<>\"\",Table_SummaryPI[[#This Row],[Quantity]],\"\")","v":""},{"$f":"IF(Table_SummaryPI[[#This Row],[BaselinekWh]]<>\"\",Table_SummaryPI[[#This Row],[BaselinekWh]],\"\")","v":""},{"$f":"IF(Table_SummaryPI[[#This Row],[BaselinekW]]<>\"\",Table_SummaryPI[[#This Row],[BaselinekW]],\"\")","v":""},{"$f":"IF(Table_SummaryPI[[#This Row],[ProposedkWh]]<>\"\",Table_SummaryPI[[#This Row],[ProposedkWh]],\"\")","v":""},{"$f":"IF(Table_SummaryPI[[#This Row],[ProposedkW]]<>\"\",Table_SummaryPI[[#This Row],[ProposedkW]],\"\")","v":""},{"$f":"IF(Table_SummaryPI[[#This Row],[Notes]]<>\"\",Table_SummaryPI[[#This Row],[Notes]],\"\")","v":""},{"$f":"IF(Table_SummaryPI[[#This Row],[Incentive_Customer]]<>\"\",Table_SummaryPI[[#This Row],[Incentive_Customer]],0)","v":0},{"$f":"IF(Table_SummaryPI[[#This Row],[MeasureCost]]<>\"\",Table_SummaryPI[[#This Row],[MeasureCost]],0)","v":0},{"$f":"IF(Table_SummaryPI[[#This Row],[kWhSavings]]<>\"\",Table_SummaryPI[[#This Row],[kWhSavings]],0)","v":0},{"$f":"IF(Table_SummaryPI[[#This Row],[DemandSavingskW]]<>\"\",Table_SummaryPI[[#This Row],[DemandSavingskW]],0)","v":0}]
[{"$f":"Table_SummaryPI[[#This Row],[Line No.]]","v":""},{"$f":"IF(Table_PrintPI[[#This Row],[Line No.]]=\"\",\"\",CONCATENATE(Table_PrintPI[[#This Row],[Line No.]],\" - \",Table_SummaryPI[[#This Row],[MeasureName]]))","v":""},{"$f":"IF(Table_SummaryPI[[#This Row],[Manufacturer]]<>\"\",CONCATENATE(Table_SummaryPI[[#This Row],[Manufacturer]],\"/\",Table_SummaryPI[[#This Row],[Model'#]]),\"\")","v":""},{"$f":"IF(Table_SummaryPI[[#This Row],[Serial'#]]<>\"\",Table_SummaryPI[[#This Row],[Serial'#]],\"\")","v":""},{"$f":"IF(Table_SummaryPI[[#This Row],[Quantity]]<>\"\",Table_SummaryPI[[#This Row],[Quantity]],\"\")","v":""},{"$f":"IF(Table_SummaryPI[[#This Row],[BaselinekWh]]<>\"\",Table_SummaryPI[[#This Row],[BaselinekWh]],\"\")","v":""},{"$f":"IF(Table_SummaryPI[[#This Row],[BaselinekW]]<>\"\",Table_SummaryPI[[#This Row],[BaselinekW]],\"\")","v":""},{"$f":"IF(Table_SummaryPI[[#This Row],[ProposedkWh]]<>\"\",Table_SummaryPI[[#This Row],[ProposedkWh]],\"\")","v":""},{"$f":"IF(Table_SummaryPI[[#This Row],[ProposedkW]]<>\"\",Table_SummaryPI[[#This Row],[ProposedkW]],\"\")","v":""},{"$f":"IF(Table_SummaryPI[[#This Row],[Notes]]<>\"\",Table_SummaryPI[[#This Row],[Notes]],\"\")","v":""},{"$f":"IF(Table_SummaryPI[[#This Row],[Incentive_Customer]]<>\"\",Table_SummaryPI[[#This Row],[Incentive_Customer]],0)","v":0},{"$f":"IF(Table_SummaryPI[[#This Row],[MeasureCost]]<>\"\",Table_SummaryPI[[#This Row],[MeasureCost]],0)","v":0},{"$f":"IF(Table_SummaryPI[[#This Row],[kWhSavings]]<>\"\",Table_SummaryPI[[#This Row],[kWhSavings]],0)","v":0},{"$f":"IF(Table_SummaryPI[[#This Row],[DemandSavingskW]]<>\"\",Table_SummaryPI[[#This Row],[DemandSavingskW]],0)","v":0}]
[{"$f":"Table_SummaryPI[[#This Row],[Line No.]]","v":""},{"$f":"IF(Table_PrintPI[[#This Row],[Line No.]]=\"\",\"\",CONCATENATE(Table_PrintPI[[#This Row],[Line No.]],\" - \",Table_SummaryPI[[#This Row],[MeasureName]]))","v":""},{"$f":"IF(Table_SummaryPI[[#This Row],[Manufacturer]]<>\"\",CONCATENATE(Table_SummaryPI[[#This Row],[Manufacturer]],\"/\",Table_SummaryPI[[#This Row],[Model'#]]),\"\")","v":""},{"$f":"IF(Table_SummaryPI[[#This Row],[Serial'#]]<>\"\",Table_SummaryPI[[#This Row],[Serial'#]],\"\")","v":""},{"$f":"IF(Table_SummaryPI[[#This Row],[Quantity]]<>\"\",Table_SummaryPI[[#This Row],[Quantity]],\"\")","v":""},{"$f":"IF(Table_SummaryPI[[#This Row],[BaselinekWh]]<>\"\",Table_SummaryPI[[#This Row],[BaselinekWh]],\"\")","v":""},{"$f":"IF(Table_SummaryPI[[#This Row],[BaselinekW]]<>\"\",Table_SummaryPI[[#This Row],[BaselinekW]],\"\")","v":""},{"$f":"IF(Table_SummaryPI[[#This Row],[ProposedkWh]]<>\"\",Table_SummaryPI[[#This Row],[ProposedkWh]],\"\")","v":""},{"$f":"IF(Table_SummaryPI[[#This Row],[ProposedkW]]<>\"\",Table_SummaryPI[[#This Row],[ProposedkW]],\"\")","v":""},{"$f":"IF(Table_SummaryPI[[#This Row],[Notes]]<>\"\",Table_SummaryPI[[#This Row],[Notes]],\"\")","v":""},{"$f":"IF(Table_SummaryPI[[#This Row],[Incentive_Customer]]<>\"\",Table_SummaryPI[[#This Row],[Incentive_Customer]],0)","v":0},{"$f":"IF(Table_SummaryPI[[#This Row],[MeasureCost]]<>\"\",Table_SummaryPI[[#This Row],[MeasureCost]],0)","v":0},{"$f":"IF(Table_SummaryPI[[#This Row],[kWhSavings]]<>\"\",Table_SummaryPI[[#This Row],[kWhSavings]],0)","v":0},{"$f":"IF(Table_SummaryPI[[#This Row],[DemandSavingskW]]<>\"\",Table_SummaryPI[[#This Row],[DemandSavingskW]],0)","v":0}]
[{"$f":"Table_SummaryPI[[#This Row],[Line No.]]","v":""},{"$f":"IF(Table_PrintPI[[#This Row],[Line No.]]=\"\",\"\",CONCATENATE(Table_PrintPI[[#This Row],[Line No.]],\" - \",Table_SummaryPI[[#This Row],[MeasureName]]))","v":""},{"$f":"IF(Table_SummaryPI[[#This Row],[Manufacturer]]<>\"\",CONCATENATE(Table_SummaryPI[[#This Row],[Manufacturer]],\"/\",Table_SummaryPI[[#This Row],[Model'#]]),\"\")","v":""},{"$f":"IF(Table_SummaryPI[[#This Row],[Serial'#]]<>\"\",Table_SummaryPI[[#This Row],[Serial'#]],\"\")","v":""},{"$f":"IF(Table_SummaryPI[[#This Row],[Quantity]]<>\"\",Table_SummaryPI[[#This Row],[Quantity]],\"\")","v":""},{"$f":"IF(Table_SummaryPI[[#This Row],[BaselinekWh]]<>\"\",Table_SummaryPI[[#This Row],[BaselinekWh]],\"\")","v":""},{"$f":"IF(Table_SummaryPI[[#This Row],[BaselinekW]]<>\"\",Table_SummaryPI[[#This Row],[BaselinekW]],\"\")","v":""},{"$f":"IF(Table_SummaryPI[[#This Row],[ProposedkWh]]<>\"\",Table_SummaryPI[[#This Row],[ProposedkWh]],\"\")","v":""},{"$f":"IF(Table_SummaryPI[[#This Row],[ProposedkW]]<>\"\",Table_SummaryPI[[#This Row],[ProposedkW]],\"\")","v":""},{"$f":"IF(Table_SummaryPI[[#This Row],[Notes]]<>\"\",Table_SummaryPI[[#This Row],[Notes]],\"\")","v":""},{"$f":"IF(Table_SummaryPI[[#This Row],[Incentive_Customer]]<>\"\",Table_SummaryPI[[#This Row],[Incentive_Customer]],0)","v":0},{"$f":"IF(Table_SummaryPI[[#This Row],[MeasureCost]]<>\"\",Table_SummaryPI[[#This Row],[MeasureCost]],0)","v":0},{"$f":"IF(Table_SummaryPI[[#This Row],[kWhSavings]]<>\"\",Table_SummaryPI[[#This Row],[kWhSavings]],0)","v":0},{"$f":"IF(Table_SummaryPI[[#This Row],[DemandSavingskW]]<>\"\",Table_SummaryPI[[#This Row],[DemandSavingskW]],0)","v":0}]
[{"$f":"Table_SummaryPI[[#This Row],[Line No.]]","v":""},{"$f":"IF(Table_PrintPI[[#This Row],[Line No.]]=\"\",\"\",CONCATENATE(Table_PrintPI[[#This Row],[Line No.]],\" - \",Table_SummaryPI[[#This Row],[MeasureName]]))","v":""},{"$f":"IF(Table_SummaryPI[[#This Row],[Manufacturer]]<>\"\",CONCATENATE(Table_SummaryPI[[#This Row],[Manufacturer]],\"/\",Table_SummaryPI[[#This Row],[Model'#]]),\"\")","v":""},{"$f":"IF(Table_SummaryPI[[#This Row],[Serial'#]]<>\"\",Table_SummaryPI[[#This Row],[Serial'#]],\"\")","v":""},{"$f":"IF(Table_SummaryPI[[#This Row],[Quantity]]<>\"\",Table_SummaryPI[[#This Row],[Quantity]],\"\")","v":""},{"$f":"IF(Table_SummaryPI[[#This Row],[BaselinekWh]]<>\"\",Table_SummaryPI[[#This Row],[BaselinekWh]],\"\")","v":""},{"$f":"IF(Table_SummaryPI[[#This Row],[BaselinekW]]<>\"\",Table_SummaryPI[[#This Row],[BaselinekW]],\"\")","v":""},{"$f":"IF(Table_SummaryPI[[#This Row],[ProposedkWh]]<>\"\",Table_SummaryPI[[#This Row],[ProposedkWh]],\"\")","v":""},{"$f":"IF(Table_SummaryPI[[#This Row],[ProposedkW]]<>\"\",Table_SummaryPI[[#This Row],[ProposedkW]],\"\")","v":""},{"$f":"IF(Table_SummaryPI[[#This Row],[Notes]]<>\"\",Table_SummaryPI[[#This Row],[Notes]],\"\")","v":""},{"$f":"IF(Table_SummaryPI[[#This Row],[Incentive_Customer]]<>\"\",Table_SummaryPI[[#This Row],[Incentive_Customer]],0)","v":0},{"$f":"IF(Table_SummaryPI[[#This Row],[MeasureCost]]<>\"\",Table_SummaryPI[[#This Row],[MeasureCost]],0)","v":0},{"$f":"IF(Table_SummaryPI[[#This Row],[kWhSavings]]<>\"\",Table_SummaryPI[[#This Row],[kWhSavings]],0)","v":0},{"$f":"IF(Table_SummaryPI[[#This Row],[DemandSavingskW]]<>\"\",Table_SummaryPI[[#This Row],[DemandSavingskW]],0)","v":0}]
[{"$f":"Table_SummaryPI[[#This Row],[Line No.]]","v":""},{"$f":"IF(Table_PrintPI[[#This Row],[Line No.]]=\"\",\"\",CONCATENATE(Table_PrintPI[[#This Row],[Line No.]],\" - \",Table_SummaryPI[[#This Row],[MeasureName]]))","v":""},{"$f":"IF(Table_SummaryPI[[#This Row],[Manufacturer]]<>\"\",CONCATENATE(Table_SummaryPI[[#This Row],[Manufacturer]],\"/\",Table_SummaryPI[[#This Row],[Model'#]]),\"\")","v":""},{"$f":"IF(Table_SummaryPI[[#This Row],[Serial'#]]<>\"\",Table_SummaryPI[[#This Row],[Serial'#]],\"\")","v":""},{"$f":"IF(Table_SummaryPI[[#This Row],[Quantity]]<>\"\",Table_SummaryPI[[#This Row],[Quantity]],\"\")","v":""},{"$f":"IF(Table_SummaryPI[[#This Row],[BaselinekWh]]<>\"\",Table_SummaryPI[[#This Row],[BaselinekWh]],\"\")","v":""},{"$f":"IF(Table_SummaryPI[[#This Row],[BaselinekW]]<>\"\",Table_SummaryPI[[#This Row],[BaselinekW]],\"\")","v":""},{"$f":"IF(Table_SummaryPI[[#This Row],[ProposedkWh]]<>\"\",Table_SummaryPI[[#This Row],[ProposedkWh]],\"\")","v":""},{"$f":"IF(Table_SummaryPI[[#This Row],[ProposedkW]]<>\"\",Table_SummaryPI[[#This Row],[ProposedkW]],\"\")","v":""},{"$f":"IF(Table_SummaryPI[[#This Row],[Notes]]<>\"\",Table_SummaryPI[[#This Row],[Notes]],\"\")","v":""},{"$f":"IF(Table_SummaryPI[[#This Row],[Incentive_Customer]]<>\"\",Table_SummaryPI[[#This Row],[Incentive_Customer]],0)","v":0},{"$f":"IF(Table_SummaryPI[[#This Row],[MeasureCost]]<>\"\",Table_SummaryPI[[#This Row],[MeasureCost]],0)","v":0},{"$f":"IF(Table_SummaryPI[[#This Row],[kWhSavings]]<>\"\",Table_SummaryPI[[#This Row],[kWhSavings]],0)","v":0},{"$f":"IF(Table_SummaryPI[[#This Row],[DemandSavingskW]]<>\"\",Table_SummaryPI[[#This Row],[DemandSavingskW]],0)","v":0}]
[{"$f":"Table_SummaryPI[[#This Row],[Line No.]]","v":""},{"$f":"IF(Table_PrintPI[[#This Row],[Line No.]]=\"\",\"\",CONCATENATE(Table_PrintPI[[#This Row],[Line No.]],\" - \",Table_SummaryPI[[#This Row],[MeasureName]]))","v":""},{"$f":"IF(Table_SummaryPI[[#This Row],[Manufacturer]]<>\"\",CONCATENATE(Table_SummaryPI[[#This Row],[Manufacturer]],\"/\",Table_SummaryPI[[#This Row],[Model'#]]),\"\")","v":""},{"$f":"IF(Table_SummaryPI[[#This Row],[Serial'#]]<>\"\",Table_SummaryPI[[#This Row],[Serial'#]],\"\")","v":""},{"$f":"IF(Table_SummaryPI[[#This Row],[Quantity]]<>\"\",Table_SummaryPI[[#This Row],[Quantity]],\"\")","v":""},{"$f":"IF(Table_SummaryPI[[#This Row],[BaselinekWh]]<>\"\",Table_SummaryPI[[#This Row],[BaselinekWh]],\"\")","v":""},{"$f":"IF(Table_SummaryPI[[#This Row],[BaselinekW]]<>\"\",Table_SummaryPI[[#This Row],[BaselinekW]],\"\")","v":""},{"$f":"IF(Table_SummaryPI[[#This Row],[ProposedkWh]]<>\"\",Table_SummaryPI[[#This Row],[ProposedkWh]],\"\")","v":""},{"$f":"IF(Table_SummaryPI[[#This Row],[ProposedkW]]<>\"\",Table_SummaryPI[[#This Row],[ProposedkW]],\"\")","v":""},{"$f":"IF(Table_SummaryPI[[#This Row],[Notes]]<>\"\",Table_SummaryPI[[#This Row],[Notes]],\"\")","v":""},{"$f":"IF(Table_SummaryPI[[#This Row],[Incentive_Customer]]<>\"\",Table_SummaryPI[[#This Row],[Incentive_Customer]],0)","v":0},{"$f":"IF(Table_SummaryPI[[#This Row],[MeasureCost]]<>\"\",Table_SummaryPI[[#This Row],[MeasureCost]],0)","v":0},{"$f":"IF(Table_SummaryPI[[#This Row],[kWhSavings]]<>\"\",Table_SummaryPI[[#This Row],[kWhSavings]],0)","v":0},{"$f":"IF(Table_SummaryPI[[#This Row],[DemandSavingskW]]<>\"\",Table_SummaryPI[[#This Row],[DemandSavingskW]],0)","v":0}]
[{"$f":"Table_SummaryPI[[#This Row],[Line No.]]","v":""},{"$f":"IF(Table_PrintPI[[#This Row],[Line No.]]=\"\",\"\",CONCATENATE(Table_PrintPI[[#This Row],[Line No.]],\" - \",Table_SummaryPI[[#This Row],[MeasureName]]))","v":""},{"$f":"IF(Table_SummaryPI[[#This Row],[Manufacturer]]<>\"\",CONCATENATE(Table_SummaryPI[[#This Row],[Manufacturer]],\"/\",Table_SummaryPI[[#This Row],[Model'#]]),\"\")","v":""},{"$f":"IF(Table_SummaryPI[[#This Row],[Serial'#]]<>\"\",Table_SummaryPI[[#This Row],[Serial'#]],\"\")","v":""},{"$f":"IF(Table_SummaryPI[[#This Row],[Quantity]]<>\"\",Table_SummaryPI[[#This Row],[Quantity]],\"\")","v":""},{"$f":"IF(Table_SummaryPI[[#This Row],[BaselinekWh]]<>\"\",Table_SummaryPI[[#This Row],[BaselinekWh]],\"\")","v":""},{"$f":"IF(Table_SummaryPI[[#This Row],[BaselinekW]]<>\"\",Table_SummaryPI[[#This Row],[BaselinekW]],\"\")","v":""},{"$f":"IF(Table_SummaryPI[[#This Row],[ProposedkWh]]<>\"\",Table_SummaryPI[[#This Row],[ProposedkWh]],\"\")","v":""},{"$f":"IF(Table_SummaryPI[[#This Row],[ProposedkW]]<>\"\",Table_SummaryPI[[#This Row],[ProposedkW]],\"\")","v":""},{"$f":"IF(Table_SummaryPI[[#This Row],[Notes]]<>\"\",Table_SummaryPI[[#This Row],[Notes]],\"\")","v":""},{"$f":"IF(Table_SummaryPI[[#This Row],[Incentive_Customer]]<>\"\",Table_SummaryPI[[#This Row],[Incentive_Customer]],0)","v":0},{"$f":"IF(Table_SummaryPI[[#This Row],[MeasureCost]]<>\"\",Table_SummaryPI[[#This Row],[MeasureCost]],0)","v":0},{"$f":"IF(Table_SummaryPI[[#This Row],[kWhSavings]]<>\"\",Table_SummaryPI[[#This Row],[kWhSavings]],0)","v":0},{"$f":"IF(Table_SummaryPI[[#This Row],[DemandSavingskW]]<>\"\",Table_SummaryPI[[#This Row],[DemandSavingskW]],0)","v":0}]
[{"$f":"Table_SummaryPI[[#This Row],[Line No.]]","v":""},{"$f":"IF(Table_PrintPI[[#This Row],[Line No.]]=\"\",\"\",CONCATENATE(Table_PrintPI[[#This Row],[Line No.]],\" - \",Table_SummaryPI[[#This Row],[MeasureName]]))","v":""},{"$f":"IF(Table_SummaryPI[[#This Row],[Manufacturer]]<>\"\",CONCATENATE(Table_SummaryPI[[#This Row],[Manufacturer]],\"/\",Table_SummaryPI[[#This Row],[Model'#]]),\"\")","v":""},{"$f":"IF(Table_SummaryPI[[#This Row],[Serial'#]]<>\"\",Table_SummaryPI[[#This Row],[Serial'#]],\"\")","v":""},{"$f":"IF(Table_SummaryPI[[#This Row],[Quantity]]<>\"\",Table_SummaryPI[[#This Row],[Quantity]],\"\")","v":""},{"$f":"IF(Table_SummaryPI[[#This Row],[BaselinekWh]]<>\"\",Table_SummaryPI[[#This Row],[BaselinekWh]],\"\")","v":""},{"$f":"IF(Table_SummaryPI[[#This Row],[BaselinekW]]<>\"\",Table_SummaryPI[[#This Row],[BaselinekW]],\"\")","v":""},{"$f":"IF(Table_SummaryPI[[#This Row],[ProposedkWh]]<>\"\",Table_SummaryPI[[#This Row],[ProposedkWh]],\"\")","v":""},{"$f":"IF(Table_SummaryPI[[#This Row],[ProposedkW]]<>\"\",Table_SummaryPI[[#This Row],[ProposedkW]],\"\")","v":""},{"$f":"IF(Table_SummaryPI[[#This Row],[Notes]]<>\"\",Table_SummaryPI[[#This Row],[Notes]],\"\")","v":""},{"$f":"IF(Table_SummaryPI[[#This Row],[Incentive_Customer]]<>\"\",Table_SummaryPI[[#This Row],[Incentive_Customer]],0)","v":0},{"$f":"IF(Table_SummaryPI[[#This Row],[MeasureCost]]<>\"\",Table_SummaryPI[[#This Row],[MeasureCost]],0)","v":0},{"$f":"IF(Table_SummaryPI[[#This Row],[kWhSavings]]<>\"\",Table_SummaryPI[[#This Row],[kWhSavings]],0)","v":0},{"$f":"IF(Table_SummaryPI[[#This Row],[DemandSavingskW]]<>\"\",Table_SummaryPI[[#This Row],[DemandSavingskW]],0)","v":0}]
[{"$f":"Table_SummaryPI[[#This Row],[Line No.]]","v":""},{"$f":"IF(Table_PrintPI[[#This Row],[Line No.]]=\"\",\"\",CONCATENATE(Table_PrintPI[[#This Row],[Line No.]],\" - \",Table_SummaryPI[[#This Row],[MeasureName]]))","v":""},{"$f":"IF(Table_SummaryPI[[#This Row],[Manufacturer]]<>\"\",CONCATENATE(Table_SummaryPI[[#This Row],[Manufacturer]],\"/\",Table_SummaryPI[[#This Row],[Model'#]]),\"\")","v":""},{"$f":"IF(Table_SummaryPI[[#This Row],[Serial'#]]<>\"\",Table_SummaryPI[[#This Row],[Serial'#]],\"\")","v":""},{"$f":"IF(Table_SummaryPI[[#This Row],[Quantity]]<>\"\",Table_SummaryPI[[#This Row],[Quantity]],\"\")","v":""},{"$f":"IF(Table_SummaryPI[[#This Row],[BaselinekWh]]<>\"\",Table_SummaryPI[[#This Row],[BaselinekWh]],\"\")","v":""},{"$f":"IF(Table_SummaryPI[[#This Row],[BaselinekW]]<>\"\",Table_SummaryPI[[#This Row],[BaselinekW]],\"\")","v":""},{"$f":"IF(Table_SummaryPI[[#This Row],[ProposedkWh]]<>\"\",Table_SummaryPI[[#This Row],[ProposedkWh]],\"\")","v":""},{"$f":"IF(Table_SummaryPI[[#This Row],[ProposedkW]]<>\"\",Table_SummaryPI[[#This Row],[ProposedkW]],\"\")","v":""},{"$f":"IF(Table_SummaryPI[[#This Row],[Notes]]<>\"\",Table_SummaryPI[[#This Row],[Notes]],\"\")","v":""},{"$f":"IF(Table_SummaryPI[[#This Row],[Incentive_Customer]]<>\"\",Table_SummaryPI[[#This Row],[Incentive_Customer]],0)","v":0},{"$f":"IF(Table_SummaryPI[[#This Row],[MeasureCost]]<>\"\",Table_SummaryPI[[#This Row],[MeasureCost]],0)","v":0},{"$f":"IF(Table_SummaryPI[[#This Row],[kWhSavings]]<>\"\",Table_SummaryPI[[#This Row],[kWhSavings]],0)","v":0},{"$f":"IF(Table_SummaryPI[[#This Row],[DemandSavingskW]]<>\"\",Table_SummaryPI[[#This Row],[DemandSavingskW]],0)","v":0}]
[{"$f":"Table_SummaryPI[[#This Row],[Line No.]]","v":""},{"$f":"IF(Table_PrintPI[[#This Row],[Line No.]]=\"\",\"\",CONCATENATE(Table_PrintPI[[#This Row],[Line No.]],\" - \",Table_SummaryPI[[#This Row],[MeasureName]]))","v":""},{"$f":"IF(Table_SummaryPI[[#This Row],[Manufacturer]]<>\"\",CONCATENATE(Table_SummaryPI[[#This Row],[Manufacturer]],\"/\",Table_SummaryPI[[#This Row],[Model'#]]),\"\")","v":""},{"$f":"IF(Table_SummaryPI[[#This Row],[Serial'#]]<>\"\",Table_SummaryPI[[#This Row],[Serial'#]],\"\")","v":""},{"$f":"IF(Table_SummaryPI[[#This Row],[Quantity]]<>\"\",Table_SummaryPI[[#This Row],[Quantity]],\"\")","v":""},{"$f":"IF(Table_SummaryPI[[#This Row],[BaselinekWh]]<>\"\",Table_SummaryPI[[#This Row],[BaselinekWh]],\"\")","v":""},{"$f":"IF(Table_SummaryPI[[#This Row],[BaselinekW]]<>\"\",Table_SummaryPI[[#This Row],[BaselinekW]],\"\")","v":""},{"$f":"IF(Table_SummaryPI[[#This Row],[ProposedkWh]]<>\"\",Table_SummaryPI[[#This Row],[ProposedkWh]],\"\")","v":""},{"$f":"IF(Table_SummaryPI[[#This Row],[ProposedkW]]<>\"\",Table_SummaryPI[[#This Row],[ProposedkW]],\"\")","v":""},{"$f":"IF(Table_SummaryPI[[#This Row],[Notes]]<>\"\",Table_SummaryPI[[#This Row],[Notes]],\"\")","v":""},{"$f":"IF(Table_SummaryPI[[#This Row],[Incentive_Customer]]<>\"\",Table_SummaryPI[[#This Row],[Incentive_Customer]],0)","v":0},{"$f":"IF(Table_SummaryPI[[#This Row],[MeasureCost]]<>\"\",Table_SummaryPI[[#This Row],[MeasureCost]],0)","v":0},{"$f":"IF(Table_SummaryPI[[#This Row],[kWhSavings]]<>\"\",Table_SummaryPI[[#This Row],[kWhSavings]],0)","v":0},{"$f":"IF(Table_SummaryPI[[#This Row],[DemandSavingskW]]<>\"\",Table_SummaryPI[[#This Row],[DemandSavingskW]],0)","v":0}]
[{"$f":"Table_SummaryPI[[#This Row],[Line No.]]","v":""},{"$f":"IF(Table_PrintPI[[#This Row],[Line No.]]=\"\",\"\",CONCATENATE(Table_PrintPI[[#This Row],[Line No.]],\" - \",Table_SummaryPI[[#This Row],[MeasureName]]))","v":""},{"$f":"IF(Table_SummaryPI[[#This Row],[Manufacturer]]<>\"\",CONCATENATE(Table_SummaryPI[[#This Row],[Manufacturer]],\"/\",Table_SummaryPI[[#This Row],[Model'#]]),\"\")","v":""},{"$f":"IF(Table_SummaryPI[[#This Row],[Serial'#]]<>\"\",Table_SummaryPI[[#This Row],[Serial'#]],\"\")","v":""},{"$f":"IF(Table_SummaryPI[[#This Row],[Quantity]]<>\"\",Table_SummaryPI[[#This Row],[Quantity]],\"\")","v":""},{"$f":"IF(Table_SummaryPI[[#This Row],[BaselinekWh]]<>\"\",Table_SummaryPI[[#This Row],[BaselinekWh]],\"\")","v":""},{"$f":"IF(Table_SummaryPI[[#This Row],[BaselinekW]]<>\"\",Table_SummaryPI[[#This Row],[BaselinekW]],\"\")","v":""},{"$f":"IF(Table_SummaryPI[[#This Row],[ProposedkWh]]<>\"\",Table_SummaryPI[[#This Row],[ProposedkWh]],\"\")","v":""},{"$f":"IF(Table_SummaryPI[[#This Row],[ProposedkW]]<>\"\",Table_SummaryPI[[#This Row],[ProposedkW]],\"\")","v":""},{"$f":"IF(Table_SummaryPI[[#This Row],[Notes]]<>\"\",Table_SummaryPI[[#This Row],[Notes]],\"\")","v":""},{"$f":"IF(Table_SummaryPI[[#This Row],[Incentive_Customer]]<>\"\",Table_SummaryPI[[#This Row],[Incentive_Customer]],0)","v":0},{"$f":"IF(Table_SummaryPI[[#This Row],[MeasureCost]]<>\"\",Table_SummaryPI[[#This Row],[MeasureCost]],0)","v":0},{"$f":"IF(Table_SummaryPI[[#This Row],[kWhSavings]]<>\"\",Table_SummaryPI[[#This Row],[kWhSavings]],0)","v":0},{"$f":"IF(Table_SummaryPI[[#This Row],[DemandSavingskW]]<>\"\",Table_SummaryPI[[#This Row],[DemandSavingskW]],0)","v":0}]
[{"$f":"Table_SummaryPI[[#This Row],[Line No.]]","v":""},{"$f":"IF(Table_PrintPI[[#This Row],[Line No.]]=\"\",\"\",CONCATENATE(Table_PrintPI[[#This Row],[Line No.]],\" - \",Table_SummaryPI[[#This Row],[MeasureName]]))","v":""},{"$f":"IF(Table_SummaryPI[[#This Row],[Manufacturer]]<>\"\",CONCATENATE(Table_SummaryPI[[#This Row],[Manufacturer]],\"/\",Table_SummaryPI[[#This Row],[Model'#]]),\"\")","v":""},{"$f":"IF(Table_SummaryPI[[#This Row],[Serial'#]]<>\"\",Table_SummaryPI[[#This Row],[Serial'#]],\"\")","v":""},{"$f":"IF(Table_SummaryPI[[#This Row],[Quantity]]<>\"\",Table_SummaryPI[[#This Row],[Quantity]],\"\")","v":""},{"$f":"IF(Table_SummaryPI[[#This Row],[BaselinekWh]]<>\"\",Table_SummaryPI[[#This Row],[BaselinekWh]],\"\")","v":""},{"$f":"IF(Table_SummaryPI[[#This Row],[BaselinekW]]<>\"\",Table_SummaryPI[[#This Row],[BaselinekW]],\"\")","v":""},{"$f":"IF(Table_SummaryPI[[#This Row],[ProposedkWh]]<>\"\",Table_SummaryPI[[#This Row],[ProposedkWh]],\"\")","v":""},{"$f":"IF(Table_SummaryPI[[#This Row],[ProposedkW]]<>\"\",Table_SummaryPI[[#This Row],[ProposedkW]],\"\")","v":""},{"$f":"IF(Table_SummaryPI[[#This Row],[Notes]]<>\"\",Table_SummaryPI[[#This Row],[Notes]],\"\")","v":""},{"$f":"IF(Table_SummaryPI[[#This Row],[Incentive_Customer]]<>\"\",Table_SummaryPI[[#This Row],[Incentive_Customer]],0)","v":0},{"$f":"IF(Table_SummaryPI[[#This Row],[MeasureCost]]<>\"\",Table_SummaryPI[[#This Row],[MeasureCost]],0)","v":0},{"$f":"IF(Table_SummaryPI[[#This Row],[kWhSavings]]<>\"\",Table_SummaryPI[[#This Row],[kWhSavings]],0)","v":0},{"$f":"IF(Table_SummaryPI[[#This Row],[DemandSavingskW]]<>\"\",Table_SummaryPI[[#This Row],[DemandSavingskW]],0)","v":0}]
[{"$f":"Table_SummaryPI[[#This Row],[Line No.]]","v":""},{"$f":"IF(Table_PrintPI[[#This Row],[Line No.]]=\"\",\"\",CONCATENATE(Table_PrintPI[[#This Row],[Line No.]],\" - \",Table_SummaryPI[[#This Row],[MeasureName]]))","v":""},{"$f":"IF(Table_SummaryPI[[#This Row],[Manufacturer]]<>\"\",CONCATENATE(Table_SummaryPI[[#This Row],[Manufacturer]],\"/\",Table_SummaryPI[[#This Row],[Model'#]]),\"\")","v":""},{"$f":"IF(Table_SummaryPI[[#This Row],[Serial'#]]<>\"\",Table_SummaryPI[[#This Row],[Serial'#]],\"\")","v":""},{"$f":"IF(Table_SummaryPI[[#This Row],[Quantity]]<>\"\",Table_SummaryPI[[#This Row],[Quantity]],\"\")","v":""},{"$f":"IF(Table_SummaryPI[[#This Row],[BaselinekWh]]<>\"\",Table_SummaryPI[[#This Row],[BaselinekWh]],\"\")","v":""},{"$f":"IF(Table_SummaryPI[[#This Row],[BaselinekW]]<>\"\",Table_SummaryPI[[#This Row],[BaselinekW]],\"\")","v":""},{"$f":"IF(Table_SummaryPI[[#This Row],[ProposedkWh]]<>\"\",Table_SummaryPI[[#This Row],[ProposedkWh]],\"\")","v":""},{"$f":"IF(Table_SummaryPI[[#This Row],[ProposedkW]]<>\"\",Table_SummaryPI[[#This Row],[ProposedkW]],\"\")","v":""},{"$f":"IF(Table_SummaryPI[[#This Row],[Notes]]<>\"\",Table_SummaryPI[[#This Row],[Notes]],\"\")","v":""},{"$f":"IF(Table_SummaryPI[[#This Row],[Incentive_Customer]]<>\"\",Table_SummaryPI[[#This Row],[Incentive_Customer]],0)","v":0},{"$f":"IF(Table_SummaryPI[[#This Row],[MeasureCost]]<>\"\",Table_SummaryPI[[#This Row],[MeasureCost]],0)","v":0},{"$f":"IF(Table_SummaryPI[[#This Row],[kWhSavings]]<>\"\",Table_SummaryPI[[#This Row],[kWhSavings]],0)","v":0},{"$f":"IF(Table_SummaryPI[[#This Row],[DemandSavingskW]]<>\"\",Table_SummaryPI[[#This Row],[DemandSavingskW]],0)","v":0}]
[{"$f":"Table_SummaryPI[[#This Row],[Line No.]]","v":""},{"$f":"IF(Table_PrintPI[[#This Row],[Line No.]]=\"\",\"\",CONCATENATE(Table_PrintPI[[#This Row],[Line No.]],\" - \",Table_SummaryPI[[#This Row],[MeasureName]]))","v":""},{"$f":"IF(Table_SummaryPI[[#This Row],[Manufacturer]]<>\"\",CONCATENATE(Table_SummaryPI[[#This Row],[Manufacturer]],\"/\",Table_SummaryPI[[#This Row],[Model'#]]),\"\")","v":""},{"$f":"IF(Table_SummaryPI[[#This Row],[Serial'#]]<>\"\",Table_SummaryPI[[#This Row],[Serial'#]],\"\")","v":""},{"$f":"IF(Table_SummaryPI[[#This Row],[Quantity]]<>\"\",Table_SummaryPI[[#This Row],[Quantity]],\"\")","v":""},{"$f":"IF(Table_SummaryPI[[#This Row],[BaselinekWh]]<>\"\",Table_SummaryPI[[#This Row],[BaselinekWh]],\"\")","v":""},{"$f":"IF(Table_SummaryPI[[#This Row],[BaselinekW]]<>\"\",Table_SummaryPI[[#This Row],[BaselinekW]],\"\")","v":""},{"$f":"IF(Table_SummaryPI[[#This Row],[ProposedkWh]]<>\"\",Table_SummaryPI[[#This Row],[ProposedkWh]],\"\")","v":""},{"$f":"IF(Table_SummaryPI[[#This Row],[ProposedkW]]<>\"\",Table_SummaryPI[[#This Row],[ProposedkW]],\"\")","v":""},{"$f":"IF(Table_SummaryPI[[#This Row],[Notes]]<>\"\",Table_SummaryPI[[#This Row],[Notes]],\"\")","v":""},{"$f":"IF(Table_SummaryPI[[#This Row],[Incentive_Customer]]<>\"\",Table_SummaryPI[[#This Row],[Incentive_Customer]],0)","v":0},{"$f":"IF(Table_SummaryPI[[#This Row],[MeasureCost]]<>\"\",Table_SummaryPI[[#This Row],[MeasureCost]],0)","v":0},{"$f":"IF(Table_SummaryPI[[#This Row],[kWhSavings]]<>\"\",Table_SummaryPI[[#This Row],[kWhSavings]],0)","v":0},{"$f":"IF(Table_SummaryPI[[#This Row],[DemandSavingskW]]<>\"\",Table_SummaryPI[[#This Row],[DemandSavingskW]],0)","v":0}]
[{"$f":"Table_SummaryPI[[#This Row],[Line No.]]","v":""},{"$f":"IF(Table_PrintPI[[#This Row],[Line No.]]=\"\",\"\",CONCATENATE(Table_PrintPI[[#This Row],[Line No.]],\" - \",Table_SummaryPI[[#This Row],[MeasureName]]))","v":""},{"$f":"IF(Table_SummaryPI[[#This Row],[Manufacturer]]<>\"\",CONCATENATE(Table_SummaryPI[[#This Row],[Manufacturer]],\"/\",Table_SummaryPI[[#This Row],[Model'#]]),\"\")","v":""},{"$f":"IF(Table_SummaryPI[[#This Row],[Serial'#]]<>\"\",Table_SummaryPI[[#This Row],[Serial'#]],\"\")","v":""},{"$f":"IF(Table_SummaryPI[[#This Row],[Quantity]]<>\"\",Table_SummaryPI[[#This Row],[Quantity]],\"\")","v":""},{"$f":"IF(Table_SummaryPI[[#This Row],[BaselinekWh]]<>\"\",Table_SummaryPI[[#This Row],[BaselinekWh]],\"\")","v":""},{"$f":"IF(Table_SummaryPI[[#This Row],[BaselinekW]]<>\"\",Table_SummaryPI[[#This Row],[BaselinekW]],\"\")","v":""},{"$f":"IF(Table_SummaryPI[[#This Row],[ProposedkWh]]<>\"\",Table_SummaryPI[[#This Row],[ProposedkWh]],\"\")","v":""},{"$f":"IF(Table_SummaryPI[[#This Row],[ProposedkW]]<>\"\",Table_SummaryPI[[#This Row],[ProposedkW]],\"\")","v":""},{"$f":"IF(Table_SummaryPI[[#This Row],[Notes]]<>\"\",Table_SummaryPI[[#This Row],[Notes]],\"\")","v":""},{"$f":"IF(Table_SummaryPI[[#This Row],[Incentive_Customer]]<>\"\",Table_SummaryPI[[#This Row],[Incentive_Customer]],0)","v":0},{"$f":"IF(Table_SummaryPI[[#This Row],[MeasureCost]]<>\"\",Table_SummaryPI[[#This Row],[MeasureCost]],0)","v":0},{"$f":"IF(Table_SummaryPI[[#This Row],[kWhSavings]]<>\"\",Table_SummaryPI[[#This Row],[kWhSavings]],0)","v":0},{"$f":"IF(Table_SummaryPI[[#This Row],[DemandSavingskW]]<>\"\",Table_SummaryPI[[#This Row],[DemandSavingskW]],0)","v":0}]
[{"$f":"Table_SummaryPI[[#This Row],[Line No.]]","v":""},{"$f":"IF(Table_PrintPI[[#This Row],[Line No.]]=\"\",\"\",CONCATENATE(Table_PrintPI[[#This Row],[Line No.]],\" - \",Table_SummaryPI[[#This Row],[MeasureName]]))","v":""},{"$f":"IF(Table_SummaryPI[[#This Row],[Manufacturer]]<>\"\",CONCATENATE(Table_SummaryPI[[#This Row],[Manufacturer]],\"/\",Table_SummaryPI[[#This Row],[Model'#]]),\"\")","v":""},{"$f":"IF(Table_SummaryPI[[#This Row],[Serial'#]]<>\"\",Table_SummaryPI[[#This Row],[Serial'#]],\"\")","v":""},{"$f":"IF(Table_SummaryPI[[#This Row],[Quantity]]<>\"\",Table_SummaryPI[[#This Row],[Quantity]],\"\")","v":""},{"$f":"IF(Table_SummaryPI[[#This Row],[BaselinekWh]]<>\"\",Table_SummaryPI[[#This Row],[BaselinekWh]],\"\")","v":""},{"$f":"IF(Table_SummaryPI[[#This Row],[BaselinekW]]<>\"\",Table_SummaryPI[[#This Row],[BaselinekW]],\"\")","v":""},{"$f":"IF(Table_SummaryPI[[#This Row],[ProposedkWh]]<>\"\",Table_SummaryPI[[#This Row],[ProposedkWh]],\"\")","v":""},{"$f":"IF(Table_SummaryPI[[#This Row],[ProposedkW]]<>\"\",Table_SummaryPI[[#This Row],[ProposedkW]],\"\")","v":""},{"$f":"IF(Table_SummaryPI[[#This Row],[Notes]]<>\"\",Table_SummaryPI[[#This Row],[Notes]],\"\")","v":""},{"$f":"IF(Table_SummaryPI[[#This Row],[Incentive_Customer]]<>\"\",Table_SummaryPI[[#This Row],[Incentive_Customer]],0)","v":0},{"$f":"IF(Table_SummaryPI[[#This Row],[MeasureCost]]<>\"\",Table_SummaryPI[[#This Row],[MeasureCost]],0)","v":0},{"$f":"IF(Table_SummaryPI[[#This Row],[kWhSavings]]<>\"\",Table_SummaryPI[[#This Row],[kWhSavings]],0)","v":0},{"$f":"IF(Table_SummaryPI[[#This Row],[DemandSavingskW]]<>\"\",Table_SummaryPI[[#This Row],[DemandSavingskW]],0)","v":0}]
[{"$f":"Table_SummaryPI[[#This Row],[Line No.]]","v":""},{"$f":"IF(Table_PrintPI[[#This Row],[Line No.]]=\"\",\"\",CONCATENATE(Table_PrintPI[[#This Row],[Line No.]],\" - \",Table_SummaryPI[[#This Row],[MeasureName]]))","v":""},{"$f":"IF(Table_SummaryPI[[#This Row],[Manufacturer]]<>\"\",CONCATENATE(Table_SummaryPI[[#This Row],[Manufacturer]],\"/\",Table_SummaryPI[[#This Row],[Model'#]]),\"\")","v":""},{"$f":"IF(Table_SummaryPI[[#This Row],[Serial'#]]<>\"\",Table_SummaryPI[[#This Row],[Serial'#]],\"\")","v":""},{"$f":"IF(Table_SummaryPI[[#This Row],[Quantity]]<>\"\",Table_SummaryPI[[#This Row],[Quantity]],\"\")","v":""},{"$f":"IF(Table_SummaryPI[[#This Row],[BaselinekWh]]<>\"\",Table_SummaryPI[[#This Row],[BaselinekWh]],\"\")","v":""},{"$f":"IF(Table_SummaryPI[[#This Row],[BaselinekW]]<>\"\",Table_SummaryPI[[#This Row],[BaselinekW]],\"\")","v":""},{"$f":"IF(Table_SummaryPI[[#This Row],[ProposedkWh]]<>\"\",Table_SummaryPI[[#This Row],[ProposedkWh]],\"\")","v":""},{"$f":"IF(Table_SummaryPI[[#This Row],[ProposedkW]]<>\"\",Table_SummaryPI[[#This Row],[ProposedkW]],\"\")","v":""},{"$f":"IF(Table_SummaryPI[[#This Row],[Notes]]<>\"\",Table_SummaryPI[[#This Row],[Notes]],\"\")","v":""},{"$f":"IF(Table_SummaryPI[[#This Row],[Incentive_Customer]]<>\"\",Table_SummaryPI[[#This Row],[Incentive_Customer]],0)","v":0},{"$f":"IF(Table_SummaryPI[[#This Row],[MeasureCost]]<>\"\",Table_SummaryPI[[#This Row],[MeasureCost]],0)","v":0},{"$f":"IF(Table_SummaryPI[[#This Row],[kWhSavings]]<>\"\",Table_SummaryPI[[#This Row],[kWhSavings]],0)","v":0},{"$f":"IF(Table_SummaryPI[[#This Row],[DemandSavingskW]]<>\"\",Table_SummaryPI[[#This Row],[DemandSavingskW]],0)","v":0}]
[{"$f":"Table_SummaryPI[[#This Row],[Line No.]]","v":""},{"$f":"IF(Table_PrintPI[[#This Row],[Line No.]]=\"\",\"\",CONCATENATE(Table_PrintPI[[#This Row],[Line No.]],\" - \",Table_SummaryPI[[#This Row],[MeasureName]]))","v":""},{"$f":"IF(Table_SummaryPI[[#This Row],[Manufacturer]]<>\"\",CONCATENATE(Table_SummaryPI[[#This Row],[Manufacturer]],\"/\",Table_SummaryPI[[#This Row],[Model'#]]),\"\")","v":""},{"$f":"IF(Table_SummaryPI[[#This Row],[Serial'#]]<>\"\",Table_SummaryPI[[#This Row],[Serial'#]],\"\")","v":""},{"$f":"IF(Table_SummaryPI[[#This Row],[Quantity]]<>\"\",Table_SummaryPI[[#This Row],[Quantity]],\"\")","v":""},{"$f":"IF(Table_SummaryPI[[#This Row],[BaselinekWh]]<>\"\",Table_SummaryPI[[#This Row],[BaselinekWh]],\"\")","v":""},{"$f":"IF(Table_SummaryPI[[#This Row],[BaselinekW]]<>\"\",Table_SummaryPI[[#This Row],[BaselinekW]],\"\")","v":""},{"$f":"IF(Table_SummaryPI[[#This Row],[ProposedkWh]]<>\"\",Table_SummaryPI[[#This Row],[ProposedkWh]],\"\")","v":""},{"$f":"IF(Table_SummaryPI[[#This Row],[ProposedkW]]<>\"\",Table_SummaryPI[[#This Row],[ProposedkW]],\"\")","v":""},{"$f":"IF(Table_SummaryPI[[#This Row],[Notes]]<>\"\",Table_SummaryPI[[#This Row],[Notes]],\"\")","v":""},{"$f":"IF(Table_SummaryPI[[#This Row],[Incentive_Customer]]<>\"\",Table_SummaryPI[[#This Row],[Incentive_Customer]],0)","v":0},{"$f":"IF(Table_SummaryPI[[#This Row],[MeasureCost]]<>\"\",Table_SummaryPI[[#This Row],[MeasureCost]],0)","v":0},{"$f":"IF(Table_SummaryPI[[#This Row],[kWhSavings]]<>\"\",Table_SummaryPI[[#This Row],[kWhSavings]],0)","v":0},{"$f":"IF(Table_SummaryPI[[#This Row],[DemandSavingskW]]<>\"\",Table_SummaryPI[[#This Row],[DemandSavingskW]],0)","v":0}]
[{"$f":"Table_SummaryPI[[#This Row],[Line No.]]","v":""},{"$f":"IF(Table_PrintPI[[#This Row],[Line No.]]=\"\",\"\",CONCATENATE(Table_PrintPI[[#This Row],[Line No.]],\" - \",Table_SummaryPI[[#This Row],[MeasureName]]))","v":""},{"$f":"IF(Table_SummaryPI[[#This Row],[Manufacturer]]<>\"\",CONCATENATE(Table_SummaryPI[[#This Row],[Manufacturer]],\"/\",Table_SummaryPI[[#This Row],[Model'#]]),\"\")","v":""},{"$f":"IF(Table_SummaryPI[[#This Row],[Serial'#]]<>\"\",Table_SummaryPI[[#This Row],[Serial'#]],\"\")","v":""},{"$f":"IF(Table_SummaryPI[[#This Row],[Quantity]]<>\"\",Table_SummaryPI[[#This Row],[Quantity]],\"\")","v":""},{"$f":"IF(Table_SummaryPI[[#This Row],[BaselinekWh]]<>\"\",Table_SummaryPI[[#This Row],[BaselinekWh]],\"\")","v":""},{"$f":"IF(Table_SummaryPI[[#This Row],[BaselinekW]]<>\"\",Table_SummaryPI[[#This Row],[BaselinekW]],\"\")","v":""},{"$f":"IF(Table_SummaryPI[[#This Row],[ProposedkWh]]<>\"\",Table_SummaryPI[[#This Row],[ProposedkWh]],\"\")","v":""},{"$f":"IF(Table_SummaryPI[[#This Row],[ProposedkW]]<>\"\",Table_SummaryPI[[#This Row],[ProposedkW]],\"\")","v":""},{"$f":"IF(Table_SummaryPI[[#This Row],[Notes]]<>\"\",Table_SummaryPI[[#This Row],[Notes]],\"\")","v":""},{"$f":"IF(Table_SummaryPI[[#This Row],[Incentive_Customer]]<>\"\",Table_SummaryPI[[#This Row],[Incentive_Customer]],0)","v":0},{"$f":"IF(Table_SummaryPI[[#This Row],[MeasureCost]]<>\"\",Table_SummaryPI[[#This Row],[MeasureCost]],0)","v":0},{"$f":"IF(Table_SummaryPI[[#This Row],[kWhSavings]]<>\"\",Table_SummaryPI[[#This Row],[kWhSavings]],0)","v":0},{"$f":"IF(Table_SummaryPI[[#This Row],[DemandSavingskW]]<>\"\",Table_SummaryPI[[#This Row],[DemandSavingskW]],0)","v":0}]
[{"$f":"Table_SummaryPI[[#This Row],[Line No.]]","v":""},{"$f":"IF(Table_PrintPI[[#This Row],[Line No.]]=\"\",\"\",CONCATENATE(Table_PrintPI[[#This Row],[Line No.]],\" - \",Table_SummaryPI[[#This Row],[MeasureName]]))","v":""},{"$f":"IF(Table_SummaryPI[[#This Row],[Manufacturer]]<>\"\",CONCATENATE(Table_SummaryPI[[#This Row],[Manufacturer]],\"/\",Table_SummaryPI[[#This Row],[Model'#]]),\"\")","v":""},{"$f":"IF(Table_SummaryPI[[#This Row],[Serial'#]]<>\"\",Table_SummaryPI[[#This Row],[Serial'#]],\"\")","v":""},{"$f":"IF(Table_SummaryPI[[#This Row],[Quantity]]<>\"\",Table_SummaryPI[[#This Row],[Quantity]],\"\")","v":""},{"$f":"IF(Table_SummaryPI[[#This Row],[BaselinekWh]]<>\"\",Table_SummaryPI[[#This Row],[BaselinekWh]],\"\")","v":""},{"$f":"IF(Table_SummaryPI[[#This Row],[BaselinekW]]<>\"\",Table_SummaryPI[[#This Row],[BaselinekW]],\"\")","v":""},{"$f":"IF(Table_SummaryPI[[#This Row],[ProposedkWh]]<>\"\",Table_SummaryPI[[#This Row],[ProposedkWh]],\"\")","v":""},{"$f":"IF(Table_SummaryPI[[#This Row],[ProposedkW]]<>\"\",Table_SummaryPI[[#This Row],[ProposedkW]],\"\")","v":""},{"$f":"IF(Table_SummaryPI[[#This Row],[Notes]]<>\"\",Table_SummaryPI[[#This Row],[Notes]],\"\")","v":""},{"$f":"IF(Table_SummaryPI[[#This Row],[Incentive_Customer]]<>\"\",Table_SummaryPI[[#This Row],[Incentive_Customer]],0)","v":0},{"$f":"IF(Table_SummaryPI[[#This Row],[MeasureCost]]<>\"\",Table_SummaryPI[[#This Row],[MeasureCost]],0)","v":0},{"$f":"IF(Table_SummaryPI[[#This Row],[kWhSavings]]<>\"\",Table_SummaryPI[[#This Row],[kWhSavings]],0)","v":0},{"$f":"IF(Table_SummaryPI[[#This Row],[DemandSavingskW]]<>\"\",Table_SummaryPI[[#This Row],[DemandSavingskW]],0)","v":0}]
[{"$f":"Table_SummaryPI[[#This Row],[Line No.]]","v":""},{"$f":"IF(Table_PrintPI[[#This Row],[Line No.]]=\"\",\"\",CONCATENATE(Table_PrintPI[[#This Row],[Line No.]],\" - \",Table_SummaryPI[[#This Row],[MeasureName]]))","v":""},{"$f":"IF(Table_SummaryPI[[#This Row],[Manufacturer]]<>\"\",CONCATENATE(Table_SummaryPI[[#This Row],[Manufacturer]],\"/\",Table_SummaryPI[[#This Row],[Model'#]]),\"\")","v":""},{"$f":"IF(Table_SummaryPI[[#This Row],[Serial'#]]<>\"\",Table_SummaryPI[[#This Row],[Serial'#]],\"\")","v":""},{"$f":"IF(Table_SummaryPI[[#This Row],[Quantity]]<>\"\",Table_SummaryPI[[#This Row],[Quantity]],\"\")","v":""},{"$f":"IF(Table_SummaryPI[[#This Row],[BaselinekWh]]<>\"\",Table_SummaryPI[[#This Row],[BaselinekWh]],\"\")","v":""},{"$f":"IF(Table_SummaryPI[[#This Row],[BaselinekW]]<>\"\",Table_SummaryPI[[#This Row],[BaselinekW]],\"\")","v":""},{"$f":"IF(Table_SummaryPI[[#This Row],[ProposedkWh]]<>\"\",Table_SummaryPI[[#This Row],[ProposedkWh]],\"\")","v":""},{"$f":"IF(Table_SummaryPI[[#This Row],[ProposedkW]]<>\"\",Table_SummaryPI[[#This Row],[ProposedkW]],\"\")","v":""},{"$f":"IF(Table_SummaryPI[[#This Row],[Notes]]<>\"\",Table_SummaryPI[[#This Row],[Notes]],\"\")","v":""},{"$f":"IF(Table_SummaryPI[[#This Row],[Incentive_Customer]]<>\"\",Table_SummaryPI[[#This Row],[Incentive_Customer]],0)","v":0},{"$f":"IF(Table_SummaryPI[[#This Row],[MeasureCost]]<>\"\",Table_SummaryPI[[#This Row],[MeasureCost]],0)","v":0},{"$f":"IF(Table_SummaryPI[[#This Row],[kWhSavings]]<>\"\",Table_SummaryPI[[#This Row],[kWhSavings]],0)","v":0},{"$f":"IF(Table_SummaryPI[[#This Row],[DemandSavingskW]]<>\"\",Table_SummaryPI[[#This Row],[DemandSavingskW]],0)","v":0}]
[{"$f":"Table_SummaryPI[[#This Row],[Line No.]]","v":""},{"$f":"IF(Table_PrintPI[[#This Row],[Line No.]]=\"\",\"\",CONCATENATE(Table_PrintPI[[#This Row],[Line No.]],\" - \",Table_SummaryPI[[#This Row],[MeasureName]]))","v":""},{"$f":"IF(Table_SummaryPI[[#This Row],[Manufacturer]]<>\"\",CONCATENATE(Table_SummaryPI[[#This Row],[Manufacturer]],\"/\",Table_SummaryPI[[#This Row],[Model'#]]),\"\")","v":""},{"$f":"IF(Table_SummaryPI[[#This Row],[Serial'#]]<>\"\",Table_SummaryPI[[#This Row],[Serial'#]],\"\")","v":""},{"$f":"IF(Table_SummaryPI[[#This Row],[Quantity]]<>\"\",Table_SummaryPI[[#This Row],[Quantity]],\"\")","v":""},{"$f":"IF(Table_SummaryPI[[#This Row],[BaselinekWh]]<>\"\",Table_SummaryPI[[#This Row],[BaselinekWh]],\"\")","v":""},{"$f":"IF(Table_SummaryPI[[#This Row],[BaselinekW]]<>\"\",Table_SummaryPI[[#This Row],[BaselinekW]],\"\")","v":""},{"$f":"IF(Table_SummaryPI[[#This Row],[ProposedkWh]]<>\"\",Table_SummaryPI[[#This Row],[ProposedkWh]],\"\")","v":""},{"$f":"IF(Table_SummaryPI[[#This Row],[ProposedkW]]<>\"\",Table_SummaryPI[[#This Row],[ProposedkW]],\"\")","v":""},{"$f":"IF(Table_SummaryPI[[#This Row],[Notes]]<>\"\",Table_SummaryPI[[#This Row],[Notes]],\"\")","v":""},{"$f":"IF(Table_SummaryPI[[#This Row],[Incentive_Customer]]<>\"\",Table_SummaryPI[[#This Row],[Incentive_Customer]],0)","v":0},{"$f":"IF(Table_SummaryPI[[#This Row],[MeasureCost]]<>\"\",Table_SummaryPI[[#This Row],[MeasureCost]],0)","v":0},{"$f":"IF(Table_SummaryPI[[#This Row],[kWhSavings]]<>\"\",Table_SummaryPI[[#This Row],[kWhSavings]],0)","v":0},{"$f":"IF(Table_SummaryPI[[#This Row],[DemandSavingskW]]<>\"\",Table_SummaryPI[[#This Row],[DemandSavingskW]],0)","v":0}]
[{"$f":"Table_SummaryPI[[#This Row],[Line No.]]","v":""},{"$f":"IF(Table_PrintPI[[#This Row],[Line No.]]=\"\",\"\",CONCATENATE(Table_PrintPI[[#This Row],[Line No.]],\" - \",Table_SummaryPI[[#This Row],[MeasureName]]))","v":""},{"$f":"IF(Table_SummaryPI[[#This Row],[Manufacturer]]<>\"\",CONCATENATE(Table_SummaryPI[[#This Row],[Manufacturer]],\"/\",Table_SummaryPI[[#This Row],[Model'#]]),\"\")","v":""},{"$f":"IF(Table_SummaryPI[[#This Row],[Serial'#]]<>\"\",Table_SummaryPI[[#This Row],[Serial'#]],\"\")","v":""},{"$f":"IF(Table_SummaryPI[[#This Row],[Quantity]]<>\"\",Table_SummaryPI[[#This Row],[Quantity]],\"\")","v":""},{"$f":"IF(Table_SummaryPI[[#This Row],[BaselinekWh]]<>\"\",Table_SummaryPI[[#This Row],[BaselinekWh]],\"\")","v":""},{"$f":"IF(Table_SummaryPI[[#This Row],[BaselinekW]]<>\"\",Table_SummaryPI[[#This Row],[BaselinekW]],\"\")","v":""},{"$f":"IF(Table_SummaryPI[[#This Row],[ProposedkWh]]<>\"\",Table_SummaryPI[[#This Row],[ProposedkWh]],\"\")","v":""},{"$f":"IF(Table_SummaryPI[[#This Row],[ProposedkW]]<>\"\",Table_SummaryPI[[#This Row],[ProposedkW]],\"\")","v":""},{"$f":"IF(Table_SummaryPI[[#This Row],[Notes]]<>\"\",Table_SummaryPI[[#This Row],[Notes]],\"\")","v":""},{"$f":"IF(Table_SummaryPI[[#This Row],[Incentive_Customer]]<>\"\",Table_SummaryPI[[#This Row],[Incentive_Customer]],0)","v":0},{"$f":"IF(Table_SummaryPI[[#This Row],[MeasureCost]]<>\"\",Table_SummaryPI[[#This Row],[MeasureCost]],0)","v":0},{"$f":"IF(Table_SummaryPI[[#This Row],[kWhSavings]]<>\"\",Table_SummaryPI[[#This Row],[kWhSavings]],0)","v":0},{"$f":"IF(Table_SummaryPI[[#This Row],[DemandSavingskW]]<>\"\",Table_SummaryPI[[#This Row],[DemandSavingskW]],0)","v":0}]
[{"$f":"Table_SummaryPI[[#This Row],[Line No.]]","v":""},{"$f":"IF(Table_PrintPI[[#This Row],[Line No.]]=\"\",\"\",CONCATENATE(Table_PrintPI[[#This Row],[Line No.]],\" - \",Table_SummaryPI[[#This Row],[MeasureName]]))","v":""},{"$f":"IF(Table_SummaryPI[[#This Row],[Manufacturer]]<>\"\",CONCATENATE(Table_SummaryPI[[#This Row],[Manufacturer]],\"/\",Table_SummaryPI[[#This Row],[Model'#]]),\"\")","v":""},{"$f":"IF(Table_SummaryPI[[#This Row],[Serial'#]]<>\"\",Table_SummaryPI[[#This Row],[Serial'#]],\"\")","v":""},{"$f":"IF(Table_SummaryPI[[#This Row],[Quantity]]<>\"\",Table_SummaryPI[[#This Row],[Quantity]],\"\")","v":""},{"$f":"IF(Table_SummaryPI[[#This Row],[BaselinekWh]]<>\"\",Table_SummaryPI[[#This Row],[BaselinekWh]],\"\")","v":""},{"$f":"IF(Table_SummaryPI[[#This Row],[BaselinekW]]<>\"\",Table_SummaryPI[[#This Row],[BaselinekW]],\"\")","v":""},{"$f":"IF(Table_SummaryPI[[#This Row],[ProposedkWh]]<>\"\",Table_SummaryPI[[#This Row],[ProposedkWh]],\"\")","v":""},{"$f":"IF(Table_SummaryPI[[#This Row],[ProposedkW]]<>\"\",Table_SummaryPI[[#This Row],[ProposedkW]],\"\")","v":""},{"$f":"IF(Table_SummaryPI[[#This Row],[Notes]]<>\"\",Table_SummaryPI[[#This Row],[Notes]],\"\")","v":""},{"$f":"IF(Table_SummaryPI[[#This Row],[Incentive_Customer]]<>\"\",Table_SummaryPI[[#This Row],[Incentive_Customer]],0)","v":0},{"$f":"IF(Table_SummaryPI[[#This Row],[MeasureCost]]<>\"\",Table_SummaryPI[[#This Row],[MeasureCost]],0)","v":0},{"$f":"IF(Table_SummaryPI[[#This Row],[kWhSavings]]<>\"\",Table_SummaryPI[[#This Row],[kWhSavings]],0)","v":0},{"$f":"IF(Table_SummaryPI[[#This Row],[DemandSavingskW]]<>\"\",Table_SummaryPI[[#This Row],[DemandSavingskW]],0)","v":0}]
[{"$f":"Table_SummaryPI[[#This Row],[Line No.]]","v":""},{"$f":"IF(Table_PrintPI[[#This Row],[Line No.]]=\"\",\"\",CONCATENATE(Table_PrintPI[[#This Row],[Line No.]],\" - \",Table_SummaryPI[[#This Row],[MeasureName]]))","v":""},{"$f":"IF(Table_SummaryPI[[#This Row],[Manufacturer]]<>\"\",CONCATENATE(Table_SummaryPI[[#This Row],[Manufacturer]],\"/\",Table_SummaryPI[[#This Row],[Model'#]]),\"\")","v":""},{"$f":"IF(Table_SummaryPI[[#This Row],[Serial'#]]<>\"\",Table_SummaryPI[[#This Row],[Serial'#]],\"\")","v":""},{"$f":"IF(Table_SummaryPI[[#This Row],[Quantity]]<>\"\",Table_SummaryPI[[#This Row],[Quantity]],\"\")","v":""},{"$f":"IF(Table_SummaryPI[[#This Row],[BaselinekWh]]<>\"\",Table_SummaryPI[[#This Row],[BaselinekWh]],\"\")","v":""},{"$f":"IF(Table_SummaryPI[[#This Row],[BaselinekW]]<>\"\",Table_SummaryPI[[#This Row],[BaselinekW]],\"\")","v":""},{"$f":"IF(Table_SummaryPI[[#This Row],[ProposedkWh]]<>\"\",Table_SummaryPI[[#This Row],[ProposedkWh]],\"\")","v":""},{"$f":"IF(Table_SummaryPI[[#This Row],[ProposedkW]]<>\"\",Table_SummaryPI[[#This Row],[ProposedkW]],\"\")","v":""},{"$f":"IF(Table_SummaryPI[[#This Row],[Notes]]<>\"\",Table_SummaryPI[[#This Row],[Notes]],\"\")","v":""},{"$f":"IF(Table_SummaryPI[[#This Row],[Incentive_Customer]]<>\"\",Table_SummaryPI[[#This Row],[Incentive_Customer]],0)","v":0},{"$f":"IF(Table_SummaryPI[[#This Row],[MeasureCost]]<>\"\",Table_SummaryPI[[#This Row],[MeasureCost]],0)","v":0},{"$f":"IF(Table_SummaryPI[[#This Row],[kWhSavings]]<>\"\",Table_SummaryPI[[#This Row],[kWhSavings]],0)","v":0},{"$f":"IF(Table_SummaryPI[[#This Row],[DemandSavingskW]]<>\"\",Table_SummaryPI[[#This Row],[DemandSavingskW]],0)","v":0}]
[{"$f":"Table_SummaryPI[[#This Row],[Line No.]]","v":""},{"$f":"IF(Table_PrintPI[[#This Row],[Line No.]]=\"\",\"\",CONCATENATE(Table_PrintPI[[#This Row],[Line No.]],\" - \",Table_SummaryPI[[#This Row],[MeasureName]]))","v":""},{"$f":"IF(Table_SummaryPI[[#This Row],[Manufacturer]]<>\"\",CONCATENATE(Table_SummaryPI[[#This Row],[Manufacturer]],\"/\",Table_SummaryPI[[#This Row],[Model'#]]),\"\")","v":""},{"$f":"IF(Table_SummaryPI[[#This Row],[Serial'#]]<>\"\",Table_SummaryPI[[#This Row],[Serial'#]],\"\")","v":""},{"$f":"IF(Table_SummaryPI[[#This Row],[Quantity]]<>\"\",Table_SummaryPI[[#This Row],[Quantity]],\"\")","v":""},{"$f":"IF(Table_SummaryPI[[#This Row],[BaselinekWh]]<>\"\",Table_SummaryPI[[#This Row],[BaselinekWh]],\"\")","v":""},{"$f":"IF(Table_SummaryPI[[#This Row],[BaselinekW]]<>\"\",Table_SummaryPI[[#This Row],[BaselinekW]],\"\")","v":""},{"$f":"IF(Table_SummaryPI[[#This Row],[ProposedkWh]]<>\"\",Table_SummaryPI[[#This Row],[ProposedkWh]],\"\")","v":""},{"$f":"IF(Table_SummaryPI[[#This Row],[ProposedkW]]<>\"\",Table_SummaryPI[[#This Row],[ProposedkW]],\"\")","v":""},{"$f":"IF(Table_SummaryPI[[#This Row],[Notes]]<>\"\",Table_SummaryPI[[#This Row],[Notes]],\"\")","v":""},{"$f":"IF(Table_SummaryPI[[#This Row],[Incentive_Customer]]<>\"\",Table_SummaryPI[[#This Row],[Incentive_Customer]],0)","v":0},{"$f":"IF(Table_SummaryPI[[#This Row],[MeasureCost]]<>\"\",Table_SummaryPI[[#This Row],[MeasureCost]],0)","v":0},{"$f":"IF(Table_SummaryPI[[#This Row],[kWhSavings]]<>\"\",Table_SummaryPI[[#This Row],[kWhSavings]],0)","v":0},{"$f":"IF(Table_SummaryPI[[#This Row],[DemandSavingskW]]<>\"\",Table_SummaryPI[[#This Row],[DemandSavingskW]],0)","v":0}]
[{"$f":"Table_SummaryPI[[#This Row],[Line No.]]","v":""},{"$f":"IF(Table_PrintPI[[#This Row],[Line No.]]=\"\",\"\",CONCATENATE(Table_PrintPI[[#This Row],[Line No.]],\" - \",Table_SummaryPI[[#This Row],[MeasureName]]))","v":""},{"$f":"IF(Table_SummaryPI[[#This Row],[Manufacturer]]<>\"\",CONCATENATE(Table_SummaryPI[[#This Row],[Manufacturer]],\"/\",Table_SummaryPI[[#This Row],[Model'#]]),\"\")","v":""},{"$f":"IF(Table_SummaryPI[[#This Row],[Serial'#]]<>\"\",Table_SummaryPI[[#This Row],[Serial'#]],\"\")","v":""},{"$f":"IF(Table_SummaryPI[[#This Row],[Quantity]]<>\"\",Table_SummaryPI[[#This Row],[Quantity]],\"\")","v":""},{"$f":"IF(Table_SummaryPI[[#This Row],[BaselinekWh]]<>\"\",Table_SummaryPI[[#This Row],[BaselinekWh]],\"\")","v":""},{"$f":"IF(Table_SummaryPI[[#This Row],[BaselinekW]]<>\"\",Table_SummaryPI[[#This Row],[BaselinekW]],\"\")","v":""},{"$f":"IF(Table_SummaryPI[[#This Row],[ProposedkWh]]<>\"\",Table_SummaryPI[[#This Row],[ProposedkWh]],\"\")","v":""},{"$f":"IF(Table_SummaryPI[[#This Row],[ProposedkW]]<>\"\",Table_SummaryPI[[#This Row],[ProposedkW]],\"\")","v":""},{"$f":"IF(Table_SummaryPI[[#This Row],[Notes]]<>\"\",Table_SummaryPI[[#This Row],[Notes]],\"\")","v":""},{"$f":"IF(Table_SummaryPI[[#This Row],[Incentive_Customer]]<>\"\",Table_SummaryPI[[#This Row],[Incentive_Customer]],0)","v":0},{"$f":"IF(Table_SummaryPI[[#This Row],[MeasureCost]]<>\"\",Table_SummaryPI[[#This Row],[MeasureCost]],0)","v":0},{"$f":"IF(Table_SummaryPI[[#This Row],[kWhSavings]]<>\"\",Table_SummaryPI[[#This Row],[kWhSavings]],0)","v":0},{"$f":"IF(Table_SummaryPI[[#This Row],[DemandSavingskW]]<>\"\",Table_SummaryPI[[#This Row],[DemandSavingskW]],0)","v":0}]
[{"$f":"Table_SummaryPI[[#This Row],[Line No.]]","v":""},{"$f":"IF(Table_PrintPI[[#This Row],[Line No.]]=\"\",\"\",CONCATENATE(Table_PrintPI[[#This Row],[Line No.]],\" - \",Table_SummaryPI[[#This Row],[MeasureName]]))","v":""},{"$f":"IF(Table_SummaryPI[[#This Row],[Manufacturer]]<>\"\",CONCATENATE(Table_SummaryPI[[#This Row],[Manufacturer]],\"/\",Table_SummaryPI[[#This Row],[Model'#]]),\"\")","v":""},{"$f":"IF(Table_SummaryPI[[#This Row],[Serial'#]]<>\"\",Table_SummaryPI[[#This Row],[Serial'#]],\"\")","v":""},{"$f":"IF(Table_SummaryPI[[#This Row],[Quantity]]<>\"\",Table_SummaryPI[[#This Row],[Quantity]],\"\")","v":""},{"$f":"IF(Table_SummaryPI[[#This Row],[BaselinekWh]]<>\"\",Table_SummaryPI[[#This Row],[BaselinekWh]],\"\")","v":""},{"$f":"IF(Table_SummaryPI[[#This Row],[BaselinekW]]<>\"\",Table_SummaryPI[[#This Row],[BaselinekW]],\"\")","v":""},{"$f":"IF(Table_SummaryPI[[#This Row],[ProposedkWh]]<>\"\",Table_SummaryPI[[#This Row],[ProposedkWh]],\"\")","v":""},{"$f":"IF(Table_SummaryPI[[#This Row],[ProposedkW]]<>\"\",Table_SummaryPI[[#This Row],[ProposedkW]],\"\")","v":""},{"$f":"IF(Table_SummaryPI[[#This Row],[Notes]]<>\"\",Table_SummaryPI[[#This Row],[Notes]],\"\")","v":""},{"$f":"IF(Table_SummaryPI[[#This Row],[Incentive_Customer]]<>\"\",Table_SummaryPI[[#This Row],[Incentive_Customer]],0)","v":0},{"$f":"IF(Table_SummaryPI[[#This Row],[MeasureCost]]<>\"\",Table_SummaryPI[[#This Row],[MeasureCost]],0)","v":0},{"$f":"IF(Table_SummaryPI[[#This Row],[kWhSavings]]<>\"\",Table_SummaryPI[[#This Row],[kWhSavings]],0)","v":0},{"$f":"IF(Table_SummaryPI[[#This Row],[DemandSavingskW]]<>\"\",Table_SummaryPI[[#This Row],[DemandSavingskW]],0)","v":0}]
[{"$f":"Table_SummaryPI[[#This Row],[Line No.]]","v":""},{"$f":"IF(Table_PrintPI[[#This Row],[Line No.]]=\"\",\"\",CONCATENATE(Table_PrintPI[[#This Row],[Line No.]],\" - \",Table_SummaryPI[[#This Row],[MeasureName]]))","v":""},{"$f":"IF(Table_SummaryPI[[#This Row],[Manufacturer]]<>\"\",CONCATENATE(Table_SummaryPI[[#This Row],[Manufacturer]],\"/\",Table_SummaryPI[[#This Row],[Model'#]]),\"\")","v":""},{"$f":"IF(Table_SummaryPI[[#This Row],[Serial'#]]<>\"\",Table_SummaryPI[[#This Row],[Serial'#]],\"\")","v":""},{"$f":"IF(Table_SummaryPI[[#This Row],[Quantity]]<>\"\",Table_SummaryPI[[#This Row],[Quantity]],\"\")","v":""},{"$f":"IF(Table_SummaryPI[[#This Row],[BaselinekWh]]<>\"\",Table_SummaryPI[[#This Row],[BaselinekWh]],\"\")","v":""},{"$f":"IF(Table_SummaryPI[[#This Row],[BaselinekW]]<>\"\",Table_SummaryPI[[#This Row],[BaselinekW]],\"\")","v":""},{"$f":"IF(Table_SummaryPI[[#This Row],[ProposedkWh]]<>\"\",Table_SummaryPI[[#This Row],[ProposedkWh]],\"\")","v":""},{"$f":"IF(Table_SummaryPI[[#This Row],[ProposedkW]]<>\"\",Table_SummaryPI[[#This Row],[ProposedkW]],\"\")","v":""},{"$f":"IF(Table_SummaryPI[[#This Row],[Notes]]<>\"\",Table_SummaryPI[[#This Row],[Notes]],\"\")","v":""},{"$f":"IF(Table_SummaryPI[[#This Row],[Incentive_Customer]]<>\"\",Table_SummaryPI[[#This Row],[Incentive_Customer]],0)","v":0},{"$f":"IF(Table_SummaryPI[[#This Row],[MeasureCost]]<>\"\",Table_SummaryPI[[#This Row],[MeasureCost]],0)","v":0},{"$f":"IF(Table_SummaryPI[[#This Row],[kWhSavings]]<>\"\",Table_SummaryPI[[#This Row],[kWhSavings]],0)","v":0},{"$f":"IF(Table_SummaryPI[[#This Row],[DemandSavingskW]]<>\"\",Table_SummaryPI[[#This Row],[DemandSavingskW]],0)","v":0}]
[{"$f":"Table_SummaryPI[[#This Row],[Line No.]]","v":""},{"$f":"IF(Table_PrintPI[[#This Row],[Line No.]]=\"\",\"\",CONCATENATE(Table_PrintPI[[#This Row],[Line No.]],\" - \",Table_SummaryPI[[#This Row],[MeasureName]]))","v":""},{"$f":"IF(Table_SummaryPI[[#This Row],[Manufacturer]]<>\"\",CONCATENATE(Table_SummaryPI[[#This Row],[Manufacturer]],\"/\",Table_SummaryPI[[#This Row],[Model'#]]),\"\")","v":""},{"$f":"IF(Table_SummaryPI[[#This Row],[Serial'#]]<>\"\",Table_SummaryPI[[#This Row],[Serial'#]],\"\")","v":""},{"$f":"IF(Table_SummaryPI[[#This Row],[Quantity]]<>\"\",Table_SummaryPI[[#This Row],[Quantity]],\"\")","v":""},{"$f":"IF(Table_SummaryPI[[#This Row],[BaselinekWh]]<>\"\",Table_SummaryPI[[#This Row],[BaselinekWh]],\"\")","v":""},{"$f":"IF(Table_SummaryPI[[#This Row],[BaselinekW]]<>\"\",Table_SummaryPI[[#This Row],[BaselinekW]],\"\")","v":""},{"$f":"IF(Table_SummaryPI[[#This Row],[ProposedkWh]]<>\"\",Table_SummaryPI[[#This Row],[ProposedkWh]],\"\")","v":""},{"$f":"IF(Table_SummaryPI[[#This Row],[ProposedkW]]<>\"\",Table_SummaryPI[[#This Row],[ProposedkW]],\"\")","v":""},{"$f":"IF(Table_SummaryPI[[#This Row],[Notes]]<>\"\",Table_SummaryPI[[#This Row],[Notes]],\"\")","v":""},{"$f":"IF(Table_SummaryPI[[#This Row],[Incentive_Customer]]<>\"\",Table_SummaryPI[[#This Row],[Incentive_Customer]],0)","v":0},{"$f":"IF(Table_SummaryPI[[#This Row],[MeasureCost]]<>\"\",Table_SummaryPI[[#This Row],[MeasureCost]],0)","v":0},{"$f":"IF(Table_SummaryPI[[#This Row],[kWhSavings]]<>\"\",Table_SummaryPI[[#This Row],[kWhSavings]],0)","v":0},{"$f":"IF(Table_SummaryPI[[#This Row],[DemandSavingskW]]<>\"\",Table_SummaryPI[[#This Row],[DemandSavingskW]],0)","v":0}]
[{"$f":"Table_SummaryPI[[#This Row],[Line No.]]","v":""},{"$f":"IF(Table_PrintPI[[#This Row],[Line No.]]=\"\",\"\",CONCATENATE(Table_PrintPI[[#This Row],[Line No.]],\" - \",Table_SummaryPI[[#This Row],[MeasureName]]))","v":""},{"$f":"IF(Table_SummaryPI[[#This Row],[Manufacturer]]<>\"\",CONCATENATE(Table_SummaryPI[[#This Row],[Manufacturer]],\"/\",Table_SummaryPI[[#This Row],[Model'#]]),\"\")","v":""},{"$f":"IF(Table_SummaryPI[[#This Row],[Serial'#]]<>\"\",Table_SummaryPI[[#This Row],[Serial'#]],\"\")","v":""},{"$f":"IF(Table_SummaryPI[[#This Row],[Quantity]]<>\"\",Table_SummaryPI[[#This Row],[Quantity]],\"\")","v":""},{"$f":"IF(Table_SummaryPI[[#This Row],[BaselinekWh]]<>\"\",Table_SummaryPI[[#This Row],[BaselinekWh]],\"\")","v":""},{"$f":"IF(Table_SummaryPI[[#This Row],[BaselinekW]]<>\"\",Table_SummaryPI[[#This Row],[BaselinekW]],\"\")","v":""},{"$f":"IF(Table_SummaryPI[[#This Row],[ProposedkWh]]<>\"\",Table_SummaryPI[[#This Row],[ProposedkWh]],\"\")","v":""},{"$f":"IF(Table_SummaryPI[[#This Row],[ProposedkW]]<>\"\",Table_SummaryPI[[#This Row],[ProposedkW]],\"\")","v":""},{"$f":"IF(Table_SummaryPI[[#This Row],[Notes]]<>\"\",Table_SummaryPI[[#This Row],[Notes]],\"\")","v":""},{"$f":"IF(Table_SummaryPI[[#This Row],[Incentive_Customer]]<>\"\",Table_SummaryPI[[#This Row],[Incentive_Customer]],0)","v":0},{"$f":"IF(Table_SummaryPI[[#This Row],[MeasureCost]]<>\"\",Table_SummaryPI[[#This Row],[MeasureCost]],0)","v":0},{"$f":"IF(Table_SummaryPI[[#This Row],[kWhSavings]]<>\"\",Table_SummaryPI[[#This Row],[kWhSavings]],0)","v":0},{"$f":"IF(Table_SummaryPI[[#This Row],[DemandSavingskW]]<>\"\",Table_SummaryPI[[#This Row],[DemandSavingskW]],0)","v":0}]
[{"$f":"Table_SummaryPI[[#This Row],[Line No.]]","v":""},{"$f":"IF(Table_PrintPI[[#This Row],[Line No.]]=\"\",\"\",CONCATENATE(Table_PrintPI[[#This Row],[Line No.]],\" - \",Table_SummaryPI[[#This Row],[MeasureName]]))","v":""},{"$f":"IF(Table_SummaryPI[[#This Row],[Manufacturer]]<>\"\",CONCATENATE(Table_SummaryPI[[#This Row],[Manufacturer]],\"/\",Table_SummaryPI[[#This Row],[Model'#]]),\"\")","v":""},{"$f":"IF(Table_SummaryPI[[#This Row],[Serial'#]]<>\"\",Table_SummaryPI[[#This Row],[Serial'#]],\"\")","v":""},{"$f":"IF(Table_SummaryPI[[#This Row],[Quantity]]<>\"\",Table_SummaryPI[[#This Row],[Quantity]],\"\")","v":""},{"$f":"IF(Table_SummaryPI[[#This Row],[BaselinekWh]]<>\"\",Table_SummaryPI[[#This Row],[BaselinekWh]],\"\")","v":""},{"$f":"IF(Table_SummaryPI[[#This Row],[BaselinekW]]<>\"\",Table_SummaryPI[[#This Row],[BaselinekW]],\"\")","v":""},{"$f":"IF(Table_SummaryPI[[#This Row],[ProposedkWh]]<>\"\",Table_SummaryPI[[#This Row],[ProposedkWh]],\"\")","v":""},{"$f":"IF(Table_SummaryPI[[#This Row],[ProposedkW]]<>\"\",Table_SummaryPI[[#This Row],[ProposedkW]],\"\")","v":""},{"$f":"IF(Table_SummaryPI[[#This Row],[Notes]]<>\"\",Table_SummaryPI[[#This Row],[Notes]],\"\")","v":""},{"$f":"IF(Table_SummaryPI[[#This Row],[Incentive_Customer]]<>\"\",Table_SummaryPI[[#This Row],[Incentive_Customer]],0)","v":0},{"$f":"IF(Table_SummaryPI[[#This Row],[MeasureCost]]<>\"\",Table_SummaryPI[[#This Row],[MeasureCost]],0)","v":0},{"$f":"IF(Table_SummaryPI[[#This Row],[kWhSavings]]<>\"\",Table_SummaryPI[[#This Row],[kWhSavings]],0)","v":0},{"$f":"IF(Table_SummaryPI[[#This Row],[DemandSavingskW]]<>\"\",Table_SummaryPI[[#This Row],[DemandSavingskW]],0)","v":0}]
[{"$f":"Table_SummaryPI[[#This Row],[Line No.]]","v":""},{"$f":"IF(Table_PrintPI[[#This Row],[Line No.]]=\"\",\"\",CONCATENATE(Table_PrintPI[[#This Row],[Line No.]],\" - \",Table_SummaryPI[[#This Row],[MeasureName]]))","v":""},{"$f":"IF(Table_SummaryPI[[#This Row],[Manufacturer]]<>\"\",CONCATENATE(Table_SummaryPI[[#This Row],[Manufacturer]],\"/\",Table_SummaryPI[[#This Row],[Model'#]]),\"\")","v":""},{"$f":"IF(Table_SummaryPI[[#This Row],[Serial'#]]<>\"\",Table_SummaryPI[[#This Row],[Serial'#]],\"\")","v":""},{"$f":"IF(Table_SummaryPI[[#This Row],[Quantity]]<>\"\",Table_SummaryPI[[#This Row],[Quantity]],\"\")","v":""},{"$f":"IF(Table_SummaryPI[[#This Row],[BaselinekWh]]<>\"\",Table_SummaryPI[[#This Row],[BaselinekWh]],\"\")","v":""},{"$f":"IF(Table_SummaryPI[[#This Row],[BaselinekW]]<>\"\",Table_SummaryPI[[#This Row],[BaselinekW]],\"\")","v":""},{"$f":"IF(Table_SummaryPI[[#This Row],[ProposedkWh]]<>\"\",Table_SummaryPI[[#This Row],[ProposedkWh]],\"\")","v":""},{"$f":"IF(Table_SummaryPI[[#This Row],[ProposedkW]]<>\"\",Table_SummaryPI[[#This Row],[ProposedkW]],\"\")","v":""},{"$f":"IF(Table_SummaryPI[[#This Row],[Notes]]<>\"\",Table_SummaryPI[[#This Row],[Notes]],\"\")","v":""},{"$f":"IF(Table_SummaryPI[[#This Row],[Incentive_Customer]]<>\"\",Table_SummaryPI[[#This Row],[Incentive_Customer]],0)","v":0},{"$f":"IF(Table_SummaryPI[[#This Row],[MeasureCost]]<>\"\",Table_SummaryPI[[#This Row],[MeasureCost]],0)","v":0},{"$f":"IF(Table_SummaryPI[[#This Row],[kWhSavings]]<>\"\",Table_SummaryPI[[#This Row],[kWhSavings]],0)","v":0},{"$f":"IF(Table_SummaryPI[[#This Row],[DemandSavingskW]]<>\"\",Table_SummaryPI[[#This Row],[DemandSavingskW]],0)","v":0}]
[{"$f":"Table_SummaryPI[[#This Row],[Line No.]]","v":""},{"$f":"IF(Table_PrintPI[[#This Row],[Line No.]]=\"\",\"\",CONCATENATE(Table_PrintPI[[#This Row],[Line No.]],\" - \",Table_SummaryPI[[#This Row],[MeasureName]]))","v":""},{"$f":"IF(Table_SummaryPI[[#This Row],[Manufacturer]]<>\"\",CONCATENATE(Table_SummaryPI[[#This Row],[Manufacturer]],\"/\",Table_SummaryPI[[#This Row],[Model'#]]),\"\")","v":""},{"$f":"IF(Table_SummaryPI[[#This Row],[Serial'#]]<>\"\",Table_SummaryPI[[#This Row],[Serial'#]],\"\")","v":""},{"$f":"IF(Table_SummaryPI[[#This Row],[Quantity]]<>\"\",Table_SummaryPI[[#This Row],[Quantity]],\"\")","v":""},{"$f":"IF(Table_SummaryPI[[#This Row],[BaselinekWh]]<>\"\",Table_SummaryPI[[#This Row],[BaselinekWh]],\"\")","v":""},{"$f":"IF(Table_SummaryPI[[#This Row],[BaselinekW]]<>\"\",Table_SummaryPI[[#This Row],[BaselinekW]],\"\")","v":""},{"$f":"IF(Table_SummaryPI[[#This Row],[ProposedkWh]]<>\"\",Table_SummaryPI[[#This Row],[ProposedkWh]],\"\")","v":""},{"$f":"IF(Table_SummaryPI[[#This Row],[ProposedkW]]<>\"\",Table_SummaryPI[[#This Row],[ProposedkW]],\"\")","v":""},{"$f":"IF(Table_SummaryPI[[#This Row],[Notes]]<>\"\",Table_SummaryPI[[#This Row],[Notes]],\"\")","v":""},{"$f":"IF(Table_SummaryPI[[#This Row],[Incentive_Customer]]<>\"\",Table_SummaryPI[[#This Row],[Incentive_Customer]],0)","v":0},{"$f":"IF(Table_SummaryPI[[#This Row],[MeasureCost]]<>\"\",Table_SummaryPI[[#This Row],[MeasureCost]],0)","v":0},{"$f":"IF(Table_SummaryPI[[#This Row],[kWhSavings]]<>\"\",Table_SummaryPI[[#This Row],[kWhSavings]],0)","v":0},{"$f":"IF(Table_SummaryPI[[#This Row],[DemandSavingskW]]<>\"\",Table_SummaryPI[[#This Row],[DemandSavingskW]],0)","v":0}]
[{"$f":"Table_SummaryPI[[#This Row],[Line No.]]","v":""},{"$f":"IF(Table_PrintPI[[#This Row],[Line No.]]=\"\",\"\",CONCATENATE(Table_PrintPI[[#This Row],[Line No.]],\" - \",Table_SummaryPI[[#This Row],[MeasureName]]))","v":""},{"$f":"IF(Table_SummaryPI[[#This Row],[Manufacturer]]<>\"\",CONCATENATE(Table_SummaryPI[[#This Row],[Manufacturer]],\"/\",Table_SummaryPI[[#This Row],[Model'#]]),\"\")","v":""},{"$f":"IF(Table_SummaryPI[[#This Row],[Serial'#]]<>\"\",Table_SummaryPI[[#This Row],[Serial'#]],\"\")","v":""},{"$f":"IF(Table_SummaryPI[[#This Row],[Quantity]]<>\"\",Table_SummaryPI[[#This Row],[Quantity]],\"\")","v":""},{"$f":"IF(Table_SummaryPI[[#This Row],[BaselinekWh]]<>\"\",Table_SummaryPI[[#This Row],[BaselinekWh]],\"\")","v":""},{"$f":"IF(Table_SummaryPI[[#This Row],[BaselinekW]]<>\"\",Table_SummaryPI[[#This Row],[BaselinekW]],\"\")","v":""},{"$f":"IF(Table_SummaryPI[[#This Row],[ProposedkWh]]<>\"\",Table_SummaryPI[[#This Row],[ProposedkWh]],\"\")","v":""},{"$f":"IF(Table_SummaryPI[[#This Row],[ProposedkW]]<>\"\",Table_SummaryPI[[#This Row],[ProposedkW]],\"\")","v":""},{"$f":"IF(Table_SummaryPI[[#This Row],[Notes]]<>\"\",Table_SummaryPI[[#This Row],[Notes]],\"\")","v":""},{"$f":"IF(Table_SummaryPI[[#This Row],[Incentive_Customer]]<>\"\",Table_SummaryPI[[#This Row],[Incentive_Customer]],0)","v":0},{"$f":"IF(Table_SummaryPI[[#This Row],[MeasureCost]]<>\"\",Table_SummaryPI[[#This Row],[MeasureCost]],0)","v":0},{"$f":"IF(Table_SummaryPI[[#This Row],[kWhSavings]]<>\"\",Table_SummaryPI[[#This Row],[kWhSavings]],0)","v":0},{"$f":"IF(Table_SummaryPI[[#This Row],[DemandSavingskW]]<>\"\",Table_SummaryPI[[#This Row],[DemandSavingskW]],0)","v":0}]
[{"$f":"Table_SummaryPI[[#This Row],[Line No.]]","v":""},{"$f":"IF(Table_PrintPI[[#This Row],[Line No.]]=\"\",\"\",CONCATENATE(Table_PrintPI[[#This Row],[Line No.]],\" - \",Table_SummaryPI[[#This Row],[MeasureName]]))","v":""},{"$f":"IF(Table_SummaryPI[[#This Row],[Manufacturer]]<>\"\",CONCATENATE(Table_SummaryPI[[#This Row],[Manufacturer]],\"/\",Table_SummaryPI[[#This Row],[Model'#]]),\"\")","v":""},{"$f":"IF(Table_SummaryPI[[#This Row],[Serial'#]]<>\"\",Table_SummaryPI[[#This Row],[Serial'#]],\"\")","v":""},{"$f":"IF(Table_SummaryPI[[#This Row],[Quantity]]<>\"\",Table_SummaryPI[[#This Row],[Quantity]],\"\")","v":""},{"$f":"IF(Table_SummaryPI[[#This Row],[BaselinekWh]]<>\"\",Table_SummaryPI[[#This Row],[BaselinekWh]],\"\")","v":""},{"$f":"IF(Table_SummaryPI[[#This Row],[BaselinekW]]<>\"\",Table_SummaryPI[[#This Row],[BaselinekW]],\"\")","v":""},{"$f":"IF(Table_SummaryPI[[#This Row],[ProposedkWh]]<>\"\",Table_SummaryPI[[#This Row],[ProposedkWh]],\"\")","v":""},{"$f":"IF(Table_SummaryPI[[#This Row],[ProposedkW]]<>\"\",Table_SummaryPI[[#This Row],[ProposedkW]],\"\")","v":""},{"$f":"IF(Table_SummaryPI[[#This Row],[Notes]]<>\"\",Table_SummaryPI[[#This Row],[Notes]],\"\")","v":""},{"$f":"IF(Table_SummaryPI[[#This Row],[Incentive_Customer]]<>\"\",Table_SummaryPI[[#This Row],[Incentive_Customer]],0)","v":0},{"$f":"IF(Table_SummaryPI[[#This Row],[MeasureCost]]<>\"\",Table_SummaryPI[[#This Row],[MeasureCost]],0)","v":0},{"$f":"IF(Table_SummaryPI[[#This Row],[kWhSavings]]<>\"\",Table_SummaryPI[[#This Row],[kWhSavings]],0)","v":0},{"$f":"IF(Table_SummaryPI[[#This Row],[DemandSavingskW]]<>\"\",Table_SummaryPI[[#This Row],[DemandSavingskW]],0)","v":0}]
[{"$f":"Table_SummaryPI[[#This Row],[Line No.]]","v":""},{"$f":"IF(Table_PrintPI[[#This Row],[Line No.]]=\"\",\"\",CONCATENATE(Table_PrintPI[[#This Row],[Line No.]],\" - \",Table_SummaryPI[[#This Row],[MeasureName]]))","v":""},{"$f":"IF(Table_SummaryPI[[#This Row],[Manufacturer]]<>\"\",CONCATENATE(Table_SummaryPI[[#This Row],[Manufacturer]],\"/\",Table_SummaryPI[[#This Row],[Model'#]]),\"\")","v":""},{"$f":"IF(Table_SummaryPI[[#This Row],[Serial'#]]<>\"\",Table_SummaryPI[[#This Row],[Serial'#]],\"\")","v":""},{"$f":"IF(Table_SummaryPI[[#This Row],[Quantity]]<>\"\",Table_SummaryPI[[#This Row],[Quantity]],\"\")","v":""},{"$f":"IF(Table_SummaryPI[[#This Row],[BaselinekWh]]<>\"\",Table_SummaryPI[[#This Row],[BaselinekWh]],\"\")","v":""},{"$f":"IF(Table_SummaryPI[[#This Row],[BaselinekW]]<>\"\",Table_SummaryPI[[#This Row],[BaselinekW]],\"\")","v":""},{"$f":"IF(Table_SummaryPI[[#This Row],[ProposedkWh]]<>\"\",Table_SummaryPI[[#This Row],[ProposedkWh]],\"\")","v":""},{"$f":"IF(Table_SummaryPI[[#This Row],[ProposedkW]]<>\"\",Table_SummaryPI[[#This Row],[ProposedkW]],\"\")","v":""},{"$f":"IF(Table_SummaryPI[[#This Row],[Notes]]<>\"\",Table_SummaryPI[[#This Row],[Notes]],\"\")","v":""},{"$f":"IF(Table_SummaryPI[[#This Row],[Incentive_Customer]]<>\"\",Table_SummaryPI[[#This Row],[Incentive_Customer]],0)","v":0},{"$f":"IF(Table_SummaryPI[[#This Row],[MeasureCost]]<>\"\",Table_SummaryPI[[#This Row],[MeasureCost]],0)","v":0},{"$f":"IF(Table_SummaryPI[[#This Row],[kWhSavings]]<>\"\",Table_SummaryPI[[#This Row],[kWhSavings]],0)","v":0},{"$f":"IF(Table_SummaryPI[[#This Row],[DemandSavingskW]]<>\"\",Table_SummaryPI[[#This Row],[DemandSavingskW]],0)","v":0}]
[{"$f":"Table_SummaryPI[[#This Row],[Line No.]]","v":""},{"$f":"IF(Table_PrintPI[[#This Row],[Line No.]]=\"\",\"\",CONCATENATE(Table_PrintPI[[#This Row],[Line No.]],\" - \",Table_SummaryPI[[#This Row],[MeasureName]]))","v":""},{"$f":"IF(Table_SummaryPI[[#This Row],[Manufacturer]]<>\"\",CONCATENATE(Table_SummaryPI[[#This Row],[Manufacturer]],\"/\",Table_SummaryPI[[#This Row],[Model'#]]),\"\")","v":""},{"$f":"IF(Table_SummaryPI[[#This Row],[Serial'#]]<>\"\",Table_SummaryPI[[#This Row],[Serial'#]],\"\")","v":""},{"$f":"IF(Table_SummaryPI[[#This Row],[Quantity]]<>\"\",Table_SummaryPI[[#This Row],[Quantity]],\"\")","v":""},{"$f":"IF(Table_SummaryPI[[#This Row],[BaselinekWh]]<>\"\",Table_SummaryPI[[#This Row],[BaselinekWh]],\"\")","v":""},{"$f":"IF(Table_SummaryPI[[#This Row],[BaselinekW]]<>\"\",Table_SummaryPI[[#This Row],[BaselinekW]],\"\")","v":""},{"$f":"IF(Table_SummaryPI[[#This Row],[ProposedkWh]]<>\"\",Table_SummaryPI[[#This Row],[ProposedkWh]],\"\")","v":""},{"$f":"IF(Table_SummaryPI[[#This Row],[ProposedkW]]<>\"\",Table_SummaryPI[[#This Row],[ProposedkW]],\"\")","v":""},{"$f":"IF(Table_SummaryPI[[#This Row],[Notes]]<>\"\",Table_SummaryPI[[#This Row],[Notes]],\"\")","v":""},{"$f":"IF(Table_SummaryPI[[#This Row],[Incentive_Customer]]<>\"\",Table_SummaryPI[[#This Row],[Incentive_Customer]],0)","v":0},{"$f":"IF(Table_SummaryPI[[#This Row],[MeasureCost]]<>\"\",Table_SummaryPI[[#This Row],[MeasureCost]],0)","v":0},{"$f":"IF(Table_SummaryPI[[#This Row],[kWhSavings]]<>\"\",Table_SummaryPI[[#This Row],[kWhSavings]],0)","v":0},{"$f":"IF(Table_SummaryPI[[#This Row],[DemandSavingskW]]<>\"\",Table_SummaryPI[[#This Row],[DemandSavingskW]],0)","v":0}]
[{"$f":"Table_SummaryPI[[#This Row],[Line No.]]","v":""},{"$f":"IF(Table_PrintPI[[#This Row],[Line No.]]=\"\",\"\",CONCATENATE(Table_PrintPI[[#This Row],[Line No.]],\" - \",Table_SummaryPI[[#This Row],[MeasureName]]))","v":""},{"$f":"IF(Table_SummaryPI[[#This Row],[Manufacturer]]<>\"\",CONCATENATE(Table_SummaryPI[[#This Row],[Manufacturer]],\"/\",Table_SummaryPI[[#This Row],[Model'#]]),\"\")","v":""},{"$f":"IF(Table_SummaryPI[[#This Row],[Serial'#]]<>\"\",Table_SummaryPI[[#This Row],[Serial'#]],\"\")","v":""},{"$f":"IF(Table_SummaryPI[[#This Row],[Quantity]]<>\"\",Table_SummaryPI[[#This Row],[Quantity]],\"\")","v":""},{"$f":"IF(Table_SummaryPI[[#This Row],[BaselinekWh]]<>\"\",Table_SummaryPI[[#This Row],[BaselinekWh]],\"\")","v":""},{"$f":"IF(Table_SummaryPI[[#This Row],[BaselinekW]]<>\"\",Table_SummaryPI[[#This Row],[BaselinekW]],\"\")","v":""},{"$f":"IF(Table_SummaryPI[[#This Row],[ProposedkWh]]<>\"\",Table_SummaryPI[[#This Row],[ProposedkWh]],\"\")","v":""},{"$f":"IF(Table_SummaryPI[[#This Row],[ProposedkW]]<>\"\",Table_SummaryPI[[#This Row],[ProposedkW]],\"\")","v":""},{"$f":"IF(Table_SummaryPI[[#This Row],[Notes]]<>\"\",Table_SummaryPI[[#This Row],[Notes]],\"\")","v":""},{"$f":"IF(Table_SummaryPI[[#This Row],[Incentive_Customer]]<>\"\",Table_SummaryPI[[#This Row],[Incentive_Customer]],0)","v":0},{"$f":"IF(Table_SummaryPI[[#This Row],[MeasureCost]]<>\"\",Table_SummaryPI[[#This Row],[MeasureCost]],0)","v":0},{"$f":"IF(Table_SummaryPI[[#This Row],[kWhSavings]]<>\"\",Table_SummaryPI[[#This Row],[kWhSavings]],0)","v":0},{"$f":"IF(Table_SummaryPI[[#This Row],[DemandSavingskW]]<>\"\",Table_SummaryPI[[#This Row],[DemandSavingskW]],0)","v":0}]
[{"$f":"Table_SummaryPI[[#This Row],[Line No.]]","v":""},{"$f":"IF(Table_PrintPI[[#This Row],[Line No.]]=\"\",\"\",CONCATENATE(Table_PrintPI[[#This Row],[Line No.]],\" - \",Table_SummaryPI[[#This Row],[MeasureName]]))","v":""},{"$f":"IF(Table_SummaryPI[[#This Row],[Manufacturer]]<>\"\",CONCATENATE(Table_SummaryPI[[#This Row],[Manufacturer]],\"/\",Table_SummaryPI[[#This Row],[Model'#]]),\"\")","v":""},{"$f":"IF(Table_SummaryPI[[#This Row],[Serial'#]]<>\"\",Table_SummaryPI[[#This Row],[Serial'#]],\"\")","v":""},{"$f":"IF(Table_SummaryPI[[#This Row],[Quantity]]<>\"\",Table_SummaryPI[[#This Row],[Quantity]],\"\")","v":""},{"$f":"IF(Table_SummaryPI[[#This Row],[BaselinekWh]]<>\"\",Table_SummaryPI[[#This Row],[BaselinekWh]],\"\")","v":""},{"$f":"IF(Table_SummaryPI[[#This Row],[BaselinekW]]<>\"\",Table_SummaryPI[[#This Row],[BaselinekW]],\"\")","v":""},{"$f":"IF(Table_SummaryPI[[#This Row],[ProposedkWh]]<>\"\",Table_SummaryPI[[#This Row],[ProposedkWh]],\"\")","v":""},{"$f":"IF(Table_SummaryPI[[#This Row],[ProposedkW]]<>\"\",Table_SummaryPI[[#This Row],[ProposedkW]],\"\")","v":""},{"$f":"IF(Table_SummaryPI[[#This Row],[Notes]]<>\"\",Table_SummaryPI[[#This Row],[Notes]],\"\")","v":""},{"$f":"IF(Table_SummaryPI[[#This Row],[Incentive_Customer]]<>\"\",Table_SummaryPI[[#This Row],[Incentive_Customer]],0)","v":0},{"$f":"IF(Table_SummaryPI[[#This Row],[MeasureCost]]<>\"\",Table_SummaryPI[[#This Row],[MeasureCost]],0)","v":0},{"$f":"IF(Table_SummaryPI[[#This Row],[kWhSavings]]<>\"\",Table_SummaryPI[[#This Row],[kWhSavings]],0)","v":0},{"$f":"IF(Table_SummaryPI[[#This Row],[DemandSavingskW]]<>\"\",Table_SummaryPI[[#This Row],[DemandSavingskW]],0)","v":0}]
[{"$f":"Table_SummaryPI[[#This Row],[Line No.]]","v":""},{"$f":"IF(Table_PrintPI[[#This Row],[Line No.]]=\"\",\"\",CONCATENATE(Table_PrintPI[[#This Row],[Line No.]],\" - \",Table_SummaryPI[[#This Row],[MeasureName]]))","v":""},{"$f":"IF(Table_SummaryPI[[#This Row],[Manufacturer]]<>\"\",CONCATENATE(Table_SummaryPI[[#This Row],[Manufacturer]],\"/\",Table_SummaryPI[[#This Row],[Model'#]]),\"\")","v":""},{"$f":"IF(Table_SummaryPI[[#This Row],[Serial'#]]<>\"\",Table_SummaryPI[[#This Row],[Serial'#]],\"\")","v":""},{"$f":"IF(Table_SummaryPI[[#This Row],[Quantity]]<>\"\",Table_SummaryPI[[#This Row],[Quantity]],\"\")","v":""},{"$f":"IF(Table_SummaryPI[[#This Row],[BaselinekWh]]<>\"\",Table_SummaryPI[[#This Row],[BaselinekWh]],\"\")","v":""},{"$f":"IF(Table_SummaryPI[[#This Row],[BaselinekW]]<>\"\",Table_SummaryPI[[#This Row],[BaselinekW]],\"\")","v":""},{"$f":"IF(Table_SummaryPI[[#This Row],[ProposedkWh]]<>\"\",Table_SummaryPI[[#This Row],[ProposedkWh]],\"\")","v":""},{"$f":"IF(Table_SummaryPI[[#This Row],[ProposedkW]]<>\"\",Table_SummaryPI[[#This Row],[ProposedkW]],\"\")","v":""},{"$f":"IF(Table_SummaryPI[[#This Row],[Notes]]<>\"\",Table_SummaryPI[[#This Row],[Notes]],\"\")","v":""},{"$f":"IF(Table_SummaryPI[[#This Row],[Incentive_Customer]]<>\"\",Table_SummaryPI[[#This Row],[Incentive_Customer]],0)","v":0},{"$f":"IF(Table_SummaryPI[[#This Row],[MeasureCost]]<>\"\",Table_SummaryPI[[#This Row],[MeasureCost]],0)","v":0},{"$f":"IF(Table_SummaryPI[[#This Row],[kWhSavings]]<>\"\",Table_SummaryPI[[#This Row],[kWhSavings]],0)","v":0},{"$f":"IF(Table_SummaryPI[[#This Row],[DemandSavingskW]]<>\"\",Table_SummaryPI[[#This Row],[DemandSavingskW]],0)","v":0}]
[{"$f":"Table_SummaryPI[[#This Row],[Line No.]]","v":""},{"$f":"IF(Table_PrintPI[[#This Row],[Line No.]]=\"\",\"\",CONCATENATE(Table_PrintPI[[#This Row],[Line No.]],\" - \",Table_SummaryPI[[#This Row],[MeasureName]]))","v":""},{"$f":"IF(Table_SummaryPI[[#This Row],[Manufacturer]]<>\"\",CONCATENATE(Table_SummaryPI[[#This Row],[Manufacturer]],\"/\",Table_SummaryPI[[#This Row],[Model'#]]),\"\")","v":""},{"$f":"IF(Table_SummaryPI[[#This Row],[Serial'#]]<>\"\",Table_SummaryPI[[#This Row],[Serial'#]],\"\")","v":""},{"$f":"IF(Table_SummaryPI[[#This Row],[Quantity]]<>\"\",Table_SummaryPI[[#This Row],[Quantity]],\"\")","v":""},{"$f":"IF(Table_SummaryPI[[#This Row],[BaselinekWh]]<>\"\",Table_SummaryPI[[#This Row],[BaselinekWh]],\"\")","v":""},{"$f":"IF(Table_SummaryPI[[#This Row],[BaselinekW]]<>\"\",Table_SummaryPI[[#This Row],[BaselinekW]],\"\")","v":""},{"$f":"IF(Table_SummaryPI[[#This Row],[ProposedkWh]]<>\"\",Table_SummaryPI[[#This Row],[ProposedkWh]],\"\")","v":""},{"$f":"IF(Table_SummaryPI[[#This Row],[ProposedkW]]<>\"\",Table_SummaryPI[[#This Row],[ProposedkW]],\"\")","v":""},{"$f":"IF(Table_SummaryPI[[#This Row],[Notes]]<>\"\",Table_SummaryPI[[#This Row],[Notes]],\"\")","v":""},{"$f":"IF(Table_SummaryPI[[#This Row],[Incentive_Customer]]<>\"\",Table_SummaryPI[[#This Row],[Incentive_Customer]],0)","v":0},{"$f":"IF(Table_SummaryPI[[#This Row],[MeasureCost]]<>\"\",Table_SummaryPI[[#This Row],[MeasureCost]],0)","v":0},{"$f":"IF(Table_SummaryPI[[#This Row],[kWhSavings]]<>\"\",Table_SummaryPI[[#This Row],[kWhSavings]],0)","v":0},{"$f":"IF(Table_SummaryPI[[#This Row],[DemandSavingskW]]<>\"\",Table_SummaryPI[[#This Row],[DemandSavingskW]],0)","v":0}]
[{"$f":"Table_SummaryPI[[#This Row],[Line No.]]","v":""},{"$f":"IF(Table_PrintPI[[#This Row],[Line No.]]=\"\",\"\",CONCATENATE(Table_PrintPI[[#This Row],[Line No.]],\" - \",Table_SummaryPI[[#This Row],[MeasureName]]))","v":""},{"$f":"IF(Table_SummaryPI[[#This Row],[Manufacturer]]<>\"\",CONCATENATE(Table_SummaryPI[[#This Row],[Manufacturer]],\"/\",Table_SummaryPI[[#This Row],[Model'#]]),\"\")","v":""},{"$f":"IF(Table_SummaryPI[[#This Row],[Serial'#]]<>\"\",Table_SummaryPI[[#This Row],[Serial'#]],\"\")","v":""},{"$f":"IF(Table_SummaryPI[[#This Row],[Quantity]]<>\"\",Table_SummaryPI[[#This Row],[Quantity]],\"\")","v":""},{"$f":"IF(Table_SummaryPI[[#This Row],[BaselinekWh]]<>\"\",Table_SummaryPI[[#This Row],[BaselinekWh]],\"\")","v":""},{"$f":"IF(Table_SummaryPI[[#This Row],[BaselinekW]]<>\"\",Table_SummaryPI[[#This Row],[BaselinekW]],\"\")","v":""},{"$f":"IF(Table_SummaryPI[[#This Row],[ProposedkWh]]<>\"\",Table_SummaryPI[[#This Row],[ProposedkWh]],\"\")","v":""},{"$f":"IF(Table_SummaryPI[[#This Row],[ProposedkW]]<>\"\",Table_SummaryPI[[#This Row],[ProposedkW]],\"\")","v":""},{"$f":"IF(Table_SummaryPI[[#This Row],[Notes]]<>\"\",Table_SummaryPI[[#This Row],[Notes]],\"\")","v":""},{"$f":"IF(Table_SummaryPI[[#This Row],[Incentive_Customer]]<>\"\",Table_SummaryPI[[#This Row],[Incentive_Customer]],0)","v":0},{"$f":"IF(Table_SummaryPI[[#This Row],[MeasureCost]]<>\"\",Table_SummaryPI[[#This Row],[MeasureCost]],0)","v":0},{"$f":"IF(Table_SummaryPI[[#This Row],[kWhSavings]]<>\"\",Table_SummaryPI[[#This Row],[kWhSavings]],0)","v":0},{"$f":"IF(Table_SummaryPI[[#This Row],[DemandSavingskW]]<>\"\",Table_SummaryPI[[#This Row],[DemandSavingskW]],0)","v":0}]
[{"$f":"Table_SummaryPI[[#This Row],[Line No.]]","v":""},{"$f":"IF(Table_PrintPI[[#This Row],[Line No.]]=\"\",\"\",CONCATENATE(Table_PrintPI[[#This Row],[Line No.]],\" - \",Table_SummaryPI[[#This Row],[MeasureName]]))","v":""},{"$f":"IF(Table_SummaryPI[[#This Row],[Manufacturer]]<>\"\",CONCATENATE(Table_SummaryPI[[#This Row],[Manufacturer]],\"/\",Table_SummaryPI[[#This Row],[Model'#]]),\"\")","v":""},{"$f":"IF(Table_SummaryPI[[#This Row],[Serial'#]]<>\"\",Table_SummaryPI[[#This Row],[Serial'#]],\"\")","v":""},{"$f":"IF(Table_SummaryPI[[#This Row],[Quantity]]<>\"\",Table_SummaryPI[[#This Row],[Quantity]],\"\")","v":""},{"$f":"IF(Table_SummaryPI[[#This Row],[BaselinekWh]]<>\"\",Table_SummaryPI[[#This Row],[BaselinekWh]],\"\")","v":""},{"$f":"IF(Table_SummaryPI[[#This Row],[BaselinekW]]<>\"\",Table_SummaryPI[[#This Row],[BaselinekW]],\"\")","v":""},{"$f":"IF(Table_SummaryPI[[#This Row],[ProposedkWh]]<>\"\",Table_SummaryPI[[#This Row],[ProposedkWh]],\"\")","v":""},{"$f":"IF(Table_SummaryPI[[#This Row],[ProposedkW]]<>\"\",Table_SummaryPI[[#This Row],[ProposedkW]],\"\")","v":""},{"$f":"IF(Table_SummaryPI[[#This Row],[Notes]]<>\"\",Table_SummaryPI[[#This Row],[Notes]],\"\")","v":""},{"$f":"IF(Table_SummaryPI[[#This Row],[Incentive_Customer]]<>\"\",Table_SummaryPI[[#This Row],[Incentive_Customer]],0)","v":0},{"$f":"IF(Table_SummaryPI[[#This Row],[MeasureCost]]<>\"\",Table_SummaryPI[[#This Row],[MeasureCost]],0)","v":0},{"$f":"IF(Table_SummaryPI[[#This Row],[kWhSavings]]<>\"\",Table_SummaryPI[[#This Row],[kWhSavings]],0)","v":0},{"$f":"IF(Table_SummaryPI[[#This Row],[DemandSavingskW]]<>\"\",Table_SummaryPI[[#This Row],[DemandSavingskW]],0)","v":0}]
[{"$f":"Table_SummaryPI[[#This Row],[Line No.]]","v":""},{"$f":"IF(Table_PrintPI[[#This Row],[Line No.]]=\"\",\"\",CONCATENATE(Table_PrintPI[[#This Row],[Line No.]],\" - \",Table_SummaryPI[[#This Row],[MeasureName]]))","v":""},{"$f":"IF(Table_SummaryPI[[#This Row],[Manufacturer]]<>\"\",CONCATENATE(Table_SummaryPI[[#This Row],[Manufacturer]],\"/\",Table_SummaryPI[[#This Row],[Model'#]]),\"\")","v":""},{"$f":"IF(Table_SummaryPI[[#This Row],[Serial'#]]<>\"\",Table_SummaryPI[[#This Row],[Serial'#]],\"\")","v":""},{"$f":"IF(Table_SummaryPI[[#This Row],[Quantity]]<>\"\",Table_SummaryPI[[#This Row],[Quantity]],\"\")","v":""},{"$f":"IF(Table_SummaryPI[[#This Row],[BaselinekWh]]<>\"\",Table_SummaryPI[[#This Row],[BaselinekWh]],\"\")","v":""},{"$f":"IF(Table_SummaryPI[[#This Row],[BaselinekW]]<>\"\",Table_SummaryPI[[#This Row],[BaselinekW]],\"\")","v":""},{"$f":"IF(Table_SummaryPI[[#This Row],[ProposedkWh]]<>\"\",Table_SummaryPI[[#This Row],[ProposedkWh]],\"\")","v":""},{"$f":"IF(Table_SummaryPI[[#This Row],[ProposedkW]]<>\"\",Table_SummaryPI[[#This Row],[ProposedkW]],\"\")","v":""},{"$f":"IF(Table_SummaryPI[[#This Row],[Notes]]<>\"\",Table_SummaryPI[[#This Row],[Notes]],\"\")","v":""},{"$f":"IF(Table_SummaryPI[[#This Row],[Incentive_Customer]]<>\"\",Table_SummaryPI[[#This Row],[Incentive_Customer]],0)","v":0},{"$f":"IF(Table_SummaryPI[[#This Row],[MeasureCost]]<>\"\",Table_SummaryPI[[#This Row],[MeasureCost]],0)","v":0},{"$f":"IF(Table_SummaryPI[[#This Row],[kWhSavings]]<>\"\",Table_SummaryPI[[#This Row],[kWhSavings]],0)","v":0},{"$f":"IF(Table_SummaryPI[[#This Row],[DemandSavingskW]]<>\"\",Table_SummaryPI[[#This Row],[DemandSavingskW]],0)","v":0}]
[{"$f":"Table_SummaryPI[[#This Row],[Line No.]]","v":""},{"$f":"IF(Table_PrintPI[[#This Row],[Line No.]]=\"\",\"\",CONCATENATE(Table_PrintPI[[#This Row],[Line No.]],\" - \",Table_SummaryPI[[#This Row],[MeasureName]]))","v":""},{"$f":"IF(Table_SummaryPI[[#This Row],[Manufacturer]]<>\"\",CONCATENATE(Table_SummaryPI[[#This Row],[Manufacturer]],\"/\",Table_SummaryPI[[#This Row],[Model'#]]),\"\")","v":""},{"$f":"IF(Table_SummaryPI[[#This Row],[Serial'#]]<>\"\",Table_SummaryPI[[#This Row],[Serial'#]],\"\")","v":""},{"$f":"IF(Table_SummaryPI[[#This Row],[Quantity]]<>\"\",Table_SummaryPI[[#This Row],[Quantity]],\"\")","v":""},{"$f":"IF(Table_SummaryPI[[#This Row],[BaselinekWh]]<>\"\",Table_SummaryPI[[#This Row],[BaselinekWh]],\"\")","v":""},{"$f":"IF(Table_SummaryPI[[#This Row],[BaselinekW]]<>\"\",Table_SummaryPI[[#This Row],[BaselinekW]],\"\")","v":""},{"$f":"IF(Table_SummaryPI[[#This Row],[ProposedkWh]]<>\"\",Table_SummaryPI[[#This Row],[ProposedkWh]],\"\")","v":""},{"$f":"IF(Table_SummaryPI[[#This Row],[ProposedkW]]<>\"\",Table_SummaryPI[[#This Row],[ProposedkW]],\"\")","v":""},{"$f":"IF(Table_SummaryPI[[#This Row],[Notes]]<>\"\",Table_SummaryPI[[#This Row],[Notes]],\"\")","v":""},{"$f":"IF(Table_SummaryPI[[#This Row],[Incentive_Customer]]<>\"\",Table_SummaryPI[[#This Row],[Incentive_Customer]],0)","v":0},{"$f":"IF(Table_SummaryPI[[#This Row],[MeasureCost]]<>\"\",Table_SummaryPI[[#This Row],[MeasureCost]],0)","v":0},{"$f":"IF(Table_SummaryPI[[#This Row],[kWhSavings]]<>\"\",Table_SummaryPI[[#This Row],[kWhSavings]],0)","v":0},{"$f":"IF(Table_SummaryPI[[#This Row],[DemandSavingskW]]<>\"\",Table_SummaryPI[[#This Row],[DemandSavingskW]],0)","v":0}]
[{"$f":"Table_SummaryPI[[#This Row],[Line No.]]","v":""},{"$f":"IF(Table_PrintPI[[#This Row],[Line No.]]=\"\",\"\",CONCATENATE(Table_PrintPI[[#This Row],[Line No.]],\" - \",Table_SummaryPI[[#This Row],[MeasureName]]))","v":""},{"$f":"IF(Table_SummaryPI[[#This Row],[Manufacturer]]<>\"\",CONCATENATE(Table_SummaryPI[[#This Row],[Manufacturer]],\"/\",Table_SummaryPI[[#This Row],[Model'#]]),\"\")","v":""},{"$f":"IF(Table_SummaryPI[[#This Row],[Serial'#]]<>\"\",Table_SummaryPI[[#This Row],[Serial'#]],\"\")","v":""},{"$f":"IF(Table_SummaryPI[[#This Row],[Quantity]]<>\"\",Table_SummaryPI[[#This Row],[Quantity]],\"\")","v":""},{"$f":"IF(Table_SummaryPI[[#This Row],[BaselinekWh]]<>\"\",Table_SummaryPI[[#This Row],[BaselinekWh]],\"\")","v":""},{"$f":"IF(Table_SummaryPI[[#This Row],[BaselinekW]]<>\"\",Table_SummaryPI[[#This Row],[BaselinekW]],\"\")","v":""},{"$f":"IF(Table_SummaryPI[[#This Row],[ProposedkWh]]<>\"\",Table_SummaryPI[[#This Row],[ProposedkWh]],\"\")","v":""},{"$f":"IF(Table_SummaryPI[[#This Row],[ProposedkW]]<>\"\",Table_SummaryPI[[#This Row],[ProposedkW]],\"\")","v":""},{"$f":"IF(Table_SummaryPI[[#This Row],[Notes]]<>\"\",Table_SummaryPI[[#This Row],[Notes]],\"\")","v":""},{"$f":"IF(Table_SummaryPI[[#This Row],[Incentive_Customer]]<>\"\",Table_SummaryPI[[#This Row],[Incentive_Customer]],0)","v":0},{"$f":"IF(Table_SummaryPI[[#This Row],[MeasureCost]]<>\"\",Table_SummaryPI[[#This Row],[MeasureCost]],0)","v":0},{"$f":"IF(Table_SummaryPI[[#This Row],[kWhSavings]]<>\"\",Table_SummaryPI[[#This Row],[kWhSavings]],0)","v":0},{"$f":"IF(Table_SummaryPI[[#This Row],[DemandSavingskW]]<>\"\",Table_SummaryPI[[#This Row],[DemandSavingskW]],0)","v":0}]
[{"$f":"Table_SummaryPI[[#This Row],[Line No.]]","v":""},{"$f":"IF(Table_PrintPI[[#This Row],[Line No.]]=\"\",\"\",CONCATENATE(Table_PrintPI[[#This Row],[Line No.]],\" - \",Table_SummaryPI[[#This Row],[MeasureName]]))","v":""},{"$f":"IF(Table_SummaryPI[[#This Row],[Manufacturer]]<>\"\",CONCATENATE(Table_SummaryPI[[#This Row],[Manufacturer]],\"/\",Table_SummaryPI[[#This Row],[Model'#]]),\"\")","v":""},{"$f":"IF(Table_SummaryPI[[#This Row],[Serial'#]]<>\"\",Table_SummaryPI[[#This Row],[Serial'#]],\"\")","v":""},{"$f":"IF(Table_SummaryPI[[#This Row],[Quantity]]<>\"\",Table_SummaryPI[[#This Row],[Quantity]],\"\")","v":""},{"$f":"IF(Table_SummaryPI[[#This Row],[BaselinekWh]]<>\"\",Table_SummaryPI[[#This Row],[BaselinekWh]],\"\")","v":""},{"$f":"IF(Table_SummaryPI[[#This Row],[BaselinekW]]<>\"\",Table_SummaryPI[[#This Row],[BaselinekW]],\"\")","v":""},{"$f":"IF(Table_SummaryPI[[#This Row],[ProposedkWh]]<>\"\",Table_SummaryPI[[#This Row],[ProposedkWh]],\"\")","v":""},{"$f":"IF(Table_SummaryPI[[#This Row],[ProposedkW]]<>\"\",Table_SummaryPI[[#This Row],[ProposedkW]],\"\")","v":""},{"$f":"IF(Table_SummaryPI[[#This Row],[Notes]]<>\"\",Table_SummaryPI[[#This Row],[Notes]],\"\")","v":""},{"$f":"IF(Table_SummaryPI[[#This Row],[Incentive_Customer]]<>\"\",Table_SummaryPI[[#This Row],[Incentive_Customer]],0)","v":0},{"$f":"IF(Table_SummaryPI[[#This Row],[MeasureCost]]<>\"\",Table_SummaryPI[[#This Row],[MeasureCost]],0)","v":0},{"$f":"IF(Table_SummaryPI[[#This Row],[kWhSavings]]<>\"\",Table_SummaryPI[[#This Row],[kWhSavings]],0)","v":0},{"$f":"IF(Table_SummaryPI[[#This Row],[DemandSavingskW]]<>\"\",Table_SummaryPI[[#This Row],[DemandSavingskW]],0)","v":0}]
[{"$f":"Table_SummaryPI[[#This Row],[Line No.]]","v":""},{"$f":"IF(Table_PrintPI[[#This Row],[Line No.]]=\"\",\"\",CONCATENATE(Table_PrintPI[[#This Row],[Line No.]],\" - \",Table_SummaryPI[[#This Row],[MeasureName]]))","v":""},{"$f":"IF(Table_SummaryPI[[#This Row],[Manufacturer]]<>\"\",CONCATENATE(Table_SummaryPI[[#This Row],[Manufacturer]],\"/\",Table_SummaryPI[[#This Row],[Model'#]]),\"\")","v":""},{"$f":"IF(Table_SummaryPI[[#This Row],[Serial'#]]<>\"\",Table_SummaryPI[[#This Row],[Serial'#]],\"\")","v":""},{"$f":"IF(Table_SummaryPI[[#This Row],[Quantity]]<>\"\",Table_SummaryPI[[#This Row],[Quantity]],\"\")","v":""},{"$f":"IF(Table_SummaryPI[[#This Row],[BaselinekWh]]<>\"\",Table_SummaryPI[[#This Row],[BaselinekWh]],\"\")","v":""},{"$f":"IF(Table_SummaryPI[[#This Row],[BaselinekW]]<>\"\",Table_SummaryPI[[#This Row],[BaselinekW]],\"\")","v":""},{"$f":"IF(Table_SummaryPI[[#This Row],[ProposedkWh]]<>\"\",Table_SummaryPI[[#This Row],[ProposedkWh]],\"\")","v":""},{"$f":"IF(Table_SummaryPI[[#This Row],[ProposedkW]]<>\"\",Table_SummaryPI[[#This Row],[ProposedkW]],\"\")","v":""},{"$f":"IF(Table_SummaryPI[[#This Row],[Notes]]<>\"\",Table_SummaryPI[[#This Row],[Notes]],\"\")","v":""},{"$f":"IF(Table_SummaryPI[[#This Row],[Incentive_Customer]]<>\"\",Table_SummaryPI[[#This Row],[Incentive_Customer]],0)","v":0},{"$f":"IF(Table_SummaryPI[[#This Row],[MeasureCost]]<>\"\",Table_SummaryPI[[#This Row],[MeasureCost]],0)","v":0},{"$f":"IF(Table_SummaryPI[[#This Row],[kWhSavings]]<>\"\",Table_SummaryPI[[#This Row],[kWhSavings]],0)","v":0},{"$f":"IF(Table_SummaryPI[[#This Row],[DemandSavingskW]]<>\"\",Table_SummaryPI[[#This Row],[DemandSavingskW]],0)","v":0}]
[{"$f":"Table_SummaryPI[[#This Row],[Line No.]]","v":""},{"$f":"IF(Table_PrintPI[[#This Row],[Line No.]]=\"\",\"\",CONCATENATE(Table_PrintPI[[#This Row],[Line No.]],\" - \",Table_SummaryPI[[#This Row],[MeasureName]]))","v":""},{"$f":"IF(Table_SummaryPI[[#This Row],[Manufacturer]]<>\"\",CONCATENATE(Table_SummaryPI[[#This Row],[Manufacturer]],\"/\",Table_SummaryPI[[#This Row],[Model'#]]),\"\")","v":""},{"$f":"IF(Table_SummaryPI[[#This Row],[Serial'#]]<>\"\",Table_SummaryPI[[#This Row],[Serial'#]],\"\")","v":""},{"$f":"IF(Table_SummaryPI[[#This Row],[Quantity]]<>\"\",Table_SummaryPI[[#This Row],[Quantity]],\"\")","v":""},{"$f":"IF(Table_SummaryPI[[#This Row],[BaselinekWh]]<>\"\",Table_SummaryPI[[#This Row],[BaselinekWh]],\"\")","v":""},{"$f":"IF(Table_SummaryPI[[#This Row],[BaselinekW]]<>\"\",Table_SummaryPI[[#This Row],[BaselinekW]],\"\")","v":""},{"$f":"IF(Table_SummaryPI[[#This Row],[ProposedkWh]]<>\"\",Table_SummaryPI[[#This Row],[ProposedkWh]],\"\")","v":""},{"$f":"IF(Table_SummaryPI[[#This Row],[ProposedkW]]<>\"\",Table_SummaryPI[[#This Row],[ProposedkW]],\"\")","v":""},{"$f":"IF(Table_SummaryPI[[#This Row],[Notes]]<>\"\",Table_SummaryPI[[#This Row],[Notes]],\"\")","v":""},{"$f":"IF(Table_SummaryPI[[#This Row],[Incentive_Customer]]<>\"\",Table_SummaryPI[[#This Row],[Incentive_Customer]],0)","v":0},{"$f":"IF(Table_SummaryPI[[#This Row],[MeasureCost]]<>\"\",Table_SummaryPI[[#This Row],[MeasureCost]],0)","v":0},{"$f":"IF(Table_SummaryPI[[#This Row],[kWhSavings]]<>\"\",Table_SummaryPI[[#This Row],[kWhSavings]],0)","v":0},{"$f":"IF(Table_SummaryPI[[#This Row],[DemandSavingskW]]<>\"\",Table_SummaryPI[[#This Row],[DemandSavingskW]],0)","v":0}]
[{"$f":"Table_SummaryPI[[#This Row],[Line No.]]","v":""},{"$f":"IF(Table_PrintPI[[#This Row],[Line No.]]=\"\",\"\",CONCATENATE(Table_PrintPI[[#This Row],[Line No.]],\" - \",Table_SummaryPI[[#This Row],[MeasureName]]))","v":""},{"$f":"IF(Table_SummaryPI[[#This Row],[Manufacturer]]<>\"\",CONCATENATE(Table_SummaryPI[[#This Row],[Manufacturer]],\"/\",Table_SummaryPI[[#This Row],[Model'#]]),\"\")","v":""},{"$f":"IF(Table_SummaryPI[[#This Row],[Serial'#]]<>\"\",Table_SummaryPI[[#This Row],[Serial'#]],\"\")","v":""},{"$f":"IF(Table_SummaryPI[[#This Row],[Quantity]]<>\"\",Table_SummaryPI[[#This Row],[Quantity]],\"\")","v":""},{"$f":"IF(Table_SummaryPI[[#This Row],[BaselinekWh]]<>\"\",Table_SummaryPI[[#This Row],[BaselinekWh]],\"\")","v":""},{"$f":"IF(Table_SummaryPI[[#This Row],[BaselinekW]]<>\"\",Table_SummaryPI[[#This Row],[BaselinekW]],\"\")","v":""},{"$f":"IF(Table_SummaryPI[[#This Row],[ProposedkWh]]<>\"\",Table_SummaryPI[[#This Row],[ProposedkWh]],\"\")","v":""},{"$f":"IF(Table_SummaryPI[[#This Row],[ProposedkW]]<>\"\",Table_SummaryPI[[#This Row],[ProposedkW]],\"\")","v":""},{"$f":"IF(Table_SummaryPI[[#This Row],[Notes]]<>\"\",Table_SummaryPI[[#This Row],[Notes]],\"\")","v":""},{"$f":"IF(Table_SummaryPI[[#This Row],[Incentive_Customer]]<>\"\",Table_SummaryPI[[#This Row],[Incentive_Customer]],0)","v":0},{"$f":"IF(Table_SummaryPI[[#This Row],[MeasureCost]]<>\"\",Table_SummaryPI[[#This Row],[MeasureCost]],0)","v":0},{"$f":"IF(Table_SummaryPI[[#This Row],[kWhSavings]]<>\"\",Table_SummaryPI[[#This Row],[kWhSavings]],0)","v":0},{"$f":"IF(Table_SummaryPI[[#This Row],[DemandSavingskW]]<>\"\",Table_SummaryPI[[#This Row],[DemandSavingskW]],0)","v":0}]
[{"$f":"Table_SummaryPI[[#This Row],[Line No.]]","v":""},{"$f":"IF(Table_PrintPI[[#This Row],[Line No.]]=\"\",\"\",CONCATENATE(Table_PrintPI[[#This Row],[Line No.]],\" - \",Table_SummaryPI[[#This Row],[MeasureName]]))","v":""},{"$f":"IF(Table_SummaryPI[[#This Row],[Manufacturer]]<>\"\",CONCATENATE(Table_SummaryPI[[#This Row],[Manufacturer]],\"/\",Table_SummaryPI[[#This Row],[Model'#]]),\"\")","v":""},{"$f":"IF(Table_SummaryPI[[#This Row],[Serial'#]]<>\"\",Table_SummaryPI[[#This Row],[Serial'#]],\"\")","v":""},{"$f":"IF(Table_SummaryPI[[#This Row],[Quantity]]<>\"\",Table_SummaryPI[[#This Row],[Quantity]],\"\")","v":""},{"$f":"IF(Table_SummaryPI[[#This Row],[BaselinekWh]]<>\"\",Table_SummaryPI[[#This Row],[BaselinekWh]],\"\")","v":""},{"$f":"IF(Table_SummaryPI[[#This Row],[BaselinekW]]<>\"\",Table_SummaryPI[[#This Row],[BaselinekW]],\"\")","v":""},{"$f":"IF(Table_SummaryPI[[#This Row],[ProposedkWh]]<>\"\",Table_SummaryPI[[#This Row],[ProposedkWh]],\"\")","v":""},{"$f":"IF(Table_SummaryPI[[#This Row],[ProposedkW]]<>\"\",Table_SummaryPI[[#This Row],[ProposedkW]],\"\")","v":""},{"$f":"IF(Table_SummaryPI[[#This Row],[Notes]]<>\"\",Table_SummaryPI[[#This Row],[Notes]],\"\")","v":""},{"$f":"IF(Table_SummaryPI[[#This Row],[Incentive_Customer]]<>\"\",Table_SummaryPI[[#This Row],[Incentive_Customer]],0)","v":0},{"$f":"IF(Table_SummaryPI[[#This Row],[MeasureCost]]<>\"\",Table_SummaryPI[[#This Row],[MeasureCost]],0)","v":0},{"$f":"IF(Table_SummaryPI[[#This Row],[kWhSavings]]<>\"\",Table_SummaryPI[[#This Row],[kWhSavings]],0)","v":0},{"$f":"IF(Table_SummaryPI[[#This Row],[DemandSavingskW]]<>\"\",Table_SummaryPI[[#This Row],[DemandSavingskW]],0)","v":0}]
[{"$f":"Table_SummaryPI[[#This Row],[Line No.]]","v":""},{"$f":"IF(Table_PrintPI[[#This Row],[Line No.]]=\"\",\"\",CONCATENATE(Table_PrintPI[[#This Row],[Line No.]],\" - \",Table_SummaryPI[[#This Row],[MeasureName]]))","v":""},{"$f":"IF(Table_SummaryPI[[#This Row],[Manufacturer]]<>\"\",CONCATENATE(Table_SummaryPI[[#This Row],[Manufacturer]],\"/\",Table_SummaryPI[[#This Row],[Model'#]]),\"\")","v":""},{"$f":"IF(Table_SummaryPI[[#This Row],[Serial'#]]<>\"\",Table_SummaryPI[[#This Row],[Serial'#]],\"\")","v":""},{"$f":"IF(Table_SummaryPI[[#This Row],[Quantity]]<>\"\",Table_SummaryPI[[#This Row],[Quantity]],\"\")","v":""},{"$f":"IF(Table_SummaryPI[[#This Row],[BaselinekWh]]<>\"\",Table_SummaryPI[[#This Row],[BaselinekWh]],\"\")","v":""},{"$f":"IF(Table_SummaryPI[[#This Row],[BaselinekW]]<>\"\",Table_SummaryPI[[#This Row],[BaselinekW]],\"\")","v":""},{"$f":"IF(Table_SummaryPI[[#This Row],[ProposedkWh]]<>\"\",Table_SummaryPI[[#This Row],[ProposedkWh]],\"\")","v":""},{"$f":"IF(Table_SummaryPI[[#This Row],[ProposedkW]]<>\"\",Table_SummaryPI[[#This Row],[ProposedkW]],\"\")","v":""},{"$f":"IF(Table_SummaryPI[[#This Row],[Notes]]<>\"\",Table_SummaryPI[[#This Row],[Notes]],\"\")","v":""},{"$f":"IF(Table_SummaryPI[[#This Row],[Incentive_Customer]]<>\"\",Table_SummaryPI[[#This Row],[Incentive_Customer]],0)","v":0},{"$f":"IF(Table_SummaryPI[[#This Row],[MeasureCost]]<>\"\",Table_SummaryPI[[#This Row],[MeasureCost]],0)","v":0},{"$f":"IF(Table_SummaryPI[[#This Row],[kWhSavings]]<>\"\",Table_SummaryPI[[#This Row],[kWhSavings]],0)","v":0},{"$f":"IF(Table_SummaryPI[[#This Row],[DemandSavingskW]]<>\"\",Table_SummaryPI[[#This Row],[DemandSavingskW]],0)","v":0}]
[{"$f":"Table_SummaryPI[[#This Row],[Line No.]]","v":""},{"$f":"IF(Table_PrintPI[[#This Row],[Line No.]]=\"\",\"\",CONCATENATE(Table_PrintPI[[#This Row],[Line No.]],\" - \",Table_SummaryPI[[#This Row],[MeasureName]]))","v":""},{"$f":"IF(Table_SummaryPI[[#This Row],[Manufacturer]]<>\"\",CONCATENATE(Table_SummaryPI[[#This Row],[Manufacturer]],\"/\",Table_SummaryPI[[#This Row],[Model'#]]),\"\")","v":""},{"$f":"IF(Table_SummaryPI[[#This Row],[Serial'#]]<>\"\",Table_SummaryPI[[#This Row],[Serial'#]],\"\")","v":""},{"$f":"IF(Table_SummaryPI[[#This Row],[Quantity]]<>\"\",Table_SummaryPI[[#This Row],[Quantity]],\"\")","v":""},{"$f":"IF(Table_SummaryPI[[#This Row],[BaselinekWh]]<>\"\",Table_SummaryPI[[#This Row],[BaselinekWh]],\"\")","v":""},{"$f":"IF(Table_SummaryPI[[#This Row],[BaselinekW]]<>\"\",Table_SummaryPI[[#This Row],[BaselinekW]],\"\")","v":""},{"$f":"IF(Table_SummaryPI[[#This Row],[ProposedkWh]]<>\"\",Table_SummaryPI[[#This Row],[ProposedkWh]],\"\")","v":""},{"$f":"IF(Table_SummaryPI[[#This Row],[ProposedkW]]<>\"\",Table_SummaryPI[[#This Row],[ProposedkW]],\"\")","v":""},{"$f":"IF(Table_SummaryPI[[#This Row],[Notes]]<>\"\",Table_SummaryPI[[#This Row],[Notes]],\"\")","v":""},{"$f":"IF(Table_SummaryPI[[#This Row],[Incentive_Customer]]<>\"\",Table_SummaryPI[[#This Row],[Incentive_Customer]],0)","v":0},{"$f":"IF(Table_SummaryPI[[#This Row],[MeasureCost]]<>\"\",Table_SummaryPI[[#This Row],[MeasureCost]],0)","v":0},{"$f":"IF(Table_SummaryPI[[#This Row],[kWhSavings]]<>\"\",Table_SummaryPI[[#This Row],[kWhSavings]],0)","v":0},{"$f":"IF(Table_SummaryPI[[#This Row],[DemandSavingskW]]<>\"\",Table_SummaryPI[[#This Row],[DemandSavingskW]],0)","v":0}]
[{"$f":"Table_SummaryPI[[#This Row],[Line No.]]","v":""},{"$f":"IF(Table_PrintPI[[#This Row],[Line No.]]=\"\",\"\",CONCATENATE(Table_PrintPI[[#This Row],[Line No.]],\" - \",Table_SummaryPI[[#This Row],[MeasureName]]))","v":""},{"$f":"IF(Table_SummaryPI[[#This Row],[Manufacturer]]<>\"\",CONCATENATE(Table_SummaryPI[[#This Row],[Manufacturer]],\"/\",Table_SummaryPI[[#This Row],[Model'#]]),\"\")","v":""},{"$f":"IF(Table_SummaryPI[[#This Row],[Serial'#]]<>\"\",Table_SummaryPI[[#This Row],[Serial'#]],\"\")","v":""},{"$f":"IF(Table_SummaryPI[[#This Row],[Quantity]]<>\"\",Table_SummaryPI[[#This Row],[Quantity]],\"\")","v":""},{"$f":"IF(Table_SummaryPI[[#This Row],[BaselinekWh]]<>\"\",Table_SummaryPI[[#This Row],[BaselinekWh]],\"\")","v":""},{"$f":"IF(Table_SummaryPI[[#This Row],[BaselinekW]]<>\"\",Table_SummaryPI[[#This Row],[BaselinekW]],\"\")","v":""},{"$f":"IF(Table_SummaryPI[[#This Row],[ProposedkWh]]<>\"\",Table_SummaryPI[[#This Row],[ProposedkWh]],\"\")","v":""},{"$f":"IF(Table_SummaryPI[[#This Row],[ProposedkW]]<>\"\",Table_SummaryPI[[#This Row],[ProposedkW]],\"\")","v":""},{"$f":"IF(Table_SummaryPI[[#This Row],[Notes]]<>\"\",Table_SummaryPI[[#This Row],[Notes]],\"\")","v":""},{"$f":"IF(Table_SummaryPI[[#This Row],[Incentive_Customer]]<>\"\",Table_SummaryPI[[#This Row],[Incentive_Customer]],0)","v":0},{"$f":"IF(Table_SummaryPI[[#This Row],[MeasureCost]]<>\"\",Table_SummaryPI[[#This Row],[MeasureCost]],0)","v":0},{"$f":"IF(Table_SummaryPI[[#This Row],[kWhSavings]]<>\"\",Table_SummaryPI[[#This Row],[kWhSavings]],0)","v":0},{"$f":"IF(Table_SummaryPI[[#This Row],[DemandSavingskW]]<>\"\",Table_SummaryPI[[#This Row],[DemandSavingskW]],0)","v":0}]
[{"$f":"Table_SummaryPI[[#This Row],[Line No.]]","v":""},{"$f":"IF(Table_PrintPI[[#This Row],[Line No.]]=\"\",\"\",CONCATENATE(Table_PrintPI[[#This Row],[Line No.]],\" - \",Table_SummaryPI[[#This Row],[MeasureName]]))","v":""},{"$f":"IF(Table_SummaryPI[[#This Row],[Manufacturer]]<>\"\",CONCATENATE(Table_SummaryPI[[#This Row],[Manufacturer]],\"/\",Table_SummaryPI[[#This Row],[Model'#]]),\"\")","v":""},{"$f":"IF(Table_SummaryPI[[#This Row],[Serial'#]]<>\"\",Table_SummaryPI[[#This Row],[Serial'#]],\"\")","v":""},{"$f":"IF(Table_SummaryPI[[#This Row],[Quantity]]<>\"\",Table_SummaryPI[[#This Row],[Quantity]],\"\")","v":""},{"$f":"IF(Table_SummaryPI[[#This Row],[BaselinekWh]]<>\"\",Table_SummaryPI[[#This Row],[BaselinekWh]],\"\")","v":""},{"$f":"IF(Table_SummaryPI[[#This Row],[BaselinekW]]<>\"\",Table_SummaryPI[[#This Row],[BaselinekW]],\"\")","v":""},{"$f":"IF(Table_SummaryPI[[#This Row],[ProposedkWh]]<>\"\",Table_SummaryPI[[#This Row],[ProposedkWh]],\"\")","v":""},{"$f":"IF(Table_SummaryPI[[#This Row],[ProposedkW]]<>\"\",Table_SummaryPI[[#This Row],[ProposedkW]],\"\")","v":""},{"$f":"IF(Table_SummaryPI[[#This Row],[Notes]]<>\"\",Table_SummaryPI[[#This Row],[Notes]],\"\")","v":""},{"$f":"IF(Table_SummaryPI[[#This Row],[Incentive_Customer]]<>\"\",Table_SummaryPI[[#This Row],[Incentive_Customer]],0)","v":0},{"$f":"IF(Table_SummaryPI[[#This Row],[MeasureCost]]<>\"\",Table_SummaryPI[[#This Row],[MeasureCost]],0)","v":0},{"$f":"IF(Table_SummaryPI[[#This Row],[kWhSavings]]<>\"\",Table_SummaryPI[[#This Row],[kWhSavings]],0)","v":0},{"$f":"IF(Table_SummaryPI[[#This Row],[DemandSavingskW]]<>\"\",Table_SummaryPI[[#This Row],[DemandSavingskW]],0)","v":0}]
[{"$f":"Table_SummaryPI[[#This Row],[Line No.]]","v":""},{"$f":"IF(Table_PrintPI[[#This Row],[Line No.]]=\"\",\"\",CONCATENATE(Table_PrintPI[[#This Row],[Line No.]],\" - \",Table_SummaryPI[[#This Row],[MeasureName]]))","v":""},{"$f":"IF(Table_SummaryPI[[#This Row],[Manufacturer]]<>\"\",CONCATENATE(Table_SummaryPI[[#This Row],[Manufacturer]],\"/\",Table_SummaryPI[[#This Row],[Model'#]]),\"\")","v":""},{"$f":"IF(Table_SummaryPI[[#This Row],[Serial'#]]<>\"\",Table_SummaryPI[[#This Row],[Serial'#]],\"\")","v":""},{"$f":"IF(Table_SummaryPI[[#This Row],[Quantity]]<>\"\",Table_SummaryPI[[#This Row],[Quantity]],\"\")","v":""},{"$f":"IF(Table_SummaryPI[[#This Row],[BaselinekWh]]<>\"\",Table_SummaryPI[[#This Row],[BaselinekWh]],\"\")","v":""},{"$f":"IF(Table_SummaryPI[[#This Row],[BaselinekW]]<>\"\",Table_SummaryPI[[#This Row],[BaselinekW]],\"\")","v":""},{"$f":"IF(Table_SummaryPI[[#This Row],[ProposedkWh]]<>\"\",Table_SummaryPI[[#This Row],[ProposedkWh]],\"\")","v":""},{"$f":"IF(Table_SummaryPI[[#This Row],[ProposedkW]]<>\"\",Table_SummaryPI[[#This Row],[ProposedkW]],\"\")","v":""},{"$f":"IF(Table_SummaryPI[[#This Row],[Notes]]<>\"\",Table_SummaryPI[[#This Row],[Notes]],\"\")","v":""},{"$f":"IF(Table_SummaryPI[[#This Row],[Incentive_Customer]]<>\"\",Table_SummaryPI[[#This Row],[Incentive_Customer]],0)","v":0},{"$f":"IF(Table_SummaryPI[[#This Row],[MeasureCost]]<>\"\",Table_SummaryPI[[#This Row],[MeasureCost]],0)","v":0},{"$f":"IF(Table_SummaryPI[[#This Row],[kWhSavings]]<>\"\",Table_SummaryPI[[#This Row],[kWhSavings]],0)","v":0},{"$f":"IF(Table_SummaryPI[[#This Row],[DemandSavingskW]]<>\"\",Table_SummaryPI[[#This Row],[DemandSavingskW]],0)","v":0}]
[{"$f":"Table_SummaryPI[[#This Row],[Line No.]]","v":""},{"$f":"IF(Table_PrintPI[[#This Row],[Line No.]]=\"\",\"\",CONCATENATE(Table_PrintPI[[#This Row],[Line No.]],\" - \",Table_SummaryPI[[#This Row],[MeasureName]]))","v":""},{"$f":"IF(Table_SummaryPI[[#This Row],[Manufacturer]]<>\"\",CONCATENATE(Table_SummaryPI[[#This Row],[Manufacturer]],\"/\",Table_SummaryPI[[#This Row],[Model'#]]),\"\")","v":""},{"$f":"IF(Table_SummaryPI[[#This Row],[Serial'#]]<>\"\",Table_SummaryPI[[#This Row],[Serial'#]],\"\")","v":""},{"$f":"IF(Table_SummaryPI[[#This Row],[Quantity]]<>\"\",Table_SummaryPI[[#This Row],[Quantity]],\"\")","v":""},{"$f":"IF(Table_SummaryPI[[#This Row],[BaselinekWh]]<>\"\",Table_SummaryPI[[#This Row],[BaselinekWh]],\"\")","v":""},{"$f":"IF(Table_SummaryPI[[#This Row],[BaselinekW]]<>\"\",Table_SummaryPI[[#This Row],[BaselinekW]],\"\")","v":""},{"$f":"IF(Table_SummaryPI[[#This Row],[ProposedkWh]]<>\"\",Table_SummaryPI[[#This Row],[ProposedkWh]],\"\")","v":""},{"$f":"IF(Table_SummaryPI[[#This Row],[ProposedkW]]<>\"\",Table_SummaryPI[[#This Row],[ProposedkW]],\"\")","v":""},{"$f":"IF(Table_SummaryPI[[#This Row],[Notes]]<>\"\",Table_SummaryPI[[#This Row],[Notes]],\"\")","v":""},{"$f":"IF(Table_SummaryPI[[#This Row],[Incentive_Customer]]<>\"\",Table_SummaryPI[[#This Row],[Incentive_Customer]],0)","v":0},{"$f":"IF(Table_SummaryPI[[#This Row],[MeasureCost]]<>\"\",Table_SummaryPI[[#This Row],[MeasureCost]],0)","v":0},{"$f":"IF(Table_SummaryPI[[#This Row],[kWhSavings]]<>\"\",Table_SummaryPI[[#This Row],[kWhSavings]],0)","v":0},{"$f":"IF(Table_SummaryPI[[#This Row],[DemandSavingskW]]<>\"\",Table_SummaryPI[[#This Row],[DemandSavingskW]],0)","v":0}]
[{"$f":"Table_SummaryPI[[#This Row],[Line No.]]","v":""},{"$f":"IF(Table_PrintPI[[#This Row],[Line No.]]=\"\",\"\",CONCATENATE(Table_PrintPI[[#This Row],[Line No.]],\" - \",Table_SummaryPI[[#This Row],[MeasureName]]))","v":""},{"$f":"IF(Table_SummaryPI[[#This Row],[Manufacturer]]<>\"\",CONCATENATE(Table_SummaryPI[[#This Row],[Manufacturer]],\"/\",Table_SummaryPI[[#This Row],[Model'#]]),\"\")","v":""},{"$f":"IF(Table_SummaryPI[[#This Row],[Serial'#]]<>\"\",Table_SummaryPI[[#This Row],[Serial'#]],\"\")","v":""},{"$f":"IF(Table_SummaryPI[[#This Row],[Quantity]]<>\"\",Table_SummaryPI[[#This Row],[Quantity]],\"\")","v":""},{"$f":"IF(Table_SummaryPI[[#This Row],[BaselinekWh]]<>\"\",Table_SummaryPI[[#This Row],[BaselinekWh]],\"\")","v":""},{"$f":"IF(Table_SummaryPI[[#This Row],[BaselinekW]]<>\"\",Table_SummaryPI[[#This Row],[BaselinekW]],\"\")","v":""},{"$f":"IF(Table_SummaryPI[[#This Row],[ProposedkWh]]<>\"\",Table_SummaryPI[[#This Row],[ProposedkWh]],\"\")","v":""},{"$f":"IF(Table_SummaryPI[[#This Row],[ProposedkW]]<>\"\",Table_SummaryPI[[#This Row],[ProposedkW]],\"\")","v":""},{"$f":"IF(Table_SummaryPI[[#This Row],[Notes]]<>\"\",Table_SummaryPI[[#This Row],[Notes]],\"\")","v":""},{"$f":"IF(Table_SummaryPI[[#This Row],[Incentive_Customer]]<>\"\",Table_SummaryPI[[#This Row],[Incentive_Customer]],0)","v":0},{"$f":"IF(Table_SummaryPI[[#This Row],[MeasureCost]]<>\"\",Table_SummaryPI[[#This Row],[MeasureCost]],0)","v":0},{"$f":"IF(Table_SummaryPI[[#This Row],[kWhSavings]]<>\"\",Table_SummaryPI[[#This Row],[kWhSavings]],0)","v":0},{"$f":"IF(Table_SummaryPI[[#This Row],[DemandSavingskW]]<>\"\",Table_SummaryPI[[#This Row],[DemandSavingskW]],0)","v":0}]
[{"$f":"Table_SummaryPI[[#This Row],[Line No.]]","v":""},{"$f":"IF(Table_PrintPI[[#This Row],[Line No.]]=\"\",\"\",CONCATENATE(Table_PrintPI[[#This Row],[Line No.]],\" - \",Table_SummaryPI[[#This Row],[MeasureName]]))","v":""},{"$f":"IF(Table_SummaryPI[[#This Row],[Manufacturer]]<>\"\",CONCATENATE(Table_SummaryPI[[#This Row],[Manufacturer]],\"/\",Table_SummaryPI[[#This Row],[Model'#]]),\"\")","v":""},{"$f":"IF(Table_SummaryPI[[#This Row],[Serial'#]]<>\"\",Table_SummaryPI[[#This Row],[Serial'#]],\"\")","v":""},{"$f":"IF(Table_SummaryPI[[#This Row],[Quantity]]<>\"\",Table_SummaryPI[[#This Row],[Quantity]],\"\")","v":""},{"$f":"IF(Table_SummaryPI[[#This Row],[BaselinekWh]]<>\"\",Table_SummaryPI[[#This Row],[BaselinekWh]],\"\")","v":""},{"$f":"IF(Table_SummaryPI[[#This Row],[BaselinekW]]<>\"\",Table_SummaryPI[[#This Row],[BaselinekW]],\"\")","v":""},{"$f":"IF(Table_SummaryPI[[#This Row],[ProposedkWh]]<>\"\",Table_SummaryPI[[#This Row],[ProposedkWh]],\"\")","v":""},{"$f":"IF(Table_SummaryPI[[#This Row],[ProposedkW]]<>\"\",Table_SummaryPI[[#This Row],[ProposedkW]],\"\")","v":""},{"$f":"IF(Table_SummaryPI[[#This Row],[Notes]]<>\"\",Table_SummaryPI[[#This Row],[Notes]],\"\")","v":""},{"$f":"IF(Table_SummaryPI[[#This Row],[Incentive_Customer]]<>\"\",Table_SummaryPI[[#This Row],[Incentive_Customer]],0)","v":0},{"$f":"IF(Table_SummaryPI[[#This Row],[MeasureCost]]<>\"\",Table_SummaryPI[[#This Row],[MeasureCost]],0)","v":0},{"$f":"IF(Table_SummaryPI[[#This Row],[kWhSavings]]<>\"\",Table_SummaryPI[[#This Row],[kWhSavings]],0)","v":0},{"$f":"IF(Table_SummaryPI[[#This Row],[DemandSavingskW]]<>\"\",Table_SummaryPI[[#This Row],[DemandSavingskW]],0)","v":0}]
[{"$f":"Table_SummaryPI[[#This Row],[Line No.]]","v":""},{"$f":"IF(Table_PrintPI[[#This Row],[Line No.]]=\"\",\"\",CONCATENATE(Table_PrintPI[[#This Row],[Line No.]],\" - \",Table_SummaryPI[[#This Row],[MeasureName]]))","v":""},{"$f":"IF(Table_SummaryPI[[#This Row],[Manufacturer]]<>\"\",CONCATENATE(Table_SummaryPI[[#This Row],[Manufacturer]],\"/\",Table_SummaryPI[[#This Row],[Model'#]]),\"\")","v":""},{"$f":"IF(Table_SummaryPI[[#This Row],[Serial'#]]<>\"\",Table_SummaryPI[[#This Row],[Serial'#]],\"\")","v":""},{"$f":"IF(Table_SummaryPI[[#This Row],[Quantity]]<>\"\",Table_SummaryPI[[#This Row],[Quantity]],\"\")","v":""},{"$f":"IF(Table_SummaryPI[[#This Row],[BaselinekWh]]<>\"\",Table_SummaryPI[[#This Row],[BaselinekWh]],\"\")","v":""},{"$f":"IF(Table_SummaryPI[[#This Row],[BaselinekW]]<>\"\",Table_SummaryPI[[#This Row],[BaselinekW]],\"\")","v":""},{"$f":"IF(Table_SummaryPI[[#This Row],[ProposedkWh]]<>\"\",Table_SummaryPI[[#This Row],[ProposedkWh]],\"\")","v":""},{"$f":"IF(Table_SummaryPI[[#This Row],[ProposedkW]]<>\"\",Table_SummaryPI[[#This Row],[ProposedkW]],\"\")","v":""},{"$f":"IF(Table_SummaryPI[[#This Row],[Notes]]<>\"\",Table_SummaryPI[[#This Row],[Notes]],\"\")","v":""},{"$f":"IF(Table_SummaryPI[[#This Row],[Incentive_Customer]]<>\"\",Table_SummaryPI[[#This Row],[Incentive_Customer]],0)","v":0},{"$f":"IF(Table_SummaryPI[[#This Row],[MeasureCost]]<>\"\",Table_SummaryPI[[#This Row],[MeasureCost]],0)","v":0},{"$f":"IF(Table_SummaryPI[[#This Row],[kWhSavings]]<>\"\",Table_SummaryPI[[#This Row],[kWhSavings]],0)","v":0},{"$f":"IF(Table_SummaryPI[[#This Row],[DemandSavingskW]]<>\"\",Table_SummaryPI[[#This Row],[DemandSavingskW]],0)","v":0}]
[{"$f":"Table_SummaryPI[[#This Row],[Line No.]]","v":""},{"$f":"IF(Table_PrintPI[[#This Row],[Line No.]]=\"\",\"\",CONCATENATE(Table_PrintPI[[#This Row],[Line No.]],\" - \",Table_SummaryPI[[#This Row],[MeasureName]]))","v":""},{"$f":"IF(Table_SummaryPI[[#This Row],[Manufacturer]]<>\"\",CONCATENATE(Table_SummaryPI[[#This Row],[Manufacturer]],\"/\",Table_SummaryPI[[#This Row],[Model'#]]),\"\")","v":""},{"$f":"IF(Table_SummaryPI[[#This Row],[Serial'#]]<>\"\",Table_SummaryPI[[#This Row],[Serial'#]],\"\")","v":""},{"$f":"IF(Table_SummaryPI[[#This Row],[Quantity]]<>\"\",Table_SummaryPI[[#This Row],[Quantity]],\"\")","v":""},{"$f":"IF(Table_SummaryPI[[#This Row],[BaselinekWh]]<>\"\",Table_SummaryPI[[#This Row],[BaselinekWh]],\"\")","v":""},{"$f":"IF(Table_SummaryPI[[#This Row],[BaselinekW]]<>\"\",Table_SummaryPI[[#This Row],[BaselinekW]],\"\")","v":""},{"$f":"IF(Table_SummaryPI[[#This Row],[ProposedkWh]]<>\"\",Table_SummaryPI[[#This Row],[ProposedkWh]],\"\")","v":""},{"$f":"IF(Table_SummaryPI[[#This Row],[ProposedkW]]<>\"\",Table_SummaryPI[[#This Row],[ProposedkW]],\"\")","v":""},{"$f":"IF(Table_SummaryPI[[#This Row],[Notes]]<>\"\",Table_SummaryPI[[#This Row],[Notes]],\"\")","v":""},{"$f":"IF(Table_SummaryPI[[#This Row],[Incentive_Customer]]<>\"\",Table_SummaryPI[[#This Row],[Incentive_Customer]],0)","v":0},{"$f":"IF(Table_SummaryPI[[#This Row],[MeasureCost]]<>\"\",Table_SummaryPI[[#This Row],[MeasureCost]],0)","v":0},{"$f":"IF(Table_SummaryPI[[#This Row],[kWhSavings]]<>\"\",Table_SummaryPI[[#This Row],[kWhSavings]],0)","v":0},{"$f":"IF(Table_SummaryPI[[#This Row],[DemandSavingskW]]<>\"\",Table_SummaryPI[[#This Row],[DemandSavingskW]],0)","v":0}]
[{"$f":"Table_SummaryPI[[#This Row],[Line No.]]","v":""},{"$f":"IF(Table_PrintPI[[#This Row],[Line No.]]=\"\",\"\",CONCATENATE(Table_PrintPI[[#This Row],[Line No.]],\" - \",Table_SummaryPI[[#This Row],[MeasureName]]))","v":""},{"$f":"IF(Table_SummaryPI[[#This Row],[Manufacturer]]<>\"\",CONCATENATE(Table_SummaryPI[[#This Row],[Manufacturer]],\"/\",Table_SummaryPI[[#This Row],[Model'#]]),\"\")","v":""},{"$f":"IF(Table_SummaryPI[[#This Row],[Serial'#]]<>\"\",Table_SummaryPI[[#This Row],[Serial'#]],\"\")","v":""},{"$f":"IF(Table_SummaryPI[[#This Row],[Quantity]]<>\"\",Table_SummaryPI[[#This Row],[Quantity]],\"\")","v":""},{"$f":"IF(Table_SummaryPI[[#This Row],[BaselinekWh]]<>\"\",Table_SummaryPI[[#This Row],[BaselinekWh]],\"\")","v":""},{"$f":"IF(Table_SummaryPI[[#This Row],[BaselinekW]]<>\"\",Table_SummaryPI[[#This Row],[BaselinekW]],\"\")","v":""},{"$f":"IF(Table_SummaryPI[[#This Row],[ProposedkWh]]<>\"\",Table_SummaryPI[[#This Row],[ProposedkWh]],\"\")","v":""},{"$f":"IF(Table_SummaryPI[[#This Row],[ProposedkW]]<>\"\",Table_SummaryPI[[#This Row],[ProposedkW]],\"\")","v":""},{"$f":"IF(Table_SummaryPI[[#This Row],[Notes]]<>\"\",Table_SummaryPI[[#This Row],[Notes]],\"\")","v":""},{"$f":"IF(Table_SummaryPI[[#This Row],[Incentive_Customer]]<>\"\",Table_SummaryPI[[#This Row],[Incentive_Customer]],0)","v":0},{"$f":"IF(Table_SummaryPI[[#This Row],[MeasureCost]]<>\"\",Table_SummaryPI[[#This Row],[MeasureCost]],0)","v":0},{"$f":"IF(Table_SummaryPI[[#This Row],[kWhSavings]]<>\"\",Table_SummaryPI[[#This Row],[kWhSavings]],0)","v":0},{"$f":"IF(Table_SummaryPI[[#This Row],[DemandSavingskW]]<>\"\",Table_SummaryPI[[#This Row],[DemandSavingskW]],0)","v":0}]
[{"$f":"Table_SummaryPI[[#This Row],[Line No.]]","v":""},{"$f":"IF(Table_PrintPI[[#This Row],[Line No.]]=\"\",\"\",CONCATENATE(Table_PrintPI[[#This Row],[Line No.]],\" - \",Table_SummaryPI[[#This Row],[MeasureName]]))","v":""},{"$f":"IF(Table_SummaryPI[[#This Row],[Manufacturer]]<>\"\",CONCATENATE(Table_SummaryPI[[#This Row],[Manufacturer]],\"/\",Table_SummaryPI[[#This Row],[Model'#]]),\"\")","v":""},{"$f":"IF(Table_SummaryPI[[#This Row],[Serial'#]]<>\"\",Table_SummaryPI[[#This Row],[Serial'#]],\"\")","v":""},{"$f":"IF(Table_SummaryPI[[#This Row],[Quantity]]<>\"\",Table_SummaryPI[[#This Row],[Quantity]],\"\")","v":""},{"$f":"IF(Table_SummaryPI[[#This Row],[BaselinekWh]]<>\"\",Table_SummaryPI[[#This Row],[BaselinekWh]],\"\")","v":""},{"$f":"IF(Table_SummaryPI[[#This Row],[BaselinekW]]<>\"\",Table_SummaryPI[[#This Row],[BaselinekW]],\"\")","v":""},{"$f":"IF(Table_SummaryPI[[#This Row],[ProposedkWh]]<>\"\",Table_SummaryPI[[#This Row],[ProposedkWh]],\"\")","v":""},{"$f":"IF(Table_SummaryPI[[#This Row],[ProposedkW]]<>\"\",Table_SummaryPI[[#This Row],[ProposedkW]],\"\")","v":""},{"$f":"IF(Table_SummaryPI[[#This Row],[Notes]]<>\"\",Table_SummaryPI[[#This Row],[Notes]],\"\")","v":""},{"$f":"IF(Table_SummaryPI[[#This Row],[Incentive_Customer]]<>\"\",Table_SummaryPI[[#This Row],[Incentive_Customer]],0)","v":0},{"$f":"IF(Table_SummaryPI[[#This Row],[MeasureCost]]<>\"\",Table_SummaryPI[[#This Row],[MeasureCost]],0)","v":0},{"$f":"IF(Table_SummaryPI[[#This Row],[kWhSavings]]<>\"\",Table_SummaryPI[[#This Row],[kWhSavings]],0)","v":0},{"$f":"IF(Table_SummaryPI[[#This Row],[DemandSavingskW]]<>\"\",Table_SummaryPI[[#This Row],[DemandSavingskW]],0)","v":0}]
[{"$f":"Table_SummaryPI[[#This Row],[Line No.]]","v":""},{"$f":"IF(Table_PrintPI[[#This Row],[Line No.]]=\"\",\"\",CONCATENATE(Table_PrintPI[[#This Row],[Line No.]],\" - \",Table_SummaryPI[[#This Row],[MeasureName]]))","v":""},{"$f":"IF(Table_SummaryPI[[#This Row],[Manufacturer]]<>\"\",CONCATENATE(Table_SummaryPI[[#This Row],[Manufacturer]],\"/\",Table_SummaryPI[[#This Row],[Model'#]]),\"\")","v":""},{"$f":"IF(Table_SummaryPI[[#This Row],[Serial'#]]<>\"\",Table_SummaryPI[[#This Row],[Serial'#]],\"\")","v":""},{"$f":"IF(Table_SummaryPI[[#This Row],[Quantity]]<>\"\",Table_SummaryPI[[#This Row],[Quantity]],\"\")","v":""},{"$f":"IF(Table_SummaryPI[[#This Row],[BaselinekWh]]<>\"\",Table_SummaryPI[[#This Row],[BaselinekWh]],\"\")","v":""},{"$f":"IF(Table_SummaryPI[[#This Row],[BaselinekW]]<>\"\",Table_SummaryPI[[#This Row],[BaselinekW]],\"\")","v":""},{"$f":"IF(Table_SummaryPI[[#This Row],[ProposedkWh]]<>\"\",Table_SummaryPI[[#This Row],[ProposedkWh]],\"\")","v":""},{"$f":"IF(Table_SummaryPI[[#This Row],[ProposedkW]]<>\"\",Table_SummaryPI[[#This Row],[ProposedkW]],\"\")","v":""},{"$f":"IF(Table_SummaryPI[[#This Row],[Notes]]<>\"\",Table_SummaryPI[[#This Row],[Notes]],\"\")","v":""},{"$f":"IF(Table_SummaryPI[[#This Row],[Incentive_Customer]]<>\"\",Table_SummaryPI[[#This Row],[Incentive_Customer]],0)","v":0},{"$f":"IF(Table_SummaryPI[[#This Row],[MeasureCost]]<>\"\",Table_SummaryPI[[#This Row],[MeasureCost]],0)","v":0},{"$f":"IF(Table_SummaryPI[[#This Row],[kWhSavings]]<>\"\",Table_SummaryPI[[#This Row],[kWhSavings]],0)","v":0},{"$f":"IF(Table_SummaryPI[[#This Row],[DemandSavingskW]]<>\"\",Table_SummaryPI[[#This Row],[DemandSavingskW]],0)","v":0}]
[{"$f":"Table_SummaryPI[[#This Row],[Line No.]]","v":""},{"$f":"IF(Table_PrintPI[[#This Row],[Line No.]]=\"\",\"\",CONCATENATE(Table_PrintPI[[#This Row],[Line No.]],\" - \",Table_SummaryPI[[#This Row],[MeasureName]]))","v":""},{"$f":"IF(Table_SummaryPI[[#This Row],[Manufacturer]]<>\"\",CONCATENATE(Table_SummaryPI[[#This Row],[Manufacturer]],\"/\",Table_SummaryPI[[#This Row],[Model'#]]),\"\")","v":""},{"$f":"IF(Table_SummaryPI[[#This Row],[Serial'#]]<>\"\",Table_SummaryPI[[#This Row],[Serial'#]],\"\")","v":""},{"$f":"IF(Table_SummaryPI[[#This Row],[Quantity]]<>\"\",Table_SummaryPI[[#This Row],[Quantity]],\"\")","v":""},{"$f":"IF(Table_SummaryPI[[#This Row],[BaselinekWh]]<>\"\",Table_SummaryPI[[#This Row],[BaselinekWh]],\"\")","v":""},{"$f":"IF(Table_SummaryPI[[#This Row],[BaselinekW]]<>\"\",Table_SummaryPI[[#This Row],[BaselinekW]],\"\")","v":""},{"$f":"IF(Table_SummaryPI[[#This Row],[ProposedkWh]]<>\"\",Table_SummaryPI[[#This Row],[ProposedkWh]],\"\")","v":""},{"$f":"IF(Table_SummaryPI[[#This Row],[ProposedkW]]<>\"\",Table_SummaryPI[[#This Row],[ProposedkW]],\"\")","v":""},{"$f":"IF(Table_SummaryPI[[#This Row],[Notes]]<>\"\",Table_SummaryPI[[#This Row],[Notes]],\"\")","v":""},{"$f":"IF(Table_SummaryPI[[#This Row],[Incentive_Customer]]<>\"\",Table_SummaryPI[[#This Row],[Incentive_Customer]],0)","v":0},{"$f":"IF(Table_SummaryPI[[#This Row],[MeasureCost]]<>\"\",Table_SummaryPI[[#This Row],[MeasureCost]],0)","v":0},{"$f":"IF(Table_SummaryPI[[#This Row],[kWhSavings]]<>\"\",Table_SummaryPI[[#This Row],[kWhSavings]],0)","v":0},{"$f":"IF(Table_SummaryPI[[#This Row],[DemandSavingskW]]<>\"\",Table_SummaryPI[[#This Row],[DemandSavingskW]],0)","v":0}]
[{"$f":"Table_SummaryPI[[#This Row],[Line No.]]","v":""},{"$f":"IF(Table_PrintPI[[#This Row],[Line No.]]=\"\",\"\",CONCATENATE(Table_PrintPI[[#This Row],[Line No.]],\" - \",Table_SummaryPI[[#This Row],[MeasureName]]))","v":""},{"$f":"IF(Table_SummaryPI[[#This Row],[Manufacturer]]<>\"\",CONCATENATE(Table_SummaryPI[[#This Row],[Manufacturer]],\"/\",Table_SummaryPI[[#This Row],[Model'#]]),\"\")","v":""},{"$f":"IF(Table_SummaryPI[[#This Row],[Serial'#]]<>\"\",Table_SummaryPI[[#This Row],[Serial'#]],\"\")","v":""},{"$f":"IF(Table_SummaryPI[[#This Row],[Quantity]]<>\"\",Table_SummaryPI[[#This Row],[Quantity]],\"\")","v":""},{"$f":"IF(Table_SummaryPI[[#This Row],[BaselinekWh]]<>\"\",Table_SummaryPI[[#This Row],[BaselinekWh]],\"\")","v":""},{"$f":"IF(Table_SummaryPI[[#This Row],[BaselinekW]]<>\"\",Table_SummaryPI[[#This Row],[BaselinekW]],\"\")","v":""},{"$f":"IF(Table_SummaryPI[[#This Row],[ProposedkWh]]<>\"\",Table_SummaryPI[[#This Row],[ProposedkWh]],\"\")","v":""},{"$f":"IF(Table_SummaryPI[[#This Row],[ProposedkW]]<>\"\",Table_SummaryPI[[#This Row],[ProposedkW]],\"\")","v":""},{"$f":"IF(Table_SummaryPI[[#This Row],[Notes]]<>\"\",Table_SummaryPI[[#This Row],[Notes]],\"\")","v":""},{"$f":"IF(Table_SummaryPI[[#This Row],[Incentive_Customer]]<>\"\",Table_SummaryPI[[#This Row],[Incentive_Customer]],0)","v":0},{"$f":"IF(Table_SummaryPI[[#This Row],[MeasureCost]]<>\"\",Table_SummaryPI[[#This Row],[MeasureCost]],0)","v":0},{"$f":"IF(Table_SummaryPI[[#This Row],[kWhSavings]]<>\"\",Table_SummaryPI[[#This Row],[kWhSavings]],0)","v":0},{"$f":"IF(Table_SummaryPI[[#This Row],[DemandSavingskW]]<>\"\",Table_SummaryPI[[#This Row],[DemandSavingskW]],0)","v":0}]
[{"$f":"Table_SummaryPI[[#This Row],[Line No.]]","v":""},{"$f":"IF(Table_PrintPI[[#This Row],[Line No.]]=\"\",\"\",CONCATENATE(Table_PrintPI[[#This Row],[Line No.]],\" - \",Table_SummaryPI[[#This Row],[MeasureName]]))","v":""},{"$f":"IF(Table_SummaryPI[[#This Row],[Manufacturer]]<>\"\",CONCATENATE(Table_SummaryPI[[#This Row],[Manufacturer]],\"/\",Table_SummaryPI[[#This Row],[Model'#]]),\"\")","v":""},{"$f":"IF(Table_SummaryPI[[#This Row],[Serial'#]]<>\"\",Table_SummaryPI[[#This Row],[Serial'#]],\"\")","v":""},{"$f":"IF(Table_SummaryPI[[#This Row],[Quantity]]<>\"\",Table_SummaryPI[[#This Row],[Quantity]],\"\")","v":""},{"$f":"IF(Table_SummaryPI[[#This Row],[BaselinekWh]]<>\"\",Table_SummaryPI[[#This Row],[BaselinekWh]],\"\")","v":""},{"$f":"IF(Table_SummaryPI[[#This Row],[BaselinekW]]<>\"\",Table_SummaryPI[[#This Row],[BaselinekW]],\"\")","v":""},{"$f":"IF(Table_SummaryPI[[#This Row],[ProposedkWh]]<>\"\",Table_SummaryPI[[#This Row],[ProposedkWh]],\"\")","v":""},{"$f":"IF(Table_SummaryPI[[#This Row],[ProposedkW]]<>\"\",Table_SummaryPI[[#This Row],[ProposedkW]],\"\")","v":""},{"$f":"IF(Table_SummaryPI[[#This Row],[Notes]]<>\"\",Table_SummaryPI[[#This Row],[Notes]],\"\")","v":""},{"$f":"IF(Table_SummaryPI[[#This Row],[Incentive_Customer]]<>\"\",Table_SummaryPI[[#This Row],[Incentive_Customer]],0)","v":0},{"$f":"IF(Table_SummaryPI[[#This Row],[MeasureCost]]<>\"\",Table_SummaryPI[[#This Row],[MeasureCost]],0)","v":0},{"$f":"IF(Table_SummaryPI[[#This Row],[kWhSavings]]<>\"\",Table_SummaryPI[[#This Row],[kWhSavings]],0)","v":0},{"$f":"IF(Table_SummaryPI[[#This Row],[DemandSavingskW]]<>\"\",Table_SummaryPI[[#This Row],[DemandSavingskW]],0)","v":0}]
[{"$f":"Table_SummaryPI[[#This Row],[Line No.]]","v":""},{"$f":"IF(Table_PrintPI[[#This Row],[Line No.]]=\"\",\"\",CONCATENATE(Table_PrintPI[[#This Row],[Line No.]],\" - \",Table_SummaryPI[[#This Row],[MeasureName]]))","v":""},{"$f":"IF(Table_SummaryPI[[#This Row],[Manufacturer]]<>\"\",CONCATENATE(Table_SummaryPI[[#This Row],[Manufacturer]],\"/\",Table_SummaryPI[[#This Row],[Model'#]]),\"\")","v":""},{"$f":"IF(Table_SummaryPI[[#This Row],[Serial'#]]<>\"\",Table_SummaryPI[[#This Row],[Serial'#]],\"\")","v":""},{"$f":"IF(Table_SummaryPI[[#This Row],[Quantity]]<>\"\",Table_SummaryPI[[#This Row],[Quantity]],\"\")","v":""},{"$f":"IF(Table_SummaryPI[[#This Row],[BaselinekWh]]<>\"\",Table_SummaryPI[[#This Row],[BaselinekWh]],\"\")","v":""},{"$f":"IF(Table_SummaryPI[[#This Row],[BaselinekW]]<>\"\",Table_SummaryPI[[#This Row],[BaselinekW]],\"\")","v":""},{"$f":"IF(Table_SummaryPI[[#This Row],[ProposedkWh]]<>\"\",Table_SummaryPI[[#This Row],[ProposedkWh]],\"\")","v":""},{"$f":"IF(Table_SummaryPI[[#This Row],[ProposedkW]]<>\"\",Table_SummaryPI[[#This Row],[ProposedkW]],\"\")","v":""},{"$f":"IF(Table_SummaryPI[[#This Row],[Notes]]<>\"\",Table_SummaryPI[[#This Row],[Notes]],\"\")","v":""},{"$f":"IF(Table_SummaryPI[[#This Row],[Incentive_Customer]]<>\"\",Table_SummaryPI[[#This Row],[Incentive_Customer]],0)","v":0},{"$f":"IF(Table_SummaryPI[[#This Row],[MeasureCost]]<>\"\",Table_SummaryPI[[#This Row],[MeasureCost]],0)","v":0},{"$f":"IF(Table_SummaryPI[[#This Row],[kWhSavings]]<>\"\",Table_SummaryPI[[#This Row],[kWhSavings]],0)","v":0},{"$f":"IF(Table_SummaryPI[[#This Row],[DemandSavingskW]]<>\"\",Table_SummaryPI[[#This Row],[DemandSavingskW]],0)","v":0}]
[{"$f":"Table_SummaryPI[[#This Row],[Line No.]]","v":""},{"$f":"IF(Table_PrintPI[[#This Row],[Line No.]]=\"\",\"\",CONCATENATE(Table_PrintPI[[#This Row],[Line No.]],\" - \",Table_SummaryPI[[#This Row],[MeasureName]]))","v":""},{"$f":"IF(Table_SummaryPI[[#This Row],[Manufacturer]]<>\"\",CONCATENATE(Table_SummaryPI[[#This Row],[Manufacturer]],\"/\",Table_SummaryPI[[#This Row],[Model'#]]),\"\")","v":""},{"$f":"IF(Table_SummaryPI[[#This Row],[Serial'#]]<>\"\",Table_SummaryPI[[#This Row],[Serial'#]],\"\")","v":""},{"$f":"IF(Table_SummaryPI[[#This Row],[Quantity]]<>\"\",Table_SummaryPI[[#This Row],[Quantity]],\"\")","v":""},{"$f":"IF(Table_SummaryPI[[#This Row],[BaselinekWh]]<>\"\",Table_SummaryPI[[#This Row],[BaselinekWh]],\"\")","v":""},{"$f":"IF(Table_SummaryPI[[#This Row],[BaselinekW]]<>\"\",Table_SummaryPI[[#This Row],[BaselinekW]],\"\")","v":""},{"$f":"IF(Table_SummaryPI[[#This Row],[ProposedkWh]]<>\"\",Table_SummaryPI[[#This Row],[ProposedkWh]],\"\")","v":""},{"$f":"IF(Table_SummaryPI[[#This Row],[ProposedkW]]<>\"\",Table_SummaryPI[[#This Row],[ProposedkW]],\"\")","v":""},{"$f":"IF(Table_SummaryPI[[#This Row],[Notes]]<>\"\",Table_SummaryPI[[#This Row],[Notes]],\"\")","v":""},{"$f":"IF(Table_SummaryPI[[#This Row],[Incentive_Customer]]<>\"\",Table_SummaryPI[[#This Row],[Incentive_Customer]],0)","v":0},{"$f":"IF(Table_SummaryPI[[#This Row],[MeasureCost]]<>\"\",Table_SummaryPI[[#This Row],[MeasureCost]],0)","v":0},{"$f":"IF(Table_SummaryPI[[#This Row],[kWhSavings]]<>\"\",Table_SummaryPI[[#This Row],[kWhSavings]],0)","v":0},{"$f":"IF(Table_SummaryPI[[#This Row],[DemandSavingskW]]<>\"\",Table_SummaryPI[[#This Row],[DemandSavingskW]],0)","v":0}]
[{"$f":"Table_SummaryPI[[#This Row],[Line No.]]","v":""},{"$f":"IF(Table_PrintPI[[#This Row],[Line No.]]=\"\",\"\",CONCATENATE(Table_PrintPI[[#This Row],[Line No.]],\" - \",Table_SummaryPI[[#This Row],[MeasureName]]))","v":""},{"$f":"IF(Table_SummaryPI[[#This Row],[Manufacturer]]<>\"\",CONCATENATE(Table_SummaryPI[[#This Row],[Manufacturer]],\"/\",Table_SummaryPI[[#This Row],[Model'#]]),\"\")","v":""},{"$f":"IF(Table_SummaryPI[[#This Row],[Serial'#]]<>\"\",Table_SummaryPI[[#This Row],[Serial'#]],\"\")","v":""},{"$f":"IF(Table_SummaryPI[[#This Row],[Quantity]]<>\"\",Table_SummaryPI[[#This Row],[Quantity]],\"\")","v":""},{"$f":"IF(Table_SummaryPI[[#This Row],[BaselinekWh]]<>\"\",Table_SummaryPI[[#This Row],[BaselinekWh]],\"\")","v":""},{"$f":"IF(Table_SummaryPI[[#This Row],[BaselinekW]]<>\"\",Table_SummaryPI[[#This Row],[BaselinekW]],\"\")","v":""},{"$f":"IF(Table_SummaryPI[[#This Row],[ProposedkWh]]<>\"\",Table_SummaryPI[[#This Row],[ProposedkWh]],\"\")","v":""},{"$f":"IF(Table_SummaryPI[[#This Row],[ProposedkW]]<>\"\",Table_SummaryPI[[#This Row],[ProposedkW]],\"\")","v":""},{"$f":"IF(Table_SummaryPI[[#This Row],[Notes]]<>\"\",Table_SummaryPI[[#This Row],[Notes]],\"\")","v":""},{"$f":"IF(Table_SummaryPI[[#This Row],[Incentive_Customer]]<>\"\",Table_SummaryPI[[#This Row],[Incentive_Customer]],0)","v":0},{"$f":"IF(Table_SummaryPI[[#This Row],[MeasureCost]]<>\"\",Table_SummaryPI[[#This Row],[MeasureCost]],0)","v":0},{"$f":"IF(Table_SummaryPI[[#This Row],[kWhSavings]]<>\"\",Table_SummaryPI[[#This Row],[kWhSavings]],0)","v":0},{"$f":"IF(Table_SummaryPI[[#This Row],[DemandSavingskW]]<>\"\",Table_SummaryPI[[#This Row],[DemandSavingskW]],0)","v":0}]
[{"$f":"Table_SummaryPI[[#This Row],[Line No.]]","v":""},{"$f":"IF(Table_PrintPI[[#This Row],[Line No.]]=\"\",\"\",CONCATENATE(Table_PrintPI[[#This Row],[Line No.]],\" - \",Table_SummaryPI[[#This Row],[MeasureName]]))","v":""},{"$f":"IF(Table_SummaryPI[[#This Row],[Manufacturer]]<>\"\",CONCATENATE(Table_SummaryPI[[#This Row],[Manufacturer]],\"/\",Table_SummaryPI[[#This Row],[Model'#]]),\"\")","v":""},{"$f":"IF(Table_SummaryPI[[#This Row],[Serial'#]]<>\"\",Table_SummaryPI[[#This Row],[Serial'#]],\"\")","v":""},{"$f":"IF(Table_SummaryPI[[#This Row],[Quantity]]<>\"\",Table_SummaryPI[[#This Row],[Quantity]],\"\")","v":""},{"$f":"IF(Table_SummaryPI[[#This Row],[BaselinekWh]]<>\"\",Table_SummaryPI[[#This Row],[BaselinekWh]],\"\")","v":""},{"$f":"IF(Table_SummaryPI[[#This Row],[BaselinekW]]<>\"\",Table_SummaryPI[[#This Row],[BaselinekW]],\"\")","v":""},{"$f":"IF(Table_SummaryPI[[#This Row],[ProposedkWh]]<>\"\",Table_SummaryPI[[#This Row],[ProposedkWh]],\"\")","v":""},{"$f":"IF(Table_SummaryPI[[#This Row],[ProposedkW]]<>\"\",Table_SummaryPI[[#This Row],[ProposedkW]],\"\")","v":""},{"$f":"IF(Table_SummaryPI[[#This Row],[Notes]]<>\"\",Table_SummaryPI[[#This Row],[Notes]],\"\")","v":""},{"$f":"IF(Table_SummaryPI[[#This Row],[Incentive_Customer]]<>\"\",Table_SummaryPI[[#This Row],[Incentive_Customer]],0)","v":0},{"$f":"IF(Table_SummaryPI[[#This Row],[MeasureCost]]<>\"\",Table_SummaryPI[[#This Row],[MeasureCost]],0)","v":0},{"$f":"IF(Table_SummaryPI[[#This Row],[kWhSavings]]<>\"\",Table_SummaryPI[[#This Row],[kWhSavings]],0)","v":0},{"$f":"IF(Table_SummaryPI[[#This Row],[DemandSavingskW]]<>\"\",Table_SummaryPI[[#This Row],[DemandSavingskW]],0)","v":0}]
[{"$f":"Table_SummaryPI[[#This Row],[Line No.]]","v":""},{"$f":"IF(Table_PrintPI[[#This Row],[Line No.]]=\"\",\"\",CONCATENATE(Table_PrintPI[[#This Row],[Line No.]],\" - \",Table_SummaryPI[[#This Row],[MeasureName]]))","v":""},{"$f":"IF(Table_SummaryPI[[#This Row],[Manufacturer]]<>\"\",CONCATENATE(Table_SummaryPI[[#This Row],[Manufacturer]],\"/\",Table_SummaryPI[[#This Row],[Model'#]]),\"\")","v":""},{"$f":"IF(Table_SummaryPI[[#This Row],[Serial'#]]<>\"\",Table_SummaryPI[[#This Row],[Serial'#]],\"\")","v":""},{"$f":"IF(Table_SummaryPI[[#This Row],[Quantity]]<>\"\",Table_SummaryPI[[#This Row],[Quantity]],\"\")","v":""},{"$f":"IF(Table_SummaryPI[[#This Row],[BaselinekWh]]<>\"\",Table_SummaryPI[[#This Row],[BaselinekWh]],\"\")","v":""},{"$f":"IF(Table_SummaryPI[[#This Row],[BaselinekW]]<>\"\",Table_SummaryPI[[#This Row],[BaselinekW]],\"\")","v":""},{"$f":"IF(Table_SummaryPI[[#This Row],[ProposedkWh]]<>\"\",Table_SummaryPI[[#This Row],[ProposedkWh]],\"\")","v":""},{"$f":"IF(Table_SummaryPI[[#This Row],[ProposedkW]]<>\"\",Table_SummaryPI[[#This Row],[ProposedkW]],\"\")","v":""},{"$f":"IF(Table_SummaryPI[[#This Row],[Notes]]<>\"\",Table_SummaryPI[[#This Row],[Notes]],\"\")","v":""},{"$f":"IF(Table_SummaryPI[[#This Row],[Incentive_Customer]]<>\"\",Table_SummaryPI[[#This Row],[Incentive_Customer]],0)","v":0},{"$f":"IF(Table_SummaryPI[[#This Row],[MeasureCost]]<>\"\",Table_SummaryPI[[#This Row],[MeasureCost]],0)","v":0},{"$f":"IF(Table_SummaryPI[[#This Row],[kWhSavings]]<>\"\",Table_SummaryPI[[#This Row],[kWhSavings]],0)","v":0},{"$f":"IF(Table_SummaryPI[[#This Row],[DemandSavingskW]]<>\"\",Table_SummaryPI[[#This Row],[DemandSavingskW]],0)","v":0}]
[{"$f":"Table_SummaryPI[[#This Row],[Line No.]]","v":""},{"$f":"IF(Table_PrintPI[[#This Row],[Line No.]]=\"\",\"\",CONCATENATE(Table_PrintPI[[#This Row],[Line No.]],\" - \",Table_SummaryPI[[#This Row],[MeasureName]]))","v":""},{"$f":"IF(Table_SummaryPI[[#This Row],[Manufacturer]]<>\"\",CONCATENATE(Table_SummaryPI[[#This Row],[Manufacturer]],\"/\",Table_SummaryPI[[#This Row],[Model'#]]),\"\")","v":""},{"$f":"IF(Table_SummaryPI[[#This Row],[Serial'#]]<>\"\",Table_SummaryPI[[#This Row],[Serial'#]],\"\")","v":""},{"$f":"IF(Table_SummaryPI[[#This Row],[Quantity]]<>\"\",Table_SummaryPI[[#This Row],[Quantity]],\"\")","v":""},{"$f":"IF(Table_SummaryPI[[#This Row],[BaselinekWh]]<>\"\",Table_SummaryPI[[#This Row],[BaselinekWh]],\"\")","v":""},{"$f":"IF(Table_SummaryPI[[#This Row],[BaselinekW]]<>\"\",Table_SummaryPI[[#This Row],[BaselinekW]],\"\")","v":""},{"$f":"IF(Table_SummaryPI[[#This Row],[ProposedkWh]]<>\"\",Table_SummaryPI[[#This Row],[ProposedkWh]],\"\")","v":""},{"$f":"IF(Table_SummaryPI[[#This Row],[ProposedkW]]<>\"\",Table_SummaryPI[[#This Row],[ProposedkW]],\"\")","v":""},{"$f":"IF(Table_SummaryPI[[#This Row],[Notes]]<>\"\",Table_SummaryPI[[#This Row],[Notes]],\"\")","v":""},{"$f":"IF(Table_SummaryPI[[#This Row],[Incentive_Customer]]<>\"\",Table_SummaryPI[[#This Row],[Incentive_Customer]],0)","v":0},{"$f":"IF(Table_SummaryPI[[#This Row],[MeasureCost]]<>\"\",Table_SummaryPI[[#This Row],[MeasureCost]],0)","v":0},{"$f":"IF(Table_SummaryPI[[#This Row],[kWhSavings]]<>\"\",Table_SummaryPI[[#This Row],[kWhSavings]],0)","v":0},{"$f":"IF(Table_SummaryPI[[#This Row],[DemandSavingskW]]<>\"\",Table_SummaryPI[[#This Row],[DemandSavingskW]],0)","v":0}]
[{"$f":"Table_SummaryPI[[#This Row],[Line No.]]","v":""},{"$f":"IF(Table_PrintPI[[#This Row],[Line No.]]=\"\",\"\",CONCATENATE(Table_PrintPI[[#This Row],[Line No.]],\" - \",Table_SummaryPI[[#This Row],[MeasureName]]))","v":""},{"$f":"IF(Table_SummaryPI[[#This Row],[Manufacturer]]<>\"\",CONCATENATE(Table_SummaryPI[[#This Row],[Manufacturer]],\"/\",Table_SummaryPI[[#This Row],[Model'#]]),\"\")","v":""},{"$f":"IF(Table_SummaryPI[[#This Row],[Serial'#]]<>\"\",Table_SummaryPI[[#This Row],[Serial'#]],\"\")","v":""},{"$f":"IF(Table_SummaryPI[[#This Row],[Quantity]]<>\"\",Table_SummaryPI[[#This Row],[Quantity]],\"\")","v":""},{"$f":"IF(Table_SummaryPI[[#This Row],[BaselinekWh]]<>\"\",Table_SummaryPI[[#This Row],[BaselinekWh]],\"\")","v":""},{"$f":"IF(Table_SummaryPI[[#This Row],[BaselinekW]]<>\"\",Table_SummaryPI[[#This Row],[BaselinekW]],\"\")","v":""},{"$f":"IF(Table_SummaryPI[[#This Row],[ProposedkWh]]<>\"\",Table_SummaryPI[[#This Row],[ProposedkWh]],\"\")","v":""},{"$f":"IF(Table_SummaryPI[[#This Row],[ProposedkW]]<>\"\",Table_SummaryPI[[#This Row],[ProposedkW]],\"\")","v":""},{"$f":"IF(Table_SummaryPI[[#This Row],[Notes]]<>\"\",Table_SummaryPI[[#This Row],[Notes]],\"\")","v":""},{"$f":"IF(Table_SummaryPI[[#This Row],[Incentive_Customer]]<>\"\",Table_SummaryPI[[#This Row],[Incentive_Customer]],0)","v":0},{"$f":"IF(Table_SummaryPI[[#This Row],[MeasureCost]]<>\"\",Table_SummaryPI[[#This Row],[MeasureCost]],0)","v":0},{"$f":"IF(Table_SummaryPI[[#This Row],[kWhSavings]]<>\"\",Table_SummaryPI[[#This Row],[kWhSavings]],0)","v":0},{"$f":"IF(Table_SummaryPI[[#This Row],[DemandSavingskW]]<>\"\",Table_SummaryPI[[#This Row],[DemandSavingskW]],0)","v":0}]
[{"$f":"Table_SummaryPI[[#This Row],[Line No.]]","v":""},{"$f":"IF(Table_PrintPI[[#This Row],[Line No.]]=\"\",\"\",CONCATENATE(Table_PrintPI[[#This Row],[Line No.]],\" - \",Table_SummaryPI[[#This Row],[MeasureName]]))","v":""},{"$f":"IF(Table_SummaryPI[[#This Row],[Manufacturer]]<>\"\",CONCATENATE(Table_SummaryPI[[#This Row],[Manufacturer]],\"/\",Table_SummaryPI[[#This Row],[Model'#]]),\"\")","v":""},{"$f":"IF(Table_SummaryPI[[#This Row],[Serial'#]]<>\"\",Table_SummaryPI[[#This Row],[Serial'#]],\"\")","v":""},{"$f":"IF(Table_SummaryPI[[#This Row],[Quantity]]<>\"\",Table_SummaryPI[[#This Row],[Quantity]],\"\")","v":""},{"$f":"IF(Table_SummaryPI[[#This Row],[BaselinekWh]]<>\"\",Table_SummaryPI[[#This Row],[BaselinekWh]],\"\")","v":""},{"$f":"IF(Table_SummaryPI[[#This Row],[BaselinekW]]<>\"\",Table_SummaryPI[[#This Row],[BaselinekW]],\"\")","v":""},{"$f":"IF(Table_SummaryPI[[#This Row],[ProposedkWh]]<>\"\",Table_SummaryPI[[#This Row],[ProposedkWh]],\"\")","v":""},{"$f":"IF(Table_SummaryPI[[#This Row],[ProposedkW]]<>\"\",Table_SummaryPI[[#This Row],[ProposedkW]],\"\")","v":""},{"$f":"IF(Table_SummaryPI[[#This Row],[Notes]]<>\"\",Table_SummaryPI[[#This Row],[Notes]],\"\")","v":""},{"$f":"IF(Table_SummaryPI[[#This Row],[Incentive_Customer]]<>\"\",Table_SummaryPI[[#This Row],[Incentive_Customer]],0)","v":0},{"$f":"IF(Table_SummaryPI[[#This Row],[MeasureCost]]<>\"\",Table_SummaryPI[[#This Row],[MeasureCost]],0)","v":0},{"$f":"IF(Table_SummaryPI[[#This Row],[kWhSavings]]<>\"\",Table_SummaryPI[[#This Row],[kWhSavings]],0)","v":0},{"$f":"IF(Table_SummaryPI[[#This Row],[DemandSavingskW]]<>\"\",Table_SummaryPI[[#This Row],[DemandSavingskW]],0)","v":0}]
[{"$f":"Table_SummaryPI[[#This Row],[Line No.]]","v":""},{"$f":"IF(Table_PrintPI[[#This Row],[Line No.]]=\"\",\"\",CONCATENATE(Table_PrintPI[[#This Row],[Line No.]],\" - \",Table_SummaryPI[[#This Row],[MeasureName]]))","v":""},{"$f":"IF(Table_SummaryPI[[#This Row],[Manufacturer]]<>\"\",CONCATENATE(Table_SummaryPI[[#This Row],[Manufacturer]],\"/\",Table_SummaryPI[[#This Row],[Model'#]]),\"\")","v":""},{"$f":"IF(Table_SummaryPI[[#This Row],[Serial'#]]<>\"\",Table_SummaryPI[[#This Row],[Serial'#]],\"\")","v":""},{"$f":"IF(Table_SummaryPI[[#This Row],[Quantity]]<>\"\",Table_SummaryPI[[#This Row],[Quantity]],\"\")","v":""},{"$f":"IF(Table_SummaryPI[[#This Row],[BaselinekWh]]<>\"\",Table_SummaryPI[[#This Row],[BaselinekWh]],\"\")","v":""},{"$f":"IF(Table_SummaryPI[[#This Row],[BaselinekW]]<>\"\",Table_SummaryPI[[#This Row],[BaselinekW]],\"\")","v":""},{"$f":"IF(Table_SummaryPI[[#This Row],[ProposedkWh]]<>\"\",Table_SummaryPI[[#This Row],[ProposedkWh]],\"\")","v":""},{"$f":"IF(Table_SummaryPI[[#This Row],[ProposedkW]]<>\"\",Table_SummaryPI[[#This Row],[ProposedkW]],\"\")","v":""},{"$f":"IF(Table_SummaryPI[[#This Row],[Notes]]<>\"\",Table_SummaryPI[[#This Row],[Notes]],\"\")","v":""},{"$f":"IF(Table_SummaryPI[[#This Row],[Incentive_Customer]]<>\"\",Table_SummaryPI[[#This Row],[Incentive_Customer]],0)","v":0},{"$f":"IF(Table_SummaryPI[[#This Row],[MeasureCost]]<>\"\",Table_SummaryPI[[#This Row],[MeasureCost]],0)","v":0},{"$f":"IF(Table_SummaryPI[[#This Row],[kWhSavings]]<>\"\",Table_SummaryPI[[#This Row],[kWhSavings]],0)","v":0},{"$f":"IF(Table_SummaryPI[[#This Row],[DemandSavingskW]]<>\"\",Table_SummaryPI[[#This Row],[DemandSavingskW]],0)","v":0}]
[{"$f":"Table_SummaryPI[[#This Row],[Line No.]]","v":""},{"$f":"IF(Table_PrintPI[[#This Row],[Line No.]]=\"\",\"\",CONCATENATE(Table_PrintPI[[#This Row],[Line No.]],\" - \",Table_SummaryPI[[#This Row],[MeasureName]]))","v":""},{"$f":"IF(Table_SummaryPI[[#This Row],[Manufacturer]]<>\"\",CONCATENATE(Table_SummaryPI[[#This Row],[Manufacturer]],\"/\",Table_SummaryPI[[#This Row],[Model'#]]),\"\")","v":""},{"$f":"IF(Table_SummaryPI[[#This Row],[Serial'#]]<>\"\",Table_SummaryPI[[#This Row],[Serial'#]],\"\")","v":""},{"$f":"IF(Table_SummaryPI[[#This Row],[Quantity]]<>\"\",Table_SummaryPI[[#This Row],[Quantity]],\"\")","v":""},{"$f":"IF(Table_SummaryPI[[#This Row],[BaselinekWh]]<>\"\",Table_SummaryPI[[#This Row],[BaselinekWh]],\"\")","v":""},{"$f":"IF(Table_SummaryPI[[#This Row],[BaselinekW]]<>\"\",Table_SummaryPI[[#This Row],[BaselinekW]],\"\")","v":""},{"$f":"IF(Table_SummaryPI[[#This Row],[ProposedkWh]]<>\"\",Table_SummaryPI[[#This Row],[ProposedkWh]],\"\")","v":""},{"$f":"IF(Table_SummaryPI[[#This Row],[ProposedkW]]<>\"\",Table_SummaryPI[[#This Row],[ProposedkW]],\"\")","v":""},{"$f":"IF(Table_SummaryPI[[#This Row],[Notes]]<>\"\",Table_SummaryPI[[#This Row],[Notes]],\"\")","v":""},{"$f":"IF(Table_SummaryPI[[#This Row],[Incentive_Customer]]<>\"\",Table_SummaryPI[[#This Row],[Incentive_Customer]],0)","v":0},{"$f":"IF(Table_SummaryPI[[#This Row],[MeasureCost]]<>\"\",Table_SummaryPI[[#This Row],[MeasureCost]],0)","v":0},{"$f":"IF(Table_SummaryPI[[#This Row],[kWhSavings]]<>\"\",Table_SummaryPI[[#This Row],[kWhSavings]],0)","v":0},{"$f":"IF(Table_SummaryPI[[#This Row],[DemandSavingskW]]<>\"\",Table_SummaryPI[[#This Row],[DemandSavingskW]],0)","v":0}]
[{"$f":"Table_SummaryPI[[#This Row],[Line No.]]","v":""},{"$f":"IF(Table_PrintPI[[#This Row],[Line No.]]=\"\",\"\",CONCATENATE(Table_PrintPI[[#This Row],[Line No.]],\" - \",Table_SummaryPI[[#This Row],[MeasureName]]))","v":""},{"$f":"IF(Table_SummaryPI[[#This Row],[Manufacturer]]<>\"\",CONCATENATE(Table_SummaryPI[[#This Row],[Manufacturer]],\"/\",Table_SummaryPI[[#This Row],[Model'#]]),\"\")","v":""},{"$f":"IF(Table_SummaryPI[[#This Row],[Serial'#]]<>\"\",Table_SummaryPI[[#This Row],[Serial'#]],\"\")","v":""},{"$f":"IF(Table_SummaryPI[[#This Row],[Quantity]]<>\"\",Table_SummaryPI[[#This Row],[Quantity]],\"\")","v":""},{"$f":"IF(Table_SummaryPI[[#This Row],[BaselinekWh]]<>\"\",Table_SummaryPI[[#This Row],[BaselinekWh]],\"\")","v":""},{"$f":"IF(Table_SummaryPI[[#This Row],[BaselinekW]]<>\"\",Table_SummaryPI[[#This Row],[BaselinekW]],\"\")","v":""},{"$f":"IF(Table_SummaryPI[[#This Row],[ProposedkWh]]<>\"\",Table_SummaryPI[[#This Row],[ProposedkWh]],\"\")","v":""},{"$f":"IF(Table_SummaryPI[[#This Row],[ProposedkW]]<>\"\",Table_SummaryPI[[#This Row],[ProposedkW]],\"\")","v":""},{"$f":"IF(Table_SummaryPI[[#This Row],[Notes]]<>\"\",Table_SummaryPI[[#This Row],[Notes]],\"\")","v":""},{"$f":"IF(Table_SummaryPI[[#This Row],[Incentive_Customer]]<>\"\",Table_SummaryPI[[#This Row],[Incentive_Customer]],0)","v":0},{"$f":"IF(Table_SummaryPI[[#This Row],[MeasureCost]]<>\"\",Table_SummaryPI[[#This Row],[MeasureCost]],0)","v":0},{"$f":"IF(Table_SummaryPI[[#This Row],[kWhSavings]]<>\"\",Table_SummaryPI[[#This Row],[kWhSavings]],0)","v":0},{"$f":"IF(Table_SummaryPI[[#This Row],[DemandSavingskW]]<>\"\",Table_SummaryPI[[#This Row],[DemandSavingskW]],0)","v":0}]
[{"$f":"Table_SummaryPI[[#This Row],[Line No.]]","v":""},{"$f":"IF(Table_PrintPI[[#This Row],[Line No.]]=\"\",\"\",CONCATENATE(Table_PrintPI[[#This Row],[Line No.]],\" - \",Table_SummaryPI[[#This Row],[MeasureName]]))","v":""},{"$f":"IF(Table_SummaryPI[[#This Row],[Manufacturer]]<>\"\",CONCATENATE(Table_SummaryPI[[#This Row],[Manufacturer]],\"/\",Table_SummaryPI[[#This Row],[Model'#]]),\"\")","v":""},{"$f":"IF(Table_SummaryPI[[#This Row],[Serial'#]]<>\"\",Table_SummaryPI[[#This Row],[Serial'#]],\"\")","v":""},{"$f":"IF(Table_SummaryPI[[#This Row],[Quantity]]<>\"\",Table_SummaryPI[[#This Row],[Quantity]],\"\")","v":""},{"$f":"IF(Table_SummaryPI[[#This Row],[BaselinekWh]]<>\"\",Table_SummaryPI[[#This Row],[BaselinekWh]],\"\")","v":""},{"$f":"IF(Table_SummaryPI[[#This Row],[BaselinekW]]<>\"\",Table_SummaryPI[[#This Row],[BaselinekW]],\"\")","v":""},{"$f":"IF(Table_SummaryPI[[#This Row],[ProposedkWh]]<>\"\",Table_SummaryPI[[#This Row],[ProposedkWh]],\"\")","v":""},{"$f":"IF(Table_SummaryPI[[#This Row],[ProposedkW]]<>\"\",Table_SummaryPI[[#This Row],[ProposedkW]],\"\")","v":""},{"$f":"IF(Table_SummaryPI[[#This Row],[Notes]]<>\"\",Table_SummaryPI[[#This Row],[Notes]],\"\")","v":""},{"$f":"IF(Table_SummaryPI[[#This Row],[Incentive_Customer]]<>\"\",Table_SummaryPI[[#This Row],[Incentive_Customer]],0)","v":0},{"$f":"IF(Table_SummaryPI[[#This Row],[MeasureCost]]<>\"\",Table_SummaryPI[[#This Row],[MeasureCost]],0)","v":0},{"$f":"IF(Table_SummaryPI[[#This Row],[kWhSavings]]<>\"\",Table_SummaryPI[[#This Row],[kWhSavings]],0)","v":0},{"$f":"IF(Table_SummaryPI[[#This Row],[DemandSavingskW]]<>\"\",Table_SummaryPI[[#This Row],[DemandSavingskW]],0)","v":0}]
[{"$f":"Table_SummaryPI[[#This Row],[Line No.]]","v":""},{"$f":"IF(Table_PrintPI[[#This Row],[Line No.]]=\"\",\"\",CONCATENATE(Table_PrintPI[[#This Row],[Line No.]],\" - \",Table_SummaryPI[[#This Row],[MeasureName]]))","v":""},{"$f":"IF(Table_SummaryPI[[#This Row],[Manufacturer]]<>\"\",CONCATENATE(Table_SummaryPI[[#This Row],[Manufacturer]],\"/\",Table_SummaryPI[[#This Row],[Model'#]]),\"\")","v":""},{"$f":"IF(Table_SummaryPI[[#This Row],[Serial'#]]<>\"\",Table_SummaryPI[[#This Row],[Serial'#]],\"\")","v":""},{"$f":"IF(Table_SummaryPI[[#This Row],[Quantity]]<>\"\",Table_SummaryPI[[#This Row],[Quantity]],\"\")","v":""},{"$f":"IF(Table_SummaryPI[[#This Row],[BaselinekWh]]<>\"\",Table_SummaryPI[[#This Row],[BaselinekWh]],\"\")","v":""},{"$f":"IF(Table_SummaryPI[[#This Row],[BaselinekW]]<>\"\",Table_SummaryPI[[#This Row],[BaselinekW]],\"\")","v":""},{"$f":"IF(Table_SummaryPI[[#This Row],[ProposedkWh]]<>\"\",Table_SummaryPI[[#This Row],[ProposedkWh]],\"\")","v":""},{"$f":"IF(Table_SummaryPI[[#This Row],[ProposedkW]]<>\"\",Table_SummaryPI[[#This Row],[ProposedkW]],\"\")","v":""},{"$f":"IF(Table_SummaryPI[[#This Row],[Notes]]<>\"\",Table_SummaryPI[[#This Row],[Notes]],\"\")","v":""},{"$f":"IF(Table_SummaryPI[[#This Row],[Incentive_Customer]]<>\"\",Table_SummaryPI[[#This Row],[Incentive_Customer]],0)","v":0},{"$f":"IF(Table_SummaryPI[[#This Row],[MeasureCost]]<>\"\",Table_SummaryPI[[#This Row],[MeasureCost]],0)","v":0},{"$f":"IF(Table_SummaryPI[[#This Row],[kWhSavings]]<>\"\",Table_SummaryPI[[#This Row],[kWhSavings]],0)","v":0},{"$f":"IF(Table_SummaryPI[[#This Row],[DemandSavingskW]]<>\"\",Table_SummaryPI[[#This Row],[DemandSavingskW]],0)","v":0}]
[{"$f":"Table_SummaryPI[[#This Row],[Line No.]]","v":""},{"$f":"IF(Table_PrintPI[[#This Row],[Line No.]]=\"\",\"\",CONCATENATE(Table_PrintPI[[#This Row],[Line No.]],\" - \",Table_SummaryPI[[#This Row],[MeasureName]]))","v":""},{"$f":"IF(Table_SummaryPI[[#This Row],[Manufacturer]]<>\"\",CONCATENATE(Table_SummaryPI[[#This Row],[Manufacturer]],\"/\",Table_SummaryPI[[#This Row],[Model'#]]),\"\")","v":""},{"$f":"IF(Table_SummaryPI[[#This Row],[Serial'#]]<>\"\",Table_SummaryPI[[#This Row],[Serial'#]],\"\")","v":""},{"$f":"IF(Table_SummaryPI[[#This Row],[Quantity]]<>\"\",Table_SummaryPI[[#This Row],[Quantity]],\"\")","v":""},{"$f":"IF(Table_SummaryPI[[#This Row],[BaselinekWh]]<>\"\",Table_SummaryPI[[#This Row],[BaselinekWh]],\"\")","v":""},{"$f":"IF(Table_SummaryPI[[#This Row],[BaselinekW]]<>\"\",Table_SummaryPI[[#This Row],[BaselinekW]],\"\")","v":""},{"$f":"IF(Table_SummaryPI[[#This Row],[ProposedkWh]]<>\"\",Table_SummaryPI[[#This Row],[ProposedkWh]],\"\")","v":""},{"$f":"IF(Table_SummaryPI[[#This Row],[ProposedkW]]<>\"\",Table_SummaryPI[[#This Row],[ProposedkW]],\"\")","v":""},{"$f":"IF(Table_SummaryPI[[#This Row],[Notes]]<>\"\",Table_SummaryPI[[#This Row],[Notes]],\"\")","v":""},{"$f":"IF(Table_SummaryPI[[#This Row],[Incentive_Customer]]<>\"\",Table_SummaryPI[[#This Row],[Incentive_Customer]],0)","v":0},{"$f":"IF(Table_SummaryPI[[#This Row],[MeasureCost]]<>\"\",Table_SummaryPI[[#This Row],[MeasureCost]],0)","v":0},{"$f":"IF(Table_SummaryPI[[#This Row],[kWhSavings]]<>\"\",Table_SummaryPI[[#This Row],[kWhSavings]],0)","v":0},{"$f":"IF(Table_SummaryPI[[#This Row],[DemandSavingskW]]<>\"\",Table_SummaryPI[[#This Row],[DemandSavingskW]],0)","v":0}]
[{"$f":"Table_SummaryPI[[#This Row],[Line No.]]","v":""},{"$f":"IF(Table_PrintPI[[#This Row],[Line No.]]=\"\",\"\",CONCATENATE(Table_PrintPI[[#This Row],[Line No.]],\" - \",Table_SummaryPI[[#This Row],[MeasureName]]))","v":""},{"$f":"IF(Table_SummaryPI[[#This Row],[Manufacturer]]<>\"\",CONCATENATE(Table_SummaryPI[[#This Row],[Manufacturer]],\"/\",Table_SummaryPI[[#This Row],[Model'#]]),\"\")","v":""},{"$f":"IF(Table_SummaryPI[[#This Row],[Serial'#]]<>\"\",Table_SummaryPI[[#This Row],[Serial'#]],\"\")","v":""},{"$f":"IF(Table_SummaryPI[[#This Row],[Quantity]]<>\"\",Table_SummaryPI[[#This Row],[Quantity]],\"\")","v":""},{"$f":"IF(Table_SummaryPI[[#This Row],[BaselinekWh]]<>\"\",Table_SummaryPI[[#This Row],[BaselinekWh]],\"\")","v":""},{"$f":"IF(Table_SummaryPI[[#This Row],[BaselinekW]]<>\"\",Table_SummaryPI[[#This Row],[BaselinekW]],\"\")","v":""},{"$f":"IF(Table_SummaryPI[[#This Row],[ProposedkWh]]<>\"\",Table_SummaryPI[[#This Row],[ProposedkWh]],\"\")","v":""},{"$f":"IF(Table_SummaryPI[[#This Row],[ProposedkW]]<>\"\",Table_SummaryPI[[#This Row],[ProposedkW]],\"\")","v":""},{"$f":"IF(Table_SummaryPI[[#This Row],[Notes]]<>\"\",Table_SummaryPI[[#This Row],[Notes]],\"\")","v":""},{"$f":"IF(Table_SummaryPI[[#This Row],[Incentive_Customer]]<>\"\",Table_SummaryPI[[#This Row],[Incentive_Customer]],0)","v":0},{"$f":"IF(Table_SummaryPI[[#This Row],[MeasureCost]]<>\"\",Table_SummaryPI[[#This Row],[MeasureCost]],0)","v":0},{"$f":"IF(Table_SummaryPI[[#This Row],[kWhSavings]]<>\"\",Table_SummaryPI[[#This Row],[kWhSavings]],0)","v":0},{"$f":"IF(Table_SummaryPI[[#This Row],[DemandSavingskW]]<>\"\",Table_SummaryPI[[#This Row],[DemandSavingskW]],0)","v":0}]
[{"$f":"Table_SummaryPI[[#This Row],[Line No.]]","v":""},{"$f":"IF(Table_PrintPI[[#This Row],[Line No.]]=\"\",\"\",CONCATENATE(Table_PrintPI[[#This Row],[Line No.]],\" - \",Table_SummaryPI[[#This Row],[MeasureName]]))","v":""},{"$f":"IF(Table_SummaryPI[[#This Row],[Manufacturer]]<>\"\",CONCATENATE(Table_SummaryPI[[#This Row],[Manufacturer]],\"/\",Table_SummaryPI[[#This Row],[Model'#]]),\"\")","v":""},{"$f":"IF(Table_SummaryPI[[#This Row],[Serial'#]]<>\"\",Table_SummaryPI[[#This Row],[Serial'#]],\"\")","v":""},{"$f":"IF(Table_SummaryPI[[#This Row],[Quantity]]<>\"\",Table_SummaryPI[[#This Row],[Quantity]],\"\")","v":""},{"$f":"IF(Table_SummaryPI[[#This Row],[BaselinekWh]]<>\"\",Table_SummaryPI[[#This Row],[BaselinekWh]],\"\")","v":""},{"$f":"IF(Table_SummaryPI[[#This Row],[BaselinekW]]<>\"\",Table_SummaryPI[[#This Row],[BaselinekW]],\"\")","v":""},{"$f":"IF(Table_SummaryPI[[#This Row],[ProposedkWh]]<>\"\",Table_SummaryPI[[#This Row],[ProposedkWh]],\"\")","v":""},{"$f":"IF(Table_SummaryPI[[#This Row],[ProposedkW]]<>\"\",Table_SummaryPI[[#This Row],[ProposedkW]],\"\")","v":""},{"$f":"IF(Table_SummaryPI[[#This Row],[Notes]]<>\"\",Table_SummaryPI[[#This Row],[Notes]],\"\")","v":""},{"$f":"IF(Table_SummaryPI[[#This Row],[Incentive_Customer]]<>\"\",Table_SummaryPI[[#This Row],[Incentive_Customer]],0)","v":0},{"$f":"IF(Table_SummaryPI[[#This Row],[MeasureCost]]<>\"\",Table_SummaryPI[[#This Row],[MeasureCost]],0)","v":0},{"$f":"IF(Table_SummaryPI[[#This Row],[kWhSavings]]<>\"\",Table_SummaryPI[[#This Row],[kWhSavings]],0)","v":0},{"$f":"IF(Table_SummaryPI[[#This Row],[DemandSavingskW]]<>\"\",Table_SummaryPI[[#This Row],[DemandSavingskW]],0)","v":0}]
[{"$f":"Table_SummaryPI[[#This Row],[Line No.]]","v":""},{"$f":"IF(Table_PrintPI[[#This Row],[Line No.]]=\"\",\"\",CONCATENATE(Table_PrintPI[[#This Row],[Line No.]],\" - \",Table_SummaryPI[[#This Row],[MeasureName]]))","v":""},{"$f":"IF(Table_SummaryPI[[#This Row],[Manufacturer]]<>\"\",CONCATENATE(Table_SummaryPI[[#This Row],[Manufacturer]],\"/\",Table_SummaryPI[[#This Row],[Model'#]]),\"\")","v":""},{"$f":"IF(Table_SummaryPI[[#This Row],[Serial'#]]<>\"\",Table_SummaryPI[[#This Row],[Serial'#]],\"\")","v":""},{"$f":"IF(Table_SummaryPI[[#This Row],[Quantity]]<>\"\",Table_SummaryPI[[#This Row],[Quantity]],\"\")","v":""},{"$f":"IF(Table_SummaryPI[[#This Row],[BaselinekWh]]<>\"\",Table_SummaryPI[[#This Row],[BaselinekWh]],\"\")","v":""},{"$f":"IF(Table_SummaryPI[[#This Row],[BaselinekW]]<>\"\",Table_SummaryPI[[#This Row],[BaselinekW]],\"\")","v":""},{"$f":"IF(Table_SummaryPI[[#This Row],[ProposedkWh]]<>\"\",Table_SummaryPI[[#This Row],[ProposedkWh]],\"\")","v":""},{"$f":"IF(Table_SummaryPI[[#This Row],[ProposedkW]]<>\"\",Table_SummaryPI[[#This Row],[ProposedkW]],\"\")","v":""},{"$f":"IF(Table_SummaryPI[[#This Row],[Notes]]<>\"\",Table_SummaryPI[[#This Row],[Notes]],\"\")","v":""},{"$f":"IF(Table_SummaryPI[[#This Row],[Incentive_Customer]]<>\"\",Table_SummaryPI[[#This Row],[Incentive_Customer]],0)","v":0},{"$f":"IF(Table_SummaryPI[[#This Row],[MeasureCost]]<>\"\",Table_SummaryPI[[#This Row],[MeasureCost]],0)","v":0},{"$f":"IF(Table_SummaryPI[[#This Row],[kWhSavings]]<>\"\",Table_SummaryPI[[#This Row],[kWhSavings]],0)","v":0},{"$f":"IF(Table_SummaryPI[[#This Row],[DemandSavingskW]]<>\"\",Table_SummaryPI[[#This Row],[DemandSavingskW]],0)","v":0}]
[{"$f":"Table_SummaryPI[[#This Row],[Line No.]]","v":""},{"$f":"IF(Table_PrintPI[[#This Row],[Line No.]]=\"\",\"\",CONCATENATE(Table_PrintPI[[#This Row],[Line No.]],\" - \",Table_SummaryPI[[#This Row],[MeasureName]]))","v":""},{"$f":"IF(Table_SummaryPI[[#This Row],[Manufacturer]]<>\"\",CONCATENATE(Table_SummaryPI[[#This Row],[Manufacturer]],\"/\",Table_SummaryPI[[#This Row],[Model'#]]),\"\")","v":""},{"$f":"IF(Table_SummaryPI[[#This Row],[Serial'#]]<>\"\",Table_SummaryPI[[#This Row],[Serial'#]],\"\")","v":""},{"$f":"IF(Table_SummaryPI[[#This Row],[Quantity]]<>\"\",Table_SummaryPI[[#This Row],[Quantity]],\"\")","v":""},{"$f":"IF(Table_SummaryPI[[#This Row],[BaselinekWh]]<>\"\",Table_SummaryPI[[#This Row],[BaselinekWh]],\"\")","v":""},{"$f":"IF(Table_SummaryPI[[#This Row],[BaselinekW]]<>\"\",Table_SummaryPI[[#This Row],[BaselinekW]],\"\")","v":""},{"$f":"IF(Table_SummaryPI[[#This Row],[ProposedkWh]]<>\"\",Table_SummaryPI[[#This Row],[ProposedkWh]],\"\")","v":""},{"$f":"IF(Table_SummaryPI[[#This Row],[ProposedkW]]<>\"\",Table_SummaryPI[[#This Row],[ProposedkW]],\"\")","v":""},{"$f":"IF(Table_SummaryPI[[#This Row],[Notes]]<>\"\",Table_SummaryPI[[#This Row],[Notes]],\"\")","v":""},{"$f":"IF(Table_SummaryPI[[#This Row],[Incentive_Customer]]<>\"\",Table_SummaryPI[[#This Row],[Incentive_Customer]],0)","v":0},{"$f":"IF(Table_SummaryPI[[#This Row],[MeasureCost]]<>\"\",Table_SummaryPI[[#This Row],[MeasureCost]],0)","v":0},{"$f":"IF(Table_SummaryPI[[#This Row],[kWhSavings]]<>\"\",Table_SummaryPI[[#This Row],[kWhSavings]],0)","v":0},{"$f":"IF(Table_SummaryPI[[#This Row],[DemandSavingskW]]<>\"\",Table_SummaryPI[[#This Row],[DemandSavingskW]],0)","v":0}]
[{"$f":"Table_SummaryPI[[#This Row],[Line No.]]","v":""},{"$f":"IF(Table_PrintPI[[#This Row],[Line No.]]=\"\",\"\",CONCATENATE(Table_PrintPI[[#This Row],[Line No.]],\" - \",Table_SummaryPI[[#This Row],[MeasureName]]))","v":""},{"$f":"IF(Table_SummaryPI[[#This Row],[Manufacturer]]<>\"\",CONCATENATE(Table_SummaryPI[[#This Row],[Manufacturer]],\"/\",Table_SummaryPI[[#This Row],[Model'#]]),\"\")","v":""},{"$f":"IF(Table_SummaryPI[[#This Row],[Serial'#]]<>\"\",Table_SummaryPI[[#This Row],[Serial'#]],\"\")","v":""},{"$f":"IF(Table_SummaryPI[[#This Row],[Quantity]]<>\"\",Table_SummaryPI[[#This Row],[Quantity]],\"\")","v":""},{"$f":"IF(Table_SummaryPI[[#This Row],[BaselinekWh]]<>\"\",Table_SummaryPI[[#This Row],[BaselinekWh]],\"\")","v":""},{"$f":"IF(Table_SummaryPI[[#This Row],[BaselinekW]]<>\"\",Table_SummaryPI[[#This Row],[BaselinekW]],\"\")","v":""},{"$f":"IF(Table_SummaryPI[[#This Row],[ProposedkWh]]<>\"\",Table_SummaryPI[[#This Row],[ProposedkWh]],\"\")","v":""},{"$f":"IF(Table_SummaryPI[[#This Row],[ProposedkW]]<>\"\",Table_SummaryPI[[#This Row],[ProposedkW]],\"\")","v":""},{"$f":"IF(Table_SummaryPI[[#This Row],[Notes]]<>\"\",Table_SummaryPI[[#This Row],[Notes]],\"\")","v":""},{"$f":"IF(Table_SummaryPI[[#This Row],[Incentive_Customer]]<>\"\",Table_SummaryPI[[#This Row],[Incentive_Customer]],0)","v":0},{"$f":"IF(Table_SummaryPI[[#This Row],[MeasureCost]]<>\"\",Table_SummaryPI[[#This Row],[MeasureCost]],0)","v":0},{"$f":"IF(Table_SummaryPI[[#This Row],[kWhSavings]]<>\"\",Table_SummaryPI[[#This Row],[kWhSavings]],0)","v":0},{"$f":"IF(Table_SummaryPI[[#This Row],[DemandSavingskW]]<>\"\",Table_SummaryPI[[#This Row],[DemandSavingskW]],0)","v":0}]
[{"$f":"Table_SummaryPI[[#This Row],[Line No.]]","v":""},{"$f":"IF(Table_PrintPI[[#This Row],[Line No.]]=\"\",\"\",CONCATENATE(Table_PrintPI[[#This Row],[Line No.]],\" - \",Table_SummaryPI[[#This Row],[MeasureName]]))","v":""},{"$f":"IF(Table_SummaryPI[[#This Row],[Manufacturer]]<>\"\",CONCATENATE(Table_SummaryPI[[#This Row],[Manufacturer]],\"/\",Table_SummaryPI[[#This Row],[Model'#]]),\"\")","v":""},{"$f":"IF(Table_SummaryPI[[#This Row],[Serial'#]]<>\"\",Table_SummaryPI[[#This Row],[Serial'#]],\"\")","v":""},{"$f":"IF(Table_SummaryPI[[#This Row],[Quantity]]<>\"\",Table_SummaryPI[[#This Row],[Quantity]],\"\")","v":""},{"$f":"IF(Table_SummaryPI[[#This Row],[BaselinekWh]]<>\"\",Table_SummaryPI[[#This Row],[BaselinekWh]],\"\")","v":""},{"$f":"IF(Table_SummaryPI[[#This Row],[BaselinekW]]<>\"\",Table_SummaryPI[[#This Row],[BaselinekW]],\"\")","v":""},{"$f":"IF(Table_SummaryPI[[#This Row],[ProposedkWh]]<>\"\",Table_SummaryPI[[#This Row],[ProposedkWh]],\"\")","v":""},{"$f":"IF(Table_SummaryPI[[#This Row],[ProposedkW]]<>\"\",Table_SummaryPI[[#This Row],[ProposedkW]],\"\")","v":""},{"$f":"IF(Table_SummaryPI[[#This Row],[Notes]]<>\"\",Table_SummaryPI[[#This Row],[Notes]],\"\")","v":""},{"$f":"IF(Table_SummaryPI[[#This Row],[Incentive_Customer]]<>\"\",Table_SummaryPI[[#This Row],[Incentive_Customer]],0)","v":0},{"$f":"IF(Table_SummaryPI[[#This Row],[MeasureCost]]<>\"\",Table_SummaryPI[[#This Row],[MeasureCost]],0)","v":0},{"$f":"IF(Table_SummaryPI[[#This Row],[kWhSavings]]<>\"\",Table_SummaryPI[[#This Row],[kWhSavings]],0)","v":0},{"$f":"IF(Table_SummaryPI[[#This Row],[DemandSavingskW]]<>\"\",Table_SummaryPI[[#This Row],[DemandSavingskW]],0)","v":0}]
[{"$f":"Table_SummaryPI[[#This Row],[Line No.]]","v":""},{"$f":"IF(Table_PrintPI[[#This Row],[Line No.]]=\"\",\"\",CONCATENATE(Table_PrintPI[[#This Row],[Line No.]],\" - \",Table_SummaryPI[[#This Row],[MeasureName]]))","v":""},{"$f":"IF(Table_SummaryPI[[#This Row],[Manufacturer]]<>\"\",CONCATENATE(Table_SummaryPI[[#This Row],[Manufacturer]],\"/\",Table_SummaryPI[[#This Row],[Model'#]]),\"\")","v":""},{"$f":"IF(Table_SummaryPI[[#This Row],[Serial'#]]<>\"\",Table_SummaryPI[[#This Row],[Serial'#]],\"\")","v":""},{"$f":"IF(Table_SummaryPI[[#This Row],[Quantity]]<>\"\",Table_SummaryPI[[#This Row],[Quantity]],\"\")","v":""},{"$f":"IF(Table_SummaryPI[[#This Row],[BaselinekWh]]<>\"\",Table_SummaryPI[[#This Row],[BaselinekWh]],\"\")","v":""},{"$f":"IF(Table_SummaryPI[[#This Row],[BaselinekW]]<>\"\",Table_SummaryPI[[#This Row],[BaselinekW]],\"\")","v":""},{"$f":"IF(Table_SummaryPI[[#This Row],[ProposedkWh]]<>\"\",Table_SummaryPI[[#This Row],[ProposedkWh]],\"\")","v":""},{"$f":"IF(Table_SummaryPI[[#This Row],[ProposedkW]]<>\"\",Table_SummaryPI[[#This Row],[ProposedkW]],\"\")","v":""},{"$f":"IF(Table_SummaryPI[[#This Row],[Notes]]<>\"\",Table_SummaryPI[[#This Row],[Notes]],\"\")","v":""},{"$f":"IF(Table_SummaryPI[[#This Row],[Incentive_Customer]]<>\"\",Table_SummaryPI[[#This Row],[Incentive_Customer]],0)","v":0},{"$f":"IF(Table_SummaryPI[[#This Row],[MeasureCost]]<>\"\",Table_SummaryPI[[#This Row],[MeasureCost]],0)","v":0},{"$f":"IF(Table_SummaryPI[[#This Row],[kWhSavings]]<>\"\",Table_SummaryPI[[#This Row],[kWhSavings]],0)","v":0},{"$f":"IF(Table_SummaryPI[[#This Row],[DemandSavingskW]]<>\"\",Table_SummaryPI[[#This Row],[DemandSavingskW]],0)","v":0}]
[{"$f":"Table_SummaryPI[[#This Row],[Line No.]]","v":""},{"$f":"IF(Table_PrintPI[[#This Row],[Line No.]]=\"\",\"\",CONCATENATE(Table_PrintPI[[#This Row],[Line No.]],\" - \",Table_SummaryPI[[#This Row],[MeasureName]]))","v":""},{"$f":"IF(Table_SummaryPI[[#This Row],[Manufacturer]]<>\"\",CONCATENATE(Table_SummaryPI[[#This Row],[Manufacturer]],\"/\",Table_SummaryPI[[#This Row],[Model'#]]),\"\")","v":""},{"$f":"IF(Table_SummaryPI[[#This Row],[Serial'#]]<>\"\",Table_SummaryPI[[#This Row],[Serial'#]],\"\")","v":""},{"$f":"IF(Table_SummaryPI[[#This Row],[Quantity]]<>\"\",Table_SummaryPI[[#This Row],[Quantity]],\"\")","v":""},{"$f":"IF(Table_SummaryPI[[#This Row],[BaselinekWh]]<>\"\",Table_SummaryPI[[#This Row],[BaselinekWh]],\"\")","v":""},{"$f":"IF(Table_SummaryPI[[#This Row],[BaselinekW]]<>\"\",Table_SummaryPI[[#This Row],[BaselinekW]],\"\")","v":""},{"$f":"IF(Table_SummaryPI[[#This Row],[ProposedkWh]]<>\"\",Table_SummaryPI[[#This Row],[ProposedkWh]],\"\")","v":""},{"$f":"IF(Table_SummaryPI[[#This Row],[ProposedkW]]<>\"\",Table_SummaryPI[[#This Row],[ProposedkW]],\"\")","v":""},{"$f":"IF(Table_SummaryPI[[#This Row],[Notes]]<>\"\",Table_SummaryPI[[#This Row],[Notes]],\"\")","v":""},{"$f":"IF(Table_SummaryPI[[#This Row],[Incentive_Customer]]<>\"\",Table_SummaryPI[[#This Row],[Incentive_Customer]],0)","v":0},{"$f":"IF(Table_SummaryPI[[#This Row],[MeasureCost]]<>\"\",Table_SummaryPI[[#This Row],[MeasureCost]],0)","v":0},{"$f":"IF(Table_SummaryPI[[#This Row],[kWhSavings]]<>\"\",Table_SummaryPI[[#This Row],[kWhSavings]],0)","v":0},{"$f":"IF(Table_SummaryPI[[#This Row],[DemandSavingskW]]<>\"\",Table_SummaryPI[[#This Row],[DemandSavingskW]],0)","v":0}]
[{"$f":"Table_SummaryPI[[#This Row],[Line No.]]","v":""},{"$f":"IF(Table_PrintPI[[#This Row],[Line No.]]=\"\",\"\",CONCATENATE(Table_PrintPI[[#This Row],[Line No.]],\" - \",Table_SummaryPI[[#This Row],[MeasureName]]))","v":""},{"$f":"IF(Table_SummaryPI[[#This Row],[Manufacturer]]<>\"\",CONCATENATE(Table_SummaryPI[[#This Row],[Manufacturer]],\"/\",Table_SummaryPI[[#This Row],[Model'#]]),\"\")","v":""},{"$f":"IF(Table_SummaryPI[[#This Row],[Serial'#]]<>\"\",Table_SummaryPI[[#This Row],[Serial'#]],\"\")","v":""},{"$f":"IF(Table_SummaryPI[[#This Row],[Quantity]]<>\"\",Table_SummaryPI[[#This Row],[Quantity]],\"\")","v":""},{"$f":"IF(Table_SummaryPI[[#This Row],[BaselinekWh]]<>\"\",Table_SummaryPI[[#This Row],[BaselinekWh]],\"\")","v":""},{"$f":"IF(Table_SummaryPI[[#This Row],[BaselinekW]]<>\"\",Table_SummaryPI[[#This Row],[BaselinekW]],\"\")","v":""},{"$f":"IF(Table_SummaryPI[[#This Row],[ProposedkWh]]<>\"\",Table_SummaryPI[[#This Row],[ProposedkWh]],\"\")","v":""},{"$f":"IF(Table_SummaryPI[[#This Row],[ProposedkW]]<>\"\",Table_SummaryPI[[#This Row],[ProposedkW]],\"\")","v":""},{"$f":"IF(Table_SummaryPI[[#This Row],[Notes]]<>\"\",Table_SummaryPI[[#This Row],[Notes]],\"\")","v":""},{"$f":"IF(Table_SummaryPI[[#This Row],[Incentive_Customer]]<>\"\",Table_SummaryPI[[#This Row],[Incentive_Customer]],0)","v":0},{"$f":"IF(Table_SummaryPI[[#This Row],[MeasureCost]]<>\"\",Table_SummaryPI[[#This Row],[MeasureCost]],0)","v":0},{"$f":"IF(Table_SummaryPI[[#This Row],[kWhSavings]]<>\"\",Table_SummaryPI[[#This Row],[kWhSavings]],0)","v":0},{"$f":"IF(Table_SummaryPI[[#This Row],[DemandSavingskW]]<>\"\",Table_SummaryPI[[#This Row],[DemandSavingskW]],0)","v":0}]
[{"$f":"Table_SummaryPI[[#This Row],[Line No.]]","v":""},{"$f":"IF(Table_PrintPI[[#This Row],[Line No.]]=\"\",\"\",CONCATENATE(Table_PrintPI[[#This Row],[Line No.]],\" - \",Table_SummaryPI[[#This Row],[MeasureName]]))","v":""},{"$f":"IF(Table_SummaryPI[[#This Row],[Manufacturer]]<>\"\",CONCATENATE(Table_SummaryPI[[#This Row],[Manufacturer]],\"/\",Table_SummaryPI[[#This Row],[Model'#]]),\"\")","v":""},{"$f":"IF(Table_SummaryPI[[#This Row],[Serial'#]]<>\"\",Table_SummaryPI[[#This Row],[Serial'#]],\"\")","v":""},{"$f":"IF(Table_SummaryPI[[#This Row],[Quantity]]<>\"\",Table_SummaryPI[[#This Row],[Quantity]],\"\")","v":""},{"$f":"IF(Table_SummaryPI[[#This Row],[BaselinekWh]]<>\"\",Table_SummaryPI[[#This Row],[BaselinekWh]],\"\")","v":""},{"$f":"IF(Table_SummaryPI[[#This Row],[BaselinekW]]<>\"\",Table_SummaryPI[[#This Row],[BaselinekW]],\"\")","v":""},{"$f":"IF(Table_SummaryPI[[#This Row],[ProposedkWh]]<>\"\",Table_SummaryPI[[#This Row],[ProposedkWh]],\"\")","v":""},{"$f":"IF(Table_SummaryPI[[#This Row],[ProposedkW]]<>\"\",Table_SummaryPI[[#This Row],[ProposedkW]],\"\")","v":""},{"$f":"IF(Table_SummaryPI[[#This Row],[Notes]]<>\"\",Table_SummaryPI[[#This Row],[Notes]],\"\")","v":""},{"$f":"IF(Table_SummaryPI[[#This Row],[Incentive_Customer]]<>\"\",Table_SummaryPI[[#This Row],[Incentive_Customer]],0)","v":0},{"$f":"IF(Table_SummaryPI[[#This Row],[MeasureCost]]<>\"\",Table_SummaryPI[[#This Row],[MeasureCost]],0)","v":0},{"$f":"IF(Table_SummaryPI[[#This Row],[kWhSavings]]<>\"\",Table_SummaryPI[[#This Row],[kWhSavings]],0)","v":0},{"$f":"IF(Table_SummaryPI[[#This Row],[DemandSavingskW]]<>\"\",Table_SummaryPI[[#This Row],[DemandSavingskW]],0)","v":0}]
[{"$f":"Table_SummaryPI[[#This Row],[Line No.]]","v":""},{"$f":"IF(Table_PrintPI[[#This Row],[Line No.]]=\"\",\"\",CONCATENATE(Table_PrintPI[[#This Row],[Line No.]],\" - \",Table_SummaryPI[[#This Row],[MeasureName]]))","v":""},{"$f":"IF(Table_SummaryPI[[#This Row],[Manufacturer]]<>\"\",CONCATENATE(Table_SummaryPI[[#This Row],[Manufacturer]],\"/\",Table_SummaryPI[[#This Row],[Model'#]]),\"\")","v":""},{"$f":"IF(Table_SummaryPI[[#This Row],[Serial'#]]<>\"\",Table_SummaryPI[[#This Row],[Serial'#]],\"\")","v":""},{"$f":"IF(Table_SummaryPI[[#This Row],[Quantity]]<>\"\",Table_SummaryPI[[#This Row],[Quantity]],\"\")","v":""},{"$f":"IF(Table_SummaryPI[[#This Row],[BaselinekWh]]<>\"\",Table_SummaryPI[[#This Row],[BaselinekWh]],\"\")","v":""},{"$f":"IF(Table_SummaryPI[[#This Row],[BaselinekW]]<>\"\",Table_SummaryPI[[#This Row],[BaselinekW]],\"\")","v":""},{"$f":"IF(Table_SummaryPI[[#This Row],[ProposedkWh]]<>\"\",Table_SummaryPI[[#This Row],[ProposedkWh]],\"\")","v":""},{"$f":"IF(Table_SummaryPI[[#This Row],[ProposedkW]]<>\"\",Table_SummaryPI[[#This Row],[ProposedkW]],\"\")","v":""},{"$f":"IF(Table_SummaryPI[[#This Row],[Notes]]<>\"\",Table_SummaryPI[[#This Row],[Notes]],\"\")","v":""},{"$f":"IF(Table_SummaryPI[[#This Row],[Incentive_Customer]]<>\"\",Table_SummaryPI[[#This Row],[Incentive_Customer]],0)","v":0},{"$f":"IF(Table_SummaryPI[[#This Row],[MeasureCost]]<>\"\",Table_SummaryPI[[#This Row],[MeasureCost]],0)","v":0},{"$f":"IF(Table_SummaryPI[[#This Row],[kWhSavings]]<>\"\",Table_SummaryPI[[#This Row],[kWhSavings]],0)","v":0},{"$f":"IF(Table_SummaryPI[[#This Row],[DemandSavingskW]]<>\"\",Table_SummaryPI[[#This Row],[DemandSavingskW]],0)","v":0}]
[{"$f":"Table_SummaryPI[[#This Row],[Line No.]]","v":""},{"$f":"IF(Table_PrintPI[[#This Row],[Line No.]]=\"\",\"\",CONCATENATE(Table_PrintPI[[#This Row],[Line No.]],\" - \",Table_SummaryPI[[#This Row],[MeasureName]]))","v":""},{"$f":"IF(Table_SummaryPI[[#This Row],[Manufacturer]]<>\"\",CONCATENATE(Table_SummaryPI[[#This Row],[Manufacturer]],\"/\",Table_SummaryPI[[#This Row],[Model'#]]),\"\")","v":""},{"$f":"IF(Table_SummaryPI[[#This Row],[Serial'#]]<>\"\",Table_SummaryPI[[#This Row],[Serial'#]],\"\")","v":""},{"$f":"IF(Table_SummaryPI[[#This Row],[Quantity]]<>\"\",Table_SummaryPI[[#This Row],[Quantity]],\"\")","v":""},{"$f":"IF(Table_SummaryPI[[#This Row],[BaselinekWh]]<>\"\",Table_SummaryPI[[#This Row],[BaselinekWh]],\"\")","v":""},{"$f":"IF(Table_SummaryPI[[#This Row],[BaselinekW]]<>\"\",Table_SummaryPI[[#This Row],[BaselinekW]],\"\")","v":""},{"$f":"IF(Table_SummaryPI[[#This Row],[ProposedkWh]]<>\"\",Table_SummaryPI[[#This Row],[ProposedkWh]],\"\")","v":""},{"$f":"IF(Table_SummaryPI[[#This Row],[ProposedkW]]<>\"\",Table_SummaryPI[[#This Row],[ProposedkW]],\"\")","v":""},{"$f":"IF(Table_SummaryPI[[#This Row],[Notes]]<>\"\",Table_SummaryPI[[#This Row],[Notes]],\"\")","v":""},{"$f":"IF(Table_SummaryPI[[#This Row],[Incentive_Customer]]<>\"\",Table_SummaryPI[[#This Row],[Incentive_Customer]],0)","v":0},{"$f":"IF(Table_SummaryPI[[#This Row],[MeasureCost]]<>\"\",Table_SummaryPI[[#This Row],[MeasureCost]],0)","v":0},{"$f":"IF(Table_SummaryPI[[#This Row],[kWhSavings]]<>\"\",Table_SummaryPI[[#This Row],[kWhSavings]],0)","v":0},{"$f":"IF(Table_SummaryPI[[#This Row],[DemandSavingskW]]<>\"\",Table_SummaryPI[[#This Row],[DemandSavingskW]],0)","v":0}]
[{"$f":"Table_SummaryPI[[#This Row],[Line No.]]","v":""},{"$f":"IF(Table_PrintPI[[#This Row],[Line No.]]=\"\",\"\",CONCATENATE(Table_PrintPI[[#This Row],[Line No.]],\" - \",Table_SummaryPI[[#This Row],[MeasureName]]))","v":""},{"$f":"IF(Table_SummaryPI[[#This Row],[Manufacturer]]<>\"\",CONCATENATE(Table_SummaryPI[[#This Row],[Manufacturer]],\"/\",Table_SummaryPI[[#This Row],[Model'#]]),\"\")","v":""},{"$f":"IF(Table_SummaryPI[[#This Row],[Serial'#]]<>\"\",Table_SummaryPI[[#This Row],[Serial'#]],\"\")","v":""},{"$f":"IF(Table_SummaryPI[[#This Row],[Quantity]]<>\"\",Table_SummaryPI[[#This Row],[Quantity]],\"\")","v":""},{"$f":"IF(Table_SummaryPI[[#This Row],[BaselinekWh]]<>\"\",Table_SummaryPI[[#This Row],[BaselinekWh]],\"\")","v":""},{"$f":"IF(Table_SummaryPI[[#This Row],[BaselinekW]]<>\"\",Table_SummaryPI[[#This Row],[BaselinekW]],\"\")","v":""},{"$f":"IF(Table_SummaryPI[[#This Row],[ProposedkWh]]<>\"\",Table_SummaryPI[[#This Row],[ProposedkWh]],\"\")","v":""},{"$f":"IF(Table_SummaryPI[[#This Row],[ProposedkW]]<>\"\",Table_SummaryPI[[#This Row],[ProposedkW]],\"\")","v":""},{"$f":"IF(Table_SummaryPI[[#This Row],[Notes]]<>\"\",Table_SummaryPI[[#This Row],[Notes]],\"\")","v":""},{"$f":"IF(Table_SummaryPI[[#This Row],[Incentive_Customer]]<>\"\",Table_SummaryPI[[#This Row],[Incentive_Customer]],0)","v":0},{"$f":"IF(Table_SummaryPI[[#This Row],[MeasureCost]]<>\"\",Table_SummaryPI[[#This Row],[MeasureCost]],0)","v":0},{"$f":"IF(Table_SummaryPI[[#This Row],[kWhSavings]]<>\"\",Table_SummaryPI[[#This Row],[kWhSavings]],0)","v":0},{"$f":"IF(Table_SummaryPI[[#This Row],[DemandSavingskW]]<>\"\",Table_SummaryPI[[#This Row],[DemandSavingskW]],0)","v":0}]
[{"$f":"Table_SummaryPI[[#This Row],[Line No.]]","v":""},{"$f":"IF(Table_PrintPI[[#This Row],[Line No.]]=\"\",\"\",CONCATENATE(Table_PrintPI[[#This Row],[Line No.]],\" - \",Table_SummaryPI[[#This Row],[MeasureName]]))","v":""},{"$f":"IF(Table_SummaryPI[[#This Row],[Manufacturer]]<>\"\",CONCATENATE(Table_SummaryPI[[#This Row],[Manufacturer]],\"/\",Table_SummaryPI[[#This Row],[Model'#]]),\"\")","v":""},{"$f":"IF(Table_SummaryPI[[#This Row],[Serial'#]]<>\"\",Table_SummaryPI[[#This Row],[Serial'#]],\"\")","v":""},{"$f":"IF(Table_SummaryPI[[#This Row],[Quantity]]<>\"\",Table_SummaryPI[[#This Row],[Quantity]],\"\")","v":""},{"$f":"IF(Table_SummaryPI[[#This Row],[BaselinekWh]]<>\"\",Table_SummaryPI[[#This Row],[BaselinekWh]],\"\")","v":""},{"$f":"IF(Table_SummaryPI[[#This Row],[BaselinekW]]<>\"\",Table_SummaryPI[[#This Row],[BaselinekW]],\"\")","v":""},{"$f":"IF(Table_SummaryPI[[#This Row],[ProposedkWh]]<>\"\",Table_SummaryPI[[#This Row],[ProposedkWh]],\"\")","v":""},{"$f":"IF(Table_SummaryPI[[#This Row],[ProposedkW]]<>\"\",Table_SummaryPI[[#This Row],[ProposedkW]],\"\")","v":""},{"$f":"IF(Table_SummaryPI[[#This Row],[Notes]]<>\"\",Table_SummaryPI[[#This Row],[Notes]],\"\")","v":""},{"$f":"IF(Table_SummaryPI[[#This Row],[Incentive_Customer]]<>\"\",Table_SummaryPI[[#This Row],[Incentive_Customer]],0)","v":0},{"$f":"IF(Table_SummaryPI[[#This Row],[MeasureCost]]<>\"\",Table_SummaryPI[[#This Row],[MeasureCost]],0)","v":0},{"$f":"IF(Table_SummaryPI[[#This Row],[kWhSavings]]<>\"\",Table_SummaryPI[[#This Row],[kWhSavings]],0)","v":0},{"$f":"IF(Table_SummaryPI[[#This Row],[DemandSavingskW]]<>\"\",Table_SummaryPI[[#This Row],[DemandSavingskW]],0)","v":0}]
[{"$f":"Table_SummaryPI[[#This Row],[Line No.]]","v":""},{"$f":"IF(Table_PrintPI[[#This Row],[Line No.]]=\"\",\"\",CONCATENATE(Table_PrintPI[[#This Row],[Line No.]],\" - \",Table_SummaryPI[[#This Row],[MeasureName]]))","v":""},{"$f":"IF(Table_SummaryPI[[#This Row],[Manufacturer]]<>\"\",CONCATENATE(Table_SummaryPI[[#This Row],[Manufacturer]],\"/\",Table_SummaryPI[[#This Row],[Model'#]]),\"\")","v":""},{"$f":"IF(Table_SummaryPI[[#This Row],[Serial'#]]<>\"\",Table_SummaryPI[[#This Row],[Serial'#]],\"\")","v":""},{"$f":"IF(Table_SummaryPI[[#This Row],[Quantity]]<>\"\",Table_SummaryPI[[#This Row],[Quantity]],\"\")","v":""},{"$f":"IF(Table_SummaryPI[[#This Row],[BaselinekWh]]<>\"\",Table_SummaryPI[[#This Row],[BaselinekWh]],\"\")","v":""},{"$f":"IF(Table_SummaryPI[[#This Row],[BaselinekW]]<>\"\",Table_SummaryPI[[#This Row],[BaselinekW]],\"\")","v":""},{"$f":"IF(Table_SummaryPI[[#This Row],[ProposedkWh]]<>\"\",Table_SummaryPI[[#This Row],[ProposedkWh]],\"\")","v":""},{"$f":"IF(Table_SummaryPI[[#This Row],[ProposedkW]]<>\"\",Table_SummaryPI[[#This Row],[ProposedkW]],\"\")","v":""},{"$f":"IF(Table_SummaryPI[[#This Row],[Notes]]<>\"\",Table_SummaryPI[[#This Row],[Notes]],\"\")","v":""},{"$f":"IF(Table_SummaryPI[[#This Row],[Incentive_Customer]]<>\"\",Table_SummaryPI[[#This Row],[Incentive_Customer]],0)","v":0},{"$f":"IF(Table_SummaryPI[[#This Row],[MeasureCost]]<>\"\",Table_SummaryPI[[#This Row],[MeasureCost]],0)","v":0},{"$f":"IF(Table_SummaryPI[[#This Row],[kWhSavings]]<>\"\",Table_SummaryPI[[#This Row],[kWhSavings]],0)","v":0},{"$f":"IF(Table_SummaryPI[[#This Row],[DemandSavingskW]]<>\"\",Table_SummaryPI[[#This Row],[DemandSavingskW]],0)","v":0}]
[{"$f":"Table_SummaryPI[[#This Row],[Line No.]]","v":""},{"$f":"IF(Table_PrintPI[[#This Row],[Line No.]]=\"\",\"\",CONCATENATE(Table_PrintPI[[#This Row],[Line No.]],\" - \",Table_SummaryPI[[#This Row],[MeasureName]]))","v":""},{"$f":"IF(Table_SummaryPI[[#This Row],[Manufacturer]]<>\"\",CONCATENATE(Table_SummaryPI[[#This Row],[Manufacturer]],\"/\",Table_SummaryPI[[#This Row],[Model'#]]),\"\")","v":""},{"$f":"IF(Table_SummaryPI[[#This Row],[Serial'#]]<>\"\",Table_SummaryPI[[#This Row],[Serial'#]],\"\")","v":""},{"$f":"IF(Table_SummaryPI[[#This Row],[Quantity]]<>\"\",Table_SummaryPI[[#This Row],[Quantity]],\"\")","v":""},{"$f":"IF(Table_SummaryPI[[#This Row],[BaselinekWh]]<>\"\",Table_SummaryPI[[#This Row],[BaselinekWh]],\"\")","v":""},{"$f":"IF(Table_SummaryPI[[#This Row],[BaselinekW]]<>\"\",Table_SummaryPI[[#This Row],[BaselinekW]],\"\")","v":""},{"$f":"IF(Table_SummaryPI[[#This Row],[ProposedkWh]]<>\"\",Table_SummaryPI[[#This Row],[ProposedkWh]],\"\")","v":""},{"$f":"IF(Table_SummaryPI[[#This Row],[ProposedkW]]<>\"\",Table_SummaryPI[[#This Row],[ProposedkW]],\"\")","v":""},{"$f":"IF(Table_SummaryPI[[#This Row],[Notes]]<>\"\",Table_SummaryPI[[#This Row],[Notes]],\"\")","v":""},{"$f":"IF(Table_SummaryPI[[#This Row],[Incentive_Customer]]<>\"\",Table_SummaryPI[[#This Row],[Incentive_Customer]],0)","v":0},{"$f":"IF(Table_SummaryPI[[#This Row],[MeasureCost]]<>\"\",Table_SummaryPI[[#This Row],[MeasureCost]],0)","v":0},{"$f":"IF(Table_SummaryPI[[#This Row],[kWhSavings]]<>\"\",Table_SummaryPI[[#This Row],[kWhSavings]],0)","v":0},{"$f":"IF(Table_SummaryPI[[#This Row],[DemandSavingskW]]<>\"\",Table_SummaryPI[[#This Row],[DemandSavingskW]],0)","v":0}]
[{"$f":"Table_SummaryPI[[#This Row],[Line No.]]","v":""},{"$f":"IF(Table_PrintPI[[#This Row],[Line No.]]=\"\",\"\",CONCATENATE(Table_PrintPI[[#This Row],[Line No.]],\" - \",Table_SummaryPI[[#This Row],[MeasureName]]))","v":""},{"$f":"IF(Table_SummaryPI[[#This Row],[Manufacturer]]<>\"\",CONCATENATE(Table_SummaryPI[[#This Row],[Manufacturer]],\"/\",Table_SummaryPI[[#This Row],[Model'#]]),\"\")","v":""},{"$f":"IF(Table_SummaryPI[[#This Row],[Serial'#]]<>\"\",Table_SummaryPI[[#This Row],[Serial'#]],\"\")","v":""},{"$f":"IF(Table_SummaryPI[[#This Row],[Quantity]]<>\"\",Table_SummaryPI[[#This Row],[Quantity]],\"\")","v":""},{"$f":"IF(Table_SummaryPI[[#This Row],[BaselinekWh]]<>\"\",Table_SummaryPI[[#This Row],[BaselinekWh]],\"\")","v":""},{"$f":"IF(Table_SummaryPI[[#This Row],[BaselinekW]]<>\"\",Table_SummaryPI[[#This Row],[BaselinekW]],\"\")","v":""},{"$f":"IF(Table_SummaryPI[[#This Row],[ProposedkWh]]<>\"\",Table_SummaryPI[[#This Row],[ProposedkWh]],\"\")","v":""},{"$f":"IF(Table_SummaryPI[[#This Row],[ProposedkW]]<>\"\",Table_SummaryPI[[#This Row],[ProposedkW]],\"\")","v":""},{"$f":"IF(Table_SummaryPI[[#This Row],[Notes]]<>\"\",Table_SummaryPI[[#This Row],[Notes]],\"\")","v":""},{"$f":"IF(Table_SummaryPI[[#This Row],[Incentive_Customer]]<>\"\",Table_SummaryPI[[#This Row],[Incentive_Customer]],0)","v":0},{"$f":"IF(Table_SummaryPI[[#This Row],[MeasureCost]]<>\"\",Table_SummaryPI[[#This Row],[MeasureCost]],0)","v":0},{"$f":"IF(Table_SummaryPI[[#This Row],[kWhSavings]]<>\"\",Table_SummaryPI[[#This Row],[kWhSavings]],0)","v":0},{"$f":"IF(Table_SummaryPI[[#This Row],[DemandSavingskW]]<>\"\",Table_SummaryPI[[#This Row],[DemandSavingskW]],0)","v":0}]
[{"$f":"Table_SummaryPI[[#This Row],[Line No.]]","v":""},{"$f":"IF(Table_PrintPI[[#This Row],[Line No.]]=\"\",\"\",CONCATENATE(Table_PrintPI[[#This Row],[Line No.]],\" - \",Table_SummaryPI[[#This Row],[MeasureName]]))","v":""},{"$f":"IF(Table_SummaryPI[[#This Row],[Manufacturer]]<>\"\",CONCATENATE(Table_SummaryPI[[#This Row],[Manufacturer]],\"/\",Table_SummaryPI[[#This Row],[Model'#]]),\"\")","v":""},{"$f":"IF(Table_SummaryPI[[#This Row],[Serial'#]]<>\"\",Table_SummaryPI[[#This Row],[Serial'#]],\"\")","v":""},{"$f":"IF(Table_SummaryPI[[#This Row],[Quantity]]<>\"\",Table_SummaryPI[[#This Row],[Quantity]],\"\")","v":""},{"$f":"IF(Table_SummaryPI[[#This Row],[BaselinekWh]]<>\"\",Table_SummaryPI[[#This Row],[BaselinekWh]],\"\")","v":""},{"$f":"IF(Table_SummaryPI[[#This Row],[BaselinekW]]<>\"\",Table_SummaryPI[[#This Row],[BaselinekW]],\"\")","v":""},{"$f":"IF(Table_SummaryPI[[#This Row],[ProposedkWh]]<>\"\",Table_SummaryPI[[#This Row],[ProposedkWh]],\"\")","v":""},{"$f":"IF(Table_SummaryPI[[#This Row],[ProposedkW]]<>\"\",Table_SummaryPI[[#This Row],[ProposedkW]],\"\")","v":""},{"$f":"IF(Table_SummaryPI[[#This Row],[Notes]]<>\"\",Table_SummaryPI[[#This Row],[Notes]],\"\")","v":""},{"$f":"IF(Table_SummaryPI[[#This Row],[Incentive_Customer]]<>\"\",Table_SummaryPI[[#This Row],[Incentive_Customer]],0)","v":0},{"$f":"IF(Table_SummaryPI[[#This Row],[MeasureCost]]<>\"\",Table_SummaryPI[[#This Row],[MeasureCost]],0)","v":0},{"$f":"IF(Table_SummaryPI[[#This Row],[kWhSavings]]<>\"\",Table_SummaryPI[[#This Row],[kWhSavings]],0)","v":0},{"$f":"IF(Table_SummaryPI[[#This Row],[DemandSavingskW]]<>\"\",Table_SummaryPI[[#This Row],[DemandSavingskW]],0)","v":0}]
[{"$f":"Table_SummaryPI[[#This Row],[Line No.]]","v":""},{"$f":"IF(Table_PrintPI[[#This Row],[Line No.]]=\"\",\"\",CONCATENATE(Table_PrintPI[[#This Row],[Line No.]],\" - \",Table_SummaryPI[[#This Row],[MeasureName]]))","v":""},{"$f":"IF(Table_SummaryPI[[#This Row],[Manufacturer]]<>\"\",CONCATENATE(Table_SummaryPI[[#This Row],[Manufacturer]],\"/\",Table_SummaryPI[[#This Row],[Model'#]]),\"\")","v":""},{"$f":"IF(Table_SummaryPI[[#This Row],[Serial'#]]<>\"\",Table_SummaryPI[[#This Row],[Serial'#]],\"\")","v":""},{"$f":"IF(Table_SummaryPI[[#This Row],[Quantity]]<>\"\",Table_SummaryPI[[#This Row],[Quantity]],\"\")","v":""},{"$f":"IF(Table_SummaryPI[[#This Row],[BaselinekWh]]<>\"\",Table_SummaryPI[[#This Row],[BaselinekWh]],\"\")","v":""},{"$f":"IF(Table_SummaryPI[[#This Row],[BaselinekW]]<>\"\",Table_SummaryPI[[#This Row],[BaselinekW]],\"\")","v":""},{"$f":"IF(Table_SummaryPI[[#This Row],[ProposedkWh]]<>\"\",Table_SummaryPI[[#This Row],[ProposedkWh]],\"\")","v":""},{"$f":"IF(Table_SummaryPI[[#This Row],[ProposedkW]]<>\"\",Table_SummaryPI[[#This Row],[ProposedkW]],\"\")","v":""},{"$f":"IF(Table_SummaryPI[[#This Row],[Notes]]<>\"\",Table_SummaryPI[[#This Row],[Notes]],\"\")","v":""},{"$f":"IF(Table_SummaryPI[[#This Row],[Incentive_Customer]]<>\"\",Table_SummaryPI[[#This Row],[Incentive_Customer]],0)","v":0},{"$f":"IF(Table_SummaryPI[[#This Row],[MeasureCost]]<>\"\",Table_SummaryPI[[#This Row],[MeasureCost]],0)","v":0},{"$f":"IF(Table_SummaryPI[[#This Row],[kWhSavings]]<>\"\",Table_SummaryPI[[#This Row],[kWhSavings]],0)","v":0},{"$f":"IF(Table_SummaryPI[[#This Row],[DemandSavingskW]]<>\"\",Table_SummaryPI[[#This Row],[DemandSavingskW]],0)","v":0}]
[{"$f":"Table_SummaryPI[[#This Row],[Line No.]]","v":""},{"$f":"IF(Table_PrintPI[[#This Row],[Line No.]]=\"\",\"\",CONCATENATE(Table_PrintPI[[#This Row],[Line No.]],\" - \",Table_SummaryPI[[#This Row],[MeasureName]]))","v":""},{"$f":"IF(Table_SummaryPI[[#This Row],[Manufacturer]]<>\"\",CONCATENATE(Table_SummaryPI[[#This Row],[Manufacturer]],\"/\",Table_SummaryPI[[#This Row],[Model'#]]),\"\")","v":""},{"$f":"IF(Table_SummaryPI[[#This Row],[Serial'#]]<>\"\",Table_SummaryPI[[#This Row],[Serial'#]],\"\")","v":""},{"$f":"IF(Table_SummaryPI[[#This Row],[Quantity]]<>\"\",Table_SummaryPI[[#This Row],[Quantity]],\"\")","v":""},{"$f":"IF(Table_SummaryPI[[#This Row],[BaselinekWh]]<>\"\",Table_SummaryPI[[#This Row],[BaselinekWh]],\"\")","v":""},{"$f":"IF(Table_SummaryPI[[#This Row],[BaselinekW]]<>\"\",Table_SummaryPI[[#This Row],[BaselinekW]],\"\")","v":""},{"$f":"IF(Table_SummaryPI[[#This Row],[ProposedkWh]]<>\"\",Table_SummaryPI[[#This Row],[ProposedkWh]],\"\")","v":""},{"$f":"IF(Table_SummaryPI[[#This Row],[ProposedkW]]<>\"\",Table_SummaryPI[[#This Row],[ProposedkW]],\"\")","v":""},{"$f":"IF(Table_SummaryPI[[#This Row],[Notes]]<>\"\",Table_SummaryPI[[#This Row],[Notes]],\"\")","v":""},{"$f":"IF(Table_SummaryPI[[#This Row],[Incentive_Customer]]<>\"\",Table_SummaryPI[[#This Row],[Incentive_Customer]],0)","v":0},{"$f":"IF(Table_SummaryPI[[#This Row],[MeasureCost]]<>\"\",Table_SummaryPI[[#This Row],[MeasureCost]],0)","v":0},{"$f":"IF(Table_SummaryPI[[#This Row],[kWhSavings]]<>\"\",Table_SummaryPI[[#This Row],[kWhSavings]],0)","v":0},{"$f":"IF(Table_SummaryPI[[#This Row],[DemandSavingskW]]<>\"\",Table_SummaryPI[[#This Row],[DemandSavingskW]],0)","v":0}]
[{"$f":"Table_SummaryPI[[#This Row],[Line No.]]","v":""},{"$f":"IF(Table_PrintPI[[#This Row],[Line No.]]=\"\",\"\",CONCATENATE(Table_PrintPI[[#This Row],[Line No.]],\" - \",Table_SummaryPI[[#This Row],[MeasureName]]))","v":""},{"$f":"IF(Table_SummaryPI[[#This Row],[Manufacturer]]<>\"\",CONCATENATE(Table_SummaryPI[[#This Row],[Manufacturer]],\"/\",Table_SummaryPI[[#This Row],[Model'#]]),\"\")","v":""},{"$f":"IF(Table_SummaryPI[[#This Row],[Serial'#]]<>\"\",Table_SummaryPI[[#This Row],[Serial'#]],\"\")","v":""},{"$f":"IF(Table_SummaryPI[[#This Row],[Quantity]]<>\"\",Table_SummaryPI[[#This Row],[Quantity]],\"\")","v":""},{"$f":"IF(Table_SummaryPI[[#This Row],[BaselinekWh]]<>\"\",Table_SummaryPI[[#This Row],[BaselinekWh]],\"\")","v":""},{"$f":"IF(Table_SummaryPI[[#This Row],[BaselinekW]]<>\"\",Table_SummaryPI[[#This Row],[BaselinekW]],\"\")","v":""},{"$f":"IF(Table_SummaryPI[[#This Row],[ProposedkWh]]<>\"\",Table_SummaryPI[[#This Row],[ProposedkWh]],\"\")","v":""},{"$f":"IF(Table_SummaryPI[[#This Row],[ProposedkW]]<>\"\",Table_SummaryPI[[#This Row],[ProposedkW]],\"\")","v":""},{"$f":"IF(Table_SummaryPI[[#This Row],[Notes]]<>\"\",Table_SummaryPI[[#This Row],[Notes]],\"\")","v":""},{"$f":"IF(Table_SummaryPI[[#This Row],[Incentive_Customer]]<>\"\",Table_SummaryPI[[#This Row],[Incentive_Customer]],0)","v":0},{"$f":"IF(Table_SummaryPI[[#This Row],[MeasureCost]]<>\"\",Table_SummaryPI[[#This Row],[MeasureCost]],0)","v":0},{"$f":"IF(Table_SummaryPI[[#This Row],[kWhSavings]]<>\"\",Table_SummaryPI[[#This Row],[kWhSavings]],0)","v":0},{"$f":"IF(Table_SummaryPI[[#This Row],[DemandSavingskW]]<>\"\",Table_SummaryPI[[#This Row],[DemandSavingskW]],0)","v":0}]
[{"$f":"Table_SummaryPI[[#This Row],[Line No.]]","v":""},{"$f":"IF(Table_PrintPI[[#This Row],[Line No.]]=\"\",\"\",CONCATENATE(Table_PrintPI[[#This Row],[Line No.]],\" - \",Table_SummaryPI[[#This Row],[MeasureName]]))","v":""},{"$f":"IF(Table_SummaryPI[[#This Row],[Manufacturer]]<>\"\",CONCATENATE(Table_SummaryPI[[#This Row],[Manufacturer]],\"/\",Table_SummaryPI[[#This Row],[Model'#]]),\"\")","v":""},{"$f":"IF(Table_SummaryPI[[#This Row],[Serial'#]]<>\"\",Table_SummaryPI[[#This Row],[Serial'#]],\"\")","v":""},{"$f":"IF(Table_SummaryPI[[#This Row],[Quantity]]<>\"\",Table_SummaryPI[[#This Row],[Quantity]],\"\")","v":""},{"$f":"IF(Table_SummaryPI[[#This Row],[BaselinekWh]]<>\"\",Table_SummaryPI[[#This Row],[BaselinekWh]],\"\")","v":""},{"$f":"IF(Table_SummaryPI[[#This Row],[BaselinekW]]<>\"\",Table_SummaryPI[[#This Row],[BaselinekW]],\"\")","v":""},{"$f":"IF(Table_SummaryPI[[#This Row],[ProposedkWh]]<>\"\",Table_SummaryPI[[#This Row],[ProposedkWh]],\"\")","v":""},{"$f":"IF(Table_SummaryPI[[#This Row],[ProposedkW]]<>\"\",Table_SummaryPI[[#This Row],[ProposedkW]],\"\")","v":""},{"$f":"IF(Table_SummaryPI[[#This Row],[Notes]]<>\"\",Table_SummaryPI[[#This Row],[Notes]],\"\")","v":""},{"$f":"IF(Table_SummaryPI[[#This Row],[Incentive_Customer]]<>\"\",Table_SummaryPI[[#This Row],[Incentive_Customer]],0)","v":0},{"$f":"IF(Table_SummaryPI[[#This Row],[MeasureCost]]<>\"\",Table_SummaryPI[[#This Row],[MeasureCost]],0)","v":0},{"$f":"IF(Table_SummaryPI[[#This Row],[kWhSavings]]<>\"\",Table_SummaryPI[[#This Row],[kWhSavings]],0)","v":0},{"$f":"IF(Table_SummaryPI[[#This Row],[DemandSavingskW]]<>\"\",Table_SummaryPI[[#This Row],[DemandSavingskW]],0)","v":0}]
[{"$f":"Table_SummaryPI[[#This Row],[Line No.]]","v":""},{"$f":"IF(Table_PrintPI[[#This Row],[Line No.]]=\"\",\"\",CONCATENATE(Table_PrintPI[[#This Row],[Line No.]],\" - \",Table_SummaryPI[[#This Row],[MeasureName]]))","v":""},{"$f":"IF(Table_SummaryPI[[#This Row],[Manufacturer]]<>\"\",CONCATENATE(Table_SummaryPI[[#This Row],[Manufacturer]],\"/\",Table_SummaryPI[[#This Row],[Model'#]]),\"\")","v":""},{"$f":"IF(Table_SummaryPI[[#This Row],[Serial'#]]<>\"\",Table_SummaryPI[[#This Row],[Serial'#]],\"\")","v":""},{"$f":"IF(Table_SummaryPI[[#This Row],[Quantity]]<>\"\",Table_SummaryPI[[#This Row],[Quantity]],\"\")","v":""},{"$f":"IF(Table_SummaryPI[[#This Row],[BaselinekWh]]<>\"\",Table_SummaryPI[[#This Row],[BaselinekWh]],\"\")","v":""},{"$f":"IF(Table_SummaryPI[[#This Row],[BaselinekW]]<>\"\",Table_SummaryPI[[#This Row],[BaselinekW]],\"\")","v":""},{"$f":"IF(Table_SummaryPI[[#This Row],[ProposedkWh]]<>\"\",Table_SummaryPI[[#This Row],[ProposedkWh]],\"\")","v":""},{"$f":"IF(Table_SummaryPI[[#This Row],[ProposedkW]]<>\"\",Table_SummaryPI[[#This Row],[ProposedkW]],\"\")","v":""},{"$f":"IF(Table_SummaryPI[[#This Row],[Notes]]<>\"\",Table_SummaryPI[[#This Row],[Notes]],\"\")","v":""},{"$f":"IF(Table_SummaryPI[[#This Row],[Incentive_Customer]]<>\"\",Table_SummaryPI[[#This Row],[Incentive_Customer]],0)","v":0},{"$f":"IF(Table_SummaryPI[[#This Row],[MeasureCost]]<>\"\",Table_SummaryPI[[#This Row],[MeasureCost]],0)","v":0},{"$f":"IF(Table_SummaryPI[[#This Row],[kWhSavings]]<>\"\",Table_SummaryPI[[#This Row],[kWhSavings]],0)","v":0},{"$f":"IF(Table_SummaryPI[[#This Row],[DemandSavingskW]]<>\"\",Table_SummaryPI[[#This Row],[DemandSavingskW]],0)","v":0}]
[{"$f":"Table_SummaryPI[[#This Row],[Line No.]]","v":""},{"$f":"IF(Table_PrintPI[[#This Row],[Line No.]]=\"\",\"\",CONCATENATE(Table_PrintPI[[#This Row],[Line No.]],\" - \",Table_SummaryPI[[#This Row],[MeasureName]]))","v":""},{"$f":"IF(Table_SummaryPI[[#This Row],[Manufacturer]]<>\"\",CONCATENATE(Table_SummaryPI[[#This Row],[Manufacturer]],\"/\",Table_SummaryPI[[#This Row],[Model'#]]),\"\")","v":""},{"$f":"IF(Table_SummaryPI[[#This Row],[Serial'#]]<>\"\",Table_SummaryPI[[#This Row],[Serial'#]],\"\")","v":""},{"$f":"IF(Table_SummaryPI[[#This Row],[Quantity]]<>\"\",Table_SummaryPI[[#This Row],[Quantity]],\"\")","v":""},{"$f":"IF(Table_SummaryPI[[#This Row],[BaselinekWh]]<>\"\",Table_SummaryPI[[#This Row],[BaselinekWh]],\"\")","v":""},{"$f":"IF(Table_SummaryPI[[#This Row],[BaselinekW]]<>\"\",Table_SummaryPI[[#This Row],[BaselinekW]],\"\")","v":""},{"$f":"IF(Table_SummaryPI[[#This Row],[ProposedkWh]]<>\"\",Table_SummaryPI[[#This Row],[ProposedkWh]],\"\")","v":""},{"$f":"IF(Table_SummaryPI[[#This Row],[ProposedkW]]<>\"\",Table_SummaryPI[[#This Row],[ProposedkW]],\"\")","v":""},{"$f":"IF(Table_SummaryPI[[#This Row],[Notes]]<>\"\",Table_SummaryPI[[#This Row],[Notes]],\"\")","v":""},{"$f":"IF(Table_SummaryPI[[#This Row],[Incentive_Customer]]<>\"\",Table_SummaryPI[[#This Row],[Incentive_Customer]],0)","v":0},{"$f":"IF(Table_SummaryPI[[#This Row],[MeasureCost]]<>\"\",Table_SummaryPI[[#This Row],[MeasureCost]],0)","v":0},{"$f":"IF(Table_SummaryPI[[#This Row],[kWhSavings]]<>\"\",Table_SummaryPI[[#This Row],[kWhSavings]],0)","v":0},{"$f":"IF(Table_SummaryPI[[#This Row],[DemandSavingskW]]<>\"\",Table_SummaryPI[[#This Row],[DemandSavingskW]],0)","v":0}]
[{"$f":"Table_SummaryPI[[#This Row],[Line No.]]","v":""},{"$f":"IF(Table_PrintPI[[#This Row],[Line No.]]=\"\",\"\",CONCATENATE(Table_PrintPI[[#This Row],[Line No.]],\" - \",Table_SummaryPI[[#This Row],[MeasureName]]))","v":""},{"$f":"IF(Table_SummaryPI[[#This Row],[Manufacturer]]<>\"\",CONCATENATE(Table_SummaryPI[[#This Row],[Manufacturer]],\"/\",Table_SummaryPI[[#This Row],[Model'#]]),\"\")","v":""},{"$f":"IF(Table_SummaryPI[[#This Row],[Serial'#]]<>\"\",Table_SummaryPI[[#This Row],[Serial'#]],\"\")","v":""},{"$f":"IF(Table_SummaryPI[[#This Row],[Quantity]]<>\"\",Table_SummaryPI[[#This Row],[Quantity]],\"\")","v":""},{"$f":"IF(Table_SummaryPI[[#This Row],[BaselinekWh]]<>\"\",Table_SummaryPI[[#This Row],[BaselinekWh]],\"\")","v":""},{"$f":"IF(Table_SummaryPI[[#This Row],[BaselinekW]]<>\"\",Table_SummaryPI[[#This Row],[BaselinekW]],\"\")","v":""},{"$f":"IF(Table_SummaryPI[[#This Row],[ProposedkWh]]<>\"\",Table_SummaryPI[[#This Row],[ProposedkWh]],\"\")","v":""},{"$f":"IF(Table_SummaryPI[[#This Row],[ProposedkW]]<>\"\",Table_SummaryPI[[#This Row],[ProposedkW]],\"\")","v":""},{"$f":"IF(Table_SummaryPI[[#This Row],[Notes]]<>\"\",Table_SummaryPI[[#This Row],[Notes]],\"\")","v":""},{"$f":"IF(Table_SummaryPI[[#This Row],[Incentive_Customer]]<>\"\",Table_SummaryPI[[#This Row],[Incentive_Customer]],0)","v":0},{"$f":"IF(Table_SummaryPI[[#This Row],[MeasureCost]]<>\"\",Table_SummaryPI[[#This Row],[MeasureCost]],0)","v":0},{"$f":"IF(Table_SummaryPI[[#This Row],[kWhSavings]]<>\"\",Table_SummaryPI[[#This Row],[kWhSavings]],0)","v":0},{"$f":"IF(Table_SummaryPI[[#This Row],[DemandSavingskW]]<>\"\",Table_SummaryPI[[#This Row],[DemandSavingskW]],0)","v":0}]
[{"$f":"Table_SummaryPI[[#This Row],[Line No.]]","v":""},{"$f":"IF(Table_PrintPI[[#This Row],[Line No.]]=\"\",\"\",CONCATENATE(Table_PrintPI[[#This Row],[Line No.]],\" - \",Table_SummaryPI[[#This Row],[MeasureName]]))","v":""},{"$f":"IF(Table_SummaryPI[[#This Row],[Manufacturer]]<>\"\",CONCATENATE(Table_SummaryPI[[#This Row],[Manufacturer]],\"/\",Table_SummaryPI[[#This Row],[Model'#]]),\"\")","v":""},{"$f":"IF(Table_SummaryPI[[#This Row],[Serial'#]]<>\"\",Table_SummaryPI[[#This Row],[Serial'#]],\"\")","v":""},{"$f":"IF(Table_SummaryPI[[#This Row],[Quantity]]<>\"\",Table_SummaryPI[[#This Row],[Quantity]],\"\")","v":""},{"$f":"IF(Table_SummaryPI[[#This Row],[BaselinekWh]]<>\"\",Table_SummaryPI[[#This Row],[BaselinekWh]],\"\")","v":""},{"$f":"IF(Table_SummaryPI[[#This Row],[BaselinekW]]<>\"\",Table_SummaryPI[[#This Row],[BaselinekW]],\"\")","v":""},{"$f":"IF(Table_SummaryPI[[#This Row],[ProposedkWh]]<>\"\",Table_SummaryPI[[#This Row],[ProposedkWh]],\"\")","v":""},{"$f":"IF(Table_SummaryPI[[#This Row],[ProposedkW]]<>\"\",Table_SummaryPI[[#This Row],[ProposedkW]],\"\")","v":""},{"$f":"IF(Table_SummaryPI[[#This Row],[Notes]]<>\"\",Table_SummaryPI[[#This Row],[Notes]],\"\")","v":""},{"$f":"IF(Table_SummaryPI[[#This Row],[Incentive_Customer]]<>\"\",Table_SummaryPI[[#This Row],[Incentive_Customer]],0)","v":0},{"$f":"IF(Table_SummaryPI[[#This Row],[MeasureCost]]<>\"\",Table_SummaryPI[[#This Row],[MeasureCost]],0)","v":0},{"$f":"IF(Table_SummaryPI[[#This Row],[kWhSavings]]<>\"\",Table_SummaryPI[[#This Row],[kWhSavings]],0)","v":0},{"$f":"IF(Table_SummaryPI[[#This Row],[DemandSavingskW]]<>\"\",Table_SummaryPI[[#This Row],[DemandSavingskW]],0)","v":0}]
[{"$f":"Table_SummaryPI[[#This Row],[Line No.]]","v":""},{"$f":"IF(Table_PrintPI[[#This Row],[Line No.]]=\"\",\"\",CONCATENATE(Table_PrintPI[[#This Row],[Line No.]],\" - \",Table_SummaryPI[[#This Row],[MeasureName]]))","v":""},{"$f":"IF(Table_SummaryPI[[#This Row],[Manufacturer]]<>\"\",CONCATENATE(Table_SummaryPI[[#This Row],[Manufacturer]],\"/\",Table_SummaryPI[[#This Row],[Model'#]]),\"\")","v":""},{"$f":"IF(Table_SummaryPI[[#This Row],[Serial'#]]<>\"\",Table_SummaryPI[[#This Row],[Serial'#]],\"\")","v":""},{"$f":"IF(Table_SummaryPI[[#This Row],[Quantity]]<>\"\",Table_SummaryPI[[#This Row],[Quantity]],\"\")","v":""},{"$f":"IF(Table_SummaryPI[[#This Row],[BaselinekWh]]<>\"\",Table_SummaryPI[[#This Row],[BaselinekWh]],\"\")","v":""},{"$f":"IF(Table_SummaryPI[[#This Row],[BaselinekW]]<>\"\",Table_SummaryPI[[#This Row],[BaselinekW]],\"\")","v":""},{"$f":"IF(Table_SummaryPI[[#This Row],[ProposedkWh]]<>\"\",Table_SummaryPI[[#This Row],[ProposedkWh]],\"\")","v":""},{"$f":"IF(Table_SummaryPI[[#This Row],[ProposedkW]]<>\"\",Table_SummaryPI[[#This Row],[ProposedkW]],\"\")","v":""},{"$f":"IF(Table_SummaryPI[[#This Row],[Notes]]<>\"\",Table_SummaryPI[[#This Row],[Notes]],\"\")","v":""},{"$f":"IF(Table_SummaryPI[[#This Row],[Incentive_Customer]]<>\"\",Table_SummaryPI[[#This Row],[Incentive_Customer]],0)","v":0},{"$f":"IF(Table_SummaryPI[[#This Row],[MeasureCost]]<>\"\",Table_SummaryPI[[#This Row],[MeasureCost]],0)","v":0},{"$f":"IF(Table_SummaryPI[[#This Row],[kWhSavings]]<>\"\",Table_SummaryPI[[#This Row],[kWhSavings]],0)","v":0},{"$f":"IF(Table_SummaryPI[[#This Row],[DemandSavingskW]]<>\"\",Table_SummaryPI[[#This Row],[DemandSavingskW]],0)","v":0}]
[{"$f":"Table_SummaryPI[[#This Row],[Line No.]]","v":""},{"$f":"IF(Table_PrintPI[[#This Row],[Line No.]]=\"\",\"\",CONCATENATE(Table_PrintPI[[#This Row],[Line No.]],\" - \",Table_SummaryPI[[#This Row],[MeasureName]]))","v":""},{"$f":"IF(Table_SummaryPI[[#This Row],[Manufacturer]]<>\"\",CONCATENATE(Table_SummaryPI[[#This Row],[Manufacturer]],\"/\",Table_SummaryPI[[#This Row],[Model'#]]),\"\")","v":""},{"$f":"IF(Table_SummaryPI[[#This Row],[Serial'#]]<>\"\",Table_SummaryPI[[#This Row],[Serial'#]],\"\")","v":""},{"$f":"IF(Table_SummaryPI[[#This Row],[Quantity]]<>\"\",Table_SummaryPI[[#This Row],[Quantity]],\"\")","v":""},{"$f":"IF(Table_SummaryPI[[#This Row],[BaselinekWh]]<>\"\",Table_SummaryPI[[#This Row],[BaselinekWh]],\"\")","v":""},{"$f":"IF(Table_SummaryPI[[#This Row],[BaselinekW]]<>\"\",Table_SummaryPI[[#This Row],[BaselinekW]],\"\")","v":""},{"$f":"IF(Table_SummaryPI[[#This Row],[ProposedkWh]]<>\"\",Table_SummaryPI[[#This Row],[ProposedkWh]],\"\")","v":""},{"$f":"IF(Table_SummaryPI[[#This Row],[ProposedkW]]<>\"\",Table_SummaryPI[[#This Row],[ProposedkW]],\"\")","v":""},{"$f":"IF(Table_SummaryPI[[#This Row],[Notes]]<>\"\",Table_SummaryPI[[#This Row],[Notes]],\"\")","v":""},{"$f":"IF(Table_SummaryPI[[#This Row],[Incentive_Customer]]<>\"\",Table_SummaryPI[[#This Row],[Incentive_Customer]],0)","v":0},{"$f":"IF(Table_SummaryPI[[#This Row],[MeasureCost]]<>\"\",Table_SummaryPI[[#This Row],[MeasureCost]],0)","v":0},{"$f":"IF(Table_SummaryPI[[#This Row],[kWhSavings]]<>\"\",Table_SummaryPI[[#This Row],[kWhSavings]],0)","v":0},{"$f":"IF(Table_SummaryPI[[#This Row],[DemandSavingskW]]<>\"\",Table_SummaryPI[[#This Row],[DemandSavingskW]],0)","v":0}]
[{"$f":"Table_SummaryPI[[#This Row],[Line No.]]","v":""},{"$f":"IF(Table_PrintPI[[#This Row],[Line No.]]=\"\",\"\",CONCATENATE(Table_PrintPI[[#This Row],[Line No.]],\" - \",Table_SummaryPI[[#This Row],[MeasureName]]))","v":""},{"$f":"IF(Table_SummaryPI[[#This Row],[Manufacturer]]<>\"\",CONCATENATE(Table_SummaryPI[[#This Row],[Manufacturer]],\"/\",Table_SummaryPI[[#This Row],[Model'#]]),\"\")","v":""},{"$f":"IF(Table_SummaryPI[[#This Row],[Serial'#]]<>\"\",Table_SummaryPI[[#This Row],[Serial'#]],\"\")","v":""},{"$f":"IF(Table_SummaryPI[[#This Row],[Quantity]]<>\"\",Table_SummaryPI[[#This Row],[Quantity]],\"\")","v":""},{"$f":"IF(Table_SummaryPI[[#This Row],[BaselinekWh]]<>\"\",Table_SummaryPI[[#This Row],[BaselinekWh]],\"\")","v":""},{"$f":"IF(Table_SummaryPI[[#This Row],[BaselinekW]]<>\"\",Table_SummaryPI[[#This Row],[BaselinekW]],\"\")","v":""},{"$f":"IF(Table_SummaryPI[[#This Row],[ProposedkWh]]<>\"\",Table_SummaryPI[[#This Row],[ProposedkWh]],\"\")","v":""},{"$f":"IF(Table_SummaryPI[[#This Row],[ProposedkW]]<>\"\",Table_SummaryPI[[#This Row],[ProposedkW]],\"\")","v":""},{"$f":"IF(Table_SummaryPI[[#This Row],[Notes]]<>\"\",Table_SummaryPI[[#This Row],[Notes]],\"\")","v":""},{"$f":"IF(Table_SummaryPI[[#This Row],[Incentive_Customer]]<>\"\",Table_SummaryPI[[#This Row],[Incentive_Customer]],0)","v":0},{"$f":"IF(Table_SummaryPI[[#This Row],[MeasureCost]]<>\"\",Table_SummaryPI[[#This Row],[MeasureCost]],0)","v":0},{"$f":"IF(Table_SummaryPI[[#This Row],[kWhSavings]]<>\"\",Table_SummaryPI[[#This Row],[kWhSavings]],0)","v":0},{"$f":"IF(Table_SummaryPI[[#This Row],[DemandSavingskW]]<>\"\",Table_SummaryPI[[#This Row],[DemandSavingskW]],0)","v":0}]
[{"$f":"Table_SummaryPI[[#This Row],[Line No.]]","v":""},{"$f":"IF(Table_PrintPI[[#This Row],[Line No.]]=\"\",\"\",CONCATENATE(Table_PrintPI[[#This Row],[Line No.]],\" - \",Table_SummaryPI[[#This Row],[MeasureName]]))","v":""},{"$f":"IF(Table_SummaryPI[[#This Row],[Manufacturer]]<>\"\",CONCATENATE(Table_SummaryPI[[#This Row],[Manufacturer]],\"/\",Table_SummaryPI[[#This Row],[Model'#]]),\"\")","v":""},{"$f":"IF(Table_SummaryPI[[#This Row],[Serial'#]]<>\"\",Table_SummaryPI[[#This Row],[Serial'#]],\"\")","v":""},{"$f":"IF(Table_SummaryPI[[#This Row],[Quantity]]<>\"\",Table_SummaryPI[[#This Row],[Quantity]],\"\")","v":""},{"$f":"IF(Table_SummaryPI[[#This Row],[BaselinekWh]]<>\"\",Table_SummaryPI[[#This Row],[BaselinekWh]],\"\")","v":""},{"$f":"IF(Table_SummaryPI[[#This Row],[BaselinekW]]<>\"\",Table_SummaryPI[[#This Row],[BaselinekW]],\"\")","v":""},{"$f":"IF(Table_SummaryPI[[#This Row],[ProposedkWh]]<>\"\",Table_SummaryPI[[#This Row],[ProposedkWh]],\"\")","v":""},{"$f":"IF(Table_SummaryPI[[#This Row],[ProposedkW]]<>\"\",Table_SummaryPI[[#This Row],[ProposedkW]],\"\")","v":""},{"$f":"IF(Table_SummaryPI[[#This Row],[Notes]]<>\"\",Table_SummaryPI[[#This Row],[Notes]],\"\")","v":""},{"$f":"IF(Table_SummaryPI[[#This Row],[Incentive_Customer]]<>\"\",Table_SummaryPI[[#This Row],[Incentive_Customer]],0)","v":0},{"$f":"IF(Table_SummaryPI[[#This Row],[MeasureCost]]<>\"\",Table_SummaryPI[[#This Row],[MeasureCost]],0)","v":0},{"$f":"IF(Table_SummaryPI[[#This Row],[kWhSavings]]<>\"\",Table_SummaryPI[[#This Row],[kWhSavings]],0)","v":0},{"$f":"IF(Table_SummaryPI[[#This Row],[DemandSavingskW]]<>\"\",Table_SummaryPI[[#This Row],[DemandSavingskW]],0)","v":0}]
[{"$f":"Table_SummaryPI[[#This Row],[Line No.]]","v":""},{"$f":"IF(Table_PrintPI[[#This Row],[Line No.]]=\"\",\"\",CONCATENATE(Table_PrintPI[[#This Row],[Line No.]],\" - \",Table_SummaryPI[[#This Row],[MeasureName]]))","v":""},{"$f":"IF(Table_SummaryPI[[#This Row],[Manufacturer]]<>\"\",CONCATENATE(Table_SummaryPI[[#This Row],[Manufacturer]],\"/\",Table_SummaryPI[[#This Row],[Model'#]]),\"\")","v":""},{"$f":"IF(Table_SummaryPI[[#This Row],[Serial'#]]<>\"\",Table_SummaryPI[[#This Row],[Serial'#]],\"\")","v":""},{"$f":"IF(Table_SummaryPI[[#This Row],[Quantity]]<>\"\",Table_SummaryPI[[#This Row],[Quantity]],\"\")","v":""},{"$f":"IF(Table_SummaryPI[[#This Row],[BaselinekWh]]<>\"\",Table_SummaryPI[[#This Row],[BaselinekWh]],\"\")","v":""},{"$f":"IF(Table_SummaryPI[[#This Row],[BaselinekW]]<>\"\",Table_SummaryPI[[#This Row],[BaselinekW]],\"\")","v":""},{"$f":"IF(Table_SummaryPI[[#This Row],[ProposedkWh]]<>\"\",Table_SummaryPI[[#This Row],[ProposedkWh]],\"\")","v":""},{"$f":"IF(Table_SummaryPI[[#This Row],[ProposedkW]]<>\"\",Table_SummaryPI[[#This Row],[ProposedkW]],\"\")","v":""},{"$f":"IF(Table_SummaryPI[[#This Row],[Notes]]<>\"\",Table_SummaryPI[[#This Row],[Notes]],\"\")","v":""},{"$f":"IF(Table_SummaryPI[[#This Row],[Incentive_Customer]]<>\"\",Table_SummaryPI[[#This Row],[Incentive_Customer]],0)","v":0},{"$f":"IF(Table_SummaryPI[[#This Row],[MeasureCost]]<>\"\",Table_SummaryPI[[#This Row],[MeasureCost]],0)","v":0},{"$f":"IF(Table_SummaryPI[[#This Row],[kWhSavings]]<>\"\",Table_SummaryPI[[#This Row],[kWhSavings]],0)","v":0},{"$f":"IF(Table_SummaryPI[[#This Row],[DemandSavingskW]]<>\"\",Table_SummaryPI[[#This Row],[DemandSavingskW]],0)","v":0}]
[{"$f":"Table_SummaryPI[[#This Row],[Line No.]]","v":""},{"$f":"IF(Table_PrintPI[[#This Row],[Line No.]]=\"\",\"\",CONCATENATE(Table_PrintPI[[#This Row],[Line No.]],\" - \",Table_SummaryPI[[#This Row],[MeasureName]]))","v":""},{"$f":"IF(Table_SummaryPI[[#This Row],[Manufacturer]]<>\"\",CONCATENATE(Table_SummaryPI[[#This Row],[Manufacturer]],\"/\",Table_SummaryPI[[#This Row],[Model'#]]),\"\")","v":""},{"$f":"IF(Table_SummaryPI[[#This Row],[Serial'#]]<>\"\",Table_SummaryPI[[#This Row],[Serial'#]],\"\")","v":""},{"$f":"IF(Table_SummaryPI[[#This Row],[Quantity]]<>\"\",Table_SummaryPI[[#This Row],[Quantity]],\"\")","v":""},{"$f":"IF(Table_SummaryPI[[#This Row],[BaselinekWh]]<>\"\",Table_SummaryPI[[#This Row],[BaselinekWh]],\"\")","v":""},{"$f":"IF(Table_SummaryPI[[#This Row],[BaselinekW]]<>\"\",Table_SummaryPI[[#This Row],[BaselinekW]],\"\")","v":""},{"$f":"IF(Table_SummaryPI[[#This Row],[ProposedkWh]]<>\"\",Table_SummaryPI[[#This Row],[ProposedkWh]],\"\")","v":""},{"$f":"IF(Table_SummaryPI[[#This Row],[ProposedkW]]<>\"\",Table_SummaryPI[[#This Row],[ProposedkW]],\"\")","v":""},{"$f":"IF(Table_SummaryPI[[#This Row],[Notes]]<>\"\",Table_SummaryPI[[#This Row],[Notes]],\"\")","v":""},{"$f":"IF(Table_SummaryPI[[#This Row],[Incentive_Customer]]<>\"\",Table_SummaryPI[[#This Row],[Incentive_Customer]],0)","v":0},{"$f":"IF(Table_SummaryPI[[#This Row],[MeasureCost]]<>\"\",Table_SummaryPI[[#This Row],[MeasureCost]],0)","v":0},{"$f":"IF(Table_SummaryPI[[#This Row],[kWhSavings]]<>\"\",Table_SummaryPI[[#This Row],[kWhSavings]],0)","v":0},{"$f":"IF(Table_SummaryPI[[#This Row],[DemandSavingskW]]<>\"\",Table_SummaryPI[[#This Row],[DemandSavingskW]],0)","v":0}]
[{"$f":"Table_SummaryPI[[#This Row],[Line No.]]","v":""},{"$f":"IF(Table_PrintPI[[#This Row],[Line No.]]=\"\",\"\",CONCATENATE(Table_PrintPI[[#This Row],[Line No.]],\" - \",Table_SummaryPI[[#This Row],[MeasureName]]))","v":""},{"$f":"IF(Table_SummaryPI[[#This Row],[Manufacturer]]<>\"\",CONCATENATE(Table_SummaryPI[[#This Row],[Manufacturer]],\"/\",Table_SummaryPI[[#This Row],[Model'#]]),\"\")","v":""},{"$f":"IF(Table_SummaryPI[[#This Row],[Serial'#]]<>\"\",Table_SummaryPI[[#This Row],[Serial'#]],\"\")","v":""},{"$f":"IF(Table_SummaryPI[[#This Row],[Quantity]]<>\"\",Table_SummaryPI[[#This Row],[Quantity]],\"\")","v":""},{"$f":"IF(Table_SummaryPI[[#This Row],[BaselinekWh]]<>\"\",Table_SummaryPI[[#This Row],[BaselinekWh]],\"\")","v":""},{"$f":"IF(Table_SummaryPI[[#This Row],[BaselinekW]]<>\"\",Table_SummaryPI[[#This Row],[BaselinekW]],\"\")","v":""},{"$f":"IF(Table_SummaryPI[[#This Row],[ProposedkWh]]<>\"\",Table_SummaryPI[[#This Row],[ProposedkWh]],\"\")","v":""},{"$f":"IF(Table_SummaryPI[[#This Row],[ProposedkW]]<>\"\",Table_SummaryPI[[#This Row],[ProposedkW]],\"\")","v":""},{"$f":"IF(Table_SummaryPI[[#This Row],[Notes]]<>\"\",Table_SummaryPI[[#This Row],[Notes]],\"\")","v":""},{"$f":"IF(Table_SummaryPI[[#This Row],[Incentive_Customer]]<>\"\",Table_SummaryPI[[#This Row],[Incentive_Customer]],0)","v":0},{"$f":"IF(Table_SummaryPI[[#This Row],[MeasureCost]]<>\"\",Table_SummaryPI[[#This Row],[MeasureCost]],0)","v":0},{"$f":"IF(Table_SummaryPI[[#This Row],[kWhSavings]]<>\"\",Table_SummaryPI[[#This Row],[kWhSavings]],0)","v":0},{"$f":"IF(Table_SummaryPI[[#This Row],[DemandSavingskW]]<>\"\",Table_SummaryPI[[#This Row],[DemandSavingskW]],0)","v":0}]
[{"$f":"Table_SummaryPI[[#This Row],[Line No.]]","v":""},{"$f":"IF(Table_PrintPI[[#This Row],[Line No.]]=\"\",\"\",CONCATENATE(Table_PrintPI[[#This Row],[Line No.]],\" - \",Table_SummaryPI[[#This Row],[MeasureName]]))","v":""},{"$f":"IF(Table_SummaryPI[[#This Row],[Manufacturer]]<>\"\",CONCATENATE(Table_SummaryPI[[#This Row],[Manufacturer]],\"/\",Table_SummaryPI[[#This Row],[Model'#]]),\"\")","v":""},{"$f":"IF(Table_SummaryPI[[#This Row],[Serial'#]]<>\"\",Table_SummaryPI[[#This Row],[Serial'#]],\"\")","v":""},{"$f":"IF(Table_SummaryPI[[#This Row],[Quantity]]<>\"\",Table_SummaryPI[[#This Row],[Quantity]],\"\")","v":""},{"$f":"IF(Table_SummaryPI[[#This Row],[BaselinekWh]]<>\"\",Table_SummaryPI[[#This Row],[BaselinekWh]],\"\")","v":""},{"$f":"IF(Table_SummaryPI[[#This Row],[BaselinekW]]<>\"\",Table_SummaryPI[[#This Row],[BaselinekW]],\"\")","v":""},{"$f":"IF(Table_SummaryPI[[#This Row],[ProposedkWh]]<>\"\",Table_SummaryPI[[#This Row],[ProposedkWh]],\"\")","v":""},{"$f":"IF(Table_SummaryPI[[#This Row],[ProposedkW]]<>\"\",Table_SummaryPI[[#This Row],[ProposedkW]],\"\")","v":""},{"$f":"IF(Table_SummaryPI[[#This Row],[Notes]]<>\"\",Table_SummaryPI[[#This Row],[Notes]],\"\")","v":""},{"$f":"IF(Table_SummaryPI[[#This Row],[Incentive_Customer]]<>\"\",Table_SummaryPI[[#This Row],[Incentive_Customer]],0)","v":0},{"$f":"IF(Table_SummaryPI[[#This Row],[MeasureCost]]<>\"\",Table_SummaryPI[[#This Row],[MeasureCost]],0)","v":0},{"$f":"IF(Table_SummaryPI[[#This Row],[kWhSavings]]<>\"\",Table_SummaryPI[[#This Row],[kWhSavings]],0)","v":0},{"$f":"IF(Table_SummaryPI[[#This Row],[DemandSavingskW]]<>\"\",Table_SummaryPI[[#This Row],[DemandSavingskW]],0)","v":0}]
[{"$f":"Table_SummaryPI[[#This Row],[Line No.]]","v":""},{"$f":"IF(Table_PrintPI[[#This Row],[Line No.]]=\"\",\"\",CONCATENATE(Table_PrintPI[[#This Row],[Line No.]],\" - \",Table_SummaryPI[[#This Row],[MeasureName]]))","v":""},{"$f":"IF(Table_SummaryPI[[#This Row],[Manufacturer]]<>\"\",CONCATENATE(Table_SummaryPI[[#This Row],[Manufacturer]],\"/\",Table_SummaryPI[[#This Row],[Model'#]]),\"\")","v":""},{"$f":"IF(Table_SummaryPI[[#This Row],[Serial'#]]<>\"\",Table_SummaryPI[[#This Row],[Serial'#]],\"\")","v":""},{"$f":"IF(Table_SummaryPI[[#This Row],[Quantity]]<>\"\",Table_SummaryPI[[#This Row],[Quantity]],\"\")","v":""},{"$f":"IF(Table_SummaryPI[[#This Row],[BaselinekWh]]<>\"\",Table_SummaryPI[[#This Row],[BaselinekWh]],\"\")","v":""},{"$f":"IF(Table_SummaryPI[[#This Row],[BaselinekW]]<>\"\",Table_SummaryPI[[#This Row],[BaselinekW]],\"\")","v":""},{"$f":"IF(Table_SummaryPI[[#This Row],[ProposedkWh]]<>\"\",Table_SummaryPI[[#This Row],[ProposedkWh]],\"\")","v":""},{"$f":"IF(Table_SummaryPI[[#This Row],[ProposedkW]]<>\"\",Table_SummaryPI[[#This Row],[ProposedkW]],\"\")","v":""},{"$f":"IF(Table_SummaryPI[[#This Row],[Notes]]<>\"\",Table_SummaryPI[[#This Row],[Notes]],\"\")","v":""},{"$f":"IF(Table_SummaryPI[[#This Row],[Incentive_Customer]]<>\"\",Table_SummaryPI[[#This Row],[Incentive_Customer]],0)","v":0},{"$f":"IF(Table_SummaryPI[[#This Row],[MeasureCost]]<>\"\",Table_SummaryPI[[#This Row],[MeasureCost]],0)","v":0},{"$f":"IF(Table_SummaryPI[[#This Row],[kWhSavings]]<>\"\",Table_SummaryPI[[#This Row],[kWhSavings]],0)","v":0},{"$f":"IF(Table_SummaryPI[[#This Row],[DemandSavingskW]]<>\"\",Table_SummaryPI[[#This Row],[DemandSavingskW]],0)","v":0}]
[{"$f":"Table_SummaryPI[[#This Row],[Line No.]]","v":""},{"$f":"IF(Table_PrintPI[[#This Row],[Line No.]]=\"\",\"\",CONCATENATE(Table_PrintPI[[#This Row],[Line No.]],\" - \",Table_SummaryPI[[#This Row],[MeasureName]]))","v":""},{"$f":"IF(Table_SummaryPI[[#This Row],[Manufacturer]]<>\"\",CONCATENATE(Table_SummaryPI[[#This Row],[Manufacturer]],\"/\",Table_SummaryPI[[#This Row],[Model'#]]),\"\")","v":""},{"$f":"IF(Table_SummaryPI[[#This Row],[Serial'#]]<>\"\",Table_SummaryPI[[#This Row],[Serial'#]],\"\")","v":""},{"$f":"IF(Table_SummaryPI[[#This Row],[Quantity]]<>\"\",Table_SummaryPI[[#This Row],[Quantity]],\"\")","v":""},{"$f":"IF(Table_SummaryPI[[#This Row],[BaselinekWh]]<>\"\",Table_SummaryPI[[#This Row],[BaselinekWh]],\"\")","v":""},{"$f":"IF(Table_SummaryPI[[#This Row],[BaselinekW]]<>\"\",Table_SummaryPI[[#This Row],[BaselinekW]],\"\")","v":""},{"$f":"IF(Table_SummaryPI[[#This Row],[ProposedkWh]]<>\"\",Table_SummaryPI[[#This Row],[ProposedkWh]],\"\")","v":""},{"$f":"IF(Table_SummaryPI[[#This Row],[ProposedkW]]<>\"\",Table_SummaryPI[[#This Row],[ProposedkW]],\"\")","v":""},{"$f":"IF(Table_SummaryPI[[#This Row],[Notes]]<>\"\",Table_SummaryPI[[#This Row],[Notes]],\"\")","v":""},{"$f":"IF(Table_SummaryPI[[#This Row],[Incentive_Customer]]<>\"\",Table_SummaryPI[[#This Row],[Incentive_Customer]],0)","v":0},{"$f":"IF(Table_SummaryPI[[#This Row],[MeasureCost]]<>\"\",Table_SummaryPI[[#This Row],[MeasureCost]],0)","v":0},{"$f":"IF(Table_SummaryPI[[#This Row],[kWhSavings]]<>\"\",Table_SummaryPI[[#This Row],[kWhSavings]],0)","v":0},{"$f":"IF(Table_SummaryPI[[#This Row],[DemandSavingskW]]<>\"\",Table_SummaryPI[[#This Row],[DemandSavingskW]],0)","v":0}]
[{"$f":"Table_SummaryPI[[#This Row],[Line No.]]","v":""},{"$f":"IF(Table_PrintPI[[#This Row],[Line No.]]=\"\",\"\",CONCATENATE(Table_PrintPI[[#This Row],[Line No.]],\" - \",Table_SummaryPI[[#This Row],[MeasureName]]))","v":""},{"$f":"IF(Table_SummaryPI[[#This Row],[Manufacturer]]<>\"\",CONCATENATE(Table_SummaryPI[[#This Row],[Manufacturer]],\"/\",Table_SummaryPI[[#This Row],[Model'#]]),\"\")","v":""},{"$f":"IF(Table_SummaryPI[[#This Row],[Serial'#]]<>\"\",Table_SummaryPI[[#This Row],[Serial'#]],\"\")","v":""},{"$f":"IF(Table_SummaryPI[[#This Row],[Quantity]]<>\"\",Table_SummaryPI[[#This Row],[Quantity]],\"\")","v":""},{"$f":"IF(Table_SummaryPI[[#This Row],[BaselinekWh]]<>\"\",Table_SummaryPI[[#This Row],[BaselinekWh]],\"\")","v":""},{"$f":"IF(Table_SummaryPI[[#This Row],[BaselinekW]]<>\"\",Table_SummaryPI[[#This Row],[BaselinekW]],\"\")","v":""},{"$f":"IF(Table_SummaryPI[[#This Row],[ProposedkWh]]<>\"\",Table_SummaryPI[[#This Row],[ProposedkWh]],\"\")","v":""},{"$f":"IF(Table_SummaryPI[[#This Row],[ProposedkW]]<>\"\",Table_SummaryPI[[#This Row],[ProposedkW]],\"\")","v":""},{"$f":"IF(Table_SummaryPI[[#This Row],[Notes]]<>\"\",Table_SummaryPI[[#This Row],[Notes]],\"\")","v":""},{"$f":"IF(Table_SummaryPI[[#This Row],[Incentive_Customer]]<>\"\",Table_SummaryPI[[#This Row],[Incentive_Customer]],0)","v":0},{"$f":"IF(Table_SummaryPI[[#This Row],[MeasureCost]]<>\"\",Table_SummaryPI[[#This Row],[MeasureCost]],0)","v":0},{"$f":"IF(Table_SummaryPI[[#This Row],[kWhSavings]]<>\"\",Table_SummaryPI[[#This Row],[kWhSavings]],0)","v":0},{"$f":"IF(Table_SummaryPI[[#This Row],[DemandSavingskW]]<>\"\",Table_SummaryPI[[#This Row],[DemandSavingskW]],0)","v":0}]
[{"$f":"Table_SummaryPI[[#This Row],[Line No.]]","v":""},{"$f":"IF(Table_PrintPI[[#This Row],[Line No.]]=\"\",\"\",CONCATENATE(Table_PrintPI[[#This Row],[Line No.]],\" - \",Table_SummaryPI[[#This Row],[MeasureName]]))","v":""},{"$f":"IF(Table_SummaryPI[[#This Row],[Manufacturer]]<>\"\",CONCATENATE(Table_SummaryPI[[#This Row],[Manufacturer]],\"/\",Table_SummaryPI[[#This Row],[Model'#]]),\"\")","v":""},{"$f":"IF(Table_SummaryPI[[#This Row],[Serial'#]]<>\"\",Table_SummaryPI[[#This Row],[Serial'#]],\"\")","v":""},{"$f":"IF(Table_SummaryPI[[#This Row],[Quantity]]<>\"\",Table_SummaryPI[[#This Row],[Quantity]],\"\")","v":""},{"$f":"IF(Table_SummaryPI[[#This Row],[BaselinekWh]]<>\"\",Table_SummaryPI[[#This Row],[BaselinekWh]],\"\")","v":""},{"$f":"IF(Table_SummaryPI[[#This Row],[BaselinekW]]<>\"\",Table_SummaryPI[[#This Row],[BaselinekW]],\"\")","v":""},{"$f":"IF(Table_SummaryPI[[#This Row],[ProposedkWh]]<>\"\",Table_SummaryPI[[#This Row],[ProposedkWh]],\"\")","v":""},{"$f":"IF(Table_SummaryPI[[#This Row],[ProposedkW]]<>\"\",Table_SummaryPI[[#This Row],[ProposedkW]],\"\")","v":""},{"$f":"IF(Table_SummaryPI[[#This Row],[Notes]]<>\"\",Table_SummaryPI[[#This Row],[Notes]],\"\")","v":""},{"$f":"IF(Table_SummaryPI[[#This Row],[Incentive_Customer]]<>\"\",Table_SummaryPI[[#This Row],[Incentive_Customer]],0)","v":0},{"$f":"IF(Table_SummaryPI[[#This Row],[MeasureCost]]<>\"\",Table_SummaryPI[[#This Row],[MeasureCost]],0)","v":0},{"$f":"IF(Table_SummaryPI[[#This Row],[kWhSavings]]<>\"\",Table_SummaryPI[[#This Row],[kWhSavings]],0)","v":0},{"$f":"IF(Table_SummaryPI[[#This Row],[DemandSavingskW]]<>\"\",Table_SummaryPI[[#This Row],[DemandSavingskW]],0)","v":0}]
[{"$f":"Table_SummaryPI[[#This Row],[Line No.]]","v":""},{"$f":"IF(Table_PrintPI[[#This Row],[Line No.]]=\"\",\"\",CONCATENATE(Table_PrintPI[[#This Row],[Line No.]],\" - \",Table_SummaryPI[[#This Row],[MeasureName]]))","v":""},{"$f":"IF(Table_SummaryPI[[#This Row],[Manufacturer]]<>\"\",CONCATENATE(Table_SummaryPI[[#This Row],[Manufacturer]],\"/\",Table_SummaryPI[[#This Row],[Model'#]]),\"\")","v":""},{"$f":"IF(Table_SummaryPI[[#This Row],[Serial'#]]<>\"\",Table_SummaryPI[[#This Row],[Serial'#]],\"\")","v":""},{"$f":"IF(Table_SummaryPI[[#This Row],[Quantity]]<>\"\",Table_SummaryPI[[#This Row],[Quantity]],\"\")","v":""},{"$f":"IF(Table_SummaryPI[[#This Row],[BaselinekWh]]<>\"\",Table_SummaryPI[[#This Row],[BaselinekWh]],\"\")","v":""},{"$f":"IF(Table_SummaryPI[[#This Row],[BaselinekW]]<>\"\",Table_SummaryPI[[#This Row],[BaselinekW]],\"\")","v":""},{"$f":"IF(Table_SummaryPI[[#This Row],[ProposedkWh]]<>\"\",Table_SummaryPI[[#This Row],[ProposedkWh]],\"\")","v":""},{"$f":"IF(Table_SummaryPI[[#This Row],[ProposedkW]]<>\"\",Table_SummaryPI[[#This Row],[ProposedkW]],\"\")","v":""},{"$f":"IF(Table_SummaryPI[[#This Row],[Notes]]<>\"\",Table_SummaryPI[[#This Row],[Notes]],\"\")","v":""},{"$f":"IF(Table_SummaryPI[[#This Row],[Incentive_Customer]]<>\"\",Table_SummaryPI[[#This Row],[Incentive_Customer]],0)","v":0},{"$f":"IF(Table_SummaryPI[[#This Row],[MeasureCost]]<>\"\",Table_SummaryPI[[#This Row],[MeasureCost]],0)","v":0},{"$f":"IF(Table_SummaryPI[[#This Row],[kWhSavings]]<>\"\",Table_SummaryPI[[#This Row],[kWhSavings]],0)","v":0},{"$f":"IF(Table_SummaryPI[[#This Row],[DemandSavingskW]]<>\"\",Table_SummaryPI[[#This Row],[DemandSavingskW]],0)","v":0}]
[{"$f":"Table_SummaryPI[[#This Row],[Line No.]]","v":""},{"$f":"IF(Table_PrintPI[[#This Row],[Line No.]]=\"\",\"\",CONCATENATE(Table_PrintPI[[#This Row],[Line No.]],\" - \",Table_SummaryPI[[#This Row],[MeasureName]]))","v":""},{"$f":"IF(Table_SummaryPI[[#This Row],[Manufacturer]]<>\"\",CONCATENATE(Table_SummaryPI[[#This Row],[Manufacturer]],\"/\",Table_SummaryPI[[#This Row],[Model'#]]),\"\")","v":""},{"$f":"IF(Table_SummaryPI[[#This Row],[Serial'#]]<>\"\",Table_SummaryPI[[#This Row],[Serial'#]],\"\")","v":""},{"$f":"IF(Table_SummaryPI[[#This Row],[Quantity]]<>\"\",Table_SummaryPI[[#This Row],[Quantity]],\"\")","v":""},{"$f":"IF(Table_SummaryPI[[#This Row],[BaselinekWh]]<>\"\",Table_SummaryPI[[#This Row],[BaselinekWh]],\"\")","v":""},{"$f":"IF(Table_SummaryPI[[#This Row],[BaselinekW]]<>\"\",Table_SummaryPI[[#This Row],[BaselinekW]],\"\")","v":""},{"$f":"IF(Table_SummaryPI[[#This Row],[ProposedkWh]]<>\"\",Table_SummaryPI[[#This Row],[ProposedkWh]],\"\")","v":""},{"$f":"IF(Table_SummaryPI[[#This Row],[ProposedkW]]<>\"\",Table_SummaryPI[[#This Row],[ProposedkW]],\"\")","v":""},{"$f":"IF(Table_SummaryPI[[#This Row],[Notes]]<>\"\",Table_SummaryPI[[#This Row],[Notes]],\"\")","v":""},{"$f":"IF(Table_SummaryPI[[#This Row],[Incentive_Customer]]<>\"\",Table_SummaryPI[[#This Row],[Incentive_Customer]],0)","v":0},{"$f":"IF(Table_SummaryPI[[#This Row],[MeasureCost]]<>\"\",Table_SummaryPI[[#This Row],[MeasureCost]],0)","v":0},{"$f":"IF(Table_SummaryPI[[#This Row],[kWhSavings]]<>\"\",Table_SummaryPI[[#This Row],[kWhSavings]],0)","v":0},{"$f":"IF(Table_SummaryPI[[#This Row],[DemandSavingskW]]<>\"\",Table_SummaryPI[[#This Row],[DemandSavingskW]],0)","v":0}]
[{"$f":"Table_SummaryPI[[#This Row],[Line No.]]","v":""},{"$f":"IF(Table_PrintPI[[#This Row],[Line No.]]=\"\",\"\",CONCATENATE(Table_PrintPI[[#This Row],[Line No.]],\" - \",Table_SummaryPI[[#This Row],[MeasureName]]))","v":""},{"$f":"IF(Table_SummaryPI[[#This Row],[Manufacturer]]<>\"\",CONCATENATE(Table_SummaryPI[[#This Row],[Manufacturer]],\"/\",Table_SummaryPI[[#This Row],[Model'#]]),\"\")","v":""},{"$f":"IF(Table_SummaryPI[[#This Row],[Serial'#]]<>\"\",Table_SummaryPI[[#This Row],[Serial'#]],\"\")","v":""},{"$f":"IF(Table_SummaryPI[[#This Row],[Quantity]]<>\"\",Table_SummaryPI[[#This Row],[Quantity]],\"\")","v":""},{"$f":"IF(Table_SummaryPI[[#This Row],[BaselinekWh]]<>\"\",Table_SummaryPI[[#This Row],[BaselinekWh]],\"\")","v":""},{"$f":"IF(Table_SummaryPI[[#This Row],[BaselinekW]]<>\"\",Table_SummaryPI[[#This Row],[BaselinekW]],\"\")","v":""},{"$f":"IF(Table_SummaryPI[[#This Row],[ProposedkWh]]<>\"\",Table_SummaryPI[[#This Row],[ProposedkWh]],\"\")","v":""},{"$f":"IF(Table_SummaryPI[[#This Row],[ProposedkW]]<>\"\",Table_SummaryPI[[#This Row],[ProposedkW]],\"\")","v":""},{"$f":"IF(Table_SummaryPI[[#This Row],[Notes]]<>\"\",Table_SummaryPI[[#This Row],[Notes]],\"\")","v":""},{"$f":"IF(Table_SummaryPI[[#This Row],[Incentive_Customer]]<>\"\",Table_SummaryPI[[#This Row],[Incentive_Customer]],0)","v":0},{"$f":"IF(Table_SummaryPI[[#This Row],[MeasureCost]]<>\"\",Table_SummaryPI[[#This Row],[MeasureCost]],0)","v":0},{"$f":"IF(Table_SummaryPI[[#This Row],[kWhSavings]]<>\"\",Table_SummaryPI[[#This Row],[kWhSavings]],0)","v":0},{"$f":"IF(Table_SummaryPI[[#This Row],[DemandSavingskW]]<>\"\",Table_SummaryPI[[#This Row],[DemandSavingskW]],0)","v":0}]
[{"$f":"Table_SummaryPI[[#This Row],[Line No.]]","v":""},{"$f":"IF(Table_PrintPI[[#This Row],[Line No.]]=\"\",\"\",CONCATENATE(Table_PrintPI[[#This Row],[Line No.]],\" - \",Table_SummaryPI[[#This Row],[MeasureName]]))","v":""},{"$f":"IF(Table_SummaryPI[[#This Row],[Manufacturer]]<>\"\",CONCATENATE(Table_SummaryPI[[#This Row],[Manufacturer]],\"/\",Table_SummaryPI[[#This Row],[Model'#]]),\"\")","v":""},{"$f":"IF(Table_SummaryPI[[#This Row],[Serial'#]]<>\"\",Table_SummaryPI[[#This Row],[Serial'#]],\"\")","v":""},{"$f":"IF(Table_SummaryPI[[#This Row],[Quantity]]<>\"\",Table_SummaryPI[[#This Row],[Quantity]],\"\")","v":""},{"$f":"IF(Table_SummaryPI[[#This Row],[BaselinekWh]]<>\"\",Table_SummaryPI[[#This Row],[BaselinekWh]],\"\")","v":""},{"$f":"IF(Table_SummaryPI[[#This Row],[BaselinekW]]<>\"\",Table_SummaryPI[[#This Row],[BaselinekW]],\"\")","v":""},{"$f":"IF(Table_SummaryPI[[#This Row],[ProposedkWh]]<>\"\",Table_SummaryPI[[#This Row],[ProposedkWh]],\"\")","v":""},{"$f":"IF(Table_SummaryPI[[#This Row],[ProposedkW]]<>\"\",Table_SummaryPI[[#This Row],[ProposedkW]],\"\")","v":""},{"$f":"IF(Table_SummaryPI[[#This Row],[Notes]]<>\"\",Table_SummaryPI[[#This Row],[Notes]],\"\")","v":""},{"$f":"IF(Table_SummaryPI[[#This Row],[Incentive_Customer]]<>\"\",Table_SummaryPI[[#This Row],[Incentive_Customer]],0)","v":0},{"$f":"IF(Table_SummaryPI[[#This Row],[MeasureCost]]<>\"\",Table_SummaryPI[[#This Row],[MeasureCost]],0)","v":0},{"$f":"IF(Table_SummaryPI[[#This Row],[kWhSavings]]<>\"\",Table_SummaryPI[[#This Row],[kWhSavings]],0)","v":0},{"$f":"IF(Table_SummaryPI[[#This Row],[DemandSavingskW]]<>\"\",Table_SummaryPI[[#This Row],[DemandSavingskW]],0)","v":0}]
[{"$f":"Table_SummaryPI[[#This Row],[Line No.]]","v":""},{"$f":"IF(Table_PrintPI[[#This Row],[Line No.]]=\"\",\"\",CONCATENATE(Table_PrintPI[[#This Row],[Line No.]],\" - \",Table_SummaryPI[[#This Row],[MeasureName]]))","v":""},{"$f":"IF(Table_SummaryPI[[#This Row],[Manufacturer]]<>\"\",CONCATENATE(Table_SummaryPI[[#This Row],[Manufacturer]],\"/\",Table_SummaryPI[[#This Row],[Model'#]]),\"\")","v":""},{"$f":"IF(Table_SummaryPI[[#This Row],[Serial'#]]<>\"\",Table_SummaryPI[[#This Row],[Serial'#]],\"\")","v":""},{"$f":"IF(Table_SummaryPI[[#This Row],[Quantity]]<>\"\",Table_SummaryPI[[#This Row],[Quantity]],\"\")","v":""},{"$f":"IF(Table_SummaryPI[[#This Row],[BaselinekWh]]<>\"\",Table_SummaryPI[[#This Row],[BaselinekWh]],\"\")","v":""},{"$f":"IF(Table_SummaryPI[[#This Row],[BaselinekW]]<>\"\",Table_SummaryPI[[#This Row],[BaselinekW]],\"\")","v":""},{"$f":"IF(Table_SummaryPI[[#This Row],[ProposedkWh]]<>\"\",Table_SummaryPI[[#This Row],[ProposedkWh]],\"\")","v":""},{"$f":"IF(Table_SummaryPI[[#This Row],[ProposedkW]]<>\"\",Table_SummaryPI[[#This Row],[ProposedkW]],\"\")","v":""},{"$f":"IF(Table_SummaryPI[[#This Row],[Notes]]<>\"\",Table_SummaryPI[[#This Row],[Notes]],\"\")","v":""},{"$f":"IF(Table_SummaryPI[[#This Row],[Incentive_Customer]]<>\"\",Table_SummaryPI[[#This Row],[Incentive_Customer]],0)","v":0},{"$f":"IF(Table_SummaryPI[[#This Row],[MeasureCost]]<>\"\",Table_SummaryPI[[#This Row],[MeasureCost]],0)","v":0},{"$f":"IF(Table_SummaryPI[[#This Row],[kWhSavings]]<>\"\",Table_SummaryPI[[#This Row],[kWhSavings]],0)","v":0},{"$f":"IF(Table_SummaryPI[[#This Row],[DemandSavingskW]]<>\"\",Table_SummaryPI[[#This Row],[DemandSavingskW]],0)","v":0}]
[{"$f":"Table_SummaryPI[[#This Row],[Line No.]]","v":""},{"$f":"IF(Table_PrintPI[[#This Row],[Line No.]]=\"\",\"\",CONCATENATE(Table_PrintPI[[#This Row],[Line No.]],\" - \",Table_SummaryPI[[#This Row],[MeasureName]]))","v":""},{"$f":"IF(Table_SummaryPI[[#This Row],[Manufacturer]]<>\"\",CONCATENATE(Table_SummaryPI[[#This Row],[Manufacturer]],\"/\",Table_SummaryPI[[#This Row],[Model'#]]),\"\")","v":""},{"$f":"IF(Table_SummaryPI[[#This Row],[Serial'#]]<>\"\",Table_SummaryPI[[#This Row],[Serial'#]],\"\")","v":""},{"$f":"IF(Table_SummaryPI[[#This Row],[Quantity]]<>\"\",Table_SummaryPI[[#This Row],[Quantity]],\"\")","v":""},{"$f":"IF(Table_SummaryPI[[#This Row],[BaselinekWh]]<>\"\",Table_SummaryPI[[#This Row],[BaselinekWh]],\"\")","v":""},{"$f":"IF(Table_SummaryPI[[#This Row],[BaselinekW]]<>\"\",Table_SummaryPI[[#This Row],[BaselinekW]],\"\")","v":""},{"$f":"IF(Table_SummaryPI[[#This Row],[ProposedkWh]]<>\"\",Table_SummaryPI[[#This Row],[ProposedkWh]],\"\")","v":""},{"$f":"IF(Table_SummaryPI[[#This Row],[ProposedkW]]<>\"\",Table_SummaryPI[[#This Row],[ProposedkW]],\"\")","v":""},{"$f":"IF(Table_SummaryPI[[#This Row],[Notes]]<>\"\",Table_SummaryPI[[#This Row],[Notes]],\"\")","v":""},{"$f":"IF(Table_SummaryPI[[#This Row],[Incentive_Customer]]<>\"\",Table_SummaryPI[[#This Row],[Incentive_Customer]],0)","v":0},{"$f":"IF(Table_SummaryPI[[#This Row],[MeasureCost]]<>\"\",Table_SummaryPI[[#This Row],[MeasureCost]],0)","v":0},{"$f":"IF(Table_SummaryPI[[#This Row],[kWhSavings]]<>\"\",Table_SummaryPI[[#This Row],[kWhSavings]],0)","v":0},{"$f":"IF(Table_SummaryPI[[#This Row],[DemandSavingskW]]<>\"\",Table_SummaryPI[[#This Row],[DemandSavingskW]],0)","v":0}]
[{"$f":"Table_SummaryPI[[#This Row],[Line No.]]","v":""},{"$f":"IF(Table_PrintPI[[#This Row],[Line No.]]=\"\",\"\",CONCATENATE(Table_PrintPI[[#This Row],[Line No.]],\" - \",Table_SummaryPI[[#This Row],[MeasureName]]))","v":""},{"$f":"IF(Table_SummaryPI[[#This Row],[Manufacturer]]<>\"\",CONCATENATE(Table_SummaryPI[[#This Row],[Manufacturer]],\"/\",Table_SummaryPI[[#This Row],[Model'#]]),\"\")","v":""},{"$f":"IF(Table_SummaryPI[[#This Row],[Serial'#]]<>\"\",Table_SummaryPI[[#This Row],[Serial'#]],\"\")","v":""},{"$f":"IF(Table_SummaryPI[[#This Row],[Quantity]]<>\"\",Table_SummaryPI[[#This Row],[Quantity]],\"\")","v":""},{"$f":"IF(Table_SummaryPI[[#This Row],[BaselinekWh]]<>\"\",Table_SummaryPI[[#This Row],[BaselinekWh]],\"\")","v":""},{"$f":"IF(Table_SummaryPI[[#This Row],[BaselinekW]]<>\"\",Table_SummaryPI[[#This Row],[BaselinekW]],\"\")","v":""},{"$f":"IF(Table_SummaryPI[[#This Row],[ProposedkWh]]<>\"\",Table_SummaryPI[[#This Row],[ProposedkWh]],\"\")","v":""},{"$f":"IF(Table_SummaryPI[[#This Row],[ProposedkW]]<>\"\",Table_SummaryPI[[#This Row],[ProposedkW]],\"\")","v":""},{"$f":"IF(Table_SummaryPI[[#This Row],[Notes]]<>\"\",Table_SummaryPI[[#This Row],[Notes]],\"\")","v":""},{"$f":"IF(Table_SummaryPI[[#This Row],[Incentive_Customer]]<>\"\",Table_SummaryPI[[#This Row],[Incentive_Customer]],0)","v":0},{"$f":"IF(Table_SummaryPI[[#This Row],[MeasureCost]]<>\"\",Table_SummaryPI[[#This Row],[MeasureCost]],0)","v":0},{"$f":"IF(Table_SummaryPI[[#This Row],[kWhSavings]]<>\"\",Table_SummaryPI[[#This Row],[kWhSavings]],0)","v":0},{"$f":"IF(Table_SummaryPI[[#This Row],[DemandSavingskW]]<>\"\",Table_SummaryPI[[#This Row],[DemandSavingskW]],0)","v":0}]
[{"$f":"Table_SummaryPI[[#This Row],[Line No.]]","v":""},{"$f":"IF(Table_PrintPI[[#This Row],[Line No.]]=\"\",\"\",CONCATENATE(Table_PrintPI[[#This Row],[Line No.]],\" - \",Table_SummaryPI[[#This Row],[MeasureName]]))","v":""},{"$f":"IF(Table_SummaryPI[[#This Row],[Manufacturer]]<>\"\",CONCATENATE(Table_SummaryPI[[#This Row],[Manufacturer]],\"/\",Table_SummaryPI[[#This Row],[Model'#]]),\"\")","v":""},{"$f":"IF(Table_SummaryPI[[#This Row],[Serial'#]]<>\"\",Table_SummaryPI[[#This Row],[Serial'#]],\"\")","v":""},{"$f":"IF(Table_SummaryPI[[#This Row],[Quantity]]<>\"\",Table_SummaryPI[[#This Row],[Quantity]],\"\")","v":""},{"$f":"IF(Table_SummaryPI[[#This Row],[BaselinekWh]]<>\"\",Table_SummaryPI[[#This Row],[BaselinekWh]],\"\")","v":""},{"$f":"IF(Table_SummaryPI[[#This Row],[BaselinekW]]<>\"\",Table_SummaryPI[[#This Row],[BaselinekW]],\"\")","v":""},{"$f":"IF(Table_SummaryPI[[#This Row],[ProposedkWh]]<>\"\",Table_SummaryPI[[#This Row],[ProposedkWh]],\"\")","v":""},{"$f":"IF(Table_SummaryPI[[#This Row],[ProposedkW]]<>\"\",Table_SummaryPI[[#This Row],[ProposedkW]],\"\")","v":""},{"$f":"IF(Table_SummaryPI[[#This Row],[Notes]]<>\"\",Table_SummaryPI[[#This Row],[Notes]],\"\")","v":""},{"$f":"IF(Table_SummaryPI[[#This Row],[Incentive_Customer]]<>\"\",Table_SummaryPI[[#This Row],[Incentive_Customer]],0)","v":0},{"$f":"IF(Table_SummaryPI[[#This Row],[MeasureCost]]<>\"\",Table_SummaryPI[[#This Row],[MeasureCost]],0)","v":0},{"$f":"IF(Table_SummaryPI[[#This Row],[kWhSavings]]<>\"\",Table_SummaryPI[[#This Row],[kWhSavings]],0)","v":0},{"$f":"IF(Table_SummaryPI[[#This Row],[DemandSavingskW]]<>\"\",Table_SummaryPI[[#This Row],[DemandSavingskW]],0)","v":0}]
[{"$f":"Table_SummaryPI[[#This Row],[Line No.]]","v":""},{"$f":"IF(Table_PrintPI[[#This Row],[Line No.]]=\"\",\"\",CONCATENATE(Table_PrintPI[[#This Row],[Line No.]],\" - \",Table_SummaryPI[[#This Row],[MeasureName]]))","v":""},{"$f":"IF(Table_SummaryPI[[#This Row],[Manufacturer]]<>\"\",CONCATENATE(Table_SummaryPI[[#This Row],[Manufacturer]],\"/\",Table_SummaryPI[[#This Row],[Model'#]]),\"\")","v":""},{"$f":"IF(Table_SummaryPI[[#This Row],[Serial'#]]<>\"\",Table_SummaryPI[[#This Row],[Serial'#]],\"\")","v":""},{"$f":"IF(Table_SummaryPI[[#This Row],[Quantity]]<>\"\",Table_SummaryPI[[#This Row],[Quantity]],\"\")","v":""},{"$f":"IF(Table_SummaryPI[[#This Row],[BaselinekWh]]<>\"\",Table_SummaryPI[[#This Row],[BaselinekWh]],\"\")","v":""},{"$f":"IF(Table_SummaryPI[[#This Row],[BaselinekW]]<>\"\",Table_SummaryPI[[#This Row],[BaselinekW]],\"\")","v":""},{"$f":"IF(Table_SummaryPI[[#This Row],[ProposedkWh]]<>\"\",Table_SummaryPI[[#This Row],[ProposedkWh]],\"\")","v":""},{"$f":"IF(Table_SummaryPI[[#This Row],[ProposedkW]]<>\"\",Table_SummaryPI[[#This Row],[ProposedkW]],\"\")","v":""},{"$f":"IF(Table_SummaryPI[[#This Row],[Notes]]<>\"\",Table_SummaryPI[[#This Row],[Notes]],\"\")","v":""},{"$f":"IF(Table_SummaryPI[[#This Row],[Incentive_Customer]]<>\"\",Table_SummaryPI[[#This Row],[Incentive_Customer]],0)","v":0},{"$f":"IF(Table_SummaryPI[[#This Row],[MeasureCost]]<>\"\",Table_SummaryPI[[#This Row],[MeasureCost]],0)","v":0},{"$f":"IF(Table_SummaryPI[[#This Row],[kWhSavings]]<>\"\",Table_SummaryPI[[#This Row],[kWhSavings]],0)","v":0},{"$f":"IF(Table_SummaryPI[[#This Row],[DemandSavingskW]]<>\"\",Table_SummaryPI[[#This Row],[DemandSavingskW]],0)","v":0}]
[{"$f":"Table_SummaryPI[[#This Row],[Line No.]]","v":""},{"$f":"IF(Table_PrintPI[[#This Row],[Line No.]]=\"\",\"\",CONCATENATE(Table_PrintPI[[#This Row],[Line No.]],\" - \",Table_SummaryPI[[#This Row],[MeasureName]]))","v":""},{"$f":"IF(Table_SummaryPI[[#This Row],[Manufacturer]]<>\"\",CONCATENATE(Table_SummaryPI[[#This Row],[Manufacturer]],\"/\",Table_SummaryPI[[#This Row],[Model'#]]),\"\")","v":""},{"$f":"IF(Table_SummaryPI[[#This Row],[Serial'#]]<>\"\",Table_SummaryPI[[#This Row],[Serial'#]],\"\")","v":""},{"$f":"IF(Table_SummaryPI[[#This Row],[Quantity]]<>\"\",Table_SummaryPI[[#This Row],[Quantity]],\"\")","v":""},{"$f":"IF(Table_SummaryPI[[#This Row],[BaselinekWh]]<>\"\",Table_SummaryPI[[#This Row],[BaselinekWh]],\"\")","v":""},{"$f":"IF(Table_SummaryPI[[#This Row],[BaselinekW]]<>\"\",Table_SummaryPI[[#This Row],[BaselinekW]],\"\")","v":""},{"$f":"IF(Table_SummaryPI[[#This Row],[ProposedkWh]]<>\"\",Table_SummaryPI[[#This Row],[ProposedkWh]],\"\")","v":""},{"$f":"IF(Table_SummaryPI[[#This Row],[ProposedkW]]<>\"\",Table_SummaryPI[[#This Row],[ProposedkW]],\"\")","v":""},{"$f":"IF(Table_SummaryPI[[#This Row],[Notes]]<>\"\",Table_SummaryPI[[#This Row],[Notes]],\"\")","v":""},{"$f":"IF(Table_SummaryPI[[#This Row],[Incentive_Customer]]<>\"\",Table_SummaryPI[[#This Row],[Incentive_Customer]],0)","v":0},{"$f":"IF(Table_SummaryPI[[#This Row],[MeasureCost]]<>\"\",Table_SummaryPI[[#This Row],[MeasureCost]],0)","v":0},{"$f":"IF(Table_SummaryPI[[#This Row],[kWhSavings]]<>\"\",Table_SummaryPI[[#This Row],[kWhSavings]],0)","v":0},{"$f":"IF(Table_SummaryPI[[#This Row],[DemandSavingskW]]<>\"\",Table_SummaryPI[[#This Row],[DemandSavingskW]],0)","v":0}]
[{"$f":"Table_SummaryPI[[#This Row],[Line No.]]","v":""},{"$f":"IF(Table_PrintPI[[#This Row],[Line No.]]=\"\",\"\",CONCATENATE(Table_PrintPI[[#This Row],[Line No.]],\" - \",Table_SummaryPI[[#This Row],[MeasureName]]))","v":""},{"$f":"IF(Table_SummaryPI[[#This Row],[Manufacturer]]<>\"\",CONCATENATE(Table_SummaryPI[[#This Row],[Manufacturer]],\"/\",Table_SummaryPI[[#This Row],[Model'#]]),\"\")","v":""},{"$f":"IF(Table_SummaryPI[[#This Row],[Serial'#]]<>\"\",Table_SummaryPI[[#This Row],[Serial'#]],\"\")","v":""},{"$f":"IF(Table_SummaryPI[[#This Row],[Quantity]]<>\"\",Table_SummaryPI[[#This Row],[Quantity]],\"\")","v":""},{"$f":"IF(Table_SummaryPI[[#This Row],[BaselinekWh]]<>\"\",Table_SummaryPI[[#This Row],[BaselinekWh]],\"\")","v":""},{"$f":"IF(Table_SummaryPI[[#This Row],[BaselinekW]]<>\"\",Table_SummaryPI[[#This Row],[BaselinekW]],\"\")","v":""},{"$f":"IF(Table_SummaryPI[[#This Row],[ProposedkWh]]<>\"\",Table_SummaryPI[[#This Row],[ProposedkWh]],\"\")","v":""},{"$f":"IF(Table_SummaryPI[[#This Row],[ProposedkW]]<>\"\",Table_SummaryPI[[#This Row],[ProposedkW]],\"\")","v":""},{"$f":"IF(Table_SummaryPI[[#This Row],[Notes]]<>\"\",Table_SummaryPI[[#This Row],[Notes]],\"\")","v":""},{"$f":"IF(Table_SummaryPI[[#This Row],[Incentive_Customer]]<>\"\",Table_SummaryPI[[#This Row],[Incentive_Customer]],0)","v":0},{"$f":"IF(Table_SummaryPI[[#This Row],[MeasureCost]]<>\"\",Table_SummaryPI[[#This Row],[MeasureCost]],0)","v":0},{"$f":"IF(Table_SummaryPI[[#This Row],[kWhSavings]]<>\"\",Table_SummaryPI[[#This Row],[kWhSavings]],0)","v":0},{"$f":"IF(Table_SummaryPI[[#This Row],[DemandSavingskW]]<>\"\",Table_SummaryPI[[#This Row],[DemandSavingskW]],0)","v":0}]
[{"$f":"Table_SummaryPI[[#This Row],[Line No.]]","v":""},{"$f":"IF(Table_PrintPI[[#This Row],[Line No.]]=\"\",\"\",CONCATENATE(Table_PrintPI[[#This Row],[Line No.]],\" - \",Table_SummaryPI[[#This Row],[MeasureName]]))","v":""},{"$f":"IF(Table_SummaryPI[[#This Row],[Manufacturer]]<>\"\",CONCATENATE(Table_SummaryPI[[#This Row],[Manufacturer]],\"/\",Table_SummaryPI[[#This Row],[Model'#]]),\"\")","v":""},{"$f":"IF(Table_SummaryPI[[#This Row],[Serial'#]]<>\"\",Table_SummaryPI[[#This Row],[Serial'#]],\"\")","v":""},{"$f":"IF(Table_SummaryPI[[#This Row],[Quantity]]<>\"\",Table_SummaryPI[[#This Row],[Quantity]],\"\")","v":""},{"$f":"IF(Table_SummaryPI[[#This Row],[BaselinekWh]]<>\"\",Table_SummaryPI[[#This Row],[BaselinekWh]],\"\")","v":""},{"$f":"IF(Table_SummaryPI[[#This Row],[BaselinekW]]<>\"\",Table_SummaryPI[[#This Row],[BaselinekW]],\"\")","v":""},{"$f":"IF(Table_SummaryPI[[#This Row],[ProposedkWh]]<>\"\",Table_SummaryPI[[#This Row],[ProposedkWh]],\"\")","v":""},{"$f":"IF(Table_SummaryPI[[#This Row],[ProposedkW]]<>\"\",Table_SummaryPI[[#This Row],[ProposedkW]],\"\")","v":""},{"$f":"IF(Table_SummaryPI[[#This Row],[Notes]]<>\"\",Table_SummaryPI[[#This Row],[Notes]],\"\")","v":""},{"$f":"IF(Table_SummaryPI[[#This Row],[Incentive_Customer]]<>\"\",Table_SummaryPI[[#This Row],[Incentive_Customer]],0)","v":0},{"$f":"IF(Table_SummaryPI[[#This Row],[MeasureCost]]<>\"\",Table_SummaryPI[[#This Row],[MeasureCost]],0)","v":0},{"$f":"IF(Table_SummaryPI[[#This Row],[kWhSavings]]<>\"\",Table_SummaryPI[[#This Row],[kWhSavings]],0)","v":0},{"$f":"IF(Table_SummaryPI[[#This Row],[DemandSavingskW]]<>\"\",Table_SummaryPI[[#This Row],[DemandSavingskW]],0)","v":0}]
[{"$f":"Table_SummaryPI[[#This Row],[Line No.]]","v":""},{"$f":"IF(Table_PrintPI[[#This Row],[Line No.]]=\"\",\"\",CONCATENATE(Table_PrintPI[[#This Row],[Line No.]],\" - \",Table_SummaryPI[[#This Row],[MeasureName]]))","v":""},{"$f":"IF(Table_SummaryPI[[#This Row],[Manufacturer]]<>\"\",CONCATENATE(Table_SummaryPI[[#This Row],[Manufacturer]],\"/\",Table_SummaryPI[[#This Row],[Model'#]]),\"\")","v":""},{"$f":"IF(Table_SummaryPI[[#This Row],[Serial'#]]<>\"\",Table_SummaryPI[[#This Row],[Serial'#]],\"\")","v":""},{"$f":"IF(Table_SummaryPI[[#This Row],[Quantity]]<>\"\",Table_SummaryPI[[#This Row],[Quantity]],\"\")","v":""},{"$f":"IF(Table_SummaryPI[[#This Row],[BaselinekWh]]<>\"\",Table_SummaryPI[[#This Row],[BaselinekWh]],\"\")","v":""},{"$f":"IF(Table_SummaryPI[[#This Row],[BaselinekW]]<>\"\",Table_SummaryPI[[#This Row],[BaselinekW]],\"\")","v":""},{"$f":"IF(Table_SummaryPI[[#This Row],[ProposedkWh]]<>\"\",Table_SummaryPI[[#This Row],[ProposedkWh]],\"\")","v":""},{"$f":"IF(Table_SummaryPI[[#This Row],[ProposedkW]]<>\"\",Table_SummaryPI[[#This Row],[ProposedkW]],\"\")","v":""},{"$f":"IF(Table_SummaryPI[[#This Row],[Notes]]<>\"\",Table_SummaryPI[[#This Row],[Notes]],\"\")","v":""},{"$f":"IF(Table_SummaryPI[[#This Row],[Incentive_Customer]]<>\"\",Table_SummaryPI[[#This Row],[Incentive_Customer]],0)","v":0},{"$f":"IF(Table_SummaryPI[[#This Row],[MeasureCost]]<>\"\",Table_SummaryPI[[#This Row],[MeasureCost]],0)","v":0},{"$f":"IF(Table_SummaryPI[[#This Row],[kWhSavings]]<>\"\",Table_SummaryPI[[#This Row],[kWhSavings]],0)","v":0},{"$f":"IF(Table_SummaryPI[[#This Row],[DemandSavingskW]]<>\"\",Table_SummaryPI[[#This Row],[DemandSavingskW]],0)","v":0}]
[{"$f":"Table_SummaryPI[[#This Row],[Line No.]]","v":""},{"$f":"IF(Table_PrintPI[[#This Row],[Line No.]]=\"\",\"\",CONCATENATE(Table_PrintPI[[#This Row],[Line No.]],\" - \",Table_SummaryPI[[#This Row],[MeasureName]]))","v":""},{"$f":"IF(Table_SummaryPI[[#This Row],[Manufacturer]]<>\"\",CONCATENATE(Table_SummaryPI[[#This Row],[Manufacturer]],\"/\",Table_SummaryPI[[#This Row],[Model'#]]),\"\")","v":""},{"$f":"IF(Table_SummaryPI[[#This Row],[Serial'#]]<>\"\",Table_SummaryPI[[#This Row],[Serial'#]],\"\")","v":""},{"$f":"IF(Table_SummaryPI[[#This Row],[Quantity]]<>\"\",Table_SummaryPI[[#This Row],[Quantity]],\"\")","v":""},{"$f":"IF(Table_SummaryPI[[#This Row],[BaselinekWh]]<>\"\",Table_SummaryPI[[#This Row],[BaselinekWh]],\"\")","v":""},{"$f":"IF(Table_SummaryPI[[#This Row],[BaselinekW]]<>\"\",Table_SummaryPI[[#This Row],[BaselinekW]],\"\")","v":""},{"$f":"IF(Table_SummaryPI[[#This Row],[ProposedkWh]]<>\"\",Table_SummaryPI[[#This Row],[ProposedkWh]],\"\")","v":""},{"$f":"IF(Table_SummaryPI[[#This Row],[ProposedkW]]<>\"\",Table_SummaryPI[[#This Row],[ProposedkW]],\"\")","v":""},{"$f":"IF(Table_SummaryPI[[#This Row],[Notes]]<>\"\",Table_SummaryPI[[#This Row],[Notes]],\"\")","v":""},{"$f":"IF(Table_SummaryPI[[#This Row],[Incentive_Customer]]<>\"\",Table_SummaryPI[[#This Row],[Incentive_Customer]],0)","v":0},{"$f":"IF(Table_SummaryPI[[#This Row],[MeasureCost]]<>\"\",Table_SummaryPI[[#This Row],[MeasureCost]],0)","v":0},{"$f":"IF(Table_SummaryPI[[#This Row],[kWhSavings]]<>\"\",Table_SummaryPI[[#This Row],[kWhSavings]],0)","v":0},{"$f":"IF(Table_SummaryPI[[#This Row],[DemandSavingskW]]<>\"\",Table_SummaryPI[[#This Row],[DemandSavingskW]],0)","v":0}]
[{"$f":"Table_SummaryPI[[#This Row],[Line No.]]","v":""},{"$f":"IF(Table_PrintPI[[#This Row],[Line No.]]=\"\",\"\",CONCATENATE(Table_PrintPI[[#This Row],[Line No.]],\" - \",Table_SummaryPI[[#This Row],[MeasureName]]))","v":""},{"$f":"IF(Table_SummaryPI[[#This Row],[Manufacturer]]<>\"\",CONCATENATE(Table_SummaryPI[[#This Row],[Manufacturer]],\"/\",Table_SummaryPI[[#This Row],[Model'#]]),\"\")","v":""},{"$f":"IF(Table_SummaryPI[[#This Row],[Serial'#]]<>\"\",Table_SummaryPI[[#This Row],[Serial'#]],\"\")","v":""},{"$f":"IF(Table_SummaryPI[[#This Row],[Quantity]]<>\"\",Table_SummaryPI[[#This Row],[Quantity]],\"\")","v":""},{"$f":"IF(Table_SummaryPI[[#This Row],[BaselinekWh]]<>\"\",Table_SummaryPI[[#This Row],[BaselinekWh]],\"\")","v":""},{"$f":"IF(Table_SummaryPI[[#This Row],[BaselinekW]]<>\"\",Table_SummaryPI[[#This Row],[BaselinekW]],\"\")","v":""},{"$f":"IF(Table_SummaryPI[[#This Row],[ProposedkWh]]<>\"\",Table_SummaryPI[[#This Row],[ProposedkWh]],\"\")","v":""},{"$f":"IF(Table_SummaryPI[[#This Row],[ProposedkW]]<>\"\",Table_SummaryPI[[#This Row],[ProposedkW]],\"\")","v":""},{"$f":"IF(Table_SummaryPI[[#This Row],[Notes]]<>\"\",Table_SummaryPI[[#This Row],[Notes]],\"\")","v":""},{"$f":"IF(Table_SummaryPI[[#This Row],[Incentive_Customer]]<>\"\",Table_SummaryPI[[#This Row],[Incentive_Customer]],0)","v":0},{"$f":"IF(Table_SummaryPI[[#This Row],[MeasureCost]]<>\"\",Table_SummaryPI[[#This Row],[MeasureCost]],0)","v":0},{"$f":"IF(Table_SummaryPI[[#This Row],[kWhSavings]]<>\"\",Table_SummaryPI[[#This Row],[kWhSavings]],0)","v":0},{"$f":"IF(Table_SummaryPI[[#This Row],[DemandSavingskW]]<>\"\",Table_SummaryPI[[#This Row],[DemandSavingskW]],0)","v":0}]
[{"$f":"Table_SummaryPI[[#This Row],[Line No.]]","v":""},{"$f":"IF(Table_PrintPI[[#This Row],[Line No.]]=\"\",\"\",CONCATENATE(Table_PrintPI[[#This Row],[Line No.]],\" - \",Table_SummaryPI[[#This Row],[MeasureName]]))","v":""},{"$f":"IF(Table_SummaryPI[[#This Row],[Manufacturer]]<>\"\",CONCATENATE(Table_SummaryPI[[#This Row],[Manufacturer]],\"/\",Table_SummaryPI[[#This Row],[Model'#]]),\"\")","v":""},{"$f":"IF(Table_SummaryPI[[#This Row],[Serial'#]]<>\"\",Table_SummaryPI[[#This Row],[Serial'#]],\"\")","v":""},{"$f":"IF(Table_SummaryPI[[#This Row],[Quantity]]<>\"\",Table_SummaryPI[[#This Row],[Quantity]],\"\")","v":""},{"$f":"IF(Table_SummaryPI[[#This Row],[BaselinekWh]]<>\"\",Table_SummaryPI[[#This Row],[BaselinekWh]],\"\")","v":""},{"$f":"IF(Table_SummaryPI[[#This Row],[BaselinekW]]<>\"\",Table_SummaryPI[[#This Row],[BaselinekW]],\"\")","v":""},{"$f":"IF(Table_SummaryPI[[#This Row],[ProposedkWh]]<>\"\",Table_SummaryPI[[#This Row],[ProposedkWh]],\"\")","v":""},{"$f":"IF(Table_SummaryPI[[#This Row],[ProposedkW]]<>\"\",Table_SummaryPI[[#This Row],[ProposedkW]],\"\")","v":""},{"$f":"IF(Table_SummaryPI[[#This Row],[Notes]]<>\"\",Table_SummaryPI[[#This Row],[Notes]],\"\")","v":""},{"$f":"IF(Table_SummaryPI[[#This Row],[Incentive_Customer]]<>\"\",Table_SummaryPI[[#This Row],[Incentive_Customer]],0)","v":0},{"$f":"IF(Table_SummaryPI[[#This Row],[MeasureCost]]<>\"\",Table_SummaryPI[[#This Row],[MeasureCost]],0)","v":0},{"$f":"IF(Table_SummaryPI[[#This Row],[kWhSavings]]<>\"\",Table_SummaryPI[[#This Row],[kWhSavings]],0)","v":0},{"$f":"IF(Table_SummaryPI[[#This Row],[DemandSavingskW]]<>\"\",Table_SummaryPI[[#This Row],[DemandSavingskW]],0)","v":0}]
[{"$f":"Table_SummaryPI[[#This Row],[Line No.]]","v":""},{"$f":"IF(Table_PrintPI[[#This Row],[Line No.]]=\"\",\"\",CONCATENATE(Table_PrintPI[[#This Row],[Line No.]],\" - \",Table_SummaryPI[[#This Row],[MeasureName]]))","v":""},{"$f":"IF(Table_SummaryPI[[#This Row],[Manufacturer]]<>\"\",CONCATENATE(Table_SummaryPI[[#This Row],[Manufacturer]],\"/\",Table_SummaryPI[[#This Row],[Model'#]]),\"\")","v":""},{"$f":"IF(Table_SummaryPI[[#This Row],[Serial'#]]<>\"\",Table_SummaryPI[[#This Row],[Serial'#]],\"\")","v":""},{"$f":"IF(Table_SummaryPI[[#This Row],[Quantity]]<>\"\",Table_SummaryPI[[#This Row],[Quantity]],\"\")","v":""},{"$f":"IF(Table_SummaryPI[[#This Row],[BaselinekWh]]<>\"\",Table_SummaryPI[[#This Row],[BaselinekWh]],\"\")","v":""},{"$f":"IF(Table_SummaryPI[[#This Row],[BaselinekW]]<>\"\",Table_SummaryPI[[#This Row],[BaselinekW]],\"\")","v":""},{"$f":"IF(Table_SummaryPI[[#This Row],[ProposedkWh]]<>\"\",Table_SummaryPI[[#This Row],[ProposedkWh]],\"\")","v":""},{"$f":"IF(Table_SummaryPI[[#This Row],[ProposedkW]]<>\"\",Table_SummaryPI[[#This Row],[ProposedkW]],\"\")","v":""},{"$f":"IF(Table_SummaryPI[[#This Row],[Notes]]<>\"\",Table_SummaryPI[[#This Row],[Notes]],\"\")","v":""},{"$f":"IF(Table_SummaryPI[[#This Row],[Incentive_Customer]]<>\"\",Table_SummaryPI[[#This Row],[Incentive_Customer]],0)","v":0},{"$f":"IF(Table_SummaryPI[[#This Row],[MeasureCost]]<>\"\",Table_SummaryPI[[#This Row],[MeasureCost]],0)","v":0},{"$f":"IF(Table_SummaryPI[[#This Row],[kWhSavings]]<>\"\",Table_SummaryPI[[#This Row],[kWhSavings]],0)","v":0},{"$f":"IF(Table_SummaryPI[[#This Row],[DemandSavingskW]]<>\"\",Table_SummaryPI[[#This Row],[DemandSavingskW]],0)","v":0}]
[{"$f":"Table_SummaryPI[[#This Row],[Line No.]]","v":""},{"$f":"IF(Table_PrintPI[[#This Row],[Line No.]]=\"\",\"\",CONCATENATE(Table_PrintPI[[#This Row],[Line No.]],\" - \",Table_SummaryPI[[#This Row],[MeasureName]]))","v":""},{"$f":"IF(Table_SummaryPI[[#This Row],[Manufacturer]]<>\"\",CONCATENATE(Table_SummaryPI[[#This Row],[Manufacturer]],\"/\",Table_SummaryPI[[#This Row],[Model'#]]),\"\")","v":""},{"$f":"IF(Table_SummaryPI[[#This Row],[Serial'#]]<>\"\",Table_SummaryPI[[#This Row],[Serial'#]],\"\")","v":""},{"$f":"IF(Table_SummaryPI[[#This Row],[Quantity]]<>\"\",Table_SummaryPI[[#This Row],[Quantity]],\"\")","v":""},{"$f":"IF(Table_SummaryPI[[#This Row],[BaselinekWh]]<>\"\",Table_SummaryPI[[#This Row],[BaselinekWh]],\"\")","v":""},{"$f":"IF(Table_SummaryPI[[#This Row],[BaselinekW]]<>\"\",Table_SummaryPI[[#This Row],[BaselinekW]],\"\")","v":""},{"$f":"IF(Table_SummaryPI[[#This Row],[ProposedkWh]]<>\"\",Table_SummaryPI[[#This Row],[ProposedkWh]],\"\")","v":""},{"$f":"IF(Table_SummaryPI[[#This Row],[ProposedkW]]<>\"\",Table_SummaryPI[[#This Row],[ProposedkW]],\"\")","v":""},{"$f":"IF(Table_SummaryPI[[#This Row],[Notes]]<>\"\",Table_SummaryPI[[#This Row],[Notes]],\"\")","v":""},{"$f":"IF(Table_SummaryPI[[#This Row],[Incentive_Customer]]<>\"\",Table_SummaryPI[[#This Row],[Incentive_Customer]],0)","v":0},{"$f":"IF(Table_SummaryPI[[#This Row],[MeasureCost]]<>\"\",Table_SummaryPI[[#This Row],[MeasureCost]],0)","v":0},{"$f":"IF(Table_SummaryPI[[#This Row],[kWhSavings]]<>\"\",Table_SummaryPI[[#This Row],[kWhSavings]],0)","v":0},{"$f":"IF(Table_SummaryPI[[#This Row],[DemandSavingskW]]<>\"\",Table_SummaryPI[[#This Row],[DemandSavingskW]],0)","v":0}]
[{"$f":"Table_SummaryPI[[#This Row],[Line No.]]","v":""},{"$f":"IF(Table_PrintPI[[#This Row],[Line No.]]=\"\",\"\",CONCATENATE(Table_PrintPI[[#This Row],[Line No.]],\" - \",Table_SummaryPI[[#This Row],[MeasureName]]))","v":""},{"$f":"IF(Table_SummaryPI[[#This Row],[Manufacturer]]<>\"\",CONCATENATE(Table_SummaryPI[[#This Row],[Manufacturer]],\"/\",Table_SummaryPI[[#This Row],[Model'#]]),\"\")","v":""},{"$f":"IF(Table_SummaryPI[[#This Row],[Serial'#]]<>\"\",Table_SummaryPI[[#This Row],[Serial'#]],\"\")","v":""},{"$f":"IF(Table_SummaryPI[[#This Row],[Quantity]]<>\"\",Table_SummaryPI[[#This Row],[Quantity]],\"\")","v":""},{"$f":"IF(Table_SummaryPI[[#This Row],[BaselinekWh]]<>\"\",Table_SummaryPI[[#This Row],[BaselinekWh]],\"\")","v":""},{"$f":"IF(Table_SummaryPI[[#This Row],[BaselinekW]]<>\"\",Table_SummaryPI[[#This Row],[BaselinekW]],\"\")","v":""},{"$f":"IF(Table_SummaryPI[[#This Row],[ProposedkWh]]<>\"\",Table_SummaryPI[[#This Row],[ProposedkWh]],\"\")","v":""},{"$f":"IF(Table_SummaryPI[[#This Row],[ProposedkW]]<>\"\",Table_SummaryPI[[#This Row],[ProposedkW]],\"\")","v":""},{"$f":"IF(Table_SummaryPI[[#This Row],[Notes]]<>\"\",Table_SummaryPI[[#This Row],[Notes]],\"\")","v":""},{"$f":"IF(Table_SummaryPI[[#This Row],[Incentive_Customer]]<>\"\",Table_SummaryPI[[#This Row],[Incentive_Customer]],0)","v":0},{"$f":"IF(Table_SummaryPI[[#This Row],[MeasureCost]]<>\"\",Table_SummaryPI[[#This Row],[MeasureCost]],0)","v":0},{"$f":"IF(Table_SummaryPI[[#This Row],[kWhSavings]]<>\"\",Table_SummaryPI[[#This Row],[kWhSavings]],0)","v":0},{"$f":"IF(Table_SummaryPI[[#This Row],[DemandSavingskW]]<>\"\",Table_SummaryPI[[#This Row],[DemandSavingskW]],0)","v":0}]
[{"$f":"Table_SummaryPI[[#This Row],[Line No.]]","v":""},{"$f":"IF(Table_PrintPI[[#This Row],[Line No.]]=\"\",\"\",CONCATENATE(Table_PrintPI[[#This Row],[Line No.]],\" - \",Table_SummaryPI[[#This Row],[MeasureName]]))","v":""},{"$f":"IF(Table_SummaryPI[[#This Row],[Manufacturer]]<>\"\",CONCATENATE(Table_SummaryPI[[#This Row],[Manufacturer]],\"/\",Table_SummaryPI[[#This Row],[Model'#]]),\"\")","v":""},{"$f":"IF(Table_SummaryPI[[#This Row],[Serial'#]]<>\"\",Table_SummaryPI[[#This Row],[Serial'#]],\"\")","v":""},{"$f":"IF(Table_SummaryPI[[#This Row],[Quantity]]<>\"\",Table_SummaryPI[[#This Row],[Quantity]],\"\")","v":""},{"$f":"IF(Table_SummaryPI[[#This Row],[BaselinekWh]]<>\"\",Table_SummaryPI[[#This Row],[BaselinekWh]],\"\")","v":""},{"$f":"IF(Table_SummaryPI[[#This Row],[BaselinekW]]<>\"\",Table_SummaryPI[[#This Row],[BaselinekW]],\"\")","v":""},{"$f":"IF(Table_SummaryPI[[#This Row],[ProposedkWh]]<>\"\",Table_SummaryPI[[#This Row],[ProposedkWh]],\"\")","v":""},{"$f":"IF(Table_SummaryPI[[#This Row],[ProposedkW]]<>\"\",Table_SummaryPI[[#This Row],[ProposedkW]],\"\")","v":""},{"$f":"IF(Table_SummaryPI[[#This Row],[Notes]]<>\"\",Table_SummaryPI[[#This Row],[Notes]],\"\")","v":""},{"$f":"IF(Table_SummaryPI[[#This Row],[Incentive_Customer]]<>\"\",Table_SummaryPI[[#This Row],[Incentive_Customer]],0)","v":0},{"$f":"IF(Table_SummaryPI[[#This Row],[MeasureCost]]<>\"\",Table_SummaryPI[[#This Row],[MeasureCost]],0)","v":0},{"$f":"IF(Table_SummaryPI[[#This Row],[kWhSavings]]<>\"\",Table_SummaryPI[[#This Row],[kWhSavings]],0)","v":0},{"$f":"IF(Table_SummaryPI[[#This Row],[DemandSavingskW]]<>\"\",Table_SummaryPI[[#This Row],[DemandSavingskW]],0)","v":0}]
[{"$f":"Table_SummaryPI[[#This Row],[Line No.]]","v":""},{"$f":"IF(Table_PrintPI[[#This Row],[Line No.]]=\"\",\"\",CONCATENATE(Table_PrintPI[[#This Row],[Line No.]],\" - \",Table_SummaryPI[[#This Row],[MeasureName]]))","v":""},{"$f":"IF(Table_SummaryPI[[#This Row],[Manufacturer]]<>\"\",CONCATENATE(Table_SummaryPI[[#This Row],[Manufacturer]],\"/\",Table_SummaryPI[[#This Row],[Model'#]]),\"\")","v":""},{"$f":"IF(Table_SummaryPI[[#This Row],[Serial'#]]<>\"\",Table_SummaryPI[[#This Row],[Serial'#]],\"\")","v":""},{"$f":"IF(Table_SummaryPI[[#This Row],[Quantity]]<>\"\",Table_SummaryPI[[#This Row],[Quantity]],\"\")","v":""},{"$f":"IF(Table_SummaryPI[[#This Row],[BaselinekWh]]<>\"\",Table_SummaryPI[[#This Row],[BaselinekWh]],\"\")","v":""},{"$f":"IF(Table_SummaryPI[[#This Row],[BaselinekW]]<>\"\",Table_SummaryPI[[#This Row],[BaselinekW]],\"\")","v":""},{"$f":"IF(Table_SummaryPI[[#This Row],[ProposedkWh]]<>\"\",Table_SummaryPI[[#This Row],[ProposedkWh]],\"\")","v":""},{"$f":"IF(Table_SummaryPI[[#This Row],[ProposedkW]]<>\"\",Table_SummaryPI[[#This Row],[ProposedkW]],\"\")","v":""},{"$f":"IF(Table_SummaryPI[[#This Row],[Notes]]<>\"\",Table_SummaryPI[[#This Row],[Notes]],\"\")","v":""},{"$f":"IF(Table_SummaryPI[[#This Row],[Incentive_Customer]]<>\"\",Table_SummaryPI[[#This Row],[Incentive_Customer]],0)","v":0},{"$f":"IF(Table_SummaryPI[[#This Row],[MeasureCost]]<>\"\",Table_SummaryPI[[#This Row],[MeasureCost]],0)","v":0},{"$f":"IF(Table_SummaryPI[[#This Row],[kWhSavings]]<>\"\",Table_SummaryPI[[#This Row],[kWhSavings]],0)","v":0},{"$f":"IF(Table_SummaryPI[[#This Row],[DemandSavingskW]]<>\"\",Table_SummaryPI[[#This Row],[DemandSavingskW]],0)","v":0}]
[{"$f":"Table_SummaryPI[[#This Row],[Line No.]]","v":""},{"$f":"IF(Table_PrintPI[[#This Row],[Line No.]]=\"\",\"\",CONCATENATE(Table_PrintPI[[#This Row],[Line No.]],\" - \",Table_SummaryPI[[#This Row],[MeasureName]]))","v":""},{"$f":"IF(Table_SummaryPI[[#This Row],[Manufacturer]]<>\"\",CONCATENATE(Table_SummaryPI[[#This Row],[Manufacturer]],\"/\",Table_SummaryPI[[#This Row],[Model'#]]),\"\")","v":""},{"$f":"IF(Table_SummaryPI[[#This Row],[Serial'#]]<>\"\",Table_SummaryPI[[#This Row],[Serial'#]],\"\")","v":""},{"$f":"IF(Table_SummaryPI[[#This Row],[Quantity]]<>\"\",Table_SummaryPI[[#This Row],[Quantity]],\"\")","v":""},{"$f":"IF(Table_SummaryPI[[#This Row],[BaselinekWh]]<>\"\",Table_SummaryPI[[#This Row],[BaselinekWh]],\"\")","v":""},{"$f":"IF(Table_SummaryPI[[#This Row],[BaselinekW]]<>\"\",Table_SummaryPI[[#This Row],[BaselinekW]],\"\")","v":""},{"$f":"IF(Table_SummaryPI[[#This Row],[ProposedkWh]]<>\"\",Table_SummaryPI[[#This Row],[ProposedkWh]],\"\")","v":""},{"$f":"IF(Table_SummaryPI[[#This Row],[ProposedkW]]<>\"\",Table_SummaryPI[[#This Row],[ProposedkW]],\"\")","v":""},{"$f":"IF(Table_SummaryPI[[#This Row],[Notes]]<>\"\",Table_SummaryPI[[#This Row],[Notes]],\"\")","v":""},{"$f":"IF(Table_SummaryPI[[#This Row],[Incentive_Customer]]<>\"\",Table_SummaryPI[[#This Row],[Incentive_Customer]],0)","v":0},{"$f":"IF(Table_SummaryPI[[#This Row],[MeasureCost]]<>\"\",Table_SummaryPI[[#This Row],[MeasureCost]],0)","v":0},{"$f":"IF(Table_SummaryPI[[#This Row],[kWhSavings]]<>\"\",Table_SummaryPI[[#This Row],[kWhSavings]],0)","v":0},{"$f":"IF(Table_SummaryPI[[#This Row],[DemandSavingskW]]<>\"\",Table_SummaryPI[[#This Row],[DemandSavingskW]],0)","v":0}]
[{"$f":"Table_SummaryPI[[#This Row],[Line No.]]","v":""},{"$f":"IF(Table_PrintPI[[#This Row],[Line No.]]=\"\",\"\",CONCATENATE(Table_PrintPI[[#This Row],[Line No.]],\" - \",Table_SummaryPI[[#This Row],[MeasureName]]))","v":""},{"$f":"IF(Table_SummaryPI[[#This Row],[Manufacturer]]<>\"\",CONCATENATE(Table_SummaryPI[[#This Row],[Manufacturer]],\"/\",Table_SummaryPI[[#This Row],[Model'#]]),\"\")","v":""},{"$f":"IF(Table_SummaryPI[[#This Row],[Serial'#]]<>\"\",Table_SummaryPI[[#This Row],[Serial'#]],\"\")","v":""},{"$f":"IF(Table_SummaryPI[[#This Row],[Quantity]]<>\"\",Table_SummaryPI[[#This Row],[Quantity]],\"\")","v":""},{"$f":"IF(Table_SummaryPI[[#This Row],[BaselinekWh]]<>\"\",Table_SummaryPI[[#This Row],[BaselinekWh]],\"\")","v":""},{"$f":"IF(Table_SummaryPI[[#This Row],[BaselinekW]]<>\"\",Table_SummaryPI[[#This Row],[BaselinekW]],\"\")","v":""},{"$f":"IF(Table_SummaryPI[[#This Row],[ProposedkWh]]<>\"\",Table_SummaryPI[[#This Row],[ProposedkWh]],\"\")","v":""},{"$f":"IF(Table_SummaryPI[[#This Row],[ProposedkW]]<>\"\",Table_SummaryPI[[#This Row],[ProposedkW]],\"\")","v":""},{"$f":"IF(Table_SummaryPI[[#This Row],[Notes]]<>\"\",Table_SummaryPI[[#This Row],[Notes]],\"\")","v":""},{"$f":"IF(Table_SummaryPI[[#This Row],[Incentive_Customer]]<>\"\",Table_SummaryPI[[#This Row],[Incentive_Customer]],0)","v":0},{"$f":"IF(Table_SummaryPI[[#This Row],[MeasureCost]]<>\"\",Table_SummaryPI[[#This Row],[MeasureCost]],0)","v":0},{"$f":"IF(Table_SummaryPI[[#This Row],[kWhSavings]]<>\"\",Table_SummaryPI[[#This Row],[kWhSavings]],0)","v":0},{"$f":"IF(Table_SummaryPI[[#This Row],[DemandSavingskW]]<>\"\",Table_SummaryPI[[#This Row],[DemandSavingskW]],0)","v":0}]
[{"$f":"Table_SummaryPI[[#This Row],[Line No.]]","v":""},{"$f":"IF(Table_PrintPI[[#This Row],[Line No.]]=\"\",\"\",CONCATENATE(Table_PrintPI[[#This Row],[Line No.]],\" - \",Table_SummaryPI[[#This Row],[MeasureName]]))","v":""},{"$f":"IF(Table_SummaryPI[[#This Row],[Manufacturer]]<>\"\",CONCATENATE(Table_SummaryPI[[#This Row],[Manufacturer]],\"/\",Table_SummaryPI[[#This Row],[Model'#]]),\"\")","v":""},{"$f":"IF(Table_SummaryPI[[#This Row],[Serial'#]]<>\"\",Table_SummaryPI[[#This Row],[Serial'#]],\"\")","v":""},{"$f":"IF(Table_SummaryPI[[#This Row],[Quantity]]<>\"\",Table_SummaryPI[[#This Row],[Quantity]],\"\")","v":""},{"$f":"IF(Table_SummaryPI[[#This Row],[BaselinekWh]]<>\"\",Table_SummaryPI[[#This Row],[BaselinekWh]],\"\")","v":""},{"$f":"IF(Table_SummaryPI[[#This Row],[BaselinekW]]<>\"\",Table_SummaryPI[[#This Row],[BaselinekW]],\"\")","v":""},{"$f":"IF(Table_SummaryPI[[#This Row],[ProposedkWh]]<>\"\",Table_SummaryPI[[#This Row],[ProposedkWh]],\"\")","v":""},{"$f":"IF(Table_SummaryPI[[#This Row],[ProposedkW]]<>\"\",Table_SummaryPI[[#This Row],[ProposedkW]],\"\")","v":""},{"$f":"IF(Table_SummaryPI[[#This Row],[Notes]]<>\"\",Table_SummaryPI[[#This Row],[Notes]],\"\")","v":""},{"$f":"IF(Table_SummaryPI[[#This Row],[Incentive_Customer]]<>\"\",Table_SummaryPI[[#This Row],[Incentive_Customer]],0)","v":0},{"$f":"IF(Table_SummaryPI[[#This Row],[MeasureCost]]<>\"\",Table_SummaryPI[[#This Row],[MeasureCost]],0)","v":0},{"$f":"IF(Table_SummaryPI[[#This Row],[kWhSavings]]<>\"\",Table_SummaryPI[[#This Row],[kWhSavings]],0)","v":0},{"$f":"IF(Table_SummaryPI[[#This Row],[DemandSavingskW]]<>\"\",Table_SummaryPI[[#This Row],[DemandSavingskW]],0)","v":0}]
[{"$f":"Table_SummaryPI[[#This Row],[Line No.]]","v":""},{"$f":"IF(Table_PrintPI[[#This Row],[Line No.]]=\"\",\"\",CONCATENATE(Table_PrintPI[[#This Row],[Line No.]],\" - \",Table_SummaryPI[[#This Row],[MeasureName]]))","v":""},{"$f":"IF(Table_SummaryPI[[#This Row],[Manufacturer]]<>\"\",CONCATENATE(Table_SummaryPI[[#This Row],[Manufacturer]],\"/\",Table_SummaryPI[[#This Row],[Model'#]]),\"\")","v":""},{"$f":"IF(Table_SummaryPI[[#This Row],[Serial'#]]<>\"\",Table_SummaryPI[[#This Row],[Serial'#]],\"\")","v":""},{"$f":"IF(Table_SummaryPI[[#This Row],[Quantity]]<>\"\",Table_SummaryPI[[#This Row],[Quantity]],\"\")","v":""},{"$f":"IF(Table_SummaryPI[[#This Row],[BaselinekWh]]<>\"\",Table_SummaryPI[[#This Row],[BaselinekWh]],\"\")","v":""},{"$f":"IF(Table_SummaryPI[[#This Row],[BaselinekW]]<>\"\",Table_SummaryPI[[#This Row],[BaselinekW]],\"\")","v":""},{"$f":"IF(Table_SummaryPI[[#This Row],[ProposedkWh]]<>\"\",Table_SummaryPI[[#This Row],[ProposedkWh]],\"\")","v":""},{"$f":"IF(Table_SummaryPI[[#This Row],[ProposedkW]]<>\"\",Table_SummaryPI[[#This Row],[ProposedkW]],\"\")","v":""},{"$f":"IF(Table_SummaryPI[[#This Row],[Notes]]<>\"\",Table_SummaryPI[[#This Row],[Notes]],\"\")","v":""},{"$f":"IF(Table_SummaryPI[[#This Row],[Incentive_Customer]]<>\"\",Table_SummaryPI[[#This Row],[Incentive_Customer]],0)","v":0},{"$f":"IF(Table_SummaryPI[[#This Row],[MeasureCost]]<>\"\",Table_SummaryPI[[#This Row],[MeasureCost]],0)","v":0},{"$f":"IF(Table_SummaryPI[[#This Row],[kWhSavings]]<>\"\",Table_SummaryPI[[#This Row],[kWhSavings]],0)","v":0},{"$f":"IF(Table_SummaryPI[[#This Row],[DemandSavingskW]]<>\"\",Table_SummaryPI[[#This Row],[DemandSavingskW]],0)","v":0}]
[{"$f":"Table_SummaryPI[[#This Row],[Line No.]]","v":""},{"$f":"IF(Table_PrintPI[[#This Row],[Line No.]]=\"\",\"\",CONCATENATE(Table_PrintPI[[#This Row],[Line No.]],\" - \",Table_SummaryPI[[#This Row],[MeasureName]]))","v":""},{"$f":"IF(Table_SummaryPI[[#This Row],[Manufacturer]]<>\"\",CONCATENATE(Table_SummaryPI[[#This Row],[Manufacturer]],\"/\",Table_SummaryPI[[#This Row],[Model'#]]),\"\")","v":""},{"$f":"IF(Table_SummaryPI[[#This Row],[Serial'#]]<>\"\",Table_SummaryPI[[#This Row],[Serial'#]],\"\")","v":""},{"$f":"IF(Table_SummaryPI[[#This Row],[Quantity]]<>\"\",Table_SummaryPI[[#This Row],[Quantity]],\"\")","v":""},{"$f":"IF(Table_SummaryPI[[#This Row],[BaselinekWh]]<>\"\",Table_SummaryPI[[#This Row],[BaselinekWh]],\"\")","v":""},{"$f":"IF(Table_SummaryPI[[#This Row],[BaselinekW]]<>\"\",Table_SummaryPI[[#This Row],[BaselinekW]],\"\")","v":""},{"$f":"IF(Table_SummaryPI[[#This Row],[ProposedkWh]]<>\"\",Table_SummaryPI[[#This Row],[ProposedkWh]],\"\")","v":""},{"$f":"IF(Table_SummaryPI[[#This Row],[ProposedkW]]<>\"\",Table_SummaryPI[[#This Row],[ProposedkW]],\"\")","v":""},{"$f":"IF(Table_SummaryPI[[#This Row],[Notes]]<>\"\",Table_SummaryPI[[#This Row],[Notes]],\"\")","v":""},{"$f":"IF(Table_SummaryPI[[#This Row],[Incentive_Customer]]<>\"\",Table_SummaryPI[[#This Row],[Incentive_Customer]],0)","v":0},{"$f":"IF(Table_SummaryPI[[#This Row],[MeasureCost]]<>\"\",Table_SummaryPI[[#This Row],[MeasureCost]],0)","v":0},{"$f":"IF(Table_SummaryPI[[#This Row],[kWhSavings]]<>\"\",Table_SummaryPI[[#This Row],[kWhSavings]],0)","v":0},{"$f":"IF(Table_SummaryPI[[#This Row],[DemandSavingskW]]<>\"\",Table_SummaryPI[[#This Row],[DemandSavingskW]],0)","v":0}]
[{"$f":"Table_SummaryPI[[#This Row],[Line No.]]","v":""},{"$f":"IF(Table_PrintPI[[#This Row],[Line No.]]=\"\",\"\",CONCATENATE(Table_PrintPI[[#This Row],[Line No.]],\" - \",Table_SummaryPI[[#This Row],[MeasureName]]))","v":""},{"$f":"IF(Table_SummaryPI[[#This Row],[Manufacturer]]<>\"\",CONCATENATE(Table_SummaryPI[[#This Row],[Manufacturer]],\"/\",Table_SummaryPI[[#This Row],[Model'#]]),\"\")","v":""},{"$f":"IF(Table_SummaryPI[[#This Row],[Serial'#]]<>\"\",Table_SummaryPI[[#This Row],[Serial'#]],\"\")","v":""},{"$f":"IF(Table_SummaryPI[[#This Row],[Quantity]]<>\"\",Table_SummaryPI[[#This Row],[Quantity]],\"\")","v":""},{"$f":"IF(Table_SummaryPI[[#This Row],[BaselinekWh]]<>\"\",Table_SummaryPI[[#This Row],[BaselinekWh]],\"\")","v":""},{"$f":"IF(Table_SummaryPI[[#This Row],[BaselinekW]]<>\"\",Table_SummaryPI[[#This Row],[BaselinekW]],\"\")","v":""},{"$f":"IF(Table_SummaryPI[[#This Row],[ProposedkWh]]<>\"\",Table_SummaryPI[[#This Row],[ProposedkWh]],\"\")","v":""},{"$f":"IF(Table_SummaryPI[[#This Row],[ProposedkW]]<>\"\",Table_SummaryPI[[#This Row],[ProposedkW]],\"\")","v":""},{"$f":"IF(Table_SummaryPI[[#This Row],[Notes]]<>\"\",Table_SummaryPI[[#This Row],[Notes]],\"\")","v":""},{"$f":"IF(Table_SummaryPI[[#This Row],[Incentive_Customer]]<>\"\",Table_SummaryPI[[#This Row],[Incentive_Customer]],0)","v":0},{"$f":"IF(Table_SummaryPI[[#This Row],[MeasureCost]]<>\"\",Table_SummaryPI[[#This Row],[MeasureCost]],0)","v":0},{"$f":"IF(Table_SummaryPI[[#This Row],[kWhSavings]]<>\"\",Table_SummaryPI[[#This Row],[kWhSavings]],0)","v":0},{"$f":"IF(Table_SummaryPI[[#This Row],[DemandSavingskW]]<>\"\",Table_SummaryPI[[#This Row],[DemandSavingskW]],0)","v":0}]
[{"$f":"Table_SummaryPI[[#This Row],[Line No.]]","v":""},{"$f":"IF(Table_PrintPI[[#This Row],[Line No.]]=\"\",\"\",CONCATENATE(Table_PrintPI[[#This Row],[Line No.]],\" - \",Table_SummaryPI[[#This Row],[MeasureName]]))","v":""},{"$f":"IF(Table_SummaryPI[[#This Row],[Manufacturer]]<>\"\",CONCATENATE(Table_SummaryPI[[#This Row],[Manufacturer]],\"/\",Table_SummaryPI[[#This Row],[Model'#]]),\"\")","v":""},{"$f":"IF(Table_SummaryPI[[#This Row],[Serial'#]]<>\"\",Table_SummaryPI[[#This Row],[Serial'#]],\"\")","v":""},{"$f":"IF(Table_SummaryPI[[#This Row],[Quantity]]<>\"\",Table_SummaryPI[[#This Row],[Quantity]],\"\")","v":""},{"$f":"IF(Table_SummaryPI[[#This Row],[BaselinekWh]]<>\"\",Table_SummaryPI[[#This Row],[BaselinekWh]],\"\")","v":""},{"$f":"IF(Table_SummaryPI[[#This Row],[BaselinekW]]<>\"\",Table_SummaryPI[[#This Row],[BaselinekW]],\"\")","v":""},{"$f":"IF(Table_SummaryPI[[#This Row],[ProposedkWh]]<>\"\",Table_SummaryPI[[#This Row],[ProposedkWh]],\"\")","v":""},{"$f":"IF(Table_SummaryPI[[#This Row],[ProposedkW]]<>\"\",Table_SummaryPI[[#This Row],[ProposedkW]],\"\")","v":""},{"$f":"IF(Table_SummaryPI[[#This Row],[Notes]]<>\"\",Table_SummaryPI[[#This Row],[Notes]],\"\")","v":""},{"$f":"IF(Table_SummaryPI[[#This Row],[Incentive_Customer]]<>\"\",Table_SummaryPI[[#This Row],[Incentive_Customer]],0)","v":0},{"$f":"IF(Table_SummaryPI[[#This Row],[MeasureCost]]<>\"\",Table_SummaryPI[[#This Row],[MeasureCost]],0)","v":0},{"$f":"IF(Table_SummaryPI[[#This Row],[kWhSavings]]<>\"\",Table_SummaryPI[[#This Row],[kWhSavings]],0)","v":0},{"$f":"IF(Table_SummaryPI[[#This Row],[DemandSavingskW]]<>\"\",Table_SummaryPI[[#This Row],[DemandSavingskW]],0)","v":0}]
[{"$f":"Table_SummaryPI[[#This Row],[Line No.]]","v":""},{"$f":"IF(Table_PrintPI[[#This Row],[Line No.]]=\"\",\"\",CONCATENATE(Table_PrintPI[[#This Row],[Line No.]],\" - \",Table_SummaryPI[[#This Row],[MeasureName]]))","v":""},{"$f":"IF(Table_SummaryPI[[#This Row],[Manufacturer]]<>\"\",CONCATENATE(Table_SummaryPI[[#This Row],[Manufacturer]],\"/\",Table_SummaryPI[[#This Row],[Model'#]]),\"\")","v":""},{"$f":"IF(Table_SummaryPI[[#This Row],[Serial'#]]<>\"\",Table_SummaryPI[[#This Row],[Serial'#]],\"\")","v":""},{"$f":"IF(Table_SummaryPI[[#This Row],[Quantity]]<>\"\",Table_SummaryPI[[#This Row],[Quantity]],\"\")","v":""},{"$f":"IF(Table_SummaryPI[[#This Row],[BaselinekWh]]<>\"\",Table_SummaryPI[[#This Row],[BaselinekWh]],\"\")","v":""},{"$f":"IF(Table_SummaryPI[[#This Row],[BaselinekW]]<>\"\",Table_SummaryPI[[#This Row],[BaselinekW]],\"\")","v":""},{"$f":"IF(Table_SummaryPI[[#This Row],[ProposedkWh]]<>\"\",Table_SummaryPI[[#This Row],[ProposedkWh]],\"\")","v":""},{"$f":"IF(Table_SummaryPI[[#This Row],[ProposedkW]]<>\"\",Table_SummaryPI[[#This Row],[ProposedkW]],\"\")","v":""},{"$f":"IF(Table_SummaryPI[[#This Row],[Notes]]<>\"\",Table_SummaryPI[[#This Row],[Notes]],\"\")","v":""},{"$f":"IF(Table_SummaryPI[[#This Row],[Incentive_Customer]]<>\"\",Table_SummaryPI[[#This Row],[Incentive_Customer]],0)","v":0},{"$f":"IF(Table_SummaryPI[[#This Row],[MeasureCost]]<>\"\",Table_SummaryPI[[#This Row],[MeasureCost]],0)","v":0},{"$f":"IF(Table_SummaryPI[[#This Row],[kWhSavings]]<>\"\",Table_SummaryPI[[#This Row],[kWhSavings]],0)","v":0},{"$f":"IF(Table_SummaryPI[[#This Row],[DemandSavingskW]]<>\"\",Table_SummaryPI[[#This Row],[DemandSavingskW]],0)","v":0}]
[{"$f":"Table_SummaryPI[[#This Row],[Line No.]]","v":""},{"$f":"IF(Table_PrintPI[[#This Row],[Line No.]]=\"\",\"\",CONCATENATE(Table_PrintPI[[#This Row],[Line No.]],\" - \",Table_SummaryPI[[#This Row],[MeasureName]]))","v":""},{"$f":"IF(Table_SummaryPI[[#This Row],[Manufacturer]]<>\"\",CONCATENATE(Table_SummaryPI[[#This Row],[Manufacturer]],\"/\",Table_SummaryPI[[#This Row],[Model'#]]),\"\")","v":""},{"$f":"IF(Table_SummaryPI[[#This Row],[Serial'#]]<>\"\",Table_SummaryPI[[#This Row],[Serial'#]],\"\")","v":""},{"$f":"IF(Table_SummaryPI[[#This Row],[Quantity]]<>\"\",Table_SummaryPI[[#This Row],[Quantity]],\"\")","v":""},{"$f":"IF(Table_SummaryPI[[#This Row],[BaselinekWh]]<>\"\",Table_SummaryPI[[#This Row],[BaselinekWh]],\"\")","v":""},{"$f":"IF(Table_SummaryPI[[#This Row],[BaselinekW]]<>\"\",Table_SummaryPI[[#This Row],[BaselinekW]],\"\")","v":""},{"$f":"IF(Table_SummaryPI[[#This Row],[ProposedkWh]]<>\"\",Table_SummaryPI[[#This Row],[ProposedkWh]],\"\")","v":""},{"$f":"IF(Table_SummaryPI[[#This Row],[ProposedkW]]<>\"\",Table_SummaryPI[[#This Row],[ProposedkW]],\"\")","v":""},{"$f":"IF(Table_SummaryPI[[#This Row],[Notes]]<>\"\",Table_SummaryPI[[#This Row],[Notes]],\"\")","v":""},{"$f":"IF(Table_SummaryPI[[#This Row],[Incentive_Customer]]<>\"\",Table_SummaryPI[[#This Row],[Incentive_Customer]],0)","v":0},{"$f":"IF(Table_SummaryPI[[#This Row],[MeasureCost]]<>\"\",Table_SummaryPI[[#This Row],[MeasureCost]],0)","v":0},{"$f":"IF(Table_SummaryPI[[#This Row],[kWhSavings]]<>\"\",Table_SummaryPI[[#This Row],[kWhSavings]],0)","v":0},{"$f":"IF(Table_SummaryPI[[#This Row],[DemandSavingskW]]<>\"\",Table_SummaryPI[[#This Row],[DemandSavingskW]],0)","v":0}]
[{"$f":"Table_SummaryPI[[#This Row],[Line No.]]","v":""},{"$f":"IF(Table_PrintPI[[#This Row],[Line No.]]=\"\",\"\",CONCATENATE(Table_PrintPI[[#This Row],[Line No.]],\" - \",Table_SummaryPI[[#This Row],[MeasureName]]))","v":""},{"$f":"IF(Table_SummaryPI[[#This Row],[Manufacturer]]<>\"\",CONCATENATE(Table_SummaryPI[[#This Row],[Manufacturer]],\"/\",Table_SummaryPI[[#This Row],[Model'#]]),\"\")","v":""},{"$f":"IF(Table_SummaryPI[[#This Row],[Serial'#]]<>\"\",Table_SummaryPI[[#This Row],[Serial'#]],\"\")","v":""},{"$f":"IF(Table_SummaryPI[[#This Row],[Quantity]]<>\"\",Table_SummaryPI[[#This Row],[Quantity]],\"\")","v":""},{"$f":"IF(Table_SummaryPI[[#This Row],[BaselinekWh]]<>\"\",Table_SummaryPI[[#This Row],[BaselinekWh]],\"\")","v":""},{"$f":"IF(Table_SummaryPI[[#This Row],[BaselinekW]]<>\"\",Table_SummaryPI[[#This Row],[BaselinekW]],\"\")","v":""},{"$f":"IF(Table_SummaryPI[[#This Row],[ProposedkWh]]<>\"\",Table_SummaryPI[[#This Row],[ProposedkWh]],\"\")","v":""},{"$f":"IF(Table_SummaryPI[[#This Row],[ProposedkW]]<>\"\",Table_SummaryPI[[#This Row],[ProposedkW]],\"\")","v":""},{"$f":"IF(Table_SummaryPI[[#This Row],[Notes]]<>\"\",Table_SummaryPI[[#This Row],[Notes]],\"\")","v":""},{"$f":"IF(Table_SummaryPI[[#This Row],[Incentive_Customer]]<>\"\",Table_SummaryPI[[#This Row],[Incentive_Customer]],0)","v":0},{"$f":"IF(Table_SummaryPI[[#This Row],[MeasureCost]]<>\"\",Table_SummaryPI[[#This Row],[MeasureCost]],0)","v":0},{"$f":"IF(Table_SummaryPI[[#This Row],[kWhSavings]]<>\"\",Table_SummaryPI[[#This Row],[kWhSavings]],0)","v":0},{"$f":"IF(Table_SummaryPI[[#This Row],[DemandSavingskW]]<>\"\",Table_SummaryPI[[#This Row],[DemandSavingskW]],0)","v":0}]
[{"$f":"Table_SummaryPI[[#This Row],[Line No.]]","v":""},{"$f":"IF(Table_PrintPI[[#This Row],[Line No.]]=\"\",\"\",CONCATENATE(Table_PrintPI[[#This Row],[Line No.]],\" - \",Table_SummaryPI[[#This Row],[MeasureName]]))","v":""},{"$f":"IF(Table_SummaryPI[[#This Row],[Manufacturer]]<>\"\",CONCATENATE(Table_SummaryPI[[#This Row],[Manufacturer]],\"/\",Table_SummaryPI[[#This Row],[Model'#]]),\"\")","v":""},{"$f":"IF(Table_SummaryPI[[#This Row],[Serial'#]]<>\"\",Table_SummaryPI[[#This Row],[Serial'#]],\"\")","v":""},{"$f":"IF(Table_SummaryPI[[#This Row],[Quantity]]<>\"\",Table_SummaryPI[[#This Row],[Quantity]],\"\")","v":""},{"$f":"IF(Table_SummaryPI[[#This Row],[BaselinekWh]]<>\"\",Table_SummaryPI[[#This Row],[BaselinekWh]],\"\")","v":""},{"$f":"IF(Table_SummaryPI[[#This Row],[BaselinekW]]<>\"\",Table_SummaryPI[[#This Row],[BaselinekW]],\"\")","v":""},{"$f":"IF(Table_SummaryPI[[#This Row],[ProposedkWh]]<>\"\",Table_SummaryPI[[#This Row],[ProposedkWh]],\"\")","v":""},{"$f":"IF(Table_SummaryPI[[#This Row],[ProposedkW]]<>\"\",Table_SummaryPI[[#This Row],[ProposedkW]],\"\")","v":""},{"$f":"IF(Table_SummaryPI[[#This Row],[Notes]]<>\"\",Table_SummaryPI[[#This Row],[Notes]],\"\")","v":""},{"$f":"IF(Table_SummaryPI[[#This Row],[Incentive_Customer]]<>\"\",Table_SummaryPI[[#This Row],[Incentive_Customer]],0)","v":0},{"$f":"IF(Table_SummaryPI[[#This Row],[MeasureCost]]<>\"\",Table_SummaryPI[[#This Row],[MeasureCost]],0)","v":0},{"$f":"IF(Table_SummaryPI[[#This Row],[kWhSavings]]<>\"\",Table_SummaryPI[[#This Row],[kWhSavings]],0)","v":0},{"$f":"IF(Table_SummaryPI[[#This Row],[DemandSavingskW]]<>\"\",Table_SummaryPI[[#This Row],[DemandSavingskW]],0)","v":0}]
[{"$f":"Table_SummaryPI[[#This Row],[Line No.]]","v":""},{"$f":"IF(Table_PrintPI[[#This Row],[Line No.]]=\"\",\"\",CONCATENATE(Table_PrintPI[[#This Row],[Line No.]],\" - \",Table_SummaryPI[[#This Row],[MeasureName]]))","v":""},{"$f":"IF(Table_SummaryPI[[#This Row],[Manufacturer]]<>\"\",CONCATENATE(Table_SummaryPI[[#This Row],[Manufacturer]],\"/\",Table_SummaryPI[[#This Row],[Model'#]]),\"\")","v":""},{"$f":"IF(Table_SummaryPI[[#This Row],[Serial'#]]<>\"\",Table_SummaryPI[[#This Row],[Serial'#]],\"\")","v":""},{"$f":"IF(Table_SummaryPI[[#This Row],[Quantity]]<>\"\",Table_SummaryPI[[#This Row],[Quantity]],\"\")","v":""},{"$f":"IF(Table_SummaryPI[[#This Row],[BaselinekWh]]<>\"\",Table_SummaryPI[[#This Row],[BaselinekWh]],\"\")","v":""},{"$f":"IF(Table_SummaryPI[[#This Row],[BaselinekW]]<>\"\",Table_SummaryPI[[#This Row],[BaselinekW]],\"\")","v":""},{"$f":"IF(Table_SummaryPI[[#This Row],[ProposedkWh]]<>\"\",Table_SummaryPI[[#This Row],[ProposedkWh]],\"\")","v":""},{"$f":"IF(Table_SummaryPI[[#This Row],[ProposedkW]]<>\"\",Table_SummaryPI[[#This Row],[ProposedkW]],\"\")","v":""},{"$f":"IF(Table_SummaryPI[[#This Row],[Notes]]<>\"\",Table_SummaryPI[[#This Row],[Notes]],\"\")","v":""},{"$f":"IF(Table_SummaryPI[[#This Row],[Incentive_Customer]]<>\"\",Table_SummaryPI[[#This Row],[Incentive_Customer]],0)","v":0},{"$f":"IF(Table_SummaryPI[[#This Row],[MeasureCost]]<>\"\",Table_SummaryPI[[#This Row],[MeasureCost]],0)","v":0},{"$f":"IF(Table_SummaryPI[[#This Row],[kWhSavings]]<>\"\",Table_SummaryPI[[#This Row],[kWhSavings]],0)","v":0},{"$f":"IF(Table_SummaryPI[[#This Row],[DemandSavingskW]]<>\"\",Table_SummaryPI[[#This Row],[DemandSavingskW]],0)","v":0}]
[{"$f":"Table_SummaryPI[[#This Row],[Line No.]]","v":""},{"$f":"IF(Table_PrintPI[[#This Row],[Line No.]]=\"\",\"\",CONCATENATE(Table_PrintPI[[#This Row],[Line No.]],\" - \",Table_SummaryPI[[#This Row],[MeasureName]]))","v":""},{"$f":"IF(Table_SummaryPI[[#This Row],[Manufacturer]]<>\"\",CONCATENATE(Table_SummaryPI[[#This Row],[Manufacturer]],\"/\",Table_SummaryPI[[#This Row],[Model'#]]),\"\")","v":""},{"$f":"IF(Table_SummaryPI[[#This Row],[Serial'#]]<>\"\",Table_SummaryPI[[#This Row],[Serial'#]],\"\")","v":""},{"$f":"IF(Table_SummaryPI[[#This Row],[Quantity]]<>\"\",Table_SummaryPI[[#This Row],[Quantity]],\"\")","v":""},{"$f":"IF(Table_SummaryPI[[#This Row],[BaselinekWh]]<>\"\",Table_SummaryPI[[#This Row],[BaselinekWh]],\"\")","v":""},{"$f":"IF(Table_SummaryPI[[#This Row],[BaselinekW]]<>\"\",Table_SummaryPI[[#This Row],[BaselinekW]],\"\")","v":""},{"$f":"IF(Table_SummaryPI[[#This Row],[ProposedkWh]]<>\"\",Table_SummaryPI[[#This Row],[ProposedkWh]],\"\")","v":""},{"$f":"IF(Table_SummaryPI[[#This Row],[ProposedkW]]<>\"\",Table_SummaryPI[[#This Row],[ProposedkW]],\"\")","v":""},{"$f":"IF(Table_SummaryPI[[#This Row],[Notes]]<>\"\",Table_SummaryPI[[#This Row],[Notes]],\"\")","v":""},{"$f":"IF(Table_SummaryPI[[#This Row],[Incentive_Customer]]<>\"\",Table_SummaryPI[[#This Row],[Incentive_Customer]],0)","v":0},{"$f":"IF(Table_SummaryPI[[#This Row],[MeasureCost]]<>\"\",Table_SummaryPI[[#This Row],[MeasureCost]],0)","v":0},{"$f":"IF(Table_SummaryPI[[#This Row],[kWhSavings]]<>\"\",Table_SummaryPI[[#This Row],[kWhSavings]],0)","v":0},{"$f":"IF(Table_SummaryPI[[#This Row],[DemandSavingskW]]<>\"\",Table_SummaryPI[[#This Row],[DemandSavingskW]],0)","v":0}]
[{"$f":"Table_SummaryPI[[#This Row],[Line No.]]","v":""},{"$f":"IF(Table_PrintPI[[#This Row],[Line No.]]=\"\",\"\",CONCATENATE(Table_PrintPI[[#This Row],[Line No.]],\" - \",Table_SummaryPI[[#This Row],[MeasureName]]))","v":""},{"$f":"IF(Table_SummaryPI[[#This Row],[Manufacturer]]<>\"\",CONCATENATE(Table_SummaryPI[[#This Row],[Manufacturer]],\"/\",Table_SummaryPI[[#This Row],[Model'#]]),\"\")","v":""},{"$f":"IF(Table_SummaryPI[[#This Row],[Serial'#]]<>\"\",Table_SummaryPI[[#This Row],[Serial'#]],\"\")","v":""},{"$f":"IF(Table_SummaryPI[[#This Row],[Quantity]]<>\"\",Table_SummaryPI[[#This Row],[Quantity]],\"\")","v":""},{"$f":"IF(Table_SummaryPI[[#This Row],[BaselinekWh]]<>\"\",Table_SummaryPI[[#This Row],[BaselinekWh]],\"\")","v":""},{"$f":"IF(Table_SummaryPI[[#This Row],[BaselinekW]]<>\"\",Table_SummaryPI[[#This Row],[BaselinekW]],\"\")","v":""},{"$f":"IF(Table_SummaryPI[[#This Row],[ProposedkWh]]<>\"\",Table_SummaryPI[[#This Row],[ProposedkWh]],\"\")","v":""},{"$f":"IF(Table_SummaryPI[[#This Row],[ProposedkW]]<>\"\",Table_SummaryPI[[#This Row],[ProposedkW]],\"\")","v":""},{"$f":"IF(Table_SummaryPI[[#This Row],[Notes]]<>\"\",Table_SummaryPI[[#This Row],[Notes]],\"\")","v":""},{"$f":"IF(Table_SummaryPI[[#This Row],[Incentive_Customer]]<>\"\",Table_SummaryPI[[#This Row],[Incentive_Customer]],0)","v":0},{"$f":"IF(Table_SummaryPI[[#This Row],[MeasureCost]]<>\"\",Table_SummaryPI[[#This Row],[MeasureCost]],0)","v":0},{"$f":"IF(Table_SummaryPI[[#This Row],[kWhSavings]]<>\"\",Table_SummaryPI[[#This Row],[kWhSavings]],0)","v":0},{"$f":"IF(Table_SummaryPI[[#This Row],[DemandSavingskW]]<>\"\",Table_SummaryPI[[#This Row],[DemandSavingskW]],0)","v":0}]
[{"$f":"Table_SummaryPI[[#This Row],[Line No.]]","v":""},{"$f":"IF(Table_PrintPI[[#This Row],[Line No.]]=\"\",\"\",CONCATENATE(Table_PrintPI[[#This Row],[Line No.]],\" - \",Table_SummaryPI[[#This Row],[MeasureName]]))","v":""},{"$f":"IF(Table_SummaryPI[[#This Row],[Manufacturer]]<>\"\",CONCATENATE(Table_SummaryPI[[#This Row],[Manufacturer]],\"/\",Table_SummaryPI[[#This Row],[Model'#]]),\"\")","v":""},{"$f":"IF(Table_SummaryPI[[#This Row],[Serial'#]]<>\"\",Table_SummaryPI[[#This Row],[Serial'#]],\"\")","v":""},{"$f":"IF(Table_SummaryPI[[#This Row],[Quantity]]<>\"\",Table_SummaryPI[[#This Row],[Quantity]],\"\")","v":""},{"$f":"IF(Table_SummaryPI[[#This Row],[BaselinekWh]]<>\"\",Table_SummaryPI[[#This Row],[BaselinekWh]],\"\")","v":""},{"$f":"IF(Table_SummaryPI[[#This Row],[BaselinekW]]<>\"\",Table_SummaryPI[[#This Row],[BaselinekW]],\"\")","v":""},{"$f":"IF(Table_SummaryPI[[#This Row],[ProposedkWh]]<>\"\",Table_SummaryPI[[#This Row],[ProposedkWh]],\"\")","v":""},{"$f":"IF(Table_SummaryPI[[#This Row],[ProposedkW]]<>\"\",Table_SummaryPI[[#This Row],[ProposedkW]],\"\")","v":""},{"$f":"IF(Table_SummaryPI[[#This Row],[Notes]]<>\"\",Table_SummaryPI[[#This Row],[Notes]],\"\")","v":""},{"$f":"IF(Table_SummaryPI[[#This Row],[Incentive_Customer]]<>\"\",Table_SummaryPI[[#This Row],[Incentive_Customer]],0)","v":0},{"$f":"IF(Table_SummaryPI[[#This Row],[MeasureCost]]<>\"\",Table_SummaryPI[[#This Row],[MeasureCost]],0)","v":0},{"$f":"IF(Table_SummaryPI[[#This Row],[kWhSavings]]<>\"\",Table_SummaryPI[[#This Row],[kWhSavings]],0)","v":0},{"$f":"IF(Table_SummaryPI[[#This Row],[DemandSavingskW]]<>\"\",Table_SummaryPI[[#This Row],[DemandSavingskW]],0)","v":0}]
[{"$f":"Table_SummaryPI[[#This Row],[Line No.]]","v":""},{"$f":"IF(Table_PrintPI[[#This Row],[Line No.]]=\"\",\"\",CONCATENATE(Table_PrintPI[[#This Row],[Line No.]],\" - \",Table_SummaryPI[[#This Row],[MeasureName]]))","v":""},{"$f":"IF(Table_SummaryPI[[#This Row],[Manufacturer]]<>\"\",CONCATENATE(Table_SummaryPI[[#This Row],[Manufacturer]],\"/\",Table_SummaryPI[[#This Row],[Model'#]]),\"\")","v":""},{"$f":"IF(Table_SummaryPI[[#This Row],[Serial'#]]<>\"\",Table_SummaryPI[[#This Row],[Serial'#]],\"\")","v":""},{"$f":"IF(Table_SummaryPI[[#This Row],[Quantity]]<>\"\",Table_SummaryPI[[#This Row],[Quantity]],\"\")","v":""},{"$f":"IF(Table_SummaryPI[[#This Row],[BaselinekWh]]<>\"\",Table_SummaryPI[[#This Row],[BaselinekWh]],\"\")","v":""},{"$f":"IF(Table_SummaryPI[[#This Row],[BaselinekW]]<>\"\",Table_SummaryPI[[#This Row],[BaselinekW]],\"\")","v":""},{"$f":"IF(Table_SummaryPI[[#This Row],[ProposedkWh]]<>\"\",Table_SummaryPI[[#This Row],[ProposedkWh]],\"\")","v":""},{"$f":"IF(Table_SummaryPI[[#This Row],[ProposedkW]]<>\"\",Table_SummaryPI[[#This Row],[ProposedkW]],\"\")","v":""},{"$f":"IF(Table_SummaryPI[[#This Row],[Notes]]<>\"\",Table_SummaryPI[[#This Row],[Notes]],\"\")","v":""},{"$f":"IF(Table_SummaryPI[[#This Row],[Incentive_Customer]]<>\"\",Table_SummaryPI[[#This Row],[Incentive_Customer]],0)","v":0},{"$f":"IF(Table_SummaryPI[[#This Row],[MeasureCost]]<>\"\",Table_SummaryPI[[#This Row],[MeasureCost]],0)","v":0},{"$f":"IF(Table_SummaryPI[[#This Row],[kWhSavings]]<>\"\",Table_SummaryPI[[#This Row],[kWhSavings]],0)","v":0},{"$f":"IF(Table_SummaryPI[[#This Row],[DemandSavingskW]]<>\"\",Table_SummaryPI[[#This Row],[DemandSavingskW]],0)","v":0}]
[{"$f":"Table_SummaryPI[[#This Row],[Line No.]]","v":""},{"$f":"IF(Table_PrintPI[[#This Row],[Line No.]]=\"\",\"\",CONCATENATE(Table_PrintPI[[#This Row],[Line No.]],\" - \",Table_SummaryPI[[#This Row],[MeasureName]]))","v":""},{"$f":"IF(Table_SummaryPI[[#This Row],[Manufacturer]]<>\"\",CONCATENATE(Table_SummaryPI[[#This Row],[Manufacturer]],\"/\",Table_SummaryPI[[#This Row],[Model'#]]),\"\")","v":""},{"$f":"IF(Table_SummaryPI[[#This Row],[Serial'#]]<>\"\",Table_SummaryPI[[#This Row],[Serial'#]],\"\")","v":""},{"$f":"IF(Table_SummaryPI[[#This Row],[Quantity]]<>\"\",Table_SummaryPI[[#This Row],[Quantity]],\"\")","v":""},{"$f":"IF(Table_SummaryPI[[#This Row],[BaselinekWh]]<>\"\",Table_SummaryPI[[#This Row],[BaselinekWh]],\"\")","v":""},{"$f":"IF(Table_SummaryPI[[#This Row],[BaselinekW]]<>\"\",Table_SummaryPI[[#This Row],[BaselinekW]],\"\")","v":""},{"$f":"IF(Table_SummaryPI[[#This Row],[ProposedkWh]]<>\"\",Table_SummaryPI[[#This Row],[ProposedkWh]],\"\")","v":""},{"$f":"IF(Table_SummaryPI[[#This Row],[ProposedkW]]<>\"\",Table_SummaryPI[[#This Row],[ProposedkW]],\"\")","v":""},{"$f":"IF(Table_SummaryPI[[#This Row],[Notes]]<>\"\",Table_SummaryPI[[#This Row],[Notes]],\"\")","v":""},{"$f":"IF(Table_SummaryPI[[#This Row],[Incentive_Customer]]<>\"\",Table_SummaryPI[[#This Row],[Incentive_Customer]],0)","v":0},{"$f":"IF(Table_SummaryPI[[#This Row],[MeasureCost]]<>\"\",Table_SummaryPI[[#This Row],[MeasureCost]],0)","v":0},{"$f":"IF(Table_SummaryPI[[#This Row],[kWhSavings]]<>\"\",Table_SummaryPI[[#This Row],[kWhSavings]],0)","v":0},{"$f":"IF(Table_SummaryPI[[#This Row],[DemandSavingskW]]<>\"\",Table_SummaryPI[[#This Row],[DemandSavingskW]],0)","v":0}]
[{"$f":"Table_SummaryPI[[#This Row],[Line No.]]","v":""},{"$f":"IF(Table_PrintPI[[#This Row],[Line No.]]=\"\",\"\",CONCATENATE(Table_PrintPI[[#This Row],[Line No.]],\" - \",Table_SummaryPI[[#This Row],[MeasureName]]))","v":""},{"$f":"IF(Table_SummaryPI[[#This Row],[Manufacturer]]<>\"\",CONCATENATE(Table_SummaryPI[[#This Row],[Manufacturer]],\"/\",Table_SummaryPI[[#This Row],[Model'#]]),\"\")","v":""},{"$f":"IF(Table_SummaryPI[[#This Row],[Serial'#]]<>\"\",Table_SummaryPI[[#This Row],[Serial'#]],\"\")","v":""},{"$f":"IF(Table_SummaryPI[[#This Row],[Quantity]]<>\"\",Table_SummaryPI[[#This Row],[Quantity]],\"\")","v":""},{"$f":"IF(Table_SummaryPI[[#This Row],[BaselinekWh]]<>\"\",Table_SummaryPI[[#This Row],[BaselinekWh]],\"\")","v":""},{"$f":"IF(Table_SummaryPI[[#This Row],[BaselinekW]]<>\"\",Table_SummaryPI[[#This Row],[BaselinekW]],\"\")","v":""},{"$f":"IF(Table_SummaryPI[[#This Row],[ProposedkWh]]<>\"\",Table_SummaryPI[[#This Row],[ProposedkWh]],\"\")","v":""},{"$f":"IF(Table_SummaryPI[[#This Row],[ProposedkW]]<>\"\",Table_SummaryPI[[#This Row],[ProposedkW]],\"\")","v":""},{"$f":"IF(Table_SummaryPI[[#This Row],[Notes]]<>\"\",Table_SummaryPI[[#This Row],[Notes]],\"\")","v":""},{"$f":"IF(Table_SummaryPI[[#This Row],[Incentive_Customer]]<>\"\",Table_SummaryPI[[#This Row],[Incentive_Customer]],0)","v":0},{"$f":"IF(Table_SummaryPI[[#This Row],[MeasureCost]]<>\"\",Table_SummaryPI[[#This Row],[MeasureCost]],0)","v":0},{"$f":"IF(Table_SummaryPI[[#This Row],[kWhSavings]]<>\"\",Table_SummaryPI[[#This Row],[kWhSavings]],0)","v":0},{"$f":"IF(Table_SummaryPI[[#This Row],[DemandSavingskW]]<>\"\",Table_SummaryPI[[#This Row],[DemandSavingskW]],0)","v":0}]
[{"$f":"Table_SummaryPI[[#This Row],[Line No.]]","v":""},{"$f":"IF(Table_PrintPI[[#This Row],[Line No.]]=\"\",\"\",CONCATENATE(Table_PrintPI[[#This Row],[Line No.]],\" - \",Table_SummaryPI[[#This Row],[MeasureName]]))","v":""},{"$f":"IF(Table_SummaryPI[[#This Row],[Manufacturer]]<>\"\",CONCATENATE(Table_SummaryPI[[#This Row],[Manufacturer]],\"/\",Table_SummaryPI[[#This Row],[Model'#]]),\"\")","v":""},{"$f":"IF(Table_SummaryPI[[#This Row],[Serial'#]]<>\"\",Table_SummaryPI[[#This Row],[Serial'#]],\"\")","v":""},{"$f":"IF(Table_SummaryPI[[#This Row],[Quantity]]<>\"\",Table_SummaryPI[[#This Row],[Quantity]],\"\")","v":""},{"$f":"IF(Table_SummaryPI[[#This Row],[BaselinekWh]]<>\"\",Table_SummaryPI[[#This Row],[BaselinekWh]],\"\")","v":""},{"$f":"IF(Table_SummaryPI[[#This Row],[BaselinekW]]<>\"\",Table_SummaryPI[[#This Row],[BaselinekW]],\"\")","v":""},{"$f":"IF(Table_SummaryPI[[#This Row],[ProposedkWh]]<>\"\",Table_SummaryPI[[#This Row],[ProposedkWh]],\"\")","v":""},{"$f":"IF(Table_SummaryPI[[#This Row],[ProposedkW]]<>\"\",Table_SummaryPI[[#This Row],[ProposedkW]],\"\")","v":""},{"$f":"IF(Table_SummaryPI[[#This Row],[Notes]]<>\"\",Table_SummaryPI[[#This Row],[Notes]],\"\")","v":""},{"$f":"IF(Table_SummaryPI[[#This Row],[Incentive_Customer]]<>\"\",Table_SummaryPI[[#This Row],[Incentive_Customer]],0)","v":0},{"$f":"IF(Table_SummaryPI[[#This Row],[MeasureCost]]<>\"\",Table_SummaryPI[[#This Row],[MeasureCost]],0)","v":0},{"$f":"IF(Table_SummaryPI[[#This Row],[kWhSavings]]<>\"\",Table_SummaryPI[[#This Row],[kWhSavings]],0)","v":0},{"$f":"IF(Table_SummaryPI[[#This Row],[DemandSavingskW]]<>\"\",Table_SummaryPI[[#This Row],[DemandSavingskW]],0)","v":0}]
[{"$f":"Table_SummaryPI[[#This Row],[Line No.]]","v":""},{"$f":"IF(Table_PrintPI[[#This Row],[Line No.]]=\"\",\"\",CONCATENATE(Table_PrintPI[[#This Row],[Line No.]],\" - \",Table_SummaryPI[[#This Row],[MeasureName]]))","v":""},{"$f":"IF(Table_SummaryPI[[#This Row],[Manufacturer]]<>\"\",CONCATENATE(Table_SummaryPI[[#This Row],[Manufacturer]],\"/\",Table_SummaryPI[[#This Row],[Model'#]]),\"\")","v":""},{"$f":"IF(Table_SummaryPI[[#This Row],[Serial'#]]<>\"\",Table_SummaryPI[[#This Row],[Serial'#]],\"\")","v":""},{"$f":"IF(Table_SummaryPI[[#This Row],[Quantity]]<>\"\",Table_SummaryPI[[#This Row],[Quantity]],\"\")","v":""},{"$f":"IF(Table_SummaryPI[[#This Row],[BaselinekWh]]<>\"\",Table_SummaryPI[[#This Row],[BaselinekWh]],\"\")","v":""},{"$f":"IF(Table_SummaryPI[[#This Row],[BaselinekW]]<>\"\",Table_SummaryPI[[#This Row],[BaselinekW]],\"\")","v":""},{"$f":"IF(Table_SummaryPI[[#This Row],[ProposedkWh]]<>\"\",Table_SummaryPI[[#This Row],[ProposedkWh]],\"\")","v":""},{"$f":"IF(Table_SummaryPI[[#This Row],[ProposedkW]]<>\"\",Table_SummaryPI[[#This Row],[ProposedkW]],\"\")","v":""},{"$f":"IF(Table_SummaryPI[[#This Row],[Notes]]<>\"\",Table_SummaryPI[[#This Row],[Notes]],\"\")","v":""},{"$f":"IF(Table_SummaryPI[[#This Row],[Incentive_Customer]]<>\"\",Table_SummaryPI[[#This Row],[Incentive_Customer]],0)","v":0},{"$f":"IF(Table_SummaryPI[[#This Row],[MeasureCost]]<>\"\",Table_SummaryPI[[#This Row],[MeasureCost]],0)","v":0},{"$f":"IF(Table_SummaryPI[[#This Row],[kWhSavings]]<>\"\",Table_SummaryPI[[#This Row],[kWhSavings]],0)","v":0},{"$f":"IF(Table_SummaryPI[[#This Row],[DemandSavingskW]]<>\"\",Table_SummaryPI[[#This Row],[DemandSavingskW]],0)","v":0}]
[{"$f":"Table_SummaryPI[[#This Row],[Line No.]]","v":""},{"$f":"IF(Table_PrintPI[[#This Row],[Line No.]]=\"\",\"\",CONCATENATE(Table_PrintPI[[#This Row],[Line No.]],\" - \",Table_SummaryPI[[#This Row],[MeasureName]]))","v":""},{"$f":"IF(Table_SummaryPI[[#This Row],[Manufacturer]]<>\"\",CONCATENATE(Table_SummaryPI[[#This Row],[Manufacturer]],\"/\",Table_SummaryPI[[#This Row],[Model'#]]),\"\")","v":""},{"$f":"IF(Table_SummaryPI[[#This Row],[Serial'#]]<>\"\",Table_SummaryPI[[#This Row],[Serial'#]],\"\")","v":""},{"$f":"IF(Table_SummaryPI[[#This Row],[Quantity]]<>\"\",Table_SummaryPI[[#This Row],[Quantity]],\"\")","v":""},{"$f":"IF(Table_SummaryPI[[#This Row],[BaselinekWh]]<>\"\",Table_SummaryPI[[#This Row],[BaselinekWh]],\"\")","v":""},{"$f":"IF(Table_SummaryPI[[#This Row],[BaselinekW]]<>\"\",Table_SummaryPI[[#This Row],[BaselinekW]],\"\")","v":""},{"$f":"IF(Table_SummaryPI[[#This Row],[ProposedkWh]]<>\"\",Table_SummaryPI[[#This Row],[ProposedkWh]],\"\")","v":""},{"$f":"IF(Table_SummaryPI[[#This Row],[ProposedkW]]<>\"\",Table_SummaryPI[[#This Row],[ProposedkW]],\"\")","v":""},{"$f":"IF(Table_SummaryPI[[#This Row],[Notes]]<>\"\",Table_SummaryPI[[#This Row],[Notes]],\"\")","v":""},{"$f":"IF(Table_SummaryPI[[#This Row],[Incentive_Customer]]<>\"\",Table_SummaryPI[[#This Row],[Incentive_Customer]],0)","v":0},{"$f":"IF(Table_SummaryPI[[#This Row],[MeasureCost]]<>\"\",Table_SummaryPI[[#This Row],[MeasureCost]],0)","v":0},{"$f":"IF(Table_SummaryPI[[#This Row],[kWhSavings]]<>\"\",Table_SummaryPI[[#This Row],[kWhSavings]],0)","v":0},{"$f":"IF(Table_SummaryPI[[#This Row],[DemandSavingskW]]<>\"\",Table_SummaryPI[[#This Row],[DemandSavingskW]],0)","v":0}]
[{"$f":"Table_SummaryPI[[#This Row],[Line No.]]","v":""},{"$f":"IF(Table_PrintPI[[#This Row],[Line No.]]=\"\",\"\",CONCATENATE(Table_PrintPI[[#This Row],[Line No.]],\" - \",Table_SummaryPI[[#This Row],[MeasureName]]))","v":""},{"$f":"IF(Table_SummaryPI[[#This Row],[Manufacturer]]<>\"\",CONCATENATE(Table_SummaryPI[[#This Row],[Manufacturer]],\"/\",Table_SummaryPI[[#This Row],[Model'#]]),\"\")","v":""},{"$f":"IF(Table_SummaryPI[[#This Row],[Serial'#]]<>\"\",Table_SummaryPI[[#This Row],[Serial'#]],\"\")","v":""},{"$f":"IF(Table_SummaryPI[[#This Row],[Quantity]]<>\"\",Table_SummaryPI[[#This Row],[Quantity]],\"\")","v":""},{"$f":"IF(Table_SummaryPI[[#This Row],[BaselinekWh]]<>\"\",Table_SummaryPI[[#This Row],[BaselinekWh]],\"\")","v":""},{"$f":"IF(Table_SummaryPI[[#This Row],[BaselinekW]]<>\"\",Table_SummaryPI[[#This Row],[BaselinekW]],\"\")","v":""},{"$f":"IF(Table_SummaryPI[[#This Row],[ProposedkWh]]<>\"\",Table_SummaryPI[[#This Row],[ProposedkWh]],\"\")","v":""},{"$f":"IF(Table_SummaryPI[[#This Row],[ProposedkW]]<>\"\",Table_SummaryPI[[#This Row],[ProposedkW]],\"\")","v":""},{"$f":"IF(Table_SummaryPI[[#This Row],[Notes]]<>\"\",Table_SummaryPI[[#This Row],[Notes]],\"\")","v":""},{"$f":"IF(Table_SummaryPI[[#This Row],[Incentive_Customer]]<>\"\",Table_SummaryPI[[#This Row],[Incentive_Customer]],0)","v":0},{"$f":"IF(Table_SummaryPI[[#This Row],[MeasureCost]]<>\"\",Table_SummaryPI[[#This Row],[MeasureCost]],0)","v":0},{"$f":"IF(Table_SummaryPI[[#This Row],[kWhSavings]]<>\"\",Table_SummaryPI[[#This Row],[kWhSavings]],0)","v":0},{"$f":"IF(Table_SummaryPI[[#This Row],[DemandSavingskW]]<>\"\",Table_SummaryPI[[#This Row],[DemandSavingskW]],0)","v":0}]
[{"$f":"Table_SummaryPI[[#This Row],[Line No.]]","v":""},{"$f":"IF(Table_PrintPI[[#This Row],[Line No.]]=\"\",\"\",CONCATENATE(Table_PrintPI[[#This Row],[Line No.]],\" - \",Table_SummaryPI[[#This Row],[MeasureName]]))","v":""},{"$f":"IF(Table_SummaryPI[[#This Row],[Manufacturer]]<>\"\",CONCATENATE(Table_SummaryPI[[#This Row],[Manufacturer]],\"/\",Table_SummaryPI[[#This Row],[Model'#]]),\"\")","v":""},{"$f":"IF(Table_SummaryPI[[#This Row],[Serial'#]]<>\"\",Table_SummaryPI[[#This Row],[Serial'#]],\"\")","v":""},{"$f":"IF(Table_SummaryPI[[#This Row],[Quantity]]<>\"\",Table_SummaryPI[[#This Row],[Quantity]],\"\")","v":""},{"$f":"IF(Table_SummaryPI[[#This Row],[BaselinekWh]]<>\"\",Table_SummaryPI[[#This Row],[BaselinekWh]],\"\")","v":""},{"$f":"IF(Table_SummaryPI[[#This Row],[BaselinekW]]<>\"\",Table_SummaryPI[[#This Row],[BaselinekW]],\"\")","v":""},{"$f":"IF(Table_SummaryPI[[#This Row],[ProposedkWh]]<>\"\",Table_SummaryPI[[#This Row],[ProposedkWh]],\"\")","v":""},{"$f":"IF(Table_SummaryPI[[#This Row],[ProposedkW]]<>\"\",Table_SummaryPI[[#This Row],[ProposedkW]],\"\")","v":""},{"$f":"IF(Table_SummaryPI[[#This Row],[Notes]]<>\"\",Table_SummaryPI[[#This Row],[Notes]],\"\")","v":""},{"$f":"IF(Table_SummaryPI[[#This Row],[Incentive_Customer]]<>\"\",Table_SummaryPI[[#This Row],[Incentive_Customer]],0)","v":0},{"$f":"IF(Table_SummaryPI[[#This Row],[MeasureCost]]<>\"\",Table_SummaryPI[[#This Row],[MeasureCost]],0)","v":0},{"$f":"IF(Table_SummaryPI[[#This Row],[kWhSavings]]<>\"\",Table_SummaryPI[[#This Row],[kWhSavings]],0)","v":0},{"$f":"IF(Table_SummaryPI[[#This Row],[DemandSavingskW]]<>\"\",Table_SummaryPI[[#This Row],[DemandSavingskW]],0)","v":0}]
[{"$f":"Table_SummaryPI[[#This Row],[Line No.]]","v":""},{"$f":"IF(Table_PrintPI[[#This Row],[Line No.]]=\"\",\"\",CONCATENATE(Table_PrintPI[[#This Row],[Line No.]],\" - \",Table_SummaryPI[[#This Row],[MeasureName]]))","v":""},{"$f":"IF(Table_SummaryPI[[#This Row],[Manufacturer]]<>\"\",CONCATENATE(Table_SummaryPI[[#This Row],[Manufacturer]],\"/\",Table_SummaryPI[[#This Row],[Model'#]]),\"\")","v":""},{"$f":"IF(Table_SummaryPI[[#This Row],[Serial'#]]<>\"\",Table_SummaryPI[[#This Row],[Serial'#]],\"\")","v":""},{"$f":"IF(Table_SummaryPI[[#This Row],[Quantity]]<>\"\",Table_SummaryPI[[#This Row],[Quantity]],\"\")","v":""},{"$f":"IF(Table_SummaryPI[[#This Row],[BaselinekWh]]<>\"\",Table_SummaryPI[[#This Row],[BaselinekWh]],\"\")","v":""},{"$f":"IF(Table_SummaryPI[[#This Row],[BaselinekW]]<>\"\",Table_SummaryPI[[#This Row],[BaselinekW]],\"\")","v":""},{"$f":"IF(Table_SummaryPI[[#This Row],[ProposedkWh]]<>\"\",Table_SummaryPI[[#This Row],[ProposedkWh]],\"\")","v":""},{"$f":"IF(Table_SummaryPI[[#This Row],[ProposedkW]]<>\"\",Table_SummaryPI[[#This Row],[ProposedkW]],\"\")","v":""},{"$f":"IF(Table_SummaryPI[[#This Row],[Notes]]<>\"\",Table_SummaryPI[[#This Row],[Notes]],\"\")","v":""},{"$f":"IF(Table_SummaryPI[[#This Row],[Incentive_Customer]]<>\"\",Table_SummaryPI[[#This Row],[Incentive_Customer]],0)","v":0},{"$f":"IF(Table_SummaryPI[[#This Row],[MeasureCost]]<>\"\",Table_SummaryPI[[#This Row],[MeasureCost]],0)","v":0},{"$f":"IF(Table_SummaryPI[[#This Row],[kWhSavings]]<>\"\",Table_SummaryPI[[#This Row],[kWhSavings]],0)","v":0},{"$f":"IF(Table_SummaryPI[[#This Row],[DemandSavingskW]]<>\"\",Table_SummaryPI[[#This Row],[DemandSavingskW]],0)","v":0}]
[{"$f":"Table_SummaryPI[[#This Row],[Line No.]]","v":""},{"$f":"IF(Table_PrintPI[[#This Row],[Line No.]]=\"\",\"\",CONCATENATE(Table_PrintPI[[#This Row],[Line No.]],\" - \",Table_SummaryPI[[#This Row],[MeasureName]]))","v":""},{"$f":"IF(Table_SummaryPI[[#This Row],[Manufacturer]]<>\"\",CONCATENATE(Table_SummaryPI[[#This Row],[Manufacturer]],\"/\",Table_SummaryPI[[#This Row],[Model'#]]),\"\")","v":""},{"$f":"IF(Table_SummaryPI[[#This Row],[Serial'#]]<>\"\",Table_SummaryPI[[#This Row],[Serial'#]],\"\")","v":""},{"$f":"IF(Table_SummaryPI[[#This Row],[Quantity]]<>\"\",Table_SummaryPI[[#This Row],[Quantity]],\"\")","v":""},{"$f":"IF(Table_SummaryPI[[#This Row],[BaselinekWh]]<>\"\",Table_SummaryPI[[#This Row],[BaselinekWh]],\"\")","v":""},{"$f":"IF(Table_SummaryPI[[#This Row],[BaselinekW]]<>\"\",Table_SummaryPI[[#This Row],[BaselinekW]],\"\")","v":""},{"$f":"IF(Table_SummaryPI[[#This Row],[ProposedkWh]]<>\"\",Table_SummaryPI[[#This Row],[ProposedkWh]],\"\")","v":""},{"$f":"IF(Table_SummaryPI[[#This Row],[ProposedkW]]<>\"\",Table_SummaryPI[[#This Row],[ProposedkW]],\"\")","v":""},{"$f":"IF(Table_SummaryPI[[#This Row],[Notes]]<>\"\",Table_SummaryPI[[#This Row],[Notes]],\"\")","v":""},{"$f":"IF(Table_SummaryPI[[#This Row],[Incentive_Customer]]<>\"\",Table_SummaryPI[[#This Row],[Incentive_Customer]],0)","v":0},{"$f":"IF(Table_SummaryPI[[#This Row],[MeasureCost]]<>\"\",Table_SummaryPI[[#This Row],[MeasureCost]],0)","v":0},{"$f":"IF(Table_SummaryPI[[#This Row],[kWhSavings]]<>\"\",Table_SummaryPI[[#This Row],[kWhSavings]],0)","v":0},{"$f":"IF(Table_SummaryPI[[#This Row],[DemandSavingskW]]<>\"\",Table_SummaryPI[[#This Row],[DemandSavingskW]],0)","v":0}]
[{"$f":"Table_SummaryPI[[#This Row],[Line No.]]","v":""},{"$f":"IF(Table_PrintPI[[#This Row],[Line No.]]=\"\",\"\",CONCATENATE(Table_PrintPI[[#This Row],[Line No.]],\" - \",Table_SummaryPI[[#This Row],[MeasureName]]))","v":""},{"$f":"IF(Table_SummaryPI[[#This Row],[Manufacturer]]<>\"\",CONCATENATE(Table_SummaryPI[[#This Row],[Manufacturer]],\"/\",Table_SummaryPI[[#This Row],[Model'#]]),\"\")","v":""},{"$f":"IF(Table_SummaryPI[[#This Row],[Serial'#]]<>\"\",Table_SummaryPI[[#This Row],[Serial'#]],\"\")","v":""},{"$f":"IF(Table_SummaryPI[[#This Row],[Quantity]]<>\"\",Table_SummaryPI[[#This Row],[Quantity]],\"\")","v":""},{"$f":"IF(Table_SummaryPI[[#This Row],[BaselinekWh]]<>\"\",Table_SummaryPI[[#This Row],[BaselinekWh]],\"\")","v":""},{"$f":"IF(Table_SummaryPI[[#This Row],[BaselinekW]]<>\"\",Table_SummaryPI[[#This Row],[BaselinekW]],\"\")","v":""},{"$f":"IF(Table_SummaryPI[[#This Row],[ProposedkWh]]<>\"\",Table_SummaryPI[[#This Row],[ProposedkWh]],\"\")","v":""},{"$f":"IF(Table_SummaryPI[[#This Row],[ProposedkW]]<>\"\",Table_SummaryPI[[#This Row],[ProposedkW]],\"\")","v":""},{"$f":"IF(Table_SummaryPI[[#This Row],[Notes]]<>\"\",Table_SummaryPI[[#This Row],[Notes]],\"\")","v":""},{"$f":"IF(Table_SummaryPI[[#This Row],[Incentive_Customer]]<>\"\",Table_SummaryPI[[#This Row],[Incentive_Customer]],0)","v":0},{"$f":"IF(Table_SummaryPI[[#This Row],[MeasureCost]]<>\"\",Table_SummaryPI[[#This Row],[MeasureCost]],0)","v":0},{"$f":"IF(Table_SummaryPI[[#This Row],[kWhSavings]]<>\"\",Table_SummaryPI[[#This Row],[kWhSavings]],0)","v":0},{"$f":"IF(Table_SummaryPI[[#This Row],[DemandSavingskW]]<>\"\",Table_SummaryPI[[#This Row],[DemandSavingskW]],0)","v":0}]
[{"$f":"Table_SummaryPI[[#This Row],[Line No.]]","v":""},{"$f":"IF(Table_PrintPI[[#This Row],[Line No.]]=\"\",\"\",CONCATENATE(Table_PrintPI[[#This Row],[Line No.]],\" - \",Table_SummaryPI[[#This Row],[MeasureName]]))","v":""},{"$f":"IF(Table_SummaryPI[[#This Row],[Manufacturer]]<>\"\",CONCATENATE(Table_SummaryPI[[#This Row],[Manufacturer]],\"/\",Table_SummaryPI[[#This Row],[Model'#]]),\"\")","v":""},{"$f":"IF(Table_SummaryPI[[#This Row],[Serial'#]]<>\"\",Table_SummaryPI[[#This Row],[Serial'#]],\"\")","v":""},{"$f":"IF(Table_SummaryPI[[#This Row],[Quantity]]<>\"\",Table_SummaryPI[[#This Row],[Quantity]],\"\")","v":""},{"$f":"IF(Table_SummaryPI[[#This Row],[BaselinekWh]]<>\"\",Table_SummaryPI[[#This Row],[BaselinekWh]],\"\")","v":""},{"$f":"IF(Table_SummaryPI[[#This Row],[BaselinekW]]<>\"\",Table_SummaryPI[[#This Row],[BaselinekW]],\"\")","v":""},{"$f":"IF(Table_SummaryPI[[#This Row],[ProposedkWh]]<>\"\",Table_SummaryPI[[#This Row],[ProposedkWh]],\"\")","v":""},{"$f":"IF(Table_SummaryPI[[#This Row],[ProposedkW]]<>\"\",Table_SummaryPI[[#This Row],[ProposedkW]],\"\")","v":""},{"$f":"IF(Table_SummaryPI[[#This Row],[Notes]]<>\"\",Table_SummaryPI[[#This Row],[Notes]],\"\")","v":""},{"$f":"IF(Table_SummaryPI[[#This Row],[Incentive_Customer]]<>\"\",Table_SummaryPI[[#This Row],[Incentive_Customer]],0)","v":0},{"$f":"IF(Table_SummaryPI[[#This Row],[MeasureCost]]<>\"\",Table_SummaryPI[[#This Row],[MeasureCost]],0)","v":0},{"$f":"IF(Table_SummaryPI[[#This Row],[kWhSavings]]<>\"\",Table_SummaryPI[[#This Row],[kWhSavings]],0)","v":0},{"$f":"IF(Table_SummaryPI[[#This Row],[DemandSavingskW]]<>\"\",Table_SummaryPI[[#This Row],[DemandSavingskW]],0)","v":0}]
[{"$f":"Table_SummaryPI[[#This Row],[Line No.]]","v":""},{"$f":"IF(Table_PrintPI[[#This Row],[Line No.]]=\"\",\"\",CONCATENATE(Table_PrintPI[[#This Row],[Line No.]],\" - \",Table_SummaryPI[[#This Row],[MeasureName]]))","v":""},{"$f":"IF(Table_SummaryPI[[#This Row],[Manufacturer]]<>\"\",CONCATENATE(Table_SummaryPI[[#This Row],[Manufacturer]],\"/\",Table_SummaryPI[[#This Row],[Model'#]]),\"\")","v":""},{"$f":"IF(Table_SummaryPI[[#This Row],[Serial'#]]<>\"\",Table_SummaryPI[[#This Row],[Serial'#]],\"\")","v":""},{"$f":"IF(Table_SummaryPI[[#This Row],[Quantity]]<>\"\",Table_SummaryPI[[#This Row],[Quantity]],\"\")","v":""},{"$f":"IF(Table_SummaryPI[[#This Row],[BaselinekWh]]<>\"\",Table_SummaryPI[[#This Row],[BaselinekWh]],\"\")","v":""},{"$f":"IF(Table_SummaryPI[[#This Row],[BaselinekW]]<>\"\",Table_SummaryPI[[#This Row],[BaselinekW]],\"\")","v":""},{"$f":"IF(Table_SummaryPI[[#This Row],[ProposedkWh]]<>\"\",Table_SummaryPI[[#This Row],[ProposedkWh]],\"\")","v":""},{"$f":"IF(Table_SummaryPI[[#This Row],[ProposedkW]]<>\"\",Table_SummaryPI[[#This Row],[ProposedkW]],\"\")","v":""},{"$f":"IF(Table_SummaryPI[[#This Row],[Notes]]<>\"\",Table_SummaryPI[[#This Row],[Notes]],\"\")","v":""},{"$f":"IF(Table_SummaryPI[[#This Row],[Incentive_Customer]]<>\"\",Table_SummaryPI[[#This Row],[Incentive_Customer]],0)","v":0},{"$f":"IF(Table_SummaryPI[[#This Row],[MeasureCost]]<>\"\",Table_SummaryPI[[#This Row],[MeasureCost]],0)","v":0},{"$f":"IF(Table_SummaryPI[[#This Row],[kWhSavings]]<>\"\",Table_SummaryPI[[#This Row],[kWhSavings]],0)","v":0},{"$f":"IF(Table_SummaryPI[[#This Row],[DemandSavingskW]]<>\"\",Table_SummaryPI[[#This Row],[DemandSavingskW]],0)","v":0}]
[{"$f":"Table_SummaryPI[[#This Row],[Line No.]]","v":""},{"$f":"IF(Table_PrintPI[[#This Row],[Line No.]]=\"\",\"\",CONCATENATE(Table_PrintPI[[#This Row],[Line No.]],\" - \",Table_SummaryPI[[#This Row],[MeasureName]]))","v":""},{"$f":"IF(Table_SummaryPI[[#This Row],[Manufacturer]]<>\"\",CONCATENATE(Table_SummaryPI[[#This Row],[Manufacturer]],\"/\",Table_SummaryPI[[#This Row],[Model'#]]),\"\")","v":""},{"$f":"IF(Table_SummaryPI[[#This Row],[Serial'#]]<>\"\",Table_SummaryPI[[#This Row],[Serial'#]],\"\")","v":""},{"$f":"IF(Table_SummaryPI[[#This Row],[Quantity]]<>\"\",Table_SummaryPI[[#This Row],[Quantity]],\"\")","v":""},{"$f":"IF(Table_SummaryPI[[#This Row],[BaselinekWh]]<>\"\",Table_SummaryPI[[#This Row],[BaselinekWh]],\"\")","v":""},{"$f":"IF(Table_SummaryPI[[#This Row],[BaselinekW]]<>\"\",Table_SummaryPI[[#This Row],[BaselinekW]],\"\")","v":""},{"$f":"IF(Table_SummaryPI[[#This Row],[ProposedkWh]]<>\"\",Table_SummaryPI[[#This Row],[ProposedkWh]],\"\")","v":""},{"$f":"IF(Table_SummaryPI[[#This Row],[ProposedkW]]<>\"\",Table_SummaryPI[[#This Row],[ProposedkW]],\"\")","v":""},{"$f":"IF(Table_SummaryPI[[#This Row],[Notes]]<>\"\",Table_SummaryPI[[#This Row],[Notes]],\"\")","v":""},{"$f":"IF(Table_SummaryPI[[#This Row],[Incentive_Customer]]<>\"\",Table_SummaryPI[[#This Row],[Incentive_Customer]],0)","v":0},{"$f":"IF(Table_SummaryPI[[#This Row],[MeasureCost]]<>\"\",Table_SummaryPI[[#This Row],[MeasureCost]],0)","v":0},{"$f":"IF(Table_SummaryPI[[#This Row],[kWhSavings]]<>\"\",Table_SummaryPI[[#This Row],[kWhSavings]],0)","v":0},{"$f":"IF(Table_SummaryPI[[#This Row],[DemandSavingskW]]<>\"\",Table_SummaryPI[[#This Row],[DemandSavingskW]],0)","v":0}]
[{"$f":"Table_SummaryPI[[#This Row],[Line No.]]","v":""},{"$f":"IF(Table_PrintPI[[#This Row],[Line No.]]=\"\",\"\",CONCATENATE(Table_PrintPI[[#This Row],[Line No.]],\" - \",Table_SummaryPI[[#This Row],[MeasureName]]))","v":""},{"$f":"IF(Table_SummaryPI[[#This Row],[Manufacturer]]<>\"\",CONCATENATE(Table_SummaryPI[[#This Row],[Manufacturer]],\"/\",Table_SummaryPI[[#This Row],[Model'#]]),\"\")","v":""},{"$f":"IF(Table_SummaryPI[[#This Row],[Serial'#]]<>\"\",Table_SummaryPI[[#This Row],[Serial'#]],\"\")","v":""},{"$f":"IF(Table_SummaryPI[[#This Row],[Quantity]]<>\"\",Table_SummaryPI[[#This Row],[Quantity]],\"\")","v":""},{"$f":"IF(Table_SummaryPI[[#This Row],[BaselinekWh]]<>\"\",Table_SummaryPI[[#This Row],[BaselinekWh]],\"\")","v":""},{"$f":"IF(Table_SummaryPI[[#This Row],[BaselinekW]]<>\"\",Table_SummaryPI[[#This Row],[BaselinekW]],\"\")","v":""},{"$f":"IF(Table_SummaryPI[[#This Row],[ProposedkWh]]<>\"\",Table_SummaryPI[[#This Row],[ProposedkWh]],\"\")","v":""},{"$f":"IF(Table_SummaryPI[[#This Row],[ProposedkW]]<>\"\",Table_SummaryPI[[#This Row],[ProposedkW]],\"\")","v":""},{"$f":"IF(Table_SummaryPI[[#This Row],[Notes]]<>\"\",Table_SummaryPI[[#This Row],[Notes]],\"\")","v":""},{"$f":"IF(Table_SummaryPI[[#This Row],[Incentive_Customer]]<>\"\",Table_SummaryPI[[#This Row],[Incentive_Customer]],0)","v":0},{"$f":"IF(Table_SummaryPI[[#This Row],[MeasureCost]]<>\"\",Table_SummaryPI[[#This Row],[MeasureCost]],0)","v":0},{"$f":"IF(Table_SummaryPI[[#This Row],[kWhSavings]]<>\"\",Table_SummaryPI[[#This Row],[kWhSavings]],0)","v":0},{"$f":"IF(Table_SummaryPI[[#This Row],[DemandSavingskW]]<>\"\",Table_SummaryPI[[#This Row],[DemandSavingskW]],0)","v":0}]
[{"$f":"Table_SummaryPI[[#This Row],[Line No.]]","v":""},{"$f":"IF(Table_PrintPI[[#This Row],[Line No.]]=\"\",\"\",CONCATENATE(Table_PrintPI[[#This Row],[Line No.]],\" - \",Table_SummaryPI[[#This Row],[MeasureName]]))","v":""},{"$f":"IF(Table_SummaryPI[[#This Row],[Manufacturer]]<>\"\",CONCATENATE(Table_SummaryPI[[#This Row],[Manufacturer]],\"/\",Table_SummaryPI[[#This Row],[Model'#]]),\"\")","v":""},{"$f":"IF(Table_SummaryPI[[#This Row],[Serial'#]]<>\"\",Table_SummaryPI[[#This Row],[Serial'#]],\"\")","v":""},{"$f":"IF(Table_SummaryPI[[#This Row],[Quantity]]<>\"\",Table_SummaryPI[[#This Row],[Quantity]],\"\")","v":""},{"$f":"IF(Table_SummaryPI[[#This Row],[BaselinekWh]]<>\"\",Table_SummaryPI[[#This Row],[BaselinekWh]],\"\")","v":""},{"$f":"IF(Table_SummaryPI[[#This Row],[BaselinekW]]<>\"\",Table_SummaryPI[[#This Row],[BaselinekW]],\"\")","v":""},{"$f":"IF(Table_SummaryPI[[#This Row],[ProposedkWh]]<>\"\",Table_SummaryPI[[#This Row],[ProposedkWh]],\"\")","v":""},{"$f":"IF(Table_SummaryPI[[#This Row],[ProposedkW]]<>\"\",Table_SummaryPI[[#This Row],[ProposedkW]],\"\")","v":""},{"$f":"IF(Table_SummaryPI[[#This Row],[Notes]]<>\"\",Table_SummaryPI[[#This Row],[Notes]],\"\")","v":""},{"$f":"IF(Table_SummaryPI[[#This Row],[Incentive_Customer]]<>\"\",Table_SummaryPI[[#This Row],[Incentive_Customer]],0)","v":0},{"$f":"IF(Table_SummaryPI[[#This Row],[MeasureCost]]<>\"\",Table_SummaryPI[[#This Row],[MeasureCost]],0)","v":0},{"$f":"IF(Table_SummaryPI[[#This Row],[kWhSavings]]<>\"\",Table_SummaryPI[[#This Row],[kWhSavings]],0)","v":0},{"$f":"IF(Table_SummaryPI[[#This Row],[DemandSavingskW]]<>\"\",Table_SummaryPI[[#This Row],[DemandSavingskW]],0)","v":0}]
[{"$f":"Table_SummaryPI[[#This Row],[Line No.]]","v":""},{"$f":"IF(Table_PrintPI[[#This Row],[Line No.]]=\"\",\"\",CONCATENATE(Table_PrintPI[[#This Row],[Line No.]],\" - \",Table_SummaryPI[[#This Row],[MeasureName]]))","v":""},{"$f":"IF(Table_SummaryPI[[#This Row],[Manufacturer]]<>\"\",CONCATENATE(Table_SummaryPI[[#This Row],[Manufacturer]],\"/\",Table_SummaryPI[[#This Row],[Model'#]]),\"\")","v":""},{"$f":"IF(Table_SummaryPI[[#This Row],[Serial'#]]<>\"\",Table_SummaryPI[[#This Row],[Serial'#]],\"\")","v":""},{"$f":"IF(Table_SummaryPI[[#This Row],[Quantity]]<>\"\",Table_SummaryPI[[#This Row],[Quantity]],\"\")","v":""},{"$f":"IF(Table_SummaryPI[[#This Row],[BaselinekWh]]<>\"\",Table_SummaryPI[[#This Row],[BaselinekWh]],\"\")","v":""},{"$f":"IF(Table_SummaryPI[[#This Row],[BaselinekW]]<>\"\",Table_SummaryPI[[#This Row],[BaselinekW]],\"\")","v":""},{"$f":"IF(Table_SummaryPI[[#This Row],[ProposedkWh]]<>\"\",Table_SummaryPI[[#This Row],[ProposedkWh]],\"\")","v":""},{"$f":"IF(Table_SummaryPI[[#This Row],[ProposedkW]]<>\"\",Table_SummaryPI[[#This Row],[ProposedkW]],\"\")","v":""},{"$f":"IF(Table_SummaryPI[[#This Row],[Notes]]<>\"\",Table_SummaryPI[[#This Row],[Notes]],\"\")","v":""},{"$f":"IF(Table_SummaryPI[[#This Row],[Incentive_Customer]]<>\"\",Table_SummaryPI[[#This Row],[Incentive_Customer]],0)","v":0},{"$f":"IF(Table_SummaryPI[[#This Row],[MeasureCost]]<>\"\",Table_SummaryPI[[#This Row],[MeasureCost]],0)","v":0},{"$f":"IF(Table_SummaryPI[[#This Row],[kWhSavings]]<>\"\",Table_SummaryPI[[#This Row],[kWhSavings]],0)","v":0},{"$f":"IF(Table_SummaryPI[[#This Row],[DemandSavingskW]]<>\"\",Table_SummaryPI[[#This Row],[DemandSavingskW]],0)","v":0}]
[{"$f":"Table_SummaryPI[[#This Row],[Line No.]]","v":""},{"$f":"IF(Table_PrintPI[[#This Row],[Line No.]]=\"\",\"\",CONCATENATE(Table_PrintPI[[#This Row],[Line No.]],\" - \",Table_SummaryPI[[#This Row],[MeasureName]]))","v":""},{"$f":"IF(Table_SummaryPI[[#This Row],[Manufacturer]]<>\"\",CONCATENATE(Table_SummaryPI[[#This Row],[Manufacturer]],\"/\",Table_SummaryPI[[#This Row],[Model'#]]),\"\")","v":""},{"$f":"IF(Table_SummaryPI[[#This Row],[Serial'#]]<>\"\",Table_SummaryPI[[#This Row],[Serial'#]],\"\")","v":""},{"$f":"IF(Table_SummaryPI[[#This Row],[Quantity]]<>\"\",Table_SummaryPI[[#This Row],[Quantity]],\"\")","v":""},{"$f":"IF(Table_SummaryPI[[#This Row],[BaselinekWh]]<>\"\",Table_SummaryPI[[#This Row],[BaselinekWh]],\"\")","v":""},{"$f":"IF(Table_SummaryPI[[#This Row],[BaselinekW]]<>\"\",Table_SummaryPI[[#This Row],[BaselinekW]],\"\")","v":""},{"$f":"IF(Table_SummaryPI[[#This Row],[ProposedkWh]]<>\"\",Table_SummaryPI[[#This Row],[ProposedkWh]],\"\")","v":""},{"$f":"IF(Table_SummaryPI[[#This Row],[ProposedkW]]<>\"\",Table_SummaryPI[[#This Row],[ProposedkW]],\"\")","v":""},{"$f":"IF(Table_SummaryPI[[#This Row],[Notes]]<>\"\",Table_SummaryPI[[#This Row],[Notes]],\"\")","v":""},{"$f":"IF(Table_SummaryPI[[#This Row],[Incentive_Customer]]<>\"\",Table_SummaryPI[[#This Row],[Incentive_Customer]],0)","v":0},{"$f":"IF(Table_SummaryPI[[#This Row],[MeasureCost]]<>\"\",Table_SummaryPI[[#This Row],[MeasureCost]],0)","v":0},{"$f":"IF(Table_SummaryPI[[#This Row],[kWhSavings]]<>\"\",Table_SummaryPI[[#This Row],[kWhSavings]],0)","v":0},{"$f":"IF(Table_SummaryPI[[#This Row],[DemandSavingskW]]<>\"\",Table_SummaryPI[[#This Row],[DemandSavingskW]],0)","v":0}]
[{"$f":"Table_SummaryPI[[#This Row],[Line No.]]","v":""},{"$f":"IF(Table_PrintPI[[#This Row],[Line No.]]=\"\",\"\",CONCATENATE(Table_PrintPI[[#This Row],[Line No.]],\" - \",Table_SummaryPI[[#This Row],[MeasureName]]))","v":""},{"$f":"IF(Table_SummaryPI[[#This Row],[Manufacturer]]<>\"\",CONCATENATE(Table_SummaryPI[[#This Row],[Manufacturer]],\"/\",Table_SummaryPI[[#This Row],[Model'#]]),\"\")","v":""},{"$f":"IF(Table_SummaryPI[[#This Row],[Serial'#]]<>\"\",Table_SummaryPI[[#This Row],[Serial'#]],\"\")","v":""},{"$f":"IF(Table_SummaryPI[[#This Row],[Quantity]]<>\"\",Table_SummaryPI[[#This Row],[Quantity]],\"\")","v":""},{"$f":"IF(Table_SummaryPI[[#This Row],[BaselinekWh]]<>\"\",Table_SummaryPI[[#This Row],[BaselinekWh]],\"\")","v":""},{"$f":"IF(Table_SummaryPI[[#This Row],[BaselinekW]]<>\"\",Table_SummaryPI[[#This Row],[BaselinekW]],\"\")","v":""},{"$f":"IF(Table_SummaryPI[[#This Row],[ProposedkWh]]<>\"\",Table_SummaryPI[[#This Row],[ProposedkWh]],\"\")","v":""},{"$f":"IF(Table_SummaryPI[[#This Row],[ProposedkW]]<>\"\",Table_SummaryPI[[#This Row],[ProposedkW]],\"\")","v":""},{"$f":"IF(Table_SummaryPI[[#This Row],[Notes]]<>\"\",Table_SummaryPI[[#This Row],[Notes]],\"\")","v":""},{"$f":"IF(Table_SummaryPI[[#This Row],[Incentive_Customer]]<>\"\",Table_SummaryPI[[#This Row],[Incentive_Customer]],0)","v":0},{"$f":"IF(Table_SummaryPI[[#This Row],[MeasureCost]]<>\"\",Table_SummaryPI[[#This Row],[MeasureCost]],0)","v":0},{"$f":"IF(Table_SummaryPI[[#This Row],[kWhSavings]]<>\"\",Table_SummaryPI[[#This Row],[kWhSavings]],0)","v":0},{"$f":"IF(Table_SummaryPI[[#This Row],[DemandSavingskW]]<>\"\",Table_SummaryPI[[#This Row],[DemandSavingskW]],0)","v":0}]
[{"$f":"Table_SummaryPI[[#This Row],[Line No.]]","v":""},{"$f":"IF(Table_PrintPI[[#This Row],[Line No.]]=\"\",\"\",CONCATENATE(Table_PrintPI[[#This Row],[Line No.]],\" - \",Table_SummaryPI[[#This Row],[MeasureName]]))","v":""},{"$f":"IF(Table_SummaryPI[[#This Row],[Manufacturer]]<>\"\",CONCATENATE(Table_SummaryPI[[#This Row],[Manufacturer]],\"/\",Table_SummaryPI[[#This Row],[Model'#]]),\"\")","v":""},{"$f":"IF(Table_SummaryPI[[#This Row],[Serial'#]]<>\"\",Table_SummaryPI[[#This Row],[Serial'#]],\"\")","v":""},{"$f":"IF(Table_SummaryPI[[#This Row],[Quantity]]<>\"\",Table_SummaryPI[[#This Row],[Quantity]],\"\")","v":""},{"$f":"IF(Table_SummaryPI[[#This Row],[BaselinekWh]]<>\"\",Table_SummaryPI[[#This Row],[BaselinekWh]],\"\")","v":""},{"$f":"IF(Table_SummaryPI[[#This Row],[BaselinekW]]<>\"\",Table_SummaryPI[[#This Row],[BaselinekW]],\"\")","v":""},{"$f":"IF(Table_SummaryPI[[#This Row],[ProposedkWh]]<>\"\",Table_SummaryPI[[#This Row],[ProposedkWh]],\"\")","v":""},{"$f":"IF(Table_SummaryPI[[#This Row],[ProposedkW]]<>\"\",Table_SummaryPI[[#This Row],[ProposedkW]],\"\")","v":""},{"$f":"IF(Table_SummaryPI[[#This Row],[Notes]]<>\"\",Table_SummaryPI[[#This Row],[Notes]],\"\")","v":""},{"$f":"IF(Table_SummaryPI[[#This Row],[Incentive_Customer]]<>\"\",Table_SummaryPI[[#This Row],[Incentive_Customer]],0)","v":0},{"$f":"IF(Table_SummaryPI[[#This Row],[MeasureCost]]<>\"\",Table_SummaryPI[[#This Row],[MeasureCost]],0)","v":0},{"$f":"IF(Table_SummaryPI[[#This Row],[kWhSavings]]<>\"\",Table_SummaryPI[[#This Row],[kWhSavings]],0)","v":0},{"$f":"IF(Table_SummaryPI[[#This Row],[DemandSavingskW]]<>\"\",Table_SummaryPI[[#This Row],[DemandSavingskW]],0)","v":0}]
[{"$f":"Table_SummaryPI[[#This Row],[Line No.]]","v":""},{"$f":"IF(Table_PrintPI[[#This Row],[Line No.]]=\"\",\"\",CONCATENATE(Table_PrintPI[[#This Row],[Line No.]],\" - \",Table_SummaryPI[[#This Row],[MeasureName]]))","v":""},{"$f":"IF(Table_SummaryPI[[#This Row],[Manufacturer]]<>\"\",CONCATENATE(Table_SummaryPI[[#This Row],[Manufacturer]],\"/\",Table_SummaryPI[[#This Row],[Model'#]]),\"\")","v":""},{"$f":"IF(Table_SummaryPI[[#This Row],[Serial'#]]<>\"\",Table_SummaryPI[[#This Row],[Serial'#]],\"\")","v":""},{"$f":"IF(Table_SummaryPI[[#This Row],[Quantity]]<>\"\",Table_SummaryPI[[#This Row],[Quantity]],\"\")","v":""},{"$f":"IF(Table_SummaryPI[[#This Row],[BaselinekWh]]<>\"\",Table_SummaryPI[[#This Row],[BaselinekWh]],\"\")","v":""},{"$f":"IF(Table_SummaryPI[[#This Row],[BaselinekW]]<>\"\",Table_SummaryPI[[#This Row],[BaselinekW]],\"\")","v":""},{"$f":"IF(Table_SummaryPI[[#This Row],[ProposedkWh]]<>\"\",Table_SummaryPI[[#This Row],[ProposedkWh]],\"\")","v":""},{"$f":"IF(Table_SummaryPI[[#This Row],[ProposedkW]]<>\"\",Table_SummaryPI[[#This Row],[ProposedkW]],\"\")","v":""},{"$f":"IF(Table_SummaryPI[[#This Row],[Notes]]<>\"\",Table_SummaryPI[[#This Row],[Notes]],\"\")","v":""},{"$f":"IF(Table_SummaryPI[[#This Row],[Incentive_Customer]]<>\"\",Table_SummaryPI[[#This Row],[Incentive_Customer]],0)","v":0},{"$f":"IF(Table_SummaryPI[[#This Row],[MeasureCost]]<>\"\",Table_SummaryPI[[#This Row],[MeasureCost]],0)","v":0},{"$f":"IF(Table_SummaryPI[[#This Row],[kWhSavings]]<>\"\",Table_SummaryPI[[#This Row],[kWhSavings]],0)","v":0},{"$f":"IF(Table_SummaryPI[[#This Row],[DemandSavingskW]]<>\"\",Table_SummaryPI[[#This Row],[DemandSavingskW]],0)","v":0}]
[{"$f":"Table_SummaryPI[[#This Row],[Line No.]]","v":""},{"$f":"IF(Table_PrintPI[[#This Row],[Line No.]]=\"\",\"\",CONCATENATE(Table_PrintPI[[#This Row],[Line No.]],\" - \",Table_SummaryPI[[#This Row],[MeasureName]]))","v":""},{"$f":"IF(Table_SummaryPI[[#This Row],[Manufacturer]]<>\"\",CONCATENATE(Table_SummaryPI[[#This Row],[Manufacturer]],\"/\",Table_SummaryPI[[#This Row],[Model'#]]),\"\")","v":""},{"$f":"IF(Table_SummaryPI[[#This Row],[Serial'#]]<>\"\",Table_SummaryPI[[#This Row],[Serial'#]],\"\")","v":""},{"$f":"IF(Table_SummaryPI[[#This Row],[Quantity]]<>\"\",Table_SummaryPI[[#This Row],[Quantity]],\"\")","v":""},{"$f":"IF(Table_SummaryPI[[#This Row],[BaselinekWh]]<>\"\",Table_SummaryPI[[#This Row],[BaselinekWh]],\"\")","v":""},{"$f":"IF(Table_SummaryPI[[#This Row],[BaselinekW]]<>\"\",Table_SummaryPI[[#This Row],[BaselinekW]],\"\")","v":""},{"$f":"IF(Table_SummaryPI[[#This Row],[ProposedkWh]]<>\"\",Table_SummaryPI[[#This Row],[ProposedkWh]],\"\")","v":""},{"$f":"IF(Table_SummaryPI[[#This Row],[ProposedkW]]<>\"\",Table_SummaryPI[[#This Row],[ProposedkW]],\"\")","v":""},{"$f":"IF(Table_SummaryPI[[#This Row],[Notes]]<>\"\",Table_SummaryPI[[#This Row],[Notes]],\"\")","v":""},{"$f":"IF(Table_SummaryPI[[#This Row],[Incentive_Customer]]<>\"\",Table_SummaryPI[[#This Row],[Incentive_Customer]],0)","v":0},{"$f":"IF(Table_SummaryPI[[#This Row],[MeasureCost]]<>\"\",Table_SummaryPI[[#This Row],[MeasureCost]],0)","v":0},{"$f":"IF(Table_SummaryPI[[#This Row],[kWhSavings]]<>\"\",Table_SummaryPI[[#This Row],[kWhSavings]],0)","v":0},{"$f":"IF(Table_SummaryPI[[#This Row],[DemandSavingskW]]<>\"\",Table_SummaryPI[[#This Row],[DemandSavingskW]],0)","v":0}]
[{"$f":"Table_SummaryPI[[#This Row],[Line No.]]","v":""},{"$f":"IF(Table_PrintPI[[#This Row],[Line No.]]=\"\",\"\",CONCATENATE(Table_PrintPI[[#This Row],[Line No.]],\" - \",Table_SummaryPI[[#This Row],[MeasureName]]))","v":""},{"$f":"IF(Table_SummaryPI[[#This Row],[Manufacturer]]<>\"\",CONCATENATE(Table_SummaryPI[[#This Row],[Manufacturer]],\"/\",Table_SummaryPI[[#This Row],[Model'#]]),\"\")","v":""},{"$f":"IF(Table_SummaryPI[[#This Row],[Serial'#]]<>\"\",Table_SummaryPI[[#This Row],[Serial'#]],\"\")","v":""},{"$f":"IF(Table_SummaryPI[[#This Row],[Quantity]]<>\"\",Table_SummaryPI[[#This Row],[Quantity]],\"\")","v":""},{"$f":"IF(Table_SummaryPI[[#This Row],[BaselinekWh]]<>\"\",Table_SummaryPI[[#This Row],[BaselinekWh]],\"\")","v":""},{"$f":"IF(Table_SummaryPI[[#This Row],[BaselinekW]]<>\"\",Table_SummaryPI[[#This Row],[BaselinekW]],\"\")","v":""},{"$f":"IF(Table_SummaryPI[[#This Row],[ProposedkWh]]<>\"\",Table_SummaryPI[[#This Row],[ProposedkWh]],\"\")","v":""},{"$f":"IF(Table_SummaryPI[[#This Row],[ProposedkW]]<>\"\",Table_SummaryPI[[#This Row],[ProposedkW]],\"\")","v":""},{"$f":"IF(Table_SummaryPI[[#This Row],[Notes]]<>\"\",Table_SummaryPI[[#This Row],[Notes]],\"\")","v":""},{"$f":"IF(Table_SummaryPI[[#This Row],[Incentive_Customer]]<>\"\",Table_SummaryPI[[#This Row],[Incentive_Customer]],0)","v":0},{"$f":"IF(Table_SummaryPI[[#This Row],[MeasureCost]]<>\"\",Table_SummaryPI[[#This Row],[MeasureCost]],0)","v":0},{"$f":"IF(Table_SummaryPI[[#This Row],[kWhSavings]]<>\"\",Table_SummaryPI[[#This Row],[kWhSavings]],0)","v":0},{"$f":"IF(Table_SummaryPI[[#This Row],[DemandSavingskW]]<>\"\",Table_SummaryPI[[#This Row],[DemandSavingskW]],0)","v":0}]
[{"$f":"Table_SummaryPI[[#This Row],[Line No.]]","v":""},{"$f":"IF(Table_PrintPI[[#This Row],[Line No.]]=\"\",\"\",CONCATENATE(Table_PrintPI[[#This Row],[Line No.]],\" - \",Table_SummaryPI[[#This Row],[MeasureName]]))","v":""},{"$f":"IF(Table_SummaryPI[[#This Row],[Manufacturer]]<>\"\",CONCATENATE(Table_SummaryPI[[#This Row],[Manufacturer]],\"/\",Table_SummaryPI[[#This Row],[Model'#]]),\"\")","v":""},{"$f":"IF(Table_SummaryPI[[#This Row],[Serial'#]]<>\"\",Table_SummaryPI[[#This Row],[Serial'#]],\"\")","v":""},{"$f":"IF(Table_SummaryPI[[#This Row],[Quantity]]<>\"\",Table_SummaryPI[[#This Row],[Quantity]],\"\")","v":""},{"$f":"IF(Table_SummaryPI[[#This Row],[BaselinekWh]]<>\"\",Table_SummaryPI[[#This Row],[BaselinekWh]],\"\")","v":""},{"$f":"IF(Table_SummaryPI[[#This Row],[BaselinekW]]<>\"\",Table_SummaryPI[[#This Row],[BaselinekW]],\"\")","v":""},{"$f":"IF(Table_SummaryPI[[#This Row],[ProposedkWh]]<>\"\",Table_SummaryPI[[#This Row],[ProposedkWh]],\"\")","v":""},{"$f":"IF(Table_SummaryPI[[#This Row],[ProposedkW]]<>\"\",Table_SummaryPI[[#This Row],[ProposedkW]],\"\")","v":""},{"$f":"IF(Table_SummaryPI[[#This Row],[Notes]]<>\"\",Table_SummaryPI[[#This Row],[Notes]],\"\")","v":""},{"$f":"IF(Table_SummaryPI[[#This Row],[Incentive_Customer]]<>\"\",Table_SummaryPI[[#This Row],[Incentive_Customer]],0)","v":0},{"$f":"IF(Table_SummaryPI[[#This Row],[MeasureCost]]<>\"\",Table_SummaryPI[[#This Row],[MeasureCost]],0)","v":0},{"$f":"IF(Table_SummaryPI[[#This Row],[kWhSavings]]<>\"\",Table_SummaryPI[[#This Row],[kWhSavings]],0)","v":0},{"$f":"IF(Table_SummaryPI[[#This Row],[DemandSavingskW]]<>\"\",Table_SummaryPI[[#This Row],[DemandSavingskW]],0)","v":0}]
[{"$f":"Table_SummaryPI[[#This Row],[Line No.]]","v":""},{"$f":"IF(Table_PrintPI[[#This Row],[Line No.]]=\"\",\"\",CONCATENATE(Table_PrintPI[[#This Row],[Line No.]],\" - \",Table_SummaryPI[[#This Row],[MeasureName]]))","v":""},{"$f":"IF(Table_SummaryPI[[#This Row],[Manufacturer]]<>\"\",CONCATENATE(Table_SummaryPI[[#This Row],[Manufacturer]],\"/\",Table_SummaryPI[[#This Row],[Model'#]]),\"\")","v":""},{"$f":"IF(Table_SummaryPI[[#This Row],[Serial'#]]<>\"\",Table_SummaryPI[[#This Row],[Serial'#]],\"\")","v":""},{"$f":"IF(Table_SummaryPI[[#This Row],[Quantity]]<>\"\",Table_SummaryPI[[#This Row],[Quantity]],\"\")","v":""},{"$f":"IF(Table_SummaryPI[[#This Row],[BaselinekWh]]<>\"\",Table_SummaryPI[[#This Row],[BaselinekWh]],\"\")","v":""},{"$f":"IF(Table_SummaryPI[[#This Row],[BaselinekW]]<>\"\",Table_SummaryPI[[#This Row],[BaselinekW]],\"\")","v":""},{"$f":"IF(Table_SummaryPI[[#This Row],[ProposedkWh]]<>\"\",Table_SummaryPI[[#This Row],[ProposedkWh]],\"\")","v":""},{"$f":"IF(Table_SummaryPI[[#This Row],[ProposedkW]]<>\"\",Table_SummaryPI[[#This Row],[ProposedkW]],\"\")","v":""},{"$f":"IF(Table_SummaryPI[[#This Row],[Notes]]<>\"\",Table_SummaryPI[[#This Row],[Notes]],\"\")","v":""},{"$f":"IF(Table_SummaryPI[[#This Row],[Incentive_Customer]]<>\"\",Table_SummaryPI[[#This Row],[Incentive_Customer]],0)","v":0},{"$f":"IF(Table_SummaryPI[[#This Row],[MeasureCost]]<>\"\",Table_SummaryPI[[#This Row],[MeasureCost]],0)","v":0},{"$f":"IF(Table_SummaryPI[[#This Row],[kWhSavings]]<>\"\",Table_SummaryPI[[#This Row],[kWhSavings]],0)","v":0},{"$f":"IF(Table_SummaryPI[[#This Row],[DemandSavingskW]]<>\"\",Table_SummaryPI[[#This Row],[DemandSavingskW]],0)","v":0}]
[{"$f":"Table_SummaryPI[[#This Row],[Line No.]]","v":""},{"$f":"IF(Table_PrintPI[[#This Row],[Line No.]]=\"\",\"\",CONCATENATE(Table_PrintPI[[#This Row],[Line No.]],\" - \",Table_SummaryPI[[#This Row],[MeasureName]]))","v":""},{"$f":"IF(Table_SummaryPI[[#This Row],[Manufacturer]]<>\"\",CONCATENATE(Table_SummaryPI[[#This Row],[Manufacturer]],\"/\",Table_SummaryPI[[#This Row],[Model'#]]),\"\")","v":""},{"$f":"IF(Table_SummaryPI[[#This Row],[Serial'#]]<>\"\",Table_SummaryPI[[#This Row],[Serial'#]],\"\")","v":""},{"$f":"IF(Table_SummaryPI[[#This Row],[Quantity]]<>\"\",Table_SummaryPI[[#This Row],[Quantity]],\"\")","v":""},{"$f":"IF(Table_SummaryPI[[#This Row],[BaselinekWh]]<>\"\",Table_SummaryPI[[#This Row],[BaselinekWh]],\"\")","v":""},{"$f":"IF(Table_SummaryPI[[#This Row],[BaselinekW]]<>\"\",Table_SummaryPI[[#This Row],[BaselinekW]],\"\")","v":""},{"$f":"IF(Table_SummaryPI[[#This Row],[ProposedkWh]]<>\"\",Table_SummaryPI[[#This Row],[ProposedkWh]],\"\")","v":""},{"$f":"IF(Table_SummaryPI[[#This Row],[ProposedkW]]<>\"\",Table_SummaryPI[[#This Row],[ProposedkW]],\"\")","v":""},{"$f":"IF(Table_SummaryPI[[#This Row],[Notes]]<>\"\",Table_SummaryPI[[#This Row],[Notes]],\"\")","v":""},{"$f":"IF(Table_SummaryPI[[#This Row],[Incentive_Customer]]<>\"\",Table_SummaryPI[[#This Row],[Incentive_Customer]],0)","v":0},{"$f":"IF(Table_SummaryPI[[#This Row],[MeasureCost]]<>\"\",Table_SummaryPI[[#This Row],[MeasureCost]],0)","v":0},{"$f":"IF(Table_SummaryPI[[#This Row],[kWhSavings]]<>\"\",Table_SummaryPI[[#This Row],[kWhSavings]],0)","v":0},{"$f":"IF(Table_SummaryPI[[#This Row],[DemandSavingskW]]<>\"\",Table_SummaryPI[[#This Row],[DemandSavingskW]],0)","v":0}]
[{"$f":"Table_SummaryPI[[#This Row],[Line No.]]","v":""},{"$f":"IF(Table_PrintPI[[#This Row],[Line No.]]=\"\",\"\",CONCATENATE(Table_PrintPI[[#This Row],[Line No.]],\" - \",Table_SummaryPI[[#This Row],[MeasureName]]))","v":""},{"$f":"IF(Table_SummaryPI[[#This Row],[Manufacturer]]<>\"\",CONCATENATE(Table_SummaryPI[[#This Row],[Manufacturer]],\"/\",Table_SummaryPI[[#This Row],[Model'#]]),\"\")","v":""},{"$f":"IF(Table_SummaryPI[[#This Row],[Serial'#]]<>\"\",Table_SummaryPI[[#This Row],[Serial'#]],\"\")","v":""},{"$f":"IF(Table_SummaryPI[[#This Row],[Quantity]]<>\"\",Table_SummaryPI[[#This Row],[Quantity]],\"\")","v":""},{"$f":"IF(Table_SummaryPI[[#This Row],[BaselinekWh]]<>\"\",Table_SummaryPI[[#This Row],[BaselinekWh]],\"\")","v":""},{"$f":"IF(Table_SummaryPI[[#This Row],[BaselinekW]]<>\"\",Table_SummaryPI[[#This Row],[BaselinekW]],\"\")","v":""},{"$f":"IF(Table_SummaryPI[[#This Row],[ProposedkWh]]<>\"\",Table_SummaryPI[[#This Row],[ProposedkWh]],\"\")","v":""},{"$f":"IF(Table_SummaryPI[[#This Row],[ProposedkW]]<>\"\",Table_SummaryPI[[#This Row],[ProposedkW]],\"\")","v":""},{"$f":"IF(Table_SummaryPI[[#This Row],[Notes]]<>\"\",Table_SummaryPI[[#This Row],[Notes]],\"\")","v":""},{"$f":"IF(Table_SummaryPI[[#This Row],[Incentive_Customer]]<>\"\",Table_SummaryPI[[#This Row],[Incentive_Customer]],0)","v":0},{"$f":"IF(Table_SummaryPI[[#This Row],[MeasureCost]]<>\"\",Table_SummaryPI[[#This Row],[MeasureCost]],0)","v":0},{"$f":"IF(Table_SummaryPI[[#This Row],[kWhSavings]]<>\"\",Table_SummaryPI[[#This Row],[kWhSavings]],0)","v":0},{"$f":"IF(Table_SummaryPI[[#This Row],[DemandSavingskW]]<>\"\",Table_SummaryPI[[#This Row],[DemandSavingskW]],0)","v":0}]
[{"$f":"Table_SummaryPI[[#This Row],[Line No.]]","v":""},{"$f":"IF(Table_PrintPI[[#This Row],[Line No.]]=\"\",\"\",CONCATENATE(Table_PrintPI[[#This Row],[Line No.]],\" - \",Table_SummaryPI[[#This Row],[MeasureName]]))","v":""},{"$f":"IF(Table_SummaryPI[[#This Row],[Manufacturer]]<>\"\",CONCATENATE(Table_SummaryPI[[#This Row],[Manufacturer]],\"/\",Table_SummaryPI[[#This Row],[Model'#]]),\"\")","v":""},{"$f":"IF(Table_SummaryPI[[#This Row],[Serial'#]]<>\"\",Table_SummaryPI[[#This Row],[Serial'#]],\"\")","v":""},{"$f":"IF(Table_SummaryPI[[#This Row],[Quantity]]<>\"\",Table_SummaryPI[[#This Row],[Quantity]],\"\")","v":""},{"$f":"IF(Table_SummaryPI[[#This Row],[BaselinekWh]]<>\"\",Table_SummaryPI[[#This Row],[BaselinekWh]],\"\")","v":""},{"$f":"IF(Table_SummaryPI[[#This Row],[BaselinekW]]<>\"\",Table_SummaryPI[[#This Row],[BaselinekW]],\"\")","v":""},{"$f":"IF(Table_SummaryPI[[#This Row],[ProposedkWh]]<>\"\",Table_SummaryPI[[#This Row],[ProposedkWh]],\"\")","v":""},{"$f":"IF(Table_SummaryPI[[#This Row],[ProposedkW]]<>\"\",Table_SummaryPI[[#This Row],[ProposedkW]],\"\")","v":""},{"$f":"IF(Table_SummaryPI[[#This Row],[Notes]]<>\"\",Table_SummaryPI[[#This Row],[Notes]],\"\")","v":""},{"$f":"IF(Table_SummaryPI[[#This Row],[Incentive_Customer]]<>\"\",Table_SummaryPI[[#This Row],[Incentive_Customer]],0)","v":0},{"$f":"IF(Table_SummaryPI[[#This Row],[MeasureCost]]<>\"\",Table_SummaryPI[[#This Row],[MeasureCost]],0)","v":0},{"$f":"IF(Table_SummaryPI[[#This Row],[kWhSavings]]<>\"\",Table_SummaryPI[[#This Row],[kWhSavings]],0)","v":0},{"$f":"IF(Table_SummaryPI[[#This Row],[DemandSavingskW]]<>\"\",Table_SummaryPI[[#This Row],[DemandSavingskW]],0)","v":0}]
[{"$f":"Table_SummaryPI[[#This Row],[Line No.]]","v":""},{"$f":"IF(Table_PrintPI[[#This Row],[Line No.]]=\"\",\"\",CONCATENATE(Table_PrintPI[[#This Row],[Line No.]],\" - \",Table_SummaryPI[[#This Row],[MeasureName]]))","v":""},{"$f":"IF(Table_SummaryPI[[#This Row],[Manufacturer]]<>\"\",CONCATENATE(Table_SummaryPI[[#This Row],[Manufacturer]],\"/\",Table_SummaryPI[[#This Row],[Model'#]]),\"\")","v":""},{"$f":"IF(Table_SummaryPI[[#This Row],[Serial'#]]<>\"\",Table_SummaryPI[[#This Row],[Serial'#]],\"\")","v":""},{"$f":"IF(Table_SummaryPI[[#This Row],[Quantity]]<>\"\",Table_SummaryPI[[#This Row],[Quantity]],\"\")","v":""},{"$f":"IF(Table_SummaryPI[[#This Row],[BaselinekWh]]<>\"\",Table_SummaryPI[[#This Row],[BaselinekWh]],\"\")","v":""},{"$f":"IF(Table_SummaryPI[[#This Row],[BaselinekW]]<>\"\",Table_SummaryPI[[#This Row],[BaselinekW]],\"\")","v":""},{"$f":"IF(Table_SummaryPI[[#This Row],[ProposedkWh]]<>\"\",Table_SummaryPI[[#This Row],[ProposedkWh]],\"\")","v":""},{"$f":"IF(Table_SummaryPI[[#This Row],[ProposedkW]]<>\"\",Table_SummaryPI[[#This Row],[ProposedkW]],\"\")","v":""},{"$f":"IF(Table_SummaryPI[[#This Row],[Notes]]<>\"\",Table_SummaryPI[[#This Row],[Notes]],\"\")","v":""},{"$f":"IF(Table_SummaryPI[[#This Row],[Incentive_Customer]]<>\"\",Table_SummaryPI[[#This Row],[Incentive_Customer]],0)","v":0},{"$f":"IF(Table_SummaryPI[[#This Row],[MeasureCost]]<>\"\",Table_SummaryPI[[#This Row],[MeasureCost]],0)","v":0},{"$f":"IF(Table_SummaryPI[[#This Row],[kWhSavings]]<>\"\",Table_SummaryPI[[#This Row],[kWhSavings]],0)","v":0},{"$f":"IF(Table_SummaryPI[[#This Row],[DemandSavingskW]]<>\"\",Table_SummaryPI[[#This Row],[DemandSavingskW]],0)","v":0}]
[{"$f":"Table_SummaryPI[[#This Row],[Line No.]]","v":""},{"$f":"IF(Table_PrintPI[[#This Row],[Line No.]]=\"\",\"\",CONCATENATE(Table_PrintPI[[#This Row],[Line No.]],\" - \",Table_SummaryPI[[#This Row],[MeasureName]]))","v":""},{"$f":"IF(Table_SummaryPI[[#This Row],[Manufacturer]]<>\"\",CONCATENATE(Table_SummaryPI[[#This Row],[Manufacturer]],\"/\",Table_SummaryPI[[#This Row],[Model'#]]),\"\")","v":""},{"$f":"IF(Table_SummaryPI[[#This Row],[Serial'#]]<>\"\",Table_SummaryPI[[#This Row],[Serial'#]],\"\")","v":""},{"$f":"IF(Table_SummaryPI[[#This Row],[Quantity]]<>\"\",Table_SummaryPI[[#This Row],[Quantity]],\"\")","v":""},{"$f":"IF(Table_SummaryPI[[#This Row],[BaselinekWh]]<>\"\",Table_SummaryPI[[#This Row],[BaselinekWh]],\"\")","v":""},{"$f":"IF(Table_SummaryPI[[#This Row],[BaselinekW]]<>\"\",Table_SummaryPI[[#This Row],[BaselinekW]],\"\")","v":""},{"$f":"IF(Table_SummaryPI[[#This Row],[ProposedkWh]]<>\"\",Table_SummaryPI[[#This Row],[ProposedkWh]],\"\")","v":""},{"$f":"IF(Table_SummaryPI[[#This Row],[ProposedkW]]<>\"\",Table_SummaryPI[[#This Row],[ProposedkW]],\"\")","v":""},{"$f":"IF(Table_SummaryPI[[#This Row],[Notes]]<>\"\",Table_SummaryPI[[#This Row],[Notes]],\"\")","v":""},{"$f":"IF(Table_SummaryPI[[#This Row],[Incentive_Customer]]<>\"\",Table_SummaryPI[[#This Row],[Incentive_Customer]],0)","v":0},{"$f":"IF(Table_SummaryPI[[#This Row],[MeasureCost]]<>\"\",Table_SummaryPI[[#This Row],[MeasureCost]],0)","v":0},{"$f":"IF(Table_SummaryPI[[#This Row],[kWhSavings]]<>\"\",Table_SummaryPI[[#This Row],[kWhSavings]],0)","v":0},{"$f":"IF(Table_SummaryPI[[#This Row],[DemandSavingskW]]<>\"\",Table_SummaryPI[[#This Row],[DemandSavingskW]],0)","v":0}]
[{"$f":"Table_SummaryPI[[#This Row],[Line No.]]","v":""},{"$f":"IF(Table_PrintPI[[#This Row],[Line No.]]=\"\",\"\",CONCATENATE(Table_PrintPI[[#This Row],[Line No.]],\" - \",Table_SummaryPI[[#This Row],[MeasureName]]))","v":""},{"$f":"IF(Table_SummaryPI[[#This Row],[Manufacturer]]<>\"\",CONCATENATE(Table_SummaryPI[[#This Row],[Manufacturer]],\"/\",Table_SummaryPI[[#This Row],[Model'#]]),\"\")","v":""},{"$f":"IF(Table_SummaryPI[[#This Row],[Serial'#]]<>\"\",Table_SummaryPI[[#This Row],[Serial'#]],\"\")","v":""},{"$f":"IF(Table_SummaryPI[[#This Row],[Quantity]]<>\"\",Table_SummaryPI[[#This Row],[Quantity]],\"\")","v":""},{"$f":"IF(Table_SummaryPI[[#This Row],[BaselinekWh]]<>\"\",Table_SummaryPI[[#This Row],[BaselinekWh]],\"\")","v":""},{"$f":"IF(Table_SummaryPI[[#This Row],[BaselinekW]]<>\"\",Table_SummaryPI[[#This Row],[BaselinekW]],\"\")","v":""},{"$f":"IF(Table_SummaryPI[[#This Row],[ProposedkWh]]<>\"\",Table_SummaryPI[[#This Row],[ProposedkWh]],\"\")","v":""},{"$f":"IF(Table_SummaryPI[[#This Row],[ProposedkW]]<>\"\",Table_SummaryPI[[#This Row],[ProposedkW]],\"\")","v":""},{"$f":"IF(Table_SummaryPI[[#This Row],[Notes]]<>\"\",Table_SummaryPI[[#This Row],[Notes]],\"\")","v":""},{"$f":"IF(Table_SummaryPI[[#This Row],[Incentive_Customer]]<>\"\",Table_SummaryPI[[#This Row],[Incentive_Customer]],0)","v":0},{"$f":"IF(Table_SummaryPI[[#This Row],[MeasureCost]]<>\"\",Table_SummaryPI[[#This Row],[MeasureCost]],0)","v":0},{"$f":"IF(Table_SummaryPI[[#This Row],[kWhSavings]]<>\"\",Table_SummaryPI[[#This Row],[kWhSavings]],0)","v":0},{"$f":"IF(Table_SummaryPI[[#This Row],[DemandSavingskW]]<>\"\",Table_SummaryPI[[#This Row],[DemandSavingskW]],0)","v":0}]
[{"$f":"Table_SummaryPI[[#This Row],[Line No.]]","v":""},{"$f":"IF(Table_PrintPI[[#This Row],[Line No.]]=\"\",\"\",CONCATENATE(Table_PrintPI[[#This Row],[Line No.]],\" - \",Table_SummaryPI[[#This Row],[MeasureName]]))","v":""},{"$f":"IF(Table_SummaryPI[[#This Row],[Manufacturer]]<>\"\",CONCATENATE(Table_SummaryPI[[#This Row],[Manufacturer]],\"/\",Table_SummaryPI[[#This Row],[Model'#]]),\"\")","v":""},{"$f":"IF(Table_SummaryPI[[#This Row],[Serial'#]]<>\"\",Table_SummaryPI[[#This Row],[Serial'#]],\"\")","v":""},{"$f":"IF(Table_SummaryPI[[#This Row],[Quantity]]<>\"\",Table_SummaryPI[[#This Row],[Quantity]],\"\")","v":""},{"$f":"IF(Table_SummaryPI[[#This Row],[BaselinekWh]]<>\"\",Table_SummaryPI[[#This Row],[BaselinekWh]],\"\")","v":""},{"$f":"IF(Table_SummaryPI[[#This Row],[BaselinekW]]<>\"\",Table_SummaryPI[[#This Row],[BaselinekW]],\"\")","v":""},{"$f":"IF(Table_SummaryPI[[#This Row],[ProposedkWh]]<>\"\",Table_SummaryPI[[#This Row],[ProposedkWh]],\"\")","v":""},{"$f":"IF(Table_SummaryPI[[#This Row],[ProposedkW]]<>\"\",Table_SummaryPI[[#This Row],[ProposedkW]],\"\")","v":""},{"$f":"IF(Table_SummaryPI[[#This Row],[Notes]]<>\"\",Table_SummaryPI[[#This Row],[Notes]],\"\")","v":""},{"$f":"IF(Table_SummaryPI[[#This Row],[Incentive_Customer]]<>\"\",Table_SummaryPI[[#This Row],[Incentive_Customer]],0)","v":0},{"$f":"IF(Table_SummaryPI[[#This Row],[MeasureCost]]<>\"\",Table_SummaryPI[[#This Row],[MeasureCost]],0)","v":0},{"$f":"IF(Table_SummaryPI[[#This Row],[kWhSavings]]<>\"\",Table_SummaryPI[[#This Row],[kWhSavings]],0)","v":0},{"$f":"IF(Table_SummaryPI[[#This Row],[DemandSavingskW]]<>\"\",Table_SummaryPI[[#This Row],[DemandSavingskW]],0)","v":0}]
[{"$f":"Table_SummaryPI[[#This Row],[Line No.]]","v":""},{"$f":"IF(Table_PrintPI[[#This Row],[Line No.]]=\"\",\"\",CONCATENATE(Table_PrintPI[[#This Row],[Line No.]],\" - \",Table_SummaryPI[[#This Row],[MeasureName]]))","v":""},{"$f":"IF(Table_SummaryPI[[#This Row],[Manufacturer]]<>\"\",CONCATENATE(Table_SummaryPI[[#This Row],[Manufacturer]],\"/\",Table_SummaryPI[[#This Row],[Model'#]]),\"\")","v":""},{"$f":"IF(Table_SummaryPI[[#This Row],[Serial'#]]<>\"\",Table_SummaryPI[[#This Row],[Serial'#]],\"\")","v":""},{"$f":"IF(Table_SummaryPI[[#This Row],[Quantity]]<>\"\",Table_SummaryPI[[#This Row],[Quantity]],\"\")","v":""},{"$f":"IF(Table_SummaryPI[[#This Row],[BaselinekWh]]<>\"\",Table_SummaryPI[[#This Row],[BaselinekWh]],\"\")","v":""},{"$f":"IF(Table_SummaryPI[[#This Row],[BaselinekW]]<>\"\",Table_SummaryPI[[#This Row],[BaselinekW]],\"\")","v":""},{"$f":"IF(Table_SummaryPI[[#This Row],[ProposedkWh]]<>\"\",Table_SummaryPI[[#This Row],[ProposedkWh]],\"\")","v":""},{"$f":"IF(Table_SummaryPI[[#This Row],[ProposedkW]]<>\"\",Table_SummaryPI[[#This Row],[ProposedkW]],\"\")","v":""},{"$f":"IF(Table_SummaryPI[[#This Row],[Notes]]<>\"\",Table_SummaryPI[[#This Row],[Notes]],\"\")","v":""},{"$f":"IF(Table_SummaryPI[[#This Row],[Incentive_Customer]]<>\"\",Table_SummaryPI[[#This Row],[Incentive_Customer]],0)","v":0},{"$f":"IF(Table_SummaryPI[[#This Row],[MeasureCost]]<>\"\",Table_SummaryPI[[#This Row],[MeasureCost]],0)","v":0},{"$f":"IF(Table_SummaryPI[[#This Row],[kWhSavings]]<>\"\",Table_SummaryPI[[#This Row],[kWhSavings]],0)","v":0},{"$f":"IF(Table_SummaryPI[[#This Row],[DemandSavingskW]]<>\"\",Table_SummaryPI[[#This Row],[DemandSavingskW]],0)","v":0}]
[{"$f":"Table_SummaryPI[[#This Row],[Line No.]]","v":""},{"$f":"IF(Table_PrintPI[[#This Row],[Line No.]]=\"\",\"\",CONCATENATE(Table_PrintPI[[#This Row],[Line No.]],\" - \",Table_SummaryPI[[#This Row],[MeasureName]]))","v":""},{"$f":"IF(Table_SummaryPI[[#This Row],[Manufacturer]]<>\"\",CONCATENATE(Table_SummaryPI[[#This Row],[Manufacturer]],\"/\",Table_SummaryPI[[#This Row],[Model'#]]),\"\")","v":""},{"$f":"IF(Table_SummaryPI[[#This Row],[Serial'#]]<>\"\",Table_SummaryPI[[#This Row],[Serial'#]],\"\")","v":""},{"$f":"IF(Table_SummaryPI[[#This Row],[Quantity]]<>\"\",Table_SummaryPI[[#This Row],[Quantity]],\"\")","v":""},{"$f":"IF(Table_SummaryPI[[#This Row],[BaselinekWh]]<>\"\",Table_SummaryPI[[#This Row],[BaselinekWh]],\"\")","v":""},{"$f":"IF(Table_SummaryPI[[#This Row],[BaselinekW]]<>\"\",Table_SummaryPI[[#This Row],[BaselinekW]],\"\")","v":""},{"$f":"IF(Table_SummaryPI[[#This Row],[ProposedkWh]]<>\"\",Table_SummaryPI[[#This Row],[ProposedkWh]],\"\")","v":""},{"$f":"IF(Table_SummaryPI[[#This Row],[ProposedkW]]<>\"\",Table_SummaryPI[[#This Row],[ProposedkW]],\"\")","v":""},{"$f":"IF(Table_SummaryPI[[#This Row],[Notes]]<>\"\",Table_SummaryPI[[#This Row],[Notes]],\"\")","v":""},{"$f":"IF(Table_SummaryPI[[#This Row],[Incentive_Customer]]<>\"\",Table_SummaryPI[[#This Row],[Incentive_Customer]],0)","v":0},{"$f":"IF(Table_SummaryPI[[#This Row],[MeasureCost]]<>\"\",Table_SummaryPI[[#This Row],[MeasureCost]],0)","v":0},{"$f":"IF(Table_SummaryPI[[#This Row],[kWhSavings]]<>\"\",Table_SummaryPI[[#This Row],[kWhSavings]],0)","v":0},{"$f":"IF(Table_SummaryPI[[#This Row],[DemandSavingskW]]<>\"\",Table_SummaryPI[[#This Row],[DemandSavingskW]],0)","v":0}]
[{"$f":"Table_SummaryPI[[#This Row],[Line No.]]","v":""},{"$f":"IF(Table_PrintPI[[#This Row],[Line No.]]=\"\",\"\",CONCATENATE(Table_PrintPI[[#This Row],[Line No.]],\" - \",Table_SummaryPI[[#This Row],[MeasureName]]))","v":""},{"$f":"IF(Table_SummaryPI[[#This Row],[Manufacturer]]<>\"\",CONCATENATE(Table_SummaryPI[[#This Row],[Manufacturer]],\"/\",Table_SummaryPI[[#This Row],[Model'#]]),\"\")","v":""},{"$f":"IF(Table_SummaryPI[[#This Row],[Serial'#]]<>\"\",Table_SummaryPI[[#This Row],[Serial'#]],\"\")","v":""},{"$f":"IF(Table_SummaryPI[[#This Row],[Quantity]]<>\"\",Table_SummaryPI[[#This Row],[Quantity]],\"\")","v":""},{"$f":"IF(Table_SummaryPI[[#This Row],[BaselinekWh]]<>\"\",Table_SummaryPI[[#This Row],[BaselinekWh]],\"\")","v":""},{"$f":"IF(Table_SummaryPI[[#This Row],[BaselinekW]]<>\"\",Table_SummaryPI[[#This Row],[BaselinekW]],\"\")","v":""},{"$f":"IF(Table_SummaryPI[[#This Row],[ProposedkWh]]<>\"\",Table_SummaryPI[[#This Row],[ProposedkWh]],\"\")","v":""},{"$f":"IF(Table_SummaryPI[[#This Row],[ProposedkW]]<>\"\",Table_SummaryPI[[#This Row],[ProposedkW]],\"\")","v":""},{"$f":"IF(Table_SummaryPI[[#This Row],[Notes]]<>\"\",Table_SummaryPI[[#This Row],[Notes]],\"\")","v":""},{"$f":"IF(Table_SummaryPI[[#This Row],[Incentive_Customer]]<>\"\",Table_SummaryPI[[#This Row],[Incentive_Customer]],0)","v":0},{"$f":"IF(Table_SummaryPI[[#This Row],[MeasureCost]]<>\"\",Table_SummaryPI[[#This Row],[MeasureCost]],0)","v":0},{"$f":"IF(Table_SummaryPI[[#This Row],[kWhSavings]]<>\"\",Table_SummaryPI[[#This Row],[kWhSavings]],0)","v":0},{"$f":"IF(Table_SummaryPI[[#This Row],[DemandSavingskW]]<>\"\",Table_SummaryPI[[#This Row],[DemandSavingskW]],0)","v":0}]
[{"$f":"Table_SummaryPI[[#This Row],[Line No.]]","v":""},{"$f":"IF(Table_PrintPI[[#This Row],[Line No.]]=\"\",\"\",CONCATENATE(Table_PrintPI[[#This Row],[Line No.]],\" - \",Table_SummaryPI[[#This Row],[MeasureName]]))","v":""},{"$f":"IF(Table_SummaryPI[[#This Row],[Manufacturer]]<>\"\",CONCATENATE(Table_SummaryPI[[#This Row],[Manufacturer]],\"/\",Table_SummaryPI[[#This Row],[Model'#]]),\"\")","v":""},{"$f":"IF(Table_SummaryPI[[#This Row],[Serial'#]]<>\"\",Table_SummaryPI[[#This Row],[Serial'#]],\"\")","v":""},{"$f":"IF(Table_SummaryPI[[#This Row],[Quantity]]<>\"\",Table_SummaryPI[[#This Row],[Quantity]],\"\")","v":""},{"$f":"IF(Table_SummaryPI[[#This Row],[BaselinekWh]]<>\"\",Table_SummaryPI[[#This Row],[BaselinekWh]],\"\")","v":""},{"$f":"IF(Table_SummaryPI[[#This Row],[BaselinekW]]<>\"\",Table_SummaryPI[[#This Row],[BaselinekW]],\"\")","v":""},{"$f":"IF(Table_SummaryPI[[#This Row],[ProposedkWh]]<>\"\",Table_SummaryPI[[#This Row],[ProposedkWh]],\"\")","v":""},{"$f":"IF(Table_SummaryPI[[#This Row],[ProposedkW]]<>\"\",Table_SummaryPI[[#This Row],[ProposedkW]],\"\")","v":""},{"$f":"IF(Table_SummaryPI[[#This Row],[Notes]]<>\"\",Table_SummaryPI[[#This Row],[Notes]],\"\")","v":""},{"$f":"IF(Table_SummaryPI[[#This Row],[Incentive_Customer]]<>\"\",Table_SummaryPI[[#This Row],[Incentive_Customer]],0)","v":0},{"$f":"IF(Table_SummaryPI[[#This Row],[MeasureCost]]<>\"\",Table_SummaryPI[[#This Row],[MeasureCost]],0)","v":0},{"$f":"IF(Table_SummaryPI[[#This Row],[kWhSavings]]<>\"\",Table_SummaryPI[[#This Row],[kWhSavings]],0)","v":0},{"$f":"IF(Table_SummaryPI[[#This Row],[DemandSavingskW]]<>\"\",Table_SummaryPI[[#This Row],[DemandSavingskW]],0)","v":0}]
[{"$f":"Table_SummaryPI[[#This Row],[Line No.]]","v":""},{"$f":"IF(Table_PrintPI[[#This Row],[Line No.]]=\"\",\"\",CONCATENATE(Table_PrintPI[[#This Row],[Line No.]],\" - \",Table_SummaryPI[[#This Row],[MeasureName]]))","v":""},{"$f":"IF(Table_SummaryPI[[#This Row],[Manufacturer]]<>\"\",CONCATENATE(Table_SummaryPI[[#This Row],[Manufacturer]],\"/\",Table_SummaryPI[[#This Row],[Model'#]]),\"\")","v":""},{"$f":"IF(Table_SummaryPI[[#This Row],[Serial'#]]<>\"\",Table_SummaryPI[[#This Row],[Serial'#]],\"\")","v":""},{"$f":"IF(Table_SummaryPI[[#This Row],[Quantity]]<>\"\",Table_SummaryPI[[#This Row],[Quantity]],\"\")","v":""},{"$f":"IF(Table_SummaryPI[[#This Row],[BaselinekWh]]<>\"\",Table_SummaryPI[[#This Row],[BaselinekWh]],\"\")","v":""},{"$f":"IF(Table_SummaryPI[[#This Row],[BaselinekW]]<>\"\",Table_SummaryPI[[#This Row],[BaselinekW]],\"\")","v":""},{"$f":"IF(Table_SummaryPI[[#This Row],[ProposedkWh]]<>\"\",Table_SummaryPI[[#This Row],[ProposedkWh]],\"\")","v":""},{"$f":"IF(Table_SummaryPI[[#This Row],[ProposedkW]]<>\"\",Table_SummaryPI[[#This Row],[ProposedkW]],\"\")","v":""},{"$f":"IF(Table_SummaryPI[[#This Row],[Notes]]<>\"\",Table_SummaryPI[[#This Row],[Notes]],\"\")","v":""},{"$f":"IF(Table_SummaryPI[[#This Row],[Incentive_Customer]]<>\"\",Table_SummaryPI[[#This Row],[Incentive_Customer]],0)","v":0},{"$f":"IF(Table_SummaryPI[[#This Row],[MeasureCost]]<>\"\",Table_SummaryPI[[#This Row],[MeasureCost]],0)","v":0},{"$f":"IF(Table_SummaryPI[[#This Row],[kWhSavings]]<>\"\",Table_SummaryPI[[#This Row],[kWhSavings]],0)","v":0},{"$f":"IF(Table_SummaryPI[[#This Row],[DemandSavingskW]]<>\"\",Table_SummaryPI[[#This Row],[DemandSavingskW]],0)","v":0}]
[{"$f":"Table_SummaryPI[[#This Row],[Line No.]]","v":""},{"$f":"IF(Table_PrintPI[[#This Row],[Line No.]]=\"\",\"\",CONCATENATE(Table_PrintPI[[#This Row],[Line No.]],\" - \",Table_SummaryPI[[#This Row],[MeasureName]]))","v":""},{"$f":"IF(Table_SummaryPI[[#This Row],[Manufacturer]]<>\"\",CONCATENATE(Table_SummaryPI[[#This Row],[Manufacturer]],\"/\",Table_SummaryPI[[#This Row],[Model'#]]),\"\")","v":""},{"$f":"IF(Table_SummaryPI[[#This Row],[Serial'#]]<>\"\",Table_SummaryPI[[#This Row],[Serial'#]],\"\")","v":""},{"$f":"IF(Table_SummaryPI[[#This Row],[Quantity]]<>\"\",Table_SummaryPI[[#This Row],[Quantity]],\"\")","v":""},{"$f":"IF(Table_SummaryPI[[#This Row],[BaselinekWh]]<>\"\",Table_SummaryPI[[#This Row],[BaselinekWh]],\"\")","v":""},{"$f":"IF(Table_SummaryPI[[#This Row],[BaselinekW]]<>\"\",Table_SummaryPI[[#This Row],[BaselinekW]],\"\")","v":""},{"$f":"IF(Table_SummaryPI[[#This Row],[ProposedkWh]]<>\"\",Table_SummaryPI[[#This Row],[ProposedkWh]],\"\")","v":""},{"$f":"IF(Table_SummaryPI[[#This Row],[ProposedkW]]<>\"\",Table_SummaryPI[[#This Row],[ProposedkW]],\"\")","v":""},{"$f":"IF(Table_SummaryPI[[#This Row],[Notes]]<>\"\",Table_SummaryPI[[#This Row],[Notes]],\"\")","v":""},{"$f":"IF(Table_SummaryPI[[#This Row],[Incentive_Customer]]<>\"\",Table_SummaryPI[[#This Row],[Incentive_Customer]],0)","v":0},{"$f":"IF(Table_SummaryPI[[#This Row],[MeasureCost]]<>\"\",Table_SummaryPI[[#This Row],[MeasureCost]],0)","v":0},{"$f":"IF(Table_SummaryPI[[#This Row],[kWhSavings]]<>\"\",Table_SummaryPI[[#This Row],[kWhSavings]],0)","v":0},{"$f":"IF(Table_SummaryPI[[#This Row],[DemandSavingskW]]<>\"\",Table_SummaryPI[[#This Row],[DemandSavingskW]],0)","v":0}]
["Totals",".",".",".",null,{"$f":"SUM(F3:F400)","v":0},{"$f":"SUM(G3:G400)","v":0},{"$f":"SUM(H3:H400)","v":0},{"$f":"SUM(I3:I400)","v":0},null,{"$f":"SUM(Table_PrintPI[Rebate])","v":0},{"$f":"SUM(Table_PrintPI[Measure Cost])","v":0},{"$f":"SUM(Table_PrintPI[Annual kWh])","v":0},{"$f":"SUM(Table_PrintPI[Peak kW])","v":0}]

{"sheet":"HVAC","index":7,"n_rows":362,"n_cols":63,"rows_kept":362,"cut":false,"hidden":true,"merged":[[135,39,135,41],[144,2,144,41],[145,2,145,41],[202,2,202,41],[271,7,271,13],[272,7,272,13],[273,7,273,13],[274,7,274,13],[275,7,275,13],[276,7,276,13],[277,7,277,13],[278,7,278,13],[279,7,279,13],[277,24,277,27],[278,24,278,27],[279,24,279,27],[271,19,271,23],[272,19,272,23],[273,19,273,23],[274,19,274,23],[275,19,275,23],[276,19,276,23],[272,24,272,27],[275,14,275,18],[276,14,276,18],[273,14,273,18],[274,14,274,18],[196,39,196,41],[195,2,195,8],[195,9,195,14],[195,21,195,31],[195,32,195,38],[6,2,6,24],[6,25,6,41],[29,22,29,24],[30,22,30,24],[31,22,31,24],[32,22,32,24],[33,22,33,24],[34,22,34,24],[35,22,35,24],[36,22,36,24],[37,22,37,24],[38,22,38,24],[39,22,39,24],[40,22,40,24],[41,22,41,24],[42,22,42,24],[257,2,257,41],[43,22,43,24],[28,34,28,36],[29,28,29,30],[30,28,30,30],[31,28,31,30],[32,28,32,30],[33,28,33,30],[34,28,34,30],[35,28,35,30],[137,8,137,12],[138,8,138,12],[139,8,139,12],[140,8,140,12],[141,8,141,12],[135,13,135,17],[312,2,312,41],[313,2,313,10],[313,11,313,18],[313,19,313,32],[329,2,329,41],[316,2,316,10],[330,2,330,13],[331,2,331,13],[332,2,332,13],[333,2,333,13],[334,2,334,13],[335,2,335,13],[333,19,333,24],[316,19,316,32],[313,33,313,38],[313,39,313,41],[327,2,327,41],[316,11,316,18],[316,39,316,41],[317,2,317,40],[325,2,325,41],[323,2,323,41],[324,2,324,41],[318,2,318,41],[320,2,320,41],[321,2,321,41],[322,2,322,41],[335,19,335,24],[328,2,328,41],[295,2,295,8],[296,2,296,8],[297,2,297,8],[298,2,298,8],[299,2,299,8],[293,20,293,23],[294,20,294,23],[295,20,295,23],[296,20,296,23],[294,9,294,12],[294,13,294,16],[294,17,294,19],[294,24,294,30],[299,24,299,30],[297,20,297,23],[298,20,298,23],[299,20,299,23],[267,2,267,41],[218,32,218,38],[196,2,196,8],[193,39,193,41],[198,2,198,40],[199,2,199,41],[216,2,216,41],[217,14,217,18],[197,9,197,14],[197,21,197,31],[197,2,197,8],[230,2,230,41],[235,2,235,41],[240,2,240,41],[263,2,263,41],[215,2,215,41],[201,2,201,41],[203,2,203,41],[204,2,204,41],[205,2,205,41],[249,23,249,31],[250,23,250,31],[251,23,251,31],[196,9,196,14],[196,21,196,31],[196,32,196,38],[194,9,194,14],[195,15,195,20],[196,15,196,20],[193,21,193,31],[193,32,193,38],[206,2,206,41],[156,13,156,20],[156,21,156,30],[156,31,156,38],[156,39,156,41],[136,30,136,34],[169,10,169,15],[169,16,169,25],[169,26,169,32],[169,33,169,38],[170,10,170,15],[170,16,170,25],[170,26,170,32],[155,2,155,12],[140,30,140,34],[141,30,141,34],[140,18,140,23],[141,18,141,23],[138,24,138,29],[139,24,139,29],[140,24,140,29],[157,2,157,40],[158,2,158,41],[162,2,162,41],[138,35,138,38],[139,35,139,38],[140,35,140,38],[141,35,141,38],[151,21,151,30],[151,31,151,38],[139,39,139,41],[138,13,138,17],[156,2,156,12],[129,18,129,23],[130,18,130,23],[131,18,131,23],[132,18,132,23],[132,2,132,7],[133,2,133,7],[134,2,134,7],[135,2,135,7],[136,2,136,7],[134,13,134,17],[136,13,136,17],[133,8,133,12],[134,8,134,12],[135,8,135,12],[136,8,136,12],[127,8,127,12],[128,8,128,12],[129,8,129,12],[130,8,130,12],[131,8,131,12],[132,8,132,12],[127,18,127,23],[132,30,132,34],[123,2,123,41],[124,2,124,41],[125,2,125,41],[126,13,126,17],[110,39,110,41],[111,2,111,40],[112,2,112,41],[113,2,113,41],[114,2,114,41],[115,2,115,41],[109,12,109,16],[110,12,110,16],[105,20,105,24],[106,20,106,24],[107,20,107,24],[108,20,108,24],[109,20,109,24],[110,20,110,24],[126,35,126,38],[127,35,127,38],[128,35,128,38],[128,24,128,29],[107,2,107,7],[107,39,107,41],[116,2,116,41],[118,2,118,41],[109,2,109,7],[109,39,109,41],[108,2,108,7],[108,39,108,41],[108,8,108,11],[73,29,73,34],[71,39,71,41],[72,16,72,20],[72,29,72,34],[85,12,85,14],[85,19,85,25],[126,18,126,23],[85,33,85,38],[86,15,86,18],[87,15,87,18],[83,19,83,25],[83,33,83,38],[83,39,83,41],[88,15,88,18],[85,2,85,8],[86,2,86,8],[87,2,87,8],[88,2,88,8],[85,9,85,11],[86,9,86,11],[87,9,87,11],[79,2,79,41],[73,39,73,41],[74,2,74,40],[75,2,75,41],[76,2,76,41],[84,33,84,38],[84,39,84,41],[80,2,80,41],[81,2,81,41],[82,2,82,41],[126,24,126,29],[127,24,127,29],[107,36,107,38],[108,36,108,38],[109,36,109,38],[70,35,70,38],[71,35,71,38],[72,35,72,38],[70,21,70,28],[71,21,71,28],[72,21,72,28],[70,10,70,15],[71,10,71,15],[72,10,72,15],[70,2,70,9],[71,2,71,9],[72,2,72,9],[73,35,73,38],[73,21,73,28],[73,10,73,15],[73,2,73,9],[88,9,88,11],[85,26,85,32],[86,26,86,32],[87,26,87,32],[88,26,88,32],[77,2,77,41],[78,2,78,41],[87,39,87,41],[88,12,88,14],[88,19,88,25],[73,16,73,20],[88,33,88,38],[54,22,54,26],[55,22,55,26],[56,22,56,26],[55,13,55,17],[56,13,56,17],[54,9,54,12],[55,18,55,21],[56,18,56,21],[54,13,54,17],[66,2,66,41],[60,2,60,41],[61,2,61,41],[62,2,62,41],[56,39,56,41],[72,39,72,41],[71,16,71,20],[71,29,71,34],[69,2,69,41],[70,16,70,20],[70,29,70,34],[54,18,54,21],[54,2,54,8],[55,2,55,8],[56,2,56,8],[67,2,67,41],[68,2,68,41],[57,2,57,40],[58,2,58,41],[59,2,59,41],[70,39,70,41],[190,15,190,20],[52,22,52,26],[52,18,52,21],[52,13,52,17],[53,22,53,26],[53,18,53,21],[53,13,53,17],[33,34,33,36],[34,34,34,36],[35,34,35,36],[36,34,36,36],[37,34,37,36],[38,34,38,36],[39,34,39,36],[40,34,40,36],[41,34,41,36],[42,34,42,36],[43,34,43,36],[52,36,52,38],[53,36,53,38],[42,37,42,38],[38,13,38,15],[35,19,35,21],[43,31,43,33],[48,2,48,41],[49,2,49,41],[50,2,50,41],[43,25,43,27],[43,39,43,41],[44,2,44,40],[40,2,40,6],[55,30,55,32],[207,2,207,41],[210,2,210,41],[211,2,211,41],[212,2,212,41],[213,2,213,41],[219,19,219,31],[214,2,214,41],[194,39,194,41],[217,39,217,41],[218,14,218,18],[218,19,218,31],[186,2,186,41],[194,2,194,8],[187,2,187,41],[189,2,189,41],[190,2,190,8],[197,32,197,38],[197,39,197,41],[197,15,197,20],[193,2,193,8],[191,2,191,8],[191,9,191,14],[191,21,191,31],[191,32,191,38],[191,39,191,41],[190,9,190,14],[190,21,190,31],[190,32,190,38],[188,2,188,41],[190,39,190,41],[195,39,195,41],[191,15,191,20],[192,15,192,20],[193,15,193,20],[194,15,194,20],[193,9,193,14],[192,21,192,31],[192,32,192,38],[192,39,192,41],[172,26,172,32],[172,33,172,38],[173,10,173,15],[194,21,194,31],[194,32,194,38],[174,33,174,38],[183,2,183,41],[184,2,184,41],[185,2,185,41],[180,2,180,41],[174,2,174,9],[182,2,182,41],[192,2,192,8],[192,9,192,14],[174,10,174,15],[175,2,175,40],[176,2,176,41],[177,2,177,41],[178,2,178,41],[179,2,179,41],[174,39,174,41],[181,2,181,41],[172,16,172,25],[174,16,174,25],[174,26,174,32],[30,7,30,9],[30,13,30,15],[30,19,30,21],[0,43,1,62],[160,2,160,41],[161,2,161,41],[171,2,171,9],[171,39,171,41],[172,2,172,9],[172,39,172,41],[173,2,173,9],[173,39,173,41],[12,2,12,41],[13,2,13,41],[14,2,14,41],[15,2,15,41],[7,2,7,40],[8,2,8,41],[9,2,9,41],[10,2,10,41],[11,2,11,41],[2,2,2,41],[3,2,4,41],[41,2,41,6],[5,2,5,41],[21,2,21,41],[22,2,22,41],[28,37,28,38],[84,12,84,14],[163,2,163,41],[38,2,38,6],[56,30,56,32],[39,2,39,6],[43,37,43,38],[38,19,38,21],[38,25,38,27],[38,31,38,33],[34,37,34,38],[39,31,39,33],[39,37,39,38],[53,33,53,35],[52,33,52,35],[52,30,52,32],[53,30,53,32],[39,19,39,21],[39,7,39,9],[40,19,40,21],[40,25,40,27],[40,31,40,33],[40,37,40,38],[52,27,52,29],[53,27,53,29],[40,28,40,30],[41,28,41,30],[42,28,42,30],[43,28,43,30],[38,37,38,38],[39,16,39,18],[40,16,40,18],[16,2,16,41],[17,2,17,41],[18,2,18,41],[19,2,19,41],[20,2,20,41],[27,2,27,41],[28,2,28,6],[28,7,28,9],[28,13,28,15],[28,19,28,21],[28,25,28,27],[28,22,28,24],[29,39,29,41],[29,37,29,38],[28,28,28,30],[28,31,28,33],[29,16,29,18],[29,34,29,36],[29,10,29,12],[29,2,29,6],[28,39,28,41],[28,10,28,12],[29,7,29,9],[29,13,29,15],[29,19,29,21],[29,25,29,27],[29,31,29,33],[28,16,28,18],[30,25,30,27],[34,2,34,6],[34,7,34,9],[34,13,34,15],[33,2,33,6],[33,7,33,9],[33,13,33,15],[34,19,34,21],[34,25,34,27],[34,31,34,33],[31,31,31,33],[30,2,30,6],[23,2,23,41],[24,2,24,41],[25,2,25,41],[26,2,26,41],[30,31,30,33],[30,34,30,36],[31,34,31,36],[30,10,30,12],[30,16,30,18],[32,2,32,6],[32,7,32,9],[30,37,30,38],[30,39,30,41],[31,2,31,6],[31,7,31,9],[31,13,31,15],[31,19,31,21],[32,19,32,21],[32,25,32,27],[32,31,32,33],[31,25,31,27],[34,39,34,41],[33,25,33,27],[33,31,33,33],[33,37,33,38],[33,39,33,41],[33,19,33,21],[33,10,33,12],[34,10,34,12],[33,16,33,18],[34,16,34,18],[39,10,39,12],[31,16,31,18],[32,16,32,18],[32,34,32,36],[32,13,32,15],[37,39,37,41],[37,19,37,21],[37,10,37,12],[37,16,37,18],[32,37,32,38],[32,39,32,41],[31,37,31,38],[31,39,31,41],[31,10,31,12],[39,13,39,15],[39,39,39,41],[36,28,36,30],[37,28,37,30],[38,28,38,30],[39,28,39,30],[32,10,32,12],[38,39,38,41],[38,10,38,12],[38,16,38,18],[35,31,35,33],[40,13,40,15],[37,2,37,6],[37,7,37,9],[36,2,36,6],[36,7,36,9],[36,13,36,15],[35,2,35,6],[35,7,35,9],[35,13,35,15],[36,19,36,21],[36,25,36,27],[36,31,36,33],[36,37,36,38],[36,39,36,41],[35,25,35,27],[35,37,35,38],[35,39,35,41],[37,13,37,15],[35,10,35,12],[36,10,36,12],[35,16,35,18],[36,16,36,18],[37,25,37,27],[37,31,37,33],[37,37,37,38],[38,7,38,9],[40,7,40,9],[40,10,40,12],[42,39,42,41],[41,25,41,27],[41,31,41,33],[41,37,41,38],[41,39,41,41],[41,19,41,21],[41,10,41,12],[42,10,42,12],[43,10,43,12],[41,16,41,18],[42,16,42,18],[43,16,43,18],[52,39,52,41],[51,2,51,41],[42,2,42,6],[42,7,42,9],[42,13,42,15],[43,2,43,6],[43,7,43,9],[43,13,43,15],[52,9,52,12],[40,39,40,41],[39,25,39,27],[41,7,41,9],[41,13,41,15],[42,19,42,21],[42,25,42,27],[42,31,42,33],[43,19,43,21],[55,39,55,41],[53,39,53,41],[54,39,54,41],[63,2,63,41],[64,2,64,41],[65,2,65,41],[45,2,45,41],[46,2,46,41],[47,2,47,41],[54,27,54,29],[55,27,55,29],[56,27,56,29],[55,9,55,12],[56,9,56,12],[54,36,54,38],[53,9,53,12],[52,2,52,8],[53,2,53,8],[55,36,55,38],[56,36,56,38],[54,33,54,35],[55,33,55,35],[56,33,56,35],[54,30,54,32],[88,39,88,41],[87,12,87,14],[87,19,87,25],[83,15,83,18],[84,15,84,18],[85,15,85,18],[87,33,87,38],[85,39,85,41],[86,12,86,14],[86,19,86,25],[86,33,86,38],[86,39,86,41],[84,19,84,25],[83,2,83,8],[84,2,84,8],[83,9,83,11],[84,9,84,11],[83,26,83,32],[84,26,84,32],[83,12,83,14],[104,2,104,41],[105,2,105,7],[89,2,89,40],[90,2,90,41],[93,2,93,41],[94,2,94,41],[95,2,95,41],[105,39,105,41],[106,39,106,41],[101,2,101,41],[96,2,96,41],[97,2,97,41],[98,2,98,41],[99,2,99,41],[105,8,105,11],[105,36,105,38],[106,36,106,38],[105,12,105,16],[106,12,106,16],[105,31,105,35],[106,31,106,35],[105,25,105,30],[106,25,106,30],[105,17,105,19],[106,17,106,19],[102,2,102,41],[103,2,103,41],[106,2,106,7],[106,8,106,11],[100,2,100,41],[91,2,91,41],[92,2,92,41],[109,8,109,11],[121,2,121,41],[120,2,120,41],[122,2,122,41],[119,2,119,41],[110,36,110,38],[107,31,107,35],[108,31,108,35],[109,31,109,35],[110,31,110,35],[107,25,107,30],[108,25,108,30],[109,25,109,30],[110,25,110,30],[107,17,107,19],[108,17,108,19],[109,17,109,19],[110,17,110,19],[107,12,107,16],[108,12,108,16],[110,2,110,7],[107,8,107,11],[117,2,117,41],[126,39,126,41],[110,8,110,11],[126,2,126,7],[131,13,131,17],[131,39,131,41],[130,13,130,17],[128,39,128,41],[129,13,129,17],[127,13,127,17],[127,39,127,41],[127,2,127,7],[128,2,128,7],[129,2,129,7],[130,2,130,7],[131,2,131,7],[126,30,126,34],[127,30,127,34],[128,30,128,34],[129,30,129,34],[130,30,130,34],[131,30,131,34],[129,39,129,41],[128,13,128,17],[130,39,130,41],[129,35,129,38],[130,35,130,38],[131,35,131,38],[129,24,129,29],[130,24,130,29],[131,24,131,29],[126,8,126,12],[128,18,128,23],[132,39,132,41],[133,13,133,17],[133,39,133,41],[132,13,132,17],[134,39,134,41],[133,35,133,38],[134,35,134,38],[135,35,135,38],[136,35,136,38],[137,30,137,34],[138,30,138,34],[139,30,139,34],[133,18,133,23],[134,18,134,23],[135,18,135,23],[136,18,136,23],[137,18,137,23],[138,18,138,23],[139,18,139,23],[133,24,133,29],[134,24,134,29],[135,24,135,29],[136,24,136,29],[137,24,137,29],[137,35,137,38],[136,39,136,41],[137,13,137,17],[132,35,132,38],[132,24,132,29],[133,30,133,34],[134,30,134,34],[135,30,135,34],[152,21,152,30],[152,31,152,38],[152,39,152,41],[153,13,153,20],[153,21,153,30],[153,31,153,38],[153,39,153,41],[155,13,155,20],[155,21,155,30],[155,31,155,38],[155,39,155,41],[137,2,137,7],[138,2,138,7],[139,2,139,7],[140,2,140,7],[141,2,141,7],[146,2,146,41],[147,2,147,41],[137,39,137,41],[138,39,138,41],[139,13,139,17],[140,39,140,41],[141,13,141,17],[141,39,141,41],[140,13,140,17],[148,2,148,41],[149,2,149,41],[150,2,150,41],[153,2,153,12],[164,2,164,41],[141,24,141,29],[173,16,173,25],[173,26,173,32],[173,33,173,38],[151,39,151,41],[142,2,142,40],[143,2,143,41],[151,2,151,12],[152,2,152,12],[154,2,154,12],[167,2,167,41],[168,2,168,41],[169,2,169,9],[170,33,170,38],[171,10,171,15],[171,16,171,25],[171,26,171,32],[170,2,170,9],[170,39,170,41],[159,2,159,41],[165,2,165,41],[166,2,166,41],[171,33,171,38],[172,10,172,15],[169,39,169,41],[151,13,151,20],[154,13,154,20],[154,21,154,30],[154,31,154,38],[154,39,154,41],[152,13,152,20],[217,19,217,31],[217,32,217,38],[271,35,271,38],[237,2,237,41],[232,2,232,41],[233,2,233,41],[246,2,246,41],[247,2,247,41],[272,14,272,18],[241,2,241,41],[271,24,271,27],[269,2,269,41],[271,14,271,18],[271,2,271,6],[272,2,272,6],[217,2,217,7],[261,2,261,41],[249,2,249,11],[250,2,250,11],[242,2,242,41],[243,2,243,41],[244,2,244,41],[245,2,245,41],[248,2,248,41],[226,2,226,41],[227,2,227,41],[231,2,231,41],[234,2,234,41],[223,2,223,41],[222,2,222,41],[236,2,236,41],[251,2,251,11],[219,32,219,38],[219,39,219,41],[218,2,218,7],[258,2,258,41],[259,2,259,41],[260,2,260,41],[262,2,262,41],[272,39,272,41],[265,2,265,41],[266,2,266,41],[268,2,268,41],[270,2,270,41],[220,2,220,40],[221,2,221,41],[225,2,225,41],[228,2,228,41],[229,2,229,41],[251,32,251,38],[251,39,251,41],[272,28,272,34],[271,28,271,34],[271,39,271,41],[272,35,272,38],[252,2,252,40],[253,2,253,41],[254,2,254,41],[255,2,255,41],[256,2,256,41],[264,2,264,41],[218,39,218,41],[219,2,219,7],[219,14,219,18],[277,2,277,6],[278,2,278,6],[279,2,279,6],[275,39,275,41],[273,39,273,41],[274,28,274,34],[274,39,274,41],[276,28,276,34],[276,39,276,41],[275,28,275,34],[273,28,273,34],[273,24,273,27],[274,24,274,27],[275,24,275,27],[276,24,276,27],[273,35,273,38],[274,35,274,38],[275,35,275,38],[276,35,276,38],[275,2,275,6],[276,2,276,6],[273,2,273,6],[274,2,274,6],[279,39,279,41],[277,28,277,34],[278,28,278,34],[279,28,279,34],[295,39,295,41],[296,9,296,12],[296,13,296,16],[296,17,296,19],[296,24,296,30],[295,9,295,12],[295,13,295,16],[295,17,295,19],[295,24,295,30],[296,39,296,41],[277,19,277,23],[278,19,278,23],[279,19,279,23],[277,39,277,41],[278,39,278,41],[277,14,277,18],[278,14,278,18],[279,14,279,18],[289,2,289,41],[277,35,277,38],[278,35,278,38],[279,35,279,38],[290,2,290,41],[280,2,280,40],[281,2,281,41],[282,2,282,41],[283,2,283,41],[284,2,284,41],[285,2,285,41],[286,2,286,41],[287,2,287,41],[288,2,288,41],[308,2,308,41],[299,39,299,41],[300,2,300,40],[301,2,301,41],[302,2,302,41],[299,9,299,12],[299,13,299,16],[299,17,299,19],[294,39,294,41],[291,2,291,41],[292,2,292,41],[293,9,293,12],[293,13,293,16],[293,17,293,19],[293,24,293,30],[293,39,293,41],[293,36,293,38],[294,36,294,38],[295,36,295,38],[296,36,296,38],[297,36,297,38],[298,36,298,38],[299,36,299,38]],"merged_total":1220,"flags":["merged_cut"]}
[null,null,null,null,null,null,null,null,null,null,null,null,null,null,null,null,null,null,null,null,null,null,null,null,null,null,null,null,null,null,null,null,null,null,null,null,null,null,null,null,null,null,null,"Hide"]
[]
[null,null,"HVAC"]
[null,null,"Instructions: Please first complete the HVAC Schedule and Set Points in Step 1. Then select the proposed measures and complete the required fields for the selected measures. Highlighted fields are required in order for the application to be considered 'Complete'."]
[]
[null,null,"Refer to the Equipment Efficiency Tables tab to determine if your equipment meets the required minimum efficiencies."]
[null,null,"Select Measures:"]
[null,null,"Unitary Air Conditioners and Heat Pumps"]
[null,null,"Rebate: ",null,null,null,null,null,null,null,null,null,null,null,null,null,null,null,null,null,null,null,null,null,null,null,null,null,null,null,null,null,null,null,null,null,null,null,null,null,null,null,null,null,"AC - Package","Packaged Air-Conditioner"]
[null,null,"- Air-Cooled Unitary Air Conditioners: Tier 1: $60.00 per Ton & Tier 2: $85.00 per Ton",null,null,null,null,null,null,null,null,null,null,null,null,null,null,null,null,null,null,null,null,null,null,null,null,null,null,null,null,null,null,null,null,null,null,null,null,null,null,null,null,null,"AC - Split","Split Air-Conditioner"]
[null,null,"- Air-Cooled Unitary Heat Pumps: Tier 1: $110.00 per Ton & Tier 2: $135.00 per Ton",null,null,null,null,null,null,null,null,null,null,null,null,null,null,null,null,null,null,null,null,null,null,null,null,null,null,null,null,null,null,null,null,null,null,null,null,null,null,null,null,null,"HP - Package","Packaged Heat Pump"]
[null,null,"- Water-Cooled Unitary Air Conditioners and Heat Pumps: $75.00 per Ton",null,null,null,null,null,null,null,null,null,null,null,null,null,null,null,null,null,null,null,null,null,null,null,null,null,null,null,null,null,null,null,null,null,null,null,null,null,null,null,null,null,"HP - Split","Split Heat Pump"]
[null,null,"Eligibility Requirements: ",null,null,null,null,null,null,null,null,null,null,null,null,null,null,null,null,null,null,null,null,null,null,null,null,null,null,null,null,null,null,null,null,null,null,null,null,null,null,null,null,null,"AC:","HP:"]
[null,null,"1. Air-Cooled Unitary Air Conditioners (AC) and Heat Pumps (HP): ",null,null,null,null,null,null,null,null,null,null,null,null,null,null,null,null,null,null,null,null,null,null,null,null,null,null,null,null,null,null,null,null,null,null,null,null,null,null,null,null,null,"Air-Cooled","Air-Cooled"]
[null,null,"1. Window, room air conditioners, multi-split VRF systems >5 tons, and air-rotation systems are not eligible. Multi-split VRF systems <65,000 BTU/h may be qualified as unitary equipment split air-conditioners or heat pumps.",null,null,null,null,null,null,null,null,null,null,null,null,null,null,null,null,null,null,null,null,null,null,null,null,null,null,null,null,null,null,null,null,null,null,null,null,null,null,null,null,null,"Water-Cooled","Water-Cooled"]
[null,null,"2. Rebates will be paid on a tiered efficiency structure according to the AHRI size and efficiency of the equipment.",null,null,null,null,null,null,null,null,null,null,null,null,null,null,null,null,null,null,null,null,null,null,null,null,null,null,null,null,null,null,null,null,null,null,null,null,null,null,null,null,null,"Evap-Cooled"]
[null,null,"3. Rebates will be paid for highest efficiency tier for which the unit qualifies.",null,null,null,null,null,null,null,null,null,null,null,null,null,null,null,null,null,null,null,null,null,null,null,null,null,null,null,null,null,null,null,null,null,null,null,null,null,null,null,null,null,"AC (NC):","AC (Retro):","HP (NC):","HP (Retro):"]
[null,null,"4. Air Conditioners must be air-cooled and meet or exceed the 2024 CEE efficiencies shown in Table 1.",null,null,null,null,null,null,null,null,null,null,null,null,null,null,null,null,null,null,null,null,null,null,null,null,null,null,null,null,null,null,null,null,null,null,null,null,null,null,null,null,null,"None","None (Replace None/Elect. Res./Other)","Electric Resistance","Elect. Res. (Replace None/Elect. Res./Other)"]
[null,null,"5. Heat pumps must meet or exceed the 2024 CEE efficiencies shown in Table 2. For Heat Pumps that meet or exceed the cooling efficiency requirements, but not the heating efficiency requirements, these Heat Pumps may qualify for the Air Conditioner rebate.",null,null,null,null,null,null,null,null,null,null,null,null,null,null,null,null,null,null,null,null,null,null,null,null,null,null,null,null,null,null,null,null,null,null,null,null,null,null,null,null,null,"Electric Resistance","None (Replace Gas)","Gas","Elect. Res. (Replace Gas)"]
[null,null,"6. Equipment must use a minimum ozone-depleting refrigerant.",null,null,null,null,null,null,null,null,null,null,null,null,null,null,null,null,null,null,null,null,null,null,null,null,null,null,null,null,null,null,null,null,null,null,null,null,null,null,null,null,null,"Gas","Elect. Res. (Replace None/Elect. Res./Other)","Heat Pump","Gas"]
[null,null,"2. Water-Cooled Unitary Air Conditioners (AC) and Heat Pumps (HP):",null,null,null,null,null,null,null,null,null,null,null,null,null,null,null,null,null,null,null,null,null,null,null,null,null,null,null,null,null,null,null,null,null,null,null,null,null,null,null,null,null,"Other","Elect. Res. (Replace Gas)","Other","Heat Pump (Replace Heat Pump/Other)"]
[null,null,"1. Must be a water or evaporative cooled air conditioner or a water-source heat pump.",null,null,null,null,null,null,null,null,null,null,null,null,null,null,null,null,null,null,null,null,null,null,null,null,null,null,null,null,null,null,null,null,null,null,null,null,null,null,null,null,null,null,"Gas",null,"Heat Pump (Replace Elect. Res.)"]
[null,null,"2. Must be rated at AHRI Standard Rating Conditions.",null,null,null,null,null,null,null,null,null,null,null,null,null,null,null,null,null,null,null,null,null,null,null,null,null,null,null,null,null,null,null,null,null,null,null,null,null,null,null,null,null,null,"Other",null,"Heat Pump (Replace Gas)"]
[null,null,"3. Must meet or exceed the 2024 CEE efficiencies shown in Table 3. For Heat Pumps that meet or exceed the cooling efficiency requirements, but not the heating efficiency requirements, these Heat Pumps may qualify for the Air Conditioner rebate.",null,null,null,null,null,null,null,null,null,null,null,null,null,null,null,null,null,null,null,null,null,null,null,null,null,null,null,null,null,null,null,null,null,null,null,null,null,null,null,null,null,null,null,null,"Other"]
[null,null,"4. Equipment must use a minimum ozone-depleting refrigerant."]
[null,null,"The following are required items that must be submitted along with the completed mechanical & more application:"]
[null,null,"1. Dated invoice/payment application."]
[null,null,"2. Manufacturer's equipment specification sheet documenting the efficiency or AHRI reference numbers."]
[null,null,"Manufacture/ Model",null,null,null,null,"Unit / System Type",null,null,"Heat Reject.",null,null,{"$f":"IF(ProjectType = \"New Construction\",\"Heating Type\",\"Heating Type (Replaced)\")","v":"Heating Type (Replaced)"},null,null,"AHRI Size (Btu/h)",null,null,"SEER / IEER",null,null,"SEER2",null,null,"EER",null,null,"EER2",null,null,"HSPF / COP",null,null,"HSPF2",null,null,"Qty",null,"Rebate",null,null,null,null,null,null,null,null,null,"List1","List2","List3","Size","Input1","Input2","Input3","Input4","Input5","Input6","Qty","Manuf","ModelNo","Notes"]
[null,null,null,null,null,null,null,null,null,null,null,null,null,null,null,null,null,null,null,null,null,null,null,null,null,null,null,null,null,null,null,null,null,null,null,null,null,null,null,null,null,null,null,{"$f":"COUNTA($C30:$AP30)>0","v":false},null,null,null,null,"     Unitary HVAC Equipment",{"$f":"VLOOKUP($H30,$AS$9:$AT$12,2,FALSE)","v":{"$error":"#N/A"}},{"$f":"K30","v":0},{"$f":"N30","v":0},{"$f":"Q30","v":0},{"$f":"T30","v":0},{"$f":"W30","v":0},{"$f":"Z30","v":0},{"$f":"AC30","v":0},{"$f":"AF30","v":0},{"$f":"AI30","v":0},{"$f":"AL30","v":0},null,null,{"$f":"C30","v":0}]
[null,null,null,null,null,null,null,null,null,null,null,null,null,null,null,null,null,null,null,null,null,null,null,null,null,null,null,null,null,null,null,null,null,null,null,null,null,null,null,null,null,null,null,false,null,null,null,null,"     Unitary HVAC Equipment",{"$error":"#N/A"},0,0,0,0,0,0,0,0,0,0,null,null,0]
[null,null,null,null,null,null,null,null,null,null,null,null,null,null,null,null,null,null,null,null,null,null,null,null,null,null,null,null,null,null,null,null,null,null,null,null,null,null,null,null,null,null,null,false,null,null,null,null,"     Unitary HVAC Equipment",{"$error":"#N/A"},0,0,0,0,0,0,0,0,0,0,null,null,0]
[null,null,null,null,null,null,null,null,null,null,null,null,null,null,null,null,null,null,null,null,null,null,null,null,null,null,null,null,null,null,null,null,null,null,null,null,null,null,null,null,null,null,null,false,null,null,null,null,"     Unitary HVAC Equipment",{"$error":"#N/A"},0,0,0,0,0,0,0,0,0,0,null,null,0]
[null,null,null,null,null,null,null,null,null,null,null,null,null,null,null,null,null,null,null,null,null,null,null,null,null,null,null,null,null,null,null,null,null,null,null,null,null,null,null,null,null,null,null,false,null,null,null,null,"     Unitary HVAC Equipment",{"$error":"#N/A"},0,0,0,0,0,0,0,0,0,0,null,null,0]
[null,null,null,null,null,null,null,null,null,null,null,null,null,null,null,null,null,null,null,null,null,null,null,null,null,null,null,null,null,null,null,null,null,null,null,null,null,null,null,null,null,null,null,false,null,null,null,null,"     Unitary HVAC Equipment",{"$error":"#N/A"},0,0,0,0,0,0,0,0,0,0,null,null,0]
[null,null,null,null,null,null,null,null,null,null,null,null,null,null,null,null,null,null,null,null,null,null,null,null,null,null,null,null,null,null,null,null,null,null,null,null,null,null,null,null,null,null,null,false,null,null,null,null,"     Unitary HVAC Equipment",{"$error":"#N/A"},0,0,0,0,0,0,0,0,0,0,null,null,0]
[null,null,null,null,null,null,null,null,null,null,null,null,null,null,null,null,null,null,null,null,null,null,null,null,null,null,null,null,null,null,null,null,null,null,null,null,null,null,null,null,null,null,null,false,null,null,null,null,"     Unitary HVAC Equipment",{"$error":"#N/A"},0,0,0,0,0,0,0,0,0,0,null,null,0]
[null,null,null,null,null,null,null,null,null,null,null,null,null,null,null,null,null,null,null,null,null,null,null,null,null,null,null,null,null,null,null,null,null,null,null,null,null,null,null,null,null,null,null,false,null,null,null,null,"     Unitary HVAC Equipment",{"$error":"#N/A"},0,0,0,0,0,0,0,0,0,0,null,null,0]
[null,null,null,null,null,null,null,null,null,null,null,null,null,null,null,null,null,null,null,null,null,null,null,null,null,null,null,null,null,null,null,null,null,null,null,null,null,null,null,null,null,null,null,false,null,null,null,null,"     Unitary HVAC Equipment",{"$error":"#N/A"},0,0,0,0,0,0,0,0,0,0,null,null,0]
[null,null,null,null,null,null,null,null,null,null,null,null,null,null,null,null,null,null,null,null,null,null,null,null,null,null,null,null,null,null,null,null,null,null,null,null,null,null,null,null,null,null,null,false,null,null,null,null,"     Unitary HVAC Equipment",{"$error":"#N/A"},0,0,0,0,0,0,0,0,0,0,null,null,0]
[null,null,null,null,null,null,null,null,null,null,null,null,null,null,null,null,null,null,null,null,null,null,null,null,null,null,null,null,null,null,null,null,null,null,null,null,null,null,null,null,null,null,null,false,null,null,null,null,"     Unitary HVAC Equipment",{"$error":"#N/A"},0,0,0,0,0,0,0,0,0,0,null,null,0]
[null,null,null,null,null,null,null,null,null,null,null,null,null,null,null,null,null,null,null,null,null,null,null,null,null,null,null,null,null,null,null,null,null,null,null,null,null,null,null,null,null,null,null,false,null,null,null,null,"     Unitary HVAC Equipment",{"$error":"#N/A"},0,0,0,0,0,0,0,0,0,0,null,null,0]
[null,null,null,null,null,null,null,null,null,null,null,null,null,null,null,null,null,null,null,null,null,null,null,null,null,null,null,null,null,null,null,null,null,null,null,null,null,null,null,null,null,null,null,false,null,null,null,null,"     Unitary HVAC Equipment",{"$error":"#N/A"},0,0,0,0,0,0,0,0,0,0,null,null,0]
[null,null,null,null,null,null,null,null,null,null,null,null,null,null,null,null,null,null,null,null,null,null,null,null,null,null,null,null,null,null,null,null,null,null,null,null,null,null,null,null,null,null,null,false,null,null,null,null,"     Unitary HVAC Equipment",{"$error":"#N/A"},0,0,0,0,0,0,0,0,0,0,null,null,0]
[null,null,"Multi-Split VRF System"]
[null,null,"Rebate:  $75.00 per Ton"]
[null,null,"Eligibility Requirements: ",null,null,null,null,null,null,null,null,null,null,null,null,null,null,null,null,null,null,null,null,null,null,null,null,null,null,null,null,null,null,null,null,null,null,null,null,null,null,null,null,null,"Air Conditioner","Multi-Split A/C"]
[null,null,"1. Variable refrigerant air conditioner or heat pump systems must be rated at ANSI/AHRI 1230-2016 standard performance conditions. Smaller units <65,000 Btu/h may qualify under the Unitary Equipment Split Air-Conditioner/Heat Pump measure.",null,null,null,null,null,null,null,null,null,null,null,null,null,null,null,null,null,null,null,null,null,null,null,null,null,null,null,null,null,null,null,null,null,null,null,null,null,null,null,null,null,"Heat Pump","Multi-Split HP"]
[null,null,"2. Must meet or exceed the 2022 CEE efficiencies shown in Table 10. For Heat Pumps that meet or exceed the SEER/IEER and EER requirements, but not the HSPF/COP1 requirements, these Heat Pumps may qualify for the Air Conditioner rebate."]
[null,null,"The following are required items that must be submitted along with the completed mechanical & more application:",null,null,null,null,null,null,null,null,null,null,null,null,null,null,null,null,null,null,null,null,null,null,null,null,null,null,null,null,null,null,null,null,null,null,null,null,null,null,null,null,null,"Air-Cooled"]
[null,null,"1. Dated invoice/payment application.",null,null,null,null,null,null,null,null,null,null,null,null,null,null,null,null,null,null,null,null,null,null,null,null,null,null,null,null,null,null,null,null,null,null,null,null,null,null,null,null,null,"Air-Cooled"]
[null,null,"2. Manufacturer's equipment specification sheet documenting the efficiency or AHRI reference numbers.",null,null,null,null,null,null,null,null,null,null,null,null,null,null,null,null,null,null,null,null,null,null,null,null,null,null,null,null,null,null,null,null,null,null,null,null,null,null,null,null,null,"Water-Cooled"]
[null,null,"Manufacture/ Model",null,null,null,null,null,null,"Unit / System Type",null,null,null,"Heat Rejection",null,null,null,null,"AHRI Size (Btu/h)",null,null,null,"Heat Recovery?",null,null,null,null,"SEER / IEER",null,null,"EER",null,null,"HSPF / COP",null,null,"Qty",null,null,"Rebate",null,null,null,null,null,null,null,null,null,"List1","List2","List3","Size","Input1","Input2","Input3","Input4","Input5","Input6","Qty","Manuf","ModelNo","Notes"]
[null,null,null,null,null,null,null,null,null,null,null,null,null,null,null,null,null,null,null,null,null,null,null,null,null,null,null,null,null,null,null,null,null,null,null,null,null,null,null,null,null,null,null,{"$f":"COUNTA($C54:$AP54)>0","v":false},null,null,null,null,"     Unitary HVAC Equipment",{"$f":"VLOOKUP($G54,$AS$47:$AT$48,2,FALSE)&IF(AND($G54=$AS$48,$Q54=\"Yes\"),\" w/ Heat Recovery\",\"\")","v":{"$error":"#N/A"}},{"$f":"K54","v":0},null,{"$f":"N54","v":0},{"$f":"T54","v":0},{"$f":"Z54","v":0},{"$f":"AF54","v":0},null,null,null,{"$f":"AL54","v":0},null,null,{"$f":"C54","v":0}]
[null,null,null,null,null,null,null,null,null,null,null,null,null,null,null,null,null,null,null,null,null,null,null,null,null,null,null,null,null,null,null,null,null,null,null,null,null,null,null,null,null,null,null,{"$f":"COUNTA($C55:$AP55)>0","v":false},null,null,null,null,"     Unitary HVAC Equipment",{"$f":"VLOOKUP($G55,$AS$47:$AT$48,2,FALSE)&IF(AND($G55=$AS$48,$Q55=\"Yes\"),\" w/ Heat Recovery\",\"\")","v":{"$error":"#N/A"}},{"$f":"K55","v":0},null,{"$f":"N55","v":0},{"$f":"T55","v":0},{"$f":"Z55","v":0},{"$f":"AF55","v":0},null,null,null,{"$f":"AL55","v":0},null,null,{"$f":"C55","v":0}]
[null,null,null,null,null,null,null,null,null,null,null,null,null,null,null,null,null,null,null,null,null,null,null,null,null,null,null,null,null,null,null,null,null,null,null,null,null,null,null,null,null,null,null,{"$f":"COUNTA($C56:$AP56)>0","v":false},null,null,null,null,"     Unitary HVAC Equipment",{"$f":"VLOOKUP($G56,$AS$47:$AT$48,2,FALSE)&IF(AND($G56=$AS$48,$Q56=\"Yes\"),\" w/ Heat Recovery\",\"\")","v":{"$error":"#N/A"}},{"$f":"K56","v":0},null,{"$f":"N56","v":0},{"$f":"T56","v":0},{"$f":"Z56","v":0},{"$f":"AF56","v":0},null,null,null,{"$f":"AL56","v":0},null,null,{"$f":"C56","v":0}]
[null,null,null,null,null,null,null,null,null,null,null,null,null,null,null,null,null,null,null,null,null,null,null,null,null,null,null,null,null,null,null,null,null,null,null,null,null,null,null,null,null,null,null,{"$f":"COUNTA($C57:$AP57)>0","v":false},null,null,null,null,"     Unitary HVAC Equipment",{"$f":"VLOOKUP($G57,$AS$47:$AT$48,2,FALSE)&IF(AND($G57=$AS$48,$Q57=\"Yes\"),\" w/ Heat Recovery\",\"\")","v":{"$error":"#N/A"}},{"$f":"K57","v":0},null,{"$f":"N57","v":0},{"$f":"T57","v":0},{"$f":"Z57","v":0},{"$f":"AF57","v":0},null,null,null,{"$f":"AL57","v":0},null,null,{"$f":"C57","v":0}]
[null,null,"Packaged Terminal Units & Single-Package Vertical Terminal Units"]
[null,null,"Rebate:"]
[null,null,"- Packaged Terminal Units: $40.00 per Ton"]
[null,null,"- Vertical Terminal Units: $75.00 per Ton"]
[null,null,"Eligibility Requirements: "]
[null,null,"1. Packaged Terminal Air-Conditioners & Heat Pumps:"]
[null,null,"1. Must be rated under AHRI standard conditions and meet or exceed the efficiencies shown  in Table 4. For Heat Pumps that meet or exceed the SEER/IEER and EER requirements, but not the HSPF/COP1 requirements, these Heat Pumps may qualify for the Air Conditioner rebate.",null,null,null,null,null,null,null,null,null,null,null,null,null,null,null,null,null,null,null,null,null,null,null,null,null,null,null,null,null,null,null,null,null,null,null,null,null,null,null,null,null,"PTAC","Packaged Terminal A/C (PTAC)"]
[null,null,"2. Single-Package Vertical Terminal Air-Conditioners & Heat Pumps:",null,null,null,null,null,null,null,null,null,null,null,null,null,null,null,null,null,null,null,null,null,null,null,null,null,null,null,null,null,null,null,null,null,null,null,null,null,null,null,null,null,"PTHP","Packaged Terminal HP (PTHP)"]
[null,null,"1. Units ≥65,000 BTUh (5.5 tons) are not eligible.",null,null,null,null,null,null,null,null,null,null,null,null,null,null,null,null,null,null,null,null,null,null,null,null,null,null,null,null,null,null,null,null,null,null,null,null,null,null,null,null,null,"VTAC","Vertical Terminal A/C (PTAC)"]
[null,null,"2. Must be rated under AHRI (ARI 390) standard conditions and meet or exceed the efficiencies shown in Table 4. For Heat Pumps that meet or exceed the SEER/IEER and EER requirements, but not the HSPF/COP1 requirements, these Heat Pumps may qualify for the Air Conditioner rebate.",null,null,null,null,null,null,null,null,null,null,null,null,null,null,null,null,null,null,null,null,null,null,null,null,null,null,null,null,null,null,null,null,null,null,null,null,null,null,null,null,null,"VTHP","Vertical Terminal HP (PTHP)"]
[null,null,"The following are required items that must be submitted along with the completed mechanical & more application:"]
[null,null,"1. Dated invoice/payment application."]
[null,null,"2. Manufacturer's equipment specification sheet documenting the efficiency or AHRI reference numbers."]
[null,null,"Manufacture/Model",null,null,null,null,null,null,null,"Unit / System Type",null,null,null,null,null,"AHRI Size (Btu/h)",null,null,null,null,"EER",null,null,null,null,null,null,null,"COP",null,null,null,null,null,"Quantity",null,null,null,"Rebate",null,null,null,null,null,null,null,null,null,"List1","List2","List3","Size","Input1","Input2","Input3","Input4","Input5","Input6","Qty","Manuf","ModelNo","Notes"]
[null,null,null,null,null,null,null,null,null,null,null,null,null,null,null,null,null,null,null,null,null,null,null,null,null,null,null,null,null,null,null,null,null,null,null,null,null,null,null,null,null,null,null,{"$f":"COUNTA($C72:$AP72)>0","v":false},null,null,null,null,"     Unitary HVAC Equipment",{"$f":"VLOOKUP(K72,AS64:AT67,2,FALSE)","v":{"$error":"#N/A"}},null,null,{"$f":"Q72","v":0},null,{"$f":"V72","v":0},{"$f":"AD72","v":0},null,null,null,{"$f":"AJ72","v":0},null,null,{"$f":"C72","v":0}]
[null,null,null,null,null,null,null,null,null,null,null,null,null,null,null,null,null,null,null,null,null,null,null,null,null,null,null,null,null,null,null,null,null,null,null,null,null,null,null,null,null,null,null,{"$f":"COUNTA($C73:$AP73)>0","v":false},null,null,null,null,"     Unitary HVAC Equipment",{"$f":"VLOOKUP(K73,AS65:AT68,2,FALSE)","v":{"$error":"#N/A"}},null,null,{"$f":"Q73","v":0},null,{"$f":"V73","v":0},{"$f":"AD73","v":0},null,null,null,{"$f":"AJ73","v":0},null,null,{"$f":"C73","v":0}]
[null,null,null,null,null,null,null,null,null,null,null,null,null,null,null,null,null,null,null,null,null,null,null,null,null,null,null,null,null,null,null,null,null,null,null,null,null,null,null,null,null,null,null,{"$f":"COUNTA($C74:$AP74)>0","v":false},null,null,null,null,"     Unitary HVAC Equipment",{"$f":"VLOOKUP(K74,AS66:AT69,2,FALSE)","v":{"$error":"#N/A"}},null,null,{"$f":"Q74","v":0},null,{"$f":"V74","v":0},{"$f":"AD74","v":0},null,null,null,{"$f":"AJ74","v":0},null,null,{"$f":"C74","v":0}]
[null,null,"Evaporative Cooling"]
[null,null,"Rebate:  Direct, Indirect, or Indirect/Direct: $0.06 per CFM",null,null,null,null,null,null,null,null,null,null,null,null,null,null,null,null,null,null,null,null,null,null,null,null,null,null,null,null,null,null,null,null,null,null,null,null,null,null,null,null,"DEC","Direct",null,"Single-Speed"]
[null,null,"Eligibility Requirements: ",null,null,null,null,null,null,null,null,null,null,null,null,null,null,null,null,null,null,null,null,null,null,null,null,null,null,null,null,null,null,null,null,null,null,null,null,null,null,null,null,"IEC","Indirect",null,"2-Speed"]
[null,null,"1. Installations on non-standalone units are not eligible.",null,null,null,null,null,null,null,null,null,null,null,null,null,null,null,null,null,null,null,null,null,null,null,null,null,null,null,null,null,null,null,null,null,null,null,null,null,null,null,null,"IDEC","Direct-Indirect",null,"Multi-Speed"]
[null,null,"2. System components must meet or exceed minimum efficiencies required by ASHRAE 90.1-2016.",null,null,null,null,null,null,null,null,null,null,null,null,null,null,null,null,null,null,null,null,null,null,null,null,null,null,null,null,null,null,null,null,null,null,null,null,null,null,null,null,null,null,null,"VFD"]
[null,null,"3. (New Construction) Installation of units on air-conditioned spaces with fan motors ≥1/4 HP with single-speed motors are not eligible. Rebates are not simultaneously available for VFD's or ECM's where rebates have been paid for Evaporative Cooling equipment."]
[null,null,"The following are required items that must be submitted along with the completed mechanical & more application:"]
[null,null,"1. Dated invoice/payment application."]
[null,null,"2. Manufacturer's equipment specification sheet documenting compliance with equipment eligibility."]
[null,null,"Manufacture/Model",null,null,null,null,null,null,"Cooler Type?",null,null,"Motor Controls?",null,null,"Design Flow (CFM)",null,null,null,"Fan HP",null,null,null,null,null,null,"Inches of Static Pressure",null,null,null,null,null,null,"Qty",null,null,null,null,null,"Rebate",null,null,null,null,null,null,null,null,null,"List1","List2","List3","Size","Input1","Input2","Input3","Input4","Input5","Input6","Qty","Manuf","ModelNo","Notes"]
[null,null,null,null,null,null,null,null,null,null,null,null,null,null,null,null,null,null,null,null,null,null,null,null,null,null,null,null,null,null,null,null,null,null,null,null,null,null,null,null,null,null,null,{"$f":"COUNTA($C85:$AP85)>0","v":false},null,null,null,null,"     Direct & Indirect Evaporative Cooler",{"$f":"VLOOKUP($J85,$AR$76:$AS$78,2,FALSE)","v":{"$error":"#N/A"}},{"$f":"M85","v":0},null,{"$f":"P85","v":0},{"$f":"T85","v":0},{"$f":"AA85","v":0},null,null,null,null,{"$f":"AH85","v":0},null,null,{"$f":"C85","v":0}]
[null,null,null,null,null,null,null,null,null,null,null,null,null,null,null,null,null,null,null,null,null,null,null,null,null,null,null,null,null,null,null,null,null,null,null,null,null,null,null,null,null,null,null,{"$f":"COUNTA($C86:$AP86)>0","v":false},null,null,null,null,"     Direct & Indirect Evaporative Cooler",{"$f":"VLOOKUP($J86,$AR$76:$AS$78,2,FALSE)","v":{"$error":"#N/A"}},{"$f":"M86","v":0},null,{"$f":"P86","v":0},{"$f":"T86","v":0},{"$f":"AA86","v":0},null,null,null,null,{"$f":"AH86","v":0},null,null,{"$f":"C86","v":0}]
[null,null,null,null,null,null,null,null,null,null,null,null,null,null,null,null,null,null,null,null,null,null,null,null,null,null,null,null,null,null,null,null,null,null,null,null,null,null,null,null,null,null,null,{"$f":"COUNTA($C87:$AP87)>0","v":false},null,null,null,null,"     Direct & Indirect Evaporative Cooler",{"$f":"VLOOKUP($J87,$AR$76:$AS$78,2,FALSE)","v":{"$error":"#N/A"}},{"$f":"M87","v":0},null,{"$f":"P87","v":0},{"$f":"T87","v":0},{"$f":"AA87","v":0},null,null,null,null,{"$f":"AH87","v":0},null,null,{"$f":"C87","v":0}]
[null,null,null,null,null,null,null,null,null,null,null,null,null,null,null,null,null,null,null,null,null,null,null,null,null,null,null,null,null,null,null,null,null,null,null,null,null,null,null,null,null,null,null,{"$f":"COUNTA($C88:$AP88)>0","v":false},null,null,null,null,"     Direct & Indirect Evaporative Cooler",{"$f":"VLOOKUP($J88,$AR$76:$AS$78,2,FALSE)","v":{"$error":"#N/A"}},{"$f":"M88","v":0},null,{"$f":"P88","v":0},{"$f":"T88","v":0},{"$f":"AA88","v":0},null,null,null,null,{"$f":"AH88","v":0},null,null,{"$f":"C88","v":0}]
[null,null,null,null,null,null,null,null,null,null,null,null,null,null,null,null,null,null,null,null,null,null,null,null,null,null,null,null,null,null,null,null,null,null,null,null,null,null,null,null,null,null,null,{"$f":"COUNTA($C89:$AP89)>0","v":false},null,null,null,null,"     Direct & Indirect Evaporative Cooler",{"$f":"VLOOKUP($J89,$AR$76:$AS$78,2,FALSE)","v":{"$error":"#N/A"}},{"$f":"M89","v":0},null,{"$f":"P89","v":0},{"$f":"T89","v":0},{"$f":"AA89","v":0},null,null,null,null,{"$f":"AH89","v":0},null,null,{"$f":"C89","v":0}]
[null,null,"Chillers"]
[null,null,"Rebate:"]
[null,null,"- Air-Cooled: $15.00/Ton + $350/Ton/(Min IPLV - Proposed IPLV)"]
[null,null,"- Water-Cooled: $45.00/Ton + $450/Ton/(Min IPLV - Proposed IPLV)"]
[null,null,"Eligibility Requirements: ",null,null,null,null,null,null,null,null,null,null,null,null,null,null,null,null,null,null,null,null,null,null,null,null,null,null,null,null,null,null,null,null,null,null,null,null,null,null,null,null,"Centrifugal"]
[null,null,"1. Back-up service units are not eligible.",null,null,null,null,null,null,null,null,null,null,null,null,null,null,null,null,null,null,null,null,null,null,null,null,null,null,null,null,null,null,null,null,null,null,null,null,null,null,null,null,"Reciprocating",null,"Air-Cooled","Air-Cooled (Air-Cooled Replacement)"]
[null,null,"2. For AHRI Standard 550/590 conditions (outlined below), chiller efficiencies must meet or exceed the minimum efficiency requirements shown in Table 5.",null,null,null,null,null,null,null,null,null,null,null,null,null,null,null,null,null,null,null,null,null,null,null,null,null,null,null,null,null,null,null,null,null,null,null,null,null,null,null,null,"Rotary",null,"Water-Cooled","Water-Cooled (Air-Cooled Replacement)"]
[null,null,"- Condenser conditions: 85 degF at 3.0 gpm/ton",null,null,null,null,null,null,null,null,null,null,null,null,null,null,null,null,null,null,null,null,null,null,null,null,null,null,null,null,null,null,null,null,null,null,null,null,null,null,null,null,"Screw",null,null,"Air-Cooled (Water-Cooled Replacement)"]
[null,null,"- Evaporator conditions: 44 degF at 2.4 gpm/ton",null,null,null,null,null,null,null,null,null,null,null,null,null,null,null,null,null,null,null,null,null,null,null,null,null,null,null,null,null,null,null,null,null,null,null,null,null,null,null,null,"Scroll",null,null,"Water-Cooled (Water-Cooled Replacement)"]
[null,null,"3. For Water-Cooled Centrifugal chillers operating with Non-Standard conditions, the new efficiencies must meet or exceed the adjusted efficiency requirements, as outlined in ASHRAE 90.1-2016, section 6.4.1.2 \"Minimum Equipment Efficiencies—Listed Equipment—Nonstandard Conditions\" by entering the design Leaving Fluid Temperatures for the Condenser and Evaporator. (Please submit additional test procedures when submitting an application)"]
[null,null,"4. If the unit has a Variable Frequency Drives (VFD) installed, this must be reflected in the chiller IPLV rating."]
[null,null,"5. (Retrofit) Water-Cooled chillers that replace Air-Cooled chillers may be eligible under the SRP Business Solutions Custom program for evaluating higher energy improvements for air-to-water conversions. Chillers submitted through the SRP Business Solutions Standard program are eligible for incentives offered with a baseline of an equivalent chiller heat rejection only."]
[null,null,"The following are required items that must be submitted along with the completed mechanical & more application:"]
[null,null,"1. Dated invoice/payment application."]
[null,null,"2. Manufacturer's equipment specification sheet documenting the Full-Load (100%) and IPLV efficiency ratings.",null,null,null,null,null,null,null,null,null,null,null,null,null,null,null,null,null,null,null,null,null,null,null,null,null,null,null,null,null,null,null,null,null,null,null,null,null,null,null,null,"Yes"]
[null,null,"3. If the chiller has more than 20% process cooling load, please submit the average annual loading percentage and operating hours.",null,null,null,null,null,null,null,null,null,null,null,null,null,null,null,null,null,null,null,null,null,null,null,null,null,null,null,null,null,null,null,null,null,null,null,null,null,null,null,null,"No"]
[null,null,"Manufacture/Model",null,null,null,null,null,"Chiller Type",null,null,null,{"$f":"IF(Project_Type = \"New Construction\",\"Heat Rejection\", \"Heat Rejection (Replaced)\")","v":"Heat Rejection (Replaced)"},null,null,null,null,"VFD?",null,null,"AHRI Chiller Tons",null,null,null,null,"Full Load kW/ton",null,null,null,null,null,"IPLV\nkW / ton",null,null,null,null,"Qty",null,null,"Rebate",null,null,null,null,null,null,null,null,null,"List1","List2","List3","Size","Input1","Input2","Input3","Input4","Input5","Input6","Qty","Manuf","ModelNo","Notes"]
[null,null,null,null,null,null,null,null,null,null,null,null,null,null,null,null,null,null,null,null,null,null,null,null,null,null,null,null,null,null,null,null,null,null,null,null,null,null,null,null,null,null,null,{"$f":"COUNTA($C107:$AP107)>0","v":false},null,null,null,null,"     Chiller",{"$f":"I107","v":0},{"$f":"M107","v":0},{"$f":"R107","v":0},{"$f":"U107","v":0},{"$f":"Z107","v":0},{"$f":"AF107","v":0},null,null,null,null,{"$f":"AL107","v":0},null,null,{"$f":"C107","v":0}]
[null,null,null,null,null,null,null,null,null,null,null,null,null,null,null,null,null,null,null,null,null,null,null,null,null,null,null,null,null,null,null,null,null,null,null,null,null,null,null,null,null,null,null,{"$f":"COUNTA($C108:$AP108)>0","v":false},null,null,null,null,"     Chiller",{"$f":"I108","v":0},{"$f":"M108","v":0},{"$f":"R108","v":0},{"$f":"U108","v":0},{"$f":"Z108","v":0},{"$f":"AF108","v":0},null,null,null,null,{"$f":"AL108","v":0},null,null,{"$f":"C108","v":0}]
[null,null,null,null,null,null,null,null,null,null,null,null,null,null,null,null,null,null,null,null,null,null,null,null,null,null,null,null,null,null,null,null,null,null,null,null,null,null,null,null,null,null,null,{"$f":"COUNTA($C109:$AP109)>0","v":false},null,null,null,null,"     Chiller",{"$f":"I109","v":0},{"$f":"M109","v":0},{"$f":"R109","v":0},{"$f":"U109","v":0},{"$f":"Z109","v":0},{"$f":"AF109","v":0},null,null,null,null,{"$f":"AL109","v":0},null,null,{"$f":"C109","v":0}]
[null,null,null,null,null,null,null,null,null,null,null,null,null,null,null,null,null,null,null,null,null,null,null,null,null,null,null,null,null,null,null,null,null,null,null,null,null,null,null,null,null,null,null,{"$f":"COUNTA($C110:$AP110)>0","v":false},null,null,null,null,"     Chiller",{"$f":"I110","v":0},{"$f":"M110","v":0},{"$f":"R110","v":0},{"$f":"U110","v":0},{"$f":"Z110","v":0},{"$f":"AF110","v":0},null,null,null,null,{"$f":"AL110","v":0},null,null,{"$f":"C110","v":0}]
[null,null,null,null,null,null,null,null,null,null,null,null,null,null,null,null,null,null,null,null,null,null,null,null,null,null,null,null,null,null,null,null,null,null,null,null,null,null,null,null,null,null,null,{"$f":"COUNTA($C111:$AP111)>0","v":false},null,null,null,null,"     Chiller",{"$f":"I111","v":0},{"$f":"M111","v":0},{"$f":"R111","v":0},{"$f":"U111","v":0},{"$f":"Z111","v":0},{"$f":"AF111","v":0},null,null,null,null,{"$f":"AL111","v":0},null,null,{"$f":"C111","v":0}]
[null,null,"Outside Air Economizer"]
[null,null,"Rebate:  $50.00 per Ton",null,null,null,null,null,null,null,null,null,null,null,null,null,null,null,null,null,null,null,null,null,null,null,null,null,null,null,null,null,null,null,null,null,null,null,null,null,null,null,null,"Air-Cooled AC","Air Conditioner","Air-Cooled",null,"Electric Resistance"]
[null,null,"Eligibility Requirements: ",null,null,null,null,null,null,null,null,null,null,null,null,null,null,null,null,null,null,null,null,null,null,null,null,null,null,null,null,null,null,null,null,null,null,null,null,null,null,null,null,"Water-Cooled AC","Air Conditioner","Water-Cooled",null,"Gas"]
[null,null,"1. 100% outside-air units are not eligible.   ",null,null,null,null,null,null,null,null,null,null,null,null,null,null,null,null,null,null,null,null,null,null,null,null,null,null,null,null,null,null,null,null,null,null,null,null,null,null,null,null,"Evap-Cooled AC","Air Conditioner","Evaporatively-Cooled",null,"Heat Pump"]
[null,null,"2. Must be capable of modulating 95% open.",null,null,null,null,null,null,null,null,null,null,null,null,null,null,null,null,null,null,null,null,null,null,null,null,null,null,null,null,null,null,null,null,null,null,null,null,null,null,null,null,"Air-Cooled HP","Heat Pump","Air-Cooled",null,"Other"]
[null,null,"3. (Retrofit) Replacements of existing economizers and HVAC units are eligible. Replacements of existing economizers are not eligible for rebates, unless existing economizers have been non-functioning for more than 2 years.",null,null,null,null,null,null,null,null,null,null,null,null,null,null,null,null,null,null,null,null,null,null,null,null,null,null,null,null,null,null,null,null,null,null,null,null,null,null,null,null,"Water-Cooled HP","Heat Pump","Water-Cooled",null,"None"]
[null,null,"- Economizers repaired, replaced, or installed as part of an HVAC Tune-Up project are not eligible.",null,null,null,null,null,null,null,null,null,null,null,null,null,null,null,null,null,null,null,null,null,null,null,null,null,null,null,null,null,null,null,null,null,null,null,null,null,null,null,null,"Air-Cooled Chiller","Chiller","Air-Cooled"]
[null,null,"4. (New Construction) Rebates are not available for economizers that are required by ASHRAE 90.1-2016:",null,null,null,null,null,null,null,null,null,null,null,null,null,null,null,null,null,null,null,null,null,null,null,null,null,null,null,null,null,null,null,null,null,null,null,null,null,null,null,null,"Water-Cooled Chiller","Chiller","Water-Cooled"]
[null,null,"- Computer Room Air-Conditioners (CRAC) ≥54,000 BTU/H unless unit efficiency meets or exceeds the efficiencies shown in Table 8."]
[null,null,"- Chiller systems must have both a water-side economizer and air-side economizer (Rebates are not simultaneously available) and meet or exceed the efficiencies shown in Table 9."]
[null,null,"- Air-Conditioners ≥54,000 BTU/H unless unit efficiency meets or exceeds the efficiencies shown in Table 10."]
[null,null,"- Heat Pumps ≥54,000 BTU/H unless unit efficiency meets or exceeds the efficiencies shown in Table 11."]
[null,null,"The following are required items that must be submitted along with the completed mechanical & more application:"]
[null,null,"1. Dated invoice/payment application."]
[null,null,"2. Manufacturer's equipment specification sheet documenting compliance with equipment eligibility."]
[null,null,"Manufacture/ Model",null,null,null,null,null,"Install Location",null,null,null,null,"HVAC Equipment Type",null,null,null,null,"Heating Type",null,null,null,null,null,"Size (Btu/h)",null,null,null,null,null,"Unit Efficiency",null,null,null,null,"Qty",null,null,null,"Rebate",null,null,null,null,null,null,null,null,null,"List1","List2","List3","Size","Input1","Input2","Input3","Input4","Input5","Input6","Qty","Manuf","ModelNo","Notes"]
[null,null,null,null,null,null,null,null,null,null,null,null,null,null,null,null,null,null,null,null,null,null,null,null,null,null,null,null,null,null,null,null,null,null,null,null,null,null,null,null,null,null,null,{"$f":"COUNTA($C128:$AP128)>0","v":false},null,null,null,null,"     Outside-Air Economizer",{"$f":"VLOOKUP($N128,$AR$113:$AT$119,2,FALSE)","v":{"$error":"#N/A"}},{"$f":"VLOOKUP($N128,$AR$113:$AT$119,3,FALSE)","v":{"$error":"#N/A"}},{"$f":"U128","v":0},{"$f":"Y128","v":0},{"$f":"AE128","v":0},null,null,null,null,null,{"$f":"AJ128","v":0},null,null,{"$f":"I128","v":0}]
[null,null,null,null,null,null,null,null,null,null,null,null,null,null,null,null,null,null,null,null,null,null,null,null,null,null,null,null,null,null,null,null,null,null,null,null,null,null,null,null,null,null,null,false,null,null,null,null,"     Outside-Air Economizer",{"$error":"#N/A"},{"$error":"#N/A"},0,0,0,null,null,null,null,null,0,null,null,0]
[null,null,null,null,null,null,null,null,null,null,null,null,null,null,null,null,null,null,null,null,null,null,null,null,null,null,null,null,null,null,null,null,null,null,null,null,null,null,null,null,null,null,null,false,null,null,null,null,"     Outside-Air Economizer",{"$error":"#N/A"},{"$error":"#N/A"},0,0,0,null,null,null,null,null,0,null,null,0]
[null,null,null,null,null,null,null,null,null,null,null,null,null,null,null,null,null,null,null,null,null,null,null,null,null,null,null,null,null,null,null,null,null,null,null,null,null,null,null,null,null,null,null,false,null,null,null,null,"     Outside-Air Economizer",{"$error":"#N/A"},{"$error":"#N/A"},0,0,0,null,null,null,null,null,0,null,null,0]
[null,null,null,null,null,null,null,null,null,null,null,null,null,null,null,null,null,null,null,null,null,null,null,null,null,null,null,null,null,null,null,null,null,null,null,null,null,null,null,null,null,null,null,false,null,null,null,null,"     Outside-Air Economizer",{"$error":"#N/A"},{"$error":"#N/A"},0,0,0,null,null,null,null,null,0,null,null,0]
[null,null,null,null,null,null,null,null,null,null,null,null,null,null,null,null,null,null,null,null,null,null,null,null,null,null,null,null,null,null,null,null,null,null,null,null,null,null,null,null,null,null,null,false,null,null,null,null,"     Outside-Air Economizer",{"$error":"#N/A"},{"$error":"#N/A"},0,0,0,null,null,null,null,null,0,null,null,0]
[null,null,null,null,null,null,null,null,null,null,null,null,null,null,null,null,null,null,null,null,null,null,null,null,null,null,null,null,null,null,null,null,null,null,null,null,null,null,null,null,null,null,null,false,null,null,null,null,"     Outside-Air Economizer",{"$error":"#N/A"},{"$error":"#N/A"},0,0,0,null,null,null,null,null,0,null,null,0]
[null,null,null,null,null,null,null,null,null,null,null,null,null,null,null,null,null,null,null,null,null,null,null,null,null,null,null,null,null,null,null,null,null,null,null,null,null,null,null,null,null,null,null,false,null,null,null,null,"     Outside-Air Economizer",{"$error":"#N/A"},{"$error":"#N/A"},0,0,0,null,null,null,null,null,0,null,null,0]
[null,null,null,null,null,null,null,null,null,null,null,null,null,null,null,null,null,null,null,null,null,null,null,null,null,null,null,null,null,null,null,null,null,null,null,null,null,null,null,null,null,null,null,false,null,null,null,null,"     Outside-Air Economizer",{"$error":"#N/A"},{"$error":"#N/A"},0,0,0,null,null,null,null,null,0,null,null,0]
[null,null,null,null,null,null,null,null,null,null,null,null,null,null,null,null,null,null,null,null,null,null,null,null,null,null,null,null,null,null,null,null,null,null,null,null,null,null,null,null,null,null,null,false,null,null,null,null,"     Outside-Air Economizer",{"$error":"#N/A"},{"$error":"#N/A"},0,0,0,null,null,null,null,null,0,null,null,0]
[null,null,null,null,null,null,null,null,null,null,null,null,null,null,null,null,null,null,null,null,null,null,null,null,null,null,null,null,null,null,null,null,null,null,null,null,null,null,null,null,null,null,null,false,null,null,null,null,"     Outside-Air Economizer",{"$error":"#N/A"},{"$error":"#N/A"},0,0,0,null,null,null,null,null,0,null,null,0]
[null,null,null,null,null,null,null,null,null,null,null,null,null,null,null,null,null,null,null,null,null,null,null,null,null,null,null,null,null,null,null,null,null,null,null,null,null,null,null,null,null,null,null,false,null,null,null,null,"     Outside-Air Economizer",{"$error":"#N/A"},{"$error":"#N/A"},0,0,0,null,null,null,null,null,0,null,null,0]
[null,null,null,null,null,null,null,null,null,null,null,null,null,null,null,null,null,null,null,null,null,null,null,null,null,null,null,null,null,null,null,null,null,null,null,null,null,null,null,null,null,null,null,false,null,null,null,null,"     Outside-Air Economizer",{"$error":"#N/A"},{"$error":"#N/A"},0,0,0,null,null,null,null,null,0,null,null,0]
[null,null,null,null,null,null,null,null,null,null,null,null,null,null,null,null,null,null,null,null,null,null,null,null,null,null,null,null,null,null,null,null,null,null,null,null,null,null,null,null,null,null,null,false,null,null,null,null,"     Outside-Air Economizer",{"$error":"#N/A"},{"$error":"#N/A"},0,0,0,null,null,null,null,null,0,null,null,0]
[null,null,null,null,null,null,null,null,null,null,null,null,null,null,null,null,null,null,null,null,null,null,null,null,null,null,null,null,null,null,null,null,null,null,null,null,null,null,null,null,null,null,null,false,null,null,null,null,"     Outside-Air Economizer",{"$error":"#N/A"},{"$error":"#N/A"},0,0,0,null,null,null,null,null,0,null,null,0]
[null,null,"Electronically Commutated Motor (ECM)"]
[null,null,"Rebate:   $125.00 per Horsepower (HP)"]
[null,null,"Eligibility Requirements: ",null,null,null,null,null,null,null,null,null,null,null,null,null,null,null,null,null,null,null,null,null,null,null,null,null,null,null,null,null,null,null,null,null,null,null,null,null,null,null,null,null,"Supply Fan"]
[null,null,"1. All electronically commutated motors (ECM) >1 HP are not eligible.",null,null,null,null,null,null,null,null,null,null,null,null,null,null,null,null,null,null,null,null,null,null,null,null,null,null,null,null,null,null,null,null,null,null,null,null,null,null,null,null,null,"Return Fan"]
[null,null,"2. Rebates are not simultaneously available for ECM's where rebates have been paid for Unitary HVAC Equipment.",null,null,null,null,null,null,null,null,null,null,null,null,null,null,null,null,null,null,null,null,null,null,null,null,null,null,null,null,null,null,null,null,null,null,null,null,null,null,null,null,null,"Exhaust Fan"]
[null,null,"3. (New Construction) Installations are not eligible.",null,null,null,null,null,null,null,null,null,null,null,null,null,null,null,null,null,null,null,null,null,null,null,null,null,null,null,null,null,null,null,null,null,null,null,null,null,null,null,null,null,"Fan Coil Unit"]
[null,null,"The following are required items that must be submitted along with the completed mechanical & more application:",null,null,null,null,null,null,null,null,null,null,null,null,null,null,null,null,null,null,null,null,null,null,null,null,null,null,null,null,null,null,null,null,null,null,null,null,null,null,null,null,null,"Other"]
[null,null,"1. Dated invoice/payment application."]
[null,null,"2. Manufacturer's equipment specification sheet documenting compliance with equipment eligibility."]
[null,null,"Manufacture/Model",null,null,null,null,null,null,null,null,null,null,"Fan Type",null,null,null,null,null,null,null,"Motor HP",null,null,null,null,null,null,null,null,null,"Qty",null,null,null,null,null,null,null,"Rebate",null,null,null,null,null,null,null,null,null,"List1","List2","List3","Size","Input1","Input2","Input3","Input4","Input5","Input6","Qty","Manuf","ModelNo","Notes"]
[null,null,null,null,null,null,null,null,null,null,null,null,null,null,null,null,null,null,null,null,null,null,null,null,null,null,null,null,null,null,null,null,null,null,null,null,null,null,null,null,null,null,null,{"$f":"COUNTA($C153:$AP153)>0","v":false},null,null,null,null,"     HVAC: Other","EC Motor (ECM)",{"$f":"N153","v":0},null,{"$f":"V153","v":0},null,null,null,null,null,null,{"$f":"AF153","v":0},null,null,{"$f":"N153","v":0}]
[null,null,null,null,null,null,null,null,null,null,null,null,null,null,null,null,null,null,null,null,null,null,null,null,null,null,null,null,null,null,null,null,null,null,null,null,null,null,null,null,null,null,null,{"$f":"COUNTA($C154:$AP154)>0","v":false},null,null,null,null,"     HVAC: Other","EC Motor (ECM)",{"$f":"N154","v":0},null,{"$f":"V154","v":0},null,null,null,null,null,null,{"$f":"AF154","v":0},null,null,{"$f":"N154","v":0}]
[null,null,null,null,null,null,null,null,null,null,null,null,null,null,null,null,null,null,null,null,null,null,null,null,null,null,null,null,null,null,null,null,null,null,null,null,null,null,null,null,null,null,null,{"$f":"COUNTA($C155:$AP155)>0","v":false},null,null,null,null,"     HVAC: Other","EC Motor (ECM)",{"$f":"N155","v":0},null,{"$f":"V155","v":0},null,null,null,null,null,null,{"$f":"AF155","v":0},null,null,{"$f":"N155","v":0}]
[null,null,null,null,null,null,null,null,null,null,null,null,null,null,null,null,null,null,null,null,null,null,null,null,null,null,null,null,null,null,null,null,null,null,null,null,null,null,null,null,null,null,null,{"$f":"COUNTA($C156:$AP156)>0","v":false},null,null,null,null,"     HVAC: Other","EC Motor (ECM)",{"$f":"N156","v":0},null,{"$f":"V156","v":0},null,null,null,null,null,null,{"$f":"AF156","v":0},null,null,{"$f":"N156","v":0}]
[null,null,null,null,null,null,null,null,null,null,null,null,null,null,null,null,null,null,null,null,null,null,null,null,null,null,null,null,null,null,null,null,null,null,null,null,null,null,null,null,null,null,null,{"$f":"COUNTA($C157:$AP157)>0","v":false},null,null,null,null,"     HVAC: Other","EC Motor (ECM)",{"$f":"N157","v":0},null,{"$f":"V157","v":0},null,null,null,null,null,null,{"$f":"AF157","v":0},null,null,{"$f":"N157","v":0}]
[null,null,"Permanent-Magnet Synchronous Motor (PMSM)"]
[null,null,"Rebate:"]
[null,null,"- (New Construction) All or (Retrofit) Replacement of EC Motor: $105.00 per Horsepower (HP)"]
[null,null,"- (Retrofit) Replacement of SP or PSC Motor: $200.00 per Horsepower (HP)"]
[null,null,"Eligibility Requirements: ",null,null,null,null,null,null,null,null,null,null,null,null,null,null,null,null,null,null,null,null,null,null,null,null,null,null,null,null,null,null,null,null,null,null,null,null,null,null,null,null,"Supply Fan"]
[null,null,"1. All permanent-magnet sync motors (PMSM) > 1 HP are not eligible.",null,null,null,null,null,null,null,null,null,null,null,null,null,null,null,null,null,null,null,null,null,null,null,null,null,null,null,null,null,null,null,null,null,null,null,null,null,null,null,null,"Return Fan",null,"Shaded Pole Motor","SP Motor"]
[null,null,"2. Rebates are not simultaneously available for PMSM's where rebates have been paid for Unitary HVAC equipment.",null,null,null,null,null,null,null,null,null,null,null,null,null,null,null,null,null,null,null,null,null,null,null,null,null,null,null,null,null,null,null,null,null,null,null,null,null,null,null,null,"Exhaust Fan",null,"Permanent Split Capacitor Motor","PSC Motor"]
[null,null,"3. Installations of PMSMs with existing or new Variable Frequency Drives (VFDs) are not eligible.",null,null,null,null,null,null,null,null,null,null,null,null,null,null,null,null,null,null,null,null,null,null,null,null,null,null,null,null,null,null,null,null,null,null,null,null,null,null,null,null,"Fan Coil Unit",null,"Electronically Commutated Motor","EC Motor"]
[null,null,"4. (Retrofit) Replacements of existing Shaded Pole (SP), Permanent Split Capacitor (PSC), and Electronically Commutated (EC) motors are eligible.",null,null,null,null,null,null,null,null,null,null,null,null,null,null,null,null,null,null,null,null,null,null,null,null,null,null,null,null,null,null,null,null,null,null,null,null,null,null,null,null,"Other",null,"Other/Don't Know","Don't Know"]
[null,null,"The following are required items that must be submitted along with the completed mechanical & more application:"]
[null,null,"1. Dated invoice/payment application."]
[null,null,"2. Manufacturer's equipment specification sheet documenting compliance with equipment eligibility."]
[null,null,"Manufacture/Model",null,null,null,null,null,null,null,"Fan Type",null,null,null,null,null,"Existing Motor Type",null,null,null,null,null,null,null,null,null,"Motor HP",null,null,null,null,null,null,"Qty",null,null,null,null,null,"Rebate",null,null,null,null,null,null,null,null,null,"List1","List2","List3","Size","Input1","Input2","Input3","Input4","Input5","Input6","Qty","Manuf","ModelNo","Notes"]
[null,null,null,null,null,null,null,null,null,null,null,null,null,null,null,null,null,null,null,null,null,null,null,null,null,null,null,null,null,null,null,null,null,null,null,null,null,null,null,null,null,null,null,{"$f":"COUNTA($C171:$AP171)>0","v":false},null,null,null,null,"     HVAC: Other","Permanent-Magnet Synchronous Motor",{"$f":"K171","v":0},{"$f":"VLOOKUP(Q171,$AT$163:$AU$166,2,FALSE)","v":{"$error":"#N/A"}},{"$f":"AA171","v":0},null,null,null,null,null,null,{"$f":"AF171","v":0},null,null,{"$f":"K171","v":0}]
[null,null,null,null,null,null,null,null,null,null,null,null,null,null,null,null,null,null,null,null,null,null,null,null,null,null,null,null,null,null,null,null,null,null,null,null,null,null,null,null,null,null,null,{"$f":"COUNTA($C172:$AP172)>0","v":false},null,null,null,null,"     HVAC: Other","Permanent-Magnet Synchronous Motor",{"$f":"K172","v":0},{"$f":"VLOOKUP(Q172,$AT$163:$AU$166,2,FALSE)","v":{"$error":"#N/A"}},{"$f":"AA172","v":0},null,null,null,null,null,null,{"$f":"AF172","v":0},null,null,{"$f":"K172","v":0}]
[null,null,null,null,null,null,null,null,null,null,null,null,null,null,null,null,null,null,null,null,null,null,null,null,null,null,null,null,null,null,null,null,null,null,null,null,null,null,null,null,null,null,null,{"$f":"COUNTA($C173:$AP173)>0","v":false},null,null,null,null,"     HVAC: Other","Permanent-Magnet Synchronous Motor",{"$f":"K173","v":0},{"$f":"VLOOKUP(Q173,$AT$163:$AU$166,2,FALSE)","v":{"$error":"#N/A"}},{"$f":"AA173","v":0},null,null,null,null,null,null,{"$f":"AF173","v":0},null,null,{"$f":"K173","v":0}]
[null,null,null,null,null,null,null,null,null,null,null,null,null,null,null,null,null,null,null,null,null,null,null,null,null,null,null,null,null,null,null,null,null,null,null,null,null,null,null,null,null,null,null,{"$f":"COUNTA($C174:$AP174)>0","v":false},null,null,null,null,"     HVAC: Other","Permanent-Magnet Synchronous Motor",{"$f":"K174","v":0},{"$f":"VLOOKUP(Q174,$AT$163:$AU$166,2,FALSE)","v":{"$error":"#N/A"}},{"$f":"AA174","v":0},null,null,null,null,null,null,{"$f":"AF174","v":0},null,null,{"$f":"K174","v":0}]
[null,null,null,null,null,null,null,null,null,null,null,null,null,null,null,null,null,null,null,null,null,null,null,null,null,null,null,null,null,null,null,null,null,null,null,null,null,null,null,null,null,null,null,{"$f":"COUNTA($C175:$AP175)>0","v":false},null,null,null,null,"     HVAC: Other","Permanent-Magnet Synchronous Motor",{"$f":"K175","v":0},{"$f":"VLOOKUP(Q175,$AT$163:$AU$166,2,FALSE)","v":{"$error":"#N/A"}},{"$f":"AA175","v":0},null,null,null,null,null,null,{"$f":"AF175","v":0},null,null,{"$f":"K175","v":0}]
[null,null,"Variable Frequency Drive (VFD)"]
[null,null,"Rebate:  $90.00 per Horsepower (HP)"]
[null,null,"Eligibility Requirements: "]
[null,null,"1. Rebates are available for HVAC fans and pumps, Domestic Service Water (DSW), and  Domestic Hot Water (DHW) pumps. Rebates are not simultaneously available for supply motors where rebates have been paid for Unitary HVAC equipment or CO sensors."]
[null,null,"2. Rebates are not available for motors larger than 100 HP or for process equipment. These may be eligible through the SRP Business Solutions Custom program with pre-approval.",null,null,null,null,null,null,null,null,null,null,null,null,null,null,null,null,null,null,null,null,null,null,null,null,null,null,null,null,null,null,null,null,null,null,null,null,null,null,null,null,null,"Dropdown","List1_Lookup"]
[null,null,"3. (Retrofit) Any throttling or mechanical bypass equipment, bypass dampers, three-way valves, or throttling valves must be removed or permanently disabled. Replacements of existing VFDs are not eligible unless the VFD has been non-functioning for >2 years.",null,null,null,null,null,null,null,null,null,null,null,null,null,null,null,null,null,null,null,null,null,null,null,null,null,null,null,null,null,null,null,null,null,null,null,null,null,null,null,null,null,"VAV Fan","VAV Fan","Unitary HVAC Fan","CHW Pump"]
[null,null,"4. (New Construction) Rebates are not available for VFDs required by ASHRAE 90.1-2016:",null,null,null,null,null,null,null,null,null,null,null,null,null,null,null,null,null,null,null,null,null,null,null,null,null,null,null,null,null,null,null,null,null,null,null,null,null,null,null,null,null,"Exhaust Fan","Exhaust Fan","Supply Fan","2-Way Valve"]
[null,null,"- Cooling Tower fans and condenser fans ≥5 HP.",null,null,null,null,null,null,null,null,null,null,null,null,null,null,null,null,null,null,null,null,null,null,null,null,null,null,null,null,null,null,null,null,null,null,null,null,null,null,null,null,null,"Unitary HVAC Fan","Unitary HVAC Fan","Return Fan","3-Way Valve"]
[null,null,"- Variable Air Volume (VAV) and exhaust systems ≥0.5 HP.",null,null,null,null,null,null,null,null,null,null,null,null,null,null,null,null,null,null,null,null,null,null,null,null,null,null,null,null,null,null,null,null,null,null,null,null,null,null,null,null,null,"Cooling Tower Fan","Cooling Tower Fan",null,"No Controls"]
[null,null,"- Supply and Return Fans for units ≥5 Tons and/or Return Fans ≥0.5 HP.",null,null,null,null,null,null,null,null,null,null,null,null,null,null,null,null,null,null,null,null,null,null,null,null,null,null,null,null,null,null,null,null,null,null,null,null,null,null,null,null,null,"Condenser Fan","Condenser Fan",null,"Other/Don't Know"]
[null,null,"- Supply fans totaling 5 HP or more for Unitary chilled water systems.",null,null,null,null,null,null,null,null,null,null,null,null,null,null,null,null,null,null,null,null,null,null,null,null,null,null,null,null,null,null,null,null,null,null,null,null,null,null,null,null,null,"Condenser Water Pump","Condenser Water Pump"]
[null,null,"- HVAC, chilled water (CHW) and condenser water (CW) pumps >2 HP.",null,null,null,null,null,null,null,null,null,null,null,null,null,null,null,null,null,null,null,null,null,null,null,null,null,null,null,null,null,null,null,null,null,null,null,null,null,null,null,null,null,"CHW Pump","Chilled Water Pump"]
[null,null,"The following are required items that must be submitted along with the completed mechanical & more application:",null,null,null,null,null,null,null,null,null,null,null,null,null,null,null,null,null,null,null,null,null,null,null,null,null,null,null,null,null,null,null,null,null,null,null,null,null,null,null,null,null,"DSW Pump","Domestic Service Water Pump"]
[null,null,"1. Dated invoice/payment application.",null,null,null,null,null,null,null,null,null,null,null,null,null,null,null,null,null,null,null,null,null,null,null,null,null,null,null,null,null,null,null,null,null,null,null,null,null,null,null,null,null,"DHW Pump","Domestic Hot Water Pump"]
[null,null,"2. Documentation of the serial numbers of the installed VFD's."]
[null,null,"Manufacture/Model",null,null,null,null,null,null,"End Use",null,null,null,null,null,"Fan Type",null,null,null,null,null,"Motor HP",null,null,null,null,null,null,null,null,null,null,"Qty",null,null,null,null,null,null,"Rebate",null,null,null,null,null,null,null,null,null,"List1","List2","List3","Size","Input1","Input2","Input3","Input4","Input5","Input6","Qty","Manuf","ModelNo","Notes"]
[null,null,null,null,null,null,null,null,null,null,null,null,null,null,null,null,null,null,null,null,null,null,null,null,null,null,null,null,null,null,null,null,null,null,null,null,null,null,null,null,null,null,null,{"$f":"COUNTA($C192:$AP192)>0","v":false},null,null,null,null,"     HVAC: Other",{"$f":"\"VFD: \" & VLOOKUP($J192,$AS$181:$AT$189,2,FALSE)","v":{"$error":"#N/A"}},{"$f":"P192","v":0},null,{"$f":"V192","v":0},null,null,null,null,null,null,{"$f":"AG192","v":0},null,null,{"$f":"P192","v":0}]
[null,null,null,null,null,null,null,null,null,null,null,null,null,null,null,null,null,null,null,null,null,null,null,null,null,null,null,null,null,null,null,null,null,null,null,null,null,null,null,null,null,null,null,false,null,null,null,null,"     HVAC: Other",{"$f":"\"VFD: \" & VLOOKUP($J193,$AS$181:$AT$189,2,FALSE)","v":{"$error":"#N/A"}},{"$f":"P193","v":0},null,0,null,null,null,null,null,null,0,null,null,0]
[null,null,null,null,null,null,null,null,null,null,null,null,null,null,null,null,null,null,null,null,null,null,null,null,null,null,null,null,null,null,null,null,null,null,null,null,null,null,null,null,null,null,null,false,null,null,null,null,"     HVAC: Other",{"$error":"#N/A"},0,null,0,null,null,null,null,null,null,0,null,null,0]
[null,null,null,null,null,null,null,null,null,null,null,null,null,null,null,null,null,null,null,null,null,null,null,null,null,null,null,null,null,null,null,null,null,null,null,null,null,null,null,null,null,null,null,false,null,null,null,null,"     HVAC: Other",{"$error":"#N/A"},0,null,0,null,null,null,null,null,null,0,null,null,0]
[null,null,null,null,null,null,null,null,null,null,null,null,null,null,null,null,null,null,null,null,null,null,null,null,null,null,null,null,null,null,null,null,null,null,null,null,null,null,null,null,null,null,null,false,null,null,null,null,"     HVAC: Other",{"$error":"#N/A"},0,null,0,null,null,null,null,null,null,0,null,null,0]
[null,null,null,null,null,null,null,null,null,null,null,null,null,null,null,null,null,null,null,null,null,null,null,null,null,null,null,null,null,null,null,null,null,null,null,null,null,null,null,null,null,null,null,false,null,null,null,null,"     HVAC: Other",{"$error":"#N/A"},0,null,0,null,null,null,null,null,null,0,null,null,0]
[null,null,null,null,null,null,null,null,null,null,null,null,null,null,null,null,null,null,null,null,null,null,null,null,null,null,null,null,null,null,null,null,null,null,null,null,null,null,null,null,null,null,null,false,null,null,null,null,"     HVAC: Other",{"$error":"#N/A"},0,null,0,null,null,null,null,null,null,0,null,null,0]
[null,null,"Energy Management System (EMS) for DX Cooling"]
[null,null,"Rebate:  $0.20* per Sq. Ft. of Conditioned Space"]
[null,null,"Additional rebates of $0.10 or $0.15/sq. ft. may be available for participation in the demand response program (Eligibility Requirements 3 & 4)."]
[null,null,"Eligibility Requirements: "]
[null,null,"1. Energy Management Systems must be pre-approved as a Rebate Reservation prior to the purchase and installation of equipment. Equipment that is purchased and installed without prior approval will not be eligible for incentives."]
[null,null,"2. The EMS must be new and include:"]
[null,null,"- A graphic operator interface with central timing control."]
[null,null,"- A minimum set point setback of 8 degrees and setback period of 2,200 hours per year."]
[null,null,"- Must be demand-limiting capable.",null,null,null,null,null,null,null,null,null,null,null,null,null,null,null,null,null,null,null,null,null,null,null,null,null,null,null,null,null,null,null,null,null,null,null,null,null,null,null,null,null,"Air-Cooled AC","Pneumatic"]
[null,null,"3. The controlled equipment must be Unitary Air-Cooled or Water-Cooled equipment and properly sized to maintain the required temperature setpoints within the affected conditioned space square footage.",null,null,null,null,null,null,null,null,null,null,null,null,null,null,null,null,null,null,null,null,null,null,null,null,null,null,null,null,null,null,null,null,null,null,null,null,null,null,null,null,null,"Water-Cooled AC","Manual Thermostat"]
[null,null,"4. Customers who purchase and install an energy management system (EMS) are eligible for an additional $0.10/sq. ft. of controlled space for average participation up to 75% of the nominated demand response value. For customers that purchase and install an OpenADR 2.0 compliant EMS, customers are eligible for an additional $0.15/sq. ft. of controlled space for average participation up to 75% of the nominated demand response value. Rebates will be paid at the end of the next full demand response season, which lasts from May 1st through October 31st each calendar year.",null,null,null,null,null,null,null,null,null,null,null,null,null,null,null,null,null,null,null,null,null,null,null,null,null,null,null,null,null,null,null,null,null,null,null,null,null,null,null,null,null,"Evap-Cooled AC","Programmable Thermostat"]
[null,null,"5. For more information on participating in the Demand Response program, contact Eric Chang (917-693-9000, eric.chang@enel.com). Customers may also be contacted with more information for how to participate by a Demand Response program representative and their Strategic Energy Manager (SEM).",null,null,null,null,null,null,null,null,null,null,null,null,null,null,null,null,null,null,null,null,null,null,null,null,null,null,null,null,null,null,null,null,null,null,null,null,null,null,null,null,null,"PTAC/VTAC","EMS"]
[null,null,"6. (Retrofit) Retrofits of buildings with existing digital automated HVAC controls and programmable thermostats are not eligible. Replacements may be eligible under the SRP Business Solutions Custom program with pre-approval.",null,null,null,null,null,null,null,null,null,null,null,null,null,null,null,null,null,null,null,null,null,null,null,null,null,null,null,null,null,null,null,null,null,null,null,null,null,null,null,null,null,"Air-Cooled HP"]
[null,null,"7. (New Construction) Installations are not eligible.",null,null,null,null,null,null,null,null,null,null,null,null,null,null,null,null,null,null,null,null,null,null,null,null,null,null,null,null,null,null,null,null,null,null,null,null,null,null,null,null,null,"Water-Cooled HP"]
[null,null,"The following are required items that must be submitted along with the completed mechanical & more application:",null,null,null,null,null,null,null,null,null,null,null,null,null,null,null,null,null,null,null,null,null,null,null,null,null,null,null,null,null,null,null,null,null,null,null,null,null,null,null,null,null,"PTHP/VTHP"]
[null,null,"1. Dated invoice/payment application."]
[null,null,"2. Manufacturer's equipment specification sheet documenting compliance with equipment eligibility."]
[null,null,"3. Documentation verifying the total conditioned space square footage controlled by the EMS."]
[null,null,"4. Documentation of the EMS sequence of operations showing 7-day programmed operating schedules and occupied/unoccupied temperature set points."]
[null,null,"Manufacture/Model",null,null,null,null,null,"Controlled AC Unit Type",null,null,null,null,null,"Existing Control System",null,null,null,null,"Controlled Space \n(Sq. Ft.)",null,null,null,null,null,null,null,null,null,null,null,null,"Overall System Size (Tons)",null,null,null,null,null,null,"Rebate",null,null,null,null,null,null,null,null,null,"List1","List2","List3","Size","Input1","Input2","Input3","Input4","Input5","Input6","Qty","Manuf","ModelNo","Notes"]
[null,null,null,null,null,null,null,null,null,null,null,null,null,null,null,null,null,null,null,null,null,null,null,null,null,null,null,null,null,null,null,null,null,null,null,null,null,null,null,null,null,null,null,{"$f":"COUNTA($C219:$AP219)>0","v":false},null,null,null,null,"     HVAC: Other","Energy Management System (EMS) for DX Systems",{"$f":"I219","v":0},{"$f":"O219","v":0},{"$f":"T219","v":0},{"$f":"AG219","v":0},null,null,null,null,null,{"$f":"1","v":1},null,null,{"$f":"C219","v":0}]
[null,null,null,null,null,null,null,null,null,null,null,null,null,null,null,null,null,null,null,null,null,null,null,null,null,null,null,null,null,null,null,null,null,null,null,null,null,null,null,null,null,null,null,{"$f":"COUNTA($C220:$AP220)>0","v":false},null,null,null,null,"     HVAC: Other","Energy Management System (EMS) for DX Systems",{"$f":"I220","v":0},{"$f":"O220","v":0},{"$f":"T220","v":0},{"$f":"AG220","v":0},null,null,null,null,null,{"$f":"1","v":1},null,null,{"$f":"C220","v":0}]
[null,null,"Energy Management System (EMS) for Chilled Water Systems"]
[null,null,"Rebate:"]
[null,null,"- Tier 1: $0.20 per Sq. Ft. of Conditioned Space"]
[null,null,"- Tier 2: $0.30 per Sq. Ft. of Conditioned Space"]
[null,null,"Additional rebates of $0.10 or $0.15/sq. ft. may be available for participation in the demand response program (Eligibility Requirements 6 & 7)."]
[null,null,"Eligibility Requirements: "]
[null,null,"1. An EMS installation with chilled water plant only (waterside) controls implementation is not eligible for the Standard EMS for Chilled Water Systems rebate and must be processed under the SRP Business Solutions Custom program."]
[null,null,"2. Buildings and spaces within a building must be cooled by a chilled water system. DX-only cooled buildings or spaces may be eligible for a separate rebate under the Standard EMS for DX Systems rebate."]
[null,null,"3. The EMS must be new and include:"]
[null,null,"- A graphic operator interface with central timing control."]
[null,null,"- Must be demand-limiting capable."]
[null,null,"4. Implementation of Airside Control Strategies Only:"]
[null,null,"- The EMS includes airside control strategies fed by the chilled water system only."]
[null,null,"- Airside control strategies must include at a minimum building (zone by zone or air handler) scheduling, 0.5 in. w.c. static pressure reset, and 5 deg F supply air temperature reset."]
[null,null,"5. Implementation of Airside and Chilled Water Control Strategies:",null,null,null,null,null,null,null,null,null,null,null,null,null,null,null,null,null,null,null,null,null,null,null,null,null,null,null,null,null,null,null,null,null,null,null,null,null,null,null,null,null,"Air-Cooled Centrifugal","Airside Only"]
[null,null,"- The EMS implements both airside and chilled water control strategies.",null,null,null,null,null,null,null,null,null,null,null,null,null,null,null,null,null,null,null,null,null,null,null,null,null,null,null,null,null,null,null,null,null,null,null,null,null,null,null,null,null,"Air-Cooled Reciprocating","Airside and Chilled Water"]
[null,null,"- Chilled water control strategies must include at a minimum a 5 deg F condenser water reset and a 5 deg F chilled water supply temperature reset.",null,null,null,null,null,null,null,null,null,null,null,null,null,null,null,null,null,null,null,null,null,null,null,null,null,null,null,null,null,null,null,null,null,null,null,null,null,null,null,null,null,"Air-Cooled Rotary"]
[null,null,"- Airside control strategies must include at a minimum building (zone by zone or air handler) scheduling, 0.5 in. w.c. static pressure reset, and 5 deg F supply air temperature reset.",null,null,null,null,null,null,null,null,null,null,null,null,null,null,null,null,null,null,null,null,null,null,null,null,null,null,null,null,null,null,null,null,null,null,null,null,null,null,null,null,null,"Air-Cooled Screw"]
[null,null,"6. Customers who purchase and install an energy management system (EMS) are eligible for an additional $0.10/sq. ft. of controlled space for average participation up to 75% of the nominated demand response value. For customers that purchase and install an OpenADR 2.0 compliant EMS, customers are eligible for an additional $0.15/sq. ft. of controlled space for average participation up to 75% of the nominated demand response value. Rebates will be paid at the end of the next full demand response season, which lasts from May 1st through October 31st each calendar year.",null,null,null,null,null,null,null,null,null,null,null,null,null,null,null,null,null,null,null,null,null,null,null,null,null,null,null,null,null,null,null,null,null,null,null,null,null,null,null,null,null,"Air-Cooled Scroll"]
[null,null,"7. For more information on participating in the Demand Response program, contact Eric Chang (917-693-9000, eric.chang@enel.com). Customers may also be contacted with more information for how to participate by a Demand Response program representative and their Strategic Energy Manager (SEM).",null,null,null,null,null,null,null,null,null,null,null,null,null,null,null,null,null,null,null,null,null,null,null,null,null,null,null,null,null,null,null,null,null,null,null,null,null,null,null,null,null,"Water-Cooled Centrifugal"]
[null,null,"8. (Retrofit) Retrofits of buildings cooled by a chilled water system and having existing, non-functional digital automated controls (EMS) are eligible.",null,null,null,null,null,null,null,null,null,null,null,null,null,null,null,null,null,null,null,null,null,null,null,null,null,null,null,null,null,null,null,null,null,null,null,null,null,null,null,null,null,"Water-Cooled Reciprocating"]
[null,null,"9. (New Construction) Installations are not eligible.",null,null,null,null,null,null,null,null,null,null,null,null,null,null,null,null,null,null,null,null,null,null,null,null,null,null,null,null,null,null,null,null,null,null,null,null,null,null,null,null,null,"Water-Cooled Rotary"]
[null,null,"The following are required items that must be submitted along with the completed mechanical & more application:",null,null,null,null,null,null,null,null,null,null,null,null,null,null,null,null,null,null,null,null,null,null,null,null,null,null,null,null,null,null,null,null,null,null,null,null,null,null,null,null,null,"Water-Cooled Screw"]
[null,null,"1. Dated invoice/payment application.",null,null,null,null,null,null,null,null,null,null,null,null,null,null,null,null,null,null,null,null,null,null,null,null,null,null,null,null,null,null,null,null,null,null,null,null,null,null,null,null,null,"Water-Cooled Scroll"]
[null,null,"2. Manufacturer's equipment specification sheet documenting compliance with equipment eligibility."]
[null,null,"3. Documentation verifying the total conditioned space square footage controlled by the EMS."]
[null,null,"4. Documentation of the EMS sequence of operations showing programmed operating schedules and occupied/unoccupied temperature set points."]
[null,null,"5. System points list or top level screenshots that shows all components integrated to EMS."]
[null,null,"6. EMS screenshots displaying system settings (temperature setpoints, schedules, programming logic, etc.) to document implemented airside and/or chilled water control strategies for Tier 1 or Tier 2 rebates."]
[null,null,"Manufacture/Model",null,null,null,null,null,null,null,null,null,"Controlled Chiller Type",null,null,null,null,null,"Control Implementation",null,null,null,null,"Controlled Space \n(Sq. Ft.)",null,null,null,null,null,null,null,null,"Overall System Size (Tons)",null,null,null,null,null,null,"Rebate",null,null,null,null,null,null,null,null,null,"List1","List2","List3","Size","Input1","Input2","Input3","Input4","Input5","Input6","Qty","Manuf","ModelNo","Notes"]
[null,null,null,null,null,null,null,null,null,null,null,null,null,null,null,null,null,null,null,null,null,null,null,null,null,null,null,null,null,null,null,null,null,null,null,null,null,null,null,null,null,null,null,{"$f":"COUNTA($C251:$AP251)>0","v":false},null,null,null,null,"     HVAC: Other","Energy Management System (EMS) for Chilled Water Systems",{"$f":"M251","v":0},{"$f":"S251","v":0},{"$f":"X251","v":0},{"$f":"AG251","v":0},null,null,null,null,null,{"$f":"1","v":1},null,null,{"$f":"C251","v":0}]
[null,null,null,null,null,null,null,null,null,null,null,null,null,null,null,null,null,null,null,null,null,null,null,null,null,null,null,null,null,null,null,null,null,null,null,null,null,null,null,null,null,null,null,{"$f":"COUNTA($C252:$AP252)>0","v":false},null,null,null,null,"     HVAC: Other","Energy Management System (EMS) for Chilled Water Systems",{"$f":"M252","v":0},{"$f":"S252","v":0},{"$f":"X252","v":0},{"$f":"AG252","v":0},null,null,null,null,null,{"$f":"1","v":1},null,null,{"$f":"C252","v":0}]
[null,null,"SMART Thermostats"]
[null,null,"Rebate:  $150.00 Each + $50.00 Professional Install"]
[null,null,"Eligibility Requirements: ",null,null,null,null,null,null,null,null,null,null,null,null,null,null,null,null,null,null,null,null,null,null,null,null,null,null,null,null,null,null,null,null,null,null,null,null,null,null,null,null,null,"Pneumatic","Unitary AC"]
[null,null,"1. Must be Wi-Fi-enabled.",null,null,null,null,null,null,null,null,null,null,null,null,null,null,null,null,null,null,null,null,null,null,null,null,null,null,null,null,null,null,null,null,null,null,null,null,null,null,null,null,null,"Manual Thermostat","Unitary HP"]
[null,null,"2. Must be an approved thermostat from the Bring-Your-Own-Thermostat (BYOT) program:",null,null,null,null,null,null,null,null,null,null,null,null,null,null,null,null,null,null,null,null,null,null,null,null,null,null,null,null,null,null,null,null,null,null,null,null,null,null,null,null,null,"Programmable Thermostat","Water-Source HP"]
[null,null,"https://www.srpnet.com/energy-savings-rebates/business/rebates/smart-thermostats",null,null,null,null,null,null,null,null,null,null,null,null,null,null,null,null,null,null,null,null,null,null,null,null,null,null,null,null,null,null,null,null,null,null,null,null,null,null,null,null,null,"EMS","Chiller"]
[null,null,"- Honeywell Home: T5+ Smart Thermostat, T6 Pro Smart Thermostat, T9 Smart Thermostat, T10 Smart Thermostat"]
[null,null,"- Honeywell TCC: Wi-Fi Smart Color Thermostat, Wi-Fi 7-Day Programmable Thermostat, Wi-Fi 9000 7-Day Programmable Thermostat, 9000 Smart Thermostat, 7-Day Programmable Smart Thermostat, VisionPro 8000 Smart Thermostat, Round Smart Thermostat"]
[null,null,"- ecobee: ecobee3, ecobee3 Lite, ecobee4, ecobee Smart Thermostat with voice control, Smart Thermostat Enhanced, Smart Thermostat Premium"]
[null,null,"- Emerson: Sensi™ Wi-Fi Programmable Thermostat, Sensi Touch Wi-Fi Thermostat, Sensi Lite Smart Thermostat, Sensi Touch 2 Smart Thermostat"]
[null,null,"- Google Nest: Nest, Nest Learning, Nest E"]
[null,null,"3. Must have an initially-programmed set point setback and setback period.",null,null,null,null,null,null,null,null,null,null,null,null,null,null,null,null,null,null,null,null,null,null,null,null,null,null,null,null,null,null,null,null,null,null,null,null,null,null,null,null,null,null,"PTAC"]
[null,null,"4. (Retrofit) Must replace an existing non-programmable or programmable (5-2 or 5-1-1) thermostat.",null,null,null,null,null,null,null,null,null,null,null,null,null,null,null,null,null,null,null,null,null,null,null,null,null,null,null,null,null,null,null,null,null,null,null,null,null,null,null,null,null,null,"PTHP"]
[null,null,"5. (New Construction) Installations are not eligible."]
[null,null,"The following are required items that must be submitted along with the completed mechanical & more application:"]
[null,null,"1. Dated invoice/payment application."]
[null,null,"2. (Professional Install) Dated labor invoice."]
[null,null,"3. Manufacturer's equipment specification sheet documenting compliance with equipment eligibility."]
[null,null,"4. Documentation of the programmed operating schedules and occupied/unoccupied temperature set points."]
[null,null,"Manufacturer",null,null,null,null,"Model Number",null,null,null,null,null,null,"Equipment Type",null,null,null,null,"Existing Controls",null,null,null,null,"HVAC Unit Size (Tons)",null,null,null,"Professional Install?",null,null,null,null,null,null,"Qty",null,null,null,"Rebate",null,null,null,null,null,null,null,null,null,"List1","List2","List3","Size","Input1","Input2","Input3","Input4","Input5","Input6","Qty","Manuf","ModelNo","Notes"]
[null,null,null,null,null,null,null,null,null,null,null,null,null,null,null,null,null,null,null,null,null,null,null,null,null,null,null,null,null,null,null,null,null,null,null,null,null,null,null,null,null,null,null,{"$f":"COUNTA($C273:$AP273)>0","v":false},null,null,null,null,"     HVAC: Other",{"$f":"IF($AC273=\"Yes\",\"Smart Thermostat (Professional Install)\",\"Smart Thermostat (Self-Install)\")","v":"Smart Thermostat (Self-Install)"},{"$f":"O273","v":0},{"$f":"T273","v":0},{"$f":"Y273","v":0},null,null,null,null,null,null,{"$f":"AL273","v":0},{"$f":"C273","v":0},{"$f":"H273","v":0}]
[null,null,null,null,null,null,null,null,null,null,null,null,null,null,null,null,null,null,null,null,null,null,null,null,null,null,null,null,null,null,null,null,null,null,null,null,null,null,null,null,null,null,null,false,null,null,null,null,"     HVAC: Other","Smart Thermostat (Self-Install)",0,0,0,null,null,null,null,null,null,0,{"$f":"C274","v":0},{"$f":"H274","v":0}]
[null,null,null,null,null,null,null,null,null,null,null,null,null,null,null,null,null,null,null,null,null,null,null,null,null,null,null,null,null,null,null,null,null,null,null,null,null,null,null,null,null,null,null,false,null,null,null,null,"     HVAC: Other","Smart Thermostat (Self-Install)",0,0,0,null,null,null,null,null,null,0,0,0]
[null,null,null,null,null,null,null,null,null,null,null,null,null,null,null,null,null,null,null,null,null,null,null,null,null,null,null,null,null,null,null,null,null,null,null,null,null,null,null,null,null,null,null,false,null,null,null,null,"     HVAC: Other","Smart Thermostat (Self-Install)",0,0,0,null,null,null,null,null,null,0,0,0]
[null,null,null,null,null,null,null,null,null,null,null,null,null,null,null,null,null,null,null,null,null,null,null,null,null,null,null,null,null,null,null,null,null,null,null,null,null,null,null,null,null,null,null,false,null,null,null,null,"     HVAC: Other","Smart Thermostat (Self-Install)",0,0,0,null,null,null,null,null,null,0,0,0]
[null,null,null,null,null,null,null,null,null,null,null,null,null,null,null,null,null,null,null,null,null,null,null,null,null,null,null,null,null,null,null,null,null,null,null,null,null,null,null,null,null,null,null,false,null,null,null,null,"     HVAC: Other","Smart Thermostat (Self-Install)",0,0,0,null,null,null,null,null,null,0,0,0]
[null,null,null,null,null,null,null,null,null,null,null,null,null,null,null,null,null,null,null,null,null,null,null,null,null,null,null,null,null,null,null,null,null,null,null,null,null,null,null,null,null,null,null,false,null,null,null,null,"     HVAC: Other","Smart Thermostat (Self-Install)",0,0,0,null,null,null,null,null,null,0,0,0]
[null,null,null,null,null,null,null,null,null,null,null,null,null,null,null,null,null,null,null,null,null,null,null,null,null,null,null,null,null,null,null,null,null,null,null,null,null,null,null,null,null,null,null,false,null,null,null,null,"     HVAC: Other","Smart Thermostat (Self-Install)",0,0,0,null,null,null,null,null,null,0,0,0]
[null,null,"Carbon Dioxide (CO2) Sensors"]
[null,null,"Rebate:  $120.00 per Sensor controlling < 10 tons; $200.00 per Sensor controlling ≥ 10 tons"]
[null,null,"Eligibility Requirements: ",null,null,null,null,null,null,null,null,null,null,null,null,null,null,null,null,null,null,null,null,null,null,null,null,null,null,null,null,null,null,null,null,null,null,null,null,null,null,null,null,"Air Conditioner","Electric Resistance","None"]
[null,null,"1. (Retrofit) Replacements of existing CO2 sensors are not eligible unless the sensor has been non-functioning for >2 years.",null,null,null,null,null,null,null,null,null,null,null,null,null,null,null,null,null,null,null,null,null,null,null,null,null,null,null,null,null,null,null,null,null,null,null,null,null,null,null,null,"Heat Pump","Gas","OA Economizer"]
[null,null,"2. (New Construction) Rebates are not available where CO2 sensors are required be ASHRAE 90.1-2016:",null,null,null,null,null,null,null,null,null,null,null,null,null,null,null,null,null,null,null,null,null,null,null,null,null,null,null,null,null,null,null,null,null,null,null,null,null,null,null,null,"Water Source Heat Pump","Heat Pump","Automated OA Dampers"]
[null,null,"- DCV systems for spaces >500 Sq. Ft. with an average design occupancy density ≥25 People per 1000 Sq. Ft. and an Outside Airflow requirement of 750 CFM or more with one or more of the following:",null,null,null,null,null,null,null,null,null,null,null,null,null,null,null,null,null,null,null,null,null,null,null,null,null,null,null,null,null,null,null,null,null,null,null,null,null,null,null,null,"Chiller","Other","Economizer + OA Dampers"]
[null,null,"- An air-side economizer.",null,null,null,null,null,null,null,null,null,null,null,null,null,null,null,null,null,null,null,null,null,null,null,null,null,null,null,null,null,null,null,null,null,null,null,null,null,null,null,null,null,"None"]
[null,null,"- Automatic modulating OA dampers for any space."]
[null,null,"- Spaces requiring >3000 CFM."]
[null,null,"The following are required items that must be submitted along with the completed mechanical & more application:"]
[null,null,"1. Dated invoice/payment application."]
[null,null,"2. Manufacturer's equipment specification sheet documenting compliance with equipment eligibility."]
[null,null,"3. (New Construction) Documentation of outside air calculations for units controlled by CO2 sensors."]
[null,null,"Controlled AC Unit Type",null,null,null,null,null,null,"Heating Type",null,null,null,"Ventilation Controls",null,null,null,"Load (Tons)",null,null,"Zone Population",null,null,null,"Zone Area",null,null,null,null,null,null,"Design CFM",null,null,null,null,"Qty",null,null,"Rebate",null,null,null,null,null,null,null,null,null,"List1","List2","List3","Size","Input1","Input2","Input3","Input4","Input5","Input6","Qty","Manuf","ModelNo","Notes"]
[null,null,null,null,null,null,null,null,null,null,null,null,null,null,null,null,null,null,null,null,null,null,null,null,null,null,null,null,null,null,null,null,null,null,null,null,null,null,null,null,null,null,null,{"$f":"COUNTA($C295:$AP295)>0","v":false},null,null,null,null,"     Carbon Dioxide Sensor (CO2)",{"$f":"C295","v":0},{"$f":"J295","v":0},{"$f":"N295","v":0},{"$f":"R295","v":0},{"$f":"U295","v":0},{"$f":"Y295","v":0},{"$f":"AF295","v":0},null,null,null,{"$f":"AL295","v":0}]
[null,null,null,null,null,null,null,null,null,null,null,null,null,null,null,null,null,null,null,null,null,null,null,null,null,null,null,null,null,null,null,null,null,null,null,null,null,null,null,null,null,null,null,false,null,null,null,null,"     Carbon Dioxide Sensor (CO2)",0,0,0,0,0,0,0,null,null,null,0]
[null,null,null,null,null,null,null,null,null,null,null,null,null,null,null,null,null,null,null,null,null,null,null,null,null,null,null,null,null,null,null,null,null,null,null,null,null,null,null,null,null,null,null,false,null,null,null,null,"     Carbon Dioxide Sensor (CO2)",0,0,0,0,0,0,0,null,null,null,0]
[null,null,null,null,null,null,null,null,null,null,null,null,null,null,null,null,null,null,null,null,null,null,null,null,null,null,null,null,null,null,null,null,null,null,null,null,null,null,null,null,null,null,null,false,null,null,null,null,"     Carbon Dioxide Sensor (CO2)",0,0,0,0,0,0,0,null,null,null,0]
[null,null,null,null,null,null,null,null,null,null,null,null,null,null,null,null,null,null,null,null,null,null,null,null,null,null,null,null,null,null,null,null,null,null,null,null,null,null,null,null,null,null,null,false,null,null,null,null,"     Carbon Dioxide Sensor (CO2)",0,0,0,0,0,0,0,null,null,null,0]
[null,null,null,null,null,null,null,null,null,null,null,null,null,null,null,null,null,null,null,null,null,null,null,null,null,null,null,null,null,null,null,null,null,null,null,null,null,null,null,null,null,null,null,false,null,null,null,null,"     Carbon Dioxide Sensor (CO2)",0,0,0,0,0,0,0,null,null,null,0]
[null,null,"Carbon Monoxide (CO) Sensors"]
[null,null,"Rebate:  $250.00 Each"]
[null,null,"Eligibility Requirements: "]
[null,null,"1. Must maintain compliance with all applicable codes."]
[null,null,"2. Rebates are not simultaneously available for CO sensors where rebates have been paid for VFDs on the same equipment."]
[null,null,"3. (Retrofit) Replacements of existing CO sensors are not eligible."]
[null,null,"4. (New Construction) Rebates are not available for CO sensors required by ASHRAE 90.1-2016:"]
[null,null,"- Ventilation systems utilize mechanical heating and cooling AND"]
[null,null,"- Garages with a total area ≥30,000 sq. ft. OR"]
[null,null,"- Garages that have a ratio of ≤1,500 sq. ft. per horsepower of garage area-to-nameplate HP."]
[null,null,"The following are required items that must be submitted along with the completed mechanical & more application:"]
[null,null,"1. Dated invoice/payment application."]
[null,null,"2. Manufacturer's equipment specification sheet documenting compliance with equipment eligibility."]
[null,null,"Manufacture/Model",null,null,null,null,null,null,null,null,"Exhaust Fan HP/Sensor",null,null,null,null,null,null,null,"Garage Area (Sq. Ft.)",null,null,null,null,null,null,null,null,null,null,null,null,null,"Quantity ",null,null,null,null,null,"Rebate",null,null,null,null,null,null,null,null,null,"List1","List2","List3","Size","Input1","Input2","Input3","Input4","Input5","Input6","Qty","Manuf","ModelNo","Notes"]
[null,null,null,null,null,null,null,null,null,null,null,null,null,null,null,null,null,null,null,null,null,null,null,null,null,null,null,null,null,null,null,null,null,null,null,null,null,null,null,null,null,null,null,{"$f":"COUNTA($C315:$AP315)>0","v":false},null,null,null,null,"     HVAC: Other","Carbon Monoxide (CO) Sensor",null,null,{"$f":"L315","v":0},{"$f":"T315","v":0},null,null,null,null,null,{"$f":"AH315","v":0},null,null,{"$f":"C315","v":0}]
[null,null,null,null,null,null,null,null,null,null,null,null,null,null,null,null,null,null,null,null,null,null,null,null,null,null,null,null,null,null,null,null,null,null,null,null,null,null,null,null,null,null,null,{"$f":"COUNTA($C316:$AP316)>0","v":false},null,null,null,null,"     HVAC: Other","Carbon Monoxide (CO) Sensor",null,null,{"$f":"L316","v":0},{"$f":"T316","v":0},null,null,null,null,null,{"$f":"AH316","v":0},null,null,{"$f":"C316","v":0}]
[null,null,null,null,null,null,null,null,null,null,null,null,null,null,null,null,null,null,null,null,null,null,null,null,null,null,null,null,null,null,null,null,null,null,null,null,null,null,null,null,null,null,null,{"$f":"COUNTA($C317:$AP317)>0","v":false},null,null,null,null,"     HVAC: Other","Carbon Monoxide (CO) Sensor",null,null,{"$f":"L317","v":0},{"$f":"T317","v":0},null,null,null,null,null,{"$f":"AH317","v":0},null,null,{"$f":"C317","v":0}]
[null,null,"Advanced RTU Controller"]
[null,null,"Rebate:  $250.00 per Ton"]
[null,null,"Eligibility Requirements: ",null,null,null,null,null,null,null,null,null,null,null,null,null,null,null,null,null,null,null,null,null,null,null,null,null,null,null,null,null,null,null,null,null,null,null,null,null,null,null,null,null,"No Existing Controls"]
[null,null,"1. Controls must provide variable fan control, demand control ventilation (DCV), and outside-air economizer control.",null,null,null,null,null,null,null,null,null,null,null,null,null,null,null,null,null,null,null,null,null,null,null,null,null,null,null,null,null,null,null,null,null,null,null,null,null,null,null,null,null,"2-Speed Motor"]
[null,null,"2. Simultaneous rebates are not available for Variable Frequency Drives or CO2 Sensors on the same unit.",null,null,null,null,null,null,null,null,null,null,null,null,null,null,null,null,null,null,null,null,null,null,null,null,null,null,null,null,null,null,null,null,null,null,null,null,null,null,null,null,null,"3-Speed Motor"]
[null,null,"3. HVAC unit must be an air-cooled packaged rooftop unit (RTU) utilizing direct-expansion (DX) cooling technology. Split Systems and water-cooled systems are not eligible.",null,null,null,null,null,null,null,null,null,null,null,null,null,null,null,null,null,null,null,null,null,null,null,null,null,null,null,null,null,null,null,null,null,null,null,null,null,null,null,null,null,"Single-Speed ECM"]
[null,null,"- Units which utilize a variable speed EC motor are not eligible.",null,null,null,null,null,null,null,null,null,null,null,null,null,null,null,null,null,null,null,null,null,null,null,null,null,null,null,null,null,null,null,null,null,null,null,null,null,null,null,null,null,"Multi-Speed ECM"]
[null,null,"- (Retrofit) Installations on existing units where existing fan speed controls are present are not eligible. Existing systems must be constant-volume (CV).",null,null,null,null,null,null,null,null,null,null,null,null,null,null,null,null,null,null,null,null,null,null,null,null,null,null,null,null,null,null,null,null,null,null,null,null,null,null,null,null,null,"VFD"]
[null,null,"- (New Construction) Units ≥ 5 Tons and installations on units where variable speed fan controls are required by ASHRAE 90.1-2016 are not eligible."]
[null,null,"The following are required items that must be submitted along with the completed mechanical & more application:"]
[null,null,"1. Dated invoice/payment application."]
[null,null,"2. Manufacturer's equipment specification sheet documenting compliance with equipment eligibility."]
[]
[null,null,"Manufacture/Model",null,null,null,null,null,null,null,null,null,null,null,"Existing Fan Controls",null,null,null,null,"Proposed Fan Controls",null,null,null,null,null,"HVAC Unit Size (Tons)",null,null,null,null,null,null,null,"Quantity",null,null,null,null,null,"Rebate",null,null,null,null,null,null,null,null,null,"List1","List2","List3","Size","Input1","Input2","Input3","Input4","Input5","Input6","Qty","Manuf","ModelNo","Notes"]
[null,null,null,null,null,null,null,null,null,null,null,null,null,null,null,null,null,null,null,null,null,null,null,null,null,null,null,null,null,null,null,null,null,null,null,null,null,null,null,null,null,null,null,{"$f":"COUNTA($C332:$AP332)>0","v":false},null,null,null,null,"     HVAC: Other","Advanced RTU Controller",{"$f":"O332","v":0},{"$f":"T332","v":0},{"$f":"Z332","v":0},null,null,null,null,null,null,{"$f":"V332","v":0},null,null,{"$f":"O332","v":0}]
[null,null,null,null,null,null,null,null,null,null,null,null,null,null,null,null,null,null,null,null,null,null,null,null,null,null,null,null,null,null,null,null,null,null,null,null,null,null,null,null,null,null,null,{"$f":"COUNTA($C333:$AP333)>0","v":false},null,null,null,null,"     HVAC: Other","Advanced RTU Controller",{"$f":"O333","v":0},{"$f":"T333","v":0},{"$f":"Z333","v":0},null,null,null,null,null,null,{"$f":"V333","v":0},null,null,{"$f":"O333","v":0}]
[null,null,null,null,null,null,null,null,null,null,null,null,null,null,null,null,null,null,null,null,null,null,null,null,null,null,null,null,null,null,null,null,null,null,null,null,null,null,null,null,null,null,null,{"$f":"COUNTA($C334:$AP334)>0","v":false},null,null,null,null,"     HVAC: Other","Advanced RTU Controller",{"$f":"O334","v":0},{"$f":"T334","v":0},{"$f":"Z334","v":0},null,null,null,null,null,null,{"$f":"V334","v":0},null,null,{"$f":"O334","v":0}]
[null,null,null,null,null,null,null,null,null,null,null,null,null,null,null,null,null,null,null,null,null,null,null,null,null,null,null,null,null,null,null,null,null,null,null,null,null,null,null,null,null,null,null,{"$f":"COUNTA($C335:$AP335)>0","v":false},null,null,null,null,"     HVAC: Other","Advanced RTU Controller",{"$f":"O335","v":0},{"$f":"T335","v":0},{"$f":"Z335","v":0},null,null,null,null,null,null,{"$f":"V335","v":0},null,null,{"$f":"O335","v":0}]
[null,null,null,null,null,null,null,null,null,null,null,null,null,null,null,null,null,null,null,null,null,null,null,null,null,null,null,null,null,null,null,null,null,null,null,null,null,null,null,null,null,null,null,{"$f":"COUNTA($C336:$AP336)>0","v":false},null,null,null,null,"     HVAC: Other","Advanced RTU Controller",{"$f":"O336","v":0},{"$f":"T336","v":0},{"$f":"Z336","v":0},null,null,null,null,null,null,{"$f":"V336","v":0},null,null,{"$f":"O336","v":0}]
[null,null,"Hotel Room Occupancy Controls"]
[null,null,"Rebate:  $50.00 per Room"]
[null,null,"Eligibility Requirements: ",null,null,null,null,null,null,null,null,null,null,null,null,null,null,null,null,null,null,null,null,null,null,null,null,null,null,null,null,null,null,null,null,null,null,null,null,null,null,null,null,null,"PTAC","Packaged-Terminal Air-Conditioner",null,"Electric Resistance"]
[null,null,"1. Rebates are only available for Hotel/Motel guestroom installations. Multi-room suites are counted as one guestroom.",null,null,null,null,null,null,null,null,null,null,null,null,null,null,null,null,null,null,null,null,null,null,null,null,null,null,null,null,null,null,null,null,null,null,null,null,null,null,null,null,null,"PTHP","Packaged-Terminal Heat Pump",null,"Gas"]
[null,null,"2. Must sense the occupant heat/motion/door-key activation and adjust the HVAC set points.",null,null,null,null,null,null,null,null,null,null,null,null,null,null,null,null,null,null,null,null,null,null,null,null,null,null,null,null,null,null,null,null,null,null,null,null,null,null,null,null,null,"Chiller","Chiller",null,"Heat Pump"]
[null,null,"3. A minimum setback temperature of 8 degrees must be used.",null,null,null,null,null,null,null,null,null,null,null,null,null,null,null,null,null,null,null,null,null,null,null,null,null,null,null,null,null,null,null,null,null,null,null,null,null,null,null,null,null,"Multi-Split","Multi-Split",null,"Other"]
[null,null,"4. (Retrofit) Replacements of existing hotel room occupancy controls are not eligible.",null,null,null,null,null,null,null,null,null,null,null,null,null,null,null,null,null,null,null,null,null,null,null,null,null,null,null,null,null,null,null,null,null,null,null,null,null,null,null,null,null,null,null,null,"None"]
[null,null,"5. (New Construction) Conditioned spaces using chiller or multi-split systems are not eligible. Hotel Room Occupancy Sensors are not eligible where required by ASHRAE 90.1-2016:"]
[null,null,"- Hotels and Motels with 50 guestrooms or more are required to:"]
[null,null,"- Program a minimum of 4-degree temperature setbacks for both heating and cooling while the room is unoccupied and rented out to a guest."]
[null,null,"- Set back the temperature setpoints to 60 degF (heating) and 80 degF (cooling) while the room is not rented to a guest."]
[null,null,"The following are required items that must be submitted along with the completed mechanical & more application:"]
[null,null,"1. Dated invoice/payment application."]
[null,null,"2. Manufacturer's equipment specification sheet documenting compliance with equipment eligibility."]
[null,null,"Manufacture/Model",null,null,null,null,null,"Cooling Type",null,null,null,"Heating Type",null,null,null,"Size/Room (Tons)",null,null,null,"Occ Clg",null,null,"Unocc Clg",null,null,"Occ Htg",null,null,"Unocc Htg",null,null,"Number of Rooms",null,null,null,"Qty",null,null,"Rebate",null,null,null,null,null,null,null,null,null,"List1","List2","List3","Size","Input1","Input2","Input3","Input4","Input5","Input6","Qty","Manuf","ModelNo","Notes"]
[null,null,null,null,null,null,null,null,null,null,null,null,null,null,null,null,null,null,null,null,null,null,null,null,null,null,null,null,null,null,null,null,null,null,null,null,null,null,null,null,null,null,null,{"$f":"COUNTA($C352:$AP352)>0","v":false},null,null,null,null,"     Hotel Room Occupancy Controller",{"$f":"VLOOKUP($I352,$AS$339:$AT$342,2,FALSE)","v":{"$error":"#N/A"}},{"$f":"M352","v":0},null,{"$f":"Q352","v":0},{"$f":"U352","v":0},{"$f":"Y352","v":0},{"$f":"AA352","v":0},{"$f":"AD352","v":0},{"$f":"AG352","v":0},null,{"$f":"AK352","v":0},null,null,{"$f":"C352","v":0}]
[null,null,null,null,null,null,null,null,null,null,null,null,null,null,null,null,null,null,null,null,null,null,null,null,null,null,null,null,null,null,null,null,null,null,null,null,null,null,null,null,null,null,null,false,null,null,null,null,"     Hotel Room Occupancy Controller",{"$error":"#N/A"},0,null,{"$f":"Q353","v":0},{"$f":"U353","v":0},{"$f":"Y353","v":0},{"$f":"AA353","v":0},{"$f":"AD353","v":0},0,null,{"$f":"AK353","v":0},null,null,{"$f":"C353","v":0}]
[null,null,null,null,null,null,null,null,null,null,null,null,null,null,null,null,null,null,null,null,null,null,null,null,null,null,null,null,null,null,null,null,null,null,null,null,null,null,null,null,null,null,null,false,null,null,null,null,"     Hotel Room Occupancy Controller",{"$error":"#N/A"},0,null,0,0,0,0,0,0,null,0,null,null,0]
[null,null,null,null,null,null,null,null,null,null,null,null,null,null,null,null,null,null,null,null,null,null,null,null,null,null,null,null,null,null,null,null,null,null,null,null,null,null,null,null,null,null,null,false,null,null,null,null,"     Hotel Room Occupancy Controller",{"$error":"#N/A"},0,null,0,0,0,0,0,0,null,0,null,null,0]
[null,null,null,null,null,null,null,null,null,null,null,null,null,null,null,null,null,null,null,null,null,null,null,null,null,null,null,null,null,null,null,null,null,null,null,null,null,null,null,null,null,null,null,false,null,null,null,null,"     Hotel Room Occupancy Controller",{"$error":"#N/A"},0,null,0,0,0,0,0,0,null,0,null,null,0]
[null,null,null,null,null,null,null,null,null,null,null,null,null,null,null,null,null,null,null,null,null,null,null,null,null,null,null,null,null,null,null,null,null,null,null,null,null,null,null,null,null,null,null,false,null,null,null,null,"     Hotel Room Occupancy Controller",{"$error":"#N/A"},0,null,0,0,0,0,0,0,null,0,null,null,0]
[null,null,null,null,null,null,null,null,null,null,null,null,null,null,null,null,null,null,null,null,null,null,null,null,null,null,null,null,null,null,null,null,null,null,null,null,null,null,null,null,null,null,null,false,null,null,null,null,"     Hotel Room Occupancy Controller",{"$error":"#N/A"},0,null,0,0,0,0,0,0,null,0,null,null,0]
[null,null,null,null,null,null,null,null,null,null,null,null,null,null,null,null,null,null,null,null,null,null,null,null,null,null,null,null,null,null,null,null,null,null,null,null,null,null,null,null,null,null,null,false,null,null,null,null,"     Hotel Room Occupancy Controller",{"$error":"#N/A"},0,null,0,0,0,0,0,0,null,0,null,null,0]
[null,null,null,null,null,null,null,null,null,null,null,null,null,null,null,null,null,null,null,null,null,null,null,null,null,null,null,null,null,null,null,null,null,null,null,null,null,null,null,null,null,null,null,false,null,null,null,null,"     Hotel Room Occupancy Controller",{"$error":"#N/A"},0,null,0,0,0,0,{"$f":"AD360","v":0},0,null,0,null,null,{"$f":"C360","v":0}]
[null,null,null,null,null,null,null,null,null,null,null,null,null,null,null,null,null,null,null,null,null,null,null,null,null,null,null,null,null,null,null,null,null,null,null,null,null,null,null,null,null,null,null,false,null,null,null,null,"     Hotel Room Occupancy Controller",{"$error":"#N/A"},0,null,0,0,0,0,{"$f":"AD361","v":0},0,null,0,null,null,{"$f":"C361","v":0}]
["X"]

{"sheet":"Refrigeration","index":8,"n_rows":280,"n_cols":46,"rows_kept":280,"cut":false,"hidden":true,"merged":[[149,2,149,11],[149,24,149,27],[143,2,143,27],[145,12,145,19],[146,12,146,19],[147,12,147,19],[148,12,148,19],[149,12,149,19],[145,20,145,23],[146,20,146,23],[147,20,147,23],[148,20,148,23],[149,20,149,23],[147,2,147,11],[147,24,147,27],[148,2,148,11],[148,24,148,27],[145,2,145,11],[145,24,145,27],[146,2,146,11],[146,24,146,27],[135,2,135,26],[136,2,136,27],[137,2,137,27],[138,2,138,27],[139,2,139,27],[140,2,140,27],[141,2,141,27],[142,2,142,27],[144,2,144,27],[133,2,133,11],[133,12,133,17],[133,18,133,20],[133,21,133,23],[133,24,133,27],[134,2,134,11],[134,12,134,17],[134,18,134,20],[134,21,134,23],[134,24,134,27],[271,2,271,27],[270,2,270,27],[275,9,275,12],[276,9,276,12],[277,9,277,12],[278,9,278,12],[275,21,275,23],[276,21,276,23],[277,21,277,23],[278,21,278,23],[275,2,275,8],[276,2,276,8],[277,2,277,8],[278,2,278,8],[278,24,278,27],[275,17,275,20],[276,17,276,20],[277,17,277,20],[278,17,278,20],[275,13,275,16],[276,13,276,16],[277,13,277,16],[278,13,278,16],[276,24,276,27],[131,2,131,11],[131,12,131,17],[131,18,131,20],[131,21,131,23],[131,24,131,27],[132,2,132,11],[132,12,132,17],[132,18,132,20],[132,21,132,23],[132,24,132,27],[277,24,277,27],[104,2,104,27],[105,2,105,27],[112,2,112,27],[266,2,266,26],[267,2,267,27],[268,2,268,27],[269,2,269,27],[272,2,272,27],[120,12,120,15],[120,16,120,19],[120,20,120,23],[120,24,120,27],[115,8,115,11],[116,8,116,11],[117,8,117,11],[118,8,118,11],[119,8,119,11],[120,8,120,11],[115,2,115,7],[116,2,116,7],[117,2,117,7],[118,2,118,7],[119,2,119,7],[120,2,120,7],[118,12,118,15],[118,16,118,19],[118,20,118,23],[118,24,118,27],[119,12,119,15],[119,16,119,19],[119,20,119,23],[119,24,119,27],[115,24,115,27],[116,12,116,15],[116,16,116,19],[116,20,116,23],[116,24,116,27],[117,12,117,15],[117,16,117,19],[117,20,117,23],[117,24,117,27],[174,10,174,12],[174,22,174,23],[174,24,174,27],[0,29,0,45],[2,2,2,27],[3,2,3,27],[4,2,4,27],[5,2,5,27],[6,2,6,18],[6,19,6,23],[6,24,6,27],[13,2,13,27],[14,2,14,27],[15,2,15,11],[15,12,15,17],[15,18,15,20],[15,21,15,23],[15,24,15,27],[7,2,7,26],[8,2,8,27],[9,2,9,27],[10,2,10,27],[115,16,115,19],[115,20,115,23],[11,2,11,27],[12,2,12,27],[16,2,16,11],[16,12,16,17],[16,18,16,20],[16,21,16,23],[16,24,16,27],[17,2,17,11],[17,12,17,17],[17,18,17,20],[17,21,17,23],[17,24,17,27],[20,2,20,26],[21,2,21,27],[22,2,22,27],[23,2,23,27],[24,2,24,27],[25,2,25,27],[18,2,18,11],[18,12,18,17],[18,18,18,20],[18,21,18,23],[18,24,18,27],[19,2,19,11],[19,12,19,17],[19,18,19,20],[19,21,19,23],[19,24,19,27],[29,2,29,11],[29,12,29,19],[29,20,29,23],[29,24,29,27],[30,2,30,11],[30,12,30,19],[30,20,30,23],[30,24,30,27],[26,2,26,27],[27,2,27,11],[27,12,27,19],[27,20,27,23],[27,24,27,27],[28,2,28,11],[28,12,28,19],[28,20,28,23],[28,24,28,27],[34,2,34,27],[35,2,35,27],[36,2,36,27],[37,2,37,27],[38,2,38,27],[39,2,39,27],[31,2,31,11],[31,12,31,19],[31,20,31,23],[31,24,31,27],[32,2,32,26],[33,2,33,27],[42,2,42,11],[42,12,42,19],[42,20,42,23],[42,24,42,27],[43,2,43,11],[43,12,43,19],[43,20,43,23],[43,24,43,27],[40,2,40,11],[40,12,40,19],[40,20,40,23],[40,24,40,27],[41,2,41,11],[41,12,41,19],[41,20,41,23],[41,24,41,27],[50,2,50,27],[51,2,51,27],[52,2,52,11],[52,12,52,19],[52,20,52,23],[52,24,52,27],[44,2,44,26],[45,2,45,27],[46,2,46,27],[47,2,47,27],[48,2,48,27],[49,2,49,27],[55,2,55,11],[55,12,55,19],[55,20,55,23],[55,24,55,27],[56,2,56,26],[57,2,57,27],[53,2,53,11],[53,12,53,19],[53,20,53,23],[53,24,53,27],[54,2,54,11],[54,12,54,19],[54,20,54,23],[54,24,54,27],[126,2,126,27],[127,2,127,27],[128,2,128,27],[130,2,130,11],[130,12,130,17],[130,18,130,20],[130,21,130,23],[130,24,130,27],[129,2,129,27],[65,2,65,27],[66,2,66,8],[66,21,66,23],[66,24,66,27],[58,2,58,27],[59,2,59,27],[60,2,60,27],[62,2,62,27],[63,2,63,27],[64,2,64,27],[61,2,61,27],[66,9,66,14],[66,15,66,17],[66,18,66,20],[67,24,67,27],[68,2,68,8],[68,21,68,23],[68,24,68,27],[67,2,67,8],[67,21,67,23],[67,9,67,14],[67,15,67,17],[67,18,67,20],[68,9,68,14],[68,15,68,17],[68,18,68,20],[69,24,69,27],[70,2,70,26],[71,2,71,27],[72,2,72,27],[73,2,73,27],[74,2,74,27],[69,2,69,8],[69,21,69,23],[69,9,69,14],[69,15,69,17],[69,18,69,20],[80,24,80,27],[81,2,81,8],[81,9,81,12],[81,13,81,15],[81,16,81,20],[81,21,81,23],[81,24,81,27],[75,2,75,27],[76,2,76,27],[77,2,77,27],[78,2,78,27],[79,2,79,27],[80,2,80,8],[80,9,80,12],[80,13,80,15],[80,16,80,20],[80,21,80,23],[83,2,83,8],[83,9,83,12],[83,13,83,15],[83,16,83,20],[83,21,83,23],[83,24,83,27],[82,2,82,8],[82,9,82,12],[82,13,82,15],[82,16,82,20],[82,21,82,23],[82,24,82,27],[85,2,85,8],[85,9,85,12],[85,13,85,15],[85,16,85,20],[85,21,85,23],[85,24,85,27],[84,2,84,8],[84,9,84,12],[84,13,84,15],[84,16,84,20],[84,21,84,23],[84,24,84,27],[87,2,87,8],[87,9,87,12],[87,13,87,15],[87,16,87,20],[87,21,87,23],[87,24,87,27],[86,2,86,8],[86,9,86,12],[86,13,86,15],[86,16,86,20],[86,21,86,23],[86,24,86,27],[89,2,89,26],[90,2,90,27],[91,2,91,27],[92,2,92,27],[93,2,93,27],[94,2,94,27],[88,2,88,8],[88,9,88,12],[88,13,88,15],[88,16,88,20],[88,21,88,23],[88,24,88,27],[95,2,95,27],[96,2,96,27],[97,20,97,23],[97,24,97,27],[100,20,100,23],[100,24,100,27],[101,20,101,23],[101,24,101,27],[98,20,98,23],[98,24,98,27],[99,20,99,23],[99,24,99,27],[97,14,97,19],[98,14,98,19],[99,14,99,19],[100,14,100,19],[101,14,101,19],[152,2,152,27],[153,2,153,27],[154,2,154,27],[155,2,155,27],[156,2,156,27],[157,2,157,27],[102,20,102,23],[102,24,102,27],[150,2,150,26],[151,2,151,27],[103,2,103,26],[106,2,106,27],[107,2,107,27],[108,2,108,27],[110,2,110,27],[111,2,111,27],[113,2,113,27],[114,2,114,27],[115,12,115,15],[121,2,121,26],[122,2,122,27],[123,2,123,27],[124,2,124,27],[125,2,125,27],[158,2,158,11],[158,12,158,16],[158,17,158,19],[158,20,158,23],[158,24,158,27],[159,2,159,11],[159,12,159,16],[159,17,159,19],[159,20,159,23],[159,24,159,27],[162,2,162,26],[163,2,163,27],[164,2,164,27],[165,2,165,27],[166,2,166,27],[168,2,168,27],[160,2,160,11],[160,12,160,16],[160,17,160,19],[160,20,160,23],[160,24,160,27],[161,2,161,11],[161,12,161,16],[161,17,161,19],[161,20,161,23],[161,24,161,27],[167,2,167,27],[273,2,273,27],[274,2,274,27],[275,24,275,27],[173,22,173,23],[173,24,173,27],[169,2,169,27],[170,2,170,27],[171,2,171,27],[172,10,172,12],[172,22,172,23],[172,24,172,27],[172,7,172,9],[173,7,173,9],[172,17,172,19],[173,17,173,19],[172,13,172,16],[173,13,173,16],[172,2,172,6],[173,2,173,6],[172,20,172,21],[173,20,173,21],[173,10,173,12],[174,7,174,9],[174,17,174,19],[174,13,174,16],[185,2,185,11],[185,12,185,19],[185,20,185,23],[185,24,185,27],[186,2,186,11],[186,12,186,19],[186,20,186,23],[186,24,186,27],[181,2,181,27],[182,2,182,27],[183,2,183,27],[184,2,184,11],[184,12,184,19],[184,20,184,23],[184,24,184,27],[174,2,174,6],[174,20,174,21],[175,2,175,26],[176,2,176,27],[177,2,177,27],[178,2,178,27],[179,2,179,27],[180,2,180,27],[189,2,189,26],[190,2,190,27],[191,2,191,27],[192,2,192,27],[193,2,193,27],[194,2,194,27],[187,2,187,11],[187,12,187,19],[187,20,187,23],[187,24,187,27],[188,2,188,11],[188,12,188,19],[188,20,188,23],[188,24,188,27],[195,2,195,27],[196,2,196,27],[197,2,197,27],[198,2,198,8],[198,9,198,14],[198,15,198,17],[198,18,198,20],[198,21,198,23],[198,24,198,27],[200,2,200,8],[200,9,200,14],[200,15,200,17],[200,18,200,20],[200,21,200,23],[200,24,200,27],[199,2,199,8],[199,9,199,14],[199,15,199,17],[199,18,199,20],[199,21,199,23],[199,24,199,27],[202,2,202,26],[203,2,203,27],[204,2,204,27],[205,2,205,27],[206,2,206,27],[207,2,207,27],[201,2,201,8],[201,9,201,14],[201,15,201,17],[201,18,201,20],[201,21,201,23],[201,24,201,27],[211,2,211,13],[211,14,211,20],[211,21,211,23],[211,24,211,27],[212,2,212,13],[212,14,212,20],[212,21,212,23],[212,24,212,27],[208,2,208,27],[209,2,209,27],[210,2,210,13],[210,14,210,20],[210,21,210,23],[210,24,210,27],[216,2,216,27],[217,2,217,27],[218,2,218,27],[219,2,219,27],[220,2,220,27],[221,2,221,27],[213,2,213,13],[213,14,213,20],[213,21,213,23],[213,24,213,27],[214,2,214,26],[215,2,215,27],[222,2,222,27],[223,2,223,27],[224,2,224,27],[225,2,225,7],[225,11,225,12],[225,15,225,16],[225,17,225,18],[225,22,225,23],[225,24,225,27],[225,8,225,10],[225,19,225,21],[225,13,225,14],[232,2,232,27],[233,2,233,27],[226,2,226,7],[226,11,226,12],[226,15,226,16],[226,17,226,18],[226,22,226,23],[226,24,226,27],[227,22,227,23],[227,24,227,27],[228,2,228,26],[226,8,226,10],[227,8,227,10],[226,19,226,21],[227,19,227,21],[226,13,226,14],[227,13,227,14],[227,17,227,18],[262,24,262,27],[239,22,239,23],[239,24,239,27],[253,2,253,27],[254,2,254,27],[255,2,255,27],[256,2,256,27],[234,2,234,27],[236,2,236,27],[237,2,237,11],[237,12,237,18],[237,19,237,21],[237,22,237,23],[237,24,237,27],[238,2,238,11],[238,12,238,18],[238,19,238,21],[238,22,238,23],[238,24,238,27],[235,2,235,27],[240,22,240,23],[240,24,240,27],[252,2,252,26],[250,2,250,11],[265,21,265,23],[265,24,265,27],[264,2,264,7],[264,8,264,12],[264,13,264,16],[264,17,264,20],[264,21,264,23],[264,24,264,27],[257,2,257,27],[258,2,258,27],[263,2,263,7],[263,8,263,12],[263,13,263,16],[263,17,263,20],[263,21,263,23],[263,24,263,27],[259,2,259,27],[260,2,260,27],[261,2,261,27],[262,2,262,7],[262,8,262,12],[262,13,262,16],[262,17,262,20],[262,21,262,23],[109,2,109,27],[102,14,102,19],[97,2,97,13],[98,2,98,13],[99,2,99,13],[100,2,100,13],[101,2,101,13],[102,2,102,13],[265,2,265,7],[265,8,265,12],[265,13,265,16],[265,17,265,20],[240,2,240,11],[240,12,240,18],[240,19,240,21],[239,2,239,11],[239,12,239,18],[239,19,239,21],[229,2,229,27],[230,2,230,27],[231,2,231,27],[227,2,227,7],[227,11,227,12],[227,15,227,16],[251,2,251,11],[251,12,251,19],[251,20,251,23],[251,24,251,27],[248,2,248,11],[248,12,248,19],[248,20,248,23],[248,24,248,27],[249,2,249,11],[249,12,249,19],[249,20,249,23],[249,24,249,27],[242,2,242,27],[243,2,243,27],[244,2,244,27],[245,2,245,27],[246,2,246,27],[247,2,247,27],[241,2,241,26],[250,12,250,19],[250,20,250,23],[250,24,250,27]]}
[null,null,null,null,null,null,null,null,null,null,null,null,null,null,null,null,null,null,null,null,null,null,null,null,null,null,null,null,null,"Hide"]
[]
[null,null,"Refrigeration"]
[null,null,"Instructions: Please select the measures you wish to apply for and complete the fields below for each selected measure. Highlighted fields are required in order for the application to be considered 'Complete'."]
[null,null,"Refer to the Equipment Efficiency Tables tab to determine if your equipment meets the required minimum efficiencies."]
[null,null,"Note: Under this program, “Freezer” refrigeration applications refer to space temperatures ≤ 0 ºF while “Cooler” refrigeration applications refer to space temperatures from 1 to 40 ºF."]
[null,null,"Select Measures:"]
[null,null,"Auto Closers For Main Walk-In Refrigerators & Freezer Doors"]
[null,null,"Rebate:  Walk-In Coolers: $20.00 Each  &  Walk-In Freezers: $40.00 Each"]
[null,null,"Eligibility Requirements: "]
[null,null,"1. Must firmly close door when door is within 1\" of full closure.",null,null,null,null,null,null,null,null,null,null,null,null,null,null,null,null,null,null,null,null,null,null,null,null,null,null,"Main Walk-in - Cooler","Walk-In Med Temp"]
[null,null,"2. (Retrofit) Only installations on walk-in units are eligible.",null,null,null,null,null,null,null,null,null,null,null,null,null,null,null,null,null,null,null,null,null,null,null,null,null,null,"Main Walk-in - Freezer","Walk-In Low Temp"]
[null,null,"3. (New Construction) Installations are not eligible."]
[null,null,"The following are required items that must be submitted along with the completed mechanical & more application:"]
[null,null,"1. Dated invoice/payment application."]
[null,null,"Manufacture/Model",null,null,null,null,null,null,null,null,null,"Refrigeration Application",null,null,null,null,null,"Door Size",null,null,"Quantity",null,null,"Rebate",null,null,null,null,null,null,null,"List1","List2","List3","Size","Input1","Input2","Input3","Input4","Input5","Input6","Qty","Manuf","ModelNo","Notes"]
[null,null,null,null,null,null,null,null,null,null,null,null,null,null,null,null,null,null,null,null,null,null,null,null,null,null,null,null,null,{"$f":"COUNTA($C17:$AB17)>0","v":false},null,"     Refrigeration: Other","Auto-Closer",{"$f":"VLOOKUP($M17,$AD$11:$AE$12,2,FALSE)","v":{"$error":"#N/A"}},null,{"$f":"S17","v":0},null,null,null,null,null,null,{"$f":"V17","v":0},null,null,{"$f":"C17","v":0}]
[null,null,null,null,null,null,null,null,null,null,null,null,null,null,null,null,null,null,null,null,null,null,null,null,null,null,null,null,null,{"$f":"COUNTA($C18:$AB18)>0","v":false},null,"     Refrigeration: Other","Auto-Closer",{"$f":"VLOOKUP($M18,$AD$11:$AE$12,2,FALSE)","v":{"$error":"#N/A"}},null,{"$f":"S18","v":0},null,null,null,null,null,null,{"$f":"V18","v":0},null,null,{"$f":"C18","v":0}]
[null,null,null,null,null,null,null,null,null,null,null,null,null,null,null,null,null,null,null,null,null,null,null,null,null,null,null,null,null,{"$f":"COUNTA($C19:$AB19)>0","v":false},null,"     Refrigeration: Other","Auto-Closer",{"$f":"VLOOKUP($M19,$AD$11:$AE$12,2,FALSE)","v":{"$error":"#N/A"}},null,{"$f":"S19","v":0},null,null,null,null,null,null,{"$f":"V19","v":0},null,null,{"$f":"C19","v":0}]
[null,null,null,null,null,null,null,null,null,null,null,null,null,null,null,null,null,null,null,null,null,null,null,null,null,null,null,null,null,{"$f":"COUNTA($C20:$AB20)>0","v":false},null,"     Refrigeration: Other","Auto-Closer",{"$f":"VLOOKUP($M20,$AD$11:$AE$12,2,FALSE)","v":{"$error":"#N/A"}},null,{"$f":"S20","v":0},null,null,null,null,null,null,{"$f":"V20","v":0},null,null,{"$f":"C20","v":0}]
[null,null,"Door Gaskets For Glass & Solid Doors"]
[null,null,"Rebate:  Coolers: $3.50 per Linear Ft. & Freezers: $4.50 per Linear Ft."]
[null,null,"Eligibility Requirements: ",null,null,null,null,null,null,null,null,null,null,null,null,null,null,null,null,null,null,null,null,null,null,null,null,null,null,"Glass Doors - Cooler","Glass Door Med Temp"]
[null,null,"1. (Retrofit) Replacements of existing gaskets are not eligible without SRP's prior approval within 3 years unless prior SRP rebates for existing gaskets have been received >3 years.",null,null,null,null,null,null,null,null,null,null,null,null,null,null,null,null,null,null,null,null,null,null,null,null,null,null,"Glass Doors - Freezer","Glass Door Low Temp"]
[null,null,"2. (New Construction) Installations are not eligible.",null,null,null,null,null,null,null,null,null,null,null,null,null,null,null,null,null,null,null,null,null,null,null,null,null,null,"Solid Doors - Cooler","Solid Door Med Temp"]
[null,null,"The following are required items that must be submitted along with the completed mechanical & more application:",null,null,null,null,null,null,null,null,null,null,null,null,null,null,null,null,null,null,null,null,null,null,null,null,null,null,"Solid Doors - Freezer","Solid Door Low Temp"]
[null,null,"1. Dated invoice/payment application."]
[null,null,"Manufacture/Model",null,null,null,null,null,null,null,null,null,"Refrigeration Application",null,null,null,null,null,null,null,"Door Perimeter (Linear Ft.)",null,null,null,"Rebate",null,null,null,null,null,null,null,"List1","List2","List3","Size","Input1","Input2","Input3","Input4","Input5","Input6","Qty","Manuf","ModelNo","Notes"]
[null,null,null,null,null,null,null,null,null,null,null,null,null,null,null,null,null,null,null,null,null,null,null,null,null,null,null,null,null,{"$f":"COUNTA($C29:$AB29)>0","v":false},null,"     Refrigeration: Other","Door Gaskets",{"$f":"VLOOKUP($M29,$AD$23:$AE$26,2,FALSE)","v":{"$error":"#N/A"}},null,{"$f":"U29","v":0},null,null,null,null,null,null,1,null,null,{"$f":"C29","v":0}]
[null,null,null,null,null,null,null,null,null,null,null,null,null,null,null,null,null,null,null,null,null,null,null,null,null,null,null,null,null,{"$f":"COUNTA($C30:$AB30)>0","v":false},null,"     Refrigeration: Other","Door Gaskets",{"$f":"VLOOKUP($M30,$AD$23:$AE$26,2,FALSE)","v":{"$error":"#N/A"}},null,{"$f":"U30","v":0},null,null,null,null,null,null,1,null,null,{"$f":"C30","v":0}]
[null,null,null,null,null,null,null,null,null,null,null,null,null,null,null,null,null,null,null,null,null,null,null,null,null,null,null,null,null,{"$f":"COUNTA($C31:$AB31)>0","v":false},null,"     Refrigeration: Other","Door Gaskets",{"$f":"VLOOKUP($M31,$AD$23:$AE$26,2,FALSE)","v":{"$error":"#N/A"}},null,{"$f":"U31","v":0},null,null,null,null,null,null,1,null,null,{"$f":"C31","v":0}]
[null,null,null,null,null,null,null,null,null,null,null,null,null,null,null,null,null,null,null,null,null,null,null,null,null,null,null,null,null,{"$f":"COUNTA($C32:$AB32)>0","v":false},null,"     Refrigeration: Other","Door Gaskets",{"$f":"VLOOKUP($M32,$AD$23:$AE$26,2,FALSE)","v":{"$error":"#N/A"}},null,{"$f":"U32","v":0},null,null,null,null,null,null,1,null,null,{"$f":"C32","v":0}]
[null,null,"Strip Curtains For Walk-In & Refrigerated Warehouse Spaces"]
[null,null,"Rebate:  $4.00 per Sq.Ft. of Door-Opening Area"]
[null,null,"Eligibility Requirements: "]
[null,null,"1. Must be installed on doorways of walk-in refrigerators or in refrigerated warehouses."]
[null,null,"2. (Retrofit) Replacements of worn or existing curtains are not eligible."]
[null,null,"3. (New Construction) Installations  are not eligible."]
[null,null,"The following are required items that must be submitted along with the completed mechanical & more application:"]
[null,null,"1. Dated invoice/payment application."]
[null,null,"Manufacture/Model",null,null,null,null,null,null,null,null,null,"Doorway Opening (Sq.Ft.)",null,null,null,null,null,null,null,"Quantity",null,null,null,"Rebate",null,null,null,null,null,null,null,"List1","List2","List3","Size","Input1","Input2","Input3","Input4","Input5","Input6","Qty","Manuf","ModelNo","Notes"]
[null,null,null,null,null,null,null,null,null,null,null,null,null,null,null,null,null,null,null,null,null,null,null,null,null,null,null,null,null,{"$f":"COUNTA($C42:$AB42)>0","v":false},null,"     Refrigeration: Other","Strip Curtain",null,null,{"$f":"M42","v":0},null,null,null,null,null,null,{"$f":"U42","v":0},null,null,{"$f":"C42","v":0}]
[null,null,null,null,null,null,null,null,null,null,null,null,null,null,null,null,null,null,null,null,null,null,null,null,null,null,null,null,null,{"$f":"COUNTA($C43:$AB43)>0","v":false},null,"     Refrigeration: Other","Strip Curtain",null,null,{"$f":"M43","v":0},null,null,null,null,null,null,{"$f":"U43","v":0},null,null,{"$f":"C43","v":0}]
[null,null,null,null,null,null,null,null,null,null,null,null,null,null,null,null,null,null,null,null,null,null,null,null,null,null,null,null,null,{"$f":"COUNTA($C44:$AB44)>0","v":false},null,"     Refrigeration: Other","Strip Curtain",null,null,{"$f":"M44","v":0},null,null,null,null,null,null,{"$f":"U44","v":0},null,null,{"$f":"C44","v":0}]
[null,null,"Dock Door Seals For Freezer & Refrigerators"]
[null,null,"Rebate:  $25.00 per Linear Ft."]
[null,null,"Eligibility Requirements: "]
[null,null,"1. Partial seals (seals that only partially seal the space between the building and the truck during loading) or seals requiring blowers are not eligible.",null,null,null,null,null,null,null,null,null,null,null,null,null,null,null,null,null,null,null,null,null,null,null,null,null,null,"Cooler","Med Temp"]
[null,null,"2. (New Construction) Installations are not eligible.",null,null,null,null,null,null,null,null,null,null,null,null,null,null,null,null,null,null,null,null,null,null,null,null,null,null,"Freezer","Low Temp"]
[null,null,"The following are required items that must be submitted along with the completed mechanical & more application:"]
[null,null,"1. Dated invoice/payment application."]
[null,null,"2. Manufacturer's equipment specification sheet documenting compliance with equipment eligibility."]
[null,null,"Manufacture/Model",null,null,null,null,null,null,null,null,null,"Temperature Application",null,null,null,null,null,null,null,"Door Perimeter (Linear Ft.)",null,null,null,"Rebate",null,null,null,null,null,null,null,"List1","List2","List3","Size","Input1","Input2","Input3","Input4","Input5","Input6","Qty","Manuf","ModelNo","Notes"]
[null,null,null,null,null,null,null,null,null,null,null,null,null,null,null,null,null,null,null,null,null,null,null,null,null,null,null,null,null,{"$f":"COUNTA($C54:$AB54)>0","v":false},null,"     Refrigeration: Other","Dock Door Seal",{"$f":"VLOOKUP($M54,$AD$48:$AE$49,2,FALSE)","v":{"$error":"#N/A"}},null,{"$f":"U54","v":0},null,null,null,null,null,null,1,null,null,{"$f":"C54","v":0}]
[null,null,null,null,null,null,null,null,null,null,null,null,null,null,null,null,null,null,null,null,null,null,null,null,null,null,null,null,null,{"$f":"COUNTA($C55:$AB55)>0","v":false},null,"     Refrigeration: Other","Dock Door Seal",{"$f":"VLOOKUP($M55,$AD$48:$AE$49,2,FALSE)","v":{"$error":"#N/A"}},null,{"$f":"U55","v":0},null,null,null,null,null,null,1,null,null,{"$f":"C55","v":0}]
[null,null,null,null,null,null,null,null,null,null,null,null,null,null,null,null,null,null,null,null,null,null,null,null,null,null,null,null,null,{"$f":"COUNTA($C56:$AB56)>0","v":false},null,"     Refrigeration: Other","Dock Door Seal",{"$f":"VLOOKUP($M56,$AD$48:$AE$49,2,FALSE)","v":{"$error":"#N/A"}},null,{"$f":"U56","v":0},null,null,null,null,null,null,1,null,null,{"$f":"C56","v":0}]
[null,null,"Fast Acting Cooler & Freezer Doors "]
[null,null,"Rebate:  Coolers: $30.00 per Sq.Ft. of Door-Opening Area & Freezers: $80.00 per Sq.Ft. of Door-Opening Area"]
[null,null,"Eligibility Requirements: "]
[null,null,"1. Bi-Fold doors meet or exceed the maximum open/close time of ≤1.5 seconds.",null,null,null,null,null,null,null,null,null,null,null,null,null,null,null,null,null,null,null,null,null,null,null,null,null,null,"Cooler - Bi-Fold","Bi-Fold Med Temp"]
[null,null,"2. Roll-Up doors meet or exceed the maximum open/close time of ≤4.0 seconds.",null,null,null,null,null,null,null,null,null,null,null,null,null,null,null,null,null,null,null,null,null,null,null,null,null,null,"Cooler - Roll-up","Roll-Up Med Temp"]
[null,null,"3. Installations on walk-in coolers and freezers (outside of warehouse spaces) are not eligible.",null,null,null,null,null,null,null,null,null,null,null,null,null,null,null,null,null,null,null,null,null,null,null,null,null,null,"Freezer - Bi-Fold","Bi-Fold Low Temp"]
[null,null,"4. (New Construction) Installations are not eligible.",null,null,null,null,null,null,null,null,null,null,null,null,null,null,null,null,null,null,null,null,null,null,null,null,null,null,"Freezer - Roll-Up","Roll-Up Low Temp"]
[null,null,"The following are required items that must be submitted along with the completed mechanical & more application:"]
[null,null,"1. Dated invoice/payment application."]
[null,null,"2. Manufacturer's equipment specification sheet documenting compliance with equipment eligibility."]
[null,null,"Manufacture/Model",null,null,null,null,null,null,"Refrigeration Application",null,null,null,null,null,"Door Area (Sq. Ft.)",null,null,"Opening Time (Sec)",null,null,"Quantity",null,null,"Rebate",null,null,null,null,null,null,null,"List1","List2","List3","Size","Input1","Input2","Input3","Input4","Input5","Input6","Qty","Manuf","ModelNo","Notes"]
[null,null,null,null,null,null,null,null,null,null,null,null,null,null,null,null,null,null,null,null,null,null,null,null,null,null,null,null,null,{"$f":"COUNTA($C68:$AB68)>0","v":false},null,"     Refrigeration: Other","Fast-Acting Door",{"$f":"VLOOKUP($J68,$AD$60:$AE$63,2,FALSE)","v":{"$error":"#N/A"}},null,{"$f":"N68","v":0},{"$f":"R68","v":0},null,null,null,null,null,{"$f":"V68","v":0},null,null,{"$f":"C68","v":0}]
[null,null,null,null,null,null,null,null,null,null,null,null,null,null,null,null,null,null,null,null,null,null,null,null,null,null,null,null,null,{"$f":"COUNTA($C69:$AB69)>0","v":false},null,"     Refrigeration: Other","Fast-Acting Door",{"$f":"VLOOKUP($J69,$AD$60:$AE$63,2,FALSE)","v":{"$error":"#N/A"}},null,{"$f":"N69","v":0},{"$f":"R69","v":0},null,null,null,null,null,{"$f":"V69","v":0},null,null,{"$f":"C69","v":0}]
[null,null,null,null,null,null,null,null,null,null,null,null,null,null,null,null,null,null,null,null,null,null,null,null,null,null,null,null,null,{"$f":"COUNTA($C70:$AB70)>0","v":false},null,"     Refrigeration: Other","Fast-Acting Door",{"$f":"VLOOKUP($J70,$AD$60:$AE$63,2,FALSE)","v":{"$error":"#N/A"}},null,{"$f":"N70","v":0},{"$f":"R70","v":0},null,null,null,null,null,{"$f":"V70","v":0},null,null,{"$f":"C70","v":0}]
[null,null,"High Efficiency Open Display Cases"]
[null,null,"Rebate:   Open Display Case: $20.00 per Linear Ft."]
[null,null,"Eligibility Requirements: "]
[null,null,"1. Reach-In Cooler or Freezer cases are not eligible. These may be eligible under the SRP Business Solutions Custom program with pre-approval.",null,null,null,null,null,null,null,null,null,null,null,null,null,null,null,null,null,null,null,null,null,null,null,null,null,null,"Fluorescent",null,"ECM"]
[null,null,"2. Rebates are not simultaneously available for cases where rebates are paid for electronically commutated motors (ECM) on the same equipment.",null,null,null,null,null,null,null,null,null,null,null,null,null,null,null,null,null,null,null,null,null,null,null,null,null,null,"LED",null,"Other"]
[null,null,"3. (Retrofit) Retrofits of existing cases are not eligible. Rebates are available individually for lighting and ECMs.",null,null,null,null,null,null,null,null,null,null,null,null,null,null,null,null,null,null,null,null,null,null,null,null,null,null,"Other",null,"None"]
[null,null,"4. (New Construction) Installations are not eligible.",null,null,null,null,null,null,null,null,null,null,null,null,null,null,null,null,null,null,null,null,null,null,null,null,null,null,"None"]
[null,null,"The following are required items that must be submitted along with the completed mechanical & more application:"]
[null,null,"1. Dated invoice/payment application"]
[null,null,"2. Manufacturer's equipment specification sheet documenting compliance with equipment eligibility."]
[null,null,"Manufacture/Model",null,null,null,null,null,null,"Lighting Type",null,null,null,"Motor Type",null,null,"Length \n(Linear Ft.)",null,null,null,null,"Quantity",null,null,"Rebate",null,null,null,null,null,null,null,"List1","List2","List3","Size","Input1","Input2","Input3","Input4","Input5","Input6","Qty","Manuf","ModelNo","Notes"]
[null,null,null,null,null,null,null,null,null,null,null,null,null,null,null,null,null,null,null,null,null,null,null,null,null,null,null,null,null,{"$f":"COUNTA($C82:$AB82)>0","v":false},null,"     Refrigeration: Other","High-Efficiency Open Display Case",{"$f":"J82","v":0},{"$f":"N82","v":0},{"$f":"Q82","v":0},null,null,null,null,null,null,{"$f":"V82","v":0},null,null,{"$f":"C82","v":0}]
[null,null,null,null,null,null,null,null,null,null,null,null,null,null,null,null,null,null,null,null,null,null,null,null,null,null,null,null,null,false,null,"     Refrigeration: Other","High-Efficiency Open Display Case",{"$f":"J83","v":0},{"$f":"N83","v":0},{"$f":"Q83","v":0},null,null,null,null,null,null,{"$f":"V83","v":0},null,null,{"$f":"C83","v":0}]
[null,null,null,null,null,null,null,null,null,null,null,null,null,null,null,null,null,null,null,null,null,null,null,null,null,null,null,null,null,false,null,"     Refrigeration: Other","High-Efficiency Open Display Case",0,0,0,null,null,null,null,null,null,0,null,null,0]
[null,null,null,null,null,null,null,null,null,null,null,null,null,null,null,null,null,null,null,null,null,null,null,null,null,null,null,null,null,false,null,"     Refrigeration: Other","High-Efficiency Open Display Case",0,0,0,null,null,null,null,null,null,0,null,null,0]
[null,null,null,null,null,null,null,null,null,null,null,null,null,null,null,null,null,null,null,null,null,null,null,null,null,null,null,null,null,false,null,"     Refrigeration: Other","High-Efficiency Open Display Case",0,0,0,null,null,null,null,null,null,0,null,null,0]
[null,null,null,null,null,null,null,null,null,null,null,null,null,null,null,null,null,null,null,null,null,null,null,null,null,null,null,null,null,false,null,"     Refrigeration: Other","High-Efficiency Open Display Case",0,0,0,null,null,null,null,null,null,0,null,null,0]
[null,null,null,null,null,null,null,null,null,null,null,null,null,null,null,null,null,null,null,null,null,null,null,null,null,null,null,null,null,false,null,"     Refrigeration: Other","High-Efficiency Open Display Case",0,0,0,null,null,null,null,null,null,0,null,null,0]
[null,null,null,null,null,null,null,null,null,null,null,null,null,null,null,null,null,null,null,null,null,null,null,null,null,null,null,null,null,false,null,"     Refrigeration: Other","High-Efficiency Open Display Case",0,0,0,null,null,null,null,null,null,0,null,null,0]
[null,null,"Electronically Commutated Motor (ECM)"]
[null,null,"Rebate:  Reach-ins: $25.00 Each & Walk-ins: $60.00 Each",null,null,null,null,null,null,null,null,null,null,null,null,null,null,null,null,null,null,null,null,null,null,null,null,null,null,"Reach-In"]
[null,null,"Eligibility Requirements: ",null,null,null,null,null,null,null,null,null,null,null,null,null,null,null,null,null,null,null,null,null,null,null,null,null,null,"Walk-In"]
[null,null,"1. Rebates are not simultaneously available for ECMs where rebates have been paid on cases."]
[null,null,"2. (New Construction) Installations are not eligible."]
[null,null,"The following are required items that must be submitted along with the completed mechanical & more application:"]
[null,null,"1. Dated invoice/payment application."]
[null,null,"2. Manufacturer's equipment specification sheet documenting compliance with equipment eligibility."]
[null,null,"Manufacture/Model",null,null,null,null,null,null,null,null,null,null,null,"Refrigeration Application",null,null,null,null,null,"Quantity ",null,null,null,"Rebate",null,null,null,null,null,null,null,"List1","List2","List3","Size","Input1","Input2","Input3","Input4","Input5","Input6","Qty","Manuf","ModelNo","Notes"]
[null,null,null,null,null,null,null,null,null,null,null,null,null,null,null,null,null,null,null,null,null,null,null,null,null,null,null,null,null,{"$f":"COUNTA($C99:$AB99)>0","v":false},null,"     Refrigeration: Other","Electronically Commutated Motor",{"$f":"O99","v":0},null,null,null,null,null,null,null,null,{"$f":"U99","v":0},null,null,{"$f":"C99","v":0}]
[null,null,null,null,null,null,null,null,null,null,null,null,null,null,null,null,null,null,null,null,null,null,null,null,null,null,null,null,null,{"$f":"COUNTA($C100:$AB100)>0","v":false},null,"     Refrigeration: Other","Electronically Commutated Motor",{"$f":"O100","v":0},null,null,null,null,null,null,null,null,{"$f":"U100","v":0},null,null,{"$f":"C100","v":0}]
[null,null,null,null,null,null,null,null,null,null,null,null,null,null,null,null,null,null,null,null,null,null,null,null,null,null,null,null,null,{"$f":"COUNTA($C101:$AB101)>0","v":false},null,"     Refrigeration: Other","Electronically Commutated Motor",{"$f":"O101","v":0},null,null,null,null,null,null,null,null,{"$f":"U101","v":0},null,null,{"$f":"C101","v":0}]
[null,null,null,null,null,null,null,null,null,null,null,null,null,null,null,null,null,null,null,null,null,null,null,null,null,null,null,null,null,{"$f":"COUNTA($C102:$AB102)>0","v":false},null,"     Refrigeration: Other","Electronically Commutated Motor",{"$f":"O102","v":0},null,null,null,null,null,null,null,null,{"$f":"U102","v":0},null,null,{"$f":"C102","v":0}]
[null,null,null,null,null,null,null,null,null,null,null,null,null,null,null,null,null,null,null,null,null,null,null,null,null,null,null,null,null,{"$f":"COUNTA($C103:$AB103)>0","v":false},null,"     Refrigeration: Other","Electronically Commutated Motor",{"$f":"O103","v":0},null,null,null,null,null,null,null,null,{"$f":"U103","v":0},null,null,{"$f":"C103","v":0}]
[null,null,"Permanent-Magnet Synchronous Motor (PMSM)"]
[null,null,"Rebate:"]
[null,null,"- (Retrofit) Replacement of SP or PSC motor: Reach-Ins: $30.00 Each & Walk-Ins: $75.00 Each"]
[null,null,"- (New Construction) Walk-Ins only or (Retrofit) Replacement of EC motor: $15.00 Each",null,null,null,null,null,null,null,null,null,null,null,null,null,null,null,null,null,null,null,null,null,null,null,null,null,null,"Reach-In",null,null,"SP Motor"]
[null,null,"Eligibility Requirements: ",null,null,null,null,null,null,null,null,null,null,null,null,null,null,null,null,null,null,null,null,null,null,null,null,null,null,"Walk-In",null,null,"PSC Motor"]
[null,null,"1. Rebates are not simultaneously available for PMSM's where rebates have been paid on cases.",null,null,null,null,null,null,null,null,null,null,null,null,null,null,null,null,null,null,null,null,null,null,null,null,null,null,null,null,null,"EC Motor"]
[null,null,"2. Installations of PMSMs with existing or new Variable Frequency Drives (VFDs) are not eligible.",null,null,null,null,null,null,null,null,null,null,null,null,null,null,null,null,null,null,null,null,null,null,null,null,null,null,"Cooler","Med Temp",null,"Don't Know"]
[null,null,"3. (Retrofit) Replacements of existing Shaded Pole (SP), Permanent Split Capacitor (PSC), and walk-in Electronically Commutated (EC) motors are eligible.",null,null,null,null,null,null,null,null,null,null,null,null,null,null,null,null,null,null,null,null,null,null,null,null,null,null,"Freezer","Low Temp"]
[null,null,"2. (New Construction) Installations of PMSM's on Reach-In cases are not eligible."]
[null,null,"The following are required items that must be submitted along with the completed mechanical & more application:"]
[null,null,"1. Dated invoice/payment application."]
[null,null,"2. Manufacturer's equipment specification sheet documenting compliance with equipment eligibility."]
[null,null,"Manufacture/Model",null,null,null,null,null,"Refrigeration Application",null,null,null,"Temperature Application",null,null,null,"Existing Motor Type",null,null,null,"Quantity ",null,null,null,"Rebate",null,null,null,null,null,null,null,"List1","List2","List3","Size","Input1","Input2","Input3","Input4","Input5","Input6","Qty","Manuf","ModelNo","Notes"]
[null,null,null,null,null,null,null,null,null,null,null,null,null,null,null,null,null,null,null,null,null,null,null,null,null,null,null,null,null,{"$f":"COUNTA($C117:$AB117)>0","v":false},null,"     Refrigeration: Other","Permanent-Magnet Synchronous Motor",{"$f":"I117 & \" \" & VLOOKUP(M117,$AD$110:$AE$111,2,FALSE)","v":{"$error":"#N/A"}},{"$f":"Q117","v":0},null,null,null,null,null,null,null,{"$f":"U117","v":0},null,null,{"$f":"C117","v":0}]
[null,null,null,null,null,null,null,null,null,null,null,null,null,null,null,null,null,null,null,null,null,null,null,null,null,null,null,null,null,{"$f":"COUNTA($C118:$AB118)>0","v":false},null,"     Refrigeration: Other","Permanent-Magnet Synchronous Motor",{"$f":"I118 & \" \" & VLOOKUP(M118,$AD$110:$AE$111,2,FALSE)","v":{"$error":"#N/A"}},{"$f":"Q118","v":0},null,null,null,null,null,null,null,{"$f":"U118","v":0},null,null,{"$f":"C118","v":0}]
[null,null,null,null,null,null,null,null,null,null,null,null,null,null,null,null,null,null,null,null,null,null,null,null,null,null,null,null,null,{"$f":"COUNTA($C119:$AB119)>0","v":false},null,"     Refrigeration: Other","Permanent-Magnet Synchronous Motor",{"$f":"I119 & \" \" & VLOOKUP(M119,$AD$110:$AE$111,2,FALSE)","v":{"$error":"#N/A"}},{"$f":"Q119","v":0},null,null,null,null,null,null,null,{"$f":"U119","v":0},null,null,{"$f":"C119","v":0}]
[null,null,null,null,null,null,null,null,null,null,null,null,null,null,null,null,null,null,null,null,null,null,null,null,null,null,null,null,null,{"$f":"COUNTA($C120:$AB120)>0","v":false},null,"     Refrigeration: Other","Permanent-Magnet Synchronous Motor",{"$f":"I120 & \" \" & VLOOKUP(M120,$AD$110:$AE$111,2,FALSE)","v":{"$error":"#N/A"}},{"$f":"Q120","v":0},null,null,null,null,null,null,null,{"$f":"U120","v":0},null,null,{"$f":"C120","v":0}]
[null,null,null,null,null,null,null,null,null,null,null,null,null,null,null,null,null,null,null,null,null,null,null,null,null,null,null,null,null,{"$f":"COUNTA($C121:$AB121)>0","v":false},null,"     Refrigeration: Other","Permanent-Magnet Synchronous Motor",{"$f":"I121 & \" \" & VLOOKUP(M121,$AD$110:$AE$111,2,FALSE)","v":{"$error":"#N/A"}},{"$f":"Q121","v":0},null,null,null,null,null,null,null,{"$f":"U121","v":0},null,null,{"$f":"C121","v":0}]
[null,null,"High-Efficiency Freezer Doors"]
[null,null,"Rebate:  Low-Heat: $60.00 Each & No Heat: $100.00 Each"]
[null,null,"Eligibility Requirements: "]
[null,null,"1. Rebates are not simultaneously available for doors where rebates are paid for anti-sweat heating controls on the same door.",null,null,null,null,null,null,null,null,null,null,null,null,null,null,null,null,null,null,null,null,null,null,null,null,null,null,"Reach-In"]
[null,null,"2. Low-heat doors must use less than 132 Watts per door and no heat doors must use less than 52 Watts per door.",null,null,null,null,null,null,null,null,null,null,null,null,null,null,null,null,null,null,null,null,null,null,null,null,null,null,"Walk-In"]
[null,null,"3. Installations on coolers are not eligible."]
[null,null,"The following are required items that must be submitted along with the completed mechanical & more application:"]
[null,null,"1. Dated invoice/payment application."]
[null,null,"2. Manufacturer's equipment specification sheet documenting compliance with equipment eligibility."]
[null,null,"Manufacture/Model",null,null,null,null,null,null,null,null,null,"Refrigeration Application",null,null,null,null,null,"Energy Use (W/door)",null,null,"Quantity",null,null,"Rebate",null,null,null,null,null,null,null,"List1","List2","List3","Size","Input1","Input2","Input3","Input4","Input5","Input6","Qty","Manuf","ModelNo","Notes"]
[null,null,null,null,null,null,null,null,null,null,null,null,null,null,null,null,null,null,null,null,null,null,null,null,null,null,null,null,null,{"$f":"COUNTA($C132:$AB132)>0","v":false},null,"     Refrigeration: Other","Auto-Closer",{"$f":"M132","v":0},null,null,{"$f":"S132","v":0},null,null,null,null,null,{"$f":"V132","v":0},null,null,{"$f":"C132","v":0}]
[null,null,null,null,null,null,null,null,null,null,null,null,null,null,null,null,null,null,null,null,null,null,null,null,null,null,null,null,null,{"$f":"COUNTA($C133:$AB133)>0","v":false},null,"     Refrigeration: Other","Auto-Closer",{"$f":"M133","v":0},null,null,{"$f":"S133","v":0},null,null,null,null,null,{"$f":"V133","v":0},null,null,{"$f":"C133","v":0}]
[null,null,null,null,null,null,null,null,null,null,null,null,null,null,null,null,null,null,null,null,null,null,null,null,null,null,null,null,null,{"$f":"COUNTA($C134:$AB134)>0","v":false},null,"     Refrigeration: Other","Auto-Closer",{"$f":"M134","v":0},null,null,{"$f":"S134","v":0},null,null,null,null,null,{"$f":"V134","v":0},null,null,{"$f":"C134","v":0}]
[null,null,null,null,null,null,null,null,null,null,null,null,null,null,null,null,null,null,null,null,null,null,null,null,null,null,null,null,null,{"$f":"COUNTA($C135:$AB135)>0","v":false},null,"     Refrigeration: Other","Auto-Closer",{"$f":"M135","v":0},null,null,{"$f":"S135","v":0},null,null,null,null,null,{"$f":"V135","v":0},null,null,{"$f":"C135","v":0}]
[null,null,"Open Display Case Door Retrofit Kit"]
[null,null,"Rebate:  $55.00 per Linear Ft."]
[null,null,"Eligibility Requirements: "]
[null,null,"1. Rebates are not simultaneously available for doors  where rebates are paid for anti-sweat heating controls on the same door."]
[null,null,"2. (Retrofit) Replacements of existing doors are not eligible."]
[null,null,"3. (New Construction) Installations are not eligible."]
[null,null,"The following are required items that must be submitted along with the completed mechanical & more application:"]
[null,null,"1. Dated invoice/payment application."]
[null,null,"2. Documentation of the existing refrigeration schedules or photos showing the existing open display cases."]
[null,null,"3. Photos of the new low-energy doors added to the existing open display cases."]
[null,null,"Manufacture/Model",null,null,null,null,null,null,null,null,null,"Case Length (Linear Ft.)",null,null,null,null,null,null,null,"Quantity",null,null,null,"Rebate",null,null,null,null,null,null,null,"List1","List2","List3","Size","Input1","Input2","Input3","Input4","Input5","Input6","Qty","Manuf","ModelNo","Notes"]
[null,null,null,null,null,null,null,null,null,null,null,null,null,null,null,null,null,null,null,null,null,null,null,null,null,null,null,null,null,{"$f":"COUNTA($C147:$AB147)>0","v":false},null,"     Refrigeration: Other","Open Display Case Door Retrofit Kit",null,null,{"$f":"M147","v":0},null,null,null,null,null,null,{"$f":"U147","v":0},null,null,{"$f":"C147","v":0}]
[null,null,null,null,null,null,null,null,null,null,null,null,null,null,null,null,null,null,null,null,null,null,null,null,null,null,null,null,null,{"$f":"COUNTA($C148:$AB148)>0","v":false},null,"     Refrigeration: Other","Open Display Case Door Retrofit Kit",null,null,{"$f":"M148","v":0},null,null,null,null,null,null,{"$f":"U148","v":0},null,null,{"$f":"C148","v":0}]
[null,null,null,null,null,null,null,null,null,null,null,null,null,null,null,null,null,null,null,null,null,null,null,null,null,null,null,null,null,{"$f":"COUNTA($C149:$AB149)>0","v":false},null,"     Refrigeration: Other","Open Display Case Door Retrofit Kit",null,null,{"$f":"M149","v":0},null,null,null,null,null,null,{"$f":"U149","v":0},null,null,{"$f":"C149","v":0}]
[null,null,null,null,null,null,null,null,null,null,null,null,null,null,null,null,null,null,null,null,null,null,null,null,null,null,null,null,null,{"$f":"COUNTA($C150:$AB150)>0","v":false},null,"     Refrigeration: Other","Open Display Case Door Retrofit Kit",null,null,{"$f":"M150","v":0},null,null,null,null,null,null,{"$f":"U150","v":0},null,null,{"$f":"C150","v":0}]
[null,null,"Anti-Sweat Heater Control"]
[null,null,"Rebate:  $3.00 per Linear Ft."]
[null,null,"Eligibility Requirements: "]
[null,null,"1. Must sense humidity or condensation and adjust heater accordingly.",null,null,null,null,null,null,null,null,null,null,null,null,null,null,null,null,null,null,null,null,null,null,null,null,null,null,"Reach-in Cooler","Reach-In Med Temp"]
[null,null,"2. (New Construction) Installations are not eligible.",null,null,null,null,null,null,null,null,null,null,null,null,null,null,null,null,null,null,null,null,null,null,null,null,null,null,"Reach-in Freezer","Reach-In Low Temp"]
[null,null,"The following are required items that must be submitted along with the completed mechanical & more application:",null,null,null,null,null,null,null,null,null,null,null,null,null,null,null,null,null,null,null,null,null,null,null,null,null,null,"Walk-in Cooler","Walk-In Med Temp"]
[null,null,"1. Dated invoice/payment application.",null,null,null,null,null,null,null,null,null,null,null,null,null,null,null,null,null,null,null,null,null,null,null,null,null,null,"Walk-in Freezer","Walk-In Low Temp"]
[null,null,"2. Manufacturer's equipment specification sheet documenting compliance with equipment eligibility."]
[null,null,"Manufacture/Model",null,null,null,null,null,null,null,null,null,"Refrigeration Application",null,null,null,null,"Quantity",null,null,"Door Perimeter (Linear Ft.)",null,null,null,"Rebate",null,null,null,null,null,null,null,"List1","List2","List3","Size","Input1","Input2","Input3","Input4","Input5","Input6","Qty","Manuf","ModelNo","Notes"]
[null,null,null,null,null,null,null,null,null,null,null,null,null,null,null,null,null,null,null,null,null,null,null,null,null,null,null,null,null,{"$f":"COUNTA($C160:$AB160)>0","v":false},null,"     Refrigeration: Other","Anti-Sweat Heater Controls",{"$f":"VLOOKUP($M160,$AD$154:$AF$157,2,FALSE)","v":{"$error":"#N/A"}},null,{"$f":"U160","v":0},null,null,null,null,null,null,{"$f":"R160","v":0},null,null,{"$f":"C160","v":0}]
[null,null,null,null,null,null,null,null,null,null,null,null,null,null,null,null,null,null,null,null,null,null,null,null,null,null,null,null,null,{"$f":"COUNTA($C161:$AB161)>0","v":false},null,"     Refrigeration: Other","Anti-Sweat Heater Controls",{"$f":"VLOOKUP($M161,$AD$154:$AF$157,2,FALSE)","v":{"$error":"#N/A"}},null,{"$f":"U161","v":0},null,null,null,null,null,null,{"$f":"R161","v":0},null,null,{"$f":"C161","v":0}]
[null,null,null,null,null,null,null,null,null,null,null,null,null,null,null,null,null,null,null,null,null,null,null,null,null,null,null,null,null,{"$f":"COUNTA($C162:$AB162)>0","v":false},null,"     Refrigeration: Other","Anti-Sweat Heater Controls",{"$f":"VLOOKUP($M162,$AD$154:$AF$157,2,FALSE)","v":{"$error":"#N/A"}},null,{"$f":"U162","v":0},null,null,null,null,null,null,{"$f":"R162","v":0},null,null,{"$f":"C162","v":0}]
[null,null,"Floating Head Pressure Controls"]
[null,null,"Rebate:  $20.00 per Ton of Compressor Capacity",null,null,null,null,null,null,null,null,null,null,null,null,null,null,null,null,null,null,null,null,null,null,null,null,null,null,"Variable Speed Drive","VFD"]
[null,null,"Eligibility Requirements: ",null,null,null,null,null,null,null,null,null,null,null,null,null,null,null,null,null,null,null,null,null,null,null,null,null,null,"2 Speed Fan","Two-Stage"]
[null,null,"1. Must be installed on an evaporate condensers or active compressor capacity.",null,null,null,null,null,null,null,null,null,null,null,null,null,null,null,null,null,null,null,null,null,null,null,null,null,null,"Single Speed - Staging Control","Multi-Stage"]
[null,null,"2. Condenser system must have a VFD-controlled fan (separate rebate allowed) or staged fan.",null,null,null,null,null,null,null,null,null,null,null,null,null,null,null,null,null,null,null,null,null,null,null,null,null,null,"Single Speed - No Control","None"]
[null,null,"3. Must have a temperature differential (TD) ≤18 ºF and a minimum condensing temperature of 70 ºF or less."]
[null,null,"4. (New Construction) Installations are not eligible.",null,null,null,null,null,null,null,null,null,null,null,null,null,null,null,null,null,null,null,null,null,null,null,null,null,null,"Ammonia"]
[null,null,"The following are required items that must be submitted along with the completed mechanical & more application:",null,null,null,null,null,null,null,null,null,null,null,null,null,null,null,null,null,null,null,null,null,null,null,null,null,null,"Freon"]
[null,null,"1. Dated invoice/payment application."]
[null,null,"2. Manufacturer's equipment specification sheet documenting compliance with equipment eligibility."]
[null,null,"Manufacture/Model",null,null,null,null,"Capacity (Tons)",null,null,"Refrigerant Type",null,null,"Condenser Controls",null,null,null,"Condensing Temperature",null,null,"TD",null,"Qty",null,"Rebate",null,null,null,null,null,null,null,"List1","List2","List3","Size","Input1","Input2","Input3","Input4","Input5","Input6","Qty","Manuf","ModelNo","Notes"]
[null,null,null,null,null,null,null,null,null,null,null,null,null,null,null,null,null,null,null,null,null,null,null,null,null,null,null,null,null,{"$f":"COUNTA($C174:$AB174)>0","v":false},null,"     Refrigeration: Other","Floating Head-Pressure Controls",{"$f":"K174","v":0},{"$f":"VLOOKUP($N174,$AD$164:$AE$167,2,FALSE)","v":{"$error":"#N/A"}},{"$f":"H174","v":0},{"$f":"R174","v":0},{"$f":"U174","v":0},null,null,null,null,{"$f":"W174","v":0},null,null,{"$f":"C174","v":0}]
[null,null,null,null,null,null,null,null,null,null,null,null,null,null,null,null,null,null,null,null,null,null,null,null,null,null,null,null,null,{"$f":"COUNTA($C175:$AB175)>0","v":false},null,"     Refrigeration: Other","Floating Head-Pressure Controls",{"$f":"K175","v":0},{"$f":"VLOOKUP($N175,$AD$164:$AE$167,2,FALSE)","v":{"$error":"#N/A"}},{"$f":"H175","v":0},{"$f":"R175","v":0},{"$f":"U175","v":0},null,null,null,null,{"$f":"W175","v":0},null,null,{"$f":"C175","v":0}]
[null,null,"Refrigeration Occupancy Controls"]
[null,null,"Rebate:  Reach-In Cooler/Beverage Machine: $100.00 Per Machine & Snack Machine: $40.00 Per Machine"]
[null,null,"Eligibility Requirements: "]
[null,null,"1. Controls must turn off the refrigeration and lighting systems when the area is unoccupied for 15 minutes or more.",null,null,null,null,null,null,null,null,null,null,null,null,null,null,null,null,null,null,null,null,null,null,null,null,null,null,"Reach-In Cooler","Reach-In"]
[null,null,"2. Beverage machine and reach-in cooler controls may be set to cycle refrigeration every two hours to maintain product temperature. Customer must own the machine.",null,null,null,null,null,null,null,null,null,null,null,null,null,null,null,null,null,null,null,null,null,null,null,null,null,null,"Beverage Machine","Beverage Machine"]
[null,null,"3. (New Construction) Installations are not eligible.",null,null,null,null,null,null,null,null,null,null,null,null,null,null,null,null,null,null,null,null,null,null,null,null,null,null,"Snack Machine","Snack Machine"]
[null,null,"The following are required items that must be submitted along with the completed mechanical & more application:"]
[null,null,"1. Dated invoice/payment application."]
[null,null,"2. Manufacturer's equipment specification sheet documenting compliance with equipment eligibility."]
[null,null,"Manufacture/Model",null,null,null,null,null,null,null,null,null,"Refrigeration Application",null,null,null,null,null,null,null,"Quantity",null,null,null,"Rebate",null,null,null,null,null,null,null,"List1","List2","List3","Size","Input1","Input2","Input3","Input4","Input5","Input6","Qty","Manuf","ModelNo","Notes"]
[null,null,null,null,null,null,null,null,null,null,null,null,null,null,null,null,null,null,null,null,null,null,null,null,null,null,null,null,null,{"$f":"COUNTA($C186:$AB186)>0","v":false},null,"     Refrigeration: Other","Refrigerated Occupancy Controls",{"$f":"VLOOKUP($M186,$AD$179:$AE$181,2,FALSE)","v":{"$error":"#N/A"}},null,null,null,null,null,null,null,null,{"$f":"U186","v":0},null,null,{"$f":"C186","v":0}]
[null,null,null,null,null,null,null,null,null,null,null,null,null,null,null,null,null,null,null,null,null,null,null,null,null,null,null,null,null,{"$f":"COUNTA($C187:$AB187)>0","v":false},null,"     Refrigeration: Other","Refrigerated Occupancy Controls",{"$f":"VLOOKUP($M187,$AD$179:$AE$181,2,FALSE)","v":{"$error":"#N/A"}},null,null,null,null,null,null,null,null,{"$f":"U187","v":0},null,null,{"$f":"C187","v":0}]
[null,null,null,null,null,null,null,null,null,null,null,null,null,null,null,null,null,null,null,null,null,null,null,null,null,null,null,null,null,{"$f":"COUNTA($C188:$AB188)>0","v":false},null,"     Refrigeration: Other","Refrigerated Occupancy Controls",{"$f":"VLOOKUP($M188,$AD$179:$AE$181,2,FALSE)","v":{"$error":"#N/A"}},null,null,null,null,null,null,null,null,{"$f":"U188","v":0},null,null,{"$f":"C188","v":0}]
[null,null,null,null,null,null,null,null,null,null,null,null,null,null,null,null,null,null,null,null,null,null,null,null,null,null,null,null,null,{"$f":"COUNTA($C189:$AB189)>0","v":false},null,"     Refrigeration: Other","Refrigerated Occupancy Controls",{"$f":"VLOOKUP($M189,$AD$179:$AE$181,2,FALSE)","v":{"$error":"#N/A"}},null,null,null,null,null,null,null,null,{"$f":"U189","v":0},null,null,{"$f":"C189","v":0}]
[null,null,"High Efficiency Refrigeration Compressors"]
[null,null,"Rebate:  $80.00 per ton"]
[null,null,"Eligibility Requirements: ",null,null,null,null,null,null,null,null,null,null,null,null,null,null,null,null,null,null,null,null,null,null,null,null,null,null,"Beverage Merchandiser","Ref. Compressor: Bev. Merch"]
[null,null,"1. Rebates are only available for dedicated compressors for walk-in systems and self-contained refrigeration systems for reach-in systems.",null,null,null,null,null,null,null,null,null,null,null,null,null,null,null,null,null,null,null,null,null,null,null,null,null,null,"Food Service Equipment","Ref. Compressor: Food Service "]
[null,null,"2. Must meet or exceed a minimum efficiency shown in Table 6.",null,null,null,null,null,null,null,null,null,null,null,null,null,null,null,null,null,null,null,null,null,null,null,null,null,null,"Reach-in Cooler","Ref. Compressor: RI Cooler"]
[null,null,"3. (New Construction) Installations are not eligible.",null,null,null,null,null,null,null,null,null,null,null,null,null,null,null,null,null,null,null,null,null,null,null,null,null,null,"Reach-in Freezer","Ref. Compressor: RI Freezer"]
[null,null,"The following are required items that must be submitted along with the completed mechanical & more application:",null,null,null,null,null,null,null,null,null,null,null,null,null,null,null,null,null,null,null,null,null,null,null,null,null,null,"Walk-in Cooler","Ref. Compressor: WI Cooler"]
[null,null,"1. Dated invoice/payment application.",null,null,null,null,null,null,null,null,null,null,null,null,null,null,null,null,null,null,null,null,null,null,null,null,null,null,"Walk-in Freezer","Ref. Compressor: WI Freezer"]
[null,null,"2. Manufacturer's equipment specification sheet documenting unit efficiency."]
[null,null,"Manufacture/Model",null,null,null,null,null,null,"Compressor Application",null,null,null,null,null,"COP",null,null,"Capacity (Tons)",null,null,"Quantity",null,null,"Rebate",null,null,null,null,null,null,null,"List1","List2","List3","Size","Input1","Input2","Input3","Input4","Input5","Input6","Qty","Manuf","ModelNo","Notes"]
[null,null,null,null,null,null,null,null,null,null,null,null,null,null,null,null,null,null,null,null,null,null,null,null,null,null,null,null,null,{"$f":"COUNTA($C200:$AB200)>0","v":false},null,"     Refrigerated Compressor",{"$f":"VLOOKUP($J200,$AD$192:$AE$197,2,FALSE)","v":{"$error":"#N/A"}},null,null,{"$f":"S200","v":0},{"$f":"P200","v":0},null,null,null,null,null,{"$f":"V200","v":0},null,null,{"$f":"C200","v":0}]
[null,null,null,null,null,null,null,null,null,null,null,null,null,null,null,null,null,null,null,null,null,null,null,null,null,null,null,null,null,{"$f":"COUNTA($C201:$AB201)>0","v":false},null,"     Refrigerated Compressor",{"$f":"VLOOKUP($J201,$AD$192:$AE$197,2,FALSE)","v":{"$error":"#N/A"}},null,null,{"$f":"S201","v":0},{"$f":"P201","v":0},null,null,null,null,null,{"$f":"V201","v":0},null,null,{"$f":"C201","v":0}]
[null,null,null,null,null,null,null,null,null,null,null,null,null,null,null,null,null,null,null,null,null,null,null,null,null,null,null,null,null,{"$f":"COUNTA($C202:$AB202)>0","v":false},null,"     Refrigerated Compressor",{"$f":"VLOOKUP($J202,$AD$192:$AE$197,2,FALSE)","v":{"$error":"#N/A"}},null,null,{"$f":"S202","v":0},{"$f":"P202","v":0},null,null,null,null,null,{"$f":"V202","v":0},null,null,{"$f":"C202","v":0}]
[null,null,"Discus Compressors"]
[null,null,"Rebate:  $50.00 per Ton"]
[null,null,"Eligibility Requirements: "]
[null,null,"1. Must be a discus or disc-valve compressor."]
[null,null,"2. (New Construction) Installations are not eligible."]
[null,null,"The following are required items that must be submitted along with the completed mechanical & more application:"]
[null,null,"1. Dated invoice/payment application."]
[null,null,"2. Manufacturer's equipment specification sheet documenting unit efficiency."]
[null,null,"Manufacture/Model",null,null,null,null,null,null,null,null,null,null,null,"Capacity (Tons)",null,null,null,null,null,null,"Quantity",null,null,"Rebate",null,null,null,null,null,null,null,"List1","List2","List3","Size","Input1","Input2","Input3","Input4","Input5","Input6","Qty","Manuf","ModelNo","Notes"]
[null,null,null,null,null,null,null,null,null,null,null,null,null,null,null,null,null,null,null,null,null,null,null,null,null,null,null,null,null,{"$f":"COUNTA($C212:$AB212)>0","v":false},null,"     Refrigerated Compressor","Discus Compressor",null,null,{"$f":"O212","v":0},null,null,null,null,null,null,{"$f":"V212","v":0},null,null,{"$f":"C212","v":0}]
[null,null,null,null,null,null,null,null,null,null,null,null,null,null,null,null,null,null,null,null,null,null,null,null,null,null,null,null,null,{"$f":"COUNTA($C213:$AB213)>0","v":false},null,"     Refrigerated Compressor","Discus Compressor",null,null,{"$f":"O213","v":0},null,null,null,null,null,null,{"$f":"V213","v":0},null,null,{"$f":"C213","v":0}]
[null,null,null,null,null,null,null,null,null,null,null,null,null,null,null,null,null,null,null,null,null,null,null,null,null,null,null,null,null,{"$f":"COUNTA($C214:$AB214)>0","v":false},null,"     Refrigerated Compressor","Discus Compressor",null,null,{"$f":"O214","v":0},null,null,null,null,null,null,{"$f":"V214","v":0},null,null,{"$f":"C214","v":0}]
[null,null,"Evaporative Condenser"]
[null,null,"Rebate:  $70.00 per ton of Condenser"]
[null,null,"Eligibility Requirements: "]
[null,null,"1. Must have a VFD-controlled fan (separate rebate allowed).",null,null,null,null,null,null,null,null,null,null,null,null,null,null,null,null,null,null,null,null,null,null,null,null,null,null,"Yes"]
[null,null,"2. Must have a designed temperature differential (TD) ≤18 ºF and a minimum condensing temperature (CT) of 70 ºF or less.",null,null,null,null,null,null,null,null,null,null,null,null,null,null,null,null,null,null,null,null,null,null,null,null,null,null,"No"]
[null,null,"3. Must meet or exceed the minimum efficiency of 240 EER."]
[null,null,"4. Condenser must have floating head pressure control (no simultaneous rebate allowed).",null,null,null,null,null,null,null,null,null,null,null,null,null,null,null,null,null,null,null,null,null,null,null,null,null,null,"Ammonia"]
[null,null,"5. (New Construction) Installations are not eligible.",null,null,null,null,null,null,null,null,null,null,null,null,null,null,null,null,null,null,null,null,null,null,null,null,null,null,"Freon"]
[null,null,"The following are required items that must be submitted along with the completed mechanical & more application:",null,null,null,null,null,null,null,null,null,null,null,null,null,null,null,null,null,null,null,null,null,null,null,null,null,null,"None"]
[null,null,"1. Dated invoice/payment application."]
[null,null,"2. Manufacturer's equipment specification sheet documenting compliance with equipment eligibility."]
[null,null,"Manufacture/Model",null,null,null,null,null,"Capacity (Tons)",null,null,"CT",null,"TD",null,"EER",null,"VFD?",null,"Floating Head Pressure Controls?",null,null,"Qty",null,"Rebate",null,null,null,null,null,null,null,"List1","List2","List3","Size","Input1","Input2","Input3","Input4","Input5","Input6","Qty","Manuf","ModelNo","Notes"]
[null,null,null,null,null,null,null,null,null,null,null,null,null,null,null,null,null,null,null,null,null,null,null,null,null,null,null,null,null,{"$f":"COUNTA($C227:$AB227)>0","v":false},null,"     Refrigeration: Other","Evaporative Condenser",{"$f":"IF(T227<>\"None\",T227,$AD$221)","v":0},{"$f":"IF(AND(R227=\"Yes\",T227<>\"None\"),\"VFD+FHPC\",\"Other\")","v":"Other"},{"$f":"I227","v":0},{"$f":"L227","v":0},{"$f":"N227","v":0},{"$f":"P227","v":0},null,null,null,{"$f":"W227","v":0},null,null,{"$f":"C227","v":0}]
[null,null,null,null,null,null,null,null,null,null,null,null,null,null,null,null,null,null,null,null,null,null,null,null,null,null,null,null,null,{"$f":"COUNTA($C228:$AB228)>0","v":false},null,"     Refrigeration: Other","Evaporative Condenser",{"$f":"IF(T228<>\"None\",T228,$AD$221)","v":0},{"$f":"IF(AND(R228=\"Yes\",T228<>\"None\"),\"VFD+FHPC\",\"Other\")","v":"Other"},{"$f":"I228","v":0},{"$f":"L228","v":0},{"$f":"N228","v":0},{"$f":"P228","v":0},null,null,null,{"$f":"W228","v":0},null,null,{"$f":"C228","v":0}]
[null,null,"Refrigeration Condenser and Evaporator Fan VFDs"]
[null,null,"Rebate:  $125.00 per Horsepower (HP)"]
[null,null,"Eligibility Requirements: "]
[null,null,"1. VFDs must modulate fan speed on immediate needs of the system. VFDs used as soft-starts or as cycling on/off controls are not eligible.",null,null,null,null,null,null,null,null,null,null,null,null,null,null,null,null,null,null,null,null,null,null,null,null,null,null,"Refrig. Condenser Fan VFD","Condenser Fan"]
[null,null,"2. (Retrofit) Replacements of existing VFDs are not eligible.",null,null,null,null,null,null,null,null,null,null,null,null,null,null,null,null,null,null,null,null,null,null,null,null,null,null,"Refrig. Evaporator Fan VFD","Evaporator Fan"]
[null,null,"3. (New Construction) Installations are not eligible."]
[null,null,"The following are required items that must be submitted along with the completed mechanical & more application:"]
[null,null,"1. Dated invoice/payment application."]
[null,null,"2. Documentation of the serial numbers of the installed VFD's."]
[null,null,"Manufacture/Model",null,null,null,null,null,null,null,null,null,"VFD Application",null,null,null,null,null,null,"Motor HP",null,null,"Qty",null,"Rebate",null,null,null,null,null,null,null,"List1","List2","List3","Size","Input1","Input2","Input3","Input4","Input5","Input6","Qty","Manuf","ModelNo","Notes"]
[null,null,null,null,null,null,null,null,null,null,null,null,null,null,null,null,null,null,null,null,null,null,null,null,null,null,null,null,null,{"$f":"COUNTA($C239:$AB239)>0","v":false},null,"     Refrigeration: Other","Variable Frequency Drive",{"$f":"VLOOKUP($M239,$AD$232:$AE$233,2,FALSE)","v":{"$error":"#N/A"}},null,{"$f":"T239","v":0},null,null,null,null,null,null,{"$f":"W239","v":0},null,null,{"$f":"C239","v":0}]
[null,null,null,null,null,null,null,null,null,null,null,null,null,null,null,null,null,null,null,null,null,null,null,null,null,null,null,null,null,{"$f":"COUNTA($C240:$AB240)>0","v":false},null,"     Refrigeration: Other","Variable Frequency Drive",{"$f":"VLOOKUP($M240,$AD$232:$AE$233,2,FALSE)","v":{"$error":"#N/A"}},null,{"$f":"T240","v":0},null,null,null,null,null,null,{"$f":"W240","v":0},null,null,{"$f":"C240","v":0}]
[null,null,null,null,null,null,null,null,null,null,null,null,null,null,null,null,null,null,null,null,null,null,null,null,null,null,null,null,null,{"$f":"COUNTA($C241:$AB241)>0","v":false},null,"     Refrigeration: Other","Variable Frequency Drive",{"$f":"VLOOKUP($M241,$AD$232:$AE$233,2,FALSE)","v":{"$error":"#N/A"}},null,{"$f":"T241","v":0},null,null,null,null,null,null,{"$f":"W241","v":0},null,null,{"$f":"C241","v":0}]
[null,null,"Refrigerated Beverage Vending Machine"]
[null,null,"Rebate:  $130.00 Each"]
[null,null,"Eligibility Requirements: "]
[null,null,"1. The vending machine must be ENERGY STAR®-qualified.",null,null,null,null,null,null,null,null,null,null,null,null,null,null,null,null,null,null,null,null,null,null,null,null,null,null,"Yes"]
[null,null,"The following are required items that must be submitted along with the completed mechanical & more application:",null,null,null,null,null,null,null,null,null,null,null,null,null,null,null,null,null,null,null,null,null,null,null,null,null,null,"No"]
[null,null,"1. Dated invoice/payment application."]
[null,null,"2. Manufacturer's equipment specification sheet documenting compliance with equipment eligibility."]
[null,null,"Manufacture/Model",null,null,null,null,null,null,null,null,null,"Energy Star?",null,null,null,null,null,null,null,"Quantity",null,null,null,"Rebate",null,null,null,null,null,null,null,"List1","List2","List3","Size","Input1","Input2","Input3","Input4","Input5","Input6","Qty","Manuf","ModelNo","Notes"]
[null,null,null,null,null,null,null,null,null,null,null,null,null,null,null,null,null,null,null,null,null,null,null,null,null,null,null,null,null,{"$f":"COUNTA($C250:$AB250)>0","v":false},null,"     Refrigeration: Other","Refrigerated Beverage Vending Machine",null,null,null,null,null,null,null,null,null,{"$f":"IF(M250=\"Yes\",U250,0)","v":0},null,null,{"$f":"C250","v":0}]
[null,null,null,null,null,null,null,null,null,null,null,null,null,null,null,null,null,null,null,null,null,null,null,null,null,null,null,null,null,{"$f":"COUNTA($C251:$AB251)>0","v":false},null,"     Refrigeration: Other","Refrigerated Beverage Vending Machine",null,null,null,null,null,null,null,null,null,{"$f":"IF(M251=\"Yes\",U251,0)","v":0},null,null,{"$f":"C251","v":0}]
[null,null,null,null,null,null,null,null,null,null,null,null,null,null,null,null,null,null,null,null,null,null,null,null,null,null,null,null,null,{"$f":"COUNTA($C252:$AB252)>0","v":false},null,"     Refrigeration: Other","Refrigerated Beverage Vending Machine",null,null,null,null,null,null,null,null,null,{"$f":"IF(M252=\"Yes\",U252,0)","v":0},null,null,{"$f":"C252","v":0}]
[null,null,"Refrigeration Suction Pipe Insulation "]
[null,null,"Rebate:   Coolers & Freezers: $0.75 per Linear Ft."]
[null,null,"Eligibility Requirements: "]
[null,null,"1. Must insulate bare suction lines ≤1.625\" (diameter). Medium-Temperature lines require 0.75\" of flexible, closed- cell, nitrile rubber, or equivalent insulation.  Low-Temperature lines require 1.00\" of flexible, closed-cell, nitrile rubber, or equivalent insulation."]
[null,null,"2. Insulation R-Values must be ≥R-3.2 for Medium-Temperature lines and ≥R-4.3 for Low-Temperature lines."]
[null,null,"3. Outdoor installations must be protected from weather.",null,null,null,null,null,null,null,null,null,null,null,null,null,null,null,null,null,null,null,null,null,null,null,null,null,null,"Cooler","Med Temp"]
[null,null,"4. (New Construction) Installations are not eligible.",null,null,null,null,null,null,null,null,null,null,null,null,null,null,null,null,null,null,null,null,null,null,null,null,null,null,"Freezer","Low Temp"]
[null,null,"The following are required items that must be submitted along with the completed mechanical & more application:"]
[null,null,"1. Dated invoice/payment application."]
[null,null,"2. Manufacturer's equipment specification sheet documenting compliance with equipment eligibility."]
[null,null,"Manufacture/Model",null,null,null,null,null,"Temperature Application",null,null,null,null,"Insulation R-Value",null,null,null,"Pipe Diameter (in.)",null,null,null,"Perimeter (Ln. Ft.)",null,null,"Rebate",null,null,null,null,null,null,null,"List1","List2","List3","Size","Input1","Input2","Input3","Input4","Input5","Input6","Qty","Manuf","ModelNo","Notes"]
[null,null,null,null,null,null,null,null,null,null,null,null,null,null,null,null,null,null,null,null,null,null,null,null,null,null,null,null,null,{"$f":"COUNTA($C264:$AB264)>0","v":false},null,"     Refrigeration: Other","Refrigerated Suction Pipe Insulation",{"$f":"VLOOKUP($I264,$AD$258:$AE$259,2,FALSE)","v":{"$error":"#N/A"}},null,{"$f":"V264","v":0},{"$f":"N264","v":0},{"$f":"R264","v":0},null,null,null,null,1,null,null,{"$f":"C264","v":0}]
[null,null,null,null,null,null,null,null,null,null,null,null,null,null,null,null,null,null,null,null,null,null,null,null,null,null,null,null,null,{"$f":"COUNTA($C265:$AB265)>0","v":false},null,"     Refrigeration: Other","Refrigerated Suction Pipe Insulation",{"$f":"VLOOKUP($I265,$AD$258:$AE$259,2,FALSE)","v":{"$error":"#N/A"}},null,{"$f":"V265","v":0},{"$f":"N265","v":0},{"$f":"R265","v":0},null,null,null,null,1,null,null,{"$f":"C265","v":0}]
[null,null,null,null,null,null,null,null,null,null,null,null,null,null,null,null,null,null,null,null,null,null,null,null,null,null,null,null,null,{"$f":"COUNTA($C266:$AB266)>0","v":false},null,"     Refrigeration: Other","Refrigerated Suction Pipe Insulation",{"$f":"VLOOKUP($I266,$AD$258:$AE$259,2,FALSE)","v":{"$error":"#N/A"}},null,{"$f":"V266","v":0},{"$f":"N266","v":0},{"$f":"R266","v":0},null,null,null,null,1,null,null,{"$f":"C266","v":0}]
[null,null,"Ultra-Low Temperature Freezers"]
[null,null,"Rebate:  <25 Cubic Feet: $125.00 Each & ≥25 Cubic Feet: $175.00 Each"]
[null,null,"Eligibility Requirements: "]
[null,null,"1. Must be ENERGY STAR®-qualified. Must be designed to operate between -70 ⁰C and -80 ⁰C.",null,null,null,null,null,null,null,null,null,null,null,null,null,null,null,null,null,null,null,null,null,null,null,null,null,null,"Yes"]
[null,null,"2. Must use less than 0.42 kWh per cubic foot per day.",null,null,null,null,null,null,null,null,null,null,null,null,null,null,null,null,null,null,null,null,null,null,null,null,null,null,"No"]
[null,null,"3. Installations on industrial ultra-low temperature walk-in freezers are not eligible under the Standard program. Ultra-low temperature walk-ins may be eligible under the SRP Business Solutions Custom program with pre-approval."]
[null,null,"The following are required items that must be submitted along with the completed mechanical & more application:"]
[null,null,"1. Dated invoice/payment application."]
[null,null,"2. Manufacturer's equipment specification sheet documenting compliance with equipment eligibility."]
[null,null,"Manufacture/Model",null,null,null,null,null,null,"Energy Star?",null,null,null,"Size (Cu. Ft.)",null,null,null,"Energy Usage (kWh/day)",null,null,null,"Quantity",null,null,"Rebate",null,null,null,null,null,null,null,"List1","List2","List3","Size","Input1","Input2","Input3","Input4","Input5","Input6","Qty","Manuf","ModelNo","Notes"]
[null,null,null,null,null,null,null,null,null,null,null,null,null,null,null,null,null,null,null,null,null,null,null,null,null,null,null,null,null,{"$f":"COUNTA($C277:$AB277)>0","v":false},null,"     Refrigeration: Other","Ultra-Low Temperature Freezer",{"$f":"J277","v":0},null,{"$f":"N277","v":0},{"$f":"R277","v":0},null,null,null,null,null,{"$f":"V277","v":0},null,null,{"$f":"C277","v":0}]
[null,null,null,null,null,null,null,null,null,null,null,null,null,null,null,null,null,null,null,null,null,null,null,null,null,null,null,null,null,{"$f":"COUNTA($C278:$AB278)>0","v":false},null,"     Refrigeration: Other","Ultra-Low Temperature Freezer",{"$f":"J278","v":0},null,{"$f":"N278","v":0},{"$f":"R278","v":0},null,null,null,null,null,{"$f":"V278","v":0},null,null,{"$f":"C278","v":0}]
[null,null,null,null,null,null,null,null,null,null,null,null,null,null,null,null,null,null,null,null,null,null,null,null,null,null,null,null,null,{"$f":"COUNTA($C279:$AB279)>0","v":false},null,"     Refrigeration: Other","Ultra-Low Temperature Freezer",{"$f":"J279","v":0},null,{"$f":"N279","v":0},{"$f":"R279","v":0},null,null,null,null,null,{"$f":"V279","v":0},null,null,{"$f":"C279","v":0}]
["X"]

{"sheet":"Kitchen Equipment","index":9,"n_rows":151,"n_cols":44,"rows_kept":151,"cut":false,"hidden":true,"merged":[[71,2,71,11],[71,24,71,27],[72,2,72,11],[72,24,72,27],[69,18,69,23],[70,18,70,23],[71,18,71,23],[72,18,72,23],[69,12,69,17],[70,12,70,17],[71,12,71,17],[72,12,72,17],[67,2,67,27],[68,2,68,27],[69,2,69,11],[69,24,69,27],[70,2,70,11],[70,24,70,27],[61,2,61,26],[62,2,62,27],[65,2,65,27],[66,2,66,27],[63,2,63,27],[64,2,64,27],[144,2,144,27],[136,2,136,26],[146,24,146,27],[147,24,147,27],[148,24,148,27],[149,24,149,27],[146,21,146,23],[147,21,147,23],[148,21,148,23],[149,21,149,23],[147,2,147,7],[148,2,148,7],[149,2,149,7],[137,2,137,27],[138,2,138,27],[139,2,139,27],[140,2,140,27],[141,2,141,27],[142,2,142,27],[143,2,143,27],[145,2,145,27],[147,18,147,20],[148,18,148,20],[149,18,149,20],[146,13,146,17],[147,13,147,17],[148,13,148,17],[149,13,149,17],[146,8,146,12],[147,8,147,12],[148,8,148,12],[149,8,149,12],[146,18,146,20],[146,2,146,7],[0,29,0,43],[2,2,2,27],[3,2,3,27],[4,2,4,18],[4,19,4,23],[4,24,4,27],[11,2,11,27],[12,2,12,27],[13,2,13,13],[13,14,13,19],[13,20,13,23],[13,24,13,27],[5,2,5,26],[6,2,6,27],[7,2,7,27],[8,2,8,27],[9,2,9,27],[10,2,10,27],[16,2,16,13],[16,14,16,19],[16,20,16,23],[16,24,16,27],[17,2,17,26],[18,2,18,27],[14,2,14,13],[14,14,14,19],[14,20,14,23],[14,24,14,27],[15,2,15,13],[15,14,15,19],[15,20,15,23],[15,24,15,27],[19,2,19,27],[20,2,20,27],[22,2,22,27],[23,2,23,27],[24,2,24,27],[25,2,25,27],[21,2,21,27],[26,2,26,8],[27,2,27,8],[30,2,30,26],[31,2,31,27],[35,2,35,27],[36,2,36,27],[37,2,37,27],[38,2,38,27],[33,2,33,27],[34,2,34,27],[32,2,32,27],[42,2,42,11],[42,12,42,19],[42,20,42,23],[42,24,42,27],[43,2,43,11],[43,12,43,19],[43,20,43,23],[43,24,43,27],[39,2,39,27],[40,2,40,27],[41,2,41,11],[41,12,41,19],[41,20,41,23],[41,24,41,27],[59,24,59,27],[60,24,60,27],[56,2,56,27],[57,24,57,27],[58,24,58,27],[57,2,57,9],[58,2,58,9],[59,2,59,9],[60,2,60,9],[57,15,57,20],[58,15,58,20],[59,15,59,20],[57,21,57,23],[58,21,58,23],[59,21,59,23],[60,21,60,23],[82,2,82,27],[83,2,83,27],[84,2,84,10],[84,11,84,15],[84,16,84,19],[84,20,84,23],[84,24,84,27],[73,2,73,26],[74,2,74,27],[78,2,78,27],[79,2,79,27],[80,2,80,27],[81,2,81,27],[75,2,75,27],[76,2,76,27],[77,2,77,27],[85,2,85,10],[85,11,85,15],[85,16,85,19],[85,20,85,23],[85,24,85,27],[86,2,86,10],[86,11,86,15],[86,16,86,19],[86,20,86,23],[86,24,86,27],[88,2,88,26],[89,2,89,27],[90,2,90,27],[91,2,91,27],[92,2,92,27],[93,2,93,27],[87,2,87,10],[87,11,87,15],[87,16,87,19],[87,20,87,23],[87,24,87,27],[97,24,97,27],[98,2,98,11],[98,12,98,19],[98,20,98,23],[98,24,98,27],[94,2,94,27],[95,2,95,27],[96,2,96,11],[96,12,96,19],[96,20,96,23],[96,24,96,27],[108,24,108,27],[109,24,109,27],[108,21,108,23],[109,21,109,23],[108,17,108,20],[109,17,109,20],[108,12,108,16],[109,12,109,16],[108,8,108,11],[109,8,109,11],[110,24,110,27],[111,24,111,27],[110,21,110,23],[111,21,111,23],[110,17,110,20],[111,17,111,20],[110,12,110,16],[111,12,111,16],[110,8,110,11],[111,8,111,11],[118,2,118,27],[119,2,119,27],[120,24,120,27],[112,2,112,26],[113,2,113,27],[114,2,114,27],[115,2,115,27],[116,2,116,27],[117,2,117,27],[120,21,120,23],[120,17,120,20],[120,2,120,7],[120,12,120,16],[120,8,120,11],[121,24,121,27],[122,24,122,27],[121,21,121,23],[122,21,122,23],[121,17,121,20],[122,17,122,20],[121,2,121,7],[122,2,122,7],[121,12,121,16],[122,12,122,16],[121,8,121,11],[122,8,122,11],[125,2,125,27],[126,2,126,27],[127,2,127,27],[128,2,128,27],[129,2,129,27],[130,2,130,27],[132,13,132,15],[132,8,132,12],[123,24,123,27],[124,2,124,26],[132,2,132,7],[123,21,123,23],[123,17,123,20],[123,2,123,7],[123,12,123,16],[123,8,123,11],[133,13,133,15],[134,13,134,15],[135,13,135,15],[133,8,133,12],[134,8,134,12],[135,8,135,12],[131,2,131,27],[132,16,132,19],[132,20,132,23],[132,24,132,27],[135,16,135,19],[135,20,135,23],[135,24,135,27],[133,16,133,19],[133,20,133,23],[133,24,133,27],[134,16,134,19],[134,20,134,23],[134,24,134,27],[133,2,133,7],[134,2,134,7],[135,2,135,7],[28,24,28,27],[29,24,29,27],[26,21,26,23],[27,21,27,23],[28,21,28,23],[29,21,29,23],[26,13,26,16],[27,13,27,16],[28,13,28,16],[29,13,29,16],[26,24,26,27],[27,24,27,27],[28,2,28,8],[29,2,29,8],[26,9,26,12],[27,9,27,12],[28,9,28,12],[29,9,29,12],[26,17,26,20],[27,17,27,20],[28,17,28,20],[29,17,29,20],[50,2,50,27],[51,2,51,27],[52,2,52,27],[53,2,53,27],[54,2,54,27],[55,2,55,27],[44,2,44,11],[44,12,44,19],[44,20,44,23],[44,24,44,27],[45,2,45,26],[46,2,46,27],[47,2,47,27],[48,2,48,27],[49,2,49,27],[108,2,108,7],[109,2,109,7],[110,2,110,7],[111,2,111,7],[60,15,60,20],[57,10,57,14],[58,10,58,14],[59,10,59,14],[60,10,60,14],[102,2,102,27],[103,2,103,27],[104,2,104,27],[105,2,105,27],[106,2,106,27],[107,2,107,27],[99,2,99,11],[99,12,99,19],[99,20,99,23],[99,24,99,27],[100,2,100,26],[101,2,101,27],[97,2,97,11],[97,12,97,19],[97,20,97,23]]}
[null,null,null,null,null,null,null,null,null,null,null,null,null,null,null,null,null,null,null,null,null,null,null,null,null,null,null,null,null,"Hide"]
[]
[null,null,"Kitchen Equipment"]
[null,null,"Instructions: Please select the measures you wish to apply for and complete the fields below for each selected measure. Highlighted fields are required in order for the application to be considered 'Complete'."]
[null,null,"Select Measures:"]
[null,null,"ENERGY STAR Griddle"]
[null,null,"Rebate:  $225.00 Each",null,null,null,null,null,null,null,null,null,null,null,null,null,null,null,null,null,null,null,null,null,null,null,null,null,null,"Gas"]
[null,null,"Eligibility Requirements: ",null,null,null,null,null,null,null,null,null,null,null,null,null,null,null,null,null,null,null,null,null,null,null,null,null,null,"Electric"]
[null,null,"1. The griddle must be ENERGY STAR®-qualified."]
[null,null,"2. (Retrofit) Used or rebuilt equipment is not eligible."]
[null,null,"The following are required items that must be submitted along with the completed mechanical & more application:"]
[null,null,"1. Dated invoice/payment application."]
[null,null,"2. Manufacturer's equipment specification sheet documenting compliance with equipment eligibility."]
[null,null,"Manufacture/Model",null,null,null,null,null,null,null,null,null,null,null,"Replaced Fuel Type\n(Retrofit Only)",null,null,null,null,null,"Quantity",null,null,null,"Rebate",null,null,null,null,null,null,null,"List1","List2","List3","Size","Input1","Input2","Input3","Input4","Input5","Input6","Qty","Notes"]
[null,null,null,null,null,null,null,null,null,null,null,null,null,null,null,null,null,null,null,null,null,null,null,null,null,null,null,null,null,{"$f":"COUNTA($C15:$AB15)>0","v":false},null,"     Kitchen Equipment: All","ENERGY STAR Griddle",{"$f":"IF(ProjectType=\"New Construction\",\"\",O15)","v":0},null,null,null,null,null,null,null,null,{"$f":"U15","v":0},{"$f":"C15","v":0}]
[null,null,null,null,null,null,null,null,null,null,null,null,null,null,null,null,null,null,null,null,null,null,null,null,null,null,null,null,null,{"$f":"COUNTA($C16:$AB16)>0","v":false},null,"     Kitchen Equipment: All","ENERGY STAR Griddle",{"$f":"IF(ProjectType=\"New Construction\",\"\",O16)","v":0},null,null,null,null,null,null,null,null,{"$f":"U16","v":0},{"$f":"C16","v":0}]
[null,null,null,null,null,null,null,null,null,null,null,null,null,null,null,null,null,null,null,null,null,null,null,null,null,null,null,null,null,{"$f":"COUNTA($C17:$AB17)>0","v":false},null,"     Kitchen Equipment: All","ENERGY STAR Griddle",{"$f":"IF(ProjectType=\"New Construction\",\"\",O17)","v":0},null,null,null,null,null,null,null,null,{"$f":"U17","v":0},{"$f":"C17","v":0}]
[null,null,"ENERGY STAR Electric Steam Cooker"]
[null,null,"Rebate:  $250.00 Each",null,null,null,null,null,null,null,null,null,null,null,null,null,null,null,null,null,null,null,null,null,null,null,null,null,null,"Gas"]
[null,null,"Eligibility Requirements: ",null,null,null,null,null,null,null,null,null,null,null,null,null,null,null,null,null,null,null,null,null,null,null,null,null,null,"Electric"]
[null,null,"1. Must be ENERGY STAR®-qualified with a minimum cooking efficiency of 50 percent for all size units."]
[null,null,"2. Must have at least 3 pans."]
[null,null,"3. (Retrofit) Used or rebuilt equipment is not eligible."]
[null,null,"The following are required items that must be submitted along with the completed mechanical & more application:"]
[null,null,"1. Dated invoice/payment application."]
[null,null,"2. Manufacturer's equipment specification sheet documenting compliance with equipment eligibility."]
[null,null,"Manufacture/Model",null,null,null,null,null,null,"Size (Pans)",null,null,null,"Cooking Efficiency (CE)",null,null,null,"Repl. Fuel Type\n(Retrofit)",null,null,null,"Quantity",null,null,"Rebate",null,null,null,null,null,null,null,"List1","List2","List3","Size","Input1","Input2","Input3","Input4","Input5","Input6","Qty","Notes"]
[null,null,null,null,null,null,null,null,null,null,null,null,null,null,null,null,null,null,null,null,null,null,null,null,null,null,null,null,null,{"$f":"COUNTA($C28:$AB28)>0","v":false},null,"     Kitchen Equipment: All","ENERGY STAR Electric Steam Cooker",{"$f":"IF(ProjectType=\"New Construction\",\"\",R28)","v":0},null,{"$f":"J28","v":0},{"$f":"N28","v":0},null,null,null,null,null,{"$f":"V28","v":0},{"$f":"C28","v":0}]
[null,null,null,null,null,null,null,null,null,null,null,null,null,null,null,null,null,null,null,null,null,null,null,null,null,null,null,null,null,{"$f":"COUNTA($C29:$AB29)>0","v":false},null,"     Kitchen Equipment: All","ENERGY STAR Electric Steam Cooker",{"$f":"IF(ProjectType=\"New Construction\",\"\",R29)","v":0},null,{"$f":"J29","v":0},{"$f":"N29","v":0},null,null,null,null,null,{"$f":"V29","v":0},{"$f":"C29","v":0}]
[null,null,null,null,null,null,null,null,null,null,null,null,null,null,null,null,null,null,null,null,null,null,null,null,null,null,null,null,null,{"$f":"COUNTA($C30:$AB30)>0","v":false},null,"     Kitchen Equipment: All","ENERGY STAR Electric Steam Cooker",{"$f":"IF(ProjectType=\"New Construction\",\"\",R30)","v":0},null,{"$f":"J30","v":0},{"$f":"N30","v":0},null,null,null,null,null,{"$f":"V30","v":0},{"$f":"C30","v":0}]
[null,null,"ENERGY STAR Dishwasher"]
[null,null,"Rebate:"]
[null,null,"- Under Counter: $200.00 Each"]
[null,null,"- Single Tank: $600.00 Each"]
[null,null,"- Multi Tank: $800.00 Each"]
[null,null,"Eligibility Requirements: "]
[null,null,"1. This measure applies to ENERGY STAR® high and low temp under-counter single-tank door type, single-tank conveyor, and multiple-tank conveyor dishwashers installed in a commercial kitchen.",null,null,null,null,null,null,null,null,null,null,null,null,null,null,null,null,null,null,null,null,null,null,null,null,null,null,"Under-Counter","Gas"]
[null,null,"2. Must utilize electric water heating for water supply.",null,null,null,null,null,null,null,null,null,null,null,null,null,null,null,null,null,null,null,null,null,null,null,null,null,null,"Single-Tank","Electric"]
[null,null,"The following are required items that must be submitted along with the completed mechanical & more application:",null,null,null,null,null,null,null,null,null,null,null,null,null,null,null,null,null,null,null,null,null,null,null,null,null,null,"Multi-Tank"]
[null,null,"1. Dated invoice/payment application."]
[null,null,"2. Manufacturer's equipment specification sheet documenting compliance with equipment eligibility."]
[null,null,"Manufacture/Model",null,null,null,null,null,null,null,null,null,"Equipment Type",null,null,null,null,null,null,null,"Quantity",null,null,null,"Rebate",null,null,null,null,null,null,null,"List1","List2","List3","Size","Input1","Input2","Input3","Input4","Input5","Input6","Qty","Notes"]
[null,null,null,null,null,null,null,null,null,null,null,null,null,null,null,null,null,null,null,null,null,null,null,null,null,null,null,null,null,{"$f":"COUNTA($C43:$AB43)>0","v":false},null,"     Kitchen Equipment: All","ENERGY STAR Dishwasher",{"$f":"M43","v":0},null,{"$f":"U43","v":0},null,null,null,null,null,null,{"$f":"U43","v":0},{"$f":"C43","v":0}]
[null,null,null,null,null,null,null,null,null,null,null,null,null,null,null,null,null,null,null,null,null,null,null,null,null,null,null,null,null,{"$f":"COUNTA($C44:$AB44)>0","v":false},null,"     Kitchen Equipment: All","ENERGY STAR Dishwasher",{"$f":"M44","v":0},null,{"$f":"U44","v":0},null,null,null,null,null,null,{"$f":"U44","v":0},{"$f":"C44","v":0}]
[null,null,null,null,null,null,null,null,null,null,null,null,null,null,null,null,null,null,null,null,null,null,null,null,null,null,null,null,null,{"$f":"COUNTA($C45:$AB45)>0","v":false},null,"     Kitchen Equipment: All","ENERGY STAR Dishwasher",{"$f":"M45","v":0},null,{"$f":"U45","v":0},null,null,null,null,null,null,{"$f":"U45","v":0},{"$f":"C45","v":0}]
[null,null,"ENERGY STAR Hot Food Holding Cabinet"]
[null,null,"Rebate:"]
[null,null,"- 1/2 Size: $225.00 Each"]
[null,null,"- 3/4 Size: $350.00 Each"]
[null,null,"- Full Size: $700.00 Each"]
[null,null,"Eligibility Requirements: ",null,null,null,null,null,null,null,null,null,null,null,null,null,null,null,null,null,null,null,null,null,null,null,null,null,null,"1/2 Size","Gas"]
[null,null,"1. Must meet ENERGY STAR® Version 2.0 Hot Food Holding Cabinet (HFHC) specification. ",null,null,null,null,null,null,null,null,null,null,null,null,null,null,null,null,null,null,null,null,null,null,null,null,null,null,"3/4 Size","Electric"]
[null,null,"2. Cook-and-hold equipment is not eligible.",null,null,null,null,null,null,null,null,null,null,null,null,null,null,null,null,null,null,null,null,null,null,null,null,null,null,"Full Size"]
[null,null,"3. (Retrofit) Used or rebuilt equipment is not eligible."]
[null,null,"The following are required items that must be submitted along with the completed mechanical & more application:"]
[null,null,"1. Dated invoice/payment application."]
[null,null,"2. Manufacturer's equipment specification sheet documenting compliance with equipment eligibility."]
[null,null,"Manufacture/Model",null,null,null,null,null,null,null,"Equipment Type",null,null,null,null,"Replaced Fuel Type\n(Retrofit only)",null,null,null,null,null,"Quantity",null,null,"Rebate",null,null,null,null,null,null,null,"List1","List2","List3","Size","Input1","Input2","Input3","Input4","Input5","Input6","Qty","Notes"]
[null,null,null,null,null,null,null,null,null,null,null,null,null,null,null,null,null,null,null,null,null,null,null,null,null,null,null,null,null,{"$f":"COUNTA($C59:$AB59)>0","v":false},null,"     Kitchen Equipment: All","ENERGY STAR Hot Food Holding Cabinet",{"$f":"K59","v":0},{"$f":"IF(ProjectType=\"New Construction\",\"\",P59)","v":0},null,null,null,null,null,null,null,{"$f":"V59","v":0},{"$f":"C59","v":0}]
[null,null,null,null,null,null,null,null,null,null,null,null,null,null,null,null,null,null,null,null,null,null,null,null,null,null,null,null,null,{"$f":"COUNTA($C60:$AB60)>0","v":false},null,"     Kitchen Equipment: All","ENERGY STAR Hot Food Holding Cabinet",{"$f":"K60","v":0},{"$f":"IF(ProjectType=\"New Construction\",\"\",P60)","v":0},null,null,null,null,null,null,null,{"$f":"V60","v":0},{"$f":"C60","v":0}]
[null,null,null,null,null,null,null,null,null,null,null,null,null,null,null,null,null,null,null,null,null,null,null,null,null,null,null,null,null,{"$f":"COUNTA($C61:$AB61)>0","v":false},null,"     Kitchen Equipment: All","ENERGY STAR Hot Food Holding Cabinet",{"$f":"K61","v":0},{"$f":"IF(ProjectType=\"New Construction\",\"\",P61)","v":0},null,null,null,null,null,null,null,{"$f":"V61","v":0},{"$f":"C61","v":0}]
[null,null,"Hot Food Holding Cabinet Gaskets"]
[null,null,"Rebate: $2.50 per Linear Ft."]
[null,null,"Eligibility Requirements: ",null,null,null,null,null,null,null,null,null,null,null,null,null,null,null,null,null,null,null,null,null,null,null,null,null,null,"Electric"]
[null,null,"1. Must be installed on an electric hot food-holding cabinet.",null,null,null,null,null,null,null,null,null,null,null,null,null,null,null,null,null,null,null,null,null,null,null,null,null,null,"Gas"]
[null,null,"2. (Retrofit) Replacements of existing gaskets are not eligible without SRP's prior approval within 3 years unless prior SRP rebates for existing gaskets have been received >3 years.",null,null,null,null,null,null,null,null,null,null,null,null,null,null,null,null,null,null,null,null,null,null,null,null,null,null,"Other"]
[null,null,"3. (New Construction) Installations are not eligible.",null,null,null,null,null,null,null,null,null,null,null,null,null,null,null,null,null,null,null,null,null,null,null,null,null,null,"Don't Know"]
[null,null,"The following are required items that must be submitted along with the completed mechanical & more application:"]
[null,null,"1. Dated invoice/payment application."]
[null,null,"Manufacture/Model",null,null,null,null,null,null,null,null,null,"Equipment Type",null,null,null,null,null,"Door Perimeter (Ln. Ft.)",null,null,null,null,null,"Rebate",null,null,null,null,null,null,null,"List1","List2","List3","Size","Input1","Input2","Input3","Input4","Input5","Input6","Qty","Notes"]
[null,null,null,null,null,null,null,null,null,null,null,null,null,null,null,null,null,null,null,null,null,null,null,null,null,null,null,null,null,{"$f":"COUNTA($C71:$AB71)>0","v":false},null,"     Kitchen Equipment: All","Hot Food Holding Cabinet Gaskets",null,null,{"$f":"S71","v":0},null,null,null,null,null,null,1,{"$f":"C71","v":0}]
[null,null,null,null,null,null,null,null,null,null,null,null,null,null,null,null,null,null,null,null,null,null,null,null,null,null,null,null,null,{"$f":"COUNTA($C72:$AB72)>0","v":false},null,"     Kitchen Equipment: All","Hot Food Holding Cabinet Gaskets",null,null,{"$f":"S72","v":0},null,null,null,null,null,null,1,{"$f":"C72","v":0}]
[null,null,null,null,null,null,null,null,null,null,null,null,null,null,null,null,null,null,null,null,null,null,null,null,null,null,null,null,null,{"$f":"COUNTA($C73:$AB73)>0","v":false},null,"     Kitchen Equipment: All","Hot Food Holding Cabinet Gaskets",null,null,{"$f":"S73","v":0},null,null,null,null,null,null,1,{"$f":"C73","v":0}]
[null,null,"ENERGY STAR Ice Maker"]
[null,null,"Rebate:"]
[null,null,"- 100-500 lb./day: $50.00 Each"]
[null,null,"- 501-1500 lb./day: $150.00 Each"]
[null,null,"- >1500 lb./day: $215.00 Each"]
[null,null,"Eligibility Requirements: "]
[null,null,"1. Only air-cooled, cube-type machines including ice-making head, self-contained and remote-condensing units, qualify. This measure excludes flake and nugget-type ice machines.",null,null,null,null,null,null,null,null,null,null,null,null,null,null,null,null,null,null,null,null,null,null,null,null,null,null,"Ice-Making Head"]
[null,null,"2. The ice maker must be ENERGY STAR®-qualified.",null,null,null,null,null,null,null,null,null,null,null,null,null,null,null,null,null,null,null,null,null,null,null,null,null,null,"Remote-Condensing Unit"]
[null,null,"The following are required items that must be submitted along with the completed mechanical & more application:",null,null,null,null,null,null,null,null,null,null,null,null,null,null,null,null,null,null,null,null,null,null,null,null,null,null,"Self-Contained Unit"]
[null,null,"1. Dated invoice/payment application"]
[null,null,"2. Manufacturer's equipment specification sheet documenting compliance with equipment eligibility."]
[null,null,"Manufacture/Model",null,null,null,null,null,null,null,null,"Equipment Type",null,null,null,null,"Ice Produced (lb./day)",null,null,null,"Quantity",null,null,null,"Rebate",null,null,null,null,null,null,null,"List1","List2","List3","Size","Input1","Input2","Input3","Input4","Input5","Input6","Qty","Notes"]
[null,null,null,null,null,null,null,null,null,null,null,null,null,null,null,null,null,null,null,null,null,null,null,null,null,null,null,null,null,{"$f":"COUNTA($C86:$AB86)>0","v":false},null,"     Kitchen Equipment: All","ENERGY STAR Ice Maker",{"$f":"L86","v":0},null,{"$f":"Q86","v":0},null,null,null,null,null,null,{"$f":"U86","v":0},{"$f":"C86","v":0}]
[null,null,null,null,null,null,null,null,null,null,null,null,null,null,null,null,null,null,null,null,null,null,null,null,null,null,null,null,null,{"$f":"COUNTA($C87:$AB87)>0","v":false},null,"     Kitchen Equipment: All","ENERGY STAR Ice Maker",{"$f":"L87","v":0},null,{"$f":"Q87","v":0},null,null,null,null,null,null,{"$f":"U87","v":0},{"$f":"C87","v":0}]
[null,null,null,null,null,null,null,null,null,null,null,null,null,null,null,null,null,null,null,null,null,null,null,null,null,null,null,null,null,{"$f":"COUNTA($C88:$AB88)>0","v":false},null,"     Kitchen Equipment: All","ENERGY STAR Ice Maker",{"$f":"L88","v":0},null,{"$f":"Q88","v":0},null,null,null,null,null,null,{"$f":"U88","v":0},{"$f":"C88","v":0}]
[null,null,"ENERGY STAR Electric Convection Oven"]
[null,null,"Rebate:  $175.00 Each"]
[null,null,"Eligibility Requirements: "]
[null,null,"1. Must meet ENERGY STAR Version 2.0 Convection Oven specification.",null,null,null,null,null,null,null,null,null,null,null,null,null,null,null,null,null,null,null,null,null,null,null,null,null,null,"Gas"]
[null,null,"2. (Retrofit) Used or rebuilt equipment is not eligible.",null,null,null,null,null,null,null,null,null,null,null,null,null,null,null,null,null,null,null,null,null,null,null,null,null,null,"Electric"]
[null,null,"The following are required items that must be submitted along with the completed mechanical & more application:"]
[null,null,"1. Dated invoice/payment application."]
[null,null,"2. Manufacturer's equipment specification sheet documenting compliance with equipment eligibility."]
[null,null,"Manufacture/Model",null,null,null,null,null,null,null,null,null,"Replaced Fuel Type\n(Retrofit Only)",null,null,null,null,null,null,null,"Quantity",null,null,null,"Rebate",null,null,null,null,null,null,null,"List1","List2","List3","Size","Input1","Input2","Input3","Input4","Input5","Input6","Qty","Notes"]
[null,null,null,null,null,null,null,null,null,null,null,null,null,null,null,null,null,null,null,null,null,null,null,null,null,null,null,null,null,{"$f":"COUNTA($C98:$AB98)>0","v":false},null,"     Kitchen Equipment: All","ENERGY STAR Electric Convection Oven",{"$f":"IF(ProjectType=\"New Construction\",\"\",M98)","v":0},null,null,null,null,null,null,null,null,{"$f":"IF(OR(M98=\"Electric Convection Oven\",M98=\"None\"),U98,0)","v":0},{"$f":"C98","v":0}]
[null,null,null,null,null,null,null,null,null,null,null,null,null,null,null,null,null,null,null,null,null,null,null,null,null,null,null,null,null,{"$f":"COUNTA($C99:$AB99)>0","v":false},null,"     Kitchen Equipment: All","ENERGY STAR Electric Convection Oven",{"$f":"IF(ProjectType=\"New Construction\",\"\",M99)","v":0},null,null,null,null,null,null,null,null,{"$f":"IF(OR(M99=\"Electric Convection Oven\",M99=\"None\"),U99,0)","v":0},{"$f":"C99","v":0}]
[null,null,null,null,null,null,null,null,null,null,null,null,null,null,null,null,null,null,null,null,null,null,null,null,null,null,null,null,null,{"$f":"COUNTA($C100:$AB100)>0","v":false},null,"     Kitchen Equipment: All","ENERGY STAR Electric Convection Oven",{"$f":"IF(ProjectType=\"New Construction\",\"\",M100)","v":0},null,null,null,null,null,null,null,null,{"$f":"IF(OR(M100=\"Electric Convection Oven\",M100=\"None\"),U100,0)","v":0},{"$f":"C100","v":0}]
[null,null,"ENERGY STAR Electric Vat Fryer"]
[null,null,"Rebate:  Standard: $250.00 Each & Large: $150.00 Each",null,null,null,null,null,null,null,null,null,null,null,null,null,null,null,null,null,null,null,null,null,null,null,null,null,null,"Standard","Gas"]
[null,null,"Eligibility Requirements: ",null,null,null,null,null,null,null,null,null,null,null,null,null,null,null,null,null,null,null,null,null,null,null,null,null,null,"Large","Electric"]
[null,null,"1. Must be ENERGY STAR-qualified with a minimum cooking efficiency of 80 percent for all size units."]
[null,null,"2. (Retrofit) Used or rebuilt equipment is not eligible."]
[null,null,"The following are required items that must be submitted along with the completed mechanical & more application:"]
[null,null,"1. Dated invoice/payment application."]
[null,null,"2. Manufacturer's equipment specification sheet documenting compliance with equipment eligibility."]
[null,null,"Manufacture/Model",null,null,null,null,null,"Equipment Type",null,null,null,"Replaced Fuel Type\n(Retrofit Only)",null,null,null,null,"Cooking Efficiency (CE)",null,null,null,"Quantity",null,null,"Rebate",null,null,null,null,null,null,null,"List1","List2","List3","Size","Input1","Input2","Input3","Input4","Input5","Input6","Qty","Notes"]
[null,null,null,null,null,null,null,null,null,null,null,null,null,null,null,null,null,null,null,null,null,null,null,null,null,null,null,null,null,{"$f":"COUNTA($C110:$AB110)>0","v":false},null,"     Kitchen Equipment: All","ENERGY STAR Electric Vat Fryer",{"$f":"I110","v":0},{"$f":"IF(ProjectType=\"New Construction\",\"\",M110)","v":0},null,{"$f":"R110","v":0},null,null,null,null,null,{"$f":"V110","v":0},{"$f":"C110","v":0}]
[null,null,null,null,null,null,null,null,null,null,null,null,null,null,null,null,null,null,null,null,null,null,null,null,null,null,null,null,null,{"$f":"COUNTA($C111:$AB111)>0","v":false},null,"     Kitchen Equipment: All","ENERGY STAR Electric Vat Fryer",{"$f":"I111","v":0},{"$f":"IF(ProjectType=\"New Construction\",\"\",M111)","v":0},null,{"$f":"R111","v":0},null,null,null,null,null,{"$f":"V111","v":0},{"$f":"C111","v":0}]
[null,null,null,null,null,null,null,null,null,null,null,null,null,null,null,null,null,null,null,null,null,null,null,null,null,null,null,null,null,{"$f":"COUNTA($C112:$AB112)>0","v":false},null,"     Kitchen Equipment: All","ENERGY STAR Electric Vat Fryer",{"$f":"I112","v":0},{"$f":"IF(ProjectType=\"New Construction\",\"\",M112)","v":0},null,{"$f":"R112","v":0},null,null,null,null,null,{"$f":"V112","v":0},{"$f":"C112","v":0}]
[null,null,"Electric Combination Oven"]
[null,null,"Rebate:  <15 Pans: $550.00 Each & ≥15 Pans: $1,000 Each"]
[null,null,"Eligibility Requirements: "]
[null,null,"1. Must meet or exceed heavy load cooking efficiency of 60 percent utilizing ASTM Standard F2861.",null,null,null,null,null,null,null,null,null,null,null,null,null,null,null,null,null,null,null,null,null,null,null,null,null,null,"<15 Pans","Gas"]
[null,null,"2. (Retrofit) Used or rebuilt equipment is not eligible.",null,null,null,null,null,null,null,null,null,null,null,null,null,null,null,null,null,null,null,null,null,null,null,null,null,null,"15+ Pans","Electric"]
[null,null,"The following are required items that must be submitted along with the completed mechanical & more application:"]
[null,null,"1. Dated invoice/payment application."]
[null,null,"2. Manufacturer's equipment specification sheet documenting compliance with equipment eligibility."]
[null,null,"Manufacture/Model",null,null,null,null,null,"Equipment Type",null,null,null,"Replaced Fuel Type\n(Retrofit Only)",null,null,null,null,"Cooking Efficiency (CE)",null,null,null,"Quantity",null,null,"Rebate",null,null,null,null,null,null,null,"List1","List2","List3","Size","Input1","Input2","Input3","Input4","Input5","Input6","Qty","Notes"]
[null,null,null,null,null,null,null,null,null,null,null,null,null,null,null,null,null,null,null,null,null,null,null,null,null,null,null,null,null,{"$f":"COUNTA($C122:$AB122)>0","v":false},null,"     Kitchen Equipment: All","Electric Combination Oven",{"$f":"I122","v":0},{"$f":"IF(ProjectType=\"New Construction\",\"\",M122)","v":0},null,{"$f":"R122","v":0},null,null,null,null,null,{"$f":"V122","v":0},{"$f":"C122","v":0}]
[null,null,null,null,null,null,null,null,null,null,null,null,null,null,null,null,null,null,null,null,null,null,null,null,null,null,null,null,null,{"$f":"COUNTA($C123:$AB123)>0","v":false},null,"     Kitchen Equipment: All","Electric Combination Oven",{"$f":"I123","v":0},{"$f":"IF(ProjectType=\"New Construction\",\"\",M123)","v":0},null,{"$f":"R123","v":0},null,null,null,null,null,{"$f":"V123","v":0},{"$f":"C123","v":0}]
[null,null,null,null,null,null,null,null,null,null,null,null,null,null,null,null,null,null,null,null,null,null,null,null,null,null,null,null,null,{"$f":"COUNTA($C124:$AB124)>0","v":false},null,"     Kitchen Equipment: All","Electric Combination Oven",{"$f":"I124","v":0},{"$f":"IF(ProjectType=\"New Construction\",\"\",M124)","v":0},null,{"$f":"R124","v":0},null,null,null,null,null,{"$f":"V124","v":0},{"$f":"C124","v":0}]
[null,null,"High Efficiency Pre-Rinse Spray Valve"]
[null,null,"Rebate:   $75.00 Each"]
[null,null,"Eligibility Requirements: ",null,null,null,null,null,null,null,null,null,null,null,null,null,null,null,null,null,null,null,null,null,null,null,null,null,null,"Gas"]
[null,null,"1. Must be ≤1.15 gpm and have a cleanability performance of 26 seconds per plate or less, based on ASTM.",null,null,null,null,null,null,null,null,null,null,null,null,null,null,null,null,null,null,null,null,null,null,null,null,null,null,"Electric"]
[null,null,"2.  This measure is only applicable for systems with electric storage water heaters."]
[null,null,"The following are required items that must be submitted along with the completed mechanical & more application:"]
[null,null,"1. Dated invoice/payment application."]
[null,null,"2. Manufacturer's equipment specification sheet documenting compliance with equipment eligibility."]
[null,null,"Manufacture/Model",null,null,null,null,null,"Water Heater Fuel Type",null,null,null,null,"Flow Rate (gpm)",null,null,"Pre-Rinse Time (Sec)",null,null,null,"Quantity",null,null,null,"Rebate",null,null,null,null,null,null,null,"List1","List2","List3","Size","Input1","Input2","Input3","Input4","Input5","Input6","Qty","Notes"]
[null,null,null,null,null,null,null,null,null,null,null,null,null,null,null,null,null,null,null,null,null,null,null,null,null,null,null,null,null,{"$f":"COUNTA($C134:$AB134)>0","v":false},null,"     Kitchen Equipment: All","HE Pre-Rinse Spray Valve",{"$f":"I134","v":0},null,{"$f":"N134","v":0},{"$f":"Q134","v":0},null,null,null,null,null,{"$f":"U134","v":0},{"$f":"C134","v":0}]
[null,null,null,null,null,null,null,null,null,null,null,null,null,null,null,null,null,null,null,null,null,null,null,null,null,null,null,null,null,{"$f":"COUNTA($C135:$AB135)>0","v":false},null,"     Kitchen Equipment: All","HE Pre-Rinse Spray Valve",{"$f":"I135","v":0},null,{"$f":"N135","v":0},{"$f":"Q135","v":0},null,null,null,null,null,{"$f":"U135","v":0},{"$f":"C135","v":0}]
[null,null,null,null,null,null,null,null,null,null,null,null,null,null,null,null,null,null,null,null,null,null,null,null,null,null,null,null,null,{"$f":"COUNTA($C136:$AB136)>0","v":false},null,"     Kitchen Equipment: All","HE Pre-Rinse Spray Valve",{"$f":"I136","v":0},null,{"$f":"N136","v":0},{"$f":"Q136","v":0},null,null,null,null,null,{"$f":"U136","v":0},{"$f":"C136","v":0}]
[null,null,"Kitchen Exhaust Fan (VFD)"]
[null,null,"Rebate:  $300.00 per Horsepower (HP)"]
[null,null,"Eligibility Requirements: ",null,null,null,null,null,null,null,null,null,null,null,null,null,null,null,null,null,null,null,null,null,null,null,null,null,null,null,"Temperature"]
[null,null,"1. Must install temperature sensor and/or an optic sensor to adjust fan speed based on cooking conditions.",null,null,null,null,null,null,null,null,null,null,null,null,null,null,null,null,null,null,null,null,null,null,null,null,null,null,null,"Optic"]
[null,null,"2. (Retrofit) Replacements of existing VFDs are not eligible unless the VFD has been non-functioning for >2 years."]
[null,null,"3. (New Construction) Installations are not eligible."]
[null,null,"The following are required items that must be submitted along with the completed mechanical & more application:"]
[null,null,"1. Dated invoice/payment application."]
[null,null,"2. Manufacturer's equipment specification sheet documenting compliance with equipment eligibility."]
[null,null,"3. Documentation of the serial numbers of the installed VFD's."]
[null,null,"Manufacture/Model",null,null,null,null,null,"Install Location",null,null,null,null,"Sensor Type",null,null,null,null,"Motor HP",null,null,"Qty",null,null,"Rebate",null,null,null,null,null,null,null,"List1","List2","List3","Size","Input1","Input2","Input3","Input4","Input5","Input6","Qty","Notes"]
[null,null,null,null,null,null,null,null,null,null,null,null,null,null,null,null,null,null,null,null,null,null,null,null,null,null,null,null,null,{"$f":"COUNTA($C148:$AB148)>0","v":false},null,"     Kitchen Equipment: All",{"$f":"\"VFD: Kitchen (\" & IF(I148=\"Hotel\",\"Hotel\",\"Restaurant\") & \")\"","v":"VFD: Kitchen (Restaurant)"},{"$f":"N148","v":0},null,{"$f":"Q148","v":0},null,null,null,null,null,null,{"$f":"V148","v":0},{"$f":"I148","v":0}]
[null,null,null,null,null,null,null,null,null,null,null,null,null,null,null,null,null,null,null,null,null,null,null,null,null,null,null,null,null,{"$f":"COUNTA($C149:$AB149)>0","v":false},null,"     Kitchen Equipment: All",{"$f":"\"VFD: Kitchen (\" & IF(I149=\"Hotel\",\"Hotel\",\"Restaurant\") & \")\"","v":"VFD: Kitchen (Restaurant)"},{"$f":"N149","v":0},null,{"$f":"Q149","v":0},null,null,null,null,null,null,{"$f":"V149","v":0},{"$f":"I149","v":0}]
[null,null,null,null,null,null,null,null,null,null,null,null,null,null,null,null,null,null,null,null,null,null,null,null,null,null,null,null,null,{"$f":"COUNTA($C150:$AB150)>0","v":false},null,"     Kitchen Equipment: All",{"$f":"\"VFD: Kitchen (\" & IF(I150=\"Hotel\",\"Hotel\",\"Restaurant\") & \")\"","v":"VFD: Kitchen (Restaurant)"},{"$f":"N150","v":0},null,{"$f":"Q150","v":0},null,null,null,null,null,null,{"$f":"V150","v":0},{"$f":"I150","v":0}]
["X"]

{"sheet":"Compressed Air","index":10,"n_rows":87,"n_cols":44,"rows_kept":87,"cut":false,"hidden":true,"merged":[[82,15,82,17],[83,15,83,17],[84,15,84,17],[85,15,85,17],[82,2,82,8],[83,2,83,8],[84,2,84,8],[85,2,85,8],[82,9,82,11],[83,9,83,11],[84,9,84,11],[85,9,85,11],[82,12,82,14],[83,12,83,14],[84,12,84,14],[85,12,85,14],[82,18,82,20],[83,18,83,20],[84,18,84,20],[85,18,85,20],[0,29,0,43],[7,2,7,26],[8,2,8,27],[9,2,9,27],[10,2,10,27],[11,2,11,27],[12,2,12,27],[1,2,1,27],[2,2,2,27],[3,2,5,27],[6,2,6,18],[6,19,6,23],[6,24,6,27],[15,2,15,8],[15,9,15,12],[15,13,15,16],[15,17,15,20],[15,21,15,23],[15,24,15,27],[13,2,13,27],[14,2,14,8],[14,9,14,12],[14,13,14,16],[14,17,14,20],[14,21,14,23],[14,24,14,27],[17,2,17,8],[17,9,17,12],[17,13,17,16],[17,17,17,20],[17,21,17,23],[17,24,17,27],[16,2,16,8],[16,9,16,12],[16,13,16,16],[16,17,16,20],[16,21,16,23],[16,24,16,27],[24,2,24,27],[25,11,25,14],[25,19,25,23],[25,24,25,27],[18,2,18,26],[19,2,19,27],[20,2,20,27],[21,2,21,27],[22,2,22,27],[23,2,23,27],[25,8,25,10],[25,15,25,18],[25,2,25,7],[28,19,28,23],[28,24,28,27],[29,2,29,26],[26,11,26,14],[26,19,26,23],[26,24,26,27],[27,11,27,14],[27,19,27,23],[27,24,27,27],[26,8,26,10],[27,8,27,10],[28,8,28,10],[26,15,26,18],[27,15,27,18],[28,15,28,18],[26,2,26,7],[27,2,27,7],[28,2,28,7],[28,11,28,14],[36,19,36,23],[36,24,36,27],[37,2,37,12],[37,13,37,18],[37,19,37,23],[37,24,37,27],[30,2,30,27],[31,2,31,27],[32,2,32,27],[33,2,33,27],[34,2,34,27],[35,2,35,27],[36,2,36,12],[36,13,36,18],[44,2,44,27],[45,2,45,27],[38,2,38,12],[38,13,38,18],[38,19,38,23],[38,24,38,27],[39,2,39,12],[39,13,39,18],[39,19,39,23],[39,24,39,27],[40,2,40,26],[41,2,41,27],[42,2,42,27],[43,2,43,27],[46,2,46,27],[47,2,47,27],[48,2,48,27],[49,2,49,27],[50,2,50,12],[50,13,50,16],[50,17,50,20],[50,21,50,23],[50,24,50,27],[51,2,51,12],[51,13,51,16],[51,17,51,20],[51,21,51,23],[51,24,51,27],[52,2,52,12],[52,13,52,16],[52,17,52,20],[52,21,52,23],[52,24,52,27],[55,2,55,27],[56,2,56,27],[57,2,57,27],[58,2,58,27],[59,2,59,27],[60,2,60,27],[53,2,53,12],[53,13,53,16],[53,17,53,20],[53,21,53,23],[53,24,53,27],[54,2,54,26],[67,2,67,9],[67,10,67,14],[67,15,67,17],[67,18,67,20],[67,21,67,23],[67,24,67,27],[62,2,62,27],[63,2,63,27],[64,2,64,27],[65,2,65,27],[66,2,66,9],[66,10,66,14],[66,15,66,17],[66,18,66,20],[66,21,66,23],[66,24,66,27],[69,18,69,20],[69,21,69,23],[69,24,69,27],[68,2,68,9],[68,10,68,14],[68,15,68,17],[68,18,68,20],[68,21,68,23],[68,24,68,27],[61,2,61,27],[84,21,84,23],[84,24,84,27],[85,21,85,23],[85,24,85,27],[82,21,82,23],[82,24,82,27],[83,21,83,23],[83,24,83,27],[76,2,76,27],[77,2,77,27],[78,2,78,27],[79,2,79,27],[80,2,80,27],[81,2,81,27],[70,2,70,26],[71,2,71,27],[72,2,72,27],[73,2,73,27],[74,2,74,27],[75,2,75,27],[69,2,69,9],[69,10,69,14],[69,15,69,17]]}
[null,null,null,null,null,null,null,null,null,null,null,null,null,null,null,null,null,null,null,null,null,null,null,null,null,null,null,null,null,"Hide"]
[]
[null,null,"Compressed Air"]
[null,null,"Instructions: Please select the measures you wish to apply for and complete the fields below for each selected measure. Highlighted fields are required in order for the application to be considered 'Complete'.\nNote: In the SRP Business Solutions Standard Program, “SCFM” is defined as cubic feet of air per minute at standard conditions (14.696 psia, 68°F, and 0% relative humidity)."]
[]
[]
[null,null,"Select Measures:"]
[null,null,"VFD Controlled Compressor"]
[null,null,"Rebate:  $90.00 per Horsepower (HP)"]
[null,null,"Eligibility Requirements: "]
[null,null,"1. Must be an oil-injected screw compressor ≤75 HP."]
[null,null,"The following are required items that must be submitted along with the completed mechanical & more application:"]
[null,null,"1. Dated invoice/payment application."]
[null,null,"2. Manufacturer's equipment specification sheet documenting compliance with equipment eligibility."]
[null,null,"Manufacture/Model",null,null,null,null,null,null,"Oil-Injected?",null,null,null,"Operating Hours",null,null,null,"Compressor HP",null,null,null,"Quantity",null,null,"Rebate",null,null,null,null,null,null,null,"List1","List2","List3","Size","Input1","Input2","Input3","Input4","Input5","Input6","Qty","Notes"]
[null,null,null,null,null,null,null,null,null,null,null,null,null,null,null,null,null,null,null,null,null,null,null,null,null,null,null,null,null,{"$f":"COUNTA($C16:$AB16)>0","v":false},null,"     Compressed Air: All","VFD-Controlled Compressor",{"$f":"J16","v":0},null,{"$f":"R16","v":0},{"$f":"N16","v":0},null,null,null,null,null,{"$f":"V16","v":0},{"$f":"C16","v":0}]
[null,null,null,null,null,null,null,null,null,null,null,null,null,null,null,null,null,null,null,null,null,null,null,null,null,null,null,null,null,{"$f":"COUNTA($C17:$AB17)>0","v":false},null,"     Compressed Air: All","VFD-Controlled Compressor",{"$f":"J17","v":0},null,{"$f":"R17","v":0},{"$f":"N17","v":0},null,null,null,null,null,{"$f":"V17","v":0},{"$f":"C17","v":0}]
[null,null,null,null,null,null,null,null,null,null,null,null,null,null,null,null,null,null,null,null,null,null,null,null,null,null,null,null,null,{"$f":"COUNTA($C18:$AB18)>0","v":false},null,"     Compressed Air: All","VFD-Controlled Compressor",{"$f":"J18","v":0},null,{"$f":"R18","v":0},{"$f":"N18","v":0},null,null,null,null,null,{"$f":"V18","v":0},{"$f":"C18","v":0}]
[null,null,"Receiver Capacity Addition"]
[null,null,"Rebate:  $1.50 per Gallon"]
[null,null,"Eligibility Requirements: "]
[null,null,"1. Total tank receiver capacity after the addition must be >2.0 Gallons/SCFM of active compressor capacity."]
[null,null,"The following are required items that must be submitted along with the completed mechanical & more application:"]
[null,null,"1. Dated invoice/payment application."]
[null,null,"2. Manufacturer's equipment specification sheet documenting compliance with equipment eligibility."]
[null,null,"Manufacture/Model",null,null,null,null,null,"Operating Hours",null,null,"Compressor Capacity (SCFM)",null,null,null,"Added Capacity\n(Gallons)",null,null,null,"System Capacity (Gallons)",null,null,null,null,"Rebate",null,null,null,null,null,null,null,"List1","List2","List3","Size","Input1","Input2","Input3","Input4","Input5","Input6","Qty","Notes"]
[null,null,null,null,null,null,null,null,null,null,null,null,null,null,null,null,null,null,null,null,null,null,null,null,null,null,null,null,null,{"$f":"COUNTA($C27:$AB27)>0","v":false},null,"     Compressed Air: All","Additional Receiver Tank Capacity",null,null,{"$f":"P27","v":0},{"$f":"I27","v":0},{"$f":"L27","v":0},{"$f":"T27","v":0},null,{"$f":"V27","v":0},null,1,{"$f":"C27","v":0}]
[null,null,null,null,null,null,null,null,null,null,null,null,null,null,null,null,null,null,null,null,null,null,null,null,null,null,null,null,null,{"$f":"COUNTA($C28:$AB28)>0","v":false},null,"     Compressed Air: All","Additional Receiver Tank Capacity",null,null,{"$f":"P28","v":0},{"$f":"I28","v":0},{"$f":"L28","v":0},{"$f":"T28","v":0},null,{"$f":"V28","v":0},null,1,{"$f":"C28","v":0}]
[null,null,null,null,null,null,null,null,null,null,null,null,null,null,null,null,null,null,null,null,null,null,null,null,null,null,null,null,null,{"$f":"COUNTA($C29:$AB29)>0","v":false},null,"     Compressed Air: All","Additional Receiver Tank Capacity",null,null,{"$f":"P29","v":0},{"$f":"I29","v":0},{"$f":"L29","v":0},{"$f":"T29","v":0},null,{"$f":"V29","v":0},null,1,{"$f":"C29","v":0}]
[null,null,"Zero Loss Condensate Drains"]
[null,null,"Rebate:  $90.00 Each"]
[null,null,"Eligibility Requirements: "]
[null,null,"1. Must be designed to function without the release of compressed air into the atmosphere."]
[null,null,"The following are required items that must be submitted along with the completed mechanical & more application:"]
[null,null,"1. Dated invoice/payment application."]
[null,null,"2. Manufacturer's equipment specification sheet documenting compliance with equipment eligibility."]
[null,null,"Manufacture/Model",null,null,null,null,null,null,null,null,null,null,"Operating Hours",null,null,null,null,null,"Quantity",null,null,null,null,"Rebate",null,null,null,null,null,null,null,"List1","List2","List3","Size","Input1","Input2","Input3","Input4","Input5","Input6","Qty","Notes"]
[null,null,null,null,null,null,null,null,null,null,null,null,null,null,null,null,null,null,null,null,null,null,null,null,null,null,null,null,null,{"$f":"COUNTA($C38:$AB38)>0","v":false},null,"     Compressed Air: All","Zero-Loss Condensate Drain",null,null,null,{"$f":"N38","v":0},null,null,null,null,null,{"$f":"T38","v":0},{"$f":"C38","v":0}]
[null,null,null,null,null,null,null,null,null,null,null,null,null,null,null,null,null,null,null,null,null,null,null,null,null,null,null,null,null,{"$f":"COUNTA($C39:$AB39)>0","v":false},null,"     Compressed Air: All","Zero-Loss Condensate Drain",null,null,null,{"$f":"N39","v":0},null,null,null,null,null,{"$f":"T39","v":0},{"$f":"C39","v":0}]
[null,null,null,null,null,null,null,null,null,null,null,null,null,null,null,null,null,null,null,null,null,null,null,null,null,null,null,null,null,{"$f":"COUNTA($C40:$AB40)>0","v":false},null,"     Compressed Air: All","Zero-Loss Condensate Drain",null,null,null,{"$f":"N40","v":0},null,null,null,null,null,{"$f":"T40","v":0},{"$f":"C40","v":0}]
[null,null,"Refrigerated Cycling Dryers"]
[null,null,"Rebate:  $1.50 per SCFM"]
[null,null,"Eligibility Requirements: "]
[null,null,"1. Must have a rated dryer capacity ≤1,000 SCFM."]
[null,null,"2. Must operate exclusively in cycling mode and not be equipped with the ability to select between cycling and non-cycling modes."]
[null,null,"3. Cycle completely off during periods of reduced demand."]
[null,null,"4. A zero-loss condensate drain must accompany the cycling dryer."]
[null,null,"The following are required items that must be submitted along with the completed mechanical & more application:"]
[null,null,"1. Dated invoice/payment application."]
[null,null,"2. Manufacturer's equipment specification sheet documenting compliance with equipment eligibility."]
[null,null,"Manufacture/Model",null,null,null,null,null,null,null,null,null,null,"Operating Hours",null,null,null,"Rated Flow (SCFM)",null,null,null,"Quantity",null,null,"Rebate",null,null,null,null,null,null,null,"List1","List2","List3","Size","Input1","Input2","Input3","Input4","Input5","Input6","Qty","Notes"]
[null,null,null,null,null,null,null,null,null,null,null,null,null,null,null,null,null,null,null,null,null,null,null,null,null,null,null,null,null,{"$f":"COUNTA($C52:$AB52)>0","v":false},null,"     Compressed Air: All","Refrigerated Cycling Dryer",null,null,{"$f":"R52","v":0},{"$f":"N52","v":0},null,null,null,null,null,{"$f":"V52","v":0},{"$f":"C52","v":0}]
[null,null,null,null,null,null,null,null,null,null,null,null,null,null,null,null,null,null,null,null,null,null,null,null,null,null,null,null,null,{"$f":"COUNTA($C53:$AB53)>0","v":false},null,"     Compressed Air: All","Refrigerated Cycling Dryer",null,null,{"$f":"R53","v":0},{"$f":"N53","v":0},null,null,null,null,null,{"$f":"V53","v":0},{"$f":"C53","v":0}]
[null,null,null,null,null,null,null,null,null,null,null,null,null,null,null,null,null,null,null,null,null,null,null,null,null,null,null,null,null,{"$f":"COUNTA($C54:$AB54)>0","v":false},null,"     Compressed Air: All","Refrigerated Cycling Dryer",null,null,{"$f":"R54","v":0},{"$f":"N54","v":0},null,null,null,null,null,{"$f":"V54","v":0},{"$f":"C54","v":0}]
[null,null,"Desiccant Dryers With Dew Point Control"]
[null,null,"Rebate:"]
[null,null,"- Externally heated with dew point controls: $5.00 per SCFM "]
[null,null,"- Blower purge with dew point controls: $7.50 per SCFM"]
[null,null,"Eligibility Requirements: ",null,null,null,null,null,null,null,null,null,null,null,null,null,null,null,null,null,null,null,null,null,null,null,null,null,null,"Externally Heated","w/ External Heating"]
[null,null,"1. Must be equipped with dew point sensors and controls to regulate the regeneration cycle.",null,null,null,null,null,null,null,null,null,null,null,null,null,null,null,null,null,null,null,null,null,null,null,null,null,null,"Blower Purge","w/ Blower Purge"]
[null,null,"2. Must have minimum runtime of 6,000 hours. "]
[null,null,"3. Must have a rated dryer capacity ≤ 1,000 SCFM."]
[null,null,"4. Heat of compression/heatless desiccant dryers are not eligible."]
[null,null,"The following are required items that must be submitted along with the completed mechanical & more application:"]
[null,null,"1. Dated invoice/payment application."]
[null,null,"2. Manufacturer's equipment specification sheet documenting compliance with equipment eligibility."]
[null,null,"Manufacture/Model",null,null,null,null,null,null,null,"Regeneration \nType",null,null,null,null,"Operating Hours",null,null,"Rated Flow (SCFM)",null,null,"Quantity",null,null,"Rebate",null,null,null,null,null,null,null,"List1","List2","List3","Size","Input1","Input2","Input3","Input4","Input5","Input6","Qty","Notes"]
[null,null,null,null,null,null,null,null,null,null,null,null,null,null,null,null,null,null,null,null,null,null,null,null,null,null,null,null,null,{"$f":"COUNTA($C68:$AB68)>0","v":false},null,"     Compressed Air: All",{"$f":"\"Desiccant Dryer \" &VLOOKUP($K68,$AD$59:$AE$60,2,FALSE)","v":{"$error":"#N/A"}},null,null,{"$f":"S68","v":0},{"$f":"P68","v":0},null,null,null,null,null,{"$f":"V68","v":0},{"$f":"C68","v":0}]
[null,null,null,null,null,null,null,null,null,null,null,null,null,null,null,null,null,null,null,null,null,null,null,null,null,null,null,null,null,{"$f":"COUNTA($C69:$AB69)>0","v":false},null,"     Compressed Air: All",{"$f":"\"Desiccant Dryer \" &VLOOKUP($K69,$AD$59:$AE$60,2,FALSE)","v":{"$error":"#N/A"}},null,null,{"$f":"S69","v":0},{"$f":"P69","v":0},null,null,null,null,null,{"$f":"V69","v":0},{"$f":"C69","v":0}]
[null,null,null,null,null,null,null,null,null,null,null,null,null,null,null,null,null,null,null,null,null,null,null,null,null,null,null,null,null,{"$f":"COUNTA($C70:$AB70)>0","v":false},null,"     Compressed Air: All",{"$f":"\"Desiccant Dryer \" &VLOOKUP($K70,$AD$59:$AE$60,2,FALSE)","v":{"$error":"#N/A"}},null,null,{"$f":"S70","v":0},{"$f":"P70","v":0},null,null,null,null,null,{"$f":"V70","v":0},{"$f":"C70","v":0}]
[null,null,"Low Pressure Drop Filters"]
[null,null,"Rebate:  $0.80 per SCFM"]
[null,null,"Eligibility Requirements: "]
[null,null,"1. Must be installed on an operating compressor ≥ 25 HP."]
[null,null,"2. Must be a deep-bed \"mist eliminator\" style with element life ≥ 5 years."]
[null,null,"3. Must be rated for ≤ 5 ppm liquid carryover."]
[null,null,"4. Must have a pressure loss at rated flow ≤ 1 psi when new and ≤3 psi at element change."]
[null,null,"5. Must have particulate filtration that is 100% at ≥ 3.0 microns and at least 99.98% at 0.1 to 3.0 microns."]
[null,null,"6. Must have a rated capacity ≤ 1000 SCFM."]
[null,null,"The following are required items that must be submitted along with the completed mechanical & more application:"]
[null,null,"1. Dated invoice/payment application."]
[null,null,"2. Manufacturer's equipment specification sheet documenting compliance with equipment eligibility."]
[null,null,"Manufacture/Model",null,null,null,null,null,null,"Operating Hours",null,null,"Rated Flow (SCFM)",null,null,"Element Life (Years)",null,null,"Compressor Size (HP)",null,null,"Quantity",null,null,"Rebate",null,null,null,null,null,null,null,"List1","List2","List3","Size","Input1","Input2","Input3","Input4","Input5","Input6","Qty","Notes"]
[null,null,null,null,null,null,null,null,null,null,null,null,null,null,null,null,null,null,null,null,null,null,null,null,null,null,null,null,null,{"$f":"COUNTA($C84:$AB84)>0","v":false},null,"     Compressed Air: All","Low Pressure-Drop Filter",null,null,{"$f":"M84","v":0},{"$f":"J84","v":0},{"$f":"P84","v":0},{"$f":"S84","v":0},null,null,null,{"$f":"V84","v":0},{"$f":"C84","v":0}]
[null,null,null,null,null,null,null,null,null,null,null,null,null,null,null,null,null,null,null,null,null,null,null,null,null,null,null,null,null,{"$f":"COUNTA($C85:$AB85)>0","v":false},null,"     Compressed Air: All","Low Pressure-Drop Filter",null,null,{"$f":"M85","v":0},{"$f":"J85","v":0},{"$f":"P85","v":0},{"$f":"S85","v":0},null,null,null,{"$f":"V85","v":0},{"$f":"C85","v":0}]
[null,null,null,null,null,null,null,null,null,null,null,null,null,null,null,null,null,null,null,null,null,null,null,null,null,null,null,null,null,{"$f":"COUNTA($C86:$AB86)>0","v":false},null,"     Compressed Air: All","Low Pressure-Drop Filter",null,null,{"$f":"M86","v":0},{"$f":"J86","v":0},{"$f":"P86","v":0},{"$f":"S86","v":0},null,null,null,{"$f":"V86","v":0},{"$f":"C86","v":0}]
["X"]

{"sheet":"IT & Data Center","index":11,"n_rows":83,"n_cols":45,"rows_kept":83,"cut":false,"hidden":true,"merged":[[6,2,6,26],[7,2,7,27],[8,2,8,27],[9,2,9,27],[10,2,10,27],[11,2,11,27],[1,2,1,27],[0,29,0,44],[2,2,2,27],[3,2,4,27],[5,2,5,18],[5,19,5,23],[5,24,5,27],[12,2,12,27],[13,2,13,27],[14,2,14,27],[15,2,15,27],[16,2,16,27],[17,2,17,7],[17,8,17,12],[17,13,17,15],[17,16,17,18],[17,19,17,21],[17,22,17,23],[17,24,17,27],[18,2,18,7],[18,8,18,12],[18,13,18,15],[18,16,18,18],[18,19,18,21],[18,22,18,23],[18,24,18,27],[21,2,21,26],[22,2,22,27],[23,2,23,27],[24,2,24,27],[25,2,25,27],[26,2,26,27],[19,24,19,27],[20,2,20,7],[20,8,20,12],[20,13,20,15],[20,16,20,18],[20,19,20,21],[20,22,20,23],[20,24,20,27],[19,2,19,7],[19,8,19,12],[19,13,19,15],[19,16,19,18],[19,19,19,21],[19,22,19,23],[27,2,27,27],[28,2,28,27],[29,2,29,27],[30,2,30,27],[31,2,31,8],[31,9,31,14],[31,15,31,19],[31,20,31,23],[31,24,31,27],[34,2,34,8],[34,9,34,14],[34,15,34,19],[34,20,34,23],[34,24,34,27],[35,2,35,26],[32,2,32,8],[32,9,32,14],[32,15,32,19],[32,20,32,23],[32,24,32,27],[33,2,33,8],[33,9,33,14],[33,15,33,19],[33,20,33,23],[33,24,33,27],[42,2,42,27],[43,2,43,27],[44,2,44,27],[45,2,45,27],[46,2,46,12],[46,13,46,17],[46,18,46,23],[46,24,46,27],[36,2,36,27],[37,2,37,27],[38,2,38,27],[39,2,39,27],[40,2,40,27],[41,2,41,27],[49,2,49,12],[49,13,49,17],[49,24,49,27],[50,2,50,26],[51,2,51,27],[54,2,54,27],[47,2,47,12],[47,13,47,17],[47,24,47,27],[48,2,48,12],[48,13,48,17],[48,24,48,27],[53,2,53,27],[52,2,52,27],[61,2,61,27],[62,2,62,27],[63,2,63,8],[63,9,63,15],[63,16,63,19],[63,20,63,23],[63,24,63,27],[55,2,55,27],[58,2,58,27],[56,2,56,27],[59,2,59,27],[60,2,60,27],[57,2,57,27],[66,2,66,8],[66,9,66,15],[66,16,66,19],[66,20,66,23],[66,24,66,27],[67,2,67,26],[64,2,64,8],[64,9,64,15],[64,16,64,19],[64,20,64,23],[64,24,64,27],[65,2,65,8],[65,9,65,15],[65,16,65,19],[65,20,65,23],[65,24,65,27],[74,2,74,27],[75,2,75,27],[76,2,76,27],[77,2,77,27],[78,2,78,12],[78,13,78,23],[78,24,78,27],[68,2,68,27],[69,2,69,27],[70,2,70,27],[71,2,71,27],[72,2,72,27],[73,2,73,27],[81,2,81,12],[81,13,81,23],[81,24,81,27],[79,2,79,12],[79,13,79,23],[79,24,79,27],[80,2,80,12],[80,13,80,23],[80,24,80,27]]}
[null,null,null,null,null,null,null,null,null,null,null,null,null,null,null,null,null,null,null,null,null,null,null,null,null,null,null,null,null,"Hide"]
[]
[null,null,"IT & Data Center"]
[null,null,"Instructions: Please select the measures you wish to apply for and complete the fields below for each selected measure. Highlighted fields are required in order for the application to be considered 'Complete'."]
[]
[null,null,"Select Measures:"]
[null,null,"High Efficiency Computer Room Air Conditioners (CRAC)"]
[null,null,"Rebate:",null,null,null,null,null,null,null,null,null,null,null,null,null,null,null,null,null,null,null,null,null,null,null,null,null,null,"Downflow"]
[null,null,"- CRAC Unit (Air, Water, and Glycol - cooled): Tier 1: $200.00 per Ton & Tier 2: $300.00 per Ton",null,null,null,null,null,null,null,null,null,null,null,null,null,null,null,null,null,null,null,null,null,null,null,null,null,null,"Upflow"]
[null,null,"- CRAC Unit w/ Fluid Economizers (Water, and Glycol - cooled): Tier 1: $300.00 per Ton & Tier 2: $400.00 per Ton",null,null,null,null,null,null,null,null,null,null,null,null,null,null,null,null,null,null,null,null,null,null,null,null,null,null,"Horizontal"]
[null,null,"Eligibility Requirements: "]
[null,null,"1. Rebates will be paid for highest efficiency tier for which the unit qualifies. Rebates are paid per ton of rated Sensible Cooling Capacity (not total or nominal).",null,null,null,null,null,null,null,null,null,null,null,null,null,null,null,null,null,null,null,null,null,null,null,null,null,null,"Air-cooled","Air-Cooled","No"]
[null,null,"2. Must meet or exceed SCOP efficiencies shown in Table 7. SCOP efficiency ratings must be evaluated according to ASHRAE Std. 127-2016.",null,null,null,null,null,null,null,null,null,null,null,null,null,null,null,null,null,null,null,null,null,null,null,null,null,null,"Water-cooled","Water-Cooled","No"]
[null,null,"3. Backup units or redundant units are not eligible.",null,null,null,null,null,null,null,null,null,null,null,null,null,null,null,null,null,null,null,null,null,null,null,null,null,null,"Water-cooled with Fluid Economizer","Water-Cooled","Yes"]
[null,null,"The following are required items that must be submitted along with the completed mechanical & more application:",null,null,null,null,null,null,null,null,null,null,null,null,null,null,null,null,null,null,null,null,null,null,null,null,null,null,"Glycol Cooled","Glycol-Cooled","No"]
[null,null,"1. Dated invoice/payment application.",null,null,null,null,null,null,null,null,null,null,null,null,null,null,null,null,null,null,null,null,null,null,null,null,null,null,"Glycol Cooled with Fluid Economizer","Glycol-Cooled","Yes"]
[null,null,"2. Manufacturer's equipment specification sheet documenting the efficiency or AHRI reference numbers."]
[null,null,"Manufacture/Model",null,null,null,null,null,"Equipment Class",null,null,null,null,"Supply Airflow Direction",null,null,"Sensible Cooling Capacity (BTU/h)",null,null,"SCOP",null,null,"Qty",null,"Rebate",null,null,null,null,null,null,null,null,"List1","List2","List3","Size","Input1","Input2","Input3","Input4","Input5","Input6","Qty","Notes"]
[null,null,null,null,null,null,null,null,null,null,null,null,null,null,null,null,null,null,null,null,null,null,null,null,null,null,null,null,null,{"$f":"COUNTA($C19:$AB19)>0","v":false},null,null,"     High-Efficiency Computer Room A/C (CRAC)",{"$f":"N19","v":0},{"$f":"VLOOKUP($I19,$AD$12:$AF$16,2,FALSE)","v":{"$error":"#N/A"}},{"$f":"VLOOKUP($I19,$AD$12:$AF$16,3,FALSE)","v":{"$error":"#N/A"}},{"$f":"Q19","v":0},{"$f":"T19","v":0},null,null,null,null,null,{"$f":"W19","v":0},{"$f":"C19","v":0}]
[null,null,null,null,null,null,null,null,null,null,null,null,null,null,null,null,null,null,null,null,null,null,null,null,null,null,null,null,null,{"$f":"COUNTA($C20:$AB20)>0","v":false},null,null,"     High-Efficiency Computer Room A/C (CRAC)",{"$f":"N20","v":0},{"$f":"VLOOKUP($I20,$AD$12:$AF$16,2,FALSE)","v":{"$error":"#N/A"}},{"$f":"VLOOKUP($I20,$AD$12:$AF$16,3,FALSE)","v":{"$error":"#N/A"}},{"$f":"Q20","v":0},{"$f":"T20","v":0},null,null,null,null,null,{"$f":"W20","v":0},{"$f":"C20","v":0}]
[null,null,null,null,null,null,null,null,null,null,null,null,null,null,null,null,null,null,null,null,null,null,null,null,null,null,null,null,null,{"$f":"COUNTA($C21:$AB21)>0","v":false},null,null,"     High-Efficiency Computer Room A/C (CRAC)",{"$f":"N21","v":0},{"$f":"VLOOKUP($I21,$AD$12:$AF$16,2,FALSE)","v":{"$error":"#N/A"}},{"$f":"VLOOKUP($I21,$AD$12:$AF$16,3,FALSE)","v":{"$error":"#N/A"}},{"$f":"Q21","v":0},{"$f":"T21","v":0},null,null,null,null,null,{"$f":"W21","v":0},{"$f":"C21","v":0}]
[null,null,"Electronically Commutated Motors for CRAC and CRAH Units"]
[null,null,"Rebate:  $250.00 per Horsepower (HP)"]
[null,null,"Eligibility Requirements: ",null,null,null,null,null,null,null,null,null,null,null,null,null,null,null,null,null,null,null,null,null,null,null,null,null,null,"CRAC","EC Motor: CRAC"]
[null,null,"1. Fan EC Motor must be installed on a Computer Room Air Conditioner (CRAC) or Air Handler (CRAH).",null,null,null,null,null,null,null,null,null,null,null,null,null,null,null,null,null,null,null,null,null,null,null,null,null,null,"CRAH","EC Motor: CRAH"]
[null,null,"2. Backup service units are not eligible for rebates."]
[null,null,"3. Rebates are not simultaneously available for ECM's where rebates have been paid for High Efficiency CRAC units."]
[null,null,"4. (New Construction) Installations are not eligible."]
[null,null,"The following are required items that must be submitted along with the completed mechanical & more application:"]
[null,null,"1. Dated invoice/payment application."]
[null,null,"2. Manufacturer's equipment specification sheet documenting compliance with equipment eligibility."]
[null,null,"Manufacture/Model",null,null,null,null,null,null,"CRAC or CRAH?",null,null,null,null,null,"EC Motor HP",null,null,null,null,"Quantity",null,null,null,"Rebate",null,null,null,null,null,null,null,null,"List1","List2","List3","Size","Input1","Input2","Input3","Input4","Input5","Input6","Qty","Notes"]
[null,null,null,null,null,null,null,null,null,null,null,null,null,null,null,null,null,null,null,null,null,null,null,null,null,null,null,null,null,{"$f":"COUNTA($C33:$AB33)>0","v":false},null,null,"     IT & Data Center: Other",{"$f":"VLOOKUP($J33,$AD$24:$AE$25,2,FALSE)","v":{"$error":"#N/A"}},null,null,{"$f":"P33","v":0},null,null,null,null,null,null,{"$f":"U33","v":0},{"$f":"C33","v":0}]
[null,null,null,null,null,null,null,null,null,null,null,null,null,null,null,null,null,null,null,null,null,null,null,null,null,null,null,null,null,{"$f":"COUNTA($C34:$AB34)>0","v":false},null,null,"     IT & Data Center: Other",{"$f":"VLOOKUP($J34,$AD$24:$AE$25,2,FALSE)","v":{"$error":"#N/A"}},null,null,{"$f":"P34","v":0},null,null,null,null,null,null,{"$f":"U34","v":0},{"$f":"C34","v":0}]
[null,null,null,null,null,null,null,null,null,null,null,null,null,null,null,null,null,null,null,null,null,null,null,null,null,null,null,null,null,{"$f":"COUNTA($C35:$AB35)>0","v":false},null,null,"     IT & Data Center: Other",{"$f":"VLOOKUP($J35,$AD$24:$AE$25,2,FALSE)","v":{"$error":"#N/A"}},null,null,{"$f":"P35","v":0},null,null,null,null,null,null,{"$f":"U35","v":0},{"$f":"C35","v":0}]
[null,null,"Computer Power Management"]
[null,null,"Rebate:  $8.00 per Computer"]
[null,null,"Eligibility Requirements: "]
[null,null,"1. Rebates are only available for desktop computer installations."]
[null,null,"2. Must automatically reduce power settings at a network server for each inactive computer."]
[null,null,"3. Must have energy reporting capability and manage power for each individual computer."]
[null,null,"4. Software license must be in effect for 6 years."]
[null,null,"The following are required items that must be submitted along with the completed mechanical & more application:"]
[null,null,"1. Dated invoice/payment application."]
[null,null,"2. Manufacturer's equipment specification sheet documenting compliance with equipment eligibility."]
[null,null,"3. Documentation showing the number of computers per license being controlled."]
[null,null,"Manufacture/Model",null,null,null,null,null,null,null,null,null,null,"Contract Length",null,null,null,null,"Number of Computers",null,null,null,null,null,"Rebate",null,null,null,null,null,null,null,null,"List1","List2","List3","Size","Input1","Input2","Input3","Input4","Input5","Input6","Qty","Notes"]
[null,null,null,null,null,null,null,null,null,null,null,null,null,null,null,null,null,null,null,null,null,null,null,null,null,null,null,null,null,{"$f":"COUNTA($C48:$AB48)>0","v":false},null,null,"     IT & Data Center: Other","Computer Power Management",null,null,null,{"$f":"N48","v":0},null,null,null,null,null,{"$f":"S48","v":0},{"$f":"C48","v":0}]
[null,null,null,null,null,null,null,null,null,null,null,null,null,null,null,null,null,null,null,null,null,null,null,null,null,null,null,null,null,{"$f":"COUNTA($C49:$AB49)>0","v":false},null,null,"     IT & Data Center: Other","Computer Power Management",null,null,null,{"$f":"N49","v":0},null,null,null,null,null,{"$f":"S49","v":0},{"$f":"C49","v":0}]
[null,null,null,null,null,null,null,null,null,null,null,null,null,null,null,null,null,null,null,null,null,null,null,null,null,null,null,null,null,{"$f":"COUNTA($C50:$AB50)>0","v":false},null,null,"     IT & Data Center: Other","Computer Power Management",null,null,null,{"$f":"N50","v":0},null,null,null,null,null,{"$f":"S50","v":0},{"$f":"C50","v":0}]
[null,null,"High Efficiency Servers "]
[null,null,"Rebate:"]
[null,null,"- $375.00 per Server Replaced"]
[null,null,"- $200.00 per new Server Installed"]
[null,null,"Eligibility Requirements: "]
[null,null,"1. Servers must be Energy Star Certified or similarly rated that meet the same minimum high-efficiency requirements."]
[null,null,"2. Rebates are paid for the number of installed servers up to the number of new or replaced servers."]
[null,null,"3. Servers being added as part of the High Efficiency Server rebate must include the listed Serial Numbers for each new server."]
[null,null,"4. (Retrofit) Servers being removed as part of the High Efficiency Server rebate are not eligible for any other SRP rebates. "]
[null,null,"The following are required items that must be submitted along with the completed mechanical & more application:"]
[null,null,"1. Dated invoice/payment application."]
[null,null,"2. Manufacturer's equipment specification sheet documenting compliance with equipment eligibility."]
[null,null,"3. Documentation of the serial numbers of the new/replacement and removed (retrofit only) servers."]
[null,null,"Removed Manufacture/Model",null,null,null,null,null,null,"Installed Manufacture/Model",null,null,null,null,null,null,"Installed Qty",null,null,null,"Removed Qty (Retrofit Only)",null,null,null,"Rebate",null,null,null,null,null,null,null,null,"List1","List2","List3","Size","Input1","Input2","Input3","Input4","Input5","Input6","Qty","Notes"]
[null,null,null,null,null,null,null,null,null,null,null,null,null,null,null,null,null,null,null,null,null,null,null,null,null,null,null,null,null,{"$f":"COUNTA($C65:$AB65)>0","v":false},null,null,"     IT & Data Center: Other","High-Efficiency Servers",null,null,null,{"$f":"Q65","v":0},{"$f":"U65","v":0},null,null,null,null,1]
[null,null,null,null,null,null,null,null,null,null,null,null,null,null,null,null,null,null,null,null,null,null,null,null,null,null,null,null,null,{"$f":"COUNTA($C66:$AB66)>0","v":false},null,null,"     IT & Data Center: Other","High-Efficiency Servers",null,null,null,{"$f":"Q66","v":0},{"$f":"U66","v":0},null,null,null,null,1]
[null,null,null,null,null,null,null,null,null,null,null,null,null,null,null,null,null,null,null,null,null,null,null,null,null,null,null,null,null,{"$f":"COUNTA($C67:$AB67)>0","v":false},null,null,"     IT & Data Center: Other","High-Efficiency Servers",null,null,null,{"$f":"Y67","v":0},{"$f":"U67","v":0},null,null,null,null,1]
[null,null,"Server Virtualization"]
[null,null,"Rebate:  $300.00 per Server Removed"]
[null,null,"Eligibility Requirements: "]
[null,null,"1. Removed servers are eligible. Inactive or relocated servers are not eligible."]
[null,null,"2. Existing servers being virtualized must be completely removed from service."]
[null,null,"3. Servers being removed as part of the Server Virtualization rebate are not eligible for any other SRP rebate."]
[null,null,"4. (New Construction) Installations are not eligible."]
[null,null,"The following are required items that must be submitted along with the completed mechanical & more application:"]
[null,null,"1. Dated invoice/payment application."]
[null,null,"2. Manufacturer's equipment specification sheet documenting compliance with equipment eligibility."]
[null,null,"3. Documentation of the serial numbers of the removed servers."]
[null,null,"Manufacture/Model",null,null,null,null,null,null,null,null,null,null,"Number of Servers Removed",null,null,null,null,null,null,null,null,null,null,"Rebate",null,null,null,null,null,null,null,null,"List1","List2","List3","Size","Input1","Input2","Input3","Input4","Input5","Input6","Qty","Notes"]
[null,null,null,null,null,null,null,null,null,null,null,null,null,null,null,null,null,null,null,null,null,null,null,null,null,null,null,null,null,{"$f":"COUNTA($C80:$AB80)>0","v":false},null,null,"     IT & Data Center: Other","Server Virtualization",null,null,null,{"$f":"N80","v":0},null,null,null,null,null,1,{"$f":"C80","v":0}]
[null,null,null,null,null,null,null,null,null,null,null,null,null,null,null,null,null,null,null,null,null,null,null,null,null,null,null,null,null,{"$f":"COUNTA($C81:$AB81)>0","v":false},null,null,"     IT & Data Center: Other","Server Virtualization",null,null,null,{"$f":"N81","v":0},null,null,null,null,null,1,{"$f":"C81","v":0}]
[null,null,null,null,null,null,null,null,null,null,null,null,null,null,null,null,null,null,null,null,null,null,null,null,null,null,null,null,null,{"$f":"COUNTA($C82:$AB82)>0","v":false},null,null,"     IT & Data Center: Other","Server Virtualization",null,null,null,{"$f":"N82","v":0},null,null,null,null,null,1,{"$f":"C82","v":0}]
["X"]

{"sheet":"Additional Measures","index":12,"n_rows":135,"n_cols":45,"rows_kept":135,"cut":false,"hidden":true,"merged":[[75,24,75,27],[76,24,76,27],[74,24,74,27],[69,2,69,27],[70,2,70,27],[72,2,72,27],[73,24,73,27],[73,6,73,8],[75,6,75,8],[76,6,76,8],[75,2,75,5],[76,2,76,5],[75,21,75,23],[76,21,76,23],[75,15,75,17],[76,15,76,17],[75,9,75,11],[76,9,76,11],[75,18,75,20],[76,18,76,20],[75,12,75,14],[76,12,76,14],[94,2,94,8],[94,24,94,27],[94,9,94,12],[94,21,94,23],[94,13,94,16],[94,17,94,20],[95,2,95,8],[95,24,95,27],[96,2,96,8],[96,24,96,27],[95,9,95,12],[96,9,96,12],[95,21,95,23],[96,21,96,23],[95,13,95,16],[96,13,96,16],[95,17,95,20],[96,17,96,20],[92,2,92,27],[93,2,93,8],[93,24,93,27],[77,2,77,26],[78,2,78,27],[79,2,79,27],[80,2,80,27],[82,2,82,27],[83,2,83,27],[88,2,88,27],[93,9,93,12],[93,21,93,23],[93,13,93,16],[93,17,93,20],[91,2,91,27],[86,2,86,27],[87,2,87,27],[81,2,81,27],[89,2,89,27],[90,2,90,27],[84,2,85,27],[1,2,1,27],[0,29,0,44],[2,2,2,27],[3,2,5,27],[6,2,6,18],[6,19,6,23],[6,24,6,27],[32,2,32,27],[17,2,17,27],[8,2,8,27],[9,2,10,27],[24,2,24,8],[24,21,24,23],[24,24,24,27],[25,2,25,8],[25,21,25,23],[25,24,25,27],[23,2,23,8],[23,21,23,23],[23,24,23,27],[14,2,14,27],[21,9,21,13],[22,9,22,13],[23,9,23,13],[21,2,21,8],[21,21,21,23],[21,24,21,27],[22,2,22,8],[22,21,22,23],[22,24,22,27],[23,14,23,17],[24,14,24,17],[25,14,25,17],[22,14,22,17],[24,9,24,13],[25,9,25,13],[21,18,21,20],[22,18,22,20],[23,18,23,20],[24,18,24,20],[25,18,25,20],[21,14,21,17],[7,2,7,26],[11,2,11,27],[12,2,12,27],[13,2,13,27],[15,2,15,27],[16,2,16,27],[18,2,18,27],[19,2,19,27],[20,2,20,27],[34,2,34,27],[35,2,35,27],[36,2,36,27],[26,2,26,26],[27,2,27,27],[28,2,28,27],[29,2,29,27],[30,2,30,27],[31,2,31,27],[33,2,33,27],[37,2,37,8],[37,9,37,15],[37,16,37,20],[37,21,37,23],[37,24,37,27],[38,2,38,8],[38,9,38,15],[38,16,38,20],[38,21,38,23],[38,24,38,27],[39,2,39,8],[39,9,39,15],[39,16,39,20],[39,21,39,23],[39,24,39,27],[40,2,40,8],[40,9,40,15],[40,16,40,20],[40,21,40,23],[40,24,40,27],[98,2,98,27],[99,2,99,27],[100,2,100,27],[101,2,101,27],[102,2,102,27],[103,2,103,27],[41,2,41,8],[41,9,41,15],[41,16,41,20],[41,21,41,23],[41,24,41,27],[97,2,97,26],[55,16,55,20],[56,16,56,20],[57,16,57,20],[58,16,58,20],[52,2,52,8],[52,24,52,27],[52,21,52,23],[52,9,52,15],[42,2,42,26],[53,2,53,8],[54,2,54,8],[53,24,53,27],[109,24,109,27],[110,2,110,8],[110,9,110,12],[110,13,110,17],[110,18,110,20],[110,21,110,23],[110,24,110,27],[104,2,104,27],[105,2,105,27],[106,2,106,27],[107,2,107,27],[108,2,108,27],[109,2,109,8],[109,9,109,12],[109,13,109,17],[109,18,109,20],[109,21,109,23],[112,2,112,8],[112,9,112,12],[112,13,112,17],[112,18,112,20],[112,21,112,23],[112,24,112,27],[111,2,111,8],[111,9,111,12],[111,13,111,17],[111,18,111,20],[111,21,111,23],[111,24,111,27],[114,2,114,8],[114,9,114,12],[114,13,114,17],[114,18,114,20],[114,21,114,23],[114,24,114,27],[113,2,113,8],[113,9,113,12],[113,13,113,17],[113,18,113,20],[113,21,113,23],[113,24,113,27],[116,2,116,26],[117,2,117,27],[118,2,118,27],[119,2,119,27],[120,2,120,27],[121,2,121,27],[115,2,115,8],[115,9,115,12],[115,13,115,17],[115,18,115,20],[115,21,115,23],[115,24,115,27],[122,2,122,27],[123,2,123,27],[124,2,124,27],[125,2,125,27],[126,2,126,27],[127,2,127,8],[127,9,127,12],[127,13,127,17],[127,18,127,20],[127,21,127,23],[129,2,129,8],[129,9,129,12],[129,13,129,17],[129,18,129,20],[129,21,129,23],[129,24,129,27],[127,24,127,27],[128,2,128,8],[128,9,128,12],[128,13,128,17],[128,18,128,20],[128,21,128,23],[128,24,128,27],[131,2,131,8],[131,9,131,12],[131,13,131,17],[131,18,131,20],[131,21,131,23],[131,24,131,27],[130,2,130,8],[130,9,130,12],[130,13,130,17],[130,18,130,20],[130,21,130,23],[130,24,130,27],[133,2,133,8],[133,9,133,12],[133,13,133,17],[133,18,133,20],[133,21,133,23],[133,24,133,27],[132,2,132,8],[132,9,132,12],[132,13,132,17],[132,18,132,20],[132,21,132,23],[132,24,132,27],[52,16,52,20],[53,16,53,20],[54,16,54,20],[54,24,54,27],[55,2,55,8],[56,2,56,8],[57,2,57,8],[58,2,58,8],[55,24,55,27],[56,24,56,27],[57,24,57,27],[58,24,58,27],[53,9,53,15],[54,9,54,15],[55,9,55,15],[56,9,56,15],[57,9,57,15],[58,9,58,15],[53,21,53,23],[54,21,54,23],[55,21,55,23],[56,21,56,23],[57,21,57,23],[58,21,58,23],[43,2,43,27],[44,2,44,27],[45,2,45,27],[46,2,46,27],[47,2,47,27],[48,2,48,27],[49,2,49,27],[50,2,50,27],[51,2,51,27],[59,2,59,26],[60,2,60,27],[63,2,63,27],[64,2,64,27],[66,2,66,27],[67,2,67,27],[61,2,61,27],[62,2,62,27],[74,6,74,8],[73,2,73,5],[74,2,74,5],[73,9,73,11],[73,21,73,23],[74,21,74,23],[71,2,71,27],[68,2,68,27],[65,2,65,27],[73,15,73,17],[74,15,74,17],[74,9,74,11],[73,18,73,20],[74,18,74,20],[73,12,73,14],[74,12,74,14]]}
[null,null,null,null,null,null,null,null,null,null,null,null,null,null,null,null,null,null,null,null,null,null,null,null,null,null,null,null,null,"Hide"]
[]
[null,null,"Additional Measures"]
[null,null,"Instructions: Please select the measures you wish to apply for and complete the fields below for each selected measure. Highlighted fields are required in order for the application to be considered 'Complete'.\nNote: High efficiency windows, building insulation, and cool roofs may be eligible for rebates under the SRP Business Solutions Custom Program. For more information about this program, contact the Program Administrator before purchasing the equipment."]
[]
[]
[null,null,"Select Measures:"]
[null,null,"Ultraviolet Germicidal Irradiation (UVGI)"]
[null,null,"Description:"]
[null,null,"Ultraviolet Germicidal Irradiation uses short-wavelength UV light to kill or inactivate microorganisms and can be used as a disinfection method by breaking down the DNA of harmful viruses, bacteria and mold spores. UVGI can be applied within HVAC systems to help disinfect air with proper placement of UV lamps within a building’s ductwork. The air itself does not have germicidal properties; however, reducing the concentration in the air may mitigate the risk of transmission of harmful pathogens."]
[]
[null,null,"Rebate:   $30.00 Per Ton"]
[null,null,"Eligibility Requirements: "]
[null,null,"1. Direct evaporative coolers are not eligible."]
[null,null,"2. Systems designed specifically for coil defouling are not eligible. Please refer to ASHRAE's Filtration/Disinfection COVID-19 webpages for \"UV-C In-Duct Air Disinfection guidelines:\n    https://www.ashrae.org/technical-resources/filtration-disinfection"]
[null,null,"3. Must be installed in the supply air stream of an HVAC cooling unit in such a way that no occupants of the space is exposed to the UV radiation."]
[null,null,"4. Installed in-duct UVGI system must be able to provide a sufficient UV-C irradiance (µW/cm2) and exposure time (seconds) to supply, return, or mixed air stream. The system must meet or exceed the lamp wattage per ton shown in Table 13."]
[null,null,"- If your system does not initially qualify for an incentive based on lamp wattage, speak with a RI representative."]
[null,null,"The following are required items that must be submitted along with the completed mechanical & more application:"]
[null,null,"1. Dated invoice/payment application."]
[null,null,"2. Manufacturer's equipment specification sheet documenting unit efficiency."]
[null,null,"Manufacture/Model",null,null,null,null,null,null,"Install Location",null,null,null,null,"Total Wattage Per Unit",null,null,null,"Unit Size (Tons)",null,null,"Qty",null,null,"Rebate",null,null,null,null,null,null,null,null,"List1","List2","List3","Size","Input1","Input2","Input3","Input4","Input5","Input6","Qty","Notes"]
[null,null,null,null,null,null,null,null,null,null,null,null,null,null,null,null,null,null,null,null,null,null,null,null,null,null,null,null,null,{"$f":"COUNTA($C23:$AB23)>0","v":false},null,null,"     Misc","Ultraviolet Germicidal Irradiation",null,null,{"$f":"S23","v":0},{"$f":"O23","v":0},null,null,null,null,null,{"$f":"V23","v":0},{"$f":"J23","v":0}]
[null,null,null,null,null,null,null,null,null,null,null,null,null,null,null,null,null,null,null,null,null,null,null,null,null,null,null,null,null,{"$f":"COUNTA($C24:$AB24)>0","v":false},null,null,"     Misc","Ultraviolet Germicidal Irradiation",null,null,{"$f":"S24","v":0},{"$f":"O24","v":0},null,null,null,null,null,{"$f":"V24","v":0},{"$f":"J24","v":0}]
[null,null,null,null,null,null,null,null,null,null,null,null,null,null,null,null,null,null,null,null,null,null,null,null,null,null,null,null,null,{"$f":"COUNTA($C25:$AB25)>0","v":false},null,null,"     Misc","Ultraviolet Germicidal Irradiation",null,null,{"$f":"S25","v":0},{"$f":"O25","v":0},null,null,null,null,null,{"$f":"V25","v":0},{"$f":"J25","v":0}]
[null,null,null,null,null,null,null,null,null,null,null,null,null,null,null,null,null,null,null,null,null,null,null,null,null,null,null,null,null,{"$f":"COUNTA($C26:$AB26)>0","v":false},null,null,"     Misc","Ultraviolet Germicidal Irradiation",null,null,{"$f":"S26","v":0},{"$f":"O26","v":0},null,null,null,null,null,{"$f":"V26","v":0},{"$f":"J26","v":0}]
[null,null,"Heat Pump Water Heater"]
[null,null,"Rebate:   Tier 1: $250.00 Each"]
[null,null,"Tier 2: $300.00 Each"]
[null,null,"Eligibility Requirements: "]
[null,null,"1. Must replace an existing electric hot-water heater. Natural gas to heat pump retrofits may be covered under the electric technologies program: https://www.savewithsrpbiz.com/rebates/electrictechnology.aspx"]
[null,null,"2. Must exceed a minimum efficiency requirement of EF ≥ 2.35. Rebates are paid at the highest tier that the unit qualifies for:"]
[null,null,"- Tier 1: 3.30 ≤ EF < 3.75"]
[null,null,"- Tier 2: EF ≥ 3.75"]
[null,null,"The following are required items that must be submitted along with the completed mechanical & more application:"]
[null,null,"1. Dated invoice/payment application."]
[null,null,"2. Manufacturer's equipment specification sheet documenting unit efficiency."]
[null,null,"Manufacture/Model",null,null,null,null,null,null,"Install Location",null,null,null,null,null,null,"EF",null,null,null,null,"Qty",null,null,"Rebate",null,null,null,null,null,null,null,null,"List1","List2","List3","Size","Input1","Input2","Input3","Input4","Input5","Input6","Qty","Notes"]
[null,null,null,null,null,null,null,null,null,null,null,null,null,null,null,null,null,null,null,null,null,null,null,null,null,null,null,null,null,{"$f":"COUNTA($C39:$AB39)>0","v":false},null,null,"     Misc","Heat Pump Water Heater",null,null,null,{"$f":"Q39","v":0},null,null,null,null,null,{"$f":"V39","v":0},{"$f":"J39","v":0}]
[null,null,null,null,null,null,null,null,null,null,null,null,null,null,null,null,null,null,null,null,null,null,null,null,null,null,null,null,null,{"$f":"COUNTA($C40:$AB40)>0","v":false},null,null,"     Misc","Heat Pump Water Heater",null,null,null,{"$f":"Q40","v":0},null,null,null,null,null,{"$f":"V40","v":0},{"$f":"J40","v":0}]
[null,null,null,null,null,null,null,null,null,null,null,null,null,null,null,null,null,null,null,null,null,null,null,null,null,null,null,null,null,{"$f":"COUNTA($C41:$AB41)>0","v":false},null,null,"     Misc","Heat Pump Water Heater",null,null,null,{"$f":"Q41","v":0},null,null,null,null,null,{"$f":"V41","v":0},{"$f":"J41","v":0}]
[null,null,null,null,null,null,null,null,null,null,null,null,null,null,null,null,null,null,null,null,null,null,null,null,null,null,null,null,null,{"$f":"COUNTA($C42:$AB42)>0","v":false},null,null,"     Misc","Heat Pump Water Heater",null,null,null,{"$f":"Q42","v":0},null,null,null,null,null,{"$f":"V42","v":0},{"$f":"J42","v":0}]
[null,null,"Variable Speed Pool Pump"]
[null,null,"Rebate:  $135.00 per Horsepower (HP)"]
[null,null,"Eligibility Requirements: "]
[null,null,"1. Rebates are available for pool pumps."]
[null,null,"2. Rebates are not available for motors larger than 25 HP. These may be eligible through the SRP Business Solutions Custom program with pre-approval."]
[null,null,"3. (Retrofit) Replacements of existing pool pump VFDs are not eligible unless existing VFD has been non-functioning for >2 years."]
[null,null,"4. Variable speed pool pump settings must meet or exceed local commercial code requirements."]
[null,null,"5. Pumps must utilize lower speeds at least 8 hours per day."]
[null,null,"The following are required items that must be submitted along with the completed mechanical & more application:"]
[null,null,"1. Dated invoice/payment application."]
[null,null,"Manufacture/Model",null,null,null,null,null,null,"Install Location",null,null,null,null,null,null,"Motor HP",null,null,null,null,"Qty",null,null,"Rebate",null,null,null,null,null,null,null,null,"List1","List2","List3","Size","Input1","Input2","Input3","Input4","Input5","Input6","Qty","Notes"]
[null,null,null,null,null,null,null,null,null,null,null,null,null,null,null,null,null,null,null,null,null,null,null,null,null,null,null,null,null,{"$f":"COUNTA($C54:$AB54)>0","v":false},null,null,"     Misc","VFD: Pool Pump",null,null,{"$f":"Q54","v":0},null,null,null,null,null,null,{"$f":"V54","v":0},{"$f":"J54","v":0}]
[null,null,null,null,null,null,null,null,null,null,null,null,null,null,null,null,null,null,null,null,null,null,null,null,null,null,null,null,null,false,null,null,"     Misc","VFD: Pool Pump",null,null,0,null,null,null,null,null,null,0,0]
[null,null,null,null,null,null,null,null,null,null,null,null,null,null,null,null,null,null,null,null,null,null,null,null,null,null,null,null,null,false,null,null,"     Misc","VFD: Pool Pump",null,null,0,null,null,null,null,null,null,0,0]
[null,null,null,null,null,null,null,null,null,null,null,null,null,null,null,null,null,null,null,null,null,null,null,null,null,null,null,null,null,false,null,null,"     Misc","VFD: Pool Pump",null,null,0,null,null,null,null,null,null,0,0]
[null,null,null,null,null,null,null,null,null,null,null,null,null,null,null,null,null,null,null,null,null,null,null,null,null,null,null,null,null,false,null,null,"     Misc","VFD: Pool Pump",null,null,0,null,null,null,null,null,null,0,0]
[null,null,null,null,null,null,null,null,null,null,null,null,null,null,null,null,null,null,null,null,null,null,null,null,null,null,null,null,null,false,null,null,"     Misc","VFD: Pool Pump",null,null,0,null,null,null,null,null,null,0,0]
[null,null,"Cool Roof"]
[null,null,"Rebate:"]
[null,null,"- Spray-On/Paint-On: Retrofit: $0.10 per Sq. Ft. & New Construction: $0.05 per Sq. Ft."]
[null,null,"- Membrane: Retrofit: $0.20 per Sq. Ft. & New Construction: $0.10 per Sq. Ft."]
[null,null,"Eligibility Requirements: ",null,null,null,null,null,null,null,null,null,null,null,null,null,null,null,null,null,null,null,null,null,null,null,null,null,null,"Above-Deck","Membrane"]
[null,null,"1. Must be installed on a low-slope (2:12 or less) roof.",null,null,null,null,null,null,null,null,null,null,null,null,null,null,null,null,null,null,null,null,null,null,null,null,null,null,"Attic","Spray-On"]
[null,null,"2. Rebates are not simultaneously available for Cool Roofing where rebates have been paid for Roof Insulation.",null,null,null,null,null,null,null,null,null,null,null,null,null,null,null,null,null,null,null,null,null,null,null,null,null,null,"Metal Building","Paint-On"]
[null,null,"3. Must have a rated three-year solar reflectance Index (SRI) of 86 or more.",null,null,null,null,null,null,null,null,null,null,null,null,null,null,null,null,null,null,null,null,null,null,null,null,null,null,"Other"]
[null,null,"- Example: Reflectance = 0.70 and Emissivity = 0.90 (SRI = 86)"]
[null,null,"- Example: Reflectance = 0.69 and Emissivity = 0.98 (SRI = 86)"]
[null,null,"The following are required items that must be submitted along with the completed mechanical & more application:"]
[null,null,"1. Dated invoice/payment application."]
[null,null,"2. Manufacturer's equipment specification sheet documenting roof material's emissivity and reflectance."]
[null,null,"3. (Retrofit) Documentation of the existing roof's emissivity and reflectance."]
[null,null,"Roof Type",null,null,null,"Material",null,null,"Existing Emissivity",null,null,"Installed Emissivity",null,null,"Existing Reflectance",null,null,"Installed Reflectance",null,null,"Area\n(Sq. Ft.)",null,null,"Rebate",null,null,null,null,null,null,null,null,"List1","List2","List3","Size","Input1","Input2","Input3","Input4","Input5","Input6","Qty","Notes"]
[null,null,null,null,null,null,null,null,null,null,null,null,null,null,null,null,null,null,null,null,null,null,null,null,null,null,null,null,null,{"$f":"COUNTA($C75:$AB75)>0","v":false},null,null,"     Misc","Cool Roof",{"$f":"C75","v":0},{"$f":"G75","v":0},{"$f":"V75","v":0},{"$f":"J75","v":0},{"$f":"M75","v":0},{"$f":"P75","v":0},{"$f":"S75","v":0},{"$f":"R75","v":0},{"$f":"U75","v":0},1,"."]
[null,null,null,null,null,null,null,null,null,null,null,null,null,null,null,null,null,null,null,null,null,null,null,null,null,null,null,null,null,{"$f":"COUNTA($C76:$AB76)>0","v":false},null,null,"     Misc","Cool Roof",{"$f":"C76","v":0},{"$f":"G76","v":0},{"$f":"V76","v":0},{"$f":"J76","v":0},{"$f":"M76","v":0},{"$f":"P76","v":0},{"$f":"S76","v":0},{"$f":"R76","v":0},{"$f":"U76","v":0},1,"."]
[null,null,null,null,null,null,null,null,null,null,null,null,null,null,null,null,null,null,null,null,null,null,null,null,null,null,null,null,null,{"$f":"COUNTA($C77:$AB77)>0","v":false},null,null,"     Misc","Cool Roof",{"$f":"C77","v":0},{"$f":"G77","v":0},{"$f":"V77","v":0},{"$f":"J77","v":0},{"$f":"M77","v":0},{"$f":"P77","v":0},{"$f":"S77","v":0},{"$f":"R77","v":0},{"$f":"U77","v":0},1,"."]
[null,null,"Roof Insulation"]
[null,null,"Rebate: Retrofit: $0.20 per Sq. Ft. & New Construction: $0.05 per Sq. Ft."]
[null,null,"Eligibility Requirements: ",null,null,null,null,null,null,null,null,null,null,null,null,null,null,null,null,null,null,null,null,null,null,null,null,null,null,"Above-Deck"]
[null,null,"1. Must be installed on a low-slope (2:12 or less) roof.",null,null,null,null,null,null,null,null,null,null,null,null,null,null,null,null,null,null,null,null,null,null,null,null,null,null,"Attic"]
[null,null,"2. Rebates are not simultaneously available for Roof Insulation where rebates have been paid for Cool Roofing.",null,null,null,null,null,null,null,null,null,null,null,null,null,null,null,null,null,null,null,null,null,null,null,null,null,null,"Metal Building"]
[null,null,"3. (Retrofit) Must have an existing overall (roof/ceiling) R-Value of R-7.0 or less.",null,null,null,null,null,null,null,null,null,null,null,null,null,null,null,null,null,null,null,null,null,null,null,null,null,null,"Other"]
[null,null,"4. (Retrofit) Installation of additional roof insulation must add at least R-10.0 (at roof/ceiling)."]
[null,null,"5. (New Construction) Installation of additional roof/ceiling insulation must add at least R-12.0 above ASHRAE 90.1-2016:"]
[]
[null,null,"- Above-Deck: R-25.0"]
[null,null,"- Metal Building: R-10.0 + R-19.0ci"]
[null,null,"- Attic and Other: R38.0"]
[null,null,"The following are required items that must be submitted along with the completed mechanical & more application:"]
[null,null,"1. Dated invoice/payment application."]
[null,null,"2. Manufacturer's equipment specification sheet documenting additional roof material's overall R-Value."]
[null,null,"3. (Retrofit) Documentation of the existing roof's R-Value."]
[null,null,"Manufacture/Model",null,null,null,null,null,null,"Roof Type",null,null,null,"Existing R-Value",null,null,null,"Installed R-Value",null,null,null,"Area (Sq. Ft.)",null,null,"Rebate",null,null,null,null,null,null,null,null,"List1","List2","List3","Size","Input1","Input2","Input3","Input4","Input5","Input6","Qty","Notes"]
[null,null,null,null,null,null,null,null,null,null,null,null,null,null,null,null,null,null,null,null,null,null,null,null,null,null,null,null,null,{"$f":"COUNTA($C95:$AB95)>0","v":false},null,null,"     Misc","Roof Insulation",{"$f":"J95","v":0},null,{"$f":"V95","v":0},{"$f":"N95","v":0},{"$f":"R95","v":0},null,null,null,null,1,{"$f":"C95","v":0}]
[null,null,null,null,null,null,null,null,null,null,null,null,null,null,null,null,null,null,null,null,null,null,null,null,null,null,null,null,null,{"$f":"COUNTA($C96:$AB96)>0","v":false},null,null,"     Misc","Roof Insulation",{"$f":"J96","v":0},null,{"$f":"V96","v":0},{"$f":"N96","v":0},{"$f":"R96","v":0},null,null,null,null,1,{"$f":"C96","v":0}]
[null,null,null,null,null,null,null,null,null,null,null,null,null,null,null,null,null,null,null,null,null,null,null,null,null,null,null,null,null,{"$f":"COUNTA($C97:$AB97)>0","v":false},null,null,"     Misc","Roof Insulation",{"$f":"J97","v":0},null,{"$f":"V97","v":0},{"$f":"N97","v":0},{"$f":"R97","v":0},null,null,null,null,1,{"$f":"C97","v":0}]
[null,null,"Window Film"]
[null,null,"Rebate:  $0.75 per Sq. Ft."]
[null,null,"Eligibility Requirements: ",null,null,null,null,null,null,null,null,null,null,null,null,null,null,null,null,null,null,null,null,null,null,null,null,null,null,"North",null,"Single Pane, Clear"]
[null,null,"1. Film must be NFRC Certified.",null,null,null,null,null,null,null,null,null,null,null,null,null,null,null,null,null,null,null,null,null,null,null,null,null,null,"Northeast",null,"Single Pane, Colored"]
[null,null,"2. Must be installed in an air conditioned space.",null,null,null,null,null,null,null,null,null,null,null,null,null,null,null,null,null,null,null,null,null,null,null,null,null,null,"East",null,"Double Pane, Clear"]
[null,null,"3. Windows must not have any previous shading.",null,null,null,null,null,null,null,null,null,null,null,null,null,null,null,null,null,null,null,null,null,null,null,null,null,null,"Southeast",null,"Double Pane, Colored"]
[null,null,"4. Must not have a northern exposure (±45° due North) with final qualification at SRP's discretion.",null,null,null,null,null,null,null,null,null,null,null,null,null,null,null,null,null,null,null,null,null,null,null,null,null,null,"South"]
[null,null,"5. Must have a maximum Solar Heat Gain Coefficient (SHGC) of 0.35 (Evaluated at 1/4\" Clear Single Glazing).",null,null,null,null,null,null,null,null,null,null,null,null,null,null,null,null,null,null,null,null,null,null,null,null,null,null,"Southwest"]
[null,null,"6. (New Construction) Installations are not eligible.",null,null,null,null,null,null,null,null,null,null,null,null,null,null,null,null,null,null,null,null,null,null,null,null,null,null,"West"]
[null,null,"The following are required items that must be submitted along with the completed mechanical & more application:",null,null,null,null,null,null,null,null,null,null,null,null,null,null,null,null,null,null,null,null,null,null,null,null,null,null,"Northwest"]
[null,null,"1. Dated invoice/payment application with window square footage."]
[null,null,"2. Manufacturer's equipment specification sheet documenting window SHGC."]
[null,null,"Manufacture/Model",null,null,null,null,null,null,"Exposure",null,null,null,"Window Type",null,null,null,null,"SHGC",null,null,"Coverage (Sq. Ft.)",null,null,"Rebate",null,null,null,null,null,null,null,null,"List1","List2","List3","Size","Input1","Input2","Input3","Input4","Input5","Input6","Qty","Notes"]
[null,null,null,null,null,null,null,null,null,null,null,null,null,null,null,null,null,null,null,null,null,null,null,null,null,null,null,null,null,{"$f":"COUNTA($C111:$AB111)>0","v":false},null,null,"     Misc","Window Film",{"$f":"J111","v":0},{"$f":"N111","v":0},{"$f":"V111","v":0},{"$f":"S111","v":0},null,null,null,null,null,1,{"$f":"C111","v":0}]
[null,null,null,null,null,null,null,null,null,null,null,null,null,null,null,null,null,null,null,null,null,null,null,null,null,null,null,null,null,false,null,null,"     Misc","Window Film",0,0,0,0,null,null,null,null,null,1,0]
[null,null,null,null,null,null,null,null,null,null,null,null,null,null,null,null,null,null,null,null,null,null,null,null,null,null,null,null,null,false,null,null,"     Misc","Window Film",0,0,0,0,null,null,null,null,null,1,0]
[null,null,null,null,null,null,null,null,null,null,null,null,null,null,null,null,null,null,null,null,null,null,null,null,null,null,null,null,null,false,null,null,"     Misc","Window Film",0,0,0,0,null,null,null,null,null,1,0]
[null,null,null,null,null,null,null,null,null,null,null,null,null,null,null,null,null,null,null,null,null,null,null,null,null,null,null,null,null,false,null,null,"     Misc","Window Film",0,0,0,0,null,null,null,null,null,1,0]
[null,null,null,null,null,null,null,null,null,null,null,null,null,null,null,null,null,null,null,null,null,null,null,null,null,null,null,null,null,false,null,null,"     Misc","Window Film",0,0,0,0,null,null,null,null,null,1,0]
[null,null,"Shade Screen"]
[null,null,"Rebate:  $0.80 per Sq. Ft."]
[null,null,"Eligibility Requirements: "]
[null,null,"1. Must be installed in an air conditioned space.",null,null,null,null,null,null,null,null,null,null,null,null,null,null,null,null,null,null,null,null,null,null,null,null,null,null,"North",null,"Single Pane, Clear"]
[null,null,"2. Windows must not have any previous shading.",null,null,null,null,null,null,null,null,null,null,null,null,null,null,null,null,null,null,null,null,null,null,null,null,null,null,"Northeast",null,"Single Pane, Colored"]
[null,null,"3. Must not have a northern exposure (±45° due North) with final qualification at SRP's discretion.",null,null,null,null,null,null,null,null,null,null,null,null,null,null,null,null,null,null,null,null,null,null,null,null,null,null,"East",null,"Double Pane, Clear"]
[null,null,"4. Must have a maximum Solar Heat Gain Coefficient (SHGC) of 0.35 (Evaluated at 1/4\" Clear Single Glazing).",null,null,null,null,null,null,null,null,null,null,null,null,null,null,null,null,null,null,null,null,null,null,null,null,null,null,"Southeast",null,"Double Pane, Colored"]
[null,null,"5. (New Construction) Installations are not eligible.",null,null,null,null,null,null,null,null,null,null,null,null,null,null,null,null,null,null,null,null,null,null,null,null,null,null,"South"]
[null,null,"The following are required items that must be submitted along with the completed mechanical & more application:",null,null,null,null,null,null,null,null,null,null,null,null,null,null,null,null,null,null,null,null,null,null,null,null,null,null,"Southwest"]
[null,null,"1. Dated invoice/payment application with window square footage.",null,null,null,null,null,null,null,null,null,null,null,null,null,null,null,null,null,null,null,null,null,null,null,null,null,null,"West"]
[null,null,"2. Manufacturer's equipment specification sheet documenting window SHGC.",null,null,null,null,null,null,null,null,null,null,null,null,null,null,null,null,null,null,null,null,null,null,null,null,null,null,"Northwest"]
[null,null,"Manufacture/Model",null,null,null,null,null,null,"Exposure",null,null,null,"Window Type",null,null,null,null,"SHGC",null,null,"Coverage (Sq. Ft.)",null,null,"Rebate",null,null,null,null,null,null,null,null,"List1","List2","List3","Size","Input1","Input2","Input3","Input4","Input5","Input6","Qty","Notes"]
[null,null,null,null,null,null,null,null,null,null,null,null,null,null,null,null,null,null,null,null,null,null,null,null,null,null,null,null,null,{"$f":"COUNTA($C129:$AB129)>0","v":false},null,null,"     Misc","Shade Screen",{"$f":"J129","v":0},{"$f":"N129","v":0},{"$f":"V129","v":0},{"$f":"S129","v":0},null,null,null,null,null,1,{"$f":"C129","v":0}]
[null,null,null,null,null,null,null,null,null,null,null,null,null,null,null,null,null,null,null,null,null,null,null,null,null,null,null,null,null,false,null,null,"     Misc","Shade Screen",0,0,0,0,null,null,null,null,null,1,0]
[null,null,null,null,null,null,null,null,null,null,null,null,null,null,null,null,null,null,null,null,null,null,null,null,null,null,null,null,null,false,null,null,"     Misc","Shade Screen",0,0,0,0,null,null,null,null,null,1,0]
[null,null,null,null,null,null,null,null,null,null,null,null,null,null,null,null,null,null,null,null,null,null,null,null,null,null,null,null,null,false,null,null,"     Misc","Shade Screen",0,0,0,0,null,null,null,null,null,1,0]
[null,null,null,null,null,null,null,null,null,null,null,null,null,null,null,null,null,null,null,null,null,null,null,null,null,null,null,null,null,false,null,null,"     Misc","Shade Screen",0,0,0,0,null,null,null,null,null,1,0]
[null,null,null,null,null,null,null,null,null,null,null,null,null,null,null,null,null,null,null,null,null,null,null,null,null,null,null,null,null,false,null,null,"     Misc","Shade Screen",0,0,0,0,null,null,null,null,null,1,0]
["X"]

{"sheet":"Project Report","index":13,"n_rows":65,"n_cols":18,"rows_kept":65,"cut":false,"hidden":false,"merged":[[8,2,8,5],[8,6,8,9],[8,10,8,13],[9,2,9,5],[9,6,9,9],[9,10,9,13],[6,2,6,5],[6,6,6,9],[6,10,6,13],[7,2,7,5],[7,6,7,9],[7,10,7,13],[2,5,2,14],[3,10,3,14],[4,13,4,14],[4,15,4,17],[0,15,0,22],[10,2,10,5],[10,6,10,9],[10,10,10,13],[11,2,11,5],[11,6,11,9],[11,10,11,13],[12,2,12,5],[12,6,12,9],[12,10,12,13],[24,4,27,8],[13,2,13,5],[13,6,13,9],[13,10,13,13],[14,2,14,5],[14,6,14,9],[14,10,14,13],[16,2,16,13],[18,11,18,13],[19,4,22,8],[19,9,22,10],[19,11,19,13],[31,4,33,6],[31,7,33,8],[32,10,32,11],[32,12,32,13],[33,10,34,11],[33,12,34,13],[34,4,35,6],[34,7,35,8],[56,3,56,13],[37,4,38,6],[37,7,38,8],[37,10,38,11],[37,12,38,13],[39,4,40,6],[39,7,40,8],[39,10,40,11],[39,12,40,13],[49,2,49,13],[54,2,54,13],[50,2,50,13],[51,3,51,13],[52,3,52,13],[53,3,53,13],[28,3,29,12],[64,3,64,13],[58,3,58,13],[60,3,60,13],[59,2,59,13],[62,3,62,13],[63,3,63,13],[61,3,61,13],[57,3,57,13],[41,4,42,6],[41,7,42,8],[43,4,44,6],[43,7,44,8],[46,2,46,13],[47,2,47,13],[55,3,55,13]]}
[null,{"$f":"'Customer Information'!$BA$4 & \" - \" & 'Customer Information'!$BA$5","v":"FY26.1.2 - Version 20250828"},null,null,null,null,null,null,null,null,null,null,null,null,null,"HIDE"]
[]
[null,null,null,null,null,{"$f":"Instructions!C4","v":"FY26 SRP Business Solutions Standard Mechanical & More"}]
[null,null,null,null,null,null,null,null,null,null,"Measure Report"]
[null,null,null,null,null,null,null,null,null,null,null,null,null,{"$f":"Version_ID","v":"FY26.1.2"}]
[]
[null,null,"Participant Information",null,null,null,"Vendor Information",null,null,null,"Project Information"]
[null,null,{"$f":"IF(Participant_Name<>\"\",Participant_Name,\"\")","v":""},null,null,null,{"$f":"IF('Customer Information'!T25=\"Yes\",\"Self-Installed\",IF(TA_Name<>\"\",TA_Name,\"\"))","v":""},null,null,null,{"$f":"IF(Project_SBSName<>\"\",Project_SBSName,\"\")","v":""}]
[null,null,null,null,null,null,null,null,null,null,{"$f":"IF(Project_AcctNum<>\"\",\"Account #: \" & Project_AcctNum,\"\")","v":""}]
[null,null,{"$f":"IF(Participant_Address1<>\"\",Participant_Address1,\"\")","v":""},null,null,null,{"$f":"IF(TA_Address1<>\"\",TA_Address1,\"\")","v":""},null,null,null,{"$f":"IF(Project_Address1<>\"\",Project_Address1,\"\")","v":""}]
[null,null,{"$f":"IF(Participant_Address2<>\"\",Participant_Address2,\"\")&IF(Participant_Address3<>\"\",\", \"&Participant_Address3,\"\") & \" \" & IF(Participant_Address4<>\"\",Participant_Address4,\"\")","v":" "},null,null,null,{"$f":"IF(TA_Address2<>\"\",TA_Address2,\"\")&IF(TA_Address3<>\"\",\", \"&TA_Address3,\"\") & \" \" & IF(TA_Address4<>\"\",TA_Address4,\"\")","v":" "},null,null,null,{"$f":"IF(Project_Address2<>\"\",Project_Address2,\"\")&IF(Project_Address2<>\"\",\", \"&Project_Address3,\"\") & \" \" & IF(Project_Address4<>\"\",Project_Address4,\"\")","v":" "}]
[]
[null,null,{"$f":"IF(Participant_Contact<>\"\",Participant_Address2,\"\")&IF(Participant_Title<>\"\",\", \"&Participant_Title,\"\")","v":""},null,null,null,{"$f":"IF(TA_Contact<>\"\",TA_Address2,\"\")&IF(TA_Title<>\"\",\", \"&TA_Title,\"\")","v":""},null,null,null,{"$f":"IF(Project_Type<>\"\",Project_Type,\"\")","v":"Retrofit - Evaluation"},null,null,null,null,"Incremental Cost (Total)"]
[null,null,{"$f":"IF(Participant_Email<>\"\",Participant_Email,\"\")","v":""},null,null,null,{"$f":"IF(TA_Email<>\"\",TA_Email,\"\")","v":""},null,null,null,null,null,null,null,null,{"$f":"IF('Project Summary'!$AO$401<=0,100000,'Project Summary'!$AO$401)","v":100000}]
[null,null,{"$f":"IF(Participant_Phone<>\"\",Participant_Phone,\"\")","v":""},null,null,null,{"$f":"IF(TA_Phone<>\"\",TA_Phone,\"\")","v":""},null,null,null,{"$f":"IF(Project_InstDate<>\"\",\"Installed: \"&CONCATENATE(MONTH(Project_InstDate),\"/\",DAY(Project_InstDate),\"/\",YEAR(Project_InstDate)),\"\")","v":""}]
[]
[null,null,"Project Assessment Summary",null,null,null,null,null,null,null,null,null,null,null,null,"$/kWh","$/kW"]
[]
[null,null,"Electric Cost Savingsa",null,null,null,null,null,null,null,null,"Total Project Cost",null,null,null,{"$f":"IFERROR(VLOOKUP('Customer Information'!$BD$26,'CI Table'!$A$51:$C$62,2,FALSE),ROUND(AVERAGE('CI Table'!$B$51:$B$62),4))","v":0.10009999999999999},{"$f":"IFERROR(VLOOKUP('Customer Information'!$BD$26,'CI Table'!$A$51:$C$62,3,FALSE),ROUND(AVERAGE('CI Table'!$C$51:$C$62),4))","v":0.1173},"(Default)"]
[null,null,null,null,{"$f":"IFERROR(IF($E$25=0,0,$E$32*IF($P$18<>\"\",$P$18,$P$19)+$E$35*IF($Q$18<>\"\",$Q$18,$Q$19)),0)","v":0},null,null,null,null,"Per Year",null,{"$f":"IFERROR(IF(AND(OR(ProjectStage=\"(Evaluation)\",ProjectStage=\"(Reservation)\"),'Customer Information'!$BC$21=0),300000,'Customer Information'!$BC$21+0),0)","v":300000}]
[]
[null,null,null,null,null,null,null,null,null,null,null,null,null,null,null,{"$f":"'Project Summary'!AV401","v":0},"CO2"]
[null,null,null,null,null,null,null,null,null,null,null,null,null,null,null,{"$f":"'Project Summary'!AY401","v":0},"N3O"]
[null,null,"Total Project Rebatesa",null,null,null,null,null,null,null,null,null,null,null,null,{"$f":"'Project Summary'!AW401","v":0},"Cars"]
[null,null,null,null,{"$f":"IFERROR('Project Information'!$T$401+0,0)","v":0},null,null,null,null,null,null,null,null,null,null,{"$f":"'Project Summary'!AX401","v":0},"Trees Grown"]
[]
[]
[]
[null,null,null,"Payment of rebates is subject to Customer's continued compliance with the current fiscal year's Program Terms and Conditions signed by the customer. Customer may request a copy of its signed Terms and Conditions by submitting a request to the SRP Business Solutions Program Administrators (Resource Innovations)."]
[]
[null,null,"Energy Savingsa, b",null,null,null,null,null,null,"Simple Paybacka"]
[null,null,null,null,{"$f":"IFERROR('Project Information'!$X$401+0,0)","v":0},null,null,"kWh/year\nEnergy Savings"]
[null,null,null,null,null,null,null,null,null,null,{"$f":"IF(OR($E$20=0,$E$25=0,$P$14=0),0,($P$14-$E$25)/$E$20)","v":0},null,"with rebates"]
[null,null,null,null,null,null,null,null,null,null,{"$f":"IF(OR($E$20=0,$E$25=0,$P$14=0),0,($P$14)/$E$20)","v":0},null,"with out rebates"]
[null,null,null,null,{"$f":"IFERROR('Project Information'!$AA$401+0,0)","v":0},null,null,"kW/month\nDemand Reduction"]
[]
[null,null,"Environmental Impact",null,null,null,null,null,null,"Return on Investment (ROI)"]
[null,null,null,null,{"$f":"IFERROR($P$24,0)","v":0},null,null,"Equivalent # of Cars\nremoved per year",null,null,{"$f":"IF(OR($E$20=\"\",$E$25=\"\",$P$14=\"\"),0,($E$20+$E$25)/$P$14)","v":0},null,"with rebates"]
[]
[null,null,null,null,{"$f":"IFERROR($P$25,0)","v":0},null,null,"Equivalent # of Trees planted & grow for 10yrs",null,null,{"$f":"IF(OR($E$20=\"\",$E$25=\"\",$P$14=\"\"),0,($E$20)/$P$14)","v":0},null,"without rebates"]
[]
[null,null,null,null,{"$f":"IFERROR($P$22,0)","v":0},null,null,"Equivalent Tons of CO2 removed from the atmosphere"]
[]
[null,null,null,null,{"$f":"IFERROR($P$23,0)","v":0},null,null,"Equivalent Tons of N3O removed from the atmosphere"]
[]
[]
[null,null,"a. Energy savings, electric cost savings, and total project rebates are estimates only and intended solely for SRP mechanical & more projects. Savings may be adjusted for heating/cooling factors based on region and space type. Rebates paid are based upon approved as-installed equipment, operating conditions, and project costs. "]
[null,null,{"$f":"\"b. Energy savings shown above are estimated actual savings at the customer meter. Incentives are calculated using stipulated equipment savings of \" & TEXT($E$32,\"#,##0.00\") & \" kWh/yr.\"","v":"b. Energy savings shown above are estimated actual savings at the customer meter. Incentives are calculated using stipulated equipment savings of 0.00 kWh/yr."}]
[]
[null,null,"Project Next Steps"]
[null,null,"ü  Steps for \"Evaluations\" (Preliminary Reviews, \"PRE\"):"]
[null,null,"1.","Before submitting documents to a SRP Representative, fill out the Customer Information tab of this Excel application. Submit this application alongside any relevant documents related to mechanical & more measures, such as final drawings, submittals, or technical/specification sheets."]
[null,null,"2.","After we review your application, we will provide a preliminary application (\"PRE\") detailing any eligible measures and potential incentives available. This application does not represent a reservation for project funding until it is submitted alongside a competed and signed Terms and Conditions and up-to-date W-9."]
[null,null,"3.","Coordinate with a SRP Representative for the timeline of this project."]
[null,null,"ü  Steps for \"Rebate Reservation Requests\" (\"RRR\"):"]
[null,null,"1.","Before you start your project, fill out the Customer Information, Terms and Conditions, and Project Information tabs of this Excel application. Submit this application alongside a signed copy of the Terms and Conditions, an up-to-date W-9, and any relevant documents related to mechanical & more measures, such as final drawings, submittals, or technical/specification sheets."]
[null,null,"2.","Coordinate with a SRP Representative for the timeline of this project."]
[null,null,"3.","After we review your application, we will provide an approval email/letter outlining the reserved program funding, SRP project ID, and expiration date of the project. If you do not have an approval email/letter, you may still be eligible for incentives, subject to available program funding. You do not have to wait to begin purchasing and installing your new equipment."]
[null,null,"4.","Purchase and install any new equipment."]
[null,null,"ü  Steps for \"Post-Installations\" (\"IN\"):"]
[null,null,"1.","Purchase and install any new equipment."]
[null,null,"2.","Before submitting documents to a SRP Representative, fill out the Customer Information, Terms and Conditions, and Project Information tabs of this Excel application. Submit this application alongside a signed copy of the Terms and Conditions, an up-to-date W-9, and any relevant documents related to mechanical & more measures, such as final drawings, submittals, or technical/specification sheets."]
[null,null,"3.","Submit project cost documentation, such as invoice(s) or a payment application, to your SRP Representative. Comply with any additional requests or inquiries."]
[null,null,"4.","Wait for a project approval letter to be sent to the Participant Email shown in the Customer Information section. If you did not receive an email within 14 days of the last communication with your SRP Representative, check your junk folder or contact your SRP Representative."]
[null,null,"5.","Receive incentive check at the address specified in the Customer Information Rebate Addressed To section within 45 days. If you believe your check is missing or delayed, contact your SRP Representative."]

{"sheet":"Equipment Efficiency Tables","index":14,"n_rows":308,"n_cols":7,"rows_kept":308,"cut":false,"hidden":false,"merged":[[22,3,25,3],[22,4,23,4],[24,4,25,4],[15,3,15,8],[16,3,16,8],[17,3,17,8],[20,3,21,3],[20,4,21,4],[19,3,19,8],[307,3,307,8],[37,3,37,8],[26,3,32,3],[26,4,32,4],[204,3,204,8],[261,3,261,8],[59,3,59,8],[80,3,80,8],[95,3,95,8],[121,3,121,8],[132,3,132,8],[152,3,152,8],[241,3,241,8],[176,3,176,8],[9,3,9,8],[2,2,2,9],[5,3,5,8],[6,3,6,8],[7,3,7,8],[8,3,8,8],[10,3,10,8],[11,3,11,8],[12,3,12,8],[13,3,13,8],[14,3,14,8]]}
[null,{"$f":"'Customer Information'!$BA$4 & \" - \" & 'Customer Information'!$BA$5","v":"FY26.1.2 - Version 20250828"}]
[]
[null,null,"Equipment Efficiency Tables"]
[]
[null,null,null,"Table of Contents:"]
[null,null,null,{"$f":"D20","v":"Table 1: Unitary Air Conditioners (Air-Cooled)"}]
[null,null,null,{"$f":"D38","v":"Table 2: Unitary Heat Pumps (Air-Cooled)"}]
[null,null,null,{"$f":"D60","v":"Table 3: Unitary Air Conditioners & Heat Pumps (Water-Cooled)"}]
[null,null,null,{"$f":"D81","v":"Table 4: Package Terminal Air Conditioners and Heat Pumps"}]
[null,null,null,{"$f":"D96","v":"Table 5: Water Chilling Equipment"}]
[null,null,null,{"$f":"D122","v":"Table 6: High Efficiency Refrigeration Compressors"}]
[null,null,null,{"$f":"D133","v":"Table 7: High Efficiency Computer Room Air Conditioners (CRAC)"}]
[null,null,null,"Table 8: Economizers for CRACs"]
[null,null,null,"Table 9: Economizers for Chillers"]
[null,null,null,"Table 10: Economizers for Air-Conditioners"]
[null,null,null,"Table 11: Economizers for Heat Pumps"]
[null,null,null,"Table 12: Multi-Split Variable Refrigerant Flow Systems"]
[null,null,null,"Table 13: Ultraviolet Germicidal Irradiation"]
[]
[null,null,null,"Table 1: Unitary Air Conditioners (Air-Cooled)"]
[]
[]
[]
[]
[]
[]
[]
[]
[]
[]
[]
[]
[]
[]
[]
[]
[null,null,null,null,"System Type","Tier 1","Tier 2"]
[null,null,null,"Table 2: Unitary Heat Pumps (Air-Cooled)"]
[null,null,null,null,null,"$60/ton","$85/ton "]
[]
[]
[]
[]
[]
[]
[]
[]
[]
[]
[]
[]
[]
[]
[]
[]
[]
[]
[]
[]
[null,null,null,"Table 3: Unitary Air Conditioners & Heat Pumps (Water-Cooled)"]
[]
[]
[]
[]
[]
[]
[]
[]
[]
[]
[]
[]
[]
[]
[]
[]
[]
[]
[]
[]
[null,null,null,"Table 4: Package Terminal Air Conditioners and Heat Pumps"]
[]
[]
[]
[]
[]
[]
[]
[]
[]
[]
[]
[]
[]
[]
[null,null,null,"Table 5: Water Chilling Equipment"]
[]
[]
[]
[]
[]
[]
[]
[]
[]
[]
[]
[]
[]
[]
[]
[]
[]
[]
[]
[]
[]
[]
[]
[]
[]
[null,null,null,"Table 6: High Efficiency Refrigeration Compressors"]
[]
[]
[]
[]
[]
[]
[]
[]
[]
[]
[null,null,null,"Table 7: High Efficiency Computer Room Air Conditioners (CRAC)"]
[]
[]
[]
[]
[]
[]
[]
[]
[]
[]
[]
[]
[]
[]
[]
[]
[]
[]
[]
[null,null,null,"Table 8: Economizers for CRACs for 2b"]
[]
[]
[]
[]
[]
[]
[]
[]
[]
[]
[]
[]
[]
[]
[]
[]
[]
[]
[]
[]
[]
[]
[]
[null,null,null,"Table 9: Economizers for Chillers for 2b"]
[]
[]
[]
[]
[]
[]
[]
[]
[]
[]
[]
[]
[]
[]
[]
[]
[]
[]
[]
[]
[]
[]
[]
[]
[]
[]
[]
[null,null,null,"Table 10: Economizers for Air-Conditioners for 2b"]
[]
[]
[]
[]
[]
[]
[]
[]
[]
[]
[]
[]
[]
[]
[]
[]
[]
[]
[]
[]
[]
[]
[]
[]
[]
[]
[]
[]
[]
[]
[]
[]
[]
[]
[]
[]
[null,null,null,"Table 11: Economizers for Heat Pumps for 2b"]
[]
[]
[]
[]
[]
[]
[]
[]
[]
[]
[]
[]
[]
[]
[]
[]
[]
[]
[]
[null,null,null,"Table 12: Multi-Split Variable Refrigerant Flow Systems"]
[]
[]
[]
[]
[]
[]
[]
[]
[]
[]
[]
[]
[]
[]
[]
[]
[]
[]
[]
[]
[]
[]
[]
[]
[]
[]
[]
[]
[]
[]
[]
[]
[]
[]
[]
[]
[]
[]
[]
[]
[]
[]
[]
[]
[]
[null,null,null,"Table 13: Ultraviolet Germicidal Irradiation"]

{"sheet":"F.A.Q.","index":15,"n_rows":133,"n_cols":7,"rows_kept":133,"cut":false,"hidden":false,"merged":[[83,2,85,2],[83,3,85,3],[0,5,0,6],[2,2,2,3],[64,3,65,3],[64,2,65,2],[64,6,65,6],[64,5,65,5],[42,2,54,2]]}
[null,{"$f":"'Customer Information'!$BA$4 & \" - \" & 'Customer Information'!$BA$5","v":"FY26.1.2 - Version 20250828"},null,null,null,"HIDE"]
[]
[null,null,"Frequently Asked Questions"]
[]
[null,null,"Table of Contents:"]
[null,null,"Macro Security:"]
[null,null,1,{"$f":"D42","v":"How do I enable macros if I'm getting the \"Blocked Content\" (Macros in this document have been disabled) message?"}]
[null,null,"General:"]
[null,null,1,{"$f":"D60","v":"What equipment qualifies and how much is the rebate? "}]
[null,null,2,{"$f":"D62","v":"Who qualifies for this program? "}]
[null,null,3,{"$f":"D64","v":"Why is the application not calculating a rebate?"}]
[null,null,4,{"$f":"D67","v":"How do I use the Measure Handler tool for the Project Information section?"}]
[null,null,5,{"$f":"D69","v":"What needs to be submitted along with completing the measure information?"}]
[null,null,6,{"$f":"D71","v":"What is a manufacturer's specifications sheet?"}]
[null,null,7,{"$f":"D73","v":"What is a payment application? "}]
[null,null,8,{"$f":"D75","v":"How should I apply if my building efficiency upgrade includes installations of lighting and other equipment?"}]
[null,null,9,{"$f":"D78","v":"What if my project involves energy efficient equipment that is not covered by this program?"}]
[null,null,10,{"$f":"D81","v":"How long will this program be available?"}]
[null,null,11,{"$f":"D83","v":"Is there a maximum or minimum rebate amount that an SRP customer can receive from this program?"}]
[null,null,12,{"$f":"D87","v":"Can I submit multiple Mechanical & More Applications or Lighting Applications?"}]
[null,null,13,{"$f":"D89","v":"Where can I find equipment listings for Energy Star® rated products?"}]
[null,null,14,{"$f":"D91","v":"Where can I find out more about this program?"}]
[null,null,"HVAC:"]
[null,null,1,{"$f":"D99","v":"What does AHRI stand for and where can I find equipment ratings?"}]
[null,null,2,{"$f":"D101","v":"Can I receive a rebate for window or room air conditioners, multi-split systems, or air-rotation systems?"}]
[null,null,3,{"$f":"D104","v":"Can I receive a rebate for VFDs on motors larger than 100 HP or installed on a chiller? "}]
[null,null,4,{"$f":"D107","v":"What are the criteria to use non-standard efficiencies based on ASHRAE 90.1-2016 Non-Standard operating conditions for water-cooled centrifugal chillers? Does this apply to any other type of chiller?"}]
[null,null,5,{"$f":"D109","v":"Does this non-standard efficiency approach from ASHRAE 90.1-2016 apply to any other type of chiller?"}]
[null,null,"Refrigeration:"]
[null,null,1,{"$f":"D113","v":"Can I receive a rebate for high efficiency or discus compressors on a New Construction project? "}]
[null,null,"Kitchen Equipment:"]
[null,null,1,{"$f":"D118","v":"Are there any rebates available if I replace my natural gas kitchen equipment with electric kitchen equipment?"}]
[null,null,2,{"$f":"D120","v":"Where can I find the cooking efficiency (CE) for new electric kitchen equipment?"}]
[null,null,"IT & Data Center:"]
[null,null,1,{"$f":"D124","v":"Are there any rebates for purchasing a new desktop or laptop computer?"}]
[null,null,2,{"$f":"D126","v":"What is a fluid economizer for a CRAC unit?"}]
[null,null,"Additional Measures:"]
[null,null,1,{"$f":"D130","v":"What are ASHRAE's recommended COVID-19 design guidelines for Ultraviolet Germicidal Irradiation for filtration or disinfection?"}]
[null,null,2,{"$f":"D132","v":"What is NFRC and where is a list of rated products?"}]
[]
[null,null,"Macro Security:"]
[null,null,"Q:","How do I enable macros if I'm getting the \"Blocked Content\" (Macros in this document have been disabled) message?"]
[null,null,"A:","1. Navigate to File > Options > Trust Center and click on \"Trust Center Settings...\""]
[]
[]
[]
[null,null,null,"2. Go to \"Macro Settings\" and verify either \"Disable VBA macros with notification or Enable VBA macros is selected. Click \"OK,\" then close and reopen the application to check if this fixes the issue."]
[]
[]
[]
[null,null,null,"3. If the last step did not fix the issue, navigate to \"Trusted Locations\", follow the prompts to select (or create) a new trusted location (\"Add new location…\"), [optional] and select the box to allow Subfolders to also be trusted. Save the application to the new trusted location, then reopen the application to check if this fixes the issue."]
[]
[]
[]
[]
[]
[null,null,null,"4. If you continue to have issues, contact us at savewithsrpbiz@srpnet.com or reach out to your SRP representative."]
[]
[null,null,"General:"]
[null,null,"Q:","What equipment qualifies and how much is the rebate? "]
[null,null,"A:",{"$f":"IF(Ref!$B$10,$F61,$G61)","v":"A list of eligible measures can be found on the Instructions tab. For measure-specific requirements and information, please open the Measure Handler (Project information tab), navigate to the measure(s) you are interested in, and look for the Eligibility Requirements and Required Documentation section. By filling out the measure information, the application will calculate a rebate for any eligible measures."},null,"A list of eligible measures can be found on the Instructions tab. For measure-specific requirements and information, please open the Measure Handler (Project information tab), navigate to the measure(s) you are interested in, and look for the Eligibility Requirements and Required Documentation section. By filling out the measure information, the application will calculate a rebate for any eligible measures.","A list of eligible measures can be found on the Instructions tab. Please see the \"Eligibility Requirements\" under each measure on the respective tabs for which you are interested in and complete the measure information fields to apply for a rebate."]
[null,null,"Q:","Who qualifies for this program? "]
[null,null,"A:","The SRP Business Solutions program is available to all SRP non-residential retail electric customers in SRP’s service territory. Customers’ rate schedules can be verified by looking at a recent SRP electric bill."]
[null,null,"Q:","Why is the application not calculating a rebate?"]
[null,null,"A:",{"$f":"IF(Ref!$B$10,$F65,$G65)","v":"All of the line items on the application may not be completed. If that is the case, the line item number shown to the left with any missing information will be highlighted in orange. All items for a given measure must be completed to calculate a rebate, annual savings, and peak savings or the equipment may not be rebate eligible. Please see the Eligibility Requirements section for each measure using the measure window (Project Information tab)."},null,"All of the line items on the application may not be completed. If that is the case, the line item number shown to the left with any missing information will be highlighted in orange. All items for a given measure must be completed to calculate a rebate, annual savings, and peak savings or the equipment may not be rebate eligible. Please see the Eligibility Requirements section for each measure using the measure window (Project Information tab).","The application will no longer calculate your rebate automatically based on the eligibility requirements while macros are disabled. If you wish to use the application with its full functionality, please enable macros on the application. This can be done automatically or semi-automatically by going to File > Options > Trust Center > Trust Center Settings... > Macro Settings and choosing to either \"Disable all macros with notification\" or \"Enable all macros.\" If you have \"Disable all macros with notification\" selected and you have chosen not to enable macros, please reopen this application and choose to enable macros."]
[]
[null,null,"Q:",{"$f":"IF(Ref!$B$10,$F67,$G67)","v":"How do I use the Measure Handler tool for the Project Information section?"},null,"How do I use the Measure Handler tool for the Project Information section?","Are macros required for the application to function properly?"]
[null,null,"A:",{"$f":"IF(Ref!$B$10,$F68,$G68)","v":"Simply select the \"Measure\" cell in the line item that you wish to open the Measure Handler and right-click. If you have already begun to fill in information for that line item, it will populate in the Measure Handler upon opening; otherwise, it will prompt you to select the measure selection and required information needed to complete that measure. This tool also shows the full measure description, eligibility requirements, and required documentation for the given measure."},null,"Simply select the \"Measure\" cell in the line item that you wish to open the Measure Handler and right-click. If you have already begun to fill in information for that line item, it will populate in the Measure Handler upon opening; otherwise, it will prompt you to select the measure selection and required information needed to complete that measure. This tool also shows the full measure description, eligibility requirements, and required documentation for the given measure.","Macros are no longer necessary for this application to properly function; however, you may notice that several features are not enabled or included with the macro-free version of the application, such as the comprehensive Project Information section, calculations for the individual measure eligibilities and rebates, and the Project Report section."]
[null,null,"Q:","What needs to be submitted along with completing the measure information?"]
[null,null,"A:",{"$f":"IF(Ref!$B$10,$F70,$G70)","v":"Please see the Required Documentation section for each measure using the Measure Handler (Project Information tab) for measure-specific documents. In addition to the completed application, a hand- or digitally-signed Terms and Conditions (Terms & Conditions tab), up-to-date W-9, and payment form(s) showing proof of installation of the measure(s) is necessary to submit an application."},null,"Please see the Required Documentation section for each measure using the Measure Handler (Project Information tab) for measure-specific documents. In addition to the completed application, a hand- or digitally-signed Terms and Conditions (Terms & Conditions tab), up-to-date W-9, and payment form(s) showing proof of installation of the measure(s) is necessary to submit an application.","Please see the Required Documentation section under Eligibility Requirements for each measure. In addition to the completed application, a hand- or digitally-signed Terms and Conditions (Terms & Conditions tab), up-to-date W-9, and payment form(s) showing proof of installation of the measure(s) is necessary to submit an application."]
[null,null,"Q:","What is a manufacturer's specifications sheet?"]
[null,null,"A:","It is a document that gives detailed information about the equipment, such as the manufacturer, model number, energy efficiency rating, performance, etc. It is often available on the manufacturer's website."]
[null,null,"Q:","What is a payment application? "]
[null,null,"A:","A written request for compensation, typically between a contractor and a building owner, for work performed on a large construction project. "]
[null,null,"Q:","How should I apply if my building efficiency upgrade includes installations of lighting and other equipment?"]
[null,null,"A:","Customers with a project involving both lighting upgrades and eligible mechanical equipment must submit a Lighting Application and a Mechanical & More Application even if the installations are part of the same upgrade project. To apply for a lighting rebate, a separate lighting application must be submitted. Retrofit lighting projects require pre-approval prior to purchasing, ordering, and installing equipment."]
[null,null,null,"You can find the application online at www.savewithsrpbiz.com or by contacting the Program Administrator."]
[null,null,"Q:","What if my project involves energy efficient equipment that is not covered by this program?"]
[null,null,"A:","SRP offers rebates through a number of energy efficiency programs, including programs for custom efficiency projects. Information about these programs including customer and project eligibility"]
[null,null,null,"requirements can be found online at www.savewithsrpbiz.com or by contacting the Program Administrator."]
[null,null,"Q:","How long will this program be available?"]
[null,null,"A:",{"$f":"\"Customers will be able to receive rebates from this program in its current form for equipment installed through April 30, \" & MID(Version_ID,3,2)+2000 & \", subject to rebate availability. SRP anticipates the SRP Business Solutions Standard program to be an integral part of its future resource plan moving forward.\"","v":"Customers will be able to receive rebates from this program in its current form for equipment installed through April 30, 2026, subject to rebate availability. SRP anticipates the SRP Business Solutions Standard program to be an integral part of its future resource plan moving forward."}]
[null,null,"Q:","Is there a maximum or minimum rebate amount that an SRP customer can receive from this program?"]
[null,null,"A:","Customers are subject to a maximum rebate of $450,000 from May 1 through April 30 for all SRP programs, with separate program area caps of $300,000 for Energy Efficiency programs, $300,000 for Business EV programs, and $100,000 for Beneficial Electrification programs. Program- or technology-based limits may also be applicable, based on program terms and conditions. A customer is defined as all accounts under a single customer, even if these accounts are at multiple sites. There is a minimum rebate amount of $50.00 for mechanical & more projects ($100.00 for lighting) required for participation in the SRP Business Solutions Standard Program. SRP reserves the right to determine at their sole discretion the program year to which a rebate is attributed."]
[]
[]
[null,null,"Q:","Can I submit multiple Mechanical & More Applications or Lighting Applications?"]
[null,null,"A:","Customers are encouraged to maximize their energy savings by undertaking comprehensive facility-wide energy efficiency upgrade projects. However, a single customer may submit multiple applications for different projects throughout the program year. Customer rebate caps still apply."]
[null,null,"Q:","Where can I find equipment listings for Energy Star® rated products?"]
[null,null,"A:","By using the Energy Star® Product Finder, you can search for the equipment category and the manufacturer or model number of the equipment on their website: https://www.energystar.gov/productfinder"]
[null,null,"Q:","Where can I find out more about this program?"]
[null,null,"A:","Customers can learn more about the SRP Business Solutions Standard program and other SRP programs in the following ways:"]
[null,null,null,"  • Web:          www.savewithsrpbiz.com"]
[null,null,null,"  • Telephone:  (602) 236-3054"]
[null,null,null,"  • Fax:           (480) 345-7601"]
[null,null,null,"  • Email:        savewithsrpbiz@srpnet.com"]
[]
[null,null,"HVAC:"]
[null,null,"Q:","What does AHRI stand for and where can I find equipment ratings?"]
[null,null,"A:","AHRI is the Air-Conditioning, Heating, and Refrigeration Institute and it has a product rating directory for HVAC units (https://www.ahridirectory.org)."]
[null,null,"Q:","Can I receive a rebate for window or room air conditioners, multi-split systems, or air-rotation systems?"]
[null,null,"A:","These systems are potentially eligible for rebates under the Custom Business Solutions program which requires pre-approval prior to purchasing, ordering, or installing equipment. Information about these"]
[null,null,null,"programs including customer and project eligibility requirements can be found online at www.savewithsrpbiz.com or by contacting the Program Administrator."]
[null,null,"Q:","Can I receive a rebate for VFDs on motors larger than 100 HP or installed on a chiller? "]
[null,null,"A:","These VFDs are potentially eligible for rebates under the Custom Business Solutions program which requires pre-approval prior to purchasing, ordering, or installing equipment. Information about these"]
[null,null,null,"programs including customer and project eligibility requirements can be found online at www.savewithsrpbiz.com or by contacting the Program Administrator."]
[null,null,"Q:","What are the criteria to use non-standard efficiencies based on ASHRAE 90.1-2016 Non-Standard operating conditions for water-cooled centrifugal chillers? Does this apply to any other type of chiller?"]
[null,null,"A:","ASHRAE's non-standard minimum efficiencies are only eligible for water-cooled centrifugal chillers. Any other type of chiller operating outside of standard AHRI 550/590 operating conditions may be eligible if they meet the standard minimum efficiencies for their respective type. For water-cooled centrifugal chillers which are designed to operate outside of AHRI 550/590 conditions, section 6.4.1.2 specifies that they must have leaving water temperatures of at least 36°F at the evaporator and at most 115°F at the condenser. The designed lift must be between 20 and 80°F. For chillers that operate outside of these leaving water temperatures, the minimum efficiency requirements for positive-displacement chillers must be met."]
[null,null,"Q:","Does this non-standard efficiency approach from ASHRAE 90.1-2016 apply to any other type of chiller?"]
[null,null,"A:","ASHRAE's non-standard minimum efficiencies are only eligible for water-cooled centrifugal chillers. Any other type of chiller operating outside of standard AHRI 550/590 operating conditions may be eligible if they meet the standard minimum efficiencies for their respective type. Alternatively, these chillers may be eligible under the Custom Business Solutions program, which requires pre-approval prior to purchasing, ordering, or installing equipment"]
[]
[null,null,"Refrigeration:"]
[null,null,"Q:","Can I receive a rebate for high efficiency or discus compressors on a New Construction project? "]
[null,null,"A:","These compressors are potentially eligible for rebates under the Custom Business Solutions program which requires pre-approval prior to purchasing, ordering, or installing equipment. Information about"]
[null,null,null,"these programs including customer and project eligibility requirements can be found online at www.savewithsrpbiz.com or by contacting the Program Administrator."]
[]
[null,null,"Kitchen Equipment:"]
[null,null,"Q:","Are there any rebates available if I replace my natural gas kitchen equipment with electric kitchen equipment?"]
[null,null,"A:","Natural gas to electric retrofits may be covered under the electric technologies program:\nhttps://www.savewithsrpbiz.com/rebates/electrictechnology.aspx"]
[null,null,"Q:","Where can I find the cooking efficiency (CE) for new electric kitchen equipment?"]
[null,null,"A:","Some kitchen equipment has a CE rating published by Energy Star®, which can be found on their Product Finder (https://www.energystar.gov/productfinder) by searching for the kitchen equipment category and the manufacturer or model number, and clicking on the listing for more results."]
[]
[null,null,"IT & Data Center:"]
[null,null,"Q:","Are there any rebates for purchasing a new desktop or laptop computer?"]
[null,null,"A:","No, new desktop or laptop computers are not eligible for rebates."]
[null,null,"Q:","What is a fluid economizer for a CRAC unit?"]
[null,null,"A:","The fluid economizer utilizes a separate liquid-to-air cooling coil within the CRAC unit and the cooled water or glycol fluid returning from the external fluid cooler to cool return air directly, much like a chilled water air handling unit (i.e., without the use of compressors). The “economizer” cooling can either augment or can take the place of compressor cooling, but only when returning water or glycol fluid temperatures are low enough to provide significant direct cooling from the liquid-to-air cooling coil."]
[]
[null,null,"Additional Measures:"]
[null,null,"Q:","What are ASHRAE's recommended COVID-19 design guidelines for Ultraviolet Germicidal Irradiation for filtration or disinfection?"]
[null,null,"A:","ASHRAE's Filtration/Disinfection COVID-19 guidelines for \"UV-C In-Duct Air Disinfection\" can be found on their website at: https://www.ashrae.org/technical-resources/filtration-disinfection"]
[null,null,"Q:","What is NFRC and where is a list of rated products?"]
[null,null,"A:","The NFRC is the National Fenestration Rating Council provides ratings on skylights, doors, and windows and publishes them on their website: http://search.nfrc.org/search/searchDefault.aspx"]

{"sheet":"CI Table","index":16,"n_rows":62,"n_cols":3,"rows_kept":62,"cut":false,"hidden":true,"merged":[]}
[]
["ListProjectType","ListBuildingType","ASHRAE Bldg Type"]
["New Construction","Assisted Living Facility","Assisted Living Facility"]
["Retrofit","Automotive Facility","Automotive Facility"]
["ListProjectStage","Casino","Casino"]
["(Evaluation)","Convention Center/Multipurpose","Convention Center"]
["(Reservation)","Court House","Court House"]
["(Installed)","Data Center","Data Center"]
["ListPreparedBy","Dining: Bar Lounge/Leisure","Dining: Bar Lounge/Leisure"]
["Customer","Dining: Cafeteria/Fast Food","Dining: Cafeteria/Fast Food"]
["Installer/Trade Ally","Dining: Family","Dining: Family"]
["Distributer","Dormitory","Dormitory"]
["SRP Representative","Exercise Center","Exercise Center"]
["Other","Fire Station","Fire Station"]
["ListAddressedTo","Grow Facility","Grow Facility"]
["Installation Address","Gymnasium","Gymnasium"]
["Participant Address","Health Care - Clinic","Health Care - Clinic"]
["Trade Ally Address","Health Care - Hospital","Health Care - Hospital"]
["Other: Please Specify","Hotel","Hotel"]
["ListHeardAbout","Laboratory","Laboratory"]
[null,"Library","Library"]
["SRP Web Site","Manufacturing Facility","Manufacturing Facility"]
["SRP Account Manager","Motel","Motel"]
["Radio","Movie Theater","Motion Picture Theater"]
["TV","Multi-Family Housing","Multi-Family Housing"]
["Mail","Museum","Museum"]
["E-Mail","Office","Office"]
["Trade Show","Parking Garage","Parking Garage"]
["Newspaper / Magazine","Penitentiary","Penitentiary"]
["Bill / Bill Insert / Contact","Performing Arts Theater","Performing Arts Theater"]
["Internet / Online Advertising","Police Station","Police Station"]
["SRP Call","Post Office","Post Office"]
["SRP Representative","Religious Building","Religious Building"]
["SRP Electronic Newsletter","Retail, Food/Grocery","Retail, Food/Grocery"]
["Industry Event","Retail, Commodity","Retail, Commodity"]
["SRP Event","Retail, Services","Retail, Specialty"]
["Contractor / Vendor","Elementary/Middle School","Primary School"]
["Colleague / Word Of Mouth","High School","Sec. School"]
["Don't Know","College/University","University"]
["ListApplicantIs","Sports Arena","Sports Arena"]
[null,"Town Hall","Town Hall"]
["Account Holder","Transit Station","Transportation"]
["Facility Owner","Warehouse, Refrigerated","Warehouse, Refrigerated"]
["Project Manager","Warehouse, Commercial","Warehouse, Commercial"]
[null,"Warehouse, Industrial","Warehouse, Industrial"]
[null,"Workshop","Workshop"]
[]
[]
[]
["ListBillingRate","ListBillingkWh","ListBillingkW"]
["E-31",{"$f":"B52","v":0.1106},{"$f":"C52","v":0.1245}]
["E-32",0.1106,0.1245]
["E-33",{"$f":"B52","v":0.1106},{"$f":"C52","v":0.1245}]
["E-34",{"$f":"B52","v":0.1106},{"$f":"C52","v":0.1245}]
["E-36",0.1138,0.12809999999999999]
["E-47",0.1103,0.1305]
["E-48",0.1123,0.1173]
["E-61",9.6199999999999994E-2,0.1227]
["E-63",9.6299999999999997E-2,0.1232]
["E-65",7.9299999999999995E-2,0.1094]
["E-66",7.0000000000000007E-2,6.7500000000000004E-2]
["E-67",8.0299999999999996E-2,0.1108]

{"sheet":"Equipment Lookups","index":17,"n_rows":1015,"n_cols":22,"rows_kept":1015,"cut":false,"hidden":true,"merged":[]}
["CATEGORY",null,"SUBCATEGORY",null,null,"SUBCATEGORY INPUTS",null,null,"EQUIPMENT TYPE INPUTS",null,null,null,null,null,"LIST 1, LIST 2 INPUTS",null,null,"[VARIANT] INPUTS"]
[]
["Measure Category"," ","HVAC","HVAC[FormulaName]",null,"UnitaryAC[Inputs]","UnitaryAC[Description]"," ","UnitaryAC_EquipmentType[Inputs]","EquipmentType[Code]","EquipmentType[Eligibility]","EquipmentType[Description]","EquipmentType[MeasureLife]"," ","UnitaryAC_HeatReject[Inputs]","HeatReject[Code]"," ","UnitaryAC_Input1[EquipmentType]","Input1[Title]","Input1[Description]"," "]
["HVAC"," ","     Unitary Air-Conditioning Equipment","UnitaryAC",null,"EquipmentType","Equipment Type"," ","Packaged Air-Conditioner","AC - Package","Unitary Air-Conditioner (Packaged):\n     1. Window, room air conditioners, multi-split VRF systems >5 tons, and air-rotation systems are not eligible.\n     2. Rebates will be paid on a tiered efficiency structure according to the AHRI size and efficiency of the equipment.\n     3. Must be rated at AHRI standard rating conditions.\n     3. Rebates will be paid for highest efficiency tier for which the unit qualifies.\n     4. Air-Cooled systems must meet or exceed the 2022 CEE efficiencies shown in Table 1.\n     5. Water- and Evap-Cooled systems must meet or exceed the 2022 CEE efficiencies shown in Table 3.\n     6. Equipment must use a minimum ozone-depleting refrigerant.","Rebate:\n     - Air-Cooled Unitary AC:\n          - Tier 1: $60.00/Ton\n          - Tier 2: $85.00/Ton\n     - Water-Cooled & Evaporatively-Cooled Unitary AC:\n          - $75.00/Ton\n\nRequired Documentation:\n     1. Dated invoice/payment application.\n     2. Manufacturer's equipment specification sheet documenting the efficiency or AHRI reference numbers.",15," ","Air-Cooled","Air-Cooled"," ","Air-CooledPackaged Air-Conditioner1","SEER","Cooling Seasonal Efficiency, SEER"," "]
["Refrigeration"," ","     Unitary Heat Pump Equipment","UnitaryHP",null,"HeatReject","Heat Rejection"," ","Split Air-Conditioner","AC - Split","Unitary Air-Conditioner (Split):\n     1. Window, room air conditioners, multi-split VRF systems >5 tons, and air-rotation systems are not eligible. Multi-split\n     VRF systems <65,000 BTU/h may be qualified as unitary equipment split air-conditioners.\n     2. Rebates will be paid on a tiered efficiency structure according to the AHRI size and efficiency of the equipment.\n     3. Must be rated at AHRI standard rating conditions.\n     3. Rebates will be paid for highest efficiency tier for which the unit qualifies.\n     4. Air-Cooled systems must meet or exceed the 2022 CEE efficiencies shown in Table 1.\n     5. Water- and Evap-Cooled systems must meet or exceed the 2022 CEE efficiencies shown in Table 3.\n     6. Equipment must use a minimum ozone-depleting refrigerant.",{"$f":"$L$4","v":"Rebate:\n     - Air-Cooled Unitary AC:\n          - Tier 1: $60.00/Ton\n          - Tier 2: $85.00/Ton\n     - Water-Cooled & Evaporatively-Cooled Unitary AC:\n          - $75.00/Ton\n\nRequired Documentation:\n     1. Dated invoice/payment application.\n     2. Manufacturer's equipment specification sheet documenting the efficiency or AHRI reference numbers."},15," ","Water-Cooled","Water-Cooled"," ","Air-CooledPackaged Air-Conditioner2","IEER","Cooling Seasonal Efficiency, IEER"," "]
["Kitchen Equipment"," ","     Chiller","Chiller",null,"HeatType",{"$f":"IF(ProjectType=\"New Construction\",\"Heating Type\",\"Heating Type (Replaced)\")","v":"Heating Type (Replaced)"}," ","Multi-Split VRF A/C","MSACV","Unitary Air-Conditioner (Multi-Split Variable Refrigerant Flow):\n     1. Variable refrigerant air conditioner or heat pump systems must be rated at ANSI/AHRI 1230-2013 standard performance\n     conditions. Smaller units <65,000 Btu/h may qualify under the Unitary Equipment Split Air-Conditioner/Heat Pump measure.\n     2. Must meet or exceed 2022 CEE efficiencies shown in Table 10.","Rebate:\n     - Multi-Split AC: $75.00/Ton\n\nRequired Documentation:\n     1. Dated invoice/payment application.\n     2. Manufacturer's equipment specification sheet documenting compliance with equipment eligibility.",15," ","Evaporatively-Cooled","Evap-Cooled"," ","Air-CooledPackaged Air-Conditioner3","IEER","Cooling Seasonal Efficiency, IEER"," "]
["Compressed Air"," ","     Direct & Indirect Evaporative Cooler","EvapCooler",null,"BTU/H","AHRI Size (British Thermal Units)"," ","Packaged Terminal A/C (PTAC)","PTAC","Packaged Terminal Air-Conditioner (PTAC):\n     1. Unit must be rated under AHRI standard rated conditions and meet or exceed 2022 CEE efficiencies shown in Table 4.","Rebate:\n     - PTAC: $40.00/Ton\n\nRequired Documentation:\n     1. Dated invoice/payment application.\n     2. Manufacturer's equipment specification sheet documenting the efficiency or AHRI reference numbers.",15," ",null,null,null,"Air-CooledPackaged Air-Conditioner4","IEER","Cooling Seasonal Efficiency, IEER"," "]
["IT & Data Center"," ","     Outside-Air Economizer","OAEcon",null,"Input1","[Variant]"," ","Vertical Terminal A/C (VTAC)","VTAC","Vertical Terminal Air-Conditioner (VTAC):\n     1. Units ≥ 65,000 BTU/h (5.5 tons) are not eligible.\n     2. Unit must be rated under AHRI (ARI 390) standard rated conditions and meet or exceed 2022 CEE efficiencies shown in Table 4.","Rebate:\n     - VTAC: $75.00/Ton\n\nRequired Documentation:\n     1. Dated invoice/payment application.\n     2. Manufacturer's equipment specification sheet documenting the efficiency or AHRI reference numbers.",15," ","UnitaryAC_HeatType[Inputs]","HeatType[Code]"," ","Air-CooledPackaged Air-Conditioner5","IEER","Cooling Seasonal Efficiency, IEER"," "]
["Additional Measures"," ","     Carbon Dioxide Sensor (CO2)","CO2SNR",null,"Input2","[Variant]"," ",null,null,null,null,null,null,{"$f":"IF(ProjectType=\"New Construction\",\"None\",\"None (Replace None/Elect. Res./Other)\")","v":"None (Replace None/Elect. Res./Other)"},{"$f":"IF(ProjectType=\"New Construction\",\"ER\",\"ER\")","v":"ER"}," ","Water-CooledPackaged Air-Conditioner1",null,null," "]
[null,null,"     Hotel Room Occupancy Controller","HROC",null,"Input3","[Variant]"," ","UnitaryHP_EquipmentType[Inputs]","EquipmentType[Code]","EquipmentType[Eligibility]","EquipmentType[Description]","EquipmentType[MeasureLife]"," ",{"$f":"IF(ProjectType=\"New Construction\",\"Electric Resistance\",\"None (Replace Gas)\")","v":"None (Replace Gas)"},"None-Gas"," ","Water-CooledPackaged Air-Conditioner2","IEER","Cooling Seasonal Efficiency, IEER"," "]
[null,null,"     HVAC: Other","HVACOther",null,"Input4","[Variant]"," ","Packaged Heat Pump","HP - Package","Unitary Heat Pump (Packaged):\n     1. Window, room air conditioners, multi-split VRF systems >5 tons, and air-rotation systems are not eligible.\n     2. Rebates will be paid on a tiered efficiency structure according to the AHRI size and efficiency of the equipment.\n     3. Must be rated at AHRI standard rating conditions.\n     3. Rebates will be paid for highest efficiency tier for which the unit qualifies.\n     4. Air-Cooled systems must meet or exceed 2022 CEE efficiencies shown in Table 2. For Heat Pumps that meet or exceed\n     the SEER/IEER and EER requirements, but not the HSPF/COP1 requirements, these Heat Pumps may qualify for the Air\n     Conditioner rebate.\n     5. Water-Cooled systems must meet or exceed the 2022 CEE efficiencies shown in Table 3. For Heat Pumps that meet or\n     exceed the SEER/IEER and EER requirements, but not the HSPF/COP1 requirements, these Heat Pumps may qualify for the\n     Air Conditioner rebate.\n     6. Equipment must use a minimum ozone-depleting refrigerant.","Rebate:\n     - Air-Cooled Unitary HP:\n          - Tier 1: $110.00/Ton\n          - Tier 2: $135.00/Ton\n     - Water-Cooled Unitary HP:\n          - $75.00/Ton\n\nRequired Documentation:\n     1. Dated invoice/payment application.\n     2. Manufacturer's equipment specification sheet documenting the efficiency or AHRI reference numbers.",15," ",{"$f":"IF(ProjectType=\"New Construction\",\"Gas\",\"Elect. Res. (Replace None/Elect. Res./Other)\")","v":"Elect. Res. (Replace None/Elect. Res./Other)"},{"$f":"IF(ProjectType=\"New Construction\",\"Other\",\"ER\")","v":"ER"}," ","Water-CooledPackaged Air-Conditioner3","IEER","Cooling Seasonal Efficiency, IEER"," "]
[null,null,"Refrigeration","Refrig[FormulaName]",null,null,null," ","Split Heat Pump","HP - Split","Unitary Heat Pump (Split):\n     1. Window, room air conditioners, multi-split VRF systems >5 tons, and air-rotation systems are not eligible. Multi-split\n     VRF systems <65,000 BTU/h may be qualified as unitary equipment split air-conditioners or heat pumps.\n     2. Rebates will be paid on a tiered efficiency structure according to the AHRI size and efficiency of the equipment.\n     3. Must be rated at AHRI standard rating conditions.\n     3. Rebates will be paid for highest efficiency tier for which the unit qualifies.\n     4. Air-Cooled systems must meet or exceed 2022 CEE efficiencies shown listed in Table 2. For Heat Pumps that meet or exceed\n     the SEER/IEER and EER requirements, but not the HSPF/COP1 requirements, these Heat Pumps may qualify for the Air Conditioner\n     rebate.\n     5. Water-Cooled systems must meet or exceed the 2022 CEE efficiencies shown in Table 3. For Heat Pumps that meet or exceed\n     the SEER/IEER and EER requirements, but not the HSPF/COP1 requirements, these Heat Pumps may qualify for the Air Conditioner\n     rebate.\n     6. Equipment must use a minimum ozone-depleting refrigerant.",{"$f":"$L$11","v":"Rebate:\n     - Air-Cooled Unitary HP:\n          - Tier 1: $110.00/Ton\n          - Tier 2: $135.00/Ton\n     - Water-Cooled Unitary HP:\n          - $75.00/Ton\n\nRequired Documentation:\n     1. Dated invoice/payment application.\n     2. Manufacturer's equipment specification sheet documenting the efficiency or AHRI reference numbers."},15," ",{"$f":"IF(ProjectType=\"New Construction\",\"Other\",\"Elect. Res. (Replace Gas)\")","v":"Elect. Res. (Replace Gas)"},{"$f":"IF(ProjectType=\"New Construction\",\"Other\",\"ER-Gas\")","v":"ER-Gas"}," ","Water-CooledPackaged Air-Conditioner4","IEER","Cooling Seasonal Efficiency, IEER"," "]
[null,null,"     Refrigeration Compressor","RefrigComp",null,null,null," ","Multi-Split VRF HP","MSHPV","Unitary Heat Pump (Multi-Split Variable Refrigerant Flow):\n     1. Must be >65,000 BTU/h and be rated at ANSI/AHRI 1230-2016 standard performance conditions. Units rated outside of\n     standard performance conditions may qualify under the SRP Business Solutions Custom program with pre-approval.\n     2. Must meet or exceed 2022 CEE efficiencies shown in Table 10. For Heat Pumps that meet or exceed the \n     SEER/IEER and EER requirements, but not the HSPF/COP1 requirements, these Heat Pumps may qualify for the \n     Air Conditioner rebate.","Rebate:\n     - Multi-Split HP: $75.00/Ton\n\nRequired Documentation:\n     1. Dated invoice/payment application.\n     2. Manufacturer's equipment specification sheet documenting compliance with equipment eligibility.",15," ",{"$f":"IF(ProjectType=\"New Construction\",\"\",\"Gas\")","v":"Gas"},{"$f":"IF(ProjectType=\"New Construction\",\"\",\"Other\")","v":"Other"}," ","Water-CooledPackaged Air-Conditioner5","IEER","Cooling Seasonal Efficiency, IEER"," "]
[null,null,"     Refrigeration: Other","RefOther",null,null,null," ","Multi-Split VRF HP w/ Heat Recovery","MSHPVH","Rebate:  $75/Ton (AC: $75/Ton)\nEligibility Requirements:\n     1. Must be >65,000 BTU/h and be rated at ANSI/AHRI 1230-2013 standard performance conditions. Units rated outside of\n     standard performance conditions may qualify under the SRP Business Solutions Custom program with pre-approval.\n     2. Must meet or exceed 2016 CEE efficiencies shown in Table 10. For Heat Pumps that meet or exceed the \n     SEER/IEER and EER requirements, but not the HSPF/COP1 requirements, these Heat Pumps may qualify for the\n     Air Conditioner rebate.\nRequired Documentation:\n     1. Dated invoice/payment application.\n     2. Manufacturer's equipment specification sheet documenting compliance with equipment eligibility.",{"$f":"$L$13","v":"Rebate:\n     - Multi-Split HP: $75.00/Ton\n\nRequired Documentation:\n     1. Dated invoice/payment application.\n     2. Manufacturer's equipment specification sheet documenting compliance with equipment eligibility."},15," ",{"$f":"IF(ProjectType=\"New Construction\",\"\",\"Other\")","v":"Other"},{"$f":"IF(ProjectType=\"New Construction\",\"\",\"Other\")","v":"Other"}," ","Evaporatively-CooledPackaged Air-Conditioner1",null,null," "]
[null,null,"Kitchen Equipment","Kitchen[FormulaName]",null,"UnitaryHP[Inputs]","UnitaryHP[Description]"," ","Packaged Terminal HP (PTHP)","PTHP","Packaged Terminal Heat Pump (PTAC):\n     1. Unit must be rated under AHRI standard rated conditions and meet or exceed the efficiencies shown in Table 4.\n     For Heat Pumps that meet or exceed the SEER/IEER and EER requirements, but not the HSPF/COP1 requirements,\n     these Heat Pumps may qualify for the Air Conditioner rebate.","Rebate:\n     - PTHP: $40.00/Ton\n\nRequired Documentation:\n     1. Dated invoice/payment application.\n     2. Manufacturer's equipment specification sheet documenting the efficiency or AHRI reference numbers.",15," ",null,null,null,"Evaporatively-CooledPackaged Air-Conditioner2","IEER","Cooling Seasonal Efficiency, IEER"," "]
[null,null,"     Kitchen Equipment: All","KitchenOther",null,"EquipmentType","Equipment Type"," ","Vertical Terminal HP (VTHP)","VTHP","Vertical Terminal Heat Pump (VTHP):\n     1. Units ≥ 65,000 BTU/h (5.5 tons) are not eligible.\n     2. Unit must be rated under AHRI (ARI 390) standard rated conditions and meet or exceed the efficiencies shown in\n     Table 4. For Heat Pumps that meet or exceed the SEER/IEER and EER requirements, but not the HSPF/COP1\n     requirements, these Heat Pumps may qualify for the Air Conditioner rebate.","Rebate:\n     - VTHP: $75.00/Ton\n\nRequired Documentation:\n     1. Dated invoice/payment application.\n     2. Manufacturer's equipment specification sheet documenting the efficiency or AHRI reference numbers.",15," ","UnitaryHP_HeatReject[Inputs]","HeatReject[Code]"," ","Evaporatively-CooledPackaged Air-Conditioner3","IEER","Cooling Seasonal Efficiency, IEER"," "]
[null,null,"Compressed Air","CA[FormulaName]",null,"HeatReject","Heat Rejection"," ",null,null,null,null,null,null,"Air-Cooled","Air-Cooled"," ","Evaporatively-CooledPackaged Air-Conditioner4","IEER","Cooling Seasonal Efficiency, IEER"," "]
[null,null,"     Compressed Air: All","CAOther",null,"HeatType",{"$f":"IF(ProjectType=\"New Construction\",\"Heating Type\",\"Heating Type (Replaced)\")","v":"Heating Type (Replaced)"}," ","Chiller_EquipmentType[Inputs]","EquipmentType[Code]","EquipmentType[Eligibility]","EquipmentType[Description]","EquipmentType[MeasureLife]"," ","Water-Cooled","Water-Cooled"," ","Evaporatively-CooledPackaged Air-Conditioner5","IEER","Cooling Seasonal Efficiency, IEER"," "]
[null,null,"IT & Data Center","ITDC[FormulaName]",null,"BTU/H","AHRI Size (British Thermal Units)"," ","Centrifugal","Centrifugal","Chilled Water System (Chiller):\n     1. Back-up service units are not eligible.\n     2. For AHRI Standard 550/590 conditions (outlined below), chiller efficiencies must meet or exceed the minimum efficiency\n     requirements shown in Table 5.\n          - Condenser conditions: 85 degF\n          - Evaporator conditions: 44 degF\n     3. For Water-Cooled Centrifugal chillers operating with Non-Standard conditions, the new efficiencies must meet or exceed\n     the adjusted efficiency requirements, as outlined in ASHRAE 90.1-2016, section 6.4.1.2 \"Minimum Equipment Efficiencies—Listed\n     Equipment—Nonstandard Conditions\" by entering the design Leaving Fluid Temperatures for the Condenser and Evaporator.\n     4. If the unit has a Variable Frequency Drive (VFD) installed, this must be reflected in the chiller IPLV rating.\n     5. (Retrofit) Water-Cooled chillers that replace Air-Cooled chillers may be eligible under the SRP Business Solutions Custom program \n     for evaluating higher energy improvements for air-to-water conversions. Chillers submitted through the SRP Business Solutions \n     Standard program are eligible for incentives offered with a baseline of an equivalent chiller heat rejection only.","Rebate:\n     - Air-Cooled: $15.00/Ton + $350/Ton/(Min. IPLV - Proposed IPLV)\n     - Water-Cooled: $45.00/Ton + $450/Ton/(Min. IPLV - Proposed IPLV)\n\nRequired Documentation:\n     1. Dated invoice/payment application.\n     2. Manufacturer's equipment specification sheet documenting the Full-Load (100%) and IPLV efficiency ratings.\n     3. If the chiller has more than 20% process cooling load, please submit the average annual loading percentage\n     and operating hours.",20," ",null,null,null,"Air-CooledSplit Air-Conditioner0","SEER","Cooling Seasonal Efficiency, SEER"," "]
[null,null,"     High-Efficiency Computer Room A/C (CRAC)","CRAC",null,"Input1","[Variant]"," ","Reciprocating","Reciprocating","Chilled Water System (Chiller):\n     1. Back-up service units are not eligible.\n     2. Must meet or exceed the minimum AHRI Standard 550/590 efficiency requirements shown in Table 5.\n     3. If the unit has a Variable Frequency Drive (VFD) installed, this must be reflected in the chiller IPLV rating.\n     4. (Retrofit) Water-Cooled chillers that replace Air-Cooled chillers may be eligible under the SRP Business Solutions Custom program \n     for evaluating higher energy improvements for air-to-water conversions. Chillers submitted through the SRP Business Solutions \n     Standard program are eligible for incentives offered with a baseline of an equivalent chiller heat rejection only.",{"$f":"$L$19","v":"Rebate:\n     - Air-Cooled: $15.00/Ton + $350/Ton/(Min. IPLV - Proposed IPLV)\n     - Water-Cooled: $45.00/Ton + $450/Ton/(Min. IPLV - Proposed IPLV)\n\nRequired Documentation:\n     1. Dated invoice/payment application.\n     2. Manufacturer's equipment specification sheet documenting the Full-Load (100%) and IPLV efficiency ratings.\n     3. If the chiller has more than 20% process cooling load, please submit the average annual loading percentage\n     and operating hours."},20," ","UnitaryHP_HeatType[Inputs]","HeatType[Code]"," ","Air-CooledSplit Air-Conditioner1","SEER","Cooling Seasonal Efficiency, SEER"," "]
[null,null,"     IT & Data Center: Other","ITDCOther",null,"Input2","[Variant]"," ","Rotary","Rotary",{"$f":"$K$20","v":"Chilled Water System (Chiller):\n     1. Back-up service units are not eligible.\n     2. Must meet or exceed the minimum AHRI Standard 550/590 efficiency requirements shown in Table 5.\n     3. If the unit has a Variable Frequency Drive (VFD) installed, this must be reflected in the chiller IPLV rating.\n     4. (Retrofit) Water-Cooled chillers that replace Air-Cooled chillers may be eligible under the SRP Business Solutions Custom program \n     for evaluating higher energy improvements for air-to-water conversions. Chillers submitted through the SRP Business Solutions \n     Standard program are eligible for incentives offered with a baseline of an equivalent chiller heat rejection only."},{"$f":"$L$19","v":"Rebate:\n     - Air-Cooled: $15.00/Ton + $350/Ton/(Min. IPLV - Proposed IPLV)\n     - Water-Cooled: $45.00/Ton + $450/Ton/(Min. IPLV - Proposed IPLV)\n\nRequired Documentation:\n     1. Dated invoice/payment application.\n     2. Manufacturer's equipment specification sheet documenting the Full-Load (100%) and IPLV efficiency ratings.\n     3. If the chiller has more than 20% process cooling load, please submit the average annual loading percentage\n     and operating hours."},20," ",{"$f":"IF(ProjectType=\"New Construction\",\"Electric Resistance\",\"Elect. Res. (Replace None/Elect. Res./Other)\")","v":"Elect. Res. (Replace None/Elect. Res./Other)"},{"$f":"IF(ProjectType=\"New Construction\",\"ER\",\"ER\")","v":"ER"}," ","Air-CooledSplit Air-Conditioner2","IEER","Cooling Seasonal Efficiency, IEER"," "]
[null,null,"Additional Measures","Misc[FormulaName]",null,"Input3","[Variant]"," ","Screw","Screw",{"$f":"$K$20","v":"Chilled Water System (Chiller):\n     1. Back-up service units are not eligible.\n     2. Must meet or exceed the minimum AHRI Standard 550/590 efficiency requirements shown in Table 5.\n     3. If the unit has a Variable Frequency Drive (VFD) installed, this must be reflected in the chiller IPLV rating.\n     4. (Retrofit) Water-Cooled chillers that replace Air-Cooled chillers may be eligible under the SRP Business Solutions Custom program \n     for evaluating higher energy improvements for air-to-water conversions. Chillers submitted through the SRP Business Solutions \n     Standard program are eligible for incentives offered with a baseline of an equivalent chiller heat rejection only."},{"$f":"$L$19","v":"Rebate:\n     - Air-Cooled: $15.00/Ton + $350/Ton/(Min. IPLV - Proposed IPLV)\n     - Water-Cooled: $45.00/Ton + $450/Ton/(Min. IPLV - Proposed IPLV)\n\nRequired Documentation:\n     1. Dated invoice/payment application.\n     2. Manufacturer's equipment specification sheet documenting the Full-Load (100%) and IPLV efficiency ratings.\n     3. If the chiller has more than 20% process cooling load, please submit the average annual loading percentage\n     and operating hours."},20," ",{"$f":"IF(ProjectType=\"New Construction\",\"Gas\",\"Elect. Res. (Replace Gas)\")","v":"Elect. Res. (Replace Gas)"},{"$f":"IF(ProjectType=\"New Construction\",\"Other\",\"ER-Gas\")","v":"ER-Gas"}," ","Air-CooledSplit Air-Conditioner3","IEER","Cooling Seasonal Efficiency, IEER"," "]
[null,null,"     Additional Measures","Misc",null,"Input4","[Variant]"," ","Scroll","Scroll",{"$f":"$K$20","v":"Chilled Water System (Chiller):\n     1. Back-up service units are not eligible.\n     2. Must meet or exceed the minimum AHRI Standard 550/590 efficiency requirements shown in Table 5.\n     3. If the unit has a Variable Frequency Drive (VFD) installed, this must be reflected in the chiller IPLV rating.\n     4. (Retrofit) Water-Cooled chillers that replace Air-Cooled chillers may be eligible under the SRP Business Solutions Custom program \n     for evaluating higher energy improvements for air-to-water conversions. Chillers submitted through the SRP Business Solutions \n     Standard program are eligible for incentives offered with a baseline of an equivalent chiller heat rejection only."},{"$f":"$L$19","v":"Rebate:\n     - Air-Cooled: $15.00/Ton + $350/Ton/(Min. IPLV - Proposed IPLV)\n     - Water-Cooled: $45.00/Ton + $450/Ton/(Min. IPLV - Proposed IPLV)\n\nRequired Documentation:\n     1. Dated invoice/payment application.\n     2. Manufacturer's equipment specification sheet documenting the Full-Load (100%) and IPLV efficiency ratings.\n     3. If the chiller has more than 20% process cooling load, please submit the average annual loading percentage\n     and operating hours."},20," ",{"$f":"IF(ProjectType=\"New Construction\",\"Heat Pump\",\"Gas\")","v":"Gas"},{"$f":"IF(ProjectType=\"New Construction\",\"Other\",\"Other\")","v":"Other"}," ","Air-CooledSplit Air-Conditioner4","IEER","Cooling Seasonal Efficiency, IEER"," "]
[null,null,null,null,null,"Input5","[Variant]"," ",null,null,null,null,null,null,{"$f":"IF(ProjectType=\"New Construction\",\"Other\",\"Heat Pump (Replace Heat Pump/Other)\")","v":"Heat Pump (Replace Heat Pump/Other)"},{"$f":"IF(ProjectType=\"New Construction\",\"Other\",\"Other\")","v":"Other"}," ","Air-CooledSplit Air-Conditioner5","IEER","Cooling Seasonal Efficiency, IEER"," "]
[null,null,null,null,null,"Input6","[Variant]"," ","EvapCooler_EquipmentType[Inputs]","EquipmentType[Code]","EquipmentType[Eligibility]","EquipmentType[Description]","EquipmentType[MeasureLife]"," ",{"$f":"IF(ProjectType=\"New Construction\",\"\",\"Heat Pump (Replace Elect. Res.)\")","v":"Heat Pump (Replace Elect. Res.)"},{"$f":"IF(ProjectType=\"New Construction\",\"Other\",\"HP-ER\")","v":"HP-ER"}," ","Water-CooledSplit Air-Conditioner1",null,null," "]
[null,null,null,null,null,null,null," ","Direct","DEC","Evaporative Cooling System (EC):\n     1. Installations on non-standalone units are not eligible.\n     2. System components must meet or exceed minimum efficiencies required by ASHRAE 90.1-2016.\n     3. (New Construction) Installation of units on air-conditioned spaces with fan motors ≥1/4 HP  with single-speed motors are not\n     eligible. Rebates are not simultaneously available for VFD's or ECM's where rebates have been paid for Evaporative Cooling\n     equipment.","Rebate:\n     - DEC, IEC, IDEC: $0.06/CFM\n\nRequired Documentation:\n     1. Dated invoice/payment application.\n     2. Manufacturer's equipment specification sheet documenting compliance with equipment eligibility.",15," ",{"$f":"IF(ProjectType=\"New Construction\",\"\",\"Heat Pump (Replace Gas)\")","v":"Heat Pump (Replace Gas)"},{"$f":"IF(ProjectType=\"New Construction\",\"\",\"HP-Gas\")","v":"HP-Gas"}," ","Water-CooledSplit Air-Conditioner2","IEER","Cooling Seasonal Efficiency, IEER"," "]
[null,null,null,null,null,"Chiller[Inputs]","Chiller[Description]"," ","Indirect","IEC",{"$f":"$K$26","v":"Evaporative Cooling System (EC):\n     1. Installations on non-standalone units are not eligible.\n     2. System components must meet or exceed minimum efficiencies required by ASHRAE 90.1-2016.\n     3. (New Construction) Installation of units on air-conditioned spaces with fan motors ≥1/4 HP  with single-speed motors are not\n     eligible. Rebates are not simultaneously available for VFD's or ECM's where rebates have been paid for Evaporative Cooling\n     equipment."},{"$f":"$L$26","v":"Rebate:\n     - DEC, IEC, IDEC: $0.06/CFM\n\nRequired Documentation:\n     1. Dated invoice/payment application.\n     2. Manufacturer's equipment specification sheet documenting compliance with equipment eligibility."},15," ",{"$f":"IF(ProjectType=\"New Construction\",\"\",\"Other\")","v":"Other"},{"$f":"IF(ProjectType=\"New Construction\",\"\",\"Other\")","v":"Other"}," ","Water-CooledSplit Air-Conditioner3","IEER","Cooling Seasonal Efficiency, IEER"," "]
[null,null,null,null,null,"EquipmentType","Equipment Type"," ","Indirect-Direct","IDEC",{"$f":"$K$26","v":"Evaporative Cooling System (EC):\n     1. Installations on non-standalone units are not eligible.\n     2. System components must meet or exceed minimum efficiencies required by ASHRAE 90.1-2016.\n     3. (New Construction) Installation of units on air-conditioned spaces with fan motors ≥1/4 HP  with single-speed motors are not\n     eligible. Rebates are not simultaneously available for VFD's or ECM's where rebates have been paid for Evaporative Cooling\n     equipment."},{"$f":"$L$26","v":"Rebate:\n     - DEC, IEC, IDEC: $0.06/CFM\n\nRequired Documentation:\n     1. Dated invoice/payment application.\n     2. Manufacturer's equipment specification sheet documenting compliance with equipment eligibility."},15," ",null,null,null,"Water-CooledSplit Air-Conditioner4","IEER","Cooling Seasonal Efficiency, IEER"," "]
[null,null,null,null,null,"HeatReject","Heat Rejection"," ",null,null,null,null,null,null,"Chiller_HeatReject[Inputs]","HeatReject[Code]"," ","Water-CooledSplit Air-Conditioner5","IEER","Cooling Seasonal Efficiency, IEER"," "]
[null,null,null,null,null,"VFD","VFD Chiller?"," ","OAEcon_EquipmentType[Inputs]","EquipmentType[Code]","EquipmentType[Eligibility]","EquipmentType[Description]","EquipmentType[MeasureLife]"," ",{"$f":"IF(ProjectType=\"New Construction\",\"Air-Cooled\",\"Air-Cooled (Air-Cooled Replacement)\")","v":"Air-Cooled (Air-Cooled Replacement)"},{"$f":"IF(ProjectType = \"New Construction\",\"Air-Cooled\",\"Air-Cooled\")","v":"Air-Cooled"}," ","Evaporatively-CooledSplit Air-Conditioner1",null,null," "]
[null,null,null,null,null,"Tons","AHRI Size (Tons)"," ","Air-Conditioner","AC","Outside-Air Economizer (OA Econ):\n     1. 100% outside-air units are not eligible.\n     2. Must be capable of modulating 95% open.\n     3. (Retrofit) Replacements of existing economizers and HVAC units are eligible. Replacements of existing economizers\n     are not eligible for rebates, unless existing economizers have been non-functioning for more than 2 years.\n         - Economizers repaired, replaced, or installed as part of an HVAC Tune-Up project are not eligible.\n     4. (New Construction) Rebates are not available for economizers that are required by ASHRAE 90.1-2016:\n          - Units ≥54,000 BTU/H unless unit efficiency meets or exceeds the efficiencies listed in Table 8.","Rebate:\n     - OA Econ: $50.00/Ton\n\nRequired Documentation:\n     1. Dated invoice/payment application.\n     2. Manufacturer's equipment specification sheet documenting compliance with equipment eligibility.",10," ",{"$f":"IF(ProjectType = \"New Construction\",\"Water-Cooled\",\"Air-Cooled (Water-Cooled Replacement)\")","v":"Air-Cooled (Water-Cooled Replacement)"},{"$f":"IF(ProjectType = \"New Construction\",\"Water-Cooled\",\"Air-Cooled\")","v":"Air-Cooled"}," ","Evaporatively-CooledSplit Air-Conditioner2","IEER","Cooling Seasonal Efficiency, IEER"," "]
[null,null,null,null,null,"IPLV kW/Ton","IPLV (kW/Ton)"," ","Heat Pump","HP",{"$f":"$K$31","v":"Outside-Air Economizer (OA Econ):\n     1. 100% outside-air units are not eligible.\n     2. Must be capable of modulating 95% open.\n     3. (Retrofit) Replacements of existing economizers and HVAC units are eligible. Replacements of existing economizers\n     are not eligible for rebates, unless existing economizers have been non-functioning for more than 2 years.\n         - Economizers repaired, replaced, or installed as part of an HVAC Tune-Up project are not eligible.\n     4. (New Construction) Rebates are not available for economizers that are required by ASHRAE 90.1-2016:\n          - Units ≥54,000 BTU/H unless unit efficiency meets or exceeds the efficiencies listed in Table 8."},{"$f":"$L$31","v":"Rebate:\n     - OA Econ: $50.00/Ton\n\nRequired Documentation:\n     1. Dated invoice/payment application.\n     2. Manufacturer's equipment specification sheet documenting compliance with equipment eligibility."},10," ",{"$f":"IF(ProjectType = \"New Construction\",\"\",\"Water-Cooled (Air-Cooled Replacement)\")","v":"Water-Cooled (Air-Cooled Replacement)"},{"$f":"IF(ProjectType = \"New Construction\",\"\",\"Water-Cooled\")","v":"Water-Cooled"}," ","Evaporatively-CooledSplit Air-Conditioner3","IEER","Cooling Seasonal Efficiency, IEER"," "]
[null,null,null,null,null,"FL kW/Ton","Full Load (kW/Ton)"," ","Water-Source Heat Pump","WSHP",{"$f":"$K$31","v":"Outside-Air Economizer (OA Econ):\n     1. 100% outside-air units are not eligible.\n     2. Must be capable of modulating 95% open.\n     3. (Retrofit) Replacements of existing economizers and HVAC units are eligible. Replacements of existing economizers\n     are not eligible for rebates, unless existing economizers have been non-functioning for more than 2 years.\n         - Economizers repaired, replaced, or installed as part of an HVAC Tune-Up project are not eligible.\n     4. (New Construction) Rebates are not available for economizers that are required by ASHRAE 90.1-2016:\n          - Units ≥54,000 BTU/H unless unit efficiency meets or exceeds the efficiencies listed in Table 8."},{"$f":"$L$31","v":"Rebate:\n     - OA Econ: $50.00/Ton\n\nRequired Documentation:\n     1. Dated invoice/payment application.\n     2. Manufacturer's equipment specification sheet documenting compliance with equipment eligibility."},10," ",{"$f":"IF(ProjectType = \"New Construction\",\"\",\"Water-Cooled (Water-Cooled Replacement)\")","v":"Water-Cooled (Water-Cooled Replacement)"},{"$f":"IF(ProjectType = \"New Construction\",\"\",\"Water-Cooled\")","v":"Water-Cooled"}," ","Evaporatively-CooledSplit Air-Conditioner4","IEER","Cooling Seasonal Efficiency, IEER"," "]
[null,null,null,null,null,"Input3","[Variant]"," ","Computer Room Air-Conditioner","CRAC","Outside-Air Economizer (OA Econ):\n     1. 100% outside-air units are not eligible.\n     2. Must be capable of modulating 95% open.\n     3. (Retrofit) Replacements of existing economizers and HVAC units are eligible. Replacements of existing economizers\n     are not eligible for rebates, unless existing economizers have been non-functioning for more than 2 years.\n     4. (New Construction) Rebates are not available for economizers that are required by ASHRAE 90.1-2016:\n          - Computer Room Air-Conditioners (CRAC) ≥54,000 BTU/H.",{"$f":"$L$31","v":"Rebate:\n     - OA Econ: $50.00/Ton\n\nRequired Documentation:\n     1. Dated invoice/payment application.\n     2. Manufacturer's equipment specification sheet documenting compliance with equipment eligibility."},10," ",null,null,null,"Evaporatively-CooledSplit Air-Conditioner5","IEER","Cooling Seasonal Efficiency, IEER"," "]
[null,null,null,null,null,"Input4","[Variant]"," ","Chiller","Chiller","Outside-Air Economizer (OA Econ):\n     1. 100% outside-air units are not eligible.\n     2. Must be capable of modulating 95% open.\n     3. (Retrofit) Replacements of existing economizers and HVAC units are eligible. Replacements of existing economizers\n     are not eligible for rebates, unless existing economizers have been non-functioning for more than 2 years.\n     4. (New Construction) Rebates are not available for economizers that are required by ASHRAE 90.1-2016:\n          - Chiller systems must have both a water-side economizer and air-side economizer (Rebates are not simultaneously\n          available) and meet or exceed the efficiencies listed in Table 8.",{"$f":"$L$31","v":"Rebate:\n     - OA Econ: $50.00/Ton\n\nRequired Documentation:\n     1. Dated invoice/payment application.\n     2. Manufacturer's equipment specification sheet documenting compliance with equipment eligibility."},10," ","Chiller_VFD[Inputs]","VFD[Code]"," ","Air-CooledMulti-Split VRF A/C0",null,null," "]
[null,null,null,null,null,null,null," ",null,null,null,null,null,null,"Yes","Yes"," ","Air-CooledMulti-Split VRF A/C1","SEER","Cooling Seasonal Efficiency, SEER"," "]
[null,null,null,null,null,null,null," ","CO2SNR_EquipmentType[Inputs]","EquipmentType[Code]","EquipmentType[Eligibility]","EquipmentType[Description]","EquipmentType[MeasureLife]"," ","No","No"," ","Air-CooledMulti-Split VRF A/C2","IEER","Cooling Seasonal Efficiency, IEER"," "]
[null,null,null,null,null,null,null," ","Air-Conditioner","AC","Carbon Dioxide Sensor (CO2 Sensor):\n     1. (Retrofit) Rebates are not available for replacement of existing CO2 sensors.\n     2. (New Construction) Rebates are not available where CO2 sensors are required be ASHRAE 90.1-2016:\n          - DCV systems for spaces >500 Sq. Ft. with an average design occupancy density ≥25 People per 1000 Sq. Ft. and an\n          Outside Airflow requirement of 750 CFM or more with one or more of the following:\n               - An air-side economizer.\n               - Automatic modulating OA Dampers for any space.\n               - Spaces requiring >3000 CFM.","Rebate: \n     - Controlled Tonnage <10 Tons: $120.00/Each\n     - Controlled Tonnage ≥10 Tons: $200.00/Each\n\nRequired Documentation:\n     1. Dated invoice/payment application.\n     2. Manufacturer's equipment specification sheet documenting compliance with equipment eligibility.\n     3. (New Construction) Documentation of outside air calculations for units controlled by CO2 sensors.",8," ",null,null,null,"Air-CooledMulti-Split VRF A/C3","IEER","Cooling Seasonal Efficiency, IEER"," "]
[null,null,null,null,null,"EvapCooler[Inputs]","EvapCooler[Description]"," ","Heat Pump","HP",{"$f":"$K$38","v":"Carbon Dioxide Sensor (CO2 Sensor):\n     1. (Retrofit) Rebates are not available for replacement of existing CO2 sensors.\n     2. (New Construction) Rebates are not available where CO2 sensors are required be ASHRAE 90.1-2016:\n          - DCV systems for spaces >500 Sq. Ft. with an average design occupancy density ≥25 People per 1000 Sq. Ft. and an\n          Outside Airflow requirement of 750 CFM or more with one or more of the following:\n               - An air-side economizer.\n               - Automatic modulating OA Dampers for any space.\n               - Spaces requiring >3000 CFM."},{"$f":"$L$38","v":"Rebate: \n     - Controlled Tonnage <10 Tons: $120.00/Each\n     - Controlled Tonnage ≥10 Tons: $200.00/Each\n\nRequired Documentation:\n     1. Dated invoice/payment application.\n     2. Manufacturer's equipment specification sheet documenting compliance with equipment eligibility.\n     3. (New Construction) Documentation of outside air calculations for units controlled by CO2 sensors."},8," ","EvapCooler_Controls[Inputs]","Controls[Code]"," ","Air-CooledMulti-Split VRF A/C4","IEER","Cooling Seasonal Efficiency, IEER"," "]
[null,null,null,null,null,"EquipmentType","Equipment Type"," ","Water-Source Heat Pump","WSHP",{"$f":"$K$38","v":"Carbon Dioxide Sensor (CO2 Sensor):\n     1. (Retrofit) Rebates are not available for replacement of existing CO2 sensors.\n     2. (New Construction) Rebates are not available where CO2 sensors are required be ASHRAE 90.1-2016:\n          - DCV systems for spaces >500 Sq. Ft. with an average design occupancy density ≥25 People per 1000 Sq. Ft. and an\n          Outside Airflow requirement of 750 CFM or more with one or more of the following:\n               - An air-side economizer.\n               - Automatic modulating OA Dampers for any space.\n               - Spaces requiring >3000 CFM."},{"$f":"$L$38","v":"Rebate: \n     - Controlled Tonnage <10 Tons: $120.00/Each\n     - Controlled Tonnage ≥10 Tons: $200.00/Each\n\nRequired Documentation:\n     1. Dated invoice/payment application.\n     2. Manufacturer's equipment specification sheet documenting compliance with equipment eligibility.\n     3. (New Construction) Documentation of outside air calculations for units controlled by CO2 sensors."},8," ","Single-Speed","No"," ","Air-CooledMulti-Split VRF A/C5","IEER","Cooling Seasonal Efficiency, IEER"," "]
[null,null,null,null,null,{"$f":"IF(ISNUMBER(SEARCH(\"Retro\",Project_Type,1)),\"\",\"Controls\")","v":""},{"$f":"IF(ISNUMBER(SEARCH(\"Retro\",Project_Type,1)),\"\",\"Fan Motor Controls?\")","v":""}," ","Chiller","Chiller",{"$f":"$K$38","v":"Carbon Dioxide Sensor (CO2 Sensor):\n     1. (Retrofit) Rebates are not available for replacement of existing CO2 sensors.\n     2. (New Construction) Rebates are not available where CO2 sensors are required be ASHRAE 90.1-2016:\n          - DCV systems for spaces >500 Sq. Ft. with an average design occupancy density ≥25 People per 1000 Sq. Ft. and an\n          Outside Airflow requirement of 750 CFM or more with one or more of the following:\n               - An air-side economizer.\n               - Automatic modulating OA Dampers for any space.\n               - Spaces requiring >3000 CFM."},{"$f":"$L$38","v":"Rebate: \n     - Controlled Tonnage <10 Tons: $120.00/Each\n     - Controlled Tonnage ≥10 Tons: $200.00/Each\n\nRequired Documentation:\n     1. Dated invoice/payment application.\n     2. Manufacturer's equipment specification sheet documenting compliance with equipment eligibility.\n     3. (New Construction) Documentation of outside air calculations for units controlled by CO2 sensors."},8," ","2-Speed","Yes"," ","Water-CooledMulti-Split VRF A/C0",null,null," "]
[null,null,null,null,null,{"$f":"IF(ISNUMBER(SEARCH(\"Retro\",Project_Type,1)),\"\",\"Conditioned\")","v":""},{"$f":"IF(ISNUMBER(SEARCH(\"Retro\",Project_Type,1)),\"\",\"Does this unit serve a conditioned space?\")","v":""}," ",null,null,null,null,null,null,"Multi-Speed","Yes"," ","Water-CooledMulti-Split VRF A/C1",null,null," "]
[null,null,null,null,null,"CFM","Rated CFM"," ","HROC_EquipmentType[Inputs]","EquipmentType[Code]","EquipmentType[Eligibility]","EquipmentType[Description]","EquipmentType[MeasureLife]"," ","VFD","Yes"," ","Water-CooledMulti-Split VRF A/C2","IEER","Cooling Seasonal Efficiency, IEER"," "]
[null,null,null,null,null,"HP","Rated Motor Horsepower (HP)"," ","Chiller","Chiller","Hotel Room Occupancy Controls (HROC):\n     1. Rebates are only available for Hotel/Motel guestroom installations. Multi-room suites are counted as one \n     guestroom.\n     2. Must sense the occupant heat/motion/door-key activation and adjust the HVAC set points.\n     3. A minimum setback temperature of 8 degrees must be used.\n     4. (Retrofit) Replacements of existing hotel room occupancy controls are not eligible.\n     5. (New Construction) Conditioned spaces using chiller or multi-split systems are not eligible. Hotel Room\n     Occupancy Sensors are not eligible where required by ASHRAE 90.1-2016:\n          - Hotels and Motels with 50 guestrooms or more are required to:\n               - Program a minimum of 4-degree temperature setbacks for both heating and cooling while the room is\n               unoccupied and rented out to a guest.\n               - Set back the temperature setpoints to 60 degF (heating) and 80 degF (cooling) while the room is not\n               rented to a guest.","Rebate: \n     - Hotel Room Occupancy Controls: $50.00/Room\n\nRequired Documentation:\n     1. Dated invoice/payment application.\n     2. Manufacturer's equipment specification sheet documenting compliance with equipment eligibility.",{"$f":"AVERAGE(8,15)","v":11.5}," ",null,null,null,"Water-CooledMulti-Split VRF A/C3","IEER","Cooling Seasonal Efficiency, IEER"," "]
[null,null,null,null,null,"SP","Inches of Static Pressure (in.)"," ","Packaged-Terminal Air-Conditioner","PTAC",{"$f":"$K$44","v":"Hotel Room Occupancy Controls (HROC):\n     1. Rebates are only available for Hotel/Motel guestroom installations. Multi-room suites are counted as one \n     guestroom.\n     2. Must sense the occupant heat/motion/door-key activation and adjust the HVAC set points.\n     3. A minimum setback temperature of 8 degrees must be used.\n     4. (Retrofit) Replacements of existing hotel room occupancy controls are not eligible.\n     5. (New Construction) Conditioned spaces using chiller or multi-split systems are not eligible. Hotel Room\n     Occupancy Sensors are not eligible where required by ASHRAE 90.1-2016:\n          - Hotels and Motels with 50 guestrooms or more are required to:\n               - Program a minimum of 4-degree temperature setbacks for both heating and cooling while the room is\n               unoccupied and rented out to a guest.\n               - Set back the temperature setpoints to 60 degF (heating) and 80 degF (cooling) while the room is not\n               rented to a guest."},{"$f":"$L$44","v":"Rebate: \n     - Hotel Room Occupancy Controls: $50.00/Room\n\nRequired Documentation:\n     1. Dated invoice/payment application.\n     2. Manufacturer's equipment specification sheet documenting compliance with equipment eligibility."},{"$f":"AVERAGE(8,15)","v":11.5}," ","EvapCooler_Conditioned[Inputs]","Conditioned[Code]"," ","Water-CooledMulti-Split VRF A/C4","IEER","Cooling Seasonal Efficiency, IEER"," "]
[null,null,null,null,null,null,null," ","Packaged-Terminal Heat Pump","PTHP",{"$f":"$K$44","v":"Hotel Room Occupancy Controls (HROC):\n     1. Rebates are only available for Hotel/Motel guestroom installations. Multi-room suites are counted as one \n     guestroom.\n     2. Must sense the occupant heat/motion/door-key activation and adjust the HVAC set points.\n     3. A minimum setback temperature of 8 degrees must be used.\n     4. (Retrofit) Replacements of existing hotel room occupancy controls are not eligible.\n     5. (New Construction) Conditioned spaces using chiller or multi-split systems are not eligible. Hotel Room\n     Occupancy Sensors are not eligible where required by ASHRAE 90.1-2016:\n          - Hotels and Motels with 50 guestrooms or more are required to:\n               - Program a minimum of 4-degree temperature setbacks for both heating and cooling while the room is\n               unoccupied and rented out to a guest.\n               - Set back the temperature setpoints to 60 degF (heating) and 80 degF (cooling) while the room is not\n               rented to a guest."},{"$f":"$L$44","v":"Rebate: \n     - Hotel Room Occupancy Controls: $50.00/Room\n\nRequired Documentation:\n     1. Dated invoice/payment application.\n     2. Manufacturer's equipment specification sheet documenting compliance with equipment eligibility."},{"$f":"AVERAGE(8,15)","v":11.5}," ","Yes","Conditioned"," ","Water-CooledMulti-Split VRF A/C5","IEER","Cooling Seasonal Efficiency, IEER"," "]
[null,null,null,null,null,null,null," ","Multi-Split","Multi-Split",{"$f":"$K$44","v":"Hotel Room Occupancy Controls (HROC):\n     1. Rebates are only available for Hotel/Motel guestroom installations. Multi-room suites are counted as one \n     guestroom.\n     2. Must sense the occupant heat/motion/door-key activation and adjust the HVAC set points.\n     3. A minimum setback temperature of 8 degrees must be used.\n     4. (Retrofit) Replacements of existing hotel room occupancy controls are not eligible.\n     5. (New Construction) Conditioned spaces using chiller or multi-split systems are not eligible. Hotel Room\n     Occupancy Sensors are not eligible where required by ASHRAE 90.1-2016:\n          - Hotels and Motels with 50 guestrooms or more are required to:\n               - Program a minimum of 4-degree temperature setbacks for both heating and cooling while the room is\n               unoccupied and rented out to a guest.\n               - Set back the temperature setpoints to 60 degF (heating) and 80 degF (cooling) while the room is not\n               rented to a guest."},{"$f":"$L$44","v":"Rebate: \n     - Hotel Room Occupancy Controls: $50.00/Room\n\nRequired Documentation:\n     1. Dated invoice/payment application.\n     2. Manufacturer's equipment specification sheet documenting compliance with equipment eligibility."},{"$f":"AVERAGE(8,15)","v":11.5}," ","No","Unconditioned"," ","Evaporatively-CooledMulti-Split VRF A/C0",null,null," "]
[null,null,null,null,null,null,null," ",null,null,null,null,null,null,null,null,null,"Evaporatively-CooledMulti-Split VRF A/C1",null,null," "]
[null,null,null,null,null,null,null," ","HVACOther_EquipmentType[Inputs]","EquipmentType[Code]","EquipmentType[Eligibility]","EquipmentType[Description]","EquipmentType[MeasureLife]"," ","OAEcon_HeatReject[Inputs]","HeatReject[Code]"," ","Evaporatively-CooledMulti-Split VRF A/C2","IEER","Cooling Seasonal Efficiency, IEER"," "]
[null,null,null,null,null,null,null," ","EC Motor (ECM)","ECM","Electronically-Commutated Motor (ECM):\n     1. All electronically commutated motors (ECM) >1 HP are not eligible.\n     2. Rebates are not simultaneously available for ECM's where rebates have been paid for Unitary HVAC Equipment.\n     3. (New Construction) Installations are not eligible.","Rebate:\n     - EC Motor: $125.00/Horsepower (HP)\n\nRequired Documentation:\n     1. Dated invoice/payment application.\n     2. Manufacturer's equipment specification sheet documenting compliance with equipment eligibility.",15," ","Air-Cooled","Air-Cooled"," ","Evaporatively-CooledMulti-Split VRF A/C3","IEER","Cooling Seasonal Efficiency, IEER"," "]
[null,null,null,null,null,"OAEcon[Inputs]","OAEcon[Description]"," ","Permanent-Magnet Sync Motor","PMSM","Permanent-Magnet Synchronous Motor (PMSM):\n     1. All permanent-magnet sync motors (PMSM) >1 HP are not eligible.\n     2. Installations of PMSMs with existing or new Variable Frequency Drives (VFDs) are not eligible.\n     3. Rebates are not simultaneously available for PMSM's where rebates have been paid for Unitary HVAC Equipment.\n     4. (Retrofit) Replacements of existing Shaded Pole (SP), Permanent Split Capacitor (PSC), and Electronically \n     Commutated (EC) motors are eligible.","Rebate:\n     - (New Construction) All or (Retrofit) Replacement of EC Motor: $105.00 per Horsepower (HP)\n     - (Retrofit) Replacement of SP or PSC Motor: $200.00 per Horsepower (HP)\n\nRequired Documentation:\n     1. Dated invoice/payment application.\n     2. Manufacturer's equipment specification sheet documenting compliance with equipment eligibility.",15," ","Water-Cooled","Water-Cooled"," ","Evaporatively-CooledMulti-Split VRF A/C4","IEER","Cooling Seasonal Efficiency, IEER"," "]
[null,null,null,null,null,"EquipmentType","Equipment Type"," ","CO Sensor","CO Sensor","Carbon Monoxide Sensor (CO Sensor):\n     1. Must maintain compliance with all applicable codes.\n     2. Rebates are not simultaneously available for CO sensors where rebates have been paid for VFDs on the same\n     equipment.\n     3. (Retrofit) Replacements of existing CO sensors are not eligible.\n     4. (New Construction) Rebates are not available for CO sensors required by ASHRAE 90.1-2016:\n          - Ventilation systems utilize mechanical heating and cooling AND\n          - Garages with a total area ≥30,000 sq. ft.\n          - OR Garages that have a ratio of ≤1,500 sq. ft. per horsepower of garage area-to-nameplate HP.","Rebate:\n     - CO Sensor: $250.00/Each\n\nRequired Documentation:\n     1. Dated invoice/payment application.\n     2. Manufacturer's equipment specification sheet documenting compliance with equipment eligibility.",8," ","Evaporatively-Cooled","Evap-Cooled"," ","Evaporatively-CooledMulti-Split VRF A/C5","IEER","Cooling Seasonal Efficiency, IEER"," "]
[null,null,null,null,null,"List2","[Variant]"," ","Energy Management System (EMS) for DX Systems","EMS for DX Systems","Energy Management System for DX Systems (EMS-DX):\n     1. Energy Management Systems must be pre-approved as a Rebate Reservation prior to the purchase and installation of equipment. Equipment \n     that is purchased and installed without prior approval will not be eligible for incentives.\n     2. The EMS must be new and include:\n          - A graphic operator interface with central timing control.\n          - A minimum set point setback of 8 degrees and setback period of 2,200 hours per year.\n          - Must be demand-limiting capable.\n     3. The controlled equipment must be Unitary Air-Cooled or Water-Cooled equipment and properly sized to maintain the required temperature\n     setpoints within the affected conditioned space square footage.\n     4. Customers who purchase and install an energy management system (EMS) are eligible for an additional $0.10/sq. ft. of controlled\n     space for average participation up to 75% of the nominated demand response value. For customers that purchase and install an\n     OpenADR 2.0 compliant EMS, customers are eligible for an additional $0.15/sq. ft. of controlled space for average participation up to\n     75% of the nominated demand response value. Rebates will be paid at the end of the next full demand response season, which lasts\n     from May 1st through October 31st each calendar year.\n     5. For more information on participating in the Demand Response program, contact Eric Chang (917-693-9000, eric.chang@enel.com).\n     Customers may also be contacted with more information for how to participate by a Demand Response program representative and \n     their Strategic Energy Manager (SEM).\n     6. (Retrofit) Retrofits of buildings with existing digital automated HVAC controls and programmable thermostats\n     are not eligible. Replacements may be eligible under the SRP Business Solutions Custom program with pre-approval.\n     7. (New Construction) Installations are not eligible.","Rebate:\n     - EMS-DX: $0.20/Sq. Ft. of Conditioned Space\n     Additional rebates of $0.10 or $0.15/Sq. Ft. may be available for participation in the demand response program (Eligibility Requirements 3 & 4).\n\nRequired Documentation:\n     1. Dated invoice/payment application.\n     2. Manufacturer's equipment specification sheet documenting compliance with equipment eligibility.\n     3. Documentation verifying the total conditioned space controlled by the EMS.\n     4. Documentation of the EMS sequence of operations showing 7-day programmed operating schedules and\n     occupied/unoccupied temperature set points.",15," ","Glycol-Cooled","Glycol-Cooled"," ","Packaged Terminal A/C (PTAC)",null,null," "]
[null,null,null,null,null,"List3","[Variant]"," ","Energy Management System (EMS) for Chilled Water Systems","EMS for Water-Cooled Systems","Energy Management System for Chilled-Water Systems (EMS-CHW):\n     1. Energy Management Systems must be pre-approved as a Rebate Reservation prior to the purchase and installation of equipment. Equipment \n     that is purchased and installed without prior approval will not be eligible for incentives.\n     2. An EMS installation with chilled water plant only (waterside) controls implementation is not eligible for the Standard EMS for\n     Chilled Water Systems rebate and must be processed under the SRP Business Solutions Custom program.\n     3.  Buildings and spaces within a building must be cooled by a chilled water system. DX-only cooled buildings or spaces may be\n     eligible for a separate rebate under the Standard EMS for DX Systems rebate.\n     4. The EMS must be new and include:\n          - A graphic operator interface with central timing control.\n          - Must be demand-limiting capable.\n     5. Implementation of Airside Control Strategies Only:\n          - The EMS includes airside control strategies fed by the chilled water system only.       \n          - Airside control strategies must include at a minimum building (zone by zone or air handler) scheduling, 0.5 in. w.c. static\n          pressure reset, and 5 deg F supply air temperature reset.\n     6. Implementation of Airside and Chilled Water Control Strategies:\n          - The EMS implements both airside and chilled water control strategies.\n          - Chilled water control strategies must include at a minimum a 5 deg F condenser water reset and a 5 deg F chilled water\n          supply temperature reset.\n          - Airside control strategies must include at a minimum building (zone by zone or air handler) scheduling, 0.5 in. w.c. static\n          pressure reset, and 5 deg F supply air temperature reset.\n     7. Customers who purchase and install an energy management system (EMS) are eligible for an additional $0.10/sq. ft. of controlled\n     space for average participation up to 75% of the nominated demand response value. For customers that purchase and install an\n     OpenADR 2.0 compliant EMS, customers are eligible for an additional $0.15/sq. ft. of controlled space for average participation up to\n     75% of the nominated demand response value. Rebates will be paid at the end of the next full demand response season, which lasts\n     from May 1st through October 31st each calendar year.\n     8. For more information on participating in the Demand Response program, contact Eric Chang (917-693-9000, eric.chang@enel.com).\n     Customers may also be contacted with more information for how to participate by a Demand Response program representative and \n     their Strategic Energy Manager (SEM).\n     9. (Retrofit) Retrofits of buildings cooled by a chilled water system and having existing, non-functional digital automated\n     controls (EMS) are eligible.\n     10. (New Construction) Installations are not eligible.","Rebate:\n     - Tier 1 (Airside Only): $0.20/Sq. Ft. of Conditioned Space\n     - Tier 2 (Airside + Chilled Water): $0.30/Sq. Ft. of Conditioned Space\n     Additional rebates of $0.10 or $0.15/Sq. Ft. may be available for participation in the demand response program (Eligibility Requirements 6 & 7).\n\nRequired Documentation:\n     1. Dated invoice/payment application.\n     2. Manufacturer's equipment specification sheet documenting compliance with equipment eligibility.\n     3. Documentation verifying the total conditioned space square footage controlled by the EMS.\n     4. Documentation of the EMS sequence of operations showing programmed operating schedules and occupied/unoccupied\n     temperature set points.\n     5. System points list or top level screenshots that shows all components integrated to EMS.\n     6. EMS screenshots displaying system settings (temperature setpoints, schedules, programming logic, etc.) to document\n     implemented airside and/or chilled water control strategies for Tier 1 or Tier 2 rebates.",15," ",null,null,null,"Vertical Terminal A/C (VTAC)",null,null," "]
[null,null,null,null,null,"Size","[Variant]"," ","Smart Thermostat (Self-Install)","SMART Thermostat, No","Smart Thermostat:\n     1. Must be Wi-Fi-enabled.\n     2. Must be an approved thermostat from the Bring-Your-Own-Thermostat (BYOT) program:\n     https://www.srpnet.com/energy-savings-rebates/business/rebates/smart-thermostats\n          - Honeywell Home: Round Smart Thermostat, T5+ Smart Thermostat, T6 Pro Smart Thermostat, T9 Smart Thermostat, T10 Smart Thermostat\n          - Honeywell TCC: Wi-Fi Smart Color Thermostat, Wi-Fi 7-Day Programmable Thermostat, Wi-Fi 9000 7-Day Programmable Thermostat, \n             9000 Smart Thermostat, 7-Day Programmable Smart Thermostat, VisionPro 8000 Smart Thermostat\n          - ecobee: ecobee3, ecobee3 Lite, ecobee4, ecobee Smart Thermostat with voice control, Smart Thermostat Enhanced, Smart Thermostat Premium\n          - Emerson: Sensi™ Wi-Fi Programmable Thermostat, Sensi Touch Wi-Fi Thermostat\n          - Google Nest: Nest, Nest Learning, Nest E\n     3. Must have an initial set point setback of and setback period.\n     4. (Retrofit) Must replace an existing non-programmable or programmable (5-2 or 5-1-1) thermostat.\n     5. (New Construction) Installations are not eligible.","Rebate:\n     - Self-Installation: $150.00/Each\n     - Professional Installation: $200.00/Each\n\nRequired Documentation:\n     1. Dated invoice/payment application.\n     2. Manufacturer's equipment specification sheet documenting compliance with equipment eligibility.\n     3. Documentation of the programmed operating schedules and occupied/unoccupied temperature set points.",11," ","OAEcon_HeatType[Inputs]","HeatReject[Code]"," "]
[null,null,null,null,null,{"$f":"IF(ISNUMBER(SEARCH(\"Retro\",Project_Type,1)),\"\",\"Input1\")","v":""},{"$f":"IF(ISNUMBER(SEARCH(\"Retro\",Project_Type,1)),\"\",\"[Variant]\")","v":""}," ","Smart Thermostat (Professional Install)","SMART Thermostat, Yes",{"$f":"$K$55","v":"Smart Thermostat:\n     1. Must be Wi-Fi-enabled.\n     2. Must be an approved thermostat from the Bring-Your-Own-Thermostat (BYOT) program:\n     https://www.srpnet.com/energy-savings-rebates/business/rebates/smart-thermostats\n          - Honeywell Home: Round Smart Thermostat, T5+ Smart Thermostat, T6 Pro Smart Thermostat, T9 Smart Thermostat, T10 Smart Thermostat\n          - Honeywell TCC: Wi-Fi Smart Color Thermostat, Wi-Fi 7-Day Programmable Thermostat, Wi-Fi 9000 7-Day Programmable Thermostat, \n             9000 Smart Thermostat, 7-Day Programmable Smart Thermostat, VisionPro 8000 Smart Thermostat\n          - ecobee: ecobee3, ecobee3 Lite, ecobee4, ecobee Smart Thermostat with voice control, Smart Thermostat Enhanced, Smart Thermostat Premium\n          - Emerson: Sensi™ Wi-Fi Programmable Thermostat, Sensi Touch Wi-Fi Thermostat\n          - Google Nest: Nest, Nest Learning, Nest E\n     3. Must have an initial set point setback of and setback period.\n     4. (Retrofit) Must replace an existing non-programmable or programmable (5-2 or 5-1-1) thermostat.\n     5. (New Construction) Installations are not eligible."},{"$f":"$L$55","v":"Rebate:\n     - Self-Installation: $150.00/Each\n     - Professional Installation: $200.00/Each\n\nRequired Documentation:\n     1. Dated invoice/payment application.\n     2. Manufacturer's equipment specification sheet documenting compliance with equipment eligibility.\n     3. Documentation of the programmed operating schedules and occupied/unoccupied temperature set points."},11," ","None","ER"," ","UnitaryAC_Input2[EquipmentType]","Input2[Title]","Input2[Description]"," "]
[null,null,null,null,null,null,null," ","VFD: VAV Fan","VFD: VAV Fan","Variable Frequency Drive (Variable Air Volume/Exhaust Fan):\n     1. Rebates are available for HVAC fans and pumps, Domestic Service Water (DSW) and Domestic Hot Water (DHW) pumps. \n     Rebates are not simultaneously available for supply motors where rebates have been paid for Unitary HVAC equipment or\n     CO sensors.\n     2. Rebates are not available for motors larger than 100 HP or for process equipment. These may be eligible through\n     the SRP Business Solutions Custom program with pre-approval.\n     3. (Retrofit) Any throttling or mechanical bypass equipment, bypass dampers, three-way valves, or throttling valves\n     must be removed or permanently disabled. Replacements of existing VFDs are not eligible unless the VFD has been\n     non-functioning for >2 years.\n     4. (New Construction) Rebates are not available for VFDs required by ASHRAE 90.1-2016:\n          - Variable Air Volume (VAV) systems and exhaust fans ≥0.5 HP.","Rebate:\n     - VFD: $90.00/Horsepower (HP)\n\nRequired Documentation:\n     1. Dated invoice/payment application.\n     2. Manufacturer's equipment specification sheet documenting compliance with equipment eligibility.\n     3. Documentation of the serial numbers of the installed VFDs.",15," ","Electric Resistance","ER"," ","Air-CooledPackaged Air-Conditioner1","SEER2","Cooling Seasonal Efficiency, SEER2\n\nIf SEER2, EER2, and/or HSPF2 ratings are unavailable from the AHRI database, please leave SEER2, EER2, and HSPF2 blank."," "]
[null,null,null,null,null,null,null," ","VFD: Exhaust Fan","VFD: Exhaust Fan",{"$f":"$K$57","v":"Variable Frequency Drive (Variable Air Volume/Exhaust Fan):\n     1. Rebates are available for HVAC fans and pumps, Domestic Service Water (DSW) and Domestic Hot Water (DHW) pumps. \n     Rebates are not simultaneously available for supply motors where rebates have been paid for Unitary HVAC equipment or\n     CO sensors.\n     2. Rebates are not available for motors larger than 100 HP or for process equipment. These may be eligible through\n     the SRP Business Solutions Custom program with pre-approval.\n     3. (Retrofit) Any throttling or mechanical bypass equipment, bypass dampers, three-way valves, or throttling valves\n     must be removed or permanently disabled. Replacements of existing VFDs are not eligible unless the VFD has been\n     non-functioning for >2 years.\n     4. (New Construction) Rebates are not available for VFDs required by ASHRAE 90.1-2016:\n          - Variable Air Volume (VAV) systems and exhaust fans ≥0.5 HP."},{"$f":"$L$57","v":"Rebate:\n     - VFD: $90.00/Horsepower (HP)\n\nRequired Documentation:\n     1. Dated invoice/payment application.\n     2. Manufacturer's equipment specification sheet documenting compliance with equipment eligibility.\n     3. Documentation of the serial numbers of the installed VFDs."},15," ","Gas","Other"," ","Air-CooledPackaged Air-Conditioner2",null,null," "]
[null,null,null,null,null,null,null," ","VFD: Cooling Tower Fan","VFD: Cooling Tower Fan","Variable Frequency Drive ( Cooling Tower Fan):\n     1. Rebates are available for HVAC fans and pumps, Domestic Service Water (DSW) and Domestic Hot Water (DHW) pumps. \n     Rebates are not simultaneously available for supply motors where rebates have been paid for Unitary HVAC equipment or\n     CO sensors.\n     2. Rebates are not available for motors larger than 100 HP or for process equipment. These may be eligible through\n     the SRP Business Solutions Custom program with pre-approval.\n     3. (Retrofit) Any throttling or mechanical bypass equipment, bypass dampers, three-way valves, or throttling valves\n     must be removed or permanently disabled. Replacements of existing VFDs are not eligible unless the VFD has been\n     non-functioning for >2 years.\n     4. (New Construction) Rebates are not available for VFDs required by ASHRAE 90.1-2016:\n          - Cooling Tower fans and condenser fans ≥5 HP.",{"$f":"$L$57","v":"Rebate:\n     - VFD: $90.00/Horsepower (HP)\n\nRequired Documentation:\n     1. Dated invoice/payment application.\n     2. Manufacturer's equipment specification sheet documenting compliance with equipment eligibility.\n     3. Documentation of the serial numbers of the installed VFDs."},15," ","Heat Pump","Other"," ","Air-CooledPackaged Air-Conditioner3",null,null," "]
[null,null,null,null,null,null,null," ","VFD: Condenser Fan","VFD: Condenser Fan","Variable Frequency Drive ( Condenser Fan):\n     1. Rebates are available for HVAC fans and pumps, Domestic Service Water (DSW) and Domestic Hot Water (DHW) pumps. \n     Rebates are not simultaneously available for supply motors where rebates have been paid for Unitary HVAC equipment or\n     CO sensors.\n     2. Rebates are not available for motors larger than 100 HP or for process equipment. These may be eligible through\n     the SRP Business Solutions Custom program with pre-approval.\n     3. (Retrofit) Any throttling or mechanical bypass equipment, bypass dampers, three-way valves, or throttling valves\n     must be removed or permanently disabled. Replacements of existing VFDs are not eligible unless the VFD has been\n     non-functioning for >2 years.\n     4. (New Construction) Rebates are not available for VFDs required by ASHRAE 90.1-2016:\n          - Cooling Tower fans and condenser fans ≥5 HP.",{"$f":"$L$57","v":"Rebate:\n     - VFD: $90.00/Horsepower (HP)\n\nRequired Documentation:\n     1. Dated invoice/payment application.\n     2. Manufacturer's equipment specification sheet documenting compliance with equipment eligibility.\n     3. Documentation of the serial numbers of the installed VFDs."},15," ","Other","Other"," ","Air-CooledPackaged Air-Conditioner4",null,null," "]
[null,null,null,null,null,null,null," ","VFD: Unitary HVAC Fan","VFD: Unitary HVAC Fan","Variable Frequency Drive (Unitary HVAC Fan):\n     1. Rebates are available for HVAC fans and pumps, Domestic Service Water (DSW) and Domestic Hot Water (DHW) pumps. \n     Rebates are not simultaneously available for supply motors where rebates have been paid for Unitary HVAC equipment or\n     CO sensors.\n     2. Rebates are not available for motors larger than 100 HP or for process equipment. These may be eligible through\n     the SRP Business Solutions Custom program with pre-approval.\n     3. (Retrofit) Any throttling or mechanical bypass equipment, bypass dampers, three-way valves, or throttling valves\n     must be removed or permanently disabled. Replacements of existing VFDs are not eligible unless the VFD has been\n     non-functioning for >2 years.\n     4. (New Construction) Rebates are not available for VFDs required by ASHRAE 90.1-2016:\n          - Supply and Return Fans for units ≥5 Tons.\n          - Return Fans ≥0.5 HP.","Rebate:\n     - VFD: $90.00/Horsepower (HP)\n\nRequired Documentation:\n     1. Dated invoice/payment application.\n     2. Manufacturer's equipment specification sheet documenting compliance with equipment eligibility.",15," ",null,null,null,"Air-CooledPackaged Air-Conditioner5",null,null," "]
[null,null,null,null,null,null,null," ","VFD: Condenser Water Pump","VFD: CW Pump","Variable Frequency Drive (Condenser/Chilled Water Pump):\n     1. Rebates are available for HVAC fans and pumps, Domestic Service Water (DSW) and Domestic Hot Water (DHW) pumps. \n     Rebates are not simultaneously available for supply motors where rebates have been paid for Unitary HVAC equipment or\n     CO sensors.\n     2. Rebates are not available for motors larger than 100 HP or for process equipment. These may be eligible through\n     the SRP Business Solutions Custom program with pre-approval.\n     3. (Retrofit) Any throttling or mechanical bypass equipment, bypass dampers, three-way valves, or throttling valves\n     must be removed or permanently disabled. Replacements of existing VFDs are not eligible unless the VFD has been\n     non-functioning for >2 years.\n     4. (New Construction) Rebates are not available for VFDs required by ASHRAE 90.1-2016:\n          - HVAC, Chilled Water (CHW) and Condenser Water (CW) pumps >2 HP.",{"$f":"$L$61","v":"Rebate:\n     - VFD: $90.00/Horsepower (HP)\n\nRequired Documentation:\n     1. Dated invoice/payment application.\n     2. Manufacturer's equipment specification sheet documenting compliance with equipment eligibility."},15," ","CO2SNR_HeatType[Inputs]","HeatType[Code]"," ","Water-CooledPackaged Air-Conditioner1",null,null," "]
[null,null,null,null,null,"CO2SNR[Inputs]","CO2SNR[Description]"," ","VFD: Chilled Water Pump","VFD: CHW Pump",{"$f":"$K$62","v":"Variable Frequency Drive (Condenser/Chilled Water Pump):\n     1. Rebates are available for HVAC fans and pumps, Domestic Service Water (DSW) and Domestic Hot Water (DHW) pumps. \n     Rebates are not simultaneously available for supply motors where rebates have been paid for Unitary HVAC equipment or\n     CO sensors.\n     2. Rebates are not available for motors larger than 100 HP or for process equipment. These may be eligible through\n     the SRP Business Solutions Custom program with pre-approval.\n     3. (Retrofit) Any throttling or mechanical bypass equipment, bypass dampers, three-way valves, or throttling valves\n     must be removed or permanently disabled. Replacements of existing VFDs are not eligible unless the VFD has been\n     non-functioning for >2 years.\n     4. (New Construction) Rebates are not available for VFDs required by ASHRAE 90.1-2016:\n          - HVAC, Chilled Water (CHW) and Condenser Water (CW) pumps >2 HP."},{"$f":"$L$61","v":"Rebate:\n     - VFD: $90.00/Horsepower (HP)\n\nRequired Documentation:\n     1. Dated invoice/payment application.\n     2. Manufacturer's equipment specification sheet documenting compliance with equipment eligibility."},15," ","None","None"," ","Water-CooledPackaged Air-Conditioner2",null,null," "]
[null,null,null,null,null,"EquipmentType","Equipment Type"," ","VFD: Domestic Service Water Pump","VFD: DSW Pump","Variable Frequency Drive (Domestic Hot/Service Water Pump):\n     1. Rebates are available for HVAC fans and pumps, Domestic Service Water (DSW) and Domestic Hot Water (DHW) pumps. \n     Rebates are not simultaneously available for supply motors where rebates have been paid for Unitary HVAC equipment or\n     CO sensors.\n     2. Rebates are not available for motors larger than 100 HP or for process equipment. These may be eligible through\n     the SRP Business Solutions Custom program with pre-approval.\n     3. (Retrofit) Any throttling or mechanical bypass equipment, bypass dampers, three-way valves, or throttling valves\n     must be removed or permanently disabled. Replacements of existing VFDs are not eligible unless the VFD has been\n     non-functioning for >2 years.",{"$f":"$L$61","v":"Rebate:\n     - VFD: $90.00/Horsepower (HP)\n\nRequired Documentation:\n     1. Dated invoice/payment application.\n     2. Manufacturer's equipment specification sheet documenting compliance with equipment eligibility."},15," ","Electric Resistance","ER"," ","Water-CooledPackaged Air-Conditioner3",null,null," "]
[null,null,null,null,null,"List2","[Variant]"," ","VFD: Domestic Hot Water Pump","VFD: DHW Pump",{"$f":"$K$64","v":"Variable Frequency Drive (Domestic Hot/Service Water Pump):\n     1. Rebates are available for HVAC fans and pumps, Domestic Service Water (DSW) and Domestic Hot Water (DHW) pumps. \n     Rebates are not simultaneously available for supply motors where rebates have been paid for Unitary HVAC equipment or\n     CO sensors.\n     2. Rebates are not available for motors larger than 100 HP or for process equipment. These may be eligible through\n     the SRP Business Solutions Custom program with pre-approval.\n     3. (Retrofit) Any throttling or mechanical bypass equipment, bypass dampers, three-way valves, or throttling valves\n     must be removed or permanently disabled. Replacements of existing VFDs are not eligible unless the VFD has been\n     non-functioning for >2 years."},{"$f":"$L$61","v":"Rebate:\n     - VFD: $90.00/Horsepower (HP)\n\nRequired Documentation:\n     1. Dated invoice/payment application.\n     2. Manufacturer's equipment specification sheet documenting compliance with equipment eligibility."},15," ","Gas","Gas"," ","Water-CooledPackaged Air-Conditioner4",null,null," "]
[null,null,null,null,null,{"$f":"IF(ISNUMBER(SEARCH(\"Retro\",Project_Type,1)),\"\",\"Ventilation\")","v":""},{"$f":"IF(ISNUMBER(SEARCH(\"Retro\",Project_Type,1)),\"\",\"Ventilation Controls\")","v":""}," ","Advanced RTU Controller","RTU Controller","Advance Rooftop Unit Controller (ARC):\n     1. Controls must provide variable fan control, demand control ventilation (DCV), and outside-air economizer control.\n     2. Simultaneous rebates are not available for Variable Frequency Drives or CO2 Sensors on the same unit.\n     3. HVAC unit must be an air-cooled packaged rooftop unit (RTU) utilizing direct-expansion (DX) cooling technology.\n     Split Systems and water-cooled systems are not eligible.\n          - Units which utilize a variable speed EC motor are not eligible.\n          - (Retrofit) Installations on existing units where existing fan speed controls are present are not eligible. Existing\n          systems must be constant-volume (CV).\n          - (New Construction) Units ≥ 5 Tons and installations on units where variable speed fan controls are required by\n          ASHRAE 90.1-2016 are not eligible.","Rebate:\n     - ARC: $250.00/Ton\n\nRequired Documentation:\n     1. Dated invoice/payment application.\n     2. Manufacturer's equipment specification sheet documenting compliance with equipment eligibility.",{"$f":"AVERAGE(8,15)","v":11.5}," ","Heat Pump","HP"," ","Water-CooledPackaged Air-Conditioner5",null,null," "]
[null,null,null,null,null,"Tons","Controlled Tons (Per Sensor)"," ",null,null,null,null,null,null,"Other","Other"," ","Evaporatively-CooledPackaged Air-Conditioner1",null,null," "]
[null,null,null,null,null,{"$f":"IF(ISNUMBER(SEARCH(\"Retro\",Project_Type,1)),\"\",\"Population\")","v":""},{"$f":"IF(ISNUMBER(SEARCH(\"Retro\",Project_Type,1)),\"\",\"Outside Air Calculations Zone Population, Pz\")","v":""}," ","RefrigComp_EquipmentType[Inputs]","EquipmentType[Code]","EquipmentType[Eligibility]","EquipmentType[Description]","EquipmentType[MeasureLife]"," ",null,null,null,"Evaporatively-CooledPackaged Air-Conditioner2",null,null," "]
[null,null,null,null,null,{"$f":"IF(ISNUMBER(SEARCH(\"Retro\",Project_Type,1)),\"\",\"Area\")","v":""},{"$f":"IF(ISNUMBER(SEARCH(\"Retro\",Project_Type,1)),\"\",\"Outside Air Calculations Zone Area, Az\")","v":""}," ","Ref. Compressor: Bev. Merch","RFC: Beverage Merchandiser","Refrigeration Compressor:\n     1. Rebates are only available for dedicated compressors for walk-in systems and self-contained refrigeration systems for reach-in systems.\n     2. Must meet or exceed a minimum efficiency shown in Table 6.\n     3. (New Construction) Installations are not eligible.","Rebate:\n     - Ref Compressor: $80.00/Ton\n\nRequired Documentation:\n     1. Dated invoice/payment application.\n     2. Manufacturer's equipment specification sheet documenting unit efficiency.",12," ","CO2SNR_Ventilation[Inputs]","Ventilation[Code]"," ","Evaporatively-CooledPackaged Air-Conditioner3",null,null," "]
[null,null,null,null,null,{"$f":"IF(ISNUMBER(SEARCH(\"Retro\",Project_Type,1)),\"\",\"OA_CFM\")","v":""},{"$f":"IF(ISNUMBER(SEARCH(\"Retro\",Project_Type,1)),\"\",\"Design Outside-Air Airflow, CFM\")","v":""}," ","Ref. Compressor: Food Service ","RFC: Food Service Equipment",{"$f":"$K$69","v":"Refrigeration Compressor:\n     1. Rebates are only available for dedicated compressors for walk-in systems and self-contained refrigeration systems for reach-in systems.\n     2. Must meet or exceed a minimum efficiency shown in Table 6.\n     3. (New Construction) Installations are not eligible."},{"$f":"$L$69","v":"Rebate:\n     - Ref Compressor: $80.00/Ton\n\nRequired Documentation:\n     1. Dated invoice/payment application.\n     2. Manufacturer's equipment specification sheet documenting unit efficiency."},12," ","None","None"," ","Evaporatively-CooledPackaged Air-Conditioner4",null,null," "]
[null,null,null,null,null,{"$f":"IF(ISNUMBER(SEARCH(\"Retro\",Project_Type,1)),\"\",\"Zone_CFM\")","v":""},{"$f":"IF(ISNUMBER(SEARCH(\"Retro\",Project_Type,1)),\"\",\"Design Zone Supply Airflow, CFM\")","v":""}," ","Ref. Compressor: RI Cooler","RFC: Reach-In: Cooler",{"$f":"$K$69","v":"Refrigeration Compressor:\n     1. Rebates are only available for dedicated compressors for walk-in systems and self-contained refrigeration systems for reach-in systems.\n     2. Must meet or exceed a minimum efficiency shown in Table 6.\n     3. (New Construction) Installations are not eligible."},{"$f":"$L$69","v":"Rebate:\n     - Ref Compressor: $80.00/Ton\n\nRequired Documentation:\n     1. Dated invoice/payment application.\n     2. Manufacturer's equipment specification sheet documenting unit efficiency."},12," ","OA Economizer","OA Economizer"," ","Evaporatively-CooledPackaged Air-Conditioner5",null,null," "]
[null,null,null,null,null,null,null," ","Ref. Compressor: RI Freezer","RFC: Reach-In: Freezer",{"$f":"$K$69","v":"Refrigeration Compressor:\n     1. Rebates are only available for dedicated compressors for walk-in systems and self-contained refrigeration systems for reach-in systems.\n     2. Must meet or exceed a minimum efficiency shown in Table 6.\n     3. (New Construction) Installations are not eligible."},{"$f":"$L$69","v":"Rebate:\n     - Ref Compressor: $80.00/Ton\n\nRequired Documentation:\n     1. Dated invoice/payment application.\n     2. Manufacturer's equipment specification sheet documenting unit efficiency."},12," ","Automated OA Dampers","Automated OA Dampers"," ","Air-CooledSplit Air-Conditioner0","SEER2","Cooling Seasonal Efficiency, SEER2\n\nIf SEER2, EER2, and/or HSPF2 ratings are unavailable from the AHRI database, please leave SEER2, EER2, and HSPF2 blank."," "]
[null,null,null,null,null,null,null," ","Ref. Compressor: WI Cooler","RFC: Walk-In: Cooler",{"$f":"$K$69","v":"Refrigeration Compressor:\n     1. Rebates are only available for dedicated compressors for walk-in systems and self-contained refrigeration systems for reach-in systems.\n     2. Must meet or exceed a minimum efficiency shown in Table 6.\n     3. (New Construction) Installations are not eligible."},{"$f":"$L$69","v":"Rebate:\n     - Ref Compressor: $80.00/Ton\n\nRequired Documentation:\n     1. Dated invoice/payment application.\n     2. Manufacturer's equipment specification sheet documenting unit efficiency."},12," ","Economizer + OA Dampers","Economizer + OA Dampers"," ","Air-CooledSplit Air-Conditioner1","SEER2","Cooling Seasonal Efficiency, SEER2\n\nIf SEER2, EER2, and/or HSPF2 ratings are unavailable from the AHRI database, please leave SEER2, EER2, and HSPF2 blank."," "]
[null,null,null,null,null,null,null," ","Ref. Compressor: WI Freezer","RFC: Walk-In: Freezer",{"$f":"$K$69","v":"Refrigeration Compressor:\n     1. Rebates are only available for dedicated compressors for walk-in systems and self-contained refrigeration systems for reach-in systems.\n     2. Must meet or exceed a minimum efficiency shown in Table 6.\n     3. (New Construction) Installations are not eligible."},{"$f":"$L$69","v":"Rebate:\n     - Ref Compressor: $80.00/Ton\n\nRequired Documentation:\n     1. Dated invoice/payment application.\n     2. Manufacturer's equipment specification sheet documenting unit efficiency."},12," ",null,null,null,"Air-CooledSplit Air-Conditioner2",null,null," "]
[null,null,null,null,null,"HROC[Inputs]","HROC[Description]"," ","Discus Compressor","Discus Compressor","Discus Compressor:\n     1. Must be a discus or disc-valve compressor.\n     2. (New Construction) Installations are not eligible.","Rebate:\n     - Discus Compressor: $50.00/Ton\n\nRequired Documentation:\n     1. Dated invoice/payment application.\n     2. Manufacturer's equipment specification sheet documenting unit efficiency.",12," ","HROC_HeatType[Inputs]","HeatType[Code]"," ","Air-CooledSplit Air-Conditioner3",null,null," "]
[null,null,null,null,null,"EquipmentType","Equipment Type"," ",null,null,null,null,null,null,"None","None"," ","Air-CooledSplit Air-Conditioner4",null,null," "]
[null,null,null,null,null,"List2","[Variant]"," ","RefrigOther_EquipmentType[Inputs]","EquipmentType[Code]","EquipmentType[Eligibility]","EquipmentType[Description]","EquipmentType[MeasureLife]"," ","Electric Resistance","Electric Resistance"," ","Air-CooledSplit Air-Conditioner5",null,null," "]
[null,null,null,null,null,null,null," ","Anti-Sweat Heater Controls","NA","Anti-Sweat Heater Controls (ASH Controls):\n     1. Must sense humidity or condensation and adjust heater accordingly.\n     2. (New Construction) Installations are not eligible.","Rebate:\n     - ASH Controls: $3.00/Ln. Ft.\n\nRequired Documentation:\n     1. Dated invoice/payment application.\n     2. Manufacturer's equipment specification sheet documenting compliance with equipment eligibility.",12," ","Gas","Gas"," ","Water-CooledSplit Air-Conditioner1",null,null," "]
[null,null,null,null,null,"Tons","Controlled Tons (Per Sensor)"," ","High-Efficiency Freezer Door","NA","High-Efficiency Freezer Door:\n     1. Must use less than 132 Watts per door (Low-heat) or 52 Watts per door (No heat).\n     2. Installations on coolers are not eligible.","Rebate:\n     - Low-Heat: $60.00/Each\n     - No Heat: $100.00/Each\n\nRequired Documentation:\n     1. Dated invoice/payment application.\n     2. Manufacturer's equipment specification sheet documenting compliance with equipment eligibility.",14," ","Heat Pump","Heat Pump"," ","Water-CooledSplit Air-Conditioner2",null,null," "]
[null,null,null,null,null,"Occ Cooling Temp","Occupied Cooling temperature set point (separate from the facility set points)"," ","Open Display Case Door Retrofit Kit","NA","Open Display Case Door Retrofit Kit:\n1. Rebates are not simultaneously available for doors  where rebates are paid for anti-sweat heating controls on the same door.\n2. (Retrofit) Replacements of existing doors are not eligible.\n3. (New Construction) Installations are not eligible.","Rebate:\n     - Door Retrofit Kit: $55.00/Ln. Ft.\n\nRequired Documents:\n1. Dated invoice/payment application.\n2. Documentation of the existing refrigeration schedules or photos showing the existing open display cases.\n3. Photos of the new low-energy doors added to the existing open display cases.",15," ","Other","Other"," ","Water-CooledSplit Air-Conditioner3",null,null," "]
[null,null,null,null,null,"UnOcc Cooling Temp","Unoccupied Cooling temperature set point (separate from the facility set points)"," ","Auto-Closer","NA","Automatic Door-Closer (Auto-Closer):\n     1. Must firmly close door when door is within 1\" of full closure.\n     2. (Retrofit) Only installations on walk-in units are eligible.\n     3. (New Construction) Installations on main walk-in doors are not eligible.","Rebate:\n     - Cooler: $20.00/Each\n     - Freezer: $40.00/Each\n\nRequired Documentation:\n     1. Dated invoice/payment application.",8," ",null,null,null,"Water-CooledSplit Air-Conditioner4",null,null," "]
[null,null,null,null,null,"Occ Heating Temp","Occupied Heating temperature set point (separate from the facility set points)"," ","Dock Door Seal","NA","Dock Door Seal:\n     1. Partial seals (seals that only partially seal the space between the building and the truck during loading) or seals\n     requiring blowers are not eligible.\n     2. (New Construction) Installations are not eligible.","Rebate:\n     - Dock Door Seal: $25.00/Ln. Ft.\n\nRequired Documentation:\n     1. Dated invoice/payment application.\n     2. Manufacturer's equipment specification sheet documenting compliance with equipment eligibility.",4," ","CRAC_HeatReject[Inputs]","HeatReject[Code]"," ","Water-CooledSplit Air-Conditioner5",null,null," "]
[null,null,null,null,null,"UnOcc Heating Temp","Unoccupied Heating temperature set point (separate from the facility set points)"," ","Electronically Commutated Motor","NA","Electronically Commutated Motor (EC Motor, Refrigeration):\n     1. Rebates are not simultaneously available for ECM's where rebates have been paid on cases.\n     2. (New Construction) Installations are not eligible.","Rebate:\n     - Reach-In: $25.00/Each\n     - Walk-In: $60.00/Each\n\nRequired Documentation:\n     1. Dated invoice/payment application.\n     2. Manufacturer's equipment specification sheet documenting compliance with equipment eligibility.",15," ","Air-Cooled","Air-Cooled"," ","Evaporatively-CooledSplit Air-Conditioner1",null,null," "]
[null,null,null,null,null,"Guestrooms","The number of guestrooms at the facility"," ","Permanent-Magnet Sync Motor","NA","Permanent-Magnet Synchronous Motor (Refrigeration):\n     1. Rebates are not simultaneously available for PMSM's where rebates have been paid for cases.\n     2. Installations of PMSMs with existing or new Variable Frequency Drives (VFDs) are not eligible.\n     3. (Retrofit) Replacements of existing Shaded Pole (SP), Permanent Split Capacitor (PSC), and walk-in\n     Electronically Commutated (EC) motors are eligible.\n     4. (New Construction) Installations of PMSM's on Reach-Ins are not eligible.","Rebate:\n     - (Retrofit) Replacement of SP or PSC Motor:\n          - Reach-Ins: $30.00/Each\n          - Walk-Ins: $75.00/Each\n     - (New Construction) Walk-Ins only or (Retrofit) Replacement of EC Motor:\n          - $15.00/Each\n\nRequired Documentation:\n     1. Dated invoice/payment application.\n     2. Manufacturer's equipment specification sheet documenting compliance with equipment eligibility.",15," ","Water-Cooled","Water-Cooled"," ","Evaporatively-CooledSplit Air-Conditioner2",null,null," "]
[null,null,null,null,null,null,null," ","Evaporative Condenser","NA","Evaporative Condenser (Evap Condenser):\n     1. Must have a VFD-controlled fan (separate rebate allowed).\n     2. Must have a designed temperature differential (TD) ≤18 ºF and a minimum condensing temperature (CT) of 70 ºF \n          or less.\n     3. Must meet or exceed the minimum efficiency of 240 EER.\n     4. Condenser must have floating head pressure control (no simultaneous rebate allowed).\n     5. (New Construction) Installations are not eligible.","Rebate:\n     - Evap Condenser: $70.00/Ton of Refrigeration\n\nRequired Documentation:\n     1. Dated invoice/payment application.\n     2. Manufacturer's equipment specification sheet documenting compliance with equipment eligibility.",12," ","Glycol-Cooled","Glycol-Cooled"," ","Evaporatively-CooledSplit Air-Conditioner3",null,null," "]
[null,null,null,null,null,null,null," ","Fast-Acting Door","NA","Fast-Acting Door:\n     1. Bi-Fold doors meet or exceed the maximum open/close time of ≤1.5 seconds.\n     2. Roll-Up doors meet or exceed the maximum open/close time of ≤4.0 seconds.\n     3. Installations on walk-in coolers and freezers (outside of warehouse spaces) are not eligible.\n     4. (New Construction) Installations are not eligible.","Rebate:\n     - Med-Temp: $30.00/Sq. Ft. of Door Opening Area\n     - Low-Temp: $80.00/Sq. Ft. of Door Opening Area\n\nRequired Documentation:\n     1. Dated invoice/payment application.\n     2. Manufacturer's equipment specification sheet documenting compliance with equipment eligibility.",16," ",null,null,null,"Evaporatively-CooledSplit Air-Conditioner4",null,null," "]
[null,null,null,null,null,"HVACOther[Inputs]","HVACOther[Description]"," ","Floating Head-Pressure Controls","NA","Floating Head-Pressure Controls (FHPC):\n     1. Must be installed on an evaporative condenser or active compressor capacity.\n     2. Condenser system must have a VFD-controlled fan (separate rebate allowed) or staged fan.\n     3. Must have a temperature differential (TD) ≤18 ºF and a minimum condensing temperature of 70 ºF or less.\n     4. (New Construction) Installations are not eligible.","Rebate:\n     - FHPC: $20/Ton of Refrigeration\n\nRequired Documentation:\n     1. Dated invoice/payment application.\n     2. Manufacturer's equipment specification sheet documenting compliance with equipment eligibility.",12," ","CRAC_FluidEcon[Inputs]","FluidEcon[Code]"," ","Evaporatively-CooledSplit Air-Conditioner5",null,null," "]
[null,null,null,null,null,"EquipmentType","Equipment Type"," ","Door Gaskets","NA","Door Gaskets:\n     1. (Retrofit) Replacements of existing gaskets are not eligible without SRP's prior approval within 3 years unless\n      prior SRP rebates for existing gaskets have been received >3 years.\n     2. (New Construction) Installations are not eligible.","Rebate:\n     - Med-Temp: $3.50/Ln. Ft. of Door-Opening Area\n     - Low-Temp: $4.50/Ln. Ft. of Door-Opening Area\n\nRequired Documentation:\n     1. Dated invoice/payment application.",4," ","Yes","Econ"," ","Air-CooledMulti-Split VRF A/C0",null,null," "]
[null,null,null,null,null,"List2","[Variant]"," ","High-Efficiency Open Display Case","NA","High-Efficiency Open Display Case:\n     1. Reach-In Cooler or Freezer cases are not eligible. These may be eligible under the SRP Business Solutions Custom\n     program with pre-approval.\n     2. Rebates are not simultaneously available for cases where rebates are paid for electronically commutated motors (ECM)\n     on the same equipment.\n     3. (Retrofit) Retrofits of existing cases are not eligible. Rebates are available individually for lighting and ECMs.\n     4. (New Construction) Installations are not eligible.\n     5. Eligible equipment will have LED lighting and evaporator fans will be served by ECMs.","Rebate:\n     - HE Open Display Case: $20.00/Ln. Ft.\n\nRequired Documentation:\n     1. Dated invoice/payment application.\n     2. Manufacturer's equipment specification sheet documenting compliance with equipment eligibility.",14," ","No","None"," ","Air-CooledMulti-Split VRF A/C1",null,null," "]
[null,null,null,null,null,"List3","[Variant]"," ","Refrigerated Occupancy Controls","NA","Refrigeration Occupancy Controls:\n     1. Controls must turn off the refrigeration and lighting systems when the area is unoccupied for 15 minutes or more.\n     2. Beverage machine and reach-in cooler controls may be set to cycle refrigeration every two hours to maintain\n     product temperature. Customer must own the machine.\n     3. (New Construction) Installations are not eligible.","Rebate:\n     - Reach-In & Beverage Machine: $100.00/Each\n     - Snack Machine: $40.00/Each\n\nRequired Documentation:\n     1. Dated invoice/payment application.\n     2. Manufacturer's equipment specification sheet documenting compliance with equipment eligibility.",8," ",null,null,null,"Air-CooledMulti-Split VRF A/C2",null,null," "]
[null,null,null,null,null,"Size","[Variant]"," ","Refrigerated Beverage Vending Machine","NA","Refrigerated Beverage Vending Machine:\n     1. The vending machine must be ENERGY STAR®-qualified.","Rebate:\n     - Ref Vending Machine: $130.00/Each\n\nRequired Documentation:\n     1. Dated invoice/payment application.\n     2. Manufacturer's equipment specification sheet documenting compliance with equipment eligibility.",14," ",null,null,null,"Air-CooledMulti-Split VRF A/C3",null,null," "]
[null,null,null,null,null,"Input1","[Variant]"," ","Refrigerated Suction Pipe Insulation","NA","Refrigerated Suction Pipe Insulation:\n     1. Must insulate bare suction lines ≤1.625\" (diameter). Medium-Temperature lines require 0.75\" of flexible, closed-\n     cell, nitrile rubber, or equivalent insulation.  Low-Temperature lines require 1.00\" of flexible, closed-cell, nitrile rubber,\n     or equivalent insulation.\n     2. Insulation R-Values must be ≥R-3.2 for Medium-Temperature lines and ≥R-4.3 for Low-Temperature lines.\n     3. Outdoor installations must be protected from weather.\n     4. (New Construction) Installations are not eligible.","Rebate:\n     - Ref Suct Pipe Insulation: $0.75/Ln. Ft.\n\nRequired Documentation:\n     1. Dated invoice/payment application.\n     2. Manufacturer's equipment specification sheet documenting compliance with equipment eligibility.",11," ",null,null,null,"Air-CooledMulti-Split VRF A/C4",null,null," "]
[null,null,null,null,null,null,null," ","Strip Curtain","NA","Strip Curtain:\n     1. Must be installed on doorways of walk-in refrigerators or in refrigerated warehouses.\n     2. (Retrofit) Replacements of worn or existing curtains are not eligible.\n     3. (New Construction) Installations  are not eligible.","Rebate:\n     - Strip Curtain: $4.00/Sq. Ft. of Door-Opening Area\n\nRequired Documentation:\n     1. Dated invoice/payment application.",4," ",null,null,null,"Air-CooledMulti-Split VRF A/C5",null,null," "]
[null,null,null,null,null,null,null," ","Variable Frequency Drive","NA","Variable Frequency Drive (VFD, Refrigeration):\n     1. VFDs must modulate fan speed on immediate needs of the system. VFDs used as soft-starts or as cycling \n     on/off controls are not eligible.\n     2. (Retrofit) Replacements of existing VFDs are not eligible.\n     3. (New Construction) Installations are not eligible.","Rebate:\n     - VFD: $125.00/Horsepower (HP)\n\nRequired Documentation:\n     1. Dated invoice/payment application.\n     2. Documentation of the serial numbers of the installed VFDs.",16," ",null,null,null,"Water-CooledMulti-Split VRF A/C0",null,null," "]
[null,null,null,null,null,null,null," ","Ultra-Low Temperature Freezer","NA","Ultra-Low Temperature Freezer (ULT Freezer):\n     1. Must be ENERGY STAR®-qualified. Must be designed to operate between -70 ⁰C and -80 ⁰C.\n     2. Must use less than 0.42 kWh per cubic foot per day.\n     3. Installations on industrial ultra-low temperature walk-in freezers are not eligible under the SRP Business Solutions \n     Standard program. Ultra-low temperature walk-ins may be eligible under the SRP Business Solutions Custom program \n     with pre-approval.","Rebate:\n     - <25 Cubic Feet: $125.00/Each\n     - ≥25 Cubic Feet: $175.00/Each\n\nRequired Documentation:\n     1. Dated invoice/payment application.\n     2. Manufacturer's equipment specification sheet documenting compliance with equipment eligibility.",20," ",null,null,null,"Water-CooledMulti-Split VRF A/C1",null,null," "]
[null,null,null,null,null,null,null," ",null,null,null,null,null,null,null,null,null,"Water-CooledMulti-Split VRF A/C2",null,null," "]
[null,null,null,null,null,null,null," ","KitchenOther_EquipmentType[Inputs]","EquipmentType[Code]","EquipmentType[Eligibility]","EquipmentType[Description]","EquipmentType[MeasureLife]"," ",null,null,null,"Water-CooledMulti-Split VRF A/C3",null,null," "]
[null,null,null,null,null,null,null," ","ENERGY STAR Griddle","Griddle","Electric Griddle:\n     1. Must be ENERGY STAR®-qualified with a minimum cooking efficiency of 70 percent for all size units. \n     2. (Retrofit) Used or rebuilt equipment is not eligible.","Rebate:\n     - Griddle: $225.00/Each\n\nRequired Documentation:\n     1. Dated invoice/payment application.\n     2. Manufacturer's equipment specification sheet documenting compliance with equipment eligibility.",12," ",null,null,null,"Water-CooledMulti-Split VRF A/C4",null,null," "]
[null,null,null,null,null,"RefrigComp[Inputs]","RefrigComp[Description]"," ","ENERGY STAR Steam Cooker","Steam Cooker","Electric Steam Cooker:\n     1. Must be ENERGY STAR®-qualified with a minimum cooking efficiency of 50 percent for all size units. \n     2. Must have at least 3 pans.\n     3. (Retrofit) Used or rebuilt equipment is not eligible.","Rebate:\n     - Stream Cooker: $250.00/Each\n\nRequired Documentation:\n     1. Dated invoice/payment application.\n     2. Manufacturer's equipment specification sheet documenting compliance with equipment eligibility.",12," ",null,null,null,"Water-CooledMulti-Split VRF A/C5",null,null," "]
[null,null,null,null,null,"EquipmentType","Equipment Type"," ","ENERGY STAR Dishwasher","Dishwasher","Electric Dishwasher:\n     1. This measure applies to ENERGY STAR® high and low temp under counter single tank door type, single tank\n     conveyor, and multiple tank conveyor dishwashers installed in a commercial kitchen.","Rebate:\n     - Under Counter: $200.00/Each\n     - Single Tank: $600.00/Each\n     - Multi-Tank: $800.00/Each\n\nRequired Documentation:\n     1. Dated invoice/payment application.\n     2. Manufacturer's equipment specification sheet documenting compliance with equipment eligibility.",{"$f":"AVERAGE(10,15,20,20,10)","v":15}," ",null,null,null,"Evaporatively-CooledMulti-Split VRF A/C0",null,null," "]
[null,null,null,null,null,null,null," ","ENERGY STAR Hot Food Holding Cabinet","Hot Food Holding Cabinet","Electric Hot Food Holding Cabinet:\n     1. Must meet ENERGY STAR® Version 2.0 Hot Food Holding Cabinet (HFHC) specification. \n     2. Cook-and-hold equipment is not eligible. \n     3. (Retrofit) Used or rebuilt equipment is not eligible.","Rebate:\n     - 1/2 Size: $225.00/Each\n     - 3/4 Size: $350.00/Each\n     - Full Size: $700.00/Each\n\nRequired Documentation:\n     1. Dated invoice/payment application.\n     2. Manufacturer's equipment specification sheet documenting compliance with equipment eligibility.",12," ",null,null,null,"Evaporatively-CooledMulti-Split VRF A/C1",null,null," "]
[null,null,null,null,null,null,null," ","Hot Food Holding Cabinet Gaskets","Hot Food Holding Cabinet Gasket","Hot Food Holding Cabinet Gaskets:\n     1. Must be installed on an electric hot food holding cabinet. \n     2. (Retrofit) Replacements of existing gaskets are not eligible without SRP's prior approval within 3 years unless prior SRP rebates \n     for existing gaskets have been received >3 years.\n     3. (New Construction) Installations are not eligible. ","Rebate: $2.50/Ln. Ft. of Door Opening Area\n\nRequired Documentation:\n     1. Dated invoice/payment application.",4," ",null,null,null,"Evaporatively-CooledMulti-Split VRF A/C2",null,null," "]
[null,null,null,null,null,"R. Tons","Size (Refrigeration Tons)"," ","ENERGY STAR Ice Maker","Ice Maker","Ice-Making Machine:\n     1. Only air-cooled, cube-type machines including ice-making head, self-contained and remote-condensing units qualify.\n     This measure excludes flake- and nugget-type ice machines.\n     2. The ice maker must be ENERGY STAR®-qualified.","Rebate:\n     - 100-500 lb./day: $50.00/Each\n     - 501-1500 lb./day: $150.00/Each\n     - >1500 lb./day: $215.00/Each\n\nRequired Documentation:\n     1. Dated invoice/payment application.\n     2. Manufacturer's equipment specification sheet documenting compliance with equipment eligibility.",8," ",null,null,null,"Evaporatively-CooledMulti-Split VRF A/C3",null,null," "]
[null,null,null,null,null,"Input1","[Variant]"," ","ENERGY STAR Electric Convection Oven","Electric Convection Oven","Electric Convection Oven:\n     1. Must meet ENERGY STAR Version 2.0 Convection Oven specification.\n     2. (Retrofit) Used or rebuilt equipment is not eligible.","Rebate:\n     - Convection Oven: $175.00/Each\n\nRequired Documentation:\n     1. Dated invoice/payment application.\n     2. Manufacturer's equipment specification sheet documenting compliance with equipment eligibility.",12," ",null,null,null,"Evaporatively-CooledMulti-Split VRF A/C4",null,null," "]
[null,null,null,null,null,null,null," ","ENERGY STAR Electric Vat Fryer","Electric Vat Fryer","Electric Vat Fryer:\n     1. Must be ENERGY STAR-qualified with a minimum cooking efficiency of 80 percent for all size units.\n     2. (Retrofit) Used or rebuilt equipment is not eligible.","Rebate:\n     - Standard: $250.00/Each\n     - Large: $150.00/Each\n\nRequired Documentation:\n     1. Dated invoice/payment application.\n     2. Manufacturer's equipment specification sheet documenting compliance with equipment eligibility.",12," ",null,null,null,"Evaporatively-CooledMulti-Split VRF A/C5",null,null," "]
[null,null,null,null,null,null,null," ","Electric Combination Oven","Electric Combination Oven","Electric Combination Oven:\n     1. Must meet or exceed heavy load cooking efficiency of 60 percent utilizing ASTM Standard F2861.\n     2. (Retrofit) Used or rebuilt equipment is not eligible.","Rebate:\n     - <15 Pans: $550.00/Each\n     - ≥15 Pans: $1,000/Each\n\nRequired Documentation:\n     1. Dated invoice/payment application.\n     2. Manufacturer's equipment specification sheet documenting compliance with equipment eligibility.",12," ",null,null,null,"Packaged Terminal A/C (PTAC)",null,null," "]
[null,null,null,null,null,null,null," ","High Efficiency Pre-Rinse Spray Valve","HE Pre-Rinse Spray Valve","High-Efficiency Pre-Rinse Spray Valve (Pre-Rinse Valve):\n     1. Must be ≤1.15 gpm.\n     2.  This measure is only applicable for systems with electric storage water heaters.","Rebate:\n     - Pre-Rinse Valve: $75.00/Each\n\nRequired Documentation:\n     1. Dated invoice/payment application.\n     2. Manufacturer's equipment specification sheet documenting compliance with equipment eligibility.",5," ",null,null,null,"Vertical Terminal A/C (VTAC)",null,null," "]
[null,null,null,null,null,null,null," ","VFD: Kitchen EF (Hotel)","VFD: Kitchen - Hotel","Kitchen Exhaust Fan Variable Frequency Drive (VFD-KEF):\n     1. Must install temperature sensor and/or an optic sensor to adjust fan speed based on cooking conditions.\n     2. (Retrofit) Replacements of existing VFDs are not eligible unless the VFD has been non-functioning for >2 years.\n     3. (New Construction) Installations are not eligible.","Rebate:\n     - VFD-KEF: $300.00/Horsepower (HP)\n\nRequired Documentation:\n     1. Dated invoice/payment application.\n     2. Manufacturer's equipment specification sheet documenting compliance with equipment eligibility.\n     3. Documentation of the serial numbers of the installed VFDs.",15," "]
[null,null,null,null,null,null,null," ","VFD: Kitchen EF (Restaurant)","VFD: Kitchen - Restaurant",{"$f":"$K$108","v":"Kitchen Exhaust Fan Variable Frequency Drive (VFD-KEF):\n     1. Must install temperature sensor and/or an optic sensor to adjust fan speed based on cooking conditions.\n     2. (Retrofit) Replacements of existing VFDs are not eligible unless the VFD has been non-functioning for >2 years.\n     3. (New Construction) Installations are not eligible."},{"$f":"$L$108","v":"Rebate:\n     - VFD-KEF: $300.00/Horsepower (HP)\n\nRequired Documentation:\n     1. Dated invoice/payment application.\n     2. Manufacturer's equipment specification sheet documenting compliance with equipment eligibility.\n     3. Documentation of the serial numbers of the installed VFDs."},15," ",null,null,null,"UnitaryAC_Input3[EquipmentType]","Input3[Title]","Input3[Description]"," "]
[null,null,null,null,null,null,null," ",null,null,null,null,null,null,null,null,null,"Air-CooledPackaged Air-Conditioner1","EER","Cooling Full-Load Efficiency, EER"," "]
[null,null,null,null,null,"RefrigOther[Inputs]","RefrigOther[Description]"," ","CAOther_EquipmentType[Inputs]","EquipmentType[Code]","EquipmentType[Eligibility]","EquipmentType[Description]","EquipmentType[MeasureLife]"," ",null,null,null,"Air-CooledPackaged Air-Conditioner2","EER","Cooling Full-Load Efficiency, EER"," "]
[null,null,null,null,null,"EquipmentType","Equipment Type"," ","Additional Receiver Tank Capacity","Receiver Capacity Addition","Additional Receiver Tank Capacity:\n     1. Total tank receiver capacity after the addition must be >2.0 Gallons/SCFM of active compressor capacity.","Rebate:\n     - Additional Capacity: $1.50/Gallon\n\nRequired Documentation:\n     1. Dated invoice/payment application.\n     2. Manufacturer's equipment specification sheet documenting compliance with equipment eligibility.",15," ",null,null,null,"Air-CooledPackaged Air-Conditioner3","EER","Cooling Full-Load Efficiency, EER"," "]
[null,null,null,null,null,"List2","[Variant]"," ","Desiccant Dryer w/ Blower Purge","Desiccant Dryer: Blower Purge","Desiccant Dryer:\n     1. Must be equipped with dew point sensors and controls to regulate the regeneration cycle.\n     2. Must have minimum runtime of 6,000 hours. \n     3. Must have a rated dryer capacity ≤ 1,000 SCFM.","Rebate:\n     - Blower Purge: $7.50/SCFM\n     - External Heating: $5.00/SCFM\n\nRequired Documentation:\n     1. Dated invoice/payment application.\n     2. Manufacturer's equipment specification sheet documenting compliance with equipment eligibility.",15," ",null,null,null,"Air-CooledPackaged Air-Conditioner4","EER","Cooling Full-Load Efficiency, EER"," "]
[null,null,null,null,null,"List3","[Variant]"," ","Desiccant Dryer w/ External Heating","Desiccant Dryer: Externally Heated",{"$f":"$K$113","v":"Desiccant Dryer:\n     1. Must be equipped with dew point sensors and controls to regulate the regeneration cycle.\n     2. Must have minimum runtime of 6,000 hours. \n     3. Must have a rated dryer capacity ≤ 1,000 SCFM."},{"$f":"$L$113","v":"Rebate:\n     - Blower Purge: $7.50/SCFM\n     - External Heating: $5.00/SCFM\n\nRequired Documentation:\n     1. Dated invoice/payment application.\n     2. Manufacturer's equipment specification sheet documenting compliance with equipment eligibility."},15," ",null,null,null,"Air-CooledPackaged Air-Conditioner5","EER","Cooling Full-Load Efficiency, EER"," "]
[null,null,null,null,null,"Size","[Variant]"," ","Low Pressure-Drop Filter","LPD Filter","Low Pressure-Drop Filter (LPD Filter):\n     1. Must be installed on an operating compressor ≥ 25 HP.\n     2. Must be a deep-bed \"mist eliminator\" style with element life ≥ 5 years.\n     3. Must be rated for ≤ 5 ppm liquid carryover.\n     4. Must have a pressure loss at rated flow ≤ 1 psi when new and ≤3 psi at element change.\n     5. Must have particulate filtration that is 100% at ≥ 3.0 microns and at least 99.98% at 0.1 to 3.0 microns.\n     6. Must have a rated capacity ≤ 1000 SCFM.","Rebate:\n     - LPD Filter: $0.80/SCFM\n\nRequired Documentation:\n     1. Dated invoice/payment application.\n     2. Manufacturer's equipment specification sheet documenting compliance with equipment eligibility.",5," ",null,null,null,"Water-CooledPackaged Air-Conditioner1","EER","Cooling Full-Load Efficiency, EER"," "]
[null,null,null,null,null,"Input1","[Variant]"," ","Refrigerated Cycling Dryer","Refrigerated Cycling Dryer","Refrigerated Cycling Dryer:\n     1. Must have a rated dryer capacity ≤1,000 SCFM.\n     2. Must operate exclusively in cycling mode and not be equipped with the ability to select between cycling and non-\n     cycling modes.\n     3. Cycle completely off during periods of reduced demand.\n     4. A zero-loss condensate drain must accompany the cycling dryer.","Rebate:\n     - Refrigerated Cycling Dryer: $1.50/SCFM\n\nRequired Documentation:\n     1. Dated invoice/payment application.\n     2. Manufacturer's equipment specification sheet documenting compliance with equipment eligibility.",15," ",null,null,null,"Water-CooledPackaged Air-Conditioner2","EER","Cooling Full-Load Efficiency, EER"," "]
[null,null,null,null,null,"Input2","[Variant]"," ","VFD-Controlled Compressor","VFD Compressor","Variable Frequency Drive Controlled Compressor (VFD Compressor):\n     1. Must be an oil-injected screw compressor ≤75 HP.","Rebate:\n     - VFD Compressor: $90.00/Horsepower (HP)\n\nRequired Documentation:\n     1. Dated invoice/payment application.\n     2. Manufacturer's equipment specification sheet documenting compliance with equipment eligibility.",15," ",null,null,null,"Water-CooledPackaged Air-Conditioner3","EER","Cooling Full-Load Efficiency, EER"," "]
[null,null,null,null,null,"Input3","[Variant]"," ","Zero-Loss Condensate Drain","ZL Condensate Drain","Zero-Loss Condensate Drain (ZL Drain):\n     1. Must be designed to function without the release of compressed air into the atmosphere.","Rebate:\n     - ZL Drain: $90.00/Each\n\nRequired Documentation:\n     1. Dated invoice/payment application.\n     2. Manufacturer's equipment specification sheet documenting compliance with equipment eligibility.",13," ",null,null,null,"Water-CooledPackaged Air-Conditioner4","EER","Cooling Full-Load Efficiency, EER"," "]
[null,null,null,null,null,null,null," ",null,null,null,null,null,null,null,null,null,"Water-CooledPackaged Air-Conditioner5","EER","Cooling Full-Load Efficiency, EER"," "]
[null,null,null,null,null,null,null," ","CRAC_EquipmentType[Inputs]","EquipmentType[Code]","EquipmentType[Eligibility]","EquipmentType[Description]","EquipmentType[MeasureLife]"," ",null,null,null,"Evaporatively-CooledPackaged Air-Conditioner1","EER","Cooling Full-Load Efficiency, EER"," "]
[null,null,null,null,null,null,null," ","Upflow","Upflow","Computer Room Air-Conditioning Unit (CRAC):\n     1. Rebates will be paid for highest efficiency tier for which the unit qualifies. Rebates are paid per ton of\n     rated Sensible Cooling Capacity (not total or nominal).\n     2. Must Exceed SCOP efficiency requirements listed in Table 7. SCOP efficiency ratings must be evaluated\n     according to ASHRAE Std. 127-2016.\n     3. Backup units or redundant units are not eligible.","Rebate:\n     - Tier 1: $200.00/Ton\n     - Tier 2: $300.00/Ton + $100.00/Fluid Economizer (WC/GC Only)\n\nRequired Documentation:\n     1. Dated invoice/payment application.\n     2. Manufacturer's equipment specification sheet documenting the efficiency or AHRI reference numbers.",15," ",null,null,null,"Evaporatively-CooledPackaged Air-Conditioner2","EER","Cooling Full-Load Efficiency, EER"," "]
[null,null,null,null,null,null,null," ","Downflow","Downflow",{"$f":"$K$121","v":"Computer Room Air-Conditioning Unit (CRAC):\n     1. Rebates will be paid for highest efficiency tier for which the unit qualifies. Rebates are paid per ton of\n     rated Sensible Cooling Capacity (not total or nominal).\n     2. Must Exceed SCOP efficiency requirements listed in Table 7. SCOP efficiency ratings must be evaluated\n     according to ASHRAE Std. 127-2016.\n     3. Backup units or redundant units are not eligible."},{"$f":"$L$121","v":"Rebate:\n     - Tier 1: $200.00/Ton\n     - Tier 2: $300.00/Ton + $100.00/Fluid Economizer (WC/GC Only)\n\nRequired Documentation:\n     1. Dated invoice/payment application.\n     2. Manufacturer's equipment specification sheet documenting the efficiency or AHRI reference numbers."},15," ",null,null,null,"Evaporatively-CooledPackaged Air-Conditioner3","EER","Cooling Full-Load Efficiency, EER"," "]
[null,null,null,null,null,"KitchenOther[Inputs]","KitchenOther[Description]"," ","Horizontal","Horizontal",{"$f":"$K$121","v":"Computer Room Air-Conditioning Unit (CRAC):\n     1. Rebates will be paid for highest efficiency tier for which the unit qualifies. Rebates are paid per ton of\n     rated Sensible Cooling Capacity (not total or nominal).\n     2. Must Exceed SCOP efficiency requirements listed in Table 7. SCOP efficiency ratings must be evaluated\n     according to ASHRAE Std. 127-2016.\n     3. Backup units or redundant units are not eligible."},{"$f":"$L$121","v":"Rebate:\n     - Tier 1: $200.00/Ton\n     - Tier 2: $300.00/Ton + $100.00/Fluid Economizer (WC/GC Only)\n\nRequired Documentation:\n     1. Dated invoice/payment application.\n     2. Manufacturer's equipment specification sheet documenting the efficiency or AHRI reference numbers."},15," ",null,null,null,"Evaporatively-CooledPackaged Air-Conditioner4","EER","Cooling Full-Load Efficiency, EER"," "]
[null,null,null,null,null,"EquipmentType","Equipment Type"," ",null,null,null,null,null,null,null,null,null,"Evaporatively-CooledPackaged Air-Conditioner5","EER","Cooling Full-Load Efficiency, EER"," "]
[null,null,null,null,null,"List2","[Variant]"," ","ITDCOther_EquipmentType[Inputs]","EquipmentType[Code]","EquipmentType[Eligibility]","EquipmentType[Description]","EquipmentType[MeasureLife]"," ",null,null,null,"Air-CooledSplit Air-Conditioner0","EER","Cooling Full-Load Efficiency, EER"," "]
[null,null,null,null,null,"List3","[Variant]"," ","Computer Power Management","Computer Power Management","Computer Power Management:\n     1. Rebates are only available for desktop computer installations.\n     2. Must automatically reduce power settings at a network server for each inactive computer.\n     3. Must have energy reporting capability and manage power for each individual computer.\n     4. Software license must be in effect for 6 years.","Rebate:  $8/Computer\n\nRequired Documentation:\n     1. Dated invoice/payment application.\n     2. Manufacturer's equipment specification sheet documenting compliance with equipment eligibility.\n     3. Documentation showing the number of computers per license being controlled.",6," ",null,null,null,"Air-CooledSplit Air-Conditioner1","EER","Cooling Full-Load Efficiency, EER"," "]
[null,null,null,null,null,"Size","[Variant]"," ","EC Motor: CRAC","ECM: CRAC","Electronically Commutated Motor (EC Motor, ITDC):\n     1. Fan EC Motor must be installed on a Computer Room Air Conditioner (CRAC) or Air Handler (CRAH).\n     2. Backup service units are not eligible for rebates.\n     3. Rebates are not simultaneously available for ECM's where rebates have been paid for High Efficiency CRAC units.\n     4. (New Construction) Installations are not eligible.","Rebate:\n     - ECM: $250.00/Horsepower (HP)\n\nRequired Documentation:\n     1. Dated invoice/payment application.\n     2. Manufacturer's equipment specification sheet documenting compliance with equipment eligibility.",15," ",null,null,null,"Air-CooledSplit Air-Conditioner2","EER","Cooling Full-Load Efficiency, EER"," "]
[null,null,null,null,null,"Input1","[Variant]"," ","EC Motor: CRAH","ECM: CRAH",{"$f":"$K$127","v":"Electronically Commutated Motor (EC Motor, ITDC):\n     1. Fan EC Motor must be installed on a Computer Room Air Conditioner (CRAC) or Air Handler (CRAH).\n     2. Backup service units are not eligible for rebates.\n     3. Rebates are not simultaneously available for ECM's where rebates have been paid for High Efficiency CRAC units.\n     4. (New Construction) Installations are not eligible."},{"$f":"$L$127","v":"Rebate:\n     - ECM: $250.00/Horsepower (HP)\n\nRequired Documentation:\n     1. Dated invoice/payment application.\n     2. Manufacturer's equipment specification sheet documenting compliance with equipment eligibility."},15," ",null,null,null,"Air-CooledSplit Air-Conditioner3","EER","Cooling Full-Load Efficiency, EER"," "]
[null,null,null,null,null,null,null," ","Server Virtualization","Server Virtualization","Server Virtualization:\n     1. Removed servers are eligible. Inactive or relocated servers are not eligible.\n     2. Existing servers being virtualized must be completely removed from service.\n     3. Servers being removed as part of the Server Virtualization rebate are not eligible for any other SRP rebate.\n     4. (New Construction) Installations are not eligible.","Rebate:\n     - Server Virtualization: $300.00/Server Removed\n\nRequired Documentation:\n     1. Dated invoice/payment application.\n     2. Manufacturer's equipment specification sheet documenting compliance with equipment eligibility.\n     3. Documentation of the serial numbers of the removed servers.",5," ",null,null,null,"Air-CooledSplit Air-Conditioner4","EER","Cooling Full-Load Efficiency, EER"," "]
[null,null,null,null,null,null,null," ","High-Efficiency Servers","HE Server","High-Efficiency Server:\n     1. Servers must be Energy Star Certified or similarly rated that meet the same minimum high-efficiency\n     requirements.\n     2. Rebates are paid for the number of installed servers up to the number of new or replaced servers.\n     3. (New Construction) Servers being added as part of the High Efficiency Server rebate must include the\n     listed Serial Numbers for each new server.\n     4. (Retrofit) Servers being removed as part of the High Efficiency Server rebate are not eligible for any\n     other SRP rebates.","Rebate: \n     - $375.00/Server Replaced\n     - $200.00/new Server Installed\n\nRequired Documentation:\n     1. Dated invoice/payment application.\n     2. Manufacturer's equipment specification sheet documenting compliance with equipment eligibility.\n     3. Documentation of the serial numbers of the new/replacement and removed (retrofit only) servers.",5," ",null,null,null,"Air-CooledSplit Air-Conditioner5","EER","Cooling Full-Load Efficiency, EER"," "]
[null,null,null,null,null,null,null," ",null,null,null,null,null,null,null,null,null,"Water-CooledSplit Air-Conditioner1","EER","Cooling Full-Load Efficiency, EER"," "]
[null,null,null,null,null,null,null," ","Misc_EquipmentType[Inputs]","EquipmentType[Code]","EquipmentType[Eligibility]","EquipmentType[Description]","EquipmentType[MeasureLife]"," ",null,null,null,"Water-CooledSplit Air-Conditioner2","EER","Cooling Full-Load Efficiency, EER"," "]
[null,null,null,null,null,null,null," ","Ultraviolet Germicidal Irradiation","Ultraviolet Germicidal Irradiation","Ultraviolet Germicidal Irradiation (UVGI):\n     1. Direct evaporative coolers are not eligible.\n     2. Systems designed specifically for coil defouling are not eligible. Please refer to ASHRAE's Filtration/Disinfection COVID-19 \n     webpages for \"UV-C In-Duct Air Disinfection guidelines (link in FAQ).\n     3. Must be installed in in such a way that no occupants of the space is exposed to the UV radiation.\n     4. Installed in-duct UVGI system must be able to provide a sufficient UV-C irradiance (µW/cm2) and exposure time (seconds) to the \n     supply, return, or mixed air stream of an HVAC cooling unit. The system must meet or exceed the lamp wattage per ton shown in Table 13.\n          - If your system does not initially qualify for an incentive based on lamp wattage, speak with a RI representative.","Description:\n    Ultraviolet Germicidal Irradiation uses short-wavelength UV light to kill or inactivate microorganisms and can be used as a \n    disinfection method by breaking down the DNA of harmful viruses, bacteria and mold spores. UVGI can be applied within \n    HVAC systems to help disinfect air with proper placement of UV lamps within a building’s ductwork. The air itself does not have \n    germicidal properties; however, reducing the concentration in the air may mitigate the risk of transmission of harmful pathogens.\n\nRebate:\n     - UVGI: $30.00/Ton\n\nRequired Documentation:\n     1. Dated invoice/payment application.\n     2. Manufacturer's equipment specification sheet.",12," ",null,null,null,"Water-CooledSplit Air-Conditioner3","EER","Cooling Full-Load Efficiency, EER"," "]
[null,null,null,null,null,null,null," ","Heat Pump Water Heater","HPWH","Heat Pump Water Heater (HPWH):\n     1. Must replace an existing electric hot-water heater. Natural gas to heat pump retrofits may be covered under the \n     electric technologies program: https://www.savewithsrpbiz.com/rebates/electrictechnology.aspx\n     2. Must exceed a minimum efficiency requirement of EF ≥ 2.35. Rebates are paid at the highest tier that the unit\n     qualifies for:\n          - Tier 1: 3.30 ≤ EF < 3.75\n          - Tier 2: EF ≥ 3.75","Rebate:\n     - Tier 1: $250.00/Each\n     - Tier 2: $300.00/Each\n\nRequired Documentation:\n     1. Dated invoice/payment application.\n     2. Manufacturer's equipment specification sheet documenting unit efficiency.",10," ",null,null,null,"Water-CooledSplit Air-Conditioner4","EER","Cooling Full-Load Efficiency, EER"," "]
[null,null,null,null,null,"CAOther[Inputs]","CAOther[Description]"," ","VFD: Pool Pump","VFD: Pool Pump","Variable Frequency Drive Controlled Pool Pump:\n     1. Rebates are available for pool pumps.\n     2. Rebates are not available for motors larger than 25 HP. These may be eligible through the SRP Business Solutions\n     Custom program with pre-approval.\n     3. (Retrofit) Replacements of existing pool pump VFDs are not eligible unless existing VFD has been non-functioning\n     for >2 years.\n     4. Variable speed pool pump settings must meet or exceed local commercial code requirements.\n     5. Pumps must utilize lower speeds at least 8 hours per day.","Rebate:\n     - VFD Pool Pump: $135.00/Horsepower (HP)\n\nRequired Documentation:\n     1. Dated invoice/payment application.\n     2. Manufacturer's equipment specification sheet documenting compliance with equipment eligibility.",{"$f":"AVERAGE(10,15)","v":12.5}," ",null,null,null,"Water-CooledSplit Air-Conditioner5","EER","Cooling Full-Load Efficiency, EER"," "]
[null,null,null,null,null,"EquipmentType","Equipment Type"," ","Cool Roof","Cool Roof","Cool Roof:\n     1. Must be installed on a low-slope (2:12 or less) roof.\n     2. Rebates are not simultaneously available for Cool Roofing where rebates have been paid for Roof Insulation.\n      3. Must have a rated three-year Solar Reflective Index (SRI) of 86 or higher.\n          - Example: Reflectance = 0.70 and Emissivity = 0.90 (SRI = 86)\n          - Example: Reflectance = 0.69 and Emissivity = 0.98 (SRI = 86)","Rebate:\n     - Cool Roof (Spray-On/Paint-On):\n          - Retrofit: $0.10/Sq. Ft.\n          - New Construction: $0.05/Sq. Ft.\n     - Cool Roof (Membrane):\n          - Retrofit: $0.20/Sq. Ft.\n          - New Construction: $0.10/Sq. Ft.\n\nRequired Documentation:\n     1. Dated invoice/payment application with roof square footage.\n     2. Manufacturer's equipment specification sheet documenting roof material's emissivity and reflectance.\n     3. (Retrofit) Documentation of the existing roof's emissivity and reflectance.",20," ",null,null,null,"Evaporatively-CooledSplit Air-Conditioner1","EER","Cooling Full-Load Efficiency, EER"," "]
[null,null,null,null,null,"List2","[Variant]"," ","Roof Insulation","Roof Insulation","Roof Insulation:\n     1. Must be installed on a low-slope (2:12 or less) roof.\n     2. Rebates are not simultaneously available for Roof Insulation where rebates have been paid for Cool Roofing.\n     3. (Retrofit) Must have an existing overall (roof/ceiling) R-Value of R-7.0 or less.\n     4. (Retrofit) Installation of additional roof insulation must add at least R-10.0 (at roof/ceiling).\n     5. (New Construction) Installation of additional roof/ceiling insulation must add at least R-12.0 above ASHRAE 90.1-2016:\n          - Above-Deck: R-25.0\n          - Metal Building: R-10.0 + R-19.0ci\n          - Attic and Other: R38.0","Rebate:\n     - Roof Insulation:\n          - Retrofit: $0.20/Sq. Ft.\n          - New Construction: $0.05/Sq. Ft.\n\nRequired Documentation:\n     1. Dated invoice/payment application with roof square footage.\n     2. Manufacturer's equipment specification sheet documenting additional roof material's overall R-Value.\n     3. (Retrofit) Documentation of the existing roof's R-Value.",20," ",null,null,null,"Evaporatively-CooledSplit Air-Conditioner2","EER","Cooling Full-Load Efficiency, EER"," "]
[null,null,null,null,null,null,null," ","Window Film","Window Film","Window Film:\n     1. Film must be NFRC Certified.\n     2. Must be installed in an air conditioned space.\n     3. Windows must not have any previous shading.\n     4. Must not have a northern exposure (±45° due North) with final qualification at SRP's discretion.\n     5. Must have a maximum Solar Heat Gain Coefficient (SHGC) of 0.35 (Evaluated at 1/4\" Clear Single Glazing).\n     6. (New Construction) Installations are not eligible.","Rebate:\n     - Window Film: $0.75/Sq. Ft.\n\nRequired Documentation:\n     1. Dated invoice/payment application with window square footage.\n     2. Manufacturer's equipment specification sheet documenting window SHGC.",20," ",null,null,null,"Evaporatively-CooledSplit Air-Conditioner3","EER","Cooling Full-Load Efficiency, EER"," "]
[null,null,null,null,null,"Size","[Variant]"," ","Shade Screen","Shade Screen","Shade Screen:\n     1. Must be installed in an air conditioned space.\n     2. Windows must not have any previous shading.\n     3. Must not have a northern exposure (±45° due North) with final qualification at SRP's discretion.\n     4. Must have a maximum Solar Heat Gain Coefficient (SHGC) of 0.25 (Evaluated at 1/4\" Clear Single Glazing).\n     5. (New Construction) Installations are not eligible.","Rebate:\n     - Shade Screen: $0.80/Sq. Ft.\n\nRequired Documentation:\n     1. Dated invoice/payment application with window square footage.\n     2. Manufacturer's equipment specification sheet documenting window SHGC.",20," ",null,null,null,"Evaporatively-CooledSplit Air-Conditioner4","EER","Cooling Full-Load Efficiency, EER"," "]
[null,null,null,null,null,"Hours of Operation","Hour of Operation (Note: This may be separate from the facility's annual operation)"," ",null,null,null,null,null,null,null,null,null,"Evaporatively-CooledSplit Air-Conditioner5","EER","Cooling Full-Load Efficiency, EER"," "]
[null,null,null,null,null,"Input2","[Variant]"," ","TODO[Inputs]","TODO[Code]","TODO[Description]","TODO[Description]","TODO[MeasureLife]"," ",null,null,null,"Air-CooledMulti-Split VRF A/C0",null,null," "]
[null,null,null,null,null,"Input3","[Variant]"," ","VFD: Recirculation Fan","VFD: Recirculation Fan","Variable Frequency Drive (Recirculation Fan):\n     1. Rebates are available for Recirculation Fans.\n     2. Rebates are not available for motors larger than 100 HP or for process equipment. These may be eligible through\n     the SRP Business Solutions Custom program with pre-approval.\n     3. (Retrofit) Replacements of existing VFDs are not eligible unless the VFD has been non-functioning for >2 years.","Rebate:\n     - VFD: $90.00/Horsepower (HP)\n\nRequired Documentation:\n     1. Dated invoice/payment application.\n     2. Manufacturer's equipment specification sheet documenting compliance with equipment eligibility.",15," ",null,null,null,"Air-CooledMulti-Split VRF A/C1","EER","Cooling Full-Load Efficiency, EER"," "]
[null,null,null,null,null,null,null," ",null,null,null,null,null," ",null,null,null,"Air-CooledMulti-Split VRF A/C2","EER","Cooling Full-Load Efficiency, EER"," "]
[null,null,null,null,null,null,null," ",null,null,null,null,null,null,null,null,null,"Air-CooledMulti-Split VRF A/C3","EER","Cooling Full-Load Efficiency, EER"," "]
[null,null,null,null,null,null,null," ",null,null,null,null,null,null,null,null,null,"Air-CooledMulti-Split VRF A/C4","EER","Cooling Full-Load Efficiency, EER"," "]
[null,null,null,null,null,null,null,null,null,null,null,null,null,null,null,null,null,"Air-CooledMulti-Split VRF A/C5","EER","Cooling Full-Load Efficiency, EER"," "]
[null,null,null,null,null,"CRAC[Inputs]","CRAC[Description]",null,null,null,null,null,null,null,null,null,null,"Water-CooledMulti-Split VRF A/C0",null,null," "]
[null,null,null,null,null,"EquipmentType","Supply Airflow Direction"," ",null,null,null,null,null,null,null,null,null,"Water-CooledMulti-Split VRF A/C1","EER","Cooling Full-Load Efficiency, EER"," "]
[null,null,null,null,null,"HeatReject","Heat Rejection"," ",null,null,null,null,null,null,null,null,null,"Water-CooledMulti-Split VRF A/C2","EER","Cooling Full-Load Efficiency, EER"," "]
[null,null,null,null,null,"FluidEcon","Fluid Economizer? (Only for Water- and Glycol-Cooled systems)"," ",null,null,null,null,null,null,null,null,null,"Water-CooledMulti-Split VRF A/C3","EER","Cooling Full-Load Efficiency, EER"," "]
[null,null,null,null,null,"BTU/H","Sensible Size (British Thermal Units)"," ",null,null,null,null,null,null,null,null,null,"Water-CooledMulti-Split VRF A/C4","EER","Cooling Full-Load Efficiency, EER"," "]
[null,null,null,null,null,"SCOP","Sensible Coefficient of Performance"," ",null,null,null,null,null,null,null,null,null,"Water-CooledMulti-Split VRF A/C5","EER","Cooling Full-Load Efficiency, EER"," "]
[null,null,null,null,null,null,null," ",null,null,null,null,null,null,null,null,null,"Evaporatively-CooledMulti-Split VRF A/C0",null,null," "]
[null,null,null,null,null,null,null," ",null,null,null,null,null,null,null,null,null,"Evaporatively-CooledMulti-Split VRF A/C1","EER","Cooling Full-Load Efficiency, EER"," "]
[null,null,null,null,null,null,null," ",null,null,null,null,null,null,null,null,null,"Evaporatively-CooledMulti-Split VRF A/C2","EER","Cooling Full-Load Efficiency, EER"," "]
[null,null,null,null,null,null,null," ",null,null,null,null,null,null,null,null,null,"Evaporatively-CooledMulti-Split VRF A/C3","EER","Cooling Full-Load Efficiency, EER"," "]
[null,null,null,null,null,null,null," ",null,null,null,null,null,null,null,null,null,"Evaporatively-CooledMulti-Split VRF A/C4","EER","Cooling Full-Load Efficiency, EER"," "]
[null,null,null,null,null,null,null,null,null,null,null,null,null,null,null,null,null,"Evaporatively-CooledMulti-Split VRF A/C5","EER","Cooling Full-Load Efficiency, EER"," "]
[null,null,null,null,null,"ITDCOther[Inputs]","ITDCOther[Description]",null,null,null,null,null,null,null,null,null,null,"Packaged Terminal A/C (PTAC)","EER","Cooling Full-Load Efficiency, EER"," "]
[null,null,null,null,null,"EquipmentType","Equipment Type"," ",null,null,null,null,null,null,null,null,null,"Vertical Terminal A/C (VTAC)","EER","Cooling Full-Load Efficiency, EER"," "]
[null,null,null,null,null,"List2","[Variant]"," "]
[null,null,null,null,null,null,null," ",null,null,null,null,null,null,null,null,null,"UnitaryAC_Input4[EquipmentType]","Input4[Title]","Input4[Description]"," "]
[null,null,null,null,null,"Size","[Variant]"," ",null,null,null,null,null,null,null,null,null,"Air-CooledPackaged Air-Conditioner1","EER2","Cooling Full-Load Efficiency, EER2\n\nIf SEER2, EER2, and/or HSPF2 ratings are unavailable from the AHRI database, please leave SEER2, EER2, and HSPF2 blank."," "]
[null,null,null,null,null,"Input1","[Variant]"," ",null,null,null,null,null,null,null,null,null,"Air-CooledPackaged Air-Conditioner2",null,null," "]
[null,null,null,null,null,"Input2","[Variant]"," ",null,null,null,null,null,null,null,null,null,"Air-CooledPackaged Air-Conditioner3",null,null," "]
[null,null,null,null,null,null,null," ",null,null,null,null,null,null,null,null,null,"Air-CooledPackaged Air-Conditioner4",null,null," "]
[null,null,null,null,null,null,null," ",null,null,null,null,null,null,null,null,null,"Air-CooledPackaged Air-Conditioner5",null,null," "]
[null,null,null,null,null,null,null," ",null,null,null,null,null,null,null,null,null,"Water-CooledPackaged Air-Conditioner1",null,null," "]
[null,null,null,null,null,null,null," ",null,null,null,null,null,null,null,null,null,"Water-CooledPackaged Air-Conditioner2",null,null," "]
[null,null,null,null,null,null,null,null,null,null,null,null,null,null,null,null,null,"Water-CooledPackaged Air-Conditioner3",null,null," "]
[null,null,null,null,null,"Misc[Inputs]","Misc[Description]",null,null,null,null,null,null,null,null,null,null,"Water-CooledPackaged Air-Conditioner4",null,null," "]
[null,null,null,null,null,"EquipmentType","Equipment Type"," ",null,null,null,null,null,null,null,null,null,"Water-CooledPackaged Air-Conditioner5",null,null," "]
[null,null,null,null,null,"List2","[Variant]"," ",null,null,null,null,null,null,null,null,null,"Evaporatively-CooledPackaged Air-Conditioner1",null,null," "]
[null,null,null,null,null,"List3","[Variant]"," ",null,null,null,null,null,null,null,null,null,"Evaporatively-CooledPackaged Air-Conditioner2",null,null," "]
[null,null,null,null,null,"Size","[Variant]"," ",null,null,null,null,null,null,null,null,null,"Evaporatively-CooledPackaged Air-Conditioner3",null,null," "]
[null,null,null,null,null,"Input1","[Variant]"," ",null,null,null,null,null,null,null,null,null,"Evaporatively-CooledPackaged Air-Conditioner4",null,null," "]
[null,null,null,null,null,"Input2","[Variant]"," ",null,null,null,null,null,null,null,null,null,"Evaporatively-CooledPackaged Air-Conditioner5",null,null," "]
[null,null,null,null,null,"Input3","[Variant]"," ",null,null,null,null,null,null,null,null,null,"Air-CooledSplit Air-Conditioner0","EER2","Cooling Full-Load Efficiency, EER2\n\nIf SEER2, EER2, and/or HSPF2 ratings are unavailable from the AHRI database, please leave SEER2, EER2, and HSPF2 blank."," "]
[null,null,null,null,null,"Input4","[Variant]"," ",null,null,null,null,null,null,null,null,null,"Air-CooledSplit Air-Conditioner1","EER2","Cooling Full-Load Efficiency, EER2\n\nIf SEER2, EER2, and/or HSPF2 ratings are unavailable from the AHRI database, please leave SEER2, EER2, and HSPF2 blank."," "]
[null,null,null,null,null,null,null," ",null,null,null,null,null,null,null,null,null,"Air-CooledSplit Air-Conditioner2",null,null," "]
[null,null,null,null,null,null,null," ",null,null,null,null,null,null,null,null,null,"Air-CooledSplit Air-Conditioner3",null,null," "]
[null,null,null,null,null,null,null,null,null,null,null,null,null,null,null,null,null,"Air-CooledSplit Air-Conditioner4",null,null," "]
[null,null,null,null,null,null,null,null,null,null,null,null,null,null,null,null,null,"Air-CooledSplit Air-Conditioner5",null,null," "]
[null,null,null,null,null,null,null,null,null,null,null,null,null,null,null,null,null,"Water-CooledSplit Air-Conditioner1",null,null," "]
[null,null,null,null,null,null,null,null,null,null,null,null,null,null,null,null,null,"Water-CooledSplit Air-Conditioner2",null,null," "]
[null,null,null,null,null,null,null,null,null,null,null,null,null,null,null,null,null,"Water-CooledSplit Air-Conditioner3",null,null," "]
[null,null,null,null,null,null,null,null,null,null,null,null,null,null,null,null,null,"Water-CooledSplit Air-Conditioner4",null,null," "]
[null,null,null,null,null,null,null,null,null,null,null,null,null,null,null,null,null,"Water-CooledSplit Air-Conditioner5",null,null," "]
[null,null,null,null,null,null,null,null,null,null,null,null,null,null,null,null,null,"Evaporatively-CooledSplit Air-Conditioner1",null,null," "]
[null,null,null,null,null,null,null,null,null,null,null,null,null,null,null,null,null,"Evaporatively-CooledSplit Air-Conditioner2",null,null," "]
[null,null,null,null,null,null,null,null,null,null,null,null,null,null,null,null,null,"Evaporatively-CooledSplit Air-Conditioner3",null,null," "]
[null,null,null,null,null,null,null,null,null,null,null,null,null,null,null,null,null,"Evaporatively-CooledSplit Air-Conditioner4",null,null," "]
[null,null,null,null,null,null,null,null,null,null,null,null,null,null,null,null,null,"Evaporatively-CooledSplit Air-Conditioner5",null,null," "]
[null,null,null,null,null,null,null,null,null,null,null,null,null,null,null,null,null,"Air-CooledMulti-Split VRF A/C0",null,null," "]
[null,null,null,null,null,null,null,null,null,null,null,null,null,null,null,null,null,"Air-CooledMulti-Split VRF A/C1",null,null," "]
[null,null,null,null,null,null,null,null,null,null,null,null,null,null,null,null,null,"Air-CooledMulti-Split VRF A/C2",null,null," "]
[null,null,null,null,null,null,null,null,null,null,null,null,null,null,null,null,null,"Air-CooledMulti-Split VRF A/C3",null,null," "]
[null,null,null,null,null,null,null,null,null,null,null,null,null,null,null,null,null,"Air-CooledMulti-Split VRF A/C4",null,null," "]
[null,null,null,null,null,null,null,null,null,null,null,null,null,null,null,null,null,"Air-CooledMulti-Split VRF A/C5",null,null," "]
[null,null,null,null,null,null,null,null,null,null,null,null,null,null,null,null,null,"Water-CooledMulti-Split VRF A/C0",null,null," "]
[null,null,null,null,null,null,null,null,null,null,null,null,null,null,null,null,null,"Water-CooledMulti-Split VRF A/C1",null,null," "]
[null,null,null,null,null,null,null,null,null,null,null,null,null,null,null,null,null,"Water-CooledMulti-Split VRF A/C2",null,null," "]
[null,null,null,null,null,null,null,null,null,null,null,null,null,null,null,null,null,"Water-CooledMulti-Split VRF A/C3",null,null," "]
[null,null,null,null,null,null,null,null,null,null,null,null,null,null,null,null,null,"Water-CooledMulti-Split VRF A/C4",null,null," "]
[null,null,null,null,null,null,null,null,null,null,null,null,null,null,null,null,null,"Water-CooledMulti-Split VRF A/C5",null,null," "]
[null,null,null,null,null,null,null,null,null,null,null,null,null,null,null,null,null,"Evaporatively-CooledMulti-Split VRF A/C0",null,null," "]
[null,null,null,null,null,null,null,null,null,null,null,null,null,null,null,null,null,"Evaporatively-CooledMulti-Split VRF A/C1",null,null," "]
[null,null,null,null,null,null,null,null,null,null,null,null,null,null,null,null,null,"Evaporatively-CooledMulti-Split VRF A/C2",null,null," "]
[null,null,null,null,null,null,null,null,null,null,null,null,null,null,null,null,null,"Evaporatively-CooledMulti-Split VRF A/C3",null,null," "]
[null,null,null,null,null,null,null,null,null,null,null,null,null,null,null,null,null,"Evaporatively-CooledMulti-Split VRF A/C4",null,null," "]
[null,null,null,null,null,null,null,null,null,null,null,null,null,null,null,null,null,"Evaporatively-CooledMulti-Split VRF A/C5",null,null," "]
[null,null,null,null,null,null,null,null,null,null,null,null,null,null,null,null,null,"Packaged Terminal A/C (PTAC)",null,null," "]
[null,null,null,null,null,null,null,null,null,null,null,null,null,null,null,null,null,"Vertical Terminal A/C (VTAC)",null,null," "]
[]
[null,null,null,null,null,null,null,null,null,null,null,null,null,null,null,null,null,"UnitaryHP_Input1[EquipmentType]","Input1[Title]","Input1[Description]"," "]
[null,null,null,null,null,null,null,null,null,null,null,null,null,null,null,null,null,"Air-CooledPackaged Heat Pump1","SEER","Cooling Seasonal Efficiency, SEER"," "]
[null,null,null,null,null,null,null,null,null,null,null,null,null,null,null,null,null,"Air-CooledPackaged Heat Pump2","IEER","Cooling Seasonal Efficiency, IEER"," "]
[null,null,null,null,null,null,null,null,null,null,null,null,null,null,null,null,null,"Air-CooledPackaged Heat Pump3","IEER","Cooling Seasonal Efficiency, IEER"," "]
[null,null,null,null,null,null,null,null,null,null,null,null,null,null,null,null,null,"Air-CooledPackaged Heat Pump4","IEER","Cooling Seasonal Efficiency, IEER"," "]
[null,null,null,null,null,null,null,null,null,null,null,null,null,null,null,null,null,"Air-CooledPackaged Heat Pump5","IEER","Cooling Seasonal Efficiency, IEER"," "]
[null,null,null,null,null,null,null,null,null,null,null,null,null,null,null,null,null,"Water-CooledPackaged Heat Pump1",null,null," "]
[null,null,null,null,null,null,null,null,null,null,null,null,null,null,null,null,null,"Water-CooledPackaged Heat Pump2",null,null," "]
[null,null,null,null,null,null,null,null,null,null,null,null,null,null,null,null,null,"Water-CooledPackaged Heat Pump3",null,null," "]
[null,null,null,null,null,null,null,null,null,null,null,null,null,null,null,null,null,"Water-CooledPackaged Heat Pump4",null,null," "]
[null,null,null,null,null,null,null,null,null,null,null,null,null,null,null,null,null,"Water-CooledPackaged Heat Pump5",null,null," "]
[null,null,null,null,null,null,null,null,null,null,null,null,null,null,null,null,null,"Air-CooledSplit Heat Pump0","SEER","Cooling Seasonal Efficiency, SEER"," "]
[null,null,null,null,null,null,null,null,null,null,null,null,null,null,null,null,null,"Air-CooledSplit Heat Pump1","SEER","Cooling Seasonal Efficiency, SEER"," "]
[null,null,null,null,null,null,null,null,null,null,null,null,null,null,null,null,null,"Air-CooledSplit Heat Pump2","IEER","Cooling Seasonal Efficiency, IEER"," "]
[null,null,null,null,null,null,null,null,null,null,null,null,null,null,null,null,null,"Air-CooledSplit Heat Pump3","IEER","Cooling Seasonal Efficiency, IEER"," "]
[null,null,null,null,null,null,null,null,null,null,null,null,null,null,null,null,null,"Air-CooledSplit Heat Pump4","IEER","Cooling Seasonal Efficiency, IEER"," "]
[null,null,null,null,null,null,null,null,null,null,null,null,null,null,null,null,null,"Air-CooledSplit Heat Pump5","IEER","Cooling Seasonal Efficiency, IEER"," "]
[null,null,null,null,null,null,null,null,null,null,null,null,null,null,null,null,null,"Water-CooledSplit Heat Pump1",null,null," "]
[null,null,null,null,null,null,null,null,null,null,null,null,null,null,null,null,null,"Water-CooledSplit Heat Pump2",null,null," "]
[null,null,null,null,null,null,null,null,null,null,null,null,null,null,null,null,null,"Water-CooledSplit Heat Pump3",null,null," "]
[null,null,null,null,null,null,null,null,null,null,null,null,null,null,null,null,null,"Water-CooledSplit Heat Pump4",null,null," "]
[null,null,null,null,null,null,null,null,null,null,null,null,null,null,null,null,null,"Water-CooledSplit Heat Pump5",null,null," "]
[null,null,null,null,null,null,null,null,null,null,null,null,null,null,null,null,null,"Air-CooledMulti-Split VRF HP0",null,null," "]
[null,null,null,null,null,null,null,null,null,null,null,null,null,null,null,null,null,"Air-CooledMulti-Split VRF HP1","SEER","Cooling Seasonal Efficiency, SEER"," "]
[null,null,null,null,null,null,null,null,null,null,null,null,null,null,null,null,null,"Air-CooledMulti-Split VRF HP2","IEER","Cooling Seasonal Efficiency, IEER"," "]
[null,null,null,null,null,null,null,null,null,null,null,null,null,null,null,null,null,"Air-CooledMulti-Split VRF HP3","IEER","Cooling Seasonal Efficiency, IEER"," "]
[null,null,null,null,null,null,null,null,null,null,null,null,null,null,null,null,null,"Air-CooledMulti-Split VRF HP4","IEER","Cooling Seasonal Efficiency, IEER"," "]
[null,null,null,null,null,null,null,null,null,null,null,null,null,null,null,null,null,"Air-CooledMulti-Split VRF HP5","IEER","Cooling Seasonal Efficiency, IEER"," "]
[null,null,null,null,null,null,null,null,null,null,null,null,null,null,null,null,null,"Water-CooledMulti-Split VRF HP0",null,null," "]
[null,null,null,null,null,null,null,null,null,null,null,null,null,null,null,null,null,"Water-CooledMulti-Split VRF HP1",null,null," "]
[null,null,null,null,null,null,null,null,null,null,null,null,null,null,null,null,null,"Water-CooledMulti-Split VRF HP2",null,null," "]
[null,null,null,null,null,null,null,null,null,null,null,null,null,null,null,null,null,"Water-CooledMulti-Split VRF HP3",null,null," "]
[null,null,null,null,null,null,null,null,null,null,null,null,null,null,null,null,null,"Water-CooledMulti-Split VRF HP4",null,null," "]
[null,null,null,null,null,null,null,null,null,null,null,null,null,null,null,null,null,"Water-CooledMulti-Split VRF HP5",null,null," "]
[null,null,null,null,null,null,null,null,null,null,null,null,null,null,null,null,null,"Air-CooledMulti-Split VRF HP w/ Heat Recovery0",null,null," "]
[null,null,null,null,null,null,null,null,null,null,null,null,null,null,null,null,null,"Air-CooledMulti-Split VRF HP w/ Heat Recovery1","SEER","Cooling Seasonal Efficiency, SEER"," "]
[null,null,null,null,null,null,null,null,null,null,null,null,null,null,null,null,null,"Air-CooledMulti-Split VRF HP w/ Heat Recovery2","IEER","Cooling Seasonal Efficiency, IEER"," "]
[null,null,null,null,null,null,null,null,null,null,null,null,null,null,null,null,null,"Air-CooledMulti-Split VRF HP w/ Heat Recovery3","IEER","Cooling Seasonal Efficiency, IEER"," "]
[null,null,null,null,null,null,null,null,null,null,null,null,null,null,null,null,null,"Air-CooledMulti-Split VRF HP w/ Heat Recovery4","IEER","Cooling Seasonal Efficiency, IEER"," "]
[null,null,null,null,null,null,null,null,null,null,null,null,null,null,null,null,null,"Air-CooledMulti-Split VRF HP w/ Heat Recovery5","IEER","Cooling Seasonal Efficiency, IEER"," "]
[null,null,null,null,null,null,null,null,null,null,null,null,null,null,null,null,null,"Water-CooledMulti-Split VRF HP w/ Heat Recovery0",null,null," "]
[null,null,null,null,null,null,null,null,null,null,null,null,null,null,null,null,null,"Water-CooledMulti-Split VRF HP w/ Heat Recovery1",null,null," "]
[null,null,null,null,null,null,null,null,null,null,null,null,null,null,null,null,null,"Water-CooledMulti-Split VRF HP w/ Heat Recovery2",null,null," "]
[null,null,null,null,null,null,null,null,null,null,null,null,null,null,null,null,null,"Water-CooledMulti-Split VRF HP w/ Heat Recovery3",null,null," "]
[null,null,null,null,null,null,null,null,null,null,null,null,null,null,null,null,null,"Water-CooledMulti-Split VRF HP w/ Heat Recovery4",null,null," "]
[null,null,null,null,null,null,null,null,null,null,null,null,null,null,null,null,null,"Water-CooledMulti-Split VRF HP w/ Heat Recovery5",null,null," "]
[null,null,null,null,null,null,null,null,null,null,null,null,null,null,null,null,null,"Packaged Terminal HP (PTHP)",null,null," "]
[null,null,null,null,null,null,null,null,null,null,null,null,null,null,null,null,null,"Vertical Terminal HP (VTHP)",null,null," "]
[]
[null,null,null,null,null,null,null,null,null,null,null,null,null,null,null,null,null,"UnitaryHP_Input2[EquipmentType]","Input2[Title]","Input2[Description]"," "]
[null,null,null,null,null,null,null,null,null,null,null,null,null,null,null,null,null,"Air-CooledPackaged Heat Pump1","SEER2","Cooling Seasonal Efficiency, SEER2\n\nIf SEER2, EER2, and/or HSPF2 ratings are unavailable from the AHRI database, please leave SEER2, EER2, and HSPF2 blank."," "]
[null,null,null,null,null,null,null,null,null,null,null,null,null,null,null,null,null,"Air-CooledPackaged Heat Pump2",null,null," "]
[null,null,null,null,null,null,null,null,null,null,null,null,null,null,null,null,null,"Air-CooledPackaged Heat Pump3",null,null," "]
[null,null,null,null,null,null,null,null,null,null,null,null,null,null,null,null,null,"Air-CooledPackaged Heat Pump4",null,null," "]
[null,null,null,null,null,null,null,null,null,null,null,null,null,null,null,null,null,"Air-CooledPackaged Heat Pump5",null,null," "]
[null,null,null,null,null,null,null,null,null,null,null,null,null,null,null,null,null,"Water-CooledPackaged Heat Pump1",null,null," "]
[null,null,null,null,null,null,null,null,null,null,null,null,null,null,null,null,null,"Water-CooledPackaged Heat Pump2",null,null," "]
[null,null,null,null,null,null,null,null,null,null,null,null,null,null,null,null,null,"Water-CooledPackaged Heat Pump3",null,null," "]
[null,null,null,null,null,null,null,null,null,null,null,null,null,null,null,null,null,"Water-CooledPackaged Heat Pump4",null,null," "]
[null,null,null,null,null,null,null,null,null,null,null,null,null,null,null,null,null,"Water-CooledPackaged Heat Pump5",null,null," "]
[null,null,null,null,null,null,null,null,null,null,null,null,null,null,null,null,null,"Air-CooledSplit Heat Pump0","SEER2","Cooling Seasonal Efficiency, SEER2\n\nIf SEER2, EER2, and/or HSPF2 ratings are unavailable from the AHRI database, please leave SEER2, EER2, and HSPF2 blank."," "]
[null,null,null,null,null,null,null,null,null,null,null,null,null,null,null,null,null,"Air-CooledSplit Heat Pump1","SEER2","Cooling Seasonal Efficiency, SEER2\n\nIf SEER2, EER2, and/or HSPF2 ratings are unavailable from the AHRI database, please leave SEER2, EER2, and HSPF2 blank."," "]
[null,null,null,null,null,null,null,null,null,null,null,null,null,null,null,null,null,"Air-CooledSplit Heat Pump2",null,null," "]
[null,null,null,null,null,null,null,null,null,null,null,null,null,null,null,null,null,"Air-CooledSplit Heat Pump3",null,null," "]
[null,null,null,null,null,null,null,null,null,null,null,null,null,null,null,null,null,"Air-CooledSplit Heat Pump4",null,null," "]
[null,null,null,null,null,null,null,null,null,null,null,null,null,null,null,null,null,"Air-CooledSplit Heat Pump5",null,null," "]
[null,null,null,null,null,null,null,null,null,null,null,null,null,null,null,null,null,"Water-CooledSplit Heat Pump1",null,null," "]
[null,null,null,null,null,null,null,null,null,null,null,null,null,null,null,null,null,"Water-CooledSplit Heat Pump2",null,null," "]
[null,null,null,null,null,null,null,null,null,null,null,null,null,null,null,null,null,"Water-CooledSplit Heat Pump3",null,null," "]
[null,null,null,null,null,null,null,null,null,null,null,null,null,null,null,null,null,"Water-CooledSplit Heat Pump4",null,null," "]
[null,null,null,null,null,null,null,null,null,null,null,null,null,null,null,null,null,"Water-CooledSplit Heat Pump5",null,null," "]
[null,null,null,null,null,null,null,null,null,null,null,null,null,null,null,null,null,"Air-CooledMulti-Split VRF HP0",null,null," "]
[null,null,null,null,null,null,null,null,null,null,null,null,null,null,null,null,null,"Air-CooledMulti-Split VRF HP1",null,null," "]
[null,null,null,null,null,null,null,null,null,null,null,null,null,null,null,null,null,"Air-CooledMulti-Split VRF HP2",null,null," "]
[null,null,null,null,null,null,null,null,null,null,null,null,null,null,null,null,null,"Air-CooledMulti-Split VRF HP3",null,null," "]
[null,null,null,null,null,null,null,null,null,null,null,null,null,null,null,null,null,"Air-CooledMulti-Split VRF HP4",null,null," "]
[null,null,null,null,null,null,null,null,null,null,null,null,null,null,null,null,null,"Air-CooledMulti-Split VRF HP5",null,null," "]
[null,null,null,null,null,null,null,null,null,null,null,null,null,null,null,null,null,"Water-CooledMulti-Split VRF HP0",null,null," "]
[null,null,null,null,null,null,null,null,null,null,null,null,null,null,null,null,null,"Water-CooledMulti-Split VRF HP1",null,null," "]
[null,null,null,null,null,null,null,null,null,null,null,null,null,null,null,null,null,"Water-CooledMulti-Split VRF HP2",null,null," "]
[null,null,null,null,null,null,null,null,null,null,null,null,null,null,null,null,null,"Water-CooledMulti-Split VRF HP3",null,null," "]
[null,null,null,null,null,null,null,null,null,null,null,null,null,null,null,null,null,"Water-CooledMulti-Split VRF HP4",null,null," "]
[null,null,null,null,null,null,null,null,null,null,null,null,null,null,null,null,null,"Water-CooledMulti-Split VRF HP5",null,null," "]
[null,null,null,null,null,null,null,null,null,null,null,null,null,null,null,null,null,"Air-CooledMulti-Split VRF HP w/ Heat Recovery0",null,null," "]
[null,null,null,null,null,null,null,null,null,null,null,null,null,null,null,null,null,"Air-CooledMulti-Split VRF HP w/ Heat Recovery1",null,null," "]
[null,null,null,null,null,null,null,null,null,null,null,null,null,null,null,null,null,"Air-CooledMulti-Split VRF HP w/ Heat Recovery2",null,null," "]
[null,null,null,null,null,null,null,null,null,null,null,null,null,null,null,null,null,"Air-CooledMulti-Split VRF HP w/ Heat Recovery3",null,null," "]
[null,null,null,null,null,null,null,null,null,null,null,null,null,null,null,null,null,"Air-CooledMulti-Split VRF HP w/ Heat Recovery4",null,null," "]
[null,null,null,null,null,null,null,null,null,null,null,null,null,null,null,null,null,"Air-CooledMulti-Split VRF HP w/ Heat Recovery5",null,null," "]
[null,null,null,null,null,null,null,null,null,null,null,null,null,null,null,null,null,"Water-CooledMulti-Split VRF HP w/ Heat Recovery0",null,null," "]
[null,null,null,null,null,null,null,null,null,null,null,null,null,null,null,null,null,"Water-CooledMulti-Split VRF HP w/ Heat Recovery1",null,null," "]
[null,null,null,null,null,null,null,null,null,null,null,null,null,null,null,null,null,"Water-CooledMulti-Split VRF HP w/ Heat Recovery2",null,null," "]
[null,null,null,null,null,null,null,null,null,null,null,null,null,null,null,null,null,"Water-CooledMulti-Split VRF HP w/ Heat Recovery3",null,null," "]
[null,null,null,null,null,null,null,null,null,null,null,null,null,null,null,null,null,"Water-CooledMulti-Split VRF HP w/ Heat Recovery4",null,null," "]
[null,null,null,null,null,null,null,null,null,null,null,null,null,null,null,null,null,"Water-CooledMulti-Split VRF HP w/ Heat Recovery5",null,null," "]
[null,null,null,null,null,null,null,null,null,null,null,null,null,null,null,null,null,"Packaged Terminal HP (PTHP)",null,null," "]
[null,null,null,null,null,null,null,null,null,null,null,null,null,null,null,null,null,"Vertical Terminal HP (VTHP)",null,null," "]
[]
[null,null,null,null,null,null,null,null,null,null,null,null,null,null,null,null,null,"UnitaryHP_Input3[EquipmentType]","Input3[Title]","Input3[Description]"," "]
[null,null,null,null,null,null,null,null,null,null,null,null,null,null,null,null,null,"Air-CooledPackaged Heat Pump1","EER","Cooling Full-Load Efficiency, EER"," "]
[null,null,null,null,null,null,null,null,null,null,null,null,null,null,null,null,null,"Air-CooledPackaged Heat Pump2","EER","Cooling Full-Load Efficiency, EER"," "]
[null,null,null,null,null,null,null,null,null,null,null,null,null,null,null,null,null,"Air-CooledPackaged Heat Pump3","EER","Cooling Full-Load Efficiency, EER"," "]
[null,null,null,null,null,null,null,null,null,null,null,null,null,null,null,null,null,"Air-CooledPackaged Heat Pump4","EER","Cooling Full-Load Efficiency, EER"," "]
[null,null,null,null,null,null,null,null,null,null,null,null,null,null,null,null,null,"Air-CooledPackaged Heat Pump5","EER","Cooling Full-Load Efficiency, EER"," "]
[null,null,null,null,null,null,null,null,null,null,null,null,null,null,null,null,null,"Water-CooledPackaged Heat Pump1","EER","Cooling Full-Load Efficiency, EER"," "]
[null,null,null,null,null,null,null,null,null,null,null,null,null,null,null,null,null,"Water-CooledPackaged Heat Pump2","EER","Cooling Full-Load Efficiency, EER"," "]
[null,null,null,null,null,null,null,null,null,null,null,null,null,null,null,null,null,"Water-CooledPackaged Heat Pump3","EER","Cooling Full-Load Efficiency, EER"," "]
[null,null,null,null,null,null,null,null,null,null,null,null,null,null,null,null,null,"Water-CooledPackaged Heat Pump4","EER","Cooling Full-Load Efficiency, EER"," "]
[null,null,null,null,null,null,null,null,null,null,null,null,null,null,null,null,null,"Water-CooledPackaged Heat Pump5","EER","Cooling Full-Load Efficiency, EER"," "]
[null,null,null,null,null,null,null,null,null,null,null,null,null,null,null,null,null,"Air-CooledSplit Heat Pump0","EER","Cooling Full-Load Efficiency, EER"," "]
[null,null,null,null,null,null,null,null,null,null,null,null,null,null,null,null,null,"Air-CooledSplit Heat Pump1","EER","Cooling Full-Load Efficiency, EER"," "]
[null,null,null,null,null,null,null,null,null,null,null,null,null,null,null,null,null,"Air-CooledSplit Heat Pump2","EER","Cooling Full-Load Efficiency, EER"," "]
[null,null,null,null,null,null,null,null,null,null,null,null,null,null,null,null,null,"Air-CooledSplit Heat Pump3","EER","Cooling Full-Load Efficiency, EER"," "]
[null,null,null,null,null,null,null,null,null,null,null,null,null,null,null,null,null,"Air-CooledSplit Heat Pump4","EER","Cooling Full-Load Efficiency, EER"," "]
[null,null,null,null,null,null,null,null,null,null,null,null,null,null,null,null,null,"Air-CooledSplit Heat Pump5","EER","Cooling Full-Load Efficiency, EER"," "]
[null,null,null,null,null,null,null,null,null,null,null,null,null,null,null,null,null,"Water-CooledSplit Heat Pump1","EER","Cooling Full-Load Efficiency, EER"," "]
[null,null,null,null,null,null,null,null,null,null,null,null,null,null,null,null,null,"Water-CooledSplit Heat Pump2","EER","Cooling Full-Load Efficiency, EER"," "]
[null,null,null,null,null,null,null,null,null,null,null,null,null,null,null,null,null,"Water-CooledSplit Heat Pump3","EER","Cooling Full-Load Efficiency, EER"," "]
[null,null,null,null,null,null,null,null,null,null,null,null,null,null,null,null,null,"Water-CooledSplit Heat Pump4","EER","Cooling Full-Load Efficiency, EER"," "]
[null,null,null,null,null,null,null,null,null,null,null,null,null,null,null,null,null,"Water-CooledSplit Heat Pump5","EER","Cooling Full-Load Efficiency, EER"," "]
[null,null,null,null,null,null,null,null,null,null,null,null,null,null,null,null,null,"Air-CooledMulti-Split VRF HP0",null,null," "]
[null,null,null,null,null,null,null,null,null,null,null,null,null,null,null,null,null,"Air-CooledMulti-Split VRF HP1","EER","Cooling Full-Load Efficiency, EER"," "]
[null,null,null,null,null,null,null,null,null,null,null,null,null,null,null,null,null,"Air-CooledMulti-Split VRF HP2","EER","Cooling Full-Load Efficiency, EER"," "]
[null,null,null,null,null,null,null,null,null,null,null,null,null,null,null,null,null,"Air-CooledMulti-Split VRF HP3","EER","Cooling Full-Load Efficiency, EER"," "]
[null,null,null,null,null,null,null,null,null,null,null,null,null,null,null,null,null,"Air-CooledMulti-Split VRF HP4","EER","Cooling Full-Load Efficiency, EER"," "]
[null,null,null,null,null,null,null,null,null,null,null,null,null,null,null,null,null,"Air-CooledMulti-Split VRF HP5","EER","Cooling Full-Load Efficiency, EER"," "]
[null,null,null,null,null,null,null,null,null,null,null,null,null,null,null,null,null,"Water-CooledMulti-Split VRF HP0",null,null," "]
[null,null,null,null,null,null,null,null,null,null,null,null,null,null,null,null,null,"Water-CooledMulti-Split VRF HP1","EER","Cooling Full-Load Efficiency, EER"," "]
[null,null,null,null,null,null,null,null,null,null,null,null,null,null,null,null,null,"Water-CooledMulti-Split VRF HP2","EER","Cooling Full-Load Efficiency, EER"," "]
[null,null,null,null,null,null,null,null,null,null,null,null,null,null,null,null,null,"Water-CooledMulti-Split VRF HP3","EER","Cooling Full-Load Efficiency, EER"," "]
[null,null,null,null,null,null,null,null,null,null,null,null,null,null,null,null,null,"Water-CooledMulti-Split VRF HP4","EER","Cooling Full-Load Efficiency, EER"," "]
[null,null,null,null,null,null,null,null,null,null,null,null,null,null,null,null,null,"Water-CooledMulti-Split VRF HP5","EER","Cooling Full-Load Efficiency, EER"," "]
[null,null,null,null,null,null,null,null,null,null,null,null,null,null,null,null,null,"Air-CooledMulti-Split VRF HP w/ Heat Recovery0",null,null," "]
[null,null,null,null,null,null,null,null,null,null,null,null,null,null,null,null,null,"Air-CooledMulti-Split VRF HP w/ Heat Recovery1","EER","Cooling Full-Load Efficiency, EER"," "]
[null,null,null,null,null,null,null,null,null,null,null,null,null,null,null,null,null,"Air-CooledMulti-Split VRF HP w/ Heat Recovery2","EER","Cooling Full-Load Efficiency, EER"," "]
[null,null,null,null,null,null,null,null,null,null,null,null,null,null,null,null,null,"Air-CooledMulti-Split VRF HP w/ Heat Recovery3","EER","Cooling Full-Load Efficiency, EER"," "]
[null,null,null,null,null,null,null,null,null,null,null,null,null,null,null,null,null,"Air-CooledMulti-Split VRF HP w/ Heat Recovery4","EER","Cooling Full-Load Efficiency, EER"," "]
[null,null,null,null,null,null,null,null,null,null,null,null,null,null,null,null,null,"Air-CooledMulti-Split VRF HP w/ Heat Recovery5","EER","Cooling Full-Load Efficiency, EER"," "]
[null,null,null,null,null,null,null,null,null,null,null,null,null,null,null,null,null,"Water-CooledMulti-Split VRF HP w/ Heat Recovery0",null,null," "]
[null,null,null,null,null,null,null,null,null,null,null,null,null,null,null,null,null,"Water-CooledMulti-Split VRF HP w/ Heat Recovery1","EER","Cooling Full-Load Efficiency, EER"," "]
[null,null,null,null,null,null,null,null,null,null,null,null,null,null,null,null,null,"Water-CooledMulti-Split VRF HP w/ Heat Recovery2","EER","Cooling Full-Load Efficiency, EER"," "]
[null,null,null,null,null,null,null,null,null,null,null,null,null,null,null,null,null,"Water-CooledMulti-Split VRF HP w/ Heat Recovery3","EER","Cooling Full-Load Efficiency, EER"," "]
[null,null,null,null,null,null,null,null,null,null,null,null,null,null,null,null,null,"Water-CooledMulti-Split VRF HP w/ Heat Recovery4","EER","Cooling Full-Load Efficiency, EER"," "]
[null,null,null,null,null,null,null,null,null,null,null,null,null,null,null,null,null,"Water-CooledMulti-Split VRF HP w/ Heat Recovery5","EER","Cooling Full-Load Efficiency, EER"," "]
[null,null,null,null,null,null,null,null,null,null,null,null,null,null,null,null,null,"Packaged Terminal HP (PTHP)","EER","Cooling Full-Load Efficiency, EER"," "]
[null,null,null,null,null,null,null,null,null,null,null,null,null,null,null,null,null,"Vertical Terminal HP (VTHP)","EER","Cooling Full-Load Efficiency, EER"," "]
[]
[null,null,null,null,null,null,null,null,null,null,null,null,null,null,null,null,null,"UnitaryHP_Input4[EquipmentType]","Input4[Title]","Input4[Description]"]
[null,null,null,null,null,null,null,null,null,null,null,null,null,null,null,null,null,"Air-CooledPackaged Heat Pump1","EER2","Cooling Full-Load Efficiency, EER2\n\nIf SEER2, EER2, and/or HSPF2 ratings are unavailable from the AHRI database, please leave SEER2, EER2, and HSPF2 blank."," "]
[null,null,null,null,null,null,null,null,null,null,null,null,null,null,null,null,null,"Air-CooledPackaged Heat Pump2",null,null," "]
[null,null,null,null,null,null,null,null,null,null,null,null,null,null,null,null,null,"Air-CooledPackaged Heat Pump3",null,null," "]
[null,null,null,null,null,null,null,null,null,null,null,null,null,null,null,null,null,"Air-CooledPackaged Heat Pump4",null,null," "]
[null,null,null,null,null,null,null,null,null,null,null,null,null,null,null,null,null,"Air-CooledPackaged Heat Pump5",null,null," "]
[null,null,null,null,null,null,null,null,null,null,null,null,null,null,null,null,null,"Water-CooledPackaged Heat Pump1",null,null," "]
[null,null,null,null,null,null,null,null,null,null,null,null,null,null,null,null,null,"Water-CooledPackaged Heat Pump2",null,null," "]
[null,null,null,null,null,null,null,null,null,null,null,null,null,null,null,null,null,"Water-CooledPackaged Heat Pump3",null,null," "]
[null,null,null,null,null,null,null,null,null,null,null,null,null,null,null,null,null,"Water-CooledPackaged Heat Pump4",null,null," "]
[null,null,null,null,null,null,null,null,null,null,null,null,null,null,null,null,null,"Water-CooledPackaged Heat Pump5",null,null," "]
[null,null,null,null,null,null,null,null,null,null,null,null,null,null,null,null,null,"Air-CooledSplit Heat Pump0","EER2","Cooling Full-Load Efficiency, EER2\n\nIf SEER2, EER2, and/or HSPF2 ratings are unavailable from the AHRI database, please leave SEER2, EER2, and HSPF2 blank."," "]
[null,null,null,null,null,null,null,null,null,null,null,null,null,null,null,null,null,"Air-CooledSplit Heat Pump1","EER2","Cooling Full-Load Efficiency, EER2\n\nIf SEER2, EER2, and/or HSPF2 ratings are unavailable from the AHRI database, please leave SEER2, EER2, and HSPF2 blank."," "]
[null,null,null,null,null,null,null,null,null,null,null,null,null,null,null,null,null,"Air-CooledSplit Heat Pump2",null,null," "]
[null,null,null,null,null,null,null,null,null,null,null,null,null,null,null,null,null,"Air-CooledSplit Heat Pump3",null,null," "]
[null,null,null,null,null,null,null,null,null,null,null,null,null,null,null,null,null,"Air-CooledSplit Heat Pump4",null,null," "]
[null,null,null,null,null,null,null,null,null,null,null,null,null,null,null,null,null,"Air-CooledSplit Heat Pump5",null,null," "]
[null,null,null,null,null,null,null,null,null,null,null,null,null,null,null,null,null,"Water-CooledSplit Heat Pump1",null,null," "]
[null,null,null,null,null,null,null,null,null,null,null,null,null,null,null,null,null,"Water-CooledSplit Heat Pump2",null,null," "]
[null,null,null,null,null,null,null,null,null,null,null,null,null,null,null,null,null,"Water-CooledSplit Heat Pump3",null,null," "]
[null,null,null,null,null,null,null,null,null,null,null,null,null,null,null,null,null,"Water-CooledSplit Heat Pump4",null,null," "]
[null,null,null,null,null,null,null,null,null,null,null,null,null,null,null,null,null,"Water-CooledSplit Heat Pump5",null,null," "]
[null,null,null,null,null,null,null,null,null,null,null,null,null,null,null,null,null,"Air-CooledMulti-Split VRF HP0",null,null," "]
[null,null,null,null,null,null,null,null,null,null,null,null,null,null,null,null,null,"Air-CooledMulti-Split VRF HP1",null,null," "]
[null,null,null,null,null,null,null,null,null,null,null,null,null,null,null,null,null,"Air-CooledMulti-Split VRF HP2",null,null," "]
[null,null,null,null,null,null,null,null,null,null,null,null,null,null,null,null,null,"Air-CooledMulti-Split VRF HP3",null,null," "]
[null,null,null,null,null,null,null,null,null,null,null,null,null,null,null,null,null,"Air-CooledMulti-Split VRF HP4",null,null," "]
[null,null,null,null,null,null,null,null,null,null,null,null,null,null,null,null,null,"Air-CooledMulti-Split VRF HP5",null,null," "]
[null,null,null,null,null,null,null,null,null,null,null,null,null,null,null,null,null,"Water-CooledMulti-Split VRF HP0",null,null," "]
[null,null,null,null,null,null,null,null,null,null,null,null,null,null,null,null,null,"Water-CooledMulti-Split VRF HP1",null,null," "]
[null,null,null,null,null,null,null,null,null,null,null,null,null,null,null,null,null,"Water-CooledMulti-Split VRF HP2",null,null," "]
[null,null,null,null,null,null,null,null,null,null,null,null,null,null,null,null,null,"Water-CooledMulti-Split VRF HP3",null,null," "]
[null,null,null,null,null,null,null,null,null,null,null,null,null,null,null,null,null,"Water-CooledMulti-Split VRF HP4",null,null," "]
[null,null,null,null,null,null,null,null,null,null,null,null,null,null,null,null,null,"Water-CooledMulti-Split VRF HP5",null,null," "]
[null,null,null,null,null,null,null,null,null,null,null,null,null,null,null,null,null,"Air-CooledMulti-Split VRF HP w/ Heat Recovery0",null,null," "]
[null,null,null,null,null,null,null,null,null,null,null,null,null,null,null,null,null,"Air-CooledMulti-Split VRF HP w/ Heat Recovery1",null,null," "]
[null,null,null,null,null,null,null,null,null,null,null,null,null,null,null,null,null,"Air-CooledMulti-Split VRF HP w/ Heat Recovery2",null,null," "]
[null,null,null,null,null,null,null,null,null,null,null,null,null,null,null,null,null,"Air-CooledMulti-Split VRF HP w/ Heat Recovery3",null,null," "]
[null,null,null,null,null,null,null,null,null,null,null,null,null,null,null,null,null,"Air-CooledMulti-Split VRF HP w/ Heat Recovery4",null,null," "]
[null,null,null,null,null,null,null,null,null,null,null,null,null,null,null,null,null,"Air-CooledMulti-Split VRF HP w/ Heat Recovery5",null,null," "]
[null,null,null,null,null,null,null,null,null,null,null,null,null,null,null,null,null,"Water-CooledMulti-Split VRF HP w/ Heat Recovery0",null,null," "]
[null,null,null,null,null,null,null,null,null,null,null,null,null,null,null,null,null,"Water-CooledMulti-Split VRF HP w/ Heat Recovery1",null,null," "]
[null,null,null,null,null,null,null,null,null,null,null,null,null,null,null,null,null,"Water-CooledMulti-Split VRF HP w/ Heat Recovery2",null,null," "]
[null,null,null,null,null,null,null,null,null,null,null,null,null,null,null,null,null,"Water-CooledMulti-Split VRF HP w/ Heat Recovery3",null,null," "]
[null,null,null,null,null,null,null,null,null,null,null,null,null,null,null,null,null,"Water-CooledMulti-Split VRF HP w/ Heat Recovery4",null,null," "]
[null,null,null,null,null,null,null,null,null,null,null,null,null,null,null,null,null,"Water-CooledMulti-Split VRF HP w/ Heat Recovery5",null,null," "]
[null,null,null,null,null,null,null,null,null,null,null,null,null,null,null,null,null,"Packaged Terminal HP (PTHP)",null,null," "]
[null,null,null,null,null,null,null,null,null,null,null,null,null,null,null,null,null,"Vertical Terminal HP (VTHP)",null,null," "]
[]
[null,null,null,null,null,null,null,null,null,null,null,null,null,null,null,null,null,"UnitaryHP_Input5[EquipmentType]","Input5[Title]","Input5[Description]"]
[null,null,null,null,null,null,null,null,null,null,null,null,null,null,null,null,null,"Air-CooledPackaged Heat Pump1","HSPF","Heating Efficiency, HSPF"," "]
[null,null,null,null,null,null,null,null,null,null,null,null,null,null,null,null,null,"Air-CooledPackaged Heat Pump2","COP 1","Heating Efficiency, COP @ 43°F"," "]
[null,null,null,null,null,null,null,null,null,null,null,null,null,null,null,null,null,"Air-CooledPackaged Heat Pump3","COP 1","Heating Efficiency, COP @ 43°F"," "]
[null,null,null,null,null,null,null,null,null,null,null,null,null,null,null,null,null,"Air-CooledPackaged Heat Pump4","COP 1","Heating Efficiency, COP @ 43°F"," "]
[null,null,null,null,null,null,null,null,null,null,null,null,null,null,null,null,null,"Air-CooledPackaged Heat Pump5","COP 1","Heating Efficiency, COP @ 43°F"," "]
[null,null,null,null,null,null,null,null,null,null,null,null,null,null,null,null,null,"Water-CooledPackaged Heat Pump1","COP","Heating Efficiency, COP @ 43°F"," "]
[null,null,null,null,null,null,null,null,null,null,null,null,null,null,null,null,null,"Water-CooledPackaged Heat Pump2","COP","Heating Efficiency, COP @ 43°F"," "]
[null,null,null,null,null,null,null,null,null,null,null,null,null,null,null,null,null,"Water-CooledPackaged Heat Pump3","COP","Heating Efficiency, COP @ 43°F"," "]
[null,null,null,null,null,null,null,null,null,null,null,null,null,null,null,null,null,"Water-CooledPackaged Heat Pump4","COP","Heating Efficiency, COP @ 43°F"," "]
[null,null,null,null,null,null,null,null,null,null,null,null,null,null,null,null,null,"Water-CooledPackaged Heat Pump5","COP","Heating Efficiency, COP @ 43°F"," "]
[null,null,null,null,null,null,null,null,null,null,null,null,null,null,null,null,null,"Air-CooledSplit Heat Pump0","HSPF","Heating Efficiency, HSPF"," "]
[null,null,null,null,null,null,null,null,null,null,null,null,null,null,null,null,null,"Air-CooledSplit Heat Pump1","HSPF","Heating Efficiency, HSPF"," "]
[null,null,null,null,null,null,null,null,null,null,null,null,null,null,null,null,null,"Air-CooledSplit Heat Pump2","COP 1","Heating Efficiency, COP @ 43°F"," "]
[null,null,null,null,null,null,null,null,null,null,null,null,null,null,null,null,null,"Air-CooledSplit Heat Pump3","COP 1","Heating Efficiency, COP @ 43°F"," "]
[null,null,null,null,null,null,null,null,null,null,null,null,null,null,null,null,null,"Air-CooledSplit Heat Pump4","COP 1","Heating Efficiency, COP @ 43°F"," "]
[null,null,null,null,null,null,null,null,null,null,null,null,null,null,null,null,null,"Air-CooledSplit Heat Pump5","COP 1","Heating Efficiency, COP @ 43°F"," "]
[null,null,null,null,null,null,null,null,null,null,null,null,null,null,null,null,null,"Water-CooledSplit Heat Pump1","COP","Heating Efficiency, COP @ 43°F"," "]
[null,null,null,null,null,null,null,null,null,null,null,null,null,null,null,null,null,"Water-CooledSplit Heat Pump2","COP","Heating Efficiency, COP @ 43°F"," "]
[null,null,null,null,null,null,null,null,null,null,null,null,null,null,null,null,null,"Water-CooledSplit Heat Pump3","COP","Heating Efficiency, COP @ 43°F"," "]
[null,null,null,null,null,null,null,null,null,null,null,null,null,null,null,null,null,"Water-CooledSplit Heat Pump4","COP","Heating Efficiency, COP @ 43°F"," "]
[null,null,null,null,null,null,null,null,null,null,null,null,null,null,null,null,null,"Water-CooledSplit Heat Pump5","COP","Heating Efficiency, COP @ 43°F"," "]
[null,null,null,null,null,null,null,null,null,null,null,null,null,null,null,null,null,"Air-CooledMulti-Split VRF HP0",null,null," "]
[null,null,null,null,null,null,null,null,null,null,null,null,null,null,null,null,null,"Air-CooledMulti-Split VRF HP1","HSPF","Heating Efficiency, HSPF"," "]
[null,null,null,null,null,null,null,null,null,null,null,null,null,null,null,null,null,"Air-CooledMulti-Split VRF HP2","COP 1","Heating Efficiency, COP @ 43°F"," "]
[null,null,null,null,null,null,null,null,null,null,null,null,null,null,null,null,null,"Air-CooledMulti-Split VRF HP3","COP 1","Heating Efficiency, COP @ 43°F"," "]
[null,null,null,null,null,null,null,null,null,null,null,null,null,null,null,null,null,"Air-CooledMulti-Split VRF HP4","COP 1","Heating Efficiency, COP @ 43°F"," "]
[null,null,null,null,null,null,null,null,null,null,null,null,null,null,null,null,null,"Air-CooledMulti-Split VRF HP5","COP 1","Heating Efficiency, COP @ 43°F"," "]
[null,null,null,null,null,null,null,null,null,null,null,null,null,null,null,null,null,"Water-CooledMulti-Split VRF HP0",null,null," "]
[null,null,null,null,null,null,null,null,null,null,null,null,null,null,null,null,null,"Water-CooledMulti-Split VRF HP1","COP","Heating Efficiency, COP @ 43°F"," "]
[null,null,null,null,null,null,null,null,null,null,null,null,null,null,null,null,null,"Water-CooledMulti-Split VRF HP2","COP","Heating Efficiency, COP @ 43°F"," "]
[null,null,null,null,null,null,null,null,null,null,null,null,null,null,null,null,null,"Water-CooledMulti-Split VRF HP3","COP","Heating Efficiency, COP @ 43°F"," "]
[null,null,null,null,null,null,null,null,null,null,null,null,null,null,null,null,null,"Water-CooledMulti-Split VRF HP4","COP","Heating Efficiency, COP @ 43°F"," "]
[null,null,null,null,null,null,null,null,null,null,null,null,null,null,null,null,null,"Water-CooledMulti-Split VRF HP5","COP","Heating Efficiency, COP @ 43°F"," "]
[null,null,null,null,null,null,null,null,null,null,null,null,null,null,null,null,null,"Air-CooledMulti-Split VRF HP w/ Heat Recovery0",null,null," "]
[null,null,null,null,null,null,null,null,null,null,null,null,null,null,null,null,null,"Air-CooledMulti-Split VRF HP w/ Heat Recovery1","HSPF","Heating Efficiency, HSPF"," "]
[null,null,null,null,null,null,null,null,null,null,null,null,null,null,null,null,null,"Air-CooledMulti-Split VRF HP w/ Heat Recovery2","COP 1","Heating Efficiency, COP @ 43°F"," "]
[null,null,null,null,null,null,null,null,null,null,null,null,null,null,null,null,null,"Air-CooledMulti-Split VRF HP w/ Heat Recovery3","COP 1","Heating Efficiency, COP @ 43°F"," "]
[null,null,null,null,null,null,null,null,null,null,null,null,null,null,null,null,null,"Air-CooledMulti-Split VRF HP w/ Heat Recovery4","COP 1","Heating Efficiency, COP @ 43°F"," "]
[null,null,null,null,null,null,null,null,null,null,null,null,null,null,null,null,null,"Air-CooledMulti-Split VRF HP w/ Heat Recovery5","COP 1","Heating Efficiency, COP @ 43°F"," "]
[null,null,null,null,null,null,null,null,null,null,null,null,null,null,null,null,null,"Water-CooledMulti-Split VRF HP w/ Heat Recovery0",null,null," "]
[null,null,null,null,null,null,null,null,null,null,null,null,null,null,null,null,null,"Water-CooledMulti-Split VRF HP w/ Heat Recovery1","COP","Heating Efficiency, COP @ 43°F"," "]
[null,null,null,null,null,null,null,null,null,null,null,null,null,null,null,null,null,"Water-CooledMulti-Split VRF HP w/ Heat Recovery2","COP","Heating Efficiency, COP @ 43°F"," "]
[null,null,null,null,null,null,null,null,null,null,null,null,null,null,null,null,null,"Water-CooledMulti-Split VRF HP w/ Heat Recovery3","COP","Heating Efficiency, COP @ 43°F"," "]
[null,null,null,null,null,null,null,null,null,null,null,null,null,null,null,null,null,"Water-CooledMulti-Split VRF HP w/ Heat Recovery4","COP","Heating Efficiency, COP @ 43°F"," "]
[null,null,null,null,null,null,null,null,null,null,null,null,null,null,null,null,null,"Water-CooledMulti-Split VRF HP w/ Heat Recovery5","COP","Heating Efficiency, COP @ 43°F"," "]
[null,null,null,null,null,null,null,null,null,null,null,null,null,null,null,null,null,"Packaged Terminal HP (PTHP)","COP","Heating Efficiency, COP @ 43°F"," "]
[null,null,null,null,null,null,null,null,null,null,null,null,null,null,null,null,null,"Vertical Terminal HP (VTHP)","COP","Heating Efficiency, COP @ 43°F"," "]
[]
[null,null,null,null,null,null,null,null,null,null,null,null,null,null,null,null,null,"UnitaryHP_Input6[EquipmentType]","Input6[Title]","Input6[Description]"]
[null,null,null,null,null,null,null,null,null,null,null,null,null,null,null,null,null,"Air-CooledPackaged Heat Pump1","HSPF2","Heating Efficiency, HSPF2"," "]
[null,null,null,null,null,null,null,null,null,null,null,null,null,null,null,null,null,"Air-CooledPackaged Heat Pump2",null,null," "]
[null,null,null,null,null,null,null,null,null,null,null,null,null,null,null,null,null,"Air-CooledPackaged Heat Pump3",null,null," "]
[null,null,null,null,null,null,null,null,null,null,null,null,null,null,null,null,null,"Air-CooledPackaged Heat Pump4",null,null," "]
[null,null,null,null,null,null,null,null,null,null,null,null,null,null,null,null,null,"Air-CooledPackaged Heat Pump5",null,null," "]
[null,null,null,null,null,null,null,null,null,null,null,null,null,null,null,null,null,"Water-CooledPackaged Heat Pump1",null,null," "]
[null,null,null,null,null,null,null,null,null,null,null,null,null,null,null,null,null,"Water-CooledPackaged Heat Pump2",null,null," "]
[null,null,null,null,null,null,null,null,null,null,null,null,null,null,null,null,null,"Water-CooledPackaged Heat Pump3",null,null," "]
[null,null,null,null,null,null,null,null,null,null,null,null,null,null,null,null,null,"Water-CooledPackaged Heat Pump4",null,null," "]
[null,null,null,null,null,null,null,null,null,null,null,null,null,null,null,null,null,"Water-CooledPackaged Heat Pump5",null,null," "]
[null,null,null,null,null,null,null,null,null,null,null,null,null,null,null,null,null,"Air-CooledSplit Heat Pump0","HSPF2","Heating Efficiency, HSPF2"," "]
[null,null,null,null,null,null,null,null,null,null,null,null,null,null,null,null,null,"Air-CooledSplit Heat Pump1","HSPF2","Heating Efficiency, HSPF2"," "]
[null,null,null,null,null,null,null,null,null,null,null,null,null,null,null,null,null,"Air-CooledSplit Heat Pump2",null,null," "]
[null,null,null,null,null,null,null,null,null,null,null,null,null,null,null,null,null,"Air-CooledSplit Heat Pump3",null,null," "]
[null,null,null,null,null,null,null,null,null,null,null,null,null,null,null,null,null,"Air-CooledSplit Heat Pump4",null,null," "]
[null,null,null,null,null,null,null,null,null,null,null,null,null,null,null,null,null,"Air-CooledSplit Heat Pump5",null,null," "]
[null,null,null,null,null,null,null,null,null,null,null,null,null,null,null,null,null,"Water-CooledSplit Heat Pump1",null,null," "]
[null,null,null,null,null,null,null,null,null,null,null,null,null,null,null,null,null,"Water-CooledSplit Heat Pump2",null,null," "]
[null,null,null,null,null,null,null,null,null,null,null,null,null,null,null,null,null,"Water-CooledSplit Heat Pump3",null,null," "]
[null,null,null,null,null,null,null,null,null,null,null,null,null,null,null,null,null,"Water-CooledSplit Heat Pump4",null,null," "]
[null,null,null,null,null,null,null,null,null,null,null,null,null,null,null,null,null,"Water-CooledSplit Heat Pump5",null,null," "]
[null,null,null,null,null,null,null,null,null,null,null,null,null,null,null,null,null,"Air-CooledMulti-Split VRF HP0",null,null," "]
[null,null,null,null,null,null,null,null,null,null,null,null,null,null,null,null,null,"Air-CooledMulti-Split VRF HP1",null,null," "]
[null,null,null,null,null,null,null,null,null,null,null,null,null,null,null,null,null,"Air-CooledMulti-Split VRF HP2",null,null," "]
[null,null,null,null,null,null,null,null,null,null,null,null,null,null,null,null,null,"Air-CooledMulti-Split VRF HP3",null,null," "]
[null,null,null,null,null,null,null,null,null,null,null,null,null,null,null,null,null,"Air-CooledMulti-Split VRF HP4",null,null," "]
[null,null,null,null,null,null,null,null,null,null,null,null,null,null,null,null,null,"Air-CooledMulti-Split VRF HP5",null,null," "]
[null,null,null,null,null,null,null,null,null,null,null,null,null,null,null,null,null,"Water-CooledMulti-Split VRF HP0",null,null," "]
[null,null,null,null,null,null,null,null,null,null,null,null,null,null,null,null,null,"Water-CooledMulti-Split VRF HP1",null,null," "]
[null,null,null,null,null,null,null,null,null,null,null,null,null,null,null,null,null,"Water-CooledMulti-Split VRF HP2",null,null," "]
[null,null,null,null,null,null,null,null,null,null,null,null,null,null,null,null,null,"Water-CooledMulti-Split VRF HP3",null,null," "]
[null,null,null,null,null,null,null,null,null,null,null,null,null,null,null,null,null,"Water-CooledMulti-Split VRF HP4",null,null," "]
[null,null,null,null,null,null,null,null,null,null,null,null,null,null,null,null,null,"Water-CooledMulti-Split VRF HP5",null,null," "]
[null,null,null,null,null,null,null,null,null,null,null,null,null,null,null,null,null,"Air-CooledMulti-Split VRF HP w/ Heat Recovery0",null,null," "]
[null,null,null,null,null,null,null,null,null,null,null,null,null,null,null,null,null,"Air-CooledMulti-Split VRF HP w/ Heat Recovery1",null,null," "]
[null,null,null,null,null,null,null,null,null,null,null,null,null,null,null,null,null,"Air-CooledMulti-Split VRF HP w/ Heat Recovery2",null,null," "]
[null,null,null,null,null,null,null,null,null,null,null,null,null,null,null,null,null,"Air-CooledMulti-Split VRF HP w/ Heat Recovery3",null,null," "]
[null,null,null,null,null,null,null,null,null,null,null,null,null,null,null,null,null,"Air-CooledMulti-Split VRF HP w/ Heat Recovery4",null,null," "]
[null,null,null,null,null,null,null,null,null,null,null,null,null,null,null,null,null,"Air-CooledMulti-Split VRF HP w/ Heat Recovery5",null,null," "]
[null,null,null,null,null,null,null,null,null,null,null,null,null,null,null,null,null,"Water-CooledMulti-Split VRF HP w/ Heat Recovery0",null,null," "]
[null,null,null,null,null,null,null,null,null,null,null,null,null,null,null,null,null,"Water-CooledMulti-Split VRF HP w/ Heat Recovery1",null,null," "]
[null,null,null,null,null,null,null,null,null,null,null,null,null,null,null,null,null,"Water-CooledMulti-Split VRF HP w/ Heat Recovery2",null,null," "]
[null,null,null,null,null,null,null,null,null,null,null,null,null,null,null,null,null,"Water-CooledMulti-Split VRF HP w/ Heat Recovery3",null,null," "]
[null,null,null,null,null,null,null,null,null,null,null,null,null,null,null,null,null,"Water-CooledMulti-Split VRF HP w/ Heat Recovery4",null,null," "]
[null,null,null,null,null,null,null,null,null,null,null,null,null,null,null,null,null,"Water-CooledMulti-Split VRF HP w/ Heat Recovery5",null,null," "]
[null,null,null,null,null,null,null,null,null,null,null,null,null,null,null,null,null,"Packaged Terminal HP (PTHP)",null,null," "]
[null,null,null,null,null,null,null,null,null,null,null,null,null,null,null,null,null,"Vertical Terminal HP (VTHP)",null,null," "]
[]
[null,null,null,null,null,null,null,null,null,null,null,null,null,null,null,null,null,"Chiller_Input3[EquipmentType]","Input3[Title]","Input3[Description]"," "]
[null,null,null,null,null,null,null,null,null,null,null,null,null,null,null,null,null,"Air-CooledCentrifugal",null,null," "]
[null,null,null,null,null,null,null,null,null,null,null,null,null,null,null,null,null,"Air-CooledReciprocating",null,null," "]
[null,null,null,null,null,null,null,null,null,null,null,null,null,null,null,null,null,"Air-CooledRotary",null,null," "]
[null,null,null,null,null,null,null,null,null,null,null,null,null,null,null,null,null,"Air-CooledScrew",null,null," "]
[null,null,null,null,null,null,null,null,null,null,null,null,null,null,null,null,null,"Air-CooledScroll",null,null," "]
[null,null,null,null,null,null,null,null,null,null,null,null,null,null,null,null,null,"Water-CooledCentrifugal","LvgCondFlTemp (degF)","Leaving Fluid Temperature for Condenser (degF), enter value only for Non-Standard AHRI 550/590 conditions"," "]
[null,null,null,null,null,null,null,null,null,null,null,null,null,null,null,null,null,"Water-CooledReciprocating",null,null," "]
[null,null,null,null,null,null,null,null,null,null,null,null,null,null,null,null,null,"Water-CooledRotary",null,null," "]
[null,null,null,null,null,null,null,null,null,null,null,null,null,null,null,null,null,"Water-CooledScrew",null,null," "]
[null,null,null,null,null,null,null,null,null,null,null,null,null,null,null,null,null,"Water-CooledScroll",null,null," "]
[]
[null,null,null,null,null,null,null,null,null,null,null,null,null,null,null,null,null,"Chiller_Input4[EquipmentType]","Input4[Title]","Input4[Description]"," "]
[null,null,null,null,null,null,null,null,null,null,null,null,null,null,null,null,null,"Air-CooledCentrifugal",null,null," "]
[null,null,null,null,null,null,null,null,null,null,null,null,null,null,null,null,null,"Air-CooledReciprocating",null,null," "]
[null,null,null,null,null,null,null,null,null,null,null,null,null,null,null,null,null,"Air-CooledRotary",null,null," "]
[null,null,null,null,null,null,null,null,null,null,null,null,null,null,null,null,null,"Air-CooledScrew",null,null," "]
[null,null,null,null,null,null,null,null,null,null,null,null,null,null,null,null,null,"Air-CooledScroll",null,null," "]
[null,null,null,null,null,null,null,null,null,null,null,null,null,null,null,null,null,"Water-CooledCentrifugal","LvgEvapFlTemp (degF)","Leaving Fluid Temperature for Evaporator (degF), enter value only for Non-Standard AHRI 550/590 conditions"," "]
[null,null,null,null,null,null,null,null,null,null,null,null,null,null,null,null,null,"Water-CooledReciprocating",null,null," "]
[null,null,null,null,null,null,null,null,null,null,null,null,null,null,null,null,null,"Water-CooledRotary",null,null," "]
[null,null,null,null,null,null,null,null,null,null,null,null,null,null,null,null,null,"Water-CooledScrew",null,null," "]
[null,null,null,null,null,null,null,null,null,null,null,null,null,null,null,null,null,"Water-CooledScroll",null,null," "]
[]
[null,null,null,null,null,null,null,null,null,null,null,null,null,null,null,null,null,"OAEcon_List2[EquipmentType]","List2[Title]","List2[Description]","List2[Inputs,CSV]"]
[null,null,null,null,null,null,null,null,null,null,null,null,null,null,null,null,null,{"$f":"I31","v":"Air-Conditioner"},"Heat Rejection","Cooling-Mode Heat Rejection","Air-Cooled,Water-Cooled,Evaporatively-Cooled"," "]
[null,null,null,null,null,null,null,null,null,null,null,null,null,null,null,null,null,{"$f":"I32","v":"Heat Pump"},"Heat Rejection","Cooling-Mode Heat Rejection","Air-Cooled,Water-Cooled"," "]
[null,null,null,null,null,null,null,null,null,null,null,null,null,null,null,null,null,{"$f":"I33","v":"Water-Source Heat Pump"},null,null,null," "]
[null,null,null,null,null,null,null,null,null,null,null,null,null,null,null,null,null,{"$f":"I34","v":"Computer Room Air-Conditioner"},"Heat Rejection","Cooling-Mode Heat Rejection","Air-Cooled,Water-Cooled,Glycol-Cooled"," "]
[null,null,null,null,null,null,null,null,null,null,null,null,null,null,null,null,null,{"$f":"I35","v":"Chiller"},"Heat Rejection","Cooling-Mode Heat Rejection","Air-Cooled,Water-Cooled"," "]
[]
[null,null,null,null,null,null,null,null,null,null,null,null,null,null,null,null,null,"OAEcon_List3[EquipmentType]","List3[Title]","List3[Description]","List3[Inputs,CSV]"]
[null,null,null,null,null,null,null,null,null,null,null,null,null,null,null,null,null,{"$f":"I31","v":"Air-Conditioner"},"Heat Type","Heating-Mode Heat Type","None,Electric Resistance,Gas,Other"," "]
[null,null,null,null,null,null,null,null,null,null,null,null,null,null,null,null,null,{"$f":"I32","v":"Heat Pump"},"Heat Type","Heating-Mode Heat Type","Electric Resistance,Gas,Heat Pump,Other"," "]
[null,null,null,null,null,null,null,null,null,null,null,null,null,null,null,null,null,{"$f":"I33","v":"Water-Source Heat Pump"},"Heat Type","Heating-Mode Heat Type","Electric Resistance,Gas,Heat Pump,Other"," "]
[null,null,null,null,null,null,null,null,null,null,null,null,null,null,null,null,null,{"$f":"I34","v":"Computer Room Air-Conditioner"},null,null,null," "]
[null,null,null,null,null,null,null,null,null,null,null,null,null,null,null,null,null,{"$f":"I35","v":"Chiller"},"VFD?","Does this chiller have a VFD?","Yes,No"," "]
[]
[null,null,null,null,null,null,null,null,null,null,null,null,null,null,null,null,null,"OAEcon_Size[EquipmentType]","Size[Description]","Size[Description]"," "]
[null,null,null,null,null,null,null,null,null,null,null,null,null,null,null,null,null,{"$f":"I31","v":"Air-Conditioner"},{"$f":"IF(ISNUMBER(SEARCH(\"Retro\",Project_Type,1)),\"Tons\",\"BTUH\")","v":"Tons"},{"$f":"IF(ISNUMBER(SEARCH(\"Retro\",Project_Type,1)),\"Nominal Size (Tons)\",\"AHRI Size (BTU/H)\")","v":"Nominal Size (Tons)"}," "]
[null,null,null,null,null,null,null,null,null,null,null,null,null,null,null,null,null,{"$f":"I32","v":"Heat Pump"},{"$f":"IF(ISNUMBER(SEARCH(\"Retro\",Project_Type,1)),\"Tons\",\"BTUH\")","v":"Tons"},{"$f":"IF(ISNUMBER(SEARCH(\"Retro\",Project_Type,1)),\"Nominal Size (Tons)\",\"AHRI Size (BTU/H)\")","v":"Nominal Size (Tons)"}," "]
[null,null,null,null,null,null,null,null,null,null,null,null,null,null,null,null,null,{"$f":"I33","v":"Water-Source Heat Pump"},{"$f":"IF(ISNUMBER(SEARCH(\"Retro\",Project_Type,1)),\"Tons\",\"BTUH\")","v":"Tons"},{"$f":"IF(ISNUMBER(SEARCH(\"Retro\",Project_Type,1)),\"Nominal Size (Tons)\",\"AHRI Size (BTU/H)\")","v":"Nominal Size (Tons)"}," "]
[null,null,null,null,null,null,null,null,null,null,null,null,null,null,null,null,null,{"$f":"I34","v":"Computer Room Air-Conditioner"},"BTUH","Sensible Size (BTU/H)"," "]
[null,null,null,null,null,null,null,null,null,null,null,null,null,null,null,null,null,{"$f":"I35","v":"Chiller"},"Tons","AHRI Size (Tons)"," "]
[]
[null,null,null,null,null,null,null,null,null,null,null,null,null,null,null,null,null,"OAEcon_Input1[EquipmentType]","Input1[Title]","Input1[Description]"," "]
[null,null,null,null,null,null,null,null,null,null,null,null,null,null,null,null,null,"Air-CooledAir-Conditioner0",null,null," "]
[null,null,null,null,null,null,null,null,null,null,null,null,null,null,null,null,null,"Air-CooledAir-Conditioner1","SEER","Cooling Seasonal Efficiency, SEER"," "]
[null,null,null,null,null,null,null,null,null,null,null,null,null,null,null,null,null,"Air-CooledAir-Conditioner2","IEER","Cooling Seasonal Efficiency, IEER"," "]
[null,null,null,null,null,null,null,null,null,null,null,null,null,null,null,null,null,"Air-CooledAir-Conditioner3","IEER","Cooling Seasonal Efficiency, IEER"," "]
[null,null,null,null,null,null,null,null,null,null,null,null,null,null,null,null,null,"Air-CooledAir-Conditioner4","IEER","Cooling Seasonal Efficiency, IEER"," "]
[null,null,null,null,null,null,null,null,null,null,null,null,null,null,null,null,null,"Air-CooledAir-Conditioner5","IEER","Cooling Seasonal Efficiency, IEER"," "]
[null,null,null,null,null,null,null,null,null,null,null,null,null,null,null,null,null,"Water-CooledAir-Conditioner0",null,null," "]
[null,null,null,null,null,null,null,null,null,null,null,null,null,null,null,null,null,"Water-CooledAir-Conditioner1","SEER","Cooling Seasonal Efficiency, SEER"," "]
[null,null,null,null,null,null,null,null,null,null,null,null,null,null,null,null,null,"Water-CooledAir-Conditioner2","IEER","Cooling Seasonal Efficiency, IEER"," "]
[null,null,null,null,null,null,null,null,null,null,null,null,null,null,null,null,null,"Water-CooledAir-Conditioner3","IEER","Cooling Seasonal Efficiency, IEER"," "]
[null,null,null,null,null,null,null,null,null,null,null,null,null,null,null,null,null,"Water-CooledAir-Conditioner4","IEER","Cooling Seasonal Efficiency, IEER"," "]
[null,null,null,null,null,null,null,null,null,null,null,null,null,null,null,null,null,"Water-CooledAir-Conditioner5","IEER","Cooling Seasonal Efficiency, IEER"," "]
[null,null,null,null,null,null,null,null,null,null,null,null,null,null,null,null,null,"Evaporatively-CooledAir-Conditioner0",null,null," "]
[null,null,null,null,null,null,null,null,null,null,null,null,null,null,null,null,null,"Evaporatively-CooledAir-Conditioner1",null,null," "]
[null,null,null,null,null,null,null,null,null,null,null,null,null,null,null,null,null,"Evaporatively-CooledAir-Conditioner2","IEER","Cooling Seasonal Efficiency, IEER"," "]
[null,null,null,null,null,null,null,null,null,null,null,null,null,null,null,null,null,"Evaporatively-CooledAir-Conditioner3","IEER","Cooling Seasonal Efficiency, IEER"," "]
[null,null,null,null,null,null,null,null,null,null,null,null,null,null,null,null,null,"Evaporatively-CooledAir-Conditioner4","IEER","Cooling Seasonal Efficiency, IEER"," "]
[null,null,null,null,null,null,null,null,null,null,null,null,null,null,null,null,null,"Evaporatively-CooledAir-Conditioner5","IEER","Cooling Seasonal Efficiency, IEER"," "]
[null,null,null,null,null,null,null,null,null,null,null,null,null,null,null,null,null,"Air-CooledHeat Pump0",null,null," "]
[null,null,null,null,null,null,null,null,null,null,null,null,null,null,null,null,null,"Air-CooledHeat Pump1","SEER","Cooling Seasonal Efficiency, SEER"," "]
[null,null,null,null,null,null,null,null,null,null,null,null,null,null,null,null,null,"Air-CooledHeat Pump2","IEER","Cooling Seasonal Efficiency, IEER"," "]
[null,null,null,null,null,null,null,null,null,null,null,null,null,null,null,null,null,"Air-CooledHeat Pump3","IEER","Cooling Seasonal Efficiency, IEER"," "]
[null,null,null,null,null,null,null,null,null,null,null,null,null,null,null,null,null,"Air-CooledHeat Pump4","IEER","Cooling Seasonal Efficiency, IEER"," "]
[null,null,null,null,null,null,null,null,null,null,null,null,null,null,null,null,null,"Air-CooledHeat Pump5","IEER","Cooling Seasonal Efficiency, IEER"," "]
[null,null,null,null,null,null,null,null,null,null,null,null,null,null,null,null,null,"Water-CooledHeat Pump0",null,null," "]
[null,null,null,null,null,null,null,null,null,null,null,null,null,null,null,null,null,"Water-CooledHeat Pump1","EER","Energy Efficiency Rating (EER)"," "]
[null,null,null,null,null,null,null,null,null,null,null,null,null,null,null,null,null,"Water-CooledHeat Pump2","IEER","Cooling Seasonal Efficiency, IEER"," "]
[null,null,null,null,null,null,null,null,null,null,null,null,null,null,null,null,null,"Water-CooledHeat Pump3","IEER","Cooling Seasonal Efficiency, IEER"," "]
[null,null,null,null,null,null,null,null,null,null,null,null,null,null,null,null,null,"Water-CooledHeat Pump4","IEER","Cooling Seasonal Efficiency, IEER"," "]
[null,null,null,null,null,null,null,null,null,null,null,null,null,null,null,null,null,"Water-CooledHeat Pump5","IEER","Cooling Seasonal Efficiency, IEER"," "]
[null,null,null,null,null,null,null,null,null,null,null,null,null,null,null,null,null,"Water-Source Heat Pump0",null,null," "]
[null,null,null,null,null,null,null,null,null,null,null,null,null,null,null,null,null,"Water-Source Heat Pump1","EER","Energy Efficiency Rating (EER)"," "]
[null,null,null,null,null,null,null,null,null,null,null,null,null,null,null,null,null,"Water-Source Heat Pump2","IEER","Cooling Seasonal Efficiency, IEER"," "]
[null,null,null,null,null,null,null,null,null,null,null,null,null,null,null,null,null,"Water-Source Heat Pump3","IEER","Cooling Seasonal Efficiency, IEER"," "]
[null,null,null,null,null,null,null,null,null,null,null,null,null,null,null,null,null,"Water-Source Heat Pump4","IEER","Cooling Seasonal Efficiency, IEER"," "]
[null,null,null,null,null,null,null,null,null,null,null,null,null,null,null,null,null,"Water-Source Heat Pump5","IEER","Cooling Seasonal Efficiency, IEER"," "]
[null,null,null,null,null,null,null,null,null,null,null,null,null,null,null,null,null,"Air-CooledComputer Room Air-Conditioner0",null,null," "]
[null,null,null,null,null,null,null,null,null,null,null,null,null,null,null,null,null,"Air-CooledComputer Room Air-Conditioner1",null,null," "]
[null,null,null,null,null,null,null,null,null,null,null,null,null,null,null,null,null,"Air-CooledComputer Room Air-Conditioner2",null,null," "]
[null,null,null,null,null,null,null,null,null,null,null,null,null,null,null,null,null,"Air-CooledComputer Room Air-Conditioner3","SCOP","Sensible Coefficient of Performance, SCOP"," "]
[null,null,null,null,null,null,null,null,null,null,null,null,null,null,null,null,null,"Air-CooledComputer Room Air-Conditioner4","SCOP","Sensible Coefficient of Performance, SCOP"," "]
[null,null,null,null,null,null,null,null,null,null,null,null,null,null,null,null,null,"Water-CooledComputer Room Air-Conditioner0",null,null," "]
[null,null,null,null,null,null,null,null,null,null,null,null,null,null,null,null,null,"Water-CooledComputer Room Air-Conditioner1",null,null," "]
[null,null,null,null,null,null,null,null,null,null,null,null,null,null,null,null,null,"Water-CooledComputer Room Air-Conditioner2",null,null," "]
[null,null,null,null,null,null,null,null,null,null,null,null,null,null,null,null,null,"Water-CooledComputer Room Air-Conditioner3","SCOP","Sensible Coefficient of Performance, SCOP"," "]
[null,null,null,null,null,null,null,null,null,null,null,null,null,null,null,null,null,"Water-CooledComputer Room Air-Conditioner4","SCOP","Sensible Coefficient of Performance, SCOP"," "]
[null,null,null,null,null,null,null,null,null,null,null,null,null,null,null,null,null,"Glycol-CooledComputer Room Air-Conditioner0",null,null," "]
[null,null,null,null,null,null,null,null,null,null,null,null,null,null,null,null,null,"Glycol-CooledComputer Room Air-Conditioner1",null,null," "]
[null,null,null,null,null,null,null,null,null,null,null,null,null,null,null,null,null,"Glycol-CooledComputer Room Air-Conditioner2",null,null," "]
[null,null,null,null,null,null,null,null,null,null,null,null,null,null,null,null,null,"Glycol-CooledComputer Room Air-Conditioner3","SCOP","Sensible Coefficient of Performance, SCOP"," "]
[null,null,null,null,null,null,null,null,null,null,null,null,null,null,null,null,null,"Glycol-CooledComputer Room Air-Conditioner4","SCOP","Sensible Coefficient of Performance, SCOP"," "]
[null,null,null,null,null,null,null,null,null,null,null,null,null,null,null,null,null,"Air-CooledChiller1","IPLV","Part-Load Efficiency, IPLV"," "]
[null,null,null,null,null,null,null,null,null,null,null,null,null,null,null,null,null,"Air-CooledChiller2","IPLV","Part-Load Efficiency, IPLV"," "]
[null,null,null,null,null,null,null,null,null,null,null,null,null,null,null,null,null,"Air-CooledChiller3","IPLV","Part-Load Efficiency, IPLV"," "]
[null,null,null,null,null,null,null,null,null,null,null,null,null,null,null,null,null,"Air-CooledChiller4","IPLV","Part-Load Efficiency, IPLV"," "]
[null,null,null,null,null,null,null,null,null,null,null,null,null,null,null,null,null,"Air-CooledChiller5","IPLV","Part-Load Efficiency, IPLV"," "]
[null,null,null,null,null,null,null,null,null,null,null,null,null,null,null,null,null,"Water-CooledChiller1","IPLV","Part-Load Efficiency, IPLV"," "]
[null,null,null,null,null,null,null,null,null,null,null,null,null,null,null,null,null,"Water-CooledChiller2","IPLV","Part-Load Efficiency, IPLV"," "]
[null,null,null,null,null,null,null,null,null,null,null,null,null,null,null,null,null,"Water-CooledChiller3","IPLV","Part-Load Efficiency, IPLV"," "]
[null,null,null,null,null,null,null,null,null,null,null,null,null,null,null,null,null,"Water-CooledChiller4","IPLV","Part-Load Efficiency, IPLV"," "]
[null,null,null,null,null,null,null,null,null,null,null,null,null,null,null,null,null,"Water-CooledChiller5","IPLV","Part-Load Efficiency, IPLV"," "]
[]
[null,null,null,null,null,null,null,null,null,null,null,null,null,null,null,null,null,"CO2SNR_List2[EquipmentType]","List2[Title]","List2[Description]","List2[Inputs,CSV]"]
[null,null,null,null,null,null,null,null,null,null,null,null,null,null,null,null,null,{"$f":"I38","v":"Air-Conditioner"},"Heating Type","Heating-Mode Heat Type","None,Electric Resistance,Gas,Other"," "]
[null,null,null,null,null,null,null,null,null,null,null,null,null,null,null,null,null,{"$f":"I39","v":"Heat Pump"},"Heating Type","Heating-Mode Heat Type","Electric Resistance,Gas,Heat Pump,Other"," "]
[null,null,null,null,null,null,null,null,null,null,null,null,null,null,null,null,null,{"$f":"I40","v":"Water-Source Heat Pump"},"Heating Type","Heating-Mode Heat Type","Electric Resistance,Gas,Heat Pump,Other"," "]
[null,null,null,null,null,null,null,null,null,null,null,null,null,null,null,null,null,{"$f":"I41","v":"Chiller"},"Heating Type","Heating-Mode Heat Type","None,Electric Resistance,Gas,Heat Pump,Other"," "]
[]
[null,null,null,null,null,null,null,null,null,null,null,null,null,null,null,null,null,"HROC_List2[EquipmentType]","List2[Title]","List2[Description]","List2[Inputs,CSV]"]
[null,null,null,null,null,null,null,null,null,null,null,null,null,null,null,null,null,{"$f":"I44","v":"Chiller"},"Heating Type","Heating-Mode Heat Type","None,Electric Resistance,Gas,Heat Pump,Other"," "]
[null,null,null,null,null,null,null,null,null,null,null,null,null,null,null,null,null,{"$f":"I45","v":"Packaged-Terminal Air-Conditioner"},"Heating Type","Heating-Mode Heat Type","None,Electric Resistance,Gas,Other"," "]
[null,null,null,null,null,null,null,null,null,null,null,null,null,null,null,null,null,{"$f":"I46","v":"Packaged-Terminal Heat Pump"},"Heating Type","Heating-Mode Heat Type","Electric Resistance,Gas,Heat Pump,Other"," "]
[null,null,null,null,null,null,null,null,null,null,null,null,null,null,null,null,null,{"$f":"I47","v":"Multi-Split"},"Heating Type","Heating-Mode Heat Type","None,Electric Resistance,Gas,Heat Pump,Other"," "]
[]
[null,null,null,null,null,null,null,null,null,null,null,null,null,null,null,null,null,"HVACOther_List2[EquipmentType]","List2[Title]","List2[Description]","List2[Inputs,CSV]"]
[null,null,null,null,null,null,null,null,null,null,null,null,null,null,null,null,null,{"$f":"I50","v":"EC Motor (ECM)"},"Fan Type","Type of fan being controlled","Supply Fan,Return Fan,Exhaust Fan,Fan Coil Unit,Other"," "]
[null,null,null,null,null,null,null,null,null,null,null,null,null,null,null,null,null,{"$f":"I51","v":"Permanent-Magnet Sync Motor"},"Fan Type","Type of fan being controlled","Supply Fan,Return Fan,Exhaust Fan,Fan Coil Unit,Other"," "]
[null,null,null,null,null,null,null,null,null,null,null,null,null,null,null,null,null,{"$f":"I52","v":"CO Sensor"},null,null,null," "]
[null,null,null,null,null,null,null,null,null,null,null,null,null,null,null,null,null,{"$f":"I53","v":"Energy Management System (EMS) for DX Systems"},"Cooling Type","Controlled Cooling Equipment","Air-Cooled AC,Water-Cooled AC,Evap-Cooled AC,Air-Cooled HP,Water-Cooled HP,PTAC/VTAC,PTHP/VTHP"," "]
[null,null,null,null,null,null,null,null,null,null,null,null,null,null,null,null,null,{"$f":"I54","v":"Energy Management System (EMS) for Chilled Water Systems"},"Cooling Type","Controlled Cooling Equipment","Air-Cooled Centrifugal,Air-Cooled Reciprocating,Air-Cooled Rotary,Air-Cooled Screw,Air-Cooled Scroll,Water-Cooled Centrifugal,Water-Cooled Reciprocating,Water-Cooled Rotary,Water-Cooled Screw,Water-Cooled Scroll"," "]
[null,null,null,null,null,null,null,null,null,null,null,null,null,null,null,null,null,"Smart Thermostat (Self-Install)","Cooling Type","Controlled Cooling Equipment","Unitary AC,Unitary HP,Water-Source HP,Chiller,PTAC,PTHP"," "]
[null,null,null,null,null,null,null,null,null,null,null,null,null,null,null,null,null,"Smart Thermostat (Professional Install)","Cooling Type","Controlled Cooling Equipment","Unitary AC,Unitary HP,Water-Source HP,Chiller,PTAC,PTHP"," "]
[null,null,null,null,null,null,null,null,null,null,null,null,null,null,null,null,null,"VFD: VAV Fan",null,null,null," "]
[null,null,null,null,null,null,null,null,null,null,null,null,null,null,null,null,null,"VFD: Exhaust Fan",null,null,null," "]
[null,null,null,null,null,null,null,null,null,null,null,null,null,null,null,null,null,"VFD: Cooling Tower Fan",null,null,null," "]
[null,null,null,null,null,null,null,null,null,null,null,null,null,null,null,null,null,{"$f":"I60","v":"VFD: Condenser Fan"},null,null,null," "]
[null,null,null,null,null,null,null,null,null,null,null,null,null,null,null,null,null,{"$f":"I61","v":"VFD: Unitary HVAC Fan"},"Fan Type","Type of fan being controlled","Supply Fan,Return Fan"," "]
[null,null,null,null,null,null,null,null,null,null,null,null,null,null,null,null,null,"VFD: Condenser Water Pump",null,null,null," "]
[null,null,null,null,null,null,null,null,null,null,null,null,null,null,null,null,null,"VFD: Chilled Water Pump",{"$f":"IF(ISNUMBER(FIND(\"Retro\",Project_Type,1)),\"Existing Controls\",\"\")","v":"Existing Controls"},{"$f":"IF(ISNUMBER(FIND(\"Retro\",Project_Type,1)),\"Type of existing control\",\"\")","v":"Type of existing control"},{"$f":"IF(ISNUMBER(FIND(\"Retro\",Project_Type,1)),\"2-Way Valve,3-Way Valve,Other/Don't Know\",\"\")","v":"2-Way Valve,3-Way Valve,Other/Don't Know"}," "]
[null,null,null,null,null,null,null,null,null,null,null,null,null,null,null,null,null,"VFD: Domestic Service Water Pump",null,null,null," "]
[null,null,null,null,null,null,null,null,null,null,null,null,null,null,null,null,null,"VFD: Domestic Hot Water Pump",null,null,null," "]
[null,null,null,null,null,null,null,null,null,null,null,null,null,null,null,null,null,"Advanced RTU Controller","Existing Fan Controls","Original fan motor controls or control applications.","No Existing Controls,2-Speed Motor,3-Speed Motor,Single-Speed ECM,Multi-Speed ECM,VFD"," "]
[]
[null,null,null,null,null,null,null,null,null,null,null,null,null,null,null,null,null,"HVACOther_List3[EquipmentType]","List3[Title]","List3[Description]","List3[Inputs,CSV]"]
[null,null,null,null,null,null,null,null,null,null,null,null,null,null,null,null,null,{"$f":"I50","v":"EC Motor (ECM)"},null,null,null," "]
[null,null,null,null,null,null,null,null,null,null,null,null,null,null,null,null,null,{"$f":"I51","v":"Permanent-Magnet Sync Motor"},{"$f":"IF(ISNUMBER(FIND(\"Retro\",Project_Type,1)),\"Existing Motor\",\"\")","v":"Existing Motor"},{"$f":"IF(ISNUMBER(FIND(\"Retro\",Project_Type,1)),\"Type of existing motor\",\"\")","v":"Type of existing motor"},{"$f":"IF(ISNUMBER(FIND(\"Retro\",Project_Type,1)),\"SP Motor,PSC Motor,EC Motor,Don't Know\",\"\")","v":"SP Motor,PSC Motor,EC Motor,Don't Know"}," "]
[null,null,null,null,null,null,null,null,null,null,null,null,null,null,null,null,null,{"$f":"I52","v":"CO Sensor"},null,null,null," "]
[null,null,null,null,null,null,null,null,null,null,null,null,null,null,null,null,null,{"$f":"I53","v":"Energy Management System (EMS) for DX Systems"},"Existing Controls","Existing Control Type","Pneumatic,Manual Thermostat,Programmable Thermostat,EMS"," "]
[null,null,null,null,null,null,null,null,null,null,null,null,null,null,null,null,null,{"$f":"I54","v":"Energy Management System (EMS) for Chilled Water Systems"},"Controls Implementation","Implementation of Control Strategies","Airside Only,Waterside Only,Airside and Waterside"," "]
[null,null,null,null,null,null,null,null,null,null,null,null,null,null,null,null,null,"Smart Thermostat (Self-Install)","Existing Controls","Existing Control Type","Pneumatic,Manual Thermostat,Programmable Thermostat,EMS"," "]
[null,null,null,null,null,null,null,null,null,null,null,null,null,null,null,null,null,"Smart Thermostat (Professional Install)","Existing Controls","Existing Control Type","Pneumatic,Manual Thermostat,Programmable Thermostat,EMS"," "]
[null,null,null,null,null,null,null,null,null,null,null,null,null,null,null,null,null,"VFD: VAV Fan",null,null,null," "]
[null,null,null,null,null,null,null,null,null,null,null,null,null,null,null,null,null,"VFD: Exhaust Fan",null,null,null," "]
[null,null,null,null,null,null,null,null,null,null,null,null,null,null,null,null,null,"VFD: Cooling Tower Fan",null,null,null," "]
[null,null,null,null,null,null,null,null,null,null,null,null,null,null,null,null,null,{"$f":"I60","v":"VFD: Condenser Fan"},null,null,null," "]
[null,null,null,null,null,null,null,null,null,null,null,null,null,null,null,null,null,{"$f":"I61","v":"VFD: Unitary HVAC Fan"},null,null,null," "]
[null,null,null,null,null,null,null,null,null,null,null,null,null,null,null,null,null,"VFD: Condenser Water Pump",null,null,null," "]
[null,null,null,null,null,null,null,null,null,null,null,null,null,null,null,null,null,"VFD: Chilled Water Pump",null,null,null," "]
[null,null,null,null,null,null,null,null,null,null,null,null,null,null,null,null,null,"VFD: Domestic Service Water Pump",null,null,null," "]
[null,null,null,null,null,null,null,null,null,null,null,null,null,null,null,null,null,"VFD: Domestic Hot Water Pump",null,null,null," "]
[null,null,null,null,null,null,null,null,null,null,null,null,null,null,null,null,null,"Advanced RTU Controller","Proposed Fan Controls","Proposed fan motor controls or control applications.","2-Speed Motor,3-Speed Motor,Single-Speed ECM,Multi-Speed ECM,VFD"," "]
[]
[null,null,null,null,null,null,null,null,null,null,null,null,null,null,null,null,null,"HVACOther_Size[EquipmentType]","Size[Description]","Size[Description]"," "]
[null,null,null,null,null,null,null,null,null,null,null,null,null,null,null,null,null,{"$f":"I50","v":"EC Motor (ECM)"},"HP","Size (Horsepower), ≤1HP Required"," "]
[null,null,null,null,null,null,null,null,null,null,null,null,null,null,null,null,null,{"$f":"I51","v":"Permanent-Magnet Sync Motor"},"HP","Size (Horsepower), ≤1HP Required"," "]
[null,null,null,null,null,null,null,null,null,null,null,null,null,null,null,null,null,{"$f":"I52","v":"CO Sensor"},"HP","Size (HP)"," "]
[null,null,null,null,null,null,null,null,null,null,null,null,null,null,null,null,null,{"$f":"I53","v":"Energy Management System (EMS) for DX Systems"},"Sq. Ft.","Size (Area, Square Feet)"," "]
[null,null,null,null,null,null,null,null,null,null,null,null,null,null,null,null,null,"Energy Management System (EMS) for Chilled Water Systems","Sq. Ft.","Size (Area, Square Feet)"," "]
[null,null,null,null,null,null,null,null,null,null,null,null,null,null,null,null,null,"Smart Thermostat (Self-Install)","Tons","Size (Tons)"," "]
[null,null,null,null,null,null,null,null,null,null,null,null,null,null,null,null,null,"Smart Thermostat (Professional Install)","Tons","Size (Tons)"," "]
[null,null,null,null,null,null,null,null,null,null,null,null,null,null,null,null,null,"VFD: VAV Fan","HP",{"$f":"IF(ISNUMBER(SEARCH(\"Retro\",Project_Type,1)),\"Size (Horsepower), ≤100HP Required\",\"Size (Horsepower), <5HP Required\")","v":"Size (Horsepower), ≤100HP Required"}," "]
[null,null,null,null,null,null,null,null,null,null,null,null,null,null,null,null,null,"VFD: Exhaust Fan","HP","Size (Horsepower), ≤100HP"," "]
[null,null,null,null,null,null,null,null,null,null,null,null,null,null,null,null,null,"VFD: Cooling Tower Fan","HP","Size (Horsepower), ≤100HP"," "]
[null,null,null,null,null,null,null,null,null,null,null,null,null,null,null,null,null,{"$f":"I60","v":"VFD: Condenser Fan"},"HP","Size (Horsepower), ≤100HP"," "]
[null,null,null,null,null,null,null,null,null,null,null,null,null,null,null,null,null,{"$f":"I61","v":"VFD: Unitary HVAC Fan"},"HP","Size (Horsepower), ≤100HP"," "]
[null,null,null,null,null,null,null,null,null,null,null,null,null,null,null,null,null,"VFD: Condenser Water Pump","HP",{"$f":"IF(ISNUMBER(SEARCH(\"Retro\",Project_Type,1)),\"Size (Horsepower), ≤100HP Required\",\"Size (Horsepower), ≤5HP Required\")","v":"Size (Horsepower), ≤100HP Required"}," "]
[null,null,null,null,null,null,null,null,null,null,null,null,null,null,null,null,null,"VFD: Chilled Water Pump","HP",{"$f":"IF(ISNUMBER(SEARCH(\"Retro\",Project_Type,1)),\"Size (Horsepower), ≤100HP Required\",\"Size (Horsepower), ≤5HP Required\")","v":"Size (Horsepower), ≤100HP Required"}," "]
[null,null,null,null,null,null,null,null,null,null,null,null,null,null,null,null,null,"VFD: Domestic Service Water Pump","HP","Size (Horsepower), ≤100HP Required"," "]
[null,null,null,null,null,null,null,null,null,null,null,null,null,null,null,null,null,"VFD: Domestic Hot Water Pump","HP","Size (Horsepower), ≤100HP Required"," "]
[null,null,null,null,null,null,null,null,null,null,null,null,null,null,null,null,null,"Advanced RTU Controller","Tons",{"$f":"IF(ISNUMBER(SEARCH(\"Retro\",Project_Type,1)),\"Size (Tons)\",\"Size (Tons), <5 Tons Required\")","v":"Size (Tons)"}," "]
[]
[null,null,null,null,null,null,null,null,null,null,null,null,null,null,null,null,null,"HVACOther_Input1[EquipmentType]","Input1[Description]","Input1[Description]"," "]
[null,null,null,null,null,null,null,null,null,null,null,null,null,null,null,null,null,{"$f":"I50","v":"EC Motor (ECM)"},null,null," "]
[null,null,null,null,null,null,null,null,null,null,null,null,null,null,null,null,null,{"$f":"I51","v":"Permanent-Magnet Sync Motor"},null,null," "]
[null,null,null,null,null,null,null,null,null,null,null,null,null,null,null,null,null,{"$f":"I52","v":"CO Sensor"},{"$f":"IF(ISNUMBER(SEARCH(\"Retro\",Project_Type,1)),\"\",\"Parking Garage Area\")","v":""},{"$f":"IF(ISNUMBER(SEARCH(\"Retro\",Project_Type,1)),\"\",\"Parking Garage Square Footage, >1500 Sq. Ft. / HP and < 30,000 Sq. Ft. Required\")","v":""}," "]
[null,null,null,null,null,null,null,null,null,null,null,null,null,null,null,null,null,{"$f":"I53","v":"Energy Management System (EMS) for DX Systems"},"Tons","Overall System Size (Tons)"," "]
[null,null,null,null,null,null,null,null,null,null,null,null,null,null,null,null,null,"Energy Management System (EMS) for Chilled Water Systems","Tons","Overall System Size (Tons)"," "]
[null,null,null,null,null,null,null,null,null,null,null,null,null,null,null,null,null,"Smart Thermostat (Self-Install)",null,null," "]
[null,null,null,null,null,null,null,null,null,null,null,null,null,null,null,null,null,"Smart Thermostat (Professional Install)",null,null," "]
[null,null,null,null,null,null,null,null,null,null,null,null,null,null,null,null,null,"VFD: VAV Fan",null,null," "]
[null,null,null,null,null,null,null,null,null,null,null,null,null,null,null,null,null,"VFD: Exhaust Fan",null,null," "]
[null,null,null,null,null,null,null,null,null,null,null,null,null,null,null,null,null,"VFD: Cooling Tower Fan",null,null," "]
[null,null,null,null,null,null,null,null,null,null,null,null,null,null,null,null,null,{"$f":"I60","v":"VFD: Condenser Fan"},null,null," "]
[null,null,null,null,null,null,null,null,null,null,null,null,null,null,null,null,null,{"$f":"I61","v":"VFD: Unitary HVAC Fan"},{"$f":"IF(ISNUMBER(SEARCH(\"Retro\",Project_Type,1)),\"\",\"Unit Tons\")","v":""},{"$f":"IF(ISNUMBER(SEARCH(\"Retro\",Project_Type,1)),\"\",\"Size of Unitary Equipment (Tons), <5 Tons Required\")","v":""}," "]
[null,null,null,null,null,null,null,null,null,null,null,null,null,null,null,null,null,"VFD: Condenser Water Pump",null,null," "]
[null,null,null,null,null,null,null,null,null,null,null,null,null,null,null,null,null,"VFD: Chilled Water Pump",null,null," "]
[null,null,null,null,null,null,null,null,null,null,null,null,null,null,null,null,null,"VFD: Domestic Service Water Pump",null,null," "]
[null,null,null,null,null,null,null,null,null,null,null,null,null,null,null,null,null,"VFD: Domestic Hot Water Pump",null,null," "]
[null,null,null,null,null,null,null,null,null,null,null,null,null,null,null,null,null,"Advanced RTU Controller",null,null," "]
[]
[null,null,null,null,null,null,null,null,null,null,null,null,null,null,null,null,null,"RefrigComp_Input1[Inputs]","Input1[Title]","Input1[Description]"," "]
[null,null,null,null,null,null,null,null,null,null,null,null,null,null,null,null,null,{"$f":"I69","v":"Ref. Compressor: Bev. Merch"},"COP","Coefficient of Performance"," "]
[null,null,null,null,null,null,null,null,null,null,null,null,null,null,null,null,null,"Ref. Compressor: Food Service ","COP","Coefficient of Performance"," "]
[null,null,null,null,null,null,null,null,null,null,null,null,null,null,null,null,null,"Ref. Compressor: RI Cooler","COP","Coefficient of Performance"," "]
[null,null,null,null,null,null,null,null,null,null,null,null,null,null,null,null,null,"Ref. Compressor: RI Freezer","COP","Coefficient of Performance"," "]
[null,null,null,null,null,null,null,null,null,null,null,null,null,null,null,null,null,"Ref. Compressor: WI Cooler","COP","Coefficient of Performance"," "]
[null,null,null,null,null,null,null,null,null,null,null,null,null,null,null,null,null,"Ref. Compressor: WI Freezer","COP","Coefficient of Performance"," "]
[null,null,null,null,null,null,null,null,null,null,null,null,null,null,null,null,null,"Discus Compressor",null,null," "]
[]
[null,null,null,null,null,null,null,null,null,null,null,null,null,null,null,null,null,"RefOther_List2[EquipmentType]","List2[Title]","List2[Description]","List2[Inputs,CSV]"]
[null,null,null,null,null,null,null,null,null,null,null,null,null,null,null,null,null,{"$f":"I78","v":"Anti-Sweat Heater Controls"},"Type/Temp","Refrigeration and Temperature Application","Reach-In Med Temp,Reach-In Low Temp,Walk-In Med Temp,Walk-In Low Temp"," "]
[null,null,null,null,null,null,null,null,null,null,null,null,null,null,null,null,null,{"$f":"I79","v":"High-Efficiency Freezer Door"},"Type","Door Type","Low-Heat,No Heat"," "]
[null,null,null,null,null,null,null,null,null,null,null,null,null,null,null,null,null,{"$f":"I80","v":"Open Display Case Door Retrofit Kit"},null,null,null," "]
[null,null,null,null,null,null,null,null,null,null,null,null,null,null,null,null,null,{"$f":"I81","v":"Auto-Closer"},"Type/Temp","Refrigeration and Temperature Application","Walk-In Med Temp,Walk-In Low Temp"," "]
[null,null,null,null,null,null,null,null,null,null,null,null,null,null,null,null,null,"Dock Door Seal","Temperature","Temperature Application","Med Temp,Low Temp"," "]
[null,null,null,null,null,null,null,null,null,null,null,null,null,null,null,null,null,"Electronically Commutated Motor","Type","Refrigeration Application","Reach-In,Walk-In"," "]
[null,null,null,null,null,null,null,null,null,null,null,null,null,null,null,null,null,"Permanent-Magnet Sync Motor","Type & Temperature","Refrigeration and Temperature Application","Reach-In Med Temp,Reach-In Low Temp,Walk-In Med Temp,Walk-In Low Temp"," "]
[null,null,null,null,null,null,null,null,null,null,null,null,null,null,null,null,null,"Evaporative Condenser","Type","Refrigerant Type","Ammonia,Freon"," "]
[null,null,null,null,null,null,null,null,null,null,null,null,null,null,null,null,null,"Fast-Acting Door","Type/Temp","Door Type and Refrigeration Application","Bi-Fold Med Temp,Bi-Fold Low Temp,Roll-Up Med Temp,Roll-Up Low Temp"," "]
[null,null,null,null,null,null,null,null,null,null,null,null,null,null,null,null,null,"Floating Head-Pressure Controls","Type","Refrigerant Type","Ammonia,Freon"," "]
[null,null,null,null,null,null,null,null,null,null,null,null,null,null,null,null,null,"Door Gaskets","Type/Temp","Door Type and Refrigeration Application","Glass Door Med Temp,Glass Door Low Temp,Solid Door Med Temp,Solid Door Low Temp"," "]
[null,null,null,null,null,null,null,null,null,null,null,null,null,null,null,null,null,"High-Efficiency Open Display Case","Lighting Type","Lighting, LED Required","Fluorescent,LED,Other,None"," "]
[null,null,null,null,null,null,null,null,null,null,null,null,null,null,null,null,null,"Refrigerated Occupancy Controls","Type","Machine Type","Reach-In,Beverage Machine,Snack Machine"," "]
[null,null,null,null,null,null,null,null,null,null,null,null,null,null,null,null,null,{"$f":"I91","v":"Refrigerated Beverage Vending Machine"},"Energy Star?","Is this Vending Machine Energy Star Certified?","Yes,No"," "]
[null,null,null,null,null,null,null,null,null,null,null,null,null,null,null,null,null,{"$f":"I92","v":"Refrigerated Suction Pipe Insulation"},"Temperature","Temperature Application","Med Temp,Low Temp"," "]
[null,null,null,null,null,null,null,null,null,null,null,null,null,null,null,null,null,{"$f":"I93","v":"Strip Curtain"},null,null,null," "]
[null,null,null,null,null,null,null,null,null,null,null,null,null,null,null,null,null,{"$f":"I94","v":"Variable Frequency Drive"},"Type","Fan Application","Condenser Fan,Evaporator Fan"," "]
[null,null,null,null,null,null,null,null,null,null,null,null,null,null,null,null,null,{"$f":"I95","v":"Ultra-Low Temperature Freezer"},null,null,null," "]
[]
[null,null,null,null,null,null,null,null,null,null,null,null,null,null,null,null,null,"RefOther_List3[EquipmentType]","List3[Title]","List3[Description]","List3[Inputs,CSV]"]
[null,null,null,null,null,null,null,null,null,null,null,null,null,null,null,null,null,{"$f":"I78","v":"Anti-Sweat Heater Controls"},null,null,null," "]
[null,null,null,null,null,null,null,null,null,null,null,null,null,null,null,null,null,"High-Efficiency Freezer Door",null,null,null," "]
[null,null,null,null,null,null,null,null,null,null,null,null,null,null,null,null,null,"Open Display Case Door Retrofit Kit",null,null,null," "]
[null,null,null,null,null,null,null,null,null,null,null,null,null,null,null,null,null,"Auto-Closer",null,null,null," "]
[null,null,null,null,null,null,null,null,null,null,null,null,null,null,null,null,null,"Dock Door Seal",null,null,null," "]
[null,null,null,null,null,null,null,null,null,null,null,null,null,null,null,null,null,"Electronically Commutated Motor",null,null,null," "]
[null,null,null,null,null,null,null,null,null,null,null,null,null,null,null,null,null,"Permanent-Magnet Sync Motor",{"$f":"IF(ISNUMBER(FIND(\"Retro\",Project_Type,1)),\"Existing Motor\",\"\")","v":"Existing Motor"},{"$f":"IF(ISNUMBER(FIND(\"Retro\",Project_Type,1)),\"Type of existing motor\",\"\")","v":"Type of existing motor"},{"$f":"IF(ISNUMBER(FIND(\"Retro\",Project_Type,1)),\"SP Motor,PSC Motor,EC Motor,Don't Know\",\"\")","v":"SP Motor,PSC Motor,EC Motor,Don't Know"}," "]
[null,null,null,null,null,null,null,null,null,null,null,null,null,null,null,null,null,"Evaporative Condenser","Controls Type","Condenser Controls, VFD+FHPC Required","VFD+FHPC,VFD Only,Staging/None+FHPC,Other,None"," "]
[null,null,null,null,null,null,null,null,null,null,null,null,null,null,null,null,null,"Fast-Acting Door",null,null,null," "]
[null,null,null,null,null,null,null,null,null,null,null,null,null,null,null,null,null,"Floating Head-Pressure Controls","Controls Type","Condenser Controls, VFD/Staging Required","VFD,Multi-Stage,Two-Stage,None"," "]
[null,null,null,null,null,null,null,null,null,null,null,null,null,null,null,null,null,"Door Gaskets",null,null,null," "]
[null,null,null,null,null,null,null,null,null,null,null,null,null,null,null,null,null,"High-Efficiency Open Display Case","Motor Type","Motor Type, ECM Required","ECM,Other,None"," "]
[null,null,null,null,null,null,null,null,null,null,null,null,null,null,null,null,null,{"$f":"I90","v":"Refrigerated Occupancy Controls"},null,null,null," "]
[null,null,null,null,null,null,null,null,null,null,null,null,null,null,null,null,null,"Refrigerated Beverage Vending Machine",null,null,null," "]
[null,null,null,null,null,null,null,null,null,null,null,null,null,null,null,null,null,"Refrigerated Suction Pipe Insulation",null,null,null," "]
[null,null,null,null,null,null,null,null,null,null,null,null,null,null,null,null,null,"Strip Curtain",null,null,null," "]
[null,null,null,null,null,null,null,null,null,null,null,null,null,null,null,null,null,"Variable Frequency Drive",null,null,null," "]
[null,null,null,null,null,null,null,null,null,null,null,null,null,null,null,null,null,"Ultra-Low Temperature Freezer",null,null,null," "]
[]
[null,null,null,null,null,null,null,null,null,null,null,null,null,null,null,null,null,"RefOther_Size[EquipmentType]","Size[Title]","Size[Description]"," "]
[null,null,null,null,null,null,null,null,null,null,null,null,null,null,null,null,null,{"$f":"I78","v":"Anti-Sweat Heater Controls"},"Ln. Ft.","Size (Door Perimeter, Linear Feet)"," "]
[null,null,null,null,null,null,null,null,null,null,null,null,null,null,null,null,null,"High-Efficiency Freezer Door",null,null," "]
[null,null,null,null,null,null,null,null,null,null,null,null,null,null,null,null,null,"Open Display Case Door Retrofit Kit","Ln. Ft.","Size (Case Length, Linear Feet)"," "]
[null,null,null,null,null,null,null,null,null,null,null,null,null,null,null,null,null,"Auto-Closer",null,null," "]
[null,null,null,null,null,null,null,null,null,null,null,null,null,null,null,null,null,"Dock Door Seal","Ln. Ft.","Size (Door Perimeter, Linear Feet)"," "]
[null,null,null,null,null,null,null,null,null,null,null,null,null,null,null,null,null,"Electronically Commutated Motor",null,null," "]
[null,null,null,null,null,null,null,null,null,null,null,null,null,null,null,null,null,"Permanent-Magnet Sync Motor",null,null," "]
[null,null,null,null,null,null,null,null,null,null,null,null,null,null,null,null,null,{"$f":"I85","v":"Evaporative Condenser"},"Tons","Size (Refrigeration Tons)"," "]
[null,null,null,null,null,null,null,null,null,null,null,null,null,null,null,null,null,"Fast-Acting Door","Sq. Ft.","Size (Door Area, Square Feet)"," "]
[null,null,null,null,null,null,null,null,null,null,null,null,null,null,null,null,null,"Floating Head-Pressure Controls","Tons","Size (Refrigeration Tons)"," "]
[null,null,null,null,null,null,null,null,null,null,null,null,null,null,null,null,null,"Door Gaskets","Ln. Ft.","Size (Door Perimeter, Linear Feet)"," "]
[null,null,null,null,null,null,null,null,null,null,null,null,null,null,null,null,null,"High-Efficiency Open Display Case","Ln. Ft.","Size (Case Length, Linear Feet)"," "]
[null,null,null,null,null,null,null,null,null,null,null,null,null,null,null,null,null,"Refrigerated Occupancy Controls",null,null," "]
[null,null,null,null,null,null,null,null,null,null,null,null,null,null,null,null,null,{"$f":"I91","v":"Refrigerated Beverage Vending Machine"},null,null," "]
[null,null,null,null,null,null,null,null,null,null,null,null,null,null,null,null,null,{"$f":"I92","v":"Refrigerated Suction Pipe Insulation"},"Ln. Ft.","Size (Pipe Length, Linear Feet)"," "]
[null,null,null,null,null,null,null,null,null,null,null,null,null,null,null,null,null,{"$f":"I93","v":"Strip Curtain"},"Sq. Ft.","Size (Door Area, Square Feet)"," "]
[null,null,null,null,null,null,null,null,null,null,null,null,null,null,null,null,null,{"$f":"I94","v":"Variable Frequency Drive"},"HP","Size (Horsepower)"," "]
[null,null,null,null,null,null,null,null,null,null,null,null,null,null,null,null,null,{"$f":"I95","v":"Ultra-Low Temperature Freezer"},"Volume","Capacity (Volume, Cubic Feet), <50 Cu. Ft. Required"," "]
[]
[null,null,null,null,null,null,null,null,null,null,null,null,null,null,null,null,null,"RefOther_Input1[EquipmentType]","Input1[Title]","Input1[Description]"," "]
[null,null,null,null,null,null,null,null,null,null,null,null,null,null,null,null,null,{"$f":"I78","v":"Anti-Sweat Heater Controls"},null,null," "]
[null,null,null,null,null,null,null,null,null,null,null,null,null,null,null,null,null,"High-Efficiency Freezer Door","Energy Usage (Watts)","Installed watts per door installed"," "]
[null,null,null,null,null,null,null,null,null,null,null,null,null,null,null,null,null,"Open Display Case Door Retrofit Kit",null,null," "]
[null,null,null,null,null,null,null,null,null,null,null,null,null,null,null,null,null,"Auto-Closer",null,null," "]
[null,null,null,null,null,null,null,null,null,null,null,null,null,null,null,null,null,"Dock Door Seal",null,null," "]
[null,null,null,null,null,null,null,null,null,null,null,null,null,null,null,null,null,"Electronically Commutated Motor",null,null," "]
[null,null,null,null,null,null,null,null,null,null,null,null,null,null,null,null,null,"Permanent-Magnet Sync Motor",null,null," "]
[null,null,null,null,null,null,null,null,null,null,null,null,null,null,null,null,null,{"$f":"I85","v":"Evaporative Condenser"},"CT","Condensing Temperature (CT), ≤70⁰F Required"," "]
[null,null,null,null,null,null,null,null,null,null,null,null,null,null,null,null,null,"Fast-Acting Door","Time","Closing Time (Seconds), Bi-Fold: ≤1.5sec & Roll-Up: ≤4.0sec Required"," "]
[null,null,null,null,null,null,null,null,null,null,null,null,null,null,null,null,null,"Floating Head-Pressure Controls","CT","Condensing Temperature (CT), ≤70⁰F Required"," "]
[null,null,null,null,null,null,null,null,null,null,null,null,null,null,null,null,null,"Door Gaskets",null,null," "]
[null,null,null,null,null,null,null,null,null,null,null,null,null,null,null,null,null,"High-Efficiency Open Display Case",null,null," "]
[null,null,null,null,null,null,null,null,null,null,null,null,null,null,null,null,null,"Refrigerated Occupancy Controls",null,null," "]
[null,null,null,null,null,null,null,null,null,null,null,null,null,null,null,null,null,{"$f":"I91","v":"Refrigerated Beverage Vending Machine"},null,null," "]
[null,null,null,null,null,null,null,null,null,null,null,null,null,null,null,null,null,{"$f":"I92","v":"Refrigerated Suction Pipe Insulation"},"R-Value","Insulation R-Value, Med-Temp: ≥R-3.2 & Low-Temp: ≥R-4.3  Required"," "]
[null,null,null,null,null,null,null,null,null,null,null,null,null,null,null,null,null,{"$f":"I93","v":"Strip Curtain"},null,null," "]
[null,null,null,null,null,null,null,null,null,null,null,null,null,null,null,null,null,{"$f":"I94","v":"Variable Frequency Drive"},null,null," "]
[null,null,null,null,null,null,null,null,null,null,null,null,null,null,null,null,null,{"$f":"I95","v":"Ultra-Low Temperature Freezer"},"Energy Usage (kWh/day)","Installed energy usage (kWh/day), <0.42 kWh/day (per cubic foot) Required"," "]
[]
[null,null,null,null,null,null,null,null,null,null,null,null,null,null,null,null,null,"RefOther_Input2[EquipmentType]","Input2[Title]","Input2[Description]"," "]
[null,null,null,null,null,null,null,null,null,null,null,null,null,null,null,null,null,{"$f":"I78","v":"Anti-Sweat Heater Controls"},null,null," "]
[null,null,null,null,null,null,null,null,null,null,null,null,null,null,null,null,null,"High-Efficiency Freezer Door",null,null," "]
[null,null,null,null,null,null,null,null,null,null,null,null,null,null,null,null,null,"Open Display Case Door Retrofit Kit",null,null," "]
[null,null,null,null,null,null,null,null,null,null,null,null,null,null,null,null,null,"Auto-Closer",null,null," "]
[null,null,null,null,null,null,null,null,null,null,null,null,null,null,null,null,null,"Dock Door Seal",null,null," "]
[null,null,null,null,null,null,null,null,null,null,null,null,null,null,null,null,null,"Electronically Commutated Motor",null,null," "]
[null,null,null,null,null,null,null,null,null,null,null,null,null,null,null,null,null,"Permanent-Magnet Sync Motor",null,null," "]
[null,null,null,null,null,null,null,null,null,null,null,null,null,null,null,null,null,{"$f":"I85","v":"Evaporative Condenser"},"TD","Temp Differential (TD), ≤18deg Required"," "]
[null,null,null,null,null,null,null,null,null,null,null,null,null,null,null,null,null,"Fast-Acting Door",null,null," "]
[null,null,null,null,null,null,null,null,null,null,null,null,null,null,null,null,null,"Floating Head-Pressure Controls","TD","Temp Differential (TD), ≤18deg Required"," "]
[null,null,null,null,null,null,null,null,null,null,null,null,null,null,null,null,null,"Door Gaskets",null,null," "]
[null,null,null,null,null,null,null,null,null,null,null,null,null,null,null,null,null,"High-Efficiency Open Display Case",null,null," "]
[null,null,null,null,null,null,null,null,null,null,null,null,null,null,null,null,null,"Refrigerated Occupancy Controls",null,null," "]
[null,null,null,null,null,null,null,null,null,null,null,null,null,null,null,null,null,{"$f":"I91","v":"Refrigerated Beverage Vending Machine"},null,null," "]
[null,null,null,null,null,null,null,null,null,null,null,null,null,null,null,null,null,{"$f":"I92","v":"Refrigerated Suction Pipe Insulation"},"Diameter","Size (Inches), ≤1.625\" Required"," "]
[null,null,null,null,null,null,null,null,null,null,null,null,null,null,null,null,null,{"$f":"I93","v":"Strip Curtain"},null,null," "]
[null,null,null,null,null,null,null,null,null,null,null,null,null,null,null,null,null,{"$f":"I94","v":"Variable Frequency Drive"},null,null," "]
[null,null,null,null,null,null,null,null,null,null,null,null,null,null,null,null,null,{"$f":"I95","v":"Ultra-Low Temperature Freezer"},null,null," "]
[]
[null,null,null,null,null,null,null,null,null,null,null,null,null,null,null,null,null,"RefOther_Input3[EquipmentType]","Input3[Title]","Input3[Description]"," "]
[null,null,null,null,null,null,null,null,null,null,null,null,null,null,null,null,null,{"$f":"I78","v":"Anti-Sweat Heater Controls"},null,null," "]
[null,null,null,null,null,null,null,null,null,null,null,null,null,null,null,null,null,{"$f":"I79","v":"High-Efficiency Freezer Door"},null,null," "]
[null,null,null,null,null,null,null,null,null,null,null,null,null,null,null,null,null,{"$f":"I80","v":"Open Display Case Door Retrofit Kit"},null,null," "]
[null,null,null,null,null,null,null,null,null,null,null,null,null,null,null,null,null,{"$f":"I81","v":"Auto-Closer"},null,null," "]
[null,null,null,null,null,null,null,null,null,null,null,null,null,null,null,null,null,"Dock Door Seal",null,null," "]
[null,null,null,null,null,null,null,null,null,null,null,null,null,null,null,null,null,"Electronically Commutated Motor",null,null," "]
[null,null,null,null,null,null,null,null,null,null,null,null,null,null,null,null,null,"Permanent-Magnet Sync Motor",null,null," "]
[null,null,null,null,null,null,null,null,null,null,null,null,null,null,null,null,null,"Evaporative Condenser","EER","(Refrigeration Load BTUH) / (Fan HP * 745.7/%Efficiency), ≥240EER Required"," "]
[null,null,null,null,null,null,null,null,null,null,null,null,null,null,null,null,null,"Fast-Acting Door",null,null," "]
[null,null,null,null,null,null,null,null,null,null,null,null,null,null,null,null,null,"Floating Head-Pressure Controls",null,null," "]
[null,null,null,null,null,null,null,null,null,null,null,null,null,null,null,null,null,"Door Gaskets",null,null," "]
[null,null,null,null,null,null,null,null,null,null,null,null,null,null,null,null,null,"High-Efficiency Open Display Case",null,null," "]
[null,null,null,null,null,null,null,null,null,null,null,null,null,null,null,null,null,"Refrigerated Occupancy Controls",null,null," "]
[null,null,null,null,null,null,null,null,null,null,null,null,null,null,null,null,null,{"$f":"I91","v":"Refrigerated Beverage Vending Machine"},null,null," "]
[null,null,null,null,null,null,null,null,null,null,null,null,null,null,null,null,null,{"$f":"I92","v":"Refrigerated Suction Pipe Insulation"},null,null," "]
[null,null,null,null,null,null,null,null,null,null,null,null,null,null,null,null,null,{"$f":"I93","v":"Strip Curtain"},null,null," "]
[null,null,null,null,null,null,null,null,null,null,null,null,null,null,null,null,null,{"$f":"I94","v":"Variable Frequency Drive"},null,null," "]
[null,null,null,null,null,null,null,null,null,null,null,null,null,null,null,null,null,{"$f":"I95","v":"Ultra-Low Temperature Freezer"},null,null," "]
[]
[null,null,null,null,null,null,null,null,null,null,null,null,null,null,null,null,null,"KitchenOther_List2[EquipmentType]","List2[Title]","List2[Description]","List2[Inputs,CSV]"]
[null,null,null,null,null,null,null,null,null,null,null,null,null,null,null,null,null,{"$f":"I98","v":"ENERGY STAR Griddle"},{"$f":"IF(ProjectType=\"New Construction\",\"\",\"Existing Fuel\")","v":"Existing Fuel"},{"$f":"IF(ProjectType=\"New Construction\",\"\",\"Replaced Fuel Type\")","v":"Replaced Fuel Type"},{"$f":"IF(ProjectType=\"New Construction\",\"\",\"Gas,Electric\")","v":"Gas,Electric"}," "]
[null,null,null,null,null,null,null,null,null,null,null,null,null,null,null,null,null,{"$f":"I99","v":"ENERGY STAR Steam Cooker"},{"$f":"IF(ProjectType=\"New Construction\",\"\",\"Existing Fuel\")","v":"Existing Fuel"},{"$f":"IF(ProjectType=\"New Construction\",\"\",\"Replaced Fuel Type\")","v":"Replaced Fuel Type"},{"$f":"IF(ProjectType=\"New Construction\",\"\",\"Gas,Electric\")","v":"Gas,Electric"}," "]
[null,null,null,null,null,null,null,null,null,null,null,null,null,null,null,null,null,"ENERGY STAR Dishwasher","Type","Dishwasher Type","Under-Counter,Single-Tank,Multi-Tank"," "]
[null,null,null,null,null,null,null,null,null,null,null,null,null,null,null,null,null,"ENERGY STAR Hot Food Holding Cabinet","Size","Cabinet Type (Size)","1/2 Size,3/4 Size,Full Size"," "]
[null,null,null,null,null,null,null,null,null,null,null,null,null,null,null,null,null,"Hot Food Holding Cabinet Gaskets","Type","Cabinet Type","Electric,Gas,Other,Don't Know"," "]
[null,null,null,null,null,null,null,null,null,null,null,null,null,null,null,null,null,"ENERGY STAR Ice Maker","Type","Ice-Maker Type","Ice-Making Head,Self-Contained Unit,Remote-Condensing Unit"," "]
[null,null,null,null,null,null,null,null,null,null,null,null,null,null,null,null,null,{"$f":"I104","v":"ENERGY STAR Electric Convection Oven"},{"$f":"IF(ProjectType=\"New Construction\",\"\",\"Existing Fuel\")","v":"Existing Fuel"},{"$f":"IF(ProjectType=\"New Construction\",\"\",\"Replaced Fuel Type\")","v":"Replaced Fuel Type"},{"$f":"IF(ProjectType=\"New Construction\",\"\",\"Gas,Electric\")","v":"Gas,Electric"}," "]
[null,null,null,null,null,null,null,null,null,null,null,null,null,null,null,null,null,"ENERGY STAR Electric Vat Fryer","Size","Vat Fryer Type (Size)","Standard,Large"," "]
[null,null,null,null,null,null,null,null,null,null,null,null,null,null,null,null,null,"Electric Combination Oven","Size","Stove-Top Size","<15 Pans,15+ Pans"," "]
[null,null,null,null,null,null,null,null,null,null,null,null,null,null,null,null,null,"High Efficiency Pre-Rinse Spray Valve","Fuel Type","Water Heater Fuel Type","Gas,Electric"," "]
[null,null,null,null,null,null,null,null,null,null,null,null,null,null,null,null,null,"VFD: Kitchen EF (Hotel)","Sensor Type","Sensor Type, Optic or Temperature Sensor Required","Temperature,Optic,Other,None"," "]
[null,null,null,null,null,null,null,null,null,null,null,null,null,null,null,null,null,"VFD: Kitchen EF (Restaurant)","Sensor Type","Sensor Type, Optic or Temperature Sensor Required","Temperature,Optic,Other,None"," "]
[]
[null,null,null,null,null,null,null,null,null,null,null,null,null,null,null,null,null,"KitchenOther_List3[EquipmentType]","List3[Title]","List3[Description]","List3[Inputs,CSV]"]
[null,null,null,null,null,null,null,null,null,null,null,null,null,null,null,null,null,{"$f":"I98","v":"ENERGY STAR Griddle"},null,null,null," "]
[null,null,null,null,null,null,null,null,null,null,null,null,null,null,null,null,null,{"$f":"I99","v":"ENERGY STAR Steam Cooker"},null,null,null," "]
[null,null,null,null,null,null,null,null,null,null,null,null,null,null,null,null,null,"ENERGY STAR Dishwasher",{"$f":"IF(ProjectType=\"New Construction\",\"\",\"Existing Fuel\")","v":"Existing Fuel"},{"$f":"IF(ProjectType=\"New Construction\",\"\",\"Replaced Fuel Type\")","v":"Replaced Fuel Type"},{"$f":"IF(ProjectType=\"New Construction\",\"\",\"Gas,Electric\")","v":"Gas,Electric"}," "]
[null,null,null,null,null,null,null,null,null,null,null,null,null,null,null,null,null,"ENERGY STAR Hot Food Holding Cabinet",{"$f":"IF(ProjectType=\"New Construction\",\"\",\"Existing Fuel\")","v":"Existing Fuel"},{"$f":"IF(ProjectType=\"New Construction\",\"\",\"Replaced Fuel Type\")","v":"Replaced Fuel Type"},{"$f":"IF(ProjectType=\"New Construction\",\"\",\"Gas,Electric\")","v":"Gas,Electric"}," "]
[null,null,null,null,null,null,null,null,null,null,null,null,null,null,null,null,null,"Hot Food Holding Cabinet Gaskets",null,null,null," "]
[null,null,null,null,null,null,null,null,null,null,null,null,null,null,null,null,null,"ENERGY STAR Ice Maker",null,null,null," "]
[null,null,null,null,null,null,null,null,null,null,null,null,null,null,null,null,null,"ENERGY STAR Electric Convection Oven",null,null,null," "]
[null,null,null,null,null,null,null,null,null,null,null,null,null,null,null,null,null,"ENERGY STAR Electric Vat Fryer",{"$f":"IF(ProjectType=\"New Construction\",\"\",\"Existing Fuel\")","v":"Existing Fuel"},{"$f":"IF(ProjectType=\"New Construction\",\"\",\"Replaced Fuel Type\")","v":"Replaced Fuel Type"},{"$f":"IF(ProjectType=\"New Construction\",\"\",\"Gas,Electric\")","v":"Gas,Electric"}," "]
[null,null,null,null,null,null,null,null,null,null,null,null,null,null,null,null,null,"Electric Combination Oven",{"$f":"IF(ProjectType=\"New Construction\",\"\",\"Existing Fuel\")","v":"Existing Fuel"},{"$f":"IF(ProjectType=\"New Construction\",\"\",\"Replaced Fuel Type\")","v":"Replaced Fuel Type"},{"$f":"IF(ProjectType=\"New Construction\",\"\",\"Gas,Electric\")","v":"Gas,Electric"}," "]
[null,null,null,null,null,null,null,null,null,null,null,null,null,null,null,null,null,"High Efficiency Pre-Rinse Spray Valve",null,null,null," "]
[null,null,null,null,null,null,null,null,null,null,null,null,null,null,null,null,null,"VFD: Kitchen EF (Hotel)",null,null,null," "]
[null,null,null,null,null,null,null,null,null,null,null,null,null,null,null,null,null,"VFD: Kitchen EF (Restaurant)",null,null,null," "]
[]
[null,null,null,null,null,null,null,null,null,null,null,null,null,null,null,null,null,"KitchenOther_Size[EquipmentType]","Size[Title]","Size[Description]"," "]
[null,null,null,null,null,null,null,null,null,null,null,null,null,null,null,null,null,{"$f":"I98","v":"ENERGY STAR Griddle"},null,null," "]
[null,null,null,null,null,null,null,null,null,null,null,null,null,null,null,null,null,"ENERGY STAR Steam Cooker","Pans","Capacity (pans), ≥3 pans Required"," "]
[null,null,null,null,null,null,null,null,null,null,null,null,null,null,null,null,null,"ENERGY STAR Dishwasher",null,null," "]
[null,null,null,null,null,null,null,null,null,null,null,null,null,null,null,null,null,"ENERGY STAR Hot Food Holding Cabinet",null,null," "]
[null,null,null,null,null,null,null,null,null,null,null,null,null,null,null,null,null,"Hot Food Holding Cabinet Gaskets","Ln. Ft.","Size (Door Perimeter, Linear Feet)"," "]
[null,null,null,null,null,null,null,null,null,null,null,null,null,null,null,null,null,"ENERGY STAR Ice Maker","Lbs./Day (ice)","Rated pounds of ice produced per day"," "]
[null,null,null,null,null,null,null,null,null,null,null,null,null,null,null,null,null,{"$f":"I104","v":"ENERGY STAR Electric Convection Oven"},null,null," "]
[null,null,null,null,null,null,null,null,null,null,null,null,null,null,null,null,null,"ENERGY STAR Electric Vat Fryer",null,null," "]
[null,null,null,null,null,null,null,null,null,null,null,null,null,null,null,null,null,"Electric Combination Oven",null,null," "]
[null,null,null,null,null,null,null,null,null,null,null,null,null,null,null,null,null,"High Efficiency Pre-Rinse Spray Valve","GPM","Flow Rate of the Pre-Rinse Spray Valve, ≤1.15gpm Required"," "]
[null,null,null,null,null,null,null,null,null,null,null,null,null,null,null,null,null,"VFD: Kitchen EF (Hotel)","HP","Size (Horsepower)"," "]
[null,null,null,null,null,null,null,null,null,null,null,null,null,null,null,null,null,"VFD: Kitchen EF (Restaurant)","HP","Size (Horsepower)"," "]
[]
[null,null,null,null,null,null,null,null,null,null,null,null,null,null,null,null,null,"KitchenOther_Input1[EquipmentType]","Input1[Title]","Input1[Description]"," "]
[null,null,null,null,null,null,null,null,null,null,null,null,null,null,null,null,null,{"$f":"I98","v":"ENERGY STAR Griddle"},null,null," "]
[null,null,null,null,null,null,null,null,null,null,null,null,null,null,null,null,null,"ENERGY STAR Steam Cooker","CE","ENERGY STAR® cooking efficiency rating, at least 50% required"," "]
[null,null,null,null,null,null,null,null,null,null,null,null,null,null,null,null,null,"ENERGY STAR Dishwasher",null,null," "]
[null,null,null,null,null,null,null,null,null,null,null,null,null,null,null,null,null,"ENERGY STAR Hot Food Holding Cabinet",null,null," "]
[null,null,null,null,null,null,null,null,null,null,null,null,null,null,null,null,null,"Hot Food Holding Cabinet Gaskets",null,null," "]
[null,null,null,null,null,null,null,null,null,null,null,null,null,null,null,null,null,"ENERGY STAR Ice Maker",null,null," "]
[null,null,null,null,null,null,null,null,null,null,null,null,null,null,null,null,null,{"$f":"I104","v":"ENERGY STAR Electric Convection Oven"},null,null," "]
[null,null,null,null,null,null,null,null,null,null,null,null,null,null,null,null,null,"ENERGY STAR Electric Vat Fryer","CE","ENERGY STAR® cooking efficiency rating, at least 80% required"," "]
[null,null,null,null,null,null,null,null,null,null,null,null,null,null,null,null,null,"Electric Combination Oven","CE","ENERGY STAR® cooking efficiency rating, at least 60% required"," "]
[null,null,null,null,null,null,null,null,null,null,null,null,null,null,null,null,null,"High Efficiency Pre-Rinse Spray Valve",null,null," "]
[null,null,null,null,null,null,null,null,null,null,null,null,null,null,null,null,null,"VFD: Kitchen EF (Hotel)",null,null," "]
[null,null,null,null,null,null,null,null,null,null,null,null,null,null,null,null,null,"VFD: Kitchen EF (Restaurant)",null,null," "]
[]
[null,null,null,null,null,null,null,null,null,null,null,null,null,null,null,null,null,"CAOther_List2[EquipmentType]","List2[Title]","List2[Description]","List2[Inputs,CSV]"]
[null,null,null,null,null,null,null,null,null,null,null,null,null,null,null,null,null,{"$f":"I112","v":"Additional Receiver Tank Capacity"},null,null,null," "]
[null,null,null,null,null,null,null,null,null,null,null,null,null,null,null,null,null,"Desiccant Dryer w/ Blower Purge",null,null,null," "]
[null,null,null,null,null,null,null,null,null,null,null,null,null,null,null,null,null,"Desiccant Dryer w/ External Heating",null,null,null," "]
[null,null,null,null,null,null,null,null,null,null,null,null,null,null,null,null,null,"Low Pressure-Drop Filter",null,null,null," "]
[null,null,null,null,null,null,null,null,null,null,null,null,null,null,null,null,null,"Refrigerated Cycling Dryer",null,null,null," "]
[null,null,null,null,null,null,null,null,null,null,null,null,null,null,null,null,null,"VFD-Controlled Compressor","Oil Injected?","Is this compressor oil-injected (Yes) or oil-less (No)?","Yes,No"," "]
[null,null,null,null,null,null,null,null,null,null,null,null,null,null,null,null,null,"Zero-Loss Condensate Drain",null,null,null," "]
[]
[null,null,null,null,null,null,null,null,null,null,null,null,null,null,null,null,null,"CAOther_Size[EquipmentType]","Size[Title]","Size[Description]"," "]
[null,null,null,null,null,null,null,null,null,null,null,null,null,null,null,null,null,{"$f":"I112","v":"Additional Receiver Tank Capacity"},"Gal","Capacity (Gallons)"," "]
[null,null,null,null,null,null,null,null,null,null,null,null,null,null,null,null,null,"Desiccant Dryer w/ Blower Purge","SCFM","Size (SCFM), ≤1,000SCFM Required"," "]
[null,null,null,null,null,null,null,null,null,null,null,null,null,null,null,null,null,"Desiccant Dryer w/ External Heating","SCFM","Size (SCFM), ≤1,000SCFM Required"," "]
[null,null,null,null,null,null,null,null,null,null,null,null,null,null,null,null,null,"Low Pressure-Drop Filter","SCFM","Size (SCFM), ≤1,000SCFM Required"," "]
[null,null,null,null,null,null,null,null,null,null,null,null,null,null,null,null,null,"Refrigerated Cycling Dryer","SCFM","Size (SCFM), ≤1,000SCFM Required"," "]
[null,null,null,null,null,null,null,null,null,null,null,null,null,null,null,null,null,"VFD-Controlled Compressor","HP","Size (Horsepower), ≤75HP Required"," "]
[null,null,null,null,null,null,null,null,null,null,null,null,null,null,null,null,null,"Zero-Loss Condensate Drain","SCFM","Size (SCFM)"," "]
[]
[null,null,null,null,null,null,null,null,null,null,null,null,null,null,null,null,null,"CAOther_Input2[EquipmentType]","Input2[Title]","Input2[Description]"," "]
[null,null,null,null,null,null,null,null,null,null,null,null,null,null,null,null,null,{"$f":"I112","v":"Additional Receiver Tank Capacity"},"CFM","System flowrate (CFM), Note: ≥2.0 T_Gal/CFM Required"," "]
[null,null,null,null,null,null,null,null,null,null,null,null,null,null,null,null,null,{"$f":"I113","v":"Desiccant Dryer w/ Blower Purge"},null,null," "]
[null,null,null,null,null,null,null,null,null,null,null,null,null,null,null,null,null,"Desiccant Dryer w/ External Heating",null,null," "]
[null,null,null,null,null,null,null,null,null,null,null,null,null,null,null,null,null,"Low Pressure-Drop Filter","Lifetime","Useful Lifetime (Years) ≥5 Years Required"," "]
[null,null,null,null,null,null,null,null,null,null,null,null,null,null,null,null,null,"Refrigerated Cycling Dryer",null,null," "]
[null,null,null,null,null,null,null,null,null,null,null,null,null,null,null,null,null,"VFD-Controlled Compressor",null,null," "]
[null,null,null,null,null,null,null,null,null,null,null,null,null,null,null,null,null,"Zero-Loss Condensate Drain",null,null," "]
[]
[null,null,null,null,null,null,null,null,null,null,null,null,null,null,null,null,null,"CAOther_Input3[EquipmentType]","Input3[Title]","Input3[Description]"," "]
[null,null,null,null,null,null,null,null,null,null,null,null,null,null,null,null,null,{"$f":"I112","v":"Additional Receiver Tank Capacity"},"T_Gal","Total system capacity (Gallons), Note: ≥2.0 T_Gal/CFM Required"," "]
[null,null,null,null,null,null,null,null,null,null,null,null,null,null,null,null,null,{"$f":"I113","v":"Desiccant Dryer w/ Blower Purge"},null,null," "]
[null,null,null,null,null,null,null,null,null,null,null,null,null,null,null,null,null,"Desiccant Dryer w/ External Heating",null,null," "]
[null,null,null,null,null,null,null,null,null,null,null,null,null,null,null,null,null,"Low Pressure-Drop Filter","HP","Compressor HP, >25HP Required"," "]
[null,null,null,null,null,null,null,null,null,null,null,null,null,null,null,null,null,"Refrigerated Cycling Dryer",null,null," "]
[null,null,null,null,null,null,null,null,null,null,null,null,null,null,null,null,null,"VFD-Controlled Compressor",null,null," "]
[null,null,null,null,null,null,null,null,null,null,null,null,null,null,null,null,null,"Zero-Loss Condensate Drain",null,null," "]
[]
[null,null,null,null,null,null,null,null,null,null,null,null,null,null,null,null,null,"ITDCOther_List2[EquipmentType]","List2[Title]","List2[Description]","List2[Inputs,CSV]"]
[null,null,null,null,null,null,null,null,null,null,null,null,null,null,null,null,null,{"$f":"I126","v":"Computer Power Management"},null,null,null," "]
[null,null,null,null,null,null,null,null,null,null,null,null,null,null,null,null,null,{"$f":"I127","v":"EC Motor: CRAC"},null,null,null," "]
[null,null,null,null,null,null,null,null,null,null,null,null,null,null,null,null,null,{"$f":"I128","v":"EC Motor: CRAH"},null,null,null," "]
[null,null,null,null,null,null,null,null,null,null,null,null,null,null,null,null,null,{"$f":"I129","v":"Server Virtualization"},null,null,null," "]
[null,null,null,null,null,null,null,null,null,null,null,null,null,null,null,null,null,{"$f":"I130","v":"High-Efficiency Servers"},{"$f":"IF(ISNUMBER(SEARCH(\"Retro\",Project_Type,1)),\"Replacement?\",\"\")","v":"Replacement?"},{"$f":"IF(ISNUMBER(SEARCH(\"Retro\",Project_Type,1)),\"Are these servers replacing existing servers?\",\"\")","v":"Are these servers replacing existing servers?"},{"$f":"IF(ISNUMBER(SEARCH(\"Retro\",Project_Type,1)),\"Yes,No\",\"\")","v":"Yes,No"}," "]
[]
[null,null,null,null,null,null,null,null,null,null,null,null,null,null,null,null,null,"ITDCOther_Size[EquipmentType]","Size[Title]","Size[Description]"," "]
[null,null,null,null,null,null,null,null,null,null,null,null,null,null,null,null,null,{"$f":"I126","v":"Computer Power Management"},null,null," "]
[null,null,null,null,null,null,null,null,null,null,null,null,null,null,null,null,null,{"$f":"I127","v":"EC Motor: CRAC"},"HP","Size (Horsepower)"," "]
[null,null,null,null,null,null,null,null,null,null,null,null,null,null,null,null,null,{"$f":"I128","v":"EC Motor: CRAH"},"HP","Size (Horsepower)"," "]
[null,null,null,null,null,null,null,null,null,null,null,null,null,null,null,null,null,{"$f":"I129","v":"Server Virtualization"},null,null," "]
[null,null,null,null,null,null,null,null,null,null,null,null,null,null,null,null,null,{"$f":"I130","v":"High-Efficiency Servers"},null,null," "]
[]
[null,null,null,null,null,null,null,null,null,null,null,null,null,null,null,null,null,"ITDCOther_Input1[EquipmentType]","Input1[Title]","Input1[Description]"," "]
[null,null,null,null,null,null,null,null,null,null,null,null,null,null,null,null,null,{"$f":"I126","v":"Computer Power Management"},"Contract Length","Contract Length (Years), ≥6 Years Required"," "]
[null,null,null,null,null,null,null,null,null,null,null,null,null,null,null,null,null,{"$f":"I127","v":"EC Motor: CRAC"},null,null," "]
[null,null,null,null,null,null,null,null,null,null,null,null,null,null,null,null,null,{"$f":"I128","v":"EC Motor: CRAH"},null,null," "]
[null,null,null,null,null,null,null,null,null,null,null,null,null,null,null,null,null,{"$f":"I129","v":"Server Virtualization"},"Servers Removed","Removed as part of this measure"," "]
[null,null,null,null,null,null,null,null,null,null,null,null,null,null,null,null,null,{"$f":"I130","v":"High-Efficiency Servers"},"Servers Installed","Installed as part of this measure"," "]
[]
[null,null,null,null,null,null,null,null,null,null,null,null,null,null,null,null,null,"ITDCOther_Input2[EquipmentType]","Input2[Title]","Input2[Description]"," "]
[null,null,null,null,null,null,null,null,null,null,null,null,null,null,null,null,null,{"$f":"I126","v":"Computer Power Management"},null,null," "]
[null,null,null,null,null,null,null,null,null,null,null,null,null,null,null,null,null,{"$f":"I127","v":"EC Motor: CRAC"},null,null," "]
[null,null,null,null,null,null,null,null,null,null,null,null,null,null,null,null,null,{"$f":"I128","v":"EC Motor: CRAH"},null,null," "]
[null,null,null,null,null,null,null,null,null,null,null,null,null,null,null,null,null,{"$f":"I129","v":"Server Virtualization"},null,null," "]
[null,null,null,null,null,null,null,null,null,null,null,null,null,null,null,null,null,{"$f":"I130","v":"High-Efficiency Servers"},{"$f":"IF(ISNUMBER(SEARCH(\"Retro\",Project_Type,1)),\"Servers Removed\",\"\")","v":"Servers Removed"},{"$f":"IF(ISNUMBER(SEARCH(\"Retro\",Project_Type,1)),\"Removed as part of this measure\",\"\")","v":"Removed as part of this measure"}," "]
[]
[null,null,null,null,null,null,null,null,null,null,null,null,null,null,null,null,null,"Misc_List2[EquipmentType]","List2[Title]","List2[Description]","List2[Inputs,CSV]"]
[null,null,null,null,null,null,null,null,null,null,null,null,null,null,null,null,null,{"$f":"I133","v":"Ultraviolet Germicidal Irradiation"},null,null,null," "]
[null,null,null,null,null,null,null,null,null,null,null,null,null,null,null,null,null,"Heat Pump Water Heater",{"$f":"IF(ProjectType=\"New Construction\",\"\",\"Existing Fuel\")","v":"Existing Fuel"},{"$f":"IF(ProjectType=\"New Construction\",\"\",\"Replaced Fuel Type\")","v":"Replaced Fuel Type"},{"$f":"IF(ProjectType=\"New Construction\",\"\",\"Gas,Electric\")","v":"Gas,Electric"}," "]
[null,null,null,null,null,null,null,null,null,null,null,null,null,null,null,null,null,"VFD: Pool Pump",null,null,null," "]
[null,null,null,null,null,null,null,null,null,null,null,null,null,null,null,null,null,"Cool Roof","Roof Type","The type of roof construction","Above-Deck,Attic,Metal Building,Other"," "]
[null,null,null,null,null,null,null,null,null,null,null,null,null,null,null,null,null,"Roof Insulation","Roof Type","The type of roof construction","Above-Deck,Attic,Metal Building,Other"," "]
[null,null,null,null,null,null,null,null,null,null,null,null,null,null,null,null,null,"Window Film","Exposure","Window exposure (Cannot be ±45° due North)","North,Northeast,East,Southeast,South,Southwest,West,Northwest"," "]
[null,null,null,null,null,null,null,null,null,null,null,null,null,null,null,null,null,"Shade Screen","Exposure","Window exposure (Cannot be ±45° due North)","North,Northeast,East,Southeast,South,Southwest,West,Northwest"," "]
[]
[null,null,null,null,null,null,null,null,null,null,null,null,null,null,null,null,null,"Misc_List3[EquipmentType]","List3[Title]","List3[Description]","List3[Inputs,CSV]"]
[null,null,null,null,null,null,null,null,null,null,null,null,null,null,null,null,null,{"$f":"I133","v":"Ultraviolet Germicidal Irradiation"},{"$f":"IF('Customer Information'!$AU$11=\"SRP Representative\",\"Waiver Approval\",\"\")","v":""},{"$f":"IF('Customer Information'!$AU$11=\"SRP Representative\",\"Customer/Trade Ally has received wattage waiver approval from their outreach coordinator\",\"\")","v":""},{"$f":"IF('Customer Information'!$AU$11=\"SRP Representative\",\"Yes,No\",\"\")","v":""}," "]
[null,null,null,null,null,null,null,null,null,null,null,null,null,null,null,null,null,"Heat Pump Water Heater",null,null,null," "]
[null,null,null,null,null,null,null,null,null,null,null,null,null,null,null,null,null,"VFD: Pool Pump",null,null,null," "]
[null,null,null,null,null,null,null,null,null,null,null,null,null,null,null,null,null,"Cool Roof","Material","The cool roof material","Spray-On,Paint-On,Membrane"," "]
[null,null,null,null,null,null,null,null,null,null,null,null,null,null,null,null,null,"Roof Insulation",null,null,null," "]
[null,null,null,null,null,null,null,null,null,null,null,null,null,null,null,null,null,"Window Film","WindowType","Window Tint and Number of Panes","Clear/Single,Colored/Single,Clear/Double,Colored/Double"," "]
[null,null,null,null,null,null,null,null,null,null,null,null,null,null,null,null,null,"Shade Screen","WindowType","Window Tint and Number of Panes","Clear/Single,Colored/Single,Clear/Double,Colored/Double"," "]
[]
[null,null,null,null,null,null,null,null,null,null,null,null,null,null,null,null,null,"Misc_Size[EquipmentType]","Size[Title]","Size[Description]"," "]
[null,null,null,null,null,null,null,null,null,null,null,null,null,null,null,null,null,{"$f":"I133","v":"Ultraviolet Germicidal Irradiation"},"Tons","HVAC Unitary Size, Nominal Tons"," "]
[null,null,null,null,null,null,null,null,null,null,null,null,null,null,null,null,null,"Heat Pump Water Heater",null,null," "]
[null,null,null,null,null,null,null,null,null,null,null,null,null,null,null,null,null,"VFD: Pool Pump","HP","Size (Horsepower), ≤25HP Required"," "]
[null,null,null,null,null,null,null,null,null,null,null,null,null,null,null,null,null,"Cool Roof","Sq. Ft.","Roof Area, Square Feet"," "]
[null,null,null,null,null,null,null,null,null,null,null,null,null,null,null,null,null,"Roof Insulation","Sq. Ft.","Roof Area, Square Feet"," "]
[null,null,null,null,null,null,null,null,null,null,null,null,null,null,null,null,null,"Window Film","Sq. Ft.","Window Area, Square Feet"," "]
[null,null,null,null,null,null,null,null,null,null,null,null,null,null,null,null,null,"Shade Screen","Sq. Ft.","Window Area, Square Feet"," "]
[]
[null,null,null,null,null,null,null,null,null,null,null,null,null,null,null,null,null,"Misc_Input1[EquipmentType]","Input1[Title]","Input1[Description]"," "]
[null,null,null,null,null,null,null,null,null,null,null,null,null,null,null,null,null,{"$f":"I133","v":"Ultraviolet Germicidal Irradiation"},"Watts","Lamp Wattage per Unit"," "]
[null,null,null,null,null,null,null,null,null,null,null,null,null,null,null,null,null,"Heat Pump Water Heater","EF","Energy Factor (EF), ≥2.35 Required"," "]
[null,null,null,null,null,null,null,null,null,null,null,null,null,null,null,null,null,"VFD: Pool Pump",null,null," "]
[null,null,null,null,null,null,null,null,null,null,null,null,null,null,null,null,null,"Cool Roof",{"$f":"IF(ISNUMBER(SEARCH(\"Retro\",Project_Type,1)),\"Existing Reflectance\",\"\")","v":"Existing Reflectance"},{"$f":"IF(ISNUMBER(SEARCH(\"Retro\",Project_Type,1)),\"The reflectance rating characterized by (1-Absorptance)\",\"\")","v":"The reflectance rating characterized by (1-Absorptance)"}," "]
[null,null,null,null,null,null,null,null,null,null,null,null,null,null,null,null,null,"Roof Insulation",{"$f":"IF(ISNUMBER(SEARCH(\"Retro\",Project_Type,1)),\"Existing R-Value\",\"\")","v":"Existing R-Value"},{"$f":"IF(ISNUMBER(SEARCH(\"Retro\",Project_Type,1)),\"Insulation rating, R-Value\",\"\")","v":"Insulation rating, R-Value"}," "]
[null,null,null,null,null,null,null,null,null,null,null,null,null,null,null,null,null,"Window Film","SHGC","Solar Heat Gain Coefficient (SHGC)"," "]
[null,null,null,null,null,null,null,null,null,null,null,null,null,null,null,null,null,"Shade Screen","SHGC","Solar Heat Gain Coefficient (SHGC)"," "]
[]
[null,null,null,null,null,null,null,null,null,null,null,null,null,null,null,null,null,"Misc_Input2[EquipmentType]","Input2[Title]","Input2[Description]"," "]
[null,null,null,null,null,null,null,null,null,null,null,null,null,null,null,null,null,{"$f":"I133","v":"Ultraviolet Germicidal Irradiation"},null,null," "]
[null,null,null,null,null,null,null,null,null,null,null,null,null,null,null,null,null,"Heat Pump Water Heater",null,null," "]
[null,null,null,null,null,null,null,null,null,null,null,null,null,null,null,null,null,"VFD: Pool Pump",null,null," "]
[null,null,null,null,null,null,null,null,null,null,null,null,null,null,null,null,null,"Cool Roof","Installed Reflectance","The reflectance rating characterized by (1-Absorptance)"," "]
[null,null,null,null,null,null,null,null,null,null,null,null,null,null,null,null,null,"Roof Insulation","Installed R-Value","Insulation rating, R-Value"," "]
[null,null,null,null,null,null,null,null,null,null,null,null,null,null,null,null,null,"Window Film",null,null," "]
[null,null,null,null,null,null,null,null,null,null,null,null,null,null,null,null,null,"Shade Screen",null,null," "]
[]
[null,null,null,null,null,null,null,null,null,null,null,null,null,null,null,null,null,"Misc_Input3[EquipmentType]","Input3[Title]","Input3[Description]"," "]
[null,null,null,null,null,null,null,null,null,null,null,null,null,null,null,null,null,{"$f":"I133","v":"Ultraviolet Germicidal Irradiation"},null,null," "]
[null,null,null,null,null,null,null,null,null,null,null,null,null,null,null,null,null,{"$f":"I134","v":"Heat Pump Water Heater"},null,null," "]
[null,null,null,null,null,null,null,null,null,null,null,null,null,null,null,null,null,"VFD: Pool Pump",null,null," "]
[null,null,null,null,null,null,null,null,null,null,null,null,null,null,null,null,null,"Cool Roof",{"$f":"IF(ISNUMBER(SEARCH(\"Retro\",Project_Type,1)),\"Existing Emissivity\",\"\")","v":"Existing Emissivity"},{"$f":"IF(ISNUMBER(SEARCH(\"Retro\",Project_Type,1)),\"The rated ratio of thermal energy emitted by the material\",\"\")","v":"The rated ratio of thermal energy emitted by the material"}," "]
[null,null,null,null,null,null,null,null,null,null,null,null,null,null,null,null,null,"Roof Insulation",null,null," "]
[null,null,null,null,null,null,null,null,null,null,null,null,null,null,null,null,null,"Window Film",null,null," "]
[null,null,null,null,null,null,null,null,null,null,null,null,null,null,null,null,null,"Shade Screen",null,null," "]
[]
[null,null,null,null,null,null,null,null,null,null,null,null,null,null,null,null,null,"Misc_Input4[EquipmentType]","Input4[Title]","Input4[Description]"," "]
[null,null,null,null,null,null,null,null,null,null,null,null,null,null,null,null,null,{"$f":"I133","v":"Ultraviolet Germicidal Irradiation"},null,null," "]
[null,null,null,null,null,null,null,null,null,null,null,null,null,null,null,null,null,{"$f":"I134","v":"Heat Pump Water Heater"},null,null," "]
[null,null,null,null,null,null,null,null,null,null,null,null,null,null,null,null,null,"VFD: Pool Pump",null,null," "]
[null,null,null,null,null,null,null,null,null,null,null,null,null,null,null,null,null,"Cool Roof","Installed Emissivity","The rated ratio of thermal energy emitted by the material"," "]
[null,null,null,null,null,null,null,null,null,null,null,null,null,null,null,null,null,"Roof Insulation",null,null," "]
[null,null,null,null,null,null,null,null,null,null,null,null,null,null,null,null,null,"Window Film",null,null," "]
[null,null,null,null,null,null,null,null,null,null,null,null,null,null,null,null,null,"Shade Screen",null,null," "]

{"sheet":"Equipment Lookup Tables","index":18,"n_rows":444,"n_cols":40,"rows_kept":444,"cut":false,"hidden":true,"merged":[[353,6,357,6],[3,1,60,1],[61,1,118,1],[119,1,124,1],[127,1,165,1],[125,1,126,1],[170,1,220,1],[221,1,271,1],[409,3,413,3],[414,3,418,3],[366,1,370,1],[325,1,342,1],[276,1,290,1],[306,1,320,1],[343,1,365,1],[371,1,373,1],[291,1,305,1]]}
[]
[null,null,"Unitary Lookup Values",2,3,4,5,6,7,8,9,10,11,12,13,14,15,16,17,18,19,20,21,22,23,24,25,26,27,28,29,30,31,32,33,34,35,36,37,38]
[null,null,"ID","Equipment Code","Heat Rejection","Unit","Size","Size ID","Heating Type                           (ER = Elect Res or None)","Type","Code Minimum\nSEER/IEER","Code Minimum\nSEER/IEER2","Code Minimum\nEER","Code Minimum\nEER2","Code Minimum\nHSPF/COP1","Code Minimum\nHSPF/COP2","Tier 1\nSEER/IEER","Tier 1\nSEER/IEER2","Tier 1\nEER","Tier 1\nEER2","Tier 1\nHSPF/COP1","Tier 1\nHSPF/COP2","Tier 2\nSEER/IEER","Tier 2\nSEER/IEER2","Tier 2\nEER","Tier 2\nEER2","Tier 2\nHSPF/COP1","Tier 2\nHSPF/COP2","Tier 3\nSEER/IEER","Tier 3\nSEER/IEER2","Tier 3\nEER","Tier 3\nEER2","Tier 3\nHSPF/COP1","Tier 3\nHSPF/COP2","Tier 1\nRebate","Tier 2\nRebate","Tier 3 Rebate","Tier 1\nIncr. Cost","Tier 2\nIncr. Cost","Tier 3\nIncr. Cost"]
[null,"Elect Res / None","Air-CooledAC - PackageER1","AC.ER/N.ACP.1","Air-Cooled","AC - ","<65000",1,"ER","Package",14,13.4,11.6,10.6,0,0,15.8,15.2,12,11.5,0,0,16.600000000000001,15.2,12.2,11.5,0,0,16.600000000000001,15.2,12.2,11.5,0,0,65,85,85,250,450,450]
[null,null,"Air-CooledAC - SplitER0","AC.ER/N.ACS.0","Air-Cooled","AC - ","<45000",0,"ER","Split",15,14.3,12.2,11.7,0,0,16,15.2,12.5,12,0,0,16.2,16,12.5,12,0,0,0,0,0,0,0,0,65,85,85,250,450,450]
[null,0,"Air-CooledAC - SplitER1","AC.ER/N.ACS.1","Air-Cooled","AC - ",">45000 & <65000",1,"ER","Split",14.5,13.8,11.6,11.2,0,0,16,15.2,12.5,12,0,0,16.2,16,12.5,12,0,0,0,0,0,0,0,0,65,85,85,250,450,450]
[null,0,"Air-CooledAC - PackageER2","AC.ER/N.ACP.2","Air-Cooled","AC - ",">65000 & <135000",2,"ER","Package",14.8,0,11.2,0,0,0,16.3,0,12.2,0,0,0,18,0,12.7,0,0,0,19.2,0,12.7,0,0,0,65,85,85,150,300,300]
[null,0,"Air-CooledAC - SplitER2","AC.ER/N.ACS.2","Air-Cooled","AC - ",">65000 & <135000",2,"ER","Split",14.8,0,11.2,0,0,0,16.3,0,12.2,0,0,0,18,0,12.7,0,0,0,19.2,0,12.7,0,0,0,65,85,85,150,300,300]
[null,0,"Air-CooledAC - PackageER3","AC.ER/N.ACP.3","Air-Cooled","AC - ",">135000 & <240000",3,"ER","Package",14.2,0,11,0,0,0,15.6,0,12.2,0,0,0,17,0,12.2,0,0,0,18.5,0,12.2,0,0,0,65,85,85,150,300,300]
[null,0,"Air-CooledAC - SplitER3","AC.ER/N.ACS.3","Air-Cooled","AC - ",">135000 & <240000",3,"ER","Split",14.2,0,11,0,0,0,15.6,0,12.2,0,0,0,17,0,12.2,0,0,0,18.5,0,12.2,0,0,0,65,85,85,150,300,300]
[null,0,"Air-CooledAC - PackageER4","AC.ER/N.ACP.4","Air-Cooled","AC - ",">240000 & <760000",4,"ER","Package",13.2,0,10,0,0,0,14.5,0,10.5,0,0,0,15.8,0,10.8,0,0,0,17.100000000000001,0,10.8,0,0,0,65,85,85,150,250,250]
[null,0,"Air-CooledAC - SplitER4","AC.ER/N.ACS.4","Air-Cooled","AC - ",">240000 & <760000",4,"ER","Split",13.2,0,10,0,0,0,14.5,0,10.5,0,0,0,15.8,0,10.8,0,0,0,17.100000000000001,0,10.8,0,0,0,65,85,85,150,250,250]
[null,0,"Air-CooledAC - PackageER5","AC.ER/N.ACP.5","Air-Cooled","AC - ",">760000",5,"ER","Package",13.2,0,10,0,0,0,13.8,0,9.9,0,0,0,15.1,0,10.4,0,0,0,0,0,0,0,0,0,65,85,85,150,250,250]
[null,0,"Air-CooledAC - SplitER5","AC.ER/N.ACS.5","Air-Cooled","AC - ",">760000",5,"ER","Split",13.2,0,10,0,0,0,13.8,0,9.9,0,0,0,15.1,0,10.4,0,0,0,0,0,0,0,0,0,65,85,85,150,250,250]
[null,0,"Air-CooledHP - PackageER1","HP.ER/N.ACP.1","Air-Cooled","HP - ","<65000",1,"ER","Package",14,13.4,11.2,10.6,8.1999999999999993,6.9,16,15.2,11,10.6,8.5,7.2,16.600000000000001,16,11.4,11,9.1999999999999993,8,16.600000000000001,16,11.4,11,9.1999999999999993,8,110,135,135,150,300,300]
[null,null,"Air-CooledHP - SplitER0","HP.ER/N.ACS.0","Air-Cooled","HP - ","<45000",0,"ER","Split",15,14.3,12.2,11.7,8.8000000000000007,7.5,16,15.2,12.2,11.7,9.1999999999999993,7.8,17.899999999999999,17,12.5,12,9.8999999999999986,8.3999999999999986,17.899999999999999,17,12.5,12,9.8999999999999986,8.3999999999999986,110,135,135,150,300,300]
[null,0,"Air-CooledHP - SplitER1","HP.ER/N.ACS.1","Air-Cooled","HP - ",">45000 & <65000",1,"ER","Split",14.5,13.8,11.2,11.2,8.8000000000000007,7.5,16,15.2,12.2,11.7,9.1999999999999993,7.8,17.899999999999999,17,12.5,12,9.8999999999999986,8.3999999999999986,17.899999999999999,17,12.5,12,9.8999999999999986,8.3999999999999986,110,135,135,150,300,300]
[null,0,"Air-CooledHP - PackageER2","HP.ER/N.ACP.2","Air-Cooled","HP - ",">65000 & <135000",2,"ER","Package",14.1,0,11,0,3.4,0,15.3,0,11.799999999999999,0,3.5,0,17.600000000000001,0,11.8,0,3.6,0,17.600000000000001,0,11.8,0,3.6,0,110,135,135,150,300,300]
[null,0,"Air-CooledHP - SplitER2","HP.ER/N.ACS.2","Air-Cooled","HP - ",">65000 & <135000",2,"ER","Split",14.1,0,11,0,3.4,0,15.3,0,11.799999999999999,0,3.5,0,17.600000000000001,0,11.8,0,3.6,0,17.600000000000001,0,11.8,0,3.6,0,110,135,135,150,300,300]
[null,0,"Air-CooledHP - PackageER3","HP.ER/N.ACP.3","Air-Cooled","HP - ",">135000 & <240000",3,"ER","Package",13.5,0,10.6,0,3.3,0,14.5,0,11.1,0,3.4,0,16.8,0,11.1,0,3.5,0,16.8,0,11.1,0,3.5,0,110,135,135,150,250,250]
[null,0,"Air-CooledHP - SplitER3","HP.ER/N.ACS.3","Air-Cooled","HP - ",">135000 & <240000",3,"ER","Split",13.5,0,10.6,0,3.3,0,14.5,0,11.1,0,3.4,0,16.8,0,11.1,0,3.5,0,16.8,0,11.1,0,3.5,0,110,135,135,150,250,250]
[null,0,"Air-CooledHP - PackageER4","HP.ER/N.ACP.4","Air-Cooled","HP - ",">240000 & <760000",4,"ER","Package",12.5,0,9.5,0,3.2,0,13.5,0,13.3,0,3.3,0,15.6,0,10.3,0,3.4,0,15.6,0,10.3,0,3.4,0,110,135,135,150,250,250]
[null,0,"Air-CooledHP - SplitER4","HP.ER/N.ACS.4","Air-Cooled","HP - ",">240000 & <760000",4,"ER","Split",12.5,0,9.5,0,3.2,0,13.5,0,10.3,0,3.3,0,15.6,0,10.3,0,3.4,0,15.6,0,10.3,0,3.4,0,110,135,135,150,250,250]
[null,0,"Air-CooledHP - PackageER5","HP.ER/N.ACP.5","Air-Cooled","HP - ",">760000",5,"ER","Package",12.5,0,9.5,0,3.2,0,13.5,0,10.3,0,3.3,0,15.6,0,10.3,0,3.4,0,15.6,0,10.3,0,3.4,0,110,135,135,150,250,250]
[null,0,"Air-CooledHP - SplitER5","HP.ER/N.ACS.5","Air-Cooled","HP - ",">760000",5,"ER","Split",12.5,0,9.5,0,3.2,0,13.5,0,10.3,0,3.3,0,15.6,0,10.3,0,3.4,0,15.6,0,10.3,0,3.4,0,110,135,135,150,250,250]
[null,0,"Water-CooledAC - PackageER0","AC.ER/N.WCP.0","Water-Cooled","AC - ","<17000",0,"ER","Package",12.3,0,12.1,0,0,0,0,0,14,0,0,0,0,0,14,0,0,0,0,0,14,0,0,0,75,75,75,700,700,700]
[null,0,"Water-CooledAC - SplitER0","AC.ER/N.WCS.0","Water-Cooled","AC - ","<17000",0,"ER","Split",12.3,0,12.1,0,0,0,0,0,14,0,0,0,0,0,14,0,0,0,0,0,14,0,0,0,75,75,75,700,700,700]
[null,0,"Water-CooledAC - PackageER1","AC.ER/N.WCP.1","Water-Cooled","AC - ",">17000 & <65000",1,"ER","Package",12.3,0,12.1,0,0,0,0,0,14,0,0,0,0,0,14,0,0,0,0,0,14,0,0,0,75,75,75,700,700,700]
[null,0,"Water-CooledAC - SplitER1","AC.ER/N.WCS.1","Water-Cooled","AC - ",">17000 & <65000",1,"ER","Split",12.3,0,12.1,0,0,0,0,0,14,0,0,0,0,0,14,0,0,0,0,0,14,0,0,0,75,75,75,700,700,700]
[null,0,"Water-CooledAC - PackageER2","AC.ER/N.WCP.2","Water-Cooled","AC - ",">65000 & <135000",2,"ER","Package",13.9,0,12.1,0,0,0,15.3,0,14,0,0,0,15.3,0,14,0,0,0,15.3,0,14,0,0,0,75,75,75,700,700,700]
[null,0,"Water-CooledAC - SplitER2","AC.ER/N.WCS.2","Water-Cooled","AC - ",">65000 & <135000",2,"ER","Split",13.9,0,12.1,0,0,0,15.3,0,14,0,0,0,15.3,0,14,0,0,0,15.3,0,14,0,0,0,75,75,75,700,700,700]
[null,0,"Water-CooledAC - PackageER3","AC.ER/N.WCP.3","Water-Cooled","AC - ",">135000 & <240000",3,"ER","Package",13.9,0,12.5,0,0,0,14.8,0,14,0,0,0,14.8,0,14,0,0,0,14.8,0,14,0,0,0,75,75,75,700,700,700]
[null,0,"Water-CooledAC - SplitER3","AC.ER/N.WCS.3","Water-Cooled","AC - ",">135000 & <240000",3,"ER","Split",13.9,0,12.5,0,0,0,14.8,0,14,0,0,0,14.8,0,14,0,0,0,14.8,0,14,0,0,0,75,75,75,700,700,700]
[null,0,"Water-CooledAC - PackageER4","AC.ER/N.WCP.4","Water-Cooled","AC - ",">240000 & <760000",4,"ER","Package",13.6,0,12.4,0,0,0,14.8,0,14,0,0,0,14.8,0,14,0,0,0,14.8,0,14,0,0,0,75,75,75,700,700,700]
[null,0,"Water-CooledAC - SplitER4","AC.ER/N.WCS.4","Water-Cooled","AC - ",">240000 & <760000",4,"ER","Split",13.6,0,12.4,0,0,0,14.8,0,14,0,0,0,14.8,0,14,0,0,0,14.8,0,14,0,0,0,75,75,75,700,700,700]
[null,0,"Water-CooledAC - PackageER5","AC.ER/N.WCP.5","Water-Cooled","AC - ",">760000",5,"ER","Package",13.5,0,12.2,0,0,0,14.8,0,14,0,0,0,14.8,0,14,0,0,0,14.8,0,14,0,0,0,75,75,75,700,700,700]
[null,0,"Water-CooledAC - SplitER5","AC.ER/N.WCS.5","Water-Cooled","AC - ",">760000",5,"ER","Split",13.5,0,12.2,0,0,0,14.8,0,14,0,0,0,14.8,0,14,0,0,0,14.8,0,14,0,0,0,75,75,75,700,700,700]
[null,0,"Water-CooledHP - PackageER0","HP.ER/N.WCP.0","Water-Cooled","HP - ","<17000",0,"ER","Package",0,0,12.2,0,4.3,0,0,0,14,0,4.5999999999999996,0,0,0,14,0,4.5999999999999996,0,0,0,14,0,4.5999999999999996,0,75,75,75,700,700,700]
[null,0,"Water-CooledHP - SplitER0","HP.ER/N.WCP.0","Water-Cooled","HP - ","<17000",0,"ER","Split",0,0,12.2,0,4.3,0,0,0,14,0,4.5999999999999996,0,0,0,14,0,4.5999999999999996,0,0,0,14,0,4.5999999999999996,0,75,75,75,700,700,700]
[null,0,"Water-CooledHP - PackageER1","HP.ER/N.WCP.1","Water-Cooled","HP - ",">17000 & <65000",1,"ER","Package",0,0,13,0,4.3,0,0,0,14,0,4.5999999999999996,0,0,0,14,0,4.5999999999999996,0,0,0,14,0,4.5999999999999996,0,75,75,75,700,700,700]
[null,0,"Water-CooledHP - SplitER1","HP.ER/N.WCS.1","Water-Cooled","HP - ",">17000 & <65000",1,"ER","Split",0,0,13,0,4.3,0,0,0,14,0,4.5999999999999996,0,0,0,14,0,4.5999999999999996,0,0,0,14,0,4.5999999999999996,0,75,75,75,700,700,700]
[null,0,"Water-CooledHP - PackageER2","HP.ER/N.WCP.2","Water-Cooled","HP - ",">65000 & <135000",2,"ER","Package",0,0,13,0,4.3,0,0,0,14,0,4.5999999999999996,0,0,0,14,0,4.5999999999999996,0,0,0,14,0,4.5999999999999996,0,75,75,75,700,700,700]
[null,0,"Water-CooledHP - SplitER2","HP.ER/N.WCS.2","Water-Cooled","HP - ",">65000 & <135000",2,"ER","Split",0,0,13,0,4.3,0,0,0,14,0,4.5999999999999996,0,0,0,14,0,4.5999999999999996,0,0,0,14,0,4.5999999999999996,0,75,75,75,700,700,700]
[null,0,"Water-CooledHP - PackageER3","HP.ER/N.WCP.3","Water-Cooled","HP - ",">135000 & <240000",3,"ER","Package",0,0,13,0,4.3,0,0,0,14,0,4.5999999999999996,0,0,0,14,0,4.5999999999999996,0,0,0,14,0,4.5999999999999996,0,75,75,75,700,700,700]
[null,0,"Water-CooledHP - SplitER3","HP.ER/N.WCS.3","Water-Cooled","HP - ",">135000 & <240000",3,"ER","Split",0,0,13,0,4.3,0,0,0,14,0,4.5999999999999996,0,0,0,14,0,4.5999999999999996,0,0,0,14,0,4.5999999999999996,0,75,75,75,700,700,700]
[null,0,"Water-CooledHP - PackageER4","HP.ER/N.WCP.4","Water-Cooled","HP - ",">240000 & <760000",4,"ER","Package",0,0,13,0,4.3,0,0,0,14,0,4.5999999999999996,0,0,0,14,0,4.5999999999999996,0,0,0,14,0,4.5999999999999996,0,75,75,75,700,700,700]
[null,0,"Water-CooledHP - SplitER4","HP.ER/N.WCS.4","Water-Cooled","HP - ",">240000 & <760000",4,"ER","Split",0,0,13,0,4.3,0,0,0,14,0,4.5999999999999996,0,0,0,14,0,4.5999999999999996,0,0,0,14,0,4.5999999999999996,0,75,75,75,700,700,700]
[null,0,"Water-CooledHP - PackageER5","HP.ER/N.WCP.5","Water-Cooled","HP - ",">760000",5,"ER","Package",0,0,13,0,4.3,0,0,0,13.8,0,4.5999999999999996,0,0,0,13.8,0,4.5999999999999996,0,0,0,13.8,0,4.5999999999999996,0,75,75,75,700,700,700]
[null,0,"Water-CooledHP - SplitER5","HP.ER/N.WCS.5","Water-Cooled","HP - ",">760000",5,"ER","Split",0,0,13,0,4.3,0,0,0,13.8,0,4.5999999999999996,0,0,0,13.8,0,4.5999999999999996,0,0,0,13.8,0,4.5999999999999996,0,75,75,75,700,700,700]
[null,0,"Evap-CooledAC - PackageER0","AC.ER/N.ECP.0","Evap-Cooled","AC - ","<17000",0,"ER","Package",12.3,0,12.1,0,0,0,0,0,14,0,0,0,0,0,14,0,0,0,0,0,14,0,0,0,75,75,75,700,700,700]
[null,0,"Evap-CooledAC - SplitER0","AC.ER/N.ECS.0","Evap-Cooled","AC - ","<17000",0,"ER","Split",12.3,0,12.1,0,0,0,0,0,14,0,0,0,0,0,14,0,0,0,0,0,14,0,0,0,75,75,75,700,700,700]
[null,0,"Evap-CooledAC - PackageER1","AC.ER/N.ECP.1","Evap-Cooled","AC - ",">17000 & <65000",1,"ER","Package",12.3,0,12.1,0,0,0,0,0,14,0,0,0,0,0,14,0,0,0,0,0,14,0,0,0,75,75,75,700,700,700]
[null,0,"Evap-CooledAC - SplitER1","AC.ER/N.ECS.1","Evap-Cooled","AC - ",">17000 & <65000",1,"ER","Split",12.3,0,12.1,0,0,0,0,0,14,0,0,0,0,0,14,0,0,0,0,0,14,0,0,0,75,75,75,700,700,700]
[null,0,"Evap-CooledAC - PackageER2","AC.ER/N.ECP.2","Evap-Cooled","AC - ",">65000 & <135000",2,"ER","Package",12.3,0,12.1,0,0,0,15.3,0,14,0,0,0,15.3,0,14,0,0,0,15.3,0,14,0,0,0,75,75,75,700,700,700]
[null,0,"Evap-CooledAC - SplitER2","AC.ER/N.ECS.2","Evap-Cooled","AC - ",">65000 & <135000",2,"ER","Split",12.3,0,12.1,0,0,0,15.3,0,14,0,0,0,15.3,0,14,0,0,0,15.3,0,14,0,0,0,75,75,75,700,700,700]
[null,0,"Evap-CooledAC - PackageER3","AC.ER/N.ECP.3","Evap-Cooled","AC - ",">135000 & <240000",3,"ER","Package",12.2,0,12,0,0,0,14.3,0,13.5,0,0,0,14.3,0,13.5,0,0,0,14.3,0,13.5,0,0,0,75,75,75,700,700,700]
[null,0,"Evap-CooledAC - SplitER3","AC.ER/N.ECS.3","Evap-Cooled","AC - ",">135000 & <240000",3,"ER","Split",12.2,0,12,0,0,0,14.3,0,13.5,0,0,0,14.3,0,13.5,0,0,0,14.3,0,13.5,0,0,0,75,75,75,700,700,700]
[null,0,"Evap-CooledAC - PackageER4","AC.ER/N.ECP.4","Evap-Cooled","AC - ",">240000 & <760000",4,"ER","Package",12.1,0,11.9,0,0,0,14.3,0,13.5,0,0,0,14.3,0,13.5,0,0,0,14.3,0,13.5,0,0,0,75,75,75,700,700,700]
[null,0,"Evap-CooledAC - SplitER4","AC.ER/N.ECS.4","Evap-Cooled","AC - ",">240000 & <760000",4,"ER","Split",12.1,0,11.9,0,0,0,14.3,0,13.5,0,0,0,14.3,0,13.5,0,0,0,14.3,0,13.5,0,0,0,75,75,75,700,700,700]
[null,0,"Evap-CooledAC - PackageER5","AC.ER/N.ECP.5","Evap-Cooled","AC - ",">760000",5,"ER","Package",11.9,0,11.7,0,0,0,14.3,0,13.5,0,0,0,14.3,0,13.5,0,0,0,14.3,0,13.5,0,0,0,75,75,75,700,700,700]
[null,0,"Evap-CooledAC - SplitER5","AC.ER/N.ECS.5","Evap-Cooled","AC - ",">760000",5,"ER","Split",11.9,0,11.7,0,0,0,14.3,0,13.5,0,0,0,14.3,0,13.5,0,0,0,14.3,0,13.5,0,0,0,75,75,75,700,700,700]
[null,"Other","Air-CooledAC - PackageOther1","AC.OTHER.ACP.1","Air-Cooled","AC - ","<65000",1,"Other","Package",14,13.4,11.4,10.6,0,0,15.8,15.2,12,11.5,0,0,16.600000000000001,15.2,12.2,11.5,0,0,16.600000000000001,15.2,12.2,11.5,0,0,65,85,85,250,450,450]
[null,null,"Air-CooledAC - SplitOther0","AC.OTHER.ACS.0","Air-Cooled","AC - ","<45000",0,"Other","Split",15,14.3,12.2,11.7,0,0,16,15.2,12.5,12,0,0,16.8,16,12.5,12,0,0,0,0,0,0,0,0,65,85,85,250,450,450]
[null,0,"Air-CooledAC - SplitOther1","AC.OTHER.ACS.1","Air-Cooled","AC - ",">45000 & <65000",1,"Other","Split",14.5,13.8,11.4,11.2,0,0,16,15.2,12.5,12,0,0,16.8,16,12.5,12,0,0,0,0,0,0,0,0,65,85,85,250,450,450]
[null,0,"Air-CooledAC - PackageOther2","AC.OTHER.ACP.2","Air-Cooled","AC - ",">65000 & <135000",2,"Other","Package",14.6,0,11,0,0,0,16.100000000000001,0,12,0,0,0,17.8,0,12.5,0,0,0,19,0,12.5,0,0,0,65,85,85,150,300,300]
[null,0,"Air-CooledAC - SplitOther2","AC.OTHER.ACS.2","Air-Cooled","AC - ",">65000 & <135000",2,"Other","Split",14.6,0,11,0,0,0,16.100000000000001,0,12,0,0,0,17.8,0,12.5,0,0,0,19,0,15.5,0,0,0,65,85,85,150,300,300]
[null,0,"Air-CooledAC - PackageOther3","AC.OTHER.ACP.3","Air-Cooled","AC - ",">135000 & <240000",3,"Other","Package",14,0,10.8,0,0,0,15.4,0,12,0,0,0,16.8,0,12,0,0,0,18.3,0,12,0,0,0,65,85,85,150,300,300]
[null,0,"Air-CooledAC - SplitOther3","AC.OTHER.ACS.3","Air-Cooled","AC - ",">135000 & <240000",3,"Other","Split",14,0,10.8,0,0,0,15.4,0,12,0,0,0,16.8,0,12,0,0,0,18.3,0,12,0,0,0,65,85,85,150,300,300]
[null,0,"Air-CooledAC - PackageOther4","AC.OTHER.ACP.4","Air-Cooled","AC - ",">240000 & <760000",4,"Other","Package",13,0,9.8000000000000007,0,0,0,14.3,0,10.3,0,0,0,15.6,0,10.600000000000001,0,0,0,16.899999999999999,0,10.600000000000001,0,0,0,65,85,85,150,250,250]
[null,0,"Air-CooledAC - SplitOther4","AC.OTHER.ACS.4","Air-Cooled","AC - ",">240000 & <760000",4,"Other","Split",13,0,9.8000000000000007,0,0,0,14.3,0,10.3,0,0,0,15.6,0,10.600000000000001,0,0,0,16.899999999999999,0,10.600000000000001,0,0,0,65,85,85,150,250,250]
[null,0,"Air-CooledAC - PackageOther5","AC.OTHER.ACP.5","Air-Cooled","AC - ",">760000",5,"Other","Package",13,0,9.8000000000000007,0,0,0,13.6,0,9.6999999999999993,0,0,0,14.9,0,10.199999999999999,0,0,0,0,0,0,0,0,0,65,85,85,150,250,250]
[null,0,"Air-CooledAC - SplitOther5","AC.OTHER.ACS.5","Air-Cooled","AC - ",">760000",5,"Other","Split",13,0,9.8000000000000007,0,0,0,13.6,0,9.6999999999999993,0,0,0,14.9,0,10.199999999999999,0,0,0,0,0,0,0,0,0,65,85,85,150,250,250]
[null,0,"Air-CooledHP - PackageOther1","HP.OTHER.ACP.1","Air-Cooled","HP - ","<65000",1,"Other","Package",14,13.4,11,10.6,8,6.7,16,15.2,11,10.6,8.5,7.2,16.600000000000001,16,11.4,11,9,7.8,16.600000000000001,16,11.4,11,9,7.8,110,135,135,150,300,300]
[null,null,"Air-CooledHP - SplitOther0","HP.OTHER.ACS.0","Air-Cooled","HP - ","<45000",0,"Other","Split",15,14.3,12.2,11.7,8.8000000000000007,7.5,16,15.2,12.2,11.7,9.1999999999999993,7.8,17.899999999999999,17,12.5,12,9.6999999999999993,8.1999999999999993,17.899999999999999,17,12.5,12,9.6999999999999993,8.1999999999999993,110,135,135,150,300,300]
[null,0,"Air-CooledHP - SplitOther1","HP.OTHER.ACS.1","Air-Cooled","HP - ",">45000 & <65000",1,"Other","Split",14.5,13.8,11,11.2,8.8000000000000007,7.5,16,15.2,12.2,11.7,9.1999999999999993,7.8,17.899999999999999,17,12.5,12,9.6999999999999993,8.1999999999999993,17.899999999999999,17,12.5,12,9.6999999999999993,8.1999999999999993,110,135,135,150,300,300]
[null,0,"Air-CooledHP - PackageOther2","HP.OTHER.ACP.2","Air-Cooled","HP - ",">65000 & <135000",2,"Other","Package",13.9,0,10.8,0,3.4,0,15.1,0,11.6,0,3.5,0,17.399999999999999,0,11.6,0,3.6,0,17.399999999999999,0,11.6,0,3.6,0,110,135,135,150,300,300]
[null,0,"Air-CooledHP - SplitOther2","HP.OTHER.ACS.2","Air-Cooled","HP - ",">65000 & <135000",2,"Other","Split",13.9,0,10.8,0,3.4,0,15.1,0,11.6,0,3.5,0,17.399999999999999,0,11.6,0,3.6,0,17.399999999999999,0,11.6,0,3.6,0,110,135,135,150,300,300]
[null,0,"Air-CooledHP - PackageOther3","HP.OTHER.ACP.3","Air-Cooled","HP - ",">135000 & <240000",3,"Other","Package",13.3,0,10.4,0,3.3,0,14.3,0,10.9,0,3.4,0,16.600000000000001,0,10.9,0,3.5,0,16.600000000000001,0,10.9,0,3.5,0,110,135,135,150,250,250]
[null,0,"Air-CooledHP - SplitOther3","HP.OTHER.ACS.3","Air-Cooled","HP - ",">135000 & <240000",3,"Other","Split",13.3,0,10.4,0,3.3,0,14.3,0,10.9,0,3.4,0,16.600000000000001,0,10.9,0,3.5,0,16.600000000000001,0,10.9,0,3.5,0,110,135,135,150,250,250]
[null,0,"Air-CooledHP - PackageOther4","HP.OTHER.ACP.4","Air-Cooled","HP - ",">240000 & <760000",4,"Other","Package",12.3,0,9.3000000000000007,0,3.2,0,13.3,0,10.1,0,3.3,0,15.4,0,10.1,0,3.4,0,15.4,0,10.1,0,3.4,0,110,135,135,150,250,250]
[null,0,"Air-CooledHP - SplitOther4","HP.OTHER.ACS.4","Air-Cooled","HP - ",">240000 & <760000",4,"Other","Split",12.3,0,9.3000000000000007,0,3.2,0,13.3,0,10.1,0,3.3,0,15.4,0,10.1,0,3.4,0,15.4,0,10.1,0,3.4,0,110,135,135,150,250,250]
[null,0,"Air-CooledHP - PackageOther5","HP.OTHER.ACP.5","Air-Cooled","HP - ",">760000",5,"Other","Package",12.3,0,9.3000000000000007,0,3.2,0,13.3,0,10.1,0,3.3,0,15.4,0,10.1,0,3.4,0,15.4,0,10.1,0,3.4,0,110,135,135,150,250,250]
[null,0,"Air-CooledHP - SplitOther5","HP.OTHER.ACS.5","Air-Cooled","HP - ",">760000",5,"Other","Split",12.3,0,9.3000000000000007,0,3.2,0,13.3,0,10.1,0,3.3,0,15.4,0,10.1,0,3.4,0,15.4,0,10.1,0,3.4,0,110,135,135,150,250,250]
[null,0,"Water-CooledAC - PackageOther0","AC.OTHER.WCP.0","Water-Cooled","AC - ","<17000",0,"Other","Package",12.3,0,12.1,0,0,0,0,0,14,0,0,0,0,0,14,0,0,0,0,0,14,0,0,0,75,75,75,700,700,700]
[null,0,"Water-CooledAC - SplitOther0","AC.OTHER.WCS.0","Water-Cooled","AC - ","<17000",0,"Other","Split",12.3,0,12.1,0,0,0,0,0,14,0,0,0,0,0,14,0,0,0,0,0,14,0,0,0,75,75,75,700,700,700]
[null,0,"Water-CooledAC - PackageOther1","AC.OTHER.WCP.1","Water-Cooled","AC - ",">17000 & <65000",1,"Other","Package",12.3,0,12.1,0,0,0,0,0,14,0,0,0,0,0,14,0,0,0,0,0,14,0,0,0,75,75,75,700,700,700]
[null,0,"Water-CooledAC - SplitOther1","AC.OTHER.WCS.1","Water-Cooled","AC - ",">17000 & <65000",1,"Other","Split",12.3,0,12.1,0,0,0,0,0,14,0,0,0,0,0,14,0,0,0,0,0,14,0,0,0,75,75,75,700,700,700]
[null,0,"Water-CooledAC - PackageOther2","AC.OTHER.WCP.2","Water-Cooled","AC - ",">65000 & <135000",2,"Other","Package",13.7,0,11.9,0,0,0,15.1,0,13.8,0,0,0,15.1,0,13.8,0,0,0,15.1,0,13.8,0,0,0,75,75,75,700,700,700]
[null,0,"Water-CooledAC - SplitOther2","AC.OTHER.WCS.2","Water-Cooled","AC - ",">65000 & <135000",2,"Other","Split",13.7,0,11.9,0,0,0,15.1,0,13.8,0,0,0,15.1,0,13.8,0,0,0,15.1,0,13.8,0,0,0,75,75,75,700,700,700]
[null,0,"Water-CooledAC - PackageOther3","AC.OTHER.WCP.3","Water-Cooled","AC - ",">135000 & <240000",3,"Other","Package",13.7,0,12.3,0,0,0,14.6,0,13.8,0,0,0,14.6,0,13.8,0,0,0,14.6,0,13.8,0,0,0,75,75,75,700,700,700]
[null,0,"Water-CooledAC - SplitOther3","AC.OTHER.WCS.3","Water-Cooled","AC - ",">135000 & <240000",3,"Other","Split",13.7,0,12.3,0,0,0,14.6,0,13.8,0,0,0,14.6,0,13.8,0,0,0,14.6,0,13.8,0,0,0,75,75,75,700,700,700]
[null,0,"Water-CooledAC - PackageOther4","AC.OTHER.WCP.4","Water-Cooled","AC - ",">240000 & <760000",4,"Other","Package",13.4,0,12.2,0,0,0,14.6,0,13.8,0,0,0,14.6,0,13.8,0,0,0,14.6,0,13.8,0,0,0,75,75,75,700,700,700]
[null,0,"Water-CooledAC - SplitOther4","AC.OTHER.WCS.4","Water-Cooled","AC - ",">240000 & <760000",4,"Other","Split",13.4,0,12.2,0,0,0,14.6,0,13.8,0,0,0,14.6,0,13.8,0,0,0,14.6,0,13.8,0,0,0,75,75,75,700,700,700]
[null,0,"Water-CooledAC - PackageOther5","AC.OTHER.WCP.5","Water-Cooled","AC - ",">760000",5,"Other","Package",13.3,0,12,0,0,0,14.6,0,13.8,0,0,0,14.6,0,13.8,0,0,0,14.6,0,13.8,0,0,0,75,75,75,700,700,700]
[null,0,"Water-CooledAC - SplitOther5","AC.OTHER.WCS.5","Water-Cooled","AC - ",">760000",5,"Other","Split",13.3,0,12,0,0,0,14.6,0,13.8,0,0,0,14.6,0,13.8,0,0,0,14.6,0,13.8,0,0,0,75,75,75,700,700,700]
[null,0,"Water-CooledHP - PackageOther0","HP.OTHER.WCP.1","Water-Cooled","HP - ","<17000",0,"Other","Package",0,0,12.2,0,4.3,0,0,0,14,0,4.5999999999999996,0,0,0,14,0,4.5999999999999996,0,0,0,14,0,4.5999999999999996,0,75,75,75,700,700,700]
[null,0,"Water-CooledHP - SplitOther0","HP.OTHER.WCS.1","Water-Cooled","HP - ","<17000",0,"Other","Split",0,0,12.2,0,4.3,0,0,0,14,0,4.5999999999999996,0,0,0,14,0,4.5999999999999996,0,0,0,14,0,4.5999999999999996,0,75,75,75,700,700,700]
[null,0,"Water-CooledHP - PackageOther1","HP.OTHER.WCP.1","Water-Cooled","HP - ",">17000 & <65000",1,"Other","Package",0,0,13,0,4.3,0,0,0,14,0,4.5999999999999996,0,0,0,14,0,4.5999999999999996,0,0,0,14,0,4.5999999999999996,0,75,75,75,700,700,700]
[null,0,"Water-CooledHP - SplitOther1","HP.OTHER.WCS.1","Water-Cooled","HP - ",">17000 & <65000",1,"Other","Split",0,0,13,0,4.3,0,0,0,14,0,4.5999999999999996,0,0,0,14,0,4.5999999999999996,0,0,0,14,0,4.5999999999999996,0,75,75,75,700,700,700]
[null,0,"Water-CooledHP - PackageOther2","HP.OTHER.WCP.2","Water-Cooled","HP - ",">65000 & <135000",2,"Other","Package",0,0,13,0,4.3,0,0,0,14,0,4.5999999999999996,0,0,0,14,0,4.5999999999999996,0,0,0,14,0,4.5999999999999996,0,75,75,75,700,700,700]
[null,0,"Water-CooledHP - SplitOther2","HP.OTHER.WCS.2","Water-Cooled","HP - ",">65000 & <135000",2,"Other","Split",0,0,13,0,4.3,0,0,0,14,0,4.5999999999999996,0,0,0,14,0,4.5999999999999996,0,0,0,14,0,4.5999999999999996,0,75,75,75,700,700,700]
[null,0,"Water-CooledHP - PackageOther3","HP.OTHER.WCP.3","Water-Cooled","HP - ",">135000 & <240000",3,"Other","Package",0,0,13,0,4.3,0,0,0,14,0,4.5999999999999996,0,0,0,14,0,4.5999999999999996,0,0,0,14,0,4.5999999999999996,0,75,75,75,700,700,700]
[null,0,"Water-CooledHP - SplitOther3","HP.OTHER.WCS.3","Water-Cooled","HP - ",">135000 & <240000",3,"Other","Split",0,0,13,0,4.3,0,0,0,14,0,4.5999999999999996,0,0,0,14,0,4.5999999999999996,0,0,0,14,0,4.5999999999999996,0,75,75,75,700,700,700]
[null,0,"Water-CooledHP - PackageOther4","HP.OTHER.WCP.4","Water-Cooled","HP - ",">240000 & <760000",4,"Other","Package",0,0,13,0,4.3,0,0,0,13.8,0,4.5999999999999996,0,0,0,13.8,0,4.5999999999999996,0,0,0,13.8,0,4.5999999999999996,0,75,75,75,700,700,700]
[null,0,"Water-CooledHP - SplitOther4","HP.OTHER.WCS.4","Water-Cooled","HP - ",">240000 & <760000",4,"Other","Split",0,0,13,0,4.3,0,0,0,13.8,0,4.5999999999999996,0,0,0,13.8,0,4.5999999999999996,0,0,0,13.8,0,4.5999999999999996,0,75,75,75,700,700,700]
[null,0,"Water-CooledHP - PackageOther5","HP.OTHER.WCP.5","Water-Cooled","HP - ",">760000",5,"Other","Package",0,0,13,0,4.3,0,0,0,13.8,0,4.5999999999999996,0,0,0,13.8,0,4.5999999999999996,0,0,0,13.8,0,4.5999999999999996,0,75,75,75,700,700,700]
[null,0,"Water-CooledHP - SplitOther5","HP.OTHER.WCS.5","Water-Cooled","HP - ",">760000",5,"Other","Split",0,0,13,0,4.3,0,0,0,13.8,0,4.5999999999999996,0,0,0,13.8,0,4.5999999999999996,0,0,0,13.8,0,4.5999999999999996,0,75,75,75,700,700,700]
[null,0,"Evap-CooledAC - PackageOther0","AC.OTHER.ECP.0","Evap-Cooled","AC - ","<17000",0,"Other","Package",12.3,0,12.1,0,0,0,0,0,14,0,0,0,0,0,14,0,0,0,0,0,14,0,0,0,75,75,75,700,700,700]
[null,0,"Evap-CooledAC - SplitOther0","AC.OTHER.ECS.0","Evap-Cooled","AC - ","<17000",0,"Other","Split",12.3,0,12.1,0,0,0,0,0,14,0,0,0,0,0,14,0,0,0,0,0,14,0,0,0,75,75,75,700,700,700]
[null,0,"Evap-CooledAC - PackageOther1","AC.OTHER.ECP.1","Evap-Cooled","AC - ",">17000 & <65000",1,"Other","Package",12.3,0,12.1,0,0,0,0,0,14,0,0,0,0,0,14,0,0,0,0,0,14,0,0,0,75,75,75,700,700,700]
[null,0,"Evap-CooledAC - SplitOther1","AC.OTHER.ECS.1","Evap-Cooled","AC - ",">17000 & <65000",1,"Other","Split",12.3,0,12.1,0,0,0,0,0,14,0,0,0,0,0,14,0,0,0,0,0,14,0,0,0,75,75,75,700,700,700]
[null,0,"Evap-CooledAC - PackageOther2","AC.OTHER.ECP.2","Evap-Cooled","AC - ",">65000 & <135000",2,"Other","Package",12.1,0,11.9,0,0,0,15.1,0,13.8,0,0,0,15.1,0,13.8,0,0,0,15.1,0,13.8,0,0,0,75,75,75,700,700,700]
[null,0,"Evap-CooledAC - SplitOther2","AC.OTHER.ECS.2","Evap-Cooled","AC - ",">65000 & <135000",2,"Other","Split",12.1,0,11.9,0,0,0,15.1,0,13.8,0,0,0,15.1,0,13.8,0,0,0,15.1,0,13.8,0,0,0,75,75,75,700,700,700]
[null,0,"Evap-CooledAC - PackageOther3","AC.OTHER.ECP.3","Evap-Cooled","AC - ",">135000 & <240000",3,"Other","Package",12,0,11.8,0,0,0,14.1,0,13.3,0,0,0,14.1,0,13.3,0,0,0,14.1,0,13.3,0,0,0,75,75,75,700,700,700]
[null,0,"Evap-CooledAC - SplitOther3","AC.OTHER.ECS.3","Evap-Cooled","AC - ",">135000 & <240000",3,"Other","Split",12,0,11.8,0,0,0,14.1,0,13.3,0,0,0,14.1,0,13.3,0,0,0,14.1,0,13.3,0,0,0,75,75,75,700,700,700]
[null,0,"Evap-CooledAC - PackageOther4","AC.OTHER.ECP.4","Evap-Cooled","AC - ",">240000 & <760000",4,"Other","Package",11.9,0,11.7,0,0,0,14.1,0,13.3,0,0,0,14.1,0,13.3,0,0,0,14.1,0,13.3,0,0,0,75,75,75,700,700,700]
[null,0,"Evap-CooledAC - SplitOther4","AC.OTHER.ECS.4","Evap-Cooled","AC - ",">240000 & <760000",4,"Other","Split",11.9,0,11.7,0,0,0,14.1,0,13.3,0,0,0,14.1,0,13.3,0,0,0,14.1,0,13.3,0,0,0,75,75,75,700,700,700]
[null,0,"Evap-CooledAC - PackageOther5","AC.OTHER.ECP.5","Evap-Cooled","AC - ",">760000",5,"Other","Package",11.7,0,11.5,0,0,0,14.1,0,13.3,0,0,0,14.1,0,13.3,0,0,0,14.1,0,13.3,0,0,0,75,75,75,700,700,700]
[null,0,"Evap-CooledAC - SplitOther5","AC.OTHER.ECS.5","Evap-Cooled","AC - ",">760000",5,"Other","Split",11.7,0,11.5,0,0,0,14.1,0,13.3,0,0,0,14.1,0,13.3,0,0,0,14.1,0,13.3,0,0,0,75,75,75,700,700,700]
[null,"PTAC/HP","Air-CooledPTAC1","PTAC.1","Air-Cooled","PTAC","<7000",1,"N/A","N/A",13,0,13,0,0,0,13.3,0,13.3,0,0,0,13.3,0,13.3,0,0,0,13.3,0,13.3,0,0,0,40,40,40,100,100,100]
[null,0,"Air-CooledPTAC2","PTAC.2","Air-Cooled","PTAC",">7000 & <15000",2,"N/A","N/A",10.7,0,10.7,0,0,0,10.899999999999999,0,10.899999999999999,0,0,0,10.899999999999999,0,10.899999999999999,0,0,0,10.899999999999999,0,10.899999999999999,0,0,0,40,40,40,100,100,100]
[null,0,"Air-CooledPTAC3","PTAC.3","Air-Cooled","PTAC",">15000",3,"N/A","N/A",9.5,0,9.5,0,0,0,9.6999999999999993,0,9.6999999999999993,0,0,0,9.6999999999999993,0,9.6999999999999993,0,0,0,9.6999999999999993,0,9.6999999999999993,0,0,0,40,40,40,100,100,100]
[null,0,"Air-CooledPTHP1","PTHP.1","Air-Cooled","PTHP","<7000",1,"N/A","N/A",13,0,13,0,3.5,0,13.3,0,13.3,0,3.6,0,13.3,0,13.3,0,3.6,0,13.3,0,13.3,0,3.6,0,40,40,40,150,150,150]
[null,0,"Air-CooledPTHP2","PTHP.2","Air-Cooled","PTHP",">7000 & <15000",2,"N/A","N/A",10.7,0,10.7,0,3.1,0,10.899999999999999,0,10.899999999999999,0,3.2,0,10.899999999999999,0,10.899999999999999,0,3.2,0,10.899999999999999,0,10.899999999999999,0,3.2,0,40,40,40,150,150,150]
[null,0,"Air-CooledPTHP3","PTHP.3","Air-Cooled","PTHP",">15000",3,"N/A","N/A",9.5,0,9.5,0,2.9,0,9.6999999999999993,0,9.6999999999999993,0,3,0,9.6999999999999993,0,9.6999999999999993,0,3,0,9.6999999999999993,0,9.6999999999999993,0,3,0,40,40,40,150,150,150]
[null,"VTAC/HP","Air-CooledVTAC1","VTAC.1","Air-Cooled","VTAC","<65000",1,"N/A","N/A",11,0,11,0,0,0,11.7,0,11.7,0,0,0,11.7,0,11.7,0,0,0,11.7,0,11.7,0,0,0,75,75,75,150,150,150]
[null,null,"Air-CooledVTHP1","VTHP.1","Air-Cooled","VTHP","<65000",1,"N/A","N/A",11,0,11,0,3.3,0,11.5,0,11.5,0,3.4,0,11.5,0,11.5,0,3.4,0,11.5,0,11.5,0,3.4,0,75,75,75,150,150,150]
[null,"Multi-Split VRF","Air-CooledMSACV1","MSAC.AC.1","Air-Cooled","MSACV","<65000",1,"N/A","N/A",13,0,11.399999999999999,0,0,0,15.2,15.2,12,12,0,0,15.2,15.2,12,12,0,0,15.2,15.2,12,12,0,0,75,75,75,250,450,450]
[null,0,"Air-CooledMSACV2","MSAC.AC.2","Air-Cooled","MSACV",">65000 & <135000",2,"N/A","N/A",13.1,0,11.2,0,0,0,17,0,11.7,0,0,0,17,0,11.7,0,0,0,17,0,11.7,0,0,0,75,75,75,150,300,300]
[null,0,"Air-CooledMSACV3","MSAC.AC.3","Air-Cooled","MSACV",">135000 & <240000",3,"N/A","N/A",12.9,0,11,0,0,0,16.399999999999999,0,11.7,0,0,0,16.399999999999999,0,11.7,0,0,0,16.399999999999999,0,11.7,0,0,0,75,75,75,150,300,300]
[null,0,"Air-CooledMSACV4","MSAC.AC.4","Air-Cooled","MSACV",">240000 & <760000",4,"N/A","N/A",11.6,0,10,0,0,0,15.3,0,10.5,0,0,0,15.3,0,10.5,0,0,0,15.3,0,10.5,0,0,0,75,75,75,150,250,250]
[null,0,"Air-CooledMSACV5","MSAC.AC.5","Air-Cooled","MSACV",">760000",5,"N/A","N/A",11.6,0,10,0,0,0,15.3,0,10.5,0,0,0,15.3,0,10.5,0,0,0,15.3,0,10.5,0,0,0,75,75,75,150,250,250]
[null,0,"Air-CooledMSHPVH1","MSHP.ACH.1","Air-Cooled","MSHPVH","<65000",1,"N/A","N/A",13,0,11.4,0,7.7,0,15.2,15.2,11.7,11.7,8.6999999999999993,7.8,15.2,15.2,11.7,11.7,8.6999999999999993,7.8,15.2,15.2,11.7,11.7,8.6999999999999993,7.8,75,75,75,150,300,300]
[null,0,"Air-CooledMSHPV1","MSHP.AC.1","Air-Cooled","MSHPV","<65000",1,"N/A","N/A",13,0,11.4,0,7.7,0,15.2,15.2,11.7,11.7,8.6999999999999993,7.8,15.2,15.2,11.7,11.7,8.6999999999999993,7.8,15.2,15.2,11.7,11.7,8.6999999999999993,7.8,75,75,75,150,300,300]
[null,0,"Air-CooledMSHPVH2","MSHP.ACH.2","Air-Cooled","MSHPVH",">65000 & <135000",2,"N/A","N/A",12.3,0,11,0,3.3,0,16,0,11.3,0,3.5,0,16,0,11.3,0,3.5,0,16,0,11.3,0,3.5,0,75,75,75,150,300,300]
[null,0,"Air-CooledMSHPV2","MSHP.AC.2","Air-Cooled","MSHPV",">65000 & <135000",2,"N/A","N/A",12.1,0,11,0,3.3,0,15.8,0,11.1,0,3.5,0,15.8,0,11.1,0,3.5,0,15.8,0,11.1,0,3.5,0,75,75,75,150,300,300]
[null,0,"Air-CooledMSHPVH3","MSHP.ACH.3","Air-Cooled","MSHPVH",">135000 & <240000",3,"N/A","N/A",11.6,0,10.6,0,3.2,0,15.3,0,10.9,0,3.5,0,15.3,0,10.9,0,3.5,0,15.3,0,10.9,0,3.5,0,75,75,75,150,250,250]
[null,0,"Air-CooledMSHPV3","MSHP.AC.3","Air-Cooled","MSHPV",">135000 & <240000",3,"N/A","N/A",11.6,0,10.6,0,3.2,0,15.1,0,10.7,0,3.5,0,15.1,0,10.7,0,3.5,0,15.1,0,10.7,0,3.5,0,75,75,75,150,250,250]
[null,0,"Air-CooledMSHPVH4","MSHP.ACH.4","Air-Cooled","MSHPVH",">240000 & <760000",4,"N/A","N/A",11.6,0,9.5,0,3.2,0,14,0,10.3,0,3.5,0,14,0,10.3,0,3.5,0,14,0,10.3,0,3.5,0,75,75,75,150,250,250]
[null,0,"Air-CooledMSHPV4","MSHP.AC.4","Air-Cooled","MSHPV",">240000 & <760000",4,"N/A","N/A",10.4,0,9.5,0,3.2,0,13.8,0,10.1,0,3.5,0,13.8,0,10.1,0,3.5,0,13.8,0,10.1,0,3.5,0,75,75,75,150,250,250]
[null,0,"Air-CooledMSHPVH5","MSHP.ACH.5","Air-Cooled","MSHPVH",">760000",5,"N/A","N/A",11.6,0,9.5,0,3.2,0,14,0,10.3,0,3.5,0,14,0,10.3,0,3.5,0,14,0,10.3,0,3.5,0,75,75,75,150,250,250]
[null,0,"Air-CooledMSHPV5","MSHP.AC.5","Air-Cooled","MSHPV",">760000",5,"N/A","N/A",10.4,0,9.5,0,3.2,0,13.8,0,10.1,0,3.5,0,13.8,0,10.1,0,3.5,0,13.8,0,10.1,0,3.5,0,75,75,75,150,250,250]
[null,0,"Water-CooledMSACV0","MSAC.WC.1","Water-Cooled","MSACV","<17000",0,"N/A","N/A",13,0,12,0,0,0,14.1,0,13.5,0,0,0,14.1,0,13.5,0,0,0,14.1,0,13.5,0,0,0,75,75,75,250,450,450]
[null,0,"Water-CooledMSACV1","MSAC.WC.1","Water-Cooled","MSACV",">17000 & <65000",1,"N/A","N/A",13,0,12,0,0,0,14.1,0,13.5,0,0,0,14.1,0,13.5,0,0,0,14.1,0,13.5,0,0,0,75,75,75,250,450,450]
[null,0,"Water-CooledMSACV2","MSAC.WC.2","Water-Cooled","MSACV",">65000 & <135000",2,"N/A","N/A",12.3,0,12,0,0,0,13.200000000000001,0,13.2,0,0,0,13.200000000000001,0,13.2,0,0,0,13.200000000000001,0,13.2,0,0,0,75,75,75,150,300,300]
[null,0,"Water-CooledMSACV3","MSAC.WC.3","Water-Cooled","MSACV",">135000 & <240000",3,"N/A","N/A",11.6,0,10.6,0,0,0,12.299999999999999,0,11.5,0,0,0,12.299999999999999,0,11.5,0,0,0,12.299999999999999,0,11.5,0,0,0,75,75,75,150,300,300]
[null,0,"Water-CooledMSACV4","MSAC.WC.4","Water-Cooled","MSACV",">240000 & <760000",4,"N/A","N/A",11.6,0,10,0,0,0,12,0,10.5,0,0,0,12,0,10.5,0,0,0,12,0,10.5,0,0,0,75,75,75,150,300,300]
[null,0,"Water-CooledMSACV5","MSAC.WC.5","Water-Cooled","MSACV",">760000",5,"N/A","N/A",11.6,0,10,0,0,0,12,0,10.5,0,0,0,12,0,10.5,0,0,0,12,0,10.5,0,0,0,75,75,75,150,300,300]
[null,0,"Water-CooledMSHPVH0","MSHP.WCH.1","Water-Cooled","MSHPVH","<17000",0,"N/A","N/A",13,0,12,0,4.2,0,0,0,14,0,4.5999999999999996,0,0,0,14,0,4.5999999999999996,0,0,0,14,0,4.5999999999999996,0,75,75,75,700,700,700]
[null,0,"Water-CooledMSHPV0","MSHP.WC.1","Water-Cooled","MSHPV","<17000",0,"N/A","N/A",13,0,11.8,0,4.2,0,0,0,13.8,0,4.5999999999999996,0,0,0,13.8,0,4.5999999999999996,0,0,0,13.8,0,4.5999999999999996,0,75,75,75,700,700,700]
[null,0,"Water-CooledMSHPVH1","MSHP.WCH.1","Water-Cooled","MSHPVH",">17000 & <65000",1,"N/A","N/A",13,0,12,0,4.2,0,0,0,14,0,4.5999999999999996,0,0,0,14,0,4.5999999999999996,0,0,0,14,0,4.5999999999999996,0,75,75,75,700,700,700]
[null,0,"Water-CooledMSHPV1","MSHP.WC.1","Water-Cooled","MSHPV",">17000 & <65000",1,"N/A","N/A",13,0,12,0,4.2,0,0,0,13.8,0,4.5999999999999996,0,0,0,13.8,0,4.5999999999999996,0,0,0,13.8,0,4.5999999999999996,0,75,75,75,700,700,700]
[null,0,"Water-CooledMSHPVH2","MSHP.WCH.2","Water-Cooled","MSHPVH",">65000 & <135000",2,"N/A","N/A",12.3,0,12,0,4.2,0,14,0,14,0,4.5999999999999996,0,14,0,14,0,4.5999999999999996,0,14,0,14,0,4.5999999999999996,0,75,75,75,700,700,700]
[null,0,"Water-CooledMSHPV2","MSHP.WC.2","Water-Cooled","MSHPV",">65000 & <135000",2,"N/A","N/A",12.1,0,12,0,4.2,0,13.8,0,13.8,0,4.5999999999999996,0,13.8,0,13.8,0,4.5999999999999996,0,13.8,0,13.8,0,4.5999999999999996,0,75,75,75,700,700,700]
[null,0,"Water-CooledMSHPVH3","MSHP.WCH.3","Water-Cooled","MSHPVH",">135000 & <240000",3,"N/A","N/A",11.6,0,10.6,0,3.9,0,13.1,0,11.799999999999999,0,4.2,0,13.1,0,11.799999999999999,0,4.2,0,13.1,0,11.799999999999999,0,4.2,0,75,75,75,700,700,700]
[null,0,"Water-CooledMSHPV3","MSHP.WC.3","Water-Cooled","MSHPV",">135000 & <240000",3,"N/A","N/A",11.6,0,10.4,0,3.9,0,13.1,0,11.6,0,4.2,0,13.1,0,11.6,0,4.2,0,13.1,0,11.6,0,4.2,0,75,75,75,700,700,700]
[null,0,"Water-CooledMSHPVH4","MSHP.WCH.4","Water-Cooled","MSHPVH",">240000 & <760000",4,"N/A","N/A",11.6,0,10,0,3.9,0,12.799999999999999,0,10.9,0,4.2,0,12.799999999999999,0,10.9,0,4.2,0,12.799999999999999,0,10.9,0,4.2,0,75,75,75,700,700,700]
[null,0,"Water-CooledMSHPV4","MSHP.WC.4","Water-Cooled","MSHPV",">240000 & <760000",4,"N/A","N/A",10.4,0,9.8000000000000007,0,3.9,0,11.6,0,10.700000000000001,0,4.2,0,11.6,0,10.700000000000001,0,4.2,0,11.6,0,10.700000000000001,0,4.2,0,75,75,75,700,700,700]
[null,0,"Water-CooledMSHPVH5","MSHP.WCH.5","Water-Cooled","MSHPVH",">760000",5,"N/A","N/A",11.6,0,10,0,3.9,0,12.299999999999999,0,10.5,0,4.2,0,12.299999999999999,0,10.5,0,4.2,0,12.299999999999999,0,10.5,0,4.2,0,75,75,75,700,700,700]
[null,0,"Water-CooledMSHPV5","MSHP.WC.5","Water-Cooled","MSHPV",">760000",5,"N/A","N/A",10.4,0,9.8000000000000007,0,3.9,0,11.1,0,10.3,0,4.2,0,11.1,0,10.3,0,4.2,0,11.1,0,10.3,0,4.2,0,75,75,75,700,700,700]
[null,0,"Evap-CooledMSACV0","MSAC.EC.1","Evap-Cooled","MSACV","<17000",0,"N/A","N/A",13,0,12,0,0,0,14.1,0,13.5,0,0,0,14.1,0,13.5,0,0,0,14.1,0,13.5,0,0,0,75,75,75,250,450,450]
[null,0,"Evap-CooledMSACV1","MSAC.EC.1","Evap-Cooled","MSACV",">17000 & <65000",1,"N/A","N/A",13,0,12,0,0,0,14.1,0,13.5,0,0,0,14.1,0,13.5,0,0,0,14.1,0,13.5,0,0,0,75,75,75,250,450,450]
[null,0,"Evap-CooledMSACV2","MSAC.EC.2","Evap-Cooled","MSACV",">65000 & <135000",2,"N/A","N/A",12.3,0,12,0,0,0,15.3,15.3,13.2,0,0,0,15.3,15.3,13.2,0,0,0,15.3,15.3,13.2,0,0,0,75,75,75,150,300,300]
[null,0,"Evap-CooledMSACV3","MSAC.EC.3","Evap-Cooled","MSACV",">135000 & <240000",3,"N/A","N/A",11.6,0,10.6,0,0,0,14.3,14.3,11.5,0,0,0,14.3,14.3,11.5,0,0,0,14.3,14.3,11.5,0,0,0,75,75,75,150,300,300]
[null,0,"Evap-CooledMSACV4","MSAC.EC.4","Evap-Cooled","MSACV",">240000 & <760000",4,"N/A","N/A",11.6,0,10,0,0,0,14.3,14.3,10.5,0,0,0,14.3,14.3,10.5,0,0,0,14.3,14.3,10.5,0,0,0,75,75,75,150,300,300]
[null,0,"Evap-CooledMSACV5","MSAC.EC.5","Evap-Cooled","MSACV",">760000",5,"N/A","N/A",11.6,0,10,0,0,0,14.3,14.3,10.5,0,0,0,14.3,14.3,10.5,0,0,0,14.3,14.3,10.5,0,0,0,75,75,75,150,300,300]
[]
[]
[null,null,"Chiller Lookup Values",2,3,4,5,6,7,8,9,10,11,12,13,14,15,16,17,18,19,20,21,22]
[null,null,"ID","Equipment Code","Heat Rejection","VFD?","Type","Size","Size ID","Code Minimum COP (COP)","Code COP (kW/ton)","Code Minimum FL (EER)","Code Minimum FL (kW/Ton)","Code Minimum IPLV (EER)","Code IPLV (kW/Ton)","DEER Baseline Incr Cost ($/Ton)","DEER VFD Incr Cost ($/Ton)","($/Ton/(0.1 kW/Ton) increase)","SRP Rebate Minimum FL kW/Ton (EER)","SRP Rebate Minimum FL kW/Ton (kW/Ton)","SRP Rebate Minimum IPLV (EER)","SRP Rebate Minimum IPLV (kW/Ton)","SRP Baseline Rebate ($/Ton)","SRP Efficiency Rebate ($/Ton/0.1 kW/Ton)"]
[null,"VFD = Yes","Air-CooledCentrifugalYes1","CTFGL.ACPL.1","Air-Cooled","Yes","Centrifugal","<75",1,2.8024618991793666,1.2549675800041835,9.6999999999999993,1.24,15.8,0.76,445.89673980058745,42.339587093587625,16.80142344983636,9.6999999999999993,1.24,16.100000000000001,0.75,15,350]
[null,null,"Air-CooledCentrifugalYes2","CTFGL.ACPL.2","Air-Cooled","Yes","Centrifugal","≥75 and <150",2,2.8024618991793666,1.2549675800041835,9.6999999999999993,1.24,15.8,0.76,445.89673980058745,42.339587093587625,16.80142344983636,9.6999999999999993,1.24,16.100000000000001,0.75,15,350]
[null,null,"Air-CooledCentrifugalYes3","CTFGL.ACPL.3","Air-Cooled","Yes","Centrifugal","≥150 and <300",3,2.8024618991793666,1.2549675800041835,9.6999999999999993,1.24,16.100000000000001,0.75,445.89673980058745,42.339587093587625,16.80142344983636,9.6999999999999993,1.24,16.400000000000002,0.73,15,350]
[null,null,"Air-CooledCentrifugalYes4","CTFGL.ACPL.4","Air-Cooled","Yes","Centrifugal","≥300 and <600",4,2.8024618991793666,1.2549675800041835,9.6999999999999993,1.24,16.100000000000001,0.75,445.89673980058745,42.339587093587625,16.80142344983636,9.6999999999999993,1.24,16.400000000000002,0.73,15,350]
[null,null,"Air-CooledCentrifugalYes5","CTFGL.ACPL.5","Air-Cooled","Yes","Centrifugal","≥600",5,2.8024618991793666,1.2549675800041835,9.6999999999999993,1.24,16.100000000000001,0.75,445.89673980058745,42.339587093587625,16.80142344983636,9.6999999999999993,1.24,16.400000000000002,0.73,15,350]
[null,null,"Air-CooledReciprocatingYes1","RECIP.ACPL.1","Air-Cooled","Yes","Reciprocating","<75",1,2.8024618991793666,1.2549675800041835,9.6999999999999993,1.24,15.8,0.76,448.95363636363641,39.935252525252508,15.847322430655757,9.6999999999999993,1.24,16.100000000000001,0.75,15,350]
[null,null,"Air-CooledReciprocatingYes2","RECIP.ACPL.2","Air-Cooled","Yes","Reciprocating","≥75 and <150",2,2.8024618991793666,1.2549675800041835,9.6999999999999993,1.24,15.8,0.76,448.95363636363641,39.935252525252508,15.847322430655757,9.6999999999999993,1.24,16.100000000000001,0.75,15,350]
[null,null,"Air-CooledReciprocatingYes3","RECIP.ACPL.3","Air-Cooled","Yes","Reciprocating","≥150 and <300",3,2.8024618991793666,1.2549675800041835,9.6999999999999993,1.24,16.100000000000001,0.75,448.95363636363641,39.935252525252508,15.847322430655757,9.6999999999999993,1.24,16.400000000000002,0.73,15,350]
[null,null,"Air-CooledReciprocatingYes4","RECIP.ACPL.4","Air-Cooled","Yes","Reciprocating","≥300 and <600",4,2.8024618991793666,1.2549675800041835,9.6999999999999993,1.24,16.100000000000001,0.75,448.95363636363641,39.935252525252508,15.847322430655757,9.6999999999999993,1.24,16.400000000000002,0.73,15,350]
[null,null,"Air-CooledReciprocatingYes5","RECIP.ACPL.5","Air-Cooled","Yes","Reciprocating","≥600",5,2.8024618991793666,1.2549675800041835,9.6999999999999993,1.24,16.100000000000001,0.75,448.95363636363641,39.935252525252508,15.847322430655757,9.6999999999999993,1.24,16.400000000000002,0.73,15,350]
[null,null,"Air-CooledRotaryYes1","ROTRY.ACPL.1","Air-Cooled","Yes","Rotary","<75",1,2.8024618991793666,1.2549675800041835,9.6999999999999993,1.24,15.8,0.76,445.89673980058745,42.339587093587625,16.80142344983636,9.6999999999999993,1.24,16.100000000000001,0.75,15,350]
[null,null,"Air-CooledRotaryYes2","ROTRY.ACPL.2","Air-Cooled","Yes","Rotary","≥75 and <150",2,2.8024618991793666,1.2549675800041835,9.6999999999999993,1.24,15.8,0.76,445.89673980058745,42.339587093587625,16.80142344983636,9.6999999999999993,1.24,16.100000000000001,0.75,15,350]
[null,null,"Air-CooledRotaryYes3","ROTRY.ACPL.3","Air-Cooled","Yes","Rotary","≥150 and <300",3,2.8024618991793666,1.2549675800041835,9.6999999999999993,1.24,16.100000000000001,0.75,445.89673980058745,42.339587093587625,16.80142344983636,9.6999999999999993,1.24,16.400000000000002,0.73,15,350]
[null,null,"Air-CooledRotaryYes4","ROTRY.ACPL.4","Air-Cooled","Yes","Rotary","≥300 and <600",4,2.8024618991793666,1.2549675800041835,9.6999999999999993,1.24,16.100000000000001,0.75,445.89673980058745,42.339587093587625,16.80142344983636,9.6999999999999993,1.24,16.400000000000002,0.73,15,350]
[null,null,"Air-CooledRotaryYes5","ROTRY.ACPL.5","Air-Cooled","Yes","Rotary","≥600",5,2.8024618991793666,1.2549675800041835,9.6999999999999993,1.24,16.100000000000001,0.75,445.89673980058745,42.339587093587625,16.80142344983636,9.6999999999999993,1.24,16.400000000000002,0.73,15,350]
[null,null,"Air-CooledScrewYes1","SCREW.ACPL.1","Air-Cooled","Yes","Screw","<75",1,2.8024618991793666,1.2549675800041835,9.6999999999999993,1.24,15.8,0.76,445.89673980058745,42.339587093587625,16.80142344983636,9.6999999999999993,1.24,16.100000000000001,0.75,15,350]
[null,null,"Air-CooledScrewYes2","SCREW.ACPL.2","Air-Cooled","Yes","Screw","≥75 and <150",2,2.8024618991793666,1.2549675800041835,9.6999999999999993,1.24,15.8,0.76,445.89673980058745,42.339587093587625,16.80142344983636,9.6999999999999993,1.24,16.100000000000001,0.75,15,350]
[null,null,"Air-CooledScrewYes3","SCREW.ACPL.3","Air-Cooled","Yes","Screw","≥150 and <300",3,2.8024618991793666,1.2549675800041835,9.6999999999999993,1.24,16.100000000000001,0.75,445.89673980058745,42.339587093587625,16.80142344983636,9.6999999999999993,1.24,16.400000000000002,0.73,15,350]
[null,null,"Air-CooledScrewYes4","SCREW.ACPL.4","Air-Cooled","Yes","Screw","≥300 and <600",4,2.8024618991793666,1.2549675800041835,9.6999999999999993,1.24,16.100000000000001,0.75,445.89673980058745,42.339587093587625,16.80142344983636,9.6999999999999993,1.24,16.400000000000002,0.73,15,350]
[null,null,"Air-CooledScrewYes5","SCREW.ACPL.5","Air-Cooled","Yes","Screw","≥600",5,2.8024618991793666,1.2549675800041835,9.6999999999999993,1.24,16.100000000000001,0.75,445.89673980058745,42.339587093587625,16.80142344983636,9.6999999999999993,1.24,16.400000000000002,0.73,15,350]
[null,null,"Air-CooledScrollYes1","SCRLL.ACPL.1","Air-Cooled","Yes","Scroll","<75",1,2.8024618991793666,1.2549675800041835,9.6999999999999993,1.24,15.8,0.76,445.89673980058745,42.339587093587625,16.80142344983636,9.6999999999999993,1.24,16.100000000000001,0.75,15,350]
[null,null,"Air-CooledScrollYes2","SCRLL.ACPL.2","Air-Cooled","Yes","Scroll","≥75 and <150",2,2.8024618991793666,1.2549675800041835,9.6999999999999993,1.24,15.8,0.76,445.89673980058745,42.339587093587625,16.80142344983636,9.6999999999999993,1.24,16.100000000000001,0.75,15,350]
[null,null,"Air-CooledScrollYes3","SCRLL.ACPL.3","Air-Cooled","Yes","Scroll","≥150 and <300",3,2.8024618991793666,1.2549675800041835,9.6999999999999993,1.24,16.100000000000001,0.75,445.89673980058745,42.339587093587625,16.80142344983636,9.6999999999999993,1.24,16.400000000000002,0.73,15,350]
[null,null,"Air-CooledScrollYes4","SCRLL.ACPL.4","Air-Cooled","Yes","Scroll","≥300 and <600",4,2.8024618991793666,1.2549675800041835,9.6999999999999993,1.24,16.100000000000001,0.75,445.89673980058745,42.339587093587625,16.80142344983636,9.6999999999999993,1.24,16.400000000000002,0.73,15,350]
[null,null,"Air-CooledScrollYes5","SCRLL.ACPL.5","Air-Cooled","Yes","Scroll","≥600",5,2.8024618991793666,1.2549675800041835,9.6999999999999993,1.24,16.100000000000001,0.75,445.89673980058745,42.339587093587625,16.80142344983636,9.6999999999999993,1.24,16.400000000000002,0.73,15,350]
[null,null,"Water-CooledCentrifugalYes1","CTFGL.WCPL.1","Water-Cooled","Yes","Centrifugal","<75",1,5.5039105284304499,0.63900000000000001,17.3,0.69499999999999995,27.3,0.44,468.68792761740599,145.51913915158866,196.6474853399848,17.3,0.69499999999999995,27.9,0.43,45,450]
[null,null,"Water-CooledCentrifugalYes2","CTFGL.WCPL.2","Water-Cooled","Yes","Centrifugal","≥75 and <150",2,5.5039105284304499,0.63900000000000001,17.3,0.69499999999999995,27.3,0.44,468.68792761740599,145.51913915158866,196.6474853399848,17.3,0.69499999999999995,27.9,0.43,45,450]
[null,null,"Water-CooledCentrifugalYes3","CTFGL.WCPL.3","Water-Cooled","Yes","Centrifugal","≥150 and <300",3,5.5039105284304499,0.63900000000000001,18.899999999999999,0.63500000000000001,30,0.4,338.7655378428837,93.841774058426779,73.891160675926599,18.899999999999999,0.63500000000000001,30.8,0.39,45,450]
[null,null,"Water-CooledCentrifugalYes4","CTFGL.WCPL.4","Water-Cooled","Yes","Centrifugal","≥300 and <400",4,5.8616647127784294,0.6,20.2,0.59499999999999997,30.8,0.39,267.71423093494184,65.580715023103664,57.026708715742352,20.2,0.59499999999999997,31.6,0.38,45,450]
[null,null,"Water-CooledCentrifugalYes5","CTFGL.WCPL.5","Water-Cooled","Yes","Centrifugal","≥400 and <600",5,5.9610149621475559,0.59,20.5,0.58499999999999996,31.6,0.38,267.71423093494184,65.580715023103664,57.026708715742352,20.5,0.58499999999999996,32.4,0.37,45,450]
[null,null,"Water-CooledCentrifugalYes6","CTFGL.WCPL.6","Water-Cooled","Yes","Centrifugal","≥600",6,5.9610149621475559,0.59,20.5,0.58499999999999996,31.6,0.38,267.71423093494184,65.580715023103664,57.026708715742352,20.5,0.58499999999999996,32.4,0.37,45,450]
[null,null,"Water-CooledRotaryYes1","ROTRY.WCPL.1","Water-Cooled","Yes","Rotary","<75",1,4.3962485345838216,0.8,15.4,0.78,24,0.5,443.38924926972516,49.053878122290939,31.046758305247423,15.4,0.78,25,0.48,45,450]
[null,null,"Water-CooledRotaryYes2","ROTRY.WCPL.2","Water-Cooled","Yes","Rotary","≥75 and <150",2,4.4518972502114647,0.79000000000000015,16,0.75,24.5,0.49,443.38924926972516,49.053878122290939,31.046758305247423,16,0.75,25.5,0.47,45,450]
[null,null,"Water-CooledRotaryYes3","ROTRY.WCPL.3","Water-Cooled","Yes","Rotary","≥150 and <300",3,4.8983270580321134,0.71800000000000008,17.600000000000001,0.68,27.3,0.44,346.94119633464976,25.474144365156633,17.690378031358772,17.600000000000001,0.68,27.9,0.43,45,450]
[null,null,"Water-CooledRotaryYes4","ROTRY.WCPL.4","Water-Cooled","Yes","Rotary","≥300 and <600",4,5.5039105284304499,0.63900000000000001,19.2,0.625,29.3,0.41,275.83630822489715,11.398920686211682,8.9054067861028763,19.2,0.625,30,0.4,45,450]
[null,null,"Water-CooledRotaryYes5","ROTRY.WCPL.5","Water-Cooled","Yes","Rotary","≥600",5,5.5039105284304499,0.63900000000000001,20.5,0.58499999999999996,31.6,0.38,275.83630822489715,11.398920686211682,8.9054067861028763,20.5,0.58499999999999996,32.4,0.37,45,450]
[null,null,"Water-CooledReciprocatingYes1","RECIP.WCPL.1","Water-Cooled","Yes","Reciprocating","<75",1,4.3962485345838216,0.8,15.4,0.78,24,0.5,462.58824239497829,16.274341238578074,9.8632371142897473,15.4,0.78,25,0.48,45,450]
[null,null,"Water-CooledReciprocatingYes2","RECIP.WCPL.2","Water-Cooled","Yes","Reciprocating","≥75 and <150",2,4.4518972502114647,0.79000000000000015,16,0.75,24.5,0.49,462.58824239497829,16.274341238578074,9.8632371142897473,16,0.75,25.5,0.47,45,450]
[null,null,"Water-CooledReciprocatingYes3","RECIP.WCPL.3","Water-Cooled","Yes","Reciprocating","≥150 and <300",3,4.8983270580321134,0.71800000000000008,17.600000000000001,0.68,27.3,0.44,462.58824239497829,16.274341238578074,9.8632371142897473,17.600000000000001,0.68,27.9,0.43,45,450]
[null,null,"Water-CooledReciprocatingYes4","RECIP.WCPL.4","Water-Cooled","Yes","Reciprocating","≥300 and <600",4,5.5039105284304499,0.63900000000000001,19.2,0.625,29.3,0.41,462.58824239497829,16.274341238578074,9.8632371142897473,19.2,0.625,30,0.4,45,450]
[null,null,"Water-CooledReciprocatingYes5","RECIP.WCPL.5","Water-Cooled","Yes","Reciprocating","≥600",5,5.5039105284304499,0.63900000000000001,20.5,0.58499999999999996,31.6,0.38,462.58824239497829,16.274341238578074,9.8632371142897473,20.5,0.58499999999999996,32.4,0.37,45,450]
[null,null,"Water-CooledScrewYes1","SCREW.WCPL.1","Water-Cooled","Yes","Screw","<75",1,4.3962485345838216,0.8,15.4,0.78,24,0.5,443.38924926972516,49.053878122290939,31.046758305247423,15.4,0.78,25,0.48,45,450]
[null,null,"Water-CooledScrewYes2","SCREW.WCPL.2","Water-Cooled","Yes","Screw","≥75 and <150",2,4.4518972502114647,0.79000000000000015,16,0.75,24.5,0.49,443.38924926972516,49.053878122290939,31.046758305247423,16,0.75,25.5,0.47,45,450]
[null,null,"Water-CooledScrewYes3","SCREW.WCPL.3","Water-Cooled","Yes","Screw","≥150 and <300",3,4.8983270580321134,0.71800000000000008,17.600000000000001,0.68,27.3,0.44,346.94119633464976,25.474144365156633,17.690378031358772,17.600000000000001,0.68,27.9,0.43,45,450]
[null,null,"Water-CooledScrewYes4","SCREW.WCPL.4","Water-Cooled","Yes","Screw","≥300 and <600",4,5.5039105284304499,0.63900000000000001,19.2,0.625,29.3,0.41,275.83630822489715,11.398920686211682,8.9054067861028763,19.2,0.625,30,0.4,45,450]
[null,null,"Water-CooledScrewYes5","SCREW.WCPL.5","Water-Cooled","Yes","Screw","≥600",5,5.5039105284304499,0.63900000000000001,20.5,0.58499999999999996,31.6,0.38,275.83630822489715,11.398920686211682,8.9054067861028763,20.5,0.58499999999999996,32.4,0.37,45,450]
[null,null,"Water-CooledScrollYes1","SCRLL.WCPL.1","Water-Cooled","Yes","Scroll","<75",1,4.3962485345838216,0.8,15.4,0.78,24,0.5,443.38924926972516,49.053878122290939,31.046758305247423,15.4,0.78,25,0.48,45,450]
[null,null,"Water-CooledScrollYes2","SCRLL.WCPL.2","Water-Cooled","Yes","Scroll","≥75 and <150",2,4.4518972502114647,0.79000000000000015,16,0.75,24.5,0.49,443.38924926972516,49.053878122290939,31.046758305247423,16,0.75,25.5,0.47,45,450]
[null,null,"Water-CooledScrollYes3","SCRLL.WCPL.3","Water-Cooled","Yes","Scroll","≥150 and <300",3,4.8983270580321134,0.71800000000000008,17.600000000000001,0.68,27.3,0.44,346.94119633464976,25.474144365156633,17.690378031358772,17.600000000000001,0.68,27.9,0.43,45,450]
[null,null,"Water-CooledScrollYes4","SCRLL.WCPL.4","Water-Cooled","Yes","Scroll","≥300 and <600",4,5.5039105284304499,0.63900000000000001,19.2,0.625,29.3,0.41,275.83630822489715,11.398920686211682,8.9054067861028763,19.2,0.625,30,0.4,45,450]
[null,null,"Water-CooledScrollYes5","SCRLL.WCPL.5","Water-Cooled","Yes","Scroll","≥600",5,5.5039105284304499,0.63900000000000001,20.5,0.58499999999999996,31.6,0.38,275.83630822489715,11.398920686211682,8.9054067861028763,20.5,0.58499999999999996,32.4,0.37,45,450]
[null,"VFD = No","Air-CooledCentrifugalNo1","CTFGL.ACFL.1","Air-Cooled","No","Centrifugal","<75",1,2.8024618991793666,1.2549675800041835,10.1,1.19,13.7,0.88,445.89673980058745,42.339587093587625,16.80142344983636,10.1,1.19,14,0.86,15,350]
[null,null,"Air-CooledCentrifugalNo2","CTFGL.ACFL.2","Air-Cooled","No","Centrifugal","≥75 and <150",2,2.8024618991793666,1.2549675800041835,10.1,1.19,13.7,0.88,445.89673980058745,42.339587093587625,16.80142344983636,10.1,1.19,14,0.86,15,350]
[null,null,"Air-CooledCentrifugalNo3","CTFGL.ACFL.3","Air-Cooled","No","Centrifugal","≥150 and <300",3,2.8024618991793666,1.2549675800041835,10.1,1.19,14,0.86,445.89673980058745,42.339587093587625,16.80142344983636,10.1,1.19,14.3,0.84,15,350]
[null,null,"Air-CooledCentrifugalNo4","CTFGL.ACFL.4","Air-Cooled","No","Centrifugal","≥300 and <600",4,2.8024618991793666,1.2549675800041835,10.1,1.19,14,0.86,445.89673980058745,42.339587093587625,16.80142344983636,10.1,1.19,14.3,0.84,15,350]
[null,null,"Air-CooledCentrifugalNo5","CTFGL.ACFL.5","Air-Cooled","No","Centrifugal","≥600",5,2.8024618991793666,1.2549675800041835,10.1,1.19,14,0.86,445.89673980058745,42.339587093587625,16.80142344983636,10.1,1.19,14.3,0.84,15,350]
[null,null,"Air-CooledReciprocatingNo1","RECIP.ACFL.1","Air-Cooled","No","Reciprocating","<75",1,2.8024618991793666,1.2549675800041835,10.1,1.19,13.7,0.88,448.95363636363641,39.935252525252508,15.847322430655757,10.1,1.19,14,0.86,15,350]
[null,null,"Air-CooledReciprocatingNo2","RECIP.ACFL.2","Air-Cooled","No","Reciprocating","≥75 and <150",2,2.8024618991793666,1.2549675800041835,10.1,1.19,13.7,0.88,448.95363636363641,39.935252525252508,15.847322430655757,10.1,1.19,14,0.86,15,350]
[null,null,"Air-CooledReciprocatingNo3","RECIP.ACFL.3","Air-Cooled","No","Reciprocating","≥150 and <300",3,2.8024618991793666,1.2549675800041835,10.1,1.19,14,0.86,448.95363636363641,39.935252525252508,15.847322430655757,10.1,1.19,14.3,0.84,15,350]
[null,null,"Air-CooledReciprocatingNo4","RECIP.ACFL.4","Air-Cooled","No","Reciprocating","≥300 and <600",4,2.8024618991793666,1.2549675800041835,10.1,1.19,14,0.86,448.95363636363641,39.935252525252508,15.847322430655757,10.1,1.19,14.3,0.84,15,350]
[null,null,"Air-CooledReciprocatingNo5","RECIP.ACFL.5","Air-Cooled","No","Reciprocating","≥600",5,2.8024618991793666,1.2549675800041835,10.1,1.19,14,0.86,448.95363636363641,39.935252525252508,15.847322430655757,10.1,1.19,14.3,0.84,15,350]
[null,null,"Air-CooledRotaryNo1","ROTRY.ACFL.1","Air-Cooled","No","Rotary","<75",1,2.8024618991793666,1.2549675800041835,10.1,1.19,13.7,0.88,445.89673980058745,42.339587093587625,16.80142344983636,10.1,1.19,14,0.86,15,350]
[null,null,"Air-CooledRotaryNo2","ROTRY.ACFL.2","Air-Cooled","No","Rotary","≥75 and <150",2,2.8024618991793666,1.2549675800041835,10.1,1.19,13.7,0.88,445.89673980058745,42.339587093587625,16.80142344983636,10.1,1.19,14,0.86,15,350]
[null,null,"Air-CooledRotaryNo3","ROTRY.ACFL.3","Air-Cooled","No","Rotary","≥150 and <300",3,2.8024618991793666,1.2549675800041835,10.1,1.19,14,0.86,445.89673980058745,42.339587093587625,16.80142344983636,10.1,1.19,14.3,0.84,15,350]
[null,null,"Air-CooledRotaryNo4","ROTRY.ACFL.4","Air-Cooled","No","Rotary","≥300 and <600",4,2.8024618991793666,1.2549675800041835,10.1,1.19,14,0.86,445.89673980058745,42.339587093587625,16.80142344983636,10.1,1.19,14.3,0.84,15,350]
[null,null,"Air-CooledRotaryNo5","ROTRY.ACFL.5","Air-Cooled","No","Rotary","≥600",5,2.8024618991793666,1.2549675800041835,10.1,1.19,14,0.86,445.89673980058745,42.339587093587625,16.80142344983636,10.1,1.19,14.3,0.84,15,350]
[null,null,"Air-CooledScrewNo1","SCREW.ACFL.1","Air-Cooled","No","Screw","<75",1,2.8024618991793666,1.2549675800041835,10.1,1.19,13.7,0.88,445.89673980058745,42.339587093587625,16.80142344983636,10.1,1.19,14,0.86,15,350]
[null,null,"Air-CooledScrewNo2","SCREW.ACFL.2","Air-Cooled","No","Screw","≥75 and <150",2,2.8024618991793666,1.2549675800041835,10.1,1.19,13.7,0.88,445.89673980058745,42.339587093587625,16.80142344983636,10.1,1.19,14,0.86,15,350]
[null,null,"Air-CooledScrewNo3","SCREW.ACFL.3","Air-Cooled","No","Screw","≥150 and <300",3,2.8024618991793666,1.2549675800041835,10.1,1.19,14,0.86,445.89673980058745,42.339587093587625,16.80142344983636,10.1,1.19,14.3,0.84,15,350]
[null,null,"Air-CooledScrewNo4","SCREW.ACFL.4","Air-Cooled","No","Screw","≥300 and <600",4,2.8024618991793666,1.2549675800041835,10.1,1.19,14,0.86,445.89673980058745,42.339587093587625,16.80142344983636,10.1,1.19,14.3,0.84,15,350]
[null,null,"Air-CooledScrewNo5","SCREW.ACFL.5","Air-Cooled","No","Screw","≥600",5,2.8024618991793666,1.2549675800041835,10.1,1.19,14,0.86,445.89673980058745,42.339587093587625,16.80142344983636,10.1,1.19,14.3,0.84,15,350]
[null,null,"Air-CooledScrollNo1","SCRLL.ACFL.1","Air-Cooled","No","Scroll","<75",1,2.8024618991793666,1.2549675800041835,10.1,1.19,13.7,0.88,445.89673980058745,42.339587093587625,16.80142344983636,10.1,1.19,14,0.86,15,350]
[null,null,"Air-CooledScrollNo2","SCRLL.ACFL.2","Air-Cooled","No","Scroll","≥75 and <150",2,2.8024618991793666,1.2549675800041835,10.1,1.19,13.7,0.88,445.89673980058745,42.339587093587625,16.80142344983636,10.1,1.19,14,0.86,15,350]
[null,null,"Air-CooledScrollNo3","SCRLL.ACFL.3","Air-Cooled","No","Scroll","≥150 and <300",3,2.8024618991793666,1.2549675800041835,10.1,1.19,14,0.86,445.89673980058745,42.339587093587625,16.80142344983636,10.1,1.19,14.3,0.84,15,350]
[null,null,"Air-CooledScrollNo4","SCRLL.ACFL.4","Air-Cooled","No","Scroll","≥300 and <600",4,2.8024618991793666,1.2549675800041835,10.1,1.19,14,0.86,445.89673980058745,42.339587093587625,16.80142344983636,10.1,1.19,14.3,0.84,15,350]
[null,null,"Air-CooledScrollNo5","SCRLL.ACFL.5","Air-Cooled","No","Scroll","≥600",5,2.8024618991793666,1.2549675800041835,10.1,1.19,14,0.86,445.89673980058745,42.339587093587625,16.80142344983636,10.1,1.19,14.3,0.84,15,350]
[null,null,"Water-CooledCentrifugalNo1","CTFGL.WCFL.1","Water-Cooled","No","Centrifugal","<75",1,5.5473167628817937,0.63400000000000012,19.7,0.61,21.8,0.55000000000000004,468.68792761740599,145.51913915158866,196.6474853399848,19.7,0.61,22.6,0.53,45,450]
[null,null,"Water-CooledCentrifugalNo2","CTFGL.WCFL.2","Water-Cooled","No","Centrifugal","≥75 and <150",2,5.5473167628817937,0.63400000000000012,19.7,0.61,21.8,0.55000000000000004,468.68792761740599,145.51913915158866,196.6474853399848,19.7,0.61,22.6,0.53,45,450]
[null,null,"Water-CooledCentrifugalNo3","CTFGL.WCFL.3","Water-Cooled","No","Centrifugal","≥150 and <300",3,5.5473167628817937,0.63400000000000012,19.7,0.61,21.8,0.55000000000000004,338.7655378428837,93.841774058426779,73.891160675926599,19.7,0.61,22.6,0.53,45,450]
[null,null,"Water-CooledCentrifugalNo4","CTFGL.WCFL.4","Water-Cooled","No","Centrifugal","≥300 and <400",4,6.1059007424775311,0.57599999999999996,21.4,0.56000000000000005,23.1,0.52,338.7655378428837,93.841774058426779,73.891160675926599,21.4,0.56000000000000005,24,0.5,45,450]
[null,null,"Water-CooledCentrifugalNo5","CTFGL.WCFL.5","Water-Cooled","No","Centrifugal","≥400 and <600",5,6.170173381872031,0.56999999999999995,21.4,0.56000000000000005,24,0.5,267.71423093494184,65.580715023103664,57.026708715742352,21.4,0.56000000000000005,25,0.48,45,450]
[null,null,"Water-CooledCentrifugalNo6","CTFGL.WCFL.6","Water-Cooled","No","Centrifugal","≥600",6,6.170173381872031,0.56999999999999995,21.4,0.56000000000000005,24,0.5,267.71423093494184,65.580715023103664,57.026708715742352,21.4,0.56000000000000005,25,0.48,45,450]
[null,null,"Water-CooledReciprocatingNo1","RECIP.WCFL.1","Water-Cooled","No","Reciprocating","<75",1,4.5089728559834068,0.78,16,0.75,20,0.6,462.58824239497829,16.274341238578074,9.8632371142897473,16,0.75,20.7,0.57999999999999996,45,450]
[null,null,"Water-CooledReciprocatingNo2","RECIP.WCFL.2","Water-Cooled","No","Reciprocating","≥75 and <150",2,4.5380630034413638,0.77500000000000013,16.7,0.72,21.4,0.56000000000000005,462.58824239497829,16.274341238578074,9.8632371142897473,16.7,0.72,21.8,0.55000000000000004,45,450]
[null,null,"Water-CooledReciprocatingNo3","RECIP.WCFL.3","Water-Cooled","No","Reciprocating","≥150 and <300",3,5.1720570995103783,0.68,18.2,0.66,22.2,0.54,462.58824239497829,16.274341238578074,9.8632371142897473,18.2,0.66,22.6,0.53,45,450]
[null,null,"Water-CooledReciprocatingNo4","RECIP.WCFL.4","Water-Cooled","No","Reciprocating","≥300 and <600",4,5.6725787543017061,0.62,19.7,0.61,23.1,0.52,462.58824239497829,16.274341238578074,9.8632371142897473,19.7,0.61,23.5,0.51,45,450]
[null,null,"Water-CooledReciprocatingNo5","RECIP.WCFL.5","Water-Cooled","No","Reciprocating","≥600",5,5.6725787543017061,0.62,21.4,0.56000000000000005,24,0.5,462.58824239497829,16.274341238578074,9.8632371142897473,21.4,0.56000000000000005,24.5,0.49,45,450]
[null,null,"Water-CooledRotaryNo1","ROTRY.WCFL.1","Water-Cooled","No","Rotary","<75",1,4.5089728559834068,0.78,16,0.75,20,0.6,443.38924926972516,49.053878122290939,31.046758305247423,16,0.75,20.7,0.57999999999999996,45,450]
[null,null,"Water-CooledRotaryNo2","ROTRY.WCFL.2","Water-Cooled","No","Rotary","≥75 and <150",2,4.5380630034413638,0.77500000000000013,16.7,0.72,21.4,0.56000000000000005,443.38924926972516,49.053878122290939,31.046758305247423,16.7,0.72,21.8,0.55000000000000004,45,450]
[null,null,"Water-CooledRotaryNo3","ROTRY.WCFL.3","Water-Cooled","No","Rotary","≥150 and <300",3,5.1720570995103783,0.68,18.2,0.66,22.2,0.54,346.94119633464976,25.474144365156633,17.690378031358772,18.2,0.66,22.6,0.53,45,450]
[null,null,"Water-CooledRotaryNo4","ROTRY.WCFL.4","Water-Cooled","No","Rotary","≥300 and <600",4,5.6725787543017061,0.62,19.7,0.61,23.1,0.52,275.83630822489715,11.398920686211682,8.9054067861028763,19.7,0.61,23.5,0.51,45,450]
[null,null,"Water-CooledRotaryNo5","ROTRY.WCFL.5","Water-Cooled","No","Rotary","≥600",5,5.6725787543017061,0.62,21.4,0.56000000000000005,24,0.5,275.83630822489715,11.398920686211682,8.9054067861028763,21.4,0.56000000000000005,24.5,0.49,45,450]
[null,null,"Water-CooledScrewNo1","SCREW.WCFL.1","Water-Cooled","No","Screw","<75",1,4.5089728559834068,0.78,16,0.75,20,0.6,443.38924926972516,49.053878122290939,31.046758305247423,16,0.75,20.7,0.57999999999999996,45,450]
[null,null,"Water-CooledScrewNo2","SCREW.WCFL.2","Water-Cooled","No","Screw","≥75 and <150",2,4.5380630034413638,0.77500000000000013,16.7,0.72,21.4,0.56000000000000005,443.38924926972516,49.053878122290939,31.046758305247423,16.7,0.72,21.8,0.55000000000000004,45,450]
[null,null,"Water-CooledScrewNo3","SCREW.WCFL.3","Water-Cooled","No","Screw","≥150 and <300",3,5.1720570995103783,0.68,18.2,0.66,22.2,0.54,346.94119633464976,25.474144365156633,17.690378031358772,18.2,0.66,22.6,0.53,45,450]
[null,null,"Water-CooledScrewNo4","SCREW.WCFL.4","Water-Cooled","No","Screw","≥300 and <600",4,5.6725787543017061,0.62,19.7,0.61,23.1,0.52,275.83630822489715,11.398920686211682,8.9054067861028763,19.7,0.61,23.5,0.51,45,450]
[null,null,"Water-CooledScrewNo5","SCREW.WCFL.5","Water-Cooled","No","Screw","≥600",5,5.6725787543017061,0.62,21.4,0.56000000000000005,24,0.5,275.83630822489715,11.398920686211682,8.9054067861028763,21.4,0.56000000000000005,24.5,0.49,45,450]
[null,null,"Water-CooledScrollNo1","SCRLL.WCFL.1","Water-Cooled","No","Scroll","<75",1,4.5089728559834068,0.78,16,0.75,20,0.6,443.38924926972516,49.053878122290939,31.046758305247423,16,0.75,20.7,0.57999999999999996,45,450]
[null,null,"Water-CooledScrollNo2","SCRLL.WCFL.2","Water-Cooled","No","Scroll","≥75 and <150",2,4.5380630034413638,0.77500000000000013,16.7,0.72,21.4,0.56000000000000005,443.38924926972516,49.053878122290939,31.046758305247423,16.7,0.72,21.8,0.55000000000000004,45,450]
[null,null,"Water-CooledScrollNo3","SCRLL.WCFL.3","Water-Cooled","No","Scroll","≥150 and <300",3,5.1720570995103783,0.68,18.2,0.66,22.2,0.54,346.94119633464976,25.474144365156633,17.690378031358772,18.2,0.66,22.6,0.53,45,450]
[null,null,"Water-CooledScrollNo4","SCRLL.WCFL.4","Water-Cooled","No","Scroll","≥300 and <600",4,5.6725787543017061,0.62,19.7,0.61,23.1,0.52,275.83630822489715,11.398920686211682,8.9054067861028763,19.7,0.61,23.5,0.51,45,450]
[null,null,"Water-CooledScrollNo5","SCRLL.WCFL.5","Water-Cooled","No","Scroll","≥600",5,5.6725787543017061,0.62,21.4,0.56000000000000005,24,0.5,275.83630822489715,11.398920686211682,8.9054067861028763,21.4,0.56000000000000005,24.5,0.49,45,450]
[]
[]
[null,null,"CRAC Lookup Table",2,3,4,5,6,7,8,9,10,11,12,13,14,15,16,17,18,19]
[null,null,"Equipment ID","Equipment Code","Heat Rejection","Fluid Economizer","Configuration","Size","Size ID","Baseline CRAC Compressor EFLH","Proposed CRAC Compressor EFLH","CFM / Sensible_Ton","Supply Fan W/CFM","W/Sensible Ton","Code Min SCOP","Tier 1 SCOP ","Tier 2 SCOP ","Tier 1 Rebate","Tier 2 Rebate ","Tier 1 Cost","Tier 2 Cost"]
[null,"Downflow","Air-CooledDownflowNone1","CRAC.NONE.ACD.1","Air-Cooled","None","Downflow","<65000",1,5309.7280000000001,5309.7280000000001,472,0.41799999999999998,197.29599999999999,2.2999999999999998,2.4999999999999996,2.6999999999999997,200,300,620.5,1707.67]
[null,null,"Air-CooledDownflowNone2","CRAC.NONE.ACD.2","Air-Cooled","None","Downflow","≥65000 and <240000",2,5309.7280000000001,5309.7280000000001,472,0.41799999999999998,197.29599999999999,2.2000000000000002,2.4500000000000002,2.7,200,300,246.5,619.17999999999995]
[null,null,"Air-CooledDownflowNone3","CRAC.NONE.ACD.3","Air-Cooled","None","Downflow","≥240000",3,5309.7280000000001,5309.7280000000001,472,0.41799999999999998,197.29599999999999,2,2.25,2.5499999999999998,200,300,162.69,408.67]
[null,null,"Water-CooledDownflowNone1","CRAC.NONE.WCD.1","Water-Cooled","None","Downflow","<65000",1,5230.3760000000002,5230.3760000000002,472,0.41799999999999998,197.29599999999999,2.6,2.8,3,200,300,629.79,2020.55]
[null,null,"Water-CooledDownflowNone2","CRAC.NONE.WCD.2","Water-Cooled","None","Downflow","≥65000 and <240000",2,5230.3760000000002,5230.3760000000002,472,0.41799999999999998,197.29599999999999,2.5,2.7,2.9,200,300,673.68,2161.5]
[null,null,"Water-CooledDownflowNone3","CRAC.NONE.WCD.3","Water-Cooled","None","Downflow","≥240000",3,5230.3760000000002,5230.3760000000002,472,0.41799999999999998,197.29599999999999,2.4,2.6,2.8,200,300,585.9,1879.6]
[null,null,"Water-CooledDownflowEcon1","CRAC.ECON.WCD.1","Water-Cooled","Econ","Downflow","<65000",1,5230.3760000000002,2314.1210000000001,472,0.46100000000000002,217.59200000000001,2.5499999999999998,2.75,2.9499999999999997,300,400,666.49,2138.27]
[null,null,"Water-CooledDownflowEcon2","CRAC.ECON.WCD.2","Water-Cooled","Econ","Downflow","≥65000 and <240000",2,5230.3760000000002,2314.1210000000001,472,0.46400000000000002,219.00800000000001,2.4500000000000002,2.65,2.85,300,400,712.95,2287.4499999999998]
[null,null,"Water-CooledDownflowEcon3","CRAC.ECON.WCD.3","Water-Cooled","Econ","Downflow","≥240000",3,5230.3760000000002,2314.1210000000001,472,0.46700000000000003,220.42400000000001,2.35,2.5499999999999998,2.75,300,400,620.02,1989.08]
[null,null,"Glycol-CooledDownflowNone1","CRAC.NONE.GCD.1","Glycol-Cooled","None","Downflow","<65000",1,5356.0360000000001,5356.0360000000001,472,0.41799999999999998,197.29599999999999,2.5,2.7,2.9,200,300,629.34,2019.01]
[null,null,"Glycol-CooledDownflowNone2","CRAC.NONE.GCD.2","Glycol-Cooled","None","Downflow","≥65000 and <240000",2,5356.0360000000001,5356.0360000000001,472,0.41799999999999998,197.29599999999999,2.15,2.35,2.5499999999999998,200,300,672.77,2158.41]
[null,null,"Glycol-CooledDownflowNone3","CRAC.NONE.GCD.3","Glycol-Cooled","None","Downflow","≥240000",3,5356.0360000000001,5356.0360000000001,472,0.41799999999999998,197.29599999999999,2.1,2.2999999999999998,2.5,200,300,585.9,1879.6]
[null,null,"Glycol-CooledDownflowEcon1","CRAC.ECON.GCD.1","Glycol-Cooled","Econ","Downflow","<65000",1,5356.0360000000001,4381.7709999999997,472,0.46100000000000002,217.59200000000001,2.4500000000000002,2.65,2.85,300,400,666.01,2136.59]
[null,null,"Glycol-CooledDownflowEcon2","CRAC.ECON.GCD.2","Glycol-Cooled","Econ","Downflow","≥65000 and <240000",2,5356.0360000000001,4381.7709999999997,472,0.46400000000000002,219.00800000000001,2.1,2.2999999999999998,2.5,300,400,712,2284.09]
[null,null,"Glycol-CooledDownflowEcon3","CRAC.ECON.GCD.3","Glycol-Cooled","Econ","Downflow","≥240000",3,5356.0360000000001,4381.7709999999997,472,0.46700000000000003,220.42400000000001,2.0499999999999998,2.25,2.4499999999999997,300,400,620.02,1989.08]
[null,"Upflow","Air-CooledUpflowNone1","CRAC.NONE.ACU.1","Air-Cooled","None","Upflow","<65000",1,5309.7280000000001,5309.7280000000001,472,0.41799999999999998,197.29599999999999,2.1,2.2999999999999998,2.5,200,300,620.5,1707.67]
[null,null,"Air-CooledUpflowNone2","CRAC.NONE.ACU.2","Air-Cooled","None","Upflow","≥65000 and <240000",2,5309.7280000000001,5309.7280000000001,472,0.41799999999999998,197.29599999999999,2.02,2.27,2.52,200,300,246.5,619.17999999999995]
[null,null,"Air-CooledUpflowNone3","CRAC.NONE.ACU.3","Air-Cooled","None","Upflow","≥240000",3,5309.7280000000001,5309.7280000000001,472,0.41799999999999998,197.29599999999999,1.82,2.0700000000000003,2.37,200,300,162.69,408.67]
[null,null,"Water-CooledUpflowNone1","CRAC.NONE.WCU.1","Water-Cooled","None","Upflow","<65000",1,5230.3760000000002,5230.3760000000002,472,0.41799999999999998,197.29599999999999,2.4900000000000002,2.69,2.89,200,300,629.79,2020.55]
[null,null,"Water-CooledUpflowNone2","CRAC.NONE.WCU.2","Water-Cooled","None","Upflow","≥65000 and <240000",2,5230.3760000000002,5230.3760000000002,472,0.41799999999999998,197.29599999999999,2.39,2.5900000000000003,2.79,200,300,673.68,2161.5]
[null,null,"Water-CooledUpflowNone3","CRAC.NONE.WCU.3","Water-Cooled","None","Upflow","≥240000",3,5230.3760000000002,5230.3760000000002,472,0.41799999999999998,197.29599999999999,2.29,2.4900000000000002,2.69,200,300,585.9,1879.6]
[null,null,"Water-CooledUpflowEcon1","CRAC.ECON.WCU.1","Water-Cooled","Econ","Upflow","<65000",1,5230.3760000000002,2314.1210000000001,472,0.46100000000000002,217.59200000000001,2.44,2.64,2.84,300,400,666.49,2138.27]
[null,null,"Water-CooledUpflowEcon2","CRAC.ECON.WCU.2","Water-Cooled","Econ","Upflow","≥65000 and <240000",2,5230.3760000000002,2314.1210000000001,472,0.46400000000000002,219.00800000000001,2.34,2.5399999999999996,2.7399999999999998,300,400,712.95,2287.4499999999998]
[null,null,"Water-CooledUpflowEcon3","CRAC.ECON.WCU.3","Water-Cooled","Econ","Upflow","≥240000",3,5230.3760000000002,2314.1210000000001,472,0.46700000000000003,220.42400000000001,2.2400000000000002,2.44,2.64,300,400,620.02,1989.08]
[null,null,"Glycol-CooledUpflowNone1","CRAC.NONE.GCU.1","Glycol-Cooled","None","Upflow","<65000",1,5356.0360000000001,5356.0360000000001,472,0.41799999999999998,197.29599999999999,2.39,2.5900000000000003,2.79,200,300,629.34,2019.01]
[null,null,"Glycol-CooledUpflowNone2","CRAC.NONE.GCU.2","Glycol-Cooled","None","Upflow","≥65000 and <240000",2,5356.0360000000001,5356.0360000000001,472,0.41799999999999998,197.29599999999999,2.04,2.2400000000000002,2.44,200,300,672.77,2158.41]
[null,null,"Glycol-CooledUpflowNone3","CRAC.NONE.GCU.3","Glycol-Cooled","None","Upflow","≥240000",3,5356.0360000000001,5356.0360000000001,472,0.41799999999999998,197.29599999999999,1.99,2.1899999999999995,2.39,200,300,585.9,1879.6]
[null,null,"Glycol-CooledUpflowEcon1","CRAC.ECON.GCU.1","Glycol-Cooled","Econ","Upflow","<65000",1,5356.0360000000001,4381.7709999999997,472,0.46100000000000002,217.59200000000001,2.34,2.5399999999999996,2.7399999999999998,300,400,666.01,2136.59]
[null,null,"Glycol-CooledUpflowEcon2","CRAC.ECON.GCU.2","Glycol-Cooled","Econ","Upflow","≥65000 and <240000",2,5356.0360000000001,4381.7709999999997,472,0.46400000000000002,219.00800000000001,1.99,2.1899999999999995,2.39,300,400,712,2284.09]
[null,null,"Glycol-CooledUpflowEcon3","CRAC.ECON.GCU.3","Glycol-Cooled","Econ","Upflow","≥240000",3,5356.0360000000001,4381.7709999999997,472,0.46700000000000003,220.42400000000001,1.94,2.14,2.34,300,400,620.02,1989.08]
[null,"Horizontal","Air-CooledHorizontalNone1","CRAC.NONE.ACU.1","Air-Cooled","None","Horizontal","<65000",1,5309.7280000000001,5309.7280000000001,472,0.41799999999999998,197.29599999999999,2.4500000000000002,2.65,2.85,200,300,620.5,1707.67]
[null,null,"Air-CooledHorizontalNone2","CRAC.NONE.ACU.2","Air-Cooled","None","Horizontal","≥65000 and <240000",2,5309.7280000000001,5309.7280000000001,472,0.41799999999999998,197.29599999999999,2.35,2.6,2.85,200,300,246.5,619.17999999999995]
[null,null,"Air-CooledHorizontalNone3","CRAC.NONE.ACU.3","Air-Cooled","None","Horizontal","≥240000",3,5309.7280000000001,5309.7280000000001,472,0.41799999999999998,197.29599999999999,2.15,2.4,2.7,200,300,162.69,408.67]
[null,null,"Water-CooledHorizontalNone1","CRAC.NONE.WCU.1","Water-Cooled","None","Horizontal","<65000",1,5230.3760000000002,5230.3760000000002,472,0.41799999999999998,197.29599999999999,2.7,2.9,3.1,200,300,629.79,2020.55]
[null,null,"Water-CooledHorizontalNone2","CRAC.NONE.WCU.2","Water-Cooled","None","Horizontal","≥65000 and <240000",2,5230.3760000000002,5230.3760000000002,472,0.41799999999999998,197.29599999999999,2.6,2.8000000000000003,3,200,300,673.68,2161.5]
[null,null,"Water-CooledHorizontalNone3","CRAC.NONE.WCU.3","Water-Cooled","None","Horizontal","≥240000",3,5230.3760000000002,5230.3760000000002,472,0.41799999999999998,197.29599999999999,2.4500000000000002,2.6500000000000004,2.85,200,300,585.9,1879.6]
[null,null,"Water-CooledHorizontalEcon1","CRAC.ECON.WCU.1","Water-Cooled","Econ","Horizontal","<65000",1,5230.3760000000002,2314.1210000000001,472,0.46100000000000002,217.59200000000001,2.6,2.8000000000000003,3,300,400,666.49,2138.27]
[null,null,"Water-CooledHorizontalEcon2","CRAC.ECON.WCU.2","Water-Cooled","Econ","Horizontal","≥65000 and <240000",2,5230.3760000000002,2314.1210000000001,472,0.46400000000000002,219.00800000000001,2.5499999999999998,2.7499999999999996,2.9499999999999997,300,400,712.95,2287.4499999999998]
[null,null,"Water-CooledHorizontalEcon3","CRAC.ECON.WCU.3","Water-Cooled","Econ","Horizontal","≥240000",3,5230.3760000000002,2314.1210000000001,472,0.46700000000000003,220.42400000000001,2.4,2.5999999999999996,2.8,300,400,620.02,1989.08]
[null,null,"Glycol-CooledHorizontalNone1","CRAC.NONE.GCU.1","Glycol-Cooled","None","Horizontal","<65000",1,5356.0360000000001,5356.0360000000001,472,0.41799999999999998,197.29599999999999,2.4,2.6,2.8,200,300,629.34,2019.01]
[null,null,"Glycol-CooledHorizontalNone2","CRAC.NONE.GCU.2","Glycol-Cooled","None","Horizontal","≥65000 and <240000",2,5356.0360000000001,5356.0360000000001,472,0.41799999999999998,197.29599999999999,2.15,2.35,2.5499999999999998,200,300,672.77,2158.41]
[null,null,"Glycol-CooledHorizontalNone3","CRAC.NONE.GCU.3","Glycol-Cooled","None","Horizontal","≥240000",3,5356.0360000000001,5356.0360000000001,472,0.41799999999999998,197.29599999999999,2.1,2.2999999999999998,2.5,200,300,585.9,1879.6]
[null,null,"Glycol-CooledHorizontalEcon1","CRAC.ECON.GCU.1","Glycol-Cooled","Econ","Horizontal","<65000",1,5356.0360000000001,4381.7709999999997,472,0.46100000000000002,217.59200000000001,2.35,2.5499999999999998,2.75,300,400,666.01,2136.59]
[null,null,"Glycol-CooledHorizontalEcon2","CRAC.ECON.GCU.2","Glycol-Cooled","Econ","Horizontal","≥65000 and <240000",2,5356.0360000000001,4381.7709999999997,472,0.46400000000000002,219.00800000000001,2.1,2.2999999999999998,2.5,300,400,712,2284.09]
[null,null,"Glycol-CooledHorizontalEcon3","CRAC.ECON.GCU.3","Glycol-Cooled","Econ","Horizontal","≥240000",3,5356.0360000000001,4381.7709999999997,472,0.46700000000000003,220.42400000000001,2.1,2.3000000000000003,2.5,300,400,620.02,1989.08]
[]
[]
[null,null,"OA Econ Lookup Table",2,3,4,5,6,7,8,9,10,11,12]
[null,null,"ID","Equipment Code","Unit Type","Heat Rejection","Size","Size ID","Baseline ER/None\nEfficiency","Baseline Other\nEfficiency","SRP ER/None\nEfficiency","SRP Other\nEfficiency","Rebate","Incremental Cost"]
[null,"Air-Cooled","Air-CooledAC1","ECON.AC.AC.1","AC","Air-Cooled","<65000",1,14,14,16.899999999999999,16.899999999999999,50,81.36]
[null,null,"Air-CooledAC2","ECON.AC.AC.2","AC","Air-Cooled",">65000 & <135000",2,14.8,14.6,17.899999999999999,17.7,50,81.36]
[null,null,"Air-CooledAC3","ECON.AC.AC.3","AC","Air-Cooled",">135000 & <240000",3,14.2,14,17.2,16.899999999999999,50,81.36]
[null,null,"Air-CooledAC4","ECON.AC.AC.4","AC","Air-Cooled",">240000 & <760000",4,13.2,13,16,15.7,50,81.36]
[null,null,"Air-CooledAC5","ECON.AC.AC.5","AC","Air-Cooled",">760000",5,13.2,13,16,15.7,50,81.36]
[null,null,"Air-CooledHP1","ECON.HP.AC.1","HP","Air-Cooled","<65000",1,16,16,19.399999999999999,19.399999999999999,50,81.36]
[null,null,"Air-CooledHP2","ECON.HP.AC.2","HP","Air-Cooled",">65000 & <135000",2,15.3,15.1,18.5,14.6,50,81.36]
[null,null,"Air-CooledHP3","ECON.HP.AC.3","HP","Air-Cooled",">135000 & <240000",3,14.5,14.3,17.5,17.3,50,81.36]
[null,null,"Air-CooledHP4","ECON.HP.AC.4","HP","Air-Cooled",">240000 & <760000",4,13.5,13.3,12.8,16.100000000000001,50,81.36]
[null,null,"Air-CooledHP5","ECON.HP.AC.5","HP","Air-Cooled",">760000",5,13.5,13.3,16.3,16.100000000000001,50,81.36]
[null,null,"Air-CooledCRAC1","ECON.CRAC.AC.1","CRAC","Air-Cooled","<65000",1,2.2799999999999998,2.2799999999999998,2.76,2.76,50,81.36]
[null,null,"Air-CooledCRAC2","ECON.CRAC.AC.2","CRAC","Air-Cooled",">65000 & <240000",2,2.19,2.19,2.65,2.65,50,81.36]
[null,null,"Air-CooledCRAC3","ECON.CRAC.AC.3","CRAC","Air-Cooled",">240000",3,1.99,1.99,2.41,2.41,50,81.36]
[null,null,"Air-CooledChiller1","ECON.CH.AC.1","Chiller","Air-Cooled","<75",1,0.76,0.88,0.63,0.73,50,81.36]
[null,null,"Air-CooledChiller2","ECON.CH.AC.2","Chiller","Air-Cooled",">75 & <150",2,0.76,0.88,0.63,0.73,50,81.36]
[null,null,"Air-CooledChiller3","ECON.CH.AC.3","Chiller","Air-Cooled",">150 & <300",3,0.75,0.86,0.62,0.71,50,81.36]
[null,null,"Air-CooledChiller4","ECON.CH.AC.4","Chiller","Air-Cooled",">300 & <600",4,0.75,0.86,0.62,0.71,50,81.36]
[null,null,"Air-CooledChiller5","ECON.CH.AC.5","Chiller","Air-Cooled",">600",5,0.75,0.86,0.62,0.71,50,81.36]
[null,"Water-Cooled","Water-CooledAC1","ECON.AC.WC.1","AC","Water-Cooled","<65000",1,14,14,16.899999999999999,16.899999999999999,50,81.36]
[null,null,"Water-CooledAC2","ECON.AC.WC.2","AC","Water-Cooled",">65000 & <135000",2,15.3,15.1,18.5,18.3,50,81.36]
[null,null,"Water-CooledAC3","ECON.AC.WC.3","AC","Water-Cooled",">135000 & <240000",3,14.8,14.6,17.899999999999999,17.7,50,81.36]
[null,null,"Water-CooledAC4","ECON.AC.WC.4","AC","Water-Cooled",">240000 & <760000",4,14.8,14.6,17.899999999999999,17.7,50,81.36]
[null,null,"Water-CooledAC5","ECON.AC.WC.5","AC","Water-Cooled",">760000",5,14.8,14.6,17.899999999999999,17.7,50,81.36]
[null,null,"Water-CooledHP1","ECON.HP.WC.1","HP","Water-Cooled","<65000",1,14,14,16.899999999999999,16.899999999999999,50,81.36]
[null,null,"Water-CooledHP2","ECON.HP.WC.2","HP","Water-Cooled",">65000 & <135000",2,14,14,16.899999999999999,16.899999999999999,50,81.36]
[null,null,"Water-CooledHP3","ECON.HP.WC.3","HP","Water-Cooled",">135000 & <240000",3,14,14,16.899999999999999,16.899999999999999,50,81.36]
[null,null,"Water-CooledHP4","ECON.HP.WC.4","HP","Water-Cooled",">240000 & <760000",4,14,13.8,16.899999999999999,16.7,50,81.36]
[null,null,"Water-CooledHP5","ECON.HP.WC.5","HP","Water-Cooled",">760000",5,13.8,13.8,16.7,16.7,50,81.36]
[null,null,"Water-CooledWSHP1","ECON.WSHP.WC.1","WSHP","Water-Cooled","All",1,14,14,16.899999999999999,16.899999999999999,50,81.36]
[null,null,"Water-CooledWSHP2","ECON.WSHP.WC.2","WSHP","Water-Cooled",null,2,14,14,16.899999999999999,16.899999999999999,50,81.36]
[null,null,"Water-CooledWSHP3","ECON.WSHP.WC.3","WSHP","Water-Cooled",null,3,14,14,16.899999999999999,16.899999999999999,50,81.36]
[null,null,"Water-CooledWSHP4","ECON.WSHP.WC.4","WSHP","Water-Cooled",null,4,14,14,16.899999999999999,16.899999999999999,50,81.36]
[null,null,"Water-CooledWSHP5","ECON.WSHP.WC.5","WSHP","Water-Cooled",null,5,14,14,16.899999999999999,16.899999999999999,50,81.36]
[null,null,"Water-CooledCRAC1","ECON.CRAC.WC.1","CRAC","Water-Cooled","<65000",1,2.56,2.56,3.1,3.1,50,81.36]
[null,null,"Water-CooledCRAC2","ECON.CRAC.WC.2","CRAC","Water-Cooled",">65000 & <240000",2,2.4700000000000002,2.4700000000000002,2.99,2.99,50,81.36]
[null,null,"Water-CooledCRAC3","ECON.CRAC.WC.3","CRAC","Water-Cooled",">240000",3,2.36,2.36,2.86,2.86,50,81.36]
[null,null,"Water-CooledChiller1","ECON.CH.WC.1","Chiller","Water-Cooled","<75",1,0.49,0.59,0.4,0.49,50,81.36]
[null,null,"Water-CooledChiller2","ECON.CH.WC.2","Chiller","Water-Cooled",">75 & <150",2,0.48,0.56000000000000005,0.4,0.46,50,81.36]
[null,null,"Water-CooledChiller3","ECON.CH.WC.3","Chiller","Water-Cooled",">150 & <300",3,0.43,0.54,0.35,0.45,50,81.36]
[null,null,"Water-CooledChiller4","ECON.CH.WC.4","Chiller","Water-Cooled",">300 & <600",4,0.4,0.52,0.33,0.43,50,81.36]
[null,null,"Water-CooledChiller5","ECON.CH.WC.5","Chiller","Water-Cooled",">600",5,0.38,0.5,0.31,0.41,50,81.36]
[null,"Evap-Cooled","Evap-CooledAC1","ECON.AC.EC.1","AC","Evap-Cooled","<65000",1,14,14,16.899999999999999,16.899999999999999,50,81.36]
[null,null,"Evap-CooledAC2","ECON.AC.EC.2","AC","Evap-Cooled",">65000 & <135000",2,15.3,15.1,18.5,18.3,50,81.36]
[null,null,"Evap-CooledAC3","ECON.AC.EC.3","AC","Evap-Cooled",">135000 & <240000",3,14.3,14.1,17.3,17.100000000000001,50,81.36]
[null,null,"Evap-CooledAC4","ECON.AC.EC.4","AC","Evap-Cooled",">240000 & <760000",4,14.3,14.1,17.3,17.100000000000001,50,81.36]
[null,null,"Evap-CooledAC5","ECON.AC.EC.5","AC","Evap-Cooled",">760000",5,14.3,14.1,17.3,17.100000000000001,50,81.36]
[null,"Glycol-Cooled","Glycol-CooledCRAC1","ECON.CRAC.GC.1","CRAC","Glycol-Cooled","<65000",1,2.41,2.41,2.92,2.92,50,81.36]
[null,null,"Glycol-CooledCRAC2","ECON.CRAC.GC.2","CRAC","Glycol-Cooled",">65000 & <240000",2,2.09,2.09,2.5299999999999998,2.5299999999999998,50,81.36]
[null,null,"Glycol-CooledCRAC3","ECON.CRAC.GC.3","CRAC","Glycol-Cooled",">240000",3,2.0499999999999998,2.0499999999999998,2.48,2.48,50,81.36]
[]
[]
[null,null,"Hotel Room Occ Lookup Table",2,3,4,5,6,7,8,9,10,11,12,13]
[null,null,"Unit Type","bEFLHc","bEFLHh","pEFLHc","pEFLHh","bCF","pCF","DF","Baseline (Tier 1) IPLV/SEER/IEER","Baseline (Tier 1) EER","Baseline (Tier 1) HSPF/COP","Rebate","Incremental Cost"]
[null,null,"Chiller (Full)",3255,322,2864,257,0.91725923414070487,0.80561699538296627,0.67577050392333304,0.81,0.67,3.4119999999999999,50,260]
[null,null,"PTAC (Full)",2940,322,2767,257,0.80323207798681229,0.70318917835315753,0.59036527875331923,11.1,11.1,3.4119999999999999,50,260]
[null,null,"PTHP (Full)",2940,322,2767,257,0.80323207798681229,0.70318917835315753,0.59036527875331923,11.1,11.1,3.2,50,260]
[null,null,"FCU (Full)",3255,322,2864,257,0.91725923414070487,0.80561699538296627,0.67577050392333304,13.8,10.7,3.4119999999999999,50,260]
[null,null,"Chiller (Partial)",{"$f":"F383*1.05","v":3007.2000000000003},{"$f":"G383*1.08","v":277.56},2864,257,0.91725923414070487,0.80561699538296627,0.67577050392333304,14.6,17.649999999999999,3.4119999999999999,50,260]
[null,null,"PTAC (Partial)",{"$f":"F384*1.05","v":2905.35},{"$f":"G384*1.08","v":277.56},2767,257,0.80323207798681229,0.70318917835315753,0.59036527875331923,10.4,10.4,3.4119999999999999,50,260]
[null,null,"PTHP (Partial)",{"$f":"F385*1.05","v":2905.35},{"$f":"G385*1.08","v":277.56},2767,257,0.80323207798681229,0.70318917835315753,0.59036527875331923,12.4,11.2,1.1000000000000001,50,260]
[null,null,"FCU (Partial)",{"$f":"F386*1.05","v":3007.2000000000003},{"$f":"G386*1.08","v":277.56},2864,257,0.91725923414070487,0.80561699538296627,0.67577050392333304,13.9,10.6,3.4119999999999999,50,260]
[]
[]
[null,null,"Evap Cooler Size and Equiv SEER Table",2,3,null,"Evap Cooler Lookup Table",2,3,4]
[null,null,"Unitary BTU/hr","Size ID","SEER/IEER",null,"EVAP ID","CFM/SqFt","Rebate","Incremental Cost"]
[null,null,0,1,14,null,"DEC",4,0.06,0.5]
[null,null,65000,2,15,null,"IEC",2,0.06,{"$f":"651.57/1300","v":0.50120769230769235}]
[null,null,135000,3,14.5,null,"IDEC",2.5,0.06,{"$f":"651.57/1300","v":0.50120769230769235}]
[null,null,240000,4,14.8]
[null,null,760000,5,14.8]
[]
[]
[null,null,"CO2 Sensor Lookup Table",2,3,4,5,6,7,8,null,"Equiv Unitary Table",2,3,null,"Load Reduction Table",2,3,4]
[null,null,"ID","Size","Size ID","Basline IPLV/\nSEER/IEER","Baseline\nHSPF/COP","Rebate 1","Rebate 2","Incremental Cost",null,"Size (BTUH)","Size (Tons)","Size ID",null,"Facility Type","Clg Load Reduction","Htg Load Reduction","PeakClg Load Reduction"]
[null,null,"AC1","<65000",1,14.5,0,120,200,650,null,0,0,1,null,"Assisted Living Facility",19669.150000000001,11794.65,31.03]
[null,null,"AC2",">65000 & <135000",2,14.7,0,120,200,650,null,65000,5.416666666666667,2,null,"Automotive Facility",15183.78,11402.73,30.23]
[null,null,"AC3",">135000 & <240000",3,14.1,0,120,200,650,null,135000,11.25,3,null,"Casino",17462.259999999998,12346.92,16.670000000000002]
[null,null,"AC4",">240000 & <760000",4,13.1,0,120,200,650,null,240000,20,4,null,"Convention Center",17462.259999999998,12346.92,31.03]
[null,null,"AC5",">760000",5,13.1,0,120,200,650,null,760000,63.333333333333336,5,null,"Court House",18764.16,12269.54,31.03]
[null,null,"HP1","<65000",1,14.5,8.6,120,200,650,null,null,null,null,null,"Data Center",19842.96,12862.4,31.03]
[null,null,"HP2",">65000 & <135000",2,14,3.4,120,200,650,null,null,null,null,null,"Dining: Bar Lounge/Leisure",10251.36,12492.38,16.670000000000002]
[null,null,"HP3",">135000 & <240000",3,13.4,3.3,120,200,650,null,null,null,null,null,"Dining: Cafeteria/Fast Food",10137.25,12241.43,14.27]
[null,null,"HP4",">240000 & <760000",4,12.4,3.2,120,200,650,null,null,null,null,null,"Dining: Family",14166.13,12565.91,30.23]
[null,null,"HP5",">760000",5,12.4,3.2,120,200,650,null,null,null,null,null,"Dormitory",16152.3,10655.41,23.13]
[null,null,"WSHP1","All",1,12.6,4.3,120,200,650,null,null,null,null,null,"Exercise Center",11541.84,12655.05,25.27]
[null,null,"WSHP2",null,2,13,4.3,120,200,650,null,null,null,null,null,"Fire Station",10023.58,7902.05,7.34]
[null,null,"WSHP3",null,3,13,4.3,120,200,650,null,null,null,null,null,"Grow Facility",18764.16,12269.54,31.03]
[null,null,"WSHP4",null,4,13,4.3,120,200,650,null,null,null,null,null,"Gymnasium",10462.34,10201.719999999999,14.27]
[null,null,"WSHP5",null,5,13,4.3,120,200,650,null,null,null,null,null,"Health Care - Clinic",18413.27,12251.31,31.03]
[null,null,"Chiller1","All",1,0.63,0,120,200,650,null,null,null,null,null,"Health Care - Hospital",10023.58,7902.05,7.34]
[null,null,"Chiller2",null,2,0.62,0,120,200,650,null,null,null,null,null,"Hotel",10023.58,7902.05,7.34]
[null,null,"Chiller3",null,3,0.59,0,120,200,650,null,null,null,null,null,"Laboratory",18764.16,12269.54,31.03]
[null,null,"Chiller4",null,4,0.57999999999999996,0,120,200,650,null,null,null,null,null,"Library",17638.62,12572.27,31.03]
[null,null,"Chiller5",null,5,0.56999999999999995,0,120,200,650,null,null,null,null,null,"Manufacturing Facility",18764.16,12269.54,31.03]
[null,null,null,null,null,null,null,null,null,null,null,null,null,null,null,"Motel",10023.58,7902.05,7.34]
[null,null,null,null,null,null,null,null,null,null,null,null,null,null,null,"Motion Picture Theater",10462.06,12667.35,16.88]
[null,null,"Refrig Compressor Lookup Table",2,3,4,5,6,7,8,null,null,null,null,null,"Multi-Family Housing",19669.150000000001,11794.65,31.03]
[null,null,"Equipment Application ","Baseline COP","Minimum COP","Duty Cycle","Deemed kWh/Ton","Deemed kW/Ton","Rebate/Unit","Incremental Cost/Unit",null,null,null,null,null,"Museum",17439.990000000002,12586.19,30.76]
[null,null,"RFC: Beverage Merchandiser",1.72,2.15,0.45,0,0,80,105.6,null,null,null,null,null,"Office, Small",18764.16,12269.54,31.03]
[null,null,"RFC: Food Service Equipment",2.04,2.4500000000000002,0.65,0,0,80,211.2,null,null,null,null,null,"Office, Large",18764.16,12269.54,31.03]
[null,null,"RFC: Reach-In: Cooler",2.04,2.5499999999999998,0.65,0,0,80,88,null,null,null,null,null,"Parking Garage",16078.88,11619.43,30.43]
[null,null,"RFC: Reach-In: Freezer",1.25,1.67,0.75,0,0,80,180,null,null,null,null,null,"Penitentiary",15970.22,11491.14,31.02]
[null,null,"RFC: Walk-In: Cooler",3.42,4.1399999999999997,0.66,0,0,80,147.44,null,null,null,null,null,"Performing Arts Theater",17905.400000000001,12862.4,31.03]
[null,null,"RFC: Walk-In: Freezer",1,1.2,0.7,0,0,80,1611.36,null,null,null,null,null,"Police Station",10023.58,7902.05,7.34]
[null,null,"Discus Compressor",0,0,0,344,5.8999999999999997E-2,50,132,null,null,null,null,null,"Post Office",17948.349999999999,12102.64,30.9]
[null,null,null,null,null,null,null,null,null,null,null,null,null,null,null,"Religious Building",19842.96,12781.55,30.6]
[null,null,null,null,null,null,null,null,null,null,null,null,null,null,null,"Retail, Food/Grocery",16148.61,12115.8,31.02]
[null,null,null,null,null,null,null,null,null,null,null,null,null,null,null,"Retail, Commodity",16148.61,12115.8,31.02]
[null,null,null,null,null,null,null,null,null,null,null,null,null,null,null,"Retail, Specialty",16148.61,12115.8,31.02]
[null,null,null,null,null,null,null,null,null,null,null,null,null,null,null,"Primary School",18791.189999999999,11762.64,31.03]
[null,null,null,null,null,null,null,null,null,null,null,null,null,null,null,"Sec. School",14051.44,11768.02,27.53]
[null,null,null,null,null,null,null,null,null,null,null,null,null,null,null,"University",14051.44,11768.02,27.53]
[null,null,null,null,null,null,null,null,null,null,null,null,null,null,null,"Sports Arena",17219.099999999999,12839.38,30.22]
[null,null,null,null,null,null,null,null,null,null,null,null,null,null,null,"Town Hall",18330.189999999999,12295.33,31.03]
[null,null,null,null,null,null,null,null,null,null,null,null,null,null,null,"Transportation",16973.97,11836.14,30.630000000000003]
[null,null,null,null,null,null,null,null,null,null,null,null,null,null,null,"Warehouse, Refrigerated",18106.91,12202.25,31.03]
[null,null,null,null,null,null,null,null,null,null,null,null,null,null,null,"Warehouse, Commercial",18106.91,12202.25,31.03]
[null,null,null,null,null,null,null,null,null,null,null,null,null,null,null,"Warehouse, Industrial",18106.91,12202.25,31.03]
[null,null,null,null,null,null,null,null,null,null,null,null,null,null,null,"Workshop",17601.419999999998,12683.66,31.03]

{"sheet":"Deemed Lookup Tables","index":19,"n_rows":153,"n_cols":17,"rows_kept":153,"cut":false,"hidden":true,"merged":[]}
[]
[null,"HVAC Deemed Lookup Table",2,3,4,5,6,7,8,9,10]
[null,"Measure","Unit","Min/Max","OpHr Min","SB Min","kWh/unit","kW/unit","Cost/unit","Rebate/unit","$/kWh"]
[null,"ECM (Other)","HP",1,0,0,{"$f":"IFERROR(VLOOKUP(Facility_Type,TRM_ECM_HVAC,7,FALSE),0)","v":4202.5267212927101},{"$f":"IFERROR(VLOOKUP(Facility_Type,TRM_ECM_HVAC,8,FALSE),0)","v":0.64170510326656138},400,{"$f":"IF('Customer Information'!$AU$13<DATE(2000+MID(Version_ID,3,2),1,1),125,125)","v":125},{"$f":"J4/G4","v":2.9744010755879173E-2},"*"]
[null,"ECM (FCU/SF)","HP",1,0,0,{"$f":"IFERROR(VLOOKUP(Facility_Type,TRM_ECM_HVAC,5,FALSE),0)","v":5226.7425193677627},{"$f":"IFERROR(VLOOKUP(Facility_Type,TRM_ECM_HVAC,6,FALSE),0)","v":0.79809780414838338},400,{"$f":"IF('Customer Information'!$AU$13<DATE(2000+MID(Version_ID,3,2),1,1),125,125)","v":125},2.3915469250075139E-2,"*"]
[null,"PMSM (Int - NC/EC)","HP",1,0,0,{"$f":"IFERROR(VLOOKUP(Facility_Type,TRM_ECM_HVAC,9,FALSE),0)","v":1332.0586549161494},{"$f":"IFERROR(VLOOKUP(Facility_Type,TRM_ECM_HVAC,11,FALSE),0)","v":0.20339878682488158},58.235294117647058,{"$f":"IF('Customer Information'!$AU$13<DATE(2000+MID(Version_ID,3,2),1,1),105,105)","v":105},7.8825357736675303E-2,"*"]
[null,"PMSM (Ext - NC/EC)","HP",1,0,0,{"$f":"IFERROR(VLOOKUP(Facility_Type,TRM_ECM_HVAC,10,FALSE),0)","v":1071.0326883084133},{"$f":"IFERROR(VLOOKUP(Facility_Type,TRM_ECM_HVAC,12,FALSE),0)","v":0.16354140911718021},58.235294117647058,{"$f":"IF('Customer Information'!$AU$13<DATE(2000+MID(Version_ID,3,2),1,1),105,105)","v":105},9.8036223493642174E-2,"*"]
[null,"PMSM (Int - SP/PSC)","HP",1,0,0,{"$f":"IFERROR(VLOOKUP(Facility_Type,TRM_ECM_HVAC,13,FALSE),0)","v":6558.8011742839108},{"$f":"IFERROR(VLOOKUP(Facility_Type,TRM_ECM_HVAC,15,FALSE),0)","v":1.0014965909732647},425,{"$f":"IF('Customer Information'!$AU$13<DATE(2000+MID(Version_ID,3,2),1,1),200,200)","v":200},3.0493377476385534E-2,"*"]
[null,"PMSM (Ext - SP/PSC)","HP",1,0,0,{"$f":"IFERROR(VLOOKUP(Facility_Type,TRM_ECM_HVAC,14,FALSE),0)","v":5273.5594096011228},{"$f":"IFERROR(VLOOKUP(Facility_Type,TRM_ECM_HVAC,16,FALSE),0)","v":0.80524651238374145},425,{"$f":"IF('Customer Information'!$AU$13<DATE(2000+MID(Version_ID,3,2),1,1),200,200)","v":200},3.7925049187058926E-2,"*"]
[null,"CO Sensor","Tons",0,0,0,3341.74,0,2029.19,250,7.4811325836241005E-2]
[null,"EMS for DX Systems","SqFt",0,2200,8,0.9,0,0.21299999999999999,0.2,{"$f":"J11/G11","v":0.22222222222222224}]
[null,"EMS for Water-Cooled Systems (Tier 0)","SqFt",0,0,0,0,0,0,0,{"$f":"J12/G12","v":{"$error":"#DIV/0!"}}]
[null,"EMS for Water-Cooled Systems (Tier 1)","SqFt",0,0,0,1.2125300000000001,3.0939000000000003E-5,0.21299999999999999,0.2,0.16494437251037086]
[null,"EMS for Water-Cooled Systems (Tier 2)","SqFt",0,0,0,1.3608199999999999,5.6100000000000002E-5,0.56000000000000005,0.3,{"$f":"J14/G14","v":0.22045531370791141}]
[null,"RTU Controller","Tons",0,0,0,761,0.224,590,{"$f":"IF('Customer Information'!$AU$13<DATE(2000+MID(Version_ID,3,2),1,1),250,250)","v":250},{"$f":"J15/(G15*5)","v":6.5703022339027597E-2},"*"]
[null,"SMART Thermostat, No","Tons",0,1,1,405,0,325,{"$f":"IF('Customer Information'!$AU$13<DATE(2000+MID(Version_ID,3,2),1,1),150,150)","v":150},{"$f":"J16/(G16*5)","v":7.407407407407407E-2},"*"]
[null,"SMART Thermostat, Yes","Tons",0,1,1,405,0,325,{"$f":"IF('Customer Information'!$AU$13<DATE(2000+MID(Version_ID,3,2),1,1),200,200)","v":200},{"$f":"J17/(G17*5)","v":9.8765432098765427E-2},"*"]
[null,"VFD: VAV Fan","HP",100,0,0,1448,0.17799999999999999,261.62,{"$f":"IF('Customer Information'!$AU$13<DATE(2000+MID(Version_ID,3,2),1,1),90,90)","v":90},{"$f":"J18/G18","v":6.2154696132596686E-2},"*"]
[null,"VFD: Exhaust Fan","HP",100,0,0,1448,0.17799999999999999,261.62,{"$f":"IF('Customer Information'!$AU$13<DATE(2000+MID(Version_ID,3,2),1,1),90,90)","v":90},6.2154696132596686E-2,"*"]
[null,"VFD: Recirculation Fan",{"$f":"C19","v":"HP"},100,0,0,1448,0.17799999999999999,261.62,90,{"$f":"K19","v":6.2154696132596686E-2},"*"]
[null,"VFD: Cooling Tower Fan","HP",100,0,0,575,0.16500000000000001,261.62,{"$f":"IF('Customer Information'!$AU$13<DATE(2000+MID(Version_ID,3,2),1,1),90,90)","v":90},0.15652173913043479,"*"]
[null,"VFD: Condenser Fan","HP",100,0,0,575,0.16500000000000001,261.62,{"$f":"IF('Customer Information'!$AU$13<DATE(2000+MID(Version_ID,3,2),1,1),90,90)","v":90},{"$f":"J22/G22","v":0.15652173913043479},"*"]
[null,"VFD: Unitary HVAC Fan (Supply Fan)","HP",100,0,0,1152,0.15,261.62,{"$f":"IF('Customer Information'!$AU$13<DATE(2000+MID(Version_ID,3,2),1,1),90,90)","v":90},7.8125E-2,"*"]
[null,"VFD: Unitary HVAC Fan (Return Fan)","HP",100,0,0,1123,0.14899999999999999,261.62,{"$f":"IF('Customer Information'!$AU$13<DATE(2000+MID(Version_ID,3,2),1,1),90,90)","v":90},8.0142475512021374E-2,"*"]
[null,"VFD: Unitary HVAC Fan (Condenser Fan)","HP",100,0,0,1123,0.14899999999999999,261.62,{"$f":"IF('Customer Information'!$AU$13<DATE(2000+MID(Version_ID,3,2),1,1),90,90)","v":90},{"$f":"J25/G25","v":8.0142475512021374E-2},"*"]
[null,"VFD: CHW Pump (2-Way Valve)","HP",100,0,0,610,0.13500000000000001,261.62,{"$f":"IF('Customer Information'!$AU$13<DATE(2000+MID(Version_ID,3,2),1,1),90,90)","v":90},0.14754098360655737,"*"]
[null,"VFD: CHW Pump (3-Way Valve)","HP",100,0,0,2429,0.314,261.62,{"$f":"IF('Customer Information'!$AU$13<DATE(2000+MID(Version_ID,3,2),1,1),90,90)","v":90},3.7052284890901607E-2,"*"]
[null,"VFD: CW Pump","HP",100,0,0,1160,0.25600000000000001,261.62,{"$f":"IF('Customer Information'!$AU$13<DATE(2000+MID(Version_ID,3,2),1,1),90,90)","v":90},7.7586206896551727E-2,"*"]
[null,"VFD: DSW Pump","HP",100,0,0,3500,4.7E-2,261.62,{"$f":"IF('Customer Information'!$AU$13<DATE(2000+MID(Version_ID,3,2),1,1),90,90)","v":90},2.5714285714285714E-2,"*"]
[null,"VFD: DHW Pump","HP",100,0,0,3280,0.24299999999999999,261.62,{"$f":"IF('Customer Information'!$AU$13<DATE(2000+MID(Version_ID,3,2),1,1),90,90)","v":90},2.7439024390243903E-2,"*"]
[]
[null,"Refrigeration Deemed Lookup Table",2,3,4,5,6,7,8,9,10,11,12,13,14]
[null,"Measure","Unit","Min/Max Size","Elig1","Elig1 Units","Elig2","Elig2 Units","Elig3","Elig3 Units","kWh/unit","kW/unit","Cost/unit","Rebate/unit","$/kWh"]
[null,"Anti-Sweat Heater Controls, Reach-In Med Temp","LnFt",0,0,"NA",0,"NA",0,"NA",35,2.5000000000000001E-2,6.42,3,{"$f":"N34/K34","v":8.5714285714285715E-2}]
[null,"Anti-Sweat Heater Controls, Reach-In Low Temp","LnFt",0,0,"NA",0,"NA",0,"NA",56,3.9E-2,6.42,3,{"$f":"N35/K35","v":5.3571428571428568E-2}]
[null,"Anti-Sweat Heater Controls, Walk-In Med Temp","LnFt",0,0,"NA",0,"NA",0,"NA",35,2.5000000000000001E-2,6.42,3,8.5714285714285715E-2]
[null,"Anti-Sweat Heater Controls, Walk-In Low Temp","LnFt",0,0,"NA",0,"NA",0,"NA",56,3.9E-2,6.42,3,5.3571428571428568E-2]
[null,"High-Efficiency Freezer Door, Low-Heat","Each",0,132,"W/dr",0,"NA",0,"NA",474,5.3999999999999999E-2,548.66999999999996,60,0.12658227848101267]
[null,"High-Efficiency Freezer Door, No Heat","Each",0,52,"W/dr",0,"NA",0,"NA",1100,0.126,121,100,9.0909090909090912E-2]
[null,"Open Display Case Door Retrofit Kit","LnFt",0,0,"NA",0,"NA",0,"NA",430.74,5.91E-2,277.42,55,0.12768723591958026]
[null,"Auto-Closer, Walk-In Med Temp","Each",0,0,"NA",0,"NA",0,"NA",215,1.2999999999999999E-2,166,20,9.3023255813953487E-2]
[null,"Auto-Closer, Walk-In Low Temp","Each",0,0,"NA",0,"NA",0,"NA",2730,0.16300000000000001,166,40,1.4652014652014652E-2]
[null,"Dock Door Seal, Med Temp","LnFt",0,0,"NA",0,"NA",0,"NA",329,7.8E-2,27,25,7.598784194528875E-2]
[null,"Dock Door Seal, Low Temp","LnFt",0,0,"NA",0,"NA",0,"NA",781,0.16300000000000001,34,25,3.2010243277848911E-2]
[null,"Electronically Commutated Motor, Reach-In","Each",0,0,"NA",0,"NA",0,"NA",246,2.8000000000000001E-2,40.985999999999997,{"$f":"IF('Customer Information'!$AU$13<DATE(2000+MID(Version_ID,3,2),1,1),25,25)","v":25},0.1016260162601626,"*"]
[null,"Electronically Commutated Motor, Walk-In","Each",0,0,"NA",0,"NA",0,"NA",717,8.6999999999999994E-2,165,{"$f":"IF('Customer Information'!$AU$13<DATE(2000+MID(Version_ID,3,2),1,1),60,60)","v":60},8.3682008368200833E-2,"*"]
[null,"Permanent-Magnet Sync Motor, Reach-In Cooler (SP)","Each",0,0,"NA",0,"NA",0,"NA",263.73,3.0099999999999998E-2,49.188000000000002,{"$f":"IF('Customer Information'!$AU$13<DATE(2000+MID(Version_ID,3,2),1,1),30,30)","v":30},0.11375270162666362,"*"]
[null,"Permanent-Magnet Sync Motor, Reach-In Freezer (SP)","Each",0,0,"NA",0,"NA",0,"NA",275.2,3.1399999999999997E-2,49.188000000000002,{"$f":"IF('Customer Information'!$AU$13<DATE(2000+MID(Version_ID,3,2),1,1),30,30)","v":30},0.10901162790697674,"*"]
[null,"Permanent-Magnet Sync Motor, Walk-In Cooler (SP)","Each",0,0,"NA",0,"NA",0,"NA",842.95,3.1399999999999997E-2,198,{"$f":"IF('Customer Information'!$AU$13<DATE(2000+MID(Version_ID,3,2),1,1),75,75)","v":75},{"$f":"N49/K49","v":8.8973248709887889E-2},"*"]
[null,"Permanent-Magnet Sync Motor, Walk-In Freezer (SP)","Each",0,0,"NA",0,"NA",0,"NA",879.62,3.1399999999999997E-2,198,{"$f":"IF('Customer Information'!$AU$13<DATE(2000+MID(Version_ID,3,2),1,1),75,75)","v":75},8.5264091312157522E-2,"*"]
[null,"Permanent-Magnet Sync Motor, Reach-In Cooler (PSC)","Each",0,0,"NA",0,"NA",0,"NA",263.73,3.0099999999999998E-2,49.188000000000002,{"$f":"IF('Customer Information'!$AU$13<DATE(2000+MID(Version_ID,3,2),1,1),30,30)","v":30},0.11375270162666362,"*"]
[null,"Permanent-Magnet Sync Motor, Reach-In Freezer (PSC)","Each",0,0,"NA",0,"NA",0,"NA",275.2,3.1399999999999997E-2,49.188000000000002,{"$f":"IF('Customer Information'!$AU$13<DATE(2000+MID(Version_ID,3,2),1,1),30,30)","v":30},0.10901162790697674,"*"]
[null,"Permanent-Magnet Sync Motor, Walk-In Cooler (PSC)","Each",0,0,"NA",0,"NA",0,"NA",842.95,3.1399999999999997E-2,198,{"$f":"IF('Customer Information'!$AU$13<DATE(2000+MID(Version_ID,3,2),1,1),75,75)","v":75},{"$f":"N53/K53","v":8.8973248709887889E-2},"*"]
[null,"Permanent-Magnet Sync Motor, Walk-In Freezer (PSC)","Each",0,0,"NA",0,"NA",0,"NA",879.62,3.1399999999999997E-2,198,{"$f":"IF('Customer Information'!$AU$13<DATE(2000+MID(Version_ID,3,2),1,1),75,75)","v":75},8.5264091312157522E-2,"*"]
[null,"Permanent-Magnet Sync Motor, Reach-In Cooler (EC)","Each",0,0,"NA",0,"NA",0,"NA",0,0,0,0,{"$error":"#DIV/0!"}]
[null,"Permanent-Magnet Sync Motor, Reach-In Freezer (EC)","Each",0,0,"NA",0,"NA",0,"NA",0,0,0,0,{"$error":"#DIV/0!"}]
[null,"Permanent-Magnet Sync Motor, Walk-In Cooler (EC)","Each",0,0,"NA",0,"NA",0,"NA",140.81,1.7000000000000001E-2,58.235294117647058,{"$f":"IF('Customer Information'!$AU$13<DATE(2000+MID(Version_ID,3,2),1,1),15,15)","v":15},0.10652652510475108,"*"]
[null,"Permanent-Magnet Sync Motor, Walk-In Freezer (EC)","Each",0,0,"NA",0,"NA",0,"NA",146.94,1.78E-2,58.235294117647058,{"$f":"IF('Customer Information'!$AU$13<DATE(2000+MID(Version_ID,3,2),1,1),15,15)","v":15},0.10208248264597795,"*"]
[null,"Evaporative Condenser, Ammonia","Tons",0,70,"degF",18,"degF",240,"EER",768,0,604,70,9.1145833333333329E-2]
[null,"Evaporative Condenser, Freon","Tons",0,70,"degF",18,"degF",240,"EER",1510,3.2500000000000001E-2,604,70,4.6357615894039736E-2]
[null,"Fast-Acting Door, Bi-Fold Med Temp","SqFt",0,1.5,"Seconds",3000,"Sq Ft",0,"NA",67,1.6E-2,125,30,0.44776119402985076]
[null,"Fast-Acting Door, Bi-Fold Low Temp","SqFt",0,1.5,"Seconds",3000,"Sq Ft",0,"NA",179,4.1000000000000002E-2,175,80,0.44692737430167595]
[null,"Fast-Acting Door, Roll-Up Med Temp","SqFt",0,4,"Seconds",3000,"Sq Ft",0,"NA",67,1.6E-2,125,30,0.44776119402985076]
[null,"Fast-Acting Door, Roll-Up Low Temp","SqFt",0,4,"Seconds",3000,"Sq Ft",0,"NA",179,4.1000000000000002E-2,175,80,0.44692737430167595]
[null,"Floating Head-Pressure Controls, Ammonia","Tons",0,70,"degF",18,"degF",0,"NA",947,2.3999999999999998E-3,29,20,2.1119324181626188E-2]
[null,"Floating Head-Pressure Controls, Freon","Tons",0,70,"degF",18,"degF",0,"NA",2039,7.6399999999999996E-2,29,20,9.8087297694948502E-3]
[null,"Door Gaskets, Glass Door Med Temp","LnFt",0,0,"NA",0,"NA",0,"NA",19,2.2000000000000001E-3,{"$f":"3.85+2.05","v":5.9},3.5,0.18421052631578946]
[null,"Door Gaskets, Glass Door Low Temp","LnFt",0,0,"NA",0,"NA",0,"NA",104,1.1900000000000001E-2,{"$f":"3.85+2.05","v":5.9},4.5,4.3269230769230768E-2]
[null,"Door Gaskets, Solid Door Med Temp","LnFt",0,0,"NA",0,"NA",0,"NA",27,3.0999999999999999E-3,{"$f":"3.85+2.05","v":5.9},3.5,0.12962962962962962]
[null,"Door Gaskets, Solid Door Low Temp","LnFt",0,0,"NA",0,"NA",0,"NA",151,1.7299999999999999E-2,{"$f":"3.85+2.05","v":5.9},4.5,2.9801324503311258E-2]
[null,"High-Efficiency Open Display Case","LnFt",0,0,"NA",0,"NA",0,"NA",145,1.6E-2,700,20,0.13793103448275862]
[null,"Refrigerated Occupancy Controls, Reach-In","Each",0,0,"NA",0,"NA",0,"NA",1209,0,180,{"$f":"IF('Customer Information'!$AU$13<DATE(2000+MID(Version_ID,3,2),1,1),100,100)","v":100},8.2712985938792394E-2,"*"]
[null,"Refrigerated Occupancy Controls, Beverage Machine","Each",0,0,"NA",0,"NA",0,"NA",1612,0,180,{"$f":"IF('Customer Information'!$AU$13<DATE(2000+MID(Version_ID,3,2),1,1),100,100)","v":100},6.2034739454094295E-2,"*"]
[null,"Refrigerated Occupancy Controls, Snack Machine","Each",0,0,"NA",0,"NA",0,"NA",343,0,80,{"$f":"IF('Customer Information'!$AU$13<DATE(2000+MID(Version_ID,3,2),1,1),40,40)","v":40},0.11661807580174927,"*"]
[null,"Refrigerated Beverage Vending Machine","Each",0,0,"NA",0,"NA",0,"NA",1576,0,500,130,{"$f":"N75/K75","v":8.2487309644670048E-2}]
[null,"Refrigerated Suction Pipe Insulation, Med Temp","LnFt",0,3.2,"R-Value",1.625,"Inches",0,"NA",6.94,1.1999999999999999E-3,0.91,0.75,0.10806916426512968]
[null,"Refrigerated Suction Pipe Insulation, Low Temp","LnFt",0,4.3,"R-Value",1.625,"Inches",0,"NA",29.69,4.7999999999999996E-3,0.91,0.75,2.5261030650050521E-2]
[null,"Strip Curtain","SqFt",0,0,"NA",0,"NA",0,"NA",40,4.5265799680584071E-3,10.16,4,0.1]
[null,"Variable Frequency Drive, Condenser Fan","HP",0,0,"NA",0,"NA",0,"NA",1949,0.23300000000000001,300,{"$f":"IF('Customer Information'!$AU$13<DATE(2000+MID(Version_ID,3,2),1,1),125,125)","v":125},{"$f":"N79/K79","v":6.4135454079014872E-2},"*"]
[null,"Variable Frequency Drive, Evaporator Fan","HP",0,0,"NA",0,"NA",0,"NA",2180,0.245,260,{"$f":"IF('Customer Information'!$AU$13<DATE(2000+MID(Version_ID,3,2),1,1),125,125)","v":125},{"$f":"N80/K80","v":5.7339449541284407E-2},"*"]
[null,"Ultra-Low Temperature Freezer, Tier 0","Each",0,0,"kWh/CF/day",0,"NA",0,"NA",0,0,0,0,{"$f":"N81/K81","v":{"$error":"#DIV/0!"}}]
[null,"Ultra-Low Temperature Freezer, Tier 1","Each",25,0.42,"kWh/CF/day",0,"NA",0,"NA",{"$f":"20.7*(0.55-0.41)*365","v":1057.7700000000004},{"$f":"20.7*(0.55-0.41)/24","v":0.12075000000000007},1157.58,125,0.11817313782769406]
[null,"Ultra-Low Temperature Freezer, Tier 2","Each",40,0.42,"kWh/CF/day",0,"NA",0,"NA",{"$f":"28.1*(0.55-0.41)*365","v":1435.9100000000008},{"$f":"28.1*(0.55-0.41)/24","v":0.16391666666666674},1570.14,175,0.12187393360308091]
[]
[null,"Kitchen Equipment Deemed Lookup Table",2,3,4,5,6,7,8,9,10,11,12,13,14,15,16]
[null,"Measure","Unit","Size","Elig1","Elig1 Units","kWh/unit","m(kWh)","b(kWh)","kW/unit","m(kW)","b(kW)","Elect_kWh/Unit","GHG/Unit","Cost/unit","Rebate/unit","$/kWh"]
[null,"Griddle","Each",0,70,"CEE",2597.0479120879104,0,0,0.24194871794871783,0,0,14645.39,{"$f":"AVERAGE(1231.65,1384.95)","v":1308.3000000000002},1250,225,{"$f":"P87/G87","v":8.6636830592436029E-2}]
[null,"Steam Cooker","Each",3,50,"CEE",4682.4083333333338,0,0,0.87601524830785604,0,0,2779.71,1358.72,2490,250,5.339132818047692E-2]
[null,"Dishwasher, Under-Counter","Each",0,0,"NA",2706.375,0,0,0.16807652091254754,0,0,11278.5,270.8,627,200,7.3899588933536556E-2]
[null,"Dishwasher, Single-Tank","Each",0,0,"NA",11915.625,0,0,0.74000712927756662,0,0,67032.53,1168.4000000000001,705,600,5.035405192761605E-2]
[null,"Dishwasher, Multi-Tank","Each",0,0,"NA",20812.5,0,0,1.2925380228136882,0,0,89644,1614.4,970,800,3.8438438438438437E-2]
[null,"Hot Food Holding Cabinet, 1/2 Size","Each",0,0,"NA",2628,0,0,0.19586584531143056,0,0,0,0,1500,225,8.5616438356164379E-2]
[null,"Hot Food Holding Cabinet, 3/4 Size","Each",0,0,"NA",3942,0,0,0.29379876796714582,0,0,0,0,1800,350,8.8787417554540837E-2]
[null,"Hot Food Holding Cabinet, Full Size","Each",0,0,"NA",9308,0,0,0.69372880066925247,0,0,0,0,1200,700,7.5204125483455092E-2]
[null,"Hot Food Holding Cabinet Gasket","Ln. Ft.",0,0,"NA",18,0,0,4.0000000000000001E-3,0,0,0,0,{"$f":"M67","v":5.9},2.5,0.1388888888888889]
[null,"Ice Maker, IMH, Tier 0","Each",0,0,"NA",0,0,0,0,0,0,0,0,0,0,{"$error":"#DIV/0!"}]
[null,"Ice Maker, IMH, Tier 1","Each",100,0,"NA",{"$f":"300*H97+I97","v":316.06595678571364},0.71059074428571467,102.88873349999926,{"$f":"300*K97+L97","v":5.9270827380952275E-2},{"$f":"H97/(8766*0.57)*0.937","v":1.3325478571428581E-4},{"$f":"I97/(8766*0.57)*0.937","v":1.9294391666666529E-2},0,0,222,50,0.1581948290429108]
[null,"Ice Maker, IMH, Tier 2","Each",501,0,"NA",{"$f":"1000*H98+I98","v":813.47947778571393},0.71059074428571467,102.88873349999926,{"$f":"1000*K98+L98","v":0.15254917738095233},{"$f":"H98/(8766*0.57)*0.937","v":1.3325478571428581E-4},{"$f":"I98/(8766*0.57)*0.937","v":1.9294391666666529E-2},0,0,222,150,0.18439309668671552]
[null,"Ice Maker, IMH, Tier 3","Each",1501,0,"NA",{"$f":"1750*H99+I99","v":1346.422536},0.71059074428571467,102.88873349999926,{"$f":"1750*K99+L99","v":0.25249026666666669},1.3325478571428581E-4,1.9294391666666529E-2,0,0,222,215,0.15968241339656244]
[null,"Ice Maker, RCU, Tier 0","Each",0,0,"NA",0,0,0,0,0,0,0,0,0,0,{"$error":"#DIV/0!"}]
[null,"Ice Maker, RCU, Tier 1","Each",100,0,"NA",{"$f":"300*H101+I101","v":418.15228821428553},0.8610873107142859,159.82609499999978,{"$f":"300*K101+L101","v":7.8414747180451105E-2},1.614769204260652E-4,2.9971671052631536E-2,0,0,222,50,0.11957366110209373]
[null,"Ice Maker, RCU, Tier 2","Each",501,0,"NA",{"$f":"1000*H102+I102","v":1020.9134057142857},0.8610873107142859,159.82609499999978,{"$f":"1000*K102+L102","v":0.19144859147869675},1.614769204260652E-4,2.9971671052631536E-2,0,0,222,150,0.14692725079366745]
[null,"Ice Maker, RCU, Tier 3","Each",1501,0,"NA",{"$f":"1750*H103+I103","v":1666.7288887499999},0.8610873107142859,159.82609499999978,{"$f":"1750*K103+L103","v":0.31255628179824563},1.614769204260652E-4,2.9971671052631536E-2,0,0,222,215,0.12899518419053982]
[null,"Ice Maker, SCU, Tier 0","Each",0,0,"MA",0,0,0,0,0,0,0,0,0,0,{"$error":"#DIV/0!"}]
[null,"Ice Maker, SCU, Tier 1","Each",100,0,"NA",{"$f":"300*H105+I105","v":700.77595499999939},2.2776259499999991,17.488169999999627,{"$f":"300*K105+L105","v":0.1314142499999999},4.2711583333333321E-4,3.2794999999999305E-3,0,0,222,50,7.1349480020329814E-2]
[null,"Ice Maker, SCU, Tier 2","Each",501,0,"NA",{"$f":"1000*H106+I106","v":2295.1141199999988},2.2776259499999991,17.488169999999627,{"$f":"1000*K106+L106","v":0.43039533333333313},4.2711583333333321E-4,3.2794999999999305E-3,0,0,222,150,6.5356227253745486E-2]
[null,"Ice Maker, SCU, Tier 3","Each",1501,0,"NA",{"$f":"1750*H107+I107","v":4003.3335824999981},2.2776259499999991,17.488169999999627,{"$f":"1750*K107+L107","v":0.75073220833333298},4.2711583333333321E-4,3.2794999999999305E-3,0,0,222,215,5.3705242286039276E-2]
[null,"Electric Convection Oven","Each",0,0,"NA",2200.3391715195503,0,0,0.41193564398311217,0,0,5612.2650000000003,674.81,900,175,7.9533193002761168E-2]
[null,"Electric Vat Fryer, Standard","Each",0,80,"CEE",2377.9549748444319,0,0,0.1661530255637936,0,0,41266.436999999998,1636.24,1200,250,0.10513235222897996]
[null,"Electric Vat Fryer, Large","Each",0,80,"CEE",2537.8352678571446,0,0,0.23643229166666688,0,0,42012.5,1557.77,1200,150,5.9105491163992892E-2]
[null,"Electric Combination Oven, <15 Pans","Each",0,60,"CEE",6367.9431940713393,0,0,0.59366289290238905,0,0,32504.032999999999,{"$f":"736.15*M111/AVERAGE($M$111:$M$112)","v":584.91423054786321},3824,550,8.6370117200803412E-2]
[null,"Electric Combination Oven, 15+ Pans","Each",0,60,"CEE",11735.586420861813,0,0,1.0940710323862803,0,0,49312.557000000001,{"$f":"736.15*M112/AVERAGE($M$111:$M$112)","v":887.38576945213686},3824,1000,8.5210910144408791E-2]
[null,"HE Pre-Rinse Spray Valve","Each",1.1499999999999999,0,"NA",5079.1244002368821,0,0,0,0,0,0,0,93,75,1.4766324683148561E-2]
[null,"VFD: Kitchen - Hotel","HP",0,100,"HP",4317,0,0,0.55500000000000005,0,0,0,0,1991,300,{"$f":"P114/G114","v":6.9492703266157058E-2}]
[null,"VFD: Kitchen - Restaurant","HP",0,100,"HP",3494,0,0,0.51300000000000001,0,0,0,0,1991,300,{"$f":"P115/G115","v":8.5861476817401264E-2}]
[]
[null,"Compressed Air Deemed Lookup Table",2,3,4,5,6,7,8,9,10]
[null,"Measure","Unit","Min/Max Size","mOpHrs","Elig","kWh/unit","kW/unit","Cost/unit (retro)","Cost/unit (NC)","Rebate/unit"]
[null,"Receiver Capacity Addition","Gallon",0,0,2,{"$f":"13/6000","v":2.1666666666666666E-3},2.0999999999999999E-3,6.83,4.87,1.5]
[null,"Desiccant Dryer: Blower Purge","SCFM",1000,6000,0,{"$f":"41/6000","v":6.8333333333333336E-3},6.4999999999999997E-3,51,51,7.5]
[null,"Desiccant Dryer: Externally Heated","SCFM",1000,6000,0,{"$f":"30/6000","v":5.0000000000000001E-3},4.7999999999999996E-3,28,28,5]
[null,"LPD Filter","SCFM",1000,0,25,{"$f":"7/6000","v":1.1666666666666668E-3},1.1000000000000001E-3,6.97,3.62,0.8]
[null,"Refrigerated Cycling Dryer","SCFM",1000,0,0,{"$f":"16/6000","v":2.6666666666666666E-3},2.5000000000000001E-3,2.74,2.74,1.5]
[null,"VFD Compressor","HP",75,0,0,{"$f":"1093/6000","v":0.18216666666666667},0.1731,589.48,135.55000000000001,90]
[null,"ZL Condensate Drain","Each",0,0,0,{"$f":"2214/6000","v":0.36899999999999999},0.35049999999999998,379,140,230]
[]
[null,"ITDC Deemed Lookup Table",2,3,4,5,6,7]
[null,"Measure","Unit","kWh/unit","kW/unit","Cost/unit","Rebate/unit","$/kWh"]
[null,"Computer Power Management","Each",159,2.4E-2,12,{"$f":"IF('Customer Information'!$AU$13<DATE(2000+MID(Version_ID,3,2),1,1),8,8)","v":8},{"$f":"G129/D129","v":5.0314465408805034E-2},"*"]
[null,"ECM: CRAC","HP",2970,0.34,520.18187378937694,250,{"$f":"G130/D130","v":8.4175084175084181E-2}]
[null,"ECM: CRAH","HP",2970,0.34,520.18187378937694,250,{"$f":"G131/D131","v":8.4175084175084181E-2}]
[null,"Server Virtualization","Each",7975,0.9104147327096781,300,{"$f":"IF('Customer Information'!$AU$13<DATE(2000+MID(Version_ID,3,2),1,1),300,300)","v":300},{"$f":"G132/D132","v":3.7617554858934171E-2},"*"]
[null,"HE Server New Installation","Each",2393,0.27312441981290336,2500,200,8.5733882030178329E-2]
[null,"HE Server Replacement","Each",5756,0.65706518861430507,2500,375,{"$f":"G134/D134","v":6.5149409312022233E-2}]
[]
[null,"Miscellaneous Deemed Lookup Table",2,3,4,5,6,7,8,9,10,11]
[null,"Measure","Unit","Elig1","Elig2","kWh/unit","kW/unit","Elect_kWh/Unit","GHG/Unit","Cost/unit","Rebate/unit","$/kWh"]
[null,"Ultraviolet Germicidal Irradiation","Tons",0,0,0,0,0,0,139.4,30,{"$f":"K138/F138","v":{"$error":"#DIV/0!"}}]
[null,"HPWH - Tier 0","Each",0,0,0,0,0,0,0,0,{"$error":"#DIV/0!"}]
[null,"HPWH - Tier 1","Each",3.3,0,2334,0.26600000000000001,1124,388.23,990,250,0.10711225364181662]
[null,"HPWH - Tier 2","Each",3.75,0,2488,0.28399999999999997,1278,388.23,990,300,0.12057877813504823]
[null,"VFD: Pool Pump","HP",25,0,1630,0.19,0,0,290,135,8.2822085889570546E-2]
[null,"Cool Roof - Spray-On/Paint-On (Retro)","SqFt",0.3,0.9,0.83,3.57E-4,0,0,0.39,0.1,0.12048192771084339]
[null,"Cool Roof - Spray-On/Paint-On (NC)","SqFt",0.3,0.9,0.25,1.0399999999999999E-4,0,0,0.50749999999999995,0.05,0.2]
[null,"Cool Roof - Membrane (Retro)","SqFt",0.3,0.9,0.83,3.57E-4,0,0,0.39,0.2,0.24096385542168677]
[null,"Cool Roof - Membrane (NC)","SqFt",0.3,0.9,0.25,1.0399999999999999E-4,0,0,0.50749999999999995,0.1,0.4]
[null,"Roof Insulation (Retro)","SqFt",7,10,1.02,3.1799999999999998E-4,0,0,0.24160000000000001,0.2,0.19607843137254902]
[null,"Roof Insulation (NC)","SqFt",0,12,0.18,5.3999999999999998E-5,0,0,0.42699999999999999,0.05,0.27777777777777779]
[null,"Window Film","SqFt",0.35,0,8.3209999999999997,{"$f":"8.585/1000","v":8.5850000000000006E-3},0,0,{"$f":"1.66*2","v":3.32},{"$f":"IF('Customer Information'!$AU$13<DATE(2000+MID(Version_ID,3,2),1,1),0.75,0.75)","v":0.75},9.0133397428193734E-2,"*"]
[null,"Shade Screen","SqFt",0.25,0,11.135999999999999,{"$f":"11.491/1000","v":1.1490999999999999E-2},0,0,{"$f":"0.7+0.86","v":1.56},{"$f":"IF('Customer Information'!$AU$13<DATE(2000+MID(Version_ID,3,2),1,1),0.8,0.8)","v":0.8},7.1839080459770124E-2,"*"]
[]
[null,{"$f":"\"* Eligible for \" & Ref!$A$18","v":"* Eligible for Fast-Track"}]
[null,"     - Currently unused function."]

{"sheet":"Deemed by Facil Type","index":20,"n_rows":49,"n_cols":17,"rows_kept":49,"cut":false,"hidden":true,"merged":[[2,9,2,16],[2,1,3,1],[2,2,3,2],[2,3,3,3],[2,4,3,4],[2,5,2,8]]}
[]
[null,"ECM-PMSM (HVAC)",2,3,4,5,6,7,8,9,10,11,12,13,14,15,16]
[null,"Facility Type","EFLHc","EFLHh","Fan Hours","EC Motor",null,null,null,"PMS Motor"]
[null,null,null,null,null,"kWh_FCU-SF / HP","kW_FCU-SF / HP","kWh_Other / HP","kW_Other / HP","(Interior)\nkWh_NC-EC / HP","(Exterior)\nkWh_NC-EC / HP","(Interior) kW_NC-EC / HP","(Exterior) kW_NC-EC / HP","(Interior)\nkWh_Other / HP","(Exterior)\nkWh_Other / HP","(Interior) kW_Other / HP","(Exterior) kW_Other / HP"]
[null,"Assisted Living Facility",1222.6513501172794,630.22159966003881,8760,{"$f":"H5*(1+3.412/14)","v":6991.3367643398387},{"$f":"I5*(1+3.412/14)","v":0.79809780414838338},{"$f":"$E5*$I5","v":5621.3367046150779},0.64170510326656138,{"$f":"K5*(1+3.412/14)","v":1781.7733725859625},{"$f":"$M5*$E5","v":1432.6227438664987},{"$f":"M5*(1+3.412/14)","v":0.20339878682488158},0.16354140911718021,{"$f":"$O5*(1+3.412/14)","v":8773.1101369257995},{"$f":"$Q5*$E5","v":7053.9594484815752},{"$f":"Q5*(1+3.412/14)","v":1.0014965909732647},0.80524651238374145]
[null,"Automotive Facility",1947.9585846493046,822.90537094882245,4891,{"$f":"H6*(1+3.412/14)","v":3903.4963600897431},{"$f":"I6*(1+3.412/14)","v":0.79809780414838338},3138.5796600767517,0.64170510326656138,{"$f":"K6*(1+3.412/14)","v":994.82346636049579},799.88103199212844,{"$f":"M6*(1+3.412/14)","v":0.20339878682488158},0.16354140911718021,{"$f":"$O6*(1+3.412/14)","v":4898.319826450238},3938.4606920688793,{"$f":"Q6*(1+3.412/14)","v":1.0014965909732647},0.80524651238374145]
[null,"Casino",3558.1195633045054,880.58487546608524,8760,6991.3367643398387,0.79809780414838338,5621.3367046150779,0.64170510326656138,1781.7733725859625,1432.6227438664987,0.20339878682488158,0.16354140911718021,8773.1101369257995,7053.9594484815752,1.0014965909732647,0.80524651238374145]
[null,"Convention Center",2808.86425341117,325.04478429655319,8760,6991.3367643398387,0.79809780414838338,5621.3367046150779,0.64170510326656138,1781.7733725859625,1432.6227438664987,0.20339878682488158,0.16354140911718021,8773.1101369257995,7053.9594484815752,1.0014965909732647,0.80524651238374145]
[null,"Court House",3553.2567566991665,532.35986048341294,6549,5226.7425193677627,0.79809780414838338,4202.5267212927101,0.64170510326656138,1332.0586549161494,1071.0326883084133,0.20339878682488158,0.16354140911718021,6558.8011742839108,5273.5594096011228,1.0014965909732647,0.80524651238374145]
[null,"Data Center",3374.073896705826,609.84981491269536,8760,6991.3367643398387,0.79809780414838338,5621.3367046150779,0.64170510326656138,1781.7733725859625,1432.6227438664987,0.20339878682488158,0.16354140911718021,8773.1101369257995,7053.9594484815752,1.0014965909732647,0.80524651238374145]
[null,"Dining: Bar Lounge/Leisure",3558.1195633045054,880.58487546608524,7300,5826.1139702831979,0.79809780414838338,4684.4472538458976,0.64170510326656138,1484.8111438216354,1193.8522865554155,0.20339878682488158,0.16354140911718021,7310.9251141048326,5878.2995404013127,1.0014965909732647,0.80524651238374145]
[null,"Dining: Cafeteria/Fast Food",3366.3343971411282,895.87161029927529,7300,5826.1139702831979,0.79809780414838338,4684.4472538458976,0.64170510326656138,1484.8111438216354,1193.8522865554155,0.20339878682488158,0.16354140911718021,7310.9251141048326,5878.2995404013127,1.0014965909732647,0.80524651238374145]
[null,"Dining: Family",3558.1195633045054,880.58487546608524,7300,5826.1139702831979,0.79809780414838338,4684.4472538458976,0.64170510326656138,1484.8111438216354,1193.8522865554155,0.20339878682488158,0.16354140911718021,7310.9251141048326,5878.2995404013127,1.0014965909732647,0.80524651238374145]
[null,"Dormitory",2808.86425341117,244.02690395034833,8760,6991.3367643398387,0.79809780414838338,5621.3367046150779,0.64170510326656138,1781.7733725859625,1432.6227438664987,0.20339878682488158,0.16354140911718021,8773.1101369257995,7053.9594484815752,1.0014965909732647,0.80524651238374145]
[null,"Exercise Center",3366.3343971411282,895.87161029927529,7300,5826.1139702831979,0.79809780414838338,4684.4472538458976,0.64170510326656138,1484.8111438216354,1193.8522865554155,0.20339878682488158,0.16354140911718021,7310.9251141048326,5878.2995404013127,1.0014965909732647,0.80524651238374145]
[null,"Fire Station",2808.86425341117,244.02690395034833,8760,6991.3367643398387,0.79809780414838338,5621.3367046150779,0.64170510326656138,1781.7733725859625,1432.6227438664987,0.20339878682488158,0.16354140911718021,8773.1101369257995,7053.9594484815752,1.0014965909732647,0.80524651238374145]
[null,"Grow Facility",2777.347557929681,289.79334283664497,4640,3703.1738112484991,0.79809780414838338,2977.5116791568448,0.64170510326656138,943.77037086745054,758.83213830371619,0.20339878682488158,0.16354140911718021,4646.9441821159489,3736.3438174605603,1.0014965909732647,0.80524651238374145]
[null,"Gymnasium",3366.3343971411282,895.87161029927529,7300,5826.1139702831979,0.79809780414838338,4684.4472538458976,0.64170510326656138,1484.8111438216354,1193.8522865554155,0.20339878682488158,0.16354140911718021,7310.9251141048326,5878.2995404013127,1.0014965909732647,0.80524651238374145]
[null,"Health Care - Clinic",3374.073896705826,430.38330231634916,8760,6991.3367643398387,0.79809780414838338,5621.3367046150779,0.64170510326656138,1781.7733725859625,1432.6227438664987,0.20339878682488158,0.16354140911718021,8773.1101369257995,7053.9594484815752,1.0014965909732647,0.80524651238374145]
[null,"Health Care - Hospital",3374.073896705826,430.38330231634916,8760,6991.3367643398387,0.79809780414838338,5621.3367046150779,0.64170510326656138,1781.7733725859625,1432.6227438664987,0.20339878682488158,0.16354140911718021,8773.1101369257995,7053.9594484815752,1.0014965909732647,0.80524651238374145]
[null,"Hotel",2808.86425341117,244.02690395034833,8760,6991.3367643398387,0.79809780414838338,5621.3367046150779,0.64170510326656138,1781.7733725859625,1432.6227438664987,0.20339878682488158,0.16354140911718021,8773.1101369257995,7053.9594484815752,1.0014965909732647,0.80524651238374145]
[null,"Laboratory",2777.347557929681,289.79334283664497,4640,{"$f":"H22*(1+3.412/14)","v":3703.1738112484991},{"$f":"I22*(1+3.412/14)","v":0.79809780414838338},2977.5116791568448,0.64170510326656138,{"$f":"K22*(1+3.412/14)","v":943.77037086745054},758.83213830371619,{"$f":"M22*(1+3.412/14)","v":0.20339878682488158},0.16354140911718021,4646.9441821159489,3736.3438174605603,{"$f":"Q22*(1+3.412/14)","v":1.0014965909732647},0.80524651238374145]
[null,"Library",2506.8647508622453,344.07582757305852,4588,3661.6727254327834,0.79809780414838338,2944.1430137869838,0.64170510326656138,933.19363395255664,750.32798502962282,0.20339878682488158,0.16354140911718021,4594.8663593853389,3694.470998816606,1.0014965909732647,0.80524651238374145]
[null,"Manufacturing Facility",2777.347557929681,289.79334283664497,4640,3703.1738112484991,0.79809780414838338,2977.5116791568448,0.64170510326656138,943.77037086745054,758.83213830371619,0.20339878682488158,0.16354140911718021,4646.9441821159489,3736.3438174605603,1.0014965909732647,0.80524651238374145]
[null,"Motel",2432.6237961106085,432.78467021360024,8760,6991.3367643398387,0.79809780414838338,5621.3367046150779,0.64170510326656138,1781.7733725859625,1432.6227438664987,0.20339878682488158,0.16354140911718021,8773.1101369257995,7053.9594484815752,1.0014965909732647,0.80524651238374145]
[null,"Motion Picture Theater",3366.3343971411282,895.87161029927529,7300,5826.1139702831979,0.79809780414838338,4684.4472538458976,0.64170510326656138,1484.8111438216354,1193.8522865554155,0.20339878682488158,0.16354140911718021,7310.9251141048326,5878.2995404013127,1.0014965909732647,0.80524651238374145]
[null,"Multi-Family Housing",1222.6513501172794,630.22159966003881,8760,6991.3367643398387,0.79809780414838338,5621.3367046150779,0.64170510326656138,1781.7733725859625,1432.6227438664987,0.20339878682488158,0.16354140911718021,8773.1101369257995,7053.9594484815752,1.0014965909732647,0.80524651238374145]
[null,"Museum",2506.8647508622453,344.07582757305852,4588,3661.6727254327834,0.79809780414838338,2944.1430137869838,0.64170510326656138,933.19363395255664,750.32798502962282,0.20339878682488158,0.16354140911718021,4594.8663593853389,3694.470998816606,1.0014965909732647,0.80524651238374145]
[null,"Office, Large",3553.2567566991665,397.90890523884457,6549,5226.7425193677627,0.79809780414838338,4202.5267212927101,0.64170510326656138,1332.0586549161494,1071.0326883084133,0.20339878682488158,0.16354140911718021,6558.8011742839108,5273.5594096011228,1.0014965909732647,0.80524651238374145]
[null,"Office, Small",2506.8647508622453,344.07582757305852,4588,3661.6727254327834,0.79809780414838338,2944.1430137869838,0.64170510326656138,933.19363395255664,750.32798502962282,0.20339878682488158,0.16354140911718021,4594.8663593853389,3694.470998816606,1.0014965909732647,0.80524651238374145]
[null,"Parking Garage",2506.8647508622453,344.07582757305852,4588,3661.6727254327834,0.79809780414838338,2944.1430137869838,0.64170510326656138,933.19363395255664,750.32798502962282,0.20339878682488158,0.16354140911718021,4594.8663593853389,3694.470998816606,1.0014965909732647,0.80524651238374145]
[null,"Penitentiary",1222.6513501172794,630.22159966003881,4588,3661.6727254327834,0.79809780414838338,2944.1430137869838,0.64170510326656138,933.19363395255664,750.32798502962282,0.20339878682488158,0.16354140911718021,4594.8663593853389,3694.470998816606,1.0014965909732647,0.80524651238374145]
[null,"Performing Arts Theater",2405.280089418849,498.21742723664482,5151,4111.0017891683228,0.79809780414838338,3305.4229869260575,0.64170510326656138,1047.7071509349651,842.40179836259529,0.20339878682488158,0.16354140911718021,5158.7089401032872,4147.8247852886525,1.0014965909732647,0.80524651238374145]
[null,"Police Station",2808.86425341117,244.02690395034833,8760,6991.3367643398387,0.79809780414838338,5621.3367046150779,0.64170510326656138,1781.7733725859625,1432.6227438664987,0.20339878682488158,0.16354140911718021,8773.1101369257995,7053.9594484815752,1.0014965909732647,0.80524651238374145]
[null,"Post Office",2506.8647508622453,344.07582757305852,4588,3661.6727254327834,0.79809780414838338,2944.1430137869838,0.64170510326656138,933.19363395255664,750.32798502962282,0.20339878682488158,0.16354140911718021,4594.8663593853389,3694.470998816606,1.0014965909732647,0.80524651238374145]
[null,"Religious Building",2931.6448193372394,657.07256435173872,6570,5243.5025732548793,0.79809780414838338,4216.0025284613084,0.64170510326656138,1336.3300294394719,1074.4670578998739,0.20339878682488158,0.16354140911718021,6579.8326026943496,5290.4695863611814,1.0014965909732647,0.80524651238374145]
[null,"Retail, Food/Grocery",2832.1015295613688,167.43850477954024,5279,4213.1583080993159,0.79809780414838338,3387.5612401441776,0.64170510326656138,1073.7421956485498,863.33509872959428,0.20339878682488158,0.16354140911718021,5286.9005037478646,4250.8963388737711,1.0014965909732647,0.80524651238374145]
[null,"Retail, Commodity",2702.3981081978277,516.7267171044391,5840,4660.8911762265589,0.79809780414838338,3747.5578030767183,0.64170510326656138,1187.8489150573084,955.08182924433243,0.20339878682488158,0.16354140911718021,5848.7400912838666,4702.6396323210502,1.0014965909732647,0.80524651238374145]
[null,"Retail, Specialty",2702.3981081978277,516.7267171044391,5840,4660.8911762265589,0.79809780414838338,3747.5578030767183,0.64170510326656138,1187.8489150573084,955.08182924433243,0.20339878682488158,0.16354140911718021,5848.7400912838666,4702.6396323210502,1.0014965909732647,0.80524651238374145]
[null,"Primary School",2131.560945867669,353.75561964559597,3765,3004.8382326186638,0.79809780414838338,2416.0197137986038,0.64170510326656138,765.79643239567918,615.73340532618352,0.20339878682488158,0.16354140911718021,3770.6346650143419,3031.7531191247867,1.0014965909732647,0.80524651238374145]
[null,"Sec. School",2405.280089418849,498.21742723664482,5151,4111.0017891683228,0.79809780414838338,3305.4229869260575,0.64170510326656138,1047.7071509349651,842.40179836259529,0.20339878682488158,0.16354140911718021,5158.7089401032872,4147.8247852886525,1.0014965909732647,0.80524651238374145]
[null,"University",2567.6912696959703,413.06149081237169,5236,4178.840102520935,0.79809780414838338,3359.9679207037152,0.64170510326656138,1064.9960478150799,856.30281813755562,0.20339878682488158,0.16354140911718021,5243.8361503360138,4216.27073884127,1.0014965909732647,0.80524651238374145]
[null,"Sports Arena",2405.280089418849,498.21742723664482,5151,4111.0017891683228,0.79809780414838338,3305.4229869260575,0.64170510326656138,1047.7071509349651,842.40179836259529,0.20339878682488158,0.16354140911718021,5158.7089401032872,4147.8247852886525,1.0014965909732647,0.80524651238374145]
[null,"Town Hall",2506.8647508622453,344.07582757305852,4588,3661.6727254327834,0.79809780414838338,2944.1430137869838,0.64170510326656138,933.19363395255664,750.32798502962282,0.20339878682488158,0.16354140911718021,4594.8663593853389,3694.470998816606,1.0014965909732647,0.80524651238374145]
[null,"Transportation",2506.8647508622453,344.07582757305852,4588,3661.6727254327834,0.79809780414838338,2944.1430137869838,0.64170510326656138,933.19363395255664,750.32798502962282,0.20339878682488158,0.16354140911718021,4594.8663593853389,3694.470998816606,1.0014965909732647,0.80524651238374145]
[null,"Warehouse, Refrigerated",3485.998082347232,0.14708587169083132,8760,6991.3367643398387,0.79809780414838338,5621.3367046150779,0.64170510326656138,1781.7733725859625,1432.6227438664987,0.20339878682488158,0.16354140911718021,8773.1101369257995,7053.9594484815752,1.0014965909732647,0.80524651238374145]
[null,"Warehouse, Commercial",3277.206154286639,454.72823115980418,8760,6991.3367643398387,0.79809780414838338,5621.3367046150779,0.64170510326656138,1781.7733725859625,1432.6227438664987,0.20339878682488158,0.16354140911718021,8773.1101369257995,7053.9594484815752,1.0014965909732647,0.80524651238374145]
[null,"Warehouse, Industrial",3277.206154286639,454.72823115980418,8760,6991.3367643398387,0.79809780414838338,5621.3367046150779,0.64170510326656138,1781.7733725859625,1432.6227438664987,0.20339878682488158,0.16354140911718021,8773.1101369257995,7053.9594484815752,1.0014965909732647,0.80524651238374145]
[null,"Workshop",2748.5109073011749,130.48737528512399,4640,3703.1738112484991,0.79809780414838338,2977.5116791568448,0.64170510326656138,943.77037086745054,758.83213830371619,0.20339878682488158,0.16354140911718021,4646.9441821159489,3736.3438174605603,1.0014965909732647,0.80524651238374145]

{"sheet":"Smart Thermostat Lookups","index":21,"n_rows":8,"n_cols":8,"rows_kept":8,"cut":false,"hidden":true,"merged":[]}
["Select from List","Honeywell Home","Honeywell TCC","ecobee","Emerson","Google Nest","Other","SRP Override"]
["Select a Manufacturer","T5+ Smart Thermostat","Wi-Fi Smart Color Thermostat","ecobee3","Sensi™ Wi-Fi Programmable Thermostat","Nest","Don't Know"]
[null,"T6 Pro Smart Thermostat","Wi-Fi 7-Day Programmable Thermostat","ecobee3 Lite","Sensi Touch Wi-Fi Thermostat","Nest Learning","My Model is Unavailable"]
[null,"T9 Smart Thermostat","Wi-Fi 9000 7-Day Programmable Thermostat","ecobee4","Sensi Lite Smart Thermostat","Nest E"]
[null,"T10 Smart Thermostat","9000 Smart Thermostat","ecobee Smart Thermostat with voice control","Sensi Touch 2 Smart Thermostat"]
[null,null,"7-Day Programmable Smart Thermostat","Smart Thermostat Enhanced"]
[null,null,"VisionPro 8000 Smart Thermostat","Smart Thermostat Premium"]
[null,null,"Round Smart Thermostat"]

{"sheet":"EFLH Lookup Tables","index":22,"n_rows":48,"n_cols":27,"rows_kept":48,"cut":false,"hidden":true,"merged":[]}
[]
[null,"EFLH - Unitary Lookup Table",2,3,4,5,null,"EFLH - Economizer Lookup Table",2,3,null,"EFLH - AC Chiller Lookup Table",2,3,4,5,null,"EFLH - WC Chiller Lookup Table",2,3,4,5,null,"EFLH - UVGI Lookup Table",2,3,4]
[null,"Facility Type","EFLHc","EFLHh","CF","DF",null,"Facility Type","EFLHc w/o ECON","EFLHc w/ ECON",null,"Facility Type","EFLH w/o Econ","EFLHh w/ Econ","Air-Cooled CF","Air-Cooled DF",null,"Facility Type","EFLH w/o Econ","EFLHh w/ Econ","Water-Cooled CF","Water-Cooled DF",null,"Facility Type","Fan OpHrs","EIF","DIF"]
[null,"Assisted Living Facility",1222.6513501172794,630.22159966003881,0.76995912823872503,0.53179053762336792,null,"Assisted Living Facility",1344.2980554168789,1222.6513501172794,null,"Assisted Living Facility",3100.7381960949342,2847.6252060484007,0.76995912823872503,0.53179053762336792,null,"Assisted Living Facility",3340.2065196842232,3038.8318491771715,0.76995912823872503,0.53179053762336792,null,"Assisted Living Facility",8760,1.1562950021788232,1.3363751295530513]
[null,"Automotive Facility",1947.9585846493046,822.90537094882245,0.84540779868113725,0.98482786323936855,null,"Automotive Facility",2175.850266605632,1947.9585846493046,null,"Automotive Facility",2488.2135318426012,2284.3316948702522,0.84540779868113725,0.98482786323936855,null,"Automotive Facility",2507.2387772233501,2301.870619771857,0.84540779868113725,0.98482786323936855,null,"Automotive Facility",4891,1.1718913769829171,1.368682607988212]
[null,"Casino",3558.1195633045054,880.58487546608524,0.85261566019381718,0.89463851626418944,null,"Casino",4076.8554858643447,3558.1195633045054,null,"Casino",3100.7381960949342,2847.6252060484007,0.74,0.79,null,"Casino",3387.9996036269472,3067.6663945153805,0.86611797842167149,0.79606637232794952,null,"Casino",{"$f":"Y7","v":8760},1.2392863132867036,1.4659622602529223]
[null,"Convention Center",2808.86425341117,325.04478429655319,0.70746676738403202,0.791973458683493,null,"Convention Center",3117.2693175679628,2808.86425341117,null,"Convention Center",3100.7381960949342,2847.6252060484007,0.74,0.79,null,"Convention Center",3387.9996036269472,3067.6663945153805,0.86611797842167149,0.79606637232794952,null,"Convention Center",8760,1.3596047624859784,1.4424029787838604]
[null,"Court House",3553.2567566991665,532.35986048341294,0.9202739542883176,0.69495194330343235,null,"Court House",4245.957717307816,3553.2567566991665,null,"Court House",2488.2135318426012,2284.3316948702522,0.9202739542883176,0.69495194330343235,null,"Court House",2507.2387772233501,2301.870619771857,0.9202739542883176,0.69495194330343235,null,"Court House",6549,1.2508938185921956,1.3383812392286822]
[null,"Data Center",3374.073896705826,609.84981491269536,0.87040660766028621,0.7170894181476184,null,"Data Center",4080.2318781749882,3374.073896705826,null,"Data Center",6483.0363435755007,5885.4953010990957,0.87,0.93,null,"Data Center",6316.1950300000008,5641.1311867568111,0.99096902839365797,0.68488892176453486,null,"Data Center",8760,1.2032633428349651,1.3628272179964855]
[null,"Dining: Bar Lounge/Leisure",3558.1195633045054,880.58487546608524,0.85261566019381718,0.89463851626418944,null,"Dining: Bar Lounge/Leisure",4076.8554858643447,3558.1195633045054,null,"Dining: Bar Lounge/Leisure",2036.6686781790922,1965.9209809356848,0.85261566019381718,0.89463851626418944,null,"Dining: Bar Lounge/Leisure",2130.3725195174065,2108.3875372720586,0.85261566019381718,0.89463851626418944,null,"Dining: Bar Lounge/Leisure",7300,1.2392863132867036,1.4659622602529223]
[null,"Dining: Cafeteria/Fast Food",3366.3343971411282,895.87161029927529,0.84336632430103065,0.87834147539486851,null,"Dining: Cafeteria/Fast Food",3880.1603725811165,3366.3343971411282,null,"Dining: Cafeteria/Fast Food",2036.6686781790922,1965.9209809356848,0.84336632430103065,0.87834147539486851,null,"Dining: Cafeteria/Fast Food",2130.3725195174065,2108.3875372720586,0.84336632430103065,0.87834147539486851,null,"Dining: Cafeteria/Fast Food",7300,1.2180076731585909,1.6278933494822945]
[null,"Dining: Family",3558.1195633045054,880.58487546608524,0.85261566019381718,0.89463851626418944,null,"Dining: Family",4076.8554858643447,3558.1195633045054,null,"Dining: Family",2036.6686781790922,1965.9209809356848,0.85261566019381718,0.89463851626418944,null,"Dining: Family",2130.3725195174065,2108.3875372720586,0.85261566019381718,0.89463851626418944,null,"Dining: Family",7300,1.2392863132867036,1.4659622602529223]
[null,"Dormitory",2808.86425341117,244.02690395034833,0.70746676738403202,0.791973458683493,null,"Dormitory",3117.2693175679628,2808.86425341117,null,"Dormitory",3100.7381960949342,2847.6252060484007,0.70746676738403202,0.791973458683493,null,"Dormitory",3340.2065196842232,3038.8318491771715,0.70746676738403202,0.791973458683493,null,"Dormitory",8760,1.3596047624859784,1.4424029787838604]
[null,"Exercise Center",3366.3343971411282,895.87161029927529,0.84336632430103065,0.87834147539486851,null,"Exercise Center",3880.1603725811165,3366.3343971411282,null,"Exercise Center",1843.7560454845968,1817.0225873292297,0.84336632430103065,0.87834147539486851,null,"Exercise Center",1852.1289204808479,2026.7374561661438,0.84336632430103065,0.87834147539486851,null,"Exercise Center",7300,1.2180076731585909,1.6278933494822945]
[null,"Fire Station",2808.86425341117,244.02690395034833,0.70746676738403202,0.791973458683493,null,"Fire Station",3117.2693175679628,2808.86425341117,null,"Fire Station",3100.7381960949342,2847.6252060484007,0.70746676738403202,0.791973458683493,null,"Fire Station",3340.2065196842232,3038.8318491771715,0.70746676738403202,0.791973458683493,null,"Fire Station",8760,1.3596047624859784,1.4424029787838604]
[null,"Grow Facility",2777.347557929681,289.79334283664497,0.92112893026850651,0.91757503498109283,null,"Grow Facility",3136.9269453533643,2777.347557929681,null,"Grow Facility",2232.678673582112,2044.2594148991714,0.78,0.96,null,"Grow Facility",2358.7676334375751,2132.4462775161742,0.89099028716404605,0.75905323642772471,null,"Grow Facility",{"$f":"Y23","v":4640},1.2963313630169873,1.4875625260009731]
[null,"Gymnasium",3366.3343971411282,895.87161029927529,0.84336632430103065,0.87834147539486851,null,"Gymnasium",3880.1603725811165,3366.3343971411282,null,"Gymnasium",1843.7560454845968,1817.0225873292297,0.84336632430103065,0.87834147539486851,null,"Gymnasium",1852.1289204808479,2026.7374561661438,0.84336632430103065,0.87834147539486851,null,"Gymnasium",7300,1.2180076731585909,1.6278933494822945]
[null,"Health Care - Clinic",3374.073896705826,430.38330231634916,0.87040660766028621,0.7170894181476184,null,"Health Care - Clinic",4080.2318781749882,3374.073896705826,null,"Health Care - Clinic",3109.1102657274105,2856.4832889057366,0.82858191859104668,0.67356825465299586,null,"Health Care - Clinic",3278.8569636897391,3031.0794828304465,0.90991842104632914,0.53061211879854875,null,"Health Care - Clinic",8760,1.2032633428349651,1.3628272179964855]
[null,"Health Care - Hospital",3374.073896705826,430.38330231634916,0.87040660766028621,0.7170894181476184,null,"Health Care - Hospital",4080.2318781749882,3374.073896705826,null,"Health Care - Hospital",3109.1102657274105,2856.4832889057366,0.82858191859104668,0.67356825465299586,null,"Health Care - Hospital",3278.8569636897391,3031.0794828304465,0.90991842104632914,0.53061211879854875,null,"Health Care - Hospital",8760,1.2032633428349651,1.3628272179964855]
[null,"Hotel",2808.86425341117,244.02690395034833,0.70746676738403202,0.791973458683493,null,"Hotel",3117.2693175679628,2808.86425341117,null,"Hotel",3100.7381960949342,2847.6252060484007,0.74,0.79,null,"Hotel",3340.2065196842232,3038.8318491771715,0.83840615201612501,0.63329775565007873,null,"Hotel",8760,1.3596047624859784,1.4424029787838604]
[null,"Laboratory",2777.347557929681,289.79334283664497,0.92112893026850651,0.91757503498109283,null,"Laboratory",3136.9269453533643,2777.347557929681,null,"Laboratory",2232.678673582112,2044.2594148991714,0.78,0.96,null,"Laboratory",2358.7676334375751,2132.4462775161742,0.89099028716404605,0.75905323642772471,null,"Laboratory",4640,1.2963313630169873,1.4875625260009731]
[null,"Library",2506.8647508622453,344.07582757305852,0.89743858335283611,0.86709451162918505,null,"Library",2782.1111545939889,2506.8647508622453,null,"Library",2036.6686781790922,1965.9209809356848,0.89743858335283611,0.86709451162918505,null,"Library",2130.3725195174065,2108.3875372720586,0.89743858335283611,0.86709451162918505,null,"Library",4588,1.2350704200957396,1.5044126707298549]
[null,"Manufacturing Facility",2777.347557929681,289.79334283664497,0.92112893026850651,0.91757503498109283,null,"Manufacturing Facility",3136.9269453533643,2777.347557929681,null,"Manufacturing Facility",2232.678673582112,2044.2594148991714,0.78,0.96,null,"Manufacturing Facility",2358.7676334375751,2132.4462775161742,0.89099028716404605,0.75905323642772471,null,"Manufacturing Facility",4640,1.2963313630169873,1.4875625260009731]
[null,"Motel",2432.6237961106085,432.78467021360024,0.82620288513992302,0.56764041507636398,null,"Motel",2674.6557294183949,2432.6237961106085,null,"Motel",3100.7381960949342,2847.6252060484007,0.74,0.79,null,"Motel",3340.2065196842232,3038.8318491771715,0.83840615201612501,0.63329775565007873,null,"Motel",8760,1.3757817519847171,1.5041947935012208]
[null,"Motion Picture Theater",3366.3343971411282,895.87161029927529,0.84336632430103065,0.87834147539486851,null,"Motion Picture Theater",3880.1603725811165,3366.3343971411282,null,"Motion Picture Theater",3100.7381960949342,2847.6252060484007,0.84336632430103065,0.87834147539486851,null,"Motion Picture Theater",3387.9996036269472,3067.6663945153805,0.84336632430103065,0.87834147539486851,null,"Motion Picture Theater",7300,1.2180076731585909,1.6278933494822945]
[null,"Multi-Family Housing",1222.6513501172794,630.22159966003881,0.76995912823872503,0.53179053762336792,null,"Multi-Family Housing",1344.2980554168789,1222.6513501172794,null,"Multi-Family Housing",3100.7381960949342,2847.6252060484007,0.76995912823872503,0.53179053762336792,null,"Multi-Family Housing",3340.2065196842232,3038.8318491771715,0.76995912823872503,0.53179053762336792,null,"Multi-Family Housing",8760,1.1562950021788232,1.3363751295530513]
[null,"Museum",2506.8647508622453,344.07582757305852,0.89743858335283611,0.86709451162918505,null,"Museum",2782.1111545939889,2506.8647508622453,null,"Museum",3100.7381960949342,2847.6252060484007,0.89743858335283611,0.86709451162918505,null,"Museum",3387.9996036269472,3067.6663945153805,0.89743858335283611,0.86709451162918505,null,"Museum",4588,1.2350704200957396,1.5044126707298549]
[null,"Office, Large",3553.2567566991665,397.90890523884457,0.9202739542883176,0.69495194330343235,null,"Office, Large",4245.957717307816,3553.2567566991665,null,"Office, Large",1191.4796492098235,1102.3612092511537,0.77,0.56000000000000005,null,"Office, Large",1480.534386362287,1303.6849874038448,0.87972656761868839,0.46841340388315528,null,"Office, Large",6549,1.2508938185921956,1.3383812392286822]
[null,"Office, Small",2506.8647508622453,344.07582757305852,0.89743858335283611,0.86709451162918505,null,"Office, Small",2782.1111545939889,2506.8647508622453,null,"Office, Small",1191.4796492098235,1102.3612092511537,0.89743858335283611,0.86709451162918505,null,"Office, Small",1480.534386362287,1303.6849874038448,0.89743858335283611,0.86709451162918505,null,"Office, Small",4588,1.2350704200957396,1.5044126707298549]
[null,"Parking Garage",2506.8647508622453,344.07582757305852,0.89743858335283611,0.86709451162918505,null,"Parking Garage",2782.1111545939889,2506.8647508622453,null,"Parking Garage",2036.6686781790922,1965.9209809356848,0.89743858335283611,0.86709451162918505,null,"Parking Garage",2130.3725195174065,2108.3875372720586,0.89743858335283611,0.86709451162918505,null,"Parking Garage",4588,1.2350704200957396,1.5044126707298549]
[null,"Penitentiary",1222.6513501172794,630.22159966003881,0.76995912823872503,0.53179053762336792,null,"Penitentiary",1344.2980554168789,1222.6513501172794,null,"Penitentiary",3109.1102657274105,2856.4832889057366,0.76995912823872503,0.53179053762336792,null,"Penitentiary",3278.8569636897391,3031.0794828304465,0.76995912823872503,0.53179053762336792,null,"Penitentiary",4588,1.1562950021788232,1.3363751295530513]
[null,"Performing Arts Theater",2405.280089418849,498.21742723664482,0.74416196829375048,0.94316935119732148,null,"Performing Arts Theater",2754.8557043357519,2405.280089418849,null,"Performing Arts Theater",3100.7381960949342,2847.6252060484007,0.74416196829375048,0.94316935119732148,null,"Performing Arts Theater",3387.9996036269472,3067.6663945153805,0.74416196829375048,0.94316935119732148,null,"Performing Arts Theater",5151,1.2396620156609925,1.2253227962367013]
[null,"Police Station",2808.86425341117,244.02690395034833,0.70746676738403202,0.791973458683493,null,"Police Station",3117.2693175679628,2808.86425341117,null,"Police Station",3100.7381960949342,2847.6252060484007,0.70746676738403202,0.791973458683493,null,"Police Station",3340.2065196842232,3038.8318491771715,0.70746676738403202,0.791973458683493,null,"Police Station",8760,1.3596047624859784,1.4424029787838604]
[null,"Post Office",2506.8647508622453,344.07582757305852,0.89743858335283611,0.86709451162918505,null,"Post Office",2782.1111545939889,2506.8647508622453,null,"Post Office",1191.4796492098235,1102.3612092511537,0.89743858335283611,0.86709451162918505,null,"Post Office",1480.534386362287,1303.6849874038448,0.89743858335283611,0.86709451162918505,null,"Post Office",4588,1.2350704200957396,1.5044126707298549]
[null,"Religious Building",2931.6448193372394,657.07256435173872,0.86638431922283865,0.90800094194453695,null,"Religious Building",3223.3264449673147,2931.6448193372394,null,"Religious Building",2036.6686781790922,1965.9209809356848,0.69,1.03,null,"Religious Building",2130.3725195174065,2108.3875372720586,0.64948609217267905,0.98929626764560585,null,"Religious Building",6570,1.2495772912168774,1.4583371512037846]
[null,"Retail, Food/Grocery",2832.1015295613688,167.43850477954024,0.85509995872844535,0.90832478388082816,null,"Retail, Food/Grocery",3185.8966788254393,2832.1015295613688,null,"Retail, Food/Grocery",2488.2135318426012,2284.3316948702522,0.75292522920299365,1.1028298044779137,null,"Retail, Food/Grocery",2507.2387772233501,2301.870619771857,0.84243060538353698,0.88274787723203996,null,"Retail, Food/Grocery",5279,1.3079904888074227,1.506782823143078]
[null,"Retail, Commodity",2702.3981081978277,516.7267171044391,0.82260029050500694,0.88862520934444378,null,"Retail, Commodity",3018.5516727787062,2702.3981081978277,null,"Retail, Commodity",2488.2135318426012,2284.3316948702522,0.75292522920299365,1.1028298044779137,null,"Retail, Commodity",2507.2387772233501,2301.870619771857,0.84243060538353698,0.88274787723203996,null,"Retail, Commodity",5840,1.3080699470390706,1.4995730939115921]
[null,"Retail, Specialty",2702.3981081978277,516.7267171044391,0.82260029050500694,0.88862520934444378,null,"Retail, Specialty",3018.5516727787062,2702.3981081978277,null,"Retail, Specialty",2488.2135318426012,2284.3316948702522,0.75292522920299365,1.1028298044779137,null,"Retail, Specialty",2507.2387772233501,2301.870619771857,0.84243060538353698,0.88274787723203996,null,"Retail, Specialty",5840,1.3080699470390706,1.4995730939115921]
[null,"Primary School",2131.560945867669,353.75561964559597,0.79045445304250084,0.93384670635748146,null,"Primary School",2376.8314610049715,2131.560945867669,null,"Primary School",2488.2135318426012,2284.3316948702522,0.75292522920299365,1.1028298044779137,null,"Primary School",2507.2387772233501,2301.870619771857,0.84243060538353698,0.88274787723203996,null,"Primary School",3765,1.2302585277564499,1.5303353951869703]
[null,"Sec. School",2405.280089418849,498.21742723664482,0.74416196829375048,0.94316935119732148,null,"Sec. School",2754.8557043357519,2405.280089418849,null,"Sec. School",2488.2135318426012,2284.3316948702522,0.75292522920299365,1.1028298044779137,null,"Sec. School",2507.2387772233501,2301.870619771857,0.84243060538353698,0.88274787723203996,null,"Sec. School",5151,1.2396620156609925,1.2253227962367013]
[null,"University",2567.6912696959703,413.06149081237169,0.67286156542098108,0.91400190616218602,null,"University",2934.0169975241147,2567.6912696959703,null,"University",2036.6686781790922,1965.9209809356848,0.69,1.03,null,"University",2130.3725195174065,2108.3875372720586,0.64948609217267905,0.98929626764560585,null,"University",5236,1.2867193160524046,1.0125375343666601]
[null,"Sports Arena",2405.280089418849,498.21742723664482,0.74416196829375048,0.94316935119732148,null,"Sports Arena",2754.8557043357519,2405.280089418849,null,"Sports Arena",1843.7560454845968,1817.0225873292297,0.72,0.9,null,"Sports Arena",1852.1289204808479,2026.7374561661438,0.69066630809550356,0.75884256882644185,null,"Sports Arena",5151,1.2396620156609925,1.2253227962367013]
[null,"Town Hall",2506.8647508622453,344.07582757305852,0.89743858335283611,0.86709451162918505,null,"Town Hall",2782.1111545939889,2506.8647508622453,null,"Town Hall",2036.6686781790922,1965.9209809356848,0.89743858335283611,0.86709451162918505,null,"Town Hall",2130.3725195174065,2108.3875372720586,0.89743858335283611,0.86709451162918505,null,"Town Hall",4588,1.2350704200957396,1.5044126707298549]
[null,"Transportation",2506.8647508622453,344.07582757305852,0.89743858335283611,0.86709451162918505,null,"Transportation",2782.1111545939889,2506.8647508622453,null,"Transportation",2488.2135318426012,2488.2135318426012,0.89743858335283611,0.86709451162918505,null,"Transportation",2507.2387772233501,2301.870619771857,0.89743858335283611,0.86709451162918505,null,"Transportation",4588,1.2350704200957396,1.5044126707298549]
[null,"Warehouse, Refrigerated",3485.998082347232,0.14708587169083132,0.84146289687866904,0.91741034071781868,null,"Warehouse, Refrigerated",4160.3462318563115,3485.998082347232,null,"Warehouse, Refrigerated",2232.678673582112,2044.2594148991714,0.84146289687866904,0.91741034071781868,null,"Warehouse, Refrigerated",2358.7676334375751,2132.4462775161742,0.84146289687866904,0.91741034071781868,null,"Warehouse, Refrigerated",8760,1.0047951244751567,1.0119143741927885]
[null,"Warehouse, Commercial",3435,273,0.83,0.84,null,"Warehouse, Commercial",4076,3435,null,"Warehouse, Commercial",2036.6686781790922,1965.9209809356848,0.83,0.84,null,"Warehouse, Commercial",2130.3725195174065,2108.3875372720586,0.83,0.84,null,"Warehouse, Commercial",8760,1.31,1.47]
[null,"Warehouse, Industrial",3435,273,0.83,0.84,null,"Warehouse, Industrial",4076,3435,null,"Warehouse, Industrial",2232.678673582112,2044.2594148991714,0.83,0.84,null,"Warehouse, Industrial",2358.7676334375751,2132.4462775161742,0.83,0.84,null,"Warehouse, Industrial",8760,1.31,1.47]
[null,"Workshop",2748.5109073011749,130.48737528512399,0.92415131745595724,0.92215004338869955,null,"Workshop",2748.5109073011749,2494.6692823319136,null,"Workshop",2232.678673582112,2044.2594148991714,0.92415131745595724,0.92215004338869955,null,"Workshop",2358.7676334375751,2132.4462775161742,0.92415131745595724,0.92215004338869955,null,"Workshop",4640,1.2801205907372701,1.468908872943522]

{"sheet":"Ref","index":23,"n_rows":127,"n_cols":27,"rows_kept":127,"cut":false,"hidden":true,"merged":[[27,0,28,0],[27,3,28,13],[26,3,26,13],[29,15,29,26],[30,15,30,26],[32,15,32,26],[90,1,90,2],[90,3,90,13],[33,15,33,26],[31,3,31,13],[32,3,32,13],[42,3,42,13],[33,3,33,13],[34,3,34,13],[81,1,81,2],[85,1,85,2],[34,1,34,2],[35,1,35,2],[36,1,36,2],[27,1,28,2],[41,15,41,26],[42,15,42,26],[43,15,43,26],[50,3,50,13],[25,15,25,26],[26,15,26,26],[38,15,38,26],[39,15,39,26],[40,15,40,26],[35,15,35,26],[37,15,37,26],[36,15,36,26],[31,15,31,26],[28,15,28,26],[27,15,27,26],[20,15,20,26],[24,15,24,26],[21,15,23,26],[25,3,25,13],[108,3,108,13],[95,3,95,13],[102,3,102,13],[57,3,57,13],[55,3,55,13],[71,3,71,13],[72,3,72,13],[61,3,61,13],[62,3,62,13],[63,3,63,13],[64,3,64,13],[65,3,65,13],[66,3,66,13],[98,3,98,13],[91,3,91,13],[96,3,96,13],[97,3,97,13],[86,3,86,13],[34,15,34,26],[87,3,87,13],[45,15,45,26],[89,3,89,13],[78,3,78,13],[79,3,79,13],[37,3,37,13],[38,3,38,13],[39,3,39,13],[40,3,40,13],[41,3,41,13],[85,3,85,13],[84,3,84,13],[43,3,43,13],[46,3,46,13],[52,3,52,13],[53,3,53,13],[54,3,54,13],[88,3,88,13],[81,3,81,13],[44,15,44,26],[45,3,45,13],[83,3,83,13],[125,1,125,2],[113,3,113,13],[124,3,124,13],[125,3,125,13],[113,1,113,2],[124,1,124,2],[109,3,109,13],[109,1,109,2],[117,1,117,2],[117,3,117,13],[118,1,118,2],[118,3,118,13],[119,1,119,2],[119,3,119,13],[120,1,120,2],[120,3,120,13],[121,1,121,2],[111,3,111,13],[112,1,112,2],[112,3,112,13],[115,3,115,13],[116,1,116,2],[116,3,116,13],[114,1,114,2],[37,1,37,2],[38,1,38,2],[56,3,56,13],[51,3,51,13],[99,3,99,13],[95,1,95,2],[94,3,94,13],[93,3,93,13],[94,1,94,2],[84,1,84,2],[82,1,82,2],[87,1,87,2],[88,1,88,2],[89,1,89,2],[44,1,44,2],[44,3,44,13],[45,1,45,2],[16,6,16,7],[17,6,17,7],[32,1,32,2],[121,3,121,13],[122,1,122,2],[122,3,122,13],[98,1,98,2],[123,1,123,2],[123,3,123,13],[115,1,115,2],[25,1,25,2],[26,1,26,2],[31,1,31,2],[33,1,33,2],[114,3,114,13],[110,1,110,2],[110,3,110,13],[100,1,100,2],[100,3,100,13],[101,1,101,2],[101,3,101,13],[102,1,102,2],[103,3,103,13],[104,1,104,2],[0,1,0,2],[3,0,3,10],[6,1,6,10],[1,1,1,2],[5,1,5,10],[4,1,4,10],[8,1,8,2],[20,1,20,2],[21,1,21,2],[20,3,20,13],[21,3,21,13],[18,1,18,2],[17,1,17,2],[14,1,14,2],[12,1,12,2],[10,1,10,2],[9,1,9,2],[15,1,15,2],[12,6,12,7],[13,1,13,2],[11,1,11,2],[13,6,13,7],[14,6,14,7],[15,6,15,7],[47,1,47,2],[48,1,48,2],[49,1,49,2],[47,3,47,13],[48,3,48,13],[86,1,86,2],[91,1,91,2],[92,1,92,2],[73,1,73,2],[73,3,73,13],[74,1,74,2],[74,3,74,13],[75,1,75,2],[75,3,75,13],[76,1,76,2],[76,3,76,13],[82,3,82,13],[49,3,49,13],[50,1,50,2],[51,1,51,2],[99,1,99,2],[96,1,96,2],[97,1,97,2],[83,1,83,2],[108,1,108,2],[92,3,92,13],[93,1,93,2],[80,3,80,13],[77,3,77,13],[104,3,104,13],[107,1,107,2],[107,3,107,13],[106,1,106,2],[106,3,106,13],[105,1,105,2],[105,3,105,13],[54,1,54,2],[55,1,55,2],[56,1,56,2],[57,1,57,2],[58,1,58,2],[29,0,30,0],[29,1,30,2],[111,1,111,2],[79,1,79,2],[80,1,80,2],[59,1,59,2],[60,1,60,2],[61,1,61,2],[62,1,62,2],[63,1,63,2],[64,1,64,2],[65,1,65,2],[66,1,66,2],[67,1,67,2],[78,1,78,2],[71,1,71,2],[72,1,72,2],[77,1,77,2],[103,1,103,2],[29,3,30,13],[22,0,24,0],[22,1,24,2],[22,3,24,13],[68,1,68,2],[69,1,69,2],[70,1,70,2],[39,1,39,2],[40,1,40,2],[41,1,41,2],[42,1,42,2],[43,1,43,2],[46,1,46,2],[58,3,58,13],[59,3,59,13],[60,3,60,13],[67,3,67,13],[68,3,68,13],[69,3,69,13],[70,3,70,13],[35,3,35,13],[36,3,36,13],[52,1,52,2],[53,1,53,2]]}
["Version_ID",{"$f":"INDIRECT(\"A\" & MATCH(MAX($B$22:$B$126),$B$22:$B$126,0)+21)","v":"FY26.1.2"}]
["Date_ID",{"$f":"\"Version \"&CONCATENATE(\nTEXT(YEAR(INDIRECT(\"B\"&MATCH(MAX($B$22:$B$126),$B$22:$B$126,0)+21)),\"0000\"),\nTEXT(MONTH(INDIRECT(\"B\"&MATCH(MAX($B$22:$B$126),$B$22:$B$126,0)+21)),\"00\"),\nTEXT(DAY(INDIRECT(\"B\"&MATCH(MAX($B$22:$B$126),$B$22:$B$126,0)+21)),\"00\"))","v":"Version 20250828"}]
[]
["Instructions:"]
["Evaluation","This Evaluation application allows customers to preview any eligible measures within the program and request a preliminary assessment of the proposed equipment that will be installed by them or a representative as part of an energy efficiency initiative, retrofit, or new build."]
["RRR","This Rebate Reservation Request allows customers to request rebates be reserved for up to 90 days to allow for the purchase, installation, and submittal of a completed Mechanical & More Application for any eligible retrofit or new construction mechanical & more measures."]
["RA","Sending this application confirms that all measures have been fully installed and all of the required supporting documents have been collected. If clarification regarding the submitted information is not submitted within  14 days of being requested, any funds reserved for this rebate application may be released and the rebate application may be canceled. You may resubmit the application once all required information becomes available."]
[]
["Authorized UL",false]
["Macros Enabled",true]
["First Access",false]
["FirstRow",{"$f":"IFERROR(MATCH(MIN(INDIRECT(\"'Project Information'!$A$3:$A$\" & MaxRow)),INDIRECT(\"'Project Information'!$A$3:$A$\" & MaxRow),0),1)","v":1},null,null,null,"LastRow (NME)"]
["LastRow",{"$f":"IFERROR(MATCH(MAX(INDIRECT(\"'Project Information'!$A$3:$A$\" & MaxRow)),INDIRECT(\"'Project Information'!$A$3:$A$\" & MaxRow),0),1)","v":1},null,null,null,"HVAC",{"$f":"IFERROR(MATCH(\"X\",HVAC!$A:$A,0),1)","v":362}]
["MaxRow",{"$f":"IFERROR(MATCH(\"Totals\",'Project Information'!$A:$A,0),1)","v":401},null,null,null,"REF",{"$f":"IFERROR(MATCH(\"X\",Refrigeration!$A:$A,0),1)","v":280}]
["Evaluation",{"$f":"'Customer Information'!$Z$10=\"(Evaluation)\"","v":true},null,null,null,"KE",{"$f":"IFERROR(MATCH(\"X\",'Kitchen Equipment'!$A:$A,0),1)","v":151}]
["SameAsAbove",true,null,null,null,"CA",{"$f":"IFERROR(MATCH(\"X\",'Compressed Air'!$A:$A,0),1)","v":87}]
[null,null,null,null,null,"ITDC",{"$f":"IFERROR(MATCH(\"X\",'IT & Data Center'!$A:$A,0),1)","v":83}]
["Fast-Track",{"$f":"DATE(YEAR(LaunchDate),12,31)","v":"2024-12-31"},null,null,null,"MISC",{"$f":"IFERROR(MATCH(\"X\",'Additional Measures'!$A:$A,0),1)","v":135}]
["Launch Date","2024-05-01"]
[]
["Version_ID","Date",null,"Version Notes",null,null,null,null,null,null,null,null,null,null,null,"To Do, Planned Changes"]
["FY26.0.0","2025-01-31",null,"Started new version.",null,null,null,null,null,null,null,null,null,null,null,"LkUnlk:\n- Consider adding method to check Microsoft Credentials for \"@resource-innovations.com\" to allow unlocking of application without a password.\n- Alternatively, include a key for unlocking the application to be put in a secure area on the user's desktop/local drive, which contains the credentials to unlock the application without a password."]
["FY26.0.1","2025-03-31",null,"Updated measure savings:\n- HE Servers (New)\n- HE Servers (Replacement)\n- Server Virtualization\n- CO2 Sensors\n- HPWH (Also updated langauage, EF requirements, and Electrification items)"]
[]
[]
["FY26.0.1","2025-03-31T01:00:00",null,"Updated language to \"Mechanical & More\" in several locations to replace \"non-lighting\""]
["FY26.0.2","2025-04-07",null,"- Updated OA Economizer eligibility to say economizer repairs/replacements as part of HVAC TU do not qualify.\n- Addressed inconsistent eligibility language in ARC where \"variable speed EC motors are not eligible;\" updated to \"single-speed EC motors\""]
["FY26.1.0","2025-04-16",null,"Application prepared for launch.\n- Updated server measures with final savings\n- CO2 measure reverted based on feedback from AH 4/14."]
[]
["FY26.1.1","2025-07-10",null,"Customer Information:\n  - Added sustainability questionaire to Processing Information section.\n  - Added named ranges for OpHrs and Total_Cost.\n- VBA: Updated Import to include new fields for sustainability Q&As."]
[]
["FY26.1.2","2025-08-28",null,"Updated the list of qualified smart thermostats."]
[]
[]
[]
[]
[]
[]
[]
[]
[]
[]
[]
[]
[]
[]
[null,null,null,null,null,null,null,null,null,null,null,null,null,null,null,"end","end","end","end","end","end","end","end","end","end","end","end"]
[]
[]
[]
[]
[]
[]
[]
[]
[]
[]
[]
[]
[]
[]
[]
[]
[]
[]
[]
[]
[]
[]
[]
[]
[]
[]
[]
[]
[]
[]
[]
[]
[]
[]
[]
[]
[]
[]
[]
[]
[]
[]
[]
[]
[]
[]
[]
[]
[]
[]
[]
[]
[]
[]
[]
[]
[]
[]
[]
[]
[]
[]
[]
[]
[]
[]
[]
[]
[]
[]
[]
[]
[]
[]
[]
[]
[]
[]
[]
["end","end","end","end","end","end","end","end","end","end","end","end","end","end"]

{"sheet":"Debug","index":24,"n_rows":9,"n_cols":3,"rows_kept":9,"cut":false,"hidden":true,"merged":[]}
["{\r\n  \"name\": \"Non Lighting Container\"\r\n, \"fields\":[\n\n{\r\n  \"name\": \"MeasureName\",\r\n  \"value\": \"Unitary Air-Conditioning Equipment - Packaged Air-Conditioner - 550,000.00 BTU/H\"\r\n},\n{\r\n  \"name\": \"MeassureCategory\",\r\n  \"value\": \"Unitary Air-Conditioning Equipment\"\r\n},\n{\r\n  \"name\": \"ProposedMeasureCategory\",\r\n  \"value\": \"Packaged Air-Conditioner\"\r\n},\n{\r\n  \"name\": \"P_MeasureOption1\",\r\n  \"value\": \"Air-Cooled\"\r\n},\n{\r\n  \"name\": \"P_MeasureOption2\",\r\n  \"value\": \"Electric Resistance\"\r\n},\n{\r\n  \"name\": \"Manufacturer\",\r\n  \"value\": \"Trane\"\r\n},\n{\r\n  \"name\": \"Model#\",\r\n  \"value\": \"SXHMF7504\"\r\n},\n{\r\n  \"name\": \"Serial#\",\r\n  \"value\": \"xx\"\r\n},\n{\r\n  \"name\": \"SizeUnit\",\r\n  \"value\": \"BTU/H\"\r\n},\n{\r\n  \"name\": \"Size\",\r\n  \"value\": 550000\r\n},\n{\r\n  \"name\": \"Input1\",\r\n  \"value\": \"IEER\"\r\n},\n{\r\n  \"name\": \"B_InputValue1\"\r\n},\n{\r\n  \"name\": \"P_InputValue1\",\r\n  \"value\": 14.9\r\n},\n{\r\n  \"name\": \"Input2\",\r\n  \"value\": \"\"\r\n},\n{\r\n  \"name\": \"B_InputValue2\",\r\n  \"value\": 13.2\r\n},\n{\r\n  \"name\": \"P_InputValue2\",\r\n  \"value\": \"\"\r\n},\n{\r\n  \"name\": \"Input3\",\r\n  \"value\": \"EER\"\r\n},\n{\r\n  \"name\": \"B_InputValue3\"\r\n},\n{\r\n  \"name\": \"P_InputValue3\",\r\n  \"value\": 10.7\r\n},\n{\r\n  \"name\": \"Input4\",\r\n  \"value\": \"\"\r\n},\n{\r\n  \"name\": \"B_InputValue4\",\r\n  \"value\": 10\r\n},\n{\r\n  \"name\": \"P_InputValue4\",\r\n  \"value\": \"\"\r\n},\n{\r\n  \"name\": \"Input5\",\r\n  \"value\": \"\"\r\n},\n{\r\n  \"name\": \"B_InputValue5\"\r\n},\n{\r\n  \"name\": \"P_InputValue5\",\r\n  \"value\": \"\"\r\n},\n{\r\n  \"name\": \"Input6\",\r\n  \"value\": \"\"\r\n},\n{\r\n  \"name\": \"B_InputValue6\"\r\n},\n{\r\n  \"name\": \"P_InputValue6\",\r\n  \"value\": \"\"\r\n},\n{\r\n  \"name\": \"Quantity\",\r\n  \"value\": 1\r\n},\n{\r\n  \"name\": \"Notes\"\r\n},\n{\r\n  \"name\": \"BaselinekWh\",\r\n  \"value\": 143125\r\n},\n{\r\n  \"name\": \"BaselinekW\",\r\n  \"value\": 38.346\r\n},\n{\r\n  \"name\": \"ProposedkWh\",\r\n  \"value\": 126795\r\n},\n{\r\n  \"name\": \"ProposedkW\",\r\n  \"value\": 35.837\r\n},\n{\r\n  \"name\": \"Tier\",\r\n  \"value\": \"AC - Tier 1\"\r\n},\n{\r\n  \"name\": \"IncentiveRate\",\r\n  \"value\": 65\r\n},\n{\r\n  \"name\": \"Incentive_Customer\",\r\n  \"value\": 2979.17\r\n},\n{\r\n  \"name\": \"CostRate\",\r\n  \"value\": 150\r\n},\n{\r\n  \"name\": \"IncrementalCost\",\r\n  \"value\": 6875\r\n},\n{\r\n  \"name\": \"MeasureCost\",\r\n  \"value\": 1362947.65\r\n},\n{\r\n  \"name\": \"kWhSavings\",\r\n  \"value\": 16330\r\n},\n{\r\n  \"name\": \"DemandSavingskW\",\r\n  \"value\": 2.50899999999999\r\n},\n{\r\n  \"name\": \"WaterSavings\",\r\n  \"value\": 0\r\n},\n{\r\n  \"name\": \"ElectrificationSavings\",\r\n  \"value\": \"\"\r\n},\n{\r\n  \"name\": \"ElectrificationGHG\",\r\n  \"value\": 1501.5\r\n},\n{\r\n  \"name\": \"AnnualCO2Savings\",\r\n  \"value\": 6.82947473464574\r\n},\n{\r\n  \"name\": \"AnnualVehicleSavings\",\r\n  \"value\": 1.47584277440883\r\n},\n{\r\n  \"name\": \"AnnualCarbonSavings\",\r\n  \"value\": 112.895983923698\r\n},\n{\r\n  \"name\": \"AnnualNoxSavings\",\r\n  \"value\": 0.0051851016\r\n},\n{\r\n  \"name\": \"EFLHCooling\",\r\n  \"value\": 3435\r\n},\n{\r\n  \"name\": \"EFLH_Heating\"\r\n},\n{\r\n  \"name\": \"MeasureLife\",\r\n  \"value\": 15\r\n}\n]\n}\n","{\r\n  \"programVersion\": 15,\r\n  \"programName\": \"Standard Business Solutions\",\r\n  \"projectName\": \"SBS_270156\",\r\n  \"formName\": \"1. Customer Information and Contractor Selection\",\r\n  \"complete\": false,\r\n  \"execute\": true\r\n, \"fields\":[\n{\r\n  \"name\": \"FacilityOrDwellingSizeSF\",\r\n  \"value\": 511020\r\n}]\n}",{"$cut":{"chars":26571,"head":"{_x000D_\n  \"programVersion\": 15,_x000D_\n  \"programName\": \"Standard Business Solutions\",_x000D_\n  \"projectName\": \"SBS_270156\",_x000D_\n  \"formName\": \"1. Customer Information and Contractor Selection\",_x000D_\n  \"complete\": false,_x000D_\n  \"execute\": true_x000D_\n, \"fields\":[\n{_x000D_\n  \"name\": \"FacilityOrDwellingSizeSF\",_x000D_\n  \"value\": 511020_x000D_\n}]\n,\n\"measures\":[\n{_x000D_\n  \"name\": \"Non Lighting Container\"_x000D_\n, \"fields\":[\n\n{_x000D_\n  \"name\": \"MeasureName\",_x000D_\n  \"value\": \"Unitary Air-Conditioning Equipment - Packaged Air-Conditioner - 550,000.00 BTU/H\"_x000D_\n},\n{_x000D_\n  \"name\": \"MeassureCategory\",_x000D_\n  \"value\": \"Unitary Air-Conditioning Equipment\"_x000D_\n},\n{_x000D_\n  \"name\": \"ProposedMeasureCategory\",_x000D_\n  \"value\": \"Packaged Air-Conditioner\"_x000D_\n},\n{_x000D_\n  \"name\": \"P_MeasureOption1\",_x000D_\n  \"value\": \"Air-Cooled\"_x000D_\n},\n{_x000D_\n  \"name\": \"P_MeasureOption2\",_x000D_\n  \"value\": \"Electric Resistance\"_x000D_\n},\n{_x000D_\n  \"name\": \"Manufacturer\",_x000D_\n  \"value\": \"Trane\"_x000D_\n},\n{_x000D_\n  \"name\": \"Model#\",_x000D_\n  \"value\": \"SXHMF7504\"_x000D_\n},\n{_x000D_\n  \"name\": \"Serial#\",_x000D_\n  \"value\": \"xx\"_x000D_\n},\n{_x000D_\n  \"name\": \"SizeUnit\",_x000D_\n  \"value\": \"BTU/H\"_x000D_\n},\n{_x000D_\n  \"name\": \"Size\",_x000D_\n  \"value\": 550000_x000D_\n},\n{_x000D_\n  \"name\": \"Input1\",_x000D_\n  \"value\": \"IEER\"_x000D_\n},\n{_x000D_\n  \"name\": \"B_InputValue1\"_x000D_\n},\n{_x000D_\n  \"name\": \"P_InputValue1\",_x000D_\n  \"value\": 14.9_x000D_\n},\n{_x000D_\n  \"name\": \"Input2\",_x000D_\n  \"value\": \"\"_x000D_\n},\n{_x000D_\n  \"name\": \"B_InputValue2\",_x000D_\n  \"value\": 13.2_x000D_\n},\n{_x000D_\n  \"name\": \"P_InputValue2\",_x000D_\n  \"value\": \"\"_x000D_\n},\n{_x000D_\n  \"name\": \"Input3\",_x000D_\n  \"value\": \"EER\"_x000D_\n},\n{_x000D_\n  \"name\": \"B_InputValue3\"_x000D_\n},\n{_x000D_\n  \"name\": \"P_InputValue3\",_x000D_\n  \"value\": 10.7_x000D_\n},\n{_x000D_\n  \"name\": \"Input4\",_x000D_\n  \"value\": \"\"_x000D_\n},\n{_x000D_\n  \"name\": \"B_InputValue4\",_x000D_\n  \"value\": 10_x000D_\n},\n{_x000D_\n  \"name\": \"P_InputValue4\",_x000D_\n  \"value\": \"\"_x000D_\n},\n{_x000D_\n  \"name\": \"Input5\",_x000D_\n  \"value\": \"\"_x000D_\n},\n{_x000D_\n  \"name\": \"B_InputValue5\"_x000D_\n},\n{_x000D_\n  \"name\": \"P_InputValue5\",_x000D_\n  \"value\": \"\"_x000D_\n},\n{_x000D_\n  \"name\": \"Input6\",_x000D_\n  \"value\": \"\"_x000D_\n},\n{_x000D_\n  \"name\": \"B_InputValue6\"_x000D_\n},\n{_x000D_\n  \"name\": \"P_InputValue6\",_x000D_\n  \"value\": \"\"_x000D_\n},\n{_x000D_\n  \"name\": \"Quantity\",_x000D_\n  \"value\": 1_x000D_\n},\n{_x000D_\n  \"name\": \"Notes\"_x000D_\n},\n{_x000D_\n  \"name\": \"BaselinekWh\",_x000D_\n  \"value\": 143125_x000D_\n},\n{_x000D_\n  \"name\": \"BaselinekW\",_x000D_\n  \"value\": 38.346_x000D_\n},\n{_x000D_\n  \"name\": \"ProposedkWh\",_x000D_\n  \"value\": 126795_x000D_\n},\n{_x000D_\n  \"name\": \"ProposedkW\",_x000D_\n  \"value\": 35.837_x000D_\n},\n{_x000D_\n  \"name\": \"Tier\",_x000D_\n  \"value\": \"AC - Tier 1\"_x000D_\n},\n{_x000D_\n  \"name\": \"IncentiveRate\",_x000D_\n  \"value\": 65_x000D_\n},\n{_x000D_\n  \"name\": \"Incentive_Customer\",_x000D_\n  \"value\": 2979.17_x000D_\n},\n{_x000D_\n  \"name\": \"CostRate\",_x000D_\n  \"value\": 150_x000D_\n},\n{_x000D_\n  \"name\": \"IncrementalCost\",_x000D_\n  \"value\": 6875_x000D_\n},\n{_x000D_\n  \"name\": \"MeasureCost\",_x000D_\n  \"value\": 1362947.65_x000D_\n},\n{_x000D_\n  \"name\": \"kWhSavings\",_x000D_\n  \"value\": 16330_x000D_\n},\n{_x000D_\n  \"name\": \"DemandSavingskW\",_x000D_\n  \"value\": 2.50899999999999_x000D_\n},\n{_x000D_\n  \"name\": \"WaterSavings\",_x000D_\n  \"value\": 0_x000D_\n},\n{_x000D_\n  \"name\": \"ElectrificationSavings\",_x000D_\n  \"value\": \"\"_x000D_\n},\n{_x000D_\n  \"name\": \"ElectrificationGHG\",_x000D_\n  \"value\": 1501.5_x000D_\n},\n{_x000D_\n  \"name\": \"AnnualCO2Savings\",_x000D_\n  \"value\": 6.82947473464574_x000D_\n},\n{_x000D_\n  \"name\": \"AnnualVehicleSavings\",_x000D_\n  \"value\": 1.47584277440883_x000D_\n},\n{_x000D_\n  \"name\": \"AnnualCarbonSavings\",_x000D_\n  \"value\": 112.895983923698_x000D_\n},\n{_x000D_\n  \"name\": \"AnnualNoxSavings\",_x000D_\n  \"value\": 0.0051851016_x000D_\n},\n{_x000D_\n  \"name\": \"EFLHCooling\",_x000D_\n  \"value\": 3435_x000D_\n},\n{_x000D_\n  \"name\": \"EFLH_Heating\"_x000D_\n},\n{_x000D_\n  \"name\": \"MeasureLife\",_x000D_\n  \"value\": 15_x000D_\n}\n]\n}\n, \n{_x000D_\n  \"name\": \"Non Lighting Container"}}]
["{\r\n  \"name\": \"Non Lighting Container\"\r\n, \"fields\":[\n\n{\r\n  \"name\": \"MeasureName\",\r\n  \"value\": \"Unitary Air-Conditioning Equipment - Packaged Air-Conditioner - 550,000.00 BTU/H\"\r\n},\n{\r\n  \"name\": \"MeassureCategory\",\r\n  \"value\": \"Unitary Air-Conditioning Equipment\"\r\n},\n{\r\n  \"name\": \"ProposedMeasureCategory\",\r\n  \"value\": \"Packaged Air-Conditioner\"\r\n},\n{\r\n  \"name\": \"P_MeasureOption1\",\r\n  \"value\": \"Air-Cooled\"\r\n},\n{\r\n  \"name\": \"P_MeasureOption2\",\r\n  \"value\": \"Electric Resistance\"\r\n},\n{\r\n  \"name\": \"Manufacturer\",\r\n  \"value\": \"Trane\"\r\n},\n{\r\n  \"name\": \"Model#\",\r\n  \"value\": \"SXHMF7504\"\r\n},\n{\r\n  \"name\": \"Serial#\",\r\n  \"value\": \"xx\"\r\n},\n{\r\n  \"name\": \"SizeUnit\",\r\n  \"value\": \"BTU/H\"\r\n},\n{\r\n  \"name\": \"Size\",\r\n  \"value\": 550000\r\n},\n{\r\n  \"name\": \"Input1\",\r\n  \"value\": \"IEER\"\r\n},\n{\r\n  \"name\": \"B_InputValue1\"\r\n},\n{\r\n  \"name\": \"P_InputValue1\",\r\n  \"value\": 14.9\r\n},\n{\r\n  \"name\": \"Input2\",\r\n  \"value\": \"\"\r\n},\n{\r\n  \"name\": \"B_InputValue2\",\r\n  \"value\": 13.2\r\n},\n{\r\n  \"name\": \"P_InputValue2\",\r\n  \"value\": \"\"\r\n},\n{\r\n  \"name\": \"Input3\",\r\n  \"value\": \"EER\"\r\n},\n{\r\n  \"name\": \"B_InputValue3\"\r\n},\n{\r\n  \"name\": \"P_InputValue3\",\r\n  \"value\": 10.7\r\n},\n{\r\n  \"name\": \"Input4\",\r\n  \"value\": \"\"\r\n},\n{\r\n  \"name\": \"B_InputValue4\",\r\n  \"value\": 10\r\n},\n{\r\n  \"name\": \"P_InputValue4\",\r\n  \"value\": \"\"\r\n},\n{\r\n  \"name\": \"Input5\",\r\n  \"value\": \"\"\r\n},\n{\r\n  \"name\": \"B_InputValue5\"\r\n},\n{\r\n  \"name\": \"P_InputValue5\",\r\n  \"value\": \"\"\r\n},\n{\r\n  \"name\": \"Input6\",\r\n  \"value\": \"\"\r\n},\n{\r\n  \"name\": \"B_InputValue6\"\r\n},\n{\r\n  \"name\": \"P_InputValue6\",\r\n  \"value\": \"\"\r\n},\n{\r\n  \"name\": \"Quantity\",\r\n  \"value\": 1\r\n},\n{\r\n  \"name\": \"Notes\"\r\n},\n{\r\n  \"name\": \"BaselinekWh\",\r\n  \"value\": 143125\r\n},\n{\r\n  \"name\": \"BaselinekW\",\r\n  \"value\": 38.346\r\n},\n{\r\n  \"name\": \"ProposedkWh\",\r\n  \"value\": 126795\r\n},\n{\r\n  \"name\": \"ProposedkW\",\r\n  \"value\": 35.837\r\n},\n{\r\n  \"name\": \"Tier\",\r\n  \"value\": \"AC - Tier 1\"\r\n},\n{\r\n  \"name\": \"IncentiveRate\",\r\n  \"value\": 65\r\n},\n{\r\n  \"name\": \"Incentive_Customer\",\r\n  \"value\": 2979.17\r\n},\n{\r\n  \"name\": \"CostRate\",\r\n  \"value\": 150\r\n},\n{\r\n  \"name\": \"IncrementalCost\",\r\n  \"value\": 6875\r\n},\n{\r\n  \"name\": \"MeasureCost\",\r\n  \"value\": 1362947.65\r\n},\n{\r\n  \"name\": \"kWhSavings\",\r\n  \"value\": 16330\r\n},\n{\r\n  \"name\": \"DemandSavingskW\",\r\n  \"value\": 2.50899999999999\r\n},\n{\r\n  \"name\": \"WaterSavings\",\r\n  \"value\": 0\r\n},\n{\r\n  \"name\": \"ElectrificationSavings\",\r\n  \"value\": \"\"\r\n},\n{\r\n  \"name\": \"ElectrificationGHG\",\r\n  \"value\": 1501.5\r\n},\n{\r\n  \"name\": \"AnnualCO2Savings\",\r\n  \"value\": 6.82947473464574\r\n},\n{\r\n  \"name\": \"AnnualVehicleSavings\",\r\n  \"value\": 1.47584277440883\r\n},\n{\r\n  \"name\": \"AnnualCarbonSavings\",\r\n  \"value\": 112.895983923698\r\n},\n{\r\n  \"name\": \"AnnualNoxSavings\",\r\n  \"value\": 0.0051851016\r\n},\n{\r\n  \"name\": \"EFLHCooling\",\r\n  \"value\": 3435\r\n},\n{\r\n  \"name\": \"EFLH_Heating\"\r\n},\n{\r\n  \"name\": \"MeasureLife\",\r\n  \"value\": 15\r\n}\n]\n}\n"]
["{\r\n  \"name\": \"Non Lighting Container\"\r\n, \"fields\":[\n\n{\r\n  \"name\": \"MeasureName\",\r\n  \"value\": \"Unitary Air-Conditioning Equipment - Packaged Air-Conditioner - 550,000.00 BTU/H\"\r\n},\n{\r\n  \"name\": \"MeassureCategory\",\r\n  \"value\": \"Unitary Air-Conditioning Equipment\"\r\n},\n{\r\n  \"name\": \"ProposedMeasureCategory\",\r\n  \"value\": \"Packaged Air-Conditioner\"\r\n},\n{\r\n  \"name\": \"P_MeasureOption1\",\r\n  \"value\": \"Air-Cooled\"\r\n},\n{\r\n  \"name\": \"P_MeasureOption2\",\r\n  \"value\": \"Electric Resistance\"\r\n},\n{\r\n  \"name\": \"Manufacturer\",\r\n  \"value\": \"Trane\"\r\n},\n{\r\n  \"name\": \"Model#\",\r\n  \"value\": \"SXHMF7504\"\r\n},\n{\r\n  \"name\": \"Serial#\",\r\n  \"value\": \"xx\"\r\n},\n{\r\n  \"name\": \"SizeUnit\",\r\n  \"value\": \"BTU/H\"\r\n},\n{\r\n  \"name\": \"Size\",\r\n  \"value\": 550000\r\n},\n{\r\n  \"name\": \"Input1\",\r\n  \"value\": \"IEER\"\r\n},\n{\r\n  \"name\": \"B_InputValue1\"\r\n},\n{\r\n  \"name\": \"P_InputValue1\",\r\n  \"value\": 14.9\r\n},\n{\r\n  \"name\": \"Input2\",\r\n  \"value\": \"\"\r\n},\n{\r\n  \"name\": \"B_InputValue2\",\r\n  \"value\": 13.2\r\n},\n{\r\n  \"name\": \"P_InputValue2\",\r\n  \"value\": \"\"\r\n},\n{\r\n  \"name\": \"Input3\",\r\n  \"value\": \"EER\"\r\n},\n{\r\n  \"name\": \"B_InputValue3\"\r\n},\n{\r\n  \"name\": \"P_InputValue3\",\r\n  \"value\": 10.7\r\n},\n{\r\n  \"name\": \"Input4\",\r\n  \"value\": \"\"\r\n},\n{\r\n  \"name\": \"B_InputValue4\",\r\n  \"value\": 10\r\n},\n{\r\n  \"name\": \"P_InputValue4\",\r\n  \"value\": \"\"\r\n},\n{\r\n  \"name\": \"Input5\",\r\n  \"value\": \"\"\r\n},\n{\r\n  \"name\": \"B_InputValue5\"\r\n},\n{\r\n  \"name\": \"P_InputValue5\",\r\n  \"value\": \"\"\r\n},\n{\r\n  \"name\": \"Input6\",\r\n  \"value\": \"\"\r\n},\n{\r\n  \"name\": \"B_InputValue6\"\r\n},\n{\r\n  \"name\": \"P_InputValue6\",\r\n  \"value\": \"\"\r\n},\n{\r\n  \"name\": \"Quantity\",\r\n  \"value\": 1\r\n},\n{\r\n  \"name\": \"Notes\"\r\n},\n{\r\n  \"name\": \"BaselinekWh\",\r\n  \"value\": 143125\r\n},\n{\r\n  \"name\": \"BaselinekW\",\r\n  \"value\": 38.346\r\n},\n{\r\n  \"name\": \"ProposedkWh\",\r\n  \"value\": 126795\r\n},\n{\r\n  \"name\": \"ProposedkW\",\r\n  \"value\": 35.837\r\n},\n{\r\n  \"name\": \"Tier\",\r\n  \"value\": \"AC - Tier 1\"\r\n},\n{\r\n  \"name\": \"IncentiveRate\",\r\n  \"value\": 65\r\n},\n{\r\n  \"name\": \"Incentive_Customer\",\r\n  \"value\": 2979.17\r\n},\n{\r\n  \"name\": \"CostRate\",\r\n  \"value\": 150\r\n},\n{\r\n  \"name\": \"IncrementalCost\",\r\n  \"value\": 6875\r\n},\n{\r\n  \"name\": \"MeasureCost\",\r\n  \"value\": 1362947.65\r\n},\n{\r\n  \"name\": \"kWhSavings\",\r\n  \"value\": 16330\r\n},\n{\r\n  \"name\": \"DemandSavingskW\",\r\n  \"value\": 2.50899999999999\r\n},\n{\r\n  \"name\": \"WaterSavings\",\r\n  \"value\": 0\r\n},\n{\r\n  \"name\": \"ElectrificationSavings\",\r\n  \"value\": \"\"\r\n},\n{\r\n  \"name\": \"ElectrificationGHG\",\r\n  \"value\": 1501.5\r\n},\n{\r\n  \"name\": \"AnnualCO2Savings\",\r\n  \"value\": 6.82947473464574\r\n},\n{\r\n  \"name\": \"AnnualVehicleSavings\",\r\n  \"value\": 1.47584277440883\r\n},\n{\r\n  \"name\": \"AnnualCarbonSavings\",\r\n  \"value\": 112.895983923698\r\n},\n{\r\n  \"name\": \"AnnualNoxSavings\",\r\n  \"value\": 0.0051851016\r\n},\n{\r\n  \"name\": \"EFLHCooling\",\r\n  \"value\": 3435\r\n},\n{\r\n  \"name\": \"EFLH_Heating\"\r\n},\n{\r\n  \"name\": \"MeasureLife\",\r\n  \"value\": 15\r\n}\n]\n}\n, \n{\r\n  \"name\": \"Non Lighting Container\"\r\n, \"fields\":[\n\n{\r\n  \"name\": \"MeasureName\",\r\n  \"value\": \"Unitary Heat Pump Equipment - Packaged Heat Pump - 48,000.00 BTU/H\"\r\n},\n{\r\n  \"name\": \"MeassureCategory\",\r\n  \"value\": \"Unitary Heat Pump Equipment\"\r\n},\n{\r\n  \"name\": \"ProposedMeasureCategory\",\r\n  \"value\": \"Packaged Heat Pump\"\r\n},\n{\r\n  \"name\": \"P_MeasureOption1\",\r\n  \"value\": \"Air-Cooled\"\r\n},\n{\r\n  \"name\": \"P_MeasureOption2\",\r\n  \"value\": \"Heat Pump\"\r\n},\n{\r\n  \"name\": \"Manufacturer\",\r\n  \"value\": \"Trane\"\r\n},\n{\r\n  \"name\": \"Model#\",\r\n  \"value\": \"WHC048H4R0A\"\r\n},\n{\r\n  \"name\": \"Serial#\",\r\n  \"value\": \"xx\"\r\n},\n{\r\n  \"name\": \"SizeUnit\",\r\n  \"value\": \"BTU/H\"\r\n},\n{\r\n  \"name\": \"Size\",\r\n  \"value\": 48000\r\n},\n{\r\n  \"name\": \"Input1\",\r\n  \"value\": \"SEER\"\r\n},\n{\r\n  \"name\": \"B_InputValue1\"\r\n},\n{\r\n  \"name\": \"P_InputValue1\",\r\n  \"value\": 16.5\r\n},\n{\r\n  \"name\": \"Input2\",\r\n  \"value\": \"SEER2\"\r\n},\n{\r\n  \"name\": \"B_InputValue2\",\r\n  \"value\": 14\r\n},\n{\r\n  \"name\": \"P_InputValue2\",\r\n  \"value\": 16.1\r\n},\n{\r\n  \"name\": \"Input3\",\r\n  \"value\": \"EER\"\r\n},\n{\r\n  \"name\": \"B_InputValue3\",\r\n  \"value\": 13.4\r\n},\n{\r\n  \"name\": \"P_InputValue3\",\r\n  \"value\": 13\r\n},\n{\r\n  \"name\": \"Input4\",\r\n  \"value\": \"EER2\"\r\n},\n{\r\n  \"name\": \"B_InputValue4\",\r\n  \"value\": 11\r\n},\n{\r\n  \"name\": \"P_InputValue4\",\r\n  \"value\": 12.5\r\n},\n{\r\n  \"name\": \"Input5\",\r\n  \"value\": \"HSPF\"\r\n},\n{\r\n  \"name\": \"B_InputValue5\",\r\n  \"value\": 10.6\r\n},\n{\r\n  \"name\": \"P_InputValue5\",\r\n  \"value\": 12.5\r\n},\n{\r\n  \"name\": \"Input6\",\r\n  \"value\": \"HSPF2\"\r\n},\n{\r\n  \"name\": \"B_InputValue6\",\r\n  \"value\": 8\r\n},\n{\r\n  \"name\": \"P_InputValue6\",\r\n  \"value\": 12.5\r\n},\n{\r\n  \"name\": \"Quantity\",\r\n  \"value\": 1\r\n},\n{\r\n  \"name\": \"Notes\",\r\n  \"value\": 6.7\r\n},\n{\r\n  \"name\": \"BaselinekWh\",\r\n  \"value\": 14260\r\n},\n{\r\n  \"name\": \"BaselinekW\",\r\n  \"value\": 3.157\r\n},\n{\r\n  \"name\": \"ProposedkWh\",\r\n  \"value\": 11801\r\n},\n{\r\n  \"name\": \"ProposedkW\",\r\n  \"value\": 2.677\r\n},\n{\r\n  \"name\": \"Tier\",\r\n  \"value\": \"HP - Tier 2\"\r\n},\n{\r\n  \"name\": \"IncentiveRate\",\r\n  \"value\": 135\r\n},\n{\r\n  \"name\": \"Incentive_Customer\",\r\n  \"value\": 540\r\n},\n{\r\n  \"name\": \"CostRate\",\r\n  \"value\": 450\r\n},\n{\r\n  \"name\": \"IncrementalCost\",\r\n  \"value\": 1800\r\n},\n{\r\n  \"name\": \"MeasureCost\",\r\n  \"value\": 247045.9\r\n},\n{\r\n  \"name\": \"kWhSavings\",\r\n  \"value\": 2459\r\n},\n{\r\n  \"name\": \"DemandSavingskW\",\r\n  \"value\": 0.48\r\n},\n{\r\n  \"name\": \"WaterSavings\",\r\n  \"value\": 0\r\n},\n{\r\n  \"name\": \"ElectrificationSavings\",\r\n  \"value\": \"\"\r\n},\n{\r\n  \"name\": \"ElectrificationGHG\",\r\n  \"value\": \"\"\r\n},\n{\r\n  \"name\": \"AnnualCO2Savings\",\r\n  \"value\": 1.02839426653361\r\n},\n{\r\n  \"name\": \"AnnualVehicleSavings\",\r\n  \"value\": 0.222234989728801\r\n},\n{\r\n  \"name\": \"AnnualCarbonSavings\",\r\n  \"value\": 17.000074982754\r\n},\n{\r\n  \"name\": \"AnnualNoxSavings\",\r\n  \"value\": 0.00078078168\r\n},\n{\r\n  \"name\": \"EFLHCooling\",\r\n  \"value\": 3435\r\n},\n{\r\n  \"name\": \"EFLH_Heating\",\r\n  \"value\": 273\r\n},\n{\r\n  \"name\": \"MeasureLife\",\r\n  \"value\": 15\r\n}\n]\n}\n"]
["{\r\n  \"name\": \"Non Lighting Container\"\r\n, \"fields\":[\n\n{\r\n  \"name\": \"MeasureName\",\r\n  \"value\": \"Unitary Air-Conditioning Equipment - Packaged Air-Conditioner - 550,000.00 BTU/H\"\r\n},\n{\r\n  \"name\": \"MeassureCategory\",\r\n  \"value\": \"Unitary Air-Conditioning Equipment\"\r\n},\n{\r\n  \"name\": \"ProposedMeasureCategory\",\r\n  \"value\": \"Packaged Air-Conditioner\"\r\n},\n{\r\n  \"name\": \"P_MeasureOption1\",\r\n  \"value\": \"Air-Cooled\"\r\n},\n{\r\n  \"name\": \"P_MeasureOption2\",\r\n  \"value\": \"Electric Resistance\"\r\n},\n{\r\n  \"name\": \"Manufacturer\",\r\n  \"value\": \"Trane\"\r\n},\n{\r\n  \"name\": \"Model#\",\r\n  \"value\": \"SXHMF7504\"\r\n},\n{\r\n  \"name\": \"Serial#\",\r\n  \"value\": \"xx\"\r\n},\n{\r\n  \"name\": \"SizeUnit\",\r\n  \"value\": \"BTU/H\"\r\n},\n{\r\n  \"name\": \"Size\",\r\n  \"value\": 550000\r\n},\n{\r\n  \"name\": \"Input1\",\r\n  \"value\": \"IEER\"\r\n},\n{\r\n  \"name\": \"B_InputValue1\"\r\n},\n{\r\n  \"name\": \"P_InputValue1\",\r\n  \"value\": 14.9\r\n},\n{\r\n  \"name\": \"Input2\",\r\n  \"value\": \"\"\r\n},\n{\r\n  \"name\": \"B_InputValue2\",\r\n  \"value\": 13.2\r\n},\n{\r\n  \"name\": \"P_InputValue2\",\r\n  \"value\": \"\"\r\n},\n{\r\n  \"name\": \"Input3\",\r\n  \"value\": \"EER\"\r\n},\n{\r\n  \"name\": \"B_InputValue3\"\r\n},\n{\r\n  \"name\": \"P_InputValue3\",\r\n  \"value\": 10.7\r\n},\n{\r\n  \"name\": \"Input4\",\r\n  \"value\": \"\"\r\n},\n{\r\n  \"name\": \"B_InputValue4\",\r\n  \"value\": 10\r\n},\n{\r\n  \"name\": \"P_InputValue4\",\r\n  \"value\": \"\"\r\n},\n{\r\n  \"name\": \"Input5\",\r\n  \"value\": \"\"\r\n},\n{\r\n  \"name\": \"B_InputValue5\"\r\n},\n{\r\n  \"name\": \"P_InputValue5\",\r\n  \"value\": \"\"\r\n},\n{\r\n  \"name\": \"Input6\",\r\n  \"value\": \"\"\r\n},\n{\r\n  \"name\": \"B_InputValue6\"\r\n},\n{\r\n  \"name\": \"P_InputValue6\",\r\n  \"value\": \"\"\r\n},\n{\r\n  \"name\": \"Quantity\",\r\n  \"value\": 1\r\n},\n{\r\n  \"name\": \"Notes\"\r\n},\n{\r\n  \"name\": \"BaselinekWh\",\r\n  \"value\": 143125\r\n},\n{\r\n  \"name\": \"BaselinekW\",\r\n  \"value\": 38.346\r\n},\n{\r\n  \"name\": \"ProposedkWh\",\r\n  \"value\": 126795\r\n},\n{\r\n  \"name\": \"ProposedkW\",\r\n  \"value\": 35.837\r\n},\n{\r\n  \"name\": \"Tier\",\r\n  \"value\": \"AC - Tier 1\"\r\n},\n{\r\n  \"name\": \"IncentiveRate\",\r\n  \"value\": 65\r\n},\n{\r\n  \"name\": \"Incentive_Customer\",\r\n  \"value\": 2979.17\r\n},\n{\r\n  \"name\": \"CostRate\",\r\n  \"value\": 150\r\n},\n{\r\n  \"name\": \"IncrementalCost\",\r\n  \"value\": 6875\r\n},\n{\r\n  \"name\": \"MeasureCost\",\r\n  \"value\": 1362947.65\r\n},\n{\r\n  \"name\": \"kWhSavings\",\r\n  \"value\": 16330\r\n},\n{\r\n  \"name\": \"DemandSavingskW\",\r\n  \"value\": 2.50899999999999\r\n},\n{\r\n  \"name\": \"WaterSavings\",\r\n  \"value\": 0\r\n},\n{\r\n  \"name\": \"ElectrificationSavings\",\r\n  \"value\": \"\"\r\n},\n{\r\n  \"name\": \"ElectrificationGHG\",\r\n  \"value\": 1501.5\r\n},\n{\r\n  \"name\": \"AnnualCO2Savings\",\r\n  \"value\": 6.82947473464574\r\n},\n{\r\n  \"name\": \"AnnualVehicleSavings\",\r\n  \"value\": 1.47584277440883\r\n},\n{\r\n  \"name\": \"AnnualCarbonSavings\",\r\n  \"value\": 112.895983923698\r\n},\n{\r\n  \"name\": \"AnnualNoxSavings\",\r\n  \"value\": 0.0051851016\r\n},\n{\r\n  \"name\": \"EFLHCooling\",\r\n  \"value\": 3435\r\n},\n{\r\n  \"name\": \"EFLH_Heating\"\r\n},\n{\r\n  \"name\": \"MeasureLife\",\r\n  \"value\": 15\r\n}\n]\n}\n, \n{\r\n  \"name\": \"Non Lighting Container\"\r\n, \"fields\":[\n\n{\r\n  \"name\": \"MeasureName\",\r\n  \"value\": \"Unitary Heat Pump Equipment - Packaged Heat Pump - 48,000.00 BTU/H\"\r\n},\n{\r\n  \"name\": \"MeassureCategory\",\r\n  \"value\": \"Unitary Heat Pump Equipment\"\r\n},\n{\r\n  \"name\": \"ProposedMeasureCategory\",\r\n  \"value\": \"Packaged Heat Pump\"\r\n},\n{\r\n  \"name\": \"P_MeasureOption1\",\r\n  \"value\": \"Air-Cooled\"\r\n},\n{\r\n  \"name\": \"P_MeasureOption2\",\r\n  \"value\": \"Heat Pump\"\r\n},\n{\r\n  \"name\": \"Manufacturer\",\r\n  \"value\": \"Trane\"\r\n},\n{\r\n  \"name\": \"Model#\",\r\n  \"value\": \"WHC048H4R0A\"\r\n},\n{\r\n  \"name\": \"Serial#\",\r\n  \"value\": \"xx\"\r\n},\n{\r\n  \"name\": \"SizeUnit\",\r\n  \"value\": \"BTU/H\"\r\n},\n{\r\n  \"name\": \"Size\",\r\n  \"value\": 48000\r\n},\n{\r\n  \"name\": \"Input1\",\r\n  \"value\": \"SEER\"\r\n},\n{\r\n  \"name\": \"B_InputValue1\"\r\n},\n{\r\n  \"name\": \"P_InputValue1\",\r\n  \"value\": 16.5\r\n},\n{\r\n  \"name\": \"Input2\",\r\n  \"value\": \"SEER2\"\r\n},\n{\r\n  \"name\": \"B_InputValue2\",\r\n  \"value\": 14\r\n},\n{\r\n  \"name\": \"P_InputValue2\",\r\n  \"value\": 16.1\r\n},\n{\r\n  \"name\": \"Input3\",\r\n  \"value\": \"EER\"\r\n},\n{\r\n  \"name\": \"B_InputValue3\",\r\n  \"value\": 13.4\r\n},\n{\r\n  \"name\": \"P_InputValue3\",\r\n  \"value\": 13\r\n},\n{\r\n  \"name\": \"Input4\",\r\n  \"value\": \"EER2\"\r\n},\n{\r\n  \"name\": \"B_InputValue4\",\r\n  \"value\": 11\r\n},\n{\r\n  \"name\": \"P_InputValue4\",\r\n  \"value\": 12.5\r\n},\n{\r\n  \"name\": \"Input5\",\r\n  \"value\": \"HSPF\"\r\n},\n{\r\n  \"name\": \"B_InputValue5\",\r\n  \"value\": 10.6\r\n},\n{\r\n  \"name\": \"P_InputValue5\",\r\n  \"value\": 12.5\r\n},\n{\r\n  \"name\": \"Input6\",\r\n  \"value\": \"HSPF2\"\r\n},\n{\r\n  \"name\": \"B_InputValue6\",\r\n  \"value\": 8\r\n},\n{\r\n  \"name\": \"P_InputValue6\",\r\n  \"value\": 12.5\r\n},\n{\r\n  \"name\": \"Quantity\",\r\n  \"value\": 1\r\n},\n{\r\n  \"name\": \"Notes\",\r\n  \"value\": 6.7\r\n},\n{\r\n  \"name\": \"BaselinekWh\",\r\n  \"value\": 14260\r\n},\n{\r\n  \"name\": \"BaselinekW\",\r\n  \"value\": 3.157\r\n},\n{\r\n  \"name\": \"ProposedkWh\",\r\n  \"value\": 11801\r\n},\n{\r\n  \"name\": \"ProposedkW\",\r\n  \"value\": 2.677\r\n},\n{\r\n  \"name\": \"Tier\",\r\n  \"value\": \"HP - Tier 2\"\r\n},\n{\r\n  \"name\": \"IncentiveRate\",\r\n  \"value\": 135\r\n},\n{\r\n  \"name\": \"Incentive_Customer\",\r\n  \"value\": 540\r\n},\n{\r\n  \"name\": \"CostRate\",\r\n  \"value\": 450\r\n},\n{\r\n  \"name\": \"IncrementalCost\",\r\n  \"value\": 1800\r\n},\n{\r\n  \"name\": \"MeasureCost\",\r\n  \"value\": 247045.9\r\n},\n{\r\n  \"name\": \"kWhSavings\",\r\n  \"value\": 2459\r\n},\n{\r\n  \"name\": \"DemandSavingskW\",\r\n  \"value\": 0.48\r\n},\n{\r\n  \"name\": \"WaterSavings\",\r\n  \"value\": 0\r\n},\n{\r\n  \"name\": \"ElectrificationSavings\",\r\n  \"value\": \"\"\r\n},\n{\r\n  \"name\": \"ElectrificationGHG\",\r\n  \"value\": \"\"\r\n},\n{\r\n  \"name\": \"AnnualCO2Savings\",\r\n  \"value\": 1.02839426653361\r\n},\n{\r\n  \"name\": \"AnnualVehicleSavings\",\r\n  \"value\": 0.222234989728801\r\n},\n{\r\n  \"name\": \"AnnualCarbonSavings\",\r\n  \"value\": 17.000074982754\r\n},\n{\r\n  \"name\": \"AnnualNoxSavings\",\r\n  \"value\": 0.00078078168\r\n},\n{\r\n  \"name\": \"EFLHCooling\",\r\n  \"value\": 3435\r\n},\n{\r\n  \"name\": \"EFLH_Heating\",\r\n  \"value\": 273\r\n},\n{\r\n  \"name\": \"MeasureLife\",\r\n  \"value\": 15\r\n}\n]\n}\n, \n{\r\n  \"name\": \"Non Lighting Container\"\r\n, \"fields\":[\n\n{\r\n  \"name\": \"MeasureName\",\r\n  \"value\": \"Unitary Heat Pump Equipment - Packaged Heat Pump - 78,000.00 BTU/H\"\r\n},\n{\r\n  \"name\": \"MeassureCategory\",\r\n  \"value\": \"Unitary Heat Pump Equipment\"\r\n},\n{\r\n  \"name\": \"ProposedMeasureCategory\",\r\n  \"value\": \"Packaged Heat Pump\"\r\n},\n{\r\n  \"name\": \"P_MeasureOption1\",\r\n  \"value\": \"Air-Cooled\"\r\n},\n{\r\n  \"name\": \"P_MeasureOption2\",\r\n  \"value\": \"Heat Pump\"\r\n},\n{\r\n  \"name\": \"Manufacturer\",\r\n  \"value\": \"Trane\"\r\n},\n{\r\n  \"name\": \"Model#\",\r\n  \"value\": \"WHC074H4R0A\"\r\n},\n{\r\n  \"name\": \"Serial#\",\r\n  \"value\": \"xx\"\r\n},\n{\r\n  \"name\": \"SizeUnit\",\r\n  \"value\": \"BTU/H\"\r\n},\n{\r\n  \"name\": \"Size\",\r\n  \"value\": 78000\r\n},\n{\r\n  \"name\": \"Input1\",\r\n  \"value\": \"IEER\"\r\n},\n{\r\n  \"name\": \"B_InputValue1\"\r\n},\n{\r\n  \"name\": \"P_InputValue1\",\r\n  \"value\": 16.5\r\n},\n{\r\n  \"name\": \"Input2\",\r\n  \"value\": \"\"\r\n},\n{\r\n  \"name\": \"B_InputValue2\",\r\n  \"value\": 13.9\r\n},\n{\r\n  \"name\": \"P_InputValue2\",\r\n  \"value\": \"\"\r\n},\n{\r\n  \"name\": \"Input3\",\r\n  \"value\": \"EER\"\r\n},\n{\r\n  \"name\": \"B_InputValue3\"\r\n},\n{\r\n  \"name\": \"P_InputValue3\",\r\n  \"value\": 12.1\r\n},\n{\r\n  \"name\": \"Input4\",\r\n  \"value\": \"\"\r\n},\n{\r\n  \"name\": \"B_InputValue4\",\r\n  \"value\": 10.8\r\n},\n{\r\n  \"name\": \"P_InputValue4\",\r\n  \"value\": \"\"\r\n},\n{\r\n  \"name\": \"Input5\",\r\n  \"value\": \"COP 1\"\r\n},\n{\r\n  \"name\": \"B_InputValue5\"\r\n},\n{\r\n  \"name\": \"P_InputValue5\",\r\n  \"value\": \"\"\r\n},\n{\r\n  \"name\": \"Input6\",\r\n  \"value\": \"\"\r\n},\n{\r\n  \"name\": \"B_InputValue6\",\r\n  \"value\": 3.4\r\n},\n{\r\n  \"name\": \"P_InputValue6\",\r\n  \"value\": \"\"\r\n},\n{\r\n  \"name\": \"Quantity\",\r\n  \"value\": 1\r\n},\n{\r\n  \"name\": \"Notes\"\r\n},\n{\r\n  \"name\": \"BaselinekWh\",\r\n  \"value\": 22429\r\n},\n{\r\n  \"name\": \"BaselinekW\",\r\n  \"value\": 5.035\r\n},\n{\r\n  \"name\": \"ProposedkWh\",\r\n  \"value\": 19302\r\n},\n{\r\n  \"name\": \"ProposedkW\",\r\n  \"value\": 4.494\r\n},\n{\r\n  \"name\": \"Tier\",\r\n  \"value\": \"HP - Tier 1\"\r\n},\n{\r\n  \"name\": \"IncentiveRate\",\r\n  \"value\": 110\r\n},\n{\r\n  \"name\": \"Incentive_Customer\",\r\n  \"value\": 715\r\n},\n{\r\n  \"name\": \"CostRate\",\r\n  \"value\": 150\r\n},\n{\r\n  \"name\": \"IncrementalCost\",\r\n  \"value\": 975\r\n},\n{\r\n  \"name\": \"MeasureCost\",\r\n  \"value\": 327107.07\r\n},\n{\r\n  \"name\": \"kWhSavings\",\r\n  \"value\": 3127\r\n},\n{\r\n  \"name\": \"DemandSavingskW\",\r\n  \"value\": 0.541\r\n},\n{\r\n  \"name\": \"WaterSavings\",\r\n  \"value\": 0\r\n},\n{\r\n  \"name\": \"ElectrificationSavings\",\r\n  \"value\": \"\"\r\n},\n{\r\n  \"name\": \"ElectrificationGHG\",\r\n  \"value\": \"\"\r\n},\n{\r\n  \"name\": \"AnnualCO2Savings\",\r\n  \"value\": 1.30776285947564\r\n},\n{\r\n  \"name\": \"AnnualVehicleSavings\",\r\n  \"value\": 0.282606267947117\r\n},\n{\r\n  \"name\": \"AnnualCarbonSavings\",\r\n  \"value\": 21.6182328064545\r\n},\n{\r\n  \"name\": \"AnnualNoxSavings\",\r\n  \"value\": 0.00099288504\r\n},\n{\r\n  \"name\": \"EFLHCooling\",\r\n  \"value\": 3435\r\n},\n{\r\n  \"name\": \"EFLH_Heating\",\r\n  \"value\": 273\r\n},\n{\r\n  \"name\": \"MeasureLife\",\r\n  \"value\": 15\r\n}\n]\n}\n"]
["{\r\n  \"name\": \"Non Lighting Container\"\r\n, \"fields\":[\n\n{\r\n  \"name\": \"MeasureName\",\r\n  \"value\": \"Unitary Air-Conditioning Equipment - Packaged Air-Conditioner - 550,000.00 BTU/H\"\r\n},\n{\r\n  \"name\": \"MeassureCategory\",\r\n  \"value\": \"Unitary Air-Conditioning Equipment\"\r\n},\n{\r\n  \"name\": \"ProposedMeasureCategory\",\r\n  \"value\": \"Packaged Air-Conditioner\"\r\n},\n{\r\n  \"name\": \"P_MeasureOption1\",\r\n  \"value\": \"Air-Cooled\"\r\n},\n{\r\n  \"name\": \"P_MeasureOption2\",\r\n  \"value\": \"Electric Resistance\"\r\n},\n{\r\n  \"name\": \"Manufacturer\",\r\n  \"value\": \"Trane\"\r\n},\n{\r\n  \"name\": \"Model#\",\r\n  \"value\": \"SXHMF7504\"\r\n},\n{\r\n  \"name\": \"Serial#\",\r\n  \"value\": \"xx\"\r\n},\n{\r\n  \"name\": \"SizeUnit\",\r\n  \"value\": \"BTU/H\"\r\n},\n{\r\n  \"name\": \"Size\",\r\n  \"value\": 550000\r\n},\n{\r\n  \"name\": \"Input1\",\r\n  \"value\": \"IEER\"\r\n},\n{\r\n  \"name\": \"B_InputValue1\"\r\n},\n{\r\n  \"name\": \"P_InputValue1\",\r\n  \"value\": 14.9\r\n},\n{\r\n  \"name\": \"Input2\",\r\n  \"value\": \"\"\r\n},\n{\r\n  \"name\": \"B_InputValue2\",\r\n  \"value\": 13.2\r\n},\n{\r\n  \"name\": \"P_InputValue2\",\r\n  \"value\": \"\"\r\n},\n{\r\n  \"name\": \"Input3\",\r\n  \"value\": \"EER\"\r\n},\n{\r\n  \"name\": \"B_InputValue3\"\r\n},\n{\r\n  \"name\": \"P_InputValue3\",\r\n  \"value\": 10.7\r\n},\n{\r\n  \"name\": \"Input4\",\r\n  \"value\": \"\"\r\n},\n{\r\n  \"name\": \"B_InputValue4\",\r\n  \"value\": 10\r\n},\n{\r\n  \"name\": \"P_InputValue4\",\r\n  \"value\": \"\"\r\n},\n{\r\n  \"name\": \"Input5\",\r\n  \"value\": \"\"\r\n},\n{\r\n  \"name\": \"B_InputValue5\"\r\n},\n{\r\n  \"name\": \"P_InputValue5\",\r\n  \"value\": \"\"\r\n},\n{\r\n  \"name\": \"Input6\",\r\n  \"value\": \"\"\r\n},\n{\r\n  \"name\": \"B_InputValue6\"\r\n},\n{\r\n  \"name\": \"P_InputValue6\",\r\n  \"value\": \"\"\r\n},\n{\r\n  \"name\": \"Quantity\",\r\n  \"value\": 1\r\n},\n{\r\n  \"name\": \"Notes\"\r\n},\n{\r\n  \"name\": \"BaselinekWh\",\r\n  \"value\": 143125\r\n},\n{\r\n  \"name\": \"BaselinekW\",\r\n  \"value\": 38.346\r\n},\n{\r\n  \"name\": \"ProposedkWh\",\r\n  \"value\": 126795\r\n},\n{\r\n  \"name\": \"ProposedkW\",\r\n  \"value\": 35.837\r\n},\n{\r\n  \"name\": \"Tier\",\r\n  \"value\": \"AC - Tier 1\"\r\n},\n{\r\n  \"name\": \"IncentiveRate\",\r\n  \"value\": 65\r\n},\n{\r\n  \"name\": \"Incentive_Customer\",\r\n  \"value\": 2979.17\r\n},\n{\r\n  \"name\": \"CostRate\",\r\n  \"value\": 150\r\n},\n{\r\n  \"name\": \"IncrementalCost\",\r\n  \"value\": 6875\r\n},\n{\r\n  \"name\": \"MeasureCost\",\r\n  \"value\": 1362947.65\r\n},\n{\r\n  \"name\": \"kWhSavings\",\r\n  \"value\": 16330\r\n},\n{\r\n  \"name\": \"DemandSavingskW\",\r\n  \"value\": 2.50899999999999\r\n},\n{\r\n  \"name\": \"WaterSavings\",\r\n  \"value\": 0\r\n},\n{\r\n  \"name\": \"ElectrificationSavings\",\r\n  \"value\": \"\"\r\n},\n{\r\n  \"name\": \"ElectrificationGHG\",\r\n  \"value\": 1501.5\r\n},\n{\r\n  \"name\": \"AnnualCO2Savings\",\r\n  \"value\": 6.82947473464574\r\n},\n{\r\n  \"name\": \"AnnualVehicleSavings\",\r\n  \"value\": 1.47584277440883\r\n},\n{\r\n  \"name\": \"AnnualCarbonSavings\",\r\n  \"value\": 112.895983923698\r\n},\n{\r\n  \"name\": \"AnnualNoxSavings\",\r\n  \"value\": 0.0051851016\r\n},\n{\r\n  \"name\": \"EFLHCooling\",\r\n  \"value\": 3435\r\n},\n{\r\n  \"name\": \"EFLH_Heating\"\r\n},\n{\r\n  \"name\": \"MeasureLife\",\r\n  \"value\": 15\r\n}\n]\n}\n, \n{\r\n  \"name\": \"Non Lighting Container\"\r\n, \"fields\":[\n\n{\r\n  \"name\": \"MeasureName\",\r\n  \"value\": \"Unitary Heat Pump Equipment - Packaged Heat Pump - 48,000.00 BTU/H\"\r\n},\n{\r\n  \"name\": \"MeassureCategory\",\r\n  \"value\": \"Unitary Heat Pump Equipment\"\r\n},\n{\r\n  \"name\": \"ProposedMeasureCategory\",\r\n  \"value\": \"Packaged Heat Pump\"\r\n},\n{\r\n  \"name\": \"P_MeasureOption1\",\r\n  \"value\": \"Air-Cooled\"\r\n},\n{\r\n  \"name\": \"P_MeasureOption2\",\r\n  \"value\": \"Heat Pump\"\r\n},\n{\r\n  \"name\": \"Manufacturer\",\r\n  \"value\": \"Trane\"\r\n},\n{\r\n  \"name\": \"Model#\",\r\n  \"value\": \"WHC048H4R0A\"\r\n},\n{\r\n  \"name\": \"Serial#\",\r\n  \"value\": \"xx\"\r\n},\n{\r\n  \"name\": \"SizeUnit\",\r\n  \"value\": \"BTU/H\"\r\n},\n{\r\n  \"name\": \"Size\",\r\n  \"value\": 48000\r\n},\n{\r\n  \"name\": \"Input1\",\r\n  \"value\": \"SEER\"\r\n},\n{\r\n  \"name\": \"B_InputValue1\"\r\n},\n{\r\n  \"name\": \"P_InputValue1\",\r\n  \"value\": 16.5\r\n},\n{\r\n  \"name\": \"Input2\",\r\n  \"value\": \"SEER2\"\r\n},\n{\r\n  \"name\": \"B_InputValue2\",\r\n  \"value\": 14\r\n},\n{\r\n  \"name\": \"P_InputValue2\",\r\n  \"value\": 16.1\r\n},\n{\r\n  \"name\": \"Input3\",\r\n  \"value\": \"EER\"\r\n},\n{\r\n  \"name\": \"B_InputValue3\",\r\n  \"value\": 13.4\r\n},\n{\r\n  \"name\": \"P_InputValue3\",\r\n  \"value\": 13\r\n},\n{\r\n  \"name\": \"Input4\",\r\n  \"value\": \"EER2\"\r\n},\n{\r\n  \"name\": \"B_InputValue4\",\r\n  \"value\": 11\r\n},\n{\r\n  \"name\": \"P_InputValue4\",\r\n  \"value\": 12.5\r\n},\n{\r\n  \"name\": \"Input5\",\r\n  \"value\": \"HSPF\"\r\n},\n{\r\n  \"name\": \"B_InputValue5\",\r\n  \"value\": 10.6\r\n},\n{\r\n  \"name\": \"P_InputValue5\",\r\n  \"value\": 12.5\r\n},\n{\r\n  \"name\": \"Input6\",\r\n  \"value\": \"HSPF2\"\r\n},\n{\r\n  \"name\": \"B_InputValue6\",\r\n  \"value\": 8\r\n},\n{\r\n  \"name\": \"P_InputValue6\",\r\n  \"value\": 12.5\r\n},\n{\r\n  \"name\": \"Quantity\",\r\n  \"value\": 1\r\n},\n{\r\n  \"name\": \"Notes\",\r\n  \"value\": 6.7\r\n},\n{\r\n  \"name\": \"BaselinekWh\",\r\n  \"value\": 14260\r\n},\n{\r\n  \"name\": \"BaselinekW\",\r\n  \"value\": 3.157\r\n},\n{\r\n  \"name\": \"ProposedkWh\",\r\n  \"value\": 11801\r\n},\n{\r\n  \"name\": \"ProposedkW\",\r\n  \"value\": 2.677\r\n},\n{\r\n  \"name\": \"Tier\",\r\n  \"value\": \"HP - Tier 2\"\r\n},\n{\r\n  \"name\": \"IncentiveRate\",\r\n  \"value\": 135\r\n},\n{\r\n  \"name\": \"Incentive_Customer\",\r\n  \"value\": 540\r\n},\n{\r\n  \"name\": \"CostRate\",\r\n  \"value\": 450\r\n},\n{\r\n  \"name\": \"IncrementalCost\",\r\n  \"value\": 1800\r\n},\n{\r\n  \"name\": \"MeasureCost\",\r\n  \"value\": 247045.9\r\n},\n{\r\n  \"name\": \"kWhSavings\",\r\n  \"value\": 2459\r\n},\n{\r\n  \"name\": \"DemandSavingskW\",\r\n  \"value\": 0.48\r\n},\n{\r\n  \"name\": \"WaterSavings\",\r\n  \"value\": 0\r\n},\n{\r\n  \"name\": \"ElectrificationSavings\",\r\n  \"value\": \"\"\r\n},\n{\r\n  \"name\": \"ElectrificationGHG\",\r\n  \"value\": \"\"\r\n},\n{\r\n  \"name\": \"AnnualCO2Savings\",\r\n  \"value\": 1.02839426653361\r\n},\n{\r\n  \"name\": \"AnnualVehicleSavings\",\r\n  \"value\": 0.222234989728801\r\n},\n{\r\n  \"name\": \"AnnualCarbonSavings\",\r\n  \"value\": 17.000074982754\r\n},\n{\r\n  \"name\": \"AnnualNoxSavings\",\r\n  \"value\": 0.00078078168\r\n},\n{\r\n  \"name\": \"EFLHCooling\",\r\n  \"value\": 3435\r\n},\n{\r\n  \"name\": \"EFLH_Heating\",\r\n  \"value\": 273\r\n},\n{\r\n  \"name\": \"MeasureLife\",\r\n  \"value\": 15\r\n}\n]\n}\n, \n{\r\n  \"name\": \"Non Lighting Container\"\r\n, \"fields\":[\n\n{\r\n  \"name\": \"MeasureName\",\r\n  \"value\": \"Unitary Heat Pump Equipment - Packaged Heat Pump - 78,000.00 BTU/H\"\r\n},\n{\r\n  \"name\": \"MeassureCategory\",\r\n  \"value\": \"Unitary Heat Pump Equipment\"\r\n},\n{\r\n  \"name\": \"ProposedMeasureCategory\",\r\n  \"value\": \"Packaged Heat Pump\"\r\n},\n{\r\n  \"name\": \"P_MeasureOption1\",\r\n  \"value\": \"Air-Cooled\"\r\n},\n{\r\n  \"name\": \"P_MeasureOption2\",\r\n  \"value\": \"Heat Pump\"\r\n},\n{\r\n  \"name\": \"Manufacturer\",\r\n  \"value\": \"Trane\"\r\n},\n{\r\n  \"name\": \"Model#\",\r\n  \"value\": \"WHC074H4R0A\"\r\n},\n{\r\n  \"name\": \"Serial#\",\r\n  \"value\": \"xx\"\r\n},\n{\r\n  \"name\": \"SizeUnit\",\r\n  \"value\": \"BTU/H\"\r\n},\n{\r\n  \"name\": \"Size\",\r\n  \"value\": 78000\r\n},\n{\r\n  \"name\": \"Input1\",\r\n  \"value\": \"IEER\"\r\n},\n{\r\n  \"name\": \"B_InputValue1\"\r\n},\n{\r\n  \"name\": \"P_InputValue1\",\r\n  \"value\": 16.5\r\n},\n{\r\n  \"name\": \"Input2\",\r\n  \"value\": \"\"\r\n},\n{\r\n  \"name\": \"B_InputValue2\",\r\n  \"value\": 13.9\r\n},\n{\r\n  \"name\": \"P_InputValue2\",\r\n  \"value\": \"\"\r\n},\n{\r\n  \"name\": \"Input3\",\r\n  \"value\": \"EER\"\r\n},\n{\r\n  \"name\": \"B_InputValue3\"\r\n},\n{\r\n  \"name\": \"P_InputValue3\",\r\n  \"value\": 12.1\r\n},\n{\r\n  \"name\": \"Input4\",\r\n  \"value\": \"\"\r\n},\n{\r\n  \"name\": \"B_InputValue4\",\r\n  \"value\": 10.8\r\n},\n{\r\n  \"name\": \"P_InputValue4\",\r\n  \"value\": \"\"\r\n},\n{\r\n  \"name\": \"Input5\",\r\n  \"value\": \"COP 1\"\r\n},\n{\r\n  \"name\": \"B_InputValue5\"\r\n},\n{\r\n  \"name\": \"P_InputValue5\",\r\n  \"value\": \"\"\r\n},\n{\r\n  \"name\": \"Input6\",\r\n  \"value\": \"\"\r\n},\n{\r\n  \"name\": \"B_InputValue6\",\r\n  \"value\": 3.4\r\n},\n{\r\n  \"name\": \"P_InputValue6\",\r\n  \"value\": \"\"\r\n},\n{\r\n  \"name\": \"Quantity\",\r\n  \"value\": 1\r\n},\n{\r\n  \"name\": \"Notes\"\r\n},\n{\r\n  \"name\": \"BaselinekWh\",\r\n  \"value\": 22429\r\n},\n{\r\n  \"name\": \"BaselinekW\",\r\n  \"value\": 5.035\r\n},\n{\r\n  \"name\": \"ProposedkWh\",\r\n  \"value\": 19302\r\n},\n{\r\n  \"name\": \"ProposedkW\",\r\n  \"value\": 4.494\r\n},\n{\r\n  \"name\": \"Tier\",\r\n  \"value\": \"HP - Tier 1\"\r\n},\n{\r\n  \"name\": \"IncentiveRate\",\r\n  \"value\": 110\r\n},\n{\r\n  \"name\": \"Incentive_Customer\",\r\n  \"value\": 715\r\n},\n{\r\n  \"name\": \"CostRate\",\r\n  \"value\": 150\r\n},\n{\r\n  \"name\": \"IncrementalCost\",\r\n  \"value\": 975\r\n},\n{\r\n  \"name\": \"MeasureCost\",\r\n  \"value\": 327107.07\r\n},\n{\r\n  \"name\": \"kWhSavings\",\r\n  \"value\": 3127\r\n},\n{\r\n  \"name\": \"DemandSavingskW\",\r\n  \"value\": 0.541\r\n},\n{\r\n  \"name\": \"WaterSavings\",\r\n  \"value\": 0\r\n},\n{\r\n  \"name\": \"ElectrificationSavings\",\r\n  \"value\": \"\"\r\n},\n{\r\n  \"name\": \"ElectrificationGHG\",\r\n  \"value\": \"\"\r\n},\n{\r\n  \"name\": \"AnnualCO2Savings\",\r\n  \"value\": 1.30776285947564\r\n},\n{\r\n  \"name\": \"AnnualVehicleSavings\",\r\n  \"value\": 0.282606267947117\r\n},\n{\r\n  \"name\": \"AnnualCarbonSavings\",\r\n  \"value\": 21.6182328064545\r\n},\n{\r\n  \"name\": \"AnnualNoxSavings\",\r\n  \"value\": 0.00099288504\r\n},\n{\r\n  \"name\": \"EFLHCooling\",\r\n  \"value\": 3435\r\n},\n{\r\n  \"name\": \"EFLH_Heating\",\r\n  \"value\": 273\r\n},\n{\r\n  \"name\": \"MeasureLife\",\r\n  \"value\": 15\r\n}\n]\n}\n, \n{\r\n  \"name\": \"Non Lighting Container\"\r\n, \"fields\":[\n\n{\r\n  \"name\": \"MeasureName\",\r\n  \"value\": \"Unitary Heat Pump Equipment - Split Heat Pump - 24,000.00 BTU/H\"\r\n},\n{\r\n  \"name\": \"MeassureCategory\",\r\n  \"value\": \"Unitary Heat Pump Equipment\"\r\n},\n{\r\n  \"name\": \"ProposedMeasureCategory\",\r\n  \"value\": \"Split Heat Pump\"\r\n},\n{\r\n  \"name\": \"P_MeasureOption1\",\r\n  \"value\": \"Air-Cooled\"\r\n},\n{\r\n  \"name\": \"P_MeasureOption2\",\r\n  \"value\": \"Heat Pump\"\r\n},\n{\r\n  \"name\": \"Manufacturer\",\r\n  \"value\": \"Mitsubishi\"\r\n},\n{\r\n  \"name\": \"Model#\",\r\n  \"value\": \"PUZ-A24NHA7\"\r\n},\n{\r\n  \"name\": \"Serial#\",\r\n  \"value\": \"xx\"\r\n},\n{\r\n  \"name\": \"SizeUnit\",\r\n  \"value\": \"BTU/H\"\r\n},\n{\r\n  \"name\": \"Size\",\r\n  \"value\": 24000\r\n},\n{\r\n  \"name\": \"Input1\",\r\n  \"value\": \"SEER\"\r\n},\n{\r\n  \"name\": \"B_InputValue1\"\r\n},\n{\r\n  \"name\": \"P_InputValue1\",\r\n  \"value\": 19.6\r\n},\n{\r\n  \"name\": \"Input2\",\r\n  \"value\": \"SEER2\"\r\n},\n{\r\n  \"name\": \"B_InputValue2\",\r\n  \"value\": 15\r\n},\n{\r\n  \"name\": \"P_InputValue2\",\r\n  \"value\": 19.6\r\n},\n{\r\n  \"name\": \"Input3\",\r\n  \"value\": \"EER\"\r\n},\n{\r\n  \"name\": \"B_InputValue3\",\r\n  \"value\": 14.3\r\n},\n{\r\n  \"name\": \"P_InputValue3\",\r\n  \"value\": 11.7\r\n},\n{\r\n  \"name\": \"Input4\",\r\n  \"value\": \"EER2\"\r\n},\n{\r\n  \"name\": \"B_InputValue4\",\r\n  \"value\": 12.2\r\n},\n{\r\n  \"name\": \"P_InputValue4\",\r\n  \"value\": 11.7\r\n},\n{\r\n  \"name\": \"Input5\",\r\n  \"value\": \"HSPF\"\r\n},\n{\r\n  \"name\": \"B_InputValue5\",\r\n  \"value\": 11.7\r\n},\n{\r\n  \"name\": \"P_InputValue5\",\r\n  \"value\": 11.7\r\n},\n{\r\n  \"name\": \"Input6\",\r\n  \"value\": \"HSPF2\"\r\n},\n{\r\n  \"name\": \"B_InputValue6\",\r\n  \"value\": 8.8\r\n},\n{\r\n  \"name\": \"P_InputValue6\",\r\n  \"value\": 11.7\r\n},\n{\r\n  \"name\": \"Quantity\",\r\n  \"value\": 6\r\n},\n{\r\n  \"name\": \"Notes\",\r\n  \"value\": 7.5\r\n},\n{\r\n  \"name\": \"BaselinekWh\",\r\n  \"value\": 39834\r\n},\n{\r\n  \"name\": \"BaselinekW\",\r\n  \"value\": 8.58\r\n},\n{\r\n  \"name\": \"ProposedkWh\",\r\n  \"value\": 28878\r\n},\n{\r\n  \"name\": \"ProposedkW\",\r\n  \"value\": 8.58\r\n},\n{\r\n  \"name\": \"Tier\",\r\n  \"value\": \"HP - Tier 1\"\r\n},\n{\r\n  \"name\": \"IncentiveRate\",\r\n  \"value\": 110\r\n},\n{\r\n  \"name\": \"Incentive_Customer\",\r\n  \"value\": 1320\r\n},\n{\r\n  \"name\": \"CostRate\",\r\n  \"value\": 250\r\n},\n{\r\n  \"name\": \"IncrementalCost\",\r\n  \"value\": 3000\r\n},\n{\r\n  \"name\": \"MeasureCost\",\r\n  \"value\": 603889.97\r\n},\n{\r\n  \"name\": \"kWhSavings\",\r\n  \"value\": 10956\r\n},\n{\r\n  \"name\": \"DemandSavingskW\",\r\n  \"value\": \"\"\r\n},\n{\r\n  \"name\": \"WaterSavings\",\r\n  \"value\": 0\r\n},\n{\r\n  \"name\": \"ElectrificationSavings\",\r\n  \"value\": \"\"\r\n},\n{\r\n  \"name\": \"ElectrificationGHG\",\r\n  \"value\": \"\"\r\n},\n{\r\n  \"name\": \"AnnualCO2Savings\",\r\n  \"value\": 4.5819794974145\r\n},\n{\r\n  \"name\": \"AnnualVehicleSavings\",\r\n  \"value\": 0.990161263712382\r\n},\n{\r\n  \"name\": \"AnnualCarbonSavings\",\r\n  \"value\": 75.7433190366216\r\n},\n{\r\n  \"name\": \"AnnualNoxSavings\",\r\n  \"value\": 0.00347874912\r\n},\n{\r\n  \"name\": \"EFLHCooling\",\r\n  \"value\": 3435\r\n},\n{\r\n  \"name\": \"EFLH_Heating\",\r\n  \"value\": 273\r\n},\n{\r\n  \"name\": \"MeasureLife\",\r\n  \"value\": 15\r\n}\n]\n}\n"]
[{"$cut":{"chars":18653,"head":"{_x000D_\n  \"name\": \"Non Lighting Container\"_x000D_\n, \"fields\":[\n\n{_x000D_\n  \"name\": \"MeasureName\",_x000D_\n  \"value\": \"Unitary Air-Conditioning Equipment - Packaged Air-Conditioner - 550,000.00 BTU/H\"_x000D_\n},\n{_x000D_\n  \"name\": \"MeassureCategory\",_x000D_\n  \"value\": \"Unitary Air-Conditioning Equipment\"_x000D_\n},\n{_x000D_\n  \"name\": \"ProposedMeasureCategory\",_x000D_\n  \"value\": \"Packaged Air-Conditioner\"_x000D_\n},\n{_x000D_\n  \"name\": \"P_MeasureOption1\",_x000D_\n  \"value\": \"Air-Cooled\"_x000D_\n},\n{_x000D_\n  \"name\": \"P_MeasureOption2\",_x000D_\n  \"value\": \"Electric Resistance\"_x000D_\n},\n{_x000D_\n  \"name\": \"Manufacturer\",_x000D_\n  \"value\": \"Trane\"_x000D_\n},\n{_x000D_\n  \"name\": \"Model#\",_x000D_\n  \"value\": \"SXHMF7504\"_x000D_\n},\n{_x000D_\n  \"name\": \"Serial#\",_x000D_\n  \"value\": \"xx\"_x000D_\n},\n{_x000D_\n  \"name\": \"SizeUnit\",_x000D_\n  \"value\": \"BTU/H\"_x000D_\n},\n{_x000D_\n  \"name\": \"Size\",_x000D_\n  \"value\": 550000_x000D_\n},\n{_x000D_\n  \"name\": \"Input1\",_x000D_\n  \"value\": \"IEER\"_x000D_\n},\n{_x000D_\n  \"name\": \"B_InputValue1\"_x000D_\n},\n{_x000D_\n  \"name\": \"P_InputValue1\",_x000D_\n  \"value\": 14.9_x000D_\n},\n{_x000D_\n  \"name\": \"Input2\",_x000D_\n  \"value\": \"\"_x000D_\n},\n{_x000D_\n  \"name\": \"B_InputValue2\",_x000D_\n  \"value\": 13.2_x000D_\n},\n{_x000D_\n  \"name\": \"P_InputValue2\",_x000D_\n  \"value\": \"\"_x000D_\n},\n{_x000D_\n  \"name\": \"Input3\",_x000D_\n  \"value\": \"EER\"_x000D_\n},\n{_x000D_\n  \"name\": \"B_InputValue3\"_x000D_\n},\n{_x000D_\n  \"name\": \"P_InputValue3\",_x000D_\n  \"value\": 10.7_x000D_\n},\n{_x000D_\n  \"name\": \"Input4\",_x000D_\n  \"value\": \"\"_x000D_\n},\n{_x000D_\n  \"name\": \"B_InputValue4\",_x000D_\n  \"value\": 10_x000D_\n},\n{_x000D_\n  \"name\": \"P_InputValue4\",_x000D_\n  \"value\": \"\"_x000D_\n},\n{_x000D_\n  \"name\": \"Input5\",_x000D_\n  \"value\": \"\"_x000D_\n},\n{_x000D_\n  \"name\": \"B_InputValue5\"_x000D_\n},\n{_x000D_\n  \"name\": \"P_InputValue5\",_x000D_\n  \"value\": \"\"_x000D_\n},\n{_x000D_\n  \"name\": \"Input6\",_x000D_\n  \"value\": \"\"_x000D_\n},\n{_x000D_\n  \"name\": \"B_InputValue6\"_x000D_\n},\n{_x000D_\n  \"name\": \"P_InputValue6\",_x000D_\n  \"value\": \"\"_x000D_\n},\n{_x000D_\n  \"name\": \"Quantity\",_x000D_\n  \"value\": 1_x000D_\n},\n{_x000D_\n  \"name\": \"Notes\"_x000D_\n},\n{_x000D_\n  \"name\": \"BaselinekWh\",_x000D_\n  \"value\": 143125_x000D_\n},\n{_x000D_\n  \"name\": \"BaselinekW\",_x000D_\n  \"value\": 38.346_x000D_\n},\n{_x000D_\n  \"name\": \"ProposedkWh\",_x000D_\n  \"value\": 126795_x000D_\n},\n{_x000D_\n  \"name\": \"ProposedkW\",_x000D_\n  \"value\": 35.837_x000D_\n},\n{_x000D_\n  \"name\": \"Tier\",_x000D_\n  \"value\": \"AC - Tier 1\"_x000D_\n},\n{_x000D_\n  \"name\": \"IncentiveRate\",_x000D_\n  \"value\": 65_x000D_\n},\n{_x000D_\n  \"name\": \"Incentive_Customer\",_x000D_\n  \"value\": 2979.17_x000D_\n},\n{_x000D_\n  \"name\": \"CostRate\",_x000D_\n  \"value\": 150_x000D_\n},\n{_x000D_\n  \"name\": \"IncrementalCost\",_x000D_\n  \"value\": 6875_x000D_\n},\n{_x000D_\n  \"name\": \"MeasureCost\",_x000D_\n  \"value\": 1362947.65_x000D_\n},\n{_x000D_\n  \"name\": \"kWhSavings\",_x000D_\n  \"value\": 16330_x000D_\n},\n{_x000D_\n  \"name\": \"DemandSavingskW\",_x000D_\n  \"value\": 2.50899999999999_x000D_\n},\n{_x000D_\n  \"name\": \"WaterSavings\",_x000D_\n  \"value\": 0_x000D_\n},\n{_x000D_\n  \"name\": \"ElectrificationSavings\",_x000D_\n  \"value\": \"\"_x000D_\n},\n{_x000D_\n  \"name\": \"ElectrificationGHG\",_x000D_\n  \"value\": 1501.5_x000D_\n},\n{_x000D_\n  \"name\": \"AnnualCO2Savings\",_x000D_\n  \"value\": 6.82947473464574_x000D_\n},\n{_x000D_\n  \"name\": \"AnnualVehicleSavings\",_x000D_\n  \"value\": 1.47584277440883_x000D_\n},\n{_x000D_\n  \"name\": \"AnnualCarbonSavings\",_x000D_\n  \"value\": 112.895983923698_x000D_\n},\n{_x000D_\n  \"name\": \"AnnualNoxSavings\",_x000D_\n  \"value\": 0.0051851016_x000D_\n},\n{_x000D_\n  \"name\": \"EFLHCooling\",_x000D_\n  \"value\": 3435_x000D_\n},\n{_x000D_\n  \"name\": \"EFLH_Heating\"_x000D_\n},\n{_x000D_\n  \"name\": \"MeasureLife\",_x000D_\n  \"value\": 15_x000D_\n}\n]\n}\n, \n{_x000D_\n  \"name\": \"Non Lighting Container\"_x000D_\n, \"fields\":[\n\n{_x000D_\n  \"name\": \"MeasureName\",_x000D_\n  \"value\": \"Unitary Heat Pump Equipment - Packaged Heat Pump - 48,000.00 BTU/H\"_x000D_\n},\n{_x000D_\n  \"name\": \"MeassureCategory\",_x000D_\n  \"value\": \"Unitary Heat Pump Equipment\"_x000D_\n},\n{_x000D_\n  \"name\": \"ProposedMeasureCategory\",_x000D_\n  \"value\": \"Packaged Heat Pump\"_x000D_\n},\n{_x000D_\n  \"name\": \"P_M"}}]
[{"$cut":{"chars":22434,"head":"{_x000D_\n  \"name\": \"Non Lighting Container\"_x000D_\n, \"fields\":[\n\n{_x000D_\n  \"name\": \"MeasureName\",_x000D_\n  \"value\": \"Unitary Air-Conditioning Equipment - Packaged Air-Conditioner - 550,000.00 BTU/H\"_x000D_\n},\n{_x000D_\n  \"name\": \"MeassureCategory\",_x000D_\n  \"value\": \"Unitary Air-Conditioning Equipment\"_x000D_\n},\n{_x000D_\n  \"name\": \"ProposedMeasureCategory\",_x000D_\n  \"value\": \"Packaged Air-Conditioner\"_x000D_\n},\n{_x000D_\n  \"name\": \"P_MeasureOption1\",_x000D_\n  \"value\": \"Air-Cooled\"_x000D_\n},\n{_x000D_\n  \"name\": \"P_MeasureOption2\",_x000D_\n  \"value\": \"Electric Resistance\"_x000D_\n},\n{_x000D_\n  \"name\": \"Manufacturer\",_x000D_\n  \"value\": \"Trane\"_x000D_\n},\n{_x000D_\n  \"name\": \"Model#\",_x000D_\n  \"value\": \"SXHMF7504\"_x000D_\n},\n{_x000D_\n  \"name\": \"Serial#\",_x000D_\n  \"value\": \"xx\"_x000D_\n},\n{_x000D_\n  \"name\": \"SizeUnit\",_x000D_\n  \"value\": \"BTU/H\"_x000D_\n},\n{_x000D_\n  \"name\": \"Size\",_x000D_\n  \"value\": 550000_x000D_\n},\n{_x000D_\n  \"name\": \"Input1\",_x000D_\n  \"value\": \"IEER\"_x000D_\n},\n{_x000D_\n  \"name\": \"B_InputValue1\"_x000D_\n},\n{_x000D_\n  \"name\": \"P_InputValue1\",_x000D_\n  \"value\": 14.9_x000D_\n},\n{_x000D_\n  \"name\": \"Input2\",_x000D_\n  \"value\": \"\"_x000D_\n},\n{_x000D_\n  \"name\": \"B_InputValue2\",_x000D_\n  \"value\": 13.2_x000D_\n},\n{_x000D_\n  \"name\": \"P_InputValue2\",_x000D_\n  \"value\": \"\"_x000D_\n},\n{_x000D_\n  \"name\": \"Input3\",_x000D_\n  \"value\": \"EER\"_x000D_\n},\n{_x000D_\n  \"name\": \"B_InputValue3\"_x000D_\n},\n{_x000D_\n  \"name\": \"P_InputValue3\",_x000D_\n  \"value\": 10.7_x000D_\n},\n{_x000D_\n  \"name\": \"Input4\",_x000D_\n  \"value\": \"\"_x000D_\n},\n{_x000D_\n  \"name\": \"B_InputValue4\",_x000D_\n  \"value\": 10_x000D_\n},\n{_x000D_\n  \"name\": \"P_InputValue4\",_x000D_\n  \"value\": \"\"_x000D_\n},\n{_x000D_\n  \"name\": \"Input5\",_x000D_\n  \"value\": \"\"_x000D_\n},\n{_x000D_\n  \"name\": \"B_InputValue5\"_x000D_\n},\n{_x000D_\n  \"name\": \"P_InputValue5\",_x000D_\n  \"value\": \"\"_x000D_\n},\n{_x000D_\n  \"name\": \"Input6\",_x000D_\n  \"value\": \"\"_x000D_\n},\n{_x000D_\n  \"name\": \"B_InputValue6\"_x000D_\n},\n{_x000D_\n  \"name\": \"P_InputValue6\",_x000D_\n  \"value\": \"\"_x000D_\n},\n{_x000D_\n  \"name\": \"Quantity\",_x000D_\n  \"value\": 1_x000D_\n},\n{_x000D_\n  \"name\": \"Notes\"_x000D_\n},\n{_x000D_\n  \"name\": \"BaselinekWh\",_x000D_\n  \"value\": 143125_x000D_\n},\n{_x000D_\n  \"name\": \"BaselinekW\",_x000D_\n  \"value\": 38.346_x000D_\n},\n{_x000D_\n  \"name\": \"ProposedkWh\",_x000D_\n  \"value\": 126795_x000D_\n},\n{_x000D_\n  \"name\": \"ProposedkW\",_x000D_\n  \"value\": 35.837_x000D_\n},\n{_x000D_\n  \"name\": \"Tier\",_x000D_\n  \"value\": \"AC - Tier 1\"_x000D_\n},\n{_x000D_\n  \"name\": \"IncentiveRate\",_x000D_\n  \"value\": 65_x000D_\n},\n{_x000D_\n  \"name\": \"Incentive_Customer\",_x000D_\n  \"value\": 2979.17_x000D_\n},\n{_x000D_\n  \"name\": \"CostRate\",_x000D_\n  \"value\": 150_x000D_\n},\n{_x000D_\n  \"name\": \"IncrementalCost\",_x000D_\n  \"value\": 6875_x000D_\n},\n{_x000D_\n  \"name\": \"MeasureCost\",_x000D_\n  \"value\": 1362947.65_x000D_\n},\n{_x000D_\n  \"name\": \"kWhSavings\",_x000D_\n  \"value\": 16330_x000D_\n},\n{_x000D_\n  \"name\": \"DemandSavingskW\",_x000D_\n  \"value\": 2.50899999999999_x000D_\n},\n{_x000D_\n  \"name\": \"WaterSavings\",_x000D_\n  \"value\": 0_x000D_\n},\n{_x000D_\n  \"name\": \"ElectrificationSavings\",_x000D_\n  \"value\": \"\"_x000D_\n},\n{_x000D_\n  \"name\": \"ElectrificationGHG\",_x000D_\n  \"value\": 1501.5_x000D_\n},\n{_x000D_\n  \"name\": \"AnnualCO2Savings\",_x000D_\n  \"value\": 6.82947473464574_x000D_\n},\n{_x000D_\n  \"name\": \"AnnualVehicleSavings\",_x000D_\n  \"value\": 1.47584277440883_x000D_\n},\n{_x000D_\n  \"name\": \"AnnualCarbonSavings\",_x000D_\n  \"value\": 112.895983923698_x000D_\n},\n{_x000D_\n  \"name\": \"AnnualNoxSavings\",_x000D_\n  \"value\": 0.0051851016_x000D_\n},\n{_x000D_\n  \"name\": \"EFLHCooling\",_x000D_\n  \"value\": 3435_x000D_\n},\n{_x000D_\n  \"name\": \"EFLH_Heating\"_x000D_\n},\n{_x000D_\n  \"name\": \"MeasureLife\",_x000D_\n  \"value\": 15_x000D_\n}\n]\n}\n, \n{_x000D_\n  \"name\": \"Non Lighting Container\"_x000D_\n, \"fields\":[\n\n{_x000D_\n  \"name\": \"MeasureName\",_x000D_\n  \"value\": \"Unitary Heat Pump Equipment - Packaged Heat Pump - 48,000.00 BTU/H\"_x000D_\n},\n{_x000D_\n  \"name\": \"MeassureCategory\",_x000D_\n  \"value\": \"Unitary Heat Pump Equipment\"_x000D_\n},\n{_x000D_\n  \"name\": \"ProposedMeasureCategory\",_x000D_\n  \"value\": \"Packaged Heat Pump\"_x000D_\n},\n{_x000D_\n  \"name\": \"P_M"}}]
[{"$cut":{"chars":22434,"head":"{_x000D_\n  \"name\": \"Non Lighting Container\"_x000D_\n, \"fields\":[\n\n{_x000D_\n  \"name\": \"MeasureName\",_x000D_\n  \"value\": \"Unitary Air-Conditioning Equipment - Packaged Air-Conditioner - 550,000.00 BTU/H\"_x000D_\n},\n{_x000D_\n  \"name\": \"MeassureCategory\",_x000D_\n  \"value\": \"Unitary Air-Conditioning Equipment\"_x000D_\n},\n{_x000D_\n  \"name\": \"ProposedMeasureCategory\",_x000D_\n  \"value\": \"Packaged Air-Conditioner\"_x000D_\n},\n{_x000D_\n  \"name\": \"P_MeasureOption1\",_x000D_\n  \"value\": \"Air-Cooled\"_x000D_\n},\n{_x000D_\n  \"name\": \"P_MeasureOption2\",_x000D_\n  \"value\": \"Electric Resistance\"_x000D_\n},\n{_x000D_\n  \"name\": \"Manufacturer\",_x000D_\n  \"value\": \"Trane\"_x000D_\n},\n{_x000D_\n  \"name\": \"Model#\",_x000D_\n  \"value\": \"SXHMF7504\"_x000D_\n},\n{_x000D_\n  \"name\": \"Serial#\",_x000D_\n  \"value\": \"xx\"_x000D_\n},\n{_x000D_\n  \"name\": \"SizeUnit\",_x000D_\n  \"value\": \"BTU/H\"_x000D_\n},\n{_x000D_\n  \"name\": \"Size\",_x000D_\n  \"value\": 550000_x000D_\n},\n{_x000D_\n  \"name\": \"Input1\",_x000D_\n  \"value\": \"IEER\"_x000D_\n},\n{_x000D_\n  \"name\": \"B_InputValue1\"_x000D_\n},\n{_x000D_\n  \"name\": \"P_InputValue1\",_x000D_\n  \"value\": 14.9_x000D_\n},\n{_x000D_\n  \"name\": \"Input2\",_x000D_\n  \"value\": \"\"_x000D_\n},\n{_x000D_\n  \"name\": \"B_InputValue2\",_x000D_\n  \"value\": 13.2_x000D_\n},\n{_x000D_\n  \"name\": \"P_InputValue2\",_x000D_\n  \"value\": \"\"_x000D_\n},\n{_x000D_\n  \"name\": \"Input3\",_x000D_\n  \"value\": \"EER\"_x000D_\n},\n{_x000D_\n  \"name\": \"B_InputValue3\"_x000D_\n},\n{_x000D_\n  \"name\": \"P_InputValue3\",_x000D_\n  \"value\": 10.7_x000D_\n},\n{_x000D_\n  \"name\": \"Input4\",_x000D_\n  \"value\": \"\"_x000D_\n},\n{_x000D_\n  \"name\": \"B_InputValue4\",_x000D_\n  \"value\": 10_x000D_\n},\n{_x000D_\n  \"name\": \"P_InputValue4\",_x000D_\n  \"value\": \"\"_x000D_\n},\n{_x000D_\n  \"name\": \"Input5\",_x000D_\n  \"value\": \"\"_x000D_\n},\n{_x000D_\n  \"name\": \"B_InputValue5\"_x000D_\n},\n{_x000D_\n  \"name\": \"P_InputValue5\",_x000D_\n  \"value\": \"\"_x000D_\n},\n{_x000D_\n  \"name\": \"Input6\",_x000D_\n  \"value\": \"\"_x000D_\n},\n{_x000D_\n  \"name\": \"B_InputValue6\"_x000D_\n},\n{_x000D_\n  \"name\": \"P_InputValue6\",_x000D_\n  \"value\": \"\"_x000D_\n},\n{_x000D_\n  \"name\": \"Quantity\",_x000D_\n  \"value\": 1_x000D_\n},\n{_x000D_\n  \"name\": \"Notes\"_x000D_\n},\n{_x000D_\n  \"name\": \"BaselinekWh\",_x000D_\n  \"value\": 143125_x000D_\n},\n{_x000D_\n  \"name\": \"BaselinekW\",_x000D_\n  \"value\": 38.346_x000D_\n},\n{_x000D_\n  \"name\": \"ProposedkWh\",_x000D_\n  \"value\": 126795_x000D_\n},\n{_x000D_\n  \"name\": \"ProposedkW\",_x000D_\n  \"value\": 35.837_x000D_\n},\n{_x000D_\n  \"name\": \"Tier\",_x000D_\n  \"value\": \"AC - Tier 1\"_x000D_\n},\n{_x000D_\n  \"name\": \"IncentiveRate\",_x000D_\n  \"value\": 65_x000D_\n},\n{_x000D_\n  \"name\": \"Incentive_Customer\",_x000D_\n  \"value\": 2979.17_x000D_\n},\n{_x000D_\n  \"name\": \"CostRate\",_x000D_\n  \"value\": 150_x000D_\n},\n{_x000D_\n  \"name\": \"IncrementalCost\",_x000D_\n  \"value\": 6875_x000D_\n},\n{_x000D_\n  \"name\": \"MeasureCost\",_x000D_\n  \"value\": 1362947.65_x000D_\n},\n{_x000D_\n  \"name\": \"kWhSavings\",_x000D_\n  \"value\": 16330_x000D_\n},\n{_x000D_\n  \"name\": \"DemandSavingskW\",_x000D_\n  \"value\": 2.50899999999999_x000D_\n},\n{_x000D_\n  \"name\": \"WaterSavings\",_x000D_\n  \"value\": 0_x000D_\n},\n{_x000D_\n  \"name\": \"ElectrificationSavings\",_x000D_\n  \"value\": \"\"_x000D_\n},\n{_x000D_\n  \"name\": \"ElectrificationGHG\",_x000D_\n  \"value\": 1501.5_x000D_\n},\n{_x000D_\n  \"name\": \"AnnualCO2Savings\",_x000D_\n  \"value\": 6.82947473464574_x000D_\n},\n{_x000D_\n  \"name\": \"AnnualVehicleSavings\",_x000D_\n  \"value\": 1.47584277440883_x000D_\n},\n{_x000D_\n  \"name\": \"AnnualCarbonSavings\",_x000D_\n  \"value\": 112.895983923698_x000D_\n},\n{_x000D_\n  \"name\": \"AnnualNoxSavings\",_x000D_\n  \"value\": 0.0051851016_x000D_\n},\n{_x000D_\n  \"name\": \"EFLHCooling\",_x000D_\n  \"value\": 3435_x000D_\n},\n{_x000D_\n  \"name\": \"EFLH_Heating\"_x000D_\n},\n{_x000D_\n  \"name\": \"MeasureLife\",_x000D_\n  \"value\": 15_x000D_\n}\n]\n}\n, \n{_x000D_\n  \"name\": \"Non Lighting Container\"_x000D_\n, \"fields\":[\n\n{_x000D_\n  \"name\": \"MeasureName\",_x000D_\n  \"value\": \"Unitary Heat Pump Equipment - Packaged Heat Pump - 48,000.00 BTU/H\"_x000D_\n},\n{_x000D_\n  \"name\": \"MeassureCategory\",_x000D_\n  \"value\": \"Unitary Heat Pump Equipment\"_x000D_\n},\n{_x000D_\n  \"name\": \"ProposedMeasureCategory\",_x000D_\n  \"value\": \"Packaged Heat Pump\"_x000D_\n},\n{_x000D_\n  \"name\": \"P_M"}}]
[{"$cut":{"chars":26198,"head":"{_x000D_\n  \"name\": \"Non Lighting Container\"_x000D_\n, \"fields\":[\n\n{_x000D_\n  \"name\": \"MeasureName\",_x000D_\n  \"value\": \"Unitary Air-Conditioning Equipment - Packaged Air-Conditioner - 550,000.00 BTU/H\"_x000D_\n},\n{_x000D_\n  \"name\": \"MeassureCategory\",_x000D_\n  \"value\": \"Unitary Air-Conditioning Equipment\"_x000D_\n},\n{_x000D_\n  \"name\": \"ProposedMeasureCategory\",_x000D_\n  \"value\": \"Packaged Air-Conditioner\"_x000D_\n},\n{_x000D_\n  \"name\": \"P_MeasureOption1\",_x000D_\n  \"value\": \"Air-Cooled\"_x000D_\n},\n{_x000D_\n  \"name\": \"P_MeasureOption2\",_x000D_\n  \"value\": \"Electric Resistance\"_x000D_\n},\n{_x000D_\n  \"name\": \"Manufacturer\",_x000D_\n  \"value\": \"Trane\"_x000D_\n},\n{_x000D_\n  \"name\": \"Model#\",_x000D_\n  \"value\": \"SXHMF7504\"_x000D_\n},\n{_x000D_\n  \"name\": \"Serial#\",_x000D_\n  \"value\": \"xx\"_x000D_\n},\n{_x000D_\n  \"name\": \"SizeUnit\",_x000D_\n  \"value\": \"BTU/H\"_x000D_\n},\n{_x000D_\n  \"name\": \"Size\",_x000D_\n  \"value\": 550000_x000D_\n},\n{_x000D_\n  \"name\": \"Input1\",_x000D_\n  \"value\": \"IEER\"_x000D_\n},\n{_x000D_\n  \"name\": \"B_InputValue1\"_x000D_\n},\n{_x000D_\n  \"name\": \"P_InputValue1\",_x000D_\n  \"value\": 14.9_x000D_\n},\n{_x000D_\n  \"name\": \"Input2\",_x000D_\n  \"value\": \"\"_x000D_\n},\n{_x000D_\n  \"name\": \"B_InputValue2\",_x000D_\n  \"value\": 13.2_x000D_\n},\n{_x000D_\n  \"name\": \"P_InputValue2\",_x000D_\n  \"value\": \"\"_x000D_\n},\n{_x000D_\n  \"name\": \"Input3\",_x000D_\n  \"value\": \"EER\"_x000D_\n},\n{_x000D_\n  \"name\": \"B_InputValue3\"_x000D_\n},\n{_x000D_\n  \"name\": \"P_InputValue3\",_x000D_\n  \"value\": 10.7_x000D_\n},\n{_x000D_\n  \"name\": \"Input4\",_x000D_\n  \"value\": \"\"_x000D_\n},\n{_x000D_\n  \"name\": \"B_InputValue4\",_x000D_\n  \"value\": 10_x000D_\n},\n{_x000D_\n  \"name\": \"P_InputValue4\",_x000D_\n  \"value\": \"\"_x000D_\n},\n{_x000D_\n  \"name\": \"Input5\",_x000D_\n  \"value\": \"\"_x000D_\n},\n{_x000D_\n  \"name\": \"B_InputValue5\"_x000D_\n},\n{_x000D_\n  \"name\": \"P_InputValue5\",_x000D_\n  \"value\": \"\"_x000D_\n},\n{_x000D_\n  \"name\": \"Input6\",_x000D_\n  \"value\": \"\"_x000D_\n},\n{_x000D_\n  \"name\": \"B_InputValue6\"_x000D_\n},\n{_x000D_\n  \"name\": \"P_InputValue6\",_x000D_\n  \"value\": \"\"_x000D_\n},\n{_x000D_\n  \"name\": \"Quantity\",_x000D_\n  \"value\": 1_x000D_\n},\n{_x000D_\n  \"name\": \"Notes\"_x000D_\n},\n{_x000D_\n  \"name\": \"BaselinekWh\",_x000D_\n  \"value\": 143125_x000D_\n},\n{_x000D_\n  \"name\": \"BaselinekW\",_x000D_\n  \"value\": 38.346_x000D_\n},\n{_x000D_\n  \"name\": \"ProposedkWh\",_x000D_\n  \"value\": 126795_x000D_\n},\n{_x000D_\n  \"name\": \"ProposedkW\",_x000D_\n  \"value\": 35.837_x000D_\n},\n{_x000D_\n  \"name\": \"Tier\",_x000D_\n  \"value\": \"AC - Tier 1\"_x000D_\n},\n{_x000D_\n  \"name\": \"IncentiveRate\",_x000D_\n  \"value\": 65_x000D_\n},\n{_x000D_\n  \"name\": \"Incentive_Customer\",_x000D_\n  \"value\": 2979.17_x000D_\n},\n{_x000D_\n  \"name\": \"CostRate\",_x000D_\n  \"value\": 150_x000D_\n},\n{_x000D_\n  \"name\": \"IncrementalCost\",_x000D_\n  \"value\": 6875_x000D_\n},\n{_x000D_\n  \"name\": \"MeasureCost\",_x000D_\n  \"value\": 1362947.65_x000D_\n},\n{_x000D_\n  \"name\": \"kWhSavings\",_x000D_\n  \"value\": 16330_x000D_\n},\n{_x000D_\n  \"name\": \"DemandSavingskW\",_x000D_\n  \"value\": 2.50899999999999_x000D_\n},\n{_x000D_\n  \"name\": \"WaterSavings\",_x000D_\n  \"value\": 0_x000D_\n},\n{_x000D_\n  \"name\": \"ElectrificationSavings\",_x000D_\n  \"value\": \"\"_x000D_\n},\n{_x000D_\n  \"name\": \"ElectrificationGHG\",_x000D_\n  \"value\": 1501.5_x000D_\n},\n{_x000D_\n  \"name\": \"AnnualCO2Savings\",_x000D_\n  \"value\": 6.82947473464574_x000D_\n},\n{_x000D_\n  \"name\": \"AnnualVehicleSavings\",_x000D_\n  \"value\": 1.47584277440883_x000D_\n},\n{_x000D_\n  \"name\": \"AnnualCarbonSavings\",_x000D_\n  \"value\": 112.895983923698_x000D_\n},\n{_x000D_\n  \"name\": \"AnnualNoxSavings\",_x000D_\n  \"value\": 0.0051851016_x000D_\n},\n{_x000D_\n  \"name\": \"EFLHCooling\",_x000D_\n  \"value\": 3435_x000D_\n},\n{_x000D_\n  \"name\": \"EFLH_Heating\"_x000D_\n},\n{_x000D_\n  \"name\": \"MeasureLife\",_x000D_\n  \"value\": 15_x000D_\n}\n]\n}\n, \n{_x000D_\n  \"name\": \"Non Lighting Container\"_x000D_\n, \"fields\":[\n\n{_x000D_\n  \"name\": \"MeasureName\",_x000D_\n  \"value\": \"Unitary Heat Pump Equipment - Packaged Heat Pump - 48,000.00 BTU/H\"_x000D_\n},\n{_x000D_\n  \"name\": \"MeassureCategory\",_x000D_\n  \"value\": \"Unitary Heat Pump Equipment\"_x000D_\n},\n{_x000D_\n  \"name\": \"ProposedMeasureCategory\",_x000D_\n  \"value\": \"Packaged Heat Pump\"_x000D_\n},\n{_x000D_\n  \"name\": \"P_M"}}]